{"text_format":"1","workbook":"xlsx","n_sheets":33,"sheets":["COVER","Definitions","Notes","Comments","Navigation","Product Classes","Efficiency Levels","Product Class UECs","Data by Building Type","National Shipments","Efficiency Distributions","Efficiency Dist - SF","Efficiency Dist - MF","Efficiency Dist - MH","Shipments and Stock - SF","Shipments and Stock - MF","Shipments and Stock - MH","6P UEC Development","Constants","Product Class Dist","UEC Development","UEC-SF","UEC-MF","UEC-MH","Results-SF","Results-MF","Results-MH","Results-TH","SUMMARY RESULTS","Charts-SF","Charts-MF","Charts-MH","Charts-ALL"],"not_rendered":{"charts":39,"images":0,"macros":1,"external_links":1,"defined_names":13,"comments":0,"pivot_tables":0},"unopened":[],"bounds":{"document_bytes":16777216,"sheet_cells":100000,"rows_first":2000,"rows_last":500,"rows_between":2000,"halvings":0,"cell_chars":16384,"cell_head_chars":4096},"cells_cut":0,"cells_raw":0,"read":"whole","date_system":"1900"}

{"sheet":"COVER","index":0,"n_rows":28,"n_cols":4,"rows_kept":28,"cut":false,"hidden":false,"merged":[[22,2,22,3],[8,2,8,3],[9,2,9,3],[10,2,10,3],[13,2,13,3],[16,2,16,3],[18,2,18,3]]}
[]
[null,null,"Cover"]
[]
[null,null,"NAVIGATION"]
[]
[null,null,"COMMENTS"]
[]
[]
[null,null,"Bonneville Power Administration"]
[null,null,"6P Energy Conservation Standards Savings Model"]
[null,null,"Furnace Fans"]
[]
[null,null,"Product Description"]
[null,null,"A furnace fan is an electrically-powered device used in residential buildings for the purposes of circulating air through duct work. A furnace fan consists of a fan motor and its controls, an impeller, and a housing, typically as an assembly incorporated in a residential central heating, ventilation, and air conditioning (HVAC) product."]
[]
[null,null,"Standard Compliance Year"]
[null,null,"2019; per the DOE 2014 Final Rule "]
[]
[null,null,"Major changes from previous rulemaking (2009 effective standard)"]
[null,null,"No previous energy conservation standards for furnace fans exist."]
[]
[null,null,"6P Baseline "]
[null,null,"Because no previous standards exist, this measure is not reflected in the 6P."]
[]
[null,null,"Prepared By:"]
[null,null,"Navigant Consulting","Cadeo Group"]
[null,null,"One Market Street | Spear Street Tower, Suite 1200 ","840 First Street, Suite 300"]
[null,null,"San Francisco, CA 94105","Washington, DC  20002"]

{"sheet":"Definitions","index":1,"n_rows":32,"n_cols":4,"rows_kept":32,"cut":false,"hidden":false,"merged":[]}
[]
[null,null,"Definitions"]
[]
[null,null,"NAVIGATION"]
[]
[null,null,"COMMENTS"]
[]
[]
[null,null,"Average Megawatt (aMW)","The average number of megawatts over a specified time period"]
[null,null,"Adjustment to 6P Baseline ","Adjustment to reconcile the 6P projected energy consumption and the modeled consumption calculated using best available data."]
[null,null,"Department of Energy Aggregate Lifecycle Savings ","Sum of 'Total First Year Savings'.  This accounts for the cumulative savings in accordance with DOE Carbon Accounting Practices."]
[null,null,"Department of Energy Notice of Proposed Rulemaking (DOE NOPR)","Federal Register notice detailing analyses conducted by the DOE to establish proposed energy conservation standards. "]
[null,null,"Efficiency Level (EL)","The discrete efficiency ratings of a product.  Each efficiency level is associated with a different UEC."]
[null,null,"Efficiency Level Distribution","The mix of various equipment efficiencies shipped in a given year."]
[null,null,"Incremental Savings ","Savings due to the higher standards for units installed in a particular year. First year savings are highest following the standards compliance year while the stock turns over, after which first year savings are only attributed to shipments associated wit"]
[null,null,"Governmental Regulatory Impact Model (GRIM)","The industry cash flow model used by DOE to assess impacts on manufacturers due to proposed energy conservation standards"]
[null,null,"Installed Unit Energy Consumption (Installed UEC)","The average annual unit energy consumption of all installed units in a given year."]
[null,null,"Market Unit Energy Consumption (Market UEC)","The average annual unit energy consumption of units shipped in a given year.   "]
[null,null,"National Impact Analysis (NIA)","The energy impact analysis used by DOE to calculate energy savings associated with each standard. "]
[null,null,"Pre-case ","The case representing 6P baseline assumptions where energy consumption due to the product accounts for shipment and shipment UEC by year, without the affect of standards announced following the development of the 6P."]
[null,null,"Post-case","The case in which standards are implemented. If the 6P already captured the analyzed standard, the post-case will be the same as the pre-case."]
[null,null,"Product Class","Product classificiation determined by product configuration, size, application, location, and other attributes that contribute to consumer utility.  DOE is allowed to establish different standards for each product class."]
[null,null,"Product Class Distribution ","Market share/mix of each product class shipped in a given year."]
[null,null,"Product Lifetime","The average time a given class of products stays in the field as part of the installed stock.  Some products will last longer (delaying replacement) whereas others will fail and be retired earlier (accelerating replacement), but the lifetime represents th"]
[null,null,"Shipments ","Sales of products.  This may be presented by product class, efficiency distribution, or delineated by other metrics. Shipments may be attributed to new construction and/or replacements and retrofits. "]
[null,null,"Sixth Power Plan (6P)","The Pacific Northwest Resource Plan published by the Northwest Power Conservation Council. The 6P timeframe is from 2010-2015."]
[null,null,"Sixth Power Plan Baseline (6P Baseline)","The 6P assumes equipment efficiency and shipment units in the region.  When available, the 6P assumptions are the baseline for each standard impact analysis."]
[null,null,"Standard Compliance Year","The year when the appliance standard goes into effect. "]
[null,null,"Stock ","All units installed in previous years which remain in operation."]
[null,null,"Technical Support Document (TSD)","TSDs are published by the DOE as companion documents to Federal Register notices (e.g., ANOPRs/preliminary analyses and NOPRs).  The TSDs include technical detail that supports the notices.  The final rule TSD includes the discussion of the Manufacturer I"]
[null,null,"Cumulative Savings through 2034","The sum of incremental savings from 2010 through 2034"]
[null,null,"Trial Standard Level (TSL)","A proposed  efficiency standard evaluated by DOE during the NOPR and Final Rule phase analyses.  A TSL may specify different standard efficiency levels for each product class included in the rulemaking."]

{"sheet":"Notes","index":2,"n_rows":11,"n_cols":3,"rows_kept":11,"cut":false,"hidden":false,"merged":[]}
[]
[null,null,"NOTES"]
[]
[null,null,"NAVIGATION"]
[]
[null,null,"COMMENTS"]
[]
[]
[null,null,"Notes"]
[]
[null,null,"The UECs indicated in this model represent the national average UECs from the 2014 DOE Final Rule.  Further revision may include adjusting these values to reflect the regional heating and cooling loads in the Pacific Northwest."]

{"sheet":"Comments","index":3,"n_rows":8,"n_cols":4,"rows_kept":8,"cut":false,"hidden":false,"merged":[[13,3,13,7],[14,3,14,7],[15,3,15,7],[16,3,16,7],[7,3,7,7],[8,3,8,7],[9,3,9,7],[10,3,10,7],[11,3,11,7],[12,3,12,7]]}
[]
[null,null,"Comments"]
[]
[null,null,"NAVIGATION"]
[]
[]
[null,null,"Tab","Comment"]
[null,null,"Example","Please use this space to document your comments as you review the model.  We look forward to receiving your feedback.  Thank you."]

{"sheet":"Navigation","index":4,"n_rows":37,"n_cols":11,"rows_kept":37,"cut":false,"hidden":false,"merged":[[16,6,18,6],[12,6,14,6],[20,2,30,2],[36,8,38,8],[20,10,22,10],[24,10,26,10],[28,10,30,10],[32,10,34,10],[32,8,34,8],[20,6,22,6],[24,6,26,6],[28,6,30,6],[20,8,22,8],[24,8,26,8],[28,8,30,8]]}
[]
[null,null,"NAVIGATION"]
[]
[null,null,"COMMENTS"]
[]
[]
[null,null,"INFORMATION TABS",null,"INPUT TABS",null,"UEC CALCULATIONS",null,"RESULTS",null,"CHARTS"]
[]
[null,null,"COVER",null,"PRODUCT CLASSES"]
[]
[null,null,"DEFINITIONS",null,"EFFICIENCY LEVELS"]
[]
[null,null,"NOTES",null,"DATA BY BUILDING TYPE",null,"PRODUCT CLASS DISTRIBUTION"]
[]
[null,null,"COMMENTS",null,"NATIONAL SHIPMENTS"]
[]
[null,null,"NAVIGATION",null,"PRODUCT CLASS UECS",null,"UEC DEVELOPMENT"]
[]
[null,null,null,null,"EFFICIENCY DISTRIBUTIONS"]
[]
[null,null,"CENTRAL RESIDENTIAL MODEL (EXTERNAL)",null,"EFFICIENCY DISTRIBUTION - SF",null,"UEC - SF",null,"RESULTS - SF",null,"CHARTS - SF"]
[]
[null,null,null,null,"SHIPMENTS AND STOCK - SF"]
[]
[null,null,null,null,"EFFICIENCY DISTRIBUTION - MF",null,"UEC - MF",null,"RESULTS - MF",null,"CHARTS - MF"]
[]
[null,null,null,null,"SHIPMENTS AND STOCK - MF"]
[]
[null,null,null,null,"EFFICIENCY DISTRIBUTION - MH",null,"UEC - MH",null,"RESULTS - MH",null,"CHARTS - MH"]
[]
[null,null,null,null,"SHIPMENTS AND STOCK - MH"]
[]
[null,null,null,null,"6P UEC DEVELOPMENT",null,null,null,"RESULTS - TH",null,"CHARTS - ALL"]
[]
[]
[]
[null,null,null,null,null,null,null,null,"SUMMARY RESULTS"]

{"sheet":"Product Classes","index":5,"n_rows":23,"n_cols":9,"rows_kept":23,"cut":false,"hidden":false,"merged":[]}
[]
[null,null,"Selection of Product Classes for Model"]
[]
[null,null,"NAVIGATION"]
[]
[null,null,"COMMENTS"]
[]
[]
[null,null,"All Product Classes","2014 DOE Final Rule PCs 1","DOE Representative PCs 1","6P PCs 2",null,"Model PCs","Rationale"]
[null,null,"Non-Weatherized, Non-Condensing Gas Furnace Fan (NWG-NC)","PC 1","PC 1",null,null,"PC 1"]
[null,null,"Non-Weatherized, Condensing Gas Furnace Fan (NWG-C)","PC 2","PC 2",null,null,"PC 2"]
[null,null,"Weatherized Non-Condensing Gas Furnace Fan (WG-NC)","PC 3","PC 3",null,null,"PC 3"]
[null,null,"Non-Weatherized, Non-Condensing Oil Furnace Fan (NWO-NC)","PC 4","PC 4",null,null,"PC 4"]
[null,null,"Non-Weatherized Electric Furnace / Modular Blower Fan (NWEF/NWMB)","PC 5","PC 5",null,null,"PC 5"]
[null,null,"Mobile Home Non-Weatherized, Non-Condensing Gas Furnace Fan (MH-NWG-NC)","PC 6","PC 6",null,null,"PC 6"]
[null,null,"Mobile Home Non-Weatherized, Condensing Gas Furnace Fan (MH-NWG-C)","PC 7","PC 7",null,null,"PC 7"]
[null,null,"Mobile Home Electric Furnace / Modular Blower Fan (MH-EF/MB)","PC 8","PC 8",null,null,"PC 8"]
[null,null,"Mobile Home Non-Weatherized Oil Furnace Fan (MH-NWO)","PC 9",null,null,null,null,"Excluded as no standards issued"]
[null,null,"Mobile Home Weatherized Gas Furnace Fan (MH-WG)**","PC 10",null,null,null,null,"Excluded as no standards issued"]
[]
[null,null,"Sources"]
[null,null,"1.","DOE Residential Furnace Fans Final Rule 2014 Table I.1.—Energy Conservation Standards for Covered Residential Furnace Fans "]
[null,null,"2.","Not included as measure in the 6P"]

{"sheet":"Efficiency Levels","index":6,"n_rows":30,"n_cols":11,"rows_kept":30,"cut":false,"hidden":false,"merged":[[1,2,1,3],[3,2,3,3],[5,2,5,3]]}
[]
[null,null,"Efficiency Levels and Standards for Each Product Class"]
[]
[null,null,"NAVIGATION"]
[]
[null,null,{"$f":"'Product Classes'!$C$6","v":"COMMENTS"}]
[]
[]
[null,null,null,"PC 1","PC 2","PC 3","PC 4","PC 5","PC 6","PC 7","PC 8"]
[null,null,null,{"$f":"OFFSET('Product Classes'!$C$9,MATCH(D9,MODEL_PCS,0),0)","v":"Non-Weatherized, Non-Condensing Gas Furnace Fan (NWG-NC)"},{"$f":"OFFSET('Product Classes'!$C$9,MATCH(E9,MODEL_PCS,0),0)","v":"Non-Weatherized, Condensing Gas Furnace Fan (NWG-C)"},{"$f":"OFFSET('Product Classes'!$C$9,MATCH(F9,MODEL_PCS,0),0)","v":"Weatherized Non-Condensing Gas Furnace Fan (WG-NC)"},{"$f":"OFFSET('Product Classes'!$C$9,MATCH(G9,MODEL_PCS,0),0)","v":"Non-Weatherized, Non-Condensing Oil Furnace Fan (NWO-NC)"},{"$f":"OFFSET('Product Classes'!$C$9,MATCH(H9,MODEL_PCS,0),0)","v":"Non-Weatherized Electric Furnace / Modular Blower Fan (NWEF/NWMB)"},{"$f":"OFFSET('Product Classes'!$C$9,MATCH(I9,MODEL_PCS,0),0)","v":"Mobile Home Non-Weatherized, Non-Condensing Gas Furnace Fan (MH-NWG-NC)"},{"$f":"OFFSET('Product Classes'!$C$9,MATCH(J9,MODEL_PCS,0),0)","v":"Mobile Home Non-Weatherized, Condensing Gas Furnace Fan (MH-NWG-C)"},{"$f":"OFFSET('Product Classes'!$C$9,MATCH(K9,MODEL_PCS,0),0)","v":"Mobile Home Electric Furnace / Modular Blower Fan (MH-EF/MB)"}]
[null,null," Model EL","FER*","FER*","FER*","FER*","FER*","FER*","FER*","FER*"]
[null,null,"EL0","0.081*QMax+335","0.081*QMax+358","0.081*QMax+365","0.081*QMax+433","0.081*QMax+304","0.081*QMax+252","0.081*QMax+273","0.081*QMax+186"]
[null,null,"EL1","0.071*QMax+295","0.071*QMax+316","0.071*QMax+322","0.071*QMax+382","0.071*QMax+268","0.071*QMax+222","0.071*QMax+240","0.071*QMax+164"]
[null,null,"EL2","0.061*QMax+251","0.061*QMax+269","0.061*QMax+274","0.061*QMax+325","0.061*QMax+228","0.061*QMax+189","0.061*QMax+204","0.061*QMax+139"]
[null,null,"EL3","0.048*QMax+199","0.048*QMax+213","0.048*QMax+217","0.048*QMax+257","0.048*QMax+180","0.048*QMax+150","0.048*QMax+162","0.048*QMax+110"]
[null,null,"EL4","0.044*QMax+182","0.044*QMax+195","0.044*QMax+199","0.044*QMax+236","0.044*QMax+165","0.044*QMax+137","0.044*QMax+148","0.044*QMax+101"]
[null,null,"EL5","0.040*QMax+165","0.040*QMax+177","0.040*QMax+180","0.040*QMax+214","0.040*QMax+150","0.040*QMax+124","0.040*QMax+134","0.040*QMax+92"]
[null,null,"EL6","0.036*QMax+149","0.036*QMax+159","0.036*QMax+162","0.036*QMax+192","0.036*QMax+135","0.036*QMax+112","0.036*QMax+121","0.036*QMax+82"]
[]
[null,null,"Standard Level","EL4","EL4","EL4","EL1","EL4","EL1","EL1","EL4"]
[]
[null,null,"Standard Year",2019]
[]
[null,null,"Sources"]
[null,null,"2014 DOE Final Rule Technical Support Document - Chapter 5: Engineering Analysis - Table 5.4.4: Efficiency Levels for Non-Weatherized Gas Furnace Fan Product Classes"]
[null,null,"2014 DOE Final Rule Technical Support Document - Chapter 5: Engineering Analysis - Table 5.4.5: Efficiency Levels for Non-Weatherized Electric Furnace/Modular Blower Fans, Weatherized Gas Fans, and Non-Weatherized Oil Furnace Fans"]
[null,null,"2014 DOE Final Rule Technical Support Document - Chapter 5: Engineering Analysis - Table 5.4.6: Efficiency Levels for Mobile Home Furnace Fan Product Classes"]
[null,null,"2014 DOE Residential Furnace Fans Final Rule - Table I.1. Energy Conservation Standards for Covered Residential Furnace Fans"]
[]
[null,null,null,"*FER (Fan Energy Rating) is a function of Qmax, which is the maximum airflow expressed in cubic feet per minute (CFM)"]

{"sheet":"Product Class UECs","index":7,"n_rows":90,"n_cols":4,"rows_kept":90,"cut":false,"hidden":false,"merged":[]}
[]
[null,null,"Product Class UECS"]
[]
[null,null,{"$f":"Navigation!$C$17","v":"NAVIGATION"}]
[]
[null,null,"COMMENTS"]
[]
[]
[null,null,"PC 1"]
[null,null,{"$f":"OFFSET('Product Classes'!$C$9,MATCH(C9,MODEL_PCS,0),0)","v":"Non-Weatherized, Non-Condensing Gas Furnace Fan (NWG-NC)"},"kWh / year"]
[null,null,"EL0",1080]
[null,null,"EL1",935]
[null,null,"EL2",794]
[null,null,"EL3",614]
[null,null,"EL4",537]
[null,null,"EL5",507]
[null,null,"EL6",449]
[]
[null,null,"PC 2"]
[null,null,{"$f":"OFFSET('Product Classes'!$C$9,MATCH(C19,MODEL_PCS,0),0)","v":"Non-Weatherized, Condensing Gas Furnace Fan (NWG-C)"},"kWh / year"]
[null,null,"EL0",1110]
[null,null,"EL1",969]
[null,null,"EL2",836]
[null,null,"EL3",646]
[null,null,"EL4",578]
[null,null,"EL5",553]
[null,null,"EL6",494]
[]
[null,null,"PC 3"]
[null,null,{"$f":"OFFSET('Product Classes'!$C$9,MATCH(C29,MODEL_PCS,0),0)","v":"Weatherized Non-Condensing Gas Furnace Fan (WG-NC)"},"kWh / year"]
[null,null,"EL0",1321]
[null,null,"EL1",1140]
[null,null,"EL2",983]
[null,null,"EL3",748]
[null,null,"EL4",645]
[null,null,"EL5",629]
[null,null,"EL6",558]
[]
[null,null,"PC 4"]
[null,null,{"$f":"OFFSET('Product Classes'!$C$9,MATCH(C39,MODEL_PCS,0),0)","v":"Non-Weatherized, Non-Condensing Oil Furnace Fan (NWO-NC)"},"kWh / year"]
[null,null,"EL0",1240]
[null,null,"EL1",1089]
[null,null,"EL2",922]
[null,null,"EL3",724]
[null,null,"EL4",637]
[null,null,"EL5",603]
[null,null,"EL6",541]
[]
[null,null,"PC 5"]
[null,null,{"$f":"OFFSET('Product Classes'!$C$9,MATCH(C49,MODEL_PCS,0),0)","v":"Non-Weatherized Electric Furnace / Modular Blower Fan (NWEF/NWMB)"},"kWh / year"]
[null,null,"EL0",628]
[null,null,"EL1",543]
[null,null,"EL2",453]
[null,null,"EL3",352]
[null,null,"EL4",300]
[null,null,"EL5",294]
[null,null,"EL6",259]
[]
[null,null,"PC 6"]
[null,null,{"$f":"OFFSET('Product Classes'!$C$9,MATCH(C59,MODEL_PCS,0),0)","v":"Mobile Home Non-Weatherized, Non-Condensing Gas Furnace Fan (MH-NWG-NC)"},"kWh / year"]
[null,null,"EL0",587]
[null,null,"EL1",512]
[null,null,"EL2",451]
[null,null,"EL3",369]
[null,null,"EL4",329]
[null,null,"EL5",312]
[null,null,"EL6",283]
[]
[null,null,"PC 7"]
[null,null,{"$f":"OFFSET('Product Classes'!$C$9,MATCH(C69,MODEL_PCS,0),0)","v":"Mobile Home Non-Weatherized, Condensing Gas Furnace Fan (MH-NWG-C)"},"kWh / year"]
[null,null,"EL0",728]
[null,null,"EL1",635]
[null,null,"EL2",565]
[null,null,"EL3",463]
[null,null,"EL4",415]
[null,null,"EL5",397]
[null,null,"EL6",362]
[]
[null,null,"PC 8"]
[null,null,{"$f":"OFFSET('Product Classes'!$C$9,MATCH(C79,MODEL_PCS,0),0)","v":"Mobile Home Electric Furnace / Modular Blower Fan (MH-EF/MB)"},"kWh / year"]
[null,null,"EL0",351]
[null,null,"EL1",303]
[null,null,"EL2",262]
[null,null,"EL3",217]
[null,null,"EL4",183]
[null,null,"EL5",185]
[null,null,"EL6",164]
[]
[null,null,"Source"]
[null,null,"2014 DOE Residential Furnace Fans Final Rule Technical Support Document Life Cycle Cost Spreadsheet - 'Base Case Fan Efficiency' tab"]

{"sheet":"Data by Building Type","index":8,"n_rows":30,"n_cols":8,"rows_kept":30,"cut":false,"hidden":false,"merged":[]}
[]
[null,null,"Data by Building Type"]
[]
[null,null,"NAVIGATION"]
[]
[null,null,"COMMENTS"]
[]
[]
[null,null,{"$f":"MODEL_NAME","v":"Furnace Fans"},"Single Family","Multi-Family","Manufactured Homes","Total Homes","Source"]
[null,null,"Lifetime (years)",{"$f":"ROUND(INDEX([1]!LIFETIMES_TABLE,\nMATCH($C$9,[1]!APPLIANCES,0),\nMATCH(D$9,[1]!LIFETIMES_HOUSING_TYPE,0)),0)","v":21},{"$f":"ROUND(INDEX([1]!LIFETIMES_TABLE,\nMATCH($C$9,[1]!APPLIANCES,0),\nMATCH(E$9,[1]!LIFETIMES_HOUSING_TYPE,0)),0)","v":21},{"$f":"ROUND(INDEX([1]!LIFETIMES_TABLE,\nMATCH($C$9,[1]!APPLIANCES,0),\nMATCH(F$9,[1]!LIFETIMES_HOUSING_TYPE,0)),0)","v":21},{"$f":"ROUND(INDEX([1]!LIFETIMES_TABLE,\nMATCH($C$9,[1]!APPLIANCES,0),\nMATCH(G$9,[1]!LIFETIMES_HOUSING_TYPE,0)),0)","v":21},"DOE Furnace Fans 2014 Final Rule, Technical Support Document Chapter 8: Lifecycle Cost Analysis, Table 8.2.12 Lifetime Parameters for Furnace Fans (page 8-22)"]
[]
[]
[]
[null,null,"Fuel Allocation","Single Family 1","Multi-Family 2","Manufactured Homes 3",null,"Sources"]
[null,null,"Electric (% of Segment)",9.8000000000000004E-2,{"$f":"0.8/(3.1+0.8)","v":0.20512820512820512},0.79800000000000004,null,"1. 2011 Residential Building Stock Assessment: Single-Family Characteristics and Energy Use - Table 54: Distribution of Fuel Choice, Forced Air Furnaces"]
[null,null,"Gas (% of Segment)",0.80400000000000005,{"$f":"3.1/(3.1+0.8)","v":0.79487179487179482},0.13900000000000001,null,"2. 2011 Residential Building Stock Assessment: Multi-Family Characteristics and Energy Use - Table 35. Distribution of Primary Heating Systems by System and Fuel Type"]
[null,null,"Oil (% of Segment)",6.7000000000000004E-2,0,7.0000000000000001E-3,null,"3. 2011 Residential Building Stock Assessment: Manufactured Homes Characteristics and Energy Use - Table 36: Distribution of Fuel Choice, Forced Air Furnaces"]
[null,null,"Propane (% of Segment)",3.2000000000000001E-2,0,5.6000000000000001E-2]
[]
[]
[]
[null,null,"Product Class Mapping","Single Family","Multi-Family","Manufactured Homes"]
[null,null,{"$f":"'Product Classes'!H10&\" - \"&'Product Classes'!C10","v":"PC 1 - Non-Weatherized, Non-Condensing Gas Furnace Fan (NWG-NC)"},"Yes","Yes"]
[null,null,{"$f":"'Product Classes'!H11&\" - \"&'Product Classes'!C11","v":"PC 2 - Non-Weatherized, Condensing Gas Furnace Fan (NWG-C)"},"Yes","Yes"]
[null,null,{"$f":"'Product Classes'!H12&\" - \"&'Product Classes'!C12","v":"PC 3 - Weatherized Non-Condensing Gas Furnace Fan (WG-NC)"},"Yes","Yes"]
[null,null,{"$f":"'Product Classes'!H13&\" - \"&'Product Classes'!C13","v":"PC 4 - Non-Weatherized, Non-Condensing Oil Furnace Fan (NWO-NC)"},"Yes","Yes"]
[null,null,{"$f":"'Product Classes'!H14&\" - \"&'Product Classes'!C14","v":"PC 5 - Non-Weatherized Electric Furnace / Modular Blower Fan (NWEF/NWMB)"},"Yes","Yes"]
[null,null,{"$f":"'Product Classes'!H15&\" - \"&'Product Classes'!C15","v":"PC 6 - Mobile Home Non-Weatherized, Non-Condensing Gas Furnace Fan (MH-NWG-NC)"},null,null,"Yes"]
[null,null,{"$f":"'Product Classes'!H16&\" - \"&'Product Classes'!C16","v":"PC 7 - Mobile Home Non-Weatherized, Condensing Gas Furnace Fan (MH-NWG-C)"},null,null,"Yes"]
[null,null,{"$f":"'Product Classes'!H17&\" - \"&'Product Classes'!C17","v":"PC 8 - Mobile Home Electric Furnace / Modular Blower Fan (MH-EF/MB)"},null,null,"Yes"]

{"sheet":"National Shipments","index":9,"n_rows":175,"n_cols":41,"rows_kept":175,"cut":false,"hidden":false,"merged":[]}
[]
[null,null,"National Shipments"]
[]
[null,null,"NAVIGATION"]
[]
[null,null,"COMMENTS"]
[]
[]
[null,null,"Pre-Case National Shipments","TOTAL",{"$f":"SUM(E20,E30,E40,E50,E60,E70,E80,E90)","v":2.7755764781524213},{"$f":"SUM(F20,F30,F40,F50,F60,F70,F80,F90)","v":2.7693810668688932},3.0657506394404948,3.2977822221024282,3.2750253725019163,3.194010437613394,3.4532578327914059,3.6039591863928986,3.6547118857944865,3.6593597513710252,3.9230824612497894,3.9586802013562896,3.9985855363518796,4.0293848651271178,4.0503990851885652,4.0547191465944987,4.0527234775331857,4.0581551029723935,4.0759949628121506,4.078795701715431,4.0752548774266764,4.1148228145347101,4.1398665931874561,4.1603758653112219,4.191008991392871,4.2078361804567459,4.2215673964917819,4.257432138131124,4.2977700065876414,4.3425229600711743,4.3879867900341596,4.4342260930835522,4.4808180886186815,4.5280011718164745,4.5757680758182877,4.6239947460847688,4.672619360863135]
[]
[]
[null,null,"PC 1",null,2012,2013,2014,2015,2016,2017,2018,2019,2020,2021,2022,2023,2024,2025,2026,2027,2028,2029,2030,2031,2032,2033,2034,2035,2036,2037,2038,2039,2040,2041,2042,2043,2044,2045,2046,2047,2048]
[null,null,{"$f":"OFFSET('Product Classes'!$C$9,MATCH(C12,MODEL_PCS,0),0)","v":"Non-Weatherized, Non-Condensing Gas Furnace Fan (NWG-NC)"},"EL0",0.38327474000469114,0.35207535088645681,0.39331672629926173,0.42103657113580217,0.39273419607129406,0.35658098192727644,0.41641386428115779,0.41675604412447592,0.42024617143609211,0.41256325848601505,0.45335224247432765,0.44976587707736115,0.44668935323911413,0.44201454546425806,0.43527456353472521,0.42557731787467135,0.41481190880539315,0.40528051690527572,0.39767783860617623,0.38738909395760052,0.37581725211336914,0.37114712392788468,0.36436088826040608,0.35681414442188447,0.35083189878378263,0.34263394627773064,0.33397583963412181,0.33048873744098228,0.32789405546073497,0.3255237073470349,0.32321636381746421,0.32097923828576524,0.31876166918895443,0.31657657624951996,0.31443136467458499,0.31229804628248575,0.31019769682501414]
[null,null,null,"EL1",0.5147970673524549,0.45656591822723774,0.4976746190652806,0.52514996156637583,0.47954612963620874,0.42635904512159589,0.51421773631160261,0.51632077775259932,0.52263408547173718,0.51350143472480203,0.57188260601293073,0.56570784548321373,0.55981114396103027,0.55215649744946116,0.5423236905383505,0.52946758345111478,0.51549159699809599,0.50266047113043677,0.49168972219425755,0.47807048598479845,0.4631858453454884,0.45510559215074692,0.44499975250580714,0.43420275208439296,0.42501171987141351,0.41367963670850327,0.40196975574429006,0.3975159906200032,0.39419394673469593,0.39126993440568963,0.38843488012282013,0.38569884882574362,0.38299118402530741,0.38032990959238405,0.37772535801017032,0.37513849665139942,0.37259872509245379]
[null,null,null,"EL2",0,0,0,0,0,0,0,0,0,0,0,0,0,0,0,0,0,0,0,0,0,0,0,0,0,0,0,0,0,0,0,0,0,0,0,0,0]
[null,null,null,"EL3",9.6261249138290622E-2,8.6019249298757303E-2,9.5305697128892475E-2,0.10409462671285834,9.656777529314757E-2,8.6818071989441872E-2,0.12123364966840902,0.13060749094536903,0.13488162500424289,0.13496688394310463,0.15751918272783855,0.15712540775628742,0.15649923148194128,0.15550590983496954,0.15413493105666015,0.15234371808024966,0.15030575606785651,0.14820300798500621,0.14612483360276635,0.14372855691332004,0.14112230056120001,0.13900231979616631,0.13667849074204541,0.13425919206501322,0.13195661978902479,0.12941582782164893,0.12682674565266558,0.12689059031690836,0.12729144886802332,0.12791696657589016,0.12857592994334541,0.12927481085335485,0.12998071956802795,0.1307031186986104,0.13144807163733413,0.13219672219839837,0.13296460145631137]
[null,null,null,"EL4",2.2258907409836787E-2,1.9645469405404143E-2,2.1684807281791681E-2,2.3622319152035453E-2,2.162878087150763E-2,1.9110186658872472E-2,2.7287496253720241E-2,2.9417671658674358E-2,3.0395457423352753E-2,3.0307369348353562E-2,3.5588267995247433E-2,3.5364881286226293E-2,3.5079345902456815E-2,3.4705023157077866E-2,3.4240932428869011E-2,3.3679402515577481E-2,3.3057935471041751E-2,3.2413989156987857E-2,3.1767492625408372E-2,3.1048967790149522E-2,3.028065663421586E-2,2.9607495190887602E-2,2.8889028746998897E-2,2.8147581735284952E-2,2.742765694252081E-2,2.6654212271182632E-2,2.5868415320817701E-2,2.585434694766138E-2,2.5934084561576372E-2,2.6060298134259374E-2,2.6193289241324802E-2,2.6334374640194093E-2,2.647686145488929E-2,2.6622675018756561E-2,2.6773048962334931E-2,2.6924146070525054E-2,2.7079126534569561E-2]
[null,null,null,"EL5",0.10188047089819648,9.1075834681176332E-2,0.10097677618906802,0.11033324911611735,0.10236816238535638,9.2030393738339031E-2,0.12847154738166466,0.13838318293985113,0.14286732960963358,0.14292032396549989,0.16677573499922424,0.16633713094113892,0.16565423502944315,0.16457848657138352,0.16309711344585892,0.16116236249778434,0.15896260175266261,0.15669707702837377,0.15446243354592201,0.15188242687142661,0.14907530999078653,0.14680244694977651,0.14430667199863823,0.14170651794248468,0.13923370477681252,0.13650090456035488,0.13371428883431341,0.13377644071337941,0.13420050194541602,0.13485914631765089,0.13555282899883012,0.13628834128707504,0.13703116766061299,0.13779123793813167,0.13857491473195366,0.13936240958288743,0.14017002065974948]
[null,null,null,"EL6",0,0,0,0,0,0,0,0,0,0,0,0,0,0,0,0,0,0,0,0,0,0,0,0,0,0,0,0,0,0,0,0,0,0,0,0,0]
[null,null,null,"Total",{"$f":"SUM(E13:E19)","v":1.1184724348034698},{"$f":"SUM(F13:F19)","v":1.0053818224990323},1.1089586259642947,1.1842367276831891,1.0928450442575144,0.98089867943552567,1.2076242938965542,1.2314851674209697,1.2510246689450586,1.2342592704677753,1.3851180342095688,1.3743011425442277,1.3637333096139856,1.3489604624771501,1.3290712310044639,1.3022303844193976,1.2726297990950501,1.2452550622060805,1.2217223205745305,1.192119531517295,1.1594813646450599,1.141664978015462,1.1192348322538959,1.0951301882490603,1.0744616001635543,1.0488845276394203,1.0223550451862087,1.0145261060389346,1.0095140375704468,1.0056300527805249,1.0019732921237847,0.99857561389213267,0.99524160189779198,0.9920235174974027,0.98895275801637794,0.98591982078569607,0.98301017056809836]
[]
[null,null,"PC 2",null,2012,2013,2014,2015,2016,2017,2018,2019,2020,2021,2022,2023,2024,2025,2026,2027,2028,2029,2030,2031,2032,2033,2034,2035,2036,2037,2038,2039,2040,2041,2042,2043,2044,2045,2046,2047,2048]
[null,null,{"$f":"OFFSET('Product Classes'!$C$9,MATCH(C22,MODEL_PCS,0),0)","v":"Non-Weatherized, Condensing Gas Furnace Fan (NWG-C)"},"EL0",0.29584009332297095,0.30985193654756038,0.34458585116625218,0.36854378363054979,0.36963157284050235,0.36321719689675402,0.35800577650123949,0.36911074130791099,0.37184925053437984,0.37273396965676953,0.39202895396494264,0.3988378250709364,0.40650695776319579,0.41312750900122536,0.41819065047423476,0.42046000542601036,0.42190435828368689,0.42449717132536624,0.42884938728379446,0.43045361733030063,0.43071472308323749,0.43783010077963014,0.44245255010082268,0.44606833620387087,0.4509802573086763,0.4532966058734707,0.45478419916917279,0.4569423000073789,0.45916194916219727,0.46209181894318968,0.46491024344062565,0.46761686354752963,0.4702004910319339,0.47266994960342834,0.47502061632477877,0.4772511865079575,0.47934155757838165]
[null,null,null,"EL1",0.40486444697843832,0.41386521246683594,0.44778483146870623,0.47098479673803328,0.46733707217656756,0.45616071947161319,0.4502523532053988,0.46773676997229247,0.4728594854614554,0.47560555481588074,0.50371950822536782,0.51239826626865326,0.52187468469107101,0.53028710977294902,0.53714104984612809,0.54119901572639528,0.54442291314978908,0.54872734049535155,0.55470719538378122,0.55794297931220016,0.55982136358401269,0.56838976391836804,0.57444592020709861,0.57946263688156407,0.5856951583536274,0.58931876558943475,0.59207348906385537,0.59543002410480084,0.59877182406904761,0.60287605054130244,0.60681359112824984,0.61058385132733128,0.61417032946847194,0.61758595901250146,0.62082390991114578,0.62388224263849268,0.62673138190852606]
[null,null,null,"EL2",0,0,0,0,0,0,0,0,0,0,0,0,0,0,0,0,0,0,0,0,0,0,0,0,0,0,0,0,0,0,0,0,0,0,0,0,0]
[null,null,null,"EL3",4.7942626403936657E-2,5.1198159042669819E-2,5.6922324173691322E-2,6.2687305793581463E-2,6.5838786110592365E-2,6.8601672175061287E-2,7.3898690443567852E-2,8.5239521513482117E-2,8.8676788127045256E-2,9.1734139527539157E-2,0.10092999667914961,0.10462436158893416,0.10842377687218437,0.11225322529685501,0.11609259319372654,0.11989128869528801,0.12373063126797819,0.12769556269966245,0.13181444982978008,0.13589277304490494,0.1399906897624793,0.14447243737570556,0.14892572490161254,0.15341580982265635,0.15804900931800536,0.1626472582008138,0.16729125567576164,0.17205154099956274,0.17689668114270235,0.18189498394747255,0.18697350909669858,0.19213344839223825,0.19736936151646245,0.20268792259691912,0.20808767785876631,0.21356918505588471,0.2191203740946123]
[null,null,null,"EL4",4.4875764744251027E-2,4.8172086480033328E-2,5.3930198264487458E-2,5.9645134979485759E-2,6.2812134776089185E-2,6.5536925714283101E-2,7.0480936262367275E-2,8.0989814510933289E-2,8.4146331476258343E-2,8.6945808561963142E-2,9.5436703854293051E-2,9.891459037982675E-2,0.10250708479606781,0.10611392808719529,0.10970755167501652,0.11321718803186741,0.11675271361551981,0.12042523029493339,0.124272222989824,0.12803462034535409,0.13179247421834497,0.13603193216809864,0.14020118833262257,0.14438803345788703,0.14873318603950406,0.15299839478128552,0.15729127389324299,0.16170574350455827,0.16620028964917688,0.17085889708881405,0.17559200161257935,0.18040069167099643,0.18527997794809892,0.19023598105007192,0.19526737089925011,0.20037466478388088,0.20554680255268803]
[null,null,null,"EL5",0.22492236032837032,0.24085034890504478,0.26873665355305698,0.29660390546841958,0.31195179143121993,0.3252756403751812,0.35009255502215525,0.40302077134127567,0.4189917589195053,0.43317820603837498,0.47601978032705522,0.49340843165486042,0.51133248012165777,0.52936199969997222,0.54737989237006923,0.5650897991820385,0.58295868459763922,0.60146759639641056,0.62077793617821797,0.63977832084459796,0.65881172787132802,0.67996098394978643,0.70086569292295042,0.7219000155025499,0.74366919426397049,0.76515360968222024,0.78681418676148507,0.80905372211186,0.83169443304153523,0.85510264573380701,0.87888588221798558,0.90304965946506766,0.92756872426871051,0.95247405381254169,0.9777589087324845,1.0034258943852248,1.0294190128108249]
[null,null,null,"EL6",0,0,0,0,0,0,0,0,0,0,0,0,0,0,0,0,0,0,0,0,0,0,0,0,0,0,0,0,0,0,0,0,0,0,0,0,0]
[null,null,null,"Total",{"$f":"SUM(E23:E29)","v":1.0184452917779674},{"$f":"SUM(F23:F29)","v":1.0639377434421442},{"$f":"SUM(G23:G29)","v":1.1719598586261941},{"$f":"SUM(H23:H29)","v":1.2584649266100698},{"$f":"SUM(I23:I29)","v":1.2775713573349714},{"$f":"SUM(J23:J29)","v":1.2787921546328929},{"$f":"SUM(K23:K29)","v":1.3027303114347286},{"$f":"SUM(L23:L29)","v":1.4060976186458944},{"$f":"SUM(M23:M29)","v":1.4365236145186442},{"$f":"SUM(N23:N29)","v":1.4601976786005277},{"$f":"SUM(O23:O29)","v":1.5681349430508082},{"$f":"SUM(P23:P29)","v":1.6081834749632109},{"$f":"SUM(Q23:Q29)","v":1.6506449842441766},{"$f":"SUM(R23:R29)","v":1.6911437718581968},{"$f":"SUM(S23:S29)","v":1.7285117375591752},{"$f":"SUM(T23:T29)","v":1.7598572970615995},{"$f":"SUM(U23:U29)","v":1.7897693009146129},{"$f":"SUM(V23:V29)","v":1.8228129012117242},{"$f":"SUM(W23:W29)","v":1.8604211916653977},{"$f":"SUM(X23:X29)","v":1.8921023108773578},{"$f":"SUM(Y23:Y29)","v":1.9211309785194026},{"$f":"SUM(Z23:Z29)","v":1.966685218191589},{"$f":"SUM(AA23:AA29)","v":2.0068910764651067},{"$f":"SUM(AB23:AB29)","v":2.0452348318685285},{"$f":"SUM(AC23:AC29)","v":2.0871268052837837},{"$f":"SUM(AD23:AD29)","v":2.1234146341272249},{"$f":"SUM(AE23:AE29)","v":2.1582544045635177},{"$f":"SUM(AF23:AF29)","v":2.195183330728161},{"$f":"SUM(AG23:AG29)","v":2.2327251770646592},{"$f":"SUM(AH23:AH29)","v":2.272824396254586},{"$f":"SUM(AI23:AI29)","v":2.313175227496139},{"$f":"SUM(AJ23:AJ29)","v":2.3537845144031633},{"$f":"SUM(AK23:AK29)","v":2.394588884233678},{"$f":"SUM(AL23:AL29)","v":2.4356538660754627},{"$f":"SUM(AM23:AM29)","v":2.4769584837264258},{"$f":"SUM(AN23:AN29)","v":2.5185031733714407},{"$f":"SUM(AO23:AO29)","v":2.5601591289450329}]
[]
[null,null,"PC 3",null,2012,2013,2014,2015,2016,2017,2018,2019,2020,2021,2022,2023,2024,2025,2026,2027,2028,2029,2030,2031,2032,2033,2034,2035,2036,2037,2038,2039,2040,2041,2042,2043,2044,2045,2046,2047,2048]
[null,null,{"$f":"OFFSET('Product Classes'!$C$9,MATCH(C32,MODEL_PCS,0),0)","v":"Weatherized Non-Condensing Gas Furnace Fan (WG-NC)"},"EL0",5.0326264881202509E-2,5.8894101439978676E-2,6.4524526705633509E-2,6.764019578937136E-2,6.7697754784820596E-2,6.6152230692002101E-2,6.307145638798832E-2,6.0113698808904333E-2,5.9257766618572856E-2,5.8221858096129564E-2,5.788331728621797E-2,5.7960082850496933E-2,5.8192924006531734E-2,5.8184325966336263E-2,5.7833872340872006E-2,5.6972963018832132E-2,5.5922549304929611E-2,5.5115072902800287E-2,5.4670357461467985E-2,5.3719042373916989E-2,5.2515684240036213E-2,5.2586825030457543E-2,5.2236909898087332E-2,5.1717952069769861E-2,5.1468879256212359E-2,5.0777897721114011E-2,4.9962566440495904E-2,4.9292820412056217E-2,4.8690172061685466E-2,4.8052028382973809E-2,4.7405017415593852E-2,4.6748615567829672E-2,4.608025891909049E-2,4.540204830009005E-2,4.4713174312979824E-2,4.4013639222941159E-2,4.3302408882711869E-2]
[null,null,null,"EL1",6.8373039088786336E-2,7.8175288834174905E-2,8.2778995871750624E-2,8.4863320181110202E-2,8.3918705429268783E-2,8.1359657039486333E-2,7.7260203086814472E-2,7.3223902722449691E-2,7.2255659777411177E-2,7.1092796228144864E-2,7.0583293042393483E-2,7.0456495395220503E-2,7.046395273331757E-2,7.0224630314407274E-2,6.9643682931756337E-2,6.8561221848102261E-2,6.7288164468869149E-2,6.6242760462269498E-2,6.5541032967453811E-2,6.4345620554323704E-2,6.2901999610287446E-2,6.2682191032463169E-2,6.2052648269228947E-2,6.1258153335787879E-2,6.0723459995353508E-2,5.9758701835543986E-2,5.8671746873329572E-2,5.7721807716007864E-2,5.6833791113972944E-2,5.5917810147656274E-2,5.4988736723138677E-2,5.4045796795971053E-2,5.3085192992110293E-2,5.211004104839273E-2,5.1119143110808347E-2,5.011250371770111E-2,4.9088592796235245E-2]
[null,null,null,"EL2",0,0,0,0,0,0,0,0,0,0,0,0,0,0,0,0,0,0,0,0,0,0,0,0,0,0,0,0,0,0,0,0,0,0,0,0,0]
[null,null,null,"EL3",3.5370123994755857E-2,4.3310217652102315E-2,4.7687996721009311E-2,5.1881607216880614E-2,5.5757968066373689E-2,5.9465301732541394E-2,6.2976066818120111E-2,6.652349986487599E-2,6.7832731325222481E-2,6.9073369125748962E-2,7.0400045000588746E-2,7.1767716427164313E-2,7.3134620154711075E-2,7.443568003543348E-2,7.5656395018677061E-2,7.6772011624165373E-2,7.7845356548859837E-2,7.8961298127836949E-2,8.0145620866992909E-2,8.1236058335381403E-2,8.2279053183676704E-2,8.3576197630811366E-2,8.4802033783487274E-2,8.6017638407811473E-2,8.7324172465788288E-2,8.8553187835783809E-2,8.9781710261048003E-2,9.1060060298948864E-2,9.2377690963709749E-2,9.3801471252969185E-2,9.5246850670108435E-2,9.6712748094424372E-2,9.81866263528514E-2,9.9680112226933876E-2,0.10118971811083638,0.10271632874258096,0.10425391295497195]
[null,null,null,"EL4",9.7374321901589015E-3,1.1960486723963415E-2,1.3252481833796483E-2,1.4475623482997755E-2,1.5579620188066037E-2,1.6619135251125461E-2,1.7583596899614716E-2,1.8561170389307324E-2,1.8912233528287657E-2,1.9242210571403861E-2,1.9607716375152188E-2,1.9991924435239092E-2,2.0379407004289786E-2,2.0745691838124861E-2,2.1084918594404371E-2,2.1386330366987193E-2,2.167330864183644E-2,2.1976275613295262E-2,2.2304562293201713E-2,2.2597837591088289E-2,2.2873520068397581E-2,2.3243296095092389E-2,2.3585360446066624E-2,2.3921379646030468E-2,2.4287387199757177E-2,2.4623316471958631E-2,2.4956445521251626E-2,2.5306042686502276E-2,2.5667277855951718E-2,2.6058653891846549E-2,2.6455893467588469E-2,2.6858703237096201E-2,2.7263684005774759E-2,2.7673987710661641E-2,2.8088668652089772E-2,2.8507966553150989E-2,2.8930246194663695E-2]
[null,null,null,"EL5",4.4383271773956325E-2,5.4343417906077024E-2,5.9868008937651152E-2,6.5155404074964618E-2,7.0031940306635981E-2,7.4688920695941047E-2,7.9090107592708153E-2,8.3539405332780925E-2,8.5177205071904336E-2,8.672841493645915E-2,8.8391537065010406E-2,9.01082251353712E-2,9.1825185539979787E-2,9.3458881341345681E-2,9.4990623646052486E-2,9.6386421071308986E-2,9.7729031816482015E-2,9.9126370692899549E-2,0.10061145127020539,0.10197513143743443,0.10327786761584748,0.10490906078931816,0.10644674341127963,0.10797021014655207,0.10960916564249897,0.11114686647995611,0.11268259429833824,0.11428154159433217,0.11592889976579469,0.11771499552857471,0.11952816987599911,0.12136706792923813,0.12321598684858616,0.12508948773557527,0.12698320198189358,0.12889823718518978,0.1308270393174496]
[null,null,null,"EL6",0,0,0,0,0,0,0,0,0,0,0,0,0,0,0,0,0,0,0,0,0,0,0,0,0,0,0,0,0,0,0,0,0,0,0,0,0]
[null,null,null,"Total",{"$f":"SUM(E33:E39)","v":0.20819013192885993},{"$f":"SUM(F33:F39)","v":0.24668351255629634},{"$f":"SUM(G33:G39)","v":0.26811201006984109},{"$f":"SUM(H33:H39)","v":0.28401615074532455},{"$f":"SUM(I33:I39)","v":0.29298598877516502},{"$f":"SUM(J33:J39)","v":0.29828524541109636},{"$f":"SUM(K33:K39)","v":0.29998143078524581},{"$f":"SUM(L33:L39)","v":0.30196167711831823},{"$f":"SUM(M33:M39)","v":0.30343559632139849},{"$f":"SUM(N33:N39)","v":0.30435864895788639},{"$f":"SUM(O33:O39)","v":0.30686590876936282},{"$f":"SUM(P33:P39)","v":0.31028444424349205},{"$f":"SUM(Q33:Q39)","v":0.31399608943882995},{"$f":"SUM(R33:R39)","v":0.31704920949564752},{"$f":"SUM(S33:S39)","v":0.31920949253176223},{"$f":"SUM(T33:T39)","v":0.32007894792939595},{"$f":"SUM(U33:U39)","v":0.32045841078097703},{"$f":"SUM(V33:V39)","v":0.32142177779910153},{"$f":"SUM(W33:W39)","v":0.3232730248593218},{"$f":"SUM(X33:X39)","v":0.3238736902921448},{"$f":"SUM(Y33:Y39)","v":0.32384812471824542},{"$f":"SUM(Z33:Z39)","v":0.32699757057814266},{"$f":"SUM(AA33:AA39)","v":0.32912369580814982},{"$f":"SUM(AB33:AB39)","v":0.33088533360595174},{"$f":"SUM(AC33:AC39)","v":0.33341306455961028},{"$f":"SUM(AD33:AD39)","v":0.33485997034435655},{"$f":"SUM(AE33:AE39)","v":0.33605506339446334},{"$f":"SUM(AF33:AF39)","v":0.33766227270784738},{"$f":"SUM(AG33:AG39)","v":0.33949783176111459},{"$f":"SUM(AH33:AH39)","v":0.3415449592040205},{"$f":"SUM(AI33:AI39)","v":0.34362466815242854},{"$f":"SUM(AJ33:AJ39)","v":0.34573293162455943},{"$f":"SUM(AK33:AK39)","v":0.34783174911841308},{"$f":"SUM(AL33:AL39)","v":0.34995567702165359},{"$f":"SUM(AM33:AM39)","v":0.35209390616860792},{"$f":"SUM(AN33:AN39)","v":0.35424867542156402},{"$f":"SUM(AO33:AO39)","v":0.35640220014603241}]
[]
[null,null,"PC 4",null,2012,2013,2014,2015,2016,2017,2018,2019,2020,2021,2022,2023,2024,2025,2026,2027,2028,2029,2030,2031,2032,2033,2034,2035,2036,2037,2038,2039,2040,2041,2042,2043,2044,2045,2046,2047,2048]
[null,null,{"$f":"OFFSET('Product Classes'!$C$9,MATCH(C42,MODEL_PCS,0),0)","v":"Non-Weatherized, Non-Condensing Oil Furnace Fan (NWO-NC)"},"EL0",1.2125166674578785E-2,1.1638799283272362E-2,1.2139058350082199E-2,1.240526162542948E-2,1.2340193556457749E-2,1.2117801055806484E-2,1.1729663149567903E-2,1.1393518492828471E-2,1.1163957535099907E-2,1.0914751870833132E-2,1.0744781226073105E-2,1.0610483097902142E-2,1.0479198065938763E-2,1.0302405469250379E-2,1.0069974454193343E-2,9.7505771884538895E-3,9.4007739184979976E-3,9.0688258933449648E-3,8.7732727797381737E-3,8.4096493670330359E-3,8.0198212396649666E-3,7.8097526342522155E-3,7.552983376993591E-3,7.2969063319416197E-3,7.0985817534100918E-3,6.8696985939496313E-3,6.6596713275096329E-3,6.5074836474319324E-3,6.4028439649947309E-3,6.3930875249130076E-3,6.428657611333986E-3,6.5105973868009965E-3,6.6391122945155716E-3,6.8136643610621928E-3,7.0333287748792321E-3,7.294936686155975E-3,7.5972724504257631E-3]
[null,null,null,"EL1",1.6733659420193239E-2,1.5800258439272255E-2,1.6167152658807013E-2,1.6301897284626717E-2,1.6101789768773293E-2,1.5748959912255712E-2,1.5232008017344437E-2,1.4774907352017625E-2,1.4473288090837639E-2,1.4149526682062395E-2,1.3905453828501745E-2,1.3692856675293009E-2,1.3475470964276584E-2,1.3201379038185097E-2,1.2860611676090769E-2,1.2421972816811851E-2,1.1945293536028608E-2,1.1482713285476398E-2,1.1055417647709599E-2,1.0555651460049357E-2,1.0029472378972329E-2,9.6954891715681016E-3,9.3183741218360715E-3,8.9510197160711114E-3,8.6543469117211745E-3,8.3378671790862707E-3,8.055621147400209E-3,7.8497777118798819E-3,7.7121629358096223E-3,7.6984951655979369E-3,7.7500997294770143E-3,7.8684875114058729E-3,8.0539621777853017E-3,8.3057558243893707E-3,8.622542390521246E-3,8.9997627970648565E-3,9.4356698295869103E-3]
[null,null,null,"EL2",0,0,0,0,0,0,0,0,0,0,0,0,0,0,0,0,0,0,0,0,0,0,0,0,0,0,0,0,0,0,0,0,0,0,0,0,0]
[null,null,null,"EL3",0,0,0,0,0,0,0,0,0,0,0,0,0,0,0,0,0,0,0,0,0,0,0,0,0,0,0,0,0,0,0,0,0,0,0,0,0]
[null,null,null,"EL4",0,0,0,0,0,0,0,0,0,0,0,0,0,0,0,0,0,0,0,0,0,0,0,0,0,0,0,0,0,0,0,0,0,0,0,0,0]
[null,null,null,"EL5",7.121173905227993E-3,6.9846849483963499E-3,7.3014227432780078E-3,7.5990933929189148E-3,7.8618916077103137E-3,8.1098524299057333E-3,8.3363773463666635E-3,8.5646996294168019E-3,8.5017174736538512E-3,8.4279503624810678E-3,8.3530485386598408E-3,8.2636497115253192E-3,8.1492970605206699E-3,7.9990631379031792E-3,7.8118731175296713E-3,7.5847973047284334E-3,7.3283500476358432E-3,7.0529082261443533E-3,6.7657948798069707E-3,6.454568650953966E-3,6.1323156904707285E-3,5.8421034476158484E-3,5.5513181544503505E-3,5.2789013633954048E-3,5.039044005182851E-3,4.8238872211611942E-3,4.6508744343444E-3,4.5330953720145927E-3,4.478797887893171E-3,4.5229308541789711E-3,4.6349702700443493E-3,4.8191507923957943E-3,5.0785570305246289E-3,5.4151900439807568E-3,5.8304553590377813E-3,6.3221650038335379E-3,6.8910806380487345E-3]
[null,null,null,"EL6",0,0,0,0,0,0,0,0,0,0,0,0,0,0,0,0,0,0,0,0,0,0,0,0,0,0,0,0,0,0,0,0,0,0,0,0,0]
[null,null,null,"Total",{"$f":"SUM(E43:E49)","v":3.5980000000000019E-2},{"$f":"SUM(F43:F49)","v":3.442374267094097E-2},{"$f":"SUM(G43:G49)","v":3.5607633752167224E-2},{"$f":"SUM(H43:H49)","v":3.6306252302975114E-2},{"$f":"SUM(I43:I49)","v":3.6303874932941356E-2},{"$f":"SUM(J43:J49)","v":3.5976613397967927E-2},{"$f":"SUM(K43:K49)","v":3.5298048513279001E-2},{"$f":"SUM(L43:L49)","v":3.4733125474262896E-2},{"$f":"SUM(M43:M49)","v":3.4138963099591399E-2},{"$f":"SUM(N43:N49)","v":3.3492228915376593E-2},{"$f":"SUM(O43:O49)","v":3.3003283593234692E-2},{"$f":"SUM(P43:P49)","v":3.256698948472047E-2},{"$f":"SUM(Q43:Q49)","v":3.2103966090736021E-2},{"$f":"SUM(R43:R49)","v":3.1502847645338658E-2},{"$f":"SUM(S43:S49)","v":3.0742459247813783E-2},{"$f":"SUM(T43:T49)","v":2.9757347309994173E-2},{"$f":"SUM(U43:U49)","v":2.8674417502162451E-2},{"$f":"SUM(V43:V49)","v":2.7604447404965714E-2},{"$f":"SUM(W43:W49)","v":2.6594485307254744E-2},{"$f":"SUM(X43:X49)","v":2.5419869478036358E-2},{"$f":"SUM(Y43:Y49)","v":2.4181609309108024E-2},{"$f":"SUM(Z43:Z49)","v":2.3347345253436166E-2},{"$f":"SUM(AA43:AA49)","v":2.2422675653280013E-2},{"$f":"SUM(AB43:AB49)","v":2.1526827411408135E-2},{"$f":"SUM(AC43:AC49)","v":2.0791972670314116E-2},{"$f":"SUM(AD43:AD49)","v":2.0031452994197098E-2},{"$f":"SUM(AE43:AE49)","v":1.9366166909254242E-2},{"$f":"SUM(AF43:AF49)","v":1.8890356731326406E-2},{"$f":"SUM(AG43:AG49)","v":1.8593804788697526E-2},{"$f":"SUM(AH43:AH49)","v":1.8614513544689917E-2},{"$f":"SUM(AI43:AI49)","v":1.8813727610855351E-2},{"$f":"SUM(AJ43:AJ49)","v":1.9198235690602666E-2},{"$f":"SUM(AK43:AK49)","v":1.9771631502825501E-2},{"$f":"SUM(AL43:AL49)","v":2.0534610229432322E-2},{"$f":"SUM(AM43:AM49)","v":2.148632652443826E-2},{"$f":"SUM(AN43:AN49)","v":2.2616864487054369E-2},{"$f":"SUM(AO43:AO49)","v":2.3924022918061408E-2}]
[]
[null,null,"PC 5",null,2012,2013,2014,2015,2016,2017,2018,2019,2020,2021,2022,2023,2024,2025,2026,2027,2028,2029,2030,2031,2032,2033,2034,2035,2036,2037,2038,2039,2040,2041,2042,2043,2044,2045,2046,2047,2048]
[null,null,{"$f":"OFFSET('Product Classes'!$C$9,MATCH(C52,MODEL_PCS,0),0)","v":"Non-Weatherized Electric Furnace / Modular Blower Fan (NWEF/NWMB)"},"EL0",8.0962853511641383E-2,9.374922945567081E-2,0.10907415008263342,0.11934633810108369,0.12332302249908005,0.12405072887133176,0.12162101528710857,0.11974620191997248,0.11896600905458947,0.11801467971058055,0.11863570529165816,0.12021213676931744,0.12217220715316954,0.12363885320477275,0.12438664090105629,0.12404398039903702,0.1233011860795494,0.12310651365530813,0.1237232278264627,0.12323828661942367,0.12221091644687482,0.12399108142272669,0.12484626970293061,0.12532093048214382,0.12640556555689325,0.12651945903490766,0.12635458244063499,0.12651526307593253,0.12683730270005628,0.12707532351346626,0.12729900273157668,0.12751269384598563,0.12769737279175511,0.12786620905279425,0.12801852078518053,0.12815255784787871,0.12827067921769919]
[null,null,null,"EL1",0.10579185888358889,0.11856965002049603,0.1334033271734765,0.14323695712127266,0.14687460319572274,0.14729405852219332,0.14459127589557483,0.14238335743144417,0.14191604207319158,0.14126776752992704,0.14213646563716412,0.14392113212945426,0.14606562192241906,0.14771769220130263,0.14866027315405667,0.14853389768158579,0.14801194596645878,0.14801761151979631,0.14880706542673292,0.14851886439350023,0.14769934238038351,0.14960433707484067,0.15059953651169436,0.15121583695682303,0.15243079919053953,0.15269373372140449,0.15267841362568174,0.15297434753415337,0.15342576997400278,0.15381595168640014,0.15418525018413182,0.15454004986683142,0.15485245909487352,0.15514178647007815,0.15540703172204867,0.1556456277305692,0.15586103168823609]
[null,null,null,"EL2",0,0,0,0,0,0,0,0,0,0,0,0,0,0,0,0,0,0,0,0,0,0,0,0,0,0,0,0,0,0,0,0,0,0,0,0,0]
[null,null,null,"EL3",2.0872713948901236E-2,2.3860850887822492E-2,2.701435631328656E-2,2.9953411474784208E-2,3.2511589903674323E-2,3.4879032588604968E-2,3.7023340408723369E-2,3.9249335734116354E-2,4.0176014103029803E-2,4.1074904676392979E-2,4.2138470898999622E-2,4.3307921951946861E-2,4.4527467065792949E-2,4.5708214794782306E-2,4.6827377095426552E-2,4.7845458098932307E-2,4.8835216838143868E-2,4.9898860234888841E-2,5.1067212977633974E-2,5.2131374533987578E-2,5.31533842722988E-2,5.4504967946923874E-2,5.5766194512817904E-2,5.6998252628406548E-2,5.8335259658924006E-2,5.9575840285955008E-2,6.0799638480399362E-2,6.2080519048355168E-2,6.340630135072807E-2,6.4785611063332665E-2,6.618272111636557E-2,6.7601984475286883E-2,6.9025392553926285E-2,7.046540115951784E-2,7.1921467630736285E-2,7.3391911534288312E-2,7.4879212342609108E-2]
[null,null,null,"EL4",0,0,0,0,0,0,0,0,0,0,0,0,0,0,0,0,0,0,0,0,0,0,0,0,0,0,0,0,0,0,0,0,0,0,0,0,0]
[null,null,null,"EL5",4.6636794362885037E-2,5.2892900979302389E-2,5.9327644705774521E-2,6.5413489489364623E-2,7.0867320303627482E-2,7.6017886108015409E-2,8.0811315553293891E-2,8.5771136338625639E-2,8.7907169614461059E-2,8.9998215162143999E-2,9.2373140599492726E-2,9.4930752760622863E-2,9.7576195306355001E-2,0.10015889112492685,0.10264179050286976,0.10495810248611659,0.10723466467507096,0.10964557865400335,0.11224345647686941,0.11467212626940819,0.11703993561381788,0.11997820898491994,0.12276683496517757,0.12551188715143219,0.12845562563735338,0.13124221819372378,0.13400837623398285,0.13688179926791089,0.13984548554038007,0.14294248133601728,0.14608008051078913,0.14926824585348564,0.15246582239669587,0.15570129167545041,0.15897342034881587,0.16227837269089201,0.16562182075714443]
[null,null,null,"EL6",0,0,0,0,0,0,0,0,0,0,0,0,0,0,0,0,0,0,0,0,0,0,0,0,0,0,0,0,0,0,0,0,0,0,0,0,0]
[null,null,null,"Total",{"$f":"SUM(E53:E59)","v":0.25426422070701654},{"$f":"SUM(F53:F59)","v":0.28907263134329175},{"$f":"SUM(G53:G59)","v":0.328819478275171},{"$f":"SUM(H53:H59)","v":0.35795019618650514},{"$f":"SUM(I53:I59)","v":0.37357653590210455},{"$f":"SUM(J53:J59)","v":0.38224170609014546},{"$f":"SUM(K53:K59)","v":0.38404694714470067},{"$f":"SUM(L53:L59)","v":0.38715003142415871},{"$f":"SUM(M53:M59)","v":0.3889652348452719},{"$f":"SUM(N53:N59)","v":0.39035556707904456},{"$f":"SUM(O53:O59)","v":0.39528378242731466},{"$f":"SUM(P53:P59)","v":0.40237194361134143},{"$f":"SUM(Q53:Q59)","v":0.41034149144773657},{"$f":"SUM(R53:R59)","v":0.41722365132578454},{"$f":"SUM(S53:S59)","v":0.42251608165340926},{"$f":"SUM(T53:T59)","v":0.42538143866567174},{"$f":"SUM(U53:U59)","v":0.42738301355922298},{"$f":"SUM(V53:V59)","v":0.43066856406399656},{"$f":"SUM(W53:W59)","v":0.43584096270769901},{"$f":"SUM(X53:X59)","v":0.4385606518163197},{"$f":"SUM(Y53:Y59)","v":0.44010357871337502},{"$f":"SUM(Z53:Z59)","v":0.4480785954294112},{"$f":"SUM(AA53:AA59)","v":0.45397883569262043},{"$f":"SUM(AB53:AB59)","v":0.45904690721880553},{"$f":"SUM(AC53:AC59)","v":0.46562725004371019},{"$f":"SUM(AD53:AD59)","v":0.47003125123599099},{"$f":"SUM(AE53:AE59)","v":0.47384101078069896},{"$f":"SUM(AF53:AF59)","v":0.47845192892635197},{"$f":"SUM(AG53:AG59)","v":0.48351485956516715},{"$f":"SUM(AH53:AH59)","v":0.48861936759921631},{"$f":"SUM(AI53:AI59)","v":0.49374705454286322},{"$f":"SUM(AJ53:AJ59)","v":0.49892297404158958},{"$f":"SUM(AK53:AK59)","v":0.50404104683725071},{"$f":"SUM(AL53:AL59)","v":0.50917468835784063},{"$f":"SUM(AM53:AM59)","v":0.51432044048678138},{"$f":"SUM(AN53:AN59)","v":0.51946846980362826},{"$f":"SUM(AO53:AO59)","v":0.52463274400568882}]
[]
[null,null,"PC 6",null,2012,2013,2014,2015,2016,2017,2018,2019,2020,2021,2022,2023,2024,2025,2026,2027,2028,2029,2030,2031,2032,2033,2034,2035,2036,2037,2038,2039,2040,2041,2042,2043,2044,2045,2046,2047,2048]
[null,null,{"$f":"OFFSET('Product Classes'!$C$9,MATCH(C62,MODEL_PCS,0),0)","v":"Mobile Home Non-Weatherized, Non-Condensing Gas Furnace Fan (MH-NWG-NC)"},"EL0",1.9548389963492899E-2,1.8113250354817985E-2,2.1429891053053682E-2,2.5045607027520289E-2,2.8692731829337542E-2,3.0982476935430429E-2,3.1706762017919186E-2,3.9032045054956395E-2,3.8619342703242625E-2,3.7891892136240515E-2,3.7435729164759977E-2,3.6716774304913151E-2,3.6066656754005236E-2,3.5258536549063177E-2,3.4618918220651211E-2,3.400506321654001E-2,3.3296788596957852E-2,3.2616268509600789E-2,3.2112377846969867E-2,3.1736575553570519E-2,3.1550483796489823E-2,3.1635296741480919E-2,3.1516782041176847E-2,3.1432290909846096E-2,3.1454971846423513E-2,3.1475950798776603E-2,3.1510594470875716E-2,3.1537988046055142E-2,3.1591061262321168E-2,3.1695239297561871E-2,3.1804790976733548E-2,3.1919310807044833E-2,3.2034519170929601E-2,3.2151955199760655E-2,3.2271093027868937E-2,3.2391953022247719E-2,3.2512701313003357E-2]
[null,null,null,"EL1",2.6548678519356786E-2,2.3461028116615771E-2,2.6883819021157458E-2,3.0543065216317916E-2,3.4166888343472084E-2,3.6345320616709517E-2,3.688867693375758E-2,4.7384595252299676E-2,4.6773138418893113E-2,4.5844922615015639E-2,4.5201780442974314E-2,4.4299210869957278E-2,4.347942870825787E-2,4.2511379661628185E-2,4.1732015930079691E-2,4.0995019006945681E-2,4.0178088481509056E-2,3.9405987613603755E-2,3.8829723976752724E-2,3.8400743966370283E-2,3.8177408689657528E-2,3.8240003325603324E-2,3.8105178129196338E-2,3.8021389015292506E-2,3.805796335247584E-2,3.8099282217514505E-2,3.8160426770315926E-2,3.8220052453678072E-2,3.8311128274041678E-2,3.8467768173758431E-2,3.8632242357917311E-2,3.8803938337747486E-2,3.8976654302785706E-2,3.9152589549422051E-2,3.9330965600556281E-2,3.9511795180110547E-2,3.9692417482641615E-2]
[null,null,null,"EL2",0,0,0,0,0,0,0,0,0,0,0,0,0,0,0,0,0,0,0,0,0,0,0,0,0,0,0,0,0,0,0,0,0,0,0,0,0]
[null,null,null,"EL3",0,0,0,0,0,0,0,0,0,0,0,0,0,0,0,0,0,0,0,0,0,0,0,0,0,0,0,0,0,0,0,0,0,0,0,0,0]
[null,null,null,"EL4",0,0,0,0,0,0,0,0,0,0,0,0,0,0,0,0,0,0,0,0,0,0,0,0,0,0,0,0,0,0,0,0,0,0,0,0,0]
[null,null,null,"EL5",0,0,0,0,0,0,0,0,0,0,0,0,0,0,0,0,0,0,0,0,0,0,0,0,0,0,0,0,0,0,0,0,0,0,0,0,0]
[null,null,null,"EL6",0,0,0,0,0,0,0,0,0,0,0,0,0,0,0,0,0,0,0,0,0,0,0,0,0,0,0,0,0,0,0,0,0,0,0,0,0]
[null,null,null,"Total",{"$f":"SUM(E63:E69)","v":4.6097068482849682E-2},{"$f":"SUM(F63:F69)","v":4.1574278471433759E-2},{"$f":"SUM(G63:G69)","v":4.831371007421114E-2},{"$f":"SUM(H63:H69)","v":5.5588672243838205E-2},{"$f":"SUM(I63:I69)","v":6.2859620172809633E-2},{"$f":"SUM(J63:J69)","v":6.732779755213994E-2},{"$f":"SUM(K63:K69)","v":6.8595438951676774E-2},{"$f":"SUM(L63:L69)","v":8.6416640307256071E-2},{"$f":"SUM(M63:M69)","v":8.5392481122135738E-2},{"$f":"SUM(N63:N69)","v":8.3736814751256161E-2},{"$f":"SUM(O63:O69)","v":8.2637509607734291E-2},{"$f":"SUM(P63:P69)","v":8.1015985174870436E-2},{"$f":"SUM(Q63:Q69)","v":7.9546085462263105E-2},{"$f":"SUM(R63:R69)","v":7.7769916210691362E-2},{"$f":"SUM(S63:S69)","v":7.6350934150730909E-2},{"$f":"SUM(T63:T69)","v":7.5000082223485698E-2},{"$f":"SUM(U63:U69)","v":7.3474877078466908E-2},{"$f":"SUM(V63:V69)","v":7.2022256123204537E-2},{"$f":"SUM(W63:W69)","v":7.0942101823722598E-2},{"$f":"SUM(X63:X69)","v":7.0137319519940802E-2},{"$f":"SUM(Y63:Y69)","v":6.9727892486147358E-2},{"$f":"SUM(Z63:Z69)","v":6.9875300067084242E-2},{"$f":"SUM(AA63:AA69)","v":6.9621960170373184E-2},{"$f":"SUM(AB63:AB69)","v":6.9453679925138595E-2},{"$f":"SUM(AC63:AC69)","v":6.9512935198899353E-2},{"$f":"SUM(AD63:AD69)","v":6.9575233016291108E-2},{"$f":"SUM(AE63:AE69)","v":6.967102124119165E-2},{"$f":"SUM(AF63:AF69)","v":6.975804049973322E-2},{"$f":"SUM(AG63:AG69)","v":6.9902189536362846E-2},{"$f":"SUM(AH63:AH69)","v":7.0163007471320302E-2},{"$f":"SUM(AI63:AI69)","v":7.0437033334650859E-2},{"$f":"SUM(AJ63:AJ69)","v":7.0723249144792319E-2},{"$f":"SUM(AK63:AK69)","v":7.10111734737153E-2},{"$f":"SUM(AL63:AL69)","v":7.1304544749182713E-2},{"$f":"SUM(AM63:AM69)","v":7.1602058628425225E-2},{"$f":"SUM(AN63:AN69)","v":7.1903748202358259E-2},{"$f":"SUM(AO63:AO69)","v":7.2205118795644979E-2}]
[]
[null,null,"PC 7",null,2012,2013,2014,2015,2016,2017,2018,2019,2020,2021,2022,2023,2024,2025,2026,2027,2028,2029,2030,2031,2032,2033,2034,2035,2036,2037,2038,2039,2040,2041,2042,2043,2044,2045,2046,2047,2048]
[null,null,{"$f":"OFFSET('Product Classes'!$C$9,MATCH(C72,MODEL_PCS,0),0)","v":"Mobile Home Non-Weatherized, Condensing Gas Furnace Fan (MH-NWG-C)"},"EL0",2.2338079040809299E-3,3.7916406088379447E-3,4.2309296659227072E-3,4.7226490783502202E-3,5.2285420849181499E-3,5.5527452699835958E-3,5.6639655151415058E-3,5.6745946675677492E-3,5.7096386618559142E-3,5.7024975302624138E-3,5.7329960887377279E-3,5.7274512317691201E-3,5.7304707014154133E-3,5.7106339004365887E-3,5.7116079398721797E-3,5.7136630559715892E-3,5.7000875613662716E-3,5.6874312896208418E-3,5.695888040679423E-3,5.7180396465798655E-3,5.7631542415067473E-3,5.8423853118162563E-3,5.8907941944555042E-3,5.93853751904975E-3,5.9967649024185929E-3,6.0519663854386096E-3,6.1061035238288847E-3,6.1562210529135051E-3,6.2066440911786444E-3,6.2582789734534679E-3,6.3080387354632495E-3,6.3558290460498422E-3,6.4015082082909472E-3,6.4452287658131055E-3,6.4868723739035889E-3,6.5264890516465958E-3,6.563747807969764E-3]
[null,null,null,"EL1",2.989676132227885E-3,5.1913701281717396E-3,5.6226341749878181E-3,6.1028476791482886E-3,6.5941840093470365E-3,6.9013448342246896E-3,6.9940346790568582E-3,6.9854032454888413E-3,7.0364596363712726E-3,7.0466635327288019E-3,7.0959222522567113E-3,7.1105660480880548E-3,7.1352645356752157E-3,7.138521191810689E-3,7.1640245255773964E-3,7.1918659610393319E-3,7.2052418376469087E-3,7.2206140163636476E-3,7.2579923782130976E-3,7.309751355912001E-3,7.3849190720845477E-3,7.4943670356604243E-3,7.5729697832065939E-3,7.6508421579363634E-3,7.7389283067659069E-3,7.8236076203106585E-3,7.9067003891455257E-3,7.9851778409184126E-3,8.0632169828665744E-3,8.1418544739848588E-3,8.217708701664498E-3,8.2906374255760761E-3,8.3604305417303397E-3,8.4273072093161479E-3,8.4910932381345242E-3,8.5518603121243399E-3,8.609126288313302E-3]
[null,null,null,"EL2",0,0,0,0,0,0,0,0,0,0,0,0,0,0,0,0,0,0,0,0,0,0,0,0,0,0,0,0,0,0,0,0,0,0,0,0,0]
[null,null,null,"EL3",1.6643984690940612E-3,3.2233798173868077E-3,3.5703596805638613E-3,3.9431418159555139E-3,4.3360443534499653E-3,4.7085379162408424E-3,5.0499881263408883E-3,5.3824525506035231E-3,5.5330670221421917E-3,5.6810459198915276E-3,5.846242771319371E-3,6.0110614480344141E-3,6.1869914354816492E-3,6.3662682273656493E-3,6.5603764328141176E-3,6.7641238256152814E-3,6.9732161298566237E-3,7.1919568003104822E-3,7.425445080369378E-3,7.6714018807204796E-3,7.9318562264855206E-3,8.2092308724868845E-3,8.4851701714397012E-3,8.7679361717703519E-3,9.0600178198360914E-3,9.3572907883856266E-3,9.6598206781647218E-3,9.9664951654909895E-3,1.027795891142457E-2,1.0595369234110813E-2,1.0916284568623183E-2,1.1240435642729975E-2,1.1567414329785659E-2,1.1897565015028153E-2,1.2230532000774515E-2,1.2566398747284917E-2,1.2904195378819002E-2]
[null,null,null,"EL4",0,0,0,0,0,0,0,0,0,0,0,0,0,0,0,0,0,0,0,0,0,0,0,0,0,0,0,0,0,0,0,0,0,0,0,0,0]
[null,null,null,"EL5",3.1759862835470707E-4,5.2743356475053833E-4,5.8479936214095101E-4,6.4617004957114412E-4,7.1058632753606731E-4,7.71685300435687E-4,8.2783931716645534E-4,8.8255085650274781E-4,9.074285267253201E-4,9.3183726095758923E-4,9.5889060327998077E-4,9.8583473515100896E-4,1.0144818121225771E-3,1.0436233537880299E-3,1.0750682871252574E-3,1.1079940116466391E-3,1.1417423153770717E-3,1.1769902621351434E-3,1.2145394794747188E-3,1.2540262395716677E-3,1.2957641336378909E-3,1.3401253198550549E-3,1.3842288231681957E-3,1.4293803933881201E-3,1.4759717100455579E-3,1.5233524445858182E-3,1.5715409596986996E-3,1.6203619652645843E-3,1.6699102006326662E-3,1.7205717405270394E-3,1.7717736871176483E-3,1.8234763206116254E-3,1.8756125949473928E-3,1.928253248525669E-3,1.9813377294092402E-3,2.0348852963073876E-3,2.088718618988942E-3]
[null,null,null,"EL6",0,0,0,0,0,0,0,0,0,0,0,0,0,0,0,0,0,0,0,0,0,0,0,0,0,0,0,0,0,0,0,0,0,0,0,0,0]
[null,null,null,"Total",{"$f":"SUM(E73:E79)","v":7.2054811337575837E-3},{"$f":"SUM(F73:F79)","v":1.273382411914703E-2},{"$f":"SUM(G73:G79)","v":1.4008722883615337E-2},{"$f":"SUM(H73:H79)","v":1.5414808623025167E-2},{"$f":"SUM(I73:I79)","v":1.6869356775251219E-2},{"$f":"SUM(J73:J79)","v":1.7934313320884816E-2},{"$f":"SUM(K73:K79)","v":1.8535827637705709E-2},{"$f":"SUM(L73:L79)","v":1.8925001320162862E-2},{"$f":"SUM(M73:M79)","v":1.9186593847094698E-2},{"$f":"SUM(N73:N79)","v":1.9362044243840332E-2},{"$f":"SUM(O73:O79)","v":1.9634051715593792E-2},{"$f":"SUM(P73:P79)","v":1.9834913463042596E-2},{"$f":"SUM(Q73:Q79)","v":2.0067208484694857E-2},{"$f":"SUM(R73:R79)","v":2.0259046673400956E-2},{"$f":"SUM(S73:S79)","v":2.051107718538895E-2},{"$f":"SUM(T73:T79)","v":2.077764685427284E-2},{"$f":"SUM(U73:U79)","v":2.1020287844246876E-2},{"$f":"SUM(V73:V79)","v":2.1276992368430114E-2},{"$f":"SUM(W73:W79)","v":2.1593864978736617E-2},{"$f":"SUM(X73:X79)","v":2.1953219122784012E-2},{"$f":"SUM(Y73:Y79)","v":2.2375693673714704E-2},{"$f":"SUM(Z73:Z79)","v":2.2886108539818623E-2},{"$f":"SUM(AA73:AA79)","v":2.3333162972269991E-2},{"$f":"SUM(AB73:AB79)","v":2.3786696242144585E-2},{"$f":"SUM(AC73:AC79)","v":2.4271682739066148E-2},{"$f":"SUM(AD73:AD79)","v":2.4756217238720714E-2},{"$f":"SUM(AE73:AE79)","v":2.5244165550837833E-2},{"$f":"SUM(AF73:AF79)","v":2.572825602458749E-2},{"$f":"SUM(AG73:AG79)","v":2.6217730186102454E-2},{"$f":"SUM(AH73:AH79)","v":2.6716074422076179E-2},{"$f":"SUM(AI73:AI79)","v":2.7213805692868579E-2},{"$f":"SUM(AJ73:AJ79)","v":2.7710378434967521E-2},{"$f":"SUM(AK73:AK79)","v":2.8204965674754338E-2},{"$f":"SUM(AL73:AL79)","v":2.8698354238683076E-2},{"$f":"SUM(AM73:AM79)","v":2.918983534222187E-2},{"$f":"SUM(AN73:AN79)","v":2.9679633407363241E-2},{"$f":"SUM(AO73:AO79)","v":3.0165788094091012E-2}]
[]
[null,null,"PC 8",null,2012,2013,2014,2015,2016,2017,2018,2019,2020,2021,2022,2023,2024,2025,2026,2027,2028,2029,2030,2031,2032,2033,2034,2035,2036,2037,2038,2039,2040,2041,2042,2043,2044,2045,2046,2047,2048]
[null,null,{"$f":"OFFSET('Product Classes'!$C$9,MATCH(C82,MODEL_PCS,0),0)","v":"Mobile Home Electric Furnace / Modular Blower Fan (MH-EF/MB)"},"EL0",2.3532539750770971E-2,2.2674996261772003E-2,2.822877912839012E-2,3.4415976107159754E-2,4.0774532546694879E-2,4.4721619881102313E-2,4.5865671813452649E-2,4.5702457792690783E-2,4.5357758799875005E-2,4.4456573617564173E-2,4.4057876563873825E-2,4.3186476483258136E-2,4.2420259448978016E-2,4.1335160679515454E-2,4.0502027803746767E-2,3.9695782007838867E-2,3.8664881396913098E-2,3.764658736418347E-2,3.6901280677501036E-2,3.6335618286969663E-2,3.6059025888721279E-2,3.6218288049463865E-2,3.5993280932170468E-2,3.5775062907250327E-2,3.5718853594356226E-2,3.5651530670315026E-2,3.5586475250905004E-2,3.5498593919636917E-2,3.5456193876884305E-2,3.5369484255121278E-2,3.5278311661663619E-2,3.5182738791526245E-2,3.5081515814947187E-2,3.4975637453912384E-2,3.4865180858766526E-2,3.4750522650547559E-2,3.4631174960881923E-2]
[null,null,null,"EL1",3.2210531245977385E-2,2.8326444911174632E-2,3.3680959406342255E-2,3.9602629405849056E-2,4.5639921764811825E-2,4.9234274617951122E-2,5.0020155362572913E-2,4.9507484466114138E-2,4.9004982086137142E-2,4.7957304672904093E-2,4.7421602407243885E-2,4.6425265473248829E-2,4.5545763421477939E-2,4.436017659026345E-2,4.343844170709741E-2,4.2555201899846649E-2,4.1458993313937341E-2,4.0385545581672261E-2,3.9593095146742918E-2,3.8987882918389317E-2,3.8675678220181683E-2,3.8800877117223048E-2,3.8546109697813719E-2,3.8303501475567978E-2,3.8225235741451556E-2,3.8135985248139034E-2,3.8048821033667614E-2,3.7938516210374924E-2,3.7872884909681631E-2,3.7773639881589723E-2,3.7667652679011954E-2,3.7555017070401854E-2,3.7433855289644387E-2,3.7305662101620632E-2,3.7170554014927588E-2,3.7029097704085114E-2,3.6880561244519688E-2]
[null,null,null,"EL2",0,0,0,0,0,0,0,0,0,0,0,0,0,0,0,0,0,0,0,0,0,0,0,0,0,0,0,0,0,0,0,0,0,0,0,0,0]
[null,null,null,"EL3",9.6222562059528945E-3,7.635444822883951E-3,8.7650154920024884E-3,9.9808532579329125E-3,1.1234196044283714E-2,1.2221226873813669E-2,1.2864845330404655E-2,1.3329631884268249E-2,1.32437620487514E-2,1.3089799290503511E-2,1.301557475394903E-2,1.2887185356718126E-2,1.278844084405917E-2,1.2660268159861513E-2,1.2587471863008147E-2,1.253773035473006E-2,1.2474206092389762E-2,1.2431199128890841E-2,1.2446920085808012E-2,1.2508264583931311E-2,1.2626364476891109E-2,1.2821771468513921E-2,1.296744239724433E-2,1.3131382144601328E-2,1.3332875496990018E-2,1.3537061496765047E-2,1.3745665715679712E-2,1.3953887304143495E-2,1.4172352248006224E-2,1.4424592979186799E-2,1.4675713392246995E-2,1.4925545000810688E-2,1.5171295521794427E-2,1.5414469175260228E-2,1.5654829302701463E-2,1.5892778738835021E-2,1.6126847155886685E-2]
[null,null,null,"EL4",0,0,0,0,0,0,0,0,0,0,0,0,0,0,0,0,0,0,0,0,0,0,0,0,0,0,0,0,0,0,0,0,0,0,0,0,0]
[null,null,null,"EL5",2.1556522115798893E-2,1.6936625770775735E-2,1.9295845768264923E-2,2.1805028936559192E-2,2.4364943995367844E-2,2.6376806399873769E-2,2.7694861921084536E-2,2.8650350538802372E-2,2.8438230160528367E-2,2.8093820774346336E-2,2.7909894151105539E-2,2.7622380558159108E-2,2.7397937854941316E-2,2.7120354011267906E-2,2.695813048196857E-2,2.6847287868266758E-2,2.6715289955207278E-2,2.6629769720143821E-2,2.6665714985435681E-2,2.6797343302262105E-2,2.7044566775828855E-2,2.7446761824565201E-2,2.7753521144530932E-2,2.8101454262765339E-2,2.8526715901135431E-2,2.8958316445325941E-2,2.9399556865356759E-2,2.9840849040026349E-2,3.0302945080518891E-2,3.0842871678843302E-2,3.1380303347646889E-2,3.1914894989005724E-2,3.2440369253867375E-2,3.2960144916022616E-2,3.3473702748614428E-2,3.3981961512195603E-2,3.4481604029197373E-2]
[null,null,null,"EL6",0,0,0,0,0,0,0,0,0,0,0,0,0,0,0,0,0,0,0,0,0,0,0,0,0,0,0,0,0,0,0,0,0,0,0,0,0]
[null,null,null,"Total",{"$f":"SUM(E83:E89)","v":8.6921849318500138E-2},{"$f":"SUM(F83:F89)","v":7.557351176660633E-2},{"$f":"SUM(G83:G89)","v":8.99705997949998E-2},{"$f":"SUM(H83:H89)","v":0.10580448770750092},{"$f":"SUM(I83:I89)","v":0.12201359435115827},{"$f":"SUM(J83:J89)","v":0.13255392777274089},{"$f":"SUM(K83:K89)","v":0.13644553442751475},{"$f":"SUM(L83:L89)","v":0.13718992468187555},{"$f":"SUM(M83:M89)","v":0.13604473309529191},{"$f":"SUM(N83:N89)","v":0.13359749835531812},{"$f":"SUM(O83:O89)","v":0.1324049478761723},{"$f":"SUM(P83:P89)","v":0.13012130787138421},{"$f":"SUM(Q83:Q89)","v":0.12815240156945645},{"$f":"SUM(R83:R89)","v":0.12547595944090834},{"$f":"SUM(S83:S89)","v":0.12348607185582089},{"$f":"SUM(T83:T89)","v":0.12163600213068233},{"$f":"SUM(U83:U89)","v":0.11931337075844749},{"$f":"SUM(V83:V89)","v":0.11709310179489039},{"$f":"SUM(W83:W89)","v":0.11560701089548765},{"$f":"SUM(X83:X89)","v":0.1146291090915524},{"$f":"SUM(Y83:Y89)","v":0.11440563536162292},{"$f":"SUM(Z83:Z89)","v":0.11528769845976602},{"$f":"SUM(AA83:AA89)","v":0.11526035417175945},{"$f":"SUM(AB83:AB89)","v":0.11531140079018497},{"$f":"SUM(AC83:AC89)","v":0.11580368073393324},{"$f":"SUM(AD83:AD89)","v":0.11628289386054505},{"$f":"SUM(AE83:AE89)","v":0.11678051886560908},{"$f":"SUM(AF83:AF89)","v":0.11723184647418168},{"$f":"SUM(AG83:AG89)","v":0.11780437611509106},{"$f":"SUM(AH83:AH89)","v":0.11841058879474112},{"$f":"SUM(AI83:AI89)","v":0.11900198108056945},{"$f":"SUM(AJ83:AJ89)","v":0.11957819585174451},{"$f":"SUM(AK83:AK89)","v":0.12012703588025339},{"$f":"SUM(AL83:AL89)","v":0.12065591364681585},{"$f":"SUM(AM83:AM89)","v":0.12116426692500999},{"$f":"SUM(AN83:AN89)","v":0.12165436060566329},{"$f":"SUM(AO83:AO89)","v":0.12212018739048566}]
[]
[]
[]
[null,null,"Post-Case National Shipments","TOTAL",{"$f":"SUM(E105,E115,E125,E135,E145,E155,E165,E175)","v":2.7755764781524213},{"$f":"SUM(F105,F115,F125,F135,F145,F155,F165,F175)","v":2.7693810668688932},3.0657506394404948,3.2977822221024273,3.2750253725019163,3.194010437613394,3.453257832791405,3.6095638083004675,3.6590706647035534,3.6626528288723201,3.9257767588178889,3.9610887311636174,4.001069574262532,4.0261058499150604,4.0482259906628624,4.0534664608909594,4.0518838273779378,4.0575839281365322,4.0753010619241135,4.0783111805578907,4.0748598933001867,4.1144353768830682,4.1397736658256745,4.1604725799341189,4.1908624027992669,4.2076421113268898,4.2214277627133105,4.2574496696935364,4.2977052367603958,4.3423162200676391,4.388004684135784,4.4342453049634027,4.4808384473616707,4.528019902037105,4.5757855693686675,4.624011134269888,4.6726318203249626]
[]
[]
[null,null,"PC 1",null,2012,2013,2014,2015,2016,2017,2018,2019,2020,2021,2022,2023,2024,2025,2026,2027,2028,2029,2030,2031,2032,2033,2034,2035,2036,2037,2038,2039,2040,2041,2042,2043,2044,2045,2046,2047,2048]
[null,null,{"$f":"OFFSET('Product Classes'!$C$9,MATCH(C97,MODEL_PCS,0),0)","v":"Non-Weatherized, Non-Condensing Gas Furnace Fan (NWG-NC)"},"EL0",0.38327474000469114,0.35207535088645681,0.39331672629926173,0.42103657113580217,0.39273419607129406,0.35658098192727644,0.41641386428115779,0,0,0,0,0,0,0,0,0,0,0,0,0,0,0,0,0,0,0,0,0,0,0,0,0,0,0,0,0,0]
[null,null,null,"EL1",0.5147970673524549,0.45656591822723774,0.4976746190652806,0.52514996156637583,0.47954612963620874,0.42635904512159589,0.51421773631160261,0,0,0,0,0,0,0,0,0,0,0,0,0,0,0,0,0,0,0,0,0,0,0,0,0,0,0,0,0,0]
[null,null,null,"EL2",0,0,0,0,0,0,0,0,0,0,0,0,0,0,0,0,0,0,0,0,0,0,0,0,0,0,0,0,0,0,0,0,0,0,0,0,0]
[null,null,null,"EL3",9.6261249138290622E-2,8.6019249298757303E-2,9.5305697128892475E-2,0.10409462671285834,9.656777529314757E-2,8.6818071989441872E-2,0.12123364966840902,0,0,0,0,0,0,0,0,0,0,0,0,0,0,0,0,0,0,0,0,0,0,0,0,0,0,0,0,0,0]
[null,null,null,"EL4",2.2258907409836787E-2,1.9645469405404143E-2,2.1684807281791681E-2,2.3622319152035453E-2,2.162878087150763E-2,1.9110186658872472E-2,2.7287496253720241E-2,1.099570766822981,1.1131155741588299,1.0951590223175418,1.2215164430213459,1.2106972706007573,1.2007652345799766,1.1804882284050997,1.1634240687390871,1.1394983472709705,1.112572234948396,1.0878819310994898,1.0666017210479137,1.0397812421912382,1.0100754121785254,0.99460126061997656,0.97488387215242656,0.95348828332372615,0.93516768467862343,0.91229971921623998,0.888586468414991,0.8807890715119473,0.87532403294551953,0.8707182263622737,0.86646657644395986,0.86233450189706584,0.85825779680467751,0.85427564730806871,0.85041715778754989,0.8465924132203827,0.84286846950840566]
[null,null,null,"EL5",0.10188047089819648,9.1075834681176332E-2,0.10097677618906802,0.11033324911611735,0.10236816238535638,9.2030393738339031E-2,0.12847154738166466,0.1394800877314791,0.14371819254997448,0.14358444943402821,0.16733425491492165,0.16682344301105143,0.1661370600745537,0.16387272992896179,0.16262969782061604,0.16087068172322147,0.15875645548347325,0.15656836221453921,0.15433647905803549,0.15179475837795103,0.14901140464152829,0.14675156002118997,0.14429857894203574,0.14172028309639695,0.13922224410654019,0.13648424967768782,0.13370330576562078,0.133784819472619,0.13420275625861769,0.13484772081593735,0.13556292898587236,0.13629878716498814,0.13704174512561837,0.13780101706997638,0.13858386524477087,0.13937045456294783,0.14017659165639898]
[null,null,null,"EL6",0,0,0,0,0,0,0,0,0,0,0,0,0,0,0,0,0,0,0,0,0,0,0,0,0,0,0,0,0,0,0,0,0,0,0,0,0]
[null,null,null,"Total",{"$f":"SUM(E98:E104)","v":1.1184724348034698},{"$f":"SUM(F98:F104)","v":1.0053818224990323},{"$f":"SUM(G98:G104)","v":1.1089586259642947},{"$f":"SUM(H98:H104)","v":1.1842367276831891},{"$f":"SUM(I98:I104)","v":1.0928450442575144},{"$f":"SUM(J98:J104)","v":0.98089867943552567},{"$f":"SUM(K98:K104)","v":1.2076242938965542},{"$f":"SUM(L98:L104)","v":1.2390508545544601},{"$f":"SUM(M98:M104)","v":1.2568337667088043},{"$f":"SUM(N98:N104)","v":1.23874347175157},{"$f":"SUM(O98:O104)","v":1.3888506979362676},{"$f":"SUM(P98:P104)","v":1.3775207136118086},{"$f":"SUM(Q98:Q104)","v":1.3669022946545304},{"$f":"SUM(R98:R104)","v":1.3443609583340614},{"$f":"SUM(S98:S104)","v":1.3260537665597032},{"$f":"SUM(T98:T104)","v":1.300369028994192},{"$f":"SUM(U98:U104)","v":1.2713286904318692},{"$f":"SUM(V98:V104)","v":1.2444502933140291},{"$f":"SUM(W98:W104)","v":1.2209382001059492},{"$f":"SUM(X98:X104)","v":1.1915760005691893},{"$f":"SUM(Y98:Y104)","v":1.1590868168200537},{"$f":"SUM(Z98:Z104)","v":1.1413528206411665},{"$f":"SUM(AA98:AA104)","v":1.1191824510944623},{"$f":"SUM(AB98:AB104)","v":1.0952085664201232},{"$f":"SUM(AC98:AC104)","v":1.0743899287851637},{"$f":"SUM(AD98:AD104)","v":1.0487839688939278},{"$f":"SUM(AE98:AE104)","v":1.0222897741806118},{"$f":"SUM(AF98:AF104)","v":1.0145738909845663},{"$f":"SUM(AG98:AG104)","v":1.0095267892041373},{"$f":"SUM(AH98:AH104)","v":1.005565947178211},{"$f":"SUM(AI98:AI104)","v":1.0020295054298323},{"$f":"SUM(AJ98:AJ104)","v":0.99863328906205395},{"$f":"SUM(AK98:AK104)","v":0.99529954193029591},{"$f":"SUM(AL98:AL104)","v":0.99207666437804509},{"$f":"SUM(AM98:AM104)","v":0.98900102303232074},{"$f":"SUM(AN98:AN104)","v":0.98596286778333053},{"$f":"SUM(AO98:AO104)","v":0.98304506116480461}]
[]
[null,null,"PC 2",null,2012,2013,2014,2015,2016,2017,2018,2019,2020,2021,2022,2023,2024,2025,2026,2027,2028,2029,2030,2031,2032,2033,2034,2035,2036,2037,2038,2039,2040,2041,2042,2043,2044,2045,2046,2047,2048]
[null,null,{"$f":"OFFSET('Product Classes'!$C$9,MATCH(C107,MODEL_PCS,0),0)","v":"Non-Weatherized, Condensing Gas Furnace Fan (NWG-C)"},"EL0",0.29584009332297095,0.30985193654756038,0.34458585116625218,0.36854378363054957,0.36963157284050235,0.36321719689675402,0.35800577650123933,0,0,0,0,0,0,0,0,0,0,0,0,0,0,0,0,0,0,0,0,0,0,0,0,0,0,0,0,0,0]
[null,null,null,"EL1",0.40486444697843832,0.41386521246683594,0.44778483146870623,0.47098479673803295,0.46733707217656756,0.45616071947161319,0.45025235320539847,0,0,0,0,0,0,0,0,0,0,0,0,0,0,0,0,0,0,0,0,0,0,0,0,0,0,0,0,0,0]
[null,null,null,"EL2",0,0,0,0,0,0,0,0,0,0,0,0,0,0,0,0,0,0,0,0,0,0,0,0,0,0,0,0,0,0,0,0,0,0,0,0,0]
[null,null,null,"EL3",4.7942626403936657E-2,5.1198159042669819E-2,5.6922324173691322E-2,6.2687305793581408E-2,6.5838786110592365E-2,6.8601672175061287E-2,7.3898690443567797E-2,0,0,0,0,0,0,0,0,0,0,0,0,0,0,0,0,0,0,0,0,0,0,0,0,0,0,0,0,0,0]
[null,null,null,"EL4",4.4875764744251027E-2,4.8172086480033328E-2,5.3930198264487458E-2,5.964513497948571E-2,6.2812134776089185E-2,6.5536925714283101E-2,7.0480936262367205E-2,1.0046310793429294,1.0187639668337574,1.0279935426939841,1.0929562416664564,1.115516514159107,1.140062903945944,1.1610065789229094,1.1806367823168455,1.1944868306400314,1.2066233221859173,1.2212559748671272,1.2395361934557887,1.2522387480626216,1.262250067000543,1.2866691931939593,1.3060183365919629,1.3233454161109985,1.3434312343464203,1.3582304638608715,1.3714207175916011,1.3861275359293277,1.4010131121104865,1.4176832221124098,1.4342924424329764,1.4507382252820875,1.4670238656735828,1.4831827086284415,1.4992019046167095,1.5150792359180798,1.5307418170639526]
[null,null,null,"EL5",0.22492236032837032,0.24085034890504478,0.26873665355305698,0.29660390546841925,0.31195179143121993,0.3252756403751812,0.35009255502215492,0.40386568420035812,0.41967180107104968,0.43372399968654213,0.47649815887424679,0.49383653344208595,0.51177225528578618,0.52890078192573264,0.54708091047416763,0.56491774035495768,0.58284214070075013,0.60141110775749185,0.62070924978764308,0.63972287683736895,0.65876607162863288,0.67992408154518114,0.70086087806815112,0.72190735075965429,0.74365073212483757,0.76513188601171744,0.78680009224439085,0.80905217563133502,0.83168133682123813,0.855073632351531,0.87888821140291318,0.90305223580542171,0.92757160276326156,0.95247633529157361,0.97776077057587096,1.0034274822428895,1.0294204147928698]
[null,null,null,"EL6",0,0,0,0,0,0,0,0,0,0,0,0,0,0,0,0,0,0,0,0,0,0,0,0,0,0,0,0,0,0,0,0,0,0,0,0,0]
[null,null,null,"Total",{"$f":"SUM(E108:E114)","v":1.0184452917779674},{"$f":"SUM(F108:F114)","v":1.0639377434421442},{"$f":"SUM(G108:G114)","v":1.1719598586261941},{"$f":"SUM(H108:H114)","v":1.2584649266100689},{"$f":"SUM(I108:I114)","v":1.2775713573349714},{"$f":"SUM(J108:J114)","v":1.2787921546328929},{"$f":"SUM(K108:K114)","v":1.3027303114347277},{"$f":"SUM(L108:L114)","v":1.4084967635432875},{"$f":"SUM(M108:M114)","v":1.438435767904807},{"$f":"SUM(N108:N114)","v":1.4617175423805262},{"$f":"SUM(O108:O114)","v":1.5694544005407032},{"$f":"SUM(P108:P114)","v":1.609353047601193},{"$f":"SUM(Q108:Q114)","v":1.6518351592317302},{"$f":"SUM(R108:R114)","v":1.6899073608486419},{"$f":"SUM(S108:S114)","v":1.7277176927910132},{"$f":"SUM(T108:T114)","v":1.759404570994989},{"$f":"SUM(U108:U114)","v":1.7894654628866675},{"$f":"SUM(V108:V114)","v":1.8226670826246192},{"$f":"SUM(W108:W114)","v":1.8602454432434317},{"$f":"SUM(X108:X114)","v":1.8919616248999906},{"$f":"SUM(Y108:Y114)","v":1.921016138629176},{"$f":"SUM(Z108:Z114)","v":1.9665932747391404},{"$f":"SUM(AA108:AA114)","v":2.0068792146601142},{"$f":"SUM(AB108:AB114)","v":2.0452527668706528},{"$f":"SUM(AC108:AC114)","v":2.0870819664712581},{"$f":"SUM(AD108:AD114)","v":2.1233623498725889},{"$f":"SUM(AE108:AE114)","v":2.1582208098359921},{"$f":"SUM(AF108:AF114)","v":2.1951797115606628},{"$f":"SUM(AG108:AG114)","v":2.2326944489317246},{"$f":"SUM(AH108:AH114)","v":2.2727568544639407},{"$f":"SUM(AI108:AI114)","v":2.3131806538358894},{"$f":"SUM(AJ108:AJ114)","v":2.3537904610875091},{"$f":"SUM(AK108:AK114)","v":2.3945954684368442},{"$f":"SUM(AL108:AL114)","v":2.435659043920015},{"$f":"SUM(AM108:AM114)","v":2.4769626751925804},{"$f":"SUM(AN108:AN114)","v":2.5185067181609693},{"$f":"SUM(AO108:AO114)","v":2.5601622318568227}]
[]
[null,null,"PC 3",null,2012,2013,2014,2015,2016,2017,2018,2019,2020,2021,2022,2023,2024,2025,2026,2027,2028,2029,2030,2031,2032,2033,2034,2035,2036,2037,2038,2039,2040,2041,2042,2043,2044,2045,2046,2047,2048]
[null,null,{"$f":"OFFSET('Product Classes'!$C$9,MATCH(C117,MODEL_PCS,0),0)","v":"Weatherized Non-Condensing Gas Furnace Fan (WG-NC)"},"EL0",5.0326264881202509E-2,5.8894101439978676E-2,6.4524526705633509E-2,6.764019578937136E-2,6.7697754784820596E-2,6.6152230692002101E-2,6.307145638798832E-2,0,0,0,0,0,0,0,0,0,0,0,0,0,0,0,0,0,0,0,0,0,0,0,0,0,0,0,0,0,0]
[null,null,null,"EL1",6.8373039088786336E-2,7.8175288834174905E-2,8.2778995871750624E-2,8.4863320181110202E-2,8.3918705429268783E-2,8.1359657039486333E-2,7.7260203086814472E-2,0,0,0,0,0,0,0,0,0,0,0,0,0,0,0,0,0,0,0,0,0,0,0,0,0,0,0,0,0,0]
[null,null,null,"EL2",0,0,0,0,0,0,0,0,0,0,0,0,0,0,0,0,0,0,0,0,0,0,0,0,0,0,0,0,0,0,0,0,0,0,0,0,0]
[null,null,null,"EL3",3.5370123994755857E-2,4.3310217652102315E-2,4.7687996721009311E-2,5.1881607216880614E-2,5.5757968066373689E-2,5.9465301732541394E-2,6.2976066818120111E-2,0,0,0,0,0,0,0,0,0,0,0,0,0,0,0,0,0,0,0,0,0,0,0,0,0,0,0,0,0,0]
[null,null,null,"EL4",9.7374321901589015E-3,1.1960486723963415E-2,1.3252481833796483E-2,1.4475623482997755E-2,1.5579620188066037E-2,1.6619135251125461E-2,1.7583596899614716E-2,0.21664030990672137,0.21687024432512952,0.2165013101254683,0.21748488698537252,0.21933579496798342,0.22136760592104215,0.22454416492801596,0.22482223206024357,0.22407519216326174,0.22300342893062203,0.2224212277809498,0.22274840136904372,0.22195842822639925,0.22059781981718454,0.22208059138002276,0.222646058840269,0.22289323046580914,0.2237767402624615,0.22368523328469456,0.22334671087545047,0.2233595904322172,0.22354470256512152,0.22380055339773888,0.22407553836351793,0.224345684028248,0.22459657972469446,0.22484972578015242,0.22509683653944496,0.22533909287295453,0.22556617628144204]
[null,null,null,"EL5",4.4383271773956325E-2,5.4343417906077024E-2,5.9868008937651152E-2,6.5155404074964618E-2,7.0031940306635981E-2,7.4688920695941047E-2,7.9090107592708153E-2,8.2631499549232171E-2,8.4459363238049229E-2,8.6135898432895056E-2,8.7864517924760799E-2,8.965400178093981E-2,9.138467811557105E-2,9.3989586358134286E-2,9.5331232217469392E-2,9.6605619342290325E-2,9.7888300143008644E-2,9.9200576401306528E-2,0.10066337743177836,0.10201140828884314,0.10329478051400773,0.10490409721526146,0.10642716743715627,0.10795611756840032,0.10959146426435694,0.11112846558730496,0.1126653675842926,0.1142672011393481,0.1159122363899385,0.11769450106298417,0.11951335977249082,0.12135261295279674,0.12320205748658183,0.12507736909674463,0.12697285471810207,0.12888965662747609,0.13082015202105038]
[null,null,null,"EL6",0,0,0,0,0,0,0,0,0,0,0,0,0,0,0,0,0,0,0,0,0,0,0,0,0,0,0,0,0,0,0,0,0,0,0,0,0]
[null,null,null,"Total",{"$f":"SUM(E118:E124)","v":0.20819013192885993},{"$f":"SUM(F118:F124)","v":0.24668351255629634},{"$f":"SUM(G118:G124)","v":0.26811201006984109},{"$f":"SUM(H118:H124)","v":0.28401615074532455},{"$f":"SUM(I118:I124)","v":0.29298598877516502},{"$f":"SUM(J118:J124)","v":0.29828524541109636},{"$f":"SUM(K118:K124)","v":0.29998143078524581},{"$f":"SUM(L118:L124)","v":0.29927180945595355},{"$f":"SUM(M118:M124)","v":0.30132960756317873},{"$f":"SUM(N118:N124)","v":0.30263720855836335},{"$f":"SUM(O118:O124)","v":0.30534940491013329},{"$f":"SUM(P118:P124)","v":0.30898979674892324},{"$f":"SUM(Q118:Q124)","v":0.3127522840366132},{"$f":"SUM(R118:R124)","v":0.31853375128615025},{"$f":"SUM(S118:S124)","v":0.32015346427771296},{"$f":"SUM(T118:T124)","v":0.32068081150555205},{"$f":"SUM(U118:U124)","v":0.32089172907363067},{"$f":"SUM(V118:V124)","v":0.32162180418225633},{"$f":"SUM(W118:W124)","v":0.32341177880082206},{"$f":"SUM(X118:X124)","v":0.32396983651524236},{"$f":"SUM(Y118:Y124)","v":0.32389260033119227},{"$f":"SUM(Z118:Z124)","v":0.32698468859528423},{"$f":"SUM(AA118:AA124)","v":0.3290732262774253},{"$f":"SUM(AB118:AB124)","v":0.33084934803420946},{"$f":"SUM(AC118:AC124)","v":0.33336820452681842},{"$f":"SUM(AD118:AD124)","v":0.33481369887199952},{"$f":"SUM(AE118:AE124)","v":0.33601207845974307},{"$f":"SUM(AF118:AF124)","v":0.33762679157156528},{"$f":"SUM(AG118:AG124)","v":0.33945693895506002},{"$f":"SUM(AH118:AH124)","v":0.34149505446072304},{"$f":"SUM(AI118:AI124)","v":0.34358889813600874},{"$f":"SUM(AJ118:AJ124)","v":0.34569829698104476},{"$f":"SUM(AK118:AK124)","v":0.3477986372112763},{"$f":"SUM(AL118:AL124)","v":0.34992709487689705},{"$f":"SUM(AM118:AM124)","v":0.35206969125754706},{"$f":"SUM(AN118:AN124)","v":0.3542287495004306},{"$f":"SUM(AO118:AO124)","v":0.35638632830249239}]
[]
[null,null,"PC 4",null,2012,2013,2014,2015,2016,2017,2018,2019,2020,2021,2022,2023,2024,2025,2026,2027,2028,2029,2030,2031,2032,2033,2034,2035,2036,2037,2038,2039,2040,2041,2042,2043,2044,2045,2046,2047,2048]
[null,null,{"$f":"OFFSET('Product Classes'!$C$9,MATCH(C127,MODEL_PCS,0),0)","v":"Non-Weatherized, Non-Condensing Oil Furnace Fan (NWO-NC)"},"EL0",1.2125166674578785E-2,1.1638799283272362E-2,1.2139058350082199E-2,1.240526162542948E-2,1.2340193556457749E-2,1.2117801055806484E-2,1.1729663149567903E-2,0,0,0,0,0,0,0,0,0,0,0,0,0,0,0,0,0,0,0,0,0,0,0,0,0,0,0,0,0,0]
[null,null,null,"EL1",1.6733659420193239E-2,1.5800258439272255E-2,1.6167152658807013E-2,1.6301897284626717E-2,1.6101789768773293E-2,1.5748959912255712E-2,1.5232008017344437E-2,2.6246831033607879E-2,2.5695041267895038E-2,2.5108020431844832E-2,2.4686565066530164E-2,2.4333274769093884E-2,2.3982678830891453E-2,2.3452859472828387E-2,2.2897372828217018E-2,2.2150984980950566E-2,2.132977084595836E-2,2.0540647445798154E-2,1.9818815985851744E-2,1.8956960184677182E-2,1.8042468260298174E-2,1.7500575249839723E-2,1.6868699993646982E-2,1.624610941514595E-2,1.5751248929805048E-2,1.5206897097812743E-2,1.4715497333281162E-2,1.435749515737968E-2,1.4115371097501189E-2,1.4092175686181662E-2,1.4180314882636871E-2,1.4380890273605363E-2,1.4695062511076173E-2,1.5121493738053216E-2,1.5657969907518613E-2,1.6296764782534928E-2,1.7034920526769005E-2]
[null,null,null,"EL2",0,0,0,0,0,0,0,0,0,0,0,0,0,0,0,0,0,0,0,0,0,0,0,0,0,0,0,0,0,0,0,0,0,0,0,0,0]
[null,null,null,"EL3",0,0,0,0,0,0,0,0,0,0,0,0,0,0,0,0,0,0,0,0,0,0,0,0,0,0,0,0,0,0,0,0,0,0,0,0,0]
[null,null,null,"EL4",0,0,0,0,0,0,0,0,0,0,0,0,0,0,0,0,0,0,0,0,0,0,0,0,0,0,0,0,0,0,0,0,0,0,0,0,0]
[null,null,null,"EL5",7.121173905227993E-3,6.9846849483963499E-3,7.3014227432780078E-3,7.5990933929189148E-3,7.8618916077103137E-3,8.1098524299057333E-3,8.3363773463666635E-3,8.5996091436550959E-3,8.5278161860114048E-3,8.447981977989745E-3,8.3699193912159294E-3,8.2777468933358817E-3,8.1626725555608102E-3,7.9743938747555022E-3,7.7955610709891966E-3,7.5740601395748834E-3,7.320124344101551E-3,7.0473325809088435E-3,6.7606701369977828E-3,6.4501818098433878E-3,6.128676606815475E-3,5.839581579995241E-3,5.5498635359567394E-3,5.277895661911924E-3,5.0380994264768867E-3,4.8235068107039857E-3,4.6509934795548489E-3,4.5332320144759177E-3,4.4790127859066125E-3,4.5232846628316201E-3,4.6359175657083801E-3,4.8202628608305384E-3,5.0797972891189376E-3,5.4165002583587843E-3,5.8317984756388781E-3,6.3235036075168409E-3,6.8923791603923363E-3]
[null,null,null,"EL6",0,0,0,0,0,0,0,0,0,0,0,0,0,0,0,0,0,0,0,0,0,0,0,0,0,0,0,0,0,0,0,0,0,0,0,0,0]
[null,null,null,"Total",{"$f":"SUM(E128:E134)","v":3.5980000000000019E-2},{"$f":"SUM(F128:F134)","v":3.442374267094097E-2},{"$f":"SUM(G128:G134)","v":3.5607633752167224E-2},{"$f":"SUM(H128:H134)","v":3.6306252302975114E-2},{"$f":"SUM(I128:I134)","v":3.6303874932941356E-2},{"$f":"SUM(J128:J134)","v":3.5976613397967927E-2},{"$f":"SUM(K128:K134)","v":3.5298048513279001E-2},{"$f":"SUM(L128:L134)","v":3.4846440177262974E-2},{"$f":"SUM(M128:M134)","v":3.4222857453906443E-2},{"$f":"SUM(N128:N134)","v":3.3556002409834577E-2},{"$f":"SUM(O128:O134)","v":3.3056484457746095E-2},{"$f":"SUM(P128:P134)","v":3.2611021662429768E-2},{"$f":"SUM(Q128:Q134)","v":3.2145351386452262E-2},{"$f":"SUM(R128:R134)","v":3.1427253347583887E-2},{"$f":"SUM(S128:S134)","v":3.0692933899206215E-2},{"$f":"SUM(T128:T134)","v":2.9725045120525449E-2},{"$f":"SUM(U128:U134)","v":2.864989519005991E-2},{"$f":"SUM(V128:V134)","v":2.7587980026706996E-2},{"$f":"SUM(W128:W134)","v":2.6579486122849529E-2},{"$f":"SUM(X128:X134)","v":2.5407141994520571E-2},{"$f":"SUM(Y128:Y134)","v":2.417114486711365E-2},{"$f":"SUM(Z128:Z134)","v":2.3340156829834965E-2},{"$f":"SUM(AA128:AA134)","v":2.2418563529603721E-2},{"$f":"SUM(AB128:AB134)","v":2.1524005077057873E-2},{"$f":"SUM(AC128:AC134)","v":2.0789348356281934E-2},{"$f":"SUM(AD128:AD134)","v":2.0030403908516729E-2},{"$f":"SUM(AE128:AE134)","v":1.936649081283601E-2},{"$f":"SUM(AF128:AF134)","v":1.8890727171855599E-2},{"$f":"SUM(AG128:AG134)","v":1.8594383883407801E-2},{"$f":"SUM(AH128:AH134)","v":1.8615460349013284E-2},{"$f":"SUM(AI128:AI134)","v":1.8816232448345252E-2},{"$f":"SUM(AJ128:AJ134)","v":1.9201153134435902E-2},{"$f":"SUM(AK128:AK134)","v":1.977485980019511E-2},{"$f":"SUM(AL128:AL134)","v":2.0537993996411999E-2},{"$f":"SUM(AM128:AM134)","v":2.1489768383157491E-2},{"$f":"SUM(AN128:AN134)","v":2.2620268390051768E-2},{"$f":"SUM(AO128:AO134)","v":2.3927299687161341E-2}]
[]
[null,null,"PC 5",null,2012,2013,2014,2015,2016,2017,2018,2019,2020,2021,2022,2023,2024,2025,2026,2027,2028,2029,2030,2031,2032,2033,2034,2035,2036,2037,2038,2039,2040,2041,2042,2043,2044,2045,2046,2047,2048]
[null,null,{"$f":"OFFSET('Product Classes'!$C$9,MATCH(C137,MODEL_PCS,0),0)","v":"Non-Weatherized Electric Furnace / Modular Blower Fan (NWEF/NWMB)"},"EL0",8.0962853511641383E-2,9.374922945567081E-2,0.10907415008263342,0.11934633810108369,0.12332302249908005,0.12405072887133176,0.12162101528710857,0,0,0,0,0,0,0,0,0,0,0,0,0,0,0,0,0,0,0,0,0,0,0,0,0,0,0,0,0,0]
[null,null,null,"EL1",0.10579185888358889,0.11856965002049603,0.1334033271734765,0.14323695712127266,0.14687460319572274,0.14729405852219332,0.14459127589557483,0,0,0,0,0,0,0,0,0,0,0,0,0,0,0,0,0,0,0,0,0,0,0,0,0,0,0,0,0,0]
[null,null,null,"EL2",0,0,0,0,0,0,0,0,0,0,0,0,0,0,0,0,0,0,0,0,0,0,0,0,0,0,0,0,0,0,0,0,0,0,0,0,0]
[null,null,null,"EL3",2.0872713948901236E-2,2.3860850887822492E-2,2.701435631328656E-2,2.9953411474784208E-2,3.2511589903674323E-2,3.4879032588604968E-2,3.7023340408723369E-2,0,0,0,0,0,0,0,0,0,0,0,0,0,0,0,0,0,0,0,0,0,0,0,0,0,0,0,0,0,0]
[null,null,null,"EL4",0,0,0,0,0,0,0,0.30146054610030482,0.30112993175228508,0.30042020675911912,0.30296739078839074,0.30749943960032267,0.31282904009813794,0.31704494941898981,0.31986307666059505,0.3204193814523244,0.32014416474297314,0.32101812198476498,0.32358846518639267,0.32388924295023319,0.32306707393025674,0.32810055840849467,0.33122562800386962,0.33355813467571666,0.33718479778311938,0.33879757380480136,0.3398401076113271,0.34158289527856855,0.34367540891978149,0.34567331191799439,0.34767212265476988,0.34965901359409041,0.35157872158400238,0.35347598759869414,0.35534880072692665,0.35719116626320113,0.35901138677248401]
[null,null,null,"EL5",4.6636794362885037E-2,5.2892900979302389E-2,5.9327644705774521E-2,6.5413489489364623E-2,7.0867320303627482E-2,7.6017886108015409E-2,8.0811315553293891E-2,8.5809250536133766E-2,8.7941139534798776E-2,9.0028327258922528E-2,9.240070149408218E-2,9.495938085647225E-2,9.7607920846684237E-2,0.1001485994990586,0.10263584905054193,0.1049558940341753,0.10723235103467761,0.10964293314871659,0.11223855847361537,0.11467248539725461,0.11704181149816119,0.11997830366607055,0.12277455705887523,0.12552515451546156,0.12846329288959388,0.13124725696804315,0.1340128409329551,0.13688952446842748,0.13984919118964365,0.14294027002082998,0.14608332662086068,0.14927098467980948,0.15246808818390301,0.15570299346836716,0.15897460648583703,0.16227909578551694,0.16562214054539173]
[null,null,null,"EL6",0,0,0,0,0,0,0,0,0,0,0,0,0,0,0,0,0,0,0,0,0,0,0,0,0,0,0,0,0,0,0,0,0,0,0,0,0]
[null,null,null,"Total",{"$f":"SUM(E138:E144)","v":0.25426422070701654},{"$f":"SUM(F138:F144)","v":0.28907263134329175},{"$f":"SUM(G138:G144)","v":0.328819478275171},{"$f":"SUM(H138:H144)","v":0.35795019618650514},{"$f":"SUM(I138:I144)","v":0.37357653590210455},{"$f":"SUM(J138:J144)","v":0.38224170609014546},{"$f":"SUM(K138:K144)","v":0.38404694714470067},{"$f":"SUM(L138:L144)","v":0.38726979663643857},{"$f":"SUM(M138:M144)","v":0.38907107128708385},{"$f":"SUM(N138:N144)","v":0.39044853401804164},{"$f":"SUM(O138:O144)","v":0.39536809228247294},{"$f":"SUM(P138:P144)","v":0.40245882045679493},{"$f":"SUM(Q138:Q144)","v":0.41043696094482218},{"$f":"SUM(R138:R144)","v":0.41719354891804838},{"$f":"SUM(S138:S144)","v":0.42249892571113701},{"$f":"SUM(T138:T144)","v":0.42537527548649967},{"$f":"SUM(U138:U144)","v":0.42737651577765073},{"$f":"SUM(V138:V144)","v":0.43066105513348157},{"$f":"SUM(W138:W144)","v":0.43582702366000803},{"$f":"SUM(X138:X144)","v":0.4385617283474878},{"$f":"SUM(Y138:Y144)","v":0.44010888542841792},{"$f":"SUM(Z138:Z144)","v":0.44807886207456521},{"$f":"SUM(AA138:AA144)","v":0.45400018506274487},{"$f":"SUM(AB138:AB144)","v":0.45908328919117825},{"$f":"SUM(AC138:AC144)","v":0.46564809067271329},{"$f":"SUM(AD138:AD144)","v":0.47004483077284454},{"$f":"SUM(AE138:AE144)","v":0.47385294854428217},{"$f":"SUM(AF138:AF144)","v":0.47847241974699606},{"$f":"SUM(AG138:AG144)","v":0.48352460010942511},{"$f":"SUM(AH138:AH144)","v":0.48861358193882437},{"$f":"SUM(AI138:AI144)","v":0.49375544927563053},{"$f":"SUM(AJ138:AJ144)","v":0.49892999827389989},{"$f":"SUM(AK138:AK144)","v":0.50404680976790539},{"$f":"SUM(AL138:AL144)","v":0.50917898106706128},{"$f":"SUM(AM138:AM144)","v":0.51432340721276371},{"$f":"SUM(AN138:AN144)","v":0.51947026204871805},{"$f":"SUM(AO138:AO144)","v":0.52463352731787571}]
[]
[null,null,"PC 6",null,2012,2013,2014,2015,2016,2017,2018,2019,2020,2021,2022,2023,2024,2025,2026,2027,2028,2029,2030,2031,2032,2033,2034,2035,2036,2037,2038,2039,2040,2041,2042,2043,2044,2045,2046,2047,2048]
[null,null,{"$f":"OFFSET('Product Classes'!$C$9,MATCH(C147,MODEL_PCS,0),0)","v":"Mobile Home Non-Weatherized, Non-Condensing Gas Furnace Fan (MH-NWG-NC)"},"EL0",1.9548389963492899E-2,1.8113250354817985E-2,2.1429891053053682E-2,2.5045607027520289E-2,2.8692731829337542E-2,3.0982476935430429E-2,3.1706762017919186E-2,0,0,0,0,0,0,0,0,0,0,0,0,0,0,0,0,0,0,0,0,0,0,0,0,0,0,0,0,0,0]
[null,null,null,"EL1",2.6548678519356786E-2,2.3461028116615771E-2,2.6883819021157458E-2,3.0543065216317916E-2,3.4166888343472084E-2,3.6345320616709517E-2,3.688867693375758E-2,8.6474874673843294E-2,8.5436578304473057E-2,8.3770637478496821E-2,8.2665576607826433E-2,8.1039723194675978E-2,7.9569068467645596E-2,7.7733301828973311E-2,7.6327164492753688E-2,7.4985358353748005E-2,7.3464738185473555E-2,7.2016298965384015E-2,7.0936643151426448E-2,7.0133257929621162E-2,6.9724892302437877E-2,6.9873162968728739E-2,6.9621257281795718E-2,6.9453595248493288E-2,6.9512231666881752E-2,6.9574578827042072E-2,6.9670688732722752E-2,6.9758199523474076E-2,6.9902208322618689E-2,7.0162675056694906E-2,7.043768921021433E-2,7.0723926878041826E-2,7.1011856121520348E-2,7.13051876803006E-2,7.1602655026095752E-2,7.1904292094560049E-2,7.2205607232154495E-2]
[null,null,null,"EL2",0,0,0,0,0,0,0,0,0,0,0,0,0,0,0,0,0,0,0,0,0,0,0,0,0,0,0,0,0,0,0,0,0,0,0,0,0]
[null,null,null,"EL3",0,0,0,0,0,0,0,0,0,0,0,0,0,0,0,0,0,0,0,0,0,0,0,0,0,0,0,0,0,0,0,0,0,0,0,0,0]
[null,null,null,"EL4",0,0,0,0,0,0,0,0,0,0,0,0,0,0,0,0,0,0,0,0,0,0,0,0,0,0,0,0,0,0,0,0,0,0,0,0,0]
[null,null,null,"EL5",0,0,0,0,0,0,0,0,0,0,0,0,0,0,0,0,0,0,0,0,0,0,0,0,0,0,0,0,0,0,0,0,0,0,0,0,0]
[null,null,null,"EL6",0,0,0,0,0,0,0,0,0,0,0,0,0,0,0,0,0,0,0,0,0,0,0,0,0,0,0,0,0,0,0,0,0,0,0,0,0]
[null,null,null,"Total",{"$f":"SUM(E148:E154)","v":4.6097068482849682E-2},{"$f":"SUM(F148:F154)","v":4.1574278471433759E-2},{"$f":"SUM(G148:G154)","v":4.831371007421114E-2},{"$f":"SUM(H148:H154)","v":5.5588672243838205E-2},{"$f":"SUM(I148:I154)","v":6.2859620172809633E-2},{"$f":"SUM(J148:J154)","v":6.732779755213994E-2},{"$f":"SUM(K148:K154)","v":6.8595438951676774E-2},{"$f":"SUM(L148:L154)","v":8.6474874673843294E-2},{"$f":"SUM(M148:M154)","v":8.5436578304473057E-2},{"$f":"SUM(N148:N154)","v":8.3770637478496821E-2},{"$f":"SUM(O148:O154)","v":8.2665576607826433E-2},{"$f":"SUM(P148:P154)","v":8.1039723194675978E-2},{"$f":"SUM(Q148:Q154)","v":7.9569068467645596E-2},{"$f":"SUM(R148:R154)","v":7.7733301828973311E-2},{"$f":"SUM(S148:S154)","v":7.6327164492753688E-2},{"$f":"SUM(T148:T154)","v":7.4985358353748005E-2},{"$f":"SUM(U148:U154)","v":7.3464738185473555E-2},{"$f":"SUM(V148:V154)","v":7.2016298965384015E-2},{"$f":"SUM(W148:W154)","v":7.0936643151426448E-2},{"$f":"SUM(X148:X154)","v":7.0133257929621162E-2},{"$f":"SUM(Y148:Y154)","v":6.9724892302437877E-2},{"$f":"SUM(Z148:Z154)","v":6.9873162968728739E-2},{"$f":"SUM(AA148:AA154)","v":6.9621257281795718E-2},{"$f":"SUM(AB148:AB154)","v":6.9453595248493288E-2},{"$f":"SUM(AC148:AC154)","v":6.9512231666881752E-2},{"$f":"SUM(AD148:AD154)","v":6.9574578827042072E-2},{"$f":"SUM(AE148:AE154)","v":6.9670688732722752E-2},{"$f":"SUM(AF148:AF154)","v":6.9758199523474076E-2},{"$f":"SUM(AG148:AG154)","v":6.9902208322618689E-2},{"$f":"SUM(AH148:AH154)","v":7.0162675056694906E-2},{"$f":"SUM(AI148:AI154)","v":7.043768921021433E-2},{"$f":"SUM(AJ148:AJ154)","v":7.0723926878041826E-2},{"$f":"SUM(AK148:AK154)","v":7.1011856121520348E-2},{"$f":"SUM(AL148:AL154)","v":7.13051876803006E-2},{"$f":"SUM(AM148:AM154)","v":7.1602655026095752E-2},{"$f":"SUM(AN148:AN154)","v":7.1904292094560049E-2},{"$f":"SUM(AO148:AO154)","v":7.2205607232154495E-2}]
[]
[null,null,"PC 7",null,2012,2013,2014,2015,2016,2017,2018,2019,2020,2021,2022,2023,2024,2025,2026,2027,2028,2029,2030,2031,2032,2033,2034,2035,2036,2037,2038,2039,2040,2041,2042,2043,2044,2045,2046,2047,2048]
[null,null,{"$f":"OFFSET('Product Classes'!$C$9,MATCH(C157,MODEL_PCS,0),0)","v":"Mobile Home Non-Weatherized, Condensing Gas Furnace Fan (MH-NWG-C)"},"EL0",2.2338079040809299E-3,3.7916406088379447E-3,4.2309296659227072E-3,4.7226490783502202E-3,5.2285420849181499E-3,5.5527452699835958E-3,5.6639655151415058E-3,0,0,0,0,0,0,0,0,0,0,0,0,0,0,0,0,0,0,0,0,0,0,0,0,0,0,0,0,0,0]
[null,null,null,"EL1",2.989676132227885E-3,5.1913701281717396E-3,5.6226341749878181E-3,6.1028476791482886E-3,6.5941840093470365E-3,6.9013448342246896E-3,6.9940346790568582E-3,1.2662363661202969E-2,1.2747982463202719E-2,1.2750697809105652E-2,1.2830268502630882E-2,1.2839198206899414E-2,1.2866904168308982E-2,1.2848037990470566E-2,1.2874936693713174E-2,1.2905122747989946E-2,1.2905057342752236E-2,1.2907942483127158E-2,1.295379016261896E-2,1.3027738673609455E-2,1.3148052595933366E-2,1.3336761481900198E-2,1.3463823533355011E-2,1.3589444036598199E-2,1.3735724842377506E-2,1.3875596163009131E-2,1.4012826033289542E-2,1.4141427670709316E-2,1.4269877676797315E-2,1.4400133649493078E-2,1.452577218954621E-2,1.464648819031786E-2,1.4761957744307953E-2,1.4872550215217229E-2,1.4977975792001146E-2,1.5078356154333894E-2,1.517287800704431E-2]
[null,null,null,"EL2",0,0,0,0,0,0,0,0,0,0,0,0,0,0,0,0,0,0,0,0,0,0,0,0,0,0,0,0,0,0,0,0,0,0,0,0,0]
[null,null,null,"EL3",1.6643984690940612E-3,3.2233798173868077E-3,3.5703596805638613E-3,3.9431418159555139E-3,4.3360443534499653E-3,4.7085379162408424E-3,5.0499881263408883E-3,5.3840734399538629E-3,5.5343815205932947E-3,5.6821374640622264E-3,5.847219360258748E-3,6.0119311471906953E-3,6.1878680147020495E-3,6.3654189806637935E-3,6.5598385537679101E-3,6.7638048258511947E-3,6.9729990892765529E-3,7.1918743134553442E-3,7.4253712948782287E-3,7.6713584525878366E-3,7.9318390819104311E-3,8.2092396507951783E-3,8.4852240050893001E-3,8.7679950916546429E-3,9.0600475132745148E-3,9.3573121231898121E-3,9.6598423847692166E-3,9.9665236065718792E-3,1.0277975680942172E-2,1.0595369737659007E-2,1.0916310213650398E-2,1.1240458511419717E-2,1.1567434654238894E-2,1.1897580489979841E-2,1.2230543222340363E-2,1.2566406321503487E-2,1.2904199763085671E-2]
[null,null,null,"EL4",0,0,0,0,0,0,0,0,0,0,0,0,0,0,0,0,0,0,0,0,0,0,0,0,0,0,0,0,0,0,0,0,0,0,0,0,0]
[null,null,null,"EL5",3.1759862835470707E-4,5.2743356475053833E-4,5.8479936214095101E-4,6.4617004957114412E-4,7.1058632753606731E-4,7.71685300435687E-4,8.2783931716645534E-4,8.8283686922382466E-4,9.076599738325104E-4,9.3202917246054911E-4,9.590617762908249E-4,9.8598683958831521E-4,1.014634670267939E-3,1.0434711346826197E-3,1.074971298275877E-3,1.107935684484926E-3,1.141702174380836E-3,1.1769737744483097E-3,1.2145248487003787E-3,1.2540174903006779E-3,1.2957602364914763E-3,1.3401259300778775E-3,1.3842375062245373E-3,1.4293902469649786E-3,1.4759764086529081E-3,1.5233556191614449E-3,1.5715441554137203E-3,1.6203665128426601E-3,1.6699127996870132E-3,1.7205714611274923E-3,1.7717779730937423E-3,1.823480187070653E-3,1.8756160736370551E-3,1.9282559419413503E-3,1.9813397325208863E-3,2.0348867057145004E-3,2.0887195055194242E-3]
[null,null,null,"EL6",0,0,0,0,0,0,0,0,0,0,0,0,0,0,0,0,0,0,0,0,0,0,0,0,0,0,0,0,0,0,0,0,0,0,0,0,0]
[null,null,null,"Total",{"$f":"SUM(E158:E164)","v":7.2054811337575837E-3},{"$f":"SUM(F158:F164)","v":1.273382411914703E-2},{"$f":"SUM(G158:G164)","v":1.4008722883615337E-2},{"$f":"SUM(H158:H164)","v":1.5414808623025167E-2},{"$f":"SUM(I158:I164)","v":1.6869356775251219E-2},{"$f":"SUM(J158:J164)","v":1.7934313320884816E-2},{"$f":"SUM(K158:K164)","v":1.8535827637705709E-2},{"$f":"SUM(L158:L164)","v":1.8929273970380658E-2},{"$f":"SUM(M158:M164)","v":1.9190023957628522E-2},{"$f":"SUM(N158:N164)","v":1.9364864445628429E-2},{"$f":"SUM(O158:O164)","v":1.9636549639180455E-2},{"$f":"SUM(P158:P164)","v":1.9837116193678426E-2},{"$f":"SUM(Q158:Q164)","v":2.006940685327897E-2},{"$f":"SUM(R158:R164)","v":2.0256928105816981E-2},{"$f":"SUM(S158:S164)","v":2.0509746545756963E-2},{"$f":"SUM(T158:T164)","v":2.0776863258326065E-2},{"$f":"SUM(U158:U164)","v":2.1019758606409627E-2},{"$f":"SUM(V158:V164)","v":2.127679057103081E-2},{"$f":"SUM(W158:W164)","v":2.1593686306197568E-2},{"$f":"SUM(X158:X164)","v":2.195311461649797E-2},{"$f":"SUM(Y158:Y164)","v":2.2375651914335274E-2},{"$f":"SUM(Z158:Z164)","v":2.2886127062773255E-2},{"$f":"SUM(AA158:AA164)","v":2.3333285044668847E-2},{"$f":"SUM(AB158:AB164)","v":2.3786829375217821E-2},{"$f":"SUM(AC158:AC164)","v":2.4271748764304928E-2},{"$f":"SUM(AD158:AD164)","v":2.4756263905360388E-2},{"$f":"SUM(AE158:AE164)","v":2.524421257347248E-2},{"$f":"SUM(AF158:AF164)","v":2.5728317790123852E-2},{"$f":"SUM(AG158:AG164)","v":2.6217766157426499E-2},{"$f":"SUM(AH158:AH164)","v":2.6716074848279574E-2},{"$f":"SUM(AI158:AI164)","v":2.7213860376290349E-2},{"$f":"SUM(AJ158:AJ164)","v":2.7710426888808232E-2},{"$f":"SUM(AK158:AK164)","v":2.8205008472183903E-2},{"$f":"SUM(AL158:AL164)","v":2.8698386647138422E-2},{"$f":"SUM(AM158:AM164)","v":2.9189858746862394E-2},{"$f":"SUM(AN158:AN164)","v":2.967964918155188E-2},{"$f":"SUM(AO158:AO164)","v":3.0165797275649404E-2}]
[]
[null,null,"PC 8",null,2012,2013,2014,2015,2016,2017,2018,2019,2020,2021,2022,2023,2024,2025,2026,2027,2028,2029,2030,2031,2032,2033,2034,2035,2036,2037,2038,2039,2040,2041,2042,2043,2044,2045,2046,2047,2048]
[null,null,{"$f":"OFFSET('Product Classes'!$C$9,MATCH(C167,MODEL_PCS,0),0)","v":"Mobile Home Electric Furnace / Modular Blower Fan (MH-EF/MB)"},"EL0",2.3532539750770971E-2,2.2674996261772003E-2,2.822877912839012E-2,3.4415976107159754E-2,4.0774532546694879E-2,4.4721619881102313E-2,4.5865671813452649E-2,0,0,0,0,0,0,0,0,0,0,0,0,0,0,0,0,0,0,0,0,0,0,0,0,0,0,0,0,0,0]
[null,null,null,"EL1",3.2210531245977385E-2,2.8326444911174632E-2,3.3680959406342255E-2,3.9602629405849056E-2,4.5639921764811825E-2,4.9234274617951122E-2,5.0020155362572913E-2,0,0,0,0,0,0,0,0,0,0,0,0,0,0,0,0,0,0,0,0,0,0,0,0,0,0,0,0,0,0]
[null,null,null,"EL2",0,0,0,0,0,0,0,0,0,0,0,0,0,0,0,0,0,0,0,0,0,0,0,0,0,0,0,0,0,0,0,0,0,0,0,0,0]
[null,null,null,"EL3",9.6222562059528945E-3,7.635444822883951E-3,8.7650154920024884E-3,9.9808532579329125E-3,1.1234196044283714E-2,1.2221226873813669E-2,1.2864845330404655E-2,0,0,0,0,0,0,0,0,0,0,0,0,0,0,0,0,0,0,0,0,0,0,0,0,0,0,0,0,0,0]
[null,null,null,"EL4",0,0,0,0,0,0,0,0.1073631996575686,0.10671856677467609,0.1048051648811102,0.10390299007157403,0.10200789345665717,0.10029537355352382,9.9054751202342542E-2,9.6976572955706455E-2,9.5079684878552118E-2,9.2808330700676109E-2,9.058037621932799E-2,8.9031032536337623E-2,8.7897498409036615E-2,8.7403776449250126E-2,8.7861863993763847E-2,8.750957543680242E-2,8.7211417399107372E-2,8.7275465033296362E-2,8.7320939761420316E-2,8.7375846029361562E-2,8.7384638177584115E-2,8.7493040246689954E-2,8.7557477551105628E-2,8.7611739363993094E-2,8.7653009627619891E-2,8.7676293973146399E-2,8.7686176238198688E-2,8.7681829747254442E-2,8.7664585544809867E-2,8.7631710844734839E-2]
[null,null,null,"EL5",2.1556522115798893E-2,1.6936625770775735E-2,1.9295845768264923E-2,2.1805028936559192E-2,2.4364943995367844E-2,2.6376806399873769E-2,2.7694861921084536E-2,2.786079563127232E-2,2.783242474899536E-2,2.7609402948749348E-2,2.7492562371984944E-2,2.727059823745619E-2,2.7063675133934945E-2,2.7637996043441783E-2,2.7295723429872715E-2,2.7069822298575096E-2,2.6878706525500392E-2,2.6722247099696193E-2,2.6737767997091728E-2,2.6850977276304394E-2,2.7079986558209784E-2,2.7464419977811266E-2,2.7755907438057083E-2,2.8102762318079483E-2,2.8525418522549254E-2,2.8955076513190139E-2,2.9394913544288651E-2,2.9834973166708308E-2,3.0295060949905809E-2,3.0833094220846017E-2,3.1370656059580344E-2,3.190474302998908E-2,3.2429971648303316E-2,3.2950373233037018E-2,3.3464660770084885E-2,3.3973741565465836E-2,3.4474256643267309E-2]
[null,null,null,"EL6",0,0,0,0,0,0,0,0,0,0,0,0,0,0,0,0,0,0,0,0,0,0,0,0,0,0,0,0,0,0,0,0,0,0,0,0,0]
[null,null,null,"Total",{"$f":"SUM(E168:E174)","v":8.6921849318500138E-2},{"$f":"SUM(F168:F174)","v":7.557351176660633E-2},{"$f":"SUM(G168:G174)","v":8.99705997949998E-2},{"$f":"SUM(H168:H174)","v":0.10580448770750092},{"$f":"SUM(I168:I174)","v":0.12201359435115827},{"$f":"SUM(J168:J174)","v":0.13255392777274089},{"$f":"SUM(K168:K174)","v":0.13644553442751475},{"$f":"SUM(L168:L174)","v":0.13522399528884094},{"$f":"SUM(M168:M174)","v":0.13455099152367145},{"$f":"SUM(N168:N174)","v":0.13241456782985955},{"$f":"SUM(O168:O174)","v":0.13139555244355897},{"$f":"SUM(P168:P174)","v":0.12927849169411337},{"$f":"SUM(Q168:Q174)","v":0.12735904868745876},{"$f":"SUM(R168:R174)","v":0.12669274724578433},{"$f":"SUM(S168:S174)","v":0.12427229638557917},{"$f":"SUM(T168:T174)","v":0.12214950717712722},{"$f":"SUM(U168:U174)","v":0.1196870372261765},{"$f":"SUM(V168:V174)","v":0.11730262331902419},{"$f":"SUM(W168:W174)","v":0.11576880053342935},{"$f":"SUM(X168:X174)","v":0.11474847568534101},{"$f":"SUM(Y168:Y174)","v":0.11448376300745991},{"$f":"SUM(Z168:Z174)","v":0.11532628397157511},{"$f":"SUM(AA168:AA174)","v":0.11526548287485951},{"$f":"SUM(AB168:AB174)","v":0.11531417971718685},{"$f":"SUM(AC168:AC174)","v":0.11580088355584561},{"$f":"SUM(AD168:AD174)","v":0.11627601627461046},{"$f":"SUM(AE168:AE174)","v":0.11677075957365021},{"$f":"SUM(AF168:AF174)","v":0.11721961134429243},{"$f":"SUM(AG168:AG174)","v":0.11778810119659576},{"$f":"SUM(AH168:AH174)","v":0.11839057177195164},{"$f":"SUM(AI168:AI174)","v":0.11898239542357344},{"$f":"SUM(AJ168:AJ174)","v":0.11955775265760897},{"$f":"SUM(AK168:AK174)","v":0.12010626562144971},{"$f":"SUM(AL168:AL174)","v":0.1206365494712357},{"$f":"SUM(AM168:AM174)","v":0.12114649051733933},{"$f":"SUM(AN168:AN174)","v":0.1216383271102757},{"$f":"SUM(AO168:AO174)","v":0.12210596748800215}]

{"sheet":"Efficiency Distributions","index":10,"n_rows":90,"n_cols":5,"rows_kept":90,"cut":false,"hidden":false,"merged":[[48,3,48,4],[58,3,58,4],[68,3,68,4],[78,3,78,4],[8,3,8,4],[38,3,38,4],[18,3,18,4],[28,3,28,4]]}
[]
[null,null,"Efficiency Distributions by Product Type"]
[]
[null,null,{"$f":"Navigation!$C$17","v":"NAVIGATION"}]
[]
[null,null,"COMMENTS"]
[]
[]
[null,null,"PC 1"]
[null,null,{"$f":"OFFSET('Product Classes'!$C$9,MATCH(C9,MODEL_PCS,0),0)","v":"Non-Weatherized, Non-Condensing Gas Furnace Fan (NWG-NC)"},"Replacement","New Constuction"]
[null,null,"EL0",0.27694754619127304,0.45871266352470347]
[null,null,"EL1",0.41542131928690951,0.45871266352470347]
[null,null,"EL2",0,0]
[null,null,"EL3",0.13150643918489904,3.5299096833841324E-2]
[null,null,"EL4",3.2876609796224761E-2,8.8247742084603311E-3]
[null,null,"EL5",0.1432480855406936,3.8450801908291442E-2]
[null,null,"EL6",0,0]
[]
[null,null,"PC 2"]
[null,null,{"$f":"OFFSET('Product Classes'!$C$9,MATCH(C19,MODEL_PCS,0),0)","v":"Non-Weatherized, Condensing Gas Furnace Fan (NWG-C)"},"Replacement","New Constuction"]
[null,null,"EL0",0.19955035035738097,0.43274386755412125]
[null,null,"EL1",0.29932552553607145,0.43274386755412125]
[null,null,"EL2",0,0]
[null,null,"EL3",8.0717979721860025E-2,2.1666405083236112E-2]
[null,null,"EL4",7.062823225662751E-2,1.8958104447831595E-2]
[null,null,"EL5",0.34977791212806009,9.3887755360689815E-2]
[null,null,"EL6",0,0]
[]
[null,null,"PC 3"]
[null,null,{"$f":"OFFSET('Product Classes'!$C$9,MATCH(C29,MODEL_PCS,0),0)","v":"Weatherized Non-Condensing Gas Furnace Fan (WG-NC)"},"Replacement","New Constuction"]
[null,null,"EL0",0.1251370908465077,0.40777626074455192]
[null,null,"EL1",0.18770563626976156,0.40777626074455192]
[null,null,"EL2",0,0]
[null,null,"EL3",0.27963182398107655,7.505906854228897E-2]
[null,null,"EL4",7.3701410971756615E-2,1.9783010313471513E-2]
[null,null,"EL5",0.3338240379308976,8.960539965513567E-2]
[null,null,"EL6",0,0]
[]
[null,null,"PC 4"]
[null,null,{"$f":"OFFSET('Product Classes'!$C$9,MATCH(C39,MODEL_PCS,0),0)","v":"Non-Weatherized, Non-Condensing Oil Furnace Fan (NWO-NC)"},"Replacement","New Constuction"]
[null,null,"EL0",0.27862599716039727,0.45927582799460698]
[null,null,"EL1",0.4179389957405959,0.45927582799460698]
[null,null,"EL2",0,0]
[null,null,"EL3",0,0]
[null,null,"EL4",0,0]
[null,null,"EL5",0.30343500709900678,8.1448344010786031E-2]
[null,null,"EL6",0,0]
[]
[null,null,"PC 5"]
[null,null,{"$f":"OFFSET('Product Classes'!$C$9,MATCH(C49,MODEL_PCS,0),0)","v":"Non-Weatherized Electric Furnace / Modular Blower Fan (NWEF/NWMB)"},"Replacement","New Constuction"]
[null,null,"EL0",0.21788706502162644,0.43889631786909833]
[null,null,"EL1",0.32683059753243965,0.43889631786909833]
[null,null,"EL2",0,0]
[null,null,"EL3",0.14530287365295766,3.900235029632021E-2]
[null,null,"EL4",0,0]
[null,null,"EL5",0.30997946379297631,8.3205013965483118E-2]
[null,null,"EL6",0,0]
[]
[null,null,"PC 6"]
[null,null,{"$f":"OFFSET('Product Classes'!$C$9,MATCH(C59,MODEL_PCS,0),0)","v":"Mobile Home Non-Weatherized, Non-Condensing Gas Furnace Fan (MH-NWG-NC)"},"Replacement","New Constuction"]
[null,null,"EL0",0.4,0.5]
[null,null,"EL1",0.6,0.5]
[null,null,"EL2",0,0]
[null,null,"EL3",0,0]
[null,null,"EL4",0,0]
[null,null,"EL5",0,0]
[null,null,"EL6",0,0]
[]
[null,null,"PC 7"]
[null,null,{"$f":"OFFSET('Product Classes'!$C$9,MATCH(C69,MODEL_PCS,0),0)","v":"Mobile Home Non-Weatherized, Condensing Gas Furnace Fan (MH-NWG-C)"},"Replacement","New Constuction"]
[null,null,"EL0",0.21915235542274641,0.43932085609578991]
[null,null,"EL1",0.32872853313411959,0.43932085609578991]
[null,null,"EL2",0,0]
[null,null,"EL3",0.38430124472666388,0.10315454463715715]
[null,null,"EL4",0,0]
[null,null,"EL5",6.7817866716470082E-2,1.8203743171263023E-2]
[null,null,"EL6",0,0]
[]
[null,null,"PC 8"]
[null,null,{"$f":"OFFSET('Product Classes'!$C$9,MATCH(C79,MODEL_PCS,0),0)","v":"Mobile Home Electric Furnace / Modular Blower Fan (MH-EF/MB)"},"Replacement","New Constuction"]
[null,null,"EL0",0.16536901945732363,0.42127513152844409]
[null,null,"EL1",0.24805352918598544,0.42127513152844409]
[null,null,"EL2",0,0]
[null,null,"EL3",0.18720556958192264,5.024991604567397E-2]
[null,null,"EL4",0,0]
[null,null,"EL5",0.39937188177476829,0.10719982089743781]
[null,null,"EL6",0,0]
[]
[null,null,"Source"]
[null,null,"2014 DOE Residential Furnace Fans Final Rule TSD Life Cycle Cost Spreadsheet: 'Base Case Fan Efficiency' tab"]

{"sheet":"Efficiency Dist - SF","index":11,"n_rows":219,"n_cols":59,"rows_kept":219,"cut":false,"hidden":false,"merged":[[3,2,3,4],[5,2,5,4]]}
[]
[null,null,null,"Efficiency Distributions  - ","Single Family"]
[]
[null,null,{"$f":"Navigation!$C$17","v":"NAVIGATION"}]
[]
[null,null,"COMMENTS"]
[]
[]
[null,null,null,"Shipments of Furnace Fans",null,1981,{"$f":"F9+1","v":1982},{"$f":"G9+1","v":1983},1984,1985,1986,1987,1988,1989,1990,{"$f":"O9+1","v":1991},{"$f":"P9+1","v":1992},1993,1994,1995,1996,1997,1998,1999,2000,2001,2002,2003,2004,2005,2006,2007,2008,2009,2010,2011,2012,2013,2014,2015,2016,2017,2018,2019,2020,2021,2022,2023,2024,2025,2026,2027,2028,2029,2030,2031,2032,2033,2034]
[null,null,null,null,"Replacements",{"$f":"'Shipments and Stock - SF'!E12","v":84371.90845117053},{"$f":"'Shipments and Stock - SF'!F12","v":84371.90845117053},{"$f":"'Shipments and Stock - SF'!G12","v":84371.90845117053},{"$f":"'Shipments and Stock - SF'!H12","v":84371.90845117053},{"$f":"'Shipments and Stock - SF'!I12","v":84371.90845117053},{"$f":"'Shipments and Stock - SF'!J12","v":84371.90845117053},{"$f":"'Shipments and Stock - SF'!K12","v":84371.90845117053},{"$f":"'Shipments and Stock - SF'!L12","v":84371.90845117053},{"$f":"'Shipments and Stock - SF'!M12","v":84371.90845117053},{"$f":"'Shipments and Stock - SF'!N12","v":84371.90845117053},{"$f":"'Shipments and Stock - SF'!O12","v":84371.90845117053},{"$f":"'Shipments and Stock - SF'!P12","v":84371.90845117053},{"$f":"'Shipments and Stock - SF'!Q12","v":84371.90845117053},{"$f":"'Shipments and Stock - SF'!R12","v":84371.90845117053},{"$f":"'Shipments and Stock - SF'!S12","v":84371.90845117053},{"$f":"'Shipments and Stock - SF'!T12","v":84371.90845117053},{"$f":"'Shipments and Stock - SF'!U12","v":84371.90845117053},{"$f":"'Shipments and Stock - SF'!V12","v":84371.90845117053},{"$f":"'Shipments and Stock - SF'!W12","v":84371.90845117053},{"$f":"'Shipments and Stock - SF'!X12","v":84371.90845117053},{"$f":"'Shipments and Stock - SF'!Y12","v":84371.90845117053},{"$f":"'Shipments and Stock - SF'!Z12","v":106752.37104477371},{"$f":"'Shipments and Stock - SF'!AA12","v":99761.371681895209},{"$f":"'Shipments and Stock - SF'!AB12","v":108240.95195047031},{"$f":"'Shipments and Stock - SF'!AC12","v":106551.8182045085},{"$f":"'Shipments and Stock - SF'!AD12","v":105532.16605687616},{"$f":"'Shipments and Stock - SF'!AE12","v":107225.97959518769},{"$f":"'Shipments and Stock - SF'!AF12","v":97403.981864838046},{"$f":"'Shipments and Stock - SF'!AG12","v":94811.966913691576},{"$f":"'Shipments and Stock - SF'!AH12","v":109293.70198997027},{"$f":"'Shipments and Stock - SF'!AI12","v":119842.83541635924},{"$f":"'Shipments and Stock - SF'!AJ12","v":115444.23754602751},{"$f":"'Shipments and Stock - SF'!AK12","v":122861.03018965936},{"$f":"'Shipments and Stock - SF'!AL12","v":104431.23400621291},{"$f":"'Shipments and Stock - SF'!AM12","v":106033.22317914233},{"$f":"'Shipments and Stock - SF'!AN12","v":100360.44858040972},{"$f":"'Shipments and Stock - SF'!AO12","v":101139.9745478368},{"$f":"'Shipments and Stock - SF'!AP12","v":99991.325338582858},{"$f":"'Shipments and Stock - SF'!AQ12","v":100538.83852541665},{"$f":"'Shipments and Stock - SF'!AR12","v":98802.098748169257},{"$f":"'Shipments and Stock - SF'!AS12","v":94817.163352329619},{"$f":"'Shipments and Stock - SF'!AT12","v":94752.628293378628},{"$f":"'Shipments and Stock - SF'!AU12","v":120639.94439216015},{"$f":"'Shipments and Stock - SF'!AV12","v":116925.15702639995},{"$f":"'Shipments and Stock - SF'!AW12","v":126535.46657576725},{"$f":"'Shipments and Stock - SF'!AX12","v":128662.77855881477},{"$f":"'Shipments and Stock - SF'!AY12","v":121365.74597652779},{"$f":"'Shipments and Stock - SF'!AZ12","v":111581.50248612381},{"$f":"'Shipments and Stock - SF'!BA12","v":97403.981864838046},{"$f":"'Shipments and Stock - SF'!BB12","v":94811.966913691576},{"$f":"'Shipments and Stock - SF'!BC12","v":109293.70198997027},{"$f":"'Shipments and Stock - SF'!BD12","v":121823.77009563278},{"$f":"'Shipments and Stock - SF'!BE12","v":152625.50088214863},{"$f":"'Shipments and Stock - SF'!BF12","v":160982.94525799798}]
[null,null,null,null,"Total New Shipments",{"$f":"'Shipments and Stock - SF'!E13","v":22380.462593603181},{"$f":"'Shipments and Stock - SF'!F13","v":15389.463230724679},{"$f":"'Shipments and Stock - SF'!G13","v":23869.043499299791},{"$f":"'Shipments and Stock - SF'!H13","v":22179.909753337968},{"$f":"'Shipments and Stock - SF'!I13","v":21160.257605705643},{"$f":"'Shipments and Stock - SF'!J13","v":22854.071144017158},{"$f":"'Shipments and Stock - SF'!K13","v":22989.649476005463},{"$f":"'Shipments and Stock - SF'!L13","v":25352.198558793403},{"$f":"'Shipments and Stock - SF'!M13","v":31153.242026354419},{"$f":"'Shipments and Stock - SF'!N13","v":35470.926965188701},{"$f":"'Shipments and Stock - SF'!O13","v":31072.329094856977},{"$f":"'Shipments and Stock - SF'!P13","v":38489.121738488837},{"$f":"'Shipments and Stock - SF'!Q13","v":20059.325555042364},{"$f":"'Shipments and Stock - SF'!R13","v":21661.314727971796},{"$f":"'Shipments and Stock - SF'!S13","v":15988.540129239205},{"$f":"'Shipments and Stock - SF'!T13","v":16768.066096666269},{"$f":"'Shipments and Stock - SF'!U13","v":15619.416887412313},{"$f":"'Shipments and Stock - SF'!V13","v":16166.930074246135},{"$f":"'Shipments and Stock - SF'!W13","v":14430.190296998713},{"$f":"'Shipments and Stock - SF'!X13","v":10445.254901159089},{"$f":"'Shipments and Stock - SF'!Y13","v":10380.719842208084},{"$f":"'Shipments and Stock - SF'!Z13","v":13887.573347386438},{"$f":"'Shipments and Stock - SF'!AA13","v":17163.785344504751},{"$f":"'Shipments and Stock - SF'!AB13","v":18294.514625296928},{"$f":"'Shipments and Stock - SF'!AC13","v":22110.960354306269},{"$f":"'Shipments and Stock - SF'!AD13","v":15833.579919651616},{"$f":"'Shipments and Stock - SF'!AE13","v":4355.5228909361176},{"$f":"'Shipments and Stock - SF'!AF13","v":0},{"$f":"'Shipments and Stock - SF'!AG13","v":0},{"$f":"'Shipments and Stock - SF'!AH13","v":0},{"$f":"'Shipments and Stock - SF'!AI13","v":1980.9346792735159},{"$f":"'Shipments and Stock - SF'!AJ13","v":37181.263336121105},{"$f":"'Shipments and Stock - SF'!AK13","v":38121.915068338625},{"$f":"'Shipments and Stock - SF'!AL13","v":37853.023180362303},{"$f":"'Shipments and Stock - SF'!AM13","v":37970.652584005147},{"$f":"'Shipments and Stock - SF'!AN13","v":38092.870356667787},{"$f":"'Shipments and Stock - SF'!AO13","v":37425.543641785662},{"$f":"'Shipments and Stock - SF'!AP13","v":36680.092480410356},{"$f":"'Shipments and Stock - SF'!AQ13","v":35876.691324137639},{"$f":"'Shipments and Stock - SF'!AR13","v":35269.95939727826},{"$f":"'Shipments and Stock - SF'!AS13","v":34347.796763751656},{"$f":"'Shipments and Stock - SF'!AT13","v":33737.617316972966},{"$f":"'Shipments and Stock - SF'!AU13","v":33297.672781805035},{"$f":"'Shipments and Stock - SF'!AV13","v":32793.532415330876},{"$f":"'Shipments and Stock - SF'!AW13","v":32681.677802977618},{"$f":"'Shipments and Stock - SF'!AX13","v":32384.484838853125},{"$f":"'Shipments and Stock - SF'!AY13","v":31749.191742842086},{"$f":"'Shipments and Stock - SF'!AZ13","v":30922.447535898071},{"$f":"'Shipments and Stock - SF'!BA13","v":30358.753818526395},{"$f":"'Shipments and Stock - SF'!BB13","v":30236.843912910204},{"$f":"'Shipments and Stock - SF'!BC13","v":30539.212352040224},{"$f":"'Shipments and Stock - SF'!BD13","v":30844.604475559667},{"$f":"'Shipments and Stock - SF'!BE13","v":31153.050520315745},{"$f":"'Shipments and Stock - SF'!BF13","v":31464.581025518943}]
[]
[]
[]
[null,null,"PC 1",{"$f":"OFFSET('Product Classes'!$C$9,MATCH(C15,MODEL_PCS,0),0)","v":"Non-Weatherized, Non-Condensing Gas Furnace Fan (NWG-NC)"}]
[]
[null,null,null,"PRE-Case"]
[null,null,null,null,"Efficiency Level",1981,{"$f":"F18+1","v":1982},{"$f":"G18+1","v":1983},1984,1985,1986,1987,1988,1989,1990,{"$f":"O18+1","v":1991},{"$f":"P18+1","v":1992},1993,1994,1995,1996,1997,1998,1999,2000,2001,2002,2003,2004,2005,2006,2007,2008,2009,2010,2011,2012,2013,2014,2015,2016,2017,2018,2019,2020,2021,2022,2023,2024,2025,2026,2027,2028,2029,2030,2031,2032,2033,2034]
[null,null,null,null,"EL0",{"$f":"IF(INDEX(PC_MAPPING,RIGHT($C15,1),MATCH($E$2,'Data by Building Type'!$D$22:$F$22,0))=\"Yes\",1,0)*\n(F$10*OFFSET('Efficiency Distributions'!$D$10,MATCH($C15,'Efficiency Distributions'!$C$9:$C$87,0)+RIGHT($E19),0)\n+F$11*OFFSET('Efficiency Distributions'!$E$10,MATCH($C15,'Efficiency Distributions'!$C$9:$C$87,0)+RIGHT($E19),0))\n/SUM(F$10:F$11)","v":0.31505431018620622},{"$f":"IF(INDEX(PC_MAPPING,RIGHT($C15,1),MATCH($E$2,'Data by Building Type'!$D$22:$F$22,0))=\"Yes\",1,0)*\n(G$10*OFFSET('Efficiency Distributions'!$D$10,MATCH($C15,'Efficiency Distributions'!$C$9:$C$87,0)+RIGHT($E19),0)\n+G$11*OFFSET('Efficiency Distributions'!$E$10,MATCH($C15,'Efficiency Distributions'!$C$9:$C$87,0)+RIGHT($E19),0))\n/SUM(G$10:G$11)","v":0.30498713248275577},{"$f":"IF(INDEX(PC_MAPPING,RIGHT($C15,1),MATCH($E$2,'Data by Building Type'!$D$22:$F$22,0))=\"Yes\",1,0)*\n(H$10*OFFSET('Efficiency Distributions'!$D$10,MATCH($C15,'Efficiency Distributions'!$C$9:$C$87,0)+RIGHT($E19),0)\n+H$11*OFFSET('Efficiency Distributions'!$E$10,MATCH($C15,'Efficiency Distributions'!$C$9:$C$87,0)+RIGHT($E19),0))\n/SUM(H$10:H$11)","v":0.31702996799288702},{"$f":"IF(INDEX(PC_MAPPING,RIGHT($C15,1),MATCH($E$2,'Data by Building Type'!$D$22:$F$22,0))=\"Yes\",1,0)*\n(I$10*OFFSET('Efficiency Distributions'!$D$10,MATCH($C15,'Efficiency Distributions'!$C$9:$C$87,0)+RIGHT($E19),0)\n+I$11*OFFSET('Efficiency Distributions'!$E$10,MATCH($C15,'Efficiency Distributions'!$C$9:$C$87,0)+RIGHT($E19),0))\n/SUM(I$10:I$11)","v":0.31478391507446291},{"$f":"IF(INDEX(PC_MAPPING,RIGHT($C15,1),MATCH($E$2,'Data by Building Type'!$D$22:$F$22,0))=\"Yes\",1,0)*\n(J$10*OFFSET('Efficiency Distributions'!$D$10,MATCH($C15,'Efficiency Distributions'!$C$9:$C$87,0)+RIGHT($E19),0)\n+J$11*OFFSET('Efficiency Distributions'!$E$10,MATCH($C15,'Efficiency Distributions'!$C$9:$C$87,0)+RIGHT($E19),0))\n/SUM(J$10:J$11)","v":0.31339327501705877},{"$f":"IF(INDEX(PC_MAPPING,RIGHT($C15,1),MATCH($E$2,'Data by Building Type'!$D$22:$F$22,0))=\"Yes\",1,0)*\n(K$10*OFFSET('Efficiency Distributions'!$D$10,MATCH($C15,'Efficiency Distributions'!$C$9:$C$87,0)+RIGHT($E19),0)\n+K$11*OFFSET('Efficiency Distributions'!$E$10,MATCH($C15,'Efficiency Distributions'!$C$9:$C$87,0)+RIGHT($E19),0))\n/SUM(K$10:K$11)","v":0.31568883760891076},{"$f":"IF(INDEX(PC_MAPPING,RIGHT($C15,1),MATCH($E$2,'Data by Building Type'!$D$22:$F$22,0))=\"Yes\",1,0)*\n(L$10*OFFSET('Efficiency Distributions'!$D$10,MATCH($C15,'Efficiency Distributions'!$C$9:$C$87,0)+RIGHT($E19),0)\n+L$11*OFFSET('Efficiency Distributions'!$E$10,MATCH($C15,'Efficiency Distributions'!$C$9:$C$87,0)+RIGHT($E19),0))\n/SUM(L$10:L$11)","v":0.31586945096928509},{"$f":"IF(INDEX(PC_MAPPING,RIGHT($C15,1),MATCH($E$2,'Data by Building Type'!$D$22:$F$22,0))=\"Yes\",1,0)*\n(M$10*OFFSET('Efficiency Distributions'!$D$10,MATCH($C15,'Efficiency Distributions'!$C$9:$C$87,0)+RIGHT($E19),0)\n+M$11*OFFSET('Efficiency Distributions'!$E$10,MATCH($C15,'Efficiency Distributions'!$C$9:$C$87,0)+RIGHT($E19),0))\n/SUM(M$10:M$11)","v":0.31894511145996141},{"$f":"IF(INDEX(PC_MAPPING,RIGHT($C15,1),MATCH($E$2,'Data by Building Type'!$D$22:$F$22,0))=\"Yes\",1,0)*\n(N$10*OFFSET('Efficiency Distributions'!$D$10,MATCH($C15,'Efficiency Distributions'!$C$9:$C$87,0)+RIGHT($E19),0)\n+N$11*OFFSET('Efficiency Distributions'!$E$10,MATCH($C15,'Efficiency Distributions'!$C$9:$C$87,0)+RIGHT($E19),0))\n/SUM(N$10:N$11)","v":0.32596347621889682},{"$f":"IF(INDEX(PC_MAPPING,RIGHT($C15,1),MATCH($E$2,'Data by Building Type'!$D$22:$F$22,0))=\"Yes\",1,0)*\n(O$10*OFFSET('Efficiency Distributions'!$D$10,MATCH($C15,'Efficiency Distributions'!$C$9:$C$87,0)+RIGHT($E19),0)\n+O$11*OFFSET('Efficiency Distributions'!$E$10,MATCH($C15,'Efficiency Distributions'!$C$9:$C$87,0)+RIGHT($E19),0))\n/SUM(O$10:O$11)","v":0.33074614983206241},{"$f":"IF(INDEX(PC_MAPPING,RIGHT($C15,1),MATCH($E$2,'Data by Building Type'!$D$22:$F$22,0))=\"Yes\",1,0)*\n(P$10*OFFSET('Efficiency Distributions'!$D$10,MATCH($C15,'Efficiency Distributions'!$C$9:$C$87,0)+RIGHT($E19),0)\n+P$11*OFFSET('Efficiency Distributions'!$E$10,MATCH($C15,'Efficiency Distributions'!$C$9:$C$87,0)+RIGHT($E19),0))\n/SUM(P$10:P$11)","v":0.32587043453810666},{"$f":"IF(INDEX(PC_MAPPING,RIGHT($C15,1),MATCH($E$2,'Data by Building Type'!$D$22:$F$22,0))=\"Yes\",1,0)*\n(Q$10*OFFSET('Efficiency Distributions'!$D$10,MATCH($C15,'Efficiency Distributions'!$C$9:$C$87,0)+RIGHT($E19),0)\n+Q$11*OFFSET('Efficiency Distributions'!$E$10,MATCH($C15,'Efficiency Distributions'!$C$9:$C$87,0)+RIGHT($E19),0))\n/SUM(Q$10:Q$11)","v":0.33388976552687105},{"$f":"IF(INDEX(PC_MAPPING,RIGHT($C15,1),MATCH($E$2,'Data by Building Type'!$D$22:$F$22,0))=\"Yes\",1,0)*\n(R$10*OFFSET('Efficiency Distributions'!$D$10,MATCH($C15,'Efficiency Distributions'!$C$9:$C$87,0)+RIGHT($E19),0)\n+R$11*OFFSET('Efficiency Distributions'!$E$10,MATCH($C15,'Efficiency Distributions'!$C$9:$C$87,0)+RIGHT($E19),0))\n/SUM(R$10:R$11)","v":0.3118612930012058},{"$f":"IF(INDEX(PC_MAPPING,RIGHT($C15,1),MATCH($E$2,'Data by Building Type'!$D$22:$F$22,0))=\"Yes\",1,0)*\n(S$10*OFFSET('Efficiency Distributions'!$D$10,MATCH($C15,'Efficiency Distributions'!$C$9:$C$87,0)+RIGHT($E19),0)\n+S$11*OFFSET('Efficiency Distributions'!$E$10,MATCH($C15,'Efficiency Distributions'!$C$9:$C$87,0)+RIGHT($E19),0))\n/SUM(S$10:S$11)","v":0.31407997784879388},{"$f":"IF(INDEX(PC_MAPPING,RIGHT($C15,1),MATCH($E$2,'Data by Building Type'!$D$22:$F$22,0))=\"Yes\",1,0)*\n(T$10*OFFSET('Efficiency Distributions'!$D$10,MATCH($C15,'Efficiency Distributions'!$C$9:$C$87,0)+RIGHT($E19),0)\n+T$11*OFFSET('Efficiency Distributions'!$E$10,MATCH($C15,'Efficiency Distributions'!$C$9:$C$87,0)+RIGHT($E19),0))\n/SUM(T$10:T$11)","v":0.30590475905439596},{"$f":"IF(INDEX(PC_MAPPING,RIGHT($C15,1),MATCH($E$2,'Data by Building Type'!$D$22:$F$22,0))=\"Yes\",1,0)*\n(U$10*OFFSET('Efficiency Distributions'!$D$10,MATCH($C15,'Efficiency Distributions'!$C$9:$C$87,0)+RIGHT($E19),0)\n+U$11*OFFSET('Efficiency Distributions'!$E$10,MATCH($C15,'Efficiency Distributions'!$C$9:$C$87,0)+RIGHT($E19),0))\n/SUM(U$10:U$11)","v":0.30708251028574884},{"$f":"IF(INDEX(PC_MAPPING,RIGHT($C15,1),MATCH($E$2,'Data by Building Type'!$D$22:$F$22,0))=\"Yes\",1,0)*\n(V$10*OFFSET('Efficiency Distributions'!$D$10,MATCH($C15,'Efficiency Distributions'!$C$9:$C$87,0)+RIGHT($E19),0)\n+V$11*OFFSET('Efficiency Distributions'!$E$10,MATCH($C15,'Efficiency Distributions'!$C$9:$C$87,0)+RIGHT($E19),0))\n/SUM(V$10:V$11)","v":0.30534066063001902},{"$f":"IF(INDEX(PC_MAPPING,RIGHT($C15,1),MATCH($E$2,'Data by Building Type'!$D$22:$F$22,0))=\"Yes\",1,0)*\n(W$10*OFFSET('Efficiency Distributions'!$D$10,MATCH($C15,'Efficiency Distributions'!$C$9:$C$87,0)+RIGHT($E19),0)\n+W$11*OFFSET('Efficiency Distributions'!$E$10,MATCH($C15,'Efficiency Distributions'!$C$9:$C$87,0)+RIGHT($E19),0))\n/SUM(W$10:W$11)","v":0.30617589202226081},{"$f":"IF(INDEX(PC_MAPPING,RIGHT($C15,1),MATCH($E$2,'Data by Building Type'!$D$22:$F$22,0))=\"Yes\",1,0)*\n(X$10*OFFSET('Efficiency Distributions'!$D$10,MATCH($C15,'Efficiency Distributions'!$C$9:$C$87,0)+RIGHT($E19),0)\n+X$11*OFFSET('Efficiency Distributions'!$E$10,MATCH($C15,'Efficiency Distributions'!$C$9:$C$87,0)+RIGHT($E19),0))\n/SUM(X$10:X$11)","v":0.30349460607876655},{"$f":"IF(INDEX(PC_MAPPING,RIGHT($C15,1),MATCH($E$2,'Data by Building Type'!$D$22:$F$22,0))=\"Yes\",1,0)*\n(Y$10*OFFSET('Efficiency Distributions'!$D$10,MATCH($C15,'Efficiency Distributions'!$C$9:$C$87,0)+RIGHT($E19),0)\n+Y$11*OFFSET('Efficiency Distributions'!$E$10,MATCH($C15,'Efficiency Distributions'!$C$9:$C$87,0)+RIGHT($E19),0))\n/SUM(Y$10:Y$11)","v":0.29697116760706943},{"$f":"IF(INDEX(PC_MAPPING,RIGHT($C15,1),MATCH($E$2,'Data by Building Type'!$D$22:$F$22,0))=\"Yes\",1,0)*\n(Z$10*OFFSET('Efficiency Distributions'!$D$10,MATCH($C15,'Efficiency Distributions'!$C$9:$C$87,0)+RIGHT($E19),0)\n+Z$11*OFFSET('Efficiency Distributions'!$E$10,MATCH($C15,'Efficiency Distributions'!$C$9:$C$87,0)+RIGHT($E19),0))\n/SUM(Z$10:Z$11)","v":0.29686100710638597},{"$f":"IF(INDEX(PC_MAPPING,RIGHT($C15,1),MATCH($E$2,'Data by Building Type'!$D$22:$F$22,0))=\"Yes\",1,0)*\n(AA$10*OFFSET('Efficiency Distributions'!$D$10,MATCH($C15,'Efficiency Distributions'!$C$9:$C$87,0)+RIGHT($E19),0)\n+AA$11*OFFSET('Efficiency Distributions'!$E$10,MATCH($C15,'Efficiency Distributions'!$C$9:$C$87,0)+RIGHT($E19),0))\n/SUM(AA$10:AA$11)","v":0.29787159760461535},{"$f":"IF(INDEX(PC_MAPPING,RIGHT($C15,1),MATCH($E$2,'Data by Building Type'!$D$22:$F$22,0))=\"Yes\",1,0)*\n(AB$10*OFFSET('Efficiency Distributions'!$D$10,MATCH($C15,'Efficiency Distributions'!$C$9:$C$87,0)+RIGHT($E19),0)\n+AB$11*OFFSET('Efficiency Distributions'!$E$10,MATCH($C15,'Efficiency Distributions'!$C$9:$C$87,0)+RIGHT($E19),0))\n/SUM(AB$10:AB$11)","v":0.30362937871021783},{"$f":"IF(INDEX(PC_MAPPING,RIGHT($C15,1),MATCH($E$2,'Data by Building Type'!$D$22:$F$22,0))=\"Yes\",1,0)*\n(AC$10*OFFSET('Efficiency Distributions'!$D$10,MATCH($C15,'Efficiency Distributions'!$C$9:$C$87,0)+RIGHT($E19),0)\n+AC$11*OFFSET('Efficiency Distributions'!$E$10,MATCH($C15,'Efficiency Distributions'!$C$9:$C$87,0)+RIGHT($E19),0))\n/SUM(AC$10:AC$11)","v":0.30322717108548497},{"$f":"IF(INDEX(PC_MAPPING,RIGHT($C15,1),MATCH($E$2,'Data by Building Type'!$D$22:$F$22,0))=\"Yes\",1,0)*\n(AD$10*OFFSET('Efficiency Distributions'!$D$10,MATCH($C15,'Efficiency Distributions'!$C$9:$C$87,0)+RIGHT($E19),0)\n+AD$11*OFFSET('Efficiency Distributions'!$E$10,MATCH($C15,'Efficiency Distributions'!$C$9:$C$87,0)+RIGHT($E19),0))\n/SUM(AD$10:AD$11)","v":0.30818425153972884},{"$f":"IF(INDEX(PC_MAPPING,RIGHT($C15,1),MATCH($E$2,'Data by Building Type'!$D$22:$F$22,0))=\"Yes\",1,0)*\n(AE$10*OFFSET('Efficiency Distributions'!$D$10,MATCH($C15,'Efficiency Distributions'!$C$9:$C$87,0)+RIGHT($E19),0)\n+AE$11*OFFSET('Efficiency Distributions'!$E$10,MATCH($C15,'Efficiency Distributions'!$C$9:$C$87,0)+RIGHT($E19),0))\n/SUM(AE$10:AE$11)","v":0.30066092996975968},{"$f":"IF(INDEX(PC_MAPPING,RIGHT($C15,1),MATCH($E$2,'Data by Building Type'!$D$22:$F$22,0))=\"Yes\",1,0)*\n(AF$10*OFFSET('Efficiency Distributions'!$D$10,MATCH($C15,'Efficiency Distributions'!$C$9:$C$87,0)+RIGHT($E19),0)\n+AF$11*OFFSET('Efficiency Distributions'!$E$10,MATCH($C15,'Efficiency Distributions'!$C$9:$C$87,0)+RIGHT($E19),0))\n/SUM(AF$10:AF$11)","v":0.28404264808253765},{"$f":"IF(INDEX(PC_MAPPING,RIGHT($C15,1),MATCH($E$2,'Data by Building Type'!$D$22:$F$22,0))=\"Yes\",1,0)*\n(AG$10*OFFSET('Efficiency Distributions'!$D$10,MATCH($C15,'Efficiency Distributions'!$C$9:$C$87,0)+RIGHT($E19),0)\n+AG$11*OFFSET('Efficiency Distributions'!$E$10,MATCH($C15,'Efficiency Distributions'!$C$9:$C$87,0)+RIGHT($E19),0))\n/SUM(AG$10:AG$11)","v":0.27694754619127304},{"$f":"IF(INDEX(PC_MAPPING,RIGHT($C15,1),MATCH($E$2,'Data by Building Type'!$D$22:$F$22,0))=\"Yes\",1,0)*\n(AH$10*OFFSET('Efficiency Distributions'!$D$10,MATCH($C15,'Efficiency Distributions'!$C$9:$C$87,0)+RIGHT($E19),0)\n+AH$11*OFFSET('Efficiency Distributions'!$E$10,MATCH($C15,'Efficiency Distributions'!$C$9:$C$87,0)+RIGHT($E19),0))\n/SUM(AH$10:AH$11)","v":0.27694754619127304},{"$f":"IF(INDEX(PC_MAPPING,RIGHT($C15,1),MATCH($E$2,'Data by Building Type'!$D$22:$F$22,0))=\"Yes\",1,0)*\n(AI$10*OFFSET('Efficiency Distributions'!$D$10,MATCH($C15,'Efficiency Distributions'!$C$9:$C$87,0)+RIGHT($E19),0)\n+AI$11*OFFSET('Efficiency Distributions'!$E$10,MATCH($C15,'Efficiency Distributions'!$C$9:$C$87,0)+RIGHT($E19),0))\n/SUM(AI$10:AI$11)","v":0.27694754619127304},{"$f":"IF(INDEX(PC_MAPPING,RIGHT($C15,1),MATCH($E$2,'Data by Building Type'!$D$22:$F$22,0))=\"Yes\",1,0)*\n(AJ$10*OFFSET('Efficiency Distributions'!$D$10,MATCH($C15,'Efficiency Distributions'!$C$9:$C$87,0)+RIGHT($E19),0)\n+AJ$11*OFFSET('Efficiency Distributions'!$E$10,MATCH($C15,'Efficiency Distributions'!$C$9:$C$87,0)+RIGHT($E19),0))\n/SUM(AJ$10:AJ$11)","v":0.27990316662663933},{"$f":"IF(INDEX(PC_MAPPING,RIGHT($C15,1),MATCH($E$2,'Data by Building Type'!$D$22:$F$22,0))=\"Yes\",1,0)*\n(AK$10*OFFSET('Efficiency Distributions'!$D$10,MATCH($C15,'Efficiency Distributions'!$C$9:$C$87,0)+RIGHT($E19),0)\n+AK$11*OFFSET('Efficiency Distributions'!$E$10,MATCH($C15,'Efficiency Distributions'!$C$9:$C$87,0)+RIGHT($E19),0))\n/SUM(AK$10:AK$11)","v":0.32122754300591866},{"$f":"IF(INDEX(PC_MAPPING,RIGHT($C15,1),MATCH($E$2,'Data by Building Type'!$D$22:$F$22,0))=\"Yes\",1,0)*\n(AL$10*OFFSET('Efficiency Distributions'!$D$10,MATCH($C15,'Efficiency Distributions'!$C$9:$C$87,0)+RIGHT($E19),0)\n+AL$11*OFFSET('Efficiency Distributions'!$E$10,MATCH($C15,'Efficiency Distributions'!$C$9:$C$87,0)+RIGHT($E19),0))\n/SUM(AL$10:AL$11)","v":0.31999082853566402},{"$f":"IF(INDEX(PC_MAPPING,RIGHT($C15,1),MATCH($E$2,'Data by Building Type'!$D$22:$F$22,0))=\"Yes\",1,0)*\n(AM$10*OFFSET('Efficiency Distributions'!$D$10,MATCH($C15,'Efficiency Distributions'!$C$9:$C$87,0)+RIGHT($E19),0)\n+AM$11*OFFSET('Efficiency Distributions'!$E$10,MATCH($C15,'Efficiency Distributions'!$C$9:$C$87,0)+RIGHT($E19),0))\n/SUM(AM$10:AM$11)","v":0.32530397954413165},{"$f":"IF(INDEX(PC_MAPPING,RIGHT($C15,1),MATCH($E$2,'Data by Building Type'!$D$22:$F$22,0))=\"Yes\",1,0)*\n(AN$10*OFFSET('Efficiency Distributions'!$D$10,MATCH($C15,'Efficiency Distributions'!$C$9:$C$87,0)+RIGHT($E19),0)\n+AN$11*OFFSET('Efficiency Distributions'!$E$10,MATCH($C15,'Efficiency Distributions'!$C$9:$C$87,0)+RIGHT($E19),0))\n/SUM(AN$10:AN$11)","v":0.32487500707093964},{"$f":"IF(INDEX(PC_MAPPING,RIGHT($C15,1),MATCH($E$2,'Data by Building Type'!$D$22:$F$22,0))=\"Yes\",1,0)*\n(AO$10*OFFSET('Efficiency Distributions'!$D$10,MATCH($C15,'Efficiency Distributions'!$C$9:$C$87,0)+RIGHT($E19),0)\n+AO$11*OFFSET('Efficiency Distributions'!$E$10,MATCH($C15,'Efficiency Distributions'!$C$9:$C$87,0)+RIGHT($E19),0))\n/SUM(AO$10:AO$11)","v":0.32695685693299376},{"$f":"IF(INDEX(PC_MAPPING,RIGHT($C15,1),MATCH($E$2,'Data by Building Type'!$D$22:$F$22,0))=\"Yes\",1,0)*\n(AP$10*OFFSET('Efficiency Distributions'!$D$10,MATCH($C15,'Efficiency Distributions'!$C$9:$C$87,0)+RIGHT($E19),0)\n+AP$11*OFFSET('Efficiency Distributions'!$E$10,MATCH($C15,'Efficiency Distributions'!$C$9:$C$87,0)+RIGHT($E19),0))\n/SUM(AP$10:AP$11)","v":0.32604098891926375},{"$f":"IF(INDEX(PC_MAPPING,RIGHT($C15,1),MATCH($E$2,'Data by Building Type'!$D$22:$F$22,0))=\"Yes\",1,0)*\n(AQ$10*OFFSET('Efficiency Distributions'!$D$10,MATCH($C15,'Efficiency Distributions'!$C$9:$C$87,0)+RIGHT($E19),0)\n+AQ$11*OFFSET('Efficiency Distributions'!$E$10,MATCH($C15,'Efficiency Distributions'!$C$9:$C$87,0)+RIGHT($E19),0))\n/SUM(AQ$10:AQ$11)","v":0.32572995746568312},{"$f":"IF(INDEX(PC_MAPPING,RIGHT($C15,1),MATCH($E$2,'Data by Building Type'!$D$22:$F$22,0))=\"Yes\",1,0)*\n(AR$10*OFFSET('Efficiency Distributions'!$D$10,MATCH($C15,'Efficiency Distributions'!$C$9:$C$87,0)+RIGHT($E19),0)\n+AR$11*OFFSET('Efficiency Distributions'!$E$10,MATCH($C15,'Efficiency Distributions'!$C$9:$C$87,0)+RIGHT($E19),0))\n/SUM(AR$10:AR$11)","v":0.32475098187970941},{"$f":"IF(INDEX(PC_MAPPING,RIGHT($C15,1),MATCH($E$2,'Data by Building Type'!$D$22:$F$22,0))=\"Yes\",1,0)*\n(AS$10*OFFSET('Efficiency Distributions'!$D$10,MATCH($C15,'Efficiency Distributions'!$C$9:$C$87,0)+RIGHT($E19),0)\n+AS$11*OFFSET('Efficiency Distributions'!$E$10,MATCH($C15,'Efficiency Distributions'!$C$9:$C$87,0)+RIGHT($E19),0))\n/SUM(AS$10:AS$11)","v":0.32476398458171551},{"$f":"IF(INDEX(PC_MAPPING,RIGHT($C15,1),MATCH($E$2,'Data by Building Type'!$D$22:$F$22,0))=\"Yes\",1,0)*\n(AT$10*OFFSET('Efficiency Distributions'!$D$10,MATCH($C15,'Efficiency Distributions'!$C$9:$C$87,0)+RIGHT($E19),0)\n+AT$11*OFFSET('Efficiency Distributions'!$E$10,MATCH($C15,'Efficiency Distributions'!$C$9:$C$87,0)+RIGHT($E19),0))\n/SUM(AT$10:AT$11)","v":0.32528287880235673},{"$f":"IF(INDEX(PC_MAPPING,RIGHT($C15,1),MATCH($E$2,'Data by Building Type'!$D$22:$F$22,0))=\"Yes\",1,0)*\n(AU$10*OFFSET('Efficiency Distributions'!$D$10,MATCH($C15,'Efficiency Distributions'!$C$9:$C$87,0)+RIGHT($E19),0)\n+AU$11*OFFSET('Efficiency Distributions'!$E$10,MATCH($C15,'Efficiency Distributions'!$C$9:$C$87,0)+RIGHT($E19),0))\n/SUM(AU$10:AU$11)","v":0.32467351901543839},{"$f":"IF(INDEX(PC_MAPPING,RIGHT($C15,1),MATCH($E$2,'Data by Building Type'!$D$22:$F$22,0))=\"Yes\",1,0)*\n(AV$10*OFFSET('Efficiency Distributions'!$D$10,MATCH($C15,'Efficiency Distributions'!$C$9:$C$87,0)+RIGHT($E19),0)\n+AV$11*OFFSET('Efficiency Distributions'!$E$10,MATCH($C15,'Efficiency Distributions'!$C$9:$C$87,0)+RIGHT($E19),0))\n/SUM(AV$10:AV$11)","v":0.31626448191644529},{"$f":"IF(INDEX(PC_MAPPING,RIGHT($C15,1),MATCH($E$2,'Data by Building Type'!$D$22:$F$22,0))=\"Yes\",1,0)*\n(AW$10*OFFSET('Efficiency Distributions'!$D$10,MATCH($C15,'Efficiency Distributions'!$C$9:$C$87,0)+RIGHT($E19),0)\n+AW$11*OFFSET('Efficiency Distributions'!$E$10,MATCH($C15,'Efficiency Distributions'!$C$9:$C$87,0)+RIGHT($E19),0))\n/SUM(AW$10:AW$11)","v":0.31676034637992367},{"$f":"IF(INDEX(PC_MAPPING,RIGHT($C15,1),MATCH($E$2,'Data by Building Type'!$D$22:$F$22,0))=\"Yes\",1,0)*\n(AX$10*OFFSET('Efficiency Distributions'!$D$10,MATCH($C15,'Efficiency Distributions'!$C$9:$C$87,0)+RIGHT($E19),0)\n+AX$11*OFFSET('Efficiency Distributions'!$E$10,MATCH($C15,'Efficiency Distributions'!$C$9:$C$87,0)+RIGHT($E19),0))\n/SUM(AX$10:AX$11)","v":0.31425752950802333},{"$f":"IF(INDEX(PC_MAPPING,RIGHT($C15,1),MATCH($E$2,'Data by Building Type'!$D$22:$F$22,0))=\"Yes\",1,0)*\n(AY$10*OFFSET('Efficiency Distributions'!$D$10,MATCH($C15,'Efficiency Distributions'!$C$9:$C$87,0)+RIGHT($E19),0)\n+AY$11*OFFSET('Efficiency Distributions'!$E$10,MATCH($C15,'Efficiency Distributions'!$C$9:$C$87,0)+RIGHT($E19),0))\n/SUM(AY$10:AY$11)","v":0.31349811875196193},{"$f":"IF(INDEX(PC_MAPPING,RIGHT($C15,1),MATCH($E$2,'Data by Building Type'!$D$22:$F$22,0))=\"Yes\",1,0)*\n(AZ$10*OFFSET('Efficiency Distributions'!$D$10,MATCH($C15,'Efficiency Distributions'!$C$9:$C$87,0)+RIGHT($E19),0)\n+AZ$11*OFFSET('Efficiency Distributions'!$E$10,MATCH($C15,'Efficiency Distributions'!$C$9:$C$87,0)+RIGHT($E19),0))\n/SUM(AZ$10:AZ$11)","v":0.31463750412964347},{"$f":"IF(INDEX(PC_MAPPING,RIGHT($C15,1),MATCH($E$2,'Data by Building Type'!$D$22:$F$22,0))=\"Yes\",1,0)*\n(BA$10*OFFSET('Efficiency Distributions'!$D$10,MATCH($C15,'Efficiency Distributions'!$C$9:$C$87,0)+RIGHT($E19),0)\n+BA$11*OFFSET('Efficiency Distributions'!$E$10,MATCH($C15,'Efficiency Distributions'!$C$9:$C$87,0)+RIGHT($E19),0))\n/SUM(BA$10:BA$11)","v":0.31638941642526142},{"$f":"IF(INDEX(PC_MAPPING,RIGHT($C15,1),MATCH($E$2,'Data by Building Type'!$D$22:$F$22,0))=\"Yes\",1,0)*\n(BB$10*OFFSET('Efficiency Distributions'!$D$10,MATCH($C15,'Efficiency Distributions'!$C$9:$C$87,0)+RIGHT($E19),0)\n+BB$11*OFFSET('Efficiency Distributions'!$E$10,MATCH($C15,'Efficiency Distributions'!$C$9:$C$87,0)+RIGHT($E19),0))\n/SUM(BB$10:BB$11)","v":0.32013824980611183},{"$f":"IF(INDEX(PC_MAPPING,RIGHT($C15,1),MATCH($E$2,'Data by Building Type'!$D$22:$F$22,0))=\"Yes\",1,0)*\n(BC$10*OFFSET('Efficiency Distributions'!$D$10,MATCH($C15,'Efficiency Distributions'!$C$9:$C$87,0)+RIGHT($E19),0)\n+BC$11*OFFSET('Efficiency Distributions'!$E$10,MATCH($C15,'Efficiency Distributions'!$C$9:$C$87,0)+RIGHT($E19),0))\n/SUM(BC$10:BC$11)","v":0.32089841181960549},{"$f":"IF(INDEX(PC_MAPPING,RIGHT($C15,1),MATCH($E$2,'Data by Building Type'!$D$22:$F$22,0))=\"Yes\",1,0)*\n(BD$10*OFFSET('Efficiency Distributions'!$D$10,MATCH($C15,'Efficiency Distributions'!$C$9:$C$87,0)+RIGHT($E19),0)\n+BD$11*OFFSET('Efficiency Distributions'!$E$10,MATCH($C15,'Efficiency Distributions'!$C$9:$C$87,0)+RIGHT($E19),0))\n/SUM(BD$10:BD$11)","v":0.31664466287198745},{"$f":"IF(INDEX(PC_MAPPING,RIGHT($C15,1),MATCH($E$2,'Data by Building Type'!$D$22:$F$22,0))=\"Yes\",1,0)*\n(BE$10*OFFSET('Efficiency Distributions'!$D$10,MATCH($C15,'Efficiency Distributions'!$C$9:$C$87,0)+RIGHT($E19),0)\n+BE$11*OFFSET('Efficiency Distributions'!$E$10,MATCH($C15,'Efficiency Distributions'!$C$9:$C$87,0)+RIGHT($E19),0))\n/SUM(BE$10:BE$11)","v":0.31367075862705451},{"$f":"IF(INDEX(PC_MAPPING,RIGHT($C15,1),MATCH($E$2,'Data by Building Type'!$D$22:$F$22,0))=\"Yes\",1,0)*\n(BF$10*OFFSET('Efficiency Distributions'!$D$10,MATCH($C15,'Efficiency Distributions'!$C$9:$C$87,0)+RIGHT($E19),0)\n+BF$11*OFFSET('Efficiency Distributions'!$E$10,MATCH($C15,'Efficiency Distributions'!$C$9:$C$87,0)+RIGHT($E19),0))\n/SUM(BF$10:BF$11)","v":0.30775929130465601},{"$f":"IF(INDEX(PC_MAPPING,RIGHT($C15,1),MATCH($E$2,'Data by Building Type'!$D$22:$F$22,0))=\"Yes\",1,0)*\n(BG$10*OFFSET('Efficiency Distributions'!$D$10,MATCH($C15,'Efficiency Distributions'!$C$9:$C$87,0)+RIGHT($E19),0)\n+BG$11*OFFSET('Efficiency Distributions'!$E$10,MATCH($C15,'Efficiency Distributions'!$C$9:$C$87,0)+RIGHT($E19),0))\n/SUM(BG$10:BG$11)","v":0.30666558607672789}]
[null,null,null,null,"EL1",{"$f":"IF(INDEX(PC_MAPPING,RIGHT($C15,1),MATCH($E$2,'Data by Building Type'!$D$22:$F$22,0))=\"Yes\",1,0)*\n(F$10*OFFSET('Efficiency Distributions'!$D$10,MATCH($C15,'Efficiency Distributions'!$C$9:$C$87,0)+RIGHT($E20),0)\n+F$11*OFFSET('Efficiency Distributions'!$E$10,MATCH($C15,'Efficiency Distributions'!$C$9:$C$87,0)+RIGHT($E20),0))\n/SUM(F$10:F$11)","v":0.42449727985676311},{"$f":"IF(INDEX(PC_MAPPING,RIGHT($C15,1),MATCH($E$2,'Data by Building Type'!$D$22:$F$22,0))=\"Yes\",1,0)*\n(G$10*OFFSET('Efficiency Distributions'!$D$10,MATCH($C15,'Efficiency Distributions'!$C$9:$C$87,0)+RIGHT($E20),0)\n+G$11*OFFSET('Efficiency Distributions'!$E$10,MATCH($C15,'Efficiency Distributions'!$C$9:$C$87,0)+RIGHT($E20),0))\n/SUM(G$10:G$11)","v":0.42209956096626966},{"$f":"IF(INDEX(PC_MAPPING,RIGHT($C15,1),MATCH($E$2,'Data by Building Type'!$D$22:$F$22,0))=\"Yes\",1,0)*\n(H$10*OFFSET('Efficiency Distributions'!$D$10,MATCH($C15,'Efficiency Distributions'!$C$9:$C$87,0)+RIGHT($E20),0)\n+H$11*OFFSET('Efficiency Distributions'!$E$10,MATCH($C15,'Efficiency Distributions'!$C$9:$C$87,0)+RIGHT($E20),0))\n/SUM(H$10:H$11)","v":0.42496782603999039},{"$f":"IF(INDEX(PC_MAPPING,RIGHT($C15,1),MATCH($E$2,'Data by Building Type'!$D$22:$F$22,0))=\"Yes\",1,0)*\n(I$10*OFFSET('Efficiency Distributions'!$D$10,MATCH($C15,'Efficiency Distributions'!$C$9:$C$87,0)+RIGHT($E20),0)\n+I$11*OFFSET('Efficiency Distributions'!$E$10,MATCH($C15,'Efficiency Distributions'!$C$9:$C$87,0)+RIGHT($E20),0))\n/SUM(I$10:I$11)","v":0.42443287933792634},{"$f":"IF(INDEX(PC_MAPPING,RIGHT($C15,1),MATCH($E$2,'Data by Building Type'!$D$22:$F$22,0))=\"Yes\",1,0)*\n(J$10*OFFSET('Efficiency Distributions'!$D$10,MATCH($C15,'Efficiency Distributions'!$C$9:$C$87,0)+RIGHT($E20),0)\n+J$11*OFFSET('Efficiency Distributions'!$E$10,MATCH($C15,'Efficiency Distributions'!$C$9:$C$87,0)+RIGHT($E20),0))\n/SUM(J$10:J$11)","v":0.4241016679464385},{"$f":"IF(INDEX(PC_MAPPING,RIGHT($C15,1),MATCH($E$2,'Data by Building Type'!$D$22:$F$22,0))=\"Yes\",1,0)*\n(K$10*OFFSET('Efficiency Distributions'!$D$10,MATCH($C15,'Efficiency Distributions'!$C$9:$C$87,0)+RIGHT($E20),0)\n+K$11*OFFSET('Efficiency Distributions'!$E$10,MATCH($C15,'Efficiency Distributions'!$C$9:$C$87,0)+RIGHT($E20),0))\n/SUM(K$10:K$11)","v":0.42464840646173335},{"$f":"IF(INDEX(PC_MAPPING,RIGHT($C15,1),MATCH($E$2,'Data by Building Type'!$D$22:$F$22,0))=\"Yes\",1,0)*\n(L$10*OFFSET('Efficiency Distributions'!$D$10,MATCH($C15,'Efficiency Distributions'!$C$9:$C$87,0)+RIGHT($E20),0)\n+L$11*OFFSET('Efficiency Distributions'!$E$10,MATCH($C15,'Efficiency Distributions'!$C$9:$C$87,0)+RIGHT($E20),0))\n/SUM(L$10:L$11)","v":0.42469142348982225},{"$f":"IF(INDEX(PC_MAPPING,RIGHT($C15,1),MATCH($E$2,'Data by Building Type'!$D$22:$F$22,0))=\"Yes\",1,0)*\n(M$10*OFFSET('Efficiency Distributions'!$D$10,MATCH($C15,'Efficiency Distributions'!$C$9:$C$87,0)+RIGHT($E20),0)\n+M$11*OFFSET('Efficiency Distributions'!$E$10,MATCH($C15,'Efficiency Distributions'!$C$9:$C$87,0)+RIGHT($E20),0))\n/SUM(M$10:M$11)","v":0.42542395940768046},{"$f":"IF(INDEX(PC_MAPPING,RIGHT($C15,1),MATCH($E$2,'Data by Building Type'!$D$22:$F$22,0))=\"Yes\",1,0)*\n(N$10*OFFSET('Efficiency Distributions'!$D$10,MATCH($C15,'Efficiency Distributions'!$C$9:$C$87,0)+RIGHT($E20),0)\n+N$11*OFFSET('Efficiency Distributions'!$E$10,MATCH($C15,'Efficiency Distributions'!$C$9:$C$87,0)+RIGHT($E20),0))\n/SUM(N$10:N$11)","v":0.4270955367115265},{"$f":"IF(INDEX(PC_MAPPING,RIGHT($C15,1),MATCH($E$2,'Data by Building Type'!$D$22:$F$22,0))=\"Yes\",1,0)*\n(O$10*OFFSET('Efficiency Distributions'!$D$10,MATCH($C15,'Efficiency Distributions'!$C$9:$C$87,0)+RIGHT($E20),0)\n+O$11*OFFSET('Efficiency Distributions'!$E$10,MATCH($C15,'Efficiency Distributions'!$C$9:$C$87,0)+RIGHT($E20),0))\n/SUM(O$10:O$11)","v":0.42823463519643956},{"$f":"IF(INDEX(PC_MAPPING,RIGHT($C15,1),MATCH($E$2,'Data by Building Type'!$D$22:$F$22,0))=\"Yes\",1,0)*\n(P$10*OFFSET('Efficiency Distributions'!$D$10,MATCH($C15,'Efficiency Distributions'!$C$9:$C$87,0)+RIGHT($E20),0)\n+P$11*OFFSET('Efficiency Distributions'!$E$10,MATCH($C15,'Efficiency Distributions'!$C$9:$C$87,0)+RIGHT($E20),0))\n/SUM(P$10:P$11)","v":0.42707337679717855},{"$f":"IF(INDEX(PC_MAPPING,RIGHT($C15,1),MATCH($E$2,'Data by Building Type'!$D$22:$F$22,0))=\"Yes\",1,0)*\n(Q$10*OFFSET('Efficiency Distributions'!$D$10,MATCH($C15,'Efficiency Distributions'!$C$9:$C$87,0)+RIGHT($E20),0)\n+Q$11*OFFSET('Efficiency Distributions'!$E$10,MATCH($C15,'Efficiency Distributions'!$C$9:$C$87,0)+RIGHT($E20),0))\n/SUM(Q$10:Q$11)","v":0.42898335613471322},{"$f":"IF(INDEX(PC_MAPPING,RIGHT($C15,1),MATCH($E$2,'Data by Building Type'!$D$22:$F$22,0))=\"Yes\",1,0)*\n(R$10*OFFSET('Efficiency Distributions'!$D$10,MATCH($C15,'Efficiency Distributions'!$C$9:$C$87,0)+RIGHT($E20),0)\n+R$11*OFFSET('Efficiency Distributions'!$E$10,MATCH($C15,'Efficiency Distributions'!$C$9:$C$87,0)+RIGHT($E20),0))\n/SUM(R$10:R$11)","v":0.42373679287146615},{"$f":"IF(INDEX(PC_MAPPING,RIGHT($C15,1),MATCH($E$2,'Data by Building Type'!$D$22:$F$22,0))=\"Yes\",1,0)*\n(S$10*OFFSET('Efficiency Distributions'!$D$10,MATCH($C15,'Efficiency Distributions'!$C$9:$C$87,0)+RIGHT($E20),0)\n+S$11*OFFSET('Efficiency Distributions'!$E$10,MATCH($C15,'Efficiency Distributions'!$C$9:$C$87,0)+RIGHT($E20),0))\n/SUM(S$10:S$11)","v":0.42426522126796601},{"$f":"IF(INDEX(PC_MAPPING,RIGHT($C15,1),MATCH($E$2,'Data by Building Type'!$D$22:$F$22,0))=\"Yes\",1,0)*\n(T$10*OFFSET('Efficiency Distributions'!$D$10,MATCH($C15,'Efficiency Distributions'!$C$9:$C$87,0)+RIGHT($E20),0)\n+T$11*OFFSET('Efficiency Distributions'!$E$10,MATCH($C15,'Efficiency Distributions'!$C$9:$C$87,0)+RIGHT($E20),0))\n/SUM(T$10:T$11)","v":0.4223181138348146},{"$f":"IF(INDEX(PC_MAPPING,RIGHT($C15,1),MATCH($E$2,'Data by Building Type'!$D$22:$F$22,0))=\"Yes\",1,0)*\n(U$10*OFFSET('Efficiency Distributions'!$D$10,MATCH($C15,'Efficiency Distributions'!$C$9:$C$87,0)+RIGHT($E20),0)\n+U$11*OFFSET('Efficiency Distributions'!$E$10,MATCH($C15,'Efficiency Distributions'!$C$9:$C$87,0)+RIGHT($E20),0))\n/SUM(U$10:U$11)","v":0.42259862108907204},{"$f":"IF(INDEX(PC_MAPPING,RIGHT($C15,1),MATCH($E$2,'Data by Building Type'!$D$22:$F$22,0))=\"Yes\",1,0)*\n(V$10*OFFSET('Efficiency Distributions'!$D$10,MATCH($C15,'Efficiency Distributions'!$C$9:$C$87,0)+RIGHT($E20),0)\n+V$11*OFFSET('Efficiency Distributions'!$E$10,MATCH($C15,'Efficiency Distributions'!$C$9:$C$87,0)+RIGHT($E20),0))\n/SUM(V$10:V$11)","v":0.42218376143853548},{"$f":"IF(INDEX(PC_MAPPING,RIGHT($C15,1),MATCH($E$2,'Data by Building Type'!$D$22:$F$22,0))=\"Yes\",1,0)*\n(W$10*OFFSET('Efficiency Distributions'!$D$10,MATCH($C15,'Efficiency Distributions'!$C$9:$C$87,0)+RIGHT($E20),0)\n+W$11*OFFSET('Efficiency Distributions'!$E$10,MATCH($C15,'Efficiency Distributions'!$C$9:$C$87,0)+RIGHT($E20),0))\n/SUM(W$10:W$11)","v":0.42238269009024937},{"$f":"IF(INDEX(PC_MAPPING,RIGHT($C15,1),MATCH($E$2,'Data by Building Type'!$D$22:$F$22,0))=\"Yes\",1,0)*\n(X$10*OFFSET('Efficiency Distributions'!$D$10,MATCH($C15,'Efficiency Distributions'!$C$9:$C$87,0)+RIGHT($E20),0)\n+X$11*OFFSET('Efficiency Distributions'!$E$10,MATCH($C15,'Efficiency Distributions'!$C$9:$C$87,0)+RIGHT($E20),0))\n/SUM(X$10:X$11)","v":0.42174408310953349},{"$f":"IF(INDEX(PC_MAPPING,RIGHT($C15,1),MATCH($E$2,'Data by Building Type'!$D$22:$F$22,0))=\"Yes\",1,0)*\n(Y$10*OFFSET('Efficiency Distributions'!$D$10,MATCH($C15,'Efficiency Distributions'!$C$9:$C$87,0)+RIGHT($E20),0)\n+Y$11*OFFSET('Efficiency Distributions'!$E$10,MATCH($C15,'Efficiency Distributions'!$C$9:$C$87,0)+RIGHT($E20),0))\n/SUM(Y$10:Y$11)","v":0.42019038334229891},{"$f":"IF(INDEX(PC_MAPPING,RIGHT($C15,1),MATCH($E$2,'Data by Building Type'!$D$22:$F$22,0))=\"Yes\",1,0)*\n(Z$10*OFFSET('Efficiency Distributions'!$D$10,MATCH($C15,'Efficiency Distributions'!$C$9:$C$87,0)+RIGHT($E20),0)\n+Z$11*OFFSET('Efficiency Distributions'!$E$10,MATCH($C15,'Efficiency Distributions'!$C$9:$C$87,0)+RIGHT($E20),0))\n/SUM(Z$10:Z$11)","v":0.42016414620600756},{"$f":"IF(INDEX(PC_MAPPING,RIGHT($C15,1),MATCH($E$2,'Data by Building Type'!$D$22:$F$22,0))=\"Yes\",1,0)*\n(AA$10*OFFSET('Efficiency Distributions'!$D$10,MATCH($C15,'Efficiency Distributions'!$C$9:$C$87,0)+RIGHT($E20),0)\n+AA$11*OFFSET('Efficiency Distributions'!$E$10,MATCH($C15,'Efficiency Distributions'!$C$9:$C$87,0)+RIGHT($E20),0))\n/SUM(AA$10:AA$11)","v":0.42040484047003424},{"$f":"IF(INDEX(PC_MAPPING,RIGHT($C15,1),MATCH($E$2,'Data by Building Type'!$D$22:$F$22,0))=\"Yes\",1,0)*\n(AB$10*OFFSET('Efficiency Distributions'!$D$10,MATCH($C15,'Efficiency Distributions'!$C$9:$C$87,0)+RIGHT($E20),0)\n+AB$11*OFFSET('Efficiency Distributions'!$E$10,MATCH($C15,'Efficiency Distributions'!$C$9:$C$87,0)+RIGHT($E20),0))\n/SUM(AB$10:AB$11)","v":0.42177618216389318},{"$f":"IF(INDEX(PC_MAPPING,RIGHT($C15,1),MATCH($E$2,'Data by Building Type'!$D$22:$F$22,0))=\"Yes\",1,0)*\n(AC$10*OFFSET('Efficiency Distributions'!$D$10,MATCH($C15,'Efficiency Distributions'!$C$9:$C$87,0)+RIGHT($E20),0)\n+AC$11*OFFSET('Efficiency Distributions'!$E$10,MATCH($C15,'Efficiency Distributions'!$C$9:$C$87,0)+RIGHT($E20),0))\n/SUM(AC$10:AC$11)","v":0.42168038760774945},{"$f":"IF(INDEX(PC_MAPPING,RIGHT($C15,1),MATCH($E$2,'Data by Building Type'!$D$22:$F$22,0))=\"Yes\",1,0)*\n(AD$10*OFFSET('Efficiency Distributions'!$D$10,MATCH($C15,'Efficiency Distributions'!$C$9:$C$87,0)+RIGHT($E20),0)\n+AD$11*OFFSET('Efficiency Distributions'!$E$10,MATCH($C15,'Efficiency Distributions'!$C$9:$C$87,0)+RIGHT($E20),0))\n/SUM(AD$10:AD$11)","v":0.42286102490222793},{"$f":"IF(INDEX(PC_MAPPING,RIGHT($C15,1),MATCH($E$2,'Data by Building Type'!$D$22:$F$22,0))=\"Yes\",1,0)*\n(AE$10*OFFSET('Efficiency Distributions'!$D$10,MATCH($C15,'Efficiency Distributions'!$C$9:$C$87,0)+RIGHT($E20),0)\n+AE$11*OFFSET('Efficiency Distributions'!$E$10,MATCH($C15,'Efficiency Distributions'!$C$9:$C$87,0)+RIGHT($E20),0))\n/SUM(AE$10:AE$11)","v":0.42106918107281099},{"$f":"IF(INDEX(PC_MAPPING,RIGHT($C15,1),MATCH($E$2,'Data by Building Type'!$D$22:$F$22,0))=\"Yes\",1,0)*\n(AF$10*OFFSET('Efficiency Distributions'!$D$10,MATCH($C15,'Efficiency Distributions'!$C$9:$C$87,0)+RIGHT($E20),0)\n+AF$11*OFFSET('Efficiency Distributions'!$E$10,MATCH($C15,'Efficiency Distributions'!$C$9:$C$87,0)+RIGHT($E20),0))\n/SUM(AF$10:AF$11)","v":0.41711117321973817},{"$f":"IF(INDEX(PC_MAPPING,RIGHT($C15,1),MATCH($E$2,'Data by Building Type'!$D$22:$F$22,0))=\"Yes\",1,0)*\n(AG$10*OFFSET('Efficiency Distributions'!$D$10,MATCH($C15,'Efficiency Distributions'!$C$9:$C$87,0)+RIGHT($E20),0)\n+AG$11*OFFSET('Efficiency Distributions'!$E$10,MATCH($C15,'Efficiency Distributions'!$C$9:$C$87,0)+RIGHT($E20),0))\n/SUM(AG$10:AG$11)","v":0.41542131928690951},{"$f":"IF(INDEX(PC_MAPPING,RIGHT($C15,1),MATCH($E$2,'Data by Building Type'!$D$22:$F$22,0))=\"Yes\",1,0)*\n(AH$10*OFFSET('Efficiency Distributions'!$D$10,MATCH($C15,'Efficiency Distributions'!$C$9:$C$87,0)+RIGHT($E20),0)\n+AH$11*OFFSET('Efficiency Distributions'!$E$10,MATCH($C15,'Efficiency Distributions'!$C$9:$C$87,0)+RIGHT($E20),0))\n/SUM(AH$10:AH$11)","v":0.41542131928690951},{"$f":"IF(INDEX(PC_MAPPING,RIGHT($C15,1),MATCH($E$2,'Data by Building Type'!$D$22:$F$22,0))=\"Yes\",1,0)*\n(AI$10*OFFSET('Efficiency Distributions'!$D$10,MATCH($C15,'Efficiency Distributions'!$C$9:$C$87,0)+RIGHT($E20),0)\n+AI$11*OFFSET('Efficiency Distributions'!$E$10,MATCH($C15,'Efficiency Distributions'!$C$9:$C$87,0)+RIGHT($E20),0))\n/SUM(AI$10:AI$11)","v":0.41542131928690951},{"$f":"IF(INDEX(PC_MAPPING,RIGHT($C15,1),MATCH($E$2,'Data by Building Type'!$D$22:$F$22,0))=\"Yes\",1,0)*\n(AJ$10*OFFSET('Efficiency Distributions'!$D$10,MATCH($C15,'Efficiency Distributions'!$C$9:$C$87,0)+RIGHT($E20),0)\n+AJ$11*OFFSET('Efficiency Distributions'!$E$10,MATCH($C15,'Efficiency Distributions'!$C$9:$C$87,0)+RIGHT($E20),0))\n/SUM(AJ$10:AJ$11)","v":0.41612526503613151},{"$f":"IF(INDEX(PC_MAPPING,RIGHT($C15,1),MATCH($E$2,'Data by Building Type'!$D$22:$F$22,0))=\"Yes\",1,0)*\n(AK$10*OFFSET('Efficiency Distributions'!$D$10,MATCH($C15,'Efficiency Distributions'!$C$9:$C$87,0)+RIGHT($E20),0)\n+AK$11*OFFSET('Efficiency Distributions'!$E$10,MATCH($C15,'Efficiency Distributions'!$C$9:$C$87,0)+RIGHT($E20),0))\n/SUM(AK$10:AK$11)","v":0.42596757047676126},{"$f":"IF(INDEX(PC_MAPPING,RIGHT($C15,1),MATCH($E$2,'Data by Building Type'!$D$22:$F$22,0))=\"Yes\",1,0)*\n(AL$10*OFFSET('Efficiency Distributions'!$D$10,MATCH($C15,'Efficiency Distributions'!$C$9:$C$87,0)+RIGHT($E20),0)\n+AL$11*OFFSET('Efficiency Distributions'!$E$10,MATCH($C15,'Efficiency Distributions'!$C$9:$C$87,0)+RIGHT($E20),0))\n/SUM(AL$10:AL$11)","v":0.42567301983557615},{"$f":"IF(INDEX(PC_MAPPING,RIGHT($C15,1),MATCH($E$2,'Data by Building Type'!$D$22:$F$22,0))=\"Yes\",1,0)*\n(AM$10*OFFSET('Efficiency Distributions'!$D$10,MATCH($C15,'Efficiency Distributions'!$C$9:$C$87,0)+RIGHT($E20),0)\n+AM$11*OFFSET('Efficiency Distributions'!$E$10,MATCH($C15,'Efficiency Distributions'!$C$9:$C$87,0)+RIGHT($E20),0))\n/SUM(AM$10:AM$11)","v":0.42693846313222927},{"$f":"IF(INDEX(PC_MAPPING,RIGHT($C15,1),MATCH($E$2,'Data by Building Type'!$D$22:$F$22,0))=\"Yes\",1,0)*\n(AN$10*OFFSET('Efficiency Distributions'!$D$10,MATCH($C15,'Efficiency Distributions'!$C$9:$C$87,0)+RIGHT($E20),0)\n+AN$11*OFFSET('Efficiency Distributions'!$E$10,MATCH($C15,'Efficiency Distributions'!$C$9:$C$87,0)+RIGHT($E20),0))\n/SUM(AN$10:AN$11)","v":0.42683629394114386},{"$f":"IF(INDEX(PC_MAPPING,RIGHT($C15,1),MATCH($E$2,'Data by Building Type'!$D$22:$F$22,0))=\"Yes\",1,0)*\n(AO$10*OFFSET('Efficiency Distributions'!$D$10,MATCH($C15,'Efficiency Distributions'!$C$9:$C$87,0)+RIGHT($E20),0)\n+AO$11*OFFSET('Efficiency Distributions'!$E$10,MATCH($C15,'Efficiency Distributions'!$C$9:$C$87,0)+RIGHT($E20),0))\n/SUM(AO$10:AO$11)","v":0.42733213208848358},{"$f":"IF(INDEX(PC_MAPPING,RIGHT($C15,1),MATCH($E$2,'Data by Building Type'!$D$22:$F$22,0))=\"Yes\",1,0)*\n(AP$10*OFFSET('Efficiency Distributions'!$D$10,MATCH($C15,'Efficiency Distributions'!$C$9:$C$87,0)+RIGHT($E20),0)\n+AP$11*OFFSET('Efficiency Distributions'!$E$10,MATCH($C15,'Efficiency Distributions'!$C$9:$C$87,0)+RIGHT($E20),0))\n/SUM(AP$10:AP$11)","v":0.427113998059026},{"$f":"IF(INDEX(PC_MAPPING,RIGHT($C15,1),MATCH($E$2,'Data by Building Type'!$D$22:$F$22,0))=\"Yes\",1,0)*\n(AQ$10*OFFSET('Efficiency Distributions'!$D$10,MATCH($C15,'Efficiency Distributions'!$C$9:$C$87,0)+RIGHT($E20),0)\n+AQ$11*OFFSET('Efficiency Distributions'!$E$10,MATCH($C15,'Efficiency Distributions'!$C$9:$C$87,0)+RIGHT($E20),0))\n/SUM(AQ$10:AQ$11)","v":0.42703991910524614},{"$f":"IF(INDEX(PC_MAPPING,RIGHT($C15,1),MATCH($E$2,'Data by Building Type'!$D$22:$F$22,0))=\"Yes\",1,0)*\n(AR$10*OFFSET('Efficiency Distributions'!$D$10,MATCH($C15,'Efficiency Distributions'!$C$9:$C$87,0)+RIGHT($E20),0)\n+AR$11*OFFSET('Efficiency Distributions'!$E$10,MATCH($C15,'Efficiency Distributions'!$C$9:$C$87,0)+RIGHT($E20),0))\n/SUM(AR$10:AR$11)","v":0.42680675462509421},{"$f":"IF(INDEX(PC_MAPPING,RIGHT($C15,1),MATCH($E$2,'Data by Building Type'!$D$22:$F$22,0))=\"Yes\",1,0)*\n(AS$10*OFFSET('Efficiency Distributions'!$D$10,MATCH($C15,'Efficiency Distributions'!$C$9:$C$87,0)+RIGHT($E20),0)\n+AS$11*OFFSET('Efficiency Distributions'!$E$10,MATCH($C15,'Efficiency Distributions'!$C$9:$C$87,0)+RIGHT($E20),0))\n/SUM(AS$10:AS$11)","v":0.42680985150339978},{"$f":"IF(INDEX(PC_MAPPING,RIGHT($C15,1),MATCH($E$2,'Data by Building Type'!$D$22:$F$22,0))=\"Yes\",1,0)*\n(AT$10*OFFSET('Efficiency Distributions'!$D$10,MATCH($C15,'Efficiency Distributions'!$C$9:$C$87,0)+RIGHT($E20),0)\n+AT$11*OFFSET('Efficiency Distributions'!$E$10,MATCH($C15,'Efficiency Distributions'!$C$9:$C$87,0)+RIGHT($E20),0))\n/SUM(AT$10:AT$11)","v":0.42693343752836616},{"$f":"IF(INDEX(PC_MAPPING,RIGHT($C15,1),MATCH($E$2,'Data by Building Type'!$D$22:$F$22,0))=\"Yes\",1,0)*\n(AU$10*OFFSET('Efficiency Distributions'!$D$10,MATCH($C15,'Efficiency Distributions'!$C$9:$C$87,0)+RIGHT($E20),0)\n+AU$11*OFFSET('Efficiency Distributions'!$E$10,MATCH($C15,'Efficiency Distributions'!$C$9:$C$87,0)+RIGHT($E20),0))\n/SUM(AU$10:AU$11)","v":0.42678830514715271},{"$f":"IF(INDEX(PC_MAPPING,RIGHT($C15,1),MATCH($E$2,'Data by Building Type'!$D$22:$F$22,0))=\"Yes\",1,0)*\n(AV$10*OFFSET('Efficiency Distributions'!$D$10,MATCH($C15,'Efficiency Distributions'!$C$9:$C$87,0)+RIGHT($E20),0)\n+AV$11*OFFSET('Efficiency Distributions'!$E$10,MATCH($C15,'Efficiency Distributions'!$C$9:$C$87,0)+RIGHT($E20),0))\n/SUM(AV$10:AV$11)","v":0.42478550876299775},{"$f":"IF(INDEX(PC_MAPPING,RIGHT($C15,1),MATCH($E$2,'Data by Building Type'!$D$22:$F$22,0))=\"Yes\",1,0)*\n(AW$10*OFFSET('Efficiency Distributions'!$D$10,MATCH($C15,'Efficiency Distributions'!$C$9:$C$87,0)+RIGHT($E20),0)\n+AW$11*OFFSET('Efficiency Distributions'!$E$10,MATCH($C15,'Efficiency Distributions'!$C$9:$C$87,0)+RIGHT($E20),0))\n/SUM(AW$10:AW$11)","v":0.42490360974683145},{"$f":"IF(INDEX(PC_MAPPING,RIGHT($C15,1),MATCH($E$2,'Data by Building Type'!$D$22:$F$22,0))=\"Yes\",1,0)*\n(AX$10*OFFSET('Efficiency Distributions'!$D$10,MATCH($C15,'Efficiency Distributions'!$C$9:$C$87,0)+RIGHT($E20),0)\n+AX$11*OFFSET('Efficiency Distributions'!$E$10,MATCH($C15,'Efficiency Distributions'!$C$9:$C$87,0)+RIGHT($E20),0))\n/SUM(AX$10:AX$11)","v":0.42430750908486092},{"$f":"IF(INDEX(PC_MAPPING,RIGHT($C15,1),MATCH($E$2,'Data by Building Type'!$D$22:$F$22,0))=\"Yes\",1,0)*\n(AY$10*OFFSET('Efficiency Distributions'!$D$10,MATCH($C15,'Efficiency Distributions'!$C$9:$C$87,0)+RIGHT($E20),0)\n+AY$11*OFFSET('Efficiency Distributions'!$E$10,MATCH($C15,'Efficiency Distributions'!$C$9:$C$87,0)+RIGHT($E20),0))\n/SUM(AY$10:AY$11)","v":0.4241266387784961},{"$f":"IF(INDEX(PC_MAPPING,RIGHT($C15,1),MATCH($E$2,'Data by Building Type'!$D$22:$F$22,0))=\"Yes\",1,0)*\n(AZ$10*OFFSET('Efficiency Distributions'!$D$10,MATCH($C15,'Efficiency Distributions'!$C$9:$C$87,0)+RIGHT($E20),0)\n+AZ$11*OFFSET('Efficiency Distributions'!$E$10,MATCH($C15,'Efficiency Distributions'!$C$9:$C$87,0)+RIGHT($E20),0))\n/SUM(AZ$10:AZ$11)","v":0.42439800836430197},{"$f":"IF(INDEX(PC_MAPPING,RIGHT($C15,1),MATCH($E$2,'Data by Building Type'!$D$22:$F$22,0))=\"Yes\",1,0)*\n(BA$10*OFFSET('Efficiency Distributions'!$D$10,MATCH($C15,'Efficiency Distributions'!$C$9:$C$87,0)+RIGHT($E20),0)\n+BA$11*OFFSET('Efficiency Distributions'!$E$10,MATCH($C15,'Efficiency Distributions'!$C$9:$C$87,0)+RIGHT($E20),0))\n/SUM(BA$10:BA$11)","v":0.42481526465294883},{"$f":"IF(INDEX(PC_MAPPING,RIGHT($C15,1),MATCH($E$2,'Data by Building Type'!$D$22:$F$22,0))=\"Yes\",1,0)*\n(BB$10*OFFSET('Efficiency Distributions'!$D$10,MATCH($C15,'Efficiency Distributions'!$C$9:$C$87,0)+RIGHT($E20),0)\n+BB$11*OFFSET('Efficiency Distributions'!$E$10,MATCH($C15,'Efficiency Distributions'!$C$9:$C$87,0)+RIGHT($E20),0))\n/SUM(BB$10:BB$11)","v":0.42570813144038},{"$f":"IF(INDEX(PC_MAPPING,RIGHT($C15,1),MATCH($E$2,'Data by Building Type'!$D$22:$F$22,0))=\"Yes\",1,0)*\n(BC$10*OFFSET('Efficiency Distributions'!$D$10,MATCH($C15,'Efficiency Distributions'!$C$9:$C$87,0)+RIGHT($E20),0)\n+BC$11*OFFSET('Efficiency Distributions'!$E$10,MATCH($C15,'Efficiency Distributions'!$C$9:$C$87,0)+RIGHT($E20),0))\n/SUM(BC$10:BC$11)","v":0.42588918067515852},{"$f":"IF(INDEX(PC_MAPPING,RIGHT($C15,1),MATCH($E$2,'Data by Building Type'!$D$22:$F$22,0))=\"Yes\",1,0)*\n(BD$10*OFFSET('Efficiency Distributions'!$D$10,MATCH($C15,'Efficiency Distributions'!$C$9:$C$87,0)+RIGHT($E20),0)\n+BD$11*OFFSET('Efficiency Distributions'!$E$10,MATCH($C15,'Efficiency Distributions'!$C$9:$C$87,0)+RIGHT($E20),0))\n/SUM(BD$10:BD$11)","v":0.42487605718538191},{"$f":"IF(INDEX(PC_MAPPING,RIGHT($C15,1),MATCH($E$2,'Data by Building Type'!$D$22:$F$22,0))=\"Yes\",1,0)*\n(BE$10*OFFSET('Efficiency Distributions'!$D$10,MATCH($C15,'Efficiency Distributions'!$C$9:$C$87,0)+RIGHT($E20),0)\n+BE$11*OFFSET('Efficiency Distributions'!$E$10,MATCH($C15,'Efficiency Distributions'!$C$9:$C$87,0)+RIGHT($E20),0))\n/SUM(BE$10:BE$11)","v":0.42416775674640694},{"$f":"IF(INDEX(PC_MAPPING,RIGHT($C15,1),MATCH($E$2,'Data by Building Type'!$D$22:$F$22,0))=\"Yes\",1,0)*\n(BF$10*OFFSET('Efficiency Distributions'!$D$10,MATCH($C15,'Efficiency Distributions'!$C$9:$C$87,0)+RIGHT($E20),0)\n+BF$11*OFFSET('Efficiency Distributions'!$E$10,MATCH($C15,'Efficiency Distributions'!$C$9:$C$87,0)+RIGHT($E20),0))\n/SUM(BF$10:BF$11)","v":0.42275981131353835},{"$f":"IF(INDEX(PC_MAPPING,RIGHT($C15,1),MATCH($E$2,'Data by Building Type'!$D$22:$F$22,0))=\"Yes\",1,0)*\n(BG$10*OFFSET('Efficiency Distributions'!$D$10,MATCH($C15,'Efficiency Distributions'!$C$9:$C$87,0)+RIGHT($E20),0)\n+BG$11*OFFSET('Efficiency Distributions'!$E$10,MATCH($C15,'Efficiency Distributions'!$C$9:$C$87,0)+RIGHT($E20),0))\n/SUM(BG$10:BG$11)","v":0.42249932145601488}]
[null,null,null,null,"EL2",{"$f":"IF(INDEX(PC_MAPPING,RIGHT($C15,1),MATCH($E$2,'Data by Building Type'!$D$22:$F$22,0))=\"Yes\",1,0)*\n(F$10*OFFSET('Efficiency Distributions'!$D$10,MATCH($C15,'Efficiency Distributions'!$C$9:$C$87,0)+RIGHT($E21),0)\n+F$11*OFFSET('Efficiency Distributions'!$E$10,MATCH($C15,'Efficiency Distributions'!$C$9:$C$87,0)+RIGHT($E21),0))\n/SUM(F$10:F$11)","v":0},{"$f":"IF(INDEX(PC_MAPPING,RIGHT($C15,1),MATCH($E$2,'Data by Building Type'!$D$22:$F$22,0))=\"Yes\",1,0)*\n(G$10*OFFSET('Efficiency Distributions'!$D$10,MATCH($C15,'Efficiency Distributions'!$C$9:$C$87,0)+RIGHT($E21),0)\n+G$11*OFFSET('Efficiency Distributions'!$E$10,MATCH($C15,'Efficiency Distributions'!$C$9:$C$87,0)+RIGHT($E21),0))\n/SUM(G$10:G$11)","v":0},{"$f":"IF(INDEX(PC_MAPPING,RIGHT($C15,1),MATCH($E$2,'Data by Building Type'!$D$22:$F$22,0))=\"Yes\",1,0)*\n(H$10*OFFSET('Efficiency Distributions'!$D$10,MATCH($C15,'Efficiency Distributions'!$C$9:$C$87,0)+RIGHT($E21),0)\n+H$11*OFFSET('Efficiency Distributions'!$E$10,MATCH($C15,'Efficiency Distributions'!$C$9:$C$87,0)+RIGHT($E21),0))\n/SUM(H$10:H$11)","v":0},{"$f":"IF(INDEX(PC_MAPPING,RIGHT($C15,1),MATCH($E$2,'Data by Building Type'!$D$22:$F$22,0))=\"Yes\",1,0)*\n(I$10*OFFSET('Efficiency Distributions'!$D$10,MATCH($C15,'Efficiency Distributions'!$C$9:$C$87,0)+RIGHT($E21),0)\n+I$11*OFFSET('Efficiency Distributions'!$E$10,MATCH($C15,'Efficiency Distributions'!$C$9:$C$87,0)+RIGHT($E21),0))\n/SUM(I$10:I$11)","v":0},{"$f":"IF(INDEX(PC_MAPPING,RIGHT($C15,1),MATCH($E$2,'Data by Building Type'!$D$22:$F$22,0))=\"Yes\",1,0)*\n(J$10*OFFSET('Efficiency Distributions'!$D$10,MATCH($C15,'Efficiency Distributions'!$C$9:$C$87,0)+RIGHT($E21),0)\n+J$11*OFFSET('Efficiency Distributions'!$E$10,MATCH($C15,'Efficiency Distributions'!$C$9:$C$87,0)+RIGHT($E21),0))\n/SUM(J$10:J$11)","v":0},{"$f":"IF(INDEX(PC_MAPPING,RIGHT($C15,1),MATCH($E$2,'Data by Building Type'!$D$22:$F$22,0))=\"Yes\",1,0)*\n(K$10*OFFSET('Efficiency Distributions'!$D$10,MATCH($C15,'Efficiency Distributions'!$C$9:$C$87,0)+RIGHT($E21),0)\n+K$11*OFFSET('Efficiency Distributions'!$E$10,MATCH($C15,'Efficiency Distributions'!$C$9:$C$87,0)+RIGHT($E21),0))\n/SUM(K$10:K$11)","v":0},{"$f":"IF(INDEX(PC_MAPPING,RIGHT($C15,1),MATCH($E$2,'Data by Building Type'!$D$22:$F$22,0))=\"Yes\",1,0)*\n(L$10*OFFSET('Efficiency Distributions'!$D$10,MATCH($C15,'Efficiency Distributions'!$C$9:$C$87,0)+RIGHT($E21),0)\n+L$11*OFFSET('Efficiency Distributions'!$E$10,MATCH($C15,'Efficiency Distributions'!$C$9:$C$87,0)+RIGHT($E21),0))\n/SUM(L$10:L$11)","v":0},{"$f":"IF(INDEX(PC_MAPPING,RIGHT($C15,1),MATCH($E$2,'Data by Building Type'!$D$22:$F$22,0))=\"Yes\",1,0)*\n(M$10*OFFSET('Efficiency Distributions'!$D$10,MATCH($C15,'Efficiency Distributions'!$C$9:$C$87,0)+RIGHT($E21),0)\n+M$11*OFFSET('Efficiency Distributions'!$E$10,MATCH($C15,'Efficiency Distributions'!$C$9:$C$87,0)+RIGHT($E21),0))\n/SUM(M$10:M$11)","v":0},{"$f":"IF(INDEX(PC_MAPPING,RIGHT($C15,1),MATCH($E$2,'Data by Building Type'!$D$22:$F$22,0))=\"Yes\",1,0)*\n(N$10*OFFSET('Efficiency Distributions'!$D$10,MATCH($C15,'Efficiency Distributions'!$C$9:$C$87,0)+RIGHT($E21),0)\n+N$11*OFFSET('Efficiency Distributions'!$E$10,MATCH($C15,'Efficiency Distributions'!$C$9:$C$87,0)+RIGHT($E21),0))\n/SUM(N$10:N$11)","v":0},{"$f":"IF(INDEX(PC_MAPPING,RIGHT($C15,1),MATCH($E$2,'Data by Building Type'!$D$22:$F$22,0))=\"Yes\",1,0)*\n(O$10*OFFSET('Efficiency Distributions'!$D$10,MATCH($C15,'Efficiency Distributions'!$C$9:$C$87,0)+RIGHT($E21),0)\n+O$11*OFFSET('Efficiency Distributions'!$E$10,MATCH($C15,'Efficiency Distributions'!$C$9:$C$87,0)+RIGHT($E21),0))\n/SUM(O$10:O$11)","v":0},{"$f":"IF(INDEX(PC_MAPPING,RIGHT($C15,1),MATCH($E$2,'Data by Building Type'!$D$22:$F$22,0))=\"Yes\",1,0)*\n(P$10*OFFSET('Efficiency Distributions'!$D$10,MATCH($C15,'Efficiency Distributions'!$C$9:$C$87,0)+RIGHT($E21),0)\n+P$11*OFFSET('Efficiency Distributions'!$E$10,MATCH($C15,'Efficiency Distributions'!$C$9:$C$87,0)+RIGHT($E21),0))\n/SUM(P$10:P$11)","v":0},{"$f":"IF(INDEX(PC_MAPPING,RIGHT($C15,1),MATCH($E$2,'Data by Building Type'!$D$22:$F$22,0))=\"Yes\",1,0)*\n(Q$10*OFFSET('Efficiency Distributions'!$D$10,MATCH($C15,'Efficiency Distributions'!$C$9:$C$87,0)+RIGHT($E21),0)\n+Q$11*OFFSET('Efficiency Distributions'!$E$10,MATCH($C15,'Efficiency Distributions'!$C$9:$C$87,0)+RIGHT($E21),0))\n/SUM(Q$10:Q$11)","v":0},{"$f":"IF(INDEX(PC_MAPPING,RIGHT($C15,1),MATCH($E$2,'Data by Building Type'!$D$22:$F$22,0))=\"Yes\",1,0)*\n(R$10*OFFSET('Efficiency Distributions'!$D$10,MATCH($C15,'Efficiency Distributions'!$C$9:$C$87,0)+RIGHT($E21),0)\n+R$11*OFFSET('Efficiency Distributions'!$E$10,MATCH($C15,'Efficiency Distributions'!$C$9:$C$87,0)+RIGHT($E21),0))\n/SUM(R$10:R$11)","v":0},{"$f":"IF(INDEX(PC_MAPPING,RIGHT($C15,1),MATCH($E$2,'Data by Building Type'!$D$22:$F$22,0))=\"Yes\",1,0)*\n(S$10*OFFSET('Efficiency Distributions'!$D$10,MATCH($C15,'Efficiency Distributions'!$C$9:$C$87,0)+RIGHT($E21),0)\n+S$11*OFFSET('Efficiency Distributions'!$E$10,MATCH($C15,'Efficiency Distributions'!$C$9:$C$87,0)+RIGHT($E21),0))\n/SUM(S$10:S$11)","v":0},{"$f":"IF(INDEX(PC_MAPPING,RIGHT($C15,1),MATCH($E$2,'Data by Building Type'!$D$22:$F$22,0))=\"Yes\",1,0)*\n(T$10*OFFSET('Efficiency Distributions'!$D$10,MATCH($C15,'Efficiency Distributions'!$C$9:$C$87,0)+RIGHT($E21),0)\n+T$11*OFFSET('Efficiency Distributions'!$E$10,MATCH($C15,'Efficiency Distributions'!$C$9:$C$87,0)+RIGHT($E21),0))\n/SUM(T$10:T$11)","v":0},{"$f":"IF(INDEX(PC_MAPPING,RIGHT($C15,1),MATCH($E$2,'Data by Building Type'!$D$22:$F$22,0))=\"Yes\",1,0)*\n(U$10*OFFSET('Efficiency Distributions'!$D$10,MATCH($C15,'Efficiency Distributions'!$C$9:$C$87,0)+RIGHT($E21),0)\n+U$11*OFFSET('Efficiency Distributions'!$E$10,MATCH($C15,'Efficiency Distributions'!$C$9:$C$87,0)+RIGHT($E21),0))\n/SUM(U$10:U$11)","v":0},{"$f":"IF(INDEX(PC_MAPPING,RIGHT($C15,1),MATCH($E$2,'Data by Building Type'!$D$22:$F$22,0))=\"Yes\",1,0)*\n(V$10*OFFSET('Efficiency Distributions'!$D$10,MATCH($C15,'Efficiency Distributions'!$C$9:$C$87,0)+RIGHT($E21),0)\n+V$11*OFFSET('Efficiency Distributions'!$E$10,MATCH($C15,'Efficiency Distributions'!$C$9:$C$87,0)+RIGHT($E21),0))\n/SUM(V$10:V$11)","v":0},{"$f":"IF(INDEX(PC_MAPPING,RIGHT($C15,1),MATCH($E$2,'Data by Building Type'!$D$22:$F$22,0))=\"Yes\",1,0)*\n(W$10*OFFSET('Efficiency Distributions'!$D$10,MATCH($C15,'Efficiency Distributions'!$C$9:$C$87,0)+RIGHT($E21),0)\n+W$11*OFFSET('Efficiency Distributions'!$E$10,MATCH($C15,'Efficiency Distributions'!$C$9:$C$87,0)+RIGHT($E21),0))\n/SUM(W$10:W$11)","v":0},{"$f":"IF(INDEX(PC_MAPPING,RIGHT($C15,1),MATCH($E$2,'Data by Building Type'!$D$22:$F$22,0))=\"Yes\",1,0)*\n(X$10*OFFSET('Efficiency Distributions'!$D$10,MATCH($C15,'Efficiency Distributions'!$C$9:$C$87,0)+RIGHT($E21),0)\n+X$11*OFFSET('Efficiency Distributions'!$E$10,MATCH($C15,'Efficiency Distributions'!$C$9:$C$87,0)+RIGHT($E21),0))\n/SUM(X$10:X$11)","v":0},{"$f":"IF(INDEX(PC_MAPPING,RIGHT($C15,1),MATCH($E$2,'Data by Building Type'!$D$22:$F$22,0))=\"Yes\",1,0)*\n(Y$10*OFFSET('Efficiency Distributions'!$D$10,MATCH($C15,'Efficiency Distributions'!$C$9:$C$87,0)+RIGHT($E21),0)\n+Y$11*OFFSET('Efficiency Distributions'!$E$10,MATCH($C15,'Efficiency Distributions'!$C$9:$C$87,0)+RIGHT($E21),0))\n/SUM(Y$10:Y$11)","v":0},{"$f":"IF(INDEX(PC_MAPPING,RIGHT($C15,1),MATCH($E$2,'Data by Building Type'!$D$22:$F$22,0))=\"Yes\",1,0)*\n(Z$10*OFFSET('Efficiency Distributions'!$D$10,MATCH($C15,'Efficiency Distributions'!$C$9:$C$87,0)+RIGHT($E21),0)\n+Z$11*OFFSET('Efficiency Distributions'!$E$10,MATCH($C15,'Efficiency Distributions'!$C$9:$C$87,0)+RIGHT($E21),0))\n/SUM(Z$10:Z$11)","v":0},{"$f":"IF(INDEX(PC_MAPPING,RIGHT($C15,1),MATCH($E$2,'Data by Building Type'!$D$22:$F$22,0))=\"Yes\",1,0)*\n(AA$10*OFFSET('Efficiency Distributions'!$D$10,MATCH($C15,'Efficiency Distributions'!$C$9:$C$87,0)+RIGHT($E21),0)\n+AA$11*OFFSET('Efficiency Distributions'!$E$10,MATCH($C15,'Efficiency Distributions'!$C$9:$C$87,0)+RIGHT($E21),0))\n/SUM(AA$10:AA$11)","v":0},{"$f":"IF(INDEX(PC_MAPPING,RIGHT($C15,1),MATCH($E$2,'Data by Building Type'!$D$22:$F$22,0))=\"Yes\",1,0)*\n(AB$10*OFFSET('Efficiency Distributions'!$D$10,MATCH($C15,'Efficiency Distributions'!$C$9:$C$87,0)+RIGHT($E21),0)\n+AB$11*OFFSET('Efficiency Distributions'!$E$10,MATCH($C15,'Efficiency Distributions'!$C$9:$C$87,0)+RIGHT($E21),0))\n/SUM(AB$10:AB$11)","v":0},{"$f":"IF(INDEX(PC_MAPPING,RIGHT($C15,1),MATCH($E$2,'Data by Building Type'!$D$22:$F$22,0))=\"Yes\",1,0)*\n(AC$10*OFFSET('Efficiency Distributions'!$D$10,MATCH($C15,'Efficiency Distributions'!$C$9:$C$87,0)+RIGHT($E21),0)\n+AC$11*OFFSET('Efficiency Distributions'!$E$10,MATCH($C15,'Efficiency Distributions'!$C$9:$C$87,0)+RIGHT($E21),0))\n/SUM(AC$10:AC$11)","v":0},{"$f":"IF(INDEX(PC_MAPPING,RIGHT($C15,1),MATCH($E$2,'Data by Building Type'!$D$22:$F$22,0))=\"Yes\",1,0)*\n(AD$10*OFFSET('Efficiency Distributions'!$D$10,MATCH($C15,'Efficiency Distributions'!$C$9:$C$87,0)+RIGHT($E21),0)\n+AD$11*OFFSET('Efficiency Distributions'!$E$10,MATCH($C15,'Efficiency Distributions'!$C$9:$C$87,0)+RIGHT($E21),0))\n/SUM(AD$10:AD$11)","v":0},{"$f":"IF(INDEX(PC_MAPPING,RIGHT($C15,1),MATCH($E$2,'Data by Building Type'!$D$22:$F$22,0))=\"Yes\",1,0)*\n(AE$10*OFFSET('Efficiency Distributions'!$D$10,MATCH($C15,'Efficiency Distributions'!$C$9:$C$87,0)+RIGHT($E21),0)\n+AE$11*OFFSET('Efficiency Distributions'!$E$10,MATCH($C15,'Efficiency Distributions'!$C$9:$C$87,0)+RIGHT($E21),0))\n/SUM(AE$10:AE$11)","v":0},{"$f":"IF(INDEX(PC_MAPPING,RIGHT($C15,1),MATCH($E$2,'Data by Building Type'!$D$22:$F$22,0))=\"Yes\",1,0)*\n(AF$10*OFFSET('Efficiency Distributions'!$D$10,MATCH($C15,'Efficiency Distributions'!$C$9:$C$87,0)+RIGHT($E21),0)\n+AF$11*OFFSET('Efficiency Distributions'!$E$10,MATCH($C15,'Efficiency Distributions'!$C$9:$C$87,0)+RIGHT($E21),0))\n/SUM(AF$10:AF$11)","v":0},{"$f":"IF(INDEX(PC_MAPPING,RIGHT($C15,1),MATCH($E$2,'Data by Building Type'!$D$22:$F$22,0))=\"Yes\",1,0)*\n(AG$10*OFFSET('Efficiency Distributions'!$D$10,MATCH($C15,'Efficiency Distributions'!$C$9:$C$87,0)+RIGHT($E21),0)\n+AG$11*OFFSET('Efficiency Distributions'!$E$10,MATCH($C15,'Efficiency Distributions'!$C$9:$C$87,0)+RIGHT($E21),0))\n/SUM(AG$10:AG$11)","v":0},{"$f":"IF(INDEX(PC_MAPPING,RIGHT($C15,1),MATCH($E$2,'Data by Building Type'!$D$22:$F$22,0))=\"Yes\",1,0)*\n(AH$10*OFFSET('Efficiency Distributions'!$D$10,MATCH($C15,'Efficiency Distributions'!$C$9:$C$87,0)+RIGHT($E21),0)\n+AH$11*OFFSET('Efficiency Distributions'!$E$10,MATCH($C15,'Efficiency Distributions'!$C$9:$C$87,0)+RIGHT($E21),0))\n/SUM(AH$10:AH$11)","v":0},{"$f":"IF(INDEX(PC_MAPPING,RIGHT($C15,1),MATCH($E$2,'Data by Building Type'!$D$22:$F$22,0))=\"Yes\",1,0)*\n(AI$10*OFFSET('Efficiency Distributions'!$D$10,MATCH($C15,'Efficiency Distributions'!$C$9:$C$87,0)+RIGHT($E21),0)\n+AI$11*OFFSET('Efficiency Distributions'!$E$10,MATCH($C15,'Efficiency Distributions'!$C$9:$C$87,0)+RIGHT($E21),0))\n/SUM(AI$10:AI$11)","v":0},{"$f":"IF(INDEX(PC_MAPPING,RIGHT($C15,1),MATCH($E$2,'Data by Building Type'!$D$22:$F$22,0))=\"Yes\",1,0)*\n(AJ$10*OFFSET('Efficiency Distributions'!$D$10,MATCH($C15,'Efficiency Distributions'!$C$9:$C$87,0)+RIGHT($E21),0)\n+AJ$11*OFFSET('Efficiency Distributions'!$E$10,MATCH($C15,'Efficiency Distributions'!$C$9:$C$87,0)+RIGHT($E21),0))\n/SUM(AJ$10:AJ$11)","v":0},{"$f":"IF(INDEX(PC_MAPPING,RIGHT($C15,1),MATCH($E$2,'Data by Building Type'!$D$22:$F$22,0))=\"Yes\",1,0)*\n(AK$10*OFFSET('Efficiency Distributions'!$D$10,MATCH($C15,'Efficiency Distributions'!$C$9:$C$87,0)+RIGHT($E21),0)\n+AK$11*OFFSET('Efficiency Distributions'!$E$10,MATCH($C15,'Efficiency Distributions'!$C$9:$C$87,0)+RIGHT($E21),0))\n/SUM(AK$10:AK$11)","v":0},{"$f":"IF(INDEX(PC_MAPPING,RIGHT($C15,1),MATCH($E$2,'Data by Building Type'!$D$22:$F$22,0))=\"Yes\",1,0)*\n(AL$10*OFFSET('Efficiency Distributions'!$D$10,MATCH($C15,'Efficiency Distributions'!$C$9:$C$87,0)+RIGHT($E21),0)\n+AL$11*OFFSET('Efficiency Distributions'!$E$10,MATCH($C15,'Efficiency Distributions'!$C$9:$C$87,0)+RIGHT($E21),0))\n/SUM(AL$10:AL$11)","v":0},{"$f":"IF(INDEX(PC_MAPPING,RIGHT($C15,1),MATCH($E$2,'Data by Building Type'!$D$22:$F$22,0))=\"Yes\",1,0)*\n(AM$10*OFFSET('Efficiency Distributions'!$D$10,MATCH($C15,'Efficiency Distributions'!$C$9:$C$87,0)+RIGHT($E21),0)\n+AM$11*OFFSET('Efficiency Distributions'!$E$10,MATCH($C15,'Efficiency Distributions'!$C$9:$C$87,0)+RIGHT($E21),0))\n/SUM(AM$10:AM$11)","v":0},{"$f":"IF(INDEX(PC_MAPPING,RIGHT($C15,1),MATCH($E$2,'Data by Building Type'!$D$22:$F$22,0))=\"Yes\",1,0)*\n(AN$10*OFFSET('Efficiency Distributions'!$D$10,MATCH($C15,'Efficiency Distributions'!$C$9:$C$87,0)+RIGHT($E21),0)\n+AN$11*OFFSET('Efficiency Distributions'!$E$10,MATCH($C15,'Efficiency Distributions'!$C$9:$C$87,0)+RIGHT($E21),0))\n/SUM(AN$10:AN$11)","v":0},{"$f":"IF(INDEX(PC_MAPPING,RIGHT($C15,1),MATCH($E$2,'Data by Building Type'!$D$22:$F$22,0))=\"Yes\",1,0)*\n(AO$10*OFFSET('Efficiency Distributions'!$D$10,MATCH($C15,'Efficiency Distributions'!$C$9:$C$87,0)+RIGHT($E21),0)\n+AO$11*OFFSET('Efficiency Distributions'!$E$10,MATCH($C15,'Efficiency Distributions'!$C$9:$C$87,0)+RIGHT($E21),0))\n/SUM(AO$10:AO$11)","v":0},{"$f":"IF(INDEX(PC_MAPPING,RIGHT($C15,1),MATCH($E$2,'Data by Building Type'!$D$22:$F$22,0))=\"Yes\",1,0)*\n(AP$10*OFFSET('Efficiency Distributions'!$D$10,MATCH($C15,'Efficiency Distributions'!$C$9:$C$87,0)+RIGHT($E21),0)\n+AP$11*OFFSET('Efficiency Distributions'!$E$10,MATCH($C15,'Efficiency Distributions'!$C$9:$C$87,0)+RIGHT($E21),0))\n/SUM(AP$10:AP$11)","v":0},{"$f":"IF(INDEX(PC_MAPPING,RIGHT($C15,1),MATCH($E$2,'Data by Building Type'!$D$22:$F$22,0))=\"Yes\",1,0)*\n(AQ$10*OFFSET('Efficiency Distributions'!$D$10,MATCH($C15,'Efficiency Distributions'!$C$9:$C$87,0)+RIGHT($E21),0)\n+AQ$11*OFFSET('Efficiency Distributions'!$E$10,MATCH($C15,'Efficiency Distributions'!$C$9:$C$87,0)+RIGHT($E21),0))\n/SUM(AQ$10:AQ$11)","v":0},{"$f":"IF(INDEX(PC_MAPPING,RIGHT($C15,1),MATCH($E$2,'Data by Building Type'!$D$22:$F$22,0))=\"Yes\",1,0)*\n(AR$10*OFFSET('Efficiency Distributions'!$D$10,MATCH($C15,'Efficiency Distributions'!$C$9:$C$87,0)+RIGHT($E21),0)\n+AR$11*OFFSET('Efficiency Distributions'!$E$10,MATCH($C15,'Efficiency Distributions'!$C$9:$C$87,0)+RIGHT($E21),0))\n/SUM(AR$10:AR$11)","v":0},{"$f":"IF(INDEX(PC_MAPPING,RIGHT($C15,1),MATCH($E$2,'Data by Building Type'!$D$22:$F$22,0))=\"Yes\",1,0)*\n(AS$10*OFFSET('Efficiency Distributions'!$D$10,MATCH($C15,'Efficiency Distributions'!$C$9:$C$87,0)+RIGHT($E21),0)\n+AS$11*OFFSET('Efficiency Distributions'!$E$10,MATCH($C15,'Efficiency Distributions'!$C$9:$C$87,0)+RIGHT($E21),0))\n/SUM(AS$10:AS$11)","v":0},{"$f":"IF(INDEX(PC_MAPPING,RIGHT($C15,1),MATCH($E$2,'Data by Building Type'!$D$22:$F$22,0))=\"Yes\",1,0)*\n(AT$10*OFFSET('Efficiency Distributions'!$D$10,MATCH($C15,'Efficiency Distributions'!$C$9:$C$87,0)+RIGHT($E21),0)\n+AT$11*OFFSET('Efficiency Distributions'!$E$10,MATCH($C15,'Efficiency Distributions'!$C$9:$C$87,0)+RIGHT($E21),0))\n/SUM(AT$10:AT$11)","v":0},{"$f":"IF(INDEX(PC_MAPPING,RIGHT($C15,1),MATCH($E$2,'Data by Building Type'!$D$22:$F$22,0))=\"Yes\",1,0)*\n(AU$10*OFFSET('Efficiency Distributions'!$D$10,MATCH($C15,'Efficiency Distributions'!$C$9:$C$87,0)+RIGHT($E21),0)\n+AU$11*OFFSET('Efficiency Distributions'!$E$10,MATCH($C15,'Efficiency Distributions'!$C$9:$C$87,0)+RIGHT($E21),0))\n/SUM(AU$10:AU$11)","v":0},{"$f":"IF(INDEX(PC_MAPPING,RIGHT($C15,1),MATCH($E$2,'Data by Building Type'!$D$22:$F$22,0))=\"Yes\",1,0)*\n(AV$10*OFFSET('Efficiency Distributions'!$D$10,MATCH($C15,'Efficiency Distributions'!$C$9:$C$87,0)+RIGHT($E21),0)\n+AV$11*OFFSET('Efficiency Distributions'!$E$10,MATCH($C15,'Efficiency Distributions'!$C$9:$C$87,0)+RIGHT($E21),0))\n/SUM(AV$10:AV$11)","v":0},{"$f":"IF(INDEX(PC_MAPPING,RIGHT($C15,1),MATCH($E$2,'Data by Building Type'!$D$22:$F$22,0))=\"Yes\",1,0)*\n(AW$10*OFFSET('Efficiency Distributions'!$D$10,MATCH($C15,'Efficiency Distributions'!$C$9:$C$87,0)+RIGHT($E21),0)\n+AW$11*OFFSET('Efficiency Distributions'!$E$10,MATCH($C15,'Efficiency Distributions'!$C$9:$C$87,0)+RIGHT($E21),0))\n/SUM(AW$10:AW$11)","v":0},{"$f":"IF(INDEX(PC_MAPPING,RIGHT($C15,1),MATCH($E$2,'Data by Building Type'!$D$22:$F$22,0))=\"Yes\",1,0)*\n(AX$10*OFFSET('Efficiency Distributions'!$D$10,MATCH($C15,'Efficiency Distributions'!$C$9:$C$87,0)+RIGHT($E21),0)\n+AX$11*OFFSET('Efficiency Distributions'!$E$10,MATCH($C15,'Efficiency Distributions'!$C$9:$C$87,0)+RIGHT($E21),0))\n/SUM(AX$10:AX$11)","v":0},{"$f":"IF(INDEX(PC_MAPPING,RIGHT($C15,1),MATCH($E$2,'Data by Building Type'!$D$22:$F$22,0))=\"Yes\",1,0)*\n(AY$10*OFFSET('Efficiency Distributions'!$D$10,MATCH($C15,'Efficiency Distributions'!$C$9:$C$87,0)+RIGHT($E21),0)\n+AY$11*OFFSET('Efficiency Distributions'!$E$10,MATCH($C15,'Efficiency Distributions'!$C$9:$C$87,0)+RIGHT($E21),0))\n/SUM(AY$10:AY$11)","v":0},{"$f":"IF(INDEX(PC_MAPPING,RIGHT($C15,1),MATCH($E$2,'Data by Building Type'!$D$22:$F$22,0))=\"Yes\",1,0)*\n(AZ$10*OFFSET('Efficiency Distributions'!$D$10,MATCH($C15,'Efficiency Distributions'!$C$9:$C$87,0)+RIGHT($E21),0)\n+AZ$11*OFFSET('Efficiency Distributions'!$E$10,MATCH($C15,'Efficiency Distributions'!$C$9:$C$87,0)+RIGHT($E21),0))\n/SUM(AZ$10:AZ$11)","v":0},{"$f":"IF(INDEX(PC_MAPPING,RIGHT($C15,1),MATCH($E$2,'Data by Building Type'!$D$22:$F$22,0))=\"Yes\",1,0)*\n(BA$10*OFFSET('Efficiency Distributions'!$D$10,MATCH($C15,'Efficiency Distributions'!$C$9:$C$87,0)+RIGHT($E21),0)\n+BA$11*OFFSET('Efficiency Distributions'!$E$10,MATCH($C15,'Efficiency Distributions'!$C$9:$C$87,0)+RIGHT($E21),0))\n/SUM(BA$10:BA$11)","v":0},{"$f":"IF(INDEX(PC_MAPPING,RIGHT($C15,1),MATCH($E$2,'Data by Building Type'!$D$22:$F$22,0))=\"Yes\",1,0)*\n(BB$10*OFFSET('Efficiency Distributions'!$D$10,MATCH($C15,'Efficiency Distributions'!$C$9:$C$87,0)+RIGHT($E21),0)\n+BB$11*OFFSET('Efficiency Distributions'!$E$10,MATCH($C15,'Efficiency Distributions'!$C$9:$C$87,0)+RIGHT($E21),0))\n/SUM(BB$10:BB$11)","v":0},{"$f":"IF(INDEX(PC_MAPPING,RIGHT($C15,1),MATCH($E$2,'Data by Building Type'!$D$22:$F$22,0))=\"Yes\",1,0)*\n(BC$10*OFFSET('Efficiency Distributions'!$D$10,MATCH($C15,'Efficiency Distributions'!$C$9:$C$87,0)+RIGHT($E21),0)\n+BC$11*OFFSET('Efficiency Distributions'!$E$10,MATCH($C15,'Efficiency Distributions'!$C$9:$C$87,0)+RIGHT($E21),0))\n/SUM(BC$10:BC$11)","v":0},{"$f":"IF(INDEX(PC_MAPPING,RIGHT($C15,1),MATCH($E$2,'Data by Building Type'!$D$22:$F$22,0))=\"Yes\",1,0)*\n(BD$10*OFFSET('Efficiency Distributions'!$D$10,MATCH($C15,'Efficiency Distributions'!$C$9:$C$87,0)+RIGHT($E21),0)\n+BD$11*OFFSET('Efficiency Distributions'!$E$10,MATCH($C15,'Efficiency Distributions'!$C$9:$C$87,0)+RIGHT($E21),0))\n/SUM(BD$10:BD$11)","v":0},{"$f":"IF(INDEX(PC_MAPPING,RIGHT($C15,1),MATCH($E$2,'Data by Building Type'!$D$22:$F$22,0))=\"Yes\",1,0)*\n(BE$10*OFFSET('Efficiency Distributions'!$D$10,MATCH($C15,'Efficiency Distributions'!$C$9:$C$87,0)+RIGHT($E21),0)\n+BE$11*OFFSET('Efficiency Distributions'!$E$10,MATCH($C15,'Efficiency Distributions'!$C$9:$C$87,0)+RIGHT($E21),0))\n/SUM(BE$10:BE$11)","v":0},{"$f":"IF(INDEX(PC_MAPPING,RIGHT($C15,1),MATCH($E$2,'Data by Building Type'!$D$22:$F$22,0))=\"Yes\",1,0)*\n(BF$10*OFFSET('Efficiency Distributions'!$D$10,MATCH($C15,'Efficiency Distributions'!$C$9:$C$87,0)+RIGHT($E21),0)\n+BF$11*OFFSET('Efficiency Distributions'!$E$10,MATCH($C15,'Efficiency Distributions'!$C$9:$C$87,0)+RIGHT($E21),0))\n/SUM(BF$10:BF$11)","v":0},{"$f":"IF(INDEX(PC_MAPPING,RIGHT($C15,1),MATCH($E$2,'Data by Building Type'!$D$22:$F$22,0))=\"Yes\",1,0)*\n(BG$10*OFFSET('Efficiency Distributions'!$D$10,MATCH($C15,'Efficiency Distributions'!$C$9:$C$87,0)+RIGHT($E21),0)\n+BG$11*OFFSET('Efficiency Distributions'!$E$10,MATCH($C15,'Efficiency Distributions'!$C$9:$C$87,0)+RIGHT($E21),0))\n/SUM(BG$10:BG$11)","v":0}]
[null,null,null,null,"EL3",{"$f":"IF(INDEX(PC_MAPPING,RIGHT($C15,1),MATCH($E$2,'Data by Building Type'!$D$22:$F$22,0))=\"Yes\",1,0)*\n(F$10*OFFSET('Efficiency Distributions'!$D$10,MATCH($C15,'Efficiency Distributions'!$C$9:$C$87,0)+RIGHT($E22),0)\n+F$11*OFFSET('Efficiency Distributions'!$E$10,MATCH($C15,'Efficiency Distributions'!$C$9:$C$87,0)+RIGHT($E22),0))\n/SUM(F$10:F$11)","v":0.11133672486712759},{"$f":"IF(INDEX(PC_MAPPING,RIGHT($C15,1),MATCH($E$2,'Data by Building Type'!$D$22:$F$22,0))=\"Yes\",1,0)*\n(G$10*OFFSET('Efficiency Distributions'!$D$10,MATCH($C15,'Efficiency Distributions'!$C$9:$C$87,0)+RIGHT($E22),0)\n+G$11*OFFSET('Efficiency Distributions'!$E$10,MATCH($C15,'Efficiency Distributions'!$C$9:$C$87,0)+RIGHT($E22),0))\n/SUM(G$10:G$11)","v":0.1166652302813326},{"$f":"IF(INDEX(PC_MAPPING,RIGHT($C15,1),MATCH($E$2,'Data by Building Type'!$D$22:$F$22,0))=\"Yes\",1,0)*\n(H$10*OFFSET('Efficiency Distributions'!$D$10,MATCH($C15,'Efficiency Distributions'!$C$9:$C$87,0)+RIGHT($E22),0)\n+H$11*OFFSET('Efficiency Distributions'!$E$10,MATCH($C15,'Efficiency Distributions'!$C$9:$C$87,0)+RIGHT($E22),0))\n/SUM(H$10:H$11)","v":0.11029101934472416},{"$f":"IF(INDEX(PC_MAPPING,RIGHT($C15,1),MATCH($E$2,'Data by Building Type'!$D$22:$F$22,0))=\"Yes\",1,0)*\n(I$10*OFFSET('Efficiency Distributions'!$D$10,MATCH($C15,'Efficiency Distributions'!$C$9:$C$87,0)+RIGHT($E22),0)\n+I$11*OFFSET('Efficiency Distributions'!$E$10,MATCH($C15,'Efficiency Distributions'!$C$9:$C$87,0)+RIGHT($E22),0))\n/SUM(I$10:I$11)","v":0.11147984360997096},{"$f":"IF(INDEX(PC_MAPPING,RIGHT($C15,1),MATCH($E$2,'Data by Building Type'!$D$22:$F$22,0))=\"Yes\",1,0)*\n(J$10*OFFSET('Efficiency Distributions'!$D$10,MATCH($C15,'Efficiency Distributions'!$C$9:$C$87,0)+RIGHT($E22),0)\n+J$11*OFFSET('Efficiency Distributions'!$E$10,MATCH($C15,'Efficiency Distributions'!$C$9:$C$87,0)+RIGHT($E22),0))\n/SUM(J$10:J$11)","v":0.11221590224461182},{"$f":"IF(INDEX(PC_MAPPING,RIGHT($C15,1),MATCH($E$2,'Data by Building Type'!$D$22:$F$22,0))=\"Yes\",1,0)*\n(K$10*OFFSET('Efficiency Distributions'!$D$10,MATCH($C15,'Efficiency Distributions'!$C$9:$C$87,0)+RIGHT($E22),0)\n+K$11*OFFSET('Efficiency Distributions'!$E$10,MATCH($C15,'Efficiency Distributions'!$C$9:$C$87,0)+RIGHT($E22),0))\n/SUM(K$10:K$11)","v":0.11100087276369409},{"$f":"IF(INDEX(PC_MAPPING,RIGHT($C15,1),MATCH($E$2,'Data by Building Type'!$D$22:$F$22,0))=\"Yes\",1,0)*\n(L$10*OFFSET('Efficiency Distributions'!$D$10,MATCH($C15,'Efficiency Distributions'!$C$9:$C$87,0)+RIGHT($E22),0)\n+L$11*OFFSET('Efficiency Distributions'!$E$10,MATCH($C15,'Efficiency Distributions'!$C$9:$C$87,0)+RIGHT($E22),0))\n/SUM(L$10:L$11)","v":0.11090527504038157},{"$f":"IF(INDEX(PC_MAPPING,RIGHT($C15,1),MATCH($E$2,'Data by Building Type'!$D$22:$F$22,0))=\"Yes\",1,0)*\n(M$10*OFFSET('Efficiency Distributions'!$D$10,MATCH($C15,'Efficiency Distributions'!$C$9:$C$87,0)+RIGHT($E22),0)\n+M$11*OFFSET('Efficiency Distributions'!$E$10,MATCH($C15,'Efficiency Distributions'!$C$9:$C$87,0)+RIGHT($E22),0))\n/SUM(M$10:M$11)","v":0.10927734375123704},{"$f":"IF(INDEX(PC_MAPPING,RIGHT($C15,1),MATCH($E$2,'Data by Building Type'!$D$22:$F$22,0))=\"Yes\",1,0)*\n(N$10*OFFSET('Efficiency Distributions'!$D$10,MATCH($C15,'Efficiency Distributions'!$C$9:$C$87,0)+RIGHT($E22),0)\n+N$11*OFFSET('Efficiency Distributions'!$E$10,MATCH($C15,'Efficiency Distributions'!$C$9:$C$87,0)+RIGHT($E22),0))\n/SUM(N$10:N$11)","v":0.10556255935798699},{"$f":"IF(INDEX(PC_MAPPING,RIGHT($C15,1),MATCH($E$2,'Data by Building Type'!$D$22:$F$22,0))=\"Yes\",1,0)*\n(O$10*OFFSET('Efficiency Distributions'!$D$10,MATCH($C15,'Efficiency Distributions'!$C$9:$C$87,0)+RIGHT($E22),0)\n+O$11*OFFSET('Efficiency Distributions'!$E$10,MATCH($C15,'Efficiency Distributions'!$C$9:$C$87,0)+RIGHT($E22),0))\n/SUM(O$10:O$11)","v":0.10303111479697621},{"$f":"IF(INDEX(PC_MAPPING,RIGHT($C15,1),MATCH($E$2,'Data by Building Type'!$D$22:$F$22,0))=\"Yes\",1,0)*\n(P$10*OFFSET('Efficiency Distributions'!$D$10,MATCH($C15,'Efficiency Distributions'!$C$9:$C$87,0)+RIGHT($E22),0)\n+P$11*OFFSET('Efficiency Distributions'!$E$10,MATCH($C15,'Efficiency Distributions'!$C$9:$C$87,0)+RIGHT($E22),0))\n/SUM(P$10:P$11)","v":0.10561180584140477},{"$f":"IF(INDEX(PC_MAPPING,RIGHT($C15,1),MATCH($E$2,'Data by Building Type'!$D$22:$F$22,0))=\"Yes\",1,0)*\n(Q$10*OFFSET('Efficiency Distributions'!$D$10,MATCH($C15,'Efficiency Distributions'!$C$9:$C$87,0)+RIGHT($E22),0)\n+Q$11*OFFSET('Efficiency Distributions'!$E$10,MATCH($C15,'Efficiency Distributions'!$C$9:$C$87,0)+RIGHT($E22),0))\n/SUM(Q$10:Q$11)","v":0.10136721516756705},{"$f":"IF(INDEX(PC_MAPPING,RIGHT($C15,1),MATCH($E$2,'Data by Building Type'!$D$22:$F$22,0))=\"Yes\",1,0)*\n(R$10*OFFSET('Efficiency Distributions'!$D$10,MATCH($C15,'Efficiency Distributions'!$C$9:$C$87,0)+RIGHT($E22),0)\n+R$11*OFFSET('Efficiency Distributions'!$E$10,MATCH($C15,'Efficiency Distributions'!$C$9:$C$87,0)+RIGHT($E22),0))\n/SUM(R$10:R$11)","v":0.11302677245137686},{"$f":"IF(INDEX(PC_MAPPING,RIGHT($C15,1),MATCH($E$2,'Data by Building Type'!$D$22:$F$22,0))=\"Yes\",1,0)*\n(S$10*OFFSET('Efficiency Distributions'!$D$10,MATCH($C15,'Efficiency Distributions'!$C$9:$C$87,0)+RIGHT($E22),0)\n+S$11*OFFSET('Efficiency Distributions'!$E$10,MATCH($C15,'Efficiency Distributions'!$C$9:$C$87,0)+RIGHT($E22),0))\n/SUM(S$10:S$11)","v":0.11185243396535452},{"$f":"IF(INDEX(PC_MAPPING,RIGHT($C15,1),MATCH($E$2,'Data by Building Type'!$D$22:$F$22,0))=\"Yes\",1,0)*\n(T$10*OFFSET('Efficiency Distributions'!$D$10,MATCH($C15,'Efficiency Distributions'!$C$9:$C$87,0)+RIGHT($E22),0)\n+T$11*OFFSET('Efficiency Distributions'!$E$10,MATCH($C15,'Efficiency Distributions'!$C$9:$C$87,0)+RIGHT($E22),0))\n/SUM(T$10:T$11)","v":0.11617953525346723},{"$f":"IF(INDEX(PC_MAPPING,RIGHT($C15,1),MATCH($E$2,'Data by Building Type'!$D$22:$F$22,0))=\"Yes\",1,0)*\n(U$10*OFFSET('Efficiency Distributions'!$D$10,MATCH($C15,'Efficiency Distributions'!$C$9:$C$87,0)+RIGHT($E22),0)\n+U$11*OFFSET('Efficiency Distributions'!$E$10,MATCH($C15,'Efficiency Distributions'!$C$9:$C$87,0)+RIGHT($E22),0))\n/SUM(U$10:U$11)","v":0.1155561575802292},{"$f":"IF(INDEX(PC_MAPPING,RIGHT($C15,1),MATCH($E$2,'Data by Building Type'!$D$22:$F$22,0))=\"Yes\",1,0)*\n(V$10*OFFSET('Efficiency Distributions'!$D$10,MATCH($C15,'Efficiency Distributions'!$C$9:$C$87,0)+RIGHT($E22),0)\n+V$11*OFFSET('Efficiency Distributions'!$E$10,MATCH($C15,'Efficiency Distributions'!$C$9:$C$87,0)+RIGHT($E22),0))\n/SUM(V$10:V$11)","v":0.11647810965008355},{"$f":"IF(INDEX(PC_MAPPING,RIGHT($C15,1),MATCH($E$2,'Data by Building Type'!$D$22:$F$22,0))=\"Yes\",1,0)*\n(W$10*OFFSET('Efficiency Distributions'!$D$10,MATCH($C15,'Efficiency Distributions'!$C$9:$C$87,0)+RIGHT($E22),0)\n+W$11*OFFSET('Efficiency Distributions'!$E$10,MATCH($C15,'Efficiency Distributions'!$C$9:$C$87,0)+RIGHT($E22),0))\n/SUM(W$10:W$11)","v":0.11603602596717122},{"$f":"IF(INDEX(PC_MAPPING,RIGHT($C15,1),MATCH($E$2,'Data by Building Type'!$D$22:$F$22,0))=\"Yes\",1,0)*\n(X$10*OFFSET('Efficiency Distributions'!$D$10,MATCH($C15,'Efficiency Distributions'!$C$9:$C$87,0)+RIGHT($E22),0)\n+X$11*OFFSET('Efficiency Distributions'!$E$10,MATCH($C15,'Efficiency Distributions'!$C$9:$C$87,0)+RIGHT($E22),0))\n/SUM(X$10:X$11)","v":0.11745521683553584},{"$f":"IF(INDEX(PC_MAPPING,RIGHT($C15,1),MATCH($E$2,'Data by Building Type'!$D$22:$F$22,0))=\"Yes\",1,0)*\n(Y$10*OFFSET('Efficiency Distributions'!$D$10,MATCH($C15,'Efficiency Distributions'!$C$9:$C$87,0)+RIGHT($E22),0)\n+Y$11*OFFSET('Efficiency Distributions'!$E$10,MATCH($C15,'Efficiency Distributions'!$C$9:$C$87,0)+RIGHT($E22),0))\n/SUM(Y$10:Y$11)","v":0.1209080392888196},{"$f":"IF(INDEX(PC_MAPPING,RIGHT($C15,1),MATCH($E$2,'Data by Building Type'!$D$22:$F$22,0))=\"Yes\",1,0)*\n(Z$10*OFFSET('Efficiency Distributions'!$D$10,MATCH($C15,'Efficiency Distributions'!$C$9:$C$87,0)+RIGHT($E22),0)\n+Z$11*OFFSET('Efficiency Distributions'!$E$10,MATCH($C15,'Efficiency Distributions'!$C$9:$C$87,0)+RIGHT($E22),0))\n/SUM(Z$10:Z$11)","v":0.12096634667561799},{"$f":"IF(INDEX(PC_MAPPING,RIGHT($C15,1),MATCH($E$2,'Data by Building Type'!$D$22:$F$22,0))=\"Yes\",1,0)*\n(AA$10*OFFSET('Efficiency Distributions'!$D$10,MATCH($C15,'Efficiency Distributions'!$C$9:$C$87,0)+RIGHT($E22),0)\n+AA$11*OFFSET('Efficiency Distributions'!$E$10,MATCH($C15,'Efficiency Distributions'!$C$9:$C$87,0)+RIGHT($E22),0))\n/SUM(AA$10:AA$11)","v":0.12043144631923375},{"$f":"IF(INDEX(PC_MAPPING,RIGHT($C15,1),MATCH($E$2,'Data by Building Type'!$D$22:$F$22,0))=\"Yes\",1,0)*\n(AB$10*OFFSET('Efficiency Distributions'!$D$10,MATCH($C15,'Efficiency Distributions'!$C$9:$C$87,0)+RIGHT($E22),0)\n+AB$11*OFFSET('Efficiency Distributions'!$E$10,MATCH($C15,'Efficiency Distributions'!$C$9:$C$87,0)+RIGHT($E22),0))\n/SUM(AB$10:AB$11)","v":0.11738388237442582},{"$f":"IF(INDEX(PC_MAPPING,RIGHT($C15,1),MATCH($E$2,'Data by Building Type'!$D$22:$F$22,0))=\"Yes\",1,0)*\n(AC$10*OFFSET('Efficiency Distributions'!$D$10,MATCH($C15,'Efficiency Distributions'!$C$9:$C$87,0)+RIGHT($E22),0)\n+AC$11*OFFSET('Efficiency Distributions'!$E$10,MATCH($C15,'Efficiency Distributions'!$C$9:$C$87,0)+RIGHT($E22),0))\n/SUM(AC$10:AC$11)","v":0.11759676880289213},{"$f":"IF(INDEX(PC_MAPPING,RIGHT($C15,1),MATCH($E$2,'Data by Building Type'!$D$22:$F$22,0))=\"Yes\",1,0)*\n(AD$10*OFFSET('Efficiency Distributions'!$D$10,MATCH($C15,'Efficiency Distributions'!$C$9:$C$87,0)+RIGHT($E22),0)\n+AD$11*OFFSET('Efficiency Distributions'!$E$10,MATCH($C15,'Efficiency Distributions'!$C$9:$C$87,0)+RIGHT($E22),0))\n/SUM(AD$10:AD$11)","v":0.11497301159733146},{"$f":"IF(INDEX(PC_MAPPING,RIGHT($C15,1),MATCH($E$2,'Data by Building Type'!$D$22:$F$22,0))=\"Yes\",1,0)*\n(AE$10*OFFSET('Efficiency Distributions'!$D$10,MATCH($C15,'Efficiency Distributions'!$C$9:$C$87,0)+RIGHT($E22),0)\n+AE$11*OFFSET('Efficiency Distributions'!$E$10,MATCH($C15,'Efficiency Distributions'!$C$9:$C$87,0)+RIGHT($E22),0))\n/SUM(AE$10:AE$11)","v":0.11895506703523694},{"$f":"IF(INDEX(PC_MAPPING,RIGHT($C15,1),MATCH($E$2,'Data by Building Type'!$D$22:$F$22,0))=\"Yes\",1,0)*\n(AF$10*OFFSET('Efficiency Distributions'!$D$10,MATCH($C15,'Efficiency Distributions'!$C$9:$C$87,0)+RIGHT($E22),0)\n+AF$11*OFFSET('Efficiency Distributions'!$E$10,MATCH($C15,'Efficiency Distributions'!$C$9:$C$87,0)+RIGHT($E22),0))\n/SUM(AF$10:AF$11)","v":0.12775103822192788},{"$f":"IF(INDEX(PC_MAPPING,RIGHT($C15,1),MATCH($E$2,'Data by Building Type'!$D$22:$F$22,0))=\"Yes\",1,0)*\n(AG$10*OFFSET('Efficiency Distributions'!$D$10,MATCH($C15,'Efficiency Distributions'!$C$9:$C$87,0)+RIGHT($E22),0)\n+AG$11*OFFSET('Efficiency Distributions'!$E$10,MATCH($C15,'Efficiency Distributions'!$C$9:$C$87,0)+RIGHT($E22),0))\n/SUM(AG$10:AG$11)","v":0.13150643918489904},{"$f":"IF(INDEX(PC_MAPPING,RIGHT($C15,1),MATCH($E$2,'Data by Building Type'!$D$22:$F$22,0))=\"Yes\",1,0)*\n(AH$10*OFFSET('Efficiency Distributions'!$D$10,MATCH($C15,'Efficiency Distributions'!$C$9:$C$87,0)+RIGHT($E22),0)\n+AH$11*OFFSET('Efficiency Distributions'!$E$10,MATCH($C15,'Efficiency Distributions'!$C$9:$C$87,0)+RIGHT($E22),0))\n/SUM(AH$10:AH$11)","v":0.13150643918489904},{"$f":"IF(INDEX(PC_MAPPING,RIGHT($C15,1),MATCH($E$2,'Data by Building Type'!$D$22:$F$22,0))=\"Yes\",1,0)*\n(AI$10*OFFSET('Efficiency Distributions'!$D$10,MATCH($C15,'Efficiency Distributions'!$C$9:$C$87,0)+RIGHT($E22),0)\n+AI$11*OFFSET('Efficiency Distributions'!$E$10,MATCH($C15,'Efficiency Distributions'!$C$9:$C$87,0)+RIGHT($E22),0))\n/SUM(AI$10:AI$11)","v":0.13150643918489904},{"$f":"IF(INDEX(PC_MAPPING,RIGHT($C15,1),MATCH($E$2,'Data by Building Type'!$D$22:$F$22,0))=\"Yes\",1,0)*\n(AJ$10*OFFSET('Efficiency Distributions'!$D$10,MATCH($C15,'Efficiency Distributions'!$C$9:$C$87,0)+RIGHT($E22),0)\n+AJ$11*OFFSET('Efficiency Distributions'!$E$10,MATCH($C15,'Efficiency Distributions'!$C$9:$C$87,0)+RIGHT($E22),0))\n/SUM(AJ$10:AJ$11)","v":0.12994204448003691},{"$f":"IF(INDEX(PC_MAPPING,RIGHT($C15,1),MATCH($E$2,'Data by Building Type'!$D$22:$F$22,0))=\"Yes\",1,0)*\n(AK$10*OFFSET('Efficiency Distributions'!$D$10,MATCH($C15,'Efficiency Distributions'!$C$9:$C$87,0)+RIGHT($E22),0)\n+AK$11*OFFSET('Efficiency Distributions'!$E$10,MATCH($C15,'Efficiency Distributions'!$C$9:$C$87,0)+RIGHT($E22),0))\n/SUM(AK$10:AK$11)","v":0.10806926446541924},{"$f":"IF(INDEX(PC_MAPPING,RIGHT($C15,1),MATCH($E$2,'Data by Building Type'!$D$22:$F$22,0))=\"Yes\",1,0)*\n(AL$10*OFFSET('Efficiency Distributions'!$D$10,MATCH($C15,'Efficiency Distributions'!$C$9:$C$87,0)+RIGHT($E22),0)\n+AL$11*OFFSET('Efficiency Distributions'!$E$10,MATCH($C15,'Efficiency Distributions'!$C$9:$C$87,0)+RIGHT($E22),0))\n/SUM(AL$10:AL$11)","v":0.10872385107794312},{"$f":"IF(INDEX(PC_MAPPING,RIGHT($C15,1),MATCH($E$2,'Data by Building Type'!$D$22:$F$22,0))=\"Yes\",1,0)*\n(AM$10*OFFSET('Efficiency Distributions'!$D$10,MATCH($C15,'Efficiency Distributions'!$C$9:$C$87,0)+RIGHT($E22),0)\n+AM$11*OFFSET('Efficiency Distributions'!$E$10,MATCH($C15,'Efficiency Distributions'!$C$9:$C$87,0)+RIGHT($E22),0))\n/SUM(AM$10:AM$11)","v":0.10591162755819686},{"$f":"IF(INDEX(PC_MAPPING,RIGHT($C15,1),MATCH($E$2,'Data by Building Type'!$D$22:$F$22,0))=\"Yes\",1,0)*\n(AN$10*OFFSET('Efficiency Distributions'!$D$10,MATCH($C15,'Efficiency Distributions'!$C$9:$C$87,0)+RIGHT($E22),0)\n+AN$11*OFFSET('Efficiency Distributions'!$E$10,MATCH($C15,'Efficiency Distributions'!$C$9:$C$87,0)+RIGHT($E22),0))\n/SUM(AN$10:AN$11)","v":0.10613868048338411},{"$f":"IF(INDEX(PC_MAPPING,RIGHT($C15,1),MATCH($E$2,'Data by Building Type'!$D$22:$F$22,0))=\"Yes\",1,0)*\n(AO$10*OFFSET('Efficiency Distributions'!$D$10,MATCH($C15,'Efficiency Distributions'!$C$9:$C$87,0)+RIGHT($E22),0)\n+AO$11*OFFSET('Efficiency Distributions'!$E$10,MATCH($C15,'Efficiency Distributions'!$C$9:$C$87,0)+RIGHT($E22),0))\n/SUM(AO$10:AO$11)","v":0.10503676805188752},{"$f":"IF(INDEX(PC_MAPPING,RIGHT($C15,1),MATCH($E$2,'Data by Building Type'!$D$22:$F$22,0))=\"Yes\",1,0)*\n(AP$10*OFFSET('Efficiency Distributions'!$D$10,MATCH($C15,'Efficiency Distributions'!$C$9:$C$87,0)+RIGHT($E22),0)\n+AP$11*OFFSET('Efficiency Distributions'!$E$10,MATCH($C15,'Efficiency Distributions'!$C$9:$C$87,0)+RIGHT($E22),0))\n/SUM(AP$10:AP$11)","v":0.10552153228408982},{"$f":"IF(INDEX(PC_MAPPING,RIGHT($C15,1),MATCH($E$2,'Data by Building Type'!$D$22:$F$22,0))=\"Yes\",1,0)*\n(AQ$10*OFFSET('Efficiency Distributions'!$D$10,MATCH($C15,'Efficiency Distributions'!$C$9:$C$87,0)+RIGHT($E22),0)\n+AQ$11*OFFSET('Efficiency Distributions'!$E$10,MATCH($C15,'Efficiency Distributions'!$C$9:$C$87,0)+RIGHT($E22),0))\n/SUM(AQ$10:AQ$11)","v":0.10568615963380122},{"$f":"IF(INDEX(PC_MAPPING,RIGHT($C15,1),MATCH($E$2,'Data by Building Type'!$D$22:$F$22,0))=\"Yes\",1,0)*\n(AR$10*OFFSET('Efficiency Distributions'!$D$10,MATCH($C15,'Efficiency Distributions'!$C$9:$C$87,0)+RIGHT($E22),0)\n+AR$11*OFFSET('Efficiency Distributions'!$E$10,MATCH($C15,'Efficiency Distributions'!$C$9:$C$87,0)+RIGHT($E22),0))\n/SUM(AR$10:AR$11)","v":0.10620432637962586},{"$f":"IF(INDEX(PC_MAPPING,RIGHT($C15,1),MATCH($E$2,'Data by Building Type'!$D$22:$F$22,0))=\"Yes\",1,0)*\n(AS$10*OFFSET('Efficiency Distributions'!$D$10,MATCH($C15,'Efficiency Distributions'!$C$9:$C$87,0)+RIGHT($E22),0)\n+AS$11*OFFSET('Efficiency Distributions'!$E$10,MATCH($C15,'Efficiency Distributions'!$C$9:$C$87,0)+RIGHT($E22),0))\n/SUM(AS$10:AS$11)","v":0.10619744411628657},{"$f":"IF(INDEX(PC_MAPPING,RIGHT($C15,1),MATCH($E$2,'Data by Building Type'!$D$22:$F$22,0))=\"Yes\",1,0)*\n(AT$10*OFFSET('Efficiency Distributions'!$D$10,MATCH($C15,'Efficiency Distributions'!$C$9:$C$87,0)+RIGHT($E22),0)\n+AT$11*OFFSET('Efficiency Distributions'!$E$10,MATCH($C15,'Efficiency Distributions'!$C$9:$C$87,0)+RIGHT($E22),0))\n/SUM(AT$10:AT$11)","v":0.10592279607236275},{"$f":"IF(INDEX(PC_MAPPING,RIGHT($C15,1),MATCH($E$2,'Data by Building Type'!$D$22:$F$22,0))=\"Yes\",1,0)*\n(AU$10*OFFSET('Efficiency Distributions'!$D$10,MATCH($C15,'Efficiency Distributions'!$C$9:$C$87,0)+RIGHT($E22),0)\n+AU$11*OFFSET('Efficiency Distributions'!$E$10,MATCH($C15,'Efficiency Distributions'!$C$9:$C$87,0)+RIGHT($E22),0))\n/SUM(AU$10:AU$11)","v":0.10624532707553361},{"$f":"IF(INDEX(PC_MAPPING,RIGHT($C15,1),MATCH($E$2,'Data by Building Type'!$D$22:$F$22,0))=\"Yes\",1,0)*\n(AV$10*OFFSET('Efficiency Distributions'!$D$10,MATCH($C15,'Efficiency Distributions'!$C$9:$C$87,0)+RIGHT($E22),0)\n+AV$11*OFFSET('Efficiency Distributions'!$E$10,MATCH($C15,'Efficiency Distributions'!$C$9:$C$87,0)+RIGHT($E22),0))\n/SUM(AV$10:AV$11)","v":0.1106961871904671},{"$f":"IF(INDEX(PC_MAPPING,RIGHT($C15,1),MATCH($E$2,'Data by Building Type'!$D$22:$F$22,0))=\"Yes\",1,0)*\n(AW$10*OFFSET('Efficiency Distributions'!$D$10,MATCH($C15,'Efficiency Distributions'!$C$9:$C$87,0)+RIGHT($E22),0)\n+AW$11*OFFSET('Efficiency Distributions'!$E$10,MATCH($C15,'Efficiency Distributions'!$C$9:$C$87,0)+RIGHT($E22),0))\n/SUM(AW$10:AW$11)","v":0.110433728678639},{"$f":"IF(INDEX(PC_MAPPING,RIGHT($C15,1),MATCH($E$2,'Data by Building Type'!$D$22:$F$22,0))=\"Yes\",1,0)*\n(AX$10*OFFSET('Efficiency Distributions'!$D$10,MATCH($C15,'Efficiency Distributions'!$C$9:$C$87,0)+RIGHT($E22),0)\n+AX$11*OFFSET('Efficiency Distributions'!$E$10,MATCH($C15,'Efficiency Distributions'!$C$9:$C$87,0)+RIGHT($E22),0))\n/SUM(AX$10:AX$11)","v":0.11175845678472118},{"$f":"IF(INDEX(PC_MAPPING,RIGHT($C15,1),MATCH($E$2,'Data by Building Type'!$D$22:$F$22,0))=\"Yes\",1,0)*\n(AY$10*OFFSET('Efficiency Distributions'!$D$10,MATCH($C15,'Efficiency Distributions'!$C$9:$C$87,0)+RIGHT($E22),0)\n+AY$11*OFFSET('Efficiency Distributions'!$E$10,MATCH($C15,'Efficiency Distributions'!$C$9:$C$87,0)+RIGHT($E22),0))\n/SUM(AY$10:AY$11)","v":0.11216040899461333},{"$f":"IF(INDEX(PC_MAPPING,RIGHT($C15,1),MATCH($E$2,'Data by Building Type'!$D$22:$F$22,0))=\"Yes\",1,0)*\n(AZ$10*OFFSET('Efficiency Distributions'!$D$10,MATCH($C15,'Efficiency Distributions'!$C$9:$C$87,0)+RIGHT($E22),0)\n+AZ$11*OFFSET('Efficiency Distributions'!$E$10,MATCH($C15,'Efficiency Distributions'!$C$9:$C$87,0)+RIGHT($E22),0))\n/SUM(AZ$10:AZ$11)","v":0.11155733817052706},{"$f":"IF(INDEX(PC_MAPPING,RIGHT($C15,1),MATCH($E$2,'Data by Building Type'!$D$22:$F$22,0))=\"Yes\",1,0)*\n(BA$10*OFFSET('Efficiency Distributions'!$D$10,MATCH($C15,'Efficiency Distributions'!$C$9:$C$87,0)+RIGHT($E22),0)\n+BA$11*OFFSET('Efficiency Distributions'!$E$10,MATCH($C15,'Efficiency Distributions'!$C$9:$C$87,0)+RIGHT($E22),0))\n/SUM(BA$10:BA$11)","v":0.11063005999710086},{"$f":"IF(INDEX(PC_MAPPING,RIGHT($C15,1),MATCH($E$2,'Data by Building Type'!$D$22:$F$22,0))=\"Yes\",1,0)*\n(BB$10*OFFSET('Efficiency Distributions'!$D$10,MATCH($C15,'Efficiency Distributions'!$C$9:$C$87,0)+RIGHT($E22),0)\n+BB$11*OFFSET('Efficiency Distributions'!$E$10,MATCH($C15,'Efficiency Distributions'!$C$9:$C$87,0)+RIGHT($E22),0))\n/SUM(BB$10:BB$11)","v":0.10864582175722486},{"$f":"IF(INDEX(PC_MAPPING,RIGHT($C15,1),MATCH($E$2,'Data by Building Type'!$D$22:$F$22,0))=\"Yes\",1,0)*\n(BC$10*OFFSET('Efficiency Distributions'!$D$10,MATCH($C15,'Efficiency Distributions'!$C$9:$C$87,0)+RIGHT($E22),0)\n+BC$11*OFFSET('Efficiency Distributions'!$E$10,MATCH($C15,'Efficiency Distributions'!$C$9:$C$87,0)+RIGHT($E22),0))\n/SUM(BC$10:BC$11)","v":0.10824347191063519},{"$f":"IF(INDEX(PC_MAPPING,RIGHT($C15,1),MATCH($E$2,'Data by Building Type'!$D$22:$F$22,0))=\"Yes\",1,0)*\n(BD$10*OFFSET('Efficiency Distributions'!$D$10,MATCH($C15,'Efficiency Distributions'!$C$9:$C$87,0)+RIGHT($E22),0)\n+BD$11*OFFSET('Efficiency Distributions'!$E$10,MATCH($C15,'Efficiency Distributions'!$C$9:$C$87,0)+RIGHT($E22),0))\n/SUM(BD$10:BD$11)","v":0.11049495936478859},{"$f":"IF(INDEX(PC_MAPPING,RIGHT($C15,1),MATCH($E$2,'Data by Building Type'!$D$22:$F$22,0))=\"Yes\",1,0)*\n(BE$10*OFFSET('Efficiency Distributions'!$D$10,MATCH($C15,'Efficiency Distributions'!$C$9:$C$87,0)+RIGHT($E22),0)\n+BE$11*OFFSET('Efficiency Distributions'!$E$10,MATCH($C15,'Efficiency Distributions'!$C$9:$C$87,0)+RIGHT($E22),0))\n/SUM(BE$10:BE$11)","v":0.11206903159607759},{"$f":"IF(INDEX(PC_MAPPING,RIGHT($C15,1),MATCH($E$2,'Data by Building Type'!$D$22:$F$22,0))=\"Yes\",1,0)*\n(BF$10*OFFSET('Efficiency Distributions'!$D$10,MATCH($C15,'Efficiency Distributions'!$C$9:$C$87,0)+RIGHT($E22),0)\n+BF$11*OFFSET('Efficiency Distributions'!$E$10,MATCH($C15,'Efficiency Distributions'!$C$9:$C$87,0)+RIGHT($E22),0))\n/SUM(BF$10:BF$11)","v":0.11519794086550472},{"$f":"IF(INDEX(PC_MAPPING,RIGHT($C15,1),MATCH($E$2,'Data by Building Type'!$D$22:$F$22,0))=\"Yes\",1,0)*\n(BG$10*OFFSET('Efficiency Distributions'!$D$10,MATCH($C15,'Efficiency Distributions'!$C$9:$C$87,0)+RIGHT($E22),0)\n+BG$11*OFFSET('Efficiency Distributions'!$E$10,MATCH($C15,'Efficiency Distributions'!$C$9:$C$87,0)+RIGHT($E22),0))\n/SUM(BG$10:BG$11)","v":0.11577683342111755}]
[null,null,null,null,"EL4",{"$f":"IF(INDEX(PC_MAPPING,RIGHT($C15,1),MATCH($E$2,'Data by Building Type'!$D$22:$F$22,0))=\"Yes\",1,0)*\n(F$10*OFFSET('Efficiency Distributions'!$D$10,MATCH($C15,'Efficiency Distributions'!$C$9:$C$87,0)+RIGHT($E23),0)\n+F$11*OFFSET('Efficiency Distributions'!$E$10,MATCH($C15,'Efficiency Distributions'!$C$9:$C$87,0)+RIGHT($E23),0))\n/SUM(F$10:F$11)","v":2.7834181216781897E-2},{"$f":"IF(INDEX(PC_MAPPING,RIGHT($C15,1),MATCH($E$2,'Data by Building Type'!$D$22:$F$22,0))=\"Yes\",1,0)*\n(G$10*OFFSET('Efficiency Distributions'!$D$10,MATCH($C15,'Efficiency Distributions'!$C$9:$C$87,0)+RIGHT($E23),0)\n+G$11*OFFSET('Efficiency Distributions'!$E$10,MATCH($C15,'Efficiency Distributions'!$C$9:$C$87,0)+RIGHT($E23),0))\n/SUM(G$10:G$11)","v":2.9166307570333151E-2},{"$f":"IF(INDEX(PC_MAPPING,RIGHT($C15,1),MATCH($E$2,'Data by Building Type'!$D$22:$F$22,0))=\"Yes\",1,0)*\n(H$10*OFFSET('Efficiency Distributions'!$D$10,MATCH($C15,'Efficiency Distributions'!$C$9:$C$87,0)+RIGHT($E23),0)\n+H$11*OFFSET('Efficiency Distributions'!$E$10,MATCH($C15,'Efficiency Distributions'!$C$9:$C$87,0)+RIGHT($E23),0))\n/SUM(H$10:H$11)","v":2.7572754836181039E-2},{"$f":"IF(INDEX(PC_MAPPING,RIGHT($C15,1),MATCH($E$2,'Data by Building Type'!$D$22:$F$22,0))=\"Yes\",1,0)*\n(I$10*OFFSET('Efficiency Distributions'!$D$10,MATCH($C15,'Efficiency Distributions'!$C$9:$C$87,0)+RIGHT($E23),0)\n+I$11*OFFSET('Efficiency Distributions'!$E$10,MATCH($C15,'Efficiency Distributions'!$C$9:$C$87,0)+RIGHT($E23),0))\n/SUM(I$10:I$11)","v":2.7869960902492739E-2},{"$f":"IF(INDEX(PC_MAPPING,RIGHT($C15,1),MATCH($E$2,'Data by Building Type'!$D$22:$F$22,0))=\"Yes\",1,0)*\n(J$10*OFFSET('Efficiency Distributions'!$D$10,MATCH($C15,'Efficiency Distributions'!$C$9:$C$87,0)+RIGHT($E23),0)\n+J$11*OFFSET('Efficiency Distributions'!$E$10,MATCH($C15,'Efficiency Distributions'!$C$9:$C$87,0)+RIGHT($E23),0))\n/SUM(J$10:J$11)","v":2.8053975561152956E-2},{"$f":"IF(INDEX(PC_MAPPING,RIGHT($C15,1),MATCH($E$2,'Data by Building Type'!$D$22:$F$22,0))=\"Yes\",1,0)*\n(K$10*OFFSET('Efficiency Distributions'!$D$10,MATCH($C15,'Efficiency Distributions'!$C$9:$C$87,0)+RIGHT($E23),0)\n+K$11*OFFSET('Efficiency Distributions'!$E$10,MATCH($C15,'Efficiency Distributions'!$C$9:$C$87,0)+RIGHT($E23),0))\n/SUM(K$10:K$11)","v":2.7750218190923524E-2},{"$f":"IF(INDEX(PC_MAPPING,RIGHT($C15,1),MATCH($E$2,'Data by Building Type'!$D$22:$F$22,0))=\"Yes\",1,0)*\n(L$10*OFFSET('Efficiency Distributions'!$D$10,MATCH($C15,'Efficiency Distributions'!$C$9:$C$87,0)+RIGHT($E23),0)\n+L$11*OFFSET('Efficiency Distributions'!$E$10,MATCH($C15,'Efficiency Distributions'!$C$9:$C$87,0)+RIGHT($E23),0))\n/SUM(L$10:L$11)","v":2.7726318760095393E-2},{"$f":"IF(INDEX(PC_MAPPING,RIGHT($C15,1),MATCH($E$2,'Data by Building Type'!$D$22:$F$22,0))=\"Yes\",1,0)*\n(M$10*OFFSET('Efficiency Distributions'!$D$10,MATCH($C15,'Efficiency Distributions'!$C$9:$C$87,0)+RIGHT($E23),0)\n+M$11*OFFSET('Efficiency Distributions'!$E$10,MATCH($C15,'Efficiency Distributions'!$C$9:$C$87,0)+RIGHT($E23),0))\n/SUM(M$10:M$11)","v":2.7319335937809261E-2},{"$f":"IF(INDEX(PC_MAPPING,RIGHT($C15,1),MATCH($E$2,'Data by Building Type'!$D$22:$F$22,0))=\"Yes\",1,0)*\n(N$10*OFFSET('Efficiency Distributions'!$D$10,MATCH($C15,'Efficiency Distributions'!$C$9:$C$87,0)+RIGHT($E23),0)\n+N$11*OFFSET('Efficiency Distributions'!$E$10,MATCH($C15,'Efficiency Distributions'!$C$9:$C$87,0)+RIGHT($E23),0))\n/SUM(N$10:N$11)","v":2.6390639839496747E-2},{"$f":"IF(INDEX(PC_MAPPING,RIGHT($C15,1),MATCH($E$2,'Data by Building Type'!$D$22:$F$22,0))=\"Yes\",1,0)*\n(O$10*OFFSET('Efficiency Distributions'!$D$10,MATCH($C15,'Efficiency Distributions'!$C$9:$C$87,0)+RIGHT($E23),0)\n+O$11*OFFSET('Efficiency Distributions'!$E$10,MATCH($C15,'Efficiency Distributions'!$C$9:$C$87,0)+RIGHT($E23),0))\n/SUM(O$10:O$11)","v":2.5757778699244054E-2},{"$f":"IF(INDEX(PC_MAPPING,RIGHT($C15,1),MATCH($E$2,'Data by Building Type'!$D$22:$F$22,0))=\"Yes\",1,0)*\n(P$10*OFFSET('Efficiency Distributions'!$D$10,MATCH($C15,'Efficiency Distributions'!$C$9:$C$87,0)+RIGHT($E23),0)\n+P$11*OFFSET('Efficiency Distributions'!$E$10,MATCH($C15,'Efficiency Distributions'!$C$9:$C$87,0)+RIGHT($E23),0))\n/SUM(P$10:P$11)","v":2.6402951460351192E-2},{"$f":"IF(INDEX(PC_MAPPING,RIGHT($C15,1),MATCH($E$2,'Data by Building Type'!$D$22:$F$22,0))=\"Yes\",1,0)*\n(Q$10*OFFSET('Efficiency Distributions'!$D$10,MATCH($C15,'Efficiency Distributions'!$C$9:$C$87,0)+RIGHT($E23),0)\n+Q$11*OFFSET('Efficiency Distributions'!$E$10,MATCH($C15,'Efficiency Distributions'!$C$9:$C$87,0)+RIGHT($E23),0))\n/SUM(Q$10:Q$11)","v":2.5341803791891764E-2},{"$f":"IF(INDEX(PC_MAPPING,RIGHT($C15,1),MATCH($E$2,'Data by Building Type'!$D$22:$F$22,0))=\"Yes\",1,0)*\n(R$10*OFFSET('Efficiency Distributions'!$D$10,MATCH($C15,'Efficiency Distributions'!$C$9:$C$87,0)+RIGHT($E23),0)\n+R$11*OFFSET('Efficiency Distributions'!$E$10,MATCH($C15,'Efficiency Distributions'!$C$9:$C$87,0)+RIGHT($E23),0))\n/SUM(R$10:R$11)","v":2.8256693112844216E-2},{"$f":"IF(INDEX(PC_MAPPING,RIGHT($C15,1),MATCH($E$2,'Data by Building Type'!$D$22:$F$22,0))=\"Yes\",1,0)*\n(S$10*OFFSET('Efficiency Distributions'!$D$10,MATCH($C15,'Efficiency Distributions'!$C$9:$C$87,0)+RIGHT($E23),0)\n+S$11*OFFSET('Efficiency Distributions'!$E$10,MATCH($C15,'Efficiency Distributions'!$C$9:$C$87,0)+RIGHT($E23),0))\n/SUM(S$10:S$11)","v":2.796310849133863E-2},{"$f":"IF(INDEX(PC_MAPPING,RIGHT($C15,1),MATCH($E$2,'Data by Building Type'!$D$22:$F$22,0))=\"Yes\",1,0)*\n(T$10*OFFSET('Efficiency Distributions'!$D$10,MATCH($C15,'Efficiency Distributions'!$C$9:$C$87,0)+RIGHT($E23),0)\n+T$11*OFFSET('Efficiency Distributions'!$E$10,MATCH($C15,'Efficiency Distributions'!$C$9:$C$87,0)+RIGHT($E23),0))\n/SUM(T$10:T$11)","v":2.9044883813366808E-2},{"$f":"IF(INDEX(PC_MAPPING,RIGHT($C15,1),MATCH($E$2,'Data by Building Type'!$D$22:$F$22,0))=\"Yes\",1,0)*\n(U$10*OFFSET('Efficiency Distributions'!$D$10,MATCH($C15,'Efficiency Distributions'!$C$9:$C$87,0)+RIGHT($E23),0)\n+U$11*OFFSET('Efficiency Distributions'!$E$10,MATCH($C15,'Efficiency Distributions'!$C$9:$C$87,0)+RIGHT($E23),0))\n/SUM(U$10:U$11)","v":2.8889039395057301E-2},{"$f":"IF(INDEX(PC_MAPPING,RIGHT($C15,1),MATCH($E$2,'Data by Building Type'!$D$22:$F$22,0))=\"Yes\",1,0)*\n(V$10*OFFSET('Efficiency Distributions'!$D$10,MATCH($C15,'Efficiency Distributions'!$C$9:$C$87,0)+RIGHT($E23),0)\n+V$11*OFFSET('Efficiency Distributions'!$E$10,MATCH($C15,'Efficiency Distributions'!$C$9:$C$87,0)+RIGHT($E23),0))\n/SUM(V$10:V$11)","v":2.9119527412520888E-2},{"$f":"IF(INDEX(PC_MAPPING,RIGHT($C15,1),MATCH($E$2,'Data by Building Type'!$D$22:$F$22,0))=\"Yes\",1,0)*\n(W$10*OFFSET('Efficiency Distributions'!$D$10,MATCH($C15,'Efficiency Distributions'!$C$9:$C$87,0)+RIGHT($E23),0)\n+W$11*OFFSET('Efficiency Distributions'!$E$10,MATCH($C15,'Efficiency Distributions'!$C$9:$C$87,0)+RIGHT($E23),0))\n/SUM(W$10:W$11)","v":2.9009006491792805E-2},{"$f":"IF(INDEX(PC_MAPPING,RIGHT($C15,1),MATCH($E$2,'Data by Building Type'!$D$22:$F$22,0))=\"Yes\",1,0)*\n(X$10*OFFSET('Efficiency Distributions'!$D$10,MATCH($C15,'Efficiency Distributions'!$C$9:$C$87,0)+RIGHT($E23),0)\n+X$11*OFFSET('Efficiency Distributions'!$E$10,MATCH($C15,'Efficiency Distributions'!$C$9:$C$87,0)+RIGHT($E23),0))\n/SUM(X$10:X$11)","v":2.9363804208883959E-2},{"$f":"IF(INDEX(PC_MAPPING,RIGHT($C15,1),MATCH($E$2,'Data by Building Type'!$D$22:$F$22,0))=\"Yes\",1,0)*\n(Y$10*OFFSET('Efficiency Distributions'!$D$10,MATCH($C15,'Efficiency Distributions'!$C$9:$C$87,0)+RIGHT($E23),0)\n+Y$11*OFFSET('Efficiency Distributions'!$E$10,MATCH($C15,'Efficiency Distributions'!$C$9:$C$87,0)+RIGHT($E23),0))\n/SUM(Y$10:Y$11)","v":3.0227009822204901E-2},{"$f":"IF(INDEX(PC_MAPPING,RIGHT($C15,1),MATCH($E$2,'Data by Building Type'!$D$22:$F$22,0))=\"Yes\",1,0)*\n(Z$10*OFFSET('Efficiency Distributions'!$D$10,MATCH($C15,'Efficiency Distributions'!$C$9:$C$87,0)+RIGHT($E23),0)\n+Z$11*OFFSET('Efficiency Distributions'!$E$10,MATCH($C15,'Efficiency Distributions'!$C$9:$C$87,0)+RIGHT($E23),0))\n/SUM(Z$10:Z$11)","v":3.0241586668904499E-2},{"$f":"IF(INDEX(PC_MAPPING,RIGHT($C15,1),MATCH($E$2,'Data by Building Type'!$D$22:$F$22,0))=\"Yes\",1,0)*\n(AA$10*OFFSET('Efficiency Distributions'!$D$10,MATCH($C15,'Efficiency Distributions'!$C$9:$C$87,0)+RIGHT($E23),0)\n+AA$11*OFFSET('Efficiency Distributions'!$E$10,MATCH($C15,'Efficiency Distributions'!$C$9:$C$87,0)+RIGHT($E23),0))\n/SUM(AA$10:AA$11)","v":3.0107861579808437E-2},{"$f":"IF(INDEX(PC_MAPPING,RIGHT($C15,1),MATCH($E$2,'Data by Building Type'!$D$22:$F$22,0))=\"Yes\",1,0)*\n(AB$10*OFFSET('Efficiency Distributions'!$D$10,MATCH($C15,'Efficiency Distributions'!$C$9:$C$87,0)+RIGHT($E23),0)\n+AB$11*OFFSET('Efficiency Distributions'!$E$10,MATCH($C15,'Efficiency Distributions'!$C$9:$C$87,0)+RIGHT($E23),0))\n/SUM(AB$10:AB$11)","v":2.9345970593606455E-2},{"$f":"IF(INDEX(PC_MAPPING,RIGHT($C15,1),MATCH($E$2,'Data by Building Type'!$D$22:$F$22,0))=\"Yes\",1,0)*\n(AC$10*OFFSET('Efficiency Distributions'!$D$10,MATCH($C15,'Efficiency Distributions'!$C$9:$C$87,0)+RIGHT($E23),0)\n+AC$11*OFFSET('Efficiency Distributions'!$E$10,MATCH($C15,'Efficiency Distributions'!$C$9:$C$87,0)+RIGHT($E23),0))\n/SUM(AC$10:AC$11)","v":2.9399192200723033E-2},{"$f":"IF(INDEX(PC_MAPPING,RIGHT($C15,1),MATCH($E$2,'Data by Building Type'!$D$22:$F$22,0))=\"Yes\",1,0)*\n(AD$10*OFFSET('Efficiency Distributions'!$D$10,MATCH($C15,'Efficiency Distributions'!$C$9:$C$87,0)+RIGHT($E23),0)\n+AD$11*OFFSET('Efficiency Distributions'!$E$10,MATCH($C15,'Efficiency Distributions'!$C$9:$C$87,0)+RIGHT($E23),0))\n/SUM(AD$10:AD$11)","v":2.8743252899332866E-2},{"$f":"IF(INDEX(PC_MAPPING,RIGHT($C15,1),MATCH($E$2,'Data by Building Type'!$D$22:$F$22,0))=\"Yes\",1,0)*\n(AE$10*OFFSET('Efficiency Distributions'!$D$10,MATCH($C15,'Efficiency Distributions'!$C$9:$C$87,0)+RIGHT($E23),0)\n+AE$11*OFFSET('Efficiency Distributions'!$E$10,MATCH($C15,'Efficiency Distributions'!$C$9:$C$87,0)+RIGHT($E23),0))\n/SUM(AE$10:AE$11)","v":2.9738766758809234E-2},{"$f":"IF(INDEX(PC_MAPPING,RIGHT($C15,1),MATCH($E$2,'Data by Building Type'!$D$22:$F$22,0))=\"Yes\",1,0)*\n(AF$10*OFFSET('Efficiency Distributions'!$D$10,MATCH($C15,'Efficiency Distributions'!$C$9:$C$87,0)+RIGHT($E23),0)\n+AF$11*OFFSET('Efficiency Distributions'!$E$10,MATCH($C15,'Efficiency Distributions'!$C$9:$C$87,0)+RIGHT($E23),0))\n/SUM(AF$10:AF$11)","v":3.1937759555481969E-2},{"$f":"IF(INDEX(PC_MAPPING,RIGHT($C15,1),MATCH($E$2,'Data by Building Type'!$D$22:$F$22,0))=\"Yes\",1,0)*\n(AG$10*OFFSET('Efficiency Distributions'!$D$10,MATCH($C15,'Efficiency Distributions'!$C$9:$C$87,0)+RIGHT($E23),0)\n+AG$11*OFFSET('Efficiency Distributions'!$E$10,MATCH($C15,'Efficiency Distributions'!$C$9:$C$87,0)+RIGHT($E23),0))\n/SUM(AG$10:AG$11)","v":3.2876609796224761E-2},{"$f":"IF(INDEX(PC_MAPPING,RIGHT($C15,1),MATCH($E$2,'Data by Building Type'!$D$22:$F$22,0))=\"Yes\",1,0)*\n(AH$10*OFFSET('Efficiency Distributions'!$D$10,MATCH($C15,'Efficiency Distributions'!$C$9:$C$87,0)+RIGHT($E23),0)\n+AH$11*OFFSET('Efficiency Distributions'!$E$10,MATCH($C15,'Efficiency Distributions'!$C$9:$C$87,0)+RIGHT($E23),0))\n/SUM(AH$10:AH$11)","v":3.2876609796224761E-2},{"$f":"IF(INDEX(PC_MAPPING,RIGHT($C15,1),MATCH($E$2,'Data by Building Type'!$D$22:$F$22,0))=\"Yes\",1,0)*\n(AI$10*OFFSET('Efficiency Distributions'!$D$10,MATCH($C15,'Efficiency Distributions'!$C$9:$C$87,0)+RIGHT($E23),0)\n+AI$11*OFFSET('Efficiency Distributions'!$E$10,MATCH($C15,'Efficiency Distributions'!$C$9:$C$87,0)+RIGHT($E23),0))\n/SUM(AI$10:AI$11)","v":3.2876609796224761E-2},{"$f":"IF(INDEX(PC_MAPPING,RIGHT($C15,1),MATCH($E$2,'Data by Building Type'!$D$22:$F$22,0))=\"Yes\",1,0)*\n(AJ$10*OFFSET('Efficiency Distributions'!$D$10,MATCH($C15,'Efficiency Distributions'!$C$9:$C$87,0)+RIGHT($E23),0)\n+AJ$11*OFFSET('Efficiency Distributions'!$E$10,MATCH($C15,'Efficiency Distributions'!$C$9:$C$87,0)+RIGHT($E23),0))\n/SUM(AJ$10:AJ$11)","v":3.2485511120009226E-2},{"$f":"IF(INDEX(PC_MAPPING,RIGHT($C15,1),MATCH($E$2,'Data by Building Type'!$D$22:$F$22,0))=\"Yes\",1,0)*\n(AK$10*OFFSET('Efficiency Distributions'!$D$10,MATCH($C15,'Efficiency Distributions'!$C$9:$C$87,0)+RIGHT($E23),0)\n+AK$11*OFFSET('Efficiency Distributions'!$E$10,MATCH($C15,'Efficiency Distributions'!$C$9:$C$87,0)+RIGHT($E23),0))\n/SUM(AK$10:AK$11)","v":2.7017316116354811E-2},{"$f":"IF(INDEX(PC_MAPPING,RIGHT($C15,1),MATCH($E$2,'Data by Building Type'!$D$22:$F$22,0))=\"Yes\",1,0)*\n(AL$10*OFFSET('Efficiency Distributions'!$D$10,MATCH($C15,'Efficiency Distributions'!$C$9:$C$87,0)+RIGHT($E23),0)\n+AL$11*OFFSET('Efficiency Distributions'!$E$10,MATCH($C15,'Efficiency Distributions'!$C$9:$C$87,0)+RIGHT($E23),0))\n/SUM(AL$10:AL$11)","v":2.718096276948578E-2},{"$f":"IF(INDEX(PC_MAPPING,RIGHT($C15,1),MATCH($E$2,'Data by Building Type'!$D$22:$F$22,0))=\"Yes\",1,0)*\n(AM$10*OFFSET('Efficiency Distributions'!$D$10,MATCH($C15,'Efficiency Distributions'!$C$9:$C$87,0)+RIGHT($E23),0)\n+AM$11*OFFSET('Efficiency Distributions'!$E$10,MATCH($C15,'Efficiency Distributions'!$C$9:$C$87,0)+RIGHT($E23),0))\n/SUM(AM$10:AM$11)","v":2.6477906889549215E-2},{"$f":"IF(INDEX(PC_MAPPING,RIGHT($C15,1),MATCH($E$2,'Data by Building Type'!$D$22:$F$22,0))=\"Yes\",1,0)*\n(AN$10*OFFSET('Efficiency Distributions'!$D$10,MATCH($C15,'Efficiency Distributions'!$C$9:$C$87,0)+RIGHT($E23),0)\n+AN$11*OFFSET('Efficiency Distributions'!$E$10,MATCH($C15,'Efficiency Distributions'!$C$9:$C$87,0)+RIGHT($E23),0))\n/SUM(AN$10:AN$11)","v":2.6534670120846027E-2},{"$f":"IF(INDEX(PC_MAPPING,RIGHT($C15,1),MATCH($E$2,'Data by Building Type'!$D$22:$F$22,0))=\"Yes\",1,0)*\n(AO$10*OFFSET('Efficiency Distributions'!$D$10,MATCH($C15,'Efficiency Distributions'!$C$9:$C$87,0)+RIGHT($E23),0)\n+AO$11*OFFSET('Efficiency Distributions'!$E$10,MATCH($C15,'Efficiency Distributions'!$C$9:$C$87,0)+RIGHT($E23),0))\n/SUM(AO$10:AO$11)","v":2.6259192012971881E-2},{"$f":"IF(INDEX(PC_MAPPING,RIGHT($C15,1),MATCH($E$2,'Data by Building Type'!$D$22:$F$22,0))=\"Yes\",1,0)*\n(AP$10*OFFSET('Efficiency Distributions'!$D$10,MATCH($C15,'Efficiency Distributions'!$C$9:$C$87,0)+RIGHT($E23),0)\n+AP$11*OFFSET('Efficiency Distributions'!$E$10,MATCH($C15,'Efficiency Distributions'!$C$9:$C$87,0)+RIGHT($E23),0))\n/SUM(AP$10:AP$11)","v":2.6380383071022456E-2},{"$f":"IF(INDEX(PC_MAPPING,RIGHT($C15,1),MATCH($E$2,'Data by Building Type'!$D$22:$F$22,0))=\"Yes\",1,0)*\n(AQ$10*OFFSET('Efficiency Distributions'!$D$10,MATCH($C15,'Efficiency Distributions'!$C$9:$C$87,0)+RIGHT($E23),0)\n+AQ$11*OFFSET('Efficiency Distributions'!$E$10,MATCH($C15,'Efficiency Distributions'!$C$9:$C$87,0)+RIGHT($E23),0))\n/SUM(AQ$10:AQ$11)","v":2.6421539908450305E-2},{"$f":"IF(INDEX(PC_MAPPING,RIGHT($C15,1),MATCH($E$2,'Data by Building Type'!$D$22:$F$22,0))=\"Yes\",1,0)*\n(AR$10*OFFSET('Efficiency Distributions'!$D$10,MATCH($C15,'Efficiency Distributions'!$C$9:$C$87,0)+RIGHT($E23),0)\n+AR$11*OFFSET('Efficiency Distributions'!$E$10,MATCH($C15,'Efficiency Distributions'!$C$9:$C$87,0)+RIGHT($E23),0))\n/SUM(AR$10:AR$11)","v":2.6551081594906465E-2},{"$f":"IF(INDEX(PC_MAPPING,RIGHT($C15,1),MATCH($E$2,'Data by Building Type'!$D$22:$F$22,0))=\"Yes\",1,0)*\n(AS$10*OFFSET('Efficiency Distributions'!$D$10,MATCH($C15,'Efficiency Distributions'!$C$9:$C$87,0)+RIGHT($E23),0)\n+AS$11*OFFSET('Efficiency Distributions'!$E$10,MATCH($C15,'Efficiency Distributions'!$C$9:$C$87,0)+RIGHT($E23),0))\n/SUM(AS$10:AS$11)","v":2.6549361029071641E-2},{"$f":"IF(INDEX(PC_MAPPING,RIGHT($C15,1),MATCH($E$2,'Data by Building Type'!$D$22:$F$22,0))=\"Yes\",1,0)*\n(AT$10*OFFSET('Efficiency Distributions'!$D$10,MATCH($C15,'Efficiency Distributions'!$C$9:$C$87,0)+RIGHT($E23),0)\n+AT$11*OFFSET('Efficiency Distributions'!$E$10,MATCH($C15,'Efficiency Distributions'!$C$9:$C$87,0)+RIGHT($E23),0))\n/SUM(AT$10:AT$11)","v":2.6480699018090689E-2},{"$f":"IF(INDEX(PC_MAPPING,RIGHT($C15,1),MATCH($E$2,'Data by Building Type'!$D$22:$F$22,0))=\"Yes\",1,0)*\n(AU$10*OFFSET('Efficiency Distributions'!$D$10,MATCH($C15,'Efficiency Distributions'!$C$9:$C$87,0)+RIGHT($E23),0)\n+AU$11*OFFSET('Efficiency Distributions'!$E$10,MATCH($C15,'Efficiency Distributions'!$C$9:$C$87,0)+RIGHT($E23),0))\n/SUM(AU$10:AU$11)","v":2.6561331768883402E-2},{"$f":"IF(INDEX(PC_MAPPING,RIGHT($C15,1),MATCH($E$2,'Data by Building Type'!$D$22:$F$22,0))=\"Yes\",1,0)*\n(AV$10*OFFSET('Efficiency Distributions'!$D$10,MATCH($C15,'Efficiency Distributions'!$C$9:$C$87,0)+RIGHT($E23),0)\n+AV$11*OFFSET('Efficiency Distributions'!$E$10,MATCH($C15,'Efficiency Distributions'!$C$9:$C$87,0)+RIGHT($E23),0))\n/SUM(AV$10:AV$11)","v":2.7674046797616775E-2},{"$f":"IF(INDEX(PC_MAPPING,RIGHT($C15,1),MATCH($E$2,'Data by Building Type'!$D$22:$F$22,0))=\"Yes\",1,0)*\n(AW$10*OFFSET('Efficiency Distributions'!$D$10,MATCH($C15,'Efficiency Distributions'!$C$9:$C$87,0)+RIGHT($E23),0)\n+AW$11*OFFSET('Efficiency Distributions'!$E$10,MATCH($C15,'Efficiency Distributions'!$C$9:$C$87,0)+RIGHT($E23),0))\n/SUM(AW$10:AW$11)","v":2.760843216965975E-2},{"$f":"IF(INDEX(PC_MAPPING,RIGHT($C15,1),MATCH($E$2,'Data by Building Type'!$D$22:$F$22,0))=\"Yes\",1,0)*\n(AX$10*OFFSET('Efficiency Distributions'!$D$10,MATCH($C15,'Efficiency Distributions'!$C$9:$C$87,0)+RIGHT($E23),0)\n+AX$11*OFFSET('Efficiency Distributions'!$E$10,MATCH($C15,'Efficiency Distributions'!$C$9:$C$87,0)+RIGHT($E23),0))\n/SUM(AX$10:AX$11)","v":2.7939614196180296E-2},{"$f":"IF(INDEX(PC_MAPPING,RIGHT($C15,1),MATCH($E$2,'Data by Building Type'!$D$22:$F$22,0))=\"Yes\",1,0)*\n(AY$10*OFFSET('Efficiency Distributions'!$D$10,MATCH($C15,'Efficiency Distributions'!$C$9:$C$87,0)+RIGHT($E23),0)\n+AY$11*OFFSET('Efficiency Distributions'!$E$10,MATCH($C15,'Efficiency Distributions'!$C$9:$C$87,0)+RIGHT($E23),0))\n/SUM(AY$10:AY$11)","v":2.8040102248653331E-2},{"$f":"IF(INDEX(PC_MAPPING,RIGHT($C15,1),MATCH($E$2,'Data by Building Type'!$D$22:$F$22,0))=\"Yes\",1,0)*\n(AZ$10*OFFSET('Efficiency Distributions'!$D$10,MATCH($C15,'Efficiency Distributions'!$C$9:$C$87,0)+RIGHT($E23),0)\n+AZ$11*OFFSET('Efficiency Distributions'!$E$10,MATCH($C15,'Efficiency Distributions'!$C$9:$C$87,0)+RIGHT($E23),0))\n/SUM(AZ$10:AZ$11)","v":2.7889334542631764E-2},{"$f":"IF(INDEX(PC_MAPPING,RIGHT($C15,1),MATCH($E$2,'Data by Building Type'!$D$22:$F$22,0))=\"Yes\",1,0)*\n(BA$10*OFFSET('Efficiency Distributions'!$D$10,MATCH($C15,'Efficiency Distributions'!$C$9:$C$87,0)+RIGHT($E23),0)\n+BA$11*OFFSET('Efficiency Distributions'!$E$10,MATCH($C15,'Efficiency Distributions'!$C$9:$C$87,0)+RIGHT($E23),0))\n/SUM(BA$10:BA$11)","v":2.7657514999275216E-2},{"$f":"IF(INDEX(PC_MAPPING,RIGHT($C15,1),MATCH($E$2,'Data by Building Type'!$D$22:$F$22,0))=\"Yes\",1,0)*\n(BB$10*OFFSET('Efficiency Distributions'!$D$10,MATCH($C15,'Efficiency Distributions'!$C$9:$C$87,0)+RIGHT($E23),0)\n+BB$11*OFFSET('Efficiency Distributions'!$E$10,MATCH($C15,'Efficiency Distributions'!$C$9:$C$87,0)+RIGHT($E23),0))\n/SUM(BB$10:BB$11)","v":2.7161455439306214E-2},{"$f":"IF(INDEX(PC_MAPPING,RIGHT($C15,1),MATCH($E$2,'Data by Building Type'!$D$22:$F$22,0))=\"Yes\",1,0)*\n(BC$10*OFFSET('Efficiency Distributions'!$D$10,MATCH($C15,'Efficiency Distributions'!$C$9:$C$87,0)+RIGHT($E23),0)\n+BC$11*OFFSET('Efficiency Distributions'!$E$10,MATCH($C15,'Efficiency Distributions'!$C$9:$C$87,0)+RIGHT($E23),0))\n/SUM(BC$10:BC$11)","v":2.7060867977658797E-2},{"$f":"IF(INDEX(PC_MAPPING,RIGHT($C15,1),MATCH($E$2,'Data by Building Type'!$D$22:$F$22,0))=\"Yes\",1,0)*\n(BD$10*OFFSET('Efficiency Distributions'!$D$10,MATCH($C15,'Efficiency Distributions'!$C$9:$C$87,0)+RIGHT($E23),0)\n+BD$11*OFFSET('Efficiency Distributions'!$E$10,MATCH($C15,'Efficiency Distributions'!$C$9:$C$87,0)+RIGHT($E23),0))\n/SUM(BD$10:BD$11)","v":2.7623739841197148E-2},{"$f":"IF(INDEX(PC_MAPPING,RIGHT($C15,1),MATCH($E$2,'Data by Building Type'!$D$22:$F$22,0))=\"Yes\",1,0)*\n(BE$10*OFFSET('Efficiency Distributions'!$D$10,MATCH($C15,'Efficiency Distributions'!$C$9:$C$87,0)+RIGHT($E23),0)\n+BE$11*OFFSET('Efficiency Distributions'!$E$10,MATCH($C15,'Efficiency Distributions'!$C$9:$C$87,0)+RIGHT($E23),0))\n/SUM(BE$10:BE$11)","v":2.8017257899019397E-2},{"$f":"IF(INDEX(PC_MAPPING,RIGHT($C15,1),MATCH($E$2,'Data by Building Type'!$D$22:$F$22,0))=\"Yes\",1,0)*\n(BF$10*OFFSET('Efficiency Distributions'!$D$10,MATCH($C15,'Efficiency Distributions'!$C$9:$C$87,0)+RIGHT($E23),0)\n+BF$11*OFFSET('Efficiency Distributions'!$E$10,MATCH($C15,'Efficiency Distributions'!$C$9:$C$87,0)+RIGHT($E23),0))\n/SUM(BF$10:BF$11)","v":2.8799485216376181E-2},{"$f":"IF(INDEX(PC_MAPPING,RIGHT($C15,1),MATCH($E$2,'Data by Building Type'!$D$22:$F$22,0))=\"Yes\",1,0)*\n(BG$10*OFFSET('Efficiency Distributions'!$D$10,MATCH($C15,'Efficiency Distributions'!$C$9:$C$87,0)+RIGHT($E23),0)\n+BG$11*OFFSET('Efficiency Distributions'!$E$10,MATCH($C15,'Efficiency Distributions'!$C$9:$C$87,0)+RIGHT($E23),0))\n/SUM(BG$10:BG$11)","v":2.8944208355279388E-2}]
[null,null,null,null,"EL5",{"$f":"IF(INDEX(PC_MAPPING,RIGHT($C15,1),MATCH($E$2,'Data by Building Type'!$D$22:$F$22,0))=\"Yes\",1,0)*\n(F$10*OFFSET('Efficiency Distributions'!$D$10,MATCH($C15,'Efficiency Distributions'!$C$9:$C$87,0)+RIGHT($E24),0)\n+F$11*OFFSET('Efficiency Distributions'!$E$10,MATCH($C15,'Efficiency Distributions'!$C$9:$C$87,0)+RIGHT($E24),0))\n/SUM(F$10:F$11)","v":0.12127750387312113},{"$f":"IF(INDEX(PC_MAPPING,RIGHT($C15,1),MATCH($E$2,'Data by Building Type'!$D$22:$F$22,0))=\"Yes\",1,0)*\n(G$10*OFFSET('Efficiency Distributions'!$D$10,MATCH($C15,'Efficiency Distributions'!$C$9:$C$87,0)+RIGHT($E24),0)\n+G$11*OFFSET('Efficiency Distributions'!$E$10,MATCH($C15,'Efficiency Distributions'!$C$9:$C$87,0)+RIGHT($E24),0))\n/SUM(G$10:G$11)","v":0.12708176869930873},{"$f":"IF(INDEX(PC_MAPPING,RIGHT($C15,1),MATCH($E$2,'Data by Building Type'!$D$22:$F$22,0))=\"Yes\",1,0)*\n(H$10*OFFSET('Efficiency Distributions'!$D$10,MATCH($C15,'Efficiency Distributions'!$C$9:$C$87,0)+RIGHT($E24),0)\n+H$11*OFFSET('Efficiency Distributions'!$E$10,MATCH($C15,'Efficiency Distributions'!$C$9:$C$87,0)+RIGHT($E24),0))\n/SUM(H$10:H$11)","v":0.12013843178621739},{"$f":"IF(INDEX(PC_MAPPING,RIGHT($C15,1),MATCH($E$2,'Data by Building Type'!$D$22:$F$22,0))=\"Yes\",1,0)*\n(I$10*OFFSET('Efficiency Distributions'!$D$10,MATCH($C15,'Efficiency Distributions'!$C$9:$C$87,0)+RIGHT($E24),0)\n+I$11*OFFSET('Efficiency Distributions'!$E$10,MATCH($C15,'Efficiency Distributions'!$C$9:$C$87,0)+RIGHT($E24),0))\n/SUM(I$10:I$11)","v":0.12143340107514695},{"$f":"IF(INDEX(PC_MAPPING,RIGHT($C15,1),MATCH($E$2,'Data by Building Type'!$D$22:$F$22,0))=\"Yes\",1,0)*\n(J$10*OFFSET('Efficiency Distributions'!$D$10,MATCH($C15,'Efficiency Distributions'!$C$9:$C$87,0)+RIGHT($E24),0)\n+J$11*OFFSET('Efficiency Distributions'!$E$10,MATCH($C15,'Efficiency Distributions'!$C$9:$C$87,0)+RIGHT($E24),0))\n/SUM(J$10:J$11)","v":0.12223517923073787},{"$f":"IF(INDEX(PC_MAPPING,RIGHT($C15,1),MATCH($E$2,'Data by Building Type'!$D$22:$F$22,0))=\"Yes\",1,0)*\n(K$10*OFFSET('Efficiency Distributions'!$D$10,MATCH($C15,'Efficiency Distributions'!$C$9:$C$87,0)+RIGHT($E24),0)\n+K$11*OFFSET('Efficiency Distributions'!$E$10,MATCH($C15,'Efficiency Distributions'!$C$9:$C$87,0)+RIGHT($E24),0))\n/SUM(K$10:K$11)","v":0.12091166497473821},{"$f":"IF(INDEX(PC_MAPPING,RIGHT($C15,1),MATCH($E$2,'Data by Building Type'!$D$22:$F$22,0))=\"Yes\",1,0)*\n(L$10*OFFSET('Efficiency Distributions'!$D$10,MATCH($C15,'Efficiency Distributions'!$C$9:$C$87,0)+RIGHT($E24),0)\n+L$11*OFFSET('Efficiency Distributions'!$E$10,MATCH($C15,'Efficiency Distributions'!$C$9:$C$87,0)+RIGHT($E24),0))\n/SUM(L$10:L$11)","v":0.12080753174041564},{"$f":"IF(INDEX(PC_MAPPING,RIGHT($C15,1),MATCH($E$2,'Data by Building Type'!$D$22:$F$22,0))=\"Yes\",1,0)*\n(M$10*OFFSET('Efficiency Distributions'!$D$10,MATCH($C15,'Efficiency Distributions'!$C$9:$C$87,0)+RIGHT($E24),0)\n+M$11*OFFSET('Efficiency Distributions'!$E$10,MATCH($C15,'Efficiency Distributions'!$C$9:$C$87,0)+RIGHT($E24),0))\n/SUM(M$10:M$11)","v":0.11903424944331178},{"$f":"IF(INDEX(PC_MAPPING,RIGHT($C15,1),MATCH($E$2,'Data by Building Type'!$D$22:$F$22,0))=\"Yes\",1,0)*\n(N$10*OFFSET('Efficiency Distributions'!$D$10,MATCH($C15,'Efficiency Distributions'!$C$9:$C$87,0)+RIGHT($E24),0)\n+N$11*OFFSET('Efficiency Distributions'!$E$10,MATCH($C15,'Efficiency Distributions'!$C$9:$C$87,0)+RIGHT($E24),0))\n/SUM(N$10:N$11)","v":0.11498778787209296},{"$f":"IF(INDEX(PC_MAPPING,RIGHT($C15,1),MATCH($E$2,'Data by Building Type'!$D$22:$F$22,0))=\"Yes\",1,0)*\n(O$10*OFFSET('Efficiency Distributions'!$D$10,MATCH($C15,'Efficiency Distributions'!$C$9:$C$87,0)+RIGHT($E24),0)\n+O$11*OFFSET('Efficiency Distributions'!$E$10,MATCH($C15,'Efficiency Distributions'!$C$9:$C$87,0)+RIGHT($E24),0))\n/SUM(O$10:O$11)","v":0.11223032147527767},{"$f":"IF(INDEX(PC_MAPPING,RIGHT($C15,1),MATCH($E$2,'Data by Building Type'!$D$22:$F$22,0))=\"Yes\",1,0)*\n(P$10*OFFSET('Efficiency Distributions'!$D$10,MATCH($C15,'Efficiency Distributions'!$C$9:$C$87,0)+RIGHT($E24),0)\n+P$11*OFFSET('Efficiency Distributions'!$E$10,MATCH($C15,'Efficiency Distributions'!$C$9:$C$87,0)+RIGHT($E24),0))\n/SUM(P$10:P$11)","v":0.11504143136295876},{"$f":"IF(INDEX(PC_MAPPING,RIGHT($C15,1),MATCH($E$2,'Data by Building Type'!$D$22:$F$22,0))=\"Yes\",1,0)*\n(Q$10*OFFSET('Efficiency Distributions'!$D$10,MATCH($C15,'Efficiency Distributions'!$C$9:$C$87,0)+RIGHT($E24),0)\n+Q$11*OFFSET('Efficiency Distributions'!$E$10,MATCH($C15,'Efficiency Distributions'!$C$9:$C$87,0)+RIGHT($E24),0))\n/SUM(Q$10:Q$11)","v":0.11041785937895697},{"$f":"IF(INDEX(PC_MAPPING,RIGHT($C15,1),MATCH($E$2,'Data by Building Type'!$D$22:$F$22,0))=\"Yes\",1,0)*\n(R$10*OFFSET('Efficiency Distributions'!$D$10,MATCH($C15,'Efficiency Distributions'!$C$9:$C$87,0)+RIGHT($E24),0)\n+R$11*OFFSET('Efficiency Distributions'!$E$10,MATCH($C15,'Efficiency Distributions'!$C$9:$C$87,0)+RIGHT($E24),0))\n/SUM(R$10:R$11)","v":0.12311844856310696},{"$f":"IF(INDEX(PC_MAPPING,RIGHT($C15,1),MATCH($E$2,'Data by Building Type'!$D$22:$F$22,0))=\"Yes\",1,0)*\n(S$10*OFFSET('Efficiency Distributions'!$D$10,MATCH($C15,'Efficiency Distributions'!$C$9:$C$87,0)+RIGHT($E24),0)\n+S$11*OFFSET('Efficiency Distributions'!$E$10,MATCH($C15,'Efficiency Distributions'!$C$9:$C$87,0)+RIGHT($E24),0))\n/SUM(S$10:S$11)","v":0.12183925842654689},{"$f":"IF(INDEX(PC_MAPPING,RIGHT($C15,1),MATCH($E$2,'Data by Building Type'!$D$22:$F$22,0))=\"Yes\",1,0)*\n(T$10*OFFSET('Efficiency Distributions'!$D$10,MATCH($C15,'Efficiency Distributions'!$C$9:$C$87,0)+RIGHT($E24),0)\n+T$11*OFFSET('Efficiency Distributions'!$E$10,MATCH($C15,'Efficiency Distributions'!$C$9:$C$87,0)+RIGHT($E24),0))\n/SUM(T$10:T$11)","v":0.12655270804395538},{"$f":"IF(INDEX(PC_MAPPING,RIGHT($C15,1),MATCH($E$2,'Data by Building Type'!$D$22:$F$22,0))=\"Yes\",1,0)*\n(U$10*OFFSET('Efficiency Distributions'!$D$10,MATCH($C15,'Efficiency Distributions'!$C$9:$C$87,0)+RIGHT($E24),0)\n+U$11*OFFSET('Efficiency Distributions'!$E$10,MATCH($C15,'Efficiency Distributions'!$C$9:$C$87,0)+RIGHT($E24),0))\n/SUM(U$10:U$11)","v":0.12587367164989252},{"$f":"IF(INDEX(PC_MAPPING,RIGHT($C15,1),MATCH($E$2,'Data by Building Type'!$D$22:$F$22,0))=\"Yes\",1,0)*\n(V$10*OFFSET('Efficiency Distributions'!$D$10,MATCH($C15,'Efficiency Distributions'!$C$9:$C$87,0)+RIGHT($E24),0)\n+V$11*OFFSET('Efficiency Distributions'!$E$10,MATCH($C15,'Efficiency Distributions'!$C$9:$C$87,0)+RIGHT($E24),0))\n/SUM(V$10:V$11)","v":0.12687794086884102},{"$f":"IF(INDEX(PC_MAPPING,RIGHT($C15,1),MATCH($E$2,'Data by Building Type'!$D$22:$F$22,0))=\"Yes\",1,0)*\n(W$10*OFFSET('Efficiency Distributions'!$D$10,MATCH($C15,'Efficiency Distributions'!$C$9:$C$87,0)+RIGHT($E24),0)\n+W$11*OFFSET('Efficiency Distributions'!$E$10,MATCH($C15,'Efficiency Distributions'!$C$9:$C$87,0)+RIGHT($E24),0))\n/SUM(W$10:W$11)","v":0.1263963854285258},{"$f":"IF(INDEX(PC_MAPPING,RIGHT($C15,1),MATCH($E$2,'Data by Building Type'!$D$22:$F$22,0))=\"Yes\",1,0)*\n(X$10*OFFSET('Efficiency Distributions'!$D$10,MATCH($C15,'Efficiency Distributions'!$C$9:$C$87,0)+RIGHT($E24),0)\n+X$11*OFFSET('Efficiency Distributions'!$E$10,MATCH($C15,'Efficiency Distributions'!$C$9:$C$87,0)+RIGHT($E24),0))\n/SUM(X$10:X$11)","v":0.12794228976728009},{"$f":"IF(INDEX(PC_MAPPING,RIGHT($C15,1),MATCH($E$2,'Data by Building Type'!$D$22:$F$22,0))=\"Yes\",1,0)*\n(Y$10*OFFSET('Efficiency Distributions'!$D$10,MATCH($C15,'Efficiency Distributions'!$C$9:$C$87,0)+RIGHT($E24),0)\n+Y$11*OFFSET('Efficiency Distributions'!$E$10,MATCH($C15,'Efficiency Distributions'!$C$9:$C$87,0)+RIGHT($E24),0))\n/SUM(Y$10:Y$11)","v":0.13170339993960706},{"$f":"IF(INDEX(PC_MAPPING,RIGHT($C15,1),MATCH($E$2,'Data by Building Type'!$D$22:$F$22,0))=\"Yes\",1,0)*\n(Z$10*OFFSET('Efficiency Distributions'!$D$10,MATCH($C15,'Efficiency Distributions'!$C$9:$C$87,0)+RIGHT($E24),0)\n+Z$11*OFFSET('Efficiency Distributions'!$E$10,MATCH($C15,'Efficiency Distributions'!$C$9:$C$87,0)+RIGHT($E24),0))\n/SUM(Z$10:Z$11)","v":0.13176691334308388},{"$f":"IF(INDEX(PC_MAPPING,RIGHT($C15,1),MATCH($E$2,'Data by Building Type'!$D$22:$F$22,0))=\"Yes\",1,0)*\n(AA$10*OFFSET('Efficiency Distributions'!$D$10,MATCH($C15,'Efficiency Distributions'!$C$9:$C$87,0)+RIGHT($E24),0)\n+AA$11*OFFSET('Efficiency Distributions'!$E$10,MATCH($C15,'Efficiency Distributions'!$C$9:$C$87,0)+RIGHT($E24),0))\n/SUM(AA$10:AA$11)","v":0.13118425402630821},{"$f":"IF(INDEX(PC_MAPPING,RIGHT($C15,1),MATCH($E$2,'Data by Building Type'!$D$22:$F$22,0))=\"Yes\",1,0)*\n(AB$10*OFFSET('Efficiency Distributions'!$D$10,MATCH($C15,'Efficiency Distributions'!$C$9:$C$87,0)+RIGHT($E24),0)\n+AB$11*OFFSET('Efficiency Distributions'!$E$10,MATCH($C15,'Efficiency Distributions'!$C$9:$C$87,0)+RIGHT($E24),0))\n/SUM(AB$10:AB$11)","v":0.1278645861578567},{"$f":"IF(INDEX(PC_MAPPING,RIGHT($C15,1),MATCH($E$2,'Data by Building Type'!$D$22:$F$22,0))=\"Yes\",1,0)*\n(AC$10*OFFSET('Efficiency Distributions'!$D$10,MATCH($C15,'Efficiency Distributions'!$C$9:$C$87,0)+RIGHT($E24),0)\n+AC$11*OFFSET('Efficiency Distributions'!$E$10,MATCH($C15,'Efficiency Distributions'!$C$9:$C$87,0)+RIGHT($E24),0))\n/SUM(AC$10:AC$11)","v":0.12809648030315038},{"$f":"IF(INDEX(PC_MAPPING,RIGHT($C15,1),MATCH($E$2,'Data by Building Type'!$D$22:$F$22,0))=\"Yes\",1,0)*\n(AD$10*OFFSET('Efficiency Distributions'!$D$10,MATCH($C15,'Efficiency Distributions'!$C$9:$C$87,0)+RIGHT($E24),0)\n+AD$11*OFFSET('Efficiency Distributions'!$E$10,MATCH($C15,'Efficiency Distributions'!$C$9:$C$87,0)+RIGHT($E24),0))\n/SUM(AD$10:AD$11)","v":0.1252384590613789},{"$f":"IF(INDEX(PC_MAPPING,RIGHT($C15,1),MATCH($E$2,'Data by Building Type'!$D$22:$F$22,0))=\"Yes\",1,0)*\n(AE$10*OFFSET('Efficiency Distributions'!$D$10,MATCH($C15,'Efficiency Distributions'!$C$9:$C$87,0)+RIGHT($E24),0)\n+AE$11*OFFSET('Efficiency Distributions'!$E$10,MATCH($C15,'Efficiency Distributions'!$C$9:$C$87,0)+RIGHT($E24),0))\n/SUM(AE$10:AE$11)","v":0.12957605516338311},{"$f":"IF(INDEX(PC_MAPPING,RIGHT($C15,1),MATCH($E$2,'Data by Building Type'!$D$22:$F$22,0))=\"Yes\",1,0)*\n(AF$10*OFFSET('Efficiency Distributions'!$D$10,MATCH($C15,'Efficiency Distributions'!$C$9:$C$87,0)+RIGHT($E24),0)\n+AF$11*OFFSET('Efficiency Distributions'!$E$10,MATCH($C15,'Efficiency Distributions'!$C$9:$C$87,0)+RIGHT($E24),0))\n/SUM(AF$10:AF$11)","v":0.13915738092031427},{"$f":"IF(INDEX(PC_MAPPING,RIGHT($C15,1),MATCH($E$2,'Data by Building Type'!$D$22:$F$22,0))=\"Yes\",1,0)*\n(AG$10*OFFSET('Efficiency Distributions'!$D$10,MATCH($C15,'Efficiency Distributions'!$C$9:$C$87,0)+RIGHT($E24),0)\n+AG$11*OFFSET('Efficiency Distributions'!$E$10,MATCH($C15,'Efficiency Distributions'!$C$9:$C$87,0)+RIGHT($E24),0))\n/SUM(AG$10:AG$11)","v":0.1432480855406936},{"$f":"IF(INDEX(PC_MAPPING,RIGHT($C15,1),MATCH($E$2,'Data by Building Type'!$D$22:$F$22,0))=\"Yes\",1,0)*\n(AH$10*OFFSET('Efficiency Distributions'!$D$10,MATCH($C15,'Efficiency Distributions'!$C$9:$C$87,0)+RIGHT($E24),0)\n+AH$11*OFFSET('Efficiency Distributions'!$E$10,MATCH($C15,'Efficiency Distributions'!$C$9:$C$87,0)+RIGHT($E24),0))\n/SUM(AH$10:AH$11)","v":0.1432480855406936},{"$f":"IF(INDEX(PC_MAPPING,RIGHT($C15,1),MATCH($E$2,'Data by Building Type'!$D$22:$F$22,0))=\"Yes\",1,0)*\n(AI$10*OFFSET('Efficiency Distributions'!$D$10,MATCH($C15,'Efficiency Distributions'!$C$9:$C$87,0)+RIGHT($E24),0)\n+AI$11*OFFSET('Efficiency Distributions'!$E$10,MATCH($C15,'Efficiency Distributions'!$C$9:$C$87,0)+RIGHT($E24),0))\n/SUM(AI$10:AI$11)","v":0.1432480855406936},{"$f":"IF(INDEX(PC_MAPPING,RIGHT($C15,1),MATCH($E$2,'Data by Building Type'!$D$22:$F$22,0))=\"Yes\",1,0)*\n(AJ$10*OFFSET('Efficiency Distributions'!$D$10,MATCH($C15,'Efficiency Distributions'!$C$9:$C$87,0)+RIGHT($E24),0)\n+AJ$11*OFFSET('Efficiency Distributions'!$E$10,MATCH($C15,'Efficiency Distributions'!$C$9:$C$87,0)+RIGHT($E24),0))\n/SUM(AJ$10:AJ$11)","v":0.14154401273718306},{"$f":"IF(INDEX(PC_MAPPING,RIGHT($C15,1),MATCH($E$2,'Data by Building Type'!$D$22:$F$22,0))=\"Yes\",1,0)*\n(AK$10*OFFSET('Efficiency Distributions'!$D$10,MATCH($C15,'Efficiency Distributions'!$C$9:$C$87,0)+RIGHT($E24),0)\n+AK$11*OFFSET('Efficiency Distributions'!$E$10,MATCH($C15,'Efficiency Distributions'!$C$9:$C$87,0)+RIGHT($E24),0))\n/SUM(AK$10:AK$11)","v":0.11771830593554598},{"$f":"IF(INDEX(PC_MAPPING,RIGHT($C15,1),MATCH($E$2,'Data by Building Type'!$D$22:$F$22,0))=\"Yes\",1,0)*\n(AL$10*OFFSET('Efficiency Distributions'!$D$10,MATCH($C15,'Efficiency Distributions'!$C$9:$C$87,0)+RIGHT($E24),0)\n+AL$11*OFFSET('Efficiency Distributions'!$E$10,MATCH($C15,'Efficiency Distributions'!$C$9:$C$87,0)+RIGHT($E24),0))\n/SUM(AL$10:AL$11)","v":0.11843133778133091},{"$f":"IF(INDEX(PC_MAPPING,RIGHT($C15,1),MATCH($E$2,'Data by Building Type'!$D$22:$F$22,0))=\"Yes\",1,0)*\n(AM$10*OFFSET('Efficiency Distributions'!$D$10,MATCH($C15,'Efficiency Distributions'!$C$9:$C$87,0)+RIGHT($E24),0)\n+AM$11*OFFSET('Efficiency Distributions'!$E$10,MATCH($C15,'Efficiency Distributions'!$C$9:$C$87,0)+RIGHT($E24),0))\n/SUM(AM$10:AM$11)","v":0.115368022875893},{"$f":"IF(INDEX(PC_MAPPING,RIGHT($C15,1),MATCH($E$2,'Data by Building Type'!$D$22:$F$22,0))=\"Yes\",1,0)*\n(AN$10*OFFSET('Efficiency Distributions'!$D$10,MATCH($C15,'Efficiency Distributions'!$C$9:$C$87,0)+RIGHT($E24),0)\n+AN$11*OFFSET('Efficiency Distributions'!$E$10,MATCH($C15,'Efficiency Distributions'!$C$9:$C$87,0)+RIGHT($E24),0))\n/SUM(AN$10:AN$11)","v":0.11561534838368628},{"$f":"IF(INDEX(PC_MAPPING,RIGHT($C15,1),MATCH($E$2,'Data by Building Type'!$D$22:$F$22,0))=\"Yes\",1,0)*\n(AO$10*OFFSET('Efficiency Distributions'!$D$10,MATCH($C15,'Efficiency Distributions'!$C$9:$C$87,0)+RIGHT($E24),0)\n+AO$11*OFFSET('Efficiency Distributions'!$E$10,MATCH($C15,'Efficiency Distributions'!$C$9:$C$87,0)+RIGHT($E24),0))\n/SUM(AO$10:AO$11)","v":0.1144150509136632},{"$f":"IF(INDEX(PC_MAPPING,RIGHT($C15,1),MATCH($E$2,'Data by Building Type'!$D$22:$F$22,0))=\"Yes\",1,0)*\n(AP$10*OFFSET('Efficiency Distributions'!$D$10,MATCH($C15,'Efficiency Distributions'!$C$9:$C$87,0)+RIGHT($E24),0)\n+AP$11*OFFSET('Efficiency Distributions'!$E$10,MATCH($C15,'Efficiency Distributions'!$C$9:$C$87,0)+RIGHT($E24),0))\n/SUM(AP$10:AP$11)","v":0.11494309766659784},{"$f":"IF(INDEX(PC_MAPPING,RIGHT($C15,1),MATCH($E$2,'Data by Building Type'!$D$22:$F$22,0))=\"Yes\",1,0)*\n(AQ$10*OFFSET('Efficiency Distributions'!$D$10,MATCH($C15,'Efficiency Distributions'!$C$9:$C$87,0)+RIGHT($E24),0)\n+AQ$11*OFFSET('Efficiency Distributions'!$E$10,MATCH($C15,'Efficiency Distributions'!$C$9:$C$87,0)+RIGHT($E24),0))\n/SUM(AQ$10:AQ$11)","v":0.11512242388681918},{"$f":"IF(INDEX(PC_MAPPING,RIGHT($C15,1),MATCH($E$2,'Data by Building Type'!$D$22:$F$22,0))=\"Yes\",1,0)*\n(AR$10*OFFSET('Efficiency Distributions'!$D$10,MATCH($C15,'Efficiency Distributions'!$C$9:$C$87,0)+RIGHT($E24),0)\n+AR$11*OFFSET('Efficiency Distributions'!$E$10,MATCH($C15,'Efficiency Distributions'!$C$9:$C$87,0)+RIGHT($E24),0))\n/SUM(AR$10:AR$11)","v":0.11568685552066389},{"$f":"IF(INDEX(PC_MAPPING,RIGHT($C15,1),MATCH($E$2,'Data by Building Type'!$D$22:$F$22,0))=\"Yes\",1,0)*\n(AS$10*OFFSET('Efficiency Distributions'!$D$10,MATCH($C15,'Efficiency Distributions'!$C$9:$C$87,0)+RIGHT($E24),0)\n+AS$11*OFFSET('Efficiency Distributions'!$E$10,MATCH($C15,'Efficiency Distributions'!$C$9:$C$87,0)+RIGHT($E24),0))\n/SUM(AS$10:AS$11)","v":0.11567935876952645},{"$f":"IF(INDEX(PC_MAPPING,RIGHT($C15,1),MATCH($E$2,'Data by Building Type'!$D$22:$F$22,0))=\"Yes\",1,0)*\n(AT$10*OFFSET('Efficiency Distributions'!$D$10,MATCH($C15,'Efficiency Distributions'!$C$9:$C$87,0)+RIGHT($E24),0)\n+AT$11*OFFSET('Efficiency Distributions'!$E$10,MATCH($C15,'Efficiency Distributions'!$C$9:$C$87,0)+RIGHT($E24),0))\n/SUM(AT$10:AT$11)","v":0.11538018857882371},{"$f":"IF(INDEX(PC_MAPPING,RIGHT($C15,1),MATCH($E$2,'Data by Building Type'!$D$22:$F$22,0))=\"Yes\",1,0)*\n(AU$10*OFFSET('Efficiency Distributions'!$D$10,MATCH($C15,'Efficiency Distributions'!$C$9:$C$87,0)+RIGHT($E24),0)\n+AU$11*OFFSET('Efficiency Distributions'!$E$10,MATCH($C15,'Efficiency Distributions'!$C$9:$C$87,0)+RIGHT($E24),0))\n/SUM(AU$10:AU$11)","v":0.11573151699299197},{"$f":"IF(INDEX(PC_MAPPING,RIGHT($C15,1),MATCH($E$2,'Data by Building Type'!$D$22:$F$22,0))=\"Yes\",1,0)*\n(AV$10*OFFSET('Efficiency Distributions'!$D$10,MATCH($C15,'Efficiency Distributions'!$C$9:$C$87,0)+RIGHT($E24),0)\n+AV$11*OFFSET('Efficiency Distributions'!$E$10,MATCH($C15,'Efficiency Distributions'!$C$9:$C$87,0)+RIGHT($E24),0))\n/SUM(AV$10:AV$11)","v":0.12057977533247308},{"$f":"IF(INDEX(PC_MAPPING,RIGHT($C15,1),MATCH($E$2,'Data by Building Type'!$D$22:$F$22,0))=\"Yes\",1,0)*\n(AW$10*OFFSET('Efficiency Distributions'!$D$10,MATCH($C15,'Efficiency Distributions'!$C$9:$C$87,0)+RIGHT($E24),0)\n+AW$11*OFFSET('Efficiency Distributions'!$E$10,MATCH($C15,'Efficiency Distributions'!$C$9:$C$87,0)+RIGHT($E24),0))\n/SUM(AW$10:AW$11)","v":0.12029388302494604},{"$f":"IF(INDEX(PC_MAPPING,RIGHT($C15,1),MATCH($E$2,'Data by Building Type'!$D$22:$F$22,0))=\"Yes\",1,0)*\n(AX$10*OFFSET('Efficiency Distributions'!$D$10,MATCH($C15,'Efficiency Distributions'!$C$9:$C$87,0)+RIGHT($E24),0)\n+AX$11*OFFSET('Efficiency Distributions'!$E$10,MATCH($C15,'Efficiency Distributions'!$C$9:$C$87,0)+RIGHT($E24),0))\n/SUM(AX$10:AX$11)","v":0.12173689042621413},{"$f":"IF(INDEX(PC_MAPPING,RIGHT($C15,1),MATCH($E$2,'Data by Building Type'!$D$22:$F$22,0))=\"Yes\",1,0)*\n(AY$10*OFFSET('Efficiency Distributions'!$D$10,MATCH($C15,'Efficiency Distributions'!$C$9:$C$87,0)+RIGHT($E24),0)\n+AY$11*OFFSET('Efficiency Distributions'!$E$10,MATCH($C15,'Efficiency Distributions'!$C$9:$C$87,0)+RIGHT($E24),0))\n/SUM(AY$10:AY$11)","v":0.12217473122627522},{"$f":"IF(INDEX(PC_MAPPING,RIGHT($C15,1),MATCH($E$2,'Data by Building Type'!$D$22:$F$22,0))=\"Yes\",1,0)*\n(AZ$10*OFFSET('Efficiency Distributions'!$D$10,MATCH($C15,'Efficiency Distributions'!$C$9:$C$87,0)+RIGHT($E24),0)\n+AZ$11*OFFSET('Efficiency Distributions'!$E$10,MATCH($C15,'Efficiency Distributions'!$C$9:$C$87,0)+RIGHT($E24),0))\n/SUM(AZ$10:AZ$11)","v":0.12151781479289553},{"$f":"IF(INDEX(PC_MAPPING,RIGHT($C15,1),MATCH($E$2,'Data by Building Type'!$D$22:$F$22,0))=\"Yes\",1,0)*\n(BA$10*OFFSET('Efficiency Distributions'!$D$10,MATCH($C15,'Efficiency Distributions'!$C$9:$C$87,0)+RIGHT($E24),0)\n+BA$11*OFFSET('Efficiency Distributions'!$E$10,MATCH($C15,'Efficiency Distributions'!$C$9:$C$87,0)+RIGHT($E24),0))\n/SUM(BA$10:BA$11)","v":0.12050774392541344},{"$f":"IF(INDEX(PC_MAPPING,RIGHT($C15,1),MATCH($E$2,'Data by Building Type'!$D$22:$F$22,0))=\"Yes\",1,0)*\n(BB$10*OFFSET('Efficiency Distributions'!$D$10,MATCH($C15,'Efficiency Distributions'!$C$9:$C$87,0)+RIGHT($E24),0)\n+BB$11*OFFSET('Efficiency Distributions'!$E$10,MATCH($C15,'Efficiency Distributions'!$C$9:$C$87,0)+RIGHT($E24),0))\n/SUM(BB$10:BB$11)","v":0.11834634155697708},{"$f":"IF(INDEX(PC_MAPPING,RIGHT($C15,1),MATCH($E$2,'Data by Building Type'!$D$22:$F$22,0))=\"Yes\",1,0)*\n(BC$10*OFFSET('Efficiency Distributions'!$D$10,MATCH($C15,'Efficiency Distributions'!$C$9:$C$87,0)+RIGHT($E24),0)\n+BC$11*OFFSET('Efficiency Distributions'!$E$10,MATCH($C15,'Efficiency Distributions'!$C$9:$C$87,0)+RIGHT($E24),0))\n/SUM(BC$10:BC$11)","v":0.11790806761694191},{"$f":"IF(INDEX(PC_MAPPING,RIGHT($C15,1),MATCH($E$2,'Data by Building Type'!$D$22:$F$22,0))=\"Yes\",1,0)*\n(BD$10*OFFSET('Efficiency Distributions'!$D$10,MATCH($C15,'Efficiency Distributions'!$C$9:$C$87,0)+RIGHT($E24),0)\n+BD$11*OFFSET('Efficiency Distributions'!$E$10,MATCH($C15,'Efficiency Distributions'!$C$9:$C$87,0)+RIGHT($E24),0))\n/SUM(BD$10:BD$11)","v":0.12036058073664473},{"$f":"IF(INDEX(PC_MAPPING,RIGHT($C15,1),MATCH($E$2,'Data by Building Type'!$D$22:$F$22,0))=\"Yes\",1,0)*\n(BE$10*OFFSET('Efficiency Distributions'!$D$10,MATCH($C15,'Efficiency Distributions'!$C$9:$C$87,0)+RIGHT($E24),0)\n+BE$11*OFFSET('Efficiency Distributions'!$E$10,MATCH($C15,'Efficiency Distributions'!$C$9:$C$87,0)+RIGHT($E24),0))\n/SUM(BE$10:BE$11)","v":0.12207519513144165},{"$f":"IF(INDEX(PC_MAPPING,RIGHT($C15,1),MATCH($E$2,'Data by Building Type'!$D$22:$F$22,0))=\"Yes\",1,0)*\n(BF$10*OFFSET('Efficiency Distributions'!$D$10,MATCH($C15,'Efficiency Distributions'!$C$9:$C$87,0)+RIGHT($E24),0)\n+BF$11*OFFSET('Efficiency Distributions'!$E$10,MATCH($C15,'Efficiency Distributions'!$C$9:$C$87,0)+RIGHT($E24),0))\n/SUM(BF$10:BF$11)","v":0.12548347129992479},{"$f":"IF(INDEX(PC_MAPPING,RIGHT($C15,1),MATCH($E$2,'Data by Building Type'!$D$22:$F$22,0))=\"Yes\",1,0)*\n(BG$10*OFFSET('Efficiency Distributions'!$D$10,MATCH($C15,'Efficiency Distributions'!$C$9:$C$87,0)+RIGHT($E24),0)\n+BG$11*OFFSET('Efficiency Distributions'!$E$10,MATCH($C15,'Efficiency Distributions'!$C$9:$C$87,0)+RIGHT($E24),0))\n/SUM(BG$10:BG$11)","v":0.12611405069086018}]
[null,null,null,null,"EL6",{"$f":"IF(INDEX(PC_MAPPING,RIGHT($C15,1),MATCH($E$2,'Data by Building Type'!$D$22:$F$22,0))=\"Yes\",1,0)*\n(F$10*OFFSET('Efficiency Distributions'!$D$10,MATCH($C15,'Efficiency Distributions'!$C$9:$C$87,0)+RIGHT($E25),0)\n+F$11*OFFSET('Efficiency Distributions'!$E$10,MATCH($C15,'Efficiency Distributions'!$C$9:$C$87,0)+RIGHT($E25),0))\n/SUM(F$10:F$11)","v":0},{"$f":"IF(INDEX(PC_MAPPING,RIGHT($C15,1),MATCH($E$2,'Data by Building Type'!$D$22:$F$22,0))=\"Yes\",1,0)*\n(G$10*OFFSET('Efficiency Distributions'!$D$10,MATCH($C15,'Efficiency Distributions'!$C$9:$C$87,0)+RIGHT($E25),0)\n+G$11*OFFSET('Efficiency Distributions'!$E$10,MATCH($C15,'Efficiency Distributions'!$C$9:$C$87,0)+RIGHT($E25),0))\n/SUM(G$10:G$11)","v":0},{"$f":"IF(INDEX(PC_MAPPING,RIGHT($C15,1),MATCH($E$2,'Data by Building Type'!$D$22:$F$22,0))=\"Yes\",1,0)*\n(H$10*OFFSET('Efficiency Distributions'!$D$10,MATCH($C15,'Efficiency Distributions'!$C$9:$C$87,0)+RIGHT($E25),0)\n+H$11*OFFSET('Efficiency Distributions'!$E$10,MATCH($C15,'Efficiency Distributions'!$C$9:$C$87,0)+RIGHT($E25),0))\n/SUM(H$10:H$11)","v":0},{"$f":"IF(INDEX(PC_MAPPING,RIGHT($C15,1),MATCH($E$2,'Data by Building Type'!$D$22:$F$22,0))=\"Yes\",1,0)*\n(I$10*OFFSET('Efficiency Distributions'!$D$10,MATCH($C15,'Efficiency Distributions'!$C$9:$C$87,0)+RIGHT($E25),0)\n+I$11*OFFSET('Efficiency Distributions'!$E$10,MATCH($C15,'Efficiency Distributions'!$C$9:$C$87,0)+RIGHT($E25),0))\n/SUM(I$10:I$11)","v":0},{"$f":"IF(INDEX(PC_MAPPING,RIGHT($C15,1),MATCH($E$2,'Data by Building Type'!$D$22:$F$22,0))=\"Yes\",1,0)*\n(J$10*OFFSET('Efficiency Distributions'!$D$10,MATCH($C15,'Efficiency Distributions'!$C$9:$C$87,0)+RIGHT($E25),0)\n+J$11*OFFSET('Efficiency Distributions'!$E$10,MATCH($C15,'Efficiency Distributions'!$C$9:$C$87,0)+RIGHT($E25),0))\n/SUM(J$10:J$11)","v":0},{"$f":"IF(INDEX(PC_MAPPING,RIGHT($C15,1),MATCH($E$2,'Data by Building Type'!$D$22:$F$22,0))=\"Yes\",1,0)*\n(K$10*OFFSET('Efficiency Distributions'!$D$10,MATCH($C15,'Efficiency Distributions'!$C$9:$C$87,0)+RIGHT($E25),0)\n+K$11*OFFSET('Efficiency Distributions'!$E$10,MATCH($C15,'Efficiency Distributions'!$C$9:$C$87,0)+RIGHT($E25),0))\n/SUM(K$10:K$11)","v":0},{"$f":"IF(INDEX(PC_MAPPING,RIGHT($C15,1),MATCH($E$2,'Data by Building Type'!$D$22:$F$22,0))=\"Yes\",1,0)*\n(L$10*OFFSET('Efficiency Distributions'!$D$10,MATCH($C15,'Efficiency Distributions'!$C$9:$C$87,0)+RIGHT($E25),0)\n+L$11*OFFSET('Efficiency Distributions'!$E$10,MATCH($C15,'Efficiency Distributions'!$C$9:$C$87,0)+RIGHT($E25),0))\n/SUM(L$10:L$11)","v":0},{"$f":"IF(INDEX(PC_MAPPING,RIGHT($C15,1),MATCH($E$2,'Data by Building Type'!$D$22:$F$22,0))=\"Yes\",1,0)*\n(M$10*OFFSET('Efficiency Distributions'!$D$10,MATCH($C15,'Efficiency Distributions'!$C$9:$C$87,0)+RIGHT($E25),0)\n+M$11*OFFSET('Efficiency Distributions'!$E$10,MATCH($C15,'Efficiency Distributions'!$C$9:$C$87,0)+RIGHT($E25),0))\n/SUM(M$10:M$11)","v":0},{"$f":"IF(INDEX(PC_MAPPING,RIGHT($C15,1),MATCH($E$2,'Data by Building Type'!$D$22:$F$22,0))=\"Yes\",1,0)*\n(N$10*OFFSET('Efficiency Distributions'!$D$10,MATCH($C15,'Efficiency Distributions'!$C$9:$C$87,0)+RIGHT($E25),0)\n+N$11*OFFSET('Efficiency Distributions'!$E$10,MATCH($C15,'Efficiency Distributions'!$C$9:$C$87,0)+RIGHT($E25),0))\n/SUM(N$10:N$11)","v":0},{"$f":"IF(INDEX(PC_MAPPING,RIGHT($C15,1),MATCH($E$2,'Data by Building Type'!$D$22:$F$22,0))=\"Yes\",1,0)*\n(O$10*OFFSET('Efficiency Distributions'!$D$10,MATCH($C15,'Efficiency Distributions'!$C$9:$C$87,0)+RIGHT($E25),0)\n+O$11*OFFSET('Efficiency Distributions'!$E$10,MATCH($C15,'Efficiency Distributions'!$C$9:$C$87,0)+RIGHT($E25),0))\n/SUM(O$10:O$11)","v":0},{"$f":"IF(INDEX(PC_MAPPING,RIGHT($C15,1),MATCH($E$2,'Data by Building Type'!$D$22:$F$22,0))=\"Yes\",1,0)*\n(P$10*OFFSET('Efficiency Distributions'!$D$10,MATCH($C15,'Efficiency Distributions'!$C$9:$C$87,0)+RIGHT($E25),0)\n+P$11*OFFSET('Efficiency Distributions'!$E$10,MATCH($C15,'Efficiency Distributions'!$C$9:$C$87,0)+RIGHT($E25),0))\n/SUM(P$10:P$11)","v":0},{"$f":"IF(INDEX(PC_MAPPING,RIGHT($C15,1),MATCH($E$2,'Data by Building Type'!$D$22:$F$22,0))=\"Yes\",1,0)*\n(Q$10*OFFSET('Efficiency Distributions'!$D$10,MATCH($C15,'Efficiency Distributions'!$C$9:$C$87,0)+RIGHT($E25),0)\n+Q$11*OFFSET('Efficiency Distributions'!$E$10,MATCH($C15,'Efficiency Distributions'!$C$9:$C$87,0)+RIGHT($E25),0))\n/SUM(Q$10:Q$11)","v":0},{"$f":"IF(INDEX(PC_MAPPING,RIGHT($C15,1),MATCH($E$2,'Data by Building Type'!$D$22:$F$22,0))=\"Yes\",1,0)*\n(R$10*OFFSET('Efficiency Distributions'!$D$10,MATCH($C15,'Efficiency Distributions'!$C$9:$C$87,0)+RIGHT($E25),0)\n+R$11*OFFSET('Efficiency Distributions'!$E$10,MATCH($C15,'Efficiency Distributions'!$C$9:$C$87,0)+RIGHT($E25),0))\n/SUM(R$10:R$11)","v":0},{"$f":"IF(INDEX(PC_MAPPING,RIGHT($C15,1),MATCH($E$2,'Data by Building Type'!$D$22:$F$22,0))=\"Yes\",1,0)*\n(S$10*OFFSET('Efficiency Distributions'!$D$10,MATCH($C15,'Efficiency Distributions'!$C$9:$C$87,0)+RIGHT($E25),0)\n+S$11*OFFSET('Efficiency Distributions'!$E$10,MATCH($C15,'Efficiency Distributions'!$C$9:$C$87,0)+RIGHT($E25),0))\n/SUM(S$10:S$11)","v":0},{"$f":"IF(INDEX(PC_MAPPING,RIGHT($C15,1),MATCH($E$2,'Data by Building Type'!$D$22:$F$22,0))=\"Yes\",1,0)*\n(T$10*OFFSET('Efficiency Distributions'!$D$10,MATCH($C15,'Efficiency Distributions'!$C$9:$C$87,0)+RIGHT($E25),0)\n+T$11*OFFSET('Efficiency Distributions'!$E$10,MATCH($C15,'Efficiency Distributions'!$C$9:$C$87,0)+RIGHT($E25),0))\n/SUM(T$10:T$11)","v":0},{"$f":"IF(INDEX(PC_MAPPING,RIGHT($C15,1),MATCH($E$2,'Data by Building Type'!$D$22:$F$22,0))=\"Yes\",1,0)*\n(U$10*OFFSET('Efficiency Distributions'!$D$10,MATCH($C15,'Efficiency Distributions'!$C$9:$C$87,0)+RIGHT($E25),0)\n+U$11*OFFSET('Efficiency Distributions'!$E$10,MATCH($C15,'Efficiency Distributions'!$C$9:$C$87,0)+RIGHT($E25),0))\n/SUM(U$10:U$11)","v":0},{"$f":"IF(INDEX(PC_MAPPING,RIGHT($C15,1),MATCH($E$2,'Data by Building Type'!$D$22:$F$22,0))=\"Yes\",1,0)*\n(V$10*OFFSET('Efficiency Distributions'!$D$10,MATCH($C15,'Efficiency Distributions'!$C$9:$C$87,0)+RIGHT($E25),0)\n+V$11*OFFSET('Efficiency Distributions'!$E$10,MATCH($C15,'Efficiency Distributions'!$C$9:$C$87,0)+RIGHT($E25),0))\n/SUM(V$10:V$11)","v":0},{"$f":"IF(INDEX(PC_MAPPING,RIGHT($C15,1),MATCH($E$2,'Data by Building Type'!$D$22:$F$22,0))=\"Yes\",1,0)*\n(W$10*OFFSET('Efficiency Distributions'!$D$10,MATCH($C15,'Efficiency Distributions'!$C$9:$C$87,0)+RIGHT($E25),0)\n+W$11*OFFSET('Efficiency Distributions'!$E$10,MATCH($C15,'Efficiency Distributions'!$C$9:$C$87,0)+RIGHT($E25),0))\n/SUM(W$10:W$11)","v":0},{"$f":"IF(INDEX(PC_MAPPING,RIGHT($C15,1),MATCH($E$2,'Data by Building Type'!$D$22:$F$22,0))=\"Yes\",1,0)*\n(X$10*OFFSET('Efficiency Distributions'!$D$10,MATCH($C15,'Efficiency Distributions'!$C$9:$C$87,0)+RIGHT($E25),0)\n+X$11*OFFSET('Efficiency Distributions'!$E$10,MATCH($C15,'Efficiency Distributions'!$C$9:$C$87,0)+RIGHT($E25),0))\n/SUM(X$10:X$11)","v":0},{"$f":"IF(INDEX(PC_MAPPING,RIGHT($C15,1),MATCH($E$2,'Data by Building Type'!$D$22:$F$22,0))=\"Yes\",1,0)*\n(Y$10*OFFSET('Efficiency Distributions'!$D$10,MATCH($C15,'Efficiency Distributions'!$C$9:$C$87,0)+RIGHT($E25),0)\n+Y$11*OFFSET('Efficiency Distributions'!$E$10,MATCH($C15,'Efficiency Distributions'!$C$9:$C$87,0)+RIGHT($E25),0))\n/SUM(Y$10:Y$11)","v":0},{"$f":"IF(INDEX(PC_MAPPING,RIGHT($C15,1),MATCH($E$2,'Data by Building Type'!$D$22:$F$22,0))=\"Yes\",1,0)*\n(Z$10*OFFSET('Efficiency Distributions'!$D$10,MATCH($C15,'Efficiency Distributions'!$C$9:$C$87,0)+RIGHT($E25),0)\n+Z$11*OFFSET('Efficiency Distributions'!$E$10,MATCH($C15,'Efficiency Distributions'!$C$9:$C$87,0)+RIGHT($E25),0))\n/SUM(Z$10:Z$11)","v":0},{"$f":"IF(INDEX(PC_MAPPING,RIGHT($C15,1),MATCH($E$2,'Data by Building Type'!$D$22:$F$22,0))=\"Yes\",1,0)*\n(AA$10*OFFSET('Efficiency Distributions'!$D$10,MATCH($C15,'Efficiency Distributions'!$C$9:$C$87,0)+RIGHT($E25),0)\n+AA$11*OFFSET('Efficiency Distributions'!$E$10,MATCH($C15,'Efficiency Distributions'!$C$9:$C$87,0)+RIGHT($E25),0))\n/SUM(AA$10:AA$11)","v":0},{"$f":"IF(INDEX(PC_MAPPING,RIGHT($C15,1),MATCH($E$2,'Data by Building Type'!$D$22:$F$22,0))=\"Yes\",1,0)*\n(AB$10*OFFSET('Efficiency Distributions'!$D$10,MATCH($C15,'Efficiency Distributions'!$C$9:$C$87,0)+RIGHT($E25),0)\n+AB$11*OFFSET('Efficiency Distributions'!$E$10,MATCH($C15,'Efficiency Distributions'!$C$9:$C$87,0)+RIGHT($E25),0))\n/SUM(AB$10:AB$11)","v":0},{"$f":"IF(INDEX(PC_MAPPING,RIGHT($C15,1),MATCH($E$2,'Data by Building Type'!$D$22:$F$22,0))=\"Yes\",1,0)*\n(AC$10*OFFSET('Efficiency Distributions'!$D$10,MATCH($C15,'Efficiency Distributions'!$C$9:$C$87,0)+RIGHT($E25),0)\n+AC$11*OFFSET('Efficiency Distributions'!$E$10,MATCH($C15,'Efficiency Distributions'!$C$9:$C$87,0)+RIGHT($E25),0))\n/SUM(AC$10:AC$11)","v":0},{"$f":"IF(INDEX(PC_MAPPING,RIGHT($C15,1),MATCH($E$2,'Data by Building Type'!$D$22:$F$22,0))=\"Yes\",1,0)*\n(AD$10*OFFSET('Efficiency Distributions'!$D$10,MATCH($C15,'Efficiency Distributions'!$C$9:$C$87,0)+RIGHT($E25),0)\n+AD$11*OFFSET('Efficiency Distributions'!$E$10,MATCH($C15,'Efficiency Distributions'!$C$9:$C$87,0)+RIGHT($E25),0))\n/SUM(AD$10:AD$11)","v":0},{"$f":"IF(INDEX(PC_MAPPING,RIGHT($C15,1),MATCH($E$2,'Data by Building Type'!$D$22:$F$22,0))=\"Yes\",1,0)*\n(AE$10*OFFSET('Efficiency Distributions'!$D$10,MATCH($C15,'Efficiency Distributions'!$C$9:$C$87,0)+RIGHT($E25),0)\n+AE$11*OFFSET('Efficiency Distributions'!$E$10,MATCH($C15,'Efficiency Distributions'!$C$9:$C$87,0)+RIGHT($E25),0))\n/SUM(AE$10:AE$11)","v":0},{"$f":"IF(INDEX(PC_MAPPING,RIGHT($C15,1),MATCH($E$2,'Data by Building Type'!$D$22:$F$22,0))=\"Yes\",1,0)*\n(AF$10*OFFSET('Efficiency Distributions'!$D$10,MATCH($C15,'Efficiency Distributions'!$C$9:$C$87,0)+RIGHT($E25),0)\n+AF$11*OFFSET('Efficiency Distributions'!$E$10,MATCH($C15,'Efficiency Distributions'!$C$9:$C$87,0)+RIGHT($E25),0))\n/SUM(AF$10:AF$11)","v":0},{"$f":"IF(INDEX(PC_MAPPING,RIGHT($C15,1),MATCH($E$2,'Data by Building Type'!$D$22:$F$22,0))=\"Yes\",1,0)*\n(AG$10*OFFSET('Efficiency Distributions'!$D$10,MATCH($C15,'Efficiency Distributions'!$C$9:$C$87,0)+RIGHT($E25),0)\n+AG$11*OFFSET('Efficiency Distributions'!$E$10,MATCH($C15,'Efficiency Distributions'!$C$9:$C$87,0)+RIGHT($E25),0))\n/SUM(AG$10:AG$11)","v":0},{"$f":"IF(INDEX(PC_MAPPING,RIGHT($C15,1),MATCH($E$2,'Data by Building Type'!$D$22:$F$22,0))=\"Yes\",1,0)*\n(AH$10*OFFSET('Efficiency Distributions'!$D$10,MATCH($C15,'Efficiency Distributions'!$C$9:$C$87,0)+RIGHT($E25),0)\n+AH$11*OFFSET('Efficiency Distributions'!$E$10,MATCH($C15,'Efficiency Distributions'!$C$9:$C$87,0)+RIGHT($E25),0))\n/SUM(AH$10:AH$11)","v":0},{"$f":"IF(INDEX(PC_MAPPING,RIGHT($C15,1),MATCH($E$2,'Data by Building Type'!$D$22:$F$22,0))=\"Yes\",1,0)*\n(AI$10*OFFSET('Efficiency Distributions'!$D$10,MATCH($C15,'Efficiency Distributions'!$C$9:$C$87,0)+RIGHT($E25),0)\n+AI$11*OFFSET('Efficiency Distributions'!$E$10,MATCH($C15,'Efficiency Distributions'!$C$9:$C$87,0)+RIGHT($E25),0))\n/SUM(AI$10:AI$11)","v":0},{"$f":"IF(INDEX(PC_MAPPING,RIGHT($C15,1),MATCH($E$2,'Data by Building Type'!$D$22:$F$22,0))=\"Yes\",1,0)*\n(AJ$10*OFFSET('Efficiency Distributions'!$D$10,MATCH($C15,'Efficiency Distributions'!$C$9:$C$87,0)+RIGHT($E25),0)\n+AJ$11*OFFSET('Efficiency Distributions'!$E$10,MATCH($C15,'Efficiency Distributions'!$C$9:$C$87,0)+RIGHT($E25),0))\n/SUM(AJ$10:AJ$11)","v":0},{"$f":"IF(INDEX(PC_MAPPING,RIGHT($C15,1),MATCH($E$2,'Data by Building Type'!$D$22:$F$22,0))=\"Yes\",1,0)*\n(AK$10*OFFSET('Efficiency Distributions'!$D$10,MATCH($C15,'Efficiency Distributions'!$C$9:$C$87,0)+RIGHT($E25),0)\n+AK$11*OFFSET('Efficiency Distributions'!$E$10,MATCH($C15,'Efficiency Distributions'!$C$9:$C$87,0)+RIGHT($E25),0))\n/SUM(AK$10:AK$11)","v":0},{"$f":"IF(INDEX(PC_MAPPING,RIGHT($C15,1),MATCH($E$2,'Data by Building Type'!$D$22:$F$22,0))=\"Yes\",1,0)*\n(AL$10*OFFSET('Efficiency Distributions'!$D$10,MATCH($C15,'Efficiency Distributions'!$C$9:$C$87,0)+RIGHT($E25),0)\n+AL$11*OFFSET('Efficiency Distributions'!$E$10,MATCH($C15,'Efficiency Distributions'!$C$9:$C$87,0)+RIGHT($E25),0))\n/SUM(AL$10:AL$11)","v":0},{"$f":"IF(INDEX(PC_MAPPING,RIGHT($C15,1),MATCH($E$2,'Data by Building Type'!$D$22:$F$22,0))=\"Yes\",1,0)*\n(AM$10*OFFSET('Efficiency Distributions'!$D$10,MATCH($C15,'Efficiency Distributions'!$C$9:$C$87,0)+RIGHT($E25),0)\n+AM$11*OFFSET('Efficiency Distributions'!$E$10,MATCH($C15,'Efficiency Distributions'!$C$9:$C$87,0)+RIGHT($E25),0))\n/SUM(AM$10:AM$11)","v":0},{"$f":"IF(INDEX(PC_MAPPING,RIGHT($C15,1),MATCH($E$2,'Data by Building Type'!$D$22:$F$22,0))=\"Yes\",1,0)*\n(AN$10*OFFSET('Efficiency Distributions'!$D$10,MATCH($C15,'Efficiency Distributions'!$C$9:$C$87,0)+RIGHT($E25),0)\n+AN$11*OFFSET('Efficiency Distributions'!$E$10,MATCH($C15,'Efficiency Distributions'!$C$9:$C$87,0)+RIGHT($E25),0))\n/SUM(AN$10:AN$11)","v":0},{"$f":"IF(INDEX(PC_MAPPING,RIGHT($C15,1),MATCH($E$2,'Data by Building Type'!$D$22:$F$22,0))=\"Yes\",1,0)*\n(AO$10*OFFSET('Efficiency Distributions'!$D$10,MATCH($C15,'Efficiency Distributions'!$C$9:$C$87,0)+RIGHT($E25),0)\n+AO$11*OFFSET('Efficiency Distributions'!$E$10,MATCH($C15,'Efficiency Distributions'!$C$9:$C$87,0)+RIGHT($E25),0))\n/SUM(AO$10:AO$11)","v":0},{"$f":"IF(INDEX(PC_MAPPING,RIGHT($C15,1),MATCH($E$2,'Data by Building Type'!$D$22:$F$22,0))=\"Yes\",1,0)*\n(AP$10*OFFSET('Efficiency Distributions'!$D$10,MATCH($C15,'Efficiency Distributions'!$C$9:$C$87,0)+RIGHT($E25),0)\n+AP$11*OFFSET('Efficiency Distributions'!$E$10,MATCH($C15,'Efficiency Distributions'!$C$9:$C$87,0)+RIGHT($E25),0))\n/SUM(AP$10:AP$11)","v":0},{"$f":"IF(INDEX(PC_MAPPING,RIGHT($C15,1),MATCH($E$2,'Data by Building Type'!$D$22:$F$22,0))=\"Yes\",1,0)*\n(AQ$10*OFFSET('Efficiency Distributions'!$D$10,MATCH($C15,'Efficiency Distributions'!$C$9:$C$87,0)+RIGHT($E25),0)\n+AQ$11*OFFSET('Efficiency Distributions'!$E$10,MATCH($C15,'Efficiency Distributions'!$C$9:$C$87,0)+RIGHT($E25),0))\n/SUM(AQ$10:AQ$11)","v":0},{"$f":"IF(INDEX(PC_MAPPING,RIGHT($C15,1),MATCH($E$2,'Data by Building Type'!$D$22:$F$22,0))=\"Yes\",1,0)*\n(AR$10*OFFSET('Efficiency Distributions'!$D$10,MATCH($C15,'Efficiency Distributions'!$C$9:$C$87,0)+RIGHT($E25),0)\n+AR$11*OFFSET('Efficiency Distributions'!$E$10,MATCH($C15,'Efficiency Distributions'!$C$9:$C$87,0)+RIGHT($E25),0))\n/SUM(AR$10:AR$11)","v":0},{"$f":"IF(INDEX(PC_MAPPING,RIGHT($C15,1),MATCH($E$2,'Data by Building Type'!$D$22:$F$22,0))=\"Yes\",1,0)*\n(AS$10*OFFSET('Efficiency Distributions'!$D$10,MATCH($C15,'Efficiency Distributions'!$C$9:$C$87,0)+RIGHT($E25),0)\n+AS$11*OFFSET('Efficiency Distributions'!$E$10,MATCH($C15,'Efficiency Distributions'!$C$9:$C$87,0)+RIGHT($E25),0))\n/SUM(AS$10:AS$11)","v":0},{"$f":"IF(INDEX(PC_MAPPING,RIGHT($C15,1),MATCH($E$2,'Data by Building Type'!$D$22:$F$22,0))=\"Yes\",1,0)*\n(AT$10*OFFSET('Efficiency Distributions'!$D$10,MATCH($C15,'Efficiency Distributions'!$C$9:$C$87,0)+RIGHT($E25),0)\n+AT$11*OFFSET('Efficiency Distributions'!$E$10,MATCH($C15,'Efficiency Distributions'!$C$9:$C$87,0)+RIGHT($E25),0))\n/SUM(AT$10:AT$11)","v":0},{"$f":"IF(INDEX(PC_MAPPING,RIGHT($C15,1),MATCH($E$2,'Data by Building Type'!$D$22:$F$22,0))=\"Yes\",1,0)*\n(AU$10*OFFSET('Efficiency Distributions'!$D$10,MATCH($C15,'Efficiency Distributions'!$C$9:$C$87,0)+RIGHT($E25),0)\n+AU$11*OFFSET('Efficiency Distributions'!$E$10,MATCH($C15,'Efficiency Distributions'!$C$9:$C$87,0)+RIGHT($E25),0))\n/SUM(AU$10:AU$11)","v":0},{"$f":"IF(INDEX(PC_MAPPING,RIGHT($C15,1),MATCH($E$2,'Data by Building Type'!$D$22:$F$22,0))=\"Yes\",1,0)*\n(AV$10*OFFSET('Efficiency Distributions'!$D$10,MATCH($C15,'Efficiency Distributions'!$C$9:$C$87,0)+RIGHT($E25),0)\n+AV$11*OFFSET('Efficiency Distributions'!$E$10,MATCH($C15,'Efficiency Distributions'!$C$9:$C$87,0)+RIGHT($E25),0))\n/SUM(AV$10:AV$11)","v":0},{"$f":"IF(INDEX(PC_MAPPING,RIGHT($C15,1),MATCH($E$2,'Data by Building Type'!$D$22:$F$22,0))=\"Yes\",1,0)*\n(AW$10*OFFSET('Efficiency Distributions'!$D$10,MATCH($C15,'Efficiency Distributions'!$C$9:$C$87,0)+RIGHT($E25),0)\n+AW$11*OFFSET('Efficiency Distributions'!$E$10,MATCH($C15,'Efficiency Distributions'!$C$9:$C$87,0)+RIGHT($E25),0))\n/SUM(AW$10:AW$11)","v":0},{"$f":"IF(INDEX(PC_MAPPING,RIGHT($C15,1),MATCH($E$2,'Data by Building Type'!$D$22:$F$22,0))=\"Yes\",1,0)*\n(AX$10*OFFSET('Efficiency Distributions'!$D$10,MATCH($C15,'Efficiency Distributions'!$C$9:$C$87,0)+RIGHT($E25),0)\n+AX$11*OFFSET('Efficiency Distributions'!$E$10,MATCH($C15,'Efficiency Distributions'!$C$9:$C$87,0)+RIGHT($E25),0))\n/SUM(AX$10:AX$11)","v":0},{"$f":"IF(INDEX(PC_MAPPING,RIGHT($C15,1),MATCH($E$2,'Data by Building Type'!$D$22:$F$22,0))=\"Yes\",1,0)*\n(AY$10*OFFSET('Efficiency Distributions'!$D$10,MATCH($C15,'Efficiency Distributions'!$C$9:$C$87,0)+RIGHT($E25),0)\n+AY$11*OFFSET('Efficiency Distributions'!$E$10,MATCH($C15,'Efficiency Distributions'!$C$9:$C$87,0)+RIGHT($E25),0))\n/SUM(AY$10:AY$11)","v":0},{"$f":"IF(INDEX(PC_MAPPING,RIGHT($C15,1),MATCH($E$2,'Data by Building Type'!$D$22:$F$22,0))=\"Yes\",1,0)*\n(AZ$10*OFFSET('Efficiency Distributions'!$D$10,MATCH($C15,'Efficiency Distributions'!$C$9:$C$87,0)+RIGHT($E25),0)\n+AZ$11*OFFSET('Efficiency Distributions'!$E$10,MATCH($C15,'Efficiency Distributions'!$C$9:$C$87,0)+RIGHT($E25),0))\n/SUM(AZ$10:AZ$11)","v":0},{"$f":"IF(INDEX(PC_MAPPING,RIGHT($C15,1),MATCH($E$2,'Data by Building Type'!$D$22:$F$22,0))=\"Yes\",1,0)*\n(BA$10*OFFSET('Efficiency Distributions'!$D$10,MATCH($C15,'Efficiency Distributions'!$C$9:$C$87,0)+RIGHT($E25),0)\n+BA$11*OFFSET('Efficiency Distributions'!$E$10,MATCH($C15,'Efficiency Distributions'!$C$9:$C$87,0)+RIGHT($E25),0))\n/SUM(BA$10:BA$11)","v":0},{"$f":"IF(INDEX(PC_MAPPING,RIGHT($C15,1),MATCH($E$2,'Data by Building Type'!$D$22:$F$22,0))=\"Yes\",1,0)*\n(BB$10*OFFSET('Efficiency Distributions'!$D$10,MATCH($C15,'Efficiency Distributions'!$C$9:$C$87,0)+RIGHT($E25),0)\n+BB$11*OFFSET('Efficiency Distributions'!$E$10,MATCH($C15,'Efficiency Distributions'!$C$9:$C$87,0)+RIGHT($E25),0))\n/SUM(BB$10:BB$11)","v":0},{"$f":"IF(INDEX(PC_MAPPING,RIGHT($C15,1),MATCH($E$2,'Data by Building Type'!$D$22:$F$22,0))=\"Yes\",1,0)*\n(BC$10*OFFSET('Efficiency Distributions'!$D$10,MATCH($C15,'Efficiency Distributions'!$C$9:$C$87,0)+RIGHT($E25),0)\n+BC$11*OFFSET('Efficiency Distributions'!$E$10,MATCH($C15,'Efficiency Distributions'!$C$9:$C$87,0)+RIGHT($E25),0))\n/SUM(BC$10:BC$11)","v":0},{"$f":"IF(INDEX(PC_MAPPING,RIGHT($C15,1),MATCH($E$2,'Data by Building Type'!$D$22:$F$22,0))=\"Yes\",1,0)*\n(BD$10*OFFSET('Efficiency Distributions'!$D$10,MATCH($C15,'Efficiency Distributions'!$C$9:$C$87,0)+RIGHT($E25),0)\n+BD$11*OFFSET('Efficiency Distributions'!$E$10,MATCH($C15,'Efficiency Distributions'!$C$9:$C$87,0)+RIGHT($E25),0))\n/SUM(BD$10:BD$11)","v":0},{"$f":"IF(INDEX(PC_MAPPING,RIGHT($C15,1),MATCH($E$2,'Data by Building Type'!$D$22:$F$22,0))=\"Yes\",1,0)*\n(BE$10*OFFSET('Efficiency Distributions'!$D$10,MATCH($C15,'Efficiency Distributions'!$C$9:$C$87,0)+RIGHT($E25),0)\n+BE$11*OFFSET('Efficiency Distributions'!$E$10,MATCH($C15,'Efficiency Distributions'!$C$9:$C$87,0)+RIGHT($E25),0))\n/SUM(BE$10:BE$11)","v":0},{"$f":"IF(INDEX(PC_MAPPING,RIGHT($C15,1),MATCH($E$2,'Data by Building Type'!$D$22:$F$22,0))=\"Yes\",1,0)*\n(BF$10*OFFSET('Efficiency Distributions'!$D$10,MATCH($C15,'Efficiency Distributions'!$C$9:$C$87,0)+RIGHT($E25),0)\n+BF$11*OFFSET('Efficiency Distributions'!$E$10,MATCH($C15,'Efficiency Distributions'!$C$9:$C$87,0)+RIGHT($E25),0))\n/SUM(BF$10:BF$11)","v":0},{"$f":"IF(INDEX(PC_MAPPING,RIGHT($C15,1),MATCH($E$2,'Data by Building Type'!$D$22:$F$22,0))=\"Yes\",1,0)*\n(BG$10*OFFSET('Efficiency Distributions'!$D$10,MATCH($C15,'Efficiency Distributions'!$C$9:$C$87,0)+RIGHT($E25),0)\n+BG$11*OFFSET('Efficiency Distributions'!$E$10,MATCH($C15,'Efficiency Distributions'!$C$9:$C$87,0)+RIGHT($E25),0))\n/SUM(BG$10:BG$11)","v":0}]
[null,null,null,null,"TOTAL",{"$f":"SUM(F19:F25)","v":1},0.99999999999999989,{"$f":"SUM(H19:H25)","v":1},1,1,1,1,0.99999999999999989,1,0.99999999999999989,0.99999999999999989,1,0.99999999999999989,0.99999999999999989,1,0.99999999999999978,1,1,0.99999999999999989,0.99999999999999978,0.99999999999999989,1,0.99999999999999989,1,1,1,1,0.99999999999999989,0.99999999999999989,0.99999999999999989,1,1,1,1,0.99999999999999989,1,0.99999999999999978,0.99999999999999989,0.99999999999999989,1,1,1,1,0.99999999999999989,0.99999999999999989,0.99999999999999989,0.99999999999999978,0.99999999999999978,1,1,0.99999999999999978,1.0000000000000002,1,1]
[]
[null,null,null,"POST-Case"]
[null,null,null,null,"Efficiency Level",1981,{"$f":"F29+1","v":1982},{"$f":"G29+1","v":1983},1984,1985,1986,1987,1988,1989,1990,{"$f":"O29+1","v":1991},{"$f":"P29+1","v":1992},1993,1994,1995,1996,1997,1998,1999,2000,2001,2002,2003,2004,2005,2006,2007,2008,2009,2010,2011,2012,2013,2014,2015,2016,2017,2018,2019,2020,2021,2022,2023,2024,2025,2026,2027,2028,2029,2030,2031,2032,2033,2034]
[null,null,null,null,"EL0",{"$f":"IF(F$29<STANDARD_YEAR,F19,\nIF(RIGHT($E30,1)>RIGHT(INDEX(STANDARD_LEVELS,1,MID($C15,4,1)),1),F19,\nIF(RIGHT($E30,1)<RIGHT(INDEX(STANDARD_LEVELS,1,MID($C15,4,1)),1),0,\nIF(RIGHT($E30,1)=RIGHT(INDEX(STANDARD_LEVELS,1,MID($C15,4,1)),1),SUM(OFFSET(F19,-(RIGHT($E30,1)),0,RIGHT($E30,1)+1,1)),\"ERROR\"))))","v":0.31505431018620622},0.30498713248275577,{"$f":"IF(H$29<STANDARD_YEAR,H19,\nIF(RIGHT($E30,1)>RIGHT(INDEX(STANDARD_LEVELS,1,MID($C15,4,1)),1),H19,\nIF(RIGHT($E30,1)<RIGHT(INDEX(STANDARD_LEVELS,1,MID($C15,4,1)),1),0,\nIF(RIGHT($E30,1)=RIGHT(INDEX(STANDARD_LEVELS,1,MID($C15,4,1)),1),SUM(OFFSET(H19,-(RIGHT($E30,1)),0,RIGHT($E30,1)+1,1)),\"ERROR\"))))","v":0.31702996799288702},0.31478391507446291,0.31339327501705877,0.31568883760891076,0.31586945096928509,0.31894511145996141,0.32596347621889682,0.33074614983206241,0.32587043453810666,0.33388976552687105,0.3118612930012058,0.31407997784879388,0.30590475905439596,0.30708251028574884,0.30534066063001902,0.30617589202226081,0.30349460607876655,0.29697116760706943,0.29686100710638597,0.29787159760461535,0.30362937871021783,0.30322717108548497,0.30818425153972884,0.30066092996975968,0.28404264808253765,0.27694754619127304,0.27694754619127304,0.27694754619127304,0.27990316662663933,0.32122754300591866,0.31999082853566402,0.32530397954413165,0.32487500707093964,0.32695685693299376,0.32604098891926375,0.32572995746568312,0,0,0,0,0,0,0,0,0,0,0,0,0,0,0,0]
[null,null,null,null,"EL1",{"$f":"IF(F$29<STANDARD_YEAR,F20,\nIF(RIGHT($E31,1)>RIGHT(INDEX(STANDARD_LEVELS,1,MID($C15,4,1)),1),F20,\nIF(RIGHT($E31,1)<RIGHT(INDEX(STANDARD_LEVELS,1,MID($C15,4,1)),1),0,\nIF(RIGHT($E31,1)=RIGHT(INDEX(STANDARD_LEVELS,1,MID($C15,4,1)),1),SUM(OFFSET(F20,-(RIGHT($E31,1)),0,RIGHT($E31,1)+1,1)),\"ERROR\"))))","v":0.42449727985676311},0.42209956096626966,{"$f":"IF(H$29<STANDARD_YEAR,H20,\nIF(RIGHT($E31,1)>RIGHT(INDEX(STANDARD_LEVELS,1,MID($C15,4,1)),1),H20,\nIF(RIGHT($E31,1)<RIGHT(INDEX(STANDARD_LEVELS,1,MID($C15,4,1)),1),0,\nIF(RIGHT($E31,1)=RIGHT(INDEX(STANDARD_LEVELS,1,MID($C15,4,1)),1),SUM(OFFSET(H20,-(RIGHT($E31,1)),0,RIGHT($E31,1)+1,1)),\"ERROR\"))))","v":0.42496782603999039},0.42443287933792634,0.4241016679464385,0.42464840646173335,0.42469142348982225,0.42542395940768046,0.4270955367115265,0.42823463519643956,0.42707337679717855,0.42898335613471322,0.42373679287146615,0.42426522126796601,0.4223181138348146,0.42259862108907204,0.42218376143853548,0.42238269009024937,0.42174408310953349,0.42019038334229891,0.42016414620600756,0.42040484047003424,0.42177618216389318,0.42168038760774945,0.42286102490222793,0.42106918107281099,0.41711117321973817,0.41542131928690951,0.41542131928690951,0.41542131928690951,0.41612526503613151,0.42596757047676126,0.42567301983557615,0.42693846313222927,0.42683629394114386,0.42733213208848358,0.427113998059026,0.42703991910524614,0,0,0,0,0,0,0,0,0,0,0,0,0,0,0,0]
[null,null,null,null,"EL2",{"$f":"IF(F$29<STANDARD_YEAR,F21,\nIF(RIGHT($E32,1)>RIGHT(INDEX(STANDARD_LEVELS,1,MID($C15,4,1)),1),F21,\nIF(RIGHT($E32,1)<RIGHT(INDEX(STANDARD_LEVELS,1,MID($C15,4,1)),1),0,\nIF(RIGHT($E32,1)=RIGHT(INDEX(STANDARD_LEVELS,1,MID($C15,4,1)),1),SUM(OFFSET(F21,-(RIGHT($E32,1)),0,RIGHT($E32,1)+1,1)),\"ERROR\"))))","v":0},0,{"$f":"IF(H$29<STANDARD_YEAR,H21,\nIF(RIGHT($E32,1)>RIGHT(INDEX(STANDARD_LEVELS,1,MID($C15,4,1)),1),H21,\nIF(RIGHT($E32,1)<RIGHT(INDEX(STANDARD_LEVELS,1,MID($C15,4,1)),1),0,\nIF(RIGHT($E32,1)=RIGHT(INDEX(STANDARD_LEVELS,1,MID($C15,4,1)),1),SUM(OFFSET(H21,-(RIGHT($E32,1)),0,RIGHT($E32,1)+1,1)),\"ERROR\"))))","v":0},0,0,0,0,0,0,0,0,0,0,0,0,0,0,0,0,0,0,0,0,0,0,0,0,0,0,0,0,0,0,0,0,0,0,0,0,0,0,0,0,0,0,0,0,0,0,0,0,0,0,0]
[null,null,null,null,"EL3",{"$f":"IF(F$29<STANDARD_YEAR,F22,\nIF(RIGHT($E33,1)>RIGHT(INDEX(STANDARD_LEVELS,1,MID($C15,4,1)),1),F22,\nIF(RIGHT($E33,1)<RIGHT(INDEX(STANDARD_LEVELS,1,MID($C15,4,1)),1),0,\nIF(RIGHT($E33,1)=RIGHT(INDEX(STANDARD_LEVELS,1,MID($C15,4,1)),1),SUM(OFFSET(F22,-(RIGHT($E33,1)),0,RIGHT($E33,1)+1,1)),\"ERROR\"))))","v":0.11133672486712759},0.1166652302813326,{"$f":"IF(H$29<STANDARD_YEAR,H22,\nIF(RIGHT($E33,1)>RIGHT(INDEX(STANDARD_LEVELS,1,MID($C15,4,1)),1),H22,\nIF(RIGHT($E33,1)<RIGHT(INDEX(STANDARD_LEVELS,1,MID($C15,4,1)),1),0,\nIF(RIGHT($E33,1)=RIGHT(INDEX(STANDARD_LEVELS,1,MID($C15,4,1)),1),SUM(OFFSET(H22,-(RIGHT($E33,1)),0,RIGHT($E33,1)+1,1)),\"ERROR\"))))","v":0.11029101934472416},0.11147984360997096,0.11221590224461182,0.11100087276369409,0.11090527504038157,0.10927734375123704,0.10556255935798699,0.10303111479697621,0.10561180584140477,0.10136721516756705,0.11302677245137686,0.11185243396535452,0.11617953525346723,0.1155561575802292,0.11647810965008355,0.11603602596717122,0.11745521683553584,0.1209080392888196,0.12096634667561799,0.12043144631923375,0.11738388237442582,0.11759676880289213,0.11497301159733146,0.11895506703523694,0.12775103822192788,0.13150643918489904,0.13150643918489904,0.13150643918489904,0.12994204448003691,0.10806926446541924,0.10872385107794312,0.10591162755819686,0.10613868048338411,0.10503676805188752,0.10552153228408982,0.10568615963380122,0,0,0,0,0,0,0,0,0,0,0,0,0,0,0,0]
[null,null,null,null,"EL4",{"$f":"IF(F$29<STANDARD_YEAR,F23,\nIF(RIGHT($E34,1)>RIGHT(INDEX(STANDARD_LEVELS,1,MID($C15,4,1)),1),F23,\nIF(RIGHT($E34,1)<RIGHT(INDEX(STANDARD_LEVELS,1,MID($C15,4,1)),1),0,\nIF(RIGHT($E34,1)=RIGHT(INDEX(STANDARD_LEVELS,1,MID($C15,4,1)),1),SUM(OFFSET(F23,-(RIGHT($E34,1)),0,RIGHT($E34,1)+1,1)),\"ERROR\"))))","v":2.7834181216781897E-2},2.9166307570333151E-2,{"$f":"IF(H$29<STANDARD_YEAR,H23,\nIF(RIGHT($E34,1)>RIGHT(INDEX(STANDARD_LEVELS,1,MID($C15,4,1)),1),H23,\nIF(RIGHT($E34,1)<RIGHT(INDEX(STANDARD_LEVELS,1,MID($C15,4,1)),1),0,\nIF(RIGHT($E34,1)=RIGHT(INDEX(STANDARD_LEVELS,1,MID($C15,4,1)),1),SUM(OFFSET(H23,-(RIGHT($E34,1)),0,RIGHT($E34,1)+1,1)),\"ERROR\"))))","v":2.7572754836181039E-2},2.7869960902492739E-2,2.8053975561152956E-2,2.7750218190923524E-2,2.7726318760095393E-2,2.7319335937809261E-2,2.6390639839496747E-2,2.5757778699244054E-2,2.6402951460351192E-2,2.5341803791891764E-2,2.8256693112844216E-2,2.796310849133863E-2,2.9044883813366808E-2,2.8889039395057301E-2,2.9119527412520888E-2,2.9009006491792805E-2,2.9363804208883959E-2,3.0227009822204901E-2,3.0241586668904499E-2,3.0107861579808437E-2,2.9345970593606455E-2,2.9399192200723033E-2,2.8743252899332866E-2,2.9738766758809234E-2,3.1937759555481969E-2,3.2876609796224761E-2,3.2876609796224761E-2,3.2876609796224761E-2,3.2485511120009226E-2,2.7017316116354811E-2,2.718096276948578E-2,2.6477906889549215E-2,2.6534670120846027E-2,2.6259192012971881E-2,2.6380383071022456E-2,2.6421539908450305E-2,0.88431314447933596,0.8843206412304736,0.88461981142117641,0.88426848300700811,0.8794202246675269,0.87970611697505385,0.87826310957378573,0.87782526877372469,0.87848218520710419,0.87949225607458636,0.8816536584430229,0.88209193238305805,0.87963941926335509,0.87792480486855851,0.87451652870007524,0.87388594930913976]
[null,null,null,null,"EL5",{"$f":"IF(F$29<STANDARD_YEAR,F24,\nIF(RIGHT($E35,1)>RIGHT(INDEX(STANDARD_LEVELS,1,MID($C15,4,1)),1),F24,\nIF(RIGHT($E35,1)<RIGHT(INDEX(STANDARD_LEVELS,1,MID($C15,4,1)),1),0,\nIF(RIGHT($E35,1)=RIGHT(INDEX(STANDARD_LEVELS,1,MID($C15,4,1)),1),SUM(OFFSET(F24,-(RIGHT($E35,1)),0,RIGHT($E35,1)+1,1)),\"ERROR\"))))","v":0.12127750387312113},0.12708176869930873,{"$f":"IF(H$29<STANDARD_YEAR,H24,\nIF(RIGHT($E35,1)>RIGHT(INDEX(STANDARD_LEVELS,1,MID($C15,4,1)),1),H24,\nIF(RIGHT($E35,1)<RIGHT(INDEX(STANDARD_LEVELS,1,MID($C15,4,1)),1),0,\nIF(RIGHT($E35,1)=RIGHT(INDEX(STANDARD_LEVELS,1,MID($C15,4,1)),1),SUM(OFFSET(H24,-(RIGHT($E35,1)),0,RIGHT($E35,1)+1,1)),\"ERROR\"))))","v":0.12013843178621739},0.12143340107514695,0.12223517923073787,0.12091166497473821,0.12080753174041564,0.11903424944331178,0.11498778787209296,0.11223032147527767,0.11504143136295876,0.11041785937895697,0.12311844856310696,0.12183925842654689,0.12655270804395538,0.12587367164989252,0.12687794086884102,0.1263963854285258,0.12794228976728009,0.13170339993960706,0.13176691334308388,0.13118425402630821,0.1278645861578567,0.12809648030315038,0.1252384590613789,0.12957605516338311,0.13915738092031427,0.1432480855406936,0.1432480855406936,0.1432480855406936,0.14154401273718306,0.11771830593554598,0.11843133778133091,0.115368022875893,0.11561534838368628,0.1144150509136632,0.11494309766659784,0.11512242388681918,0.11568685552066389,0.11567935876952645,0.11538018857882371,0.11573151699299197,0.12057977533247308,0.12029388302494604,0.12173689042621413,0.12217473122627522,0.12151781479289553,0.12050774392541344,0.11834634155697708,0.11790806761694191,0.12036058073664473,0.12207519513144165,0.12548347129992479,0.12611405069086018]
[null,null,null,null,"EL6",{"$f":"IF(F$29<STANDARD_YEAR,F25,\nIF(RIGHT($E36,1)>RIGHT(INDEX(STANDARD_LEVELS,1,MID($C15,4,1)),1),F25,\nIF(RIGHT($E36,1)<RIGHT(INDEX(STANDARD_LEVELS,1,MID($C15,4,1)),1),0,\nIF(RIGHT($E36,1)=RIGHT(INDEX(STANDARD_LEVELS,1,MID($C15,4,1)),1),SUM(OFFSET(F25,-(RIGHT($E36,1)),0,RIGHT($E36,1)+1,1)),\"ERROR\"))))","v":0},0,{"$f":"IF(H$29<STANDARD_YEAR,H25,\nIF(RIGHT($E36,1)>RIGHT(INDEX(STANDARD_LEVELS,1,MID($C15,4,1)),1),H25,\nIF(RIGHT($E36,1)<RIGHT(INDEX(STANDARD_LEVELS,1,MID($C15,4,1)),1),0,\nIF(RIGHT($E36,1)=RIGHT(INDEX(STANDARD_LEVELS,1,MID($C15,4,1)),1),SUM(OFFSET(H25,-(RIGHT($E36,1)),0,RIGHT($E36,1)+1,1)),\"ERROR\"))))","v":0},0,0,0,0,0,0,0,0,0,0,0,0,0,0,0,0,0,0,0,0,0,0,0,0,0,0,0,0,0,0,0,0,0,0,0,0,0,0,0,0,0,0,0,0,0,0,0,0,0,0,0]
[null,null,null,null,"TOTAL",{"$f":"SUM(F30:F36)","v":1},0.99999999999999989,{"$f":"SUM(H30:H36)","v":1},1,1,1,1,0.99999999999999989,1,0.99999999999999989,0.99999999999999989,1,0.99999999999999989,0.99999999999999989,1,0.99999999999999978,1,1,0.99999999999999989,0.99999999999999978,0.99999999999999989,1,0.99999999999999989,1,1,1,1,0.99999999999999989,0.99999999999999989,0.99999999999999989,1,1,1,1,0.99999999999999989,1,0.99999999999999978,0.99999999999999989,0.99999999999999989,1,1,1,1,0.99999999999999989,0.99999999999999989,0.99999999999999989,0.99999999999999978,0.99999999999999978,1,1,0.99999999999999978,1.0000000000000002,1,1]
[]
[]
[]
[null,null,"PC 2",{"$f":"OFFSET('Product Classes'!$C$9,MATCH(C41,MODEL_PCS,0),0)","v":"Non-Weatherized, Condensing Gas Furnace Fan (NWG-C)"}]
[]
[null,null,null,"PRE-Case"]
[null,null,null,null,"Efficiency Level",1981,{"$f":"F44+1","v":1982},{"$f":"G44+1","v":1983},1984,1985,1986,1987,1988,1989,1990,{"$f":"O44+1","v":1991},{"$f":"P44+1","v":1992},1993,1994,1995,1996,1997,1998,1999,2000,2001,2002,2003,2004,2005,2006,2007,2008,2009,2010,2011,2012,2013,2014,2015,2016,2017,2018,2019,2020,2021,2022,2023,2024,2025,2026,2027,2028,2029,2030,2031,2032,2033,2034]
[null,null,null,null,"EL0",{"$f":"IF(INDEX(PC_MAPPING,RIGHT($C41,1),MATCH($E$2,'Data by Building Type'!$D$22:$F$22,0))=\"Yes\",1,0)*\n(F$10*OFFSET('Efficiency Distributions'!$D$10,MATCH($C41,'Efficiency Distributions'!$C$9:$C$87,0)+RIGHT($E45),0)\n+F$11*OFFSET('Efficiency Distributions'!$E$10,MATCH($C41,'Efficiency Distributions'!$C$9:$C$87,0)+RIGHT($E45),0))\n/SUM(F$10:F$11)","v":0.24843899552389889},{"$f":"IF(INDEX(PC_MAPPING,RIGHT($C41,1),MATCH($E$2,'Data by Building Type'!$D$22:$F$22,0))=\"Yes\",1,0)*\n(G$10*OFFSET('Efficiency Distributions'!$D$10,MATCH($C41,'Efficiency Distributions'!$C$9:$C$87,0)+RIGHT($E45),0)\n+G$11*OFFSET('Efficiency Distributions'!$E$10,MATCH($C41,'Efficiency Distributions'!$C$9:$C$87,0)+RIGHT($E45),0))\n/SUM(G$10:G$11)","v":0.23552342288074005},{"$f":"IF(INDEX(PC_MAPPING,RIGHT($C41,1),MATCH($E$2,'Data by Building Type'!$D$22:$F$22,0))=\"Yes\",1,0)*\n(H$10*OFFSET('Efficiency Distributions'!$D$10,MATCH($C41,'Efficiency Distributions'!$C$9:$C$87,0)+RIGHT($E45),0)\n+H$11*OFFSET('Efficiency Distributions'!$E$10,MATCH($C41,'Efficiency Distributions'!$C$9:$C$87,0)+RIGHT($E45),0))\n/SUM(H$10:H$11)","v":0.25097364353269125},{"$f":"IF(INDEX(PC_MAPPING,RIGHT($C41,1),MATCH($E$2,'Data by Building Type'!$D$22:$F$22,0))=\"Yes\",1,0)*\n(I$10*OFFSET('Efficiency Distributions'!$D$10,MATCH($C41,'Efficiency Distributions'!$C$9:$C$87,0)+RIGHT($E45),0)\n+I$11*OFFSET('Efficiency Distributions'!$E$10,MATCH($C41,'Efficiency Distributions'!$C$9:$C$87,0)+RIGHT($E45),0))\n/SUM(I$10:I$11)","v":0.24809209515013492},{"$f":"IF(INDEX(PC_MAPPING,RIGHT($C41,1),MATCH($E$2,'Data by Building Type'!$D$22:$F$22,0))=\"Yes\",1,0)*\n(J$10*OFFSET('Efficiency Distributions'!$D$10,MATCH($C41,'Efficiency Distributions'!$C$9:$C$87,0)+RIGHT($E45),0)\n+J$11*OFFSET('Efficiency Distributions'!$E$10,MATCH($C41,'Efficiency Distributions'!$C$9:$C$87,0)+RIGHT($E45),0))\n/SUM(J$10:J$11)","v":0.24630798909668417},{"$f":"IF(INDEX(PC_MAPPING,RIGHT($C41,1),MATCH($E$2,'Data by Building Type'!$D$22:$F$22,0))=\"Yes\",1,0)*\n(K$10*OFFSET('Efficiency Distributions'!$D$10,MATCH($C41,'Efficiency Distributions'!$C$9:$C$87,0)+RIGHT($E45),0)\n+K$11*OFFSET('Efficiency Distributions'!$E$10,MATCH($C41,'Efficiency Distributions'!$C$9:$C$87,0)+RIGHT($E45),0))\n/SUM(K$10:K$11)","v":0.24925305535908071},{"$f":"IF(INDEX(PC_MAPPING,RIGHT($C41,1),MATCH($E$2,'Data by Building Type'!$D$22:$F$22,0))=\"Yes\",1,0)*\n(L$10*OFFSET('Efficiency Distributions'!$D$10,MATCH($C41,'Efficiency Distributions'!$C$9:$C$87,0)+RIGHT($E45),0)\n+L$11*OFFSET('Efficiency Distributions'!$E$10,MATCH($C41,'Efficiency Distributions'!$C$9:$C$87,0)+RIGHT($E45),0))\n/SUM(L$10:L$11)","v":0.24948477124261381},{"$f":"IF(INDEX(PC_MAPPING,RIGHT($C41,1),MATCH($E$2,'Data by Building Type'!$D$22:$F$22,0))=\"Yes\",1,0)*\n(M$10*OFFSET('Efficiency Distributions'!$D$10,MATCH($C41,'Efficiency Distributions'!$C$9:$C$87,0)+RIGHT($E45),0)\n+M$11*OFFSET('Efficiency Distributions'!$E$10,MATCH($C41,'Efficiency Distributions'!$C$9:$C$87,0)+RIGHT($E45),0))\n/SUM(M$10:M$11)","v":0.25343065534868342},{"$f":"IF(INDEX(PC_MAPPING,RIGHT($C41,1),MATCH($E$2,'Data by Building Type'!$D$22:$F$22,0))=\"Yes\",1,0)*\n(N$10*OFFSET('Efficiency Distributions'!$D$10,MATCH($C41,'Efficiency Distributions'!$C$9:$C$87,0)+RIGHT($E45),0)\n+N$11*OFFSET('Efficiency Distributions'!$E$10,MATCH($C41,'Efficiency Distributions'!$C$9:$C$87,0)+RIGHT($E45),0))\n/SUM(N$10:N$11)","v":0.26243478764379002},{"$f":"IF(INDEX(PC_MAPPING,RIGHT($C41,1),MATCH($E$2,'Data by Building Type'!$D$22:$F$22,0))=\"Yes\",1,0)*\n(O$10*OFFSET('Efficiency Distributions'!$D$10,MATCH($C41,'Efficiency Distributions'!$C$9:$C$87,0)+RIGHT($E45),0)\n+O$11*OFFSET('Efficiency Distributions'!$E$10,MATCH($C41,'Efficiency Distributions'!$C$9:$C$87,0)+RIGHT($E45),0))\n/SUM(O$10:O$11)","v":0.26857066507626931},{"$f":"IF(INDEX(PC_MAPPING,RIGHT($C41,1),MATCH($E$2,'Data by Building Type'!$D$22:$F$22,0))=\"Yes\",1,0)*\n(P$10*OFFSET('Efficiency Distributions'!$D$10,MATCH($C41,'Efficiency Distributions'!$C$9:$C$87,0)+RIGHT($E45),0)\n+P$11*OFFSET('Efficiency Distributions'!$E$10,MATCH($C41,'Efficiency Distributions'!$C$9:$C$87,0)+RIGHT($E45),0))\n/SUM(P$10:P$11)","v":0.26231542086369691},{"$f":"IF(INDEX(PC_MAPPING,RIGHT($C41,1),MATCH($E$2,'Data by Building Type'!$D$22:$F$22,0))=\"Yes\",1,0)*\n(Q$10*OFFSET('Efficiency Distributions'!$D$10,MATCH($C41,'Efficiency Distributions'!$C$9:$C$87,0)+RIGHT($E45),0)\n+Q$11*OFFSET('Efficiency Distributions'!$E$10,MATCH($C41,'Efficiency Distributions'!$C$9:$C$87,0)+RIGHT($E45),0))\n/SUM(Q$10:Q$11)","v":0.27260373154876827},{"$f":"IF(INDEX(PC_MAPPING,RIGHT($C41,1),MATCH($E$2,'Data by Building Type'!$D$22:$F$22,0))=\"Yes\",1,0)*\n(R$10*OFFSET('Efficiency Distributions'!$D$10,MATCH($C41,'Efficiency Distributions'!$C$9:$C$87,0)+RIGHT($E45),0)\n+R$11*OFFSET('Efficiency Distributions'!$E$10,MATCH($C41,'Efficiency Distributions'!$C$9:$C$87,0)+RIGHT($E45),0))\n/SUM(R$10:R$11)","v":0.24434254996402829},{"$f":"IF(INDEX(PC_MAPPING,RIGHT($C41,1),MATCH($E$2,'Data by Building Type'!$D$22:$F$22,0))=\"Yes\",1,0)*\n(S$10*OFFSET('Efficiency Distributions'!$D$10,MATCH($C41,'Efficiency Distributions'!$C$9:$C$87,0)+RIGHT($E45),0)\n+S$11*OFFSET('Efficiency Distributions'!$E$10,MATCH($C41,'Efficiency Distributions'!$C$9:$C$87,0)+RIGHT($E45),0))\n/SUM(S$10:S$11)","v":0.24718898678727805},{"$f":"IF(INDEX(PC_MAPPING,RIGHT($C41,1),MATCH($E$2,'Data by Building Type'!$D$22:$F$22,0))=\"Yes\",1,0)*\n(T$10*OFFSET('Efficiency Distributions'!$D$10,MATCH($C41,'Efficiency Distributions'!$C$9:$C$87,0)+RIGHT($E45),0)\n+T$11*OFFSET('Efficiency Distributions'!$E$10,MATCH($C41,'Efficiency Distributions'!$C$9:$C$87,0)+RIGHT($E45),0))\n/SUM(T$10:T$11)","v":0.23670068159161481},{"$f":"IF(INDEX(PC_MAPPING,RIGHT($C41,1),MATCH($E$2,'Data by Building Type'!$D$22:$F$22,0))=\"Yes\",1,0)*\n(U$10*OFFSET('Efficiency Distributions'!$D$10,MATCH($C41,'Efficiency Distributions'!$C$9:$C$87,0)+RIGHT($E45),0)\n+U$11*OFFSET('Efficiency Distributions'!$E$10,MATCH($C41,'Efficiency Distributions'!$C$9:$C$87,0)+RIGHT($E45),0))\n/SUM(U$10:U$11)","v":0.238211664315094},{"$f":"IF(INDEX(PC_MAPPING,RIGHT($C41,1),MATCH($E$2,'Data by Building Type'!$D$22:$F$22,0))=\"Yes\",1,0)*\n(V$10*OFFSET('Efficiency Distributions'!$D$10,MATCH($C41,'Efficiency Distributions'!$C$9:$C$87,0)+RIGHT($E45),0)\n+V$11*OFFSET('Efficiency Distributions'!$E$10,MATCH($C41,'Efficiency Distributions'!$C$9:$C$87,0)+RIGHT($E45),0))\n/SUM(V$10:V$11)","v":0.23597697784936},{"$f":"IF(INDEX(PC_MAPPING,RIGHT($C41,1),MATCH($E$2,'Data by Building Type'!$D$22:$F$22,0))=\"Yes\",1,0)*\n(W$10*OFFSET('Efficiency Distributions'!$D$10,MATCH($C41,'Efficiency Distributions'!$C$9:$C$87,0)+RIGHT($E45),0)\n+W$11*OFFSET('Efficiency Distributions'!$E$10,MATCH($C41,'Efficiency Distributions'!$C$9:$C$87,0)+RIGHT($E45),0))\n/SUM(W$10:W$11)","v":0.23704852858960845},{"$f":"IF(INDEX(PC_MAPPING,RIGHT($C41,1),MATCH($E$2,'Data by Building Type'!$D$22:$F$22,0))=\"Yes\",1,0)*\n(X$10*OFFSET('Efficiency Distributions'!$D$10,MATCH($C41,'Efficiency Distributions'!$C$9:$C$87,0)+RIGHT($E45),0)\n+X$11*OFFSET('Efficiency Distributions'!$E$10,MATCH($C41,'Efficiency Distributions'!$C$9:$C$87,0)+RIGHT($E45),0))\n/SUM(X$10:X$11)","v":0.23360860288248492},{"$f":"IF(INDEX(PC_MAPPING,RIGHT($C41,1),MATCH($E$2,'Data by Building Type'!$D$22:$F$22,0))=\"Yes\",1,0)*\n(Y$10*OFFSET('Efficiency Distributions'!$D$10,MATCH($C41,'Efficiency Distributions'!$C$9:$C$87,0)+RIGHT($E45),0)\n+Y$11*OFFSET('Efficiency Distributions'!$E$10,MATCH($C41,'Efficiency Distributions'!$C$9:$C$87,0)+RIGHT($E45),0))\n/SUM(Y$10:Y$11)","v":0.22523943071266173},{"$f":"IF(INDEX(PC_MAPPING,RIGHT($C41,1),MATCH($E$2,'Data by Building Type'!$D$22:$F$22,0))=\"Yes\",1,0)*\n(Z$10*OFFSET('Efficiency Distributions'!$D$10,MATCH($C41,'Efficiency Distributions'!$C$9:$C$87,0)+RIGHT($E45),0)\n+Z$11*OFFSET('Efficiency Distributions'!$E$10,MATCH($C41,'Efficiency Distributions'!$C$9:$C$87,0)+RIGHT($E45),0))\n/SUM(Z$10:Z$11)","v":0.22509810153472382},{"$f":"IF(INDEX(PC_MAPPING,RIGHT($C41,1),MATCH($E$2,'Data by Building Type'!$D$22:$F$22,0))=\"Yes\",1,0)*\n(AA$10*OFFSET('Efficiency Distributions'!$D$10,MATCH($C41,'Efficiency Distributions'!$C$9:$C$87,0)+RIGHT($E45),0)\n+AA$11*OFFSET('Efficiency Distributions'!$E$10,MATCH($C41,'Efficiency Distributions'!$C$9:$C$87,0)+RIGHT($E45),0))\n/SUM(AA$10:AA$11)","v":0.22639462727181237},{"$f":"IF(INDEX(PC_MAPPING,RIGHT($C41,1),MATCH($E$2,'Data by Building Type'!$D$22:$F$22,0))=\"Yes\",1,0)*\n(AB$10*OFFSET('Efficiency Distributions'!$D$10,MATCH($C41,'Efficiency Distributions'!$C$9:$C$87,0)+RIGHT($E45),0)\n+AB$11*OFFSET('Efficiency Distributions'!$E$10,MATCH($C41,'Efficiency Distributions'!$C$9:$C$87,0)+RIGHT($E45),0))\n/SUM(AB$10:AB$11)","v":0.23378150791735094},{"$f":"IF(INDEX(PC_MAPPING,RIGHT($C41,1),MATCH($E$2,'Data by Building Type'!$D$22:$F$22,0))=\"Yes\",1,0)*\n(AC$10*OFFSET('Efficiency Distributions'!$D$10,MATCH($C41,'Efficiency Distributions'!$C$9:$C$87,0)+RIGHT($E45),0)\n+AC$11*OFFSET('Efficiency Distributions'!$E$10,MATCH($C41,'Efficiency Distributions'!$C$9:$C$87,0)+RIGHT($E45),0))\n/SUM(AC$10:AC$11)","v":0.2332655001594777},{"$f":"IF(INDEX(PC_MAPPING,RIGHT($C41,1),MATCH($E$2,'Data by Building Type'!$D$22:$F$22,0))=\"Yes\",1,0)*\n(AD$10*OFFSET('Efficiency Distributions'!$D$10,MATCH($C41,'Efficiency Distributions'!$C$9:$C$87,0)+RIGHT($E45),0)\n+AD$11*OFFSET('Efficiency Distributions'!$E$10,MATCH($C41,'Efficiency Distributions'!$C$9:$C$87,0)+RIGHT($E45),0))\n/SUM(AD$10:AD$11)","v":0.23962513089121945},{"$f":"IF(INDEX(PC_MAPPING,RIGHT($C41,1),MATCH($E$2,'Data by Building Type'!$D$22:$F$22,0))=\"Yes\",1,0)*\n(AE$10*OFFSET('Efficiency Distributions'!$D$10,MATCH($C41,'Efficiency Distributions'!$C$9:$C$87,0)+RIGHT($E45),0)\n+AE$11*OFFSET('Efficiency Distributions'!$E$10,MATCH($C41,'Efficiency Distributions'!$C$9:$C$87,0)+RIGHT($E45),0))\n/SUM(AE$10:AE$11)","v":0.22997316992290595},{"$f":"IF(INDEX(PC_MAPPING,RIGHT($C41,1),MATCH($E$2,'Data by Building Type'!$D$22:$F$22,0))=\"Yes\",1,0)*\n(AF$10*OFFSET('Efficiency Distributions'!$D$10,MATCH($C41,'Efficiency Distributions'!$C$9:$C$87,0)+RIGHT($E45),0)\n+AF$11*OFFSET('Efficiency Distributions'!$E$10,MATCH($C41,'Efficiency Distributions'!$C$9:$C$87,0)+RIGHT($E45),0))\n/SUM(AF$10:AF$11)","v":0.20865293169513111},{"$f":"IF(INDEX(PC_MAPPING,RIGHT($C41,1),MATCH($E$2,'Data by Building Type'!$D$22:$F$22,0))=\"Yes\",1,0)*\n(AG$10*OFFSET('Efficiency Distributions'!$D$10,MATCH($C41,'Efficiency Distributions'!$C$9:$C$87,0)+RIGHT($E45),0)\n+AG$11*OFFSET('Efficiency Distributions'!$E$10,MATCH($C41,'Efficiency Distributions'!$C$9:$C$87,0)+RIGHT($E45),0))\n/SUM(AG$10:AG$11)","v":0.19955035035738097},{"$f":"IF(INDEX(PC_MAPPING,RIGHT($C41,1),MATCH($E$2,'Data by Building Type'!$D$22:$F$22,0))=\"Yes\",1,0)*\n(AH$10*OFFSET('Efficiency Distributions'!$D$10,MATCH($C41,'Efficiency Distributions'!$C$9:$C$87,0)+RIGHT($E45),0)\n+AH$11*OFFSET('Efficiency Distributions'!$E$10,MATCH($C41,'Efficiency Distributions'!$C$9:$C$87,0)+RIGHT($E45),0))\n/SUM(AH$10:AH$11)","v":0.19955035035738097},{"$f":"IF(INDEX(PC_MAPPING,RIGHT($C41,1),MATCH($E$2,'Data by Building Type'!$D$22:$F$22,0))=\"Yes\",1,0)*\n(AI$10*OFFSET('Efficiency Distributions'!$D$10,MATCH($C41,'Efficiency Distributions'!$C$9:$C$87,0)+RIGHT($E45),0)\n+AI$11*OFFSET('Efficiency Distributions'!$E$10,MATCH($C41,'Efficiency Distributions'!$C$9:$C$87,0)+RIGHT($E45),0))\n/SUM(AI$10:AI$11)","v":0.19955035035738097},{"$f":"IF(INDEX(PC_MAPPING,RIGHT($C41,1),MATCH($E$2,'Data by Building Type'!$D$22:$F$22,0))=\"Yes\",1,0)*\n(AJ$10*OFFSET('Efficiency Distributions'!$D$10,MATCH($C41,'Efficiency Distributions'!$C$9:$C$87,0)+RIGHT($E45),0)\n+AJ$11*OFFSET('Efficiency Distributions'!$E$10,MATCH($C41,'Efficiency Distributions'!$C$9:$C$87,0)+RIGHT($E45),0))\n/SUM(AJ$10:AJ$11)","v":0.20334223042179009},{"$f":"IF(INDEX(PC_MAPPING,RIGHT($C41,1),MATCH($E$2,'Data by Building Type'!$D$22:$F$22,0))=\"Yes\",1,0)*\n(AK$10*OFFSET('Efficiency Distributions'!$D$10,MATCH($C41,'Efficiency Distributions'!$C$9:$C$87,0)+RIGHT($E45),0)\n+AK$11*OFFSET('Efficiency Distributions'!$E$10,MATCH($C41,'Efficiency Distributions'!$C$9:$C$87,0)+RIGHT($E45),0))\n/SUM(AK$10:AK$11)","v":0.25635887528312878},{"$f":"IF(INDEX(PC_MAPPING,RIGHT($C41,1),MATCH($E$2,'Data by Building Type'!$D$22:$F$22,0))=\"Yes\",1,0)*\n(AL$10*OFFSET('Efficiency Distributions'!$D$10,MATCH($C41,'Efficiency Distributions'!$C$9:$C$87,0)+RIGHT($E45),0)\n+AL$11*OFFSET('Efficiency Distributions'!$E$10,MATCH($C41,'Efficiency Distributions'!$C$9:$C$87,0)+RIGHT($E45),0))\n/SUM(AL$10:AL$11)","v":0.25477224633408929},{"$f":"IF(INDEX(PC_MAPPING,RIGHT($C41,1),MATCH($E$2,'Data by Building Type'!$D$22:$F$22,0))=\"Yes\",1,0)*\n(AM$10*OFFSET('Efficiency Distributions'!$D$10,MATCH($C41,'Efficiency Distributions'!$C$9:$C$87,0)+RIGHT($E45),0)\n+AM$11*OFFSET('Efficiency Distributions'!$E$10,MATCH($C41,'Efficiency Distributions'!$C$9:$C$87,0)+RIGHT($E45),0))\n/SUM(AM$10:AM$11)","v":0.26158869378692573},{"$f":"IF(INDEX(PC_MAPPING,RIGHT($C41,1),MATCH($E$2,'Data by Building Type'!$D$22:$F$22,0))=\"Yes\",1,0)*\n(AN$10*OFFSET('Efficiency Distributions'!$D$10,MATCH($C41,'Efficiency Distributions'!$C$9:$C$87,0)+RIGHT($E45),0)\n+AN$11*OFFSET('Efficiency Distributions'!$E$10,MATCH($C41,'Efficiency Distributions'!$C$9:$C$87,0)+RIGHT($E45),0))\n/SUM(AN$10:AN$11)","v":0.26103834836712375},{"$f":"IF(INDEX(PC_MAPPING,RIGHT($C41,1),MATCH($E$2,'Data by Building Type'!$D$22:$F$22,0))=\"Yes\",1,0)*\n(AO$10*OFFSET('Efficiency Distributions'!$D$10,MATCH($C41,'Efficiency Distributions'!$C$9:$C$87,0)+RIGHT($E45),0)\n+AO$11*OFFSET('Efficiency Distributions'!$E$10,MATCH($C41,'Efficiency Distributions'!$C$9:$C$87,0)+RIGHT($E45),0))\n/SUM(AO$10:AO$11)","v":0.26370923428148429},{"$f":"IF(INDEX(PC_MAPPING,RIGHT($C41,1),MATCH($E$2,'Data by Building Type'!$D$22:$F$22,0))=\"Yes\",1,0)*\n(AP$10*OFFSET('Efficiency Distributions'!$D$10,MATCH($C41,'Efficiency Distributions'!$C$9:$C$87,0)+RIGHT($E45),0)\n+AP$11*OFFSET('Efficiency Distributions'!$E$10,MATCH($C41,'Efficiency Distributions'!$C$9:$C$87,0)+RIGHT($E45),0))\n/SUM(AP$10:AP$11)","v":0.26253423169274276},{"$f":"IF(INDEX(PC_MAPPING,RIGHT($C41,1),MATCH($E$2,'Data by Building Type'!$D$22:$F$22,0))=\"Yes\",1,0)*\n(AQ$10*OFFSET('Efficiency Distributions'!$D$10,MATCH($C41,'Efficiency Distributions'!$C$9:$C$87,0)+RIGHT($E45),0)\n+AQ$11*OFFSET('Efficiency Distributions'!$E$10,MATCH($C41,'Efficiency Distributions'!$C$9:$C$87,0)+RIGHT($E45),0))\n/SUM(AQ$10:AQ$11)","v":0.26213519738031066},{"$f":"IF(INDEX(PC_MAPPING,RIGHT($C41,1),MATCH($E$2,'Data by Building Type'!$D$22:$F$22,0))=\"Yes\",1,0)*\n(AR$10*OFFSET('Efficiency Distributions'!$D$10,MATCH($C41,'Efficiency Distributions'!$C$9:$C$87,0)+RIGHT($E45),0)\n+AR$11*OFFSET('Efficiency Distributions'!$E$10,MATCH($C41,'Efficiency Distributions'!$C$9:$C$87,0)+RIGHT($E45),0))\n/SUM(AR$10:AR$11)","v":0.26087923164006266},{"$f":"IF(INDEX(PC_MAPPING,RIGHT($C41,1),MATCH($E$2,'Data by Building Type'!$D$22:$F$22,0))=\"Yes\",1,0)*\n(AS$10*OFFSET('Efficiency Distributions'!$D$10,MATCH($C41,'Efficiency Distributions'!$C$9:$C$87,0)+RIGHT($E45),0)\n+AS$11*OFFSET('Efficiency Distributions'!$E$10,MATCH($C41,'Efficiency Distributions'!$C$9:$C$87,0)+RIGHT($E45),0))\n/SUM(AS$10:AS$11)","v":0.26089591331066225},{"$f":"IF(INDEX(PC_MAPPING,RIGHT($C41,1),MATCH($E$2,'Data by Building Type'!$D$22:$F$22,0))=\"Yes\",1,0)*\n(AT$10*OFFSET('Efficiency Distributions'!$D$10,MATCH($C41,'Efficiency Distributions'!$C$9:$C$87,0)+RIGHT($E45),0)\n+AT$11*OFFSET('Efficiency Distributions'!$E$10,MATCH($C41,'Efficiency Distributions'!$C$9:$C$87,0)+RIGHT($E45),0))\n/SUM(AT$10:AT$11)","v":0.261561622827095},{"$f":"IF(INDEX(PC_MAPPING,RIGHT($C41,1),MATCH($E$2,'Data by Building Type'!$D$22:$F$22,0))=\"Yes\",1,0)*\n(AU$10*OFFSET('Efficiency Distributions'!$D$10,MATCH($C41,'Efficiency Distributions'!$C$9:$C$87,0)+RIGHT($E45),0)\n+AU$11*OFFSET('Efficiency Distributions'!$E$10,MATCH($C41,'Efficiency Distributions'!$C$9:$C$87,0)+RIGHT($E45),0))\n/SUM(AU$10:AU$11)","v":0.26077985152776983},{"$f":"IF(INDEX(PC_MAPPING,RIGHT($C41,1),MATCH($E$2,'Data by Building Type'!$D$22:$F$22,0))=\"Yes\",1,0)*\n(AV$10*OFFSET('Efficiency Distributions'!$D$10,MATCH($C41,'Efficiency Distributions'!$C$9:$C$87,0)+RIGHT($E45),0)\n+AV$11*OFFSET('Efficiency Distributions'!$E$10,MATCH($C41,'Efficiency Distributions'!$C$9:$C$87,0)+RIGHT($E45),0))\n/SUM(AV$10:AV$11)","v":0.24999157176254452},{"$f":"IF(INDEX(PC_MAPPING,RIGHT($C41,1),MATCH($E$2,'Data by Building Type'!$D$22:$F$22,0))=\"Yes\",1,0)*\n(AW$10*OFFSET('Efficiency Distributions'!$D$10,MATCH($C41,'Efficiency Distributions'!$C$9:$C$87,0)+RIGHT($E45),0)\n+AW$11*OFFSET('Efficiency Distributions'!$E$10,MATCH($C41,'Efficiency Distributions'!$C$9:$C$87,0)+RIGHT($E45),0))\n/SUM(AW$10:AW$11)","v":0.25062773551050543},{"$f":"IF(INDEX(PC_MAPPING,RIGHT($C41,1),MATCH($E$2,'Data by Building Type'!$D$22:$F$22,0))=\"Yes\",1,0)*\n(AX$10*OFFSET('Efficiency Distributions'!$D$10,MATCH($C41,'Efficiency Distributions'!$C$9:$C$87,0)+RIGHT($E45),0)\n+AX$11*OFFSET('Efficiency Distributions'!$E$10,MATCH($C41,'Efficiency Distributions'!$C$9:$C$87,0)+RIGHT($E45),0))\n/SUM(AX$10:AX$11)","v":0.24741677469569104},{"$f":"IF(INDEX(PC_MAPPING,RIGHT($C41,1),MATCH($E$2,'Data by Building Type'!$D$22:$F$22,0))=\"Yes\",1,0)*\n(AY$10*OFFSET('Efficiency Distributions'!$D$10,MATCH($C41,'Efficiency Distributions'!$C$9:$C$87,0)+RIGHT($E45),0)\n+AY$11*OFFSET('Efficiency Distributions'!$E$10,MATCH($C41,'Efficiency Distributions'!$C$9:$C$87,0)+RIGHT($E45),0))\n/SUM(AY$10:AY$11)","v":0.24644249718963834},{"$f":"IF(INDEX(PC_MAPPING,RIGHT($C41,1),MATCH($E$2,'Data by Building Type'!$D$22:$F$22,0))=\"Yes\",1,0)*\n(AZ$10*OFFSET('Efficiency Distributions'!$D$10,MATCH($C41,'Efficiency Distributions'!$C$9:$C$87,0)+RIGHT($E45),0)\n+AZ$11*OFFSET('Efficiency Distributions'!$E$10,MATCH($C41,'Efficiency Distributions'!$C$9:$C$87,0)+RIGHT($E45),0))\n/SUM(AZ$10:AZ$11)","v":0.24790425887175865},{"$f":"IF(INDEX(PC_MAPPING,RIGHT($C41,1),MATCH($E$2,'Data by Building Type'!$D$22:$F$22,0))=\"Yes\",1,0)*\n(BA$10*OFFSET('Efficiency Distributions'!$D$10,MATCH($C41,'Efficiency Distributions'!$C$9:$C$87,0)+RIGHT($E45),0)\n+BA$11*OFFSET('Efficiency Distributions'!$E$10,MATCH($C41,'Efficiency Distributions'!$C$9:$C$87,0)+RIGHT($E45),0))\n/SUM(BA$10:BA$11)","v":0.25015185508839655},{"$f":"IF(INDEX(PC_MAPPING,RIGHT($C41,1),MATCH($E$2,'Data by Building Type'!$D$22:$F$22,0))=\"Yes\",1,0)*\n(BB$10*OFFSET('Efficiency Distributions'!$D$10,MATCH($C41,'Efficiency Distributions'!$C$9:$C$87,0)+RIGHT($E45),0)\n+BB$11*OFFSET('Efficiency Distributions'!$E$10,MATCH($C41,'Efficiency Distributions'!$C$9:$C$87,0)+RIGHT($E45),0))\n/SUM(BB$10:BB$11)","v":0.25496137879839087},{"$f":"IF(INDEX(PC_MAPPING,RIGHT($C41,1),MATCH($E$2,'Data by Building Type'!$D$22:$F$22,0))=\"Yes\",1,0)*\n(BC$10*OFFSET('Efficiency Distributions'!$D$10,MATCH($C41,'Efficiency Distributions'!$C$9:$C$87,0)+RIGHT($E45),0)\n+BC$11*OFFSET('Efficiency Distributions'!$E$10,MATCH($C41,'Efficiency Distributions'!$C$9:$C$87,0)+RIGHT($E45),0))\n/SUM(BC$10:BC$11)","v":0.25593662012173446},{"$f":"IF(INDEX(PC_MAPPING,RIGHT($C41,1),MATCH($E$2,'Data by Building Type'!$D$22:$F$22,0))=\"Yes\",1,0)*\n(BD$10*OFFSET('Efficiency Distributions'!$D$10,MATCH($C41,'Efficiency Distributions'!$C$9:$C$87,0)+RIGHT($E45),0)\n+BD$11*OFFSET('Efficiency Distributions'!$E$10,MATCH($C41,'Efficiency Distributions'!$C$9:$C$87,0)+RIGHT($E45),0))\n/SUM(BD$10:BD$11)","v":0.25047932065240142},{"$f":"IF(INDEX(PC_MAPPING,RIGHT($C41,1),MATCH($E$2,'Data by Building Type'!$D$22:$F$22,0))=\"Yes\",1,0)*\n(BE$10*OFFSET('Efficiency Distributions'!$D$10,MATCH($C41,'Efficiency Distributions'!$C$9:$C$87,0)+RIGHT($E45),0)\n+BE$11*OFFSET('Efficiency Distributions'!$E$10,MATCH($C41,'Efficiency Distributions'!$C$9:$C$87,0)+RIGHT($E45),0))\n/SUM(BE$10:BE$11)","v":0.24666398357972164},{"$f":"IF(INDEX(PC_MAPPING,RIGHT($C41,1),MATCH($E$2,'Data by Building Type'!$D$22:$F$22,0))=\"Yes\",1,0)*\n(BF$10*OFFSET('Efficiency Distributions'!$D$10,MATCH($C41,'Efficiency Distributions'!$C$9:$C$87,0)+RIGHT($E45),0)\n+BF$11*OFFSET('Efficiency Distributions'!$E$10,MATCH($C41,'Efficiency Distributions'!$C$9:$C$87,0)+RIGHT($E45),0))\n/SUM(BF$10:BF$11)","v":0.23907993292728011},{"$f":"IF(INDEX(PC_MAPPING,RIGHT($C41,1),MATCH($E$2,'Data by Building Type'!$D$22:$F$22,0))=\"Yes\",1,0)*\n(BG$10*OFFSET('Efficiency Distributions'!$D$10,MATCH($C41,'Efficiency Distributions'!$C$9:$C$87,0)+RIGHT($E45),0)\n+BG$11*OFFSET('Efficiency Distributions'!$E$10,MATCH($C41,'Efficiency Distributions'!$C$9:$C$87,0)+RIGHT($E45),0))\n/SUM(BG$10:BG$11)","v":0.23767677608058355}]
[null,null,null,null,"EL1",{"$f":"IF(INDEX(PC_MAPPING,RIGHT($C41,1),MATCH($E$2,'Data by Building Type'!$D$22:$F$22,0))=\"Yes\",1,0)*\n(F$10*OFFSET('Efficiency Distributions'!$D$10,MATCH($C41,'Efficiency Distributions'!$C$9:$C$87,0)+RIGHT($E46),0)\n+F$11*OFFSET('Efficiency Distributions'!$E$10,MATCH($C41,'Efficiency Distributions'!$C$9:$C$87,0)+RIGHT($E46),0))\n/SUM(F$10:F$11)","v":0.32729646598088047},{"$f":"IF(INDEX(PC_MAPPING,RIGHT($C41,1),MATCH($E$2,'Data by Building Type'!$D$22:$F$22,0))=\"Yes\",1,0)*\n(G$10*OFFSET('Efficiency Distributions'!$D$10,MATCH($C41,'Efficiency Distributions'!$C$9:$C$87,0)+RIGHT($E46),0)\n+G$11*OFFSET('Efficiency Distributions'!$E$10,MATCH($C41,'Efficiency Distributions'!$C$9:$C$87,0)+RIGHT($E46),0))\n/SUM(G$10:G$11)","v":0.31990700546337331},{"$f":"IF(INDEX(PC_MAPPING,RIGHT($C41,1),MATCH($E$2,'Data by Building Type'!$D$22:$F$22,0))=\"Yes\",1,0)*\n(H$10*OFFSET('Efficiency Distributions'!$D$10,MATCH($C41,'Efficiency Distributions'!$C$9:$C$87,0)+RIGHT($E46),0)\n+H$11*OFFSET('Efficiency Distributions'!$E$10,MATCH($C41,'Efficiency Distributions'!$C$9:$C$87,0)+RIGHT($E46),0))\n/SUM(H$10:H$11)","v":0.32874662865691717},{"$f":"IF(INDEX(PC_MAPPING,RIGHT($C41,1),MATCH($E$2,'Data by Building Type'!$D$22:$F$22,0))=\"Yes\",1,0)*\n(I$10*OFFSET('Efficiency Distributions'!$D$10,MATCH($C41,'Efficiency Distributions'!$C$9:$C$87,0)+RIGHT($E46),0)\n+I$11*OFFSET('Efficiency Distributions'!$E$10,MATCH($C41,'Efficiency Distributions'!$C$9:$C$87,0)+RIGHT($E46),0))\n/SUM(I$10:I$11)","v":0.32709799188404703},{"$f":"IF(INDEX(PC_MAPPING,RIGHT($C41,1),MATCH($E$2,'Data by Building Type'!$D$22:$F$22,0))=\"Yes\",1,0)*\n(J$10*OFFSET('Efficiency Distributions'!$D$10,MATCH($C41,'Efficiency Distributions'!$C$9:$C$87,0)+RIGHT($E46),0)\n+J$11*OFFSET('Efficiency Distributions'!$E$10,MATCH($C41,'Efficiency Distributions'!$C$9:$C$87,0)+RIGHT($E46),0))\n/SUM(J$10:J$11)","v":0.32607724107374497},{"$f":"IF(INDEX(PC_MAPPING,RIGHT($C41,1),MATCH($E$2,'Data by Building Type'!$D$22:$F$22,0))=\"Yes\",1,0)*\n(K$10*OFFSET('Efficiency Distributions'!$D$10,MATCH($C41,'Efficiency Distributions'!$C$9:$C$87,0)+RIGHT($E46),0)\n+K$11*OFFSET('Efficiency Distributions'!$E$10,MATCH($C41,'Efficiency Distributions'!$C$9:$C$87,0)+RIGHT($E46),0))\n/SUM(K$10:K$11)","v":0.32776221869484551},{"$f":"IF(INDEX(PC_MAPPING,RIGHT($C41,1),MATCH($E$2,'Data by Building Type'!$D$22:$F$22,0))=\"Yes\",1,0)*\n(L$10*OFFSET('Efficiency Distributions'!$D$10,MATCH($C41,'Efficiency Distributions'!$C$9:$C$87,0)+RIGHT($E46),0)\n+L$11*OFFSET('Efficiency Distributions'!$E$10,MATCH($C41,'Efficiency Distributions'!$C$9:$C$87,0)+RIGHT($E46),0))\n/SUM(L$10:L$11)","v":0.32789479162985619},{"$f":"IF(INDEX(PC_MAPPING,RIGHT($C41,1),MATCH($E$2,'Data by Building Type'!$D$22:$F$22,0))=\"Yes\",1,0)*\n(M$10*OFFSET('Efficiency Distributions'!$D$10,MATCH($C41,'Efficiency Distributions'!$C$9:$C$87,0)+RIGHT($E46),0)\n+M$11*OFFSET('Efficiency Distributions'!$E$10,MATCH($C41,'Efficiency Distributions'!$C$9:$C$87,0)+RIGHT($E46),0))\n/SUM(M$10:M$11)","v":0.33015237289350269},{"$f":"IF(INDEX(PC_MAPPING,RIGHT($C41,1),MATCH($E$2,'Data by Building Type'!$D$22:$F$22,0))=\"Yes\",1,0)*\n(N$10*OFFSET('Efficiency Distributions'!$D$10,MATCH($C41,'Efficiency Distributions'!$C$9:$C$87,0)+RIGHT($E46),0)\n+N$11*OFFSET('Efficiency Distributions'!$E$10,MATCH($C41,'Efficiency Distributions'!$C$9:$C$87,0)+RIGHT($E46),0))\n/SUM(N$10:N$11)","v":0.33530395865182711},{"$f":"IF(INDEX(PC_MAPPING,RIGHT($C41,1),MATCH($E$2,'Data by Building Type'!$D$22:$F$22,0))=\"Yes\",1,0)*\n(O$10*OFFSET('Efficiency Distributions'!$D$10,MATCH($C41,'Efficiency Distributions'!$C$9:$C$87,0)+RIGHT($E46),0)\n+O$11*OFFSET('Efficiency Distributions'!$E$10,MATCH($C41,'Efficiency Distributions'!$C$9:$C$87,0)+RIGHT($E46),0))\n/SUM(O$10:O$11)","v":0.33881451333494328},{"$f":"IF(INDEX(PC_MAPPING,RIGHT($C41,1),MATCH($E$2,'Data by Building Type'!$D$22:$F$22,0))=\"Yes\",1,0)*\n(P$10*OFFSET('Efficiency Distributions'!$D$10,MATCH($C41,'Efficiency Distributions'!$C$9:$C$87,0)+RIGHT($E46),0)\n+P$11*OFFSET('Efficiency Distributions'!$E$10,MATCH($C41,'Efficiency Distributions'!$C$9:$C$87,0)+RIGHT($E46),0))\n/SUM(P$10:P$11)","v":0.33523566465256199},{"$f":"IF(INDEX(PC_MAPPING,RIGHT($C41,1),MATCH($E$2,'Data by Building Type'!$D$22:$F$22,0))=\"Yes\",1,0)*\n(Q$10*OFFSET('Efficiency Distributions'!$D$10,MATCH($C41,'Efficiency Distributions'!$C$9:$C$87,0)+RIGHT($E46),0)\n+Q$11*OFFSET('Efficiency Distributions'!$E$10,MATCH($C41,'Efficiency Distributions'!$C$9:$C$87,0)+RIGHT($E46),0))\n/SUM(Q$10:Q$11)","v":0.34112197474501077},{"$f":"IF(INDEX(PC_MAPPING,RIGHT($C41,1),MATCH($E$2,'Data by Building Type'!$D$22:$F$22,0))=\"Yes\",1,0)*\n(R$10*OFFSET('Efficiency Distributions'!$D$10,MATCH($C41,'Efficiency Distributions'!$C$9:$C$87,0)+RIGHT($E46),0)\n+R$11*OFFSET('Efficiency Distributions'!$E$10,MATCH($C41,'Efficiency Distributions'!$C$9:$C$87,0)+RIGHT($E46),0))\n/SUM(R$10:R$11)","v":0.32495274313071204},{"$f":"IF(INDEX(PC_MAPPING,RIGHT($C41,1),MATCH($E$2,'Data by Building Type'!$D$22:$F$22,0))=\"Yes\",1,0)*\n(S$10*OFFSET('Efficiency Distributions'!$D$10,MATCH($C41,'Efficiency Distributions'!$C$9:$C$87,0)+RIGHT($E46),0)\n+S$11*OFFSET('Efficiency Distributions'!$E$10,MATCH($C41,'Efficiency Distributions'!$C$9:$C$87,0)+RIGHT($E46),0))\n/SUM(S$10:S$11)","v":0.32658129132614366},{"$f":"IF(INDEX(PC_MAPPING,RIGHT($C41,1),MATCH($E$2,'Data by Building Type'!$D$22:$F$22,0))=\"Yes\",1,0)*\n(T$10*OFFSET('Efficiency Distributions'!$D$10,MATCH($C41,'Efficiency Distributions'!$C$9:$C$87,0)+RIGHT($E46),0)\n+T$11*OFFSET('Efficiency Distributions'!$E$10,MATCH($C41,'Efficiency Distributions'!$C$9:$C$87,0)+RIGHT($E46),0))\n/SUM(T$10:T$11)","v":0.32058055722938877},{"$f":"IF(INDEX(PC_MAPPING,RIGHT($C41,1),MATCH($E$2,'Data by Building Type'!$D$22:$F$22,0))=\"Yes\",1,0)*\n(U$10*OFFSET('Efficiency Distributions'!$D$10,MATCH($C41,'Efficiency Distributions'!$C$9:$C$87,0)+RIGHT($E46),0)\n+U$11*OFFSET('Efficiency Distributions'!$E$10,MATCH($C41,'Efficiency Distributions'!$C$9:$C$87,0)+RIGHT($E46),0))\n/SUM(U$10:U$11)","v":0.3214450444252932},{"$f":"IF(INDEX(PC_MAPPING,RIGHT($C41,1),MATCH($E$2,'Data by Building Type'!$D$22:$F$22,0))=\"Yes\",1,0)*\n(V$10*OFFSET('Efficiency Distributions'!$D$10,MATCH($C41,'Efficiency Distributions'!$C$9:$C$87,0)+RIGHT($E46),0)\n+V$11*OFFSET('Efficiency Distributions'!$E$10,MATCH($C41,'Efficiency Distributions'!$C$9:$C$87,0)+RIGHT($E46),0))\n/SUM(V$10:V$11)","v":0.32016650046415529},{"$f":"IF(INDEX(PC_MAPPING,RIGHT($C41,1),MATCH($E$2,'Data by Building Type'!$D$22:$F$22,0))=\"Yes\",1,0)*\n(W$10*OFFSET('Efficiency Distributions'!$D$10,MATCH($C41,'Efficiency Distributions'!$C$9:$C$87,0)+RIGHT($E46),0)\n+W$11*OFFSET('Efficiency Distributions'!$E$10,MATCH($C41,'Efficiency Distributions'!$C$9:$C$87,0)+RIGHT($E46),0))\n/SUM(W$10:W$11)","v":0.32077957292376208},{"$f":"IF(INDEX(PC_MAPPING,RIGHT($C41,1),MATCH($E$2,'Data by Building Type'!$D$22:$F$22,0))=\"Yes\",1,0)*\n(X$10*OFFSET('Efficiency Distributions'!$D$10,MATCH($C41,'Efficiency Distributions'!$C$9:$C$87,0)+RIGHT($E46),0)\n+X$11*OFFSET('Efficiency Distributions'!$E$10,MATCH($C41,'Efficiency Distributions'!$C$9:$C$87,0)+RIGHT($E46),0))\n/SUM(X$10:X$11)","v":0.3188114685354978},{"$f":"IF(INDEX(PC_MAPPING,RIGHT($C41,1),MATCH($E$2,'Data by Building Type'!$D$22:$F$22,0))=\"Yes\",1,0)*\n(Y$10*OFFSET('Efficiency Distributions'!$D$10,MATCH($C41,'Efficiency Distributions'!$C$9:$C$87,0)+RIGHT($E46),0)\n+Y$11*OFFSET('Efficiency Distributions'!$E$10,MATCH($C41,'Efficiency Distributions'!$C$9:$C$87,0)+RIGHT($E46),0))\n/SUM(Y$10:Y$11)","v":0.31402316614877507},{"$f":"IF(INDEX(PC_MAPPING,RIGHT($C41,1),MATCH($E$2,'Data by Building Type'!$D$22:$F$22,0))=\"Yes\",1,0)*\n(Z$10*OFFSET('Efficiency Distributions'!$D$10,MATCH($C41,'Efficiency Distributions'!$C$9:$C$87,0)+RIGHT($E46),0)\n+Z$11*OFFSET('Efficiency Distributions'!$E$10,MATCH($C41,'Efficiency Distributions'!$C$9:$C$87,0)+RIGHT($E46),0))\n/SUM(Z$10:Z$11)","v":0.31394230667709716},{"$f":"IF(INDEX(PC_MAPPING,RIGHT($C41,1),MATCH($E$2,'Data by Building Type'!$D$22:$F$22,0))=\"Yes\",1,0)*\n(AA$10*OFFSET('Efficiency Distributions'!$D$10,MATCH($C41,'Efficiency Distributions'!$C$9:$C$87,0)+RIGHT($E46),0)\n+AA$11*OFFSET('Efficiency Distributions'!$E$10,MATCH($C41,'Efficiency Distributions'!$C$9:$C$87,0)+RIGHT($E46),0))\n/SUM(AA$10:AA$11)","v":0.31468409536961961},{"$f":"IF(INDEX(PC_MAPPING,RIGHT($C41,1),MATCH($E$2,'Data by Building Type'!$D$22:$F$22,0))=\"Yes\",1,0)*\n(AB$10*OFFSET('Efficiency Distributions'!$D$10,MATCH($C41,'Efficiency Distributions'!$C$9:$C$87,0)+RIGHT($E46),0)\n+AB$11*OFFSET('Efficiency Distributions'!$E$10,MATCH($C41,'Efficiency Distributions'!$C$9:$C$87,0)+RIGHT($E46),0))\n/SUM(AB$10:AB$11)","v":0.31891039368297058},{"$f":"IF(INDEX(PC_MAPPING,RIGHT($C41,1),MATCH($E$2,'Data by Building Type'!$D$22:$F$22,0))=\"Yes\",1,0)*\n(AC$10*OFFSET('Efficiency Distributions'!$D$10,MATCH($C41,'Efficiency Distributions'!$C$9:$C$87,0)+RIGHT($E46),0)\n+AC$11*OFFSET('Efficiency Distributions'!$E$10,MATCH($C41,'Efficiency Distributions'!$C$9:$C$87,0)+RIGHT($E46),0))\n/SUM(AC$10:AC$11)","v":0.31861516721033323},{"$f":"IF(INDEX(PC_MAPPING,RIGHT($C41,1),MATCH($E$2,'Data by Building Type'!$D$22:$F$22,0))=\"Yes\",1,0)*\n(AD$10*OFFSET('Efficiency Distributions'!$D$10,MATCH($C41,'Efficiency Distributions'!$C$9:$C$87,0)+RIGHT($E46),0)\n+AD$11*OFFSET('Efficiency Distributions'!$E$10,MATCH($C41,'Efficiency Distributions'!$C$9:$C$87,0)+RIGHT($E46),0))\n/SUM(AD$10:AD$11)","v":0.32225373914953587},{"$f":"IF(INDEX(PC_MAPPING,RIGHT($C41,1),MATCH($E$2,'Data by Building Type'!$D$22:$F$22,0))=\"Yes\",1,0)*\n(AE$10*OFFSET('Efficiency Distributions'!$D$10,MATCH($C41,'Efficiency Distributions'!$C$9:$C$87,0)+RIGHT($E46),0)\n+AE$11*OFFSET('Efficiency Distributions'!$E$10,MATCH($C41,'Efficiency Distributions'!$C$9:$C$87,0)+RIGHT($E46),0))\n/SUM(AE$10:AE$11)","v":0.31673150746361434},{"$f":"IF(INDEX(PC_MAPPING,RIGHT($C41,1),MATCH($E$2,'Data by Building Type'!$D$22:$F$22,0))=\"Yes\",1,0)*\n(AF$10*OFFSET('Efficiency Distributions'!$D$10,MATCH($C41,'Efficiency Distributions'!$C$9:$C$87,0)+RIGHT($E46),0)\n+AF$11*OFFSET('Efficiency Distributions'!$E$10,MATCH($C41,'Efficiency Distributions'!$C$9:$C$87,0)+RIGHT($E46),0))\n/SUM(AF$10:AF$11)","v":0.30453343750878059},{"$f":"IF(INDEX(PC_MAPPING,RIGHT($C41,1),MATCH($E$2,'Data by Building Type'!$D$22:$F$22,0))=\"Yes\",1,0)*\n(AG$10*OFFSET('Efficiency Distributions'!$D$10,MATCH($C41,'Efficiency Distributions'!$C$9:$C$87,0)+RIGHT($E46),0)\n+AG$11*OFFSET('Efficiency Distributions'!$E$10,MATCH($C41,'Efficiency Distributions'!$C$9:$C$87,0)+RIGHT($E46),0))\n/SUM(AG$10:AG$11)","v":0.29932552553607145},{"$f":"IF(INDEX(PC_MAPPING,RIGHT($C41,1),MATCH($E$2,'Data by Building Type'!$D$22:$F$22,0))=\"Yes\",1,0)*\n(AH$10*OFFSET('Efficiency Distributions'!$D$10,MATCH($C41,'Efficiency Distributions'!$C$9:$C$87,0)+RIGHT($E46),0)\n+AH$11*OFFSET('Efficiency Distributions'!$E$10,MATCH($C41,'Efficiency Distributions'!$C$9:$C$87,0)+RIGHT($E46),0))\n/SUM(AH$10:AH$11)","v":0.29932552553607145},{"$f":"IF(INDEX(PC_MAPPING,RIGHT($C41,1),MATCH($E$2,'Data by Building Type'!$D$22:$F$22,0))=\"Yes\",1,0)*\n(AI$10*OFFSET('Efficiency Distributions'!$D$10,MATCH($C41,'Efficiency Distributions'!$C$9:$C$87,0)+RIGHT($E46),0)\n+AI$11*OFFSET('Efficiency Distributions'!$E$10,MATCH($C41,'Efficiency Distributions'!$C$9:$C$87,0)+RIGHT($E46),0))\n/SUM(AI$10:AI$11)","v":0.29932552553607145},{"$f":"IF(INDEX(PC_MAPPING,RIGHT($C41,1),MATCH($E$2,'Data by Building Type'!$D$22:$F$22,0))=\"Yes\",1,0)*\n(AJ$10*OFFSET('Efficiency Distributions'!$D$10,MATCH($C41,'Efficiency Distributions'!$C$9:$C$87,0)+RIGHT($E46),0)\n+AJ$11*OFFSET('Efficiency Distributions'!$E$10,MATCH($C41,'Efficiency Distributions'!$C$9:$C$87,0)+RIGHT($E46),0))\n/SUM(AJ$10:AJ$11)","v":0.30149499558569526},{"$f":"IF(INDEX(PC_MAPPING,RIGHT($C41,1),MATCH($E$2,'Data by Building Type'!$D$22:$F$22,0))=\"Yes\",1,0)*\n(AK$10*OFFSET('Efficiency Distributions'!$D$10,MATCH($C41,'Efficiency Distributions'!$C$9:$C$87,0)+RIGHT($E46),0)\n+AK$11*OFFSET('Efficiency Distributions'!$E$10,MATCH($C41,'Efficiency Distributions'!$C$9:$C$87,0)+RIGHT($E46),0))\n/SUM(AK$10:AK$11)","v":0.33182771212854795},{"$f":"IF(INDEX(PC_MAPPING,RIGHT($C41,1),MATCH($E$2,'Data by Building Type'!$D$22:$F$22,0))=\"Yes\",1,0)*\n(AL$10*OFFSET('Efficiency Distributions'!$D$10,MATCH($C41,'Efficiency Distributions'!$C$9:$C$87,0)+RIGHT($E46),0)\n+AL$11*OFFSET('Efficiency Distributions'!$E$10,MATCH($C41,'Efficiency Distributions'!$C$9:$C$87,0)+RIGHT($E46),0))\n/SUM(AL$10:AL$11)","v":0.33091994502454175},{"$f":"IF(INDEX(PC_MAPPING,RIGHT($C41,1),MATCH($E$2,'Data by Building Type'!$D$22:$F$22,0))=\"Yes\",1,0)*\n(AM$10*OFFSET('Efficiency Distributions'!$D$10,MATCH($C41,'Efficiency Distributions'!$C$9:$C$87,0)+RIGHT($E46),0)\n+AM$11*OFFSET('Efficiency Distributions'!$E$10,MATCH($C41,'Efficiency Distributions'!$C$9:$C$87,0)+RIGHT($E46),0))\n/SUM(AM$10:AM$11)","v":0.3348198781296432},{"$f":"IF(INDEX(PC_MAPPING,RIGHT($C41,1),MATCH($E$2,'Data by Building Type'!$D$22:$F$22,0))=\"Yes\",1,0)*\n(AN$10*OFFSET('Efficiency Distributions'!$D$10,MATCH($C41,'Efficiency Distributions'!$C$9:$C$87,0)+RIGHT($E46),0)\n+AN$11*OFFSET('Efficiency Distributions'!$E$10,MATCH($C41,'Efficiency Distributions'!$C$9:$C$87,0)+RIGHT($E46),0))\n/SUM(AN$10:AN$11)","v":0.33450500585390458},{"$f":"IF(INDEX(PC_MAPPING,RIGHT($C41,1),MATCH($E$2,'Data by Building Type'!$D$22:$F$22,0))=\"Yes\",1,0)*\n(AO$10*OFFSET('Efficiency Distributions'!$D$10,MATCH($C41,'Efficiency Distributions'!$C$9:$C$87,0)+RIGHT($E46),0)\n+AO$11*OFFSET('Efficiency Distributions'!$E$10,MATCH($C41,'Efficiency Distributions'!$C$9:$C$87,0)+RIGHT($E46),0))\n/SUM(AO$10:AO$11)","v":0.33603311510281103},{"$f":"IF(INDEX(PC_MAPPING,RIGHT($C41,1),MATCH($E$2,'Data by Building Type'!$D$22:$F$22,0))=\"Yes\",1,0)*\n(AP$10*OFFSET('Efficiency Distributions'!$D$10,MATCH($C41,'Efficiency Distributions'!$C$9:$C$87,0)+RIGHT($E46),0)\n+AP$11*OFFSET('Efficiency Distributions'!$E$10,MATCH($C41,'Efficiency Distributions'!$C$9:$C$87,0)+RIGHT($E46),0))\n/SUM(AP$10:AP$11)","v":0.33536085414486788},{"$f":"IF(INDEX(PC_MAPPING,RIGHT($C41,1),MATCH($E$2,'Data by Building Type'!$D$22:$F$22,0))=\"Yes\",1,0)*\n(AQ$10*OFFSET('Efficiency Distributions'!$D$10,MATCH($C41,'Efficiency Distributions'!$C$9:$C$87,0)+RIGHT($E46),0)\n+AQ$11*OFFSET('Efficiency Distributions'!$E$10,MATCH($C41,'Efficiency Distributions'!$C$9:$C$87,0)+RIGHT($E46),0))\n/SUM(AQ$10:AQ$11)","v":0.33513255235923939},{"$f":"IF(INDEX(PC_MAPPING,RIGHT($C41,1),MATCH($E$2,'Data by Building Type'!$D$22:$F$22,0))=\"Yes\",1,0)*\n(AR$10*OFFSET('Efficiency Distributions'!$D$10,MATCH($C41,'Efficiency Distributions'!$C$9:$C$87,0)+RIGHT($E46),0)\n+AR$11*OFFSET('Efficiency Distributions'!$E$10,MATCH($C41,'Efficiency Distributions'!$C$9:$C$87,0)+RIGHT($E46),0))\n/SUM(AR$10:AR$11)","v":0.33441396948991381},{"$f":"IF(INDEX(PC_MAPPING,RIGHT($C41,1),MATCH($E$2,'Data by Building Type'!$D$22:$F$22,0))=\"Yes\",1,0)*\n(AS$10*OFFSET('Efficiency Distributions'!$D$10,MATCH($C41,'Efficiency Distributions'!$C$9:$C$87,0)+RIGHT($E46),0)\n+AS$11*OFFSET('Efficiency Distributions'!$E$10,MATCH($C41,'Efficiency Distributions'!$C$9:$C$87,0)+RIGHT($E46),0))\n/SUM(AS$10:AS$11)","v":0.33442351366961587},{"$f":"IF(INDEX(PC_MAPPING,RIGHT($C41,1),MATCH($E$2,'Data by Building Type'!$D$22:$F$22,0))=\"Yes\",1,0)*\n(AT$10*OFFSET('Efficiency Distributions'!$D$10,MATCH($C41,'Efficiency Distributions'!$C$9:$C$87,0)+RIGHT($E46),0)\n+AT$11*OFFSET('Efficiency Distributions'!$E$10,MATCH($C41,'Efficiency Distributions'!$C$9:$C$87,0)+RIGHT($E46),0))\n/SUM(AT$10:AT$11)","v":0.33480438986641498},{"$f":"IF(INDEX(PC_MAPPING,RIGHT($C41,1),MATCH($E$2,'Data by Building Type'!$D$22:$F$22,0))=\"Yes\",1,0)*\n(AU$10*OFFSET('Efficiency Distributions'!$D$10,MATCH($C41,'Efficiency Distributions'!$C$9:$C$87,0)+RIGHT($E46),0)\n+AU$11*OFFSET('Efficiency Distributions'!$E$10,MATCH($C41,'Efficiency Distributions'!$C$9:$C$87,0)+RIGHT($E46),0))\n/SUM(AU$10:AU$11)","v":0.33435711057732026},{"$f":"IF(INDEX(PC_MAPPING,RIGHT($C41,1),MATCH($E$2,'Data by Building Type'!$D$22:$F$22,0))=\"Yes\",1,0)*\n(AV$10*OFFSET('Efficiency Distributions'!$D$10,MATCH($C41,'Efficiency Distributions'!$C$9:$C$87,0)+RIGHT($E46),0)\n+AV$11*OFFSET('Efficiency Distributions'!$E$10,MATCH($C41,'Efficiency Distributions'!$C$9:$C$87,0)+RIGHT($E46),0))\n/SUM(AV$10:AV$11)","v":0.32818475031273847},{"$f":"IF(INDEX(PC_MAPPING,RIGHT($C41,1),MATCH($E$2,'Data by Building Type'!$D$22:$F$22,0))=\"Yes\",1,0)*\n(AW$10*OFFSET('Efficiency Distributions'!$D$10,MATCH($C41,'Efficiency Distributions'!$C$9:$C$87,0)+RIGHT($E46),0)\n+AW$11*OFFSET('Efficiency Distributions'!$E$10,MATCH($C41,'Efficiency Distributions'!$C$9:$C$87,0)+RIGHT($E46),0))\n/SUM(AW$10:AW$11)","v":0.32854872231987331},{"$f":"IF(INDEX(PC_MAPPING,RIGHT($C41,1),MATCH($E$2,'Data by Building Type'!$D$22:$F$22,0))=\"Yes\",1,0)*\n(AX$10*OFFSET('Efficiency Distributions'!$D$10,MATCH($C41,'Efficiency Distributions'!$C$9:$C$87,0)+RIGHT($E46),0)\n+AX$11*OFFSET('Efficiency Distributions'!$E$10,MATCH($C41,'Efficiency Distributions'!$C$9:$C$87,0)+RIGHT($E46),0))\n/SUM(AX$10:AX$11)","v":0.32671161692626133},{"$f":"IF(INDEX(PC_MAPPING,RIGHT($C41,1),MATCH($E$2,'Data by Building Type'!$D$22:$F$22,0))=\"Yes\",1,0)*\n(AY$10*OFFSET('Efficiency Distributions'!$D$10,MATCH($C41,'Efficiency Distributions'!$C$9:$C$87,0)+RIGHT($E46),0)\n+AY$11*OFFSET('Efficiency Distributions'!$E$10,MATCH($C41,'Efficiency Distributions'!$C$9:$C$87,0)+RIGHT($E46),0))\n/SUM(AY$10:AY$11)","v":0.32615419795902068},{"$f":"IF(INDEX(PC_MAPPING,RIGHT($C41,1),MATCH($E$2,'Data by Building Type'!$D$22:$F$22,0))=\"Yes\",1,0)*\n(AZ$10*OFFSET('Efficiency Distributions'!$D$10,MATCH($C41,'Efficiency Distributions'!$C$9:$C$87,0)+RIGHT($E46),0)\n+AZ$11*OFFSET('Efficiency Distributions'!$E$10,MATCH($C41,'Efficiency Distributions'!$C$9:$C$87,0)+RIGHT($E46),0))\n/SUM(AZ$10:AZ$11)","v":0.3269905240387439},{"$f":"IF(INDEX(PC_MAPPING,RIGHT($C41,1),MATCH($E$2,'Data by Building Type'!$D$22:$F$22,0))=\"Yes\",1,0)*\n(BA$10*OFFSET('Efficiency Distributions'!$D$10,MATCH($C41,'Efficiency Distributions'!$C$9:$C$87,0)+RIGHT($E46),0)\n+BA$11*OFFSET('Efficiency Distributions'!$E$10,MATCH($C41,'Efficiency Distributions'!$C$9:$C$87,0)+RIGHT($E46),0))\n/SUM(BA$10:BA$11)","v":0.32827645412957418},{"$f":"IF(INDEX(PC_MAPPING,RIGHT($C41,1),MATCH($E$2,'Data by Building Type'!$D$22:$F$22,0))=\"Yes\",1,0)*\n(BB$10*OFFSET('Efficiency Distributions'!$D$10,MATCH($C41,'Efficiency Distributions'!$C$9:$C$87,0)+RIGHT($E46),0)\n+BB$11*OFFSET('Efficiency Distributions'!$E$10,MATCH($C41,'Efficiency Distributions'!$C$9:$C$87,0)+RIGHT($E46),0))\n/SUM(BB$10:BB$11)","v":0.33102815446411904},{"$f":"IF(INDEX(PC_MAPPING,RIGHT($C41,1),MATCH($E$2,'Data by Building Type'!$D$22:$F$22,0))=\"Yes\",1,0)*\n(BC$10*OFFSET('Efficiency Distributions'!$D$10,MATCH($C41,'Efficiency Distributions'!$C$9:$C$87,0)+RIGHT($E46),0)\n+BC$11*OFFSET('Efficiency Distributions'!$E$10,MATCH($C41,'Efficiency Distributions'!$C$9:$C$87,0)+RIGHT($E46),0))\n/SUM(BC$10:BC$11)","v":0.33158612486566419},{"$f":"IF(INDEX(PC_MAPPING,RIGHT($C41,1),MATCH($E$2,'Data by Building Type'!$D$22:$F$22,0))=\"Yes\",1,0)*\n(BD$10*OFFSET('Efficiency Distributions'!$D$10,MATCH($C41,'Efficiency Distributions'!$C$9:$C$87,0)+RIGHT($E46),0)\n+BD$11*OFFSET('Efficiency Distributions'!$E$10,MATCH($C41,'Efficiency Distributions'!$C$9:$C$87,0)+RIGHT($E46),0))\n/SUM(BD$10:BD$11)","v":0.32846380887743659},{"$f":"IF(INDEX(PC_MAPPING,RIGHT($C41,1),MATCH($E$2,'Data by Building Type'!$D$22:$F$22,0))=\"Yes\",1,0)*\n(BE$10*OFFSET('Efficiency Distributions'!$D$10,MATCH($C41,'Efficiency Distributions'!$C$9:$C$87,0)+RIGHT($E46),0)\n+BE$11*OFFSET('Efficiency Distributions'!$E$10,MATCH($C41,'Efficiency Distributions'!$C$9:$C$87,0)+RIGHT($E46),0))\n/SUM(BE$10:BE$11)","v":0.32628091823538047},{"$f":"IF(INDEX(PC_MAPPING,RIGHT($C41,1),MATCH($E$2,'Data by Building Type'!$D$22:$F$22,0))=\"Yes\",1,0)*\n(BF$10*OFFSET('Efficiency Distributions'!$D$10,MATCH($C41,'Efficiency Distributions'!$C$9:$C$87,0)+RIGHT($E46),0)\n+BF$11*OFFSET('Efficiency Distributions'!$E$10,MATCH($C41,'Efficiency Distributions'!$C$9:$C$87,0)+RIGHT($E46),0))\n/SUM(BF$10:BF$11)","v":0.32194181191718907},{"$f":"IF(INDEX(PC_MAPPING,RIGHT($C41,1),MATCH($E$2,'Data by Building Type'!$D$22:$F$22,0))=\"Yes\",1,0)*\n(BG$10*OFFSET('Efficiency Distributions'!$D$10,MATCH($C41,'Efficiency Distributions'!$C$9:$C$87,0)+RIGHT($E46),0)\n+BG$11*OFFSET('Efficiency Distributions'!$E$10,MATCH($C41,'Efficiency Distributions'!$C$9:$C$87,0)+RIGHT($E46),0))\n/SUM(BG$10:BG$11)","v":0.32113901575746734}]
[null,null,null,null,"EL2",{"$f":"IF(INDEX(PC_MAPPING,RIGHT($C41,1),MATCH($E$2,'Data by Building Type'!$D$22:$F$22,0))=\"Yes\",1,0)*\n(F$10*OFFSET('Efficiency Distributions'!$D$10,MATCH($C41,'Efficiency Distributions'!$C$9:$C$87,0)+RIGHT($E47),0)\n+F$11*OFFSET('Efficiency Distributions'!$E$10,MATCH($C41,'Efficiency Distributions'!$C$9:$C$87,0)+RIGHT($E47),0))\n/SUM(F$10:F$11)","v":0},{"$f":"IF(INDEX(PC_MAPPING,RIGHT($C41,1),MATCH($E$2,'Data by Building Type'!$D$22:$F$22,0))=\"Yes\",1,0)*\n(G$10*OFFSET('Efficiency Distributions'!$D$10,MATCH($C41,'Efficiency Distributions'!$C$9:$C$87,0)+RIGHT($E47),0)\n+G$11*OFFSET('Efficiency Distributions'!$E$10,MATCH($C41,'Efficiency Distributions'!$C$9:$C$87,0)+RIGHT($E47),0))\n/SUM(G$10:G$11)","v":0},{"$f":"IF(INDEX(PC_MAPPING,RIGHT($C41,1),MATCH($E$2,'Data by Building Type'!$D$22:$F$22,0))=\"Yes\",1,0)*\n(H$10*OFFSET('Efficiency Distributions'!$D$10,MATCH($C41,'Efficiency Distributions'!$C$9:$C$87,0)+RIGHT($E47),0)\n+H$11*OFFSET('Efficiency Distributions'!$E$10,MATCH($C41,'Efficiency Distributions'!$C$9:$C$87,0)+RIGHT($E47),0))\n/SUM(H$10:H$11)","v":0},{"$f":"IF(INDEX(PC_MAPPING,RIGHT($C41,1),MATCH($E$2,'Data by Building Type'!$D$22:$F$22,0))=\"Yes\",1,0)*\n(I$10*OFFSET('Efficiency Distributions'!$D$10,MATCH($C41,'Efficiency Distributions'!$C$9:$C$87,0)+RIGHT($E47),0)\n+I$11*OFFSET('Efficiency Distributions'!$E$10,MATCH($C41,'Efficiency Distributions'!$C$9:$C$87,0)+RIGHT($E47),0))\n/SUM(I$10:I$11)","v":0},{"$f":"IF(INDEX(PC_MAPPING,RIGHT($C41,1),MATCH($E$2,'Data by Building Type'!$D$22:$F$22,0))=\"Yes\",1,0)*\n(J$10*OFFSET('Efficiency Distributions'!$D$10,MATCH($C41,'Efficiency Distributions'!$C$9:$C$87,0)+RIGHT($E47),0)\n+J$11*OFFSET('Efficiency Distributions'!$E$10,MATCH($C41,'Efficiency Distributions'!$C$9:$C$87,0)+RIGHT($E47),0))\n/SUM(J$10:J$11)","v":0},{"$f":"IF(INDEX(PC_MAPPING,RIGHT($C41,1),MATCH($E$2,'Data by Building Type'!$D$22:$F$22,0))=\"Yes\",1,0)*\n(K$10*OFFSET('Efficiency Distributions'!$D$10,MATCH($C41,'Efficiency Distributions'!$C$9:$C$87,0)+RIGHT($E47),0)\n+K$11*OFFSET('Efficiency Distributions'!$E$10,MATCH($C41,'Efficiency Distributions'!$C$9:$C$87,0)+RIGHT($E47),0))\n/SUM(K$10:K$11)","v":0},{"$f":"IF(INDEX(PC_MAPPING,RIGHT($C41,1),MATCH($E$2,'Data by Building Type'!$D$22:$F$22,0))=\"Yes\",1,0)*\n(L$10*OFFSET('Efficiency Distributions'!$D$10,MATCH($C41,'Efficiency Distributions'!$C$9:$C$87,0)+RIGHT($E47),0)\n+L$11*OFFSET('Efficiency Distributions'!$E$10,MATCH($C41,'Efficiency Distributions'!$C$9:$C$87,0)+RIGHT($E47),0))\n/SUM(L$10:L$11)","v":0},{"$f":"IF(INDEX(PC_MAPPING,RIGHT($C41,1),MATCH($E$2,'Data by Building Type'!$D$22:$F$22,0))=\"Yes\",1,0)*\n(M$10*OFFSET('Efficiency Distributions'!$D$10,MATCH($C41,'Efficiency Distributions'!$C$9:$C$87,0)+RIGHT($E47),0)\n+M$11*OFFSET('Efficiency Distributions'!$E$10,MATCH($C41,'Efficiency Distributions'!$C$9:$C$87,0)+RIGHT($E47),0))\n/SUM(M$10:M$11)","v":0},{"$f":"IF(INDEX(PC_MAPPING,RIGHT($C41,1),MATCH($E$2,'Data by Building Type'!$D$22:$F$22,0))=\"Yes\",1,0)*\n(N$10*OFFSET('Efficiency Distributions'!$D$10,MATCH($C41,'Efficiency Distributions'!$C$9:$C$87,0)+RIGHT($E47),0)\n+N$11*OFFSET('Efficiency Distributions'!$E$10,MATCH($C41,'Efficiency Distributions'!$C$9:$C$87,0)+RIGHT($E47),0))\n/SUM(N$10:N$11)","v":0},{"$f":"IF(INDEX(PC_MAPPING,RIGHT($C41,1),MATCH($E$2,'Data by Building Type'!$D$22:$F$22,0))=\"Yes\",1,0)*\n(O$10*OFFSET('Efficiency Distributions'!$D$10,MATCH($C41,'Efficiency Distributions'!$C$9:$C$87,0)+RIGHT($E47),0)\n+O$11*OFFSET('Efficiency Distributions'!$E$10,MATCH($C41,'Efficiency Distributions'!$C$9:$C$87,0)+RIGHT($E47),0))\n/SUM(O$10:O$11)","v":0},{"$f":"IF(INDEX(PC_MAPPING,RIGHT($C41,1),MATCH($E$2,'Data by Building Type'!$D$22:$F$22,0))=\"Yes\",1,0)*\n(P$10*OFFSET('Efficiency Distributions'!$D$10,MATCH($C41,'Efficiency Distributions'!$C$9:$C$87,0)+RIGHT($E47),0)\n+P$11*OFFSET('Efficiency Distributions'!$E$10,MATCH($C41,'Efficiency Distributions'!$C$9:$C$87,0)+RIGHT($E47),0))\n/SUM(P$10:P$11)","v":0},{"$f":"IF(INDEX(PC_MAPPING,RIGHT($C41,1),MATCH($E$2,'Data by Building Type'!$D$22:$F$22,0))=\"Yes\",1,0)*\n(Q$10*OFFSET('Efficiency Distributions'!$D$10,MATCH($C41,'Efficiency Distributions'!$C$9:$C$87,0)+RIGHT($E47),0)\n+Q$11*OFFSET('Efficiency Distributions'!$E$10,MATCH($C41,'Efficiency Distributions'!$C$9:$C$87,0)+RIGHT($E47),0))\n/SUM(Q$10:Q$11)","v":0},{"$f":"IF(INDEX(PC_MAPPING,RIGHT($C41,1),MATCH($E$2,'Data by Building Type'!$D$22:$F$22,0))=\"Yes\",1,0)*\n(R$10*OFFSET('Efficiency Distributions'!$D$10,MATCH($C41,'Efficiency Distributions'!$C$9:$C$87,0)+RIGHT($E47),0)\n+R$11*OFFSET('Efficiency Distributions'!$E$10,MATCH($C41,'Efficiency Distributions'!$C$9:$C$87,0)+RIGHT($E47),0))\n/SUM(R$10:R$11)","v":0},{"$f":"IF(INDEX(PC_MAPPING,RIGHT($C41,1),MATCH($E$2,'Data by Building Type'!$D$22:$F$22,0))=\"Yes\",1,0)*\n(S$10*OFFSET('Efficiency Distributions'!$D$10,MATCH($C41,'Efficiency Distributions'!$C$9:$C$87,0)+RIGHT($E47),0)\n+S$11*OFFSET('Efficiency Distributions'!$E$10,MATCH($C41,'Efficiency Distributions'!$C$9:$C$87,0)+RIGHT($E47),0))\n/SUM(S$10:S$11)","v":0},{"$f":"IF(INDEX(PC_MAPPING,RIGHT($C41,1),MATCH($E$2,'Data by Building Type'!$D$22:$F$22,0))=\"Yes\",1,0)*\n(T$10*OFFSET('Efficiency Distributions'!$D$10,MATCH($C41,'Efficiency Distributions'!$C$9:$C$87,0)+RIGHT($E47),0)\n+T$11*OFFSET('Efficiency Distributions'!$E$10,MATCH($C41,'Efficiency Distributions'!$C$9:$C$87,0)+RIGHT($E47),0))\n/SUM(T$10:T$11)","v":0},{"$f":"IF(INDEX(PC_MAPPING,RIGHT($C41,1),MATCH($E$2,'Data by Building Type'!$D$22:$F$22,0))=\"Yes\",1,0)*\n(U$10*OFFSET('Efficiency Distributions'!$D$10,MATCH($C41,'Efficiency Distributions'!$C$9:$C$87,0)+RIGHT($E47),0)\n+U$11*OFFSET('Efficiency Distributions'!$E$10,MATCH($C41,'Efficiency Distributions'!$C$9:$C$87,0)+RIGHT($E47),0))\n/SUM(U$10:U$11)","v":0},{"$f":"IF(INDEX(PC_MAPPING,RIGHT($C41,1),MATCH($E$2,'Data by Building Type'!$D$22:$F$22,0))=\"Yes\",1,0)*\n(V$10*OFFSET('Efficiency Distributions'!$D$10,MATCH($C41,'Efficiency Distributions'!$C$9:$C$87,0)+RIGHT($E47),0)\n+V$11*OFFSET('Efficiency Distributions'!$E$10,MATCH($C41,'Efficiency Distributions'!$C$9:$C$87,0)+RIGHT($E47),0))\n/SUM(V$10:V$11)","v":0},{"$f":"IF(INDEX(PC_MAPPING,RIGHT($C41,1),MATCH($E$2,'Data by Building Type'!$D$22:$F$22,0))=\"Yes\",1,0)*\n(W$10*OFFSET('Efficiency Distributions'!$D$10,MATCH($C41,'Efficiency Distributions'!$C$9:$C$87,0)+RIGHT($E47),0)\n+W$11*OFFSET('Efficiency Distributions'!$E$10,MATCH($C41,'Efficiency Distributions'!$C$9:$C$87,0)+RIGHT($E47),0))\n/SUM(W$10:W$11)","v":0},{"$f":"IF(INDEX(PC_MAPPING,RIGHT($C41,1),MATCH($E$2,'Data by Building Type'!$D$22:$F$22,0))=\"Yes\",1,0)*\n(X$10*OFFSET('Efficiency Distributions'!$D$10,MATCH($C41,'Efficiency Distributions'!$C$9:$C$87,0)+RIGHT($E47),0)\n+X$11*OFFSET('Efficiency Distributions'!$E$10,MATCH($C41,'Efficiency Distributions'!$C$9:$C$87,0)+RIGHT($E47),0))\n/SUM(X$10:X$11)","v":0},{"$f":"IF(INDEX(PC_MAPPING,RIGHT($C41,1),MATCH($E$2,'Data by Building Type'!$D$22:$F$22,0))=\"Yes\",1,0)*\n(Y$10*OFFSET('Efficiency Distributions'!$D$10,MATCH($C41,'Efficiency Distributions'!$C$9:$C$87,0)+RIGHT($E47),0)\n+Y$11*OFFSET('Efficiency Distributions'!$E$10,MATCH($C41,'Efficiency Distributions'!$C$9:$C$87,0)+RIGHT($E47),0))\n/SUM(Y$10:Y$11)","v":0},{"$f":"IF(INDEX(PC_MAPPING,RIGHT($C41,1),MATCH($E$2,'Data by Building Type'!$D$22:$F$22,0))=\"Yes\",1,0)*\n(Z$10*OFFSET('Efficiency Distributions'!$D$10,MATCH($C41,'Efficiency Distributions'!$C$9:$C$87,0)+RIGHT($E47),0)\n+Z$11*OFFSET('Efficiency Distributions'!$E$10,MATCH($C41,'Efficiency Distributions'!$C$9:$C$87,0)+RIGHT($E47),0))\n/SUM(Z$10:Z$11)","v":0},{"$f":"IF(INDEX(PC_MAPPING,RIGHT($C41,1),MATCH($E$2,'Data by Building Type'!$D$22:$F$22,0))=\"Yes\",1,0)*\n(AA$10*OFFSET('Efficiency Distributions'!$D$10,MATCH($C41,'Efficiency Distributions'!$C$9:$C$87,0)+RIGHT($E47),0)\n+AA$11*OFFSET('Efficiency Distributions'!$E$10,MATCH($C41,'Efficiency Distributions'!$C$9:$C$87,0)+RIGHT($E47),0))\n/SUM(AA$10:AA$11)","v":0},{"$f":"IF(INDEX(PC_MAPPING,RIGHT($C41,1),MATCH($E$2,'Data by Building Type'!$D$22:$F$22,0))=\"Yes\",1,0)*\n(AB$10*OFFSET('Efficiency Distributions'!$D$10,MATCH($C41,'Efficiency Distributions'!$C$9:$C$87,0)+RIGHT($E47),0)\n+AB$11*OFFSET('Efficiency Distributions'!$E$10,MATCH($C41,'Efficiency Distributions'!$C$9:$C$87,0)+RIGHT($E47),0))\n/SUM(AB$10:AB$11)","v":0},{"$f":"IF(INDEX(PC_MAPPING,RIGHT($C41,1),MATCH($E$2,'Data by Building Type'!$D$22:$F$22,0))=\"Yes\",1,0)*\n(AC$10*OFFSET('Efficiency Distributions'!$D$10,MATCH($C41,'Efficiency Distributions'!$C$9:$C$87,0)+RIGHT($E47),0)\n+AC$11*OFFSET('Efficiency Distributions'!$E$10,MATCH($C41,'Efficiency Distributions'!$C$9:$C$87,0)+RIGHT($E47),0))\n/SUM(AC$10:AC$11)","v":0},{"$f":"IF(INDEX(PC_MAPPING,RIGHT($C41,1),MATCH($E$2,'Data by Building Type'!$D$22:$F$22,0))=\"Yes\",1,0)*\n(AD$10*OFFSET('Efficiency Distributions'!$D$10,MATCH($C41,'Efficiency Distributions'!$C$9:$C$87,0)+RIGHT($E47),0)\n+AD$11*OFFSET('Efficiency Distributions'!$E$10,MATCH($C41,'Efficiency Distributions'!$C$9:$C$87,0)+RIGHT($E47),0))\n/SUM(AD$10:AD$11)","v":0},{"$f":"IF(INDEX(PC_MAPPING,RIGHT($C41,1),MATCH($E$2,'Data by Building Type'!$D$22:$F$22,0))=\"Yes\",1,0)*\n(AE$10*OFFSET('Efficiency Distributions'!$D$10,MATCH($C41,'Efficiency Distributions'!$C$9:$C$87,0)+RIGHT($E47),0)\n+AE$11*OFFSET('Efficiency Distributions'!$E$10,MATCH($C41,'Efficiency Distributions'!$C$9:$C$87,0)+RIGHT($E47),0))\n/SUM(AE$10:AE$11)","v":0},{"$f":"IF(INDEX(PC_MAPPING,RIGHT($C41,1),MATCH($E$2,'Data by Building Type'!$D$22:$F$22,0))=\"Yes\",1,0)*\n(AF$10*OFFSET('Efficiency Distributions'!$D$10,MATCH($C41,'Efficiency Distributions'!$C$9:$C$87,0)+RIGHT($E47),0)\n+AF$11*OFFSET('Efficiency Distributions'!$E$10,MATCH($C41,'Efficiency Distributions'!$C$9:$C$87,0)+RIGHT($E47),0))\n/SUM(AF$10:AF$11)","v":0},{"$f":"IF(INDEX(PC_MAPPING,RIGHT($C41,1),MATCH($E$2,'Data by Building Type'!$D$22:$F$22,0))=\"Yes\",1,0)*\n(AG$10*OFFSET('Efficiency Distributions'!$D$10,MATCH($C41,'Efficiency Distributions'!$C$9:$C$87,0)+RIGHT($E47),0)\n+AG$11*OFFSET('Efficiency Distributions'!$E$10,MATCH($C41,'Efficiency Distributions'!$C$9:$C$87,0)+RIGHT($E47),0))\n/SUM(AG$10:AG$11)","v":0},{"$f":"IF(INDEX(PC_MAPPING,RIGHT($C41,1),MATCH($E$2,'Data by Building Type'!$D$22:$F$22,0))=\"Yes\",1,0)*\n(AH$10*OFFSET('Efficiency Distributions'!$D$10,MATCH($C41,'Efficiency Distributions'!$C$9:$C$87,0)+RIGHT($E47),0)\n+AH$11*OFFSET('Efficiency Distributions'!$E$10,MATCH($C41,'Efficiency Distributions'!$C$9:$C$87,0)+RIGHT($E47),0))\n/SUM(AH$10:AH$11)","v":0},{"$f":"IF(INDEX(PC_MAPPING,RIGHT($C41,1),MATCH($E$2,'Data by Building Type'!$D$22:$F$22,0))=\"Yes\",1,0)*\n(AI$10*OFFSET('Efficiency Distributions'!$D$10,MATCH($C41,'Efficiency Distributions'!$C$9:$C$87,0)+RIGHT($E47),0)\n+AI$11*OFFSET('Efficiency Distributions'!$E$10,MATCH($C41,'Efficiency Distributions'!$C$9:$C$87,0)+RIGHT($E47),0))\n/SUM(AI$10:AI$11)","v":0},{"$f":"IF(INDEX(PC_MAPPING,RIGHT($C41,1),MATCH($E$2,'Data by Building Type'!$D$22:$F$22,0))=\"Yes\",1,0)*\n(AJ$10*OFFSET('Efficiency Distributions'!$D$10,MATCH($C41,'Efficiency Distributions'!$C$9:$C$87,0)+RIGHT($E47),0)\n+AJ$11*OFFSET('Efficiency Distributions'!$E$10,MATCH($C41,'Efficiency Distributions'!$C$9:$C$87,0)+RIGHT($E47),0))\n/SUM(AJ$10:AJ$11)","v":0},{"$f":"IF(INDEX(PC_MAPPING,RIGHT($C41,1),MATCH($E$2,'Data by Building Type'!$D$22:$F$22,0))=\"Yes\",1,0)*\n(AK$10*OFFSET('Efficiency Distributions'!$D$10,MATCH($C41,'Efficiency Distributions'!$C$9:$C$87,0)+RIGHT($E47),0)\n+AK$11*OFFSET('Efficiency Distributions'!$E$10,MATCH($C41,'Efficiency Distributions'!$C$9:$C$87,0)+RIGHT($E47),0))\n/SUM(AK$10:AK$11)","v":0},{"$f":"IF(INDEX(PC_MAPPING,RIGHT($C41,1),MATCH($E$2,'Data by Building Type'!$D$22:$F$22,0))=\"Yes\",1,0)*\n(AL$10*OFFSET('Efficiency Distributions'!$D$10,MATCH($C41,'Efficiency Distributions'!$C$9:$C$87,0)+RIGHT($E47),0)\n+AL$11*OFFSET('Efficiency Distributions'!$E$10,MATCH($C41,'Efficiency Distributions'!$C$9:$C$87,0)+RIGHT($E47),0))\n/SUM(AL$10:AL$11)","v":0},{"$f":"IF(INDEX(PC_MAPPING,RIGHT($C41,1),MATCH($E$2,'Data by Building Type'!$D$22:$F$22,0))=\"Yes\",1,0)*\n(AM$10*OFFSET('Efficiency Distributions'!$D$10,MATCH($C41,'Efficiency Distributions'!$C$9:$C$87,0)+RIGHT($E47),0)\n+AM$11*OFFSET('Efficiency Distributions'!$E$10,MATCH($C41,'Efficiency Distributions'!$C$9:$C$87,0)+RIGHT($E47),0))\n/SUM(AM$10:AM$11)","v":0},{"$f":"IF(INDEX(PC_MAPPING,RIGHT($C41,1),MATCH($E$2,'Data by Building Type'!$D$22:$F$22,0))=\"Yes\",1,0)*\n(AN$10*OFFSET('Efficiency Distributions'!$D$10,MATCH($C41,'Efficiency Distributions'!$C$9:$C$87,0)+RIGHT($E47),0)\n+AN$11*OFFSET('Efficiency Distributions'!$E$10,MATCH($C41,'Efficiency Distributions'!$C$9:$C$87,0)+RIGHT($E47),0))\n/SUM(AN$10:AN$11)","v":0},{"$f":"IF(INDEX(PC_MAPPING,RIGHT($C41,1),MATCH($E$2,'Data by Building Type'!$D$22:$F$22,0))=\"Yes\",1,0)*\n(AO$10*OFFSET('Efficiency Distributions'!$D$10,MATCH($C41,'Efficiency Distributions'!$C$9:$C$87,0)+RIGHT($E47),0)\n+AO$11*OFFSET('Efficiency Distributions'!$E$10,MATCH($C41,'Efficiency Distributions'!$C$9:$C$87,0)+RIGHT($E47),0))\n/SUM(AO$10:AO$11)","v":0},{"$f":"IF(INDEX(PC_MAPPING,RIGHT($C41,1),MATCH($E$2,'Data by Building Type'!$D$22:$F$22,0))=\"Yes\",1,0)*\n(AP$10*OFFSET('Efficiency Distributions'!$D$10,MATCH($C41,'Efficiency Distributions'!$C$9:$C$87,0)+RIGHT($E47),0)\n+AP$11*OFFSET('Efficiency Distributions'!$E$10,MATCH($C41,'Efficiency Distributions'!$C$9:$C$87,0)+RIGHT($E47),0))\n/SUM(AP$10:AP$11)","v":0},{"$f":"IF(INDEX(PC_MAPPING,RIGHT($C41,1),MATCH($E$2,'Data by Building Type'!$D$22:$F$22,0))=\"Yes\",1,0)*\n(AQ$10*OFFSET('Efficiency Distributions'!$D$10,MATCH($C41,'Efficiency Distributions'!$C$9:$C$87,0)+RIGHT($E47),0)\n+AQ$11*OFFSET('Efficiency Distributions'!$E$10,MATCH($C41,'Efficiency Distributions'!$C$9:$C$87,0)+RIGHT($E47),0))\n/SUM(AQ$10:AQ$11)","v":0},{"$f":"IF(INDEX(PC_MAPPING,RIGHT($C41,1),MATCH($E$2,'Data by Building Type'!$D$22:$F$22,0))=\"Yes\",1,0)*\n(AR$10*OFFSET('Efficiency Distributions'!$D$10,MATCH($C41,'Efficiency Distributions'!$C$9:$C$87,0)+RIGHT($E47),0)\n+AR$11*OFFSET('Efficiency Distributions'!$E$10,MATCH($C41,'Efficiency Distributions'!$C$9:$C$87,0)+RIGHT($E47),0))\n/SUM(AR$10:AR$11)","v":0},{"$f":"IF(INDEX(PC_MAPPING,RIGHT($C41,1),MATCH($E$2,'Data by Building Type'!$D$22:$F$22,0))=\"Yes\",1,0)*\n(AS$10*OFFSET('Efficiency Distributions'!$D$10,MATCH($C41,'Efficiency Distributions'!$C$9:$C$87,0)+RIGHT($E47),0)\n+AS$11*OFFSET('Efficiency Distributions'!$E$10,MATCH($C41,'Efficiency Distributions'!$C$9:$C$87,0)+RIGHT($E47),0))\n/SUM(AS$10:AS$11)","v":0},{"$f":"IF(INDEX(PC_MAPPING,RIGHT($C41,1),MATCH($E$2,'Data by Building Type'!$D$22:$F$22,0))=\"Yes\",1,0)*\n(AT$10*OFFSET('Efficiency Distributions'!$D$10,MATCH($C41,'Efficiency Distributions'!$C$9:$C$87,0)+RIGHT($E47),0)\n+AT$11*OFFSET('Efficiency Distributions'!$E$10,MATCH($C41,'Efficiency Distributions'!$C$9:$C$87,0)+RIGHT($E47),0))\n/SUM(AT$10:AT$11)","v":0},{"$f":"IF(INDEX(PC_MAPPING,RIGHT($C41,1),MATCH($E$2,'Data by Building Type'!$D$22:$F$22,0))=\"Yes\",1,0)*\n(AU$10*OFFSET('Efficiency Distributions'!$D$10,MATCH($C41,'Efficiency Distributions'!$C$9:$C$87,0)+RIGHT($E47),0)\n+AU$11*OFFSET('Efficiency Distributions'!$E$10,MATCH($C41,'Efficiency Distributions'!$C$9:$C$87,0)+RIGHT($E47),0))\n/SUM(AU$10:AU$11)","v":0},{"$f":"IF(INDEX(PC_MAPPING,RIGHT($C41,1),MATCH($E$2,'Data by Building Type'!$D$22:$F$22,0))=\"Yes\",1,0)*\n(AV$10*OFFSET('Efficiency Distributions'!$D$10,MATCH($C41,'Efficiency Distributions'!$C$9:$C$87,0)+RIGHT($E47),0)\n+AV$11*OFFSET('Efficiency Distributions'!$E$10,MATCH($C41,'Efficiency Distributions'!$C$9:$C$87,0)+RIGHT($E47),0))\n/SUM(AV$10:AV$11)","v":0},{"$f":"IF(INDEX(PC_MAPPING,RIGHT($C41,1),MATCH($E$2,'Data by Building Type'!$D$22:$F$22,0))=\"Yes\",1,0)*\n(AW$10*OFFSET('Efficiency Distributions'!$D$10,MATCH($C41,'Efficiency Distributions'!$C$9:$C$87,0)+RIGHT($E47),0)\n+AW$11*OFFSET('Efficiency Distributions'!$E$10,MATCH($C41,'Efficiency Distributions'!$C$9:$C$87,0)+RIGHT($E47),0))\n/SUM(AW$10:AW$11)","v":0},{"$f":"IF(INDEX(PC_MAPPING,RIGHT($C41,1),MATCH($E$2,'Data by Building Type'!$D$22:$F$22,0))=\"Yes\",1,0)*\n(AX$10*OFFSET('Efficiency Distributions'!$D$10,MATCH($C41,'Efficiency Distributions'!$C$9:$C$87,0)+RIGHT($E47),0)\n+AX$11*OFFSET('Efficiency Distributions'!$E$10,MATCH($C41,'Efficiency Distributions'!$C$9:$C$87,0)+RIGHT($E47),0))\n/SUM(AX$10:AX$11)","v":0},{"$f":"IF(INDEX(PC_MAPPING,RIGHT($C41,1),MATCH($E$2,'Data by Building Type'!$D$22:$F$22,0))=\"Yes\",1,0)*\n(AY$10*OFFSET('Efficiency Distributions'!$D$10,MATCH($C41,'Efficiency Distributions'!$C$9:$C$87,0)+RIGHT($E47),0)\n+AY$11*OFFSET('Efficiency Distributions'!$E$10,MATCH($C41,'Efficiency Distributions'!$C$9:$C$87,0)+RIGHT($E47),0))\n/SUM(AY$10:AY$11)","v":0},{"$f":"IF(INDEX(PC_MAPPING,RIGHT($C41,1),MATCH($E$2,'Data by Building Type'!$D$22:$F$22,0))=\"Yes\",1,0)*\n(AZ$10*OFFSET('Efficiency Distributions'!$D$10,MATCH($C41,'Efficiency Distributions'!$C$9:$C$87,0)+RIGHT($E47),0)\n+AZ$11*OFFSET('Efficiency Distributions'!$E$10,MATCH($C41,'Efficiency Distributions'!$C$9:$C$87,0)+RIGHT($E47),0))\n/SUM(AZ$10:AZ$11)","v":0},{"$f":"IF(INDEX(PC_MAPPING,RIGHT($C41,1),MATCH($E$2,'Data by Building Type'!$D$22:$F$22,0))=\"Yes\",1,0)*\n(BA$10*OFFSET('Efficiency Distributions'!$D$10,MATCH($C41,'Efficiency Distributions'!$C$9:$C$87,0)+RIGHT($E47),0)\n+BA$11*OFFSET('Efficiency Distributions'!$E$10,MATCH($C41,'Efficiency Distributions'!$C$9:$C$87,0)+RIGHT($E47),0))\n/SUM(BA$10:BA$11)","v":0},{"$f":"IF(INDEX(PC_MAPPING,RIGHT($C41,1),MATCH($E$2,'Data by Building Type'!$D$22:$F$22,0))=\"Yes\",1,0)*\n(BB$10*OFFSET('Efficiency Distributions'!$D$10,MATCH($C41,'Efficiency Distributions'!$C$9:$C$87,0)+RIGHT($E47),0)\n+BB$11*OFFSET('Efficiency Distributions'!$E$10,MATCH($C41,'Efficiency Distributions'!$C$9:$C$87,0)+RIGHT($E47),0))\n/SUM(BB$10:BB$11)","v":0},{"$f":"IF(INDEX(PC_MAPPING,RIGHT($C41,1),MATCH($E$2,'Data by Building Type'!$D$22:$F$22,0))=\"Yes\",1,0)*\n(BC$10*OFFSET('Efficiency Distributions'!$D$10,MATCH($C41,'Efficiency Distributions'!$C$9:$C$87,0)+RIGHT($E47),0)\n+BC$11*OFFSET('Efficiency Distributions'!$E$10,MATCH($C41,'Efficiency Distributions'!$C$9:$C$87,0)+RIGHT($E47),0))\n/SUM(BC$10:BC$11)","v":0},{"$f":"IF(INDEX(PC_MAPPING,RIGHT($C41,1),MATCH($E$2,'Data by Building Type'!$D$22:$F$22,0))=\"Yes\",1,0)*\n(BD$10*OFFSET('Efficiency Distributions'!$D$10,MATCH($C41,'Efficiency Distributions'!$C$9:$C$87,0)+RIGHT($E47),0)\n+BD$11*OFFSET('Efficiency Distributions'!$E$10,MATCH($C41,'Efficiency Distributions'!$C$9:$C$87,0)+RIGHT($E47),0))\n/SUM(BD$10:BD$11)","v":0},{"$f":"IF(INDEX(PC_MAPPING,RIGHT($C41,1),MATCH($E$2,'Data by Building Type'!$D$22:$F$22,0))=\"Yes\",1,0)*\n(BE$10*OFFSET('Efficiency Distributions'!$D$10,MATCH($C41,'Efficiency Distributions'!$C$9:$C$87,0)+RIGHT($E47),0)\n+BE$11*OFFSET('Efficiency Distributions'!$E$10,MATCH($C41,'Efficiency Distributions'!$C$9:$C$87,0)+RIGHT($E47),0))\n/SUM(BE$10:BE$11)","v":0},{"$f":"IF(INDEX(PC_MAPPING,RIGHT($C41,1),MATCH($E$2,'Data by Building Type'!$D$22:$F$22,0))=\"Yes\",1,0)*\n(BF$10*OFFSET('Efficiency Distributions'!$D$10,MATCH($C41,'Efficiency Distributions'!$C$9:$C$87,0)+RIGHT($E47),0)\n+BF$11*OFFSET('Efficiency Distributions'!$E$10,MATCH($C41,'Efficiency Distributions'!$C$9:$C$87,0)+RIGHT($E47),0))\n/SUM(BF$10:BF$11)","v":0},{"$f":"IF(INDEX(PC_MAPPING,RIGHT($C41,1),MATCH($E$2,'Data by Building Type'!$D$22:$F$22,0))=\"Yes\",1,0)*\n(BG$10*OFFSET('Efficiency Distributions'!$D$10,MATCH($C41,'Efficiency Distributions'!$C$9:$C$87,0)+RIGHT($E47),0)\n+BG$11*OFFSET('Efficiency Distributions'!$E$10,MATCH($C41,'Efficiency Distributions'!$C$9:$C$87,0)+RIGHT($E47),0))\n/SUM(BG$10:BG$11)","v":0}]
[null,null,null,null,"EL3",{"$f":"IF(INDEX(PC_MAPPING,RIGHT($C41,1),MATCH($E$2,'Data by Building Type'!$D$22:$F$22,0))=\"Yes\",1,0)*\n(F$10*OFFSET('Efficiency Distributions'!$D$10,MATCH($C41,'Efficiency Distributions'!$C$9:$C$87,0)+RIGHT($E48),0)\n+F$11*OFFSET('Efficiency Distributions'!$E$10,MATCH($C41,'Efficiency Distributions'!$C$9:$C$87,0)+RIGHT($E48),0))\n/SUM(F$10:F$11)","v":6.8337912240840917E-2},{"$f":"IF(INDEX(PC_MAPPING,RIGHT($C41,1),MATCH($E$2,'Data by Building Type'!$D$22:$F$22,0))=\"Yes\",1,0)*\n(G$10*OFFSET('Efficiency Distributions'!$D$10,MATCH($C41,'Efficiency Distributions'!$C$9:$C$87,0)+RIGHT($E48),0)\n+G$11*OFFSET('Efficiency Distributions'!$E$10,MATCH($C41,'Efficiency Distributions'!$C$9:$C$87,0)+RIGHT($E48),0))\n/SUM(G$10:G$11)","v":7.1608521609001885E-2},{"$f":"IF(INDEX(PC_MAPPING,RIGHT($C41,1),MATCH($E$2,'Data by Building Type'!$D$22:$F$22,0))=\"Yes\",1,0)*\n(H$10*OFFSET('Efficiency Distributions'!$D$10,MATCH($C41,'Efficiency Distributions'!$C$9:$C$87,0)+RIGHT($E48),0)\n+H$11*OFFSET('Efficiency Distributions'!$E$10,MATCH($C41,'Efficiency Distributions'!$C$9:$C$87,0)+RIGHT($E48),0))\n/SUM(H$10:H$11)","v":6.7696063539928866E-2},{"$f":"IF(INDEX(PC_MAPPING,RIGHT($C41,1),MATCH($E$2,'Data by Building Type'!$D$22:$F$22,0))=\"Yes\",1,0)*\n(I$10*OFFSET('Efficiency Distributions'!$D$10,MATCH($C41,'Efficiency Distributions'!$C$9:$C$87,0)+RIGHT($E48),0)\n+I$11*OFFSET('Efficiency Distributions'!$E$10,MATCH($C41,'Efficiency Distributions'!$C$9:$C$87,0)+RIGHT($E48),0))\n/SUM(I$10:I$11)","v":6.8425757793151923E-2},{"$f":"IF(INDEX(PC_MAPPING,RIGHT($C41,1),MATCH($E$2,'Data by Building Type'!$D$22:$F$22,0))=\"Yes\",1,0)*\n(J$10*OFFSET('Efficiency Distributions'!$D$10,MATCH($C41,'Efficiency Distributions'!$C$9:$C$87,0)+RIGHT($E48),0)\n+J$11*OFFSET('Efficiency Distributions'!$E$10,MATCH($C41,'Efficiency Distributions'!$C$9:$C$87,0)+RIGHT($E48),0))\n/SUM(J$10:J$11)","v":6.887754681818592E-2},{"$f":"IF(INDEX(PC_MAPPING,RIGHT($C41,1),MATCH($E$2,'Data by Building Type'!$D$22:$F$22,0))=\"Yes\",1,0)*\n(K$10*OFFSET('Efficiency Distributions'!$D$10,MATCH($C41,'Efficiency Distributions'!$C$9:$C$87,0)+RIGHT($E48),0)\n+K$11*OFFSET('Efficiency Distributions'!$E$10,MATCH($C41,'Efficiency Distributions'!$C$9:$C$87,0)+RIGHT($E48),0))\n/SUM(K$10:K$11)","v":6.8131767937622628E-2},{"$f":"IF(INDEX(PC_MAPPING,RIGHT($C41,1),MATCH($E$2,'Data by Building Type'!$D$22:$F$22,0))=\"Yes\",1,0)*\n(L$10*OFFSET('Efficiency Distributions'!$D$10,MATCH($C41,'Efficiency Distributions'!$C$9:$C$87,0)+RIGHT($E48),0)\n+L$11*OFFSET('Efficiency Distributions'!$E$10,MATCH($C41,'Efficiency Distributions'!$C$9:$C$87,0)+RIGHT($E48),0))\n/SUM(L$10:L$11)","v":6.8073090544031684E-2},{"$f":"IF(INDEX(PC_MAPPING,RIGHT($C41,1),MATCH($E$2,'Data by Building Type'!$D$22:$F$22,0))=\"Yes\",1,0)*\n(M$10*OFFSET('Efficiency Distributions'!$D$10,MATCH($C41,'Efficiency Distributions'!$C$9:$C$87,0)+RIGHT($E48),0)\n+M$11*OFFSET('Efficiency Distributions'!$E$10,MATCH($C41,'Efficiency Distributions'!$C$9:$C$87,0)+RIGHT($E48),0))\n/SUM(M$10:M$11)","v":6.7073874645553921E-2},{"$f":"IF(INDEX(PC_MAPPING,RIGHT($C41,1),MATCH($E$2,'Data by Building Type'!$D$22:$F$22,0))=\"Yes\",1,0)*\n(N$10*OFFSET('Efficiency Distributions'!$D$10,MATCH($C41,'Efficiency Distributions'!$C$9:$C$87,0)+RIGHT($E48),0)\n+N$11*OFFSET('Efficiency Distributions'!$E$10,MATCH($C41,'Efficiency Distributions'!$C$9:$C$87,0)+RIGHT($E48),0))\n/SUM(N$10:N$11)","v":6.4793758985940877E-2},{"$f":"IF(INDEX(PC_MAPPING,RIGHT($C41,1),MATCH($E$2,'Data by Building Type'!$D$22:$F$22,0))=\"Yes\",1,0)*\n(O$10*OFFSET('Efficiency Distributions'!$D$10,MATCH($C41,'Efficiency Distributions'!$C$9:$C$87,0)+RIGHT($E48),0)\n+O$11*OFFSET('Efficiency Distributions'!$E$10,MATCH($C41,'Efficiency Distributions'!$C$9:$C$87,0)+RIGHT($E48),0))\n/SUM(O$10:O$11)","v":6.3239971262623484E-2},{"$f":"IF(INDEX(PC_MAPPING,RIGHT($C41,1),MATCH($E$2,'Data by Building Type'!$D$22:$F$22,0))=\"Yes\",1,0)*\n(P$10*OFFSET('Efficiency Distributions'!$D$10,MATCH($C41,'Efficiency Distributions'!$C$9:$C$87,0)+RIGHT($E48),0)\n+P$11*OFFSET('Efficiency Distributions'!$E$10,MATCH($C41,'Efficiency Distributions'!$C$9:$C$87,0)+RIGHT($E48),0))\n/SUM(P$10:P$11)","v":6.482398622556905E-2},{"$f":"IF(INDEX(PC_MAPPING,RIGHT($C41,1),MATCH($E$2,'Data by Building Type'!$D$22:$F$22,0))=\"Yes\",1,0)*\n(Q$10*OFFSET('Efficiency Distributions'!$D$10,MATCH($C41,'Efficiency Distributions'!$C$9:$C$87,0)+RIGHT($E48),0)\n+Q$11*OFFSET('Efficiency Distributions'!$E$10,MATCH($C41,'Efficiency Distributions'!$C$9:$C$87,0)+RIGHT($E48),0))\n/SUM(Q$10:Q$11)","v":6.221867818086782E-2},{"$f":"IF(INDEX(PC_MAPPING,RIGHT($C41,1),MATCH($E$2,'Data by Building Type'!$D$22:$F$22,0))=\"Yes\",1,0)*\n(R$10*OFFSET('Efficiency Distributions'!$D$10,MATCH($C41,'Efficiency Distributions'!$C$9:$C$87,0)+RIGHT($E48),0)\n+R$11*OFFSET('Efficiency Distributions'!$E$10,MATCH($C41,'Efficiency Distributions'!$C$9:$C$87,0)+RIGHT($E48),0))\n/SUM(R$10:R$11)","v":6.9375254803531766E-2},{"$f":"IF(INDEX(PC_MAPPING,RIGHT($C41,1),MATCH($E$2,'Data by Building Type'!$D$22:$F$22,0))=\"Yes\",1,0)*\n(S$10*OFFSET('Efficiency Distributions'!$D$10,MATCH($C41,'Efficiency Distributions'!$C$9:$C$87,0)+RIGHT($E48),0)\n+S$11*OFFSET('Efficiency Distributions'!$E$10,MATCH($C41,'Efficiency Distributions'!$C$9:$C$87,0)+RIGHT($E48),0))\n/SUM(S$10:S$11)","v":6.8654451847502559E-2},{"$f":"IF(INDEX(PC_MAPPING,RIGHT($C41,1),MATCH($E$2,'Data by Building Type'!$D$22:$F$22,0))=\"Yes\",1,0)*\n(T$10*OFFSET('Efficiency Distributions'!$D$10,MATCH($C41,'Efficiency Distributions'!$C$9:$C$87,0)+RIGHT($E48),0)\n+T$11*OFFSET('Efficiency Distributions'!$E$10,MATCH($C41,'Efficiency Distributions'!$C$9:$C$87,0)+RIGHT($E48),0))\n/SUM(T$10:T$11)","v":7.1310404485207493E-2},{"$f":"IF(INDEX(PC_MAPPING,RIGHT($C41,1),MATCH($E$2,'Data by Building Type'!$D$22:$F$22,0))=\"Yes\",1,0)*\n(U$10*OFFSET('Efficiency Distributions'!$D$10,MATCH($C41,'Efficiency Distributions'!$C$9:$C$87,0)+RIGHT($E48),0)\n+U$11*OFFSET('Efficiency Distributions'!$E$10,MATCH($C41,'Efficiency Distributions'!$C$9:$C$87,0)+RIGHT($E48),0))\n/SUM(U$10:U$11)","v":7.0927778457924223E-2},{"$f":"IF(INDEX(PC_MAPPING,RIGHT($C41,1),MATCH($E$2,'Data by Building Type'!$D$22:$F$22,0))=\"Yes\",1,0)*\n(V$10*OFFSET('Efficiency Distributions'!$D$10,MATCH($C41,'Efficiency Distributions'!$C$9:$C$87,0)+RIGHT($E48),0)\n+V$11*OFFSET('Efficiency Distributions'!$E$10,MATCH($C41,'Efficiency Distributions'!$C$9:$C$87,0)+RIGHT($E48),0))\n/SUM(V$10:V$11)","v":7.1493667922655268E-2},{"$f":"IF(INDEX(PC_MAPPING,RIGHT($C41,1),MATCH($E$2,'Data by Building Type'!$D$22:$F$22,0))=\"Yes\",1,0)*\n(W$10*OFFSET('Efficiency Distributions'!$D$10,MATCH($C41,'Efficiency Distributions'!$C$9:$C$87,0)+RIGHT($E48),0)\n+W$11*OFFSET('Efficiency Distributions'!$E$10,MATCH($C41,'Efficiency Distributions'!$C$9:$C$87,0)+RIGHT($E48),0))\n/SUM(W$10:W$11)","v":7.1222319219322872E-2},{"$f":"IF(INDEX(PC_MAPPING,RIGHT($C41,1),MATCH($E$2,'Data by Building Type'!$D$22:$F$22,0))=\"Yes\",1,0)*\n(X$10*OFFSET('Efficiency Distributions'!$D$10,MATCH($C41,'Efficiency Distributions'!$C$9:$C$87,0)+RIGHT($E48),0)\n+X$11*OFFSET('Efficiency Distributions'!$E$10,MATCH($C41,'Efficiency Distributions'!$C$9:$C$87,0)+RIGHT($E48),0))\n/SUM(X$10:X$11)","v":7.2093411315224273E-2},{"$f":"IF(INDEX(PC_MAPPING,RIGHT($C41,1),MATCH($E$2,'Data by Building Type'!$D$22:$F$22,0))=\"Yes\",1,0)*\n(Y$10*OFFSET('Efficiency Distributions'!$D$10,MATCH($C41,'Efficiency Distributions'!$C$9:$C$87,0)+RIGHT($E48),0)\n+Y$11*OFFSET('Efficiency Distributions'!$E$10,MATCH($C41,'Efficiency Distributions'!$C$9:$C$87,0)+RIGHT($E48),0))\n/SUM(Y$10:Y$11)","v":7.4212736076010186E-2},{"$f":"IF(INDEX(PC_MAPPING,RIGHT($C41,1),MATCH($E$2,'Data by Building Type'!$D$22:$F$22,0))=\"Yes\",1,0)*\n(Z$10*OFFSET('Efficiency Distributions'!$D$10,MATCH($C41,'Efficiency Distributions'!$C$9:$C$87,0)+RIGHT($E48),0)\n+Z$11*OFFSET('Efficiency Distributions'!$E$10,MATCH($C41,'Efficiency Distributions'!$C$9:$C$87,0)+RIGHT($E48),0))\n/SUM(Z$10:Z$11)","v":7.4248524851787234E-2},{"$f":"IF(INDEX(PC_MAPPING,RIGHT($C41,1),MATCH($E$2,'Data by Building Type'!$D$22:$F$22,0))=\"Yes\",1,0)*\n(AA$10*OFFSET('Efficiency Distributions'!$D$10,MATCH($C41,'Efficiency Distributions'!$C$9:$C$87,0)+RIGHT($E48),0)\n+AA$11*OFFSET('Efficiency Distributions'!$E$10,MATCH($C41,'Efficiency Distributions'!$C$9:$C$87,0)+RIGHT($E48),0))\n/SUM(AA$10:AA$11)","v":7.3920205749031118E-2},{"$f":"IF(INDEX(PC_MAPPING,RIGHT($C41,1),MATCH($E$2,'Data by Building Type'!$D$22:$F$22,0))=\"Yes\",1,0)*\n(AB$10*OFFSET('Efficiency Distributions'!$D$10,MATCH($C41,'Efficiency Distributions'!$C$9:$C$87,0)+RIGHT($E48),0)\n+AB$11*OFFSET('Efficiency Distributions'!$E$10,MATCH($C41,'Efficiency Distributions'!$C$9:$C$87,0)+RIGHT($E48),0))\n/SUM(AB$10:AB$11)","v":7.2049626587867677E-2},{"$f":"IF(INDEX(PC_MAPPING,RIGHT($C41,1),MATCH($E$2,'Data by Building Type'!$D$22:$F$22,0))=\"Yes\",1,0)*\n(AC$10*OFFSET('Efficiency Distributions'!$D$10,MATCH($C41,'Efficiency Distributions'!$C$9:$C$87,0)+RIGHT($E48),0)\n+AC$11*OFFSET('Efficiency Distributions'!$E$10,MATCH($C41,'Efficiency Distributions'!$C$9:$C$87,0)+RIGHT($E48),0))\n/SUM(AC$10:AC$11)","v":7.2180295188755295E-2},{"$f":"IF(INDEX(PC_MAPPING,RIGHT($C41,1),MATCH($E$2,'Data by Building Type'!$D$22:$F$22,0))=\"Yes\",1,0)*\n(AD$10*OFFSET('Efficiency Distributions'!$D$10,MATCH($C41,'Efficiency Distributions'!$C$9:$C$87,0)+RIGHT($E48),0)\n+AD$11*OFFSET('Efficiency Distributions'!$E$10,MATCH($C41,'Efficiency Distributions'!$C$9:$C$87,0)+RIGHT($E48),0))\n/SUM(AD$10:AD$11)","v":7.0569846436388431E-2},{"$f":"IF(INDEX(PC_MAPPING,RIGHT($C41,1),MATCH($E$2,'Data by Building Type'!$D$22:$F$22,0))=\"Yes\",1,0)*\n(AE$10*OFFSET('Efficiency Distributions'!$D$10,MATCH($C41,'Efficiency Distributions'!$C$9:$C$87,0)+RIGHT($E48),0)\n+AE$11*OFFSET('Efficiency Distributions'!$E$10,MATCH($C41,'Efficiency Distributions'!$C$9:$C$87,0)+RIGHT($E48),0))\n/SUM(AE$10:AE$11)","v":7.3014011696130976E-2},{"$f":"IF(INDEX(PC_MAPPING,RIGHT($C41,1),MATCH($E$2,'Data by Building Type'!$D$22:$F$22,0))=\"Yes\",1,0)*\n(AF$10*OFFSET('Efficiency Distributions'!$D$10,MATCH($C41,'Efficiency Distributions'!$C$9:$C$87,0)+RIGHT($E48),0)\n+AF$11*OFFSET('Efficiency Distributions'!$E$10,MATCH($C41,'Efficiency Distributions'!$C$9:$C$87,0)+RIGHT($E48),0))\n/SUM(AF$10:AF$11)","v":7.8412933819504163E-2},{"$f":"IF(INDEX(PC_MAPPING,RIGHT($C41,1),MATCH($E$2,'Data by Building Type'!$D$22:$F$22,0))=\"Yes\",1,0)*\n(AG$10*OFFSET('Efficiency Distributions'!$D$10,MATCH($C41,'Efficiency Distributions'!$C$9:$C$87,0)+RIGHT($E48),0)\n+AG$11*OFFSET('Efficiency Distributions'!$E$10,MATCH($C41,'Efficiency Distributions'!$C$9:$C$87,0)+RIGHT($E48),0))\n/SUM(AG$10:AG$11)","v":8.0717979721860025E-2},{"$f":"IF(INDEX(PC_MAPPING,RIGHT($C41,1),MATCH($E$2,'Data by Building Type'!$D$22:$F$22,0))=\"Yes\",1,0)*\n(AH$10*OFFSET('Efficiency Distributions'!$D$10,MATCH($C41,'Efficiency Distributions'!$C$9:$C$87,0)+RIGHT($E48),0)\n+AH$11*OFFSET('Efficiency Distributions'!$E$10,MATCH($C41,'Efficiency Distributions'!$C$9:$C$87,0)+RIGHT($E48),0))\n/SUM(AH$10:AH$11)","v":8.0717979721860025E-2},{"$f":"IF(INDEX(PC_MAPPING,RIGHT($C41,1),MATCH($E$2,'Data by Building Type'!$D$22:$F$22,0))=\"Yes\",1,0)*\n(AI$10*OFFSET('Efficiency Distributions'!$D$10,MATCH($C41,'Efficiency Distributions'!$C$9:$C$87,0)+RIGHT($E48),0)\n+AI$11*OFFSET('Efficiency Distributions'!$E$10,MATCH($C41,'Efficiency Distributions'!$C$9:$C$87,0)+RIGHT($E48),0))\n/SUM(AI$10:AI$11)","v":8.0717979721860025E-2},{"$f":"IF(INDEX(PC_MAPPING,RIGHT($C41,1),MATCH($E$2,'Data by Building Type'!$D$22:$F$22,0))=\"Yes\",1,0)*\n(AJ$10*OFFSET('Efficiency Distributions'!$D$10,MATCH($C41,'Efficiency Distributions'!$C$9:$C$87,0)+RIGHT($E48),0)\n+AJ$11*OFFSET('Efficiency Distributions'!$E$10,MATCH($C41,'Efficiency Distributions'!$C$9:$C$87,0)+RIGHT($E48),0))\n/SUM(AJ$10:AJ$11)","v":7.9757762253827885E-2},{"$f":"IF(INDEX(PC_MAPPING,RIGHT($C41,1),MATCH($E$2,'Data by Building Type'!$D$22:$F$22,0))=\"Yes\",1,0)*\n(AK$10*OFFSET('Efficiency Distributions'!$D$10,MATCH($C41,'Efficiency Distributions'!$C$9:$C$87,0)+RIGHT($E48),0)\n+AK$11*OFFSET('Efficiency Distributions'!$E$10,MATCH($C41,'Efficiency Distributions'!$C$9:$C$87,0)+RIGHT($E48),0))\n/SUM(AK$10:AK$11)","v":6.6332361759193006E-2},{"$f":"IF(INDEX(PC_MAPPING,RIGHT($C41,1),MATCH($E$2,'Data by Building Type'!$D$22:$F$22,0))=\"Yes\",1,0)*\n(AL$10*OFFSET('Efficiency Distributions'!$D$10,MATCH($C41,'Efficiency Distributions'!$C$9:$C$87,0)+RIGHT($E48),0)\n+AL$11*OFFSET('Efficiency Distributions'!$E$10,MATCH($C41,'Efficiency Distributions'!$C$9:$C$87,0)+RIGHT($E48),0))\n/SUM(AL$10:AL$11)","v":6.6734143673777557E-2},{"$f":"IF(INDEX(PC_MAPPING,RIGHT($C41,1),MATCH($E$2,'Data by Building Type'!$D$22:$F$22,0))=\"Yes\",1,0)*\n(AM$10*OFFSET('Efficiency Distributions'!$D$10,MATCH($C41,'Efficiency Distributions'!$C$9:$C$87,0)+RIGHT($E48),0)\n+AM$11*OFFSET('Efficiency Distributions'!$E$10,MATCH($C41,'Efficiency Distributions'!$C$9:$C$87,0)+RIGHT($E48),0))\n/SUM(AM$10:AM$11)","v":6.5008015261760713E-2},{"$f":"IF(INDEX(PC_MAPPING,RIGHT($C41,1),MATCH($E$2,'Data by Building Type'!$D$22:$F$22,0))=\"Yes\",1,0)*\n(AN$10*OFFSET('Efficiency Distributions'!$D$10,MATCH($C41,'Efficiency Distributions'!$C$9:$C$87,0)+RIGHT($E48),0)\n+AN$11*OFFSET('Efficiency Distributions'!$E$10,MATCH($C41,'Efficiency Distributions'!$C$9:$C$87,0)+RIGHT($E48),0))\n/SUM(AN$10:AN$11)","v":6.5147379185874627E-2},{"$f":"IF(INDEX(PC_MAPPING,RIGHT($C41,1),MATCH($E$2,'Data by Building Type'!$D$22:$F$22,0))=\"Yes\",1,0)*\n(AO$10*OFFSET('Efficiency Distributions'!$D$10,MATCH($C41,'Efficiency Distributions'!$C$9:$C$87,0)+RIGHT($E48),0)\n+AO$11*OFFSET('Efficiency Distributions'!$E$10,MATCH($C41,'Efficiency Distributions'!$C$9:$C$87,0)+RIGHT($E48),0))\n/SUM(AO$10:AO$11)","v":6.4471030971657142E-2},{"$f":"IF(INDEX(PC_MAPPING,RIGHT($C41,1),MATCH($E$2,'Data by Building Type'!$D$22:$F$22,0))=\"Yes\",1,0)*\n(AP$10*OFFSET('Efficiency Distributions'!$D$10,MATCH($C41,'Efficiency Distributions'!$C$9:$C$87,0)+RIGHT($E48),0)\n+AP$11*OFFSET('Efficiency Distributions'!$E$10,MATCH($C41,'Efficiency Distributions'!$C$9:$C$87,0)+RIGHT($E48),0))\n/SUM(AP$10:AP$11)","v":6.4768576777834527E-2},{"$f":"IF(INDEX(PC_MAPPING,RIGHT($C41,1),MATCH($E$2,'Data by Building Type'!$D$22:$F$22,0))=\"Yes\",1,0)*\n(AQ$10*OFFSET('Efficiency Distributions'!$D$10,MATCH($C41,'Efficiency Distributions'!$C$9:$C$87,0)+RIGHT($E48),0)\n+AQ$11*OFFSET('Efficiency Distributions'!$E$10,MATCH($C41,'Efficiency Distributions'!$C$9:$C$87,0)+RIGHT($E48),0))\n/SUM(AQ$10:AQ$11)","v":6.4869624203025514E-2},{"$f":"IF(INDEX(PC_MAPPING,RIGHT($C41,1),MATCH($E$2,'Data by Building Type'!$D$22:$F$22,0))=\"Yes\",1,0)*\n(AR$10*OFFSET('Efficiency Distributions'!$D$10,MATCH($C41,'Efficiency Distributions'!$C$9:$C$87,0)+RIGHT($E48),0)\n+AR$11*OFFSET('Efficiency Distributions'!$E$10,MATCH($C41,'Efficiency Distributions'!$C$9:$C$87,0)+RIGHT($E48),0))\n/SUM(AR$10:AR$11)","v":6.5187672301211849E-2},{"$f":"IF(INDEX(PC_MAPPING,RIGHT($C41,1),MATCH($E$2,'Data by Building Type'!$D$22:$F$22,0))=\"Yes\",1,0)*\n(AS$10*OFFSET('Efficiency Distributions'!$D$10,MATCH($C41,'Efficiency Distributions'!$C$9:$C$87,0)+RIGHT($E48),0)\n+AS$11*OFFSET('Efficiency Distributions'!$E$10,MATCH($C41,'Efficiency Distributions'!$C$9:$C$87,0)+RIGHT($E48),0))\n/SUM(AS$10:AS$11)","v":6.5183448003176686E-2},{"$f":"IF(INDEX(PC_MAPPING,RIGHT($C41,1),MATCH($E$2,'Data by Building Type'!$D$22:$F$22,0))=\"Yes\",1,0)*\n(AT$10*OFFSET('Efficiency Distributions'!$D$10,MATCH($C41,'Efficiency Distributions'!$C$9:$C$87,0)+RIGHT($E48),0)\n+AT$11*OFFSET('Efficiency Distributions'!$E$10,MATCH($C41,'Efficiency Distributions'!$C$9:$C$87,0)+RIGHT($E48),0))\n/SUM(AT$10:AT$11)","v":6.5014870438629274E-2},{"$f":"IF(INDEX(PC_MAPPING,RIGHT($C41,1),MATCH($E$2,'Data by Building Type'!$D$22:$F$22,0))=\"Yes\",1,0)*\n(AU$10*OFFSET('Efficiency Distributions'!$D$10,MATCH($C41,'Efficiency Distributions'!$C$9:$C$87,0)+RIGHT($E48),0)\n+AU$11*OFFSET('Efficiency Distributions'!$E$10,MATCH($C41,'Efficiency Distributions'!$C$9:$C$87,0)+RIGHT($E48),0))\n/SUM(AU$10:AU$11)","v":6.5212838318643204E-2},{"$f":"IF(INDEX(PC_MAPPING,RIGHT($C41,1),MATCH($E$2,'Data by Building Type'!$D$22:$F$22,0))=\"Yes\",1,0)*\n(AV$10*OFFSET('Efficiency Distributions'!$D$10,MATCH($C41,'Efficiency Distributions'!$C$9:$C$87,0)+RIGHT($E48),0)\n+AV$11*OFFSET('Efficiency Distributions'!$E$10,MATCH($C41,'Efficiency Distributions'!$C$9:$C$87,0)+RIGHT($E48),0))\n/SUM(AV$10:AV$11)","v":6.7944753491229609E-2},{"$f":"IF(INDEX(PC_MAPPING,RIGHT($C41,1),MATCH($E$2,'Data by Building Type'!$D$22:$F$22,0))=\"Yes\",1,0)*\n(AW$10*OFFSET('Efficiency Distributions'!$D$10,MATCH($C41,'Efficiency Distributions'!$C$9:$C$87,0)+RIGHT($E48),0)\n+AW$11*OFFSET('Efficiency Distributions'!$E$10,MATCH($C41,'Efficiency Distributions'!$C$9:$C$87,0)+RIGHT($E48),0))\n/SUM(AW$10:AW$11)","v":6.7783657799133618E-2},{"$f":"IF(INDEX(PC_MAPPING,RIGHT($C41,1),MATCH($E$2,'Data by Building Type'!$D$22:$F$22,0))=\"Yes\",1,0)*\n(AX$10*OFFSET('Efficiency Distributions'!$D$10,MATCH($C41,'Efficiency Distributions'!$C$9:$C$87,0)+RIGHT($E48),0)\n+AX$11*OFFSET('Efficiency Distributions'!$E$10,MATCH($C41,'Efficiency Distributions'!$C$9:$C$87,0)+RIGHT($E48),0))\n/SUM(AX$10:AX$11)","v":6.8596769134719071E-2},{"$f":"IF(INDEX(PC_MAPPING,RIGHT($C41,1),MATCH($E$2,'Data by Building Type'!$D$22:$F$22,0))=\"Yes\",1,0)*\n(AY$10*OFFSET('Efficiency Distributions'!$D$10,MATCH($C41,'Efficiency Distributions'!$C$9:$C$87,0)+RIGHT($E48),0)\n+AY$11*OFFSET('Efficiency Distributions'!$E$10,MATCH($C41,'Efficiency Distributions'!$C$9:$C$87,0)+RIGHT($E48),0))\n/SUM(AY$10:AY$11)","v":6.8843485345182448E-2},{"$f":"IF(INDEX(PC_MAPPING,RIGHT($C41,1),MATCH($E$2,'Data by Building Type'!$D$22:$F$22,0))=\"Yes\",1,0)*\n(AZ$10*OFFSET('Efficiency Distributions'!$D$10,MATCH($C41,'Efficiency Distributions'!$C$9:$C$87,0)+RIGHT($E48),0)\n+AZ$11*OFFSET('Efficiency Distributions'!$E$10,MATCH($C41,'Efficiency Distributions'!$C$9:$C$87,0)+RIGHT($E48),0))\n/SUM(AZ$10:AZ$11)","v":6.8473323558039867E-2},{"$f":"IF(INDEX(PC_MAPPING,RIGHT($C41,1),MATCH($E$2,'Data by Building Type'!$D$22:$F$22,0))=\"Yes\",1,0)*\n(BA$10*OFFSET('Efficiency Distributions'!$D$10,MATCH($C41,'Efficiency Distributions'!$C$9:$C$87,0)+RIGHT($E48),0)\n+BA$11*OFFSET('Efficiency Distributions'!$E$10,MATCH($C41,'Efficiency Distributions'!$C$9:$C$87,0)+RIGHT($E48),0))\n/SUM(BA$10:BA$11)","v":6.7904164958179206E-2},{"$f":"IF(INDEX(PC_MAPPING,RIGHT($C41,1),MATCH($E$2,'Data by Building Type'!$D$22:$F$22,0))=\"Yes\",1,0)*\n(BB$10*OFFSET('Efficiency Distributions'!$D$10,MATCH($C41,'Efficiency Distributions'!$C$9:$C$87,0)+RIGHT($E48),0)\n+BB$11*OFFSET('Efficiency Distributions'!$E$10,MATCH($C41,'Efficiency Distributions'!$C$9:$C$87,0)+RIGHT($E48),0))\n/SUM(BB$10:BB$11)","v":6.6686249675837334E-2},{"$f":"IF(INDEX(PC_MAPPING,RIGHT($C41,1),MATCH($E$2,'Data by Building Type'!$D$22:$F$22,0))=\"Yes\",1,0)*\n(BC$10*OFFSET('Efficiency Distributions'!$D$10,MATCH($C41,'Efficiency Distributions'!$C$9:$C$87,0)+RIGHT($E48),0)\n+BC$11*OFFSET('Efficiency Distributions'!$E$10,MATCH($C41,'Efficiency Distributions'!$C$9:$C$87,0)+RIGHT($E48),0))\n/SUM(BC$10:BC$11)","v":6.6439289398002907E-2},{"$f":"IF(INDEX(PC_MAPPING,RIGHT($C41,1),MATCH($E$2,'Data by Building Type'!$D$22:$F$22,0))=\"Yes\",1,0)*\n(BD$10*OFFSET('Efficiency Distributions'!$D$10,MATCH($C41,'Efficiency Distributions'!$C$9:$C$87,0)+RIGHT($E48),0)\n+BD$11*OFFSET('Efficiency Distributions'!$E$10,MATCH($C41,'Efficiency Distributions'!$C$9:$C$87,0)+RIGHT($E48),0))\n/SUM(BD$10:BD$11)","v":6.782124088109992E-2},{"$f":"IF(INDEX(PC_MAPPING,RIGHT($C41,1),MATCH($E$2,'Data by Building Type'!$D$22:$F$22,0))=\"Yes\",1,0)*\n(BE$10*OFFSET('Efficiency Distributions'!$D$10,MATCH($C41,'Efficiency Distributions'!$C$9:$C$87,0)+RIGHT($E48),0)\n+BE$11*OFFSET('Efficiency Distributions'!$E$10,MATCH($C41,'Efficiency Distributions'!$C$9:$C$87,0)+RIGHT($E48),0))\n/SUM(BE$10:BE$11)","v":6.878739836535272E-2},{"$f":"IF(INDEX(PC_MAPPING,RIGHT($C41,1),MATCH($E$2,'Data by Building Type'!$D$22:$F$22,0))=\"Yes\",1,0)*\n(BF$10*OFFSET('Efficiency Distributions'!$D$10,MATCH($C41,'Efficiency Distributions'!$C$9:$C$87,0)+RIGHT($E48),0)\n+BF$11*OFFSET('Efficiency Distributions'!$E$10,MATCH($C41,'Efficiency Distributions'!$C$9:$C$87,0)+RIGHT($E48),0))\n/SUM(BF$10:BF$11)","v":7.0707906870689549E-2},{"$f":"IF(INDEX(PC_MAPPING,RIGHT($C41,1),MATCH($E$2,'Data by Building Type'!$D$22:$F$22,0))=\"Yes\",1,0)*\n(BG$10*OFFSET('Efficiency Distributions'!$D$10,MATCH($C41,'Efficiency Distributions'!$C$9:$C$87,0)+RIGHT($E48),0)\n+BG$11*OFFSET('Efficiency Distributions'!$E$10,MATCH($C41,'Efficiency Distributions'!$C$9:$C$87,0)+RIGHT($E48),0))\n/SUM(BG$10:BG$11)","v":7.1063228160313963E-2}]
[null,null,null,null,"EL4",{"$f":"IF(INDEX(PC_MAPPING,RIGHT($C41,1),MATCH($E$2,'Data by Building Type'!$D$22:$F$22,0))=\"Yes\",1,0)*\n(F$10*OFFSET('Efficiency Distributions'!$D$10,MATCH($C41,'Efficiency Distributions'!$C$9:$C$87,0)+RIGHT($E49),0)\n+F$11*OFFSET('Efficiency Distributions'!$E$10,MATCH($C41,'Efficiency Distributions'!$C$9:$C$87,0)+RIGHT($E49),0))\n/SUM(F$10:F$11)","v":5.9795673210735791E-2},{"$f":"IF(INDEX(PC_MAPPING,RIGHT($C41,1),MATCH($E$2,'Data by Building Type'!$D$22:$F$22,0))=\"Yes\",1,0)*\n(G$10*OFFSET('Efficiency Distributions'!$D$10,MATCH($C41,'Efficiency Distributions'!$C$9:$C$87,0)+RIGHT($E49),0)\n+G$11*OFFSET('Efficiency Distributions'!$E$10,MATCH($C41,'Efficiency Distributions'!$C$9:$C$87,0)+RIGHT($E49),0))\n/SUM(G$10:G$11)","v":6.2657456407876636E-2},{"$f":"IF(INDEX(PC_MAPPING,RIGHT($C41,1),MATCH($E$2,'Data by Building Type'!$D$22:$F$22,0))=\"Yes\",1,0)*\n(H$10*OFFSET('Efficiency Distributions'!$D$10,MATCH($C41,'Efficiency Distributions'!$C$9:$C$87,0)+RIGHT($E49),0)\n+H$11*OFFSET('Efficiency Distributions'!$E$10,MATCH($C41,'Efficiency Distributions'!$C$9:$C$87,0)+RIGHT($E49),0))\n/SUM(H$10:H$11)","v":5.9234055597437746E-2},{"$f":"IF(INDEX(PC_MAPPING,RIGHT($C41,1),MATCH($E$2,'Data by Building Type'!$D$22:$F$22,0))=\"Yes\",1,0)*\n(I$10*OFFSET('Efficiency Distributions'!$D$10,MATCH($C41,'Efficiency Distributions'!$C$9:$C$87,0)+RIGHT($E49),0)\n+I$11*OFFSET('Efficiency Distributions'!$E$10,MATCH($C41,'Efficiency Distributions'!$C$9:$C$87,0)+RIGHT($E49),0))\n/SUM(I$10:I$11)","v":5.9872538069007913E-2},{"$f":"IF(INDEX(PC_MAPPING,RIGHT($C41,1),MATCH($E$2,'Data by Building Type'!$D$22:$F$22,0))=\"Yes\",1,0)*\n(J$10*OFFSET('Efficiency Distributions'!$D$10,MATCH($C41,'Efficiency Distributions'!$C$9:$C$87,0)+RIGHT($E49),0)\n+J$11*OFFSET('Efficiency Distributions'!$E$10,MATCH($C41,'Efficiency Distributions'!$C$9:$C$87,0)+RIGHT($E49),0))\n/SUM(J$10:J$11)","v":6.0267853465912666E-2},{"$f":"IF(INDEX(PC_MAPPING,RIGHT($C41,1),MATCH($E$2,'Data by Building Type'!$D$22:$F$22,0))=\"Yes\",1,0)*\n(K$10*OFFSET('Efficiency Distributions'!$D$10,MATCH($C41,'Efficiency Distributions'!$C$9:$C$87,0)+RIGHT($E49),0)\n+K$11*OFFSET('Efficiency Distributions'!$E$10,MATCH($C41,'Efficiency Distributions'!$C$9:$C$87,0)+RIGHT($E49),0))\n/SUM(K$10:K$11)","v":5.9615296945419789E-2},{"$f":"IF(INDEX(PC_MAPPING,RIGHT($C41,1),MATCH($E$2,'Data by Building Type'!$D$22:$F$22,0))=\"Yes\",1,0)*\n(L$10*OFFSET('Efficiency Distributions'!$D$10,MATCH($C41,'Efficiency Distributions'!$C$9:$C$87,0)+RIGHT($E49),0)\n+L$11*OFFSET('Efficiency Distributions'!$E$10,MATCH($C41,'Efficiency Distributions'!$C$9:$C$87,0)+RIGHT($E49),0))\n/SUM(L$10:L$11)","v":5.956395422602772E-2},{"$f":"IF(INDEX(PC_MAPPING,RIGHT($C41,1),MATCH($E$2,'Data by Building Type'!$D$22:$F$22,0))=\"Yes\",1,0)*\n(M$10*OFFSET('Efficiency Distributions'!$D$10,MATCH($C41,'Efficiency Distributions'!$C$9:$C$87,0)+RIGHT($E49),0)\n+M$11*OFFSET('Efficiency Distributions'!$E$10,MATCH($C41,'Efficiency Distributions'!$C$9:$C$87,0)+RIGHT($E49),0))\n/SUM(M$10:M$11)","v":5.8689640314859681E-2},{"$f":"IF(INDEX(PC_MAPPING,RIGHT($C41,1),MATCH($E$2,'Data by Building Type'!$D$22:$F$22,0))=\"Yes\",1,0)*\n(N$10*OFFSET('Efficiency Distributions'!$D$10,MATCH($C41,'Efficiency Distributions'!$C$9:$C$87,0)+RIGHT($E49),0)\n+N$11*OFFSET('Efficiency Distributions'!$E$10,MATCH($C41,'Efficiency Distributions'!$C$9:$C$87,0)+RIGHT($E49),0))\n/SUM(N$10:N$11)","v":5.6694539112698249E-2},{"$f":"IF(INDEX(PC_MAPPING,RIGHT($C41,1),MATCH($E$2,'Data by Building Type'!$D$22:$F$22,0))=\"Yes\",1,0)*\n(O$10*OFFSET('Efficiency Distributions'!$D$10,MATCH($C41,'Efficiency Distributions'!$C$9:$C$87,0)+RIGHT($E49),0)\n+O$11*OFFSET('Efficiency Distributions'!$E$10,MATCH($C41,'Efficiency Distributions'!$C$9:$C$87,0)+RIGHT($E49),0))\n/SUM(O$10:O$11)","v":5.5334974854795549E-2},{"$f":"IF(INDEX(PC_MAPPING,RIGHT($C41,1),MATCH($E$2,'Data by Building Type'!$D$22:$F$22,0))=\"Yes\",1,0)*\n(P$10*OFFSET('Efficiency Distributions'!$D$10,MATCH($C41,'Efficiency Distributions'!$C$9:$C$87,0)+RIGHT($E49),0)\n+P$11*OFFSET('Efficiency Distributions'!$E$10,MATCH($C41,'Efficiency Distributions'!$C$9:$C$87,0)+RIGHT($E49),0))\n/SUM(P$10:P$11)","v":5.6720987947372903E-2},{"$f":"IF(INDEX(PC_MAPPING,RIGHT($C41,1),MATCH($E$2,'Data by Building Type'!$D$22:$F$22,0))=\"Yes\",1,0)*\n(Q$10*OFFSET('Efficiency Distributions'!$D$10,MATCH($C41,'Efficiency Distributions'!$C$9:$C$87,0)+RIGHT($E49),0)\n+Q$11*OFFSET('Efficiency Distributions'!$E$10,MATCH($C41,'Efficiency Distributions'!$C$9:$C$87,0)+RIGHT($E49),0))\n/SUM(Q$10:Q$11)","v":5.4441343408259332E-2},{"$f":"IF(INDEX(PC_MAPPING,RIGHT($C41,1),MATCH($E$2,'Data by Building Type'!$D$22:$F$22,0))=\"Yes\",1,0)*\n(R$10*OFFSET('Efficiency Distributions'!$D$10,MATCH($C41,'Efficiency Distributions'!$C$9:$C$87,0)+RIGHT($E49),0)\n+R$11*OFFSET('Efficiency Distributions'!$E$10,MATCH($C41,'Efficiency Distributions'!$C$9:$C$87,0)+RIGHT($E49),0))\n/SUM(R$10:R$11)","v":6.0703347953090285E-2},{"$f":"IF(INDEX(PC_MAPPING,RIGHT($C41,1),MATCH($E$2,'Data by Building Type'!$D$22:$F$22,0))=\"Yes\",1,0)*\n(S$10*OFFSET('Efficiency Distributions'!$D$10,MATCH($C41,'Efficiency Distributions'!$C$9:$C$87,0)+RIGHT($E49),0)\n+S$11*OFFSET('Efficiency Distributions'!$E$10,MATCH($C41,'Efficiency Distributions'!$C$9:$C$87,0)+RIGHT($E49),0))\n/SUM(S$10:S$11)","v":6.0072645366564724E-2},{"$f":"IF(INDEX(PC_MAPPING,RIGHT($C41,1),MATCH($E$2,'Data by Building Type'!$D$22:$F$22,0))=\"Yes\",1,0)*\n(T$10*OFFSET('Efficiency Distributions'!$D$10,MATCH($C41,'Efficiency Distributions'!$C$9:$C$87,0)+RIGHT($E49),0)\n+T$11*OFFSET('Efficiency Distributions'!$E$10,MATCH($C41,'Efficiency Distributions'!$C$9:$C$87,0)+RIGHT($E49),0))\n/SUM(T$10:T$11)","v":6.2396603924556544E-2},{"$f":"IF(INDEX(PC_MAPPING,RIGHT($C41,1),MATCH($E$2,'Data by Building Type'!$D$22:$F$22,0))=\"Yes\",1,0)*\n(U$10*OFFSET('Efficiency Distributions'!$D$10,MATCH($C41,'Efficiency Distributions'!$C$9:$C$87,0)+RIGHT($E49),0)\n+U$11*OFFSET('Efficiency Distributions'!$E$10,MATCH($C41,'Efficiency Distributions'!$C$9:$C$87,0)+RIGHT($E49),0))\n/SUM(U$10:U$11)","v":6.2061806150683678E-2},{"$f":"IF(INDEX(PC_MAPPING,RIGHT($C41,1),MATCH($E$2,'Data by Building Type'!$D$22:$F$22,0))=\"Yes\",1,0)*\n(V$10*OFFSET('Efficiency Distributions'!$D$10,MATCH($C41,'Efficiency Distributions'!$C$9:$C$87,0)+RIGHT($E49),0)\n+V$11*OFFSET('Efficiency Distributions'!$E$10,MATCH($C41,'Efficiency Distributions'!$C$9:$C$87,0)+RIGHT($E49),0))\n/SUM(V$10:V$11)","v":6.2556959432323353E-2},{"$f":"IF(INDEX(PC_MAPPING,RIGHT($C41,1),MATCH($E$2,'Data by Building Type'!$D$22:$F$22,0))=\"Yes\",1,0)*\n(W$10*OFFSET('Efficiency Distributions'!$D$10,MATCH($C41,'Efficiency Distributions'!$C$9:$C$87,0)+RIGHT($E49),0)\n+W$11*OFFSET('Efficiency Distributions'!$E$10,MATCH($C41,'Efficiency Distributions'!$C$9:$C$87,0)+RIGHT($E49),0))\n/SUM(W$10:W$11)","v":6.2319529316907513E-2},{"$f":"IF(INDEX(PC_MAPPING,RIGHT($C41,1),MATCH($E$2,'Data by Building Type'!$D$22:$F$22,0))=\"Yes\",1,0)*\n(X$10*OFFSET('Efficiency Distributions'!$D$10,MATCH($C41,'Efficiency Distributions'!$C$9:$C$87,0)+RIGHT($E49),0)\n+X$11*OFFSET('Efficiency Distributions'!$E$10,MATCH($C41,'Efficiency Distributions'!$C$9:$C$87,0)+RIGHT($E49),0))\n/SUM(X$10:X$11)","v":6.3081734900821224E-2},{"$f":"IF(INDEX(PC_MAPPING,RIGHT($C41,1),MATCH($E$2,'Data by Building Type'!$D$22:$F$22,0))=\"Yes\",1,0)*\n(Y$10*OFFSET('Efficiency Distributions'!$D$10,MATCH($C41,'Efficiency Distributions'!$C$9:$C$87,0)+RIGHT($E49),0)\n+Y$11*OFFSET('Efficiency Distributions'!$E$10,MATCH($C41,'Efficiency Distributions'!$C$9:$C$87,0)+RIGHT($E49),0))\n/SUM(Y$10:Y$11)","v":6.4936144066508911E-2},{"$f":"IF(INDEX(PC_MAPPING,RIGHT($C41,1),MATCH($E$2,'Data by Building Type'!$D$22:$F$22,0))=\"Yes\",1,0)*\n(Z$10*OFFSET('Efficiency Distributions'!$D$10,MATCH($C41,'Efficiency Distributions'!$C$9:$C$87,0)+RIGHT($E49),0)\n+Z$11*OFFSET('Efficiency Distributions'!$E$10,MATCH($C41,'Efficiency Distributions'!$C$9:$C$87,0)+RIGHT($E49),0))\n/SUM(Z$10:Z$11)","v":6.4967459245313816E-2},{"$f":"IF(INDEX(PC_MAPPING,RIGHT($C41,1),MATCH($E$2,'Data by Building Type'!$D$22:$F$22,0))=\"Yes\",1,0)*\n(AA$10*OFFSET('Efficiency Distributions'!$D$10,MATCH($C41,'Efficiency Distributions'!$C$9:$C$87,0)+RIGHT($E49),0)\n+AA$11*OFFSET('Efficiency Distributions'!$E$10,MATCH($C41,'Efficiency Distributions'!$C$9:$C$87,0)+RIGHT($E49),0))\n/SUM(AA$10:AA$11)","v":6.4680180030402212E-2},{"$f":"IF(INDEX(PC_MAPPING,RIGHT($C41,1),MATCH($E$2,'Data by Building Type'!$D$22:$F$22,0))=\"Yes\",1,0)*\n(AB$10*OFFSET('Efficiency Distributions'!$D$10,MATCH($C41,'Efficiency Distributions'!$C$9:$C$87,0)+RIGHT($E49),0)\n+AB$11*OFFSET('Efficiency Distributions'!$E$10,MATCH($C41,'Efficiency Distributions'!$C$9:$C$87,0)+RIGHT($E49),0))\n/SUM(AB$10:AB$11)","v":6.304342326438421E-2},{"$f":"IF(INDEX(PC_MAPPING,RIGHT($C41,1),MATCH($E$2,'Data by Building Type'!$D$22:$F$22,0))=\"Yes\",1,0)*\n(AC$10*OFFSET('Efficiency Distributions'!$D$10,MATCH($C41,'Efficiency Distributions'!$C$9:$C$87,0)+RIGHT($E49),0)\n+AC$11*OFFSET('Efficiency Distributions'!$E$10,MATCH($C41,'Efficiency Distributions'!$C$9:$C$87,0)+RIGHT($E49),0))\n/SUM(AC$10:AC$11)","v":6.3157758290160876E-2},{"$f":"IF(INDEX(PC_MAPPING,RIGHT($C41,1),MATCH($E$2,'Data by Building Type'!$D$22:$F$22,0))=\"Yes\",1,0)*\n(AD$10*OFFSET('Efficiency Distributions'!$D$10,MATCH($C41,'Efficiency Distributions'!$C$9:$C$87,0)+RIGHT($E49),0)\n+AD$11*OFFSET('Efficiency Distributions'!$E$10,MATCH($C41,'Efficiency Distributions'!$C$9:$C$87,0)+RIGHT($E49),0))\n/SUM(AD$10:AD$11)","v":6.1748615631839858E-2},{"$f":"IF(INDEX(PC_MAPPING,RIGHT($C41,1),MATCH($E$2,'Data by Building Type'!$D$22:$F$22,0))=\"Yes\",1,0)*\n(AE$10*OFFSET('Efficiency Distributions'!$D$10,MATCH($C41,'Efficiency Distributions'!$C$9:$C$87,0)+RIGHT($E49),0)\n+AE$11*OFFSET('Efficiency Distributions'!$E$10,MATCH($C41,'Efficiency Distributions'!$C$9:$C$87,0)+RIGHT($E49),0))\n/SUM(AE$10:AE$11)","v":6.388726023411459E-2},{"$f":"IF(INDEX(PC_MAPPING,RIGHT($C41,1),MATCH($E$2,'Data by Building Type'!$D$22:$F$22,0))=\"Yes\",1,0)*\n(AF$10*OFFSET('Efficiency Distributions'!$D$10,MATCH($C41,'Efficiency Distributions'!$C$9:$C$87,0)+RIGHT($E49),0)\n+AF$11*OFFSET('Efficiency Distributions'!$E$10,MATCH($C41,'Efficiency Distributions'!$C$9:$C$87,0)+RIGHT($E49),0))\n/SUM(AF$10:AF$11)","v":6.8611317092066137E-2},{"$f":"IF(INDEX(PC_MAPPING,RIGHT($C41,1),MATCH($E$2,'Data by Building Type'!$D$22:$F$22,0))=\"Yes\",1,0)*\n(AG$10*OFFSET('Efficiency Distributions'!$D$10,MATCH($C41,'Efficiency Distributions'!$C$9:$C$87,0)+RIGHT($E49),0)\n+AG$11*OFFSET('Efficiency Distributions'!$E$10,MATCH($C41,'Efficiency Distributions'!$C$9:$C$87,0)+RIGHT($E49),0))\n/SUM(AG$10:AG$11)","v":7.062823225662751E-2},{"$f":"IF(INDEX(PC_MAPPING,RIGHT($C41,1),MATCH($E$2,'Data by Building Type'!$D$22:$F$22,0))=\"Yes\",1,0)*\n(AH$10*OFFSET('Efficiency Distributions'!$D$10,MATCH($C41,'Efficiency Distributions'!$C$9:$C$87,0)+RIGHT($E49),0)\n+AH$11*OFFSET('Efficiency Distributions'!$E$10,MATCH($C41,'Efficiency Distributions'!$C$9:$C$87,0)+RIGHT($E49),0))\n/SUM(AH$10:AH$11)","v":7.062823225662751E-2},{"$f":"IF(INDEX(PC_MAPPING,RIGHT($C41,1),MATCH($E$2,'Data by Building Type'!$D$22:$F$22,0))=\"Yes\",1,0)*\n(AI$10*OFFSET('Efficiency Distributions'!$D$10,MATCH($C41,'Efficiency Distributions'!$C$9:$C$87,0)+RIGHT($E49),0)\n+AI$11*OFFSET('Efficiency Distributions'!$E$10,MATCH($C41,'Efficiency Distributions'!$C$9:$C$87,0)+RIGHT($E49),0))\n/SUM(AI$10:AI$11)","v":7.062823225662751E-2},{"$f":"IF(INDEX(PC_MAPPING,RIGHT($C41,1),MATCH($E$2,'Data by Building Type'!$D$22:$F$22,0))=\"Yes\",1,0)*\n(AJ$10*OFFSET('Efficiency Distributions'!$D$10,MATCH($C41,'Efficiency Distributions'!$C$9:$C$87,0)+RIGHT($E49),0)\n+AJ$11*OFFSET('Efficiency Distributions'!$E$10,MATCH($C41,'Efficiency Distributions'!$C$9:$C$87,0)+RIGHT($E49),0))\n/SUM(AJ$10:AJ$11)","v":6.9788041972099382E-2},{"$f":"IF(INDEX(PC_MAPPING,RIGHT($C41,1),MATCH($E$2,'Data by Building Type'!$D$22:$F$22,0))=\"Yes\",1,0)*\n(AK$10*OFFSET('Efficiency Distributions'!$D$10,MATCH($C41,'Efficiency Distributions'!$C$9:$C$87,0)+RIGHT($E49),0)\n+AK$11*OFFSET('Efficiency Distributions'!$E$10,MATCH($C41,'Efficiency Distributions'!$C$9:$C$87,0)+RIGHT($E49),0))\n/SUM(AK$10:AK$11)","v":5.8040816539293882E-2},{"$f":"IF(INDEX(PC_MAPPING,RIGHT($C41,1),MATCH($E$2,'Data by Building Type'!$D$22:$F$22,0))=\"Yes\",1,0)*\n(AL$10*OFFSET('Efficiency Distributions'!$D$10,MATCH($C41,'Efficiency Distributions'!$C$9:$C$87,0)+RIGHT($E49),0)\n+AL$11*OFFSET('Efficiency Distributions'!$E$10,MATCH($C41,'Efficiency Distributions'!$C$9:$C$87,0)+RIGHT($E49),0))\n/SUM(AL$10:AL$11)","v":5.8392375714555349E-2},{"$f":"IF(INDEX(PC_MAPPING,RIGHT($C41,1),MATCH($E$2,'Data by Building Type'!$D$22:$F$22,0))=\"Yes\",1,0)*\n(AM$10*OFFSET('Efficiency Distributions'!$D$10,MATCH($C41,'Efficiency Distributions'!$C$9:$C$87,0)+RIGHT($E49),0)\n+AM$11*OFFSET('Efficiency Distributions'!$E$10,MATCH($C41,'Efficiency Distributions'!$C$9:$C$87,0)+RIGHT($E49),0))\n/SUM(AM$10:AM$11)","v":5.6882013354040618E-2},{"$f":"IF(INDEX(PC_MAPPING,RIGHT($C41,1),MATCH($E$2,'Data by Building Type'!$D$22:$F$22,0))=\"Yes\",1,0)*\n(AN$10*OFFSET('Efficiency Distributions'!$D$10,MATCH($C41,'Efficiency Distributions'!$C$9:$C$87,0)+RIGHT($E49),0)\n+AN$11*OFFSET('Efficiency Distributions'!$E$10,MATCH($C41,'Efficiency Distributions'!$C$9:$C$87,0)+RIGHT($E49),0))\n/SUM(AN$10:AN$11)","v":5.7003956787640288E-2},{"$f":"IF(INDEX(PC_MAPPING,RIGHT($C41,1),MATCH($E$2,'Data by Building Type'!$D$22:$F$22,0))=\"Yes\",1,0)*\n(AO$10*OFFSET('Efficiency Distributions'!$D$10,MATCH($C41,'Efficiency Distributions'!$C$9:$C$87,0)+RIGHT($E49),0)\n+AO$11*OFFSET('Efficiency Distributions'!$E$10,MATCH($C41,'Efficiency Distributions'!$C$9:$C$87,0)+RIGHT($E49),0))\n/SUM(AO$10:AO$11)","v":5.6412152100199994E-2},{"$f":"IF(INDEX(PC_MAPPING,RIGHT($C41,1),MATCH($E$2,'Data by Building Type'!$D$22:$F$22,0))=\"Yes\",1,0)*\n(AP$10*OFFSET('Efficiency Distributions'!$D$10,MATCH($C41,'Efficiency Distributions'!$C$9:$C$87,0)+RIGHT($E49),0)\n+AP$11*OFFSET('Efficiency Distributions'!$E$10,MATCH($C41,'Efficiency Distributions'!$C$9:$C$87,0)+RIGHT($E49),0))\n/SUM(AP$10:AP$11)","v":5.6672504680605203E-2},{"$f":"IF(INDEX(PC_MAPPING,RIGHT($C41,1),MATCH($E$2,'Data by Building Type'!$D$22:$F$22,0))=\"Yes\",1,0)*\n(AQ$10*OFFSET('Efficiency Distributions'!$D$10,MATCH($C41,'Efficiency Distributions'!$C$9:$C$87,0)+RIGHT($E49),0)\n+AQ$11*OFFSET('Efficiency Distributions'!$E$10,MATCH($C41,'Efficiency Distributions'!$C$9:$C$87,0)+RIGHT($E49),0))\n/SUM(AQ$10:AQ$11)","v":5.6760921177647305E-2},{"$f":"IF(INDEX(PC_MAPPING,RIGHT($C41,1),MATCH($E$2,'Data by Building Type'!$D$22:$F$22,0))=\"Yes\",1,0)*\n(AR$10*OFFSET('Efficiency Distributions'!$D$10,MATCH($C41,'Efficiency Distributions'!$C$9:$C$87,0)+RIGHT($E49),0)\n+AR$11*OFFSET('Efficiency Distributions'!$E$10,MATCH($C41,'Efficiency Distributions'!$C$9:$C$87,0)+RIGHT($E49),0))\n/SUM(AR$10:AR$11)","v":5.7039213263560359E-2},{"$f":"IF(INDEX(PC_MAPPING,RIGHT($C41,1),MATCH($E$2,'Data by Building Type'!$D$22:$F$22,0))=\"Yes\",1,0)*\n(AS$10*OFFSET('Efficiency Distributions'!$D$10,MATCH($C41,'Efficiency Distributions'!$C$9:$C$87,0)+RIGHT($E49),0)\n+AS$11*OFFSET('Efficiency Distributions'!$E$10,MATCH($C41,'Efficiency Distributions'!$C$9:$C$87,0)+RIGHT($E49),0))\n/SUM(AS$10:AS$11)","v":5.703551700277959E-2},{"$f":"IF(INDEX(PC_MAPPING,RIGHT($C41,1),MATCH($E$2,'Data by Building Type'!$D$22:$F$22,0))=\"Yes\",1,0)*\n(AT$10*OFFSET('Efficiency Distributions'!$D$10,MATCH($C41,'Efficiency Distributions'!$C$9:$C$87,0)+RIGHT($E49),0)\n+AT$11*OFFSET('Efficiency Distributions'!$E$10,MATCH($C41,'Efficiency Distributions'!$C$9:$C$87,0)+RIGHT($E49),0))\n/SUM(AT$10:AT$11)","v":5.6888011633800604E-2},{"$f":"IF(INDEX(PC_MAPPING,RIGHT($C41,1),MATCH($E$2,'Data by Building Type'!$D$22:$F$22,0))=\"Yes\",1,0)*\n(AU$10*OFFSET('Efficiency Distributions'!$D$10,MATCH($C41,'Efficiency Distributions'!$C$9:$C$87,0)+RIGHT($E49),0)\n+AU$11*OFFSET('Efficiency Distributions'!$E$10,MATCH($C41,'Efficiency Distributions'!$C$9:$C$87,0)+RIGHT($E49),0))\n/SUM(AU$10:AU$11)","v":5.7061233528812802E-2},{"$f":"IF(INDEX(PC_MAPPING,RIGHT($C41,1),MATCH($E$2,'Data by Building Type'!$D$22:$F$22,0))=\"Yes\",1,0)*\n(AV$10*OFFSET('Efficiency Distributions'!$D$10,MATCH($C41,'Efficiency Distributions'!$C$9:$C$87,0)+RIGHT($E49),0)\n+AV$11*OFFSET('Efficiency Distributions'!$E$10,MATCH($C41,'Efficiency Distributions'!$C$9:$C$87,0)+RIGHT($E49),0))\n/SUM(AV$10:AV$11)","v":5.9451659304825898E-2},{"$f":"IF(INDEX(PC_MAPPING,RIGHT($C41,1),MATCH($E$2,'Data by Building Type'!$D$22:$F$22,0))=\"Yes\",1,0)*\n(AW$10*OFFSET('Efficiency Distributions'!$D$10,MATCH($C41,'Efficiency Distributions'!$C$9:$C$87,0)+RIGHT($E49),0)\n+AW$11*OFFSET('Efficiency Distributions'!$E$10,MATCH($C41,'Efficiency Distributions'!$C$9:$C$87,0)+RIGHT($E49),0))\n/SUM(AW$10:AW$11)","v":5.9310700574241919E-2},{"$f":"IF(INDEX(PC_MAPPING,RIGHT($C41,1),MATCH($E$2,'Data by Building Type'!$D$22:$F$22,0))=\"Yes\",1,0)*\n(AX$10*OFFSET('Efficiency Distributions'!$D$10,MATCH($C41,'Efficiency Distributions'!$C$9:$C$87,0)+RIGHT($E49),0)\n+AX$11*OFFSET('Efficiency Distributions'!$E$10,MATCH($C41,'Efficiency Distributions'!$C$9:$C$87,0)+RIGHT($E49),0))\n/SUM(AX$10:AX$11)","v":6.0022172992879173E-2},{"$f":"IF(INDEX(PC_MAPPING,RIGHT($C41,1),MATCH($E$2,'Data by Building Type'!$D$22:$F$22,0))=\"Yes\",1,0)*\n(AY$10*OFFSET('Efficiency Distributions'!$D$10,MATCH($C41,'Efficiency Distributions'!$C$9:$C$87,0)+RIGHT($E49),0)\n+AY$11*OFFSET('Efficiency Distributions'!$E$10,MATCH($C41,'Efficiency Distributions'!$C$9:$C$87,0)+RIGHT($E49),0))\n/SUM(AY$10:AY$11)","v":6.0238049677034625E-2},{"$f":"IF(INDEX(PC_MAPPING,RIGHT($C41,1),MATCH($E$2,'Data by Building Type'!$D$22:$F$22,0))=\"Yes\",1,0)*\n(AZ$10*OFFSET('Efficiency Distributions'!$D$10,MATCH($C41,'Efficiency Distributions'!$C$9:$C$87,0)+RIGHT($E49),0)\n+AZ$11*OFFSET('Efficiency Distributions'!$E$10,MATCH($C41,'Efficiency Distributions'!$C$9:$C$87,0)+RIGHT($E49),0))\n/SUM(AZ$10:AZ$11)","v":5.9914158113284863E-2},{"$f":"IF(INDEX(PC_MAPPING,RIGHT($C41,1),MATCH($E$2,'Data by Building Type'!$D$22:$F$22,0))=\"Yes\",1,0)*\n(BA$10*OFFSET('Efficiency Distributions'!$D$10,MATCH($C41,'Efficiency Distributions'!$C$9:$C$87,0)+RIGHT($E49),0)\n+BA$11*OFFSET('Efficiency Distributions'!$E$10,MATCH($C41,'Efficiency Distributions'!$C$9:$C$87,0)+RIGHT($E49),0))\n/SUM(BA$10:BA$11)","v":5.9416144338406793E-2},{"$f":"IF(INDEX(PC_MAPPING,RIGHT($C41,1),MATCH($E$2,'Data by Building Type'!$D$22:$F$22,0))=\"Yes\",1,0)*\n(BB$10*OFFSET('Efficiency Distributions'!$D$10,MATCH($C41,'Efficiency Distributions'!$C$9:$C$87,0)+RIGHT($E49),0)\n+BB$11*OFFSET('Efficiency Distributions'!$E$10,MATCH($C41,'Efficiency Distributions'!$C$9:$C$87,0)+RIGHT($E49),0))\n/SUM(BB$10:BB$11)","v":5.8350468466357656E-2},{"$f":"IF(INDEX(PC_MAPPING,RIGHT($C41,1),MATCH($E$2,'Data by Building Type'!$D$22:$F$22,0))=\"Yes\",1,0)*\n(BC$10*OFFSET('Efficiency Distributions'!$D$10,MATCH($C41,'Efficiency Distributions'!$C$9:$C$87,0)+RIGHT($E49),0)\n+BC$11*OFFSET('Efficiency Distributions'!$E$10,MATCH($C41,'Efficiency Distributions'!$C$9:$C$87,0)+RIGHT($E49),0))\n/SUM(BC$10:BC$11)","v":5.8134378223252535E-2},{"$f":"IF(INDEX(PC_MAPPING,RIGHT($C41,1),MATCH($E$2,'Data by Building Type'!$D$22:$F$22,0))=\"Yes\",1,0)*\n(BD$10*OFFSET('Efficiency Distributions'!$D$10,MATCH($C41,'Efficiency Distributions'!$C$9:$C$87,0)+RIGHT($E49),0)\n+BD$11*OFFSET('Efficiency Distributions'!$E$10,MATCH($C41,'Efficiency Distributions'!$C$9:$C$87,0)+RIGHT($E49),0))\n/SUM(BD$10:BD$11)","v":5.9343585770962409E-2},{"$f":"IF(INDEX(PC_MAPPING,RIGHT($C41,1),MATCH($E$2,'Data by Building Type'!$D$22:$F$22,0))=\"Yes\",1,0)*\n(BE$10*OFFSET('Efficiency Distributions'!$D$10,MATCH($C41,'Efficiency Distributions'!$C$9:$C$87,0)+RIGHT($E49),0)\n+BE$11*OFFSET('Efficiency Distributions'!$E$10,MATCH($C41,'Efficiency Distributions'!$C$9:$C$87,0)+RIGHT($E49),0))\n/SUM(BE$10:BE$11)","v":6.0188973569683613E-2},{"$f":"IF(INDEX(PC_MAPPING,RIGHT($C41,1),MATCH($E$2,'Data by Building Type'!$D$22:$F$22,0))=\"Yes\",1,0)*\n(BF$10*OFFSET('Efficiency Distributions'!$D$10,MATCH($C41,'Efficiency Distributions'!$C$9:$C$87,0)+RIGHT($E49),0)\n+BF$11*OFFSET('Efficiency Distributions'!$E$10,MATCH($C41,'Efficiency Distributions'!$C$9:$C$87,0)+RIGHT($E49),0))\n/SUM(BF$10:BF$11)","v":6.1869418511853347E-2},{"$f":"IF(INDEX(PC_MAPPING,RIGHT($C41,1),MATCH($E$2,'Data by Building Type'!$D$22:$F$22,0))=\"Yes\",1,0)*\n(BG$10*OFFSET('Efficiency Distributions'!$D$10,MATCH($C41,'Efficiency Distributions'!$C$9:$C$87,0)+RIGHT($E49),0)\n+BG$11*OFFSET('Efficiency Distributions'!$E$10,MATCH($C41,'Efficiency Distributions'!$C$9:$C$87,0)+RIGHT($E49),0))\n/SUM(BG$10:BG$11)","v":6.2180324640274703E-2}]
[null,null,null,null,"EL5",{"$f":"IF(INDEX(PC_MAPPING,RIGHT($C41,1),MATCH($E$2,'Data by Building Type'!$D$22:$F$22,0))=\"Yes\",1,0)*\n(F$10*OFFSET('Efficiency Distributions'!$D$10,MATCH($C41,'Efficiency Distributions'!$C$9:$C$87,0)+RIGHT($E50),0)\n+F$11*OFFSET('Efficiency Distributions'!$E$10,MATCH($C41,'Efficiency Distributions'!$C$9:$C$87,0)+RIGHT($E50),0))\n/SUM(F$10:F$11)","v":0.29613095304364395},{"$f":"IF(INDEX(PC_MAPPING,RIGHT($C41,1),MATCH($E$2,'Data by Building Type'!$D$22:$F$22,0))=\"Yes\",1,0)*\n(G$10*OFFSET('Efficiency Distributions'!$D$10,MATCH($C41,'Efficiency Distributions'!$C$9:$C$87,0)+RIGHT($E50),0)\n+G$11*OFFSET('Efficiency Distributions'!$E$10,MATCH($C41,'Efficiency Distributions'!$C$9:$C$87,0)+RIGHT($E50),0))\n/SUM(G$10:G$11)","v":0.31030359363900811},{"$f":"IF(INDEX(PC_MAPPING,RIGHT($C41,1),MATCH($E$2,'Data by Building Type'!$D$22:$F$22,0))=\"Yes\",1,0)*\n(H$10*OFFSET('Efficiency Distributions'!$D$10,MATCH($C41,'Efficiency Distributions'!$C$9:$C$87,0)+RIGHT($E50),0)\n+H$11*OFFSET('Efficiency Distributions'!$E$10,MATCH($C41,'Efficiency Distributions'!$C$9:$C$87,0)+RIGHT($E50),0))\n/SUM(H$10:H$11)","v":0.29334960867302506},{"$f":"IF(INDEX(PC_MAPPING,RIGHT($C41,1),MATCH($E$2,'Data by Building Type'!$D$22:$F$22,0))=\"Yes\",1,0)*\n(I$10*OFFSET('Efficiency Distributions'!$D$10,MATCH($C41,'Efficiency Distributions'!$C$9:$C$87,0)+RIGHT($E50),0)\n+I$11*OFFSET('Efficiency Distributions'!$E$10,MATCH($C41,'Efficiency Distributions'!$C$9:$C$87,0)+RIGHT($E50),0))\n/SUM(I$10:I$11)","v":0.29651161710365825},{"$f":"IF(INDEX(PC_MAPPING,RIGHT($C41,1),MATCH($E$2,'Data by Building Type'!$D$22:$F$22,0))=\"Yes\",1,0)*\n(J$10*OFFSET('Efficiency Distributions'!$D$10,MATCH($C41,'Efficiency Distributions'!$C$9:$C$87,0)+RIGHT($E50),0)\n+J$11*OFFSET('Efficiency Distributions'!$E$10,MATCH($C41,'Efficiency Distributions'!$C$9:$C$87,0)+RIGHT($E50),0))\n/SUM(J$10:J$11)","v":0.29846936954547226},{"$f":"IF(INDEX(PC_MAPPING,RIGHT($C41,1),MATCH($E$2,'Data by Building Type'!$D$22:$F$22,0))=\"Yes\",1,0)*\n(K$10*OFFSET('Efficiency Distributions'!$D$10,MATCH($C41,'Efficiency Distributions'!$C$9:$C$87,0)+RIGHT($E50),0)\n+K$11*OFFSET('Efficiency Distributions'!$E$10,MATCH($C41,'Efficiency Distributions'!$C$9:$C$87,0)+RIGHT($E50),0))\n/SUM(K$10:K$11)","v":0.29523766106303134},{"$f":"IF(INDEX(PC_MAPPING,RIGHT($C41,1),MATCH($E$2,'Data by Building Type'!$D$22:$F$22,0))=\"Yes\",1,0)*\n(L$10*OFFSET('Efficiency Distributions'!$D$10,MATCH($C41,'Efficiency Distributions'!$C$9:$C$87,0)+RIGHT($E50),0)\n+L$11*OFFSET('Efficiency Distributions'!$E$10,MATCH($C41,'Efficiency Distributions'!$C$9:$C$87,0)+RIGHT($E50),0))\n/SUM(L$10:L$11)","v":0.29498339235747062},{"$f":"IF(INDEX(PC_MAPPING,RIGHT($C41,1),MATCH($E$2,'Data by Building Type'!$D$22:$F$22,0))=\"Yes\",1,0)*\n(M$10*OFFSET('Efficiency Distributions'!$D$10,MATCH($C41,'Efficiency Distributions'!$C$9:$C$87,0)+RIGHT($E50),0)\n+M$11*OFFSET('Efficiency Distributions'!$E$10,MATCH($C41,'Efficiency Distributions'!$C$9:$C$87,0)+RIGHT($E50),0))\n/SUM(M$10:M$11)","v":0.29065345679740034},{"$f":"IF(INDEX(PC_MAPPING,RIGHT($C41,1),MATCH($E$2,'Data by Building Type'!$D$22:$F$22,0))=\"Yes\",1,0)*\n(N$10*OFFSET('Efficiency Distributions'!$D$10,MATCH($C41,'Efficiency Distributions'!$C$9:$C$87,0)+RIGHT($E50),0)\n+N$11*OFFSET('Efficiency Distributions'!$E$10,MATCH($C41,'Efficiency Distributions'!$C$9:$C$87,0)+RIGHT($E50),0))\n/SUM(N$10:N$11)","v":0.28077295560574378},{"$f":"IF(INDEX(PC_MAPPING,RIGHT($C41,1),MATCH($E$2,'Data by Building Type'!$D$22:$F$22,0))=\"Yes\",1,0)*\n(O$10*OFFSET('Efficiency Distributions'!$D$10,MATCH($C41,'Efficiency Distributions'!$C$9:$C$87,0)+RIGHT($E50),0)\n+O$11*OFFSET('Efficiency Distributions'!$E$10,MATCH($C41,'Efficiency Distributions'!$C$9:$C$87,0)+RIGHT($E50),0))\n/SUM(O$10:O$11)","v":0.27403987547136843},{"$f":"IF(INDEX(PC_MAPPING,RIGHT($C41,1),MATCH($E$2,'Data by Building Type'!$D$22:$F$22,0))=\"Yes\",1,0)*\n(P$10*OFFSET('Efficiency Distributions'!$D$10,MATCH($C41,'Efficiency Distributions'!$C$9:$C$87,0)+RIGHT($E50),0)\n+P$11*OFFSET('Efficiency Distributions'!$E$10,MATCH($C41,'Efficiency Distributions'!$C$9:$C$87,0)+RIGHT($E50),0))\n/SUM(P$10:P$11)","v":0.28090394031079918},{"$f":"IF(INDEX(PC_MAPPING,RIGHT($C41,1),MATCH($E$2,'Data by Building Type'!$D$22:$F$22,0))=\"Yes\",1,0)*\n(Q$10*OFFSET('Efficiency Distributions'!$D$10,MATCH($C41,'Efficiency Distributions'!$C$9:$C$87,0)+RIGHT($E50),0)\n+Q$11*OFFSET('Efficiency Distributions'!$E$10,MATCH($C41,'Efficiency Distributions'!$C$9:$C$87,0)+RIGHT($E50),0))\n/SUM(Q$10:Q$11)","v":0.26961427211709388},{"$f":"IF(INDEX(PC_MAPPING,RIGHT($C41,1),MATCH($E$2,'Data by Building Type'!$D$22:$F$22,0))=\"Yes\",1,0)*\n(R$10*OFFSET('Efficiency Distributions'!$D$10,MATCH($C41,'Efficiency Distributions'!$C$9:$C$87,0)+RIGHT($E50),0)\n+R$11*OFFSET('Efficiency Distributions'!$E$10,MATCH($C41,'Efficiency Distributions'!$C$9:$C$87,0)+RIGHT($E50),0))\n/SUM(R$10:R$11)","v":0.30062610414863766},{"$f":"IF(INDEX(PC_MAPPING,RIGHT($C41,1),MATCH($E$2,'Data by Building Type'!$D$22:$F$22,0))=\"Yes\",1,0)*\n(S$10*OFFSET('Efficiency Distributions'!$D$10,MATCH($C41,'Efficiency Distributions'!$C$9:$C$87,0)+RIGHT($E50),0)\n+S$11*OFFSET('Efficiency Distributions'!$E$10,MATCH($C41,'Efficiency Distributions'!$C$9:$C$87,0)+RIGHT($E50),0))\n/SUM(S$10:S$11)","v":0.29750262467251104},{"$f":"IF(INDEX(PC_MAPPING,RIGHT($C41,1),MATCH($E$2,'Data by Building Type'!$D$22:$F$22,0))=\"Yes\",1,0)*\n(T$10*OFFSET('Efficiency Distributions'!$D$10,MATCH($C41,'Efficiency Distributions'!$C$9:$C$87,0)+RIGHT($E50),0)\n+T$11*OFFSET('Efficiency Distributions'!$E$10,MATCH($C41,'Efficiency Distributions'!$C$9:$C$87,0)+RIGHT($E50),0))\n/SUM(T$10:T$11)","v":0.30901175276923243},{"$f":"IF(INDEX(PC_MAPPING,RIGHT($C41,1),MATCH($E$2,'Data by Building Type'!$D$22:$F$22,0))=\"Yes\",1,0)*\n(U$10*OFFSET('Efficiency Distributions'!$D$10,MATCH($C41,'Efficiency Distributions'!$C$9:$C$87,0)+RIGHT($E50),0)\n+U$11*OFFSET('Efficiency Distributions'!$E$10,MATCH($C41,'Efficiency Distributions'!$C$9:$C$87,0)+RIGHT($E50),0))\n/SUM(U$10:U$11)","v":0.30735370665100492},{"$f":"IF(INDEX(PC_MAPPING,RIGHT($C41,1),MATCH($E$2,'Data by Building Type'!$D$22:$F$22,0))=\"Yes\",1,0)*\n(V$10*OFFSET('Efficiency Distributions'!$D$10,MATCH($C41,'Efficiency Distributions'!$C$9:$C$87,0)+RIGHT($E50),0)\n+V$11*OFFSET('Efficiency Distributions'!$E$10,MATCH($C41,'Efficiency Distributions'!$C$9:$C$87,0)+RIGHT($E50),0))\n/SUM(V$10:V$11)","v":0.30980589433150613},{"$f":"IF(INDEX(PC_MAPPING,RIGHT($C41,1),MATCH($E$2,'Data by Building Type'!$D$22:$F$22,0))=\"Yes\",1,0)*\n(W$10*OFFSET('Efficiency Distributions'!$D$10,MATCH($C41,'Efficiency Distributions'!$C$9:$C$87,0)+RIGHT($E50),0)\n+W$11*OFFSET('Efficiency Distributions'!$E$10,MATCH($C41,'Efficiency Distributions'!$C$9:$C$87,0)+RIGHT($E50),0))\n/SUM(W$10:W$11)","v":0.30863004995039911},{"$f":"IF(INDEX(PC_MAPPING,RIGHT($C41,1),MATCH($E$2,'Data by Building Type'!$D$22:$F$22,0))=\"Yes\",1,0)*\n(X$10*OFFSET('Efficiency Distributions'!$D$10,MATCH($C41,'Efficiency Distributions'!$C$9:$C$87,0)+RIGHT($E50),0)\n+X$11*OFFSET('Efficiency Distributions'!$E$10,MATCH($C41,'Efficiency Distributions'!$C$9:$C$87,0)+RIGHT($E50),0))\n/SUM(X$10:X$11)","v":0.31240478236597186},{"$f":"IF(INDEX(PC_MAPPING,RIGHT($C41,1),MATCH($E$2,'Data by Building Type'!$D$22:$F$22,0))=\"Yes\",1,0)*\n(Y$10*OFFSET('Efficiency Distributions'!$D$10,MATCH($C41,'Efficiency Distributions'!$C$9:$C$87,0)+RIGHT($E50),0)\n+Y$11*OFFSET('Efficiency Distributions'!$E$10,MATCH($C41,'Efficiency Distributions'!$C$9:$C$87,0)+RIGHT($E50),0))\n/SUM(Y$10:Y$11)","v":0.32158852299604412},{"$f":"IF(INDEX(PC_MAPPING,RIGHT($C41,1),MATCH($E$2,'Data by Building Type'!$D$22:$F$22,0))=\"Yes\",1,0)*\n(Z$10*OFFSET('Efficiency Distributions'!$D$10,MATCH($C41,'Efficiency Distributions'!$C$9:$C$87,0)+RIGHT($E50),0)\n+Z$11*OFFSET('Efficiency Distributions'!$E$10,MATCH($C41,'Efficiency Distributions'!$C$9:$C$87,0)+RIGHT($E50),0))\n/SUM(Z$10:Z$11)","v":0.32174360769107796},{"$f":"IF(INDEX(PC_MAPPING,RIGHT($C41,1),MATCH($E$2,'Data by Building Type'!$D$22:$F$22,0))=\"Yes\",1,0)*\n(AA$10*OFFSET('Efficiency Distributions'!$D$10,MATCH($C41,'Efficiency Distributions'!$C$9:$C$87,0)+RIGHT($E50),0)\n+AA$11*OFFSET('Efficiency Distributions'!$E$10,MATCH($C41,'Efficiency Distributions'!$C$9:$C$87,0)+RIGHT($E50),0))\n/SUM(AA$10:AA$11)","v":0.32032089157913479},{"$f":"IF(INDEX(PC_MAPPING,RIGHT($C41,1),MATCH($E$2,'Data by Building Type'!$D$22:$F$22,0))=\"Yes\",1,0)*\n(AB$10*OFFSET('Efficiency Distributions'!$D$10,MATCH($C41,'Efficiency Distributions'!$C$9:$C$87,0)+RIGHT($E50),0)\n+AB$11*OFFSET('Efficiency Distributions'!$E$10,MATCH($C41,'Efficiency Distributions'!$C$9:$C$87,0)+RIGHT($E50),0))\n/SUM(AB$10:AB$11)","v":0.3122150485474266},{"$f":"IF(INDEX(PC_MAPPING,RIGHT($C41,1),MATCH($E$2,'Data by Building Type'!$D$22:$F$22,0))=\"Yes\",1,0)*\n(AC$10*OFFSET('Efficiency Distributions'!$D$10,MATCH($C41,'Efficiency Distributions'!$C$9:$C$87,0)+RIGHT($E50),0)\n+AC$11*OFFSET('Efficiency Distributions'!$E$10,MATCH($C41,'Efficiency Distributions'!$C$9:$C$87,0)+RIGHT($E50),0))\n/SUM(AC$10:AC$11)","v":0.31278127915127296},{"$f":"IF(INDEX(PC_MAPPING,RIGHT($C41,1),MATCH($E$2,'Data by Building Type'!$D$22:$F$22,0))=\"Yes\",1,0)*\n(AD$10*OFFSET('Efficiency Distributions'!$D$10,MATCH($C41,'Efficiency Distributions'!$C$9:$C$87,0)+RIGHT($E50),0)\n+AD$11*OFFSET('Efficiency Distributions'!$E$10,MATCH($C41,'Efficiency Distributions'!$C$9:$C$87,0)+RIGHT($E50),0))\n/SUM(AD$10:AD$11)","v":0.30580266789101651},{"$f":"IF(INDEX(PC_MAPPING,RIGHT($C41,1),MATCH($E$2,'Data by Building Type'!$D$22:$F$22,0))=\"Yes\",1,0)*\n(AE$10*OFFSET('Efficiency Distributions'!$D$10,MATCH($C41,'Efficiency Distributions'!$C$9:$C$87,0)+RIGHT($E50),0)\n+AE$11*OFFSET('Efficiency Distributions'!$E$10,MATCH($C41,'Efficiency Distributions'!$C$9:$C$87,0)+RIGHT($E50),0))\n/SUM(AE$10:AE$11)","v":0.31639405068323423},{"$f":"IF(INDEX(PC_MAPPING,RIGHT($C41,1),MATCH($E$2,'Data by Building Type'!$D$22:$F$22,0))=\"Yes\",1,0)*\n(AF$10*OFFSET('Efficiency Distributions'!$D$10,MATCH($C41,'Efficiency Distributions'!$C$9:$C$87,0)+RIGHT($E50),0)\n+AF$11*OFFSET('Efficiency Distributions'!$E$10,MATCH($C41,'Efficiency Distributions'!$C$9:$C$87,0)+RIGHT($E50),0))\n/SUM(AF$10:AF$11)","v":0.33978937988451802},{"$f":"IF(INDEX(PC_MAPPING,RIGHT($C41,1),MATCH($E$2,'Data by Building Type'!$D$22:$F$22,0))=\"Yes\",1,0)*\n(AG$10*OFFSET('Efficiency Distributions'!$D$10,MATCH($C41,'Efficiency Distributions'!$C$9:$C$87,0)+RIGHT($E50),0)\n+AG$11*OFFSET('Efficiency Distributions'!$E$10,MATCH($C41,'Efficiency Distributions'!$C$9:$C$87,0)+RIGHT($E50),0))\n/SUM(AG$10:AG$11)","v":0.34977791212806009},{"$f":"IF(INDEX(PC_MAPPING,RIGHT($C41,1),MATCH($E$2,'Data by Building Type'!$D$22:$F$22,0))=\"Yes\",1,0)*\n(AH$10*OFFSET('Efficiency Distributions'!$D$10,MATCH($C41,'Efficiency Distributions'!$C$9:$C$87,0)+RIGHT($E50),0)\n+AH$11*OFFSET('Efficiency Distributions'!$E$10,MATCH($C41,'Efficiency Distributions'!$C$9:$C$87,0)+RIGHT($E50),0))\n/SUM(AH$10:AH$11)","v":0.34977791212806009},{"$f":"IF(INDEX(PC_MAPPING,RIGHT($C41,1),MATCH($E$2,'Data by Building Type'!$D$22:$F$22,0))=\"Yes\",1,0)*\n(AI$10*OFFSET('Efficiency Distributions'!$D$10,MATCH($C41,'Efficiency Distributions'!$C$9:$C$87,0)+RIGHT($E50),0)\n+AI$11*OFFSET('Efficiency Distributions'!$E$10,MATCH($C41,'Efficiency Distributions'!$C$9:$C$87,0)+RIGHT($E50),0))\n/SUM(AI$10:AI$11)","v":0.34977791212806009},{"$f":"IF(INDEX(PC_MAPPING,RIGHT($C41,1),MATCH($E$2,'Data by Building Type'!$D$22:$F$22,0))=\"Yes\",1,0)*\n(AJ$10*OFFSET('Efficiency Distributions'!$D$10,MATCH($C41,'Efficiency Distributions'!$C$9:$C$87,0)+RIGHT($E50),0)\n+AJ$11*OFFSET('Efficiency Distributions'!$E$10,MATCH($C41,'Efficiency Distributions'!$C$9:$C$87,0)+RIGHT($E50),0))\n/SUM(AJ$10:AJ$11)","v":0.34561696976658746},{"$f":"IF(INDEX(PC_MAPPING,RIGHT($C41,1),MATCH($E$2,'Data by Building Type'!$D$22:$F$22,0))=\"Yes\",1,0)*\n(AK$10*OFFSET('Efficiency Distributions'!$D$10,MATCH($C41,'Efficiency Distributions'!$C$9:$C$87,0)+RIGHT($E50),0)\n+AK$11*OFFSET('Efficiency Distributions'!$E$10,MATCH($C41,'Efficiency Distributions'!$C$9:$C$87,0)+RIGHT($E50),0))\n/SUM(AK$10:AK$11)","v":0.28744023428983634},{"$f":"IF(INDEX(PC_MAPPING,RIGHT($C41,1),MATCH($E$2,'Data by Building Type'!$D$22:$F$22,0))=\"Yes\",1,0)*\n(AL$10*OFFSET('Efficiency Distributions'!$D$10,MATCH($C41,'Efficiency Distributions'!$C$9:$C$87,0)+RIGHT($E50),0)\n+AL$11*OFFSET('Efficiency Distributions'!$E$10,MATCH($C41,'Efficiency Distributions'!$C$9:$C$87,0)+RIGHT($E50),0))\n/SUM(AL$10:AL$11)","v":0.28918128925303604},{"$f":"IF(INDEX(PC_MAPPING,RIGHT($C41,1),MATCH($E$2,'Data by Building Type'!$D$22:$F$22,0))=\"Yes\",1,0)*\n(AM$10*OFFSET('Efficiency Distributions'!$D$10,MATCH($C41,'Efficiency Distributions'!$C$9:$C$87,0)+RIGHT($E50),0)\n+AM$11*OFFSET('Efficiency Distributions'!$E$10,MATCH($C41,'Efficiency Distributions'!$C$9:$C$87,0)+RIGHT($E50),0))\n/SUM(AM$10:AM$11)","v":0.28170139946762973},{"$f":"IF(INDEX(PC_MAPPING,RIGHT($C41,1),MATCH($E$2,'Data by Building Type'!$D$22:$F$22,0))=\"Yes\",1,0)*\n(AN$10*OFFSET('Efficiency Distributions'!$D$10,MATCH($C41,'Efficiency Distributions'!$C$9:$C$87,0)+RIGHT($E50),0)\n+AN$11*OFFSET('Efficiency Distributions'!$E$10,MATCH($C41,'Efficiency Distributions'!$C$9:$C$87,0)+RIGHT($E50),0))\n/SUM(AN$10:AN$11)","v":0.28230530980545671},{"$f":"IF(INDEX(PC_MAPPING,RIGHT($C41,1),MATCH($E$2,'Data by Building Type'!$D$22:$F$22,0))=\"Yes\",1,0)*\n(AO$10*OFFSET('Efficiency Distributions'!$D$10,MATCH($C41,'Efficiency Distributions'!$C$9:$C$87,0)+RIGHT($E50),0)\n+AO$11*OFFSET('Efficiency Distributions'!$E$10,MATCH($C41,'Efficiency Distributions'!$C$9:$C$87,0)+RIGHT($E50),0))\n/SUM(AO$10:AO$11)","v":0.27937446754384759},{"$f":"IF(INDEX(PC_MAPPING,RIGHT($C41,1),MATCH($E$2,'Data by Building Type'!$D$22:$F$22,0))=\"Yes\",1,0)*\n(AP$10*OFFSET('Efficiency Distributions'!$D$10,MATCH($C41,'Efficiency Distributions'!$C$9:$C$87,0)+RIGHT($E50),0)\n+AP$11*OFFSET('Efficiency Distributions'!$E$10,MATCH($C41,'Efficiency Distributions'!$C$9:$C$87,0)+RIGHT($E50),0))\n/SUM(AP$10:AP$11)","v":0.28066383270394962},{"$f":"IF(INDEX(PC_MAPPING,RIGHT($C41,1),MATCH($E$2,'Data by Building Type'!$D$22:$F$22,0))=\"Yes\",1,0)*\n(AQ$10*OFFSET('Efficiency Distributions'!$D$10,MATCH($C41,'Efficiency Distributions'!$C$9:$C$87,0)+RIGHT($E50),0)\n+AQ$11*OFFSET('Efficiency Distributions'!$E$10,MATCH($C41,'Efficiency Distributions'!$C$9:$C$87,0)+RIGHT($E50),0))\n/SUM(AQ$10:AQ$11)","v":0.28110170487977715},{"$f":"IF(INDEX(PC_MAPPING,RIGHT($C41,1),MATCH($E$2,'Data by Building Type'!$D$22:$F$22,0))=\"Yes\",1,0)*\n(AR$10*OFFSET('Efficiency Distributions'!$D$10,MATCH($C41,'Efficiency Distributions'!$C$9:$C$87,0)+RIGHT($E50),0)\n+AR$11*OFFSET('Efficiency Distributions'!$E$10,MATCH($C41,'Efficiency Distributions'!$C$9:$C$87,0)+RIGHT($E50),0))\n/SUM(AR$10:AR$11)","v":0.28247991330525135},{"$f":"IF(INDEX(PC_MAPPING,RIGHT($C41,1),MATCH($E$2,'Data by Building Type'!$D$22:$F$22,0))=\"Yes\",1,0)*\n(AS$10*OFFSET('Efficiency Distributions'!$D$10,MATCH($C41,'Efficiency Distributions'!$C$9:$C$87,0)+RIGHT($E50),0)\n+AS$11*OFFSET('Efficiency Distributions'!$E$10,MATCH($C41,'Efficiency Distributions'!$C$9:$C$87,0)+RIGHT($E50),0))\n/SUM(AS$10:AS$11)","v":0.28246160801376563},{"$f":"IF(INDEX(PC_MAPPING,RIGHT($C41,1),MATCH($E$2,'Data by Building Type'!$D$22:$F$22,0))=\"Yes\",1,0)*\n(AT$10*OFFSET('Efficiency Distributions'!$D$10,MATCH($C41,'Efficiency Distributions'!$C$9:$C$87,0)+RIGHT($E50),0)\n+AT$11*OFFSET('Efficiency Distributions'!$E$10,MATCH($C41,'Efficiency Distributions'!$C$9:$C$87,0)+RIGHT($E50),0))\n/SUM(AT$10:AT$11)","v":0.2817311052340602},{"$f":"IF(INDEX(PC_MAPPING,RIGHT($C41,1),MATCH($E$2,'Data by Building Type'!$D$22:$F$22,0))=\"Yes\",1,0)*\n(AU$10*OFFSET('Efficiency Distributions'!$D$10,MATCH($C41,'Efficiency Distributions'!$C$9:$C$87,0)+RIGHT($E50),0)\n+AU$11*OFFSET('Efficiency Distributions'!$E$10,MATCH($C41,'Efficiency Distributions'!$C$9:$C$87,0)+RIGHT($E50),0))\n/SUM(AU$10:AU$11)","v":0.28258896604745393},{"$f":"IF(INDEX(PC_MAPPING,RIGHT($C41,1),MATCH($E$2,'Data by Building Type'!$D$22:$F$22,0))=\"Yes\",1,0)*\n(AV$10*OFFSET('Efficiency Distributions'!$D$10,MATCH($C41,'Efficiency Distributions'!$C$9:$C$87,0)+RIGHT($E50),0)\n+AV$11*OFFSET('Efficiency Distributions'!$E$10,MATCH($C41,'Efficiency Distributions'!$C$9:$C$87,0)+RIGHT($E50),0))\n/SUM(AV$10:AV$11)","v":0.29442726512866163},{"$f":"IF(INDEX(PC_MAPPING,RIGHT($C41,1),MATCH($E$2,'Data by Building Type'!$D$22:$F$22,0))=\"Yes\",1,0)*\n(AW$10*OFFSET('Efficiency Distributions'!$D$10,MATCH($C41,'Efficiency Distributions'!$C$9:$C$87,0)+RIGHT($E50),0)\n+AW$11*OFFSET('Efficiency Distributions'!$E$10,MATCH($C41,'Efficiency Distributions'!$C$9:$C$87,0)+RIGHT($E50),0))\n/SUM(AW$10:AW$11)","v":0.29372918379624569},{"$f":"IF(INDEX(PC_MAPPING,RIGHT($C41,1),MATCH($E$2,'Data by Building Type'!$D$22:$F$22,0))=\"Yes\",1,0)*\n(AX$10*OFFSET('Efficiency Distributions'!$D$10,MATCH($C41,'Efficiency Distributions'!$C$9:$C$87,0)+RIGHT($E50),0)\n+AX$11*OFFSET('Efficiency Distributions'!$E$10,MATCH($C41,'Efficiency Distributions'!$C$9:$C$87,0)+RIGHT($E50),0))\n/SUM(AX$10:AX$11)","v":0.29725266625044933},{"$f":"IF(INDEX(PC_MAPPING,RIGHT($C41,1),MATCH($E$2,'Data by Building Type'!$D$22:$F$22,0))=\"Yes\",1,0)*\n(AY$10*OFFSET('Efficiency Distributions'!$D$10,MATCH($C41,'Efficiency Distributions'!$C$9:$C$87,0)+RIGHT($E50),0)\n+AY$11*OFFSET('Efficiency Distributions'!$E$10,MATCH($C41,'Efficiency Distributions'!$C$9:$C$87,0)+RIGHT($E50),0))\n/SUM(AY$10:AY$11)","v":0.2983217698291239},{"$f":"IF(INDEX(PC_MAPPING,RIGHT($C41,1),MATCH($E$2,'Data by Building Type'!$D$22:$F$22,0))=\"Yes\",1,0)*\n(AZ$10*OFFSET('Efficiency Distributions'!$D$10,MATCH($C41,'Efficiency Distributions'!$C$9:$C$87,0)+RIGHT($E50),0)\n+AZ$11*OFFSET('Efficiency Distributions'!$E$10,MATCH($C41,'Efficiency Distributions'!$C$9:$C$87,0)+RIGHT($E50),0))\n/SUM(AZ$10:AZ$11)","v":0.2967177354181727},{"$f":"IF(INDEX(PC_MAPPING,RIGHT($C41,1),MATCH($E$2,'Data by Building Type'!$D$22:$F$22,0))=\"Yes\",1,0)*\n(BA$10*OFFSET('Efficiency Distributions'!$D$10,MATCH($C41,'Efficiency Distributions'!$C$9:$C$87,0)+RIGHT($E50),0)\n+BA$11*OFFSET('Efficiency Distributions'!$E$10,MATCH($C41,'Efficiency Distributions'!$C$9:$C$87,0)+RIGHT($E50),0))\n/SUM(BA$10:BA$11)","v":0.29425138148544316},{"$f":"IF(INDEX(PC_MAPPING,RIGHT($C41,1),MATCH($E$2,'Data by Building Type'!$D$22:$F$22,0))=\"Yes\",1,0)*\n(BB$10*OFFSET('Efficiency Distributions'!$D$10,MATCH($C41,'Efficiency Distributions'!$C$9:$C$87,0)+RIGHT($E50),0)\n+BB$11*OFFSET('Efficiency Distributions'!$E$10,MATCH($C41,'Efficiency Distributions'!$C$9:$C$87,0)+RIGHT($E50),0))\n/SUM(BB$10:BB$11)","v":0.28897374859529507},{"$f":"IF(INDEX(PC_MAPPING,RIGHT($C41,1),MATCH($E$2,'Data by Building Type'!$D$22:$F$22,0))=\"Yes\",1,0)*\n(BC$10*OFFSET('Efficiency Distributions'!$D$10,MATCH($C41,'Efficiency Distributions'!$C$9:$C$87,0)+RIGHT($E50),0)\n+BC$11*OFFSET('Efficiency Distributions'!$E$10,MATCH($C41,'Efficiency Distributions'!$C$9:$C$87,0)+RIGHT($E50),0))\n/SUM(BC$10:BC$11)","v":0.28790358739134597},{"$f":"IF(INDEX(PC_MAPPING,RIGHT($C41,1),MATCH($E$2,'Data by Building Type'!$D$22:$F$22,0))=\"Yes\",1,0)*\n(BD$10*OFFSET('Efficiency Distributions'!$D$10,MATCH($C41,'Efficiency Distributions'!$C$9:$C$87,0)+RIGHT($E50),0)\n+BD$11*OFFSET('Efficiency Distributions'!$E$10,MATCH($C41,'Efficiency Distributions'!$C$9:$C$87,0)+RIGHT($E50),0))\n/SUM(BD$10:BD$11)","v":0.29389204381809958},{"$f":"IF(INDEX(PC_MAPPING,RIGHT($C41,1),MATCH($E$2,'Data by Building Type'!$D$22:$F$22,0))=\"Yes\",1,0)*\n(BE$10*OFFSET('Efficiency Distributions'!$D$10,MATCH($C41,'Efficiency Distributions'!$C$9:$C$87,0)+RIGHT($E50),0)\n+BE$11*OFFSET('Efficiency Distributions'!$E$10,MATCH($C41,'Efficiency Distributions'!$C$9:$C$87,0)+RIGHT($E50),0))\n/SUM(BE$10:BE$11)","v":0.29807872624986176},{"$f":"IF(INDEX(PC_MAPPING,RIGHT($C41,1),MATCH($E$2,'Data by Building Type'!$D$22:$F$22,0))=\"Yes\",1,0)*\n(BF$10*OFFSET('Efficiency Distributions'!$D$10,MATCH($C41,'Efficiency Distributions'!$C$9:$C$87,0)+RIGHT($E50),0)\n+BF$11*OFFSET('Efficiency Distributions'!$E$10,MATCH($C41,'Efficiency Distributions'!$C$9:$C$87,0)+RIGHT($E50),0))\n/SUM(BF$10:BF$11)","v":0.30640092977298805},{"$f":"IF(INDEX(PC_MAPPING,RIGHT($C41,1),MATCH($E$2,'Data by Building Type'!$D$22:$F$22,0))=\"Yes\",1,0)*\n(BG$10*OFFSET('Efficiency Distributions'!$D$10,MATCH($C41,'Efficiency Distributions'!$C$9:$C$87,0)+RIGHT($E50),0)\n+BG$11*OFFSET('Efficiency Distributions'!$E$10,MATCH($C41,'Efficiency Distributions'!$C$9:$C$87,0)+RIGHT($E50),0))\n/SUM(BG$10:BG$11)","v":0.3079406553613605}]
[null,null,null,null,"EL6",{"$f":"IF(INDEX(PC_MAPPING,RIGHT($C41,1),MATCH($E$2,'Data by Building Type'!$D$22:$F$22,0))=\"Yes\",1,0)*\n(F$10*OFFSET('Efficiency Distributions'!$D$10,MATCH($C41,'Efficiency Distributions'!$C$9:$C$87,0)+RIGHT($E51),0)\n+F$11*OFFSET('Efficiency Distributions'!$E$10,MATCH($C41,'Efficiency Distributions'!$C$9:$C$87,0)+RIGHT($E51),0))\n/SUM(F$10:F$11)","v":0},{"$f":"IF(INDEX(PC_MAPPING,RIGHT($C41,1),MATCH($E$2,'Data by Building Type'!$D$22:$F$22,0))=\"Yes\",1,0)*\n(G$10*OFFSET('Efficiency Distributions'!$D$10,MATCH($C41,'Efficiency Distributions'!$C$9:$C$87,0)+RIGHT($E51),0)\n+G$11*OFFSET('Efficiency Distributions'!$E$10,MATCH($C41,'Efficiency Distributions'!$C$9:$C$87,0)+RIGHT($E51),0))\n/SUM(G$10:G$11)","v":0},{"$f":"IF(INDEX(PC_MAPPING,RIGHT($C41,1),MATCH($E$2,'Data by Building Type'!$D$22:$F$22,0))=\"Yes\",1,0)*\n(H$10*OFFSET('Efficiency Distributions'!$D$10,MATCH($C41,'Efficiency Distributions'!$C$9:$C$87,0)+RIGHT($E51),0)\n+H$11*OFFSET('Efficiency Distributions'!$E$10,MATCH($C41,'Efficiency Distributions'!$C$9:$C$87,0)+RIGHT($E51),0))\n/SUM(H$10:H$11)","v":0},{"$f":"IF(INDEX(PC_MAPPING,RIGHT($C41,1),MATCH($E$2,'Data by Building Type'!$D$22:$F$22,0))=\"Yes\",1,0)*\n(I$10*OFFSET('Efficiency Distributions'!$D$10,MATCH($C41,'Efficiency Distributions'!$C$9:$C$87,0)+RIGHT($E51),0)\n+I$11*OFFSET('Efficiency Distributions'!$E$10,MATCH($C41,'Efficiency Distributions'!$C$9:$C$87,0)+RIGHT($E51),0))\n/SUM(I$10:I$11)","v":0},{"$f":"IF(INDEX(PC_MAPPING,RIGHT($C41,1),MATCH($E$2,'Data by Building Type'!$D$22:$F$22,0))=\"Yes\",1,0)*\n(J$10*OFFSET('Efficiency Distributions'!$D$10,MATCH($C41,'Efficiency Distributions'!$C$9:$C$87,0)+RIGHT($E51),0)\n+J$11*OFFSET('Efficiency Distributions'!$E$10,MATCH($C41,'Efficiency Distributions'!$C$9:$C$87,0)+RIGHT($E51),0))\n/SUM(J$10:J$11)","v":0},{"$f":"IF(INDEX(PC_MAPPING,RIGHT($C41,1),MATCH($E$2,'Data by Building Type'!$D$22:$F$22,0))=\"Yes\",1,0)*\n(K$10*OFFSET('Efficiency Distributions'!$D$10,MATCH($C41,'Efficiency Distributions'!$C$9:$C$87,0)+RIGHT($E51),0)\n+K$11*OFFSET('Efficiency Distributions'!$E$10,MATCH($C41,'Efficiency Distributions'!$C$9:$C$87,0)+RIGHT($E51),0))\n/SUM(K$10:K$11)","v":0},{"$f":"IF(INDEX(PC_MAPPING,RIGHT($C41,1),MATCH($E$2,'Data by Building Type'!$D$22:$F$22,0))=\"Yes\",1,0)*\n(L$10*OFFSET('Efficiency Distributions'!$D$10,MATCH($C41,'Efficiency Distributions'!$C$9:$C$87,0)+RIGHT($E51),0)\n+L$11*OFFSET('Efficiency Distributions'!$E$10,MATCH($C41,'Efficiency Distributions'!$C$9:$C$87,0)+RIGHT($E51),0))\n/SUM(L$10:L$11)","v":0},{"$f":"IF(INDEX(PC_MAPPING,RIGHT($C41,1),MATCH($E$2,'Data by Building Type'!$D$22:$F$22,0))=\"Yes\",1,0)*\n(M$10*OFFSET('Efficiency Distributions'!$D$10,MATCH($C41,'Efficiency Distributions'!$C$9:$C$87,0)+RIGHT($E51),0)\n+M$11*OFFSET('Efficiency Distributions'!$E$10,MATCH($C41,'Efficiency Distributions'!$C$9:$C$87,0)+RIGHT($E51),0))\n/SUM(M$10:M$11)","v":0},{"$f":"IF(INDEX(PC_MAPPING,RIGHT($C41,1),MATCH($E$2,'Data by Building Type'!$D$22:$F$22,0))=\"Yes\",1,0)*\n(N$10*OFFSET('Efficiency Distributions'!$D$10,MATCH($C41,'Efficiency Distributions'!$C$9:$C$87,0)+RIGHT($E51),0)\n+N$11*OFFSET('Efficiency Distributions'!$E$10,MATCH($C41,'Efficiency Distributions'!$C$9:$C$87,0)+RIGHT($E51),0))\n/SUM(N$10:N$11)","v":0},{"$f":"IF(INDEX(PC_MAPPING,RIGHT($C41,1),MATCH($E$2,'Data by Building Type'!$D$22:$F$22,0))=\"Yes\",1,0)*\n(O$10*OFFSET('Efficiency Distributions'!$D$10,MATCH($C41,'Efficiency Distributions'!$C$9:$C$87,0)+RIGHT($E51),0)\n+O$11*OFFSET('Efficiency Distributions'!$E$10,MATCH($C41,'Efficiency Distributions'!$C$9:$C$87,0)+RIGHT($E51),0))\n/SUM(O$10:O$11)","v":0},{"$f":"IF(INDEX(PC_MAPPING,RIGHT($C41,1),MATCH($E$2,'Data by Building Type'!$D$22:$F$22,0))=\"Yes\",1,0)*\n(P$10*OFFSET('Efficiency Distributions'!$D$10,MATCH($C41,'Efficiency Distributions'!$C$9:$C$87,0)+RIGHT($E51),0)\n+P$11*OFFSET('Efficiency Distributions'!$E$10,MATCH($C41,'Efficiency Distributions'!$C$9:$C$87,0)+RIGHT($E51),0))\n/SUM(P$10:P$11)","v":0},{"$f":"IF(INDEX(PC_MAPPING,RIGHT($C41,1),MATCH($E$2,'Data by Building Type'!$D$22:$F$22,0))=\"Yes\",1,0)*\n(Q$10*OFFSET('Efficiency Distributions'!$D$10,MATCH($C41,'Efficiency Distributions'!$C$9:$C$87,0)+RIGHT($E51),0)\n+Q$11*OFFSET('Efficiency Distributions'!$E$10,MATCH($C41,'Efficiency Distributions'!$C$9:$C$87,0)+RIGHT($E51),0))\n/SUM(Q$10:Q$11)","v":0},{"$f":"IF(INDEX(PC_MAPPING,RIGHT($C41,1),MATCH($E$2,'Data by Building Type'!$D$22:$F$22,0))=\"Yes\",1,0)*\n(R$10*OFFSET('Efficiency Distributions'!$D$10,MATCH($C41,'Efficiency Distributions'!$C$9:$C$87,0)+RIGHT($E51),0)\n+R$11*OFFSET('Efficiency Distributions'!$E$10,MATCH($C41,'Efficiency Distributions'!$C$9:$C$87,0)+RIGHT($E51),0))\n/SUM(R$10:R$11)","v":0},{"$f":"IF(INDEX(PC_MAPPING,RIGHT($C41,1),MATCH($E$2,'Data by Building Type'!$D$22:$F$22,0))=\"Yes\",1,0)*\n(S$10*OFFSET('Efficiency Distributions'!$D$10,MATCH($C41,'Efficiency Distributions'!$C$9:$C$87,0)+RIGHT($E51),0)\n+S$11*OFFSET('Efficiency Distributions'!$E$10,MATCH($C41,'Efficiency Distributions'!$C$9:$C$87,0)+RIGHT($E51),0))\n/SUM(S$10:S$11)","v":0},{"$f":"IF(INDEX(PC_MAPPING,RIGHT($C41,1),MATCH($E$2,'Data by Building Type'!$D$22:$F$22,0))=\"Yes\",1,0)*\n(T$10*OFFSET('Efficiency Distributions'!$D$10,MATCH($C41,'Efficiency Distributions'!$C$9:$C$87,0)+RIGHT($E51),0)\n+T$11*OFFSET('Efficiency Distributions'!$E$10,MATCH($C41,'Efficiency Distributions'!$C$9:$C$87,0)+RIGHT($E51),0))\n/SUM(T$10:T$11)","v":0},{"$f":"IF(INDEX(PC_MAPPING,RIGHT($C41,1),MATCH($E$2,'Data by Building Type'!$D$22:$F$22,0))=\"Yes\",1,0)*\n(U$10*OFFSET('Efficiency Distributions'!$D$10,MATCH($C41,'Efficiency Distributions'!$C$9:$C$87,0)+RIGHT($E51),0)\n+U$11*OFFSET('Efficiency Distributions'!$E$10,MATCH($C41,'Efficiency Distributions'!$C$9:$C$87,0)+RIGHT($E51),0))\n/SUM(U$10:U$11)","v":0},{"$f":"IF(INDEX(PC_MAPPING,RIGHT($C41,1),MATCH($E$2,'Data by Building Type'!$D$22:$F$22,0))=\"Yes\",1,0)*\n(V$10*OFFSET('Efficiency Distributions'!$D$10,MATCH($C41,'Efficiency Distributions'!$C$9:$C$87,0)+RIGHT($E51),0)\n+V$11*OFFSET('Efficiency Distributions'!$E$10,MATCH($C41,'Efficiency Distributions'!$C$9:$C$87,0)+RIGHT($E51),0))\n/SUM(V$10:V$11)","v":0},{"$f":"IF(INDEX(PC_MAPPING,RIGHT($C41,1),MATCH($E$2,'Data by Building Type'!$D$22:$F$22,0))=\"Yes\",1,0)*\n(W$10*OFFSET('Efficiency Distributions'!$D$10,MATCH($C41,'Efficiency Distributions'!$C$9:$C$87,0)+RIGHT($E51),0)\n+W$11*OFFSET('Efficiency Distributions'!$E$10,MATCH($C41,'Efficiency Distributions'!$C$9:$C$87,0)+RIGHT($E51),0))\n/SUM(W$10:W$11)","v":0},{"$f":"IF(INDEX(PC_MAPPING,RIGHT($C41,1),MATCH($E$2,'Data by Building Type'!$D$22:$F$22,0))=\"Yes\",1,0)*\n(X$10*OFFSET('Efficiency Distributions'!$D$10,MATCH($C41,'Efficiency Distributions'!$C$9:$C$87,0)+RIGHT($E51),0)\n+X$11*OFFSET('Efficiency Distributions'!$E$10,MATCH($C41,'Efficiency Distributions'!$C$9:$C$87,0)+RIGHT($E51),0))\n/SUM(X$10:X$11)","v":0},{"$f":"IF(INDEX(PC_MAPPING,RIGHT($C41,1),MATCH($E$2,'Data by Building Type'!$D$22:$F$22,0))=\"Yes\",1,0)*\n(Y$10*OFFSET('Efficiency Distributions'!$D$10,MATCH($C41,'Efficiency Distributions'!$C$9:$C$87,0)+RIGHT($E51),0)\n+Y$11*OFFSET('Efficiency Distributions'!$E$10,MATCH($C41,'Efficiency Distributions'!$C$9:$C$87,0)+RIGHT($E51),0))\n/SUM(Y$10:Y$11)","v":0},{"$f":"IF(INDEX(PC_MAPPING,RIGHT($C41,1),MATCH($E$2,'Data by Building Type'!$D$22:$F$22,0))=\"Yes\",1,0)*\n(Z$10*OFFSET('Efficiency Distributions'!$D$10,MATCH($C41,'Efficiency Distributions'!$C$9:$C$87,0)+RIGHT($E51),0)\n+Z$11*OFFSET('Efficiency Distributions'!$E$10,MATCH($C41,'Efficiency Distributions'!$C$9:$C$87,0)+RIGHT($E51),0))\n/SUM(Z$10:Z$11)","v":0},{"$f":"IF(INDEX(PC_MAPPING,RIGHT($C41,1),MATCH($E$2,'Data by Building Type'!$D$22:$F$22,0))=\"Yes\",1,0)*\n(AA$10*OFFSET('Efficiency Distributions'!$D$10,MATCH($C41,'Efficiency Distributions'!$C$9:$C$87,0)+RIGHT($E51),0)\n+AA$11*OFFSET('Efficiency Distributions'!$E$10,MATCH($C41,'Efficiency Distributions'!$C$9:$C$87,0)+RIGHT($E51),0))\n/SUM(AA$10:AA$11)","v":0},{"$f":"IF(INDEX(PC_MAPPING,RIGHT($C41,1),MATCH($E$2,'Data by Building Type'!$D$22:$F$22,0))=\"Yes\",1,0)*\n(AB$10*OFFSET('Efficiency Distributions'!$D$10,MATCH($C41,'Efficiency Distributions'!$C$9:$C$87,0)+RIGHT($E51),0)\n+AB$11*OFFSET('Efficiency Distributions'!$E$10,MATCH($C41,'Efficiency Distributions'!$C$9:$C$87,0)+RIGHT($E51),0))\n/SUM(AB$10:AB$11)","v":0},{"$f":"IF(INDEX(PC_MAPPING,RIGHT($C41,1),MATCH($E$2,'Data by Building Type'!$D$22:$F$22,0))=\"Yes\",1,0)*\n(AC$10*OFFSET('Efficiency Distributions'!$D$10,MATCH($C41,'Efficiency Distributions'!$C$9:$C$87,0)+RIGHT($E51),0)\n+AC$11*OFFSET('Efficiency Distributions'!$E$10,MATCH($C41,'Efficiency Distributions'!$C$9:$C$87,0)+RIGHT($E51),0))\n/SUM(AC$10:AC$11)","v":0},{"$f":"IF(INDEX(PC_MAPPING,RIGHT($C41,1),MATCH($E$2,'Data by Building Type'!$D$22:$F$22,0))=\"Yes\",1,0)*\n(AD$10*OFFSET('Efficiency Distributions'!$D$10,MATCH($C41,'Efficiency Distributions'!$C$9:$C$87,0)+RIGHT($E51),0)\n+AD$11*OFFSET('Efficiency Distributions'!$E$10,MATCH($C41,'Efficiency Distributions'!$C$9:$C$87,0)+RIGHT($E51),0))\n/SUM(AD$10:AD$11)","v":0},{"$f":"IF(INDEX(PC_MAPPING,RIGHT($C41,1),MATCH($E$2,'Data by Building Type'!$D$22:$F$22,0))=\"Yes\",1,0)*\n(AE$10*OFFSET('Efficiency Distributions'!$D$10,MATCH($C41,'Efficiency Distributions'!$C$9:$C$87,0)+RIGHT($E51),0)\n+AE$11*OFFSET('Efficiency Distributions'!$E$10,MATCH($C41,'Efficiency Distributions'!$C$9:$C$87,0)+RIGHT($E51),0))\n/SUM(AE$10:AE$11)","v":0},{"$f":"IF(INDEX(PC_MAPPING,RIGHT($C41,1),MATCH($E$2,'Data by Building Type'!$D$22:$F$22,0))=\"Yes\",1,0)*\n(AF$10*OFFSET('Efficiency Distributions'!$D$10,MATCH($C41,'Efficiency Distributions'!$C$9:$C$87,0)+RIGHT($E51),0)\n+AF$11*OFFSET('Efficiency Distributions'!$E$10,MATCH($C41,'Efficiency Distributions'!$C$9:$C$87,0)+RIGHT($E51),0))\n/SUM(AF$10:AF$11)","v":0},{"$f":"IF(INDEX(PC_MAPPING,RIGHT($C41,1),MATCH($E$2,'Data by Building Type'!$D$22:$F$22,0))=\"Yes\",1,0)*\n(AG$10*OFFSET('Efficiency Distributions'!$D$10,MATCH($C41,'Efficiency Distributions'!$C$9:$C$87,0)+RIGHT($E51),0)\n+AG$11*OFFSET('Efficiency Distributions'!$E$10,MATCH($C41,'Efficiency Distributions'!$C$9:$C$87,0)+RIGHT($E51),0))\n/SUM(AG$10:AG$11)","v":0},{"$f":"IF(INDEX(PC_MAPPING,RIGHT($C41,1),MATCH($E$2,'Data by Building Type'!$D$22:$F$22,0))=\"Yes\",1,0)*\n(AH$10*OFFSET('Efficiency Distributions'!$D$10,MATCH($C41,'Efficiency Distributions'!$C$9:$C$87,0)+RIGHT($E51),0)\n+AH$11*OFFSET('Efficiency Distributions'!$E$10,MATCH($C41,'Efficiency Distributions'!$C$9:$C$87,0)+RIGHT($E51),0))\n/SUM(AH$10:AH$11)","v":0},{"$f":"IF(INDEX(PC_MAPPING,RIGHT($C41,1),MATCH($E$2,'Data by Building Type'!$D$22:$F$22,0))=\"Yes\",1,0)*\n(AI$10*OFFSET('Efficiency Distributions'!$D$10,MATCH($C41,'Efficiency Distributions'!$C$9:$C$87,0)+RIGHT($E51),0)\n+AI$11*OFFSET('Efficiency Distributions'!$E$10,MATCH($C41,'Efficiency Distributions'!$C$9:$C$87,0)+RIGHT($E51),0))\n/SUM(AI$10:AI$11)","v":0},{"$f":"IF(INDEX(PC_MAPPING,RIGHT($C41,1),MATCH($E$2,'Data by Building Type'!$D$22:$F$22,0))=\"Yes\",1,0)*\n(AJ$10*OFFSET('Efficiency Distributions'!$D$10,MATCH($C41,'Efficiency Distributions'!$C$9:$C$87,0)+RIGHT($E51),0)\n+AJ$11*OFFSET('Efficiency Distributions'!$E$10,MATCH($C41,'Efficiency Distributions'!$C$9:$C$87,0)+RIGHT($E51),0))\n/SUM(AJ$10:AJ$11)","v":0},{"$f":"IF(INDEX(PC_MAPPING,RIGHT($C41,1),MATCH($E$2,'Data by Building Type'!$D$22:$F$22,0))=\"Yes\",1,0)*\n(AK$10*OFFSET('Efficiency Distributions'!$D$10,MATCH($C41,'Efficiency Distributions'!$C$9:$C$87,0)+RIGHT($E51),0)\n+AK$11*OFFSET('Efficiency Distributions'!$E$10,MATCH($C41,'Efficiency Distributions'!$C$9:$C$87,0)+RIGHT($E51),0))\n/SUM(AK$10:AK$11)","v":0},{"$f":"IF(INDEX(PC_MAPPING,RIGHT($C41,1),MATCH($E$2,'Data by Building Type'!$D$22:$F$22,0))=\"Yes\",1,0)*\n(AL$10*OFFSET('Efficiency Distributions'!$D$10,MATCH($C41,'Efficiency Distributions'!$C$9:$C$87,0)+RIGHT($E51),0)\n+AL$11*OFFSET('Efficiency Distributions'!$E$10,MATCH($C41,'Efficiency Distributions'!$C$9:$C$87,0)+RIGHT($E51),0))\n/SUM(AL$10:AL$11)","v":0},{"$f":"IF(INDEX(PC_MAPPING,RIGHT($C41,1),MATCH($E$2,'Data by Building Type'!$D$22:$F$22,0))=\"Yes\",1,0)*\n(AM$10*OFFSET('Efficiency Distributions'!$D$10,MATCH($C41,'Efficiency Distributions'!$C$9:$C$87,0)+RIGHT($E51),0)\n+AM$11*OFFSET('Efficiency Distributions'!$E$10,MATCH($C41,'Efficiency Distributions'!$C$9:$C$87,0)+RIGHT($E51),0))\n/SUM(AM$10:AM$11)","v":0},{"$f":"IF(INDEX(PC_MAPPING,RIGHT($C41,1),MATCH($E$2,'Data by Building Type'!$D$22:$F$22,0))=\"Yes\",1,0)*\n(AN$10*OFFSET('Efficiency Distributions'!$D$10,MATCH($C41,'Efficiency Distributions'!$C$9:$C$87,0)+RIGHT($E51),0)\n+AN$11*OFFSET('Efficiency Distributions'!$E$10,MATCH($C41,'Efficiency Distributions'!$C$9:$C$87,0)+RIGHT($E51),0))\n/SUM(AN$10:AN$11)","v":0},{"$f":"IF(INDEX(PC_MAPPING,RIGHT($C41,1),MATCH($E$2,'Data by Building Type'!$D$22:$F$22,0))=\"Yes\",1,0)*\n(AO$10*OFFSET('Efficiency Distributions'!$D$10,MATCH($C41,'Efficiency Distributions'!$C$9:$C$87,0)+RIGHT($E51),0)\n+AO$11*OFFSET('Efficiency Distributions'!$E$10,MATCH($C41,'Efficiency Distributions'!$C$9:$C$87,0)+RIGHT($E51),0))\n/SUM(AO$10:AO$11)","v":0},{"$f":"IF(INDEX(PC_MAPPING,RIGHT($C41,1),MATCH($E$2,'Data by Building Type'!$D$22:$F$22,0))=\"Yes\",1,0)*\n(AP$10*OFFSET('Efficiency Distributions'!$D$10,MATCH($C41,'Efficiency Distributions'!$C$9:$C$87,0)+RIGHT($E51),0)\n+AP$11*OFFSET('Efficiency Distributions'!$E$10,MATCH($C41,'Efficiency Distributions'!$C$9:$C$87,0)+RIGHT($E51),0))\n/SUM(AP$10:AP$11)","v":0},{"$f":"IF(INDEX(PC_MAPPING,RIGHT($C41,1),MATCH($E$2,'Data by Building Type'!$D$22:$F$22,0))=\"Yes\",1,0)*\n(AQ$10*OFFSET('Efficiency Distributions'!$D$10,MATCH($C41,'Efficiency Distributions'!$C$9:$C$87,0)+RIGHT($E51),0)\n+AQ$11*OFFSET('Efficiency Distributions'!$E$10,MATCH($C41,'Efficiency Distributions'!$C$9:$C$87,0)+RIGHT($E51),0))\n/SUM(AQ$10:AQ$11)","v":0},{"$f":"IF(INDEX(PC_MAPPING,RIGHT($C41,1),MATCH($E$2,'Data by Building Type'!$D$22:$F$22,0))=\"Yes\",1,0)*\n(AR$10*OFFSET('Efficiency Distributions'!$D$10,MATCH($C41,'Efficiency Distributions'!$C$9:$C$87,0)+RIGHT($E51),0)\n+AR$11*OFFSET('Efficiency Distributions'!$E$10,MATCH($C41,'Efficiency Distributions'!$C$9:$C$87,0)+RIGHT($E51),0))\n/SUM(AR$10:AR$11)","v":0},{"$f":"IF(INDEX(PC_MAPPING,RIGHT($C41,1),MATCH($E$2,'Data by Building Type'!$D$22:$F$22,0))=\"Yes\",1,0)*\n(AS$10*OFFSET('Efficiency Distributions'!$D$10,MATCH($C41,'Efficiency Distributions'!$C$9:$C$87,0)+RIGHT($E51),0)\n+AS$11*OFFSET('Efficiency Distributions'!$E$10,MATCH($C41,'Efficiency Distributions'!$C$9:$C$87,0)+RIGHT($E51),0))\n/SUM(AS$10:AS$11)","v":0},{"$f":"IF(INDEX(PC_MAPPING,RIGHT($C41,1),MATCH($E$2,'Data by Building Type'!$D$22:$F$22,0))=\"Yes\",1,0)*\n(AT$10*OFFSET('Efficiency Distributions'!$D$10,MATCH($C41,'Efficiency Distributions'!$C$9:$C$87,0)+RIGHT($E51),0)\n+AT$11*OFFSET('Efficiency Distributions'!$E$10,MATCH($C41,'Efficiency Distributions'!$C$9:$C$87,0)+RIGHT($E51),0))\n/SUM(AT$10:AT$11)","v":0},{"$f":"IF(INDEX(PC_MAPPING,RIGHT($C41,1),MATCH($E$2,'Data by Building Type'!$D$22:$F$22,0))=\"Yes\",1,0)*\n(AU$10*OFFSET('Efficiency Distributions'!$D$10,MATCH($C41,'Efficiency Distributions'!$C$9:$C$87,0)+RIGHT($E51),0)\n+AU$11*OFFSET('Efficiency Distributions'!$E$10,MATCH($C41,'Efficiency Distributions'!$C$9:$C$87,0)+RIGHT($E51),0))\n/SUM(AU$10:AU$11)","v":0},{"$f":"IF(INDEX(PC_MAPPING,RIGHT($C41,1),MATCH($E$2,'Data by Building Type'!$D$22:$F$22,0))=\"Yes\",1,0)*\n(AV$10*OFFSET('Efficiency Distributions'!$D$10,MATCH($C41,'Efficiency Distributions'!$C$9:$C$87,0)+RIGHT($E51),0)\n+AV$11*OFFSET('Efficiency Distributions'!$E$10,MATCH($C41,'Efficiency Distributions'!$C$9:$C$87,0)+RIGHT($E51),0))\n/SUM(AV$10:AV$11)","v":0},{"$f":"IF(INDEX(PC_MAPPING,RIGHT($C41,1),MATCH($E$2,'Data by Building Type'!$D$22:$F$22,0))=\"Yes\",1,0)*\n(AW$10*OFFSET('Efficiency Distributions'!$D$10,MATCH($C41,'Efficiency Distributions'!$C$9:$C$87,0)+RIGHT($E51),0)\n+AW$11*OFFSET('Efficiency Distributions'!$E$10,MATCH($C41,'Efficiency Distributions'!$C$9:$C$87,0)+RIGHT($E51),0))\n/SUM(AW$10:AW$11)","v":0},{"$f":"IF(INDEX(PC_MAPPING,RIGHT($C41,1),MATCH($E$2,'Data by Building Type'!$D$22:$F$22,0))=\"Yes\",1,0)*\n(AX$10*OFFSET('Efficiency Distributions'!$D$10,MATCH($C41,'Efficiency Distributions'!$C$9:$C$87,0)+RIGHT($E51),0)\n+AX$11*OFFSET('Efficiency Distributions'!$E$10,MATCH($C41,'Efficiency Distributions'!$C$9:$C$87,0)+RIGHT($E51),0))\n/SUM(AX$10:AX$11)","v":0},{"$f":"IF(INDEX(PC_MAPPING,RIGHT($C41,1),MATCH($E$2,'Data by Building Type'!$D$22:$F$22,0))=\"Yes\",1,0)*\n(AY$10*OFFSET('Efficiency Distributions'!$D$10,MATCH($C41,'Efficiency Distributions'!$C$9:$C$87,0)+RIGHT($E51),0)\n+AY$11*OFFSET('Efficiency Distributions'!$E$10,MATCH($C41,'Efficiency Distributions'!$C$9:$C$87,0)+RIGHT($E51),0))\n/SUM(AY$10:AY$11)","v":0},{"$f":"IF(INDEX(PC_MAPPING,RIGHT($C41,1),MATCH($E$2,'Data by Building Type'!$D$22:$F$22,0))=\"Yes\",1,0)*\n(AZ$10*OFFSET('Efficiency Distributions'!$D$10,MATCH($C41,'Efficiency Distributions'!$C$9:$C$87,0)+RIGHT($E51),0)\n+AZ$11*OFFSET('Efficiency Distributions'!$E$10,MATCH($C41,'Efficiency Distributions'!$C$9:$C$87,0)+RIGHT($E51),0))\n/SUM(AZ$10:AZ$11)","v":0},{"$f":"IF(INDEX(PC_MAPPING,RIGHT($C41,1),MATCH($E$2,'Data by Building Type'!$D$22:$F$22,0))=\"Yes\",1,0)*\n(BA$10*OFFSET('Efficiency Distributions'!$D$10,MATCH($C41,'Efficiency Distributions'!$C$9:$C$87,0)+RIGHT($E51),0)\n+BA$11*OFFSET('Efficiency Distributions'!$E$10,MATCH($C41,'Efficiency Distributions'!$C$9:$C$87,0)+RIGHT($E51),0))\n/SUM(BA$10:BA$11)","v":0},{"$f":"IF(INDEX(PC_MAPPING,RIGHT($C41,1),MATCH($E$2,'Data by Building Type'!$D$22:$F$22,0))=\"Yes\",1,0)*\n(BB$10*OFFSET('Efficiency Distributions'!$D$10,MATCH($C41,'Efficiency Distributions'!$C$9:$C$87,0)+RIGHT($E51),0)\n+BB$11*OFFSET('Efficiency Distributions'!$E$10,MATCH($C41,'Efficiency Distributions'!$C$9:$C$87,0)+RIGHT($E51),0))\n/SUM(BB$10:BB$11)","v":0},{"$f":"IF(INDEX(PC_MAPPING,RIGHT($C41,1),MATCH($E$2,'Data by Building Type'!$D$22:$F$22,0))=\"Yes\",1,0)*\n(BC$10*OFFSET('Efficiency Distributions'!$D$10,MATCH($C41,'Efficiency Distributions'!$C$9:$C$87,0)+RIGHT($E51),0)\n+BC$11*OFFSET('Efficiency Distributions'!$E$10,MATCH($C41,'Efficiency Distributions'!$C$9:$C$87,0)+RIGHT($E51),0))\n/SUM(BC$10:BC$11)","v":0},{"$f":"IF(INDEX(PC_MAPPING,RIGHT($C41,1),MATCH($E$2,'Data by Building Type'!$D$22:$F$22,0))=\"Yes\",1,0)*\n(BD$10*OFFSET('Efficiency Distributions'!$D$10,MATCH($C41,'Efficiency Distributions'!$C$9:$C$87,0)+RIGHT($E51),0)\n+BD$11*OFFSET('Efficiency Distributions'!$E$10,MATCH($C41,'Efficiency Distributions'!$C$9:$C$87,0)+RIGHT($E51),0))\n/SUM(BD$10:BD$11)","v":0},{"$f":"IF(INDEX(PC_MAPPING,RIGHT($C41,1),MATCH($E$2,'Data by Building Type'!$D$22:$F$22,0))=\"Yes\",1,0)*\n(BE$10*OFFSET('Efficiency Distributions'!$D$10,MATCH($C41,'Efficiency Distributions'!$C$9:$C$87,0)+RIGHT($E51),0)\n+BE$11*OFFSET('Efficiency Distributions'!$E$10,MATCH($C41,'Efficiency Distributions'!$C$9:$C$87,0)+RIGHT($E51),0))\n/SUM(BE$10:BE$11)","v":0},{"$f":"IF(INDEX(PC_MAPPING,RIGHT($C41,1),MATCH($E$2,'Data by Building Type'!$D$22:$F$22,0))=\"Yes\",1,0)*\n(BF$10*OFFSET('Efficiency Distributions'!$D$10,MATCH($C41,'Efficiency Distributions'!$C$9:$C$87,0)+RIGHT($E51),0)\n+BF$11*OFFSET('Efficiency Distributions'!$E$10,MATCH($C41,'Efficiency Distributions'!$C$9:$C$87,0)+RIGHT($E51),0))\n/SUM(BF$10:BF$11)","v":0},{"$f":"IF(INDEX(PC_MAPPING,RIGHT($C41,1),MATCH($E$2,'Data by Building Type'!$D$22:$F$22,0))=\"Yes\",1,0)*\n(BG$10*OFFSET('Efficiency Distributions'!$D$10,MATCH($C41,'Efficiency Distributions'!$C$9:$C$87,0)+RIGHT($E51),0)\n+BG$11*OFFSET('Efficiency Distributions'!$E$10,MATCH($C41,'Efficiency Distributions'!$C$9:$C$87,0)+RIGHT($E51),0))\n/SUM(BG$10:BG$11)","v":0}]
[null,null,null,null,"TOTAL",{"$f":"SUM(F45:F51)","v":1},1,{"$f":"SUM(H45:H51)","v":1},1,1,1,1,1,1,1,1,1,1,1,1,1,1,1,1.0000000000000002,1,1,1,1,1,1,1,1,1,1,1,1.0000000000000002,1,1,1,1,1,1,1,1,1,1,1,1.0000000000000002,1,1,1,0.99999999999999989,0.99999999999999989,1,1,0.99999999999999978,1,1,1]
[]
[null,null,null,"POST-Case"]
[null,null,null,null,"Efficiency Level",1981,{"$f":"F55+1","v":1982},{"$f":"G55+1","v":1983},1984,1985,1986,1987,1988,1989,1990,{"$f":"O55+1","v":1991},{"$f":"P55+1","v":1992},1993,1994,1995,1996,1997,1998,1999,2000,2001,2002,2003,2004,2005,2006,2007,2008,2009,2010,2011,2012,2013,2014,2015,2016,2017,2018,2019,2020,2021,2022,2023,2024,2025,2026,2027,2028,2029,2030,2031,2032,2033,2034]
[null,null,null,null,"EL0",{"$f":"IF(F$29<STANDARD_YEAR,F45,\nIF(RIGHT($E56,1)>RIGHT(INDEX(STANDARD_LEVELS,1,MID($C41,4,1)),1),F45,\nIF(RIGHT($E56,1)<RIGHT(INDEX(STANDARD_LEVELS,1,MID($C41,4,1)),1),0,\nIF(RIGHT($E56,1)=RIGHT(INDEX(STANDARD_LEVELS,1,MID($C41,4,1)),1),SUM(OFFSET(F45,-(RIGHT($E56,1)),0,RIGHT($E56,1)+1,1)),\"ERROR\"))))","v":0.24843899552389889},0.23552342288074005,{"$f":"IF(H$29<STANDARD_YEAR,H45,\nIF(RIGHT($E56,1)>RIGHT(INDEX(STANDARD_LEVELS,1,MID($C41,4,1)),1),H45,\nIF(RIGHT($E56,1)<RIGHT(INDEX(STANDARD_LEVELS,1,MID($C41,4,1)),1),0,\nIF(RIGHT($E56,1)=RIGHT(INDEX(STANDARD_LEVELS,1,MID($C41,4,1)),1),SUM(OFFSET(H45,-(RIGHT($E56,1)),0,RIGHT($E56,1)+1,1)),\"ERROR\"))))","v":0.25097364353269125},0.24809209515013492,0.24630798909668417,0.24925305535908071,0.24948477124261381,0.25343065534868342,0.26243478764379002,0.26857066507626931,0.26231542086369691,0.27260373154876827,0.24434254996402829,0.24718898678727805,0.23670068159161481,0.238211664315094,0.23597697784936,0.23704852858960845,0.23360860288248492,0.22523943071266173,0.22509810153472382,0.22639462727181237,0.23378150791735094,0.2332655001594777,0.23962513089121945,0.22997316992290595,0.20865293169513111,0.19955035035738097,0.19955035035738097,0.19955035035738097,0.20334223042179009,0.25635887528312878,0.25477224633408929,0.26158869378692573,0.26103834836712375,0.26370923428148429,0.26253423169274276,0.26213519738031066,0,0,0,0,0,0,0,0,0,0,0,0,0,0,0,0]
[null,null,null,null,"EL1",{"$f":"IF(F$29<STANDARD_YEAR,F46,\nIF(RIGHT($E57,1)>RIGHT(INDEX(STANDARD_LEVELS,1,MID($C41,4,1)),1),F46,\nIF(RIGHT($E57,1)<RIGHT(INDEX(STANDARD_LEVELS,1,MID($C41,4,1)),1),0,\nIF(RIGHT($E57,1)=RIGHT(INDEX(STANDARD_LEVELS,1,MID($C41,4,1)),1),SUM(OFFSET(F46,-(RIGHT($E57,1)),0,RIGHT($E57,1)+1,1)),\"ERROR\"))))","v":0.32729646598088047},0.31990700546337331,{"$f":"IF(H$29<STANDARD_YEAR,H46,\nIF(RIGHT($E57,1)>RIGHT(INDEX(STANDARD_LEVELS,1,MID($C41,4,1)),1),H46,\nIF(RIGHT($E57,1)<RIGHT(INDEX(STANDARD_LEVELS,1,MID($C41,4,1)),1),0,\nIF(RIGHT($E57,1)=RIGHT(INDEX(STANDARD_LEVELS,1,MID($C41,4,1)),1),SUM(OFFSET(H46,-(RIGHT($E57,1)),0,RIGHT($E57,1)+1,1)),\"ERROR\"))))","v":0.32874662865691717},0.32709799188404703,0.32607724107374497,0.32776221869484551,0.32789479162985619,0.33015237289350269,0.33530395865182711,0.33881451333494328,0.33523566465256199,0.34112197474501077,0.32495274313071204,0.32658129132614366,0.32058055722938877,0.3214450444252932,0.32016650046415529,0.32077957292376208,0.3188114685354978,0.31402316614877507,0.31394230667709716,0.31468409536961961,0.31891039368297058,0.31861516721033323,0.32225373914953587,0.31673150746361434,0.30453343750878059,0.29932552553607145,0.29932552553607145,0.29932552553607145,0.30149499558569526,0.33182771212854795,0.33091994502454175,0.3348198781296432,0.33450500585390458,0.33603311510281103,0.33536085414486788,0.33513255235923939,0,0,0,0,0,0,0,0,0,0,0,0,0,0,0,0]
[null,null,null,null,"EL2",{"$f":"IF(F$29<STANDARD_YEAR,F47,\nIF(RIGHT($E58,1)>RIGHT(INDEX(STANDARD_LEVELS,1,MID($C41,4,1)),1),F47,\nIF(RIGHT($E58,1)<RIGHT(INDEX(STANDARD_LEVELS,1,MID($C41,4,1)),1),0,\nIF(RIGHT($E58,1)=RIGHT(INDEX(STANDARD_LEVELS,1,MID($C41,4,1)),1),SUM(OFFSET(F47,-(RIGHT($E58,1)),0,RIGHT($E58,1)+1,1)),\"ERROR\"))))","v":0},0,{"$f":"IF(H$29<STANDARD_YEAR,H47,\nIF(RIGHT($E58,1)>RIGHT(INDEX(STANDARD_LEVELS,1,MID($C41,4,1)),1),H47,\nIF(RIGHT($E58,1)<RIGHT(INDEX(STANDARD_LEVELS,1,MID($C41,4,1)),1),0,\nIF(RIGHT($E58,1)=RIGHT(INDEX(STANDARD_LEVELS,1,MID($C41,4,1)),1),SUM(OFFSET(H47,-(RIGHT($E58,1)),0,RIGHT($E58,1)+1,1)),\"ERROR\"))))","v":0},0,0,0,0,0,0,0,0,0,0,0,0,0,0,0,0,0,0,0,0,0,0,0,0,0,0,0,0,0,0,0,0,0,0,0,0,0,0,0,0,0,0,0,0,0,0,0,0,0,0,0]
[null,null,null,null,"EL3",{"$f":"IF(F$29<STANDARD_YEAR,F48,\nIF(RIGHT($E59,1)>RIGHT(INDEX(STANDARD_LEVELS,1,MID($C41,4,1)),1),F48,\nIF(RIGHT($E59,1)<RIGHT(INDEX(STANDARD_LEVELS,1,MID($C41,4,1)),1),0,\nIF(RIGHT($E59,1)=RIGHT(INDEX(STANDARD_LEVELS,1,MID($C41,4,1)),1),SUM(OFFSET(F48,-(RIGHT($E59,1)),0,RIGHT($E59,1)+1,1)),\"ERROR\"))))","v":6.8337912240840917E-2},7.1608521609001885E-2,{"$f":"IF(H$29<STANDARD_YEAR,H48,\nIF(RIGHT($E59,1)>RIGHT(INDEX(STANDARD_LEVELS,1,MID($C41,4,1)),1),H48,\nIF(RIGHT($E59,1)<RIGHT(INDEX(STANDARD_LEVELS,1,MID($C41,4,1)),1),0,\nIF(RIGHT($E59,1)=RIGHT(INDEX(STANDARD_LEVELS,1,MID($C41,4,1)),1),SUM(OFFSET(H48,-(RIGHT($E59,1)),0,RIGHT($E59,1)+1,1)),\"ERROR\"))))","v":6.7696063539928866E-2},6.8425757793151923E-2,6.887754681818592E-2,6.8131767937622628E-2,6.8073090544031684E-2,6.7073874645553921E-2,6.4793758985940877E-2,6.3239971262623484E-2,6.482398622556905E-2,6.221867818086782E-2,6.9375254803531766E-2,6.8654451847502559E-2,7.1310404485207493E-2,7.0927778457924223E-2,7.1493667922655268E-2,7.1222319219322872E-2,7.2093411315224273E-2,7.4212736076010186E-2,7.4248524851787234E-2,7.3920205749031118E-2,7.2049626587867677E-2,7.2180295188755295E-2,7.0569846436388431E-2,7.3014011696130976E-2,7.8412933819504163E-2,8.0717979721860025E-2,8.0717979721860025E-2,8.0717979721860025E-2,7.9757762253827885E-2,6.6332361759193006E-2,6.6734143673777557E-2,6.5008015261760713E-2,6.5147379185874627E-2,6.4471030971657142E-2,6.4768576777834527E-2,6.4869624203025514E-2,0,0,0,0,0,0,0,0,0,0,0,0,0,0,0,0]
[null,null,null,null,"EL4",{"$f":"IF(F$29<STANDARD_YEAR,F49,\nIF(RIGHT($E60,1)>RIGHT(INDEX(STANDARD_LEVELS,1,MID($C41,4,1)),1),F49,\nIF(RIGHT($E60,1)<RIGHT(INDEX(STANDARD_LEVELS,1,MID($C41,4,1)),1),0,\nIF(RIGHT($E60,1)=RIGHT(INDEX(STANDARD_LEVELS,1,MID($C41,4,1)),1),SUM(OFFSET(F49,-(RIGHT($E60,1)),0,RIGHT($E60,1)+1,1)),\"ERROR\"))))","v":5.9795673210735791E-2},6.2657456407876636E-2,{"$f":"IF(H$29<STANDARD_YEAR,H49,\nIF(RIGHT($E60,1)>RIGHT(INDEX(STANDARD_LEVELS,1,MID($C41,4,1)),1),H49,\nIF(RIGHT($E60,1)<RIGHT(INDEX(STANDARD_LEVELS,1,MID($C41,4,1)),1),0,\nIF(RIGHT($E60,1)=RIGHT(INDEX(STANDARD_LEVELS,1,MID($C41,4,1)),1),SUM(OFFSET(H49,-(RIGHT($E60,1)),0,RIGHT($E60,1)+1,1)),\"ERROR\"))))","v":5.9234055597437746E-2},5.9872538069007913E-2,6.0267853465912666E-2,5.9615296945419789E-2,5.956395422602772E-2,5.8689640314859681E-2,5.6694539112698249E-2,5.5334974854795549E-2,5.6720987947372903E-2,5.4441343408259332E-2,6.0703347953090285E-2,6.0072645366564724E-2,6.2396603924556544E-2,6.2061806150683678E-2,6.2556959432323353E-2,6.2319529316907513E-2,6.3081734900821224E-2,6.4936144066508911E-2,6.4967459245313816E-2,6.4680180030402212E-2,6.304342326438421E-2,6.3157758290160876E-2,6.1748615631839858E-2,6.388726023411459E-2,6.8611317092066137E-2,7.062823225662751E-2,7.062823225662751E-2,7.062823225662751E-2,6.9788041972099382E-2,5.8040816539293882E-2,5.8392375714555349E-2,5.6882013354040618E-2,5.7003956787640288E-2,5.6412152100199994E-2,5.6672504680605203E-2,5.6760921177647305E-2,0.71752008669474865,0.71753839198623437,0.71826889476593991,0.71741103395254613,0.70557273487133854,0.70627081620375431,0.70274733374955067,0.70167823017087605,0.70328226458182719,0.70574861851455672,0.71102625140470488,0.71209641260865408,0.70610795618190025,0.70192127375013835,0.69359907022701206,0.6920593446386395]
[null,null,null,null,"EL5",{"$f":"IF(F$29<STANDARD_YEAR,F50,\nIF(RIGHT($E61,1)>RIGHT(INDEX(STANDARD_LEVELS,1,MID($C41,4,1)),1),F50,\nIF(RIGHT($E61,1)<RIGHT(INDEX(STANDARD_LEVELS,1,MID($C41,4,1)),1),0,\nIF(RIGHT($E61,1)=RIGHT(INDEX(STANDARD_LEVELS,1,MID($C41,4,1)),1),SUM(OFFSET(F50,-(RIGHT($E61,1)),0,RIGHT($E61,1)+1,1)),\"ERROR\"))))","v":0.29613095304364395},0.31030359363900811,{"$f":"IF(H$29<STANDARD_YEAR,H50,\nIF(RIGHT($E61,1)>RIGHT(INDEX(STANDARD_LEVELS,1,MID($C41,4,1)),1),H50,\nIF(RIGHT($E61,1)<RIGHT(INDEX(STANDARD_LEVELS,1,MID($C41,4,1)),1),0,\nIF(RIGHT($E61,1)=RIGHT(INDEX(STANDARD_LEVELS,1,MID($C41,4,1)),1),SUM(OFFSET(H50,-(RIGHT($E61,1)),0,RIGHT($E61,1)+1,1)),\"ERROR\"))))","v":0.29334960867302506},0.29651161710365825,0.29846936954547226,0.29523766106303134,0.29498339235747062,0.29065345679740034,0.28077295560574378,0.27403987547136843,0.28090394031079918,0.26961427211709388,0.30062610414863766,0.29750262467251104,0.30901175276923243,0.30735370665100492,0.30980589433150613,0.30863004995039911,0.31240478236597186,0.32158852299604412,0.32174360769107796,0.32032089157913479,0.3122150485474266,0.31278127915127296,0.30580266789101651,0.31639405068323423,0.33978937988451802,0.34977791212806009,0.34977791212806009,0.34977791212806009,0.34561696976658746,0.28744023428983634,0.28918128925303604,0.28170139946762973,0.28230530980545671,0.27937446754384759,0.28066383270394962,0.28110170487977715,0.28247991330525135,0.28246160801376563,0.2817311052340602,0.28258896604745393,0.29442726512866163,0.29372918379624569,0.29725266625044933,0.2983217698291239,0.2967177354181727,0.29425138148544316,0.28897374859529507,0.28790358739134597,0.29389204381809958,0.29807872624986176,0.30640092977298805,0.3079406553613605]
[null,null,null,null,"EL6",{"$f":"IF(F$29<STANDARD_YEAR,F51,\nIF(RIGHT($E62,1)>RIGHT(INDEX(STANDARD_LEVELS,1,MID($C41,4,1)),1),F51,\nIF(RIGHT($E62,1)<RIGHT(INDEX(STANDARD_LEVELS,1,MID($C41,4,1)),1),0,\nIF(RIGHT($E62,1)=RIGHT(INDEX(STANDARD_LEVELS,1,MID($C41,4,1)),1),SUM(OFFSET(F51,-(RIGHT($E62,1)),0,RIGHT($E62,1)+1,1)),\"ERROR\"))))","v":0},0,{"$f":"IF(H$29<STANDARD_YEAR,H51,\nIF(RIGHT($E62,1)>RIGHT(INDEX(STANDARD_LEVELS,1,MID($C41,4,1)),1),H51,\nIF(RIGHT($E62,1)<RIGHT(INDEX(STANDARD_LEVELS,1,MID($C41,4,1)),1),0,\nIF(RIGHT($E62,1)=RIGHT(INDEX(STANDARD_LEVELS,1,MID($C41,4,1)),1),SUM(OFFSET(H51,-(RIGHT($E62,1)),0,RIGHT($E62,1)+1,1)),\"ERROR\"))))","v":0},0,0,0,0,0,0,0,0,0,0,0,0,0,0,0,0,0,0,0,0,0,0,0,0,0,0,0,0,0,0,0,0,0,0,0,0,0,0,0,0,0,0,0,0,0,0,0,0,0,0,0]
[null,null,null,null,"TOTAL",{"$f":"SUM(F56:F62)","v":1},1,{"$f":"SUM(H56:H62)","v":1},1,1,1,1,1,1,1,1,1,1,1,1,1,1,1,1.0000000000000002,1,1,1,1,1,1,1,1,1,1,1,1.0000000000000002,1,1,1,1,1,1,1,1,1,1,1,1.0000000000000002,1,1,1,0.99999999999999989,0.99999999999999989,1,1,0.99999999999999978,1,1,1]
[]
[]
[]
[null,null,"PC 3",{"$f":"OFFSET('Product Classes'!$C$9,MATCH(C67,MODEL_PCS,0),0)","v":"Weatherized Non-Condensing Gas Furnace Fan (WG-NC)"}]
[]
[null,null,null,"PRE-Case"]
[null,null,null,null,"Efficiency Level",1981,{"$f":"F70+1","v":1982},{"$f":"G70+1","v":1983},1984,1985,1986,1987,1988,1989,1990,{"$f":"O70+1","v":1991},{"$f":"P70+1","v":1992},1993,1994,1995,1996,1997,1998,1999,2000,2001,2002,2003,2004,2005,2006,2007,2008,2009,2010,2011,2012,2013,2014,2015,2016,2017,2018,2019,2020,2021,2022,2023,2024,2025,2026,2027,2028,2029,2030,2031,2032,2033,2034]
[null,null,null,null,"EL0",{"$f":"IF(INDEX(PC_MAPPING,RIGHT($C67,1),MATCH($E$2,'Data by Building Type'!$D$22:$F$22,0))=\"Yes\",1,0)*\n(F$10*OFFSET('Efficiency Distributions'!$D$10,MATCH($C67,'Efficiency Distributions'!$C$9:$C$87,0)+RIGHT($E71),0)\n+F$11*OFFSET('Efficiency Distributions'!$E$10,MATCH($C67,'Efficiency Distributions'!$C$9:$C$87,0)+RIGHT($E71),0))\n/SUM(F$10:F$11)","v":0.18439193743663332},{"$f":"IF(INDEX(PC_MAPPING,RIGHT($C67,1),MATCH($E$2,'Data by Building Type'!$D$22:$F$22,0))=\"Yes\",1,0)*\n(G$10*OFFSET('Efficiency Distributions'!$D$10,MATCH($C67,'Efficiency Distributions'!$C$9:$C$87,0)+RIGHT($E71),0)\n+G$11*OFFSET('Efficiency Distributions'!$E$10,MATCH($C67,'Efficiency Distributions'!$C$9:$C$87,0)+RIGHT($E71),0))\n/SUM(G$10:G$11)","v":0.1687377855781127},{"$f":"IF(INDEX(PC_MAPPING,RIGHT($C67,1),MATCH($E$2,'Data by Building Type'!$D$22:$F$22,0))=\"Yes\",1,0)*\n(H$10*OFFSET('Efficiency Distributions'!$D$10,MATCH($C67,'Efficiency Distributions'!$C$9:$C$87,0)+RIGHT($E71),0)\n+H$11*OFFSET('Efficiency Distributions'!$E$10,MATCH($C67,'Efficiency Distributions'!$C$9:$C$87,0)+RIGHT($E71),0))\n/SUM(H$10:H$11)","v":0.18746402459326036},{"$f":"IF(INDEX(PC_MAPPING,RIGHT($C67,1),MATCH($E$2,'Data by Building Type'!$D$22:$F$22,0))=\"Yes\",1,0)*\n(I$10*OFFSET('Efficiency Distributions'!$D$10,MATCH($C67,'Efficiency Distributions'!$C$9:$C$87,0)+RIGHT($E71),0)\n+I$11*OFFSET('Efficiency Distributions'!$E$10,MATCH($C67,'Efficiency Distributions'!$C$9:$C$87,0)+RIGHT($E71),0))\n/SUM(I$10:I$11)","v":0.18397148134996066},{"$f":"IF(INDEX(PC_MAPPING,RIGHT($C67,1),MATCH($E$2,'Data by Building Type'!$D$22:$F$22,0))=\"Yes\",1,0)*\n(J$10*OFFSET('Efficiency Distributions'!$D$10,MATCH($C67,'Efficiency Distributions'!$C$9:$C$87,0)+RIGHT($E71),0)\n+J$11*OFFSET('Efficiency Distributions'!$E$10,MATCH($C67,'Efficiency Distributions'!$C$9:$C$87,0)+RIGHT($E71),0))\n/SUM(J$10:J$11)","v":0.18180907880970495},{"$f":"IF(INDEX(PC_MAPPING,RIGHT($C67,1),MATCH($E$2,'Data by Building Type'!$D$22:$F$22,0))=\"Yes\",1,0)*\n(K$10*OFFSET('Efficiency Distributions'!$D$10,MATCH($C67,'Efficiency Distributions'!$C$9:$C$87,0)+RIGHT($E71),0)\n+K$11*OFFSET('Efficiency Distributions'!$E$10,MATCH($C67,'Efficiency Distributions'!$C$9:$C$87,0)+RIGHT($E71),0))\n/SUM(K$10:K$11)","v":0.18537860807323173},{"$f":"IF(INDEX(PC_MAPPING,RIGHT($C67,1),MATCH($E$2,'Data by Building Type'!$D$22:$F$22,0))=\"Yes\",1,0)*\n(L$10*OFFSET('Efficiency Distributions'!$D$10,MATCH($C67,'Efficiency Distributions'!$C$9:$C$87,0)+RIGHT($E71),0)\n+L$11*OFFSET('Efficiency Distributions'!$E$10,MATCH($C67,'Efficiency Distributions'!$C$9:$C$87,0)+RIGHT($E71),0))\n/SUM(L$10:L$11)","v":0.18565945629646394},{"$f":"IF(INDEX(PC_MAPPING,RIGHT($C67,1),MATCH($E$2,'Data by Building Type'!$D$22:$F$22,0))=\"Yes\",1,0)*\n(M$10*OFFSET('Efficiency Distributions'!$D$10,MATCH($C67,'Efficiency Distributions'!$C$9:$C$87,0)+RIGHT($E71),0)\n+M$11*OFFSET('Efficiency Distributions'!$E$10,MATCH($C67,'Efficiency Distributions'!$C$9:$C$87,0)+RIGHT($E71),0))\n/SUM(M$10:M$11)","v":0.1904420138120422},{"$f":"IF(INDEX(PC_MAPPING,RIGHT($C67,1),MATCH($E$2,'Data by Building Type'!$D$22:$F$22,0))=\"Yes\",1,0)*\n(N$10*OFFSET('Efficiency Distributions'!$D$10,MATCH($C67,'Efficiency Distributions'!$C$9:$C$87,0)+RIGHT($E71),0)\n+N$11*OFFSET('Efficiency Distributions'!$E$10,MATCH($C67,'Efficiency Distributions'!$C$9:$C$87,0)+RIGHT($E71),0))\n/SUM(N$10:N$11)","v":0.20135535526395754},{"$f":"IF(INDEX(PC_MAPPING,RIGHT($C67,1),MATCH($E$2,'Data by Building Type'!$D$22:$F$22,0))=\"Yes\",1,0)*\n(O$10*OFFSET('Efficiency Distributions'!$D$10,MATCH($C67,'Efficiency Distributions'!$C$9:$C$87,0)+RIGHT($E71),0)\n+O$11*OFFSET('Efficiency Distributions'!$E$10,MATCH($C67,'Efficiency Distributions'!$C$9:$C$87,0)+RIGHT($E71),0))\n/SUM(O$10:O$11)","v":0.20879226571052426},{"$f":"IF(INDEX(PC_MAPPING,RIGHT($C67,1),MATCH($E$2,'Data by Building Type'!$D$22:$F$22,0))=\"Yes\",1,0)*\n(P$10*OFFSET('Efficiency Distributions'!$D$10,MATCH($C67,'Efficiency Distributions'!$C$9:$C$87,0)+RIGHT($E71),0)\n+P$11*OFFSET('Efficiency Distributions'!$E$10,MATCH($C67,'Efficiency Distributions'!$C$9:$C$87,0)+RIGHT($E71),0))\n/SUM(P$10:P$11)","v":0.20121067831047917},{"$f":"IF(INDEX(PC_MAPPING,RIGHT($C67,1),MATCH($E$2,'Data by Building Type'!$D$22:$F$22,0))=\"Yes\",1,0)*\n(Q$10*OFFSET('Efficiency Distributions'!$D$10,MATCH($C67,'Efficiency Distributions'!$C$9:$C$87,0)+RIGHT($E71),0)\n+Q$11*OFFSET('Efficiency Distributions'!$E$10,MATCH($C67,'Efficiency Distributions'!$C$9:$C$87,0)+RIGHT($E71),0))\n/SUM(Q$10:Q$11)","v":0.21368049147954954},{"$f":"IF(INDEX(PC_MAPPING,RIGHT($C67,1),MATCH($E$2,'Data by Building Type'!$D$22:$F$22,0))=\"Yes\",1,0)*\n(R$10*OFFSET('Efficiency Distributions'!$D$10,MATCH($C67,'Efficiency Distributions'!$C$9:$C$87,0)+RIGHT($E71),0)\n+R$11*OFFSET('Efficiency Distributions'!$E$10,MATCH($C67,'Efficiency Distributions'!$C$9:$C$87,0)+RIGHT($E71),0))\n/SUM(R$10:R$11)","v":0.17942689386898758},{"$f":"IF(INDEX(PC_MAPPING,RIGHT($C67,1),MATCH($E$2,'Data by Building Type'!$D$22:$F$22,0))=\"Yes\",1,0)*\n(S$10*OFFSET('Efficiency Distributions'!$D$10,MATCH($C67,'Efficiency Distributions'!$C$9:$C$87,0)+RIGHT($E71),0)\n+S$11*OFFSET('Efficiency Distributions'!$E$10,MATCH($C67,'Efficiency Distributions'!$C$9:$C$87,0)+RIGHT($E71),0))\n/SUM(S$10:S$11)","v":0.18287688060344631},{"$f":"IF(INDEX(PC_MAPPING,RIGHT($C67,1),MATCH($E$2,'Data by Building Type'!$D$22:$F$22,0))=\"Yes\",1,0)*\n(T$10*OFFSET('Efficiency Distributions'!$D$10,MATCH($C67,'Efficiency Distributions'!$C$9:$C$87,0)+RIGHT($E71),0)\n+T$11*OFFSET('Efficiency Distributions'!$E$10,MATCH($C67,'Efficiency Distributions'!$C$9:$C$87,0)+RIGHT($E71),0))\n/SUM(T$10:T$11)","v":0.17016466668868901},{"$f":"IF(INDEX(PC_MAPPING,RIGHT($C67,1),MATCH($E$2,'Data by Building Type'!$D$22:$F$22,0))=\"Yes\",1,0)*\n(U$10*OFFSET('Efficiency Distributions'!$D$10,MATCH($C67,'Efficiency Distributions'!$C$9:$C$87,0)+RIGHT($E71),0)\n+U$11*OFFSET('Efficiency Distributions'!$E$10,MATCH($C67,'Efficiency Distributions'!$C$9:$C$87,0)+RIGHT($E71),0))\n/SUM(U$10:U$11)","v":0.17199603364874969},{"$f":"IF(INDEX(PC_MAPPING,RIGHT($C67,1),MATCH($E$2,'Data by Building Type'!$D$22:$F$22,0))=\"Yes\",1,0)*\n(V$10*OFFSET('Efficiency Distributions'!$D$10,MATCH($C67,'Efficiency Distributions'!$C$9:$C$87,0)+RIGHT($E71),0)\n+V$11*OFFSET('Efficiency Distributions'!$E$10,MATCH($C67,'Efficiency Distributions'!$C$9:$C$87,0)+RIGHT($E71),0))\n/SUM(V$10:V$11)","v":0.16928751097946559},{"$f":"IF(INDEX(PC_MAPPING,RIGHT($C67,1),MATCH($E$2,'Data by Building Type'!$D$22:$F$22,0))=\"Yes\",1,0)*\n(W$10*OFFSET('Efficiency Distributions'!$D$10,MATCH($C67,'Efficiency Distributions'!$C$9:$C$87,0)+RIGHT($E71),0)\n+W$11*OFFSET('Efficiency Distributions'!$E$10,MATCH($C67,'Efficiency Distributions'!$C$9:$C$87,0)+RIGHT($E71),0))\n/SUM(W$10:W$11)","v":0.17058627011894864},{"$f":"IF(INDEX(PC_MAPPING,RIGHT($C67,1),MATCH($E$2,'Data by Building Type'!$D$22:$F$22,0))=\"Yes\",1,0)*\n(X$10*OFFSET('Efficiency Distributions'!$D$10,MATCH($C67,'Efficiency Distributions'!$C$9:$C$87,0)+RIGHT($E71),0)\n+X$11*OFFSET('Efficiency Distributions'!$E$10,MATCH($C67,'Efficiency Distributions'!$C$9:$C$87,0)+RIGHT($E71),0))\n/SUM(X$10:X$11)","v":0.16641695290095726},{"$f":"IF(INDEX(PC_MAPPING,RIGHT($C67,1),MATCH($E$2,'Data by Building Type'!$D$22:$F$22,0))=\"Yes\",1,0)*\n(Y$10*OFFSET('Efficiency Distributions'!$D$10,MATCH($C67,'Efficiency Distributions'!$C$9:$C$87,0)+RIGHT($E71),0)\n+Y$11*OFFSET('Efficiency Distributions'!$E$10,MATCH($C67,'Efficiency Distributions'!$C$9:$C$87,0)+RIGHT($E71),0))\n/SUM(Y$10:Y$11)","v":0.15627320661140259},{"$f":"IF(INDEX(PC_MAPPING,RIGHT($C67,1),MATCH($E$2,'Data by Building Type'!$D$22:$F$22,0))=\"Yes\",1,0)*\n(Z$10*OFFSET('Efficiency Distributions'!$D$10,MATCH($C67,'Efficiency Distributions'!$C$9:$C$87,0)+RIGHT($E71),0)\n+Z$11*OFFSET('Efficiency Distributions'!$E$10,MATCH($C67,'Efficiency Distributions'!$C$9:$C$87,0)+RIGHT($E71),0))\n/SUM(Z$10:Z$11)","v":0.15610191041923169},{"$f":"IF(INDEX(PC_MAPPING,RIGHT($C67,1),MATCH($E$2,'Data by Building Type'!$D$22:$F$22,0))=\"Yes\",1,0)*\n(AA$10*OFFSET('Efficiency Distributions'!$D$10,MATCH($C67,'Efficiency Distributions'!$C$9:$C$87,0)+RIGHT($E71),0)\n+AA$11*OFFSET('Efficiency Distributions'!$E$10,MATCH($C67,'Efficiency Distributions'!$C$9:$C$87,0)+RIGHT($E71),0))\n/SUM(AA$10:AA$11)","v":0.15767334757789414},{"$f":"IF(INDEX(PC_MAPPING,RIGHT($C67,1),MATCH($E$2,'Data by Building Type'!$D$22:$F$22,0))=\"Yes\",1,0)*\n(AB$10*OFFSET('Efficiency Distributions'!$D$10,MATCH($C67,'Efficiency Distributions'!$C$9:$C$87,0)+RIGHT($E71),0)\n+AB$11*OFFSET('Efficiency Distributions'!$E$10,MATCH($C67,'Efficiency Distributions'!$C$9:$C$87,0)+RIGHT($E71),0))\n/SUM(AB$10:AB$11)","v":0.16662652019988219},{"$f":"IF(INDEX(PC_MAPPING,RIGHT($C67,1),MATCH($E$2,'Data by Building Type'!$D$22:$F$22,0))=\"Yes\",1,0)*\n(AC$10*OFFSET('Efficiency Distributions'!$D$10,MATCH($C67,'Efficiency Distributions'!$C$9:$C$87,0)+RIGHT($E71),0)\n+AC$11*OFFSET('Efficiency Distributions'!$E$10,MATCH($C67,'Efficiency Distributions'!$C$9:$C$87,0)+RIGHT($E71),0))\n/SUM(AC$10:AC$11)","v":0.16600109970749688},{"$f":"IF(INDEX(PC_MAPPING,RIGHT($C67,1),MATCH($E$2,'Data by Building Type'!$D$22:$F$22,0))=\"Yes\",1,0)*\n(AD$10*OFFSET('Efficiency Distributions'!$D$10,MATCH($C67,'Efficiency Distributions'!$C$9:$C$87,0)+RIGHT($E71),0)\n+AD$11*OFFSET('Efficiency Distributions'!$E$10,MATCH($C67,'Efficiency Distributions'!$C$9:$C$87,0)+RIGHT($E71),0))\n/SUM(AD$10:AD$11)","v":0.17370920743058202},{"$f":"IF(INDEX(PC_MAPPING,RIGHT($C67,1),MATCH($E$2,'Data by Building Type'!$D$22:$F$22,0))=\"Yes\",1,0)*\n(AE$10*OFFSET('Efficiency Distributions'!$D$10,MATCH($C67,'Efficiency Distributions'!$C$9:$C$87,0)+RIGHT($E71),0)\n+AE$11*OFFSET('Efficiency Distributions'!$E$10,MATCH($C67,'Efficiency Distributions'!$C$9:$C$87,0)+RIGHT($E71),0))\n/SUM(AE$10:AE$11)","v":0.16201067366014754},{"$f":"IF(INDEX(PC_MAPPING,RIGHT($C67,1),MATCH($E$2,'Data by Building Type'!$D$22:$F$22,0))=\"Yes\",1,0)*\n(AF$10*OFFSET('Efficiency Distributions'!$D$10,MATCH($C67,'Efficiency Distributions'!$C$9:$C$87,0)+RIGHT($E71),0)\n+AF$11*OFFSET('Efficiency Distributions'!$E$10,MATCH($C67,'Efficiency Distributions'!$C$9:$C$87,0)+RIGHT($E71),0))\n/SUM(AF$10:AF$11)","v":0.13616975618025517},{"$f":"IF(INDEX(PC_MAPPING,RIGHT($C67,1),MATCH($E$2,'Data by Building Type'!$D$22:$F$22,0))=\"Yes\",1,0)*\n(AG$10*OFFSET('Efficiency Distributions'!$D$10,MATCH($C67,'Efficiency Distributions'!$C$9:$C$87,0)+RIGHT($E71),0)\n+AG$11*OFFSET('Efficiency Distributions'!$E$10,MATCH($C67,'Efficiency Distributions'!$C$9:$C$87,0)+RIGHT($E71),0))\n/SUM(AG$10:AG$11)","v":0.1251370908465077},{"$f":"IF(INDEX(PC_MAPPING,RIGHT($C67,1),MATCH($E$2,'Data by Building Type'!$D$22:$F$22,0))=\"Yes\",1,0)*\n(AH$10*OFFSET('Efficiency Distributions'!$D$10,MATCH($C67,'Efficiency Distributions'!$C$9:$C$87,0)+RIGHT($E71),0)\n+AH$11*OFFSET('Efficiency Distributions'!$E$10,MATCH($C67,'Efficiency Distributions'!$C$9:$C$87,0)+RIGHT($E71),0))\n/SUM(AH$10:AH$11)","v":0.1251370908465077},{"$f":"IF(INDEX(PC_MAPPING,RIGHT($C67,1),MATCH($E$2,'Data by Building Type'!$D$22:$F$22,0))=\"Yes\",1,0)*\n(AI$10*OFFSET('Efficiency Distributions'!$D$10,MATCH($C67,'Efficiency Distributions'!$C$9:$C$87,0)+RIGHT($E71),0)\n+AI$11*OFFSET('Efficiency Distributions'!$E$10,MATCH($C67,'Efficiency Distributions'!$C$9:$C$87,0)+RIGHT($E71),0))\n/SUM(AI$10:AI$11)","v":0.1251370908465077},{"$f":"IF(INDEX(PC_MAPPING,RIGHT($C67,1),MATCH($E$2,'Data by Building Type'!$D$22:$F$22,0))=\"Yes\",1,0)*\n(AJ$10*OFFSET('Efficiency Distributions'!$D$10,MATCH($C67,'Efficiency Distributions'!$C$9:$C$87,0)+RIGHT($E71),0)\n+AJ$11*OFFSET('Efficiency Distributions'!$E$10,MATCH($C67,'Efficiency Distributions'!$C$9:$C$87,0)+RIGHT($E71),0))\n/SUM(AJ$10:AJ$11)","v":0.12973298976617334},{"$f":"IF(INDEX(PC_MAPPING,RIGHT($C67,1),MATCH($E$2,'Data by Building Type'!$D$22:$F$22,0))=\"Yes\",1,0)*\n(AK$10*OFFSET('Efficiency Distributions'!$D$10,MATCH($C67,'Efficiency Distributions'!$C$9:$C$87,0)+RIGHT($E71),0)\n+AK$11*OFFSET('Efficiency Distributions'!$E$10,MATCH($C67,'Efficiency Distributions'!$C$9:$C$87,0)+RIGHT($E71),0))\n/SUM(AK$10:AK$11)","v":0.19399112470285781},{"$f":"IF(INDEX(PC_MAPPING,RIGHT($C67,1),MATCH($E$2,'Data by Building Type'!$D$22:$F$22,0))=\"Yes\",1,0)*\n(AL$10*OFFSET('Efficiency Distributions'!$D$10,MATCH($C67,'Efficiency Distributions'!$C$9:$C$87,0)+RIGHT($E71),0)\n+AL$11*OFFSET('Efficiency Distributions'!$E$10,MATCH($C67,'Efficiency Distributions'!$C$9:$C$87,0)+RIGHT($E71),0))\n/SUM(AL$10:AL$11)","v":0.19206807171886603},{"$f":"IF(INDEX(PC_MAPPING,RIGHT($C67,1),MATCH($E$2,'Data by Building Type'!$D$22:$F$22,0))=\"Yes\",1,0)*\n(AM$10*OFFSET('Efficiency Distributions'!$D$10,MATCH($C67,'Efficiency Distributions'!$C$9:$C$87,0)+RIGHT($E71),0)\n+AM$11*OFFSET('Efficiency Distributions'!$E$10,MATCH($C67,'Efficiency Distributions'!$C$9:$C$87,0)+RIGHT($E71),0))\n/SUM(AM$10:AM$11)","v":0.20032985820797289},{"$f":"IF(INDEX(PC_MAPPING,RIGHT($C67,1),MATCH($E$2,'Data by Building Type'!$D$22:$F$22,0))=\"Yes\",1,0)*\n(AN$10*OFFSET('Efficiency Distributions'!$D$10,MATCH($C67,'Efficiency Distributions'!$C$9:$C$87,0)+RIGHT($E71),0)\n+AN$11*OFFSET('Efficiency Distributions'!$E$10,MATCH($C67,'Efficiency Distributions'!$C$9:$C$87,0)+RIGHT($E71),0))\n/SUM(AN$10:AN$11)","v":0.19966281919899903},{"$f":"IF(INDEX(PC_MAPPING,RIGHT($C67,1),MATCH($E$2,'Data by Building Type'!$D$22:$F$22,0))=\"Yes\",1,0)*\n(AO$10*OFFSET('Efficiency Distributions'!$D$10,MATCH($C67,'Efficiency Distributions'!$C$9:$C$87,0)+RIGHT($E71),0)\n+AO$11*OFFSET('Efficiency Distributions'!$E$10,MATCH($C67,'Efficiency Distributions'!$C$9:$C$87,0)+RIGHT($E71),0))\n/SUM(AO$10:AO$11)","v":0.20290003173733198},{"$f":"IF(INDEX(PC_MAPPING,RIGHT($C67,1),MATCH($E$2,'Data by Building Type'!$D$22:$F$22,0))=\"Yes\",1,0)*\n(AP$10*OFFSET('Efficiency Distributions'!$D$10,MATCH($C67,'Efficiency Distributions'!$C$9:$C$87,0)+RIGHT($E71),0)\n+AP$11*OFFSET('Efficiency Distributions'!$E$10,MATCH($C67,'Efficiency Distributions'!$C$9:$C$87,0)+RIGHT($E71),0))\n/SUM(AP$10:AP$11)","v":0.201475885130247},{"$f":"IF(INDEX(PC_MAPPING,RIGHT($C67,1),MATCH($E$2,'Data by Building Type'!$D$22:$F$22,0))=\"Yes\",1,0)*\n(AQ$10*OFFSET('Efficiency Distributions'!$D$10,MATCH($C67,'Efficiency Distributions'!$C$9:$C$87,0)+RIGHT($E71),0)\n+AQ$11*OFFSET('Efficiency Distributions'!$E$10,MATCH($C67,'Efficiency Distributions'!$C$9:$C$87,0)+RIGHT($E71),0))\n/SUM(AQ$10:AQ$11)","v":0.20099224078119979},{"$f":"IF(INDEX(PC_MAPPING,RIGHT($C67,1),MATCH($E$2,'Data by Building Type'!$D$22:$F$22,0))=\"Yes\",1,0)*\n(AR$10*OFFSET('Efficiency Distributions'!$D$10,MATCH($C67,'Efficiency Distributions'!$C$9:$C$87,0)+RIGHT($E71),0)\n+AR$11*OFFSET('Efficiency Distributions'!$E$10,MATCH($C67,'Efficiency Distributions'!$C$9:$C$87,0)+RIGHT($E71),0))\n/SUM(AR$10:AR$11)","v":0.19946996383923579},{"$f":"IF(INDEX(PC_MAPPING,RIGHT($C67,1),MATCH($E$2,'Data by Building Type'!$D$22:$F$22,0))=\"Yes\",1,0)*\n(AS$10*OFFSET('Efficiency Distributions'!$D$10,MATCH($C67,'Efficiency Distributions'!$C$9:$C$87,0)+RIGHT($E71),0)\n+AS$11*OFFSET('Efficiency Distributions'!$E$10,MATCH($C67,'Efficiency Distributions'!$C$9:$C$87,0)+RIGHT($E71),0))\n/SUM(AS$10:AS$11)","v":0.19949018264114532},{"$f":"IF(INDEX(PC_MAPPING,RIGHT($C67,1),MATCH($E$2,'Data by Building Type'!$D$22:$F$22,0))=\"Yes\",1,0)*\n(AT$10*OFFSET('Efficiency Distributions'!$D$10,MATCH($C67,'Efficiency Distributions'!$C$9:$C$87,0)+RIGHT($E71),0)\n+AT$11*OFFSET('Efficiency Distributions'!$E$10,MATCH($C67,'Efficiency Distributions'!$C$9:$C$87,0)+RIGHT($E71),0))\n/SUM(AT$10:AT$11)","v":0.20029704720316072},{"$f":"IF(INDEX(PC_MAPPING,RIGHT($C67,1),MATCH($E$2,'Data by Building Type'!$D$22:$F$22,0))=\"Yes\",1,0)*\n(AU$10*OFFSET('Efficiency Distributions'!$D$10,MATCH($C67,'Efficiency Distributions'!$C$9:$C$87,0)+RIGHT($E71),0)\n+AU$11*OFFSET('Efficiency Distributions'!$E$10,MATCH($C67,'Efficiency Distributions'!$C$9:$C$87,0)+RIGHT($E71),0))\n/SUM(AU$10:AU$11)","v":0.19934951146654351},{"$f":"IF(INDEX(PC_MAPPING,RIGHT($C67,1),MATCH($E$2,'Data by Building Type'!$D$22:$F$22,0))=\"Yes\",1,0)*\n(AV$10*OFFSET('Efficiency Distributions'!$D$10,MATCH($C67,'Efficiency Distributions'!$C$9:$C$87,0)+RIGHT($E71),0)\n+AV$11*OFFSET('Efficiency Distributions'!$E$10,MATCH($C67,'Efficiency Distributions'!$C$9:$C$87,0)+RIGHT($E71),0))\n/SUM(AV$10:AV$11)","v":0.18627371727583869},{"$f":"IF(INDEX(PC_MAPPING,RIGHT($C67,1),MATCH($E$2,'Data by Building Type'!$D$22:$F$22,0))=\"Yes\",1,0)*\n(AW$10*OFFSET('Efficiency Distributions'!$D$10,MATCH($C67,'Efficiency Distributions'!$C$9:$C$87,0)+RIGHT($E71),0)\n+AW$11*OFFSET('Efficiency Distributions'!$E$10,MATCH($C67,'Efficiency Distributions'!$C$9:$C$87,0)+RIGHT($E71),0))\n/SUM(AW$10:AW$11)","v":0.18704477127341282},{"$f":"IF(INDEX(PC_MAPPING,RIGHT($C67,1),MATCH($E$2,'Data by Building Type'!$D$22:$F$22,0))=\"Yes\",1,0)*\n(AX$10*OFFSET('Efficiency Distributions'!$D$10,MATCH($C67,'Efficiency Distributions'!$C$9:$C$87,0)+RIGHT($E71),0)\n+AX$11*OFFSET('Efficiency Distributions'!$E$10,MATCH($C67,'Efficiency Distributions'!$C$9:$C$87,0)+RIGHT($E71),0))\n/SUM(AX$10:AX$11)","v":0.18315296797551658},{"$f":"IF(INDEX(PC_MAPPING,RIGHT($C67,1),MATCH($E$2,'Data by Building Type'!$D$22:$F$22,0))=\"Yes\",1,0)*\n(AY$10*OFFSET('Efficiency Distributions'!$D$10,MATCH($C67,'Efficiency Distributions'!$C$9:$C$87,0)+RIGHT($E71),0)\n+AY$11*OFFSET('Efficiency Distributions'!$E$10,MATCH($C67,'Efficiency Distributions'!$C$9:$C$87,0)+RIGHT($E71),0))\n/SUM(AY$10:AY$11)","v":0.1819721075945277},{"$f":"IF(INDEX(PC_MAPPING,RIGHT($C67,1),MATCH($E$2,'Data by Building Type'!$D$22:$F$22,0))=\"Yes\",1,0)*\n(AZ$10*OFFSET('Efficiency Distributions'!$D$10,MATCH($C67,'Efficiency Distributions'!$C$9:$C$87,0)+RIGHT($E71),0)\n+AZ$11*OFFSET('Efficiency Distributions'!$E$10,MATCH($C67,'Efficiency Distributions'!$C$9:$C$87,0)+RIGHT($E71),0))\n/SUM(AZ$10:AZ$11)","v":0.18374381683151603},{"$f":"IF(INDEX(PC_MAPPING,RIGHT($C67,1),MATCH($E$2,'Data by Building Type'!$D$22:$F$22,0))=\"Yes\",1,0)*\n(BA$10*OFFSET('Efficiency Distributions'!$D$10,MATCH($C67,'Efficiency Distributions'!$C$9:$C$87,0)+RIGHT($E71),0)\n+BA$11*OFFSET('Efficiency Distributions'!$E$10,MATCH($C67,'Efficiency Distributions'!$C$9:$C$87,0)+RIGHT($E71),0))\n/SUM(BA$10:BA$11)","v":0.18646798659649519},{"$f":"IF(INDEX(PC_MAPPING,RIGHT($C67,1),MATCH($E$2,'Data by Building Type'!$D$22:$F$22,0))=\"Yes\",1,0)*\n(BB$10*OFFSET('Efficiency Distributions'!$D$10,MATCH($C67,'Efficiency Distributions'!$C$9:$C$87,0)+RIGHT($E71),0)\n+BB$11*OFFSET('Efficiency Distributions'!$E$10,MATCH($C67,'Efficiency Distributions'!$C$9:$C$87,0)+RIGHT($E71),0))\n/SUM(BB$10:BB$11)","v":0.19229730726260491},{"$f":"IF(INDEX(PC_MAPPING,RIGHT($C67,1),MATCH($E$2,'Data by Building Type'!$D$22:$F$22,0))=\"Yes\",1,0)*\n(BC$10*OFFSET('Efficiency Distributions'!$D$10,MATCH($C67,'Efficiency Distributions'!$C$9:$C$87,0)+RIGHT($E71),0)\n+BC$11*OFFSET('Efficiency Distributions'!$E$10,MATCH($C67,'Efficiency Distributions'!$C$9:$C$87,0)+RIGHT($E71),0))\n/SUM(BC$10:BC$11)","v":0.19347933582580698},{"$f":"IF(INDEX(PC_MAPPING,RIGHT($C67,1),MATCH($E$2,'Data by Building Type'!$D$22:$F$22,0))=\"Yes\",1,0)*\n(BD$10*OFFSET('Efficiency Distributions'!$D$10,MATCH($C67,'Efficiency Distributions'!$C$9:$C$87,0)+RIGHT($E71),0)\n+BD$11*OFFSET('Efficiency Distributions'!$E$10,MATCH($C67,'Efficiency Distributions'!$C$9:$C$87,0)+RIGHT($E71),0))\n/SUM(BD$10:BD$11)","v":0.18686488697474393},{"$f":"IF(INDEX(PC_MAPPING,RIGHT($C67,1),MATCH($E$2,'Data by Building Type'!$D$22:$F$22,0))=\"Yes\",1,0)*\n(BE$10*OFFSET('Efficiency Distributions'!$D$10,MATCH($C67,'Efficiency Distributions'!$C$9:$C$87,0)+RIGHT($E71),0)\n+BE$11*OFFSET('Efficiency Distributions'!$E$10,MATCH($C67,'Efficiency Distributions'!$C$9:$C$87,0)+RIGHT($E71),0))\n/SUM(BE$10:BE$11)","v":0.182240557293256},{"$f":"IF(INDEX(PC_MAPPING,RIGHT($C67,1),MATCH($E$2,'Data by Building Type'!$D$22:$F$22,0))=\"Yes\",1,0)*\n(BF$10*OFFSET('Efficiency Distributions'!$D$10,MATCH($C67,'Efficiency Distributions'!$C$9:$C$87,0)+RIGHT($E71),0)\n+BF$11*OFFSET('Efficiency Distributions'!$E$10,MATCH($C67,'Efficiency Distributions'!$C$9:$C$87,0)+RIGHT($E71),0))\n/SUM(BF$10:BF$11)","v":0.17304840732854526},{"$f":"IF(INDEX(PC_MAPPING,RIGHT($C67,1),MATCH($E$2,'Data by Building Type'!$D$22:$F$22,0))=\"Yes\",1,0)*\n(BG$10*OFFSET('Efficiency Distributions'!$D$10,MATCH($C67,'Efficiency Distributions'!$C$9:$C$87,0)+RIGHT($E71),0)\n+BG$11*OFFSET('Efficiency Distributions'!$E$10,MATCH($C67,'Efficiency Distributions'!$C$9:$C$87,0)+RIGHT($E71),0))\n/SUM(BG$10:BG$11)","v":0.17134772932019185}]
[null,null,null,null,"EL1",{"$f":"IF(INDEX(PC_MAPPING,RIGHT($C67,1),MATCH($E$2,'Data by Building Type'!$D$22:$F$22,0))=\"Yes\",1,0)*\n(F$10*OFFSET('Efficiency Distributions'!$D$10,MATCH($C67,'Efficiency Distributions'!$C$9:$C$87,0)+RIGHT($E72),0)\n+F$11*OFFSET('Efficiency Distributions'!$E$10,MATCH($C67,'Efficiency Distributions'!$C$9:$C$87,0)+RIGHT($E72),0))\n/SUM(F$10:F$11)","v":0.23384308812029883},{"$f":"IF(INDEX(PC_MAPPING,RIGHT($C67,1),MATCH($E$2,'Data by Building Type'!$D$22:$F$22,0))=\"Yes\",1,0)*\n(G$10*OFFSET('Efficiency Distributions'!$D$10,MATCH($C67,'Efficiency Distributions'!$C$9:$C$87,0)+RIGHT($E72),0)\n+G$11*OFFSET('Efficiency Distributions'!$E$10,MATCH($C67,'Efficiency Distributions'!$C$9:$C$87,0)+RIGHT($E72),0))\n/SUM(G$10:G$11)","v":0.22165433531448447},{"$f":"IF(INDEX(PC_MAPPING,RIGHT($C67,1),MATCH($E$2,'Data by Building Type'!$D$22:$F$22,0))=\"Yes\",1,0)*\n(H$10*OFFSET('Efficiency Distributions'!$D$10,MATCH($C67,'Efficiency Distributions'!$C$9:$C$87,0)+RIGHT($E72),0)\n+H$11*OFFSET('Efficiency Distributions'!$E$10,MATCH($C67,'Efficiency Distributions'!$C$9:$C$87,0)+RIGHT($E72),0))\n/SUM(H$10:H$11)","v":0.23623509959996664},{"$f":"IF(INDEX(PC_MAPPING,RIGHT($C67,1),MATCH($E$2,'Data by Building Type'!$D$22:$F$22,0))=\"Yes\",1,0)*\n(I$10*OFFSET('Efficiency Distributions'!$D$10,MATCH($C67,'Efficiency Distributions'!$C$9:$C$87,0)+RIGHT($E72),0)\n+I$11*OFFSET('Efficiency Distributions'!$E$10,MATCH($C67,'Efficiency Distributions'!$C$9:$C$87,0)+RIGHT($E72),0))\n/SUM(I$10:I$11)","v":0.2335157094572789},{"$f":"IF(INDEX(PC_MAPPING,RIGHT($C67,1),MATCH($E$2,'Data by Building Type'!$D$22:$F$22,0))=\"Yes\",1,0)*\n(J$10*OFFSET('Efficiency Distributions'!$D$10,MATCH($C67,'Efficiency Distributions'!$C$9:$C$87,0)+RIGHT($E72),0)\n+J$11*OFFSET('Efficiency Distributions'!$E$10,MATCH($C67,'Efficiency Distributions'!$C$9:$C$87,0)+RIGHT($E72),0))\n/SUM(J$10:J$11)","v":0.23183200341762558},{"$f":"IF(INDEX(PC_MAPPING,RIGHT($C67,1),MATCH($E$2,'Data by Building Type'!$D$22:$F$22,0))=\"Yes\",1,0)*\n(K$10*OFFSET('Efficiency Distributions'!$D$10,MATCH($C67,'Efficiency Distributions'!$C$9:$C$87,0)+RIGHT($E72),0)\n+K$11*OFFSET('Efficiency Distributions'!$E$10,MATCH($C67,'Efficiency Distributions'!$C$9:$C$87,0)+RIGHT($E72),0))\n/SUM(K$10:K$11)","v":0.23461133699120187},{"$f":"IF(INDEX(PC_MAPPING,RIGHT($C67,1),MATCH($E$2,'Data by Building Type'!$D$22:$F$22,0))=\"Yes\",1,0)*\n(L$10*OFFSET('Efficiency Distributions'!$D$10,MATCH($C67,'Efficiency Distributions'!$C$9:$C$87,0)+RIGHT($E72),0)\n+L$11*OFFSET('Efficiency Distributions'!$E$10,MATCH($C67,'Efficiency Distributions'!$C$9:$C$87,0)+RIGHT($E72),0))\n/SUM(L$10:L$11)","v":0.23483001313538832},{"$f":"IF(INDEX(PC_MAPPING,RIGHT($C67,1),MATCH($E$2,'Data by Building Type'!$D$22:$F$22,0))=\"Yes\",1,0)*\n(M$10*OFFSET('Efficiency Distributions'!$D$10,MATCH($C67,'Efficiency Distributions'!$C$9:$C$87,0)+RIGHT($E72),0)\n+M$11*OFFSET('Efficiency Distributions'!$E$10,MATCH($C67,'Efficiency Distributions'!$C$9:$C$87,0)+RIGHT($E72),0))\n/SUM(M$10:M$11)","v":0.23855384383946088},{"$f":"IF(INDEX(PC_MAPPING,RIGHT($C67,1),MATCH($E$2,'Data by Building Type'!$D$22:$F$22,0))=\"Yes\",1,0)*\n(N$10*OFFSET('Efficiency Distributions'!$D$10,MATCH($C67,'Efficiency Distributions'!$C$9:$C$87,0)+RIGHT($E72),0)\n+N$11*OFFSET('Efficiency Distributions'!$E$10,MATCH($C67,'Efficiency Distributions'!$C$9:$C$87,0)+RIGHT($E72),0))\n/SUM(N$10:N$11)","v":0.24705127138744007},{"$f":"IF(INDEX(PC_MAPPING,RIGHT($C67,1),MATCH($E$2,'Data by Building Type'!$D$22:$F$22,0))=\"Yes\",1,0)*\n(O$10*OFFSET('Efficiency Distributions'!$D$10,MATCH($C67,'Efficiency Distributions'!$C$9:$C$87,0)+RIGHT($E72),0)\n+O$11*OFFSET('Efficiency Distributions'!$E$10,MATCH($C67,'Efficiency Distributions'!$C$9:$C$87,0)+RIGHT($E72),0))\n/SUM(O$10:O$11)","v":0.25284185422395705},{"$f":"IF(INDEX(PC_MAPPING,RIGHT($C67,1),MATCH($E$2,'Data by Building Type'!$D$22:$F$22,0))=\"Yes\",1,0)*\n(P$10*OFFSET('Efficiency Distributions'!$D$10,MATCH($C67,'Efficiency Distributions'!$C$9:$C$87,0)+RIGHT($E72),0)\n+P$11*OFFSET('Efficiency Distributions'!$E$10,MATCH($C67,'Efficiency Distributions'!$C$9:$C$87,0)+RIGHT($E72),0))\n/SUM(P$10:P$11)","v":0.24693862193580685},{"$f":"IF(INDEX(PC_MAPPING,RIGHT($C67,1),MATCH($E$2,'Data by Building Type'!$D$22:$F$22,0))=\"Yes\",1,0)*\n(Q$10*OFFSET('Efficiency Distributions'!$D$10,MATCH($C67,'Efficiency Distributions'!$C$9:$C$87,0)+RIGHT($E72),0)\n+Q$11*OFFSET('Efficiency Distributions'!$E$10,MATCH($C67,'Efficiency Distributions'!$C$9:$C$87,0)+RIGHT($E72),0))\n/SUM(Q$10:Q$11)","v":0.25664796113387761},{"$f":"IF(INDEX(PC_MAPPING,RIGHT($C67,1),MATCH($E$2,'Data by Building Type'!$D$22:$F$22,0))=\"Yes\",1,0)*\n(R$10*OFFSET('Efficiency Distributions'!$D$10,MATCH($C67,'Efficiency Distributions'!$C$9:$C$87,0)+RIGHT($E72),0)\n+R$11*OFFSET('Efficiency Distributions'!$E$10,MATCH($C67,'Efficiency Distributions'!$C$9:$C$87,0)+RIGHT($E72),0))\n/SUM(R$10:R$11)","v":0.22997716876145524},{"$f":"IF(INDEX(PC_MAPPING,RIGHT($C67,1),MATCH($E$2,'Data by Building Type'!$D$22:$F$22,0))=\"Yes\",1,0)*\n(S$10*OFFSET('Efficiency Distributions'!$D$10,MATCH($C67,'Efficiency Distributions'!$C$9:$C$87,0)+RIGHT($E72),0)\n+S$11*OFFSET('Efficiency Distributions'!$E$10,MATCH($C67,'Efficiency Distributions'!$C$9:$C$87,0)+RIGHT($E72),0))\n/SUM(S$10:S$11)","v":0.2326634232369264},{"$f":"IF(INDEX(PC_MAPPING,RIGHT($C67,1),MATCH($E$2,'Data by Building Type'!$D$22:$F$22,0))=\"Yes\",1,0)*\n(T$10*OFFSET('Efficiency Distributions'!$D$10,MATCH($C67,'Efficiency Distributions'!$C$9:$C$87,0)+RIGHT($E72),0)\n+T$11*OFFSET('Efficiency Distributions'!$E$10,MATCH($C67,'Efficiency Distributions'!$C$9:$C$87,0)+RIGHT($E72),0))\n/SUM(T$10:T$11)","v":0.22276534415720464},{"$f":"IF(INDEX(PC_MAPPING,RIGHT($C67,1),MATCH($E$2,'Data by Building Type'!$D$22:$F$22,0))=\"Yes\",1,0)*\n(U$10*OFFSET('Efficiency Distributions'!$D$10,MATCH($C67,'Efficiency Distributions'!$C$9:$C$87,0)+RIGHT($E72),0)\n+U$11*OFFSET('Efficiency Distributions'!$E$10,MATCH($C67,'Efficiency Distributions'!$C$9:$C$87,0)+RIGHT($E72),0))\n/SUM(U$10:U$11)","v":0.2241912967974152},{"$f":"IF(INDEX(PC_MAPPING,RIGHT($C67,1),MATCH($E$2,'Data by Building Type'!$D$22:$F$22,0))=\"Yes\",1,0)*\n(V$10*OFFSET('Efficiency Distributions'!$D$10,MATCH($C67,'Efficiency Distributions'!$C$9:$C$87,0)+RIGHT($E72),0)\n+V$11*OFFSET('Efficiency Distributions'!$E$10,MATCH($C67,'Efficiency Distributions'!$C$9:$C$87,0)+RIGHT($E72),0))\n/SUM(V$10:V$11)","v":0.22208236661817471},{"$f":"IF(INDEX(PC_MAPPING,RIGHT($C67,1),MATCH($E$2,'Data by Building Type'!$D$22:$F$22,0))=\"Yes\",1,0)*\n(W$10*OFFSET('Efficiency Distributions'!$D$10,MATCH($C67,'Efficiency Distributions'!$C$9:$C$87,0)+RIGHT($E72),0)\n+W$11*OFFSET('Efficiency Distributions'!$E$10,MATCH($C67,'Efficiency Distributions'!$C$9:$C$87,0)+RIGHT($E72),0))\n/SUM(W$10:W$11)","v":0.22309361617346984},{"$f":"IF(INDEX(PC_MAPPING,RIGHT($C67,1),MATCH($E$2,'Data by Building Type'!$D$22:$F$22,0))=\"Yes\",1,0)*\n(X$10*OFFSET('Efficiency Distributions'!$D$10,MATCH($C67,'Efficiency Distributions'!$C$9:$C$87,0)+RIGHT($E72),0)\n+X$11*OFFSET('Efficiency Distributions'!$E$10,MATCH($C67,'Efficiency Distributions'!$C$9:$C$87,0)+RIGHT($E72),0))\n/SUM(X$10:X$11)","v":0.21984727121665493},{"$f":"IF(INDEX(PC_MAPPING,RIGHT($C67,1),MATCH($E$2,'Data by Building Type'!$D$22:$F$22,0))=\"Yes\",1,0)*\n(Y$10*OFFSET('Efficiency Distributions'!$D$10,MATCH($C67,'Efficiency Distributions'!$C$9:$C$87,0)+RIGHT($E72),0)\n+Y$11*OFFSET('Efficiency Distributions'!$E$10,MATCH($C67,'Efficiency Distributions'!$C$9:$C$87,0)+RIGHT($E72),0))\n/SUM(Y$10:Y$11)","v":0.21194907161020476},{"$f":"IF(INDEX(PC_MAPPING,RIGHT($C67,1),MATCH($E$2,'Data by Building Type'!$D$22:$F$22,0))=\"Yes\",1,0)*\n(Z$10*OFFSET('Efficiency Distributions'!$D$10,MATCH($C67,'Efficiency Distributions'!$C$9:$C$87,0)+RIGHT($E72),0)\n+Z$11*OFFSET('Efficiency Distributions'!$E$10,MATCH($C67,'Efficiency Distributions'!$C$9:$C$87,0)+RIGHT($E72),0))\n/SUM(Z$10:Z$11)","v":0.21181569568784131},{"$f":"IF(INDEX(PC_MAPPING,RIGHT($C67,1),MATCH($E$2,'Data by Building Type'!$D$22:$F$22,0))=\"Yes\",1,0)*\n(AA$10*OFFSET('Efficiency Distributions'!$D$10,MATCH($C67,'Efficiency Distributions'!$C$9:$C$87,0)+RIGHT($E72),0)\n+AA$11*OFFSET('Efficiency Distributions'!$E$10,MATCH($C67,'Efficiency Distributions'!$C$9:$C$87,0)+RIGHT($E72),0))\n/SUM(AA$10:AA$11)","v":0.21303925984193389},{"$f":"IF(INDEX(PC_MAPPING,RIGHT($C67,1),MATCH($E$2,'Data by Building Type'!$D$22:$F$22,0))=\"Yes\",1,0)*\n(AB$10*OFFSET('Efficiency Distributions'!$D$10,MATCH($C67,'Efficiency Distributions'!$C$9:$C$87,0)+RIGHT($E72),0)\n+AB$11*OFFSET('Efficiency Distributions'!$E$10,MATCH($C67,'Efficiency Distributions'!$C$9:$C$87,0)+RIGHT($E72),0))\n/SUM(AB$10:AB$11)","v":0.22001044607440925},{"$f":"IF(INDEX(PC_MAPPING,RIGHT($C67,1),MATCH($E$2,'Data by Building Type'!$D$22:$F$22,0))=\"Yes\",1,0)*\n(AC$10*OFFSET('Efficiency Distributions'!$D$10,MATCH($C67,'Efficiency Distributions'!$C$9:$C$87,0)+RIGHT($E72),0)\n+AC$11*OFFSET('Efficiency Distributions'!$E$10,MATCH($C67,'Efficiency Distributions'!$C$9:$C$87,0)+RIGHT($E72),0))\n/SUM(AC$10:AC$11)","v":0.21952347649277548},{"$f":"IF(INDEX(PC_MAPPING,RIGHT($C67,1),MATCH($E$2,'Data by Building Type'!$D$22:$F$22,0))=\"Yes\",1,0)*\n(AD$10*OFFSET('Efficiency Distributions'!$D$10,MATCH($C67,'Efficiency Distributions'!$C$9:$C$87,0)+RIGHT($E72),0)\n+AD$11*OFFSET('Efficiency Distributions'!$E$10,MATCH($C67,'Efficiency Distributions'!$C$9:$C$87,0)+RIGHT($E72),0))\n/SUM(AD$10:AD$11)","v":0.22552522098116404},{"$f":"IF(INDEX(PC_MAPPING,RIGHT($C67,1),MATCH($E$2,'Data by Building Type'!$D$22:$F$22,0))=\"Yes\",1,0)*\n(AE$10*OFFSET('Efficiency Distributions'!$D$10,MATCH($C67,'Efficiency Distributions'!$C$9:$C$87,0)+RIGHT($E72),0)\n+AE$11*OFFSET('Efficiency Distributions'!$E$10,MATCH($C67,'Efficiency Distributions'!$C$9:$C$87,0)+RIGHT($E72),0))\n/SUM(AE$10:AE$11)","v":0.21641642111726819},{"$f":"IF(INDEX(PC_MAPPING,RIGHT($C67,1),MATCH($E$2,'Data by Building Type'!$D$22:$F$22,0))=\"Yes\",1,0)*\n(AF$10*OFFSET('Efficiency Distributions'!$D$10,MATCH($C67,'Efficiency Distributions'!$C$9:$C$87,0)+RIGHT($E72),0)\n+AF$11*OFFSET('Efficiency Distributions'!$E$10,MATCH($C67,'Efficiency Distributions'!$C$9:$C$87,0)+RIGHT($E72),0))\n/SUM(AF$10:AF$11)","v":0.19629597267109974},{"$f":"IF(INDEX(PC_MAPPING,RIGHT($C67,1),MATCH($E$2,'Data by Building Type'!$D$22:$F$22,0))=\"Yes\",1,0)*\n(AG$10*OFFSET('Efficiency Distributions'!$D$10,MATCH($C67,'Efficiency Distributions'!$C$9:$C$87,0)+RIGHT($E72),0)\n+AG$11*OFFSET('Efficiency Distributions'!$E$10,MATCH($C67,'Efficiency Distributions'!$C$9:$C$87,0)+RIGHT($E72),0))\n/SUM(AG$10:AG$11)","v":0.18770563626976156},{"$f":"IF(INDEX(PC_MAPPING,RIGHT($C67,1),MATCH($E$2,'Data by Building Type'!$D$22:$F$22,0))=\"Yes\",1,0)*\n(AH$10*OFFSET('Efficiency Distributions'!$D$10,MATCH($C67,'Efficiency Distributions'!$C$9:$C$87,0)+RIGHT($E72),0)\n+AH$11*OFFSET('Efficiency Distributions'!$E$10,MATCH($C67,'Efficiency Distributions'!$C$9:$C$87,0)+RIGHT($E72),0))\n/SUM(AH$10:AH$11)","v":0.18770563626976156},{"$f":"IF(INDEX(PC_MAPPING,RIGHT($C67,1),MATCH($E$2,'Data by Building Type'!$D$22:$F$22,0))=\"Yes\",1,0)*\n(AI$10*OFFSET('Efficiency Distributions'!$D$10,MATCH($C67,'Efficiency Distributions'!$C$9:$C$87,0)+RIGHT($E72),0)\n+AI$11*OFFSET('Efficiency Distributions'!$E$10,MATCH($C67,'Efficiency Distributions'!$C$9:$C$87,0)+RIGHT($E72),0))\n/SUM(AI$10:AI$11)","v":0.18770563626976156},{"$f":"IF(INDEX(PC_MAPPING,RIGHT($C67,1),MATCH($E$2,'Data by Building Type'!$D$22:$F$22,0))=\"Yes\",1,0)*\n(AJ$10*OFFSET('Efficiency Distributions'!$D$10,MATCH($C67,'Efficiency Distributions'!$C$9:$C$87,0)+RIGHT($E72),0)\n+AJ$11*OFFSET('Efficiency Distributions'!$E$10,MATCH($C67,'Efficiency Distributions'!$C$9:$C$87,0)+RIGHT($E72),0))\n/SUM(AJ$10:AJ$11)","v":0.19128412946176562},{"$f":"IF(INDEX(PC_MAPPING,RIGHT($C67,1),MATCH($E$2,'Data by Building Type'!$D$22:$F$22,0))=\"Yes\",1,0)*\n(AK$10*OFFSET('Efficiency Distributions'!$D$10,MATCH($C67,'Efficiency Distributions'!$C$9:$C$87,0)+RIGHT($E72),0)\n+AK$11*OFFSET('Efficiency Distributions'!$E$10,MATCH($C67,'Efficiency Distributions'!$C$9:$C$87,0)+RIGHT($E72),0))\n/SUM(AK$10:AK$11)","v":0.24131727910695691},{"$f":"IF(INDEX(PC_MAPPING,RIGHT($C67,1),MATCH($E$2,'Data by Building Type'!$D$22:$F$22,0))=\"Yes\",1,0)*\n(AL$10*OFFSET('Efficiency Distributions'!$D$10,MATCH($C67,'Efficiency Distributions'!$C$9:$C$87,0)+RIGHT($E72),0)\n+AL$11*OFFSET('Efficiency Distributions'!$E$10,MATCH($C67,'Efficiency Distributions'!$C$9:$C$87,0)+RIGHT($E72),0))\n/SUM(AL$10:AL$11)","v":0.23981993720902453},{"$f":"IF(INDEX(PC_MAPPING,RIGHT($C67,1),MATCH($E$2,'Data by Building Type'!$D$22:$F$22,0))=\"Yes\",1,0)*\n(AM$10*OFFSET('Efficiency Distributions'!$D$10,MATCH($C67,'Efficiency Distributions'!$C$9:$C$87,0)+RIGHT($E72),0)\n+AM$11*OFFSET('Efficiency Distributions'!$E$10,MATCH($C67,'Efficiency Distributions'!$C$9:$C$87,0)+RIGHT($E72),0))\n/SUM(AM$10:AM$11)","v":0.24625279119947102},{"$f":"IF(INDEX(PC_MAPPING,RIGHT($C67,1),MATCH($E$2,'Data by Building Type'!$D$22:$F$22,0))=\"Yes\",1,0)*\n(AN$10*OFFSET('Efficiency Distributions'!$D$10,MATCH($C67,'Efficiency Distributions'!$C$9:$C$87,0)+RIGHT($E72),0)\n+AN$11*OFFSET('Efficiency Distributions'!$E$10,MATCH($C67,'Efficiency Distributions'!$C$9:$C$87,0)+RIGHT($E72),0))\n/SUM(AN$10:AN$11)","v":0.24573341629716408},{"$f":"IF(INDEX(PC_MAPPING,RIGHT($C67,1),MATCH($E$2,'Data by Building Type'!$D$22:$F$22,0))=\"Yes\",1,0)*\n(AO$10*OFFSET('Efficiency Distributions'!$D$10,MATCH($C67,'Efficiency Distributions'!$C$9:$C$87,0)+RIGHT($E72),0)\n+AO$11*OFFSET('Efficiency Distributions'!$E$10,MATCH($C67,'Efficiency Distributions'!$C$9:$C$87,0)+RIGHT($E72),0))\n/SUM(AO$10:AO$11)","v":0.24825399893659633},{"$f":"IF(INDEX(PC_MAPPING,RIGHT($C67,1),MATCH($E$2,'Data by Building Type'!$D$22:$F$22,0))=\"Yes\",1,0)*\n(AP$10*OFFSET('Efficiency Distributions'!$D$10,MATCH($C67,'Efficiency Distributions'!$C$9:$C$87,0)+RIGHT($E72),0)\n+AP$11*OFFSET('Efficiency Distributions'!$E$10,MATCH($C67,'Efficiency Distributions'!$C$9:$C$87,0)+RIGHT($E72),0))\n/SUM(AP$10:AP$11)","v":0.24714511925343738},{"$f":"IF(INDEX(PC_MAPPING,RIGHT($C67,1),MATCH($E$2,'Data by Building Type'!$D$22:$F$22,0))=\"Yes\",1,0)*\n(AQ$10*OFFSET('Efficiency Distributions'!$D$10,MATCH($C67,'Efficiency Distributions'!$C$9:$C$87,0)+RIGHT($E72),0)\n+AQ$11*OFFSET('Efficiency Distributions'!$E$10,MATCH($C67,'Efficiency Distributions'!$C$9:$C$87,0)+RIGHT($E72),0))\n/SUM(AQ$10:AQ$11)","v":0.24676854047294872},{"$f":"IF(INDEX(PC_MAPPING,RIGHT($C67,1),MATCH($E$2,'Data by Building Type'!$D$22:$F$22,0))=\"Yes\",1,0)*\n(AR$10*OFFSET('Efficiency Distributions'!$D$10,MATCH($C67,'Efficiency Distributions'!$C$9:$C$87,0)+RIGHT($E72),0)\n+AR$11*OFFSET('Efficiency Distributions'!$E$10,MATCH($C67,'Efficiency Distributions'!$C$9:$C$87,0)+RIGHT($E72),0))\n/SUM(AR$10:AR$11)","v":0.24558325381447732},{"$f":"IF(INDEX(PC_MAPPING,RIGHT($C67,1),MATCH($E$2,'Data by Building Type'!$D$22:$F$22,0))=\"Yes\",1,0)*\n(AS$10*OFFSET('Efficiency Distributions'!$D$10,MATCH($C67,'Efficiency Distributions'!$C$9:$C$87,0)+RIGHT($E72),0)\n+AS$11*OFFSET('Efficiency Distributions'!$E$10,MATCH($C67,'Efficiency Distributions'!$C$9:$C$87,0)+RIGHT($E72),0))\n/SUM(AS$10:AS$11)","v":0.24559899672924732},{"$f":"IF(INDEX(PC_MAPPING,RIGHT($C67,1),MATCH($E$2,'Data by Building Type'!$D$22:$F$22,0))=\"Yes\",1,0)*\n(AT$10*OFFSET('Efficiency Distributions'!$D$10,MATCH($C67,'Efficiency Distributions'!$C$9:$C$87,0)+RIGHT($E72),0)\n+AT$11*OFFSET('Efficiency Distributions'!$E$10,MATCH($C67,'Efficiency Distributions'!$C$9:$C$87,0)+RIGHT($E72),0))\n/SUM(AT$10:AT$11)","v":0.24622724364949322},{"$f":"IF(INDEX(PC_MAPPING,RIGHT($C67,1),MATCH($E$2,'Data by Building Type'!$D$22:$F$22,0))=\"Yes\",1,0)*\n(AU$10*OFFSET('Efficiency Distributions'!$D$10,MATCH($C67,'Efficiency Distributions'!$C$9:$C$87,0)+RIGHT($E72),0)\n+AU$11*OFFSET('Efficiency Distributions'!$E$10,MATCH($C67,'Efficiency Distributions'!$C$9:$C$87,0)+RIGHT($E72),0))\n/SUM(AU$10:AU$11)","v":0.24548946628712429},{"$f":"IF(INDEX(PC_MAPPING,RIGHT($C67,1),MATCH($E$2,'Data by Building Type'!$D$22:$F$22,0))=\"Yes\",1,0)*\n(AV$10*OFFSET('Efficiency Distributions'!$D$10,MATCH($C67,'Efficiency Distributions'!$C$9:$C$87,0)+RIGHT($E72),0)\n+AV$11*OFFSET('Efficiency Distributions'!$E$10,MATCH($C67,'Efficiency Distributions'!$C$9:$C$87,0)+RIGHT($E72),0))\n/SUM(AV$10:AV$11)","v":0.23530829361353389},{"$f":"IF(INDEX(PC_MAPPING,RIGHT($C67,1),MATCH($E$2,'Data by Building Type'!$D$22:$F$22,0))=\"Yes\",1,0)*\n(AW$10*OFFSET('Efficiency Distributions'!$D$10,MATCH($C67,'Efficiency Distributions'!$C$9:$C$87,0)+RIGHT($E72),0)\n+AW$11*OFFSET('Efficiency Distributions'!$E$10,MATCH($C67,'Efficiency Distributions'!$C$9:$C$87,0)+RIGHT($E72),0))\n/SUM(AW$10:AW$11)","v":0.23590865744424822},{"$f":"IF(INDEX(PC_MAPPING,RIGHT($C67,1),MATCH($E$2,'Data by Building Type'!$D$22:$F$22,0))=\"Yes\",1,0)*\n(AX$10*OFFSET('Efficiency Distributions'!$D$10,MATCH($C67,'Efficiency Distributions'!$C$9:$C$87,0)+RIGHT($E72),0)\n+AX$11*OFFSET('Efficiency Distributions'!$E$10,MATCH($C67,'Efficiency Distributions'!$C$9:$C$87,0)+RIGHT($E72),0))\n/SUM(AX$10:AX$11)","v":0.23287839245157216},{"$f":"IF(INDEX(PC_MAPPING,RIGHT($C67,1),MATCH($E$2,'Data by Building Type'!$D$22:$F$22,0))=\"Yes\",1,0)*\n(AY$10*OFFSET('Efficiency Distributions'!$D$10,MATCH($C67,'Efficiency Distributions'!$C$9:$C$87,0)+RIGHT($E72),0)\n+AY$11*OFFSET('Efficiency Distributions'!$E$10,MATCH($C67,'Efficiency Distributions'!$C$9:$C$87,0)+RIGHT($E72),0))\n/SUM(AY$10:AY$11)","v":0.23195894210944334},{"$f":"IF(INDEX(PC_MAPPING,RIGHT($C67,1),MATCH($E$2,'Data by Building Type'!$D$22:$F$22,0))=\"Yes\",1,0)*\n(AZ$10*OFFSET('Efficiency Distributions'!$D$10,MATCH($C67,'Efficiency Distributions'!$C$9:$C$87,0)+RIGHT($E72),0)\n+AZ$11*OFFSET('Efficiency Distributions'!$E$10,MATCH($C67,'Efficiency Distributions'!$C$9:$C$87,0)+RIGHT($E72),0))\n/SUM(AZ$10:AZ$11)","v":0.23333844360710346},{"$f":"IF(INDEX(PC_MAPPING,RIGHT($C67,1),MATCH($E$2,'Data by Building Type'!$D$22:$F$22,0))=\"Yes\",1,0)*\n(BA$10*OFFSET('Efficiency Distributions'!$D$10,MATCH($C67,'Efficiency Distributions'!$C$9:$C$87,0)+RIGHT($E72),0)\n+BA$11*OFFSET('Efficiency Distributions'!$E$10,MATCH($C67,'Efficiency Distributions'!$C$9:$C$87,0)+RIGHT($E72),0))\n/SUM(BA$10:BA$11)","v":0.23545955704502708},{"$f":"IF(INDEX(PC_MAPPING,RIGHT($C67,1),MATCH($E$2,'Data by Building Type'!$D$22:$F$22,0))=\"Yes\",1,0)*\n(BB$10*OFFSET('Efficiency Distributions'!$D$10,MATCH($C67,'Efficiency Distributions'!$C$9:$C$87,0)+RIGHT($E72),0)\n+BB$11*OFFSET('Efficiency Distributions'!$E$10,MATCH($C67,'Efficiency Distributions'!$C$9:$C$87,0)+RIGHT($E72),0))\n/SUM(BB$10:BB$11)","v":0.2399984263026651},{"$f":"IF(INDEX(PC_MAPPING,RIGHT($C67,1),MATCH($E$2,'Data by Building Type'!$D$22:$F$22,0))=\"Yes\",1,0)*\n(BC$10*OFFSET('Efficiency Distributions'!$D$10,MATCH($C67,'Efficiency Distributions'!$C$9:$C$87,0)+RIGHT($E72),0)\n+BC$11*OFFSET('Efficiency Distributions'!$E$10,MATCH($C67,'Efficiency Distributions'!$C$9:$C$87,0)+RIGHT($E72),0))\n/SUM(BC$10:BC$11)","v":0.24091878622356622},{"$f":"IF(INDEX(PC_MAPPING,RIGHT($C67,1),MATCH($E$2,'Data by Building Type'!$D$22:$F$22,0))=\"Yes\",1,0)*\n(BD$10*OFFSET('Efficiency Distributions'!$D$10,MATCH($C67,'Efficiency Distributions'!$C$9:$C$87,0)+RIGHT($E72),0)\n+BD$11*OFFSET('Efficiency Distributions'!$E$10,MATCH($C67,'Efficiency Distributions'!$C$9:$C$87,0)+RIGHT($E72),0))\n/SUM(BD$10:BD$11)","v":0.23576859458616825},{"$f":"IF(INDEX(PC_MAPPING,RIGHT($C67,1),MATCH($E$2,'Data by Building Type'!$D$22:$F$22,0))=\"Yes\",1,0)*\n(BE$10*OFFSET('Efficiency Distributions'!$D$10,MATCH($C67,'Efficiency Distributions'!$C$9:$C$87,0)+RIGHT($E72),0)\n+BE$11*OFFSET('Efficiency Distributions'!$E$10,MATCH($C67,'Efficiency Distributions'!$C$9:$C$87,0)+RIGHT($E72),0))\n/SUM(BE$10:BE$11)","v":0.23216796442174534},{"$f":"IF(INDEX(PC_MAPPING,RIGHT($C67,1),MATCH($E$2,'Data by Building Type'!$D$22:$F$22,0))=\"Yes\",1,0)*\n(BF$10*OFFSET('Efficiency Distributions'!$D$10,MATCH($C67,'Efficiency Distributions'!$C$9:$C$87,0)+RIGHT($E72),0)\n+BF$11*OFFSET('Efficiency Distributions'!$E$10,MATCH($C67,'Efficiency Distributions'!$C$9:$C$87,0)+RIGHT($E72),0))\n/SUM(BF$10:BF$11)","v":0.22501070386324049},{"$f":"IF(INDEX(PC_MAPPING,RIGHT($C67,1),MATCH($E$2,'Data by Building Type'!$D$22:$F$22,0))=\"Yes\",1,0)*\n(BG$10*OFFSET('Efficiency Distributions'!$D$10,MATCH($C67,'Efficiency Distributions'!$C$9:$C$87,0)+RIGHT($E72),0)\n+BG$11*OFFSET('Efficiency Distributions'!$E$10,MATCH($C67,'Efficiency Distributions'!$C$9:$C$87,0)+RIGHT($E72),0))\n/SUM(BG$10:BG$11)","v":0.22368650923210043}]
[null,null,null,null,"EL2",{"$f":"IF(INDEX(PC_MAPPING,RIGHT($C67,1),MATCH($E$2,'Data by Building Type'!$D$22:$F$22,0))=\"Yes\",1,0)*\n(F$10*OFFSET('Efficiency Distributions'!$D$10,MATCH($C67,'Efficiency Distributions'!$C$9:$C$87,0)+RIGHT($E73),0)\n+F$11*OFFSET('Efficiency Distributions'!$E$10,MATCH($C67,'Efficiency Distributions'!$C$9:$C$87,0)+RIGHT($E73),0))\n/SUM(F$10:F$11)","v":0},{"$f":"IF(INDEX(PC_MAPPING,RIGHT($C67,1),MATCH($E$2,'Data by Building Type'!$D$22:$F$22,0))=\"Yes\",1,0)*\n(G$10*OFFSET('Efficiency Distributions'!$D$10,MATCH($C67,'Efficiency Distributions'!$C$9:$C$87,0)+RIGHT($E73),0)\n+G$11*OFFSET('Efficiency Distributions'!$E$10,MATCH($C67,'Efficiency Distributions'!$C$9:$C$87,0)+RIGHT($E73),0))\n/SUM(G$10:G$11)","v":0},{"$f":"IF(INDEX(PC_MAPPING,RIGHT($C67,1),MATCH($E$2,'Data by Building Type'!$D$22:$F$22,0))=\"Yes\",1,0)*\n(H$10*OFFSET('Efficiency Distributions'!$D$10,MATCH($C67,'Efficiency Distributions'!$C$9:$C$87,0)+RIGHT($E73),0)\n+H$11*OFFSET('Efficiency Distributions'!$E$10,MATCH($C67,'Efficiency Distributions'!$C$9:$C$87,0)+RIGHT($E73),0))\n/SUM(H$10:H$11)","v":0},{"$f":"IF(INDEX(PC_MAPPING,RIGHT($C67,1),MATCH($E$2,'Data by Building Type'!$D$22:$F$22,0))=\"Yes\",1,0)*\n(I$10*OFFSET('Efficiency Distributions'!$D$10,MATCH($C67,'Efficiency Distributions'!$C$9:$C$87,0)+RIGHT($E73),0)\n+I$11*OFFSET('Efficiency Distributions'!$E$10,MATCH($C67,'Efficiency Distributions'!$C$9:$C$87,0)+RIGHT($E73),0))\n/SUM(I$10:I$11)","v":0},{"$f":"IF(INDEX(PC_MAPPING,RIGHT($C67,1),MATCH($E$2,'Data by Building Type'!$D$22:$F$22,0))=\"Yes\",1,0)*\n(J$10*OFFSET('Efficiency Distributions'!$D$10,MATCH($C67,'Efficiency Distributions'!$C$9:$C$87,0)+RIGHT($E73),0)\n+J$11*OFFSET('Efficiency Distributions'!$E$10,MATCH($C67,'Efficiency Distributions'!$C$9:$C$87,0)+RIGHT($E73),0))\n/SUM(J$10:J$11)","v":0},{"$f":"IF(INDEX(PC_MAPPING,RIGHT($C67,1),MATCH($E$2,'Data by Building Type'!$D$22:$F$22,0))=\"Yes\",1,0)*\n(K$10*OFFSET('Efficiency Distributions'!$D$10,MATCH($C67,'Efficiency Distributions'!$C$9:$C$87,0)+RIGHT($E73),0)\n+K$11*OFFSET('Efficiency Distributions'!$E$10,MATCH($C67,'Efficiency Distributions'!$C$9:$C$87,0)+RIGHT($E73),0))\n/SUM(K$10:K$11)","v":0},{"$f":"IF(INDEX(PC_MAPPING,RIGHT($C67,1),MATCH($E$2,'Data by Building Type'!$D$22:$F$22,0))=\"Yes\",1,0)*\n(L$10*OFFSET('Efficiency Distributions'!$D$10,MATCH($C67,'Efficiency Distributions'!$C$9:$C$87,0)+RIGHT($E73),0)\n+L$11*OFFSET('Efficiency Distributions'!$E$10,MATCH($C67,'Efficiency Distributions'!$C$9:$C$87,0)+RIGHT($E73),0))\n/SUM(L$10:L$11)","v":0},{"$f":"IF(INDEX(PC_MAPPING,RIGHT($C67,1),MATCH($E$2,'Data by Building Type'!$D$22:$F$22,0))=\"Yes\",1,0)*\n(M$10*OFFSET('Efficiency Distributions'!$D$10,MATCH($C67,'Efficiency Distributions'!$C$9:$C$87,0)+RIGHT($E73),0)\n+M$11*OFFSET('Efficiency Distributions'!$E$10,MATCH($C67,'Efficiency Distributions'!$C$9:$C$87,0)+RIGHT($E73),0))\n/SUM(M$10:M$11)","v":0},{"$f":"IF(INDEX(PC_MAPPING,RIGHT($C67,1),MATCH($E$2,'Data by Building Type'!$D$22:$F$22,0))=\"Yes\",1,0)*\n(N$10*OFFSET('Efficiency Distributions'!$D$10,MATCH($C67,'Efficiency Distributions'!$C$9:$C$87,0)+RIGHT($E73),0)\n+N$11*OFFSET('Efficiency Distributions'!$E$10,MATCH($C67,'Efficiency Distributions'!$C$9:$C$87,0)+RIGHT($E73),0))\n/SUM(N$10:N$11)","v":0},{"$f":"IF(INDEX(PC_MAPPING,RIGHT($C67,1),MATCH($E$2,'Data by Building Type'!$D$22:$F$22,0))=\"Yes\",1,0)*\n(O$10*OFFSET('Efficiency Distributions'!$D$10,MATCH($C67,'Efficiency Distributions'!$C$9:$C$87,0)+RIGHT($E73),0)\n+O$11*OFFSET('Efficiency Distributions'!$E$10,MATCH($C67,'Efficiency Distributions'!$C$9:$C$87,0)+RIGHT($E73),0))\n/SUM(O$10:O$11)","v":0},{"$f":"IF(INDEX(PC_MAPPING,RIGHT($C67,1),MATCH($E$2,'Data by Building Type'!$D$22:$F$22,0))=\"Yes\",1,0)*\n(P$10*OFFSET('Efficiency Distributions'!$D$10,MATCH($C67,'Efficiency Distributions'!$C$9:$C$87,0)+RIGHT($E73),0)\n+P$11*OFFSET('Efficiency Distributions'!$E$10,MATCH($C67,'Efficiency Distributions'!$C$9:$C$87,0)+RIGHT($E73),0))\n/SUM(P$10:P$11)","v":0},{"$f":"IF(INDEX(PC_MAPPING,RIGHT($C67,1),MATCH($E$2,'Data by Building Type'!$D$22:$F$22,0))=\"Yes\",1,0)*\n(Q$10*OFFSET('Efficiency Distributions'!$D$10,MATCH($C67,'Efficiency Distributions'!$C$9:$C$87,0)+RIGHT($E73),0)\n+Q$11*OFFSET('Efficiency Distributions'!$E$10,MATCH($C67,'Efficiency Distributions'!$C$9:$C$87,0)+RIGHT($E73),0))\n/SUM(Q$10:Q$11)","v":0},{"$f":"IF(INDEX(PC_MAPPING,RIGHT($C67,1),MATCH($E$2,'Data by Building Type'!$D$22:$F$22,0))=\"Yes\",1,0)*\n(R$10*OFFSET('Efficiency Distributions'!$D$10,MATCH($C67,'Efficiency Distributions'!$C$9:$C$87,0)+RIGHT($E73),0)\n+R$11*OFFSET('Efficiency Distributions'!$E$10,MATCH($C67,'Efficiency Distributions'!$C$9:$C$87,0)+RIGHT($E73),0))\n/SUM(R$10:R$11)","v":0},{"$f":"IF(INDEX(PC_MAPPING,RIGHT($C67,1),MATCH($E$2,'Data by Building Type'!$D$22:$F$22,0))=\"Yes\",1,0)*\n(S$10*OFFSET('Efficiency Distributions'!$D$10,MATCH($C67,'Efficiency Distributions'!$C$9:$C$87,0)+RIGHT($E73),0)\n+S$11*OFFSET('Efficiency Distributions'!$E$10,MATCH($C67,'Efficiency Distributions'!$C$9:$C$87,0)+RIGHT($E73),0))\n/SUM(S$10:S$11)","v":0},{"$f":"IF(INDEX(PC_MAPPING,RIGHT($C67,1),MATCH($E$2,'Data by Building Type'!$D$22:$F$22,0))=\"Yes\",1,0)*\n(T$10*OFFSET('Efficiency Distributions'!$D$10,MATCH($C67,'Efficiency Distributions'!$C$9:$C$87,0)+RIGHT($E73),0)\n+T$11*OFFSET('Efficiency Distributions'!$E$10,MATCH($C67,'Efficiency Distributions'!$C$9:$C$87,0)+RIGHT($E73),0))\n/SUM(T$10:T$11)","v":0},{"$f":"IF(INDEX(PC_MAPPING,RIGHT($C67,1),MATCH($E$2,'Data by Building Type'!$D$22:$F$22,0))=\"Yes\",1,0)*\n(U$10*OFFSET('Efficiency Distributions'!$D$10,MATCH($C67,'Efficiency Distributions'!$C$9:$C$87,0)+RIGHT($E73),0)\n+U$11*OFFSET('Efficiency Distributions'!$E$10,MATCH($C67,'Efficiency Distributions'!$C$9:$C$87,0)+RIGHT($E73),0))\n/SUM(U$10:U$11)","v":0},{"$f":"IF(INDEX(PC_MAPPING,RIGHT($C67,1),MATCH($E$2,'Data by Building Type'!$D$22:$F$22,0))=\"Yes\",1,0)*\n(V$10*OFFSET('Efficiency Distributions'!$D$10,MATCH($C67,'Efficiency Distributions'!$C$9:$C$87,0)+RIGHT($E73),0)\n+V$11*OFFSET('Efficiency Distributions'!$E$10,MATCH($C67,'Efficiency Distributions'!$C$9:$C$87,0)+RIGHT($E73),0))\n/SUM(V$10:V$11)","v":0},{"$f":"IF(INDEX(PC_MAPPING,RIGHT($C67,1),MATCH($E$2,'Data by Building Type'!$D$22:$F$22,0))=\"Yes\",1,0)*\n(W$10*OFFSET('Efficiency Distributions'!$D$10,MATCH($C67,'Efficiency Distributions'!$C$9:$C$87,0)+RIGHT($E73),0)\n+W$11*OFFSET('Efficiency Distributions'!$E$10,MATCH($C67,'Efficiency Distributions'!$C$9:$C$87,0)+RIGHT($E73),0))\n/SUM(W$10:W$11)","v":0},{"$f":"IF(INDEX(PC_MAPPING,RIGHT($C67,1),MATCH($E$2,'Data by Building Type'!$D$22:$F$22,0))=\"Yes\",1,0)*\n(X$10*OFFSET('Efficiency Distributions'!$D$10,MATCH($C67,'Efficiency Distributions'!$C$9:$C$87,0)+RIGHT($E73),0)\n+X$11*OFFSET('Efficiency Distributions'!$E$10,MATCH($C67,'Efficiency Distributions'!$C$9:$C$87,0)+RIGHT($E73),0))\n/SUM(X$10:X$11)","v":0},{"$f":"IF(INDEX(PC_MAPPING,RIGHT($C67,1),MATCH($E$2,'Data by Building Type'!$D$22:$F$22,0))=\"Yes\",1,0)*\n(Y$10*OFFSET('Efficiency Distributions'!$D$10,MATCH($C67,'Efficiency Distributions'!$C$9:$C$87,0)+RIGHT($E73),0)\n+Y$11*OFFSET('Efficiency Distributions'!$E$10,MATCH($C67,'Efficiency Distributions'!$C$9:$C$87,0)+RIGHT($E73),0))\n/SUM(Y$10:Y$11)","v":0},{"$f":"IF(INDEX(PC_MAPPING,RIGHT($C67,1),MATCH($E$2,'Data by Building Type'!$D$22:$F$22,0))=\"Yes\",1,0)*\n(Z$10*OFFSET('Efficiency Distributions'!$D$10,MATCH($C67,'Efficiency Distributions'!$C$9:$C$87,0)+RIGHT($E73),0)\n+Z$11*OFFSET('Efficiency Distributions'!$E$10,MATCH($C67,'Efficiency Distributions'!$C$9:$C$87,0)+RIGHT($E73),0))\n/SUM(Z$10:Z$11)","v":0},{"$f":"IF(INDEX(PC_MAPPING,RIGHT($C67,1),MATCH($E$2,'Data by Building Type'!$D$22:$F$22,0))=\"Yes\",1,0)*\n(AA$10*OFFSET('Efficiency Distributions'!$D$10,MATCH($C67,'Efficiency Distributions'!$C$9:$C$87,0)+RIGHT($E73),0)\n+AA$11*OFFSET('Efficiency Distributions'!$E$10,MATCH($C67,'Efficiency Distributions'!$C$9:$C$87,0)+RIGHT($E73),0))\n/SUM(AA$10:AA$11)","v":0},{"$f":"IF(INDEX(PC_MAPPING,RIGHT($C67,1),MATCH($E$2,'Data by Building Type'!$D$22:$F$22,0))=\"Yes\",1,0)*\n(AB$10*OFFSET('Efficiency Distributions'!$D$10,MATCH($C67,'Efficiency Distributions'!$C$9:$C$87,0)+RIGHT($E73),0)\n+AB$11*OFFSET('Efficiency Distributions'!$E$10,MATCH($C67,'Efficiency Distributions'!$C$9:$C$87,0)+RIGHT($E73),0))\n/SUM(AB$10:AB$11)","v":0},{"$f":"IF(INDEX(PC_MAPPING,RIGHT($C67,1),MATCH($E$2,'Data by Building Type'!$D$22:$F$22,0))=\"Yes\",1,0)*\n(AC$10*OFFSET('Efficiency Distributions'!$D$10,MATCH($C67,'Efficiency Distributions'!$C$9:$C$87,0)+RIGHT($E73),0)\n+AC$11*OFFSET('Efficiency Distributions'!$E$10,MATCH($C67,'Efficiency Distributions'!$C$9:$C$87,0)+RIGHT($E73),0))\n/SUM(AC$10:AC$11)","v":0},{"$f":"IF(INDEX(PC_MAPPING,RIGHT($C67,1),MATCH($E$2,'Data by Building Type'!$D$22:$F$22,0))=\"Yes\",1,0)*\n(AD$10*OFFSET('Efficiency Distributions'!$D$10,MATCH($C67,'Efficiency Distributions'!$C$9:$C$87,0)+RIGHT($E73),0)\n+AD$11*OFFSET('Efficiency Distributions'!$E$10,MATCH($C67,'Efficiency Distributions'!$C$9:$C$87,0)+RIGHT($E73),0))\n/SUM(AD$10:AD$11)","v":0},{"$f":"IF(INDEX(PC_MAPPING,RIGHT($C67,1),MATCH($E$2,'Data by Building Type'!$D$22:$F$22,0))=\"Yes\",1,0)*\n(AE$10*OFFSET('Efficiency Distributions'!$D$10,MATCH($C67,'Efficiency Distributions'!$C$9:$C$87,0)+RIGHT($E73),0)\n+AE$11*OFFSET('Efficiency Distributions'!$E$10,MATCH($C67,'Efficiency Distributions'!$C$9:$C$87,0)+RIGHT($E73),0))\n/SUM(AE$10:AE$11)","v":0},{"$f":"IF(INDEX(PC_MAPPING,RIGHT($C67,1),MATCH($E$2,'Data by Building Type'!$D$22:$F$22,0))=\"Yes\",1,0)*\n(AF$10*OFFSET('Efficiency Distributions'!$D$10,MATCH($C67,'Efficiency Distributions'!$C$9:$C$87,0)+RIGHT($E73),0)\n+AF$11*OFFSET('Efficiency Distributions'!$E$10,MATCH($C67,'Efficiency Distributions'!$C$9:$C$87,0)+RIGHT($E73),0))\n/SUM(AF$10:AF$11)","v":0},{"$f":"IF(INDEX(PC_MAPPING,RIGHT($C67,1),MATCH($E$2,'Data by Building Type'!$D$22:$F$22,0))=\"Yes\",1,0)*\n(AG$10*OFFSET('Efficiency Distributions'!$D$10,MATCH($C67,'Efficiency Distributions'!$C$9:$C$87,0)+RIGHT($E73),0)\n+AG$11*OFFSET('Efficiency Distributions'!$E$10,MATCH($C67,'Efficiency Distributions'!$C$9:$C$87,0)+RIGHT($E73),0))\n/SUM(AG$10:AG$11)","v":0},{"$f":"IF(INDEX(PC_MAPPING,RIGHT($C67,1),MATCH($E$2,'Data by Building Type'!$D$22:$F$22,0))=\"Yes\",1,0)*\n(AH$10*OFFSET('Efficiency Distributions'!$D$10,MATCH($C67,'Efficiency Distributions'!$C$9:$C$87,0)+RIGHT($E73),0)\n+AH$11*OFFSET('Efficiency Distributions'!$E$10,MATCH($C67,'Efficiency Distributions'!$C$9:$C$87,0)+RIGHT($E73),0))\n/SUM(AH$10:AH$11)","v":0},{"$f":"IF(INDEX(PC_MAPPING,RIGHT($C67,1),MATCH($E$2,'Data by Building Type'!$D$22:$F$22,0))=\"Yes\",1,0)*\n(AI$10*OFFSET('Efficiency Distributions'!$D$10,MATCH($C67,'Efficiency Distributions'!$C$9:$C$87,0)+RIGHT($E73),0)\n+AI$11*OFFSET('Efficiency Distributions'!$E$10,MATCH($C67,'Efficiency Distributions'!$C$9:$C$87,0)+RIGHT($E73),0))\n/SUM(AI$10:AI$11)","v":0},{"$f":"IF(INDEX(PC_MAPPING,RIGHT($C67,1),MATCH($E$2,'Data by Building Type'!$D$22:$F$22,0))=\"Yes\",1,0)*\n(AJ$10*OFFSET('Efficiency Distributions'!$D$10,MATCH($C67,'Efficiency Distributions'!$C$9:$C$87,0)+RIGHT($E73),0)\n+AJ$11*OFFSET('Efficiency Distributions'!$E$10,MATCH($C67,'Efficiency Distributions'!$C$9:$C$87,0)+RIGHT($E73),0))\n/SUM(AJ$10:AJ$11)","v":0},{"$f":"IF(INDEX(PC_MAPPING,RIGHT($C67,1),MATCH($E$2,'Data by Building Type'!$D$22:$F$22,0))=\"Yes\",1,0)*\n(AK$10*OFFSET('Efficiency Distributions'!$D$10,MATCH($C67,'Efficiency Distributions'!$C$9:$C$87,0)+RIGHT($E73),0)\n+AK$11*OFFSET('Efficiency Distributions'!$E$10,MATCH($C67,'Efficiency Distributions'!$C$9:$C$87,0)+RIGHT($E73),0))\n/SUM(AK$10:AK$11)","v":0},{"$f":"IF(INDEX(PC_MAPPING,RIGHT($C67,1),MATCH($E$2,'Data by Building Type'!$D$22:$F$22,0))=\"Yes\",1,0)*\n(AL$10*OFFSET('Efficiency Distributions'!$D$10,MATCH($C67,'Efficiency Distributions'!$C$9:$C$87,0)+RIGHT($E73),0)\n+AL$11*OFFSET('Efficiency Distributions'!$E$10,MATCH($C67,'Efficiency Distributions'!$C$9:$C$87,0)+RIGHT($E73),0))\n/SUM(AL$10:AL$11)","v":0},{"$f":"IF(INDEX(PC_MAPPING,RIGHT($C67,1),MATCH($E$2,'Data by Building Type'!$D$22:$F$22,0))=\"Yes\",1,0)*\n(AM$10*OFFSET('Efficiency Distributions'!$D$10,MATCH($C67,'Efficiency Distributions'!$C$9:$C$87,0)+RIGHT($E73),0)\n+AM$11*OFFSET('Efficiency Distributions'!$E$10,MATCH($C67,'Efficiency Distributions'!$C$9:$C$87,0)+RIGHT($E73),0))\n/SUM(AM$10:AM$11)","v":0},{"$f":"IF(INDEX(PC_MAPPING,RIGHT($C67,1),MATCH($E$2,'Data by Building Type'!$D$22:$F$22,0))=\"Yes\",1,0)*\n(AN$10*OFFSET('Efficiency Distributions'!$D$10,MATCH($C67,'Efficiency Distributions'!$C$9:$C$87,0)+RIGHT($E73),0)\n+AN$11*OFFSET('Efficiency Distributions'!$E$10,MATCH($C67,'Efficiency Distributions'!$C$9:$C$87,0)+RIGHT($E73),0))\n/SUM(AN$10:AN$11)","v":0},{"$f":"IF(INDEX(PC_MAPPING,RIGHT($C67,1),MATCH($E$2,'Data by Building Type'!$D$22:$F$22,0))=\"Yes\",1,0)*\n(AO$10*OFFSET('Efficiency Distributions'!$D$10,MATCH($C67,'Efficiency Distributions'!$C$9:$C$87,0)+RIGHT($E73),0)\n+AO$11*OFFSET('Efficiency Distributions'!$E$10,MATCH($C67,'Efficiency Distributions'!$C$9:$C$87,0)+RIGHT($E73),0))\n/SUM(AO$10:AO$11)","v":0},{"$f":"IF(INDEX(PC_MAPPING,RIGHT($C67,1),MATCH($E$2,'Data by Building Type'!$D$22:$F$22,0))=\"Yes\",1,0)*\n(AP$10*OFFSET('Efficiency Distributions'!$D$10,MATCH($C67,'Efficiency Distributions'!$C$9:$C$87,0)+RIGHT($E73),0)\n+AP$11*OFFSET('Efficiency Distributions'!$E$10,MATCH($C67,'Efficiency Distributions'!$C$9:$C$87,0)+RIGHT($E73),0))\n/SUM(AP$10:AP$11)","v":0},{"$f":"IF(INDEX(PC_MAPPING,RIGHT($C67,1),MATCH($E$2,'Data by Building Type'!$D$22:$F$22,0))=\"Yes\",1,0)*\n(AQ$10*OFFSET('Efficiency Distributions'!$D$10,MATCH($C67,'Efficiency Distributions'!$C$9:$C$87,0)+RIGHT($E73),0)\n+AQ$11*OFFSET('Efficiency Distributions'!$E$10,MATCH($C67,'Efficiency Distributions'!$C$9:$C$87,0)+RIGHT($E73),0))\n/SUM(AQ$10:AQ$11)","v":0},{"$f":"IF(INDEX(PC_MAPPING,RIGHT($C67,1),MATCH($E$2,'Data by Building Type'!$D$22:$F$22,0))=\"Yes\",1,0)*\n(AR$10*OFFSET('Efficiency Distributions'!$D$10,MATCH($C67,'Efficiency Distributions'!$C$9:$C$87,0)+RIGHT($E73),0)\n+AR$11*OFFSET('Efficiency Distributions'!$E$10,MATCH($C67,'Efficiency Distributions'!$C$9:$C$87,0)+RIGHT($E73),0))\n/SUM(AR$10:AR$11)","v":0},{"$f":"IF(INDEX(PC_MAPPING,RIGHT($C67,1),MATCH($E$2,'Data by Building Type'!$D$22:$F$22,0))=\"Yes\",1,0)*\n(AS$10*OFFSET('Efficiency Distributions'!$D$10,MATCH($C67,'Efficiency Distributions'!$C$9:$C$87,0)+RIGHT($E73),0)\n+AS$11*OFFSET('Efficiency Distributions'!$E$10,MATCH($C67,'Efficiency Distributions'!$C$9:$C$87,0)+RIGHT($E73),0))\n/SUM(AS$10:AS$11)","v":0},{"$f":"IF(INDEX(PC_MAPPING,RIGHT($C67,1),MATCH($E$2,'Data by Building Type'!$D$22:$F$22,0))=\"Yes\",1,0)*\n(AT$10*OFFSET('Efficiency Distributions'!$D$10,MATCH($C67,'Efficiency Distributions'!$C$9:$C$87,0)+RIGHT($E73),0)\n+AT$11*OFFSET('Efficiency Distributions'!$E$10,MATCH($C67,'Efficiency Distributions'!$C$9:$C$87,0)+RIGHT($E73),0))\n/SUM(AT$10:AT$11)","v":0},{"$f":"IF(INDEX(PC_MAPPING,RIGHT($C67,1),MATCH($E$2,'Data by Building Type'!$D$22:$F$22,0))=\"Yes\",1,0)*\n(AU$10*OFFSET('Efficiency Distributions'!$D$10,MATCH($C67,'Efficiency Distributions'!$C$9:$C$87,0)+RIGHT($E73),0)\n+AU$11*OFFSET('Efficiency Distributions'!$E$10,MATCH($C67,'Efficiency Distributions'!$C$9:$C$87,0)+RIGHT($E73),0))\n/SUM(AU$10:AU$11)","v":0},{"$f":"IF(INDEX(PC_MAPPING,RIGHT($C67,1),MATCH($E$2,'Data by Building Type'!$D$22:$F$22,0))=\"Yes\",1,0)*\n(AV$10*OFFSET('Efficiency Distributions'!$D$10,MATCH($C67,'Efficiency Distributions'!$C$9:$C$87,0)+RIGHT($E73),0)\n+AV$11*OFFSET('Efficiency Distributions'!$E$10,MATCH($C67,'Efficiency Distributions'!$C$9:$C$87,0)+RIGHT($E73),0))\n/SUM(AV$10:AV$11)","v":0},{"$f":"IF(INDEX(PC_MAPPING,RIGHT($C67,1),MATCH($E$2,'Data by Building Type'!$D$22:$F$22,0))=\"Yes\",1,0)*\n(AW$10*OFFSET('Efficiency Distributions'!$D$10,MATCH($C67,'Efficiency Distributions'!$C$9:$C$87,0)+RIGHT($E73),0)\n+AW$11*OFFSET('Efficiency Distributions'!$E$10,MATCH($C67,'Efficiency Distributions'!$C$9:$C$87,0)+RIGHT($E73),0))\n/SUM(AW$10:AW$11)","v":0},{"$f":"IF(INDEX(PC_MAPPING,RIGHT($C67,1),MATCH($E$2,'Data by Building Type'!$D$22:$F$22,0))=\"Yes\",1,0)*\n(AX$10*OFFSET('Efficiency Distributions'!$D$10,MATCH($C67,'Efficiency Distributions'!$C$9:$C$87,0)+RIGHT($E73),0)\n+AX$11*OFFSET('Efficiency Distributions'!$E$10,MATCH($C67,'Efficiency Distributions'!$C$9:$C$87,0)+RIGHT($E73),0))\n/SUM(AX$10:AX$11)","v":0},{"$f":"IF(INDEX(PC_MAPPING,RIGHT($C67,1),MATCH($E$2,'Data by Building Type'!$D$22:$F$22,0))=\"Yes\",1,0)*\n(AY$10*OFFSET('Efficiency Distributions'!$D$10,MATCH($C67,'Efficiency Distributions'!$C$9:$C$87,0)+RIGHT($E73),0)\n+AY$11*OFFSET('Efficiency Distributions'!$E$10,MATCH($C67,'Efficiency Distributions'!$C$9:$C$87,0)+RIGHT($E73),0))\n/SUM(AY$10:AY$11)","v":0},{"$f":"IF(INDEX(PC_MAPPING,RIGHT($C67,1),MATCH($E$2,'Data by Building Type'!$D$22:$F$22,0))=\"Yes\",1,0)*\n(AZ$10*OFFSET('Efficiency Distributions'!$D$10,MATCH($C67,'Efficiency Distributions'!$C$9:$C$87,0)+RIGHT($E73),0)\n+AZ$11*OFFSET('Efficiency Distributions'!$E$10,MATCH($C67,'Efficiency Distributions'!$C$9:$C$87,0)+RIGHT($E73),0))\n/SUM(AZ$10:AZ$11)","v":0},{"$f":"IF(INDEX(PC_MAPPING,RIGHT($C67,1),MATCH($E$2,'Data by Building Type'!$D$22:$F$22,0))=\"Yes\",1,0)*\n(BA$10*OFFSET('Efficiency Distributions'!$D$10,MATCH($C67,'Efficiency Distributions'!$C$9:$C$87,0)+RIGHT($E73),0)\n+BA$11*OFFSET('Efficiency Distributions'!$E$10,MATCH($C67,'Efficiency Distributions'!$C$9:$C$87,0)+RIGHT($E73),0))\n/SUM(BA$10:BA$11)","v":0},{"$f":"IF(INDEX(PC_MAPPING,RIGHT($C67,1),MATCH($E$2,'Data by Building Type'!$D$22:$F$22,0))=\"Yes\",1,0)*\n(BB$10*OFFSET('Efficiency Distributions'!$D$10,MATCH($C67,'Efficiency Distributions'!$C$9:$C$87,0)+RIGHT($E73),0)\n+BB$11*OFFSET('Efficiency Distributions'!$E$10,MATCH($C67,'Efficiency Distributions'!$C$9:$C$87,0)+RIGHT($E73),0))\n/SUM(BB$10:BB$11)","v":0},{"$f":"IF(INDEX(PC_MAPPING,RIGHT($C67,1),MATCH($E$2,'Data by Building Type'!$D$22:$F$22,0))=\"Yes\",1,0)*\n(BC$10*OFFSET('Efficiency Distributions'!$D$10,MATCH($C67,'Efficiency Distributions'!$C$9:$C$87,0)+RIGHT($E73),0)\n+BC$11*OFFSET('Efficiency Distributions'!$E$10,MATCH($C67,'Efficiency Distributions'!$C$9:$C$87,0)+RIGHT($E73),0))\n/SUM(BC$10:BC$11)","v":0},{"$f":"IF(INDEX(PC_MAPPING,RIGHT($C67,1),MATCH($E$2,'Data by Building Type'!$D$22:$F$22,0))=\"Yes\",1,0)*\n(BD$10*OFFSET('Efficiency Distributions'!$D$10,MATCH($C67,'Efficiency Distributions'!$C$9:$C$87,0)+RIGHT($E73),0)\n+BD$11*OFFSET('Efficiency Distributions'!$E$10,MATCH($C67,'Efficiency Distributions'!$C$9:$C$87,0)+RIGHT($E73),0))\n/SUM(BD$10:BD$11)","v":0},{"$f":"IF(INDEX(PC_MAPPING,RIGHT($C67,1),MATCH($E$2,'Data by Building Type'!$D$22:$F$22,0))=\"Yes\",1,0)*\n(BE$10*OFFSET('Efficiency Distributions'!$D$10,MATCH($C67,'Efficiency Distributions'!$C$9:$C$87,0)+RIGHT($E73),0)\n+BE$11*OFFSET('Efficiency Distributions'!$E$10,MATCH($C67,'Efficiency Distributions'!$C$9:$C$87,0)+RIGHT($E73),0))\n/SUM(BE$10:BE$11)","v":0},{"$f":"IF(INDEX(PC_MAPPING,RIGHT($C67,1),MATCH($E$2,'Data by Building Type'!$D$22:$F$22,0))=\"Yes\",1,0)*\n(BF$10*OFFSET('Efficiency Distributions'!$D$10,MATCH($C67,'Efficiency Distributions'!$C$9:$C$87,0)+RIGHT($E73),0)\n+BF$11*OFFSET('Efficiency Distributions'!$E$10,MATCH($C67,'Efficiency Distributions'!$C$9:$C$87,0)+RIGHT($E73),0))\n/SUM(BF$10:BF$11)","v":0},{"$f":"IF(INDEX(PC_MAPPING,RIGHT($C67,1),MATCH($E$2,'Data by Building Type'!$D$22:$F$22,0))=\"Yes\",1,0)*\n(BG$10*OFFSET('Efficiency Distributions'!$D$10,MATCH($C67,'Efficiency Distributions'!$C$9:$C$87,0)+RIGHT($E73),0)\n+BG$11*OFFSET('Efficiency Distributions'!$E$10,MATCH($C67,'Efficiency Distributions'!$C$9:$C$87,0)+RIGHT($E73),0))\n/SUM(BG$10:BG$11)","v":0}]
[null,null,null,null,"EL3",{"$f":"IF(INDEX(PC_MAPPING,RIGHT($C67,1),MATCH($E$2,'Data by Building Type'!$D$22:$F$22,0))=\"Yes\",1,0)*\n(F$10*OFFSET('Efficiency Distributions'!$D$10,MATCH($C67,'Efficiency Distributions'!$C$9:$C$87,0)+RIGHT($E74),0)\n+F$11*OFFSET('Efficiency Distributions'!$E$10,MATCH($C67,'Efficiency Distributions'!$C$9:$C$87,0)+RIGHT($E74),0))\n/SUM(F$10:F$11)","v":0.23674347540427684},{"$f":"IF(INDEX(PC_MAPPING,RIGHT($C67,1),MATCH($E$2,'Data by Building Type'!$D$22:$F$22,0))=\"Yes\",1,0)*\n(G$10*OFFSET('Efficiency Distributions'!$D$10,MATCH($C67,'Efficiency Distributions'!$C$9:$C$87,0)+RIGHT($E74),0)\n+G$11*OFFSET('Efficiency Distributions'!$E$10,MATCH($C67,'Efficiency Distributions'!$C$9:$C$87,0)+RIGHT($E74),0))\n/SUM(G$10:G$11)","v":0.24807386878503143},{"$f":"IF(INDEX(PC_MAPPING,RIGHT($C67,1),MATCH($E$2,'Data by Building Type'!$D$22:$F$22,0))=\"Yes\",1,0)*\n(H$10*OFFSET('Efficiency Distributions'!$D$10,MATCH($C67,'Efficiency Distributions'!$C$9:$C$87,0)+RIGHT($E74),0)\n+H$11*OFFSET('Efficiency Distributions'!$E$10,MATCH($C67,'Efficiency Distributions'!$C$9:$C$87,0)+RIGHT($E74),0))\n/SUM(H$10:H$11)","v":0.23451991476048492},{"$f":"IF(INDEX(PC_MAPPING,RIGHT($C67,1),MATCH($E$2,'Data by Building Type'!$D$22:$F$22,0))=\"Yes\",1,0)*\n(I$10*OFFSET('Efficiency Distributions'!$D$10,MATCH($C67,'Efficiency Distributions'!$C$9:$C$87,0)+RIGHT($E74),0)\n+I$11*OFFSET('Efficiency Distributions'!$E$10,MATCH($C67,'Efficiency Distributions'!$C$9:$C$87,0)+RIGHT($E74),0))\n/SUM(I$10:I$11)","v":0.23704779932449876},{"$f":"IF(INDEX(PC_MAPPING,RIGHT($C67,1),MATCH($E$2,'Data by Building Type'!$D$22:$F$22,0))=\"Yes\",1,0)*\n(J$10*OFFSET('Efficiency Distributions'!$D$10,MATCH($C67,'Efficiency Distributions'!$C$9:$C$87,0)+RIGHT($E74),0)\n+J$11*OFFSET('Efficiency Distributions'!$E$10,MATCH($C67,'Efficiency Distributions'!$C$9:$C$87,0)+RIGHT($E74),0))\n/SUM(J$10:J$11)","v":0.23861293499266362},{"$f":"IF(INDEX(PC_MAPPING,RIGHT($C67,1),MATCH($E$2,'Data by Building Type'!$D$22:$F$22,0))=\"Yes\",1,0)*\n(K$10*OFFSET('Efficiency Distributions'!$D$10,MATCH($C67,'Efficiency Distributions'!$C$9:$C$87,0)+RIGHT($E74),0)\n+K$11*OFFSET('Efficiency Distributions'!$E$10,MATCH($C67,'Efficiency Distributions'!$C$9:$C$87,0)+RIGHT($E74),0))\n/SUM(K$10:K$11)","v":0.2360293283491737},{"$f":"IF(INDEX(PC_MAPPING,RIGHT($C67,1),MATCH($E$2,'Data by Building Type'!$D$22:$F$22,0))=\"Yes\",1,0)*\n(L$10*OFFSET('Efficiency Distributions'!$D$10,MATCH($C67,'Efficiency Distributions'!$C$9:$C$87,0)+RIGHT($E74),0)\n+L$11*OFFSET('Efficiency Distributions'!$E$10,MATCH($C67,'Efficiency Distributions'!$C$9:$C$87,0)+RIGHT($E74),0))\n/SUM(L$10:L$11)","v":0.23582605187158062},{"$f":"IF(INDEX(PC_MAPPING,RIGHT($C67,1),MATCH($E$2,'Data by Building Type'!$D$22:$F$22,0))=\"Yes\",1,0)*\n(M$10*OFFSET('Efficiency Distributions'!$D$10,MATCH($C67,'Efficiency Distributions'!$C$9:$C$87,0)+RIGHT($E74),0)\n+M$11*OFFSET('Efficiency Distributions'!$E$10,MATCH($C67,'Efficiency Distributions'!$C$9:$C$87,0)+RIGHT($E74),0))\n/SUM(M$10:M$11)","v":0.23236446171279529},{"$f":"IF(INDEX(PC_MAPPING,RIGHT($C67,1),MATCH($E$2,'Data by Building Type'!$D$22:$F$22,0))=\"Yes\",1,0)*\n(N$10*OFFSET('Efficiency Distributions'!$D$10,MATCH($C67,'Efficiency Distributions'!$C$9:$C$87,0)+RIGHT($E74),0)\n+N$11*OFFSET('Efficiency Distributions'!$E$10,MATCH($C67,'Efficiency Distributions'!$C$9:$C$87,0)+RIGHT($E74),0))\n/SUM(N$10:N$11)","v":0.224465442151324},{"$f":"IF(INDEX(PC_MAPPING,RIGHT($C67,1),MATCH($E$2,'Data by Building Type'!$D$22:$F$22,0))=\"Yes\",1,0)*\n(O$10*OFFSET('Efficiency Distributions'!$D$10,MATCH($C67,'Efficiency Distributions'!$C$9:$C$87,0)+RIGHT($E74),0)\n+O$11*OFFSET('Efficiency Distributions'!$E$10,MATCH($C67,'Efficiency Distributions'!$C$9:$C$87,0)+RIGHT($E74),0))\n/SUM(O$10:O$11)","v":0.21908264520016377},{"$f":"IF(INDEX(PC_MAPPING,RIGHT($C67,1),MATCH($E$2,'Data by Building Type'!$D$22:$F$22,0))=\"Yes\",1,0)*\n(P$10*OFFSET('Efficiency Distributions'!$D$10,MATCH($C67,'Efficiency Distributions'!$C$9:$C$87,0)+RIGHT($E74),0)\n+P$11*OFFSET('Efficiency Distributions'!$E$10,MATCH($C67,'Efficiency Distributions'!$C$9:$C$87,0)+RIGHT($E74),0))\n/SUM(P$10:P$11)","v":0.22457015857485524},{"$f":"IF(INDEX(PC_MAPPING,RIGHT($C67,1),MATCH($E$2,'Data by Building Type'!$D$22:$F$22,0))=\"Yes\",1,0)*\n(Q$10*OFFSET('Efficiency Distributions'!$D$10,MATCH($C67,'Efficiency Distributions'!$C$9:$C$87,0)+RIGHT($E74),0)\n+Q$11*OFFSET('Efficiency Distributions'!$E$10,MATCH($C67,'Efficiency Distributions'!$C$9:$C$87,0)+RIGHT($E74),0))\n/SUM(Q$10:Q$11)","v":0.21554457291125523},{"$f":"IF(INDEX(PC_MAPPING,RIGHT($C67,1),MATCH($E$2,'Data by Building Type'!$D$22:$F$22,0))=\"Yes\",1,0)*\n(R$10*OFFSET('Efficiency Distributions'!$D$10,MATCH($C67,'Efficiency Distributions'!$C$9:$C$87,0)+RIGHT($E74),0)\n+R$11*OFFSET('Efficiency Distributions'!$E$10,MATCH($C67,'Efficiency Distributions'!$C$9:$C$87,0)+RIGHT($E74),0))\n/SUM(R$10:R$11)","v":0.24033714801474096},{"$f":"IF(INDEX(PC_MAPPING,RIGHT($C67,1),MATCH($E$2,'Data by Building Type'!$D$22:$F$22,0))=\"Yes\",1,0)*\n(S$10*OFFSET('Efficiency Distributions'!$D$10,MATCH($C67,'Efficiency Distributions'!$C$9:$C$87,0)+RIGHT($E74),0)\n+S$11*OFFSET('Efficiency Distributions'!$E$10,MATCH($C67,'Efficiency Distributions'!$C$9:$C$87,0)+RIGHT($E74),0))\n/SUM(S$10:S$11)","v":0.23784006562962753},{"$f":"IF(INDEX(PC_MAPPING,RIGHT($C67,1),MATCH($E$2,'Data by Building Type'!$D$22:$F$22,0))=\"Yes\",1,0)*\n(T$10*OFFSET('Efficiency Distributions'!$D$10,MATCH($C67,'Efficiency Distributions'!$C$9:$C$87,0)+RIGHT($E74),0)\n+T$11*OFFSET('Efficiency Distributions'!$E$10,MATCH($C67,'Efficiency Distributions'!$C$9:$C$87,0)+RIGHT($E74),0))\n/SUM(T$10:T$11)","v":0.24704109968731772},{"$f":"IF(INDEX(PC_MAPPING,RIGHT($C67,1),MATCH($E$2,'Data by Building Type'!$D$22:$F$22,0))=\"Yes\",1,0)*\n(U$10*OFFSET('Efficiency Distributions'!$D$10,MATCH($C67,'Efficiency Distributions'!$C$9:$C$87,0)+RIGHT($E74),0)\n+U$11*OFFSET('Efficiency Distributions'!$E$10,MATCH($C67,'Efficiency Distributions'!$C$9:$C$87,0)+RIGHT($E74),0))\n/SUM(U$10:U$11)","v":0.24571556584367424},{"$f":"IF(INDEX(PC_MAPPING,RIGHT($C67,1),MATCH($E$2,'Data by Building Type'!$D$22:$F$22,0))=\"Yes\",1,0)*\n(V$10*OFFSET('Efficiency Distributions'!$D$10,MATCH($C67,'Efficiency Distributions'!$C$9:$C$87,0)+RIGHT($E74),0)\n+V$11*OFFSET('Efficiency Distributions'!$E$10,MATCH($C67,'Efficiency Distributions'!$C$9:$C$87,0)+RIGHT($E74),0))\n/SUM(V$10:V$11)","v":0.24767598040979305},{"$f":"IF(INDEX(PC_MAPPING,RIGHT($C67,1),MATCH($E$2,'Data by Building Type'!$D$22:$F$22,0))=\"Yes\",1,0)*\n(W$10*OFFSET('Efficiency Distributions'!$D$10,MATCH($C67,'Efficiency Distributions'!$C$9:$C$87,0)+RIGHT($E74),0)\n+W$11*OFFSET('Efficiency Distributions'!$E$10,MATCH($C67,'Efficiency Distributions'!$C$9:$C$87,0)+RIGHT($E74),0))\n/SUM(W$10:W$11)","v":0.24673594532579818},{"$f":"IF(INDEX(PC_MAPPING,RIGHT($C67,1),MATCH($E$2,'Data by Building Type'!$D$22:$F$22,0))=\"Yes\",1,0)*\n(X$10*OFFSET('Efficiency Distributions'!$D$10,MATCH($C67,'Efficiency Distributions'!$C$9:$C$87,0)+RIGHT($E74),0)\n+X$11*OFFSET('Efficiency Distributions'!$E$10,MATCH($C67,'Efficiency Distributions'!$C$9:$C$87,0)+RIGHT($E74),0))\n/SUM(X$10:X$11)","v":0.24975367535907894},{"$f":"IF(INDEX(PC_MAPPING,RIGHT($C67,1),MATCH($E$2,'Data by Building Type'!$D$22:$F$22,0))=\"Yes\",1,0)*\n(Y$10*OFFSET('Efficiency Distributions'!$D$10,MATCH($C67,'Efficiency Distributions'!$C$9:$C$87,0)+RIGHT($E74),0)\n+Y$11*OFFSET('Efficiency Distributions'!$E$10,MATCH($C67,'Efficiency Distributions'!$C$9:$C$87,0)+RIGHT($E74),0))\n/SUM(Y$10:Y$11)","v":0.25709566596029226},{"$f":"IF(INDEX(PC_MAPPING,RIGHT($C67,1),MATCH($E$2,'Data by Building Type'!$D$22:$F$22,0))=\"Yes\",1,0)*\n(Z$10*OFFSET('Efficiency Distributions'!$D$10,MATCH($C67,'Efficiency Distributions'!$C$9:$C$87,0)+RIGHT($E74),0)\n+Z$11*OFFSET('Efficiency Distributions'!$E$10,MATCH($C67,'Efficiency Distributions'!$C$9:$C$87,0)+RIGHT($E74),0))\n/SUM(Z$10:Z$11)","v":0.25721964924980317},{"$f":"IF(INDEX(PC_MAPPING,RIGHT($C67,1),MATCH($E$2,'Data by Building Type'!$D$22:$F$22,0))=\"Yes\",1,0)*\n(AA$10*OFFSET('Efficiency Distributions'!$D$10,MATCH($C67,'Efficiency Distributions'!$C$9:$C$87,0)+RIGHT($E74),0)\n+AA$11*OFFSET('Efficiency Distributions'!$E$10,MATCH($C67,'Efficiency Distributions'!$C$9:$C$87,0)+RIGHT($E74),0))\n/SUM(AA$10:AA$11)","v":0.25608225123924977},{"$f":"IF(INDEX(PC_MAPPING,RIGHT($C67,1),MATCH($E$2,'Data by Building Type'!$D$22:$F$22,0))=\"Yes\",1,0)*\n(AB$10*OFFSET('Efficiency Distributions'!$D$10,MATCH($C67,'Efficiency Distributions'!$C$9:$C$87,0)+RIGHT($E74),0)\n+AB$11*OFFSET('Efficiency Distributions'!$E$10,MATCH($C67,'Efficiency Distributions'!$C$9:$C$87,0)+RIGHT($E74),0))\n/SUM(AB$10:AB$11)","v":0.24960199164232305},{"$f":"IF(INDEX(PC_MAPPING,RIGHT($C67,1),MATCH($E$2,'Data by Building Type'!$D$22:$F$22,0))=\"Yes\",1,0)*\n(AC$10*OFFSET('Efficiency Distributions'!$D$10,MATCH($C67,'Efficiency Distributions'!$C$9:$C$87,0)+RIGHT($E74),0)\n+AC$11*OFFSET('Efficiency Distributions'!$E$10,MATCH($C67,'Efficiency Distributions'!$C$9:$C$87,0)+RIGHT($E74),0))\n/SUM(AC$10:AC$11)","v":0.25005466772922669},{"$f":"IF(INDEX(PC_MAPPING,RIGHT($C67,1),MATCH($E$2,'Data by Building Type'!$D$22:$F$22,0))=\"Yes\",1,0)*\n(AD$10*OFFSET('Efficiency Distributions'!$D$10,MATCH($C67,'Efficiency Distributions'!$C$9:$C$87,0)+RIGHT($E74),0)\n+AD$11*OFFSET('Efficiency Distributions'!$E$10,MATCH($C67,'Efficiency Distributions'!$C$9:$C$87,0)+RIGHT($E74),0))\n/SUM(AD$10:AD$11)","v":0.24447557960531469},{"$f":"IF(INDEX(PC_MAPPING,RIGHT($C67,1),MATCH($E$2,'Data by Building Type'!$D$22:$F$22,0))=\"Yes\",1,0)*\n(AE$10*OFFSET('Efficiency Distributions'!$D$10,MATCH($C67,'Efficiency Distributions'!$C$9:$C$87,0)+RIGHT($E74),0)\n+AE$11*OFFSET('Efficiency Distributions'!$E$10,MATCH($C67,'Efficiency Distributions'!$C$9:$C$87,0)+RIGHT($E74),0))\n/SUM(AE$10:AE$11)","v":0.25294291726723461},{"$f":"IF(INDEX(PC_MAPPING,RIGHT($C67,1),MATCH($E$2,'Data by Building Type'!$D$22:$F$22,0))=\"Yes\",1,0)*\n(AF$10*OFFSET('Efficiency Distributions'!$D$10,MATCH($C67,'Efficiency Distributions'!$C$9:$C$87,0)+RIGHT($E74),0)\n+AF$11*OFFSET('Efficiency Distributions'!$E$10,MATCH($C67,'Efficiency Distributions'!$C$9:$C$87,0)+RIGHT($E74),0))\n/SUM(AF$10:AF$11)","v":0.27164643841695651},{"$f":"IF(INDEX(PC_MAPPING,RIGHT($C67,1),MATCH($E$2,'Data by Building Type'!$D$22:$F$22,0))=\"Yes\",1,0)*\n(AG$10*OFFSET('Efficiency Distributions'!$D$10,MATCH($C67,'Efficiency Distributions'!$C$9:$C$87,0)+RIGHT($E74),0)\n+AG$11*OFFSET('Efficiency Distributions'!$E$10,MATCH($C67,'Efficiency Distributions'!$C$9:$C$87,0)+RIGHT($E74),0))\n/SUM(AG$10:AG$11)","v":0.27963182398107655},{"$f":"IF(INDEX(PC_MAPPING,RIGHT($C67,1),MATCH($E$2,'Data by Building Type'!$D$22:$F$22,0))=\"Yes\",1,0)*\n(AH$10*OFFSET('Efficiency Distributions'!$D$10,MATCH($C67,'Efficiency Distributions'!$C$9:$C$87,0)+RIGHT($E74),0)\n+AH$11*OFFSET('Efficiency Distributions'!$E$10,MATCH($C67,'Efficiency Distributions'!$C$9:$C$87,0)+RIGHT($E74),0))\n/SUM(AH$10:AH$11)","v":0.27963182398107655},{"$f":"IF(INDEX(PC_MAPPING,RIGHT($C67,1),MATCH($E$2,'Data by Building Type'!$D$22:$F$22,0))=\"Yes\",1,0)*\n(AI$10*OFFSET('Efficiency Distributions'!$D$10,MATCH($C67,'Efficiency Distributions'!$C$9:$C$87,0)+RIGHT($E74),0)\n+AI$11*OFFSET('Efficiency Distributions'!$E$10,MATCH($C67,'Efficiency Distributions'!$C$9:$C$87,0)+RIGHT($E74),0))\n/SUM(AI$10:AI$11)","v":0.27963182398107655},{"$f":"IF(INDEX(PC_MAPPING,RIGHT($C67,1),MATCH($E$2,'Data by Building Type'!$D$22:$F$22,0))=\"Yes\",1,0)*\n(AJ$10*OFFSET('Efficiency Distributions'!$D$10,MATCH($C67,'Efficiency Distributions'!$C$9:$C$87,0)+RIGHT($E74),0)\n+AJ$11*OFFSET('Efficiency Distributions'!$E$10,MATCH($C67,'Efficiency Distributions'!$C$9:$C$87,0)+RIGHT($E74),0))\n/SUM(AJ$10:AJ$11)","v":0.27630533633941917},{"$f":"IF(INDEX(PC_MAPPING,RIGHT($C67,1),MATCH($E$2,'Data by Building Type'!$D$22:$F$22,0))=\"Yes\",1,0)*\n(AK$10*OFFSET('Efficiency Distributions'!$D$10,MATCH($C67,'Efficiency Distributions'!$C$9:$C$87,0)+RIGHT($E74),0)\n+AK$11*OFFSET('Efficiency Distributions'!$E$10,MATCH($C67,'Efficiency Distributions'!$C$9:$C$87,0)+RIGHT($E74),0))\n/SUM(AK$10:AK$11)","v":0.22979563378086401},{"$f":"IF(INDEX(PC_MAPPING,RIGHT($C67,1),MATCH($E$2,'Data by Building Type'!$D$22:$F$22,0))=\"Yes\",1,0)*\n(AL$10*OFFSET('Efficiency Distributions'!$D$10,MATCH($C67,'Efficiency Distributions'!$C$9:$C$87,0)+RIGHT($E74),0)\n+AL$11*OFFSET('Efficiency Distributions'!$E$10,MATCH($C67,'Efficiency Distributions'!$C$9:$C$87,0)+RIGHT($E74),0))\n/SUM(AL$10:AL$11)","v":0.23118752948991209},{"$f":"IF(INDEX(PC_MAPPING,RIGHT($C67,1),MATCH($E$2,'Data by Building Type'!$D$22:$F$22,0))=\"Yes\",1,0)*\n(AM$10*OFFSET('Efficiency Distributions'!$D$10,MATCH($C67,'Efficiency Distributions'!$C$9:$C$87,0)+RIGHT($E74),0)\n+AM$11*OFFSET('Efficiency Distributions'!$E$10,MATCH($C67,'Efficiency Distributions'!$C$9:$C$87,0)+RIGHT($E74),0))\n/SUM(AM$10:AM$11)","v":0.22520769156605597},{"$f":"IF(INDEX(PC_MAPPING,RIGHT($C67,1),MATCH($E$2,'Data by Building Type'!$D$22:$F$22,0))=\"Yes\",1,0)*\n(AN$10*OFFSET('Efficiency Distributions'!$D$10,MATCH($C67,'Efficiency Distributions'!$C$9:$C$87,0)+RIGHT($E74),0)\n+AN$11*OFFSET('Efficiency Distributions'!$E$10,MATCH($C67,'Efficiency Distributions'!$C$9:$C$87,0)+RIGHT($E74),0))\n/SUM(AN$10:AN$11)","v":0.22569049091796514},{"$f":"IF(INDEX(PC_MAPPING,RIGHT($C67,1),MATCH($E$2,'Data by Building Type'!$D$22:$F$22,0))=\"Yes\",1,0)*\n(AO$10*OFFSET('Efficiency Distributions'!$D$10,MATCH($C67,'Efficiency Distributions'!$C$9:$C$87,0)+RIGHT($E74),0)\n+AO$11*OFFSET('Efficiency Distributions'!$E$10,MATCH($C67,'Efficiency Distributions'!$C$9:$C$87,0)+RIGHT($E74),0))\n/SUM(AO$10:AO$11)","v":0.22334741338505756},{"$f":"IF(INDEX(PC_MAPPING,RIGHT($C67,1),MATCH($E$2,'Data by Building Type'!$D$22:$F$22,0))=\"Yes\",1,0)*\n(AP$10*OFFSET('Efficiency Distributions'!$D$10,MATCH($C67,'Efficiency Distributions'!$C$9:$C$87,0)+RIGHT($E74),0)\n+AP$11*OFFSET('Efficiency Distributions'!$E$10,MATCH($C67,'Efficiency Distributions'!$C$9:$C$87,0)+RIGHT($E74),0))\n/SUM(AP$10:AP$11)","v":0.22437820326342178},{"$f":"IF(INDEX(PC_MAPPING,RIGHT($C67,1),MATCH($E$2,'Data by Building Type'!$D$22:$F$22,0))=\"Yes\",1,0)*\n(AQ$10*OFFSET('Efficiency Distributions'!$D$10,MATCH($C67,'Efficiency Distributions'!$C$9:$C$87,0)+RIGHT($E74),0)\n+AQ$11*OFFSET('Efficiency Distributions'!$E$10,MATCH($C67,'Efficiency Distributions'!$C$9:$C$87,0)+RIGHT($E74),0))\n/SUM(AQ$10:AQ$11)","v":0.22472826251802788},{"$f":"IF(INDEX(PC_MAPPING,RIGHT($C67,1),MATCH($E$2,'Data by Building Type'!$D$22:$F$22,0))=\"Yes\",1,0)*\n(AR$10*OFFSET('Efficiency Distributions'!$D$10,MATCH($C67,'Efficiency Distributions'!$C$9:$C$87,0)+RIGHT($E74),0)\n+AR$11*OFFSET('Efficiency Distributions'!$E$10,MATCH($C67,'Efficiency Distributions'!$C$9:$C$87,0)+RIGHT($E74),0))\n/SUM(AR$10:AR$11)","v":0.22583007862041324},{"$f":"IF(INDEX(PC_MAPPING,RIGHT($C67,1),MATCH($E$2,'Data by Building Type'!$D$22:$F$22,0))=\"Yes\",1,0)*\n(AS$10*OFFSET('Efficiency Distributions'!$D$10,MATCH($C67,'Efficiency Distributions'!$C$9:$C$87,0)+RIGHT($E74),0)\n+AS$11*OFFSET('Efficiency Distributions'!$E$10,MATCH($C67,'Efficiency Distributions'!$C$9:$C$87,0)+RIGHT($E74),0))\n/SUM(AS$10:AS$11)","v":0.22581544435715886},{"$f":"IF(INDEX(PC_MAPPING,RIGHT($C67,1),MATCH($E$2,'Data by Building Type'!$D$22:$F$22,0))=\"Yes\",1,0)*\n(AT$10*OFFSET('Efficiency Distributions'!$D$10,MATCH($C67,'Efficiency Distributions'!$C$9:$C$87,0)+RIGHT($E74),0)\n+AT$11*OFFSET('Efficiency Distributions'!$E$10,MATCH($C67,'Efficiency Distributions'!$C$9:$C$87,0)+RIGHT($E74),0))\n/SUM(AT$10:AT$11)","v":0.2252314400000241},{"$f":"IF(INDEX(PC_MAPPING,RIGHT($C67,1),MATCH($E$2,'Data by Building Type'!$D$22:$F$22,0))=\"Yes\",1,0)*\n(AU$10*OFFSET('Efficiency Distributions'!$D$10,MATCH($C67,'Efficiency Distributions'!$C$9:$C$87,0)+RIGHT($E74),0)\n+AU$11*OFFSET('Efficiency Distributions'!$E$10,MATCH($C67,'Efficiency Distributions'!$C$9:$C$87,0)+RIGHT($E74),0))\n/SUM(AU$10:AU$11)","v":0.22591726141885443},{"$f":"IF(INDEX(PC_MAPPING,RIGHT($C67,1),MATCH($E$2,'Data by Building Type'!$D$22:$F$22,0))=\"Yes\",1,0)*\n(AV$10*OFFSET('Efficiency Distributions'!$D$10,MATCH($C67,'Efficiency Distributions'!$C$9:$C$87,0)+RIGHT($E74),0)\n+AV$11*OFFSET('Efficiency Distributions'!$E$10,MATCH($C67,'Efficiency Distributions'!$C$9:$C$87,0)+RIGHT($E74),0))\n/SUM(AV$10:AV$11)","v":0.23538145298192728},{"$f":"IF(INDEX(PC_MAPPING,RIGHT($C67,1),MATCH($E$2,'Data by Building Type'!$D$22:$F$22,0))=\"Yes\",1,0)*\n(AW$10*OFFSET('Efficiency Distributions'!$D$10,MATCH($C67,'Efficiency Distributions'!$C$9:$C$87,0)+RIGHT($E74),0)\n+AW$11*OFFSET('Efficiency Distributions'!$E$10,MATCH($C67,'Efficiency Distributions'!$C$9:$C$87,0)+RIGHT($E74),0))\n/SUM(AW$10:AW$11)","v":0.23482336812435875},{"$f":"IF(INDEX(PC_MAPPING,RIGHT($C67,1),MATCH($E$2,'Data by Building Type'!$D$22:$F$22,0))=\"Yes\",1,0)*\n(AX$10*OFFSET('Efficiency Distributions'!$D$10,MATCH($C67,'Efficiency Distributions'!$C$9:$C$87,0)+RIGHT($E74),0)\n+AX$11*OFFSET('Efficiency Distributions'!$E$10,MATCH($C67,'Efficiency Distributions'!$C$9:$C$87,0)+RIGHT($E74),0))\n/SUM(AX$10:AX$11)","v":0.23764023503124776},{"$f":"IF(INDEX(PC_MAPPING,RIGHT($C67,1),MATCH($E$2,'Data by Building Type'!$D$22:$F$22,0))=\"Yes\",1,0)*\n(AY$10*OFFSET('Efficiency Distributions'!$D$10,MATCH($C67,'Efficiency Distributions'!$C$9:$C$87,0)+RIGHT($E74),0)\n+AY$11*OFFSET('Efficiency Distributions'!$E$10,MATCH($C67,'Efficiency Distributions'!$C$9:$C$87,0)+RIGHT($E74),0))\n/SUM(AY$10:AY$11)","v":0.238494935609425},{"$f":"IF(INDEX(PC_MAPPING,RIGHT($C67,1),MATCH($E$2,'Data by Building Type'!$D$22:$F$22,0))=\"Yes\",1,0)*\n(AZ$10*OFFSET('Efficiency Distributions'!$D$10,MATCH($C67,'Efficiency Distributions'!$C$9:$C$87,0)+RIGHT($E74),0)\n+AZ$11*OFFSET('Efficiency Distributions'!$E$10,MATCH($C67,'Efficiency Distributions'!$C$9:$C$87,0)+RIGHT($E74),0))\n/SUM(AZ$10:AZ$11)","v":0.23721258171425261},{"$f":"IF(INDEX(PC_MAPPING,RIGHT($C67,1),MATCH($E$2,'Data by Building Type'!$D$22:$F$22,0))=\"Yes\",1,0)*\n(BA$10*OFFSET('Efficiency Distributions'!$D$10,MATCH($C67,'Efficiency Distributions'!$C$9:$C$87,0)+RIGHT($E74),0)\n+BA$11*OFFSET('Efficiency Distributions'!$E$10,MATCH($C67,'Efficiency Distributions'!$C$9:$C$87,0)+RIGHT($E74),0))\n/SUM(BA$10:BA$11)","v":0.23524084186196723},{"$f":"IF(INDEX(PC_MAPPING,RIGHT($C67,1),MATCH($E$2,'Data by Building Type'!$D$22:$F$22,0))=\"Yes\",1,0)*\n(BB$10*OFFSET('Efficiency Distributions'!$D$10,MATCH($C67,'Efficiency Distributions'!$C$9:$C$87,0)+RIGHT($E74),0)\n+BB$11*OFFSET('Efficiency Distributions'!$E$10,MATCH($C67,'Efficiency Distributions'!$C$9:$C$87,0)+RIGHT($E74),0))\n/SUM(BB$10:BB$11)","v":0.2310216100002529},{"$f":"IF(INDEX(PC_MAPPING,RIGHT($C67,1),MATCH($E$2,'Data by Building Type'!$D$22:$F$22,0))=\"Yes\",1,0)*\n(BC$10*OFFSET('Efficiency Distributions'!$D$10,MATCH($C67,'Efficiency Distributions'!$C$9:$C$87,0)+RIGHT($E74),0)\n+BC$11*OFFSET('Efficiency Distributions'!$E$10,MATCH($C67,'Efficiency Distributions'!$C$9:$C$87,0)+RIGHT($E74),0))\n/SUM(BC$10:BC$11)","v":0.23016606389788916},{"$f":"IF(INDEX(PC_MAPPING,RIGHT($C67,1),MATCH($E$2,'Data by Building Type'!$D$22:$F$22,0))=\"Yes\",1,0)*\n(BD$10*OFFSET('Efficiency Distributions'!$D$10,MATCH($C67,'Efficiency Distributions'!$C$9:$C$87,0)+RIGHT($E74),0)\n+BD$11*OFFSET('Efficiency Distributions'!$E$10,MATCH($C67,'Efficiency Distributions'!$C$9:$C$87,0)+RIGHT($E74),0))\n/SUM(BD$10:BD$11)","v":0.23495356744051202},{"$f":"IF(INDEX(PC_MAPPING,RIGHT($C67,1),MATCH($E$2,'Data by Building Type'!$D$22:$F$22,0))=\"Yes\",1,0)*\n(BE$10*OFFSET('Efficiency Distributions'!$D$10,MATCH($C67,'Efficiency Distributions'!$C$9:$C$87,0)+RIGHT($E74),0)\n+BE$11*OFFSET('Efficiency Distributions'!$E$10,MATCH($C67,'Efficiency Distributions'!$C$9:$C$87,0)+RIGHT($E74),0))\n/SUM(BE$10:BE$11)","v":0.23830063311913199},{"$f":"IF(INDEX(PC_MAPPING,RIGHT($C67,1),MATCH($E$2,'Data by Building Type'!$D$22:$F$22,0))=\"Yes\",1,0)*\n(BF$10*OFFSET('Efficiency Distributions'!$D$10,MATCH($C67,'Efficiency Distributions'!$C$9:$C$87,0)+RIGHT($E74),0)\n+BF$11*OFFSET('Efficiency Distributions'!$E$10,MATCH($C67,'Efficiency Distributions'!$C$9:$C$87,0)+RIGHT($E74),0))\n/SUM(BF$10:BF$11)","v":0.24495386326895785},{"$f":"IF(INDEX(PC_MAPPING,RIGHT($C67,1),MATCH($E$2,'Data by Building Type'!$D$22:$F$22,0))=\"Yes\",1,0)*\n(BG$10*OFFSET('Efficiency Distributions'!$D$10,MATCH($C67,'Efficiency Distributions'!$C$9:$C$87,0)+RIGHT($E74),0)\n+BG$11*OFFSET('Efficiency Distributions'!$E$10,MATCH($C67,'Efficiency Distributions'!$C$9:$C$87,0)+RIGHT($E74),0))\n/SUM(BG$10:BG$11)","v":0.24618480513171703}]
[null,null,null,null,"EL4",{"$f":"IF(INDEX(PC_MAPPING,RIGHT($C67,1),MATCH($E$2,'Data by Building Type'!$D$22:$F$22,0))=\"Yes\",1,0)*\n(F$10*OFFSET('Efficiency Distributions'!$D$10,MATCH($C67,'Efficiency Distributions'!$C$9:$C$87,0)+RIGHT($E75),0)\n+F$11*OFFSET('Efficiency Distributions'!$E$10,MATCH($C67,'Efficiency Distributions'!$C$9:$C$87,0)+RIGHT($E75),0))\n/SUM(F$10:F$11)","v":6.2397505145313274E-2},{"$f":"IF(INDEX(PC_MAPPING,RIGHT($C67,1),MATCH($E$2,'Data by Building Type'!$D$22:$F$22,0))=\"Yes\",1,0)*\n(G$10*OFFSET('Efficiency Distributions'!$D$10,MATCH($C67,'Efficiency Distributions'!$C$9:$C$87,0)+RIGHT($E75),0)\n+G$11*OFFSET('Efficiency Distributions'!$E$10,MATCH($C67,'Efficiency Distributions'!$C$9:$C$87,0)+RIGHT($E75),0))\n/SUM(G$10:G$11)","v":6.5383810377450141E-2},{"$f":"IF(INDEX(PC_MAPPING,RIGHT($C67,1),MATCH($E$2,'Data by Building Type'!$D$22:$F$22,0))=\"Yes\",1,0)*\n(H$10*OFFSET('Efficiency Distributions'!$D$10,MATCH($C67,'Efficiency Distributions'!$C$9:$C$87,0)+RIGHT($E75),0)\n+H$11*OFFSET('Efficiency Distributions'!$E$10,MATCH($C67,'Efficiency Distributions'!$C$9:$C$87,0)+RIGHT($E75),0))\n/SUM(H$10:H$11)","v":6.1811450401988273E-2},{"$f":"IF(INDEX(PC_MAPPING,RIGHT($C67,1),MATCH($E$2,'Data by Building Type'!$D$22:$F$22,0))=\"Yes\",1,0)*\n(I$10*OFFSET('Efficiency Distributions'!$D$10,MATCH($C67,'Efficiency Distributions'!$C$9:$C$87,0)+RIGHT($E75),0)\n+I$11*OFFSET('Efficiency Distributions'!$E$10,MATCH($C67,'Efficiency Distributions'!$C$9:$C$87,0)+RIGHT($E75),0))\n/SUM(I$10:I$11)","v":6.2477714550643076E-2},{"$f":"IF(INDEX(PC_MAPPING,RIGHT($C67,1),MATCH($E$2,'Data by Building Type'!$D$22:$F$22,0))=\"Yes\",1,0)*\n(J$10*OFFSET('Efficiency Distributions'!$D$10,MATCH($C67,'Efficiency Distributions'!$C$9:$C$87,0)+RIGHT($E75),0)\n+J$11*OFFSET('Efficiency Distributions'!$E$10,MATCH($C67,'Efficiency Distributions'!$C$9:$C$87,0)+RIGHT($E75),0))\n/SUM(J$10:J$11)","v":6.2890230928298943E-2},{"$f":"IF(INDEX(PC_MAPPING,RIGHT($C67,1),MATCH($E$2,'Data by Building Type'!$D$22:$F$22,0))=\"Yes\",1,0)*\n(K$10*OFFSET('Efficiency Distributions'!$D$10,MATCH($C67,'Efficiency Distributions'!$C$9:$C$87,0)+RIGHT($E75),0)\n+K$11*OFFSET('Efficiency Distributions'!$E$10,MATCH($C67,'Efficiency Distributions'!$C$9:$C$87,0)+RIGHT($E75),0))\n/SUM(K$10:K$11)","v":6.2209280340092293E-2},{"$f":"IF(INDEX(PC_MAPPING,RIGHT($C67,1),MATCH($E$2,'Data by Building Type'!$D$22:$F$22,0))=\"Yes\",1,0)*\n(L$10*OFFSET('Efficiency Distributions'!$D$10,MATCH($C67,'Efficiency Distributions'!$C$9:$C$87,0)+RIGHT($E75),0)\n+L$11*OFFSET('Efficiency Distributions'!$E$10,MATCH($C67,'Efficiency Distributions'!$C$9:$C$87,0)+RIGHT($E75),0))\n/SUM(L$10:L$11)","v":6.2155703594060016E-2},{"$f":"IF(INDEX(PC_MAPPING,RIGHT($C67,1),MATCH($E$2,'Data by Building Type'!$D$22:$F$22,0))=\"Yes\",1,0)*\n(M$10*OFFSET('Efficiency Distributions'!$D$10,MATCH($C67,'Efficiency Distributions'!$C$9:$C$87,0)+RIGHT($E75),0)\n+M$11*OFFSET('Efficiency Distributions'!$E$10,MATCH($C67,'Efficiency Distributions'!$C$9:$C$87,0)+RIGHT($E75),0))\n/SUM(M$10:M$11)","v":6.1243346497946043E-2},{"$f":"IF(INDEX(PC_MAPPING,RIGHT($C67,1),MATCH($E$2,'Data by Building Type'!$D$22:$F$22,0))=\"Yes\",1,0)*\n(N$10*OFFSET('Efficiency Distributions'!$D$10,MATCH($C67,'Efficiency Distributions'!$C$9:$C$87,0)+RIGHT($E75),0)\n+N$11*OFFSET('Efficiency Distributions'!$E$10,MATCH($C67,'Efficiency Distributions'!$C$9:$C$87,0)+RIGHT($E75),0))\n/SUM(N$10:N$11)","v":5.916143436546524E-2},{"$f":"IF(INDEX(PC_MAPPING,RIGHT($C67,1),MATCH($E$2,'Data by Building Type'!$D$22:$F$22,0))=\"Yes\",1,0)*\n(O$10*OFFSET('Efficiency Distributions'!$D$10,MATCH($C67,'Efficiency Distributions'!$C$9:$C$87,0)+RIGHT($E75),0)\n+O$11*OFFSET('Efficiency Distributions'!$E$10,MATCH($C67,'Efficiency Distributions'!$C$9:$C$87,0)+RIGHT($E75),0))\n/SUM(O$10:O$11)","v":5.774271268841525E-2},{"$f":"IF(INDEX(PC_MAPPING,RIGHT($C67,1),MATCH($E$2,'Data by Building Type'!$D$22:$F$22,0))=\"Yes\",1,0)*\n(P$10*OFFSET('Efficiency Distributions'!$D$10,MATCH($C67,'Efficiency Distributions'!$C$9:$C$87,0)+RIGHT($E75),0)\n+P$11*OFFSET('Efficiency Distributions'!$E$10,MATCH($C67,'Efficiency Distributions'!$C$9:$C$87,0)+RIGHT($E75),0))\n/SUM(P$10:P$11)","v":5.9189034042985096E-2},{"$f":"IF(INDEX(PC_MAPPING,RIGHT($C67,1),MATCH($E$2,'Data by Building Type'!$D$22:$F$22,0))=\"Yes\",1,0)*\n(Q$10*OFFSET('Efficiency Distributions'!$D$10,MATCH($C67,'Efficiency Distributions'!$C$9:$C$87,0)+RIGHT($E75),0)\n+Q$11*OFFSET('Efficiency Distributions'!$E$10,MATCH($C67,'Efficiency Distributions'!$C$9:$C$87,0)+RIGHT($E75),0))\n/SUM(Q$10:Q$11)","v":5.6810197511493625E-2},{"$f":"IF(INDEX(PC_MAPPING,RIGHT($C67,1),MATCH($E$2,'Data by Building Type'!$D$22:$F$22,0))=\"Yes\",1,0)*\n(R$10*OFFSET('Efficiency Distributions'!$D$10,MATCH($C67,'Efficiency Distributions'!$C$9:$C$87,0)+RIGHT($E75),0)\n+R$11*OFFSET('Efficiency Distributions'!$E$10,MATCH($C67,'Efficiency Distributions'!$C$9:$C$87,0)+RIGHT($E75),0))\n/SUM(R$10:R$11)","v":6.3344674670551882E-2},{"$f":"IF(INDEX(PC_MAPPING,RIGHT($C67,1),MATCH($E$2,'Data by Building Type'!$D$22:$F$22,0))=\"Yes\",1,0)*\n(S$10*OFFSET('Efficiency Distributions'!$D$10,MATCH($C67,'Efficiency Distributions'!$C$9:$C$87,0)+RIGHT($E75),0)\n+S$11*OFFSET('Efficiency Distributions'!$E$10,MATCH($C67,'Efficiency Distributions'!$C$9:$C$87,0)+RIGHT($E75),0))\n/SUM(S$10:S$11)","v":6.2686528925638252E-2},{"$f":"IF(INDEX(PC_MAPPING,RIGHT($C67,1),MATCH($E$2,'Data by Building Type'!$D$22:$F$22,0))=\"Yes\",1,0)*\n(T$10*OFFSET('Efficiency Distributions'!$D$10,MATCH($C67,'Efficiency Distributions'!$C$9:$C$87,0)+RIGHT($E75),0)\n+T$11*OFFSET('Efficiency Distributions'!$E$10,MATCH($C67,'Efficiency Distributions'!$C$9:$C$87,0)+RIGHT($E75),0))\n/SUM(T$10:T$11)","v":6.5111607669525604E-2},{"$f":"IF(INDEX(PC_MAPPING,RIGHT($C67,1),MATCH($E$2,'Data by Building Type'!$D$22:$F$22,0))=\"Yes\",1,0)*\n(U$10*OFFSET('Efficiency Distributions'!$D$10,MATCH($C67,'Efficiency Distributions'!$C$9:$C$87,0)+RIGHT($E75),0)\n+U$11*OFFSET('Efficiency Distributions'!$E$10,MATCH($C67,'Efficiency Distributions'!$C$9:$C$87,0)+RIGHT($E75),0))\n/SUM(U$10:U$11)","v":6.4762242160348246E-2},{"$f":"IF(INDEX(PC_MAPPING,RIGHT($C67,1),MATCH($E$2,'Data by Building Type'!$D$22:$F$22,0))=\"Yes\",1,0)*\n(V$10*OFFSET('Efficiency Distributions'!$D$10,MATCH($C67,'Efficiency Distributions'!$C$9:$C$87,0)+RIGHT($E75),0)\n+V$11*OFFSET('Efficiency Distributions'!$E$10,MATCH($C67,'Efficiency Distributions'!$C$9:$C$87,0)+RIGHT($E75),0))\n/SUM(V$10:V$11)","v":6.5278940573123764E-2},{"$f":"IF(INDEX(PC_MAPPING,RIGHT($C67,1),MATCH($E$2,'Data by Building Type'!$D$22:$F$22,0))=\"Yes\",1,0)*\n(W$10*OFFSET('Efficiency Distributions'!$D$10,MATCH($C67,'Efficiency Distributions'!$C$9:$C$87,0)+RIGHT($E75),0)\n+W$11*OFFSET('Efficiency Distributions'!$E$10,MATCH($C67,'Efficiency Distributions'!$C$9:$C$87,0)+RIGHT($E75),0))\n/SUM(W$10:W$11)","v":6.5031179388194874E-2},{"$f":"IF(INDEX(PC_MAPPING,RIGHT($C67,1),MATCH($E$2,'Data by Building Type'!$D$22:$F$22,0))=\"Yes\",1,0)*\n(X$10*OFFSET('Efficiency Distributions'!$D$10,MATCH($C67,'Efficiency Distributions'!$C$9:$C$87,0)+RIGHT($E75),0)\n+X$11*OFFSET('Efficiency Distributions'!$E$10,MATCH($C67,'Efficiency Distributions'!$C$9:$C$87,0)+RIGHT($E75),0))\n/SUM(X$10:X$11)","v":6.5826550094640959E-2},{"$f":"IF(INDEX(PC_MAPPING,RIGHT($C67,1),MATCH($E$2,'Data by Building Type'!$D$22:$F$22,0))=\"Yes\",1,0)*\n(Y$10*OFFSET('Efficiency Distributions'!$D$10,MATCH($C67,'Efficiency Distributions'!$C$9:$C$87,0)+RIGHT($E75),0)\n+Y$11*OFFSET('Efficiency Distributions'!$E$10,MATCH($C67,'Efficiency Distributions'!$C$9:$C$87,0)+RIGHT($E75),0))\n/SUM(Y$10:Y$11)","v":6.7761648392635168E-2},{"$f":"IF(INDEX(PC_MAPPING,RIGHT($C67,1),MATCH($E$2,'Data by Building Type'!$D$22:$F$22,0))=\"Yes\",1,0)*\n(Z$10*OFFSET('Efficiency Distributions'!$D$10,MATCH($C67,'Efficiency Distributions'!$C$9:$C$87,0)+RIGHT($E75),0)\n+Z$11*OFFSET('Efficiency Distributions'!$E$10,MATCH($C67,'Efficiency Distributions'!$C$9:$C$87,0)+RIGHT($E75),0))\n/SUM(Z$10:Z$11)","v":6.7794326158862842E-2},{"$f":"IF(INDEX(PC_MAPPING,RIGHT($C67,1),MATCH($E$2,'Data by Building Type'!$D$22:$F$22,0))=\"Yes\",1,0)*\n(AA$10*OFFSET('Efficiency Distributions'!$D$10,MATCH($C67,'Efficiency Distributions'!$C$9:$C$87,0)+RIGHT($E75),0)\n+AA$11*OFFSET('Efficiency Distributions'!$E$10,MATCH($C67,'Efficiency Distributions'!$C$9:$C$87,0)+RIGHT($E75),0))\n/SUM(AA$10:AA$11)","v":6.7494546838251887E-2},{"$f":"IF(INDEX(PC_MAPPING,RIGHT($C67,1),MATCH($E$2,'Data by Building Type'!$D$22:$F$22,0))=\"Yes\",1,0)*\n(AB$10*OFFSET('Efficiency Distributions'!$D$10,MATCH($C67,'Efficiency Distributions'!$C$9:$C$87,0)+RIGHT($E75),0)\n+AB$11*OFFSET('Efficiency Distributions'!$E$10,MATCH($C67,'Efficiency Distributions'!$C$9:$C$87,0)+RIGHT($E75),0))\n/SUM(AB$10:AB$11)","v":6.5786571440612271E-2},{"$f":"IF(INDEX(PC_MAPPING,RIGHT($C67,1),MATCH($E$2,'Data by Building Type'!$D$22:$F$22,0))=\"Yes\",1,0)*\n(AC$10*OFFSET('Efficiency Distributions'!$D$10,MATCH($C67,'Efficiency Distributions'!$C$9:$C$87,0)+RIGHT($E75),0)\n+AC$11*OFFSET('Efficiency Distributions'!$E$10,MATCH($C67,'Efficiency Distributions'!$C$9:$C$87,0)+RIGHT($E75),0))\n/SUM(AC$10:AC$11)","v":6.5905881417005499E-2},{"$f":"IF(INDEX(PC_MAPPING,RIGHT($C67,1),MATCH($E$2,'Data by Building Type'!$D$22:$F$22,0))=\"Yes\",1,0)*\n(AD$10*OFFSET('Efficiency Distributions'!$D$10,MATCH($C67,'Efficiency Distributions'!$C$9:$C$87,0)+RIGHT($E75),0)\n+AD$11*OFFSET('Efficiency Distributions'!$E$10,MATCH($C67,'Efficiency Distributions'!$C$9:$C$87,0)+RIGHT($E75),0))\n/SUM(AD$10:AD$11)","v":6.4435424082020937E-2},{"$f":"IF(INDEX(PC_MAPPING,RIGHT($C67,1),MATCH($E$2,'Data by Building Type'!$D$22:$F$22,0))=\"Yes\",1,0)*\n(AE$10*OFFSET('Efficiency Distributions'!$D$10,MATCH($C67,'Efficiency Distributions'!$C$9:$C$87,0)+RIGHT($E75),0)\n+AE$11*OFFSET('Efficiency Distributions'!$E$10,MATCH($C67,'Efficiency Distributions'!$C$9:$C$87,0)+RIGHT($E75),0))\n/SUM(AE$10:AE$11)","v":6.6667125481286643E-2},{"$f":"IF(INDEX(PC_MAPPING,RIGHT($C67,1),MATCH($E$2,'Data by Building Type'!$D$22:$F$22,0))=\"Yes\",1,0)*\n(AF$10*OFFSET('Efficiency Distributions'!$D$10,MATCH($C67,'Efficiency Distributions'!$C$9:$C$87,0)+RIGHT($E75),0)\n+AF$11*OFFSET('Efficiency Distributions'!$E$10,MATCH($C67,'Efficiency Distributions'!$C$9:$C$87,0)+RIGHT($E75),0))\n/SUM(AF$10:AF$11)","v":7.1596735706794742E-2},{"$f":"IF(INDEX(PC_MAPPING,RIGHT($C67,1),MATCH($E$2,'Data by Building Type'!$D$22:$F$22,0))=\"Yes\",1,0)*\n(AG$10*OFFSET('Efficiency Distributions'!$D$10,MATCH($C67,'Efficiency Distributions'!$C$9:$C$87,0)+RIGHT($E75),0)\n+AG$11*OFFSET('Efficiency Distributions'!$E$10,MATCH($C67,'Efficiency Distributions'!$C$9:$C$87,0)+RIGHT($E75),0))\n/SUM(AG$10:AG$11)","v":7.3701410971756615E-2},{"$f":"IF(INDEX(PC_MAPPING,RIGHT($C67,1),MATCH($E$2,'Data by Building Type'!$D$22:$F$22,0))=\"Yes\",1,0)*\n(AH$10*OFFSET('Efficiency Distributions'!$D$10,MATCH($C67,'Efficiency Distributions'!$C$9:$C$87,0)+RIGHT($E75),0)\n+AH$11*OFFSET('Efficiency Distributions'!$E$10,MATCH($C67,'Efficiency Distributions'!$C$9:$C$87,0)+RIGHT($E75),0))\n/SUM(AH$10:AH$11)","v":7.3701410971756615E-2},{"$f":"IF(INDEX(PC_MAPPING,RIGHT($C67,1),MATCH($E$2,'Data by Building Type'!$D$22:$F$22,0))=\"Yes\",1,0)*\n(AI$10*OFFSET('Efficiency Distributions'!$D$10,MATCH($C67,'Efficiency Distributions'!$C$9:$C$87,0)+RIGHT($E75),0)\n+AI$11*OFFSET('Efficiency Distributions'!$E$10,MATCH($C67,'Efficiency Distributions'!$C$9:$C$87,0)+RIGHT($E75),0))\n/SUM(AI$10:AI$11)","v":7.3701410971756615E-2},{"$f":"IF(INDEX(PC_MAPPING,RIGHT($C67,1),MATCH($E$2,'Data by Building Type'!$D$22:$F$22,0))=\"Yes\",1,0)*\n(AJ$10*OFFSET('Efficiency Distributions'!$D$10,MATCH($C67,'Efficiency Distributions'!$C$9:$C$87,0)+RIGHT($E75),0)\n+AJ$11*OFFSET('Efficiency Distributions'!$E$10,MATCH($C67,'Efficiency Distributions'!$C$9:$C$87,0)+RIGHT($E75),0))\n/SUM(AJ$10:AJ$11)","v":7.2824662291009715E-2},{"$f":"IF(INDEX(PC_MAPPING,RIGHT($C67,1),MATCH($E$2,'Data by Building Type'!$D$22:$F$22,0))=\"Yes\",1,0)*\n(AK$10*OFFSET('Efficiency Distributions'!$D$10,MATCH($C67,'Efficiency Distributions'!$C$9:$C$87,0)+RIGHT($E75),0)\n+AK$11*OFFSET('Efficiency Distributions'!$E$10,MATCH($C67,'Efficiency Distributions'!$C$9:$C$87,0)+RIGHT($E75),0))\n/SUM(AK$10:AK$11)","v":6.0566291074026175E-2},{"$f":"IF(INDEX(PC_MAPPING,RIGHT($C67,1),MATCH($E$2,'Data by Building Type'!$D$22:$F$22,0))=\"Yes\",1,0)*\n(AL$10*OFFSET('Efficiency Distributions'!$D$10,MATCH($C67,'Efficiency Distributions'!$C$9:$C$87,0)+RIGHT($E75),0)\n+AL$11*OFFSET('Efficiency Distributions'!$E$10,MATCH($C67,'Efficiency Distributions'!$C$9:$C$87,0)+RIGHT($E75),0))\n/SUM(AL$10:AL$11)","v":6.0933147307418681E-2},{"$f":"IF(INDEX(PC_MAPPING,RIGHT($C67,1),MATCH($E$2,'Data by Building Type'!$D$22:$F$22,0))=\"Yes\",1,0)*\n(AM$10*OFFSET('Efficiency Distributions'!$D$10,MATCH($C67,'Efficiency Distributions'!$C$9:$C$87,0)+RIGHT($E75),0)\n+AM$11*OFFSET('Efficiency Distributions'!$E$10,MATCH($C67,'Efficiency Distributions'!$C$9:$C$87,0)+RIGHT($E75),0))\n/SUM(AM$10:AM$11)","v":5.9357065994154287E-2},{"$f":"IF(INDEX(PC_MAPPING,RIGHT($C67,1),MATCH($E$2,'Data by Building Type'!$D$22:$F$22,0))=\"Yes\",1,0)*\n(AN$10*OFFSET('Efficiency Distributions'!$D$10,MATCH($C67,'Efficiency Distributions'!$C$9:$C$87,0)+RIGHT($E75),0)\n+AN$11*OFFSET('Efficiency Distributions'!$E$10,MATCH($C67,'Efficiency Distributions'!$C$9:$C$87,0)+RIGHT($E75),0))\n/SUM(AN$10:AN$11)","v":5.948431543574275E-2},{"$f":"IF(INDEX(PC_MAPPING,RIGHT($C67,1),MATCH($E$2,'Data by Building Type'!$D$22:$F$22,0))=\"Yes\",1,0)*\n(AO$10*OFFSET('Efficiency Distributions'!$D$10,MATCH($C67,'Efficiency Distributions'!$C$9:$C$87,0)+RIGHT($E75),0)\n+AO$11*OFFSET('Efficiency Distributions'!$E$10,MATCH($C67,'Efficiency Distributions'!$C$9:$C$87,0)+RIGHT($E75),0))\n/SUM(AO$10:AO$11)","v":5.886676011699192E-2},{"$f":"IF(INDEX(PC_MAPPING,RIGHT($C67,1),MATCH($E$2,'Data by Building Type'!$D$22:$F$22,0))=\"Yes\",1,0)*\n(AP$10*OFFSET('Efficiency Distributions'!$D$10,MATCH($C67,'Efficiency Distributions'!$C$9:$C$87,0)+RIGHT($E75),0)\n+AP$11*OFFSET('Efficiency Distributions'!$E$10,MATCH($C67,'Efficiency Distributions'!$C$9:$C$87,0)+RIGHT($E75),0))\n/SUM(AP$10:AP$11)","v":5.9138441170204191E-2},{"$f":"IF(INDEX(PC_MAPPING,RIGHT($C67,1),MATCH($E$2,'Data by Building Type'!$D$22:$F$22,0))=\"Yes\",1,0)*\n(AQ$10*OFFSET('Efficiency Distributions'!$D$10,MATCH($C67,'Efficiency Distributions'!$C$9:$C$87,0)+RIGHT($E75),0)\n+AQ$11*OFFSET('Efficiency Distributions'!$E$10,MATCH($C67,'Efficiency Distributions'!$C$9:$C$87,0)+RIGHT($E75),0))\n/SUM(AQ$10:AQ$11)","v":5.9230704849712774E-2},{"$f":"IF(INDEX(PC_MAPPING,RIGHT($C67,1),MATCH($E$2,'Data by Building Type'!$D$22:$F$22,0))=\"Yes\",1,0)*\n(AR$10*OFFSET('Efficiency Distributions'!$D$10,MATCH($C67,'Efficiency Distributions'!$C$9:$C$87,0)+RIGHT($E75),0)\n+AR$11*OFFSET('Efficiency Distributions'!$E$10,MATCH($C67,'Efficiency Distributions'!$C$9:$C$87,0)+RIGHT($E75),0))\n/SUM(AR$10:AR$11)","v":5.9521105992977136E-2},{"$f":"IF(INDEX(PC_MAPPING,RIGHT($C67,1),MATCH($E$2,'Data by Building Type'!$D$22:$F$22,0))=\"Yes\",1,0)*\n(AS$10*OFFSET('Efficiency Distributions'!$D$10,MATCH($C67,'Efficiency Distributions'!$C$9:$C$87,0)+RIGHT($E75),0)\n+AS$11*OFFSET('Efficiency Distributions'!$E$10,MATCH($C67,'Efficiency Distributions'!$C$9:$C$87,0)+RIGHT($E75),0))\n/SUM(AS$10:AS$11)","v":5.9517248900336439E-2},{"$f":"IF(INDEX(PC_MAPPING,RIGHT($C67,1),MATCH($E$2,'Data by Building Type'!$D$22:$F$22,0))=\"Yes\",1,0)*\n(AT$10*OFFSET('Efficiency Distributions'!$D$10,MATCH($C67,'Efficiency Distributions'!$C$9:$C$87,0)+RIGHT($E75),0)\n+AT$11*OFFSET('Efficiency Distributions'!$E$10,MATCH($C67,'Efficiency Distributions'!$C$9:$C$87,0)+RIGHT($E75),0))\n/SUM(AT$10:AT$11)","v":5.936332527132418E-2},{"$f":"IF(INDEX(PC_MAPPING,RIGHT($C67,1),MATCH($E$2,'Data by Building Type'!$D$22:$F$22,0))=\"Yes\",1,0)*\n(AU$10*OFFSET('Efficiency Distributions'!$D$10,MATCH($C67,'Efficiency Distributions'!$C$9:$C$87,0)+RIGHT($E75),0)\n+AU$11*OFFSET('Efficiency Distributions'!$E$10,MATCH($C67,'Efficiency Distributions'!$C$9:$C$87,0)+RIGHT($E75),0))\n/SUM(AU$10:AU$11)","v":5.9544084404969388E-2},{"$f":"IF(INDEX(PC_MAPPING,RIGHT($C67,1),MATCH($E$2,'Data by Building Type'!$D$22:$F$22,0))=\"Yes\",1,0)*\n(AV$10*OFFSET('Efficiency Distributions'!$D$10,MATCH($C67,'Efficiency Distributions'!$C$9:$C$87,0)+RIGHT($E75),0)\n+AV$11*OFFSET('Efficiency Distributions'!$E$10,MATCH($C67,'Efficiency Distributions'!$C$9:$C$87,0)+RIGHT($E75),0))\n/SUM(AV$10:AV$11)","v":6.2038522491360673E-2},{"$f":"IF(INDEX(PC_MAPPING,RIGHT($C67,1),MATCH($E$2,'Data by Building Type'!$D$22:$F$22,0))=\"Yes\",1,0)*\n(AW$10*OFFSET('Efficiency Distributions'!$D$10,MATCH($C67,'Efficiency Distributions'!$C$9:$C$87,0)+RIGHT($E75),0)\n+AW$11*OFFSET('Efficiency Distributions'!$E$10,MATCH($C67,'Efficiency Distributions'!$C$9:$C$87,0)+RIGHT($E75),0))\n/SUM(AW$10:AW$11)","v":6.1891430358358132E-2},{"$f":"IF(INDEX(PC_MAPPING,RIGHT($C67,1),MATCH($E$2,'Data by Building Type'!$D$22:$F$22,0))=\"Yes\",1,0)*\n(AX$10*OFFSET('Efficiency Distributions'!$D$10,MATCH($C67,'Efficiency Distributions'!$C$9:$C$87,0)+RIGHT($E75),0)\n+AX$11*OFFSET('Efficiency Distributions'!$E$10,MATCH($C67,'Efficiency Distributions'!$C$9:$C$87,0)+RIGHT($E75),0))\n/SUM(AX$10:AX$11)","v":6.2633860395832741E-2},{"$f":"IF(INDEX(PC_MAPPING,RIGHT($C67,1),MATCH($E$2,'Data by Building Type'!$D$22:$F$22,0))=\"Yes\",1,0)*\n(AY$10*OFFSET('Efficiency Distributions'!$D$10,MATCH($C67,'Efficiency Distributions'!$C$9:$C$87,0)+RIGHT($E75),0)\n+AY$11*OFFSET('Efficiency Distributions'!$E$10,MATCH($C67,'Efficiency Distributions'!$C$9:$C$87,0)+RIGHT($E75),0))\n/SUM(AY$10:AY$11)","v":6.2859130315662412E-2},{"$f":"IF(INDEX(PC_MAPPING,RIGHT($C67,1),MATCH($E$2,'Data by Building Type'!$D$22:$F$22,0))=\"Yes\",1,0)*\n(AZ$10*OFFSET('Efficiency Distributions'!$D$10,MATCH($C67,'Efficiency Distributions'!$C$9:$C$87,0)+RIGHT($E75),0)\n+AZ$11*OFFSET('Efficiency Distributions'!$E$10,MATCH($C67,'Efficiency Distributions'!$C$9:$C$87,0)+RIGHT($E75),0))\n/SUM(AZ$10:AZ$11)","v":6.2521145568097597E-2},{"$f":"IF(INDEX(PC_MAPPING,RIGHT($C67,1),MATCH($E$2,'Data by Building Type'!$D$22:$F$22,0))=\"Yes\",1,0)*\n(BA$10*OFFSET('Efficiency Distributions'!$D$10,MATCH($C67,'Efficiency Distributions'!$C$9:$C$87,0)+RIGHT($E75),0)\n+BA$11*OFFSET('Efficiency Distributions'!$E$10,MATCH($C67,'Efficiency Distributions'!$C$9:$C$87,0)+RIGHT($E75),0))\n/SUM(BA$10:BA$11)","v":6.2001462196177415E-2},{"$f":"IF(INDEX(PC_MAPPING,RIGHT($C67,1),MATCH($E$2,'Data by Building Type'!$D$22:$F$22,0))=\"Yes\",1,0)*\n(BB$10*OFFSET('Efficiency Distributions'!$D$10,MATCH($C67,'Efficiency Distributions'!$C$9:$C$87,0)+RIGHT($E75),0)\n+BB$11*OFFSET('Efficiency Distributions'!$E$10,MATCH($C67,'Efficiency Distributions'!$C$9:$C$87,0)+RIGHT($E75),0))\n/SUM(BB$10:BB$11)","v":6.088941658921395E-2},{"$f":"IF(INDEX(PC_MAPPING,RIGHT($C67,1),MATCH($E$2,'Data by Building Type'!$D$22:$F$22,0))=\"Yes\",1,0)*\n(BC$10*OFFSET('Efficiency Distributions'!$D$10,MATCH($C67,'Efficiency Distributions'!$C$9:$C$87,0)+RIGHT($E75),0)\n+BC$11*OFFSET('Efficiency Distributions'!$E$10,MATCH($C67,'Efficiency Distributions'!$C$9:$C$87,0)+RIGHT($E75),0))\n/SUM(BC$10:BC$11)","v":6.0663923818048311E-2},{"$f":"IF(INDEX(PC_MAPPING,RIGHT($C67,1),MATCH($E$2,'Data by Building Type'!$D$22:$F$22,0))=\"Yes\",1,0)*\n(BD$10*OFFSET('Efficiency Distributions'!$D$10,MATCH($C67,'Efficiency Distributions'!$C$9:$C$87,0)+RIGHT($E75),0)\n+BD$11*OFFSET('Efficiency Distributions'!$E$10,MATCH($C67,'Efficiency Distributions'!$C$9:$C$87,0)+RIGHT($E75),0))\n/SUM(BD$10:BD$11)","v":6.1925746457189214E-2},{"$f":"IF(INDEX(PC_MAPPING,RIGHT($C67,1),MATCH($E$2,'Data by Building Type'!$D$22:$F$22,0))=\"Yes\",1,0)*\n(BE$10*OFFSET('Efficiency Distributions'!$D$10,MATCH($C67,'Efficiency Distributions'!$C$9:$C$87,0)+RIGHT($E75),0)\n+BE$11*OFFSET('Efficiency Distributions'!$E$10,MATCH($C67,'Efficiency Distributions'!$C$9:$C$87,0)+RIGHT($E75),0))\n/SUM(BE$10:BE$11)","v":6.2807918806592922E-2},{"$f":"IF(INDEX(PC_MAPPING,RIGHT($C67,1),MATCH($E$2,'Data by Building Type'!$D$22:$F$22,0))=\"Yes\",1,0)*\n(BF$10*OFFSET('Efficiency Distributions'!$D$10,MATCH($C67,'Efficiency Distributions'!$C$9:$C$87,0)+RIGHT($E75),0)\n+BF$11*OFFSET('Efficiency Distributions'!$E$10,MATCH($C67,'Efficiency Distributions'!$C$9:$C$87,0)+RIGHT($E75),0))\n/SUM(BF$10:BF$11)","v":6.4561483342205961E-2},{"$f":"IF(INDEX(PC_MAPPING,RIGHT($C67,1),MATCH($E$2,'Data by Building Type'!$D$22:$F$22,0))=\"Yes\",1,0)*\n(BG$10*OFFSET('Efficiency Distributions'!$D$10,MATCH($C67,'Efficiency Distributions'!$C$9:$C$87,0)+RIGHT($E75),0)\n+BG$11*OFFSET('Efficiency Distributions'!$E$10,MATCH($C67,'Efficiency Distributions'!$C$9:$C$87,0)+RIGHT($E75),0))\n/SUM(BG$10:BG$11)","v":6.4885917631615345E-2}]
[null,null,null,null,"EL5",{"$f":"IF(INDEX(PC_MAPPING,RIGHT($C67,1),MATCH($E$2,'Data by Building Type'!$D$22:$F$22,0))=\"Yes\",1,0)*\n(F$10*OFFSET('Efficiency Distributions'!$D$10,MATCH($C67,'Efficiency Distributions'!$C$9:$C$87,0)+RIGHT($E76),0)\n+F$11*OFFSET('Efficiency Distributions'!$E$10,MATCH($C67,'Efficiency Distributions'!$C$9:$C$87,0)+RIGHT($E76),0))\n/SUM(F$10:F$11)","v":0.28262399389347781},{"$f":"IF(INDEX(PC_MAPPING,RIGHT($C67,1),MATCH($E$2,'Data by Building Type'!$D$22:$F$22,0))=\"Yes\",1,0)*\n(G$10*OFFSET('Efficiency Distributions'!$D$10,MATCH($C67,'Efficiency Distributions'!$C$9:$C$87,0)+RIGHT($E76),0)\n+G$11*OFFSET('Efficiency Distributions'!$E$10,MATCH($C67,'Efficiency Distributions'!$C$9:$C$87,0)+RIGHT($E76),0))\n/SUM(G$10:G$11)","v":0.29615019994492126},{"$f":"IF(INDEX(PC_MAPPING,RIGHT($C67,1),MATCH($E$2,'Data by Building Type'!$D$22:$F$22,0))=\"Yes\",1,0)*\n(H$10*OFFSET('Efficiency Distributions'!$D$10,MATCH($C67,'Efficiency Distributions'!$C$9:$C$87,0)+RIGHT($E76),0)\n+H$11*OFFSET('Efficiency Distributions'!$E$10,MATCH($C67,'Efficiency Distributions'!$C$9:$C$87,0)+RIGHT($E76),0))\n/SUM(H$10:H$11)","v":0.27996951064429987},{"$f":"IF(INDEX(PC_MAPPING,RIGHT($C67,1),MATCH($E$2,'Data by Building Type'!$D$22:$F$22,0))=\"Yes\",1,0)*\n(I$10*OFFSET('Efficiency Distributions'!$D$10,MATCH($C67,'Efficiency Distributions'!$C$9:$C$87,0)+RIGHT($E76),0)\n+I$11*OFFSET('Efficiency Distributions'!$E$10,MATCH($C67,'Efficiency Distributions'!$C$9:$C$87,0)+RIGHT($E76),0))\n/SUM(I$10:I$11)","v":0.28298729531761863},{"$f":"IF(INDEX(PC_MAPPING,RIGHT($C67,1),MATCH($E$2,'Data by Building Type'!$D$22:$F$22,0))=\"Yes\",1,0)*\n(J$10*OFFSET('Efficiency Distributions'!$D$10,MATCH($C67,'Efficiency Distributions'!$C$9:$C$87,0)+RIGHT($E76),0)\n+J$11*OFFSET('Efficiency Distributions'!$E$10,MATCH($C67,'Efficiency Distributions'!$C$9:$C$87,0)+RIGHT($E76),0))\n/SUM(J$10:J$11)","v":0.28485575185170697},{"$f":"IF(INDEX(PC_MAPPING,RIGHT($C67,1),MATCH($E$2,'Data by Building Type'!$D$22:$F$22,0))=\"Yes\",1,0)*\n(K$10*OFFSET('Efficiency Distributions'!$D$10,MATCH($C67,'Efficiency Distributions'!$C$9:$C$87,0)+RIGHT($E76),0)\n+K$11*OFFSET('Efficiency Distributions'!$E$10,MATCH($C67,'Efficiency Distributions'!$C$9:$C$87,0)+RIGHT($E76),0))\n/SUM(K$10:K$11)","v":0.28177144624630041},{"$f":"IF(INDEX(PC_MAPPING,RIGHT($C67,1),MATCH($E$2,'Data by Building Type'!$D$22:$F$22,0))=\"Yes\",1,0)*\n(L$10*OFFSET('Efficiency Distributions'!$D$10,MATCH($C67,'Efficiency Distributions'!$C$9:$C$87,0)+RIGHT($E76),0)\n+L$11*OFFSET('Efficiency Distributions'!$E$10,MATCH($C67,'Efficiency Distributions'!$C$9:$C$87,0)+RIGHT($E76),0))\n/SUM(L$10:L$11)","v":0.28152877510250712},{"$f":"IF(INDEX(PC_MAPPING,RIGHT($C67,1),MATCH($E$2,'Data by Building Type'!$D$22:$F$22,0))=\"Yes\",1,0)*\n(M$10*OFFSET('Efficiency Distributions'!$D$10,MATCH($C67,'Efficiency Distributions'!$C$9:$C$87,0)+RIGHT($E76),0)\n+M$11*OFFSET('Efficiency Distributions'!$E$10,MATCH($C67,'Efficiency Distributions'!$C$9:$C$87,0)+RIGHT($E76),0))\n/SUM(M$10:M$11)","v":0.27739633413775566},{"$f":"IF(INDEX(PC_MAPPING,RIGHT($C67,1),MATCH($E$2,'Data by Building Type'!$D$22:$F$22,0))=\"Yes\",1,0)*\n(N$10*OFFSET('Efficiency Distributions'!$D$10,MATCH($C67,'Efficiency Distributions'!$C$9:$C$87,0)+RIGHT($E76),0)\n+N$11*OFFSET('Efficiency Distributions'!$E$10,MATCH($C67,'Efficiency Distributions'!$C$9:$C$87,0)+RIGHT($E76),0))\n/SUM(N$10:N$11)","v":0.26796649683181317},{"$f":"IF(INDEX(PC_MAPPING,RIGHT($C67,1),MATCH($E$2,'Data by Building Type'!$D$22:$F$22,0))=\"Yes\",1,0)*\n(O$10*OFFSET('Efficiency Distributions'!$D$10,MATCH($C67,'Efficiency Distributions'!$C$9:$C$87,0)+RIGHT($E76),0)\n+O$11*OFFSET('Efficiency Distributions'!$E$10,MATCH($C67,'Efficiency Distributions'!$C$9:$C$87,0)+RIGHT($E76),0))\n/SUM(O$10:O$11)","v":0.26154052217693968},{"$f":"IF(INDEX(PC_MAPPING,RIGHT($C67,1),MATCH($E$2,'Data by Building Type'!$D$22:$F$22,0))=\"Yes\",1,0)*\n(P$10*OFFSET('Efficiency Distributions'!$D$10,MATCH($C67,'Efficiency Distributions'!$C$9:$C$87,0)+RIGHT($E76),0)\n+P$11*OFFSET('Efficiency Distributions'!$E$10,MATCH($C67,'Efficiency Distributions'!$C$9:$C$87,0)+RIGHT($E76),0))\n/SUM(P$10:P$11)","v":0.26809150713587371},{"$f":"IF(INDEX(PC_MAPPING,RIGHT($C67,1),MATCH($E$2,'Data by Building Type'!$D$22:$F$22,0))=\"Yes\",1,0)*\n(Q$10*OFFSET('Efficiency Distributions'!$D$10,MATCH($C67,'Efficiency Distributions'!$C$9:$C$87,0)+RIGHT($E76),0)\n+Q$11*OFFSET('Efficiency Distributions'!$E$10,MATCH($C67,'Efficiency Distributions'!$C$9:$C$87,0)+RIGHT($E76),0))\n/SUM(Q$10:Q$11)","v":0.2573167769638241},{"$f":"IF(INDEX(PC_MAPPING,RIGHT($C67,1),MATCH($E$2,'Data by Building Type'!$D$22:$F$22,0))=\"Yes\",1,0)*\n(R$10*OFFSET('Efficiency Distributions'!$D$10,MATCH($C67,'Efficiency Distributions'!$C$9:$C$87,0)+RIGHT($E76),0)\n+R$11*OFFSET('Efficiency Distributions'!$E$10,MATCH($C67,'Efficiency Distributions'!$C$9:$C$87,0)+RIGHT($E76),0))\n/SUM(R$10:R$11)","v":0.28691411468426442},{"$f":"IF(INDEX(PC_MAPPING,RIGHT($C67,1),MATCH($E$2,'Data by Building Type'!$D$22:$F$22,0))=\"Yes\",1,0)*\n(S$10*OFFSET('Efficiency Distributions'!$D$10,MATCH($C67,'Efficiency Distributions'!$C$9:$C$87,0)+RIGHT($E76),0)\n+S$11*OFFSET('Efficiency Distributions'!$E$10,MATCH($C67,'Efficiency Distributions'!$C$9:$C$87,0)+RIGHT($E76),0))\n/SUM(S$10:S$11)","v":0.28393310160436158},{"$f":"IF(INDEX(PC_MAPPING,RIGHT($C67,1),MATCH($E$2,'Data by Building Type'!$D$22:$F$22,0))=\"Yes\",1,0)*\n(T$10*OFFSET('Efficiency Distributions'!$D$10,MATCH($C67,'Efficiency Distributions'!$C$9:$C$87,0)+RIGHT($E76),0)\n+T$11*OFFSET('Efficiency Distributions'!$E$10,MATCH($C67,'Efficiency Distributions'!$C$9:$C$87,0)+RIGHT($E76),0))\n/SUM(T$10:T$11)","v":0.29491728179726301},{"$f":"IF(INDEX(PC_MAPPING,RIGHT($C67,1),MATCH($E$2,'Data by Building Type'!$D$22:$F$22,0))=\"Yes\",1,0)*\n(U$10*OFFSET('Efficiency Distributions'!$D$10,MATCH($C67,'Efficiency Distributions'!$C$9:$C$87,0)+RIGHT($E76),0)\n+U$11*OFFSET('Efficiency Distributions'!$E$10,MATCH($C67,'Efficiency Distributions'!$C$9:$C$87,0)+RIGHT($E76),0))\n/SUM(U$10:U$11)","v":0.29333486154981264},{"$f":"IF(INDEX(PC_MAPPING,RIGHT($C67,1),MATCH($E$2,'Data by Building Type'!$D$22:$F$22,0))=\"Yes\",1,0)*\n(V$10*OFFSET('Efficiency Distributions'!$D$10,MATCH($C67,'Efficiency Distributions'!$C$9:$C$87,0)+RIGHT($E76),0)\n+V$11*OFFSET('Efficiency Distributions'!$E$10,MATCH($C67,'Efficiency Distributions'!$C$9:$C$87,0)+RIGHT($E76),0))\n/SUM(V$10:V$11)","v":0.29567520141944292},{"$f":"IF(INDEX(PC_MAPPING,RIGHT($C67,1),MATCH($E$2,'Data by Building Type'!$D$22:$F$22,0))=\"Yes\",1,0)*\n(W$10*OFFSET('Efficiency Distributions'!$D$10,MATCH($C67,'Efficiency Distributions'!$C$9:$C$87,0)+RIGHT($E76),0)\n+W$11*OFFSET('Efficiency Distributions'!$E$10,MATCH($C67,'Efficiency Distributions'!$C$9:$C$87,0)+RIGHT($E76),0))\n/SUM(W$10:W$11)","v":0.2945529889935885},{"$f":"IF(INDEX(PC_MAPPING,RIGHT($C67,1),MATCH($E$2,'Data by Building Type'!$D$22:$F$22,0))=\"Yes\",1,0)*\n(X$10*OFFSET('Efficiency Distributions'!$D$10,MATCH($C67,'Efficiency Distributions'!$C$9:$C$87,0)+RIGHT($E76),0)\n+X$11*OFFSET('Efficiency Distributions'!$E$10,MATCH($C67,'Efficiency Distributions'!$C$9:$C$87,0)+RIGHT($E76),0))\n/SUM(X$10:X$11)","v":0.29815555042866793},{"$f":"IF(INDEX(PC_MAPPING,RIGHT($C67,1),MATCH($E$2,'Data by Building Type'!$D$22:$F$22,0))=\"Yes\",1,0)*\n(Y$10*OFFSET('Efficiency Distributions'!$D$10,MATCH($C67,'Efficiency Distributions'!$C$9:$C$87,0)+RIGHT($E76),0)\n+Y$11*OFFSET('Efficiency Distributions'!$E$10,MATCH($C67,'Efficiency Distributions'!$C$9:$C$87,0)+RIGHT($E76),0))\n/SUM(Y$10:Y$11)","v":0.30692040742546522},{"$f":"IF(INDEX(PC_MAPPING,RIGHT($C67,1),MATCH($E$2,'Data by Building Type'!$D$22:$F$22,0))=\"Yes\",1,0)*\n(Z$10*OFFSET('Efficiency Distributions'!$D$10,MATCH($C67,'Efficiency Distributions'!$C$9:$C$87,0)+RIGHT($E76),0)\n+Z$11*OFFSET('Efficiency Distributions'!$E$10,MATCH($C67,'Efficiency Distributions'!$C$9:$C$87,0)+RIGHT($E76),0))\n/SUM(Z$10:Z$11)","v":0.30706841848426109},{"$f":"IF(INDEX(PC_MAPPING,RIGHT($C67,1),MATCH($E$2,'Data by Building Type'!$D$22:$F$22,0))=\"Yes\",1,0)*\n(AA$10*OFFSET('Efficiency Distributions'!$D$10,MATCH($C67,'Efficiency Distributions'!$C$9:$C$87,0)+RIGHT($E76),0)\n+AA$11*OFFSET('Efficiency Distributions'!$E$10,MATCH($C67,'Efficiency Distributions'!$C$9:$C$87,0)+RIGHT($E76),0))\n/SUM(AA$10:AA$11)","v":0.3057105945026703},{"$f":"IF(INDEX(PC_MAPPING,RIGHT($C67,1),MATCH($E$2,'Data by Building Type'!$D$22:$F$22,0))=\"Yes\",1,0)*\n(AB$10*OFFSET('Efficiency Distributions'!$D$10,MATCH($C67,'Efficiency Distributions'!$C$9:$C$87,0)+RIGHT($E76),0)\n+AB$11*OFFSET('Efficiency Distributions'!$E$10,MATCH($C67,'Efficiency Distributions'!$C$9:$C$87,0)+RIGHT($E76),0))\n/SUM(AB$10:AB$11)","v":0.29797447064277327},{"$f":"IF(INDEX(PC_MAPPING,RIGHT($C67,1),MATCH($E$2,'Data by Building Type'!$D$22:$F$22,0))=\"Yes\",1,0)*\n(AC$10*OFFSET('Efficiency Distributions'!$D$10,MATCH($C67,'Efficiency Distributions'!$C$9:$C$87,0)+RIGHT($E76),0)\n+AC$11*OFFSET('Efficiency Distributions'!$E$10,MATCH($C67,'Efficiency Distributions'!$C$9:$C$87,0)+RIGHT($E76),0))\n/SUM(AC$10:AC$11)","v":0.29851487465349541},{"$f":"IF(INDEX(PC_MAPPING,RIGHT($C67,1),MATCH($E$2,'Data by Building Type'!$D$22:$F$22,0))=\"Yes\",1,0)*\n(AD$10*OFFSET('Efficiency Distributions'!$D$10,MATCH($C67,'Efficiency Distributions'!$C$9:$C$87,0)+RIGHT($E76),0)\n+AD$11*OFFSET('Efficiency Distributions'!$E$10,MATCH($C67,'Efficiency Distributions'!$C$9:$C$87,0)+RIGHT($E76),0))\n/SUM(AD$10:AD$11)","v":0.29185456790091835},{"$f":"IF(INDEX(PC_MAPPING,RIGHT($C67,1),MATCH($E$2,'Data by Building Type'!$D$22:$F$22,0))=\"Yes\",1,0)*\n(AE$10*OFFSET('Efficiency Distributions'!$D$10,MATCH($C67,'Efficiency Distributions'!$C$9:$C$87,0)+RIGHT($E76),0)\n+AE$11*OFFSET('Efficiency Distributions'!$E$10,MATCH($C67,'Efficiency Distributions'!$C$9:$C$87,0)+RIGHT($E76),0))\n/SUM(AE$10:AE$11)","v":0.30196286247406307},{"$f":"IF(INDEX(PC_MAPPING,RIGHT($C67,1),MATCH($E$2,'Data by Building Type'!$D$22:$F$22,0))=\"Yes\",1,0)*\n(AF$10*OFFSET('Efficiency Distributions'!$D$10,MATCH($C67,'Efficiency Distributions'!$C$9:$C$87,0)+RIGHT($E76),0)\n+AF$11*OFFSET('Efficiency Distributions'!$E$10,MATCH($C67,'Efficiency Distributions'!$C$9:$C$87,0)+RIGHT($E76),0))\n/SUM(AF$10:AF$11)","v":0.32429109702489384},{"$f":"IF(INDEX(PC_MAPPING,RIGHT($C67,1),MATCH($E$2,'Data by Building Type'!$D$22:$F$22,0))=\"Yes\",1,0)*\n(AG$10*OFFSET('Efficiency Distributions'!$D$10,MATCH($C67,'Efficiency Distributions'!$C$9:$C$87,0)+RIGHT($E76),0)\n+AG$11*OFFSET('Efficiency Distributions'!$E$10,MATCH($C67,'Efficiency Distributions'!$C$9:$C$87,0)+RIGHT($E76),0))\n/SUM(AG$10:AG$11)","v":0.3338240379308976},{"$f":"IF(INDEX(PC_MAPPING,RIGHT($C67,1),MATCH($E$2,'Data by Building Type'!$D$22:$F$22,0))=\"Yes\",1,0)*\n(AH$10*OFFSET('Efficiency Distributions'!$D$10,MATCH($C67,'Efficiency Distributions'!$C$9:$C$87,0)+RIGHT($E76),0)\n+AH$11*OFFSET('Efficiency Distributions'!$E$10,MATCH($C67,'Efficiency Distributions'!$C$9:$C$87,0)+RIGHT($E76),0))\n/SUM(AH$10:AH$11)","v":0.3338240379308976},{"$f":"IF(INDEX(PC_MAPPING,RIGHT($C67,1),MATCH($E$2,'Data by Building Type'!$D$22:$F$22,0))=\"Yes\",1,0)*\n(AI$10*OFFSET('Efficiency Distributions'!$D$10,MATCH($C67,'Efficiency Distributions'!$C$9:$C$87,0)+RIGHT($E76),0)\n+AI$11*OFFSET('Efficiency Distributions'!$E$10,MATCH($C67,'Efficiency Distributions'!$C$9:$C$87,0)+RIGHT($E76),0))\n/SUM(AI$10:AI$11)","v":0.3338240379308976},{"$f":"IF(INDEX(PC_MAPPING,RIGHT($C67,1),MATCH($E$2,'Data by Building Type'!$D$22:$F$22,0))=\"Yes\",1,0)*\n(AJ$10*OFFSET('Efficiency Distributions'!$D$10,MATCH($C67,'Efficiency Distributions'!$C$9:$C$87,0)+RIGHT($E76),0)\n+AJ$11*OFFSET('Efficiency Distributions'!$E$10,MATCH($C67,'Efficiency Distributions'!$C$9:$C$87,0)+RIGHT($E76),0))\n/SUM(AJ$10:AJ$11)","v":0.32985288214163216},{"$f":"IF(INDEX(PC_MAPPING,RIGHT($C67,1),MATCH($E$2,'Data by Building Type'!$D$22:$F$22,0))=\"Yes\",1,0)*\n(AK$10*OFFSET('Efficiency Distributions'!$D$10,MATCH($C67,'Efficiency Distributions'!$C$9:$C$87,0)+RIGHT($E76),0)\n+AK$11*OFFSET('Efficiency Distributions'!$E$10,MATCH($C67,'Efficiency Distributions'!$C$9:$C$87,0)+RIGHT($E76),0))\n/SUM(AK$10:AK$11)","v":0.27432967133529501},{"$f":"IF(INDEX(PC_MAPPING,RIGHT($C67,1),MATCH($E$2,'Data by Building Type'!$D$22:$F$22,0))=\"Yes\",1,0)*\n(AL$10*OFFSET('Efficiency Distributions'!$D$10,MATCH($C67,'Efficiency Distributions'!$C$9:$C$87,0)+RIGHT($E76),0)\n+AL$11*OFFSET('Efficiency Distributions'!$E$10,MATCH($C67,'Efficiency Distributions'!$C$9:$C$87,0)+RIGHT($E76),0))\n/SUM(AL$10:AL$11)","v":0.27599131427477874},{"$f":"IF(INDEX(PC_MAPPING,RIGHT($C67,1),MATCH($E$2,'Data by Building Type'!$D$22:$F$22,0))=\"Yes\",1,0)*\n(AM$10*OFFSET('Efficiency Distributions'!$D$10,MATCH($C67,'Efficiency Distributions'!$C$9:$C$87,0)+RIGHT($E76),0)\n+AM$11*OFFSET('Efficiency Distributions'!$E$10,MATCH($C67,'Efficiency Distributions'!$C$9:$C$87,0)+RIGHT($E76),0))\n/SUM(AM$10:AM$11)","v":0.26885259303234588},{"$f":"IF(INDEX(PC_MAPPING,RIGHT($C67,1),MATCH($E$2,'Data by Building Type'!$D$22:$F$22,0))=\"Yes\",1,0)*\n(AN$10*OFFSET('Efficiency Distributions'!$D$10,MATCH($C67,'Efficiency Distributions'!$C$9:$C$87,0)+RIGHT($E76),0)\n+AN$11*OFFSET('Efficiency Distributions'!$E$10,MATCH($C67,'Efficiency Distributions'!$C$9:$C$87,0)+RIGHT($E76),0))\n/SUM(AN$10:AN$11)","v":0.26942895815012896},{"$f":"IF(INDEX(PC_MAPPING,RIGHT($C67,1),MATCH($E$2,'Data by Building Type'!$D$22:$F$22,0))=\"Yes\",1,0)*\n(AO$10*OFFSET('Efficiency Distributions'!$D$10,MATCH($C67,'Efficiency Distributions'!$C$9:$C$87,0)+RIGHT($E76),0)\n+AO$11*OFFSET('Efficiency Distributions'!$E$10,MATCH($C67,'Efficiency Distributions'!$C$9:$C$87,0)+RIGHT($E76),0))\n/SUM(AO$10:AO$11)","v":0.26663179582402224},{"$f":"IF(INDEX(PC_MAPPING,RIGHT($C67,1),MATCH($E$2,'Data by Building Type'!$D$22:$F$22,0))=\"Yes\",1,0)*\n(AP$10*OFFSET('Efficiency Distributions'!$D$10,MATCH($C67,'Efficiency Distributions'!$C$9:$C$87,0)+RIGHT($E76),0)\n+AP$11*OFFSET('Efficiency Distributions'!$E$10,MATCH($C67,'Efficiency Distributions'!$C$9:$C$87,0)+RIGHT($E76),0))\n/SUM(AP$10:AP$11)","v":0.26786235118268953},{"$f":"IF(INDEX(PC_MAPPING,RIGHT($C67,1),MATCH($E$2,'Data by Building Type'!$D$22:$F$22,0))=\"Yes\",1,0)*\n(AQ$10*OFFSET('Efficiency Distributions'!$D$10,MATCH($C67,'Efficiency Distributions'!$C$9:$C$87,0)+RIGHT($E76),0)\n+AQ$11*OFFSET('Efficiency Distributions'!$E$10,MATCH($C67,'Efficiency Distributions'!$C$9:$C$87,0)+RIGHT($E76),0))\n/SUM(AQ$10:AQ$11)","v":0.26828025137811079},{"$f":"IF(INDEX(PC_MAPPING,RIGHT($C67,1),MATCH($E$2,'Data by Building Type'!$D$22:$F$22,0))=\"Yes\",1,0)*\n(AR$10*OFFSET('Efficiency Distributions'!$D$10,MATCH($C67,'Efficiency Distributions'!$C$9:$C$87,0)+RIGHT($E76),0)\n+AR$11*OFFSET('Efficiency Distributions'!$E$10,MATCH($C67,'Efficiency Distributions'!$C$9:$C$87,0)+RIGHT($E76),0))\n/SUM(AR$10:AR$11)","v":0.26959559773289643},{"$f":"IF(INDEX(PC_MAPPING,RIGHT($C67,1),MATCH($E$2,'Data by Building Type'!$D$22:$F$22,0))=\"Yes\",1,0)*\n(AS$10*OFFSET('Efficiency Distributions'!$D$10,MATCH($C67,'Efficiency Distributions'!$C$9:$C$87,0)+RIGHT($E76),0)\n+AS$11*OFFSET('Efficiency Distributions'!$E$10,MATCH($C67,'Efficiency Distributions'!$C$9:$C$87,0)+RIGHT($E76),0))\n/SUM(AS$10:AS$11)","v":0.26957812737211212},{"$f":"IF(INDEX(PC_MAPPING,RIGHT($C67,1),MATCH($E$2,'Data by Building Type'!$D$22:$F$22,0))=\"Yes\",1,0)*\n(AT$10*OFFSET('Efficiency Distributions'!$D$10,MATCH($C67,'Efficiency Distributions'!$C$9:$C$87,0)+RIGHT($E76),0)\n+AT$11*OFFSET('Efficiency Distributions'!$E$10,MATCH($C67,'Efficiency Distributions'!$C$9:$C$87,0)+RIGHT($E76),0))\n/SUM(AT$10:AT$11)","v":0.26888094387599776},{"$f":"IF(INDEX(PC_MAPPING,RIGHT($C67,1),MATCH($E$2,'Data by Building Type'!$D$22:$F$22,0))=\"Yes\",1,0)*\n(AU$10*OFFSET('Efficiency Distributions'!$D$10,MATCH($C67,'Efficiency Distributions'!$C$9:$C$87,0)+RIGHT($E76),0)\n+AU$11*OFFSET('Efficiency Distributions'!$E$10,MATCH($C67,'Efficiency Distributions'!$C$9:$C$87,0)+RIGHT($E76),0))\n/SUM(AU$10:AU$11)","v":0.26969967642250847},{"$f":"IF(INDEX(PC_MAPPING,RIGHT($C67,1),MATCH($E$2,'Data by Building Type'!$D$22:$F$22,0))=\"Yes\",1,0)*\n(AV$10*OFFSET('Efficiency Distributions'!$D$10,MATCH($C67,'Efficiency Distributions'!$C$9:$C$87,0)+RIGHT($E76),0)\n+AV$11*OFFSET('Efficiency Distributions'!$E$10,MATCH($C67,'Efficiency Distributions'!$C$9:$C$87,0)+RIGHT($E76),0))\n/SUM(AV$10:AV$11)","v":0.28099801363733956},{"$f":"IF(INDEX(PC_MAPPING,RIGHT($C67,1),MATCH($E$2,'Data by Building Type'!$D$22:$F$22,0))=\"Yes\",1,0)*\n(AW$10*OFFSET('Efficiency Distributions'!$D$10,MATCH($C67,'Efficiency Distributions'!$C$9:$C$87,0)+RIGHT($E76),0)\n+AW$11*OFFSET('Efficiency Distributions'!$E$10,MATCH($C67,'Efficiency Distributions'!$C$9:$C$87,0)+RIGHT($E76),0))\n/SUM(AW$10:AW$11)","v":0.28033177279962213},{"$f":"IF(INDEX(PC_MAPPING,RIGHT($C67,1),MATCH($E$2,'Data by Building Type'!$D$22:$F$22,0))=\"Yes\",1,0)*\n(AX$10*OFFSET('Efficiency Distributions'!$D$10,MATCH($C67,'Efficiency Distributions'!$C$9:$C$87,0)+RIGHT($E76),0)\n+AX$11*OFFSET('Efficiency Distributions'!$E$10,MATCH($C67,'Efficiency Distributions'!$C$9:$C$87,0)+RIGHT($E76),0))\n/SUM(AX$10:AX$11)","v":0.28369454414583062},{"$f":"IF(INDEX(PC_MAPPING,RIGHT($C67,1),MATCH($E$2,'Data by Building Type'!$D$22:$F$22,0))=\"Yes\",1,0)*\n(AY$10*OFFSET('Efficiency Distributions'!$D$10,MATCH($C67,'Efficiency Distributions'!$C$9:$C$87,0)+RIGHT($E76),0)\n+AY$11*OFFSET('Efficiency Distributions'!$E$10,MATCH($C67,'Efficiency Distributions'!$C$9:$C$87,0)+RIGHT($E76),0))\n/SUM(AY$10:AY$11)","v":0.2847148843709415},{"$f":"IF(INDEX(PC_MAPPING,RIGHT($C67,1),MATCH($E$2,'Data by Building Type'!$D$22:$F$22,0))=\"Yes\",1,0)*\n(AZ$10*OFFSET('Efficiency Distributions'!$D$10,MATCH($C67,'Efficiency Distributions'!$C$9:$C$87,0)+RIGHT($E76),0)\n+AZ$11*OFFSET('Efficiency Distributions'!$E$10,MATCH($C67,'Efficiency Distributions'!$C$9:$C$87,0)+RIGHT($E76),0))\n/SUM(AZ$10:AZ$11)","v":0.28318401227903028},{"$f":"IF(INDEX(PC_MAPPING,RIGHT($C67,1),MATCH($E$2,'Data by Building Type'!$D$22:$F$22,0))=\"Yes\",1,0)*\n(BA$10*OFFSET('Efficiency Distributions'!$D$10,MATCH($C67,'Efficiency Distributions'!$C$9:$C$87,0)+RIGHT($E76),0)\n+BA$11*OFFSET('Efficiency Distributions'!$E$10,MATCH($C67,'Efficiency Distributions'!$C$9:$C$87,0)+RIGHT($E76),0))\n/SUM(BA$10:BA$11)","v":0.28083015230033304},{"$f":"IF(INDEX(PC_MAPPING,RIGHT($C67,1),MATCH($E$2,'Data by Building Type'!$D$22:$F$22,0))=\"Yes\",1,0)*\n(BB$10*OFFSET('Efficiency Distributions'!$D$10,MATCH($C67,'Efficiency Distributions'!$C$9:$C$87,0)+RIGHT($E76),0)\n+BB$11*OFFSET('Efficiency Distributions'!$E$10,MATCH($C67,'Efficiency Distributions'!$C$9:$C$87,0)+RIGHT($E76),0))\n/SUM(BB$10:BB$11)","v":0.27579323984526316},{"$f":"IF(INDEX(PC_MAPPING,RIGHT($C67,1),MATCH($E$2,'Data by Building Type'!$D$22:$F$22,0))=\"Yes\",1,0)*\n(BC$10*OFFSET('Efficiency Distributions'!$D$10,MATCH($C67,'Efficiency Distributions'!$C$9:$C$87,0)+RIGHT($E76),0)\n+BC$11*OFFSET('Efficiency Distributions'!$E$10,MATCH($C67,'Efficiency Distributions'!$C$9:$C$87,0)+RIGHT($E76),0))\n/SUM(BC$10:BC$11)","v":0.2747718902346894},{"$f":"IF(INDEX(PC_MAPPING,RIGHT($C67,1),MATCH($E$2,'Data by Building Type'!$D$22:$F$22,0))=\"Yes\",1,0)*\n(BD$10*OFFSET('Efficiency Distributions'!$D$10,MATCH($C67,'Efficiency Distributions'!$C$9:$C$87,0)+RIGHT($E76),0)\n+BD$11*OFFSET('Efficiency Distributions'!$E$10,MATCH($C67,'Efficiency Distributions'!$C$9:$C$87,0)+RIGHT($E76),0))\n/SUM(BD$10:BD$11)","v":0.28048720454138648},{"$f":"IF(INDEX(PC_MAPPING,RIGHT($C67,1),MATCH($E$2,'Data by Building Type'!$D$22:$F$22,0))=\"Yes\",1,0)*\n(BE$10*OFFSET('Efficiency Distributions'!$D$10,MATCH($C67,'Efficiency Distributions'!$C$9:$C$87,0)+RIGHT($E76),0)\n+BE$11*OFFSET('Efficiency Distributions'!$E$10,MATCH($C67,'Efficiency Distributions'!$C$9:$C$87,0)+RIGHT($E76),0))\n/SUM(BE$10:BE$11)","v":0.28448292635927391},{"$f":"IF(INDEX(PC_MAPPING,RIGHT($C67,1),MATCH($E$2,'Data by Building Type'!$D$22:$F$22,0))=\"Yes\",1,0)*\n(BF$10*OFFSET('Efficiency Distributions'!$D$10,MATCH($C67,'Efficiency Distributions'!$C$9:$C$87,0)+RIGHT($E76),0)\n+BF$11*OFFSET('Efficiency Distributions'!$E$10,MATCH($C67,'Efficiency Distributions'!$C$9:$C$87,0)+RIGHT($E76),0))\n/SUM(BF$10:BF$11)","v":0.29242554219705047},{"$f":"IF(INDEX(PC_MAPPING,RIGHT($C67,1),MATCH($E$2,'Data by Building Type'!$D$22:$F$22,0))=\"Yes\",1,0)*\n(BG$10*OFFSET('Efficiency Distributions'!$D$10,MATCH($C67,'Efficiency Distributions'!$C$9:$C$87,0)+RIGHT($E76),0)\n+BG$11*OFFSET('Efficiency Distributions'!$E$10,MATCH($C67,'Efficiency Distributions'!$C$9:$C$87,0)+RIGHT($E76),0))\n/SUM(BG$10:BG$11)","v":0.29389503868437539}]
[null,null,null,null,"EL6",{"$f":"IF(INDEX(PC_MAPPING,RIGHT($C67,1),MATCH($E$2,'Data by Building Type'!$D$22:$F$22,0))=\"Yes\",1,0)*\n(F$10*OFFSET('Efficiency Distributions'!$D$10,MATCH($C67,'Efficiency Distributions'!$C$9:$C$87,0)+RIGHT($E77),0)\n+F$11*OFFSET('Efficiency Distributions'!$E$10,MATCH($C67,'Efficiency Distributions'!$C$9:$C$87,0)+RIGHT($E77),0))\n/SUM(F$10:F$11)","v":0},{"$f":"IF(INDEX(PC_MAPPING,RIGHT($C67,1),MATCH($E$2,'Data by Building Type'!$D$22:$F$22,0))=\"Yes\",1,0)*\n(G$10*OFFSET('Efficiency Distributions'!$D$10,MATCH($C67,'Efficiency Distributions'!$C$9:$C$87,0)+RIGHT($E77),0)\n+G$11*OFFSET('Efficiency Distributions'!$E$10,MATCH($C67,'Efficiency Distributions'!$C$9:$C$87,0)+RIGHT($E77),0))\n/SUM(G$10:G$11)","v":0},{"$f":"IF(INDEX(PC_MAPPING,RIGHT($C67,1),MATCH($E$2,'Data by Building Type'!$D$22:$F$22,0))=\"Yes\",1,0)*\n(H$10*OFFSET('Efficiency Distributions'!$D$10,MATCH($C67,'Efficiency Distributions'!$C$9:$C$87,0)+RIGHT($E77),0)\n+H$11*OFFSET('Efficiency Distributions'!$E$10,MATCH($C67,'Efficiency Distributions'!$C$9:$C$87,0)+RIGHT($E77),0))\n/SUM(H$10:H$11)","v":0},{"$f":"IF(INDEX(PC_MAPPING,RIGHT($C67,1),MATCH($E$2,'Data by Building Type'!$D$22:$F$22,0))=\"Yes\",1,0)*\n(I$10*OFFSET('Efficiency Distributions'!$D$10,MATCH($C67,'Efficiency Distributions'!$C$9:$C$87,0)+RIGHT($E77),0)\n+I$11*OFFSET('Efficiency Distributions'!$E$10,MATCH($C67,'Efficiency Distributions'!$C$9:$C$87,0)+RIGHT($E77),0))\n/SUM(I$10:I$11)","v":0},{"$f":"IF(INDEX(PC_MAPPING,RIGHT($C67,1),MATCH($E$2,'Data by Building Type'!$D$22:$F$22,0))=\"Yes\",1,0)*\n(J$10*OFFSET('Efficiency Distributions'!$D$10,MATCH($C67,'Efficiency Distributions'!$C$9:$C$87,0)+RIGHT($E77),0)\n+J$11*OFFSET('Efficiency Distributions'!$E$10,MATCH($C67,'Efficiency Distributions'!$C$9:$C$87,0)+RIGHT($E77),0))\n/SUM(J$10:J$11)","v":0},{"$f":"IF(INDEX(PC_MAPPING,RIGHT($C67,1),MATCH($E$2,'Data by Building Type'!$D$22:$F$22,0))=\"Yes\",1,0)*\n(K$10*OFFSET('Efficiency Distributions'!$D$10,MATCH($C67,'Efficiency Distributions'!$C$9:$C$87,0)+RIGHT($E77),0)\n+K$11*OFFSET('Efficiency Distributions'!$E$10,MATCH($C67,'Efficiency Distributions'!$C$9:$C$87,0)+RIGHT($E77),0))\n/SUM(K$10:K$11)","v":0},{"$f":"IF(INDEX(PC_MAPPING,RIGHT($C67,1),MATCH($E$2,'Data by Building Type'!$D$22:$F$22,0))=\"Yes\",1,0)*\n(L$10*OFFSET('Efficiency Distributions'!$D$10,MATCH($C67,'Efficiency Distributions'!$C$9:$C$87,0)+RIGHT($E77),0)\n+L$11*OFFSET('Efficiency Distributions'!$E$10,MATCH($C67,'Efficiency Distributions'!$C$9:$C$87,0)+RIGHT($E77),0))\n/SUM(L$10:L$11)","v":0},{"$f":"IF(INDEX(PC_MAPPING,RIGHT($C67,1),MATCH($E$2,'Data by Building Type'!$D$22:$F$22,0))=\"Yes\",1,0)*\n(M$10*OFFSET('Efficiency Distributions'!$D$10,MATCH($C67,'Efficiency Distributions'!$C$9:$C$87,0)+RIGHT($E77),0)\n+M$11*OFFSET('Efficiency Distributions'!$E$10,MATCH($C67,'Efficiency Distributions'!$C$9:$C$87,0)+RIGHT($E77),0))\n/SUM(M$10:M$11)","v":0},{"$f":"IF(INDEX(PC_MAPPING,RIGHT($C67,1),MATCH($E$2,'Data by Building Type'!$D$22:$F$22,0))=\"Yes\",1,0)*\n(N$10*OFFSET('Efficiency Distributions'!$D$10,MATCH($C67,'Efficiency Distributions'!$C$9:$C$87,0)+RIGHT($E77),0)\n+N$11*OFFSET('Efficiency Distributions'!$E$10,MATCH($C67,'Efficiency Distributions'!$C$9:$C$87,0)+RIGHT($E77),0))\n/SUM(N$10:N$11)","v":0},{"$f":"IF(INDEX(PC_MAPPING,RIGHT($C67,1),MATCH($E$2,'Data by Building Type'!$D$22:$F$22,0))=\"Yes\",1,0)*\n(O$10*OFFSET('Efficiency Distributions'!$D$10,MATCH($C67,'Efficiency Distributions'!$C$9:$C$87,0)+RIGHT($E77),0)\n+O$11*OFFSET('Efficiency Distributions'!$E$10,MATCH($C67,'Efficiency Distributions'!$C$9:$C$87,0)+RIGHT($E77),0))\n/SUM(O$10:O$11)","v":0},{"$f":"IF(INDEX(PC_MAPPING,RIGHT($C67,1),MATCH($E$2,'Data by Building Type'!$D$22:$F$22,0))=\"Yes\",1,0)*\n(P$10*OFFSET('Efficiency Distributions'!$D$10,MATCH($C67,'Efficiency Distributions'!$C$9:$C$87,0)+RIGHT($E77),0)\n+P$11*OFFSET('Efficiency Distributions'!$E$10,MATCH($C67,'Efficiency Distributions'!$C$9:$C$87,0)+RIGHT($E77),0))\n/SUM(P$10:P$11)","v":0},{"$f":"IF(INDEX(PC_MAPPING,RIGHT($C67,1),MATCH($E$2,'Data by Building Type'!$D$22:$F$22,0))=\"Yes\",1,0)*\n(Q$10*OFFSET('Efficiency Distributions'!$D$10,MATCH($C67,'Efficiency Distributions'!$C$9:$C$87,0)+RIGHT($E77),0)\n+Q$11*OFFSET('Efficiency Distributions'!$E$10,MATCH($C67,'Efficiency Distributions'!$C$9:$C$87,0)+RIGHT($E77),0))\n/SUM(Q$10:Q$11)","v":0},{"$f":"IF(INDEX(PC_MAPPING,RIGHT($C67,1),MATCH($E$2,'Data by Building Type'!$D$22:$F$22,0))=\"Yes\",1,0)*\n(R$10*OFFSET('Efficiency Distributions'!$D$10,MATCH($C67,'Efficiency Distributions'!$C$9:$C$87,0)+RIGHT($E77),0)\n+R$11*OFFSET('Efficiency Distributions'!$E$10,MATCH($C67,'Efficiency Distributions'!$C$9:$C$87,0)+RIGHT($E77),0))\n/SUM(R$10:R$11)","v":0},{"$f":"IF(INDEX(PC_MAPPING,RIGHT($C67,1),MATCH($E$2,'Data by Building Type'!$D$22:$F$22,0))=\"Yes\",1,0)*\n(S$10*OFFSET('Efficiency Distributions'!$D$10,MATCH($C67,'Efficiency Distributions'!$C$9:$C$87,0)+RIGHT($E77),0)\n+S$11*OFFSET('Efficiency Distributions'!$E$10,MATCH($C67,'Efficiency Distributions'!$C$9:$C$87,0)+RIGHT($E77),0))\n/SUM(S$10:S$11)","v":0},{"$f":"IF(INDEX(PC_MAPPING,RIGHT($C67,1),MATCH($E$2,'Data by Building Type'!$D$22:$F$22,0))=\"Yes\",1,0)*\n(T$10*OFFSET('Efficiency Distributions'!$D$10,MATCH($C67,'Efficiency Distributions'!$C$9:$C$87,0)+RIGHT($E77),0)\n+T$11*OFFSET('Efficiency Distributions'!$E$10,MATCH($C67,'Efficiency Distributions'!$C$9:$C$87,0)+RIGHT($E77),0))\n/SUM(T$10:T$11)","v":0},{"$f":"IF(INDEX(PC_MAPPING,RIGHT($C67,1),MATCH($E$2,'Data by Building Type'!$D$22:$F$22,0))=\"Yes\",1,0)*\n(U$10*OFFSET('Efficiency Distributions'!$D$10,MATCH($C67,'Efficiency Distributions'!$C$9:$C$87,0)+RIGHT($E77),0)\n+U$11*OFFSET('Efficiency Distributions'!$E$10,MATCH($C67,'Efficiency Distributions'!$C$9:$C$87,0)+RIGHT($E77),0))\n/SUM(U$10:U$11)","v":0},{"$f":"IF(INDEX(PC_MAPPING,RIGHT($C67,1),MATCH($E$2,'Data by Building Type'!$D$22:$F$22,0))=\"Yes\",1,0)*\n(V$10*OFFSET('Efficiency Distributions'!$D$10,MATCH($C67,'Efficiency Distributions'!$C$9:$C$87,0)+RIGHT($E77),0)\n+V$11*OFFSET('Efficiency Distributions'!$E$10,MATCH($C67,'Efficiency Distributions'!$C$9:$C$87,0)+RIGHT($E77),0))\n/SUM(V$10:V$11)","v":0},{"$f":"IF(INDEX(PC_MAPPING,RIGHT($C67,1),MATCH($E$2,'Data by Building Type'!$D$22:$F$22,0))=\"Yes\",1,0)*\n(W$10*OFFSET('Efficiency Distributions'!$D$10,MATCH($C67,'Efficiency Distributions'!$C$9:$C$87,0)+RIGHT($E77),0)\n+W$11*OFFSET('Efficiency Distributions'!$E$10,MATCH($C67,'Efficiency Distributions'!$C$9:$C$87,0)+RIGHT($E77),0))\n/SUM(W$10:W$11)","v":0},{"$f":"IF(INDEX(PC_MAPPING,RIGHT($C67,1),MATCH($E$2,'Data by Building Type'!$D$22:$F$22,0))=\"Yes\",1,0)*\n(X$10*OFFSET('Efficiency Distributions'!$D$10,MATCH($C67,'Efficiency Distributions'!$C$9:$C$87,0)+RIGHT($E77),0)\n+X$11*OFFSET('Efficiency Distributions'!$E$10,MATCH($C67,'Efficiency Distributions'!$C$9:$C$87,0)+RIGHT($E77),0))\n/SUM(X$10:X$11)","v":0},{"$f":"IF(INDEX(PC_MAPPING,RIGHT($C67,1),MATCH($E$2,'Data by Building Type'!$D$22:$F$22,0))=\"Yes\",1,0)*\n(Y$10*OFFSET('Efficiency Distributions'!$D$10,MATCH($C67,'Efficiency Distributions'!$C$9:$C$87,0)+RIGHT($E77),0)\n+Y$11*OFFSET('Efficiency Distributions'!$E$10,MATCH($C67,'Efficiency Distributions'!$C$9:$C$87,0)+RIGHT($E77),0))\n/SUM(Y$10:Y$11)","v":0},{"$f":"IF(INDEX(PC_MAPPING,RIGHT($C67,1),MATCH($E$2,'Data by Building Type'!$D$22:$F$22,0))=\"Yes\",1,0)*\n(Z$10*OFFSET('Efficiency Distributions'!$D$10,MATCH($C67,'Efficiency Distributions'!$C$9:$C$87,0)+RIGHT($E77),0)\n+Z$11*OFFSET('Efficiency Distributions'!$E$10,MATCH($C67,'Efficiency Distributions'!$C$9:$C$87,0)+RIGHT($E77),0))\n/SUM(Z$10:Z$11)","v":0},{"$f":"IF(INDEX(PC_MAPPING,RIGHT($C67,1),MATCH($E$2,'Data by Building Type'!$D$22:$F$22,0))=\"Yes\",1,0)*\n(AA$10*OFFSET('Efficiency Distributions'!$D$10,MATCH($C67,'Efficiency Distributions'!$C$9:$C$87,0)+RIGHT($E77),0)\n+AA$11*OFFSET('Efficiency Distributions'!$E$10,MATCH($C67,'Efficiency Distributions'!$C$9:$C$87,0)+RIGHT($E77),0))\n/SUM(AA$10:AA$11)","v":0},{"$f":"IF(INDEX(PC_MAPPING,RIGHT($C67,1),MATCH($E$2,'Data by Building Type'!$D$22:$F$22,0))=\"Yes\",1,0)*\n(AB$10*OFFSET('Efficiency Distributions'!$D$10,MATCH($C67,'Efficiency Distributions'!$C$9:$C$87,0)+RIGHT($E77),0)\n+AB$11*OFFSET('Efficiency Distributions'!$E$10,MATCH($C67,'Efficiency Distributions'!$C$9:$C$87,0)+RIGHT($E77),0))\n/SUM(AB$10:AB$11)","v":0},{"$f":"IF(INDEX(PC_MAPPING,RIGHT($C67,1),MATCH($E$2,'Data by Building Type'!$D$22:$F$22,0))=\"Yes\",1,0)*\n(AC$10*OFFSET('Efficiency Distributions'!$D$10,MATCH($C67,'Efficiency Distributions'!$C$9:$C$87,0)+RIGHT($E77),0)\n+AC$11*OFFSET('Efficiency Distributions'!$E$10,MATCH($C67,'Efficiency Distributions'!$C$9:$C$87,0)+RIGHT($E77),0))\n/SUM(AC$10:AC$11)","v":0},{"$f":"IF(INDEX(PC_MAPPING,RIGHT($C67,1),MATCH($E$2,'Data by Building Type'!$D$22:$F$22,0))=\"Yes\",1,0)*\n(AD$10*OFFSET('Efficiency Distributions'!$D$10,MATCH($C67,'Efficiency Distributions'!$C$9:$C$87,0)+RIGHT($E77),0)\n+AD$11*OFFSET('Efficiency Distributions'!$E$10,MATCH($C67,'Efficiency Distributions'!$C$9:$C$87,0)+RIGHT($E77),0))\n/SUM(AD$10:AD$11)","v":0},{"$f":"IF(INDEX(PC_MAPPING,RIGHT($C67,1),MATCH($E$2,'Data by Building Type'!$D$22:$F$22,0))=\"Yes\",1,0)*\n(AE$10*OFFSET('Efficiency Distributions'!$D$10,MATCH($C67,'Efficiency Distributions'!$C$9:$C$87,0)+RIGHT($E77),0)\n+AE$11*OFFSET('Efficiency Distributions'!$E$10,MATCH($C67,'Efficiency Distributions'!$C$9:$C$87,0)+RIGHT($E77),0))\n/SUM(AE$10:AE$11)","v":0},{"$f":"IF(INDEX(PC_MAPPING,RIGHT($C67,1),MATCH($E$2,'Data by Building Type'!$D$22:$F$22,0))=\"Yes\",1,0)*\n(AF$10*OFFSET('Efficiency Distributions'!$D$10,MATCH($C67,'Efficiency Distributions'!$C$9:$C$87,0)+RIGHT($E77),0)\n+AF$11*OFFSET('Efficiency Distributions'!$E$10,MATCH($C67,'Efficiency Distributions'!$C$9:$C$87,0)+RIGHT($E77),0))\n/SUM(AF$10:AF$11)","v":0},{"$f":"IF(INDEX(PC_MAPPING,RIGHT($C67,1),MATCH($E$2,'Data by Building Type'!$D$22:$F$22,0))=\"Yes\",1,0)*\n(AG$10*OFFSET('Efficiency Distributions'!$D$10,MATCH($C67,'Efficiency Distributions'!$C$9:$C$87,0)+RIGHT($E77),0)\n+AG$11*OFFSET('Efficiency Distributions'!$E$10,MATCH($C67,'Efficiency Distributions'!$C$9:$C$87,0)+RIGHT($E77),0))\n/SUM(AG$10:AG$11)","v":0},{"$f":"IF(INDEX(PC_MAPPING,RIGHT($C67,1),MATCH($E$2,'Data by Building Type'!$D$22:$F$22,0))=\"Yes\",1,0)*\n(AH$10*OFFSET('Efficiency Distributions'!$D$10,MATCH($C67,'Efficiency Distributions'!$C$9:$C$87,0)+RIGHT($E77),0)\n+AH$11*OFFSET('Efficiency Distributions'!$E$10,MATCH($C67,'Efficiency Distributions'!$C$9:$C$87,0)+RIGHT($E77),0))\n/SUM(AH$10:AH$11)","v":0},{"$f":"IF(INDEX(PC_MAPPING,RIGHT($C67,1),MATCH($E$2,'Data by Building Type'!$D$22:$F$22,0))=\"Yes\",1,0)*\n(AI$10*OFFSET('Efficiency Distributions'!$D$10,MATCH($C67,'Efficiency Distributions'!$C$9:$C$87,0)+RIGHT($E77),0)\n+AI$11*OFFSET('Efficiency Distributions'!$E$10,MATCH($C67,'Efficiency Distributions'!$C$9:$C$87,0)+RIGHT($E77),0))\n/SUM(AI$10:AI$11)","v":0},{"$f":"IF(INDEX(PC_MAPPING,RIGHT($C67,1),MATCH($E$2,'Data by Building Type'!$D$22:$F$22,0))=\"Yes\",1,0)*\n(AJ$10*OFFSET('Efficiency Distributions'!$D$10,MATCH($C67,'Efficiency Distributions'!$C$9:$C$87,0)+RIGHT($E77),0)\n+AJ$11*OFFSET('Efficiency Distributions'!$E$10,MATCH($C67,'Efficiency Distributions'!$C$9:$C$87,0)+RIGHT($E77),0))\n/SUM(AJ$10:AJ$11)","v":0},{"$f":"IF(INDEX(PC_MAPPING,RIGHT($C67,1),MATCH($E$2,'Data by Building Type'!$D$22:$F$22,0))=\"Yes\",1,0)*\n(AK$10*OFFSET('Efficiency Distributions'!$D$10,MATCH($C67,'Efficiency Distributions'!$C$9:$C$87,0)+RIGHT($E77),0)\n+AK$11*OFFSET('Efficiency Distributions'!$E$10,MATCH($C67,'Efficiency Distributions'!$C$9:$C$87,0)+RIGHT($E77),0))\n/SUM(AK$10:AK$11)","v":0},{"$f":"IF(INDEX(PC_MAPPING,RIGHT($C67,1),MATCH($E$2,'Data by Building Type'!$D$22:$F$22,0))=\"Yes\",1,0)*\n(AL$10*OFFSET('Efficiency Distributions'!$D$10,MATCH($C67,'Efficiency Distributions'!$C$9:$C$87,0)+RIGHT($E77),0)\n+AL$11*OFFSET('Efficiency Distributions'!$E$10,MATCH($C67,'Efficiency Distributions'!$C$9:$C$87,0)+RIGHT($E77),0))\n/SUM(AL$10:AL$11)","v":0},{"$f":"IF(INDEX(PC_MAPPING,RIGHT($C67,1),MATCH($E$2,'Data by Building Type'!$D$22:$F$22,0))=\"Yes\",1,0)*\n(AM$10*OFFSET('Efficiency Distributions'!$D$10,MATCH($C67,'Efficiency Distributions'!$C$9:$C$87,0)+RIGHT($E77),0)\n+AM$11*OFFSET('Efficiency Distributions'!$E$10,MATCH($C67,'Efficiency Distributions'!$C$9:$C$87,0)+RIGHT($E77),0))\n/SUM(AM$10:AM$11)","v":0},{"$f":"IF(INDEX(PC_MAPPING,RIGHT($C67,1),MATCH($E$2,'Data by Building Type'!$D$22:$F$22,0))=\"Yes\",1,0)*\n(AN$10*OFFSET('Efficiency Distributions'!$D$10,MATCH($C67,'Efficiency Distributions'!$C$9:$C$87,0)+RIGHT($E77),0)\n+AN$11*OFFSET('Efficiency Distributions'!$E$10,MATCH($C67,'Efficiency Distributions'!$C$9:$C$87,0)+RIGHT($E77),0))\n/SUM(AN$10:AN$11)","v":0},{"$f":"IF(INDEX(PC_MAPPING,RIGHT($C67,1),MATCH($E$2,'Data by Building Type'!$D$22:$F$22,0))=\"Yes\",1,0)*\n(AO$10*OFFSET('Efficiency Distributions'!$D$10,MATCH($C67,'Efficiency Distributions'!$C$9:$C$87,0)+RIGHT($E77),0)\n+AO$11*OFFSET('Efficiency Distributions'!$E$10,MATCH($C67,'Efficiency Distributions'!$C$9:$C$87,0)+RIGHT($E77),0))\n/SUM(AO$10:AO$11)","v":0},{"$f":"IF(INDEX(PC_MAPPING,RIGHT($C67,1),MATCH($E$2,'Data by Building Type'!$D$22:$F$22,0))=\"Yes\",1,0)*\n(AP$10*OFFSET('Efficiency Distributions'!$D$10,MATCH($C67,'Efficiency Distributions'!$C$9:$C$87,0)+RIGHT($E77),0)\n+AP$11*OFFSET('Efficiency Distributions'!$E$10,MATCH($C67,'Efficiency Distributions'!$C$9:$C$87,0)+RIGHT($E77),0))\n/SUM(AP$10:AP$11)","v":0},{"$f":"IF(INDEX(PC_MAPPING,RIGHT($C67,1),MATCH($E$2,'Data by Building Type'!$D$22:$F$22,0))=\"Yes\",1,0)*\n(AQ$10*OFFSET('Efficiency Distributions'!$D$10,MATCH($C67,'Efficiency Distributions'!$C$9:$C$87,0)+RIGHT($E77),0)\n+AQ$11*OFFSET('Efficiency Distributions'!$E$10,MATCH($C67,'Efficiency Distributions'!$C$9:$C$87,0)+RIGHT($E77),0))\n/SUM(AQ$10:AQ$11)","v":0},{"$f":"IF(INDEX(PC_MAPPING,RIGHT($C67,1),MATCH($E$2,'Data by Building Type'!$D$22:$F$22,0))=\"Yes\",1,0)*\n(AR$10*OFFSET('Efficiency Distributions'!$D$10,MATCH($C67,'Efficiency Distributions'!$C$9:$C$87,0)+RIGHT($E77),0)\n+AR$11*OFFSET('Efficiency Distributions'!$E$10,MATCH($C67,'Efficiency Distributions'!$C$9:$C$87,0)+RIGHT($E77),0))\n/SUM(AR$10:AR$11)","v":0},{"$f":"IF(INDEX(PC_MAPPING,RIGHT($C67,1),MATCH($E$2,'Data by Building Type'!$D$22:$F$22,0))=\"Yes\",1,0)*\n(AS$10*OFFSET('Efficiency Distributions'!$D$10,MATCH($C67,'Efficiency Distributions'!$C$9:$C$87,0)+RIGHT($E77),0)\n+AS$11*OFFSET('Efficiency Distributions'!$E$10,MATCH($C67,'Efficiency Distributions'!$C$9:$C$87,0)+RIGHT($E77),0))\n/SUM(AS$10:AS$11)","v":0},{"$f":"IF(INDEX(PC_MAPPING,RIGHT($C67,1),MATCH($E$2,'Data by Building Type'!$D$22:$F$22,0))=\"Yes\",1,0)*\n(AT$10*OFFSET('Efficiency Distributions'!$D$10,MATCH($C67,'Efficiency Distributions'!$C$9:$C$87,0)+RIGHT($E77),0)\n+AT$11*OFFSET('Efficiency Distributions'!$E$10,MATCH($C67,'Efficiency Distributions'!$C$9:$C$87,0)+RIGHT($E77),0))\n/SUM(AT$10:AT$11)","v":0},{"$f":"IF(INDEX(PC_MAPPING,RIGHT($C67,1),MATCH($E$2,'Data by Building Type'!$D$22:$F$22,0))=\"Yes\",1,0)*\n(AU$10*OFFSET('Efficiency Distributions'!$D$10,MATCH($C67,'Efficiency Distributions'!$C$9:$C$87,0)+RIGHT($E77),0)\n+AU$11*OFFSET('Efficiency Distributions'!$E$10,MATCH($C67,'Efficiency Distributions'!$C$9:$C$87,0)+RIGHT($E77),0))\n/SUM(AU$10:AU$11)","v":0},{"$f":"IF(INDEX(PC_MAPPING,RIGHT($C67,1),MATCH($E$2,'Data by Building Type'!$D$22:$F$22,0))=\"Yes\",1,0)*\n(AV$10*OFFSET('Efficiency Distributions'!$D$10,MATCH($C67,'Efficiency Distributions'!$C$9:$C$87,0)+RIGHT($E77),0)\n+AV$11*OFFSET('Efficiency Distributions'!$E$10,MATCH($C67,'Efficiency Distributions'!$C$9:$C$87,0)+RIGHT($E77),0))\n/SUM(AV$10:AV$11)","v":0},{"$f":"IF(INDEX(PC_MAPPING,RIGHT($C67,1),MATCH($E$2,'Data by Building Type'!$D$22:$F$22,0))=\"Yes\",1,0)*\n(AW$10*OFFSET('Efficiency Distributions'!$D$10,MATCH($C67,'Efficiency Distributions'!$C$9:$C$87,0)+RIGHT($E77),0)\n+AW$11*OFFSET('Efficiency Distributions'!$E$10,MATCH($C67,'Efficiency Distributions'!$C$9:$C$87,0)+RIGHT($E77),0))\n/SUM(AW$10:AW$11)","v":0},{"$f":"IF(INDEX(PC_MAPPING,RIGHT($C67,1),MATCH($E$2,'Data by Building Type'!$D$22:$F$22,0))=\"Yes\",1,0)*\n(AX$10*OFFSET('Efficiency Distributions'!$D$10,MATCH($C67,'Efficiency Distributions'!$C$9:$C$87,0)+RIGHT($E77),0)\n+AX$11*OFFSET('Efficiency Distributions'!$E$10,MATCH($C67,'Efficiency Distributions'!$C$9:$C$87,0)+RIGHT($E77),0))\n/SUM(AX$10:AX$11)","v":0},{"$f":"IF(INDEX(PC_MAPPING,RIGHT($C67,1),MATCH($E$2,'Data by Building Type'!$D$22:$F$22,0))=\"Yes\",1,0)*\n(AY$10*OFFSET('Efficiency Distributions'!$D$10,MATCH($C67,'Efficiency Distributions'!$C$9:$C$87,0)+RIGHT($E77),0)\n+AY$11*OFFSET('Efficiency Distributions'!$E$10,MATCH($C67,'Efficiency Distributions'!$C$9:$C$87,0)+RIGHT($E77),0))\n/SUM(AY$10:AY$11)","v":0},{"$f":"IF(INDEX(PC_MAPPING,RIGHT($C67,1),MATCH($E$2,'Data by Building Type'!$D$22:$F$22,0))=\"Yes\",1,0)*\n(AZ$10*OFFSET('Efficiency Distributions'!$D$10,MATCH($C67,'Efficiency Distributions'!$C$9:$C$87,0)+RIGHT($E77),0)\n+AZ$11*OFFSET('Efficiency Distributions'!$E$10,MATCH($C67,'Efficiency Distributions'!$C$9:$C$87,0)+RIGHT($E77),0))\n/SUM(AZ$10:AZ$11)","v":0},{"$f":"IF(INDEX(PC_MAPPING,RIGHT($C67,1),MATCH($E$2,'Data by Building Type'!$D$22:$F$22,0))=\"Yes\",1,0)*\n(BA$10*OFFSET('Efficiency Distributions'!$D$10,MATCH($C67,'Efficiency Distributions'!$C$9:$C$87,0)+RIGHT($E77),0)\n+BA$11*OFFSET('Efficiency Distributions'!$E$10,MATCH($C67,'Efficiency Distributions'!$C$9:$C$87,0)+RIGHT($E77),0))\n/SUM(BA$10:BA$11)","v":0},{"$f":"IF(INDEX(PC_MAPPING,RIGHT($C67,1),MATCH($E$2,'Data by Building Type'!$D$22:$F$22,0))=\"Yes\",1,0)*\n(BB$10*OFFSET('Efficiency Distributions'!$D$10,MATCH($C67,'Efficiency Distributions'!$C$9:$C$87,0)+RIGHT($E77),0)\n+BB$11*OFFSET('Efficiency Distributions'!$E$10,MATCH($C67,'Efficiency Distributions'!$C$9:$C$87,0)+RIGHT($E77),0))\n/SUM(BB$10:BB$11)","v":0},{"$f":"IF(INDEX(PC_MAPPING,RIGHT($C67,1),MATCH($E$2,'Data by Building Type'!$D$22:$F$22,0))=\"Yes\",1,0)*\n(BC$10*OFFSET('Efficiency Distributions'!$D$10,MATCH($C67,'Efficiency Distributions'!$C$9:$C$87,0)+RIGHT($E77),0)\n+BC$11*OFFSET('Efficiency Distributions'!$E$10,MATCH($C67,'Efficiency Distributions'!$C$9:$C$87,0)+RIGHT($E77),0))\n/SUM(BC$10:BC$11)","v":0},{"$f":"IF(INDEX(PC_MAPPING,RIGHT($C67,1),MATCH($E$2,'Data by Building Type'!$D$22:$F$22,0))=\"Yes\",1,0)*\n(BD$10*OFFSET('Efficiency Distributions'!$D$10,MATCH($C67,'Efficiency Distributions'!$C$9:$C$87,0)+RIGHT($E77),0)\n+BD$11*OFFSET('Efficiency Distributions'!$E$10,MATCH($C67,'Efficiency Distributions'!$C$9:$C$87,0)+RIGHT($E77),0))\n/SUM(BD$10:BD$11)","v":0},{"$f":"IF(INDEX(PC_MAPPING,RIGHT($C67,1),MATCH($E$2,'Data by Building Type'!$D$22:$F$22,0))=\"Yes\",1,0)*\n(BE$10*OFFSET('Efficiency Distributions'!$D$10,MATCH($C67,'Efficiency Distributions'!$C$9:$C$87,0)+RIGHT($E77),0)\n+BE$11*OFFSET('Efficiency Distributions'!$E$10,MATCH($C67,'Efficiency Distributions'!$C$9:$C$87,0)+RIGHT($E77),0))\n/SUM(BE$10:BE$11)","v":0},{"$f":"IF(INDEX(PC_MAPPING,RIGHT($C67,1),MATCH($E$2,'Data by Building Type'!$D$22:$F$22,0))=\"Yes\",1,0)*\n(BF$10*OFFSET('Efficiency Distributions'!$D$10,MATCH($C67,'Efficiency Distributions'!$C$9:$C$87,0)+RIGHT($E77),0)\n+BF$11*OFFSET('Efficiency Distributions'!$E$10,MATCH($C67,'Efficiency Distributions'!$C$9:$C$87,0)+RIGHT($E77),0))\n/SUM(BF$10:BF$11)","v":0},{"$f":"IF(INDEX(PC_MAPPING,RIGHT($C67,1),MATCH($E$2,'Data by Building Type'!$D$22:$F$22,0))=\"Yes\",1,0)*\n(BG$10*OFFSET('Efficiency Distributions'!$D$10,MATCH($C67,'Efficiency Distributions'!$C$9:$C$87,0)+RIGHT($E77),0)\n+BG$11*OFFSET('Efficiency Distributions'!$E$10,MATCH($C67,'Efficiency Distributions'!$C$9:$C$87,0)+RIGHT($E77),0))\n/SUM(BG$10:BG$11)","v":0}]
[null,null,null,null,"TOTAL",{"$f":"SUM(F71:F77)","v":1},1,{"$f":"SUM(H71:H77)","v":1},1,1,1,1,1,1,1,1,1,1,1,1,1,1,1,1,1,1,1,1,1,1,1,1,1,1,1,1,1,1,1,1,1,0.99999999999999978,1,0.99999999999999989,1,1,1,1,1,0.99999999999999989,0.99999999999999989,1,1,1,1,0.99999999999999978,1,1,1]
[]
[null,null,null,"POST-Case"]
[null,null,null,null,"Efficiency Level",1981,{"$f":"F81+1","v":1982},{"$f":"G81+1","v":1983},1984,1985,1986,1987,1988,1989,1990,{"$f":"O81+1","v":1991},{"$f":"P81+1","v":1992},1993,1994,1995,1996,1997,1998,1999,2000,2001,2002,2003,2004,2005,2006,2007,2008,2009,2010,2011,2012,2013,2014,2015,2016,2017,2018,2019,2020,2021,2022,2023,2024,2025,2026,2027,2028,2029,2030,2031,2032,2033,2034]
[null,null,null,null,"EL0",{"$f":"IF(F$29<STANDARD_YEAR,F71,\nIF(RIGHT($E82,1)>RIGHT(INDEX(STANDARD_LEVELS,1,MID($C67,4,1)),1),F71,\nIF(RIGHT($E82,1)<RIGHT(INDEX(STANDARD_LEVELS,1,MID($C67,4,1)),1),0,\nIF(RIGHT($E82,1)=RIGHT(INDEX(STANDARD_LEVELS,1,MID($C67,4,1)),1),SUM(OFFSET(F71,-(RIGHT($E82,1)),0,RIGHT($E82,1)+1,1)),\"ERROR\"))))","v":0.18439193743663332},0.1687377855781127,{"$f":"IF(H$29<STANDARD_YEAR,H71,\nIF(RIGHT($E82,1)>RIGHT(INDEX(STANDARD_LEVELS,1,MID($C67,4,1)),1),H71,\nIF(RIGHT($E82,1)<RIGHT(INDEX(STANDARD_LEVELS,1,MID($C67,4,1)),1),0,\nIF(RIGHT($E82,1)=RIGHT(INDEX(STANDARD_LEVELS,1,MID($C67,4,1)),1),SUM(OFFSET(H71,-(RIGHT($E82,1)),0,RIGHT($E82,1)+1,1)),\"ERROR\"))))","v":0.18746402459326036},0.18397148134996066,0.18180907880970495,0.18537860807323173,0.18565945629646394,0.1904420138120422,0.20135535526395754,0.20879226571052426,0.20121067831047917,0.21368049147954954,0.17942689386898758,0.18287688060344631,0.17016466668868901,0.17199603364874969,0.16928751097946559,0.17058627011894864,0.16641695290095726,0.15627320661140259,0.15610191041923169,0.15767334757789414,0.16662652019988219,0.16600109970749688,0.17370920743058202,0.16201067366014754,0.13616975618025517,0.1251370908465077,0.1251370908465077,0.1251370908465077,0.12973298976617334,0.19399112470285781,0.19206807171886603,0.20032985820797289,0.19966281919899903,0.20290003173733198,0.201475885130247,0.20099224078119979,0,0,0,0,0,0,0,0,0,0,0,0,0,0,0,0]
[null,null,null,null,"EL1",{"$f":"IF(F$29<STANDARD_YEAR,F72,\nIF(RIGHT($E83,1)>RIGHT(INDEX(STANDARD_LEVELS,1,MID($C67,4,1)),1),F72,\nIF(RIGHT($E83,1)<RIGHT(INDEX(STANDARD_LEVELS,1,MID($C67,4,1)),1),0,\nIF(RIGHT($E83,1)=RIGHT(INDEX(STANDARD_LEVELS,1,MID($C67,4,1)),1),SUM(OFFSET(F72,-(RIGHT($E83,1)),0,RIGHT($E83,1)+1,1)),\"ERROR\"))))","v":0.23384308812029883},0.22165433531448447,{"$f":"IF(H$29<STANDARD_YEAR,H72,\nIF(RIGHT($E83,1)>RIGHT(INDEX(STANDARD_LEVELS,1,MID($C67,4,1)),1),H72,\nIF(RIGHT($E83,1)<RIGHT(INDEX(STANDARD_LEVELS,1,MID($C67,4,1)),1),0,\nIF(RIGHT($E83,1)=RIGHT(INDEX(STANDARD_LEVELS,1,MID($C67,4,1)),1),SUM(OFFSET(H72,-(RIGHT($E83,1)),0,RIGHT($E83,1)+1,1)),\"ERROR\"))))","v":0.23623509959996664},0.2335157094572789,0.23183200341762558,0.23461133699120187,0.23483001313538832,0.23855384383946088,0.24705127138744007,0.25284185422395705,0.24693862193580685,0.25664796113387761,0.22997716876145524,0.2326634232369264,0.22276534415720464,0.2241912967974152,0.22208236661817471,0.22309361617346984,0.21984727121665493,0.21194907161020476,0.21181569568784131,0.21303925984193389,0.22001044607440925,0.21952347649277548,0.22552522098116404,0.21641642111726819,0.19629597267109974,0.18770563626976156,0.18770563626976156,0.18770563626976156,0.19128412946176562,0.24131727910695691,0.23981993720902453,0.24625279119947102,0.24573341629716408,0.24825399893659633,0.24714511925343738,0.24676854047294872,0,0,0,0,0,0,0,0,0,0,0,0,0,0,0,0]
[null,null,null,null,"EL2",{"$f":"IF(F$29<STANDARD_YEAR,F73,\nIF(RIGHT($E84,1)>RIGHT(INDEX(STANDARD_LEVELS,1,MID($C67,4,1)),1),F73,\nIF(RIGHT($E84,1)<RIGHT(INDEX(STANDARD_LEVELS,1,MID($C67,4,1)),1),0,\nIF(RIGHT($E84,1)=RIGHT(INDEX(STANDARD_LEVELS,1,MID($C67,4,1)),1),SUM(OFFSET(F73,-(RIGHT($E84,1)),0,RIGHT($E84,1)+1,1)),\"ERROR\"))))","v":0},0,{"$f":"IF(H$29<STANDARD_YEAR,H73,\nIF(RIGHT($E84,1)>RIGHT(INDEX(STANDARD_LEVELS,1,MID($C67,4,1)),1),H73,\nIF(RIGHT($E84,1)<RIGHT(INDEX(STANDARD_LEVELS,1,MID($C67,4,1)),1),0,\nIF(RIGHT($E84,1)=RIGHT(INDEX(STANDARD_LEVELS,1,MID($C67,4,1)),1),SUM(OFFSET(H73,-(RIGHT($E84,1)),0,RIGHT($E84,1)+1,1)),\"ERROR\"))))","v":0},0,0,0,0,0,0,0,0,0,0,0,0,0,0,0,0,0,0,0,0,0,0,0,0,0,0,0,0,0,0,0,0,0,0,0,0,0,0,0,0,0,0,0,0,0,0,0,0,0,0,0]
[null,null,null,null,"EL3",{"$f":"IF(F$29<STANDARD_YEAR,F74,\nIF(RIGHT($E85,1)>RIGHT(INDEX(STANDARD_LEVELS,1,MID($C67,4,1)),1),F74,\nIF(RIGHT($E85,1)<RIGHT(INDEX(STANDARD_LEVELS,1,MID($C67,4,1)),1),0,\nIF(RIGHT($E85,1)=RIGHT(INDEX(STANDARD_LEVELS,1,MID($C67,4,1)),1),SUM(OFFSET(F74,-(RIGHT($E85,1)),0,RIGHT($E85,1)+1,1)),\"ERROR\"))))","v":0.23674347540427684},0.24807386878503143,{"$f":"IF(H$29<STANDARD_YEAR,H74,\nIF(RIGHT($E85,1)>RIGHT(INDEX(STANDARD_LEVELS,1,MID($C67,4,1)),1),H74,\nIF(RIGHT($E85,1)<RIGHT(INDEX(STANDARD_LEVELS,1,MID($C67,4,1)),1),0,\nIF(RIGHT($E85,1)=RIGHT(INDEX(STANDARD_LEVELS,1,MID($C67,4,1)),1),SUM(OFFSET(H74,-(RIGHT($E85,1)),0,RIGHT($E85,1)+1,1)),\"ERROR\"))))","v":0.23451991476048492},0.23704779932449876,0.23861293499266362,0.2360293283491737,0.23582605187158062,0.23236446171279529,0.224465442151324,0.21908264520016377,0.22457015857485524,0.21554457291125523,0.24033714801474096,0.23784006562962753,0.24704109968731772,0.24571556584367424,0.24767598040979305,0.24673594532579818,0.24975367535907894,0.25709566596029226,0.25721964924980317,0.25608225123924977,0.24960199164232305,0.25005466772922669,0.24447557960531469,0.25294291726723461,0.27164643841695651,0.27963182398107655,0.27963182398107655,0.27963182398107655,0.27630533633941917,0.22979563378086401,0.23118752948991209,0.22520769156605597,0.22569049091796514,0.22334741338505756,0.22437820326342178,0.22472826251802788,0,0,0,0,0,0,0,0,0,0,0,0,0,0,0,0]
[null,null,null,null,"EL4",{"$f":"IF(F$29<STANDARD_YEAR,F75,\nIF(RIGHT($E86,1)>RIGHT(INDEX(STANDARD_LEVELS,1,MID($C67,4,1)),1),F75,\nIF(RIGHT($E86,1)<RIGHT(INDEX(STANDARD_LEVELS,1,MID($C67,4,1)),1),0,\nIF(RIGHT($E86,1)=RIGHT(INDEX(STANDARD_LEVELS,1,MID($C67,4,1)),1),SUM(OFFSET(F75,-(RIGHT($E86,1)),0,RIGHT($E86,1)+1,1)),\"ERROR\"))))","v":6.2397505145313274E-2},6.5383810377450141E-2,{"$f":"IF(H$29<STANDARD_YEAR,H75,\nIF(RIGHT($E86,1)>RIGHT(INDEX(STANDARD_LEVELS,1,MID($C67,4,1)),1),H75,\nIF(RIGHT($E86,1)<RIGHT(INDEX(STANDARD_LEVELS,1,MID($C67,4,1)),1),0,\nIF(RIGHT($E86,1)=RIGHT(INDEX(STANDARD_LEVELS,1,MID($C67,4,1)),1),SUM(OFFSET(H75,-(RIGHT($E86,1)),0,RIGHT($E86,1)+1,1)),\"ERROR\"))))","v":6.1811450401988273E-2},6.2477714550643076E-2,6.2890230928298943E-2,6.2209280340092293E-2,6.2155703594060016E-2,6.1243346497946043E-2,5.916143436546524E-2,5.774271268841525E-2,5.9189034042985096E-2,5.6810197511493625E-2,6.3344674670551882E-2,6.2686528925638252E-2,6.5111607669525604E-2,6.4762242160348246E-2,6.5278940573123764E-2,6.5031179388194874E-2,6.5826550094640959E-2,6.7761648392635168E-2,6.7794326158862842E-2,6.7494546838251887E-2,6.5786571440612271E-2,6.5905881417005499E-2,6.4435424082020937E-2,6.6667125481286643E-2,7.1596735706794742E-2,7.3701410971756615E-2,7.3701410971756615E-2,7.3701410971756615E-2,7.2824662291009715E-2,6.0566291074026175E-2,6.0933147307418681E-2,5.9357065994154287E-2,5.948431543574275E-2,5.886676011699192E-2,5.9138441170204191E-2,5.9230704849712774E-2,0.73040440226710346,0.73042187262788794,0.73111905612400219,0.73030032357749153,0.71900198636266055,0.71966822720037793,0.71630545585416927,0.71528511562905839,0.71681598772096977,0.71916984769966696,0.72420676015473684,0.72522810976531071,0.71951279545861335,0.71551707364072614,0.70757445780294947,0.70610496131562461]
[null,null,null,null,"EL5",{"$f":"IF(F$29<STANDARD_YEAR,F76,\nIF(RIGHT($E87,1)>RIGHT(INDEX(STANDARD_LEVELS,1,MID($C67,4,1)),1),F76,\nIF(RIGHT($E87,1)<RIGHT(INDEX(STANDARD_LEVELS,1,MID($C67,4,1)),1),0,\nIF(RIGHT($E87,1)=RIGHT(INDEX(STANDARD_LEVELS,1,MID($C67,4,1)),1),SUM(OFFSET(F76,-(RIGHT($E87,1)),0,RIGHT($E87,1)+1,1)),\"ERROR\"))))","v":0.28262399389347781},0.29615019994492126,{"$f":"IF(H$29<STANDARD_YEAR,H76,\nIF(RIGHT($E87,1)>RIGHT(INDEX(STANDARD_LEVELS,1,MID($C67,4,1)),1),H76,\nIF(RIGHT($E87,1)<RIGHT(INDEX(STANDARD_LEVELS,1,MID($C67,4,1)),1),0,\nIF(RIGHT($E87,1)=RIGHT(INDEX(STANDARD_LEVELS,1,MID($C67,4,1)),1),SUM(OFFSET(H76,-(RIGHT($E87,1)),0,RIGHT($E87,1)+1,1)),\"ERROR\"))))","v":0.27996951064429987},0.28298729531761863,0.28485575185170697,0.28177144624630041,0.28152877510250712,0.27739633413775566,0.26796649683181317,0.26154052217693968,0.26809150713587371,0.2573167769638241,0.28691411468426442,0.28393310160436158,0.29491728179726301,0.29333486154981264,0.29567520141944292,0.2945529889935885,0.29815555042866793,0.30692040742546522,0.30706841848426109,0.3057105945026703,0.29797447064277327,0.29851487465349541,0.29185456790091835,0.30196286247406307,0.32429109702489384,0.3338240379308976,0.3338240379308976,0.3338240379308976,0.32985288214163216,0.27432967133529501,0.27599131427477874,0.26885259303234588,0.26942895815012896,0.26663179582402224,0.26786235118268953,0.26828025137811079,0.26959559773289643,0.26957812737211212,0.26888094387599776,0.26969967642250847,0.28099801363733956,0.28033177279962213,0.28369454414583062,0.2847148843709415,0.28318401227903028,0.28083015230033304,0.27579323984526316,0.2747718902346894,0.28048720454138648,0.28448292635927391,0.29242554219705047,0.29389503868437539]
[null,null,null,null,"EL6",{"$f":"IF(F$29<STANDARD_YEAR,F77,\nIF(RIGHT($E88,1)>RIGHT(INDEX(STANDARD_LEVELS,1,MID($C67,4,1)),1),F77,\nIF(RIGHT($E88,1)<RIGHT(INDEX(STANDARD_LEVELS,1,MID($C67,4,1)),1),0,\nIF(RIGHT($E88,1)=RIGHT(INDEX(STANDARD_LEVELS,1,MID($C67,4,1)),1),SUM(OFFSET(F77,-(RIGHT($E88,1)),0,RIGHT($E88,1)+1,1)),\"ERROR\"))))","v":0},0,{"$f":"IF(H$29<STANDARD_YEAR,H77,\nIF(RIGHT($E88,1)>RIGHT(INDEX(STANDARD_LEVELS,1,MID($C67,4,1)),1),H77,\nIF(RIGHT($E88,1)<RIGHT(INDEX(STANDARD_LEVELS,1,MID($C67,4,1)),1),0,\nIF(RIGHT($E88,1)=RIGHT(INDEX(STANDARD_LEVELS,1,MID($C67,4,1)),1),SUM(OFFSET(H77,-(RIGHT($E88,1)),0,RIGHT($E88,1)+1,1)),\"ERROR\"))))","v":0},0,0,0,0,0,0,0,0,0,0,0,0,0,0,0,0,0,0,0,0,0,0,0,0,0,0,0,0,0,0,0,0,0,0,0,0,0,0,0,0,0,0,0,0,0,0,0,0,0,0,0]
[null,null,null,null,"TOTAL",{"$f":"SUM(F82:F88)","v":1},1,{"$f":"SUM(H82:H88)","v":1},1,1,1,1,1,1,1,1,1,1,1,1,1,1,1,1,1,1,1,1,1,1,1,1,1,1,1,1,1,1,1,1,1,0.99999999999999978,1,0.99999999999999989,1,1,1,1,1,0.99999999999999989,0.99999999999999989,1,1,1,1,0.99999999999999978,1,1,1]
[]
[]
[]
[null,null,"PC 4",{"$f":"OFFSET('Product Classes'!$C$9,MATCH(C93,MODEL_PCS,0),0)","v":"Non-Weatherized, Non-Condensing Oil Furnace Fan (NWO-NC)"}]
[]
[null,null,null,"PRE-Case"]
[null,null,null,null,"Efficiency Level",1981,{"$f":"F96+1","v":1982},{"$f":"G96+1","v":1983},1984,1985,1986,1987,1988,1989,1990,{"$f":"O96+1","v":1991},{"$f":"P96+1","v":1992},1993,1994,1995,1996,1997,1998,1999,2000,2001,2002,2003,2004,2005,2006,2007,2008,2009,2010,2011,2012,2013,2014,2015,2016,2017,2018,2019,2020,2021,2022,2023,2024,2025,2026,2027,2028,2029,2030,2031,2032,2033,2034]
[null,null,null,null,"EL0",{"$f":"IF(INDEX(PC_MAPPING,RIGHT($C93,1),MATCH($E$2,'Data by Building Type'!$D$22:$F$22,0))=\"Yes\",1,0)*\n(F$10*OFFSET('Efficiency Distributions'!$D$10,MATCH($C93,'Efficiency Distributions'!$C$9:$C$87,0)+RIGHT($E97),0)\n+F$11*OFFSET('Efficiency Distributions'!$E$10,MATCH($C93,'Efficiency Distributions'!$C$9:$C$87,0)+RIGHT($E97),0))\n/SUM(F$10:F$11)","v":0.31649894313768206},{"$f":"IF(INDEX(PC_MAPPING,RIGHT($C93,1),MATCH($E$2,'Data by Building Type'!$D$22:$F$22,0))=\"Yes\",1,0)*\n(G$10*OFFSET('Efficiency Distributions'!$D$10,MATCH($C93,'Efficiency Distributions'!$C$9:$C$87,0)+RIGHT($E97),0)\n+G$11*OFFSET('Efficiency Distributions'!$E$10,MATCH($C93,'Efficiency Distributions'!$C$9:$C$87,0)+RIGHT($E97),0))\n/SUM(G$10:G$11)","v":0.30649353629292347},{"$f":"IF(INDEX(PC_MAPPING,RIGHT($C93,1),MATCH($E$2,'Data by Building Type'!$D$22:$F$22,0))=\"Yes\",1,0)*\n(H$10*OFFSET('Efficiency Distributions'!$D$10,MATCH($C93,'Efficiency Distributions'!$C$9:$C$87,0)+RIGHT($E97),0)\n+H$11*OFFSET('Efficiency Distributions'!$E$10,MATCH($C93,'Efficiency Distributions'!$C$9:$C$87,0)+RIGHT($E97),0))\n/SUM(H$10:H$11)","v":0.31846247857175802},{"$f":"IF(INDEX(PC_MAPPING,RIGHT($C93,1),MATCH($E$2,'Data by Building Type'!$D$22:$F$22,0))=\"Yes\",1,0)*\n(I$10*OFFSET('Efficiency Distributions'!$D$10,MATCH($C93,'Efficiency Distributions'!$C$9:$C$87,0)+RIGHT($E97),0)\n+I$11*OFFSET('Efficiency Distributions'!$E$10,MATCH($C93,'Efficiency Distributions'!$C$9:$C$87,0)+RIGHT($E97),0))\n/SUM(I$10:I$11)","v":0.31623020713425398},{"$f":"IF(INDEX(PC_MAPPING,RIGHT($C93,1),MATCH($E$2,'Data by Building Type'!$D$22:$F$22,0))=\"Yes\",1,0)*\n(J$10*OFFSET('Efficiency Distributions'!$D$10,MATCH($C93,'Efficiency Distributions'!$C$9:$C$87,0)+RIGHT($E97),0)\n+J$11*OFFSET('Efficiency Distributions'!$E$10,MATCH($C93,'Efficiency Distributions'!$C$9:$C$87,0)+RIGHT($E97),0))\n/SUM(J$10:J$11)","v":0.3148480998586291},{"$f":"IF(INDEX(PC_MAPPING,RIGHT($C93,1),MATCH($E$2,'Data by Building Type'!$D$22:$F$22,0))=\"Yes\",1,0)*\n(K$10*OFFSET('Efficiency Distributions'!$D$10,MATCH($C93,'Efficiency Distributions'!$C$9:$C$87,0)+RIGHT($E97),0)\n+K$11*OFFSET('Efficiency Distributions'!$E$10,MATCH($C93,'Efficiency Distributions'!$C$9:$C$87,0)+RIGHT($E97),0))\n/SUM(K$10:K$11)","v":0.31712957718481316},{"$f":"IF(INDEX(PC_MAPPING,RIGHT($C93,1),MATCH($E$2,'Data by Building Type'!$D$22:$F$22,0))=\"Yes\",1,0)*\n(L$10*OFFSET('Efficiency Distributions'!$D$10,MATCH($C93,'Efficiency Distributions'!$C$9:$C$87,0)+RIGHT($E97),0)\n+L$11*OFFSET('Efficiency Distributions'!$E$10,MATCH($C93,'Efficiency Distributions'!$C$9:$C$87,0)+RIGHT($E97),0))\n/SUM(L$10:L$11)","v":0.31730908232571525},{"$f":"IF(INDEX(PC_MAPPING,RIGHT($C93,1),MATCH($E$2,'Data by Building Type'!$D$22:$F$22,0))=\"Yes\",1,0)*\n(M$10*OFFSET('Efficiency Distributions'!$D$10,MATCH($C93,'Efficiency Distributions'!$C$9:$C$87,0)+RIGHT($E97),0)\n+M$11*OFFSET('Efficiency Distributions'!$E$10,MATCH($C93,'Efficiency Distributions'!$C$9:$C$87,0)+RIGHT($E97),0))\n/SUM(M$10:M$11)","v":0.32036587097413843},{"$f":"IF(INDEX(PC_MAPPING,RIGHT($C93,1),MATCH($E$2,'Data by Building Type'!$D$22:$F$22,0))=\"Yes\",1,0)*\n(N$10*OFFSET('Efficiency Distributions'!$D$10,MATCH($C93,'Efficiency Distributions'!$C$9:$C$87,0)+RIGHT($E97),0)\n+N$11*OFFSET('Efficiency Distributions'!$E$10,MATCH($C93,'Efficiency Distributions'!$C$9:$C$87,0)+RIGHT($E97),0))\n/SUM(N$10:N$11)","v":0.32734117198367524},{"$f":"IF(INDEX(PC_MAPPING,RIGHT($C93,1),MATCH($E$2,'Data by Building Type'!$D$22:$F$22,0))=\"Yes\",1,0)*\n(O$10*OFFSET('Efficiency Distributions'!$D$10,MATCH($C93,'Efficiency Distributions'!$C$9:$C$87,0)+RIGHT($E97),0)\n+O$11*OFFSET('Efficiency Distributions'!$E$10,MATCH($C93,'Efficiency Distributions'!$C$9:$C$87,0)+RIGHT($E97),0))\n/SUM(O$10:O$11)","v":0.33209449974990829},{"$f":"IF(INDEX(PC_MAPPING,RIGHT($C93,1),MATCH($E$2,'Data by Building Type'!$D$22:$F$22,0))=\"Yes\",1,0)*\n(P$10*OFFSET('Efficiency Distributions'!$D$10,MATCH($C93,'Efficiency Distributions'!$C$9:$C$87,0)+RIGHT($E97),0)\n+P$11*OFFSET('Efficiency Distributions'!$E$10,MATCH($C93,'Efficiency Distributions'!$C$9:$C$87,0)+RIGHT($E97),0))\n/SUM(P$10:P$11)","v":0.32724870119421989},{"$f":"IF(INDEX(PC_MAPPING,RIGHT($C93,1),MATCH($E$2,'Data by Building Type'!$D$22:$F$22,0))=\"Yes\",1,0)*\n(Q$10*OFFSET('Efficiency Distributions'!$D$10,MATCH($C93,'Efficiency Distributions'!$C$9:$C$87,0)+RIGHT($E97),0)\n+Q$11*OFFSET('Efficiency Distributions'!$E$10,MATCH($C93,'Efficiency Distributions'!$C$9:$C$87,0)+RIGHT($E97),0))\n/SUM(Q$10:Q$11)","v":0.33521882663840141},{"$f":"IF(INDEX(PC_MAPPING,RIGHT($C93,1),MATCH($E$2,'Data by Building Type'!$D$22:$F$22,0))=\"Yes\",1,0)*\n(R$10*OFFSET('Efficiency Distributions'!$D$10,MATCH($C93,'Efficiency Distributions'!$C$9:$C$87,0)+RIGHT($E97),0)\n+R$11*OFFSET('Efficiency Distributions'!$E$10,MATCH($C93,'Efficiency Distributions'!$C$9:$C$87,0)+RIGHT($E97),0))\n/SUM(R$10:R$11)","v":0.31332551787994711},{"$f":"IF(INDEX(PC_MAPPING,RIGHT($C93,1),MATCH($E$2,'Data by Building Type'!$D$22:$F$22,0))=\"Yes\",1,0)*\n(S$10*OFFSET('Efficiency Distributions'!$D$10,MATCH($C93,'Efficiency Distributions'!$C$9:$C$87,0)+RIGHT($E97),0)\n+S$11*OFFSET('Efficiency Distributions'!$E$10,MATCH($C93,'Efficiency Distributions'!$C$9:$C$87,0)+RIGHT($E97),0))\n/SUM(S$10:S$11)","v":0.31553058917344495},{"$f":"IF(INDEX(PC_MAPPING,RIGHT($C93,1),MATCH($E$2,'Data by Building Type'!$D$22:$F$22,0))=\"Yes\",1,0)*\n(T$10*OFFSET('Efficiency Distributions'!$D$10,MATCH($C93,'Efficiency Distributions'!$C$9:$C$87,0)+RIGHT($E97),0)\n+T$11*OFFSET('Efficiency Distributions'!$E$10,MATCH($C93,'Efficiency Distributions'!$C$9:$C$87,0)+RIGHT($E97),0))\n/SUM(T$10:T$11)","v":0.30740553243039836},{"$f":"IF(INDEX(PC_MAPPING,RIGHT($C93,1),MATCH($E$2,'Data by Building Type'!$D$22:$F$22,0))=\"Yes\",1,0)*\n(U$10*OFFSET('Efficiency Distributions'!$D$10,MATCH($C93,'Efficiency Distributions'!$C$9:$C$87,0)+RIGHT($E97),0)\n+U$11*OFFSET('Efficiency Distributions'!$E$10,MATCH($C93,'Efficiency Distributions'!$C$9:$C$87,0)+RIGHT($E97),0))\n/SUM(U$10:U$11)","v":0.30857605713739372},{"$f":"IF(INDEX(PC_MAPPING,RIGHT($C93,1),MATCH($E$2,'Data by Building Type'!$D$22:$F$22,0))=\"Yes\",1,0)*\n(V$10*OFFSET('Efficiency Distributions'!$D$10,MATCH($C93,'Efficiency Distributions'!$C$9:$C$87,0)+RIGHT($E97),0)\n+V$11*OFFSET('Efficiency Distributions'!$E$10,MATCH($C93,'Efficiency Distributions'!$C$9:$C$87,0)+RIGHT($E97),0))\n/SUM(V$10:V$11)","v":0.30684489523866154},{"$f":"IF(INDEX(PC_MAPPING,RIGHT($C93,1),MATCH($E$2,'Data by Building Type'!$D$22:$F$22,0))=\"Yes\",1,0)*\n(W$10*OFFSET('Efficiency Distributions'!$D$10,MATCH($C93,'Efficiency Distributions'!$C$9:$C$87,0)+RIGHT($E97),0)\n+W$11*OFFSET('Efficiency Distributions'!$E$10,MATCH($C93,'Efficiency Distributions'!$C$9:$C$87,0)+RIGHT($E97),0))\n/SUM(W$10:W$11)","v":0.30767500176256135},{"$f":"IF(INDEX(PC_MAPPING,RIGHT($C93,1),MATCH($E$2,'Data by Building Type'!$D$22:$F$22,0))=\"Yes\",1,0)*\n(X$10*OFFSET('Efficiency Distributions'!$D$10,MATCH($C93,'Efficiency Distributions'!$C$9:$C$87,0)+RIGHT($E97),0)\n+X$11*OFFSET('Efficiency Distributions'!$E$10,MATCH($C93,'Efficiency Distributions'!$C$9:$C$87,0)+RIGHT($E97),0))\n/SUM(X$10:X$11)","v":0.30501016783173712},{"$f":"IF(INDEX(PC_MAPPING,RIGHT($C93,1),MATCH($E$2,'Data by Building Type'!$D$22:$F$22,0))=\"Yes\",1,0)*\n(Y$10*OFFSET('Efficiency Distributions'!$D$10,MATCH($C93,'Efficiency Distributions'!$C$9:$C$87,0)+RIGHT($E97),0)\n+Y$11*OFFSET('Efficiency Distributions'!$E$10,MATCH($C93,'Efficiency Distributions'!$C$9:$C$87,0)+RIGHT($E97),0))\n/SUM(Y$10:Y$11)","v":0.29852675630779935},{"$f":"IF(INDEX(PC_MAPPING,RIGHT($C93,1),MATCH($E$2,'Data by Building Type'!$D$22:$F$22,0))=\"Yes\",1,0)*\n(Z$10*OFFSET('Efficiency Distributions'!$D$10,MATCH($C93,'Efficiency Distributions'!$C$9:$C$87,0)+RIGHT($E97),0)\n+Z$11*OFFSET('Efficiency Distributions'!$E$10,MATCH($C93,'Efficiency Distributions'!$C$9:$C$87,0)+RIGHT($E97),0))\n/SUM(Z$10:Z$11)","v":0.29841727173724469},{"$f":"IF(INDEX(PC_MAPPING,RIGHT($C93,1),MATCH($E$2,'Data by Building Type'!$D$22:$F$22,0))=\"Yes\",1,0)*\n(AA$10*OFFSET('Efficiency Distributions'!$D$10,MATCH($C93,'Efficiency Distributions'!$C$9:$C$87,0)+RIGHT($E97),0)\n+AA$11*OFFSET('Efficiency Distributions'!$E$10,MATCH($C93,'Efficiency Distributions'!$C$9:$C$87,0)+RIGHT($E97),0))\n/SUM(AA$10:AA$11)","v":0.29942166138706344},{"$f":"IF(INDEX(PC_MAPPING,RIGHT($C93,1),MATCH($E$2,'Data by Building Type'!$D$22:$F$22,0))=\"Yes\",1,0)*\n(AB$10*OFFSET('Efficiency Distributions'!$D$10,MATCH($C93,'Efficiency Distributions'!$C$9:$C$87,0)+RIGHT($E97),0)\n+AB$11*OFFSET('Efficiency Distributions'!$E$10,MATCH($C93,'Efficiency Distributions'!$C$9:$C$87,0)+RIGHT($E97),0))\n/SUM(AB$10:AB$11)","v":0.30514411351631027},{"$f":"IF(INDEX(PC_MAPPING,RIGHT($C93,1),MATCH($E$2,'Data by Building Type'!$D$22:$F$22,0))=\"Yes\",1,0)*\n(AC$10*OFFSET('Efficiency Distributions'!$D$10,MATCH($C93,'Efficiency Distributions'!$C$9:$C$87,0)+RIGHT($E97),0)\n+AC$11*OFFSET('Efficiency Distributions'!$E$10,MATCH($C93,'Efficiency Distributions'!$C$9:$C$87,0)+RIGHT($E97),0))\n/SUM(AC$10:AC$11)","v":0.30474437378387892},{"$f":"IF(INDEX(PC_MAPPING,RIGHT($C93,1),MATCH($E$2,'Data by Building Type'!$D$22:$F$22,0))=\"Yes\",1,0)*\n(AD$10*OFFSET('Efficiency Distributions'!$D$10,MATCH($C93,'Efficiency Distributions'!$C$9:$C$87,0)+RIGHT($E97),0)\n+AD$11*OFFSET('Efficiency Distributions'!$E$10,MATCH($C93,'Efficiency Distributions'!$C$9:$C$87,0)+RIGHT($E97),0))\n/SUM(AD$10:AD$11)","v":0.30967103825409198},{"$f":"IF(INDEX(PC_MAPPING,RIGHT($C93,1),MATCH($E$2,'Data by Building Type'!$D$22:$F$22,0))=\"Yes\",1,0)*\n(AE$10*OFFSET('Efficiency Distributions'!$D$10,MATCH($C93,'Efficiency Distributions'!$C$9:$C$87,0)+RIGHT($E97),0)\n+AE$11*OFFSET('Efficiency Distributions'!$E$10,MATCH($C93,'Efficiency Distributions'!$C$9:$C$87,0)+RIGHT($E97),0))\n/SUM(AE$10:AE$11)","v":0.30219387878111575},{"$f":"IF(INDEX(PC_MAPPING,RIGHT($C93,1),MATCH($E$2,'Data by Building Type'!$D$22:$F$22,0))=\"Yes\",1,0)*\n(AF$10*OFFSET('Efficiency Distributions'!$D$10,MATCH($C93,'Efficiency Distributions'!$C$9:$C$87,0)+RIGHT($E97),0)\n+AF$11*OFFSET('Efficiency Distributions'!$E$10,MATCH($C93,'Efficiency Distributions'!$C$9:$C$87,0)+RIGHT($E97),0))\n/SUM(AF$10:AF$11)","v":0.28567756445346171},{"$f":"IF(INDEX(PC_MAPPING,RIGHT($C93,1),MATCH($E$2,'Data by Building Type'!$D$22:$F$22,0))=\"Yes\",1,0)*\n(AG$10*OFFSET('Efficiency Distributions'!$D$10,MATCH($C93,'Efficiency Distributions'!$C$9:$C$87,0)+RIGHT($E97),0)\n+AG$11*OFFSET('Efficiency Distributions'!$E$10,MATCH($C93,'Efficiency Distributions'!$C$9:$C$87,0)+RIGHT($E97),0))\n/SUM(AG$10:AG$11)","v":0.27862599716039727},{"$f":"IF(INDEX(PC_MAPPING,RIGHT($C93,1),MATCH($E$2,'Data by Building Type'!$D$22:$F$22,0))=\"Yes\",1,0)*\n(AH$10*OFFSET('Efficiency Distributions'!$D$10,MATCH($C93,'Efficiency Distributions'!$C$9:$C$87,0)+RIGHT($E97),0)\n+AH$11*OFFSET('Efficiency Distributions'!$E$10,MATCH($C93,'Efficiency Distributions'!$C$9:$C$87,0)+RIGHT($E97),0))\n/SUM(AH$10:AH$11)","v":0.27862599716039727},{"$f":"IF(INDEX(PC_MAPPING,RIGHT($C93,1),MATCH($E$2,'Data by Building Type'!$D$22:$F$22,0))=\"Yes\",1,0)*\n(AI$10*OFFSET('Efficiency Distributions'!$D$10,MATCH($C93,'Efficiency Distributions'!$C$9:$C$87,0)+RIGHT($E97),0)\n+AI$11*OFFSET('Efficiency Distributions'!$E$10,MATCH($C93,'Efficiency Distributions'!$C$9:$C$87,0)+RIGHT($E97),0))\n/SUM(AI$10:AI$11)","v":0.27862599716039727},{"$f":"IF(INDEX(PC_MAPPING,RIGHT($C93,1),MATCH($E$2,'Data by Building Type'!$D$22:$F$22,0))=\"Yes\",1,0)*\n(AJ$10*OFFSET('Efficiency Distributions'!$D$10,MATCH($C93,'Efficiency Distributions'!$C$9:$C$87,0)+RIGHT($E97),0)\n+AJ$11*OFFSET('Efficiency Distributions'!$E$10,MATCH($C93,'Efficiency Distributions'!$C$9:$C$87,0)+RIGHT($E97),0))\n/SUM(AJ$10:AJ$11)","v":0.28156348230326761},{"$f":"IF(INDEX(PC_MAPPING,RIGHT($C93,1),MATCH($E$2,'Data by Building Type'!$D$22:$F$22,0))=\"Yes\",1,0)*\n(AK$10*OFFSET('Efficiency Distributions'!$D$10,MATCH($C93,'Efficiency Distributions'!$C$9:$C$87,0)+RIGHT($E97),0)\n+AK$11*OFFSET('Efficiency Distributions'!$E$10,MATCH($C93,'Efficiency Distributions'!$C$9:$C$87,0)+RIGHT($E97),0))\n/SUM(AK$10:AK$11)","v":0.32263429782477254},{"$f":"IF(INDEX(PC_MAPPING,RIGHT($C93,1),MATCH($E$2,'Data by Building Type'!$D$22:$F$22,0))=\"Yes\",1,0)*\n(AL$10*OFFSET('Efficiency Distributions'!$D$10,MATCH($C93,'Efficiency Distributions'!$C$9:$C$87,0)+RIGHT($E97),0)\n+AL$11*OFFSET('Efficiency Distributions'!$E$10,MATCH($C93,'Efficiency Distributions'!$C$9:$C$87,0)+RIGHT($E97),0))\n/SUM(AL$10:AL$11)","v":0.32140517166943949},{"$f":"IF(INDEX(PC_MAPPING,RIGHT($C93,1),MATCH($E$2,'Data by Building Type'!$D$22:$F$22,0))=\"Yes\",1,0)*\n(AM$10*OFFSET('Efficiency Distributions'!$D$10,MATCH($C93,'Efficiency Distributions'!$C$9:$C$87,0)+RIGHT($E97),0)\n+AM$11*OFFSET('Efficiency Distributions'!$E$10,MATCH($C93,'Efficiency Distributions'!$C$9:$C$87,0)+RIGHT($E97),0))\n/SUM(AM$10:AM$11)","v":0.32668572189248141},{"$f":"IF(INDEX(PC_MAPPING,RIGHT($C93,1),MATCH($E$2,'Data by Building Type'!$D$22:$F$22,0))=\"Yes\",1,0)*\n(AN$10*OFFSET('Efficiency Distributions'!$D$10,MATCH($C93,'Efficiency Distributions'!$C$9:$C$87,0)+RIGHT($E97),0)\n+AN$11*OFFSET('Efficiency Distributions'!$E$10,MATCH($C93,'Efficiency Distributions'!$C$9:$C$87,0)+RIGHT($E97),0))\n/SUM(AN$10:AN$11)","v":0.32625938153712863},{"$f":"IF(INDEX(PC_MAPPING,RIGHT($C93,1),MATCH($E$2,'Data by Building Type'!$D$22:$F$22,0))=\"Yes\",1,0)*\n(AO$10*OFFSET('Efficiency Distributions'!$D$10,MATCH($C93,'Efficiency Distributions'!$C$9:$C$87,0)+RIGHT($E97),0)\n+AO$11*OFFSET('Efficiency Distributions'!$E$10,MATCH($C93,'Efficiency Distributions'!$C$9:$C$87,0)+RIGHT($E97),0))\n/SUM(AO$10:AO$11)","v":0.32832845744629996},{"$f":"IF(INDEX(PC_MAPPING,RIGHT($C93,1),MATCH($E$2,'Data by Building Type'!$D$22:$F$22,0))=\"Yes\",1,0)*\n(AP$10*OFFSET('Efficiency Distributions'!$D$10,MATCH($C93,'Efficiency Distributions'!$C$9:$C$87,0)+RIGHT($E97),0)\n+AP$11*OFFSET('Efficiency Distributions'!$E$10,MATCH($C93,'Efficiency Distributions'!$C$9:$C$87,0)+RIGHT($E97),0))\n/SUM(AP$10:AP$11)","v":0.32741820907645858},{"$f":"IF(INDEX(PC_MAPPING,RIGHT($C93,1),MATCH($E$2,'Data by Building Type'!$D$22:$F$22,0))=\"Yes\",1,0)*\n(AQ$10*OFFSET('Efficiency Distributions'!$D$10,MATCH($C93,'Efficiency Distributions'!$C$9:$C$87,0)+RIGHT($E97),0)\n+AQ$11*OFFSET('Efficiency Distributions'!$E$10,MATCH($C93,'Efficiency Distributions'!$C$9:$C$87,0)+RIGHT($E97),0))\n/SUM(AQ$10:AQ$11)","v":0.32710908607036276},{"$f":"IF(INDEX(PC_MAPPING,RIGHT($C93,1),MATCH($E$2,'Data by Building Type'!$D$22:$F$22,0))=\"Yes\",1,0)*\n(AR$10*OFFSET('Efficiency Distributions'!$D$10,MATCH($C93,'Efficiency Distributions'!$C$9:$C$87,0)+RIGHT($E97),0)\n+AR$11*OFFSET('Efficiency Distributions'!$E$10,MATCH($C93,'Efficiency Distributions'!$C$9:$C$87,0)+RIGHT($E97),0))\n/SUM(AR$10:AR$11)","v":0.32613611734791781},{"$f":"IF(INDEX(PC_MAPPING,RIGHT($C93,1),MATCH($E$2,'Data by Building Type'!$D$22:$F$22,0))=\"Yes\",1,0)*\n(AS$10*OFFSET('Efficiency Distributions'!$D$10,MATCH($C93,'Efficiency Distributions'!$C$9:$C$87,0)+RIGHT($E97),0)\n+AS$11*OFFSET('Efficiency Distributions'!$E$10,MATCH($C93,'Efficiency Distributions'!$C$9:$C$87,0)+RIGHT($E97),0))\n/SUM(AS$10:AS$11)","v":0.32614904026707991},{"$f":"IF(INDEX(PC_MAPPING,RIGHT($C93,1),MATCH($E$2,'Data by Building Type'!$D$22:$F$22,0))=\"Yes\",1,0)*\n(AT$10*OFFSET('Efficiency Distributions'!$D$10,MATCH($C93,'Efficiency Distributions'!$C$9:$C$87,0)+RIGHT($E97),0)\n+AT$11*OFFSET('Efficiency Distributions'!$E$10,MATCH($C93,'Efficiency Distributions'!$C$9:$C$87,0)+RIGHT($E97),0))\n/SUM(AT$10:AT$11)","v":0.32666475062204159},{"$f":"IF(INDEX(PC_MAPPING,RIGHT($C93,1),MATCH($E$2,'Data by Building Type'!$D$22:$F$22,0))=\"Yes\",1,0)*\n(AU$10*OFFSET('Efficiency Distributions'!$D$10,MATCH($C93,'Efficiency Distributions'!$C$9:$C$87,0)+RIGHT($E97),0)\n+AU$11*OFFSET('Efficiency Distributions'!$E$10,MATCH($C93,'Efficiency Distributions'!$C$9:$C$87,0)+RIGHT($E97),0))\n/SUM(AU$10:AU$11)","v":0.32605912978544271},{"$f":"IF(INDEX(PC_MAPPING,RIGHT($C93,1),MATCH($E$2,'Data by Building Type'!$D$22:$F$22,0))=\"Yes\",1,0)*\n(AV$10*OFFSET('Efficiency Distributions'!$D$10,MATCH($C93,'Efficiency Distributions'!$C$9:$C$87,0)+RIGHT($E97),0)\n+AV$11*OFFSET('Efficiency Distributions'!$E$10,MATCH($C93,'Efficiency Distributions'!$C$9:$C$87,0)+RIGHT($E97),0))\n/SUM(AV$10:AV$11)","v":0.31770168941570964},{"$f":"IF(INDEX(PC_MAPPING,RIGHT($C93,1),MATCH($E$2,'Data by Building Type'!$D$22:$F$22,0))=\"Yes\",1,0)*\n(AW$10*OFFSET('Efficiency Distributions'!$D$10,MATCH($C93,'Efficiency Distributions'!$C$9:$C$87,0)+RIGHT($E97),0)\n+AW$11*OFFSET('Efficiency Distributions'!$E$10,MATCH($C93,'Efficiency Distributions'!$C$9:$C$87,0)+RIGHT($E97),0))\n/SUM(AW$10:AW$11)","v":0.31819451132102461},{"$f":"IF(INDEX(PC_MAPPING,RIGHT($C93,1),MATCH($E$2,'Data by Building Type'!$D$22:$F$22,0))=\"Yes\",1,0)*\n(AX$10*OFFSET('Efficiency Distributions'!$D$10,MATCH($C93,'Efficiency Distributions'!$C$9:$C$87,0)+RIGHT($E97),0)\n+AX$11*OFFSET('Efficiency Distributions'!$E$10,MATCH($C93,'Efficiency Distributions'!$C$9:$C$87,0)+RIGHT($E97),0))\n/SUM(AX$10:AX$11)","v":0.3157070513993917},{"$f":"IF(INDEX(PC_MAPPING,RIGHT($C93,1),MATCH($E$2,'Data by Building Type'!$D$22:$F$22,0))=\"Yes\",1,0)*\n(AY$10*OFFSET('Efficiency Distributions'!$D$10,MATCH($C93,'Efficiency Distributions'!$C$9:$C$87,0)+RIGHT($E97),0)\n+AY$11*OFFSET('Efficiency Distributions'!$E$10,MATCH($C93,'Efficiency Distributions'!$C$9:$C$87,0)+RIGHT($E97),0))\n/SUM(AY$10:AY$11)","v":0.31495230028636867},{"$f":"IF(INDEX(PC_MAPPING,RIGHT($C93,1),MATCH($E$2,'Data by Building Type'!$D$22:$F$22,0))=\"Yes\",1,0)*\n(AZ$10*OFFSET('Efficiency Distributions'!$D$10,MATCH($C93,'Efficiency Distributions'!$C$9:$C$87,0)+RIGHT($E97),0)\n+AZ$11*OFFSET('Efficiency Distributions'!$E$10,MATCH($C93,'Efficiency Distributions'!$C$9:$C$87,0)+RIGHT($E97),0))\n/SUM(AZ$10:AZ$11)","v":0.31608469454745003},{"$f":"IF(INDEX(PC_MAPPING,RIGHT($C93,1),MATCH($E$2,'Data by Building Type'!$D$22:$F$22,0))=\"Yes\",1,0)*\n(BA$10*OFFSET('Efficiency Distributions'!$D$10,MATCH($C93,'Efficiency Distributions'!$C$9:$C$87,0)+RIGHT($E97),0)\n+BA$11*OFFSET('Efficiency Distributions'!$E$10,MATCH($C93,'Efficiency Distributions'!$C$9:$C$87,0)+RIGHT($E97),0))\n/SUM(BA$10:BA$11)","v":0.31782585734305507},{"$f":"IF(INDEX(PC_MAPPING,RIGHT($C93,1),MATCH($E$2,'Data by Building Type'!$D$22:$F$22,0))=\"Yes\",1,0)*\n(BB$10*OFFSET('Efficiency Distributions'!$D$10,MATCH($C93,'Efficiency Distributions'!$C$9:$C$87,0)+RIGHT($E97),0)\n+BB$11*OFFSET('Efficiency Distributions'!$E$10,MATCH($C93,'Efficiency Distributions'!$C$9:$C$87,0)+RIGHT($E97),0))\n/SUM(BB$10:BB$11)","v":0.32155168838264858},{"$f":"IF(INDEX(PC_MAPPING,RIGHT($C93,1),MATCH($E$2,'Data by Building Type'!$D$22:$F$22,0))=\"Yes\",1,0)*\n(BC$10*OFFSET('Efficiency Distributions'!$D$10,MATCH($C93,'Efficiency Distributions'!$C$9:$C$87,0)+RIGHT($E97),0)\n+BC$11*OFFSET('Efficiency Distributions'!$E$10,MATCH($C93,'Efficiency Distributions'!$C$9:$C$87,0)+RIGHT($E97),0))\n/SUM(BC$10:BC$11)","v":0.32230718614348863},{"$f":"IF(INDEX(PC_MAPPING,RIGHT($C93,1),MATCH($E$2,'Data by Building Type'!$D$22:$F$22,0))=\"Yes\",1,0)*\n(BD$10*OFFSET('Efficiency Distributions'!$D$10,MATCH($C93,'Efficiency Distributions'!$C$9:$C$87,0)+RIGHT($E97),0)\n+BD$11*OFFSET('Efficiency Distributions'!$E$10,MATCH($C93,'Efficiency Distributions'!$C$9:$C$87,0)+RIGHT($E97),0))\n/SUM(BD$10:BD$11)","v":0.31807953763165248},{"$f":"IF(INDEX(PC_MAPPING,RIGHT($C93,1),MATCH($E$2,'Data by Building Type'!$D$22:$F$22,0))=\"Yes\",1,0)*\n(BE$10*OFFSET('Efficiency Distributions'!$D$10,MATCH($C93,'Efficiency Distributions'!$C$9:$C$87,0)+RIGHT($E97),0)\n+BE$11*OFFSET('Efficiency Distributions'!$E$10,MATCH($C93,'Efficiency Distributions'!$C$9:$C$87,0)+RIGHT($E97),0))\n/SUM(BE$10:BE$11)","v":0.31512388086623044},{"$f":"IF(INDEX(PC_MAPPING,RIGHT($C93,1),MATCH($E$2,'Data by Building Type'!$D$22:$F$22,0))=\"Yes\",1,0)*\n(BF$10*OFFSET('Efficiency Distributions'!$D$10,MATCH($C93,'Efficiency Distributions'!$C$9:$C$87,0)+RIGHT($E97),0)\n+BF$11*OFFSET('Efficiency Distributions'!$E$10,MATCH($C93,'Efficiency Distributions'!$C$9:$C$87,0)+RIGHT($E97),0))\n/SUM(BF$10:BF$11)","v":0.30924868551830087},{"$f":"IF(INDEX(PC_MAPPING,RIGHT($C93,1),MATCH($E$2,'Data by Building Type'!$D$22:$F$22,0))=\"Yes\",1,0)*\n(BG$10*OFFSET('Efficiency Distributions'!$D$10,MATCH($C93,'Efficiency Distributions'!$C$9:$C$87,0)+RIGHT($E97),0)\n+BG$11*OFFSET('Efficiency Distributions'!$E$10,MATCH($C93,'Efficiency Distributions'!$C$9:$C$87,0)+RIGHT($E97),0))\n/SUM(BG$10:BG$11)","v":0.30816169111967123}]
[null,null,null,null,"EL1",{"$f":"IF(INDEX(PC_MAPPING,RIGHT($C93,1),MATCH($E$2,'Data by Building Type'!$D$22:$F$22,0))=\"Yes\",1,0)*\n(F$10*OFFSET('Efficiency Distributions'!$D$10,MATCH($C93,'Efficiency Distributions'!$C$9:$C$87,0)+RIGHT($E98),0)\n+F$11*OFFSET('Efficiency Distributions'!$E$10,MATCH($C93,'Efficiency Distributions'!$C$9:$C$87,0)+RIGHT($E98),0))\n/SUM(F$10:F$11)","v":0.42660519602209529},{"$f":"IF(INDEX(PC_MAPPING,RIGHT($C93,1),MATCH($E$2,'Data by Building Type'!$D$22:$F$22,0))=\"Yes\",1,0)*\n(G$10*OFFSET('Efficiency Distributions'!$D$10,MATCH($C93,'Efficiency Distributions'!$C$9:$C$87,0)+RIGHT($E98),0)\n+G$11*OFFSET('Efficiency Distributions'!$E$10,MATCH($C93,'Efficiency Distributions'!$C$9:$C$87,0)+RIGHT($E98),0))\n/SUM(G$10:G$11)","v":0.42431572903247766},{"$f":"IF(INDEX(PC_MAPPING,RIGHT($C93,1),MATCH($E$2,'Data by Building Type'!$D$22:$F$22,0))=\"Yes\",1,0)*\n(H$10*OFFSET('Efficiency Distributions'!$D$10,MATCH($C93,'Efficiency Distributions'!$C$9:$C$87,0)+RIGHT($E98),0)\n+H$11*OFFSET('Efficiency Distributions'!$E$10,MATCH($C93,'Efficiency Distributions'!$C$9:$C$87,0)+RIGHT($E98),0))\n/SUM(H$10:H$11)","v":0.42705449804739137},{"$f":"IF(INDEX(PC_MAPPING,RIGHT($C93,1),MATCH($E$2,'Data by Building Type'!$D$22:$F$22,0))=\"Yes\",1,0)*\n(I$10*OFFSET('Efficiency Distributions'!$D$10,MATCH($C93,'Efficiency Distributions'!$C$9:$C$87,0)+RIGHT($E98),0)\n+I$11*OFFSET('Efficiency Distributions'!$E$10,MATCH($C93,'Efficiency Distributions'!$C$9:$C$87,0)+RIGHT($E98),0))\n/SUM(I$10:I$11)","v":0.42654370304951389},{"$f":"IF(INDEX(PC_MAPPING,RIGHT($C93,1),MATCH($E$2,'Data by Building Type'!$D$22:$F$22,0))=\"Yes\",1,0)*\n(J$10*OFFSET('Efficiency Distributions'!$D$10,MATCH($C93,'Efficiency Distributions'!$C$9:$C$87,0)+RIGHT($E98),0)\n+J$11*OFFSET('Efficiency Distributions'!$E$10,MATCH($C93,'Efficiency Distributions'!$C$9:$C$87,0)+RIGHT($E98),0))\n/SUM(J$10:J$11)","v":0.42622744514688687},{"$f":"IF(INDEX(PC_MAPPING,RIGHT($C93,1),MATCH($E$2,'Data by Building Type'!$D$22:$F$22,0))=\"Yes\",1,0)*\n(K$10*OFFSET('Efficiency Distributions'!$D$10,MATCH($C93,'Efficiency Distributions'!$C$9:$C$87,0)+RIGHT($E98),0)\n+K$11*OFFSET('Efficiency Distributions'!$E$10,MATCH($C93,'Efficiency Distributions'!$C$9:$C$87,0)+RIGHT($E98),0))\n/SUM(K$10:K$11)","v":0.42674949958274377},{"$f":"IF(INDEX(PC_MAPPING,RIGHT($C93,1),MATCH($E$2,'Data by Building Type'!$D$22:$F$22,0))=\"Yes\",1,0)*\n(L$10*OFFSET('Efficiency Distributions'!$D$10,MATCH($C93,'Efficiency Distributions'!$C$9:$C$87,0)+RIGHT($E98),0)\n+L$11*OFFSET('Efficiency Distributions'!$E$10,MATCH($C93,'Efficiency Distributions'!$C$9:$C$87,0)+RIGHT($E98),0))\n/SUM(L$10:L$11)","v":0.42679057448363872},{"$f":"IF(INDEX(PC_MAPPING,RIGHT($C93,1),MATCH($E$2,'Data by Building Type'!$D$22:$F$22,0))=\"Yes\",1,0)*\n(M$10*OFFSET('Efficiency Distributions'!$D$10,MATCH($C93,'Efficiency Distributions'!$C$9:$C$87,0)+RIGHT($E98),0)\n+M$11*OFFSET('Efficiency Distributions'!$E$10,MATCH($C93,'Efficiency Distributions'!$C$9:$C$87,0)+RIGHT($E98),0))\n/SUM(M$10:M$11)","v":0.42749003796507312},{"$f":"IF(INDEX(PC_MAPPING,RIGHT($C93,1),MATCH($E$2,'Data by Building Type'!$D$22:$F$22,0))=\"Yes\",1,0)*\n(N$10*OFFSET('Efficiency Distributions'!$D$10,MATCH($C93,'Efficiency Distributions'!$C$9:$C$87,0)+RIGHT($E98),0)\n+N$11*OFFSET('Efficiency Distributions'!$E$10,MATCH($C93,'Efficiency Distributions'!$C$9:$C$87,0)+RIGHT($E98),0))\n/SUM(N$10:N$11)","v":0.42908614711403259},{"$f":"IF(INDEX(PC_MAPPING,RIGHT($C93,1),MATCH($E$2,'Data by Building Type'!$D$22:$F$22,0))=\"Yes\",1,0)*\n(O$10*OFFSET('Efficiency Distributions'!$D$10,MATCH($C93,'Efficiency Distributions'!$C$9:$C$87,0)+RIGHT($E98),0)\n+O$11*OFFSET('Efficiency Distributions'!$E$10,MATCH($C93,'Efficiency Distributions'!$C$9:$C$87,0)+RIGHT($E98),0))\n/SUM(O$10:O$11)","v":0.43017381772857877},{"$f":"IF(INDEX(PC_MAPPING,RIGHT($C93,1),MATCH($E$2,'Data by Building Type'!$D$22:$F$22,0))=\"Yes\",1,0)*\n(P$10*OFFSET('Efficiency Distributions'!$D$10,MATCH($C93,'Efficiency Distributions'!$C$9:$C$87,0)+RIGHT($E98),0)\n+P$11*OFFSET('Efficiency Distributions'!$E$10,MATCH($C93,'Efficiency Distributions'!$C$9:$C$87,0)+RIGHT($E98),0))\n/SUM(P$10:P$11)","v":0.42906498767261786},{"$f":"IF(INDEX(PC_MAPPING,RIGHT($C93,1),MATCH($E$2,'Data by Building Type'!$D$22:$F$22,0))=\"Yes\",1,0)*\n(Q$10*OFFSET('Efficiency Distributions'!$D$10,MATCH($C93,'Efficiency Distributions'!$C$9:$C$87,0)+RIGHT($E98),0)\n+Q$11*OFFSET('Efficiency Distributions'!$E$10,MATCH($C93,'Efficiency Distributions'!$C$9:$C$87,0)+RIGHT($E98),0))\n/SUM(Q$10:Q$11)","v":0.43088873551123014},{"$f":"IF(INDEX(PC_MAPPING,RIGHT($C93,1),MATCH($E$2,'Data by Building Type'!$D$22:$F$22,0))=\"Yes\",1,0)*\n(R$10*OFFSET('Efficiency Distributions'!$D$10,MATCH($C93,'Efficiency Distributions'!$C$9:$C$87,0)+RIGHT($E98),0)\n+R$11*OFFSET('Efficiency Distributions'!$E$10,MATCH($C93,'Efficiency Distributions'!$C$9:$C$87,0)+RIGHT($E98),0))\n/SUM(R$10:R$11)","v":0.42587904340438248},{"$f":"IF(INDEX(PC_MAPPING,RIGHT($C93,1),MATCH($E$2,'Data by Building Type'!$D$22:$F$22,0))=\"Yes\",1,0)*\n(S$10*OFFSET('Efficiency Distributions'!$D$10,MATCH($C93,'Efficiency Distributions'!$C$9:$C$87,0)+RIGHT($E98),0)\n+S$11*OFFSET('Efficiency Distributions'!$E$10,MATCH($C93,'Efficiency Distributions'!$C$9:$C$87,0)+RIGHT($E98),0))\n/SUM(S$10:S$11)","v":0.42638361438430833},{"$f":"IF(INDEX(PC_MAPPING,RIGHT($C93,1),MATCH($E$2,'Data by Building Type'!$D$22:$F$22,0))=\"Yes\",1,0)*\n(T$10*OFFSET('Efficiency Distributions'!$D$10,MATCH($C93,'Efficiency Distributions'!$C$9:$C$87,0)+RIGHT($E98),0)\n+T$11*OFFSET('Efficiency Distributions'!$E$10,MATCH($C93,'Efficiency Distributions'!$C$9:$C$87,0)+RIGHT($E98),0))\n/SUM(T$10:T$11)","v":0.42452441470451524},{"$f":"IF(INDEX(PC_MAPPING,RIGHT($C93,1),MATCH($E$2,'Data by Building Type'!$D$22:$F$22,0))=\"Yes\",1,0)*\n(U$10*OFFSET('Efficiency Distributions'!$D$10,MATCH($C93,'Efficiency Distributions'!$C$9:$C$87,0)+RIGHT($E98),0)\n+U$11*OFFSET('Efficiency Distributions'!$E$10,MATCH($C93,'Efficiency Distributions'!$C$9:$C$87,0)+RIGHT($E98),0))\n/SUM(U$10:U$11)","v":0.42479225765371043},{"$f":"IF(INDEX(PC_MAPPING,RIGHT($C93,1),MATCH($E$2,'Data by Building Type'!$D$22:$F$22,0))=\"Yes\",1,0)*\n(V$10*OFFSET('Efficiency Distributions'!$D$10,MATCH($C93,'Efficiency Distributions'!$C$9:$C$87,0)+RIGHT($E98),0)\n+V$11*OFFSET('Efficiency Distributions'!$E$10,MATCH($C93,'Efficiency Distributions'!$C$9:$C$87,0)+RIGHT($E98),0))\n/SUM(V$10:V$11)","v":0.42439612803276378},{"$f":"IF(INDEX(PC_MAPPING,RIGHT($C93,1),MATCH($E$2,'Data by Building Type'!$D$22:$F$22,0))=\"Yes\",1,0)*\n(W$10*OFFSET('Efficiency Distributions'!$D$10,MATCH($C93,'Efficiency Distributions'!$C$9:$C$87,0)+RIGHT($E98),0)\n+W$11*OFFSET('Efficiency Distributions'!$E$10,MATCH($C93,'Efficiency Distributions'!$C$9:$C$87,0)+RIGHT($E98),0))\n/SUM(W$10:W$11)","v":0.42458607547956156},{"$f":"IF(INDEX(PC_MAPPING,RIGHT($C93,1),MATCH($E$2,'Data by Building Type'!$D$22:$F$22,0))=\"Yes\",1,0)*\n(X$10*OFFSET('Efficiency Distributions'!$D$10,MATCH($C93,'Efficiency Distributions'!$C$9:$C$87,0)+RIGHT($E98),0)\n+X$11*OFFSET('Efficiency Distributions'!$E$10,MATCH($C93,'Efficiency Distributions'!$C$9:$C$87,0)+RIGHT($E98),0))\n/SUM(X$10:X$11)","v":0.42397630024382182},{"$f":"IF(INDEX(PC_MAPPING,RIGHT($C93,1),MATCH($E$2,'Data by Building Type'!$D$22:$F$22,0))=\"Yes\",1,0)*\n(Y$10*OFFSET('Efficiency Distributions'!$D$10,MATCH($C93,'Efficiency Distributions'!$C$9:$C$87,0)+RIGHT($E98),0)\n+Y$11*OFFSET('Efficiency Distributions'!$E$10,MATCH($C93,'Efficiency Distributions'!$C$9:$C$87,0)+RIGHT($E98),0))\n/SUM(Y$10:Y$11)","v":0.42249274671176951},{"$f":"IF(INDEX(PC_MAPPING,RIGHT($C93,1),MATCH($E$2,'Data by Building Type'!$D$22:$F$22,0))=\"Yes\",1,0)*\n(Z$10*OFFSET('Efficiency Distributions'!$D$10,MATCH($C93,'Efficiency Distributions'!$C$9:$C$87,0)+RIGHT($E98),0)\n+Z$11*OFFSET('Efficiency Distributions'!$E$10,MATCH($C93,'Efficiency Distributions'!$C$9:$C$87,0)+RIGHT($E98),0))\n/SUM(Z$10:Z$11)","v":0.42246769412629781},{"$f":"IF(INDEX(PC_MAPPING,RIGHT($C93,1),MATCH($E$2,'Data by Building Type'!$D$22:$F$22,0))=\"Yes\",1,0)*\n(AA$10*OFFSET('Efficiency Distributions'!$D$10,MATCH($C93,'Efficiency Distributions'!$C$9:$C$87,0)+RIGHT($E98),0)\n+AA$11*OFFSET('Efficiency Distributions'!$E$10,MATCH($C93,'Efficiency Distributions'!$C$9:$C$87,0)+RIGHT($E98),0))\n/SUM(AA$10:AA$11)","v":0.42269752155697132},{"$f":"IF(INDEX(PC_MAPPING,RIGHT($C93,1),MATCH($E$2,'Data by Building Type'!$D$22:$F$22,0))=\"Yes\",1,0)*\n(AB$10*OFFSET('Efficiency Distributions'!$D$10,MATCH($C93,'Efficiency Distributions'!$C$9:$C$87,0)+RIGHT($E98),0)\n+AB$11*OFFSET('Efficiency Distributions'!$E$10,MATCH($C93,'Efficiency Distributions'!$C$9:$C$87,0)+RIGHT($E98),0))\n/SUM(AB$10:AB$11)","v":0.42400695009424672},{"$f":"IF(INDEX(PC_MAPPING,RIGHT($C93,1),MATCH($E$2,'Data by Building Type'!$D$22:$F$22,0))=\"Yes\",1,0)*\n(AC$10*OFFSET('Efficiency Distributions'!$D$10,MATCH($C93,'Efficiency Distributions'!$C$9:$C$87,0)+RIGHT($E98),0)\n+AC$11*OFFSET('Efficiency Distributions'!$E$10,MATCH($C93,'Efficiency Distributions'!$C$9:$C$87,0)+RIGHT($E98),0))\n/SUM(AC$10:AC$11)","v":0.42391548045827487},{"$f":"IF(INDEX(PC_MAPPING,RIGHT($C93,1),MATCH($E$2,'Data by Building Type'!$D$22:$F$22,0))=\"Yes\",1,0)*\n(AD$10*OFFSET('Efficiency Distributions'!$D$10,MATCH($C93,'Efficiency Distributions'!$C$9:$C$87,0)+RIGHT($E98),0)\n+AD$11*OFFSET('Efficiency Distributions'!$E$10,MATCH($C93,'Efficiency Distributions'!$C$9:$C$87,0)+RIGHT($E98),0))\n/SUM(AD$10:AD$11)","v":0.42504281449361031},{"$f":"IF(INDEX(PC_MAPPING,RIGHT($C93,1),MATCH($E$2,'Data by Building Type'!$D$22:$F$22,0))=\"Yes\",1,0)*\n(AE$10*OFFSET('Efficiency Distributions'!$D$10,MATCH($C93,'Efficiency Distributions'!$C$9:$C$87,0)+RIGHT($E98),0)\n+AE$11*OFFSET('Efficiency Distributions'!$E$10,MATCH($C93,'Efficiency Distributions'!$C$9:$C$87,0)+RIGHT($E98),0))\n/SUM(AE$10:AE$11)","v":0.42333186859654731},{"$f":"IF(INDEX(PC_MAPPING,RIGHT($C93,1),MATCH($E$2,'Data by Building Type'!$D$22:$F$22,0))=\"Yes\",1,0)*\n(AF$10*OFFSET('Efficiency Distributions'!$D$10,MATCH($C93,'Efficiency Distributions'!$C$9:$C$87,0)+RIGHT($E98),0)\n+AF$11*OFFSET('Efficiency Distributions'!$E$10,MATCH($C93,'Efficiency Distributions'!$C$9:$C$87,0)+RIGHT($E98),0))\n/SUM(AF$10:AF$11)","v":0.41955255636766775},{"$f":"IF(INDEX(PC_MAPPING,RIGHT($C93,1),MATCH($E$2,'Data by Building Type'!$D$22:$F$22,0))=\"Yes\",1,0)*\n(AG$10*OFFSET('Efficiency Distributions'!$D$10,MATCH($C93,'Efficiency Distributions'!$C$9:$C$87,0)+RIGHT($E98),0)\n+AG$11*OFFSET('Efficiency Distributions'!$E$10,MATCH($C93,'Efficiency Distributions'!$C$9:$C$87,0)+RIGHT($E98),0))\n/SUM(AG$10:AG$11)","v":0.4179389957405959},{"$f":"IF(INDEX(PC_MAPPING,RIGHT($C93,1),MATCH($E$2,'Data by Building Type'!$D$22:$F$22,0))=\"Yes\",1,0)*\n(AH$10*OFFSET('Efficiency Distributions'!$D$10,MATCH($C93,'Efficiency Distributions'!$C$9:$C$87,0)+RIGHT($E98),0)\n+AH$11*OFFSET('Efficiency Distributions'!$E$10,MATCH($C93,'Efficiency Distributions'!$C$9:$C$87,0)+RIGHT($E98),0))\n/SUM(AH$10:AH$11)","v":0.4179389957405959},{"$f":"IF(INDEX(PC_MAPPING,RIGHT($C93,1),MATCH($E$2,'Data by Building Type'!$D$22:$F$22,0))=\"Yes\",1,0)*\n(AI$10*OFFSET('Efficiency Distributions'!$D$10,MATCH($C93,'Efficiency Distributions'!$C$9:$C$87,0)+RIGHT($E98),0)\n+AI$11*OFFSET('Efficiency Distributions'!$E$10,MATCH($C93,'Efficiency Distributions'!$C$9:$C$87,0)+RIGHT($E98),0))\n/SUM(AI$10:AI$11)","v":0.41793899574059584},{"$f":"IF(INDEX(PC_MAPPING,RIGHT($C93,1),MATCH($E$2,'Data by Building Type'!$D$22:$F$22,0))=\"Yes\",1,0)*\n(AJ$10*OFFSET('Efficiency Distributions'!$D$10,MATCH($C93,'Efficiency Distributions'!$C$9:$C$87,0)+RIGHT($E98),0)\n+AJ$11*OFFSET('Efficiency Distributions'!$E$10,MATCH($C93,'Efficiency Distributions'!$C$9:$C$87,0)+RIGHT($E98),0))\n/SUM(AJ$10:AJ$11)","v":0.41861115983861225},{"$f":"IF(INDEX(PC_MAPPING,RIGHT($C93,1),MATCH($E$2,'Data by Building Type'!$D$22:$F$22,0))=\"Yes\",1,0)*\n(AK$10*OFFSET('Efficiency Distributions'!$D$10,MATCH($C93,'Efficiency Distributions'!$C$9:$C$87,0)+RIGHT($E98),0)\n+AK$11*OFFSET('Efficiency Distributions'!$E$10,MATCH($C93,'Efficiency Distributions'!$C$9:$C$87,0)+RIGHT($E98),0))\n/SUM(AK$10:AK$11)","v":0.42800910615225124},{"$f":"IF(INDEX(PC_MAPPING,RIGHT($C93,1),MATCH($E$2,'Data by Building Type'!$D$22:$F$22,0))=\"Yes\",1,0)*\n(AL$10*OFFSET('Efficiency Distributions'!$D$10,MATCH($C93,'Efficiency Distributions'!$C$9:$C$87,0)+RIGHT($E98),0)\n+AL$11*OFFSET('Efficiency Distributions'!$E$10,MATCH($C93,'Efficiency Distributions'!$C$9:$C$87,0)+RIGHT($E98),0))\n/SUM(AL$10:AL$11)","v":0.42772785384513651},{"$f":"IF(INDEX(PC_MAPPING,RIGHT($C93,1),MATCH($E$2,'Data by Building Type'!$D$22:$F$22,0))=\"Yes\",1,0)*\n(AM$10*OFFSET('Efficiency Distributions'!$D$10,MATCH($C93,'Efficiency Distributions'!$C$9:$C$87,0)+RIGHT($E98),0)\n+AM$11*OFFSET('Efficiency Distributions'!$E$10,MATCH($C93,'Efficiency Distributions'!$C$9:$C$87,0)+RIGHT($E98),0))\n/SUM(AM$10:AM$11)","v":0.42893616507228122},{"$f":"IF(INDEX(PC_MAPPING,RIGHT($C93,1),MATCH($E$2,'Data by Building Type'!$D$22:$F$22,0))=\"Yes\",1,0)*\n(AN$10*OFFSET('Efficiency Distributions'!$D$10,MATCH($C93,'Efficiency Distributions'!$C$9:$C$87,0)+RIGHT($E98),0)\n+AN$11*OFFSET('Efficiency Distributions'!$E$10,MATCH($C93,'Efficiency Distributions'!$C$9:$C$87,0)+RIGHT($E98),0))\n/SUM(AN$10:AN$11)","v":0.42883860860255774},{"$f":"IF(INDEX(PC_MAPPING,RIGHT($C93,1),MATCH($E$2,'Data by Building Type'!$D$22:$F$22,0))=\"Yes\",1,0)*\n(AO$10*OFFSET('Efficiency Distributions'!$D$10,MATCH($C93,'Efficiency Distributions'!$C$9:$C$87,0)+RIGHT($E98),0)\n+AO$11*OFFSET('Efficiency Distributions'!$E$10,MATCH($C93,'Efficiency Distributions'!$C$9:$C$87,0)+RIGHT($E98),0))\n/SUM(AO$10:AO$11)","v":0.42931206071365724},{"$f":"IF(INDEX(PC_MAPPING,RIGHT($C93,1),MATCH($E$2,'Data by Building Type'!$D$22:$F$22,0))=\"Yes\",1,0)*\n(AP$10*OFFSET('Efficiency Distributions'!$D$10,MATCH($C93,'Efficiency Distributions'!$C$9:$C$87,0)+RIGHT($E98),0)\n+AP$11*OFFSET('Efficiency Distributions'!$E$10,MATCH($C93,'Efficiency Distributions'!$C$9:$C$87,0)+RIGHT($E98),0))\n/SUM(AP$10:AP$11)","v":0.42910377497101432},{"$f":"IF(INDEX(PC_MAPPING,RIGHT($C93,1),MATCH($E$2,'Data by Building Type'!$D$22:$F$22,0))=\"Yes\",1,0)*\n(AQ$10*OFFSET('Efficiency Distributions'!$D$10,MATCH($C93,'Efficiency Distributions'!$C$9:$C$87,0)+RIGHT($E98),0)\n+AQ$11*OFFSET('Efficiency Distributions'!$E$10,MATCH($C93,'Efficiency Distributions'!$C$9:$C$87,0)+RIGHT($E98),0))\n/SUM(AQ$10:AQ$11)","v":0.42903304052421287},{"$f":"IF(INDEX(PC_MAPPING,RIGHT($C93,1),MATCH($E$2,'Data by Building Type'!$D$22:$F$22,0))=\"Yes\",1,0)*\n(AR$10*OFFSET('Efficiency Distributions'!$D$10,MATCH($C93,'Efficiency Distributions'!$C$9:$C$87,0)+RIGHT($E98),0)\n+AR$11*OFFSET('Efficiency Distributions'!$E$10,MATCH($C93,'Efficiency Distributions'!$C$9:$C$87,0)+RIGHT($E98),0))\n/SUM(AR$10:AR$11)","v":0.42881040292371037},{"$f":"IF(INDEX(PC_MAPPING,RIGHT($C93,1),MATCH($E$2,'Data by Building Type'!$D$22:$F$22,0))=\"Yes\",1,0)*\n(AS$10*OFFSET('Efficiency Distributions'!$D$10,MATCH($C93,'Efficiency Distributions'!$C$9:$C$87,0)+RIGHT($E98),0)\n+AS$11*OFFSET('Efficiency Distributions'!$E$10,MATCH($C93,'Efficiency Distributions'!$C$9:$C$87,0)+RIGHT($E98),0))\n/SUM(AS$10:AS$11)","v":0.42881335998455655},{"$f":"IF(INDEX(PC_MAPPING,RIGHT($C93,1),MATCH($E$2,'Data by Building Type'!$D$22:$F$22,0))=\"Yes\",1,0)*\n(AT$10*OFFSET('Efficiency Distributions'!$D$10,MATCH($C93,'Efficiency Distributions'!$C$9:$C$87,0)+RIGHT($E98),0)\n+AT$11*OFFSET('Efficiency Distributions'!$E$10,MATCH($C93,'Efficiency Distributions'!$C$9:$C$87,0)+RIGHT($E98),0))\n/SUM(AT$10:AT$11)","v":0.42893136636372825},{"$f":"IF(INDEX(PC_MAPPING,RIGHT($C93,1),MATCH($E$2,'Data by Building Type'!$D$22:$F$22,0))=\"Yes\",1,0)*\n(AU$10*OFFSET('Efficiency Distributions'!$D$10,MATCH($C93,'Efficiency Distributions'!$C$9:$C$87,0)+RIGHT($E98),0)\n+AU$11*OFFSET('Efficiency Distributions'!$E$10,MATCH($C93,'Efficiency Distributions'!$C$9:$C$87,0)+RIGHT($E98),0))\n/SUM(AU$10:AU$11)","v":0.42879278640040125},{"$f":"IF(INDEX(PC_MAPPING,RIGHT($C93,1),MATCH($E$2,'Data by Building Type'!$D$22:$F$22,0))=\"Yes\",1,0)*\n(AV$10*OFFSET('Efficiency Distributions'!$D$10,MATCH($C93,'Efficiency Distributions'!$C$9:$C$87,0)+RIGHT($E98),0)\n+AV$11*OFFSET('Efficiency Distributions'!$E$10,MATCH($C93,'Efficiency Distributions'!$C$9:$C$87,0)+RIGHT($E98),0))\n/SUM(AV$10:AV$11)","v":0.42688041200712762},{"$f":"IF(INDEX(PC_MAPPING,RIGHT($C93,1),MATCH($E$2,'Data by Building Type'!$D$22:$F$22,0))=\"Yes\",1,0)*\n(AW$10*OFFSET('Efficiency Distributions'!$D$10,MATCH($C93,'Efficiency Distributions'!$C$9:$C$87,0)+RIGHT($E98),0)\n+AW$11*OFFSET('Efficiency Distributions'!$E$10,MATCH($C93,'Efficiency Distributions'!$C$9:$C$87,0)+RIGHT($E98),0))\n/SUM(AW$10:AW$11)","v":0.42699318098309091},{"$f":"IF(INDEX(PC_MAPPING,RIGHT($C93,1),MATCH($E$2,'Data by Building Type'!$D$22:$F$22,0))=\"Yes\",1,0)*\n(AX$10*OFFSET('Efficiency Distributions'!$D$10,MATCH($C93,'Efficiency Distributions'!$C$9:$C$87,0)+RIGHT($E98),0)\n+AX$11*OFFSET('Efficiency Distributions'!$E$10,MATCH($C93,'Efficiency Distributions'!$C$9:$C$87,0)+RIGHT($E98),0))\n/SUM(AX$10:AX$11)","v":0.42642399299634159},{"$f":"IF(INDEX(PC_MAPPING,RIGHT($C93,1),MATCH($E$2,'Data by Building Type'!$D$22:$F$22,0))=\"Yes\",1,0)*\n(AY$10*OFFSET('Efficiency Distributions'!$D$10,MATCH($C93,'Efficiency Distributions'!$C$9:$C$87,0)+RIGHT($E98),0)\n+AY$11*OFFSET('Efficiency Distributions'!$E$10,MATCH($C93,'Efficiency Distributions'!$C$9:$C$87,0)+RIGHT($E98),0))\n/SUM(AY$10:AY$11)","v":0.42625128859906375},{"$f":"IF(INDEX(PC_MAPPING,RIGHT($C93,1),MATCH($E$2,'Data by Building Type'!$D$22:$F$22,0))=\"Yes\",1,0)*\n(AZ$10*OFFSET('Efficiency Distributions'!$D$10,MATCH($C93,'Efficiency Distributions'!$C$9:$C$87,0)+RIGHT($E98),0)\n+AZ$11*OFFSET('Efficiency Distributions'!$E$10,MATCH($C93,'Efficiency Distributions'!$C$9:$C$87,0)+RIGHT($E98),0))\n/SUM(AZ$10:AZ$11)","v":0.42651040642607513},{"$f":"IF(INDEX(PC_MAPPING,RIGHT($C93,1),MATCH($E$2,'Data by Building Type'!$D$22:$F$22,0))=\"Yes\",1,0)*\n(BA$10*OFFSET('Efficiency Distributions'!$D$10,MATCH($C93,'Efficiency Distributions'!$C$9:$C$87,0)+RIGHT($E98),0)\n+BA$11*OFFSET('Efficiency Distributions'!$E$10,MATCH($C93,'Efficiency Distributions'!$C$9:$C$87,0)+RIGHT($E98),0))\n/SUM(BA$10:BA$11)","v":0.42690882448202616},{"$f":"IF(INDEX(PC_MAPPING,RIGHT($C93,1),MATCH($E$2,'Data by Building Type'!$D$22:$F$22,0))=\"Yes\",1,0)*\n(BB$10*OFFSET('Efficiency Distributions'!$D$10,MATCH($C93,'Efficiency Distributions'!$C$9:$C$87,0)+RIGHT($E98),0)\n+BB$11*OFFSET('Efficiency Distributions'!$E$10,MATCH($C93,'Efficiency Distributions'!$C$9:$C$87,0)+RIGHT($E98),0))\n/SUM(BB$10:BB$11)","v":0.42776138023576948},{"$f":"IF(INDEX(PC_MAPPING,RIGHT($C93,1),MATCH($E$2,'Data by Building Type'!$D$22:$F$22,0))=\"Yes\",1,0)*\n(BC$10*OFFSET('Efficiency Distributions'!$D$10,MATCH($C93,'Efficiency Distributions'!$C$9:$C$87,0)+RIGHT($E98),0)\n+BC$11*OFFSET('Efficiency Distributions'!$E$10,MATCH($C93,'Efficiency Distributions'!$C$9:$C$87,0)+RIGHT($E98),0))\n/SUM(BC$10:BC$11)","v":0.42793425548322428},{"$f":"IF(INDEX(PC_MAPPING,RIGHT($C93,1),MATCH($E$2,'Data by Building Type'!$D$22:$F$22,0))=\"Yes\",1,0)*\n(BD$10*OFFSET('Efficiency Distributions'!$D$10,MATCH($C93,'Efficiency Distributions'!$C$9:$C$87,0)+RIGHT($E98),0)\n+BD$11*OFFSET('Efficiency Distributions'!$E$10,MATCH($C93,'Efficiency Distributions'!$C$9:$C$87,0)+RIGHT($E98),0))\n/SUM(BD$10:BD$11)","v":0.42696687236110509},{"$f":"IF(INDEX(PC_MAPPING,RIGHT($C93,1),MATCH($E$2,'Data by Building Type'!$D$22:$F$22,0))=\"Yes\",1,0)*\n(BE$10*OFFSET('Efficiency Distributions'!$D$10,MATCH($C93,'Efficiency Distributions'!$C$9:$C$87,0)+RIGHT($E98),0)\n+BE$11*OFFSET('Efficiency Distributions'!$E$10,MATCH($C93,'Efficiency Distributions'!$C$9:$C$87,0)+RIGHT($E98),0))\n/SUM(BE$10:BE$11)","v":0.4262905501783027},{"$f":"IF(INDEX(PC_MAPPING,RIGHT($C93,1),MATCH($E$2,'Data by Building Type'!$D$22:$F$22,0))=\"Yes\",1,0)*\n(BF$10*OFFSET('Efficiency Distributions'!$D$10,MATCH($C93,'Efficiency Distributions'!$C$9:$C$87,0)+RIGHT($E98),0)\n+BF$11*OFFSET('Efficiency Distributions'!$E$10,MATCH($C93,'Efficiency Distributions'!$C$9:$C$87,0)+RIGHT($E98),0))\n/SUM(BF$10:BF$11)","v":0.42494617048286976},{"$f":"IF(INDEX(PC_MAPPING,RIGHT($C93,1),MATCH($E$2,'Data by Building Type'!$D$22:$F$22,0))=\"Yes\",1,0)*\n(BG$10*OFFSET('Efficiency Distributions'!$D$10,MATCH($C93,'Efficiency Distributions'!$C$9:$C$87,0)+RIGHT($E98),0)\n+BG$11*OFFSET('Efficiency Distributions'!$E$10,MATCH($C93,'Efficiency Distributions'!$C$9:$C$87,0)+RIGHT($E98),0))\n/SUM(BG$10:BG$11)","v":0.42469744118758218}]
[null,null,null,null,"EL2",{"$f":"IF(INDEX(PC_MAPPING,RIGHT($C93,1),MATCH($E$2,'Data by Building Type'!$D$22:$F$22,0))=\"Yes\",1,0)*\n(F$10*OFFSET('Efficiency Distributions'!$D$10,MATCH($C93,'Efficiency Distributions'!$C$9:$C$87,0)+RIGHT($E99),0)\n+F$11*OFFSET('Efficiency Distributions'!$E$10,MATCH($C93,'Efficiency Distributions'!$C$9:$C$87,0)+RIGHT($E99),0))\n/SUM(F$10:F$11)","v":0},{"$f":"IF(INDEX(PC_MAPPING,RIGHT($C93,1),MATCH($E$2,'Data by Building Type'!$D$22:$F$22,0))=\"Yes\",1,0)*\n(G$10*OFFSET('Efficiency Distributions'!$D$10,MATCH($C93,'Efficiency Distributions'!$C$9:$C$87,0)+RIGHT($E99),0)\n+G$11*OFFSET('Efficiency Distributions'!$E$10,MATCH($C93,'Efficiency Distributions'!$C$9:$C$87,0)+RIGHT($E99),0))\n/SUM(G$10:G$11)","v":0},{"$f":"IF(INDEX(PC_MAPPING,RIGHT($C93,1),MATCH($E$2,'Data by Building Type'!$D$22:$F$22,0))=\"Yes\",1,0)*\n(H$10*OFFSET('Efficiency Distributions'!$D$10,MATCH($C93,'Efficiency Distributions'!$C$9:$C$87,0)+RIGHT($E99),0)\n+H$11*OFFSET('Efficiency Distributions'!$E$10,MATCH($C93,'Efficiency Distributions'!$C$9:$C$87,0)+RIGHT($E99),0))\n/SUM(H$10:H$11)","v":0},{"$f":"IF(INDEX(PC_MAPPING,RIGHT($C93,1),MATCH($E$2,'Data by Building Type'!$D$22:$F$22,0))=\"Yes\",1,0)*\n(I$10*OFFSET('Efficiency Distributions'!$D$10,MATCH($C93,'Efficiency Distributions'!$C$9:$C$87,0)+RIGHT($E99),0)\n+I$11*OFFSET('Efficiency Distributions'!$E$10,MATCH($C93,'Efficiency Distributions'!$C$9:$C$87,0)+RIGHT($E99),0))\n/SUM(I$10:I$11)","v":0},{"$f":"IF(INDEX(PC_MAPPING,RIGHT($C93,1),MATCH($E$2,'Data by Building Type'!$D$22:$F$22,0))=\"Yes\",1,0)*\n(J$10*OFFSET('Efficiency Distributions'!$D$10,MATCH($C93,'Efficiency Distributions'!$C$9:$C$87,0)+RIGHT($E99),0)\n+J$11*OFFSET('Efficiency Distributions'!$E$10,MATCH($C93,'Efficiency Distributions'!$C$9:$C$87,0)+RIGHT($E99),0))\n/SUM(J$10:J$11)","v":0},{"$f":"IF(INDEX(PC_MAPPING,RIGHT($C93,1),MATCH($E$2,'Data by Building Type'!$D$22:$F$22,0))=\"Yes\",1,0)*\n(K$10*OFFSET('Efficiency Distributions'!$D$10,MATCH($C93,'Efficiency Distributions'!$C$9:$C$87,0)+RIGHT($E99),0)\n+K$11*OFFSET('Efficiency Distributions'!$E$10,MATCH($C93,'Efficiency Distributions'!$C$9:$C$87,0)+RIGHT($E99),0))\n/SUM(K$10:K$11)","v":0},{"$f":"IF(INDEX(PC_MAPPING,RIGHT($C93,1),MATCH($E$2,'Data by Building Type'!$D$22:$F$22,0))=\"Yes\",1,0)*\n(L$10*OFFSET('Efficiency Distributions'!$D$10,MATCH($C93,'Efficiency Distributions'!$C$9:$C$87,0)+RIGHT($E99),0)\n+L$11*OFFSET('Efficiency Distributions'!$E$10,MATCH($C93,'Efficiency Distributions'!$C$9:$C$87,0)+RIGHT($E99),0))\n/SUM(L$10:L$11)","v":0},{"$f":"IF(INDEX(PC_MAPPING,RIGHT($C93,1),MATCH($E$2,'Data by Building Type'!$D$22:$F$22,0))=\"Yes\",1,0)*\n(M$10*OFFSET('Efficiency Distributions'!$D$10,MATCH($C93,'Efficiency Distributions'!$C$9:$C$87,0)+RIGHT($E99),0)\n+M$11*OFFSET('Efficiency Distributions'!$E$10,MATCH($C93,'Efficiency Distributions'!$C$9:$C$87,0)+RIGHT($E99),0))\n/SUM(M$10:M$11)","v":0},{"$f":"IF(INDEX(PC_MAPPING,RIGHT($C93,1),MATCH($E$2,'Data by Building Type'!$D$22:$F$22,0))=\"Yes\",1,0)*\n(N$10*OFFSET('Efficiency Distributions'!$D$10,MATCH($C93,'Efficiency Distributions'!$C$9:$C$87,0)+RIGHT($E99),0)\n+N$11*OFFSET('Efficiency Distributions'!$E$10,MATCH($C93,'Efficiency Distributions'!$C$9:$C$87,0)+RIGHT($E99),0))\n/SUM(N$10:N$11)","v":0},{"$f":"IF(INDEX(PC_MAPPING,RIGHT($C93,1),MATCH($E$2,'Data by Building Type'!$D$22:$F$22,0))=\"Yes\",1,0)*\n(O$10*OFFSET('Efficiency Distributions'!$D$10,MATCH($C93,'Efficiency Distributions'!$C$9:$C$87,0)+RIGHT($E99),0)\n+O$11*OFFSET('Efficiency Distributions'!$E$10,MATCH($C93,'Efficiency Distributions'!$C$9:$C$87,0)+RIGHT($E99),0))\n/SUM(O$10:O$11)","v":0},{"$f":"IF(INDEX(PC_MAPPING,RIGHT($C93,1),MATCH($E$2,'Data by Building Type'!$D$22:$F$22,0))=\"Yes\",1,0)*\n(P$10*OFFSET('Efficiency Distributions'!$D$10,MATCH($C93,'Efficiency Distributions'!$C$9:$C$87,0)+RIGHT($E99),0)\n+P$11*OFFSET('Efficiency Distributions'!$E$10,MATCH($C93,'Efficiency Distributions'!$C$9:$C$87,0)+RIGHT($E99),0))\n/SUM(P$10:P$11)","v":0},{"$f":"IF(INDEX(PC_MAPPING,RIGHT($C93,1),MATCH($E$2,'Data by Building Type'!$D$22:$F$22,0))=\"Yes\",1,0)*\n(Q$10*OFFSET('Efficiency Distributions'!$D$10,MATCH($C93,'Efficiency Distributions'!$C$9:$C$87,0)+RIGHT($E99),0)\n+Q$11*OFFSET('Efficiency Distributions'!$E$10,MATCH($C93,'Efficiency Distributions'!$C$9:$C$87,0)+RIGHT($E99),0))\n/SUM(Q$10:Q$11)","v":0},{"$f":"IF(INDEX(PC_MAPPING,RIGHT($C93,1),MATCH($E$2,'Data by Building Type'!$D$22:$F$22,0))=\"Yes\",1,0)*\n(R$10*OFFSET('Efficiency Distributions'!$D$10,MATCH($C93,'Efficiency Distributions'!$C$9:$C$87,0)+RIGHT($E99),0)\n+R$11*OFFSET('Efficiency Distributions'!$E$10,MATCH($C93,'Efficiency Distributions'!$C$9:$C$87,0)+RIGHT($E99),0))\n/SUM(R$10:R$11)","v":0},{"$f":"IF(INDEX(PC_MAPPING,RIGHT($C93,1),MATCH($E$2,'Data by Building Type'!$D$22:$F$22,0))=\"Yes\",1,0)*\n(S$10*OFFSET('Efficiency Distributions'!$D$10,MATCH($C93,'Efficiency Distributions'!$C$9:$C$87,0)+RIGHT($E99),0)\n+S$11*OFFSET('Efficiency Distributions'!$E$10,MATCH($C93,'Efficiency Distributions'!$C$9:$C$87,0)+RIGHT($E99),0))\n/SUM(S$10:S$11)","v":0},{"$f":"IF(INDEX(PC_MAPPING,RIGHT($C93,1),MATCH($E$2,'Data by Building Type'!$D$22:$F$22,0))=\"Yes\",1,0)*\n(T$10*OFFSET('Efficiency Distributions'!$D$10,MATCH($C93,'Efficiency Distributions'!$C$9:$C$87,0)+RIGHT($E99),0)\n+T$11*OFFSET('Efficiency Distributions'!$E$10,MATCH($C93,'Efficiency Distributions'!$C$9:$C$87,0)+RIGHT($E99),0))\n/SUM(T$10:T$11)","v":0},{"$f":"IF(INDEX(PC_MAPPING,RIGHT($C93,1),MATCH($E$2,'Data by Building Type'!$D$22:$F$22,0))=\"Yes\",1,0)*\n(U$10*OFFSET('Efficiency Distributions'!$D$10,MATCH($C93,'Efficiency Distributions'!$C$9:$C$87,0)+RIGHT($E99),0)\n+U$11*OFFSET('Efficiency Distributions'!$E$10,MATCH($C93,'Efficiency Distributions'!$C$9:$C$87,0)+RIGHT($E99),0))\n/SUM(U$10:U$11)","v":0},{"$f":"IF(INDEX(PC_MAPPING,RIGHT($C93,1),MATCH($E$2,'Data by Building Type'!$D$22:$F$22,0))=\"Yes\",1,0)*\n(V$10*OFFSET('Efficiency Distributions'!$D$10,MATCH($C93,'Efficiency Distributions'!$C$9:$C$87,0)+RIGHT($E99),0)\n+V$11*OFFSET('Efficiency Distributions'!$E$10,MATCH($C93,'Efficiency Distributions'!$C$9:$C$87,0)+RIGHT($E99),0))\n/SUM(V$10:V$11)","v":0},{"$f":"IF(INDEX(PC_MAPPING,RIGHT($C93,1),MATCH($E$2,'Data by Building Type'!$D$22:$F$22,0))=\"Yes\",1,0)*\n(W$10*OFFSET('Efficiency Distributions'!$D$10,MATCH($C93,'Efficiency Distributions'!$C$9:$C$87,0)+RIGHT($E99),0)\n+W$11*OFFSET('Efficiency Distributions'!$E$10,MATCH($C93,'Efficiency Distributions'!$C$9:$C$87,0)+RIGHT($E99),0))\n/SUM(W$10:W$11)","v":0},{"$f":"IF(INDEX(PC_MAPPING,RIGHT($C93,1),MATCH($E$2,'Data by Building Type'!$D$22:$F$22,0))=\"Yes\",1,0)*\n(X$10*OFFSET('Efficiency Distributions'!$D$10,MATCH($C93,'Efficiency Distributions'!$C$9:$C$87,0)+RIGHT($E99),0)\n+X$11*OFFSET('Efficiency Distributions'!$E$10,MATCH($C93,'Efficiency Distributions'!$C$9:$C$87,0)+RIGHT($E99),0))\n/SUM(X$10:X$11)","v":0},{"$f":"IF(INDEX(PC_MAPPING,RIGHT($C93,1),MATCH($E$2,'Data by Building Type'!$D$22:$F$22,0))=\"Yes\",1,0)*\n(Y$10*OFFSET('Efficiency Distributions'!$D$10,MATCH($C93,'Efficiency Distributions'!$C$9:$C$87,0)+RIGHT($E99),0)\n+Y$11*OFFSET('Efficiency Distributions'!$E$10,MATCH($C93,'Efficiency Distributions'!$C$9:$C$87,0)+RIGHT($E99),0))\n/SUM(Y$10:Y$11)","v":0},{"$f":"IF(INDEX(PC_MAPPING,RIGHT($C93,1),MATCH($E$2,'Data by Building Type'!$D$22:$F$22,0))=\"Yes\",1,0)*\n(Z$10*OFFSET('Efficiency Distributions'!$D$10,MATCH($C93,'Efficiency Distributions'!$C$9:$C$87,0)+RIGHT($E99),0)\n+Z$11*OFFSET('Efficiency Distributions'!$E$10,MATCH($C93,'Efficiency Distributions'!$C$9:$C$87,0)+RIGHT($E99),0))\n/SUM(Z$10:Z$11)","v":0},{"$f":"IF(INDEX(PC_MAPPING,RIGHT($C93,1),MATCH($E$2,'Data by Building Type'!$D$22:$F$22,0))=\"Yes\",1,0)*\n(AA$10*OFFSET('Efficiency Distributions'!$D$10,MATCH($C93,'Efficiency Distributions'!$C$9:$C$87,0)+RIGHT($E99),0)\n+AA$11*OFFSET('Efficiency Distributions'!$E$10,MATCH($C93,'Efficiency Distributions'!$C$9:$C$87,0)+RIGHT($E99),0))\n/SUM(AA$10:AA$11)","v":0},{"$f":"IF(INDEX(PC_MAPPING,RIGHT($C93,1),MATCH($E$2,'Data by Building Type'!$D$22:$F$22,0))=\"Yes\",1,0)*\n(AB$10*OFFSET('Efficiency Distributions'!$D$10,MATCH($C93,'Efficiency Distributions'!$C$9:$C$87,0)+RIGHT($E99),0)\n+AB$11*OFFSET('Efficiency Distributions'!$E$10,MATCH($C93,'Efficiency Distributions'!$C$9:$C$87,0)+RIGHT($E99),0))\n/SUM(AB$10:AB$11)","v":0},{"$f":"IF(INDEX(PC_MAPPING,RIGHT($C93,1),MATCH($E$2,'Data by Building Type'!$D$22:$F$22,0))=\"Yes\",1,0)*\n(AC$10*OFFSET('Efficiency Distributions'!$D$10,MATCH($C93,'Efficiency Distributions'!$C$9:$C$87,0)+RIGHT($E99),0)\n+AC$11*OFFSET('Efficiency Distributions'!$E$10,MATCH($C93,'Efficiency Distributions'!$C$9:$C$87,0)+RIGHT($E99),0))\n/SUM(AC$10:AC$11)","v":0},{"$f":"IF(INDEX(PC_MAPPING,RIGHT($C93,1),MATCH($E$2,'Data by Building Type'!$D$22:$F$22,0))=\"Yes\",1,0)*\n(AD$10*OFFSET('Efficiency Distributions'!$D$10,MATCH($C93,'Efficiency Distributions'!$C$9:$C$87,0)+RIGHT($E99),0)\n+AD$11*OFFSET('Efficiency Distributions'!$E$10,MATCH($C93,'Efficiency Distributions'!$C$9:$C$87,0)+RIGHT($E99),0))\n/SUM(AD$10:AD$11)","v":0},{"$f":"IF(INDEX(PC_MAPPING,RIGHT($C93,1),MATCH($E$2,'Data by Building Type'!$D$22:$F$22,0))=\"Yes\",1,0)*\n(AE$10*OFFSET('Efficiency Distributions'!$D$10,MATCH($C93,'Efficiency Distributions'!$C$9:$C$87,0)+RIGHT($E99),0)\n+AE$11*OFFSET('Efficiency Distributions'!$E$10,MATCH($C93,'Efficiency Distributions'!$C$9:$C$87,0)+RIGHT($E99),0))\n/SUM(AE$10:AE$11)","v":0},{"$f":"IF(INDEX(PC_MAPPING,RIGHT($C93,1),MATCH($E$2,'Data by Building Type'!$D$22:$F$22,0))=\"Yes\",1,0)*\n(AF$10*OFFSET('Efficiency Distributions'!$D$10,MATCH($C93,'Efficiency Distributions'!$C$9:$C$87,0)+RIGHT($E99),0)\n+AF$11*OFFSET('Efficiency Distributions'!$E$10,MATCH($C93,'Efficiency Distributions'!$C$9:$C$87,0)+RIGHT($E99),0))\n/SUM(AF$10:AF$11)","v":0},{"$f":"IF(INDEX(PC_MAPPING,RIGHT($C93,1),MATCH($E$2,'Data by Building Type'!$D$22:$F$22,0))=\"Yes\",1,0)*\n(AG$10*OFFSET('Efficiency Distributions'!$D$10,MATCH($C93,'Efficiency Distributions'!$C$9:$C$87,0)+RIGHT($E99),0)\n+AG$11*OFFSET('Efficiency Distributions'!$E$10,MATCH($C93,'Efficiency Distributions'!$C$9:$C$87,0)+RIGHT($E99),0))\n/SUM(AG$10:AG$11)","v":0},{"$f":"IF(INDEX(PC_MAPPING,RIGHT($C93,1),MATCH($E$2,'Data by Building Type'!$D$22:$F$22,0))=\"Yes\",1,0)*\n(AH$10*OFFSET('Efficiency Distributions'!$D$10,MATCH($C93,'Efficiency Distributions'!$C$9:$C$87,0)+RIGHT($E99),0)\n+AH$11*OFFSET('Efficiency Distributions'!$E$10,MATCH($C93,'Efficiency Distributions'!$C$9:$C$87,0)+RIGHT($E99),0))\n/SUM(AH$10:AH$11)","v":0},{"$f":"IF(INDEX(PC_MAPPING,RIGHT($C93,1),MATCH($E$2,'Data by Building Type'!$D$22:$F$22,0))=\"Yes\",1,0)*\n(AI$10*OFFSET('Efficiency Distributions'!$D$10,MATCH($C93,'Efficiency Distributions'!$C$9:$C$87,0)+RIGHT($E99),0)\n+AI$11*OFFSET('Efficiency Distributions'!$E$10,MATCH($C93,'Efficiency Distributions'!$C$9:$C$87,0)+RIGHT($E99),0))\n/SUM(AI$10:AI$11)","v":0},{"$f":"IF(INDEX(PC_MAPPING,RIGHT($C93,1),MATCH($E$2,'Data by Building Type'!$D$22:$F$22,0))=\"Yes\",1,0)*\n(AJ$10*OFFSET('Efficiency Distributions'!$D$10,MATCH($C93,'Efficiency Distributions'!$C$9:$C$87,0)+RIGHT($E99),0)\n+AJ$11*OFFSET('Efficiency Distributions'!$E$10,MATCH($C93,'Efficiency Distributions'!$C$9:$C$87,0)+RIGHT($E99),0))\n/SUM(AJ$10:AJ$11)","v":0},{"$f":"IF(INDEX(PC_MAPPING,RIGHT($C93,1),MATCH($E$2,'Data by Building Type'!$D$22:$F$22,0))=\"Yes\",1,0)*\n(AK$10*OFFSET('Efficiency Distributions'!$D$10,MATCH($C93,'Efficiency Distributions'!$C$9:$C$87,0)+RIGHT($E99),0)\n+AK$11*OFFSET('Efficiency Distributions'!$E$10,MATCH($C93,'Efficiency Distributions'!$C$9:$C$87,0)+RIGHT($E99),0))\n/SUM(AK$10:AK$11)","v":0},{"$f":"IF(INDEX(PC_MAPPING,RIGHT($C93,1),MATCH($E$2,'Data by Building Type'!$D$22:$F$22,0))=\"Yes\",1,0)*\n(AL$10*OFFSET('Efficiency Distributions'!$D$10,MATCH($C93,'Efficiency Distributions'!$C$9:$C$87,0)+RIGHT($E99),0)\n+AL$11*OFFSET('Efficiency Distributions'!$E$10,MATCH($C93,'Efficiency Distributions'!$C$9:$C$87,0)+RIGHT($E99),0))\n/SUM(AL$10:AL$11)","v":0},{"$f":"IF(INDEX(PC_MAPPING,RIGHT($C93,1),MATCH($E$2,'Data by Building Type'!$D$22:$F$22,0))=\"Yes\",1,0)*\n(AM$10*OFFSET('Efficiency Distributions'!$D$10,MATCH($C93,'Efficiency Distributions'!$C$9:$C$87,0)+RIGHT($E99),0)\n+AM$11*OFFSET('Efficiency Distributions'!$E$10,MATCH($C93,'Efficiency Distributions'!$C$9:$C$87,0)+RIGHT($E99),0))\n/SUM(AM$10:AM$11)","v":0},{"$f":"IF(INDEX(PC_MAPPING,RIGHT($C93,1),MATCH($E$2,'Data by Building Type'!$D$22:$F$22,0))=\"Yes\",1,0)*\n(AN$10*OFFSET('Efficiency Distributions'!$D$10,MATCH($C93,'Efficiency Distributions'!$C$9:$C$87,0)+RIGHT($E99),0)\n+AN$11*OFFSET('Efficiency Distributions'!$E$10,MATCH($C93,'Efficiency Distributions'!$C$9:$C$87,0)+RIGHT($E99),0))\n/SUM(AN$10:AN$11)","v":0},{"$f":"IF(INDEX(PC_MAPPING,RIGHT($C93,1),MATCH($E$2,'Data by Building Type'!$D$22:$F$22,0))=\"Yes\",1,0)*\n(AO$10*OFFSET('Efficiency Distributions'!$D$10,MATCH($C93,'Efficiency Distributions'!$C$9:$C$87,0)+RIGHT($E99),0)\n+AO$11*OFFSET('Efficiency Distributions'!$E$10,MATCH($C93,'Efficiency Distributions'!$C$9:$C$87,0)+RIGHT($E99),0))\n/SUM(AO$10:AO$11)","v":0},{"$f":"IF(INDEX(PC_MAPPING,RIGHT($C93,1),MATCH($E$2,'Data by Building Type'!$D$22:$F$22,0))=\"Yes\",1,0)*\n(AP$10*OFFSET('Efficiency Distributions'!$D$10,MATCH($C93,'Efficiency Distributions'!$C$9:$C$87,0)+RIGHT($E99),0)\n+AP$11*OFFSET('Efficiency Distributions'!$E$10,MATCH($C93,'Efficiency Distributions'!$C$9:$C$87,0)+RIGHT($E99),0))\n/SUM(AP$10:AP$11)","v":0},{"$f":"IF(INDEX(PC_MAPPING,RIGHT($C93,1),MATCH($E$2,'Data by Building Type'!$D$22:$F$22,0))=\"Yes\",1,0)*\n(AQ$10*OFFSET('Efficiency Distributions'!$D$10,MATCH($C93,'Efficiency Distributions'!$C$9:$C$87,0)+RIGHT($E99),0)\n+AQ$11*OFFSET('Efficiency Distributions'!$E$10,MATCH($C93,'Efficiency Distributions'!$C$9:$C$87,0)+RIGHT($E99),0))\n/SUM(AQ$10:AQ$11)","v":0},{"$f":"IF(INDEX(PC_MAPPING,RIGHT($C93,1),MATCH($E$2,'Data by Building Type'!$D$22:$F$22,0))=\"Yes\",1,0)*\n(AR$10*OFFSET('Efficiency Distributions'!$D$10,MATCH($C93,'Efficiency Distributions'!$C$9:$C$87,0)+RIGHT($E99),0)\n+AR$11*OFFSET('Efficiency Distributions'!$E$10,MATCH($C93,'Efficiency Distributions'!$C$9:$C$87,0)+RIGHT($E99),0))\n/SUM(AR$10:AR$11)","v":0},{"$f":"IF(INDEX(PC_MAPPING,RIGHT($C93,1),MATCH($E$2,'Data by Building Type'!$D$22:$F$22,0))=\"Yes\",1,0)*\n(AS$10*OFFSET('Efficiency Distributions'!$D$10,MATCH($C93,'Efficiency Distributions'!$C$9:$C$87,0)+RIGHT($E99),0)\n+AS$11*OFFSET('Efficiency Distributions'!$E$10,MATCH($C93,'Efficiency Distributions'!$C$9:$C$87,0)+RIGHT($E99),0))\n/SUM(AS$10:AS$11)","v":0},{"$f":"IF(INDEX(PC_MAPPING,RIGHT($C93,1),MATCH($E$2,'Data by Building Type'!$D$22:$F$22,0))=\"Yes\",1,0)*\n(AT$10*OFFSET('Efficiency Distributions'!$D$10,MATCH($C93,'Efficiency Distributions'!$C$9:$C$87,0)+RIGHT($E99),0)\n+AT$11*OFFSET('Efficiency Distributions'!$E$10,MATCH($C93,'Efficiency Distributions'!$C$9:$C$87,0)+RIGHT($E99),0))\n/SUM(AT$10:AT$11)","v":0},{"$f":"IF(INDEX(PC_MAPPING,RIGHT($C93,1),MATCH($E$2,'Data by Building Type'!$D$22:$F$22,0))=\"Yes\",1,0)*\n(AU$10*OFFSET('Efficiency Distributions'!$D$10,MATCH($C93,'Efficiency Distributions'!$C$9:$C$87,0)+RIGHT($E99),0)\n+AU$11*OFFSET('Efficiency Distributions'!$E$10,MATCH($C93,'Efficiency Distributions'!$C$9:$C$87,0)+RIGHT($E99),0))\n/SUM(AU$10:AU$11)","v":0},{"$f":"IF(INDEX(PC_MAPPING,RIGHT($C93,1),MATCH($E$2,'Data by Building Type'!$D$22:$F$22,0))=\"Yes\",1,0)*\n(AV$10*OFFSET('Efficiency Distributions'!$D$10,MATCH($C93,'Efficiency Distributions'!$C$9:$C$87,0)+RIGHT($E99),0)\n+AV$11*OFFSET('Efficiency Distributions'!$E$10,MATCH($C93,'Efficiency Distributions'!$C$9:$C$87,0)+RIGHT($E99),0))\n/SUM(AV$10:AV$11)","v":0},{"$f":"IF(INDEX(PC_MAPPING,RIGHT($C93,1),MATCH($E$2,'Data by Building Type'!$D$22:$F$22,0))=\"Yes\",1,0)*\n(AW$10*OFFSET('Efficiency Distributions'!$D$10,MATCH($C93,'Efficiency Distributions'!$C$9:$C$87,0)+RIGHT($E99),0)\n+AW$11*OFFSET('Efficiency Distributions'!$E$10,MATCH($C93,'Efficiency Distributions'!$C$9:$C$87,0)+RIGHT($E99),0))\n/SUM(AW$10:AW$11)","v":0},{"$f":"IF(INDEX(PC_MAPPING,RIGHT($C93,1),MATCH($E$2,'Data by Building Type'!$D$22:$F$22,0))=\"Yes\",1,0)*\n(AX$10*OFFSET('Efficiency Distributions'!$D$10,MATCH($C93,'Efficiency Distributions'!$C$9:$C$87,0)+RIGHT($E99),0)\n+AX$11*OFFSET('Efficiency Distributions'!$E$10,MATCH($C93,'Efficiency Distributions'!$C$9:$C$87,0)+RIGHT($E99),0))\n/SUM(AX$10:AX$11)","v":0},{"$f":"IF(INDEX(PC_MAPPING,RIGHT($C93,1),MATCH($E$2,'Data by Building Type'!$D$22:$F$22,0))=\"Yes\",1,0)*\n(AY$10*OFFSET('Efficiency Distributions'!$D$10,MATCH($C93,'Efficiency Distributions'!$C$9:$C$87,0)+RIGHT($E99),0)\n+AY$11*OFFSET('Efficiency Distributions'!$E$10,MATCH($C93,'Efficiency Distributions'!$C$9:$C$87,0)+RIGHT($E99),0))\n/SUM(AY$10:AY$11)","v":0},{"$f":"IF(INDEX(PC_MAPPING,RIGHT($C93,1),MATCH($E$2,'Data by Building Type'!$D$22:$F$22,0))=\"Yes\",1,0)*\n(AZ$10*OFFSET('Efficiency Distributions'!$D$10,MATCH($C93,'Efficiency Distributions'!$C$9:$C$87,0)+RIGHT($E99),0)\n+AZ$11*OFFSET('Efficiency Distributions'!$E$10,MATCH($C93,'Efficiency Distributions'!$C$9:$C$87,0)+RIGHT($E99),0))\n/SUM(AZ$10:AZ$11)","v":0},{"$f":"IF(INDEX(PC_MAPPING,RIGHT($C93,1),MATCH($E$2,'Data by Building Type'!$D$22:$F$22,0))=\"Yes\",1,0)*\n(BA$10*OFFSET('Efficiency Distributions'!$D$10,MATCH($C93,'Efficiency Distributions'!$C$9:$C$87,0)+RIGHT($E99),0)\n+BA$11*OFFSET('Efficiency Distributions'!$E$10,MATCH($C93,'Efficiency Distributions'!$C$9:$C$87,0)+RIGHT($E99),0))\n/SUM(BA$10:BA$11)","v":0},{"$f":"IF(INDEX(PC_MAPPING,RIGHT($C93,1),MATCH($E$2,'Data by Building Type'!$D$22:$F$22,0))=\"Yes\",1,0)*\n(BB$10*OFFSET('Efficiency Distributions'!$D$10,MATCH($C93,'Efficiency Distributions'!$C$9:$C$87,0)+RIGHT($E99),0)\n+BB$11*OFFSET('Efficiency Distributions'!$E$10,MATCH($C93,'Efficiency Distributions'!$C$9:$C$87,0)+RIGHT($E99),0))\n/SUM(BB$10:BB$11)","v":0},{"$f":"IF(INDEX(PC_MAPPING,RIGHT($C93,1),MATCH($E$2,'Data by Building Type'!$D$22:$F$22,0))=\"Yes\",1,0)*\n(BC$10*OFFSET('Efficiency Distributions'!$D$10,MATCH($C93,'Efficiency Distributions'!$C$9:$C$87,0)+RIGHT($E99),0)\n+BC$11*OFFSET('Efficiency Distributions'!$E$10,MATCH($C93,'Efficiency Distributions'!$C$9:$C$87,0)+RIGHT($E99),0))\n/SUM(BC$10:BC$11)","v":0},{"$f":"IF(INDEX(PC_MAPPING,RIGHT($C93,1),MATCH($E$2,'Data by Building Type'!$D$22:$F$22,0))=\"Yes\",1,0)*\n(BD$10*OFFSET('Efficiency Distributions'!$D$10,MATCH($C93,'Efficiency Distributions'!$C$9:$C$87,0)+RIGHT($E99),0)\n+BD$11*OFFSET('Efficiency Distributions'!$E$10,MATCH($C93,'Efficiency Distributions'!$C$9:$C$87,0)+RIGHT($E99),0))\n/SUM(BD$10:BD$11)","v":0},{"$f":"IF(INDEX(PC_MAPPING,RIGHT($C93,1),MATCH($E$2,'Data by Building Type'!$D$22:$F$22,0))=\"Yes\",1,0)*\n(BE$10*OFFSET('Efficiency Distributions'!$D$10,MATCH($C93,'Efficiency Distributions'!$C$9:$C$87,0)+RIGHT($E99),0)\n+BE$11*OFFSET('Efficiency Distributions'!$E$10,MATCH($C93,'Efficiency Distributions'!$C$9:$C$87,0)+RIGHT($E99),0))\n/SUM(BE$10:BE$11)","v":0},{"$f":"IF(INDEX(PC_MAPPING,RIGHT($C93,1),MATCH($E$2,'Data by Building Type'!$D$22:$F$22,0))=\"Yes\",1,0)*\n(BF$10*OFFSET('Efficiency Distributions'!$D$10,MATCH($C93,'Efficiency Distributions'!$C$9:$C$87,0)+RIGHT($E99),0)\n+BF$11*OFFSET('Efficiency Distributions'!$E$10,MATCH($C93,'Efficiency Distributions'!$C$9:$C$87,0)+RIGHT($E99),0))\n/SUM(BF$10:BF$11)","v":0},{"$f":"IF(INDEX(PC_MAPPING,RIGHT($C93,1),MATCH($E$2,'Data by Building Type'!$D$22:$F$22,0))=\"Yes\",1,0)*\n(BG$10*OFFSET('Efficiency Distributions'!$D$10,MATCH($C93,'Efficiency Distributions'!$C$9:$C$87,0)+RIGHT($E99),0)\n+BG$11*OFFSET('Efficiency Distributions'!$E$10,MATCH($C93,'Efficiency Distributions'!$C$9:$C$87,0)+RIGHT($E99),0))\n/SUM(BG$10:BG$11)","v":0}]
[null,null,null,null,"EL3",{"$f":"IF(INDEX(PC_MAPPING,RIGHT($C93,1),MATCH($E$2,'Data by Building Type'!$D$22:$F$22,0))=\"Yes\",1,0)*\n(F$10*OFFSET('Efficiency Distributions'!$D$10,MATCH($C93,'Efficiency Distributions'!$C$9:$C$87,0)+RIGHT($E100),0)\n+F$11*OFFSET('Efficiency Distributions'!$E$10,MATCH($C93,'Efficiency Distributions'!$C$9:$C$87,0)+RIGHT($E100),0))\n/SUM(F$10:F$11)","v":0},{"$f":"IF(INDEX(PC_MAPPING,RIGHT($C93,1),MATCH($E$2,'Data by Building Type'!$D$22:$F$22,0))=\"Yes\",1,0)*\n(G$10*OFFSET('Efficiency Distributions'!$D$10,MATCH($C93,'Efficiency Distributions'!$C$9:$C$87,0)+RIGHT($E100),0)\n+G$11*OFFSET('Efficiency Distributions'!$E$10,MATCH($C93,'Efficiency Distributions'!$C$9:$C$87,0)+RIGHT($E100),0))\n/SUM(G$10:G$11)","v":0},{"$f":"IF(INDEX(PC_MAPPING,RIGHT($C93,1),MATCH($E$2,'Data by Building Type'!$D$22:$F$22,0))=\"Yes\",1,0)*\n(H$10*OFFSET('Efficiency Distributions'!$D$10,MATCH($C93,'Efficiency Distributions'!$C$9:$C$87,0)+RIGHT($E100),0)\n+H$11*OFFSET('Efficiency Distributions'!$E$10,MATCH($C93,'Efficiency Distributions'!$C$9:$C$87,0)+RIGHT($E100),0))\n/SUM(H$10:H$11)","v":0},{"$f":"IF(INDEX(PC_MAPPING,RIGHT($C93,1),MATCH($E$2,'Data by Building Type'!$D$22:$F$22,0))=\"Yes\",1,0)*\n(I$10*OFFSET('Efficiency Distributions'!$D$10,MATCH($C93,'Efficiency Distributions'!$C$9:$C$87,0)+RIGHT($E100),0)\n+I$11*OFFSET('Efficiency Distributions'!$E$10,MATCH($C93,'Efficiency Distributions'!$C$9:$C$87,0)+RIGHT($E100),0))\n/SUM(I$10:I$11)","v":0},{"$f":"IF(INDEX(PC_MAPPING,RIGHT($C93,1),MATCH($E$2,'Data by Building Type'!$D$22:$F$22,0))=\"Yes\",1,0)*\n(J$10*OFFSET('Efficiency Distributions'!$D$10,MATCH($C93,'Efficiency Distributions'!$C$9:$C$87,0)+RIGHT($E100),0)\n+J$11*OFFSET('Efficiency Distributions'!$E$10,MATCH($C93,'Efficiency Distributions'!$C$9:$C$87,0)+RIGHT($E100),0))\n/SUM(J$10:J$11)","v":0},{"$f":"IF(INDEX(PC_MAPPING,RIGHT($C93,1),MATCH($E$2,'Data by Building Type'!$D$22:$F$22,0))=\"Yes\",1,0)*\n(K$10*OFFSET('Efficiency Distributions'!$D$10,MATCH($C93,'Efficiency Distributions'!$C$9:$C$87,0)+RIGHT($E100),0)\n+K$11*OFFSET('Efficiency Distributions'!$E$10,MATCH($C93,'Efficiency Distributions'!$C$9:$C$87,0)+RIGHT($E100),0))\n/SUM(K$10:K$11)","v":0},{"$f":"IF(INDEX(PC_MAPPING,RIGHT($C93,1),MATCH($E$2,'Data by Building Type'!$D$22:$F$22,0))=\"Yes\",1,0)*\n(L$10*OFFSET('Efficiency Distributions'!$D$10,MATCH($C93,'Efficiency Distributions'!$C$9:$C$87,0)+RIGHT($E100),0)\n+L$11*OFFSET('Efficiency Distributions'!$E$10,MATCH($C93,'Efficiency Distributions'!$C$9:$C$87,0)+RIGHT($E100),0))\n/SUM(L$10:L$11)","v":0},{"$f":"IF(INDEX(PC_MAPPING,RIGHT($C93,1),MATCH($E$2,'Data by Building Type'!$D$22:$F$22,0))=\"Yes\",1,0)*\n(M$10*OFFSET('Efficiency Distributions'!$D$10,MATCH($C93,'Efficiency Distributions'!$C$9:$C$87,0)+RIGHT($E100),0)\n+M$11*OFFSET('Efficiency Distributions'!$E$10,MATCH($C93,'Efficiency Distributions'!$C$9:$C$87,0)+RIGHT($E100),0))\n/SUM(M$10:M$11)","v":0},{"$f":"IF(INDEX(PC_MAPPING,RIGHT($C93,1),MATCH($E$2,'Data by Building Type'!$D$22:$F$22,0))=\"Yes\",1,0)*\n(N$10*OFFSET('Efficiency Distributions'!$D$10,MATCH($C93,'Efficiency Distributions'!$C$9:$C$87,0)+RIGHT($E100),0)\n+N$11*OFFSET('Efficiency Distributions'!$E$10,MATCH($C93,'Efficiency Distributions'!$C$9:$C$87,0)+RIGHT($E100),0))\n/SUM(N$10:N$11)","v":0},{"$f":"IF(INDEX(PC_MAPPING,RIGHT($C93,1),MATCH($E$2,'Data by Building Type'!$D$22:$F$22,0))=\"Yes\",1,0)*\n(O$10*OFFSET('Efficiency Distributions'!$D$10,MATCH($C93,'Efficiency Distributions'!$C$9:$C$87,0)+RIGHT($E100),0)\n+O$11*OFFSET('Efficiency Distributions'!$E$10,MATCH($C93,'Efficiency Distributions'!$C$9:$C$87,0)+RIGHT($E100),0))\n/SUM(O$10:O$11)","v":0},{"$f":"IF(INDEX(PC_MAPPING,RIGHT($C93,1),MATCH($E$2,'Data by Building Type'!$D$22:$F$22,0))=\"Yes\",1,0)*\n(P$10*OFFSET('Efficiency Distributions'!$D$10,MATCH($C93,'Efficiency Distributions'!$C$9:$C$87,0)+RIGHT($E100),0)\n+P$11*OFFSET('Efficiency Distributions'!$E$10,MATCH($C93,'Efficiency Distributions'!$C$9:$C$87,0)+RIGHT($E100),0))\n/SUM(P$10:P$11)","v":0},{"$f":"IF(INDEX(PC_MAPPING,RIGHT($C93,1),MATCH($E$2,'Data by Building Type'!$D$22:$F$22,0))=\"Yes\",1,0)*\n(Q$10*OFFSET('Efficiency Distributions'!$D$10,MATCH($C93,'Efficiency Distributions'!$C$9:$C$87,0)+RIGHT($E100),0)\n+Q$11*OFFSET('Efficiency Distributions'!$E$10,MATCH($C93,'Efficiency Distributions'!$C$9:$C$87,0)+RIGHT($E100),0))\n/SUM(Q$10:Q$11)","v":0},{"$f":"IF(INDEX(PC_MAPPING,RIGHT($C93,1),MATCH($E$2,'Data by Building Type'!$D$22:$F$22,0))=\"Yes\",1,0)*\n(R$10*OFFSET('Efficiency Distributions'!$D$10,MATCH($C93,'Efficiency Distributions'!$C$9:$C$87,0)+RIGHT($E100),0)\n+R$11*OFFSET('Efficiency Distributions'!$E$10,MATCH($C93,'Efficiency Distributions'!$C$9:$C$87,0)+RIGHT($E100),0))\n/SUM(R$10:R$11)","v":0},{"$f":"IF(INDEX(PC_MAPPING,RIGHT($C93,1),MATCH($E$2,'Data by Building Type'!$D$22:$F$22,0))=\"Yes\",1,0)*\n(S$10*OFFSET('Efficiency Distributions'!$D$10,MATCH($C93,'Efficiency Distributions'!$C$9:$C$87,0)+RIGHT($E100),0)\n+S$11*OFFSET('Efficiency Distributions'!$E$10,MATCH($C93,'Efficiency Distributions'!$C$9:$C$87,0)+RIGHT($E100),0))\n/SUM(S$10:S$11)","v":0},{"$f":"IF(INDEX(PC_MAPPING,RIGHT($C93,1),MATCH($E$2,'Data by Building Type'!$D$22:$F$22,0))=\"Yes\",1,0)*\n(T$10*OFFSET('Efficiency Distributions'!$D$10,MATCH($C93,'Efficiency Distributions'!$C$9:$C$87,0)+RIGHT($E100),0)\n+T$11*OFFSET('Efficiency Distributions'!$E$10,MATCH($C93,'Efficiency Distributions'!$C$9:$C$87,0)+RIGHT($E100),0))\n/SUM(T$10:T$11)","v":0},{"$f":"IF(INDEX(PC_MAPPING,RIGHT($C93,1),MATCH($E$2,'Data by Building Type'!$D$22:$F$22,0))=\"Yes\",1,0)*\n(U$10*OFFSET('Efficiency Distributions'!$D$10,MATCH($C93,'Efficiency Distributions'!$C$9:$C$87,0)+RIGHT($E100),0)\n+U$11*OFFSET('Efficiency Distributions'!$E$10,MATCH($C93,'Efficiency Distributions'!$C$9:$C$87,0)+RIGHT($E100),0))\n/SUM(U$10:U$11)","v":0},{"$f":"IF(INDEX(PC_MAPPING,RIGHT($C93,1),MATCH($E$2,'Data by Building Type'!$D$22:$F$22,0))=\"Yes\",1,0)*\n(V$10*OFFSET('Efficiency Distributions'!$D$10,MATCH($C93,'Efficiency Distributions'!$C$9:$C$87,0)+RIGHT($E100),0)\n+V$11*OFFSET('Efficiency Distributions'!$E$10,MATCH($C93,'Efficiency Distributions'!$C$9:$C$87,0)+RIGHT($E100),0))\n/SUM(V$10:V$11)","v":0},{"$f":"IF(INDEX(PC_MAPPING,RIGHT($C93,1),MATCH($E$2,'Data by Building Type'!$D$22:$F$22,0))=\"Yes\",1,0)*\n(W$10*OFFSET('Efficiency Distributions'!$D$10,MATCH($C93,'Efficiency Distributions'!$C$9:$C$87,0)+RIGHT($E100),0)\n+W$11*OFFSET('Efficiency Distributions'!$E$10,MATCH($C93,'Efficiency Distributions'!$C$9:$C$87,0)+RIGHT($E100),0))\n/SUM(W$10:W$11)","v":0},{"$f":"IF(INDEX(PC_MAPPING,RIGHT($C93,1),MATCH($E$2,'Data by Building Type'!$D$22:$F$22,0))=\"Yes\",1,0)*\n(X$10*OFFSET('Efficiency Distributions'!$D$10,MATCH($C93,'Efficiency Distributions'!$C$9:$C$87,0)+RIGHT($E100),0)\n+X$11*OFFSET('Efficiency Distributions'!$E$10,MATCH($C93,'Efficiency Distributions'!$C$9:$C$87,0)+RIGHT($E100),0))\n/SUM(X$10:X$11)","v":0},{"$f":"IF(INDEX(PC_MAPPING,RIGHT($C93,1),MATCH($E$2,'Data by Building Type'!$D$22:$F$22,0))=\"Yes\",1,0)*\n(Y$10*OFFSET('Efficiency Distributions'!$D$10,MATCH($C93,'Efficiency Distributions'!$C$9:$C$87,0)+RIGHT($E100),0)\n+Y$11*OFFSET('Efficiency Distributions'!$E$10,MATCH($C93,'Efficiency Distributions'!$C$9:$C$87,0)+RIGHT($E100),0))\n/SUM(Y$10:Y$11)","v":0},{"$f":"IF(INDEX(PC_MAPPING,RIGHT($C93,1),MATCH($E$2,'Data by Building Type'!$D$22:$F$22,0))=\"Yes\",1,0)*\n(Z$10*OFFSET('Efficiency Distributions'!$D$10,MATCH($C93,'Efficiency Distributions'!$C$9:$C$87,0)+RIGHT($E100),0)\n+Z$11*OFFSET('Efficiency Distributions'!$E$10,MATCH($C93,'Efficiency Distributions'!$C$9:$C$87,0)+RIGHT($E100),0))\n/SUM(Z$10:Z$11)","v":0},{"$f":"IF(INDEX(PC_MAPPING,RIGHT($C93,1),MATCH($E$2,'Data by Building Type'!$D$22:$F$22,0))=\"Yes\",1,0)*\n(AA$10*OFFSET('Efficiency Distributions'!$D$10,MATCH($C93,'Efficiency Distributions'!$C$9:$C$87,0)+RIGHT($E100),0)\n+AA$11*OFFSET('Efficiency Distributions'!$E$10,MATCH($C93,'Efficiency Distributions'!$C$9:$C$87,0)+RIGHT($E100),0))\n/SUM(AA$10:AA$11)","v":0},{"$f":"IF(INDEX(PC_MAPPING,RIGHT($C93,1),MATCH($E$2,'Data by Building Type'!$D$22:$F$22,0))=\"Yes\",1,0)*\n(AB$10*OFFSET('Efficiency Distributions'!$D$10,MATCH($C93,'Efficiency Distributions'!$C$9:$C$87,0)+RIGHT($E100),0)\n+AB$11*OFFSET('Efficiency Distributions'!$E$10,MATCH($C93,'Efficiency Distributions'!$C$9:$C$87,0)+RIGHT($E100),0))\n/SUM(AB$10:AB$11)","v":0},{"$f":"IF(INDEX(PC_MAPPING,RIGHT($C93,1),MATCH($E$2,'Data by Building Type'!$D$22:$F$22,0))=\"Yes\",1,0)*\n(AC$10*OFFSET('Efficiency Distributions'!$D$10,MATCH($C93,'Efficiency Distributions'!$C$9:$C$87,0)+RIGHT($E100),0)\n+AC$11*OFFSET('Efficiency Distributions'!$E$10,MATCH($C93,'Efficiency Distributions'!$C$9:$C$87,0)+RIGHT($E100),0))\n/SUM(AC$10:AC$11)","v":0},{"$f":"IF(INDEX(PC_MAPPING,RIGHT($C93,1),MATCH($E$2,'Data by Building Type'!$D$22:$F$22,0))=\"Yes\",1,0)*\n(AD$10*OFFSET('Efficiency Distributions'!$D$10,MATCH($C93,'Efficiency Distributions'!$C$9:$C$87,0)+RIGHT($E100),0)\n+AD$11*OFFSET('Efficiency Distributions'!$E$10,MATCH($C93,'Efficiency Distributions'!$C$9:$C$87,0)+RIGHT($E100),0))\n/SUM(AD$10:AD$11)","v":0},{"$f":"IF(INDEX(PC_MAPPING,RIGHT($C93,1),MATCH($E$2,'Data by Building Type'!$D$22:$F$22,0))=\"Yes\",1,0)*\n(AE$10*OFFSET('Efficiency Distributions'!$D$10,MATCH($C93,'Efficiency Distributions'!$C$9:$C$87,0)+RIGHT($E100),0)\n+AE$11*OFFSET('Efficiency Distributions'!$E$10,MATCH($C93,'Efficiency Distributions'!$C$9:$C$87,0)+RIGHT($E100),0))\n/SUM(AE$10:AE$11)","v":0},{"$f":"IF(INDEX(PC_MAPPING,RIGHT($C93,1),MATCH($E$2,'Data by Building Type'!$D$22:$F$22,0))=\"Yes\",1,0)*\n(AF$10*OFFSET('Efficiency Distributions'!$D$10,MATCH($C93,'Efficiency Distributions'!$C$9:$C$87,0)+RIGHT($E100),0)\n+AF$11*OFFSET('Efficiency Distributions'!$E$10,MATCH($C93,'Efficiency Distributions'!$C$9:$C$87,0)+RIGHT($E100),0))\n/SUM(AF$10:AF$11)","v":0},{"$f":"IF(INDEX(PC_MAPPING,RIGHT($C93,1),MATCH($E$2,'Data by Building Type'!$D$22:$F$22,0))=\"Yes\",1,0)*\n(AG$10*OFFSET('Efficiency Distributions'!$D$10,MATCH($C93,'Efficiency Distributions'!$C$9:$C$87,0)+RIGHT($E100),0)\n+AG$11*OFFSET('Efficiency Distributions'!$E$10,MATCH($C93,'Efficiency Distributions'!$C$9:$C$87,0)+RIGHT($E100),0))\n/SUM(AG$10:AG$11)","v":0},{"$f":"IF(INDEX(PC_MAPPING,RIGHT($C93,1),MATCH($E$2,'Data by Building Type'!$D$22:$F$22,0))=\"Yes\",1,0)*\n(AH$10*OFFSET('Efficiency Distributions'!$D$10,MATCH($C93,'Efficiency Distributions'!$C$9:$C$87,0)+RIGHT($E100),0)\n+AH$11*OFFSET('Efficiency Distributions'!$E$10,MATCH($C93,'Efficiency Distributions'!$C$9:$C$87,0)+RIGHT($E100),0))\n/SUM(AH$10:AH$11)","v":0},{"$f":"IF(INDEX(PC_MAPPING,RIGHT($C93,1),MATCH($E$2,'Data by Building Type'!$D$22:$F$22,0))=\"Yes\",1,0)*\n(AI$10*OFFSET('Efficiency Distributions'!$D$10,MATCH($C93,'Efficiency Distributions'!$C$9:$C$87,0)+RIGHT($E100),0)\n+AI$11*OFFSET('Efficiency Distributions'!$E$10,MATCH($C93,'Efficiency Distributions'!$C$9:$C$87,0)+RIGHT($E100),0))\n/SUM(AI$10:AI$11)","v":0},{"$f":"IF(INDEX(PC_MAPPING,RIGHT($C93,1),MATCH($E$2,'Data by Building Type'!$D$22:$F$22,0))=\"Yes\",1,0)*\n(AJ$10*OFFSET('Efficiency Distributions'!$D$10,MATCH($C93,'Efficiency Distributions'!$C$9:$C$87,0)+RIGHT($E100),0)\n+AJ$11*OFFSET('Efficiency Distributions'!$E$10,MATCH($C93,'Efficiency Distributions'!$C$9:$C$87,0)+RIGHT($E100),0))\n/SUM(AJ$10:AJ$11)","v":0},{"$f":"IF(INDEX(PC_MAPPING,RIGHT($C93,1),MATCH($E$2,'Data by Building Type'!$D$22:$F$22,0))=\"Yes\",1,0)*\n(AK$10*OFFSET('Efficiency Distributions'!$D$10,MATCH($C93,'Efficiency Distributions'!$C$9:$C$87,0)+RIGHT($E100),0)\n+AK$11*OFFSET('Efficiency Distributions'!$E$10,MATCH($C93,'Efficiency Distributions'!$C$9:$C$87,0)+RIGHT($E100),0))\n/SUM(AK$10:AK$11)","v":0},{"$f":"IF(INDEX(PC_MAPPING,RIGHT($C93,1),MATCH($E$2,'Data by Building Type'!$D$22:$F$22,0))=\"Yes\",1,0)*\n(AL$10*OFFSET('Efficiency Distributions'!$D$10,MATCH($C93,'Efficiency Distributions'!$C$9:$C$87,0)+RIGHT($E100),0)\n+AL$11*OFFSET('Efficiency Distributions'!$E$10,MATCH($C93,'Efficiency Distributions'!$C$9:$C$87,0)+RIGHT($E100),0))\n/SUM(AL$10:AL$11)","v":0},{"$f":"IF(INDEX(PC_MAPPING,RIGHT($C93,1),MATCH($E$2,'Data by Building Type'!$D$22:$F$22,0))=\"Yes\",1,0)*\n(AM$10*OFFSET('Efficiency Distributions'!$D$10,MATCH($C93,'Efficiency Distributions'!$C$9:$C$87,0)+RIGHT($E100),0)\n+AM$11*OFFSET('Efficiency Distributions'!$E$10,MATCH($C93,'Efficiency Distributions'!$C$9:$C$87,0)+RIGHT($E100),0))\n/SUM(AM$10:AM$11)","v":0},{"$f":"IF(INDEX(PC_MAPPING,RIGHT($C93,1),MATCH($E$2,'Data by Building Type'!$D$22:$F$22,0))=\"Yes\",1,0)*\n(AN$10*OFFSET('Efficiency Distributions'!$D$10,MATCH($C93,'Efficiency Distributions'!$C$9:$C$87,0)+RIGHT($E100),0)\n+AN$11*OFFSET('Efficiency Distributions'!$E$10,MATCH($C93,'Efficiency Distributions'!$C$9:$C$87,0)+RIGHT($E100),0))\n/SUM(AN$10:AN$11)","v":0},{"$f":"IF(INDEX(PC_MAPPING,RIGHT($C93,1),MATCH($E$2,'Data by Building Type'!$D$22:$F$22,0))=\"Yes\",1,0)*\n(AO$10*OFFSET('Efficiency Distributions'!$D$10,MATCH($C93,'Efficiency Distributions'!$C$9:$C$87,0)+RIGHT($E100),0)\n+AO$11*OFFSET('Efficiency Distributions'!$E$10,MATCH($C93,'Efficiency Distributions'!$C$9:$C$87,0)+RIGHT($E100),0))\n/SUM(AO$10:AO$11)","v":0},{"$f":"IF(INDEX(PC_MAPPING,RIGHT($C93,1),MATCH($E$2,'Data by Building Type'!$D$22:$F$22,0))=\"Yes\",1,0)*\n(AP$10*OFFSET('Efficiency Distributions'!$D$10,MATCH($C93,'Efficiency Distributions'!$C$9:$C$87,0)+RIGHT($E100),0)\n+AP$11*OFFSET('Efficiency Distributions'!$E$10,MATCH($C93,'Efficiency Distributions'!$C$9:$C$87,0)+RIGHT($E100),0))\n/SUM(AP$10:AP$11)","v":0},{"$f":"IF(INDEX(PC_MAPPING,RIGHT($C93,1),MATCH($E$2,'Data by Building Type'!$D$22:$F$22,0))=\"Yes\",1,0)*\n(AQ$10*OFFSET('Efficiency Distributions'!$D$10,MATCH($C93,'Efficiency Distributions'!$C$9:$C$87,0)+RIGHT($E100),0)\n+AQ$11*OFFSET('Efficiency Distributions'!$E$10,MATCH($C93,'Efficiency Distributions'!$C$9:$C$87,0)+RIGHT($E100),0))\n/SUM(AQ$10:AQ$11)","v":0},{"$f":"IF(INDEX(PC_MAPPING,RIGHT($C93,1),MATCH($E$2,'Data by Building Type'!$D$22:$F$22,0))=\"Yes\",1,0)*\n(AR$10*OFFSET('Efficiency Distributions'!$D$10,MATCH($C93,'Efficiency Distributions'!$C$9:$C$87,0)+RIGHT($E100),0)\n+AR$11*OFFSET('Efficiency Distributions'!$E$10,MATCH($C93,'Efficiency Distributions'!$C$9:$C$87,0)+RIGHT($E100),0))\n/SUM(AR$10:AR$11)","v":0},{"$f":"IF(INDEX(PC_MAPPING,RIGHT($C93,1),MATCH($E$2,'Data by Building Type'!$D$22:$F$22,0))=\"Yes\",1,0)*\n(AS$10*OFFSET('Efficiency Distributions'!$D$10,MATCH($C93,'Efficiency Distributions'!$C$9:$C$87,0)+RIGHT($E100),0)\n+AS$11*OFFSET('Efficiency Distributions'!$E$10,MATCH($C93,'Efficiency Distributions'!$C$9:$C$87,0)+RIGHT($E100),0))\n/SUM(AS$10:AS$11)","v":0},{"$f":"IF(INDEX(PC_MAPPING,RIGHT($C93,1),MATCH($E$2,'Data by Building Type'!$D$22:$F$22,0))=\"Yes\",1,0)*\n(AT$10*OFFSET('Efficiency Distributions'!$D$10,MATCH($C93,'Efficiency Distributions'!$C$9:$C$87,0)+RIGHT($E100),0)\n+AT$11*OFFSET('Efficiency Distributions'!$E$10,MATCH($C93,'Efficiency Distributions'!$C$9:$C$87,0)+RIGHT($E100),0))\n/SUM(AT$10:AT$11)","v":0},{"$f":"IF(INDEX(PC_MAPPING,RIGHT($C93,1),MATCH($E$2,'Data by Building Type'!$D$22:$F$22,0))=\"Yes\",1,0)*\n(AU$10*OFFSET('Efficiency Distributions'!$D$10,MATCH($C93,'Efficiency Distributions'!$C$9:$C$87,0)+RIGHT($E100),0)\n+AU$11*OFFSET('Efficiency Distributions'!$E$10,MATCH($C93,'Efficiency Distributions'!$C$9:$C$87,0)+RIGHT($E100),0))\n/SUM(AU$10:AU$11)","v":0},{"$f":"IF(INDEX(PC_MAPPING,RIGHT($C93,1),MATCH($E$2,'Data by Building Type'!$D$22:$F$22,0))=\"Yes\",1,0)*\n(AV$10*OFFSET('Efficiency Distributions'!$D$10,MATCH($C93,'Efficiency Distributions'!$C$9:$C$87,0)+RIGHT($E100),0)\n+AV$11*OFFSET('Efficiency Distributions'!$E$10,MATCH($C93,'Efficiency Distributions'!$C$9:$C$87,0)+RIGHT($E100),0))\n/SUM(AV$10:AV$11)","v":0},{"$f":"IF(INDEX(PC_MAPPING,RIGHT($C93,1),MATCH($E$2,'Data by Building Type'!$D$22:$F$22,0))=\"Yes\",1,0)*\n(AW$10*OFFSET('Efficiency Distributions'!$D$10,MATCH($C93,'Efficiency Distributions'!$C$9:$C$87,0)+RIGHT($E100),0)\n+AW$11*OFFSET('Efficiency Distributions'!$E$10,MATCH($C93,'Efficiency Distributions'!$C$9:$C$87,0)+RIGHT($E100),0))\n/SUM(AW$10:AW$11)","v":0},{"$f":"IF(INDEX(PC_MAPPING,RIGHT($C93,1),MATCH($E$2,'Data by Building Type'!$D$22:$F$22,0))=\"Yes\",1,0)*\n(AX$10*OFFSET('Efficiency Distributions'!$D$10,MATCH($C93,'Efficiency Distributions'!$C$9:$C$87,0)+RIGHT($E100),0)\n+AX$11*OFFSET('Efficiency Distributions'!$E$10,MATCH($C93,'Efficiency Distributions'!$C$9:$C$87,0)+RIGHT($E100),0))\n/SUM(AX$10:AX$11)","v":0},{"$f":"IF(INDEX(PC_MAPPING,RIGHT($C93,1),MATCH($E$2,'Data by Building Type'!$D$22:$F$22,0))=\"Yes\",1,0)*\n(AY$10*OFFSET('Efficiency Distributions'!$D$10,MATCH($C93,'Efficiency Distributions'!$C$9:$C$87,0)+RIGHT($E100),0)\n+AY$11*OFFSET('Efficiency Distributions'!$E$10,MATCH($C93,'Efficiency Distributions'!$C$9:$C$87,0)+RIGHT($E100),0))\n/SUM(AY$10:AY$11)","v":0},{"$f":"IF(INDEX(PC_MAPPING,RIGHT($C93,1),MATCH($E$2,'Data by Building Type'!$D$22:$F$22,0))=\"Yes\",1,0)*\n(AZ$10*OFFSET('Efficiency Distributions'!$D$10,MATCH($C93,'Efficiency Distributions'!$C$9:$C$87,0)+RIGHT($E100),0)\n+AZ$11*OFFSET('Efficiency Distributions'!$E$10,MATCH($C93,'Efficiency Distributions'!$C$9:$C$87,0)+RIGHT($E100),0))\n/SUM(AZ$10:AZ$11)","v":0},{"$f":"IF(INDEX(PC_MAPPING,RIGHT($C93,1),MATCH($E$2,'Data by Building Type'!$D$22:$F$22,0))=\"Yes\",1,0)*\n(BA$10*OFFSET('Efficiency Distributions'!$D$10,MATCH($C93,'Efficiency Distributions'!$C$9:$C$87,0)+RIGHT($E100),0)\n+BA$11*OFFSET('Efficiency Distributions'!$E$10,MATCH($C93,'Efficiency Distributions'!$C$9:$C$87,0)+RIGHT($E100),0))\n/SUM(BA$10:BA$11)","v":0},{"$f":"IF(INDEX(PC_MAPPING,RIGHT($C93,1),MATCH($E$2,'Data by Building Type'!$D$22:$F$22,0))=\"Yes\",1,0)*\n(BB$10*OFFSET('Efficiency Distributions'!$D$10,MATCH($C93,'Efficiency Distributions'!$C$9:$C$87,0)+RIGHT($E100),0)\n+BB$11*OFFSET('Efficiency Distributions'!$E$10,MATCH($C93,'Efficiency Distributions'!$C$9:$C$87,0)+RIGHT($E100),0))\n/SUM(BB$10:BB$11)","v":0},{"$f":"IF(INDEX(PC_MAPPING,RIGHT($C93,1),MATCH($E$2,'Data by Building Type'!$D$22:$F$22,0))=\"Yes\",1,0)*\n(BC$10*OFFSET('Efficiency Distributions'!$D$10,MATCH($C93,'Efficiency Distributions'!$C$9:$C$87,0)+RIGHT($E100),0)\n+BC$11*OFFSET('Efficiency Distributions'!$E$10,MATCH($C93,'Efficiency Distributions'!$C$9:$C$87,0)+RIGHT($E100),0))\n/SUM(BC$10:BC$11)","v":0},{"$f":"IF(INDEX(PC_MAPPING,RIGHT($C93,1),MATCH($E$2,'Data by Building Type'!$D$22:$F$22,0))=\"Yes\",1,0)*\n(BD$10*OFFSET('Efficiency Distributions'!$D$10,MATCH($C93,'Efficiency Distributions'!$C$9:$C$87,0)+RIGHT($E100),0)\n+BD$11*OFFSET('Efficiency Distributions'!$E$10,MATCH($C93,'Efficiency Distributions'!$C$9:$C$87,0)+RIGHT($E100),0))\n/SUM(BD$10:BD$11)","v":0},{"$f":"IF(INDEX(PC_MAPPING,RIGHT($C93,1),MATCH($E$2,'Data by Building Type'!$D$22:$F$22,0))=\"Yes\",1,0)*\n(BE$10*OFFSET('Efficiency Distributions'!$D$10,MATCH($C93,'Efficiency Distributions'!$C$9:$C$87,0)+RIGHT($E100),0)\n+BE$11*OFFSET('Efficiency Distributions'!$E$10,MATCH($C93,'Efficiency Distributions'!$C$9:$C$87,0)+RIGHT($E100),0))\n/SUM(BE$10:BE$11)","v":0},{"$f":"IF(INDEX(PC_MAPPING,RIGHT($C93,1),MATCH($E$2,'Data by Building Type'!$D$22:$F$22,0))=\"Yes\",1,0)*\n(BF$10*OFFSET('Efficiency Distributions'!$D$10,MATCH($C93,'Efficiency Distributions'!$C$9:$C$87,0)+RIGHT($E100),0)\n+BF$11*OFFSET('Efficiency Distributions'!$E$10,MATCH($C93,'Efficiency Distributions'!$C$9:$C$87,0)+RIGHT($E100),0))\n/SUM(BF$10:BF$11)","v":0},{"$f":"IF(INDEX(PC_MAPPING,RIGHT($C93,1),MATCH($E$2,'Data by Building Type'!$D$22:$F$22,0))=\"Yes\",1,0)*\n(BG$10*OFFSET('Efficiency Distributions'!$D$10,MATCH($C93,'Efficiency Distributions'!$C$9:$C$87,0)+RIGHT($E100),0)\n+BG$11*OFFSET('Efficiency Distributions'!$E$10,MATCH($C93,'Efficiency Distributions'!$C$9:$C$87,0)+RIGHT($E100),0))\n/SUM(BG$10:BG$11)","v":0}]
[null,null,null,null,"EL4",{"$f":"IF(INDEX(PC_MAPPING,RIGHT($C93,1),MATCH($E$2,'Data by Building Type'!$D$22:$F$22,0))=\"Yes\",1,0)*\n(F$10*OFFSET('Efficiency Distributions'!$D$10,MATCH($C93,'Efficiency Distributions'!$C$9:$C$87,0)+RIGHT($E101),0)\n+F$11*OFFSET('Efficiency Distributions'!$E$10,MATCH($C93,'Efficiency Distributions'!$C$9:$C$87,0)+RIGHT($E101),0))\n/SUM(F$10:F$11)","v":0},{"$f":"IF(INDEX(PC_MAPPING,RIGHT($C93,1),MATCH($E$2,'Data by Building Type'!$D$22:$F$22,0))=\"Yes\",1,0)*\n(G$10*OFFSET('Efficiency Distributions'!$D$10,MATCH($C93,'Efficiency Distributions'!$C$9:$C$87,0)+RIGHT($E101),0)\n+G$11*OFFSET('Efficiency Distributions'!$E$10,MATCH($C93,'Efficiency Distributions'!$C$9:$C$87,0)+RIGHT($E101),0))\n/SUM(G$10:G$11)","v":0},{"$f":"IF(INDEX(PC_MAPPING,RIGHT($C93,1),MATCH($E$2,'Data by Building Type'!$D$22:$F$22,0))=\"Yes\",1,0)*\n(H$10*OFFSET('Efficiency Distributions'!$D$10,MATCH($C93,'Efficiency Distributions'!$C$9:$C$87,0)+RIGHT($E101),0)\n+H$11*OFFSET('Efficiency Distributions'!$E$10,MATCH($C93,'Efficiency Distributions'!$C$9:$C$87,0)+RIGHT($E101),0))\n/SUM(H$10:H$11)","v":0},{"$f":"IF(INDEX(PC_MAPPING,RIGHT($C93,1),MATCH($E$2,'Data by Building Type'!$D$22:$F$22,0))=\"Yes\",1,0)*\n(I$10*OFFSET('Efficiency Distributions'!$D$10,MATCH($C93,'Efficiency Distributions'!$C$9:$C$87,0)+RIGHT($E101),0)\n+I$11*OFFSET('Efficiency Distributions'!$E$10,MATCH($C93,'Efficiency Distributions'!$C$9:$C$87,0)+RIGHT($E101),0))\n/SUM(I$10:I$11)","v":0},{"$f":"IF(INDEX(PC_MAPPING,RIGHT($C93,1),MATCH($E$2,'Data by Building Type'!$D$22:$F$22,0))=\"Yes\",1,0)*\n(J$10*OFFSET('Efficiency Distributions'!$D$10,MATCH($C93,'Efficiency Distributions'!$C$9:$C$87,0)+RIGHT($E101),0)\n+J$11*OFFSET('Efficiency Distributions'!$E$10,MATCH($C93,'Efficiency Distributions'!$C$9:$C$87,0)+RIGHT($E101),0))\n/SUM(J$10:J$11)","v":0},{"$f":"IF(INDEX(PC_MAPPING,RIGHT($C93,1),MATCH($E$2,'Data by Building Type'!$D$22:$F$22,0))=\"Yes\",1,0)*\n(K$10*OFFSET('Efficiency Distributions'!$D$10,MATCH($C93,'Efficiency Distributions'!$C$9:$C$87,0)+RIGHT($E101),0)\n+K$11*OFFSET('Efficiency Distributions'!$E$10,MATCH($C93,'Efficiency Distributions'!$C$9:$C$87,0)+RIGHT($E101),0))\n/SUM(K$10:K$11)","v":0},{"$f":"IF(INDEX(PC_MAPPING,RIGHT($C93,1),MATCH($E$2,'Data by Building Type'!$D$22:$F$22,0))=\"Yes\",1,0)*\n(L$10*OFFSET('Efficiency Distributions'!$D$10,MATCH($C93,'Efficiency Distributions'!$C$9:$C$87,0)+RIGHT($E101),0)\n+L$11*OFFSET('Efficiency Distributions'!$E$10,MATCH($C93,'Efficiency Distributions'!$C$9:$C$87,0)+RIGHT($E101),0))\n/SUM(L$10:L$11)","v":0},{"$f":"IF(INDEX(PC_MAPPING,RIGHT($C93,1),MATCH($E$2,'Data by Building Type'!$D$22:$F$22,0))=\"Yes\",1,0)*\n(M$10*OFFSET('Efficiency Distributions'!$D$10,MATCH($C93,'Efficiency Distributions'!$C$9:$C$87,0)+RIGHT($E101),0)\n+M$11*OFFSET('Efficiency Distributions'!$E$10,MATCH($C93,'Efficiency Distributions'!$C$9:$C$87,0)+RIGHT($E101),0))\n/SUM(M$10:M$11)","v":0},{"$f":"IF(INDEX(PC_MAPPING,RIGHT($C93,1),MATCH($E$2,'Data by Building Type'!$D$22:$F$22,0))=\"Yes\",1,0)*\n(N$10*OFFSET('Efficiency Distributions'!$D$10,MATCH($C93,'Efficiency Distributions'!$C$9:$C$87,0)+RIGHT($E101),0)\n+N$11*OFFSET('Efficiency Distributions'!$E$10,MATCH($C93,'Efficiency Distributions'!$C$9:$C$87,0)+RIGHT($E101),0))\n/SUM(N$10:N$11)","v":0},{"$f":"IF(INDEX(PC_MAPPING,RIGHT($C93,1),MATCH($E$2,'Data by Building Type'!$D$22:$F$22,0))=\"Yes\",1,0)*\n(O$10*OFFSET('Efficiency Distributions'!$D$10,MATCH($C93,'Efficiency Distributions'!$C$9:$C$87,0)+RIGHT($E101),0)\n+O$11*OFFSET('Efficiency Distributions'!$E$10,MATCH($C93,'Efficiency Distributions'!$C$9:$C$87,0)+RIGHT($E101),0))\n/SUM(O$10:O$11)","v":0},{"$f":"IF(INDEX(PC_MAPPING,RIGHT($C93,1),MATCH($E$2,'Data by Building Type'!$D$22:$F$22,0))=\"Yes\",1,0)*\n(P$10*OFFSET('Efficiency Distributions'!$D$10,MATCH($C93,'Efficiency Distributions'!$C$9:$C$87,0)+RIGHT($E101),0)\n+P$11*OFFSET('Efficiency Distributions'!$E$10,MATCH($C93,'Efficiency Distributions'!$C$9:$C$87,0)+RIGHT($E101),0))\n/SUM(P$10:P$11)","v":0},{"$f":"IF(INDEX(PC_MAPPING,RIGHT($C93,1),MATCH($E$2,'Data by Building Type'!$D$22:$F$22,0))=\"Yes\",1,0)*\n(Q$10*OFFSET('Efficiency Distributions'!$D$10,MATCH($C93,'Efficiency Distributions'!$C$9:$C$87,0)+RIGHT($E101),0)\n+Q$11*OFFSET('Efficiency Distributions'!$E$10,MATCH($C93,'Efficiency Distributions'!$C$9:$C$87,0)+RIGHT($E101),0))\n/SUM(Q$10:Q$11)","v":0},{"$f":"IF(INDEX(PC_MAPPING,RIGHT($C93,1),MATCH($E$2,'Data by Building Type'!$D$22:$F$22,0))=\"Yes\",1,0)*\n(R$10*OFFSET('Efficiency Distributions'!$D$10,MATCH($C93,'Efficiency Distributions'!$C$9:$C$87,0)+RIGHT($E101),0)\n+R$11*OFFSET('Efficiency Distributions'!$E$10,MATCH($C93,'Efficiency Distributions'!$C$9:$C$87,0)+RIGHT($E101),0))\n/SUM(R$10:R$11)","v":0},{"$f":"IF(INDEX(PC_MAPPING,RIGHT($C93,1),MATCH($E$2,'Data by Building Type'!$D$22:$F$22,0))=\"Yes\",1,0)*\n(S$10*OFFSET('Efficiency Distributions'!$D$10,MATCH($C93,'Efficiency Distributions'!$C$9:$C$87,0)+RIGHT($E101),0)\n+S$11*OFFSET('Efficiency Distributions'!$E$10,MATCH($C93,'Efficiency Distributions'!$C$9:$C$87,0)+RIGHT($E101),0))\n/SUM(S$10:S$11)","v":0},{"$f":"IF(INDEX(PC_MAPPING,RIGHT($C93,1),MATCH($E$2,'Data by Building Type'!$D$22:$F$22,0))=\"Yes\",1,0)*\n(T$10*OFFSET('Efficiency Distributions'!$D$10,MATCH($C93,'Efficiency Distributions'!$C$9:$C$87,0)+RIGHT($E101),0)\n+T$11*OFFSET('Efficiency Distributions'!$E$10,MATCH($C93,'Efficiency Distributions'!$C$9:$C$87,0)+RIGHT($E101),0))\n/SUM(T$10:T$11)","v":0},{"$f":"IF(INDEX(PC_MAPPING,RIGHT($C93,1),MATCH($E$2,'Data by Building Type'!$D$22:$F$22,0))=\"Yes\",1,0)*\n(U$10*OFFSET('Efficiency Distributions'!$D$10,MATCH($C93,'Efficiency Distributions'!$C$9:$C$87,0)+RIGHT($E101),0)\n+U$11*OFFSET('Efficiency Distributions'!$E$10,MATCH($C93,'Efficiency Distributions'!$C$9:$C$87,0)+RIGHT($E101),0))\n/SUM(U$10:U$11)","v":0},{"$f":"IF(INDEX(PC_MAPPING,RIGHT($C93,1),MATCH($E$2,'Data by Building Type'!$D$22:$F$22,0))=\"Yes\",1,0)*\n(V$10*OFFSET('Efficiency Distributions'!$D$10,MATCH($C93,'Efficiency Distributions'!$C$9:$C$87,0)+RIGHT($E101),0)\n+V$11*OFFSET('Efficiency Distributions'!$E$10,MATCH($C93,'Efficiency Distributions'!$C$9:$C$87,0)+RIGHT($E101),0))\n/SUM(V$10:V$11)","v":0},{"$f":"IF(INDEX(PC_MAPPING,RIGHT($C93,1),MATCH($E$2,'Data by Building Type'!$D$22:$F$22,0))=\"Yes\",1,0)*\n(W$10*OFFSET('Efficiency Distributions'!$D$10,MATCH($C93,'Efficiency Distributions'!$C$9:$C$87,0)+RIGHT($E101),0)\n+W$11*OFFSET('Efficiency Distributions'!$E$10,MATCH($C93,'Efficiency Distributions'!$C$9:$C$87,0)+RIGHT($E101),0))\n/SUM(W$10:W$11)","v":0},{"$f":"IF(INDEX(PC_MAPPING,RIGHT($C93,1),MATCH($E$2,'Data by Building Type'!$D$22:$F$22,0))=\"Yes\",1,0)*\n(X$10*OFFSET('Efficiency Distributions'!$D$10,MATCH($C93,'Efficiency Distributions'!$C$9:$C$87,0)+RIGHT($E101),0)\n+X$11*OFFSET('Efficiency Distributions'!$E$10,MATCH($C93,'Efficiency Distributions'!$C$9:$C$87,0)+RIGHT($E101),0))\n/SUM(X$10:X$11)","v":0},{"$f":"IF(INDEX(PC_MAPPING,RIGHT($C93,1),MATCH($E$2,'Data by Building Type'!$D$22:$F$22,0))=\"Yes\",1,0)*\n(Y$10*OFFSET('Efficiency Distributions'!$D$10,MATCH($C93,'Efficiency Distributions'!$C$9:$C$87,0)+RIGHT($E101),0)\n+Y$11*OFFSET('Efficiency Distributions'!$E$10,MATCH($C93,'Efficiency Distributions'!$C$9:$C$87,0)+RIGHT($E101),0))\n/SUM(Y$10:Y$11)","v":0},{"$f":"IF(INDEX(PC_MAPPING,RIGHT($C93,1),MATCH($E$2,'Data by Building Type'!$D$22:$F$22,0))=\"Yes\",1,0)*\n(Z$10*OFFSET('Efficiency Distributions'!$D$10,MATCH($C93,'Efficiency Distributions'!$C$9:$C$87,0)+RIGHT($E101),0)\n+Z$11*OFFSET('Efficiency Distributions'!$E$10,MATCH($C93,'Efficiency Distributions'!$C$9:$C$87,0)+RIGHT($E101),0))\n/SUM(Z$10:Z$11)","v":0},{"$f":"IF(INDEX(PC_MAPPING,RIGHT($C93,1),MATCH($E$2,'Data by Building Type'!$D$22:$F$22,0))=\"Yes\",1,0)*\n(AA$10*OFFSET('Efficiency Distributions'!$D$10,MATCH($C93,'Efficiency Distributions'!$C$9:$C$87,0)+RIGHT($E101),0)\n+AA$11*OFFSET('Efficiency Distributions'!$E$10,MATCH($C93,'Efficiency Distributions'!$C$9:$C$87,0)+RIGHT($E101),0))\n/SUM(AA$10:AA$11)","v":0},{"$f":"IF(INDEX(PC_MAPPING,RIGHT($C93,1),MATCH($E$2,'Data by Building Type'!$D$22:$F$22,0))=\"Yes\",1,0)*\n(AB$10*OFFSET('Efficiency Distributions'!$D$10,MATCH($C93,'Efficiency Distributions'!$C$9:$C$87,0)+RIGHT($E101),0)\n+AB$11*OFFSET('Efficiency Distributions'!$E$10,MATCH($C93,'Efficiency Distributions'!$C$9:$C$87,0)+RIGHT($E101),0))\n/SUM(AB$10:AB$11)","v":0},{"$f":"IF(INDEX(PC_MAPPING,RIGHT($C93,1),MATCH($E$2,'Data by Building Type'!$D$22:$F$22,0))=\"Yes\",1,0)*\n(AC$10*OFFSET('Efficiency Distributions'!$D$10,MATCH($C93,'Efficiency Distributions'!$C$9:$C$87,0)+RIGHT($E101),0)\n+AC$11*OFFSET('Efficiency Distributions'!$E$10,MATCH($C93,'Efficiency Distributions'!$C$9:$C$87,0)+RIGHT($E101),0))\n/SUM(AC$10:AC$11)","v":0},{"$f":"IF(INDEX(PC_MAPPING,RIGHT($C93,1),MATCH($E$2,'Data by Building Type'!$D$22:$F$22,0))=\"Yes\",1,0)*\n(AD$10*OFFSET('Efficiency Distributions'!$D$10,MATCH($C93,'Efficiency Distributions'!$C$9:$C$87,0)+RIGHT($E101),0)\n+AD$11*OFFSET('Efficiency Distributions'!$E$10,MATCH($C93,'Efficiency Distributions'!$C$9:$C$87,0)+RIGHT($E101),0))\n/SUM(AD$10:AD$11)","v":0},{"$f":"IF(INDEX(PC_MAPPING,RIGHT($C93,1),MATCH($E$2,'Data by Building Type'!$D$22:$F$22,0))=\"Yes\",1,0)*\n(AE$10*OFFSET('Efficiency Distributions'!$D$10,MATCH($C93,'Efficiency Distributions'!$C$9:$C$87,0)+RIGHT($E101),0)\n+AE$11*OFFSET('Efficiency Distributions'!$E$10,MATCH($C93,'Efficiency Distributions'!$C$9:$C$87,0)+RIGHT($E101),0))\n/SUM(AE$10:AE$11)","v":0},{"$f":"IF(INDEX(PC_MAPPING,RIGHT($C93,1),MATCH($E$2,'Data by Building Type'!$D$22:$F$22,0))=\"Yes\",1,0)*\n(AF$10*OFFSET('Efficiency Distributions'!$D$10,MATCH($C93,'Efficiency Distributions'!$C$9:$C$87,0)+RIGHT($E101),0)\n+AF$11*OFFSET('Efficiency Distributions'!$E$10,MATCH($C93,'Efficiency Distributions'!$C$9:$C$87,0)+RIGHT($E101),0))\n/SUM(AF$10:AF$11)","v":0},{"$f":"IF(INDEX(PC_MAPPING,RIGHT($C93,1),MATCH($E$2,'Data by Building Type'!$D$22:$F$22,0))=\"Yes\",1,0)*\n(AG$10*OFFSET('Efficiency Distributions'!$D$10,MATCH($C93,'Efficiency Distributions'!$C$9:$C$87,0)+RIGHT($E101),0)\n+AG$11*OFFSET('Efficiency Distributions'!$E$10,MATCH($C93,'Efficiency Distributions'!$C$9:$C$87,0)+RIGHT($E101),0))\n/SUM(AG$10:AG$11)","v":0},{"$f":"IF(INDEX(PC_MAPPING,RIGHT($C93,1),MATCH($E$2,'Data by Building Type'!$D$22:$F$22,0))=\"Yes\",1,0)*\n(AH$10*OFFSET('Efficiency Distributions'!$D$10,MATCH($C93,'Efficiency Distributions'!$C$9:$C$87,0)+RIGHT($E101),0)\n+AH$11*OFFSET('Efficiency Distributions'!$E$10,MATCH($C93,'Efficiency Distributions'!$C$9:$C$87,0)+RIGHT($E101),0))\n/SUM(AH$10:AH$11)","v":0},{"$f":"IF(INDEX(PC_MAPPING,RIGHT($C93,1),MATCH($E$2,'Data by Building Type'!$D$22:$F$22,0))=\"Yes\",1,0)*\n(AI$10*OFFSET('Efficiency Distributions'!$D$10,MATCH($C93,'Efficiency Distributions'!$C$9:$C$87,0)+RIGHT($E101),0)\n+AI$11*OFFSET('Efficiency Distributions'!$E$10,MATCH($C93,'Efficiency Distributions'!$C$9:$C$87,0)+RIGHT($E101),0))\n/SUM(AI$10:AI$11)","v":0},{"$f":"IF(INDEX(PC_MAPPING,RIGHT($C93,1),MATCH($E$2,'Data by Building Type'!$D$22:$F$22,0))=\"Yes\",1,0)*\n(AJ$10*OFFSET('Efficiency Distributions'!$D$10,MATCH($C93,'Efficiency Distributions'!$C$9:$C$87,0)+RIGHT($E101),0)\n+AJ$11*OFFSET('Efficiency Distributions'!$E$10,MATCH($C93,'Efficiency Distributions'!$C$9:$C$87,0)+RIGHT($E101),0))\n/SUM(AJ$10:AJ$11)","v":0},{"$f":"IF(INDEX(PC_MAPPING,RIGHT($C93,1),MATCH($E$2,'Data by Building Type'!$D$22:$F$22,0))=\"Yes\",1,0)*\n(AK$10*OFFSET('Efficiency Distributions'!$D$10,MATCH($C93,'Efficiency Distributions'!$C$9:$C$87,0)+RIGHT($E101),0)\n+AK$11*OFFSET('Efficiency Distributions'!$E$10,MATCH($C93,'Efficiency Distributions'!$C$9:$C$87,0)+RIGHT($E101),0))\n/SUM(AK$10:AK$11)","v":0},{"$f":"IF(INDEX(PC_MAPPING,RIGHT($C93,1),MATCH($E$2,'Data by Building Type'!$D$22:$F$22,0))=\"Yes\",1,0)*\n(AL$10*OFFSET('Efficiency Distributions'!$D$10,MATCH($C93,'Efficiency Distributions'!$C$9:$C$87,0)+RIGHT($E101),0)\n+AL$11*OFFSET('Efficiency Distributions'!$E$10,MATCH($C93,'Efficiency Distributions'!$C$9:$C$87,0)+RIGHT($E101),0))\n/SUM(AL$10:AL$11)","v":0},{"$f":"IF(INDEX(PC_MAPPING,RIGHT($C93,1),MATCH($E$2,'Data by Building Type'!$D$22:$F$22,0))=\"Yes\",1,0)*\n(AM$10*OFFSET('Efficiency Distributions'!$D$10,MATCH($C93,'Efficiency Distributions'!$C$9:$C$87,0)+RIGHT($E101),0)\n+AM$11*OFFSET('Efficiency Distributions'!$E$10,MATCH($C93,'Efficiency Distributions'!$C$9:$C$87,0)+RIGHT($E101),0))\n/SUM(AM$10:AM$11)","v":0},{"$f":"IF(INDEX(PC_MAPPING,RIGHT($C93,1),MATCH($E$2,'Data by Building Type'!$D$22:$F$22,0))=\"Yes\",1,0)*\n(AN$10*OFFSET('Efficiency Distributions'!$D$10,MATCH($C93,'Efficiency Distributions'!$C$9:$C$87,0)+RIGHT($E101),0)\n+AN$11*OFFSET('Efficiency Distributions'!$E$10,MATCH($C93,'Efficiency Distributions'!$C$9:$C$87,0)+RIGHT($E101),0))\n/SUM(AN$10:AN$11)","v":0},{"$f":"IF(INDEX(PC_MAPPING,RIGHT($C93,1),MATCH($E$2,'Data by Building Type'!$D$22:$F$22,0))=\"Yes\",1,0)*\n(AO$10*OFFSET('Efficiency Distributions'!$D$10,MATCH($C93,'Efficiency Distributions'!$C$9:$C$87,0)+RIGHT($E101),0)\n+AO$11*OFFSET('Efficiency Distributions'!$E$10,MATCH($C93,'Efficiency Distributions'!$C$9:$C$87,0)+RIGHT($E101),0))\n/SUM(AO$10:AO$11)","v":0},{"$f":"IF(INDEX(PC_MAPPING,RIGHT($C93,1),MATCH($E$2,'Data by Building Type'!$D$22:$F$22,0))=\"Yes\",1,0)*\n(AP$10*OFFSET('Efficiency Distributions'!$D$10,MATCH($C93,'Efficiency Distributions'!$C$9:$C$87,0)+RIGHT($E101),0)\n+AP$11*OFFSET('Efficiency Distributions'!$E$10,MATCH($C93,'Efficiency Distributions'!$C$9:$C$87,0)+RIGHT($E101),0))\n/SUM(AP$10:AP$11)","v":0},{"$f":"IF(INDEX(PC_MAPPING,RIGHT($C93,1),MATCH($E$2,'Data by Building Type'!$D$22:$F$22,0))=\"Yes\",1,0)*\n(AQ$10*OFFSET('Efficiency Distributions'!$D$10,MATCH($C93,'Efficiency Distributions'!$C$9:$C$87,0)+RIGHT($E101),0)\n+AQ$11*OFFSET('Efficiency Distributions'!$E$10,MATCH($C93,'Efficiency Distributions'!$C$9:$C$87,0)+RIGHT($E101),0))\n/SUM(AQ$10:AQ$11)","v":0},{"$f":"IF(INDEX(PC_MAPPING,RIGHT($C93,1),MATCH($E$2,'Data by Building Type'!$D$22:$F$22,0))=\"Yes\",1,0)*\n(AR$10*OFFSET('Efficiency Distributions'!$D$10,MATCH($C93,'Efficiency Distributions'!$C$9:$C$87,0)+RIGHT($E101),0)\n+AR$11*OFFSET('Efficiency Distributions'!$E$10,MATCH($C93,'Efficiency Distributions'!$C$9:$C$87,0)+RIGHT($E101),0))\n/SUM(AR$10:AR$11)","v":0},{"$f":"IF(INDEX(PC_MAPPING,RIGHT($C93,1),MATCH($E$2,'Data by Building Type'!$D$22:$F$22,0))=\"Yes\",1,0)*\n(AS$10*OFFSET('Efficiency Distributions'!$D$10,MATCH($C93,'Efficiency Distributions'!$C$9:$C$87,0)+RIGHT($E101),0)\n+AS$11*OFFSET('Efficiency Distributions'!$E$10,MATCH($C93,'Efficiency Distributions'!$C$9:$C$87,0)+RIGHT($E101),0))\n/SUM(AS$10:AS$11)","v":0},{"$f":"IF(INDEX(PC_MAPPING,RIGHT($C93,1),MATCH($E$2,'Data by Building Type'!$D$22:$F$22,0))=\"Yes\",1,0)*\n(AT$10*OFFSET('Efficiency Distributions'!$D$10,MATCH($C93,'Efficiency Distributions'!$C$9:$C$87,0)+RIGHT($E101),0)\n+AT$11*OFFSET('Efficiency Distributions'!$E$10,MATCH($C93,'Efficiency Distributions'!$C$9:$C$87,0)+RIGHT($E101),0))\n/SUM(AT$10:AT$11)","v":0},{"$f":"IF(INDEX(PC_MAPPING,RIGHT($C93,1),MATCH($E$2,'Data by Building Type'!$D$22:$F$22,0))=\"Yes\",1,0)*\n(AU$10*OFFSET('Efficiency Distributions'!$D$10,MATCH($C93,'Efficiency Distributions'!$C$9:$C$87,0)+RIGHT($E101),0)\n+AU$11*OFFSET('Efficiency Distributions'!$E$10,MATCH($C93,'Efficiency Distributions'!$C$9:$C$87,0)+RIGHT($E101),0))\n/SUM(AU$10:AU$11)","v":0},{"$f":"IF(INDEX(PC_MAPPING,RIGHT($C93,1),MATCH($E$2,'Data by Building Type'!$D$22:$F$22,0))=\"Yes\",1,0)*\n(AV$10*OFFSET('Efficiency Distributions'!$D$10,MATCH($C93,'Efficiency Distributions'!$C$9:$C$87,0)+RIGHT($E101),0)\n+AV$11*OFFSET('Efficiency Distributions'!$E$10,MATCH($C93,'Efficiency Distributions'!$C$9:$C$87,0)+RIGHT($E101),0))\n/SUM(AV$10:AV$11)","v":0},{"$f":"IF(INDEX(PC_MAPPING,RIGHT($C93,1),MATCH($E$2,'Data by Building Type'!$D$22:$F$22,0))=\"Yes\",1,0)*\n(AW$10*OFFSET('Efficiency Distributions'!$D$10,MATCH($C93,'Efficiency Distributions'!$C$9:$C$87,0)+RIGHT($E101),0)\n+AW$11*OFFSET('Efficiency Distributions'!$E$10,MATCH($C93,'Efficiency Distributions'!$C$9:$C$87,0)+RIGHT($E101),0))\n/SUM(AW$10:AW$11)","v":0},{"$f":"IF(INDEX(PC_MAPPING,RIGHT($C93,1),MATCH($E$2,'Data by Building Type'!$D$22:$F$22,0))=\"Yes\",1,0)*\n(AX$10*OFFSET('Efficiency Distributions'!$D$10,MATCH($C93,'Efficiency Distributions'!$C$9:$C$87,0)+RIGHT($E101),0)\n+AX$11*OFFSET('Efficiency Distributions'!$E$10,MATCH($C93,'Efficiency Distributions'!$C$9:$C$87,0)+RIGHT($E101),0))\n/SUM(AX$10:AX$11)","v":0},{"$f":"IF(INDEX(PC_MAPPING,RIGHT($C93,1),MATCH($E$2,'Data by Building Type'!$D$22:$F$22,0))=\"Yes\",1,0)*\n(AY$10*OFFSET('Efficiency Distributions'!$D$10,MATCH($C93,'Efficiency Distributions'!$C$9:$C$87,0)+RIGHT($E101),0)\n+AY$11*OFFSET('Efficiency Distributions'!$E$10,MATCH($C93,'Efficiency Distributions'!$C$9:$C$87,0)+RIGHT($E101),0))\n/SUM(AY$10:AY$11)","v":0},{"$f":"IF(INDEX(PC_MAPPING,RIGHT($C93,1),MATCH($E$2,'Data by Building Type'!$D$22:$F$22,0))=\"Yes\",1,0)*\n(AZ$10*OFFSET('Efficiency Distributions'!$D$10,MATCH($C93,'Efficiency Distributions'!$C$9:$C$87,0)+RIGHT($E101),0)\n+AZ$11*OFFSET('Efficiency Distributions'!$E$10,MATCH($C93,'Efficiency Distributions'!$C$9:$C$87,0)+RIGHT($E101),0))\n/SUM(AZ$10:AZ$11)","v":0},{"$f":"IF(INDEX(PC_MAPPING,RIGHT($C93,1),MATCH($E$2,'Data by Building Type'!$D$22:$F$22,0))=\"Yes\",1,0)*\n(BA$10*OFFSET('Efficiency Distributions'!$D$10,MATCH($C93,'Efficiency Distributions'!$C$9:$C$87,0)+RIGHT($E101),0)\n+BA$11*OFFSET('Efficiency Distributions'!$E$10,MATCH($C93,'Efficiency Distributions'!$C$9:$C$87,0)+RIGHT($E101),0))\n/SUM(BA$10:BA$11)","v":0},{"$f":"IF(INDEX(PC_MAPPING,RIGHT($C93,1),MATCH($E$2,'Data by Building Type'!$D$22:$F$22,0))=\"Yes\",1,0)*\n(BB$10*OFFSET('Efficiency Distributions'!$D$10,MATCH($C93,'Efficiency Distributions'!$C$9:$C$87,0)+RIGHT($E101),0)\n+BB$11*OFFSET('Efficiency Distributions'!$E$10,MATCH($C93,'Efficiency Distributions'!$C$9:$C$87,0)+RIGHT($E101),0))\n/SUM(BB$10:BB$11)","v":0},{"$f":"IF(INDEX(PC_MAPPING,RIGHT($C93,1),MATCH($E$2,'Data by Building Type'!$D$22:$F$22,0))=\"Yes\",1,0)*\n(BC$10*OFFSET('Efficiency Distributions'!$D$10,MATCH($C93,'Efficiency Distributions'!$C$9:$C$87,0)+RIGHT($E101),0)\n+BC$11*OFFSET('Efficiency Distributions'!$E$10,MATCH($C93,'Efficiency Distributions'!$C$9:$C$87,0)+RIGHT($E101),0))\n/SUM(BC$10:BC$11)","v":0},{"$f":"IF(INDEX(PC_MAPPING,RIGHT($C93,1),MATCH($E$2,'Data by Building Type'!$D$22:$F$22,0))=\"Yes\",1,0)*\n(BD$10*OFFSET('Efficiency Distributions'!$D$10,MATCH($C93,'Efficiency Distributions'!$C$9:$C$87,0)+RIGHT($E101),0)\n+BD$11*OFFSET('Efficiency Distributions'!$E$10,MATCH($C93,'Efficiency Distributions'!$C$9:$C$87,0)+RIGHT($E101),0))\n/SUM(BD$10:BD$11)","v":0},{"$f":"IF(INDEX(PC_MAPPING,RIGHT($C93,1),MATCH($E$2,'Data by Building Type'!$D$22:$F$22,0))=\"Yes\",1,0)*\n(BE$10*OFFSET('Efficiency Distributions'!$D$10,MATCH($C93,'Efficiency Distributions'!$C$9:$C$87,0)+RIGHT($E101),0)\n+BE$11*OFFSET('Efficiency Distributions'!$E$10,MATCH($C93,'Efficiency Distributions'!$C$9:$C$87,0)+RIGHT($E101),0))\n/SUM(BE$10:BE$11)","v":0},{"$f":"IF(INDEX(PC_MAPPING,RIGHT($C93,1),MATCH($E$2,'Data by Building Type'!$D$22:$F$22,0))=\"Yes\",1,0)*\n(BF$10*OFFSET('Efficiency Distributions'!$D$10,MATCH($C93,'Efficiency Distributions'!$C$9:$C$87,0)+RIGHT($E101),0)\n+BF$11*OFFSET('Efficiency Distributions'!$E$10,MATCH($C93,'Efficiency Distributions'!$C$9:$C$87,0)+RIGHT($E101),0))\n/SUM(BF$10:BF$11)","v":0},{"$f":"IF(INDEX(PC_MAPPING,RIGHT($C93,1),MATCH($E$2,'Data by Building Type'!$D$22:$F$22,0))=\"Yes\",1,0)*\n(BG$10*OFFSET('Efficiency Distributions'!$D$10,MATCH($C93,'Efficiency Distributions'!$C$9:$C$87,0)+RIGHT($E101),0)\n+BG$11*OFFSET('Efficiency Distributions'!$E$10,MATCH($C93,'Efficiency Distributions'!$C$9:$C$87,0)+RIGHT($E101),0))\n/SUM(BG$10:BG$11)","v":0}]
[null,null,null,null,"EL5",{"$f":"IF(INDEX(PC_MAPPING,RIGHT($C93,1),MATCH($E$2,'Data by Building Type'!$D$22:$F$22,0))=\"Yes\",1,0)*\n(F$10*OFFSET('Efficiency Distributions'!$D$10,MATCH($C93,'Efficiency Distributions'!$C$9:$C$87,0)+RIGHT($E102),0)\n+F$11*OFFSET('Efficiency Distributions'!$E$10,MATCH($C93,'Efficiency Distributions'!$C$9:$C$87,0)+RIGHT($E102),0))\n/SUM(F$10:F$11)","v":0.25689586084022265},{"$f":"IF(INDEX(PC_MAPPING,RIGHT($C93,1),MATCH($E$2,'Data by Building Type'!$D$22:$F$22,0))=\"Yes\",1,0)*\n(G$10*OFFSET('Efficiency Distributions'!$D$10,MATCH($C93,'Efficiency Distributions'!$C$9:$C$87,0)+RIGHT($E102),0)\n+G$11*OFFSET('Efficiency Distributions'!$E$10,MATCH($C93,'Efficiency Distributions'!$C$9:$C$87,0)+RIGHT($E102),0))\n/SUM(G$10:G$11)","v":0.26919073467459881},{"$f":"IF(INDEX(PC_MAPPING,RIGHT($C93,1),MATCH($E$2,'Data by Building Type'!$D$22:$F$22,0))=\"Yes\",1,0)*\n(H$10*OFFSET('Efficiency Distributions'!$D$10,MATCH($C93,'Efficiency Distributions'!$C$9:$C$87,0)+RIGHT($E102),0)\n+H$11*OFFSET('Efficiency Distributions'!$E$10,MATCH($C93,'Efficiency Distributions'!$C$9:$C$87,0)+RIGHT($E102),0))\n/SUM(H$10:H$11)","v":0.2544830233808506},{"$f":"IF(INDEX(PC_MAPPING,RIGHT($C93,1),MATCH($E$2,'Data by Building Type'!$D$22:$F$22,0))=\"Yes\",1,0)*\n(I$10*OFFSET('Efficiency Distributions'!$D$10,MATCH($C93,'Efficiency Distributions'!$C$9:$C$87,0)+RIGHT($E102),0)\n+I$11*OFFSET('Efficiency Distributions'!$E$10,MATCH($C93,'Efficiency Distributions'!$C$9:$C$87,0)+RIGHT($E102),0))\n/SUM(I$10:I$11)","v":0.25722608981623207},{"$f":"IF(INDEX(PC_MAPPING,RIGHT($C93,1),MATCH($E$2,'Data by Building Type'!$D$22:$F$22,0))=\"Yes\",1,0)*\n(J$10*OFFSET('Efficiency Distributions'!$D$10,MATCH($C93,'Efficiency Distributions'!$C$9:$C$87,0)+RIGHT($E102),0)\n+J$11*OFFSET('Efficiency Distributions'!$E$10,MATCH($C93,'Efficiency Distributions'!$C$9:$C$87,0)+RIGHT($E102),0))\n/SUM(J$10:J$11)","v":0.25892445499448397},{"$f":"IF(INDEX(PC_MAPPING,RIGHT($C93,1),MATCH($E$2,'Data by Building Type'!$D$22:$F$22,0))=\"Yes\",1,0)*\n(K$10*OFFSET('Efficiency Distributions'!$D$10,MATCH($C93,'Efficiency Distributions'!$C$9:$C$87,0)+RIGHT($E102),0)\n+K$11*OFFSET('Efficiency Distributions'!$E$10,MATCH($C93,'Efficiency Distributions'!$C$9:$C$87,0)+RIGHT($E102),0))\n/SUM(K$10:K$11)","v":0.25612092323244301},{"$f":"IF(INDEX(PC_MAPPING,RIGHT($C93,1),MATCH($E$2,'Data by Building Type'!$D$22:$F$22,0))=\"Yes\",1,0)*\n(L$10*OFFSET('Efficiency Distributions'!$D$10,MATCH($C93,'Efficiency Distributions'!$C$9:$C$87,0)+RIGHT($E102),0)\n+L$11*OFFSET('Efficiency Distributions'!$E$10,MATCH($C93,'Efficiency Distributions'!$C$9:$C$87,0)+RIGHT($E102),0))\n/SUM(L$10:L$11)","v":0.25590034319064597},{"$f":"IF(INDEX(PC_MAPPING,RIGHT($C93,1),MATCH($E$2,'Data by Building Type'!$D$22:$F$22,0))=\"Yes\",1,0)*\n(M$10*OFFSET('Efficiency Distributions'!$D$10,MATCH($C93,'Efficiency Distributions'!$C$9:$C$87,0)+RIGHT($E102),0)\n+M$11*OFFSET('Efficiency Distributions'!$E$10,MATCH($C93,'Efficiency Distributions'!$C$9:$C$87,0)+RIGHT($E102),0))\n/SUM(M$10:M$11)","v":0.25214409106078839},{"$f":"IF(INDEX(PC_MAPPING,RIGHT($C93,1),MATCH($E$2,'Data by Building Type'!$D$22:$F$22,0))=\"Yes\",1,0)*\n(N$10*OFFSET('Efficiency Distributions'!$D$10,MATCH($C93,'Efficiency Distributions'!$C$9:$C$87,0)+RIGHT($E102),0)\n+N$11*OFFSET('Efficiency Distributions'!$E$10,MATCH($C93,'Efficiency Distributions'!$C$9:$C$87,0)+RIGHT($E102),0))\n/SUM(N$10:N$11)","v":0.24357268090229217},{"$f":"IF(INDEX(PC_MAPPING,RIGHT($C93,1),MATCH($E$2,'Data by Building Type'!$D$22:$F$22,0))=\"Yes\",1,0)*\n(O$10*OFFSET('Efficiency Distributions'!$D$10,MATCH($C93,'Efficiency Distributions'!$C$9:$C$87,0)+RIGHT($E102),0)\n+O$11*OFFSET('Efficiency Distributions'!$E$10,MATCH($C93,'Efficiency Distributions'!$C$9:$C$87,0)+RIGHT($E102),0))\n/SUM(O$10:O$11)","v":0.23773168252151289},{"$f":"IF(INDEX(PC_MAPPING,RIGHT($C93,1),MATCH($E$2,'Data by Building Type'!$D$22:$F$22,0))=\"Yes\",1,0)*\n(P$10*OFFSET('Efficiency Distributions'!$D$10,MATCH($C93,'Efficiency Distributions'!$C$9:$C$87,0)+RIGHT($E102),0)\n+P$11*OFFSET('Efficiency Distributions'!$E$10,MATCH($C93,'Efficiency Distributions'!$C$9:$C$87,0)+RIGHT($E102),0))\n/SUM(P$10:P$11)","v":0.24368631113316222},{"$f":"IF(INDEX(PC_MAPPING,RIGHT($C93,1),MATCH($E$2,'Data by Building Type'!$D$22:$F$22,0))=\"Yes\",1,0)*\n(Q$10*OFFSET('Efficiency Distributions'!$D$10,MATCH($C93,'Efficiency Distributions'!$C$9:$C$87,0)+RIGHT($E102),0)\n+Q$11*OFFSET('Efficiency Distributions'!$E$10,MATCH($C93,'Efficiency Distributions'!$C$9:$C$87,0)+RIGHT($E102),0))\n/SUM(Q$10:Q$11)","v":0.23389243785036842},{"$f":"IF(INDEX(PC_MAPPING,RIGHT($C93,1),MATCH($E$2,'Data by Building Type'!$D$22:$F$22,0))=\"Yes\",1,0)*\n(R$10*OFFSET('Efficiency Distributions'!$D$10,MATCH($C93,'Efficiency Distributions'!$C$9:$C$87,0)+RIGHT($E102),0)\n+R$11*OFFSET('Efficiency Distributions'!$E$10,MATCH($C93,'Efficiency Distributions'!$C$9:$C$87,0)+RIGHT($E102),0))\n/SUM(R$10:R$11)","v":0.26079543871567029},{"$f":"IF(INDEX(PC_MAPPING,RIGHT($C93,1),MATCH($E$2,'Data by Building Type'!$D$22:$F$22,0))=\"Yes\",1,0)*\n(S$10*OFFSET('Efficiency Distributions'!$D$10,MATCH($C93,'Efficiency Distributions'!$C$9:$C$87,0)+RIGHT($E102),0)\n+S$11*OFFSET('Efficiency Distributions'!$E$10,MATCH($C93,'Efficiency Distributions'!$C$9:$C$87,0)+RIGHT($E102),0))\n/SUM(S$10:S$11)","v":0.25808579644224661},{"$f":"IF(INDEX(PC_MAPPING,RIGHT($C93,1),MATCH($E$2,'Data by Building Type'!$D$22:$F$22,0))=\"Yes\",1,0)*\n(T$10*OFFSET('Efficiency Distributions'!$D$10,MATCH($C93,'Efficiency Distributions'!$C$9:$C$87,0)+RIGHT($E102),0)\n+T$11*OFFSET('Efficiency Distributions'!$E$10,MATCH($C93,'Efficiency Distributions'!$C$9:$C$87,0)+RIGHT($E102),0))\n/SUM(T$10:T$11)","v":0.26807005286508628},{"$f":"IF(INDEX(PC_MAPPING,RIGHT($C93,1),MATCH($E$2,'Data by Building Type'!$D$22:$F$22,0))=\"Yes\",1,0)*\n(U$10*OFFSET('Efficiency Distributions'!$D$10,MATCH($C93,'Efficiency Distributions'!$C$9:$C$87,0)+RIGHT($E102),0)\n+U$11*OFFSET('Efficiency Distributions'!$E$10,MATCH($C93,'Efficiency Distributions'!$C$9:$C$87,0)+RIGHT($E102),0))\n/SUM(U$10:U$11)","v":0.2666316852088958},{"$f":"IF(INDEX(PC_MAPPING,RIGHT($C93,1),MATCH($E$2,'Data by Building Type'!$D$22:$F$22,0))=\"Yes\",1,0)*\n(V$10*OFFSET('Efficiency Distributions'!$D$10,MATCH($C93,'Efficiency Distributions'!$C$9:$C$87,0)+RIGHT($E102),0)\n+V$11*OFFSET('Efficiency Distributions'!$E$10,MATCH($C93,'Efficiency Distributions'!$C$9:$C$87,0)+RIGHT($E102),0))\n/SUM(V$10:V$11)","v":0.26875897672857457},{"$f":"IF(INDEX(PC_MAPPING,RIGHT($C93,1),MATCH($E$2,'Data by Building Type'!$D$22:$F$22,0))=\"Yes\",1,0)*\n(W$10*OFFSET('Efficiency Distributions'!$D$10,MATCH($C93,'Efficiency Distributions'!$C$9:$C$87,0)+RIGHT($E102),0)\n+W$11*OFFSET('Efficiency Distributions'!$E$10,MATCH($C93,'Efficiency Distributions'!$C$9:$C$87,0)+RIGHT($E102),0))\n/SUM(W$10:W$11)","v":0.26773892275787697},{"$f":"IF(INDEX(PC_MAPPING,RIGHT($C93,1),MATCH($E$2,'Data by Building Type'!$D$22:$F$22,0))=\"Yes\",1,0)*\n(X$10*OFFSET('Efficiency Distributions'!$D$10,MATCH($C93,'Efficiency Distributions'!$C$9:$C$87,0)+RIGHT($E102),0)\n+X$11*OFFSET('Efficiency Distributions'!$E$10,MATCH($C93,'Efficiency Distributions'!$C$9:$C$87,0)+RIGHT($E102),0))\n/SUM(X$10:X$11)","v":0.271013531924441},{"$f":"IF(INDEX(PC_MAPPING,RIGHT($C93,1),MATCH($E$2,'Data by Building Type'!$D$22:$F$22,0))=\"Yes\",1,0)*\n(Y$10*OFFSET('Efficiency Distributions'!$D$10,MATCH($C93,'Efficiency Distributions'!$C$9:$C$87,0)+RIGHT($E102),0)\n+Y$11*OFFSET('Efficiency Distributions'!$E$10,MATCH($C93,'Efficiency Distributions'!$C$9:$C$87,0)+RIGHT($E102),0))\n/SUM(Y$10:Y$11)","v":0.27898049698043109},{"$f":"IF(INDEX(PC_MAPPING,RIGHT($C93,1),MATCH($E$2,'Data by Building Type'!$D$22:$F$22,0))=\"Yes\",1,0)*\n(Z$10*OFFSET('Efficiency Distributions'!$D$10,MATCH($C93,'Efficiency Distributions'!$C$9:$C$87,0)+RIGHT($E102),0)\n+Z$11*OFFSET('Efficiency Distributions'!$E$10,MATCH($C93,'Efficiency Distributions'!$C$9:$C$87,0)+RIGHT($E102),0))\n/SUM(Z$10:Z$11)","v":0.27911503413645744},{"$f":"IF(INDEX(PC_MAPPING,RIGHT($C93,1),MATCH($E$2,'Data by Building Type'!$D$22:$F$22,0))=\"Yes\",1,0)*\n(AA$10*OFFSET('Efficiency Distributions'!$D$10,MATCH($C93,'Efficiency Distributions'!$C$9:$C$87,0)+RIGHT($E102),0)\n+AA$11*OFFSET('Efficiency Distributions'!$E$10,MATCH($C93,'Efficiency Distributions'!$C$9:$C$87,0)+RIGHT($E102),0))\n/SUM(AA$10:AA$11)","v":0.27788081705596518},{"$f":"IF(INDEX(PC_MAPPING,RIGHT($C93,1),MATCH($E$2,'Data by Building Type'!$D$22:$F$22,0))=\"Yes\",1,0)*\n(AB$10*OFFSET('Efficiency Distributions'!$D$10,MATCH($C93,'Efficiency Distributions'!$C$9:$C$87,0)+RIGHT($E102),0)\n+AB$11*OFFSET('Efficiency Distributions'!$E$10,MATCH($C93,'Efficiency Distributions'!$C$9:$C$87,0)+RIGHT($E102),0))\n/SUM(AB$10:AB$11)","v":0.27084893638944302},{"$f":"IF(INDEX(PC_MAPPING,RIGHT($C93,1),MATCH($E$2,'Data by Building Type'!$D$22:$F$22,0))=\"Yes\",1,0)*\n(AC$10*OFFSET('Efficiency Distributions'!$D$10,MATCH($C93,'Efficiency Distributions'!$C$9:$C$87,0)+RIGHT($E102),0)\n+AC$11*OFFSET('Efficiency Distributions'!$E$10,MATCH($C93,'Efficiency Distributions'!$C$9:$C$87,0)+RIGHT($E102),0))\n/SUM(AC$10:AC$11)","v":0.2713401457578461},{"$f":"IF(INDEX(PC_MAPPING,RIGHT($C93,1),MATCH($E$2,'Data by Building Type'!$D$22:$F$22,0))=\"Yes\",1,0)*\n(AD$10*OFFSET('Efficiency Distributions'!$D$10,MATCH($C93,'Efficiency Distributions'!$C$9:$C$87,0)+RIGHT($E102),0)\n+AD$11*OFFSET('Efficiency Distributions'!$E$10,MATCH($C93,'Efficiency Distributions'!$C$9:$C$87,0)+RIGHT($E102),0))\n/SUM(AD$10:AD$11)","v":0.26528614725229771},{"$f":"IF(INDEX(PC_MAPPING,RIGHT($C93,1),MATCH($E$2,'Data by Building Type'!$D$22:$F$22,0))=\"Yes\",1,0)*\n(AE$10*OFFSET('Efficiency Distributions'!$D$10,MATCH($C93,'Efficiency Distributions'!$C$9:$C$87,0)+RIGHT($E102),0)\n+AE$11*OFFSET('Efficiency Distributions'!$E$10,MATCH($C93,'Efficiency Distributions'!$C$9:$C$87,0)+RIGHT($E102),0))\n/SUM(AE$10:AE$11)","v":0.27447425262233677},{"$f":"IF(INDEX(PC_MAPPING,RIGHT($C93,1),MATCH($E$2,'Data by Building Type'!$D$22:$F$22,0))=\"Yes\",1,0)*\n(AF$10*OFFSET('Efficiency Distributions'!$D$10,MATCH($C93,'Efficiency Distributions'!$C$9:$C$87,0)+RIGHT($E102),0)\n+AF$11*OFFSET('Efficiency Distributions'!$E$10,MATCH($C93,'Efficiency Distributions'!$C$9:$C$87,0)+RIGHT($E102),0))\n/SUM(AF$10:AF$11)","v":0.29476987917887049},{"$f":"IF(INDEX(PC_MAPPING,RIGHT($C93,1),MATCH($E$2,'Data by Building Type'!$D$22:$F$22,0))=\"Yes\",1,0)*\n(AG$10*OFFSET('Efficiency Distributions'!$D$10,MATCH($C93,'Efficiency Distributions'!$C$9:$C$87,0)+RIGHT($E102),0)\n+AG$11*OFFSET('Efficiency Distributions'!$E$10,MATCH($C93,'Efficiency Distributions'!$C$9:$C$87,0)+RIGHT($E102),0))\n/SUM(AG$10:AG$11)","v":0.30343500709900678},{"$f":"IF(INDEX(PC_MAPPING,RIGHT($C93,1),MATCH($E$2,'Data by Building Type'!$D$22:$F$22,0))=\"Yes\",1,0)*\n(AH$10*OFFSET('Efficiency Distributions'!$D$10,MATCH($C93,'Efficiency Distributions'!$C$9:$C$87,0)+RIGHT($E102),0)\n+AH$11*OFFSET('Efficiency Distributions'!$E$10,MATCH($C93,'Efficiency Distributions'!$C$9:$C$87,0)+RIGHT($E102),0))\n/SUM(AH$10:AH$11)","v":0.30343500709900678},{"$f":"IF(INDEX(PC_MAPPING,RIGHT($C93,1),MATCH($E$2,'Data by Building Type'!$D$22:$F$22,0))=\"Yes\",1,0)*\n(AI$10*OFFSET('Efficiency Distributions'!$D$10,MATCH($C93,'Efficiency Distributions'!$C$9:$C$87,0)+RIGHT($E102),0)\n+AI$11*OFFSET('Efficiency Distributions'!$E$10,MATCH($C93,'Efficiency Distributions'!$C$9:$C$87,0)+RIGHT($E102),0))\n/SUM(AI$10:AI$11)","v":0.30343500709900678},{"$f":"IF(INDEX(PC_MAPPING,RIGHT($C93,1),MATCH($E$2,'Data by Building Type'!$D$22:$F$22,0))=\"Yes\",1,0)*\n(AJ$10*OFFSET('Efficiency Distributions'!$D$10,MATCH($C93,'Efficiency Distributions'!$C$9:$C$87,0)+RIGHT($E102),0)\n+AJ$11*OFFSET('Efficiency Distributions'!$E$10,MATCH($C93,'Efficiency Distributions'!$C$9:$C$87,0)+RIGHT($E102),0))\n/SUM(AJ$10:AJ$11)","v":0.29982535785812003},{"$f":"IF(INDEX(PC_MAPPING,RIGHT($C93,1),MATCH($E$2,'Data by Building Type'!$D$22:$F$22,0))=\"Yes\",1,0)*\n(AK$10*OFFSET('Efficiency Distributions'!$D$10,MATCH($C93,'Efficiency Distributions'!$C$9:$C$87,0)+RIGHT($E102),0)\n+AK$11*OFFSET('Efficiency Distributions'!$E$10,MATCH($C93,'Efficiency Distributions'!$C$9:$C$87,0)+RIGHT($E102),0))\n/SUM(AK$10:AK$11)","v":0.249356596022976},{"$f":"IF(INDEX(PC_MAPPING,RIGHT($C93,1),MATCH($E$2,'Data by Building Type'!$D$22:$F$22,0))=\"Yes\",1,0)*\n(AL$10*OFFSET('Efficiency Distributions'!$D$10,MATCH($C93,'Efficiency Distributions'!$C$9:$C$87,0)+RIGHT($E102),0)\n+AL$11*OFFSET('Efficiency Distributions'!$E$10,MATCH($C93,'Efficiency Distributions'!$C$9:$C$87,0)+RIGHT($E102),0))\n/SUM(AL$10:AL$11)","v":0.25086697448542394},{"$f":"IF(INDEX(PC_MAPPING,RIGHT($C93,1),MATCH($E$2,'Data by Building Type'!$D$22:$F$22,0))=\"Yes\",1,0)*\n(AM$10*OFFSET('Efficiency Distributions'!$D$10,MATCH($C93,'Efficiency Distributions'!$C$9:$C$87,0)+RIGHT($E102),0)\n+AM$11*OFFSET('Efficiency Distributions'!$E$10,MATCH($C93,'Efficiency Distributions'!$C$9:$C$87,0)+RIGHT($E102),0))\n/SUM(AM$10:AM$11)","v":0.24437811303523735},{"$f":"IF(INDEX(PC_MAPPING,RIGHT($C93,1),MATCH($E$2,'Data by Building Type'!$D$22:$F$22,0))=\"Yes\",1,0)*\n(AN$10*OFFSET('Efficiency Distributions'!$D$10,MATCH($C93,'Efficiency Distributions'!$C$9:$C$87,0)+RIGHT($E102),0)\n+AN$11*OFFSET('Efficiency Distributions'!$E$10,MATCH($C93,'Efficiency Distributions'!$C$9:$C$87,0)+RIGHT($E102),0))\n/SUM(AN$10:AN$11)","v":0.24490200986031355},{"$f":"IF(INDEX(PC_MAPPING,RIGHT($C93,1),MATCH($E$2,'Data by Building Type'!$D$22:$F$22,0))=\"Yes\",1,0)*\n(AO$10*OFFSET('Efficiency Distributions'!$D$10,MATCH($C93,'Efficiency Distributions'!$C$9:$C$87,0)+RIGHT($E102),0)\n+AO$11*OFFSET('Efficiency Distributions'!$E$10,MATCH($C93,'Efficiency Distributions'!$C$9:$C$87,0)+RIGHT($E102),0))\n/SUM(AO$10:AO$11)","v":0.24235948184004269},{"$f":"IF(INDEX(PC_MAPPING,RIGHT($C93,1),MATCH($E$2,'Data by Building Type'!$D$22:$F$22,0))=\"Yes\",1,0)*\n(AP$10*OFFSET('Efficiency Distributions'!$D$10,MATCH($C93,'Efficiency Distributions'!$C$9:$C$87,0)+RIGHT($E102),0)\n+AP$11*OFFSET('Efficiency Distributions'!$E$10,MATCH($C93,'Efficiency Distributions'!$C$9:$C$87,0)+RIGHT($E102),0))\n/SUM(AP$10:AP$11)","v":0.24347801595252702},{"$f":"IF(INDEX(PC_MAPPING,RIGHT($C93,1),MATCH($E$2,'Data by Building Type'!$D$22:$F$22,0))=\"Yes\",1,0)*\n(AQ$10*OFFSET('Efficiency Distributions'!$D$10,MATCH($C93,'Efficiency Distributions'!$C$9:$C$87,0)+RIGHT($E102),0)\n+AQ$11*OFFSET('Efficiency Distributions'!$E$10,MATCH($C93,'Efficiency Distributions'!$C$9:$C$87,0)+RIGHT($E102),0))\n/SUM(AQ$10:AQ$11)","v":0.24385787340542431},{"$f":"IF(INDEX(PC_MAPPING,RIGHT($C93,1),MATCH($E$2,'Data by Building Type'!$D$22:$F$22,0))=\"Yes\",1,0)*\n(AR$10*OFFSET('Efficiency Distributions'!$D$10,MATCH($C93,'Efficiency Distributions'!$C$9:$C$87,0)+RIGHT($E102),0)\n+AR$11*OFFSET('Efficiency Distributions'!$E$10,MATCH($C93,'Efficiency Distributions'!$C$9:$C$87,0)+RIGHT($E102),0))\n/SUM(AR$10:AR$11)","v":0.24505347972837171},{"$f":"IF(INDEX(PC_MAPPING,RIGHT($C93,1),MATCH($E$2,'Data by Building Type'!$D$22:$F$22,0))=\"Yes\",1,0)*\n(AS$10*OFFSET('Efficiency Distributions'!$D$10,MATCH($C93,'Efficiency Distributions'!$C$9:$C$87,0)+RIGHT($E102),0)\n+AS$11*OFFSET('Efficiency Distributions'!$E$10,MATCH($C93,'Efficiency Distributions'!$C$9:$C$87,0)+RIGHT($E102),0))\n/SUM(AS$10:AS$11)","v":0.24503759974836348},{"$f":"IF(INDEX(PC_MAPPING,RIGHT($C93,1),MATCH($E$2,'Data by Building Type'!$D$22:$F$22,0))=\"Yes\",1,0)*\n(AT$10*OFFSET('Efficiency Distributions'!$D$10,MATCH($C93,'Efficiency Distributions'!$C$9:$C$87,0)+RIGHT($E102),0)\n+AT$11*OFFSET('Efficiency Distributions'!$E$10,MATCH($C93,'Efficiency Distributions'!$C$9:$C$87,0)+RIGHT($E102),0))\n/SUM(AT$10:AT$11)","v":0.24440388301423016},{"$f":"IF(INDEX(PC_MAPPING,RIGHT($C93,1),MATCH($E$2,'Data by Building Type'!$D$22:$F$22,0))=\"Yes\",1,0)*\n(AU$10*OFFSET('Efficiency Distributions'!$D$10,MATCH($C93,'Efficiency Distributions'!$C$9:$C$87,0)+RIGHT($E102),0)\n+AU$11*OFFSET('Efficiency Distributions'!$E$10,MATCH($C93,'Efficiency Distributions'!$C$9:$C$87,0)+RIGHT($E102),0))\n/SUM(AU$10:AU$11)","v":0.24514808381415604},{"$f":"IF(INDEX(PC_MAPPING,RIGHT($C93,1),MATCH($E$2,'Data by Building Type'!$D$22:$F$22,0))=\"Yes\",1,0)*\n(AV$10*OFFSET('Efficiency Distributions'!$D$10,MATCH($C93,'Efficiency Distributions'!$C$9:$C$87,0)+RIGHT($E102),0)\n+AV$11*OFFSET('Efficiency Distributions'!$E$10,MATCH($C93,'Efficiency Distributions'!$C$9:$C$87,0)+RIGHT($E102),0))\n/SUM(AV$10:AV$11)","v":0.25541789857716274},{"$f":"IF(INDEX(PC_MAPPING,RIGHT($C93,1),MATCH($E$2,'Data by Building Type'!$D$22:$F$22,0))=\"Yes\",1,0)*\n(AW$10*OFFSET('Efficiency Distributions'!$D$10,MATCH($C93,'Efficiency Distributions'!$C$9:$C$87,0)+RIGHT($E102),0)\n+AW$11*OFFSET('Efficiency Distributions'!$E$10,MATCH($C93,'Efficiency Distributions'!$C$9:$C$87,0)+RIGHT($E102),0))\n/SUM(AW$10:AW$11)","v":0.25481230769588442},{"$f":"IF(INDEX(PC_MAPPING,RIGHT($C93,1),MATCH($E$2,'Data by Building Type'!$D$22:$F$22,0))=\"Yes\",1,0)*\n(AX$10*OFFSET('Efficiency Distributions'!$D$10,MATCH($C93,'Efficiency Distributions'!$C$9:$C$87,0)+RIGHT($E102),0)\n+AX$11*OFFSET('Efficiency Distributions'!$E$10,MATCH($C93,'Efficiency Distributions'!$C$9:$C$87,0)+RIGHT($E102),0))\n/SUM(AX$10:AX$11)","v":0.25786895560426659},{"$f":"IF(INDEX(PC_MAPPING,RIGHT($C93,1),MATCH($E$2,'Data by Building Type'!$D$22:$F$22,0))=\"Yes\",1,0)*\n(AY$10*OFFSET('Efficiency Distributions'!$D$10,MATCH($C93,'Efficiency Distributions'!$C$9:$C$87,0)+RIGHT($E102),0)\n+AY$11*OFFSET('Efficiency Distributions'!$E$10,MATCH($C93,'Efficiency Distributions'!$C$9:$C$87,0)+RIGHT($E102),0))\n/SUM(AY$10:AY$11)","v":0.25879641111456747},{"$f":"IF(INDEX(PC_MAPPING,RIGHT($C93,1),MATCH($E$2,'Data by Building Type'!$D$22:$F$22,0))=\"Yes\",1,0)*\n(AZ$10*OFFSET('Efficiency Distributions'!$D$10,MATCH($C93,'Efficiency Distributions'!$C$9:$C$87,0)+RIGHT($E102),0)\n+AZ$11*OFFSET('Efficiency Distributions'!$E$10,MATCH($C93,'Efficiency Distributions'!$C$9:$C$87,0)+RIGHT($E102),0))\n/SUM(AZ$10:AZ$11)","v":0.25740489902647473},{"$f":"IF(INDEX(PC_MAPPING,RIGHT($C93,1),MATCH($E$2,'Data by Building Type'!$D$22:$F$22,0))=\"Yes\",1,0)*\n(BA$10*OFFSET('Efficiency Distributions'!$D$10,MATCH($C93,'Efficiency Distributions'!$C$9:$C$87,0)+RIGHT($E102),0)\n+BA$11*OFFSET('Efficiency Distributions'!$E$10,MATCH($C93,'Efficiency Distributions'!$C$9:$C$87,0)+RIGHT($E102),0))\n/SUM(BA$10:BA$11)","v":0.25526531817491871},{"$f":"IF(INDEX(PC_MAPPING,RIGHT($C93,1),MATCH($E$2,'Data by Building Type'!$D$22:$F$22,0))=\"Yes\",1,0)*\n(BB$10*OFFSET('Efficiency Distributions'!$D$10,MATCH($C93,'Efficiency Distributions'!$C$9:$C$87,0)+RIGHT($E102),0)\n+BB$11*OFFSET('Efficiency Distributions'!$E$10,MATCH($C93,'Efficiency Distributions'!$C$9:$C$87,0)+RIGHT($E102),0))\n/SUM(BB$10:BB$11)","v":0.25068693138158188},{"$f":"IF(INDEX(PC_MAPPING,RIGHT($C93,1),MATCH($E$2,'Data by Building Type'!$D$22:$F$22,0))=\"Yes\",1,0)*\n(BC$10*OFFSET('Efficiency Distributions'!$D$10,MATCH($C93,'Efficiency Distributions'!$C$9:$C$87,0)+RIGHT($E102),0)\n+BC$11*OFFSET('Efficiency Distributions'!$E$10,MATCH($C93,'Efficiency Distributions'!$C$9:$C$87,0)+RIGHT($E102),0))\n/SUM(BC$10:BC$11)","v":0.24975855837328706},{"$f":"IF(INDEX(PC_MAPPING,RIGHT($C93,1),MATCH($E$2,'Data by Building Type'!$D$22:$F$22,0))=\"Yes\",1,0)*\n(BD$10*OFFSET('Efficiency Distributions'!$D$10,MATCH($C93,'Efficiency Distributions'!$C$9:$C$87,0)+RIGHT($E102),0)\n+BD$11*OFFSET('Efficiency Distributions'!$E$10,MATCH($C93,'Efficiency Distributions'!$C$9:$C$87,0)+RIGHT($E102),0))\n/SUM(BD$10:BD$11)","v":0.25495359000724227},{"$f":"IF(INDEX(PC_MAPPING,RIGHT($C93,1),MATCH($E$2,'Data by Building Type'!$D$22:$F$22,0))=\"Yes\",1,0)*\n(BE$10*OFFSET('Efficiency Distributions'!$D$10,MATCH($C93,'Efficiency Distributions'!$C$9:$C$87,0)+RIGHT($E102),0)\n+BE$11*OFFSET('Efficiency Distributions'!$E$10,MATCH($C93,'Efficiency Distributions'!$C$9:$C$87,0)+RIGHT($E102),0))\n/SUM(BE$10:BE$11)","v":0.2585855689554668},{"$f":"IF(INDEX(PC_MAPPING,RIGHT($C93,1),MATCH($E$2,'Data by Building Type'!$D$22:$F$22,0))=\"Yes\",1,0)*\n(BF$10*OFFSET('Efficiency Distributions'!$D$10,MATCH($C93,'Efficiency Distributions'!$C$9:$C$87,0)+RIGHT($E102),0)\n+BF$11*OFFSET('Efficiency Distributions'!$E$10,MATCH($C93,'Efficiency Distributions'!$C$9:$C$87,0)+RIGHT($E102),0))\n/SUM(BF$10:BF$11)","v":0.26580514399882943},{"$f":"IF(INDEX(PC_MAPPING,RIGHT($C93,1),MATCH($E$2,'Data by Building Type'!$D$22:$F$22,0))=\"Yes\",1,0)*\n(BG$10*OFFSET('Efficiency Distributions'!$D$10,MATCH($C93,'Efficiency Distributions'!$C$9:$C$87,0)+RIGHT($E102),0)\n+BG$11*OFFSET('Efficiency Distributions'!$E$10,MATCH($C93,'Efficiency Distributions'!$C$9:$C$87,0)+RIGHT($E102),0))\n/SUM(BG$10:BG$11)","v":0.26714086769274653}]
[null,null,null,null,"EL6",{"$f":"IF(INDEX(PC_MAPPING,RIGHT($C93,1),MATCH($E$2,'Data by Building Type'!$D$22:$F$22,0))=\"Yes\",1,0)*\n(F$10*OFFSET('Efficiency Distributions'!$D$10,MATCH($C93,'Efficiency Distributions'!$C$9:$C$87,0)+RIGHT($E103),0)\n+F$11*OFFSET('Efficiency Distributions'!$E$10,MATCH($C93,'Efficiency Distributions'!$C$9:$C$87,0)+RIGHT($E103),0))\n/SUM(F$10:F$11)","v":0},{"$f":"IF(INDEX(PC_MAPPING,RIGHT($C93,1),MATCH($E$2,'Data by Building Type'!$D$22:$F$22,0))=\"Yes\",1,0)*\n(G$10*OFFSET('Efficiency Distributions'!$D$10,MATCH($C93,'Efficiency Distributions'!$C$9:$C$87,0)+RIGHT($E103),0)\n+G$11*OFFSET('Efficiency Distributions'!$E$10,MATCH($C93,'Efficiency Distributions'!$C$9:$C$87,0)+RIGHT($E103),0))\n/SUM(G$10:G$11)","v":0},{"$f":"IF(INDEX(PC_MAPPING,RIGHT($C93,1),MATCH($E$2,'Data by Building Type'!$D$22:$F$22,0))=\"Yes\",1,0)*\n(H$10*OFFSET('Efficiency Distributions'!$D$10,MATCH($C93,'Efficiency Distributions'!$C$9:$C$87,0)+RIGHT($E103),0)\n+H$11*OFFSET('Efficiency Distributions'!$E$10,MATCH($C93,'Efficiency Distributions'!$C$9:$C$87,0)+RIGHT($E103),0))\n/SUM(H$10:H$11)","v":0},{"$f":"IF(INDEX(PC_MAPPING,RIGHT($C93,1),MATCH($E$2,'Data by Building Type'!$D$22:$F$22,0))=\"Yes\",1,0)*\n(I$10*OFFSET('Efficiency Distributions'!$D$10,MATCH($C93,'Efficiency Distributions'!$C$9:$C$87,0)+RIGHT($E103),0)\n+I$11*OFFSET('Efficiency Distributions'!$E$10,MATCH($C93,'Efficiency Distributions'!$C$9:$C$87,0)+RIGHT($E103),0))\n/SUM(I$10:I$11)","v":0},{"$f":"IF(INDEX(PC_MAPPING,RIGHT($C93,1),MATCH($E$2,'Data by Building Type'!$D$22:$F$22,0))=\"Yes\",1,0)*\n(J$10*OFFSET('Efficiency Distributions'!$D$10,MATCH($C93,'Efficiency Distributions'!$C$9:$C$87,0)+RIGHT($E103),0)\n+J$11*OFFSET('Efficiency Distributions'!$E$10,MATCH($C93,'Efficiency Distributions'!$C$9:$C$87,0)+RIGHT($E103),0))\n/SUM(J$10:J$11)","v":0},{"$f":"IF(INDEX(PC_MAPPING,RIGHT($C93,1),MATCH($E$2,'Data by Building Type'!$D$22:$F$22,0))=\"Yes\",1,0)*\n(K$10*OFFSET('Efficiency Distributions'!$D$10,MATCH($C93,'Efficiency Distributions'!$C$9:$C$87,0)+RIGHT($E103),0)\n+K$11*OFFSET('Efficiency Distributions'!$E$10,MATCH($C93,'Efficiency Distributions'!$C$9:$C$87,0)+RIGHT($E103),0))\n/SUM(K$10:K$11)","v":0},{"$f":"IF(INDEX(PC_MAPPING,RIGHT($C93,1),MATCH($E$2,'Data by Building Type'!$D$22:$F$22,0))=\"Yes\",1,0)*\n(L$10*OFFSET('Efficiency Distributions'!$D$10,MATCH($C93,'Efficiency Distributions'!$C$9:$C$87,0)+RIGHT($E103),0)\n+L$11*OFFSET('Efficiency Distributions'!$E$10,MATCH($C93,'Efficiency Distributions'!$C$9:$C$87,0)+RIGHT($E103),0))\n/SUM(L$10:L$11)","v":0},{"$f":"IF(INDEX(PC_MAPPING,RIGHT($C93,1),MATCH($E$2,'Data by Building Type'!$D$22:$F$22,0))=\"Yes\",1,0)*\n(M$10*OFFSET('Efficiency Distributions'!$D$10,MATCH($C93,'Efficiency Distributions'!$C$9:$C$87,0)+RIGHT($E103),0)\n+M$11*OFFSET('Efficiency Distributions'!$E$10,MATCH($C93,'Efficiency Distributions'!$C$9:$C$87,0)+RIGHT($E103),0))\n/SUM(M$10:M$11)","v":0},{"$f":"IF(INDEX(PC_MAPPING,RIGHT($C93,1),MATCH($E$2,'Data by Building Type'!$D$22:$F$22,0))=\"Yes\",1,0)*\n(N$10*OFFSET('Efficiency Distributions'!$D$10,MATCH($C93,'Efficiency Distributions'!$C$9:$C$87,0)+RIGHT($E103),0)\n+N$11*OFFSET('Efficiency Distributions'!$E$10,MATCH($C93,'Efficiency Distributions'!$C$9:$C$87,0)+RIGHT($E103),0))\n/SUM(N$10:N$11)","v":0},{"$f":"IF(INDEX(PC_MAPPING,RIGHT($C93,1),MATCH($E$2,'Data by Building Type'!$D$22:$F$22,0))=\"Yes\",1,0)*\n(O$10*OFFSET('Efficiency Distributions'!$D$10,MATCH($C93,'Efficiency Distributions'!$C$9:$C$87,0)+RIGHT($E103),0)\n+O$11*OFFSET('Efficiency Distributions'!$E$10,MATCH($C93,'Efficiency Distributions'!$C$9:$C$87,0)+RIGHT($E103),0))\n/SUM(O$10:O$11)","v":0},{"$f":"IF(INDEX(PC_MAPPING,RIGHT($C93,1),MATCH($E$2,'Data by Building Type'!$D$22:$F$22,0))=\"Yes\",1,0)*\n(P$10*OFFSET('Efficiency Distributions'!$D$10,MATCH($C93,'Efficiency Distributions'!$C$9:$C$87,0)+RIGHT($E103),0)\n+P$11*OFFSET('Efficiency Distributions'!$E$10,MATCH($C93,'Efficiency Distributions'!$C$9:$C$87,0)+RIGHT($E103),0))\n/SUM(P$10:P$11)","v":0},{"$f":"IF(INDEX(PC_MAPPING,RIGHT($C93,1),MATCH($E$2,'Data by Building Type'!$D$22:$F$22,0))=\"Yes\",1,0)*\n(Q$10*OFFSET('Efficiency Distributions'!$D$10,MATCH($C93,'Efficiency Distributions'!$C$9:$C$87,0)+RIGHT($E103),0)\n+Q$11*OFFSET('Efficiency Distributions'!$E$10,MATCH($C93,'Efficiency Distributions'!$C$9:$C$87,0)+RIGHT($E103),0))\n/SUM(Q$10:Q$11)","v":0},{"$f":"IF(INDEX(PC_MAPPING,RIGHT($C93,1),MATCH($E$2,'Data by Building Type'!$D$22:$F$22,0))=\"Yes\",1,0)*\n(R$10*OFFSET('Efficiency Distributions'!$D$10,MATCH($C93,'Efficiency Distributions'!$C$9:$C$87,0)+RIGHT($E103),0)\n+R$11*OFFSET('Efficiency Distributions'!$E$10,MATCH($C93,'Efficiency Distributions'!$C$9:$C$87,0)+RIGHT($E103),0))\n/SUM(R$10:R$11)","v":0},{"$f":"IF(INDEX(PC_MAPPING,RIGHT($C93,1),MATCH($E$2,'Data by Building Type'!$D$22:$F$22,0))=\"Yes\",1,0)*\n(S$10*OFFSET('Efficiency Distributions'!$D$10,MATCH($C93,'Efficiency Distributions'!$C$9:$C$87,0)+RIGHT($E103),0)\n+S$11*OFFSET('Efficiency Distributions'!$E$10,MATCH($C93,'Efficiency Distributions'!$C$9:$C$87,0)+RIGHT($E103),0))\n/SUM(S$10:S$11)","v":0},{"$f":"IF(INDEX(PC_MAPPING,RIGHT($C93,1),MATCH($E$2,'Data by Building Type'!$D$22:$F$22,0))=\"Yes\",1,0)*\n(T$10*OFFSET('Efficiency Distributions'!$D$10,MATCH($C93,'Efficiency Distributions'!$C$9:$C$87,0)+RIGHT($E103),0)\n+T$11*OFFSET('Efficiency Distributions'!$E$10,MATCH($C93,'Efficiency Distributions'!$C$9:$C$87,0)+RIGHT($E103),0))\n/SUM(T$10:T$11)","v":0},{"$f":"IF(INDEX(PC_MAPPING,RIGHT($C93,1),MATCH($E$2,'Data by Building Type'!$D$22:$F$22,0))=\"Yes\",1,0)*\n(U$10*OFFSET('Efficiency Distributions'!$D$10,MATCH($C93,'Efficiency Distributions'!$C$9:$C$87,0)+RIGHT($E103),0)\n+U$11*OFFSET('Efficiency Distributions'!$E$10,MATCH($C93,'Efficiency Distributions'!$C$9:$C$87,0)+RIGHT($E103),0))\n/SUM(U$10:U$11)","v":0},{"$f":"IF(INDEX(PC_MAPPING,RIGHT($C93,1),MATCH($E$2,'Data by Building Type'!$D$22:$F$22,0))=\"Yes\",1,0)*\n(V$10*OFFSET('Efficiency Distributions'!$D$10,MATCH($C93,'Efficiency Distributions'!$C$9:$C$87,0)+RIGHT($E103),0)\n+V$11*OFFSET('Efficiency Distributions'!$E$10,MATCH($C93,'Efficiency Distributions'!$C$9:$C$87,0)+RIGHT($E103),0))\n/SUM(V$10:V$11)","v":0},{"$f":"IF(INDEX(PC_MAPPING,RIGHT($C93,1),MATCH($E$2,'Data by Building Type'!$D$22:$F$22,0))=\"Yes\",1,0)*\n(W$10*OFFSET('Efficiency Distributions'!$D$10,MATCH($C93,'Efficiency Distributions'!$C$9:$C$87,0)+RIGHT($E103),0)\n+W$11*OFFSET('Efficiency Distributions'!$E$10,MATCH($C93,'Efficiency Distributions'!$C$9:$C$87,0)+RIGHT($E103),0))\n/SUM(W$10:W$11)","v":0},{"$f":"IF(INDEX(PC_MAPPING,RIGHT($C93,1),MATCH($E$2,'Data by Building Type'!$D$22:$F$22,0))=\"Yes\",1,0)*\n(X$10*OFFSET('Efficiency Distributions'!$D$10,MATCH($C93,'Efficiency Distributions'!$C$9:$C$87,0)+RIGHT($E103),0)\n+X$11*OFFSET('Efficiency Distributions'!$E$10,MATCH($C93,'Efficiency Distributions'!$C$9:$C$87,0)+RIGHT($E103),0))\n/SUM(X$10:X$11)","v":0},{"$f":"IF(INDEX(PC_MAPPING,RIGHT($C93,1),MATCH($E$2,'Data by Building Type'!$D$22:$F$22,0))=\"Yes\",1,0)*\n(Y$10*OFFSET('Efficiency Distributions'!$D$10,MATCH($C93,'Efficiency Distributions'!$C$9:$C$87,0)+RIGHT($E103),0)\n+Y$11*OFFSET('Efficiency Distributions'!$E$10,MATCH($C93,'Efficiency Distributions'!$C$9:$C$87,0)+RIGHT($E103),0))\n/SUM(Y$10:Y$11)","v":0},{"$f":"IF(INDEX(PC_MAPPING,RIGHT($C93,1),MATCH($E$2,'Data by Building Type'!$D$22:$F$22,0))=\"Yes\",1,0)*\n(Z$10*OFFSET('Efficiency Distributions'!$D$10,MATCH($C93,'Efficiency Distributions'!$C$9:$C$87,0)+RIGHT($E103),0)\n+Z$11*OFFSET('Efficiency Distributions'!$E$10,MATCH($C93,'Efficiency Distributions'!$C$9:$C$87,0)+RIGHT($E103),0))\n/SUM(Z$10:Z$11)","v":0},{"$f":"IF(INDEX(PC_MAPPING,RIGHT($C93,1),MATCH($E$2,'Data by Building Type'!$D$22:$F$22,0))=\"Yes\",1,0)*\n(AA$10*OFFSET('Efficiency Distributions'!$D$10,MATCH($C93,'Efficiency Distributions'!$C$9:$C$87,0)+RIGHT($E103),0)\n+AA$11*OFFSET('Efficiency Distributions'!$E$10,MATCH($C93,'Efficiency Distributions'!$C$9:$C$87,0)+RIGHT($E103),0))\n/SUM(AA$10:AA$11)","v":0},{"$f":"IF(INDEX(PC_MAPPING,RIGHT($C93,1),MATCH($E$2,'Data by Building Type'!$D$22:$F$22,0))=\"Yes\",1,0)*\n(AB$10*OFFSET('Efficiency Distributions'!$D$10,MATCH($C93,'Efficiency Distributions'!$C$9:$C$87,0)+RIGHT($E103),0)\n+AB$11*OFFSET('Efficiency Distributions'!$E$10,MATCH($C93,'Efficiency Distributions'!$C$9:$C$87,0)+RIGHT($E103),0))\n/SUM(AB$10:AB$11)","v":0},{"$f":"IF(INDEX(PC_MAPPING,RIGHT($C93,1),MATCH($E$2,'Data by Building Type'!$D$22:$F$22,0))=\"Yes\",1,0)*\n(AC$10*OFFSET('Efficiency Distributions'!$D$10,MATCH($C93,'Efficiency Distributions'!$C$9:$C$87,0)+RIGHT($E103),0)\n+AC$11*OFFSET('Efficiency Distributions'!$E$10,MATCH($C93,'Efficiency Distributions'!$C$9:$C$87,0)+RIGHT($E103),0))\n/SUM(AC$10:AC$11)","v":0},{"$f":"IF(INDEX(PC_MAPPING,RIGHT($C93,1),MATCH($E$2,'Data by Building Type'!$D$22:$F$22,0))=\"Yes\",1,0)*\n(AD$10*OFFSET('Efficiency Distributions'!$D$10,MATCH($C93,'Efficiency Distributions'!$C$9:$C$87,0)+RIGHT($E103),0)\n+AD$11*OFFSET('Efficiency Distributions'!$E$10,MATCH($C93,'Efficiency Distributions'!$C$9:$C$87,0)+RIGHT($E103),0))\n/SUM(AD$10:AD$11)","v":0},{"$f":"IF(INDEX(PC_MAPPING,RIGHT($C93,1),MATCH($E$2,'Data by Building Type'!$D$22:$F$22,0))=\"Yes\",1,0)*\n(AE$10*OFFSET('Efficiency Distributions'!$D$10,MATCH($C93,'Efficiency Distributions'!$C$9:$C$87,0)+RIGHT($E103),0)\n+AE$11*OFFSET('Efficiency Distributions'!$E$10,MATCH($C93,'Efficiency Distributions'!$C$9:$C$87,0)+RIGHT($E103),0))\n/SUM(AE$10:AE$11)","v":0},{"$f":"IF(INDEX(PC_MAPPING,RIGHT($C93,1),MATCH($E$2,'Data by Building Type'!$D$22:$F$22,0))=\"Yes\",1,0)*\n(AF$10*OFFSET('Efficiency Distributions'!$D$10,MATCH($C93,'Efficiency Distributions'!$C$9:$C$87,0)+RIGHT($E103),0)\n+AF$11*OFFSET('Efficiency Distributions'!$E$10,MATCH($C93,'Efficiency Distributions'!$C$9:$C$87,0)+RIGHT($E103),0))\n/SUM(AF$10:AF$11)","v":0},{"$f":"IF(INDEX(PC_MAPPING,RIGHT($C93,1),MATCH($E$2,'Data by Building Type'!$D$22:$F$22,0))=\"Yes\",1,0)*\n(AG$10*OFFSET('Efficiency Distributions'!$D$10,MATCH($C93,'Efficiency Distributions'!$C$9:$C$87,0)+RIGHT($E103),0)\n+AG$11*OFFSET('Efficiency Distributions'!$E$10,MATCH($C93,'Efficiency Distributions'!$C$9:$C$87,0)+RIGHT($E103),0))\n/SUM(AG$10:AG$11)","v":0},{"$f":"IF(INDEX(PC_MAPPING,RIGHT($C93,1),MATCH($E$2,'Data by Building Type'!$D$22:$F$22,0))=\"Yes\",1,0)*\n(AH$10*OFFSET('Efficiency Distributions'!$D$10,MATCH($C93,'Efficiency Distributions'!$C$9:$C$87,0)+RIGHT($E103),0)\n+AH$11*OFFSET('Efficiency Distributions'!$E$10,MATCH($C93,'Efficiency Distributions'!$C$9:$C$87,0)+RIGHT($E103),0))\n/SUM(AH$10:AH$11)","v":0},{"$f":"IF(INDEX(PC_MAPPING,RIGHT($C93,1),MATCH($E$2,'Data by Building Type'!$D$22:$F$22,0))=\"Yes\",1,0)*\n(AI$10*OFFSET('Efficiency Distributions'!$D$10,MATCH($C93,'Efficiency Distributions'!$C$9:$C$87,0)+RIGHT($E103),0)\n+AI$11*OFFSET('Efficiency Distributions'!$E$10,MATCH($C93,'Efficiency Distributions'!$C$9:$C$87,0)+RIGHT($E103),0))\n/SUM(AI$10:AI$11)","v":0},{"$f":"IF(INDEX(PC_MAPPING,RIGHT($C93,1),MATCH($E$2,'Data by Building Type'!$D$22:$F$22,0))=\"Yes\",1,0)*\n(AJ$10*OFFSET('Efficiency Distributions'!$D$10,MATCH($C93,'Efficiency Distributions'!$C$9:$C$87,0)+RIGHT($E103),0)\n+AJ$11*OFFSET('Efficiency Distributions'!$E$10,MATCH($C93,'Efficiency Distributions'!$C$9:$C$87,0)+RIGHT($E103),0))\n/SUM(AJ$10:AJ$11)","v":0},{"$f":"IF(INDEX(PC_MAPPING,RIGHT($C93,1),MATCH($E$2,'Data by Building Type'!$D$22:$F$22,0))=\"Yes\",1,0)*\n(AK$10*OFFSET('Efficiency Distributions'!$D$10,MATCH($C93,'Efficiency Distributions'!$C$9:$C$87,0)+RIGHT($E103),0)\n+AK$11*OFFSET('Efficiency Distributions'!$E$10,MATCH($C93,'Efficiency Distributions'!$C$9:$C$87,0)+RIGHT($E103),0))\n/SUM(AK$10:AK$11)","v":0},{"$f":"IF(INDEX(PC_MAPPING,RIGHT($C93,1),MATCH($E$2,'Data by Building Type'!$D$22:$F$22,0))=\"Yes\",1,0)*\n(AL$10*OFFSET('Efficiency Distributions'!$D$10,MATCH($C93,'Efficiency Distributions'!$C$9:$C$87,0)+RIGHT($E103),0)\n+AL$11*OFFSET('Efficiency Distributions'!$E$10,MATCH($C93,'Efficiency Distributions'!$C$9:$C$87,0)+RIGHT($E103),0))\n/SUM(AL$10:AL$11)","v":0},{"$f":"IF(INDEX(PC_MAPPING,RIGHT($C93,1),MATCH($E$2,'Data by Building Type'!$D$22:$F$22,0))=\"Yes\",1,0)*\n(AM$10*OFFSET('Efficiency Distributions'!$D$10,MATCH($C93,'Efficiency Distributions'!$C$9:$C$87,0)+RIGHT($E103),0)\n+AM$11*OFFSET('Efficiency Distributions'!$E$10,MATCH($C93,'Efficiency Distributions'!$C$9:$C$87,0)+RIGHT($E103),0))\n/SUM(AM$10:AM$11)","v":0},{"$f":"IF(INDEX(PC_MAPPING,RIGHT($C93,1),MATCH($E$2,'Data by Building Type'!$D$22:$F$22,0))=\"Yes\",1,0)*\n(AN$10*OFFSET('Efficiency Distributions'!$D$10,MATCH($C93,'Efficiency Distributions'!$C$9:$C$87,0)+RIGHT($E103),0)\n+AN$11*OFFSET('Efficiency Distributions'!$E$10,MATCH($C93,'Efficiency Distributions'!$C$9:$C$87,0)+RIGHT($E103),0))\n/SUM(AN$10:AN$11)","v":0},{"$f":"IF(INDEX(PC_MAPPING,RIGHT($C93,1),MATCH($E$2,'Data by Building Type'!$D$22:$F$22,0))=\"Yes\",1,0)*\n(AO$10*OFFSET('Efficiency Distributions'!$D$10,MATCH($C93,'Efficiency Distributions'!$C$9:$C$87,0)+RIGHT($E103),0)\n+AO$11*OFFSET('Efficiency Distributions'!$E$10,MATCH($C93,'Efficiency Distributions'!$C$9:$C$87,0)+RIGHT($E103),0))\n/SUM(AO$10:AO$11)","v":0},{"$f":"IF(INDEX(PC_MAPPING,RIGHT($C93,1),MATCH($E$2,'Data by Building Type'!$D$22:$F$22,0))=\"Yes\",1,0)*\n(AP$10*OFFSET('Efficiency Distributions'!$D$10,MATCH($C93,'Efficiency Distributions'!$C$9:$C$87,0)+RIGHT($E103),0)\n+AP$11*OFFSET('Efficiency Distributions'!$E$10,MATCH($C93,'Efficiency Distributions'!$C$9:$C$87,0)+RIGHT($E103),0))\n/SUM(AP$10:AP$11)","v":0},{"$f":"IF(INDEX(PC_MAPPING,RIGHT($C93,1),MATCH($E$2,'Data by Building Type'!$D$22:$F$22,0))=\"Yes\",1,0)*\n(AQ$10*OFFSET('Efficiency Distributions'!$D$10,MATCH($C93,'Efficiency Distributions'!$C$9:$C$87,0)+RIGHT($E103),0)\n+AQ$11*OFFSET('Efficiency Distributions'!$E$10,MATCH($C93,'Efficiency Distributions'!$C$9:$C$87,0)+RIGHT($E103),0))\n/SUM(AQ$10:AQ$11)","v":0},{"$f":"IF(INDEX(PC_MAPPING,RIGHT($C93,1),MATCH($E$2,'Data by Building Type'!$D$22:$F$22,0))=\"Yes\",1,0)*\n(AR$10*OFFSET('Efficiency Distributions'!$D$10,MATCH($C93,'Efficiency Distributions'!$C$9:$C$87,0)+RIGHT($E103),0)\n+AR$11*OFFSET('Efficiency Distributions'!$E$10,MATCH($C93,'Efficiency Distributions'!$C$9:$C$87,0)+RIGHT($E103),0))\n/SUM(AR$10:AR$11)","v":0},{"$f":"IF(INDEX(PC_MAPPING,RIGHT($C93,1),MATCH($E$2,'Data by Building Type'!$D$22:$F$22,0))=\"Yes\",1,0)*\n(AS$10*OFFSET('Efficiency Distributions'!$D$10,MATCH($C93,'Efficiency Distributions'!$C$9:$C$87,0)+RIGHT($E103),0)\n+AS$11*OFFSET('Efficiency Distributions'!$E$10,MATCH($C93,'Efficiency Distributions'!$C$9:$C$87,0)+RIGHT($E103),0))\n/SUM(AS$10:AS$11)","v":0},{"$f":"IF(INDEX(PC_MAPPING,RIGHT($C93,1),MATCH($E$2,'Data by Building Type'!$D$22:$F$22,0))=\"Yes\",1,0)*\n(AT$10*OFFSET('Efficiency Distributions'!$D$10,MATCH($C93,'Efficiency Distributions'!$C$9:$C$87,0)+RIGHT($E103),0)\n+AT$11*OFFSET('Efficiency Distributions'!$E$10,MATCH($C93,'Efficiency Distributions'!$C$9:$C$87,0)+RIGHT($E103),0))\n/SUM(AT$10:AT$11)","v":0},{"$f":"IF(INDEX(PC_MAPPING,RIGHT($C93,1),MATCH($E$2,'Data by Building Type'!$D$22:$F$22,0))=\"Yes\",1,0)*\n(AU$10*OFFSET('Efficiency Distributions'!$D$10,MATCH($C93,'Efficiency Distributions'!$C$9:$C$87,0)+RIGHT($E103),0)\n+AU$11*OFFSET('Efficiency Distributions'!$E$10,MATCH($C93,'Efficiency Distributions'!$C$9:$C$87,0)+RIGHT($E103),0))\n/SUM(AU$10:AU$11)","v":0},{"$f":"IF(INDEX(PC_MAPPING,RIGHT($C93,1),MATCH($E$2,'Data by Building Type'!$D$22:$F$22,0))=\"Yes\",1,0)*\n(AV$10*OFFSET('Efficiency Distributions'!$D$10,MATCH($C93,'Efficiency Distributions'!$C$9:$C$87,0)+RIGHT($E103),0)\n+AV$11*OFFSET('Efficiency Distributions'!$E$10,MATCH($C93,'Efficiency Distributions'!$C$9:$C$87,0)+RIGHT($E103),0))\n/SUM(AV$10:AV$11)","v":0},{"$f":"IF(INDEX(PC_MAPPING,RIGHT($C93,1),MATCH($E$2,'Data by Building Type'!$D$22:$F$22,0))=\"Yes\",1,0)*\n(AW$10*OFFSET('Efficiency Distributions'!$D$10,MATCH($C93,'Efficiency Distributions'!$C$9:$C$87,0)+RIGHT($E103),0)\n+AW$11*OFFSET('Efficiency Distributions'!$E$10,MATCH($C93,'Efficiency Distributions'!$C$9:$C$87,0)+RIGHT($E103),0))\n/SUM(AW$10:AW$11)","v":0},{"$f":"IF(INDEX(PC_MAPPING,RIGHT($C93,1),MATCH($E$2,'Data by Building Type'!$D$22:$F$22,0))=\"Yes\",1,0)*\n(AX$10*OFFSET('Efficiency Distributions'!$D$10,MATCH($C93,'Efficiency Distributions'!$C$9:$C$87,0)+RIGHT($E103),0)\n+AX$11*OFFSET('Efficiency Distributions'!$E$10,MATCH($C93,'Efficiency Distributions'!$C$9:$C$87,0)+RIGHT($E103),0))\n/SUM(AX$10:AX$11)","v":0},{"$f":"IF(INDEX(PC_MAPPING,RIGHT($C93,1),MATCH($E$2,'Data by Building Type'!$D$22:$F$22,0))=\"Yes\",1,0)*\n(AY$10*OFFSET('Efficiency Distributions'!$D$10,MATCH($C93,'Efficiency Distributions'!$C$9:$C$87,0)+RIGHT($E103),0)\n+AY$11*OFFSET('Efficiency Distributions'!$E$10,MATCH($C93,'Efficiency Distributions'!$C$9:$C$87,0)+RIGHT($E103),0))\n/SUM(AY$10:AY$11)","v":0},{"$f":"IF(INDEX(PC_MAPPING,RIGHT($C93,1),MATCH($E$2,'Data by Building Type'!$D$22:$F$22,0))=\"Yes\",1,0)*\n(AZ$10*OFFSET('Efficiency Distributions'!$D$10,MATCH($C93,'Efficiency Distributions'!$C$9:$C$87,0)+RIGHT($E103),0)\n+AZ$11*OFFSET('Efficiency Distributions'!$E$10,MATCH($C93,'Efficiency Distributions'!$C$9:$C$87,0)+RIGHT($E103),0))\n/SUM(AZ$10:AZ$11)","v":0},{"$f":"IF(INDEX(PC_MAPPING,RIGHT($C93,1),MATCH($E$2,'Data by Building Type'!$D$22:$F$22,0))=\"Yes\",1,0)*\n(BA$10*OFFSET('Efficiency Distributions'!$D$10,MATCH($C93,'Efficiency Distributions'!$C$9:$C$87,0)+RIGHT($E103),0)\n+BA$11*OFFSET('Efficiency Distributions'!$E$10,MATCH($C93,'Efficiency Distributions'!$C$9:$C$87,0)+RIGHT($E103),0))\n/SUM(BA$10:BA$11)","v":0},{"$f":"IF(INDEX(PC_MAPPING,RIGHT($C93,1),MATCH($E$2,'Data by Building Type'!$D$22:$F$22,0))=\"Yes\",1,0)*\n(BB$10*OFFSET('Efficiency Distributions'!$D$10,MATCH($C93,'Efficiency Distributions'!$C$9:$C$87,0)+RIGHT($E103),0)\n+BB$11*OFFSET('Efficiency Distributions'!$E$10,MATCH($C93,'Efficiency Distributions'!$C$9:$C$87,0)+RIGHT($E103),0))\n/SUM(BB$10:BB$11)","v":0},{"$f":"IF(INDEX(PC_MAPPING,RIGHT($C93,1),MATCH($E$2,'Data by Building Type'!$D$22:$F$22,0))=\"Yes\",1,0)*\n(BC$10*OFFSET('Efficiency Distributions'!$D$10,MATCH($C93,'Efficiency Distributions'!$C$9:$C$87,0)+RIGHT($E103),0)\n+BC$11*OFFSET('Efficiency Distributions'!$E$10,MATCH($C93,'Efficiency Distributions'!$C$9:$C$87,0)+RIGHT($E103),0))\n/SUM(BC$10:BC$11)","v":0},{"$f":"IF(INDEX(PC_MAPPING,RIGHT($C93,1),MATCH($E$2,'Data by Building Type'!$D$22:$F$22,0))=\"Yes\",1,0)*\n(BD$10*OFFSET('Efficiency Distributions'!$D$10,MATCH($C93,'Efficiency Distributions'!$C$9:$C$87,0)+RIGHT($E103),0)\n+BD$11*OFFSET('Efficiency Distributions'!$E$10,MATCH($C93,'Efficiency Distributions'!$C$9:$C$87,0)+RIGHT($E103),0))\n/SUM(BD$10:BD$11)","v":0},{"$f":"IF(INDEX(PC_MAPPING,RIGHT($C93,1),MATCH($E$2,'Data by Building Type'!$D$22:$F$22,0))=\"Yes\",1,0)*\n(BE$10*OFFSET('Efficiency Distributions'!$D$10,MATCH($C93,'Efficiency Distributions'!$C$9:$C$87,0)+RIGHT($E103),0)\n+BE$11*OFFSET('Efficiency Distributions'!$E$10,MATCH($C93,'Efficiency Distributions'!$C$9:$C$87,0)+RIGHT($E103),0))\n/SUM(BE$10:BE$11)","v":0},{"$f":"IF(INDEX(PC_MAPPING,RIGHT($C93,1),MATCH($E$2,'Data by Building Type'!$D$22:$F$22,0))=\"Yes\",1,0)*\n(BF$10*OFFSET('Efficiency Distributions'!$D$10,MATCH($C93,'Efficiency Distributions'!$C$9:$C$87,0)+RIGHT($E103),0)\n+BF$11*OFFSET('Efficiency Distributions'!$E$10,MATCH($C93,'Efficiency Distributions'!$C$9:$C$87,0)+RIGHT($E103),0))\n/SUM(BF$10:BF$11)","v":0},{"$f":"IF(INDEX(PC_MAPPING,RIGHT($C93,1),MATCH($E$2,'Data by Building Type'!$D$22:$F$22,0))=\"Yes\",1,0)*\n(BG$10*OFFSET('Efficiency Distributions'!$D$10,MATCH($C93,'Efficiency Distributions'!$C$9:$C$87,0)+RIGHT($E103),0)\n+BG$11*OFFSET('Efficiency Distributions'!$E$10,MATCH($C93,'Efficiency Distributions'!$C$9:$C$87,0)+RIGHT($E103),0))\n/SUM(BG$10:BG$11)","v":0}]
[null,null,null,null,"TOTAL",{"$f":"SUM(F97:F103)","v":1},1,{"$f":"SUM(H97:H103)","v":1},0.99999999999999989,1,1,1,1,1,0.99999999999999989,1,1,1,0.99999999999999989,1,0.99999999999999989,0.99999999999999978,1,0.99999999999999989,1,1,1,1,1,1,0.99999999999999978,1,1,1,1,0.99999999999999989,0.99999999999999978,1,1,0.99999999999999989,1,0.99999999999999989,0.99999999999999989,0.99999999999999978,0.99999999999999989,1,1,1,1,0.99999999999999989,1,1,1,1,1,0.99999999999999989,1,1,1]
[]
[null,null,null,"POST-Case"]
[null,null,null,null,"Efficiency Level",1981,{"$f":"F107+1","v":1982},{"$f":"G107+1","v":1983},1984,1985,1986,1987,1988,1989,1990,{"$f":"O107+1","v":1991},{"$f":"P107+1","v":1992},1993,1994,1995,1996,1997,1998,1999,2000,2001,2002,2003,2004,2005,2006,2007,2008,2009,2010,2011,2012,2013,2014,2015,2016,2017,2018,2019,2020,2021,2022,2023,2024,2025,2026,2027,2028,2029,2030,2031,2032,2033,2034]
[null,null,null,null,"EL0",{"$f":"IF(F$29<STANDARD_YEAR,F97,\nIF(RIGHT($E108,1)>RIGHT(INDEX(STANDARD_LEVELS,1,MID($C93,4,1)),1),F97,\nIF(RIGHT($E108,1)<RIGHT(INDEX(STANDARD_LEVELS,1,MID($C93,4,1)),1),0,\nIF(RIGHT($E108,1)=RIGHT(INDEX(STANDARD_LEVELS,1,MID($C93,4,1)),1),SUM(OFFSET(F97,-(RIGHT($E108,1)),0,RIGHT($E108,1)+1,1)),\"ERROR\"))))","v":0.31649894313768206},0.30649353629292347,0.31846247857175802,0.31623020713425398,0.3148480998586291,0.31712957718481316,0.31730908232571525,0.32036587097413843,0.32734117198367524,0.33209449974990829,0.32724870119421989,0.33521882663840141,0.31332551787994711,0.31553058917344495,0.30740553243039836,0.30857605713739372,0.30684489523866154,0.30767500176256135,0.30501016783173712,0.29852675630779935,0.29841727173724469,0.29942166138706344,0.30514411351631027,0.30474437378387892,0.30967103825409198,0.30219387878111575,0.28567756445346171,0.27862599716039727,0.27862599716039727,0.27862599716039727,0.28156348230326761,0.32263429782477254,0.32140517166943949,0.32668572189248141,0.32625938153712863,0.32832845744629996,0.32741820907645858,0.32710908607036276,0,0,0,0,0,0,0,0,0,0,0,0,0,0,0,0]
[null,null,null,null,"EL1",{"$f":"IF(F$29<STANDARD_YEAR,F98,\nIF(RIGHT($E109,1)>RIGHT(INDEX(STANDARD_LEVELS,1,MID($C93,4,1)),1),F98,\nIF(RIGHT($E109,1)<RIGHT(INDEX(STANDARD_LEVELS,1,MID($C93,4,1)),1),0,\nIF(RIGHT($E109,1)=RIGHT(INDEX(STANDARD_LEVELS,1,MID($C93,4,1)),1),SUM(OFFSET(F98,-(RIGHT($E109,1)),0,RIGHT($E109,1)+1,1)),\"ERROR\"))))","v":0.42660519602209529},0.42431572903247766,{"$f":"IF(H$29<STANDARD_YEAR,H98,\nIF(RIGHT($E109,1)>RIGHT(INDEX(STANDARD_LEVELS,1,MID($C93,4,1)),1),H98,\nIF(RIGHT($E109,1)<RIGHT(INDEX(STANDARD_LEVELS,1,MID($C93,4,1)),1),0,\nIF(RIGHT($E109,1)=RIGHT(INDEX(STANDARD_LEVELS,1,MID($C93,4,1)),1),SUM(OFFSET(H98,-(RIGHT($E109,1)),0,RIGHT($E109,1)+1,1)),\"ERROR\"))))","v":0.42705449804739137},0.42654370304951389,0.42622744514688687,0.42674949958274377,0.42679057448363872,0.42749003796507312,0.42908614711403259,0.43017381772857877,0.42906498767261786,0.43088873551123014,0.42587904340438248,0.42638361438430833,0.42452441470451524,0.42479225765371043,0.42439612803276378,0.42458607547956156,0.42397630024382182,0.42249274671176951,0.42246769412629781,0.42269752155697132,0.42400695009424672,0.42391548045827487,0.42504281449361031,0.42333186859654731,0.41955255636766775,0.4179389957405959,0.4179389957405959,0.41793899574059584,0.41861115983861225,0.42800910615225124,0.42772785384513651,0.42893616507228122,0.42883860860255774,0.42931206071365724,0.42910377497101432,0.42903304052421287,0.75494652027162812,0.75496240025163641,0.75559611698576989,0.75485191618584402,0.74458210142283732,0.74518769230411552,0.7421310443957333,0.74120358888543247,0.74259510097352521,0.74473468182508129,0.74931306861841807,0.75024144162671291,0.74504640999275762,0.7414144310445332,0.73419485600117063,0.73285913230725341]
[null,null,null,null,"EL2",{"$f":"IF(F$29<STANDARD_YEAR,F99,\nIF(RIGHT($E110,1)>RIGHT(INDEX(STANDARD_LEVELS,1,MID($C93,4,1)),1),F99,\nIF(RIGHT($E110,1)<RIGHT(INDEX(STANDARD_LEVELS,1,MID($C93,4,1)),1),0,\nIF(RIGHT($E110,1)=RIGHT(INDEX(STANDARD_LEVELS,1,MID($C93,4,1)),1),SUM(OFFSET(F99,-(RIGHT($E110,1)),0,RIGHT($E110,1)+1,1)),\"ERROR\"))))","v":0},0,{"$f":"IF(H$29<STANDARD_YEAR,H99,\nIF(RIGHT($E110,1)>RIGHT(INDEX(STANDARD_LEVELS,1,MID($C93,4,1)),1),H99,\nIF(RIGHT($E110,1)<RIGHT(INDEX(STANDARD_LEVELS,1,MID($C93,4,1)),1),0,\nIF(RIGHT($E110,1)=RIGHT(INDEX(STANDARD_LEVELS,1,MID($C93,4,1)),1),SUM(OFFSET(H99,-(RIGHT($E110,1)),0,RIGHT($E110,1)+1,1)),\"ERROR\"))))","v":0},0,0,0,0,0,0,0,0,0,0,0,0,0,0,0,0,0,0,0,0,0,0,0,0,0,0,0,0,0,0,0,0,0,0,0,0,0,0,0,0,0,0,0,0,0,0,0,0,0,0,0]
[null,null,null,null,"EL3",{"$f":"IF(F$29<STANDARD_YEAR,F100,\nIF(RIGHT($E111,1)>RIGHT(INDEX(STANDARD_LEVELS,1,MID($C93,4,1)),1),F100,\nIF(RIGHT($E111,1)<RIGHT(INDEX(STANDARD_LEVELS,1,MID($C93,4,1)),1),0,\nIF(RIGHT($E111,1)=RIGHT(INDEX(STANDARD_LEVELS,1,MID($C93,4,1)),1),SUM(OFFSET(F100,-(RIGHT($E111,1)),0,RIGHT($E111,1)+1,1)),\"ERROR\"))))","v":0},0,{"$f":"IF(H$29<STANDARD_YEAR,H100,\nIF(RIGHT($E111,1)>RIGHT(INDEX(STANDARD_LEVELS,1,MID($C93,4,1)),1),H100,\nIF(RIGHT($E111,1)<RIGHT(INDEX(STANDARD_LEVELS,1,MID($C93,4,1)),1),0,\nIF(RIGHT($E111,1)=RIGHT(INDEX(STANDARD_LEVELS,1,MID($C93,4,1)),1),SUM(OFFSET(H100,-(RIGHT($E111,1)),0,RIGHT($E111,1)+1,1)),\"ERROR\"))))","v":0},0,0,0,0,0,0,0,0,0,0,0,0,0,0,0,0,0,0,0,0,0,0,0,0,0,0,0,0,0,0,0,0,0,0,0,0,0,0,0,0,0,0,0,0,0,0,0,0,0,0,0]
[null,null,null,null,"EL4",{"$f":"IF(F$29<STANDARD_YEAR,F101,\nIF(RIGHT($E112,1)>RIGHT(INDEX(STANDARD_LEVELS,1,MID($C93,4,1)),1),F101,\nIF(RIGHT($E112,1)<RIGHT(INDEX(STANDARD_LEVELS,1,MID($C93,4,1)),1),0,\nIF(RIGHT($E112,1)=RIGHT(INDEX(STANDARD_LEVELS,1,MID($C93,4,1)),1),SUM(OFFSET(F101,-(RIGHT($E112,1)),0,RIGHT($E112,1)+1,1)),\"ERROR\"))))","v":0},0,{"$f":"IF(H$29<STANDARD_YEAR,H101,\nIF(RIGHT($E112,1)>RIGHT(INDEX(STANDARD_LEVELS,1,MID($C93,4,1)),1),H101,\nIF(RIGHT($E112,1)<RIGHT(INDEX(STANDARD_LEVELS,1,MID($C93,4,1)),1),0,\nIF(RIGHT($E112,1)=RIGHT(INDEX(STANDARD_LEVELS,1,MID($C93,4,1)),1),SUM(OFFSET(H101,-(RIGHT($E112,1)),0,RIGHT($E112,1)+1,1)),\"ERROR\"))))","v":0},0,0,0,0,0,0,0,0,0,0,0,0,0,0,0,0,0,0,0,0,0,0,0,0,0,0,0,0,0,0,0,0,0,0,0,0,0,0,0,0,0,0,0,0,0,0,0,0,0,0,0]
[null,null,null,null,"EL5",{"$f":"IF(F$29<STANDARD_YEAR,F102,\nIF(RIGHT($E113,1)>RIGHT(INDEX(STANDARD_LEVELS,1,MID($C93,4,1)),1),F102,\nIF(RIGHT($E113,1)<RIGHT(INDEX(STANDARD_LEVELS,1,MID($C93,4,1)),1),0,\nIF(RIGHT($E113,1)=RIGHT(INDEX(STANDARD_LEVELS,1,MID($C93,4,1)),1),SUM(OFFSET(F102,-(RIGHT($E113,1)),0,RIGHT($E113,1)+1,1)),\"ERROR\"))))","v":0.25689586084022265},0.26919073467459881,{"$f":"IF(H$29<STANDARD_YEAR,H102,\nIF(RIGHT($E113,1)>RIGHT(INDEX(STANDARD_LEVELS,1,MID($C93,4,1)),1),H102,\nIF(RIGHT($E113,1)<RIGHT(INDEX(STANDARD_LEVELS,1,MID($C93,4,1)),1),0,\nIF(RIGHT($E113,1)=RIGHT(INDEX(STANDARD_LEVELS,1,MID($C93,4,1)),1),SUM(OFFSET(H102,-(RIGHT($E113,1)),0,RIGHT($E113,1)+1,1)),\"ERROR\"))))","v":0.2544830233808506},0.25722608981623207,0.25892445499448397,0.25612092323244301,0.25590034319064597,0.25214409106078839,0.24357268090229217,0.23773168252151289,0.24368631113316222,0.23389243785036842,0.26079543871567029,0.25808579644224661,0.26807005286508628,0.2666316852088958,0.26875897672857457,0.26773892275787697,0.271013531924441,0.27898049698043109,0.27911503413645744,0.27788081705596518,0.27084893638944302,0.2713401457578461,0.26528614725229771,0.27447425262233677,0.29476987917887049,0.30343500709900678,0.30343500709900678,0.30343500709900678,0.29982535785812003,0.249356596022976,0.25086697448542394,0.24437811303523735,0.24490200986031355,0.24235948184004269,0.24347801595252702,0.24385787340542431,0.24505347972837171,0.24503759974836348,0.24440388301423016,0.24514808381415604,0.25541789857716274,0.25481230769588442,0.25786895560426659,0.25879641111456747,0.25740489902647473,0.25526531817491871,0.25068693138158188,0.24975855837328706,0.25495359000724227,0.2585855689554668,0.26580514399882943,0.26714086769274653]
[null,null,null,null,"EL6",{"$f":"IF(F$29<STANDARD_YEAR,F103,\nIF(RIGHT($E114,1)>RIGHT(INDEX(STANDARD_LEVELS,1,MID($C93,4,1)),1),F103,\nIF(RIGHT($E114,1)<RIGHT(INDEX(STANDARD_LEVELS,1,MID($C93,4,1)),1),0,\nIF(RIGHT($E114,1)=RIGHT(INDEX(STANDARD_LEVELS,1,MID($C93,4,1)),1),SUM(OFFSET(F103,-(RIGHT($E114,1)),0,RIGHT($E114,1)+1,1)),\"ERROR\"))))","v":0},0,{"$f":"IF(H$29<STANDARD_YEAR,H103,\nIF(RIGHT($E114,1)>RIGHT(INDEX(STANDARD_LEVELS,1,MID($C93,4,1)),1),H103,\nIF(RIGHT($E114,1)<RIGHT(INDEX(STANDARD_LEVELS,1,MID($C93,4,1)),1),0,\nIF(RIGHT($E114,1)=RIGHT(INDEX(STANDARD_LEVELS,1,MID($C93,4,1)),1),SUM(OFFSET(H103,-(RIGHT($E114,1)),0,RIGHT($E114,1)+1,1)),\"ERROR\"))))","v":0},0,0,0,0,0,0,0,0,0,0,0,0,0,0,0,0,0,0,0,0,0,0,0,0,0,0,0,0,0,0,0,0,0,0,0,0,0,0,0,0,0,0,0,0,0,0,0,0,0,0,0]
[null,null,null,null,"TOTAL",{"$f":"SUM(F108:F114)","v":1},1,{"$f":"SUM(H108:H114)","v":1},0.99999999999999989,1,1,1,1,1,0.99999999999999989,1,1,1,0.99999999999999989,1,0.99999999999999989,0.99999999999999978,1,0.99999999999999989,1,1,1,1,1,1,0.99999999999999978,1,1,1,1,0.99999999999999989,0.99999999999999978,1,1,0.99999999999999989,1,0.99999999999999989,0.99999999999999989,0.99999999999999978,0.99999999999999989,1,1,1,1,0.99999999999999989,1,1,1,1,1,0.99999999999999989,1,1,1]
[]
[]
[]
[null,null,"PC 5",{"$f":"OFFSET('Product Classes'!$C$9,MATCH(C119,MODEL_PCS,0),0)","v":"Non-Weatherized Electric Furnace / Modular Blower Fan (NWEF/NWMB)"}]
[]
[null,null,null,"PRE-Case"]
[null,null,null,null,"Efficiency Level",1981,{"$f":"F122+1","v":1982},{"$f":"G122+1","v":1983},1984,1985,1986,1987,1988,1989,1990,{"$f":"O122+1","v":1991},{"$f":"P122+1","v":1992},1993,1994,1995,1996,1997,1998,1999,2000,2001,2002,2003,2004,2005,2006,2007,2008,2009,2010,2011,2012,2013,2014,2015,2016,2017,2018,2019,2020,2021,2022,2023,2024,2025,2026,2027,2028,2029,2030,2031,2032,2033,2034]
[null,null,null,null,"EL0",{"$f":"IF(INDEX(PC_MAPPING,RIGHT($C119,1),MATCH($E$2,'Data by Building Type'!$D$22:$F$22,0))=\"Yes\",1,0)*\n(F$10*OFFSET('Efficiency Distributions'!$D$10,MATCH($C119,'Efficiency Distributions'!$C$9:$C$87,0)+RIGHT($E123),0)\n+F$11*OFFSET('Efficiency Distributions'!$E$10,MATCH($C119,'Efficiency Distributions'!$C$9:$C$87,0)+RIGHT($E123),0))\n/SUM(F$10:F$11)","v":0.26422129879820905},{"$f":"IF(INDEX(PC_MAPPING,RIGHT($C119,1),MATCH($E$2,'Data by Building Type'!$D$22:$F$22,0))=\"Yes\",1,0)*\n(G$10*OFFSET('Efficiency Distributions'!$D$10,MATCH($C119,'Efficiency Distributions'!$C$9:$C$87,0)+RIGHT($E123),0)\n+G$11*OFFSET('Efficiency Distributions'!$E$10,MATCH($C119,'Efficiency Distributions'!$C$9:$C$87,0)+RIGHT($E123),0))\n/SUM(G$10:G$11)","v":0.2519805594574428},{"$f":"IF(INDEX(PC_MAPPING,RIGHT($C119,1),MATCH($E$2,'Data by Building Type'!$D$22:$F$22,0))=\"Yes\",1,0)*\n(H$10*OFFSET('Efficiency Distributions'!$D$10,MATCH($C119,'Efficiency Distributions'!$C$9:$C$87,0)+RIGHT($E123),0)\n+H$11*OFFSET('Efficiency Distributions'!$E$10,MATCH($C119,'Efficiency Distributions'!$C$9:$C$87,0)+RIGHT($E123),0))\n/SUM(H$10:H$11)","v":0.26662351250203992},{"$f":"IF(INDEX(PC_MAPPING,RIGHT($C119,1),MATCH($E$2,'Data by Building Type'!$D$22:$F$22,0))=\"Yes\",1,0)*\n(I$10*OFFSET('Efficiency Distributions'!$D$10,MATCH($C119,'Efficiency Distributions'!$C$9:$C$87,0)+RIGHT($E123),0)\n+I$11*OFFSET('Efficiency Distributions'!$E$10,MATCH($C119,'Efficiency Distributions'!$C$9:$C$87,0)+RIGHT($E123),0))\n/SUM(I$10:I$11)","v":0.263892523824789},{"$f":"IF(INDEX(PC_MAPPING,RIGHT($C119,1),MATCH($E$2,'Data by Building Type'!$D$22:$F$22,0))=\"Yes\",1,0)*\n(J$10*OFFSET('Efficiency Distributions'!$D$10,MATCH($C119,'Efficiency Distributions'!$C$9:$C$87,0)+RIGHT($E123),0)\n+J$11*OFFSET('Efficiency Distributions'!$E$10,MATCH($C119,'Efficiency Distributions'!$C$9:$C$87,0)+RIGHT($E123),0))\n/SUM(J$10:J$11)","v":0.26220163657108747},{"$f":"IF(INDEX(PC_MAPPING,RIGHT($C119,1),MATCH($E$2,'Data by Building Type'!$D$22:$F$22,0))=\"Yes\",1,0)*\n(K$10*OFFSET('Efficiency Distributions'!$D$10,MATCH($C119,'Efficiency Distributions'!$C$9:$C$87,0)+RIGHT($E123),0)\n+K$11*OFFSET('Efficiency Distributions'!$E$10,MATCH($C119,'Efficiency Distributions'!$C$9:$C$87,0)+RIGHT($E123),0))\n/SUM(K$10:K$11)","v":0.26499282434535743},{"$f":"IF(INDEX(PC_MAPPING,RIGHT($C119,1),MATCH($E$2,'Data by Building Type'!$D$22:$F$22,0))=\"Yes\",1,0)*\n(L$10*OFFSET('Efficiency Distributions'!$D$10,MATCH($C119,'Efficiency Distributions'!$C$9:$C$87,0)+RIGHT($E123),0)\n+L$11*OFFSET('Efficiency Distributions'!$E$10,MATCH($C119,'Efficiency Distributions'!$C$9:$C$87,0)+RIGHT($E123),0))\n/SUM(L$10:L$11)","v":0.26521243317028598},{"$f":"IF(INDEX(PC_MAPPING,RIGHT($C119,1),MATCH($E$2,'Data by Building Type'!$D$22:$F$22,0))=\"Yes\",1,0)*\n(M$10*OFFSET('Efficiency Distributions'!$D$10,MATCH($C119,'Efficiency Distributions'!$C$9:$C$87,0)+RIGHT($E123),0)\n+M$11*OFFSET('Efficiency Distributions'!$E$10,MATCH($C119,'Efficiency Distributions'!$C$9:$C$87,0)+RIGHT($E123),0))\n/SUM(M$10:M$11)","v":0.26895214647187576},{"$f":"IF(INDEX(PC_MAPPING,RIGHT($C119,1),MATCH($E$2,'Data by Building Type'!$D$22:$F$22,0))=\"Yes\",1,0)*\n(N$10*OFFSET('Efficiency Distributions'!$D$10,MATCH($C119,'Efficiency Distributions'!$C$9:$C$87,0)+RIGHT($E123),0)\n+N$11*OFFSET('Efficiency Distributions'!$E$10,MATCH($C119,'Efficiency Distributions'!$C$9:$C$87,0)+RIGHT($E123),0))\n/SUM(N$10:N$11)","v":0.27748581659702937},{"$f":"IF(INDEX(PC_MAPPING,RIGHT($C119,1),MATCH($E$2,'Data by Building Type'!$D$22:$F$22,0))=\"Yes\",1,0)*\n(O$10*OFFSET('Efficiency Distributions'!$D$10,MATCH($C119,'Efficiency Distributions'!$C$9:$C$87,0)+RIGHT($E123),0)\n+O$11*OFFSET('Efficiency Distributions'!$E$10,MATCH($C119,'Efficiency Distributions'!$C$9:$C$87,0)+RIGHT($E123),0))\n/SUM(O$10:O$11)","v":0.28330109698396999},{"$f":"IF(INDEX(PC_MAPPING,RIGHT($C119,1),MATCH($E$2,'Data by Building Type'!$D$22:$F$22,0))=\"Yes\",1,0)*\n(P$10*OFFSET('Efficiency Distributions'!$D$10,MATCH($C119,'Efficiency Distributions'!$C$9:$C$87,0)+RIGHT($E123),0)\n+P$11*OFFSET('Efficiency Distributions'!$E$10,MATCH($C119,'Efficiency Distributions'!$C$9:$C$87,0)+RIGHT($E123),0))\n/SUM(P$10:P$11)","v":0.27737268668158266},{"$f":"IF(INDEX(PC_MAPPING,RIGHT($C119,1),MATCH($E$2,'Data by Building Type'!$D$22:$F$22,0))=\"Yes\",1,0)*\n(Q$10*OFFSET('Efficiency Distributions'!$D$10,MATCH($C119,'Efficiency Distributions'!$C$9:$C$87,0)+RIGHT($E123),0)\n+Q$11*OFFSET('Efficiency Distributions'!$E$10,MATCH($C119,'Efficiency Distributions'!$C$9:$C$87,0)+RIGHT($E123),0))\n/SUM(Q$10:Q$11)","v":0.28712343740957957},{"$f":"IF(INDEX(PC_MAPPING,RIGHT($C119,1),MATCH($E$2,'Data by Building Type'!$D$22:$F$22,0))=\"Yes\",1,0)*\n(R$10*OFFSET('Efficiency Distributions'!$D$10,MATCH($C119,'Efficiency Distributions'!$C$9:$C$87,0)+RIGHT($E123),0)\n+R$11*OFFSET('Efficiency Distributions'!$E$10,MATCH($C119,'Efficiency Distributions'!$C$9:$C$87,0)+RIGHT($E123),0))\n/SUM(R$10:R$11)","v":0.26033889081620015},{"$f":"IF(INDEX(PC_MAPPING,RIGHT($C119,1),MATCH($E$2,'Data by Building Type'!$D$22:$F$22,0))=\"Yes\",1,0)*\n(S$10*OFFSET('Efficiency Distributions'!$D$10,MATCH($C119,'Efficiency Distributions'!$C$9:$C$87,0)+RIGHT($E123),0)\n+S$11*OFFSET('Efficiency Distributions'!$E$10,MATCH($C119,'Efficiency Distributions'!$C$9:$C$87,0)+RIGHT($E123),0))\n/SUM(S$10:S$11)","v":0.26303660249852451},{"$f":"IF(INDEX(PC_MAPPING,RIGHT($C119,1),MATCH($E$2,'Data by Building Type'!$D$22:$F$22,0))=\"Yes\",1,0)*\n(T$10*OFFSET('Efficiency Distributions'!$D$10,MATCH($C119,'Efficiency Distributions'!$C$9:$C$87,0)+RIGHT($E123),0)\n+T$11*OFFSET('Efficiency Distributions'!$E$10,MATCH($C119,'Efficiency Distributions'!$C$9:$C$87,0)+RIGHT($E123),0))\n/SUM(T$10:T$11)","v":0.25309630688998869},{"$f":"IF(INDEX(PC_MAPPING,RIGHT($C119,1),MATCH($E$2,'Data by Building Type'!$D$22:$F$22,0))=\"Yes\",1,0)*\n(U$10*OFFSET('Efficiency Distributions'!$D$10,MATCH($C119,'Efficiency Distributions'!$C$9:$C$87,0)+RIGHT($E123),0)\n+U$11*OFFSET('Efficiency Distributions'!$E$10,MATCH($C119,'Efficiency Distributions'!$C$9:$C$87,0)+RIGHT($E123),0))\n/SUM(U$10:U$11)","v":0.25452834139418906},{"$f":"IF(INDEX(PC_MAPPING,RIGHT($C119,1),MATCH($E$2,'Data by Building Type'!$D$22:$F$22,0))=\"Yes\",1,0)*\n(V$10*OFFSET('Efficiency Distributions'!$D$10,MATCH($C119,'Efficiency Distributions'!$C$9:$C$87,0)+RIGHT($E123),0)\n+V$11*OFFSET('Efficiency Distributions'!$E$10,MATCH($C119,'Efficiency Distributions'!$C$9:$C$87,0)+RIGHT($E123),0))\n/SUM(V$10:V$11)","v":0.25241041636746736},{"$f":"IF(INDEX(PC_MAPPING,RIGHT($C119,1),MATCH($E$2,'Data by Building Type'!$D$22:$F$22,0))=\"Yes\",1,0)*\n(W$10*OFFSET('Efficiency Distributions'!$D$10,MATCH($C119,'Efficiency Distributions'!$C$9:$C$87,0)+RIGHT($E123),0)\n+W$11*OFFSET('Efficiency Distributions'!$E$10,MATCH($C119,'Efficiency Distributions'!$C$9:$C$87,0)+RIGHT($E123),0))\n/SUM(W$10:W$11)","v":0.25342597902691583},{"$f":"IF(INDEX(PC_MAPPING,RIGHT($C119,1),MATCH($E$2,'Data by Building Type'!$D$22:$F$22,0))=\"Yes\",1,0)*\n(X$10*OFFSET('Efficiency Distributions'!$D$10,MATCH($C119,'Efficiency Distributions'!$C$9:$C$87,0)+RIGHT($E123),0)\n+X$11*OFFSET('Efficiency Distributions'!$E$10,MATCH($C119,'Efficiency Distributions'!$C$9:$C$87,0)+RIGHT($E123),0))\n/SUM(X$10:X$11)","v":0.25016578800822309},{"$f":"IF(INDEX(PC_MAPPING,RIGHT($C119,1),MATCH($E$2,'Data by Building Type'!$D$22:$F$22,0))=\"Yes\",1,0)*\n(Y$10*OFFSET('Efficiency Distributions'!$D$10,MATCH($C119,'Efficiency Distributions'!$C$9:$C$87,0)+RIGHT($E123),0)\n+Y$11*OFFSET('Efficiency Distributions'!$E$10,MATCH($C119,'Efficiency Distributions'!$C$9:$C$87,0)+RIGHT($E123),0))\n/SUM(Y$10:Y$11)","v":0.24223390160572097},{"$f":"IF(INDEX(PC_MAPPING,RIGHT($C119,1),MATCH($E$2,'Data by Building Type'!$D$22:$F$22,0))=\"Yes\",1,0)*\n(Z$10*OFFSET('Efficiency Distributions'!$D$10,MATCH($C119,'Efficiency Distributions'!$C$9:$C$87,0)+RIGHT($E123),0)\n+Z$11*OFFSET('Efficiency Distributions'!$E$10,MATCH($C119,'Efficiency Distributions'!$C$9:$C$87,0)+RIGHT($E123),0))\n/SUM(Z$10:Z$11)","v":0.24209995681858842},{"$f":"IF(INDEX(PC_MAPPING,RIGHT($C119,1),MATCH($E$2,'Data by Building Type'!$D$22:$F$22,0))=\"Yes\",1,0)*\n(AA$10*OFFSET('Efficiency Distributions'!$D$10,MATCH($C119,'Efficiency Distributions'!$C$9:$C$87,0)+RIGHT($E123),0)\n+AA$11*OFFSET('Efficiency Distributions'!$E$10,MATCH($C119,'Efficiency Distributions'!$C$9:$C$87,0)+RIGHT($E123),0))\n/SUM(AA$10:AA$11)","v":0.24332873962480042},{"$f":"IF(INDEX(PC_MAPPING,RIGHT($C119,1),MATCH($E$2,'Data by Building Type'!$D$22:$F$22,0))=\"Yes\",1,0)*\n(AB$10*OFFSET('Efficiency Distributions'!$D$10,MATCH($C119,'Efficiency Distributions'!$C$9:$C$87,0)+RIGHT($E123),0)\n+AB$11*OFFSET('Efficiency Distributions'!$E$10,MATCH($C119,'Efficiency Distributions'!$C$9:$C$87,0)+RIGHT($E123),0))\n/SUM(AB$10:AB$11)","v":0.25032965882688341},{"$f":"IF(INDEX(PC_MAPPING,RIGHT($C119,1),MATCH($E$2,'Data by Building Type'!$D$22:$F$22,0))=\"Yes\",1,0)*\n(AC$10*OFFSET('Efficiency Distributions'!$D$10,MATCH($C119,'Efficiency Distributions'!$C$9:$C$87,0)+RIGHT($E123),0)\n+AC$11*OFFSET('Efficiency Distributions'!$E$10,MATCH($C119,'Efficiency Distributions'!$C$9:$C$87,0)+RIGHT($E123),0))\n/SUM(AC$10:AC$11)","v":0.24984061225988624},{"$f":"IF(INDEX(PC_MAPPING,RIGHT($C119,1),MATCH($E$2,'Data by Building Type'!$D$22:$F$22,0))=\"Yes\",1,0)*\n(AD$10*OFFSET('Efficiency Distributions'!$D$10,MATCH($C119,'Efficiency Distributions'!$C$9:$C$87,0)+RIGHT($E123),0)\n+AD$11*OFFSET('Efficiency Distributions'!$E$10,MATCH($C119,'Efficiency Distributions'!$C$9:$C$87,0)+RIGHT($E123),0))\n/SUM(AD$10:AD$11)","v":0.25586795492920344},{"$f":"IF(INDEX(PC_MAPPING,RIGHT($C119,1),MATCH($E$2,'Data by Building Type'!$D$22:$F$22,0))=\"Yes\",1,0)*\n(AE$10*OFFSET('Efficiency Distributions'!$D$10,MATCH($C119,'Efficiency Distributions'!$C$9:$C$87,0)+RIGHT($E123),0)\n+AE$11*OFFSET('Efficiency Distributions'!$E$10,MATCH($C119,'Efficiency Distributions'!$C$9:$C$87,0)+RIGHT($E123),0))\n/SUM(AE$10:AE$11)","v":0.24672030490975533},{"$f":"IF(INDEX(PC_MAPPING,RIGHT($C119,1),MATCH($E$2,'Data by Building Type'!$D$22:$F$22,0))=\"Yes\",1,0)*\n(AF$10*OFFSET('Efficiency Distributions'!$D$10,MATCH($C119,'Efficiency Distributions'!$C$9:$C$87,0)+RIGHT($E123),0)\n+AF$11*OFFSET('Efficiency Distributions'!$E$10,MATCH($C119,'Efficiency Distributions'!$C$9:$C$87,0)+RIGHT($E123),0))\n/SUM(AF$10:AF$11)","v":0.22651404026786459},{"$f":"IF(INDEX(PC_MAPPING,RIGHT($C119,1),MATCH($E$2,'Data by Building Type'!$D$22:$F$22,0))=\"Yes\",1,0)*\n(AG$10*OFFSET('Efficiency Distributions'!$D$10,MATCH($C119,'Efficiency Distributions'!$C$9:$C$87,0)+RIGHT($E123),0)\n+AG$11*OFFSET('Efficiency Distributions'!$E$10,MATCH($C119,'Efficiency Distributions'!$C$9:$C$87,0)+RIGHT($E123),0))\n/SUM(AG$10:AG$11)","v":0.21788706502162644},{"$f":"IF(INDEX(PC_MAPPING,RIGHT($C119,1),MATCH($E$2,'Data by Building Type'!$D$22:$F$22,0))=\"Yes\",1,0)*\n(AH$10*OFFSET('Efficiency Distributions'!$D$10,MATCH($C119,'Efficiency Distributions'!$C$9:$C$87,0)+RIGHT($E123),0)\n+AH$11*OFFSET('Efficiency Distributions'!$E$10,MATCH($C119,'Efficiency Distributions'!$C$9:$C$87,0)+RIGHT($E123),0))\n/SUM(AH$10:AH$11)","v":0.21788706502162644},{"$f":"IF(INDEX(PC_MAPPING,RIGHT($C119,1),MATCH($E$2,'Data by Building Type'!$D$22:$F$22,0))=\"Yes\",1,0)*\n(AI$10*OFFSET('Efficiency Distributions'!$D$10,MATCH($C119,'Efficiency Distributions'!$C$9:$C$87,0)+RIGHT($E123),0)\n+AI$11*OFFSET('Efficiency Distributions'!$E$10,MATCH($C119,'Efficiency Distributions'!$C$9:$C$87,0)+RIGHT($E123),0))\n/SUM(AI$10:AI$11)","v":0.21788706502162644},{"$f":"IF(INDEX(PC_MAPPING,RIGHT($C119,1),MATCH($E$2,'Data by Building Type'!$D$22:$F$22,0))=\"Yes\",1,0)*\n(AJ$10*OFFSET('Efficiency Distributions'!$D$10,MATCH($C119,'Efficiency Distributions'!$C$9:$C$87,0)+RIGHT($E123),0)\n+AJ$11*OFFSET('Efficiency Distributions'!$E$10,MATCH($C119,'Efficiency Distributions'!$C$9:$C$87,0)+RIGHT($E123),0))\n/SUM(AJ$10:AJ$11)","v":0.22148082092872245},{"$f":"IF(INDEX(PC_MAPPING,RIGHT($C119,1),MATCH($E$2,'Data by Building Type'!$D$22:$F$22,0))=\"Yes\",1,0)*\n(AK$10*OFFSET('Efficiency Distributions'!$D$10,MATCH($C119,'Efficiency Distributions'!$C$9:$C$87,0)+RIGHT($E123),0)\n+AK$11*OFFSET('Efficiency Distributions'!$E$10,MATCH($C119,'Efficiency Distributions'!$C$9:$C$87,0)+RIGHT($E123),0))\n/SUM(AK$10:AK$11)","v":0.27172736813182802},{"$f":"IF(INDEX(PC_MAPPING,RIGHT($C119,1),MATCH($E$2,'Data by Building Type'!$D$22:$F$22,0))=\"Yes\",1,0)*\n(AL$10*OFFSET('Efficiency Distributions'!$D$10,MATCH($C119,'Efficiency Distributions'!$C$9:$C$87,0)+RIGHT($E123),0)\n+AL$11*OFFSET('Efficiency Distributions'!$E$10,MATCH($C119,'Efficiency Distributions'!$C$9:$C$87,0)+RIGHT($E123),0))\n/SUM(AL$10:AL$11)","v":0.27022363988591142},{"$f":"IF(INDEX(PC_MAPPING,RIGHT($C119,1),MATCH($E$2,'Data by Building Type'!$D$22:$F$22,0))=\"Yes\",1,0)*\n(AM$10*OFFSET('Efficiency Distributions'!$D$10,MATCH($C119,'Efficiency Distributions'!$C$9:$C$87,0)+RIGHT($E123),0)\n+AM$11*OFFSET('Efficiency Distributions'!$E$10,MATCH($C119,'Efficiency Distributions'!$C$9:$C$87,0)+RIGHT($E123),0))\n/SUM(AM$10:AM$11)","v":0.27668393079251685},{"$f":"IF(INDEX(PC_MAPPING,RIGHT($C119,1),MATCH($E$2,'Data by Building Type'!$D$22:$F$22,0))=\"Yes\",1,0)*\n(AN$10*OFFSET('Efficiency Distributions'!$D$10,MATCH($C119,'Efficiency Distributions'!$C$9:$C$87,0)+RIGHT($E123),0)\n+AN$11*OFFSET('Efficiency Distributions'!$E$10,MATCH($C119,'Efficiency Distributions'!$C$9:$C$87,0)+RIGHT($E123),0))\n/SUM(AN$10:AN$11)","v":0.27616234069215456},{"$f":"IF(INDEX(PC_MAPPING,RIGHT($C119,1),MATCH($E$2,'Data by Building Type'!$D$22:$F$22,0))=\"Yes\",1,0)*\n(AO$10*OFFSET('Efficiency Distributions'!$D$10,MATCH($C119,'Efficiency Distributions'!$C$9:$C$87,0)+RIGHT($E123),0)\n+AO$11*OFFSET('Efficiency Distributions'!$E$10,MATCH($C119,'Efficiency Distributions'!$C$9:$C$87,0)+RIGHT($E123),0))\n/SUM(AO$10:AO$11)","v":0.27869367392761346},{"$f":"IF(INDEX(PC_MAPPING,RIGHT($C119,1),MATCH($E$2,'Data by Building Type'!$D$22:$F$22,0))=\"Yes\",1,0)*\n(AP$10*OFFSET('Efficiency Distributions'!$D$10,MATCH($C119,'Efficiency Distributions'!$C$9:$C$87,0)+RIGHT($E123),0)\n+AP$11*OFFSET('Efficiency Distributions'!$E$10,MATCH($C119,'Efficiency Distributions'!$C$9:$C$87,0)+RIGHT($E123),0))\n/SUM(AP$10:AP$11)","v":0.27758006473575708},{"$f":"IF(INDEX(PC_MAPPING,RIGHT($C119,1),MATCH($E$2,'Data by Building Type'!$D$22:$F$22,0))=\"Yes\",1,0)*\n(AQ$10*OFFSET('Efficiency Distributions'!$D$10,MATCH($C119,'Efficiency Distributions'!$C$9:$C$87,0)+RIGHT($E123),0)\n+AQ$11*OFFSET('Efficiency Distributions'!$E$10,MATCH($C119,'Efficiency Distributions'!$C$9:$C$87,0)+RIGHT($E123),0))\n/SUM(AQ$10:AQ$11)","v":0.27720187980029548},{"$f":"IF(INDEX(PC_MAPPING,RIGHT($C119,1),MATCH($E$2,'Data by Building Type'!$D$22:$F$22,0))=\"Yes\",1,0)*\n(AR$10*OFFSET('Efficiency Distributions'!$D$10,MATCH($C119,'Efficiency Distributions'!$C$9:$C$87,0)+RIGHT($E123),0)\n+AR$11*OFFSET('Efficiency Distributions'!$E$10,MATCH($C119,'Efficiency Distributions'!$C$9:$C$87,0)+RIGHT($E123),0))\n/SUM(AR$10:AR$11)","v":0.27601153774794734},{"$f":"IF(INDEX(PC_MAPPING,RIGHT($C119,1),MATCH($E$2,'Data by Building Type'!$D$22:$F$22,0))=\"Yes\",1,0)*\n(AS$10*OFFSET('Efficiency Distributions'!$D$10,MATCH($C119,'Efficiency Distributions'!$C$9:$C$87,0)+RIGHT($E123),0)\n+AS$11*OFFSET('Efficiency Distributions'!$E$10,MATCH($C119,'Efficiency Distributions'!$C$9:$C$87,0)+RIGHT($E123),0))\n/SUM(AS$10:AS$11)","v":0.27602734780819171},{"$f":"IF(INDEX(PC_MAPPING,RIGHT($C119,1),MATCH($E$2,'Data by Building Type'!$D$22:$F$22,0))=\"Yes\",1,0)*\n(AT$10*OFFSET('Efficiency Distributions'!$D$10,MATCH($C119,'Efficiency Distributions'!$C$9:$C$87,0)+RIGHT($E123),0)\n+AT$11*OFFSET('Efficiency Distributions'!$E$10,MATCH($C119,'Efficiency Distributions'!$C$9:$C$87,0)+RIGHT($E123),0))\n/SUM(AT$10:AT$11)","v":0.27665827427908551},{"$f":"IF(INDEX(PC_MAPPING,RIGHT($C119,1),MATCH($E$2,'Data by Building Type'!$D$22:$F$22,0))=\"Yes\",1,0)*\n(AU$10*OFFSET('Efficiency Distributions'!$D$10,MATCH($C119,'Efficiency Distributions'!$C$9:$C$87,0)+RIGHT($E123),0)\n+AU$11*OFFSET('Efficiency Distributions'!$E$10,MATCH($C119,'Efficiency Distributions'!$C$9:$C$87,0)+RIGHT($E123),0))\n/SUM(AU$10:AU$11)","v":0.27591735020521563},{"$f":"IF(INDEX(PC_MAPPING,RIGHT($C119,1),MATCH($E$2,'Data by Building Type'!$D$22:$F$22,0))=\"Yes\",1,0)*\n(AV$10*OFFSET('Efficiency Distributions'!$D$10,MATCH($C119,'Efficiency Distributions'!$C$9:$C$87,0)+RIGHT($E123),0)\n+AV$11*OFFSET('Efficiency Distributions'!$E$10,MATCH($C119,'Efficiency Distributions'!$C$9:$C$87,0)+RIGHT($E123),0))\n/SUM(AV$10:AV$11)","v":0.26569275357369626},{"$f":"IF(INDEX(PC_MAPPING,RIGHT($C119,1),MATCH($E$2,'Data by Building Type'!$D$22:$F$22,0))=\"Yes\",1,0)*\n(AW$10*OFFSET('Efficiency Distributions'!$D$10,MATCH($C119,'Efficiency Distributions'!$C$9:$C$87,0)+RIGHT($E123),0)\n+AW$11*OFFSET('Efficiency Distributions'!$E$10,MATCH($C119,'Efficiency Distributions'!$C$9:$C$87,0)+RIGHT($E123),0))\n/SUM(AW$10:AW$11)","v":0.26629567803024057},{"$f":"IF(INDEX(PC_MAPPING,RIGHT($C119,1),MATCH($E$2,'Data by Building Type'!$D$22:$F$22,0))=\"Yes\",1,0)*\n(AX$10*OFFSET('Efficiency Distributions'!$D$10,MATCH($C119,'Efficiency Distributions'!$C$9:$C$87,0)+RIGHT($E123),0)\n+AX$11*OFFSET('Efficiency Distributions'!$E$10,MATCH($C119,'Efficiency Distributions'!$C$9:$C$87,0)+RIGHT($E123),0))\n/SUM(AX$10:AX$11)","v":0.26325248858340045},{"$f":"IF(INDEX(PC_MAPPING,RIGHT($C119,1),MATCH($E$2,'Data by Building Type'!$D$22:$F$22,0))=\"Yes\",1,0)*\n(AY$10*OFFSET('Efficiency Distributions'!$D$10,MATCH($C119,'Efficiency Distributions'!$C$9:$C$87,0)+RIGHT($E123),0)\n+AY$11*OFFSET('Efficiency Distributions'!$E$10,MATCH($C119,'Efficiency Distributions'!$C$9:$C$87,0)+RIGHT($E123),0))\n/SUM(AY$10:AY$11)","v":0.26232911667209152},{"$f":"IF(INDEX(PC_MAPPING,RIGHT($C119,1),MATCH($E$2,'Data by Building Type'!$D$22:$F$22,0))=\"Yes\",1,0)*\n(AZ$10*OFFSET('Efficiency Distributions'!$D$10,MATCH($C119,'Efficiency Distributions'!$C$9:$C$87,0)+RIGHT($E123),0)\n+AZ$11*OFFSET('Efficiency Distributions'!$E$10,MATCH($C119,'Efficiency Distributions'!$C$9:$C$87,0)+RIGHT($E123),0))\n/SUM(AZ$10:AZ$11)","v":0.26371450191388585},{"$f":"IF(INDEX(PC_MAPPING,RIGHT($C119,1),MATCH($E$2,'Data by Building Type'!$D$22:$F$22,0))=\"Yes\",1,0)*\n(BA$10*OFFSET('Efficiency Distributions'!$D$10,MATCH($C119,'Efficiency Distributions'!$C$9:$C$87,0)+RIGHT($E123),0)\n+BA$11*OFFSET('Efficiency Distributions'!$E$10,MATCH($C119,'Efficiency Distributions'!$C$9:$C$87,0)+RIGHT($E123),0))\n/SUM(BA$10:BA$11)","v":0.26584466216239244},{"$f":"IF(INDEX(PC_MAPPING,RIGHT($C119,1),MATCH($E$2,'Data by Building Type'!$D$22:$F$22,0))=\"Yes\",1,0)*\n(BB$10*OFFSET('Efficiency Distributions'!$D$10,MATCH($C119,'Efficiency Distributions'!$C$9:$C$87,0)+RIGHT($E123),0)\n+BB$11*OFFSET('Efficiency Distributions'!$E$10,MATCH($C119,'Efficiency Distributions'!$C$9:$C$87,0)+RIGHT($E123),0))\n/SUM(BB$10:BB$11)","v":0.27040289025756398},{"$f":"IF(INDEX(PC_MAPPING,RIGHT($C119,1),MATCH($E$2,'Data by Building Type'!$D$22:$F$22,0))=\"Yes\",1,0)*\n(BC$10*OFFSET('Efficiency Distributions'!$D$10,MATCH($C119,'Efficiency Distributions'!$C$9:$C$87,0)+RIGHT($E123),0)\n+BC$11*OFFSET('Efficiency Distributions'!$E$10,MATCH($C119,'Efficiency Distributions'!$C$9:$C$87,0)+RIGHT($E123),0))\n/SUM(BC$10:BC$11)","v":0.27132717562711101},{"$f":"IF(INDEX(PC_MAPPING,RIGHT($C119,1),MATCH($E$2,'Data by Building Type'!$D$22:$F$22,0))=\"Yes\",1,0)*\n(BD$10*OFFSET('Efficiency Distributions'!$D$10,MATCH($C119,'Efficiency Distributions'!$C$9:$C$87,0)+RIGHT($E123),0)\n+BD$11*OFFSET('Efficiency Distributions'!$E$10,MATCH($C119,'Efficiency Distributions'!$C$9:$C$87,0)+RIGHT($E123),0))\n/SUM(BD$10:BD$11)","v":0.26615501778678546},{"$f":"IF(INDEX(PC_MAPPING,RIGHT($C119,1),MATCH($E$2,'Data by Building Type'!$D$22:$F$22,0))=\"Yes\",1,0)*\n(BE$10*OFFSET('Efficiency Distributions'!$D$10,MATCH($C119,'Efficiency Distributions'!$C$9:$C$87,0)+RIGHT($E123),0)\n+BE$11*OFFSET('Efficiency Distributions'!$E$10,MATCH($C119,'Efficiency Distributions'!$C$9:$C$87,0)+RIGHT($E123),0))\n/SUM(BE$10:BE$11)","v":0.26253903049035127},{"$f":"IF(INDEX(PC_MAPPING,RIGHT($C119,1),MATCH($E$2,'Data by Building Type'!$D$22:$F$22,0))=\"Yes\",1,0)*\n(BF$10*OFFSET('Efficiency Distributions'!$D$10,MATCH($C119,'Efficiency Distributions'!$C$9:$C$87,0)+RIGHT($E123),0)\n+BF$11*OFFSET('Efficiency Distributions'!$E$10,MATCH($C119,'Efficiency Distributions'!$C$9:$C$87,0)+RIGHT($E123),0))\n/SUM(BF$10:BF$11)","v":0.25535124333227449},{"$f":"IF(INDEX(PC_MAPPING,RIGHT($C119,1),MATCH($E$2,'Data by Building Type'!$D$22:$F$22,0))=\"Yes\",1,0)*\n(BG$10*OFFSET('Efficiency Distributions'!$D$10,MATCH($C119,'Efficiency Distributions'!$C$9:$C$87,0)+RIGHT($E123),0)\n+BG$11*OFFSET('Efficiency Distributions'!$E$10,MATCH($C119,'Efficiency Distributions'!$C$9:$C$87,0)+RIGHT($E123),0))\n/SUM(BG$10:BG$11)","v":0.25402140084761149}]
[null,null,null,null,"EL1",{"$f":"IF(INDEX(PC_MAPPING,RIGHT($C119,1),MATCH($E$2,'Data by Building Type'!$D$22:$F$22,0))=\"Yes\",1,0)*\n(F$10*OFFSET('Efficiency Distributions'!$D$10,MATCH($C119,'Efficiency Distributions'!$C$9:$C$87,0)+RIGHT($E124),0)\n+F$11*OFFSET('Efficiency Distributions'!$E$10,MATCH($C119,'Efficiency Distributions'!$C$9:$C$87,0)+RIGHT($E124),0))\n/SUM(F$10:F$11)","v":0.35032499524439165},{"$f":"IF(INDEX(PC_MAPPING,RIGHT($C119,1),MATCH($E$2,'Data by Building Type'!$D$22:$F$22,0))=\"Yes\",1,0)*\n(G$10*OFFSET('Efficiency Distributions'!$D$10,MATCH($C119,'Efficiency Distributions'!$C$9:$C$87,0)+RIGHT($E124),0)\n+G$11*OFFSET('Efficiency Distributions'!$E$10,MATCH($C119,'Efficiency Distributions'!$C$9:$C$87,0)+RIGHT($E124),0))\n/SUM(G$10:G$11)","v":0.34411816338553297},{"$f":"IF(INDEX(PC_MAPPING,RIGHT($C119,1),MATCH($E$2,'Data by Building Type'!$D$22:$F$22,0))=\"Yes\",1,0)*\n(H$10*OFFSET('Efficiency Distributions'!$D$10,MATCH($C119,'Efficiency Distributions'!$C$9:$C$87,0)+RIGHT($E124),0)\n+H$11*OFFSET('Efficiency Distributions'!$E$10,MATCH($C119,'Efficiency Distributions'!$C$9:$C$87,0)+RIGHT($E124),0))\n/SUM(H$10:H$11)","v":0.35154307007906022},{"$f":"IF(INDEX(PC_MAPPING,RIGHT($C119,1),MATCH($E$2,'Data by Building Type'!$D$22:$F$22,0))=\"Yes\",1,0)*\n(I$10*OFFSET('Efficiency Distributions'!$D$10,MATCH($C119,'Efficiency Distributions'!$C$9:$C$87,0)+RIGHT($E124),0)\n+I$11*OFFSET('Efficiency Distributions'!$E$10,MATCH($C119,'Efficiency Distributions'!$C$9:$C$87,0)+RIGHT($E124),0))\n/SUM(I$10:I$11)","v":0.35015828546301248},{"$f":"IF(INDEX(PC_MAPPING,RIGHT($C119,1),MATCH($E$2,'Data by Building Type'!$D$22:$F$22,0))=\"Yes\",1,0)*\n(J$10*OFFSET('Efficiency Distributions'!$D$10,MATCH($C119,'Efficiency Distributions'!$C$9:$C$87,0)+RIGHT($E124),0)\n+J$11*OFFSET('Efficiency Distributions'!$E$10,MATCH($C119,'Efficiency Distributions'!$C$9:$C$87,0)+RIGHT($E124),0))\n/SUM(J$10:J$11)","v":0.34930089829187483},{"$f":"IF(INDEX(PC_MAPPING,RIGHT($C119,1),MATCH($E$2,'Data by Building Type'!$D$22:$F$22,0))=\"Yes\",1,0)*\n(K$10*OFFSET('Efficiency Distributions'!$D$10,MATCH($C119,'Efficiency Distributions'!$C$9:$C$87,0)+RIGHT($E124),0)\n+K$11*OFFSET('Efficiency Distributions'!$E$10,MATCH($C119,'Efficiency Distributions'!$C$9:$C$87,0)+RIGHT($E124),0))\n/SUM(K$10:K$11)","v":0.35071620767140704},{"$f":"IF(INDEX(PC_MAPPING,RIGHT($C119,1),MATCH($E$2,'Data by Building Type'!$D$22:$F$22,0))=\"Yes\",1,0)*\n(L$10*OFFSET('Efficiency Distributions'!$D$10,MATCH($C119,'Efficiency Distributions'!$C$9:$C$87,0)+RIGHT($E124),0)\n+L$11*OFFSET('Efficiency Distributions'!$E$10,MATCH($C119,'Efficiency Distributions'!$C$9:$C$87,0)+RIGHT($E124),0))\n/SUM(L$10:L$11)","v":0.35082756328589298},{"$f":"IF(INDEX(PC_MAPPING,RIGHT($C119,1),MATCH($E$2,'Data by Building Type'!$D$22:$F$22,0))=\"Yes\",1,0)*\n(M$10*OFFSET('Efficiency Distributions'!$D$10,MATCH($C119,'Efficiency Distributions'!$C$9:$C$87,0)+RIGHT($E124),0)\n+M$11*OFFSET('Efficiency Distributions'!$E$10,MATCH($C119,'Efficiency Distributions'!$C$9:$C$87,0)+RIGHT($E124),0))\n/SUM(M$10:M$11)","v":0.35272383531792634},{"$f":"IF(INDEX(PC_MAPPING,RIGHT($C119,1),MATCH($E$2,'Data by Building Type'!$D$22:$F$22,0))=\"Yes\",1,0)*\n(N$10*OFFSET('Efficiency Distributions'!$D$10,MATCH($C119,'Efficiency Distributions'!$C$9:$C$87,0)+RIGHT($E124),0)\n+N$11*OFFSET('Efficiency Distributions'!$E$10,MATCH($C119,'Efficiency Distributions'!$C$9:$C$87,0)+RIGHT($E124),0))\n/SUM(N$10:N$11)","v":0.35705094776851121},{"$f":"IF(INDEX(PC_MAPPING,RIGHT($C119,1),MATCH($E$2,'Data by Building Type'!$D$22:$F$22,0))=\"Yes\",1,0)*\n(O$10*OFFSET('Efficiency Distributions'!$D$10,MATCH($C119,'Efficiency Distributions'!$C$9:$C$87,0)+RIGHT($E124),0)\n+O$11*OFFSET('Efficiency Distributions'!$E$10,MATCH($C119,'Efficiency Distributions'!$C$9:$C$87,0)+RIGHT($E124),0))\n/SUM(O$10:O$11)","v":0.35999966406489137},{"$f":"IF(INDEX(PC_MAPPING,RIGHT($C119,1),MATCH($E$2,'Data by Building Type'!$D$22:$F$22,0))=\"Yes\",1,0)*\n(P$10*OFFSET('Efficiency Distributions'!$D$10,MATCH($C119,'Efficiency Distributions'!$C$9:$C$87,0)+RIGHT($E124),0)\n+P$11*OFFSET('Efficiency Distributions'!$E$10,MATCH($C119,'Efficiency Distributions'!$C$9:$C$87,0)+RIGHT($E124),0))\n/SUM(P$10:P$11)","v":0.35699358372016116},{"$f":"IF(INDEX(PC_MAPPING,RIGHT($C119,1),MATCH($E$2,'Data by Building Type'!$D$22:$F$22,0))=\"Yes\",1,0)*\n(Q$10*OFFSET('Efficiency Distributions'!$D$10,MATCH($C119,'Efficiency Distributions'!$C$9:$C$87,0)+RIGHT($E124),0)\n+Q$11*OFFSET('Efficiency Distributions'!$E$10,MATCH($C119,'Efficiency Distributions'!$C$9:$C$87,0)+RIGHT($E124),0))\n/SUM(Q$10:Q$11)","v":0.36193783329377655},{"$f":"IF(INDEX(PC_MAPPING,RIGHT($C119,1),MATCH($E$2,'Data by Building Type'!$D$22:$F$22,0))=\"Yes\",1,0)*\n(R$10*OFFSET('Efficiency Distributions'!$D$10,MATCH($C119,'Efficiency Distributions'!$C$9:$C$87,0)+RIGHT($E124),0)\n+R$11*OFFSET('Efficiency Distributions'!$E$10,MATCH($C119,'Efficiency Distributions'!$C$9:$C$87,0)+RIGHT($E124),0))\n/SUM(R$10:R$11)","v":0.34835636795146607},{"$f":"IF(INDEX(PC_MAPPING,RIGHT($C119,1),MATCH($E$2,'Data by Building Type'!$D$22:$F$22,0))=\"Yes\",1,0)*\n(S$10*OFFSET('Efficiency Distributions'!$D$10,MATCH($C119,'Efficiency Distributions'!$C$9:$C$87,0)+RIGHT($E124),0)\n+S$11*OFFSET('Efficiency Distributions'!$E$10,MATCH($C119,'Efficiency Distributions'!$C$9:$C$87,0)+RIGHT($E124),0))\n/SUM(S$10:S$11)","v":0.34972427901874137},{"$f":"IF(INDEX(PC_MAPPING,RIGHT($C119,1),MATCH($E$2,'Data by Building Type'!$D$22:$F$22,0))=\"Yes\",1,0)*\n(T$10*OFFSET('Efficiency Distributions'!$D$10,MATCH($C119,'Efficiency Distributions'!$C$9:$C$87,0)+RIGHT($E124),0)\n+T$11*OFFSET('Efficiency Distributions'!$E$10,MATCH($C119,'Efficiency Distributions'!$C$9:$C$87,0)+RIGHT($E124),0))\n/SUM(T$10:T$11)","v":0.34468391815883342},{"$f":"IF(INDEX(PC_MAPPING,RIGHT($C119,1),MATCH($E$2,'Data by Building Type'!$D$22:$F$22,0))=\"Yes\",1,0)*\n(U$10*OFFSET('Efficiency Distributions'!$D$10,MATCH($C119,'Efficiency Distributions'!$C$9:$C$87,0)+RIGHT($E124),0)\n+U$11*OFFSET('Efficiency Distributions'!$E$10,MATCH($C119,'Efficiency Distributions'!$C$9:$C$87,0)+RIGHT($E124),0))\n/SUM(U$10:U$11)","v":0.34541005055461566},{"$f":"IF(INDEX(PC_MAPPING,RIGHT($C119,1),MATCH($E$2,'Data by Building Type'!$D$22:$F$22,0))=\"Yes\",1,0)*\n(V$10*OFFSET('Efficiency Distributions'!$D$10,MATCH($C119,'Efficiency Distributions'!$C$9:$C$87,0)+RIGHT($E124),0)\n+V$11*OFFSET('Efficiency Distributions'!$E$10,MATCH($C119,'Efficiency Distributions'!$C$9:$C$87,0)+RIGHT($E124),0))\n/SUM(V$10:V$11)","v":0.34433612812521214},{"$f":"IF(INDEX(PC_MAPPING,RIGHT($C119,1),MATCH($E$2,'Data by Building Type'!$D$22:$F$22,0))=\"Yes\",1,0)*\n(W$10*OFFSET('Efficiency Distributions'!$D$10,MATCH($C119,'Efficiency Distributions'!$C$9:$C$87,0)+RIGHT($E124),0)\n+W$11*OFFSET('Efficiency Distributions'!$E$10,MATCH($C119,'Efficiency Distributions'!$C$9:$C$87,0)+RIGHT($E124),0))\n/SUM(W$10:W$11)","v":0.34485108285906058},{"$f":"IF(INDEX(PC_MAPPING,RIGHT($C119,1),MATCH($E$2,'Data by Building Type'!$D$22:$F$22,0))=\"Yes\",1,0)*\n(X$10*OFFSET('Efficiency Distributions'!$D$10,MATCH($C119,'Efficiency Distributions'!$C$9:$C$87,0)+RIGHT($E124),0)\n+X$11*OFFSET('Efficiency Distributions'!$E$10,MATCH($C119,'Efficiency Distributions'!$C$9:$C$87,0)+RIGHT($E124),0))\n/SUM(X$10:X$11)","v":0.34319795906339279},{"$f":"IF(INDEX(PC_MAPPING,RIGHT($C119,1),MATCH($E$2,'Data by Building Type'!$D$22:$F$22,0))=\"Yes\",1,0)*\n(Y$10*OFFSET('Efficiency Distributions'!$D$10,MATCH($C119,'Efficiency Distributions'!$C$9:$C$87,0)+RIGHT($E124),0)\n+Y$11*OFFSET('Efficiency Distributions'!$E$10,MATCH($C119,'Efficiency Distributions'!$C$9:$C$87,0)+RIGHT($E124),0))\n/SUM(Y$10:Y$11)","v":0.33917598915999508},{"$f":"IF(INDEX(PC_MAPPING,RIGHT($C119,1),MATCH($E$2,'Data by Building Type'!$D$22:$F$22,0))=\"Yes\",1,0)*\n(Z$10*OFFSET('Efficiency Distributions'!$D$10,MATCH($C119,'Efficiency Distributions'!$C$9:$C$87,0)+RIGHT($E124),0)\n+Z$11*OFFSET('Efficiency Distributions'!$E$10,MATCH($C119,'Efficiency Distributions'!$C$9:$C$87,0)+RIGHT($E124),0))\n/SUM(Z$10:Z$11)","v":0.33910807065042164},{"$f":"IF(INDEX(PC_MAPPING,RIGHT($C119,1),MATCH($E$2,'Data by Building Type'!$D$22:$F$22,0))=\"Yes\",1,0)*\n(AA$10*OFFSET('Efficiency Distributions'!$D$10,MATCH($C119,'Efficiency Distributions'!$C$9:$C$87,0)+RIGHT($E124),0)\n+AA$11*OFFSET('Efficiency Distributions'!$E$10,MATCH($C119,'Efficiency Distributions'!$C$9:$C$87,0)+RIGHT($E124),0))\n/SUM(AA$10:AA$11)","v":0.33973114153338813},{"$f":"IF(INDEX(PC_MAPPING,RIGHT($C119,1),MATCH($E$2,'Data by Building Type'!$D$22:$F$22,0))=\"Yes\",1,0)*\n(AB$10*OFFSET('Efficiency Distributions'!$D$10,MATCH($C119,'Efficiency Distributions'!$C$9:$C$87,0)+RIGHT($E124),0)\n+AB$11*OFFSET('Efficiency Distributions'!$E$10,MATCH($C119,'Efficiency Distributions'!$C$9:$C$87,0)+RIGHT($E124),0))\n/SUM(AB$10:AB$11)","v":0.34328105197058439},{"$f":"IF(INDEX(PC_MAPPING,RIGHT($C119,1),MATCH($E$2,'Data by Building Type'!$D$22:$F$22,0))=\"Yes\",1,0)*\n(AC$10*OFFSET('Efficiency Distributions'!$D$10,MATCH($C119,'Efficiency Distributions'!$C$9:$C$87,0)+RIGHT($E124),0)\n+AC$11*OFFSET('Efficiency Distributions'!$E$10,MATCH($C119,'Efficiency Distributions'!$C$9:$C$87,0)+RIGHT($E124),0))\n/SUM(AC$10:AC$11)","v":0.34303307431760105},{"$f":"IF(INDEX(PC_MAPPING,RIGHT($C119,1),MATCH($E$2,'Data by Building Type'!$D$22:$F$22,0))=\"Yes\",1,0)*\n(AD$10*OFFSET('Efficiency Distributions'!$D$10,MATCH($C119,'Efficiency Distributions'!$C$9:$C$87,0)+RIGHT($E124),0)\n+AD$11*OFFSET('Efficiency Distributions'!$E$10,MATCH($C119,'Efficiency Distributions'!$C$9:$C$87,0)+RIGHT($E124),0))\n/SUM(AD$10:AD$11)","v":0.34608931965235673},{"$f":"IF(INDEX(PC_MAPPING,RIGHT($C119,1),MATCH($E$2,'Data by Building Type'!$D$22:$F$22,0))=\"Yes\",1,0)*\n(AE$10*OFFSET('Efficiency Distributions'!$D$10,MATCH($C119,'Efficiency Distributions'!$C$9:$C$87,0)+RIGHT($E124),0)\n+AE$11*OFFSET('Efficiency Distributions'!$E$10,MATCH($C119,'Efficiency Distributions'!$C$9:$C$87,0)+RIGHT($E124),0))\n/SUM(AE$10:AE$11)","v":0.34145088042137756},{"$f":"IF(INDEX(PC_MAPPING,RIGHT($C119,1),MATCH($E$2,'Data by Building Type'!$D$22:$F$22,0))=\"Yes\",1,0)*\n(AF$10*OFFSET('Efficiency Distributions'!$D$10,MATCH($C119,'Efficiency Distributions'!$C$9:$C$87,0)+RIGHT($E124),0)\n+AF$11*OFFSET('Efficiency Distributions'!$E$10,MATCH($C119,'Efficiency Distributions'!$C$9:$C$87,0)+RIGHT($E124),0))\n/SUM(AF$10:AF$11)","v":0.33120502160220211},{"$f":"IF(INDEX(PC_MAPPING,RIGHT($C119,1),MATCH($E$2,'Data by Building Type'!$D$22:$F$22,0))=\"Yes\",1,0)*\n(AG$10*OFFSET('Efficiency Distributions'!$D$10,MATCH($C119,'Efficiency Distributions'!$C$9:$C$87,0)+RIGHT($E124),0)\n+AG$11*OFFSET('Efficiency Distributions'!$E$10,MATCH($C119,'Efficiency Distributions'!$C$9:$C$87,0)+RIGHT($E124),0))\n/SUM(AG$10:AG$11)","v":0.32683059753243965},{"$f":"IF(INDEX(PC_MAPPING,RIGHT($C119,1),MATCH($E$2,'Data by Building Type'!$D$22:$F$22,0))=\"Yes\",1,0)*\n(AH$10*OFFSET('Efficiency Distributions'!$D$10,MATCH($C119,'Efficiency Distributions'!$C$9:$C$87,0)+RIGHT($E124),0)\n+AH$11*OFFSET('Efficiency Distributions'!$E$10,MATCH($C119,'Efficiency Distributions'!$C$9:$C$87,0)+RIGHT($E124),0))\n/SUM(AH$10:AH$11)","v":0.32683059753243965},{"$f":"IF(INDEX(PC_MAPPING,RIGHT($C119,1),MATCH($E$2,'Data by Building Type'!$D$22:$F$22,0))=\"Yes\",1,0)*\n(AI$10*OFFSET('Efficiency Distributions'!$D$10,MATCH($C119,'Efficiency Distributions'!$C$9:$C$87,0)+RIGHT($E124),0)\n+AI$11*OFFSET('Efficiency Distributions'!$E$10,MATCH($C119,'Efficiency Distributions'!$C$9:$C$87,0)+RIGHT($E124),0))\n/SUM(AI$10:AI$11)","v":0.32683059753243965},{"$f":"IF(INDEX(PC_MAPPING,RIGHT($C119,1),MATCH($E$2,'Data by Building Type'!$D$22:$F$22,0))=\"Yes\",1,0)*\n(AJ$10*OFFSET('Efficiency Distributions'!$D$10,MATCH($C119,'Efficiency Distributions'!$C$9:$C$87,0)+RIGHT($E124),0)\n+AJ$11*OFFSET('Efficiency Distributions'!$E$10,MATCH($C119,'Efficiency Distributions'!$C$9:$C$87,0)+RIGHT($E124),0))\n/SUM(AJ$10:AJ$11)","v":0.32865285990043558},{"$f":"IF(INDEX(PC_MAPPING,RIGHT($C119,1),MATCH($E$2,'Data by Building Type'!$D$22:$F$22,0))=\"Yes\",1,0)*\n(AK$10*OFFSET('Efficiency Distributions'!$D$10,MATCH($C119,'Efficiency Distributions'!$C$9:$C$87,0)+RIGHT($E124),0)\n+AK$11*OFFSET('Efficiency Distributions'!$E$10,MATCH($C119,'Efficiency Distributions'!$C$9:$C$87,0)+RIGHT($E124),0))\n/SUM(AK$10:AK$11)","v":0.35413104886400837},{"$f":"IF(INDEX(PC_MAPPING,RIGHT($C119,1),MATCH($E$2,'Data by Building Type'!$D$22:$F$22,0))=\"Yes\",1,0)*\n(AL$10*OFFSET('Efficiency Distributions'!$D$10,MATCH($C119,'Efficiency Distributions'!$C$9:$C$87,0)+RIGHT($E124),0)\n+AL$11*OFFSET('Efficiency Distributions'!$E$10,MATCH($C119,'Efficiency Distributions'!$C$9:$C$87,0)+RIGHT($E124),0))\n/SUM(AL$10:AL$11)","v":0.35336856319022747},{"$f":"IF(INDEX(PC_MAPPING,RIGHT($C119,1),MATCH($E$2,'Data by Building Type'!$D$22:$F$22,0))=\"Yes\",1,0)*\n(AM$10*OFFSET('Efficiency Distributions'!$D$10,MATCH($C119,'Efficiency Distributions'!$C$9:$C$87,0)+RIGHT($E124),0)\n+AM$11*OFFSET('Efficiency Distributions'!$E$10,MATCH($C119,'Efficiency Distributions'!$C$9:$C$87,0)+RIGHT($E124),0))\n/SUM(AM$10:AM$11)","v":0.35664434076381507},{"$f":"IF(INDEX(PC_MAPPING,RIGHT($C119,1),MATCH($E$2,'Data by Building Type'!$D$22:$F$22,0))=\"Yes\",1,0)*\n(AN$10*OFFSET('Efficiency Distributions'!$D$10,MATCH($C119,'Efficiency Distributions'!$C$9:$C$87,0)+RIGHT($E124),0)\n+AN$11*OFFSET('Efficiency Distributions'!$E$10,MATCH($C119,'Efficiency Distributions'!$C$9:$C$87,0)+RIGHT($E124),0))\n/SUM(AN$10:AN$11)","v":0.35637986147362938},{"$f":"IF(INDEX(PC_MAPPING,RIGHT($C119,1),MATCH($E$2,'Data by Building Type'!$D$22:$F$22,0))=\"Yes\",1,0)*\n(AO$10*OFFSET('Efficiency Distributions'!$D$10,MATCH($C119,'Efficiency Distributions'!$C$9:$C$87,0)+RIGHT($E124),0)\n+AO$11*OFFSET('Efficiency Distributions'!$E$10,MATCH($C119,'Efficiency Distributions'!$C$9:$C$87,0)+RIGHT($E124),0))\n/SUM(AO$10:AO$11)","v":0.3576634081070349},{"$f":"IF(INDEX(PC_MAPPING,RIGHT($C119,1),MATCH($E$2,'Data by Building Type'!$D$22:$F$22,0))=\"Yes\",1,0)*\n(AP$10*OFFSET('Efficiency Distributions'!$D$10,MATCH($C119,'Efficiency Distributions'!$C$9:$C$87,0)+RIGHT($E124),0)\n+AP$11*OFFSET('Efficiency Distributions'!$E$10,MATCH($C119,'Efficiency Distributions'!$C$9:$C$87,0)+RIGHT($E124),0))\n/SUM(AP$10:AP$11)","v":0.35709873755749438},{"$f":"IF(INDEX(PC_MAPPING,RIGHT($C119,1),MATCH($E$2,'Data by Building Type'!$D$22:$F$22,0))=\"Yes\",1,0)*\n(AQ$10*OFFSET('Efficiency Distributions'!$D$10,MATCH($C119,'Efficiency Distributions'!$C$9:$C$87,0)+RIGHT($E124),0)\n+AQ$11*OFFSET('Efficiency Distributions'!$E$10,MATCH($C119,'Efficiency Distributions'!$C$9:$C$87,0)+RIGHT($E124),0))\n/SUM(AQ$10:AQ$11)","v":0.35690697378893299},{"$f":"IF(INDEX(PC_MAPPING,RIGHT($C119,1),MATCH($E$2,'Data by Building Type'!$D$22:$F$22,0))=\"Yes\",1,0)*\n(AR$10*OFFSET('Efficiency Distributions'!$D$10,MATCH($C119,'Efficiency Distributions'!$C$9:$C$87,0)+RIGHT($E124),0)\n+AR$11*OFFSET('Efficiency Distributions'!$E$10,MATCH($C119,'Efficiency Distributions'!$C$9:$C$87,0)+RIGHT($E124),0))\n/SUM(AR$10:AR$11)","v":0.35630339480830325},{"$f":"IF(INDEX(PC_MAPPING,RIGHT($C119,1),MATCH($E$2,'Data by Building Type'!$D$22:$F$22,0))=\"Yes\",1,0)*\n(AS$10*OFFSET('Efficiency Distributions'!$D$10,MATCH($C119,'Efficiency Distributions'!$C$9:$C$87,0)+RIGHT($E124),0)\n+AS$11*OFFSET('Efficiency Distributions'!$E$10,MATCH($C119,'Efficiency Distributions'!$C$9:$C$87,0)+RIGHT($E124),0))\n/SUM(AS$10:AS$11)","v":0.35631141151243229},{"$f":"IF(INDEX(PC_MAPPING,RIGHT($C119,1),MATCH($E$2,'Data by Building Type'!$D$22:$F$22,0))=\"Yes\",1,0)*\n(AT$10*OFFSET('Efficiency Distributions'!$D$10,MATCH($C119,'Efficiency Distributions'!$C$9:$C$87,0)+RIGHT($E124),0)\n+AT$11*OFFSET('Efficiency Distributions'!$E$10,MATCH($C119,'Efficiency Distributions'!$C$9:$C$87,0)+RIGHT($E124),0))\n/SUM(AT$10:AT$11)","v":0.35663133128289082},{"$f":"IF(INDEX(PC_MAPPING,RIGHT($C119,1),MATCH($E$2,'Data by Building Type'!$D$22:$F$22,0))=\"Yes\",1,0)*\n(AU$10*OFFSET('Efficiency Distributions'!$D$10,MATCH($C119,'Efficiency Distributions'!$C$9:$C$87,0)+RIGHT($E124),0)\n+AU$11*OFFSET('Efficiency Distributions'!$E$10,MATCH($C119,'Efficiency Distributions'!$C$9:$C$87,0)+RIGHT($E124),0))\n/SUM(AU$10:AU$11)","v":0.35625563574533653},{"$f":"IF(INDEX(PC_MAPPING,RIGHT($C119,1),MATCH($E$2,'Data by Building Type'!$D$22:$F$22,0))=\"Yes\",1,0)*\n(AV$10*OFFSET('Efficiency Distributions'!$D$10,MATCH($C119,'Efficiency Distributions'!$C$9:$C$87,0)+RIGHT($E124),0)\n+AV$11*OFFSET('Efficiency Distributions'!$E$10,MATCH($C119,'Efficiency Distributions'!$C$9:$C$87,0)+RIGHT($E124),0))\n/SUM(AV$10:AV$11)","v":0.35107111622002157},{"$f":"IF(INDEX(PC_MAPPING,RIGHT($C119,1),MATCH($E$2,'Data by Building Type'!$D$22:$F$22,0))=\"Yes\",1,0)*\n(AW$10*OFFSET('Efficiency Distributions'!$D$10,MATCH($C119,'Efficiency Distributions'!$C$9:$C$87,0)+RIGHT($E124),0)\n+AW$11*OFFSET('Efficiency Distributions'!$E$10,MATCH($C119,'Efficiency Distributions'!$C$9:$C$87,0)+RIGHT($E124),0))\n/SUM(AW$10:AW$11)","v":0.35137683719170348},{"$f":"IF(INDEX(PC_MAPPING,RIGHT($C119,1),MATCH($E$2,'Data by Building Type'!$D$22:$F$22,0))=\"Yes\",1,0)*\n(AX$10*OFFSET('Efficiency Distributions'!$D$10,MATCH($C119,'Efficiency Distributions'!$C$9:$C$87,0)+RIGHT($E124),0)\n+AX$11*OFFSET('Efficiency Distributions'!$E$10,MATCH($C119,'Efficiency Distributions'!$C$9:$C$87,0)+RIGHT($E124),0))\n/SUM(AX$10:AX$11)","v":0.34983374696770991},{"$f":"IF(INDEX(PC_MAPPING,RIGHT($C119,1),MATCH($E$2,'Data by Building Type'!$D$22:$F$22,0))=\"Yes\",1,0)*\n(AY$10*OFFSET('Efficiency Distributions'!$D$10,MATCH($C119,'Efficiency Distributions'!$C$9:$C$87,0)+RIGHT($E124),0)\n+AY$11*OFFSET('Efficiency Distributions'!$E$10,MATCH($C119,'Efficiency Distributions'!$C$9:$C$87,0)+RIGHT($E124),0))\n/SUM(AY$10:AY$11)","v":0.3493655387952182},{"$f":"IF(INDEX(PC_MAPPING,RIGHT($C119,1),MATCH($E$2,'Data by Building Type'!$D$22:$F$22,0))=\"Yes\",1,0)*\n(AZ$10*OFFSET('Efficiency Distributions'!$D$10,MATCH($C119,'Efficiency Distributions'!$C$9:$C$87,0)+RIGHT($E124),0)\n+AZ$11*OFFSET('Efficiency Distributions'!$E$10,MATCH($C119,'Efficiency Distributions'!$C$9:$C$87,0)+RIGHT($E124),0))\n/SUM(AZ$10:AZ$11)","v":0.35006801705377605},{"$f":"IF(INDEX(PC_MAPPING,RIGHT($C119,1),MATCH($E$2,'Data by Building Type'!$D$22:$F$22,0))=\"Yes\",1,0)*\n(BA$10*OFFSET('Efficiency Distributions'!$D$10,MATCH($C119,'Efficiency Distributions'!$C$9:$C$87,0)+RIGHT($E124),0)\n+BA$11*OFFSET('Efficiency Distributions'!$E$10,MATCH($C119,'Efficiency Distributions'!$C$9:$C$87,0)+RIGHT($E124),0))\n/SUM(BA$10:BA$11)","v":0.35114814351728729},{"$f":"IF(INDEX(PC_MAPPING,RIGHT($C119,1),MATCH($E$2,'Data by Building Type'!$D$22:$F$22,0))=\"Yes\",1,0)*\n(BB$10*OFFSET('Efficiency Distributions'!$D$10,MATCH($C119,'Efficiency Distributions'!$C$9:$C$87,0)+RIGHT($E124),0)\n+BB$11*OFFSET('Efficiency Distributions'!$E$10,MATCH($C119,'Efficiency Distributions'!$C$9:$C$87,0)+RIGHT($E124),0))\n/SUM(BB$10:BB$11)","v":0.35345945450704364},{"$f":"IF(INDEX(PC_MAPPING,RIGHT($C119,1),MATCH($E$2,'Data by Building Type'!$D$22:$F$22,0))=\"Yes\",1,0)*\n(BC$10*OFFSET('Efficiency Distributions'!$D$10,MATCH($C119,'Efficiency Distributions'!$C$9:$C$87,0)+RIGHT($E124),0)\n+BC$11*OFFSET('Efficiency Distributions'!$E$10,MATCH($C119,'Efficiency Distributions'!$C$9:$C$87,0)+RIGHT($E124),0))\n/SUM(BC$10:BC$11)","v":0.35392812586084627},{"$f":"IF(INDEX(PC_MAPPING,RIGHT($C119,1),MATCH($E$2,'Data by Building Type'!$D$22:$F$22,0))=\"Yes\",1,0)*\n(BD$10*OFFSET('Efficiency Distributions'!$D$10,MATCH($C119,'Efficiency Distributions'!$C$9:$C$87,0)+RIGHT($E124),0)\n+BD$11*OFFSET('Efficiency Distributions'!$E$10,MATCH($C119,'Efficiency Distributions'!$C$9:$C$87,0)+RIGHT($E124),0))\n/SUM(BD$10:BD$11)","v":0.35130551351949324},{"$f":"IF(INDEX(PC_MAPPING,RIGHT($C119,1),MATCH($E$2,'Data by Building Type'!$D$22:$F$22,0))=\"Yes\",1,0)*\n(BE$10*OFFSET('Efficiency Distributions'!$D$10,MATCH($C119,'Efficiency Distributions'!$C$9:$C$87,0)+RIGHT($E124),0)\n+BE$11*OFFSET('Efficiency Distributions'!$E$10,MATCH($C119,'Efficiency Distributions'!$C$9:$C$87,0)+RIGHT($E124),0))\n/SUM(BE$10:BE$11)","v":0.3494719784259071},{"$f":"IF(INDEX(PC_MAPPING,RIGHT($C119,1),MATCH($E$2,'Data by Building Type'!$D$22:$F$22,0))=\"Yes\",1,0)*\n(BF$10*OFFSET('Efficiency Distributions'!$D$10,MATCH($C119,'Efficiency Distributions'!$C$9:$C$87,0)+RIGHT($E124),0)\n+BF$11*OFFSET('Efficiency Distributions'!$E$10,MATCH($C119,'Efficiency Distributions'!$C$9:$C$87,0)+RIGHT($E124),0))\n/SUM(BF$10:BF$11)","v":0.34582731407308753},{"$f":"IF(INDEX(PC_MAPPING,RIGHT($C119,1),MATCH($E$2,'Data by Building Type'!$D$22:$F$22,0))=\"Yes\",1,0)*\n(BG$10*OFFSET('Efficiency Distributions'!$D$10,MATCH($C119,'Efficiency Distributions'!$C$9:$C$87,0)+RIGHT($E124),0)\n+BG$11*OFFSET('Efficiency Distributions'!$E$10,MATCH($C119,'Efficiency Distributions'!$C$9:$C$87,0)+RIGHT($E124),0))\n/SUM(BG$10:BG$11)","v":0.34515299951811768}]
[null,null,null,null,"EL2",{"$f":"IF(INDEX(PC_MAPPING,RIGHT($C119,1),MATCH($E$2,'Data by Building Type'!$D$22:$F$22,0))=\"Yes\",1,0)*\n(F$10*OFFSET('Efficiency Distributions'!$D$10,MATCH($C119,'Efficiency Distributions'!$C$9:$C$87,0)+RIGHT($E125),0)\n+F$11*OFFSET('Efficiency Distributions'!$E$10,MATCH($C119,'Efficiency Distributions'!$C$9:$C$87,0)+RIGHT($E125),0))\n/SUM(F$10:F$11)","v":0},{"$f":"IF(INDEX(PC_MAPPING,RIGHT($C119,1),MATCH($E$2,'Data by Building Type'!$D$22:$F$22,0))=\"Yes\",1,0)*\n(G$10*OFFSET('Efficiency Distributions'!$D$10,MATCH($C119,'Efficiency Distributions'!$C$9:$C$87,0)+RIGHT($E125),0)\n+G$11*OFFSET('Efficiency Distributions'!$E$10,MATCH($C119,'Efficiency Distributions'!$C$9:$C$87,0)+RIGHT($E125),0))\n/SUM(G$10:G$11)","v":0},{"$f":"IF(INDEX(PC_MAPPING,RIGHT($C119,1),MATCH($E$2,'Data by Building Type'!$D$22:$F$22,0))=\"Yes\",1,0)*\n(H$10*OFFSET('Efficiency Distributions'!$D$10,MATCH($C119,'Efficiency Distributions'!$C$9:$C$87,0)+RIGHT($E125),0)\n+H$11*OFFSET('Efficiency Distributions'!$E$10,MATCH($C119,'Efficiency Distributions'!$C$9:$C$87,0)+RIGHT($E125),0))\n/SUM(H$10:H$11)","v":0},{"$f":"IF(INDEX(PC_MAPPING,RIGHT($C119,1),MATCH($E$2,'Data by Building Type'!$D$22:$F$22,0))=\"Yes\",1,0)*\n(I$10*OFFSET('Efficiency Distributions'!$D$10,MATCH($C119,'Efficiency Distributions'!$C$9:$C$87,0)+RIGHT($E125),0)\n+I$11*OFFSET('Efficiency Distributions'!$E$10,MATCH($C119,'Efficiency Distributions'!$C$9:$C$87,0)+RIGHT($E125),0))\n/SUM(I$10:I$11)","v":0},{"$f":"IF(INDEX(PC_MAPPING,RIGHT($C119,1),MATCH($E$2,'Data by Building Type'!$D$22:$F$22,0))=\"Yes\",1,0)*\n(J$10*OFFSET('Efficiency Distributions'!$D$10,MATCH($C119,'Efficiency Distributions'!$C$9:$C$87,0)+RIGHT($E125),0)\n+J$11*OFFSET('Efficiency Distributions'!$E$10,MATCH($C119,'Efficiency Distributions'!$C$9:$C$87,0)+RIGHT($E125),0))\n/SUM(J$10:J$11)","v":0},{"$f":"IF(INDEX(PC_MAPPING,RIGHT($C119,1),MATCH($E$2,'Data by Building Type'!$D$22:$F$22,0))=\"Yes\",1,0)*\n(K$10*OFFSET('Efficiency Distributions'!$D$10,MATCH($C119,'Efficiency Distributions'!$C$9:$C$87,0)+RIGHT($E125),0)\n+K$11*OFFSET('Efficiency Distributions'!$E$10,MATCH($C119,'Efficiency Distributions'!$C$9:$C$87,0)+RIGHT($E125),0))\n/SUM(K$10:K$11)","v":0},{"$f":"IF(INDEX(PC_MAPPING,RIGHT($C119,1),MATCH($E$2,'Data by Building Type'!$D$22:$F$22,0))=\"Yes\",1,0)*\n(L$10*OFFSET('Efficiency Distributions'!$D$10,MATCH($C119,'Efficiency Distributions'!$C$9:$C$87,0)+RIGHT($E125),0)\n+L$11*OFFSET('Efficiency Distributions'!$E$10,MATCH($C119,'Efficiency Distributions'!$C$9:$C$87,0)+RIGHT($E125),0))\n/SUM(L$10:L$11)","v":0},{"$f":"IF(INDEX(PC_MAPPING,RIGHT($C119,1),MATCH($E$2,'Data by Building Type'!$D$22:$F$22,0))=\"Yes\",1,0)*\n(M$10*OFFSET('Efficiency Distributions'!$D$10,MATCH($C119,'Efficiency Distributions'!$C$9:$C$87,0)+RIGHT($E125),0)\n+M$11*OFFSET('Efficiency Distributions'!$E$10,MATCH($C119,'Efficiency Distributions'!$C$9:$C$87,0)+RIGHT($E125),0))\n/SUM(M$10:M$11)","v":0},{"$f":"IF(INDEX(PC_MAPPING,RIGHT($C119,1),MATCH($E$2,'Data by Building Type'!$D$22:$F$22,0))=\"Yes\",1,0)*\n(N$10*OFFSET('Efficiency Distributions'!$D$10,MATCH($C119,'Efficiency Distributions'!$C$9:$C$87,0)+RIGHT($E125),0)\n+N$11*OFFSET('Efficiency Distributions'!$E$10,MATCH($C119,'Efficiency Distributions'!$C$9:$C$87,0)+RIGHT($E125),0))\n/SUM(N$10:N$11)","v":0},{"$f":"IF(INDEX(PC_MAPPING,RIGHT($C119,1),MATCH($E$2,'Data by Building Type'!$D$22:$F$22,0))=\"Yes\",1,0)*\n(O$10*OFFSET('Efficiency Distributions'!$D$10,MATCH($C119,'Efficiency Distributions'!$C$9:$C$87,0)+RIGHT($E125),0)\n+O$11*OFFSET('Efficiency Distributions'!$E$10,MATCH($C119,'Efficiency Distributions'!$C$9:$C$87,0)+RIGHT($E125),0))\n/SUM(O$10:O$11)","v":0},{"$f":"IF(INDEX(PC_MAPPING,RIGHT($C119,1),MATCH($E$2,'Data by Building Type'!$D$22:$F$22,0))=\"Yes\",1,0)*\n(P$10*OFFSET('Efficiency Distributions'!$D$10,MATCH($C119,'Efficiency Distributions'!$C$9:$C$87,0)+RIGHT($E125),0)\n+P$11*OFFSET('Efficiency Distributions'!$E$10,MATCH($C119,'Efficiency Distributions'!$C$9:$C$87,0)+RIGHT($E125),0))\n/SUM(P$10:P$11)","v":0},{"$f":"IF(INDEX(PC_MAPPING,RIGHT($C119,1),MATCH($E$2,'Data by Building Type'!$D$22:$F$22,0))=\"Yes\",1,0)*\n(Q$10*OFFSET('Efficiency Distributions'!$D$10,MATCH($C119,'Efficiency Distributions'!$C$9:$C$87,0)+RIGHT($E125),0)\n+Q$11*OFFSET('Efficiency Distributions'!$E$10,MATCH($C119,'Efficiency Distributions'!$C$9:$C$87,0)+RIGHT($E125),0))\n/SUM(Q$10:Q$11)","v":0},{"$f":"IF(INDEX(PC_MAPPING,RIGHT($C119,1),MATCH($E$2,'Data by Building Type'!$D$22:$F$22,0))=\"Yes\",1,0)*\n(R$10*OFFSET('Efficiency Distributions'!$D$10,MATCH($C119,'Efficiency Distributions'!$C$9:$C$87,0)+RIGHT($E125),0)\n+R$11*OFFSET('Efficiency Distributions'!$E$10,MATCH($C119,'Efficiency Distributions'!$C$9:$C$87,0)+RIGHT($E125),0))\n/SUM(R$10:R$11)","v":0},{"$f":"IF(INDEX(PC_MAPPING,RIGHT($C119,1),MATCH($E$2,'Data by Building Type'!$D$22:$F$22,0))=\"Yes\",1,0)*\n(S$10*OFFSET('Efficiency Distributions'!$D$10,MATCH($C119,'Efficiency Distributions'!$C$9:$C$87,0)+RIGHT($E125),0)\n+S$11*OFFSET('Efficiency Distributions'!$E$10,MATCH($C119,'Efficiency Distributions'!$C$9:$C$87,0)+RIGHT($E125),0))\n/SUM(S$10:S$11)","v":0},{"$f":"IF(INDEX(PC_MAPPING,RIGHT($C119,1),MATCH($E$2,'Data by Building Type'!$D$22:$F$22,0))=\"Yes\",1,0)*\n(T$10*OFFSET('Efficiency Distributions'!$D$10,MATCH($C119,'Efficiency Distributions'!$C$9:$C$87,0)+RIGHT($E125),0)\n+T$11*OFFSET('Efficiency Distributions'!$E$10,MATCH($C119,'Efficiency Distributions'!$C$9:$C$87,0)+RIGHT($E125),0))\n/SUM(T$10:T$11)","v":0},{"$f":"IF(INDEX(PC_MAPPING,RIGHT($C119,1),MATCH($E$2,'Data by Building Type'!$D$22:$F$22,0))=\"Yes\",1,0)*\n(U$10*OFFSET('Efficiency Distributions'!$D$10,MATCH($C119,'Efficiency Distributions'!$C$9:$C$87,0)+RIGHT($E125),0)\n+U$11*OFFSET('Efficiency Distributions'!$E$10,MATCH($C119,'Efficiency Distributions'!$C$9:$C$87,0)+RIGHT($E125),0))\n/SUM(U$10:U$11)","v":0},{"$f":"IF(INDEX(PC_MAPPING,RIGHT($C119,1),MATCH($E$2,'Data by Building Type'!$D$22:$F$22,0))=\"Yes\",1,0)*\n(V$10*OFFSET('Efficiency Distributions'!$D$10,MATCH($C119,'Efficiency Distributions'!$C$9:$C$87,0)+RIGHT($E125),0)\n+V$11*OFFSET('Efficiency Distributions'!$E$10,MATCH($C119,'Efficiency Distributions'!$C$9:$C$87,0)+RIGHT($E125),0))\n/SUM(V$10:V$11)","v":0},{"$f":"IF(INDEX(PC_MAPPING,RIGHT($C119,1),MATCH($E$2,'Data by Building Type'!$D$22:$F$22,0))=\"Yes\",1,0)*\n(W$10*OFFSET('Efficiency Distributions'!$D$10,MATCH($C119,'Efficiency Distributions'!$C$9:$C$87,0)+RIGHT($E125),0)\n+W$11*OFFSET('Efficiency Distributions'!$E$10,MATCH($C119,'Efficiency Distributions'!$C$9:$C$87,0)+RIGHT($E125),0))\n/SUM(W$10:W$11)","v":0},{"$f":"IF(INDEX(PC_MAPPING,RIGHT($C119,1),MATCH($E$2,'Data by Building Type'!$D$22:$F$22,0))=\"Yes\",1,0)*\n(X$10*OFFSET('Efficiency Distributions'!$D$10,MATCH($C119,'Efficiency Distributions'!$C$9:$C$87,0)+RIGHT($E125),0)\n+X$11*OFFSET('Efficiency Distributions'!$E$10,MATCH($C119,'Efficiency Distributions'!$C$9:$C$87,0)+RIGHT($E125),0))\n/SUM(X$10:X$11)","v":0},{"$f":"IF(INDEX(PC_MAPPING,RIGHT($C119,1),MATCH($E$2,'Data by Building Type'!$D$22:$F$22,0))=\"Yes\",1,0)*\n(Y$10*OFFSET('Efficiency Distributions'!$D$10,MATCH($C119,'Efficiency Distributions'!$C$9:$C$87,0)+RIGHT($E125),0)\n+Y$11*OFFSET('Efficiency Distributions'!$E$10,MATCH($C119,'Efficiency Distributions'!$C$9:$C$87,0)+RIGHT($E125),0))\n/SUM(Y$10:Y$11)","v":0},{"$f":"IF(INDEX(PC_MAPPING,RIGHT($C119,1),MATCH($E$2,'Data by Building Type'!$D$22:$F$22,0))=\"Yes\",1,0)*\n(Z$10*OFFSET('Efficiency Distributions'!$D$10,MATCH($C119,'Efficiency Distributions'!$C$9:$C$87,0)+RIGHT($E125),0)\n+Z$11*OFFSET('Efficiency Distributions'!$E$10,MATCH($C119,'Efficiency Distributions'!$C$9:$C$87,0)+RIGHT($E125),0))\n/SUM(Z$10:Z$11)","v":0},{"$f":"IF(INDEX(PC_MAPPING,RIGHT($C119,1),MATCH($E$2,'Data by Building Type'!$D$22:$F$22,0))=\"Yes\",1,0)*\n(AA$10*OFFSET('Efficiency Distributions'!$D$10,MATCH($C119,'Efficiency Distributions'!$C$9:$C$87,0)+RIGHT($E125),0)\n+AA$11*OFFSET('Efficiency Distributions'!$E$10,MATCH($C119,'Efficiency Distributions'!$C$9:$C$87,0)+RIGHT($E125),0))\n/SUM(AA$10:AA$11)","v":0},{"$f":"IF(INDEX(PC_MAPPING,RIGHT($C119,1),MATCH($E$2,'Data by Building Type'!$D$22:$F$22,0))=\"Yes\",1,0)*\n(AB$10*OFFSET('Efficiency Distributions'!$D$10,MATCH($C119,'Efficiency Distributions'!$C$9:$C$87,0)+RIGHT($E125),0)\n+AB$11*OFFSET('Efficiency Distributions'!$E$10,MATCH($C119,'Efficiency Distributions'!$C$9:$C$87,0)+RIGHT($E125),0))\n/SUM(AB$10:AB$11)","v":0},{"$f":"IF(INDEX(PC_MAPPING,RIGHT($C119,1),MATCH($E$2,'Data by Building Type'!$D$22:$F$22,0))=\"Yes\",1,0)*\n(AC$10*OFFSET('Efficiency Distributions'!$D$10,MATCH($C119,'Efficiency Distributions'!$C$9:$C$87,0)+RIGHT($E125),0)\n+AC$11*OFFSET('Efficiency Distributions'!$E$10,MATCH($C119,'Efficiency Distributions'!$C$9:$C$87,0)+RIGHT($E125),0))\n/SUM(AC$10:AC$11)","v":0},{"$f":"IF(INDEX(PC_MAPPING,RIGHT($C119,1),MATCH($E$2,'Data by Building Type'!$D$22:$F$22,0))=\"Yes\",1,0)*\n(AD$10*OFFSET('Efficiency Distributions'!$D$10,MATCH($C119,'Efficiency Distributions'!$C$9:$C$87,0)+RIGHT($E125),0)\n+AD$11*OFFSET('Efficiency Distributions'!$E$10,MATCH($C119,'Efficiency Distributions'!$C$9:$C$87,0)+RIGHT($E125),0))\n/SUM(AD$10:AD$11)","v":0},{"$f":"IF(INDEX(PC_MAPPING,RIGHT($C119,1),MATCH($E$2,'Data by Building Type'!$D$22:$F$22,0))=\"Yes\",1,0)*\n(AE$10*OFFSET('Efficiency Distributions'!$D$10,MATCH($C119,'Efficiency Distributions'!$C$9:$C$87,0)+RIGHT($E125),0)\n+AE$11*OFFSET('Efficiency Distributions'!$E$10,MATCH($C119,'Efficiency Distributions'!$C$9:$C$87,0)+RIGHT($E125),0))\n/SUM(AE$10:AE$11)","v":0},{"$f":"IF(INDEX(PC_MAPPING,RIGHT($C119,1),MATCH($E$2,'Data by Building Type'!$D$22:$F$22,0))=\"Yes\",1,0)*\n(AF$10*OFFSET('Efficiency Distributions'!$D$10,MATCH($C119,'Efficiency Distributions'!$C$9:$C$87,0)+RIGHT($E125),0)\n+AF$11*OFFSET('Efficiency Distributions'!$E$10,MATCH($C119,'Efficiency Distributions'!$C$9:$C$87,0)+RIGHT($E125),0))\n/SUM(AF$10:AF$11)","v":0},{"$f":"IF(INDEX(PC_MAPPING,RIGHT($C119,1),MATCH($E$2,'Data by Building Type'!$D$22:$F$22,0))=\"Yes\",1,0)*\n(AG$10*OFFSET('Efficiency Distributions'!$D$10,MATCH($C119,'Efficiency Distributions'!$C$9:$C$87,0)+RIGHT($E125),0)\n+AG$11*OFFSET('Efficiency Distributions'!$E$10,MATCH($C119,'Efficiency Distributions'!$C$9:$C$87,0)+RIGHT($E125),0))\n/SUM(AG$10:AG$11)","v":0},{"$f":"IF(INDEX(PC_MAPPING,RIGHT($C119,1),MATCH($E$2,'Data by Building Type'!$D$22:$F$22,0))=\"Yes\",1,0)*\n(AH$10*OFFSET('Efficiency Distributions'!$D$10,MATCH($C119,'Efficiency Distributions'!$C$9:$C$87,0)+RIGHT($E125),0)\n+AH$11*OFFSET('Efficiency Distributions'!$E$10,MATCH($C119,'Efficiency Distributions'!$C$9:$C$87,0)+RIGHT($E125),0))\n/SUM(AH$10:AH$11)","v":0},{"$f":"IF(INDEX(PC_MAPPING,RIGHT($C119,1),MATCH($E$2,'Data by Building Type'!$D$22:$F$22,0))=\"Yes\",1,0)*\n(AI$10*OFFSET('Efficiency Distributions'!$D$10,MATCH($C119,'Efficiency Distributions'!$C$9:$C$87,0)+RIGHT($E125),0)\n+AI$11*OFFSET('Efficiency Distributions'!$E$10,MATCH($C119,'Efficiency Distributions'!$C$9:$C$87,0)+RIGHT($E125),0))\n/SUM(AI$10:AI$11)","v":0},{"$f":"IF(INDEX(PC_MAPPING,RIGHT($C119,1),MATCH($E$2,'Data by Building Type'!$D$22:$F$22,0))=\"Yes\",1,0)*\n(AJ$10*OFFSET('Efficiency Distributions'!$D$10,MATCH($C119,'Efficiency Distributions'!$C$9:$C$87,0)+RIGHT($E125),0)\n+AJ$11*OFFSET('Efficiency Distributions'!$E$10,MATCH($C119,'Efficiency Distributions'!$C$9:$C$87,0)+RIGHT($E125),0))\n/SUM(AJ$10:AJ$11)","v":0},{"$f":"IF(INDEX(PC_MAPPING,RIGHT($C119,1),MATCH($E$2,'Data by Building Type'!$D$22:$F$22,0))=\"Yes\",1,0)*\n(AK$10*OFFSET('Efficiency Distributions'!$D$10,MATCH($C119,'Efficiency Distributions'!$C$9:$C$87,0)+RIGHT($E125),0)\n+AK$11*OFFSET('Efficiency Distributions'!$E$10,MATCH($C119,'Efficiency Distributions'!$C$9:$C$87,0)+RIGHT($E125),0))\n/SUM(AK$10:AK$11)","v":0},{"$f":"IF(INDEX(PC_MAPPING,RIGHT($C119,1),MATCH($E$2,'Data by Building Type'!$D$22:$F$22,0))=\"Yes\",1,0)*\n(AL$10*OFFSET('Efficiency Distributions'!$D$10,MATCH($C119,'Efficiency Distributions'!$C$9:$C$87,0)+RIGHT($E125),0)\n+AL$11*OFFSET('Efficiency Distributions'!$E$10,MATCH($C119,'Efficiency Distributions'!$C$9:$C$87,0)+RIGHT($E125),0))\n/SUM(AL$10:AL$11)","v":0},{"$f":"IF(INDEX(PC_MAPPING,RIGHT($C119,1),MATCH($E$2,'Data by Building Type'!$D$22:$F$22,0))=\"Yes\",1,0)*\n(AM$10*OFFSET('Efficiency Distributions'!$D$10,MATCH($C119,'Efficiency Distributions'!$C$9:$C$87,0)+RIGHT($E125),0)\n+AM$11*OFFSET('Efficiency Distributions'!$E$10,MATCH($C119,'Efficiency Distributions'!$C$9:$C$87,0)+RIGHT($E125),0))\n/SUM(AM$10:AM$11)","v":0},{"$f":"IF(INDEX(PC_MAPPING,RIGHT($C119,1),MATCH($E$2,'Data by Building Type'!$D$22:$F$22,0))=\"Yes\",1,0)*\n(AN$10*OFFSET('Efficiency Distributions'!$D$10,MATCH($C119,'Efficiency Distributions'!$C$9:$C$87,0)+RIGHT($E125),0)\n+AN$11*OFFSET('Efficiency Distributions'!$E$10,MATCH($C119,'Efficiency Distributions'!$C$9:$C$87,0)+RIGHT($E125),0))\n/SUM(AN$10:AN$11)","v":0},{"$f":"IF(INDEX(PC_MAPPING,RIGHT($C119,1),MATCH($E$2,'Data by Building Type'!$D$22:$F$22,0))=\"Yes\",1,0)*\n(AO$10*OFFSET('Efficiency Distributions'!$D$10,MATCH($C119,'Efficiency Distributions'!$C$9:$C$87,0)+RIGHT($E125),0)\n+AO$11*OFFSET('Efficiency Distributions'!$E$10,MATCH($C119,'Efficiency Distributions'!$C$9:$C$87,0)+RIGHT($E125),0))\n/SUM(AO$10:AO$11)","v":0},{"$f":"IF(INDEX(PC_MAPPING,RIGHT($C119,1),MATCH($E$2,'Data by Building Type'!$D$22:$F$22,0))=\"Yes\",1,0)*\n(AP$10*OFFSET('Efficiency Distributions'!$D$10,MATCH($C119,'Efficiency Distributions'!$C$9:$C$87,0)+RIGHT($E125),0)\n+AP$11*OFFSET('Efficiency Distributions'!$E$10,MATCH($C119,'Efficiency Distributions'!$C$9:$C$87,0)+RIGHT($E125),0))\n/SUM(AP$10:AP$11)","v":0},{"$f":"IF(INDEX(PC_MAPPING,RIGHT($C119,1),MATCH($E$2,'Data by Building Type'!$D$22:$F$22,0))=\"Yes\",1,0)*\n(AQ$10*OFFSET('Efficiency Distributions'!$D$10,MATCH($C119,'Efficiency Distributions'!$C$9:$C$87,0)+RIGHT($E125),0)\n+AQ$11*OFFSET('Efficiency Distributions'!$E$10,MATCH($C119,'Efficiency Distributions'!$C$9:$C$87,0)+RIGHT($E125),0))\n/SUM(AQ$10:AQ$11)","v":0},{"$f":"IF(INDEX(PC_MAPPING,RIGHT($C119,1),MATCH($E$2,'Data by Building Type'!$D$22:$F$22,0))=\"Yes\",1,0)*\n(AR$10*OFFSET('Efficiency Distributions'!$D$10,MATCH($C119,'Efficiency Distributions'!$C$9:$C$87,0)+RIGHT($E125),0)\n+AR$11*OFFSET('Efficiency Distributions'!$E$10,MATCH($C119,'Efficiency Distributions'!$C$9:$C$87,0)+RIGHT($E125),0))\n/SUM(AR$10:AR$11)","v":0},{"$f":"IF(INDEX(PC_MAPPING,RIGHT($C119,1),MATCH($E$2,'Data by Building Type'!$D$22:$F$22,0))=\"Yes\",1,0)*\n(AS$10*OFFSET('Efficiency Distributions'!$D$10,MATCH($C119,'Efficiency Distributions'!$C$9:$C$87,0)+RIGHT($E125),0)\n+AS$11*OFFSET('Efficiency Distributions'!$E$10,MATCH($C119,'Efficiency Distributions'!$C$9:$C$87,0)+RIGHT($E125),0))\n/SUM(AS$10:AS$11)","v":0},{"$f":"IF(INDEX(PC_MAPPING,RIGHT($C119,1),MATCH($E$2,'Data by Building Type'!$D$22:$F$22,0))=\"Yes\",1,0)*\n(AT$10*OFFSET('Efficiency Distributions'!$D$10,MATCH($C119,'Efficiency Distributions'!$C$9:$C$87,0)+RIGHT($E125),0)\n+AT$11*OFFSET('Efficiency Distributions'!$E$10,MATCH($C119,'Efficiency Distributions'!$C$9:$C$87,0)+RIGHT($E125),0))\n/SUM(AT$10:AT$11)","v":0},{"$f":"IF(INDEX(PC_MAPPING,RIGHT($C119,1),MATCH($E$2,'Data by Building Type'!$D$22:$F$22,0))=\"Yes\",1,0)*\n(AU$10*OFFSET('Efficiency Distributions'!$D$10,MATCH($C119,'Efficiency Distributions'!$C$9:$C$87,0)+RIGHT($E125),0)\n+AU$11*OFFSET('Efficiency Distributions'!$E$10,MATCH($C119,'Efficiency Distributions'!$C$9:$C$87,0)+RIGHT($E125),0))\n/SUM(AU$10:AU$11)","v":0},{"$f":"IF(INDEX(PC_MAPPING,RIGHT($C119,1),MATCH($E$2,'Data by Building Type'!$D$22:$F$22,0))=\"Yes\",1,0)*\n(AV$10*OFFSET('Efficiency Distributions'!$D$10,MATCH($C119,'Efficiency Distributions'!$C$9:$C$87,0)+RIGHT($E125),0)\n+AV$11*OFFSET('Efficiency Distributions'!$E$10,MATCH($C119,'Efficiency Distributions'!$C$9:$C$87,0)+RIGHT($E125),0))\n/SUM(AV$10:AV$11)","v":0},{"$f":"IF(INDEX(PC_MAPPING,RIGHT($C119,1),MATCH($E$2,'Data by Building Type'!$D$22:$F$22,0))=\"Yes\",1,0)*\n(AW$10*OFFSET('Efficiency Distributions'!$D$10,MATCH($C119,'Efficiency Distributions'!$C$9:$C$87,0)+RIGHT($E125),0)\n+AW$11*OFFSET('Efficiency Distributions'!$E$10,MATCH($C119,'Efficiency Distributions'!$C$9:$C$87,0)+RIGHT($E125),0))\n/SUM(AW$10:AW$11)","v":0},{"$f":"IF(INDEX(PC_MAPPING,RIGHT($C119,1),MATCH($E$2,'Data by Building Type'!$D$22:$F$22,0))=\"Yes\",1,0)*\n(AX$10*OFFSET('Efficiency Distributions'!$D$10,MATCH($C119,'Efficiency Distributions'!$C$9:$C$87,0)+RIGHT($E125),0)\n+AX$11*OFFSET('Efficiency Distributions'!$E$10,MATCH($C119,'Efficiency Distributions'!$C$9:$C$87,0)+RIGHT($E125),0))\n/SUM(AX$10:AX$11)","v":0},{"$f":"IF(INDEX(PC_MAPPING,RIGHT($C119,1),MATCH($E$2,'Data by Building Type'!$D$22:$F$22,0))=\"Yes\",1,0)*\n(AY$10*OFFSET('Efficiency Distributions'!$D$10,MATCH($C119,'Efficiency Distributions'!$C$9:$C$87,0)+RIGHT($E125),0)\n+AY$11*OFFSET('Efficiency Distributions'!$E$10,MATCH($C119,'Efficiency Distributions'!$C$9:$C$87,0)+RIGHT($E125),0))\n/SUM(AY$10:AY$11)","v":0},{"$f":"IF(INDEX(PC_MAPPING,RIGHT($C119,1),MATCH($E$2,'Data by Building Type'!$D$22:$F$22,0))=\"Yes\",1,0)*\n(AZ$10*OFFSET('Efficiency Distributions'!$D$10,MATCH($C119,'Efficiency Distributions'!$C$9:$C$87,0)+RIGHT($E125),0)\n+AZ$11*OFFSET('Efficiency Distributions'!$E$10,MATCH($C119,'Efficiency Distributions'!$C$9:$C$87,0)+RIGHT($E125),0))\n/SUM(AZ$10:AZ$11)","v":0},{"$f":"IF(INDEX(PC_MAPPING,RIGHT($C119,1),MATCH($E$2,'Data by Building Type'!$D$22:$F$22,0))=\"Yes\",1,0)*\n(BA$10*OFFSET('Efficiency Distributions'!$D$10,MATCH($C119,'Efficiency Distributions'!$C$9:$C$87,0)+RIGHT($E125),0)\n+BA$11*OFFSET('Efficiency Distributions'!$E$10,MATCH($C119,'Efficiency Distributions'!$C$9:$C$87,0)+RIGHT($E125),0))\n/SUM(BA$10:BA$11)","v":0},{"$f":"IF(INDEX(PC_MAPPING,RIGHT($C119,1),MATCH($E$2,'Data by Building Type'!$D$22:$F$22,0))=\"Yes\",1,0)*\n(BB$10*OFFSET('Efficiency Distributions'!$D$10,MATCH($C119,'Efficiency Distributions'!$C$9:$C$87,0)+RIGHT($E125),0)\n+BB$11*OFFSET('Efficiency Distributions'!$E$10,MATCH($C119,'Efficiency Distributions'!$C$9:$C$87,0)+RIGHT($E125),0))\n/SUM(BB$10:BB$11)","v":0},{"$f":"IF(INDEX(PC_MAPPING,RIGHT($C119,1),MATCH($E$2,'Data by Building Type'!$D$22:$F$22,0))=\"Yes\",1,0)*\n(BC$10*OFFSET('Efficiency Distributions'!$D$10,MATCH($C119,'Efficiency Distributions'!$C$9:$C$87,0)+RIGHT($E125),0)\n+BC$11*OFFSET('Efficiency Distributions'!$E$10,MATCH($C119,'Efficiency Distributions'!$C$9:$C$87,0)+RIGHT($E125),0))\n/SUM(BC$10:BC$11)","v":0},{"$f":"IF(INDEX(PC_MAPPING,RIGHT($C119,1),MATCH($E$2,'Data by Building Type'!$D$22:$F$22,0))=\"Yes\",1,0)*\n(BD$10*OFFSET('Efficiency Distributions'!$D$10,MATCH($C119,'Efficiency Distributions'!$C$9:$C$87,0)+RIGHT($E125),0)\n+BD$11*OFFSET('Efficiency Distributions'!$E$10,MATCH($C119,'Efficiency Distributions'!$C$9:$C$87,0)+RIGHT($E125),0))\n/SUM(BD$10:BD$11)","v":0},{"$f":"IF(INDEX(PC_MAPPING,RIGHT($C119,1),MATCH($E$2,'Data by Building Type'!$D$22:$F$22,0))=\"Yes\",1,0)*\n(BE$10*OFFSET('Efficiency Distributions'!$D$10,MATCH($C119,'Efficiency Distributions'!$C$9:$C$87,0)+RIGHT($E125),0)\n+BE$11*OFFSET('Efficiency Distributions'!$E$10,MATCH($C119,'Efficiency Distributions'!$C$9:$C$87,0)+RIGHT($E125),0))\n/SUM(BE$10:BE$11)","v":0},{"$f":"IF(INDEX(PC_MAPPING,RIGHT($C119,1),MATCH($E$2,'Data by Building Type'!$D$22:$F$22,0))=\"Yes\",1,0)*\n(BF$10*OFFSET('Efficiency Distributions'!$D$10,MATCH($C119,'Efficiency Distributions'!$C$9:$C$87,0)+RIGHT($E125),0)\n+BF$11*OFFSET('Efficiency Distributions'!$E$10,MATCH($C119,'Efficiency Distributions'!$C$9:$C$87,0)+RIGHT($E125),0))\n/SUM(BF$10:BF$11)","v":0},{"$f":"IF(INDEX(PC_MAPPING,RIGHT($C119,1),MATCH($E$2,'Data by Building Type'!$D$22:$F$22,0))=\"Yes\",1,0)*\n(BG$10*OFFSET('Efficiency Distributions'!$D$10,MATCH($C119,'Efficiency Distributions'!$C$9:$C$87,0)+RIGHT($E125),0)\n+BG$11*OFFSET('Efficiency Distributions'!$E$10,MATCH($C119,'Efficiency Distributions'!$C$9:$C$87,0)+RIGHT($E125),0))\n/SUM(BG$10:BG$11)","v":0}]
[null,null,null,null,"EL3",{"$f":"IF(INDEX(PC_MAPPING,RIGHT($C119,1),MATCH($E$2,'Data by Building Type'!$D$22:$F$22,0))=\"Yes\",1,0)*\n(F$10*OFFSET('Efficiency Distributions'!$D$10,MATCH($C119,'Efficiency Distributions'!$C$9:$C$87,0)+RIGHT($E126),0)\n+F$11*OFFSET('Efficiency Distributions'!$E$10,MATCH($C119,'Efficiency Distributions'!$C$9:$C$87,0)+RIGHT($E126),0))\n/SUM(F$10:F$11)","v":0.12301714019917001},{"$f":"IF(INDEX(PC_MAPPING,RIGHT($C119,1),MATCH($E$2,'Data by Building Type'!$D$22:$F$22,0))=\"Yes\",1,0)*\n(G$10*OFFSET('Efficiency Distributions'!$D$10,MATCH($C119,'Efficiency Distributions'!$C$9:$C$87,0)+RIGHT($E126),0)\n+G$11*OFFSET('Efficiency Distributions'!$E$10,MATCH($C119,'Efficiency Distributions'!$C$9:$C$87,0)+RIGHT($E126),0))\n/SUM(G$10:G$11)","v":0.12890466292245456},{"$f":"IF(INDEX(PC_MAPPING,RIGHT($C119,1),MATCH($E$2,'Data by Building Type'!$D$22:$F$22,0))=\"Yes\",1,0)*\n(H$10*OFFSET('Efficiency Distributions'!$D$10,MATCH($C119,'Efficiency Distributions'!$C$9:$C$87,0)+RIGHT($E126),0)\n+H$11*OFFSET('Efficiency Distributions'!$E$10,MATCH($C119,'Efficiency Distributions'!$C$9:$C$87,0)+RIGHT($E126),0))\n/SUM(H$10:H$11)","v":0.12186172896347872},{"$f":"IF(INDEX(PC_MAPPING,RIGHT($C119,1),MATCH($E$2,'Data by Building Type'!$D$22:$F$22,0))=\"Yes\",1,0)*\n(I$10*OFFSET('Efficiency Distributions'!$D$10,MATCH($C119,'Efficiency Distributions'!$C$9:$C$87,0)+RIGHT($E126),0)\n+I$11*OFFSET('Efficiency Distributions'!$E$10,MATCH($C119,'Efficiency Distributions'!$C$9:$C$87,0)+RIGHT($E126),0))\n/SUM(I$10:I$11)","v":0.12317527363155276},{"$f":"IF(INDEX(PC_MAPPING,RIGHT($C119,1),MATCH($E$2,'Data by Building Type'!$D$22:$F$22,0))=\"Yes\",1,0)*\n(J$10*OFFSET('Efficiency Distributions'!$D$10,MATCH($C119,'Efficiency Distributions'!$C$9:$C$87,0)+RIGHT($E126),0)\n+J$11*OFFSET('Efficiency Distributions'!$E$10,MATCH($C119,'Efficiency Distributions'!$C$9:$C$87,0)+RIGHT($E126),0))\n/SUM(J$10:J$11)","v":0.12398855270330995},{"$f":"IF(INDEX(PC_MAPPING,RIGHT($C119,1),MATCH($E$2,'Data by Building Type'!$D$22:$F$22,0))=\"Yes\",1,0)*\n(K$10*OFFSET('Efficiency Distributions'!$D$10,MATCH($C119,'Efficiency Distributions'!$C$9:$C$87,0)+RIGHT($E126),0)\n+K$11*OFFSET('Efficiency Distributions'!$E$10,MATCH($C119,'Efficiency Distributions'!$C$9:$C$87,0)+RIGHT($E126),0))\n/SUM(K$10:K$11)","v":0.12264605361167094},{"$f":"IF(INDEX(PC_MAPPING,RIGHT($C119,1),MATCH($E$2,'Data by Building Type'!$D$22:$F$22,0))=\"Yes\",1,0)*\n(L$10*OFFSET('Efficiency Distributions'!$D$10,MATCH($C119,'Efficiency Distributions'!$C$9:$C$87,0)+RIGHT($E126),0)\n+L$11*OFFSET('Efficiency Distributions'!$E$10,MATCH($C119,'Efficiency Distributions'!$C$9:$C$87,0)+RIGHT($E126),0))\n/SUM(L$10:L$11)","v":0.12254042666292164},{"$f":"IF(INDEX(PC_MAPPING,RIGHT($C119,1),MATCH($E$2,'Data by Building Type'!$D$22:$F$22,0))=\"Yes\",1,0)*\n(M$10*OFFSET('Efficiency Distributions'!$D$10,MATCH($C119,'Efficiency Distributions'!$C$9:$C$87,0)+RIGHT($E126),0)\n+M$11*OFFSET('Efficiency Distributions'!$E$10,MATCH($C119,'Efficiency Distributions'!$C$9:$C$87,0)+RIGHT($E126),0))\n/SUM(M$10:M$11)","v":0.12074170793942487},{"$f":"IF(INDEX(PC_MAPPING,RIGHT($C119,1),MATCH($E$2,'Data by Building Type'!$D$22:$F$22,0))=\"Yes\",1,0)*\n(N$10*OFFSET('Efficiency Distributions'!$D$10,MATCH($C119,'Efficiency Distributions'!$C$9:$C$87,0)+RIGHT($E126),0)\n+N$11*OFFSET('Efficiency Distributions'!$E$10,MATCH($C119,'Efficiency Distributions'!$C$9:$C$87,0)+RIGHT($E126),0))\n/SUM(N$10:N$11)","v":0.11663720286206153},{"$f":"IF(INDEX(PC_MAPPING,RIGHT($C119,1),MATCH($E$2,'Data by Building Type'!$D$22:$F$22,0))=\"Yes\",1,0)*\n(O$10*OFFSET('Efficiency Distributions'!$D$10,MATCH($C119,'Efficiency Distributions'!$C$9:$C$87,0)+RIGHT($E126),0)\n+O$11*OFFSET('Efficiency Distributions'!$E$10,MATCH($C119,'Efficiency Distributions'!$C$9:$C$87,0)+RIGHT($E126),0))\n/SUM(O$10:O$11)","v":0.11384018264398044},{"$f":"IF(INDEX(PC_MAPPING,RIGHT($C119,1),MATCH($E$2,'Data by Building Type'!$D$22:$F$22,0))=\"Yes\",1,0)*\n(P$10*OFFSET('Efficiency Distributions'!$D$10,MATCH($C119,'Efficiency Distributions'!$C$9:$C$87,0)+RIGHT($E126),0)\n+P$11*OFFSET('Efficiency Distributions'!$E$10,MATCH($C119,'Efficiency Distributions'!$C$9:$C$87,0)+RIGHT($E126),0))\n/SUM(P$10:P$11)","v":0.11669161582923074},{"$f":"IF(INDEX(PC_MAPPING,RIGHT($C119,1),MATCH($E$2,'Data by Building Type'!$D$22:$F$22,0))=\"Yes\",1,0)*\n(Q$10*OFFSET('Efficiency Distributions'!$D$10,MATCH($C119,'Efficiency Distributions'!$C$9:$C$87,0)+RIGHT($E126),0)\n+Q$11*OFFSET('Efficiency Distributions'!$E$10,MATCH($C119,'Efficiency Distributions'!$C$9:$C$87,0)+RIGHT($E126),0))\n/SUM(Q$10:Q$11)","v":0.11200172211595022},{"$f":"IF(INDEX(PC_MAPPING,RIGHT($C119,1),MATCH($E$2,'Data by Building Type'!$D$22:$F$22,0))=\"Yes\",1,0)*\n(R$10*OFFSET('Efficiency Distributions'!$D$10,MATCH($C119,'Efficiency Distributions'!$C$9:$C$87,0)+RIGHT($E126),0)\n+R$11*OFFSET('Efficiency Distributions'!$E$10,MATCH($C119,'Efficiency Distributions'!$C$9:$C$87,0)+RIGHT($E126),0))\n/SUM(R$10:R$11)","v":0.12488449188265972},{"$f":"IF(INDEX(PC_MAPPING,RIGHT($C119,1),MATCH($E$2,'Data by Building Type'!$D$22:$F$22,0))=\"Yes\",1,0)*\n(S$10*OFFSET('Efficiency Distributions'!$D$10,MATCH($C119,'Efficiency Distributions'!$C$9:$C$87,0)+RIGHT($E126),0)\n+S$11*OFFSET('Efficiency Distributions'!$E$10,MATCH($C119,'Efficiency Distributions'!$C$9:$C$87,0)+RIGHT($E126),0))\n/SUM(S$10:S$11)","v":0.12358695270725559},{"$f":"IF(INDEX(PC_MAPPING,RIGHT($C119,1),MATCH($E$2,'Data by Building Type'!$D$22:$F$22,0))=\"Yes\",1,0)*\n(T$10*OFFSET('Efficiency Distributions'!$D$10,MATCH($C119,'Efficiency Distributions'!$C$9:$C$87,0)+RIGHT($E126),0)\n+T$11*OFFSET('Efficiency Distributions'!$E$10,MATCH($C119,'Efficiency Distributions'!$C$9:$C$87,0)+RIGHT($E126),0))\n/SUM(T$10:T$11)","v":0.12836801328229083},{"$f":"IF(INDEX(PC_MAPPING,RIGHT($C119,1),MATCH($E$2,'Data by Building Type'!$D$22:$F$22,0))=\"Yes\",1,0)*\n(U$10*OFFSET('Efficiency Distributions'!$D$10,MATCH($C119,'Efficiency Distributions'!$C$9:$C$87,0)+RIGHT($E126),0)\n+U$11*OFFSET('Efficiency Distributions'!$E$10,MATCH($C119,'Efficiency Distributions'!$C$9:$C$87,0)+RIGHT($E126),0))\n/SUM(U$10:U$11)","v":0.12767923661208364},{"$f":"IF(INDEX(PC_MAPPING,RIGHT($C119,1),MATCH($E$2,'Data by Building Type'!$D$22:$F$22,0))=\"Yes\",1,0)*\n(V$10*OFFSET('Efficiency Distributions'!$D$10,MATCH($C119,'Efficiency Distributions'!$C$9:$C$87,0)+RIGHT($E126),0)\n+V$11*OFFSET('Efficiency Distributions'!$E$10,MATCH($C119,'Efficiency Distributions'!$C$9:$C$87,0)+RIGHT($E126),0))\n/SUM(V$10:V$11)","v":0.12869791133212358},{"$f":"IF(INDEX(PC_MAPPING,RIGHT($C119,1),MATCH($E$2,'Data by Building Type'!$D$22:$F$22,0))=\"Yes\",1,0)*\n(W$10*OFFSET('Efficiency Distributions'!$D$10,MATCH($C119,'Efficiency Distributions'!$C$9:$C$87,0)+RIGHT($E126),0)\n+W$11*OFFSET('Efficiency Distributions'!$E$10,MATCH($C119,'Efficiency Distributions'!$C$9:$C$87,0)+RIGHT($E126),0))\n/SUM(W$10:W$11)","v":0.12820944833426287},{"$f":"IF(INDEX(PC_MAPPING,RIGHT($C119,1),MATCH($E$2,'Data by Building Type'!$D$22:$F$22,0))=\"Yes\",1,0)*\n(X$10*OFFSET('Efficiency Distributions'!$D$10,MATCH($C119,'Efficiency Distributions'!$C$9:$C$87,0)+RIGHT($E126),0)\n+X$11*OFFSET('Efficiency Distributions'!$E$10,MATCH($C119,'Efficiency Distributions'!$C$9:$C$87,0)+RIGHT($E126),0))\n/SUM(X$10:X$11)","v":0.12977752753033536},{"$f":"IF(INDEX(PC_MAPPING,RIGHT($C119,1),MATCH($E$2,'Data by Building Type'!$D$22:$F$22,0))=\"Yes\",1,0)*\n(Y$10*OFFSET('Efficiency Distributions'!$D$10,MATCH($C119,'Efficiency Distributions'!$C$9:$C$87,0)+RIGHT($E126),0)\n+Y$11*OFFSET('Efficiency Distributions'!$E$10,MATCH($C119,'Efficiency Distributions'!$C$9:$C$87,0)+RIGHT($E126),0))\n/SUM(Y$10:Y$11)","v":0.13359258805349492},{"$f":"IF(INDEX(PC_MAPPING,RIGHT($C119,1),MATCH($E$2,'Data by Building Type'!$D$22:$F$22,0))=\"Yes\",1,0)*\n(Z$10*OFFSET('Efficiency Distributions'!$D$10,MATCH($C119,'Efficiency Distributions'!$C$9:$C$87,0)+RIGHT($E126),0)\n+Z$11*OFFSET('Efficiency Distributions'!$E$10,MATCH($C119,'Efficiency Distributions'!$C$9:$C$87,0)+RIGHT($E126),0))\n/SUM(Z$10:Z$11)","v":0.13365701250989045},{"$f":"IF(INDEX(PC_MAPPING,RIGHT($C119,1),MATCH($E$2,'Data by Building Type'!$D$22:$F$22,0))=\"Yes\",1,0)*\n(AA$10*OFFSET('Efficiency Distributions'!$D$10,MATCH($C119,'Efficiency Distributions'!$C$9:$C$87,0)+RIGHT($E126),0)\n+AA$11*OFFSET('Efficiency Distributions'!$E$10,MATCH($C119,'Efficiency Distributions'!$C$9:$C$87,0)+RIGHT($E126),0))\n/SUM(AA$10:AA$11)","v":0.13306599537504624},{"$f":"IF(INDEX(PC_MAPPING,RIGHT($C119,1),MATCH($E$2,'Data by Building Type'!$D$22:$F$22,0))=\"Yes\",1,0)*\n(AB$10*OFFSET('Efficiency Distributions'!$D$10,MATCH($C119,'Efficiency Distributions'!$C$9:$C$87,0)+RIGHT($E126),0)\n+AB$11*OFFSET('Efficiency Distributions'!$E$10,MATCH($C119,'Efficiency Distributions'!$C$9:$C$87,0)+RIGHT($E126),0))\n/SUM(AB$10:AB$11)","v":0.12969870931995711},{"$f":"IF(INDEX(PC_MAPPING,RIGHT($C119,1),MATCH($E$2,'Data by Building Type'!$D$22:$F$22,0))=\"Yes\",1,0)*\n(AC$10*OFFSET('Efficiency Distributions'!$D$10,MATCH($C119,'Efficiency Distributions'!$C$9:$C$87,0)+RIGHT($E126),0)\n+AC$11*OFFSET('Efficiency Distributions'!$E$10,MATCH($C119,'Efficiency Distributions'!$C$9:$C$87,0)+RIGHT($E126),0))\n/SUM(AC$10:AC$11)","v":0.12993392981569557},{"$f":"IF(INDEX(PC_MAPPING,RIGHT($C119,1),MATCH($E$2,'Data by Building Type'!$D$22:$F$22,0))=\"Yes\",1,0)*\n(AD$10*OFFSET('Efficiency Distributions'!$D$10,MATCH($C119,'Efficiency Distributions'!$C$9:$C$87,0)+RIGHT($E126),0)\n+AD$11*OFFSET('Efficiency Distributions'!$E$10,MATCH($C119,'Efficiency Distributions'!$C$9:$C$87,0)+RIGHT($E126),0))\n/SUM(AD$10:AD$11)","v":0.12703491236758721},{"$f":"IF(INDEX(PC_MAPPING,RIGHT($C119,1),MATCH($E$2,'Data by Building Type'!$D$22:$F$22,0))=\"Yes\",1,0)*\n(AE$10*OFFSET('Efficiency Distributions'!$D$10,MATCH($C119,'Efficiency Distributions'!$C$9:$C$87,0)+RIGHT($E126),0)\n+AE$11*OFFSET('Efficiency Distributions'!$E$10,MATCH($C119,'Efficiency Distributions'!$C$9:$C$87,0)+RIGHT($E126),0))\n/SUM(AE$10:AE$11)","v":0.13143472808580867},{"$f":"IF(INDEX(PC_MAPPING,RIGHT($C119,1),MATCH($E$2,'Data by Building Type'!$D$22:$F$22,0))=\"Yes\",1,0)*\n(AF$10*OFFSET('Efficiency Distributions'!$D$10,MATCH($C119,'Efficiency Distributions'!$C$9:$C$87,0)+RIGHT($E126),0)\n+AF$11*OFFSET('Efficiency Distributions'!$E$10,MATCH($C119,'Efficiency Distributions'!$C$9:$C$87,0)+RIGHT($E126),0))\n/SUM(AF$10:AF$11)","v":0.1411534908925319},{"$f":"IF(INDEX(PC_MAPPING,RIGHT($C119,1),MATCH($E$2,'Data by Building Type'!$D$22:$F$22,0))=\"Yes\",1,0)*\n(AG$10*OFFSET('Efficiency Distributions'!$D$10,MATCH($C119,'Efficiency Distributions'!$C$9:$C$87,0)+RIGHT($E126),0)\n+AG$11*OFFSET('Efficiency Distributions'!$E$10,MATCH($C119,'Efficiency Distributions'!$C$9:$C$87,0)+RIGHT($E126),0))\n/SUM(AG$10:AG$11)","v":0.14530287365295766},{"$f":"IF(INDEX(PC_MAPPING,RIGHT($C119,1),MATCH($E$2,'Data by Building Type'!$D$22:$F$22,0))=\"Yes\",1,0)*\n(AH$10*OFFSET('Efficiency Distributions'!$D$10,MATCH($C119,'Efficiency Distributions'!$C$9:$C$87,0)+RIGHT($E126),0)\n+AH$11*OFFSET('Efficiency Distributions'!$E$10,MATCH($C119,'Efficiency Distributions'!$C$9:$C$87,0)+RIGHT($E126),0))\n/SUM(AH$10:AH$11)","v":0.14530287365295766},{"$f":"IF(INDEX(PC_MAPPING,RIGHT($C119,1),MATCH($E$2,'Data by Building Type'!$D$22:$F$22,0))=\"Yes\",1,0)*\n(AI$10*OFFSET('Efficiency Distributions'!$D$10,MATCH($C119,'Efficiency Distributions'!$C$9:$C$87,0)+RIGHT($E126),0)\n+AI$11*OFFSET('Efficiency Distributions'!$E$10,MATCH($C119,'Efficiency Distributions'!$C$9:$C$87,0)+RIGHT($E126),0))\n/SUM(AI$10:AI$11)","v":0.14530287365295766},{"$f":"IF(INDEX(PC_MAPPING,RIGHT($C119,1),MATCH($E$2,'Data by Building Type'!$D$22:$F$22,0))=\"Yes\",1,0)*\n(AJ$10*OFFSET('Efficiency Distributions'!$D$10,MATCH($C119,'Efficiency Distributions'!$C$9:$C$87,0)+RIGHT($E126),0)\n+AJ$11*OFFSET('Efficiency Distributions'!$E$10,MATCH($C119,'Efficiency Distributions'!$C$9:$C$87,0)+RIGHT($E126),0))\n/SUM(AJ$10:AJ$11)","v":0.14357435718218364},{"$f":"IF(INDEX(PC_MAPPING,RIGHT($C119,1),MATCH($E$2,'Data by Building Type'!$D$22:$F$22,0))=\"Yes\",1,0)*\n(AK$10*OFFSET('Efficiency Distributions'!$D$10,MATCH($C119,'Efficiency Distributions'!$C$9:$C$87,0)+RIGHT($E126),0)\n+AK$11*OFFSET('Efficiency Distributions'!$E$10,MATCH($C119,'Efficiency Distributions'!$C$9:$C$87,0)+RIGHT($E126),0))\n/SUM(AK$10:AK$11)","v":0.11940688819281814},{"$f":"IF(INDEX(PC_MAPPING,RIGHT($C119,1),MATCH($E$2,'Data by Building Type'!$D$22:$F$22,0))=\"Yes\",1,0)*\n(AL$10*OFFSET('Efficiency Distributions'!$D$10,MATCH($C119,'Efficiency Distributions'!$C$9:$C$87,0)+RIGHT($E126),0)\n+AL$11*OFFSET('Efficiency Distributions'!$E$10,MATCH($C119,'Efficiency Distributions'!$C$9:$C$87,0)+RIGHT($E126),0))\n/SUM(AL$10:AL$11)","v":0.12013014795442378},{"$f":"IF(INDEX(PC_MAPPING,RIGHT($C119,1),MATCH($E$2,'Data by Building Type'!$D$22:$F$22,0))=\"Yes\",1,0)*\n(AM$10*OFFSET('Efficiency Distributions'!$D$10,MATCH($C119,'Efficiency Distributions'!$C$9:$C$87,0)+RIGHT($E126),0)\n+AM$11*OFFSET('Efficiency Distributions'!$E$10,MATCH($C119,'Efficiency Distributions'!$C$9:$C$87,0)+RIGHT($E126),0))\n/SUM(AM$10:AM$11)","v":0.11702289205648983},{"$f":"IF(INDEX(PC_MAPPING,RIGHT($C119,1),MATCH($E$2,'Data by Building Type'!$D$22:$F$22,0))=\"Yes\",1,0)*\n(AN$10*OFFSET('Efficiency Distributions'!$D$10,MATCH($C119,'Efficiency Distributions'!$C$9:$C$87,0)+RIGHT($E126),0)\n+AN$11*OFFSET('Efficiency Distributions'!$E$10,MATCH($C119,'Efficiency Distributions'!$C$9:$C$87,0)+RIGHT($E126),0))\n/SUM(AN$10:AN$11)","v":0.11727376526623916},{"$f":"IF(INDEX(PC_MAPPING,RIGHT($C119,1),MATCH($E$2,'Data by Building Type'!$D$22:$F$22,0))=\"Yes\",1,0)*\n(AO$10*OFFSET('Efficiency Distributions'!$D$10,MATCH($C119,'Efficiency Distributions'!$C$9:$C$87,0)+RIGHT($E126),0)\n+AO$11*OFFSET('Efficiency Distributions'!$E$10,MATCH($C119,'Efficiency Distributions'!$C$9:$C$87,0)+RIGHT($E126),0))\n/SUM(AO$10:AO$11)","v":0.11605625041447395},{"$f":"IF(INDEX(PC_MAPPING,RIGHT($C119,1),MATCH($E$2,'Data by Building Type'!$D$22:$F$22,0))=\"Yes\",1,0)*\n(AP$10*OFFSET('Efficiency Distributions'!$D$10,MATCH($C119,'Efficiency Distributions'!$C$9:$C$87,0)+RIGHT($E126),0)\n+AP$11*OFFSET('Efficiency Distributions'!$E$10,MATCH($C119,'Efficiency Distributions'!$C$9:$C$87,0)+RIGHT($E126),0))\n/SUM(AP$10:AP$11)","v":0.11659187160853676},{"$f":"IF(INDEX(PC_MAPPING,RIGHT($C119,1),MATCH($E$2,'Data by Building Type'!$D$22:$F$22,0))=\"Yes\",1,0)*\n(AQ$10*OFFSET('Efficiency Distributions'!$D$10,MATCH($C119,'Efficiency Distributions'!$C$9:$C$87,0)+RIGHT($E126),0)\n+AQ$11*OFFSET('Efficiency Distributions'!$E$10,MATCH($C119,'Efficiency Distributions'!$C$9:$C$87,0)+RIGHT($E126),0))\n/SUM(AQ$10:AQ$11)","v":0.11677377013109734},{"$f":"IF(INDEX(PC_MAPPING,RIGHT($C119,1),MATCH($E$2,'Data by Building Type'!$D$22:$F$22,0))=\"Yes\",1,0)*\n(AR$10*OFFSET('Efficiency Distributions'!$D$10,MATCH($C119,'Efficiency Distributions'!$C$9:$C$87,0)+RIGHT($E126),0)\n+AR$11*OFFSET('Efficiency Distributions'!$E$10,MATCH($C119,'Efficiency Distributions'!$C$9:$C$87,0)+RIGHT($E126),0))\n/SUM(AR$10:AR$11)","v":0.11734629812034555},{"$f":"IF(INDEX(PC_MAPPING,RIGHT($C119,1),MATCH($E$2,'Data by Building Type'!$D$22:$F$22,0))=\"Yes\",1,0)*\n(AS$10*OFFSET('Efficiency Distributions'!$D$10,MATCH($C119,'Efficiency Distributions'!$C$9:$C$87,0)+RIGHT($E126),0)\n+AS$11*OFFSET('Efficiency Distributions'!$E$10,MATCH($C119,'Efficiency Distributions'!$C$9:$C$87,0)+RIGHT($E126),0))\n/SUM(AS$10:AS$11)","v":0.11733869383384345},{"$f":"IF(INDEX(PC_MAPPING,RIGHT($C119,1),MATCH($E$2,'Data by Building Type'!$D$22:$F$22,0))=\"Yes\",1,0)*\n(AT$10*OFFSET('Efficiency Distributions'!$D$10,MATCH($C119,'Efficiency Distributions'!$C$9:$C$87,0)+RIGHT($E126),0)\n+AT$11*OFFSET('Efficiency Distributions'!$E$10,MATCH($C119,'Efficiency Distributions'!$C$9:$C$87,0)+RIGHT($E126),0))\n/SUM(AT$10:AT$11)","v":0.11703523226745439},{"$f":"IF(INDEX(PC_MAPPING,RIGHT($C119,1),MATCH($E$2,'Data by Building Type'!$D$22:$F$22,0))=\"Yes\",1,0)*\n(AU$10*OFFSET('Efficiency Distributions'!$D$10,MATCH($C119,'Efficiency Distributions'!$C$9:$C$87,0)+RIGHT($E126),0)\n+AU$11*OFFSET('Efficiency Distributions'!$E$10,MATCH($C119,'Efficiency Distributions'!$C$9:$C$87,0)+RIGHT($E126),0))\n/SUM(AU$10:AU$11)","v":0.11739160022854718},{"$f":"IF(INDEX(PC_MAPPING,RIGHT($C119,1),MATCH($E$2,'Data by Building Type'!$D$22:$F$22,0))=\"Yes\",1,0)*\n(AV$10*OFFSET('Efficiency Distributions'!$D$10,MATCH($C119,'Efficiency Distributions'!$C$9:$C$87,0)+RIGHT($E126),0)\n+AV$11*OFFSET('Efficiency Distributions'!$E$10,MATCH($C119,'Efficiency Distributions'!$C$9:$C$87,0)+RIGHT($E126),0))\n/SUM(AV$10:AV$11)","v":0.12230940325732413},{"$f":"IF(INDEX(PC_MAPPING,RIGHT($C119,1),MATCH($E$2,'Data by Building Type'!$D$22:$F$22,0))=\"Yes\",1,0)*\n(AW$10*OFFSET('Efficiency Distributions'!$D$10,MATCH($C119,'Efficiency Distributions'!$C$9:$C$87,0)+RIGHT($E126),0)\n+AW$11*OFFSET('Efficiency Distributions'!$E$10,MATCH($C119,'Efficiency Distributions'!$C$9:$C$87,0)+RIGHT($E126),0))\n/SUM(AW$10:AW$11)","v":0.12201941003554977},{"$f":"IF(INDEX(PC_MAPPING,RIGHT($C119,1),MATCH($E$2,'Data by Building Type'!$D$22:$F$22,0))=\"Yes\",1,0)*\n(AX$10*OFFSET('Efficiency Distributions'!$D$10,MATCH($C119,'Efficiency Distributions'!$C$9:$C$87,0)+RIGHT($E126),0)\n+AX$11*OFFSET('Efficiency Distributions'!$E$10,MATCH($C119,'Efficiency Distributions'!$C$9:$C$87,0)+RIGHT($E126),0))\n/SUM(AX$10:AX$11)","v":0.12348311631347543},{"$f":"IF(INDEX(PC_MAPPING,RIGHT($C119,1),MATCH($E$2,'Data by Building Type'!$D$22:$F$22,0))=\"Yes\",1,0)*\n(AY$10*OFFSET('Efficiency Distributions'!$D$10,MATCH($C119,'Efficiency Distributions'!$C$9:$C$87,0)+RIGHT($E126),0)\n+AY$11*OFFSET('Efficiency Distributions'!$E$10,MATCH($C119,'Efficiency Distributions'!$C$9:$C$87,0)+RIGHT($E126),0))\n/SUM(AY$10:AY$11)","v":0.12392723761681605},{"$f":"IF(INDEX(PC_MAPPING,RIGHT($C119,1),MATCH($E$2,'Data by Building Type'!$D$22:$F$22,0))=\"Yes\",1,0)*\n(AZ$10*OFFSET('Efficiency Distributions'!$D$10,MATCH($C119,'Efficiency Distributions'!$C$9:$C$87,0)+RIGHT($E126),0)\n+AZ$11*OFFSET('Efficiency Distributions'!$E$10,MATCH($C119,'Efficiency Distributions'!$C$9:$C$87,0)+RIGHT($E126),0))\n/SUM(AZ$10:AZ$11)","v":0.12326089820181002},{"$f":"IF(INDEX(PC_MAPPING,RIGHT($C119,1),MATCH($E$2,'Data by Building Type'!$D$22:$F$22,0))=\"Yes\",1,0)*\n(BA$10*OFFSET('Efficiency Distributions'!$D$10,MATCH($C119,'Efficiency Distributions'!$C$9:$C$87,0)+RIGHT($E126),0)\n+BA$11*OFFSET('Efficiency Distributions'!$E$10,MATCH($C119,'Efficiency Distributions'!$C$9:$C$87,0)+RIGHT($E126),0))\n/SUM(BA$10:BA$11)","v":0.12223633861286816},{"$f":"IF(INDEX(PC_MAPPING,RIGHT($C119,1),MATCH($E$2,'Data by Building Type'!$D$22:$F$22,0))=\"Yes\",1,0)*\n(BB$10*OFFSET('Efficiency Distributions'!$D$10,MATCH($C119,'Efficiency Distributions'!$C$9:$C$87,0)+RIGHT($E126),0)\n+BB$11*OFFSET('Efficiency Distributions'!$E$10,MATCH($C119,'Efficiency Distributions'!$C$9:$C$87,0)+RIGHT($E126),0))\n/SUM(BB$10:BB$11)","v":0.12004393252193374},{"$f":"IF(INDEX(PC_MAPPING,RIGHT($C119,1),MATCH($E$2,'Data by Building Type'!$D$22:$F$22,0))=\"Yes\",1,0)*\n(BC$10*OFFSET('Efficiency Distributions'!$D$10,MATCH($C119,'Efficiency Distributions'!$C$9:$C$87,0)+RIGHT($E126),0)\n+BC$11*OFFSET('Efficiency Distributions'!$E$10,MATCH($C119,'Efficiency Distributions'!$C$9:$C$87,0)+RIGHT($E126),0))\n/SUM(BC$10:BC$11)","v":0.11959937186554559},{"$f":"IF(INDEX(PC_MAPPING,RIGHT($C119,1),MATCH($E$2,'Data by Building Type'!$D$22:$F$22,0))=\"Yes\",1,0)*\n(BD$10*OFFSET('Efficiency Distributions'!$D$10,MATCH($C119,'Efficiency Distributions'!$C$9:$C$87,0)+RIGHT($E126),0)\n+BD$11*OFFSET('Efficiency Distributions'!$E$10,MATCH($C119,'Efficiency Distributions'!$C$9:$C$87,0)+RIGHT($E126),0))\n/SUM(BD$10:BD$11)","v":0.12208706447671956},{"$f":"IF(INDEX(PC_MAPPING,RIGHT($C119,1),MATCH($E$2,'Data by Building Type'!$D$22:$F$22,0))=\"Yes\",1,0)*\n(BE$10*OFFSET('Efficiency Distributions'!$D$10,MATCH($C119,'Efficiency Distributions'!$C$9:$C$87,0)+RIGHT($E126),0)\n+BE$11*OFFSET('Efficiency Distributions'!$E$10,MATCH($C119,'Efficiency Distributions'!$C$9:$C$87,0)+RIGHT($E126),0))\n/SUM(BE$10:BE$11)","v":0.12382627375013036},{"$f":"IF(INDEX(PC_MAPPING,RIGHT($C119,1),MATCH($E$2,'Data by Building Type'!$D$22:$F$22,0))=\"Yes\",1,0)*\n(BF$10*OFFSET('Efficiency Distributions'!$D$10,MATCH($C119,'Efficiency Distributions'!$C$9:$C$87,0)+RIGHT($E126),0)\n+BF$11*OFFSET('Efficiency Distributions'!$E$10,MATCH($C119,'Efficiency Distributions'!$C$9:$C$87,0)+RIGHT($E126),0))\n/SUM(BF$10:BF$11)","v":0.12728343912594831},{"$f":"IF(INDEX(PC_MAPPING,RIGHT($C119,1),MATCH($E$2,'Data by Building Type'!$D$22:$F$22,0))=\"Yes\",1,0)*\n(BG$10*OFFSET('Efficiency Distributions'!$D$10,MATCH($C119,'Efficiency Distributions'!$C$9:$C$87,0)+RIGHT($E126),0)\n+BG$11*OFFSET('Efficiency Distributions'!$E$10,MATCH($C119,'Efficiency Distributions'!$C$9:$C$87,0)+RIGHT($E126),0))\n/SUM(BG$10:BG$11)","v":0.12792306371306517}]
[null,null,null,null,"EL4",{"$f":"IF(INDEX(PC_MAPPING,RIGHT($C119,1),MATCH($E$2,'Data by Building Type'!$D$22:$F$22,0))=\"Yes\",1,0)*\n(F$10*OFFSET('Efficiency Distributions'!$D$10,MATCH($C119,'Efficiency Distributions'!$C$9:$C$87,0)+RIGHT($E127),0)\n+F$11*OFFSET('Efficiency Distributions'!$E$10,MATCH($C119,'Efficiency Distributions'!$C$9:$C$87,0)+RIGHT($E127),0))\n/SUM(F$10:F$11)","v":0},{"$f":"IF(INDEX(PC_MAPPING,RIGHT($C119,1),MATCH($E$2,'Data by Building Type'!$D$22:$F$22,0))=\"Yes\",1,0)*\n(G$10*OFFSET('Efficiency Distributions'!$D$10,MATCH($C119,'Efficiency Distributions'!$C$9:$C$87,0)+RIGHT($E127),0)\n+G$11*OFFSET('Efficiency Distributions'!$E$10,MATCH($C119,'Efficiency Distributions'!$C$9:$C$87,0)+RIGHT($E127),0))\n/SUM(G$10:G$11)","v":0},{"$f":"IF(INDEX(PC_MAPPING,RIGHT($C119,1),MATCH($E$2,'Data by Building Type'!$D$22:$F$22,0))=\"Yes\",1,0)*\n(H$10*OFFSET('Efficiency Distributions'!$D$10,MATCH($C119,'Efficiency Distributions'!$C$9:$C$87,0)+RIGHT($E127),0)\n+H$11*OFFSET('Efficiency Distributions'!$E$10,MATCH($C119,'Efficiency Distributions'!$C$9:$C$87,0)+RIGHT($E127),0))\n/SUM(H$10:H$11)","v":0},{"$f":"IF(INDEX(PC_MAPPING,RIGHT($C119,1),MATCH($E$2,'Data by Building Type'!$D$22:$F$22,0))=\"Yes\",1,0)*\n(I$10*OFFSET('Efficiency Distributions'!$D$10,MATCH($C119,'Efficiency Distributions'!$C$9:$C$87,0)+RIGHT($E127),0)\n+I$11*OFFSET('Efficiency Distributions'!$E$10,MATCH($C119,'Efficiency Distributions'!$C$9:$C$87,0)+RIGHT($E127),0))\n/SUM(I$10:I$11)","v":0},{"$f":"IF(INDEX(PC_MAPPING,RIGHT($C119,1),MATCH($E$2,'Data by Building Type'!$D$22:$F$22,0))=\"Yes\",1,0)*\n(J$10*OFFSET('Efficiency Distributions'!$D$10,MATCH($C119,'Efficiency Distributions'!$C$9:$C$87,0)+RIGHT($E127),0)\n+J$11*OFFSET('Efficiency Distributions'!$E$10,MATCH($C119,'Efficiency Distributions'!$C$9:$C$87,0)+RIGHT($E127),0))\n/SUM(J$10:J$11)","v":0},{"$f":"IF(INDEX(PC_MAPPING,RIGHT($C119,1),MATCH($E$2,'Data by Building Type'!$D$22:$F$22,0))=\"Yes\",1,0)*\n(K$10*OFFSET('Efficiency Distributions'!$D$10,MATCH($C119,'Efficiency Distributions'!$C$9:$C$87,0)+RIGHT($E127),0)\n+K$11*OFFSET('Efficiency Distributions'!$E$10,MATCH($C119,'Efficiency Distributions'!$C$9:$C$87,0)+RIGHT($E127),0))\n/SUM(K$10:K$11)","v":0},{"$f":"IF(INDEX(PC_MAPPING,RIGHT($C119,1),MATCH($E$2,'Data by Building Type'!$D$22:$F$22,0))=\"Yes\",1,0)*\n(L$10*OFFSET('Efficiency Distributions'!$D$10,MATCH($C119,'Efficiency Distributions'!$C$9:$C$87,0)+RIGHT($E127),0)\n+L$11*OFFSET('Efficiency Distributions'!$E$10,MATCH($C119,'Efficiency Distributions'!$C$9:$C$87,0)+RIGHT($E127),0))\n/SUM(L$10:L$11)","v":0},{"$f":"IF(INDEX(PC_MAPPING,RIGHT($C119,1),MATCH($E$2,'Data by Building Type'!$D$22:$F$22,0))=\"Yes\",1,0)*\n(M$10*OFFSET('Efficiency Distributions'!$D$10,MATCH($C119,'Efficiency Distributions'!$C$9:$C$87,0)+RIGHT($E127),0)\n+M$11*OFFSET('Efficiency Distributions'!$E$10,MATCH($C119,'Efficiency Distributions'!$C$9:$C$87,0)+RIGHT($E127),0))\n/SUM(M$10:M$11)","v":0},{"$f":"IF(INDEX(PC_MAPPING,RIGHT($C119,1),MATCH($E$2,'Data by Building Type'!$D$22:$F$22,0))=\"Yes\",1,0)*\n(N$10*OFFSET('Efficiency Distributions'!$D$10,MATCH($C119,'Efficiency Distributions'!$C$9:$C$87,0)+RIGHT($E127),0)\n+N$11*OFFSET('Efficiency Distributions'!$E$10,MATCH($C119,'Efficiency Distributions'!$C$9:$C$87,0)+RIGHT($E127),0))\n/SUM(N$10:N$11)","v":0},{"$f":"IF(INDEX(PC_MAPPING,RIGHT($C119,1),MATCH($E$2,'Data by Building Type'!$D$22:$F$22,0))=\"Yes\",1,0)*\n(O$10*OFFSET('Efficiency Distributions'!$D$10,MATCH($C119,'Efficiency Distributions'!$C$9:$C$87,0)+RIGHT($E127),0)\n+O$11*OFFSET('Efficiency Distributions'!$E$10,MATCH($C119,'Efficiency Distributions'!$C$9:$C$87,0)+RIGHT($E127),0))\n/SUM(O$10:O$11)","v":0},{"$f":"IF(INDEX(PC_MAPPING,RIGHT($C119,1),MATCH($E$2,'Data by Building Type'!$D$22:$F$22,0))=\"Yes\",1,0)*\n(P$10*OFFSET('Efficiency Distributions'!$D$10,MATCH($C119,'Efficiency Distributions'!$C$9:$C$87,0)+RIGHT($E127),0)\n+P$11*OFFSET('Efficiency Distributions'!$E$10,MATCH($C119,'Efficiency Distributions'!$C$9:$C$87,0)+RIGHT($E127),0))\n/SUM(P$10:P$11)","v":0},{"$f":"IF(INDEX(PC_MAPPING,RIGHT($C119,1),MATCH($E$2,'Data by Building Type'!$D$22:$F$22,0))=\"Yes\",1,0)*\n(Q$10*OFFSET('Efficiency Distributions'!$D$10,MATCH($C119,'Efficiency Distributions'!$C$9:$C$87,0)+RIGHT($E127),0)\n+Q$11*OFFSET('Efficiency Distributions'!$E$10,MATCH($C119,'Efficiency Distributions'!$C$9:$C$87,0)+RIGHT($E127),0))\n/SUM(Q$10:Q$11)","v":0},{"$f":"IF(INDEX(PC_MAPPING,RIGHT($C119,1),MATCH($E$2,'Data by Building Type'!$D$22:$F$22,0))=\"Yes\",1,0)*\n(R$10*OFFSET('Efficiency Distributions'!$D$10,MATCH($C119,'Efficiency Distributions'!$C$9:$C$87,0)+RIGHT($E127),0)\n+R$11*OFFSET('Efficiency Distributions'!$E$10,MATCH($C119,'Efficiency Distributions'!$C$9:$C$87,0)+RIGHT($E127),0))\n/SUM(R$10:R$11)","v":0},{"$f":"IF(INDEX(PC_MAPPING,RIGHT($C119,1),MATCH($E$2,'Data by Building Type'!$D$22:$F$22,0))=\"Yes\",1,0)*\n(S$10*OFFSET('Efficiency Distributions'!$D$10,MATCH($C119,'Efficiency Distributions'!$C$9:$C$87,0)+RIGHT($E127),0)\n+S$11*OFFSET('Efficiency Distributions'!$E$10,MATCH($C119,'Efficiency Distributions'!$C$9:$C$87,0)+RIGHT($E127),0))\n/SUM(S$10:S$11)","v":0},{"$f":"IF(INDEX(PC_MAPPING,RIGHT($C119,1),MATCH($E$2,'Data by Building Type'!$D$22:$F$22,0))=\"Yes\",1,0)*\n(T$10*OFFSET('Efficiency Distributions'!$D$10,MATCH($C119,'Efficiency Distributions'!$C$9:$C$87,0)+RIGHT($E127),0)\n+T$11*OFFSET('Efficiency Distributions'!$E$10,MATCH($C119,'Efficiency Distributions'!$C$9:$C$87,0)+RIGHT($E127),0))\n/SUM(T$10:T$11)","v":0},{"$f":"IF(INDEX(PC_MAPPING,RIGHT($C119,1),MATCH($E$2,'Data by Building Type'!$D$22:$F$22,0))=\"Yes\",1,0)*\n(U$10*OFFSET('Efficiency Distributions'!$D$10,MATCH($C119,'Efficiency Distributions'!$C$9:$C$87,0)+RIGHT($E127),0)\n+U$11*OFFSET('Efficiency Distributions'!$E$10,MATCH($C119,'Efficiency Distributions'!$C$9:$C$87,0)+RIGHT($E127),0))\n/SUM(U$10:U$11)","v":0},{"$f":"IF(INDEX(PC_MAPPING,RIGHT($C119,1),MATCH($E$2,'Data by Building Type'!$D$22:$F$22,0))=\"Yes\",1,0)*\n(V$10*OFFSET('Efficiency Distributions'!$D$10,MATCH($C119,'Efficiency Distributions'!$C$9:$C$87,0)+RIGHT($E127),0)\n+V$11*OFFSET('Efficiency Distributions'!$E$10,MATCH($C119,'Efficiency Distributions'!$C$9:$C$87,0)+RIGHT($E127),0))\n/SUM(V$10:V$11)","v":0},{"$f":"IF(INDEX(PC_MAPPING,RIGHT($C119,1),MATCH($E$2,'Data by Building Type'!$D$22:$F$22,0))=\"Yes\",1,0)*\n(W$10*OFFSET('Efficiency Distributions'!$D$10,MATCH($C119,'Efficiency Distributions'!$C$9:$C$87,0)+RIGHT($E127),0)\n+W$11*OFFSET('Efficiency Distributions'!$E$10,MATCH($C119,'Efficiency Distributions'!$C$9:$C$87,0)+RIGHT($E127),0))\n/SUM(W$10:W$11)","v":0},{"$f":"IF(INDEX(PC_MAPPING,RIGHT($C119,1),MATCH($E$2,'Data by Building Type'!$D$22:$F$22,0))=\"Yes\",1,0)*\n(X$10*OFFSET('Efficiency Distributions'!$D$10,MATCH($C119,'Efficiency Distributions'!$C$9:$C$87,0)+RIGHT($E127),0)\n+X$11*OFFSET('Efficiency Distributions'!$E$10,MATCH($C119,'Efficiency Distributions'!$C$9:$C$87,0)+RIGHT($E127),0))\n/SUM(X$10:X$11)","v":0},{"$f":"IF(INDEX(PC_MAPPING,RIGHT($C119,1),MATCH($E$2,'Data by Building Type'!$D$22:$F$22,0))=\"Yes\",1,0)*\n(Y$10*OFFSET('Efficiency Distributions'!$D$10,MATCH($C119,'Efficiency Distributions'!$C$9:$C$87,0)+RIGHT($E127),0)\n+Y$11*OFFSET('Efficiency Distributions'!$E$10,MATCH($C119,'Efficiency Distributions'!$C$9:$C$87,0)+RIGHT($E127),0))\n/SUM(Y$10:Y$11)","v":0},{"$f":"IF(INDEX(PC_MAPPING,RIGHT($C119,1),MATCH($E$2,'Data by Building Type'!$D$22:$F$22,0))=\"Yes\",1,0)*\n(Z$10*OFFSET('Efficiency Distributions'!$D$10,MATCH($C119,'Efficiency Distributions'!$C$9:$C$87,0)+RIGHT($E127),0)\n+Z$11*OFFSET('Efficiency Distributions'!$E$10,MATCH($C119,'Efficiency Distributions'!$C$9:$C$87,0)+RIGHT($E127),0))\n/SUM(Z$10:Z$11)","v":0},{"$f":"IF(INDEX(PC_MAPPING,RIGHT($C119,1),MATCH($E$2,'Data by Building Type'!$D$22:$F$22,0))=\"Yes\",1,0)*\n(AA$10*OFFSET('Efficiency Distributions'!$D$10,MATCH($C119,'Efficiency Distributions'!$C$9:$C$87,0)+RIGHT($E127),0)\n+AA$11*OFFSET('Efficiency Distributions'!$E$10,MATCH($C119,'Efficiency Distributions'!$C$9:$C$87,0)+RIGHT($E127),0))\n/SUM(AA$10:AA$11)","v":0},{"$f":"IF(INDEX(PC_MAPPING,RIGHT($C119,1),MATCH($E$2,'Data by Building Type'!$D$22:$F$22,0))=\"Yes\",1,0)*\n(AB$10*OFFSET('Efficiency Distributions'!$D$10,MATCH($C119,'Efficiency Distributions'!$C$9:$C$87,0)+RIGHT($E127),0)\n+AB$11*OFFSET('Efficiency Distributions'!$E$10,MATCH($C119,'Efficiency Distributions'!$C$9:$C$87,0)+RIGHT($E127),0))\n/SUM(AB$10:AB$11)","v":0},{"$f":"IF(INDEX(PC_MAPPING,RIGHT($C119,1),MATCH($E$2,'Data by Building Type'!$D$22:$F$22,0))=\"Yes\",1,0)*\n(AC$10*OFFSET('Efficiency Distributions'!$D$10,MATCH($C119,'Efficiency Distributions'!$C$9:$C$87,0)+RIGHT($E127),0)\n+AC$11*OFFSET('Efficiency Distributions'!$E$10,MATCH($C119,'Efficiency Distributions'!$C$9:$C$87,0)+RIGHT($E127),0))\n/SUM(AC$10:AC$11)","v":0},{"$f":"IF(INDEX(PC_MAPPING,RIGHT($C119,1),MATCH($E$2,'Data by Building Type'!$D$22:$F$22,0))=\"Yes\",1,0)*\n(AD$10*OFFSET('Efficiency Distributions'!$D$10,MATCH($C119,'Efficiency Distributions'!$C$9:$C$87,0)+RIGHT($E127),0)\n+AD$11*OFFSET('Efficiency Distributions'!$E$10,MATCH($C119,'Efficiency Distributions'!$C$9:$C$87,0)+RIGHT($E127),0))\n/SUM(AD$10:AD$11)","v":0},{"$f":"IF(INDEX(PC_MAPPING,RIGHT($C119,1),MATCH($E$2,'Data by Building Type'!$D$22:$F$22,0))=\"Yes\",1,0)*\n(AE$10*OFFSET('Efficiency Distributions'!$D$10,MATCH($C119,'Efficiency Distributions'!$C$9:$C$87,0)+RIGHT($E127),0)\n+AE$11*OFFSET('Efficiency Distributions'!$E$10,MATCH($C119,'Efficiency Distributions'!$C$9:$C$87,0)+RIGHT($E127),0))\n/SUM(AE$10:AE$11)","v":0},{"$f":"IF(INDEX(PC_MAPPING,RIGHT($C119,1),MATCH($E$2,'Data by Building Type'!$D$22:$F$22,0))=\"Yes\",1,0)*\n(AF$10*OFFSET('Efficiency Distributions'!$D$10,MATCH($C119,'Efficiency Distributions'!$C$9:$C$87,0)+RIGHT($E127),0)\n+AF$11*OFFSET('Efficiency Distributions'!$E$10,MATCH($C119,'Efficiency Distributions'!$C$9:$C$87,0)+RIGHT($E127),0))\n/SUM(AF$10:AF$11)","v":0},{"$f":"IF(INDEX(PC_MAPPING,RIGHT($C119,1),MATCH($E$2,'Data by Building Type'!$D$22:$F$22,0))=\"Yes\",1,0)*\n(AG$10*OFFSET('Efficiency Distributions'!$D$10,MATCH($C119,'Efficiency Distributions'!$C$9:$C$87,0)+RIGHT($E127),0)\n+AG$11*OFFSET('Efficiency Distributions'!$E$10,MATCH($C119,'Efficiency Distributions'!$C$9:$C$87,0)+RIGHT($E127),0))\n/SUM(AG$10:AG$11)","v":0},{"$f":"IF(INDEX(PC_MAPPING,RIGHT($C119,1),MATCH($E$2,'Data by Building Type'!$D$22:$F$22,0))=\"Yes\",1,0)*\n(AH$10*OFFSET('Efficiency Distributions'!$D$10,MATCH($C119,'Efficiency Distributions'!$C$9:$C$87,0)+RIGHT($E127),0)\n+AH$11*OFFSET('Efficiency Distributions'!$E$10,MATCH($C119,'Efficiency Distributions'!$C$9:$C$87,0)+RIGHT($E127),0))\n/SUM(AH$10:AH$11)","v":0},{"$f":"IF(INDEX(PC_MAPPING,RIGHT($C119,1),MATCH($E$2,'Data by Building Type'!$D$22:$F$22,0))=\"Yes\",1,0)*\n(AI$10*OFFSET('Efficiency Distributions'!$D$10,MATCH($C119,'Efficiency Distributions'!$C$9:$C$87,0)+RIGHT($E127),0)\n+AI$11*OFFSET('Efficiency Distributions'!$E$10,MATCH($C119,'Efficiency Distributions'!$C$9:$C$87,0)+RIGHT($E127),0))\n/SUM(AI$10:AI$11)","v":0},{"$f":"IF(INDEX(PC_MAPPING,RIGHT($C119,1),MATCH($E$2,'Data by Building Type'!$D$22:$F$22,0))=\"Yes\",1,0)*\n(AJ$10*OFFSET('Efficiency Distributions'!$D$10,MATCH($C119,'Efficiency Distributions'!$C$9:$C$87,0)+RIGHT($E127),0)\n+AJ$11*OFFSET('Efficiency Distributions'!$E$10,MATCH($C119,'Efficiency Distributions'!$C$9:$C$87,0)+RIGHT($E127),0))\n/SUM(AJ$10:AJ$11)","v":0},{"$f":"IF(INDEX(PC_MAPPING,RIGHT($C119,1),MATCH($E$2,'Data by Building Type'!$D$22:$F$22,0))=\"Yes\",1,0)*\n(AK$10*OFFSET('Efficiency Distributions'!$D$10,MATCH($C119,'Efficiency Distributions'!$C$9:$C$87,0)+RIGHT($E127),0)\n+AK$11*OFFSET('Efficiency Distributions'!$E$10,MATCH($C119,'Efficiency Distributions'!$C$9:$C$87,0)+RIGHT($E127),0))\n/SUM(AK$10:AK$11)","v":0},{"$f":"IF(INDEX(PC_MAPPING,RIGHT($C119,1),MATCH($E$2,'Data by Building Type'!$D$22:$F$22,0))=\"Yes\",1,0)*\n(AL$10*OFFSET('Efficiency Distributions'!$D$10,MATCH($C119,'Efficiency Distributions'!$C$9:$C$87,0)+RIGHT($E127),0)\n+AL$11*OFFSET('Efficiency Distributions'!$E$10,MATCH($C119,'Efficiency Distributions'!$C$9:$C$87,0)+RIGHT($E127),0))\n/SUM(AL$10:AL$11)","v":0},{"$f":"IF(INDEX(PC_MAPPING,RIGHT($C119,1),MATCH($E$2,'Data by Building Type'!$D$22:$F$22,0))=\"Yes\",1,0)*\n(AM$10*OFFSET('Efficiency Distributions'!$D$10,MATCH($C119,'Efficiency Distributions'!$C$9:$C$87,0)+RIGHT($E127),0)\n+AM$11*OFFSET('Efficiency Distributions'!$E$10,MATCH($C119,'Efficiency Distributions'!$C$9:$C$87,0)+RIGHT($E127),0))\n/SUM(AM$10:AM$11)","v":0},{"$f":"IF(INDEX(PC_MAPPING,RIGHT($C119,1),MATCH($E$2,'Data by Building Type'!$D$22:$F$22,0))=\"Yes\",1,0)*\n(AN$10*OFFSET('Efficiency Distributions'!$D$10,MATCH($C119,'Efficiency Distributions'!$C$9:$C$87,0)+RIGHT($E127),0)\n+AN$11*OFFSET('Efficiency Distributions'!$E$10,MATCH($C119,'Efficiency Distributions'!$C$9:$C$87,0)+RIGHT($E127),0))\n/SUM(AN$10:AN$11)","v":0},{"$f":"IF(INDEX(PC_MAPPING,RIGHT($C119,1),MATCH($E$2,'Data by Building Type'!$D$22:$F$22,0))=\"Yes\",1,0)*\n(AO$10*OFFSET('Efficiency Distributions'!$D$10,MATCH($C119,'Efficiency Distributions'!$C$9:$C$87,0)+RIGHT($E127),0)\n+AO$11*OFFSET('Efficiency Distributions'!$E$10,MATCH($C119,'Efficiency Distributions'!$C$9:$C$87,0)+RIGHT($E127),0))\n/SUM(AO$10:AO$11)","v":0},{"$f":"IF(INDEX(PC_MAPPING,RIGHT($C119,1),MATCH($E$2,'Data by Building Type'!$D$22:$F$22,0))=\"Yes\",1,0)*\n(AP$10*OFFSET('Efficiency Distributions'!$D$10,MATCH($C119,'Efficiency Distributions'!$C$9:$C$87,0)+RIGHT($E127),0)\n+AP$11*OFFSET('Efficiency Distributions'!$E$10,MATCH($C119,'Efficiency Distributions'!$C$9:$C$87,0)+RIGHT($E127),0))\n/SUM(AP$10:AP$11)","v":0},{"$f":"IF(INDEX(PC_MAPPING,RIGHT($C119,1),MATCH($E$2,'Data by Building Type'!$D$22:$F$22,0))=\"Yes\",1,0)*\n(AQ$10*OFFSET('Efficiency Distributions'!$D$10,MATCH($C119,'Efficiency Distributions'!$C$9:$C$87,0)+RIGHT($E127),0)\n+AQ$11*OFFSET('Efficiency Distributions'!$E$10,MATCH($C119,'Efficiency Distributions'!$C$9:$C$87,0)+RIGHT($E127),0))\n/SUM(AQ$10:AQ$11)","v":0},{"$f":"IF(INDEX(PC_MAPPING,RIGHT($C119,1),MATCH($E$2,'Data by Building Type'!$D$22:$F$22,0))=\"Yes\",1,0)*\n(AR$10*OFFSET('Efficiency Distributions'!$D$10,MATCH($C119,'Efficiency Distributions'!$C$9:$C$87,0)+RIGHT($E127),0)\n+AR$11*OFFSET('Efficiency Distributions'!$E$10,MATCH($C119,'Efficiency Distributions'!$C$9:$C$87,0)+RIGHT($E127),0))\n/SUM(AR$10:AR$11)","v":0},{"$f":"IF(INDEX(PC_MAPPING,RIGHT($C119,1),MATCH($E$2,'Data by Building Type'!$D$22:$F$22,0))=\"Yes\",1,0)*\n(AS$10*OFFSET('Efficiency Distributions'!$D$10,MATCH($C119,'Efficiency Distributions'!$C$9:$C$87,0)+RIGHT($E127),0)\n+AS$11*OFFSET('Efficiency Distributions'!$E$10,MATCH($C119,'Efficiency Distributions'!$C$9:$C$87,0)+RIGHT($E127),0))\n/SUM(AS$10:AS$11)","v":0},{"$f":"IF(INDEX(PC_MAPPING,RIGHT($C119,1),MATCH($E$2,'Data by Building Type'!$D$22:$F$22,0))=\"Yes\",1,0)*\n(AT$10*OFFSET('Efficiency Distributions'!$D$10,MATCH($C119,'Efficiency Distributions'!$C$9:$C$87,0)+RIGHT($E127),0)\n+AT$11*OFFSET('Efficiency Distributions'!$E$10,MATCH($C119,'Efficiency Distributions'!$C$9:$C$87,0)+RIGHT($E127),0))\n/SUM(AT$10:AT$11)","v":0},{"$f":"IF(INDEX(PC_MAPPING,RIGHT($C119,1),MATCH($E$2,'Data by Building Type'!$D$22:$F$22,0))=\"Yes\",1,0)*\n(AU$10*OFFSET('Efficiency Distributions'!$D$10,MATCH($C119,'Efficiency Distributions'!$C$9:$C$87,0)+RIGHT($E127),0)\n+AU$11*OFFSET('Efficiency Distributions'!$E$10,MATCH($C119,'Efficiency Distributions'!$C$9:$C$87,0)+RIGHT($E127),0))\n/SUM(AU$10:AU$11)","v":0},{"$f":"IF(INDEX(PC_MAPPING,RIGHT($C119,1),MATCH($E$2,'Data by Building Type'!$D$22:$F$22,0))=\"Yes\",1,0)*\n(AV$10*OFFSET('Efficiency Distributions'!$D$10,MATCH($C119,'Efficiency Distributions'!$C$9:$C$87,0)+RIGHT($E127),0)\n+AV$11*OFFSET('Efficiency Distributions'!$E$10,MATCH($C119,'Efficiency Distributions'!$C$9:$C$87,0)+RIGHT($E127),0))\n/SUM(AV$10:AV$11)","v":0},{"$f":"IF(INDEX(PC_MAPPING,RIGHT($C119,1),MATCH($E$2,'Data by Building Type'!$D$22:$F$22,0))=\"Yes\",1,0)*\n(AW$10*OFFSET('Efficiency Distributions'!$D$10,MATCH($C119,'Efficiency Distributions'!$C$9:$C$87,0)+RIGHT($E127),0)\n+AW$11*OFFSET('Efficiency Distributions'!$E$10,MATCH($C119,'Efficiency Distributions'!$C$9:$C$87,0)+RIGHT($E127),0))\n/SUM(AW$10:AW$11)","v":0},{"$f":"IF(INDEX(PC_MAPPING,RIGHT($C119,1),MATCH($E$2,'Data by Building Type'!$D$22:$F$22,0))=\"Yes\",1,0)*\n(AX$10*OFFSET('Efficiency Distributions'!$D$10,MATCH($C119,'Efficiency Distributions'!$C$9:$C$87,0)+RIGHT($E127),0)\n+AX$11*OFFSET('Efficiency Distributions'!$E$10,MATCH($C119,'Efficiency Distributions'!$C$9:$C$87,0)+RIGHT($E127),0))\n/SUM(AX$10:AX$11)","v":0},{"$f":"IF(INDEX(PC_MAPPING,RIGHT($C119,1),MATCH($E$2,'Data by Building Type'!$D$22:$F$22,0))=\"Yes\",1,0)*\n(AY$10*OFFSET('Efficiency Distributions'!$D$10,MATCH($C119,'Efficiency Distributions'!$C$9:$C$87,0)+RIGHT($E127),0)\n+AY$11*OFFSET('Efficiency Distributions'!$E$10,MATCH($C119,'Efficiency Distributions'!$C$9:$C$87,0)+RIGHT($E127),0))\n/SUM(AY$10:AY$11)","v":0},{"$f":"IF(INDEX(PC_MAPPING,RIGHT($C119,1),MATCH($E$2,'Data by Building Type'!$D$22:$F$22,0))=\"Yes\",1,0)*\n(AZ$10*OFFSET('Efficiency Distributions'!$D$10,MATCH($C119,'Efficiency Distributions'!$C$9:$C$87,0)+RIGHT($E127),0)\n+AZ$11*OFFSET('Efficiency Distributions'!$E$10,MATCH($C119,'Efficiency Distributions'!$C$9:$C$87,0)+RIGHT($E127),0))\n/SUM(AZ$10:AZ$11)","v":0},{"$f":"IF(INDEX(PC_MAPPING,RIGHT($C119,1),MATCH($E$2,'Data by Building Type'!$D$22:$F$22,0))=\"Yes\",1,0)*\n(BA$10*OFFSET('Efficiency Distributions'!$D$10,MATCH($C119,'Efficiency Distributions'!$C$9:$C$87,0)+RIGHT($E127),0)\n+BA$11*OFFSET('Efficiency Distributions'!$E$10,MATCH($C119,'Efficiency Distributions'!$C$9:$C$87,0)+RIGHT($E127),0))\n/SUM(BA$10:BA$11)","v":0},{"$f":"IF(INDEX(PC_MAPPING,RIGHT($C119,1),MATCH($E$2,'Data by Building Type'!$D$22:$F$22,0))=\"Yes\",1,0)*\n(BB$10*OFFSET('Efficiency Distributions'!$D$10,MATCH($C119,'Efficiency Distributions'!$C$9:$C$87,0)+RIGHT($E127),0)\n+BB$11*OFFSET('Efficiency Distributions'!$E$10,MATCH($C119,'Efficiency Distributions'!$C$9:$C$87,0)+RIGHT($E127),0))\n/SUM(BB$10:BB$11)","v":0},{"$f":"IF(INDEX(PC_MAPPING,RIGHT($C119,1),MATCH($E$2,'Data by Building Type'!$D$22:$F$22,0))=\"Yes\",1,0)*\n(BC$10*OFFSET('Efficiency Distributions'!$D$10,MATCH($C119,'Efficiency Distributions'!$C$9:$C$87,0)+RIGHT($E127),0)\n+BC$11*OFFSET('Efficiency Distributions'!$E$10,MATCH($C119,'Efficiency Distributions'!$C$9:$C$87,0)+RIGHT($E127),0))\n/SUM(BC$10:BC$11)","v":0},{"$f":"IF(INDEX(PC_MAPPING,RIGHT($C119,1),MATCH($E$2,'Data by Building Type'!$D$22:$F$22,0))=\"Yes\",1,0)*\n(BD$10*OFFSET('Efficiency Distributions'!$D$10,MATCH($C119,'Efficiency Distributions'!$C$9:$C$87,0)+RIGHT($E127),0)\n+BD$11*OFFSET('Efficiency Distributions'!$E$10,MATCH($C119,'Efficiency Distributions'!$C$9:$C$87,0)+RIGHT($E127),0))\n/SUM(BD$10:BD$11)","v":0},{"$f":"IF(INDEX(PC_MAPPING,RIGHT($C119,1),MATCH($E$2,'Data by Building Type'!$D$22:$F$22,0))=\"Yes\",1,0)*\n(BE$10*OFFSET('Efficiency Distributions'!$D$10,MATCH($C119,'Efficiency Distributions'!$C$9:$C$87,0)+RIGHT($E127),0)\n+BE$11*OFFSET('Efficiency Distributions'!$E$10,MATCH($C119,'Efficiency Distributions'!$C$9:$C$87,0)+RIGHT($E127),0))\n/SUM(BE$10:BE$11)","v":0},{"$f":"IF(INDEX(PC_MAPPING,RIGHT($C119,1),MATCH($E$2,'Data by Building Type'!$D$22:$F$22,0))=\"Yes\",1,0)*\n(BF$10*OFFSET('Efficiency Distributions'!$D$10,MATCH($C119,'Efficiency Distributions'!$C$9:$C$87,0)+RIGHT($E127),0)\n+BF$11*OFFSET('Efficiency Distributions'!$E$10,MATCH($C119,'Efficiency Distributions'!$C$9:$C$87,0)+RIGHT($E127),0))\n/SUM(BF$10:BF$11)","v":0},{"$f":"IF(INDEX(PC_MAPPING,RIGHT($C119,1),MATCH($E$2,'Data by Building Type'!$D$22:$F$22,0))=\"Yes\",1,0)*\n(BG$10*OFFSET('Efficiency Distributions'!$D$10,MATCH($C119,'Efficiency Distributions'!$C$9:$C$87,0)+RIGHT($E127),0)\n+BG$11*OFFSET('Efficiency Distributions'!$E$10,MATCH($C119,'Efficiency Distributions'!$C$9:$C$87,0)+RIGHT($E127),0))\n/SUM(BG$10:BG$11)","v":0}]
[null,null,null,null,"EL5",{"$f":"IF(INDEX(PC_MAPPING,RIGHT($C119,1),MATCH($E$2,'Data by Building Type'!$D$22:$F$22,0))=\"Yes\",1,0)*\n(F$10*OFFSET('Efficiency Distributions'!$D$10,MATCH($C119,'Efficiency Distributions'!$C$9:$C$87,0)+RIGHT($E128),0)\n+F$11*OFFSET('Efficiency Distributions'!$E$10,MATCH($C119,'Efficiency Distributions'!$C$9:$C$87,0)+RIGHT($E128),0))\n/SUM(F$10:F$11)","v":0.26243656575822932},{"$f":"IF(INDEX(PC_MAPPING,RIGHT($C119,1),MATCH($E$2,'Data by Building Type'!$D$22:$F$22,0))=\"Yes\",1,0)*\n(G$10*OFFSET('Efficiency Distributions'!$D$10,MATCH($C119,'Efficiency Distributions'!$C$9:$C$87,0)+RIGHT($E128),0)\n+G$11*OFFSET('Efficiency Distributions'!$E$10,MATCH($C119,'Efficiency Distributions'!$C$9:$C$87,0)+RIGHT($E128),0))\n/SUM(G$10:G$11)","v":0.27499661423456973},{"$f":"IF(INDEX(PC_MAPPING,RIGHT($C119,1),MATCH($E$2,'Data by Building Type'!$D$22:$F$22,0))=\"Yes\",1,0)*\n(H$10*OFFSET('Efficiency Distributions'!$D$10,MATCH($C119,'Efficiency Distributions'!$C$9:$C$87,0)+RIGHT($E128),0)\n+H$11*OFFSET('Efficiency Distributions'!$E$10,MATCH($C119,'Efficiency Distributions'!$C$9:$C$87,0)+RIGHT($E128),0))\n/SUM(H$10:H$11)","v":0.25997168845542123},{"$f":"IF(INDEX(PC_MAPPING,RIGHT($C119,1),MATCH($E$2,'Data by Building Type'!$D$22:$F$22,0))=\"Yes\",1,0)*\n(I$10*OFFSET('Efficiency Distributions'!$D$10,MATCH($C119,'Efficiency Distributions'!$C$9:$C$87,0)+RIGHT($E128),0)\n+I$11*OFFSET('Efficiency Distributions'!$E$10,MATCH($C119,'Efficiency Distributions'!$C$9:$C$87,0)+RIGHT($E128),0))\n/SUM(I$10:I$11)","v":0.26277391708064585},{"$f":"IF(INDEX(PC_MAPPING,RIGHT($C119,1),MATCH($E$2,'Data by Building Type'!$D$22:$F$22,0))=\"Yes\",1,0)*\n(J$10*OFFSET('Efficiency Distributions'!$D$10,MATCH($C119,'Efficiency Distributions'!$C$9:$C$87,0)+RIGHT($E128),0)\n+J$11*OFFSET('Efficiency Distributions'!$E$10,MATCH($C119,'Efficiency Distributions'!$C$9:$C$87,0)+RIGHT($E128),0))\n/SUM(J$10:J$11)","v":0.26450891243372782},{"$f":"IF(INDEX(PC_MAPPING,RIGHT($C119,1),MATCH($E$2,'Data by Building Type'!$D$22:$F$22,0))=\"Yes\",1,0)*\n(K$10*OFFSET('Efficiency Distributions'!$D$10,MATCH($C119,'Efficiency Distributions'!$C$9:$C$87,0)+RIGHT($E128),0)\n+K$11*OFFSET('Efficiency Distributions'!$E$10,MATCH($C119,'Efficiency Distributions'!$C$9:$C$87,0)+RIGHT($E128),0))\n/SUM(K$10:K$11)","v":0.26164491437156462},{"$f":"IF(INDEX(PC_MAPPING,RIGHT($C119,1),MATCH($E$2,'Data by Building Type'!$D$22:$F$22,0))=\"Yes\",1,0)*\n(L$10*OFFSET('Efficiency Distributions'!$D$10,MATCH($C119,'Efficiency Distributions'!$C$9:$C$87,0)+RIGHT($E128),0)\n+L$11*OFFSET('Efficiency Distributions'!$E$10,MATCH($C119,'Efficiency Distributions'!$C$9:$C$87,0)+RIGHT($E128),0))\n/SUM(L$10:L$11)","v":0.2614195768808994},{"$f":"IF(INDEX(PC_MAPPING,RIGHT($C119,1),MATCH($E$2,'Data by Building Type'!$D$22:$F$22,0))=\"Yes\",1,0)*\n(M$10*OFFSET('Efficiency Distributions'!$D$10,MATCH($C119,'Efficiency Distributions'!$C$9:$C$87,0)+RIGHT($E128),0)\n+M$11*OFFSET('Efficiency Distributions'!$E$10,MATCH($C119,'Efficiency Distributions'!$C$9:$C$87,0)+RIGHT($E128),0))\n/SUM(M$10:M$11)","v":0.25758231027077305},{"$f":"IF(INDEX(PC_MAPPING,RIGHT($C119,1),MATCH($E$2,'Data by Building Type'!$D$22:$F$22,0))=\"Yes\",1,0)*\n(N$10*OFFSET('Efficiency Distributions'!$D$10,MATCH($C119,'Efficiency Distributions'!$C$9:$C$87,0)+RIGHT($E128),0)\n+N$11*OFFSET('Efficiency Distributions'!$E$10,MATCH($C119,'Efficiency Distributions'!$C$9:$C$87,0)+RIGHT($E128),0))\n/SUM(N$10:N$11)","v":0.24882603277239787},{"$f":"IF(INDEX(PC_MAPPING,RIGHT($C119,1),MATCH($E$2,'Data by Building Type'!$D$22:$F$22,0))=\"Yes\",1,0)*\n(O$10*OFFSET('Efficiency Distributions'!$D$10,MATCH($C119,'Efficiency Distributions'!$C$9:$C$87,0)+RIGHT($E128),0)\n+O$11*OFFSET('Efficiency Distributions'!$E$10,MATCH($C119,'Efficiency Distributions'!$C$9:$C$87,0)+RIGHT($E128),0))\n/SUM(O$10:O$11)","v":0.24285905630715823},{"$f":"IF(INDEX(PC_MAPPING,RIGHT($C119,1),MATCH($E$2,'Data by Building Type'!$D$22:$F$22,0))=\"Yes\",1,0)*\n(P$10*OFFSET('Efficiency Distributions'!$D$10,MATCH($C119,'Efficiency Distributions'!$C$9:$C$87,0)+RIGHT($E128),0)\n+P$11*OFFSET('Efficiency Distributions'!$E$10,MATCH($C119,'Efficiency Distributions'!$C$9:$C$87,0)+RIGHT($E128),0))\n/SUM(P$10:P$11)","v":0.24894211376902553},{"$f":"IF(INDEX(PC_MAPPING,RIGHT($C119,1),MATCH($E$2,'Data by Building Type'!$D$22:$F$22,0))=\"Yes\",1,0)*\n(Q$10*OFFSET('Efficiency Distributions'!$D$10,MATCH($C119,'Efficiency Distributions'!$C$9:$C$87,0)+RIGHT($E128),0)\n+Q$11*OFFSET('Efficiency Distributions'!$E$10,MATCH($C119,'Efficiency Distributions'!$C$9:$C$87,0)+RIGHT($E128),0))\n/SUM(Q$10:Q$11)","v":0.23893700718069374},{"$f":"IF(INDEX(PC_MAPPING,RIGHT($C119,1),MATCH($E$2,'Data by Building Type'!$D$22:$F$22,0))=\"Yes\",1,0)*\n(R$10*OFFSET('Efficiency Distributions'!$D$10,MATCH($C119,'Efficiency Distributions'!$C$9:$C$87,0)+RIGHT($E128),0)\n+R$11*OFFSET('Efficiency Distributions'!$E$10,MATCH($C119,'Efficiency Distributions'!$C$9:$C$87,0)+RIGHT($E128),0))\n/SUM(R$10:R$11)","v":0.26642024934967401},{"$f":"IF(INDEX(PC_MAPPING,RIGHT($C119,1),MATCH($E$2,'Data by Building Type'!$D$22:$F$22,0))=\"Yes\",1,0)*\n(S$10*OFFSET('Efficiency Distributions'!$D$10,MATCH($C119,'Efficiency Distributions'!$C$9:$C$87,0)+RIGHT($E128),0)\n+S$11*OFFSET('Efficiency Distributions'!$E$10,MATCH($C119,'Efficiency Distributions'!$C$9:$C$87,0)+RIGHT($E128),0))\n/SUM(S$10:S$11)","v":0.26365216577547851},{"$f":"IF(INDEX(PC_MAPPING,RIGHT($C119,1),MATCH($E$2,'Data by Building Type'!$D$22:$F$22,0))=\"Yes\",1,0)*\n(T$10*OFFSET('Efficiency Distributions'!$D$10,MATCH($C119,'Efficiency Distributions'!$C$9:$C$87,0)+RIGHT($E128),0)\n+T$11*OFFSET('Efficiency Distributions'!$E$10,MATCH($C119,'Efficiency Distributions'!$C$9:$C$87,0)+RIGHT($E128),0))\n/SUM(T$10:T$11)","v":0.27385176166888708},{"$f":"IF(INDEX(PC_MAPPING,RIGHT($C119,1),MATCH($E$2,'Data by Building Type'!$D$22:$F$22,0))=\"Yes\",1,0)*\n(U$10*OFFSET('Efficiency Distributions'!$D$10,MATCH($C119,'Efficiency Distributions'!$C$9:$C$87,0)+RIGHT($E128),0)\n+U$11*OFFSET('Efficiency Distributions'!$E$10,MATCH($C119,'Efficiency Distributions'!$C$9:$C$87,0)+RIGHT($E128),0))\n/SUM(U$10:U$11)","v":0.2723823714391117},{"$f":"IF(INDEX(PC_MAPPING,RIGHT($C119,1),MATCH($E$2,'Data by Building Type'!$D$22:$F$22,0))=\"Yes\",1,0)*\n(V$10*OFFSET('Efficiency Distributions'!$D$10,MATCH($C119,'Efficiency Distributions'!$C$9:$C$87,0)+RIGHT($E128),0)\n+V$11*OFFSET('Efficiency Distributions'!$E$10,MATCH($C119,'Efficiency Distributions'!$C$9:$C$87,0)+RIGHT($E128),0))\n/SUM(V$10:V$11)","v":0.27455554417519695},{"$f":"IF(INDEX(PC_MAPPING,RIGHT($C119,1),MATCH($E$2,'Data by Building Type'!$D$22:$F$22,0))=\"Yes\",1,0)*\n(W$10*OFFSET('Efficiency Distributions'!$D$10,MATCH($C119,'Efficiency Distributions'!$C$9:$C$87,0)+RIGHT($E128),0)\n+W$11*OFFSET('Efficiency Distributions'!$E$10,MATCH($C119,'Efficiency Distributions'!$C$9:$C$87,0)+RIGHT($E128),0))\n/SUM(W$10:W$11)","v":0.2735134897797607},{"$f":"IF(INDEX(PC_MAPPING,RIGHT($C119,1),MATCH($E$2,'Data by Building Type'!$D$22:$F$22,0))=\"Yes\",1,0)*\n(X$10*OFFSET('Efficiency Distributions'!$D$10,MATCH($C119,'Efficiency Distributions'!$C$9:$C$87,0)+RIGHT($E128),0)\n+X$11*OFFSET('Efficiency Distributions'!$E$10,MATCH($C119,'Efficiency Distributions'!$C$9:$C$87,0)+RIGHT($E128),0))\n/SUM(X$10:X$11)","v":0.27685872539804873},{"$f":"IF(INDEX(PC_MAPPING,RIGHT($C119,1),MATCH($E$2,'Data by Building Type'!$D$22:$F$22,0))=\"Yes\",1,0)*\n(Y$10*OFFSET('Efficiency Distributions'!$D$10,MATCH($C119,'Efficiency Distributions'!$C$9:$C$87,0)+RIGHT($E128),0)\n+Y$11*OFFSET('Efficiency Distributions'!$E$10,MATCH($C119,'Efficiency Distributions'!$C$9:$C$87,0)+RIGHT($E128),0))\n/SUM(Y$10:Y$11)","v":0.28499752118078908},{"$f":"IF(INDEX(PC_MAPPING,RIGHT($C119,1),MATCH($E$2,'Data by Building Type'!$D$22:$F$22,0))=\"Yes\",1,0)*\n(Z$10*OFFSET('Efficiency Distributions'!$D$10,MATCH($C119,'Efficiency Distributions'!$C$9:$C$87,0)+RIGHT($E128),0)\n+Z$11*OFFSET('Efficiency Distributions'!$E$10,MATCH($C119,'Efficiency Distributions'!$C$9:$C$87,0)+RIGHT($E128),0))\n/SUM(Z$10:Z$11)","v":0.28513496002109956},{"$f":"IF(INDEX(PC_MAPPING,RIGHT($C119,1),MATCH($E$2,'Data by Building Type'!$D$22:$F$22,0))=\"Yes\",1,0)*\n(AA$10*OFFSET('Efficiency Distributions'!$D$10,MATCH($C119,'Efficiency Distributions'!$C$9:$C$87,0)+RIGHT($E128),0)\n+AA$11*OFFSET('Efficiency Distributions'!$E$10,MATCH($C119,'Efficiency Distributions'!$C$9:$C$87,0)+RIGHT($E128),0))\n/SUM(AA$10:AA$11)","v":0.28387412346676522},{"$f":"IF(INDEX(PC_MAPPING,RIGHT($C119,1),MATCH($E$2,'Data by Building Type'!$D$22:$F$22,0))=\"Yes\",1,0)*\n(AB$10*OFFSET('Efficiency Distributions'!$D$10,MATCH($C119,'Efficiency Distributions'!$C$9:$C$87,0)+RIGHT($E128),0)\n+AB$11*OFFSET('Efficiency Distributions'!$E$10,MATCH($C119,'Efficiency Distributions'!$C$9:$C$87,0)+RIGHT($E128),0))\n/SUM(AB$10:AB$11)","v":0.27669057988257512},{"$f":"IF(INDEX(PC_MAPPING,RIGHT($C119,1),MATCH($E$2,'Data by Building Type'!$D$22:$F$22,0))=\"Yes\",1,0)*\n(AC$10*OFFSET('Efficiency Distributions'!$D$10,MATCH($C119,'Efficiency Distributions'!$C$9:$C$87,0)+RIGHT($E128),0)\n+AC$11*OFFSET('Efficiency Distributions'!$E$10,MATCH($C119,'Efficiency Distributions'!$C$9:$C$87,0)+RIGHT($E128),0))\n/SUM(AC$10:AC$11)","v":0.27719238360681719},{"$f":"IF(INDEX(PC_MAPPING,RIGHT($C119,1),MATCH($E$2,'Data by Building Type'!$D$22:$F$22,0))=\"Yes\",1,0)*\n(AD$10*OFFSET('Efficiency Distributions'!$D$10,MATCH($C119,'Efficiency Distributions'!$C$9:$C$87,0)+RIGHT($E128),0)\n+AD$11*OFFSET('Efficiency Distributions'!$E$10,MATCH($C119,'Efficiency Distributions'!$C$9:$C$87,0)+RIGHT($E128),0))\n/SUM(AD$10:AD$11)","v":0.2710078130508527},{"$f":"IF(INDEX(PC_MAPPING,RIGHT($C119,1),MATCH($E$2,'Data by Building Type'!$D$22:$F$22,0))=\"Yes\",1,0)*\n(AE$10*OFFSET('Efficiency Distributions'!$D$10,MATCH($C119,'Efficiency Distributions'!$C$9:$C$87,0)+RIGHT($E128),0)\n+AE$11*OFFSET('Efficiency Distributions'!$E$10,MATCH($C119,'Efficiency Distributions'!$C$9:$C$87,0)+RIGHT($E128),0))\n/SUM(AE$10:AE$11)","v":0.28039408658305853},{"$f":"IF(INDEX(PC_MAPPING,RIGHT($C119,1),MATCH($E$2,'Data by Building Type'!$D$22:$F$22,0))=\"Yes\",1,0)*\n(AF$10*OFFSET('Efficiency Distributions'!$D$10,MATCH($C119,'Efficiency Distributions'!$C$9:$C$87,0)+RIGHT($E128),0)\n+AF$11*OFFSET('Efficiency Distributions'!$E$10,MATCH($C119,'Efficiency Distributions'!$C$9:$C$87,0)+RIGHT($E128),0))\n/SUM(AF$10:AF$11)","v":0.30112744723740137},{"$f":"IF(INDEX(PC_MAPPING,RIGHT($C119,1),MATCH($E$2,'Data by Building Type'!$D$22:$F$22,0))=\"Yes\",1,0)*\n(AG$10*OFFSET('Efficiency Distributions'!$D$10,MATCH($C119,'Efficiency Distributions'!$C$9:$C$87,0)+RIGHT($E128),0)\n+AG$11*OFFSET('Efficiency Distributions'!$E$10,MATCH($C119,'Efficiency Distributions'!$C$9:$C$87,0)+RIGHT($E128),0))\n/SUM(AG$10:AG$11)","v":0.30997946379297631},{"$f":"IF(INDEX(PC_MAPPING,RIGHT($C119,1),MATCH($E$2,'Data by Building Type'!$D$22:$F$22,0))=\"Yes\",1,0)*\n(AH$10*OFFSET('Efficiency Distributions'!$D$10,MATCH($C119,'Efficiency Distributions'!$C$9:$C$87,0)+RIGHT($E128),0)\n+AH$11*OFFSET('Efficiency Distributions'!$E$10,MATCH($C119,'Efficiency Distributions'!$C$9:$C$87,0)+RIGHT($E128),0))\n/SUM(AH$10:AH$11)","v":0.30997946379297631},{"$f":"IF(INDEX(PC_MAPPING,RIGHT($C119,1),MATCH($E$2,'Data by Building Type'!$D$22:$F$22,0))=\"Yes\",1,0)*\n(AI$10*OFFSET('Efficiency Distributions'!$D$10,MATCH($C119,'Efficiency Distributions'!$C$9:$C$87,0)+RIGHT($E128),0)\n+AI$11*OFFSET('Efficiency Distributions'!$E$10,MATCH($C119,'Efficiency Distributions'!$C$9:$C$87,0)+RIGHT($E128),0))\n/SUM(AI$10:AI$11)","v":0.30997946379297625},{"$f":"IF(INDEX(PC_MAPPING,RIGHT($C119,1),MATCH($E$2,'Data by Building Type'!$D$22:$F$22,0))=\"Yes\",1,0)*\n(AJ$10*OFFSET('Efficiency Distributions'!$D$10,MATCH($C119,'Efficiency Distributions'!$C$9:$C$87,0)+RIGHT($E128),0)\n+AJ$11*OFFSET('Efficiency Distributions'!$E$10,MATCH($C119,'Efficiency Distributions'!$C$9:$C$87,0)+RIGHT($E128),0))\n/SUM(AJ$10:AJ$11)","v":0.30629196198865843},{"$f":"IF(INDEX(PC_MAPPING,RIGHT($C119,1),MATCH($E$2,'Data by Building Type'!$D$22:$F$22,0))=\"Yes\",1,0)*\n(AK$10*OFFSET('Efficiency Distributions'!$D$10,MATCH($C119,'Efficiency Distributions'!$C$9:$C$87,0)+RIGHT($E128),0)\n+AK$11*OFFSET('Efficiency Distributions'!$E$10,MATCH($C119,'Efficiency Distributions'!$C$9:$C$87,0)+RIGHT($E128),0))\n/SUM(AK$10:AK$11)","v":0.25473469481134536},{"$f":"IF(INDEX(PC_MAPPING,RIGHT($C119,1),MATCH($E$2,'Data by Building Type'!$D$22:$F$22,0))=\"Yes\",1,0)*\n(AL$10*OFFSET('Efficiency Distributions'!$D$10,MATCH($C119,'Efficiency Distributions'!$C$9:$C$87,0)+RIGHT($E128),0)\n+AL$11*OFFSET('Efficiency Distributions'!$E$10,MATCH($C119,'Efficiency Distributions'!$C$9:$C$87,0)+RIGHT($E128),0))\n/SUM(AL$10:AL$11)","v":0.25627764896943733},{"$f":"IF(INDEX(PC_MAPPING,RIGHT($C119,1),MATCH($E$2,'Data by Building Type'!$D$22:$F$22,0))=\"Yes\",1,0)*\n(AM$10*OFFSET('Efficiency Distributions'!$D$10,MATCH($C119,'Efficiency Distributions'!$C$9:$C$87,0)+RIGHT($E128),0)\n+AM$11*OFFSET('Efficiency Distributions'!$E$10,MATCH($C119,'Efficiency Distributions'!$C$9:$C$87,0)+RIGHT($E128),0))\n/SUM(AM$10:AM$11)","v":0.24964883638717827},{"$f":"IF(INDEX(PC_MAPPING,RIGHT($C119,1),MATCH($E$2,'Data by Building Type'!$D$22:$F$22,0))=\"Yes\",1,0)*\n(AN$10*OFFSET('Efficiency Distributions'!$D$10,MATCH($C119,'Efficiency Distributions'!$C$9:$C$87,0)+RIGHT($E128),0)\n+AN$11*OFFSET('Efficiency Distributions'!$E$10,MATCH($C119,'Efficiency Distributions'!$C$9:$C$87,0)+RIGHT($E128),0))\n/SUM(AN$10:AN$11)","v":0.25018403256797689},{"$f":"IF(INDEX(PC_MAPPING,RIGHT($C119,1),MATCH($E$2,'Data by Building Type'!$D$22:$F$22,0))=\"Yes\",1,0)*\n(AO$10*OFFSET('Efficiency Distributions'!$D$10,MATCH($C119,'Efficiency Distributions'!$C$9:$C$87,0)+RIGHT($E128),0)\n+AO$11*OFFSET('Efficiency Distributions'!$E$10,MATCH($C119,'Efficiency Distributions'!$C$9:$C$87,0)+RIGHT($E128),0))\n/SUM(AO$10:AO$11)","v":0.24758666755087774},{"$f":"IF(INDEX(PC_MAPPING,RIGHT($C119,1),MATCH($E$2,'Data by Building Type'!$D$22:$F$22,0))=\"Yes\",1,0)*\n(AP$10*OFFSET('Efficiency Distributions'!$D$10,MATCH($C119,'Efficiency Distributions'!$C$9:$C$87,0)+RIGHT($E128),0)\n+AP$11*OFFSET('Efficiency Distributions'!$E$10,MATCH($C119,'Efficiency Distributions'!$C$9:$C$87,0)+RIGHT($E128),0))\n/SUM(AP$10:AP$11)","v":0.24872932609821174},{"$f":"IF(INDEX(PC_MAPPING,RIGHT($C119,1),MATCH($E$2,'Data by Building Type'!$D$22:$F$22,0))=\"Yes\",1,0)*\n(AQ$10*OFFSET('Efficiency Distributions'!$D$10,MATCH($C119,'Efficiency Distributions'!$C$9:$C$87,0)+RIGHT($E128),0)\n+AQ$11*OFFSET('Efficiency Distributions'!$E$10,MATCH($C119,'Efficiency Distributions'!$C$9:$C$87,0)+RIGHT($E128),0))\n/SUM(AQ$10:AQ$11)","v":0.24911737627967431},{"$f":"IF(INDEX(PC_MAPPING,RIGHT($C119,1),MATCH($E$2,'Data by Building Type'!$D$22:$F$22,0))=\"Yes\",1,0)*\n(AR$10*OFFSET('Efficiency Distributions'!$D$10,MATCH($C119,'Efficiency Distributions'!$C$9:$C$87,0)+RIGHT($E128),0)\n+AR$11*OFFSET('Efficiency Distributions'!$E$10,MATCH($C119,'Efficiency Distributions'!$C$9:$C$87,0)+RIGHT($E128),0))\n/SUM(AR$10:AR$11)","v":0.25033876932340382},{"$f":"IF(INDEX(PC_MAPPING,RIGHT($C119,1),MATCH($E$2,'Data by Building Type'!$D$22:$F$22,0))=\"Yes\",1,0)*\n(AS$10*OFFSET('Efficiency Distributions'!$D$10,MATCH($C119,'Efficiency Distributions'!$C$9:$C$87,0)+RIGHT($E128),0)\n+AS$11*OFFSET('Efficiency Distributions'!$E$10,MATCH($C119,'Efficiency Distributions'!$C$9:$C$87,0)+RIGHT($E128),0))\n/SUM(AS$10:AS$11)","v":0.25032254684553262},{"$f":"IF(INDEX(PC_MAPPING,RIGHT($C119,1),MATCH($E$2,'Data by Building Type'!$D$22:$F$22,0))=\"Yes\",1,0)*\n(AT$10*OFFSET('Efficiency Distributions'!$D$10,MATCH($C119,'Efficiency Distributions'!$C$9:$C$87,0)+RIGHT($E128),0)\n+AT$11*OFFSET('Efficiency Distributions'!$E$10,MATCH($C119,'Efficiency Distributions'!$C$9:$C$87,0)+RIGHT($E128),0))\n/SUM(AT$10:AT$11)","v":0.24967516217056931},{"$f":"IF(INDEX(PC_MAPPING,RIGHT($C119,1),MATCH($E$2,'Data by Building Type'!$D$22:$F$22,0))=\"Yes\",1,0)*\n(AU$10*OFFSET('Efficiency Distributions'!$D$10,MATCH($C119,'Efficiency Distributions'!$C$9:$C$87,0)+RIGHT($E128),0)\n+AU$11*OFFSET('Efficiency Distributions'!$E$10,MATCH($C119,'Efficiency Distributions'!$C$9:$C$87,0)+RIGHT($E128),0))\n/SUM(AU$10:AU$11)","v":0.25043541382090068},{"$f":"IF(INDEX(PC_MAPPING,RIGHT($C119,1),MATCH($E$2,'Data by Building Type'!$D$22:$F$22,0))=\"Yes\",1,0)*\n(AV$10*OFFSET('Efficiency Distributions'!$D$10,MATCH($C119,'Efficiency Distributions'!$C$9:$C$87,0)+RIGHT($E128),0)\n+AV$11*OFFSET('Efficiency Distributions'!$E$10,MATCH($C119,'Efficiency Distributions'!$C$9:$C$87,0)+RIGHT($E128),0))\n/SUM(AV$10:AV$11)","v":0.26092672694895813},{"$f":"IF(INDEX(PC_MAPPING,RIGHT($C119,1),MATCH($E$2,'Data by Building Type'!$D$22:$F$22,0))=\"Yes\",1,0)*\n(AW$10*OFFSET('Efficiency Distributions'!$D$10,MATCH($C119,'Efficiency Distributions'!$C$9:$C$87,0)+RIGHT($E128),0)\n+AW$11*OFFSET('Efficiency Distributions'!$E$10,MATCH($C119,'Efficiency Distributions'!$C$9:$C$87,0)+RIGHT($E128),0))\n/SUM(AW$10:AW$11)","v":0.26030807474250617},{"$f":"IF(INDEX(PC_MAPPING,RIGHT($C119,1),MATCH($E$2,'Data by Building Type'!$D$22:$F$22,0))=\"Yes\",1,0)*\n(AX$10*OFFSET('Efficiency Distributions'!$D$10,MATCH($C119,'Efficiency Distributions'!$C$9:$C$87,0)+RIGHT($E128),0)\n+AX$11*OFFSET('Efficiency Distributions'!$E$10,MATCH($C119,'Efficiency Distributions'!$C$9:$C$87,0)+RIGHT($E128),0))\n/SUM(AX$10:AX$11)","v":0.26343064813541417},{"$f":"IF(INDEX(PC_MAPPING,RIGHT($C119,1),MATCH($E$2,'Data by Building Type'!$D$22:$F$22,0))=\"Yes\",1,0)*\n(AY$10*OFFSET('Efficiency Distributions'!$D$10,MATCH($C119,'Efficiency Distributions'!$C$9:$C$87,0)+RIGHT($E128),0)\n+AY$11*OFFSET('Efficiency Distributions'!$E$10,MATCH($C119,'Efficiency Distributions'!$C$9:$C$87,0)+RIGHT($E128),0))\n/SUM(AY$10:AY$11)","v":0.26437810691587421},{"$f":"IF(INDEX(PC_MAPPING,RIGHT($C119,1),MATCH($E$2,'Data by Building Type'!$D$22:$F$22,0))=\"Yes\",1,0)*\n(AZ$10*OFFSET('Efficiency Distributions'!$D$10,MATCH($C119,'Efficiency Distributions'!$C$9:$C$87,0)+RIGHT($E128),0)\n+AZ$11*OFFSET('Efficiency Distributions'!$E$10,MATCH($C119,'Efficiency Distributions'!$C$9:$C$87,0)+RIGHT($E128),0))\n/SUM(AZ$10:AZ$11)","v":0.26295658283052803},{"$f":"IF(INDEX(PC_MAPPING,RIGHT($C119,1),MATCH($E$2,'Data by Building Type'!$D$22:$F$22,0))=\"Yes\",1,0)*\n(BA$10*OFFSET('Efficiency Distributions'!$D$10,MATCH($C119,'Efficiency Distributions'!$C$9:$C$87,0)+RIGHT($E128),0)\n+BA$11*OFFSET('Efficiency Distributions'!$E$10,MATCH($C119,'Efficiency Distributions'!$C$9:$C$87,0)+RIGHT($E128),0))\n/SUM(BA$10:BA$11)","v":0.26077085570745206},{"$f":"IF(INDEX(PC_MAPPING,RIGHT($C119,1),MATCH($E$2,'Data by Building Type'!$D$22:$F$22,0))=\"Yes\",1,0)*\n(BB$10*OFFSET('Efficiency Distributions'!$D$10,MATCH($C119,'Efficiency Distributions'!$C$9:$C$87,0)+RIGHT($E128),0)\n+BB$11*OFFSET('Efficiency Distributions'!$E$10,MATCH($C119,'Efficiency Distributions'!$C$9:$C$87,0)+RIGHT($E128),0))\n/SUM(BB$10:BB$11)","v":0.25609372271345865},{"$f":"IF(INDEX(PC_MAPPING,RIGHT($C119,1),MATCH($E$2,'Data by Building Type'!$D$22:$F$22,0))=\"Yes\",1,0)*\n(BC$10*OFFSET('Efficiency Distributions'!$D$10,MATCH($C119,'Efficiency Distributions'!$C$9:$C$87,0)+RIGHT($E128),0)\n+BC$11*OFFSET('Efficiency Distributions'!$E$10,MATCH($C119,'Efficiency Distributions'!$C$9:$C$87,0)+RIGHT($E128),0))\n/SUM(BC$10:BC$11)","v":0.25514532664649725},{"$f":"IF(INDEX(PC_MAPPING,RIGHT($C119,1),MATCH($E$2,'Data by Building Type'!$D$22:$F$22,0))=\"Yes\",1,0)*\n(BD$10*OFFSET('Efficiency Distributions'!$D$10,MATCH($C119,'Efficiency Distributions'!$C$9:$C$87,0)+RIGHT($E128),0)\n+BD$11*OFFSET('Efficiency Distributions'!$E$10,MATCH($C119,'Efficiency Distributions'!$C$9:$C$87,0)+RIGHT($E128),0))\n/SUM(BD$10:BD$11)","v":0.26045240421700167},{"$f":"IF(INDEX(PC_MAPPING,RIGHT($C119,1),MATCH($E$2,'Data by Building Type'!$D$22:$F$22,0))=\"Yes\",1,0)*\n(BE$10*OFFSET('Efficiency Distributions'!$D$10,MATCH($C119,'Efficiency Distributions'!$C$9:$C$87,0)+RIGHT($E128),0)\n+BE$11*OFFSET('Efficiency Distributions'!$E$10,MATCH($C119,'Efficiency Distributions'!$C$9:$C$87,0)+RIGHT($E128),0))\n/SUM(BE$10:BE$11)","v":0.26416271733361141},{"$f":"IF(INDEX(PC_MAPPING,RIGHT($C119,1),MATCH($E$2,'Data by Building Type'!$D$22:$F$22,0))=\"Yes\",1,0)*\n(BF$10*OFFSET('Efficiency Distributions'!$D$10,MATCH($C119,'Efficiency Distributions'!$C$9:$C$87,0)+RIGHT($E128),0)\n+BF$11*OFFSET('Efficiency Distributions'!$E$10,MATCH($C119,'Efficiency Distributions'!$C$9:$C$87,0)+RIGHT($E128),0))\n/SUM(BF$10:BF$11)","v":0.27153800346868973},{"$f":"IF(INDEX(PC_MAPPING,RIGHT($C119,1),MATCH($E$2,'Data by Building Type'!$D$22:$F$22,0))=\"Yes\",1,0)*\n(BG$10*OFFSET('Efficiency Distributions'!$D$10,MATCH($C119,'Efficiency Distributions'!$C$9:$C$87,0)+RIGHT($E128),0)\n+BG$11*OFFSET('Efficiency Distributions'!$E$10,MATCH($C119,'Efficiency Distributions'!$C$9:$C$87,0)+RIGHT($E128),0))\n/SUM(BG$10:BG$11)","v":0.27290253592120567}]
[null,null,null,null,"EL6",{"$f":"IF(INDEX(PC_MAPPING,RIGHT($C119,1),MATCH($E$2,'Data by Building Type'!$D$22:$F$22,0))=\"Yes\",1,0)*\n(F$10*OFFSET('Efficiency Distributions'!$D$10,MATCH($C119,'Efficiency Distributions'!$C$9:$C$87,0)+RIGHT($E129),0)\n+F$11*OFFSET('Efficiency Distributions'!$E$10,MATCH($C119,'Efficiency Distributions'!$C$9:$C$87,0)+RIGHT($E129),0))\n/SUM(F$10:F$11)","v":0},{"$f":"IF(INDEX(PC_MAPPING,RIGHT($C119,1),MATCH($E$2,'Data by Building Type'!$D$22:$F$22,0))=\"Yes\",1,0)*\n(G$10*OFFSET('Efficiency Distributions'!$D$10,MATCH($C119,'Efficiency Distributions'!$C$9:$C$87,0)+RIGHT($E129),0)\n+G$11*OFFSET('Efficiency Distributions'!$E$10,MATCH($C119,'Efficiency Distributions'!$C$9:$C$87,0)+RIGHT($E129),0))\n/SUM(G$10:G$11)","v":0},{"$f":"IF(INDEX(PC_MAPPING,RIGHT($C119,1),MATCH($E$2,'Data by Building Type'!$D$22:$F$22,0))=\"Yes\",1,0)*\n(H$10*OFFSET('Efficiency Distributions'!$D$10,MATCH($C119,'Efficiency Distributions'!$C$9:$C$87,0)+RIGHT($E129),0)\n+H$11*OFFSET('Efficiency Distributions'!$E$10,MATCH($C119,'Efficiency Distributions'!$C$9:$C$87,0)+RIGHT($E129),0))\n/SUM(H$10:H$11)","v":0},{"$f":"IF(INDEX(PC_MAPPING,RIGHT($C119,1),MATCH($E$2,'Data by Building Type'!$D$22:$F$22,0))=\"Yes\",1,0)*\n(I$10*OFFSET('Efficiency Distributions'!$D$10,MATCH($C119,'Efficiency Distributions'!$C$9:$C$87,0)+RIGHT($E129),0)\n+I$11*OFFSET('Efficiency Distributions'!$E$10,MATCH($C119,'Efficiency Distributions'!$C$9:$C$87,0)+RIGHT($E129),0))\n/SUM(I$10:I$11)","v":0},{"$f":"IF(INDEX(PC_MAPPING,RIGHT($C119,1),MATCH($E$2,'Data by Building Type'!$D$22:$F$22,0))=\"Yes\",1,0)*\n(J$10*OFFSET('Efficiency Distributions'!$D$10,MATCH($C119,'Efficiency Distributions'!$C$9:$C$87,0)+RIGHT($E129),0)\n+J$11*OFFSET('Efficiency Distributions'!$E$10,MATCH($C119,'Efficiency Distributions'!$C$9:$C$87,0)+RIGHT($E129),0))\n/SUM(J$10:J$11)","v":0},{"$f":"IF(INDEX(PC_MAPPING,RIGHT($C119,1),MATCH($E$2,'Data by Building Type'!$D$22:$F$22,0))=\"Yes\",1,0)*\n(K$10*OFFSET('Efficiency Distributions'!$D$10,MATCH($C119,'Efficiency Distributions'!$C$9:$C$87,0)+RIGHT($E129),0)\n+K$11*OFFSET('Efficiency Distributions'!$E$10,MATCH($C119,'Efficiency Distributions'!$C$9:$C$87,0)+RIGHT($E129),0))\n/SUM(K$10:K$11)","v":0},{"$f":"IF(INDEX(PC_MAPPING,RIGHT($C119,1),MATCH($E$2,'Data by Building Type'!$D$22:$F$22,0))=\"Yes\",1,0)*\n(L$10*OFFSET('Efficiency Distributions'!$D$10,MATCH($C119,'Efficiency Distributions'!$C$9:$C$87,0)+RIGHT($E129),0)\n+L$11*OFFSET('Efficiency Distributions'!$E$10,MATCH($C119,'Efficiency Distributions'!$C$9:$C$87,0)+RIGHT($E129),0))\n/SUM(L$10:L$11)","v":0},{"$f":"IF(INDEX(PC_MAPPING,RIGHT($C119,1),MATCH($E$2,'Data by Building Type'!$D$22:$F$22,0))=\"Yes\",1,0)*\n(M$10*OFFSET('Efficiency Distributions'!$D$10,MATCH($C119,'Efficiency Distributions'!$C$9:$C$87,0)+RIGHT($E129),0)\n+M$11*OFFSET('Efficiency Distributions'!$E$10,MATCH($C119,'Efficiency Distributions'!$C$9:$C$87,0)+RIGHT($E129),0))\n/SUM(M$10:M$11)","v":0},{"$f":"IF(INDEX(PC_MAPPING,RIGHT($C119,1),MATCH($E$2,'Data by Building Type'!$D$22:$F$22,0))=\"Yes\",1,0)*\n(N$10*OFFSET('Efficiency Distributions'!$D$10,MATCH($C119,'Efficiency Distributions'!$C$9:$C$87,0)+RIGHT($E129),0)\n+N$11*OFFSET('Efficiency Distributions'!$E$10,MATCH($C119,'Efficiency Distributions'!$C$9:$C$87,0)+RIGHT($E129),0))\n/SUM(N$10:N$11)","v":0},{"$f":"IF(INDEX(PC_MAPPING,RIGHT($C119,1),MATCH($E$2,'Data by Building Type'!$D$22:$F$22,0))=\"Yes\",1,0)*\n(O$10*OFFSET('Efficiency Distributions'!$D$10,MATCH($C119,'Efficiency Distributions'!$C$9:$C$87,0)+RIGHT($E129),0)\n+O$11*OFFSET('Efficiency Distributions'!$E$10,MATCH($C119,'Efficiency Distributions'!$C$9:$C$87,0)+RIGHT($E129),0))\n/SUM(O$10:O$11)","v":0},{"$f":"IF(INDEX(PC_MAPPING,RIGHT($C119,1),MATCH($E$2,'Data by Building Type'!$D$22:$F$22,0))=\"Yes\",1,0)*\n(P$10*OFFSET('Efficiency Distributions'!$D$10,MATCH($C119,'Efficiency Distributions'!$C$9:$C$87,0)+RIGHT($E129),0)\n+P$11*OFFSET('Efficiency Distributions'!$E$10,MATCH($C119,'Efficiency Distributions'!$C$9:$C$87,0)+RIGHT($E129),0))\n/SUM(P$10:P$11)","v":0},{"$f":"IF(INDEX(PC_MAPPING,RIGHT($C119,1),MATCH($E$2,'Data by Building Type'!$D$22:$F$22,0))=\"Yes\",1,0)*\n(Q$10*OFFSET('Efficiency Distributions'!$D$10,MATCH($C119,'Efficiency Distributions'!$C$9:$C$87,0)+RIGHT($E129),0)\n+Q$11*OFFSET('Efficiency Distributions'!$E$10,MATCH($C119,'Efficiency Distributions'!$C$9:$C$87,0)+RIGHT($E129),0))\n/SUM(Q$10:Q$11)","v":0},{"$f":"IF(INDEX(PC_MAPPING,RIGHT($C119,1),MATCH($E$2,'Data by Building Type'!$D$22:$F$22,0))=\"Yes\",1,0)*\n(R$10*OFFSET('Efficiency Distributions'!$D$10,MATCH($C119,'Efficiency Distributions'!$C$9:$C$87,0)+RIGHT($E129),0)\n+R$11*OFFSET('Efficiency Distributions'!$E$10,MATCH($C119,'Efficiency Distributions'!$C$9:$C$87,0)+RIGHT($E129),0))\n/SUM(R$10:R$11)","v":0},{"$f":"IF(INDEX(PC_MAPPING,RIGHT($C119,1),MATCH($E$2,'Data by Building Type'!$D$22:$F$22,0))=\"Yes\",1,0)*\n(S$10*OFFSET('Efficiency Distributions'!$D$10,MATCH($C119,'Efficiency Distributions'!$C$9:$C$87,0)+RIGHT($E129),0)\n+S$11*OFFSET('Efficiency Distributions'!$E$10,MATCH($C119,'Efficiency Distributions'!$C$9:$C$87,0)+RIGHT($E129),0))\n/SUM(S$10:S$11)","v":0},{"$f":"IF(INDEX(PC_MAPPING,RIGHT($C119,1),MATCH($E$2,'Data by Building Type'!$D$22:$F$22,0))=\"Yes\",1,0)*\n(T$10*OFFSET('Efficiency Distributions'!$D$10,MATCH($C119,'Efficiency Distributions'!$C$9:$C$87,0)+RIGHT($E129),0)\n+T$11*OFFSET('Efficiency Distributions'!$E$10,MATCH($C119,'Efficiency Distributions'!$C$9:$C$87,0)+RIGHT($E129),0))\n/SUM(T$10:T$11)","v":0},{"$f":"IF(INDEX(PC_MAPPING,RIGHT($C119,1),MATCH($E$2,'Data by Building Type'!$D$22:$F$22,0))=\"Yes\",1,0)*\n(U$10*OFFSET('Efficiency Distributions'!$D$10,MATCH($C119,'Efficiency Distributions'!$C$9:$C$87,0)+RIGHT($E129),0)\n+U$11*OFFSET('Efficiency Distributions'!$E$10,MATCH($C119,'Efficiency Distributions'!$C$9:$C$87,0)+RIGHT($E129),0))\n/SUM(U$10:U$11)","v":0},{"$f":"IF(INDEX(PC_MAPPING,RIGHT($C119,1),MATCH($E$2,'Data by Building Type'!$D$22:$F$22,0))=\"Yes\",1,0)*\n(V$10*OFFSET('Efficiency Distributions'!$D$10,MATCH($C119,'Efficiency Distributions'!$C$9:$C$87,0)+RIGHT($E129),0)\n+V$11*OFFSET('Efficiency Distributions'!$E$10,MATCH($C119,'Efficiency Distributions'!$C$9:$C$87,0)+RIGHT($E129),0))\n/SUM(V$10:V$11)","v":0},{"$f":"IF(INDEX(PC_MAPPING,RIGHT($C119,1),MATCH($E$2,'Data by Building Type'!$D$22:$F$22,0))=\"Yes\",1,0)*\n(W$10*OFFSET('Efficiency Distributions'!$D$10,MATCH($C119,'Efficiency Distributions'!$C$9:$C$87,0)+RIGHT($E129),0)\n+W$11*OFFSET('Efficiency Distributions'!$E$10,MATCH($C119,'Efficiency Distributions'!$C$9:$C$87,0)+RIGHT($E129),0))\n/SUM(W$10:W$11)","v":0},{"$f":"IF(INDEX(PC_MAPPING,RIGHT($C119,1),MATCH($E$2,'Data by Building Type'!$D$22:$F$22,0))=\"Yes\",1,0)*\n(X$10*OFFSET('Efficiency Distributions'!$D$10,MATCH($C119,'Efficiency Distributions'!$C$9:$C$87,0)+RIGHT($E129),0)\n+X$11*OFFSET('Efficiency Distributions'!$E$10,MATCH($C119,'Efficiency Distributions'!$C$9:$C$87,0)+RIGHT($E129),0))\n/SUM(X$10:X$11)","v":0},{"$f":"IF(INDEX(PC_MAPPING,RIGHT($C119,1),MATCH($E$2,'Data by Building Type'!$D$22:$F$22,0))=\"Yes\",1,0)*\n(Y$10*OFFSET('Efficiency Distributions'!$D$10,MATCH($C119,'Efficiency Distributions'!$C$9:$C$87,0)+RIGHT($E129),0)\n+Y$11*OFFSET('Efficiency Distributions'!$E$10,MATCH($C119,'Efficiency Distributions'!$C$9:$C$87,0)+RIGHT($E129),0))\n/SUM(Y$10:Y$11)","v":0},{"$f":"IF(INDEX(PC_MAPPING,RIGHT($C119,1),MATCH($E$2,'Data by Building Type'!$D$22:$F$22,0))=\"Yes\",1,0)*\n(Z$10*OFFSET('Efficiency Distributions'!$D$10,MATCH($C119,'Efficiency Distributions'!$C$9:$C$87,0)+RIGHT($E129),0)\n+Z$11*OFFSET('Efficiency Distributions'!$E$10,MATCH($C119,'Efficiency Distributions'!$C$9:$C$87,0)+RIGHT($E129),0))\n/SUM(Z$10:Z$11)","v":0},{"$f":"IF(INDEX(PC_MAPPING,RIGHT($C119,1),MATCH($E$2,'Data by Building Type'!$D$22:$F$22,0))=\"Yes\",1,0)*\n(AA$10*OFFSET('Efficiency Distributions'!$D$10,MATCH($C119,'Efficiency Distributions'!$C$9:$C$87,0)+RIGHT($E129),0)\n+AA$11*OFFSET('Efficiency Distributions'!$E$10,MATCH($C119,'Efficiency Distributions'!$C$9:$C$87,0)+RIGHT($E129),0))\n/SUM(AA$10:AA$11)","v":0},{"$f":"IF(INDEX(PC_MAPPING,RIGHT($C119,1),MATCH($E$2,'Data by Building Type'!$D$22:$F$22,0))=\"Yes\",1,0)*\n(AB$10*OFFSET('Efficiency Distributions'!$D$10,MATCH($C119,'Efficiency Distributions'!$C$9:$C$87,0)+RIGHT($E129),0)\n+AB$11*OFFSET('Efficiency Distributions'!$E$10,MATCH($C119,'Efficiency Distributions'!$C$9:$C$87,0)+RIGHT($E129),0))\n/SUM(AB$10:AB$11)","v":0},{"$f":"IF(INDEX(PC_MAPPING,RIGHT($C119,1),MATCH($E$2,'Data by Building Type'!$D$22:$F$22,0))=\"Yes\",1,0)*\n(AC$10*OFFSET('Efficiency Distributions'!$D$10,MATCH($C119,'Efficiency Distributions'!$C$9:$C$87,0)+RIGHT($E129),0)\n+AC$11*OFFSET('Efficiency Distributions'!$E$10,MATCH($C119,'Efficiency Distributions'!$C$9:$C$87,0)+RIGHT($E129),0))\n/SUM(AC$10:AC$11)","v":0},{"$f":"IF(INDEX(PC_MAPPING,RIGHT($C119,1),MATCH($E$2,'Data by Building Type'!$D$22:$F$22,0))=\"Yes\",1,0)*\n(AD$10*OFFSET('Efficiency Distributions'!$D$10,MATCH($C119,'Efficiency Distributions'!$C$9:$C$87,0)+RIGHT($E129),0)\n+AD$11*OFFSET('Efficiency Distributions'!$E$10,MATCH($C119,'Efficiency Distributions'!$C$9:$C$87,0)+RIGHT($E129),0))\n/SUM(AD$10:AD$11)","v":0},{"$f":"IF(INDEX(PC_MAPPING,RIGHT($C119,1),MATCH($E$2,'Data by Building Type'!$D$22:$F$22,0))=\"Yes\",1,0)*\n(AE$10*OFFSET('Efficiency Distributions'!$D$10,MATCH($C119,'Efficiency Distributions'!$C$9:$C$87,0)+RIGHT($E129),0)\n+AE$11*OFFSET('Efficiency Distributions'!$E$10,MATCH($C119,'Efficiency Distributions'!$C$9:$C$87,0)+RIGHT($E129),0))\n/SUM(AE$10:AE$11)","v":0},{"$f":"IF(INDEX(PC_MAPPING,RIGHT($C119,1),MATCH($E$2,'Data by Building Type'!$D$22:$F$22,0))=\"Yes\",1,0)*\n(AF$10*OFFSET('Efficiency Distributions'!$D$10,MATCH($C119,'Efficiency Distributions'!$C$9:$C$87,0)+RIGHT($E129),0)\n+AF$11*OFFSET('Efficiency Distributions'!$E$10,MATCH($C119,'Efficiency Distributions'!$C$9:$C$87,0)+RIGHT($E129),0))\n/SUM(AF$10:AF$11)","v":0},{"$f":"IF(INDEX(PC_MAPPING,RIGHT($C119,1),MATCH($E$2,'Data by Building Type'!$D$22:$F$22,0))=\"Yes\",1,0)*\n(AG$10*OFFSET('Efficiency Distributions'!$D$10,MATCH($C119,'Efficiency Distributions'!$C$9:$C$87,0)+RIGHT($E129),0)\n+AG$11*OFFSET('Efficiency Distributions'!$E$10,MATCH($C119,'Efficiency Distributions'!$C$9:$C$87,0)+RIGHT($E129),0))\n/SUM(AG$10:AG$11)","v":0},{"$f":"IF(INDEX(PC_MAPPING,RIGHT($C119,1),MATCH($E$2,'Data by Building Type'!$D$22:$F$22,0))=\"Yes\",1,0)*\n(AH$10*OFFSET('Efficiency Distributions'!$D$10,MATCH($C119,'Efficiency Distributions'!$C$9:$C$87,0)+RIGHT($E129),0)\n+AH$11*OFFSET('Efficiency Distributions'!$E$10,MATCH($C119,'Efficiency Distributions'!$C$9:$C$87,0)+RIGHT($E129),0))\n/SUM(AH$10:AH$11)","v":0},{"$f":"IF(INDEX(PC_MAPPING,RIGHT($C119,1),MATCH($E$2,'Data by Building Type'!$D$22:$F$22,0))=\"Yes\",1,0)*\n(AI$10*OFFSET('Efficiency Distributions'!$D$10,MATCH($C119,'Efficiency Distributions'!$C$9:$C$87,0)+RIGHT($E129),0)\n+AI$11*OFFSET('Efficiency Distributions'!$E$10,MATCH($C119,'Efficiency Distributions'!$C$9:$C$87,0)+RIGHT($E129),0))\n/SUM(AI$10:AI$11)","v":0},{"$f":"IF(INDEX(PC_MAPPING,RIGHT($C119,1),MATCH($E$2,'Data by Building Type'!$D$22:$F$22,0))=\"Yes\",1,0)*\n(AJ$10*OFFSET('Efficiency Distributions'!$D$10,MATCH($C119,'Efficiency Distributions'!$C$9:$C$87,0)+RIGHT($E129),0)\n+AJ$11*OFFSET('Efficiency Distributions'!$E$10,MATCH($C119,'Efficiency Distributions'!$C$9:$C$87,0)+RIGHT($E129),0))\n/SUM(AJ$10:AJ$11)","v":0},{"$f":"IF(INDEX(PC_MAPPING,RIGHT($C119,1),MATCH($E$2,'Data by Building Type'!$D$22:$F$22,0))=\"Yes\",1,0)*\n(AK$10*OFFSET('Efficiency Distributions'!$D$10,MATCH($C119,'Efficiency Distributions'!$C$9:$C$87,0)+RIGHT($E129),0)\n+AK$11*OFFSET('Efficiency Distributions'!$E$10,MATCH($C119,'Efficiency Distributions'!$C$9:$C$87,0)+RIGHT($E129),0))\n/SUM(AK$10:AK$11)","v":0},{"$f":"IF(INDEX(PC_MAPPING,RIGHT($C119,1),MATCH($E$2,'Data by Building Type'!$D$22:$F$22,0))=\"Yes\",1,0)*\n(AL$10*OFFSET('Efficiency Distributions'!$D$10,MATCH($C119,'Efficiency Distributions'!$C$9:$C$87,0)+RIGHT($E129),0)\n+AL$11*OFFSET('Efficiency Distributions'!$E$10,MATCH($C119,'Efficiency Distributions'!$C$9:$C$87,0)+RIGHT($E129),0))\n/SUM(AL$10:AL$11)","v":0},{"$f":"IF(INDEX(PC_MAPPING,RIGHT($C119,1),MATCH($E$2,'Data by Building Type'!$D$22:$F$22,0))=\"Yes\",1,0)*\n(AM$10*OFFSET('Efficiency Distributions'!$D$10,MATCH($C119,'Efficiency Distributions'!$C$9:$C$87,0)+RIGHT($E129),0)\n+AM$11*OFFSET('Efficiency Distributions'!$E$10,MATCH($C119,'Efficiency Distributions'!$C$9:$C$87,0)+RIGHT($E129),0))\n/SUM(AM$10:AM$11)","v":0},{"$f":"IF(INDEX(PC_MAPPING,RIGHT($C119,1),MATCH($E$2,'Data by Building Type'!$D$22:$F$22,0))=\"Yes\",1,0)*\n(AN$10*OFFSET('Efficiency Distributions'!$D$10,MATCH($C119,'Efficiency Distributions'!$C$9:$C$87,0)+RIGHT($E129),0)\n+AN$11*OFFSET('Efficiency Distributions'!$E$10,MATCH($C119,'Efficiency Distributions'!$C$9:$C$87,0)+RIGHT($E129),0))\n/SUM(AN$10:AN$11)","v":0},{"$f":"IF(INDEX(PC_MAPPING,RIGHT($C119,1),MATCH($E$2,'Data by Building Type'!$D$22:$F$22,0))=\"Yes\",1,0)*\n(AO$10*OFFSET('Efficiency Distributions'!$D$10,MATCH($C119,'Efficiency Distributions'!$C$9:$C$87,0)+RIGHT($E129),0)\n+AO$11*OFFSET('Efficiency Distributions'!$E$10,MATCH($C119,'Efficiency Distributions'!$C$9:$C$87,0)+RIGHT($E129),0))\n/SUM(AO$10:AO$11)","v":0},{"$f":"IF(INDEX(PC_MAPPING,RIGHT($C119,1),MATCH($E$2,'Data by Building Type'!$D$22:$F$22,0))=\"Yes\",1,0)*\n(AP$10*OFFSET('Efficiency Distributions'!$D$10,MATCH($C119,'Efficiency Distributions'!$C$9:$C$87,0)+RIGHT($E129),0)\n+AP$11*OFFSET('Efficiency Distributions'!$E$10,MATCH($C119,'Efficiency Distributions'!$C$9:$C$87,0)+RIGHT($E129),0))\n/SUM(AP$10:AP$11)","v":0},{"$f":"IF(INDEX(PC_MAPPING,RIGHT($C119,1),MATCH($E$2,'Data by Building Type'!$D$22:$F$22,0))=\"Yes\",1,0)*\n(AQ$10*OFFSET('Efficiency Distributions'!$D$10,MATCH($C119,'Efficiency Distributions'!$C$9:$C$87,0)+RIGHT($E129),0)\n+AQ$11*OFFSET('Efficiency Distributions'!$E$10,MATCH($C119,'Efficiency Distributions'!$C$9:$C$87,0)+RIGHT($E129),0))\n/SUM(AQ$10:AQ$11)","v":0},{"$f":"IF(INDEX(PC_MAPPING,RIGHT($C119,1),MATCH($E$2,'Data by Building Type'!$D$22:$F$22,0))=\"Yes\",1,0)*\n(AR$10*OFFSET('Efficiency Distributions'!$D$10,MATCH($C119,'Efficiency Distributions'!$C$9:$C$87,0)+RIGHT($E129),0)\n+AR$11*OFFSET('Efficiency Distributions'!$E$10,MATCH($C119,'Efficiency Distributions'!$C$9:$C$87,0)+RIGHT($E129),0))\n/SUM(AR$10:AR$11)","v":0},{"$f":"IF(INDEX(PC_MAPPING,RIGHT($C119,1),MATCH($E$2,'Data by Building Type'!$D$22:$F$22,0))=\"Yes\",1,0)*\n(AS$10*OFFSET('Efficiency Distributions'!$D$10,MATCH($C119,'Efficiency Distributions'!$C$9:$C$87,0)+RIGHT($E129),0)\n+AS$11*OFFSET('Efficiency Distributions'!$E$10,MATCH($C119,'Efficiency Distributions'!$C$9:$C$87,0)+RIGHT($E129),0))\n/SUM(AS$10:AS$11)","v":0},{"$f":"IF(INDEX(PC_MAPPING,RIGHT($C119,1),MATCH($E$2,'Data by Building Type'!$D$22:$F$22,0))=\"Yes\",1,0)*\n(AT$10*OFFSET('Efficiency Distributions'!$D$10,MATCH($C119,'Efficiency Distributions'!$C$9:$C$87,0)+RIGHT($E129),0)\n+AT$11*OFFSET('Efficiency Distributions'!$E$10,MATCH($C119,'Efficiency Distributions'!$C$9:$C$87,0)+RIGHT($E129),0))\n/SUM(AT$10:AT$11)","v":0},{"$f":"IF(INDEX(PC_MAPPING,RIGHT($C119,1),MATCH($E$2,'Data by Building Type'!$D$22:$F$22,0))=\"Yes\",1,0)*\n(AU$10*OFFSET('Efficiency Distributions'!$D$10,MATCH($C119,'Efficiency Distributions'!$C$9:$C$87,0)+RIGHT($E129),0)\n+AU$11*OFFSET('Efficiency Distributions'!$E$10,MATCH($C119,'Efficiency Distributions'!$C$9:$C$87,0)+RIGHT($E129),0))\n/SUM(AU$10:AU$11)","v":0},{"$f":"IF(INDEX(PC_MAPPING,RIGHT($C119,1),MATCH($E$2,'Data by Building Type'!$D$22:$F$22,0))=\"Yes\",1,0)*\n(AV$10*OFFSET('Efficiency Distributions'!$D$10,MATCH($C119,'Efficiency Distributions'!$C$9:$C$87,0)+RIGHT($E129),0)\n+AV$11*OFFSET('Efficiency Distributions'!$E$10,MATCH($C119,'Efficiency Distributions'!$C$9:$C$87,0)+RIGHT($E129),0))\n/SUM(AV$10:AV$11)","v":0},{"$f":"IF(INDEX(PC_MAPPING,RIGHT($C119,1),MATCH($E$2,'Data by Building Type'!$D$22:$F$22,0))=\"Yes\",1,0)*\n(AW$10*OFFSET('Efficiency Distributions'!$D$10,MATCH($C119,'Efficiency Distributions'!$C$9:$C$87,0)+RIGHT($E129),0)\n+AW$11*OFFSET('Efficiency Distributions'!$E$10,MATCH($C119,'Efficiency Distributions'!$C$9:$C$87,0)+RIGHT($E129),0))\n/SUM(AW$10:AW$11)","v":0},{"$f":"IF(INDEX(PC_MAPPING,RIGHT($C119,1),MATCH($E$2,'Data by Building Type'!$D$22:$F$22,0))=\"Yes\",1,0)*\n(AX$10*OFFSET('Efficiency Distributions'!$D$10,MATCH($C119,'Efficiency Distributions'!$C$9:$C$87,0)+RIGHT($E129),0)\n+AX$11*OFFSET('Efficiency Distributions'!$E$10,MATCH($C119,'Efficiency Distributions'!$C$9:$C$87,0)+RIGHT($E129),0))\n/SUM(AX$10:AX$11)","v":0},{"$f":"IF(INDEX(PC_MAPPING,RIGHT($C119,1),MATCH($E$2,'Data by Building Type'!$D$22:$F$22,0))=\"Yes\",1,0)*\n(AY$10*OFFSET('Efficiency Distributions'!$D$10,MATCH($C119,'Efficiency Distributions'!$C$9:$C$87,0)+RIGHT($E129),0)\n+AY$11*OFFSET('Efficiency Distributions'!$E$10,MATCH($C119,'Efficiency Distributions'!$C$9:$C$87,0)+RIGHT($E129),0))\n/SUM(AY$10:AY$11)","v":0},{"$f":"IF(INDEX(PC_MAPPING,RIGHT($C119,1),MATCH($E$2,'Data by Building Type'!$D$22:$F$22,0))=\"Yes\",1,0)*\n(AZ$10*OFFSET('Efficiency Distributions'!$D$10,MATCH($C119,'Efficiency Distributions'!$C$9:$C$87,0)+RIGHT($E129),0)\n+AZ$11*OFFSET('Efficiency Distributions'!$E$10,MATCH($C119,'Efficiency Distributions'!$C$9:$C$87,0)+RIGHT($E129),0))\n/SUM(AZ$10:AZ$11)","v":0},{"$f":"IF(INDEX(PC_MAPPING,RIGHT($C119,1),MATCH($E$2,'Data by Building Type'!$D$22:$F$22,0))=\"Yes\",1,0)*\n(BA$10*OFFSET('Efficiency Distributions'!$D$10,MATCH($C119,'Efficiency Distributions'!$C$9:$C$87,0)+RIGHT($E129),0)\n+BA$11*OFFSET('Efficiency Distributions'!$E$10,MATCH($C119,'Efficiency Distributions'!$C$9:$C$87,0)+RIGHT($E129),0))\n/SUM(BA$10:BA$11)","v":0},{"$f":"IF(INDEX(PC_MAPPING,RIGHT($C119,1),MATCH($E$2,'Data by Building Type'!$D$22:$F$22,0))=\"Yes\",1,0)*\n(BB$10*OFFSET('Efficiency Distributions'!$D$10,MATCH($C119,'Efficiency Distributions'!$C$9:$C$87,0)+RIGHT($E129),0)\n+BB$11*OFFSET('Efficiency Distributions'!$E$10,MATCH($C119,'Efficiency Distributions'!$C$9:$C$87,0)+RIGHT($E129),0))\n/SUM(BB$10:BB$11)","v":0},{"$f":"IF(INDEX(PC_MAPPING,RIGHT($C119,1),MATCH($E$2,'Data by Building Type'!$D$22:$F$22,0))=\"Yes\",1,0)*\n(BC$10*OFFSET('Efficiency Distributions'!$D$10,MATCH($C119,'Efficiency Distributions'!$C$9:$C$87,0)+RIGHT($E129),0)\n+BC$11*OFFSET('Efficiency Distributions'!$E$10,MATCH($C119,'Efficiency Distributions'!$C$9:$C$87,0)+RIGHT($E129),0))\n/SUM(BC$10:BC$11)","v":0},{"$f":"IF(INDEX(PC_MAPPING,RIGHT($C119,1),MATCH($E$2,'Data by Building Type'!$D$22:$F$22,0))=\"Yes\",1,0)*\n(BD$10*OFFSET('Efficiency Distributions'!$D$10,MATCH($C119,'Efficiency Distributions'!$C$9:$C$87,0)+RIGHT($E129),0)\n+BD$11*OFFSET('Efficiency Distributions'!$E$10,MATCH($C119,'Efficiency Distributions'!$C$9:$C$87,0)+RIGHT($E129),0))\n/SUM(BD$10:BD$11)","v":0},{"$f":"IF(INDEX(PC_MAPPING,RIGHT($C119,1),MATCH($E$2,'Data by Building Type'!$D$22:$F$22,0))=\"Yes\",1,0)*\n(BE$10*OFFSET('Efficiency Distributions'!$D$10,MATCH($C119,'Efficiency Distributions'!$C$9:$C$87,0)+RIGHT($E129),0)\n+BE$11*OFFSET('Efficiency Distributions'!$E$10,MATCH($C119,'Efficiency Distributions'!$C$9:$C$87,0)+RIGHT($E129),0))\n/SUM(BE$10:BE$11)","v":0},{"$f":"IF(INDEX(PC_MAPPING,RIGHT($C119,1),MATCH($E$2,'Data by Building Type'!$D$22:$F$22,0))=\"Yes\",1,0)*\n(BF$10*OFFSET('Efficiency Distributions'!$D$10,MATCH($C119,'Efficiency Distributions'!$C$9:$C$87,0)+RIGHT($E129),0)\n+BF$11*OFFSET('Efficiency Distributions'!$E$10,MATCH($C119,'Efficiency Distributions'!$C$9:$C$87,0)+RIGHT($E129),0))\n/SUM(BF$10:BF$11)","v":0},{"$f":"IF(INDEX(PC_MAPPING,RIGHT($C119,1),MATCH($E$2,'Data by Building Type'!$D$22:$F$22,0))=\"Yes\",1,0)*\n(BG$10*OFFSET('Efficiency Distributions'!$D$10,MATCH($C119,'Efficiency Distributions'!$C$9:$C$87,0)+RIGHT($E129),0)\n+BG$11*OFFSET('Efficiency Distributions'!$E$10,MATCH($C119,'Efficiency Distributions'!$C$9:$C$87,0)+RIGHT($E129),0))\n/SUM(BG$10:BG$11)","v":0}]
[null,null,null,null,"TOTAL",{"$f":"SUM(F123:F129)","v":1},1,{"$f":"SUM(H123:H129)","v":1},1,1.0000000000000002,1,1,1,1,1,1,1,0.99999999999999989,1,1,1,1,1,1,1,1.0000000000000002,1,1,1,1.0000000000000002,1,1,1,1,1,1,0.99999999999999978,1,1,1,1,1,1.0000000000000002,1,1,1,1,1,0.99999999999999989,1,1,1,1,1,1,0.99999999999999989,1,1,1]
[]
[null,null,null,"POST-Case"]
[null,null,null,null,"Efficiency Level",1981,{"$f":"F133+1","v":1982},{"$f":"G133+1","v":1983},1984,1985,1986,1987,1988,1989,1990,{"$f":"O133+1","v":1991},{"$f":"P133+1","v":1992},1993,1994,1995,1996,1997,1998,1999,2000,2001,2002,2003,2004,2005,2006,2007,2008,2009,2010,2011,2012,2013,2014,2015,2016,2017,2018,2019,2020,2021,2022,2023,2024,2025,2026,2027,2028,2029,2030,2031,2032,2033,2034]
[null,null,null,null,"EL0",{"$f":"IF(F$29<STANDARD_YEAR,F123,\nIF(RIGHT($E134,1)>RIGHT(INDEX(STANDARD_LEVELS,1,MID($C119,4,1)),1),F123,\nIF(RIGHT($E134,1)<RIGHT(INDEX(STANDARD_LEVELS,1,MID($C119,4,1)),1),0,\nIF(RIGHT($E134,1)=RIGHT(INDEX(STANDARD_LEVELS,1,MID($C119,4,1)),1),SUM(OFFSET(F123,-(RIGHT($E134,1)),0,RIGHT($E134,1)+1,1)),\"ERROR\"))))","v":0.26422129879820905},0.2519805594574428,{"$f":"IF(H$29<STANDARD_YEAR,H123,\nIF(RIGHT($E134,1)>RIGHT(INDEX(STANDARD_LEVELS,1,MID($C119,4,1)),1),H123,\nIF(RIGHT($E134,1)<RIGHT(INDEX(STANDARD_LEVELS,1,MID($C119,4,1)),1),0,\nIF(RIGHT($E134,1)=RIGHT(INDEX(STANDARD_LEVELS,1,MID($C119,4,1)),1),SUM(OFFSET(H123,-(RIGHT($E134,1)),0,RIGHT($E134,1)+1,1)),\"ERROR\"))))","v":0.26662351250203992},0.263892523824789,0.26220163657108747,0.26499282434535743,0.26521243317028598,0.26895214647187576,0.27748581659702937,0.28330109698396999,0.27737268668158266,0.28712343740957957,0.26033889081620015,0.26303660249852451,0.25309630688998869,0.25452834139418906,0.25241041636746736,0.25342597902691583,0.25016578800822309,0.24223390160572097,0.24209995681858842,0.24332873962480042,0.25032965882688341,0.24984061225988624,0.25586795492920344,0.24672030490975533,0.22651404026786459,0.21788706502162644,0.21788706502162644,0.21788706502162644,0.22148082092872245,0.27172736813182802,0.27022363988591142,0.27668393079251685,0.27616234069215456,0.27869367392761346,0.27758006473575708,0.27720187980029548,0,0,0,0,0,0,0,0,0,0,0,0,0,0,0,0]
[null,null,null,null,"EL1",{"$f":"IF(F$29<STANDARD_YEAR,F124,\nIF(RIGHT($E135,1)>RIGHT(INDEX(STANDARD_LEVELS,1,MID($C119,4,1)),1),F124,\nIF(RIGHT($E135,1)<RIGHT(INDEX(STANDARD_LEVELS,1,MID($C119,4,1)),1),0,\nIF(RIGHT($E135,1)=RIGHT(INDEX(STANDARD_LEVELS,1,MID($C119,4,1)),1),SUM(OFFSET(F124,-(RIGHT($E135,1)),0,RIGHT($E135,1)+1,1)),\"ERROR\"))))","v":0.35032499524439165},0.34411816338553297,{"$f":"IF(H$29<STANDARD_YEAR,H124,\nIF(RIGHT($E135,1)>RIGHT(INDEX(STANDARD_LEVELS,1,MID($C119,4,1)),1),H124,\nIF(RIGHT($E135,1)<RIGHT(INDEX(STANDARD_LEVELS,1,MID($C119,4,1)),1),0,\nIF(RIGHT($E135,1)=RIGHT(INDEX(STANDARD_LEVELS,1,MID($C119,4,1)),1),SUM(OFFSET(H124,-(RIGHT($E135,1)),0,RIGHT($E135,1)+1,1)),\"ERROR\"))))","v":0.35154307007906022},0.35015828546301248,0.34930089829187483,0.35071620767140704,0.35082756328589298,0.35272383531792634,0.35705094776851121,0.35999966406489137,0.35699358372016116,0.36193783329377655,0.34835636795146607,0.34972427901874137,0.34468391815883342,0.34541005055461566,0.34433612812521214,0.34485108285906058,0.34319795906339279,0.33917598915999508,0.33910807065042164,0.33973114153338813,0.34328105197058439,0.34303307431760105,0.34608931965235673,0.34145088042137756,0.33120502160220211,0.32683059753243965,0.32683059753243965,0.32683059753243965,0.32865285990043558,0.35413104886400837,0.35336856319022747,0.35664434076381507,0.35637986147362938,0.3576634081070349,0.35709873755749438,0.35690697378893299,0,0,0,0,0,0,0,0,0,0,0,0,0,0,0,0]
[null,null,null,null,"EL2",{"$f":"IF(F$29<STANDARD_YEAR,F125,\nIF(RIGHT($E136,1)>RIGHT(INDEX(STANDARD_LEVELS,1,MID($C119,4,1)),1),F125,\nIF(RIGHT($E136,1)<RIGHT(INDEX(STANDARD_LEVELS,1,MID($C119,4,1)),1),0,\nIF(RIGHT($E136,1)=RIGHT(INDEX(STANDARD_LEVELS,1,MID($C119,4,1)),1),SUM(OFFSET(F125,-(RIGHT($E136,1)),0,RIGHT($E136,1)+1,1)),\"ERROR\"))))","v":0},0,{"$f":"IF(H$29<STANDARD_YEAR,H125,\nIF(RIGHT($E136,1)>RIGHT(INDEX(STANDARD_LEVELS,1,MID($C119,4,1)),1),H125,\nIF(RIGHT($E136,1)<RIGHT(INDEX(STANDARD_LEVELS,1,MID($C119,4,1)),1),0,\nIF(RIGHT($E136,1)=RIGHT(INDEX(STANDARD_LEVELS,1,MID($C119,4,1)),1),SUM(OFFSET(H125,-(RIGHT($E136,1)),0,RIGHT($E136,1)+1,1)),\"ERROR\"))))","v":0},0,0,0,0,0,0,0,0,0,0,0,0,0,0,0,0,0,0,0,0,0,0,0,0,0,0,0,0,0,0,0,0,0,0,0,0,0,0,0,0,0,0,0,0,0,0,0,0,0,0,0]
[null,null,null,null,"EL3",{"$f":"IF(F$29<STANDARD_YEAR,F126,\nIF(RIGHT($E137,1)>RIGHT(INDEX(STANDARD_LEVELS,1,MID($C119,4,1)),1),F126,\nIF(RIGHT($E137,1)<RIGHT(INDEX(STANDARD_LEVELS,1,MID($C119,4,1)),1),0,\nIF(RIGHT($E137,1)=RIGHT(INDEX(STANDARD_LEVELS,1,MID($C119,4,1)),1),SUM(OFFSET(F126,-(RIGHT($E137,1)),0,RIGHT($E137,1)+1,1)),\"ERROR\"))))","v":0.12301714019917001},0.12890466292245456,{"$f":"IF(H$29<STANDARD_YEAR,H126,\nIF(RIGHT($E137,1)>RIGHT(INDEX(STANDARD_LEVELS,1,MID($C119,4,1)),1),H126,\nIF(RIGHT($E137,1)<RIGHT(INDEX(STANDARD_LEVELS,1,MID($C119,4,1)),1),0,\nIF(RIGHT($E137,1)=RIGHT(INDEX(STANDARD_LEVELS,1,MID($C119,4,1)),1),SUM(OFFSET(H126,-(RIGHT($E137,1)),0,RIGHT($E137,1)+1,1)),\"ERROR\"))))","v":0.12186172896347872},0.12317527363155276,0.12398855270330995,0.12264605361167094,0.12254042666292164,0.12074170793942487,0.11663720286206153,0.11384018264398044,0.11669161582923074,0.11200172211595022,0.12488449188265972,0.12358695270725559,0.12836801328229083,0.12767923661208364,0.12869791133212358,0.12820944833426287,0.12977752753033536,0.13359258805349492,0.13365701250989045,0.13306599537504624,0.12969870931995711,0.12993392981569557,0.12703491236758721,0.13143472808580867,0.1411534908925319,0.14530287365295766,0.14530287365295766,0.14530287365295766,0.14357435718218364,0.11940688819281814,0.12013014795442378,0.11702289205648983,0.11727376526623916,0.11605625041447395,0.11659187160853676,0.11677377013109734,0,0,0,0,0,0,0,0,0,0,0,0,0,0,0,0]
[null,null,null,null,"EL4",{"$f":"IF(F$29<STANDARD_YEAR,F127,\nIF(RIGHT($E138,1)>RIGHT(INDEX(STANDARD_LEVELS,1,MID($C119,4,1)),1),F127,\nIF(RIGHT($E138,1)<RIGHT(INDEX(STANDARD_LEVELS,1,MID($C119,4,1)),1),0,\nIF(RIGHT($E138,1)=RIGHT(INDEX(STANDARD_LEVELS,1,MID($C119,4,1)),1),SUM(OFFSET(F127,-(RIGHT($E138,1)),0,RIGHT($E138,1)+1,1)),\"ERROR\"))))","v":0},0,{"$f":"IF(H$29<STANDARD_YEAR,H127,\nIF(RIGHT($E138,1)>RIGHT(INDEX(STANDARD_LEVELS,1,MID($C119,4,1)),1),H127,\nIF(RIGHT($E138,1)<RIGHT(INDEX(STANDARD_LEVELS,1,MID($C119,4,1)),1),0,\nIF(RIGHT($E138,1)=RIGHT(INDEX(STANDARD_LEVELS,1,MID($C119,4,1)),1),SUM(OFFSET(H127,-(RIGHT($E138,1)),0,RIGHT($E138,1)+1,1)),\"ERROR\"))))","v":0},0,0,0,0,0,0,0,0,0,0,0,0,0,0,0,0,0,0,0,0,0,0,0,0,0,0,0,0,0,0,0,0,0,0,0,0.74966123067659618,0.74967745315446743,0.75032483782943071,0.74956458617909938,0.73907327305104198,0.73969192525749372,0.73656935186458583,0.73562189308412573,0.73704341716947197,0.73922914429254794,0.74390627728654146,0.74485467335350286,0.73954759578299822,0.7358372826663887,0.72846199653131039,0.72709746407879428]
[null,null,null,null,"EL5",{"$f":"IF(F$29<STANDARD_YEAR,F128,\nIF(RIGHT($E139,1)>RIGHT(INDEX(STANDARD_LEVELS,1,MID($C119,4,1)),1),F128,\nIF(RIGHT($E139,1)<RIGHT(INDEX(STANDARD_LEVELS,1,MID($C119,4,1)),1),0,\nIF(RIGHT($E139,1)=RIGHT(INDEX(STANDARD_LEVELS,1,MID($C119,4,1)),1),SUM(OFFSET(F128,-(RIGHT($E139,1)),0,RIGHT($E139,1)+1,1)),\"ERROR\"))))","v":0.26243656575822932},0.27499661423456973,{"$f":"IF(H$29<STANDARD_YEAR,H128,\nIF(RIGHT($E139,1)>RIGHT(INDEX(STANDARD_LEVELS,1,MID($C119,4,1)),1),H128,\nIF(RIGHT($E139,1)<RIGHT(INDEX(STANDARD_LEVELS,1,MID($C119,4,1)),1),0,\nIF(RIGHT($E139,1)=RIGHT(INDEX(STANDARD_LEVELS,1,MID($C119,4,1)),1),SUM(OFFSET(H128,-(RIGHT($E139,1)),0,RIGHT($E139,1)+1,1)),\"ERROR\"))))","v":0.25997168845542123},0.26277391708064585,0.26450891243372782,0.26164491437156462,0.2614195768808994,0.25758231027077305,0.24882603277239787,0.24285905630715823,0.24894211376902553,0.23893700718069374,0.26642024934967401,0.26365216577547851,0.27385176166888708,0.2723823714391117,0.27455554417519695,0.2735134897797607,0.27685872539804873,0.28499752118078908,0.28513496002109956,0.28387412346676522,0.27669057988257512,0.27719238360681719,0.2710078130508527,0.28039408658305853,0.30112744723740137,0.30997946379297631,0.30997946379297631,0.30997946379297625,0.30629196198865843,0.25473469481134536,0.25627764896943733,0.24964883638717827,0.25018403256797689,0.24758666755087774,0.24872932609821174,0.24911737627967431,0.25033876932340382,0.25032254684553262,0.24967516217056931,0.25043541382090068,0.26092672694895813,0.26030807474250617,0.26343064813541417,0.26437810691587421,0.26295658283052803,0.26077085570745206,0.25609372271345865,0.25514532664649725,0.26045240421700167,0.26416271733361141,0.27153800346868973,0.27290253592120567]
[null,null,null,null,"EL6",{"$f":"IF(F$29<STANDARD_YEAR,F129,\nIF(RIGHT($E140,1)>RIGHT(INDEX(STANDARD_LEVELS,1,MID($C119,4,1)),1),F129,\nIF(RIGHT($E140,1)<RIGHT(INDEX(STANDARD_LEVELS,1,MID($C119,4,1)),1),0,\nIF(RIGHT($E140,1)=RIGHT(INDEX(STANDARD_LEVELS,1,MID($C119,4,1)),1),SUM(OFFSET(F129,-(RIGHT($E140,1)),0,RIGHT($E140,1)+1,1)),\"ERROR\"))))","v":0},0,{"$f":"IF(H$29<STANDARD_YEAR,H129,\nIF(RIGHT($E140,1)>RIGHT(INDEX(STANDARD_LEVELS,1,MID($C119,4,1)),1),H129,\nIF(RIGHT($E140,1)<RIGHT(INDEX(STANDARD_LEVELS,1,MID($C119,4,1)),1),0,\nIF(RIGHT($E140,1)=RIGHT(INDEX(STANDARD_LEVELS,1,MID($C119,4,1)),1),SUM(OFFSET(H129,-(RIGHT($E140,1)),0,RIGHT($E140,1)+1,1)),\"ERROR\"))))","v":0},0,0,0,0,0,0,0,0,0,0,0,0,0,0,0,0,0,0,0,0,0,0,0,0,0,0,0,0,0,0,0,0,0,0,0,0,0,0,0,0,0,0,0,0,0,0,0,0,0,0,0]
[null,null,null,null,"TOTAL",{"$f":"SUM(F134:F140)","v":1},1,{"$f":"SUM(H134:H140)","v":1},1,1.0000000000000002,1,1,1,1,1,1,1,0.99999999999999989,1,1,1,1,1,1,1,1.0000000000000002,1,1,1,1.0000000000000002,1,1,1,1,1,1,0.99999999999999978,1,1,1,1,1,1.0000000000000002,1,1,1,1,1,0.99999999999999989,1,1,1,1,1,1,0.99999999999999989,1,1,1]
[]
[]
[]
[null,null,"PC 6",{"$f":"OFFSET('Product Classes'!$C$9,MATCH(C145,MODEL_PCS,0),0)","v":"Mobile Home Non-Weatherized, Non-Condensing Gas Furnace Fan (MH-NWG-NC)"}]
[]
[null,null,null,"PRE-Case"]
[null,null,null,null,"Efficiency Level",1981,{"$f":"F148+1","v":1982},{"$f":"G148+1","v":1983},1984,1985,1986,1987,1988,1989,1990,{"$f":"O148+1","v":1991},{"$f":"P148+1","v":1992},1993,1994,1995,1996,1997,1998,1999,2000,2001,2002,2003,2004,2005,2006,2007,2008,2009,2010,2011,2012,2013,2014,2015,2016,2017,2018,2019,2020,2021,2022,2023,2024,2025,2026,2027,2028,2029,2030,2031,2032,2033,2034]
[null,null,null,null,"EL0",{"$f":"IF(INDEX(PC_MAPPING,RIGHT($C145,1),MATCH($E$2,'Data by Building Type'!$D$22:$F$22,0))=\"Yes\",1,0)*\n(F$10*OFFSET('Efficiency Distributions'!$D$10,MATCH($C145,'Efficiency Distributions'!$C$9:$C$87,0)+RIGHT($E149),0)\n+F$11*OFFSET('Efficiency Distributions'!$E$10,MATCH($C145,'Efficiency Distributions'!$C$9:$C$87,0)+RIGHT($E149),0))\n/SUM(F$10:F$11)","v":0},{"$f":"IF(INDEX(PC_MAPPING,RIGHT($C145,1),MATCH($E$2,'Data by Building Type'!$D$22:$F$22,0))=\"Yes\",1,0)*\n(G$10*OFFSET('Efficiency Distributions'!$D$10,MATCH($C145,'Efficiency Distributions'!$C$9:$C$87,0)+RIGHT($E149),0)\n+G$11*OFFSET('Efficiency Distributions'!$E$10,MATCH($C145,'Efficiency Distributions'!$C$9:$C$87,0)+RIGHT($E149),0))\n/SUM(G$10:G$11)","v":0},{"$f":"IF(INDEX(PC_MAPPING,RIGHT($C145,1),MATCH($E$2,'Data by Building Type'!$D$22:$F$22,0))=\"Yes\",1,0)*\n(H$10*OFFSET('Efficiency Distributions'!$D$10,MATCH($C145,'Efficiency Distributions'!$C$9:$C$87,0)+RIGHT($E149),0)\n+H$11*OFFSET('Efficiency Distributions'!$E$10,MATCH($C145,'Efficiency Distributions'!$C$9:$C$87,0)+RIGHT($E149),0))\n/SUM(H$10:H$11)","v":0},{"$f":"IF(INDEX(PC_MAPPING,RIGHT($C145,1),MATCH($E$2,'Data by Building Type'!$D$22:$F$22,0))=\"Yes\",1,0)*\n(I$10*OFFSET('Efficiency Distributions'!$D$10,MATCH($C145,'Efficiency Distributions'!$C$9:$C$87,0)+RIGHT($E149),0)\n+I$11*OFFSET('Efficiency Distributions'!$E$10,MATCH($C145,'Efficiency Distributions'!$C$9:$C$87,0)+RIGHT($E149),0))\n/SUM(I$10:I$11)","v":0},{"$f":"IF(INDEX(PC_MAPPING,RIGHT($C145,1),MATCH($E$2,'Data by Building Type'!$D$22:$F$22,0))=\"Yes\",1,0)*\n(J$10*OFFSET('Efficiency Distributions'!$D$10,MATCH($C145,'Efficiency Distributions'!$C$9:$C$87,0)+RIGHT($E149),0)\n+J$11*OFFSET('Efficiency Distributions'!$E$10,MATCH($C145,'Efficiency Distributions'!$C$9:$C$87,0)+RIGHT($E149),0))\n/SUM(J$10:J$11)","v":0},{"$f":"IF(INDEX(PC_MAPPING,RIGHT($C145,1),MATCH($E$2,'Data by Building Type'!$D$22:$F$22,0))=\"Yes\",1,0)*\n(K$10*OFFSET('Efficiency Distributions'!$D$10,MATCH($C145,'Efficiency Distributions'!$C$9:$C$87,0)+RIGHT($E149),0)\n+K$11*OFFSET('Efficiency Distributions'!$E$10,MATCH($C145,'Efficiency Distributions'!$C$9:$C$87,0)+RIGHT($E149),0))\n/SUM(K$10:K$11)","v":0},{"$f":"IF(INDEX(PC_MAPPING,RIGHT($C145,1),MATCH($E$2,'Data by Building Type'!$D$22:$F$22,0))=\"Yes\",1,0)*\n(L$10*OFFSET('Efficiency Distributions'!$D$10,MATCH($C145,'Efficiency Distributions'!$C$9:$C$87,0)+RIGHT($E149),0)\n+L$11*OFFSET('Efficiency Distributions'!$E$10,MATCH($C145,'Efficiency Distributions'!$C$9:$C$87,0)+RIGHT($E149),0))\n/SUM(L$10:L$11)","v":0},{"$f":"IF(INDEX(PC_MAPPING,RIGHT($C145,1),MATCH($E$2,'Data by Building Type'!$D$22:$F$22,0))=\"Yes\",1,0)*\n(M$10*OFFSET('Efficiency Distributions'!$D$10,MATCH($C145,'Efficiency Distributions'!$C$9:$C$87,0)+RIGHT($E149),0)\n+M$11*OFFSET('Efficiency Distributions'!$E$10,MATCH($C145,'Efficiency Distributions'!$C$9:$C$87,0)+RIGHT($E149),0))\n/SUM(M$10:M$11)","v":0},{"$f":"IF(INDEX(PC_MAPPING,RIGHT($C145,1),MATCH($E$2,'Data by Building Type'!$D$22:$F$22,0))=\"Yes\",1,0)*\n(N$10*OFFSET('Efficiency Distributions'!$D$10,MATCH($C145,'Efficiency Distributions'!$C$9:$C$87,0)+RIGHT($E149),0)\n+N$11*OFFSET('Efficiency Distributions'!$E$10,MATCH($C145,'Efficiency Distributions'!$C$9:$C$87,0)+RIGHT($E149),0))\n/SUM(N$10:N$11)","v":0},{"$f":"IF(INDEX(PC_MAPPING,RIGHT($C145,1),MATCH($E$2,'Data by Building Type'!$D$22:$F$22,0))=\"Yes\",1,0)*\n(O$10*OFFSET('Efficiency Distributions'!$D$10,MATCH($C145,'Efficiency Distributions'!$C$9:$C$87,0)+RIGHT($E149),0)\n+O$11*OFFSET('Efficiency Distributions'!$E$10,MATCH($C145,'Efficiency Distributions'!$C$9:$C$87,0)+RIGHT($E149),0))\n/SUM(O$10:O$11)","v":0},{"$f":"IF(INDEX(PC_MAPPING,RIGHT($C145,1),MATCH($E$2,'Data by Building Type'!$D$22:$F$22,0))=\"Yes\",1,0)*\n(P$10*OFFSET('Efficiency Distributions'!$D$10,MATCH($C145,'Efficiency Distributions'!$C$9:$C$87,0)+RIGHT($E149),0)\n+P$11*OFFSET('Efficiency Distributions'!$E$10,MATCH($C145,'Efficiency Distributions'!$C$9:$C$87,0)+RIGHT($E149),0))\n/SUM(P$10:P$11)","v":0},{"$f":"IF(INDEX(PC_MAPPING,RIGHT($C145,1),MATCH($E$2,'Data by Building Type'!$D$22:$F$22,0))=\"Yes\",1,0)*\n(Q$10*OFFSET('Efficiency Distributions'!$D$10,MATCH($C145,'Efficiency Distributions'!$C$9:$C$87,0)+RIGHT($E149),0)\n+Q$11*OFFSET('Efficiency Distributions'!$E$10,MATCH($C145,'Efficiency Distributions'!$C$9:$C$87,0)+RIGHT($E149),0))\n/SUM(Q$10:Q$11)","v":0},{"$f":"IF(INDEX(PC_MAPPING,RIGHT($C145,1),MATCH($E$2,'Data by Building Type'!$D$22:$F$22,0))=\"Yes\",1,0)*\n(R$10*OFFSET('Efficiency Distributions'!$D$10,MATCH($C145,'Efficiency Distributions'!$C$9:$C$87,0)+RIGHT($E149),0)\n+R$11*OFFSET('Efficiency Distributions'!$E$10,MATCH($C145,'Efficiency Distributions'!$C$9:$C$87,0)+RIGHT($E149),0))\n/SUM(R$10:R$11)","v":0},{"$f":"IF(INDEX(PC_MAPPING,RIGHT($C145,1),MATCH($E$2,'Data by Building Type'!$D$22:$F$22,0))=\"Yes\",1,0)*\n(S$10*OFFSET('Efficiency Distributions'!$D$10,MATCH($C145,'Efficiency Distributions'!$C$9:$C$87,0)+RIGHT($E149),0)\n+S$11*OFFSET('Efficiency Distributions'!$E$10,MATCH($C145,'Efficiency Distributions'!$C$9:$C$87,0)+RIGHT($E149),0))\n/SUM(S$10:S$11)","v":0},{"$f":"IF(INDEX(PC_MAPPING,RIGHT($C145,1),MATCH($E$2,'Data by Building Type'!$D$22:$F$22,0))=\"Yes\",1,0)*\n(T$10*OFFSET('Efficiency Distributions'!$D$10,MATCH($C145,'Efficiency Distributions'!$C$9:$C$87,0)+RIGHT($E149),0)\n+T$11*OFFSET('Efficiency Distributions'!$E$10,MATCH($C145,'Efficiency Distributions'!$C$9:$C$87,0)+RIGHT($E149),0))\n/SUM(T$10:T$11)","v":0},{"$f":"IF(INDEX(PC_MAPPING,RIGHT($C145,1),MATCH($E$2,'Data by Building Type'!$D$22:$F$22,0))=\"Yes\",1,0)*\n(U$10*OFFSET('Efficiency Distributions'!$D$10,MATCH($C145,'Efficiency Distributions'!$C$9:$C$87,0)+RIGHT($E149),0)\n+U$11*OFFSET('Efficiency Distributions'!$E$10,MATCH($C145,'Efficiency Distributions'!$C$9:$C$87,0)+RIGHT($E149),0))\n/SUM(U$10:U$11)","v":0},{"$f":"IF(INDEX(PC_MAPPING,RIGHT($C145,1),MATCH($E$2,'Data by Building Type'!$D$22:$F$22,0))=\"Yes\",1,0)*\n(V$10*OFFSET('Efficiency Distributions'!$D$10,MATCH($C145,'Efficiency Distributions'!$C$9:$C$87,0)+RIGHT($E149),0)\n+V$11*OFFSET('Efficiency Distributions'!$E$10,MATCH($C145,'Efficiency Distributions'!$C$9:$C$87,0)+RIGHT($E149),0))\n/SUM(V$10:V$11)","v":0},{"$f":"IF(INDEX(PC_MAPPING,RIGHT($C145,1),MATCH($E$2,'Data by Building Type'!$D$22:$F$22,0))=\"Yes\",1,0)*\n(W$10*OFFSET('Efficiency Distributions'!$D$10,MATCH($C145,'Efficiency Distributions'!$C$9:$C$87,0)+RIGHT($E149),0)\n+W$11*OFFSET('Efficiency Distributions'!$E$10,MATCH($C145,'Efficiency Distributions'!$C$9:$C$87,0)+RIGHT($E149),0))\n/SUM(W$10:W$11)","v":0},{"$f":"IF(INDEX(PC_MAPPING,RIGHT($C145,1),MATCH($E$2,'Data by Building Type'!$D$22:$F$22,0))=\"Yes\",1,0)*\n(X$10*OFFSET('Efficiency Distributions'!$D$10,MATCH($C145,'Efficiency Distributions'!$C$9:$C$87,0)+RIGHT($E149),0)\n+X$11*OFFSET('Efficiency Distributions'!$E$10,MATCH($C145,'Efficiency Distributions'!$C$9:$C$87,0)+RIGHT($E149),0))\n/SUM(X$10:X$11)","v":0},{"$f":"IF(INDEX(PC_MAPPING,RIGHT($C145,1),MATCH($E$2,'Data by Building Type'!$D$22:$F$22,0))=\"Yes\",1,0)*\n(Y$10*OFFSET('Efficiency Distributions'!$D$10,MATCH($C145,'Efficiency Distributions'!$C$9:$C$87,0)+RIGHT($E149),0)\n+Y$11*OFFSET('Efficiency Distributions'!$E$10,MATCH($C145,'Efficiency Distributions'!$C$9:$C$87,0)+RIGHT($E149),0))\n/SUM(Y$10:Y$11)","v":0},{"$f":"IF(INDEX(PC_MAPPING,RIGHT($C145,1),MATCH($E$2,'Data by Building Type'!$D$22:$F$22,0))=\"Yes\",1,0)*\n(Z$10*OFFSET('Efficiency Distributions'!$D$10,MATCH($C145,'Efficiency Distributions'!$C$9:$C$87,0)+RIGHT($E149),0)\n+Z$11*OFFSET('Efficiency Distributions'!$E$10,MATCH($C145,'Efficiency Distributions'!$C$9:$C$87,0)+RIGHT($E149),0))\n/SUM(Z$10:Z$11)","v":0},{"$f":"IF(INDEX(PC_MAPPING,RIGHT($C145,1),MATCH($E$2,'Data by Building Type'!$D$22:$F$22,0))=\"Yes\",1,0)*\n(AA$10*OFFSET('Efficiency Distributions'!$D$10,MATCH($C145,'Efficiency Distributions'!$C$9:$C$87,0)+RIGHT($E149),0)\n+AA$11*OFFSET('Efficiency Distributions'!$E$10,MATCH($C145,'Efficiency Distributions'!$C$9:$C$87,0)+RIGHT($E149),0))\n/SUM(AA$10:AA$11)","v":0},{"$f":"IF(INDEX(PC_MAPPING,RIGHT($C145,1),MATCH($E$2,'Data by Building Type'!$D$22:$F$22,0))=\"Yes\",1,0)*\n(AB$10*OFFSET('Efficiency Distributions'!$D$10,MATCH($C145,'Efficiency Distributions'!$C$9:$C$87,0)+RIGHT($E149),0)\n+AB$11*OFFSET('Efficiency Distributions'!$E$10,MATCH($C145,'Efficiency Distributions'!$C$9:$C$87,0)+RIGHT($E149),0))\n/SUM(AB$10:AB$11)","v":0},{"$f":"IF(INDEX(PC_MAPPING,RIGHT($C145,1),MATCH($E$2,'Data by Building Type'!$D$22:$F$22,0))=\"Yes\",1,0)*\n(AC$10*OFFSET('Efficiency Distributions'!$D$10,MATCH($C145,'Efficiency Distributions'!$C$9:$C$87,0)+RIGHT($E149),0)\n+AC$11*OFFSET('Efficiency Distributions'!$E$10,MATCH($C145,'Efficiency Distributions'!$C$9:$C$87,0)+RIGHT($E149),0))\n/SUM(AC$10:AC$11)","v":0},{"$f":"IF(INDEX(PC_MAPPING,RIGHT($C145,1),MATCH($E$2,'Data by Building Type'!$D$22:$F$22,0))=\"Yes\",1,0)*\n(AD$10*OFFSET('Efficiency Distributions'!$D$10,MATCH($C145,'Efficiency Distributions'!$C$9:$C$87,0)+RIGHT($E149),0)\n+AD$11*OFFSET('Efficiency Distributions'!$E$10,MATCH($C145,'Efficiency Distributions'!$C$9:$C$87,0)+RIGHT($E149),0))\n/SUM(AD$10:AD$11)","v":0},{"$f":"IF(INDEX(PC_MAPPING,RIGHT($C145,1),MATCH($E$2,'Data by Building Type'!$D$22:$F$22,0))=\"Yes\",1,0)*\n(AE$10*OFFSET('Efficiency Distributions'!$D$10,MATCH($C145,'Efficiency Distributions'!$C$9:$C$87,0)+RIGHT($E149),0)\n+AE$11*OFFSET('Efficiency Distributions'!$E$10,MATCH($C145,'Efficiency Distributions'!$C$9:$C$87,0)+RIGHT($E149),0))\n/SUM(AE$10:AE$11)","v":0},{"$f":"IF(INDEX(PC_MAPPING,RIGHT($C145,1),MATCH($E$2,'Data by Building Type'!$D$22:$F$22,0))=\"Yes\",1,0)*\n(AF$10*OFFSET('Efficiency Distributions'!$D$10,MATCH($C145,'Efficiency Distributions'!$C$9:$C$87,0)+RIGHT($E149),0)\n+AF$11*OFFSET('Efficiency Distributions'!$E$10,MATCH($C145,'Efficiency Distributions'!$C$9:$C$87,0)+RIGHT($E149),0))\n/SUM(AF$10:AF$11)","v":0},{"$f":"IF(INDEX(PC_MAPPING,RIGHT($C145,1),MATCH($E$2,'Data by Building Type'!$D$22:$F$22,0))=\"Yes\",1,0)*\n(AG$10*OFFSET('Efficiency Distributions'!$D$10,MATCH($C145,'Efficiency Distributions'!$C$9:$C$87,0)+RIGHT($E149),0)\n+AG$11*OFFSET('Efficiency Distributions'!$E$10,MATCH($C145,'Efficiency Distributions'!$C$9:$C$87,0)+RIGHT($E149),0))\n/SUM(AG$10:AG$11)","v":0},{"$f":"IF(INDEX(PC_MAPPING,RIGHT($C145,1),MATCH($E$2,'Data by Building Type'!$D$22:$F$22,0))=\"Yes\",1,0)*\n(AH$10*OFFSET('Efficiency Distributions'!$D$10,MATCH($C145,'Efficiency Distributions'!$C$9:$C$87,0)+RIGHT($E149),0)\n+AH$11*OFFSET('Efficiency Distributions'!$E$10,MATCH($C145,'Efficiency Distributions'!$C$9:$C$87,0)+RIGHT($E149),0))\n/SUM(AH$10:AH$11)","v":0},{"$f":"IF(INDEX(PC_MAPPING,RIGHT($C145,1),MATCH($E$2,'Data by Building Type'!$D$22:$F$22,0))=\"Yes\",1,0)*\n(AI$10*OFFSET('Efficiency Distributions'!$D$10,MATCH($C145,'Efficiency Distributions'!$C$9:$C$87,0)+RIGHT($E149),0)\n+AI$11*OFFSET('Efficiency Distributions'!$E$10,MATCH($C145,'Efficiency Distributions'!$C$9:$C$87,0)+RIGHT($E149),0))\n/SUM(AI$10:AI$11)","v":0},{"$f":"IF(INDEX(PC_MAPPING,RIGHT($C145,1),MATCH($E$2,'Data by Building Type'!$D$22:$F$22,0))=\"Yes\",1,0)*\n(AJ$10*OFFSET('Efficiency Distributions'!$D$10,MATCH($C145,'Efficiency Distributions'!$C$9:$C$87,0)+RIGHT($E149),0)\n+AJ$11*OFFSET('Efficiency Distributions'!$E$10,MATCH($C145,'Efficiency Distributions'!$C$9:$C$87,0)+RIGHT($E149),0))\n/SUM(AJ$10:AJ$11)","v":0},{"$f":"IF(INDEX(PC_MAPPING,RIGHT($C145,1),MATCH($E$2,'Data by Building Type'!$D$22:$F$22,0))=\"Yes\",1,0)*\n(AK$10*OFFSET('Efficiency Distributions'!$D$10,MATCH($C145,'Efficiency Distributions'!$C$9:$C$87,0)+RIGHT($E149),0)\n+AK$11*OFFSET('Efficiency Distributions'!$E$10,MATCH($C145,'Efficiency Distributions'!$C$9:$C$87,0)+RIGHT($E149),0))\n/SUM(AK$10:AK$11)","v":0},{"$f":"IF(INDEX(PC_MAPPING,RIGHT($C145,1),MATCH($E$2,'Data by Building Type'!$D$22:$F$22,0))=\"Yes\",1,0)*\n(AL$10*OFFSET('Efficiency Distributions'!$D$10,MATCH($C145,'Efficiency Distributions'!$C$9:$C$87,0)+RIGHT($E149),0)\n+AL$11*OFFSET('Efficiency Distributions'!$E$10,MATCH($C145,'Efficiency Distributions'!$C$9:$C$87,0)+RIGHT($E149),0))\n/SUM(AL$10:AL$11)","v":0},{"$f":"IF(INDEX(PC_MAPPING,RIGHT($C145,1),MATCH($E$2,'Data by Building Type'!$D$22:$F$22,0))=\"Yes\",1,0)*\n(AM$10*OFFSET('Efficiency Distributions'!$D$10,MATCH($C145,'Efficiency Distributions'!$C$9:$C$87,0)+RIGHT($E149),0)\n+AM$11*OFFSET('Efficiency Distributions'!$E$10,MATCH($C145,'Efficiency Distributions'!$C$9:$C$87,0)+RIGHT($E149),0))\n/SUM(AM$10:AM$11)","v":0},{"$f":"IF(INDEX(PC_MAPPING,RIGHT($C145,1),MATCH($E$2,'Data by Building Type'!$D$22:$F$22,0))=\"Yes\",1,0)*\n(AN$10*OFFSET('Efficiency Distributions'!$D$10,MATCH($C145,'Efficiency Distributions'!$C$9:$C$87,0)+RIGHT($E149),0)\n+AN$11*OFFSET('Efficiency Distributions'!$E$10,MATCH($C145,'Efficiency Distributions'!$C$9:$C$87,0)+RIGHT($E149),0))\n/SUM(AN$10:AN$11)","v":0},{"$f":"IF(INDEX(PC_MAPPING,RIGHT($C145,1),MATCH($E$2,'Data by Building Type'!$D$22:$F$22,0))=\"Yes\",1,0)*\n(AO$10*OFFSET('Efficiency Distributions'!$D$10,MATCH($C145,'Efficiency Distributions'!$C$9:$C$87,0)+RIGHT($E149),0)\n+AO$11*OFFSET('Efficiency Distributions'!$E$10,MATCH($C145,'Efficiency Distributions'!$C$9:$C$87,0)+RIGHT($E149),0))\n/SUM(AO$10:AO$11)","v":0},{"$f":"IF(INDEX(PC_MAPPING,RIGHT($C145,1),MATCH($E$2,'Data by Building Type'!$D$22:$F$22,0))=\"Yes\",1,0)*\n(AP$10*OFFSET('Efficiency Distributions'!$D$10,MATCH($C145,'Efficiency Distributions'!$C$9:$C$87,0)+RIGHT($E149),0)\n+AP$11*OFFSET('Efficiency Distributions'!$E$10,MATCH($C145,'Efficiency Distributions'!$C$9:$C$87,0)+RIGHT($E149),0))\n/SUM(AP$10:AP$11)","v":0},{"$f":"IF(INDEX(PC_MAPPING,RIGHT($C145,1),MATCH($E$2,'Data by Building Type'!$D$22:$F$22,0))=\"Yes\",1,0)*\n(AQ$10*OFFSET('Efficiency Distributions'!$D$10,MATCH($C145,'Efficiency Distributions'!$C$9:$C$87,0)+RIGHT($E149),0)\n+AQ$11*OFFSET('Efficiency Distributions'!$E$10,MATCH($C145,'Efficiency Distributions'!$C$9:$C$87,0)+RIGHT($E149),0))\n/SUM(AQ$10:AQ$11)","v":0},{"$f":"IF(INDEX(PC_MAPPING,RIGHT($C145,1),MATCH($E$2,'Data by Building Type'!$D$22:$F$22,0))=\"Yes\",1,0)*\n(AR$10*OFFSET('Efficiency Distributions'!$D$10,MATCH($C145,'Efficiency Distributions'!$C$9:$C$87,0)+RIGHT($E149),0)\n+AR$11*OFFSET('Efficiency Distributions'!$E$10,MATCH($C145,'Efficiency Distributions'!$C$9:$C$87,0)+RIGHT($E149),0))\n/SUM(AR$10:AR$11)","v":0},{"$f":"IF(INDEX(PC_MAPPING,RIGHT($C145,1),MATCH($E$2,'Data by Building Type'!$D$22:$F$22,0))=\"Yes\",1,0)*\n(AS$10*OFFSET('Efficiency Distributions'!$D$10,MATCH($C145,'Efficiency Distributions'!$C$9:$C$87,0)+RIGHT($E149),0)\n+AS$11*OFFSET('Efficiency Distributions'!$E$10,MATCH($C145,'Efficiency Distributions'!$C$9:$C$87,0)+RIGHT($E149),0))\n/SUM(AS$10:AS$11)","v":0},{"$f":"IF(INDEX(PC_MAPPING,RIGHT($C145,1),MATCH($E$2,'Data by Building Type'!$D$22:$F$22,0))=\"Yes\",1,0)*\n(AT$10*OFFSET('Efficiency Distributions'!$D$10,MATCH($C145,'Efficiency Distributions'!$C$9:$C$87,0)+RIGHT($E149),0)\n+AT$11*OFFSET('Efficiency Distributions'!$E$10,MATCH($C145,'Efficiency Distributions'!$C$9:$C$87,0)+RIGHT($E149),0))\n/SUM(AT$10:AT$11)","v":0},{"$f":"IF(INDEX(PC_MAPPING,RIGHT($C145,1),MATCH($E$2,'Data by Building Type'!$D$22:$F$22,0))=\"Yes\",1,0)*\n(AU$10*OFFSET('Efficiency Distributions'!$D$10,MATCH($C145,'Efficiency Distributions'!$C$9:$C$87,0)+RIGHT($E149),0)\n+AU$11*OFFSET('Efficiency Distributions'!$E$10,MATCH($C145,'Efficiency Distributions'!$C$9:$C$87,0)+RIGHT($E149),0))\n/SUM(AU$10:AU$11)","v":0},{"$f":"IF(INDEX(PC_MAPPING,RIGHT($C145,1),MATCH($E$2,'Data by Building Type'!$D$22:$F$22,0))=\"Yes\",1,0)*\n(AV$10*OFFSET('Efficiency Distributions'!$D$10,MATCH($C145,'Efficiency Distributions'!$C$9:$C$87,0)+RIGHT($E149),0)\n+AV$11*OFFSET('Efficiency Distributions'!$E$10,MATCH($C145,'Efficiency Distributions'!$C$9:$C$87,0)+RIGHT($E149),0))\n/SUM(AV$10:AV$11)","v":0},{"$f":"IF(INDEX(PC_MAPPING,RIGHT($C145,1),MATCH($E$2,'Data by Building Type'!$D$22:$F$22,0))=\"Yes\",1,0)*\n(AW$10*OFFSET('Efficiency Distributions'!$D$10,MATCH($C145,'Efficiency Distributions'!$C$9:$C$87,0)+RIGHT($E149),0)\n+AW$11*OFFSET('Efficiency Distributions'!$E$10,MATCH($C145,'Efficiency Distributions'!$C$9:$C$87,0)+RIGHT($E149),0))\n/SUM(AW$10:AW$11)","v":0},{"$f":"IF(INDEX(PC_MAPPING,RIGHT($C145,1),MATCH($E$2,'Data by Building Type'!$D$22:$F$22,0))=\"Yes\",1,0)*\n(AX$10*OFFSET('Efficiency Distributions'!$D$10,MATCH($C145,'Efficiency Distributions'!$C$9:$C$87,0)+RIGHT($E149),0)\n+AX$11*OFFSET('Efficiency Distributions'!$E$10,MATCH($C145,'Efficiency Distributions'!$C$9:$C$87,0)+RIGHT($E149),0))\n/SUM(AX$10:AX$11)","v":0},{"$f":"IF(INDEX(PC_MAPPING,RIGHT($C145,1),MATCH($E$2,'Data by Building Type'!$D$22:$F$22,0))=\"Yes\",1,0)*\n(AY$10*OFFSET('Efficiency Distributions'!$D$10,MATCH($C145,'Efficiency Distributions'!$C$9:$C$87,0)+RIGHT($E149),0)\n+AY$11*OFFSET('Efficiency Distributions'!$E$10,MATCH($C145,'Efficiency Distributions'!$C$9:$C$87,0)+RIGHT($E149),0))\n/SUM(AY$10:AY$11)","v":0},{"$f":"IF(INDEX(PC_MAPPING,RIGHT($C145,1),MATCH($E$2,'Data by Building Type'!$D$22:$F$22,0))=\"Yes\",1,0)*\n(AZ$10*OFFSET('Efficiency Distributions'!$D$10,MATCH($C145,'Efficiency Distributions'!$C$9:$C$87,0)+RIGHT($E149),0)\n+AZ$11*OFFSET('Efficiency Distributions'!$E$10,MATCH($C145,'Efficiency Distributions'!$C$9:$C$87,0)+RIGHT($E149),0))\n/SUM(AZ$10:AZ$11)","v":0},{"$f":"IF(INDEX(PC_MAPPING,RIGHT($C145,1),MATCH($E$2,'Data by Building Type'!$D$22:$F$22,0))=\"Yes\",1,0)*\n(BA$10*OFFSET('Efficiency Distributions'!$D$10,MATCH($C145,'Efficiency Distributions'!$C$9:$C$87,0)+RIGHT($E149),0)\n+BA$11*OFFSET('Efficiency Distributions'!$E$10,MATCH($C145,'Efficiency Distributions'!$C$9:$C$87,0)+RIGHT($E149),0))\n/SUM(BA$10:BA$11)","v":0},{"$f":"IF(INDEX(PC_MAPPING,RIGHT($C145,1),MATCH($E$2,'Data by Building Type'!$D$22:$F$22,0))=\"Yes\",1,0)*\n(BB$10*OFFSET('Efficiency Distributions'!$D$10,MATCH($C145,'Efficiency Distributions'!$C$9:$C$87,0)+RIGHT($E149),0)\n+BB$11*OFFSET('Efficiency Distributions'!$E$10,MATCH($C145,'Efficiency Distributions'!$C$9:$C$87,0)+RIGHT($E149),0))\n/SUM(BB$10:BB$11)","v":0},{"$f":"IF(INDEX(PC_MAPPING,RIGHT($C145,1),MATCH($E$2,'Data by Building Type'!$D$22:$F$22,0))=\"Yes\",1,0)*\n(BC$10*OFFSET('Efficiency Distributions'!$D$10,MATCH($C145,'Efficiency Distributions'!$C$9:$C$87,0)+RIGHT($E149),0)\n+BC$11*OFFSET('Efficiency Distributions'!$E$10,MATCH($C145,'Efficiency Distributions'!$C$9:$C$87,0)+RIGHT($E149),0))\n/SUM(BC$10:BC$11)","v":0},{"$f":"IF(INDEX(PC_MAPPING,RIGHT($C145,1),MATCH($E$2,'Data by Building Type'!$D$22:$F$22,0))=\"Yes\",1,0)*\n(BD$10*OFFSET('Efficiency Distributions'!$D$10,MATCH($C145,'Efficiency Distributions'!$C$9:$C$87,0)+RIGHT($E149),0)\n+BD$11*OFFSET('Efficiency Distributions'!$E$10,MATCH($C145,'Efficiency Distributions'!$C$9:$C$87,0)+RIGHT($E149),0))\n/SUM(BD$10:BD$11)","v":0},{"$f":"IF(INDEX(PC_MAPPING,RIGHT($C145,1),MATCH($E$2,'Data by Building Type'!$D$22:$F$22,0))=\"Yes\",1,0)*\n(BE$10*OFFSET('Efficiency Distributions'!$D$10,MATCH($C145,'Efficiency Distributions'!$C$9:$C$87,0)+RIGHT($E149),0)\n+BE$11*OFFSET('Efficiency Distributions'!$E$10,MATCH($C145,'Efficiency Distributions'!$C$9:$C$87,0)+RIGHT($E149),0))\n/SUM(BE$10:BE$11)","v":0},{"$f":"IF(INDEX(PC_MAPPING,RIGHT($C145,1),MATCH($E$2,'Data by Building Type'!$D$22:$F$22,0))=\"Yes\",1,0)*\n(BF$10*OFFSET('Efficiency Distributions'!$D$10,MATCH($C145,'Efficiency Distributions'!$C$9:$C$87,0)+RIGHT($E149),0)\n+BF$11*OFFSET('Efficiency Distributions'!$E$10,MATCH($C145,'Efficiency Distributions'!$C$9:$C$87,0)+RIGHT($E149),0))\n/SUM(BF$10:BF$11)","v":0},{"$f":"IF(INDEX(PC_MAPPING,RIGHT($C145,1),MATCH($E$2,'Data by Building Type'!$D$22:$F$22,0))=\"Yes\",1,0)*\n(BG$10*OFFSET('Efficiency Distributions'!$D$10,MATCH($C145,'Efficiency Distributions'!$C$9:$C$87,0)+RIGHT($E149),0)\n+BG$11*OFFSET('Efficiency Distributions'!$E$10,MATCH($C145,'Efficiency Distributions'!$C$9:$C$87,0)+RIGHT($E149),0))\n/SUM(BG$10:BG$11)","v":0}]
[null,null,null,null,"EL1",{"$f":"IF(INDEX(PC_MAPPING,RIGHT($C145,1),MATCH($E$2,'Data by Building Type'!$D$22:$F$22,0))=\"Yes\",1,0)*\n(F$10*OFFSET('Efficiency Distributions'!$D$10,MATCH($C145,'Efficiency Distributions'!$C$9:$C$87,0)+RIGHT($E150),0)\n+F$11*OFFSET('Efficiency Distributions'!$E$10,MATCH($C145,'Efficiency Distributions'!$C$9:$C$87,0)+RIGHT($E150),0))\n/SUM(F$10:F$11)","v":0},{"$f":"IF(INDEX(PC_MAPPING,RIGHT($C145,1),MATCH($E$2,'Data by Building Type'!$D$22:$F$22,0))=\"Yes\",1,0)*\n(G$10*OFFSET('Efficiency Distributions'!$D$10,MATCH($C145,'Efficiency Distributions'!$C$9:$C$87,0)+RIGHT($E150),0)\n+G$11*OFFSET('Efficiency Distributions'!$E$10,MATCH($C145,'Efficiency Distributions'!$C$9:$C$87,0)+RIGHT($E150),0))\n/SUM(G$10:G$11)","v":0},{"$f":"IF(INDEX(PC_MAPPING,RIGHT($C145,1),MATCH($E$2,'Data by Building Type'!$D$22:$F$22,0))=\"Yes\",1,0)*\n(H$10*OFFSET('Efficiency Distributions'!$D$10,MATCH($C145,'Efficiency Distributions'!$C$9:$C$87,0)+RIGHT($E150),0)\n+H$11*OFFSET('Efficiency Distributions'!$E$10,MATCH($C145,'Efficiency Distributions'!$C$9:$C$87,0)+RIGHT($E150),0))\n/SUM(H$10:H$11)","v":0},{"$f":"IF(INDEX(PC_MAPPING,RIGHT($C145,1),MATCH($E$2,'Data by Building Type'!$D$22:$F$22,0))=\"Yes\",1,0)*\n(I$10*OFFSET('Efficiency Distributions'!$D$10,MATCH($C145,'Efficiency Distributions'!$C$9:$C$87,0)+RIGHT($E150),0)\n+I$11*OFFSET('Efficiency Distributions'!$E$10,MATCH($C145,'Efficiency Distributions'!$C$9:$C$87,0)+RIGHT($E150),0))\n/SUM(I$10:I$11)","v":0},{"$f":"IF(INDEX(PC_MAPPING,RIGHT($C145,1),MATCH($E$2,'Data by Building Type'!$D$22:$F$22,0))=\"Yes\",1,0)*\n(J$10*OFFSET('Efficiency Distributions'!$D$10,MATCH($C145,'Efficiency Distributions'!$C$9:$C$87,0)+RIGHT($E150),0)\n+J$11*OFFSET('Efficiency Distributions'!$E$10,MATCH($C145,'Efficiency Distributions'!$C$9:$C$87,0)+RIGHT($E150),0))\n/SUM(J$10:J$11)","v":0},{"$f":"IF(INDEX(PC_MAPPING,RIGHT($C145,1),MATCH($E$2,'Data by Building Type'!$D$22:$F$22,0))=\"Yes\",1,0)*\n(K$10*OFFSET('Efficiency Distributions'!$D$10,MATCH($C145,'Efficiency Distributions'!$C$9:$C$87,0)+RIGHT($E150),0)\n+K$11*OFFSET('Efficiency Distributions'!$E$10,MATCH($C145,'Efficiency Distributions'!$C$9:$C$87,0)+RIGHT($E150),0))\n/SUM(K$10:K$11)","v":0},{"$f":"IF(INDEX(PC_MAPPING,RIGHT($C145,1),MATCH($E$2,'Data by Building Type'!$D$22:$F$22,0))=\"Yes\",1,0)*\n(L$10*OFFSET('Efficiency Distributions'!$D$10,MATCH($C145,'Efficiency Distributions'!$C$9:$C$87,0)+RIGHT($E150),0)\n+L$11*OFFSET('Efficiency Distributions'!$E$10,MATCH($C145,'Efficiency Distributions'!$C$9:$C$87,0)+RIGHT($E150),0))\n/SUM(L$10:L$11)","v":0},{"$f":"IF(INDEX(PC_MAPPING,RIGHT($C145,1),MATCH($E$2,'Data by Building Type'!$D$22:$F$22,0))=\"Yes\",1,0)*\n(M$10*OFFSET('Efficiency Distributions'!$D$10,MATCH($C145,'Efficiency Distributions'!$C$9:$C$87,0)+RIGHT($E150),0)\n+M$11*OFFSET('Efficiency Distributions'!$E$10,MATCH($C145,'Efficiency Distributions'!$C$9:$C$87,0)+RIGHT($E150),0))\n/SUM(M$10:M$11)","v":0},{"$f":"IF(INDEX(PC_MAPPING,RIGHT($C145,1),MATCH($E$2,'Data by Building Type'!$D$22:$F$22,0))=\"Yes\",1,0)*\n(N$10*OFFSET('Efficiency Distributions'!$D$10,MATCH($C145,'Efficiency Distributions'!$C$9:$C$87,0)+RIGHT($E150),0)\n+N$11*OFFSET('Efficiency Distributions'!$E$10,MATCH($C145,'Efficiency Distributions'!$C$9:$C$87,0)+RIGHT($E150),0))\n/SUM(N$10:N$11)","v":0},{"$f":"IF(INDEX(PC_MAPPING,RIGHT($C145,1),MATCH($E$2,'Data by Building Type'!$D$22:$F$22,0))=\"Yes\",1,0)*\n(O$10*OFFSET('Efficiency Distributions'!$D$10,MATCH($C145,'Efficiency Distributions'!$C$9:$C$87,0)+RIGHT($E150),0)\n+O$11*OFFSET('Efficiency Distributions'!$E$10,MATCH($C145,'Efficiency Distributions'!$C$9:$C$87,0)+RIGHT($E150),0))\n/SUM(O$10:O$11)","v":0},{"$f":"IF(INDEX(PC_MAPPING,RIGHT($C145,1),MATCH($E$2,'Data by Building Type'!$D$22:$F$22,0))=\"Yes\",1,0)*\n(P$10*OFFSET('Efficiency Distributions'!$D$10,MATCH($C145,'Efficiency Distributions'!$C$9:$C$87,0)+RIGHT($E150),0)\n+P$11*OFFSET('Efficiency Distributions'!$E$10,MATCH($C145,'Efficiency Distributions'!$C$9:$C$87,0)+RIGHT($E150),0))\n/SUM(P$10:P$11)","v":0},{"$f":"IF(INDEX(PC_MAPPING,RIGHT($C145,1),MATCH($E$2,'Data by Building Type'!$D$22:$F$22,0))=\"Yes\",1,0)*\n(Q$10*OFFSET('Efficiency Distributions'!$D$10,MATCH($C145,'Efficiency Distributions'!$C$9:$C$87,0)+RIGHT($E150),0)\n+Q$11*OFFSET('Efficiency Distributions'!$E$10,MATCH($C145,'Efficiency Distributions'!$C$9:$C$87,0)+RIGHT($E150),0))\n/SUM(Q$10:Q$11)","v":0},{"$f":"IF(INDEX(PC_MAPPING,RIGHT($C145,1),MATCH($E$2,'Data by Building Type'!$D$22:$F$22,0))=\"Yes\",1,0)*\n(R$10*OFFSET('Efficiency Distributions'!$D$10,MATCH($C145,'Efficiency Distributions'!$C$9:$C$87,0)+RIGHT($E150),0)\n+R$11*OFFSET('Efficiency Distributions'!$E$10,MATCH($C145,'Efficiency Distributions'!$C$9:$C$87,0)+RIGHT($E150),0))\n/SUM(R$10:R$11)","v":0},{"$f":"IF(INDEX(PC_MAPPING,RIGHT($C145,1),MATCH($E$2,'Data by Building Type'!$D$22:$F$22,0))=\"Yes\",1,0)*\n(S$10*OFFSET('Efficiency Distributions'!$D$10,MATCH($C145,'Efficiency Distributions'!$C$9:$C$87,0)+RIGHT($E150),0)\n+S$11*OFFSET('Efficiency Distributions'!$E$10,MATCH($C145,'Efficiency Distributions'!$C$9:$C$87,0)+RIGHT($E150),0))\n/SUM(S$10:S$11)","v":0},{"$f":"IF(INDEX(PC_MAPPING,RIGHT($C145,1),MATCH($E$2,'Data by Building Type'!$D$22:$F$22,0))=\"Yes\",1,0)*\n(T$10*OFFSET('Efficiency Distributions'!$D$10,MATCH($C145,'Efficiency Distributions'!$C$9:$C$87,0)+RIGHT($E150),0)\n+T$11*OFFSET('Efficiency Distributions'!$E$10,MATCH($C145,'Efficiency Distributions'!$C$9:$C$87,0)+RIGHT($E150),0))\n/SUM(T$10:T$11)","v":0},{"$f":"IF(INDEX(PC_MAPPING,RIGHT($C145,1),MATCH($E$2,'Data by Building Type'!$D$22:$F$22,0))=\"Yes\",1,0)*\n(U$10*OFFSET('Efficiency Distributions'!$D$10,MATCH($C145,'Efficiency Distributions'!$C$9:$C$87,0)+RIGHT($E150),0)\n+U$11*OFFSET('Efficiency Distributions'!$E$10,MATCH($C145,'Efficiency Distributions'!$C$9:$C$87,0)+RIGHT($E150),0))\n/SUM(U$10:U$11)","v":0},{"$f":"IF(INDEX(PC_MAPPING,RIGHT($C145,1),MATCH($E$2,'Data by Building Type'!$D$22:$F$22,0))=\"Yes\",1,0)*\n(V$10*OFFSET('Efficiency Distributions'!$D$10,MATCH($C145,'Efficiency Distributions'!$C$9:$C$87,0)+RIGHT($E150),0)\n+V$11*OFFSET('Efficiency Distributions'!$E$10,MATCH($C145,'Efficiency Distributions'!$C$9:$C$87,0)+RIGHT($E150),0))\n/SUM(V$10:V$11)","v":0},{"$f":"IF(INDEX(PC_MAPPING,RIGHT($C145,1),MATCH($E$2,'Data by Building Type'!$D$22:$F$22,0))=\"Yes\",1,0)*\n(W$10*OFFSET('Efficiency Distributions'!$D$10,MATCH($C145,'Efficiency Distributions'!$C$9:$C$87,0)+RIGHT($E150),0)\n+W$11*OFFSET('Efficiency Distributions'!$E$10,MATCH($C145,'Efficiency Distributions'!$C$9:$C$87,0)+RIGHT($E150),0))\n/SUM(W$10:W$11)","v":0},{"$f":"IF(INDEX(PC_MAPPING,RIGHT($C145,1),MATCH($E$2,'Data by Building Type'!$D$22:$F$22,0))=\"Yes\",1,0)*\n(X$10*OFFSET('Efficiency Distributions'!$D$10,MATCH($C145,'Efficiency Distributions'!$C$9:$C$87,0)+RIGHT($E150),0)\n+X$11*OFFSET('Efficiency Distributions'!$E$10,MATCH($C145,'Efficiency Distributions'!$C$9:$C$87,0)+RIGHT($E150),0))\n/SUM(X$10:X$11)","v":0},{"$f":"IF(INDEX(PC_MAPPING,RIGHT($C145,1),MATCH($E$2,'Data by Building Type'!$D$22:$F$22,0))=\"Yes\",1,0)*\n(Y$10*OFFSET('Efficiency Distributions'!$D$10,MATCH($C145,'Efficiency Distributions'!$C$9:$C$87,0)+RIGHT($E150),0)\n+Y$11*OFFSET('Efficiency Distributions'!$E$10,MATCH($C145,'Efficiency Distributions'!$C$9:$C$87,0)+RIGHT($E150),0))\n/SUM(Y$10:Y$11)","v":0},{"$f":"IF(INDEX(PC_MAPPING,RIGHT($C145,1),MATCH($E$2,'Data by Building Type'!$D$22:$F$22,0))=\"Yes\",1,0)*\n(Z$10*OFFSET('Efficiency Distributions'!$D$10,MATCH($C145,'Efficiency Distributions'!$C$9:$C$87,0)+RIGHT($E150),0)\n+Z$11*OFFSET('Efficiency Distributions'!$E$10,MATCH($C145,'Efficiency Distributions'!$C$9:$C$87,0)+RIGHT($E150),0))\n/SUM(Z$10:Z$11)","v":0},{"$f":"IF(INDEX(PC_MAPPING,RIGHT($C145,1),MATCH($E$2,'Data by Building Type'!$D$22:$F$22,0))=\"Yes\",1,0)*\n(AA$10*OFFSET('Efficiency Distributions'!$D$10,MATCH($C145,'Efficiency Distributions'!$C$9:$C$87,0)+RIGHT($E150),0)\n+AA$11*OFFSET('Efficiency Distributions'!$E$10,MATCH($C145,'Efficiency Distributions'!$C$9:$C$87,0)+RIGHT($E150),0))\n/SUM(AA$10:AA$11)","v":0},{"$f":"IF(INDEX(PC_MAPPING,RIGHT($C145,1),MATCH($E$2,'Data by Building Type'!$D$22:$F$22,0))=\"Yes\",1,0)*\n(AB$10*OFFSET('Efficiency Distributions'!$D$10,MATCH($C145,'Efficiency Distributions'!$C$9:$C$87,0)+RIGHT($E150),0)\n+AB$11*OFFSET('Efficiency Distributions'!$E$10,MATCH($C145,'Efficiency Distributions'!$C$9:$C$87,0)+RIGHT($E150),0))\n/SUM(AB$10:AB$11)","v":0},{"$f":"IF(INDEX(PC_MAPPING,RIGHT($C145,1),MATCH($E$2,'Data by Building Type'!$D$22:$F$22,0))=\"Yes\",1,0)*\n(AC$10*OFFSET('Efficiency Distributions'!$D$10,MATCH($C145,'Efficiency Distributions'!$C$9:$C$87,0)+RIGHT($E150),0)\n+AC$11*OFFSET('Efficiency Distributions'!$E$10,MATCH($C145,'Efficiency Distributions'!$C$9:$C$87,0)+RIGHT($E150),0))\n/SUM(AC$10:AC$11)","v":0},{"$f":"IF(INDEX(PC_MAPPING,RIGHT($C145,1),MATCH($E$2,'Data by Building Type'!$D$22:$F$22,0))=\"Yes\",1,0)*\n(AD$10*OFFSET('Efficiency Distributions'!$D$10,MATCH($C145,'Efficiency Distributions'!$C$9:$C$87,0)+RIGHT($E150),0)\n+AD$11*OFFSET('Efficiency Distributions'!$E$10,MATCH($C145,'Efficiency Distributions'!$C$9:$C$87,0)+RIGHT($E150),0))\n/SUM(AD$10:AD$11)","v":0},{"$f":"IF(INDEX(PC_MAPPING,RIGHT($C145,1),MATCH($E$2,'Data by Building Type'!$D$22:$F$22,0))=\"Yes\",1,0)*\n(AE$10*OFFSET('Efficiency Distributions'!$D$10,MATCH($C145,'Efficiency Distributions'!$C$9:$C$87,0)+RIGHT($E150),0)\n+AE$11*OFFSET('Efficiency Distributions'!$E$10,MATCH($C145,'Efficiency Distributions'!$C$9:$C$87,0)+RIGHT($E150),0))\n/SUM(AE$10:AE$11)","v":0},{"$f":"IF(INDEX(PC_MAPPING,RIGHT($C145,1),MATCH($E$2,'Data by Building Type'!$D$22:$F$22,0))=\"Yes\",1,0)*\n(AF$10*OFFSET('Efficiency Distributions'!$D$10,MATCH($C145,'Efficiency Distributions'!$C$9:$C$87,0)+RIGHT($E150),0)\n+AF$11*OFFSET('Efficiency Distributions'!$E$10,MATCH($C145,'Efficiency Distributions'!$C$9:$C$87,0)+RIGHT($E150),0))\n/SUM(AF$10:AF$11)","v":0},{"$f":"IF(INDEX(PC_MAPPING,RIGHT($C145,1),MATCH($E$2,'Data by Building Type'!$D$22:$F$22,0))=\"Yes\",1,0)*\n(AG$10*OFFSET('Efficiency Distributions'!$D$10,MATCH($C145,'Efficiency Distributions'!$C$9:$C$87,0)+RIGHT($E150),0)\n+AG$11*OFFSET('Efficiency Distributions'!$E$10,MATCH($C145,'Efficiency Distributions'!$C$9:$C$87,0)+RIGHT($E150),0))\n/SUM(AG$10:AG$11)","v":0},{"$f":"IF(INDEX(PC_MAPPING,RIGHT($C145,1),MATCH($E$2,'Data by Building Type'!$D$22:$F$22,0))=\"Yes\",1,0)*\n(AH$10*OFFSET('Efficiency Distributions'!$D$10,MATCH($C145,'Efficiency Distributions'!$C$9:$C$87,0)+RIGHT($E150),0)\n+AH$11*OFFSET('Efficiency Distributions'!$E$10,MATCH($C145,'Efficiency Distributions'!$C$9:$C$87,0)+RIGHT($E150),0))\n/SUM(AH$10:AH$11)","v":0},{"$f":"IF(INDEX(PC_MAPPING,RIGHT($C145,1),MATCH($E$2,'Data by Building Type'!$D$22:$F$22,0))=\"Yes\",1,0)*\n(AI$10*OFFSET('Efficiency Distributions'!$D$10,MATCH($C145,'Efficiency Distributions'!$C$9:$C$87,0)+RIGHT($E150),0)\n+AI$11*OFFSET('Efficiency Distributions'!$E$10,MATCH($C145,'Efficiency Distributions'!$C$9:$C$87,0)+RIGHT($E150),0))\n/SUM(AI$10:AI$11)","v":0},{"$f":"IF(INDEX(PC_MAPPING,RIGHT($C145,1),MATCH($E$2,'Data by Building Type'!$D$22:$F$22,0))=\"Yes\",1,0)*\n(AJ$10*OFFSET('Efficiency Distributions'!$D$10,MATCH($C145,'Efficiency Distributions'!$C$9:$C$87,0)+RIGHT($E150),0)\n+AJ$11*OFFSET('Efficiency Distributions'!$E$10,MATCH($C145,'Efficiency Distributions'!$C$9:$C$87,0)+RIGHT($E150),0))\n/SUM(AJ$10:AJ$11)","v":0},{"$f":"IF(INDEX(PC_MAPPING,RIGHT($C145,1),MATCH($E$2,'Data by Building Type'!$D$22:$F$22,0))=\"Yes\",1,0)*\n(AK$10*OFFSET('Efficiency Distributions'!$D$10,MATCH($C145,'Efficiency Distributions'!$C$9:$C$87,0)+RIGHT($E150),0)\n+AK$11*OFFSET('Efficiency Distributions'!$E$10,MATCH($C145,'Efficiency Distributions'!$C$9:$C$87,0)+RIGHT($E150),0))\n/SUM(AK$10:AK$11)","v":0},{"$f":"IF(INDEX(PC_MAPPING,RIGHT($C145,1),MATCH($E$2,'Data by Building Type'!$D$22:$F$22,0))=\"Yes\",1,0)*\n(AL$10*OFFSET('Efficiency Distributions'!$D$10,MATCH($C145,'Efficiency Distributions'!$C$9:$C$87,0)+RIGHT($E150),0)\n+AL$11*OFFSET('Efficiency Distributions'!$E$10,MATCH($C145,'Efficiency Distributions'!$C$9:$C$87,0)+RIGHT($E150),0))\n/SUM(AL$10:AL$11)","v":0},{"$f":"IF(INDEX(PC_MAPPING,RIGHT($C145,1),MATCH($E$2,'Data by Building Type'!$D$22:$F$22,0))=\"Yes\",1,0)*\n(AM$10*OFFSET('Efficiency Distributions'!$D$10,MATCH($C145,'Efficiency Distributions'!$C$9:$C$87,0)+RIGHT($E150),0)\n+AM$11*OFFSET('Efficiency Distributions'!$E$10,MATCH($C145,'Efficiency Distributions'!$C$9:$C$87,0)+RIGHT($E150),0))\n/SUM(AM$10:AM$11)","v":0},{"$f":"IF(INDEX(PC_MAPPING,RIGHT($C145,1),MATCH($E$2,'Data by Building Type'!$D$22:$F$22,0))=\"Yes\",1,0)*\n(AN$10*OFFSET('Efficiency Distributions'!$D$10,MATCH($C145,'Efficiency Distributions'!$C$9:$C$87,0)+RIGHT($E150),0)\n+AN$11*OFFSET('Efficiency Distributions'!$E$10,MATCH($C145,'Efficiency Distributions'!$C$9:$C$87,0)+RIGHT($E150),0))\n/SUM(AN$10:AN$11)","v":0},{"$f":"IF(INDEX(PC_MAPPING,RIGHT($C145,1),MATCH($E$2,'Data by Building Type'!$D$22:$F$22,0))=\"Yes\",1,0)*\n(AO$10*OFFSET('Efficiency Distributions'!$D$10,MATCH($C145,'Efficiency Distributions'!$C$9:$C$87,0)+RIGHT($E150),0)\n+AO$11*OFFSET('Efficiency Distributions'!$E$10,MATCH($C145,'Efficiency Distributions'!$C$9:$C$87,0)+RIGHT($E150),0))\n/SUM(AO$10:AO$11)","v":0},{"$f":"IF(INDEX(PC_MAPPING,RIGHT($C145,1),MATCH($E$2,'Data by Building Type'!$D$22:$F$22,0))=\"Yes\",1,0)*\n(AP$10*OFFSET('Efficiency Distributions'!$D$10,MATCH($C145,'Efficiency Distributions'!$C$9:$C$87,0)+RIGHT($E150),0)\n+AP$11*OFFSET('Efficiency Distributions'!$E$10,MATCH($C145,'Efficiency Distributions'!$C$9:$C$87,0)+RIGHT($E150),0))\n/SUM(AP$10:AP$11)","v":0},{"$f":"IF(INDEX(PC_MAPPING,RIGHT($C145,1),MATCH($E$2,'Data by Building Type'!$D$22:$F$22,0))=\"Yes\",1,0)*\n(AQ$10*OFFSET('Efficiency Distributions'!$D$10,MATCH($C145,'Efficiency Distributions'!$C$9:$C$87,0)+RIGHT($E150),0)\n+AQ$11*OFFSET('Efficiency Distributions'!$E$10,MATCH($C145,'Efficiency Distributions'!$C$9:$C$87,0)+RIGHT($E150),0))\n/SUM(AQ$10:AQ$11)","v":0},{"$f":"IF(INDEX(PC_MAPPING,RIGHT($C145,1),MATCH($E$2,'Data by Building Type'!$D$22:$F$22,0))=\"Yes\",1,0)*\n(AR$10*OFFSET('Efficiency Distributions'!$D$10,MATCH($C145,'Efficiency Distributions'!$C$9:$C$87,0)+RIGHT($E150),0)\n+AR$11*OFFSET('Efficiency Distributions'!$E$10,MATCH($C145,'Efficiency Distributions'!$C$9:$C$87,0)+RIGHT($E150),0))\n/SUM(AR$10:AR$11)","v":0},{"$f":"IF(INDEX(PC_MAPPING,RIGHT($C145,1),MATCH($E$2,'Data by Building Type'!$D$22:$F$22,0))=\"Yes\",1,0)*\n(AS$10*OFFSET('Efficiency Distributions'!$D$10,MATCH($C145,'Efficiency Distributions'!$C$9:$C$87,0)+RIGHT($E150),0)\n+AS$11*OFFSET('Efficiency Distributions'!$E$10,MATCH($C145,'Efficiency Distributions'!$C$9:$C$87,0)+RIGHT($E150),0))\n/SUM(AS$10:AS$11)","v":0},{"$f":"IF(INDEX(PC_MAPPING,RIGHT($C145,1),MATCH($E$2,'Data by Building Type'!$D$22:$F$22,0))=\"Yes\",1,0)*\n(AT$10*OFFSET('Efficiency Distributions'!$D$10,MATCH($C145,'Efficiency Distributions'!$C$9:$C$87,0)+RIGHT($E150),0)\n+AT$11*OFFSET('Efficiency Distributions'!$E$10,MATCH($C145,'Efficiency Distributions'!$C$9:$C$87,0)+RIGHT($E150),0))\n/SUM(AT$10:AT$11)","v":0},{"$f":"IF(INDEX(PC_MAPPING,RIGHT($C145,1),MATCH($E$2,'Data by Building Type'!$D$22:$F$22,0))=\"Yes\",1,0)*\n(AU$10*OFFSET('Efficiency Distributions'!$D$10,MATCH($C145,'Efficiency Distributions'!$C$9:$C$87,0)+RIGHT($E150),0)\n+AU$11*OFFSET('Efficiency Distributions'!$E$10,MATCH($C145,'Efficiency Distributions'!$C$9:$C$87,0)+RIGHT($E150),0))\n/SUM(AU$10:AU$11)","v":0},{"$f":"IF(INDEX(PC_MAPPING,RIGHT($C145,1),MATCH($E$2,'Data by Building Type'!$D$22:$F$22,0))=\"Yes\",1,0)*\n(AV$10*OFFSET('Efficiency Distributions'!$D$10,MATCH($C145,'Efficiency Distributions'!$C$9:$C$87,0)+RIGHT($E150),0)\n+AV$11*OFFSET('Efficiency Distributions'!$E$10,MATCH($C145,'Efficiency Distributions'!$C$9:$C$87,0)+RIGHT($E150),0))\n/SUM(AV$10:AV$11)","v":0},{"$f":"IF(INDEX(PC_MAPPING,RIGHT($C145,1),MATCH($E$2,'Data by Building Type'!$D$22:$F$22,0))=\"Yes\",1,0)*\n(AW$10*OFFSET('Efficiency Distributions'!$D$10,MATCH($C145,'Efficiency Distributions'!$C$9:$C$87,0)+RIGHT($E150),0)\n+AW$11*OFFSET('Efficiency Distributions'!$E$10,MATCH($C145,'Efficiency Distributions'!$C$9:$C$87,0)+RIGHT($E150),0))\n/SUM(AW$10:AW$11)","v":0},{"$f":"IF(INDEX(PC_MAPPING,RIGHT($C145,1),MATCH($E$2,'Data by Building Type'!$D$22:$F$22,0))=\"Yes\",1,0)*\n(AX$10*OFFSET('Efficiency Distributions'!$D$10,MATCH($C145,'Efficiency Distributions'!$C$9:$C$87,0)+RIGHT($E150),0)\n+AX$11*OFFSET('Efficiency Distributions'!$E$10,MATCH($C145,'Efficiency Distributions'!$C$9:$C$87,0)+RIGHT($E150),0))\n/SUM(AX$10:AX$11)","v":0},{"$f":"IF(INDEX(PC_MAPPING,RIGHT($C145,1),MATCH($E$2,'Data by Building Type'!$D$22:$F$22,0))=\"Yes\",1,0)*\n(AY$10*OFFSET('Efficiency Distributions'!$D$10,MATCH($C145,'Efficiency Distributions'!$C$9:$C$87,0)+RIGHT($E150),0)\n+AY$11*OFFSET('Efficiency Distributions'!$E$10,MATCH($C145,'Efficiency Distributions'!$C$9:$C$87,0)+RIGHT($E150),0))\n/SUM(AY$10:AY$11)","v":0},{"$f":"IF(INDEX(PC_MAPPING,RIGHT($C145,1),MATCH($E$2,'Data by Building Type'!$D$22:$F$22,0))=\"Yes\",1,0)*\n(AZ$10*OFFSET('Efficiency Distributions'!$D$10,MATCH($C145,'Efficiency Distributions'!$C$9:$C$87,0)+RIGHT($E150),0)\n+AZ$11*OFFSET('Efficiency Distributions'!$E$10,MATCH($C145,'Efficiency Distributions'!$C$9:$C$87,0)+RIGHT($E150),0))\n/SUM(AZ$10:AZ$11)","v":0},{"$f":"IF(INDEX(PC_MAPPING,RIGHT($C145,1),MATCH($E$2,'Data by Building Type'!$D$22:$F$22,0))=\"Yes\",1,0)*\n(BA$10*OFFSET('Efficiency Distributions'!$D$10,MATCH($C145,'Efficiency Distributions'!$C$9:$C$87,0)+RIGHT($E150),0)\n+BA$11*OFFSET('Efficiency Distributions'!$E$10,MATCH($C145,'Efficiency Distributions'!$C$9:$C$87,0)+RIGHT($E150),0))\n/SUM(BA$10:BA$11)","v":0},{"$f":"IF(INDEX(PC_MAPPING,RIGHT($C145,1),MATCH($E$2,'Data by Building Type'!$D$22:$F$22,0))=\"Yes\",1,0)*\n(BB$10*OFFSET('Efficiency Distributions'!$D$10,MATCH($C145,'Efficiency Distributions'!$C$9:$C$87,0)+RIGHT($E150),0)\n+BB$11*OFFSET('Efficiency Distributions'!$E$10,MATCH($C145,'Efficiency Distributions'!$C$9:$C$87,0)+RIGHT($E150),0))\n/SUM(BB$10:BB$11)","v":0},{"$f":"IF(INDEX(PC_MAPPING,RIGHT($C145,1),MATCH($E$2,'Data by Building Type'!$D$22:$F$22,0))=\"Yes\",1,0)*\n(BC$10*OFFSET('Efficiency Distributions'!$D$10,MATCH($C145,'Efficiency Distributions'!$C$9:$C$87,0)+RIGHT($E150),0)\n+BC$11*OFFSET('Efficiency Distributions'!$E$10,MATCH($C145,'Efficiency Distributions'!$C$9:$C$87,0)+RIGHT($E150),0))\n/SUM(BC$10:BC$11)","v":0},{"$f":"IF(INDEX(PC_MAPPING,RIGHT($C145,1),MATCH($E$2,'Data by Building Type'!$D$22:$F$22,0))=\"Yes\",1,0)*\n(BD$10*OFFSET('Efficiency Distributions'!$D$10,MATCH($C145,'Efficiency Distributions'!$C$9:$C$87,0)+RIGHT($E150),0)\n+BD$11*OFFSET('Efficiency Distributions'!$E$10,MATCH($C145,'Efficiency Distributions'!$C$9:$C$87,0)+RIGHT($E150),0))\n/SUM(BD$10:BD$11)","v":0},{"$f":"IF(INDEX(PC_MAPPING,RIGHT($C145,1),MATCH($E$2,'Data by Building Type'!$D$22:$F$22,0))=\"Yes\",1,0)*\n(BE$10*OFFSET('Efficiency Distributions'!$D$10,MATCH($C145,'Efficiency Distributions'!$C$9:$C$87,0)+RIGHT($E150),0)\n+BE$11*OFFSET('Efficiency Distributions'!$E$10,MATCH($C145,'Efficiency Distributions'!$C$9:$C$87,0)+RIGHT($E150),0))\n/SUM(BE$10:BE$11)","v":0},{"$f":"IF(INDEX(PC_MAPPING,RIGHT($C145,1),MATCH($E$2,'Data by Building Type'!$D$22:$F$22,0))=\"Yes\",1,0)*\n(BF$10*OFFSET('Efficiency Distributions'!$D$10,MATCH($C145,'Efficiency Distributions'!$C$9:$C$87,0)+RIGHT($E150),0)\n+BF$11*OFFSET('Efficiency Distributions'!$E$10,MATCH($C145,'Efficiency Distributions'!$C$9:$C$87,0)+RIGHT($E150),0))\n/SUM(BF$10:BF$11)","v":0},{"$f":"IF(INDEX(PC_MAPPING,RIGHT($C145,1),MATCH($E$2,'Data by Building Type'!$D$22:$F$22,0))=\"Yes\",1,0)*\n(BG$10*OFFSET('Efficiency Distributions'!$D$10,MATCH($C145,'Efficiency Distributions'!$C$9:$C$87,0)+RIGHT($E150),0)\n+BG$11*OFFSET('Efficiency Distributions'!$E$10,MATCH($C145,'Efficiency Distributions'!$C$9:$C$87,0)+RIGHT($E150),0))\n/SUM(BG$10:BG$11)","v":0}]
[null,null,null,null,"EL2",{"$f":"IF(INDEX(PC_MAPPING,RIGHT($C145,1),MATCH($E$2,'Data by Building Type'!$D$22:$F$22,0))=\"Yes\",1,0)*\n(F$10*OFFSET('Efficiency Distributions'!$D$10,MATCH($C145,'Efficiency Distributions'!$C$9:$C$87,0)+RIGHT($E151),0)\n+F$11*OFFSET('Efficiency Distributions'!$E$10,MATCH($C145,'Efficiency Distributions'!$C$9:$C$87,0)+RIGHT($E151),0))\n/SUM(F$10:F$11)","v":0},{"$f":"IF(INDEX(PC_MAPPING,RIGHT($C145,1),MATCH($E$2,'Data by Building Type'!$D$22:$F$22,0))=\"Yes\",1,0)*\n(G$10*OFFSET('Efficiency Distributions'!$D$10,MATCH($C145,'Efficiency Distributions'!$C$9:$C$87,0)+RIGHT($E151),0)\n+G$11*OFFSET('Efficiency Distributions'!$E$10,MATCH($C145,'Efficiency Distributions'!$C$9:$C$87,0)+RIGHT($E151),0))\n/SUM(G$10:G$11)","v":0},{"$f":"IF(INDEX(PC_MAPPING,RIGHT($C145,1),MATCH($E$2,'Data by Building Type'!$D$22:$F$22,0))=\"Yes\",1,0)*\n(H$10*OFFSET('Efficiency Distributions'!$D$10,MATCH($C145,'Efficiency Distributions'!$C$9:$C$87,0)+RIGHT($E151),0)\n+H$11*OFFSET('Efficiency Distributions'!$E$10,MATCH($C145,'Efficiency Distributions'!$C$9:$C$87,0)+RIGHT($E151),0))\n/SUM(H$10:H$11)","v":0},{"$f":"IF(INDEX(PC_MAPPING,RIGHT($C145,1),MATCH($E$2,'Data by Building Type'!$D$22:$F$22,0))=\"Yes\",1,0)*\n(I$10*OFFSET('Efficiency Distributions'!$D$10,MATCH($C145,'Efficiency Distributions'!$C$9:$C$87,0)+RIGHT($E151),0)\n+I$11*OFFSET('Efficiency Distributions'!$E$10,MATCH($C145,'Efficiency Distributions'!$C$9:$C$87,0)+RIGHT($E151),0))\n/SUM(I$10:I$11)","v":0},{"$f":"IF(INDEX(PC_MAPPING,RIGHT($C145,1),MATCH($E$2,'Data by Building Type'!$D$22:$F$22,0))=\"Yes\",1,0)*\n(J$10*OFFSET('Efficiency Distributions'!$D$10,MATCH($C145,'Efficiency Distributions'!$C$9:$C$87,0)+RIGHT($E151),0)\n+J$11*OFFSET('Efficiency Distributions'!$E$10,MATCH($C145,'Efficiency Distributions'!$C$9:$C$87,0)+RIGHT($E151),0))\n/SUM(J$10:J$11)","v":0},{"$f":"IF(INDEX(PC_MAPPING,RIGHT($C145,1),MATCH($E$2,'Data by Building Type'!$D$22:$F$22,0))=\"Yes\",1,0)*\n(K$10*OFFSET('Efficiency Distributions'!$D$10,MATCH($C145,'Efficiency Distributions'!$C$9:$C$87,0)+RIGHT($E151),0)\n+K$11*OFFSET('Efficiency Distributions'!$E$10,MATCH($C145,'Efficiency Distributions'!$C$9:$C$87,0)+RIGHT($E151),0))\n/SUM(K$10:K$11)","v":0},{"$f":"IF(INDEX(PC_MAPPING,RIGHT($C145,1),MATCH($E$2,'Data by Building Type'!$D$22:$F$22,0))=\"Yes\",1,0)*\n(L$10*OFFSET('Efficiency Distributions'!$D$10,MATCH($C145,'Efficiency Distributions'!$C$9:$C$87,0)+RIGHT($E151),0)\n+L$11*OFFSET('Efficiency Distributions'!$E$10,MATCH($C145,'Efficiency Distributions'!$C$9:$C$87,0)+RIGHT($E151),0))\n/SUM(L$10:L$11)","v":0},{"$f":"IF(INDEX(PC_MAPPING,RIGHT($C145,1),MATCH($E$2,'Data by Building Type'!$D$22:$F$22,0))=\"Yes\",1,0)*\n(M$10*OFFSET('Efficiency Distributions'!$D$10,MATCH($C145,'Efficiency Distributions'!$C$9:$C$87,0)+RIGHT($E151),0)\n+M$11*OFFSET('Efficiency Distributions'!$E$10,MATCH($C145,'Efficiency Distributions'!$C$9:$C$87,0)+RIGHT($E151),0))\n/SUM(M$10:M$11)","v":0},{"$f":"IF(INDEX(PC_MAPPING,RIGHT($C145,1),MATCH($E$2,'Data by Building Type'!$D$22:$F$22,0))=\"Yes\",1,0)*\n(N$10*OFFSET('Efficiency Distributions'!$D$10,MATCH($C145,'Efficiency Distributions'!$C$9:$C$87,0)+RIGHT($E151),0)\n+N$11*OFFSET('Efficiency Distributions'!$E$10,MATCH($C145,'Efficiency Distributions'!$C$9:$C$87,0)+RIGHT($E151),0))\n/SUM(N$10:N$11)","v":0},{"$f":"IF(INDEX(PC_MAPPING,RIGHT($C145,1),MATCH($E$2,'Data by Building Type'!$D$22:$F$22,0))=\"Yes\",1,0)*\n(O$10*OFFSET('Efficiency Distributions'!$D$10,MATCH($C145,'Efficiency Distributions'!$C$9:$C$87,0)+RIGHT($E151),0)\n+O$11*OFFSET('Efficiency Distributions'!$E$10,MATCH($C145,'Efficiency Distributions'!$C$9:$C$87,0)+RIGHT($E151),0))\n/SUM(O$10:O$11)","v":0},{"$f":"IF(INDEX(PC_MAPPING,RIGHT($C145,1),MATCH($E$2,'Data by Building Type'!$D$22:$F$22,0))=\"Yes\",1,0)*\n(P$10*OFFSET('Efficiency Distributions'!$D$10,MATCH($C145,'Efficiency Distributions'!$C$9:$C$87,0)+RIGHT($E151),0)\n+P$11*OFFSET('Efficiency Distributions'!$E$10,MATCH($C145,'Efficiency Distributions'!$C$9:$C$87,0)+RIGHT($E151),0))\n/SUM(P$10:P$11)","v":0},{"$f":"IF(INDEX(PC_MAPPING,RIGHT($C145,1),MATCH($E$2,'Data by Building Type'!$D$22:$F$22,0))=\"Yes\",1,0)*\n(Q$10*OFFSET('Efficiency Distributions'!$D$10,MATCH($C145,'Efficiency Distributions'!$C$9:$C$87,0)+RIGHT($E151),0)\n+Q$11*OFFSET('Efficiency Distributions'!$E$10,MATCH($C145,'Efficiency Distributions'!$C$9:$C$87,0)+RIGHT($E151),0))\n/SUM(Q$10:Q$11)","v":0},{"$f":"IF(INDEX(PC_MAPPING,RIGHT($C145,1),MATCH($E$2,'Data by Building Type'!$D$22:$F$22,0))=\"Yes\",1,0)*\n(R$10*OFFSET('Efficiency Distributions'!$D$10,MATCH($C145,'Efficiency Distributions'!$C$9:$C$87,0)+RIGHT($E151),0)\n+R$11*OFFSET('Efficiency Distributions'!$E$10,MATCH($C145,'Efficiency Distributions'!$C$9:$C$87,0)+RIGHT($E151),0))\n/SUM(R$10:R$11)","v":0},{"$f":"IF(INDEX(PC_MAPPING,RIGHT($C145,1),MATCH($E$2,'Data by Building Type'!$D$22:$F$22,0))=\"Yes\",1,0)*\n(S$10*OFFSET('Efficiency Distributions'!$D$10,MATCH($C145,'Efficiency Distributions'!$C$9:$C$87,0)+RIGHT($E151),0)\n+S$11*OFFSET('Efficiency Distributions'!$E$10,MATCH($C145,'Efficiency Distributions'!$C$9:$C$87,0)+RIGHT($E151),0))\n/SUM(S$10:S$11)","v":0},{"$f":"IF(INDEX(PC_MAPPING,RIGHT($C145,1),MATCH($E$2,'Data by Building Type'!$D$22:$F$22,0))=\"Yes\",1,0)*\n(T$10*OFFSET('Efficiency Distributions'!$D$10,MATCH($C145,'Efficiency Distributions'!$C$9:$C$87,0)+RIGHT($E151),0)\n+T$11*OFFSET('Efficiency Distributions'!$E$10,MATCH($C145,'Efficiency Distributions'!$C$9:$C$87,0)+RIGHT($E151),0))\n/SUM(T$10:T$11)","v":0},{"$f":"IF(INDEX(PC_MAPPING,RIGHT($C145,1),MATCH($E$2,'Data by Building Type'!$D$22:$F$22,0))=\"Yes\",1,0)*\n(U$10*OFFSET('Efficiency Distributions'!$D$10,MATCH($C145,'Efficiency Distributions'!$C$9:$C$87,0)+RIGHT($E151),0)\n+U$11*OFFSET('Efficiency Distributions'!$E$10,MATCH($C145,'Efficiency Distributions'!$C$9:$C$87,0)+RIGHT($E151),0))\n/SUM(U$10:U$11)","v":0},{"$f":"IF(INDEX(PC_MAPPING,RIGHT($C145,1),MATCH($E$2,'Data by Building Type'!$D$22:$F$22,0))=\"Yes\",1,0)*\n(V$10*OFFSET('Efficiency Distributions'!$D$10,MATCH($C145,'Efficiency Distributions'!$C$9:$C$87,0)+RIGHT($E151),0)\n+V$11*OFFSET('Efficiency Distributions'!$E$10,MATCH($C145,'Efficiency Distributions'!$C$9:$C$87,0)+RIGHT($E151),0))\n/SUM(V$10:V$11)","v":0},{"$f":"IF(INDEX(PC_MAPPING,RIGHT($C145,1),MATCH($E$2,'Data by Building Type'!$D$22:$F$22,0))=\"Yes\",1,0)*\n(W$10*OFFSET('Efficiency Distributions'!$D$10,MATCH($C145,'Efficiency Distributions'!$C$9:$C$87,0)+RIGHT($E151),0)\n+W$11*OFFSET('Efficiency Distributions'!$E$10,MATCH($C145,'Efficiency Distributions'!$C$9:$C$87,0)+RIGHT($E151),0))\n/SUM(W$10:W$11)","v":0},{"$f":"IF(INDEX(PC_MAPPING,RIGHT($C145,1),MATCH($E$2,'Data by Building Type'!$D$22:$F$22,0))=\"Yes\",1,0)*\n(X$10*OFFSET('Efficiency Distributions'!$D$10,MATCH($C145,'Efficiency Distributions'!$C$9:$C$87,0)+RIGHT($E151),0)\n+X$11*OFFSET('Efficiency Distributions'!$E$10,MATCH($C145,'Efficiency Distributions'!$C$9:$C$87,0)+RIGHT($E151),0))\n/SUM(X$10:X$11)","v":0},{"$f":"IF(INDEX(PC_MAPPING,RIGHT($C145,1),MATCH($E$2,'Data by Building Type'!$D$22:$F$22,0))=\"Yes\",1,0)*\n(Y$10*OFFSET('Efficiency Distributions'!$D$10,MATCH($C145,'Efficiency Distributions'!$C$9:$C$87,0)+RIGHT($E151),0)\n+Y$11*OFFSET('Efficiency Distributions'!$E$10,MATCH($C145,'Efficiency Distributions'!$C$9:$C$87,0)+RIGHT($E151),0))\n/SUM(Y$10:Y$11)","v":0},{"$f":"IF(INDEX(PC_MAPPING,RIGHT($C145,1),MATCH($E$2,'Data by Building Type'!$D$22:$F$22,0))=\"Yes\",1,0)*\n(Z$10*OFFSET('Efficiency Distributions'!$D$10,MATCH($C145,'Efficiency Distributions'!$C$9:$C$87,0)+RIGHT($E151),0)\n+Z$11*OFFSET('Efficiency Distributions'!$E$10,MATCH($C145,'Efficiency Distributions'!$C$9:$C$87,0)+RIGHT($E151),0))\n/SUM(Z$10:Z$11)","v":0},{"$f":"IF(INDEX(PC_MAPPING,RIGHT($C145,1),MATCH($E$2,'Data by Building Type'!$D$22:$F$22,0))=\"Yes\",1,0)*\n(AA$10*OFFSET('Efficiency Distributions'!$D$10,MATCH($C145,'Efficiency Distributions'!$C$9:$C$87,0)+RIGHT($E151),0)\n+AA$11*OFFSET('Efficiency Distributions'!$E$10,MATCH($C145,'Efficiency Distributions'!$C$9:$C$87,0)+RIGHT($E151),0))\n/SUM(AA$10:AA$11)","v":0},{"$f":"IF(INDEX(PC_MAPPING,RIGHT($C145,1),MATCH($E$2,'Data by Building Type'!$D$22:$F$22,0))=\"Yes\",1,0)*\n(AB$10*OFFSET('Efficiency Distributions'!$D$10,MATCH($C145,'Efficiency Distributions'!$C$9:$C$87,0)+RIGHT($E151),0)\n+AB$11*OFFSET('Efficiency Distributions'!$E$10,MATCH($C145,'Efficiency Distributions'!$C$9:$C$87,0)+RIGHT($E151),0))\n/SUM(AB$10:AB$11)","v":0},{"$f":"IF(INDEX(PC_MAPPING,RIGHT($C145,1),MATCH($E$2,'Data by Building Type'!$D$22:$F$22,0))=\"Yes\",1,0)*\n(AC$10*OFFSET('Efficiency Distributions'!$D$10,MATCH($C145,'Efficiency Distributions'!$C$9:$C$87,0)+RIGHT($E151),0)\n+AC$11*OFFSET('Efficiency Distributions'!$E$10,MATCH($C145,'Efficiency Distributions'!$C$9:$C$87,0)+RIGHT($E151),0))\n/SUM(AC$10:AC$11)","v":0},{"$f":"IF(INDEX(PC_MAPPING,RIGHT($C145,1),MATCH($E$2,'Data by Building Type'!$D$22:$F$22,0))=\"Yes\",1,0)*\n(AD$10*OFFSET('Efficiency Distributions'!$D$10,MATCH($C145,'Efficiency Distributions'!$C$9:$C$87,0)+RIGHT($E151),0)\n+AD$11*OFFSET('Efficiency Distributions'!$E$10,MATCH($C145,'Efficiency Distributions'!$C$9:$C$87,0)+RIGHT($E151),0))\n/SUM(AD$10:AD$11)","v":0},{"$f":"IF(INDEX(PC_MAPPING,RIGHT($C145,1),MATCH($E$2,'Data by Building Type'!$D$22:$F$22,0))=\"Yes\",1,0)*\n(AE$10*OFFSET('Efficiency Distributions'!$D$10,MATCH($C145,'Efficiency Distributions'!$C$9:$C$87,0)+RIGHT($E151),0)\n+AE$11*OFFSET('Efficiency Distributions'!$E$10,MATCH($C145,'Efficiency Distributions'!$C$9:$C$87,0)+RIGHT($E151),0))\n/SUM(AE$10:AE$11)","v":0},{"$f":"IF(INDEX(PC_MAPPING,RIGHT($C145,1),MATCH($E$2,'Data by Building Type'!$D$22:$F$22,0))=\"Yes\",1,0)*\n(AF$10*OFFSET('Efficiency Distributions'!$D$10,MATCH($C145,'Efficiency Distributions'!$C$9:$C$87,0)+RIGHT($E151),0)\n+AF$11*OFFSET('Efficiency Distributions'!$E$10,MATCH($C145,'Efficiency Distributions'!$C$9:$C$87,0)+RIGHT($E151),0))\n/SUM(AF$10:AF$11)","v":0},{"$f":"IF(INDEX(PC_MAPPING,RIGHT($C145,1),MATCH($E$2,'Data by Building Type'!$D$22:$F$22,0))=\"Yes\",1,0)*\n(AG$10*OFFSET('Efficiency Distributions'!$D$10,MATCH($C145,'Efficiency Distributions'!$C$9:$C$87,0)+RIGHT($E151),0)\n+AG$11*OFFSET('Efficiency Distributions'!$E$10,MATCH($C145,'Efficiency Distributions'!$C$9:$C$87,0)+RIGHT($E151),0))\n/SUM(AG$10:AG$11)","v":0},{"$f":"IF(INDEX(PC_MAPPING,RIGHT($C145,1),MATCH($E$2,'Data by Building Type'!$D$22:$F$22,0))=\"Yes\",1,0)*\n(AH$10*OFFSET('Efficiency Distributions'!$D$10,MATCH($C145,'Efficiency Distributions'!$C$9:$C$87,0)+RIGHT($E151),0)\n+AH$11*OFFSET('Efficiency Distributions'!$E$10,MATCH($C145,'Efficiency Distributions'!$C$9:$C$87,0)+RIGHT($E151),0))\n/SUM(AH$10:AH$11)","v":0},{"$f":"IF(INDEX(PC_MAPPING,RIGHT($C145,1),MATCH($E$2,'Data by Building Type'!$D$22:$F$22,0))=\"Yes\",1,0)*\n(AI$10*OFFSET('Efficiency Distributions'!$D$10,MATCH($C145,'Efficiency Distributions'!$C$9:$C$87,0)+RIGHT($E151),0)\n+AI$11*OFFSET('Efficiency Distributions'!$E$10,MATCH($C145,'Efficiency Distributions'!$C$9:$C$87,0)+RIGHT($E151),0))\n/SUM(AI$10:AI$11)","v":0},{"$f":"IF(INDEX(PC_MAPPING,RIGHT($C145,1),MATCH($E$2,'Data by Building Type'!$D$22:$F$22,0))=\"Yes\",1,0)*\n(AJ$10*OFFSET('Efficiency Distributions'!$D$10,MATCH($C145,'Efficiency Distributions'!$C$9:$C$87,0)+RIGHT($E151),0)\n+AJ$11*OFFSET('Efficiency Distributions'!$E$10,MATCH($C145,'Efficiency Distributions'!$C$9:$C$87,0)+RIGHT($E151),0))\n/SUM(AJ$10:AJ$11)","v":0},{"$f":"IF(INDEX(PC_MAPPING,RIGHT($C145,1),MATCH($E$2,'Data by Building Type'!$D$22:$F$22,0))=\"Yes\",1,0)*\n(AK$10*OFFSET('Efficiency Distributions'!$D$10,MATCH($C145,'Efficiency Distributions'!$C$9:$C$87,0)+RIGHT($E151),0)\n+AK$11*OFFSET('Efficiency Distributions'!$E$10,MATCH($C145,'Efficiency Distributions'!$C$9:$C$87,0)+RIGHT($E151),0))\n/SUM(AK$10:AK$11)","v":0},{"$f":"IF(INDEX(PC_MAPPING,RIGHT($C145,1),MATCH($E$2,'Data by Building Type'!$D$22:$F$22,0))=\"Yes\",1,0)*\n(AL$10*OFFSET('Efficiency Distributions'!$D$10,MATCH($C145,'Efficiency Distributions'!$C$9:$C$87,0)+RIGHT($E151),0)\n+AL$11*OFFSET('Efficiency Distributions'!$E$10,MATCH($C145,'Efficiency Distributions'!$C$9:$C$87,0)+RIGHT($E151),0))\n/SUM(AL$10:AL$11)","v":0},{"$f":"IF(INDEX(PC_MAPPING,RIGHT($C145,1),MATCH($E$2,'Data by Building Type'!$D$22:$F$22,0))=\"Yes\",1,0)*\n(AM$10*OFFSET('Efficiency Distributions'!$D$10,MATCH($C145,'Efficiency Distributions'!$C$9:$C$87,0)+RIGHT($E151),0)\n+AM$11*OFFSET('Efficiency Distributions'!$E$10,MATCH($C145,'Efficiency Distributions'!$C$9:$C$87,0)+RIGHT($E151),0))\n/SUM(AM$10:AM$11)","v":0},{"$f":"IF(INDEX(PC_MAPPING,RIGHT($C145,1),MATCH($E$2,'Data by Building Type'!$D$22:$F$22,0))=\"Yes\",1,0)*\n(AN$10*OFFSET('Efficiency Distributions'!$D$10,MATCH($C145,'Efficiency Distributions'!$C$9:$C$87,0)+RIGHT($E151),0)\n+AN$11*OFFSET('Efficiency Distributions'!$E$10,MATCH($C145,'Efficiency Distributions'!$C$9:$C$87,0)+RIGHT($E151),0))\n/SUM(AN$10:AN$11)","v":0},{"$f":"IF(INDEX(PC_MAPPING,RIGHT($C145,1),MATCH($E$2,'Data by Building Type'!$D$22:$F$22,0))=\"Yes\",1,0)*\n(AO$10*OFFSET('Efficiency Distributions'!$D$10,MATCH($C145,'Efficiency Distributions'!$C$9:$C$87,0)+RIGHT($E151),0)\n+AO$11*OFFSET('Efficiency Distributions'!$E$10,MATCH($C145,'Efficiency Distributions'!$C$9:$C$87,0)+RIGHT($E151),0))\n/SUM(AO$10:AO$11)","v":0},{"$f":"IF(INDEX(PC_MAPPING,RIGHT($C145,1),MATCH($E$2,'Data by Building Type'!$D$22:$F$22,0))=\"Yes\",1,0)*\n(AP$10*OFFSET('Efficiency Distributions'!$D$10,MATCH($C145,'Efficiency Distributions'!$C$9:$C$87,0)+RIGHT($E151),0)\n+AP$11*OFFSET('Efficiency Distributions'!$E$10,MATCH($C145,'Efficiency Distributions'!$C$9:$C$87,0)+RIGHT($E151),0))\n/SUM(AP$10:AP$11)","v":0},{"$f":"IF(INDEX(PC_MAPPING,RIGHT($C145,1),MATCH($E$2,'Data by Building Type'!$D$22:$F$22,0))=\"Yes\",1,0)*\n(AQ$10*OFFSET('Efficiency Distributions'!$D$10,MATCH($C145,'Efficiency Distributions'!$C$9:$C$87,0)+RIGHT($E151),0)\n+AQ$11*OFFSET('Efficiency Distributions'!$E$10,MATCH($C145,'Efficiency Distributions'!$C$9:$C$87,0)+RIGHT($E151),0))\n/SUM(AQ$10:AQ$11)","v":0},{"$f":"IF(INDEX(PC_MAPPING,RIGHT($C145,1),MATCH($E$2,'Data by Building Type'!$D$22:$F$22,0))=\"Yes\",1,0)*\n(AR$10*OFFSET('Efficiency Distributions'!$D$10,MATCH($C145,'Efficiency Distributions'!$C$9:$C$87,0)+RIGHT($E151),0)\n+AR$11*OFFSET('Efficiency Distributions'!$E$10,MATCH($C145,'Efficiency Distributions'!$C$9:$C$87,0)+RIGHT($E151),0))\n/SUM(AR$10:AR$11)","v":0},{"$f":"IF(INDEX(PC_MAPPING,RIGHT($C145,1),MATCH($E$2,'Data by Building Type'!$D$22:$F$22,0))=\"Yes\",1,0)*\n(AS$10*OFFSET('Efficiency Distributions'!$D$10,MATCH($C145,'Efficiency Distributions'!$C$9:$C$87,0)+RIGHT($E151),0)\n+AS$11*OFFSET('Efficiency Distributions'!$E$10,MATCH($C145,'Efficiency Distributions'!$C$9:$C$87,0)+RIGHT($E151),0))\n/SUM(AS$10:AS$11)","v":0},{"$f":"IF(INDEX(PC_MAPPING,RIGHT($C145,1),MATCH($E$2,'Data by Building Type'!$D$22:$F$22,0))=\"Yes\",1,0)*\n(AT$10*OFFSET('Efficiency Distributions'!$D$10,MATCH($C145,'Efficiency Distributions'!$C$9:$C$87,0)+RIGHT($E151),0)\n+AT$11*OFFSET('Efficiency Distributions'!$E$10,MATCH($C145,'Efficiency Distributions'!$C$9:$C$87,0)+RIGHT($E151),0))\n/SUM(AT$10:AT$11)","v":0},{"$f":"IF(INDEX(PC_MAPPING,RIGHT($C145,1),MATCH($E$2,'Data by Building Type'!$D$22:$F$22,0))=\"Yes\",1,0)*\n(AU$10*OFFSET('Efficiency Distributions'!$D$10,MATCH($C145,'Efficiency Distributions'!$C$9:$C$87,0)+RIGHT($E151),0)\n+AU$11*OFFSET('Efficiency Distributions'!$E$10,MATCH($C145,'Efficiency Distributions'!$C$9:$C$87,0)+RIGHT($E151),0))\n/SUM(AU$10:AU$11)","v":0},{"$f":"IF(INDEX(PC_MAPPING,RIGHT($C145,1),MATCH($E$2,'Data by Building Type'!$D$22:$F$22,0))=\"Yes\",1,0)*\n(AV$10*OFFSET('Efficiency Distributions'!$D$10,MATCH($C145,'Efficiency Distributions'!$C$9:$C$87,0)+RIGHT($E151),0)\n+AV$11*OFFSET('Efficiency Distributions'!$E$10,MATCH($C145,'Efficiency Distributions'!$C$9:$C$87,0)+RIGHT($E151),0))\n/SUM(AV$10:AV$11)","v":0},{"$f":"IF(INDEX(PC_MAPPING,RIGHT($C145,1),MATCH($E$2,'Data by Building Type'!$D$22:$F$22,0))=\"Yes\",1,0)*\n(AW$10*OFFSET('Efficiency Distributions'!$D$10,MATCH($C145,'Efficiency Distributions'!$C$9:$C$87,0)+RIGHT($E151),0)\n+AW$11*OFFSET('Efficiency Distributions'!$E$10,MATCH($C145,'Efficiency Distributions'!$C$9:$C$87,0)+RIGHT($E151),0))\n/SUM(AW$10:AW$11)","v":0},{"$f":"IF(INDEX(PC_MAPPING,RIGHT($C145,1),MATCH($E$2,'Data by Building Type'!$D$22:$F$22,0))=\"Yes\",1,0)*\n(AX$10*OFFSET('Efficiency Distributions'!$D$10,MATCH($C145,'Efficiency Distributions'!$C$9:$C$87,0)+RIGHT($E151),0)\n+AX$11*OFFSET('Efficiency Distributions'!$E$10,MATCH($C145,'Efficiency Distributions'!$C$9:$C$87,0)+RIGHT($E151),0))\n/SUM(AX$10:AX$11)","v":0},{"$f":"IF(INDEX(PC_MAPPING,RIGHT($C145,1),MATCH($E$2,'Data by Building Type'!$D$22:$F$22,0))=\"Yes\",1,0)*\n(AY$10*OFFSET('Efficiency Distributions'!$D$10,MATCH($C145,'Efficiency Distributions'!$C$9:$C$87,0)+RIGHT($E151),0)\n+AY$11*OFFSET('Efficiency Distributions'!$E$10,MATCH($C145,'Efficiency Distributions'!$C$9:$C$87,0)+RIGHT($E151),0))\n/SUM(AY$10:AY$11)","v":0},{"$f":"IF(INDEX(PC_MAPPING,RIGHT($C145,1),MATCH($E$2,'Data by Building Type'!$D$22:$F$22,0))=\"Yes\",1,0)*\n(AZ$10*OFFSET('Efficiency Distributions'!$D$10,MATCH($C145,'Efficiency Distributions'!$C$9:$C$87,0)+RIGHT($E151),0)\n+AZ$11*OFFSET('Efficiency Distributions'!$E$10,MATCH($C145,'Efficiency Distributions'!$C$9:$C$87,0)+RIGHT($E151),0))\n/SUM(AZ$10:AZ$11)","v":0},{"$f":"IF(INDEX(PC_MAPPING,RIGHT($C145,1),MATCH($E$2,'Data by Building Type'!$D$22:$F$22,0))=\"Yes\",1,0)*\n(BA$10*OFFSET('Efficiency Distributions'!$D$10,MATCH($C145,'Efficiency Distributions'!$C$9:$C$87,0)+RIGHT($E151),0)\n+BA$11*OFFSET('Efficiency Distributions'!$E$10,MATCH($C145,'Efficiency Distributions'!$C$9:$C$87,0)+RIGHT($E151),0))\n/SUM(BA$10:BA$11)","v":0},{"$f":"IF(INDEX(PC_MAPPING,RIGHT($C145,1),MATCH($E$2,'Data by Building Type'!$D$22:$F$22,0))=\"Yes\",1,0)*\n(BB$10*OFFSET('Efficiency Distributions'!$D$10,MATCH($C145,'Efficiency Distributions'!$C$9:$C$87,0)+RIGHT($E151),0)\n+BB$11*OFFSET('Efficiency Distributions'!$E$10,MATCH($C145,'Efficiency Distributions'!$C$9:$C$87,0)+RIGHT($E151),0))\n/SUM(BB$10:BB$11)","v":0},{"$f":"IF(INDEX(PC_MAPPING,RIGHT($C145,1),MATCH($E$2,'Data by Building Type'!$D$22:$F$22,0))=\"Yes\",1,0)*\n(BC$10*OFFSET('Efficiency Distributions'!$D$10,MATCH($C145,'Efficiency Distributions'!$C$9:$C$87,0)+RIGHT($E151),0)\n+BC$11*OFFSET('Efficiency Distributions'!$E$10,MATCH($C145,'Efficiency Distributions'!$C$9:$C$87,0)+RIGHT($E151),0))\n/SUM(BC$10:BC$11)","v":0},{"$f":"IF(INDEX(PC_MAPPING,RIGHT($C145,1),MATCH($E$2,'Data by Building Type'!$D$22:$F$22,0))=\"Yes\",1,0)*\n(BD$10*OFFSET('Efficiency Distributions'!$D$10,MATCH($C145,'Efficiency Distributions'!$C$9:$C$87,0)+RIGHT($E151),0)\n+BD$11*OFFSET('Efficiency Distributions'!$E$10,MATCH($C145,'Efficiency Distributions'!$C$9:$C$87,0)+RIGHT($E151),0))\n/SUM(BD$10:BD$11)","v":0},{"$f":"IF(INDEX(PC_MAPPING,RIGHT($C145,1),MATCH($E$2,'Data by Building Type'!$D$22:$F$22,0))=\"Yes\",1,0)*\n(BE$10*OFFSET('Efficiency Distributions'!$D$10,MATCH($C145,'Efficiency Distributions'!$C$9:$C$87,0)+RIGHT($E151),0)\n+BE$11*OFFSET('Efficiency Distributions'!$E$10,MATCH($C145,'Efficiency Distributions'!$C$9:$C$87,0)+RIGHT($E151),0))\n/SUM(BE$10:BE$11)","v":0},{"$f":"IF(INDEX(PC_MAPPING,RIGHT($C145,1),MATCH($E$2,'Data by Building Type'!$D$22:$F$22,0))=\"Yes\",1,0)*\n(BF$10*OFFSET('Efficiency Distributions'!$D$10,MATCH($C145,'Efficiency Distributions'!$C$9:$C$87,0)+RIGHT($E151),0)\n+BF$11*OFFSET('Efficiency Distributions'!$E$10,MATCH($C145,'Efficiency Distributions'!$C$9:$C$87,0)+RIGHT($E151),0))\n/SUM(BF$10:BF$11)","v":0},{"$f":"IF(INDEX(PC_MAPPING,RIGHT($C145,1),MATCH($E$2,'Data by Building Type'!$D$22:$F$22,0))=\"Yes\",1,0)*\n(BG$10*OFFSET('Efficiency Distributions'!$D$10,MATCH($C145,'Efficiency Distributions'!$C$9:$C$87,0)+RIGHT($E151),0)\n+BG$11*OFFSET('Efficiency Distributions'!$E$10,MATCH($C145,'Efficiency Distributions'!$C$9:$C$87,0)+RIGHT($E151),0))\n/SUM(BG$10:BG$11)","v":0}]
[null,null,null,null,"EL3",{"$f":"IF(INDEX(PC_MAPPING,RIGHT($C145,1),MATCH($E$2,'Data by Building Type'!$D$22:$F$22,0))=\"Yes\",1,0)*\n(F$10*OFFSET('Efficiency Distributions'!$D$10,MATCH($C145,'Efficiency Distributions'!$C$9:$C$87,0)+RIGHT($E152),0)\n+F$11*OFFSET('Efficiency Distributions'!$E$10,MATCH($C145,'Efficiency Distributions'!$C$9:$C$87,0)+RIGHT($E152),0))\n/SUM(F$10:F$11)","v":0},{"$f":"IF(INDEX(PC_MAPPING,RIGHT($C145,1),MATCH($E$2,'Data by Building Type'!$D$22:$F$22,0))=\"Yes\",1,0)*\n(G$10*OFFSET('Efficiency Distributions'!$D$10,MATCH($C145,'Efficiency Distributions'!$C$9:$C$87,0)+RIGHT($E152),0)\n+G$11*OFFSET('Efficiency Distributions'!$E$10,MATCH($C145,'Efficiency Distributions'!$C$9:$C$87,0)+RIGHT($E152),0))\n/SUM(G$10:G$11)","v":0},{"$f":"IF(INDEX(PC_MAPPING,RIGHT($C145,1),MATCH($E$2,'Data by Building Type'!$D$22:$F$22,0))=\"Yes\",1,0)*\n(H$10*OFFSET('Efficiency Distributions'!$D$10,MATCH($C145,'Efficiency Distributions'!$C$9:$C$87,0)+RIGHT($E152),0)\n+H$11*OFFSET('Efficiency Distributions'!$E$10,MATCH($C145,'Efficiency Distributions'!$C$9:$C$87,0)+RIGHT($E152),0))\n/SUM(H$10:H$11)","v":0},{"$f":"IF(INDEX(PC_MAPPING,RIGHT($C145,1),MATCH($E$2,'Data by Building Type'!$D$22:$F$22,0))=\"Yes\",1,0)*\n(I$10*OFFSET('Efficiency Distributions'!$D$10,MATCH($C145,'Efficiency Distributions'!$C$9:$C$87,0)+RIGHT($E152),0)\n+I$11*OFFSET('Efficiency Distributions'!$E$10,MATCH($C145,'Efficiency Distributions'!$C$9:$C$87,0)+RIGHT($E152),0))\n/SUM(I$10:I$11)","v":0},{"$f":"IF(INDEX(PC_MAPPING,RIGHT($C145,1),MATCH($E$2,'Data by Building Type'!$D$22:$F$22,0))=\"Yes\",1,0)*\n(J$10*OFFSET('Efficiency Distributions'!$D$10,MATCH($C145,'Efficiency Distributions'!$C$9:$C$87,0)+RIGHT($E152),0)\n+J$11*OFFSET('Efficiency Distributions'!$E$10,MATCH($C145,'Efficiency Distributions'!$C$9:$C$87,0)+RIGHT($E152),0))\n/SUM(J$10:J$11)","v":0},{"$f":"IF(INDEX(PC_MAPPING,RIGHT($C145,1),MATCH($E$2,'Data by Building Type'!$D$22:$F$22,0))=\"Yes\",1,0)*\n(K$10*OFFSET('Efficiency Distributions'!$D$10,MATCH($C145,'Efficiency Distributions'!$C$9:$C$87,0)+RIGHT($E152),0)\n+K$11*OFFSET('Efficiency Distributions'!$E$10,MATCH($C145,'Efficiency Distributions'!$C$9:$C$87,0)+RIGHT($E152),0))\n/SUM(K$10:K$11)","v":0},{"$f":"IF(INDEX(PC_MAPPING,RIGHT($C145,1),MATCH($E$2,'Data by Building Type'!$D$22:$F$22,0))=\"Yes\",1,0)*\n(L$10*OFFSET('Efficiency Distributions'!$D$10,MATCH($C145,'Efficiency Distributions'!$C$9:$C$87,0)+RIGHT($E152),0)\n+L$11*OFFSET('Efficiency Distributions'!$E$10,MATCH($C145,'Efficiency Distributions'!$C$9:$C$87,0)+RIGHT($E152),0))\n/SUM(L$10:L$11)","v":0},{"$f":"IF(INDEX(PC_MAPPING,RIGHT($C145,1),MATCH($E$2,'Data by Building Type'!$D$22:$F$22,0))=\"Yes\",1,0)*\n(M$10*OFFSET('Efficiency Distributions'!$D$10,MATCH($C145,'Efficiency Distributions'!$C$9:$C$87,0)+RIGHT($E152),0)\n+M$11*OFFSET('Efficiency Distributions'!$E$10,MATCH($C145,'Efficiency Distributions'!$C$9:$C$87,0)+RIGHT($E152),0))\n/SUM(M$10:M$11)","v":0},{"$f":"IF(INDEX(PC_MAPPING,RIGHT($C145,1),MATCH($E$2,'Data by Building Type'!$D$22:$F$22,0))=\"Yes\",1,0)*\n(N$10*OFFSET('Efficiency Distributions'!$D$10,MATCH($C145,'Efficiency Distributions'!$C$9:$C$87,0)+RIGHT($E152),0)\n+N$11*OFFSET('Efficiency Distributions'!$E$10,MATCH($C145,'Efficiency Distributions'!$C$9:$C$87,0)+RIGHT($E152),0))\n/SUM(N$10:N$11)","v":0},{"$f":"IF(INDEX(PC_MAPPING,RIGHT($C145,1),MATCH($E$2,'Data by Building Type'!$D$22:$F$22,0))=\"Yes\",1,0)*\n(O$10*OFFSET('Efficiency Distributions'!$D$10,MATCH($C145,'Efficiency Distributions'!$C$9:$C$87,0)+RIGHT($E152),0)\n+O$11*OFFSET('Efficiency Distributions'!$E$10,MATCH($C145,'Efficiency Distributions'!$C$9:$C$87,0)+RIGHT($E152),0))\n/SUM(O$10:O$11)","v":0},{"$f":"IF(INDEX(PC_MAPPING,RIGHT($C145,1),MATCH($E$2,'Data by Building Type'!$D$22:$F$22,0))=\"Yes\",1,0)*\n(P$10*OFFSET('Efficiency Distributions'!$D$10,MATCH($C145,'Efficiency Distributions'!$C$9:$C$87,0)+RIGHT($E152),0)\n+P$11*OFFSET('Efficiency Distributions'!$E$10,MATCH($C145,'Efficiency Distributions'!$C$9:$C$87,0)+RIGHT($E152),0))\n/SUM(P$10:P$11)","v":0},{"$f":"IF(INDEX(PC_MAPPING,RIGHT($C145,1),MATCH($E$2,'Data by Building Type'!$D$22:$F$22,0))=\"Yes\",1,0)*\n(Q$10*OFFSET('Efficiency Distributions'!$D$10,MATCH($C145,'Efficiency Distributions'!$C$9:$C$87,0)+RIGHT($E152),0)\n+Q$11*OFFSET('Efficiency Distributions'!$E$10,MATCH($C145,'Efficiency Distributions'!$C$9:$C$87,0)+RIGHT($E152),0))\n/SUM(Q$10:Q$11)","v":0},{"$f":"IF(INDEX(PC_MAPPING,RIGHT($C145,1),MATCH($E$2,'Data by Building Type'!$D$22:$F$22,0))=\"Yes\",1,0)*\n(R$10*OFFSET('Efficiency Distributions'!$D$10,MATCH($C145,'Efficiency Distributions'!$C$9:$C$87,0)+RIGHT($E152),0)\n+R$11*OFFSET('Efficiency Distributions'!$E$10,MATCH($C145,'Efficiency Distributions'!$C$9:$C$87,0)+RIGHT($E152),0))\n/SUM(R$10:R$11)","v":0},{"$f":"IF(INDEX(PC_MAPPING,RIGHT($C145,1),MATCH($E$2,'Data by Building Type'!$D$22:$F$22,0))=\"Yes\",1,0)*\n(S$10*OFFSET('Efficiency Distributions'!$D$10,MATCH($C145,'Efficiency Distributions'!$C$9:$C$87,0)+RIGHT($E152),0)\n+S$11*OFFSET('Efficiency Distributions'!$E$10,MATCH($C145,'Efficiency Distributions'!$C$9:$C$87,0)+RIGHT($E152),0))\n/SUM(S$10:S$11)","v":0},{"$f":"IF(INDEX(PC_MAPPING,RIGHT($C145,1),MATCH($E$2,'Data by Building Type'!$D$22:$F$22,0))=\"Yes\",1,0)*\n(T$10*OFFSET('Efficiency Distributions'!$D$10,MATCH($C145,'Efficiency Distributions'!$C$9:$C$87,0)+RIGHT($E152),0)\n+T$11*OFFSET('Efficiency Distributions'!$E$10,MATCH($C145,'Efficiency Distributions'!$C$9:$C$87,0)+RIGHT($E152),0))\n/SUM(T$10:T$11)","v":0},{"$f":"IF(INDEX(PC_MAPPING,RIGHT($C145,1),MATCH($E$2,'Data by Building Type'!$D$22:$F$22,0))=\"Yes\",1,0)*\n(U$10*OFFSET('Efficiency Distributions'!$D$10,MATCH($C145,'Efficiency Distributions'!$C$9:$C$87,0)+RIGHT($E152),0)\n+U$11*OFFSET('Efficiency Distributions'!$E$10,MATCH($C145,'Efficiency Distributions'!$C$9:$C$87,0)+RIGHT($E152),0))\n/SUM(U$10:U$11)","v":0},{"$f":"IF(INDEX(PC_MAPPING,RIGHT($C145,1),MATCH($E$2,'Data by Building Type'!$D$22:$F$22,0))=\"Yes\",1,0)*\n(V$10*OFFSET('Efficiency Distributions'!$D$10,MATCH($C145,'Efficiency Distributions'!$C$9:$C$87,0)+RIGHT($E152),0)\n+V$11*OFFSET('Efficiency Distributions'!$E$10,MATCH($C145,'Efficiency Distributions'!$C$9:$C$87,0)+RIGHT($E152),0))\n/SUM(V$10:V$11)","v":0},{"$f":"IF(INDEX(PC_MAPPING,RIGHT($C145,1),MATCH($E$2,'Data by Building Type'!$D$22:$F$22,0))=\"Yes\",1,0)*\n(W$10*OFFSET('Efficiency Distributions'!$D$10,MATCH($C145,'Efficiency Distributions'!$C$9:$C$87,0)+RIGHT($E152),0)\n+W$11*OFFSET('Efficiency Distributions'!$E$10,MATCH($C145,'Efficiency Distributions'!$C$9:$C$87,0)+RIGHT($E152),0))\n/SUM(W$10:W$11)","v":0},{"$f":"IF(INDEX(PC_MAPPING,RIGHT($C145,1),MATCH($E$2,'Data by Building Type'!$D$22:$F$22,0))=\"Yes\",1,0)*\n(X$10*OFFSET('Efficiency Distributions'!$D$10,MATCH($C145,'Efficiency Distributions'!$C$9:$C$87,0)+RIGHT($E152),0)\n+X$11*OFFSET('Efficiency Distributions'!$E$10,MATCH($C145,'Efficiency Distributions'!$C$9:$C$87,0)+RIGHT($E152),0))\n/SUM(X$10:X$11)","v":0},{"$f":"IF(INDEX(PC_MAPPING,RIGHT($C145,1),MATCH($E$2,'Data by Building Type'!$D$22:$F$22,0))=\"Yes\",1,0)*\n(Y$10*OFFSET('Efficiency Distributions'!$D$10,MATCH($C145,'Efficiency Distributions'!$C$9:$C$87,0)+RIGHT($E152),0)\n+Y$11*OFFSET('Efficiency Distributions'!$E$10,MATCH($C145,'Efficiency Distributions'!$C$9:$C$87,0)+RIGHT($E152),0))\n/SUM(Y$10:Y$11)","v":0},{"$f":"IF(INDEX(PC_MAPPING,RIGHT($C145,1),MATCH($E$2,'Data by Building Type'!$D$22:$F$22,0))=\"Yes\",1,0)*\n(Z$10*OFFSET('Efficiency Distributions'!$D$10,MATCH($C145,'Efficiency Distributions'!$C$9:$C$87,0)+RIGHT($E152),0)\n+Z$11*OFFSET('Efficiency Distributions'!$E$10,MATCH($C145,'Efficiency Distributions'!$C$9:$C$87,0)+RIGHT($E152),0))\n/SUM(Z$10:Z$11)","v":0},{"$f":"IF(INDEX(PC_MAPPING,RIGHT($C145,1),MATCH($E$2,'Data by Building Type'!$D$22:$F$22,0))=\"Yes\",1,0)*\n(AA$10*OFFSET('Efficiency Distributions'!$D$10,MATCH($C145,'Efficiency Distributions'!$C$9:$C$87,0)+RIGHT($E152),0)\n+AA$11*OFFSET('Efficiency Distributions'!$E$10,MATCH($C145,'Efficiency Distributions'!$C$9:$C$87,0)+RIGHT($E152),0))\n/SUM(AA$10:AA$11)","v":0},{"$f":"IF(INDEX(PC_MAPPING,RIGHT($C145,1),MATCH($E$2,'Data by Building Type'!$D$22:$F$22,0))=\"Yes\",1,0)*\n(AB$10*OFFSET('Efficiency Distributions'!$D$10,MATCH($C145,'Efficiency Distributions'!$C$9:$C$87,0)+RIGHT($E152),0)\n+AB$11*OFFSET('Efficiency Distributions'!$E$10,MATCH($C145,'Efficiency Distributions'!$C$9:$C$87,0)+RIGHT($E152),0))\n/SUM(AB$10:AB$11)","v":0},{"$f":"IF(INDEX(PC_MAPPING,RIGHT($C145,1),MATCH($E$2,'Data by Building Type'!$D$22:$F$22,0))=\"Yes\",1,0)*\n(AC$10*OFFSET('Efficiency Distributions'!$D$10,MATCH($C145,'Efficiency Distributions'!$C$9:$C$87,0)+RIGHT($E152),0)\n+AC$11*OFFSET('Efficiency Distributions'!$E$10,MATCH($C145,'Efficiency Distributions'!$C$9:$C$87,0)+RIGHT($E152),0))\n/SUM(AC$10:AC$11)","v":0},{"$f":"IF(INDEX(PC_MAPPING,RIGHT($C145,1),MATCH($E$2,'Data by Building Type'!$D$22:$F$22,0))=\"Yes\",1,0)*\n(AD$10*OFFSET('Efficiency Distributions'!$D$10,MATCH($C145,'Efficiency Distributions'!$C$9:$C$87,0)+RIGHT($E152),0)\n+AD$11*OFFSET('Efficiency Distributions'!$E$10,MATCH($C145,'Efficiency Distributions'!$C$9:$C$87,0)+RIGHT($E152),0))\n/SUM(AD$10:AD$11)","v":0},{"$f":"IF(INDEX(PC_MAPPING,RIGHT($C145,1),MATCH($E$2,'Data by Building Type'!$D$22:$F$22,0))=\"Yes\",1,0)*\n(AE$10*OFFSET('Efficiency Distributions'!$D$10,MATCH($C145,'Efficiency Distributions'!$C$9:$C$87,0)+RIGHT($E152),0)\n+AE$11*OFFSET('Efficiency Distributions'!$E$10,MATCH($C145,'Efficiency Distributions'!$C$9:$C$87,0)+RIGHT($E152),0))\n/SUM(AE$10:AE$11)","v":0},{"$f":"IF(INDEX(PC_MAPPING,RIGHT($C145,1),MATCH($E$2,'Data by Building Type'!$D$22:$F$22,0))=\"Yes\",1,0)*\n(AF$10*OFFSET('Efficiency Distributions'!$D$10,MATCH($C145,'Efficiency Distributions'!$C$9:$C$87,0)+RIGHT($E152),0)\n+AF$11*OFFSET('Efficiency Distributions'!$E$10,MATCH($C145,'Efficiency Distributions'!$C$9:$C$87,0)+RIGHT($E152),0))\n/SUM(AF$10:AF$11)","v":0},{"$f":"IF(INDEX(PC_MAPPING,RIGHT($C145,1),MATCH($E$2,'Data by Building Type'!$D$22:$F$22,0))=\"Yes\",1,0)*\n(AG$10*OFFSET('Efficiency Distributions'!$D$10,MATCH($C145,'Efficiency Distributions'!$C$9:$C$87,0)+RIGHT($E152),0)\n+AG$11*OFFSET('Efficiency Distributions'!$E$10,MATCH($C145,'Efficiency Distributions'!$C$9:$C$87,0)+RIGHT($E152),0))\n/SUM(AG$10:AG$11)","v":0},{"$f":"IF(INDEX(PC_MAPPING,RIGHT($C145,1),MATCH($E$2,'Data by Building Type'!$D$22:$F$22,0))=\"Yes\",1,0)*\n(AH$10*OFFSET('Efficiency Distributions'!$D$10,MATCH($C145,'Efficiency Distributions'!$C$9:$C$87,0)+RIGHT($E152),0)\n+AH$11*OFFSET('Efficiency Distributions'!$E$10,MATCH($C145,'Efficiency Distributions'!$C$9:$C$87,0)+RIGHT($E152),0))\n/SUM(AH$10:AH$11)","v":0},{"$f":"IF(INDEX(PC_MAPPING,RIGHT($C145,1),MATCH($E$2,'Data by Building Type'!$D$22:$F$22,0))=\"Yes\",1,0)*\n(AI$10*OFFSET('Efficiency Distributions'!$D$10,MATCH($C145,'Efficiency Distributions'!$C$9:$C$87,0)+RIGHT($E152),0)\n+AI$11*OFFSET('Efficiency Distributions'!$E$10,MATCH($C145,'Efficiency Distributions'!$C$9:$C$87,0)+RIGHT($E152),0))\n/SUM(AI$10:AI$11)","v":0},{"$f":"IF(INDEX(PC_MAPPING,RIGHT($C145,1),MATCH($E$2,'Data by Building Type'!$D$22:$F$22,0))=\"Yes\",1,0)*\n(AJ$10*OFFSET('Efficiency Distributions'!$D$10,MATCH($C145,'Efficiency Distributions'!$C$9:$C$87,0)+RIGHT($E152),0)\n+AJ$11*OFFSET('Efficiency Distributions'!$E$10,MATCH($C145,'Efficiency Distributions'!$C$9:$C$87,0)+RIGHT($E152),0))\n/SUM(AJ$10:AJ$11)","v":0},{"$f":"IF(INDEX(PC_MAPPING,RIGHT($C145,1),MATCH($E$2,'Data by Building Type'!$D$22:$F$22,0))=\"Yes\",1,0)*\n(AK$10*OFFSET('Efficiency Distributions'!$D$10,MATCH($C145,'Efficiency Distributions'!$C$9:$C$87,0)+RIGHT($E152),0)\n+AK$11*OFFSET('Efficiency Distributions'!$E$10,MATCH($C145,'Efficiency Distributions'!$C$9:$C$87,0)+RIGHT($E152),0))\n/SUM(AK$10:AK$11)","v":0},{"$f":"IF(INDEX(PC_MAPPING,RIGHT($C145,1),MATCH($E$2,'Data by Building Type'!$D$22:$F$22,0))=\"Yes\",1,0)*\n(AL$10*OFFSET('Efficiency Distributions'!$D$10,MATCH($C145,'Efficiency Distributions'!$C$9:$C$87,0)+RIGHT($E152),0)\n+AL$11*OFFSET('Efficiency Distributions'!$E$10,MATCH($C145,'Efficiency Distributions'!$C$9:$C$87,0)+RIGHT($E152),0))\n/SUM(AL$10:AL$11)","v":0},{"$f":"IF(INDEX(PC_MAPPING,RIGHT($C145,1),MATCH($E$2,'Data by Building Type'!$D$22:$F$22,0))=\"Yes\",1,0)*\n(AM$10*OFFSET('Efficiency Distributions'!$D$10,MATCH($C145,'Efficiency Distributions'!$C$9:$C$87,0)+RIGHT($E152),0)\n+AM$11*OFFSET('Efficiency Distributions'!$E$10,MATCH($C145,'Efficiency Distributions'!$C$9:$C$87,0)+RIGHT($E152),0))\n/SUM(AM$10:AM$11)","v":0},{"$f":"IF(INDEX(PC_MAPPING,RIGHT($C145,1),MATCH($E$2,'Data by Building Type'!$D$22:$F$22,0))=\"Yes\",1,0)*\n(AN$10*OFFSET('Efficiency Distributions'!$D$10,MATCH($C145,'Efficiency Distributions'!$C$9:$C$87,0)+RIGHT($E152),0)\n+AN$11*OFFSET('Efficiency Distributions'!$E$10,MATCH($C145,'Efficiency Distributions'!$C$9:$C$87,0)+RIGHT($E152),0))\n/SUM(AN$10:AN$11)","v":0},{"$f":"IF(INDEX(PC_MAPPING,RIGHT($C145,1),MATCH($E$2,'Data by Building Type'!$D$22:$F$22,0))=\"Yes\",1,0)*\n(AO$10*OFFSET('Efficiency Distributions'!$D$10,MATCH($C145,'Efficiency Distributions'!$C$9:$C$87,0)+RIGHT($E152),0)\n+AO$11*OFFSET('Efficiency Distributions'!$E$10,MATCH($C145,'Efficiency Distributions'!$C$9:$C$87,0)+RIGHT($E152),0))\n/SUM(AO$10:AO$11)","v":0},{"$f":"IF(INDEX(PC_MAPPING,RIGHT($C145,1),MATCH($E$2,'Data by Building Type'!$D$22:$F$22,0))=\"Yes\",1,0)*\n(AP$10*OFFSET('Efficiency Distributions'!$D$10,MATCH($C145,'Efficiency Distributions'!$C$9:$C$87,0)+RIGHT($E152),0)\n+AP$11*OFFSET('Efficiency Distributions'!$E$10,MATCH($C145,'Efficiency Distributions'!$C$9:$C$87,0)+RIGHT($E152),0))\n/SUM(AP$10:AP$11)","v":0},{"$f":"IF(INDEX(PC_MAPPING,RIGHT($C145,1),MATCH($E$2,'Data by Building Type'!$D$22:$F$22,0))=\"Yes\",1,0)*\n(AQ$10*OFFSET('Efficiency Distributions'!$D$10,MATCH($C145,'Efficiency Distributions'!$C$9:$C$87,0)+RIGHT($E152),0)\n+AQ$11*OFFSET('Efficiency Distributions'!$E$10,MATCH($C145,'Efficiency Distributions'!$C$9:$C$87,0)+RIGHT($E152),0))\n/SUM(AQ$10:AQ$11)","v":0},{"$f":"IF(INDEX(PC_MAPPING,RIGHT($C145,1),MATCH($E$2,'Data by Building Type'!$D$22:$F$22,0))=\"Yes\",1,0)*\n(AR$10*OFFSET('Efficiency Distributions'!$D$10,MATCH($C145,'Efficiency Distributions'!$C$9:$C$87,0)+RIGHT($E152),0)\n+AR$11*OFFSET('Efficiency Distributions'!$E$10,MATCH($C145,'Efficiency Distributions'!$C$9:$C$87,0)+RIGHT($E152),0))\n/SUM(AR$10:AR$11)","v":0},{"$f":"IF(INDEX(PC_MAPPING,RIGHT($C145,1),MATCH($E$2,'Data by Building Type'!$D$22:$F$22,0))=\"Yes\",1,0)*\n(AS$10*OFFSET('Efficiency Distributions'!$D$10,MATCH($C145,'Efficiency Distributions'!$C$9:$C$87,0)+RIGHT($E152),0)\n+AS$11*OFFSET('Efficiency Distributions'!$E$10,MATCH($C145,'Efficiency Distributions'!$C$9:$C$87,0)+RIGHT($E152),0))\n/SUM(AS$10:AS$11)","v":0},{"$f":"IF(INDEX(PC_MAPPING,RIGHT($C145,1),MATCH($E$2,'Data by Building Type'!$D$22:$F$22,0))=\"Yes\",1,0)*\n(AT$10*OFFSET('Efficiency Distributions'!$D$10,MATCH($C145,'Efficiency Distributions'!$C$9:$C$87,0)+RIGHT($E152),0)\n+AT$11*OFFSET('Efficiency Distributions'!$E$10,MATCH($C145,'Efficiency Distributions'!$C$9:$C$87,0)+RIGHT($E152),0))\n/SUM(AT$10:AT$11)","v":0},{"$f":"IF(INDEX(PC_MAPPING,RIGHT($C145,1),MATCH($E$2,'Data by Building Type'!$D$22:$F$22,0))=\"Yes\",1,0)*\n(AU$10*OFFSET('Efficiency Distributions'!$D$10,MATCH($C145,'Efficiency Distributions'!$C$9:$C$87,0)+RIGHT($E152),0)\n+AU$11*OFFSET('Efficiency Distributions'!$E$10,MATCH($C145,'Efficiency Distributions'!$C$9:$C$87,0)+RIGHT($E152),0))\n/SUM(AU$10:AU$11)","v":0},{"$f":"IF(INDEX(PC_MAPPING,RIGHT($C145,1),MATCH($E$2,'Data by Building Type'!$D$22:$F$22,0))=\"Yes\",1,0)*\n(AV$10*OFFSET('Efficiency Distributions'!$D$10,MATCH($C145,'Efficiency Distributions'!$C$9:$C$87,0)+RIGHT($E152),0)\n+AV$11*OFFSET('Efficiency Distributions'!$E$10,MATCH($C145,'Efficiency Distributions'!$C$9:$C$87,0)+RIGHT($E152),0))\n/SUM(AV$10:AV$11)","v":0},{"$f":"IF(INDEX(PC_MAPPING,RIGHT($C145,1),MATCH($E$2,'Data by Building Type'!$D$22:$F$22,0))=\"Yes\",1,0)*\n(AW$10*OFFSET('Efficiency Distributions'!$D$10,MATCH($C145,'Efficiency Distributions'!$C$9:$C$87,0)+RIGHT($E152),0)\n+AW$11*OFFSET('Efficiency Distributions'!$E$10,MATCH($C145,'Efficiency Distributions'!$C$9:$C$87,0)+RIGHT($E152),0))\n/SUM(AW$10:AW$11)","v":0},{"$f":"IF(INDEX(PC_MAPPING,RIGHT($C145,1),MATCH($E$2,'Data by Building Type'!$D$22:$F$22,0))=\"Yes\",1,0)*\n(AX$10*OFFSET('Efficiency Distributions'!$D$10,MATCH($C145,'Efficiency Distributions'!$C$9:$C$87,0)+RIGHT($E152),0)\n+AX$11*OFFSET('Efficiency Distributions'!$E$10,MATCH($C145,'Efficiency Distributions'!$C$9:$C$87,0)+RIGHT($E152),0))\n/SUM(AX$10:AX$11)","v":0},{"$f":"IF(INDEX(PC_MAPPING,RIGHT($C145,1),MATCH($E$2,'Data by Building Type'!$D$22:$F$22,0))=\"Yes\",1,0)*\n(AY$10*OFFSET('Efficiency Distributions'!$D$10,MATCH($C145,'Efficiency Distributions'!$C$9:$C$87,0)+RIGHT($E152),0)\n+AY$11*OFFSET('Efficiency Distributions'!$E$10,MATCH($C145,'Efficiency Distributions'!$C$9:$C$87,0)+RIGHT($E152),0))\n/SUM(AY$10:AY$11)","v":0},{"$f":"IF(INDEX(PC_MAPPING,RIGHT($C145,1),MATCH($E$2,'Data by Building Type'!$D$22:$F$22,0))=\"Yes\",1,0)*\n(AZ$10*OFFSET('Efficiency Distributions'!$D$10,MATCH($C145,'Efficiency Distributions'!$C$9:$C$87,0)+RIGHT($E152),0)\n+AZ$11*OFFSET('Efficiency Distributions'!$E$10,MATCH($C145,'Efficiency Distributions'!$C$9:$C$87,0)+RIGHT($E152),0))\n/SUM(AZ$10:AZ$11)","v":0},{"$f":"IF(INDEX(PC_MAPPING,RIGHT($C145,1),MATCH($E$2,'Data by Building Type'!$D$22:$F$22,0))=\"Yes\",1,0)*\n(BA$10*OFFSET('Efficiency Distributions'!$D$10,MATCH($C145,'Efficiency Distributions'!$C$9:$C$87,0)+RIGHT($E152),0)\n+BA$11*OFFSET('Efficiency Distributions'!$E$10,MATCH($C145,'Efficiency Distributions'!$C$9:$C$87,0)+RIGHT($E152),0))\n/SUM(BA$10:BA$11)","v":0},{"$f":"IF(INDEX(PC_MAPPING,RIGHT($C145,1),MATCH($E$2,'Data by Building Type'!$D$22:$F$22,0))=\"Yes\",1,0)*\n(BB$10*OFFSET('Efficiency Distributions'!$D$10,MATCH($C145,'Efficiency Distributions'!$C$9:$C$87,0)+RIGHT($E152),0)\n+BB$11*OFFSET('Efficiency Distributions'!$E$10,MATCH($C145,'Efficiency Distributions'!$C$9:$C$87,0)+RIGHT($E152),0))\n/SUM(BB$10:BB$11)","v":0},{"$f":"IF(INDEX(PC_MAPPING,RIGHT($C145,1),MATCH($E$2,'Data by Building Type'!$D$22:$F$22,0))=\"Yes\",1,0)*\n(BC$10*OFFSET('Efficiency Distributions'!$D$10,MATCH($C145,'Efficiency Distributions'!$C$9:$C$87,0)+RIGHT($E152),0)\n+BC$11*OFFSET('Efficiency Distributions'!$E$10,MATCH($C145,'Efficiency Distributions'!$C$9:$C$87,0)+RIGHT($E152),0))\n/SUM(BC$10:BC$11)","v":0},{"$f":"IF(INDEX(PC_MAPPING,RIGHT($C145,1),MATCH($E$2,'Data by Building Type'!$D$22:$F$22,0))=\"Yes\",1,0)*\n(BD$10*OFFSET('Efficiency Distributions'!$D$10,MATCH($C145,'Efficiency Distributions'!$C$9:$C$87,0)+RIGHT($E152),0)\n+BD$11*OFFSET('Efficiency Distributions'!$E$10,MATCH($C145,'Efficiency Distributions'!$C$9:$C$87,0)+RIGHT($E152),0))\n/SUM(BD$10:BD$11)","v":0},{"$f":"IF(INDEX(PC_MAPPING,RIGHT($C145,1),MATCH($E$2,'Data by Building Type'!$D$22:$F$22,0))=\"Yes\",1,0)*\n(BE$10*OFFSET('Efficiency Distributions'!$D$10,MATCH($C145,'Efficiency Distributions'!$C$9:$C$87,0)+RIGHT($E152),0)\n+BE$11*OFFSET('Efficiency Distributions'!$E$10,MATCH($C145,'Efficiency Distributions'!$C$9:$C$87,0)+RIGHT($E152),0))\n/SUM(BE$10:BE$11)","v":0},{"$f":"IF(INDEX(PC_MAPPING,RIGHT($C145,1),MATCH($E$2,'Data by Building Type'!$D$22:$F$22,0))=\"Yes\",1,0)*\n(BF$10*OFFSET('Efficiency Distributions'!$D$10,MATCH($C145,'Efficiency Distributions'!$C$9:$C$87,0)+RIGHT($E152),0)\n+BF$11*OFFSET('Efficiency Distributions'!$E$10,MATCH($C145,'Efficiency Distributions'!$C$9:$C$87,0)+RIGHT($E152),0))\n/SUM(BF$10:BF$11)","v":0},{"$f":"IF(INDEX(PC_MAPPING,RIGHT($C145,1),MATCH($E$2,'Data by Building Type'!$D$22:$F$22,0))=\"Yes\",1,0)*\n(BG$10*OFFSET('Efficiency Distributions'!$D$10,MATCH($C145,'Efficiency Distributions'!$C$9:$C$87,0)+RIGHT($E152),0)\n+BG$11*OFFSET('Efficiency Distributions'!$E$10,MATCH($C145,'Efficiency Distributions'!$C$9:$C$87,0)+RIGHT($E152),0))\n/SUM(BG$10:BG$11)","v":0}]
[null,null,null,null,"EL4",{"$f":"IF(INDEX(PC_MAPPING,RIGHT($C145,1),MATCH($E$2,'Data by Building Type'!$D$22:$F$22,0))=\"Yes\",1,0)*\n(F$10*OFFSET('Efficiency Distributions'!$D$10,MATCH($C145,'Efficiency Distributions'!$C$9:$C$87,0)+RIGHT($E153),0)\n+F$11*OFFSET('Efficiency Distributions'!$E$10,MATCH($C145,'Efficiency Distributions'!$C$9:$C$87,0)+RIGHT($E153),0))\n/SUM(F$10:F$11)","v":0},{"$f":"IF(INDEX(PC_MAPPING,RIGHT($C145,1),MATCH($E$2,'Data by Building Type'!$D$22:$F$22,0))=\"Yes\",1,0)*\n(G$10*OFFSET('Efficiency Distributions'!$D$10,MATCH($C145,'Efficiency Distributions'!$C$9:$C$87,0)+RIGHT($E153),0)\n+G$11*OFFSET('Efficiency Distributions'!$E$10,MATCH($C145,'Efficiency Distributions'!$C$9:$C$87,0)+RIGHT($E153),0))\n/SUM(G$10:G$11)","v":0},{"$f":"IF(INDEX(PC_MAPPING,RIGHT($C145,1),MATCH($E$2,'Data by Building Type'!$D$22:$F$22,0))=\"Yes\",1,0)*\n(H$10*OFFSET('Efficiency Distributions'!$D$10,MATCH($C145,'Efficiency Distributions'!$C$9:$C$87,0)+RIGHT($E153),0)\n+H$11*OFFSET('Efficiency Distributions'!$E$10,MATCH($C145,'Efficiency Distributions'!$C$9:$C$87,0)+RIGHT($E153),0))\n/SUM(H$10:H$11)","v":0},{"$f":"IF(INDEX(PC_MAPPING,RIGHT($C145,1),MATCH($E$2,'Data by Building Type'!$D$22:$F$22,0))=\"Yes\",1,0)*\n(I$10*OFFSET('Efficiency Distributions'!$D$10,MATCH($C145,'Efficiency Distributions'!$C$9:$C$87,0)+RIGHT($E153),0)\n+I$11*OFFSET('Efficiency Distributions'!$E$10,MATCH($C145,'Efficiency Distributions'!$C$9:$C$87,0)+RIGHT($E153),0))\n/SUM(I$10:I$11)","v":0},{"$f":"IF(INDEX(PC_MAPPING,RIGHT($C145,1),MATCH($E$2,'Data by Building Type'!$D$22:$F$22,0))=\"Yes\",1,0)*\n(J$10*OFFSET('Efficiency Distributions'!$D$10,MATCH($C145,'Efficiency Distributions'!$C$9:$C$87,0)+RIGHT($E153),0)\n+J$11*OFFSET('Efficiency Distributions'!$E$10,MATCH($C145,'Efficiency Distributions'!$C$9:$C$87,0)+RIGHT($E153),0))\n/SUM(J$10:J$11)","v":0},{"$f":"IF(INDEX(PC_MAPPING,RIGHT($C145,1),MATCH($E$2,'Data by Building Type'!$D$22:$F$22,0))=\"Yes\",1,0)*\n(K$10*OFFSET('Efficiency Distributions'!$D$10,MATCH($C145,'Efficiency Distributions'!$C$9:$C$87,0)+RIGHT($E153),0)\n+K$11*OFFSET('Efficiency Distributions'!$E$10,MATCH($C145,'Efficiency Distributions'!$C$9:$C$87,0)+RIGHT($E153),0))\n/SUM(K$10:K$11)","v":0},{"$f":"IF(INDEX(PC_MAPPING,RIGHT($C145,1),MATCH($E$2,'Data by Building Type'!$D$22:$F$22,0))=\"Yes\",1,0)*\n(L$10*OFFSET('Efficiency Distributions'!$D$10,MATCH($C145,'Efficiency Distributions'!$C$9:$C$87,0)+RIGHT($E153),0)\n+L$11*OFFSET('Efficiency Distributions'!$E$10,MATCH($C145,'Efficiency Distributions'!$C$9:$C$87,0)+RIGHT($E153),0))\n/SUM(L$10:L$11)","v":0},{"$f":"IF(INDEX(PC_MAPPING,RIGHT($C145,1),MATCH($E$2,'Data by Building Type'!$D$22:$F$22,0))=\"Yes\",1,0)*\n(M$10*OFFSET('Efficiency Distributions'!$D$10,MATCH($C145,'Efficiency Distributions'!$C$9:$C$87,0)+RIGHT($E153),0)\n+M$11*OFFSET('Efficiency Distributions'!$E$10,MATCH($C145,'Efficiency Distributions'!$C$9:$C$87,0)+RIGHT($E153),0))\n/SUM(M$10:M$11)","v":0},{"$f":"IF(INDEX(PC_MAPPING,RIGHT($C145,1),MATCH($E$2,'Data by Building Type'!$D$22:$F$22,0))=\"Yes\",1,0)*\n(N$10*OFFSET('Efficiency Distributions'!$D$10,MATCH($C145,'Efficiency Distributions'!$C$9:$C$87,0)+RIGHT($E153),0)\n+N$11*OFFSET('Efficiency Distributions'!$E$10,MATCH($C145,'Efficiency Distributions'!$C$9:$C$87,0)+RIGHT($E153),0))\n/SUM(N$10:N$11)","v":0},{"$f":"IF(INDEX(PC_MAPPING,RIGHT($C145,1),MATCH($E$2,'Data by Building Type'!$D$22:$F$22,0))=\"Yes\",1,0)*\n(O$10*OFFSET('Efficiency Distributions'!$D$10,MATCH($C145,'Efficiency Distributions'!$C$9:$C$87,0)+RIGHT($E153),0)\n+O$11*OFFSET('Efficiency Distributions'!$E$10,MATCH($C145,'Efficiency Distributions'!$C$9:$C$87,0)+RIGHT($E153),0))\n/SUM(O$10:O$11)","v":0},{"$f":"IF(INDEX(PC_MAPPING,RIGHT($C145,1),MATCH($E$2,'Data by Building Type'!$D$22:$F$22,0))=\"Yes\",1,0)*\n(P$10*OFFSET('Efficiency Distributions'!$D$10,MATCH($C145,'Efficiency Distributions'!$C$9:$C$87,0)+RIGHT($E153),0)\n+P$11*OFFSET('Efficiency Distributions'!$E$10,MATCH($C145,'Efficiency Distributions'!$C$9:$C$87,0)+RIGHT($E153),0))\n/SUM(P$10:P$11)","v":0},{"$f":"IF(INDEX(PC_MAPPING,RIGHT($C145,1),MATCH($E$2,'Data by Building Type'!$D$22:$F$22,0))=\"Yes\",1,0)*\n(Q$10*OFFSET('Efficiency Distributions'!$D$10,MATCH($C145,'Efficiency Distributions'!$C$9:$C$87,0)+RIGHT($E153),0)\n+Q$11*OFFSET('Efficiency Distributions'!$E$10,MATCH($C145,'Efficiency Distributions'!$C$9:$C$87,0)+RIGHT($E153),0))\n/SUM(Q$10:Q$11)","v":0},{"$f":"IF(INDEX(PC_MAPPING,RIGHT($C145,1),MATCH($E$2,'Data by Building Type'!$D$22:$F$22,0))=\"Yes\",1,0)*\n(R$10*OFFSET('Efficiency Distributions'!$D$10,MATCH($C145,'Efficiency Distributions'!$C$9:$C$87,0)+RIGHT($E153),0)\n+R$11*OFFSET('Efficiency Distributions'!$E$10,MATCH($C145,'Efficiency Distributions'!$C$9:$C$87,0)+RIGHT($E153),0))\n/SUM(R$10:R$11)","v":0},{"$f":"IF(INDEX(PC_MAPPING,RIGHT($C145,1),MATCH($E$2,'Data by Building Type'!$D$22:$F$22,0))=\"Yes\",1,0)*\n(S$10*OFFSET('Efficiency Distributions'!$D$10,MATCH($C145,'Efficiency Distributions'!$C$9:$C$87,0)+RIGHT($E153),0)\n+S$11*OFFSET('Efficiency Distributions'!$E$10,MATCH($C145,'Efficiency Distributions'!$C$9:$C$87,0)+RIGHT($E153),0))\n/SUM(S$10:S$11)","v":0},{"$f":"IF(INDEX(PC_MAPPING,RIGHT($C145,1),MATCH($E$2,'Data by Building Type'!$D$22:$F$22,0))=\"Yes\",1,0)*\n(T$10*OFFSET('Efficiency Distributions'!$D$10,MATCH($C145,'Efficiency Distributions'!$C$9:$C$87,0)+RIGHT($E153),0)\n+T$11*OFFSET('Efficiency Distributions'!$E$10,MATCH($C145,'Efficiency Distributions'!$C$9:$C$87,0)+RIGHT($E153),0))\n/SUM(T$10:T$11)","v":0},{"$f":"IF(INDEX(PC_MAPPING,RIGHT($C145,1),MATCH($E$2,'Data by Building Type'!$D$22:$F$22,0))=\"Yes\",1,0)*\n(U$10*OFFSET('Efficiency Distributions'!$D$10,MATCH($C145,'Efficiency Distributions'!$C$9:$C$87,0)+RIGHT($E153),0)\n+U$11*OFFSET('Efficiency Distributions'!$E$10,MATCH($C145,'Efficiency Distributions'!$C$9:$C$87,0)+RIGHT($E153),0))\n/SUM(U$10:U$11)","v":0},{"$f":"IF(INDEX(PC_MAPPING,RIGHT($C145,1),MATCH($E$2,'Data by Building Type'!$D$22:$F$22,0))=\"Yes\",1,0)*\n(V$10*OFFSET('Efficiency Distributions'!$D$10,MATCH($C145,'Efficiency Distributions'!$C$9:$C$87,0)+RIGHT($E153),0)\n+V$11*OFFSET('Efficiency Distributions'!$E$10,MATCH($C145,'Efficiency Distributions'!$C$9:$C$87,0)+RIGHT($E153),0))\n/SUM(V$10:V$11)","v":0},{"$f":"IF(INDEX(PC_MAPPING,RIGHT($C145,1),MATCH($E$2,'Data by Building Type'!$D$22:$F$22,0))=\"Yes\",1,0)*\n(W$10*OFFSET('Efficiency Distributions'!$D$10,MATCH($C145,'Efficiency Distributions'!$C$9:$C$87,0)+RIGHT($E153),0)\n+W$11*OFFSET('Efficiency Distributions'!$E$10,MATCH($C145,'Efficiency Distributions'!$C$9:$C$87,0)+RIGHT($E153),0))\n/SUM(W$10:W$11)","v":0},{"$f":"IF(INDEX(PC_MAPPING,RIGHT($C145,1),MATCH($E$2,'Data by Building Type'!$D$22:$F$22,0))=\"Yes\",1,0)*\n(X$10*OFFSET('Efficiency Distributions'!$D$10,MATCH($C145,'Efficiency Distributions'!$C$9:$C$87,0)+RIGHT($E153),0)\n+X$11*OFFSET('Efficiency Distributions'!$E$10,MATCH($C145,'Efficiency Distributions'!$C$9:$C$87,0)+RIGHT($E153),0))\n/SUM(X$10:X$11)","v":0},{"$f":"IF(INDEX(PC_MAPPING,RIGHT($C145,1),MATCH($E$2,'Data by Building Type'!$D$22:$F$22,0))=\"Yes\",1,0)*\n(Y$10*OFFSET('Efficiency Distributions'!$D$10,MATCH($C145,'Efficiency Distributions'!$C$9:$C$87,0)+RIGHT($E153),0)\n+Y$11*OFFSET('Efficiency Distributions'!$E$10,MATCH($C145,'Efficiency Distributions'!$C$9:$C$87,0)+RIGHT($E153),0))\n/SUM(Y$10:Y$11)","v":0},{"$f":"IF(INDEX(PC_MAPPING,RIGHT($C145,1),MATCH($E$2,'Data by Building Type'!$D$22:$F$22,0))=\"Yes\",1,0)*\n(Z$10*OFFSET('Efficiency Distributions'!$D$10,MATCH($C145,'Efficiency Distributions'!$C$9:$C$87,0)+RIGHT($E153),0)\n+Z$11*OFFSET('Efficiency Distributions'!$E$10,MATCH($C145,'Efficiency Distributions'!$C$9:$C$87,0)+RIGHT($E153),0))\n/SUM(Z$10:Z$11)","v":0},{"$f":"IF(INDEX(PC_MAPPING,RIGHT($C145,1),MATCH($E$2,'Data by Building Type'!$D$22:$F$22,0))=\"Yes\",1,0)*\n(AA$10*OFFSET('Efficiency Distributions'!$D$10,MATCH($C145,'Efficiency Distributions'!$C$9:$C$87,0)+RIGHT($E153),0)\n+AA$11*OFFSET('Efficiency Distributions'!$E$10,MATCH($C145,'Efficiency Distributions'!$C$9:$C$87,0)+RIGHT($E153),0))\n/SUM(AA$10:AA$11)","v":0},{"$f":"IF(INDEX(PC_MAPPING,RIGHT($C145,1),MATCH($E$2,'Data by Building Type'!$D$22:$F$22,0))=\"Yes\",1,0)*\n(AB$10*OFFSET('Efficiency Distributions'!$D$10,MATCH($C145,'Efficiency Distributions'!$C$9:$C$87,0)+RIGHT($E153),0)\n+AB$11*OFFSET('Efficiency Distributions'!$E$10,MATCH($C145,'Efficiency Distributions'!$C$9:$C$87,0)+RIGHT($E153),0))\n/SUM(AB$10:AB$11)","v":0},{"$f":"IF(INDEX(PC_MAPPING,RIGHT($C145,1),MATCH($E$2,'Data by Building Type'!$D$22:$F$22,0))=\"Yes\",1,0)*\n(AC$10*OFFSET('Efficiency Distributions'!$D$10,MATCH($C145,'Efficiency Distributions'!$C$9:$C$87,0)+RIGHT($E153),0)\n+AC$11*OFFSET('Efficiency Distributions'!$E$10,MATCH($C145,'Efficiency Distributions'!$C$9:$C$87,0)+RIGHT($E153),0))\n/SUM(AC$10:AC$11)","v":0},{"$f":"IF(INDEX(PC_MAPPING,RIGHT($C145,1),MATCH($E$2,'Data by Building Type'!$D$22:$F$22,0))=\"Yes\",1,0)*\n(AD$10*OFFSET('Efficiency Distributions'!$D$10,MATCH($C145,'Efficiency Distributions'!$C$9:$C$87,0)+RIGHT($E153),0)\n+AD$11*OFFSET('Efficiency Distributions'!$E$10,MATCH($C145,'Efficiency Distributions'!$C$9:$C$87,0)+RIGHT($E153),0))\n/SUM(AD$10:AD$11)","v":0},{"$f":"IF(INDEX(PC_MAPPING,RIGHT($C145,1),MATCH($E$2,'Data by Building Type'!$D$22:$F$22,0))=\"Yes\",1,0)*\n(AE$10*OFFSET('Efficiency Distributions'!$D$10,MATCH($C145,'Efficiency Distributions'!$C$9:$C$87,0)+RIGHT($E153),0)\n+AE$11*OFFSET('Efficiency Distributions'!$E$10,MATCH($C145,'Efficiency Distributions'!$C$9:$C$87,0)+RIGHT($E153),0))\n/SUM(AE$10:AE$11)","v":0},{"$f":"IF(INDEX(PC_MAPPING,RIGHT($C145,1),MATCH($E$2,'Data by Building Type'!$D$22:$F$22,0))=\"Yes\",1,0)*\n(AF$10*OFFSET('Efficiency Distributions'!$D$10,MATCH($C145,'Efficiency Distributions'!$C$9:$C$87,0)+RIGHT($E153),0)\n+AF$11*OFFSET('Efficiency Distributions'!$E$10,MATCH($C145,'Efficiency Distributions'!$C$9:$C$87,0)+RIGHT($E153),0))\n/SUM(AF$10:AF$11)","v":0},{"$f":"IF(INDEX(PC_MAPPING,RIGHT($C145,1),MATCH($E$2,'Data by Building Type'!$D$22:$F$22,0))=\"Yes\",1,0)*\n(AG$10*OFFSET('Efficiency Distributions'!$D$10,MATCH($C145,'Efficiency Distributions'!$C$9:$C$87,0)+RIGHT($E153),0)\n+AG$11*OFFSET('Efficiency Distributions'!$E$10,MATCH($C145,'Efficiency Distributions'!$C$9:$C$87,0)+RIGHT($E153),0))\n/SUM(AG$10:AG$11)","v":0},{"$f":"IF(INDEX(PC_MAPPING,RIGHT($C145,1),MATCH($E$2,'Data by Building Type'!$D$22:$F$22,0))=\"Yes\",1,0)*\n(AH$10*OFFSET('Efficiency Distributions'!$D$10,MATCH($C145,'Efficiency Distributions'!$C$9:$C$87,0)+RIGHT($E153),0)\n+AH$11*OFFSET('Efficiency Distributions'!$E$10,MATCH($C145,'Efficiency Distributions'!$C$9:$C$87,0)+RIGHT($E153),0))\n/SUM(AH$10:AH$11)","v":0},{"$f":"IF(INDEX(PC_MAPPING,RIGHT($C145,1),MATCH($E$2,'Data by Building Type'!$D$22:$F$22,0))=\"Yes\",1,0)*\n(AI$10*OFFSET('Efficiency Distributions'!$D$10,MATCH($C145,'Efficiency Distributions'!$C$9:$C$87,0)+RIGHT($E153),0)\n+AI$11*OFFSET('Efficiency Distributions'!$E$10,MATCH($C145,'Efficiency Distributions'!$C$9:$C$87,0)+RIGHT($E153),0))\n/SUM(AI$10:AI$11)","v":0},{"$f":"IF(INDEX(PC_MAPPING,RIGHT($C145,1),MATCH($E$2,'Data by Building Type'!$D$22:$F$22,0))=\"Yes\",1,0)*\n(AJ$10*OFFSET('Efficiency Distributions'!$D$10,MATCH($C145,'Efficiency Distributions'!$C$9:$C$87,0)+RIGHT($E153),0)\n+AJ$11*OFFSET('Efficiency Distributions'!$E$10,MATCH($C145,'Efficiency Distributions'!$C$9:$C$87,0)+RIGHT($E153),0))\n/SUM(AJ$10:AJ$11)","v":0},{"$f":"IF(INDEX(PC_MAPPING,RIGHT($C145,1),MATCH($E$2,'Data by Building Type'!$D$22:$F$22,0))=\"Yes\",1,0)*\n(AK$10*OFFSET('Efficiency Distributions'!$D$10,MATCH($C145,'Efficiency Distributions'!$C$9:$C$87,0)+RIGHT($E153),0)\n+AK$11*OFFSET('Efficiency Distributions'!$E$10,MATCH($C145,'Efficiency Distributions'!$C$9:$C$87,0)+RIGHT($E153),0))\n/SUM(AK$10:AK$11)","v":0},{"$f":"IF(INDEX(PC_MAPPING,RIGHT($C145,1),MATCH($E$2,'Data by Building Type'!$D$22:$F$22,0))=\"Yes\",1,0)*\n(AL$10*OFFSET('Efficiency Distributions'!$D$10,MATCH($C145,'Efficiency Distributions'!$C$9:$C$87,0)+RIGHT($E153),0)\n+AL$11*OFFSET('Efficiency Distributions'!$E$10,MATCH($C145,'Efficiency Distributions'!$C$9:$C$87,0)+RIGHT($E153),0))\n/SUM(AL$10:AL$11)","v":0},{"$f":"IF(INDEX(PC_MAPPING,RIGHT($C145,1),MATCH($E$2,'Data by Building Type'!$D$22:$F$22,0))=\"Yes\",1,0)*\n(AM$10*OFFSET('Efficiency Distributions'!$D$10,MATCH($C145,'Efficiency Distributions'!$C$9:$C$87,0)+RIGHT($E153),0)\n+AM$11*OFFSET('Efficiency Distributions'!$E$10,MATCH($C145,'Efficiency Distributions'!$C$9:$C$87,0)+RIGHT($E153),0))\n/SUM(AM$10:AM$11)","v":0},{"$f":"IF(INDEX(PC_MAPPING,RIGHT($C145,1),MATCH($E$2,'Data by Building Type'!$D$22:$F$22,0))=\"Yes\",1,0)*\n(AN$10*OFFSET('Efficiency Distributions'!$D$10,MATCH($C145,'Efficiency Distributions'!$C$9:$C$87,0)+RIGHT($E153),0)\n+AN$11*OFFSET('Efficiency Distributions'!$E$10,MATCH($C145,'Efficiency Distributions'!$C$9:$C$87,0)+RIGHT($E153),0))\n/SUM(AN$10:AN$11)","v":0},{"$f":"IF(INDEX(PC_MAPPING,RIGHT($C145,1),MATCH($E$2,'Data by Building Type'!$D$22:$F$22,0))=\"Yes\",1,0)*\n(AO$10*OFFSET('Efficiency Distributions'!$D$10,MATCH($C145,'Efficiency Distributions'!$C$9:$C$87,0)+RIGHT($E153),0)\n+AO$11*OFFSET('Efficiency Distributions'!$E$10,MATCH($C145,'Efficiency Distributions'!$C$9:$C$87,0)+RIGHT($E153),0))\n/SUM(AO$10:AO$11)","v":0},{"$f":"IF(INDEX(PC_MAPPING,RIGHT($C145,1),MATCH($E$2,'Data by Building Type'!$D$22:$F$22,0))=\"Yes\",1,0)*\n(AP$10*OFFSET('Efficiency Distributions'!$D$10,MATCH($C145,'Efficiency Distributions'!$C$9:$C$87,0)+RIGHT($E153),0)\n+AP$11*OFFSET('Efficiency Distributions'!$E$10,MATCH($C145,'Efficiency Distributions'!$C$9:$C$87,0)+RIGHT($E153),0))\n/SUM(AP$10:AP$11)","v":0},{"$f":"IF(INDEX(PC_MAPPING,RIGHT($C145,1),MATCH($E$2,'Data by Building Type'!$D$22:$F$22,0))=\"Yes\",1,0)*\n(AQ$10*OFFSET('Efficiency Distributions'!$D$10,MATCH($C145,'Efficiency Distributions'!$C$9:$C$87,0)+RIGHT($E153),0)\n+AQ$11*OFFSET('Efficiency Distributions'!$E$10,MATCH($C145,'Efficiency Distributions'!$C$9:$C$87,0)+RIGHT($E153),0))\n/SUM(AQ$10:AQ$11)","v":0},{"$f":"IF(INDEX(PC_MAPPING,RIGHT($C145,1),MATCH($E$2,'Data by Building Type'!$D$22:$F$22,0))=\"Yes\",1,0)*\n(AR$10*OFFSET('Efficiency Distributions'!$D$10,MATCH($C145,'Efficiency Distributions'!$C$9:$C$87,0)+RIGHT($E153),0)\n+AR$11*OFFSET('Efficiency Distributions'!$E$10,MATCH($C145,'Efficiency Distributions'!$C$9:$C$87,0)+RIGHT($E153),0))\n/SUM(AR$10:AR$11)","v":0},{"$f":"IF(INDEX(PC_MAPPING,RIGHT($C145,1),MATCH($E$2,'Data by Building Type'!$D$22:$F$22,0))=\"Yes\",1,0)*\n(AS$10*OFFSET('Efficiency Distributions'!$D$10,MATCH($C145,'Efficiency Distributions'!$C$9:$C$87,0)+RIGHT($E153),0)\n+AS$11*OFFSET('Efficiency Distributions'!$E$10,MATCH($C145,'Efficiency Distributions'!$C$9:$C$87,0)+RIGHT($E153),0))\n/SUM(AS$10:AS$11)","v":0},{"$f":"IF(INDEX(PC_MAPPING,RIGHT($C145,1),MATCH($E$2,'Data by Building Type'!$D$22:$F$22,0))=\"Yes\",1,0)*\n(AT$10*OFFSET('Efficiency Distributions'!$D$10,MATCH($C145,'Efficiency Distributions'!$C$9:$C$87,0)+RIGHT($E153),0)\n+AT$11*OFFSET('Efficiency Distributions'!$E$10,MATCH($C145,'Efficiency Distributions'!$C$9:$C$87,0)+RIGHT($E153),0))\n/SUM(AT$10:AT$11)","v":0},{"$f":"IF(INDEX(PC_MAPPING,RIGHT($C145,1),MATCH($E$2,'Data by Building Type'!$D$22:$F$22,0))=\"Yes\",1,0)*\n(AU$10*OFFSET('Efficiency Distributions'!$D$10,MATCH($C145,'Efficiency Distributions'!$C$9:$C$87,0)+RIGHT($E153),0)\n+AU$11*OFFSET('Efficiency Distributions'!$E$10,MATCH($C145,'Efficiency Distributions'!$C$9:$C$87,0)+RIGHT($E153),0))\n/SUM(AU$10:AU$11)","v":0},{"$f":"IF(INDEX(PC_MAPPING,RIGHT($C145,1),MATCH($E$2,'Data by Building Type'!$D$22:$F$22,0))=\"Yes\",1,0)*\n(AV$10*OFFSET('Efficiency Distributions'!$D$10,MATCH($C145,'Efficiency Distributions'!$C$9:$C$87,0)+RIGHT($E153),0)\n+AV$11*OFFSET('Efficiency Distributions'!$E$10,MATCH($C145,'Efficiency Distributions'!$C$9:$C$87,0)+RIGHT($E153),0))\n/SUM(AV$10:AV$11)","v":0},{"$f":"IF(INDEX(PC_MAPPING,RIGHT($C145,1),MATCH($E$2,'Data by Building Type'!$D$22:$F$22,0))=\"Yes\",1,0)*\n(AW$10*OFFSET('Efficiency Distributions'!$D$10,MATCH($C145,'Efficiency Distributions'!$C$9:$C$87,0)+RIGHT($E153),0)\n+AW$11*OFFSET('Efficiency Distributions'!$E$10,MATCH($C145,'Efficiency Distributions'!$C$9:$C$87,0)+RIGHT($E153),0))\n/SUM(AW$10:AW$11)","v":0},{"$f":"IF(INDEX(PC_MAPPING,RIGHT($C145,1),MATCH($E$2,'Data by Building Type'!$D$22:$F$22,0))=\"Yes\",1,0)*\n(AX$10*OFFSET('Efficiency Distributions'!$D$10,MATCH($C145,'Efficiency Distributions'!$C$9:$C$87,0)+RIGHT($E153),0)\n+AX$11*OFFSET('Efficiency Distributions'!$E$10,MATCH($C145,'Efficiency Distributions'!$C$9:$C$87,0)+RIGHT($E153),0))\n/SUM(AX$10:AX$11)","v":0},{"$f":"IF(INDEX(PC_MAPPING,RIGHT($C145,1),MATCH($E$2,'Data by Building Type'!$D$22:$F$22,0))=\"Yes\",1,0)*\n(AY$10*OFFSET('Efficiency Distributions'!$D$10,MATCH($C145,'Efficiency Distributions'!$C$9:$C$87,0)+RIGHT($E153),0)\n+AY$11*OFFSET('Efficiency Distributions'!$E$10,MATCH($C145,'Efficiency Distributions'!$C$9:$C$87,0)+RIGHT($E153),0))\n/SUM(AY$10:AY$11)","v":0},{"$f":"IF(INDEX(PC_MAPPING,RIGHT($C145,1),MATCH($E$2,'Data by Building Type'!$D$22:$F$22,0))=\"Yes\",1,0)*\n(AZ$10*OFFSET('Efficiency Distributions'!$D$10,MATCH($C145,'Efficiency Distributions'!$C$9:$C$87,0)+RIGHT($E153),0)\n+AZ$11*OFFSET('Efficiency Distributions'!$E$10,MATCH($C145,'Efficiency Distributions'!$C$9:$C$87,0)+RIGHT($E153),0))\n/SUM(AZ$10:AZ$11)","v":0},{"$f":"IF(INDEX(PC_MAPPING,RIGHT($C145,1),MATCH($E$2,'Data by Building Type'!$D$22:$F$22,0))=\"Yes\",1,0)*\n(BA$10*OFFSET('Efficiency Distributions'!$D$10,MATCH($C145,'Efficiency Distributions'!$C$9:$C$87,0)+RIGHT($E153),0)\n+BA$11*OFFSET('Efficiency Distributions'!$E$10,MATCH($C145,'Efficiency Distributions'!$C$9:$C$87,0)+RIGHT($E153),0))\n/SUM(BA$10:BA$11)","v":0},{"$f":"IF(INDEX(PC_MAPPING,RIGHT($C145,1),MATCH($E$2,'Data by Building Type'!$D$22:$F$22,0))=\"Yes\",1,0)*\n(BB$10*OFFSET('Efficiency Distributions'!$D$10,MATCH($C145,'Efficiency Distributions'!$C$9:$C$87,0)+RIGHT($E153),0)\n+BB$11*OFFSET('Efficiency Distributions'!$E$10,MATCH($C145,'Efficiency Distributions'!$C$9:$C$87,0)+RIGHT($E153),0))\n/SUM(BB$10:BB$11)","v":0},{"$f":"IF(INDEX(PC_MAPPING,RIGHT($C145,1),MATCH($E$2,'Data by Building Type'!$D$22:$F$22,0))=\"Yes\",1,0)*\n(BC$10*OFFSET('Efficiency Distributions'!$D$10,MATCH($C145,'Efficiency Distributions'!$C$9:$C$87,0)+RIGHT($E153),0)\n+BC$11*OFFSET('Efficiency Distributions'!$E$10,MATCH($C145,'Efficiency Distributions'!$C$9:$C$87,0)+RIGHT($E153),0))\n/SUM(BC$10:BC$11)","v":0},{"$f":"IF(INDEX(PC_MAPPING,RIGHT($C145,1),MATCH($E$2,'Data by Building Type'!$D$22:$F$22,0))=\"Yes\",1,0)*\n(BD$10*OFFSET('Efficiency Distributions'!$D$10,MATCH($C145,'Efficiency Distributions'!$C$9:$C$87,0)+RIGHT($E153),0)\n+BD$11*OFFSET('Efficiency Distributions'!$E$10,MATCH($C145,'Efficiency Distributions'!$C$9:$C$87,0)+RIGHT($E153),0))\n/SUM(BD$10:BD$11)","v":0},{"$f":"IF(INDEX(PC_MAPPING,RIGHT($C145,1),MATCH($E$2,'Data by Building Type'!$D$22:$F$22,0))=\"Yes\",1,0)*\n(BE$10*OFFSET('Efficiency Distributions'!$D$10,MATCH($C145,'Efficiency Distributions'!$C$9:$C$87,0)+RIGHT($E153),0)\n+BE$11*OFFSET('Efficiency Distributions'!$E$10,MATCH($C145,'Efficiency Distributions'!$C$9:$C$87,0)+RIGHT($E153),0))\n/SUM(BE$10:BE$11)","v":0},{"$f":"IF(INDEX(PC_MAPPING,RIGHT($C145,1),MATCH($E$2,'Data by Building Type'!$D$22:$F$22,0))=\"Yes\",1,0)*\n(BF$10*OFFSET('Efficiency Distributions'!$D$10,MATCH($C145,'Efficiency Distributions'!$C$9:$C$87,0)+RIGHT($E153),0)\n+BF$11*OFFSET('Efficiency Distributions'!$E$10,MATCH($C145,'Efficiency Distributions'!$C$9:$C$87,0)+RIGHT($E153),0))\n/SUM(BF$10:BF$11)","v":0},{"$f":"IF(INDEX(PC_MAPPING,RIGHT($C145,1),MATCH($E$2,'Data by Building Type'!$D$22:$F$22,0))=\"Yes\",1,0)*\n(BG$10*OFFSET('Efficiency Distributions'!$D$10,MATCH($C145,'Efficiency Distributions'!$C$9:$C$87,0)+RIGHT($E153),0)\n+BG$11*OFFSET('Efficiency Distributions'!$E$10,MATCH($C145,'Efficiency Distributions'!$C$9:$C$87,0)+RIGHT($E153),0))\n/SUM(BG$10:BG$11)","v":0}]
[null,null,null,null,"EL5",{"$f":"IF(INDEX(PC_MAPPING,RIGHT($C145,1),MATCH($E$2,'Data by Building Type'!$D$22:$F$22,0))=\"Yes\",1,0)*\n(F$10*OFFSET('Efficiency Distributions'!$D$10,MATCH($C145,'Efficiency Distributions'!$C$9:$C$87,0)+RIGHT($E154),0)\n+F$11*OFFSET('Efficiency Distributions'!$E$10,MATCH($C145,'Efficiency Distributions'!$C$9:$C$87,0)+RIGHT($E154),0))\n/SUM(F$10:F$11)","v":0},{"$f":"IF(INDEX(PC_MAPPING,RIGHT($C145,1),MATCH($E$2,'Data by Building Type'!$D$22:$F$22,0))=\"Yes\",1,0)*\n(G$10*OFFSET('Efficiency Distributions'!$D$10,MATCH($C145,'Efficiency Distributions'!$C$9:$C$87,0)+RIGHT($E154),0)\n+G$11*OFFSET('Efficiency Distributions'!$E$10,MATCH($C145,'Efficiency Distributions'!$C$9:$C$87,0)+RIGHT($E154),0))\n/SUM(G$10:G$11)","v":0},{"$f":"IF(INDEX(PC_MAPPING,RIGHT($C145,1),MATCH($E$2,'Data by Building Type'!$D$22:$F$22,0))=\"Yes\",1,0)*\n(H$10*OFFSET('Efficiency Distributions'!$D$10,MATCH($C145,'Efficiency Distributions'!$C$9:$C$87,0)+RIGHT($E154),0)\n+H$11*OFFSET('Efficiency Distributions'!$E$10,MATCH($C145,'Efficiency Distributions'!$C$9:$C$87,0)+RIGHT($E154),0))\n/SUM(H$10:H$11)","v":0},{"$f":"IF(INDEX(PC_MAPPING,RIGHT($C145,1),MATCH($E$2,'Data by Building Type'!$D$22:$F$22,0))=\"Yes\",1,0)*\n(I$10*OFFSET('Efficiency Distributions'!$D$10,MATCH($C145,'Efficiency Distributions'!$C$9:$C$87,0)+RIGHT($E154),0)\n+I$11*OFFSET('Efficiency Distributions'!$E$10,MATCH($C145,'Efficiency Distributions'!$C$9:$C$87,0)+RIGHT($E154),0))\n/SUM(I$10:I$11)","v":0},{"$f":"IF(INDEX(PC_MAPPING,RIGHT($C145,1),MATCH($E$2,'Data by Building Type'!$D$22:$F$22,0))=\"Yes\",1,0)*\n(J$10*OFFSET('Efficiency Distributions'!$D$10,MATCH($C145,'Efficiency Distributions'!$C$9:$C$87,0)+RIGHT($E154),0)\n+J$11*OFFSET('Efficiency Distributions'!$E$10,MATCH($C145,'Efficiency Distributions'!$C$9:$C$87,0)+RIGHT($E154),0))\n/SUM(J$10:J$11)","v":0},{"$f":"IF(INDEX(PC_MAPPING,RIGHT($C145,1),MATCH($E$2,'Data by Building Type'!$D$22:$F$22,0))=\"Yes\",1,0)*\n(K$10*OFFSET('Efficiency Distributions'!$D$10,MATCH($C145,'Efficiency Distributions'!$C$9:$C$87,0)+RIGHT($E154),0)\n+K$11*OFFSET('Efficiency Distributions'!$E$10,MATCH($C145,'Efficiency Distributions'!$C$9:$C$87,0)+RIGHT($E154),0))\n/SUM(K$10:K$11)","v":0},{"$f":"IF(INDEX(PC_MAPPING,RIGHT($C145,1),MATCH($E$2,'Data by Building Type'!$D$22:$F$22,0))=\"Yes\",1,0)*\n(L$10*OFFSET('Efficiency Distributions'!$D$10,MATCH($C145,'Efficiency Distributions'!$C$9:$C$87,0)+RIGHT($E154),0)\n+L$11*OFFSET('Efficiency Distributions'!$E$10,MATCH($C145,'Efficiency Distributions'!$C$9:$C$87,0)+RIGHT($E154),0))\n/SUM(L$10:L$11)","v":0},{"$f":"IF(INDEX(PC_MAPPING,RIGHT($C145,1),MATCH($E$2,'Data by Building Type'!$D$22:$F$22,0))=\"Yes\",1,0)*\n(M$10*OFFSET('Efficiency Distributions'!$D$10,MATCH($C145,'Efficiency Distributions'!$C$9:$C$87,0)+RIGHT($E154),0)\n+M$11*OFFSET('Efficiency Distributions'!$E$10,MATCH($C145,'Efficiency Distributions'!$C$9:$C$87,0)+RIGHT($E154),0))\n/SUM(M$10:M$11)","v":0},{"$f":"IF(INDEX(PC_MAPPING,RIGHT($C145,1),MATCH($E$2,'Data by Building Type'!$D$22:$F$22,0))=\"Yes\",1,0)*\n(N$10*OFFSET('Efficiency Distributions'!$D$10,MATCH($C145,'Efficiency Distributions'!$C$9:$C$87,0)+RIGHT($E154),0)\n+N$11*OFFSET('Efficiency Distributions'!$E$10,MATCH($C145,'Efficiency Distributions'!$C$9:$C$87,0)+RIGHT($E154),0))\n/SUM(N$10:N$11)","v":0},{"$f":"IF(INDEX(PC_MAPPING,RIGHT($C145,1),MATCH($E$2,'Data by Building Type'!$D$22:$F$22,0))=\"Yes\",1,0)*\n(O$10*OFFSET('Efficiency Distributions'!$D$10,MATCH($C145,'Efficiency Distributions'!$C$9:$C$87,0)+RIGHT($E154),0)\n+O$11*OFFSET('Efficiency Distributions'!$E$10,MATCH($C145,'Efficiency Distributions'!$C$9:$C$87,0)+RIGHT($E154),0))\n/SUM(O$10:O$11)","v":0},{"$f":"IF(INDEX(PC_MAPPING,RIGHT($C145,1),MATCH($E$2,'Data by Building Type'!$D$22:$F$22,0))=\"Yes\",1,0)*\n(P$10*OFFSET('Efficiency Distributions'!$D$10,MATCH($C145,'Efficiency Distributions'!$C$9:$C$87,0)+RIGHT($E154),0)\n+P$11*OFFSET('Efficiency Distributions'!$E$10,MATCH($C145,'Efficiency Distributions'!$C$9:$C$87,0)+RIGHT($E154),0))\n/SUM(P$10:P$11)","v":0},{"$f":"IF(INDEX(PC_MAPPING,RIGHT($C145,1),MATCH($E$2,'Data by Building Type'!$D$22:$F$22,0))=\"Yes\",1,0)*\n(Q$10*OFFSET('Efficiency Distributions'!$D$10,MATCH($C145,'Efficiency Distributions'!$C$9:$C$87,0)+RIGHT($E154),0)\n+Q$11*OFFSET('Efficiency Distributions'!$E$10,MATCH($C145,'Efficiency Distributions'!$C$9:$C$87,0)+RIGHT($E154),0))\n/SUM(Q$10:Q$11)","v":0},{"$f":"IF(INDEX(PC_MAPPING,RIGHT($C145,1),MATCH($E$2,'Data by Building Type'!$D$22:$F$22,0))=\"Yes\",1,0)*\n(R$10*OFFSET('Efficiency Distributions'!$D$10,MATCH($C145,'Efficiency Distributions'!$C$9:$C$87,0)+RIGHT($E154),0)\n+R$11*OFFSET('Efficiency Distributions'!$E$10,MATCH($C145,'Efficiency Distributions'!$C$9:$C$87,0)+RIGHT($E154),0))\n/SUM(R$10:R$11)","v":0},{"$f":"IF(INDEX(PC_MAPPING,RIGHT($C145,1),MATCH($E$2,'Data by Building Type'!$D$22:$F$22,0))=\"Yes\",1,0)*\n(S$10*OFFSET('Efficiency Distributions'!$D$10,MATCH($C145,'Efficiency Distributions'!$C$9:$C$87,0)+RIGHT($E154),0)\n+S$11*OFFSET('Efficiency Distributions'!$E$10,MATCH($C145,'Efficiency Distributions'!$C$9:$C$87,0)+RIGHT($E154),0))\n/SUM(S$10:S$11)","v":0},{"$f":"IF(INDEX(PC_MAPPING,RIGHT($C145,1),MATCH($E$2,'Data by Building Type'!$D$22:$F$22,0))=\"Yes\",1,0)*\n(T$10*OFFSET('Efficiency Distributions'!$D$10,MATCH($C145,'Efficiency Distributions'!$C$9:$C$87,0)+RIGHT($E154),0)\n+T$11*OFFSET('Efficiency Distributions'!$E$10,MATCH($C145,'Efficiency Distributions'!$C$9:$C$87,0)+RIGHT($E154),0))\n/SUM(T$10:T$11)","v":0},{"$f":"IF(INDEX(PC_MAPPING,RIGHT($C145,1),MATCH($E$2,'Data by Building Type'!$D$22:$F$22,0))=\"Yes\",1,0)*\n(U$10*OFFSET('Efficiency Distributions'!$D$10,MATCH($C145,'Efficiency Distributions'!$C$9:$C$87,0)+RIGHT($E154),0)\n+U$11*OFFSET('Efficiency Distributions'!$E$10,MATCH($C145,'Efficiency Distributions'!$C$9:$C$87,0)+RIGHT($E154),0))\n/SUM(U$10:U$11)","v":0},{"$f":"IF(INDEX(PC_MAPPING,RIGHT($C145,1),MATCH($E$2,'Data by Building Type'!$D$22:$F$22,0))=\"Yes\",1,0)*\n(V$10*OFFSET('Efficiency Distributions'!$D$10,MATCH($C145,'Efficiency Distributions'!$C$9:$C$87,0)+RIGHT($E154),0)\n+V$11*OFFSET('Efficiency Distributions'!$E$10,MATCH($C145,'Efficiency Distributions'!$C$9:$C$87,0)+RIGHT($E154),0))\n/SUM(V$10:V$11)","v":0},{"$f":"IF(INDEX(PC_MAPPING,RIGHT($C145,1),MATCH($E$2,'Data by Building Type'!$D$22:$F$22,0))=\"Yes\",1,0)*\n(W$10*OFFSET('Efficiency Distributions'!$D$10,MATCH($C145,'Efficiency Distributions'!$C$9:$C$87,0)+RIGHT($E154),0)\n+W$11*OFFSET('Efficiency Distributions'!$E$10,MATCH($C145,'Efficiency Distributions'!$C$9:$C$87,0)+RIGHT($E154),0))\n/SUM(W$10:W$11)","v":0},{"$f":"IF(INDEX(PC_MAPPING,RIGHT($C145,1),MATCH($E$2,'Data by Building Type'!$D$22:$F$22,0))=\"Yes\",1,0)*\n(X$10*OFFSET('Efficiency Distributions'!$D$10,MATCH($C145,'Efficiency Distributions'!$C$9:$C$87,0)+RIGHT($E154),0)\n+X$11*OFFSET('Efficiency Distributions'!$E$10,MATCH($C145,'Efficiency Distributions'!$C$9:$C$87,0)+RIGHT($E154),0))\n/SUM(X$10:X$11)","v":0},{"$f":"IF(INDEX(PC_MAPPING,RIGHT($C145,1),MATCH($E$2,'Data by Building Type'!$D$22:$F$22,0))=\"Yes\",1,0)*\n(Y$10*OFFSET('Efficiency Distributions'!$D$10,MATCH($C145,'Efficiency Distributions'!$C$9:$C$87,0)+RIGHT($E154),0)\n+Y$11*OFFSET('Efficiency Distributions'!$E$10,MATCH($C145,'Efficiency Distributions'!$C$9:$C$87,0)+RIGHT($E154),0))\n/SUM(Y$10:Y$11)","v":0},{"$f":"IF(INDEX(PC_MAPPING,RIGHT($C145,1),MATCH($E$2,'Data by Building Type'!$D$22:$F$22,0))=\"Yes\",1,0)*\n(Z$10*OFFSET('Efficiency Distributions'!$D$10,MATCH($C145,'Efficiency Distributions'!$C$9:$C$87,0)+RIGHT($E154),0)\n+Z$11*OFFSET('Efficiency Distributions'!$E$10,MATCH($C145,'Efficiency Distributions'!$C$9:$C$87,0)+RIGHT($E154),0))\n/SUM(Z$10:Z$11)","v":0},{"$f":"IF(INDEX(PC_MAPPING,RIGHT($C145,1),MATCH($E$2,'Data by Building Type'!$D$22:$F$22,0))=\"Yes\",1,0)*\n(AA$10*OFFSET('Efficiency Distributions'!$D$10,MATCH($C145,'Efficiency Distributions'!$C$9:$C$87,0)+RIGHT($E154),0)\n+AA$11*OFFSET('Efficiency Distributions'!$E$10,MATCH($C145,'Efficiency Distributions'!$C$9:$C$87,0)+RIGHT($E154),0))\n/SUM(AA$10:AA$11)","v":0},{"$f":"IF(INDEX(PC_MAPPING,RIGHT($C145,1),MATCH($E$2,'Data by Building Type'!$D$22:$F$22,0))=\"Yes\",1,0)*\n(AB$10*OFFSET('Efficiency Distributions'!$D$10,MATCH($C145,'Efficiency Distributions'!$C$9:$C$87,0)+RIGHT($E154),0)\n+AB$11*OFFSET('Efficiency Distributions'!$E$10,MATCH($C145,'Efficiency Distributions'!$C$9:$C$87,0)+RIGHT($E154),0))\n/SUM(AB$10:AB$11)","v":0},{"$f":"IF(INDEX(PC_MAPPING,RIGHT($C145,1),MATCH($E$2,'Data by Building Type'!$D$22:$F$22,0))=\"Yes\",1,0)*\n(AC$10*OFFSET('Efficiency Distributions'!$D$10,MATCH($C145,'Efficiency Distributions'!$C$9:$C$87,0)+RIGHT($E154),0)\n+AC$11*OFFSET('Efficiency Distributions'!$E$10,MATCH($C145,'Efficiency Distributions'!$C$9:$C$87,0)+RIGHT($E154),0))\n/SUM(AC$10:AC$11)","v":0},{"$f":"IF(INDEX(PC_MAPPING,RIGHT($C145,1),MATCH($E$2,'Data by Building Type'!$D$22:$F$22,0))=\"Yes\",1,0)*\n(AD$10*OFFSET('Efficiency Distributions'!$D$10,MATCH($C145,'Efficiency Distributions'!$C$9:$C$87,0)+RIGHT($E154),0)\n+AD$11*OFFSET('Efficiency Distributions'!$E$10,MATCH($C145,'Efficiency Distributions'!$C$9:$C$87,0)+RIGHT($E154),0))\n/SUM(AD$10:AD$11)","v":0},{"$f":"IF(INDEX(PC_MAPPING,RIGHT($C145,1),MATCH($E$2,'Data by Building Type'!$D$22:$F$22,0))=\"Yes\",1,0)*\n(AE$10*OFFSET('Efficiency Distributions'!$D$10,MATCH($C145,'Efficiency Distributions'!$C$9:$C$87,0)+RIGHT($E154),0)\n+AE$11*OFFSET('Efficiency Distributions'!$E$10,MATCH($C145,'Efficiency Distributions'!$C$9:$C$87,0)+RIGHT($E154),0))\n/SUM(AE$10:AE$11)","v":0},{"$f":"IF(INDEX(PC_MAPPING,RIGHT($C145,1),MATCH($E$2,'Data by Building Type'!$D$22:$F$22,0))=\"Yes\",1,0)*\n(AF$10*OFFSET('Efficiency Distributions'!$D$10,MATCH($C145,'Efficiency Distributions'!$C$9:$C$87,0)+RIGHT($E154),0)\n+AF$11*OFFSET('Efficiency Distributions'!$E$10,MATCH($C145,'Efficiency Distributions'!$C$9:$C$87,0)+RIGHT($E154),0))\n/SUM(AF$10:AF$11)","v":0},{"$f":"IF(INDEX(PC_MAPPING,RIGHT($C145,1),MATCH($E$2,'Data by Building Type'!$D$22:$F$22,0))=\"Yes\",1,0)*\n(AG$10*OFFSET('Efficiency Distributions'!$D$10,MATCH($C145,'Efficiency Distributions'!$C$9:$C$87,0)+RIGHT($E154),0)\n+AG$11*OFFSET('Efficiency Distributions'!$E$10,MATCH($C145,'Efficiency Distributions'!$C$9:$C$87,0)+RIGHT($E154),0))\n/SUM(AG$10:AG$11)","v":0},{"$f":"IF(INDEX(PC_MAPPING,RIGHT($C145,1),MATCH($E$2,'Data by Building Type'!$D$22:$F$22,0))=\"Yes\",1,0)*\n(AH$10*OFFSET('Efficiency Distributions'!$D$10,MATCH($C145,'Efficiency Distributions'!$C$9:$C$87,0)+RIGHT($E154),0)\n+AH$11*OFFSET('Efficiency Distributions'!$E$10,MATCH($C145,'Efficiency Distributions'!$C$9:$C$87,0)+RIGHT($E154),0))\n/SUM(AH$10:AH$11)","v":0},{"$f":"IF(INDEX(PC_MAPPING,RIGHT($C145,1),MATCH($E$2,'Data by Building Type'!$D$22:$F$22,0))=\"Yes\",1,0)*\n(AI$10*OFFSET('Efficiency Distributions'!$D$10,MATCH($C145,'Efficiency Distributions'!$C$9:$C$87,0)+RIGHT($E154),0)\n+AI$11*OFFSET('Efficiency Distributions'!$E$10,MATCH($C145,'Efficiency Distributions'!$C$9:$C$87,0)+RIGHT($E154),0))\n/SUM(AI$10:AI$11)","v":0},{"$f":"IF(INDEX(PC_MAPPING,RIGHT($C145,1),MATCH($E$2,'Data by Building Type'!$D$22:$F$22,0))=\"Yes\",1,0)*\n(AJ$10*OFFSET('Efficiency Distributions'!$D$10,MATCH($C145,'Efficiency Distributions'!$C$9:$C$87,0)+RIGHT($E154),0)\n+AJ$11*OFFSET('Efficiency Distributions'!$E$10,MATCH($C145,'Efficiency Distributions'!$C$9:$C$87,0)+RIGHT($E154),0))\n/SUM(AJ$10:AJ$11)","v":0},{"$f":"IF(INDEX(PC_MAPPING,RIGHT($C145,1),MATCH($E$2,'Data by Building Type'!$D$22:$F$22,0))=\"Yes\",1,0)*\n(AK$10*OFFSET('Efficiency Distributions'!$D$10,MATCH($C145,'Efficiency Distributions'!$C$9:$C$87,0)+RIGHT($E154),0)\n+AK$11*OFFSET('Efficiency Distributions'!$E$10,MATCH($C145,'Efficiency Distributions'!$C$9:$C$87,0)+RIGHT($E154),0))\n/SUM(AK$10:AK$11)","v":0},{"$f":"IF(INDEX(PC_MAPPING,RIGHT($C145,1),MATCH($E$2,'Data by Building Type'!$D$22:$F$22,0))=\"Yes\",1,0)*\n(AL$10*OFFSET('Efficiency Distributions'!$D$10,MATCH($C145,'Efficiency Distributions'!$C$9:$C$87,0)+RIGHT($E154),0)\n+AL$11*OFFSET('Efficiency Distributions'!$E$10,MATCH($C145,'Efficiency Distributions'!$C$9:$C$87,0)+RIGHT($E154),0))\n/SUM(AL$10:AL$11)","v":0},{"$f":"IF(INDEX(PC_MAPPING,RIGHT($C145,1),MATCH($E$2,'Data by Building Type'!$D$22:$F$22,0))=\"Yes\",1,0)*\n(AM$10*OFFSET('Efficiency Distributions'!$D$10,MATCH($C145,'Efficiency Distributions'!$C$9:$C$87,0)+RIGHT($E154),0)\n+AM$11*OFFSET('Efficiency Distributions'!$E$10,MATCH($C145,'Efficiency Distributions'!$C$9:$C$87,0)+RIGHT($E154),0))\n/SUM(AM$10:AM$11)","v":0},{"$f":"IF(INDEX(PC_MAPPING,RIGHT($C145,1),MATCH($E$2,'Data by Building Type'!$D$22:$F$22,0))=\"Yes\",1,0)*\n(AN$10*OFFSET('Efficiency Distributions'!$D$10,MATCH($C145,'Efficiency Distributions'!$C$9:$C$87,0)+RIGHT($E154),0)\n+AN$11*OFFSET('Efficiency Distributions'!$E$10,MATCH($C145,'Efficiency Distributions'!$C$9:$C$87,0)+RIGHT($E154),0))\n/SUM(AN$10:AN$11)","v":0},{"$f":"IF(INDEX(PC_MAPPING,RIGHT($C145,1),MATCH($E$2,'Data by Building Type'!$D$22:$F$22,0))=\"Yes\",1,0)*\n(AO$10*OFFSET('Efficiency Distributions'!$D$10,MATCH($C145,'Efficiency Distributions'!$C$9:$C$87,0)+RIGHT($E154),0)\n+AO$11*OFFSET('Efficiency Distributions'!$E$10,MATCH($C145,'Efficiency Distributions'!$C$9:$C$87,0)+RIGHT($E154),0))\n/SUM(AO$10:AO$11)","v":0},{"$f":"IF(INDEX(PC_MAPPING,RIGHT($C145,1),MATCH($E$2,'Data by Building Type'!$D$22:$F$22,0))=\"Yes\",1,0)*\n(AP$10*OFFSET('Efficiency Distributions'!$D$10,MATCH($C145,'Efficiency Distributions'!$C$9:$C$87,0)+RIGHT($E154),0)\n+AP$11*OFFSET('Efficiency Distributions'!$E$10,MATCH($C145,'Efficiency Distributions'!$C$9:$C$87,0)+RIGHT($E154),0))\n/SUM(AP$10:AP$11)","v":0},{"$f":"IF(INDEX(PC_MAPPING,RIGHT($C145,1),MATCH($E$2,'Data by Building Type'!$D$22:$F$22,0))=\"Yes\",1,0)*\n(AQ$10*OFFSET('Efficiency Distributions'!$D$10,MATCH($C145,'Efficiency Distributions'!$C$9:$C$87,0)+RIGHT($E154),0)\n+AQ$11*OFFSET('Efficiency Distributions'!$E$10,MATCH($C145,'Efficiency Distributions'!$C$9:$C$87,0)+RIGHT($E154),0))\n/SUM(AQ$10:AQ$11)","v":0},{"$f":"IF(INDEX(PC_MAPPING,RIGHT($C145,1),MATCH($E$2,'Data by Building Type'!$D$22:$F$22,0))=\"Yes\",1,0)*\n(AR$10*OFFSET('Efficiency Distributions'!$D$10,MATCH($C145,'Efficiency Distributions'!$C$9:$C$87,0)+RIGHT($E154),0)\n+AR$11*OFFSET('Efficiency Distributions'!$E$10,MATCH($C145,'Efficiency Distributions'!$C$9:$C$87,0)+RIGHT($E154),0))\n/SUM(AR$10:AR$11)","v":0},{"$f":"IF(INDEX(PC_MAPPING,RIGHT($C145,1),MATCH($E$2,'Data by Building Type'!$D$22:$F$22,0))=\"Yes\",1,0)*\n(AS$10*OFFSET('Efficiency Distributions'!$D$10,MATCH($C145,'Efficiency Distributions'!$C$9:$C$87,0)+RIGHT($E154),0)\n+AS$11*OFFSET('Efficiency Distributions'!$E$10,MATCH($C145,'Efficiency Distributions'!$C$9:$C$87,0)+RIGHT($E154),0))\n/SUM(AS$10:AS$11)","v":0},{"$f":"IF(INDEX(PC_MAPPING,RIGHT($C145,1),MATCH($E$2,'Data by Building Type'!$D$22:$F$22,0))=\"Yes\",1,0)*\n(AT$10*OFFSET('Efficiency Distributions'!$D$10,MATCH($C145,'Efficiency Distributions'!$C$9:$C$87,0)+RIGHT($E154),0)\n+AT$11*OFFSET('Efficiency Distributions'!$E$10,MATCH($C145,'Efficiency Distributions'!$C$9:$C$87,0)+RIGHT($E154),0))\n/SUM(AT$10:AT$11)","v":0},{"$f":"IF(INDEX(PC_MAPPING,RIGHT($C145,1),MATCH($E$2,'Data by Building Type'!$D$22:$F$22,0))=\"Yes\",1,0)*\n(AU$10*OFFSET('Efficiency Distributions'!$D$10,MATCH($C145,'Efficiency Distributions'!$C$9:$C$87,0)+RIGHT($E154),0)\n+AU$11*OFFSET('Efficiency Distributions'!$E$10,MATCH($C145,'Efficiency Distributions'!$C$9:$C$87,0)+RIGHT($E154),0))\n/SUM(AU$10:AU$11)","v":0},{"$f":"IF(INDEX(PC_MAPPING,RIGHT($C145,1),MATCH($E$2,'Data by Building Type'!$D$22:$F$22,0))=\"Yes\",1,0)*\n(AV$10*OFFSET('Efficiency Distributions'!$D$10,MATCH($C145,'Efficiency Distributions'!$C$9:$C$87,0)+RIGHT($E154),0)\n+AV$11*OFFSET('Efficiency Distributions'!$E$10,MATCH($C145,'Efficiency Distributions'!$C$9:$C$87,0)+RIGHT($E154),0))\n/SUM(AV$10:AV$11)","v":0},{"$f":"IF(INDEX(PC_MAPPING,RIGHT($C145,1),MATCH($E$2,'Data by Building Type'!$D$22:$F$22,0))=\"Yes\",1,0)*\n(AW$10*OFFSET('Efficiency Distributions'!$D$10,MATCH($C145,'Efficiency Distributions'!$C$9:$C$87,0)+RIGHT($E154),0)\n+AW$11*OFFSET('Efficiency Distributions'!$E$10,MATCH($C145,'Efficiency Distributions'!$C$9:$C$87,0)+RIGHT($E154),0))\n/SUM(AW$10:AW$11)","v":0},{"$f":"IF(INDEX(PC_MAPPING,RIGHT($C145,1),MATCH($E$2,'Data by Building Type'!$D$22:$F$22,0))=\"Yes\",1,0)*\n(AX$10*OFFSET('Efficiency Distributions'!$D$10,MATCH($C145,'Efficiency Distributions'!$C$9:$C$87,0)+RIGHT($E154),0)\n+AX$11*OFFSET('Efficiency Distributions'!$E$10,MATCH($C145,'Efficiency Distributions'!$C$9:$C$87,0)+RIGHT($E154),0))\n/SUM(AX$10:AX$11)","v":0},{"$f":"IF(INDEX(PC_MAPPING,RIGHT($C145,1),MATCH($E$2,'Data by Building Type'!$D$22:$F$22,0))=\"Yes\",1,0)*\n(AY$10*OFFSET('Efficiency Distributions'!$D$10,MATCH($C145,'Efficiency Distributions'!$C$9:$C$87,0)+RIGHT($E154),0)\n+AY$11*OFFSET('Efficiency Distributions'!$E$10,MATCH($C145,'Efficiency Distributions'!$C$9:$C$87,0)+RIGHT($E154),0))\n/SUM(AY$10:AY$11)","v":0},{"$f":"IF(INDEX(PC_MAPPING,RIGHT($C145,1),MATCH($E$2,'Data by Building Type'!$D$22:$F$22,0))=\"Yes\",1,0)*\n(AZ$10*OFFSET('Efficiency Distributions'!$D$10,MATCH($C145,'Efficiency Distributions'!$C$9:$C$87,0)+RIGHT($E154),0)\n+AZ$11*OFFSET('Efficiency Distributions'!$E$10,MATCH($C145,'Efficiency Distributions'!$C$9:$C$87,0)+RIGHT($E154),0))\n/SUM(AZ$10:AZ$11)","v":0},{"$f":"IF(INDEX(PC_MAPPING,RIGHT($C145,1),MATCH($E$2,'Data by Building Type'!$D$22:$F$22,0))=\"Yes\",1,0)*\n(BA$10*OFFSET('Efficiency Distributions'!$D$10,MATCH($C145,'Efficiency Distributions'!$C$9:$C$87,0)+RIGHT($E154),0)\n+BA$11*OFFSET('Efficiency Distributions'!$E$10,MATCH($C145,'Efficiency Distributions'!$C$9:$C$87,0)+RIGHT($E154),0))\n/SUM(BA$10:BA$11)","v":0},{"$f":"IF(INDEX(PC_MAPPING,RIGHT($C145,1),MATCH($E$2,'Data by Building Type'!$D$22:$F$22,0))=\"Yes\",1,0)*\n(BB$10*OFFSET('Efficiency Distributions'!$D$10,MATCH($C145,'Efficiency Distributions'!$C$9:$C$87,0)+RIGHT($E154),0)\n+BB$11*OFFSET('Efficiency Distributions'!$E$10,MATCH($C145,'Efficiency Distributions'!$C$9:$C$87,0)+RIGHT($E154),0))\n/SUM(BB$10:BB$11)","v":0},{"$f":"IF(INDEX(PC_MAPPING,RIGHT($C145,1),MATCH($E$2,'Data by Building Type'!$D$22:$F$22,0))=\"Yes\",1,0)*\n(BC$10*OFFSET('Efficiency Distributions'!$D$10,MATCH($C145,'Efficiency Distributions'!$C$9:$C$87,0)+RIGHT($E154),0)\n+BC$11*OFFSET('Efficiency Distributions'!$E$10,MATCH($C145,'Efficiency Distributions'!$C$9:$C$87,0)+RIGHT($E154),0))\n/SUM(BC$10:BC$11)","v":0},{"$f":"IF(INDEX(PC_MAPPING,RIGHT($C145,1),MATCH($E$2,'Data by Building Type'!$D$22:$F$22,0))=\"Yes\",1,0)*\n(BD$10*OFFSET('Efficiency Distributions'!$D$10,MATCH($C145,'Efficiency Distributions'!$C$9:$C$87,0)+RIGHT($E154),0)\n+BD$11*OFFSET('Efficiency Distributions'!$E$10,MATCH($C145,'Efficiency Distributions'!$C$9:$C$87,0)+RIGHT($E154),0))\n/SUM(BD$10:BD$11)","v":0},{"$f":"IF(INDEX(PC_MAPPING,RIGHT($C145,1),MATCH($E$2,'Data by Building Type'!$D$22:$F$22,0))=\"Yes\",1,0)*\n(BE$10*OFFSET('Efficiency Distributions'!$D$10,MATCH($C145,'Efficiency Distributions'!$C$9:$C$87,0)+RIGHT($E154),0)\n+BE$11*OFFSET('Efficiency Distributions'!$E$10,MATCH($C145,'Efficiency Distributions'!$C$9:$C$87,0)+RIGHT($E154),0))\n/SUM(BE$10:BE$11)","v":0},{"$f":"IF(INDEX(PC_MAPPING,RIGHT($C145,1),MATCH($E$2,'Data by Building Type'!$D$22:$F$22,0))=\"Yes\",1,0)*\n(BF$10*OFFSET('Efficiency Distributions'!$D$10,MATCH($C145,'Efficiency Distributions'!$C$9:$C$87,0)+RIGHT($E154),0)\n+BF$11*OFFSET('Efficiency Distributions'!$E$10,MATCH($C145,'Efficiency Distributions'!$C$9:$C$87,0)+RIGHT($E154),0))\n/SUM(BF$10:BF$11)","v":0},{"$f":"IF(INDEX(PC_MAPPING,RIGHT($C145,1),MATCH($E$2,'Data by Building Type'!$D$22:$F$22,0))=\"Yes\",1,0)*\n(BG$10*OFFSET('Efficiency Distributions'!$D$10,MATCH($C145,'Efficiency Distributions'!$C$9:$C$87,0)+RIGHT($E154),0)\n+BG$11*OFFSET('Efficiency Distributions'!$E$10,MATCH($C145,'Efficiency Distributions'!$C$9:$C$87,0)+RIGHT($E154),0))\n/SUM(BG$10:BG$11)","v":0}]
[null,null,null,null,"EL6",{"$f":"IF(INDEX(PC_MAPPING,RIGHT($C145,1),MATCH($E$2,'Data by Building Type'!$D$22:$F$22,0))=\"Yes\",1,0)*\n(F$10*OFFSET('Efficiency Distributions'!$D$10,MATCH($C145,'Efficiency Distributions'!$C$9:$C$87,0)+RIGHT($E155),0)\n+F$11*OFFSET('Efficiency Distributions'!$E$10,MATCH($C145,'Efficiency Distributions'!$C$9:$C$87,0)+RIGHT($E155),0))\n/SUM(F$10:F$11)","v":0},{"$f":"IF(INDEX(PC_MAPPING,RIGHT($C145,1),MATCH($E$2,'Data by Building Type'!$D$22:$F$22,0))=\"Yes\",1,0)*\n(G$10*OFFSET('Efficiency Distributions'!$D$10,MATCH($C145,'Efficiency Distributions'!$C$9:$C$87,0)+RIGHT($E155),0)\n+G$11*OFFSET('Efficiency Distributions'!$E$10,MATCH($C145,'Efficiency Distributions'!$C$9:$C$87,0)+RIGHT($E155),0))\n/SUM(G$10:G$11)","v":0},{"$f":"IF(INDEX(PC_MAPPING,RIGHT($C145,1),MATCH($E$2,'Data by Building Type'!$D$22:$F$22,0))=\"Yes\",1,0)*\n(H$10*OFFSET('Efficiency Distributions'!$D$10,MATCH($C145,'Efficiency Distributions'!$C$9:$C$87,0)+RIGHT($E155),0)\n+H$11*OFFSET('Efficiency Distributions'!$E$10,MATCH($C145,'Efficiency Distributions'!$C$9:$C$87,0)+RIGHT($E155),0))\n/SUM(H$10:H$11)","v":0},{"$f":"IF(INDEX(PC_MAPPING,RIGHT($C145,1),MATCH($E$2,'Data by Building Type'!$D$22:$F$22,0))=\"Yes\",1,0)*\n(I$10*OFFSET('Efficiency Distributions'!$D$10,MATCH($C145,'Efficiency Distributions'!$C$9:$C$87,0)+RIGHT($E155),0)\n+I$11*OFFSET('Efficiency Distributions'!$E$10,MATCH($C145,'Efficiency Distributions'!$C$9:$C$87,0)+RIGHT($E155),0))\n/SUM(I$10:I$11)","v":0},{"$f":"IF(INDEX(PC_MAPPING,RIGHT($C145,1),MATCH($E$2,'Data by Building Type'!$D$22:$F$22,0))=\"Yes\",1,0)*\n(J$10*OFFSET('Efficiency Distributions'!$D$10,MATCH($C145,'Efficiency Distributions'!$C$9:$C$87,0)+RIGHT($E155),0)\n+J$11*OFFSET('Efficiency Distributions'!$E$10,MATCH($C145,'Efficiency Distributions'!$C$9:$C$87,0)+RIGHT($E155),0))\n/SUM(J$10:J$11)","v":0},{"$f":"IF(INDEX(PC_MAPPING,RIGHT($C145,1),MATCH($E$2,'Data by Building Type'!$D$22:$F$22,0))=\"Yes\",1,0)*\n(K$10*OFFSET('Efficiency Distributions'!$D$10,MATCH($C145,'Efficiency Distributions'!$C$9:$C$87,0)+RIGHT($E155),0)\n+K$11*OFFSET('Efficiency Distributions'!$E$10,MATCH($C145,'Efficiency Distributions'!$C$9:$C$87,0)+RIGHT($E155),0))\n/SUM(K$10:K$11)","v":0},{"$f":"IF(INDEX(PC_MAPPING,RIGHT($C145,1),MATCH($E$2,'Data by Building Type'!$D$22:$F$22,0))=\"Yes\",1,0)*\n(L$10*OFFSET('Efficiency Distributions'!$D$10,MATCH($C145,'Efficiency Distributions'!$C$9:$C$87,0)+RIGHT($E155),0)\n+L$11*OFFSET('Efficiency Distributions'!$E$10,MATCH($C145,'Efficiency Distributions'!$C$9:$C$87,0)+RIGHT($E155),0))\n/SUM(L$10:L$11)","v":0},{"$f":"IF(INDEX(PC_MAPPING,RIGHT($C145,1),MATCH($E$2,'Data by Building Type'!$D$22:$F$22,0))=\"Yes\",1,0)*\n(M$10*OFFSET('Efficiency Distributions'!$D$10,MATCH($C145,'Efficiency Distributions'!$C$9:$C$87,0)+RIGHT($E155),0)\n+M$11*OFFSET('Efficiency Distributions'!$E$10,MATCH($C145,'Efficiency Distributions'!$C$9:$C$87,0)+RIGHT($E155),0))\n/SUM(M$10:M$11)","v":0},{"$f":"IF(INDEX(PC_MAPPING,RIGHT($C145,1),MATCH($E$2,'Data by Building Type'!$D$22:$F$22,0))=\"Yes\",1,0)*\n(N$10*OFFSET('Efficiency Distributions'!$D$10,MATCH($C145,'Efficiency Distributions'!$C$9:$C$87,0)+RIGHT($E155),0)\n+N$11*OFFSET('Efficiency Distributions'!$E$10,MATCH($C145,'Efficiency Distributions'!$C$9:$C$87,0)+RIGHT($E155),0))\n/SUM(N$10:N$11)","v":0},{"$f":"IF(INDEX(PC_MAPPING,RIGHT($C145,1),MATCH($E$2,'Data by Building Type'!$D$22:$F$22,0))=\"Yes\",1,0)*\n(O$10*OFFSET('Efficiency Distributions'!$D$10,MATCH($C145,'Efficiency Distributions'!$C$9:$C$87,0)+RIGHT($E155),0)\n+O$11*OFFSET('Efficiency Distributions'!$E$10,MATCH($C145,'Efficiency Distributions'!$C$9:$C$87,0)+RIGHT($E155),0))\n/SUM(O$10:O$11)","v":0},{"$f":"IF(INDEX(PC_MAPPING,RIGHT($C145,1),MATCH($E$2,'Data by Building Type'!$D$22:$F$22,0))=\"Yes\",1,0)*\n(P$10*OFFSET('Efficiency Distributions'!$D$10,MATCH($C145,'Efficiency Distributions'!$C$9:$C$87,0)+RIGHT($E155),0)\n+P$11*OFFSET('Efficiency Distributions'!$E$10,MATCH($C145,'Efficiency Distributions'!$C$9:$C$87,0)+RIGHT($E155),0))\n/SUM(P$10:P$11)","v":0},{"$f":"IF(INDEX(PC_MAPPING,RIGHT($C145,1),MATCH($E$2,'Data by Building Type'!$D$22:$F$22,0))=\"Yes\",1,0)*\n(Q$10*OFFSET('Efficiency Distributions'!$D$10,MATCH($C145,'Efficiency Distributions'!$C$9:$C$87,0)+RIGHT($E155),0)\n+Q$11*OFFSET('Efficiency Distributions'!$E$10,MATCH($C145,'Efficiency Distributions'!$C$9:$C$87,0)+RIGHT($E155),0))\n/SUM(Q$10:Q$11)","v":0},{"$f":"IF(INDEX(PC_MAPPING,RIGHT($C145,1),MATCH($E$2,'Data by Building Type'!$D$22:$F$22,0))=\"Yes\",1,0)*\n(R$10*OFFSET('Efficiency Distributions'!$D$10,MATCH($C145,'Efficiency Distributions'!$C$9:$C$87,0)+RIGHT($E155),0)\n+R$11*OFFSET('Efficiency Distributions'!$E$10,MATCH($C145,'Efficiency Distributions'!$C$9:$C$87,0)+RIGHT($E155),0))\n/SUM(R$10:R$11)","v":0},{"$f":"IF(INDEX(PC_MAPPING,RIGHT($C145,1),MATCH($E$2,'Data by Building Type'!$D$22:$F$22,0))=\"Yes\",1,0)*\n(S$10*OFFSET('Efficiency Distributions'!$D$10,MATCH($C145,'Efficiency Distributions'!$C$9:$C$87,0)+RIGHT($E155),0)\n+S$11*OFFSET('Efficiency Distributions'!$E$10,MATCH($C145,'Efficiency Distributions'!$C$9:$C$87,0)+RIGHT($E155),0))\n/SUM(S$10:S$11)","v":0},{"$f":"IF(INDEX(PC_MAPPING,RIGHT($C145,1),MATCH($E$2,'Data by Building Type'!$D$22:$F$22,0))=\"Yes\",1,0)*\n(T$10*OFFSET('Efficiency Distributions'!$D$10,MATCH($C145,'Efficiency Distributions'!$C$9:$C$87,0)+RIGHT($E155),0)\n+T$11*OFFSET('Efficiency Distributions'!$E$10,MATCH($C145,'Efficiency Distributions'!$C$9:$C$87,0)+RIGHT($E155),0))\n/SUM(T$10:T$11)","v":0},{"$f":"IF(INDEX(PC_MAPPING,RIGHT($C145,1),MATCH($E$2,'Data by Building Type'!$D$22:$F$22,0))=\"Yes\",1,0)*\n(U$10*OFFSET('Efficiency Distributions'!$D$10,MATCH($C145,'Efficiency Distributions'!$C$9:$C$87,0)+RIGHT($E155),0)\n+U$11*OFFSET('Efficiency Distributions'!$E$10,MATCH($C145,'Efficiency Distributions'!$C$9:$C$87,0)+RIGHT($E155),0))\n/SUM(U$10:U$11)","v":0},{"$f":"IF(INDEX(PC_MAPPING,RIGHT($C145,1),MATCH($E$2,'Data by Building Type'!$D$22:$F$22,0))=\"Yes\",1,0)*\n(V$10*OFFSET('Efficiency Distributions'!$D$10,MATCH($C145,'Efficiency Distributions'!$C$9:$C$87,0)+RIGHT($E155),0)\n+V$11*OFFSET('Efficiency Distributions'!$E$10,MATCH($C145,'Efficiency Distributions'!$C$9:$C$87,0)+RIGHT($E155),0))\n/SUM(V$10:V$11)","v":0},{"$f":"IF(INDEX(PC_MAPPING,RIGHT($C145,1),MATCH($E$2,'Data by Building Type'!$D$22:$F$22,0))=\"Yes\",1,0)*\n(W$10*OFFSET('Efficiency Distributions'!$D$10,MATCH($C145,'Efficiency Distributions'!$C$9:$C$87,0)+RIGHT($E155),0)\n+W$11*OFFSET('Efficiency Distributions'!$E$10,MATCH($C145,'Efficiency Distributions'!$C$9:$C$87,0)+RIGHT($E155),0))\n/SUM(W$10:W$11)","v":0},{"$f":"IF(INDEX(PC_MAPPING,RIGHT($C145,1),MATCH($E$2,'Data by Building Type'!$D$22:$F$22,0))=\"Yes\",1,0)*\n(X$10*OFFSET('Efficiency Distributions'!$D$10,MATCH($C145,'Efficiency Distributions'!$C$9:$C$87,0)+RIGHT($E155),0)\n+X$11*OFFSET('Efficiency Distributions'!$E$10,MATCH($C145,'Efficiency Distributions'!$C$9:$C$87,0)+RIGHT($E155),0))\n/SUM(X$10:X$11)","v":0},{"$f":"IF(INDEX(PC_MAPPING,RIGHT($C145,1),MATCH($E$2,'Data by Building Type'!$D$22:$F$22,0))=\"Yes\",1,0)*\n(Y$10*OFFSET('Efficiency Distributions'!$D$10,MATCH($C145,'Efficiency Distributions'!$C$9:$C$87,0)+RIGHT($E155),0)\n+Y$11*OFFSET('Efficiency Distributions'!$E$10,MATCH($C145,'Efficiency Distributions'!$C$9:$C$87,0)+RIGHT($E155),0))\n/SUM(Y$10:Y$11)","v":0},{"$f":"IF(INDEX(PC_MAPPING,RIGHT($C145,1),MATCH($E$2,'Data by Building Type'!$D$22:$F$22,0))=\"Yes\",1,0)*\n(Z$10*OFFSET('Efficiency Distributions'!$D$10,MATCH($C145,'Efficiency Distributions'!$C$9:$C$87,0)+RIGHT($E155),0)\n+Z$11*OFFSET('Efficiency Distributions'!$E$10,MATCH($C145,'Efficiency Distributions'!$C$9:$C$87,0)+RIGHT($E155),0))\n/SUM(Z$10:Z$11)","v":0},{"$f":"IF(INDEX(PC_MAPPING,RIGHT($C145,1),MATCH($E$2,'Data by Building Type'!$D$22:$F$22,0))=\"Yes\",1,0)*\n(AA$10*OFFSET('Efficiency Distributions'!$D$10,MATCH($C145,'Efficiency Distributions'!$C$9:$C$87,0)+RIGHT($E155),0)\n+AA$11*OFFSET('Efficiency Distributions'!$E$10,MATCH($C145,'Efficiency Distributions'!$C$9:$C$87,0)+RIGHT($E155),0))\n/SUM(AA$10:AA$11)","v":0},{"$f":"IF(INDEX(PC_MAPPING,RIGHT($C145,1),MATCH($E$2,'Data by Building Type'!$D$22:$F$22,0))=\"Yes\",1,0)*\n(AB$10*OFFSET('Efficiency Distributions'!$D$10,MATCH($C145,'Efficiency Distributions'!$C$9:$C$87,0)+RIGHT($E155),0)\n+AB$11*OFFSET('Efficiency Distributions'!$E$10,MATCH($C145,'Efficiency Distributions'!$C$9:$C$87,0)+RIGHT($E155),0))\n/SUM(AB$10:AB$11)","v":0},{"$f":"IF(INDEX(PC_MAPPING,RIGHT($C145,1),MATCH($E$2,'Data by Building Type'!$D$22:$F$22,0))=\"Yes\",1,0)*\n(AC$10*OFFSET('Efficiency Distributions'!$D$10,MATCH($C145,'Efficiency Distributions'!$C$9:$C$87,0)+RIGHT($E155),0)\n+AC$11*OFFSET('Efficiency Distributions'!$E$10,MATCH($C145,'Efficiency Distributions'!$C$9:$C$87,0)+RIGHT($E155),0))\n/SUM(AC$10:AC$11)","v":0},{"$f":"IF(INDEX(PC_MAPPING,RIGHT($C145,1),MATCH($E$2,'Data by Building Type'!$D$22:$F$22,0))=\"Yes\",1,0)*\n(AD$10*OFFSET('Efficiency Distributions'!$D$10,MATCH($C145,'Efficiency Distributions'!$C$9:$C$87,0)+RIGHT($E155),0)\n+AD$11*OFFSET('Efficiency Distributions'!$E$10,MATCH($C145,'Efficiency Distributions'!$C$9:$C$87,0)+RIGHT($E155),0))\n/SUM(AD$10:AD$11)","v":0},{"$f":"IF(INDEX(PC_MAPPING,RIGHT($C145,1),MATCH($E$2,'Data by Building Type'!$D$22:$F$22,0))=\"Yes\",1,0)*\n(AE$10*OFFSET('Efficiency Distributions'!$D$10,MATCH($C145,'Efficiency Distributions'!$C$9:$C$87,0)+RIGHT($E155),0)\n+AE$11*OFFSET('Efficiency Distributions'!$E$10,MATCH($C145,'Efficiency Distributions'!$C$9:$C$87,0)+RIGHT($E155),0))\n/SUM(AE$10:AE$11)","v":0},{"$f":"IF(INDEX(PC_MAPPING,RIGHT($C145,1),MATCH($E$2,'Data by Building Type'!$D$22:$F$22,0))=\"Yes\",1,0)*\n(AF$10*OFFSET('Efficiency Distributions'!$D$10,MATCH($C145,'Efficiency Distributions'!$C$9:$C$87,0)+RIGHT($E155),0)\n+AF$11*OFFSET('Efficiency Distributions'!$E$10,MATCH($C145,'Efficiency Distributions'!$C$9:$C$87,0)+RIGHT($E155),0))\n/SUM(AF$10:AF$11)","v":0},{"$f":"IF(INDEX(PC_MAPPING,RIGHT($C145,1),MATCH($E$2,'Data by Building Type'!$D$22:$F$22,0))=\"Yes\",1,0)*\n(AG$10*OFFSET('Efficiency Distributions'!$D$10,MATCH($C145,'Efficiency Distributions'!$C$9:$C$87,0)+RIGHT($E155),0)\n+AG$11*OFFSET('Efficiency Distributions'!$E$10,MATCH($C145,'Efficiency Distributions'!$C$9:$C$87,0)+RIGHT($E155),0))\n/SUM(AG$10:AG$11)","v":0},{"$f":"IF(INDEX(PC_MAPPING,RIGHT($C145,1),MATCH($E$2,'Data by Building Type'!$D$22:$F$22,0))=\"Yes\",1,0)*\n(AH$10*OFFSET('Efficiency Distributions'!$D$10,MATCH($C145,'Efficiency Distributions'!$C$9:$C$87,0)+RIGHT($E155),0)\n+AH$11*OFFSET('Efficiency Distributions'!$E$10,MATCH($C145,'Efficiency Distributions'!$C$9:$C$87,0)+RIGHT($E155),0))\n/SUM(AH$10:AH$11)","v":0},{"$f":"IF(INDEX(PC_MAPPING,RIGHT($C145,1),MATCH($E$2,'Data by Building Type'!$D$22:$F$22,0))=\"Yes\",1,0)*\n(AI$10*OFFSET('Efficiency Distributions'!$D$10,MATCH($C145,'Efficiency Distributions'!$C$9:$C$87,0)+RIGHT($E155),0)\n+AI$11*OFFSET('Efficiency Distributions'!$E$10,MATCH($C145,'Efficiency Distributions'!$C$9:$C$87,0)+RIGHT($E155),0))\n/SUM(AI$10:AI$11)","v":0},{"$f":"IF(INDEX(PC_MAPPING,RIGHT($C145,1),MATCH($E$2,'Data by Building Type'!$D$22:$F$22,0))=\"Yes\",1,0)*\n(AJ$10*OFFSET('Efficiency Distributions'!$D$10,MATCH($C145,'Efficiency Distributions'!$C$9:$C$87,0)+RIGHT($E155),0)\n+AJ$11*OFFSET('Efficiency Distributions'!$E$10,MATCH($C145,'Efficiency Distributions'!$C$9:$C$87,0)+RIGHT($E155),0))\n/SUM(AJ$10:AJ$11)","v":0},{"$f":"IF(INDEX(PC_MAPPING,RIGHT($C145,1),MATCH($E$2,'Data by Building Type'!$D$22:$F$22,0))=\"Yes\",1,0)*\n(AK$10*OFFSET('Efficiency Distributions'!$D$10,MATCH($C145,'Efficiency Distributions'!$C$9:$C$87,0)+RIGHT($E155),0)\n+AK$11*OFFSET('Efficiency Distributions'!$E$10,MATCH($C145,'Efficiency Distributions'!$C$9:$C$87,0)+RIGHT($E155),0))\n/SUM(AK$10:AK$11)","v":0},{"$f":"IF(INDEX(PC_MAPPING,RIGHT($C145,1),MATCH($E$2,'Data by Building Type'!$D$22:$F$22,0))=\"Yes\",1,0)*\n(AL$10*OFFSET('Efficiency Distributions'!$D$10,MATCH($C145,'Efficiency Distributions'!$C$9:$C$87,0)+RIGHT($E155),0)\n+AL$11*OFFSET('Efficiency Distributions'!$E$10,MATCH($C145,'Efficiency Distributions'!$C$9:$C$87,0)+RIGHT($E155),0))\n/SUM(AL$10:AL$11)","v":0},{"$f":"IF(INDEX(PC_MAPPING,RIGHT($C145,1),MATCH($E$2,'Data by Building Type'!$D$22:$F$22,0))=\"Yes\",1,0)*\n(AM$10*OFFSET('Efficiency Distributions'!$D$10,MATCH($C145,'Efficiency Distributions'!$C$9:$C$87,0)+RIGHT($E155),0)\n+AM$11*OFFSET('Efficiency Distributions'!$E$10,MATCH($C145,'Efficiency Distributions'!$C$9:$C$87,0)+RIGHT($E155),0))\n/SUM(AM$10:AM$11)","v":0},{"$f":"IF(INDEX(PC_MAPPING,RIGHT($C145,1),MATCH($E$2,'Data by Building Type'!$D$22:$F$22,0))=\"Yes\",1,0)*\n(AN$10*OFFSET('Efficiency Distributions'!$D$10,MATCH($C145,'Efficiency Distributions'!$C$9:$C$87,0)+RIGHT($E155),0)\n+AN$11*OFFSET('Efficiency Distributions'!$E$10,MATCH($C145,'Efficiency Distributions'!$C$9:$C$87,0)+RIGHT($E155),0))\n/SUM(AN$10:AN$11)","v":0},{"$f":"IF(INDEX(PC_MAPPING,RIGHT($C145,1),MATCH($E$2,'Data by Building Type'!$D$22:$F$22,0))=\"Yes\",1,0)*\n(AO$10*OFFSET('Efficiency Distributions'!$D$10,MATCH($C145,'Efficiency Distributions'!$C$9:$C$87,0)+RIGHT($E155),0)\n+AO$11*OFFSET('Efficiency Distributions'!$E$10,MATCH($C145,'Efficiency Distributions'!$C$9:$C$87,0)+RIGHT($E155),0))\n/SUM(AO$10:AO$11)","v":0},{"$f":"IF(INDEX(PC_MAPPING,RIGHT($C145,1),MATCH($E$2,'Data by Building Type'!$D$22:$F$22,0))=\"Yes\",1,0)*\n(AP$10*OFFSET('Efficiency Distributions'!$D$10,MATCH($C145,'Efficiency Distributions'!$C$9:$C$87,0)+RIGHT($E155),0)\n+AP$11*OFFSET('Efficiency Distributions'!$E$10,MATCH($C145,'Efficiency Distributions'!$C$9:$C$87,0)+RIGHT($E155),0))\n/SUM(AP$10:AP$11)","v":0},{"$f":"IF(INDEX(PC_MAPPING,RIGHT($C145,1),MATCH($E$2,'Data by Building Type'!$D$22:$F$22,0))=\"Yes\",1,0)*\n(AQ$10*OFFSET('Efficiency Distributions'!$D$10,MATCH($C145,'Efficiency Distributions'!$C$9:$C$87,0)+RIGHT($E155),0)\n+AQ$11*OFFSET('Efficiency Distributions'!$E$10,MATCH($C145,'Efficiency Distributions'!$C$9:$C$87,0)+RIGHT($E155),0))\n/SUM(AQ$10:AQ$11)","v":0},{"$f":"IF(INDEX(PC_MAPPING,RIGHT($C145,1),MATCH($E$2,'Data by Building Type'!$D$22:$F$22,0))=\"Yes\",1,0)*\n(AR$10*OFFSET('Efficiency Distributions'!$D$10,MATCH($C145,'Efficiency Distributions'!$C$9:$C$87,0)+RIGHT($E155),0)\n+AR$11*OFFSET('Efficiency Distributions'!$E$10,MATCH($C145,'Efficiency Distributions'!$C$9:$C$87,0)+RIGHT($E155),0))\n/SUM(AR$10:AR$11)","v":0},{"$f":"IF(INDEX(PC_MAPPING,RIGHT($C145,1),MATCH($E$2,'Data by Building Type'!$D$22:$F$22,0))=\"Yes\",1,0)*\n(AS$10*OFFSET('Efficiency Distributions'!$D$10,MATCH($C145,'Efficiency Distributions'!$C$9:$C$87,0)+RIGHT($E155),0)\n+AS$11*OFFSET('Efficiency Distributions'!$E$10,MATCH($C145,'Efficiency Distributions'!$C$9:$C$87,0)+RIGHT($E155),0))\n/SUM(AS$10:AS$11)","v":0},{"$f":"IF(INDEX(PC_MAPPING,RIGHT($C145,1),MATCH($E$2,'Data by Building Type'!$D$22:$F$22,0))=\"Yes\",1,0)*\n(AT$10*OFFSET('Efficiency Distributions'!$D$10,MATCH($C145,'Efficiency Distributions'!$C$9:$C$87,0)+RIGHT($E155),0)\n+AT$11*OFFSET('Efficiency Distributions'!$E$10,MATCH($C145,'Efficiency Distributions'!$C$9:$C$87,0)+RIGHT($E155),0))\n/SUM(AT$10:AT$11)","v":0},{"$f":"IF(INDEX(PC_MAPPING,RIGHT($C145,1),MATCH($E$2,'Data by Building Type'!$D$22:$F$22,0))=\"Yes\",1,0)*\n(AU$10*OFFSET('Efficiency Distributions'!$D$10,MATCH($C145,'Efficiency Distributions'!$C$9:$C$87,0)+RIGHT($E155),0)\n+AU$11*OFFSET('Efficiency Distributions'!$E$10,MATCH($C145,'Efficiency Distributions'!$C$9:$C$87,0)+RIGHT($E155),0))\n/SUM(AU$10:AU$11)","v":0},{"$f":"IF(INDEX(PC_MAPPING,RIGHT($C145,1),MATCH($E$2,'Data by Building Type'!$D$22:$F$22,0))=\"Yes\",1,0)*\n(AV$10*OFFSET('Efficiency Distributions'!$D$10,MATCH($C145,'Efficiency Distributions'!$C$9:$C$87,0)+RIGHT($E155),0)\n+AV$11*OFFSET('Efficiency Distributions'!$E$10,MATCH($C145,'Efficiency Distributions'!$C$9:$C$87,0)+RIGHT($E155),0))\n/SUM(AV$10:AV$11)","v":0},{"$f":"IF(INDEX(PC_MAPPING,RIGHT($C145,1),MATCH($E$2,'Data by Building Type'!$D$22:$F$22,0))=\"Yes\",1,0)*\n(AW$10*OFFSET('Efficiency Distributions'!$D$10,MATCH($C145,'Efficiency Distributions'!$C$9:$C$87,0)+RIGHT($E155),0)\n+AW$11*OFFSET('Efficiency Distributions'!$E$10,MATCH($C145,'Efficiency Distributions'!$C$9:$C$87,0)+RIGHT($E155),0))\n/SUM(AW$10:AW$11)","v":0},{"$f":"IF(INDEX(PC_MAPPING,RIGHT($C145,1),MATCH($E$2,'Data by Building Type'!$D$22:$F$22,0))=\"Yes\",1,0)*\n(AX$10*OFFSET('Efficiency Distributions'!$D$10,MATCH($C145,'Efficiency Distributions'!$C$9:$C$87,0)+RIGHT($E155),0)\n+AX$11*OFFSET('Efficiency Distributions'!$E$10,MATCH($C145,'Efficiency Distributions'!$C$9:$C$87,0)+RIGHT($E155),0))\n/SUM(AX$10:AX$11)","v":0},{"$f":"IF(INDEX(PC_MAPPING,RIGHT($C145,1),MATCH($E$2,'Data by Building Type'!$D$22:$F$22,0))=\"Yes\",1,0)*\n(AY$10*OFFSET('Efficiency Distributions'!$D$10,MATCH($C145,'Efficiency Distributions'!$C$9:$C$87,0)+RIGHT($E155),0)\n+AY$11*OFFSET('Efficiency Distributions'!$E$10,MATCH($C145,'Efficiency Distributions'!$C$9:$C$87,0)+RIGHT($E155),0))\n/SUM(AY$10:AY$11)","v":0},{"$f":"IF(INDEX(PC_MAPPING,RIGHT($C145,1),MATCH($E$2,'Data by Building Type'!$D$22:$F$22,0))=\"Yes\",1,0)*\n(AZ$10*OFFSET('Efficiency Distributions'!$D$10,MATCH($C145,'Efficiency Distributions'!$C$9:$C$87,0)+RIGHT($E155),0)\n+AZ$11*OFFSET('Efficiency Distributions'!$E$10,MATCH($C145,'Efficiency Distributions'!$C$9:$C$87,0)+RIGHT($E155),0))\n/SUM(AZ$10:AZ$11)","v":0},{"$f":"IF(INDEX(PC_MAPPING,RIGHT($C145,1),MATCH($E$2,'Data by Building Type'!$D$22:$F$22,0))=\"Yes\",1,0)*\n(BA$10*OFFSET('Efficiency Distributions'!$D$10,MATCH($C145,'Efficiency Distributions'!$C$9:$C$87,0)+RIGHT($E155),0)\n+BA$11*OFFSET('Efficiency Distributions'!$E$10,MATCH($C145,'Efficiency Distributions'!$C$9:$C$87,0)+RIGHT($E155),0))\n/SUM(BA$10:BA$11)","v":0},{"$f":"IF(INDEX(PC_MAPPING,RIGHT($C145,1),MATCH($E$2,'Data by Building Type'!$D$22:$F$22,0))=\"Yes\",1,0)*\n(BB$10*OFFSET('Efficiency Distributions'!$D$10,MATCH($C145,'Efficiency Distributions'!$C$9:$C$87,0)+RIGHT($E155),0)\n+BB$11*OFFSET('Efficiency Distributions'!$E$10,MATCH($C145,'Efficiency Distributions'!$C$9:$C$87,0)+RIGHT($E155),0))\n/SUM(BB$10:BB$11)","v":0},{"$f":"IF(INDEX(PC_MAPPING,RIGHT($C145,1),MATCH($E$2,'Data by Building Type'!$D$22:$F$22,0))=\"Yes\",1,0)*\n(BC$10*OFFSET('Efficiency Distributions'!$D$10,MATCH($C145,'Efficiency Distributions'!$C$9:$C$87,0)+RIGHT($E155),0)\n+BC$11*OFFSET('Efficiency Distributions'!$E$10,MATCH($C145,'Efficiency Distributions'!$C$9:$C$87,0)+RIGHT($E155),0))\n/SUM(BC$10:BC$11)","v":0},{"$f":"IF(INDEX(PC_MAPPING,RIGHT($C145,1),MATCH($E$2,'Data by Building Type'!$D$22:$F$22,0))=\"Yes\",1,0)*\n(BD$10*OFFSET('Efficiency Distributions'!$D$10,MATCH($C145,'Efficiency Distributions'!$C$9:$C$87,0)+RIGHT($E155),0)\n+BD$11*OFFSET('Efficiency Distributions'!$E$10,MATCH($C145,'Efficiency Distributions'!$C$9:$C$87,0)+RIGHT($E155),0))\n/SUM(BD$10:BD$11)","v":0},{"$f":"IF(INDEX(PC_MAPPING,RIGHT($C145,1),MATCH($E$2,'Data by Building Type'!$D$22:$F$22,0))=\"Yes\",1,0)*\n(BE$10*OFFSET('Efficiency Distributions'!$D$10,MATCH($C145,'Efficiency Distributions'!$C$9:$C$87,0)+RIGHT($E155),0)\n+BE$11*OFFSET('Efficiency Distributions'!$E$10,MATCH($C145,'Efficiency Distributions'!$C$9:$C$87,0)+RIGHT($E155),0))\n/SUM(BE$10:BE$11)","v":0},{"$f":"IF(INDEX(PC_MAPPING,RIGHT($C145,1),MATCH($E$2,'Data by Building Type'!$D$22:$F$22,0))=\"Yes\",1,0)*\n(BF$10*OFFSET('Efficiency Distributions'!$D$10,MATCH($C145,'Efficiency Distributions'!$C$9:$C$87,0)+RIGHT($E155),0)\n+BF$11*OFFSET('Efficiency Distributions'!$E$10,MATCH($C145,'Efficiency Distributions'!$C$9:$C$87,0)+RIGHT($E155),0))\n/SUM(BF$10:BF$11)","v":0},{"$f":"IF(INDEX(PC_MAPPING,RIGHT($C145,1),MATCH($E$2,'Data by Building Type'!$D$22:$F$22,0))=\"Yes\",1,0)*\n(BG$10*OFFSET('Efficiency Distributions'!$D$10,MATCH($C145,'Efficiency Distributions'!$C$9:$C$87,0)+RIGHT($E155),0)\n+BG$11*OFFSET('Efficiency Distributions'!$E$10,MATCH($C145,'Efficiency Distributions'!$C$9:$C$87,0)+RIGHT($E155),0))\n/SUM(BG$10:BG$11)","v":0}]
[null,null,null,null,"TOTAL",{"$f":"SUM(F149:F155)","v":0},0,{"$f":"SUM(H149:H155)","v":0},0,0,0,0,0,0,0,0,0,0,0,0,0,0,0,0,0,0,0,0,0,0,0,0,0,0,0,0,0,0,0,0,0,0,0,0,0,0,0,0,0,0,0,0,0,0,0,0,0,0,0]
[]
[null,null,null,"POST-Case"]
[null,null,null,null,"Efficiency Level",1981,{"$f":"F159+1","v":1982},{"$f":"G159+1","v":1983},1984,1985,1986,1987,1988,1989,1990,{"$f":"O159+1","v":1991},{"$f":"P159+1","v":1992},1993,1994,1995,1996,1997,1998,1999,2000,2001,2002,2003,2004,2005,2006,2007,2008,2009,2010,2011,2012,2013,2014,2015,2016,2017,2018,2019,2020,2021,2022,2023,2024,2025,2026,2027,2028,2029,2030,2031,2032,2033,2034]
[null,null,null,null,"EL0",{"$f":"IF(F$29<STANDARD_YEAR,F149,\nIF(RIGHT($E160,1)>RIGHT(INDEX(STANDARD_LEVELS,1,MID($C145,4,1)),1),F149,\nIF(RIGHT($E160,1)<RIGHT(INDEX(STANDARD_LEVELS,1,MID($C145,4,1)),1),0,\nIF(RIGHT($E160,1)=RIGHT(INDEX(STANDARD_LEVELS,1,MID($C145,4,1)),1),SUM(OFFSET(F149,-(RIGHT($E160,1)),0,RIGHT($E160,1)+1,1)),\"ERROR\"))))","v":0},0,{"$f":"IF(H$29<STANDARD_YEAR,H149,\nIF(RIGHT($E160,1)>RIGHT(INDEX(STANDARD_LEVELS,1,MID($C145,4,1)),1),H149,\nIF(RIGHT($E160,1)<RIGHT(INDEX(STANDARD_LEVELS,1,MID($C145,4,1)),1),0,\nIF(RIGHT($E160,1)=RIGHT(INDEX(STANDARD_LEVELS,1,MID($C145,4,1)),1),SUM(OFFSET(H149,-(RIGHT($E160,1)),0,RIGHT($E160,1)+1,1)),\"ERROR\"))))","v":0},0,0,0,0,0,0,0,0,0,0,0,0,0,0,0,0,0,0,0,0,0,0,0,0,0,0,0,0,0,0,0,0,0,0,0,0,0,0,0,0,0,0,0,0,0,0,0,0,0,0,0]
[null,null,null,null,"EL1",{"$f":"IF(F$29<STANDARD_YEAR,F150,\nIF(RIGHT($E161,1)>RIGHT(INDEX(STANDARD_LEVELS,1,MID($C145,4,1)),1),F150,\nIF(RIGHT($E161,1)<RIGHT(INDEX(STANDARD_LEVELS,1,MID($C145,4,1)),1),0,\nIF(RIGHT($E161,1)=RIGHT(INDEX(STANDARD_LEVELS,1,MID($C145,4,1)),1),SUM(OFFSET(F150,-(RIGHT($E161,1)),0,RIGHT($E161,1)+1,1)),\"ERROR\"))))","v":0},0,{"$f":"IF(H$29<STANDARD_YEAR,H150,\nIF(RIGHT($E161,1)>RIGHT(INDEX(STANDARD_LEVELS,1,MID($C145,4,1)),1),H150,\nIF(RIGHT($E161,1)<RIGHT(INDEX(STANDARD_LEVELS,1,MID($C145,4,1)),1),0,\nIF(RIGHT($E161,1)=RIGHT(INDEX(STANDARD_LEVELS,1,MID($C145,4,1)),1),SUM(OFFSET(H150,-(RIGHT($E161,1)),0,RIGHT($E161,1)+1,1)),\"ERROR\"))))","v":0},0,0,0,0,0,0,0,0,0,0,0,0,0,0,0,0,0,0,0,0,0,0,0,0,0,0,0,0,0,0,0,0,0,0,0,0,0,0,0,0,0,0,0,0,0,0,0,0,0,0,0]
[null,null,null,null,"EL2",{"$f":"IF(F$29<STANDARD_YEAR,F151,\nIF(RIGHT($E162,1)>RIGHT(INDEX(STANDARD_LEVELS,1,MID($C145,4,1)),1),F151,\nIF(RIGHT($E162,1)<RIGHT(INDEX(STANDARD_LEVELS,1,MID($C145,4,1)),1),0,\nIF(RIGHT($E162,1)=RIGHT(INDEX(STANDARD_LEVELS,1,MID($C145,4,1)),1),SUM(OFFSET(F151,-(RIGHT($E162,1)),0,RIGHT($E162,1)+1,1)),\"ERROR\"))))","v":0},0,{"$f":"IF(H$29<STANDARD_YEAR,H151,\nIF(RIGHT($E162,1)>RIGHT(INDEX(STANDARD_LEVELS,1,MID($C145,4,1)),1),H151,\nIF(RIGHT($E162,1)<RIGHT(INDEX(STANDARD_LEVELS,1,MID($C145,4,1)),1),0,\nIF(RIGHT($E162,1)=RIGHT(INDEX(STANDARD_LEVELS,1,MID($C145,4,1)),1),SUM(OFFSET(H151,-(RIGHT($E162,1)),0,RIGHT($E162,1)+1,1)),\"ERROR\"))))","v":0},0,0,0,0,0,0,0,0,0,0,0,0,0,0,0,0,0,0,0,0,0,0,0,0,0,0,0,0,0,0,0,0,0,0,0,0,0,0,0,0,0,0,0,0,0,0,0,0,0,0,0]
[null,null,null,null,"EL3",{"$f":"IF(F$29<STANDARD_YEAR,F152,\nIF(RIGHT($E163,1)>RIGHT(INDEX(STANDARD_LEVELS,1,MID($C145,4,1)),1),F152,\nIF(RIGHT($E163,1)<RIGHT(INDEX(STANDARD_LEVELS,1,MID($C145,4,1)),1),0,\nIF(RIGHT($E163,1)=RIGHT(INDEX(STANDARD_LEVELS,1,MID($C145,4,1)),1),SUM(OFFSET(F152,-(RIGHT($E163,1)),0,RIGHT($E163,1)+1,1)),\"ERROR\"))))","v":0},0,{"$f":"IF(H$29<STANDARD_YEAR,H152,\nIF(RIGHT($E163,1)>RIGHT(INDEX(STANDARD_LEVELS,1,MID($C145,4,1)),1),H152,\nIF(RIGHT($E163,1)<RIGHT(INDEX(STANDARD_LEVELS,1,MID($C145,4,1)),1),0,\nIF(RIGHT($E163,1)=RIGHT(INDEX(STANDARD_LEVELS,1,MID($C145,4,1)),1),SUM(OFFSET(H152,-(RIGHT($E163,1)),0,RIGHT($E163,1)+1,1)),\"ERROR\"))))","v":0},0,0,0,0,0,0,0,0,0,0,0,0,0,0,0,0,0,0,0,0,0,0,0,0,0,0,0,0,0,0,0,0,0,0,0,0,0,0,0,0,0,0,0,0,0,0,0,0,0,0,0]
[null,null,null,null,"EL4",{"$f":"IF(F$29<STANDARD_YEAR,F153,\nIF(RIGHT($E164,1)>RIGHT(INDEX(STANDARD_LEVELS,1,MID($C145,4,1)),1),F153,\nIF(RIGHT($E164,1)<RIGHT(INDEX(STANDARD_LEVELS,1,MID($C145,4,1)),1),0,\nIF(RIGHT($E164,1)=RIGHT(INDEX(STANDARD_LEVELS,1,MID($C145,4,1)),1),SUM(OFFSET(F153,-(RIGHT($E164,1)),0,RIGHT($E164,1)+1,1)),\"ERROR\"))))","v":0},0,{"$f":"IF(H$29<STANDARD_YEAR,H153,\nIF(RIGHT($E164,1)>RIGHT(INDEX(STANDARD_LEVELS,1,MID($C145,4,1)),1),H153,\nIF(RIGHT($E164,1)<RIGHT(INDEX(STANDARD_LEVELS,1,MID($C145,4,1)),1),0,\nIF(RIGHT($E164,1)=RIGHT(INDEX(STANDARD_LEVELS,1,MID($C145,4,1)),1),SUM(OFFSET(H153,-(RIGHT($E164,1)),0,RIGHT($E164,1)+1,1)),\"ERROR\"))))","v":0},0,0,0,0,0,0,0,0,0,0,0,0,0,0,0,0,0,0,0,0,0,0,0,0,0,0,0,0,0,0,0,0,0,0,0,0,0,0,0,0,0,0,0,0,0,0,0,0,0,0,0]
[null,null,null,null,"EL5",{"$f":"IF(F$29<STANDARD_YEAR,F154,\nIF(RIGHT($E165,1)>RIGHT(INDEX(STANDARD_LEVELS,1,MID($C145,4,1)),1),F154,\nIF(RIGHT($E165,1)<RIGHT(INDEX(STANDARD_LEVELS,1,MID($C145,4,1)),1),0,\nIF(RIGHT($E165,1)=RIGHT(INDEX(STANDARD_LEVELS,1,MID($C145,4,1)),1),SUM(OFFSET(F154,-(RIGHT($E165,1)),0,RIGHT($E165,1)+1,1)),\"ERROR\"))))","v":0},0,{"$f":"IF(H$29<STANDARD_YEAR,H154,\nIF(RIGHT($E165,1)>RIGHT(INDEX(STANDARD_LEVELS,1,MID($C145,4,1)),1),H154,\nIF(RIGHT($E165,1)<RIGHT(INDEX(STANDARD_LEVELS,1,MID($C145,4,1)),1),0,\nIF(RIGHT($E165,1)=RIGHT(INDEX(STANDARD_LEVELS,1,MID($C145,4,1)),1),SUM(OFFSET(H154,-(RIGHT($E165,1)),0,RIGHT($E165,1)+1,1)),\"ERROR\"))))","v":0},0,0,0,0,0,0,0,0,0,0,0,0,0,0,0,0,0,0,0,0,0,0,0,0,0,0,0,0,0,0,0,0,0,0,0,0,0,0,0,0,0,0,0,0,0,0,0,0,0,0,0]
[null,null,null,null,"EL6",{"$f":"IF(F$29<STANDARD_YEAR,F155,\nIF(RIGHT($E166,1)>RIGHT(INDEX(STANDARD_LEVELS,1,MID($C145,4,1)),1),F155,\nIF(RIGHT($E166,1)<RIGHT(INDEX(STANDARD_LEVELS,1,MID($C145,4,1)),1),0,\nIF(RIGHT($E166,1)=RIGHT(INDEX(STANDARD_LEVELS,1,MID($C145,4,1)),1),SUM(OFFSET(F155,-(RIGHT($E166,1)),0,RIGHT($E166,1)+1,1)),\"ERROR\"))))","v":0},0,{"$f":"IF(H$29<STANDARD_YEAR,H155,\nIF(RIGHT($E166,1)>RIGHT(INDEX(STANDARD_LEVELS,1,MID($C145,4,1)),1),H155,\nIF(RIGHT($E166,1)<RIGHT(INDEX(STANDARD_LEVELS,1,MID($C145,4,1)),1),0,\nIF(RIGHT($E166,1)=RIGHT(INDEX(STANDARD_LEVELS,1,MID($C145,4,1)),1),SUM(OFFSET(H155,-(RIGHT($E166,1)),0,RIGHT($E166,1)+1,1)),\"ERROR\"))))","v":0},0,0,0,0,0,0,0,0,0,0,0,0,0,0,0,0,0,0,0,0,0,0,0,0,0,0,0,0,0,0,0,0,0,0,0,0,0,0,0,0,0,0,0,0,0,0,0,0,0,0,0]
[null,null,null,null,"TOTAL",{"$f":"SUM(F160:F166)","v":0},0,{"$f":"SUM(H160:H166)","v":0},0,0,0,0,0,0,0,0,0,0,0,0,0,0,0,0,0,0,0,0,0,0,0,0,0,0,0,0,0,0,0,0,0,0,0,0,0,0,0,0,0,0,0,0,0,0,0,0,0,0,0]
[]
[]
[]
[null,null,"PC 7",{"$f":"OFFSET('Product Classes'!$C$9,MATCH(C171,MODEL_PCS,0),0)","v":"Mobile Home Non-Weatherized, Condensing Gas Furnace Fan (MH-NWG-C)"}]
[]
[null,null,null,"PRE-Case"]
[null,null,null,null,"Efficiency Level",1981,{"$f":"F174+1","v":1982},{"$f":"G174+1","v":1983},1984,1985,1986,1987,1988,1989,1990,{"$f":"O174+1","v":1991},{"$f":"P174+1","v":1992},1993,1994,1995,1996,1997,1998,1999,2000,2001,2002,2003,2004,2005,2006,2007,2008,2009,2010,2011,2012,2013,2014,2015,2016,2017,2018,2019,2020,2021,2022,2023,2024,2025,2026,2027,2028,2029,2030,2031,2032,2033,2034]
[null,null,null,null,"EL0",{"$f":"IF(INDEX(PC_MAPPING,RIGHT($C171,1),MATCH($E$2,'Data by Building Type'!$D$22:$F$22,0))=\"Yes\",1,0)*\n(F$10*OFFSET('Efficiency Distributions'!$D$10,MATCH($C171,'Efficiency Distributions'!$C$9:$C$87,0)+RIGHT($E175),0)\n+F$11*OFFSET('Efficiency Distributions'!$E$10,MATCH($C171,'Efficiency Distributions'!$C$9:$C$87,0)+RIGHT($E175),0))\n/SUM(F$10:F$11)","v":0},{"$f":"IF(INDEX(PC_MAPPING,RIGHT($C171,1),MATCH($E$2,'Data by Building Type'!$D$22:$F$22,0))=\"Yes\",1,0)*\n(G$10*OFFSET('Efficiency Distributions'!$D$10,MATCH($C171,'Efficiency Distributions'!$C$9:$C$87,0)+RIGHT($E175),0)\n+G$11*OFFSET('Efficiency Distributions'!$E$10,MATCH($C171,'Efficiency Distributions'!$C$9:$C$87,0)+RIGHT($E175),0))\n/SUM(G$10:G$11)","v":0},{"$f":"IF(INDEX(PC_MAPPING,RIGHT($C171,1),MATCH($E$2,'Data by Building Type'!$D$22:$F$22,0))=\"Yes\",1,0)*\n(H$10*OFFSET('Efficiency Distributions'!$D$10,MATCH($C171,'Efficiency Distributions'!$C$9:$C$87,0)+RIGHT($E175),0)\n+H$11*OFFSET('Efficiency Distributions'!$E$10,MATCH($C171,'Efficiency Distributions'!$C$9:$C$87,0)+RIGHT($E175),0))\n/SUM(H$10:H$11)","v":0},{"$f":"IF(INDEX(PC_MAPPING,RIGHT($C171,1),MATCH($E$2,'Data by Building Type'!$D$22:$F$22,0))=\"Yes\",1,0)*\n(I$10*OFFSET('Efficiency Distributions'!$D$10,MATCH($C171,'Efficiency Distributions'!$C$9:$C$87,0)+RIGHT($E175),0)\n+I$11*OFFSET('Efficiency Distributions'!$E$10,MATCH($C171,'Efficiency Distributions'!$C$9:$C$87,0)+RIGHT($E175),0))\n/SUM(I$10:I$11)","v":0},{"$f":"IF(INDEX(PC_MAPPING,RIGHT($C171,1),MATCH($E$2,'Data by Building Type'!$D$22:$F$22,0))=\"Yes\",1,0)*\n(J$10*OFFSET('Efficiency Distributions'!$D$10,MATCH($C171,'Efficiency Distributions'!$C$9:$C$87,0)+RIGHT($E175),0)\n+J$11*OFFSET('Efficiency Distributions'!$E$10,MATCH($C171,'Efficiency Distributions'!$C$9:$C$87,0)+RIGHT($E175),0))\n/SUM(J$10:J$11)","v":0},{"$f":"IF(INDEX(PC_MAPPING,RIGHT($C171,1),MATCH($E$2,'Data by Building Type'!$D$22:$F$22,0))=\"Yes\",1,0)*\n(K$10*OFFSET('Efficiency Distributions'!$D$10,MATCH($C171,'Efficiency Distributions'!$C$9:$C$87,0)+RIGHT($E175),0)\n+K$11*OFFSET('Efficiency Distributions'!$E$10,MATCH($C171,'Efficiency Distributions'!$C$9:$C$87,0)+RIGHT($E175),0))\n/SUM(K$10:K$11)","v":0},{"$f":"IF(INDEX(PC_MAPPING,RIGHT($C171,1),MATCH($E$2,'Data by Building Type'!$D$22:$F$22,0))=\"Yes\",1,0)*\n(L$10*OFFSET('Efficiency Distributions'!$D$10,MATCH($C171,'Efficiency Distributions'!$C$9:$C$87,0)+RIGHT($E175),0)\n+L$11*OFFSET('Efficiency Distributions'!$E$10,MATCH($C171,'Efficiency Distributions'!$C$9:$C$87,0)+RIGHT($E175),0))\n/SUM(L$10:L$11)","v":0},{"$f":"IF(INDEX(PC_MAPPING,RIGHT($C171,1),MATCH($E$2,'Data by Building Type'!$D$22:$F$22,0))=\"Yes\",1,0)*\n(M$10*OFFSET('Efficiency Distributions'!$D$10,MATCH($C171,'Efficiency Distributions'!$C$9:$C$87,0)+RIGHT($E175),0)\n+M$11*OFFSET('Efficiency Distributions'!$E$10,MATCH($C171,'Efficiency Distributions'!$C$9:$C$87,0)+RIGHT($E175),0))\n/SUM(M$10:M$11)","v":0},{"$f":"IF(INDEX(PC_MAPPING,RIGHT($C171,1),MATCH($E$2,'Data by Building Type'!$D$22:$F$22,0))=\"Yes\",1,0)*\n(N$10*OFFSET('Efficiency Distributions'!$D$10,MATCH($C171,'Efficiency Distributions'!$C$9:$C$87,0)+RIGHT($E175),0)\n+N$11*OFFSET('Efficiency Distributions'!$E$10,MATCH($C171,'Efficiency Distributions'!$C$9:$C$87,0)+RIGHT($E175),0))\n/SUM(N$10:N$11)","v":0},{"$f":"IF(INDEX(PC_MAPPING,RIGHT($C171,1),MATCH($E$2,'Data by Building Type'!$D$22:$F$22,0))=\"Yes\",1,0)*\n(O$10*OFFSET('Efficiency Distributions'!$D$10,MATCH($C171,'Efficiency Distributions'!$C$9:$C$87,0)+RIGHT($E175),0)\n+O$11*OFFSET('Efficiency Distributions'!$E$10,MATCH($C171,'Efficiency Distributions'!$C$9:$C$87,0)+RIGHT($E175),0))\n/SUM(O$10:O$11)","v":0},{"$f":"IF(INDEX(PC_MAPPING,RIGHT($C171,1),MATCH($E$2,'Data by Building Type'!$D$22:$F$22,0))=\"Yes\",1,0)*\n(P$10*OFFSET('Efficiency Distributions'!$D$10,MATCH($C171,'Efficiency Distributions'!$C$9:$C$87,0)+RIGHT($E175),0)\n+P$11*OFFSET('Efficiency Distributions'!$E$10,MATCH($C171,'Efficiency Distributions'!$C$9:$C$87,0)+RIGHT($E175),0))\n/SUM(P$10:P$11)","v":0},{"$f":"IF(INDEX(PC_MAPPING,RIGHT($C171,1),MATCH($E$2,'Data by Building Type'!$D$22:$F$22,0))=\"Yes\",1,0)*\n(Q$10*OFFSET('Efficiency Distributions'!$D$10,MATCH($C171,'Efficiency Distributions'!$C$9:$C$87,0)+RIGHT($E175),0)\n+Q$11*OFFSET('Efficiency Distributions'!$E$10,MATCH($C171,'Efficiency Distributions'!$C$9:$C$87,0)+RIGHT($E175),0))\n/SUM(Q$10:Q$11)","v":0},{"$f":"IF(INDEX(PC_MAPPING,RIGHT($C171,1),MATCH($E$2,'Data by Building Type'!$D$22:$F$22,0))=\"Yes\",1,0)*\n(R$10*OFFSET('Efficiency Distributions'!$D$10,MATCH($C171,'Efficiency Distributions'!$C$9:$C$87,0)+RIGHT($E175),0)\n+R$11*OFFSET('Efficiency Distributions'!$E$10,MATCH($C171,'Efficiency Distributions'!$C$9:$C$87,0)+RIGHT($E175),0))\n/SUM(R$10:R$11)","v":0},{"$f":"IF(INDEX(PC_MAPPING,RIGHT($C171,1),MATCH($E$2,'Data by Building Type'!$D$22:$F$22,0))=\"Yes\",1,0)*\n(S$10*OFFSET('Efficiency Distributions'!$D$10,MATCH($C171,'Efficiency Distributions'!$C$9:$C$87,0)+RIGHT($E175),0)\n+S$11*OFFSET('Efficiency Distributions'!$E$10,MATCH($C171,'Efficiency Distributions'!$C$9:$C$87,0)+RIGHT($E175),0))\n/SUM(S$10:S$11)","v":0},{"$f":"IF(INDEX(PC_MAPPING,RIGHT($C171,1),MATCH($E$2,'Data by Building Type'!$D$22:$F$22,0))=\"Yes\",1,0)*\n(T$10*OFFSET('Efficiency Distributions'!$D$10,MATCH($C171,'Efficiency Distributions'!$C$9:$C$87,0)+RIGHT($E175),0)\n+T$11*OFFSET('Efficiency Distributions'!$E$10,MATCH($C171,'Efficiency Distributions'!$C$9:$C$87,0)+RIGHT($E175),0))\n/SUM(T$10:T$11)","v":0},{"$f":"IF(INDEX(PC_MAPPING,RIGHT($C171,1),MATCH($E$2,'Data by Building Type'!$D$22:$F$22,0))=\"Yes\",1,0)*\n(U$10*OFFSET('Efficiency Distributions'!$D$10,MATCH($C171,'Efficiency Distributions'!$C$9:$C$87,0)+RIGHT($E175),0)\n+U$11*OFFSET('Efficiency Distributions'!$E$10,MATCH($C171,'Efficiency Distributions'!$C$9:$C$87,0)+RIGHT($E175),0))\n/SUM(U$10:U$11)","v":0},{"$f":"IF(INDEX(PC_MAPPING,RIGHT($C171,1),MATCH($E$2,'Data by Building Type'!$D$22:$F$22,0))=\"Yes\",1,0)*\n(V$10*OFFSET('Efficiency Distributions'!$D$10,MATCH($C171,'Efficiency Distributions'!$C$9:$C$87,0)+RIGHT($E175),0)\n+V$11*OFFSET('Efficiency Distributions'!$E$10,MATCH($C171,'Efficiency Distributions'!$C$9:$C$87,0)+RIGHT($E175),0))\n/SUM(V$10:V$11)","v":0},{"$f":"IF(INDEX(PC_MAPPING,RIGHT($C171,1),MATCH($E$2,'Data by Building Type'!$D$22:$F$22,0))=\"Yes\",1,0)*\n(W$10*OFFSET('Efficiency Distributions'!$D$10,MATCH($C171,'Efficiency Distributions'!$C$9:$C$87,0)+RIGHT($E175),0)\n+W$11*OFFSET('Efficiency Distributions'!$E$10,MATCH($C171,'Efficiency Distributions'!$C$9:$C$87,0)+RIGHT($E175),0))\n/SUM(W$10:W$11)","v":0},{"$f":"IF(INDEX(PC_MAPPING,RIGHT($C171,1),MATCH($E$2,'Data by Building Type'!$D$22:$F$22,0))=\"Yes\",1,0)*\n(X$10*OFFSET('Efficiency Distributions'!$D$10,MATCH($C171,'Efficiency Distributions'!$C$9:$C$87,0)+RIGHT($E175),0)\n+X$11*OFFSET('Efficiency Distributions'!$E$10,MATCH($C171,'Efficiency Distributions'!$C$9:$C$87,0)+RIGHT($E175),0))\n/SUM(X$10:X$11)","v":0},{"$f":"IF(INDEX(PC_MAPPING,RIGHT($C171,1),MATCH($E$2,'Data by Building Type'!$D$22:$F$22,0))=\"Yes\",1,0)*\n(Y$10*OFFSET('Efficiency Distributions'!$D$10,MATCH($C171,'Efficiency Distributions'!$C$9:$C$87,0)+RIGHT($E175),0)\n+Y$11*OFFSET('Efficiency Distributions'!$E$10,MATCH($C171,'Efficiency Distributions'!$C$9:$C$87,0)+RIGHT($E175),0))\n/SUM(Y$10:Y$11)","v":0},{"$f":"IF(INDEX(PC_MAPPING,RIGHT($C171,1),MATCH($E$2,'Data by Building Type'!$D$22:$F$22,0))=\"Yes\",1,0)*\n(Z$10*OFFSET('Efficiency Distributions'!$D$10,MATCH($C171,'Efficiency Distributions'!$C$9:$C$87,0)+RIGHT($E175),0)\n+Z$11*OFFSET('Efficiency Distributions'!$E$10,MATCH($C171,'Efficiency Distributions'!$C$9:$C$87,0)+RIGHT($E175),0))\n/SUM(Z$10:Z$11)","v":0},{"$f":"IF(INDEX(PC_MAPPING,RIGHT($C171,1),MATCH($E$2,'Data by Building Type'!$D$22:$F$22,0))=\"Yes\",1,0)*\n(AA$10*OFFSET('Efficiency Distributions'!$D$10,MATCH($C171,'Efficiency Distributions'!$C$9:$C$87,0)+RIGHT($E175),0)\n+AA$11*OFFSET('Efficiency Distributions'!$E$10,MATCH($C171,'Efficiency Distributions'!$C$9:$C$87,0)+RIGHT($E175),0))\n/SUM(AA$10:AA$11)","v":0},{"$f":"IF(INDEX(PC_MAPPING,RIGHT($C171,1),MATCH($E$2,'Data by Building Type'!$D$22:$F$22,0))=\"Yes\",1,0)*\n(AB$10*OFFSET('Efficiency Distributions'!$D$10,MATCH($C171,'Efficiency Distributions'!$C$9:$C$87,0)+RIGHT($E175),0)\n+AB$11*OFFSET('Efficiency Distributions'!$E$10,MATCH($C171,'Efficiency Distributions'!$C$9:$C$87,0)+RIGHT($E175),0))\n/SUM(AB$10:AB$11)","v":0},{"$f":"IF(INDEX(PC_MAPPING,RIGHT($C171,1),MATCH($E$2,'Data by Building Type'!$D$22:$F$22,0))=\"Yes\",1,0)*\n(AC$10*OFFSET('Efficiency Distributions'!$D$10,MATCH($C171,'Efficiency Distributions'!$C$9:$C$87,0)+RIGHT($E175),0)\n+AC$11*OFFSET('Efficiency Distributions'!$E$10,MATCH($C171,'Efficiency Distributions'!$C$9:$C$87,0)+RIGHT($E175),0))\n/SUM(AC$10:AC$11)","v":0},{"$f":"IF(INDEX(PC_MAPPING,RIGHT($C171,1),MATCH($E$2,'Data by Building Type'!$D$22:$F$22,0))=\"Yes\",1,0)*\n(AD$10*OFFSET('Efficiency Distributions'!$D$10,MATCH($C171,'Efficiency Distributions'!$C$9:$C$87,0)+RIGHT($E175),0)\n+AD$11*OFFSET('Efficiency Distributions'!$E$10,MATCH($C171,'Efficiency Distributions'!$C$9:$C$87,0)+RIGHT($E175),0))\n/SUM(AD$10:AD$11)","v":0},{"$f":"IF(INDEX(PC_MAPPING,RIGHT($C171,1),MATCH($E$2,'Data by Building Type'!$D$22:$F$22,0))=\"Yes\",1,0)*\n(AE$10*OFFSET('Efficiency Distributions'!$D$10,MATCH($C171,'Efficiency Distributions'!$C$9:$C$87,0)+RIGHT($E175),0)\n+AE$11*OFFSET('Efficiency Distributions'!$E$10,MATCH($C171,'Efficiency Distributions'!$C$9:$C$87,0)+RIGHT($E175),0))\n/SUM(AE$10:AE$11)","v":0},{"$f":"IF(INDEX(PC_MAPPING,RIGHT($C171,1),MATCH($E$2,'Data by Building Type'!$D$22:$F$22,0))=\"Yes\",1,0)*\n(AF$10*OFFSET('Efficiency Distributions'!$D$10,MATCH($C171,'Efficiency Distributions'!$C$9:$C$87,0)+RIGHT($E175),0)\n+AF$11*OFFSET('Efficiency Distributions'!$E$10,MATCH($C171,'Efficiency Distributions'!$C$9:$C$87,0)+RIGHT($E175),0))\n/SUM(AF$10:AF$11)","v":0},{"$f":"IF(INDEX(PC_MAPPING,RIGHT($C171,1),MATCH($E$2,'Data by Building Type'!$D$22:$F$22,0))=\"Yes\",1,0)*\n(AG$10*OFFSET('Efficiency Distributions'!$D$10,MATCH($C171,'Efficiency Distributions'!$C$9:$C$87,0)+RIGHT($E175),0)\n+AG$11*OFFSET('Efficiency Distributions'!$E$10,MATCH($C171,'Efficiency Distributions'!$C$9:$C$87,0)+RIGHT($E175),0))\n/SUM(AG$10:AG$11)","v":0},{"$f":"IF(INDEX(PC_MAPPING,RIGHT($C171,1),MATCH($E$2,'Data by Building Type'!$D$22:$F$22,0))=\"Yes\",1,0)*\n(AH$10*OFFSET('Efficiency Distributions'!$D$10,MATCH($C171,'Efficiency Distributions'!$C$9:$C$87,0)+RIGHT($E175),0)\n+AH$11*OFFSET('Efficiency Distributions'!$E$10,MATCH($C171,'Efficiency Distributions'!$C$9:$C$87,0)+RIGHT($E175),0))\n/SUM(AH$10:AH$11)","v":0},{"$f":"IF(INDEX(PC_MAPPING,RIGHT($C171,1),MATCH($E$2,'Data by Building Type'!$D$22:$F$22,0))=\"Yes\",1,0)*\n(AI$10*OFFSET('Efficiency Distributions'!$D$10,MATCH($C171,'Efficiency Distributions'!$C$9:$C$87,0)+RIGHT($E175),0)\n+AI$11*OFFSET('Efficiency Distributions'!$E$10,MATCH($C171,'Efficiency Distributions'!$C$9:$C$87,0)+RIGHT($E175),0))\n/SUM(AI$10:AI$11)","v":0},{"$f":"IF(INDEX(PC_MAPPING,RIGHT($C171,1),MATCH($E$2,'Data by Building Type'!$D$22:$F$22,0))=\"Yes\",1,0)*\n(AJ$10*OFFSET('Efficiency Distributions'!$D$10,MATCH($C171,'Efficiency Distributions'!$C$9:$C$87,0)+RIGHT($E175),0)\n+AJ$11*OFFSET('Efficiency Distributions'!$E$10,MATCH($C171,'Efficiency Distributions'!$C$9:$C$87,0)+RIGHT($E175),0))\n/SUM(AJ$10:AJ$11)","v":0},{"$f":"IF(INDEX(PC_MAPPING,RIGHT($C171,1),MATCH($E$2,'Data by Building Type'!$D$22:$F$22,0))=\"Yes\",1,0)*\n(AK$10*OFFSET('Efficiency Distributions'!$D$10,MATCH($C171,'Efficiency Distributions'!$C$9:$C$87,0)+RIGHT($E175),0)\n+AK$11*OFFSET('Efficiency Distributions'!$E$10,MATCH($C171,'Efficiency Distributions'!$C$9:$C$87,0)+RIGHT($E175),0))\n/SUM(AK$10:AK$11)","v":0},{"$f":"IF(INDEX(PC_MAPPING,RIGHT($C171,1),MATCH($E$2,'Data by Building Type'!$D$22:$F$22,0))=\"Yes\",1,0)*\n(AL$10*OFFSET('Efficiency Distributions'!$D$10,MATCH($C171,'Efficiency Distributions'!$C$9:$C$87,0)+RIGHT($E175),0)\n+AL$11*OFFSET('Efficiency Distributions'!$E$10,MATCH($C171,'Efficiency Distributions'!$C$9:$C$87,0)+RIGHT($E175),0))\n/SUM(AL$10:AL$11)","v":0},{"$f":"IF(INDEX(PC_MAPPING,RIGHT($C171,1),MATCH($E$2,'Data by Building Type'!$D$22:$F$22,0))=\"Yes\",1,0)*\n(AM$10*OFFSET('Efficiency Distributions'!$D$10,MATCH($C171,'Efficiency Distributions'!$C$9:$C$87,0)+RIGHT($E175),0)\n+AM$11*OFFSET('Efficiency Distributions'!$E$10,MATCH($C171,'Efficiency Distributions'!$C$9:$C$87,0)+RIGHT($E175),0))\n/SUM(AM$10:AM$11)","v":0},{"$f":"IF(INDEX(PC_MAPPING,RIGHT($C171,1),MATCH($E$2,'Data by Building Type'!$D$22:$F$22,0))=\"Yes\",1,0)*\n(AN$10*OFFSET('Efficiency Distributions'!$D$10,MATCH($C171,'Efficiency Distributions'!$C$9:$C$87,0)+RIGHT($E175),0)\n+AN$11*OFFSET('Efficiency Distributions'!$E$10,MATCH($C171,'Efficiency Distributions'!$C$9:$C$87,0)+RIGHT($E175),0))\n/SUM(AN$10:AN$11)","v":0},{"$f":"IF(INDEX(PC_MAPPING,RIGHT($C171,1),MATCH($E$2,'Data by Building Type'!$D$22:$F$22,0))=\"Yes\",1,0)*\n(AO$10*OFFSET('Efficiency Distributions'!$D$10,MATCH($C171,'Efficiency Distributions'!$C$9:$C$87,0)+RIGHT($E175),0)\n+AO$11*OFFSET('Efficiency Distributions'!$E$10,MATCH($C171,'Efficiency Distributions'!$C$9:$C$87,0)+RIGHT($E175),0))\n/SUM(AO$10:AO$11)","v":0},{"$f":"IF(INDEX(PC_MAPPING,RIGHT($C171,1),MATCH($E$2,'Data by Building Type'!$D$22:$F$22,0))=\"Yes\",1,0)*\n(AP$10*OFFSET('Efficiency Distributions'!$D$10,MATCH($C171,'Efficiency Distributions'!$C$9:$C$87,0)+RIGHT($E175),0)\n+AP$11*OFFSET('Efficiency Distributions'!$E$10,MATCH($C171,'Efficiency Distributions'!$C$9:$C$87,0)+RIGHT($E175),0))\n/SUM(AP$10:AP$11)","v":0},{"$f":"IF(INDEX(PC_MAPPING,RIGHT($C171,1),MATCH($E$2,'Data by Building Type'!$D$22:$F$22,0))=\"Yes\",1,0)*\n(AQ$10*OFFSET('Efficiency Distributions'!$D$10,MATCH($C171,'Efficiency Distributions'!$C$9:$C$87,0)+RIGHT($E175),0)\n+AQ$11*OFFSET('Efficiency Distributions'!$E$10,MATCH($C171,'Efficiency Distributions'!$C$9:$C$87,0)+RIGHT($E175),0))\n/SUM(AQ$10:AQ$11)","v":0},{"$f":"IF(INDEX(PC_MAPPING,RIGHT($C171,1),MATCH($E$2,'Data by Building Type'!$D$22:$F$22,0))=\"Yes\",1,0)*\n(AR$10*OFFSET('Efficiency Distributions'!$D$10,MATCH($C171,'Efficiency Distributions'!$C$9:$C$87,0)+RIGHT($E175),0)\n+AR$11*OFFSET('Efficiency Distributions'!$E$10,MATCH($C171,'Efficiency Distributions'!$C$9:$C$87,0)+RIGHT($E175),0))\n/SUM(AR$10:AR$11)","v":0},{"$f":"IF(INDEX(PC_MAPPING,RIGHT($C171,1),MATCH($E$2,'Data by Building Type'!$D$22:$F$22,0))=\"Yes\",1,0)*\n(AS$10*OFFSET('Efficiency Distributions'!$D$10,MATCH($C171,'Efficiency Distributions'!$C$9:$C$87,0)+RIGHT($E175),0)\n+AS$11*OFFSET('Efficiency Distributions'!$E$10,MATCH($C171,'Efficiency Distributions'!$C$9:$C$87,0)+RIGHT($E175),0))\n/SUM(AS$10:AS$11)","v":0},{"$f":"IF(INDEX(PC_MAPPING,RIGHT($C171,1),MATCH($E$2,'Data by Building Type'!$D$22:$F$22,0))=\"Yes\",1,0)*\n(AT$10*OFFSET('Efficiency Distributions'!$D$10,MATCH($C171,'Efficiency Distributions'!$C$9:$C$87,0)+RIGHT($E175),0)\n+AT$11*OFFSET('Efficiency Distributions'!$E$10,MATCH($C171,'Efficiency Distributions'!$C$9:$C$87,0)+RIGHT($E175),0))\n/SUM(AT$10:AT$11)","v":0},{"$f":"IF(INDEX(PC_MAPPING,RIGHT($C171,1),MATCH($E$2,'Data by Building Type'!$D$22:$F$22,0))=\"Yes\",1,0)*\n(AU$10*OFFSET('Efficiency Distributions'!$D$10,MATCH($C171,'Efficiency Distributions'!$C$9:$C$87,0)+RIGHT($E175),0)\n+AU$11*OFFSET('Efficiency Distributions'!$E$10,MATCH($C171,'Efficiency Distributions'!$C$9:$C$87,0)+RIGHT($E175),0))\n/SUM(AU$10:AU$11)","v":0},{"$f":"IF(INDEX(PC_MAPPING,RIGHT($C171,1),MATCH($E$2,'Data by Building Type'!$D$22:$F$22,0))=\"Yes\",1,0)*\n(AV$10*OFFSET('Efficiency Distributions'!$D$10,MATCH($C171,'Efficiency Distributions'!$C$9:$C$87,0)+RIGHT($E175),0)\n+AV$11*OFFSET('Efficiency Distributions'!$E$10,MATCH($C171,'Efficiency Distributions'!$C$9:$C$87,0)+RIGHT($E175),0))\n/SUM(AV$10:AV$11)","v":0},{"$f":"IF(INDEX(PC_MAPPING,RIGHT($C171,1),MATCH($E$2,'Data by Building Type'!$D$22:$F$22,0))=\"Yes\",1,0)*\n(AW$10*OFFSET('Efficiency Distributions'!$D$10,MATCH($C171,'Efficiency Distributions'!$C$9:$C$87,0)+RIGHT($E175),0)\n+AW$11*OFFSET('Efficiency Distributions'!$E$10,MATCH($C171,'Efficiency Distributions'!$C$9:$C$87,0)+RIGHT($E175),0))\n/SUM(AW$10:AW$11)","v":0},{"$f":"IF(INDEX(PC_MAPPING,RIGHT($C171,1),MATCH($E$2,'Data by Building Type'!$D$22:$F$22,0))=\"Yes\",1,0)*\n(AX$10*OFFSET('Efficiency Distributions'!$D$10,MATCH($C171,'Efficiency Distributions'!$C$9:$C$87,0)+RIGHT($E175),0)\n+AX$11*OFFSET('Efficiency Distributions'!$E$10,MATCH($C171,'Efficiency Distributions'!$C$9:$C$87,0)+RIGHT($E175),0))\n/SUM(AX$10:AX$11)","v":0},{"$f":"IF(INDEX(PC_MAPPING,RIGHT($C171,1),MATCH($E$2,'Data by Building Type'!$D$22:$F$22,0))=\"Yes\",1,0)*\n(AY$10*OFFSET('Efficiency Distributions'!$D$10,MATCH($C171,'Efficiency Distributions'!$C$9:$C$87,0)+RIGHT($E175),0)\n+AY$11*OFFSET('Efficiency Distributions'!$E$10,MATCH($C171,'Efficiency Distributions'!$C$9:$C$87,0)+RIGHT($E175),0))\n/SUM(AY$10:AY$11)","v":0},{"$f":"IF(INDEX(PC_MAPPING,RIGHT($C171,1),MATCH($E$2,'Data by Building Type'!$D$22:$F$22,0))=\"Yes\",1,0)*\n(AZ$10*OFFSET('Efficiency Distributions'!$D$10,MATCH($C171,'Efficiency Distributions'!$C$9:$C$87,0)+RIGHT($E175),0)\n+AZ$11*OFFSET('Efficiency Distributions'!$E$10,MATCH($C171,'Efficiency Distributions'!$C$9:$C$87,0)+RIGHT($E175),0))\n/SUM(AZ$10:AZ$11)","v":0},{"$f":"IF(INDEX(PC_MAPPING,RIGHT($C171,1),MATCH($E$2,'Data by Building Type'!$D$22:$F$22,0))=\"Yes\",1,0)*\n(BA$10*OFFSET('Efficiency Distributions'!$D$10,MATCH($C171,'Efficiency Distributions'!$C$9:$C$87,0)+RIGHT($E175),0)\n+BA$11*OFFSET('Efficiency Distributions'!$E$10,MATCH($C171,'Efficiency Distributions'!$C$9:$C$87,0)+RIGHT($E175),0))\n/SUM(BA$10:BA$11)","v":0},{"$f":"IF(INDEX(PC_MAPPING,RIGHT($C171,1),MATCH($E$2,'Data by Building Type'!$D$22:$F$22,0))=\"Yes\",1,0)*\n(BB$10*OFFSET('Efficiency Distributions'!$D$10,MATCH($C171,'Efficiency Distributions'!$C$9:$C$87,0)+RIGHT($E175),0)\n+BB$11*OFFSET('Efficiency Distributions'!$E$10,MATCH($C171,'Efficiency Distributions'!$C$9:$C$87,0)+RIGHT($E175),0))\n/SUM(BB$10:BB$11)","v":0},{"$f":"IF(INDEX(PC_MAPPING,RIGHT($C171,1),MATCH($E$2,'Data by Building Type'!$D$22:$F$22,0))=\"Yes\",1,0)*\n(BC$10*OFFSET('Efficiency Distributions'!$D$10,MATCH($C171,'Efficiency Distributions'!$C$9:$C$87,0)+RIGHT($E175),0)\n+BC$11*OFFSET('Efficiency Distributions'!$E$10,MATCH($C171,'Efficiency Distributions'!$C$9:$C$87,0)+RIGHT($E175),0))\n/SUM(BC$10:BC$11)","v":0},{"$f":"IF(INDEX(PC_MAPPING,RIGHT($C171,1),MATCH($E$2,'Data by Building Type'!$D$22:$F$22,0))=\"Yes\",1,0)*\n(BD$10*OFFSET('Efficiency Distributions'!$D$10,MATCH($C171,'Efficiency Distributions'!$C$9:$C$87,0)+RIGHT($E175),0)\n+BD$11*OFFSET('Efficiency Distributions'!$E$10,MATCH($C171,'Efficiency Distributions'!$C$9:$C$87,0)+RIGHT($E175),0))\n/SUM(BD$10:BD$11)","v":0},{"$f":"IF(INDEX(PC_MAPPING,RIGHT($C171,1),MATCH($E$2,'Data by Building Type'!$D$22:$F$22,0))=\"Yes\",1,0)*\n(BE$10*OFFSET('Efficiency Distributions'!$D$10,MATCH($C171,'Efficiency Distributions'!$C$9:$C$87,0)+RIGHT($E175),0)\n+BE$11*OFFSET('Efficiency Distributions'!$E$10,MATCH($C171,'Efficiency Distributions'!$C$9:$C$87,0)+RIGHT($E175),0))\n/SUM(BE$10:BE$11)","v":0},{"$f":"IF(INDEX(PC_MAPPING,RIGHT($C171,1),MATCH($E$2,'Data by Building Type'!$D$22:$F$22,0))=\"Yes\",1,0)*\n(BF$10*OFFSET('Efficiency Distributions'!$D$10,MATCH($C171,'Efficiency Distributions'!$C$9:$C$87,0)+RIGHT($E175),0)\n+BF$11*OFFSET('Efficiency Distributions'!$E$10,MATCH($C171,'Efficiency Distributions'!$C$9:$C$87,0)+RIGHT($E175),0))\n/SUM(BF$10:BF$11)","v":0},{"$f":"IF(INDEX(PC_MAPPING,RIGHT($C171,1),MATCH($E$2,'Data by Building Type'!$D$22:$F$22,0))=\"Yes\",1,0)*\n(BG$10*OFFSET('Efficiency Distributions'!$D$10,MATCH($C171,'Efficiency Distributions'!$C$9:$C$87,0)+RIGHT($E175),0)\n+BG$11*OFFSET('Efficiency Distributions'!$E$10,MATCH($C171,'Efficiency Distributions'!$C$9:$C$87,0)+RIGHT($E175),0))\n/SUM(BG$10:BG$11)","v":0}]
[null,null,null,null,"EL1",{"$f":"IF(INDEX(PC_MAPPING,RIGHT($C171,1),MATCH($E$2,'Data by Building Type'!$D$22:$F$22,0))=\"Yes\",1,0)*\n(F$10*OFFSET('Efficiency Distributions'!$D$10,MATCH($C171,'Efficiency Distributions'!$C$9:$C$87,0)+RIGHT($E176),0)\n+F$11*OFFSET('Efficiency Distributions'!$E$10,MATCH($C171,'Efficiency Distributions'!$C$9:$C$87,0)+RIGHT($E176),0))\n/SUM(F$10:F$11)","v":0},{"$f":"IF(INDEX(PC_MAPPING,RIGHT($C171,1),MATCH($E$2,'Data by Building Type'!$D$22:$F$22,0))=\"Yes\",1,0)*\n(G$10*OFFSET('Efficiency Distributions'!$D$10,MATCH($C171,'Efficiency Distributions'!$C$9:$C$87,0)+RIGHT($E176),0)\n+G$11*OFFSET('Efficiency Distributions'!$E$10,MATCH($C171,'Efficiency Distributions'!$C$9:$C$87,0)+RIGHT($E176),0))\n/SUM(G$10:G$11)","v":0},{"$f":"IF(INDEX(PC_MAPPING,RIGHT($C171,1),MATCH($E$2,'Data by Building Type'!$D$22:$F$22,0))=\"Yes\",1,0)*\n(H$10*OFFSET('Efficiency Distributions'!$D$10,MATCH($C171,'Efficiency Distributions'!$C$9:$C$87,0)+RIGHT($E176),0)\n+H$11*OFFSET('Efficiency Distributions'!$E$10,MATCH($C171,'Efficiency Distributions'!$C$9:$C$87,0)+RIGHT($E176),0))\n/SUM(H$10:H$11)","v":0},{"$f":"IF(INDEX(PC_MAPPING,RIGHT($C171,1),MATCH($E$2,'Data by Building Type'!$D$22:$F$22,0))=\"Yes\",1,0)*\n(I$10*OFFSET('Efficiency Distributions'!$D$10,MATCH($C171,'Efficiency Distributions'!$C$9:$C$87,0)+RIGHT($E176),0)\n+I$11*OFFSET('Efficiency Distributions'!$E$10,MATCH($C171,'Efficiency Distributions'!$C$9:$C$87,0)+RIGHT($E176),0))\n/SUM(I$10:I$11)","v":0},{"$f":"IF(INDEX(PC_MAPPING,RIGHT($C171,1),MATCH($E$2,'Data by Building Type'!$D$22:$F$22,0))=\"Yes\",1,0)*\n(J$10*OFFSET('Efficiency Distributions'!$D$10,MATCH($C171,'Efficiency Distributions'!$C$9:$C$87,0)+RIGHT($E176),0)\n+J$11*OFFSET('Efficiency Distributions'!$E$10,MATCH($C171,'Efficiency Distributions'!$C$9:$C$87,0)+RIGHT($E176),0))\n/SUM(J$10:J$11)","v":0},{"$f":"IF(INDEX(PC_MAPPING,RIGHT($C171,1),MATCH($E$2,'Data by Building Type'!$D$22:$F$22,0))=\"Yes\",1,0)*\n(K$10*OFFSET('Efficiency Distributions'!$D$10,MATCH($C171,'Efficiency Distributions'!$C$9:$C$87,0)+RIGHT($E176),0)\n+K$11*OFFSET('Efficiency Distributions'!$E$10,MATCH($C171,'Efficiency Distributions'!$C$9:$C$87,0)+RIGHT($E176),0))\n/SUM(K$10:K$11)","v":0},{"$f":"IF(INDEX(PC_MAPPING,RIGHT($C171,1),MATCH($E$2,'Data by Building Type'!$D$22:$F$22,0))=\"Yes\",1,0)*\n(L$10*OFFSET('Efficiency Distributions'!$D$10,MATCH($C171,'Efficiency Distributions'!$C$9:$C$87,0)+RIGHT($E176),0)\n+L$11*OFFSET('Efficiency Distributions'!$E$10,MATCH($C171,'Efficiency Distributions'!$C$9:$C$87,0)+RIGHT($E176),0))\n/SUM(L$10:L$11)","v":0},{"$f":"IF(INDEX(PC_MAPPING,RIGHT($C171,1),MATCH($E$2,'Data by Building Type'!$D$22:$F$22,0))=\"Yes\",1,0)*\n(M$10*OFFSET('Efficiency Distributions'!$D$10,MATCH($C171,'Efficiency Distributions'!$C$9:$C$87,0)+RIGHT($E176),0)\n+M$11*OFFSET('Efficiency Distributions'!$E$10,MATCH($C171,'Efficiency Distributions'!$C$9:$C$87,0)+RIGHT($E176),0))\n/SUM(M$10:M$11)","v":0},{"$f":"IF(INDEX(PC_MAPPING,RIGHT($C171,1),MATCH($E$2,'Data by Building Type'!$D$22:$F$22,0))=\"Yes\",1,0)*\n(N$10*OFFSET('Efficiency Distributions'!$D$10,MATCH($C171,'Efficiency Distributions'!$C$9:$C$87,0)+RIGHT($E176),0)\n+N$11*OFFSET('Efficiency Distributions'!$E$10,MATCH($C171,'Efficiency Distributions'!$C$9:$C$87,0)+RIGHT($E176),0))\n/SUM(N$10:N$11)","v":0},{"$f":"IF(INDEX(PC_MAPPING,RIGHT($C171,1),MATCH($E$2,'Data by Building Type'!$D$22:$F$22,0))=\"Yes\",1,0)*\n(O$10*OFFSET('Efficiency Distributions'!$D$10,MATCH($C171,'Efficiency Distributions'!$C$9:$C$87,0)+RIGHT($E176),0)\n+O$11*OFFSET('Efficiency Distributions'!$E$10,MATCH($C171,'Efficiency Distributions'!$C$9:$C$87,0)+RIGHT($E176),0))\n/SUM(O$10:O$11)","v":0},{"$f":"IF(INDEX(PC_MAPPING,RIGHT($C171,1),MATCH($E$2,'Data by Building Type'!$D$22:$F$22,0))=\"Yes\",1,0)*\n(P$10*OFFSET('Efficiency Distributions'!$D$10,MATCH($C171,'Efficiency Distributions'!$C$9:$C$87,0)+RIGHT($E176),0)\n+P$11*OFFSET('Efficiency Distributions'!$E$10,MATCH($C171,'Efficiency Distributions'!$C$9:$C$87,0)+RIGHT($E176),0))\n/SUM(P$10:P$11)","v":0},{"$f":"IF(INDEX(PC_MAPPING,RIGHT($C171,1),MATCH($E$2,'Data by Building Type'!$D$22:$F$22,0))=\"Yes\",1,0)*\n(Q$10*OFFSET('Efficiency Distributions'!$D$10,MATCH($C171,'Efficiency Distributions'!$C$9:$C$87,0)+RIGHT($E176),0)\n+Q$11*OFFSET('Efficiency Distributions'!$E$10,MATCH($C171,'Efficiency Distributions'!$C$9:$C$87,0)+RIGHT($E176),0))\n/SUM(Q$10:Q$11)","v":0},{"$f":"IF(INDEX(PC_MAPPING,RIGHT($C171,1),MATCH($E$2,'Data by Building Type'!$D$22:$F$22,0))=\"Yes\",1,0)*\n(R$10*OFFSET('Efficiency Distributions'!$D$10,MATCH($C171,'Efficiency Distributions'!$C$9:$C$87,0)+RIGHT($E176),0)\n+R$11*OFFSET('Efficiency Distributions'!$E$10,MATCH($C171,'Efficiency Distributions'!$C$9:$C$87,0)+RIGHT($E176),0))\n/SUM(R$10:R$11)","v":0},{"$f":"IF(INDEX(PC_MAPPING,RIGHT($C171,1),MATCH($E$2,'Data by Building Type'!$D$22:$F$22,0))=\"Yes\",1,0)*\n(S$10*OFFSET('Efficiency Distributions'!$D$10,MATCH($C171,'Efficiency Distributions'!$C$9:$C$87,0)+RIGHT($E176),0)\n+S$11*OFFSET('Efficiency Distributions'!$E$10,MATCH($C171,'Efficiency Distributions'!$C$9:$C$87,0)+RIGHT($E176),0))\n/SUM(S$10:S$11)","v":0},{"$f":"IF(INDEX(PC_MAPPING,RIGHT($C171,1),MATCH($E$2,'Data by Building Type'!$D$22:$F$22,0))=\"Yes\",1,0)*\n(T$10*OFFSET('Efficiency Distributions'!$D$10,MATCH($C171,'Efficiency Distributions'!$C$9:$C$87,0)+RIGHT($E176),0)\n+T$11*OFFSET('Efficiency Distributions'!$E$10,MATCH($C171,'Efficiency Distributions'!$C$9:$C$87,0)+RIGHT($E176),0))\n/SUM(T$10:T$11)","v":0},{"$f":"IF(INDEX(PC_MAPPING,RIGHT($C171,1),MATCH($E$2,'Data by Building Type'!$D$22:$F$22,0))=\"Yes\",1,0)*\n(U$10*OFFSET('Efficiency Distributions'!$D$10,MATCH($C171,'Efficiency Distributions'!$C$9:$C$87,0)+RIGHT($E176),0)\n+U$11*OFFSET('Efficiency Distributions'!$E$10,MATCH($C171,'Efficiency Distributions'!$C$9:$C$87,0)+RIGHT($E176),0))\n/SUM(U$10:U$11)","v":0},{"$f":"IF(INDEX(PC_MAPPING,RIGHT($C171,1),MATCH($E$2,'Data by Building Type'!$D$22:$F$22,0))=\"Yes\",1,0)*\n(V$10*OFFSET('Efficiency Distributions'!$D$10,MATCH($C171,'Efficiency Distributions'!$C$9:$C$87,0)+RIGHT($E176),0)\n+V$11*OFFSET('Efficiency Distributions'!$E$10,MATCH($C171,'Efficiency Distributions'!$C$9:$C$87,0)+RIGHT($E176),0))\n/SUM(V$10:V$11)","v":0},{"$f":"IF(INDEX(PC_MAPPING,RIGHT($C171,1),MATCH($E$2,'Data by Building Type'!$D$22:$F$22,0))=\"Yes\",1,0)*\n(W$10*OFFSET('Efficiency Distributions'!$D$10,MATCH($C171,'Efficiency Distributions'!$C$9:$C$87,0)+RIGHT($E176),0)\n+W$11*OFFSET('Efficiency Distributions'!$E$10,MATCH($C171,'Efficiency Distributions'!$C$9:$C$87,0)+RIGHT($E176),0))\n/SUM(W$10:W$11)","v":0},{"$f":"IF(INDEX(PC_MAPPING,RIGHT($C171,1),MATCH($E$2,'Data by Building Type'!$D$22:$F$22,0))=\"Yes\",1,0)*\n(X$10*OFFSET('Efficiency Distributions'!$D$10,MATCH($C171,'Efficiency Distributions'!$C$9:$C$87,0)+RIGHT($E176),0)\n+X$11*OFFSET('Efficiency Distributions'!$E$10,MATCH($C171,'Efficiency Distributions'!$C$9:$C$87,0)+RIGHT($E176),0))\n/SUM(X$10:X$11)","v":0},{"$f":"IF(INDEX(PC_MAPPING,RIGHT($C171,1),MATCH($E$2,'Data by Building Type'!$D$22:$F$22,0))=\"Yes\",1,0)*\n(Y$10*OFFSET('Efficiency Distributions'!$D$10,MATCH($C171,'Efficiency Distributions'!$C$9:$C$87,0)+RIGHT($E176),0)\n+Y$11*OFFSET('Efficiency Distributions'!$E$10,MATCH($C171,'Efficiency Distributions'!$C$9:$C$87,0)+RIGHT($E176),0))\n/SUM(Y$10:Y$11)","v":0},{"$f":"IF(INDEX(PC_MAPPING,RIGHT($C171,1),MATCH($E$2,'Data by Building Type'!$D$22:$F$22,0))=\"Yes\",1,0)*\n(Z$10*OFFSET('Efficiency Distributions'!$D$10,MATCH($C171,'Efficiency Distributions'!$C$9:$C$87,0)+RIGHT($E176),0)\n+Z$11*OFFSET('Efficiency Distributions'!$E$10,MATCH($C171,'Efficiency Distributions'!$C$9:$C$87,0)+RIGHT($E176),0))\n/SUM(Z$10:Z$11)","v":0},{"$f":"IF(INDEX(PC_MAPPING,RIGHT($C171,1),MATCH($E$2,'Data by Building Type'!$D$22:$F$22,0))=\"Yes\",1,0)*\n(AA$10*OFFSET('Efficiency Distributions'!$D$10,MATCH($C171,'Efficiency Distributions'!$C$9:$C$87,0)+RIGHT($E176),0)\n+AA$11*OFFSET('Efficiency Distributions'!$E$10,MATCH($C171,'Efficiency Distributions'!$C$9:$C$87,0)+RIGHT($E176),0))\n/SUM(AA$10:AA$11)","v":0},{"$f":"IF(INDEX(PC_MAPPING,RIGHT($C171,1),MATCH($E$2,'Data by Building Type'!$D$22:$F$22,0))=\"Yes\",1,0)*\n(AB$10*OFFSET('Efficiency Distributions'!$D$10,MATCH($C171,'Efficiency Distributions'!$C$9:$C$87,0)+RIGHT($E176),0)\n+AB$11*OFFSET('Efficiency Distributions'!$E$10,MATCH($C171,'Efficiency Distributions'!$C$9:$C$87,0)+RIGHT($E176),0))\n/SUM(AB$10:AB$11)","v":0},{"$f":"IF(INDEX(PC_MAPPING,RIGHT($C171,1),MATCH($E$2,'Data by Building Type'!$D$22:$F$22,0))=\"Yes\",1,0)*\n(AC$10*OFFSET('Efficiency Distributions'!$D$10,MATCH($C171,'Efficiency Distributions'!$C$9:$C$87,0)+RIGHT($E176),0)\n+AC$11*OFFSET('Efficiency Distributions'!$E$10,MATCH($C171,'Efficiency Distributions'!$C$9:$C$87,0)+RIGHT($E176),0))\n/SUM(AC$10:AC$11)","v":0},{"$f":"IF(INDEX(PC_MAPPING,RIGHT($C171,1),MATCH($E$2,'Data by Building Type'!$D$22:$F$22,0))=\"Yes\",1,0)*\n(AD$10*OFFSET('Efficiency Distributions'!$D$10,MATCH($C171,'Efficiency Distributions'!$C$9:$C$87,0)+RIGHT($E176),0)\n+AD$11*OFFSET('Efficiency Distributions'!$E$10,MATCH($C171,'Efficiency Distributions'!$C$9:$C$87,0)+RIGHT($E176),0))\n/SUM(AD$10:AD$11)","v":0},{"$f":"IF(INDEX(PC_MAPPING,RIGHT($C171,1),MATCH($E$2,'Data by Building Type'!$D$22:$F$22,0))=\"Yes\",1,0)*\n(AE$10*OFFSET('Efficiency Distributions'!$D$10,MATCH($C171,'Efficiency Distributions'!$C$9:$C$87,0)+RIGHT($E176),0)\n+AE$11*OFFSET('Efficiency Distributions'!$E$10,MATCH($C171,'Efficiency Distributions'!$C$9:$C$87,0)+RIGHT($E176),0))\n/SUM(AE$10:AE$11)","v":0},{"$f":"IF(INDEX(PC_MAPPING,RIGHT($C171,1),MATCH($E$2,'Data by Building Type'!$D$22:$F$22,0))=\"Yes\",1,0)*\n(AF$10*OFFSET('Efficiency Distributions'!$D$10,MATCH($C171,'Efficiency Distributions'!$C$9:$C$87,0)+RIGHT($E176),0)\n+AF$11*OFFSET('Efficiency Distributions'!$E$10,MATCH($C171,'Efficiency Distributions'!$C$9:$C$87,0)+RIGHT($E176),0))\n/SUM(AF$10:AF$11)","v":0},{"$f":"IF(INDEX(PC_MAPPING,RIGHT($C171,1),MATCH($E$2,'Data by Building Type'!$D$22:$F$22,0))=\"Yes\",1,0)*\n(AG$10*OFFSET('Efficiency Distributions'!$D$10,MATCH($C171,'Efficiency Distributions'!$C$9:$C$87,0)+RIGHT($E176),0)\n+AG$11*OFFSET('Efficiency Distributions'!$E$10,MATCH($C171,'Efficiency Distributions'!$C$9:$C$87,0)+RIGHT($E176),0))\n/SUM(AG$10:AG$11)","v":0},{"$f":"IF(INDEX(PC_MAPPING,RIGHT($C171,1),MATCH($E$2,'Data by Building Type'!$D$22:$F$22,0))=\"Yes\",1,0)*\n(AH$10*OFFSET('Efficiency Distributions'!$D$10,MATCH($C171,'Efficiency Distributions'!$C$9:$C$87,0)+RIGHT($E176),0)\n+AH$11*OFFSET('Efficiency Distributions'!$E$10,MATCH($C171,'Efficiency Distributions'!$C$9:$C$87,0)+RIGHT($E176),0))\n/SUM(AH$10:AH$11)","v":0},{"$f":"IF(INDEX(PC_MAPPING,RIGHT($C171,1),MATCH($E$2,'Data by Building Type'!$D$22:$F$22,0))=\"Yes\",1,0)*\n(AI$10*OFFSET('Efficiency Distributions'!$D$10,MATCH($C171,'Efficiency Distributions'!$C$9:$C$87,0)+RIGHT($E176),0)\n+AI$11*OFFSET('Efficiency Distributions'!$E$10,MATCH($C171,'Efficiency Distributions'!$C$9:$C$87,0)+RIGHT($E176),0))\n/SUM(AI$10:AI$11)","v":0},{"$f":"IF(INDEX(PC_MAPPING,RIGHT($C171,1),MATCH($E$2,'Data by Building Type'!$D$22:$F$22,0))=\"Yes\",1,0)*\n(AJ$10*OFFSET('Efficiency Distributions'!$D$10,MATCH($C171,'Efficiency Distributions'!$C$9:$C$87,0)+RIGHT($E176),0)\n+AJ$11*OFFSET('Efficiency Distributions'!$E$10,MATCH($C171,'Efficiency Distributions'!$C$9:$C$87,0)+RIGHT($E176),0))\n/SUM(AJ$10:AJ$11)","v":0},{"$f":"IF(INDEX(PC_MAPPING,RIGHT($C171,1),MATCH($E$2,'Data by Building Type'!$D$22:$F$22,0))=\"Yes\",1,0)*\n(AK$10*OFFSET('Efficiency Distributions'!$D$10,MATCH($C171,'Efficiency Distributions'!$C$9:$C$87,0)+RIGHT($E176),0)\n+AK$11*OFFSET('Efficiency Distributions'!$E$10,MATCH($C171,'Efficiency Distributions'!$C$9:$C$87,0)+RIGHT($E176),0))\n/SUM(AK$10:AK$11)","v":0},{"$f":"IF(INDEX(PC_MAPPING,RIGHT($C171,1),MATCH($E$2,'Data by Building Type'!$D$22:$F$22,0))=\"Yes\",1,0)*\n(AL$10*OFFSET('Efficiency Distributions'!$D$10,MATCH($C171,'Efficiency Distributions'!$C$9:$C$87,0)+RIGHT($E176),0)\n+AL$11*OFFSET('Efficiency Distributions'!$E$10,MATCH($C171,'Efficiency Distributions'!$C$9:$C$87,0)+RIGHT($E176),0))\n/SUM(AL$10:AL$11)","v":0},{"$f":"IF(INDEX(PC_MAPPING,RIGHT($C171,1),MATCH($E$2,'Data by Building Type'!$D$22:$F$22,0))=\"Yes\",1,0)*\n(AM$10*OFFSET('Efficiency Distributions'!$D$10,MATCH($C171,'Efficiency Distributions'!$C$9:$C$87,0)+RIGHT($E176),0)\n+AM$11*OFFSET('Efficiency Distributions'!$E$10,MATCH($C171,'Efficiency Distributions'!$C$9:$C$87,0)+RIGHT($E176),0))\n/SUM(AM$10:AM$11)","v":0},{"$f":"IF(INDEX(PC_MAPPING,RIGHT($C171,1),MATCH($E$2,'Data by Building Type'!$D$22:$F$22,0))=\"Yes\",1,0)*\n(AN$10*OFFSET('Efficiency Distributions'!$D$10,MATCH($C171,'Efficiency Distributions'!$C$9:$C$87,0)+RIGHT($E176),0)\n+AN$11*OFFSET('Efficiency Distributions'!$E$10,MATCH($C171,'Efficiency Distributions'!$C$9:$C$87,0)+RIGHT($E176),0))\n/SUM(AN$10:AN$11)","v":0},{"$f":"IF(INDEX(PC_MAPPING,RIGHT($C171,1),MATCH($E$2,'Data by Building Type'!$D$22:$F$22,0))=\"Yes\",1,0)*\n(AO$10*OFFSET('Efficiency Distributions'!$D$10,MATCH($C171,'Efficiency Distributions'!$C$9:$C$87,0)+RIGHT($E176),0)\n+AO$11*OFFSET('Efficiency Distributions'!$E$10,MATCH($C171,'Efficiency Distributions'!$C$9:$C$87,0)+RIGHT($E176),0))\n/SUM(AO$10:AO$11)","v":0},{"$f":"IF(INDEX(PC_MAPPING,RIGHT($C171,1),MATCH($E$2,'Data by Building Type'!$D$22:$F$22,0))=\"Yes\",1,0)*\n(AP$10*OFFSET('Efficiency Distributions'!$D$10,MATCH($C171,'Efficiency Distributions'!$C$9:$C$87,0)+RIGHT($E176),0)\n+AP$11*OFFSET('Efficiency Distributions'!$E$10,MATCH($C171,'Efficiency Distributions'!$C$9:$C$87,0)+RIGHT($E176),0))\n/SUM(AP$10:AP$11)","v":0},{"$f":"IF(INDEX(PC_MAPPING,RIGHT($C171,1),MATCH($E$2,'Data by Building Type'!$D$22:$F$22,0))=\"Yes\",1,0)*\n(AQ$10*OFFSET('Efficiency Distributions'!$D$10,MATCH($C171,'Efficiency Distributions'!$C$9:$C$87,0)+RIGHT($E176),0)\n+AQ$11*OFFSET('Efficiency Distributions'!$E$10,MATCH($C171,'Efficiency Distributions'!$C$9:$C$87,0)+RIGHT($E176),0))\n/SUM(AQ$10:AQ$11)","v":0},{"$f":"IF(INDEX(PC_MAPPING,RIGHT($C171,1),MATCH($E$2,'Data by Building Type'!$D$22:$F$22,0))=\"Yes\",1,0)*\n(AR$10*OFFSET('Efficiency Distributions'!$D$10,MATCH($C171,'Efficiency Distributions'!$C$9:$C$87,0)+RIGHT($E176),0)\n+AR$11*OFFSET('Efficiency Distributions'!$E$10,MATCH($C171,'Efficiency Distributions'!$C$9:$C$87,0)+RIGHT($E176),0))\n/SUM(AR$10:AR$11)","v":0},{"$f":"IF(INDEX(PC_MAPPING,RIGHT($C171,1),MATCH($E$2,'Data by Building Type'!$D$22:$F$22,0))=\"Yes\",1,0)*\n(AS$10*OFFSET('Efficiency Distributions'!$D$10,MATCH($C171,'Efficiency Distributions'!$C$9:$C$87,0)+RIGHT($E176),0)\n+AS$11*OFFSET('Efficiency Distributions'!$E$10,MATCH($C171,'Efficiency Distributions'!$C$9:$C$87,0)+RIGHT($E176),0))\n/SUM(AS$10:AS$11)","v":0},{"$f":"IF(INDEX(PC_MAPPING,RIGHT($C171,1),MATCH($E$2,'Data by Building Type'!$D$22:$F$22,0))=\"Yes\",1,0)*\n(AT$10*OFFSET('Efficiency Distributions'!$D$10,MATCH($C171,'Efficiency Distributions'!$C$9:$C$87,0)+RIGHT($E176),0)\n+AT$11*OFFSET('Efficiency Distributions'!$E$10,MATCH($C171,'Efficiency Distributions'!$C$9:$C$87,0)+RIGHT($E176),0))\n/SUM(AT$10:AT$11)","v":0},{"$f":"IF(INDEX(PC_MAPPING,RIGHT($C171,1),MATCH($E$2,'Data by Building Type'!$D$22:$F$22,0))=\"Yes\",1,0)*\n(AU$10*OFFSET('Efficiency Distributions'!$D$10,MATCH($C171,'Efficiency Distributions'!$C$9:$C$87,0)+RIGHT($E176),0)\n+AU$11*OFFSET('Efficiency Distributions'!$E$10,MATCH($C171,'Efficiency Distributions'!$C$9:$C$87,0)+RIGHT($E176),0))\n/SUM(AU$10:AU$11)","v":0},{"$f":"IF(INDEX(PC_MAPPING,RIGHT($C171,1),MATCH($E$2,'Data by Building Type'!$D$22:$F$22,0))=\"Yes\",1,0)*\n(AV$10*OFFSET('Efficiency Distributions'!$D$10,MATCH($C171,'Efficiency Distributions'!$C$9:$C$87,0)+RIGHT($E176),0)\n+AV$11*OFFSET('Efficiency Distributions'!$E$10,MATCH($C171,'Efficiency Distributions'!$C$9:$C$87,0)+RIGHT($E176),0))\n/SUM(AV$10:AV$11)","v":0},{"$f":"IF(INDEX(PC_MAPPING,RIGHT($C171,1),MATCH($E$2,'Data by Building Type'!$D$22:$F$22,0))=\"Yes\",1,0)*\n(AW$10*OFFSET('Efficiency Distributions'!$D$10,MATCH($C171,'Efficiency Distributions'!$C$9:$C$87,0)+RIGHT($E176),0)\n+AW$11*OFFSET('Efficiency Distributions'!$E$10,MATCH($C171,'Efficiency Distributions'!$C$9:$C$87,0)+RIGHT($E176),0))\n/SUM(AW$10:AW$11)","v":0},{"$f":"IF(INDEX(PC_MAPPING,RIGHT($C171,1),MATCH($E$2,'Data by Building Type'!$D$22:$F$22,0))=\"Yes\",1,0)*\n(AX$10*OFFSET('Efficiency Distributions'!$D$10,MATCH($C171,'Efficiency Distributions'!$C$9:$C$87,0)+RIGHT($E176),0)\n+AX$11*OFFSET('Efficiency Distributions'!$E$10,MATCH($C171,'Efficiency Distributions'!$C$9:$C$87,0)+RIGHT($E176),0))\n/SUM(AX$10:AX$11)","v":0},{"$f":"IF(INDEX(PC_MAPPING,RIGHT($C171,1),MATCH($E$2,'Data by Building Type'!$D$22:$F$22,0))=\"Yes\",1,0)*\n(AY$10*OFFSET('Efficiency Distributions'!$D$10,MATCH($C171,'Efficiency Distributions'!$C$9:$C$87,0)+RIGHT($E176),0)\n+AY$11*OFFSET('Efficiency Distributions'!$E$10,MATCH($C171,'Efficiency Distributions'!$C$9:$C$87,0)+RIGHT($E176),0))\n/SUM(AY$10:AY$11)","v":0},{"$f":"IF(INDEX(PC_MAPPING,RIGHT($C171,1),MATCH($E$2,'Data by Building Type'!$D$22:$F$22,0))=\"Yes\",1,0)*\n(AZ$10*OFFSET('Efficiency Distributions'!$D$10,MATCH($C171,'Efficiency Distributions'!$C$9:$C$87,0)+RIGHT($E176),0)\n+AZ$11*OFFSET('Efficiency Distributions'!$E$10,MATCH($C171,'Efficiency Distributions'!$C$9:$C$87,0)+RIGHT($E176),0))\n/SUM(AZ$10:AZ$11)","v":0},{"$f":"IF(INDEX(PC_MAPPING,RIGHT($C171,1),MATCH($E$2,'Data by Building Type'!$D$22:$F$22,0))=\"Yes\",1,0)*\n(BA$10*OFFSET('Efficiency Distributions'!$D$10,MATCH($C171,'Efficiency Distributions'!$C$9:$C$87,0)+RIGHT($E176),0)\n+BA$11*OFFSET('Efficiency Distributions'!$E$10,MATCH($C171,'Efficiency Distributions'!$C$9:$C$87,0)+RIGHT($E176),0))\n/SUM(BA$10:BA$11)","v":0},{"$f":"IF(INDEX(PC_MAPPING,RIGHT($C171,1),MATCH($E$2,'Data by Building Type'!$D$22:$F$22,0))=\"Yes\",1,0)*\n(BB$10*OFFSET('Efficiency Distributions'!$D$10,MATCH($C171,'Efficiency Distributions'!$C$9:$C$87,0)+RIGHT($E176),0)\n+BB$11*OFFSET('Efficiency Distributions'!$E$10,MATCH($C171,'Efficiency Distributions'!$C$9:$C$87,0)+RIGHT($E176),0))\n/SUM(BB$10:BB$11)","v":0},{"$f":"IF(INDEX(PC_MAPPING,RIGHT($C171,1),MATCH($E$2,'Data by Building Type'!$D$22:$F$22,0))=\"Yes\",1,0)*\n(BC$10*OFFSET('Efficiency Distributions'!$D$10,MATCH($C171,'Efficiency Distributions'!$C$9:$C$87,0)+RIGHT($E176),0)\n+BC$11*OFFSET('Efficiency Distributions'!$E$10,MATCH($C171,'Efficiency Distributions'!$C$9:$C$87,0)+RIGHT($E176),0))\n/SUM(BC$10:BC$11)","v":0},{"$f":"IF(INDEX(PC_MAPPING,RIGHT($C171,1),MATCH($E$2,'Data by Building Type'!$D$22:$F$22,0))=\"Yes\",1,0)*\n(BD$10*OFFSET('Efficiency Distributions'!$D$10,MATCH($C171,'Efficiency Distributions'!$C$9:$C$87,0)+RIGHT($E176),0)\n+BD$11*OFFSET('Efficiency Distributions'!$E$10,MATCH($C171,'Efficiency Distributions'!$C$9:$C$87,0)+RIGHT($E176),0))\n/SUM(BD$10:BD$11)","v":0},{"$f":"IF(INDEX(PC_MAPPING,RIGHT($C171,1),MATCH($E$2,'Data by Building Type'!$D$22:$F$22,0))=\"Yes\",1,0)*\n(BE$10*OFFSET('Efficiency Distributions'!$D$10,MATCH($C171,'Efficiency Distributions'!$C$9:$C$87,0)+RIGHT($E176),0)\n+BE$11*OFFSET('Efficiency Distributions'!$E$10,MATCH($C171,'Efficiency Distributions'!$C$9:$C$87,0)+RIGHT($E176),0))\n/SUM(BE$10:BE$11)","v":0},{"$f":"IF(INDEX(PC_MAPPING,RIGHT($C171,1),MATCH($E$2,'Data by Building Type'!$D$22:$F$22,0))=\"Yes\",1,0)*\n(BF$10*OFFSET('Efficiency Distributions'!$D$10,MATCH($C171,'Efficiency Distributions'!$C$9:$C$87,0)+RIGHT($E176),0)\n+BF$11*OFFSET('Efficiency Distributions'!$E$10,MATCH($C171,'Efficiency Distributions'!$C$9:$C$87,0)+RIGHT($E176),0))\n/SUM(BF$10:BF$11)","v":0},{"$f":"IF(INDEX(PC_MAPPING,RIGHT($C171,1),MATCH($E$2,'Data by Building Type'!$D$22:$F$22,0))=\"Yes\",1,0)*\n(BG$10*OFFSET('Efficiency Distributions'!$D$10,MATCH($C171,'Efficiency Distributions'!$C$9:$C$87,0)+RIGHT($E176),0)\n+BG$11*OFFSET('Efficiency Distributions'!$E$10,MATCH($C171,'Efficiency Distributions'!$C$9:$C$87,0)+RIGHT($E176),0))\n/SUM(BG$10:BG$11)","v":0}]
[null,null,null,null,"EL2",{"$f":"IF(INDEX(PC_MAPPING,RIGHT($C171,1),MATCH($E$2,'Data by Building Type'!$D$22:$F$22,0))=\"Yes\",1,0)*\n(F$10*OFFSET('Efficiency Distributions'!$D$10,MATCH($C171,'Efficiency Distributions'!$C$9:$C$87,0)+RIGHT($E177),0)\n+F$11*OFFSET('Efficiency Distributions'!$E$10,MATCH($C171,'Efficiency Distributions'!$C$9:$C$87,0)+RIGHT($E177),0))\n/SUM(F$10:F$11)","v":0},{"$f":"IF(INDEX(PC_MAPPING,RIGHT($C171,1),MATCH($E$2,'Data by Building Type'!$D$22:$F$22,0))=\"Yes\",1,0)*\n(G$10*OFFSET('Efficiency Distributions'!$D$10,MATCH($C171,'Efficiency Distributions'!$C$9:$C$87,0)+RIGHT($E177),0)\n+G$11*OFFSET('Efficiency Distributions'!$E$10,MATCH($C171,'Efficiency Distributions'!$C$9:$C$87,0)+RIGHT($E177),0))\n/SUM(G$10:G$11)","v":0},{"$f":"IF(INDEX(PC_MAPPING,RIGHT($C171,1),MATCH($E$2,'Data by Building Type'!$D$22:$F$22,0))=\"Yes\",1,0)*\n(H$10*OFFSET('Efficiency Distributions'!$D$10,MATCH($C171,'Efficiency Distributions'!$C$9:$C$87,0)+RIGHT($E177),0)\n+H$11*OFFSET('Efficiency Distributions'!$E$10,MATCH($C171,'Efficiency Distributions'!$C$9:$C$87,0)+RIGHT($E177),0))\n/SUM(H$10:H$11)","v":0},{"$f":"IF(INDEX(PC_MAPPING,RIGHT($C171,1),MATCH($E$2,'Data by Building Type'!$D$22:$F$22,0))=\"Yes\",1,0)*\n(I$10*OFFSET('Efficiency Distributions'!$D$10,MATCH($C171,'Efficiency Distributions'!$C$9:$C$87,0)+RIGHT($E177),0)\n+I$11*OFFSET('Efficiency Distributions'!$E$10,MATCH($C171,'Efficiency Distributions'!$C$9:$C$87,0)+RIGHT($E177),0))\n/SUM(I$10:I$11)","v":0},{"$f":"IF(INDEX(PC_MAPPING,RIGHT($C171,1),MATCH($E$2,'Data by Building Type'!$D$22:$F$22,0))=\"Yes\",1,0)*\n(J$10*OFFSET('Efficiency Distributions'!$D$10,MATCH($C171,'Efficiency Distributions'!$C$9:$C$87,0)+RIGHT($E177),0)\n+J$11*OFFSET('Efficiency Distributions'!$E$10,MATCH($C171,'Efficiency Distributions'!$C$9:$C$87,0)+RIGHT($E177),0))\n/SUM(J$10:J$11)","v":0},{"$f":"IF(INDEX(PC_MAPPING,RIGHT($C171,1),MATCH($E$2,'Data by Building Type'!$D$22:$F$22,0))=\"Yes\",1,0)*\n(K$10*OFFSET('Efficiency Distributions'!$D$10,MATCH($C171,'Efficiency Distributions'!$C$9:$C$87,0)+RIGHT($E177),0)\n+K$11*OFFSET('Efficiency Distributions'!$E$10,MATCH($C171,'Efficiency Distributions'!$C$9:$C$87,0)+RIGHT($E177),0))\n/SUM(K$10:K$11)","v":0},{"$f":"IF(INDEX(PC_MAPPING,RIGHT($C171,1),MATCH($E$2,'Data by Building Type'!$D$22:$F$22,0))=\"Yes\",1,0)*\n(L$10*OFFSET('Efficiency Distributions'!$D$10,MATCH($C171,'Efficiency Distributions'!$C$9:$C$87,0)+RIGHT($E177),0)\n+L$11*OFFSET('Efficiency Distributions'!$E$10,MATCH($C171,'Efficiency Distributions'!$C$9:$C$87,0)+RIGHT($E177),0))\n/SUM(L$10:L$11)","v":0},{"$f":"IF(INDEX(PC_MAPPING,RIGHT($C171,1),MATCH($E$2,'Data by Building Type'!$D$22:$F$22,0))=\"Yes\",1,0)*\n(M$10*OFFSET('Efficiency Distributions'!$D$10,MATCH($C171,'Efficiency Distributions'!$C$9:$C$87,0)+RIGHT($E177),0)\n+M$11*OFFSET('Efficiency Distributions'!$E$10,MATCH($C171,'Efficiency Distributions'!$C$9:$C$87,0)+RIGHT($E177),0))\n/SUM(M$10:M$11)","v":0},{"$f":"IF(INDEX(PC_MAPPING,RIGHT($C171,1),MATCH($E$2,'Data by Building Type'!$D$22:$F$22,0))=\"Yes\",1,0)*\n(N$10*OFFSET('Efficiency Distributions'!$D$10,MATCH($C171,'Efficiency Distributions'!$C$9:$C$87,0)+RIGHT($E177),0)\n+N$11*OFFSET('Efficiency Distributions'!$E$10,MATCH($C171,'Efficiency Distributions'!$C$9:$C$87,0)+RIGHT($E177),0))\n/SUM(N$10:N$11)","v":0},{"$f":"IF(INDEX(PC_MAPPING,RIGHT($C171,1),MATCH($E$2,'Data by Building Type'!$D$22:$F$22,0))=\"Yes\",1,0)*\n(O$10*OFFSET('Efficiency Distributions'!$D$10,MATCH($C171,'Efficiency Distributions'!$C$9:$C$87,0)+RIGHT($E177),0)\n+O$11*OFFSET('Efficiency Distributions'!$E$10,MATCH($C171,'Efficiency Distributions'!$C$9:$C$87,0)+RIGHT($E177),0))\n/SUM(O$10:O$11)","v":0},{"$f":"IF(INDEX(PC_MAPPING,RIGHT($C171,1),MATCH($E$2,'Data by Building Type'!$D$22:$F$22,0))=\"Yes\",1,0)*\n(P$10*OFFSET('Efficiency Distributions'!$D$10,MATCH($C171,'Efficiency Distributions'!$C$9:$C$87,0)+RIGHT($E177),0)\n+P$11*OFFSET('Efficiency Distributions'!$E$10,MATCH($C171,'Efficiency Distributions'!$C$9:$C$87,0)+RIGHT($E177),0))\n/SUM(P$10:P$11)","v":0},{"$f":"IF(INDEX(PC_MAPPING,RIGHT($C171,1),MATCH($E$2,'Data by Building Type'!$D$22:$F$22,0))=\"Yes\",1,0)*\n(Q$10*OFFSET('Efficiency Distributions'!$D$10,MATCH($C171,'Efficiency Distributions'!$C$9:$C$87,0)+RIGHT($E177),0)\n+Q$11*OFFSET('Efficiency Distributions'!$E$10,MATCH($C171,'Efficiency Distributions'!$C$9:$C$87,0)+RIGHT($E177),0))\n/SUM(Q$10:Q$11)","v":0},{"$f":"IF(INDEX(PC_MAPPING,RIGHT($C171,1),MATCH($E$2,'Data by Building Type'!$D$22:$F$22,0))=\"Yes\",1,0)*\n(R$10*OFFSET('Efficiency Distributions'!$D$10,MATCH($C171,'Efficiency Distributions'!$C$9:$C$87,0)+RIGHT($E177),0)\n+R$11*OFFSET('Efficiency Distributions'!$E$10,MATCH($C171,'Efficiency Distributions'!$C$9:$C$87,0)+RIGHT($E177),0))\n/SUM(R$10:R$11)","v":0},{"$f":"IF(INDEX(PC_MAPPING,RIGHT($C171,1),MATCH($E$2,'Data by Building Type'!$D$22:$F$22,0))=\"Yes\",1,0)*\n(S$10*OFFSET('Efficiency Distributions'!$D$10,MATCH($C171,'Efficiency Distributions'!$C$9:$C$87,0)+RIGHT($E177),0)\n+S$11*OFFSET('Efficiency Distributions'!$E$10,MATCH($C171,'Efficiency Distributions'!$C$9:$C$87,0)+RIGHT($E177),0))\n/SUM(S$10:S$11)","v":0},{"$f":"IF(INDEX(PC_MAPPING,RIGHT($C171,1),MATCH($E$2,'Data by Building Type'!$D$22:$F$22,0))=\"Yes\",1,0)*\n(T$10*OFFSET('Efficiency Distributions'!$D$10,MATCH($C171,'Efficiency Distributions'!$C$9:$C$87,0)+RIGHT($E177),0)\n+T$11*OFFSET('Efficiency Distributions'!$E$10,MATCH($C171,'Efficiency Distributions'!$C$9:$C$87,0)+RIGHT($E177),0))\n/SUM(T$10:T$11)","v":0},{"$f":"IF(INDEX(PC_MAPPING,RIGHT($C171,1),MATCH($E$2,'Data by Building Type'!$D$22:$F$22,0))=\"Yes\",1,0)*\n(U$10*OFFSET('Efficiency Distributions'!$D$10,MATCH($C171,'Efficiency Distributions'!$C$9:$C$87,0)+RIGHT($E177),0)\n+U$11*OFFSET('Efficiency Distributions'!$E$10,MATCH($C171,'Efficiency Distributions'!$C$9:$C$87,0)+RIGHT($E177),0))\n/SUM(U$10:U$11)","v":0},{"$f":"IF(INDEX(PC_MAPPING,RIGHT($C171,1),MATCH($E$2,'Data by Building Type'!$D$22:$F$22,0))=\"Yes\",1,0)*\n(V$10*OFFSET('Efficiency Distributions'!$D$10,MATCH($C171,'Efficiency Distributions'!$C$9:$C$87,0)+RIGHT($E177),0)\n+V$11*OFFSET('Efficiency Distributions'!$E$10,MATCH($C171,'Efficiency Distributions'!$C$9:$C$87,0)+RIGHT($E177),0))\n/SUM(V$10:V$11)","v":0},{"$f":"IF(INDEX(PC_MAPPING,RIGHT($C171,1),MATCH($E$2,'Data by Building Type'!$D$22:$F$22,0))=\"Yes\",1,0)*\n(W$10*OFFSET('Efficiency Distributions'!$D$10,MATCH($C171,'Efficiency Distributions'!$C$9:$C$87,0)+RIGHT($E177),0)\n+W$11*OFFSET('Efficiency Distributions'!$E$10,MATCH($C171,'Efficiency Distributions'!$C$9:$C$87,0)+RIGHT($E177),0))\n/SUM(W$10:W$11)","v":0},{"$f":"IF(INDEX(PC_MAPPING,RIGHT($C171,1),MATCH($E$2,'Data by Building Type'!$D$22:$F$22,0))=\"Yes\",1,0)*\n(X$10*OFFSET('Efficiency Distributions'!$D$10,MATCH($C171,'Efficiency Distributions'!$C$9:$C$87,0)+RIGHT($E177),0)\n+X$11*OFFSET('Efficiency Distributions'!$E$10,MATCH($C171,'Efficiency Distributions'!$C$9:$C$87,0)+RIGHT($E177),0))\n/SUM(X$10:X$11)","v":0},{"$f":"IF(INDEX(PC_MAPPING,RIGHT($C171,1),MATCH($E$2,'Data by Building Type'!$D$22:$F$22,0))=\"Yes\",1,0)*\n(Y$10*OFFSET('Efficiency Distributions'!$D$10,MATCH($C171,'Efficiency Distributions'!$C$9:$C$87,0)+RIGHT($E177),0)\n+Y$11*OFFSET('Efficiency Distributions'!$E$10,MATCH($C171,'Efficiency Distributions'!$C$9:$C$87,0)+RIGHT($E177),0))\n/SUM(Y$10:Y$11)","v":0},{"$f":"IF(INDEX(PC_MAPPING,RIGHT($C171,1),MATCH($E$2,'Data by Building Type'!$D$22:$F$22,0))=\"Yes\",1,0)*\n(Z$10*OFFSET('Efficiency Distributions'!$D$10,MATCH($C171,'Efficiency Distributions'!$C$9:$C$87,0)+RIGHT($E177),0)\n+Z$11*OFFSET('Efficiency Distributions'!$E$10,MATCH($C171,'Efficiency Distributions'!$C$9:$C$87,0)+RIGHT($E177),0))\n/SUM(Z$10:Z$11)","v":0},{"$f":"IF(INDEX(PC_MAPPING,RIGHT($C171,1),MATCH($E$2,'Data by Building Type'!$D$22:$F$22,0))=\"Yes\",1,0)*\n(AA$10*OFFSET('Efficiency Distributions'!$D$10,MATCH($C171,'Efficiency Distributions'!$C$9:$C$87,0)+RIGHT($E177),0)\n+AA$11*OFFSET('Efficiency Distributions'!$E$10,MATCH($C171,'Efficiency Distributions'!$C$9:$C$87,0)+RIGHT($E177),0))\n/SUM(AA$10:AA$11)","v":0},{"$f":"IF(INDEX(PC_MAPPING,RIGHT($C171,1),MATCH($E$2,'Data by Building Type'!$D$22:$F$22,0))=\"Yes\",1,0)*\n(AB$10*OFFSET('Efficiency Distributions'!$D$10,MATCH($C171,'Efficiency Distributions'!$C$9:$C$87,0)+RIGHT($E177),0)\n+AB$11*OFFSET('Efficiency Distributions'!$E$10,MATCH($C171,'Efficiency Distributions'!$C$9:$C$87,0)+RIGHT($E177),0))\n/SUM(AB$10:AB$11)","v":0},{"$f":"IF(INDEX(PC_MAPPING,RIGHT($C171,1),MATCH($E$2,'Data by Building Type'!$D$22:$F$22,0))=\"Yes\",1,0)*\n(AC$10*OFFSET('Efficiency Distributions'!$D$10,MATCH($C171,'Efficiency Distributions'!$C$9:$C$87,0)+RIGHT($E177),0)\n+AC$11*OFFSET('Efficiency Distributions'!$E$10,MATCH($C171,'Efficiency Distributions'!$C$9:$C$87,0)+RIGHT($E177),0))\n/SUM(AC$10:AC$11)","v":0},{"$f":"IF(INDEX(PC_MAPPING,RIGHT($C171,1),MATCH($E$2,'Data by Building Type'!$D$22:$F$22,0))=\"Yes\",1,0)*\n(AD$10*OFFSET('Efficiency Distributions'!$D$10,MATCH($C171,'Efficiency Distributions'!$C$9:$C$87,0)+RIGHT($E177),0)\n+AD$11*OFFSET('Efficiency Distributions'!$E$10,MATCH($C171,'Efficiency Distributions'!$C$9:$C$87,0)+RIGHT($E177),0))\n/SUM(AD$10:AD$11)","v":0},{"$f":"IF(INDEX(PC_MAPPING,RIGHT($C171,1),MATCH($E$2,'Data by Building Type'!$D$22:$F$22,0))=\"Yes\",1,0)*\n(AE$10*OFFSET('Efficiency Distributions'!$D$10,MATCH($C171,'Efficiency Distributions'!$C$9:$C$87,0)+RIGHT($E177),0)\n+AE$11*OFFSET('Efficiency Distributions'!$E$10,MATCH($C171,'Efficiency Distributions'!$C$9:$C$87,0)+RIGHT($E177),0))\n/SUM(AE$10:AE$11)","v":0},{"$f":"IF(INDEX(PC_MAPPING,RIGHT($C171,1),MATCH($E$2,'Data by Building Type'!$D$22:$F$22,0))=\"Yes\",1,0)*\n(AF$10*OFFSET('Efficiency Distributions'!$D$10,MATCH($C171,'Efficiency Distributions'!$C$9:$C$87,0)+RIGHT($E177),0)\n+AF$11*OFFSET('Efficiency Distributions'!$E$10,MATCH($C171,'Efficiency Distributions'!$C$9:$C$87,0)+RIGHT($E177),0))\n/SUM(AF$10:AF$11)","v":0},{"$f":"IF(INDEX(PC_MAPPING,RIGHT($C171,1),MATCH($E$2,'Data by Building Type'!$D$22:$F$22,0))=\"Yes\",1,0)*\n(AG$10*OFFSET('Efficiency Distributions'!$D$10,MATCH($C171,'Efficiency Distributions'!$C$9:$C$87,0)+RIGHT($E177),0)\n+AG$11*OFFSET('Efficiency Distributions'!$E$10,MATCH($C171,'Efficiency Distributions'!$C$9:$C$87,0)+RIGHT($E177),0))\n/SUM(AG$10:AG$11)","v":0},{"$f":"IF(INDEX(PC_MAPPING,RIGHT($C171,1),MATCH($E$2,'Data by Building Type'!$D$22:$F$22,0))=\"Yes\",1,0)*\n(AH$10*OFFSET('Efficiency Distributions'!$D$10,MATCH($C171,'Efficiency Distributions'!$C$9:$C$87,0)+RIGHT($E177),0)\n+AH$11*OFFSET('Efficiency Distributions'!$E$10,MATCH($C171,'Efficiency Distributions'!$C$9:$C$87,0)+RIGHT($E177),0))\n/SUM(AH$10:AH$11)","v":0},{"$f":"IF(INDEX(PC_MAPPING,RIGHT($C171,1),MATCH($E$2,'Data by Building Type'!$D$22:$F$22,0))=\"Yes\",1,0)*\n(AI$10*OFFSET('Efficiency Distributions'!$D$10,MATCH($C171,'Efficiency Distributions'!$C$9:$C$87,0)+RIGHT($E177),0)\n+AI$11*OFFSET('Efficiency Distributions'!$E$10,MATCH($C171,'Efficiency Distributions'!$C$9:$C$87,0)+RIGHT($E177),0))\n/SUM(AI$10:AI$11)","v":0},{"$f":"IF(INDEX(PC_MAPPING,RIGHT($C171,1),MATCH($E$2,'Data by Building Type'!$D$22:$F$22,0))=\"Yes\",1,0)*\n(AJ$10*OFFSET('Efficiency Distributions'!$D$10,MATCH($C171,'Efficiency Distributions'!$C$9:$C$87,0)+RIGHT($E177),0)\n+AJ$11*OFFSET('Efficiency Distributions'!$E$10,MATCH($C171,'Efficiency Distributions'!$C$9:$C$87,0)+RIGHT($E177),0))\n/SUM(AJ$10:AJ$11)","v":0},{"$f":"IF(INDEX(PC_MAPPING,RIGHT($C171,1),MATCH($E$2,'Data by Building Type'!$D$22:$F$22,0))=\"Yes\",1,0)*\n(AK$10*OFFSET('Efficiency Distributions'!$D$10,MATCH($C171,'Efficiency Distributions'!$C$9:$C$87,0)+RIGHT($E177),0)\n+AK$11*OFFSET('Efficiency Distributions'!$E$10,MATCH($C171,'Efficiency Distributions'!$C$9:$C$87,0)+RIGHT($E177),0))\n/SUM(AK$10:AK$11)","v":0},{"$f":"IF(INDEX(PC_MAPPING,RIGHT($C171,1),MATCH($E$2,'Data by Building Type'!$D$22:$F$22,0))=\"Yes\",1,0)*\n(AL$10*OFFSET('Efficiency Distributions'!$D$10,MATCH($C171,'Efficiency Distributions'!$C$9:$C$87,0)+RIGHT($E177),0)\n+AL$11*OFFSET('Efficiency Distributions'!$E$10,MATCH($C171,'Efficiency Distributions'!$C$9:$C$87,0)+RIGHT($E177),0))\n/SUM(AL$10:AL$11)","v":0},{"$f":"IF(INDEX(PC_MAPPING,RIGHT($C171,1),MATCH($E$2,'Data by Building Type'!$D$22:$F$22,0))=\"Yes\",1,0)*\n(AM$10*OFFSET('Efficiency Distributions'!$D$10,MATCH($C171,'Efficiency Distributions'!$C$9:$C$87,0)+RIGHT($E177),0)\n+AM$11*OFFSET('Efficiency Distributions'!$E$10,MATCH($C171,'Efficiency Distributions'!$C$9:$C$87,0)+RIGHT($E177),0))\n/SUM(AM$10:AM$11)","v":0},{"$f":"IF(INDEX(PC_MAPPING,RIGHT($C171,1),MATCH($E$2,'Data by Building Type'!$D$22:$F$22,0))=\"Yes\",1,0)*\n(AN$10*OFFSET('Efficiency Distributions'!$D$10,MATCH($C171,'Efficiency Distributions'!$C$9:$C$87,0)+RIGHT($E177),0)\n+AN$11*OFFSET('Efficiency Distributions'!$E$10,MATCH($C171,'Efficiency Distributions'!$C$9:$C$87,0)+RIGHT($E177),0))\n/SUM(AN$10:AN$11)","v":0},{"$f":"IF(INDEX(PC_MAPPING,RIGHT($C171,1),MATCH($E$2,'Data by Building Type'!$D$22:$F$22,0))=\"Yes\",1,0)*\n(AO$10*OFFSET('Efficiency Distributions'!$D$10,MATCH($C171,'Efficiency Distributions'!$C$9:$C$87,0)+RIGHT($E177),0)\n+AO$11*OFFSET('Efficiency Distributions'!$E$10,MATCH($C171,'Efficiency Distributions'!$C$9:$C$87,0)+RIGHT($E177),0))\n/SUM(AO$10:AO$11)","v":0},{"$f":"IF(INDEX(PC_MAPPING,RIGHT($C171,1),MATCH($E$2,'Data by Building Type'!$D$22:$F$22,0))=\"Yes\",1,0)*\n(AP$10*OFFSET('Efficiency Distributions'!$D$10,MATCH($C171,'Efficiency Distributions'!$C$9:$C$87,0)+RIGHT($E177),0)\n+AP$11*OFFSET('Efficiency Distributions'!$E$10,MATCH($C171,'Efficiency Distributions'!$C$9:$C$87,0)+RIGHT($E177),0))\n/SUM(AP$10:AP$11)","v":0},{"$f":"IF(INDEX(PC_MAPPING,RIGHT($C171,1),MATCH($E$2,'Data by Building Type'!$D$22:$F$22,0))=\"Yes\",1,0)*\n(AQ$10*OFFSET('Efficiency Distributions'!$D$10,MATCH($C171,'Efficiency Distributions'!$C$9:$C$87,0)+RIGHT($E177),0)\n+AQ$11*OFFSET('Efficiency Distributions'!$E$10,MATCH($C171,'Efficiency Distributions'!$C$9:$C$87,0)+RIGHT($E177),0))\n/SUM(AQ$10:AQ$11)","v":0},{"$f":"IF(INDEX(PC_MAPPING,RIGHT($C171,1),MATCH($E$2,'Data by Building Type'!$D$22:$F$22,0))=\"Yes\",1,0)*\n(AR$10*OFFSET('Efficiency Distributions'!$D$10,MATCH($C171,'Efficiency Distributions'!$C$9:$C$87,0)+RIGHT($E177),0)\n+AR$11*OFFSET('Efficiency Distributions'!$E$10,MATCH($C171,'Efficiency Distributions'!$C$9:$C$87,0)+RIGHT($E177),0))\n/SUM(AR$10:AR$11)","v":0},{"$f":"IF(INDEX(PC_MAPPING,RIGHT($C171,1),MATCH($E$2,'Data by Building Type'!$D$22:$F$22,0))=\"Yes\",1,0)*\n(AS$10*OFFSET('Efficiency Distributions'!$D$10,MATCH($C171,'Efficiency Distributions'!$C$9:$C$87,0)+RIGHT($E177),0)\n+AS$11*OFFSET('Efficiency Distributions'!$E$10,MATCH($C171,'Efficiency Distributions'!$C$9:$C$87,0)+RIGHT($E177),0))\n/SUM(AS$10:AS$11)","v":0},{"$f":"IF(INDEX(PC_MAPPING,RIGHT($C171,1),MATCH($E$2,'Data by Building Type'!$D$22:$F$22,0))=\"Yes\",1,0)*\n(AT$10*OFFSET('Efficiency Distributions'!$D$10,MATCH($C171,'Efficiency Distributions'!$C$9:$C$87,0)+RIGHT($E177),0)\n+AT$11*OFFSET('Efficiency Distributions'!$E$10,MATCH($C171,'Efficiency Distributions'!$C$9:$C$87,0)+RIGHT($E177),0))\n/SUM(AT$10:AT$11)","v":0},{"$f":"IF(INDEX(PC_MAPPING,RIGHT($C171,1),MATCH($E$2,'Data by Building Type'!$D$22:$F$22,0))=\"Yes\",1,0)*\n(AU$10*OFFSET('Efficiency Distributions'!$D$10,MATCH($C171,'Efficiency Distributions'!$C$9:$C$87,0)+RIGHT($E177),0)\n+AU$11*OFFSET('Efficiency Distributions'!$E$10,MATCH($C171,'Efficiency Distributions'!$C$9:$C$87,0)+RIGHT($E177),0))\n/SUM(AU$10:AU$11)","v":0},{"$f":"IF(INDEX(PC_MAPPING,RIGHT($C171,1),MATCH($E$2,'Data by Building Type'!$D$22:$F$22,0))=\"Yes\",1,0)*\n(AV$10*OFFSET('Efficiency Distributions'!$D$10,MATCH($C171,'Efficiency Distributions'!$C$9:$C$87,0)+RIGHT($E177),0)\n+AV$11*OFFSET('Efficiency Distributions'!$E$10,MATCH($C171,'Efficiency Distributions'!$C$9:$C$87,0)+RIGHT($E177),0))\n/SUM(AV$10:AV$11)","v":0},{"$f":"IF(INDEX(PC_MAPPING,RIGHT($C171,1),MATCH($E$2,'Data by Building Type'!$D$22:$F$22,0))=\"Yes\",1,0)*\n(AW$10*OFFSET('Efficiency Distributions'!$D$10,MATCH($C171,'Efficiency Distributions'!$C$9:$C$87,0)+RIGHT($E177),0)\n+AW$11*OFFSET('Efficiency Distributions'!$E$10,MATCH($C171,'Efficiency Distributions'!$C$9:$C$87,0)+RIGHT($E177),0))\n/SUM(AW$10:AW$11)","v":0},{"$f":"IF(INDEX(PC_MAPPING,RIGHT($C171,1),MATCH($E$2,'Data by Building Type'!$D$22:$F$22,0))=\"Yes\",1,0)*\n(AX$10*OFFSET('Efficiency Distributions'!$D$10,MATCH($C171,'Efficiency Distributions'!$C$9:$C$87,0)+RIGHT($E177),0)\n+AX$11*OFFSET('Efficiency Distributions'!$E$10,MATCH($C171,'Efficiency Distributions'!$C$9:$C$87,0)+RIGHT($E177),0))\n/SUM(AX$10:AX$11)","v":0},{"$f":"IF(INDEX(PC_MAPPING,RIGHT($C171,1),MATCH($E$2,'Data by Building Type'!$D$22:$F$22,0))=\"Yes\",1,0)*\n(AY$10*OFFSET('Efficiency Distributions'!$D$10,MATCH($C171,'Efficiency Distributions'!$C$9:$C$87,0)+RIGHT($E177),0)\n+AY$11*OFFSET('Efficiency Distributions'!$E$10,MATCH($C171,'Efficiency Distributions'!$C$9:$C$87,0)+RIGHT($E177),0))\n/SUM(AY$10:AY$11)","v":0},{"$f":"IF(INDEX(PC_MAPPING,RIGHT($C171,1),MATCH($E$2,'Data by Building Type'!$D$22:$F$22,0))=\"Yes\",1,0)*\n(AZ$10*OFFSET('Efficiency Distributions'!$D$10,MATCH($C171,'Efficiency Distributions'!$C$9:$C$87,0)+RIGHT($E177),0)\n+AZ$11*OFFSET('Efficiency Distributions'!$E$10,MATCH($C171,'Efficiency Distributions'!$C$9:$C$87,0)+RIGHT($E177),0))\n/SUM(AZ$10:AZ$11)","v":0},{"$f":"IF(INDEX(PC_MAPPING,RIGHT($C171,1),MATCH($E$2,'Data by Building Type'!$D$22:$F$22,0))=\"Yes\",1,0)*\n(BA$10*OFFSET('Efficiency Distributions'!$D$10,MATCH($C171,'Efficiency Distributions'!$C$9:$C$87,0)+RIGHT($E177),0)\n+BA$11*OFFSET('Efficiency Distributions'!$E$10,MATCH($C171,'Efficiency Distributions'!$C$9:$C$87,0)+RIGHT($E177),0))\n/SUM(BA$10:BA$11)","v":0},{"$f":"IF(INDEX(PC_MAPPING,RIGHT($C171,1),MATCH($E$2,'Data by Building Type'!$D$22:$F$22,0))=\"Yes\",1,0)*\n(BB$10*OFFSET('Efficiency Distributions'!$D$10,MATCH($C171,'Efficiency Distributions'!$C$9:$C$87,0)+RIGHT($E177),0)\n+BB$11*OFFSET('Efficiency Distributions'!$E$10,MATCH($C171,'Efficiency Distributions'!$C$9:$C$87,0)+RIGHT($E177),0))\n/SUM(BB$10:BB$11)","v":0},{"$f":"IF(INDEX(PC_MAPPING,RIGHT($C171,1),MATCH($E$2,'Data by Building Type'!$D$22:$F$22,0))=\"Yes\",1,0)*\n(BC$10*OFFSET('Efficiency Distributions'!$D$10,MATCH($C171,'Efficiency Distributions'!$C$9:$C$87,0)+RIGHT($E177),0)\n+BC$11*OFFSET('Efficiency Distributions'!$E$10,MATCH($C171,'Efficiency Distributions'!$C$9:$C$87,0)+RIGHT($E177),0))\n/SUM(BC$10:BC$11)","v":0},{"$f":"IF(INDEX(PC_MAPPING,RIGHT($C171,1),MATCH($E$2,'Data by Building Type'!$D$22:$F$22,0))=\"Yes\",1,0)*\n(BD$10*OFFSET('Efficiency Distributions'!$D$10,MATCH($C171,'Efficiency Distributions'!$C$9:$C$87,0)+RIGHT($E177),0)\n+BD$11*OFFSET('Efficiency Distributions'!$E$10,MATCH($C171,'Efficiency Distributions'!$C$9:$C$87,0)+RIGHT($E177),0))\n/SUM(BD$10:BD$11)","v":0},{"$f":"IF(INDEX(PC_MAPPING,RIGHT($C171,1),MATCH($E$2,'Data by Building Type'!$D$22:$F$22,0))=\"Yes\",1,0)*\n(BE$10*OFFSET('Efficiency Distributions'!$D$10,MATCH($C171,'Efficiency Distributions'!$C$9:$C$87,0)+RIGHT($E177),0)\n+BE$11*OFFSET('Efficiency Distributions'!$E$10,MATCH($C171,'Efficiency Distributions'!$C$9:$C$87,0)+RIGHT($E177),0))\n/SUM(BE$10:BE$11)","v":0},{"$f":"IF(INDEX(PC_MAPPING,RIGHT($C171,1),MATCH($E$2,'Data by Building Type'!$D$22:$F$22,0))=\"Yes\",1,0)*\n(BF$10*OFFSET('Efficiency Distributions'!$D$10,MATCH($C171,'Efficiency Distributions'!$C$9:$C$87,0)+RIGHT($E177),0)\n+BF$11*OFFSET('Efficiency Distributions'!$E$10,MATCH($C171,'Efficiency Distributions'!$C$9:$C$87,0)+RIGHT($E177),0))\n/SUM(BF$10:BF$11)","v":0},{"$f":"IF(INDEX(PC_MAPPING,RIGHT($C171,1),MATCH($E$2,'Data by Building Type'!$D$22:$F$22,0))=\"Yes\",1,0)*\n(BG$10*OFFSET('Efficiency Distributions'!$D$10,MATCH($C171,'Efficiency Distributions'!$C$9:$C$87,0)+RIGHT($E177),0)\n+BG$11*OFFSET('Efficiency Distributions'!$E$10,MATCH($C171,'Efficiency Distributions'!$C$9:$C$87,0)+RIGHT($E177),0))\n/SUM(BG$10:BG$11)","v":0}]
[null,null,null,null,"EL3",{"$f":"IF(INDEX(PC_MAPPING,RIGHT($C171,1),MATCH($E$2,'Data by Building Type'!$D$22:$F$22,0))=\"Yes\",1,0)*\n(F$10*OFFSET('Efficiency Distributions'!$D$10,MATCH($C171,'Efficiency Distributions'!$C$9:$C$87,0)+RIGHT($E178),0)\n+F$11*OFFSET('Efficiency Distributions'!$E$10,MATCH($C171,'Efficiency Distributions'!$C$9:$C$87,0)+RIGHT($E178),0))\n/SUM(F$10:F$11)","v":0},{"$f":"IF(INDEX(PC_MAPPING,RIGHT($C171,1),MATCH($E$2,'Data by Building Type'!$D$22:$F$22,0))=\"Yes\",1,0)*\n(G$10*OFFSET('Efficiency Distributions'!$D$10,MATCH($C171,'Efficiency Distributions'!$C$9:$C$87,0)+RIGHT($E178),0)\n+G$11*OFFSET('Efficiency Distributions'!$E$10,MATCH($C171,'Efficiency Distributions'!$C$9:$C$87,0)+RIGHT($E178),0))\n/SUM(G$10:G$11)","v":0},{"$f":"IF(INDEX(PC_MAPPING,RIGHT($C171,1),MATCH($E$2,'Data by Building Type'!$D$22:$F$22,0))=\"Yes\",1,0)*\n(H$10*OFFSET('Efficiency Distributions'!$D$10,MATCH($C171,'Efficiency Distributions'!$C$9:$C$87,0)+RIGHT($E178),0)\n+H$11*OFFSET('Efficiency Distributions'!$E$10,MATCH($C171,'Efficiency Distributions'!$C$9:$C$87,0)+RIGHT($E178),0))\n/SUM(H$10:H$11)","v":0},{"$f":"IF(INDEX(PC_MAPPING,RIGHT($C171,1),MATCH($E$2,'Data by Building Type'!$D$22:$F$22,0))=\"Yes\",1,0)*\n(I$10*OFFSET('Efficiency Distributions'!$D$10,MATCH($C171,'Efficiency Distributions'!$C$9:$C$87,0)+RIGHT($E178),0)\n+I$11*OFFSET('Efficiency Distributions'!$E$10,MATCH($C171,'Efficiency Distributions'!$C$9:$C$87,0)+RIGHT($E178),0))\n/SUM(I$10:I$11)","v":0},{"$f":"IF(INDEX(PC_MAPPING,RIGHT($C171,1),MATCH($E$2,'Data by Building Type'!$D$22:$F$22,0))=\"Yes\",1,0)*\n(J$10*OFFSET('Efficiency Distributions'!$D$10,MATCH($C171,'Efficiency Distributions'!$C$9:$C$87,0)+RIGHT($E178),0)\n+J$11*OFFSET('Efficiency Distributions'!$E$10,MATCH($C171,'Efficiency Distributions'!$C$9:$C$87,0)+RIGHT($E178),0))\n/SUM(J$10:J$11)","v":0},{"$f":"IF(INDEX(PC_MAPPING,RIGHT($C171,1),MATCH($E$2,'Data by Building Type'!$D$22:$F$22,0))=\"Yes\",1,0)*\n(K$10*OFFSET('Efficiency Distributions'!$D$10,MATCH($C171,'Efficiency Distributions'!$C$9:$C$87,0)+RIGHT($E178),0)\n+K$11*OFFSET('Efficiency Distributions'!$E$10,MATCH($C171,'Efficiency Distributions'!$C$9:$C$87,0)+RIGHT($E178),0))\n/SUM(K$10:K$11)","v":0},{"$f":"IF(INDEX(PC_MAPPING,RIGHT($C171,1),MATCH($E$2,'Data by Building Type'!$D$22:$F$22,0))=\"Yes\",1,0)*\n(L$10*OFFSET('Efficiency Distributions'!$D$10,MATCH($C171,'Efficiency Distributions'!$C$9:$C$87,0)+RIGHT($E178),0)\n+L$11*OFFSET('Efficiency Distributions'!$E$10,MATCH($C171,'Efficiency Distributions'!$C$9:$C$87,0)+RIGHT($E178),0))\n/SUM(L$10:L$11)","v":0},{"$f":"IF(INDEX(PC_MAPPING,RIGHT($C171,1),MATCH($E$2,'Data by Building Type'!$D$22:$F$22,0))=\"Yes\",1,0)*\n(M$10*OFFSET('Efficiency Distributions'!$D$10,MATCH($C171,'Efficiency Distributions'!$C$9:$C$87,0)+RIGHT($E178),0)\n+M$11*OFFSET('Efficiency Distributions'!$E$10,MATCH($C171,'Efficiency Distributions'!$C$9:$C$87,0)+RIGHT($E178),0))\n/SUM(M$10:M$11)","v":0},{"$f":"IF(INDEX(PC_MAPPING,RIGHT($C171,1),MATCH($E$2,'Data by Building Type'!$D$22:$F$22,0))=\"Yes\",1,0)*\n(N$10*OFFSET('Efficiency Distributions'!$D$10,MATCH($C171,'Efficiency Distributions'!$C$9:$C$87,0)+RIGHT($E178),0)\n+N$11*OFFSET('Efficiency Distributions'!$E$10,MATCH($C171,'Efficiency Distributions'!$C$9:$C$87,0)+RIGHT($E178),0))\n/SUM(N$10:N$11)","v":0},{"$f":"IF(INDEX(PC_MAPPING,RIGHT($C171,1),MATCH($E$2,'Data by Building Type'!$D$22:$F$22,0))=\"Yes\",1,0)*\n(O$10*OFFSET('Efficiency Distributions'!$D$10,MATCH($C171,'Efficiency Distributions'!$C$9:$C$87,0)+RIGHT($E178),0)\n+O$11*OFFSET('Efficiency Distributions'!$E$10,MATCH($C171,'Efficiency Distributions'!$C$9:$C$87,0)+RIGHT($E178),0))\n/SUM(O$10:O$11)","v":0},{"$f":"IF(INDEX(PC_MAPPING,RIGHT($C171,1),MATCH($E$2,'Data by Building Type'!$D$22:$F$22,0))=\"Yes\",1,0)*\n(P$10*OFFSET('Efficiency Distributions'!$D$10,MATCH($C171,'Efficiency Distributions'!$C$9:$C$87,0)+RIGHT($E178),0)\n+P$11*OFFSET('Efficiency Distributions'!$E$10,MATCH($C171,'Efficiency Distributions'!$C$9:$C$87,0)+RIGHT($E178),0))\n/SUM(P$10:P$11)","v":0},{"$f":"IF(INDEX(PC_MAPPING,RIGHT($C171,1),MATCH($E$2,'Data by Building Type'!$D$22:$F$22,0))=\"Yes\",1,0)*\n(Q$10*OFFSET('Efficiency Distributions'!$D$10,MATCH($C171,'Efficiency Distributions'!$C$9:$C$87,0)+RIGHT($E178),0)\n+Q$11*OFFSET('Efficiency Distributions'!$E$10,MATCH($C171,'Efficiency Distributions'!$C$9:$C$87,0)+RIGHT($E178),0))\n/SUM(Q$10:Q$11)","v":0},{"$f":"IF(INDEX(PC_MAPPING,RIGHT($C171,1),MATCH($E$2,'Data by Building Type'!$D$22:$F$22,0))=\"Yes\",1,0)*\n(R$10*OFFSET('Efficiency Distributions'!$D$10,MATCH($C171,'Efficiency Distributions'!$C$9:$C$87,0)+RIGHT($E178),0)\n+R$11*OFFSET('Efficiency Distributions'!$E$10,MATCH($C171,'Efficiency Distributions'!$C$9:$C$87,0)+RIGHT($E178),0))\n/SUM(R$10:R$11)","v":0},{"$f":"IF(INDEX(PC_MAPPING,RIGHT($C171,1),MATCH($E$2,'Data by Building Type'!$D$22:$F$22,0))=\"Yes\",1,0)*\n(S$10*OFFSET('Efficiency Distributions'!$D$10,MATCH($C171,'Efficiency Distributions'!$C$9:$C$87,0)+RIGHT($E178),0)\n+S$11*OFFSET('Efficiency Distributions'!$E$10,MATCH($C171,'Efficiency Distributions'!$C$9:$C$87,0)+RIGHT($E178),0))\n/SUM(S$10:S$11)","v":0},{"$f":"IF(INDEX(PC_MAPPING,RIGHT($C171,1),MATCH($E$2,'Data by Building Type'!$D$22:$F$22,0))=\"Yes\",1,0)*\n(T$10*OFFSET('Efficiency Distributions'!$D$10,MATCH($C171,'Efficiency Distributions'!$C$9:$C$87,0)+RIGHT($E178),0)\n+T$11*OFFSET('Efficiency Distributions'!$E$10,MATCH($C171,'Efficiency Distributions'!$C$9:$C$87,0)+RIGHT($E178),0))\n/SUM(T$10:T$11)","v":0},{"$f":"IF(INDEX(PC_MAPPING,RIGHT($C171,1),MATCH($E$2,'Data by Building Type'!$D$22:$F$22,0))=\"Yes\",1,0)*\n(U$10*OFFSET('Efficiency Distributions'!$D$10,MATCH($C171,'Efficiency Distributions'!$C$9:$C$87,0)+RIGHT($E178),0)\n+U$11*OFFSET('Efficiency Distributions'!$E$10,MATCH($C171,'Efficiency Distributions'!$C$9:$C$87,0)+RIGHT($E178),0))\n/SUM(U$10:U$11)","v":0},{"$f":"IF(INDEX(PC_MAPPING,RIGHT($C171,1),MATCH($E$2,'Data by Building Type'!$D$22:$F$22,0))=\"Yes\",1,0)*\n(V$10*OFFSET('Efficiency Distributions'!$D$10,MATCH($C171,'Efficiency Distributions'!$C$9:$C$87,0)+RIGHT($E178),0)\n+V$11*OFFSET('Efficiency Distributions'!$E$10,MATCH($C171,'Efficiency Distributions'!$C$9:$C$87,0)+RIGHT($E178),0))\n/SUM(V$10:V$11)","v":0},{"$f":"IF(INDEX(PC_MAPPING,RIGHT($C171,1),MATCH($E$2,'Data by Building Type'!$D$22:$F$22,0))=\"Yes\",1,0)*\n(W$10*OFFSET('Efficiency Distributions'!$D$10,MATCH($C171,'Efficiency Distributions'!$C$9:$C$87,0)+RIGHT($E178),0)\n+W$11*OFFSET('Efficiency Distributions'!$E$10,MATCH($C171,'Efficiency Distributions'!$C$9:$C$87,0)+RIGHT($E178),0))\n/SUM(W$10:W$11)","v":0},{"$f":"IF(INDEX(PC_MAPPING,RIGHT($C171,1),MATCH($E$2,'Data by Building Type'!$D$22:$F$22,0))=\"Yes\",1,0)*\n(X$10*OFFSET('Efficiency Distributions'!$D$10,MATCH($C171,'Efficiency Distributions'!$C$9:$C$87,0)+RIGHT($E178),0)\n+X$11*OFFSET('Efficiency Distributions'!$E$10,MATCH($C171,'Efficiency Distributions'!$C$9:$C$87,0)+RIGHT($E178),0))\n/SUM(X$10:X$11)","v":0},{"$f":"IF(INDEX(PC_MAPPING,RIGHT($C171,1),MATCH($E$2,'Data by Building Type'!$D$22:$F$22,0))=\"Yes\",1,0)*\n(Y$10*OFFSET('Efficiency Distributions'!$D$10,MATCH($C171,'Efficiency Distributions'!$C$9:$C$87,0)+RIGHT($E178),0)\n+Y$11*OFFSET('Efficiency Distributions'!$E$10,MATCH($C171,'Efficiency Distributions'!$C$9:$C$87,0)+RIGHT($E178),0))\n/SUM(Y$10:Y$11)","v":0},{"$f":"IF(INDEX(PC_MAPPING,RIGHT($C171,1),MATCH($E$2,'Data by Building Type'!$D$22:$F$22,0))=\"Yes\",1,0)*\n(Z$10*OFFSET('Efficiency Distributions'!$D$10,MATCH($C171,'Efficiency Distributions'!$C$9:$C$87,0)+RIGHT($E178),0)\n+Z$11*OFFSET('Efficiency Distributions'!$E$10,MATCH($C171,'Efficiency Distributions'!$C$9:$C$87,0)+RIGHT($E178),0))\n/SUM(Z$10:Z$11)","v":0},{"$f":"IF(INDEX(PC_MAPPING,RIGHT($C171,1),MATCH($E$2,'Data by Building Type'!$D$22:$F$22,0))=\"Yes\",1,0)*\n(AA$10*OFFSET('Efficiency Distributions'!$D$10,MATCH($C171,'Efficiency Distributions'!$C$9:$C$87,0)+RIGHT($E178),0)\n+AA$11*OFFSET('Efficiency Distributions'!$E$10,MATCH($C171,'Efficiency Distributions'!$C$9:$C$87,0)+RIGHT($E178),0))\n/SUM(AA$10:AA$11)","v":0},{"$f":"IF(INDEX(PC_MAPPING,RIGHT($C171,1),MATCH($E$2,'Data by Building Type'!$D$22:$F$22,0))=\"Yes\",1,0)*\n(AB$10*OFFSET('Efficiency Distributions'!$D$10,MATCH($C171,'Efficiency Distributions'!$C$9:$C$87,0)+RIGHT($E178),0)\n+AB$11*OFFSET('Efficiency Distributions'!$E$10,MATCH($C171,'Efficiency Distributions'!$C$9:$C$87,0)+RIGHT($E178),0))\n/SUM(AB$10:AB$11)","v":0},{"$f":"IF(INDEX(PC_MAPPING,RIGHT($C171,1),MATCH($E$2,'Data by Building Type'!$D$22:$F$22,0))=\"Yes\",1,0)*\n(AC$10*OFFSET('Efficiency Distributions'!$D$10,MATCH($C171,'Efficiency Distributions'!$C$9:$C$87,0)+RIGHT($E178),0)\n+AC$11*OFFSET('Efficiency Distributions'!$E$10,MATCH($C171,'Efficiency Distributions'!$C$9:$C$87,0)+RIGHT($E178),0))\n/SUM(AC$10:AC$11)","v":0},{"$f":"IF(INDEX(PC_MAPPING,RIGHT($C171,1),MATCH($E$2,'Data by Building Type'!$D$22:$F$22,0))=\"Yes\",1,0)*\n(AD$10*OFFSET('Efficiency Distributions'!$D$10,MATCH($C171,'Efficiency Distributions'!$C$9:$C$87,0)+RIGHT($E178),0)\n+AD$11*OFFSET('Efficiency Distributions'!$E$10,MATCH($C171,'Efficiency Distributions'!$C$9:$C$87,0)+RIGHT($E178),0))\n/SUM(AD$10:AD$11)","v":0},{"$f":"IF(INDEX(PC_MAPPING,RIGHT($C171,1),MATCH($E$2,'Data by Building Type'!$D$22:$F$22,0))=\"Yes\",1,0)*\n(AE$10*OFFSET('Efficiency Distributions'!$D$10,MATCH($C171,'Efficiency Distributions'!$C$9:$C$87,0)+RIGHT($E178),0)\n+AE$11*OFFSET('Efficiency Distributions'!$E$10,MATCH($C171,'Efficiency Distributions'!$C$9:$C$87,0)+RIGHT($E178),0))\n/SUM(AE$10:AE$11)","v":0},{"$f":"IF(INDEX(PC_MAPPING,RIGHT($C171,1),MATCH($E$2,'Data by Building Type'!$D$22:$F$22,0))=\"Yes\",1,0)*\n(AF$10*OFFSET('Efficiency Distributions'!$D$10,MATCH($C171,'Efficiency Distributions'!$C$9:$C$87,0)+RIGHT($E178),0)\n+AF$11*OFFSET('Efficiency Distributions'!$E$10,MATCH($C171,'Efficiency Distributions'!$C$9:$C$87,0)+RIGHT($E178),0))\n/SUM(AF$10:AF$11)","v":0},{"$f":"IF(INDEX(PC_MAPPING,RIGHT($C171,1),MATCH($E$2,'Data by Building Type'!$D$22:$F$22,0))=\"Yes\",1,0)*\n(AG$10*OFFSET('Efficiency Distributions'!$D$10,MATCH($C171,'Efficiency Distributions'!$C$9:$C$87,0)+RIGHT($E178),0)\n+AG$11*OFFSET('Efficiency Distributions'!$E$10,MATCH($C171,'Efficiency Distributions'!$C$9:$C$87,0)+RIGHT($E178),0))\n/SUM(AG$10:AG$11)","v":0},{"$f":"IF(INDEX(PC_MAPPING,RIGHT($C171,1),MATCH($E$2,'Data by Building Type'!$D$22:$F$22,0))=\"Yes\",1,0)*\n(AH$10*OFFSET('Efficiency Distributions'!$D$10,MATCH($C171,'Efficiency Distributions'!$C$9:$C$87,0)+RIGHT($E178),0)\n+AH$11*OFFSET('Efficiency Distributions'!$E$10,MATCH($C171,'Efficiency Distributions'!$C$9:$C$87,0)+RIGHT($E178),0))\n/SUM(AH$10:AH$11)","v":0},{"$f":"IF(INDEX(PC_MAPPING,RIGHT($C171,1),MATCH($E$2,'Data by Building Type'!$D$22:$F$22,0))=\"Yes\",1,0)*\n(AI$10*OFFSET('Efficiency Distributions'!$D$10,MATCH($C171,'Efficiency Distributions'!$C$9:$C$87,0)+RIGHT($E178),0)\n+AI$11*OFFSET('Efficiency Distributions'!$E$10,MATCH($C171,'Efficiency Distributions'!$C$9:$C$87,0)+RIGHT($E178),0))\n/SUM(AI$10:AI$11)","v":0},{"$f":"IF(INDEX(PC_MAPPING,RIGHT($C171,1),MATCH($E$2,'Data by Building Type'!$D$22:$F$22,0))=\"Yes\",1,0)*\n(AJ$10*OFFSET('Efficiency Distributions'!$D$10,MATCH($C171,'Efficiency Distributions'!$C$9:$C$87,0)+RIGHT($E178),0)\n+AJ$11*OFFSET('Efficiency Distributions'!$E$10,MATCH($C171,'Efficiency Distributions'!$C$9:$C$87,0)+RIGHT($E178),0))\n/SUM(AJ$10:AJ$11)","v":0},{"$f":"IF(INDEX(PC_MAPPING,RIGHT($C171,1),MATCH($E$2,'Data by Building Type'!$D$22:$F$22,0))=\"Yes\",1,0)*\n(AK$10*OFFSET('Efficiency Distributions'!$D$10,MATCH($C171,'Efficiency Distributions'!$C$9:$C$87,0)+RIGHT($E178),0)\n+AK$11*OFFSET('Efficiency Distributions'!$E$10,MATCH($C171,'Efficiency Distributions'!$C$9:$C$87,0)+RIGHT($E178),0))\n/SUM(AK$10:AK$11)","v":0},{"$f":"IF(INDEX(PC_MAPPING,RIGHT($C171,1),MATCH($E$2,'Data by Building Type'!$D$22:$F$22,0))=\"Yes\",1,0)*\n(AL$10*OFFSET('Efficiency Distributions'!$D$10,MATCH($C171,'Efficiency Distributions'!$C$9:$C$87,0)+RIGHT($E178),0)\n+AL$11*OFFSET('Efficiency Distributions'!$E$10,MATCH($C171,'Efficiency Distributions'!$C$9:$C$87,0)+RIGHT($E178),0))\n/SUM(AL$10:AL$11)","v":0},{"$f":"IF(INDEX(PC_MAPPING,RIGHT($C171,1),MATCH($E$2,'Data by Building Type'!$D$22:$F$22,0))=\"Yes\",1,0)*\n(AM$10*OFFSET('Efficiency Distributions'!$D$10,MATCH($C171,'Efficiency Distributions'!$C$9:$C$87,0)+RIGHT($E178),0)\n+AM$11*OFFSET('Efficiency Distributions'!$E$10,MATCH($C171,'Efficiency Distributions'!$C$9:$C$87,0)+RIGHT($E178),0))\n/SUM(AM$10:AM$11)","v":0},{"$f":"IF(INDEX(PC_MAPPING,RIGHT($C171,1),MATCH($E$2,'Data by Building Type'!$D$22:$F$22,0))=\"Yes\",1,0)*\n(AN$10*OFFSET('Efficiency Distributions'!$D$10,MATCH($C171,'Efficiency Distributions'!$C$9:$C$87,0)+RIGHT($E178),0)\n+AN$11*OFFSET('Efficiency Distributions'!$E$10,MATCH($C171,'Efficiency Distributions'!$C$9:$C$87,0)+RIGHT($E178),0))\n/SUM(AN$10:AN$11)","v":0},{"$f":"IF(INDEX(PC_MAPPING,RIGHT($C171,1),MATCH($E$2,'Data by Building Type'!$D$22:$F$22,0))=\"Yes\",1,0)*\n(AO$10*OFFSET('Efficiency Distributions'!$D$10,MATCH($C171,'Efficiency Distributions'!$C$9:$C$87,0)+RIGHT($E178),0)\n+AO$11*OFFSET('Efficiency Distributions'!$E$10,MATCH($C171,'Efficiency Distributions'!$C$9:$C$87,0)+RIGHT($E178),0))\n/SUM(AO$10:AO$11)","v":0},{"$f":"IF(INDEX(PC_MAPPING,RIGHT($C171,1),MATCH($E$2,'Data by Building Type'!$D$22:$F$22,0))=\"Yes\",1,0)*\n(AP$10*OFFSET('Efficiency Distributions'!$D$10,MATCH($C171,'Efficiency Distributions'!$C$9:$C$87,0)+RIGHT($E178),0)\n+AP$11*OFFSET('Efficiency Distributions'!$E$10,MATCH($C171,'Efficiency Distributions'!$C$9:$C$87,0)+RIGHT($E178),0))\n/SUM(AP$10:AP$11)","v":0},{"$f":"IF(INDEX(PC_MAPPING,RIGHT($C171,1),MATCH($E$2,'Data by Building Type'!$D$22:$F$22,0))=\"Yes\",1,0)*\n(AQ$10*OFFSET('Efficiency Distributions'!$D$10,MATCH($C171,'Efficiency Distributions'!$C$9:$C$87,0)+RIGHT($E178),0)\n+AQ$11*OFFSET('Efficiency Distributions'!$E$10,MATCH($C171,'Efficiency Distributions'!$C$9:$C$87,0)+RIGHT($E178),0))\n/SUM(AQ$10:AQ$11)","v":0},{"$f":"IF(INDEX(PC_MAPPING,RIGHT($C171,1),MATCH($E$2,'Data by Building Type'!$D$22:$F$22,0))=\"Yes\",1,0)*\n(AR$10*OFFSET('Efficiency Distributions'!$D$10,MATCH($C171,'Efficiency Distributions'!$C$9:$C$87,0)+RIGHT($E178),0)\n+AR$11*OFFSET('Efficiency Distributions'!$E$10,MATCH($C171,'Efficiency Distributions'!$C$9:$C$87,0)+RIGHT($E178),0))\n/SUM(AR$10:AR$11)","v":0},{"$f":"IF(INDEX(PC_MAPPING,RIGHT($C171,1),MATCH($E$2,'Data by Building Type'!$D$22:$F$22,0))=\"Yes\",1,0)*\n(AS$10*OFFSET('Efficiency Distributions'!$D$10,MATCH($C171,'Efficiency Distributions'!$C$9:$C$87,0)+RIGHT($E178),0)\n+AS$11*OFFSET('Efficiency Distributions'!$E$10,MATCH($C171,'Efficiency Distributions'!$C$9:$C$87,0)+RIGHT($E178),0))\n/SUM(AS$10:AS$11)","v":0},{"$f":"IF(INDEX(PC_MAPPING,RIGHT($C171,1),MATCH($E$2,'Data by Building Type'!$D$22:$F$22,0))=\"Yes\",1,0)*\n(AT$10*OFFSET('Efficiency Distributions'!$D$10,MATCH($C171,'Efficiency Distributions'!$C$9:$C$87,0)+RIGHT($E178),0)\n+AT$11*OFFSET('Efficiency Distributions'!$E$10,MATCH($C171,'Efficiency Distributions'!$C$9:$C$87,0)+RIGHT($E178),0))\n/SUM(AT$10:AT$11)","v":0},{"$f":"IF(INDEX(PC_MAPPING,RIGHT($C171,1),MATCH($E$2,'Data by Building Type'!$D$22:$F$22,0))=\"Yes\",1,0)*\n(AU$10*OFFSET('Efficiency Distributions'!$D$10,MATCH($C171,'Efficiency Distributions'!$C$9:$C$87,0)+RIGHT($E178),0)\n+AU$11*OFFSET('Efficiency Distributions'!$E$10,MATCH($C171,'Efficiency Distributions'!$C$9:$C$87,0)+RIGHT($E178),0))\n/SUM(AU$10:AU$11)","v":0},{"$f":"IF(INDEX(PC_MAPPING,RIGHT($C171,1),MATCH($E$2,'Data by Building Type'!$D$22:$F$22,0))=\"Yes\",1,0)*\n(AV$10*OFFSET('Efficiency Distributions'!$D$10,MATCH($C171,'Efficiency Distributions'!$C$9:$C$87,0)+RIGHT($E178),0)\n+AV$11*OFFSET('Efficiency Distributions'!$E$10,MATCH($C171,'Efficiency Distributions'!$C$9:$C$87,0)+RIGHT($E178),0))\n/SUM(AV$10:AV$11)","v":0},{"$f":"IF(INDEX(PC_MAPPING,RIGHT($C171,1),MATCH($E$2,'Data by Building Type'!$D$22:$F$22,0))=\"Yes\",1,0)*\n(AW$10*OFFSET('Efficiency Distributions'!$D$10,MATCH($C171,'Efficiency Distributions'!$C$9:$C$87,0)+RIGHT($E178),0)\n+AW$11*OFFSET('Efficiency Distributions'!$E$10,MATCH($C171,'Efficiency Distributions'!$C$9:$C$87,0)+RIGHT($E178),0))\n/SUM(AW$10:AW$11)","v":0},{"$f":"IF(INDEX(PC_MAPPING,RIGHT($C171,1),MATCH($E$2,'Data by Building Type'!$D$22:$F$22,0))=\"Yes\",1,0)*\n(AX$10*OFFSET('Efficiency Distributions'!$D$10,MATCH($C171,'Efficiency Distributions'!$C$9:$C$87,0)+RIGHT($E178),0)\n+AX$11*OFFSET('Efficiency Distributions'!$E$10,MATCH($C171,'Efficiency Distributions'!$C$9:$C$87,0)+RIGHT($E178),0))\n/SUM(AX$10:AX$11)","v":0},{"$f":"IF(INDEX(PC_MAPPING,RIGHT($C171,1),MATCH($E$2,'Data by Building Type'!$D$22:$F$22,0))=\"Yes\",1,0)*\n(AY$10*OFFSET('Efficiency Distributions'!$D$10,MATCH($C171,'Efficiency Distributions'!$C$9:$C$87,0)+RIGHT($E178),0)\n+AY$11*OFFSET('Efficiency Distributions'!$E$10,MATCH($C171,'Efficiency Distributions'!$C$9:$C$87,0)+RIGHT($E178),0))\n/SUM(AY$10:AY$11)","v":0},{"$f":"IF(INDEX(PC_MAPPING,RIGHT($C171,1),MATCH($E$2,'Data by Building Type'!$D$22:$F$22,0))=\"Yes\",1,0)*\n(AZ$10*OFFSET('Efficiency Distributions'!$D$10,MATCH($C171,'Efficiency Distributions'!$C$9:$C$87,0)+RIGHT($E178),0)\n+AZ$11*OFFSET('Efficiency Distributions'!$E$10,MATCH($C171,'Efficiency Distributions'!$C$9:$C$87,0)+RIGHT($E178),0))\n/SUM(AZ$10:AZ$11)","v":0},{"$f":"IF(INDEX(PC_MAPPING,RIGHT($C171,1),MATCH($E$2,'Data by Building Type'!$D$22:$F$22,0))=\"Yes\",1,0)*\n(BA$10*OFFSET('Efficiency Distributions'!$D$10,MATCH($C171,'Efficiency Distributions'!$C$9:$C$87,0)+RIGHT($E178),0)\n+BA$11*OFFSET('Efficiency Distributions'!$E$10,MATCH($C171,'Efficiency Distributions'!$C$9:$C$87,0)+RIGHT($E178),0))\n/SUM(BA$10:BA$11)","v":0},{"$f":"IF(INDEX(PC_MAPPING,RIGHT($C171,1),MATCH($E$2,'Data by Building Type'!$D$22:$F$22,0))=\"Yes\",1,0)*\n(BB$10*OFFSET('Efficiency Distributions'!$D$10,MATCH($C171,'Efficiency Distributions'!$C$9:$C$87,0)+RIGHT($E178),0)\n+BB$11*OFFSET('Efficiency Distributions'!$E$10,MATCH($C171,'Efficiency Distributions'!$C$9:$C$87,0)+RIGHT($E178),0))\n/SUM(BB$10:BB$11)","v":0},{"$f":"IF(INDEX(PC_MAPPING,RIGHT($C171,1),MATCH($E$2,'Data by Building Type'!$D$22:$F$22,0))=\"Yes\",1,0)*\n(BC$10*OFFSET('Efficiency Distributions'!$D$10,MATCH($C171,'Efficiency Distributions'!$C$9:$C$87,0)+RIGHT($E178),0)\n+BC$11*OFFSET('Efficiency Distributions'!$E$10,MATCH($C171,'Efficiency Distributions'!$C$9:$C$87,0)+RIGHT($E178),0))\n/SUM(BC$10:BC$11)","v":0},{"$f":"IF(INDEX(PC_MAPPING,RIGHT($C171,1),MATCH($E$2,'Data by Building Type'!$D$22:$F$22,0))=\"Yes\",1,0)*\n(BD$10*OFFSET('Efficiency Distributions'!$D$10,MATCH($C171,'Efficiency Distributions'!$C$9:$C$87,0)+RIGHT($E178),0)\n+BD$11*OFFSET('Efficiency Distributions'!$E$10,MATCH($C171,'Efficiency Distributions'!$C$9:$C$87,0)+RIGHT($E178),0))\n/SUM(BD$10:BD$11)","v":0},{"$f":"IF(INDEX(PC_MAPPING,RIGHT($C171,1),MATCH($E$2,'Data by Building Type'!$D$22:$F$22,0))=\"Yes\",1,0)*\n(BE$10*OFFSET('Efficiency Distributions'!$D$10,MATCH($C171,'Efficiency Distributions'!$C$9:$C$87,0)+RIGHT($E178),0)\n+BE$11*OFFSET('Efficiency Distributions'!$E$10,MATCH($C171,'Efficiency Distributions'!$C$9:$C$87,0)+RIGHT($E178),0))\n/SUM(BE$10:BE$11)","v":0},{"$f":"IF(INDEX(PC_MAPPING,RIGHT($C171,1),MATCH($E$2,'Data by Building Type'!$D$22:$F$22,0))=\"Yes\",1,0)*\n(BF$10*OFFSET('Efficiency Distributions'!$D$10,MATCH($C171,'Efficiency Distributions'!$C$9:$C$87,0)+RIGHT($E178),0)\n+BF$11*OFFSET('Efficiency Distributions'!$E$10,MATCH($C171,'Efficiency Distributions'!$C$9:$C$87,0)+RIGHT($E178),0))\n/SUM(BF$10:BF$11)","v":0},{"$f":"IF(INDEX(PC_MAPPING,RIGHT($C171,1),MATCH($E$2,'Data by Building Type'!$D$22:$F$22,0))=\"Yes\",1,0)*\n(BG$10*OFFSET('Efficiency Distributions'!$D$10,MATCH($C171,'Efficiency Distributions'!$C$9:$C$87,0)+RIGHT($E178),0)\n+BG$11*OFFSET('Efficiency Distributions'!$E$10,MATCH($C171,'Efficiency Distributions'!$C$9:$C$87,0)+RIGHT($E178),0))\n/SUM(BG$10:BG$11)","v":0}]
[null,null,null,null,"EL4",{"$f":"IF(INDEX(PC_MAPPING,RIGHT($C171,1),MATCH($E$2,'Data by Building Type'!$D$22:$F$22,0))=\"Yes\",1,0)*\n(F$10*OFFSET('Efficiency Distributions'!$D$10,MATCH($C171,'Efficiency Distributions'!$C$9:$C$87,0)+RIGHT($E179),0)\n+F$11*OFFSET('Efficiency Distributions'!$E$10,MATCH($C171,'Efficiency Distributions'!$C$9:$C$87,0)+RIGHT($E179),0))\n/SUM(F$10:F$11)","v":0},{"$f":"IF(INDEX(PC_MAPPING,RIGHT($C171,1),MATCH($E$2,'Data by Building Type'!$D$22:$F$22,0))=\"Yes\",1,0)*\n(G$10*OFFSET('Efficiency Distributions'!$D$10,MATCH($C171,'Efficiency Distributions'!$C$9:$C$87,0)+RIGHT($E179),0)\n+G$11*OFFSET('Efficiency Distributions'!$E$10,MATCH($C171,'Efficiency Distributions'!$C$9:$C$87,0)+RIGHT($E179),0))\n/SUM(G$10:G$11)","v":0},{"$f":"IF(INDEX(PC_MAPPING,RIGHT($C171,1),MATCH($E$2,'Data by Building Type'!$D$22:$F$22,0))=\"Yes\",1,0)*\n(H$10*OFFSET('Efficiency Distributions'!$D$10,MATCH($C171,'Efficiency Distributions'!$C$9:$C$87,0)+RIGHT($E179),0)\n+H$11*OFFSET('Efficiency Distributions'!$E$10,MATCH($C171,'Efficiency Distributions'!$C$9:$C$87,0)+RIGHT($E179),0))\n/SUM(H$10:H$11)","v":0},{"$f":"IF(INDEX(PC_MAPPING,RIGHT($C171,1),MATCH($E$2,'Data by Building Type'!$D$22:$F$22,0))=\"Yes\",1,0)*\n(I$10*OFFSET('Efficiency Distributions'!$D$10,MATCH($C171,'Efficiency Distributions'!$C$9:$C$87,0)+RIGHT($E179),0)\n+I$11*OFFSET('Efficiency Distributions'!$E$10,MATCH($C171,'Efficiency Distributions'!$C$9:$C$87,0)+RIGHT($E179),0))\n/SUM(I$10:I$11)","v":0},{"$f":"IF(INDEX(PC_MAPPING,RIGHT($C171,1),MATCH($E$2,'Data by Building Type'!$D$22:$F$22,0))=\"Yes\",1,0)*\n(J$10*OFFSET('Efficiency Distributions'!$D$10,MATCH($C171,'Efficiency Distributions'!$C$9:$C$87,0)+RIGHT($E179),0)\n+J$11*OFFSET('Efficiency Distributions'!$E$10,MATCH($C171,'Efficiency Distributions'!$C$9:$C$87,0)+RIGHT($E179),0))\n/SUM(J$10:J$11)","v":0},{"$f":"IF(INDEX(PC_MAPPING,RIGHT($C171,1),MATCH($E$2,'Data by Building Type'!$D$22:$F$22,0))=\"Yes\",1,0)*\n(K$10*OFFSET('Efficiency Distributions'!$D$10,MATCH($C171,'Efficiency Distributions'!$C$9:$C$87,0)+RIGHT($E179),0)\n+K$11*OFFSET('Efficiency Distributions'!$E$10,MATCH($C171,'Efficiency Distributions'!$C$9:$C$87,0)+RIGHT($E179),0))\n/SUM(K$10:K$11)","v":0},{"$f":"IF(INDEX(PC_MAPPING,RIGHT($C171,1),MATCH($E$2,'Data by Building Type'!$D$22:$F$22,0))=\"Yes\",1,0)*\n(L$10*OFFSET('Efficiency Distributions'!$D$10,MATCH($C171,'Efficiency Distributions'!$C$9:$C$87,0)+RIGHT($E179),0)\n+L$11*OFFSET('Efficiency Distributions'!$E$10,MATCH($C171,'Efficiency Distributions'!$C$9:$C$87,0)+RIGHT($E179),0))\n/SUM(L$10:L$11)","v":0},{"$f":"IF(INDEX(PC_MAPPING,RIGHT($C171,1),MATCH($E$2,'Data by Building Type'!$D$22:$F$22,0))=\"Yes\",1,0)*\n(M$10*OFFSET('Efficiency Distributions'!$D$10,MATCH($C171,'Efficiency Distributions'!$C$9:$C$87,0)+RIGHT($E179),0)\n+M$11*OFFSET('Efficiency Distributions'!$E$10,MATCH($C171,'Efficiency Distributions'!$C$9:$C$87,0)+RIGHT($E179),0))\n/SUM(M$10:M$11)","v":0},{"$f":"IF(INDEX(PC_MAPPING,RIGHT($C171,1),MATCH($E$2,'Data by Building Type'!$D$22:$F$22,0))=\"Yes\",1,0)*\n(N$10*OFFSET('Efficiency Distributions'!$D$10,MATCH($C171,'Efficiency Distributions'!$C$9:$C$87,0)+RIGHT($E179),0)\n+N$11*OFFSET('Efficiency Distributions'!$E$10,MATCH($C171,'Efficiency Distributions'!$C$9:$C$87,0)+RIGHT($E179),0))\n/SUM(N$10:N$11)","v":0},{"$f":"IF(INDEX(PC_MAPPING,RIGHT($C171,1),MATCH($E$2,'Data by Building Type'!$D$22:$F$22,0))=\"Yes\",1,0)*\n(O$10*OFFSET('Efficiency Distributions'!$D$10,MATCH($C171,'Efficiency Distributions'!$C$9:$C$87,0)+RIGHT($E179),0)\n+O$11*OFFSET('Efficiency Distributions'!$E$10,MATCH($C171,'Efficiency Distributions'!$C$9:$C$87,0)+RIGHT($E179),0))\n/SUM(O$10:O$11)","v":0},{"$f":"IF(INDEX(PC_MAPPING,RIGHT($C171,1),MATCH($E$2,'Data by Building Type'!$D$22:$F$22,0))=\"Yes\",1,0)*\n(P$10*OFFSET('Efficiency Distributions'!$D$10,MATCH($C171,'Efficiency Distributions'!$C$9:$C$87,0)+RIGHT($E179),0)\n+P$11*OFFSET('Efficiency Distributions'!$E$10,MATCH($C171,'Efficiency Distributions'!$C$9:$C$87,0)+RIGHT($E179),0))\n/SUM(P$10:P$11)","v":0},{"$f":"IF(INDEX(PC_MAPPING,RIGHT($C171,1),MATCH($E$2,'Data by Building Type'!$D$22:$F$22,0))=\"Yes\",1,0)*\n(Q$10*OFFSET('Efficiency Distributions'!$D$10,MATCH($C171,'Efficiency Distributions'!$C$9:$C$87,0)+RIGHT($E179),0)\n+Q$11*OFFSET('Efficiency Distributions'!$E$10,MATCH($C171,'Efficiency Distributions'!$C$9:$C$87,0)+RIGHT($E179),0))\n/SUM(Q$10:Q$11)","v":0},{"$f":"IF(INDEX(PC_MAPPING,RIGHT($C171,1),MATCH($E$2,'Data by Building Type'!$D$22:$F$22,0))=\"Yes\",1,0)*\n(R$10*OFFSET('Efficiency Distributions'!$D$10,MATCH($C171,'Efficiency Distributions'!$C$9:$C$87,0)+RIGHT($E179),0)\n+R$11*OFFSET('Efficiency Distributions'!$E$10,MATCH($C171,'Efficiency Distributions'!$C$9:$C$87,0)+RIGHT($E179),0))\n/SUM(R$10:R$11)","v":0},{"$f":"IF(INDEX(PC_MAPPING,RIGHT($C171,1),MATCH($E$2,'Data by Building Type'!$D$22:$F$22,0))=\"Yes\",1,0)*\n(S$10*OFFSET('Efficiency Distributions'!$D$10,MATCH($C171,'Efficiency Distributions'!$C$9:$C$87,0)+RIGHT($E179),0)\n+S$11*OFFSET('Efficiency Distributions'!$E$10,MATCH($C171,'Efficiency Distributions'!$C$9:$C$87,0)+RIGHT($E179),0))\n/SUM(S$10:S$11)","v":0},{"$f":"IF(INDEX(PC_MAPPING,RIGHT($C171,1),MATCH($E$2,'Data by Building Type'!$D$22:$F$22,0))=\"Yes\",1,0)*\n(T$10*OFFSET('Efficiency Distributions'!$D$10,MATCH($C171,'Efficiency Distributions'!$C$9:$C$87,0)+RIGHT($E179),0)\n+T$11*OFFSET('Efficiency Distributions'!$E$10,MATCH($C171,'Efficiency Distributions'!$C$9:$C$87,0)+RIGHT($E179),0))\n/SUM(T$10:T$11)","v":0},{"$f":"IF(INDEX(PC_MAPPING,RIGHT($C171,1),MATCH($E$2,'Data by Building Type'!$D$22:$F$22,0))=\"Yes\",1,0)*\n(U$10*OFFSET('Efficiency Distributions'!$D$10,MATCH($C171,'Efficiency Distributions'!$C$9:$C$87,0)+RIGHT($E179),0)\n+U$11*OFFSET('Efficiency Distributions'!$E$10,MATCH($C171,'Efficiency Distributions'!$C$9:$C$87,0)+RIGHT($E179),0))\n/SUM(U$10:U$11)","v":0},{"$f":"IF(INDEX(PC_MAPPING,RIGHT($C171,1),MATCH($E$2,'Data by Building Type'!$D$22:$F$22,0))=\"Yes\",1,0)*\n(V$10*OFFSET('Efficiency Distributions'!$D$10,MATCH($C171,'Efficiency Distributions'!$C$9:$C$87,0)+RIGHT($E179),0)\n+V$11*OFFSET('Efficiency Distributions'!$E$10,MATCH($C171,'Efficiency Distributions'!$C$9:$C$87,0)+RIGHT($E179),0))\n/SUM(V$10:V$11)","v":0},{"$f":"IF(INDEX(PC_MAPPING,RIGHT($C171,1),MATCH($E$2,'Data by Building Type'!$D$22:$F$22,0))=\"Yes\",1,0)*\n(W$10*OFFSET('Efficiency Distributions'!$D$10,MATCH($C171,'Efficiency Distributions'!$C$9:$C$87,0)+RIGHT($E179),0)\n+W$11*OFFSET('Efficiency Distributions'!$E$10,MATCH($C171,'Efficiency Distributions'!$C$9:$C$87,0)+RIGHT($E179),0))\n/SUM(W$10:W$11)","v":0},{"$f":"IF(INDEX(PC_MAPPING,RIGHT($C171,1),MATCH($E$2,'Data by Building Type'!$D$22:$F$22,0))=\"Yes\",1,0)*\n(X$10*OFFSET('Efficiency Distributions'!$D$10,MATCH($C171,'Efficiency Distributions'!$C$9:$C$87,0)+RIGHT($E179),0)\n+X$11*OFFSET('Efficiency Distributions'!$E$10,MATCH($C171,'Efficiency Distributions'!$C$9:$C$87,0)+RIGHT($E179),0))\n/SUM(X$10:X$11)","v":0},{"$f":"IF(INDEX(PC_MAPPING,RIGHT($C171,1),MATCH($E$2,'Data by Building Type'!$D$22:$F$22,0))=\"Yes\",1,0)*\n(Y$10*OFFSET('Efficiency Distributions'!$D$10,MATCH($C171,'Efficiency Distributions'!$C$9:$C$87,0)+RIGHT($E179),0)\n+Y$11*OFFSET('Efficiency Distributions'!$E$10,MATCH($C171,'Efficiency Distributions'!$C$9:$C$87,0)+RIGHT($E179),0))\n/SUM(Y$10:Y$11)","v":0},{"$f":"IF(INDEX(PC_MAPPING,RIGHT($C171,1),MATCH($E$2,'Data by Building Type'!$D$22:$F$22,0))=\"Yes\",1,0)*\n(Z$10*OFFSET('Efficiency Distributions'!$D$10,MATCH($C171,'Efficiency Distributions'!$C$9:$C$87,0)+RIGHT($E179),0)\n+Z$11*OFFSET('Efficiency Distributions'!$E$10,MATCH($C171,'Efficiency Distributions'!$C$9:$C$87,0)+RIGHT($E179),0))\n/SUM(Z$10:Z$11)","v":0},{"$f":"IF(INDEX(PC_MAPPING,RIGHT($C171,1),MATCH($E$2,'Data by Building Type'!$D$22:$F$22,0))=\"Yes\",1,0)*\n(AA$10*OFFSET('Efficiency Distributions'!$D$10,MATCH($C171,'Efficiency Distributions'!$C$9:$C$87,0)+RIGHT($E179),0)\n+AA$11*OFFSET('Efficiency Distributions'!$E$10,MATCH($C171,'Efficiency Distributions'!$C$9:$C$87,0)+RIGHT($E179),0))\n/SUM(AA$10:AA$11)","v":0},{"$f":"IF(INDEX(PC_MAPPING,RIGHT($C171,1),MATCH($E$2,'Data by Building Type'!$D$22:$F$22,0))=\"Yes\",1,0)*\n(AB$10*OFFSET('Efficiency Distributions'!$D$10,MATCH($C171,'Efficiency Distributions'!$C$9:$C$87,0)+RIGHT($E179),0)\n+AB$11*OFFSET('Efficiency Distributions'!$E$10,MATCH($C171,'Efficiency Distributions'!$C$9:$C$87,0)+RIGHT($E179),0))\n/SUM(AB$10:AB$11)","v":0},{"$f":"IF(INDEX(PC_MAPPING,RIGHT($C171,1),MATCH($E$2,'Data by Building Type'!$D$22:$F$22,0))=\"Yes\",1,0)*\n(AC$10*OFFSET('Efficiency Distributions'!$D$10,MATCH($C171,'Efficiency Distributions'!$C$9:$C$87,0)+RIGHT($E179),0)\n+AC$11*OFFSET('Efficiency Distributions'!$E$10,MATCH($C171,'Efficiency Distributions'!$C$9:$C$87,0)+RIGHT($E179),0))\n/SUM(AC$10:AC$11)","v":0},{"$f":"IF(INDEX(PC_MAPPING,RIGHT($C171,1),MATCH($E$2,'Data by Building Type'!$D$22:$F$22,0))=\"Yes\",1,0)*\n(AD$10*OFFSET('Efficiency Distributions'!$D$10,MATCH($C171,'Efficiency Distributions'!$C$9:$C$87,0)+RIGHT($E179),0)\n+AD$11*OFFSET('Efficiency Distributions'!$E$10,MATCH($C171,'Efficiency Distributions'!$C$9:$C$87,0)+RIGHT($E179),0))\n/SUM(AD$10:AD$11)","v":0},{"$f":"IF(INDEX(PC_MAPPING,RIGHT($C171,1),MATCH($E$2,'Data by Building Type'!$D$22:$F$22,0))=\"Yes\",1,0)*\n(AE$10*OFFSET('Efficiency Distributions'!$D$10,MATCH($C171,'Efficiency Distributions'!$C$9:$C$87,0)+RIGHT($E179),0)\n+AE$11*OFFSET('Efficiency Distributions'!$E$10,MATCH($C171,'Efficiency Distributions'!$C$9:$C$87,0)+RIGHT($E179),0))\n/SUM(AE$10:AE$11)","v":0},{"$f":"IF(INDEX(PC_MAPPING,RIGHT($C171,1),MATCH($E$2,'Data by Building Type'!$D$22:$F$22,0))=\"Yes\",1,0)*\n(AF$10*OFFSET('Efficiency Distributions'!$D$10,MATCH($C171,'Efficiency Distributions'!$C$9:$C$87,0)+RIGHT($E179),0)\n+AF$11*OFFSET('Efficiency Distributions'!$E$10,MATCH($C171,'Efficiency Distributions'!$C$9:$C$87,0)+RIGHT($E179),0))\n/SUM(AF$10:AF$11)","v":0},{"$f":"IF(INDEX(PC_MAPPING,RIGHT($C171,1),MATCH($E$2,'Data by Building Type'!$D$22:$F$22,0))=\"Yes\",1,0)*\n(AG$10*OFFSET('Efficiency Distributions'!$D$10,MATCH($C171,'Efficiency Distributions'!$C$9:$C$87,0)+RIGHT($E179),0)\n+AG$11*OFFSET('Efficiency Distributions'!$E$10,MATCH($C171,'Efficiency Distributions'!$C$9:$C$87,0)+RIGHT($E179),0))\n/SUM(AG$10:AG$11)","v":0},{"$f":"IF(INDEX(PC_MAPPING,RIGHT($C171,1),MATCH($E$2,'Data by Building Type'!$D$22:$F$22,0))=\"Yes\",1,0)*\n(AH$10*OFFSET('Efficiency Distributions'!$D$10,MATCH($C171,'Efficiency Distributions'!$C$9:$C$87,0)+RIGHT($E179),0)\n+AH$11*OFFSET('Efficiency Distributions'!$E$10,MATCH($C171,'Efficiency Distributions'!$C$9:$C$87,0)+RIGHT($E179),0))\n/SUM(AH$10:AH$11)","v":0},{"$f":"IF(INDEX(PC_MAPPING,RIGHT($C171,1),MATCH($E$2,'Data by Building Type'!$D$22:$F$22,0))=\"Yes\",1,0)*\n(AI$10*OFFSET('Efficiency Distributions'!$D$10,MATCH($C171,'Efficiency Distributions'!$C$9:$C$87,0)+RIGHT($E179),0)\n+AI$11*OFFSET('Efficiency Distributions'!$E$10,MATCH($C171,'Efficiency Distributions'!$C$9:$C$87,0)+RIGHT($E179),0))\n/SUM(AI$10:AI$11)","v":0},{"$f":"IF(INDEX(PC_MAPPING,RIGHT($C171,1),MATCH($E$2,'Data by Building Type'!$D$22:$F$22,0))=\"Yes\",1,0)*\n(AJ$10*OFFSET('Efficiency Distributions'!$D$10,MATCH($C171,'Efficiency Distributions'!$C$9:$C$87,0)+RIGHT($E179),0)\n+AJ$11*OFFSET('Efficiency Distributions'!$E$10,MATCH($C171,'Efficiency Distributions'!$C$9:$C$87,0)+RIGHT($E179),0))\n/SUM(AJ$10:AJ$11)","v":0},{"$f":"IF(INDEX(PC_MAPPING,RIGHT($C171,1),MATCH($E$2,'Data by Building Type'!$D$22:$F$22,0))=\"Yes\",1,0)*\n(AK$10*OFFSET('Efficiency Distributions'!$D$10,MATCH($C171,'Efficiency Distributions'!$C$9:$C$87,0)+RIGHT($E179),0)\n+AK$11*OFFSET('Efficiency Distributions'!$E$10,MATCH($C171,'Efficiency Distributions'!$C$9:$C$87,0)+RIGHT($E179),0))\n/SUM(AK$10:AK$11)","v":0},{"$f":"IF(INDEX(PC_MAPPING,RIGHT($C171,1),MATCH($E$2,'Data by Building Type'!$D$22:$F$22,0))=\"Yes\",1,0)*\n(AL$10*OFFSET('Efficiency Distributions'!$D$10,MATCH($C171,'Efficiency Distributions'!$C$9:$C$87,0)+RIGHT($E179),0)\n+AL$11*OFFSET('Efficiency Distributions'!$E$10,MATCH($C171,'Efficiency Distributions'!$C$9:$C$87,0)+RIGHT($E179),0))\n/SUM(AL$10:AL$11)","v":0},{"$f":"IF(INDEX(PC_MAPPING,RIGHT($C171,1),MATCH($E$2,'Data by Building Type'!$D$22:$F$22,0))=\"Yes\",1,0)*\n(AM$10*OFFSET('Efficiency Distributions'!$D$10,MATCH($C171,'Efficiency Distributions'!$C$9:$C$87,0)+RIGHT($E179),0)\n+AM$11*OFFSET('Efficiency Distributions'!$E$10,MATCH($C171,'Efficiency Distributions'!$C$9:$C$87,0)+RIGHT($E179),0))\n/SUM(AM$10:AM$11)","v":0},{"$f":"IF(INDEX(PC_MAPPING,RIGHT($C171,1),MATCH($E$2,'Data by Building Type'!$D$22:$F$22,0))=\"Yes\",1,0)*\n(AN$10*OFFSET('Efficiency Distributions'!$D$10,MATCH($C171,'Efficiency Distributions'!$C$9:$C$87,0)+RIGHT($E179),0)\n+AN$11*OFFSET('Efficiency Distributions'!$E$10,MATCH($C171,'Efficiency Distributions'!$C$9:$C$87,0)+RIGHT($E179),0))\n/SUM(AN$10:AN$11)","v":0},{"$f":"IF(INDEX(PC_MAPPING,RIGHT($C171,1),MATCH($E$2,'Data by Building Type'!$D$22:$F$22,0))=\"Yes\",1,0)*\n(AO$10*OFFSET('Efficiency Distributions'!$D$10,MATCH($C171,'Efficiency Distributions'!$C$9:$C$87,0)+RIGHT($E179),0)\n+AO$11*OFFSET('Efficiency Distributions'!$E$10,MATCH($C171,'Efficiency Distributions'!$C$9:$C$87,0)+RIGHT($E179),0))\n/SUM(AO$10:AO$11)","v":0},{"$f":"IF(INDEX(PC_MAPPING,RIGHT($C171,1),MATCH($E$2,'Data by Building Type'!$D$22:$F$22,0))=\"Yes\",1,0)*\n(AP$10*OFFSET('Efficiency Distributions'!$D$10,MATCH($C171,'Efficiency Distributions'!$C$9:$C$87,0)+RIGHT($E179),0)\n+AP$11*OFFSET('Efficiency Distributions'!$E$10,MATCH($C171,'Efficiency Distributions'!$C$9:$C$87,0)+RIGHT($E179),0))\n/SUM(AP$10:AP$11)","v":0},{"$f":"IF(INDEX(PC_MAPPING,RIGHT($C171,1),MATCH($E$2,'Data by Building Type'!$D$22:$F$22,0))=\"Yes\",1,0)*\n(AQ$10*OFFSET('Efficiency Distributions'!$D$10,MATCH($C171,'Efficiency Distributions'!$C$9:$C$87,0)+RIGHT($E179),0)\n+AQ$11*OFFSET('Efficiency Distributions'!$E$10,MATCH($C171,'Efficiency Distributions'!$C$9:$C$87,0)+RIGHT($E179),0))\n/SUM(AQ$10:AQ$11)","v":0},{"$f":"IF(INDEX(PC_MAPPING,RIGHT($C171,1),MATCH($E$2,'Data by Building Type'!$D$22:$F$22,0))=\"Yes\",1,0)*\n(AR$10*OFFSET('Efficiency Distributions'!$D$10,MATCH($C171,'Efficiency Distributions'!$C$9:$C$87,0)+RIGHT($E179),0)\n+AR$11*OFFSET('Efficiency Distributions'!$E$10,MATCH($C171,'Efficiency Distributions'!$C$9:$C$87,0)+RIGHT($E179),0))\n/SUM(AR$10:AR$11)","v":0},{"$f":"IF(INDEX(PC_MAPPING,RIGHT($C171,1),MATCH($E$2,'Data by Building Type'!$D$22:$F$22,0))=\"Yes\",1,0)*\n(AS$10*OFFSET('Efficiency Distributions'!$D$10,MATCH($C171,'Efficiency Distributions'!$C$9:$C$87,0)+RIGHT($E179),0)\n+AS$11*OFFSET('Efficiency Distributions'!$E$10,MATCH($C171,'Efficiency Distributions'!$C$9:$C$87,0)+RIGHT($E179),0))\n/SUM(AS$10:AS$11)","v":0},{"$f":"IF(INDEX(PC_MAPPING,RIGHT($C171,1),MATCH($E$2,'Data by Building Type'!$D$22:$F$22,0))=\"Yes\",1,0)*\n(AT$10*OFFSET('Efficiency Distributions'!$D$10,MATCH($C171,'Efficiency Distributions'!$C$9:$C$87,0)+RIGHT($E179),0)\n+AT$11*OFFSET('Efficiency Distributions'!$E$10,MATCH($C171,'Efficiency Distributions'!$C$9:$C$87,0)+RIGHT($E179),0))\n/SUM(AT$10:AT$11)","v":0},{"$f":"IF(INDEX(PC_MAPPING,RIGHT($C171,1),MATCH($E$2,'Data by Building Type'!$D$22:$F$22,0))=\"Yes\",1,0)*\n(AU$10*OFFSET('Efficiency Distributions'!$D$10,MATCH($C171,'Efficiency Distributions'!$C$9:$C$87,0)+RIGHT($E179),0)\n+AU$11*OFFSET('Efficiency Distributions'!$E$10,MATCH($C171,'Efficiency Distributions'!$C$9:$C$87,0)+RIGHT($E179),0))\n/SUM(AU$10:AU$11)","v":0},{"$f":"IF(INDEX(PC_MAPPING,RIGHT($C171,1),MATCH($E$2,'Data by Building Type'!$D$22:$F$22,0))=\"Yes\",1,0)*\n(AV$10*OFFSET('Efficiency Distributions'!$D$10,MATCH($C171,'Efficiency Distributions'!$C$9:$C$87,0)+RIGHT($E179),0)\n+AV$11*OFFSET('Efficiency Distributions'!$E$10,MATCH($C171,'Efficiency Distributions'!$C$9:$C$87,0)+RIGHT($E179),0))\n/SUM(AV$10:AV$11)","v":0},{"$f":"IF(INDEX(PC_MAPPING,RIGHT($C171,1),MATCH($E$2,'Data by Building Type'!$D$22:$F$22,0))=\"Yes\",1,0)*\n(AW$10*OFFSET('Efficiency Distributions'!$D$10,MATCH($C171,'Efficiency Distributions'!$C$9:$C$87,0)+RIGHT($E179),0)\n+AW$11*OFFSET('Efficiency Distributions'!$E$10,MATCH($C171,'Efficiency Distributions'!$C$9:$C$87,0)+RIGHT($E179),0))\n/SUM(AW$10:AW$11)","v":0},{"$f":"IF(INDEX(PC_MAPPING,RIGHT($C171,1),MATCH($E$2,'Data by Building Type'!$D$22:$F$22,0))=\"Yes\",1,0)*\n(AX$10*OFFSET('Efficiency Distributions'!$D$10,MATCH($C171,'Efficiency Distributions'!$C$9:$C$87,0)+RIGHT($E179),0)\n+AX$11*OFFSET('Efficiency Distributions'!$E$10,MATCH($C171,'Efficiency Distributions'!$C$9:$C$87,0)+RIGHT($E179),0))\n/SUM(AX$10:AX$11)","v":0},{"$f":"IF(INDEX(PC_MAPPING,RIGHT($C171,1),MATCH($E$2,'Data by Building Type'!$D$22:$F$22,0))=\"Yes\",1,0)*\n(AY$10*OFFSET('Efficiency Distributions'!$D$10,MATCH($C171,'Efficiency Distributions'!$C$9:$C$87,0)+RIGHT($E179),0)\n+AY$11*OFFSET('Efficiency Distributions'!$E$10,MATCH($C171,'Efficiency Distributions'!$C$9:$C$87,0)+RIGHT($E179),0))\n/SUM(AY$10:AY$11)","v":0},{"$f":"IF(INDEX(PC_MAPPING,RIGHT($C171,1),MATCH($E$2,'Data by Building Type'!$D$22:$F$22,0))=\"Yes\",1,0)*\n(AZ$10*OFFSET('Efficiency Distributions'!$D$10,MATCH($C171,'Efficiency Distributions'!$C$9:$C$87,0)+RIGHT($E179),0)\n+AZ$11*OFFSET('Efficiency Distributions'!$E$10,MATCH($C171,'Efficiency Distributions'!$C$9:$C$87,0)+RIGHT($E179),0))\n/SUM(AZ$10:AZ$11)","v":0},{"$f":"IF(INDEX(PC_MAPPING,RIGHT($C171,1),MATCH($E$2,'Data by Building Type'!$D$22:$F$22,0))=\"Yes\",1,0)*\n(BA$10*OFFSET('Efficiency Distributions'!$D$10,MATCH($C171,'Efficiency Distributions'!$C$9:$C$87,0)+RIGHT($E179),0)\n+BA$11*OFFSET('Efficiency Distributions'!$E$10,MATCH($C171,'Efficiency Distributions'!$C$9:$C$87,0)+RIGHT($E179),0))\n/SUM(BA$10:BA$11)","v":0},{"$f":"IF(INDEX(PC_MAPPING,RIGHT($C171,1),MATCH($E$2,'Data by Building Type'!$D$22:$F$22,0))=\"Yes\",1,0)*\n(BB$10*OFFSET('Efficiency Distributions'!$D$10,MATCH($C171,'Efficiency Distributions'!$C$9:$C$87,0)+RIGHT($E179),0)\n+BB$11*OFFSET('Efficiency Distributions'!$E$10,MATCH($C171,'Efficiency Distributions'!$C$9:$C$87,0)+RIGHT($E179),0))\n/SUM(BB$10:BB$11)","v":0},{"$f":"IF(INDEX(PC_MAPPING,RIGHT($C171,1),MATCH($E$2,'Data by Building Type'!$D$22:$F$22,0))=\"Yes\",1,0)*\n(BC$10*OFFSET('Efficiency Distributions'!$D$10,MATCH($C171,'Efficiency Distributions'!$C$9:$C$87,0)+RIGHT($E179),0)\n+BC$11*OFFSET('Efficiency Distributions'!$E$10,MATCH($C171,'Efficiency Distributions'!$C$9:$C$87,0)+RIGHT($E179),0))\n/SUM(BC$10:BC$11)","v":0},{"$f":"IF(INDEX(PC_MAPPING,RIGHT($C171,1),MATCH($E$2,'Data by Building Type'!$D$22:$F$22,0))=\"Yes\",1,0)*\n(BD$10*OFFSET('Efficiency Distributions'!$D$10,MATCH($C171,'Efficiency Distributions'!$C$9:$C$87,0)+RIGHT($E179),0)\n+BD$11*OFFSET('Efficiency Distributions'!$E$10,MATCH($C171,'Efficiency Distributions'!$C$9:$C$87,0)+RIGHT($E179),0))\n/SUM(BD$10:BD$11)","v":0},{"$f":"IF(INDEX(PC_MAPPING,RIGHT($C171,1),MATCH($E$2,'Data by Building Type'!$D$22:$F$22,0))=\"Yes\",1,0)*\n(BE$10*OFFSET('Efficiency Distributions'!$D$10,MATCH($C171,'Efficiency Distributions'!$C$9:$C$87,0)+RIGHT($E179),0)\n+BE$11*OFFSET('Efficiency Distributions'!$E$10,MATCH($C171,'Efficiency Distributions'!$C$9:$C$87,0)+RIGHT($E179),0))\n/SUM(BE$10:BE$11)","v":0},{"$f":"IF(INDEX(PC_MAPPING,RIGHT($C171,1),MATCH($E$2,'Data by Building Type'!$D$22:$F$22,0))=\"Yes\",1,0)*\n(BF$10*OFFSET('Efficiency Distributions'!$D$10,MATCH($C171,'Efficiency Distributions'!$C$9:$C$87,0)+RIGHT($E179),0)\n+BF$11*OFFSET('Efficiency Distributions'!$E$10,MATCH($C171,'Efficiency Distributions'!$C$9:$C$87,0)+RIGHT($E179),0))\n/SUM(BF$10:BF$11)","v":0},{"$f":"IF(INDEX(PC_MAPPING,RIGHT($C171,1),MATCH($E$2,'Data by Building Type'!$D$22:$F$22,0))=\"Yes\",1,0)*\n(BG$10*OFFSET('Efficiency Distributions'!$D$10,MATCH($C171,'Efficiency Distributions'!$C$9:$C$87,0)+RIGHT($E179),0)\n+BG$11*OFFSET('Efficiency Distributions'!$E$10,MATCH($C171,'Efficiency Distributions'!$C$9:$C$87,0)+RIGHT($E179),0))\n/SUM(BG$10:BG$11)","v":0}]
[null,null,null,null,"EL5",{"$f":"IF(INDEX(PC_MAPPING,RIGHT($C171,1),MATCH($E$2,'Data by Building Type'!$D$22:$F$22,0))=\"Yes\",1,0)*\n(F$10*OFFSET('Efficiency Distributions'!$D$10,MATCH($C171,'Efficiency Distributions'!$C$9:$C$87,0)+RIGHT($E180),0)\n+F$11*OFFSET('Efficiency Distributions'!$E$10,MATCH($C171,'Efficiency Distributions'!$C$9:$C$87,0)+RIGHT($E180),0))\n/SUM(F$10:F$11)","v":0},{"$f":"IF(INDEX(PC_MAPPING,RIGHT($C171,1),MATCH($E$2,'Data by Building Type'!$D$22:$F$22,0))=\"Yes\",1,0)*\n(G$10*OFFSET('Efficiency Distributions'!$D$10,MATCH($C171,'Efficiency Distributions'!$C$9:$C$87,0)+RIGHT($E180),0)\n+G$11*OFFSET('Efficiency Distributions'!$E$10,MATCH($C171,'Efficiency Distributions'!$C$9:$C$87,0)+RIGHT($E180),0))\n/SUM(G$10:G$11)","v":0},{"$f":"IF(INDEX(PC_MAPPING,RIGHT($C171,1),MATCH($E$2,'Data by Building Type'!$D$22:$F$22,0))=\"Yes\",1,0)*\n(H$10*OFFSET('Efficiency Distributions'!$D$10,MATCH($C171,'Efficiency Distributions'!$C$9:$C$87,0)+RIGHT($E180),0)\n+H$11*OFFSET('Efficiency Distributions'!$E$10,MATCH($C171,'Efficiency Distributions'!$C$9:$C$87,0)+RIGHT($E180),0))\n/SUM(H$10:H$11)","v":0},{"$f":"IF(INDEX(PC_MAPPING,RIGHT($C171,1),MATCH($E$2,'Data by Building Type'!$D$22:$F$22,0))=\"Yes\",1,0)*\n(I$10*OFFSET('Efficiency Distributions'!$D$10,MATCH($C171,'Efficiency Distributions'!$C$9:$C$87,0)+RIGHT($E180),0)\n+I$11*OFFSET('Efficiency Distributions'!$E$10,MATCH($C171,'Efficiency Distributions'!$C$9:$C$87,0)+RIGHT($E180),0))\n/SUM(I$10:I$11)","v":0},{"$f":"IF(INDEX(PC_MAPPING,RIGHT($C171,1),MATCH($E$2,'Data by Building Type'!$D$22:$F$22,0))=\"Yes\",1,0)*\n(J$10*OFFSET('Efficiency Distributions'!$D$10,MATCH($C171,'Efficiency Distributions'!$C$9:$C$87,0)+RIGHT($E180),0)\n+J$11*OFFSET('Efficiency Distributions'!$E$10,MATCH($C171,'Efficiency Distributions'!$C$9:$C$87,0)+RIGHT($E180),0))\n/SUM(J$10:J$11)","v":0},{"$f":"IF(INDEX(PC_MAPPING,RIGHT($C171,1),MATCH($E$2,'Data by Building Type'!$D$22:$F$22,0))=\"Yes\",1,0)*\n(K$10*OFFSET('Efficiency Distributions'!$D$10,MATCH($C171,'Efficiency Distributions'!$C$9:$C$87,0)+RIGHT($E180),0)\n+K$11*OFFSET('Efficiency Distributions'!$E$10,MATCH($C171,'Efficiency Distributions'!$C$9:$C$87,0)+RIGHT($E180),0))\n/SUM(K$10:K$11)","v":0},{"$f":"IF(INDEX(PC_MAPPING,RIGHT($C171,1),MATCH($E$2,'Data by Building Type'!$D$22:$F$22,0))=\"Yes\",1,0)*\n(L$10*OFFSET('Efficiency Distributions'!$D$10,MATCH($C171,'Efficiency Distributions'!$C$9:$C$87,0)+RIGHT($E180),0)\n+L$11*OFFSET('Efficiency Distributions'!$E$10,MATCH($C171,'Efficiency Distributions'!$C$9:$C$87,0)+RIGHT($E180),0))\n/SUM(L$10:L$11)","v":0},{"$f":"IF(INDEX(PC_MAPPING,RIGHT($C171,1),MATCH($E$2,'Data by Building Type'!$D$22:$F$22,0))=\"Yes\",1,0)*\n(M$10*OFFSET('Efficiency Distributions'!$D$10,MATCH($C171,'Efficiency Distributions'!$C$9:$C$87,0)+RIGHT($E180),0)\n+M$11*OFFSET('Efficiency Distributions'!$E$10,MATCH($C171,'Efficiency Distributions'!$C$9:$C$87,0)+RIGHT($E180),0))\n/SUM(M$10:M$11)","v":0},{"$f":"IF(INDEX(PC_MAPPING,RIGHT($C171,1),MATCH($E$2,'Data by Building Type'!$D$22:$F$22,0))=\"Yes\",1,0)*\n(N$10*OFFSET('Efficiency Distributions'!$D$10,MATCH($C171,'Efficiency Distributions'!$C$9:$C$87,0)+RIGHT($E180),0)\n+N$11*OFFSET('Efficiency Distributions'!$E$10,MATCH($C171,'Efficiency Distributions'!$C$9:$C$87,0)+RIGHT($E180),0))\n/SUM(N$10:N$11)","v":0},{"$f":"IF(INDEX(PC_MAPPING,RIGHT($C171,1),MATCH($E$2,'Data by Building Type'!$D$22:$F$22,0))=\"Yes\",1,0)*\n(O$10*OFFSET('Efficiency Distributions'!$D$10,MATCH($C171,'Efficiency Distributions'!$C$9:$C$87,0)+RIGHT($E180),0)\n+O$11*OFFSET('Efficiency Distributions'!$E$10,MATCH($C171,'Efficiency Distributions'!$C$9:$C$87,0)+RIGHT($E180),0))\n/SUM(O$10:O$11)","v":0},{"$f":"IF(INDEX(PC_MAPPING,RIGHT($C171,1),MATCH($E$2,'Data by Building Type'!$D$22:$F$22,0))=\"Yes\",1,0)*\n(P$10*OFFSET('Efficiency Distributions'!$D$10,MATCH($C171,'Efficiency Distributions'!$C$9:$C$87,0)+RIGHT($E180),0)\n+P$11*OFFSET('Efficiency Distributions'!$E$10,MATCH($C171,'Efficiency Distributions'!$C$9:$C$87,0)+RIGHT($E180),0))\n/SUM(P$10:P$11)","v":0},{"$f":"IF(INDEX(PC_MAPPING,RIGHT($C171,1),MATCH($E$2,'Data by Building Type'!$D$22:$F$22,0))=\"Yes\",1,0)*\n(Q$10*OFFSET('Efficiency Distributions'!$D$10,MATCH($C171,'Efficiency Distributions'!$C$9:$C$87,0)+RIGHT($E180),0)\n+Q$11*OFFSET('Efficiency Distributions'!$E$10,MATCH($C171,'Efficiency Distributions'!$C$9:$C$87,0)+RIGHT($E180),0))\n/SUM(Q$10:Q$11)","v":0},{"$f":"IF(INDEX(PC_MAPPING,RIGHT($C171,1),MATCH($E$2,'Data by Building Type'!$D$22:$F$22,0))=\"Yes\",1,0)*\n(R$10*OFFSET('Efficiency Distributions'!$D$10,MATCH($C171,'Efficiency Distributions'!$C$9:$C$87,0)+RIGHT($E180),0)\n+R$11*OFFSET('Efficiency Distributions'!$E$10,MATCH($C171,'Efficiency Distributions'!$C$9:$C$87,0)+RIGHT($E180),0))\n/SUM(R$10:R$11)","v":0},{"$f":"IF(INDEX(PC_MAPPING,RIGHT($C171,1),MATCH($E$2,'Data by Building Type'!$D$22:$F$22,0))=\"Yes\",1,0)*\n(S$10*OFFSET('Efficiency Distributions'!$D$10,MATCH($C171,'Efficiency Distributions'!$C$9:$C$87,0)+RIGHT($E180),0)\n+S$11*OFFSET('Efficiency Distributions'!$E$10,MATCH($C171,'Efficiency Distributions'!$C$9:$C$87,0)+RIGHT($E180),0))\n/SUM(S$10:S$11)","v":0},{"$f":"IF(INDEX(PC_MAPPING,RIGHT($C171,1),MATCH($E$2,'Data by Building Type'!$D$22:$F$22,0))=\"Yes\",1,0)*\n(T$10*OFFSET('Efficiency Distributions'!$D$10,MATCH($C171,'Efficiency Distributions'!$C$9:$C$87,0)+RIGHT($E180),0)\n+T$11*OFFSET('Efficiency Distributions'!$E$10,MATCH($C171,'Efficiency Distributions'!$C$9:$C$87,0)+RIGHT($E180),0))\n/SUM(T$10:T$11)","v":0},{"$f":"IF(INDEX(PC_MAPPING,RIGHT($C171,1),MATCH($E$2,'Data by Building Type'!$D$22:$F$22,0))=\"Yes\",1,0)*\n(U$10*OFFSET('Efficiency Distributions'!$D$10,MATCH($C171,'Efficiency Distributions'!$C$9:$C$87,0)+RIGHT($E180),0)\n+U$11*OFFSET('Efficiency Distributions'!$E$10,MATCH($C171,'Efficiency Distributions'!$C$9:$C$87,0)+RIGHT($E180),0))\n/SUM(U$10:U$11)","v":0},{"$f":"IF(INDEX(PC_MAPPING,RIGHT($C171,1),MATCH($E$2,'Data by Building Type'!$D$22:$F$22,0))=\"Yes\",1,0)*\n(V$10*OFFSET('Efficiency Distributions'!$D$10,MATCH($C171,'Efficiency Distributions'!$C$9:$C$87,0)+RIGHT($E180),0)\n+V$11*OFFSET('Efficiency Distributions'!$E$10,MATCH($C171,'Efficiency Distributions'!$C$9:$C$87,0)+RIGHT($E180),0))\n/SUM(V$10:V$11)","v":0},{"$f":"IF(INDEX(PC_MAPPING,RIGHT($C171,1),MATCH($E$2,'Data by Building Type'!$D$22:$F$22,0))=\"Yes\",1,0)*\n(W$10*OFFSET('Efficiency Distributions'!$D$10,MATCH($C171,'Efficiency Distributions'!$C$9:$C$87,0)+RIGHT($E180),0)\n+W$11*OFFSET('Efficiency Distributions'!$E$10,MATCH($C171,'Efficiency Distributions'!$C$9:$C$87,0)+RIGHT($E180),0))\n/SUM(W$10:W$11)","v":0},{"$f":"IF(INDEX(PC_MAPPING,RIGHT($C171,1),MATCH($E$2,'Data by Building Type'!$D$22:$F$22,0))=\"Yes\",1,0)*\n(X$10*OFFSET('Efficiency Distributions'!$D$10,MATCH($C171,'Efficiency Distributions'!$C$9:$C$87,0)+RIGHT($E180),0)\n+X$11*OFFSET('Efficiency Distributions'!$E$10,MATCH($C171,'Efficiency Distributions'!$C$9:$C$87,0)+RIGHT($E180),0))\n/SUM(X$10:X$11)","v":0},{"$f":"IF(INDEX(PC_MAPPING,RIGHT($C171,1),MATCH($E$2,'Data by Building Type'!$D$22:$F$22,0))=\"Yes\",1,0)*\n(Y$10*OFFSET('Efficiency Distributions'!$D$10,MATCH($C171,'Efficiency Distributions'!$C$9:$C$87,0)+RIGHT($E180),0)\n+Y$11*OFFSET('Efficiency Distributions'!$E$10,MATCH($C171,'Efficiency Distributions'!$C$9:$C$87,0)+RIGHT($E180),0))\n/SUM(Y$10:Y$11)","v":0},{"$f":"IF(INDEX(PC_MAPPING,RIGHT($C171,1),MATCH($E$2,'Data by Building Type'!$D$22:$F$22,0))=\"Yes\",1,0)*\n(Z$10*OFFSET('Efficiency Distributions'!$D$10,MATCH($C171,'Efficiency Distributions'!$C$9:$C$87,0)+RIGHT($E180),0)\n+Z$11*OFFSET('Efficiency Distributions'!$E$10,MATCH($C171,'Efficiency Distributions'!$C$9:$C$87,0)+RIGHT($E180),0))\n/SUM(Z$10:Z$11)","v":0},{"$f":"IF(INDEX(PC_MAPPING,RIGHT($C171,1),MATCH($E$2,'Data by Building Type'!$D$22:$F$22,0))=\"Yes\",1,0)*\n(AA$10*OFFSET('Efficiency Distributions'!$D$10,MATCH($C171,'Efficiency Distributions'!$C$9:$C$87,0)+RIGHT($E180),0)\n+AA$11*OFFSET('Efficiency Distributions'!$E$10,MATCH($C171,'Efficiency Distributions'!$C$9:$C$87,0)+RIGHT($E180),0))\n/SUM(AA$10:AA$11)","v":0},{"$f":"IF(INDEX(PC_MAPPING,RIGHT($C171,1),MATCH($E$2,'Data by Building Type'!$D$22:$F$22,0))=\"Yes\",1,0)*\n(AB$10*OFFSET('Efficiency Distributions'!$D$10,MATCH($C171,'Efficiency Distributions'!$C$9:$C$87,0)+RIGHT($E180),0)\n+AB$11*OFFSET('Efficiency Distributions'!$E$10,MATCH($C171,'Efficiency Distributions'!$C$9:$C$87,0)+RIGHT($E180),0))\n/SUM(AB$10:AB$11)","v":0},{"$f":"IF(INDEX(PC_MAPPING,RIGHT($C171,1),MATCH($E$2,'Data by Building Type'!$D$22:$F$22,0))=\"Yes\",1,0)*\n(AC$10*OFFSET('Efficiency Distributions'!$D$10,MATCH($C171,'Efficiency Distributions'!$C$9:$C$87,0)+RIGHT($E180),0)\n+AC$11*OFFSET('Efficiency Distributions'!$E$10,MATCH($C171,'Efficiency Distributions'!$C$9:$C$87,0)+RIGHT($E180),0))\n/SUM(AC$10:AC$11)","v":0},{"$f":"IF(INDEX(PC_MAPPING,RIGHT($C171,1),MATCH($E$2,'Data by Building Type'!$D$22:$F$22,0))=\"Yes\",1,0)*\n(AD$10*OFFSET('Efficiency Distributions'!$D$10,MATCH($C171,'Efficiency Distributions'!$C$9:$C$87,0)+RIGHT($E180),0)\n+AD$11*OFFSET('Efficiency Distributions'!$E$10,MATCH($C171,'Efficiency Distributions'!$C$9:$C$87,0)+RIGHT($E180),0))\n/SUM(AD$10:AD$11)","v":0},{"$f":"IF(INDEX(PC_MAPPING,RIGHT($C171,1),MATCH($E$2,'Data by Building Type'!$D$22:$F$22,0))=\"Yes\",1,0)*\n(AE$10*OFFSET('Efficiency Distributions'!$D$10,MATCH($C171,'Efficiency Distributions'!$C$9:$C$87,0)+RIGHT($E180),0)\n+AE$11*OFFSET('Efficiency Distributions'!$E$10,MATCH($C171,'Efficiency Distributions'!$C$9:$C$87,0)+RIGHT($E180),0))\n/SUM(AE$10:AE$11)","v":0},{"$f":"IF(INDEX(PC_MAPPING,RIGHT($C171,1),MATCH($E$2,'Data by Building Type'!$D$22:$F$22,0))=\"Yes\",1,0)*\n(AF$10*OFFSET('Efficiency Distributions'!$D$10,MATCH($C171,'Efficiency Distributions'!$C$9:$C$87,0)+RIGHT($E180),0)\n+AF$11*OFFSET('Efficiency Distributions'!$E$10,MATCH($C171,'Efficiency Distributions'!$C$9:$C$87,0)+RIGHT($E180),0))\n/SUM(AF$10:AF$11)","v":0},{"$f":"IF(INDEX(PC_MAPPING,RIGHT($C171,1),MATCH($E$2,'Data by Building Type'!$D$22:$F$22,0))=\"Yes\",1,0)*\n(AG$10*OFFSET('Efficiency Distributions'!$D$10,MATCH($C171,'Efficiency Distributions'!$C$9:$C$87,0)+RIGHT($E180),0)\n+AG$11*OFFSET('Efficiency Distributions'!$E$10,MATCH($C171,'Efficiency Distributions'!$C$9:$C$87,0)+RIGHT($E180),0))\n/SUM(AG$10:AG$11)","v":0},{"$f":"IF(INDEX(PC_MAPPING,RIGHT($C171,1),MATCH($E$2,'Data by Building Type'!$D$22:$F$22,0))=\"Yes\",1,0)*\n(AH$10*OFFSET('Efficiency Distributions'!$D$10,MATCH($C171,'Efficiency Distributions'!$C$9:$C$87,0)+RIGHT($E180),0)\n+AH$11*OFFSET('Efficiency Distributions'!$E$10,MATCH($C171,'Efficiency Distributions'!$C$9:$C$87,0)+RIGHT($E180),0))\n/SUM(AH$10:AH$11)","v":0},{"$f":"IF(INDEX(PC_MAPPING,RIGHT($C171,1),MATCH($E$2,'Data by Building Type'!$D$22:$F$22,0))=\"Yes\",1,0)*\n(AI$10*OFFSET('Efficiency Distributions'!$D$10,MATCH($C171,'Efficiency Distributions'!$C$9:$C$87,0)+RIGHT($E180),0)\n+AI$11*OFFSET('Efficiency Distributions'!$E$10,MATCH($C171,'Efficiency Distributions'!$C$9:$C$87,0)+RIGHT($E180),0))\n/SUM(AI$10:AI$11)","v":0},{"$f":"IF(INDEX(PC_MAPPING,RIGHT($C171,1),MATCH($E$2,'Data by Building Type'!$D$22:$F$22,0))=\"Yes\",1,0)*\n(AJ$10*OFFSET('Efficiency Distributions'!$D$10,MATCH($C171,'Efficiency Distributions'!$C$9:$C$87,0)+RIGHT($E180),0)\n+AJ$11*OFFSET('Efficiency Distributions'!$E$10,MATCH($C171,'Efficiency Distributions'!$C$9:$C$87,0)+RIGHT($E180),0))\n/SUM(AJ$10:AJ$11)","v":0},{"$f":"IF(INDEX(PC_MAPPING,RIGHT($C171,1),MATCH($E$2,'Data by Building Type'!$D$22:$F$22,0))=\"Yes\",1,0)*\n(AK$10*OFFSET('Efficiency Distributions'!$D$10,MATCH($C171,'Efficiency Distributions'!$C$9:$C$87,0)+RIGHT($E180),0)\n+AK$11*OFFSET('Efficiency Distributions'!$E$10,MATCH($C171,'Efficiency Distributions'!$C$9:$C$87,0)+RIGHT($E180),0))\n/SUM(AK$10:AK$11)","v":0},{"$f":"IF(INDEX(PC_MAPPING,RIGHT($C171,1),MATCH($E$2,'Data by Building Type'!$D$22:$F$22,0))=\"Yes\",1,0)*\n(AL$10*OFFSET('Efficiency Distributions'!$D$10,MATCH($C171,'Efficiency Distributions'!$C$9:$C$87,0)+RIGHT($E180),0)\n+AL$11*OFFSET('Efficiency Distributions'!$E$10,MATCH($C171,'Efficiency Distributions'!$C$9:$C$87,0)+RIGHT($E180),0))\n/SUM(AL$10:AL$11)","v":0},{"$f":"IF(INDEX(PC_MAPPING,RIGHT($C171,1),MATCH($E$2,'Data by Building Type'!$D$22:$F$22,0))=\"Yes\",1,0)*\n(AM$10*OFFSET('Efficiency Distributions'!$D$10,MATCH($C171,'Efficiency Distributions'!$C$9:$C$87,0)+RIGHT($E180),0)\n+AM$11*OFFSET('Efficiency Distributions'!$E$10,MATCH($C171,'Efficiency Distributions'!$C$9:$C$87,0)+RIGHT($E180),0))\n/SUM(AM$10:AM$11)","v":0},{"$f":"IF(INDEX(PC_MAPPING,RIGHT($C171,1),MATCH($E$2,'Data by Building Type'!$D$22:$F$22,0))=\"Yes\",1,0)*\n(AN$10*OFFSET('Efficiency Distributions'!$D$10,MATCH($C171,'Efficiency Distributions'!$C$9:$C$87,0)+RIGHT($E180),0)\n+AN$11*OFFSET('Efficiency Distributions'!$E$10,MATCH($C171,'Efficiency Distributions'!$C$9:$C$87,0)+RIGHT($E180),0))\n/SUM(AN$10:AN$11)","v":0},{"$f":"IF(INDEX(PC_MAPPING,RIGHT($C171,1),MATCH($E$2,'Data by Building Type'!$D$22:$F$22,0))=\"Yes\",1,0)*\n(AO$10*OFFSET('Efficiency Distributions'!$D$10,MATCH($C171,'Efficiency Distributions'!$C$9:$C$87,0)+RIGHT($E180),0)\n+AO$11*OFFSET('Efficiency Distributions'!$E$10,MATCH($C171,'Efficiency Distributions'!$C$9:$C$87,0)+RIGHT($E180),0))\n/SUM(AO$10:AO$11)","v":0},{"$f":"IF(INDEX(PC_MAPPING,RIGHT($C171,1),MATCH($E$2,'Data by Building Type'!$D$22:$F$22,0))=\"Yes\",1,0)*\n(AP$10*OFFSET('Efficiency Distributions'!$D$10,MATCH($C171,'Efficiency Distributions'!$C$9:$C$87,0)+RIGHT($E180),0)\n+AP$11*OFFSET('Efficiency Distributions'!$E$10,MATCH($C171,'Efficiency Distributions'!$C$9:$C$87,0)+RIGHT($E180),0))\n/SUM(AP$10:AP$11)","v":0},{"$f":"IF(INDEX(PC_MAPPING,RIGHT($C171,1),MATCH($E$2,'Data by Building Type'!$D$22:$F$22,0))=\"Yes\",1,0)*\n(AQ$10*OFFSET('Efficiency Distributions'!$D$10,MATCH($C171,'Efficiency Distributions'!$C$9:$C$87,0)+RIGHT($E180),0)\n+AQ$11*OFFSET('Efficiency Distributions'!$E$10,MATCH($C171,'Efficiency Distributions'!$C$9:$C$87,0)+RIGHT($E180),0))\n/SUM(AQ$10:AQ$11)","v":0},{"$f":"IF(INDEX(PC_MAPPING,RIGHT($C171,1),MATCH($E$2,'Data by Building Type'!$D$22:$F$22,0))=\"Yes\",1,0)*\n(AR$10*OFFSET('Efficiency Distributions'!$D$10,MATCH($C171,'Efficiency Distributions'!$C$9:$C$87,0)+RIGHT($E180),0)\n+AR$11*OFFSET('Efficiency Distributions'!$E$10,MATCH($C171,'Efficiency Distributions'!$C$9:$C$87,0)+RIGHT($E180),0))\n/SUM(AR$10:AR$11)","v":0},{"$f":"IF(INDEX(PC_MAPPING,RIGHT($C171,1),MATCH($E$2,'Data by Building Type'!$D$22:$F$22,0))=\"Yes\",1,0)*\n(AS$10*OFFSET('Efficiency Distributions'!$D$10,MATCH($C171,'Efficiency Distributions'!$C$9:$C$87,0)+RIGHT($E180),0)\n+AS$11*OFFSET('Efficiency Distributions'!$E$10,MATCH($C171,'Efficiency Distributions'!$C$9:$C$87,0)+RIGHT($E180),0))\n/SUM(AS$10:AS$11)","v":0},{"$f":"IF(INDEX(PC_MAPPING,RIGHT($C171,1),MATCH($E$2,'Data by Building Type'!$D$22:$F$22,0))=\"Yes\",1,0)*\n(AT$10*OFFSET('Efficiency Distributions'!$D$10,MATCH($C171,'Efficiency Distributions'!$C$9:$C$87,0)+RIGHT($E180),0)\n+AT$11*OFFSET('Efficiency Distributions'!$E$10,MATCH($C171,'Efficiency Distributions'!$C$9:$C$87,0)+RIGHT($E180),0))\n/SUM(AT$10:AT$11)","v":0},{"$f":"IF(INDEX(PC_MAPPING,RIGHT($C171,1),MATCH($E$2,'Data by Building Type'!$D$22:$F$22,0))=\"Yes\",1,0)*\n(AU$10*OFFSET('Efficiency Distributions'!$D$10,MATCH($C171,'Efficiency Distributions'!$C$9:$C$87,0)+RIGHT($E180),0)\n+AU$11*OFFSET('Efficiency Distributions'!$E$10,MATCH($C171,'Efficiency Distributions'!$C$9:$C$87,0)+RIGHT($E180),0))\n/SUM(AU$10:AU$11)","v":0},{"$f":"IF(INDEX(PC_MAPPING,RIGHT($C171,1),MATCH($E$2,'Data by Building Type'!$D$22:$F$22,0))=\"Yes\",1,0)*\n(AV$10*OFFSET('Efficiency Distributions'!$D$10,MATCH($C171,'Efficiency Distributions'!$C$9:$C$87,0)+RIGHT($E180),0)\n+AV$11*OFFSET('Efficiency Distributions'!$E$10,MATCH($C171,'Efficiency Distributions'!$C$9:$C$87,0)+RIGHT($E180),0))\n/SUM(AV$10:AV$11)","v":0},{"$f":"IF(INDEX(PC_MAPPING,RIGHT($C171,1),MATCH($E$2,'Data by Building Type'!$D$22:$F$22,0))=\"Yes\",1,0)*\n(AW$10*OFFSET('Efficiency Distributions'!$D$10,MATCH($C171,'Efficiency Distributions'!$C$9:$C$87,0)+RIGHT($E180),0)\n+AW$11*OFFSET('Efficiency Distributions'!$E$10,MATCH($C171,'Efficiency Distributions'!$C$9:$C$87,0)+RIGHT($E180),0))\n/SUM(AW$10:AW$11)","v":0},{"$f":"IF(INDEX(PC_MAPPING,RIGHT($C171,1),MATCH($E$2,'Data by Building Type'!$D$22:$F$22,0))=\"Yes\",1,0)*\n(AX$10*OFFSET('Efficiency Distributions'!$D$10,MATCH($C171,'Efficiency Distributions'!$C$9:$C$87,0)+RIGHT($E180),0)\n+AX$11*OFFSET('Efficiency Distributions'!$E$10,MATCH($C171,'Efficiency Distributions'!$C$9:$C$87,0)+RIGHT($E180),0))\n/SUM(AX$10:AX$11)","v":0},{"$f":"IF(INDEX(PC_MAPPING,RIGHT($C171,1),MATCH($E$2,'Data by Building Type'!$D$22:$F$22,0))=\"Yes\",1,0)*\n(AY$10*OFFSET('Efficiency Distributions'!$D$10,MATCH($C171,'Efficiency Distributions'!$C$9:$C$87,0)+RIGHT($E180),0)\n+AY$11*OFFSET('Efficiency Distributions'!$E$10,MATCH($C171,'Efficiency Distributions'!$C$9:$C$87,0)+RIGHT($E180),0))\n/SUM(AY$10:AY$11)","v":0},{"$f":"IF(INDEX(PC_MAPPING,RIGHT($C171,1),MATCH($E$2,'Data by Building Type'!$D$22:$F$22,0))=\"Yes\",1,0)*\n(AZ$10*OFFSET('Efficiency Distributions'!$D$10,MATCH($C171,'Efficiency Distributions'!$C$9:$C$87,0)+RIGHT($E180),0)\n+AZ$11*OFFSET('Efficiency Distributions'!$E$10,MATCH($C171,'Efficiency Distributions'!$C$9:$C$87,0)+RIGHT($E180),0))\n/SUM(AZ$10:AZ$11)","v":0},{"$f":"IF(INDEX(PC_MAPPING,RIGHT($C171,1),MATCH($E$2,'Data by Building Type'!$D$22:$F$22,0))=\"Yes\",1,0)*\n(BA$10*OFFSET('Efficiency Distributions'!$D$10,MATCH($C171,'Efficiency Distributions'!$C$9:$C$87,0)+RIGHT($E180),0)\n+BA$11*OFFSET('Efficiency Distributions'!$E$10,MATCH($C171,'Efficiency Distributions'!$C$9:$C$87,0)+RIGHT($E180),0))\n/SUM(BA$10:BA$11)","v":0},{"$f":"IF(INDEX(PC_MAPPING,RIGHT($C171,1),MATCH($E$2,'Data by Building Type'!$D$22:$F$22,0))=\"Yes\",1,0)*\n(BB$10*OFFSET('Efficiency Distributions'!$D$10,MATCH($C171,'Efficiency Distributions'!$C$9:$C$87,0)+RIGHT($E180),0)\n+BB$11*OFFSET('Efficiency Distributions'!$E$10,MATCH($C171,'Efficiency Distributions'!$C$9:$C$87,0)+RIGHT($E180),0))\n/SUM(BB$10:BB$11)","v":0},{"$f":"IF(INDEX(PC_MAPPING,RIGHT($C171,1),MATCH($E$2,'Data by Building Type'!$D$22:$F$22,0))=\"Yes\",1,0)*\n(BC$10*OFFSET('Efficiency Distributions'!$D$10,MATCH($C171,'Efficiency Distributions'!$C$9:$C$87,0)+RIGHT($E180),0)\n+BC$11*OFFSET('Efficiency Distributions'!$E$10,MATCH($C171,'Efficiency Distributions'!$C$9:$C$87,0)+RIGHT($E180),0))\n/SUM(BC$10:BC$11)","v":0},{"$f":"IF(INDEX(PC_MAPPING,RIGHT($C171,1),MATCH($E$2,'Data by Building Type'!$D$22:$F$22,0))=\"Yes\",1,0)*\n(BD$10*OFFSET('Efficiency Distributions'!$D$10,MATCH($C171,'Efficiency Distributions'!$C$9:$C$87,0)+RIGHT($E180),0)\n+BD$11*OFFSET('Efficiency Distributions'!$E$10,MATCH($C171,'Efficiency Distributions'!$C$9:$C$87,0)+RIGHT($E180),0))\n/SUM(BD$10:BD$11)","v":0},{"$f":"IF(INDEX(PC_MAPPING,RIGHT($C171,1),MATCH($E$2,'Data by Building Type'!$D$22:$F$22,0))=\"Yes\",1,0)*\n(BE$10*OFFSET('Efficiency Distributions'!$D$10,MATCH($C171,'Efficiency Distributions'!$C$9:$C$87,0)+RIGHT($E180),0)\n+BE$11*OFFSET('Efficiency Distributions'!$E$10,MATCH($C171,'Efficiency Distributions'!$C$9:$C$87,0)+RIGHT($E180),0))\n/SUM(BE$10:BE$11)","v":0},{"$f":"IF(INDEX(PC_MAPPING,RIGHT($C171,1),MATCH($E$2,'Data by Building Type'!$D$22:$F$22,0))=\"Yes\",1,0)*\n(BF$10*OFFSET('Efficiency Distributions'!$D$10,MATCH($C171,'Efficiency Distributions'!$C$9:$C$87,0)+RIGHT($E180),0)\n+BF$11*OFFSET('Efficiency Distributions'!$E$10,MATCH($C171,'Efficiency Distributions'!$C$9:$C$87,0)+RIGHT($E180),0))\n/SUM(BF$10:BF$11)","v":0},{"$f":"IF(INDEX(PC_MAPPING,RIGHT($C171,1),MATCH($E$2,'Data by Building Type'!$D$22:$F$22,0))=\"Yes\",1,0)*\n(BG$10*OFFSET('Efficiency Distributions'!$D$10,MATCH($C171,'Efficiency Distributions'!$C$9:$C$87,0)+RIGHT($E180),0)\n+BG$11*OFFSET('Efficiency Distributions'!$E$10,MATCH($C171,'Efficiency Distributions'!$C$9:$C$87,0)+RIGHT($E180),0))\n/SUM(BG$10:BG$11)","v":0}]
[null,null,null,null,"EL6",{"$f":"IF(INDEX(PC_MAPPING,RIGHT($C171,1),MATCH($E$2,'Data by Building Type'!$D$22:$F$22,0))=\"Yes\",1,0)*\n(F$10*OFFSET('Efficiency Distributions'!$D$10,MATCH($C171,'Efficiency Distributions'!$C$9:$C$87,0)+RIGHT($E181),0)\n+F$11*OFFSET('Efficiency Distributions'!$E$10,MATCH($C171,'Efficiency Distributions'!$C$9:$C$87,0)+RIGHT($E181),0))\n/SUM(F$10:F$11)","v":0},{"$f":"IF(INDEX(PC_MAPPING,RIGHT($C171,1),MATCH($E$2,'Data by Building Type'!$D$22:$F$22,0))=\"Yes\",1,0)*\n(G$10*OFFSET('Efficiency Distributions'!$D$10,MATCH($C171,'Efficiency Distributions'!$C$9:$C$87,0)+RIGHT($E181),0)\n+G$11*OFFSET('Efficiency Distributions'!$E$10,MATCH($C171,'Efficiency Distributions'!$C$9:$C$87,0)+RIGHT($E181),0))\n/SUM(G$10:G$11)","v":0},{"$f":"IF(INDEX(PC_MAPPING,RIGHT($C171,1),MATCH($E$2,'Data by Building Type'!$D$22:$F$22,0))=\"Yes\",1,0)*\n(H$10*OFFSET('Efficiency Distributions'!$D$10,MATCH($C171,'Efficiency Distributions'!$C$9:$C$87,0)+RIGHT($E181),0)\n+H$11*OFFSET('Efficiency Distributions'!$E$10,MATCH($C171,'Efficiency Distributions'!$C$9:$C$87,0)+RIGHT($E181),0))\n/SUM(H$10:H$11)","v":0},{"$f":"IF(INDEX(PC_MAPPING,RIGHT($C171,1),MATCH($E$2,'Data by Building Type'!$D$22:$F$22,0))=\"Yes\",1,0)*\n(I$10*OFFSET('Efficiency Distributions'!$D$10,MATCH($C171,'Efficiency Distributions'!$C$9:$C$87,0)+RIGHT($E181),0)\n+I$11*OFFSET('Efficiency Distributions'!$E$10,MATCH($C171,'Efficiency Distributions'!$C$9:$C$87,0)+RIGHT($E181),0))\n/SUM(I$10:I$11)","v":0},{"$f":"IF(INDEX(PC_MAPPING,RIGHT($C171,1),MATCH($E$2,'Data by Building Type'!$D$22:$F$22,0))=\"Yes\",1,0)*\n(J$10*OFFSET('Efficiency Distributions'!$D$10,MATCH($C171,'Efficiency Distributions'!$C$9:$C$87,0)+RIGHT($E181),0)\n+J$11*OFFSET('Efficiency Distributions'!$E$10,MATCH($C171,'Efficiency Distributions'!$C$9:$C$87,0)+RIGHT($E181),0))\n/SUM(J$10:J$11)","v":0},{"$f":"IF(INDEX(PC_MAPPING,RIGHT($C171,1),MATCH($E$2,'Data by Building Type'!$D$22:$F$22,0))=\"Yes\",1,0)*\n(K$10*OFFSET('Efficiency Distributions'!$D$10,MATCH($C171,'Efficiency Distributions'!$C$9:$C$87,0)+RIGHT($E181),0)\n+K$11*OFFSET('Efficiency Distributions'!$E$10,MATCH($C171,'Efficiency Distributions'!$C$9:$C$87,0)+RIGHT($E181),0))\n/SUM(K$10:K$11)","v":0},{"$f":"IF(INDEX(PC_MAPPING,RIGHT($C171,1),MATCH($E$2,'Data by Building Type'!$D$22:$F$22,0))=\"Yes\",1,0)*\n(L$10*OFFSET('Efficiency Distributions'!$D$10,MATCH($C171,'Efficiency Distributions'!$C$9:$C$87,0)+RIGHT($E181),0)\n+L$11*OFFSET('Efficiency Distributions'!$E$10,MATCH($C171,'Efficiency Distributions'!$C$9:$C$87,0)+RIGHT($E181),0))\n/SUM(L$10:L$11)","v":0},{"$f":"IF(INDEX(PC_MAPPING,RIGHT($C171,1),MATCH($E$2,'Data by Building Type'!$D$22:$F$22,0))=\"Yes\",1,0)*\n(M$10*OFFSET('Efficiency Distributions'!$D$10,MATCH($C171,'Efficiency Distributions'!$C$9:$C$87,0)+RIGHT($E181),0)\n+M$11*OFFSET('Efficiency Distributions'!$E$10,MATCH($C171,'Efficiency Distributions'!$C$9:$C$87,0)+RIGHT($E181),0))\n/SUM(M$10:M$11)","v":0},{"$f":"IF(INDEX(PC_MAPPING,RIGHT($C171,1),MATCH($E$2,'Data by Building Type'!$D$22:$F$22,0))=\"Yes\",1,0)*\n(N$10*OFFSET('Efficiency Distributions'!$D$10,MATCH($C171,'Efficiency Distributions'!$C$9:$C$87,0)+RIGHT($E181),0)\n+N$11*OFFSET('Efficiency Distributions'!$E$10,MATCH($C171,'Efficiency Distributions'!$C$9:$C$87,0)+RIGHT($E181),0))\n/SUM(N$10:N$11)","v":0},{"$f":"IF(INDEX(PC_MAPPING,RIGHT($C171,1),MATCH($E$2,'Data by Building Type'!$D$22:$F$22,0))=\"Yes\",1,0)*\n(O$10*OFFSET('Efficiency Distributions'!$D$10,MATCH($C171,'Efficiency Distributions'!$C$9:$C$87,0)+RIGHT($E181),0)\n+O$11*OFFSET('Efficiency Distributions'!$E$10,MATCH($C171,'Efficiency Distributions'!$C$9:$C$87,0)+RIGHT($E181),0))\n/SUM(O$10:O$11)","v":0},{"$f":"IF(INDEX(PC_MAPPING,RIGHT($C171,1),MATCH($E$2,'Data by Building Type'!$D$22:$F$22,0))=\"Yes\",1,0)*\n(P$10*OFFSET('Efficiency Distributions'!$D$10,MATCH($C171,'Efficiency Distributions'!$C$9:$C$87,0)+RIGHT($E181),0)\n+P$11*OFFSET('Efficiency Distributions'!$E$10,MATCH($C171,'Efficiency Distributions'!$C$9:$C$87,0)+RIGHT($E181),0))\n/SUM(P$10:P$11)","v":0},{"$f":"IF(INDEX(PC_MAPPING,RIGHT($C171,1),MATCH($E$2,'Data by Building Type'!$D$22:$F$22,0))=\"Yes\",1,0)*\n(Q$10*OFFSET('Efficiency Distributions'!$D$10,MATCH($C171,'Efficiency Distributions'!$C$9:$C$87,0)+RIGHT($E181),0)\n+Q$11*OFFSET('Efficiency Distributions'!$E$10,MATCH($C171,'Efficiency Distributions'!$C$9:$C$87,0)+RIGHT($E181),0))\n/SUM(Q$10:Q$11)","v":0},{"$f":"IF(INDEX(PC_MAPPING,RIGHT($C171,1),MATCH($E$2,'Data by Building Type'!$D$22:$F$22,0))=\"Yes\",1,0)*\n(R$10*OFFSET('Efficiency Distributions'!$D$10,MATCH($C171,'Efficiency Distributions'!$C$9:$C$87,0)+RIGHT($E181),0)\n+R$11*OFFSET('Efficiency Distributions'!$E$10,MATCH($C171,'Efficiency Distributions'!$C$9:$C$87,0)+RIGHT($E181),0))\n/SUM(R$10:R$11)","v":0},{"$f":"IF(INDEX(PC_MAPPING,RIGHT($C171,1),MATCH($E$2,'Data by Building Type'!$D$22:$F$22,0))=\"Yes\",1,0)*\n(S$10*OFFSET('Efficiency Distributions'!$D$10,MATCH($C171,'Efficiency Distributions'!$C$9:$C$87,0)+RIGHT($E181),0)\n+S$11*OFFSET('Efficiency Distributions'!$E$10,MATCH($C171,'Efficiency Distributions'!$C$9:$C$87,0)+RIGHT($E181),0))\n/SUM(S$10:S$11)","v":0},{"$f":"IF(INDEX(PC_MAPPING,RIGHT($C171,1),MATCH($E$2,'Data by Building Type'!$D$22:$F$22,0))=\"Yes\",1,0)*\n(T$10*OFFSET('Efficiency Distributions'!$D$10,MATCH($C171,'Efficiency Distributions'!$C$9:$C$87,0)+RIGHT($E181),0)\n+T$11*OFFSET('Efficiency Distributions'!$E$10,MATCH($C171,'Efficiency Distributions'!$C$9:$C$87,0)+RIGHT($E181),0))\n/SUM(T$10:T$11)","v":0},{"$f":"IF(INDEX(PC_MAPPING,RIGHT($C171,1),MATCH($E$2,'Data by Building Type'!$D$22:$F$22,0))=\"Yes\",1,0)*\n(U$10*OFFSET('Efficiency Distributions'!$D$10,MATCH($C171,'Efficiency Distributions'!$C$9:$C$87,0)+RIGHT($E181),0)\n+U$11*OFFSET('Efficiency Distributions'!$E$10,MATCH($C171,'Efficiency Distributions'!$C$9:$C$87,0)+RIGHT($E181),0))\n/SUM(U$10:U$11)","v":0},{"$f":"IF(INDEX(PC_MAPPING,RIGHT($C171,1),MATCH($E$2,'Data by Building Type'!$D$22:$F$22,0))=\"Yes\",1,0)*\n(V$10*OFFSET('Efficiency Distributions'!$D$10,MATCH($C171,'Efficiency Distributions'!$C$9:$C$87,0)+RIGHT($E181),0)\n+V$11*OFFSET('Efficiency Distributions'!$E$10,MATCH($C171,'Efficiency Distributions'!$C$9:$C$87,0)+RIGHT($E181),0))\n/SUM(V$10:V$11)","v":0},{"$f":"IF(INDEX(PC_MAPPING,RIGHT($C171,1),MATCH($E$2,'Data by Building Type'!$D$22:$F$22,0))=\"Yes\",1,0)*\n(W$10*OFFSET('Efficiency Distributions'!$D$10,MATCH($C171,'Efficiency Distributions'!$C$9:$C$87,0)+RIGHT($E181),0)\n+W$11*OFFSET('Efficiency Distributions'!$E$10,MATCH($C171,'Efficiency Distributions'!$C$9:$C$87,0)+RIGHT($E181),0))\n/SUM(W$10:W$11)","v":0},{"$f":"IF(INDEX(PC_MAPPING,RIGHT($C171,1),MATCH($E$2,'Data by Building Type'!$D$22:$F$22,0))=\"Yes\",1,0)*\n(X$10*OFFSET('Efficiency Distributions'!$D$10,MATCH($C171,'Efficiency Distributions'!$C$9:$C$87,0)+RIGHT($E181),0)\n+X$11*OFFSET('Efficiency Distributions'!$E$10,MATCH($C171,'Efficiency Distributions'!$C$9:$C$87,0)+RIGHT($E181),0))\n/SUM(X$10:X$11)","v":0},{"$f":"IF(INDEX(PC_MAPPING,RIGHT($C171,1),MATCH($E$2,'Data by Building Type'!$D$22:$F$22,0))=\"Yes\",1,0)*\n(Y$10*OFFSET('Efficiency Distributions'!$D$10,MATCH($C171,'Efficiency Distributions'!$C$9:$C$87,0)+RIGHT($E181),0)\n+Y$11*OFFSET('Efficiency Distributions'!$E$10,MATCH($C171,'Efficiency Distributions'!$C$9:$C$87,0)+RIGHT($E181),0))\n/SUM(Y$10:Y$11)","v":0},{"$f":"IF(INDEX(PC_MAPPING,RIGHT($C171,1),MATCH($E$2,'Data by Building Type'!$D$22:$F$22,0))=\"Yes\",1,0)*\n(Z$10*OFFSET('Efficiency Distributions'!$D$10,MATCH($C171,'Efficiency Distributions'!$C$9:$C$87,0)+RIGHT($E181),0)\n+Z$11*OFFSET('Efficiency Distributions'!$E$10,MATCH($C171,'Efficiency Distributions'!$C$9:$C$87,0)+RIGHT($E181),0))\n/SUM(Z$10:Z$11)","v":0},{"$f":"IF(INDEX(PC_MAPPING,RIGHT($C171,1),MATCH($E$2,'Data by Building Type'!$D$22:$F$22,0))=\"Yes\",1,0)*\n(AA$10*OFFSET('Efficiency Distributions'!$D$10,MATCH($C171,'Efficiency Distributions'!$C$9:$C$87,0)+RIGHT($E181),0)\n+AA$11*OFFSET('Efficiency Distributions'!$E$10,MATCH($C171,'Efficiency Distributions'!$C$9:$C$87,0)+RIGHT($E181),0))\n/SUM(AA$10:AA$11)","v":0},{"$f":"IF(INDEX(PC_MAPPING,RIGHT($C171,1),MATCH($E$2,'Data by Building Type'!$D$22:$F$22,0))=\"Yes\",1,0)*\n(AB$10*OFFSET('Efficiency Distributions'!$D$10,MATCH($C171,'Efficiency Distributions'!$C$9:$C$87,0)+RIGHT($E181),0)\n+AB$11*OFFSET('Efficiency Distributions'!$E$10,MATCH($C171,'Efficiency Distributions'!$C$9:$C$87,0)+RIGHT($E181),0))\n/SUM(AB$10:AB$11)","v":0},{"$f":"IF(INDEX(PC_MAPPING,RIGHT($C171,1),MATCH($E$2,'Data by Building Type'!$D$22:$F$22,0))=\"Yes\",1,0)*\n(AC$10*OFFSET('Efficiency Distributions'!$D$10,MATCH($C171,'Efficiency Distributions'!$C$9:$C$87,0)+RIGHT($E181),0)\n+AC$11*OFFSET('Efficiency Distributions'!$E$10,MATCH($C171,'Efficiency Distributions'!$C$9:$C$87,0)+RIGHT($E181),0))\n/SUM(AC$10:AC$11)","v":0},{"$f":"IF(INDEX(PC_MAPPING,RIGHT($C171,1),MATCH($E$2,'Data by Building Type'!$D$22:$F$22,0))=\"Yes\",1,0)*\n(AD$10*OFFSET('Efficiency Distributions'!$D$10,MATCH($C171,'Efficiency Distributions'!$C$9:$C$87,0)+RIGHT($E181),0)\n+AD$11*OFFSET('Efficiency Distributions'!$E$10,MATCH($C171,'Efficiency Distributions'!$C$9:$C$87,0)+RIGHT($E181),0))\n/SUM(AD$10:AD$11)","v":0},{"$f":"IF(INDEX(PC_MAPPING,RIGHT($C171,1),MATCH($E$2,'Data by Building Type'!$D$22:$F$22,0))=\"Yes\",1,0)*\n(AE$10*OFFSET('Efficiency Distributions'!$D$10,MATCH($C171,'Efficiency Distributions'!$C$9:$C$87,0)+RIGHT($E181),0)\n+AE$11*OFFSET('Efficiency Distributions'!$E$10,MATCH($C171,'Efficiency Distributions'!$C$9:$C$87,0)+RIGHT($E181),0))\n/SUM(AE$10:AE$11)","v":0},{"$f":"IF(INDEX(PC_MAPPING,RIGHT($C171,1),MATCH($E$2,'Data by Building Type'!$D$22:$F$22,0))=\"Yes\",1,0)*\n(AF$10*OFFSET('Efficiency Distributions'!$D$10,MATCH($C171,'Efficiency Distributions'!$C$9:$C$87,0)+RIGHT($E181),0)\n+AF$11*OFFSET('Efficiency Distributions'!$E$10,MATCH($C171,'Efficiency Distributions'!$C$9:$C$87,0)+RIGHT($E181),0))\n/SUM(AF$10:AF$11)","v":0},{"$f":"IF(INDEX(PC_MAPPING,RIGHT($C171,1),MATCH($E$2,'Data by Building Type'!$D$22:$F$22,0))=\"Yes\",1,0)*\n(AG$10*OFFSET('Efficiency Distributions'!$D$10,MATCH($C171,'Efficiency Distributions'!$C$9:$C$87,0)+RIGHT($E181),0)\n+AG$11*OFFSET('Efficiency Distributions'!$E$10,MATCH($C171,'Efficiency Distributions'!$C$9:$C$87,0)+RIGHT($E181),0))\n/SUM(AG$10:AG$11)","v":0},{"$f":"IF(INDEX(PC_MAPPING,RIGHT($C171,1),MATCH($E$2,'Data by Building Type'!$D$22:$F$22,0))=\"Yes\",1,0)*\n(AH$10*OFFSET('Efficiency Distributions'!$D$10,MATCH($C171,'Efficiency Distributions'!$C$9:$C$87,0)+RIGHT($E181),0)\n+AH$11*OFFSET('Efficiency Distributions'!$E$10,MATCH($C171,'Efficiency Distributions'!$C$9:$C$87,0)+RIGHT($E181),0))\n/SUM(AH$10:AH$11)","v":0},{"$f":"IF(INDEX(PC_MAPPING,RIGHT($C171,1),MATCH($E$2,'Data by Building Type'!$D$22:$F$22,0))=\"Yes\",1,0)*\n(AI$10*OFFSET('Efficiency Distributions'!$D$10,MATCH($C171,'Efficiency Distributions'!$C$9:$C$87,0)+RIGHT($E181),0)\n+AI$11*OFFSET('Efficiency Distributions'!$E$10,MATCH($C171,'Efficiency Distributions'!$C$9:$C$87,0)+RIGHT($E181),0))\n/SUM(AI$10:AI$11)","v":0},{"$f":"IF(INDEX(PC_MAPPING,RIGHT($C171,1),MATCH($E$2,'Data by Building Type'!$D$22:$F$22,0))=\"Yes\",1,0)*\n(AJ$10*OFFSET('Efficiency Distributions'!$D$10,MATCH($C171,'Efficiency Distributions'!$C$9:$C$87,0)+RIGHT($E181),0)\n+AJ$11*OFFSET('Efficiency Distributions'!$E$10,MATCH($C171,'Efficiency Distributions'!$C$9:$C$87,0)+RIGHT($E181),0))\n/SUM(AJ$10:AJ$11)","v":0},{"$f":"IF(INDEX(PC_MAPPING,RIGHT($C171,1),MATCH($E$2,'Data by Building Type'!$D$22:$F$22,0))=\"Yes\",1,0)*\n(AK$10*OFFSET('Efficiency Distributions'!$D$10,MATCH($C171,'Efficiency Distributions'!$C$9:$C$87,0)+RIGHT($E181),0)\n+AK$11*OFFSET('Efficiency Distributions'!$E$10,MATCH($C171,'Efficiency Distributions'!$C$9:$C$87,0)+RIGHT($E181),0))\n/SUM(AK$10:AK$11)","v":0},{"$f":"IF(INDEX(PC_MAPPING,RIGHT($C171,1),MATCH($E$2,'Data by Building Type'!$D$22:$F$22,0))=\"Yes\",1,0)*\n(AL$10*OFFSET('Efficiency Distributions'!$D$10,MATCH($C171,'Efficiency Distributions'!$C$9:$C$87,0)+RIGHT($E181),0)\n+AL$11*OFFSET('Efficiency Distributions'!$E$10,MATCH($C171,'Efficiency Distributions'!$C$9:$C$87,0)+RIGHT($E181),0))\n/SUM(AL$10:AL$11)","v":0},{"$f":"IF(INDEX(PC_MAPPING,RIGHT($C171,1),MATCH($E$2,'Data by Building Type'!$D$22:$F$22,0))=\"Yes\",1,0)*\n(AM$10*OFFSET('Efficiency Distributions'!$D$10,MATCH($C171,'Efficiency Distributions'!$C$9:$C$87,0)+RIGHT($E181),0)\n+AM$11*OFFSET('Efficiency Distributions'!$E$10,MATCH($C171,'Efficiency Distributions'!$C$9:$C$87,0)+RIGHT($E181),0))\n/SUM(AM$10:AM$11)","v":0},{"$f":"IF(INDEX(PC_MAPPING,RIGHT($C171,1),MATCH($E$2,'Data by Building Type'!$D$22:$F$22,0))=\"Yes\",1,0)*\n(AN$10*OFFSET('Efficiency Distributions'!$D$10,MATCH($C171,'Efficiency Distributions'!$C$9:$C$87,0)+RIGHT($E181),0)\n+AN$11*OFFSET('Efficiency Distributions'!$E$10,MATCH($C171,'Efficiency Distributions'!$C$9:$C$87,0)+RIGHT($E181),0))\n/SUM(AN$10:AN$11)","v":0},{"$f":"IF(INDEX(PC_MAPPING,RIGHT($C171,1),MATCH($E$2,'Data by Building Type'!$D$22:$F$22,0))=\"Yes\",1,0)*\n(AO$10*OFFSET('Efficiency Distributions'!$D$10,MATCH($C171,'Efficiency Distributions'!$C$9:$C$87,0)+RIGHT($E181),0)\n+AO$11*OFFSET('Efficiency Distributions'!$E$10,MATCH($C171,'Efficiency Distributions'!$C$9:$C$87,0)+RIGHT($E181),0))\n/SUM(AO$10:AO$11)","v":0},{"$f":"IF(INDEX(PC_MAPPING,RIGHT($C171,1),MATCH($E$2,'Data by Building Type'!$D$22:$F$22,0))=\"Yes\",1,0)*\n(AP$10*OFFSET('Efficiency Distributions'!$D$10,MATCH($C171,'Efficiency Distributions'!$C$9:$C$87,0)+RIGHT($E181),0)\n+AP$11*OFFSET('Efficiency Distributions'!$E$10,MATCH($C171,'Efficiency Distributions'!$C$9:$C$87,0)+RIGHT($E181),0))\n/SUM(AP$10:AP$11)","v":0},{"$f":"IF(INDEX(PC_MAPPING,RIGHT($C171,1),MATCH($E$2,'Data by Building Type'!$D$22:$F$22,0))=\"Yes\",1,0)*\n(AQ$10*OFFSET('Efficiency Distributions'!$D$10,MATCH($C171,'Efficiency Distributions'!$C$9:$C$87,0)+RIGHT($E181),0)\n+AQ$11*OFFSET('Efficiency Distributions'!$E$10,MATCH($C171,'Efficiency Distributions'!$C$9:$C$87,0)+RIGHT($E181),0))\n/SUM(AQ$10:AQ$11)","v":0},{"$f":"IF(INDEX(PC_MAPPING,RIGHT($C171,1),MATCH($E$2,'Data by Building Type'!$D$22:$F$22,0))=\"Yes\",1,0)*\n(AR$10*OFFSET('Efficiency Distributions'!$D$10,MATCH($C171,'Efficiency Distributions'!$C$9:$C$87,0)+RIGHT($E181),0)\n+AR$11*OFFSET('Efficiency Distributions'!$E$10,MATCH($C171,'Efficiency Distributions'!$C$9:$C$87,0)+RIGHT($E181),0))\n/SUM(AR$10:AR$11)","v":0},{"$f":"IF(INDEX(PC_MAPPING,RIGHT($C171,1),MATCH($E$2,'Data by Building Type'!$D$22:$F$22,0))=\"Yes\",1,0)*\n(AS$10*OFFSET('Efficiency Distributions'!$D$10,MATCH($C171,'Efficiency Distributions'!$C$9:$C$87,0)+RIGHT($E181),0)\n+AS$11*OFFSET('Efficiency Distributions'!$E$10,MATCH($C171,'Efficiency Distributions'!$C$9:$C$87,0)+RIGHT($E181),0))\n/SUM(AS$10:AS$11)","v":0},{"$f":"IF(INDEX(PC_MAPPING,RIGHT($C171,1),MATCH($E$2,'Data by Building Type'!$D$22:$F$22,0))=\"Yes\",1,0)*\n(AT$10*OFFSET('Efficiency Distributions'!$D$10,MATCH($C171,'Efficiency Distributions'!$C$9:$C$87,0)+RIGHT($E181),0)\n+AT$11*OFFSET('Efficiency Distributions'!$E$10,MATCH($C171,'Efficiency Distributions'!$C$9:$C$87,0)+RIGHT($E181),0))\n/SUM(AT$10:AT$11)","v":0},{"$f":"IF(INDEX(PC_MAPPING,RIGHT($C171,1),MATCH($E$2,'Data by Building Type'!$D$22:$F$22,0))=\"Yes\",1,0)*\n(AU$10*OFFSET('Efficiency Distributions'!$D$10,MATCH($C171,'Efficiency Distributions'!$C$9:$C$87,0)+RIGHT($E181),0)\n+AU$11*OFFSET('Efficiency Distributions'!$E$10,MATCH($C171,'Efficiency Distributions'!$C$9:$C$87,0)+RIGHT($E181),0))\n/SUM(AU$10:AU$11)","v":0},{"$f":"IF(INDEX(PC_MAPPING,RIGHT($C171,1),MATCH($E$2,'Data by Building Type'!$D$22:$F$22,0))=\"Yes\",1,0)*\n(AV$10*OFFSET('Efficiency Distributions'!$D$10,MATCH($C171,'Efficiency Distributions'!$C$9:$C$87,0)+RIGHT($E181),0)\n+AV$11*OFFSET('Efficiency Distributions'!$E$10,MATCH($C171,'Efficiency Distributions'!$C$9:$C$87,0)+RIGHT($E181),0))\n/SUM(AV$10:AV$11)","v":0},{"$f":"IF(INDEX(PC_MAPPING,RIGHT($C171,1),MATCH($E$2,'Data by Building Type'!$D$22:$F$22,0))=\"Yes\",1,0)*\n(AW$10*OFFSET('Efficiency Distributions'!$D$10,MATCH($C171,'Efficiency Distributions'!$C$9:$C$87,0)+RIGHT($E181),0)\n+AW$11*OFFSET('Efficiency Distributions'!$E$10,MATCH($C171,'Efficiency Distributions'!$C$9:$C$87,0)+RIGHT($E181),0))\n/SUM(AW$10:AW$11)","v":0},{"$f":"IF(INDEX(PC_MAPPING,RIGHT($C171,1),MATCH($E$2,'Data by Building Type'!$D$22:$F$22,0))=\"Yes\",1,0)*\n(AX$10*OFFSET('Efficiency Distributions'!$D$10,MATCH($C171,'Efficiency Distributions'!$C$9:$C$87,0)+RIGHT($E181),0)\n+AX$11*OFFSET('Efficiency Distributions'!$E$10,MATCH($C171,'Efficiency Distributions'!$C$9:$C$87,0)+RIGHT($E181),0))\n/SUM(AX$10:AX$11)","v":0},{"$f":"IF(INDEX(PC_MAPPING,RIGHT($C171,1),MATCH($E$2,'Data by Building Type'!$D$22:$F$22,0))=\"Yes\",1,0)*\n(AY$10*OFFSET('Efficiency Distributions'!$D$10,MATCH($C171,'Efficiency Distributions'!$C$9:$C$87,0)+RIGHT($E181),0)\n+AY$11*OFFSET('Efficiency Distributions'!$E$10,MATCH($C171,'Efficiency Distributions'!$C$9:$C$87,0)+RIGHT($E181),0))\n/SUM(AY$10:AY$11)","v":0},{"$f":"IF(INDEX(PC_MAPPING,RIGHT($C171,1),MATCH($E$2,'Data by Building Type'!$D$22:$F$22,0))=\"Yes\",1,0)*\n(AZ$10*OFFSET('Efficiency Distributions'!$D$10,MATCH($C171,'Efficiency Distributions'!$C$9:$C$87,0)+RIGHT($E181),0)\n+AZ$11*OFFSET('Efficiency Distributions'!$E$10,MATCH($C171,'Efficiency Distributions'!$C$9:$C$87,0)+RIGHT($E181),0))\n/SUM(AZ$10:AZ$11)","v":0},{"$f":"IF(INDEX(PC_MAPPING,RIGHT($C171,1),MATCH($E$2,'Data by Building Type'!$D$22:$F$22,0))=\"Yes\",1,0)*\n(BA$10*OFFSET('Efficiency Distributions'!$D$10,MATCH($C171,'Efficiency Distributions'!$C$9:$C$87,0)+RIGHT($E181),0)\n+BA$11*OFFSET('Efficiency Distributions'!$E$10,MATCH($C171,'Efficiency Distributions'!$C$9:$C$87,0)+RIGHT($E181),0))\n/SUM(BA$10:BA$11)","v":0},{"$f":"IF(INDEX(PC_MAPPING,RIGHT($C171,1),MATCH($E$2,'Data by Building Type'!$D$22:$F$22,0))=\"Yes\",1,0)*\n(BB$10*OFFSET('Efficiency Distributions'!$D$10,MATCH($C171,'Efficiency Distributions'!$C$9:$C$87,0)+RIGHT($E181),0)\n+BB$11*OFFSET('Efficiency Distributions'!$E$10,MATCH($C171,'Efficiency Distributions'!$C$9:$C$87,0)+RIGHT($E181),0))\n/SUM(BB$10:BB$11)","v":0},{"$f":"IF(INDEX(PC_MAPPING,RIGHT($C171,1),MATCH($E$2,'Data by Building Type'!$D$22:$F$22,0))=\"Yes\",1,0)*\n(BC$10*OFFSET('Efficiency Distributions'!$D$10,MATCH($C171,'Efficiency Distributions'!$C$9:$C$87,0)+RIGHT($E181),0)\n+BC$11*OFFSET('Efficiency Distributions'!$E$10,MATCH($C171,'Efficiency Distributions'!$C$9:$C$87,0)+RIGHT($E181),0))\n/SUM(BC$10:BC$11)","v":0},{"$f":"IF(INDEX(PC_MAPPING,RIGHT($C171,1),MATCH($E$2,'Data by Building Type'!$D$22:$F$22,0))=\"Yes\",1,0)*\n(BD$10*OFFSET('Efficiency Distributions'!$D$10,MATCH($C171,'Efficiency Distributions'!$C$9:$C$87,0)+RIGHT($E181),0)\n+BD$11*OFFSET('Efficiency Distributions'!$E$10,MATCH($C171,'Efficiency Distributions'!$C$9:$C$87,0)+RIGHT($E181),0))\n/SUM(BD$10:BD$11)","v":0},{"$f":"IF(INDEX(PC_MAPPING,RIGHT($C171,1),MATCH($E$2,'Data by Building Type'!$D$22:$F$22,0))=\"Yes\",1,0)*\n(BE$10*OFFSET('Efficiency Distributions'!$D$10,MATCH($C171,'Efficiency Distributions'!$C$9:$C$87,0)+RIGHT($E181),0)\n+BE$11*OFFSET('Efficiency Distributions'!$E$10,MATCH($C171,'Efficiency Distributions'!$C$9:$C$87,0)+RIGHT($E181),0))\n/SUM(BE$10:BE$11)","v":0},{"$f":"IF(INDEX(PC_MAPPING,RIGHT($C171,1),MATCH($E$2,'Data by Building Type'!$D$22:$F$22,0))=\"Yes\",1,0)*\n(BF$10*OFFSET('Efficiency Distributions'!$D$10,MATCH($C171,'Efficiency Distributions'!$C$9:$C$87,0)+RIGHT($E181),0)\n+BF$11*OFFSET('Efficiency Distributions'!$E$10,MATCH($C171,'Efficiency Distributions'!$C$9:$C$87,0)+RIGHT($E181),0))\n/SUM(BF$10:BF$11)","v":0},{"$f":"IF(INDEX(PC_MAPPING,RIGHT($C171,1),MATCH($E$2,'Data by Building Type'!$D$22:$F$22,0))=\"Yes\",1,0)*\n(BG$10*OFFSET('Efficiency Distributions'!$D$10,MATCH($C171,'Efficiency Distributions'!$C$9:$C$87,0)+RIGHT($E181),0)\n+BG$11*OFFSET('Efficiency Distributions'!$E$10,MATCH($C171,'Efficiency Distributions'!$C$9:$C$87,0)+RIGHT($E181),0))\n/SUM(BG$10:BG$11)","v":0}]
[null,null,null,null,"TOTAL",{"$f":"SUM(F175:F181)","v":0},0,{"$f":"SUM(H175:H181)","v":0},0,0,0,0,0,0,0,0,0,0,0,0,0,0,0,0,0,0,0,0,0,0,0,0,0,0,0,0,0,0,0,0,0,0,0,0,0,0,0,0,0,0,0,0,0,0,0,0,0,0,0]
[]
[null,null,null,"POST-Case"]
[null,null,null,null,"Efficiency Level",1981,{"$f":"F185+1","v":1982},{"$f":"G185+1","v":1983},1984,1985,1986,1987,1988,1989,1990,{"$f":"O185+1","v":1991},{"$f":"P185+1","v":1992},1993,1994,1995,1996,1997,1998,1999,2000,2001,2002,2003,2004,2005,2006,2007,2008,2009,2010,2011,2012,2013,2014,2015,2016,2017,2018,2019,2020,2021,2022,2023,2024,2025,2026,2027,2028,2029,2030,2031,2032,2033,2034]
[null,null,null,null,"EL0",{"$f":"IF(F$29<STANDARD_YEAR,F175,\nIF(RIGHT($E186,1)>RIGHT(INDEX(STANDARD_LEVELS,1,MID($C171,4,1)),1),F175,\nIF(RIGHT($E186,1)<RIGHT(INDEX(STANDARD_LEVELS,1,MID($C171,4,1)),1),0,\nIF(RIGHT($E186,1)=RIGHT(INDEX(STANDARD_LEVELS,1,MID($C171,4,1)),1),SUM(OFFSET(F175,-(RIGHT($E186,1)),0,RIGHT($E186,1)+1,1)),\"ERROR\"))))","v":0},0,{"$f":"IF(H$29<STANDARD_YEAR,H175,\nIF(RIGHT($E186,1)>RIGHT(INDEX(STANDARD_LEVELS,1,MID($C171,4,1)),1),H175,\nIF(RIGHT($E186,1)<RIGHT(INDEX(STANDARD_LEVELS,1,MID($C171,4,1)),1),0,\nIF(RIGHT($E186,1)=RIGHT(INDEX(STANDARD_LEVELS,1,MID($C171,4,1)),1),SUM(OFFSET(H175,-(RIGHT($E186,1)),0,RIGHT($E186,1)+1,1)),\"ERROR\"))))","v":0},0,0,0,0,0,0,0,0,0,0,0,0,0,0,0,0,0,0,0,0,0,0,0,0,0,0,0,0,0,0,0,0,0,0,0,0,0,0,0,0,0,0,0,0,0,0,0,0,0,0,0]
[null,null,null,null,"EL1",{"$f":"IF(F$29<STANDARD_YEAR,F176,\nIF(RIGHT($E187,1)>RIGHT(INDEX(STANDARD_LEVELS,1,MID($C171,4,1)),1),F176,\nIF(RIGHT($E187,1)<RIGHT(INDEX(STANDARD_LEVELS,1,MID($C171,4,1)),1),0,\nIF(RIGHT($E187,1)=RIGHT(INDEX(STANDARD_LEVELS,1,MID($C171,4,1)),1),SUM(OFFSET(F176,-(RIGHT($E187,1)),0,RIGHT($E187,1)+1,1)),\"ERROR\"))))","v":0},0,{"$f":"IF(H$29<STANDARD_YEAR,H176,\nIF(RIGHT($E187,1)>RIGHT(INDEX(STANDARD_LEVELS,1,MID($C171,4,1)),1),H176,\nIF(RIGHT($E187,1)<RIGHT(INDEX(STANDARD_LEVELS,1,MID($C171,4,1)),1),0,\nIF(RIGHT($E187,1)=RIGHT(INDEX(STANDARD_LEVELS,1,MID($C171,4,1)),1),SUM(OFFSET(H176,-(RIGHT($E187,1)),0,RIGHT($E187,1)+1,1)),\"ERROR\"))))","v":0},0,0,0,0,0,0,0,0,0,0,0,0,0,0,0,0,0,0,0,0,0,0,0,0,0,0,0,0,0,0,0,0,0,0,0,0,0,0,0,0,0,0,0,0,0,0,0,0,0,0,0]
[null,null,null,null,"EL2",{"$f":"IF(F$29<STANDARD_YEAR,F177,\nIF(RIGHT($E188,1)>RIGHT(INDEX(STANDARD_LEVELS,1,MID($C171,4,1)),1),F177,\nIF(RIGHT($E188,1)<RIGHT(INDEX(STANDARD_LEVELS,1,MID($C171,4,1)),1),0,\nIF(RIGHT($E188,1)=RIGHT(INDEX(STANDARD_LEVELS,1,MID($C171,4,1)),1),SUM(OFFSET(F177,-(RIGHT($E188,1)),0,RIGHT($E188,1)+1,1)),\"ERROR\"))))","v":0},0,{"$f":"IF(H$29<STANDARD_YEAR,H177,\nIF(RIGHT($E188,1)>RIGHT(INDEX(STANDARD_LEVELS,1,MID($C171,4,1)),1),H177,\nIF(RIGHT($E188,1)<RIGHT(INDEX(STANDARD_LEVELS,1,MID($C171,4,1)),1),0,\nIF(RIGHT($E188,1)=RIGHT(INDEX(STANDARD_LEVELS,1,MID($C171,4,1)),1),SUM(OFFSET(H177,-(RIGHT($E188,1)),0,RIGHT($E188,1)+1,1)),\"ERROR\"))))","v":0},0,0,0,0,0,0,0,0,0,0,0,0,0,0,0,0,0,0,0,0,0,0,0,0,0,0,0,0,0,0,0,0,0,0,0,0,0,0,0,0,0,0,0,0,0,0,0,0,0,0,0]
[null,null,null,null,"EL3",{"$f":"IF(F$29<STANDARD_YEAR,F178,\nIF(RIGHT($E189,1)>RIGHT(INDEX(STANDARD_LEVELS,1,MID($C171,4,1)),1),F178,\nIF(RIGHT($E189,1)<RIGHT(INDEX(STANDARD_LEVELS,1,MID($C171,4,1)),1),0,\nIF(RIGHT($E189,1)=RIGHT(INDEX(STANDARD_LEVELS,1,MID($C171,4,1)),1),SUM(OFFSET(F178,-(RIGHT($E189,1)),0,RIGHT($E189,1)+1,1)),\"ERROR\"))))","v":0},0,{"$f":"IF(H$29<STANDARD_YEAR,H178,\nIF(RIGHT($E189,1)>RIGHT(INDEX(STANDARD_LEVELS,1,MID($C171,4,1)),1),H178,\nIF(RIGHT($E189,1)<RIGHT(INDEX(STANDARD_LEVELS,1,MID($C171,4,1)),1),0,\nIF(RIGHT($E189,1)=RIGHT(INDEX(STANDARD_LEVELS,1,MID($C171,4,1)),1),SUM(OFFSET(H178,-(RIGHT($E189,1)),0,RIGHT($E189,1)+1,1)),\"ERROR\"))))","v":0},0,0,0,0,0,0,0,0,0,0,0,0,0,0,0,0,0,0,0,0,0,0,0,0,0,0,0,0,0,0,0,0,0,0,0,0,0,0,0,0,0,0,0,0,0,0,0,0,0,0,0]
[null,null,null,null,"EL4",{"$f":"IF(F$29<STANDARD_YEAR,F179,\nIF(RIGHT($E190,1)>RIGHT(INDEX(STANDARD_LEVELS,1,MID($C171,4,1)),1),F179,\nIF(RIGHT($E190,1)<RIGHT(INDEX(STANDARD_LEVELS,1,MID($C171,4,1)),1),0,\nIF(RIGHT($E190,1)=RIGHT(INDEX(STANDARD_LEVELS,1,MID($C171,4,1)),1),SUM(OFFSET(F179,-(RIGHT($E190,1)),0,RIGHT($E190,1)+1,1)),\"ERROR\"))))","v":0},0,{"$f":"IF(H$29<STANDARD_YEAR,H179,\nIF(RIGHT($E190,1)>RIGHT(INDEX(STANDARD_LEVELS,1,MID($C171,4,1)),1),H179,\nIF(RIGHT($E190,1)<RIGHT(INDEX(STANDARD_LEVELS,1,MID($C171,4,1)),1),0,\nIF(RIGHT($E190,1)=RIGHT(INDEX(STANDARD_LEVELS,1,MID($C171,4,1)),1),SUM(OFFSET(H179,-(RIGHT($E190,1)),0,RIGHT($E190,1)+1,1)),\"ERROR\"))))","v":0},0,0,0,0,0,0,0,0,0,0,0,0,0,0,0,0,0,0,0,0,0,0,0,0,0,0,0,0,0,0,0,0,0,0,0,0,0,0,0,0,0,0,0,0,0,0,0,0,0,0,0]
[null,null,null,null,"EL5",{"$f":"IF(F$29<STANDARD_YEAR,F180,\nIF(RIGHT($E191,1)>RIGHT(INDEX(STANDARD_LEVELS,1,MID($C171,4,1)),1),F180,\nIF(RIGHT($E191,1)<RIGHT(INDEX(STANDARD_LEVELS,1,MID($C171,4,1)),1),0,\nIF(RIGHT($E191,1)=RIGHT(INDEX(STANDARD_LEVELS,1,MID($C171,4,1)),1),SUM(OFFSET(F180,-(RIGHT($E191,1)),0,RIGHT($E191,1)+1,1)),\"ERROR\"))))","v":0},0,{"$f":"IF(H$29<STANDARD_YEAR,H180,\nIF(RIGHT($E191,1)>RIGHT(INDEX(STANDARD_LEVELS,1,MID($C171,4,1)),1),H180,\nIF(RIGHT($E191,1)<RIGHT(INDEX(STANDARD_LEVELS,1,MID($C171,4,1)),1),0,\nIF(RIGHT($E191,1)=RIGHT(INDEX(STANDARD_LEVELS,1,MID($C171,4,1)),1),SUM(OFFSET(H180,-(RIGHT($E191,1)),0,RIGHT($E191,1)+1,1)),\"ERROR\"))))","v":0},0,0,0,0,0,0,0,0,0,0,0,0,0,0,0,0,0,0,0,0,0,0,0,0,0,0,0,0,0,0,0,0,0,0,0,0,0,0,0,0,0,0,0,0,0,0,0,0,0,0,0]
[null,null,null,null,"EL6",{"$f":"IF(F$29<STANDARD_YEAR,F181,\nIF(RIGHT($E192,1)>RIGHT(INDEX(STANDARD_LEVELS,1,MID($C171,4,1)),1),F181,\nIF(RIGHT($E192,1)<RIGHT(INDEX(STANDARD_LEVELS,1,MID($C171,4,1)),1),0,\nIF(RIGHT($E192,1)=RIGHT(INDEX(STANDARD_LEVELS,1,MID($C171,4,1)),1),SUM(OFFSET(F181,-(RIGHT($E192,1)),0,RIGHT($E192,1)+1,1)),\"ERROR\"))))","v":0},0,{"$f":"IF(H$29<STANDARD_YEAR,H181,\nIF(RIGHT($E192,1)>RIGHT(INDEX(STANDARD_LEVELS,1,MID($C171,4,1)),1),H181,\nIF(RIGHT($E192,1)<RIGHT(INDEX(STANDARD_LEVELS,1,MID($C171,4,1)),1),0,\nIF(RIGHT($E192,1)=RIGHT(INDEX(STANDARD_LEVELS,1,MID($C171,4,1)),1),SUM(OFFSET(H181,-(RIGHT($E192,1)),0,RIGHT($E192,1)+1,1)),\"ERROR\"))))","v":0},0,0,0,0,0,0,0,0,0,0,0,0,0,0,0,0,0,0,0,0,0,0,0,0,0,0,0,0,0,0,0,0,0,0,0,0,0,0,0,0,0,0,0,0,0,0,0,0,0,0,0]
[null,null,null,null,"TOTAL",{"$f":"SUM(F186:F192)","v":0},0,{"$f":"SUM(H186:H192)","v":0},0,0,0,0,0,0,0,0,0,0,0,0,0,0,0,0,0,0,0,0,0,0,0,0,0,0,0,0,0,0,0,0,0,0,0,0,0,0,0,0,0,0,0,0,0,0,0,0,0,0,0]
[]
[]
[]
[null,null,"PC 8",{"$f":"OFFSET('Product Classes'!$C$9,MATCH(C197,MODEL_PCS,0),0)","v":"Mobile Home Electric Furnace / Modular Blower Fan (MH-EF/MB)"}]
[]
[null,null,null,"PRE-Case"]
[null,null,null,null,"Efficiency Level",1981,{"$f":"F200+1","v":1982},{"$f":"G200+1","v":1983},1984,1985,1986,1987,1988,1989,1990,{"$f":"O200+1","v":1991},{"$f":"P200+1","v":1992},1993,1994,1995,1996,1997,1998,1999,2000,2001,2002,2003,2004,2005,2006,2007,2008,2009,2010,2011,2012,2013,2014,2015,2016,2017,2018,2019,2020,2021,2022,2023,2024,2025,2026,2027,2028,2029,2030,2031,2032,2033,2034]
[null,null,null,null,"EL0",{"$f":"IF(INDEX(PC_MAPPING,RIGHT($C197,1),MATCH($E$2,'Data by Building Type'!$D$22:$F$22,0))=\"Yes\",1,0)*\n(F$10*OFFSET('Efficiency Distributions'!$D$10,MATCH($C197,'Efficiency Distributions'!$C$9:$C$87,0)+RIGHT($E201),0)\n+F$11*OFFSET('Efficiency Distributions'!$E$10,MATCH($C197,'Efficiency Distributions'!$C$9:$C$87,0)+RIGHT($E201),0))\n/SUM(F$10:F$11)","v":0},{"$f":"IF(INDEX(PC_MAPPING,RIGHT($C197,1),MATCH($E$2,'Data by Building Type'!$D$22:$F$22,0))=\"Yes\",1,0)*\n(G$10*OFFSET('Efficiency Distributions'!$D$10,MATCH($C197,'Efficiency Distributions'!$C$9:$C$87,0)+RIGHT($E201),0)\n+G$11*OFFSET('Efficiency Distributions'!$E$10,MATCH($C197,'Efficiency Distributions'!$C$9:$C$87,0)+RIGHT($E201),0))\n/SUM(G$10:G$11)","v":0},{"$f":"IF(INDEX(PC_MAPPING,RIGHT($C197,1),MATCH($E$2,'Data by Building Type'!$D$22:$F$22,0))=\"Yes\",1,0)*\n(H$10*OFFSET('Efficiency Distributions'!$D$10,MATCH($C197,'Efficiency Distributions'!$C$9:$C$87,0)+RIGHT($E201),0)\n+H$11*OFFSET('Efficiency Distributions'!$E$10,MATCH($C197,'Efficiency Distributions'!$C$9:$C$87,0)+RIGHT($E201),0))\n/SUM(H$10:H$11)","v":0},{"$f":"IF(INDEX(PC_MAPPING,RIGHT($C197,1),MATCH($E$2,'Data by Building Type'!$D$22:$F$22,0))=\"Yes\",1,0)*\n(I$10*OFFSET('Efficiency Distributions'!$D$10,MATCH($C197,'Efficiency Distributions'!$C$9:$C$87,0)+RIGHT($E201),0)\n+I$11*OFFSET('Efficiency Distributions'!$E$10,MATCH($C197,'Efficiency Distributions'!$C$9:$C$87,0)+RIGHT($E201),0))\n/SUM(I$10:I$11)","v":0},{"$f":"IF(INDEX(PC_MAPPING,RIGHT($C197,1),MATCH($E$2,'Data by Building Type'!$D$22:$F$22,0))=\"Yes\",1,0)*\n(J$10*OFFSET('Efficiency Distributions'!$D$10,MATCH($C197,'Efficiency Distributions'!$C$9:$C$87,0)+RIGHT($E201),0)\n+J$11*OFFSET('Efficiency Distributions'!$E$10,MATCH($C197,'Efficiency Distributions'!$C$9:$C$87,0)+RIGHT($E201),0))\n/SUM(J$10:J$11)","v":0},{"$f":"IF(INDEX(PC_MAPPING,RIGHT($C197,1),MATCH($E$2,'Data by Building Type'!$D$22:$F$22,0))=\"Yes\",1,0)*\n(K$10*OFFSET('Efficiency Distributions'!$D$10,MATCH($C197,'Efficiency Distributions'!$C$9:$C$87,0)+RIGHT($E201),0)\n+K$11*OFFSET('Efficiency Distributions'!$E$10,MATCH($C197,'Efficiency Distributions'!$C$9:$C$87,0)+RIGHT($E201),0))\n/SUM(K$10:K$11)","v":0},{"$f":"IF(INDEX(PC_MAPPING,RIGHT($C197,1),MATCH($E$2,'Data by Building Type'!$D$22:$F$22,0))=\"Yes\",1,0)*\n(L$10*OFFSET('Efficiency Distributions'!$D$10,MATCH($C197,'Efficiency Distributions'!$C$9:$C$87,0)+RIGHT($E201),0)\n+L$11*OFFSET('Efficiency Distributions'!$E$10,MATCH($C197,'Efficiency Distributions'!$C$9:$C$87,0)+RIGHT($E201),0))\n/SUM(L$10:L$11)","v":0},{"$f":"IF(INDEX(PC_MAPPING,RIGHT($C197,1),MATCH($E$2,'Data by Building Type'!$D$22:$F$22,0))=\"Yes\",1,0)*\n(M$10*OFFSET('Efficiency Distributions'!$D$10,MATCH($C197,'Efficiency Distributions'!$C$9:$C$87,0)+RIGHT($E201),0)\n+M$11*OFFSET('Efficiency Distributions'!$E$10,MATCH($C197,'Efficiency Distributions'!$C$9:$C$87,0)+RIGHT($E201),0))\n/SUM(M$10:M$11)","v":0},{"$f":"IF(INDEX(PC_MAPPING,RIGHT($C197,1),MATCH($E$2,'Data by Building Type'!$D$22:$F$22,0))=\"Yes\",1,0)*\n(N$10*OFFSET('Efficiency Distributions'!$D$10,MATCH($C197,'Efficiency Distributions'!$C$9:$C$87,0)+RIGHT($E201),0)\n+N$11*OFFSET('Efficiency Distributions'!$E$10,MATCH($C197,'Efficiency Distributions'!$C$9:$C$87,0)+RIGHT($E201),0))\n/SUM(N$10:N$11)","v":0},{"$f":"IF(INDEX(PC_MAPPING,RIGHT($C197,1),MATCH($E$2,'Data by Building Type'!$D$22:$F$22,0))=\"Yes\",1,0)*\n(O$10*OFFSET('Efficiency Distributions'!$D$10,MATCH($C197,'Efficiency Distributions'!$C$9:$C$87,0)+RIGHT($E201),0)\n+O$11*OFFSET('Efficiency Distributions'!$E$10,MATCH($C197,'Efficiency Distributions'!$C$9:$C$87,0)+RIGHT($E201),0))\n/SUM(O$10:O$11)","v":0},{"$f":"IF(INDEX(PC_MAPPING,RIGHT($C197,1),MATCH($E$2,'Data by Building Type'!$D$22:$F$22,0))=\"Yes\",1,0)*\n(P$10*OFFSET('Efficiency Distributions'!$D$10,MATCH($C197,'Efficiency Distributions'!$C$9:$C$87,0)+RIGHT($E201),0)\n+P$11*OFFSET('Efficiency Distributions'!$E$10,MATCH($C197,'Efficiency Distributions'!$C$9:$C$87,0)+RIGHT($E201),0))\n/SUM(P$10:P$11)","v":0},{"$f":"IF(INDEX(PC_MAPPING,RIGHT($C197,1),MATCH($E$2,'Data by Building Type'!$D$22:$F$22,0))=\"Yes\",1,0)*\n(Q$10*OFFSET('Efficiency Distributions'!$D$10,MATCH($C197,'Efficiency Distributions'!$C$9:$C$87,0)+RIGHT($E201),0)\n+Q$11*OFFSET('Efficiency Distributions'!$E$10,MATCH($C197,'Efficiency Distributions'!$C$9:$C$87,0)+RIGHT($E201),0))\n/SUM(Q$10:Q$11)","v":0},{"$f":"IF(INDEX(PC_MAPPING,RIGHT($C197,1),MATCH($E$2,'Data by Building Type'!$D$22:$F$22,0))=\"Yes\",1,0)*\n(R$10*OFFSET('Efficiency Distributions'!$D$10,MATCH($C197,'Efficiency Distributions'!$C$9:$C$87,0)+RIGHT($E201),0)\n+R$11*OFFSET('Efficiency Distributions'!$E$10,MATCH($C197,'Efficiency Distributions'!$C$9:$C$87,0)+RIGHT($E201),0))\n/SUM(R$10:R$11)","v":0},{"$f":"IF(INDEX(PC_MAPPING,RIGHT($C197,1),MATCH($E$2,'Data by Building Type'!$D$22:$F$22,0))=\"Yes\",1,0)*\n(S$10*OFFSET('Efficiency Distributions'!$D$10,MATCH($C197,'Efficiency Distributions'!$C$9:$C$87,0)+RIGHT($E201),0)\n+S$11*OFFSET('Efficiency Distributions'!$E$10,MATCH($C197,'Efficiency Distributions'!$C$9:$C$87,0)+RIGHT($E201),0))\n/SUM(S$10:S$11)","v":0},{"$f":"IF(INDEX(PC_MAPPING,RIGHT($C197,1),MATCH($E$2,'Data by Building Type'!$D$22:$F$22,0))=\"Yes\",1,0)*\n(T$10*OFFSET('Efficiency Distributions'!$D$10,MATCH($C197,'Efficiency Distributions'!$C$9:$C$87,0)+RIGHT($E201),0)\n+T$11*OFFSET('Efficiency Distributions'!$E$10,MATCH($C197,'Efficiency Distributions'!$C$9:$C$87,0)+RIGHT($E201),0))\n/SUM(T$10:T$11)","v":0},{"$f":"IF(INDEX(PC_MAPPING,RIGHT($C197,1),MATCH($E$2,'Data by Building Type'!$D$22:$F$22,0))=\"Yes\",1,0)*\n(U$10*OFFSET('Efficiency Distributions'!$D$10,MATCH($C197,'Efficiency Distributions'!$C$9:$C$87,0)+RIGHT($E201),0)\n+U$11*OFFSET('Efficiency Distributions'!$E$10,MATCH($C197,'Efficiency Distributions'!$C$9:$C$87,0)+RIGHT($E201),0))\n/SUM(U$10:U$11)","v":0},{"$f":"IF(INDEX(PC_MAPPING,RIGHT($C197,1),MATCH($E$2,'Data by Building Type'!$D$22:$F$22,0))=\"Yes\",1,0)*\n(V$10*OFFSET('Efficiency Distributions'!$D$10,MATCH($C197,'Efficiency Distributions'!$C$9:$C$87,0)+RIGHT($E201),0)\n+V$11*OFFSET('Efficiency Distributions'!$E$10,MATCH($C197,'Efficiency Distributions'!$C$9:$C$87,0)+RIGHT($E201),0))\n/SUM(V$10:V$11)","v":0},{"$f":"IF(INDEX(PC_MAPPING,RIGHT($C197,1),MATCH($E$2,'Data by Building Type'!$D$22:$F$22,0))=\"Yes\",1,0)*\n(W$10*OFFSET('Efficiency Distributions'!$D$10,MATCH($C197,'Efficiency Distributions'!$C$9:$C$87,0)+RIGHT($E201),0)\n+W$11*OFFSET('Efficiency Distributions'!$E$10,MATCH($C197,'Efficiency Distributions'!$C$9:$C$87,0)+RIGHT($E201),0))\n/SUM(W$10:W$11)","v":0},{"$f":"IF(INDEX(PC_MAPPING,RIGHT($C197,1),MATCH($E$2,'Data by Building Type'!$D$22:$F$22,0))=\"Yes\",1,0)*\n(X$10*OFFSET('Efficiency Distributions'!$D$10,MATCH($C197,'Efficiency Distributions'!$C$9:$C$87,0)+RIGHT($E201),0)\n+X$11*OFFSET('Efficiency Distributions'!$E$10,MATCH($C197,'Efficiency Distributions'!$C$9:$C$87,0)+RIGHT($E201),0))\n/SUM(X$10:X$11)","v":0},{"$f":"IF(INDEX(PC_MAPPING,RIGHT($C197,1),MATCH($E$2,'Data by Building Type'!$D$22:$F$22,0))=\"Yes\",1,0)*\n(Y$10*OFFSET('Efficiency Distributions'!$D$10,MATCH($C197,'Efficiency Distributions'!$C$9:$C$87,0)+RIGHT($E201),0)\n+Y$11*OFFSET('Efficiency Distributions'!$E$10,MATCH($C197,'Efficiency Distributions'!$C$9:$C$87,0)+RIGHT($E201),0))\n/SUM(Y$10:Y$11)","v":0},{"$f":"IF(INDEX(PC_MAPPING,RIGHT($C197,1),MATCH($E$2,'Data by Building Type'!$D$22:$F$22,0))=\"Yes\",1,0)*\n(Z$10*OFFSET('Efficiency Distributions'!$D$10,MATCH($C197,'Efficiency Distributions'!$C$9:$C$87,0)+RIGHT($E201),0)\n+Z$11*OFFSET('Efficiency Distributions'!$E$10,MATCH($C197,'Efficiency Distributions'!$C$9:$C$87,0)+RIGHT($E201),0))\n/SUM(Z$10:Z$11)","v":0},{"$f":"IF(INDEX(PC_MAPPING,RIGHT($C197,1),MATCH($E$2,'Data by Building Type'!$D$22:$F$22,0))=\"Yes\",1,0)*\n(AA$10*OFFSET('Efficiency Distributions'!$D$10,MATCH($C197,'Efficiency Distributions'!$C$9:$C$87,0)+RIGHT($E201),0)\n+AA$11*OFFSET('Efficiency Distributions'!$E$10,MATCH($C197,'Efficiency Distributions'!$C$9:$C$87,0)+RIGHT($E201),0))\n/SUM(AA$10:AA$11)","v":0},{"$f":"IF(INDEX(PC_MAPPING,RIGHT($C197,1),MATCH($E$2,'Data by Building Type'!$D$22:$F$22,0))=\"Yes\",1,0)*\n(AB$10*OFFSET('Efficiency Distributions'!$D$10,MATCH($C197,'Efficiency Distributions'!$C$9:$C$87,0)+RIGHT($E201),0)\n+AB$11*OFFSET('Efficiency Distributions'!$E$10,MATCH($C197,'Efficiency Distributions'!$C$9:$C$87,0)+RIGHT($E201),0))\n/SUM(AB$10:AB$11)","v":0},{"$f":"IF(INDEX(PC_MAPPING,RIGHT($C197,1),MATCH($E$2,'Data by Building Type'!$D$22:$F$22,0))=\"Yes\",1,0)*\n(AC$10*OFFSET('Efficiency Distributions'!$D$10,MATCH($C197,'Efficiency Distributions'!$C$9:$C$87,0)+RIGHT($E201),0)\n+AC$11*OFFSET('Efficiency Distributions'!$E$10,MATCH($C197,'Efficiency Distributions'!$C$9:$C$87,0)+RIGHT($E201),0))\n/SUM(AC$10:AC$11)","v":0},{"$f":"IF(INDEX(PC_MAPPING,RIGHT($C197,1),MATCH($E$2,'Data by Building Type'!$D$22:$F$22,0))=\"Yes\",1,0)*\n(AD$10*OFFSET('Efficiency Distributions'!$D$10,MATCH($C197,'Efficiency Distributions'!$C$9:$C$87,0)+RIGHT($E201),0)\n+AD$11*OFFSET('Efficiency Distributions'!$E$10,MATCH($C197,'Efficiency Distributions'!$C$9:$C$87,0)+RIGHT($E201),0))\n/SUM(AD$10:AD$11)","v":0},{"$f":"IF(INDEX(PC_MAPPING,RIGHT($C197,1),MATCH($E$2,'Data by Building Type'!$D$22:$F$22,0))=\"Yes\",1,0)*\n(AE$10*OFFSET('Efficiency Distributions'!$D$10,MATCH($C197,'Efficiency Distributions'!$C$9:$C$87,0)+RIGHT($E201),0)\n+AE$11*OFFSET('Efficiency Distributions'!$E$10,MATCH($C197,'Efficiency Distributions'!$C$9:$C$87,0)+RIGHT($E201),0))\n/SUM(AE$10:AE$11)","v":0},{"$f":"IF(INDEX(PC_MAPPING,RIGHT($C197,1),MATCH($E$2,'Data by Building Type'!$D$22:$F$22,0))=\"Yes\",1,0)*\n(AF$10*OFFSET('Efficiency Distributions'!$D$10,MATCH($C197,'Efficiency Distributions'!$C$9:$C$87,0)+RIGHT($E201),0)\n+AF$11*OFFSET('Efficiency Distributions'!$E$10,MATCH($C197,'Efficiency Distributions'!$C$9:$C$87,0)+RIGHT($E201),0))\n/SUM(AF$10:AF$11)","v":0},{"$f":"IF(INDEX(PC_MAPPING,RIGHT($C197,1),MATCH($E$2,'Data by Building Type'!$D$22:$F$22,0))=\"Yes\",1,0)*\n(AG$10*OFFSET('Efficiency Distributions'!$D$10,MATCH($C197,'Efficiency Distributions'!$C$9:$C$87,0)+RIGHT($E201),0)\n+AG$11*OFFSET('Efficiency Distributions'!$E$10,MATCH($C197,'Efficiency Distributions'!$C$9:$C$87,0)+RIGHT($E201),0))\n/SUM(AG$10:AG$11)","v":0},{"$f":"IF(INDEX(PC_MAPPING,RIGHT($C197,1),MATCH($E$2,'Data by Building Type'!$D$22:$F$22,0))=\"Yes\",1,0)*\n(AH$10*OFFSET('Efficiency Distributions'!$D$10,MATCH($C197,'Efficiency Distributions'!$C$9:$C$87,0)+RIGHT($E201),0)\n+AH$11*OFFSET('Efficiency Distributions'!$E$10,MATCH($C197,'Efficiency Distributions'!$C$9:$C$87,0)+RIGHT($E201),0))\n/SUM(AH$10:AH$11)","v":0},{"$f":"IF(INDEX(PC_MAPPING,RIGHT($C197,1),MATCH($E$2,'Data by Building Type'!$D$22:$F$22,0))=\"Yes\",1,0)*\n(AI$10*OFFSET('Efficiency Distributions'!$D$10,MATCH($C197,'Efficiency Distributions'!$C$9:$C$87,0)+RIGHT($E201),0)\n+AI$11*OFFSET('Efficiency Distributions'!$E$10,MATCH($C197,'Efficiency Distributions'!$C$9:$C$87,0)+RIGHT($E201),0))\n/SUM(AI$10:AI$11)","v":0},{"$f":"IF(INDEX(PC_MAPPING,RIGHT($C197,1),MATCH($E$2,'Data by Building Type'!$D$22:$F$22,0))=\"Yes\",1,0)*\n(AJ$10*OFFSET('Efficiency Distributions'!$D$10,MATCH($C197,'Efficiency Distributions'!$C$9:$C$87,0)+RIGHT($E201),0)\n+AJ$11*OFFSET('Efficiency Distributions'!$E$10,MATCH($C197,'Efficiency Distributions'!$C$9:$C$87,0)+RIGHT($E201),0))\n/SUM(AJ$10:AJ$11)","v":0},{"$f":"IF(INDEX(PC_MAPPING,RIGHT($C197,1),MATCH($E$2,'Data by Building Type'!$D$22:$F$22,0))=\"Yes\",1,0)*\n(AK$10*OFFSET('Efficiency Distributions'!$D$10,MATCH($C197,'Efficiency Distributions'!$C$9:$C$87,0)+RIGHT($E201),0)\n+AK$11*OFFSET('Efficiency Distributions'!$E$10,MATCH($C197,'Efficiency Distributions'!$C$9:$C$87,0)+RIGHT($E201),0))\n/SUM(AK$10:AK$11)","v":0},{"$f":"IF(INDEX(PC_MAPPING,RIGHT($C197,1),MATCH($E$2,'Data by Building Type'!$D$22:$F$22,0))=\"Yes\",1,0)*\n(AL$10*OFFSET('Efficiency Distributions'!$D$10,MATCH($C197,'Efficiency Distributions'!$C$9:$C$87,0)+RIGHT($E201),0)\n+AL$11*OFFSET('Efficiency Distributions'!$E$10,MATCH($C197,'Efficiency Distributions'!$C$9:$C$87,0)+RIGHT($E201),0))\n/SUM(AL$10:AL$11)","v":0},{"$f":"IF(INDEX(PC_MAPPING,RIGHT($C197,1),MATCH($E$2,'Data by Building Type'!$D$22:$F$22,0))=\"Yes\",1,0)*\n(AM$10*OFFSET('Efficiency Distributions'!$D$10,MATCH($C197,'Efficiency Distributions'!$C$9:$C$87,0)+RIGHT($E201),0)\n+AM$11*OFFSET('Efficiency Distributions'!$E$10,MATCH($C197,'Efficiency Distributions'!$C$9:$C$87,0)+RIGHT($E201),0))\n/SUM(AM$10:AM$11)","v":0},{"$f":"IF(INDEX(PC_MAPPING,RIGHT($C197,1),MATCH($E$2,'Data by Building Type'!$D$22:$F$22,0))=\"Yes\",1,0)*\n(AN$10*OFFSET('Efficiency Distributions'!$D$10,MATCH($C197,'Efficiency Distributions'!$C$9:$C$87,0)+RIGHT($E201),0)\n+AN$11*OFFSET('Efficiency Distributions'!$E$10,MATCH($C197,'Efficiency Distributions'!$C$9:$C$87,0)+RIGHT($E201),0))\n/SUM(AN$10:AN$11)","v":0},{"$f":"IF(INDEX(PC_MAPPING,RIGHT($C197,1),MATCH($E$2,'Data by Building Type'!$D$22:$F$22,0))=\"Yes\",1,0)*\n(AO$10*OFFSET('Efficiency Distributions'!$D$10,MATCH($C197,'Efficiency Distributions'!$C$9:$C$87,0)+RIGHT($E201),0)\n+AO$11*OFFSET('Efficiency Distributions'!$E$10,MATCH($C197,'Efficiency Distributions'!$C$9:$C$87,0)+RIGHT($E201),0))\n/SUM(AO$10:AO$11)","v":0},{"$f":"IF(INDEX(PC_MAPPING,RIGHT($C197,1),MATCH($E$2,'Data by Building Type'!$D$22:$F$22,0))=\"Yes\",1,0)*\n(AP$10*OFFSET('Efficiency Distributions'!$D$10,MATCH($C197,'Efficiency Distributions'!$C$9:$C$87,0)+RIGHT($E201),0)\n+AP$11*OFFSET('Efficiency Distributions'!$E$10,MATCH($C197,'Efficiency Distributions'!$C$9:$C$87,0)+RIGHT($E201),0))\n/SUM(AP$10:AP$11)","v":0},{"$f":"IF(INDEX(PC_MAPPING,RIGHT($C197,1),MATCH($E$2,'Data by Building Type'!$D$22:$F$22,0))=\"Yes\",1,0)*\n(AQ$10*OFFSET('Efficiency Distributions'!$D$10,MATCH($C197,'Efficiency Distributions'!$C$9:$C$87,0)+RIGHT($E201),0)\n+AQ$11*OFFSET('Efficiency Distributions'!$E$10,MATCH($C197,'Efficiency Distributions'!$C$9:$C$87,0)+RIGHT($E201),0))\n/SUM(AQ$10:AQ$11)","v":0},{"$f":"IF(INDEX(PC_MAPPING,RIGHT($C197,1),MATCH($E$2,'Data by Building Type'!$D$22:$F$22,0))=\"Yes\",1,0)*\n(AR$10*OFFSET('Efficiency Distributions'!$D$10,MATCH($C197,'Efficiency Distributions'!$C$9:$C$87,0)+RIGHT($E201),0)\n+AR$11*OFFSET('Efficiency Distributions'!$E$10,MATCH($C197,'Efficiency Distributions'!$C$9:$C$87,0)+RIGHT($E201),0))\n/SUM(AR$10:AR$11)","v":0},{"$f":"IF(INDEX(PC_MAPPING,RIGHT($C197,1),MATCH($E$2,'Data by Building Type'!$D$22:$F$22,0))=\"Yes\",1,0)*\n(AS$10*OFFSET('Efficiency Distributions'!$D$10,MATCH($C197,'Efficiency Distributions'!$C$9:$C$87,0)+RIGHT($E201),0)\n+AS$11*OFFSET('Efficiency Distributions'!$E$10,MATCH($C197,'Efficiency Distributions'!$C$9:$C$87,0)+RIGHT($E201),0))\n/SUM(AS$10:AS$11)","v":0},{"$f":"IF(INDEX(PC_MAPPING,RIGHT($C197,1),MATCH($E$2,'Data by Building Type'!$D$22:$F$22,0))=\"Yes\",1,0)*\n(AT$10*OFFSET('Efficiency Distributions'!$D$10,MATCH($C197,'Efficiency Distributions'!$C$9:$C$87,0)+RIGHT($E201),0)\n+AT$11*OFFSET('Efficiency Distributions'!$E$10,MATCH($C197,'Efficiency Distributions'!$C$9:$C$87,0)+RIGHT($E201),0))\n/SUM(AT$10:AT$11)","v":0},{"$f":"IF(INDEX(PC_MAPPING,RIGHT($C197,1),MATCH($E$2,'Data by Building Type'!$D$22:$F$22,0))=\"Yes\",1,0)*\n(AU$10*OFFSET('Efficiency Distributions'!$D$10,MATCH($C197,'Efficiency Distributions'!$C$9:$C$87,0)+RIGHT($E201),0)\n+AU$11*OFFSET('Efficiency Distributions'!$E$10,MATCH($C197,'Efficiency Distributions'!$C$9:$C$87,0)+RIGHT($E201),0))\n/SUM(AU$10:AU$11)","v":0},{"$f":"IF(INDEX(PC_MAPPING,RIGHT($C197,1),MATCH($E$2,'Data by Building Type'!$D$22:$F$22,0))=\"Yes\",1,0)*\n(AV$10*OFFSET('Efficiency Distributions'!$D$10,MATCH($C197,'Efficiency Distributions'!$C$9:$C$87,0)+RIGHT($E201),0)\n+AV$11*OFFSET('Efficiency Distributions'!$E$10,MATCH($C197,'Efficiency Distributions'!$C$9:$C$87,0)+RIGHT($E201),0))\n/SUM(AV$10:AV$11)","v":0},{"$f":"IF(INDEX(PC_MAPPING,RIGHT($C197,1),MATCH($E$2,'Data by Building Type'!$D$22:$F$22,0))=\"Yes\",1,0)*\n(AW$10*OFFSET('Efficiency Distributions'!$D$10,MATCH($C197,'Efficiency Distributions'!$C$9:$C$87,0)+RIGHT($E201),0)\n+AW$11*OFFSET('Efficiency Distributions'!$E$10,MATCH($C197,'Efficiency Distributions'!$C$9:$C$87,0)+RIGHT($E201),0))\n/SUM(AW$10:AW$11)","v":0},{"$f":"IF(INDEX(PC_MAPPING,RIGHT($C197,1),MATCH($E$2,'Data by Building Type'!$D$22:$F$22,0))=\"Yes\",1,0)*\n(AX$10*OFFSET('Efficiency Distributions'!$D$10,MATCH($C197,'Efficiency Distributions'!$C$9:$C$87,0)+RIGHT($E201),0)\n+AX$11*OFFSET('Efficiency Distributions'!$E$10,MATCH($C197,'Efficiency Distributions'!$C$9:$C$87,0)+RIGHT($E201),0))\n/SUM(AX$10:AX$11)","v":0},{"$f":"IF(INDEX(PC_MAPPING,RIGHT($C197,1),MATCH($E$2,'Data by Building Type'!$D$22:$F$22,0))=\"Yes\",1,0)*\n(AY$10*OFFSET('Efficiency Distributions'!$D$10,MATCH($C197,'Efficiency Distributions'!$C$9:$C$87,0)+RIGHT($E201),0)\n+AY$11*OFFSET('Efficiency Distributions'!$E$10,MATCH($C197,'Efficiency Distributions'!$C$9:$C$87,0)+RIGHT($E201),0))\n/SUM(AY$10:AY$11)","v":0},{"$f":"IF(INDEX(PC_MAPPING,RIGHT($C197,1),MATCH($E$2,'Data by Building Type'!$D$22:$F$22,0))=\"Yes\",1,0)*\n(AZ$10*OFFSET('Efficiency Distributions'!$D$10,MATCH($C197,'Efficiency Distributions'!$C$9:$C$87,0)+RIGHT($E201),0)\n+AZ$11*OFFSET('Efficiency Distributions'!$E$10,MATCH($C197,'Efficiency Distributions'!$C$9:$C$87,0)+RIGHT($E201),0))\n/SUM(AZ$10:AZ$11)","v":0},{"$f":"IF(INDEX(PC_MAPPING,RIGHT($C197,1),MATCH($E$2,'Data by Building Type'!$D$22:$F$22,0))=\"Yes\",1,0)*\n(BA$10*OFFSET('Efficiency Distributions'!$D$10,MATCH($C197,'Efficiency Distributions'!$C$9:$C$87,0)+RIGHT($E201),0)\n+BA$11*OFFSET('Efficiency Distributions'!$E$10,MATCH($C197,'Efficiency Distributions'!$C$9:$C$87,0)+RIGHT($E201),0))\n/SUM(BA$10:BA$11)","v":0},{"$f":"IF(INDEX(PC_MAPPING,RIGHT($C197,1),MATCH($E$2,'Data by Building Type'!$D$22:$F$22,0))=\"Yes\",1,0)*\n(BB$10*OFFSET('Efficiency Distributions'!$D$10,MATCH($C197,'Efficiency Distributions'!$C$9:$C$87,0)+RIGHT($E201),0)\n+BB$11*OFFSET('Efficiency Distributions'!$E$10,MATCH($C197,'Efficiency Distributions'!$C$9:$C$87,0)+RIGHT($E201),0))\n/SUM(BB$10:BB$11)","v":0},{"$f":"IF(INDEX(PC_MAPPING,RIGHT($C197,1),MATCH($E$2,'Data by Building Type'!$D$22:$F$22,0))=\"Yes\",1,0)*\n(BC$10*OFFSET('Efficiency Distributions'!$D$10,MATCH($C197,'Efficiency Distributions'!$C$9:$C$87,0)+RIGHT($E201),0)\n+BC$11*OFFSET('Efficiency Distributions'!$E$10,MATCH($C197,'Efficiency Distributions'!$C$9:$C$87,0)+RIGHT($E201),0))\n/SUM(BC$10:BC$11)","v":0},{"$f":"IF(INDEX(PC_MAPPING,RIGHT($C197,1),MATCH($E$2,'Data by Building Type'!$D$22:$F$22,0))=\"Yes\",1,0)*\n(BD$10*OFFSET('Efficiency Distributions'!$D$10,MATCH($C197,'Efficiency Distributions'!$C$9:$C$87,0)+RIGHT($E201),0)\n+BD$11*OFFSET('Efficiency Distributions'!$E$10,MATCH($C197,'Efficiency Distributions'!$C$9:$C$87,0)+RIGHT($E201),0))\n/SUM(BD$10:BD$11)","v":0},{"$f":"IF(INDEX(PC_MAPPING,RIGHT($C197,1),MATCH($E$2,'Data by Building Type'!$D$22:$F$22,0))=\"Yes\",1,0)*\n(BE$10*OFFSET('Efficiency Distributions'!$D$10,MATCH($C197,'Efficiency Distributions'!$C$9:$C$87,0)+RIGHT($E201),0)\n+BE$11*OFFSET('Efficiency Distributions'!$E$10,MATCH($C197,'Efficiency Distributions'!$C$9:$C$87,0)+RIGHT($E201),0))\n/SUM(BE$10:BE$11)","v":0},{"$f":"IF(INDEX(PC_MAPPING,RIGHT($C197,1),MATCH($E$2,'Data by Building Type'!$D$22:$F$22,0))=\"Yes\",1,0)*\n(BF$10*OFFSET('Efficiency Distributions'!$D$10,MATCH($C197,'Efficiency Distributions'!$C$9:$C$87,0)+RIGHT($E201),0)\n+BF$11*OFFSET('Efficiency Distributions'!$E$10,MATCH($C197,'Efficiency Distributions'!$C$9:$C$87,0)+RIGHT($E201),0))\n/SUM(BF$10:BF$11)","v":0},{"$f":"IF(INDEX(PC_MAPPING,RIGHT($C197,1),MATCH($E$2,'Data by Building Type'!$D$22:$F$22,0))=\"Yes\",1,0)*\n(BG$10*OFFSET('Efficiency Distributions'!$D$10,MATCH($C197,'Efficiency Distributions'!$C$9:$C$87,0)+RIGHT($E201),0)\n+BG$11*OFFSET('Efficiency Distributions'!$E$10,MATCH($C197,'Efficiency Distributions'!$C$9:$C$87,0)+RIGHT($E201),0))\n/SUM(BG$10:BG$11)","v":0}]
[null,null,null,null,"EL1",{"$f":"IF(INDEX(PC_MAPPING,RIGHT($C197,1),MATCH($E$2,'Data by Building Type'!$D$22:$F$22,0))=\"Yes\",1,0)*\n(F$10*OFFSET('Efficiency Distributions'!$D$10,MATCH($C197,'Efficiency Distributions'!$C$9:$C$87,0)+RIGHT($E202),0)\n+F$11*OFFSET('Efficiency Distributions'!$E$10,MATCH($C197,'Efficiency Distributions'!$C$9:$C$87,0)+RIGHT($E202),0))\n/SUM(F$10:F$11)","v":0},{"$f":"IF(INDEX(PC_MAPPING,RIGHT($C197,1),MATCH($E$2,'Data by Building Type'!$D$22:$F$22,0))=\"Yes\",1,0)*\n(G$10*OFFSET('Efficiency Distributions'!$D$10,MATCH($C197,'Efficiency Distributions'!$C$9:$C$87,0)+RIGHT($E202),0)\n+G$11*OFFSET('Efficiency Distributions'!$E$10,MATCH($C197,'Efficiency Distributions'!$C$9:$C$87,0)+RIGHT($E202),0))\n/SUM(G$10:G$11)","v":0},{"$f":"IF(INDEX(PC_MAPPING,RIGHT($C197,1),MATCH($E$2,'Data by Building Type'!$D$22:$F$22,0))=\"Yes\",1,0)*\n(H$10*OFFSET('Efficiency Distributions'!$D$10,MATCH($C197,'Efficiency Distributions'!$C$9:$C$87,0)+RIGHT($E202),0)\n+H$11*OFFSET('Efficiency Distributions'!$E$10,MATCH($C197,'Efficiency Distributions'!$C$9:$C$87,0)+RIGHT($E202),0))\n/SUM(H$10:H$11)","v":0},{"$f":"IF(INDEX(PC_MAPPING,RIGHT($C197,1),MATCH($E$2,'Data by Building Type'!$D$22:$F$22,0))=\"Yes\",1,0)*\n(I$10*OFFSET('Efficiency Distributions'!$D$10,MATCH($C197,'Efficiency Distributions'!$C$9:$C$87,0)+RIGHT($E202),0)\n+I$11*OFFSET('Efficiency Distributions'!$E$10,MATCH($C197,'Efficiency Distributions'!$C$9:$C$87,0)+RIGHT($E202),0))\n/SUM(I$10:I$11)","v":0},{"$f":"IF(INDEX(PC_MAPPING,RIGHT($C197,1),MATCH($E$2,'Data by Building Type'!$D$22:$F$22,0))=\"Yes\",1,0)*\n(J$10*OFFSET('Efficiency Distributions'!$D$10,MATCH($C197,'Efficiency Distributions'!$C$9:$C$87,0)+RIGHT($E202),0)\n+J$11*OFFSET('Efficiency Distributions'!$E$10,MATCH($C197,'Efficiency Distributions'!$C$9:$C$87,0)+RIGHT($E202),0))\n/SUM(J$10:J$11)","v":0},{"$f":"IF(INDEX(PC_MAPPING,RIGHT($C197,1),MATCH($E$2,'Data by Building Type'!$D$22:$F$22,0))=\"Yes\",1,0)*\n(K$10*OFFSET('Efficiency Distributions'!$D$10,MATCH($C197,'Efficiency Distributions'!$C$9:$C$87,0)+RIGHT($E202),0)\n+K$11*OFFSET('Efficiency Distributions'!$E$10,MATCH($C197,'Efficiency Distributions'!$C$9:$C$87,0)+RIGHT($E202),0))\n/SUM(K$10:K$11)","v":0},{"$f":"IF(INDEX(PC_MAPPING,RIGHT($C197,1),MATCH($E$2,'Data by Building Type'!$D$22:$F$22,0))=\"Yes\",1,0)*\n(L$10*OFFSET('Efficiency Distributions'!$D$10,MATCH($C197,'Efficiency Distributions'!$C$9:$C$87,0)+RIGHT($E202),0)\n+L$11*OFFSET('Efficiency Distributions'!$E$10,MATCH($C197,'Efficiency Distributions'!$C$9:$C$87,0)+RIGHT($E202),0))\n/SUM(L$10:L$11)","v":0},{"$f":"IF(INDEX(PC_MAPPING,RIGHT($C197,1),MATCH($E$2,'Data by Building Type'!$D$22:$F$22,0))=\"Yes\",1,0)*\n(M$10*OFFSET('Efficiency Distributions'!$D$10,MATCH($C197,'Efficiency Distributions'!$C$9:$C$87,0)+RIGHT($E202),0)\n+M$11*OFFSET('Efficiency Distributions'!$E$10,MATCH($C197,'Efficiency Distributions'!$C$9:$C$87,0)+RIGHT($E202),0))\n/SUM(M$10:M$11)","v":0},{"$f":"IF(INDEX(PC_MAPPING,RIGHT($C197,1),MATCH($E$2,'Data by Building Type'!$D$22:$F$22,0))=\"Yes\",1,0)*\n(N$10*OFFSET('Efficiency Distributions'!$D$10,MATCH($C197,'Efficiency Distributions'!$C$9:$C$87,0)+RIGHT($E202),0)\n+N$11*OFFSET('Efficiency Distributions'!$E$10,MATCH($C197,'Efficiency Distributions'!$C$9:$C$87,0)+RIGHT($E202),0))\n/SUM(N$10:N$11)","v":0},{"$f":"IF(INDEX(PC_MAPPING,RIGHT($C197,1),MATCH($E$2,'Data by Building Type'!$D$22:$F$22,0))=\"Yes\",1,0)*\n(O$10*OFFSET('Efficiency Distributions'!$D$10,MATCH($C197,'Efficiency Distributions'!$C$9:$C$87,0)+RIGHT($E202),0)\n+O$11*OFFSET('Efficiency Distributions'!$E$10,MATCH($C197,'Efficiency Distributions'!$C$9:$C$87,0)+RIGHT($E202),0))\n/SUM(O$10:O$11)","v":0},{"$f":"IF(INDEX(PC_MAPPING,RIGHT($C197,1),MATCH($E$2,'Data by Building Type'!$D$22:$F$22,0))=\"Yes\",1,0)*\n(P$10*OFFSET('Efficiency Distributions'!$D$10,MATCH($C197,'Efficiency Distributions'!$C$9:$C$87,0)+RIGHT($E202),0)\n+P$11*OFFSET('Efficiency Distributions'!$E$10,MATCH($C197,'Efficiency Distributions'!$C$9:$C$87,0)+RIGHT($E202),0))\n/SUM(P$10:P$11)","v":0},{"$f":"IF(INDEX(PC_MAPPING,RIGHT($C197,1),MATCH($E$2,'Data by Building Type'!$D$22:$F$22,0))=\"Yes\",1,0)*\n(Q$10*OFFSET('Efficiency Distributions'!$D$10,MATCH($C197,'Efficiency Distributions'!$C$9:$C$87,0)+RIGHT($E202),0)\n+Q$11*OFFSET('Efficiency Distributions'!$E$10,MATCH($C197,'Efficiency Distributions'!$C$9:$C$87,0)+RIGHT($E202),0))\n/SUM(Q$10:Q$11)","v":0},{"$f":"IF(INDEX(PC_MAPPING,RIGHT($C197,1),MATCH($E$2,'Data by Building Type'!$D$22:$F$22,0))=\"Yes\",1,0)*\n(R$10*OFFSET('Efficiency Distributions'!$D$10,MATCH($C197,'Efficiency Distributions'!$C$9:$C$87,0)+RIGHT($E202),0)\n+R$11*OFFSET('Efficiency Distributions'!$E$10,MATCH($C197,'Efficiency Distributions'!$C$9:$C$87,0)+RIGHT($E202),0))\n/SUM(R$10:R$11)","v":0},{"$f":"IF(INDEX(PC_MAPPING,RIGHT($C197,1),MATCH($E$2,'Data by Building Type'!$D$22:$F$22,0))=\"Yes\",1,0)*\n(S$10*OFFSET('Efficiency Distributions'!$D$10,MATCH($C197,'Efficiency Distributions'!$C$9:$C$87,0)+RIGHT($E202),0)\n+S$11*OFFSET('Efficiency Distributions'!$E$10,MATCH($C197,'Efficiency Distributions'!$C$9:$C$87,0)+RIGHT($E202),0))\n/SUM(S$10:S$11)","v":0},{"$f":"IF(INDEX(PC_MAPPING,RIGHT($C197,1),MATCH($E$2,'Data by Building Type'!$D$22:$F$22,0))=\"Yes\",1,0)*\n(T$10*OFFSET('Efficiency Distributions'!$D$10,MATCH($C197,'Efficiency Distributions'!$C$9:$C$87,0)+RIGHT($E202),0)\n+T$11*OFFSET('Efficiency Distributions'!$E$10,MATCH($C197,'Efficiency Distributions'!$C$9:$C$87,0)+RIGHT($E202),0))\n/SUM(T$10:T$11)","v":0},{"$f":"IF(INDEX(PC_MAPPING,RIGHT($C197,1),MATCH($E$2,'Data by Building Type'!$D$22:$F$22,0))=\"Yes\",1,0)*\n(U$10*OFFSET('Efficiency Distributions'!$D$10,MATCH($C197,'Efficiency Distributions'!$C$9:$C$87,0)+RIGHT($E202),0)\n+U$11*OFFSET('Efficiency Distributions'!$E$10,MATCH($C197,'Efficiency Distributions'!$C$9:$C$87,0)+RIGHT($E202),0))\n/SUM(U$10:U$11)","v":0},{"$f":"IF(INDEX(PC_MAPPING,RIGHT($C197,1),MATCH($E$2,'Data by Building Type'!$D$22:$F$22,0))=\"Yes\",1,0)*\n(V$10*OFFSET('Efficiency Distributions'!$D$10,MATCH($C197,'Efficiency Distributions'!$C$9:$C$87,0)+RIGHT($E202),0)\n+V$11*OFFSET('Efficiency Distributions'!$E$10,MATCH($C197,'Efficiency Distributions'!$C$9:$C$87,0)+RIGHT($E202),0))\n/SUM(V$10:V$11)","v":0},{"$f":"IF(INDEX(PC_MAPPING,RIGHT($C197,1),MATCH($E$2,'Data by Building Type'!$D$22:$F$22,0))=\"Yes\",1,0)*\n(W$10*OFFSET('Efficiency Distributions'!$D$10,MATCH($C197,'Efficiency Distributions'!$C$9:$C$87,0)+RIGHT($E202),0)\n+W$11*OFFSET('Efficiency Distributions'!$E$10,MATCH($C197,'Efficiency Distributions'!$C$9:$C$87,0)+RIGHT($E202),0))\n/SUM(W$10:W$11)","v":0},{"$f":"IF(INDEX(PC_MAPPING,RIGHT($C197,1),MATCH($E$2,'Data by Building Type'!$D$22:$F$22,0))=\"Yes\",1,0)*\n(X$10*OFFSET('Efficiency Distributions'!$D$10,MATCH($C197,'Efficiency Distributions'!$C$9:$C$87,0)+RIGHT($E202),0)\n+X$11*OFFSET('Efficiency Distributions'!$E$10,MATCH($C197,'Efficiency Distributions'!$C$9:$C$87,0)+RIGHT($E202),0))\n/SUM(X$10:X$11)","v":0},{"$f":"IF(INDEX(PC_MAPPING,RIGHT($C197,1),MATCH($E$2,'Data by Building Type'!$D$22:$F$22,0))=\"Yes\",1,0)*\n(Y$10*OFFSET('Efficiency Distributions'!$D$10,MATCH($C197,'Efficiency Distributions'!$C$9:$C$87,0)+RIGHT($E202),0)\n+Y$11*OFFSET('Efficiency Distributions'!$E$10,MATCH($C197,'Efficiency Distributions'!$C$9:$C$87,0)+RIGHT($E202),0))\n/SUM(Y$10:Y$11)","v":0},{"$f":"IF(INDEX(PC_MAPPING,RIGHT($C197,1),MATCH($E$2,'Data by Building Type'!$D$22:$F$22,0))=\"Yes\",1,0)*\n(Z$10*OFFSET('Efficiency Distributions'!$D$10,MATCH($C197,'Efficiency Distributions'!$C$9:$C$87,0)+RIGHT($E202),0)\n+Z$11*OFFSET('Efficiency Distributions'!$E$10,MATCH($C197,'Efficiency Distributions'!$C$9:$C$87,0)+RIGHT($E202),0))\n/SUM(Z$10:Z$11)","v":0},{"$f":"IF(INDEX(PC_MAPPING,RIGHT($C197,1),MATCH($E$2,'Data by Building Type'!$D$22:$F$22,0))=\"Yes\",1,0)*\n(AA$10*OFFSET('Efficiency Distributions'!$D$10,MATCH($C197,'Efficiency Distributions'!$C$9:$C$87,0)+RIGHT($E202),0)\n+AA$11*OFFSET('Efficiency Distributions'!$E$10,MATCH($C197,'Efficiency Distributions'!$C$9:$C$87,0)+RIGHT($E202),0))\n/SUM(AA$10:AA$11)","v":0},{"$f":"IF(INDEX(PC_MAPPING,RIGHT($C197,1),MATCH($E$2,'Data by Building Type'!$D$22:$F$22,0))=\"Yes\",1,0)*\n(AB$10*OFFSET('Efficiency Distributions'!$D$10,MATCH($C197,'Efficiency Distributions'!$C$9:$C$87,0)+RIGHT($E202),0)\n+AB$11*OFFSET('Efficiency Distributions'!$E$10,MATCH($C197,'Efficiency Distributions'!$C$9:$C$87,0)+RIGHT($E202),0))\n/SUM(AB$10:AB$11)","v":0},{"$f":"IF(INDEX(PC_MAPPING,RIGHT($C197,1),MATCH($E$2,'Data by Building Type'!$D$22:$F$22,0))=\"Yes\",1,0)*\n(AC$10*OFFSET('Efficiency Distributions'!$D$10,MATCH($C197,'Efficiency Distributions'!$C$9:$C$87,0)+RIGHT($E202),0)\n+AC$11*OFFSET('Efficiency Distributions'!$E$10,MATCH($C197,'Efficiency Distributions'!$C$9:$C$87,0)+RIGHT($E202),0))\n/SUM(AC$10:AC$11)","v":0},{"$f":"IF(INDEX(PC_MAPPING,RIGHT($C197,1),MATCH($E$2,'Data by Building Type'!$D$22:$F$22,0))=\"Yes\",1,0)*\n(AD$10*OFFSET('Efficiency Distributions'!$D$10,MATCH($C197,'Efficiency Distributions'!$C$9:$C$87,0)+RIGHT($E202),0)\n+AD$11*OFFSET('Efficiency Distributions'!$E$10,MATCH($C197,'Efficiency Distributions'!$C$9:$C$87,0)+RIGHT($E202),0))\n/SUM(AD$10:AD$11)","v":0},{"$f":"IF(INDEX(PC_MAPPING,RIGHT($C197,1),MATCH($E$2,'Data by Building Type'!$D$22:$F$22,0))=\"Yes\",1,0)*\n(AE$10*OFFSET('Efficiency Distributions'!$D$10,MATCH($C197,'Efficiency Distributions'!$C$9:$C$87,0)+RIGHT($E202),0)\n+AE$11*OFFSET('Efficiency Distributions'!$E$10,MATCH($C197,'Efficiency Distributions'!$C$9:$C$87,0)+RIGHT($E202),0))\n/SUM(AE$10:AE$11)","v":0},{"$f":"IF(INDEX(PC_MAPPING,RIGHT($C197,1),MATCH($E$2,'Data by Building Type'!$D$22:$F$22,0))=\"Yes\",1,0)*\n(AF$10*OFFSET('Efficiency Distributions'!$D$10,MATCH($C197,'Efficiency Distributions'!$C$9:$C$87,0)+RIGHT($E202),0)\n+AF$11*OFFSET('Efficiency Distributions'!$E$10,MATCH($C197,'Efficiency Distributions'!$C$9:$C$87,0)+RIGHT($E202),0))\n/SUM(AF$10:AF$11)","v":0},{"$f":"IF(INDEX(PC_MAPPING,RIGHT($C197,1),MATCH($E$2,'Data by Building Type'!$D$22:$F$22,0))=\"Yes\",1,0)*\n(AG$10*OFFSET('Efficiency Distributions'!$D$10,MATCH($C197,'Efficiency Distributions'!$C$9:$C$87,0)+RIGHT($E202),0)\n+AG$11*OFFSET('Efficiency Distributions'!$E$10,MATCH($C197,'Efficiency Distributions'!$C$9:$C$87,0)+RIGHT($E202),0))\n/SUM(AG$10:AG$11)","v":0},{"$f":"IF(INDEX(PC_MAPPING,RIGHT($C197,1),MATCH($E$2,'Data by Building Type'!$D$22:$F$22,0))=\"Yes\",1,0)*\n(AH$10*OFFSET('Efficiency Distributions'!$D$10,MATCH($C197,'Efficiency Distributions'!$C$9:$C$87,0)+RIGHT($E202),0)\n+AH$11*OFFSET('Efficiency Distributions'!$E$10,MATCH($C197,'Efficiency Distributions'!$C$9:$C$87,0)+RIGHT($E202),0))\n/SUM(AH$10:AH$11)","v":0},{"$f":"IF(INDEX(PC_MAPPING,RIGHT($C197,1),MATCH($E$2,'Data by Building Type'!$D$22:$F$22,0))=\"Yes\",1,0)*\n(AI$10*OFFSET('Efficiency Distributions'!$D$10,MATCH($C197,'Efficiency Distributions'!$C$9:$C$87,0)+RIGHT($E202),0)\n+AI$11*OFFSET('Efficiency Distributions'!$E$10,MATCH($C197,'Efficiency Distributions'!$C$9:$C$87,0)+RIGHT($E202),0))\n/SUM(AI$10:AI$11)","v":0},{"$f":"IF(INDEX(PC_MAPPING,RIGHT($C197,1),MATCH($E$2,'Data by Building Type'!$D$22:$F$22,0))=\"Yes\",1,0)*\n(AJ$10*OFFSET('Efficiency Distributions'!$D$10,MATCH($C197,'Efficiency Distributions'!$C$9:$C$87,0)+RIGHT($E202),0)\n+AJ$11*OFFSET('Efficiency Distributions'!$E$10,MATCH($C197,'Efficiency Distributions'!$C$9:$C$87,0)+RIGHT($E202),0))\n/SUM(AJ$10:AJ$11)","v":0},{"$f":"IF(INDEX(PC_MAPPING,RIGHT($C197,1),MATCH($E$2,'Data by Building Type'!$D$22:$F$22,0))=\"Yes\",1,0)*\n(AK$10*OFFSET('Efficiency Distributions'!$D$10,MATCH($C197,'Efficiency Distributions'!$C$9:$C$87,0)+RIGHT($E202),0)\n+AK$11*OFFSET('Efficiency Distributions'!$E$10,MATCH($C197,'Efficiency Distributions'!$C$9:$C$87,0)+RIGHT($E202),0))\n/SUM(AK$10:AK$11)","v":0},{"$f":"IF(INDEX(PC_MAPPING,RIGHT($C197,1),MATCH($E$2,'Data by Building Type'!$D$22:$F$22,0))=\"Yes\",1,0)*\n(AL$10*OFFSET('Efficiency Distributions'!$D$10,MATCH($C197,'Efficiency Distributions'!$C$9:$C$87,0)+RIGHT($E202),0)\n+AL$11*OFFSET('Efficiency Distributions'!$E$10,MATCH($C197,'Efficiency Distributions'!$C$9:$C$87,0)+RIGHT($E202),0))\n/SUM(AL$10:AL$11)","v":0},{"$f":"IF(INDEX(PC_MAPPING,RIGHT($C197,1),MATCH($E$2,'Data by Building Type'!$D$22:$F$22,0))=\"Yes\",1,0)*\n(AM$10*OFFSET('Efficiency Distributions'!$D$10,MATCH($C197,'Efficiency Distributions'!$C$9:$C$87,0)+RIGHT($E202),0)\n+AM$11*OFFSET('Efficiency Distributions'!$E$10,MATCH($C197,'Efficiency Distributions'!$C$9:$C$87,0)+RIGHT($E202),0))\n/SUM(AM$10:AM$11)","v":0},{"$f":"IF(INDEX(PC_MAPPING,RIGHT($C197,1),MATCH($E$2,'Data by Building Type'!$D$22:$F$22,0))=\"Yes\",1,0)*\n(AN$10*OFFSET('Efficiency Distributions'!$D$10,MATCH($C197,'Efficiency Distributions'!$C$9:$C$87,0)+RIGHT($E202),0)\n+AN$11*OFFSET('Efficiency Distributions'!$E$10,MATCH($C197,'Efficiency Distributions'!$C$9:$C$87,0)+RIGHT($E202),0))\n/SUM(AN$10:AN$11)","v":0},{"$f":"IF(INDEX(PC_MAPPING,RIGHT($C197,1),MATCH($E$2,'Data by Building Type'!$D$22:$F$22,0))=\"Yes\",1,0)*\n(AO$10*OFFSET('Efficiency Distributions'!$D$10,MATCH($C197,'Efficiency Distributions'!$C$9:$C$87,0)+RIGHT($E202),0)\n+AO$11*OFFSET('Efficiency Distributions'!$E$10,MATCH($C197,'Efficiency Distributions'!$C$9:$C$87,0)+RIGHT($E202),0))\n/SUM(AO$10:AO$11)","v":0},{"$f":"IF(INDEX(PC_MAPPING,RIGHT($C197,1),MATCH($E$2,'Data by Building Type'!$D$22:$F$22,0))=\"Yes\",1,0)*\n(AP$10*OFFSET('Efficiency Distributions'!$D$10,MATCH($C197,'Efficiency Distributions'!$C$9:$C$87,0)+RIGHT($E202),0)\n+AP$11*OFFSET('Efficiency Distributions'!$E$10,MATCH($C197,'Efficiency Distributions'!$C$9:$C$87,0)+RIGHT($E202),0))\n/SUM(AP$10:AP$11)","v":0},{"$f":"IF(INDEX(PC_MAPPING,RIGHT($C197,1),MATCH($E$2,'Data by Building Type'!$D$22:$F$22,0))=\"Yes\",1,0)*\n(AQ$10*OFFSET('Efficiency Distributions'!$D$10,MATCH($C197,'Efficiency Distributions'!$C$9:$C$87,0)+RIGHT($E202),0)\n+AQ$11*OFFSET('Efficiency Distributions'!$E$10,MATCH($C197,'Efficiency Distributions'!$C$9:$C$87,0)+RIGHT($E202),0))\n/SUM(AQ$10:AQ$11)","v":0},{"$f":"IF(INDEX(PC_MAPPING,RIGHT($C197,1),MATCH($E$2,'Data by Building Type'!$D$22:$F$22,0))=\"Yes\",1,0)*\n(AR$10*OFFSET('Efficiency Distributions'!$D$10,MATCH($C197,'Efficiency Distributions'!$C$9:$C$87,0)+RIGHT($E202),0)\n+AR$11*OFFSET('Efficiency Distributions'!$E$10,MATCH($C197,'Efficiency Distributions'!$C$9:$C$87,0)+RIGHT($E202),0))\n/SUM(AR$10:AR$11)","v":0},{"$f":"IF(INDEX(PC_MAPPING,RIGHT($C197,1),MATCH($E$2,'Data by Building Type'!$D$22:$F$22,0))=\"Yes\",1,0)*\n(AS$10*OFFSET('Efficiency Distributions'!$D$10,MATCH($C197,'Efficiency Distributions'!$C$9:$C$87,0)+RIGHT($E202),0)\n+AS$11*OFFSET('Efficiency Distributions'!$E$10,MATCH($C197,'Efficiency Distributions'!$C$9:$C$87,0)+RIGHT($E202),0))\n/SUM(AS$10:AS$11)","v":0},{"$f":"IF(INDEX(PC_MAPPING,RIGHT($C197,1),MATCH($E$2,'Data by Building Type'!$D$22:$F$22,0))=\"Yes\",1,0)*\n(AT$10*OFFSET('Efficiency Distributions'!$D$10,MATCH($C197,'Efficiency Distributions'!$C$9:$C$87,0)+RIGHT($E202),0)\n+AT$11*OFFSET('Efficiency Distributions'!$E$10,MATCH($C197,'Efficiency Distributions'!$C$9:$C$87,0)+RIGHT($E202),0))\n/SUM(AT$10:AT$11)","v":0},{"$f":"IF(INDEX(PC_MAPPING,RIGHT($C197,1),MATCH($E$2,'Data by Building Type'!$D$22:$F$22,0))=\"Yes\",1,0)*\n(AU$10*OFFSET('Efficiency Distributions'!$D$10,MATCH($C197,'Efficiency Distributions'!$C$9:$C$87,0)+RIGHT($E202),0)\n+AU$11*OFFSET('Efficiency Distributions'!$E$10,MATCH($C197,'Efficiency Distributions'!$C$9:$C$87,0)+RIGHT($E202),0))\n/SUM(AU$10:AU$11)","v":0},{"$f":"IF(INDEX(PC_MAPPING,RIGHT($C197,1),MATCH($E$2,'Data by Building Type'!$D$22:$F$22,0))=\"Yes\",1,0)*\n(AV$10*OFFSET('Efficiency Distributions'!$D$10,MATCH($C197,'Efficiency Distributions'!$C$9:$C$87,0)+RIGHT($E202),0)\n+AV$11*OFFSET('Efficiency Distributions'!$E$10,MATCH($C197,'Efficiency Distributions'!$C$9:$C$87,0)+RIGHT($E202),0))\n/SUM(AV$10:AV$11)","v":0},{"$f":"IF(INDEX(PC_MAPPING,RIGHT($C197,1),MATCH($E$2,'Data by Building Type'!$D$22:$F$22,0))=\"Yes\",1,0)*\n(AW$10*OFFSET('Efficiency Distributions'!$D$10,MATCH($C197,'Efficiency Distributions'!$C$9:$C$87,0)+RIGHT($E202),0)\n+AW$11*OFFSET('Efficiency Distributions'!$E$10,MATCH($C197,'Efficiency Distributions'!$C$9:$C$87,0)+RIGHT($E202),0))\n/SUM(AW$10:AW$11)","v":0},{"$f":"IF(INDEX(PC_MAPPING,RIGHT($C197,1),MATCH($E$2,'Data by Building Type'!$D$22:$F$22,0))=\"Yes\",1,0)*\n(AX$10*OFFSET('Efficiency Distributions'!$D$10,MATCH($C197,'Efficiency Distributions'!$C$9:$C$87,0)+RIGHT($E202),0)\n+AX$11*OFFSET('Efficiency Distributions'!$E$10,MATCH($C197,'Efficiency Distributions'!$C$9:$C$87,0)+RIGHT($E202),0))\n/SUM(AX$10:AX$11)","v":0},{"$f":"IF(INDEX(PC_MAPPING,RIGHT($C197,1),MATCH($E$2,'Data by Building Type'!$D$22:$F$22,0))=\"Yes\",1,0)*\n(AY$10*OFFSET('Efficiency Distributions'!$D$10,MATCH($C197,'Efficiency Distributions'!$C$9:$C$87,0)+RIGHT($E202),0)\n+AY$11*OFFSET('Efficiency Distributions'!$E$10,MATCH($C197,'Efficiency Distributions'!$C$9:$C$87,0)+RIGHT($E202),0))\n/SUM(AY$10:AY$11)","v":0},{"$f":"IF(INDEX(PC_MAPPING,RIGHT($C197,1),MATCH($E$2,'Data by Building Type'!$D$22:$F$22,0))=\"Yes\",1,0)*\n(AZ$10*OFFSET('Efficiency Distributions'!$D$10,MATCH($C197,'Efficiency Distributions'!$C$9:$C$87,0)+RIGHT($E202),0)\n+AZ$11*OFFSET('Efficiency Distributions'!$E$10,MATCH($C197,'Efficiency Distributions'!$C$9:$C$87,0)+RIGHT($E202),0))\n/SUM(AZ$10:AZ$11)","v":0},{"$f":"IF(INDEX(PC_MAPPING,RIGHT($C197,1),MATCH($E$2,'Data by Building Type'!$D$22:$F$22,0))=\"Yes\",1,0)*\n(BA$10*OFFSET('Efficiency Distributions'!$D$10,MATCH($C197,'Efficiency Distributions'!$C$9:$C$87,0)+RIGHT($E202),0)\n+BA$11*OFFSET('Efficiency Distributions'!$E$10,MATCH($C197,'Efficiency Distributions'!$C$9:$C$87,0)+RIGHT($E202),0))\n/SUM(BA$10:BA$11)","v":0},{"$f":"IF(INDEX(PC_MAPPING,RIGHT($C197,1),MATCH($E$2,'Data by Building Type'!$D$22:$F$22,0))=\"Yes\",1,0)*\n(BB$10*OFFSET('Efficiency Distributions'!$D$10,MATCH($C197,'Efficiency Distributions'!$C$9:$C$87,0)+RIGHT($E202),0)\n+BB$11*OFFSET('Efficiency Distributions'!$E$10,MATCH($C197,'Efficiency Distributions'!$C$9:$C$87,0)+RIGHT($E202),0))\n/SUM(BB$10:BB$11)","v":0},{"$f":"IF(INDEX(PC_MAPPING,RIGHT($C197,1),MATCH($E$2,'Data by Building Type'!$D$22:$F$22,0))=\"Yes\",1,0)*\n(BC$10*OFFSET('Efficiency Distributions'!$D$10,MATCH($C197,'Efficiency Distributions'!$C$9:$C$87,0)+RIGHT($E202),0)\n+BC$11*OFFSET('Efficiency Distributions'!$E$10,MATCH($C197,'Efficiency Distributions'!$C$9:$C$87,0)+RIGHT($E202),0))\n/SUM(BC$10:BC$11)","v":0},{"$f":"IF(INDEX(PC_MAPPING,RIGHT($C197,1),MATCH($E$2,'Data by Building Type'!$D$22:$F$22,0))=\"Yes\",1,0)*\n(BD$10*OFFSET('Efficiency Distributions'!$D$10,MATCH($C197,'Efficiency Distributions'!$C$9:$C$87,0)+RIGHT($E202),0)\n+BD$11*OFFSET('Efficiency Distributions'!$E$10,MATCH($C197,'Efficiency Distributions'!$C$9:$C$87,0)+RIGHT($E202),0))\n/SUM(BD$10:BD$11)","v":0},{"$f":"IF(INDEX(PC_MAPPING,RIGHT($C197,1),MATCH($E$2,'Data by Building Type'!$D$22:$F$22,0))=\"Yes\",1,0)*\n(BE$10*OFFSET('Efficiency Distributions'!$D$10,MATCH($C197,'Efficiency Distributions'!$C$9:$C$87,0)+RIGHT($E202),0)\n+BE$11*OFFSET('Efficiency Distributions'!$E$10,MATCH($C197,'Efficiency Distributions'!$C$9:$C$87,0)+RIGHT($E202),0))\n/SUM(BE$10:BE$11)","v":0},{"$f":"IF(INDEX(PC_MAPPING,RIGHT($C197,1),MATCH($E$2,'Data by Building Type'!$D$22:$F$22,0))=\"Yes\",1,0)*\n(BF$10*OFFSET('Efficiency Distributions'!$D$10,MATCH($C197,'Efficiency Distributions'!$C$9:$C$87,0)+RIGHT($E202),0)\n+BF$11*OFFSET('Efficiency Distributions'!$E$10,MATCH($C197,'Efficiency Distributions'!$C$9:$C$87,0)+RIGHT($E202),0))\n/SUM(BF$10:BF$11)","v":0},{"$f":"IF(INDEX(PC_MAPPING,RIGHT($C197,1),MATCH($E$2,'Data by Building Type'!$D$22:$F$22,0))=\"Yes\",1,0)*\n(BG$10*OFFSET('Efficiency Distributions'!$D$10,MATCH($C197,'Efficiency Distributions'!$C$9:$C$87,0)+RIGHT($E202),0)\n+BG$11*OFFSET('Efficiency Distributions'!$E$10,MATCH($C197,'Efficiency Distributions'!$C$9:$C$87,0)+RIGHT($E202),0))\n/SUM(BG$10:BG$11)","v":0}]
[null,null,null,null,"EL2",{"$f":"IF(INDEX(PC_MAPPING,RIGHT($C197,1),MATCH($E$2,'Data by Building Type'!$D$22:$F$22,0))=\"Yes\",1,0)*\n(F$10*OFFSET('Efficiency Distributions'!$D$10,MATCH($C197,'Efficiency Distributions'!$C$9:$C$87,0)+RIGHT($E203),0)\n+F$11*OFFSET('Efficiency Distributions'!$E$10,MATCH($C197,'Efficiency Distributions'!$C$9:$C$87,0)+RIGHT($E203),0))\n/SUM(F$10:F$11)","v":0},{"$f":"IF(INDEX(PC_MAPPING,RIGHT($C197,1),MATCH($E$2,'Data by Building Type'!$D$22:$F$22,0))=\"Yes\",1,0)*\n(G$10*OFFSET('Efficiency Distributions'!$D$10,MATCH($C197,'Efficiency Distributions'!$C$9:$C$87,0)+RIGHT($E203),0)\n+G$11*OFFSET('Efficiency Distributions'!$E$10,MATCH($C197,'Efficiency Distributions'!$C$9:$C$87,0)+RIGHT($E203),0))\n/SUM(G$10:G$11)","v":0},{"$f":"IF(INDEX(PC_MAPPING,RIGHT($C197,1),MATCH($E$2,'Data by Building Type'!$D$22:$F$22,0))=\"Yes\",1,0)*\n(H$10*OFFSET('Efficiency Distributions'!$D$10,MATCH($C197,'Efficiency Distributions'!$C$9:$C$87,0)+RIGHT($E203),0)\n+H$11*OFFSET('Efficiency Distributions'!$E$10,MATCH($C197,'Efficiency Distributions'!$C$9:$C$87,0)+RIGHT($E203),0))\n/SUM(H$10:H$11)","v":0},{"$f":"IF(INDEX(PC_MAPPING,RIGHT($C197,1),MATCH($E$2,'Data by Building Type'!$D$22:$F$22,0))=\"Yes\",1,0)*\n(I$10*OFFSET('Efficiency Distributions'!$D$10,MATCH($C197,'Efficiency Distributions'!$C$9:$C$87,0)+RIGHT($E203),0)\n+I$11*OFFSET('Efficiency Distributions'!$E$10,MATCH($C197,'Efficiency Distributions'!$C$9:$C$87,0)+RIGHT($E203),0))\n/SUM(I$10:I$11)","v":0},{"$f":"IF(INDEX(PC_MAPPING,RIGHT($C197,1),MATCH($E$2,'Data by Building Type'!$D$22:$F$22,0))=\"Yes\",1,0)*\n(J$10*OFFSET('Efficiency Distributions'!$D$10,MATCH($C197,'Efficiency Distributions'!$C$9:$C$87,0)+RIGHT($E203),0)\n+J$11*OFFSET('Efficiency Distributions'!$E$10,MATCH($C197,'Efficiency Distributions'!$C$9:$C$87,0)+RIGHT($E203),0))\n/SUM(J$10:J$11)","v":0},{"$f":"IF(INDEX(PC_MAPPING,RIGHT($C197,1),MATCH($E$2,'Data by Building Type'!$D$22:$F$22,0))=\"Yes\",1,0)*\n(K$10*OFFSET('Efficiency Distributions'!$D$10,MATCH($C197,'Efficiency Distributions'!$C$9:$C$87,0)+RIGHT($E203),0)\n+K$11*OFFSET('Efficiency Distributions'!$E$10,MATCH($C197,'Efficiency Distributions'!$C$9:$C$87,0)+RIGHT($E203),0))\n/SUM(K$10:K$11)","v":0},{"$f":"IF(INDEX(PC_MAPPING,RIGHT($C197,1),MATCH($E$2,'Data by Building Type'!$D$22:$F$22,0))=\"Yes\",1,0)*\n(L$10*OFFSET('Efficiency Distributions'!$D$10,MATCH($C197,'Efficiency Distributions'!$C$9:$C$87,0)+RIGHT($E203),0)\n+L$11*OFFSET('Efficiency Distributions'!$E$10,MATCH($C197,'Efficiency Distributions'!$C$9:$C$87,0)+RIGHT($E203),0))\n/SUM(L$10:L$11)","v":0},{"$f":"IF(INDEX(PC_MAPPING,RIGHT($C197,1),MATCH($E$2,'Data by Building Type'!$D$22:$F$22,0))=\"Yes\",1,0)*\n(M$10*OFFSET('Efficiency Distributions'!$D$10,MATCH($C197,'Efficiency Distributions'!$C$9:$C$87,0)+RIGHT($E203),0)\n+M$11*OFFSET('Efficiency Distributions'!$E$10,MATCH($C197,'Efficiency Distributions'!$C$9:$C$87,0)+RIGHT($E203),0))\n/SUM(M$10:M$11)","v":0},{"$f":"IF(INDEX(PC_MAPPING,RIGHT($C197,1),MATCH($E$2,'Data by Building Type'!$D$22:$F$22,0))=\"Yes\",1,0)*\n(N$10*OFFSET('Efficiency Distributions'!$D$10,MATCH($C197,'Efficiency Distributions'!$C$9:$C$87,0)+RIGHT($E203),0)\n+N$11*OFFSET('Efficiency Distributions'!$E$10,MATCH($C197,'Efficiency Distributions'!$C$9:$C$87,0)+RIGHT($E203),0))\n/SUM(N$10:N$11)","v":0},{"$f":"IF(INDEX(PC_MAPPING,RIGHT($C197,1),MATCH($E$2,'Data by Building Type'!$D$22:$F$22,0))=\"Yes\",1,0)*\n(O$10*OFFSET('Efficiency Distributions'!$D$10,MATCH($C197,'Efficiency Distributions'!$C$9:$C$87,0)+RIGHT($E203),0)\n+O$11*OFFSET('Efficiency Distributions'!$E$10,MATCH($C197,'Efficiency Distributions'!$C$9:$C$87,0)+RIGHT($E203),0))\n/SUM(O$10:O$11)","v":0},{"$f":"IF(INDEX(PC_MAPPING,RIGHT($C197,1),MATCH($E$2,'Data by Building Type'!$D$22:$F$22,0))=\"Yes\",1,0)*\n(P$10*OFFSET('Efficiency Distributions'!$D$10,MATCH($C197,'Efficiency Distributions'!$C$9:$C$87,0)+RIGHT($E203),0)\n+P$11*OFFSET('Efficiency Distributions'!$E$10,MATCH($C197,'Efficiency Distributions'!$C$9:$C$87,0)+RIGHT($E203),0))\n/SUM(P$10:P$11)","v":0},{"$f":"IF(INDEX(PC_MAPPING,RIGHT($C197,1),MATCH($E$2,'Data by Building Type'!$D$22:$F$22,0))=\"Yes\",1,0)*\n(Q$10*OFFSET('Efficiency Distributions'!$D$10,MATCH($C197,'Efficiency Distributions'!$C$9:$C$87,0)+RIGHT($E203),0)\n+Q$11*OFFSET('Efficiency Distributions'!$E$10,MATCH($C197,'Efficiency Distributions'!$C$9:$C$87,0)+RIGHT($E203),0))\n/SUM(Q$10:Q$11)","v":0},{"$f":"IF(INDEX(PC_MAPPING,RIGHT($C197,1),MATCH($E$2,'Data by Building Type'!$D$22:$F$22,0))=\"Yes\",1,0)*\n(R$10*OFFSET('Efficiency Distributions'!$D$10,MATCH($C197,'Efficiency Distributions'!$C$9:$C$87,0)+RIGHT($E203),0)\n+R$11*OFFSET('Efficiency Distributions'!$E$10,MATCH($C197,'Efficiency Distributions'!$C$9:$C$87,0)+RIGHT($E203),0))\n/SUM(R$10:R$11)","v":0},{"$f":"IF(INDEX(PC_MAPPING,RIGHT($C197,1),MATCH($E$2,'Data by Building Type'!$D$22:$F$22,0))=\"Yes\",1,0)*\n(S$10*OFFSET('Efficiency Distributions'!$D$10,MATCH($C197,'Efficiency Distributions'!$C$9:$C$87,0)+RIGHT($E203),0)\n+S$11*OFFSET('Efficiency Distributions'!$E$10,MATCH($C197,'Efficiency Distributions'!$C$9:$C$87,0)+RIGHT($E203),0))\n/SUM(S$10:S$11)","v":0},{"$f":"IF(INDEX(PC_MAPPING,RIGHT($C197,1),MATCH($E$2,'Data by Building Type'!$D$22:$F$22,0))=\"Yes\",1,0)*\n(T$10*OFFSET('Efficiency Distributions'!$D$10,MATCH($C197,'Efficiency Distributions'!$C$9:$C$87,0)+RIGHT($E203),0)\n+T$11*OFFSET('Efficiency Distributions'!$E$10,MATCH($C197,'Efficiency Distributions'!$C$9:$C$87,0)+RIGHT($E203),0))\n/SUM(T$10:T$11)","v":0},{"$f":"IF(INDEX(PC_MAPPING,RIGHT($C197,1),MATCH($E$2,'Data by Building Type'!$D$22:$F$22,0))=\"Yes\",1,0)*\n(U$10*OFFSET('Efficiency Distributions'!$D$10,MATCH($C197,'Efficiency Distributions'!$C$9:$C$87,0)+RIGHT($E203),0)\n+U$11*OFFSET('Efficiency Distributions'!$E$10,MATCH($C197,'Efficiency Distributions'!$C$9:$C$87,0)+RIGHT($E203),0))\n/SUM(U$10:U$11)","v":0},{"$f":"IF(INDEX(PC_MAPPING,RIGHT($C197,1),MATCH($E$2,'Data by Building Type'!$D$22:$F$22,0))=\"Yes\",1,0)*\n(V$10*OFFSET('Efficiency Distributions'!$D$10,MATCH($C197,'Efficiency Distributions'!$C$9:$C$87,0)+RIGHT($E203),0)\n+V$11*OFFSET('Efficiency Distributions'!$E$10,MATCH($C197,'Efficiency Distributions'!$C$9:$C$87,0)+RIGHT($E203),0))\n/SUM(V$10:V$11)","v":0},{"$f":"IF(INDEX(PC_MAPPING,RIGHT($C197,1),MATCH($E$2,'Data by Building Type'!$D$22:$F$22,0))=\"Yes\",1,0)*\n(W$10*OFFSET('Efficiency Distributions'!$D$10,MATCH($C197,'Efficiency Distributions'!$C$9:$C$87,0)+RIGHT($E203),0)\n+W$11*OFFSET('Efficiency Distributions'!$E$10,MATCH($C197,'Efficiency Distributions'!$C$9:$C$87,0)+RIGHT($E203),0))\n/SUM(W$10:W$11)","v":0},{"$f":"IF(INDEX(PC_MAPPING,RIGHT($C197,1),MATCH($E$2,'Data by Building Type'!$D$22:$F$22,0))=\"Yes\",1,0)*\n(X$10*OFFSET('Efficiency Distributions'!$D$10,MATCH($C197,'Efficiency Distributions'!$C$9:$C$87,0)+RIGHT($E203),0)\n+X$11*OFFSET('Efficiency Distributions'!$E$10,MATCH($C197,'Efficiency Distributions'!$C$9:$C$87,0)+RIGHT($E203),0))\n/SUM(X$10:X$11)","v":0},{"$f":"IF(INDEX(PC_MAPPING,RIGHT($C197,1),MATCH($E$2,'Data by Building Type'!$D$22:$F$22,0))=\"Yes\",1,0)*\n(Y$10*OFFSET('Efficiency Distributions'!$D$10,MATCH($C197,'Efficiency Distributions'!$C$9:$C$87,0)+RIGHT($E203),0)\n+Y$11*OFFSET('Efficiency Distributions'!$E$10,MATCH($C197,'Efficiency Distributions'!$C$9:$C$87,0)+RIGHT($E203),0))\n/SUM(Y$10:Y$11)","v":0},{"$f":"IF(INDEX(PC_MAPPING,RIGHT($C197,1),MATCH($E$2,'Data by Building Type'!$D$22:$F$22,0))=\"Yes\",1,0)*\n(Z$10*OFFSET('Efficiency Distributions'!$D$10,MATCH($C197,'Efficiency Distributions'!$C$9:$C$87,0)+RIGHT($E203),0)\n+Z$11*OFFSET('Efficiency Distributions'!$E$10,MATCH($C197,'Efficiency Distributions'!$C$9:$C$87,0)+RIGHT($E203),0))\n/SUM(Z$10:Z$11)","v":0},{"$f":"IF(INDEX(PC_MAPPING,RIGHT($C197,1),MATCH($E$2,'Data by Building Type'!$D$22:$F$22,0))=\"Yes\",1,0)*\n(AA$10*OFFSET('Efficiency Distributions'!$D$10,MATCH($C197,'Efficiency Distributions'!$C$9:$C$87,0)+RIGHT($E203),0)\n+AA$11*OFFSET('Efficiency Distributions'!$E$10,MATCH($C197,'Efficiency Distributions'!$C$9:$C$87,0)+RIGHT($E203),0))\n/SUM(AA$10:AA$11)","v":0},{"$f":"IF(INDEX(PC_MAPPING,RIGHT($C197,1),MATCH($E$2,'Data by Building Type'!$D$22:$F$22,0))=\"Yes\",1,0)*\n(AB$10*OFFSET('Efficiency Distributions'!$D$10,MATCH($C197,'Efficiency Distributions'!$C$9:$C$87,0)+RIGHT($E203),0)\n+AB$11*OFFSET('Efficiency Distributions'!$E$10,MATCH($C197,'Efficiency Distributions'!$C$9:$C$87,0)+RIGHT($E203),0))\n/SUM(AB$10:AB$11)","v":0},{"$f":"IF(INDEX(PC_MAPPING,RIGHT($C197,1),MATCH($E$2,'Data by Building Type'!$D$22:$F$22,0))=\"Yes\",1,0)*\n(AC$10*OFFSET('Efficiency Distributions'!$D$10,MATCH($C197,'Efficiency Distributions'!$C$9:$C$87,0)+RIGHT($E203),0)\n+AC$11*OFFSET('Efficiency Distributions'!$E$10,MATCH($C197,'Efficiency Distributions'!$C$9:$C$87,0)+RIGHT($E203),0))\n/SUM(AC$10:AC$11)","v":0},{"$f":"IF(INDEX(PC_MAPPING,RIGHT($C197,1),MATCH($E$2,'Data by Building Type'!$D$22:$F$22,0))=\"Yes\",1,0)*\n(AD$10*OFFSET('Efficiency Distributions'!$D$10,MATCH($C197,'Efficiency Distributions'!$C$9:$C$87,0)+RIGHT($E203),0)\n+AD$11*OFFSET('Efficiency Distributions'!$E$10,MATCH($C197,'Efficiency Distributions'!$C$9:$C$87,0)+RIGHT($E203),0))\n/SUM(AD$10:AD$11)","v":0},{"$f":"IF(INDEX(PC_MAPPING,RIGHT($C197,1),MATCH($E$2,'Data by Building Type'!$D$22:$F$22,0))=\"Yes\",1,0)*\n(AE$10*OFFSET('Efficiency Distributions'!$D$10,MATCH($C197,'Efficiency Distributions'!$C$9:$C$87,0)+RIGHT($E203),0)\n+AE$11*OFFSET('Efficiency Distributions'!$E$10,MATCH($C197,'Efficiency Distributions'!$C$9:$C$87,0)+RIGHT($E203),0))\n/SUM(AE$10:AE$11)","v":0},{"$f":"IF(INDEX(PC_MAPPING,RIGHT($C197,1),MATCH($E$2,'Data by Building Type'!$D$22:$F$22,0))=\"Yes\",1,0)*\n(AF$10*OFFSET('Efficiency Distributions'!$D$10,MATCH($C197,'Efficiency Distributions'!$C$9:$C$87,0)+RIGHT($E203),0)\n+AF$11*OFFSET('Efficiency Distributions'!$E$10,MATCH($C197,'Efficiency Distributions'!$C$9:$C$87,0)+RIGHT($E203),0))\n/SUM(AF$10:AF$11)","v":0},{"$f":"IF(INDEX(PC_MAPPING,RIGHT($C197,1),MATCH($E$2,'Data by Building Type'!$D$22:$F$22,0))=\"Yes\",1,0)*\n(AG$10*OFFSET('Efficiency Distributions'!$D$10,MATCH($C197,'Efficiency Distributions'!$C$9:$C$87,0)+RIGHT($E203),0)\n+AG$11*OFFSET('Efficiency Distributions'!$E$10,MATCH($C197,'Efficiency Distributions'!$C$9:$C$87,0)+RIGHT($E203),0))\n/SUM(AG$10:AG$11)","v":0},{"$f":"IF(INDEX(PC_MAPPING,RIGHT($C197,1),MATCH($E$2,'Data by Building Type'!$D$22:$F$22,0))=\"Yes\",1,0)*\n(AH$10*OFFSET('Efficiency Distributions'!$D$10,MATCH($C197,'Efficiency Distributions'!$C$9:$C$87,0)+RIGHT($E203),0)\n+AH$11*OFFSET('Efficiency Distributions'!$E$10,MATCH($C197,'Efficiency Distributions'!$C$9:$C$87,0)+RIGHT($E203),0))\n/SUM(AH$10:AH$11)","v":0},{"$f":"IF(INDEX(PC_MAPPING,RIGHT($C197,1),MATCH($E$2,'Data by Building Type'!$D$22:$F$22,0))=\"Yes\",1,0)*\n(AI$10*OFFSET('Efficiency Distributions'!$D$10,MATCH($C197,'Efficiency Distributions'!$C$9:$C$87,0)+RIGHT($E203),0)\n+AI$11*OFFSET('Efficiency Distributions'!$E$10,MATCH($C197,'Efficiency Distributions'!$C$9:$C$87,0)+RIGHT($E203),0))\n/SUM(AI$10:AI$11)","v":0},{"$f":"IF(INDEX(PC_MAPPING,RIGHT($C197,1),MATCH($E$2,'Data by Building Type'!$D$22:$F$22,0))=\"Yes\",1,0)*\n(AJ$10*OFFSET('Efficiency Distributions'!$D$10,MATCH($C197,'Efficiency Distributions'!$C$9:$C$87,0)+RIGHT($E203),0)\n+AJ$11*OFFSET('Efficiency Distributions'!$E$10,MATCH($C197,'Efficiency Distributions'!$C$9:$C$87,0)+RIGHT($E203),0))\n/SUM(AJ$10:AJ$11)","v":0},{"$f":"IF(INDEX(PC_MAPPING,RIGHT($C197,1),MATCH($E$2,'Data by Building Type'!$D$22:$F$22,0))=\"Yes\",1,0)*\n(AK$10*OFFSET('Efficiency Distributions'!$D$10,MATCH($C197,'Efficiency Distributions'!$C$9:$C$87,0)+RIGHT($E203),0)\n+AK$11*OFFSET('Efficiency Distributions'!$E$10,MATCH($C197,'Efficiency Distributions'!$C$9:$C$87,0)+RIGHT($E203),0))\n/SUM(AK$10:AK$11)","v":0},{"$f":"IF(INDEX(PC_MAPPING,RIGHT($C197,1),MATCH($E$2,'Data by Building Type'!$D$22:$F$22,0))=\"Yes\",1,0)*\n(AL$10*OFFSET('Efficiency Distributions'!$D$10,MATCH($C197,'Efficiency Distributions'!$C$9:$C$87,0)+RIGHT($E203),0)\n+AL$11*OFFSET('Efficiency Distributions'!$E$10,MATCH($C197,'Efficiency Distributions'!$C$9:$C$87,0)+RIGHT($E203),0))\n/SUM(AL$10:AL$11)","v":0},{"$f":"IF(INDEX(PC_MAPPING,RIGHT($C197,1),MATCH($E$2,'Data by Building Type'!$D$22:$F$22,0))=\"Yes\",1,0)*\n(AM$10*OFFSET('Efficiency Distributions'!$D$10,MATCH($C197,'Efficiency Distributions'!$C$9:$C$87,0)+RIGHT($E203),0)\n+AM$11*OFFSET('Efficiency Distributions'!$E$10,MATCH($C197,'Efficiency Distributions'!$C$9:$C$87,0)+RIGHT($E203),0))\n/SUM(AM$10:AM$11)","v":0},{"$f":"IF(INDEX(PC_MAPPING,RIGHT($C197,1),MATCH($E$2,'Data by Building Type'!$D$22:$F$22,0))=\"Yes\",1,0)*\n(AN$10*OFFSET('Efficiency Distributions'!$D$10,MATCH($C197,'Efficiency Distributions'!$C$9:$C$87,0)+RIGHT($E203),0)\n+AN$11*OFFSET('Efficiency Distributions'!$E$10,MATCH($C197,'Efficiency Distributions'!$C$9:$C$87,0)+RIGHT($E203),0))\n/SUM(AN$10:AN$11)","v":0},{"$f":"IF(INDEX(PC_MAPPING,RIGHT($C197,1),MATCH($E$2,'Data by Building Type'!$D$22:$F$22,0))=\"Yes\",1,0)*\n(AO$10*OFFSET('Efficiency Distributions'!$D$10,MATCH($C197,'Efficiency Distributions'!$C$9:$C$87,0)+RIGHT($E203),0)\n+AO$11*OFFSET('Efficiency Distributions'!$E$10,MATCH($C197,'Efficiency Distributions'!$C$9:$C$87,0)+RIGHT($E203),0))\n/SUM(AO$10:AO$11)","v":0},{"$f":"IF(INDEX(PC_MAPPING,RIGHT($C197,1),MATCH($E$2,'Data by Building Type'!$D$22:$F$22,0))=\"Yes\",1,0)*\n(AP$10*OFFSET('Efficiency Distributions'!$D$10,MATCH($C197,'Efficiency Distributions'!$C$9:$C$87,0)+RIGHT($E203),0)\n+AP$11*OFFSET('Efficiency Distributions'!$E$10,MATCH($C197,'Efficiency Distributions'!$C$9:$C$87,0)+RIGHT($E203),0))\n/SUM(AP$10:AP$11)","v":0},{"$f":"IF(INDEX(PC_MAPPING,RIGHT($C197,1),MATCH($E$2,'Data by Building Type'!$D$22:$F$22,0))=\"Yes\",1,0)*\n(AQ$10*OFFSET('Efficiency Distributions'!$D$10,MATCH($C197,'Efficiency Distributions'!$C$9:$C$87,0)+RIGHT($E203),0)\n+AQ$11*OFFSET('Efficiency Distributions'!$E$10,MATCH($C197,'Efficiency Distributions'!$C$9:$C$87,0)+RIGHT($E203),0))\n/SUM(AQ$10:AQ$11)","v":0},{"$f":"IF(INDEX(PC_MAPPING,RIGHT($C197,1),MATCH($E$2,'Data by Building Type'!$D$22:$F$22,0))=\"Yes\",1,0)*\n(AR$10*OFFSET('Efficiency Distributions'!$D$10,MATCH($C197,'Efficiency Distributions'!$C$9:$C$87,0)+RIGHT($E203),0)\n+AR$11*OFFSET('Efficiency Distributions'!$E$10,MATCH($C197,'Efficiency Distributions'!$C$9:$C$87,0)+RIGHT($E203),0))\n/SUM(AR$10:AR$11)","v":0},{"$f":"IF(INDEX(PC_MAPPING,RIGHT($C197,1),MATCH($E$2,'Data by Building Type'!$D$22:$F$22,0))=\"Yes\",1,0)*\n(AS$10*OFFSET('Efficiency Distributions'!$D$10,MATCH($C197,'Efficiency Distributions'!$C$9:$C$87,0)+RIGHT($E203),0)\n+AS$11*OFFSET('Efficiency Distributions'!$E$10,MATCH($C197,'Efficiency Distributions'!$C$9:$C$87,0)+RIGHT($E203),0))\n/SUM(AS$10:AS$11)","v":0},{"$f":"IF(INDEX(PC_MAPPING,RIGHT($C197,1),MATCH($E$2,'Data by Building Type'!$D$22:$F$22,0))=\"Yes\",1,0)*\n(AT$10*OFFSET('Efficiency Distributions'!$D$10,MATCH($C197,'Efficiency Distributions'!$C$9:$C$87,0)+RIGHT($E203),0)\n+AT$11*OFFSET('Efficiency Distributions'!$E$10,MATCH($C197,'Efficiency Distributions'!$C$9:$C$87,0)+RIGHT($E203),0))\n/SUM(AT$10:AT$11)","v":0},{"$f":"IF(INDEX(PC_MAPPING,RIGHT($C197,1),MATCH($E$2,'Data by Building Type'!$D$22:$F$22,0))=\"Yes\",1,0)*\n(AU$10*OFFSET('Efficiency Distributions'!$D$10,MATCH($C197,'Efficiency Distributions'!$C$9:$C$87,0)+RIGHT($E203),0)\n+AU$11*OFFSET('Efficiency Distributions'!$E$10,MATCH($C197,'Efficiency Distributions'!$C$9:$C$87,0)+RIGHT($E203),0))\n/SUM(AU$10:AU$11)","v":0},{"$f":"IF(INDEX(PC_MAPPING,RIGHT($C197,1),MATCH($E$2,'Data by Building Type'!$D$22:$F$22,0))=\"Yes\",1,0)*\n(AV$10*OFFSET('Efficiency Distributions'!$D$10,MATCH($C197,'Efficiency Distributions'!$C$9:$C$87,0)+RIGHT($E203),0)\n+AV$11*OFFSET('Efficiency Distributions'!$E$10,MATCH($C197,'Efficiency Distributions'!$C$9:$C$87,0)+RIGHT($E203),0))\n/SUM(AV$10:AV$11)","v":0},{"$f":"IF(INDEX(PC_MAPPING,RIGHT($C197,1),MATCH($E$2,'Data by Building Type'!$D$22:$F$22,0))=\"Yes\",1,0)*\n(AW$10*OFFSET('Efficiency Distributions'!$D$10,MATCH($C197,'Efficiency Distributions'!$C$9:$C$87,0)+RIGHT($E203),0)\n+AW$11*OFFSET('Efficiency Distributions'!$E$10,MATCH($C197,'Efficiency Distributions'!$C$9:$C$87,0)+RIGHT($E203),0))\n/SUM(AW$10:AW$11)","v":0},{"$f":"IF(INDEX(PC_MAPPING,RIGHT($C197,1),MATCH($E$2,'Data by Building Type'!$D$22:$F$22,0))=\"Yes\",1,0)*\n(AX$10*OFFSET('Efficiency Distributions'!$D$10,MATCH($C197,'Efficiency Distributions'!$C$9:$C$87,0)+RIGHT($E203),0)\n+AX$11*OFFSET('Efficiency Distributions'!$E$10,MATCH($C197,'Efficiency Distributions'!$C$9:$C$87,0)+RIGHT($E203),0))\n/SUM(AX$10:AX$11)","v":0},{"$f":"IF(INDEX(PC_MAPPING,RIGHT($C197,1),MATCH($E$2,'Data by Building Type'!$D$22:$F$22,0))=\"Yes\",1,0)*\n(AY$10*OFFSET('Efficiency Distributions'!$D$10,MATCH($C197,'Efficiency Distributions'!$C$9:$C$87,0)+RIGHT($E203),0)\n+AY$11*OFFSET('Efficiency Distributions'!$E$10,MATCH($C197,'Efficiency Distributions'!$C$9:$C$87,0)+RIGHT($E203),0))\n/SUM(AY$10:AY$11)","v":0},{"$f":"IF(INDEX(PC_MAPPING,RIGHT($C197,1),MATCH($E$2,'Data by Building Type'!$D$22:$F$22,0))=\"Yes\",1,0)*\n(AZ$10*OFFSET('Efficiency Distributions'!$D$10,MATCH($C197,'Efficiency Distributions'!$C$9:$C$87,0)+RIGHT($E203),0)\n+AZ$11*OFFSET('Efficiency Distributions'!$E$10,MATCH($C197,'Efficiency Distributions'!$C$9:$C$87,0)+RIGHT($E203),0))\n/SUM(AZ$10:AZ$11)","v":0},{"$f":"IF(INDEX(PC_MAPPING,RIGHT($C197,1),MATCH($E$2,'Data by Building Type'!$D$22:$F$22,0))=\"Yes\",1,0)*\n(BA$10*OFFSET('Efficiency Distributions'!$D$10,MATCH($C197,'Efficiency Distributions'!$C$9:$C$87,0)+RIGHT($E203),0)\n+BA$11*OFFSET('Efficiency Distributions'!$E$10,MATCH($C197,'Efficiency Distributions'!$C$9:$C$87,0)+RIGHT($E203),0))\n/SUM(BA$10:BA$11)","v":0},{"$f":"IF(INDEX(PC_MAPPING,RIGHT($C197,1),MATCH($E$2,'Data by Building Type'!$D$22:$F$22,0))=\"Yes\",1,0)*\n(BB$10*OFFSET('Efficiency Distributions'!$D$10,MATCH($C197,'Efficiency Distributions'!$C$9:$C$87,0)+RIGHT($E203),0)\n+BB$11*OFFSET('Efficiency Distributions'!$E$10,MATCH($C197,'Efficiency Distributions'!$C$9:$C$87,0)+RIGHT($E203),0))\n/SUM(BB$10:BB$11)","v":0},{"$f":"IF(INDEX(PC_MAPPING,RIGHT($C197,1),MATCH($E$2,'Data by Building Type'!$D$22:$F$22,0))=\"Yes\",1,0)*\n(BC$10*OFFSET('Efficiency Distributions'!$D$10,MATCH($C197,'Efficiency Distributions'!$C$9:$C$87,0)+RIGHT($E203),0)\n+BC$11*OFFSET('Efficiency Distributions'!$E$10,MATCH($C197,'Efficiency Distributions'!$C$9:$C$87,0)+RIGHT($E203),0))\n/SUM(BC$10:BC$11)","v":0},{"$f":"IF(INDEX(PC_MAPPING,RIGHT($C197,1),MATCH($E$2,'Data by Building Type'!$D$22:$F$22,0))=\"Yes\",1,0)*\n(BD$10*OFFSET('Efficiency Distributions'!$D$10,MATCH($C197,'Efficiency Distributions'!$C$9:$C$87,0)+RIGHT($E203),0)\n+BD$11*OFFSET('Efficiency Distributions'!$E$10,MATCH($C197,'Efficiency Distributions'!$C$9:$C$87,0)+RIGHT($E203),0))\n/SUM(BD$10:BD$11)","v":0},{"$f":"IF(INDEX(PC_MAPPING,RIGHT($C197,1),MATCH($E$2,'Data by Building Type'!$D$22:$F$22,0))=\"Yes\",1,0)*\n(BE$10*OFFSET('Efficiency Distributions'!$D$10,MATCH($C197,'Efficiency Distributions'!$C$9:$C$87,0)+RIGHT($E203),0)\n+BE$11*OFFSET('Efficiency Distributions'!$E$10,MATCH($C197,'Efficiency Distributions'!$C$9:$C$87,0)+RIGHT($E203),0))\n/SUM(BE$10:BE$11)","v":0},{"$f":"IF(INDEX(PC_MAPPING,RIGHT($C197,1),MATCH($E$2,'Data by Building Type'!$D$22:$F$22,0))=\"Yes\",1,0)*\n(BF$10*OFFSET('Efficiency Distributions'!$D$10,MATCH($C197,'Efficiency Distributions'!$C$9:$C$87,0)+RIGHT($E203),0)\n+BF$11*OFFSET('Efficiency Distributions'!$E$10,MATCH($C197,'Efficiency Distributions'!$C$9:$C$87,0)+RIGHT($E203),0))\n/SUM(BF$10:BF$11)","v":0},{"$f":"IF(INDEX(PC_MAPPING,RIGHT($C197,1),MATCH($E$2,'Data by Building Type'!$D$22:$F$22,0))=\"Yes\",1,0)*\n(BG$10*OFFSET('Efficiency Distributions'!$D$10,MATCH($C197,'Efficiency Distributions'!$C$9:$C$87,0)+RIGHT($E203),0)\n+BG$11*OFFSET('Efficiency Distributions'!$E$10,MATCH($C197,'Efficiency Distributions'!$C$9:$C$87,0)+RIGHT($E203),0))\n/SUM(BG$10:BG$11)","v":0}]
[null,null,null,null,"EL3",{"$f":"IF(INDEX(PC_MAPPING,RIGHT($C197,1),MATCH($E$2,'Data by Building Type'!$D$22:$F$22,0))=\"Yes\",1,0)*\n(F$10*OFFSET('Efficiency Distributions'!$D$10,MATCH($C197,'Efficiency Distributions'!$C$9:$C$87,0)+RIGHT($E204),0)\n+F$11*OFFSET('Efficiency Distributions'!$E$10,MATCH($C197,'Efficiency Distributions'!$C$9:$C$87,0)+RIGHT($E204),0))\n/SUM(F$10:F$11)","v":0},{"$f":"IF(INDEX(PC_MAPPING,RIGHT($C197,1),MATCH($E$2,'Data by Building Type'!$D$22:$F$22,0))=\"Yes\",1,0)*\n(G$10*OFFSET('Efficiency Distributions'!$D$10,MATCH($C197,'Efficiency Distributions'!$C$9:$C$87,0)+RIGHT($E204),0)\n+G$11*OFFSET('Efficiency Distributions'!$E$10,MATCH($C197,'Efficiency Distributions'!$C$9:$C$87,0)+RIGHT($E204),0))\n/SUM(G$10:G$11)","v":0},{"$f":"IF(INDEX(PC_MAPPING,RIGHT($C197,1),MATCH($E$2,'Data by Building Type'!$D$22:$F$22,0))=\"Yes\",1,0)*\n(H$10*OFFSET('Efficiency Distributions'!$D$10,MATCH($C197,'Efficiency Distributions'!$C$9:$C$87,0)+RIGHT($E204),0)\n+H$11*OFFSET('Efficiency Distributions'!$E$10,MATCH($C197,'Efficiency Distributions'!$C$9:$C$87,0)+RIGHT($E204),0))\n/SUM(H$10:H$11)","v":0},{"$f":"IF(INDEX(PC_MAPPING,RIGHT($C197,1),MATCH($E$2,'Data by Building Type'!$D$22:$F$22,0))=\"Yes\",1,0)*\n(I$10*OFFSET('Efficiency Distributions'!$D$10,MATCH($C197,'Efficiency Distributions'!$C$9:$C$87,0)+RIGHT($E204),0)\n+I$11*OFFSET('Efficiency Distributions'!$E$10,MATCH($C197,'Efficiency Distributions'!$C$9:$C$87,0)+RIGHT($E204),0))\n/SUM(I$10:I$11)","v":0},{"$f":"IF(INDEX(PC_MAPPING,RIGHT($C197,1),MATCH($E$2,'Data by Building Type'!$D$22:$F$22,0))=\"Yes\",1,0)*\n(J$10*OFFSET('Efficiency Distributions'!$D$10,MATCH($C197,'Efficiency Distributions'!$C$9:$C$87,0)+RIGHT($E204),0)\n+J$11*OFFSET('Efficiency Distributions'!$E$10,MATCH($C197,'Efficiency Distributions'!$C$9:$C$87,0)+RIGHT($E204),0))\n/SUM(J$10:J$11)","v":0},{"$f":"IF(INDEX(PC_MAPPING,RIGHT($C197,1),MATCH($E$2,'Data by Building Type'!$D$22:$F$22,0))=\"Yes\",1,0)*\n(K$10*OFFSET('Efficiency Distributions'!$D$10,MATCH($C197,'Efficiency Distributions'!$C$9:$C$87,0)+RIGHT($E204),0)\n+K$11*OFFSET('Efficiency Distributions'!$E$10,MATCH($C197,'Efficiency Distributions'!$C$9:$C$87,0)+RIGHT($E204),0))\n/SUM(K$10:K$11)","v":0},{"$f":"IF(INDEX(PC_MAPPING,RIGHT($C197,1),MATCH($E$2,'Data by Building Type'!$D$22:$F$22,0))=\"Yes\",1,0)*\n(L$10*OFFSET('Efficiency Distributions'!$D$10,MATCH($C197,'Efficiency Distributions'!$C$9:$C$87,0)+RIGHT($E204),0)\n+L$11*OFFSET('Efficiency Distributions'!$E$10,MATCH($C197,'Efficiency Distributions'!$C$9:$C$87,0)+RIGHT($E204),0))\n/SUM(L$10:L$11)","v":0},{"$f":"IF(INDEX(PC_MAPPING,RIGHT($C197,1),MATCH($E$2,'Data by Building Type'!$D$22:$F$22,0))=\"Yes\",1,0)*\n(M$10*OFFSET('Efficiency Distributions'!$D$10,MATCH($C197,'Efficiency Distributions'!$C$9:$C$87,0)+RIGHT($E204),0)\n+M$11*OFFSET('Efficiency Distributions'!$E$10,MATCH($C197,'Efficiency Distributions'!$C$9:$C$87,0)+RIGHT($E204),0))\n/SUM(M$10:M$11)","v":0},{"$f":"IF(INDEX(PC_MAPPING,RIGHT($C197,1),MATCH($E$2,'Data by Building Type'!$D$22:$F$22,0))=\"Yes\",1,0)*\n(N$10*OFFSET('Efficiency Distributions'!$D$10,MATCH($C197,'Efficiency Distributions'!$C$9:$C$87,0)+RIGHT($E204),0)\n+N$11*OFFSET('Efficiency Distributions'!$E$10,MATCH($C197,'Efficiency Distributions'!$C$9:$C$87,0)+RIGHT($E204),0))\n/SUM(N$10:N$11)","v":0},{"$f":"IF(INDEX(PC_MAPPING,RIGHT($C197,1),MATCH($E$2,'Data by Building Type'!$D$22:$F$22,0))=\"Yes\",1,0)*\n(O$10*OFFSET('Efficiency Distributions'!$D$10,MATCH($C197,'Efficiency Distributions'!$C$9:$C$87,0)+RIGHT($E204),0)\n+O$11*OFFSET('Efficiency Distributions'!$E$10,MATCH($C197,'Efficiency Distributions'!$C$9:$C$87,0)+RIGHT($E204),0))\n/SUM(O$10:O$11)","v":0},{"$f":"IF(INDEX(PC_MAPPING,RIGHT($C197,1),MATCH($E$2,'Data by Building Type'!$D$22:$F$22,0))=\"Yes\",1,0)*\n(P$10*OFFSET('Efficiency Distributions'!$D$10,MATCH($C197,'Efficiency Distributions'!$C$9:$C$87,0)+RIGHT($E204),0)\n+P$11*OFFSET('Efficiency Distributions'!$E$10,MATCH($C197,'Efficiency Distributions'!$C$9:$C$87,0)+RIGHT($E204),0))\n/SUM(P$10:P$11)","v":0},{"$f":"IF(INDEX(PC_MAPPING,RIGHT($C197,1),MATCH($E$2,'Data by Building Type'!$D$22:$F$22,0))=\"Yes\",1,0)*\n(Q$10*OFFSET('Efficiency Distributions'!$D$10,MATCH($C197,'Efficiency Distributions'!$C$9:$C$87,0)+RIGHT($E204),0)\n+Q$11*OFFSET('Efficiency Distributions'!$E$10,MATCH($C197,'Efficiency Distributions'!$C$9:$C$87,0)+RIGHT($E204),0))\n/SUM(Q$10:Q$11)","v":0},{"$f":"IF(INDEX(PC_MAPPING,RIGHT($C197,1),MATCH($E$2,'Data by Building Type'!$D$22:$F$22,0))=\"Yes\",1,0)*\n(R$10*OFFSET('Efficiency Distributions'!$D$10,MATCH($C197,'Efficiency Distributions'!$C$9:$C$87,0)+RIGHT($E204),0)\n+R$11*OFFSET('Efficiency Distributions'!$E$10,MATCH($C197,'Efficiency Distributions'!$C$9:$C$87,0)+RIGHT($E204),0))\n/SUM(R$10:R$11)","v":0},{"$f":"IF(INDEX(PC_MAPPING,RIGHT($C197,1),MATCH($E$2,'Data by Building Type'!$D$22:$F$22,0))=\"Yes\",1,0)*\n(S$10*OFFSET('Efficiency Distributions'!$D$10,MATCH($C197,'Efficiency Distributions'!$C$9:$C$87,0)+RIGHT($E204),0)\n+S$11*OFFSET('Efficiency Distributions'!$E$10,MATCH($C197,'Efficiency Distributions'!$C$9:$C$87,0)+RIGHT($E204),0))\n/SUM(S$10:S$11)","v":0},{"$f":"IF(INDEX(PC_MAPPING,RIGHT($C197,1),MATCH($E$2,'Data by Building Type'!$D$22:$F$22,0))=\"Yes\",1,0)*\n(T$10*OFFSET('Efficiency Distributions'!$D$10,MATCH($C197,'Efficiency Distributions'!$C$9:$C$87,0)+RIGHT($E204),0)\n+T$11*OFFSET('Efficiency Distributions'!$E$10,MATCH($C197,'Efficiency Distributions'!$C$9:$C$87,0)+RIGHT($E204),0))\n/SUM(T$10:T$11)","v":0},{"$f":"IF(INDEX(PC_MAPPING,RIGHT($C197,1),MATCH($E$2,'Data by Building Type'!$D$22:$F$22,0))=\"Yes\",1,0)*\n(U$10*OFFSET('Efficiency Distributions'!$D$10,MATCH($C197,'Efficiency Distributions'!$C$9:$C$87,0)+RIGHT($E204),0)\n+U$11*OFFSET('Efficiency Distributions'!$E$10,MATCH($C197,'Efficiency Distributions'!$C$9:$C$87,0)+RIGHT($E204),0))\n/SUM(U$10:U$11)","v":0},{"$f":"IF(INDEX(PC_MAPPING,RIGHT($C197,1),MATCH($E$2,'Data by Building Type'!$D$22:$F$22,0))=\"Yes\",1,0)*\n(V$10*OFFSET('Efficiency Distributions'!$D$10,MATCH($C197,'Efficiency Distributions'!$C$9:$C$87,0)+RIGHT($E204),0)\n+V$11*OFFSET('Efficiency Distributions'!$E$10,MATCH($C197,'Efficiency Distributions'!$C$9:$C$87,0)+RIGHT($E204),0))\n/SUM(V$10:V$11)","v":0},{"$f":"IF(INDEX(PC_MAPPING,RIGHT($C197,1),MATCH($E$2,'Data by Building Type'!$D$22:$F$22,0))=\"Yes\",1,0)*\n(W$10*OFFSET('Efficiency Distributions'!$D$10,MATCH($C197,'Efficiency Distributions'!$C$9:$C$87,0)+RIGHT($E204),0)\n+W$11*OFFSET('Efficiency Distributions'!$E$10,MATCH($C197,'Efficiency Distributions'!$C$9:$C$87,0)+RIGHT($E204),0))\n/SUM(W$10:W$11)","v":0},{"$f":"IF(INDEX(PC_MAPPING,RIGHT($C197,1),MATCH($E$2,'Data by Building Type'!$D$22:$F$22,0))=\"Yes\",1,0)*\n(X$10*OFFSET('Efficiency Distributions'!$D$10,MATCH($C197,'Efficiency Distributions'!$C$9:$C$87,0)+RIGHT($E204),0)\n+X$11*OFFSET('Efficiency Distributions'!$E$10,MATCH($C197,'Efficiency Distributions'!$C$9:$C$87,0)+RIGHT($E204),0))\n/SUM(X$10:X$11)","v":0},{"$f":"IF(INDEX(PC_MAPPING,RIGHT($C197,1),MATCH($E$2,'Data by Building Type'!$D$22:$F$22,0))=\"Yes\",1,0)*\n(Y$10*OFFSET('Efficiency Distributions'!$D$10,MATCH($C197,'Efficiency Distributions'!$C$9:$C$87,0)+RIGHT($E204),0)\n+Y$11*OFFSET('Efficiency Distributions'!$E$10,MATCH($C197,'Efficiency Distributions'!$C$9:$C$87,0)+RIGHT($E204),0))\n/SUM(Y$10:Y$11)","v":0},{"$f":"IF(INDEX(PC_MAPPING,RIGHT($C197,1),MATCH($E$2,'Data by Building Type'!$D$22:$F$22,0))=\"Yes\",1,0)*\n(Z$10*OFFSET('Efficiency Distributions'!$D$10,MATCH($C197,'Efficiency Distributions'!$C$9:$C$87,0)+RIGHT($E204),0)\n+Z$11*OFFSET('Efficiency Distributions'!$E$10,MATCH($C197,'Efficiency Distributions'!$C$9:$C$87,0)+RIGHT($E204),0))\n/SUM(Z$10:Z$11)","v":0},{"$f":"IF(INDEX(PC_MAPPING,RIGHT($C197,1),MATCH($E$2,'Data by Building Type'!$D$22:$F$22,0))=\"Yes\",1,0)*\n(AA$10*OFFSET('Efficiency Distributions'!$D$10,MATCH($C197,'Efficiency Distributions'!$C$9:$C$87,0)+RIGHT($E204),0)\n+AA$11*OFFSET('Efficiency Distributions'!$E$10,MATCH($C197,'Efficiency Distributions'!$C$9:$C$87,0)+RIGHT($E204),0))\n/SUM(AA$10:AA$11)","v":0},{"$f":"IF(INDEX(PC_MAPPING,RIGHT($C197,1),MATCH($E$2,'Data by Building Type'!$D$22:$F$22,0))=\"Yes\",1,0)*\n(AB$10*OFFSET('Efficiency Distributions'!$D$10,MATCH($C197,'Efficiency Distributions'!$C$9:$C$87,0)+RIGHT($E204),0)\n+AB$11*OFFSET('Efficiency Distributions'!$E$10,MATCH($C197,'Efficiency Distributions'!$C$9:$C$87,0)+RIGHT($E204),0))\n/SUM(AB$10:AB$11)","v":0},{"$f":"IF(INDEX(PC_MAPPING,RIGHT($C197,1),MATCH($E$2,'Data by Building Type'!$D$22:$F$22,0))=\"Yes\",1,0)*\n(AC$10*OFFSET('Efficiency Distributions'!$D$10,MATCH($C197,'Efficiency Distributions'!$C$9:$C$87,0)+RIGHT($E204),0)\n+AC$11*OFFSET('Efficiency Distributions'!$E$10,MATCH($C197,'Efficiency Distributions'!$C$9:$C$87,0)+RIGHT($E204),0))\n/SUM(AC$10:AC$11)","v":0},{"$f":"IF(INDEX(PC_MAPPING,RIGHT($C197,1),MATCH($E$2,'Data by Building Type'!$D$22:$F$22,0))=\"Yes\",1,0)*\n(AD$10*OFFSET('Efficiency Distributions'!$D$10,MATCH($C197,'Efficiency Distributions'!$C$9:$C$87,0)+RIGHT($E204),0)\n+AD$11*OFFSET('Efficiency Distributions'!$E$10,MATCH($C197,'Efficiency Distributions'!$C$9:$C$87,0)+RIGHT($E204),0))\n/SUM(AD$10:AD$11)","v":0},{"$f":"IF(INDEX(PC_MAPPING,RIGHT($C197,1),MATCH($E$2,'Data by Building Type'!$D$22:$F$22,0))=\"Yes\",1,0)*\n(AE$10*OFFSET('Efficiency Distributions'!$D$10,MATCH($C197,'Efficiency Distributions'!$C$9:$C$87,0)+RIGHT($E204),0)\n+AE$11*OFFSET('Efficiency Distributions'!$E$10,MATCH($C197,'Efficiency Distributions'!$C$9:$C$87,0)+RIGHT($E204),0))\n/SUM(AE$10:AE$11)","v":0},{"$f":"IF(INDEX(PC_MAPPING,RIGHT($C197,1),MATCH($E$2,'Data by Building Type'!$D$22:$F$22,0))=\"Yes\",1,0)*\n(AF$10*OFFSET('Efficiency Distributions'!$D$10,MATCH($C197,'Efficiency Distributions'!$C$9:$C$87,0)+RIGHT($E204),0)\n+AF$11*OFFSET('Efficiency Distributions'!$E$10,MATCH($C197,'Efficiency Distributions'!$C$9:$C$87,0)+RIGHT($E204),0))\n/SUM(AF$10:AF$11)","v":0},{"$f":"IF(INDEX(PC_MAPPING,RIGHT($C197,1),MATCH($E$2,'Data by Building Type'!$D$22:$F$22,0))=\"Yes\",1,0)*\n(AG$10*OFFSET('Efficiency Distributions'!$D$10,MATCH($C197,'Efficiency Distributions'!$C$9:$C$87,0)+RIGHT($E204),0)\n+AG$11*OFFSET('Efficiency Distributions'!$E$10,MATCH($C197,'Efficiency Distributions'!$C$9:$C$87,0)+RIGHT($E204),0))\n/SUM(AG$10:AG$11)","v":0},{"$f":"IF(INDEX(PC_MAPPING,RIGHT($C197,1),MATCH($E$2,'Data by Building Type'!$D$22:$F$22,0))=\"Yes\",1,0)*\n(AH$10*OFFSET('Efficiency Distributions'!$D$10,MATCH($C197,'Efficiency Distributions'!$C$9:$C$87,0)+RIGHT($E204),0)\n+AH$11*OFFSET('Efficiency Distributions'!$E$10,MATCH($C197,'Efficiency Distributions'!$C$9:$C$87,0)+RIGHT($E204),0))\n/SUM(AH$10:AH$11)","v":0},{"$f":"IF(INDEX(PC_MAPPING,RIGHT($C197,1),MATCH($E$2,'Data by Building Type'!$D$22:$F$22,0))=\"Yes\",1,0)*\n(AI$10*OFFSET('Efficiency Distributions'!$D$10,MATCH($C197,'Efficiency Distributions'!$C$9:$C$87,0)+RIGHT($E204),0)\n+AI$11*OFFSET('Efficiency Distributions'!$E$10,MATCH($C197,'Efficiency Distributions'!$C$9:$C$87,0)+RIGHT($E204),0))\n/SUM(AI$10:AI$11)","v":0},{"$f":"IF(INDEX(PC_MAPPING,RIGHT($C197,1),MATCH($E$2,'Data by Building Type'!$D$22:$F$22,0))=\"Yes\",1,0)*\n(AJ$10*OFFSET('Efficiency Distributions'!$D$10,MATCH($C197,'Efficiency Distributions'!$C$9:$C$87,0)+RIGHT($E204),0)\n+AJ$11*OFFSET('Efficiency Distributions'!$E$10,MATCH($C197,'Efficiency Distributions'!$C$9:$C$87,0)+RIGHT($E204),0))\n/SUM(AJ$10:AJ$11)","v":0},{"$f":"IF(INDEX(PC_MAPPING,RIGHT($C197,1),MATCH($E$2,'Data by Building Type'!$D$22:$F$22,0))=\"Yes\",1,0)*\n(AK$10*OFFSET('Efficiency Distributions'!$D$10,MATCH($C197,'Efficiency Distributions'!$C$9:$C$87,0)+RIGHT($E204),0)\n+AK$11*OFFSET('Efficiency Distributions'!$E$10,MATCH($C197,'Efficiency Distributions'!$C$9:$C$87,0)+RIGHT($E204),0))\n/SUM(AK$10:AK$11)","v":0},{"$f":"IF(INDEX(PC_MAPPING,RIGHT($C197,1),MATCH($E$2,'Data by Building Type'!$D$22:$F$22,0))=\"Yes\",1,0)*\n(AL$10*OFFSET('Efficiency Distributions'!$D$10,MATCH($C197,'Efficiency Distributions'!$C$9:$C$87,0)+RIGHT($E204),0)\n+AL$11*OFFSET('Efficiency Distributions'!$E$10,MATCH($C197,'Efficiency Distributions'!$C$9:$C$87,0)+RIGHT($E204),0))\n/SUM(AL$10:AL$11)","v":0},{"$f":"IF(INDEX(PC_MAPPING,RIGHT($C197,1),MATCH($E$2,'Data by Building Type'!$D$22:$F$22,0))=\"Yes\",1,0)*\n(AM$10*OFFSET('Efficiency Distributions'!$D$10,MATCH($C197,'Efficiency Distributions'!$C$9:$C$87,0)+RIGHT($E204),0)\n+AM$11*OFFSET('Efficiency Distributions'!$E$10,MATCH($C197,'Efficiency Distributions'!$C$9:$C$87,0)+RIGHT($E204),0))\n/SUM(AM$10:AM$11)","v":0},{"$f":"IF(INDEX(PC_MAPPING,RIGHT($C197,1),MATCH($E$2,'Data by Building Type'!$D$22:$F$22,0))=\"Yes\",1,0)*\n(AN$10*OFFSET('Efficiency Distributions'!$D$10,MATCH($C197,'Efficiency Distributions'!$C$9:$C$87,0)+RIGHT($E204),0)\n+AN$11*OFFSET('Efficiency Distributions'!$E$10,MATCH($C197,'Efficiency Distributions'!$C$9:$C$87,0)+RIGHT($E204),0))\n/SUM(AN$10:AN$11)","v":0},{"$f":"IF(INDEX(PC_MAPPING,RIGHT($C197,1),MATCH($E$2,'Data by Building Type'!$D$22:$F$22,0))=\"Yes\",1,0)*\n(AO$10*OFFSET('Efficiency Distributions'!$D$10,MATCH($C197,'Efficiency Distributions'!$C$9:$C$87,0)+RIGHT($E204),0)\n+AO$11*OFFSET('Efficiency Distributions'!$E$10,MATCH($C197,'Efficiency Distributions'!$C$9:$C$87,0)+RIGHT($E204),0))\n/SUM(AO$10:AO$11)","v":0},{"$f":"IF(INDEX(PC_MAPPING,RIGHT($C197,1),MATCH($E$2,'Data by Building Type'!$D$22:$F$22,0))=\"Yes\",1,0)*\n(AP$10*OFFSET('Efficiency Distributions'!$D$10,MATCH($C197,'Efficiency Distributions'!$C$9:$C$87,0)+RIGHT($E204),0)\n+AP$11*OFFSET('Efficiency Distributions'!$E$10,MATCH($C197,'Efficiency Distributions'!$C$9:$C$87,0)+RIGHT($E204),0))\n/SUM(AP$10:AP$11)","v":0},{"$f":"IF(INDEX(PC_MAPPING,RIGHT($C197,1),MATCH($E$2,'Data by Building Type'!$D$22:$F$22,0))=\"Yes\",1,0)*\n(AQ$10*OFFSET('Efficiency Distributions'!$D$10,MATCH($C197,'Efficiency Distributions'!$C$9:$C$87,0)+RIGHT($E204),0)\n+AQ$11*OFFSET('Efficiency Distributions'!$E$10,MATCH($C197,'Efficiency Distributions'!$C$9:$C$87,0)+RIGHT($E204),0))\n/SUM(AQ$10:AQ$11)","v":0},{"$f":"IF(INDEX(PC_MAPPING,RIGHT($C197,1),MATCH($E$2,'Data by Building Type'!$D$22:$F$22,0))=\"Yes\",1,0)*\n(AR$10*OFFSET('Efficiency Distributions'!$D$10,MATCH($C197,'Efficiency Distributions'!$C$9:$C$87,0)+RIGHT($E204),0)\n+AR$11*OFFSET('Efficiency Distributions'!$E$10,MATCH($C197,'Efficiency Distributions'!$C$9:$C$87,0)+RIGHT($E204),0))\n/SUM(AR$10:AR$11)","v":0},{"$f":"IF(INDEX(PC_MAPPING,RIGHT($C197,1),MATCH($E$2,'Data by Building Type'!$D$22:$F$22,0))=\"Yes\",1,0)*\n(AS$10*OFFSET('Efficiency Distributions'!$D$10,MATCH($C197,'Efficiency Distributions'!$C$9:$C$87,0)+RIGHT($E204),0)\n+AS$11*OFFSET('Efficiency Distributions'!$E$10,MATCH($C197,'Efficiency Distributions'!$C$9:$C$87,0)+RIGHT($E204),0))\n/SUM(AS$10:AS$11)","v":0},{"$f":"IF(INDEX(PC_MAPPING,RIGHT($C197,1),MATCH($E$2,'Data by Building Type'!$D$22:$F$22,0))=\"Yes\",1,0)*\n(AT$10*OFFSET('Efficiency Distributions'!$D$10,MATCH($C197,'Efficiency Distributions'!$C$9:$C$87,0)+RIGHT($E204),0)\n+AT$11*OFFSET('Efficiency Distributions'!$E$10,MATCH($C197,'Efficiency Distributions'!$C$9:$C$87,0)+RIGHT($E204),0))\n/SUM(AT$10:AT$11)","v":0},{"$f":"IF(INDEX(PC_MAPPING,RIGHT($C197,1),MATCH($E$2,'Data by Building Type'!$D$22:$F$22,0))=\"Yes\",1,0)*\n(AU$10*OFFSET('Efficiency Distributions'!$D$10,MATCH($C197,'Efficiency Distributions'!$C$9:$C$87,0)+RIGHT($E204),0)\n+AU$11*OFFSET('Efficiency Distributions'!$E$10,MATCH($C197,'Efficiency Distributions'!$C$9:$C$87,0)+RIGHT($E204),0))\n/SUM(AU$10:AU$11)","v":0},{"$f":"IF(INDEX(PC_MAPPING,RIGHT($C197,1),MATCH($E$2,'Data by Building Type'!$D$22:$F$22,0))=\"Yes\",1,0)*\n(AV$10*OFFSET('Efficiency Distributions'!$D$10,MATCH($C197,'Efficiency Distributions'!$C$9:$C$87,0)+RIGHT($E204),0)\n+AV$11*OFFSET('Efficiency Distributions'!$E$10,MATCH($C197,'Efficiency Distributions'!$C$9:$C$87,0)+RIGHT($E204),0))\n/SUM(AV$10:AV$11)","v":0},{"$f":"IF(INDEX(PC_MAPPING,RIGHT($C197,1),MATCH($E$2,'Data by Building Type'!$D$22:$F$22,0))=\"Yes\",1,0)*\n(AW$10*OFFSET('Efficiency Distributions'!$D$10,MATCH($C197,'Efficiency Distributions'!$C$9:$C$87,0)+RIGHT($E204),0)\n+AW$11*OFFSET('Efficiency Distributions'!$E$10,MATCH($C197,'Efficiency Distributions'!$C$9:$C$87,0)+RIGHT($E204),0))\n/SUM(AW$10:AW$11)","v":0},{"$f":"IF(INDEX(PC_MAPPING,RIGHT($C197,1),MATCH($E$2,'Data by Building Type'!$D$22:$F$22,0))=\"Yes\",1,0)*\n(AX$10*OFFSET('Efficiency Distributions'!$D$10,MATCH($C197,'Efficiency Distributions'!$C$9:$C$87,0)+RIGHT($E204),0)\n+AX$11*OFFSET('Efficiency Distributions'!$E$10,MATCH($C197,'Efficiency Distributions'!$C$9:$C$87,0)+RIGHT($E204),0))\n/SUM(AX$10:AX$11)","v":0},{"$f":"IF(INDEX(PC_MAPPING,RIGHT($C197,1),MATCH($E$2,'Data by Building Type'!$D$22:$F$22,0))=\"Yes\",1,0)*\n(AY$10*OFFSET('Efficiency Distributions'!$D$10,MATCH($C197,'Efficiency Distributions'!$C$9:$C$87,0)+RIGHT($E204),0)\n+AY$11*OFFSET('Efficiency Distributions'!$E$10,MATCH($C197,'Efficiency Distributions'!$C$9:$C$87,0)+RIGHT($E204),0))\n/SUM(AY$10:AY$11)","v":0},{"$f":"IF(INDEX(PC_MAPPING,RIGHT($C197,1),MATCH($E$2,'Data by Building Type'!$D$22:$F$22,0))=\"Yes\",1,0)*\n(AZ$10*OFFSET('Efficiency Distributions'!$D$10,MATCH($C197,'Efficiency Distributions'!$C$9:$C$87,0)+RIGHT($E204),0)\n+AZ$11*OFFSET('Efficiency Distributions'!$E$10,MATCH($C197,'Efficiency Distributions'!$C$9:$C$87,0)+RIGHT($E204),0))\n/SUM(AZ$10:AZ$11)","v":0},{"$f":"IF(INDEX(PC_MAPPING,RIGHT($C197,1),MATCH($E$2,'Data by Building Type'!$D$22:$F$22,0))=\"Yes\",1,0)*\n(BA$10*OFFSET('Efficiency Distributions'!$D$10,MATCH($C197,'Efficiency Distributions'!$C$9:$C$87,0)+RIGHT($E204),0)\n+BA$11*OFFSET('Efficiency Distributions'!$E$10,MATCH($C197,'Efficiency Distributions'!$C$9:$C$87,0)+RIGHT($E204),0))\n/SUM(BA$10:BA$11)","v":0},{"$f":"IF(INDEX(PC_MAPPING,RIGHT($C197,1),MATCH($E$2,'Data by Building Type'!$D$22:$F$22,0))=\"Yes\",1,0)*\n(BB$10*OFFSET('Efficiency Distributions'!$D$10,MATCH($C197,'Efficiency Distributions'!$C$9:$C$87,0)+RIGHT($E204),0)\n+BB$11*OFFSET('Efficiency Distributions'!$E$10,MATCH($C197,'Efficiency Distributions'!$C$9:$C$87,0)+RIGHT($E204),0))\n/SUM(BB$10:BB$11)","v":0},{"$f":"IF(INDEX(PC_MAPPING,RIGHT($C197,1),MATCH($E$2,'Data by Building Type'!$D$22:$F$22,0))=\"Yes\",1,0)*\n(BC$10*OFFSET('Efficiency Distributions'!$D$10,MATCH($C197,'Efficiency Distributions'!$C$9:$C$87,0)+RIGHT($E204),0)\n+BC$11*OFFSET('Efficiency Distributions'!$E$10,MATCH($C197,'Efficiency Distributions'!$C$9:$C$87,0)+RIGHT($E204),0))\n/SUM(BC$10:BC$11)","v":0},{"$f":"IF(INDEX(PC_MAPPING,RIGHT($C197,1),MATCH($E$2,'Data by Building Type'!$D$22:$F$22,0))=\"Yes\",1,0)*\n(BD$10*OFFSET('Efficiency Distributions'!$D$10,MATCH($C197,'Efficiency Distributions'!$C$9:$C$87,0)+RIGHT($E204),0)\n+BD$11*OFFSET('Efficiency Distributions'!$E$10,MATCH($C197,'Efficiency Distributions'!$C$9:$C$87,0)+RIGHT($E204),0))\n/SUM(BD$10:BD$11)","v":0},{"$f":"IF(INDEX(PC_MAPPING,RIGHT($C197,1),MATCH($E$2,'Data by Building Type'!$D$22:$F$22,0))=\"Yes\",1,0)*\n(BE$10*OFFSET('Efficiency Distributions'!$D$10,MATCH($C197,'Efficiency Distributions'!$C$9:$C$87,0)+RIGHT($E204),0)\n+BE$11*OFFSET('Efficiency Distributions'!$E$10,MATCH($C197,'Efficiency Distributions'!$C$9:$C$87,0)+RIGHT($E204),0))\n/SUM(BE$10:BE$11)","v":0},{"$f":"IF(INDEX(PC_MAPPING,RIGHT($C197,1),MATCH($E$2,'Data by Building Type'!$D$22:$F$22,0))=\"Yes\",1,0)*\n(BF$10*OFFSET('Efficiency Distributions'!$D$10,MATCH($C197,'Efficiency Distributions'!$C$9:$C$87,0)+RIGHT($E204),0)\n+BF$11*OFFSET('Efficiency Distributions'!$E$10,MATCH($C197,'Efficiency Distributions'!$C$9:$C$87,0)+RIGHT($E204),0))\n/SUM(BF$10:BF$11)","v":0},{"$f":"IF(INDEX(PC_MAPPING,RIGHT($C197,1),MATCH($E$2,'Data by Building Type'!$D$22:$F$22,0))=\"Yes\",1,0)*\n(BG$10*OFFSET('Efficiency Distributions'!$D$10,MATCH($C197,'Efficiency Distributions'!$C$9:$C$87,0)+RIGHT($E204),0)\n+BG$11*OFFSET('Efficiency Distributions'!$E$10,MATCH($C197,'Efficiency Distributions'!$C$9:$C$87,0)+RIGHT($E204),0))\n/SUM(BG$10:BG$11)","v":0}]
[null,null,null,null,"EL4",{"$f":"IF(INDEX(PC_MAPPING,RIGHT($C197,1),MATCH($E$2,'Data by Building Type'!$D$22:$F$22,0))=\"Yes\",1,0)*\n(F$10*OFFSET('Efficiency Distributions'!$D$10,MATCH($C197,'Efficiency Distributions'!$C$9:$C$87,0)+RIGHT($E205),0)\n+F$11*OFFSET('Efficiency Distributions'!$E$10,MATCH($C197,'Efficiency Distributions'!$C$9:$C$87,0)+RIGHT($E205),0))\n/SUM(F$10:F$11)","v":0},{"$f":"IF(INDEX(PC_MAPPING,RIGHT($C197,1),MATCH($E$2,'Data by Building Type'!$D$22:$F$22,0))=\"Yes\",1,0)*\n(G$10*OFFSET('Efficiency Distributions'!$D$10,MATCH($C197,'Efficiency Distributions'!$C$9:$C$87,0)+RIGHT($E205),0)\n+G$11*OFFSET('Efficiency Distributions'!$E$10,MATCH($C197,'Efficiency Distributions'!$C$9:$C$87,0)+RIGHT($E205),0))\n/SUM(G$10:G$11)","v":0},{"$f":"IF(INDEX(PC_MAPPING,RIGHT($C197,1),MATCH($E$2,'Data by Building Type'!$D$22:$F$22,0))=\"Yes\",1,0)*\n(H$10*OFFSET('Efficiency Distributions'!$D$10,MATCH($C197,'Efficiency Distributions'!$C$9:$C$87,0)+RIGHT($E205),0)\n+H$11*OFFSET('Efficiency Distributions'!$E$10,MATCH($C197,'Efficiency Distributions'!$C$9:$C$87,0)+RIGHT($E205),0))\n/SUM(H$10:H$11)","v":0},{"$f":"IF(INDEX(PC_MAPPING,RIGHT($C197,1),MATCH($E$2,'Data by Building Type'!$D$22:$F$22,0))=\"Yes\",1,0)*\n(I$10*OFFSET('Efficiency Distributions'!$D$10,MATCH($C197,'Efficiency Distributions'!$C$9:$C$87,0)+RIGHT($E205),0)\n+I$11*OFFSET('Efficiency Distributions'!$E$10,MATCH($C197,'Efficiency Distributions'!$C$9:$C$87,0)+RIGHT($E205),0))\n/SUM(I$10:I$11)","v":0},{"$f":"IF(INDEX(PC_MAPPING,RIGHT($C197,1),MATCH($E$2,'Data by Building Type'!$D$22:$F$22,0))=\"Yes\",1,0)*\n(J$10*OFFSET('Efficiency Distributions'!$D$10,MATCH($C197,'Efficiency Distributions'!$C$9:$C$87,0)+RIGHT($E205),0)\n+J$11*OFFSET('Efficiency Distributions'!$E$10,MATCH($C197,'Efficiency Distributions'!$C$9:$C$87,0)+RIGHT($E205),0))\n/SUM(J$10:J$11)","v":0},{"$f":"IF(INDEX(PC_MAPPING,RIGHT($C197,1),MATCH($E$2,'Data by Building Type'!$D$22:$F$22,0))=\"Yes\",1,0)*\n(K$10*OFFSET('Efficiency Distributions'!$D$10,MATCH($C197,'Efficiency Distributions'!$C$9:$C$87,0)+RIGHT($E205),0)\n+K$11*OFFSET('Efficiency Distributions'!$E$10,MATCH($C197,'Efficiency Distributions'!$C$9:$C$87,0)+RIGHT($E205),0))\n/SUM(K$10:K$11)","v":0},{"$f":"IF(INDEX(PC_MAPPING,RIGHT($C197,1),MATCH($E$2,'Data by Building Type'!$D$22:$F$22,0))=\"Yes\",1,0)*\n(L$10*OFFSET('Efficiency Distributions'!$D$10,MATCH($C197,'Efficiency Distributions'!$C$9:$C$87,0)+RIGHT($E205),0)\n+L$11*OFFSET('Efficiency Distributions'!$E$10,MATCH($C197,'Efficiency Distributions'!$C$9:$C$87,0)+RIGHT($E205),0))\n/SUM(L$10:L$11)","v":0},{"$f":"IF(INDEX(PC_MAPPING,RIGHT($C197,1),MATCH($E$2,'Data by Building Type'!$D$22:$F$22,0))=\"Yes\",1,0)*\n(M$10*OFFSET('Efficiency Distributions'!$D$10,MATCH($C197,'Efficiency Distributions'!$C$9:$C$87,0)+RIGHT($E205),0)\n+M$11*OFFSET('Efficiency Distributions'!$E$10,MATCH($C197,'Efficiency Distributions'!$C$9:$C$87,0)+RIGHT($E205),0))\n/SUM(M$10:M$11)","v":0},{"$f":"IF(INDEX(PC_MAPPING,RIGHT($C197,1),MATCH($E$2,'Data by Building Type'!$D$22:$F$22,0))=\"Yes\",1,0)*\n(N$10*OFFSET('Efficiency Distributions'!$D$10,MATCH($C197,'Efficiency Distributions'!$C$9:$C$87,0)+RIGHT($E205),0)\n+N$11*OFFSET('Efficiency Distributions'!$E$10,MATCH($C197,'Efficiency Distributions'!$C$9:$C$87,0)+RIGHT($E205),0))\n/SUM(N$10:N$11)","v":0},{"$f":"IF(INDEX(PC_MAPPING,RIGHT($C197,1),MATCH($E$2,'Data by Building Type'!$D$22:$F$22,0))=\"Yes\",1,0)*\n(O$10*OFFSET('Efficiency Distributions'!$D$10,MATCH($C197,'Efficiency Distributions'!$C$9:$C$87,0)+RIGHT($E205),0)\n+O$11*OFFSET('Efficiency Distributions'!$E$10,MATCH($C197,'Efficiency Distributions'!$C$9:$C$87,0)+RIGHT($E205),0))\n/SUM(O$10:O$11)","v":0},{"$f":"IF(INDEX(PC_MAPPING,RIGHT($C197,1),MATCH($E$2,'Data by Building Type'!$D$22:$F$22,0))=\"Yes\",1,0)*\n(P$10*OFFSET('Efficiency Distributions'!$D$10,MATCH($C197,'Efficiency Distributions'!$C$9:$C$87,0)+RIGHT($E205),0)\n+P$11*OFFSET('Efficiency Distributions'!$E$10,MATCH($C197,'Efficiency Distributions'!$C$9:$C$87,0)+RIGHT($E205),0))\n/SUM(P$10:P$11)","v":0},{"$f":"IF(INDEX(PC_MAPPING,RIGHT($C197,1),MATCH($E$2,'Data by Building Type'!$D$22:$F$22,0))=\"Yes\",1,0)*\n(Q$10*OFFSET('Efficiency Distributions'!$D$10,MATCH($C197,'Efficiency Distributions'!$C$9:$C$87,0)+RIGHT($E205),0)\n+Q$11*OFFSET('Efficiency Distributions'!$E$10,MATCH($C197,'Efficiency Distributions'!$C$9:$C$87,0)+RIGHT($E205),0))\n/SUM(Q$10:Q$11)","v":0},{"$f":"IF(INDEX(PC_MAPPING,RIGHT($C197,1),MATCH($E$2,'Data by Building Type'!$D$22:$F$22,0))=\"Yes\",1,0)*\n(R$10*OFFSET('Efficiency Distributions'!$D$10,MATCH($C197,'Efficiency Distributions'!$C$9:$C$87,0)+RIGHT($E205),0)\n+R$11*OFFSET('Efficiency Distributions'!$E$10,MATCH($C197,'Efficiency Distributions'!$C$9:$C$87,0)+RIGHT($E205),0))\n/SUM(R$10:R$11)","v":0},{"$f":"IF(INDEX(PC_MAPPING,RIGHT($C197,1),MATCH($E$2,'Data by Building Type'!$D$22:$F$22,0))=\"Yes\",1,0)*\n(S$10*OFFSET('Efficiency Distributions'!$D$10,MATCH($C197,'Efficiency Distributions'!$C$9:$C$87,0)+RIGHT($E205),0)\n+S$11*OFFSET('Efficiency Distributions'!$E$10,MATCH($C197,'Efficiency Distributions'!$C$9:$C$87,0)+RIGHT($E205),0))\n/SUM(S$10:S$11)","v":0},{"$f":"IF(INDEX(PC_MAPPING,RIGHT($C197,1),MATCH($E$2,'Data by Building Type'!$D$22:$F$22,0))=\"Yes\",1,0)*\n(T$10*OFFSET('Efficiency Distributions'!$D$10,MATCH($C197,'Efficiency Distributions'!$C$9:$C$87,0)+RIGHT($E205),0)\n+T$11*OFFSET('Efficiency Distributions'!$E$10,MATCH($C197,'Efficiency Distributions'!$C$9:$C$87,0)+RIGHT($E205),0))\n/SUM(T$10:T$11)","v":0},{"$f":"IF(INDEX(PC_MAPPING,RIGHT($C197,1),MATCH($E$2,'Data by Building Type'!$D$22:$F$22,0))=\"Yes\",1,0)*\n(U$10*OFFSET('Efficiency Distributions'!$D$10,MATCH($C197,'Efficiency Distributions'!$C$9:$C$87,0)+RIGHT($E205),0)\n+U$11*OFFSET('Efficiency Distributions'!$E$10,MATCH($C197,'Efficiency Distributions'!$C$9:$C$87,0)+RIGHT($E205),0))\n/SUM(U$10:U$11)","v":0},{"$f":"IF(INDEX(PC_MAPPING,RIGHT($C197,1),MATCH($E$2,'Data by Building Type'!$D$22:$F$22,0))=\"Yes\",1,0)*\n(V$10*OFFSET('Efficiency Distributions'!$D$10,MATCH($C197,'Efficiency Distributions'!$C$9:$C$87,0)+RIGHT($E205),0)\n+V$11*OFFSET('Efficiency Distributions'!$E$10,MATCH($C197,'Efficiency Distributions'!$C$9:$C$87,0)+RIGHT($E205),0))\n/SUM(V$10:V$11)","v":0},{"$f":"IF(INDEX(PC_MAPPING,RIGHT($C197,1),MATCH($E$2,'Data by Building Type'!$D$22:$F$22,0))=\"Yes\",1,0)*\n(W$10*OFFSET('Efficiency Distributions'!$D$10,MATCH($C197,'Efficiency Distributions'!$C$9:$C$87,0)+RIGHT($E205),0)\n+W$11*OFFSET('Efficiency Distributions'!$E$10,MATCH($C197,'Efficiency Distributions'!$C$9:$C$87,0)+RIGHT($E205),0))\n/SUM(W$10:W$11)","v":0},{"$f":"IF(INDEX(PC_MAPPING,RIGHT($C197,1),MATCH($E$2,'Data by Building Type'!$D$22:$F$22,0))=\"Yes\",1,0)*\n(X$10*OFFSET('Efficiency Distributions'!$D$10,MATCH($C197,'Efficiency Distributions'!$C$9:$C$87,0)+RIGHT($E205),0)\n+X$11*OFFSET('Efficiency Distributions'!$E$10,MATCH($C197,'Efficiency Distributions'!$C$9:$C$87,0)+RIGHT($E205),0))\n/SUM(X$10:X$11)","v":0},{"$f":"IF(INDEX(PC_MAPPING,RIGHT($C197,1),MATCH($E$2,'Data by Building Type'!$D$22:$F$22,0))=\"Yes\",1,0)*\n(Y$10*OFFSET('Efficiency Distributions'!$D$10,MATCH($C197,'Efficiency Distributions'!$C$9:$C$87,0)+RIGHT($E205),0)\n+Y$11*OFFSET('Efficiency Distributions'!$E$10,MATCH($C197,'Efficiency Distributions'!$C$9:$C$87,0)+RIGHT($E205),0))\n/SUM(Y$10:Y$11)","v":0},{"$f":"IF(INDEX(PC_MAPPING,RIGHT($C197,1),MATCH($E$2,'Data by Building Type'!$D$22:$F$22,0))=\"Yes\",1,0)*\n(Z$10*OFFSET('Efficiency Distributions'!$D$10,MATCH($C197,'Efficiency Distributions'!$C$9:$C$87,0)+RIGHT($E205),0)\n+Z$11*OFFSET('Efficiency Distributions'!$E$10,MATCH($C197,'Efficiency Distributions'!$C$9:$C$87,0)+RIGHT($E205),0))\n/SUM(Z$10:Z$11)","v":0},{"$f":"IF(INDEX(PC_MAPPING,RIGHT($C197,1),MATCH($E$2,'Data by Building Type'!$D$22:$F$22,0))=\"Yes\",1,0)*\n(AA$10*OFFSET('Efficiency Distributions'!$D$10,MATCH($C197,'Efficiency Distributions'!$C$9:$C$87,0)+RIGHT($E205),0)\n+AA$11*OFFSET('Efficiency Distributions'!$E$10,MATCH($C197,'Efficiency Distributions'!$C$9:$C$87,0)+RIGHT($E205),0))\n/SUM(AA$10:AA$11)","v":0},{"$f":"IF(INDEX(PC_MAPPING,RIGHT($C197,1),MATCH($E$2,'Data by Building Type'!$D$22:$F$22,0))=\"Yes\",1,0)*\n(AB$10*OFFSET('Efficiency Distributions'!$D$10,MATCH($C197,'Efficiency Distributions'!$C$9:$C$87,0)+RIGHT($E205),0)\n+AB$11*OFFSET('Efficiency Distributions'!$E$10,MATCH($C197,'Efficiency Distributions'!$C$9:$C$87,0)+RIGHT($E205),0))\n/SUM(AB$10:AB$11)","v":0},{"$f":"IF(INDEX(PC_MAPPING,RIGHT($C197,1),MATCH($E$2,'Data by Building Type'!$D$22:$F$22,0))=\"Yes\",1,0)*\n(AC$10*OFFSET('Efficiency Distributions'!$D$10,MATCH($C197,'Efficiency Distributions'!$C$9:$C$87,0)+RIGHT($E205),0)\n+AC$11*OFFSET('Efficiency Distributions'!$E$10,MATCH($C197,'Efficiency Distributions'!$C$9:$C$87,0)+RIGHT($E205),0))\n/SUM(AC$10:AC$11)","v":0},{"$f":"IF(INDEX(PC_MAPPING,RIGHT($C197,1),MATCH($E$2,'Data by Building Type'!$D$22:$F$22,0))=\"Yes\",1,0)*\n(AD$10*OFFSET('Efficiency Distributions'!$D$10,MATCH($C197,'Efficiency Distributions'!$C$9:$C$87,0)+RIGHT($E205),0)\n+AD$11*OFFSET('Efficiency Distributions'!$E$10,MATCH($C197,'Efficiency Distributions'!$C$9:$C$87,0)+RIGHT($E205),0))\n/SUM(AD$10:AD$11)","v":0},{"$f":"IF(INDEX(PC_MAPPING,RIGHT($C197,1),MATCH($E$2,'Data by Building Type'!$D$22:$F$22,0))=\"Yes\",1,0)*\n(AE$10*OFFSET('Efficiency Distributions'!$D$10,MATCH($C197,'Efficiency Distributions'!$C$9:$C$87,0)+RIGHT($E205),0)\n+AE$11*OFFSET('Efficiency Distributions'!$E$10,MATCH($C197,'Efficiency Distributions'!$C$9:$C$87,0)+RIGHT($E205),0))\n/SUM(AE$10:AE$11)","v":0},{"$f":"IF(INDEX(PC_MAPPING,RIGHT($C197,1),MATCH($E$2,'Data by Building Type'!$D$22:$F$22,0))=\"Yes\",1,0)*\n(AF$10*OFFSET('Efficiency Distributions'!$D$10,MATCH($C197,'Efficiency Distributions'!$C$9:$C$87,0)+RIGHT($E205),0)\n+AF$11*OFFSET('Efficiency Distributions'!$E$10,MATCH($C197,'Efficiency Distributions'!$C$9:$C$87,0)+RIGHT($E205),0))\n/SUM(AF$10:AF$11)","v":0},{"$f":"IF(INDEX(PC_MAPPING,RIGHT($C197,1),MATCH($E$2,'Data by Building Type'!$D$22:$F$22,0))=\"Yes\",1,0)*\n(AG$10*OFFSET('Efficiency Distributions'!$D$10,MATCH($C197,'Efficiency Distributions'!$C$9:$C$87,0)+RIGHT($E205),0)\n+AG$11*OFFSET('Efficiency Distributions'!$E$10,MATCH($C197,'Efficiency Distributions'!$C$9:$C$87,0)+RIGHT($E205),0))\n/SUM(AG$10:AG$11)","v":0},{"$f":"IF(INDEX(PC_MAPPING,RIGHT($C197,1),MATCH($E$2,'Data by Building Type'!$D$22:$F$22,0))=\"Yes\",1,0)*\n(AH$10*OFFSET('Efficiency Distributions'!$D$10,MATCH($C197,'Efficiency Distributions'!$C$9:$C$87,0)+RIGHT($E205),0)\n+AH$11*OFFSET('Efficiency Distributions'!$E$10,MATCH($C197,'Efficiency Distributions'!$C$9:$C$87,0)+RIGHT($E205),0))\n/SUM(AH$10:AH$11)","v":0},{"$f":"IF(INDEX(PC_MAPPING,RIGHT($C197,1),MATCH($E$2,'Data by Building Type'!$D$22:$F$22,0))=\"Yes\",1,0)*\n(AI$10*OFFSET('Efficiency Distributions'!$D$10,MATCH($C197,'Efficiency Distributions'!$C$9:$C$87,0)+RIGHT($E205),0)\n+AI$11*OFFSET('Efficiency Distributions'!$E$10,MATCH($C197,'Efficiency Distributions'!$C$9:$C$87,0)+RIGHT($E205),0))\n/SUM(AI$10:AI$11)","v":0},{"$f":"IF(INDEX(PC_MAPPING,RIGHT($C197,1),MATCH($E$2,'Data by Building Type'!$D$22:$F$22,0))=\"Yes\",1,0)*\n(AJ$10*OFFSET('Efficiency Distributions'!$D$10,MATCH($C197,'Efficiency Distributions'!$C$9:$C$87,0)+RIGHT($E205),0)\n+AJ$11*OFFSET('Efficiency Distributions'!$E$10,MATCH($C197,'Efficiency Distributions'!$C$9:$C$87,0)+RIGHT($E205),0))\n/SUM(AJ$10:AJ$11)","v":0},{"$f":"IF(INDEX(PC_MAPPING,RIGHT($C197,1),MATCH($E$2,'Data by Building Type'!$D$22:$F$22,0))=\"Yes\",1,0)*\n(AK$10*OFFSET('Efficiency Distributions'!$D$10,MATCH($C197,'Efficiency Distributions'!$C$9:$C$87,0)+RIGHT($E205),0)\n+AK$11*OFFSET('Efficiency Distributions'!$E$10,MATCH($C197,'Efficiency Distributions'!$C$9:$C$87,0)+RIGHT($E205),0))\n/SUM(AK$10:AK$11)","v":0},{"$f":"IF(INDEX(PC_MAPPING,RIGHT($C197,1),MATCH($E$2,'Data by Building Type'!$D$22:$F$22,0))=\"Yes\",1,0)*\n(AL$10*OFFSET('Efficiency Distributions'!$D$10,MATCH($C197,'Efficiency Distributions'!$C$9:$C$87,0)+RIGHT($E205),0)\n+AL$11*OFFSET('Efficiency Distributions'!$E$10,MATCH($C197,'Efficiency Distributions'!$C$9:$C$87,0)+RIGHT($E205),0))\n/SUM(AL$10:AL$11)","v":0},{"$f":"IF(INDEX(PC_MAPPING,RIGHT($C197,1),MATCH($E$2,'Data by Building Type'!$D$22:$F$22,0))=\"Yes\",1,0)*\n(AM$10*OFFSET('Efficiency Distributions'!$D$10,MATCH($C197,'Efficiency Distributions'!$C$9:$C$87,0)+RIGHT($E205),0)\n+AM$11*OFFSET('Efficiency Distributions'!$E$10,MATCH($C197,'Efficiency Distributions'!$C$9:$C$87,0)+RIGHT($E205),0))\n/SUM(AM$10:AM$11)","v":0},{"$f":"IF(INDEX(PC_MAPPING,RIGHT($C197,1),MATCH($E$2,'Data by Building Type'!$D$22:$F$22,0))=\"Yes\",1,0)*\n(AN$10*OFFSET('Efficiency Distributions'!$D$10,MATCH($C197,'Efficiency Distributions'!$C$9:$C$87,0)+RIGHT($E205),0)\n+AN$11*OFFSET('Efficiency Distributions'!$E$10,MATCH($C197,'Efficiency Distributions'!$C$9:$C$87,0)+RIGHT($E205),0))\n/SUM(AN$10:AN$11)","v":0},{"$f":"IF(INDEX(PC_MAPPING,RIGHT($C197,1),MATCH($E$2,'Data by Building Type'!$D$22:$F$22,0))=\"Yes\",1,0)*\n(AO$10*OFFSET('Efficiency Distributions'!$D$10,MATCH($C197,'Efficiency Distributions'!$C$9:$C$87,0)+RIGHT($E205),0)\n+AO$11*OFFSET('Efficiency Distributions'!$E$10,MATCH($C197,'Efficiency Distributions'!$C$9:$C$87,0)+RIGHT($E205),0))\n/SUM(AO$10:AO$11)","v":0},{"$f":"IF(INDEX(PC_MAPPING,RIGHT($C197,1),MATCH($E$2,'Data by Building Type'!$D$22:$F$22,0))=\"Yes\",1,0)*\n(AP$10*OFFSET('Efficiency Distributions'!$D$10,MATCH($C197,'Efficiency Distributions'!$C$9:$C$87,0)+RIGHT($E205),0)\n+AP$11*OFFSET('Efficiency Distributions'!$E$10,MATCH($C197,'Efficiency Distributions'!$C$9:$C$87,0)+RIGHT($E205),0))\n/SUM(AP$10:AP$11)","v":0},{"$f":"IF(INDEX(PC_MAPPING,RIGHT($C197,1),MATCH($E$2,'Data by Building Type'!$D$22:$F$22,0))=\"Yes\",1,0)*\n(AQ$10*OFFSET('Efficiency Distributions'!$D$10,MATCH($C197,'Efficiency Distributions'!$C$9:$C$87,0)+RIGHT($E205),0)\n+AQ$11*OFFSET('Efficiency Distributions'!$E$10,MATCH($C197,'Efficiency Distributions'!$C$9:$C$87,0)+RIGHT($E205),0))\n/SUM(AQ$10:AQ$11)","v":0},{"$f":"IF(INDEX(PC_MAPPING,RIGHT($C197,1),MATCH($E$2,'Data by Building Type'!$D$22:$F$22,0))=\"Yes\",1,0)*\n(AR$10*OFFSET('Efficiency Distributions'!$D$10,MATCH($C197,'Efficiency Distributions'!$C$9:$C$87,0)+RIGHT($E205),0)\n+AR$11*OFFSET('Efficiency Distributions'!$E$10,MATCH($C197,'Efficiency Distributions'!$C$9:$C$87,0)+RIGHT($E205),0))\n/SUM(AR$10:AR$11)","v":0},{"$f":"IF(INDEX(PC_MAPPING,RIGHT($C197,1),MATCH($E$2,'Data by Building Type'!$D$22:$F$22,0))=\"Yes\",1,0)*\n(AS$10*OFFSET('Efficiency Distributions'!$D$10,MATCH($C197,'Efficiency Distributions'!$C$9:$C$87,0)+RIGHT($E205),0)\n+AS$11*OFFSET('Efficiency Distributions'!$E$10,MATCH($C197,'Efficiency Distributions'!$C$9:$C$87,0)+RIGHT($E205),0))\n/SUM(AS$10:AS$11)","v":0},{"$f":"IF(INDEX(PC_MAPPING,RIGHT($C197,1),MATCH($E$2,'Data by Building Type'!$D$22:$F$22,0))=\"Yes\",1,0)*\n(AT$10*OFFSET('Efficiency Distributions'!$D$10,MATCH($C197,'Efficiency Distributions'!$C$9:$C$87,0)+RIGHT($E205),0)\n+AT$11*OFFSET('Efficiency Distributions'!$E$10,MATCH($C197,'Efficiency Distributions'!$C$9:$C$87,0)+RIGHT($E205),0))\n/SUM(AT$10:AT$11)","v":0},{"$f":"IF(INDEX(PC_MAPPING,RIGHT($C197,1),MATCH($E$2,'Data by Building Type'!$D$22:$F$22,0))=\"Yes\",1,0)*\n(AU$10*OFFSET('Efficiency Distributions'!$D$10,MATCH($C197,'Efficiency Distributions'!$C$9:$C$87,0)+RIGHT($E205),0)\n+AU$11*OFFSET('Efficiency Distributions'!$E$10,MATCH($C197,'Efficiency Distributions'!$C$9:$C$87,0)+RIGHT($E205),0))\n/SUM(AU$10:AU$11)","v":0},{"$f":"IF(INDEX(PC_MAPPING,RIGHT($C197,1),MATCH($E$2,'Data by Building Type'!$D$22:$F$22,0))=\"Yes\",1,0)*\n(AV$10*OFFSET('Efficiency Distributions'!$D$10,MATCH($C197,'Efficiency Distributions'!$C$9:$C$87,0)+RIGHT($E205),0)\n+AV$11*OFFSET('Efficiency Distributions'!$E$10,MATCH($C197,'Efficiency Distributions'!$C$9:$C$87,0)+RIGHT($E205),0))\n/SUM(AV$10:AV$11)","v":0},{"$f":"IF(INDEX(PC_MAPPING,RIGHT($C197,1),MATCH($E$2,'Data by Building Type'!$D$22:$F$22,0))=\"Yes\",1,0)*\n(AW$10*OFFSET('Efficiency Distributions'!$D$10,MATCH($C197,'Efficiency Distributions'!$C$9:$C$87,0)+RIGHT($E205),0)\n+AW$11*OFFSET('Efficiency Distributions'!$E$10,MATCH($C197,'Efficiency Distributions'!$C$9:$C$87,0)+RIGHT($E205),0))\n/SUM(AW$10:AW$11)","v":0},{"$f":"IF(INDEX(PC_MAPPING,RIGHT($C197,1),MATCH($E$2,'Data by Building Type'!$D$22:$F$22,0))=\"Yes\",1,0)*\n(AX$10*OFFSET('Efficiency Distributions'!$D$10,MATCH($C197,'Efficiency Distributions'!$C$9:$C$87,0)+RIGHT($E205),0)\n+AX$11*OFFSET('Efficiency Distributions'!$E$10,MATCH($C197,'Efficiency Distributions'!$C$9:$C$87,0)+RIGHT($E205),0))\n/SUM(AX$10:AX$11)","v":0},{"$f":"IF(INDEX(PC_MAPPING,RIGHT($C197,1),MATCH($E$2,'Data by Building Type'!$D$22:$F$22,0))=\"Yes\",1,0)*\n(AY$10*OFFSET('Efficiency Distributions'!$D$10,MATCH($C197,'Efficiency Distributions'!$C$9:$C$87,0)+RIGHT($E205),0)\n+AY$11*OFFSET('Efficiency Distributions'!$E$10,MATCH($C197,'Efficiency Distributions'!$C$9:$C$87,0)+RIGHT($E205),0))\n/SUM(AY$10:AY$11)","v":0},{"$f":"IF(INDEX(PC_MAPPING,RIGHT($C197,1),MATCH($E$2,'Data by Building Type'!$D$22:$F$22,0))=\"Yes\",1,0)*\n(AZ$10*OFFSET('Efficiency Distributions'!$D$10,MATCH($C197,'Efficiency Distributions'!$C$9:$C$87,0)+RIGHT($E205),0)\n+AZ$11*OFFSET('Efficiency Distributions'!$E$10,MATCH($C197,'Efficiency Distributions'!$C$9:$C$87,0)+RIGHT($E205),0))\n/SUM(AZ$10:AZ$11)","v":0},{"$f":"IF(INDEX(PC_MAPPING,RIGHT($C197,1),MATCH($E$2,'Data by Building Type'!$D$22:$F$22,0))=\"Yes\",1,0)*\n(BA$10*OFFSET('Efficiency Distributions'!$D$10,MATCH($C197,'Efficiency Distributions'!$C$9:$C$87,0)+RIGHT($E205),0)\n+BA$11*OFFSET('Efficiency Distributions'!$E$10,MATCH($C197,'Efficiency Distributions'!$C$9:$C$87,0)+RIGHT($E205),0))\n/SUM(BA$10:BA$11)","v":0},{"$f":"IF(INDEX(PC_MAPPING,RIGHT($C197,1),MATCH($E$2,'Data by Building Type'!$D$22:$F$22,0))=\"Yes\",1,0)*\n(BB$10*OFFSET('Efficiency Distributions'!$D$10,MATCH($C197,'Efficiency Distributions'!$C$9:$C$87,0)+RIGHT($E205),0)\n+BB$11*OFFSET('Efficiency Distributions'!$E$10,MATCH($C197,'Efficiency Distributions'!$C$9:$C$87,0)+RIGHT($E205),0))\n/SUM(BB$10:BB$11)","v":0},{"$f":"IF(INDEX(PC_MAPPING,RIGHT($C197,1),MATCH($E$2,'Data by Building Type'!$D$22:$F$22,0))=\"Yes\",1,0)*\n(BC$10*OFFSET('Efficiency Distributions'!$D$10,MATCH($C197,'Efficiency Distributions'!$C$9:$C$87,0)+RIGHT($E205),0)\n+BC$11*OFFSET('Efficiency Distributions'!$E$10,MATCH($C197,'Efficiency Distributions'!$C$9:$C$87,0)+RIGHT($E205),0))\n/SUM(BC$10:BC$11)","v":0},{"$f":"IF(INDEX(PC_MAPPING,RIGHT($C197,1),MATCH($E$2,'Data by Building Type'!$D$22:$F$22,0))=\"Yes\",1,0)*\n(BD$10*OFFSET('Efficiency Distributions'!$D$10,MATCH($C197,'Efficiency Distributions'!$C$9:$C$87,0)+RIGHT($E205),0)\n+BD$11*OFFSET('Efficiency Distributions'!$E$10,MATCH($C197,'Efficiency Distributions'!$C$9:$C$87,0)+RIGHT($E205),0))\n/SUM(BD$10:BD$11)","v":0},{"$f":"IF(INDEX(PC_MAPPING,RIGHT($C197,1),MATCH($E$2,'Data by Building Type'!$D$22:$F$22,0))=\"Yes\",1,0)*\n(BE$10*OFFSET('Efficiency Distributions'!$D$10,MATCH($C197,'Efficiency Distributions'!$C$9:$C$87,0)+RIGHT($E205),0)\n+BE$11*OFFSET('Efficiency Distributions'!$E$10,MATCH($C197,'Efficiency Distributions'!$C$9:$C$87,0)+RIGHT($E205),0))\n/SUM(BE$10:BE$11)","v":0},{"$f":"IF(INDEX(PC_MAPPING,RIGHT($C197,1),MATCH($E$2,'Data by Building Type'!$D$22:$F$22,0))=\"Yes\",1,0)*\n(BF$10*OFFSET('Efficiency Distributions'!$D$10,MATCH($C197,'Efficiency Distributions'!$C$9:$C$87,0)+RIGHT($E205),0)\n+BF$11*OFFSET('Efficiency Distributions'!$E$10,MATCH($C197,'Efficiency Distributions'!$C$9:$C$87,0)+RIGHT($E205),0))\n/SUM(BF$10:BF$11)","v":0},{"$f":"IF(INDEX(PC_MAPPING,RIGHT($C197,1),MATCH($E$2,'Data by Building Type'!$D$22:$F$22,0))=\"Yes\",1,0)*\n(BG$10*OFFSET('Efficiency Distributions'!$D$10,MATCH($C197,'Efficiency Distributions'!$C$9:$C$87,0)+RIGHT($E205),0)\n+BG$11*OFFSET('Efficiency Distributions'!$E$10,MATCH($C197,'Efficiency Distributions'!$C$9:$C$87,0)+RIGHT($E205),0))\n/SUM(BG$10:BG$11)","v":0}]
[null,null,null,null,"EL5",{"$f":"IF(INDEX(PC_MAPPING,RIGHT($C197,1),MATCH($E$2,'Data by Building Type'!$D$22:$F$22,0))=\"Yes\",1,0)*\n(F$10*OFFSET('Efficiency Distributions'!$D$10,MATCH($C197,'Efficiency Distributions'!$C$9:$C$87,0)+RIGHT($E206),0)\n+F$11*OFFSET('Efficiency Distributions'!$E$10,MATCH($C197,'Efficiency Distributions'!$C$9:$C$87,0)+RIGHT($E206),0))\n/SUM(F$10:F$11)","v":0},{"$f":"IF(INDEX(PC_MAPPING,RIGHT($C197,1),MATCH($E$2,'Data by Building Type'!$D$22:$F$22,0))=\"Yes\",1,0)*\n(G$10*OFFSET('Efficiency Distributions'!$D$10,MATCH($C197,'Efficiency Distributions'!$C$9:$C$87,0)+RIGHT($E206),0)\n+G$11*OFFSET('Efficiency Distributions'!$E$10,MATCH($C197,'Efficiency Distributions'!$C$9:$C$87,0)+RIGHT($E206),0))\n/SUM(G$10:G$11)","v":0},{"$f":"IF(INDEX(PC_MAPPING,RIGHT($C197,1),MATCH($E$2,'Data by Building Type'!$D$22:$F$22,0))=\"Yes\",1,0)*\n(H$10*OFFSET('Efficiency Distributions'!$D$10,MATCH($C197,'Efficiency Distributions'!$C$9:$C$87,0)+RIGHT($E206),0)\n+H$11*OFFSET('Efficiency Distributions'!$E$10,MATCH($C197,'Efficiency Distributions'!$C$9:$C$87,0)+RIGHT($E206),0))\n/SUM(H$10:H$11)","v":0},{"$f":"IF(INDEX(PC_MAPPING,RIGHT($C197,1),MATCH($E$2,'Data by Building Type'!$D$22:$F$22,0))=\"Yes\",1,0)*\n(I$10*OFFSET('Efficiency Distributions'!$D$10,MATCH($C197,'Efficiency Distributions'!$C$9:$C$87,0)+RIGHT($E206),0)\n+I$11*OFFSET('Efficiency Distributions'!$E$10,MATCH($C197,'Efficiency Distributions'!$C$9:$C$87,0)+RIGHT($E206),0))\n/SUM(I$10:I$11)","v":0},{"$f":"IF(INDEX(PC_MAPPING,RIGHT($C197,1),MATCH($E$2,'Data by Building Type'!$D$22:$F$22,0))=\"Yes\",1,0)*\n(J$10*OFFSET('Efficiency Distributions'!$D$10,MATCH($C197,'Efficiency Distributions'!$C$9:$C$87,0)+RIGHT($E206),0)\n+J$11*OFFSET('Efficiency Distributions'!$E$10,MATCH($C197,'Efficiency Distributions'!$C$9:$C$87,0)+RIGHT($E206),0))\n/SUM(J$10:J$11)","v":0},{"$f":"IF(INDEX(PC_MAPPING,RIGHT($C197,1),MATCH($E$2,'Data by Building Type'!$D$22:$F$22,0))=\"Yes\",1,0)*\n(K$10*OFFSET('Efficiency Distributions'!$D$10,MATCH($C197,'Efficiency Distributions'!$C$9:$C$87,0)+RIGHT($E206),0)\n+K$11*OFFSET('Efficiency Distributions'!$E$10,MATCH($C197,'Efficiency Distributions'!$C$9:$C$87,0)+RIGHT($E206),0))\n/SUM(K$10:K$11)","v":0},{"$f":"IF(INDEX(PC_MAPPING,RIGHT($C197,1),MATCH($E$2,'Data by Building Type'!$D$22:$F$22,0))=\"Yes\",1,0)*\n(L$10*OFFSET('Efficiency Distributions'!$D$10,MATCH($C197,'Efficiency Distributions'!$C$9:$C$87,0)+RIGHT($E206),0)\n+L$11*OFFSET('Efficiency Distributions'!$E$10,MATCH($C197,'Efficiency Distributions'!$C$9:$C$87,0)+RIGHT($E206),0))\n/SUM(L$10:L$11)","v":0},{"$f":"IF(INDEX(PC_MAPPING,RIGHT($C197,1),MATCH($E$2,'Data by Building Type'!$D$22:$F$22,0))=\"Yes\",1,0)*\n(M$10*OFFSET('Efficiency Distributions'!$D$10,MATCH($C197,'Efficiency Distributions'!$C$9:$C$87,0)+RIGHT($E206),0)\n+M$11*OFFSET('Efficiency Distributions'!$E$10,MATCH($C197,'Efficiency Distributions'!$C$9:$C$87,0)+RIGHT($E206),0))\n/SUM(M$10:M$11)","v":0},{"$f":"IF(INDEX(PC_MAPPING,RIGHT($C197,1),MATCH($E$2,'Data by Building Type'!$D$22:$F$22,0))=\"Yes\",1,0)*\n(N$10*OFFSET('Efficiency Distributions'!$D$10,MATCH($C197,'Efficiency Distributions'!$C$9:$C$87,0)+RIGHT($E206),0)\n+N$11*OFFSET('Efficiency Distributions'!$E$10,MATCH($C197,'Efficiency Distributions'!$C$9:$C$87,0)+RIGHT($E206),0))\n/SUM(N$10:N$11)","v":0},{"$f":"IF(INDEX(PC_MAPPING,RIGHT($C197,1),MATCH($E$2,'Data by Building Type'!$D$22:$F$22,0))=\"Yes\",1,0)*\n(O$10*OFFSET('Efficiency Distributions'!$D$10,MATCH($C197,'Efficiency Distributions'!$C$9:$C$87,0)+RIGHT($E206),0)\n+O$11*OFFSET('Efficiency Distributions'!$E$10,MATCH($C197,'Efficiency Distributions'!$C$9:$C$87,0)+RIGHT($E206),0))\n/SUM(O$10:O$11)","v":0},{"$f":"IF(INDEX(PC_MAPPING,RIGHT($C197,1),MATCH($E$2,'Data by Building Type'!$D$22:$F$22,0))=\"Yes\",1,0)*\n(P$10*OFFSET('Efficiency Distributions'!$D$10,MATCH($C197,'Efficiency Distributions'!$C$9:$C$87,0)+RIGHT($E206),0)\n+P$11*OFFSET('Efficiency Distributions'!$E$10,MATCH($C197,'Efficiency Distributions'!$C$9:$C$87,0)+RIGHT($E206),0))\n/SUM(P$10:P$11)","v":0},{"$f":"IF(INDEX(PC_MAPPING,RIGHT($C197,1),MATCH($E$2,'Data by Building Type'!$D$22:$F$22,0))=\"Yes\",1,0)*\n(Q$10*OFFSET('Efficiency Distributions'!$D$10,MATCH($C197,'Efficiency Distributions'!$C$9:$C$87,0)+RIGHT($E206),0)\n+Q$11*OFFSET('Efficiency Distributions'!$E$10,MATCH($C197,'Efficiency Distributions'!$C$9:$C$87,0)+RIGHT($E206),0))\n/SUM(Q$10:Q$11)","v":0},{"$f":"IF(INDEX(PC_MAPPING,RIGHT($C197,1),MATCH($E$2,'Data by Building Type'!$D$22:$F$22,0))=\"Yes\",1,0)*\n(R$10*OFFSET('Efficiency Distributions'!$D$10,MATCH($C197,'Efficiency Distributions'!$C$9:$C$87,0)+RIGHT($E206),0)\n+R$11*OFFSET('Efficiency Distributions'!$E$10,MATCH($C197,'Efficiency Distributions'!$C$9:$C$87,0)+RIGHT($E206),0))\n/SUM(R$10:R$11)","v":0},{"$f":"IF(INDEX(PC_MAPPING,RIGHT($C197,1),MATCH($E$2,'Data by Building Type'!$D$22:$F$22,0))=\"Yes\",1,0)*\n(S$10*OFFSET('Efficiency Distributions'!$D$10,MATCH($C197,'Efficiency Distributions'!$C$9:$C$87,0)+RIGHT($E206),0)\n+S$11*OFFSET('Efficiency Distributions'!$E$10,MATCH($C197,'Efficiency Distributions'!$C$9:$C$87,0)+RIGHT($E206),0))\n/SUM(S$10:S$11)","v":0},{"$f":"IF(INDEX(PC_MAPPING,RIGHT($C197,1),MATCH($E$2,'Data by Building Type'!$D$22:$F$22,0))=\"Yes\",1,0)*\n(T$10*OFFSET('Efficiency Distributions'!$D$10,MATCH($C197,'Efficiency Distributions'!$C$9:$C$87,0)+RIGHT($E206),0)\n+T$11*OFFSET('Efficiency Distributions'!$E$10,MATCH($C197,'Efficiency Distributions'!$C$9:$C$87,0)+RIGHT($E206),0))\n/SUM(T$10:T$11)","v":0},{"$f":"IF(INDEX(PC_MAPPING,RIGHT($C197,1),MATCH($E$2,'Data by Building Type'!$D$22:$F$22,0))=\"Yes\",1,0)*\n(U$10*OFFSET('Efficiency Distributions'!$D$10,MATCH($C197,'Efficiency Distributions'!$C$9:$C$87,0)+RIGHT($E206),0)\n+U$11*OFFSET('Efficiency Distributions'!$E$10,MATCH($C197,'Efficiency Distributions'!$C$9:$C$87,0)+RIGHT($E206),0))\n/SUM(U$10:U$11)","v":0},{"$f":"IF(INDEX(PC_MAPPING,RIGHT($C197,1),MATCH($E$2,'Data by Building Type'!$D$22:$F$22,0))=\"Yes\",1,0)*\n(V$10*OFFSET('Efficiency Distributions'!$D$10,MATCH($C197,'Efficiency Distributions'!$C$9:$C$87,0)+RIGHT($E206),0)\n+V$11*OFFSET('Efficiency Distributions'!$E$10,MATCH($C197,'Efficiency Distributions'!$C$9:$C$87,0)+RIGHT($E206),0))\n/SUM(V$10:V$11)","v":0},{"$f":"IF(INDEX(PC_MAPPING,RIGHT($C197,1),MATCH($E$2,'Data by Building Type'!$D$22:$F$22,0))=\"Yes\",1,0)*\n(W$10*OFFSET('Efficiency Distributions'!$D$10,MATCH($C197,'Efficiency Distributions'!$C$9:$C$87,0)+RIGHT($E206),0)\n+W$11*OFFSET('Efficiency Distributions'!$E$10,MATCH($C197,'Efficiency Distributions'!$C$9:$C$87,0)+RIGHT($E206),0))\n/SUM(W$10:W$11)","v":0},{"$f":"IF(INDEX(PC_MAPPING,RIGHT($C197,1),MATCH($E$2,'Data by Building Type'!$D$22:$F$22,0))=\"Yes\",1,0)*\n(X$10*OFFSET('Efficiency Distributions'!$D$10,MATCH($C197,'Efficiency Distributions'!$C$9:$C$87,0)+RIGHT($E206),0)\n+X$11*OFFSET('Efficiency Distributions'!$E$10,MATCH($C197,'Efficiency Distributions'!$C$9:$C$87,0)+RIGHT($E206),0))\n/SUM(X$10:X$11)","v":0},{"$f":"IF(INDEX(PC_MAPPING,RIGHT($C197,1),MATCH($E$2,'Data by Building Type'!$D$22:$F$22,0))=\"Yes\",1,0)*\n(Y$10*OFFSET('Efficiency Distributions'!$D$10,MATCH($C197,'Efficiency Distributions'!$C$9:$C$87,0)+RIGHT($E206),0)\n+Y$11*OFFSET('Efficiency Distributions'!$E$10,MATCH($C197,'Efficiency Distributions'!$C$9:$C$87,0)+RIGHT($E206),0))\n/SUM(Y$10:Y$11)","v":0},{"$f":"IF(INDEX(PC_MAPPING,RIGHT($C197,1),MATCH($E$2,'Data by Building Type'!$D$22:$F$22,0))=\"Yes\",1,0)*\n(Z$10*OFFSET('Efficiency Distributions'!$D$10,MATCH($C197,'Efficiency Distributions'!$C$9:$C$87,0)+RIGHT($E206),0)\n+Z$11*OFFSET('Efficiency Distributions'!$E$10,MATCH($C197,'Efficiency Distributions'!$C$9:$C$87,0)+RIGHT($E206),0))\n/SUM(Z$10:Z$11)","v":0},{"$f":"IF(INDEX(PC_MAPPING,RIGHT($C197,1),MATCH($E$2,'Data by Building Type'!$D$22:$F$22,0))=\"Yes\",1,0)*\n(AA$10*OFFSET('Efficiency Distributions'!$D$10,MATCH($C197,'Efficiency Distributions'!$C$9:$C$87,0)+RIGHT($E206),0)\n+AA$11*OFFSET('Efficiency Distributions'!$E$10,MATCH($C197,'Efficiency Distributions'!$C$9:$C$87,0)+RIGHT($E206),0))\n/SUM(AA$10:AA$11)","v":0},{"$f":"IF(INDEX(PC_MAPPING,RIGHT($C197,1),MATCH($E$2,'Data by Building Type'!$D$22:$F$22,0))=\"Yes\",1,0)*\n(AB$10*OFFSET('Efficiency Distributions'!$D$10,MATCH($C197,'Efficiency Distributions'!$C$9:$C$87,0)+RIGHT($E206),0)\n+AB$11*OFFSET('Efficiency Distributions'!$E$10,MATCH($C197,'Efficiency Distributions'!$C$9:$C$87,0)+RIGHT($E206),0))\n/SUM(AB$10:AB$11)","v":0},{"$f":"IF(INDEX(PC_MAPPING,RIGHT($C197,1),MATCH($E$2,'Data by Building Type'!$D$22:$F$22,0))=\"Yes\",1,0)*\n(AC$10*OFFSET('Efficiency Distributions'!$D$10,MATCH($C197,'Efficiency Distributions'!$C$9:$C$87,0)+RIGHT($E206),0)\n+AC$11*OFFSET('Efficiency Distributions'!$E$10,MATCH($C197,'Efficiency Distributions'!$C$9:$C$87,0)+RIGHT($E206),0))\n/SUM(AC$10:AC$11)","v":0},{"$f":"IF(INDEX(PC_MAPPING,RIGHT($C197,1),MATCH($E$2,'Data by Building Type'!$D$22:$F$22,0))=\"Yes\",1,0)*\n(AD$10*OFFSET('Efficiency Distributions'!$D$10,MATCH($C197,'Efficiency Distributions'!$C$9:$C$87,0)+RIGHT($E206),0)\n+AD$11*OFFSET('Efficiency Distributions'!$E$10,MATCH($C197,'Efficiency Distributions'!$C$9:$C$87,0)+RIGHT($E206),0))\n/SUM(AD$10:AD$11)","v":0},{"$f":"IF(INDEX(PC_MAPPING,RIGHT($C197,1),MATCH($E$2,'Data by Building Type'!$D$22:$F$22,0))=\"Yes\",1,0)*\n(AE$10*OFFSET('Efficiency Distributions'!$D$10,MATCH($C197,'Efficiency Distributions'!$C$9:$C$87,0)+RIGHT($E206),0)\n+AE$11*OFFSET('Efficiency Distributions'!$E$10,MATCH($C197,'Efficiency Distributions'!$C$9:$C$87,0)+RIGHT($E206),0))\n/SUM(AE$10:AE$11)","v":0},{"$f":"IF(INDEX(PC_MAPPING,RIGHT($C197,1),MATCH($E$2,'Data by Building Type'!$D$22:$F$22,0))=\"Yes\",1,0)*\n(AF$10*OFFSET('Efficiency Distributions'!$D$10,MATCH($C197,'Efficiency Distributions'!$C$9:$C$87,0)+RIGHT($E206),0)\n+AF$11*OFFSET('Efficiency Distributions'!$E$10,MATCH($C197,'Efficiency Distributions'!$C$9:$C$87,0)+RIGHT($E206),0))\n/SUM(AF$10:AF$11)","v":0},{"$f":"IF(INDEX(PC_MAPPING,RIGHT($C197,1),MATCH($E$2,'Data by Building Type'!$D$22:$F$22,0))=\"Yes\",1,0)*\n(AG$10*OFFSET('Efficiency Distributions'!$D$10,MATCH($C197,'Efficiency Distributions'!$C$9:$C$87,0)+RIGHT($E206),0)\n+AG$11*OFFSET('Efficiency Distributions'!$E$10,MATCH($C197,'Efficiency Distributions'!$C$9:$C$87,0)+RIGHT($E206),0))\n/SUM(AG$10:AG$11)","v":0},{"$f":"IF(INDEX(PC_MAPPING,RIGHT($C197,1),MATCH($E$2,'Data by Building Type'!$D$22:$F$22,0))=\"Yes\",1,0)*\n(AH$10*OFFSET('Efficiency Distributions'!$D$10,MATCH($C197,'Efficiency Distributions'!$C$9:$C$87,0)+RIGHT($E206),0)\n+AH$11*OFFSET('Efficiency Distributions'!$E$10,MATCH($C197,'Efficiency Distributions'!$C$9:$C$87,0)+RIGHT($E206),0))\n/SUM(AH$10:AH$11)","v":0},{"$f":"IF(INDEX(PC_MAPPING,RIGHT($C197,1),MATCH($E$2,'Data by Building Type'!$D$22:$F$22,0))=\"Yes\",1,0)*\n(AI$10*OFFSET('Efficiency Distributions'!$D$10,MATCH($C197,'Efficiency Distributions'!$C$9:$C$87,0)+RIGHT($E206),0)\n+AI$11*OFFSET('Efficiency Distributions'!$E$10,MATCH($C197,'Efficiency Distributions'!$C$9:$C$87,0)+RIGHT($E206),0))\n/SUM(AI$10:AI$11)","v":0},{"$f":"IF(INDEX(PC_MAPPING,RIGHT($C197,1),MATCH($E$2,'Data by Building Type'!$D$22:$F$22,0))=\"Yes\",1,0)*\n(AJ$10*OFFSET('Efficiency Distributions'!$D$10,MATCH($C197,'Efficiency Distributions'!$C$9:$C$87,0)+RIGHT($E206),0)\n+AJ$11*OFFSET('Efficiency Distributions'!$E$10,MATCH($C197,'Efficiency Distributions'!$C$9:$C$87,0)+RIGHT($E206),0))\n/SUM(AJ$10:AJ$11)","v":0},{"$f":"IF(INDEX(PC_MAPPING,RIGHT($C197,1),MATCH($E$2,'Data by Building Type'!$D$22:$F$22,0))=\"Yes\",1,0)*\n(AK$10*OFFSET('Efficiency Distributions'!$D$10,MATCH($C197,'Efficiency Distributions'!$C$9:$C$87,0)+RIGHT($E206),0)\n+AK$11*OFFSET('Efficiency Distributions'!$E$10,MATCH($C197,'Efficiency Distributions'!$C$9:$C$87,0)+RIGHT($E206),0))\n/SUM(AK$10:AK$11)","v":0},{"$f":"IF(INDEX(PC_MAPPING,RIGHT($C197,1),MATCH($E$2,'Data by Building Type'!$D$22:$F$22,0))=\"Yes\",1,0)*\n(AL$10*OFFSET('Efficiency Distributions'!$D$10,MATCH($C197,'Efficiency Distributions'!$C$9:$C$87,0)+RIGHT($E206),0)\n+AL$11*OFFSET('Efficiency Distributions'!$E$10,MATCH($C197,'Efficiency Distributions'!$C$9:$C$87,0)+RIGHT($E206),0))\n/SUM(AL$10:AL$11)","v":0},{"$f":"IF(INDEX(PC_MAPPING,RIGHT($C197,1),MATCH($E$2,'Data by Building Type'!$D$22:$F$22,0))=\"Yes\",1,0)*\n(AM$10*OFFSET('Efficiency Distributions'!$D$10,MATCH($C197,'Efficiency Distributions'!$C$9:$C$87,0)+RIGHT($E206),0)\n+AM$11*OFFSET('Efficiency Distributions'!$E$10,MATCH($C197,'Efficiency Distributions'!$C$9:$C$87,0)+RIGHT($E206),0))\n/SUM(AM$10:AM$11)","v":0},{"$f":"IF(INDEX(PC_MAPPING,RIGHT($C197,1),MATCH($E$2,'Data by Building Type'!$D$22:$F$22,0))=\"Yes\",1,0)*\n(AN$10*OFFSET('Efficiency Distributions'!$D$10,MATCH($C197,'Efficiency Distributions'!$C$9:$C$87,0)+RIGHT($E206),0)\n+AN$11*OFFSET('Efficiency Distributions'!$E$10,MATCH($C197,'Efficiency Distributions'!$C$9:$C$87,0)+RIGHT($E206),0))\n/SUM(AN$10:AN$11)","v":0},{"$f":"IF(INDEX(PC_MAPPING,RIGHT($C197,1),MATCH($E$2,'Data by Building Type'!$D$22:$F$22,0))=\"Yes\",1,0)*\n(AO$10*OFFSET('Efficiency Distributions'!$D$10,MATCH($C197,'Efficiency Distributions'!$C$9:$C$87,0)+RIGHT($E206),0)\n+AO$11*OFFSET('Efficiency Distributions'!$E$10,MATCH($C197,'Efficiency Distributions'!$C$9:$C$87,0)+RIGHT($E206),0))\n/SUM(AO$10:AO$11)","v":0},{"$f":"IF(INDEX(PC_MAPPING,RIGHT($C197,1),MATCH($E$2,'Data by Building Type'!$D$22:$F$22,0))=\"Yes\",1,0)*\n(AP$10*OFFSET('Efficiency Distributions'!$D$10,MATCH($C197,'Efficiency Distributions'!$C$9:$C$87,0)+RIGHT($E206),0)\n+AP$11*OFFSET('Efficiency Distributions'!$E$10,MATCH($C197,'Efficiency Distributions'!$C$9:$C$87,0)+RIGHT($E206),0))\n/SUM(AP$10:AP$11)","v":0},{"$f":"IF(INDEX(PC_MAPPING,RIGHT($C197,1),MATCH($E$2,'Data by Building Type'!$D$22:$F$22,0))=\"Yes\",1,0)*\n(AQ$10*OFFSET('Efficiency Distributions'!$D$10,MATCH($C197,'Efficiency Distributions'!$C$9:$C$87,0)+RIGHT($E206),0)\n+AQ$11*OFFSET('Efficiency Distributions'!$E$10,MATCH($C197,'Efficiency Distributions'!$C$9:$C$87,0)+RIGHT($E206),0))\n/SUM(AQ$10:AQ$11)","v":0},{"$f":"IF(INDEX(PC_MAPPING,RIGHT($C197,1),MATCH($E$2,'Data by Building Type'!$D$22:$F$22,0))=\"Yes\",1,0)*\n(AR$10*OFFSET('Efficiency Distributions'!$D$10,MATCH($C197,'Efficiency Distributions'!$C$9:$C$87,0)+RIGHT($E206),0)\n+AR$11*OFFSET('Efficiency Distributions'!$E$10,MATCH($C197,'Efficiency Distributions'!$C$9:$C$87,0)+RIGHT($E206),0))\n/SUM(AR$10:AR$11)","v":0},{"$f":"IF(INDEX(PC_MAPPING,RIGHT($C197,1),MATCH($E$2,'Data by Building Type'!$D$22:$F$22,0))=\"Yes\",1,0)*\n(AS$10*OFFSET('Efficiency Distributions'!$D$10,MATCH($C197,'Efficiency Distributions'!$C$9:$C$87,0)+RIGHT($E206),0)\n+AS$11*OFFSET('Efficiency Distributions'!$E$10,MATCH($C197,'Efficiency Distributions'!$C$9:$C$87,0)+RIGHT($E206),0))\n/SUM(AS$10:AS$11)","v":0},{"$f":"IF(INDEX(PC_MAPPING,RIGHT($C197,1),MATCH($E$2,'Data by Building Type'!$D$22:$F$22,0))=\"Yes\",1,0)*\n(AT$10*OFFSET('Efficiency Distributions'!$D$10,MATCH($C197,'Efficiency Distributions'!$C$9:$C$87,0)+RIGHT($E206),0)\n+AT$11*OFFSET('Efficiency Distributions'!$E$10,MATCH($C197,'Efficiency Distributions'!$C$9:$C$87,0)+RIGHT($E206),0))\n/SUM(AT$10:AT$11)","v":0},{"$f":"IF(INDEX(PC_MAPPING,RIGHT($C197,1),MATCH($E$2,'Data by Building Type'!$D$22:$F$22,0))=\"Yes\",1,0)*\n(AU$10*OFFSET('Efficiency Distributions'!$D$10,MATCH($C197,'Efficiency Distributions'!$C$9:$C$87,0)+RIGHT($E206),0)\n+AU$11*OFFSET('Efficiency Distributions'!$E$10,MATCH($C197,'Efficiency Distributions'!$C$9:$C$87,0)+RIGHT($E206),0))\n/SUM(AU$10:AU$11)","v":0},{"$f":"IF(INDEX(PC_MAPPING,RIGHT($C197,1),MATCH($E$2,'Data by Building Type'!$D$22:$F$22,0))=\"Yes\",1,0)*\n(AV$10*OFFSET('Efficiency Distributions'!$D$10,MATCH($C197,'Efficiency Distributions'!$C$9:$C$87,0)+RIGHT($E206),0)\n+AV$11*OFFSET('Efficiency Distributions'!$E$10,MATCH($C197,'Efficiency Distributions'!$C$9:$C$87,0)+RIGHT($E206),0))\n/SUM(AV$10:AV$11)","v":0},{"$f":"IF(INDEX(PC_MAPPING,RIGHT($C197,1),MATCH($E$2,'Data by Building Type'!$D$22:$F$22,0))=\"Yes\",1,0)*\n(AW$10*OFFSET('Efficiency Distributions'!$D$10,MATCH($C197,'Efficiency Distributions'!$C$9:$C$87,0)+RIGHT($E206),0)\n+AW$11*OFFSET('Efficiency Distributions'!$E$10,MATCH($C197,'Efficiency Distributions'!$C$9:$C$87,0)+RIGHT($E206),0))\n/SUM(AW$10:AW$11)","v":0},{"$f":"IF(INDEX(PC_MAPPING,RIGHT($C197,1),MATCH($E$2,'Data by Building Type'!$D$22:$F$22,0))=\"Yes\",1,0)*\n(AX$10*OFFSET('Efficiency Distributions'!$D$10,MATCH($C197,'Efficiency Distributions'!$C$9:$C$87,0)+RIGHT($E206),0)\n+AX$11*OFFSET('Efficiency Distributions'!$E$10,MATCH($C197,'Efficiency Distributions'!$C$9:$C$87,0)+RIGHT($E206),0))\n/SUM(AX$10:AX$11)","v":0},{"$f":"IF(INDEX(PC_MAPPING,RIGHT($C197,1),MATCH($E$2,'Data by Building Type'!$D$22:$F$22,0))=\"Yes\",1,0)*\n(AY$10*OFFSET('Efficiency Distributions'!$D$10,MATCH($C197,'Efficiency Distributions'!$C$9:$C$87,0)+RIGHT($E206),0)\n+AY$11*OFFSET('Efficiency Distributions'!$E$10,MATCH($C197,'Efficiency Distributions'!$C$9:$C$87,0)+RIGHT($E206),0))\n/SUM(AY$10:AY$11)","v":0},{"$f":"IF(INDEX(PC_MAPPING,RIGHT($C197,1),MATCH($E$2,'Data by Building Type'!$D$22:$F$22,0))=\"Yes\",1,0)*\n(AZ$10*OFFSET('Efficiency Distributions'!$D$10,MATCH($C197,'Efficiency Distributions'!$C$9:$C$87,0)+RIGHT($E206),0)\n+AZ$11*OFFSET('Efficiency Distributions'!$E$10,MATCH($C197,'Efficiency Distributions'!$C$9:$C$87,0)+RIGHT($E206),0))\n/SUM(AZ$10:AZ$11)","v":0},{"$f":"IF(INDEX(PC_MAPPING,RIGHT($C197,1),MATCH($E$2,'Data by Building Type'!$D$22:$F$22,0))=\"Yes\",1,0)*\n(BA$10*OFFSET('Efficiency Distributions'!$D$10,MATCH($C197,'Efficiency Distributions'!$C$9:$C$87,0)+RIGHT($E206),0)\n+BA$11*OFFSET('Efficiency Distributions'!$E$10,MATCH($C197,'Efficiency Distributions'!$C$9:$C$87,0)+RIGHT($E206),0))\n/SUM(BA$10:BA$11)","v":0},{"$f":"IF(INDEX(PC_MAPPING,RIGHT($C197,1),MATCH($E$2,'Data by Building Type'!$D$22:$F$22,0))=\"Yes\",1,0)*\n(BB$10*OFFSET('Efficiency Distributions'!$D$10,MATCH($C197,'Efficiency Distributions'!$C$9:$C$87,0)+RIGHT($E206),0)\n+BB$11*OFFSET('Efficiency Distributions'!$E$10,MATCH($C197,'Efficiency Distributions'!$C$9:$C$87,0)+RIGHT($E206),0))\n/SUM(BB$10:BB$11)","v":0},{"$f":"IF(INDEX(PC_MAPPING,RIGHT($C197,1),MATCH($E$2,'Data by Building Type'!$D$22:$F$22,0))=\"Yes\",1,0)*\n(BC$10*OFFSET('Efficiency Distributions'!$D$10,MATCH($C197,'Efficiency Distributions'!$C$9:$C$87,0)+RIGHT($E206),0)\n+BC$11*OFFSET('Efficiency Distributions'!$E$10,MATCH($C197,'Efficiency Distributions'!$C$9:$C$87,0)+RIGHT($E206),0))\n/SUM(BC$10:BC$11)","v":0},{"$f":"IF(INDEX(PC_MAPPING,RIGHT($C197,1),MATCH($E$2,'Data by Building Type'!$D$22:$F$22,0))=\"Yes\",1,0)*\n(BD$10*OFFSET('Efficiency Distributions'!$D$10,MATCH($C197,'Efficiency Distributions'!$C$9:$C$87,0)+RIGHT($E206),0)\n+BD$11*OFFSET('Efficiency Distributions'!$E$10,MATCH($C197,'Efficiency Distributions'!$C$9:$C$87,0)+RIGHT($E206),0))\n/SUM(BD$10:BD$11)","v":0},{"$f":"IF(INDEX(PC_MAPPING,RIGHT($C197,1),MATCH($E$2,'Data by Building Type'!$D$22:$F$22,0))=\"Yes\",1,0)*\n(BE$10*OFFSET('Efficiency Distributions'!$D$10,MATCH($C197,'Efficiency Distributions'!$C$9:$C$87,0)+RIGHT($E206),0)\n+BE$11*OFFSET('Efficiency Distributions'!$E$10,MATCH($C197,'Efficiency Distributions'!$C$9:$C$87,0)+RIGHT($E206),0))\n/SUM(BE$10:BE$11)","v":0},{"$f":"IF(INDEX(PC_MAPPING,RIGHT($C197,1),MATCH($E$2,'Data by Building Type'!$D$22:$F$22,0))=\"Yes\",1,0)*\n(BF$10*OFFSET('Efficiency Distributions'!$D$10,MATCH($C197,'Efficiency Distributions'!$C$9:$C$87,0)+RIGHT($E206),0)\n+BF$11*OFFSET('Efficiency Distributions'!$E$10,MATCH($C197,'Efficiency Distributions'!$C$9:$C$87,0)+RIGHT($E206),0))\n/SUM(BF$10:BF$11)","v":0},{"$f":"IF(INDEX(PC_MAPPING,RIGHT($C197,1),MATCH($E$2,'Data by Building Type'!$D$22:$F$22,0))=\"Yes\",1,0)*\n(BG$10*OFFSET('Efficiency Distributions'!$D$10,MATCH($C197,'Efficiency Distributions'!$C$9:$C$87,0)+RIGHT($E206),0)\n+BG$11*OFFSET('Efficiency Distributions'!$E$10,MATCH($C197,'Efficiency Distributions'!$C$9:$C$87,0)+RIGHT($E206),0))\n/SUM(BG$10:BG$11)","v":0}]
[null,null,null,null,"EL6",{"$f":"IF(INDEX(PC_MAPPING,RIGHT($C197,1),MATCH($E$2,'Data by Building Type'!$D$22:$F$22,0))=\"Yes\",1,0)*\n(F$10*OFFSET('Efficiency Distributions'!$D$10,MATCH($C197,'Efficiency Distributions'!$C$9:$C$87,0)+RIGHT($E207),0)\n+F$11*OFFSET('Efficiency Distributions'!$E$10,MATCH($C197,'Efficiency Distributions'!$C$9:$C$87,0)+RIGHT($E207),0))\n/SUM(F$10:F$11)","v":0},{"$f":"IF(INDEX(PC_MAPPING,RIGHT($C197,1),MATCH($E$2,'Data by Building Type'!$D$22:$F$22,0))=\"Yes\",1,0)*\n(G$10*OFFSET('Efficiency Distributions'!$D$10,MATCH($C197,'Efficiency Distributions'!$C$9:$C$87,0)+RIGHT($E207),0)\n+G$11*OFFSET('Efficiency Distributions'!$E$10,MATCH($C197,'Efficiency Distributions'!$C$9:$C$87,0)+RIGHT($E207),0))\n/SUM(G$10:G$11)","v":0},{"$f":"IF(INDEX(PC_MAPPING,RIGHT($C197,1),MATCH($E$2,'Data by Building Type'!$D$22:$F$22,0))=\"Yes\",1,0)*\n(H$10*OFFSET('Efficiency Distributions'!$D$10,MATCH($C197,'Efficiency Distributions'!$C$9:$C$87,0)+RIGHT($E207),0)\n+H$11*OFFSET('Efficiency Distributions'!$E$10,MATCH($C197,'Efficiency Distributions'!$C$9:$C$87,0)+RIGHT($E207),0))\n/SUM(H$10:H$11)","v":0},{"$f":"IF(INDEX(PC_MAPPING,RIGHT($C197,1),MATCH($E$2,'Data by Building Type'!$D$22:$F$22,0))=\"Yes\",1,0)*\n(I$10*OFFSET('Efficiency Distributions'!$D$10,MATCH($C197,'Efficiency Distributions'!$C$9:$C$87,0)+RIGHT($E207),0)\n+I$11*OFFSET('Efficiency Distributions'!$E$10,MATCH($C197,'Efficiency Distributions'!$C$9:$C$87,0)+RIGHT($E207),0))\n/SUM(I$10:I$11)","v":0},{"$f":"IF(INDEX(PC_MAPPING,RIGHT($C197,1),MATCH($E$2,'Data by Building Type'!$D$22:$F$22,0))=\"Yes\",1,0)*\n(J$10*OFFSET('Efficiency Distributions'!$D$10,MATCH($C197,'Efficiency Distributions'!$C$9:$C$87,0)+RIGHT($E207),0)\n+J$11*OFFSET('Efficiency Distributions'!$E$10,MATCH($C197,'Efficiency Distributions'!$C$9:$C$87,0)+RIGHT($E207),0))\n/SUM(J$10:J$11)","v":0},{"$f":"IF(INDEX(PC_MAPPING,RIGHT($C197,1),MATCH($E$2,'Data by Building Type'!$D$22:$F$22,0))=\"Yes\",1,0)*\n(K$10*OFFSET('Efficiency Distributions'!$D$10,MATCH($C197,'Efficiency Distributions'!$C$9:$C$87,0)+RIGHT($E207),0)\n+K$11*OFFSET('Efficiency Distributions'!$E$10,MATCH($C197,'Efficiency Distributions'!$C$9:$C$87,0)+RIGHT($E207),0))\n/SUM(K$10:K$11)","v":0},{"$f":"IF(INDEX(PC_MAPPING,RIGHT($C197,1),MATCH($E$2,'Data by Building Type'!$D$22:$F$22,0))=\"Yes\",1,0)*\n(L$10*OFFSET('Efficiency Distributions'!$D$10,MATCH($C197,'Efficiency Distributions'!$C$9:$C$87,0)+RIGHT($E207),0)\n+L$11*OFFSET('Efficiency Distributions'!$E$10,MATCH($C197,'Efficiency Distributions'!$C$9:$C$87,0)+RIGHT($E207),0))\n/SUM(L$10:L$11)","v":0},{"$f":"IF(INDEX(PC_MAPPING,RIGHT($C197,1),MATCH($E$2,'Data by Building Type'!$D$22:$F$22,0))=\"Yes\",1,0)*\n(M$10*OFFSET('Efficiency Distributions'!$D$10,MATCH($C197,'Efficiency Distributions'!$C$9:$C$87,0)+RIGHT($E207),0)\n+M$11*OFFSET('Efficiency Distributions'!$E$10,MATCH($C197,'Efficiency Distributions'!$C$9:$C$87,0)+RIGHT($E207),0))\n/SUM(M$10:M$11)","v":0},{"$f":"IF(INDEX(PC_MAPPING,RIGHT($C197,1),MATCH($E$2,'Data by Building Type'!$D$22:$F$22,0))=\"Yes\",1,0)*\n(N$10*OFFSET('Efficiency Distributions'!$D$10,MATCH($C197,'Efficiency Distributions'!$C$9:$C$87,0)+RIGHT($E207),0)\n+N$11*OFFSET('Efficiency Distributions'!$E$10,MATCH($C197,'Efficiency Distributions'!$C$9:$C$87,0)+RIGHT($E207),0))\n/SUM(N$10:N$11)","v":0},{"$f":"IF(INDEX(PC_MAPPING,RIGHT($C197,1),MATCH($E$2,'Data by Building Type'!$D$22:$F$22,0))=\"Yes\",1,0)*\n(O$10*OFFSET('Efficiency Distributions'!$D$10,MATCH($C197,'Efficiency Distributions'!$C$9:$C$87,0)+RIGHT($E207),0)\n+O$11*OFFSET('Efficiency Distributions'!$E$10,MATCH($C197,'Efficiency Distributions'!$C$9:$C$87,0)+RIGHT($E207),0))\n/SUM(O$10:O$11)","v":0},{"$f":"IF(INDEX(PC_MAPPING,RIGHT($C197,1),MATCH($E$2,'Data by Building Type'!$D$22:$F$22,0))=\"Yes\",1,0)*\n(P$10*OFFSET('Efficiency Distributions'!$D$10,MATCH($C197,'Efficiency Distributions'!$C$9:$C$87,0)+RIGHT($E207),0)\n+P$11*OFFSET('Efficiency Distributions'!$E$10,MATCH($C197,'Efficiency Distributions'!$C$9:$C$87,0)+RIGHT($E207),0))\n/SUM(P$10:P$11)","v":0},{"$f":"IF(INDEX(PC_MAPPING,RIGHT($C197,1),MATCH($E$2,'Data by Building Type'!$D$22:$F$22,0))=\"Yes\",1,0)*\n(Q$10*OFFSET('Efficiency Distributions'!$D$10,MATCH($C197,'Efficiency Distributions'!$C$9:$C$87,0)+RIGHT($E207),0)\n+Q$11*OFFSET('Efficiency Distributions'!$E$10,MATCH($C197,'Efficiency Distributions'!$C$9:$C$87,0)+RIGHT($E207),0))\n/SUM(Q$10:Q$11)","v":0},{"$f":"IF(INDEX(PC_MAPPING,RIGHT($C197,1),MATCH($E$2,'Data by Building Type'!$D$22:$F$22,0))=\"Yes\",1,0)*\n(R$10*OFFSET('Efficiency Distributions'!$D$10,MATCH($C197,'Efficiency Distributions'!$C$9:$C$87,0)+RIGHT($E207),0)\n+R$11*OFFSET('Efficiency Distributions'!$E$10,MATCH($C197,'Efficiency Distributions'!$C$9:$C$87,0)+RIGHT($E207),0))\n/SUM(R$10:R$11)","v":0},{"$f":"IF(INDEX(PC_MAPPING,RIGHT($C197,1),MATCH($E$2,'Data by Building Type'!$D$22:$F$22,0))=\"Yes\",1,0)*\n(S$10*OFFSET('Efficiency Distributions'!$D$10,MATCH($C197,'Efficiency Distributions'!$C$9:$C$87,0)+RIGHT($E207),0)\n+S$11*OFFSET('Efficiency Distributions'!$E$10,MATCH($C197,'Efficiency Distributions'!$C$9:$C$87,0)+RIGHT($E207),0))\n/SUM(S$10:S$11)","v":0},{"$f":"IF(INDEX(PC_MAPPING,RIGHT($C197,1),MATCH($E$2,'Data by Building Type'!$D$22:$F$22,0))=\"Yes\",1,0)*\n(T$10*OFFSET('Efficiency Distributions'!$D$10,MATCH($C197,'Efficiency Distributions'!$C$9:$C$87,0)+RIGHT($E207),0)\n+T$11*OFFSET('Efficiency Distributions'!$E$10,MATCH($C197,'Efficiency Distributions'!$C$9:$C$87,0)+RIGHT($E207),0))\n/SUM(T$10:T$11)","v":0},{"$f":"IF(INDEX(PC_MAPPING,RIGHT($C197,1),MATCH($E$2,'Data by Building Type'!$D$22:$F$22,0))=\"Yes\",1,0)*\n(U$10*OFFSET('Efficiency Distributions'!$D$10,MATCH($C197,'Efficiency Distributions'!$C$9:$C$87,0)+RIGHT($E207),0)\n+U$11*OFFSET('Efficiency Distributions'!$E$10,MATCH($C197,'Efficiency Distributions'!$C$9:$C$87,0)+RIGHT($E207),0))\n/SUM(U$10:U$11)","v":0},{"$f":"IF(INDEX(PC_MAPPING,RIGHT($C197,1),MATCH($E$2,'Data by Building Type'!$D$22:$F$22,0))=\"Yes\",1,0)*\n(V$10*OFFSET('Efficiency Distributions'!$D$10,MATCH($C197,'Efficiency Distributions'!$C$9:$C$87,0)+RIGHT($E207),0)\n+V$11*OFFSET('Efficiency Distributions'!$E$10,MATCH($C197,'Efficiency Distributions'!$C$9:$C$87,0)+RIGHT($E207),0))\n/SUM(V$10:V$11)","v":0},{"$f":"IF(INDEX(PC_MAPPING,RIGHT($C197,1),MATCH($E$2,'Data by Building Type'!$D$22:$F$22,0))=\"Yes\",1,0)*\n(W$10*OFFSET('Efficiency Distributions'!$D$10,MATCH($C197,'Efficiency Distributions'!$C$9:$C$87,0)+RIGHT($E207),0)\n+W$11*OFFSET('Efficiency Distributions'!$E$10,MATCH($C197,'Efficiency Distributions'!$C$9:$C$87,0)+RIGHT($E207),0))\n/SUM(W$10:W$11)","v":0},{"$f":"IF(INDEX(PC_MAPPING,RIGHT($C197,1),MATCH($E$2,'Data by Building Type'!$D$22:$F$22,0))=\"Yes\",1,0)*\n(X$10*OFFSET('Efficiency Distributions'!$D$10,MATCH($C197,'Efficiency Distributions'!$C$9:$C$87,0)+RIGHT($E207),0)\n+X$11*OFFSET('Efficiency Distributions'!$E$10,MATCH($C197,'Efficiency Distributions'!$C$9:$C$87,0)+RIGHT($E207),0))\n/SUM(X$10:X$11)","v":0},{"$f":"IF(INDEX(PC_MAPPING,RIGHT($C197,1),MATCH($E$2,'Data by Building Type'!$D$22:$F$22,0))=\"Yes\",1,0)*\n(Y$10*OFFSET('Efficiency Distributions'!$D$10,MATCH($C197,'Efficiency Distributions'!$C$9:$C$87,0)+RIGHT($E207),0)\n+Y$11*OFFSET('Efficiency Distributions'!$E$10,MATCH($C197,'Efficiency Distributions'!$C$9:$C$87,0)+RIGHT($E207),0))\n/SUM(Y$10:Y$11)","v":0},{"$f":"IF(INDEX(PC_MAPPING,RIGHT($C197,1),MATCH($E$2,'Data by Building Type'!$D$22:$F$22,0))=\"Yes\",1,0)*\n(Z$10*OFFSET('Efficiency Distributions'!$D$10,MATCH($C197,'Efficiency Distributions'!$C$9:$C$87,0)+RIGHT($E207),0)\n+Z$11*OFFSET('Efficiency Distributions'!$E$10,MATCH($C197,'Efficiency Distributions'!$C$9:$C$87,0)+RIGHT($E207),0))\n/SUM(Z$10:Z$11)","v":0},{"$f":"IF(INDEX(PC_MAPPING,RIGHT($C197,1),MATCH($E$2,'Data by Building Type'!$D$22:$F$22,0))=\"Yes\",1,0)*\n(AA$10*OFFSET('Efficiency Distributions'!$D$10,MATCH($C197,'Efficiency Distributions'!$C$9:$C$87,0)+RIGHT($E207),0)\n+AA$11*OFFSET('Efficiency Distributions'!$E$10,MATCH($C197,'Efficiency Distributions'!$C$9:$C$87,0)+RIGHT($E207),0))\n/SUM(AA$10:AA$11)","v":0},{"$f":"IF(INDEX(PC_MAPPING,RIGHT($C197,1),MATCH($E$2,'Data by Building Type'!$D$22:$F$22,0))=\"Yes\",1,0)*\n(AB$10*OFFSET('Efficiency Distributions'!$D$10,MATCH($C197,'Efficiency Distributions'!$C$9:$C$87,0)+RIGHT($E207),0)\n+AB$11*OFFSET('Efficiency Distributions'!$E$10,MATCH($C197,'Efficiency Distributions'!$C$9:$C$87,0)+RIGHT($E207),0))\n/SUM(AB$10:AB$11)","v":0},{"$f":"IF(INDEX(PC_MAPPING,RIGHT($C197,1),MATCH($E$2,'Data by Building Type'!$D$22:$F$22,0))=\"Yes\",1,0)*\n(AC$10*OFFSET('Efficiency Distributions'!$D$10,MATCH($C197,'Efficiency Distributions'!$C$9:$C$87,0)+RIGHT($E207),0)\n+AC$11*OFFSET('Efficiency Distributions'!$E$10,MATCH($C197,'Efficiency Distributions'!$C$9:$C$87,0)+RIGHT($E207),0))\n/SUM(AC$10:AC$11)","v":0},{"$f":"IF(INDEX(PC_MAPPING,RIGHT($C197,1),MATCH($E$2,'Data by Building Type'!$D$22:$F$22,0))=\"Yes\",1,0)*\n(AD$10*OFFSET('Efficiency Distributions'!$D$10,MATCH($C197,'Efficiency Distributions'!$C$9:$C$87,0)+RIGHT($E207),0)\n+AD$11*OFFSET('Efficiency Distributions'!$E$10,MATCH($C197,'Efficiency Distributions'!$C$9:$C$87,0)+RIGHT($E207),0))\n/SUM(AD$10:AD$11)","v":0},{"$f":"IF(INDEX(PC_MAPPING,RIGHT($C197,1),MATCH($E$2,'Data by Building Type'!$D$22:$F$22,0))=\"Yes\",1,0)*\n(AE$10*OFFSET('Efficiency Distributions'!$D$10,MATCH($C197,'Efficiency Distributions'!$C$9:$C$87,0)+RIGHT($E207),0)\n+AE$11*OFFSET('Efficiency Distributions'!$E$10,MATCH($C197,'Efficiency Distributions'!$C$9:$C$87,0)+RIGHT($E207),0))\n/SUM(AE$10:AE$11)","v":0},{"$f":"IF(INDEX(PC_MAPPING,RIGHT($C197,1),MATCH($E$2,'Data by Building Type'!$D$22:$F$22,0))=\"Yes\",1,0)*\n(AF$10*OFFSET('Efficiency Distributions'!$D$10,MATCH($C197,'Efficiency Distributions'!$C$9:$C$87,0)+RIGHT($E207),0)\n+AF$11*OFFSET('Efficiency Distributions'!$E$10,MATCH($C197,'Efficiency Distributions'!$C$9:$C$87,0)+RIGHT($E207),0))\n/SUM(AF$10:AF$11)","v":0},{"$f":"IF(INDEX(PC_MAPPING,RIGHT($C197,1),MATCH($E$2,'Data by Building Type'!$D$22:$F$22,0))=\"Yes\",1,0)*\n(AG$10*OFFSET('Efficiency Distributions'!$D$10,MATCH($C197,'Efficiency Distributions'!$C$9:$C$87,0)+RIGHT($E207),0)\n+AG$11*OFFSET('Efficiency Distributions'!$E$10,MATCH($C197,'Efficiency Distributions'!$C$9:$C$87,0)+RIGHT($E207),0))\n/SUM(AG$10:AG$11)","v":0},{"$f":"IF(INDEX(PC_MAPPING,RIGHT($C197,1),MATCH($E$2,'Data by Building Type'!$D$22:$F$22,0))=\"Yes\",1,0)*\n(AH$10*OFFSET('Efficiency Distributions'!$D$10,MATCH($C197,'Efficiency Distributions'!$C$9:$C$87,0)+RIGHT($E207),0)\n+AH$11*OFFSET('Efficiency Distributions'!$E$10,MATCH($C197,'Efficiency Distributions'!$C$9:$C$87,0)+RIGHT($E207),0))\n/SUM(AH$10:AH$11)","v":0},{"$f":"IF(INDEX(PC_MAPPING,RIGHT($C197,1),MATCH($E$2,'Data by Building Type'!$D$22:$F$22,0))=\"Yes\",1,0)*\n(AI$10*OFFSET('Efficiency Distributions'!$D$10,MATCH($C197,'Efficiency Distributions'!$C$9:$C$87,0)+RIGHT($E207),0)\n+AI$11*OFFSET('Efficiency Distributions'!$E$10,MATCH($C197,'Efficiency Distributions'!$C$9:$C$87,0)+RIGHT($E207),0))\n/SUM(AI$10:AI$11)","v":0},{"$f":"IF(INDEX(PC_MAPPING,RIGHT($C197,1),MATCH($E$2,'Data by Building Type'!$D$22:$F$22,0))=\"Yes\",1,0)*\n(AJ$10*OFFSET('Efficiency Distributions'!$D$10,MATCH($C197,'Efficiency Distributions'!$C$9:$C$87,0)+RIGHT($E207),0)\n+AJ$11*OFFSET('Efficiency Distributions'!$E$10,MATCH($C197,'Efficiency Distributions'!$C$9:$C$87,0)+RIGHT($E207),0))\n/SUM(AJ$10:AJ$11)","v":0},{"$f":"IF(INDEX(PC_MAPPING,RIGHT($C197,1),MATCH($E$2,'Data by Building Type'!$D$22:$F$22,0))=\"Yes\",1,0)*\n(AK$10*OFFSET('Efficiency Distributions'!$D$10,MATCH($C197,'Efficiency Distributions'!$C$9:$C$87,0)+RIGHT($E207),0)\n+AK$11*OFFSET('Efficiency Distributions'!$E$10,MATCH($C197,'Efficiency Distributions'!$C$9:$C$87,0)+RIGHT($E207),0))\n/SUM(AK$10:AK$11)","v":0},{"$f":"IF(INDEX(PC_MAPPING,RIGHT($C197,1),MATCH($E$2,'Data by Building Type'!$D$22:$F$22,0))=\"Yes\",1,0)*\n(AL$10*OFFSET('Efficiency Distributions'!$D$10,MATCH($C197,'Efficiency Distributions'!$C$9:$C$87,0)+RIGHT($E207),0)\n+AL$11*OFFSET('Efficiency Distributions'!$E$10,MATCH($C197,'Efficiency Distributions'!$C$9:$C$87,0)+RIGHT($E207),0))\n/SUM(AL$10:AL$11)","v":0},{"$f":"IF(INDEX(PC_MAPPING,RIGHT($C197,1),MATCH($E$2,'Data by Building Type'!$D$22:$F$22,0))=\"Yes\",1,0)*\n(AM$10*OFFSET('Efficiency Distributions'!$D$10,MATCH($C197,'Efficiency Distributions'!$C$9:$C$87,0)+RIGHT($E207),0)\n+AM$11*OFFSET('Efficiency Distributions'!$E$10,MATCH($C197,'Efficiency Distributions'!$C$9:$C$87,0)+RIGHT($E207),0))\n/SUM(AM$10:AM$11)","v":0},{"$f":"IF(INDEX(PC_MAPPING,RIGHT($C197,1),MATCH($E$2,'Data by Building Type'!$D$22:$F$22,0))=\"Yes\",1,0)*\n(AN$10*OFFSET('Efficiency Distributions'!$D$10,MATCH($C197,'Efficiency Distributions'!$C$9:$C$87,0)+RIGHT($E207),0)\n+AN$11*OFFSET('Efficiency Distributions'!$E$10,MATCH($C197,'Efficiency Distributions'!$C$9:$C$87,0)+RIGHT($E207),0))\n/SUM(AN$10:AN$11)","v":0},{"$f":"IF(INDEX(PC_MAPPING,RIGHT($C197,1),MATCH($E$2,'Data by Building Type'!$D$22:$F$22,0))=\"Yes\",1,0)*\n(AO$10*OFFSET('Efficiency Distributions'!$D$10,MATCH($C197,'Efficiency Distributions'!$C$9:$C$87,0)+RIGHT($E207),0)\n+AO$11*OFFSET('Efficiency Distributions'!$E$10,MATCH($C197,'Efficiency Distributions'!$C$9:$C$87,0)+RIGHT($E207),0))\n/SUM(AO$10:AO$11)","v":0},{"$f":"IF(INDEX(PC_MAPPING,RIGHT($C197,1),MATCH($E$2,'Data by Building Type'!$D$22:$F$22,0))=\"Yes\",1,0)*\n(AP$10*OFFSET('Efficiency Distributions'!$D$10,MATCH($C197,'Efficiency Distributions'!$C$9:$C$87,0)+RIGHT($E207),0)\n+AP$11*OFFSET('Efficiency Distributions'!$E$10,MATCH($C197,'Efficiency Distributions'!$C$9:$C$87,0)+RIGHT($E207),0))\n/SUM(AP$10:AP$11)","v":0},{"$f":"IF(INDEX(PC_MAPPING,RIGHT($C197,1),MATCH($E$2,'Data by Building Type'!$D$22:$F$22,0))=\"Yes\",1,0)*\n(AQ$10*OFFSET('Efficiency Distributions'!$D$10,MATCH($C197,'Efficiency Distributions'!$C$9:$C$87,0)+RIGHT($E207),0)\n+AQ$11*OFFSET('Efficiency Distributions'!$E$10,MATCH($C197,'Efficiency Distributions'!$C$9:$C$87,0)+RIGHT($E207),0))\n/SUM(AQ$10:AQ$11)","v":0},{"$f":"IF(INDEX(PC_MAPPING,RIGHT($C197,1),MATCH($E$2,'Data by Building Type'!$D$22:$F$22,0))=\"Yes\",1,0)*\n(AR$10*OFFSET('Efficiency Distributions'!$D$10,MATCH($C197,'Efficiency Distributions'!$C$9:$C$87,0)+RIGHT($E207),0)\n+AR$11*OFFSET('Efficiency Distributions'!$E$10,MATCH($C197,'Efficiency Distributions'!$C$9:$C$87,0)+RIGHT($E207),0))\n/SUM(AR$10:AR$11)","v":0},{"$f":"IF(INDEX(PC_MAPPING,RIGHT($C197,1),MATCH($E$2,'Data by Building Type'!$D$22:$F$22,0))=\"Yes\",1,0)*\n(AS$10*OFFSET('Efficiency Distributions'!$D$10,MATCH($C197,'Efficiency Distributions'!$C$9:$C$87,0)+RIGHT($E207),0)\n+AS$11*OFFSET('Efficiency Distributions'!$E$10,MATCH($C197,'Efficiency Distributions'!$C$9:$C$87,0)+RIGHT($E207),0))\n/SUM(AS$10:AS$11)","v":0},{"$f":"IF(INDEX(PC_MAPPING,RIGHT($C197,1),MATCH($E$2,'Data by Building Type'!$D$22:$F$22,0))=\"Yes\",1,0)*\n(AT$10*OFFSET('Efficiency Distributions'!$D$10,MATCH($C197,'Efficiency Distributions'!$C$9:$C$87,0)+RIGHT($E207),0)\n+AT$11*OFFSET('Efficiency Distributions'!$E$10,MATCH($C197,'Efficiency Distributions'!$C$9:$C$87,0)+RIGHT($E207),0))\n/SUM(AT$10:AT$11)","v":0},{"$f":"IF(INDEX(PC_MAPPING,RIGHT($C197,1),MATCH($E$2,'Data by Building Type'!$D$22:$F$22,0))=\"Yes\",1,0)*\n(AU$10*OFFSET('Efficiency Distributions'!$D$10,MATCH($C197,'Efficiency Distributions'!$C$9:$C$87,0)+RIGHT($E207),0)\n+AU$11*OFFSET('Efficiency Distributions'!$E$10,MATCH($C197,'Efficiency Distributions'!$C$9:$C$87,0)+RIGHT($E207),0))\n/SUM(AU$10:AU$11)","v":0},{"$f":"IF(INDEX(PC_MAPPING,RIGHT($C197,1),MATCH($E$2,'Data by Building Type'!$D$22:$F$22,0))=\"Yes\",1,0)*\n(AV$10*OFFSET('Efficiency Distributions'!$D$10,MATCH($C197,'Efficiency Distributions'!$C$9:$C$87,0)+RIGHT($E207),0)\n+AV$11*OFFSET('Efficiency Distributions'!$E$10,MATCH($C197,'Efficiency Distributions'!$C$9:$C$87,0)+RIGHT($E207),0))\n/SUM(AV$10:AV$11)","v":0},{"$f":"IF(INDEX(PC_MAPPING,RIGHT($C197,1),MATCH($E$2,'Data by Building Type'!$D$22:$F$22,0))=\"Yes\",1,0)*\n(AW$10*OFFSET('Efficiency Distributions'!$D$10,MATCH($C197,'Efficiency Distributions'!$C$9:$C$87,0)+RIGHT($E207),0)\n+AW$11*OFFSET('Efficiency Distributions'!$E$10,MATCH($C197,'Efficiency Distributions'!$C$9:$C$87,0)+RIGHT($E207),0))\n/SUM(AW$10:AW$11)","v":0},{"$f":"IF(INDEX(PC_MAPPING,RIGHT($C197,1),MATCH($E$2,'Data by Building Type'!$D$22:$F$22,0))=\"Yes\",1,0)*\n(AX$10*OFFSET('Efficiency Distributions'!$D$10,MATCH($C197,'Efficiency Distributions'!$C$9:$C$87,0)+RIGHT($E207),0)\n+AX$11*OFFSET('Efficiency Distributions'!$E$10,MATCH($C197,'Efficiency Distributions'!$C$9:$C$87,0)+RIGHT($E207),0))\n/SUM(AX$10:AX$11)","v":0},{"$f":"IF(INDEX(PC_MAPPING,RIGHT($C197,1),MATCH($E$2,'Data by Building Type'!$D$22:$F$22,0))=\"Yes\",1,0)*\n(AY$10*OFFSET('Efficiency Distributions'!$D$10,MATCH($C197,'Efficiency Distributions'!$C$9:$C$87,0)+RIGHT($E207),0)\n+AY$11*OFFSET('Efficiency Distributions'!$E$10,MATCH($C197,'Efficiency Distributions'!$C$9:$C$87,0)+RIGHT($E207),0))\n/SUM(AY$10:AY$11)","v":0},{"$f":"IF(INDEX(PC_MAPPING,RIGHT($C197,1),MATCH($E$2,'Data by Building Type'!$D$22:$F$22,0))=\"Yes\",1,0)*\n(AZ$10*OFFSET('Efficiency Distributions'!$D$10,MATCH($C197,'Efficiency Distributions'!$C$9:$C$87,0)+RIGHT($E207),0)\n+AZ$11*OFFSET('Efficiency Distributions'!$E$10,MATCH($C197,'Efficiency Distributions'!$C$9:$C$87,0)+RIGHT($E207),0))\n/SUM(AZ$10:AZ$11)","v":0},{"$f":"IF(INDEX(PC_MAPPING,RIGHT($C197,1),MATCH($E$2,'Data by Building Type'!$D$22:$F$22,0))=\"Yes\",1,0)*\n(BA$10*OFFSET('Efficiency Distributions'!$D$10,MATCH($C197,'Efficiency Distributions'!$C$9:$C$87,0)+RIGHT($E207),0)\n+BA$11*OFFSET('Efficiency Distributions'!$E$10,MATCH($C197,'Efficiency Distributions'!$C$9:$C$87,0)+RIGHT($E207),0))\n/SUM(BA$10:BA$11)","v":0},{"$f":"IF(INDEX(PC_MAPPING,RIGHT($C197,1),MATCH($E$2,'Data by Building Type'!$D$22:$F$22,0))=\"Yes\",1,0)*\n(BB$10*OFFSET('Efficiency Distributions'!$D$10,MATCH($C197,'Efficiency Distributions'!$C$9:$C$87,0)+RIGHT($E207),0)\n+BB$11*OFFSET('Efficiency Distributions'!$E$10,MATCH($C197,'Efficiency Distributions'!$C$9:$C$87,0)+RIGHT($E207),0))\n/SUM(BB$10:BB$11)","v":0},{"$f":"IF(INDEX(PC_MAPPING,RIGHT($C197,1),MATCH($E$2,'Data by Building Type'!$D$22:$F$22,0))=\"Yes\",1,0)*\n(BC$10*OFFSET('Efficiency Distributions'!$D$10,MATCH($C197,'Efficiency Distributions'!$C$9:$C$87,0)+RIGHT($E207),0)\n+BC$11*OFFSET('Efficiency Distributions'!$E$10,MATCH($C197,'Efficiency Distributions'!$C$9:$C$87,0)+RIGHT($E207),0))\n/SUM(BC$10:BC$11)","v":0},{"$f":"IF(INDEX(PC_MAPPING,RIGHT($C197,1),MATCH($E$2,'Data by Building Type'!$D$22:$F$22,0))=\"Yes\",1,0)*\n(BD$10*OFFSET('Efficiency Distributions'!$D$10,MATCH($C197,'Efficiency Distributions'!$C$9:$C$87,0)+RIGHT($E207),0)\n+BD$11*OFFSET('Efficiency Distributions'!$E$10,MATCH($C197,'Efficiency Distributions'!$C$9:$C$87,0)+RIGHT($E207),0))\n/SUM(BD$10:BD$11)","v":0},{"$f":"IF(INDEX(PC_MAPPING,RIGHT($C197,1),MATCH($E$2,'Data by Building Type'!$D$22:$F$22,0))=\"Yes\",1,0)*\n(BE$10*OFFSET('Efficiency Distributions'!$D$10,MATCH($C197,'Efficiency Distributions'!$C$9:$C$87,0)+RIGHT($E207),0)\n+BE$11*OFFSET('Efficiency Distributions'!$E$10,MATCH($C197,'Efficiency Distributions'!$C$9:$C$87,0)+RIGHT($E207),0))\n/SUM(BE$10:BE$11)","v":0},{"$f":"IF(INDEX(PC_MAPPING,RIGHT($C197,1),MATCH($E$2,'Data by Building Type'!$D$22:$F$22,0))=\"Yes\",1,0)*\n(BF$10*OFFSET('Efficiency Distributions'!$D$10,MATCH($C197,'Efficiency Distributions'!$C$9:$C$87,0)+RIGHT($E207),0)\n+BF$11*OFFSET('Efficiency Distributions'!$E$10,MATCH($C197,'Efficiency Distributions'!$C$9:$C$87,0)+RIGHT($E207),0))\n/SUM(BF$10:BF$11)","v":0},{"$f":"IF(INDEX(PC_MAPPING,RIGHT($C197,1),MATCH($E$2,'Data by Building Type'!$D$22:$F$22,0))=\"Yes\",1,0)*\n(BG$10*OFFSET('Efficiency Distributions'!$D$10,MATCH($C197,'Efficiency Distributions'!$C$9:$C$87,0)+RIGHT($E207),0)\n+BG$11*OFFSET('Efficiency Distributions'!$E$10,MATCH($C197,'Efficiency Distributions'!$C$9:$C$87,0)+RIGHT($E207),0))\n/SUM(BG$10:BG$11)","v":0}]
[null,null,null,null,"TOTAL",{"$f":"SUM(F201:F207)","v":0},0,{"$f":"SUM(H201:H207)","v":0},0,0,0,0,0,0,0,0,0,0,0,0,0,0,0,0,0,0,0,0,0,0,0,0,0,0,0,0,0,0,0,0,0,0,0,0,0,0,0,0,0,0,0,0,0,0,0,0,0,0,0]
[]
[null,null,null,"POST-Case"]
[null,null,null,null,"Efficiency Level",1981,{"$f":"F211+1","v":1982},{"$f":"G211+1","v":1983},1984,1985,1986,1987,1988,1989,1990,{"$f":"O211+1","v":1991},{"$f":"P211+1","v":1992},1993,1994,1995,1996,1997,1998,1999,2000,2001,2002,2003,2004,2005,2006,2007,2008,2009,2010,2011,2012,2013,2014,2015,2016,2017,2018,2019,2020,2021,2022,2023,2024,2025,2026,2027,2028,2029,2030,2031,2032,2033,2034]
[null,null,null,null,"EL0",{"$f":"IF(F$29<STANDARD_YEAR,F201,\nIF(RIGHT($E212,1)>RIGHT(INDEX(STANDARD_LEVELS,1,MID($C197,4,1)),1),F201,\nIF(RIGHT($E212,1)<RIGHT(INDEX(STANDARD_LEVELS,1,MID($C197,4,1)),1),0,\nIF(RIGHT($E212,1)=RIGHT(INDEX(STANDARD_LEVELS,1,MID($C197,4,1)),1),SUM(OFFSET(F201,-(RIGHT($E212,1)),0,RIGHT($E212,1)+1,1)),\"ERROR\"))))","v":0},0,{"$f":"IF(H$29<STANDARD_YEAR,H201,\nIF(RIGHT($E212,1)>RIGHT(INDEX(STANDARD_LEVELS,1,MID($C197,4,1)),1),H201,\nIF(RIGHT($E212,1)<RIGHT(INDEX(STANDARD_LEVELS,1,MID($C197,4,1)),1),0,\nIF(RIGHT($E212,1)=RIGHT(INDEX(STANDARD_LEVELS,1,MID($C197,4,1)),1),SUM(OFFSET(H201,-(RIGHT($E212,1)),0,RIGHT($E212,1)+1,1)),\"ERROR\"))))","v":0},0,0,0,0,0,0,0,0,0,0,0,0,0,0,0,0,0,0,0,0,0,0,0,0,0,0,0,0,0,0,0,0,0,0,0,0,0,0,0,0,0,0,0,0,0,0,0,0,0,0,0]
[null,null,null,null,"EL1",{"$f":"IF(F$29<STANDARD_YEAR,F202,\nIF(RIGHT($E213,1)>RIGHT(INDEX(STANDARD_LEVELS,1,MID($C197,4,1)),1),F202,\nIF(RIGHT($E213,1)<RIGHT(INDEX(STANDARD_LEVELS,1,MID($C197,4,1)),1),0,\nIF(RIGHT($E213,1)=RIGHT(INDEX(STANDARD_LEVELS,1,MID($C197,4,1)),1),SUM(OFFSET(F202,-(RIGHT($E213,1)),0,RIGHT($E213,1)+1,1)),\"ERROR\"))))","v":0},0,{"$f":"IF(H$29<STANDARD_YEAR,H202,\nIF(RIGHT($E213,1)>RIGHT(INDEX(STANDARD_LEVELS,1,MID($C197,4,1)),1),H202,\nIF(RIGHT($E213,1)<RIGHT(INDEX(STANDARD_LEVELS,1,MID($C197,4,1)),1),0,\nIF(RIGHT($E213,1)=RIGHT(INDEX(STANDARD_LEVELS,1,MID($C197,4,1)),1),SUM(OFFSET(H202,-(RIGHT($E213,1)),0,RIGHT($E213,1)+1,1)),\"ERROR\"))))","v":0},0,0,0,0,0,0,0,0,0,0,0,0,0,0,0,0,0,0,0,0,0,0,0,0,0,0,0,0,0,0,0,0,0,0,0,0,0,0,0,0,0,0,0,0,0,0,0,0,0,0,0]
[null,null,null,null,"EL2",{"$f":"IF(F$29<STANDARD_YEAR,F203,\nIF(RIGHT($E214,1)>RIGHT(INDEX(STANDARD_LEVELS,1,MID($C197,4,1)),1),F203,\nIF(RIGHT($E214,1)<RIGHT(INDEX(STANDARD_LEVELS,1,MID($C197,4,1)),1),0,\nIF(RIGHT($E214,1)=RIGHT(INDEX(STANDARD_LEVELS,1,MID($C197,4,1)),1),SUM(OFFSET(F203,-(RIGHT($E214,1)),0,RIGHT($E214,1)+1,1)),\"ERROR\"))))","v":0},0,{"$f":"IF(H$29<STANDARD_YEAR,H203,\nIF(RIGHT($E214,1)>RIGHT(INDEX(STANDARD_LEVELS,1,MID($C197,4,1)),1),H203,\nIF(RIGHT($E214,1)<RIGHT(INDEX(STANDARD_LEVELS,1,MID($C197,4,1)),1),0,\nIF(RIGHT($E214,1)=RIGHT(INDEX(STANDARD_LEVELS,1,MID($C197,4,1)),1),SUM(OFFSET(H203,-(RIGHT($E214,1)),0,RIGHT($E214,1)+1,1)),\"ERROR\"))))","v":0},0,0,0,0,0,0,0,0,0,0,0,0,0,0,0,0,0,0,0,0,0,0,0,0,0,0,0,0,0,0,0,0,0,0,0,0,0,0,0,0,0,0,0,0,0,0,0,0,0,0,0]
[null,null,null,null,"EL3",{"$f":"IF(F$29<STANDARD_YEAR,F204,\nIF(RIGHT($E215,1)>RIGHT(INDEX(STANDARD_LEVELS,1,MID($C197,4,1)),1),F204,\nIF(RIGHT($E215,1)<RIGHT(INDEX(STANDARD_LEVELS,1,MID($C197,4,1)),1),0,\nIF(RIGHT($E215,1)=RIGHT(INDEX(STANDARD_LEVELS,1,MID($C197,4,1)),1),SUM(OFFSET(F204,-(RIGHT($E215,1)),0,RIGHT($E215,1)+1,1)),\"ERROR\"))))","v":0},0,{"$f":"IF(H$29<STANDARD_YEAR,H204,\nIF(RIGHT($E215,1)>RIGHT(INDEX(STANDARD_LEVELS,1,MID($C197,4,1)),1),H204,\nIF(RIGHT($E215,1)<RIGHT(INDEX(STANDARD_LEVELS,1,MID($C197,4,1)),1),0,\nIF(RIGHT($E215,1)=RIGHT(INDEX(STANDARD_LEVELS,1,MID($C197,4,1)),1),SUM(OFFSET(H204,-(RIGHT($E215,1)),0,RIGHT($E215,1)+1,1)),\"ERROR\"))))","v":0},0,0,0,0,0,0,0,0,0,0,0,0,0,0,0,0,0,0,0,0,0,0,0,0,0,0,0,0,0,0,0,0,0,0,0,0,0,0,0,0,0,0,0,0,0,0,0,0,0,0,0]
[null,null,null,null,"EL4",{"$f":"IF(F$29<STANDARD_YEAR,F205,\nIF(RIGHT($E216,1)>RIGHT(INDEX(STANDARD_LEVELS,1,MID($C197,4,1)),1),F205,\nIF(RIGHT($E216,1)<RIGHT(INDEX(STANDARD_LEVELS,1,MID($C197,4,1)),1),0,\nIF(RIGHT($E216,1)=RIGHT(INDEX(STANDARD_LEVELS,1,MID($C197,4,1)),1),SUM(OFFSET(F205,-(RIGHT($E216,1)),0,RIGHT($E216,1)+1,1)),\"ERROR\"))))","v":0},0,{"$f":"IF(H$29<STANDARD_YEAR,H205,\nIF(RIGHT($E216,1)>RIGHT(INDEX(STANDARD_LEVELS,1,MID($C197,4,1)),1),H205,\nIF(RIGHT($E216,1)<RIGHT(INDEX(STANDARD_LEVELS,1,MID($C197,4,1)),1),0,\nIF(RIGHT($E216,1)=RIGHT(INDEX(STANDARD_LEVELS,1,MID($C197,4,1)),1),SUM(OFFSET(H205,-(RIGHT($E216,1)),0,RIGHT($E216,1)+1,1)),\"ERROR\"))))","v":0},0,0,0,0,0,0,0,0,0,0,0,0,0,0,0,0,0,0,0,0,0,0,0,0,0,0,0,0,0,0,0,0,0,0,0,0,0,0,0,0,0,0,0,0,0,0,0,0,0,0,0]
[null,null,null,null,"EL5",{"$f":"IF(F$29<STANDARD_YEAR,F206,\nIF(RIGHT($E217,1)>RIGHT(INDEX(STANDARD_LEVELS,1,MID($C197,4,1)),1),F206,\nIF(RIGHT($E217,1)<RIGHT(INDEX(STANDARD_LEVELS,1,MID($C197,4,1)),1),0,\nIF(RIGHT($E217,1)=RIGHT(INDEX(STANDARD_LEVELS,1,MID($C197,4,1)),1),SUM(OFFSET(F206,-(RIGHT($E217,1)),0,RIGHT($E217,1)+1,1)),\"ERROR\"))))","v":0},0,{"$f":"IF(H$29<STANDARD_YEAR,H206,\nIF(RIGHT($E217,1)>RIGHT(INDEX(STANDARD_LEVELS,1,MID($C197,4,1)),1),H206,\nIF(RIGHT($E217,1)<RIGHT(INDEX(STANDARD_LEVELS,1,MID($C197,4,1)),1),0,\nIF(RIGHT($E217,1)=RIGHT(INDEX(STANDARD_LEVELS,1,MID($C197,4,1)),1),SUM(OFFSET(H206,-(RIGHT($E217,1)),0,RIGHT($E217,1)+1,1)),\"ERROR\"))))","v":0},0,0,0,0,0,0,0,0,0,0,0,0,0,0,0,0,0,0,0,0,0,0,0,0,0,0,0,0,0,0,0,0,0,0,0,0,0,0,0,0,0,0,0,0,0,0,0,0,0,0,0]
[null,null,null,null,"EL6",{"$f":"IF(F$29<STANDARD_YEAR,F207,\nIF(RIGHT($E218,1)>RIGHT(INDEX(STANDARD_LEVELS,1,MID($C197,4,1)),1),F207,\nIF(RIGHT($E218,1)<RIGHT(INDEX(STANDARD_LEVELS,1,MID($C197,4,1)),1),0,\nIF(RIGHT($E218,1)=RIGHT(INDEX(STANDARD_LEVELS,1,MID($C197,4,1)),1),SUM(OFFSET(F207,-(RIGHT($E218,1)),0,RIGHT($E218,1)+1,1)),\"ERROR\"))))","v":0},0,{"$f":"IF(H$29<STANDARD_YEAR,H207,\nIF(RIGHT($E218,1)>RIGHT(INDEX(STANDARD_LEVELS,1,MID($C197,4,1)),1),H207,\nIF(RIGHT($E218,1)<RIGHT(INDEX(STANDARD_LEVELS,1,MID($C197,4,1)),1),0,\nIF(RIGHT($E218,1)=RIGHT(INDEX(STANDARD_LEVELS,1,MID($C197,4,1)),1),SUM(OFFSET(H207,-(RIGHT($E218,1)),0,RIGHT($E218,1)+1,1)),\"ERROR\"))))","v":0},0,0,0,0,0,0,0,0,0,0,0,0,0,0,0,0,0,0,0,0,0,0,0,0,0,0,0,0,0,0,0,0,0,0,0,0,0,0,0,0,0,0,0,0,0,0,0,0,0,0,0]
[null,null,null,null,"TOTAL",{"$f":"SUM(F212:F218)","v":0},0,{"$f":"SUM(H212:H218)","v":0},0,0,0,0,0,0,0,0,0,0,0,0,0,0,0,0,0,0,0,0,0,0,0,0,0,0,0,0,0,0,0,0,0,0,0,0,0,0,0,0,0,0,0,0,0,0,0,0,0,0,0]

{"sheet":"Efficiency Dist - MF","index":12,"n_rows":219,"n_cols":59,"rows_kept":219,"cut":false,"hidden":false,"merged":[[3,2,3,4],[5,2,5,4]]}
[]
[null,null,null,"Efficiency Distributions  - ","Multi-Family"]
[]
[null,null,{"$f":"Navigation!$C$17","v":"NAVIGATION"}]
[]
[null,null,"COMMENTS"]
[]
[]
[null,null,null,"Shipments of Furnace Fans",null,1981,{"$f":"F9+1","v":1982},{"$f":"G9+1","v":1983},1984,1985,{"$f":"J9+1","v":1986},1987,1988,1989,1990,1991,1992,1993,1994,1995,1996,1997,1998,1999,2000,2001,2002,2003,2004,2005,2006,2007,2008,2009,2010,2011,2012,2013,2014,2015,2016,2017,2018,2019,2020,2021,2022,2023,2024,2025,2026,2027,2028,2029,2030,2031,2032,2033,2034]
[null,null,null,null,"Replacements",{"$f":"'Shipments and Stock - MF'!E12","v":3566.523491707565},{"$f":"'Shipments and Stock - MF'!F12","v":3566.523491707565},{"$f":"'Shipments and Stock - MF'!G12","v":3566.523491707565},{"$f":"'Shipments and Stock - MF'!H12","v":3566.523491707565},{"$f":"'Shipments and Stock - MF'!I12","v":3566.523491707565},{"$f":"'Shipments and Stock - MF'!J12","v":3566.523491707565},{"$f":"'Shipments and Stock - MF'!K12","v":3566.523491707565},{"$f":"'Shipments and Stock - MF'!L12","v":3566.523491707565},{"$f":"'Shipments and Stock - MF'!M12","v":3566.523491707565},{"$f":"'Shipments and Stock - MF'!N12","v":3566.523491707565},{"$f":"'Shipments and Stock - MF'!O12","v":3566.523491707565},{"$f":"'Shipments and Stock - MF'!P12","v":3566.523491707565},{"$f":"'Shipments and Stock - MF'!Q12","v":2528.3139515039725},{"$f":"'Shipments and Stock - MF'!R12","v":2832.5244224293488},{"$f":"'Shipments and Stock - MF'!S12","v":2883.0584044133207},{"$f":"'Shipments and Stock - MF'!T12","v":2734.628537560151},{"$f":"'Shipments and Stock - MF'!U12","v":2602.2553603233318},{"$f":"'Shipments and Stock - MF'!V12","v":2750.7824958288911},{"$f":"'Shipments and Stock - MF'!W12","v":2136.1865395837012},{"$f":"'Shipments and Stock - MF'!X12","v":1594.6787215313161},{"$f":"'Shipments and Stock - MF'!Y12","v":1481.9066184022595},{"$f":"'Shipments and Stock - MF'!Z12","v":2785.6777270128005},{"$f":"'Shipments and Stock - MF'!AA12","v":2239.9312354064828},{"$f":"'Shipments and Stock - MF'!AB12","v":2488.4458430764139},{"$f":"'Shipments and Stock - MF'!AC12","v":3008.0082995956836},{"$f":"'Shipments and Stock - MF'!AD12","v":4114.57951535956},{"$f":"'Shipments and Stock - MF'!AE12","v":3576.7103249739521},{"$f":"'Shipments and Stock - MF'!AF12","v":3382.6610127819067},{"$f":"'Shipments and Stock - MF'!AG12","v":3462.2776486201547},{"$f":"'Shipments and Stock - MF'!AH12","v":4396.8289824054154},{"$f":"'Shipments and Stock - MF'!AI12","v":3881.0132847756404},{"$f":"'Shipments and Stock - MF'!AJ12","v":5378.2818161535888},{"$f":"'Shipments and Stock - MF'!AK12","v":5423.1731204459284},{"$f":"'Shipments and Stock - MF'!AL12","v":2528.3139515039725},{"$f":"'Shipments and Stock - MF'!AM12","v":2832.5244224293488},{"$f":"'Shipments and Stock - MF'!AN12","v":2883.0584044133207},{"$f":"'Shipments and Stock - MF'!AO12","v":2734.628537560151},{"$f":"'Shipments and Stock - MF'!AP12","v":2602.2553603233318},{"$f":"'Shipments and Stock - MF'!AQ12","v":2750.7824958288911},{"$f":"'Shipments and Stock - MF'!AR12","v":2136.1865395837012},{"$f":"'Shipments and Stock - MF'!AS12","v":1594.6787215313161},{"$f":"'Shipments and Stock - MF'!AT12","v":1481.9066184022595},{"$f":"'Shipments and Stock - MF'!AU12","v":2785.6777270128005},{"$f":"'Shipments and Stock - MF'!AV12","v":2239.9312354064828},{"$f":"'Shipments and Stock - MF'!AW12","v":2488.4458430764139},{"$f":"'Shipments and Stock - MF'!AX12","v":3008.0082995956836},{"$f":"'Shipments and Stock - MF'!AY12","v":4114.57951535956},{"$f":"'Shipments and Stock - MF'!AZ12","v":3576.7103249739521},{"$f":"'Shipments and Stock - MF'!BA12","v":3382.6610127819067},{"$f":"'Shipments and Stock - MF'!BB12","v":3462.2776486201547},{"$f":"'Shipments and Stock - MF'!BC12","v":4396.8289824054154},{"$f":"'Shipments and Stock - MF'!BD12","v":3881.0132847756404},{"$f":"'Shipments and Stock - MF'!BE12","v":6328.5339286329599},{"$f":"'Shipments and Stock - MF'!BF12","v":6426.9641340779126}]
[null,null,null,null,"Total New Shipments",{"$f":"'Shipments and Stock - MF'!E13","v":1573.0636697749433},{"$f":"'Shipments and Stock - MF'!F13","v":1119.6350205547351},{"$f":"'Shipments and Stock - MF'!G13","v":1320.6309816146677},{"$f":"'Shipments and Stock - MF'!H13","v":2015.4754163362377},{"$f":"'Shipments and Stock - MF'!I13","v":3100.0299124030425},{"$f":"'Shipments and Stock - MF'!J13","v":2753.9756148650631},{"$f":"'Shipments and Stock - MF'!K13","v":3073.6864242026486},{"$f":"'Shipments and Stock - MF'!L13","v":3824.2478512765665},{"$f":"'Shipments and Stock - MF'!M13","v":4577.5451179961237},{"$f":"'Shipments and Stock - MF'!N13","v":3869.5510023972747},{"$f":"'Shipments and Stock - MF'!O13","v":1811.7583244460241},{"$f":"'Shipments and Stock - MF'!P13","v":1856.6496287383634},{"$f":"'Shipments and Stock - MF'!Q13","v":0},{"$f":"'Shipments and Stock - MF'!R13","v":0},{"$f":"'Shipments and Stock - MF'!S13","v":0},{"$f":"'Shipments and Stock - MF'!T13","v":0},{"$f":"'Shipments and Stock - MF'!U13","v":0},{"$f":"'Shipments and Stock - MF'!V13","v":0},{"$f":"'Shipments and Stock - MF'!W13","v":0},{"$f":"'Shipments and Stock - MF'!X13","v":0},{"$f":"'Shipments and Stock - MF'!Y13","v":0},{"$f":"'Shipments and Stock - MF'!Z13","v":0},{"$f":"'Shipments and Stock - MF'!AA13","v":0},{"$f":"'Shipments and Stock - MF'!AB13","v":0},{"$f":"'Shipments and Stock - MF'!AC13","v":0},{"$f":"'Shipments and Stock - MF'!AD13","v":0},{"$f":"'Shipments and Stock - MF'!AE13","v":0},{"$f":"'Shipments and Stock - MF'!AF13","v":0},{"$f":"'Shipments and Stock - MF'!AG13","v":0},{"$f":"'Shipments and Stock - MF'!AH13","v":0},{"$f":"'Shipments and Stock - MF'!AI13","v":0},{"$f":"'Shipments and Stock - MF'!AJ13","v":950.25211247937114},{"$f":"'Shipments and Stock - MF'!AK13","v":1003.7910136319842},{"$f":"'Shipments and Stock - MF'!AL13","v":1078.0533941203612},{"$f":"'Shipments and Stock - MF'!AM13","v":1166.2299926433921},{"$f":"'Shipments and Stock - MF'!AN13","v":1238.6645950667444},{"$f":"'Shipments and Stock - MF'!AO13","v":1279.316510852454},{"$f":"'Shipments and Stock - MF'!AP13","v":1323.9166042628494},{"$f":"'Shipments and Stock - MF'!AQ13","v":1375.4731364384788},{"$f":"'Shipments and Stock - MF'!AR13","v":1405.9432408731664},{"$f":"'Shipments and Stock - MF'!AS13","v":1381.1071895613265},{"$f":"'Shipments and Stock - MF'!AT13","v":1396.5624618252768},{"$f":"'Shipments and Stock - MF'!AU13","v":1402.9823813641997},{"$f":"'Shipments and Stock - MF'!AV13","v":1399.0877935662866},{"$f":"'Shipments and Stock - MF'!AW13","v":1383.9682000245084},{"$f":"'Shipments and Stock - MF'!AX13","v":1363.2135664861562},{"$f":"'Shipments and Stock - MF'!AY13","v":1356.7744859464874},{"$f":"'Shipments and Stock - MF'!AZ13","v":1354.0504800414492},{"$f":"'Shipments and Stock - MF'!BA13","v":1349.5365296220116},{"$f":"'Shipments and Stock - MF'!BB13","v":1334.8535282775993},{"$f":"'Shipments and Stock - MF'!BC13","v":1348.2020635603842},{"$f":"'Shipments and Stock - MF'!BD13","v":1361.6840841959784},{"$f":"'Shipments and Stock - MF'!BE13","v":1375.3009250379546},{"$f":"'Shipments and Stock - MF'!BF13","v":1389.0539342883274}]
[]
[]
[]
[null,null,"PC 1",{"$f":"OFFSET('Product Classes'!$C$9,MATCH(C15,MODEL_PCS,0),0)","v":"Non-Weatherized, Non-Condensing Gas Furnace Fan (NWG-NC)"}]
[]
[null,null,null,"PRE-Case"]
[null,null,null,null,"Efficiency Level",1981,{"$f":"F18+1","v":1982},{"$f":"G18+1","v":1983},1984,1985,{"$f":"J18+1","v":1986},1987,1988,1989,1990,1991,1992,1993,1994,1995,1996,1997,1998,1999,2000,2001,2002,2003,2004,2005,2006,2007,2008,2009,2010,2011,2012,2013,2014,2015,2016,2017,2018,2019,2020,2021,2022,2023,2024,2025,2026,2027,2028,2029,2030,2031,2032,2033,2034]
[null,null,null,null,"EL0",{"$f":"IF(INDEX(PC_MAPPING,RIGHT($C15,1),MATCH($E$2,'Data by Building Type'!$D$22:$F$22,0))=\"Yes\",1,0)*\n(F$10*OFFSET('Efficiency Distributions'!$D$10,MATCH($C15,'Efficiency Distributions'!$C$9:$C$87,0)+RIGHT($E19),0)\n+F$11*OFFSET('Efficiency Distributions'!$E$10,MATCH($C15,'Efficiency Distributions'!$C$9:$C$87,0)+RIGHT($E19),0))\n/SUM(F$10:F$11)","v":0.33258005003368746},{"$f":"IF(INDEX(PC_MAPPING,RIGHT($C15,1),MATCH($E$2,'Data by Building Type'!$D$22:$F$22,0))=\"Yes\",1,0)*\n(G$10*OFFSET('Efficiency Distributions'!$D$10,MATCH($C15,'Efficiency Distributions'!$C$9:$C$87,0)+RIGHT($E19),0)\n+G$11*OFFSET('Efficiency Distributions'!$E$10,MATCH($C15,'Efficiency Distributions'!$C$9:$C$87,0)+RIGHT($E19),0))\n/SUM(G$10:G$11)","v":0.32037556731971373},{"$f":"IF(INDEX(PC_MAPPING,RIGHT($C15,1),MATCH($E$2,'Data by Building Type'!$D$22:$F$22,0))=\"Yes\",1,0)*\n(H$10*OFFSET('Efficiency Distributions'!$D$10,MATCH($C15,'Efficiency Distributions'!$C$9:$C$87,0)+RIGHT($E19),0)\n+H$11*OFFSET('Efficiency Distributions'!$E$10,MATCH($C15,'Efficiency Distributions'!$C$9:$C$87,0)+RIGHT($E19),0))\n/SUM(H$10:H$11)","v":0.32606501252832004},{"$f":"IF(INDEX(PC_MAPPING,RIGHT($C15,1),MATCH($E$2,'Data by Building Type'!$D$22:$F$22,0))=\"Yes\",1,0)*\n(I$10*OFFSET('Efficiency Distributions'!$D$10,MATCH($C15,'Efficiency Distributions'!$C$9:$C$87,0)+RIGHT($E19),0)\n+I$11*OFFSET('Efficiency Distributions'!$E$10,MATCH($C15,'Efficiency Distributions'!$C$9:$C$87,0)+RIGHT($E19),0))\n/SUM(I$10:I$11)","v":0.34257692583968019},{"$f":"IF(INDEX(PC_MAPPING,RIGHT($C15,1),MATCH($E$2,'Data by Building Type'!$D$22:$F$22,0))=\"Yes\",1,0)*\n(J$10*OFFSET('Efficiency Distributions'!$D$10,MATCH($C15,'Efficiency Distributions'!$C$9:$C$87,0)+RIGHT($E19),0)\n+J$11*OFFSET('Efficiency Distributions'!$E$10,MATCH($C15,'Efficiency Distributions'!$C$9:$C$87,0)+RIGHT($E19),0))\n/SUM(J$10:J$11)","v":0.36147057730021792},{"$f":"IF(INDEX(PC_MAPPING,RIGHT($C15,1),MATCH($E$2,'Data by Building Type'!$D$22:$F$22,0))=\"Yes\",1,0)*\n(K$10*OFFSET('Efficiency Distributions'!$D$10,MATCH($C15,'Efficiency Distributions'!$C$9:$C$87,0)+RIGHT($E19),0)\n+K$11*OFFSET('Efficiency Distributions'!$E$10,MATCH($C15,'Efficiency Distributions'!$C$9:$C$87,0)+RIGHT($E19),0))\n/SUM(K$10:K$11)","v":0.35614646582228909},{"$f":"IF(INDEX(PC_MAPPING,RIGHT($C15,1),MATCH($E$2,'Data by Building Type'!$D$22:$F$22,0))=\"Yes\",1,0)*\n(L$10*OFFSET('Efficiency Distributions'!$D$10,MATCH($C15,'Efficiency Distributions'!$C$9:$C$87,0)+RIGHT($E19),0)\n+L$11*OFFSET('Efficiency Distributions'!$E$10,MATCH($C15,'Efficiency Distributions'!$C$9:$C$87,0)+RIGHT($E19),0))\n/SUM(L$10:L$11)","v":0.36108479194350829},{"$f":"IF(INDEX(PC_MAPPING,RIGHT($C15,1),MATCH($E$2,'Data by Building Type'!$D$22:$F$22,0))=\"Yes\",1,0)*\n(M$10*OFFSET('Efficiency Distributions'!$D$10,MATCH($C15,'Efficiency Distributions'!$C$9:$C$87,0)+RIGHT($E19),0)\n+M$11*OFFSET('Efficiency Distributions'!$E$10,MATCH($C15,'Efficiency Distributions'!$C$9:$C$87,0)+RIGHT($E19),0))\n/SUM(M$10:M$11)","v":0.37099928005518951},{"$f":"IF(INDEX(PC_MAPPING,RIGHT($C15,1),MATCH($E$2,'Data by Building Type'!$D$22:$F$22,0))=\"Yes\",1,0)*\n(N$10*OFFSET('Efficiency Distributions'!$D$10,MATCH($C15,'Efficiency Distributions'!$C$9:$C$87,0)+RIGHT($E19),0)\n+N$11*OFFSET('Efficiency Distributions'!$E$10,MATCH($C15,'Efficiency Distributions'!$C$9:$C$87,0)+RIGHT($E19),0))\n/SUM(N$10:N$11)","v":0.3791124548316866},{"$f":"IF(INDEX(PC_MAPPING,RIGHT($C15,1),MATCH($E$2,'Data by Building Type'!$D$22:$F$22,0))=\"Yes\",1,0)*\n(O$10*OFFSET('Efficiency Distributions'!$D$10,MATCH($C15,'Efficiency Distributions'!$C$9:$C$87,0)+RIGHT($E19),0)\n+O$11*OFFSET('Efficiency Distributions'!$E$10,MATCH($C15,'Efficiency Distributions'!$C$9:$C$87,0)+RIGHT($E19),0))\n/SUM(O$10:O$11)","v":0.37153366048262859},{"$f":"IF(INDEX(PC_MAPPING,RIGHT($C15,1),MATCH($E$2,'Data by Building Type'!$D$22:$F$22,0))=\"Yes\",1,0)*\n(P$10*OFFSET('Efficiency Distributions'!$D$10,MATCH($C15,'Efficiency Distributions'!$C$9:$C$87,0)+RIGHT($E19),0)\n+P$11*OFFSET('Efficiency Distributions'!$E$10,MATCH($C15,'Efficiency Distributions'!$C$9:$C$87,0)+RIGHT($E19),0))\n/SUM(P$10:P$11)","v":0.33817796803968936},{"$f":"IF(INDEX(PC_MAPPING,RIGHT($C15,1),MATCH($E$2,'Data by Building Type'!$D$22:$F$22,0))=\"Yes\",1,0)*\n(Q$10*OFFSET('Efficiency Distributions'!$D$10,MATCH($C15,'Efficiency Distributions'!$C$9:$C$87,0)+RIGHT($E19),0)\n+Q$11*OFFSET('Efficiency Distributions'!$E$10,MATCH($C15,'Efficiency Distributions'!$C$9:$C$87,0)+RIGHT($E19),0))\n/SUM(Q$10:Q$11)","v":0.33917571595822849},{"$f":"IF(INDEX(PC_MAPPING,RIGHT($C15,1),MATCH($E$2,'Data by Building Type'!$D$22:$F$22,0))=\"Yes\",1,0)*\n(R$10*OFFSET('Efficiency Distributions'!$D$10,MATCH($C15,'Efficiency Distributions'!$C$9:$C$87,0)+RIGHT($E19),0)\n+R$11*OFFSET('Efficiency Distributions'!$E$10,MATCH($C15,'Efficiency Distributions'!$C$9:$C$87,0)+RIGHT($E19),0))\n/SUM(R$10:R$11)","v":0.27694754619127304},{"$f":"IF(INDEX(PC_MAPPING,RIGHT($C15,1),MATCH($E$2,'Data by Building Type'!$D$22:$F$22,0))=\"Yes\",1,0)*\n(S$10*OFFSET('Efficiency Distributions'!$D$10,MATCH($C15,'Efficiency Distributions'!$C$9:$C$87,0)+RIGHT($E19),0)\n+S$11*OFFSET('Efficiency Distributions'!$E$10,MATCH($C15,'Efficiency Distributions'!$C$9:$C$87,0)+RIGHT($E19),0))\n/SUM(S$10:S$11)","v":0.27694754619127304},{"$f":"IF(INDEX(PC_MAPPING,RIGHT($C15,1),MATCH($E$2,'Data by Building Type'!$D$22:$F$22,0))=\"Yes\",1,0)*\n(T$10*OFFSET('Efficiency Distributions'!$D$10,MATCH($C15,'Efficiency Distributions'!$C$9:$C$87,0)+RIGHT($E19),0)\n+T$11*OFFSET('Efficiency Distributions'!$E$10,MATCH($C15,'Efficiency Distributions'!$C$9:$C$87,0)+RIGHT($E19),0))\n/SUM(T$10:T$11)","v":0.27694754619127304},{"$f":"IF(INDEX(PC_MAPPING,RIGHT($C15,1),MATCH($E$2,'Data by Building Type'!$D$22:$F$22,0))=\"Yes\",1,0)*\n(U$10*OFFSET('Efficiency Distributions'!$D$10,MATCH($C15,'Efficiency Distributions'!$C$9:$C$87,0)+RIGHT($E19),0)\n+U$11*OFFSET('Efficiency Distributions'!$E$10,MATCH($C15,'Efficiency Distributions'!$C$9:$C$87,0)+RIGHT($E19),0))\n/SUM(U$10:U$11)","v":0.27694754619127304},{"$f":"IF(INDEX(PC_MAPPING,RIGHT($C15,1),MATCH($E$2,'Data by Building Type'!$D$22:$F$22,0))=\"Yes\",1,0)*\n(V$10*OFFSET('Efficiency Distributions'!$D$10,MATCH($C15,'Efficiency Distributions'!$C$9:$C$87,0)+RIGHT($E19),0)\n+V$11*OFFSET('Efficiency Distributions'!$E$10,MATCH($C15,'Efficiency Distributions'!$C$9:$C$87,0)+RIGHT($E19),0))\n/SUM(V$10:V$11)","v":0.27694754619127304},{"$f":"IF(INDEX(PC_MAPPING,RIGHT($C15,1),MATCH($E$2,'Data by Building Type'!$D$22:$F$22,0))=\"Yes\",1,0)*\n(W$10*OFFSET('Efficiency Distributions'!$D$10,MATCH($C15,'Efficiency Distributions'!$C$9:$C$87,0)+RIGHT($E19),0)\n+W$11*OFFSET('Efficiency Distributions'!$E$10,MATCH($C15,'Efficiency Distributions'!$C$9:$C$87,0)+RIGHT($E19),0))\n/SUM(W$10:W$11)","v":0.27694754619127304},{"$f":"IF(INDEX(PC_MAPPING,RIGHT($C15,1),MATCH($E$2,'Data by Building Type'!$D$22:$F$22,0))=\"Yes\",1,0)*\n(X$10*OFFSET('Efficiency Distributions'!$D$10,MATCH($C15,'Efficiency Distributions'!$C$9:$C$87,0)+RIGHT($E19),0)\n+X$11*OFFSET('Efficiency Distributions'!$E$10,MATCH($C15,'Efficiency Distributions'!$C$9:$C$87,0)+RIGHT($E19),0))\n/SUM(X$10:X$11)","v":0.27694754619127304},{"$f":"IF(INDEX(PC_MAPPING,RIGHT($C15,1),MATCH($E$2,'Data by Building Type'!$D$22:$F$22,0))=\"Yes\",1,0)*\n(Y$10*OFFSET('Efficiency Distributions'!$D$10,MATCH($C15,'Efficiency Distributions'!$C$9:$C$87,0)+RIGHT($E19),0)\n+Y$11*OFFSET('Efficiency Distributions'!$E$10,MATCH($C15,'Efficiency Distributions'!$C$9:$C$87,0)+RIGHT($E19),0))\n/SUM(Y$10:Y$11)","v":0.27694754619127304},{"$f":"IF(INDEX(PC_MAPPING,RIGHT($C15,1),MATCH($E$2,'Data by Building Type'!$D$22:$F$22,0))=\"Yes\",1,0)*\n(Z$10*OFFSET('Efficiency Distributions'!$D$10,MATCH($C15,'Efficiency Distributions'!$C$9:$C$87,0)+RIGHT($E19),0)\n+Z$11*OFFSET('Efficiency Distributions'!$E$10,MATCH($C15,'Efficiency Distributions'!$C$9:$C$87,0)+RIGHT($E19),0))\n/SUM(Z$10:Z$11)","v":0.27694754619127304},{"$f":"IF(INDEX(PC_MAPPING,RIGHT($C15,1),MATCH($E$2,'Data by Building Type'!$D$22:$F$22,0))=\"Yes\",1,0)*\n(AA$10*OFFSET('Efficiency Distributions'!$D$10,MATCH($C15,'Efficiency Distributions'!$C$9:$C$87,0)+RIGHT($E19),0)\n+AA$11*OFFSET('Efficiency Distributions'!$E$10,MATCH($C15,'Efficiency Distributions'!$C$9:$C$87,0)+RIGHT($E19),0))\n/SUM(AA$10:AA$11)","v":0.27694754619127304},{"$f":"IF(INDEX(PC_MAPPING,RIGHT($C15,1),MATCH($E$2,'Data by Building Type'!$D$22:$F$22,0))=\"Yes\",1,0)*\n(AB$10*OFFSET('Efficiency Distributions'!$D$10,MATCH($C15,'Efficiency Distributions'!$C$9:$C$87,0)+RIGHT($E19),0)\n+AB$11*OFFSET('Efficiency Distributions'!$E$10,MATCH($C15,'Efficiency Distributions'!$C$9:$C$87,0)+RIGHT($E19),0))\n/SUM(AB$10:AB$11)","v":0.27694754619127304},{"$f":"IF(INDEX(PC_MAPPING,RIGHT($C15,1),MATCH($E$2,'Data by Building Type'!$D$22:$F$22,0))=\"Yes\",1,0)*\n(AC$10*OFFSET('Efficiency Distributions'!$D$10,MATCH($C15,'Efficiency Distributions'!$C$9:$C$87,0)+RIGHT($E19),0)\n+AC$11*OFFSET('Efficiency Distributions'!$E$10,MATCH($C15,'Efficiency Distributions'!$C$9:$C$87,0)+RIGHT($E19),0))\n/SUM(AC$10:AC$11)","v":0.27694754619127304},{"$f":"IF(INDEX(PC_MAPPING,RIGHT($C15,1),MATCH($E$2,'Data by Building Type'!$D$22:$F$22,0))=\"Yes\",1,0)*\n(AD$10*OFFSET('Efficiency Distributions'!$D$10,MATCH($C15,'Efficiency Distributions'!$C$9:$C$87,0)+RIGHT($E19),0)\n+AD$11*OFFSET('Efficiency Distributions'!$E$10,MATCH($C15,'Efficiency Distributions'!$C$9:$C$87,0)+RIGHT($E19),0))\n/SUM(AD$10:AD$11)","v":0.27694754619127304},{"$f":"IF(INDEX(PC_MAPPING,RIGHT($C15,1),MATCH($E$2,'Data by Building Type'!$D$22:$F$22,0))=\"Yes\",1,0)*\n(AE$10*OFFSET('Efficiency Distributions'!$D$10,MATCH($C15,'Efficiency Distributions'!$C$9:$C$87,0)+RIGHT($E19),0)\n+AE$11*OFFSET('Efficiency Distributions'!$E$10,MATCH($C15,'Efficiency Distributions'!$C$9:$C$87,0)+RIGHT($E19),0))\n/SUM(AE$10:AE$11)","v":0.27694754619127304},{"$f":"IF(INDEX(PC_MAPPING,RIGHT($C15,1),MATCH($E$2,'Data by Building Type'!$D$22:$F$22,0))=\"Yes\",1,0)*\n(AF$10*OFFSET('Efficiency Distributions'!$D$10,MATCH($C15,'Efficiency Distributions'!$C$9:$C$87,0)+RIGHT($E19),0)\n+AF$11*OFFSET('Efficiency Distributions'!$E$10,MATCH($C15,'Efficiency Distributions'!$C$9:$C$87,0)+RIGHT($E19),0))\n/SUM(AF$10:AF$11)","v":0.27694754619127304},{"$f":"IF(INDEX(PC_MAPPING,RIGHT($C15,1),MATCH($E$2,'Data by Building Type'!$D$22:$F$22,0))=\"Yes\",1,0)*\n(AG$10*OFFSET('Efficiency Distributions'!$D$10,MATCH($C15,'Efficiency Distributions'!$C$9:$C$87,0)+RIGHT($E19),0)\n+AG$11*OFFSET('Efficiency Distributions'!$E$10,MATCH($C15,'Efficiency Distributions'!$C$9:$C$87,0)+RIGHT($E19),0))\n/SUM(AG$10:AG$11)","v":0.27694754619127304},{"$f":"IF(INDEX(PC_MAPPING,RIGHT($C15,1),MATCH($E$2,'Data by Building Type'!$D$22:$F$22,0))=\"Yes\",1,0)*\n(AH$10*OFFSET('Efficiency Distributions'!$D$10,MATCH($C15,'Efficiency Distributions'!$C$9:$C$87,0)+RIGHT($E19),0)\n+AH$11*OFFSET('Efficiency Distributions'!$E$10,MATCH($C15,'Efficiency Distributions'!$C$9:$C$87,0)+RIGHT($E19),0))\n/SUM(AH$10:AH$11)","v":0.27694754619127304},{"$f":"IF(INDEX(PC_MAPPING,RIGHT($C15,1),MATCH($E$2,'Data by Building Type'!$D$22:$F$22,0))=\"Yes\",1,0)*\n(AI$10*OFFSET('Efficiency Distributions'!$D$10,MATCH($C15,'Efficiency Distributions'!$C$9:$C$87,0)+RIGHT($E19),0)\n+AI$11*OFFSET('Efficiency Distributions'!$E$10,MATCH($C15,'Efficiency Distributions'!$C$9:$C$87,0)+RIGHT($E19),0))\n/SUM(AI$10:AI$11)","v":0.27694754619127304},{"$f":"IF(INDEX(PC_MAPPING,RIGHT($C15,1),MATCH($E$2,'Data by Building Type'!$D$22:$F$22,0))=\"Yes\",1,0)*\n(AJ$10*OFFSET('Efficiency Distributions'!$D$10,MATCH($C15,'Efficiency Distributions'!$C$9:$C$87,0)+RIGHT($E19),0)\n+AJ$11*OFFSET('Efficiency Distributions'!$E$10,MATCH($C15,'Efficiency Distributions'!$C$9:$C$87,0)+RIGHT($E19),0))\n/SUM(AJ$10:AJ$11)","v":0.27694754619127304},{"$f":"IF(INDEX(PC_MAPPING,RIGHT($C15,1),MATCH($E$2,'Data by Building Type'!$D$22:$F$22,0))=\"Yes\",1,0)*\n(AK$10*OFFSET('Efficiency Distributions'!$D$10,MATCH($C15,'Efficiency Distributions'!$C$9:$C$87,0)+RIGHT($E19),0)\n+AK$11*OFFSET('Efficiency Distributions'!$E$10,MATCH($C15,'Efficiency Distributions'!$C$9:$C$87,0)+RIGHT($E19),0))\n/SUM(AK$10:AK$11)","v":0.30424023177516202},{"$f":"IF(INDEX(PC_MAPPING,RIGHT($C15,1),MATCH($E$2,'Data by Building Type'!$D$22:$F$22,0))=\"Yes\",1,0)*\n(AL$10*OFFSET('Efficiency Distributions'!$D$10,MATCH($C15,'Efficiency Distributions'!$C$9:$C$87,0)+RIGHT($E19),0)\n+AL$11*OFFSET('Efficiency Distributions'!$E$10,MATCH($C15,'Efficiency Distributions'!$C$9:$C$87,0)+RIGHT($E19),0))\n/SUM(AL$10:AL$11)","v":0.30533640717831784},{"$f":"IF(INDEX(PC_MAPPING,RIGHT($C15,1),MATCH($E$2,'Data by Building Type'!$D$22:$F$22,0))=\"Yes\",1,0)*\n(AM$10*OFFSET('Efficiency Distributions'!$D$10,MATCH($C15,'Efficiency Distributions'!$C$9:$C$87,0)+RIGHT($E19),0)\n+AM$11*OFFSET('Efficiency Distributions'!$E$10,MATCH($C15,'Efficiency Distributions'!$C$9:$C$87,0)+RIGHT($E19),0))\n/SUM(AM$10:AM$11)","v":0.33128269369413155},{"$f":"IF(INDEX(PC_MAPPING,RIGHT($C15,1),MATCH($E$2,'Data by Building Type'!$D$22:$F$22,0))=\"Yes\",1,0)*\n(AN$10*OFFSET('Efficiency Distributions'!$D$10,MATCH($C15,'Efficiency Distributions'!$C$9:$C$87,0)+RIGHT($E19),0)\n+AN$11*OFFSET('Efficiency Distributions'!$E$10,MATCH($C15,'Efficiency Distributions'!$C$9:$C$87,0)+RIGHT($E19),0))\n/SUM(AN$10:AN$11)","v":0.32995903663228721},{"$f":"IF(INDEX(PC_MAPPING,RIGHT($C15,1),MATCH($E$2,'Data by Building Type'!$D$22:$F$22,0))=\"Yes\",1,0)*\n(AO$10*OFFSET('Efficiency Distributions'!$D$10,MATCH($C15,'Efficiency Distributions'!$C$9:$C$87,0)+RIGHT($E19),0)\n+AO$11*OFFSET('Efficiency Distributions'!$E$10,MATCH($C15,'Efficiency Distributions'!$C$9:$C$87,0)+RIGHT($E19),0))\n/SUM(AO$10:AO$11)","v":0.33157179325675362},{"$f":"IF(INDEX(PC_MAPPING,RIGHT($C15,1),MATCH($E$2,'Data by Building Type'!$D$22:$F$22,0))=\"Yes\",1,0)*\n(AP$10*OFFSET('Efficiency Distributions'!$D$10,MATCH($C15,'Efficiency Distributions'!$C$9:$C$87,0)+RIGHT($E19),0)\n+AP$11*OFFSET('Efficiency Distributions'!$E$10,MATCH($C15,'Efficiency Distributions'!$C$9:$C$87,0)+RIGHT($E19),0))\n/SUM(AP$10:AP$11)","v":0.33487935963093429},{"$f":"IF(INDEX(PC_MAPPING,RIGHT($C15,1),MATCH($E$2,'Data by Building Type'!$D$22:$F$22,0))=\"Yes\",1,0)*\n(AQ$10*OFFSET('Efficiency Distributions'!$D$10,MATCH($C15,'Efficiency Distributions'!$C$9:$C$87,0)+RIGHT($E19),0)\n+AQ$11*OFFSET('Efficiency Distributions'!$E$10,MATCH($C15,'Efficiency Distributions'!$C$9:$C$87,0)+RIGHT($E19),0))\n/SUM(AQ$10:AQ$11)","v":0.33823927235204432},{"$f":"IF(INDEX(PC_MAPPING,RIGHT($C15,1),MATCH($E$2,'Data by Building Type'!$D$22:$F$22,0))=\"Yes\",1,0)*\n(AR$10*OFFSET('Efficiency Distributions'!$D$10,MATCH($C15,'Efficiency Distributions'!$C$9:$C$87,0)+RIGHT($E19),0)\n+AR$11*OFFSET('Efficiency Distributions'!$E$10,MATCH($C15,'Efficiency Distributions'!$C$9:$C$87,0)+RIGHT($E19),0))\n/SUM(AR$10:AR$11)","v":0.33753832347579626},{"$f":"IF(INDEX(PC_MAPPING,RIGHT($C15,1),MATCH($E$2,'Data by Building Type'!$D$22:$F$22,0))=\"Yes\",1,0)*\n(AS$10*OFFSET('Efficiency Distributions'!$D$10,MATCH($C15,'Efficiency Distributions'!$C$9:$C$87,0)+RIGHT($E19),0)\n+AS$11*OFFSET('Efficiency Distributions'!$E$10,MATCH($C15,'Efficiency Distributions'!$C$9:$C$87,0)+RIGHT($E19),0))\n/SUM(AS$10:AS$11)","v":0.34909381241545795},{"$f":"IF(INDEX(PC_MAPPING,RIGHT($C15,1),MATCH($E$2,'Data by Building Type'!$D$22:$F$22,0))=\"Yes\",1,0)*\n(AT$10*OFFSET('Efficiency Distributions'!$D$10,MATCH($C15,'Efficiency Distributions'!$C$9:$C$87,0)+RIGHT($E19),0)\n+AT$11*OFFSET('Efficiency Distributions'!$E$10,MATCH($C15,'Efficiency Distributions'!$C$9:$C$87,0)+RIGHT($E19),0))\n/SUM(AT$10:AT$11)","v":0.36130748264533186},{"$f":"IF(INDEX(PC_MAPPING,RIGHT($C15,1),MATCH($E$2,'Data by Building Type'!$D$22:$F$22,0))=\"Yes\",1,0)*\n(AU$10*OFFSET('Efficiency Distributions'!$D$10,MATCH($C15,'Efficiency Distributions'!$C$9:$C$87,0)+RIGHT($E19),0)\n+AU$11*OFFSET('Efficiency Distributions'!$E$10,MATCH($C15,'Efficiency Distributions'!$C$9:$C$87,0)+RIGHT($E19),0))\n/SUM(AU$10:AU$11)","v":0.36513551440007863},{"$f":"IF(INDEX(PC_MAPPING,RIGHT($C15,1),MATCH($E$2,'Data by Building Type'!$D$22:$F$22,0))=\"Yes\",1,0)*\n(AV$10*OFFSET('Efficiency Distributions'!$D$10,MATCH($C15,'Efficiency Distributions'!$C$9:$C$87,0)+RIGHT($E19),0)\n+AV$11*OFFSET('Efficiency Distributions'!$E$10,MATCH($C15,'Efficiency Distributions'!$C$9:$C$87,0)+RIGHT($E19),0))\n/SUM(AV$10:AV$11)","v":0.33782936772064287},{"$f":"IF(INDEX(PC_MAPPING,RIGHT($C15,1),MATCH($E$2,'Data by Building Type'!$D$22:$F$22,0))=\"Yes\",1,0)*\n(AW$10*OFFSET('Efficiency Distributions'!$D$10,MATCH($C15,'Efficiency Distributions'!$C$9:$C$87,0)+RIGHT($E19),0)\n+AW$11*OFFSET('Efficiency Distributions'!$E$10,MATCH($C15,'Efficiency Distributions'!$C$9:$C$87,0)+RIGHT($E19),0))\n/SUM(AW$10:AW$11)","v":0.3468304885261837},{"$f":"IF(INDEX(PC_MAPPING,RIGHT($C15,1),MATCH($E$2,'Data by Building Type'!$D$22:$F$22,0))=\"Yes\",1,0)*\n(AX$10*OFFSET('Efficiency Distributions'!$D$10,MATCH($C15,'Efficiency Distributions'!$C$9:$C$87,0)+RIGHT($E19),0)\n+AX$11*OFFSET('Efficiency Distributions'!$E$10,MATCH($C15,'Efficiency Distributions'!$C$9:$C$87,0)+RIGHT($E19),0))\n/SUM(AX$10:AX$11)","v":0.34190886991939157},{"$f":"IF(INDEX(PC_MAPPING,RIGHT($C15,1),MATCH($E$2,'Data by Building Type'!$D$22:$F$22,0))=\"Yes\",1,0)*\n(AY$10*OFFSET('Efficiency Distributions'!$D$10,MATCH($C15,'Efficiency Distributions'!$C$9:$C$87,0)+RIGHT($E19),0)\n+AY$11*OFFSET('Efficiency Distributions'!$E$10,MATCH($C15,'Efficiency Distributions'!$C$9:$C$87,0)+RIGHT($E19),0))\n/SUM(AY$10:AY$11)","v":0.33363299512388078},{"$f":"IF(INDEX(PC_MAPPING,RIGHT($C15,1),MATCH($E$2,'Data by Building Type'!$D$22:$F$22,0))=\"Yes\",1,0)*\n(AZ$10*OFFSET('Efficiency Distributions'!$D$10,MATCH($C15,'Efficiency Distributions'!$C$9:$C$87,0)+RIGHT($E19),0)\n+AZ$11*OFFSET('Efficiency Distributions'!$E$10,MATCH($C15,'Efficiency Distributions'!$C$9:$C$87,0)+RIGHT($E19),0))\n/SUM(AZ$10:AZ$11)","v":0.32202126534272979},{"$f":"IF(INDEX(PC_MAPPING,RIGHT($C15,1),MATCH($E$2,'Data by Building Type'!$D$22:$F$22,0))=\"Yes\",1,0)*\n(BA$10*OFFSET('Efficiency Distributions'!$D$10,MATCH($C15,'Efficiency Distributions'!$C$9:$C$87,0)+RIGHT($E19),0)\n+BA$11*OFFSET('Efficiency Distributions'!$E$10,MATCH($C15,'Efficiency Distributions'!$C$9:$C$87,0)+RIGHT($E19),0))\n/SUM(BA$10:BA$11)","v":0.32686259056531319},{"$f":"IF(INDEX(PC_MAPPING,RIGHT($C15,1),MATCH($E$2,'Data by Building Type'!$D$22:$F$22,0))=\"Yes\",1,0)*\n(BB$10*OFFSET('Efficiency Distributions'!$D$10,MATCH($C15,'Efficiency Distributions'!$C$9:$C$87,0)+RIGHT($E19),0)\n+BB$11*OFFSET('Efficiency Distributions'!$E$10,MATCH($C15,'Efficiency Distributions'!$C$9:$C$87,0)+RIGHT($E19),0))\n/SUM(BB$10:BB$11)","v":0.32878364632328183},{"$f":"IF(INDEX(PC_MAPPING,RIGHT($C15,1),MATCH($E$2,'Data by Building Type'!$D$22:$F$22,0))=\"Yes\",1,0)*\n(BC$10*OFFSET('Efficiency Distributions'!$D$10,MATCH($C15,'Efficiency Distributions'!$C$9:$C$87,0)+RIGHT($E19),0)\n+BC$11*OFFSET('Efficiency Distributions'!$E$10,MATCH($C15,'Efficiency Distributions'!$C$9:$C$87,0)+RIGHT($E19),0))\n/SUM(BC$10:BC$11)","v":0.3275256519889192},{"$f":"IF(INDEX(PC_MAPPING,RIGHT($C15,1),MATCH($E$2,'Data by Building Type'!$D$22:$F$22,0))=\"Yes\",1,0)*\n(BD$10*OFFSET('Efficiency Distributions'!$D$10,MATCH($C15,'Efficiency Distributions'!$C$9:$C$87,0)+RIGHT($E19),0)\n+BD$11*OFFSET('Efficiency Distributions'!$E$10,MATCH($C15,'Efficiency Distributions'!$C$9:$C$87,0)+RIGHT($E19),0))\n/SUM(BD$10:BD$11)","v":0.31960286072509203},{"$f":"IF(INDEX(PC_MAPPING,RIGHT($C15,1),MATCH($E$2,'Data by Building Type'!$D$22:$F$22,0))=\"Yes\",1,0)*\n(BE$10*OFFSET('Efficiency Distributions'!$D$10,MATCH($C15,'Efficiency Distributions'!$C$9:$C$87,0)+RIGHT($E19),0)\n+BE$11*OFFSET('Efficiency Distributions'!$E$10,MATCH($C15,'Efficiency Distributions'!$C$9:$C$87,0)+RIGHT($E19),0))\n/SUM(BE$10:BE$11)","v":0.32415734105751698},{"$f":"IF(INDEX(PC_MAPPING,RIGHT($C15,1),MATCH($E$2,'Data by Building Type'!$D$22:$F$22,0))=\"Yes\",1,0)*\n(BF$10*OFFSET('Efficiency Distributions'!$D$10,MATCH($C15,'Efficiency Distributions'!$C$9:$C$87,0)+RIGHT($E19),0)\n+BF$11*OFFSET('Efficiency Distributions'!$E$10,MATCH($C15,'Efficiency Distributions'!$C$9:$C$87,0)+RIGHT($E19),0))\n/SUM(BF$10:BF$11)","v":0.30939654578128656},{"$f":"IF(INDEX(PC_MAPPING,RIGHT($C15,1),MATCH($E$2,'Data by Building Type'!$D$22:$F$22,0))=\"Yes\",1,0)*\n(BG$10*OFFSET('Efficiency Distributions'!$D$10,MATCH($C15,'Efficiency Distributions'!$C$9:$C$87,0)+RIGHT($E19),0)\n+BG$11*OFFSET('Efficiency Distributions'!$E$10,MATCH($C15,'Efficiency Distributions'!$C$9:$C$87,0)+RIGHT($E19),0))\n/SUM(BG$10:BG$11)","v":0.30925063826961008}]
[null,null,null,null,"EL1",{"$f":"IF(INDEX(PC_MAPPING,RIGHT($C15,1),MATCH($E$2,'Data by Building Type'!$D$22:$F$22,0))=\"Yes\",1,0)*\n(F$10*OFFSET('Efficiency Distributions'!$D$10,MATCH($C15,'Efficiency Distributions'!$C$9:$C$87,0)+RIGHT($E20),0)\n+F$11*OFFSET('Efficiency Distributions'!$E$10,MATCH($C15,'Efficiency Distributions'!$C$9:$C$87,0)+RIGHT($E20),0))\n/SUM(F$10:F$11)","v":0.42867141870083819},{"$f":"IF(INDEX(PC_MAPPING,RIGHT($C15,1),MATCH($E$2,'Data by Building Type'!$D$22:$F$22,0))=\"Yes\",1,0)*\n(G$10*OFFSET('Efficiency Distributions'!$D$10,MATCH($C15,'Efficiency Distributions'!$C$9:$C$87,0)+RIGHT($E20),0)\n+G$11*OFFSET('Efficiency Distributions'!$E$10,MATCH($C15,'Efficiency Distributions'!$C$9:$C$87,0)+RIGHT($E20),0))\n/SUM(G$10:G$11)","v":0.42576465380465822},{"$f":"IF(INDEX(PC_MAPPING,RIGHT($C15,1),MATCH($E$2,'Data by Building Type'!$D$22:$F$22,0))=\"Yes\",1,0)*\n(H$10*OFFSET('Efficiency Distributions'!$D$10,MATCH($C15,'Efficiency Distributions'!$C$9:$C$87,0)+RIGHT($E20),0)\n+H$11*OFFSET('Efficiency Distributions'!$E$10,MATCH($C15,'Efficiency Distributions'!$C$9:$C$87,0)+RIGHT($E20),0))\n/SUM(H$10:H$11)","v":0.42711971980775731},{"$f":"IF(INDEX(PC_MAPPING,RIGHT($C15,1),MATCH($E$2,'Data by Building Type'!$D$22:$F$22,0))=\"Yes\",1,0)*\n(I$10*OFFSET('Efficiency Distributions'!$D$10,MATCH($C15,'Efficiency Distributions'!$C$9:$C$87,0)+RIGHT($E20),0)\n+I$11*OFFSET('Efficiency Distributions'!$E$10,MATCH($C15,'Efficiency Distributions'!$C$9:$C$87,0)+RIGHT($E20),0))\n/SUM(I$10:I$11)","v":0.43105239365449671},{"$f":"IF(INDEX(PC_MAPPING,RIGHT($C15,1),MATCH($E$2,'Data by Building Type'!$D$22:$F$22,0))=\"Yes\",1,0)*\n(J$10*OFFSET('Efficiency Distributions'!$D$10,MATCH($C15,'Efficiency Distributions'!$C$9:$C$87,0)+RIGHT($E20),0)\n+J$11*OFFSET('Efficiency Distributions'!$E$10,MATCH($C15,'Efficiency Distributions'!$C$9:$C$87,0)+RIGHT($E20),0))\n/SUM(J$10:J$11)","v":0.43555233061317411},{"$f":"IF(INDEX(PC_MAPPING,RIGHT($C15,1),MATCH($E$2,'Data by Building Type'!$D$22:$F$22,0))=\"Yes\",1,0)*\n(K$10*OFFSET('Efficiency Distributions'!$D$10,MATCH($C15,'Efficiency Distributions'!$C$9:$C$87,0)+RIGHT($E20),0)\n+K$11*OFFSET('Efficiency Distributions'!$E$10,MATCH($C15,'Efficiency Distributions'!$C$9:$C$87,0)+RIGHT($E20),0))\n/SUM(K$10:K$11)","v":0.43428427684063092},{"$f":"IF(INDEX(PC_MAPPING,RIGHT($C15,1),MATCH($E$2,'Data by Building Type'!$D$22:$F$22,0))=\"Yes\",1,0)*\n(L$10*OFFSET('Efficiency Distributions'!$D$10,MATCH($C15,'Efficiency Distributions'!$C$9:$C$87,0)+RIGHT($E20),0)\n+L$11*OFFSET('Efficiency Distributions'!$E$10,MATCH($C15,'Efficiency Distributions'!$C$9:$C$87,0)+RIGHT($E20),0))\n/SUM(L$10:L$11)","v":0.43546044737988804},{"$f":"IF(INDEX(PC_MAPPING,RIGHT($C15,1),MATCH($E$2,'Data by Building Type'!$D$22:$F$22,0))=\"Yes\",1,0)*\n(M$10*OFFSET('Efficiency Distributions'!$D$10,MATCH($C15,'Efficiency Distributions'!$C$9:$C$87,0)+RIGHT($E20),0)\n+M$11*OFFSET('Efficiency Distributions'!$E$10,MATCH($C15,'Efficiency Distributions'!$C$9:$C$87,0)+RIGHT($E20),0))\n/SUM(M$10:M$11)","v":0.43782179989945291},{"$f":"IF(INDEX(PC_MAPPING,RIGHT($C15,1),MATCH($E$2,'Data by Building Type'!$D$22:$F$22,0))=\"Yes\",1,0)*\n(N$10*OFFSET('Efficiency Distributions'!$D$10,MATCH($C15,'Efficiency Distributions'!$C$9:$C$87,0)+RIGHT($E20),0)\n+N$11*OFFSET('Efficiency Distributions'!$E$10,MATCH($C15,'Efficiency Distributions'!$C$9:$C$87,0)+RIGHT($E20),0))\n/SUM(N$10:N$11)","v":0.43975413019067394},{"$f":"IF(INDEX(PC_MAPPING,RIGHT($C15,1),MATCH($E$2,'Data by Building Type'!$D$22:$F$22,0))=\"Yes\",1,0)*\n(O$10*OFFSET('Efficiency Distributions'!$D$10,MATCH($C15,'Efficiency Distributions'!$C$9:$C$87,0)+RIGHT($E20),0)\n+O$11*OFFSET('Efficiency Distributions'!$E$10,MATCH($C15,'Efficiency Distributions'!$C$9:$C$87,0)+RIGHT($E20),0))\n/SUM(O$10:O$11)","v":0.43794907430379187},{"$f":"IF(INDEX(PC_MAPPING,RIGHT($C15,1),MATCH($E$2,'Data by Building Type'!$D$22:$F$22,0))=\"Yes\",1,0)*\n(P$10*OFFSET('Efficiency Distributions'!$D$10,MATCH($C15,'Efficiency Distributions'!$C$9:$C$87,0)+RIGHT($E20),0)\n+P$11*OFFSET('Efficiency Distributions'!$E$10,MATCH($C15,'Efficiency Distributions'!$C$9:$C$87,0)+RIGHT($E20),0))\n/SUM(P$10:P$11)","v":0.43000468549574372},{"$f":"IF(INDEX(PC_MAPPING,RIGHT($C15,1),MATCH($E$2,'Data by Building Type'!$D$22:$F$22,0))=\"Yes\",1,0)*\n(Q$10*OFFSET('Efficiency Distributions'!$D$10,MATCH($C15,'Efficiency Distributions'!$C$9:$C$87,0)+RIGHT($E20),0)\n+Q$11*OFFSET('Efficiency Distributions'!$E$10,MATCH($C15,'Efficiency Distributions'!$C$9:$C$87,0)+RIGHT($E20),0))\n/SUM(Q$10:Q$11)","v":0.43024232101810184},{"$f":"IF(INDEX(PC_MAPPING,RIGHT($C15,1),MATCH($E$2,'Data by Building Type'!$D$22:$F$22,0))=\"Yes\",1,0)*\n(R$10*OFFSET('Efficiency Distributions'!$D$10,MATCH($C15,'Efficiency Distributions'!$C$9:$C$87,0)+RIGHT($E20),0)\n+R$11*OFFSET('Efficiency Distributions'!$E$10,MATCH($C15,'Efficiency Distributions'!$C$9:$C$87,0)+RIGHT($E20),0))\n/SUM(R$10:R$11)","v":0.41542131928690951},{"$f":"IF(INDEX(PC_MAPPING,RIGHT($C15,1),MATCH($E$2,'Data by Building Type'!$D$22:$F$22,0))=\"Yes\",1,0)*\n(S$10*OFFSET('Efficiency Distributions'!$D$10,MATCH($C15,'Efficiency Distributions'!$C$9:$C$87,0)+RIGHT($E20),0)\n+S$11*OFFSET('Efficiency Distributions'!$E$10,MATCH($C15,'Efficiency Distributions'!$C$9:$C$87,0)+RIGHT($E20),0))\n/SUM(S$10:S$11)","v":0.41542131928690951},{"$f":"IF(INDEX(PC_MAPPING,RIGHT($C15,1),MATCH($E$2,'Data by Building Type'!$D$22:$F$22,0))=\"Yes\",1,0)*\n(T$10*OFFSET('Efficiency Distributions'!$D$10,MATCH($C15,'Efficiency Distributions'!$C$9:$C$87,0)+RIGHT($E20),0)\n+T$11*OFFSET('Efficiency Distributions'!$E$10,MATCH($C15,'Efficiency Distributions'!$C$9:$C$87,0)+RIGHT($E20),0))\n/SUM(T$10:T$11)","v":0.41542131928690951},{"$f":"IF(INDEX(PC_MAPPING,RIGHT($C15,1),MATCH($E$2,'Data by Building Type'!$D$22:$F$22,0))=\"Yes\",1,0)*\n(U$10*OFFSET('Efficiency Distributions'!$D$10,MATCH($C15,'Efficiency Distributions'!$C$9:$C$87,0)+RIGHT($E20),0)\n+U$11*OFFSET('Efficiency Distributions'!$E$10,MATCH($C15,'Efficiency Distributions'!$C$9:$C$87,0)+RIGHT($E20),0))\n/SUM(U$10:U$11)","v":0.41542131928690951},{"$f":"IF(INDEX(PC_MAPPING,RIGHT($C15,1),MATCH($E$2,'Data by Building Type'!$D$22:$F$22,0))=\"Yes\",1,0)*\n(V$10*OFFSET('Efficiency Distributions'!$D$10,MATCH($C15,'Efficiency Distributions'!$C$9:$C$87,0)+RIGHT($E20),0)\n+V$11*OFFSET('Efficiency Distributions'!$E$10,MATCH($C15,'Efficiency Distributions'!$C$9:$C$87,0)+RIGHT($E20),0))\n/SUM(V$10:V$11)","v":0.41542131928690951},{"$f":"IF(INDEX(PC_MAPPING,RIGHT($C15,1),MATCH($E$2,'Data by Building Type'!$D$22:$F$22,0))=\"Yes\",1,0)*\n(W$10*OFFSET('Efficiency Distributions'!$D$10,MATCH($C15,'Efficiency Distributions'!$C$9:$C$87,0)+RIGHT($E20),0)\n+W$11*OFFSET('Efficiency Distributions'!$E$10,MATCH($C15,'Efficiency Distributions'!$C$9:$C$87,0)+RIGHT($E20),0))\n/SUM(W$10:W$11)","v":0.41542131928690956},{"$f":"IF(INDEX(PC_MAPPING,RIGHT($C15,1),MATCH($E$2,'Data by Building Type'!$D$22:$F$22,0))=\"Yes\",1,0)*\n(X$10*OFFSET('Efficiency Distributions'!$D$10,MATCH($C15,'Efficiency Distributions'!$C$9:$C$87,0)+RIGHT($E20),0)\n+X$11*OFFSET('Efficiency Distributions'!$E$10,MATCH($C15,'Efficiency Distributions'!$C$9:$C$87,0)+RIGHT($E20),0))\n/SUM(X$10:X$11)","v":0.41542131928690951},{"$f":"IF(INDEX(PC_MAPPING,RIGHT($C15,1),MATCH($E$2,'Data by Building Type'!$D$22:$F$22,0))=\"Yes\",1,0)*\n(Y$10*OFFSET('Efficiency Distributions'!$D$10,MATCH($C15,'Efficiency Distributions'!$C$9:$C$87,0)+RIGHT($E20),0)\n+Y$11*OFFSET('Efficiency Distributions'!$E$10,MATCH($C15,'Efficiency Distributions'!$C$9:$C$87,0)+RIGHT($E20),0))\n/SUM(Y$10:Y$11)","v":0.41542131928690951},{"$f":"IF(INDEX(PC_MAPPING,RIGHT($C15,1),MATCH($E$2,'Data by Building Type'!$D$22:$F$22,0))=\"Yes\",1,0)*\n(Z$10*OFFSET('Efficiency Distributions'!$D$10,MATCH($C15,'Efficiency Distributions'!$C$9:$C$87,0)+RIGHT($E20),0)\n+Z$11*OFFSET('Efficiency Distributions'!$E$10,MATCH($C15,'Efficiency Distributions'!$C$9:$C$87,0)+RIGHT($E20),0))\n/SUM(Z$10:Z$11)","v":0.41542131928690951},{"$f":"IF(INDEX(PC_MAPPING,RIGHT($C15,1),MATCH($E$2,'Data by Building Type'!$D$22:$F$22,0))=\"Yes\",1,0)*\n(AA$10*OFFSET('Efficiency Distributions'!$D$10,MATCH($C15,'Efficiency Distributions'!$C$9:$C$87,0)+RIGHT($E20),0)\n+AA$11*OFFSET('Efficiency Distributions'!$E$10,MATCH($C15,'Efficiency Distributions'!$C$9:$C$87,0)+RIGHT($E20),0))\n/SUM(AA$10:AA$11)","v":0.41542131928690945},{"$f":"IF(INDEX(PC_MAPPING,RIGHT($C15,1),MATCH($E$2,'Data by Building Type'!$D$22:$F$22,0))=\"Yes\",1,0)*\n(AB$10*OFFSET('Efficiency Distributions'!$D$10,MATCH($C15,'Efficiency Distributions'!$C$9:$C$87,0)+RIGHT($E20),0)\n+AB$11*OFFSET('Efficiency Distributions'!$E$10,MATCH($C15,'Efficiency Distributions'!$C$9:$C$87,0)+RIGHT($E20),0))\n/SUM(AB$10:AB$11)","v":0.41542131928690951},{"$f":"IF(INDEX(PC_MAPPING,RIGHT($C15,1),MATCH($E$2,'Data by Building Type'!$D$22:$F$22,0))=\"Yes\",1,0)*\n(AC$10*OFFSET('Efficiency Distributions'!$D$10,MATCH($C15,'Efficiency Distributions'!$C$9:$C$87,0)+RIGHT($E20),0)\n+AC$11*OFFSET('Efficiency Distributions'!$E$10,MATCH($C15,'Efficiency Distributions'!$C$9:$C$87,0)+RIGHT($E20),0))\n/SUM(AC$10:AC$11)","v":0.41542131928690956},{"$f":"IF(INDEX(PC_MAPPING,RIGHT($C15,1),MATCH($E$2,'Data by Building Type'!$D$22:$F$22,0))=\"Yes\",1,0)*\n(AD$10*OFFSET('Efficiency Distributions'!$D$10,MATCH($C15,'Efficiency Distributions'!$C$9:$C$87,0)+RIGHT($E20),0)\n+AD$11*OFFSET('Efficiency Distributions'!$E$10,MATCH($C15,'Efficiency Distributions'!$C$9:$C$87,0)+RIGHT($E20),0))\n/SUM(AD$10:AD$11)","v":0.41542131928690951},{"$f":"IF(INDEX(PC_MAPPING,RIGHT($C15,1),MATCH($E$2,'Data by Building Type'!$D$22:$F$22,0))=\"Yes\",1,0)*\n(AE$10*OFFSET('Efficiency Distributions'!$D$10,MATCH($C15,'Efficiency Distributions'!$C$9:$C$87,0)+RIGHT($E20),0)\n+AE$11*OFFSET('Efficiency Distributions'!$E$10,MATCH($C15,'Efficiency Distributions'!$C$9:$C$87,0)+RIGHT($E20),0))\n/SUM(AE$10:AE$11)","v":0.41542131928690951},{"$f":"IF(INDEX(PC_MAPPING,RIGHT($C15,1),MATCH($E$2,'Data by Building Type'!$D$22:$F$22,0))=\"Yes\",1,0)*\n(AF$10*OFFSET('Efficiency Distributions'!$D$10,MATCH($C15,'Efficiency Distributions'!$C$9:$C$87,0)+RIGHT($E20),0)\n+AF$11*OFFSET('Efficiency Distributions'!$E$10,MATCH($C15,'Efficiency Distributions'!$C$9:$C$87,0)+RIGHT($E20),0))\n/SUM(AF$10:AF$11)","v":0.41542131928690951},{"$f":"IF(INDEX(PC_MAPPING,RIGHT($C15,1),MATCH($E$2,'Data by Building Type'!$D$22:$F$22,0))=\"Yes\",1,0)*\n(AG$10*OFFSET('Efficiency Distributions'!$D$10,MATCH($C15,'Efficiency Distributions'!$C$9:$C$87,0)+RIGHT($E20),0)\n+AG$11*OFFSET('Efficiency Distributions'!$E$10,MATCH($C15,'Efficiency Distributions'!$C$9:$C$87,0)+RIGHT($E20),0))\n/SUM(AG$10:AG$11)","v":0.41542131928690951},{"$f":"IF(INDEX(PC_MAPPING,RIGHT($C15,1),MATCH($E$2,'Data by Building Type'!$D$22:$F$22,0))=\"Yes\",1,0)*\n(AH$10*OFFSET('Efficiency Distributions'!$D$10,MATCH($C15,'Efficiency Distributions'!$C$9:$C$87,0)+RIGHT($E20),0)\n+AH$11*OFFSET('Efficiency Distributions'!$E$10,MATCH($C15,'Efficiency Distributions'!$C$9:$C$87,0)+RIGHT($E20),0))\n/SUM(AH$10:AH$11)","v":0.41542131928690945},{"$f":"IF(INDEX(PC_MAPPING,RIGHT($C15,1),MATCH($E$2,'Data by Building Type'!$D$22:$F$22,0))=\"Yes\",1,0)*\n(AI$10*OFFSET('Efficiency Distributions'!$D$10,MATCH($C15,'Efficiency Distributions'!$C$9:$C$87,0)+RIGHT($E20),0)\n+AI$11*OFFSET('Efficiency Distributions'!$E$10,MATCH($C15,'Efficiency Distributions'!$C$9:$C$87,0)+RIGHT($E20),0))\n/SUM(AI$10:AI$11)","v":0.41542131928690951},{"$f":"IF(INDEX(PC_MAPPING,RIGHT($C15,1),MATCH($E$2,'Data by Building Type'!$D$22:$F$22,0))=\"Yes\",1,0)*\n(AJ$10*OFFSET('Efficiency Distributions'!$D$10,MATCH($C15,'Efficiency Distributions'!$C$9:$C$87,0)+RIGHT($E20),0)\n+AJ$11*OFFSET('Efficiency Distributions'!$E$10,MATCH($C15,'Efficiency Distributions'!$C$9:$C$87,0)+RIGHT($E20),0))\n/SUM(AJ$10:AJ$11)","v":0.41542131928690951},{"$f":"IF(INDEX(PC_MAPPING,RIGHT($C15,1),MATCH($E$2,'Data by Building Type'!$D$22:$F$22,0))=\"Yes\",1,0)*\n(AK$10*OFFSET('Efficiency Distributions'!$D$10,MATCH($C15,'Efficiency Distributions'!$C$9:$C$87,0)+RIGHT($E20),0)\n+AK$11*OFFSET('Efficiency Distributions'!$E$10,MATCH($C15,'Efficiency Distributions'!$C$9:$C$87,0)+RIGHT($E20),0))\n/SUM(AK$10:AK$11)","v":0.42192167020197868},{"$f":"IF(INDEX(PC_MAPPING,RIGHT($C15,1),MATCH($E$2,'Data by Building Type'!$D$22:$F$22,0))=\"Yes\",1,0)*\n(AL$10*OFFSET('Efficiency Distributions'!$D$10,MATCH($C15,'Efficiency Distributions'!$C$9:$C$87,0)+RIGHT($E20),0)\n+AL$11*OFFSET('Efficiency Distributions'!$E$10,MATCH($C15,'Efficiency Distributions'!$C$9:$C$87,0)+RIGHT($E20),0))\n/SUM(AL$10:AL$11)","v":0.42218274838584152},{"$f":"IF(INDEX(PC_MAPPING,RIGHT($C15,1),MATCH($E$2,'Data by Building Type'!$D$22:$F$22,0))=\"Yes\",1,0)*\n(AM$10*OFFSET('Efficiency Distributions'!$D$10,MATCH($C15,'Efficiency Distributions'!$C$9:$C$87,0)+RIGHT($E20),0)\n+AM$11*OFFSET('Efficiency Distributions'!$E$10,MATCH($C15,'Efficiency Distributions'!$C$9:$C$87,0)+RIGHT($E20),0))\n/SUM(AM$10:AM$11)","v":0.42836242487012544},{"$f":"IF(INDEX(PC_MAPPING,RIGHT($C15,1),MATCH($E$2,'Data by Building Type'!$D$22:$F$22,0))=\"Yes\",1,0)*\n(AN$10*OFFSET('Efficiency Distributions'!$D$10,MATCH($C15,'Efficiency Distributions'!$C$9:$C$87,0)+RIGHT($E20),0)\n+AN$11*OFFSET('Efficiency Distributions'!$E$10,MATCH($C15,'Efficiency Distributions'!$C$9:$C$87,0)+RIGHT($E20),0))\n/SUM(AN$10:AN$11)","v":0.42804716694628542},{"$f":"IF(INDEX(PC_MAPPING,RIGHT($C15,1),MATCH($E$2,'Data by Building Type'!$D$22:$F$22,0))=\"Yes\",1,0)*\n(AO$10*OFFSET('Efficiency Distributions'!$D$10,MATCH($C15,'Efficiency Distributions'!$C$9:$C$87,0)+RIGHT($E20),0)\n+AO$11*OFFSET('Efficiency Distributions'!$E$10,MATCH($C15,'Efficiency Distributions'!$C$9:$C$87,0)+RIGHT($E20),0))\n/SUM(AO$10:AO$11)","v":0.4284312802636579},{"$f":"IF(INDEX(PC_MAPPING,RIGHT($C15,1),MATCH($E$2,'Data by Building Type'!$D$22:$F$22,0))=\"Yes\",1,0)*\n(AP$10*OFFSET('Efficiency Distributions'!$D$10,MATCH($C15,'Efficiency Distributions'!$C$9:$C$87,0)+RIGHT($E20),0)\n+AP$11*OFFSET('Efficiency Distributions'!$E$10,MATCH($C15,'Efficiency Distributions'!$C$9:$C$87,0)+RIGHT($E20),0))\n/SUM(AP$10:AP$11)","v":0.42921904964754548},{"$f":"IF(INDEX(PC_MAPPING,RIGHT($C15,1),MATCH($E$2,'Data by Building Type'!$D$22:$F$22,0))=\"Yes\",1,0)*\n(AQ$10*OFFSET('Efficiency Distributions'!$D$10,MATCH($C15,'Efficiency Distributions'!$C$9:$C$87,0)+RIGHT($E20),0)\n+AQ$11*OFFSET('Efficiency Distributions'!$E$10,MATCH($C15,'Efficiency Distributions'!$C$9:$C$87,0)+RIGHT($E20),0))\n/SUM(AQ$10:AQ$11)","v":0.43001928646059523},{"$f":"IF(INDEX(PC_MAPPING,RIGHT($C15,1),MATCH($E$2,'Data by Building Type'!$D$22:$F$22,0))=\"Yes\",1,0)*\n(AR$10*OFFSET('Efficiency Distributions'!$D$10,MATCH($C15,'Efficiency Distributions'!$C$9:$C$87,0)+RIGHT($E20),0)\n+AR$11*OFFSET('Efficiency Distributions'!$E$10,MATCH($C15,'Efficiency Distributions'!$C$9:$C$87,0)+RIGHT($E20),0))\n/SUM(AR$10:AR$11)","v":0.42985234013150897},{"$f":"IF(INDEX(PC_MAPPING,RIGHT($C15,1),MATCH($E$2,'Data by Building Type'!$D$22:$F$22,0))=\"Yes\",1,0)*\n(AS$10*OFFSET('Efficiency Distributions'!$D$10,MATCH($C15,'Efficiency Distributions'!$C$9:$C$87,0)+RIGHT($E20),0)\n+AS$11*OFFSET('Efficiency Distributions'!$E$10,MATCH($C15,'Efficiency Distributions'!$C$9:$C$87,0)+RIGHT($E20),0))\n/SUM(AS$10:AS$11)","v":0.43260453294419948},{"$f":"IF(INDEX(PC_MAPPING,RIGHT($C15,1),MATCH($E$2,'Data by Building Type'!$D$22:$F$22,0))=\"Yes\",1,0)*\n(AT$10*OFFSET('Efficiency Distributions'!$D$10,MATCH($C15,'Efficiency Distributions'!$C$9:$C$87,0)+RIGHT($E20),0)\n+AT$11*OFFSET('Efficiency Distributions'!$E$10,MATCH($C15,'Efficiency Distributions'!$C$9:$C$87,0)+RIGHT($E20),0))\n/SUM(AT$10:AT$11)","v":0.43551348604854251},{"$f":"IF(INDEX(PC_MAPPING,RIGHT($C15,1),MATCH($E$2,'Data by Building Type'!$D$22:$F$22,0))=\"Yes\",1,0)*\n(AU$10*OFFSET('Efficiency Distributions'!$D$10,MATCH($C15,'Efficiency Distributions'!$C$9:$C$87,0)+RIGHT($E20),0)\n+AU$11*OFFSET('Efficiency Distributions'!$E$10,MATCH($C15,'Efficiency Distributions'!$C$9:$C$87,0)+RIGHT($E20),0))\n/SUM(AU$10:AU$11)","v":0.43642521566354869},{"$f":"IF(INDEX(PC_MAPPING,RIGHT($C15,1),MATCH($E$2,'Data by Building Type'!$D$22:$F$22,0))=\"Yes\",1,0)*\n(AV$10*OFFSET('Efficiency Distributions'!$D$10,MATCH($C15,'Efficiency Distributions'!$C$9:$C$87,0)+RIGHT($E20),0)\n+AV$11*OFFSET('Efficiency Distributions'!$E$10,MATCH($C15,'Efficiency Distributions'!$C$9:$C$87,0)+RIGHT($E20),0))\n/SUM(AV$10:AV$11)","v":0.42992165869371118},{"$f":"IF(INDEX(PC_MAPPING,RIGHT($C15,1),MATCH($E$2,'Data by Building Type'!$D$22:$F$22,0))=\"Yes\",1,0)*\n(AW$10*OFFSET('Efficiency Distributions'!$D$10,MATCH($C15,'Efficiency Distributions'!$C$9:$C$87,0)+RIGHT($E20),0)\n+AW$11*OFFSET('Efficiency Distributions'!$E$10,MATCH($C15,'Efficiency Distributions'!$C$9:$C$87,0)+RIGHT($E20),0))\n/SUM(AW$10:AW$11)","v":0.43206547278210877},{"$f":"IF(INDEX(PC_MAPPING,RIGHT($C15,1),MATCH($E$2,'Data by Building Type'!$D$22:$F$22,0))=\"Yes\",1,0)*\n(AX$10*OFFSET('Efficiency Distributions'!$D$10,MATCH($C15,'Efficiency Distributions'!$C$9:$C$87,0)+RIGHT($E20),0)\n+AX$11*OFFSET('Efficiency Distributions'!$E$10,MATCH($C15,'Efficiency Distributions'!$C$9:$C$87,0)+RIGHT($E20),0))\n/SUM(AX$10:AX$11)","v":0.43089328150338879},{"$f":"IF(INDEX(PC_MAPPING,RIGHT($C15,1),MATCH($E$2,'Data by Building Type'!$D$22:$F$22,0))=\"Yes\",1,0)*\n(AY$10*OFFSET('Efficiency Distributions'!$D$10,MATCH($C15,'Efficiency Distributions'!$C$9:$C$87,0)+RIGHT($E20),0)\n+AY$11*OFFSET('Efficiency Distributions'!$E$10,MATCH($C15,'Efficiency Distributions'!$C$9:$C$87,0)+RIGHT($E20),0))\n/SUM(AY$10:AY$11)","v":0.42892220063871372},{"$f":"IF(INDEX(PC_MAPPING,RIGHT($C15,1),MATCH($E$2,'Data by Building Type'!$D$22:$F$22,0))=\"Yes\",1,0)*\n(AZ$10*OFFSET('Efficiency Distributions'!$D$10,MATCH($C15,'Efficiency Distributions'!$C$9:$C$87,0)+RIGHT($E20),0)\n+AZ$11*OFFSET('Efficiency Distributions'!$E$10,MATCH($C15,'Efficiency Distributions'!$C$9:$C$87,0)+RIGHT($E20),0))\n/SUM(AZ$10:AZ$11)","v":0.42615661283767303},{"$f":"IF(INDEX(PC_MAPPING,RIGHT($C15,1),MATCH($E$2,'Data by Building Type'!$D$22:$F$22,0))=\"Yes\",1,0)*\n(BA$10*OFFSET('Efficiency Distributions'!$D$10,MATCH($C15,'Efficiency Distributions'!$C$9:$C$87,0)+RIGHT($E20),0)\n+BA$11*OFFSET('Efficiency Distributions'!$E$10,MATCH($C15,'Efficiency Distributions'!$C$9:$C$87,0)+RIGHT($E20),0))\n/SUM(BA$10:BA$11)","v":0.42730968048812612},{"$f":"IF(INDEX(PC_MAPPING,RIGHT($C15,1),MATCH($E$2,'Data by Building Type'!$D$22:$F$22,0))=\"Yes\",1,0)*\n(BB$10*OFFSET('Efficiency Distributions'!$D$10,MATCH($C15,'Efficiency Distributions'!$C$9:$C$87,0)+RIGHT($E20),0)\n+BB$11*OFFSET('Efficiency Distributions'!$E$10,MATCH($C15,'Efficiency Distributions'!$C$9:$C$87,0)+RIGHT($E20),0))\n/SUM(BB$10:BB$11)","v":0.42776722199740069},{"$f":"IF(INDEX(PC_MAPPING,RIGHT($C15,1),MATCH($E$2,'Data by Building Type'!$D$22:$F$22,0))=\"Yes\",1,0)*\n(BC$10*OFFSET('Efficiency Distributions'!$D$10,MATCH($C15,'Efficiency Distributions'!$C$9:$C$87,0)+RIGHT($E20),0)\n+BC$11*OFFSET('Efficiency Distributions'!$E$10,MATCH($C15,'Efficiency Distributions'!$C$9:$C$87,0)+RIGHT($E20),0))\n/SUM(BC$10:BC$11)","v":0.42746760309044513},{"$f":"IF(INDEX(PC_MAPPING,RIGHT($C15,1),MATCH($E$2,'Data by Building Type'!$D$22:$F$22,0))=\"Yes\",1,0)*\n(BD$10*OFFSET('Efficiency Distributions'!$D$10,MATCH($C15,'Efficiency Distributions'!$C$9:$C$87,0)+RIGHT($E20),0)\n+BD$11*OFFSET('Efficiency Distributions'!$E$10,MATCH($C15,'Efficiency Distributions'!$C$9:$C$87,0)+RIGHT($E20),0))\n/SUM(BD$10:BD$11)","v":0.42558061680309633},{"$f":"IF(INDEX(PC_MAPPING,RIGHT($C15,1),MATCH($E$2,'Data by Building Type'!$D$22:$F$22,0))=\"Yes\",1,0)*\n(BE$10*OFFSET('Efficiency Distributions'!$D$10,MATCH($C15,'Efficiency Distributions'!$C$9:$C$87,0)+RIGHT($E20),0)\n+BE$11*OFFSET('Efficiency Distributions'!$E$10,MATCH($C15,'Efficiency Distributions'!$C$9:$C$87,0)+RIGHT($E20),0))\n/SUM(BE$10:BE$11)","v":0.42666536605965244},{"$f":"IF(INDEX(PC_MAPPING,RIGHT($C15,1),MATCH($E$2,'Data by Building Type'!$D$22:$F$22,0))=\"Yes\",1,0)*\n(BF$10*OFFSET('Efficiency Distributions'!$D$10,MATCH($C15,'Efficiency Distributions'!$C$9:$C$87,0)+RIGHT($E20),0)\n+BF$11*OFFSET('Efficiency Distributions'!$E$10,MATCH($C15,'Efficiency Distributions'!$C$9:$C$87,0)+RIGHT($E20),0))\n/SUM(BF$10:BF$11)","v":0.4231497593310265},{"$f":"IF(INDEX(PC_MAPPING,RIGHT($C15,1),MATCH($E$2,'Data by Building Type'!$D$22:$F$22,0))=\"Yes\",1,0)*\n(BG$10*OFFSET('Efficiency Distributions'!$D$10,MATCH($C15,'Efficiency Distributions'!$C$9:$C$87,0)+RIGHT($E20),0)\n+BG$11*OFFSET('Efficiency Distributions'!$E$10,MATCH($C15,'Efficiency Distributions'!$C$9:$C$87,0)+RIGHT($E20),0))\n/SUM(BG$10:BG$11)","v":0.42311500826103277}]
[null,null,null,null,"EL2",{"$f":"IF(INDEX(PC_MAPPING,RIGHT($C15,1),MATCH($E$2,'Data by Building Type'!$D$22:$F$22,0))=\"Yes\",1,0)*\n(F$10*OFFSET('Efficiency Distributions'!$D$10,MATCH($C15,'Efficiency Distributions'!$C$9:$C$87,0)+RIGHT($E21),0)\n+F$11*OFFSET('Efficiency Distributions'!$E$10,MATCH($C15,'Efficiency Distributions'!$C$9:$C$87,0)+RIGHT($E21),0))\n/SUM(F$10:F$11)","v":0},{"$f":"IF(INDEX(PC_MAPPING,RIGHT($C15,1),MATCH($E$2,'Data by Building Type'!$D$22:$F$22,0))=\"Yes\",1,0)*\n(G$10*OFFSET('Efficiency Distributions'!$D$10,MATCH($C15,'Efficiency Distributions'!$C$9:$C$87,0)+RIGHT($E21),0)\n+G$11*OFFSET('Efficiency Distributions'!$E$10,MATCH($C15,'Efficiency Distributions'!$C$9:$C$87,0)+RIGHT($E21),0))\n/SUM(G$10:G$11)","v":0},{"$f":"IF(INDEX(PC_MAPPING,RIGHT($C15,1),MATCH($E$2,'Data by Building Type'!$D$22:$F$22,0))=\"Yes\",1,0)*\n(H$10*OFFSET('Efficiency Distributions'!$D$10,MATCH($C15,'Efficiency Distributions'!$C$9:$C$87,0)+RIGHT($E21),0)\n+H$11*OFFSET('Efficiency Distributions'!$E$10,MATCH($C15,'Efficiency Distributions'!$C$9:$C$87,0)+RIGHT($E21),0))\n/SUM(H$10:H$11)","v":0},{"$f":"IF(INDEX(PC_MAPPING,RIGHT($C15,1),MATCH($E$2,'Data by Building Type'!$D$22:$F$22,0))=\"Yes\",1,0)*\n(I$10*OFFSET('Efficiency Distributions'!$D$10,MATCH($C15,'Efficiency Distributions'!$C$9:$C$87,0)+RIGHT($E21),0)\n+I$11*OFFSET('Efficiency Distributions'!$E$10,MATCH($C15,'Efficiency Distributions'!$C$9:$C$87,0)+RIGHT($E21),0))\n/SUM(I$10:I$11)","v":0},{"$f":"IF(INDEX(PC_MAPPING,RIGHT($C15,1),MATCH($E$2,'Data by Building Type'!$D$22:$F$22,0))=\"Yes\",1,0)*\n(J$10*OFFSET('Efficiency Distributions'!$D$10,MATCH($C15,'Efficiency Distributions'!$C$9:$C$87,0)+RIGHT($E21),0)\n+J$11*OFFSET('Efficiency Distributions'!$E$10,MATCH($C15,'Efficiency Distributions'!$C$9:$C$87,0)+RIGHT($E21),0))\n/SUM(J$10:J$11)","v":0},{"$f":"IF(INDEX(PC_MAPPING,RIGHT($C15,1),MATCH($E$2,'Data by Building Type'!$D$22:$F$22,0))=\"Yes\",1,0)*\n(K$10*OFFSET('Efficiency Distributions'!$D$10,MATCH($C15,'Efficiency Distributions'!$C$9:$C$87,0)+RIGHT($E21),0)\n+K$11*OFFSET('Efficiency Distributions'!$E$10,MATCH($C15,'Efficiency Distributions'!$C$9:$C$87,0)+RIGHT($E21),0))\n/SUM(K$10:K$11)","v":0},{"$f":"IF(INDEX(PC_MAPPING,RIGHT($C15,1),MATCH($E$2,'Data by Building Type'!$D$22:$F$22,0))=\"Yes\",1,0)*\n(L$10*OFFSET('Efficiency Distributions'!$D$10,MATCH($C15,'Efficiency Distributions'!$C$9:$C$87,0)+RIGHT($E21),0)\n+L$11*OFFSET('Efficiency Distributions'!$E$10,MATCH($C15,'Efficiency Distributions'!$C$9:$C$87,0)+RIGHT($E21),0))\n/SUM(L$10:L$11)","v":0},{"$f":"IF(INDEX(PC_MAPPING,RIGHT($C15,1),MATCH($E$2,'Data by Building Type'!$D$22:$F$22,0))=\"Yes\",1,0)*\n(M$10*OFFSET('Efficiency Distributions'!$D$10,MATCH($C15,'Efficiency Distributions'!$C$9:$C$87,0)+RIGHT($E21),0)\n+M$11*OFFSET('Efficiency Distributions'!$E$10,MATCH($C15,'Efficiency Distributions'!$C$9:$C$87,0)+RIGHT($E21),0))\n/SUM(M$10:M$11)","v":0},{"$f":"IF(INDEX(PC_MAPPING,RIGHT($C15,1),MATCH($E$2,'Data by Building Type'!$D$22:$F$22,0))=\"Yes\",1,0)*\n(N$10*OFFSET('Efficiency Distributions'!$D$10,MATCH($C15,'Efficiency Distributions'!$C$9:$C$87,0)+RIGHT($E21),0)\n+N$11*OFFSET('Efficiency Distributions'!$E$10,MATCH($C15,'Efficiency Distributions'!$C$9:$C$87,0)+RIGHT($E21),0))\n/SUM(N$10:N$11)","v":0},{"$f":"IF(INDEX(PC_MAPPING,RIGHT($C15,1),MATCH($E$2,'Data by Building Type'!$D$22:$F$22,0))=\"Yes\",1,0)*\n(O$10*OFFSET('Efficiency Distributions'!$D$10,MATCH($C15,'Efficiency Distributions'!$C$9:$C$87,0)+RIGHT($E21),0)\n+O$11*OFFSET('Efficiency Distributions'!$E$10,MATCH($C15,'Efficiency Distributions'!$C$9:$C$87,0)+RIGHT($E21),0))\n/SUM(O$10:O$11)","v":0},{"$f":"IF(INDEX(PC_MAPPING,RIGHT($C15,1),MATCH($E$2,'Data by Building Type'!$D$22:$F$22,0))=\"Yes\",1,0)*\n(P$10*OFFSET('Efficiency Distributions'!$D$10,MATCH($C15,'Efficiency Distributions'!$C$9:$C$87,0)+RIGHT($E21),0)\n+P$11*OFFSET('Efficiency Distributions'!$E$10,MATCH($C15,'Efficiency Distributions'!$C$9:$C$87,0)+RIGHT($E21),0))\n/SUM(P$10:P$11)","v":0},{"$f":"IF(INDEX(PC_MAPPING,RIGHT($C15,1),MATCH($E$2,'Data by Building Type'!$D$22:$F$22,0))=\"Yes\",1,0)*\n(Q$10*OFFSET('Efficiency Distributions'!$D$10,MATCH($C15,'Efficiency Distributions'!$C$9:$C$87,0)+RIGHT($E21),0)\n+Q$11*OFFSET('Efficiency Distributions'!$E$10,MATCH($C15,'Efficiency Distributions'!$C$9:$C$87,0)+RIGHT($E21),0))\n/SUM(Q$10:Q$11)","v":0},{"$f":"IF(INDEX(PC_MAPPING,RIGHT($C15,1),MATCH($E$2,'Data by Building Type'!$D$22:$F$22,0))=\"Yes\",1,0)*\n(R$10*OFFSET('Efficiency Distributions'!$D$10,MATCH($C15,'Efficiency Distributions'!$C$9:$C$87,0)+RIGHT($E21),0)\n+R$11*OFFSET('Efficiency Distributions'!$E$10,MATCH($C15,'Efficiency Distributions'!$C$9:$C$87,0)+RIGHT($E21),0))\n/SUM(R$10:R$11)","v":0},{"$f":"IF(INDEX(PC_MAPPING,RIGHT($C15,1),MATCH($E$2,'Data by Building Type'!$D$22:$F$22,0))=\"Yes\",1,0)*\n(S$10*OFFSET('Efficiency Distributions'!$D$10,MATCH($C15,'Efficiency Distributions'!$C$9:$C$87,0)+RIGHT($E21),0)\n+S$11*OFFSET('Efficiency Distributions'!$E$10,MATCH($C15,'Efficiency Distributions'!$C$9:$C$87,0)+RIGHT($E21),0))\n/SUM(S$10:S$11)","v":0},{"$f":"IF(INDEX(PC_MAPPING,RIGHT($C15,1),MATCH($E$2,'Data by Building Type'!$D$22:$F$22,0))=\"Yes\",1,0)*\n(T$10*OFFSET('Efficiency Distributions'!$D$10,MATCH($C15,'Efficiency Distributions'!$C$9:$C$87,0)+RIGHT($E21),0)\n+T$11*OFFSET('Efficiency Distributions'!$E$10,MATCH($C15,'Efficiency Distributions'!$C$9:$C$87,0)+RIGHT($E21),0))\n/SUM(T$10:T$11)","v":0},{"$f":"IF(INDEX(PC_MAPPING,RIGHT($C15,1),MATCH($E$2,'Data by Building Type'!$D$22:$F$22,0))=\"Yes\",1,0)*\n(U$10*OFFSET('Efficiency Distributions'!$D$10,MATCH($C15,'Efficiency Distributions'!$C$9:$C$87,0)+RIGHT($E21),0)\n+U$11*OFFSET('Efficiency Distributions'!$E$10,MATCH($C15,'Efficiency Distributions'!$C$9:$C$87,0)+RIGHT($E21),0))\n/SUM(U$10:U$11)","v":0},{"$f":"IF(INDEX(PC_MAPPING,RIGHT($C15,1),MATCH($E$2,'Data by Building Type'!$D$22:$F$22,0))=\"Yes\",1,0)*\n(V$10*OFFSET('Efficiency Distributions'!$D$10,MATCH($C15,'Efficiency Distributions'!$C$9:$C$87,0)+RIGHT($E21),0)\n+V$11*OFFSET('Efficiency Distributions'!$E$10,MATCH($C15,'Efficiency Distributions'!$C$9:$C$87,0)+RIGHT($E21),0))\n/SUM(V$10:V$11)","v":0},{"$f":"IF(INDEX(PC_MAPPING,RIGHT($C15,1),MATCH($E$2,'Data by Building Type'!$D$22:$F$22,0))=\"Yes\",1,0)*\n(W$10*OFFSET('Efficiency Distributions'!$D$10,MATCH($C15,'Efficiency Distributions'!$C$9:$C$87,0)+RIGHT($E21),0)\n+W$11*OFFSET('Efficiency Distributions'!$E$10,MATCH($C15,'Efficiency Distributions'!$C$9:$C$87,0)+RIGHT($E21),0))\n/SUM(W$10:W$11)","v":0},{"$f":"IF(INDEX(PC_MAPPING,RIGHT($C15,1),MATCH($E$2,'Data by Building Type'!$D$22:$F$22,0))=\"Yes\",1,0)*\n(X$10*OFFSET('Efficiency Distributions'!$D$10,MATCH($C15,'Efficiency Distributions'!$C$9:$C$87,0)+RIGHT($E21),0)\n+X$11*OFFSET('Efficiency Distributions'!$E$10,MATCH($C15,'Efficiency Distributions'!$C$9:$C$87,0)+RIGHT($E21),0))\n/SUM(X$10:X$11)","v":0},{"$f":"IF(INDEX(PC_MAPPING,RIGHT($C15,1),MATCH($E$2,'Data by Building Type'!$D$22:$F$22,0))=\"Yes\",1,0)*\n(Y$10*OFFSET('Efficiency Distributions'!$D$10,MATCH($C15,'Efficiency Distributions'!$C$9:$C$87,0)+RIGHT($E21),0)\n+Y$11*OFFSET('Efficiency Distributions'!$E$10,MATCH($C15,'Efficiency Distributions'!$C$9:$C$87,0)+RIGHT($E21),0))\n/SUM(Y$10:Y$11)","v":0},{"$f":"IF(INDEX(PC_MAPPING,RIGHT($C15,1),MATCH($E$2,'Data by Building Type'!$D$22:$F$22,0))=\"Yes\",1,0)*\n(Z$10*OFFSET('Efficiency Distributions'!$D$10,MATCH($C15,'Efficiency Distributions'!$C$9:$C$87,0)+RIGHT($E21),0)\n+Z$11*OFFSET('Efficiency Distributions'!$E$10,MATCH($C15,'Efficiency Distributions'!$C$9:$C$87,0)+RIGHT($E21),0))\n/SUM(Z$10:Z$11)","v":0},{"$f":"IF(INDEX(PC_MAPPING,RIGHT($C15,1),MATCH($E$2,'Data by Building Type'!$D$22:$F$22,0))=\"Yes\",1,0)*\n(AA$10*OFFSET('Efficiency Distributions'!$D$10,MATCH($C15,'Efficiency Distributions'!$C$9:$C$87,0)+RIGHT($E21),0)\n+AA$11*OFFSET('Efficiency Distributions'!$E$10,MATCH($C15,'Efficiency Distributions'!$C$9:$C$87,0)+RIGHT($E21),0))\n/SUM(AA$10:AA$11)","v":0},{"$f":"IF(INDEX(PC_MAPPING,RIGHT($C15,1),MATCH($E$2,'Data by Building Type'!$D$22:$F$22,0))=\"Yes\",1,0)*\n(AB$10*OFFSET('Efficiency Distributions'!$D$10,MATCH($C15,'Efficiency Distributions'!$C$9:$C$87,0)+RIGHT($E21),0)\n+AB$11*OFFSET('Efficiency Distributions'!$E$10,MATCH($C15,'Efficiency Distributions'!$C$9:$C$87,0)+RIGHT($E21),0))\n/SUM(AB$10:AB$11)","v":0},{"$f":"IF(INDEX(PC_MAPPING,RIGHT($C15,1),MATCH($E$2,'Data by Building Type'!$D$22:$F$22,0))=\"Yes\",1,0)*\n(AC$10*OFFSET('Efficiency Distributions'!$D$10,MATCH($C15,'Efficiency Distributions'!$C$9:$C$87,0)+RIGHT($E21),0)\n+AC$11*OFFSET('Efficiency Distributions'!$E$10,MATCH($C15,'Efficiency Distributions'!$C$9:$C$87,0)+RIGHT($E21),0))\n/SUM(AC$10:AC$11)","v":0},{"$f":"IF(INDEX(PC_MAPPING,RIGHT($C15,1),MATCH($E$2,'Data by Building Type'!$D$22:$F$22,0))=\"Yes\",1,0)*\n(AD$10*OFFSET('Efficiency Distributions'!$D$10,MATCH($C15,'Efficiency Distributions'!$C$9:$C$87,0)+RIGHT($E21),0)\n+AD$11*OFFSET('Efficiency Distributions'!$E$10,MATCH($C15,'Efficiency Distributions'!$C$9:$C$87,0)+RIGHT($E21),0))\n/SUM(AD$10:AD$11)","v":0},{"$f":"IF(INDEX(PC_MAPPING,RIGHT($C15,1),MATCH($E$2,'Data by Building Type'!$D$22:$F$22,0))=\"Yes\",1,0)*\n(AE$10*OFFSET('Efficiency Distributions'!$D$10,MATCH($C15,'Efficiency Distributions'!$C$9:$C$87,0)+RIGHT($E21),0)\n+AE$11*OFFSET('Efficiency Distributions'!$E$10,MATCH($C15,'Efficiency Distributions'!$C$9:$C$87,0)+RIGHT($E21),0))\n/SUM(AE$10:AE$11)","v":0},{"$f":"IF(INDEX(PC_MAPPING,RIGHT($C15,1),MATCH($E$2,'Data by Building Type'!$D$22:$F$22,0))=\"Yes\",1,0)*\n(AF$10*OFFSET('Efficiency Distributions'!$D$10,MATCH($C15,'Efficiency Distributions'!$C$9:$C$87,0)+RIGHT($E21),0)\n+AF$11*OFFSET('Efficiency Distributions'!$E$10,MATCH($C15,'Efficiency Distributions'!$C$9:$C$87,0)+RIGHT($E21),0))\n/SUM(AF$10:AF$11)","v":0},{"$f":"IF(INDEX(PC_MAPPING,RIGHT($C15,1),MATCH($E$2,'Data by Building Type'!$D$22:$F$22,0))=\"Yes\",1,0)*\n(AG$10*OFFSET('Efficiency Distributions'!$D$10,MATCH($C15,'Efficiency Distributions'!$C$9:$C$87,0)+RIGHT($E21),0)\n+AG$11*OFFSET('Efficiency Distributions'!$E$10,MATCH($C15,'Efficiency Distributions'!$C$9:$C$87,0)+RIGHT($E21),0))\n/SUM(AG$10:AG$11)","v":0},{"$f":"IF(INDEX(PC_MAPPING,RIGHT($C15,1),MATCH($E$2,'Data by Building Type'!$D$22:$F$22,0))=\"Yes\",1,0)*\n(AH$10*OFFSET('Efficiency Distributions'!$D$10,MATCH($C15,'Efficiency Distributions'!$C$9:$C$87,0)+RIGHT($E21),0)\n+AH$11*OFFSET('Efficiency Distributions'!$E$10,MATCH($C15,'Efficiency Distributions'!$C$9:$C$87,0)+RIGHT($E21),0))\n/SUM(AH$10:AH$11)","v":0},{"$f":"IF(INDEX(PC_MAPPING,RIGHT($C15,1),MATCH($E$2,'Data by Building Type'!$D$22:$F$22,0))=\"Yes\",1,0)*\n(AI$10*OFFSET('Efficiency Distributions'!$D$10,MATCH($C15,'Efficiency Distributions'!$C$9:$C$87,0)+RIGHT($E21),0)\n+AI$11*OFFSET('Efficiency Distributions'!$E$10,MATCH($C15,'Efficiency Distributions'!$C$9:$C$87,0)+RIGHT($E21),0))\n/SUM(AI$10:AI$11)","v":0},{"$f":"IF(INDEX(PC_MAPPING,RIGHT($C15,1),MATCH($E$2,'Data by Building Type'!$D$22:$F$22,0))=\"Yes\",1,0)*\n(AJ$10*OFFSET('Efficiency Distributions'!$D$10,MATCH($C15,'Efficiency Distributions'!$C$9:$C$87,0)+RIGHT($E21),0)\n+AJ$11*OFFSET('Efficiency Distributions'!$E$10,MATCH($C15,'Efficiency Distributions'!$C$9:$C$87,0)+RIGHT($E21),0))\n/SUM(AJ$10:AJ$11)","v":0},{"$f":"IF(INDEX(PC_MAPPING,RIGHT($C15,1),MATCH($E$2,'Data by Building Type'!$D$22:$F$22,0))=\"Yes\",1,0)*\n(AK$10*OFFSET('Efficiency Distributions'!$D$10,MATCH($C15,'Efficiency Distributions'!$C$9:$C$87,0)+RIGHT($E21),0)\n+AK$11*OFFSET('Efficiency Distributions'!$E$10,MATCH($C15,'Efficiency Distributions'!$C$9:$C$87,0)+RIGHT($E21),0))\n/SUM(AK$10:AK$11)","v":0},{"$f":"IF(INDEX(PC_MAPPING,RIGHT($C15,1),MATCH($E$2,'Data by Building Type'!$D$22:$F$22,0))=\"Yes\",1,0)*\n(AL$10*OFFSET('Efficiency Distributions'!$D$10,MATCH($C15,'Efficiency Distributions'!$C$9:$C$87,0)+RIGHT($E21),0)\n+AL$11*OFFSET('Efficiency Distributions'!$E$10,MATCH($C15,'Efficiency Distributions'!$C$9:$C$87,0)+RIGHT($E21),0))\n/SUM(AL$10:AL$11)","v":0},{"$f":"IF(INDEX(PC_MAPPING,RIGHT($C15,1),MATCH($E$2,'Data by Building Type'!$D$22:$F$22,0))=\"Yes\",1,0)*\n(AM$10*OFFSET('Efficiency Distributions'!$D$10,MATCH($C15,'Efficiency Distributions'!$C$9:$C$87,0)+RIGHT($E21),0)\n+AM$11*OFFSET('Efficiency Distributions'!$E$10,MATCH($C15,'Efficiency Distributions'!$C$9:$C$87,0)+RIGHT($E21),0))\n/SUM(AM$10:AM$11)","v":0},{"$f":"IF(INDEX(PC_MAPPING,RIGHT($C15,1),MATCH($E$2,'Data by Building Type'!$D$22:$F$22,0))=\"Yes\",1,0)*\n(AN$10*OFFSET('Efficiency Distributions'!$D$10,MATCH($C15,'Efficiency Distributions'!$C$9:$C$87,0)+RIGHT($E21),0)\n+AN$11*OFFSET('Efficiency Distributions'!$E$10,MATCH($C15,'Efficiency Distributions'!$C$9:$C$87,0)+RIGHT($E21),0))\n/SUM(AN$10:AN$11)","v":0},{"$f":"IF(INDEX(PC_MAPPING,RIGHT($C15,1),MATCH($E$2,'Data by Building Type'!$D$22:$F$22,0))=\"Yes\",1,0)*\n(AO$10*OFFSET('Efficiency Distributions'!$D$10,MATCH($C15,'Efficiency Distributions'!$C$9:$C$87,0)+RIGHT($E21),0)\n+AO$11*OFFSET('Efficiency Distributions'!$E$10,MATCH($C15,'Efficiency Distributions'!$C$9:$C$87,0)+RIGHT($E21),0))\n/SUM(AO$10:AO$11)","v":0},{"$f":"IF(INDEX(PC_MAPPING,RIGHT($C15,1),MATCH($E$2,'Data by Building Type'!$D$22:$F$22,0))=\"Yes\",1,0)*\n(AP$10*OFFSET('Efficiency Distributions'!$D$10,MATCH($C15,'Efficiency Distributions'!$C$9:$C$87,0)+RIGHT($E21),0)\n+AP$11*OFFSET('Efficiency Distributions'!$E$10,MATCH($C15,'Efficiency Distributions'!$C$9:$C$87,0)+RIGHT($E21),0))\n/SUM(AP$10:AP$11)","v":0},{"$f":"IF(INDEX(PC_MAPPING,RIGHT($C15,1),MATCH($E$2,'Data by Building Type'!$D$22:$F$22,0))=\"Yes\",1,0)*\n(AQ$10*OFFSET('Efficiency Distributions'!$D$10,MATCH($C15,'Efficiency Distributions'!$C$9:$C$87,0)+RIGHT($E21),0)\n+AQ$11*OFFSET('Efficiency Distributions'!$E$10,MATCH($C15,'Efficiency Distributions'!$C$9:$C$87,0)+RIGHT($E21),0))\n/SUM(AQ$10:AQ$11)","v":0},{"$f":"IF(INDEX(PC_MAPPING,RIGHT($C15,1),MATCH($E$2,'Data by Building Type'!$D$22:$F$22,0))=\"Yes\",1,0)*\n(AR$10*OFFSET('Efficiency Distributions'!$D$10,MATCH($C15,'Efficiency Distributions'!$C$9:$C$87,0)+RIGHT($E21),0)\n+AR$11*OFFSET('Efficiency Distributions'!$E$10,MATCH($C15,'Efficiency Distributions'!$C$9:$C$87,0)+RIGHT($E21),0))\n/SUM(AR$10:AR$11)","v":0},{"$f":"IF(INDEX(PC_MAPPING,RIGHT($C15,1),MATCH($E$2,'Data by Building Type'!$D$22:$F$22,0))=\"Yes\",1,0)*\n(AS$10*OFFSET('Efficiency Distributions'!$D$10,MATCH($C15,'Efficiency Distributions'!$C$9:$C$87,0)+RIGHT($E21),0)\n+AS$11*OFFSET('Efficiency Distributions'!$E$10,MATCH($C15,'Efficiency Distributions'!$C$9:$C$87,0)+RIGHT($E21),0))\n/SUM(AS$10:AS$11)","v":0},{"$f":"IF(INDEX(PC_MAPPING,RIGHT($C15,1),MATCH($E$2,'Data by Building Type'!$D$22:$F$22,0))=\"Yes\",1,0)*\n(AT$10*OFFSET('Efficiency Distributions'!$D$10,MATCH($C15,'Efficiency Distributions'!$C$9:$C$87,0)+RIGHT($E21),0)\n+AT$11*OFFSET('Efficiency Distributions'!$E$10,MATCH($C15,'Efficiency Distributions'!$C$9:$C$87,0)+RIGHT($E21),0))\n/SUM(AT$10:AT$11)","v":0},{"$f":"IF(INDEX(PC_MAPPING,RIGHT($C15,1),MATCH($E$2,'Data by Building Type'!$D$22:$F$22,0))=\"Yes\",1,0)*\n(AU$10*OFFSET('Efficiency Distributions'!$D$10,MATCH($C15,'Efficiency Distributions'!$C$9:$C$87,0)+RIGHT($E21),0)\n+AU$11*OFFSET('Efficiency Distributions'!$E$10,MATCH($C15,'Efficiency Distributions'!$C$9:$C$87,0)+RIGHT($E21),0))\n/SUM(AU$10:AU$11)","v":0},{"$f":"IF(INDEX(PC_MAPPING,RIGHT($C15,1),MATCH($E$2,'Data by Building Type'!$D$22:$F$22,0))=\"Yes\",1,0)*\n(AV$10*OFFSET('Efficiency Distributions'!$D$10,MATCH($C15,'Efficiency Distributions'!$C$9:$C$87,0)+RIGHT($E21),0)\n+AV$11*OFFSET('Efficiency Distributions'!$E$10,MATCH($C15,'Efficiency Distributions'!$C$9:$C$87,0)+RIGHT($E21),0))\n/SUM(AV$10:AV$11)","v":0},{"$f":"IF(INDEX(PC_MAPPING,RIGHT($C15,1),MATCH($E$2,'Data by Building Type'!$D$22:$F$22,0))=\"Yes\",1,0)*\n(AW$10*OFFSET('Efficiency Distributions'!$D$10,MATCH($C15,'Efficiency Distributions'!$C$9:$C$87,0)+RIGHT($E21),0)\n+AW$11*OFFSET('Efficiency Distributions'!$E$10,MATCH($C15,'Efficiency Distributions'!$C$9:$C$87,0)+RIGHT($E21),0))\n/SUM(AW$10:AW$11)","v":0},{"$f":"IF(INDEX(PC_MAPPING,RIGHT($C15,1),MATCH($E$2,'Data by Building Type'!$D$22:$F$22,0))=\"Yes\",1,0)*\n(AX$10*OFFSET('Efficiency Distributions'!$D$10,MATCH($C15,'Efficiency Distributions'!$C$9:$C$87,0)+RIGHT($E21),0)\n+AX$11*OFFSET('Efficiency Distributions'!$E$10,MATCH($C15,'Efficiency Distributions'!$C$9:$C$87,0)+RIGHT($E21),0))\n/SUM(AX$10:AX$11)","v":0},{"$f":"IF(INDEX(PC_MAPPING,RIGHT($C15,1),MATCH($E$2,'Data by Building Type'!$D$22:$F$22,0))=\"Yes\",1,0)*\n(AY$10*OFFSET('Efficiency Distributions'!$D$10,MATCH($C15,'Efficiency Distributions'!$C$9:$C$87,0)+RIGHT($E21),0)\n+AY$11*OFFSET('Efficiency Distributions'!$E$10,MATCH($C15,'Efficiency Distributions'!$C$9:$C$87,0)+RIGHT($E21),0))\n/SUM(AY$10:AY$11)","v":0},{"$f":"IF(INDEX(PC_MAPPING,RIGHT($C15,1),MATCH($E$2,'Data by Building Type'!$D$22:$F$22,0))=\"Yes\",1,0)*\n(AZ$10*OFFSET('Efficiency Distributions'!$D$10,MATCH($C15,'Efficiency Distributions'!$C$9:$C$87,0)+RIGHT($E21),0)\n+AZ$11*OFFSET('Efficiency Distributions'!$E$10,MATCH($C15,'Efficiency Distributions'!$C$9:$C$87,0)+RIGHT($E21),0))\n/SUM(AZ$10:AZ$11)","v":0},{"$f":"IF(INDEX(PC_MAPPING,RIGHT($C15,1),MATCH($E$2,'Data by Building Type'!$D$22:$F$22,0))=\"Yes\",1,0)*\n(BA$10*OFFSET('Efficiency Distributions'!$D$10,MATCH($C15,'Efficiency Distributions'!$C$9:$C$87,0)+RIGHT($E21),0)\n+BA$11*OFFSET('Efficiency Distributions'!$E$10,MATCH($C15,'Efficiency Distributions'!$C$9:$C$87,0)+RIGHT($E21),0))\n/SUM(BA$10:BA$11)","v":0},{"$f":"IF(INDEX(PC_MAPPING,RIGHT($C15,1),MATCH($E$2,'Data by Building Type'!$D$22:$F$22,0))=\"Yes\",1,0)*\n(BB$10*OFFSET('Efficiency Distributions'!$D$10,MATCH($C15,'Efficiency Distributions'!$C$9:$C$87,0)+RIGHT($E21),0)\n+BB$11*OFFSET('Efficiency Distributions'!$E$10,MATCH($C15,'Efficiency Distributions'!$C$9:$C$87,0)+RIGHT($E21),0))\n/SUM(BB$10:BB$11)","v":0},{"$f":"IF(INDEX(PC_MAPPING,RIGHT($C15,1),MATCH($E$2,'Data by Building Type'!$D$22:$F$22,0))=\"Yes\",1,0)*\n(BC$10*OFFSET('Efficiency Distributions'!$D$10,MATCH($C15,'Efficiency Distributions'!$C$9:$C$87,0)+RIGHT($E21),0)\n+BC$11*OFFSET('Efficiency Distributions'!$E$10,MATCH($C15,'Efficiency Distributions'!$C$9:$C$87,0)+RIGHT($E21),0))\n/SUM(BC$10:BC$11)","v":0},{"$f":"IF(INDEX(PC_MAPPING,RIGHT($C15,1),MATCH($E$2,'Data by Building Type'!$D$22:$F$22,0))=\"Yes\",1,0)*\n(BD$10*OFFSET('Efficiency Distributions'!$D$10,MATCH($C15,'Efficiency Distributions'!$C$9:$C$87,0)+RIGHT($E21),0)\n+BD$11*OFFSET('Efficiency Distributions'!$E$10,MATCH($C15,'Efficiency Distributions'!$C$9:$C$87,0)+RIGHT($E21),0))\n/SUM(BD$10:BD$11)","v":0},{"$f":"IF(INDEX(PC_MAPPING,RIGHT($C15,1),MATCH($E$2,'Data by Building Type'!$D$22:$F$22,0))=\"Yes\",1,0)*\n(BE$10*OFFSET('Efficiency Distributions'!$D$10,MATCH($C15,'Efficiency Distributions'!$C$9:$C$87,0)+RIGHT($E21),0)\n+BE$11*OFFSET('Efficiency Distributions'!$E$10,MATCH($C15,'Efficiency Distributions'!$C$9:$C$87,0)+RIGHT($E21),0))\n/SUM(BE$10:BE$11)","v":0},{"$f":"IF(INDEX(PC_MAPPING,RIGHT($C15,1),MATCH($E$2,'Data by Building Type'!$D$22:$F$22,0))=\"Yes\",1,0)*\n(BF$10*OFFSET('Efficiency Distributions'!$D$10,MATCH($C15,'Efficiency Distributions'!$C$9:$C$87,0)+RIGHT($E21),0)\n+BF$11*OFFSET('Efficiency Distributions'!$E$10,MATCH($C15,'Efficiency Distributions'!$C$9:$C$87,0)+RIGHT($E21),0))\n/SUM(BF$10:BF$11)","v":0},{"$f":"IF(INDEX(PC_MAPPING,RIGHT($C15,1),MATCH($E$2,'Data by Building Type'!$D$22:$F$22,0))=\"Yes\",1,0)*\n(BG$10*OFFSET('Efficiency Distributions'!$D$10,MATCH($C15,'Efficiency Distributions'!$C$9:$C$87,0)+RIGHT($E21),0)\n+BG$11*OFFSET('Efficiency Distributions'!$E$10,MATCH($C15,'Efficiency Distributions'!$C$9:$C$87,0)+RIGHT($E21),0))\n/SUM(BG$10:BG$11)","v":0}]
[null,null,null,null,"EL3",{"$f":"IF(INDEX(PC_MAPPING,RIGHT($C15,1),MATCH($E$2,'Data by Building Type'!$D$22:$F$22,0))=\"Yes\",1,0)*\n(F$10*OFFSET('Efficiency Distributions'!$D$10,MATCH($C15,'Efficiency Distributions'!$C$9:$C$87,0)+RIGHT($E22),0)\n+F$11*OFFSET('Efficiency Distributions'!$E$10,MATCH($C15,'Efficiency Distributions'!$C$9:$C$87,0)+RIGHT($E22),0))\n/SUM(F$10:F$11)","v":0.10206044084630968},{"$f":"IF(INDEX(PC_MAPPING,RIGHT($C15,1),MATCH($E$2,'Data by Building Type'!$D$22:$F$22,0))=\"Yes\",1,0)*\n(G$10*OFFSET('Efficiency Distributions'!$D$10,MATCH($C15,'Efficiency Distributions'!$C$9:$C$87,0)+RIGHT($E22),0)\n+G$11*OFFSET('Efficiency Distributions'!$E$10,MATCH($C15,'Efficiency Distributions'!$C$9:$C$87,0)+RIGHT($E22),0))\n/SUM(G$10:G$11)","v":0.10852021081706238},{"$f":"IF(INDEX(PC_MAPPING,RIGHT($C15,1),MATCH($E$2,'Data by Building Type'!$D$22:$F$22,0))=\"Yes\",1,0)*\n(H$10*OFFSET('Efficiency Distributions'!$D$10,MATCH($C15,'Efficiency Distributions'!$C$9:$C$87,0)+RIGHT($E22),0)\n+H$11*OFFSET('Efficiency Distributions'!$E$10,MATCH($C15,'Efficiency Distributions'!$C$9:$C$87,0)+RIGHT($E22),0))\n/SUM(H$10:H$11)","v":0.10550881671129518},{"$f":"IF(INDEX(PC_MAPPING,RIGHT($C15,1),MATCH($E$2,'Data by Building Type'!$D$22:$F$22,0))=\"Yes\",1,0)*\n(I$10*OFFSET('Efficiency Distributions'!$D$10,MATCH($C15,'Efficiency Distributions'!$C$9:$C$87,0)+RIGHT($E22),0)\n+I$11*OFFSET('Efficiency Distributions'!$E$10,MATCH($C15,'Efficiency Distributions'!$C$9:$C$87,0)+RIGHT($E22),0))\n/SUM(I$10:I$11)","v":9.6769145865084699E-2},{"$f":"IF(INDEX(PC_MAPPING,RIGHT($C15,1),MATCH($E$2,'Data by Building Type'!$D$22:$F$22,0))=\"Yes\",1,0)*\n(J$10*OFFSET('Efficiency Distributions'!$D$10,MATCH($C15,'Efficiency Distributions'!$C$9:$C$87,0)+RIGHT($E22),0)\n+J$11*OFFSET('Efficiency Distributions'!$E$10,MATCH($C15,'Efficiency Distributions'!$C$9:$C$87,0)+RIGHT($E22),0))\n/SUM(J$10:J$11)","v":8.6768833258397321E-2},{"$f":"IF(INDEX(PC_MAPPING,RIGHT($C15,1),MATCH($E$2,'Data by Building Type'!$D$22:$F$22,0))=\"Yes\",1,0)*\n(K$10*OFFSET('Efficiency Distributions'!$D$10,MATCH($C15,'Efficiency Distributions'!$C$9:$C$87,0)+RIGHT($E22),0)\n+K$11*OFFSET('Efficiency Distributions'!$E$10,MATCH($C15,'Efficiency Distributions'!$C$9:$C$87,0)+RIGHT($E22),0))\n/SUM(K$10:K$11)","v":8.9586858098293726E-2},{"$f":"IF(INDEX(PC_MAPPING,RIGHT($C15,1),MATCH($E$2,'Data by Building Type'!$D$22:$F$22,0))=\"Yes\",1,0)*\n(L$10*OFFSET('Efficiency Distributions'!$D$10,MATCH($C15,'Efficiency Distributions'!$C$9:$C$87,0)+RIGHT($E22),0)\n+L$11*OFFSET('Efficiency Distributions'!$E$10,MATCH($C15,'Efficiency Distributions'!$C$9:$C$87,0)+RIGHT($E22),0))\n/SUM(L$10:L$11)","v":8.6973027464807701E-2},{"$f":"IF(INDEX(PC_MAPPING,RIGHT($C15,1),MATCH($E$2,'Data by Building Type'!$D$22:$F$22,0))=\"Yes\",1,0)*\n(M$10*OFFSET('Efficiency Distributions'!$D$10,MATCH($C15,'Efficiency Distributions'!$C$9:$C$87,0)+RIGHT($E22),0)\n+M$11*OFFSET('Efficiency Distributions'!$E$10,MATCH($C15,'Efficiency Distributions'!$C$9:$C$87,0)+RIGHT($E22),0))\n/SUM(M$10:M$11)","v":8.1725339866717719E-2},{"$f":"IF(INDEX(PC_MAPPING,RIGHT($C15,1),MATCH($E$2,'Data by Building Type'!$D$22:$F$22,0))=\"Yes\",1,0)*\n(N$10*OFFSET('Efficiency Distributions'!$D$10,MATCH($C15,'Efficiency Distributions'!$C$9:$C$87,0)+RIGHT($E22),0)\n+N$11*OFFSET('Efficiency Distributions'!$E$10,MATCH($C15,'Efficiency Distributions'!$C$9:$C$87,0)+RIGHT($E22),0))\n/SUM(N$10:N$11)","v":7.743107815838024E-2},{"$f":"IF(INDEX(PC_MAPPING,RIGHT($C15,1),MATCH($E$2,'Data by Building Type'!$D$22:$F$22,0))=\"Yes\",1,0)*\n(O$10*OFFSET('Efficiency Distributions'!$D$10,MATCH($C15,'Efficiency Distributions'!$C$9:$C$87,0)+RIGHT($E22),0)\n+O$11*OFFSET('Efficiency Distributions'!$E$10,MATCH($C15,'Efficiency Distributions'!$C$9:$C$87,0)+RIGHT($E22),0))\n/SUM(O$10:O$11)","v":8.1442495053133265E-2},{"$f":"IF(INDEX(PC_MAPPING,RIGHT($C15,1),MATCH($E$2,'Data by Building Type'!$D$22:$F$22,0))=\"Yes\",1,0)*\n(P$10*OFFSET('Efficiency Distributions'!$D$10,MATCH($C15,'Efficiency Distributions'!$C$9:$C$87,0)+RIGHT($E22),0)\n+P$11*OFFSET('Efficiency Distributions'!$E$10,MATCH($C15,'Efficiency Distributions'!$C$9:$C$87,0)+RIGHT($E22),0))\n/SUM(P$10:P$11)","v":9.9097491618440836E-2},{"$f":"IF(INDEX(PC_MAPPING,RIGHT($C15,1),MATCH($E$2,'Data by Building Type'!$D$22:$F$22,0))=\"Yes\",1,0)*\n(Q$10*OFFSET('Efficiency Distributions'!$D$10,MATCH($C15,'Efficiency Distributions'!$C$9:$C$87,0)+RIGHT($E22),0)\n+Q$11*OFFSET('Efficiency Distributions'!$E$10,MATCH($C15,'Efficiency Distributions'!$C$9:$C$87,0)+RIGHT($E22),0))\n/SUM(Q$10:Q$11)","v":9.856938877347711E-2},{"$f":"IF(INDEX(PC_MAPPING,RIGHT($C15,1),MATCH($E$2,'Data by Building Type'!$D$22:$F$22,0))=\"Yes\",1,0)*\n(R$10*OFFSET('Efficiency Distributions'!$D$10,MATCH($C15,'Efficiency Distributions'!$C$9:$C$87,0)+RIGHT($E22),0)\n+R$11*OFFSET('Efficiency Distributions'!$E$10,MATCH($C15,'Efficiency Distributions'!$C$9:$C$87,0)+RIGHT($E22),0))\n/SUM(R$10:R$11)","v":0.13150643918489904},{"$f":"IF(INDEX(PC_MAPPING,RIGHT($C15,1),MATCH($E$2,'Data by Building Type'!$D$22:$F$22,0))=\"Yes\",1,0)*\n(S$10*OFFSET('Efficiency Distributions'!$D$10,MATCH($C15,'Efficiency Distributions'!$C$9:$C$87,0)+RIGHT($E22),0)\n+S$11*OFFSET('Efficiency Distributions'!$E$10,MATCH($C15,'Efficiency Distributions'!$C$9:$C$87,0)+RIGHT($E22),0))\n/SUM(S$10:S$11)","v":0.13150643918489904},{"$f":"IF(INDEX(PC_MAPPING,RIGHT($C15,1),MATCH($E$2,'Data by Building Type'!$D$22:$F$22,0))=\"Yes\",1,0)*\n(T$10*OFFSET('Efficiency Distributions'!$D$10,MATCH($C15,'Efficiency Distributions'!$C$9:$C$87,0)+RIGHT($E22),0)\n+T$11*OFFSET('Efficiency Distributions'!$E$10,MATCH($C15,'Efficiency Distributions'!$C$9:$C$87,0)+RIGHT($E22),0))\n/SUM(T$10:T$11)","v":0.13150643918489904},{"$f":"IF(INDEX(PC_MAPPING,RIGHT($C15,1),MATCH($E$2,'Data by Building Type'!$D$22:$F$22,0))=\"Yes\",1,0)*\n(U$10*OFFSET('Efficiency Distributions'!$D$10,MATCH($C15,'Efficiency Distributions'!$C$9:$C$87,0)+RIGHT($E22),0)\n+U$11*OFFSET('Efficiency Distributions'!$E$10,MATCH($C15,'Efficiency Distributions'!$C$9:$C$87,0)+RIGHT($E22),0))\n/SUM(U$10:U$11)","v":0.13150643918489904},{"$f":"IF(INDEX(PC_MAPPING,RIGHT($C15,1),MATCH($E$2,'Data by Building Type'!$D$22:$F$22,0))=\"Yes\",1,0)*\n(V$10*OFFSET('Efficiency Distributions'!$D$10,MATCH($C15,'Efficiency Distributions'!$C$9:$C$87,0)+RIGHT($E22),0)\n+V$11*OFFSET('Efficiency Distributions'!$E$10,MATCH($C15,'Efficiency Distributions'!$C$9:$C$87,0)+RIGHT($E22),0))\n/SUM(V$10:V$11)","v":0.13150643918489904},{"$f":"IF(INDEX(PC_MAPPING,RIGHT($C15,1),MATCH($E$2,'Data by Building Type'!$D$22:$F$22,0))=\"Yes\",1,0)*\n(W$10*OFFSET('Efficiency Distributions'!$D$10,MATCH($C15,'Efficiency Distributions'!$C$9:$C$87,0)+RIGHT($E22),0)\n+W$11*OFFSET('Efficiency Distributions'!$E$10,MATCH($C15,'Efficiency Distributions'!$C$9:$C$87,0)+RIGHT($E22),0))\n/SUM(W$10:W$11)","v":0.13150643918489904},{"$f":"IF(INDEX(PC_MAPPING,RIGHT($C15,1),MATCH($E$2,'Data by Building Type'!$D$22:$F$22,0))=\"Yes\",1,0)*\n(X$10*OFFSET('Efficiency Distributions'!$D$10,MATCH($C15,'Efficiency Distributions'!$C$9:$C$87,0)+RIGHT($E22),0)\n+X$11*OFFSET('Efficiency Distributions'!$E$10,MATCH($C15,'Efficiency Distributions'!$C$9:$C$87,0)+RIGHT($E22),0))\n/SUM(X$10:X$11)","v":0.13150643918489904},{"$f":"IF(INDEX(PC_MAPPING,RIGHT($C15,1),MATCH($E$2,'Data by Building Type'!$D$22:$F$22,0))=\"Yes\",1,0)*\n(Y$10*OFFSET('Efficiency Distributions'!$D$10,MATCH($C15,'Efficiency Distributions'!$C$9:$C$87,0)+RIGHT($E22),0)\n+Y$11*OFFSET('Efficiency Distributions'!$E$10,MATCH($C15,'Efficiency Distributions'!$C$9:$C$87,0)+RIGHT($E22),0))\n/SUM(Y$10:Y$11)","v":0.13150643918489904},{"$f":"IF(INDEX(PC_MAPPING,RIGHT($C15,1),MATCH($E$2,'Data by Building Type'!$D$22:$F$22,0))=\"Yes\",1,0)*\n(Z$10*OFFSET('Efficiency Distributions'!$D$10,MATCH($C15,'Efficiency Distributions'!$C$9:$C$87,0)+RIGHT($E22),0)\n+Z$11*OFFSET('Efficiency Distributions'!$E$10,MATCH($C15,'Efficiency Distributions'!$C$9:$C$87,0)+RIGHT($E22),0))\n/SUM(Z$10:Z$11)","v":0.13150643918489904},{"$f":"IF(INDEX(PC_MAPPING,RIGHT($C15,1),MATCH($E$2,'Data by Building Type'!$D$22:$F$22,0))=\"Yes\",1,0)*\n(AA$10*OFFSET('Efficiency Distributions'!$D$10,MATCH($C15,'Efficiency Distributions'!$C$9:$C$87,0)+RIGHT($E22),0)\n+AA$11*OFFSET('Efficiency Distributions'!$E$10,MATCH($C15,'Efficiency Distributions'!$C$9:$C$87,0)+RIGHT($E22),0))\n/SUM(AA$10:AA$11)","v":0.13150643918489904},{"$f":"IF(INDEX(PC_MAPPING,RIGHT($C15,1),MATCH($E$2,'Data by Building Type'!$D$22:$F$22,0))=\"Yes\",1,0)*\n(AB$10*OFFSET('Efficiency Distributions'!$D$10,MATCH($C15,'Efficiency Distributions'!$C$9:$C$87,0)+RIGHT($E22),0)\n+AB$11*OFFSET('Efficiency Distributions'!$E$10,MATCH($C15,'Efficiency Distributions'!$C$9:$C$87,0)+RIGHT($E22),0))\n/SUM(AB$10:AB$11)","v":0.13150643918489904},{"$f":"IF(INDEX(PC_MAPPING,RIGHT($C15,1),MATCH($E$2,'Data by Building Type'!$D$22:$F$22,0))=\"Yes\",1,0)*\n(AC$10*OFFSET('Efficiency Distributions'!$D$10,MATCH($C15,'Efficiency Distributions'!$C$9:$C$87,0)+RIGHT($E22),0)\n+AC$11*OFFSET('Efficiency Distributions'!$E$10,MATCH($C15,'Efficiency Distributions'!$C$9:$C$87,0)+RIGHT($E22),0))\n/SUM(AC$10:AC$11)","v":0.13150643918489904},{"$f":"IF(INDEX(PC_MAPPING,RIGHT($C15,1),MATCH($E$2,'Data by Building Type'!$D$22:$F$22,0))=\"Yes\",1,0)*\n(AD$10*OFFSET('Efficiency Distributions'!$D$10,MATCH($C15,'Efficiency Distributions'!$C$9:$C$87,0)+RIGHT($E22),0)\n+AD$11*OFFSET('Efficiency Distributions'!$E$10,MATCH($C15,'Efficiency Distributions'!$C$9:$C$87,0)+RIGHT($E22),0))\n/SUM(AD$10:AD$11)","v":0.13150643918489904},{"$f":"IF(INDEX(PC_MAPPING,RIGHT($C15,1),MATCH($E$2,'Data by Building Type'!$D$22:$F$22,0))=\"Yes\",1,0)*\n(AE$10*OFFSET('Efficiency Distributions'!$D$10,MATCH($C15,'Efficiency Distributions'!$C$9:$C$87,0)+RIGHT($E22),0)\n+AE$11*OFFSET('Efficiency Distributions'!$E$10,MATCH($C15,'Efficiency Distributions'!$C$9:$C$87,0)+RIGHT($E22),0))\n/SUM(AE$10:AE$11)","v":0.13150643918489904},{"$f":"IF(INDEX(PC_MAPPING,RIGHT($C15,1),MATCH($E$2,'Data by Building Type'!$D$22:$F$22,0))=\"Yes\",1,0)*\n(AF$10*OFFSET('Efficiency Distributions'!$D$10,MATCH($C15,'Efficiency Distributions'!$C$9:$C$87,0)+RIGHT($E22),0)\n+AF$11*OFFSET('Efficiency Distributions'!$E$10,MATCH($C15,'Efficiency Distributions'!$C$9:$C$87,0)+RIGHT($E22),0))\n/SUM(AF$10:AF$11)","v":0.13150643918489904},{"$f":"IF(INDEX(PC_MAPPING,RIGHT($C15,1),MATCH($E$2,'Data by Building Type'!$D$22:$F$22,0))=\"Yes\",1,0)*\n(AG$10*OFFSET('Efficiency Distributions'!$D$10,MATCH($C15,'Efficiency Distributions'!$C$9:$C$87,0)+RIGHT($E22),0)\n+AG$11*OFFSET('Efficiency Distributions'!$E$10,MATCH($C15,'Efficiency Distributions'!$C$9:$C$87,0)+RIGHT($E22),0))\n/SUM(AG$10:AG$11)","v":0.13150643918489904},{"$f":"IF(INDEX(PC_MAPPING,RIGHT($C15,1),MATCH($E$2,'Data by Building Type'!$D$22:$F$22,0))=\"Yes\",1,0)*\n(AH$10*OFFSET('Efficiency Distributions'!$D$10,MATCH($C15,'Efficiency Distributions'!$C$9:$C$87,0)+RIGHT($E22),0)\n+AH$11*OFFSET('Efficiency Distributions'!$E$10,MATCH($C15,'Efficiency Distributions'!$C$9:$C$87,0)+RIGHT($E22),0))\n/SUM(AH$10:AH$11)","v":0.13150643918489904},{"$f":"IF(INDEX(PC_MAPPING,RIGHT($C15,1),MATCH($E$2,'Data by Building Type'!$D$22:$F$22,0))=\"Yes\",1,0)*\n(AI$10*OFFSET('Efficiency Distributions'!$D$10,MATCH($C15,'Efficiency Distributions'!$C$9:$C$87,0)+RIGHT($E22),0)\n+AI$11*OFFSET('Efficiency Distributions'!$E$10,MATCH($C15,'Efficiency Distributions'!$C$9:$C$87,0)+RIGHT($E22),0))\n/SUM(AI$10:AI$11)","v":0.13150643918489904},{"$f":"IF(INDEX(PC_MAPPING,RIGHT($C15,1),MATCH($E$2,'Data by Building Type'!$D$22:$F$22,0))=\"Yes\",1,0)*\n(AJ$10*OFFSET('Efficiency Distributions'!$D$10,MATCH($C15,'Efficiency Distributions'!$C$9:$C$87,0)+RIGHT($E22),0)\n+AJ$11*OFFSET('Efficiency Distributions'!$E$10,MATCH($C15,'Efficiency Distributions'!$C$9:$C$87,0)+RIGHT($E22),0))\n/SUM(AJ$10:AJ$11)","v":0.13150643918489904},{"$f":"IF(INDEX(PC_MAPPING,RIGHT($C15,1),MATCH($E$2,'Data by Building Type'!$D$22:$F$22,0))=\"Yes\",1,0)*\n(AK$10*OFFSET('Efficiency Distributions'!$D$10,MATCH($C15,'Efficiency Distributions'!$C$9:$C$87,0)+RIGHT($E22),0)\n+AK$11*OFFSET('Efficiency Distributions'!$E$10,MATCH($C15,'Efficiency Distributions'!$C$9:$C$87,0)+RIGHT($E22),0))\n/SUM(AK$10:AK$11)","v":0.11706056098687115},{"$f":"IF(INDEX(PC_MAPPING,RIGHT($C15,1),MATCH($E$2,'Data by Building Type'!$D$22:$F$22,0))=\"Yes\",1,0)*\n(AL$10*OFFSET('Efficiency Distributions'!$D$10,MATCH($C15,'Efficiency Distributions'!$C$9:$C$87,0)+RIGHT($E22),0)\n+AL$11*OFFSET('Efficiency Distributions'!$E$10,MATCH($C15,'Efficiency Distributions'!$C$9:$C$87,0)+RIGHT($E22),0))\n/SUM(AL$10:AL$11)","v":0.1164803609802067},{"$f":"IF(INDEX(PC_MAPPING,RIGHT($C15,1),MATCH($E$2,'Data by Building Type'!$D$22:$F$22,0))=\"Yes\",1,0)*\n(AM$10*OFFSET('Efficiency Distributions'!$D$10,MATCH($C15,'Efficiency Distributions'!$C$9:$C$87,0)+RIGHT($E22),0)\n+AM$11*OFFSET('Efficiency Distributions'!$E$10,MATCH($C15,'Efficiency Distributions'!$C$9:$C$87,0)+RIGHT($E22),0))\n/SUM(AM$10:AM$11)","v":0.1027471248885619},{"$f":"IF(INDEX(PC_MAPPING,RIGHT($C15,1),MATCH($E$2,'Data by Building Type'!$D$22:$F$22,0))=\"Yes\",1,0)*\n(AN$10*OFFSET('Efficiency Distributions'!$D$10,MATCH($C15,'Efficiency Distributions'!$C$9:$C$87,0)+RIGHT($E22),0)\n+AN$11*OFFSET('Efficiency Distributions'!$E$10,MATCH($C15,'Efficiency Distributions'!$C$9:$C$87,0)+RIGHT($E22),0))\n/SUM(AN$10:AN$11)","v":0.10344772976793842},{"$f":"IF(INDEX(PC_MAPPING,RIGHT($C15,1),MATCH($E$2,'Data by Building Type'!$D$22:$F$22,0))=\"Yes\",1,0)*\n(AO$10*OFFSET('Efficiency Distributions'!$D$10,MATCH($C15,'Efficiency Distributions'!$C$9:$C$87,0)+RIGHT($E22),0)\n+AO$11*OFFSET('Efficiency Distributions'!$E$10,MATCH($C15,'Efficiency Distributions'!$C$9:$C$87,0)+RIGHT($E22),0))\n/SUM(AO$10:AO$11)","v":0.10259410597600725},{"$f":"IF(INDEX(PC_MAPPING,RIGHT($C15,1),MATCH($E$2,'Data by Building Type'!$D$22:$F$22,0))=\"Yes\",1,0)*\n(AP$10*OFFSET('Efficiency Distributions'!$D$10,MATCH($C15,'Efficiency Distributions'!$C$9:$C$87,0)+RIGHT($E22),0)\n+AP$11*OFFSET('Efficiency Distributions'!$E$10,MATCH($C15,'Efficiency Distributions'!$C$9:$C$87,0)+RIGHT($E22),0))\n/SUM(AP$10:AP$11)","v":0.10084342809469565},{"$f":"IF(INDEX(PC_MAPPING,RIGHT($C15,1),MATCH($E$2,'Data by Building Type'!$D$22:$F$22,0))=\"Yes\",1,0)*\n(AQ$10*OFFSET('Efficiency Distributions'!$D$10,MATCH($C15,'Efficiency Distributions'!$C$9:$C$87,0)+RIGHT($E22),0)\n+AQ$11*OFFSET('Efficiency Distributions'!$E$10,MATCH($C15,'Efficiency Distributions'!$C$9:$C$87,0)+RIGHT($E22),0))\n/SUM(AQ$10:AQ$11)","v":9.9065043561009036E-2},{"$f":"IF(INDEX(PC_MAPPING,RIGHT($C15,1),MATCH($E$2,'Data by Building Type'!$D$22:$F$22,0))=\"Yes\",1,0)*\n(AR$10*OFFSET('Efficiency Distributions'!$D$10,MATCH($C15,'Efficiency Distributions'!$C$9:$C$87,0)+RIGHT($E22),0)\n+AR$11*OFFSET('Efficiency Distributions'!$E$10,MATCH($C15,'Efficiency Distributions'!$C$9:$C$87,0)+RIGHT($E22),0))\n/SUM(AR$10:AR$11)","v":9.9436052198403874E-2},{"$f":"IF(INDEX(PC_MAPPING,RIGHT($C15,1),MATCH($E$2,'Data by Building Type'!$D$22:$F$22,0))=\"Yes\",1,0)*\n(AS$10*OFFSET('Efficiency Distributions'!$D$10,MATCH($C15,'Efficiency Distributions'!$C$9:$C$87,0)+RIGHT($E22),0)\n+AS$11*OFFSET('Efficiency Distributions'!$E$10,MATCH($C15,'Efficiency Distributions'!$C$9:$C$87,0)+RIGHT($E22),0))\n/SUM(AS$10:AS$11)","v":9.3319791296635021E-2},{"$f":"IF(INDEX(PC_MAPPING,RIGHT($C15,1),MATCH($E$2,'Data by Building Type'!$D$22:$F$22,0))=\"Yes\",1,0)*\n(AT$10*OFFSET('Efficiency Distributions'!$D$10,MATCH($C15,'Efficiency Distributions'!$C$9:$C$87,0)+RIGHT($E22),0)\n+AT$11*OFFSET('Efficiency Distributions'!$E$10,MATCH($C15,'Efficiency Distributions'!$C$9:$C$87,0)+RIGHT($E22),0))\n/SUM(AT$10:AT$11)","v":8.6855158420939174E-2},{"$f":"IF(INDEX(PC_MAPPING,RIGHT($C15,1),MATCH($E$2,'Data by Building Type'!$D$22:$F$22,0))=\"Yes\",1,0)*\n(AU$10*OFFSET('Efficiency Distributions'!$D$10,MATCH($C15,'Efficiency Distributions'!$C$9:$C$87,0)+RIGHT($E22),0)\n+AU$11*OFFSET('Efficiency Distributions'!$E$10,MATCH($C15,'Efficiency Distributions'!$C$9:$C$87,0)+RIGHT($E22),0))\n/SUM(AU$10:AU$11)","v":8.4829000888831052E-2},{"$f":"IF(INDEX(PC_MAPPING,RIGHT($C15,1),MATCH($E$2,'Data by Building Type'!$D$22:$F$22,0))=\"Yes\",1,0)*\n(AV$10*OFFSET('Efficiency Distributions'!$D$10,MATCH($C15,'Efficiency Distributions'!$C$9:$C$87,0)+RIGHT($E22),0)\n+AV$11*OFFSET('Efficiency Distributions'!$E$10,MATCH($C15,'Efficiency Distributions'!$C$9:$C$87,0)+RIGHT($E22),0))\n/SUM(AV$10:AV$11)","v":9.9282003975543265E-2},{"$f":"IF(INDEX(PC_MAPPING,RIGHT($C15,1),MATCH($E$2,'Data by Building Type'!$D$22:$F$22,0))=\"Yes\",1,0)*\n(AW$10*OFFSET('Efficiency Distributions'!$D$10,MATCH($C15,'Efficiency Distributions'!$C$9:$C$87,0)+RIGHT($E22),0)\n+AW$11*OFFSET('Efficiency Distributions'!$E$10,MATCH($C15,'Efficiency Distributions'!$C$9:$C$87,0)+RIGHT($E22),0))\n/SUM(AW$10:AW$11)","v":9.4517756997981872E-2},{"$f":"IF(INDEX(PC_MAPPING,RIGHT($C15,1),MATCH($E$2,'Data by Building Type'!$D$22:$F$22,0))=\"Yes\",1,0)*\n(AX$10*OFFSET('Efficiency Distributions'!$D$10,MATCH($C15,'Efficiency Distributions'!$C$9:$C$87,0)+RIGHT($E22),0)\n+AX$11*OFFSET('Efficiency Distributions'!$E$10,MATCH($C15,'Efficiency Distributions'!$C$9:$C$87,0)+RIGHT($E22),0))\n/SUM(AX$10:AX$11)","v":9.7122744429956498E-2},{"$f":"IF(INDEX(PC_MAPPING,RIGHT($C15,1),MATCH($E$2,'Data by Building Type'!$D$22:$F$22,0))=\"Yes\",1,0)*\n(AY$10*OFFSET('Efficiency Distributions'!$D$10,MATCH($C15,'Efficiency Distributions'!$C$9:$C$87,0)+RIGHT($E22),0)\n+AY$11*OFFSET('Efficiency Distributions'!$E$10,MATCH($C15,'Efficiency Distributions'!$C$9:$C$87,0)+RIGHT($E22),0))\n/SUM(AY$10:AY$11)","v":0.10150312242209701},{"$f":"IF(INDEX(PC_MAPPING,RIGHT($C15,1),MATCH($E$2,'Data by Building Type'!$D$22:$F$22,0))=\"Yes\",1,0)*\n(AZ$10*OFFSET('Efficiency Distributions'!$D$10,MATCH($C15,'Efficiency Distributions'!$C$9:$C$87,0)+RIGHT($E22),0)\n+AZ$11*OFFSET('Efficiency Distributions'!$E$10,MATCH($C15,'Efficiency Distributions'!$C$9:$C$87,0)+RIGHT($E22),0))\n/SUM(AZ$10:AZ$11)","v":0.10764915131219416},{"$f":"IF(INDEX(PC_MAPPING,RIGHT($C15,1),MATCH($E$2,'Data by Building Type'!$D$22:$F$22,0))=\"Yes\",1,0)*\n(BA$10*OFFSET('Efficiency Distributions'!$D$10,MATCH($C15,'Efficiency Distributions'!$C$9:$C$87,0)+RIGHT($E22),0)\n+BA$11*OFFSET('Efficiency Distributions'!$E$10,MATCH($C15,'Efficiency Distributions'!$C$9:$C$87,0)+RIGHT($E22),0))\n/SUM(BA$10:BA$11)","v":0.10508666275578166},{"$f":"IF(INDEX(PC_MAPPING,RIGHT($C15,1),MATCH($E$2,'Data by Building Type'!$D$22:$F$22,0))=\"Yes\",1,0)*\n(BB$10*OFFSET('Efficiency Distributions'!$D$10,MATCH($C15,'Efficiency Distributions'!$C$9:$C$87,0)+RIGHT($E22),0)\n+BB$11*OFFSET('Efficiency Distributions'!$E$10,MATCH($C15,'Efficiency Distributions'!$C$9:$C$87,0)+RIGHT($E22),0))\n/SUM(BB$10:BB$11)","v":0.1040698578171128},{"$f":"IF(INDEX(PC_MAPPING,RIGHT($C15,1),MATCH($E$2,'Data by Building Type'!$D$22:$F$22,0))=\"Yes\",1,0)*\n(BC$10*OFFSET('Efficiency Distributions'!$D$10,MATCH($C15,'Efficiency Distributions'!$C$9:$C$87,0)+RIGHT($E22),0)\n+BC$11*OFFSET('Efficiency Distributions'!$E$10,MATCH($C15,'Efficiency Distributions'!$C$9:$C$87,0)+RIGHT($E22),0))\n/SUM(BC$10:BC$11)","v":0.10473570775233278},{"$f":"IF(INDEX(PC_MAPPING,RIGHT($C15,1),MATCH($E$2,'Data by Building Type'!$D$22:$F$22,0))=\"Yes\",1,0)*\n(BD$10*OFFSET('Efficiency Distributions'!$D$10,MATCH($C15,'Efficiency Distributions'!$C$9:$C$87,0)+RIGHT($E22),0)\n+BD$11*OFFSET('Efficiency Distributions'!$E$10,MATCH($C15,'Efficiency Distributions'!$C$9:$C$87,0)+RIGHT($E22),0))\n/SUM(BD$10:BD$11)","v":0.10892920044596525},{"$f":"IF(INDEX(PC_MAPPING,RIGHT($C15,1),MATCH($E$2,'Data by Building Type'!$D$22:$F$22,0))=\"Yes\",1,0)*\n(BE$10*OFFSET('Efficiency Distributions'!$D$10,MATCH($C15,'Efficiency Distributions'!$C$9:$C$87,0)+RIGHT($E22),0)\n+BE$11*OFFSET('Efficiency Distributions'!$E$10,MATCH($C15,'Efficiency Distributions'!$C$9:$C$87,0)+RIGHT($E22),0))\n/SUM(BE$10:BE$11)","v":0.10651853741556115},{"$f":"IF(INDEX(PC_MAPPING,RIGHT($C15,1),MATCH($E$2,'Data by Building Type'!$D$22:$F$22,0))=\"Yes\",1,0)*\n(BF$10*OFFSET('Efficiency Distributions'!$D$10,MATCH($C15,'Efficiency Distributions'!$C$9:$C$87,0)+RIGHT($E22),0)\n+BF$11*OFFSET('Efficiency Distributions'!$E$10,MATCH($C15,'Efficiency Distributions'!$C$9:$C$87,0)+RIGHT($E22),0))\n/SUM(BF$10:BF$11)","v":0.11433135048633944},{"$f":"IF(INDEX(PC_MAPPING,RIGHT($C15,1),MATCH($E$2,'Data by Building Type'!$D$22:$F$22,0))=\"Yes\",1,0)*\n(BG$10*OFFSET('Efficiency Distributions'!$D$10,MATCH($C15,'Efficiency Distributions'!$C$9:$C$87,0)+RIGHT($E22),0)\n+BG$11*OFFSET('Efficiency Distributions'!$E$10,MATCH($C15,'Efficiency Distributions'!$C$9:$C$87,0)+RIGHT($E22),0))\n/SUM(BG$10:BG$11)","v":0.11440857858232055}]
[null,null,null,null,"EL4",{"$f":"IF(INDEX(PC_MAPPING,RIGHT($C15,1),MATCH($E$2,'Data by Building Type'!$D$22:$F$22,0))=\"Yes\",1,0)*\n(F$10*OFFSET('Efficiency Distributions'!$D$10,MATCH($C15,'Efficiency Distributions'!$C$9:$C$87,0)+RIGHT($E23),0)\n+F$11*OFFSET('Efficiency Distributions'!$E$10,MATCH($C15,'Efficiency Distributions'!$C$9:$C$87,0)+RIGHT($E23),0))\n/SUM(F$10:F$11)","v":2.5515110211577419E-2},{"$f":"IF(INDEX(PC_MAPPING,RIGHT($C15,1),MATCH($E$2,'Data by Building Type'!$D$22:$F$22,0))=\"Yes\",1,0)*\n(G$10*OFFSET('Efficiency Distributions'!$D$10,MATCH($C15,'Efficiency Distributions'!$C$9:$C$87,0)+RIGHT($E23),0)\n+G$11*OFFSET('Efficiency Distributions'!$E$10,MATCH($C15,'Efficiency Distributions'!$C$9:$C$87,0)+RIGHT($E23),0))\n/SUM(G$10:G$11)","v":2.7130052704265595E-2},{"$f":"IF(INDEX(PC_MAPPING,RIGHT($C15,1),MATCH($E$2,'Data by Building Type'!$D$22:$F$22,0))=\"Yes\",1,0)*\n(H$10*OFFSET('Efficiency Distributions'!$D$10,MATCH($C15,'Efficiency Distributions'!$C$9:$C$87,0)+RIGHT($E23),0)\n+H$11*OFFSET('Efficiency Distributions'!$E$10,MATCH($C15,'Efficiency Distributions'!$C$9:$C$87,0)+RIGHT($E23),0))\n/SUM(H$10:H$11)","v":2.6377204177823795E-2},{"$f":"IF(INDEX(PC_MAPPING,RIGHT($C15,1),MATCH($E$2,'Data by Building Type'!$D$22:$F$22,0))=\"Yes\",1,0)*\n(I$10*OFFSET('Efficiency Distributions'!$D$10,MATCH($C15,'Efficiency Distributions'!$C$9:$C$87,0)+RIGHT($E23),0)\n+I$11*OFFSET('Efficiency Distributions'!$E$10,MATCH($C15,'Efficiency Distributions'!$C$9:$C$87,0)+RIGHT($E23),0))\n/SUM(I$10:I$11)","v":2.4192286466271175E-2},{"$f":"IF(INDEX(PC_MAPPING,RIGHT($C15,1),MATCH($E$2,'Data by Building Type'!$D$22:$F$22,0))=\"Yes\",1,0)*\n(J$10*OFFSET('Efficiency Distributions'!$D$10,MATCH($C15,'Efficiency Distributions'!$C$9:$C$87,0)+RIGHT($E23),0)\n+J$11*OFFSET('Efficiency Distributions'!$E$10,MATCH($C15,'Efficiency Distributions'!$C$9:$C$87,0)+RIGHT($E23),0))\n/SUM(J$10:J$11)","v":2.169220831459933E-2},{"$f":"IF(INDEX(PC_MAPPING,RIGHT($C15,1),MATCH($E$2,'Data by Building Type'!$D$22:$F$22,0))=\"Yes\",1,0)*\n(K$10*OFFSET('Efficiency Distributions'!$D$10,MATCH($C15,'Efficiency Distributions'!$C$9:$C$87,0)+RIGHT($E23),0)\n+K$11*OFFSET('Efficiency Distributions'!$E$10,MATCH($C15,'Efficiency Distributions'!$C$9:$C$87,0)+RIGHT($E23),0))\n/SUM(K$10:K$11)","v":2.2396714524573431E-2},{"$f":"IF(INDEX(PC_MAPPING,RIGHT($C15,1),MATCH($E$2,'Data by Building Type'!$D$22:$F$22,0))=\"Yes\",1,0)*\n(L$10*OFFSET('Efficiency Distributions'!$D$10,MATCH($C15,'Efficiency Distributions'!$C$9:$C$87,0)+RIGHT($E23),0)\n+L$11*OFFSET('Efficiency Distributions'!$E$10,MATCH($C15,'Efficiency Distributions'!$C$9:$C$87,0)+RIGHT($E23),0))\n/SUM(L$10:L$11)","v":2.1743256866201925E-2},{"$f":"IF(INDEX(PC_MAPPING,RIGHT($C15,1),MATCH($E$2,'Data by Building Type'!$D$22:$F$22,0))=\"Yes\",1,0)*\n(M$10*OFFSET('Efficiency Distributions'!$D$10,MATCH($C15,'Efficiency Distributions'!$C$9:$C$87,0)+RIGHT($E23),0)\n+M$11*OFFSET('Efficiency Distributions'!$E$10,MATCH($C15,'Efficiency Distributions'!$C$9:$C$87,0)+RIGHT($E23),0))\n/SUM(M$10:M$11)","v":2.043133496667943E-2},{"$f":"IF(INDEX(PC_MAPPING,RIGHT($C15,1),MATCH($E$2,'Data by Building Type'!$D$22:$F$22,0))=\"Yes\",1,0)*\n(N$10*OFFSET('Efficiency Distributions'!$D$10,MATCH($C15,'Efficiency Distributions'!$C$9:$C$87,0)+RIGHT($E23),0)\n+N$11*OFFSET('Efficiency Distributions'!$E$10,MATCH($C15,'Efficiency Distributions'!$C$9:$C$87,0)+RIGHT($E23),0))\n/SUM(N$10:N$11)","v":1.935776953959506E-2},{"$f":"IF(INDEX(PC_MAPPING,RIGHT($C15,1),MATCH($E$2,'Data by Building Type'!$D$22:$F$22,0))=\"Yes\",1,0)*\n(O$10*OFFSET('Efficiency Distributions'!$D$10,MATCH($C15,'Efficiency Distributions'!$C$9:$C$87,0)+RIGHT($E23),0)\n+O$11*OFFSET('Efficiency Distributions'!$E$10,MATCH($C15,'Efficiency Distributions'!$C$9:$C$87,0)+RIGHT($E23),0))\n/SUM(O$10:O$11)","v":2.0360623763283316E-2},{"$f":"IF(INDEX(PC_MAPPING,RIGHT($C15,1),MATCH($E$2,'Data by Building Type'!$D$22:$F$22,0))=\"Yes\",1,0)*\n(P$10*OFFSET('Efficiency Distributions'!$D$10,MATCH($C15,'Efficiency Distributions'!$C$9:$C$87,0)+RIGHT($E23),0)\n+P$11*OFFSET('Efficiency Distributions'!$E$10,MATCH($C15,'Efficiency Distributions'!$C$9:$C$87,0)+RIGHT($E23),0))\n/SUM(P$10:P$11)","v":2.4774372904610209E-2},{"$f":"IF(INDEX(PC_MAPPING,RIGHT($C15,1),MATCH($E$2,'Data by Building Type'!$D$22:$F$22,0))=\"Yes\",1,0)*\n(Q$10*OFFSET('Efficiency Distributions'!$D$10,MATCH($C15,'Efficiency Distributions'!$C$9:$C$87,0)+RIGHT($E23),0)\n+Q$11*OFFSET('Efficiency Distributions'!$E$10,MATCH($C15,'Efficiency Distributions'!$C$9:$C$87,0)+RIGHT($E23),0))\n/SUM(Q$10:Q$11)","v":2.4642347193369277E-2},{"$f":"IF(INDEX(PC_MAPPING,RIGHT($C15,1),MATCH($E$2,'Data by Building Type'!$D$22:$F$22,0))=\"Yes\",1,0)*\n(R$10*OFFSET('Efficiency Distributions'!$D$10,MATCH($C15,'Efficiency Distributions'!$C$9:$C$87,0)+RIGHT($E23),0)\n+R$11*OFFSET('Efficiency Distributions'!$E$10,MATCH($C15,'Efficiency Distributions'!$C$9:$C$87,0)+RIGHT($E23),0))\n/SUM(R$10:R$11)","v":3.2876609796224761E-2},{"$f":"IF(INDEX(PC_MAPPING,RIGHT($C15,1),MATCH($E$2,'Data by Building Type'!$D$22:$F$22,0))=\"Yes\",1,0)*\n(S$10*OFFSET('Efficiency Distributions'!$D$10,MATCH($C15,'Efficiency Distributions'!$C$9:$C$87,0)+RIGHT($E23),0)\n+S$11*OFFSET('Efficiency Distributions'!$E$10,MATCH($C15,'Efficiency Distributions'!$C$9:$C$87,0)+RIGHT($E23),0))\n/SUM(S$10:S$11)","v":3.2876609796224761E-2},{"$f":"IF(INDEX(PC_MAPPING,RIGHT($C15,1),MATCH($E$2,'Data by Building Type'!$D$22:$F$22,0))=\"Yes\",1,0)*\n(T$10*OFFSET('Efficiency Distributions'!$D$10,MATCH($C15,'Efficiency Distributions'!$C$9:$C$87,0)+RIGHT($E23),0)\n+T$11*OFFSET('Efficiency Distributions'!$E$10,MATCH($C15,'Efficiency Distributions'!$C$9:$C$87,0)+RIGHT($E23),0))\n/SUM(T$10:T$11)","v":3.2876609796224761E-2},{"$f":"IF(INDEX(PC_MAPPING,RIGHT($C15,1),MATCH($E$2,'Data by Building Type'!$D$22:$F$22,0))=\"Yes\",1,0)*\n(U$10*OFFSET('Efficiency Distributions'!$D$10,MATCH($C15,'Efficiency Distributions'!$C$9:$C$87,0)+RIGHT($E23),0)\n+U$11*OFFSET('Efficiency Distributions'!$E$10,MATCH($C15,'Efficiency Distributions'!$C$9:$C$87,0)+RIGHT($E23),0))\n/SUM(U$10:U$11)","v":3.2876609796224761E-2},{"$f":"IF(INDEX(PC_MAPPING,RIGHT($C15,1),MATCH($E$2,'Data by Building Type'!$D$22:$F$22,0))=\"Yes\",1,0)*\n(V$10*OFFSET('Efficiency Distributions'!$D$10,MATCH($C15,'Efficiency Distributions'!$C$9:$C$87,0)+RIGHT($E23),0)\n+V$11*OFFSET('Efficiency Distributions'!$E$10,MATCH($C15,'Efficiency Distributions'!$C$9:$C$87,0)+RIGHT($E23),0))\n/SUM(V$10:V$11)","v":3.2876609796224761E-2},{"$f":"IF(INDEX(PC_MAPPING,RIGHT($C15,1),MATCH($E$2,'Data by Building Type'!$D$22:$F$22,0))=\"Yes\",1,0)*\n(W$10*OFFSET('Efficiency Distributions'!$D$10,MATCH($C15,'Efficiency Distributions'!$C$9:$C$87,0)+RIGHT($E23),0)\n+W$11*OFFSET('Efficiency Distributions'!$E$10,MATCH($C15,'Efficiency Distributions'!$C$9:$C$87,0)+RIGHT($E23),0))\n/SUM(W$10:W$11)","v":3.2876609796224761E-2},{"$f":"IF(INDEX(PC_MAPPING,RIGHT($C15,1),MATCH($E$2,'Data by Building Type'!$D$22:$F$22,0))=\"Yes\",1,0)*\n(X$10*OFFSET('Efficiency Distributions'!$D$10,MATCH($C15,'Efficiency Distributions'!$C$9:$C$87,0)+RIGHT($E23),0)\n+X$11*OFFSET('Efficiency Distributions'!$E$10,MATCH($C15,'Efficiency Distributions'!$C$9:$C$87,0)+RIGHT($E23),0))\n/SUM(X$10:X$11)","v":3.2876609796224761E-2},{"$f":"IF(INDEX(PC_MAPPING,RIGHT($C15,1),MATCH($E$2,'Data by Building Type'!$D$22:$F$22,0))=\"Yes\",1,0)*\n(Y$10*OFFSET('Efficiency Distributions'!$D$10,MATCH($C15,'Efficiency Distributions'!$C$9:$C$87,0)+RIGHT($E23),0)\n+Y$11*OFFSET('Efficiency Distributions'!$E$10,MATCH($C15,'Efficiency Distributions'!$C$9:$C$87,0)+RIGHT($E23),0))\n/SUM(Y$10:Y$11)","v":3.2876609796224761E-2},{"$f":"IF(INDEX(PC_MAPPING,RIGHT($C15,1),MATCH($E$2,'Data by Building Type'!$D$22:$F$22,0))=\"Yes\",1,0)*\n(Z$10*OFFSET('Efficiency Distributions'!$D$10,MATCH($C15,'Efficiency Distributions'!$C$9:$C$87,0)+RIGHT($E23),0)\n+Z$11*OFFSET('Efficiency Distributions'!$E$10,MATCH($C15,'Efficiency Distributions'!$C$9:$C$87,0)+RIGHT($E23),0))\n/SUM(Z$10:Z$11)","v":3.2876609796224761E-2},{"$f":"IF(INDEX(PC_MAPPING,RIGHT($C15,1),MATCH($E$2,'Data by Building Type'!$D$22:$F$22,0))=\"Yes\",1,0)*\n(AA$10*OFFSET('Efficiency Distributions'!$D$10,MATCH($C15,'Efficiency Distributions'!$C$9:$C$87,0)+RIGHT($E23),0)\n+AA$11*OFFSET('Efficiency Distributions'!$E$10,MATCH($C15,'Efficiency Distributions'!$C$9:$C$87,0)+RIGHT($E23),0))\n/SUM(AA$10:AA$11)","v":3.2876609796224761E-2},{"$f":"IF(INDEX(PC_MAPPING,RIGHT($C15,1),MATCH($E$2,'Data by Building Type'!$D$22:$F$22,0))=\"Yes\",1,0)*\n(AB$10*OFFSET('Efficiency Distributions'!$D$10,MATCH($C15,'Efficiency Distributions'!$C$9:$C$87,0)+RIGHT($E23),0)\n+AB$11*OFFSET('Efficiency Distributions'!$E$10,MATCH($C15,'Efficiency Distributions'!$C$9:$C$87,0)+RIGHT($E23),0))\n/SUM(AB$10:AB$11)","v":3.2876609796224761E-2},{"$f":"IF(INDEX(PC_MAPPING,RIGHT($C15,1),MATCH($E$2,'Data by Building Type'!$D$22:$F$22,0))=\"Yes\",1,0)*\n(AC$10*OFFSET('Efficiency Distributions'!$D$10,MATCH($C15,'Efficiency Distributions'!$C$9:$C$87,0)+RIGHT($E23),0)\n+AC$11*OFFSET('Efficiency Distributions'!$E$10,MATCH($C15,'Efficiency Distributions'!$C$9:$C$87,0)+RIGHT($E23),0))\n/SUM(AC$10:AC$11)","v":3.2876609796224761E-2},{"$f":"IF(INDEX(PC_MAPPING,RIGHT($C15,1),MATCH($E$2,'Data by Building Type'!$D$22:$F$22,0))=\"Yes\",1,0)*\n(AD$10*OFFSET('Efficiency Distributions'!$D$10,MATCH($C15,'Efficiency Distributions'!$C$9:$C$87,0)+RIGHT($E23),0)\n+AD$11*OFFSET('Efficiency Distributions'!$E$10,MATCH($C15,'Efficiency Distributions'!$C$9:$C$87,0)+RIGHT($E23),0))\n/SUM(AD$10:AD$11)","v":3.2876609796224761E-2},{"$f":"IF(INDEX(PC_MAPPING,RIGHT($C15,1),MATCH($E$2,'Data by Building Type'!$D$22:$F$22,0))=\"Yes\",1,0)*\n(AE$10*OFFSET('Efficiency Distributions'!$D$10,MATCH($C15,'Efficiency Distributions'!$C$9:$C$87,0)+RIGHT($E23),0)\n+AE$11*OFFSET('Efficiency Distributions'!$E$10,MATCH($C15,'Efficiency Distributions'!$C$9:$C$87,0)+RIGHT($E23),0))\n/SUM(AE$10:AE$11)","v":3.2876609796224761E-2},{"$f":"IF(INDEX(PC_MAPPING,RIGHT($C15,1),MATCH($E$2,'Data by Building Type'!$D$22:$F$22,0))=\"Yes\",1,0)*\n(AF$10*OFFSET('Efficiency Distributions'!$D$10,MATCH($C15,'Efficiency Distributions'!$C$9:$C$87,0)+RIGHT($E23),0)\n+AF$11*OFFSET('Efficiency Distributions'!$E$10,MATCH($C15,'Efficiency Distributions'!$C$9:$C$87,0)+RIGHT($E23),0))\n/SUM(AF$10:AF$11)","v":3.2876609796224761E-2},{"$f":"IF(INDEX(PC_MAPPING,RIGHT($C15,1),MATCH($E$2,'Data by Building Type'!$D$22:$F$22,0))=\"Yes\",1,0)*\n(AG$10*OFFSET('Efficiency Distributions'!$D$10,MATCH($C15,'Efficiency Distributions'!$C$9:$C$87,0)+RIGHT($E23),0)\n+AG$11*OFFSET('Efficiency Distributions'!$E$10,MATCH($C15,'Efficiency Distributions'!$C$9:$C$87,0)+RIGHT($E23),0))\n/SUM(AG$10:AG$11)","v":3.2876609796224761E-2},{"$f":"IF(INDEX(PC_MAPPING,RIGHT($C15,1),MATCH($E$2,'Data by Building Type'!$D$22:$F$22,0))=\"Yes\",1,0)*\n(AH$10*OFFSET('Efficiency Distributions'!$D$10,MATCH($C15,'Efficiency Distributions'!$C$9:$C$87,0)+RIGHT($E23),0)\n+AH$11*OFFSET('Efficiency Distributions'!$E$10,MATCH($C15,'Efficiency Distributions'!$C$9:$C$87,0)+RIGHT($E23),0))\n/SUM(AH$10:AH$11)","v":3.2876609796224761E-2},{"$f":"IF(INDEX(PC_MAPPING,RIGHT($C15,1),MATCH($E$2,'Data by Building Type'!$D$22:$F$22,0))=\"Yes\",1,0)*\n(AI$10*OFFSET('Efficiency Distributions'!$D$10,MATCH($C15,'Efficiency Distributions'!$C$9:$C$87,0)+RIGHT($E23),0)\n+AI$11*OFFSET('Efficiency Distributions'!$E$10,MATCH($C15,'Efficiency Distributions'!$C$9:$C$87,0)+RIGHT($E23),0))\n/SUM(AI$10:AI$11)","v":3.2876609796224761E-2},{"$f":"IF(INDEX(PC_MAPPING,RIGHT($C15,1),MATCH($E$2,'Data by Building Type'!$D$22:$F$22,0))=\"Yes\",1,0)*\n(AJ$10*OFFSET('Efficiency Distributions'!$D$10,MATCH($C15,'Efficiency Distributions'!$C$9:$C$87,0)+RIGHT($E23),0)\n+AJ$11*OFFSET('Efficiency Distributions'!$E$10,MATCH($C15,'Efficiency Distributions'!$C$9:$C$87,0)+RIGHT($E23),0))\n/SUM(AJ$10:AJ$11)","v":3.2876609796224761E-2},{"$f":"IF(INDEX(PC_MAPPING,RIGHT($C15,1),MATCH($E$2,'Data by Building Type'!$D$22:$F$22,0))=\"Yes\",1,0)*\n(AK$10*OFFSET('Efficiency Distributions'!$D$10,MATCH($C15,'Efficiency Distributions'!$C$9:$C$87,0)+RIGHT($E23),0)\n+AK$11*OFFSET('Efficiency Distributions'!$E$10,MATCH($C15,'Efficiency Distributions'!$C$9:$C$87,0)+RIGHT($E23),0))\n/SUM(AK$10:AK$11)","v":2.9265140246717787E-2},{"$f":"IF(INDEX(PC_MAPPING,RIGHT($C15,1),MATCH($E$2,'Data by Building Type'!$D$22:$F$22,0))=\"Yes\",1,0)*\n(AL$10*OFFSET('Efficiency Distributions'!$D$10,MATCH($C15,'Efficiency Distributions'!$C$9:$C$87,0)+RIGHT($E23),0)\n+AL$11*OFFSET('Efficiency Distributions'!$E$10,MATCH($C15,'Efficiency Distributions'!$C$9:$C$87,0)+RIGHT($E23),0))\n/SUM(AL$10:AL$11)","v":2.9120090245051675E-2},{"$f":"IF(INDEX(PC_MAPPING,RIGHT($C15,1),MATCH($E$2,'Data by Building Type'!$D$22:$F$22,0))=\"Yes\",1,0)*\n(AM$10*OFFSET('Efficiency Distributions'!$D$10,MATCH($C15,'Efficiency Distributions'!$C$9:$C$87,0)+RIGHT($E23),0)\n+AM$11*OFFSET('Efficiency Distributions'!$E$10,MATCH($C15,'Efficiency Distributions'!$C$9:$C$87,0)+RIGHT($E23),0))\n/SUM(AM$10:AM$11)","v":2.5686781222140475E-2},{"$f":"IF(INDEX(PC_MAPPING,RIGHT($C15,1),MATCH($E$2,'Data by Building Type'!$D$22:$F$22,0))=\"Yes\",1,0)*\n(AN$10*OFFSET('Efficiency Distributions'!$D$10,MATCH($C15,'Efficiency Distributions'!$C$9:$C$87,0)+RIGHT($E23),0)\n+AN$11*OFFSET('Efficiency Distributions'!$E$10,MATCH($C15,'Efficiency Distributions'!$C$9:$C$87,0)+RIGHT($E23),0))\n/SUM(AN$10:AN$11)","v":2.5861932441984606E-2},{"$f":"IF(INDEX(PC_MAPPING,RIGHT($C15,1),MATCH($E$2,'Data by Building Type'!$D$22:$F$22,0))=\"Yes\",1,0)*\n(AO$10*OFFSET('Efficiency Distributions'!$D$10,MATCH($C15,'Efficiency Distributions'!$C$9:$C$87,0)+RIGHT($E23),0)\n+AO$11*OFFSET('Efficiency Distributions'!$E$10,MATCH($C15,'Efficiency Distributions'!$C$9:$C$87,0)+RIGHT($E23),0))\n/SUM(AO$10:AO$11)","v":2.5648526494001813E-2},{"$f":"IF(INDEX(PC_MAPPING,RIGHT($C15,1),MATCH($E$2,'Data by Building Type'!$D$22:$F$22,0))=\"Yes\",1,0)*\n(AP$10*OFFSET('Efficiency Distributions'!$D$10,MATCH($C15,'Efficiency Distributions'!$C$9:$C$87,0)+RIGHT($E23),0)\n+AP$11*OFFSET('Efficiency Distributions'!$E$10,MATCH($C15,'Efficiency Distributions'!$C$9:$C$87,0)+RIGHT($E23),0))\n/SUM(AP$10:AP$11)","v":2.5210857023673913E-2},{"$f":"IF(INDEX(PC_MAPPING,RIGHT($C15,1),MATCH($E$2,'Data by Building Type'!$D$22:$F$22,0))=\"Yes\",1,0)*\n(AQ$10*OFFSET('Efficiency Distributions'!$D$10,MATCH($C15,'Efficiency Distributions'!$C$9:$C$87,0)+RIGHT($E23),0)\n+AQ$11*OFFSET('Efficiency Distributions'!$E$10,MATCH($C15,'Efficiency Distributions'!$C$9:$C$87,0)+RIGHT($E23),0))\n/SUM(AQ$10:AQ$11)","v":2.4766260890252259E-2},{"$f":"IF(INDEX(PC_MAPPING,RIGHT($C15,1),MATCH($E$2,'Data by Building Type'!$D$22:$F$22,0))=\"Yes\",1,0)*\n(AR$10*OFFSET('Efficiency Distributions'!$D$10,MATCH($C15,'Efficiency Distributions'!$C$9:$C$87,0)+RIGHT($E23),0)\n+AR$11*OFFSET('Efficiency Distributions'!$E$10,MATCH($C15,'Efficiency Distributions'!$C$9:$C$87,0)+RIGHT($E23),0))\n/SUM(AR$10:AR$11)","v":2.4859013049600968E-2},{"$f":"IF(INDEX(PC_MAPPING,RIGHT($C15,1),MATCH($E$2,'Data by Building Type'!$D$22:$F$22,0))=\"Yes\",1,0)*\n(AS$10*OFFSET('Efficiency Distributions'!$D$10,MATCH($C15,'Efficiency Distributions'!$C$9:$C$87,0)+RIGHT($E23),0)\n+AS$11*OFFSET('Efficiency Distributions'!$E$10,MATCH($C15,'Efficiency Distributions'!$C$9:$C$87,0)+RIGHT($E23),0))\n/SUM(AS$10:AS$11)","v":2.3329947824158755E-2},{"$f":"IF(INDEX(PC_MAPPING,RIGHT($C15,1),MATCH($E$2,'Data by Building Type'!$D$22:$F$22,0))=\"Yes\",1,0)*\n(AT$10*OFFSET('Efficiency Distributions'!$D$10,MATCH($C15,'Efficiency Distributions'!$C$9:$C$87,0)+RIGHT($E23),0)\n+AT$11*OFFSET('Efficiency Distributions'!$E$10,MATCH($C15,'Efficiency Distributions'!$C$9:$C$87,0)+RIGHT($E23),0))\n/SUM(AT$10:AT$11)","v":2.1713789605234794E-2},{"$f":"IF(INDEX(PC_MAPPING,RIGHT($C15,1),MATCH($E$2,'Data by Building Type'!$D$22:$F$22,0))=\"Yes\",1,0)*\n(AU$10*OFFSET('Efficiency Distributions'!$D$10,MATCH($C15,'Efficiency Distributions'!$C$9:$C$87,0)+RIGHT($E23),0)\n+AU$11*OFFSET('Efficiency Distributions'!$E$10,MATCH($C15,'Efficiency Distributions'!$C$9:$C$87,0)+RIGHT($E23),0))\n/SUM(AU$10:AU$11)","v":2.1207250222207763E-2},{"$f":"IF(INDEX(PC_MAPPING,RIGHT($C15,1),MATCH($E$2,'Data by Building Type'!$D$22:$F$22,0))=\"Yes\",1,0)*\n(AV$10*OFFSET('Efficiency Distributions'!$D$10,MATCH($C15,'Efficiency Distributions'!$C$9:$C$87,0)+RIGHT($E23),0)\n+AV$11*OFFSET('Efficiency Distributions'!$E$10,MATCH($C15,'Efficiency Distributions'!$C$9:$C$87,0)+RIGHT($E23),0))\n/SUM(AV$10:AV$11)","v":2.4820500993885816E-2},{"$f":"IF(INDEX(PC_MAPPING,RIGHT($C15,1),MATCH($E$2,'Data by Building Type'!$D$22:$F$22,0))=\"Yes\",1,0)*\n(AW$10*OFFSET('Efficiency Distributions'!$D$10,MATCH($C15,'Efficiency Distributions'!$C$9:$C$87,0)+RIGHT($E23),0)\n+AW$11*OFFSET('Efficiency Distributions'!$E$10,MATCH($C15,'Efficiency Distributions'!$C$9:$C$87,0)+RIGHT($E23),0))\n/SUM(AW$10:AW$11)","v":2.3629439249495468E-2},{"$f":"IF(INDEX(PC_MAPPING,RIGHT($C15,1),MATCH($E$2,'Data by Building Type'!$D$22:$F$22,0))=\"Yes\",1,0)*\n(AX$10*OFFSET('Efficiency Distributions'!$D$10,MATCH($C15,'Efficiency Distributions'!$C$9:$C$87,0)+RIGHT($E23),0)\n+AX$11*OFFSET('Efficiency Distributions'!$E$10,MATCH($C15,'Efficiency Distributions'!$C$9:$C$87,0)+RIGHT($E23),0))\n/SUM(AX$10:AX$11)","v":2.4280686107489124E-2},{"$f":"IF(INDEX(PC_MAPPING,RIGHT($C15,1),MATCH($E$2,'Data by Building Type'!$D$22:$F$22,0))=\"Yes\",1,0)*\n(AY$10*OFFSET('Efficiency Distributions'!$D$10,MATCH($C15,'Efficiency Distributions'!$C$9:$C$87,0)+RIGHT($E23),0)\n+AY$11*OFFSET('Efficiency Distributions'!$E$10,MATCH($C15,'Efficiency Distributions'!$C$9:$C$87,0)+RIGHT($E23),0))\n/SUM(AY$10:AY$11)","v":2.5375780605524253E-2},{"$f":"IF(INDEX(PC_MAPPING,RIGHT($C15,1),MATCH($E$2,'Data by Building Type'!$D$22:$F$22,0))=\"Yes\",1,0)*\n(AZ$10*OFFSET('Efficiency Distributions'!$D$10,MATCH($C15,'Efficiency Distributions'!$C$9:$C$87,0)+RIGHT($E23),0)\n+AZ$11*OFFSET('Efficiency Distributions'!$E$10,MATCH($C15,'Efficiency Distributions'!$C$9:$C$87,0)+RIGHT($E23),0))\n/SUM(AZ$10:AZ$11)","v":2.6912287828048539E-2},{"$f":"IF(INDEX(PC_MAPPING,RIGHT($C15,1),MATCH($E$2,'Data by Building Type'!$D$22:$F$22,0))=\"Yes\",1,0)*\n(BA$10*OFFSET('Efficiency Distributions'!$D$10,MATCH($C15,'Efficiency Distributions'!$C$9:$C$87,0)+RIGHT($E23),0)\n+BA$11*OFFSET('Efficiency Distributions'!$E$10,MATCH($C15,'Efficiency Distributions'!$C$9:$C$87,0)+RIGHT($E23),0))\n/SUM(BA$10:BA$11)","v":2.6271665688945414E-2},{"$f":"IF(INDEX(PC_MAPPING,RIGHT($C15,1),MATCH($E$2,'Data by Building Type'!$D$22:$F$22,0))=\"Yes\",1,0)*\n(BB$10*OFFSET('Efficiency Distributions'!$D$10,MATCH($C15,'Efficiency Distributions'!$C$9:$C$87,0)+RIGHT($E23),0)\n+BB$11*OFFSET('Efficiency Distributions'!$E$10,MATCH($C15,'Efficiency Distributions'!$C$9:$C$87,0)+RIGHT($E23),0))\n/SUM(BB$10:BB$11)","v":2.6017464454278199E-2},{"$f":"IF(INDEX(PC_MAPPING,RIGHT($C15,1),MATCH($E$2,'Data by Building Type'!$D$22:$F$22,0))=\"Yes\",1,0)*\n(BC$10*OFFSET('Efficiency Distributions'!$D$10,MATCH($C15,'Efficiency Distributions'!$C$9:$C$87,0)+RIGHT($E23),0)\n+BC$11*OFFSET('Efficiency Distributions'!$E$10,MATCH($C15,'Efficiency Distributions'!$C$9:$C$87,0)+RIGHT($E23),0))\n/SUM(BC$10:BC$11)","v":2.6183926938083194E-2},{"$f":"IF(INDEX(PC_MAPPING,RIGHT($C15,1),MATCH($E$2,'Data by Building Type'!$D$22:$F$22,0))=\"Yes\",1,0)*\n(BD$10*OFFSET('Efficiency Distributions'!$D$10,MATCH($C15,'Efficiency Distributions'!$C$9:$C$87,0)+RIGHT($E23),0)\n+BD$11*OFFSET('Efficiency Distributions'!$E$10,MATCH($C15,'Efficiency Distributions'!$C$9:$C$87,0)+RIGHT($E23),0))\n/SUM(BD$10:BD$11)","v":2.7232300111491314E-2},{"$f":"IF(INDEX(PC_MAPPING,RIGHT($C15,1),MATCH($E$2,'Data by Building Type'!$D$22:$F$22,0))=\"Yes\",1,0)*\n(BE$10*OFFSET('Efficiency Distributions'!$D$10,MATCH($C15,'Efficiency Distributions'!$C$9:$C$87,0)+RIGHT($E23),0)\n+BE$11*OFFSET('Efficiency Distributions'!$E$10,MATCH($C15,'Efficiency Distributions'!$C$9:$C$87,0)+RIGHT($E23),0))\n/SUM(BE$10:BE$11)","v":2.6629634353890288E-2},{"$f":"IF(INDEX(PC_MAPPING,RIGHT($C15,1),MATCH($E$2,'Data by Building Type'!$D$22:$F$22,0))=\"Yes\",1,0)*\n(BF$10*OFFSET('Efficiency Distributions'!$D$10,MATCH($C15,'Efficiency Distributions'!$C$9:$C$87,0)+RIGHT($E23),0)\n+BF$11*OFFSET('Efficiency Distributions'!$E$10,MATCH($C15,'Efficiency Distributions'!$C$9:$C$87,0)+RIGHT($E23),0))\n/SUM(BF$10:BF$11)","v":2.858283762158486E-2},{"$f":"IF(INDEX(PC_MAPPING,RIGHT($C15,1),MATCH($E$2,'Data by Building Type'!$D$22:$F$22,0))=\"Yes\",1,0)*\n(BG$10*OFFSET('Efficiency Distributions'!$D$10,MATCH($C15,'Efficiency Distributions'!$C$9:$C$87,0)+RIGHT($E23),0)\n+BG$11*OFFSET('Efficiency Distributions'!$E$10,MATCH($C15,'Efficiency Distributions'!$C$9:$C$87,0)+RIGHT($E23),0))\n/SUM(BG$10:BG$11)","v":2.8602144645580137E-2}]
[null,null,null,null,"EL5",{"$f":"IF(INDEX(PC_MAPPING,RIGHT($C15,1),MATCH($E$2,'Data by Building Type'!$D$22:$F$22,0))=\"Yes\",1,0)*\n(F$10*OFFSET('Efficiency Distributions'!$D$10,MATCH($C15,'Efficiency Distributions'!$C$9:$C$87,0)+RIGHT($E24),0)\n+F$11*OFFSET('Efficiency Distributions'!$E$10,MATCH($C15,'Efficiency Distributions'!$C$9:$C$87,0)+RIGHT($E24),0))\n/SUM(F$10:F$11)","v":0.11117298020758733},{"$f":"IF(INDEX(PC_MAPPING,RIGHT($C15,1),MATCH($E$2,'Data by Building Type'!$D$22:$F$22,0))=\"Yes\",1,0)*\n(G$10*OFFSET('Efficiency Distributions'!$D$10,MATCH($C15,'Efficiency Distributions'!$C$9:$C$87,0)+RIGHT($E24),0)\n+G$11*OFFSET('Efficiency Distributions'!$E$10,MATCH($C15,'Efficiency Distributions'!$C$9:$C$87,0)+RIGHT($E24),0))\n/SUM(G$10:G$11)","v":0.11820951535430008},{"$f":"IF(INDEX(PC_MAPPING,RIGHT($C15,1),MATCH($E$2,'Data by Building Type'!$D$22:$F$22,0))=\"Yes\",1,0)*\n(H$10*OFFSET('Efficiency Distributions'!$D$10,MATCH($C15,'Efficiency Distributions'!$C$9:$C$87,0)+RIGHT($E24),0)\n+H$11*OFFSET('Efficiency Distributions'!$E$10,MATCH($C15,'Efficiency Distributions'!$C$9:$C$87,0)+RIGHT($E24),0))\n/SUM(H$10:H$11)","v":0.11492924677480366},{"$f":"IF(INDEX(PC_MAPPING,RIGHT($C15,1),MATCH($E$2,'Data by Building Type'!$D$22:$F$22,0))=\"Yes\",1,0)*\n(I$10*OFFSET('Efficiency Distributions'!$D$10,MATCH($C15,'Efficiency Distributions'!$C$9:$C$87,0)+RIGHT($E24),0)\n+I$11*OFFSET('Efficiency Distributions'!$E$10,MATCH($C15,'Efficiency Distributions'!$C$9:$C$87,0)+RIGHT($E24),0))\n/SUM(I$10:I$11)","v":0.10540924817446724},{"$f":"IF(INDEX(PC_MAPPING,RIGHT($C15,1),MATCH($E$2,'Data by Building Type'!$D$22:$F$22,0))=\"Yes\",1,0)*\n(J$10*OFFSET('Efficiency Distributions'!$D$10,MATCH($C15,'Efficiency Distributions'!$C$9:$C$87,0)+RIGHT($E24),0)\n+J$11*OFFSET('Efficiency Distributions'!$E$10,MATCH($C15,'Efficiency Distributions'!$C$9:$C$87,0)+RIGHT($E24),0))\n/SUM(J$10:J$11)","v":9.4516050513611366E-2},{"$f":"IF(INDEX(PC_MAPPING,RIGHT($C15,1),MATCH($E$2,'Data by Building Type'!$D$22:$F$22,0))=\"Yes\",1,0)*\n(K$10*OFFSET('Efficiency Distributions'!$D$10,MATCH($C15,'Efficiency Distributions'!$C$9:$C$87,0)+RIGHT($E24),0)\n+K$11*OFFSET('Efficiency Distributions'!$E$10,MATCH($C15,'Efficiency Distributions'!$C$9:$C$87,0)+RIGHT($E24),0))\n/SUM(K$10:K$11)","v":9.7585684714212778E-2},{"$f":"IF(INDEX(PC_MAPPING,RIGHT($C15,1),MATCH($E$2,'Data by Building Type'!$D$22:$F$22,0))=\"Yes\",1,0)*\n(L$10*OFFSET('Efficiency Distributions'!$D$10,MATCH($C15,'Efficiency Distributions'!$C$9:$C$87,0)+RIGHT($E24),0)\n+L$11*OFFSET('Efficiency Distributions'!$E$10,MATCH($C15,'Efficiency Distributions'!$C$9:$C$87,0)+RIGHT($E24),0))\n/SUM(L$10:L$11)","v":9.4738476345594111E-2},{"$f":"IF(INDEX(PC_MAPPING,RIGHT($C15,1),MATCH($E$2,'Data by Building Type'!$D$22:$F$22,0))=\"Yes\",1,0)*\n(M$10*OFFSET('Efficiency Distributions'!$D$10,MATCH($C15,'Efficiency Distributions'!$C$9:$C$87,0)+RIGHT($E24),0)\n+M$11*OFFSET('Efficiency Distributions'!$E$10,MATCH($C15,'Efficiency Distributions'!$C$9:$C$87,0)+RIGHT($E24),0))\n/SUM(M$10:M$11)","v":8.9022245211960352E-2},{"$f":"IF(INDEX(PC_MAPPING,RIGHT($C15,1),MATCH($E$2,'Data by Building Type'!$D$22:$F$22,0))=\"Yes\",1,0)*\n(N$10*OFFSET('Efficiency Distributions'!$D$10,MATCH($C15,'Efficiency Distributions'!$C$9:$C$87,0)+RIGHT($E24),0)\n+N$11*OFFSET('Efficiency Distributions'!$E$10,MATCH($C15,'Efficiency Distributions'!$C$9:$C$87,0)+RIGHT($E24),0))\n/SUM(N$10:N$11)","v":8.434456727966419E-2},{"$f":"IF(INDEX(PC_MAPPING,RIGHT($C15,1),MATCH($E$2,'Data by Building Type'!$D$22:$F$22,0))=\"Yes\",1,0)*\n(O$10*OFFSET('Efficiency Distributions'!$D$10,MATCH($C15,'Efficiency Distributions'!$C$9:$C$87,0)+RIGHT($E24),0)\n+O$11*OFFSET('Efficiency Distributions'!$E$10,MATCH($C15,'Efficiency Distributions'!$C$9:$C$87,0)+RIGHT($E24),0))\n/SUM(O$10:O$11)","v":8.8714146397163018E-2},{"$f":"IF(INDEX(PC_MAPPING,RIGHT($C15,1),MATCH($E$2,'Data by Building Type'!$D$22:$F$22,0))=\"Yes\",1,0)*\n(P$10*OFFSET('Efficiency Distributions'!$D$10,MATCH($C15,'Efficiency Distributions'!$C$9:$C$87,0)+RIGHT($E24),0)\n+P$11*OFFSET('Efficiency Distributions'!$E$10,MATCH($C15,'Efficiency Distributions'!$C$9:$C$87,0)+RIGHT($E24),0))\n/SUM(P$10:P$11)","v":0.1079454819415159},{"$f":"IF(INDEX(PC_MAPPING,RIGHT($C15,1),MATCH($E$2,'Data by Building Type'!$D$22:$F$22,0))=\"Yes\",1,0)*\n(Q$10*OFFSET('Efficiency Distributions'!$D$10,MATCH($C15,'Efficiency Distributions'!$C$9:$C$87,0)+RIGHT($E24),0)\n+Q$11*OFFSET('Efficiency Distributions'!$E$10,MATCH($C15,'Efficiency Distributions'!$C$9:$C$87,0)+RIGHT($E24),0))\n/SUM(Q$10:Q$11)","v":0.10737022705682327},{"$f":"IF(INDEX(PC_MAPPING,RIGHT($C15,1),MATCH($E$2,'Data by Building Type'!$D$22:$F$22,0))=\"Yes\",1,0)*\n(R$10*OFFSET('Efficiency Distributions'!$D$10,MATCH($C15,'Efficiency Distributions'!$C$9:$C$87,0)+RIGHT($E24),0)\n+R$11*OFFSET('Efficiency Distributions'!$E$10,MATCH($C15,'Efficiency Distributions'!$C$9:$C$87,0)+RIGHT($E24),0))\n/SUM(R$10:R$11)","v":0.1432480855406936},{"$f":"IF(INDEX(PC_MAPPING,RIGHT($C15,1),MATCH($E$2,'Data by Building Type'!$D$22:$F$22,0))=\"Yes\",1,0)*\n(S$10*OFFSET('Efficiency Distributions'!$D$10,MATCH($C15,'Efficiency Distributions'!$C$9:$C$87,0)+RIGHT($E24),0)\n+S$11*OFFSET('Efficiency Distributions'!$E$10,MATCH($C15,'Efficiency Distributions'!$C$9:$C$87,0)+RIGHT($E24),0))\n/SUM(S$10:S$11)","v":0.1432480855406936},{"$f":"IF(INDEX(PC_MAPPING,RIGHT($C15,1),MATCH($E$2,'Data by Building Type'!$D$22:$F$22,0))=\"Yes\",1,0)*\n(T$10*OFFSET('Efficiency Distributions'!$D$10,MATCH($C15,'Efficiency Distributions'!$C$9:$C$87,0)+RIGHT($E24),0)\n+T$11*OFFSET('Efficiency Distributions'!$E$10,MATCH($C15,'Efficiency Distributions'!$C$9:$C$87,0)+RIGHT($E24),0))\n/SUM(T$10:T$11)","v":0.1432480855406936},{"$f":"IF(INDEX(PC_MAPPING,RIGHT($C15,1),MATCH($E$2,'Data by Building Type'!$D$22:$F$22,0))=\"Yes\",1,0)*\n(U$10*OFFSET('Efficiency Distributions'!$D$10,MATCH($C15,'Efficiency Distributions'!$C$9:$C$87,0)+RIGHT($E24),0)\n+U$11*OFFSET('Efficiency Distributions'!$E$10,MATCH($C15,'Efficiency Distributions'!$C$9:$C$87,0)+RIGHT($E24),0))\n/SUM(U$10:U$11)","v":0.1432480855406936},{"$f":"IF(INDEX(PC_MAPPING,RIGHT($C15,1),MATCH($E$2,'Data by Building Type'!$D$22:$F$22,0))=\"Yes\",1,0)*\n(V$10*OFFSET('Efficiency Distributions'!$D$10,MATCH($C15,'Efficiency Distributions'!$C$9:$C$87,0)+RIGHT($E24),0)\n+V$11*OFFSET('Efficiency Distributions'!$E$10,MATCH($C15,'Efficiency Distributions'!$C$9:$C$87,0)+RIGHT($E24),0))\n/SUM(V$10:V$11)","v":0.1432480855406936},{"$f":"IF(INDEX(PC_MAPPING,RIGHT($C15,1),MATCH($E$2,'Data by Building Type'!$D$22:$F$22,0))=\"Yes\",1,0)*\n(W$10*OFFSET('Efficiency Distributions'!$D$10,MATCH($C15,'Efficiency Distributions'!$C$9:$C$87,0)+RIGHT($E24),0)\n+W$11*OFFSET('Efficiency Distributions'!$E$10,MATCH($C15,'Efficiency Distributions'!$C$9:$C$87,0)+RIGHT($E24),0))\n/SUM(W$10:W$11)","v":0.1432480855406936},{"$f":"IF(INDEX(PC_MAPPING,RIGHT($C15,1),MATCH($E$2,'Data by Building Type'!$D$22:$F$22,0))=\"Yes\",1,0)*\n(X$10*OFFSET('Efficiency Distributions'!$D$10,MATCH($C15,'Efficiency Distributions'!$C$9:$C$87,0)+RIGHT($E24),0)\n+X$11*OFFSET('Efficiency Distributions'!$E$10,MATCH($C15,'Efficiency Distributions'!$C$9:$C$87,0)+RIGHT($E24),0))\n/SUM(X$10:X$11)","v":0.1432480855406936},{"$f":"IF(INDEX(PC_MAPPING,RIGHT($C15,1),MATCH($E$2,'Data by Building Type'!$D$22:$F$22,0))=\"Yes\",1,0)*\n(Y$10*OFFSET('Efficiency Distributions'!$D$10,MATCH($C15,'Efficiency Distributions'!$C$9:$C$87,0)+RIGHT($E24),0)\n+Y$11*OFFSET('Efficiency Distributions'!$E$10,MATCH($C15,'Efficiency Distributions'!$C$9:$C$87,0)+RIGHT($E24),0))\n/SUM(Y$10:Y$11)","v":0.1432480855406936},{"$f":"IF(INDEX(PC_MAPPING,RIGHT($C15,1),MATCH($E$2,'Data by Building Type'!$D$22:$F$22,0))=\"Yes\",1,0)*\n(Z$10*OFFSET('Efficiency Distributions'!$D$10,MATCH($C15,'Efficiency Distributions'!$C$9:$C$87,0)+RIGHT($E24),0)\n+Z$11*OFFSET('Efficiency Distributions'!$E$10,MATCH($C15,'Efficiency Distributions'!$C$9:$C$87,0)+RIGHT($E24),0))\n/SUM(Z$10:Z$11)","v":0.1432480855406936},{"$f":"IF(INDEX(PC_MAPPING,RIGHT($C15,1),MATCH($E$2,'Data by Building Type'!$D$22:$F$22,0))=\"Yes\",1,0)*\n(AA$10*OFFSET('Efficiency Distributions'!$D$10,MATCH($C15,'Efficiency Distributions'!$C$9:$C$87,0)+RIGHT($E24),0)\n+AA$11*OFFSET('Efficiency Distributions'!$E$10,MATCH($C15,'Efficiency Distributions'!$C$9:$C$87,0)+RIGHT($E24),0))\n/SUM(AA$10:AA$11)","v":0.1432480855406936},{"$f":"IF(INDEX(PC_MAPPING,RIGHT($C15,1),MATCH($E$2,'Data by Building Type'!$D$22:$F$22,0))=\"Yes\",1,0)*\n(AB$10*OFFSET('Efficiency Distributions'!$D$10,MATCH($C15,'Efficiency Distributions'!$C$9:$C$87,0)+RIGHT($E24),0)\n+AB$11*OFFSET('Efficiency Distributions'!$E$10,MATCH($C15,'Efficiency Distributions'!$C$9:$C$87,0)+RIGHT($E24),0))\n/SUM(AB$10:AB$11)","v":0.1432480855406936},{"$f":"IF(INDEX(PC_MAPPING,RIGHT($C15,1),MATCH($E$2,'Data by Building Type'!$D$22:$F$22,0))=\"Yes\",1,0)*\n(AC$10*OFFSET('Efficiency Distributions'!$D$10,MATCH($C15,'Efficiency Distributions'!$C$9:$C$87,0)+RIGHT($E24),0)\n+AC$11*OFFSET('Efficiency Distributions'!$E$10,MATCH($C15,'Efficiency Distributions'!$C$9:$C$87,0)+RIGHT($E24),0))\n/SUM(AC$10:AC$11)","v":0.1432480855406936},{"$f":"IF(INDEX(PC_MAPPING,RIGHT($C15,1),MATCH($E$2,'Data by Building Type'!$D$22:$F$22,0))=\"Yes\",1,0)*\n(AD$10*OFFSET('Efficiency Distributions'!$D$10,MATCH($C15,'Efficiency Distributions'!$C$9:$C$87,0)+RIGHT($E24),0)\n+AD$11*OFFSET('Efficiency Distributions'!$E$10,MATCH($C15,'Efficiency Distributions'!$C$9:$C$87,0)+RIGHT($E24),0))\n/SUM(AD$10:AD$11)","v":0.1432480855406936},{"$f":"IF(INDEX(PC_MAPPING,RIGHT($C15,1),MATCH($E$2,'Data by Building Type'!$D$22:$F$22,0))=\"Yes\",1,0)*\n(AE$10*OFFSET('Efficiency Distributions'!$D$10,MATCH($C15,'Efficiency Distributions'!$C$9:$C$87,0)+RIGHT($E24),0)\n+AE$11*OFFSET('Efficiency Distributions'!$E$10,MATCH($C15,'Efficiency Distributions'!$C$9:$C$87,0)+RIGHT($E24),0))\n/SUM(AE$10:AE$11)","v":0.1432480855406936},{"$f":"IF(INDEX(PC_MAPPING,RIGHT($C15,1),MATCH($E$2,'Data by Building Type'!$D$22:$F$22,0))=\"Yes\",1,0)*\n(AF$10*OFFSET('Efficiency Distributions'!$D$10,MATCH($C15,'Efficiency Distributions'!$C$9:$C$87,0)+RIGHT($E24),0)\n+AF$11*OFFSET('Efficiency Distributions'!$E$10,MATCH($C15,'Efficiency Distributions'!$C$9:$C$87,0)+RIGHT($E24),0))\n/SUM(AF$10:AF$11)","v":0.1432480855406936},{"$f":"IF(INDEX(PC_MAPPING,RIGHT($C15,1),MATCH($E$2,'Data by Building Type'!$D$22:$F$22,0))=\"Yes\",1,0)*\n(AG$10*OFFSET('Efficiency Distributions'!$D$10,MATCH($C15,'Efficiency Distributions'!$C$9:$C$87,0)+RIGHT($E24),0)\n+AG$11*OFFSET('Efficiency Distributions'!$E$10,MATCH($C15,'Efficiency Distributions'!$C$9:$C$87,0)+RIGHT($E24),0))\n/SUM(AG$10:AG$11)","v":0.1432480855406936},{"$f":"IF(INDEX(PC_MAPPING,RIGHT($C15,1),MATCH($E$2,'Data by Building Type'!$D$22:$F$22,0))=\"Yes\",1,0)*\n(AH$10*OFFSET('Efficiency Distributions'!$D$10,MATCH($C15,'Efficiency Distributions'!$C$9:$C$87,0)+RIGHT($E24),0)\n+AH$11*OFFSET('Efficiency Distributions'!$E$10,MATCH($C15,'Efficiency Distributions'!$C$9:$C$87,0)+RIGHT($E24),0))\n/SUM(AH$10:AH$11)","v":0.1432480855406936},{"$f":"IF(INDEX(PC_MAPPING,RIGHT($C15,1),MATCH($E$2,'Data by Building Type'!$D$22:$F$22,0))=\"Yes\",1,0)*\n(AI$10*OFFSET('Efficiency Distributions'!$D$10,MATCH($C15,'Efficiency Distributions'!$C$9:$C$87,0)+RIGHT($E24),0)\n+AI$11*OFFSET('Efficiency Distributions'!$E$10,MATCH($C15,'Efficiency Distributions'!$C$9:$C$87,0)+RIGHT($E24),0))\n/SUM(AI$10:AI$11)","v":0.1432480855406936},{"$f":"IF(INDEX(PC_MAPPING,RIGHT($C15,1),MATCH($E$2,'Data by Building Type'!$D$22:$F$22,0))=\"Yes\",1,0)*\n(AJ$10*OFFSET('Efficiency Distributions'!$D$10,MATCH($C15,'Efficiency Distributions'!$C$9:$C$87,0)+RIGHT($E24),0)\n+AJ$11*OFFSET('Efficiency Distributions'!$E$10,MATCH($C15,'Efficiency Distributions'!$C$9:$C$87,0)+RIGHT($E24),0))\n/SUM(AJ$10:AJ$11)","v":0.1432480855406936},{"$f":"IF(INDEX(PC_MAPPING,RIGHT($C15,1),MATCH($E$2,'Data by Building Type'!$D$22:$F$22,0))=\"Yes\",1,0)*\n(AK$10*OFFSET('Efficiency Distributions'!$D$10,MATCH($C15,'Efficiency Distributions'!$C$9:$C$87,0)+RIGHT($E24),0)\n+AK$11*OFFSET('Efficiency Distributions'!$E$10,MATCH($C15,'Efficiency Distributions'!$C$9:$C$87,0)+RIGHT($E24),0))\n/SUM(AK$10:AK$11)","v":0.12751239678927037},{"$f":"IF(INDEX(PC_MAPPING,RIGHT($C15,1),MATCH($E$2,'Data by Building Type'!$D$22:$F$22,0))=\"Yes\",1,0)*\n(AL$10*OFFSET('Efficiency Distributions'!$D$10,MATCH($C15,'Efficiency Distributions'!$C$9:$C$87,0)+RIGHT($E24),0)\n+AL$11*OFFSET('Efficiency Distributions'!$E$10,MATCH($C15,'Efficiency Distributions'!$C$9:$C$87,0)+RIGHT($E24),0))\n/SUM(AL$10:AL$11)","v":0.12688039321058228},{"$f":"IF(INDEX(PC_MAPPING,RIGHT($C15,1),MATCH($E$2,'Data by Building Type'!$D$22:$F$22,0))=\"Yes\",1,0)*\n(AM$10*OFFSET('Efficiency Distributions'!$D$10,MATCH($C15,'Efficiency Distributions'!$C$9:$C$87,0)+RIGHT($E24),0)\n+AM$11*OFFSET('Efficiency Distributions'!$E$10,MATCH($C15,'Efficiency Distributions'!$C$9:$C$87,0)+RIGHT($E24),0))\n/SUM(AM$10:AM$11)","v":0.11192097532504065},{"$f":"IF(INDEX(PC_MAPPING,RIGHT($C15,1),MATCH($E$2,'Data by Building Type'!$D$22:$F$22,0))=\"Yes\",1,0)*\n(AN$10*OFFSET('Efficiency Distributions'!$D$10,MATCH($C15,'Efficiency Distributions'!$C$9:$C$87,0)+RIGHT($E24),0)\n+AN$11*OFFSET('Efficiency Distributions'!$E$10,MATCH($C15,'Efficiency Distributions'!$C$9:$C$87,0)+RIGHT($E24),0))\n/SUM(AN$10:AN$11)","v":0.11268413421150436},{"$f":"IF(INDEX(PC_MAPPING,RIGHT($C15,1),MATCH($E$2,'Data by Building Type'!$D$22:$F$22,0))=\"Yes\",1,0)*\n(AO$10*OFFSET('Efficiency Distributions'!$D$10,MATCH($C15,'Efficiency Distributions'!$C$9:$C$87,0)+RIGHT($E24),0)\n+AO$11*OFFSET('Efficiency Distributions'!$E$10,MATCH($C15,'Efficiency Distributions'!$C$9:$C$87,0)+RIGHT($E24),0))\n/SUM(AO$10:AO$11)","v":0.11175429400957931},{"$f":"IF(INDEX(PC_MAPPING,RIGHT($C15,1),MATCH($E$2,'Data by Building Type'!$D$22:$F$22,0))=\"Yes\",1,0)*\n(AP$10*OFFSET('Efficiency Distributions'!$D$10,MATCH($C15,'Efficiency Distributions'!$C$9:$C$87,0)+RIGHT($E24),0)\n+AP$11*OFFSET('Efficiency Distributions'!$E$10,MATCH($C15,'Efficiency Distributions'!$C$9:$C$87,0)+RIGHT($E24),0))\n/SUM(AP$10:AP$11)","v":0.10984730560315061},{"$f":"IF(INDEX(PC_MAPPING,RIGHT($C15,1),MATCH($E$2,'Data by Building Type'!$D$22:$F$22,0))=\"Yes\",1,0)*\n(AQ$10*OFFSET('Efficiency Distributions'!$D$10,MATCH($C15,'Efficiency Distributions'!$C$9:$C$87,0)+RIGHT($E24),0)\n+AQ$11*OFFSET('Efficiency Distributions'!$E$10,MATCH($C15,'Efficiency Distributions'!$C$9:$C$87,0)+RIGHT($E24),0))\n/SUM(AQ$10:AQ$11)","v":0.10791013673609913},{"$f":"IF(INDEX(PC_MAPPING,RIGHT($C15,1),MATCH($E$2,'Data by Building Type'!$D$22:$F$22,0))=\"Yes\",1,0)*\n(AR$10*OFFSET('Efficiency Distributions'!$D$10,MATCH($C15,'Efficiency Distributions'!$C$9:$C$87,0)+RIGHT($E24),0)\n+AR$11*OFFSET('Efficiency Distributions'!$E$10,MATCH($C15,'Efficiency Distributions'!$C$9:$C$87,0)+RIGHT($E24),0))\n/SUM(AR$10:AR$11)","v":0.10831427114468993},{"$f":"IF(INDEX(PC_MAPPING,RIGHT($C15,1),MATCH($E$2,'Data by Building Type'!$D$22:$F$22,0))=\"Yes\",1,0)*\n(AS$10*OFFSET('Efficiency Distributions'!$D$10,MATCH($C15,'Efficiency Distributions'!$C$9:$C$87,0)+RIGHT($E24),0)\n+AS$11*OFFSET('Efficiency Distributions'!$E$10,MATCH($C15,'Efficiency Distributions'!$C$9:$C$87,0)+RIGHT($E24),0))\n/SUM(AS$10:AS$11)","v":0.10165191551954886},{"$f":"IF(INDEX(PC_MAPPING,RIGHT($C15,1),MATCH($E$2,'Data by Building Type'!$D$22:$F$22,0))=\"Yes\",1,0)*\n(AT$10*OFFSET('Efficiency Distributions'!$D$10,MATCH($C15,'Efficiency Distributions'!$C$9:$C$87,0)+RIGHT($E24),0)\n+AT$11*OFFSET('Efficiency Distributions'!$E$10,MATCH($C15,'Efficiency Distributions'!$C$9:$C$87,0)+RIGHT($E24),0))\n/SUM(AT$10:AT$11)","v":9.4610083279951587E-2},{"$f":"IF(INDEX(PC_MAPPING,RIGHT($C15,1),MATCH($E$2,'Data by Building Type'!$D$22:$F$22,0))=\"Yes\",1,0)*\n(AU$10*OFFSET('Efficiency Distributions'!$D$10,MATCH($C15,'Efficiency Distributions'!$C$9:$C$87,0)+RIGHT($E24),0)\n+AU$11*OFFSET('Efficiency Distributions'!$E$10,MATCH($C15,'Efficiency Distributions'!$C$9:$C$87,0)+RIGHT($E24),0))\n/SUM(AU$10:AU$11)","v":9.2403018825333832E-2},{"$f":"IF(INDEX(PC_MAPPING,RIGHT($C15,1),MATCH($E$2,'Data by Building Type'!$D$22:$F$22,0))=\"Yes\",1,0)*\n(AV$10*OFFSET('Efficiency Distributions'!$D$10,MATCH($C15,'Efficiency Distributions'!$C$9:$C$87,0)+RIGHT($E24),0)\n+AV$11*OFFSET('Efficiency Distributions'!$E$10,MATCH($C15,'Efficiency Distributions'!$C$9:$C$87,0)+RIGHT($E24),0))\n/SUM(AV$10:AV$11)","v":0.10814646861621678},{"$f":"IF(INDEX(PC_MAPPING,RIGHT($C15,1),MATCH($E$2,'Data by Building Type'!$D$22:$F$22,0))=\"Yes\",1,0)*\n(AW$10*OFFSET('Efficiency Distributions'!$D$10,MATCH($C15,'Efficiency Distributions'!$C$9:$C$87,0)+RIGHT($E24),0)\n+AW$11*OFFSET('Efficiency Distributions'!$E$10,MATCH($C15,'Efficiency Distributions'!$C$9:$C$87,0)+RIGHT($E24),0))\n/SUM(AW$10:AW$11)","v":0.10295684244423024},{"$f":"IF(INDEX(PC_MAPPING,RIGHT($C15,1),MATCH($E$2,'Data by Building Type'!$D$22:$F$22,0))=\"Yes\",1,0)*\n(AX$10*OFFSET('Efficiency Distributions'!$D$10,MATCH($C15,'Efficiency Distributions'!$C$9:$C$87,0)+RIGHT($E24),0)\n+AX$11*OFFSET('Efficiency Distributions'!$E$10,MATCH($C15,'Efficiency Distributions'!$C$9:$C$87,0)+RIGHT($E24),0))\n/SUM(AX$10:AX$11)","v":0.10579441803977405},{"$f":"IF(INDEX(PC_MAPPING,RIGHT($C15,1),MATCH($E$2,'Data by Building Type'!$D$22:$F$22,0))=\"Yes\",1,0)*\n(AY$10*OFFSET('Efficiency Distributions'!$D$10,MATCH($C15,'Efficiency Distributions'!$C$9:$C$87,0)+RIGHT($E24),0)\n+AY$11*OFFSET('Efficiency Distributions'!$E$10,MATCH($C15,'Efficiency Distributions'!$C$9:$C$87,0)+RIGHT($E24),0))\n/SUM(AY$10:AY$11)","v":0.11056590120978425},{"$f":"IF(INDEX(PC_MAPPING,RIGHT($C15,1),MATCH($E$2,'Data by Building Type'!$D$22:$F$22,0))=\"Yes\",1,0)*\n(AZ$10*OFFSET('Efficiency Distributions'!$D$10,MATCH($C15,'Efficiency Distributions'!$C$9:$C$87,0)+RIGHT($E24),0)\n+AZ$11*OFFSET('Efficiency Distributions'!$E$10,MATCH($C15,'Efficiency Distributions'!$C$9:$C$87,0)+RIGHT($E24),0))\n/SUM(AZ$10:AZ$11)","v":0.11726068267935436},{"$f":"IF(INDEX(PC_MAPPING,RIGHT($C15,1),MATCH($E$2,'Data by Building Type'!$D$22:$F$22,0))=\"Yes\",1,0)*\n(BA$10*OFFSET('Efficiency Distributions'!$D$10,MATCH($C15,'Efficiency Distributions'!$C$9:$C$87,0)+RIGHT($E24),0)\n+BA$11*OFFSET('Efficiency Distributions'!$E$10,MATCH($C15,'Efficiency Distributions'!$C$9:$C$87,0)+RIGHT($E24),0))\n/SUM(BA$10:BA$11)","v":0.11446940050183359},{"$f":"IF(INDEX(PC_MAPPING,RIGHT($C15,1),MATCH($E$2,'Data by Building Type'!$D$22:$F$22,0))=\"Yes\",1,0)*\n(BB$10*OFFSET('Efficiency Distributions'!$D$10,MATCH($C15,'Efficiency Distributions'!$C$9:$C$87,0)+RIGHT($E24),0)\n+BB$11*OFFSET('Efficiency Distributions'!$E$10,MATCH($C15,'Efficiency Distributions'!$C$9:$C$87,0)+RIGHT($E24),0))\n/SUM(BB$10:BB$11)","v":0.11336180940792642},{"$f":"IF(INDEX(PC_MAPPING,RIGHT($C15,1),MATCH($E$2,'Data by Building Type'!$D$22:$F$22,0))=\"Yes\",1,0)*\n(BC$10*OFFSET('Efficiency Distributions'!$D$10,MATCH($C15,'Efficiency Distributions'!$C$9:$C$87,0)+RIGHT($E24),0)\n+BC$11*OFFSET('Efficiency Distributions'!$E$10,MATCH($C15,'Efficiency Distributions'!$C$9:$C$87,0)+RIGHT($E24),0))\n/SUM(BC$10:BC$11)","v":0.11408711023021964},{"$f":"IF(INDEX(PC_MAPPING,RIGHT($C15,1),MATCH($E$2,'Data by Building Type'!$D$22:$F$22,0))=\"Yes\",1,0)*\n(BD$10*OFFSET('Efficiency Distributions'!$D$10,MATCH($C15,'Efficiency Distributions'!$C$9:$C$87,0)+RIGHT($E24),0)\n+BD$11*OFFSET('Efficiency Distributions'!$E$10,MATCH($C15,'Efficiency Distributions'!$C$9:$C$87,0)+RIGHT($E24),0))\n/SUM(BD$10:BD$11)","v":0.11865502191435501},{"$f":"IF(INDEX(PC_MAPPING,RIGHT($C15,1),MATCH($E$2,'Data by Building Type'!$D$22:$F$22,0))=\"Yes\",1,0)*\n(BE$10*OFFSET('Efficiency Distributions'!$D$10,MATCH($C15,'Efficiency Distributions'!$C$9:$C$87,0)+RIGHT($E24),0)\n+BE$11*OFFSET('Efficiency Distributions'!$E$10,MATCH($C15,'Efficiency Distributions'!$C$9:$C$87,0)+RIGHT($E24),0))\n/SUM(BE$10:BE$11)","v":0.11602912111337912},{"$f":"IF(INDEX(PC_MAPPING,RIGHT($C15,1),MATCH($E$2,'Data by Building Type'!$D$22:$F$22,0))=\"Yes\",1,0)*\n(BF$10*OFFSET('Efficiency Distributions'!$D$10,MATCH($C15,'Efficiency Distributions'!$C$9:$C$87,0)+RIGHT($E24),0)\n+BF$11*OFFSET('Efficiency Distributions'!$E$10,MATCH($C15,'Efficiency Distributions'!$C$9:$C$87,0)+RIGHT($E24),0))\n/SUM(BF$10:BF$11)","v":0.12453950677976261},{"$f":"IF(INDEX(PC_MAPPING,RIGHT($C15,1),MATCH($E$2,'Data by Building Type'!$D$22:$F$22,0))=\"Yes\",1,0)*\n(BG$10*OFFSET('Efficiency Distributions'!$D$10,MATCH($C15,'Efficiency Distributions'!$C$9:$C$87,0)+RIGHT($E24),0)\n+BG$11*OFFSET('Efficiency Distributions'!$E$10,MATCH($C15,'Efficiency Distributions'!$C$9:$C$87,0)+RIGHT($E24),0))\n/SUM(BG$10:BG$11)","v":0.12462363024145633}]
[null,null,null,null,"EL6",{"$f":"IF(INDEX(PC_MAPPING,RIGHT($C15,1),MATCH($E$2,'Data by Building Type'!$D$22:$F$22,0))=\"Yes\",1,0)*\n(F$10*OFFSET('Efficiency Distributions'!$D$10,MATCH($C15,'Efficiency Distributions'!$C$9:$C$87,0)+RIGHT($E25),0)\n+F$11*OFFSET('Efficiency Distributions'!$E$10,MATCH($C15,'Efficiency Distributions'!$C$9:$C$87,0)+RIGHT($E25),0))\n/SUM(F$10:F$11)","v":0},{"$f":"IF(INDEX(PC_MAPPING,RIGHT($C15,1),MATCH($E$2,'Data by Building Type'!$D$22:$F$22,0))=\"Yes\",1,0)*\n(G$10*OFFSET('Efficiency Distributions'!$D$10,MATCH($C15,'Efficiency Distributions'!$C$9:$C$87,0)+RIGHT($E25),0)\n+G$11*OFFSET('Efficiency Distributions'!$E$10,MATCH($C15,'Efficiency Distributions'!$C$9:$C$87,0)+RIGHT($E25),0))\n/SUM(G$10:G$11)","v":0},{"$f":"IF(INDEX(PC_MAPPING,RIGHT($C15,1),MATCH($E$2,'Data by Building Type'!$D$22:$F$22,0))=\"Yes\",1,0)*\n(H$10*OFFSET('Efficiency Distributions'!$D$10,MATCH($C15,'Efficiency Distributions'!$C$9:$C$87,0)+RIGHT($E25),0)\n+H$11*OFFSET('Efficiency Distributions'!$E$10,MATCH($C15,'Efficiency Distributions'!$C$9:$C$87,0)+RIGHT($E25),0))\n/SUM(H$10:H$11)","v":0},{"$f":"IF(INDEX(PC_MAPPING,RIGHT($C15,1),MATCH($E$2,'Data by Building Type'!$D$22:$F$22,0))=\"Yes\",1,0)*\n(I$10*OFFSET('Efficiency Distributions'!$D$10,MATCH($C15,'Efficiency Distributions'!$C$9:$C$87,0)+RIGHT($E25),0)\n+I$11*OFFSET('Efficiency Distributions'!$E$10,MATCH($C15,'Efficiency Distributions'!$C$9:$C$87,0)+RIGHT($E25),0))\n/SUM(I$10:I$11)","v":0},{"$f":"IF(INDEX(PC_MAPPING,RIGHT($C15,1),MATCH($E$2,'Data by Building Type'!$D$22:$F$22,0))=\"Yes\",1,0)*\n(J$10*OFFSET('Efficiency Distributions'!$D$10,MATCH($C15,'Efficiency Distributions'!$C$9:$C$87,0)+RIGHT($E25),0)\n+J$11*OFFSET('Efficiency Distributions'!$E$10,MATCH($C15,'Efficiency Distributions'!$C$9:$C$87,0)+RIGHT($E25),0))\n/SUM(J$10:J$11)","v":0},{"$f":"IF(INDEX(PC_MAPPING,RIGHT($C15,1),MATCH($E$2,'Data by Building Type'!$D$22:$F$22,0))=\"Yes\",1,0)*\n(K$10*OFFSET('Efficiency Distributions'!$D$10,MATCH($C15,'Efficiency Distributions'!$C$9:$C$87,0)+RIGHT($E25),0)\n+K$11*OFFSET('Efficiency Distributions'!$E$10,MATCH($C15,'Efficiency Distributions'!$C$9:$C$87,0)+RIGHT($E25),0))\n/SUM(K$10:K$11)","v":0},{"$f":"IF(INDEX(PC_MAPPING,RIGHT($C15,1),MATCH($E$2,'Data by Building Type'!$D$22:$F$22,0))=\"Yes\",1,0)*\n(L$10*OFFSET('Efficiency Distributions'!$D$10,MATCH($C15,'Efficiency Distributions'!$C$9:$C$87,0)+RIGHT($E25),0)\n+L$11*OFFSET('Efficiency Distributions'!$E$10,MATCH($C15,'Efficiency Distributions'!$C$9:$C$87,0)+RIGHT($E25),0))\n/SUM(L$10:L$11)","v":0},{"$f":"IF(INDEX(PC_MAPPING,RIGHT($C15,1),MATCH($E$2,'Data by Building Type'!$D$22:$F$22,0))=\"Yes\",1,0)*\n(M$10*OFFSET('Efficiency Distributions'!$D$10,MATCH($C15,'Efficiency Distributions'!$C$9:$C$87,0)+RIGHT($E25),0)\n+M$11*OFFSET('Efficiency Distributions'!$E$10,MATCH($C15,'Efficiency Distributions'!$C$9:$C$87,0)+RIGHT($E25),0))\n/SUM(M$10:M$11)","v":0},{"$f":"IF(INDEX(PC_MAPPING,RIGHT($C15,1),MATCH($E$2,'Data by Building Type'!$D$22:$F$22,0))=\"Yes\",1,0)*\n(N$10*OFFSET('Efficiency Distributions'!$D$10,MATCH($C15,'Efficiency Distributions'!$C$9:$C$87,0)+RIGHT($E25),0)\n+N$11*OFFSET('Efficiency Distributions'!$E$10,MATCH($C15,'Efficiency Distributions'!$C$9:$C$87,0)+RIGHT($E25),0))\n/SUM(N$10:N$11)","v":0},{"$f":"IF(INDEX(PC_MAPPING,RIGHT($C15,1),MATCH($E$2,'Data by Building Type'!$D$22:$F$22,0))=\"Yes\",1,0)*\n(O$10*OFFSET('Efficiency Distributions'!$D$10,MATCH($C15,'Efficiency Distributions'!$C$9:$C$87,0)+RIGHT($E25),0)\n+O$11*OFFSET('Efficiency Distributions'!$E$10,MATCH($C15,'Efficiency Distributions'!$C$9:$C$87,0)+RIGHT($E25),0))\n/SUM(O$10:O$11)","v":0},{"$f":"IF(INDEX(PC_MAPPING,RIGHT($C15,1),MATCH($E$2,'Data by Building Type'!$D$22:$F$22,0))=\"Yes\",1,0)*\n(P$10*OFFSET('Efficiency Distributions'!$D$10,MATCH($C15,'Efficiency Distributions'!$C$9:$C$87,0)+RIGHT($E25),0)\n+P$11*OFFSET('Efficiency Distributions'!$E$10,MATCH($C15,'Efficiency Distributions'!$C$9:$C$87,0)+RIGHT($E25),0))\n/SUM(P$10:P$11)","v":0},{"$f":"IF(INDEX(PC_MAPPING,RIGHT($C15,1),MATCH($E$2,'Data by Building Type'!$D$22:$F$22,0))=\"Yes\",1,0)*\n(Q$10*OFFSET('Efficiency Distributions'!$D$10,MATCH($C15,'Efficiency Distributions'!$C$9:$C$87,0)+RIGHT($E25),0)\n+Q$11*OFFSET('Efficiency Distributions'!$E$10,MATCH($C15,'Efficiency Distributions'!$C$9:$C$87,0)+RIGHT($E25),0))\n/SUM(Q$10:Q$11)","v":0},{"$f":"IF(INDEX(PC_MAPPING,RIGHT($C15,1),MATCH($E$2,'Data by Building Type'!$D$22:$F$22,0))=\"Yes\",1,0)*\n(R$10*OFFSET('Efficiency Distributions'!$D$10,MATCH($C15,'Efficiency Distributions'!$C$9:$C$87,0)+RIGHT($E25),0)\n+R$11*OFFSET('Efficiency Distributions'!$E$10,MATCH($C15,'Efficiency Distributions'!$C$9:$C$87,0)+RIGHT($E25),0))\n/SUM(R$10:R$11)","v":0},{"$f":"IF(INDEX(PC_MAPPING,RIGHT($C15,1),MATCH($E$2,'Data by Building Type'!$D$22:$F$22,0))=\"Yes\",1,0)*\n(S$10*OFFSET('Efficiency Distributions'!$D$10,MATCH($C15,'Efficiency Distributions'!$C$9:$C$87,0)+RIGHT($E25),0)\n+S$11*OFFSET('Efficiency Distributions'!$E$10,MATCH($C15,'Efficiency Distributions'!$C$9:$C$87,0)+RIGHT($E25),0))\n/SUM(S$10:S$11)","v":0},{"$f":"IF(INDEX(PC_MAPPING,RIGHT($C15,1),MATCH($E$2,'Data by Building Type'!$D$22:$F$22,0))=\"Yes\",1,0)*\n(T$10*OFFSET('Efficiency Distributions'!$D$10,MATCH($C15,'Efficiency Distributions'!$C$9:$C$87,0)+RIGHT($E25),0)\n+T$11*OFFSET('Efficiency Distributions'!$E$10,MATCH($C15,'Efficiency Distributions'!$C$9:$C$87,0)+RIGHT($E25),0))\n/SUM(T$10:T$11)","v":0},{"$f":"IF(INDEX(PC_MAPPING,RIGHT($C15,1),MATCH($E$2,'Data by Building Type'!$D$22:$F$22,0))=\"Yes\",1,0)*\n(U$10*OFFSET('Efficiency Distributions'!$D$10,MATCH($C15,'Efficiency Distributions'!$C$9:$C$87,0)+RIGHT($E25),0)\n+U$11*OFFSET('Efficiency Distributions'!$E$10,MATCH($C15,'Efficiency Distributions'!$C$9:$C$87,0)+RIGHT($E25),0))\n/SUM(U$10:U$11)","v":0},{"$f":"IF(INDEX(PC_MAPPING,RIGHT($C15,1),MATCH($E$2,'Data by Building Type'!$D$22:$F$22,0))=\"Yes\",1,0)*\n(V$10*OFFSET('Efficiency Distributions'!$D$10,MATCH($C15,'Efficiency Distributions'!$C$9:$C$87,0)+RIGHT($E25),0)\n+V$11*OFFSET('Efficiency Distributions'!$E$10,MATCH($C15,'Efficiency Distributions'!$C$9:$C$87,0)+RIGHT($E25),0))\n/SUM(V$10:V$11)","v":0},{"$f":"IF(INDEX(PC_MAPPING,RIGHT($C15,1),MATCH($E$2,'Data by Building Type'!$D$22:$F$22,0))=\"Yes\",1,0)*\n(W$10*OFFSET('Efficiency Distributions'!$D$10,MATCH($C15,'Efficiency Distributions'!$C$9:$C$87,0)+RIGHT($E25),0)\n+W$11*OFFSET('Efficiency Distributions'!$E$10,MATCH($C15,'Efficiency Distributions'!$C$9:$C$87,0)+RIGHT($E25),0))\n/SUM(W$10:W$11)","v":0},{"$f":"IF(INDEX(PC_MAPPING,RIGHT($C15,1),MATCH($E$2,'Data by Building Type'!$D$22:$F$22,0))=\"Yes\",1,0)*\n(X$10*OFFSET('Efficiency Distributions'!$D$10,MATCH($C15,'Efficiency Distributions'!$C$9:$C$87,0)+RIGHT($E25),0)\n+X$11*OFFSET('Efficiency Distributions'!$E$10,MATCH($C15,'Efficiency Distributions'!$C$9:$C$87,0)+RIGHT($E25),0))\n/SUM(X$10:X$11)","v":0},{"$f":"IF(INDEX(PC_MAPPING,RIGHT($C15,1),MATCH($E$2,'Data by Building Type'!$D$22:$F$22,0))=\"Yes\",1,0)*\n(Y$10*OFFSET('Efficiency Distributions'!$D$10,MATCH($C15,'Efficiency Distributions'!$C$9:$C$87,0)+RIGHT($E25),0)\n+Y$11*OFFSET('Efficiency Distributions'!$E$10,MATCH($C15,'Efficiency Distributions'!$C$9:$C$87,0)+RIGHT($E25),0))\n/SUM(Y$10:Y$11)","v":0},{"$f":"IF(INDEX(PC_MAPPING,RIGHT($C15,1),MATCH($E$2,'Data by Building Type'!$D$22:$F$22,0))=\"Yes\",1,0)*\n(Z$10*OFFSET('Efficiency Distributions'!$D$10,MATCH($C15,'Efficiency Distributions'!$C$9:$C$87,0)+RIGHT($E25),0)\n+Z$11*OFFSET('Efficiency Distributions'!$E$10,MATCH($C15,'Efficiency Distributions'!$C$9:$C$87,0)+RIGHT($E25),0))\n/SUM(Z$10:Z$11)","v":0},{"$f":"IF(INDEX(PC_MAPPING,RIGHT($C15,1),MATCH($E$2,'Data by Building Type'!$D$22:$F$22,0))=\"Yes\",1,0)*\n(AA$10*OFFSET('Efficiency Distributions'!$D$10,MATCH($C15,'Efficiency Distributions'!$C$9:$C$87,0)+RIGHT($E25),0)\n+AA$11*OFFSET('Efficiency Distributions'!$E$10,MATCH($C15,'Efficiency Distributions'!$C$9:$C$87,0)+RIGHT($E25),0))\n/SUM(AA$10:AA$11)","v":0},{"$f":"IF(INDEX(PC_MAPPING,RIGHT($C15,1),MATCH($E$2,'Data by Building Type'!$D$22:$F$22,0))=\"Yes\",1,0)*\n(AB$10*OFFSET('Efficiency Distributions'!$D$10,MATCH($C15,'Efficiency Distributions'!$C$9:$C$87,0)+RIGHT($E25),0)\n+AB$11*OFFSET('Efficiency Distributions'!$E$10,MATCH($C15,'Efficiency Distributions'!$C$9:$C$87,0)+RIGHT($E25),0))\n/SUM(AB$10:AB$11)","v":0},{"$f":"IF(INDEX(PC_MAPPING,RIGHT($C15,1),MATCH($E$2,'Data by Building Type'!$D$22:$F$22,0))=\"Yes\",1,0)*\n(AC$10*OFFSET('Efficiency Distributions'!$D$10,MATCH($C15,'Efficiency Distributions'!$C$9:$C$87,0)+RIGHT($E25),0)\n+AC$11*OFFSET('Efficiency Distributions'!$E$10,MATCH($C15,'Efficiency Distributions'!$C$9:$C$87,0)+RIGHT($E25),0))\n/SUM(AC$10:AC$11)","v":0},{"$f":"IF(INDEX(PC_MAPPING,RIGHT($C15,1),MATCH($E$2,'Data by Building Type'!$D$22:$F$22,0))=\"Yes\",1,0)*\n(AD$10*OFFSET('Efficiency Distributions'!$D$10,MATCH($C15,'Efficiency Distributions'!$C$9:$C$87,0)+RIGHT($E25),0)\n+AD$11*OFFSET('Efficiency Distributions'!$E$10,MATCH($C15,'Efficiency Distributions'!$C$9:$C$87,0)+RIGHT($E25),0))\n/SUM(AD$10:AD$11)","v":0},{"$f":"IF(INDEX(PC_MAPPING,RIGHT($C15,1),MATCH($E$2,'Data by Building Type'!$D$22:$F$22,0))=\"Yes\",1,0)*\n(AE$10*OFFSET('Efficiency Distributions'!$D$10,MATCH($C15,'Efficiency Distributions'!$C$9:$C$87,0)+RIGHT($E25),0)\n+AE$11*OFFSET('Efficiency Distributions'!$E$10,MATCH($C15,'Efficiency Distributions'!$C$9:$C$87,0)+RIGHT($E25),0))\n/SUM(AE$10:AE$11)","v":0},{"$f":"IF(INDEX(PC_MAPPING,RIGHT($C15,1),MATCH($E$2,'Data by Building Type'!$D$22:$F$22,0))=\"Yes\",1,0)*\n(AF$10*OFFSET('Efficiency Distributions'!$D$10,MATCH($C15,'Efficiency Distributions'!$C$9:$C$87,0)+RIGHT($E25),0)\n+AF$11*OFFSET('Efficiency Distributions'!$E$10,MATCH($C15,'Efficiency Distributions'!$C$9:$C$87,0)+RIGHT($E25),0))\n/SUM(AF$10:AF$11)","v":0},{"$f":"IF(INDEX(PC_MAPPING,RIGHT($C15,1),MATCH($E$2,'Data by Building Type'!$D$22:$F$22,0))=\"Yes\",1,0)*\n(AG$10*OFFSET('Efficiency Distributions'!$D$10,MATCH($C15,'Efficiency Distributions'!$C$9:$C$87,0)+RIGHT($E25),0)\n+AG$11*OFFSET('Efficiency Distributions'!$E$10,MATCH($C15,'Efficiency Distributions'!$C$9:$C$87,0)+RIGHT($E25),0))\n/SUM(AG$10:AG$11)","v":0},{"$f":"IF(INDEX(PC_MAPPING,RIGHT($C15,1),MATCH($E$2,'Data by Building Type'!$D$22:$F$22,0))=\"Yes\",1,0)*\n(AH$10*OFFSET('Efficiency Distributions'!$D$10,MATCH($C15,'Efficiency Distributions'!$C$9:$C$87,0)+RIGHT($E25),0)\n+AH$11*OFFSET('Efficiency Distributions'!$E$10,MATCH($C15,'Efficiency Distributions'!$C$9:$C$87,0)+RIGHT($E25),0))\n/SUM(AH$10:AH$11)","v":0},{"$f":"IF(INDEX(PC_MAPPING,RIGHT($C15,1),MATCH($E$2,'Data by Building Type'!$D$22:$F$22,0))=\"Yes\",1,0)*\n(AI$10*OFFSET('Efficiency Distributions'!$D$10,MATCH($C15,'Efficiency Distributions'!$C$9:$C$87,0)+RIGHT($E25),0)\n+AI$11*OFFSET('Efficiency Distributions'!$E$10,MATCH($C15,'Efficiency Distributions'!$C$9:$C$87,0)+RIGHT($E25),0))\n/SUM(AI$10:AI$11)","v":0},{"$f":"IF(INDEX(PC_MAPPING,RIGHT($C15,1),MATCH($E$2,'Data by Building Type'!$D$22:$F$22,0))=\"Yes\",1,0)*\n(AJ$10*OFFSET('Efficiency Distributions'!$D$10,MATCH($C15,'Efficiency Distributions'!$C$9:$C$87,0)+RIGHT($E25),0)\n+AJ$11*OFFSET('Efficiency Distributions'!$E$10,MATCH($C15,'Efficiency Distributions'!$C$9:$C$87,0)+RIGHT($E25),0))\n/SUM(AJ$10:AJ$11)","v":0},{"$f":"IF(INDEX(PC_MAPPING,RIGHT($C15,1),MATCH($E$2,'Data by Building Type'!$D$22:$F$22,0))=\"Yes\",1,0)*\n(AK$10*OFFSET('Efficiency Distributions'!$D$10,MATCH($C15,'Efficiency Distributions'!$C$9:$C$87,0)+RIGHT($E25),0)\n+AK$11*OFFSET('Efficiency Distributions'!$E$10,MATCH($C15,'Efficiency Distributions'!$C$9:$C$87,0)+RIGHT($E25),0))\n/SUM(AK$10:AK$11)","v":0},{"$f":"IF(INDEX(PC_MAPPING,RIGHT($C15,1),MATCH($E$2,'Data by Building Type'!$D$22:$F$22,0))=\"Yes\",1,0)*\n(AL$10*OFFSET('Efficiency Distributions'!$D$10,MATCH($C15,'Efficiency Distributions'!$C$9:$C$87,0)+RIGHT($E25),0)\n+AL$11*OFFSET('Efficiency Distributions'!$E$10,MATCH($C15,'Efficiency Distributions'!$C$9:$C$87,0)+RIGHT($E25),0))\n/SUM(AL$10:AL$11)","v":0},{"$f":"IF(INDEX(PC_MAPPING,RIGHT($C15,1),MATCH($E$2,'Data by Building Type'!$D$22:$F$22,0))=\"Yes\",1,0)*\n(AM$10*OFFSET('Efficiency Distributions'!$D$10,MATCH($C15,'Efficiency Distributions'!$C$9:$C$87,0)+RIGHT($E25),0)\n+AM$11*OFFSET('Efficiency Distributions'!$E$10,MATCH($C15,'Efficiency Distributions'!$C$9:$C$87,0)+RIGHT($E25),0))\n/SUM(AM$10:AM$11)","v":0},{"$f":"IF(INDEX(PC_MAPPING,RIGHT($C15,1),MATCH($E$2,'Data by Building Type'!$D$22:$F$22,0))=\"Yes\",1,0)*\n(AN$10*OFFSET('Efficiency Distributions'!$D$10,MATCH($C15,'Efficiency Distributions'!$C$9:$C$87,0)+RIGHT($E25),0)\n+AN$11*OFFSET('Efficiency Distributions'!$E$10,MATCH($C15,'Efficiency Distributions'!$C$9:$C$87,0)+RIGHT($E25),0))\n/SUM(AN$10:AN$11)","v":0},{"$f":"IF(INDEX(PC_MAPPING,RIGHT($C15,1),MATCH($E$2,'Data by Building Type'!$D$22:$F$22,0))=\"Yes\",1,0)*\n(AO$10*OFFSET('Efficiency Distributions'!$D$10,MATCH($C15,'Efficiency Distributions'!$C$9:$C$87,0)+RIGHT($E25),0)\n+AO$11*OFFSET('Efficiency Distributions'!$E$10,MATCH($C15,'Efficiency Distributions'!$C$9:$C$87,0)+RIGHT($E25),0))\n/SUM(AO$10:AO$11)","v":0},{"$f":"IF(INDEX(PC_MAPPING,RIGHT($C15,1),MATCH($E$2,'Data by Building Type'!$D$22:$F$22,0))=\"Yes\",1,0)*\n(AP$10*OFFSET('Efficiency Distributions'!$D$10,MATCH($C15,'Efficiency Distributions'!$C$9:$C$87,0)+RIGHT($E25),0)\n+AP$11*OFFSET('Efficiency Distributions'!$E$10,MATCH($C15,'Efficiency Distributions'!$C$9:$C$87,0)+RIGHT($E25),0))\n/SUM(AP$10:AP$11)","v":0},{"$f":"IF(INDEX(PC_MAPPING,RIGHT($C15,1),MATCH($E$2,'Data by Building Type'!$D$22:$F$22,0))=\"Yes\",1,0)*\n(AQ$10*OFFSET('Efficiency Distributions'!$D$10,MATCH($C15,'Efficiency Distributions'!$C$9:$C$87,0)+RIGHT($E25),0)\n+AQ$11*OFFSET('Efficiency Distributions'!$E$10,MATCH($C15,'Efficiency Distributions'!$C$9:$C$87,0)+RIGHT($E25),0))\n/SUM(AQ$10:AQ$11)","v":0},{"$f":"IF(INDEX(PC_MAPPING,RIGHT($C15,1),MATCH($E$2,'Data by Building Type'!$D$22:$F$22,0))=\"Yes\",1,0)*\n(AR$10*OFFSET('Efficiency Distributions'!$D$10,MATCH($C15,'Efficiency Distributions'!$C$9:$C$87,0)+RIGHT($E25),0)\n+AR$11*OFFSET('Efficiency Distributions'!$E$10,MATCH($C15,'Efficiency Distributions'!$C$9:$C$87,0)+RIGHT($E25),0))\n/SUM(AR$10:AR$11)","v":0},{"$f":"IF(INDEX(PC_MAPPING,RIGHT($C15,1),MATCH($E$2,'Data by Building Type'!$D$22:$F$22,0))=\"Yes\",1,0)*\n(AS$10*OFFSET('Efficiency Distributions'!$D$10,MATCH($C15,'Efficiency Distributions'!$C$9:$C$87,0)+RIGHT($E25),0)\n+AS$11*OFFSET('Efficiency Distributions'!$E$10,MATCH($C15,'Efficiency Distributions'!$C$9:$C$87,0)+RIGHT($E25),0))\n/SUM(AS$10:AS$11)","v":0},{"$f":"IF(INDEX(PC_MAPPING,RIGHT($C15,1),MATCH($E$2,'Data by Building Type'!$D$22:$F$22,0))=\"Yes\",1,0)*\n(AT$10*OFFSET('Efficiency Distributions'!$D$10,MATCH($C15,'Efficiency Distributions'!$C$9:$C$87,0)+RIGHT($E25),0)\n+AT$11*OFFSET('Efficiency Distributions'!$E$10,MATCH($C15,'Efficiency Distributions'!$C$9:$C$87,0)+RIGHT($E25),0))\n/SUM(AT$10:AT$11)","v":0},{"$f":"IF(INDEX(PC_MAPPING,RIGHT($C15,1),MATCH($E$2,'Data by Building Type'!$D$22:$F$22,0))=\"Yes\",1,0)*\n(AU$10*OFFSET('Efficiency Distributions'!$D$10,MATCH($C15,'Efficiency Distributions'!$C$9:$C$87,0)+RIGHT($E25),0)\n+AU$11*OFFSET('Efficiency Distributions'!$E$10,MATCH($C15,'Efficiency Distributions'!$C$9:$C$87,0)+RIGHT($E25),0))\n/SUM(AU$10:AU$11)","v":0},{"$f":"IF(INDEX(PC_MAPPING,RIGHT($C15,1),MATCH($E$2,'Data by Building Type'!$D$22:$F$22,0))=\"Yes\",1,0)*\n(AV$10*OFFSET('Efficiency Distributions'!$D$10,MATCH($C15,'Efficiency Distributions'!$C$9:$C$87,0)+RIGHT($E25),0)\n+AV$11*OFFSET('Efficiency Distributions'!$E$10,MATCH($C15,'Efficiency Distributions'!$C$9:$C$87,0)+RIGHT($E25),0))\n/SUM(AV$10:AV$11)","v":0},{"$f":"IF(INDEX(PC_MAPPING,RIGHT($C15,1),MATCH($E$2,'Data by Building Type'!$D$22:$F$22,0))=\"Yes\",1,0)*\n(AW$10*OFFSET('Efficiency Distributions'!$D$10,MATCH($C15,'Efficiency Distributions'!$C$9:$C$87,0)+RIGHT($E25),0)\n+AW$11*OFFSET('Efficiency Distributions'!$E$10,MATCH($C15,'Efficiency Distributions'!$C$9:$C$87,0)+RIGHT($E25),0))\n/SUM(AW$10:AW$11)","v":0},{"$f":"IF(INDEX(PC_MAPPING,RIGHT($C15,1),MATCH($E$2,'Data by Building Type'!$D$22:$F$22,0))=\"Yes\",1,0)*\n(AX$10*OFFSET('Efficiency Distributions'!$D$10,MATCH($C15,'Efficiency Distributions'!$C$9:$C$87,0)+RIGHT($E25),0)\n+AX$11*OFFSET('Efficiency Distributions'!$E$10,MATCH($C15,'Efficiency Distributions'!$C$9:$C$87,0)+RIGHT($E25),0))\n/SUM(AX$10:AX$11)","v":0},{"$f":"IF(INDEX(PC_MAPPING,RIGHT($C15,1),MATCH($E$2,'Data by Building Type'!$D$22:$F$22,0))=\"Yes\",1,0)*\n(AY$10*OFFSET('Efficiency Distributions'!$D$10,MATCH($C15,'Efficiency Distributions'!$C$9:$C$87,0)+RIGHT($E25),0)\n+AY$11*OFFSET('Efficiency Distributions'!$E$10,MATCH($C15,'Efficiency Distributions'!$C$9:$C$87,0)+RIGHT($E25),0))\n/SUM(AY$10:AY$11)","v":0},{"$f":"IF(INDEX(PC_MAPPING,RIGHT($C15,1),MATCH($E$2,'Data by Building Type'!$D$22:$F$22,0))=\"Yes\",1,0)*\n(AZ$10*OFFSET('Efficiency Distributions'!$D$10,MATCH($C15,'Efficiency Distributions'!$C$9:$C$87,0)+RIGHT($E25),0)\n+AZ$11*OFFSET('Efficiency Distributions'!$E$10,MATCH($C15,'Efficiency Distributions'!$C$9:$C$87,0)+RIGHT($E25),0))\n/SUM(AZ$10:AZ$11)","v":0},{"$f":"IF(INDEX(PC_MAPPING,RIGHT($C15,1),MATCH($E$2,'Data by Building Type'!$D$22:$F$22,0))=\"Yes\",1,0)*\n(BA$10*OFFSET('Efficiency Distributions'!$D$10,MATCH($C15,'Efficiency Distributions'!$C$9:$C$87,0)+RIGHT($E25),0)\n+BA$11*OFFSET('Efficiency Distributions'!$E$10,MATCH($C15,'Efficiency Distributions'!$C$9:$C$87,0)+RIGHT($E25),0))\n/SUM(BA$10:BA$11)","v":0},{"$f":"IF(INDEX(PC_MAPPING,RIGHT($C15,1),MATCH($E$2,'Data by Building Type'!$D$22:$F$22,0))=\"Yes\",1,0)*\n(BB$10*OFFSET('Efficiency Distributions'!$D$10,MATCH($C15,'Efficiency Distributions'!$C$9:$C$87,0)+RIGHT($E25),0)\n+BB$11*OFFSET('Efficiency Distributions'!$E$10,MATCH($C15,'Efficiency Distributions'!$C$9:$C$87,0)+RIGHT($E25),0))\n/SUM(BB$10:BB$11)","v":0},{"$f":"IF(INDEX(PC_MAPPING,RIGHT($C15,1),MATCH($E$2,'Data by Building Type'!$D$22:$F$22,0))=\"Yes\",1,0)*\n(BC$10*OFFSET('Efficiency Distributions'!$D$10,MATCH($C15,'Efficiency Distributions'!$C$9:$C$87,0)+RIGHT($E25),0)\n+BC$11*OFFSET('Efficiency Distributions'!$E$10,MATCH($C15,'Efficiency Distributions'!$C$9:$C$87,0)+RIGHT($E25),0))\n/SUM(BC$10:BC$11)","v":0},{"$f":"IF(INDEX(PC_MAPPING,RIGHT($C15,1),MATCH($E$2,'Data by Building Type'!$D$22:$F$22,0))=\"Yes\",1,0)*\n(BD$10*OFFSET('Efficiency Distributions'!$D$10,MATCH($C15,'Efficiency Distributions'!$C$9:$C$87,0)+RIGHT($E25),0)\n+BD$11*OFFSET('Efficiency Distributions'!$E$10,MATCH($C15,'Efficiency Distributions'!$C$9:$C$87,0)+RIGHT($E25),0))\n/SUM(BD$10:BD$11)","v":0},{"$f":"IF(INDEX(PC_MAPPING,RIGHT($C15,1),MATCH($E$2,'Data by Building Type'!$D$22:$F$22,0))=\"Yes\",1,0)*\n(BE$10*OFFSET('Efficiency Distributions'!$D$10,MATCH($C15,'Efficiency Distributions'!$C$9:$C$87,0)+RIGHT($E25),0)\n+BE$11*OFFSET('Efficiency Distributions'!$E$10,MATCH($C15,'Efficiency Distributions'!$C$9:$C$87,0)+RIGHT($E25),0))\n/SUM(BE$10:BE$11)","v":0},{"$f":"IF(INDEX(PC_MAPPING,RIGHT($C15,1),MATCH($E$2,'Data by Building Type'!$D$22:$F$22,0))=\"Yes\",1,0)*\n(BF$10*OFFSET('Efficiency Distributions'!$D$10,MATCH($C15,'Efficiency Distributions'!$C$9:$C$87,0)+RIGHT($E25),0)\n+BF$11*OFFSET('Efficiency Distributions'!$E$10,MATCH($C15,'Efficiency Distributions'!$C$9:$C$87,0)+RIGHT($E25),0))\n/SUM(BF$10:BF$11)","v":0},{"$f":"IF(INDEX(PC_MAPPING,RIGHT($C15,1),MATCH($E$2,'Data by Building Type'!$D$22:$F$22,0))=\"Yes\",1,0)*\n(BG$10*OFFSET('Efficiency Distributions'!$D$10,MATCH($C15,'Efficiency Distributions'!$C$9:$C$87,0)+RIGHT($E25),0)\n+BG$11*OFFSET('Efficiency Distributions'!$E$10,MATCH($C15,'Efficiency Distributions'!$C$9:$C$87,0)+RIGHT($E25),0))\n/SUM(BG$10:BG$11)","v":0}]
[null,null,null,null,"TOTAL",{"$f":"SUM(F19:F25)","v":1},{"$f":"SUM(G19:G25)","v":1},1,1,1,1,1,1,1,1,0.99999999999999989,1,0.99999999999999989,0.99999999999999989,0.99999999999999989,0.99999999999999989,0.99999999999999989,0.99999999999999989,0.99999999999999989,0.99999999999999989,0.99999999999999989,0.99999999999999989,0.99999999999999989,0.99999999999999989,0.99999999999999989,0.99999999999999989,0.99999999999999989,0.99999999999999989,0.99999999999999989,0.99999999999999989,0.99999999999999989,1,1,1,1,1,0.99999999999999989,1,1,1,0.99999999999999989,1,1,0.99999999999999989,1,1,0.99999999999999978,1,0.99999999999999989,1,1,1,1,0.99999999999999978]
[]
[null,null,null,"POST-Case"]
[null,null,null,null,"Efficiency Level",1981,{"$f":"F29+1","v":1982},{"$f":"G29+1","v":1983},1984,1985,{"$f":"J29+1","v":1986},1987,1988,1989,1990,1991,1992,1993,1994,1995,1996,1997,1998,1999,2000,2001,2002,2003,2004,2005,2006,2007,2008,2009,2010,2011,2012,2013,2014,2015,2016,2017,2018,2019,2020,2021,2022,2023,2024,2025,2026,2027,2028,2029,2030,2031,2032,2033,2034]
[null,null,null,null,"EL0",{"$f":"IF(F$29<STANDARD_YEAR,F19,\nIF(RIGHT($E30,1)>RIGHT(INDEX(STANDARD_LEVELS,1,MID($C15,4,1)),1),F19,\nIF(RIGHT($E30,1)<RIGHT(INDEX(STANDARD_LEVELS,1,MID($C15,4,1)),1),0,\nIF(RIGHT($E30,1)=RIGHT(INDEX(STANDARD_LEVELS,1,MID($C15,4,1)),1),SUM(OFFSET(F19,-(RIGHT($E30,1)),0,RIGHT($E30,1)+1,1)),\"ERROR\"))))","v":0.33258005003368746},{"$f":"IF(G$29<STANDARD_YEAR,G19,\nIF(RIGHT($E30,1)>RIGHT(INDEX(STANDARD_LEVELS,1,MID($C15,4,1)),1),G19,\nIF(RIGHT($E30,1)<RIGHT(INDEX(STANDARD_LEVELS,1,MID($C15,4,1)),1),0,\nIF(RIGHT($E30,1)=RIGHT(INDEX(STANDARD_LEVELS,1,MID($C15,4,1)),1),SUM(OFFSET(G19,-(RIGHT($E30,1)),0,RIGHT($E30,1)+1,1)),\"ERROR\"))))","v":0.32037556731971373},0.32606501252832004,0.34257692583968019,0.36147057730021792,0.35614646582228909,0.36108479194350829,0.37099928005518951,0.3791124548316866,0.37153366048262859,0.33817796803968936,0.33917571595822849,0.27694754619127304,0.27694754619127304,0.27694754619127304,0.27694754619127304,0.27694754619127304,0.27694754619127304,0.27694754619127304,0.27694754619127304,0.27694754619127304,0.27694754619127304,0.27694754619127304,0.27694754619127304,0.27694754619127304,0.27694754619127304,0.27694754619127304,0.27694754619127304,0.27694754619127304,0.27694754619127304,0.27694754619127304,0.30424023177516202,0.30533640717831784,0.33128269369413155,0.32995903663228721,0.33157179325675362,0.33487935963093429,0.33823927235204432,0,0,0,0,0,0,0,0,0,0,0,0,0,0,0,0]
[null,null,null,null,"EL1",{"$f":"IF(F$29<STANDARD_YEAR,F20,\nIF(RIGHT($E31,1)>RIGHT(INDEX(STANDARD_LEVELS,1,MID($C15,4,1)),1),F20,\nIF(RIGHT($E31,1)<RIGHT(INDEX(STANDARD_LEVELS,1,MID($C15,4,1)),1),0,\nIF(RIGHT($E31,1)=RIGHT(INDEX(STANDARD_LEVELS,1,MID($C15,4,1)),1),SUM(OFFSET(F20,-(RIGHT($E31,1)),0,RIGHT($E31,1)+1,1)),\"ERROR\"))))","v":0.42867141870083819},{"$f":"IF(G$29<STANDARD_YEAR,G20,\nIF(RIGHT($E31,1)>RIGHT(INDEX(STANDARD_LEVELS,1,MID($C15,4,1)),1),G20,\nIF(RIGHT($E31,1)<RIGHT(INDEX(STANDARD_LEVELS,1,MID($C15,4,1)),1),0,\nIF(RIGHT($E31,1)=RIGHT(INDEX(STANDARD_LEVELS,1,MID($C15,4,1)),1),SUM(OFFSET(G20,-(RIGHT($E31,1)),0,RIGHT($E31,1)+1,1)),\"ERROR\"))))","v":0.42576465380465822},0.42711971980775731,0.43105239365449671,0.43555233061317411,0.43428427684063092,0.43546044737988804,0.43782179989945291,0.43975413019067394,0.43794907430379187,0.43000468549574372,0.43024232101810184,0.41542131928690951,0.41542131928690951,0.41542131928690951,0.41542131928690951,0.41542131928690951,0.41542131928690956,0.41542131928690951,0.41542131928690951,0.41542131928690951,0.41542131928690945,0.41542131928690951,0.41542131928690956,0.41542131928690951,0.41542131928690951,0.41542131928690951,0.41542131928690951,0.41542131928690945,0.41542131928690951,0.41542131928690951,0.42192167020197868,0.42218274838584152,0.42836242487012544,0.42804716694628542,0.4284312802636579,0.42921904964754548,0.43001928646059523,0,0,0,0,0,0,0,0,0,0,0,0,0,0,0,0]
[null,null,null,null,"EL2",{"$f":"IF(F$29<STANDARD_YEAR,F21,\nIF(RIGHT($E32,1)>RIGHT(INDEX(STANDARD_LEVELS,1,MID($C15,4,1)),1),F21,\nIF(RIGHT($E32,1)<RIGHT(INDEX(STANDARD_LEVELS,1,MID($C15,4,1)),1),0,\nIF(RIGHT($E32,1)=RIGHT(INDEX(STANDARD_LEVELS,1,MID($C15,4,1)),1),SUM(OFFSET(F21,-(RIGHT($E32,1)),0,RIGHT($E32,1)+1,1)),\"ERROR\"))))","v":0},{"$f":"IF(G$29<STANDARD_YEAR,G21,\nIF(RIGHT($E32,1)>RIGHT(INDEX(STANDARD_LEVELS,1,MID($C15,4,1)),1),G21,\nIF(RIGHT($E32,1)<RIGHT(INDEX(STANDARD_LEVELS,1,MID($C15,4,1)),1),0,\nIF(RIGHT($E32,1)=RIGHT(INDEX(STANDARD_LEVELS,1,MID($C15,4,1)),1),SUM(OFFSET(G21,-(RIGHT($E32,1)),0,RIGHT($E32,1)+1,1)),\"ERROR\"))))","v":0},0,0,0,0,0,0,0,0,0,0,0,0,0,0,0,0,0,0,0,0,0,0,0,0,0,0,0,0,0,0,0,0,0,0,0,0,0,0,0,0,0,0,0,0,0,0,0,0,0,0,0,0]
[null,null,null,null,"EL3",{"$f":"IF(F$29<STANDARD_YEAR,F22,\nIF(RIGHT($E33,1)>RIGHT(INDEX(STANDARD_LEVELS,1,MID($C15,4,1)),1),F22,\nIF(RIGHT($E33,1)<RIGHT(INDEX(STANDARD_LEVELS,1,MID($C15,4,1)),1),0,\nIF(RIGHT($E33,1)=RIGHT(INDEX(STANDARD_LEVELS,1,MID($C15,4,1)),1),SUM(OFFSET(F22,-(RIGHT($E33,1)),0,RIGHT($E33,1)+1,1)),\"ERROR\"))))","v":0.10206044084630968},{"$f":"IF(G$29<STANDARD_YEAR,G22,\nIF(RIGHT($E33,1)>RIGHT(INDEX(STANDARD_LEVELS,1,MID($C15,4,1)),1),G22,\nIF(RIGHT($E33,1)<RIGHT(INDEX(STANDARD_LEVELS,1,MID($C15,4,1)),1),0,\nIF(RIGHT($E33,1)=RIGHT(INDEX(STANDARD_LEVELS,1,MID($C15,4,1)),1),SUM(OFFSET(G22,-(RIGHT($E33,1)),0,RIGHT($E33,1)+1,1)),\"ERROR\"))))","v":0.10852021081706238},0.10550881671129518,9.6769145865084699E-2,8.6768833258397321E-2,8.9586858098293726E-2,8.6973027464807701E-2,8.1725339866717719E-2,7.743107815838024E-2,8.1442495053133265E-2,9.9097491618440836E-2,9.856938877347711E-2,0.13150643918489904,0.13150643918489904,0.13150643918489904,0.13150643918489904,0.13150643918489904,0.13150643918489904,0.13150643918489904,0.13150643918489904,0.13150643918489904,0.13150643918489904,0.13150643918489904,0.13150643918489904,0.13150643918489904,0.13150643918489904,0.13150643918489904,0.13150643918489904,0.13150643918489904,0.13150643918489904,0.13150643918489904,0.11706056098687115,0.1164803609802067,0.1027471248885619,0.10344772976793842,0.10259410597600725,0.10084342809469565,9.9065043561009036E-2,0,0,0,0,0,0,0,0,0,0,0,0,0,0,0,0]
[null,null,null,null,"EL4",{"$f":"IF(F$29<STANDARD_YEAR,F23,\nIF(RIGHT($E34,1)>RIGHT(INDEX(STANDARD_LEVELS,1,MID($C15,4,1)),1),F23,\nIF(RIGHT($E34,1)<RIGHT(INDEX(STANDARD_LEVELS,1,MID($C15,4,1)),1),0,\nIF(RIGHT($E34,1)=RIGHT(INDEX(STANDARD_LEVELS,1,MID($C15,4,1)),1),SUM(OFFSET(F23,-(RIGHT($E34,1)),0,RIGHT($E34,1)+1,1)),\"ERROR\"))))","v":2.5515110211577419E-2},{"$f":"IF(G$29<STANDARD_YEAR,G23,\nIF(RIGHT($E34,1)>RIGHT(INDEX(STANDARD_LEVELS,1,MID($C15,4,1)),1),G23,\nIF(RIGHT($E34,1)<RIGHT(INDEX(STANDARD_LEVELS,1,MID($C15,4,1)),1),0,\nIF(RIGHT($E34,1)=RIGHT(INDEX(STANDARD_LEVELS,1,MID($C15,4,1)),1),SUM(OFFSET(G23,-(RIGHT($E34,1)),0,RIGHT($E34,1)+1,1)),\"ERROR\"))))","v":2.7130052704265595E-2},2.6377204177823795E-2,2.4192286466271175E-2,2.169220831459933E-2,2.2396714524573431E-2,2.1743256866201925E-2,2.043133496667943E-2,1.935776953959506E-2,2.0360623763283316E-2,2.4774372904610209E-2,2.4642347193369277E-2,3.2876609796224761E-2,3.2876609796224761E-2,3.2876609796224761E-2,3.2876609796224761E-2,3.2876609796224761E-2,3.2876609796224761E-2,3.2876609796224761E-2,3.2876609796224761E-2,3.2876609796224761E-2,3.2876609796224761E-2,3.2876609796224761E-2,3.2876609796224761E-2,3.2876609796224761E-2,3.2876609796224761E-2,3.2876609796224761E-2,3.2876609796224761E-2,3.2876609796224761E-2,3.2876609796224761E-2,3.2876609796224761E-2,2.9265140246717787E-2,2.9120090245051675E-2,2.5686781222140475E-2,2.5861932441984606E-2,2.5648526494001813E-2,2.5210857023673913E-2,2.4766260890252259E-2,0.89168572885531006,0.89834808448045123,0.90538991672004832,0.90759698117466625,0.8918535313837832,0.89704315755576969,0.89420558196022593,0.88943409879021573,0.88273931732064548,0.88553059949816637,0.88663819059207349,0.88591288976978033,0.88134497808564494,0.88397087888662085,0.87546049322023745,0.87537636975854349]
[null,null,null,null,"EL5",{"$f":"IF(F$29<STANDARD_YEAR,F24,\nIF(RIGHT($E35,1)>RIGHT(INDEX(STANDARD_LEVELS,1,MID($C15,4,1)),1),F24,\nIF(RIGHT($E35,1)<RIGHT(INDEX(STANDARD_LEVELS,1,MID($C15,4,1)),1),0,\nIF(RIGHT($E35,1)=RIGHT(INDEX(STANDARD_LEVELS,1,MID($C15,4,1)),1),SUM(OFFSET(F24,-(RIGHT($E35,1)),0,RIGHT($E35,1)+1,1)),\"ERROR\"))))","v":0.11117298020758733},{"$f":"IF(G$29<STANDARD_YEAR,G24,\nIF(RIGHT($E35,1)>RIGHT(INDEX(STANDARD_LEVELS,1,MID($C15,4,1)),1),G24,\nIF(RIGHT($E35,1)<RIGHT(INDEX(STANDARD_LEVELS,1,MID($C15,4,1)),1),0,\nIF(RIGHT($E35,1)=RIGHT(INDEX(STANDARD_LEVELS,1,MID($C15,4,1)),1),SUM(OFFSET(G24,-(RIGHT($E35,1)),0,RIGHT($E35,1)+1,1)),\"ERROR\"))))","v":0.11820951535430008},0.11492924677480366,0.10540924817446724,9.4516050513611366E-2,9.7585684714212778E-2,9.4738476345594111E-2,8.9022245211960352E-2,8.434456727966419E-2,8.8714146397163018E-2,0.1079454819415159,0.10737022705682327,0.1432480855406936,0.1432480855406936,0.1432480855406936,0.1432480855406936,0.1432480855406936,0.1432480855406936,0.1432480855406936,0.1432480855406936,0.1432480855406936,0.1432480855406936,0.1432480855406936,0.1432480855406936,0.1432480855406936,0.1432480855406936,0.1432480855406936,0.1432480855406936,0.1432480855406936,0.1432480855406936,0.1432480855406936,0.12751239678927037,0.12688039321058228,0.11192097532504065,0.11268413421150436,0.11175429400957931,0.10984730560315061,0.10791013673609913,0.10831427114468993,0.10165191551954886,9.4610083279951587E-2,9.2403018825333832E-2,0.10814646861621678,0.10295684244423024,0.10579441803977405,0.11056590120978425,0.11726068267935436,0.11446940050183359,0.11336180940792642,0.11408711023021964,0.11865502191435501,0.11602912111337912,0.12453950677976261,0.12462363024145633]
[null,null,null,null,"EL6",{"$f":"IF(F$29<STANDARD_YEAR,F25,\nIF(RIGHT($E36,1)>RIGHT(INDEX(STANDARD_LEVELS,1,MID($C15,4,1)),1),F25,\nIF(RIGHT($E36,1)<RIGHT(INDEX(STANDARD_LEVELS,1,MID($C15,4,1)),1),0,\nIF(RIGHT($E36,1)=RIGHT(INDEX(STANDARD_LEVELS,1,MID($C15,4,1)),1),SUM(OFFSET(F25,-(RIGHT($E36,1)),0,RIGHT($E36,1)+1,1)),\"ERROR\"))))","v":0},{"$f":"IF(G$29<STANDARD_YEAR,G25,\nIF(RIGHT($E36,1)>RIGHT(INDEX(STANDARD_LEVELS,1,MID($C15,4,1)),1),G25,\nIF(RIGHT($E36,1)<RIGHT(INDEX(STANDARD_LEVELS,1,MID($C15,4,1)),1),0,\nIF(RIGHT($E36,1)=RIGHT(INDEX(STANDARD_LEVELS,1,MID($C15,4,1)),1),SUM(OFFSET(G25,-(RIGHT($E36,1)),0,RIGHT($E36,1)+1,1)),\"ERROR\"))))","v":0},0,0,0,0,0,0,0,0,0,0,0,0,0,0,0,0,0,0,0,0,0,0,0,0,0,0,0,0,0,0,0,0,0,0,0,0,0,0,0,0,0,0,0,0,0,0,0,0,0,0,0,0]
[null,null,null,null,"TOTAL",{"$f":"SUM(F30:F36)","v":1},{"$f":"SUM(G30:G36)","v":1},1,1,1,1,1,1,1,1,0.99999999999999989,1,0.99999999999999989,0.99999999999999989,0.99999999999999989,0.99999999999999989,0.99999999999999989,0.99999999999999989,0.99999999999999989,0.99999999999999989,0.99999999999999989,0.99999999999999989,0.99999999999999989,0.99999999999999989,0.99999999999999989,0.99999999999999989,0.99999999999999989,0.99999999999999989,0.99999999999999989,0.99999999999999989,0.99999999999999989,1,1,1,1,1,0.99999999999999989,1,1,1,0.99999999999999989,1,1,0.99999999999999989,1,1,0.99999999999999978,1,0.99999999999999989,1,1,1,1,0.99999999999999978]
[]
[]
[]
[null,null,"PC 2",{"$f":"OFFSET('Product Classes'!$C$9,MATCH(C41,MODEL_PCS,0),0)","v":"Non-Weatherized, Condensing Gas Furnace Fan (NWG-C)"}]
[]
[null,null,null,"PRE-Case"]
[null,null,null,null,"Efficiency Level",1981,{"$f":"F44+1","v":1982},{"$f":"G44+1","v":1983},1984,1985,{"$f":"J44+1","v":1986},1987,1988,1989,1990,1991,1992,1993,1994,1995,1996,1997,1998,1999,2000,2001,2002,2003,2004,2005,2006,2007,2008,2009,2010,2011,2012,2013,2014,2015,2016,2017,2018,2019,2020,2021,2022,2023,2024,2025,2026,2027,2028,2029,2030,2031,2032,2033,2034]
[null,null,null,null,"EL0",{"$f":"IF(INDEX(PC_MAPPING,RIGHT($C41,1),MATCH($E$2,'Data by Building Type'!$D$22:$F$22,0))=\"Yes\",1,0)*\n(F$10*OFFSET('Efficiency Distributions'!$D$10,MATCH($C41,'Efficiency Distributions'!$C$9:$C$87,0)+RIGHT($E45),0)\n+F$11*OFFSET('Efficiency Distributions'!$E$10,MATCH($C41,'Efficiency Distributions'!$C$9:$C$87,0)+RIGHT($E45),0))\n/SUM(F$10:F$11)","v":0.27092344675670721},{"$f":"IF(INDEX(PC_MAPPING,RIGHT($C41,1),MATCH($E$2,'Data by Building Type'!$D$22:$F$22,0))=\"Yes\",1,0)*\n(G$10*OFFSET('Efficiency Distributions'!$D$10,MATCH($C41,'Efficiency Distributions'!$C$9:$C$87,0)+RIGHT($E45),0)\n+G$11*OFFSET('Efficiency Distributions'!$E$10,MATCH($C41,'Efficiency Distributions'!$C$9:$C$87,0)+RIGHT($E45),0))\n/SUM(G$10:G$11)","v":0.25526584263887409},{"$f":"IF(INDEX(PC_MAPPING,RIGHT($C41,1),MATCH($E$2,'Data by Building Type'!$D$22:$F$22,0))=\"Yes\",1,0)*\n(H$10*OFFSET('Efficiency Distributions'!$D$10,MATCH($C41,'Efficiency Distributions'!$C$9:$C$87,0)+RIGHT($E45),0)\n+H$11*OFFSET('Efficiency Distributions'!$E$10,MATCH($C41,'Efficiency Distributions'!$C$9:$C$87,0)+RIGHT($E45),0))\n/SUM(H$10:H$11)","v":0.26256505251234652},{"$f":"IF(INDEX(PC_MAPPING,RIGHT($C41,1),MATCH($E$2,'Data by Building Type'!$D$22:$F$22,0))=\"Yes\",1,0)*\n(I$10*OFFSET('Efficiency Distributions'!$D$10,MATCH($C41,'Efficiency Distributions'!$C$9:$C$87,0)+RIGHT($E45),0)\n+I$11*OFFSET('Efficiency Distributions'!$E$10,MATCH($C41,'Efficiency Distributions'!$C$9:$C$87,0)+RIGHT($E45),0))\n/SUM(I$10:I$11)","v":0.2837488263695736},{"$f":"IF(INDEX(PC_MAPPING,RIGHT($C41,1),MATCH($E$2,'Data by Building Type'!$D$22:$F$22,0))=\"Yes\",1,0)*\n(J$10*OFFSET('Efficiency Distributions'!$D$10,MATCH($C41,'Efficiency Distributions'!$C$9:$C$87,0)+RIGHT($E45),0)\n+J$11*OFFSET('Efficiency Distributions'!$E$10,MATCH($C41,'Efficiency Distributions'!$C$9:$C$87,0)+RIGHT($E45),0))\n/SUM(J$10:J$11)","v":0.30798822445325524},{"$f":"IF(INDEX(PC_MAPPING,RIGHT($C41,1),MATCH($E$2,'Data by Building Type'!$D$22:$F$22,0))=\"Yes\",1,0)*\n(K$10*OFFSET('Efficiency Distributions'!$D$10,MATCH($C41,'Efficiency Distributions'!$C$9:$C$87,0)+RIGHT($E45),0)\n+K$11*OFFSET('Efficiency Distributions'!$E$10,MATCH($C41,'Efficiency Distributions'!$C$9:$C$87,0)+RIGHT($E45),0))\n/SUM(K$10:K$11)","v":0.30115771538914121},{"$f":"IF(INDEX(PC_MAPPING,RIGHT($C41,1),MATCH($E$2,'Data by Building Type'!$D$22:$F$22,0))=\"Yes\",1,0)*\n(L$10*OFFSET('Efficiency Distributions'!$D$10,MATCH($C41,'Efficiency Distributions'!$C$9:$C$87,0)+RIGHT($E45),0)\n+L$11*OFFSET('Efficiency Distributions'!$E$10,MATCH($C41,'Efficiency Distributions'!$C$9:$C$87,0)+RIGHT($E45),0))\n/SUM(L$10:L$11)","v":0.30749328545982285},{"$f":"IF(INDEX(PC_MAPPING,RIGHT($C41,1),MATCH($E$2,'Data by Building Type'!$D$22:$F$22,0))=\"Yes\",1,0)*\n(M$10*OFFSET('Efficiency Distributions'!$D$10,MATCH($C41,'Efficiency Distributions'!$C$9:$C$87,0)+RIGHT($E45),0)\n+M$11*OFFSET('Efficiency Distributions'!$E$10,MATCH($C41,'Efficiency Distributions'!$C$9:$C$87,0)+RIGHT($E45),0))\n/SUM(M$10:M$11)","v":0.32021296670497129},{"$f":"IF(INDEX(PC_MAPPING,RIGHT($C41,1),MATCH($E$2,'Data by Building Type'!$D$22:$F$22,0))=\"Yes\",1,0)*\n(N$10*OFFSET('Efficiency Distributions'!$D$10,MATCH($C41,'Efficiency Distributions'!$C$9:$C$87,0)+RIGHT($E45),0)\n+N$11*OFFSET('Efficiency Distributions'!$E$10,MATCH($C41,'Efficiency Distributions'!$C$9:$C$87,0)+RIGHT($E45),0))\n/SUM(N$10:N$11)","v":0.33062167322423508},{"$f":"IF(INDEX(PC_MAPPING,RIGHT($C41,1),MATCH($E$2,'Data by Building Type'!$D$22:$F$22,0))=\"Yes\",1,0)*\n(O$10*OFFSET('Efficiency Distributions'!$D$10,MATCH($C41,'Efficiency Distributions'!$C$9:$C$87,0)+RIGHT($E45),0)\n+O$11*OFFSET('Efficiency Distributions'!$E$10,MATCH($C41,'Efficiency Distributions'!$C$9:$C$87,0)+RIGHT($E45),0))\n/SUM(O$10:O$11)","v":0.32089854407660201},{"$f":"IF(INDEX(PC_MAPPING,RIGHT($C41,1),MATCH($E$2,'Data by Building Type'!$D$22:$F$22,0))=\"Yes\",1,0)*\n(P$10*OFFSET('Efficiency Distributions'!$D$10,MATCH($C41,'Efficiency Distributions'!$C$9:$C$87,0)+RIGHT($E45),0)\n+P$11*OFFSET('Efficiency Distributions'!$E$10,MATCH($C41,'Efficiency Distributions'!$C$9:$C$87,0)+RIGHT($E45),0))\n/SUM(P$10:P$11)","v":0.2781052328328768},{"$f":"IF(INDEX(PC_MAPPING,RIGHT($C41,1),MATCH($E$2,'Data by Building Type'!$D$22:$F$22,0))=\"Yes\",1,0)*\n(Q$10*OFFSET('Efficiency Distributions'!$D$10,MATCH($C41,'Efficiency Distributions'!$C$9:$C$87,0)+RIGHT($E45),0)\n+Q$11*OFFSET('Efficiency Distributions'!$E$10,MATCH($C41,'Efficiency Distributions'!$C$9:$C$87,0)+RIGHT($E45),0))\n/SUM(Q$10:Q$11)","v":0.27938528232649362},{"$f":"IF(INDEX(PC_MAPPING,RIGHT($C41,1),MATCH($E$2,'Data by Building Type'!$D$22:$F$22,0))=\"Yes\",1,0)*\n(R$10*OFFSET('Efficiency Distributions'!$D$10,MATCH($C41,'Efficiency Distributions'!$C$9:$C$87,0)+RIGHT($E45),0)\n+R$11*OFFSET('Efficiency Distributions'!$E$10,MATCH($C41,'Efficiency Distributions'!$C$9:$C$87,0)+RIGHT($E45),0))\n/SUM(R$10:R$11)","v":0.19955035035738097},{"$f":"IF(INDEX(PC_MAPPING,RIGHT($C41,1),MATCH($E$2,'Data by Building Type'!$D$22:$F$22,0))=\"Yes\",1,0)*\n(S$10*OFFSET('Efficiency Distributions'!$D$10,MATCH($C41,'Efficiency Distributions'!$C$9:$C$87,0)+RIGHT($E45),0)\n+S$11*OFFSET('Efficiency Distributions'!$E$10,MATCH($C41,'Efficiency Distributions'!$C$9:$C$87,0)+RIGHT($E45),0))\n/SUM(S$10:S$11)","v":0.19955035035738095},{"$f":"IF(INDEX(PC_MAPPING,RIGHT($C41,1),MATCH($E$2,'Data by Building Type'!$D$22:$F$22,0))=\"Yes\",1,0)*\n(T$10*OFFSET('Efficiency Distributions'!$D$10,MATCH($C41,'Efficiency Distributions'!$C$9:$C$87,0)+RIGHT($E45),0)\n+T$11*OFFSET('Efficiency Distributions'!$E$10,MATCH($C41,'Efficiency Distributions'!$C$9:$C$87,0)+RIGHT($E45),0))\n/SUM(T$10:T$11)","v":0.19955035035738097},{"$f":"IF(INDEX(PC_MAPPING,RIGHT($C41,1),MATCH($E$2,'Data by Building Type'!$D$22:$F$22,0))=\"Yes\",1,0)*\n(U$10*OFFSET('Efficiency Distributions'!$D$10,MATCH($C41,'Efficiency Distributions'!$C$9:$C$87,0)+RIGHT($E45),0)\n+U$11*OFFSET('Efficiency Distributions'!$E$10,MATCH($C41,'Efficiency Distributions'!$C$9:$C$87,0)+RIGHT($E45),0))\n/SUM(U$10:U$11)","v":0.199550350357381},{"$f":"IF(INDEX(PC_MAPPING,RIGHT($C41,1),MATCH($E$2,'Data by Building Type'!$D$22:$F$22,0))=\"Yes\",1,0)*\n(V$10*OFFSET('Efficiency Distributions'!$D$10,MATCH($C41,'Efficiency Distributions'!$C$9:$C$87,0)+RIGHT($E45),0)\n+V$11*OFFSET('Efficiency Distributions'!$E$10,MATCH($C41,'Efficiency Distributions'!$C$9:$C$87,0)+RIGHT($E45),0))\n/SUM(V$10:V$11)","v":0.19955035035738095},{"$f":"IF(INDEX(PC_MAPPING,RIGHT($C41,1),MATCH($E$2,'Data by Building Type'!$D$22:$F$22,0))=\"Yes\",1,0)*\n(W$10*OFFSET('Efficiency Distributions'!$D$10,MATCH($C41,'Efficiency Distributions'!$C$9:$C$87,0)+RIGHT($E45),0)\n+W$11*OFFSET('Efficiency Distributions'!$E$10,MATCH($C41,'Efficiency Distributions'!$C$9:$C$87,0)+RIGHT($E45),0))\n/SUM(W$10:W$11)","v":0.19955035035738097},{"$f":"IF(INDEX(PC_MAPPING,RIGHT($C41,1),MATCH($E$2,'Data by Building Type'!$D$22:$F$22,0))=\"Yes\",1,0)*\n(X$10*OFFSET('Efficiency Distributions'!$D$10,MATCH($C41,'Efficiency Distributions'!$C$9:$C$87,0)+RIGHT($E45),0)\n+X$11*OFFSET('Efficiency Distributions'!$E$10,MATCH($C41,'Efficiency Distributions'!$C$9:$C$87,0)+RIGHT($E45),0))\n/SUM(X$10:X$11)","v":0.19955035035738097},{"$f":"IF(INDEX(PC_MAPPING,RIGHT($C41,1),MATCH($E$2,'Data by Building Type'!$D$22:$F$22,0))=\"Yes\",1,0)*\n(Y$10*OFFSET('Efficiency Distributions'!$D$10,MATCH($C41,'Efficiency Distributions'!$C$9:$C$87,0)+RIGHT($E45),0)\n+Y$11*OFFSET('Efficiency Distributions'!$E$10,MATCH($C41,'Efficiency Distributions'!$C$9:$C$87,0)+RIGHT($E45),0))\n/SUM(Y$10:Y$11)","v":0.19955035035738097},{"$f":"IF(INDEX(PC_MAPPING,RIGHT($C41,1),MATCH($E$2,'Data by Building Type'!$D$22:$F$22,0))=\"Yes\",1,0)*\n(Z$10*OFFSET('Efficiency Distributions'!$D$10,MATCH($C41,'Efficiency Distributions'!$C$9:$C$87,0)+RIGHT($E45),0)\n+Z$11*OFFSET('Efficiency Distributions'!$E$10,MATCH($C41,'Efficiency Distributions'!$C$9:$C$87,0)+RIGHT($E45),0))\n/SUM(Z$10:Z$11)","v":0.19955035035738097},{"$f":"IF(INDEX(PC_MAPPING,RIGHT($C41,1),MATCH($E$2,'Data by Building Type'!$D$22:$F$22,0))=\"Yes\",1,0)*\n(AA$10*OFFSET('Efficiency Distributions'!$D$10,MATCH($C41,'Efficiency Distributions'!$C$9:$C$87,0)+RIGHT($E45),0)\n+AA$11*OFFSET('Efficiency Distributions'!$E$10,MATCH($C41,'Efficiency Distributions'!$C$9:$C$87,0)+RIGHT($E45),0))\n/SUM(AA$10:AA$11)","v":0.19955035035738097},{"$f":"IF(INDEX(PC_MAPPING,RIGHT($C41,1),MATCH($E$2,'Data by Building Type'!$D$22:$F$22,0))=\"Yes\",1,0)*\n(AB$10*OFFSET('Efficiency Distributions'!$D$10,MATCH($C41,'Efficiency Distributions'!$C$9:$C$87,0)+RIGHT($E45),0)\n+AB$11*OFFSET('Efficiency Distributions'!$E$10,MATCH($C41,'Efficiency Distributions'!$C$9:$C$87,0)+RIGHT($E45),0))\n/SUM(AB$10:AB$11)","v":0.19955035035738097},{"$f":"IF(INDEX(PC_MAPPING,RIGHT($C41,1),MATCH($E$2,'Data by Building Type'!$D$22:$F$22,0))=\"Yes\",1,0)*\n(AC$10*OFFSET('Efficiency Distributions'!$D$10,MATCH($C41,'Efficiency Distributions'!$C$9:$C$87,0)+RIGHT($E45),0)\n+AC$11*OFFSET('Efficiency Distributions'!$E$10,MATCH($C41,'Efficiency Distributions'!$C$9:$C$87,0)+RIGHT($E45),0))\n/SUM(AC$10:AC$11)","v":0.19955035035738097},{"$f":"IF(INDEX(PC_MAPPING,RIGHT($C41,1),MATCH($E$2,'Data by Building Type'!$D$22:$F$22,0))=\"Yes\",1,0)*\n(AD$10*OFFSET('Efficiency Distributions'!$D$10,MATCH($C41,'Efficiency Distributions'!$C$9:$C$87,0)+RIGHT($E45),0)\n+AD$11*OFFSET('Efficiency Distributions'!$E$10,MATCH($C41,'Efficiency Distributions'!$C$9:$C$87,0)+RIGHT($E45),0))\n/SUM(AD$10:AD$11)","v":0.199550350357381},{"$f":"IF(INDEX(PC_MAPPING,RIGHT($C41,1),MATCH($E$2,'Data by Building Type'!$D$22:$F$22,0))=\"Yes\",1,0)*\n(AE$10*OFFSET('Efficiency Distributions'!$D$10,MATCH($C41,'Efficiency Distributions'!$C$9:$C$87,0)+RIGHT($E45),0)\n+AE$11*OFFSET('Efficiency Distributions'!$E$10,MATCH($C41,'Efficiency Distributions'!$C$9:$C$87,0)+RIGHT($E45),0))\n/SUM(AE$10:AE$11)","v":0.19955035035738097},{"$f":"IF(INDEX(PC_MAPPING,RIGHT($C41,1),MATCH($E$2,'Data by Building Type'!$D$22:$F$22,0))=\"Yes\",1,0)*\n(AF$10*OFFSET('Efficiency Distributions'!$D$10,MATCH($C41,'Efficiency Distributions'!$C$9:$C$87,0)+RIGHT($E45),0)\n+AF$11*OFFSET('Efficiency Distributions'!$E$10,MATCH($C41,'Efficiency Distributions'!$C$9:$C$87,0)+RIGHT($E45),0))\n/SUM(AF$10:AF$11)","v":0.19955035035738097},{"$f":"IF(INDEX(PC_MAPPING,RIGHT($C41,1),MATCH($E$2,'Data by Building Type'!$D$22:$F$22,0))=\"Yes\",1,0)*\n(AG$10*OFFSET('Efficiency Distributions'!$D$10,MATCH($C41,'Efficiency Distributions'!$C$9:$C$87,0)+RIGHT($E45),0)\n+AG$11*OFFSET('Efficiency Distributions'!$E$10,MATCH($C41,'Efficiency Distributions'!$C$9:$C$87,0)+RIGHT($E45),0))\n/SUM(AG$10:AG$11)","v":0.19955035035738097},{"$f":"IF(INDEX(PC_MAPPING,RIGHT($C41,1),MATCH($E$2,'Data by Building Type'!$D$22:$F$22,0))=\"Yes\",1,0)*\n(AH$10*OFFSET('Efficiency Distributions'!$D$10,MATCH($C41,'Efficiency Distributions'!$C$9:$C$87,0)+RIGHT($E45),0)\n+AH$11*OFFSET('Efficiency Distributions'!$E$10,MATCH($C41,'Efficiency Distributions'!$C$9:$C$87,0)+RIGHT($E45),0))\n/SUM(AH$10:AH$11)","v":0.19955035035738097},{"$f":"IF(INDEX(PC_MAPPING,RIGHT($C41,1),MATCH($E$2,'Data by Building Type'!$D$22:$F$22,0))=\"Yes\",1,0)*\n(AI$10*OFFSET('Efficiency Distributions'!$D$10,MATCH($C41,'Efficiency Distributions'!$C$9:$C$87,0)+RIGHT($E45),0)\n+AI$11*OFFSET('Efficiency Distributions'!$E$10,MATCH($C41,'Efficiency Distributions'!$C$9:$C$87,0)+RIGHT($E45),0))\n/SUM(AI$10:AI$11)","v":0.19955035035738097},{"$f":"IF(INDEX(PC_MAPPING,RIGHT($C41,1),MATCH($E$2,'Data by Building Type'!$D$22:$F$22,0))=\"Yes\",1,0)*\n(AJ$10*OFFSET('Efficiency Distributions'!$D$10,MATCH($C41,'Efficiency Distributions'!$C$9:$C$87,0)+RIGHT($E45),0)\n+AJ$11*OFFSET('Efficiency Distributions'!$E$10,MATCH($C41,'Efficiency Distributions'!$C$9:$C$87,0)+RIGHT($E45),0))\n/SUM(AJ$10:AJ$11)","v":0.19955035035738097},{"$f":"IF(INDEX(PC_MAPPING,RIGHT($C41,1),MATCH($E$2,'Data by Building Type'!$D$22:$F$22,0))=\"Yes\",1,0)*\n(AK$10*OFFSET('Efficiency Distributions'!$D$10,MATCH($C41,'Efficiency Distributions'!$C$9:$C$87,0)+RIGHT($E45),0)\n+AK$11*OFFSET('Efficiency Distributions'!$E$10,MATCH($C41,'Efficiency Distributions'!$C$9:$C$87,0)+RIGHT($E45),0))\n/SUM(AK$10:AK$11)","v":0.23456519500095921},{"$f":"IF(INDEX(PC_MAPPING,RIGHT($C41,1),MATCH($E$2,'Data by Building Type'!$D$22:$F$22,0))=\"Yes\",1,0)*\n(AL$10*OFFSET('Efficiency Distributions'!$D$10,MATCH($C41,'Efficiency Distributions'!$C$9:$C$87,0)+RIGHT($E45),0)\n+AL$11*OFFSET('Efficiency Distributions'!$E$10,MATCH($C41,'Efficiency Distributions'!$C$9:$C$87,0)+RIGHT($E45),0))\n/SUM(AL$10:AL$11)","v":0.23597152093123963},{"$f":"IF(INDEX(PC_MAPPING,RIGHT($C41,1),MATCH($E$2,'Data by Building Type'!$D$22:$F$22,0))=\"Yes\",1,0)*\n(AM$10*OFFSET('Efficiency Distributions'!$D$10,MATCH($C41,'Efficiency Distributions'!$C$9:$C$87,0)+RIGHT($E45),0)\n+AM$11*OFFSET('Efficiency Distributions'!$E$10,MATCH($C41,'Efficiency Distributions'!$C$9:$C$87,0)+RIGHT($E45),0))\n/SUM(AM$10:AM$11)","v":0.26925901800207686},{"$f":"IF(INDEX(PC_MAPPING,RIGHT($C41,1),MATCH($E$2,'Data by Building Type'!$D$22:$F$22,0))=\"Yes\",1,0)*\n(AN$10*OFFSET('Efficiency Distributions'!$D$10,MATCH($C41,'Efficiency Distributions'!$C$9:$C$87,0)+RIGHT($E45),0)\n+AN$11*OFFSET('Efficiency Distributions'!$E$10,MATCH($C41,'Efficiency Distributions'!$C$9:$C$87,0)+RIGHT($E45),0))\n/SUM(AN$10:AN$11)","v":0.26756084703097927},{"$f":"IF(INDEX(PC_MAPPING,RIGHT($C41,1),MATCH($E$2,'Data by Building Type'!$D$22:$F$22,0))=\"Yes\",1,0)*\n(AO$10*OFFSET('Efficiency Distributions'!$D$10,MATCH($C41,'Efficiency Distributions'!$C$9:$C$87,0)+RIGHT($E45),0)\n+AO$11*OFFSET('Efficiency Distributions'!$E$10,MATCH($C41,'Efficiency Distributions'!$C$9:$C$87,0)+RIGHT($E45),0))\n/SUM(AO$10:AO$11)","v":0.26962991504116174},{"$f":"IF(INDEX(PC_MAPPING,RIGHT($C41,1),MATCH($E$2,'Data by Building Type'!$D$22:$F$22,0))=\"Yes\",1,0)*\n(AP$10*OFFSET('Efficiency Distributions'!$D$10,MATCH($C41,'Efficiency Distributions'!$C$9:$C$87,0)+RIGHT($E45),0)\n+AP$11*OFFSET('Efficiency Distributions'!$E$10,MATCH($C41,'Efficiency Distributions'!$C$9:$C$87,0)+RIGHT($E45),0))\n/SUM(AP$10:AP$11)","v":0.27387332019761967},{"$f":"IF(INDEX(PC_MAPPING,RIGHT($C41,1),MATCH($E$2,'Data by Building Type'!$D$22:$F$22,0))=\"Yes\",1,0)*\n(AQ$10*OFFSET('Efficiency Distributions'!$D$10,MATCH($C41,'Efficiency Distributions'!$C$9:$C$87,0)+RIGHT($E45),0)\n+AQ$11*OFFSET('Efficiency Distributions'!$E$10,MATCH($C41,'Efficiency Distributions'!$C$9:$C$87,0)+RIGHT($E45),0))\n/SUM(AQ$10:AQ$11)","v":0.27818388251234832},{"$f":"IF(INDEX(PC_MAPPING,RIGHT($C41,1),MATCH($E$2,'Data by Building Type'!$D$22:$F$22,0))=\"Yes\",1,0)*\n(AR$10*OFFSET('Efficiency Distributions'!$D$10,MATCH($C41,'Efficiency Distributions'!$C$9:$C$87,0)+RIGHT($E45),0)\n+AR$11*OFFSET('Efficiency Distributions'!$E$10,MATCH($C41,'Efficiency Distributions'!$C$9:$C$87,0)+RIGHT($E45),0))\n/SUM(AR$10:AR$11)","v":0.27728460801884058},{"$f":"IF(INDEX(PC_MAPPING,RIGHT($C41,1),MATCH($E$2,'Data by Building Type'!$D$22:$F$22,0))=\"Yes\",1,0)*\n(AS$10*OFFSET('Efficiency Distributions'!$D$10,MATCH($C41,'Efficiency Distributions'!$C$9:$C$87,0)+RIGHT($E45),0)\n+AS$11*OFFSET('Efficiency Distributions'!$E$10,MATCH($C41,'Efficiency Distributions'!$C$9:$C$87,0)+RIGHT($E45),0))\n/SUM(AS$10:AS$11)","v":0.29210959285806376},{"$f":"IF(INDEX(PC_MAPPING,RIGHT($C41,1),MATCH($E$2,'Data by Building Type'!$D$22:$F$22,0))=\"Yes\",1,0)*\n(AT$10*OFFSET('Efficiency Distributions'!$D$10,MATCH($C41,'Efficiency Distributions'!$C$9:$C$87,0)+RIGHT($E45),0)\n+AT$11*OFFSET('Efficiency Distributions'!$E$10,MATCH($C41,'Efficiency Distributions'!$C$9:$C$87,0)+RIGHT($E45),0))\n/SUM(AT$10:AT$11)","v":0.30777898399630277},{"$f":"IF(INDEX(PC_MAPPING,RIGHT($C41,1),MATCH($E$2,'Data by Building Type'!$D$22:$F$22,0))=\"Yes\",1,0)*\n(AU$10*OFFSET('Efficiency Distributions'!$D$10,MATCH($C41,'Efficiency Distributions'!$C$9:$C$87,0)+RIGHT($E45),0)\n+AU$11*OFFSET('Efficiency Distributions'!$E$10,MATCH($C41,'Efficiency Distributions'!$C$9:$C$87,0)+RIGHT($E45),0))\n/SUM(AU$10:AU$11)","v":0.31269011437118488},{"$f":"IF(INDEX(PC_MAPPING,RIGHT($C41,1),MATCH($E$2,'Data by Building Type'!$D$22:$F$22,0))=\"Yes\",1,0)*\n(AV$10*OFFSET('Efficiency Distributions'!$D$10,MATCH($C41,'Efficiency Distributions'!$C$9:$C$87,0)+RIGHT($E45),0)\n+AV$11*OFFSET('Efficiency Distributions'!$E$10,MATCH($C41,'Efficiency Distributions'!$C$9:$C$87,0)+RIGHT($E45),0))\n/SUM(AV$10:AV$11)","v":0.27765799996615886},{"$f":"IF(INDEX(PC_MAPPING,RIGHT($C41,1),MATCH($E$2,'Data by Building Type'!$D$22:$F$22,0))=\"Yes\",1,0)*\n(AW$10*OFFSET('Efficiency Distributions'!$D$10,MATCH($C41,'Efficiency Distributions'!$C$9:$C$87,0)+RIGHT($E45),0)\n+AW$11*OFFSET('Efficiency Distributions'!$E$10,MATCH($C41,'Efficiency Distributions'!$C$9:$C$87,0)+RIGHT($E45),0))\n/SUM(AW$10:AW$11)","v":0.28920588687730026},{"$f":"IF(INDEX(PC_MAPPING,RIGHT($C41,1),MATCH($E$2,'Data by Building Type'!$D$22:$F$22,0))=\"Yes\",1,0)*\n(AX$10*OFFSET('Efficiency Distributions'!$D$10,MATCH($C41,'Efficiency Distributions'!$C$9:$C$87,0)+RIGHT($E45),0)\n+AX$11*OFFSET('Efficiency Distributions'!$E$10,MATCH($C41,'Efficiency Distributions'!$C$9:$C$87,0)+RIGHT($E45),0))\n/SUM(AX$10:AX$11)","v":0.28289175152473178},{"$f":"IF(INDEX(PC_MAPPING,RIGHT($C41,1),MATCH($E$2,'Data by Building Type'!$D$22:$F$22,0))=\"Yes\",1,0)*\n(AY$10*OFFSET('Efficiency Distributions'!$D$10,MATCH($C41,'Efficiency Distributions'!$C$9:$C$87,0)+RIGHT($E45),0)\n+AY$11*OFFSET('Efficiency Distributions'!$E$10,MATCH($C41,'Efficiency Distributions'!$C$9:$C$87,0)+RIGHT($E45),0))\n/SUM(AY$10:AY$11)","v":0.27227431084217862},{"$f":"IF(INDEX(PC_MAPPING,RIGHT($C41,1),MATCH($E$2,'Data by Building Type'!$D$22:$F$22,0))=\"Yes\",1,0)*\n(AZ$10*OFFSET('Efficiency Distributions'!$D$10,MATCH($C41,'Efficiency Distributions'!$C$9:$C$87,0)+RIGHT($E45),0)\n+AZ$11*OFFSET('Efficiency Distributions'!$E$10,MATCH($C41,'Efficiency Distributions'!$C$9:$C$87,0)+RIGHT($E45),0))\n/SUM(AZ$10:AZ$11)","v":0.25737717244659986},{"$f":"IF(INDEX(PC_MAPPING,RIGHT($C41,1),MATCH($E$2,'Data by Building Type'!$D$22:$F$22,0))=\"Yes\",1,0)*\n(BA$10*OFFSET('Efficiency Distributions'!$D$10,MATCH($C41,'Efficiency Distributions'!$C$9:$C$87,0)+RIGHT($E45),0)\n+BA$11*OFFSET('Efficiency Distributions'!$E$10,MATCH($C41,'Efficiency Distributions'!$C$9:$C$87,0)+RIGHT($E45),0))\n/SUM(BA$10:BA$11)","v":0.26358829630309066},{"$f":"IF(INDEX(PC_MAPPING,RIGHT($C41,1),MATCH($E$2,'Data by Building Type'!$D$22:$F$22,0))=\"Yes\",1,0)*\n(BB$10*OFFSET('Efficiency Distributions'!$D$10,MATCH($C41,'Efficiency Distributions'!$C$9:$C$87,0)+RIGHT($E45),0)\n+BB$11*OFFSET('Efficiency Distributions'!$E$10,MATCH($C41,'Efficiency Distributions'!$C$9:$C$87,0)+RIGHT($E45),0))\n/SUM(BB$10:BB$11)","v":0.26605289322632747},{"$f":"IF(INDEX(PC_MAPPING,RIGHT($C41,1),MATCH($E$2,'Data by Building Type'!$D$22:$F$22,0))=\"Yes\",1,0)*\n(BC$10*OFFSET('Efficiency Distributions'!$D$10,MATCH($C41,'Efficiency Distributions'!$C$9:$C$87,0)+RIGHT($E45),0)\n+BC$11*OFFSET('Efficiency Distributions'!$E$10,MATCH($C41,'Efficiency Distributions'!$C$9:$C$87,0)+RIGHT($E45),0))\n/SUM(BC$10:BC$11)","v":0.26443896351447044},{"$f":"IF(INDEX(PC_MAPPING,RIGHT($C41,1),MATCH($E$2,'Data by Building Type'!$D$22:$F$22,0))=\"Yes\",1,0)*\n(BD$10*OFFSET('Efficiency Distributions'!$D$10,MATCH($C41,'Efficiency Distributions'!$C$9:$C$87,0)+RIGHT($E45),0)\n+BD$11*OFFSET('Efficiency Distributions'!$E$10,MATCH($C41,'Efficiency Distributions'!$C$9:$C$87,0)+RIGHT($E45),0))\n/SUM(BD$10:BD$11)","v":0.25427450738596963},{"$f":"IF(INDEX(PC_MAPPING,RIGHT($C41,1),MATCH($E$2,'Data by Building Type'!$D$22:$F$22,0))=\"Yes\",1,0)*\n(BE$10*OFFSET('Efficiency Distributions'!$D$10,MATCH($C41,'Efficiency Distributions'!$C$9:$C$87,0)+RIGHT($E45),0)\n+BE$11*OFFSET('Efficiency Distributions'!$E$10,MATCH($C41,'Efficiency Distributions'!$C$9:$C$87,0)+RIGHT($E45),0))\n/SUM(BE$10:BE$11)","v":0.26011762681010681},{"$f":"IF(INDEX(PC_MAPPING,RIGHT($C41,1),MATCH($E$2,'Data by Building Type'!$D$22:$F$22,0))=\"Yes\",1,0)*\n(BF$10*OFFSET('Efficiency Distributions'!$D$10,MATCH($C41,'Efficiency Distributions'!$C$9:$C$87,0)+RIGHT($E45),0)\n+BF$11*OFFSET('Efficiency Distributions'!$E$10,MATCH($C41,'Efficiency Distributions'!$C$9:$C$87,0)+RIGHT($E45),0))\n/SUM(BF$10:BF$11)","v":0.24118043018193883},{"$f":"IF(INDEX(PC_MAPPING,RIGHT($C41,1),MATCH($E$2,'Data by Building Type'!$D$22:$F$22,0))=\"Yes\",1,0)*\n(BG$10*OFFSET('Efficiency Distributions'!$D$10,MATCH($C41,'Efficiency Distributions'!$C$9:$C$87,0)+RIGHT($E45),0)\n+BG$11*OFFSET('Efficiency Distributions'!$E$10,MATCH($C41,'Efficiency Distributions'!$C$9:$C$87,0)+RIGHT($E45),0))\n/SUM(BG$10:BG$11)","v":0.24099323977746298}]
[null,null,null,null,"EL1",{"$f":"IF(INDEX(PC_MAPPING,RIGHT($C41,1),MATCH($E$2,'Data by Building Type'!$D$22:$F$22,0))=\"Yes\",1,0)*\n(F$10*OFFSET('Efficiency Distributions'!$D$10,MATCH($C41,'Efficiency Distributions'!$C$9:$C$87,0)+RIGHT($E46),0)\n+F$11*OFFSET('Efficiency Distributions'!$E$10,MATCH($C41,'Efficiency Distributions'!$C$9:$C$87,0)+RIGHT($E46),0))\n/SUM(F$10:F$11)","v":0.34016062378736045},{"$f":"IF(INDEX(PC_MAPPING,RIGHT($C41,1),MATCH($E$2,'Data by Building Type'!$D$22:$F$22,0))=\"Yes\",1,0)*\n(G$10*OFFSET('Efficiency Distributions'!$D$10,MATCH($C41,'Efficiency Distributions'!$C$9:$C$87,0)+RIGHT($E46),0)\n+G$11*OFFSET('Efficiency Distributions'!$E$10,MATCH($C41,'Efficiency Distributions'!$C$9:$C$87,0)+RIGHT($E46),0))\n/SUM(G$10:G$11)","v":0.33120234910421897},{"$f":"IF(INDEX(PC_MAPPING,RIGHT($C41,1),MATCH($E$2,'Data by Building Type'!$D$22:$F$22,0))=\"Yes\",1,0)*\n(H$10*OFFSET('Efficiency Distributions'!$D$10,MATCH($C41,'Efficiency Distributions'!$C$9:$C$87,0)+RIGHT($E46),0)\n+H$11*OFFSET('Efficiency Distributions'!$E$10,MATCH($C41,'Efficiency Distributions'!$C$9:$C$87,0)+RIGHT($E46),0))\n/SUM(H$10:H$11)","v":0.33537848783683588},{"$f":"IF(INDEX(PC_MAPPING,RIGHT($C41,1),MATCH($E$2,'Data by Building Type'!$D$22:$F$22,0))=\"Yes\",1,0)*\n(I$10*OFFSET('Efficiency Distributions'!$D$10,MATCH($C41,'Efficiency Distributions'!$C$9:$C$87,0)+RIGHT($E46),0)\n+I$11*OFFSET('Efficiency Distributions'!$E$10,MATCH($C41,'Efficiency Distributions'!$C$9:$C$87,0)+RIGHT($E46),0))\n/SUM(I$10:I$11)","v":0.34749848165009461},{"$f":"IF(INDEX(PC_MAPPING,RIGHT($C41,1),MATCH($E$2,'Data by Building Type'!$D$22:$F$22,0))=\"Yes\",1,0)*\n(J$10*OFFSET('Efficiency Distributions'!$D$10,MATCH($C41,'Efficiency Distributions'!$C$9:$C$87,0)+RIGHT($E46),0)\n+J$11*OFFSET('Efficiency Distributions'!$E$10,MATCH($C41,'Efficiency Distributions'!$C$9:$C$87,0)+RIGHT($E46),0))\n/SUM(J$10:J$11)","v":0.36136670724537079},{"$f":"IF(INDEX(PC_MAPPING,RIGHT($C41,1),MATCH($E$2,'Data by Building Type'!$D$22:$F$22,0))=\"Yes\",1,0)*\n(K$10*OFFSET('Efficiency Distributions'!$D$10,MATCH($C41,'Efficiency Distributions'!$C$9:$C$87,0)+RIGHT($E46),0)\n+K$11*OFFSET('Efficiency Distributions'!$E$10,MATCH($C41,'Efficiency Distributions'!$C$9:$C$87,0)+RIGHT($E46),0))\n/SUM(K$10:K$11)","v":0.35745872899010689},{"$f":"IF(INDEX(PC_MAPPING,RIGHT($C41,1),MATCH($E$2,'Data by Building Type'!$D$22:$F$22,0))=\"Yes\",1,0)*\n(L$10*OFFSET('Efficiency Distributions'!$D$10,MATCH($C41,'Efficiency Distributions'!$C$9:$C$87,0)+RIGHT($E46),0)\n+L$11*OFFSET('Efficiency Distributions'!$E$10,MATCH($C41,'Efficiency Distributions'!$C$9:$C$87,0)+RIGHT($E46),0))\n/SUM(L$10:L$11)","v":0.36108353496555085},{"$f":"IF(INDEX(PC_MAPPING,RIGHT($C41,1),MATCH($E$2,'Data by Building Type'!$D$22:$F$22,0))=\"Yes\",1,0)*\n(M$10*OFFSET('Efficiency Distributions'!$D$10,MATCH($C41,'Efficiency Distributions'!$C$9:$C$87,0)+RIGHT($E46),0)\n+M$11*OFFSET('Efficiency Distributions'!$E$10,MATCH($C41,'Efficiency Distributions'!$C$9:$C$87,0)+RIGHT($E46),0))\n/SUM(M$10:M$11)","v":0.36836091901604323},{"$f":"IF(INDEX(PC_MAPPING,RIGHT($C41,1),MATCH($E$2,'Data by Building Type'!$D$22:$F$22,0))=\"Yes\",1,0)*\n(N$10*OFFSET('Efficiency Distributions'!$D$10,MATCH($C41,'Efficiency Distributions'!$C$9:$C$87,0)+RIGHT($E46),0)\n+N$11*OFFSET('Efficiency Distributions'!$E$10,MATCH($C41,'Efficiency Distributions'!$C$9:$C$87,0)+RIGHT($E46),0))\n/SUM(N$10:N$11)","v":0.37431611186637026},{"$f":"IF(INDEX(PC_MAPPING,RIGHT($C41,1),MATCH($E$2,'Data by Building Type'!$D$22:$F$22,0))=\"Yes\",1,0)*\n(O$10*OFFSET('Efficiency Distributions'!$D$10,MATCH($C41,'Efficiency Distributions'!$C$9:$C$87,0)+RIGHT($E46),0)\n+O$11*OFFSET('Efficiency Distributions'!$E$10,MATCH($C41,'Efficiency Distributions'!$C$9:$C$87,0)+RIGHT($E46),0))\n/SUM(O$10:O$11)","v":0.36875316232257949},{"$f":"IF(INDEX(PC_MAPPING,RIGHT($C41,1),MATCH($E$2,'Data by Building Type'!$D$22:$F$22,0))=\"Yes\",1,0)*\n(P$10*OFFSET('Efficiency Distributions'!$D$10,MATCH($C41,'Efficiency Distributions'!$C$9:$C$87,0)+RIGHT($E46),0)\n+P$11*OFFSET('Efficiency Distributions'!$E$10,MATCH($C41,'Efficiency Distributions'!$C$9:$C$87,0)+RIGHT($E46),0))\n/SUM(P$10:P$11)","v":0.34426958017057963},{"$f":"IF(INDEX(PC_MAPPING,RIGHT($C41,1),MATCH($E$2,'Data by Building Type'!$D$22:$F$22,0))=\"Yes\",1,0)*\n(Q$10*OFFSET('Efficiency Distributions'!$D$10,MATCH($C41,'Efficiency Distributions'!$C$9:$C$87,0)+RIGHT($E46),0)\n+Q$11*OFFSET('Efficiency Distributions'!$E$10,MATCH($C41,'Efficiency Distributions'!$C$9:$C$87,0)+RIGHT($E46),0))\n/SUM(Q$10:Q$11)","v":0.34500194221559866},{"$f":"IF(INDEX(PC_MAPPING,RIGHT($C41,1),MATCH($E$2,'Data by Building Type'!$D$22:$F$22,0))=\"Yes\",1,0)*\n(R$10*OFFSET('Efficiency Distributions'!$D$10,MATCH($C41,'Efficiency Distributions'!$C$9:$C$87,0)+RIGHT($E46),0)\n+R$11*OFFSET('Efficiency Distributions'!$E$10,MATCH($C41,'Efficiency Distributions'!$C$9:$C$87,0)+RIGHT($E46),0))\n/SUM(R$10:R$11)","v":0.29932552553607145},{"$f":"IF(INDEX(PC_MAPPING,RIGHT($C41,1),MATCH($E$2,'Data by Building Type'!$D$22:$F$22,0))=\"Yes\",1,0)*\n(S$10*OFFSET('Efficiency Distributions'!$D$10,MATCH($C41,'Efficiency Distributions'!$C$9:$C$87,0)+RIGHT($E46),0)\n+S$11*OFFSET('Efficiency Distributions'!$E$10,MATCH($C41,'Efficiency Distributions'!$C$9:$C$87,0)+RIGHT($E46),0))\n/SUM(S$10:S$11)","v":0.29932552553607145},{"$f":"IF(INDEX(PC_MAPPING,RIGHT($C41,1),MATCH($E$2,'Data by Building Type'!$D$22:$F$22,0))=\"Yes\",1,0)*\n(T$10*OFFSET('Efficiency Distributions'!$D$10,MATCH($C41,'Efficiency Distributions'!$C$9:$C$87,0)+RIGHT($E46),0)\n+T$11*OFFSET('Efficiency Distributions'!$E$10,MATCH($C41,'Efficiency Distributions'!$C$9:$C$87,0)+RIGHT($E46),0))\n/SUM(T$10:T$11)","v":0.29932552553607145},{"$f":"IF(INDEX(PC_MAPPING,RIGHT($C41,1),MATCH($E$2,'Data by Building Type'!$D$22:$F$22,0))=\"Yes\",1,0)*\n(U$10*OFFSET('Efficiency Distributions'!$D$10,MATCH($C41,'Efficiency Distributions'!$C$9:$C$87,0)+RIGHT($E46),0)\n+U$11*OFFSET('Efficiency Distributions'!$E$10,MATCH($C41,'Efficiency Distributions'!$C$9:$C$87,0)+RIGHT($E46),0))\n/SUM(U$10:U$11)","v":0.29932552553607145},{"$f":"IF(INDEX(PC_MAPPING,RIGHT($C41,1),MATCH($E$2,'Data by Building Type'!$D$22:$F$22,0))=\"Yes\",1,0)*\n(V$10*OFFSET('Efficiency Distributions'!$D$10,MATCH($C41,'Efficiency Distributions'!$C$9:$C$87,0)+RIGHT($E46),0)\n+V$11*OFFSET('Efficiency Distributions'!$E$10,MATCH($C41,'Efficiency Distributions'!$C$9:$C$87,0)+RIGHT($E46),0))\n/SUM(V$10:V$11)","v":0.29932552553607145},{"$f":"IF(INDEX(PC_MAPPING,RIGHT($C41,1),MATCH($E$2,'Data by Building Type'!$D$22:$F$22,0))=\"Yes\",1,0)*\n(W$10*OFFSET('Efficiency Distributions'!$D$10,MATCH($C41,'Efficiency Distributions'!$C$9:$C$87,0)+RIGHT($E46),0)\n+W$11*OFFSET('Efficiency Distributions'!$E$10,MATCH($C41,'Efficiency Distributions'!$C$9:$C$87,0)+RIGHT($E46),0))\n/SUM(W$10:W$11)","v":0.29932552553607145},{"$f":"IF(INDEX(PC_MAPPING,RIGHT($C41,1),MATCH($E$2,'Data by Building Type'!$D$22:$F$22,0))=\"Yes\",1,0)*\n(X$10*OFFSET('Efficiency Distributions'!$D$10,MATCH($C41,'Efficiency Distributions'!$C$9:$C$87,0)+RIGHT($E46),0)\n+X$11*OFFSET('Efficiency Distributions'!$E$10,MATCH($C41,'Efficiency Distributions'!$C$9:$C$87,0)+RIGHT($E46),0))\n/SUM(X$10:X$11)","v":0.29932552553607145},{"$f":"IF(INDEX(PC_MAPPING,RIGHT($C41,1),MATCH($E$2,'Data by Building Type'!$D$22:$F$22,0))=\"Yes\",1,0)*\n(Y$10*OFFSET('Efficiency Distributions'!$D$10,MATCH($C41,'Efficiency Distributions'!$C$9:$C$87,0)+RIGHT($E46),0)\n+Y$11*OFFSET('Efficiency Distributions'!$E$10,MATCH($C41,'Efficiency Distributions'!$C$9:$C$87,0)+RIGHT($E46),0))\n/SUM(Y$10:Y$11)","v":0.29932552553607145},{"$f":"IF(INDEX(PC_MAPPING,RIGHT($C41,1),MATCH($E$2,'Data by Building Type'!$D$22:$F$22,0))=\"Yes\",1,0)*\n(Z$10*OFFSET('Efficiency Distributions'!$D$10,MATCH($C41,'Efficiency Distributions'!$C$9:$C$87,0)+RIGHT($E46),0)\n+Z$11*OFFSET('Efficiency Distributions'!$E$10,MATCH($C41,'Efficiency Distributions'!$C$9:$C$87,0)+RIGHT($E46),0))\n/SUM(Z$10:Z$11)","v":0.29932552553607145},{"$f":"IF(INDEX(PC_MAPPING,RIGHT($C41,1),MATCH($E$2,'Data by Building Type'!$D$22:$F$22,0))=\"Yes\",1,0)*\n(AA$10*OFFSET('Efficiency Distributions'!$D$10,MATCH($C41,'Efficiency Distributions'!$C$9:$C$87,0)+RIGHT($E46),0)\n+AA$11*OFFSET('Efficiency Distributions'!$E$10,MATCH($C41,'Efficiency Distributions'!$C$9:$C$87,0)+RIGHT($E46),0))\n/SUM(AA$10:AA$11)","v":0.29932552553607145},{"$f":"IF(INDEX(PC_MAPPING,RIGHT($C41,1),MATCH($E$2,'Data by Building Type'!$D$22:$F$22,0))=\"Yes\",1,0)*\n(AB$10*OFFSET('Efficiency Distributions'!$D$10,MATCH($C41,'Efficiency Distributions'!$C$9:$C$87,0)+RIGHT($E46),0)\n+AB$11*OFFSET('Efficiency Distributions'!$E$10,MATCH($C41,'Efficiency Distributions'!$C$9:$C$87,0)+RIGHT($E46),0))\n/SUM(AB$10:AB$11)","v":0.29932552553607145},{"$f":"IF(INDEX(PC_MAPPING,RIGHT($C41,1),MATCH($E$2,'Data by Building Type'!$D$22:$F$22,0))=\"Yes\",1,0)*\n(AC$10*OFFSET('Efficiency Distributions'!$D$10,MATCH($C41,'Efficiency Distributions'!$C$9:$C$87,0)+RIGHT($E46),0)\n+AC$11*OFFSET('Efficiency Distributions'!$E$10,MATCH($C41,'Efficiency Distributions'!$C$9:$C$87,0)+RIGHT($E46),0))\n/SUM(AC$10:AC$11)","v":0.29932552553607145},{"$f":"IF(INDEX(PC_MAPPING,RIGHT($C41,1),MATCH($E$2,'Data by Building Type'!$D$22:$F$22,0))=\"Yes\",1,0)*\n(AD$10*OFFSET('Efficiency Distributions'!$D$10,MATCH($C41,'Efficiency Distributions'!$C$9:$C$87,0)+RIGHT($E46),0)\n+AD$11*OFFSET('Efficiency Distributions'!$E$10,MATCH($C41,'Efficiency Distributions'!$C$9:$C$87,0)+RIGHT($E46),0))\n/SUM(AD$10:AD$11)","v":0.29932552553607145},{"$f":"IF(INDEX(PC_MAPPING,RIGHT($C41,1),MATCH($E$2,'Data by Building Type'!$D$22:$F$22,0))=\"Yes\",1,0)*\n(AE$10*OFFSET('Efficiency Distributions'!$D$10,MATCH($C41,'Efficiency Distributions'!$C$9:$C$87,0)+RIGHT($E46),0)\n+AE$11*OFFSET('Efficiency Distributions'!$E$10,MATCH($C41,'Efficiency Distributions'!$C$9:$C$87,0)+RIGHT($E46),0))\n/SUM(AE$10:AE$11)","v":0.29932552553607145},{"$f":"IF(INDEX(PC_MAPPING,RIGHT($C41,1),MATCH($E$2,'Data by Building Type'!$D$22:$F$22,0))=\"Yes\",1,0)*\n(AF$10*OFFSET('Efficiency Distributions'!$D$10,MATCH($C41,'Efficiency Distributions'!$C$9:$C$87,0)+RIGHT($E46),0)\n+AF$11*OFFSET('Efficiency Distributions'!$E$10,MATCH($C41,'Efficiency Distributions'!$C$9:$C$87,0)+RIGHT($E46),0))\n/SUM(AF$10:AF$11)","v":0.29932552553607145},{"$f":"IF(INDEX(PC_MAPPING,RIGHT($C41,1),MATCH($E$2,'Data by Building Type'!$D$22:$F$22,0))=\"Yes\",1,0)*\n(AG$10*OFFSET('Efficiency Distributions'!$D$10,MATCH($C41,'Efficiency Distributions'!$C$9:$C$87,0)+RIGHT($E46),0)\n+AG$11*OFFSET('Efficiency Distributions'!$E$10,MATCH($C41,'Efficiency Distributions'!$C$9:$C$87,0)+RIGHT($E46),0))\n/SUM(AG$10:AG$11)","v":0.29932552553607145},{"$f":"IF(INDEX(PC_MAPPING,RIGHT($C41,1),MATCH($E$2,'Data by Building Type'!$D$22:$F$22,0))=\"Yes\",1,0)*\n(AH$10*OFFSET('Efficiency Distributions'!$D$10,MATCH($C41,'Efficiency Distributions'!$C$9:$C$87,0)+RIGHT($E46),0)\n+AH$11*OFFSET('Efficiency Distributions'!$E$10,MATCH($C41,'Efficiency Distributions'!$C$9:$C$87,0)+RIGHT($E46),0))\n/SUM(AH$10:AH$11)","v":0.29932552553607145},{"$f":"IF(INDEX(PC_MAPPING,RIGHT($C41,1),MATCH($E$2,'Data by Building Type'!$D$22:$F$22,0))=\"Yes\",1,0)*\n(AI$10*OFFSET('Efficiency Distributions'!$D$10,MATCH($C41,'Efficiency Distributions'!$C$9:$C$87,0)+RIGHT($E46),0)\n+AI$11*OFFSET('Efficiency Distributions'!$E$10,MATCH($C41,'Efficiency Distributions'!$C$9:$C$87,0)+RIGHT($E46),0))\n/SUM(AI$10:AI$11)","v":0.29932552553607145},{"$f":"IF(INDEX(PC_MAPPING,RIGHT($C41,1),MATCH($E$2,'Data by Building Type'!$D$22:$F$22,0))=\"Yes\",1,0)*\n(AJ$10*OFFSET('Efficiency Distributions'!$D$10,MATCH($C41,'Efficiency Distributions'!$C$9:$C$87,0)+RIGHT($E46),0)\n+AJ$11*OFFSET('Efficiency Distributions'!$E$10,MATCH($C41,'Efficiency Distributions'!$C$9:$C$87,0)+RIGHT($E46),0))\n/SUM(AJ$10:AJ$11)","v":0.29932552553607145},{"$f":"IF(INDEX(PC_MAPPING,RIGHT($C41,1),MATCH($E$2,'Data by Building Type'!$D$22:$F$22,0))=\"Yes\",1,0)*\n(AK$10*OFFSET('Efficiency Distributions'!$D$10,MATCH($C41,'Efficiency Distributions'!$C$9:$C$87,0)+RIGHT($E46),0)\n+AK$11*OFFSET('Efficiency Distributions'!$E$10,MATCH($C41,'Efficiency Distributions'!$C$9:$C$87,0)+RIGHT($E46),0))\n/SUM(AK$10:AK$11)","v":0.31935876906069505},{"$f":"IF(INDEX(PC_MAPPING,RIGHT($C41,1),MATCH($E$2,'Data by Building Type'!$D$22:$F$22,0))=\"Yes\",1,0)*\n(AL$10*OFFSET('Efficiency Distributions'!$D$10,MATCH($C41,'Efficiency Distributions'!$C$9:$C$87,0)+RIGHT($E46),0)\n+AL$11*OFFSET('Efficiency Distributions'!$E$10,MATCH($C41,'Efficiency Distributions'!$C$9:$C$87,0)+RIGHT($E46),0))\n/SUM(AL$10:AL$11)","v":0.32016337836635045},{"$f":"IF(INDEX(PC_MAPPING,RIGHT($C41,1),MATCH($E$2,'Data by Building Type'!$D$22:$F$22,0))=\"Yes\",1,0)*\n(AM$10*OFFSET('Efficiency Distributions'!$D$10,MATCH($C41,'Efficiency Distributions'!$C$9:$C$87,0)+RIGHT($E46),0)\n+AM$11*OFFSET('Efficiency Distributions'!$E$10,MATCH($C41,'Efficiency Distributions'!$C$9:$C$87,0)+RIGHT($E46),0))\n/SUM(AM$10:AM$11)","v":0.33920834463518063},{"$f":"IF(INDEX(PC_MAPPING,RIGHT($C41,1),MATCH($E$2,'Data by Building Type'!$D$22:$F$22,0))=\"Yes\",1,0)*\n(AN$10*OFFSET('Efficiency Distributions'!$D$10,MATCH($C41,'Efficiency Distributions'!$C$9:$C$87,0)+RIGHT($E46),0)\n+AN$11*OFFSET('Efficiency Distributions'!$E$10,MATCH($C41,'Efficiency Distributions'!$C$9:$C$87,0)+RIGHT($E46),0))\n/SUM(AN$10:AN$11)","v":0.33823676035552042},{"$f":"IF(INDEX(PC_MAPPING,RIGHT($C41,1),MATCH($E$2,'Data by Building Type'!$D$22:$F$22,0))=\"Yes\",1,0)*\n(AO$10*OFFSET('Efficiency Distributions'!$D$10,MATCH($C41,'Efficiency Distributions'!$C$9:$C$87,0)+RIGHT($E46),0)\n+AO$11*OFFSET('Efficiency Distributions'!$E$10,MATCH($C41,'Efficiency Distributions'!$C$9:$C$87,0)+RIGHT($E46),0))\n/SUM(AO$10:AO$11)","v":0.33942054808152405},{"$f":"IF(INDEX(PC_MAPPING,RIGHT($C41,1),MATCH($E$2,'Data by Building Type'!$D$22:$F$22,0))=\"Yes\",1,0)*\n(AP$10*OFFSET('Efficiency Distributions'!$D$10,MATCH($C41,'Efficiency Distributions'!$C$9:$C$87,0)+RIGHT($E46),0)\n+AP$11*OFFSET('Efficiency Distributions'!$E$10,MATCH($C41,'Efficiency Distributions'!$C$9:$C$87,0)+RIGHT($E46),0))\n/SUM(AP$10:AP$11)","v":0.34184835176702627},{"$f":"IF(INDEX(PC_MAPPING,RIGHT($C41,1),MATCH($E$2,'Data by Building Type'!$D$22:$F$22,0))=\"Yes\",1,0)*\n(AQ$10*OFFSET('Efficiency Distributions'!$D$10,MATCH($C41,'Efficiency Distributions'!$C$9:$C$87,0)+RIGHT($E46),0)\n+AQ$11*OFFSET('Efficiency Distributions'!$E$10,MATCH($C41,'Efficiency Distributions'!$C$9:$C$87,0)+RIGHT($E46),0))\n/SUM(AQ$10:AQ$11)","v":0.34431457846196217},{"$f":"IF(INDEX(PC_MAPPING,RIGHT($C41,1),MATCH($E$2,'Data by Building Type'!$D$22:$F$22,0))=\"Yes\",1,0)*\n(AR$10*OFFSET('Efficiency Distributions'!$D$10,MATCH($C41,'Efficiency Distributions'!$C$9:$C$87,0)+RIGHT($E46),0)\n+AR$11*OFFSET('Efficiency Distributions'!$E$10,MATCH($C41,'Efficiency Distributions'!$C$9:$C$87,0)+RIGHT($E46),0))\n/SUM(AR$10:AR$11)","v":0.34380007139767832},{"$f":"IF(INDEX(PC_MAPPING,RIGHT($C41,1),MATCH($E$2,'Data by Building Type'!$D$22:$F$22,0))=\"Yes\",1,0)*\n(AS$10*OFFSET('Efficiency Distributions'!$D$10,MATCH($C41,'Efficiency Distributions'!$C$9:$C$87,0)+RIGHT($E46),0)\n+AS$11*OFFSET('Efficiency Distributions'!$E$10,MATCH($C41,'Efficiency Distributions'!$C$9:$C$87,0)+RIGHT($E46),0))\n/SUM(AS$10:AS$11)","v":0.35228197484623408},{"$f":"IF(INDEX(PC_MAPPING,RIGHT($C41,1),MATCH($E$2,'Data by Building Type'!$D$22:$F$22,0))=\"Yes\",1,0)*\n(AT$10*OFFSET('Efficiency Distributions'!$D$10,MATCH($C41,'Efficiency Distributions'!$C$9:$C$87,0)+RIGHT($E46),0)\n+AT$11*OFFSET('Efficiency Distributions'!$E$10,MATCH($C41,'Efficiency Distributions'!$C$9:$C$87,0)+RIGHT($E46),0))\n/SUM(AT$10:AT$11)","v":0.36124699330484061},{"$f":"IF(INDEX(PC_MAPPING,RIGHT($C41,1),MATCH($E$2,'Data by Building Type'!$D$22:$F$22,0))=\"Yes\",1,0)*\n(AU$10*OFFSET('Efficiency Distributions'!$D$10,MATCH($C41,'Efficiency Distributions'!$C$9:$C$87,0)+RIGHT($E46),0)\n+AU$11*OFFSET('Efficiency Distributions'!$E$10,MATCH($C41,'Efficiency Distributions'!$C$9:$C$87,0)+RIGHT($E46),0))\n/SUM(AU$10:AU$11)","v":0.36405682644226206},{"$f":"IF(INDEX(PC_MAPPING,RIGHT($C41,1),MATCH($E$2,'Data by Building Type'!$D$22:$F$22,0))=\"Yes\",1,0)*\n(AV$10*OFFSET('Efficiency Distributions'!$D$10,MATCH($C41,'Efficiency Distributions'!$C$9:$C$87,0)+RIGHT($E46),0)\n+AV$11*OFFSET('Efficiency Distributions'!$E$10,MATCH($C41,'Efficiency Distributions'!$C$9:$C$87,0)+RIGHT($E46),0))\n/SUM(AV$10:AV$11)","v":0.3440137022701526},{"$f":"IF(INDEX(PC_MAPPING,RIGHT($C41,1),MATCH($E$2,'Data by Building Type'!$D$22:$F$22,0))=\"Yes\",1,0)*\n(AW$10*OFFSET('Efficiency Distributions'!$D$10,MATCH($C41,'Efficiency Distributions'!$C$9:$C$87,0)+RIGHT($E46),0)\n+AW$11*OFFSET('Efficiency Distributions'!$E$10,MATCH($C41,'Efficiency Distributions'!$C$9:$C$87,0)+RIGHT($E46),0))\n/SUM(AW$10:AW$11)","v":0.35062066091985022},{"$f":"IF(INDEX(PC_MAPPING,RIGHT($C41,1),MATCH($E$2,'Data by Building Type'!$D$22:$F$22,0))=\"Yes\",1,0)*\n(AX$10*OFFSET('Efficiency Distributions'!$D$10,MATCH($C41,'Efficiency Distributions'!$C$9:$C$87,0)+RIGHT($E46),0)\n+AX$11*OFFSET('Efficiency Distributions'!$E$10,MATCH($C41,'Efficiency Distributions'!$C$9:$C$87,0)+RIGHT($E46),0))\n/SUM(AX$10:AX$11)","v":0.34700811851239338},{"$f":"IF(INDEX(PC_MAPPING,RIGHT($C41,1),MATCH($E$2,'Data by Building Type'!$D$22:$F$22,0))=\"Yes\",1,0)*\n(AY$10*OFFSET('Efficiency Distributions'!$D$10,MATCH($C41,'Efficiency Distributions'!$C$9:$C$87,0)+RIGHT($E46),0)\n+AY$11*OFFSET('Efficiency Distributions'!$E$10,MATCH($C41,'Efficiency Distributions'!$C$9:$C$87,0)+RIGHT($E46),0))\n/SUM(AY$10:AY$11)","v":0.34093350139022827},{"$f":"IF(INDEX(PC_MAPPING,RIGHT($C41,1),MATCH($E$2,'Data by Building Type'!$D$22:$F$22,0))=\"Yes\",1,0)*\n(AZ$10*OFFSET('Efficiency Distributions'!$D$10,MATCH($C41,'Efficiency Distributions'!$C$9:$C$87,0)+RIGHT($E46),0)\n+AZ$11*OFFSET('Efficiency Distributions'!$E$10,MATCH($C41,'Efficiency Distributions'!$C$9:$C$87,0)+RIGHT($E46),0))\n/SUM(AZ$10:AZ$11)","v":0.33241031631439832},{"$f":"IF(INDEX(PC_MAPPING,RIGHT($C41,1),MATCH($E$2,'Data by Building Type'!$D$22:$F$22,0))=\"Yes\",1,0)*\n(BA$10*OFFSET('Efficiency Distributions'!$D$10,MATCH($C41,'Efficiency Distributions'!$C$9:$C$87,0)+RIGHT($E46),0)\n+BA$11*OFFSET('Efficiency Distributions'!$E$10,MATCH($C41,'Efficiency Distributions'!$C$9:$C$87,0)+RIGHT($E46),0))\n/SUM(BA$10:BA$11)","v":0.3359639221648672},{"$f":"IF(INDEX(PC_MAPPING,RIGHT($C41,1),MATCH($E$2,'Data by Building Type'!$D$22:$F$22,0))=\"Yes\",1,0)*\n(BB$10*OFFSET('Efficiency Distributions'!$D$10,MATCH($C41,'Efficiency Distributions'!$C$9:$C$87,0)+RIGHT($E46),0)\n+BB$11*OFFSET('Efficiency Distributions'!$E$10,MATCH($C41,'Efficiency Distributions'!$C$9:$C$87,0)+RIGHT($E46),0))\n/SUM(BB$10:BB$11)","v":0.33737400611228513},{"$f":"IF(INDEX(PC_MAPPING,RIGHT($C41,1),MATCH($E$2,'Data by Building Type'!$D$22:$F$22,0))=\"Yes\",1,0)*\n(BC$10*OFFSET('Efficiency Distributions'!$D$10,MATCH($C41,'Efficiency Distributions'!$C$9:$C$87,0)+RIGHT($E46),0)\n+BC$11*OFFSET('Efficiency Distributions'!$E$10,MATCH($C41,'Efficiency Distributions'!$C$9:$C$87,0)+RIGHT($E46),0))\n/SUM(BC$10:BC$11)","v":0.33645061926655234},{"$f":"IF(INDEX(PC_MAPPING,RIGHT($C41,1),MATCH($E$2,'Data by Building Type'!$D$22:$F$22,0))=\"Yes\",1,0)*\n(BD$10*OFFSET('Efficiency Distributions'!$D$10,MATCH($C41,'Efficiency Distributions'!$C$9:$C$87,0)+RIGHT($E46),0)\n+BD$11*OFFSET('Efficiency Distributions'!$E$10,MATCH($C41,'Efficiency Distributions'!$C$9:$C$87,0)+RIGHT($E46),0))\n/SUM(BD$10:BD$11)","v":0.33063517079061699},{"$f":"IF(INDEX(PC_MAPPING,RIGHT($C41,1),MATCH($E$2,'Data by Building Type'!$D$22:$F$22,0))=\"Yes\",1,0)*\n(BE$10*OFFSET('Efficiency Distributions'!$D$10,MATCH($C41,'Efficiency Distributions'!$C$9:$C$87,0)+RIGHT($E46),0)\n+BE$11*OFFSET('Efficiency Distributions'!$E$10,MATCH($C41,'Efficiency Distributions'!$C$9:$C$87,0)+RIGHT($E46),0))\n/SUM(BE$10:BE$11)","v":0.33397822815839168},{"$f":"IF(INDEX(PC_MAPPING,RIGHT($C41,1),MATCH($E$2,'Data by Building Type'!$D$22:$F$22,0))=\"Yes\",1,0)*\n(BF$10*OFFSET('Efficiency Distributions'!$D$10,MATCH($C41,'Efficiency Distributions'!$C$9:$C$87,0)+RIGHT($E46),0)\n+BF$11*OFFSET('Efficiency Distributions'!$E$10,MATCH($C41,'Efficiency Distributions'!$C$9:$C$87,0)+RIGHT($E46),0))\n/SUM(BF$10:BF$11)","v":0.32314358143676614},{"$f":"IF(INDEX(PC_MAPPING,RIGHT($C41,1),MATCH($E$2,'Data by Building Type'!$D$22:$F$22,0))=\"Yes\",1,0)*\n(BG$10*OFFSET('Efficiency Distributions'!$D$10,MATCH($C41,'Efficiency Distributions'!$C$9:$C$87,0)+RIGHT($E46),0)\n+BG$11*OFFSET('Efficiency Distributions'!$E$10,MATCH($C41,'Efficiency Distributions'!$C$9:$C$87,0)+RIGHT($E46),0))\n/SUM(BG$10:BG$11)","v":0.32303648311899524}]
[null,null,null,null,"EL2",{"$f":"IF(INDEX(PC_MAPPING,RIGHT($C41,1),MATCH($E$2,'Data by Building Type'!$D$22:$F$22,0))=\"Yes\",1,0)*\n(F$10*OFFSET('Efficiency Distributions'!$D$10,MATCH($C41,'Efficiency Distributions'!$C$9:$C$87,0)+RIGHT($E47),0)\n+F$11*OFFSET('Efficiency Distributions'!$E$10,MATCH($C41,'Efficiency Distributions'!$C$9:$C$87,0)+RIGHT($E47),0))\n/SUM(F$10:F$11)","v":0},{"$f":"IF(INDEX(PC_MAPPING,RIGHT($C41,1),MATCH($E$2,'Data by Building Type'!$D$22:$F$22,0))=\"Yes\",1,0)*\n(G$10*OFFSET('Efficiency Distributions'!$D$10,MATCH($C41,'Efficiency Distributions'!$C$9:$C$87,0)+RIGHT($E47),0)\n+G$11*OFFSET('Efficiency Distributions'!$E$10,MATCH($C41,'Efficiency Distributions'!$C$9:$C$87,0)+RIGHT($E47),0))\n/SUM(G$10:G$11)","v":0},{"$f":"IF(INDEX(PC_MAPPING,RIGHT($C41,1),MATCH($E$2,'Data by Building Type'!$D$22:$F$22,0))=\"Yes\",1,0)*\n(H$10*OFFSET('Efficiency Distributions'!$D$10,MATCH($C41,'Efficiency Distributions'!$C$9:$C$87,0)+RIGHT($E47),0)\n+H$11*OFFSET('Efficiency Distributions'!$E$10,MATCH($C41,'Efficiency Distributions'!$C$9:$C$87,0)+RIGHT($E47),0))\n/SUM(H$10:H$11)","v":0},{"$f":"IF(INDEX(PC_MAPPING,RIGHT($C41,1),MATCH($E$2,'Data by Building Type'!$D$22:$F$22,0))=\"Yes\",1,0)*\n(I$10*OFFSET('Efficiency Distributions'!$D$10,MATCH($C41,'Efficiency Distributions'!$C$9:$C$87,0)+RIGHT($E47),0)\n+I$11*OFFSET('Efficiency Distributions'!$E$10,MATCH($C41,'Efficiency Distributions'!$C$9:$C$87,0)+RIGHT($E47),0))\n/SUM(I$10:I$11)","v":0},{"$f":"IF(INDEX(PC_MAPPING,RIGHT($C41,1),MATCH($E$2,'Data by Building Type'!$D$22:$F$22,0))=\"Yes\",1,0)*\n(J$10*OFFSET('Efficiency Distributions'!$D$10,MATCH($C41,'Efficiency Distributions'!$C$9:$C$87,0)+RIGHT($E47),0)\n+J$11*OFFSET('Efficiency Distributions'!$E$10,MATCH($C41,'Efficiency Distributions'!$C$9:$C$87,0)+RIGHT($E47),0))\n/SUM(J$10:J$11)","v":0},{"$f":"IF(INDEX(PC_MAPPING,RIGHT($C41,1),MATCH($E$2,'Data by Building Type'!$D$22:$F$22,0))=\"Yes\",1,0)*\n(K$10*OFFSET('Efficiency Distributions'!$D$10,MATCH($C41,'Efficiency Distributions'!$C$9:$C$87,0)+RIGHT($E47),0)\n+K$11*OFFSET('Efficiency Distributions'!$E$10,MATCH($C41,'Efficiency Distributions'!$C$9:$C$87,0)+RIGHT($E47),0))\n/SUM(K$10:K$11)","v":0},{"$f":"IF(INDEX(PC_MAPPING,RIGHT($C41,1),MATCH($E$2,'Data by Building Type'!$D$22:$F$22,0))=\"Yes\",1,0)*\n(L$10*OFFSET('Efficiency Distributions'!$D$10,MATCH($C41,'Efficiency Distributions'!$C$9:$C$87,0)+RIGHT($E47),0)\n+L$11*OFFSET('Efficiency Distributions'!$E$10,MATCH($C41,'Efficiency Distributions'!$C$9:$C$87,0)+RIGHT($E47),0))\n/SUM(L$10:L$11)","v":0},{"$f":"IF(INDEX(PC_MAPPING,RIGHT($C41,1),MATCH($E$2,'Data by Building Type'!$D$22:$F$22,0))=\"Yes\",1,0)*\n(M$10*OFFSET('Efficiency Distributions'!$D$10,MATCH($C41,'Efficiency Distributions'!$C$9:$C$87,0)+RIGHT($E47),0)\n+M$11*OFFSET('Efficiency Distributions'!$E$10,MATCH($C41,'Efficiency Distributions'!$C$9:$C$87,0)+RIGHT($E47),0))\n/SUM(M$10:M$11)","v":0},{"$f":"IF(INDEX(PC_MAPPING,RIGHT($C41,1),MATCH($E$2,'Data by Building Type'!$D$22:$F$22,0))=\"Yes\",1,0)*\n(N$10*OFFSET('Efficiency Distributions'!$D$10,MATCH($C41,'Efficiency Distributions'!$C$9:$C$87,0)+RIGHT($E47),0)\n+N$11*OFFSET('Efficiency Distributions'!$E$10,MATCH($C41,'Efficiency Distributions'!$C$9:$C$87,0)+RIGHT($E47),0))\n/SUM(N$10:N$11)","v":0},{"$f":"IF(INDEX(PC_MAPPING,RIGHT($C41,1),MATCH($E$2,'Data by Building Type'!$D$22:$F$22,0))=\"Yes\",1,0)*\n(O$10*OFFSET('Efficiency Distributions'!$D$10,MATCH($C41,'Efficiency Distributions'!$C$9:$C$87,0)+RIGHT($E47),0)\n+O$11*OFFSET('Efficiency Distributions'!$E$10,MATCH($C41,'Efficiency Distributions'!$C$9:$C$87,0)+RIGHT($E47),0))\n/SUM(O$10:O$11)","v":0},{"$f":"IF(INDEX(PC_MAPPING,RIGHT($C41,1),MATCH($E$2,'Data by Building Type'!$D$22:$F$22,0))=\"Yes\",1,0)*\n(P$10*OFFSET('Efficiency Distributions'!$D$10,MATCH($C41,'Efficiency Distributions'!$C$9:$C$87,0)+RIGHT($E47),0)\n+P$11*OFFSET('Efficiency Distributions'!$E$10,MATCH($C41,'Efficiency Distributions'!$C$9:$C$87,0)+RIGHT($E47),0))\n/SUM(P$10:P$11)","v":0},{"$f":"IF(INDEX(PC_MAPPING,RIGHT($C41,1),MATCH($E$2,'Data by Building Type'!$D$22:$F$22,0))=\"Yes\",1,0)*\n(Q$10*OFFSET('Efficiency Distributions'!$D$10,MATCH($C41,'Efficiency Distributions'!$C$9:$C$87,0)+RIGHT($E47),0)\n+Q$11*OFFSET('Efficiency Distributions'!$E$10,MATCH($C41,'Efficiency Distributions'!$C$9:$C$87,0)+RIGHT($E47),0))\n/SUM(Q$10:Q$11)","v":0},{"$f":"IF(INDEX(PC_MAPPING,RIGHT($C41,1),MATCH($E$2,'Data by Building Type'!$D$22:$F$22,0))=\"Yes\",1,0)*\n(R$10*OFFSET('Efficiency Distributions'!$D$10,MATCH($C41,'Efficiency Distributions'!$C$9:$C$87,0)+RIGHT($E47),0)\n+R$11*OFFSET('Efficiency Distributions'!$E$10,MATCH($C41,'Efficiency Distributions'!$C$9:$C$87,0)+RIGHT($E47),0))\n/SUM(R$10:R$11)","v":0},{"$f":"IF(INDEX(PC_MAPPING,RIGHT($C41,1),MATCH($E$2,'Data by Building Type'!$D$22:$F$22,0))=\"Yes\",1,0)*\n(S$10*OFFSET('Efficiency Distributions'!$D$10,MATCH($C41,'Efficiency Distributions'!$C$9:$C$87,0)+RIGHT($E47),0)\n+S$11*OFFSET('Efficiency Distributions'!$E$10,MATCH($C41,'Efficiency Distributions'!$C$9:$C$87,0)+RIGHT($E47),0))\n/SUM(S$10:S$11)","v":0},{"$f":"IF(INDEX(PC_MAPPING,RIGHT($C41,1),MATCH($E$2,'Data by Building Type'!$D$22:$F$22,0))=\"Yes\",1,0)*\n(T$10*OFFSET('Efficiency Distributions'!$D$10,MATCH($C41,'Efficiency Distributions'!$C$9:$C$87,0)+RIGHT($E47),0)\n+T$11*OFFSET('Efficiency Distributions'!$E$10,MATCH($C41,'Efficiency Distributions'!$C$9:$C$87,0)+RIGHT($E47),0))\n/SUM(T$10:T$11)","v":0},{"$f":"IF(INDEX(PC_MAPPING,RIGHT($C41,1),MATCH($E$2,'Data by Building Type'!$D$22:$F$22,0))=\"Yes\",1,0)*\n(U$10*OFFSET('Efficiency Distributions'!$D$10,MATCH($C41,'Efficiency Distributions'!$C$9:$C$87,0)+RIGHT($E47),0)\n+U$11*OFFSET('Efficiency Distributions'!$E$10,MATCH($C41,'Efficiency Distributions'!$C$9:$C$87,0)+RIGHT($E47),0))\n/SUM(U$10:U$11)","v":0},{"$f":"IF(INDEX(PC_MAPPING,RIGHT($C41,1),MATCH($E$2,'Data by Building Type'!$D$22:$F$22,0))=\"Yes\",1,0)*\n(V$10*OFFSET('Efficiency Distributions'!$D$10,MATCH($C41,'Efficiency Distributions'!$C$9:$C$87,0)+RIGHT($E47),0)\n+V$11*OFFSET('Efficiency Distributions'!$E$10,MATCH($C41,'Efficiency Distributions'!$C$9:$C$87,0)+RIGHT($E47),0))\n/SUM(V$10:V$11)","v":0},{"$f":"IF(INDEX(PC_MAPPING,RIGHT($C41,1),MATCH($E$2,'Data by Building Type'!$D$22:$F$22,0))=\"Yes\",1,0)*\n(W$10*OFFSET('Efficiency Distributions'!$D$10,MATCH($C41,'Efficiency Distributions'!$C$9:$C$87,0)+RIGHT($E47),0)\n+W$11*OFFSET('Efficiency Distributions'!$E$10,MATCH($C41,'Efficiency Distributions'!$C$9:$C$87,0)+RIGHT($E47),0))\n/SUM(W$10:W$11)","v":0},{"$f":"IF(INDEX(PC_MAPPING,RIGHT($C41,1),MATCH($E$2,'Data by Building Type'!$D$22:$F$22,0))=\"Yes\",1,0)*\n(X$10*OFFSET('Efficiency Distributions'!$D$10,MATCH($C41,'Efficiency Distributions'!$C$9:$C$87,0)+RIGHT($E47),0)\n+X$11*OFFSET('Efficiency Distributions'!$E$10,MATCH($C41,'Efficiency Distributions'!$C$9:$C$87,0)+RIGHT($E47),0))\n/SUM(X$10:X$11)","v":0},{"$f":"IF(INDEX(PC_MAPPING,RIGHT($C41,1),MATCH($E$2,'Data by Building Type'!$D$22:$F$22,0))=\"Yes\",1,0)*\n(Y$10*OFFSET('Efficiency Distributions'!$D$10,MATCH($C41,'Efficiency Distributions'!$C$9:$C$87,0)+RIGHT($E47),0)\n+Y$11*OFFSET('Efficiency Distributions'!$E$10,MATCH($C41,'Efficiency Distributions'!$C$9:$C$87,0)+RIGHT($E47),0))\n/SUM(Y$10:Y$11)","v":0},{"$f":"IF(INDEX(PC_MAPPING,RIGHT($C41,1),MATCH($E$2,'Data by Building Type'!$D$22:$F$22,0))=\"Yes\",1,0)*\n(Z$10*OFFSET('Efficiency Distributions'!$D$10,MATCH($C41,'Efficiency Distributions'!$C$9:$C$87,0)+RIGHT($E47),0)\n+Z$11*OFFSET('Efficiency Distributions'!$E$10,MATCH($C41,'Efficiency Distributions'!$C$9:$C$87,0)+RIGHT($E47),0))\n/SUM(Z$10:Z$11)","v":0},{"$f":"IF(INDEX(PC_MAPPING,RIGHT($C41,1),MATCH($E$2,'Data by Building Type'!$D$22:$F$22,0))=\"Yes\",1,0)*\n(AA$10*OFFSET('Efficiency Distributions'!$D$10,MATCH($C41,'Efficiency Distributions'!$C$9:$C$87,0)+RIGHT($E47),0)\n+AA$11*OFFSET('Efficiency Distributions'!$E$10,MATCH($C41,'Efficiency Distributions'!$C$9:$C$87,0)+RIGHT($E47),0))\n/SUM(AA$10:AA$11)","v":0},{"$f":"IF(INDEX(PC_MAPPING,RIGHT($C41,1),MATCH($E$2,'Data by Building Type'!$D$22:$F$22,0))=\"Yes\",1,0)*\n(AB$10*OFFSET('Efficiency Distributions'!$D$10,MATCH($C41,'Efficiency Distributions'!$C$9:$C$87,0)+RIGHT($E47),0)\n+AB$11*OFFSET('Efficiency Distributions'!$E$10,MATCH($C41,'Efficiency Distributions'!$C$9:$C$87,0)+RIGHT($E47),0))\n/SUM(AB$10:AB$11)","v":0},{"$f":"IF(INDEX(PC_MAPPING,RIGHT($C41,1),MATCH($E$2,'Data by Building Type'!$D$22:$F$22,0))=\"Yes\",1,0)*\n(AC$10*OFFSET('Efficiency Distributions'!$D$10,MATCH($C41,'Efficiency Distributions'!$C$9:$C$87,0)+RIGHT($E47),0)\n+AC$11*OFFSET('Efficiency Distributions'!$E$10,MATCH($C41,'Efficiency Distributions'!$C$9:$C$87,0)+RIGHT($E47),0))\n/SUM(AC$10:AC$11)","v":0},{"$f":"IF(INDEX(PC_MAPPING,RIGHT($C41,1),MATCH($E$2,'Data by Building Type'!$D$22:$F$22,0))=\"Yes\",1,0)*\n(AD$10*OFFSET('Efficiency Distributions'!$D$10,MATCH($C41,'Efficiency Distributions'!$C$9:$C$87,0)+RIGHT($E47),0)\n+AD$11*OFFSET('Efficiency Distributions'!$E$10,MATCH($C41,'Efficiency Distributions'!$C$9:$C$87,0)+RIGHT($E47),0))\n/SUM(AD$10:AD$11)","v":0},{"$f":"IF(INDEX(PC_MAPPING,RIGHT($C41,1),MATCH($E$2,'Data by Building Type'!$D$22:$F$22,0))=\"Yes\",1,0)*\n(AE$10*OFFSET('Efficiency Distributions'!$D$10,MATCH($C41,'Efficiency Distributions'!$C$9:$C$87,0)+RIGHT($E47),0)\n+AE$11*OFFSET('Efficiency Distributions'!$E$10,MATCH($C41,'Efficiency Distributions'!$C$9:$C$87,0)+RIGHT($E47),0))\n/SUM(AE$10:AE$11)","v":0},{"$f":"IF(INDEX(PC_MAPPING,RIGHT($C41,1),MATCH($E$2,'Data by Building Type'!$D$22:$F$22,0))=\"Yes\",1,0)*\n(AF$10*OFFSET('Efficiency Distributions'!$D$10,MATCH($C41,'Efficiency Distributions'!$C$9:$C$87,0)+RIGHT($E47),0)\n+AF$11*OFFSET('Efficiency Distributions'!$E$10,MATCH($C41,'Efficiency Distributions'!$C$9:$C$87,0)+RIGHT($E47),0))\n/SUM(AF$10:AF$11)","v":0},{"$f":"IF(INDEX(PC_MAPPING,RIGHT($C41,1),MATCH($E$2,'Data by Building Type'!$D$22:$F$22,0))=\"Yes\",1,0)*\n(AG$10*OFFSET('Efficiency Distributions'!$D$10,MATCH($C41,'Efficiency Distributions'!$C$9:$C$87,0)+RIGHT($E47),0)\n+AG$11*OFFSET('Efficiency Distributions'!$E$10,MATCH($C41,'Efficiency Distributions'!$C$9:$C$87,0)+RIGHT($E47),0))\n/SUM(AG$10:AG$11)","v":0},{"$f":"IF(INDEX(PC_MAPPING,RIGHT($C41,1),MATCH($E$2,'Data by Building Type'!$D$22:$F$22,0))=\"Yes\",1,0)*\n(AH$10*OFFSET('Efficiency Distributions'!$D$10,MATCH($C41,'Efficiency Distributions'!$C$9:$C$87,0)+RIGHT($E47),0)\n+AH$11*OFFSET('Efficiency Distributions'!$E$10,MATCH($C41,'Efficiency Distributions'!$C$9:$C$87,0)+RIGHT($E47),0))\n/SUM(AH$10:AH$11)","v":0},{"$f":"IF(INDEX(PC_MAPPING,RIGHT($C41,1),MATCH($E$2,'Data by Building Type'!$D$22:$F$22,0))=\"Yes\",1,0)*\n(AI$10*OFFSET('Efficiency Distributions'!$D$10,MATCH($C41,'Efficiency Distributions'!$C$9:$C$87,0)+RIGHT($E47),0)\n+AI$11*OFFSET('Efficiency Distributions'!$E$10,MATCH($C41,'Efficiency Distributions'!$C$9:$C$87,0)+RIGHT($E47),0))\n/SUM(AI$10:AI$11)","v":0},{"$f":"IF(INDEX(PC_MAPPING,RIGHT($C41,1),MATCH($E$2,'Data by Building Type'!$D$22:$F$22,0))=\"Yes\",1,0)*\n(AJ$10*OFFSET('Efficiency Distributions'!$D$10,MATCH($C41,'Efficiency Distributions'!$C$9:$C$87,0)+RIGHT($E47),0)\n+AJ$11*OFFSET('Efficiency Distributions'!$E$10,MATCH($C41,'Efficiency Distributions'!$C$9:$C$87,0)+RIGHT($E47),0))\n/SUM(AJ$10:AJ$11)","v":0},{"$f":"IF(INDEX(PC_MAPPING,RIGHT($C41,1),MATCH($E$2,'Data by Building Type'!$D$22:$F$22,0))=\"Yes\",1,0)*\n(AK$10*OFFSET('Efficiency Distributions'!$D$10,MATCH($C41,'Efficiency Distributions'!$C$9:$C$87,0)+RIGHT($E47),0)\n+AK$11*OFFSET('Efficiency Distributions'!$E$10,MATCH($C41,'Efficiency Distributions'!$C$9:$C$87,0)+RIGHT($E47),0))\n/SUM(AK$10:AK$11)","v":0},{"$f":"IF(INDEX(PC_MAPPING,RIGHT($C41,1),MATCH($E$2,'Data by Building Type'!$D$22:$F$22,0))=\"Yes\",1,0)*\n(AL$10*OFFSET('Efficiency Distributions'!$D$10,MATCH($C41,'Efficiency Distributions'!$C$9:$C$87,0)+RIGHT($E47),0)\n+AL$11*OFFSET('Efficiency Distributions'!$E$10,MATCH($C41,'Efficiency Distributions'!$C$9:$C$87,0)+RIGHT($E47),0))\n/SUM(AL$10:AL$11)","v":0},{"$f":"IF(INDEX(PC_MAPPING,RIGHT($C41,1),MATCH($E$2,'Data by Building Type'!$D$22:$F$22,0))=\"Yes\",1,0)*\n(AM$10*OFFSET('Efficiency Distributions'!$D$10,MATCH($C41,'Efficiency Distributions'!$C$9:$C$87,0)+RIGHT($E47),0)\n+AM$11*OFFSET('Efficiency Distributions'!$E$10,MATCH($C41,'Efficiency Distributions'!$C$9:$C$87,0)+RIGHT($E47),0))\n/SUM(AM$10:AM$11)","v":0},{"$f":"IF(INDEX(PC_MAPPING,RIGHT($C41,1),MATCH($E$2,'Data by Building Type'!$D$22:$F$22,0))=\"Yes\",1,0)*\n(AN$10*OFFSET('Efficiency Distributions'!$D$10,MATCH($C41,'Efficiency Distributions'!$C$9:$C$87,0)+RIGHT($E47),0)\n+AN$11*OFFSET('Efficiency Distributions'!$E$10,MATCH($C41,'Efficiency Distributions'!$C$9:$C$87,0)+RIGHT($E47),0))\n/SUM(AN$10:AN$11)","v":0},{"$f":"IF(INDEX(PC_MAPPING,RIGHT($C41,1),MATCH($E$2,'Data by Building Type'!$D$22:$F$22,0))=\"Yes\",1,0)*\n(AO$10*OFFSET('Efficiency Distributions'!$D$10,MATCH($C41,'Efficiency Distributions'!$C$9:$C$87,0)+RIGHT($E47),0)\n+AO$11*OFFSET('Efficiency Distributions'!$E$10,MATCH($C41,'Efficiency Distributions'!$C$9:$C$87,0)+RIGHT($E47),0))\n/SUM(AO$10:AO$11)","v":0},{"$f":"IF(INDEX(PC_MAPPING,RIGHT($C41,1),MATCH($E$2,'Data by Building Type'!$D$22:$F$22,0))=\"Yes\",1,0)*\n(AP$10*OFFSET('Efficiency Distributions'!$D$10,MATCH($C41,'Efficiency Distributions'!$C$9:$C$87,0)+RIGHT($E47),0)\n+AP$11*OFFSET('Efficiency Distributions'!$E$10,MATCH($C41,'Efficiency Distributions'!$C$9:$C$87,0)+RIGHT($E47),0))\n/SUM(AP$10:AP$11)","v":0},{"$f":"IF(INDEX(PC_MAPPING,RIGHT($C41,1),MATCH($E$2,'Data by Building Type'!$D$22:$F$22,0))=\"Yes\",1,0)*\n(AQ$10*OFFSET('Efficiency Distributions'!$D$10,MATCH($C41,'Efficiency Distributions'!$C$9:$C$87,0)+RIGHT($E47),0)\n+AQ$11*OFFSET('Efficiency Distributions'!$E$10,MATCH($C41,'Efficiency Distributions'!$C$9:$C$87,0)+RIGHT($E47),0))\n/SUM(AQ$10:AQ$11)","v":0},{"$f":"IF(INDEX(PC_MAPPING,RIGHT($C41,1),MATCH($E$2,'Data by Building Type'!$D$22:$F$22,0))=\"Yes\",1,0)*\n(AR$10*OFFSET('Efficiency Distributions'!$D$10,MATCH($C41,'Efficiency Distributions'!$C$9:$C$87,0)+RIGHT($E47),0)\n+AR$11*OFFSET('Efficiency Distributions'!$E$10,MATCH($C41,'Efficiency Distributions'!$C$9:$C$87,0)+RIGHT($E47),0))\n/SUM(AR$10:AR$11)","v":0},{"$f":"IF(INDEX(PC_MAPPING,RIGHT($C41,1),MATCH($E$2,'Data by Building Type'!$D$22:$F$22,0))=\"Yes\",1,0)*\n(AS$10*OFFSET('Efficiency Distributions'!$D$10,MATCH($C41,'Efficiency Distributions'!$C$9:$C$87,0)+RIGHT($E47),0)\n+AS$11*OFFSET('Efficiency Distributions'!$E$10,MATCH($C41,'Efficiency Distributions'!$C$9:$C$87,0)+RIGHT($E47),0))\n/SUM(AS$10:AS$11)","v":0},{"$f":"IF(INDEX(PC_MAPPING,RIGHT($C41,1),MATCH($E$2,'Data by Building Type'!$D$22:$F$22,0))=\"Yes\",1,0)*\n(AT$10*OFFSET('Efficiency Distributions'!$D$10,MATCH($C41,'Efficiency Distributions'!$C$9:$C$87,0)+RIGHT($E47),0)\n+AT$11*OFFSET('Efficiency Distributions'!$E$10,MATCH($C41,'Efficiency Distributions'!$C$9:$C$87,0)+RIGHT($E47),0))\n/SUM(AT$10:AT$11)","v":0},{"$f":"IF(INDEX(PC_MAPPING,RIGHT($C41,1),MATCH($E$2,'Data by Building Type'!$D$22:$F$22,0))=\"Yes\",1,0)*\n(AU$10*OFFSET('Efficiency Distributions'!$D$10,MATCH($C41,'Efficiency Distributions'!$C$9:$C$87,0)+RIGHT($E47),0)\n+AU$11*OFFSET('Efficiency Distributions'!$E$10,MATCH($C41,'Efficiency Distributions'!$C$9:$C$87,0)+RIGHT($E47),0))\n/SUM(AU$10:AU$11)","v":0},{"$f":"IF(INDEX(PC_MAPPING,RIGHT($C41,1),MATCH($E$2,'Data by Building Type'!$D$22:$F$22,0))=\"Yes\",1,0)*\n(AV$10*OFFSET('Efficiency Distributions'!$D$10,MATCH($C41,'Efficiency Distributions'!$C$9:$C$87,0)+RIGHT($E47),0)\n+AV$11*OFFSET('Efficiency Distributions'!$E$10,MATCH($C41,'Efficiency Distributions'!$C$9:$C$87,0)+RIGHT($E47),0))\n/SUM(AV$10:AV$11)","v":0},{"$f":"IF(INDEX(PC_MAPPING,RIGHT($C41,1),MATCH($E$2,'Data by Building Type'!$D$22:$F$22,0))=\"Yes\",1,0)*\n(AW$10*OFFSET('Efficiency Distributions'!$D$10,MATCH($C41,'Efficiency Distributions'!$C$9:$C$87,0)+RIGHT($E47),0)\n+AW$11*OFFSET('Efficiency Distributions'!$E$10,MATCH($C41,'Efficiency Distributions'!$C$9:$C$87,0)+RIGHT($E47),0))\n/SUM(AW$10:AW$11)","v":0},{"$f":"IF(INDEX(PC_MAPPING,RIGHT($C41,1),MATCH($E$2,'Data by Building Type'!$D$22:$F$22,0))=\"Yes\",1,0)*\n(AX$10*OFFSET('Efficiency Distributions'!$D$10,MATCH($C41,'Efficiency Distributions'!$C$9:$C$87,0)+RIGHT($E47),0)\n+AX$11*OFFSET('Efficiency Distributions'!$E$10,MATCH($C41,'Efficiency Distributions'!$C$9:$C$87,0)+RIGHT($E47),0))\n/SUM(AX$10:AX$11)","v":0},{"$f":"IF(INDEX(PC_MAPPING,RIGHT($C41,1),MATCH($E$2,'Data by Building Type'!$D$22:$F$22,0))=\"Yes\",1,0)*\n(AY$10*OFFSET('Efficiency Distributions'!$D$10,MATCH($C41,'Efficiency Distributions'!$C$9:$C$87,0)+RIGHT($E47),0)\n+AY$11*OFFSET('Efficiency Distributions'!$E$10,MATCH($C41,'Efficiency Distributions'!$C$9:$C$87,0)+RIGHT($E47),0))\n/SUM(AY$10:AY$11)","v":0},{"$f":"IF(INDEX(PC_MAPPING,RIGHT($C41,1),MATCH($E$2,'Data by Building Type'!$D$22:$F$22,0))=\"Yes\",1,0)*\n(AZ$10*OFFSET('Efficiency Distributions'!$D$10,MATCH($C41,'Efficiency Distributions'!$C$9:$C$87,0)+RIGHT($E47),0)\n+AZ$11*OFFSET('Efficiency Distributions'!$E$10,MATCH($C41,'Efficiency Distributions'!$C$9:$C$87,0)+RIGHT($E47),0))\n/SUM(AZ$10:AZ$11)","v":0},{"$f":"IF(INDEX(PC_MAPPING,RIGHT($C41,1),MATCH($E$2,'Data by Building Type'!$D$22:$F$22,0))=\"Yes\",1,0)*\n(BA$10*OFFSET('Efficiency Distributions'!$D$10,MATCH($C41,'Efficiency Distributions'!$C$9:$C$87,0)+RIGHT($E47),0)\n+BA$11*OFFSET('Efficiency Distributions'!$E$10,MATCH($C41,'Efficiency Distributions'!$C$9:$C$87,0)+RIGHT($E47),0))\n/SUM(BA$10:BA$11)","v":0},{"$f":"IF(INDEX(PC_MAPPING,RIGHT($C41,1),MATCH($E$2,'Data by Building Type'!$D$22:$F$22,0))=\"Yes\",1,0)*\n(BB$10*OFFSET('Efficiency Distributions'!$D$10,MATCH($C41,'Efficiency Distributions'!$C$9:$C$87,0)+RIGHT($E47),0)\n+BB$11*OFFSET('Efficiency Distributions'!$E$10,MATCH($C41,'Efficiency Distributions'!$C$9:$C$87,0)+RIGHT($E47),0))\n/SUM(BB$10:BB$11)","v":0},{"$f":"IF(INDEX(PC_MAPPING,RIGHT($C41,1),MATCH($E$2,'Data by Building Type'!$D$22:$F$22,0))=\"Yes\",1,0)*\n(BC$10*OFFSET('Efficiency Distributions'!$D$10,MATCH($C41,'Efficiency Distributions'!$C$9:$C$87,0)+RIGHT($E47),0)\n+BC$11*OFFSET('Efficiency Distributions'!$E$10,MATCH($C41,'Efficiency Distributions'!$C$9:$C$87,0)+RIGHT($E47),0))\n/SUM(BC$10:BC$11)","v":0},{"$f":"IF(INDEX(PC_MAPPING,RIGHT($C41,1),MATCH($E$2,'Data by Building Type'!$D$22:$F$22,0))=\"Yes\",1,0)*\n(BD$10*OFFSET('Efficiency Distributions'!$D$10,MATCH($C41,'Efficiency Distributions'!$C$9:$C$87,0)+RIGHT($E47),0)\n+BD$11*OFFSET('Efficiency Distributions'!$E$10,MATCH($C41,'Efficiency Distributions'!$C$9:$C$87,0)+RIGHT($E47),0))\n/SUM(BD$10:BD$11)","v":0},{"$f":"IF(INDEX(PC_MAPPING,RIGHT($C41,1),MATCH($E$2,'Data by Building Type'!$D$22:$F$22,0))=\"Yes\",1,0)*\n(BE$10*OFFSET('Efficiency Distributions'!$D$10,MATCH($C41,'Efficiency Distributions'!$C$9:$C$87,0)+RIGHT($E47),0)\n+BE$11*OFFSET('Efficiency Distributions'!$E$10,MATCH($C41,'Efficiency Distributions'!$C$9:$C$87,0)+RIGHT($E47),0))\n/SUM(BE$10:BE$11)","v":0},{"$f":"IF(INDEX(PC_MAPPING,RIGHT($C41,1),MATCH($E$2,'Data by Building Type'!$D$22:$F$22,0))=\"Yes\",1,0)*\n(BF$10*OFFSET('Efficiency Distributions'!$D$10,MATCH($C41,'Efficiency Distributions'!$C$9:$C$87,0)+RIGHT($E47),0)\n+BF$11*OFFSET('Efficiency Distributions'!$E$10,MATCH($C41,'Efficiency Distributions'!$C$9:$C$87,0)+RIGHT($E47),0))\n/SUM(BF$10:BF$11)","v":0},{"$f":"IF(INDEX(PC_MAPPING,RIGHT($C41,1),MATCH($E$2,'Data by Building Type'!$D$22:$F$22,0))=\"Yes\",1,0)*\n(BG$10*OFFSET('Efficiency Distributions'!$D$10,MATCH($C41,'Efficiency Distributions'!$C$9:$C$87,0)+RIGHT($E47),0)\n+BG$11*OFFSET('Efficiency Distributions'!$E$10,MATCH($C41,'Efficiency Distributions'!$C$9:$C$87,0)+RIGHT($E47),0))\n/SUM(BG$10:BG$11)","v":0}]
[null,null,null,null,"EL3",{"$f":"IF(INDEX(PC_MAPPING,RIGHT($C41,1),MATCH($E$2,'Data by Building Type'!$D$22:$F$22,0))=\"Yes\",1,0)*\n(F$10*OFFSET('Efficiency Distributions'!$D$10,MATCH($C41,'Efficiency Distributions'!$C$9:$C$87,0)+RIGHT($E48),0)\n+F$11*OFFSET('Efficiency Distributions'!$E$10,MATCH($C41,'Efficiency Distributions'!$C$9:$C$87,0)+RIGHT($E48),0))\n/SUM(F$10:F$11)","v":6.2644176556660255E-2},{"$f":"IF(INDEX(PC_MAPPING,RIGHT($C41,1),MATCH($E$2,'Data by Building Type'!$D$22:$F$22,0))=\"Yes\",1,0)*\n(G$10*OFFSET('Efficiency Distributions'!$D$10,MATCH($C41,'Efficiency Distributions'!$C$9:$C$87,0)+RIGHT($E48),0)\n+G$11*OFFSET('Efficiency Distributions'!$E$10,MATCH($C41,'Efficiency Distributions'!$C$9:$C$87,0)+RIGHT($E48),0))\n/SUM(G$10:G$11)","v":6.6609150323260202E-2},{"$f":"IF(INDEX(PC_MAPPING,RIGHT($C41,1),MATCH($E$2,'Data by Building Type'!$D$22:$F$22,0))=\"Yes\",1,0)*\n(H$10*OFFSET('Efficiency Distributions'!$D$10,MATCH($C41,'Efficiency Distributions'!$C$9:$C$87,0)+RIGHT($E48),0)\n+H$11*OFFSET('Efficiency Distributions'!$E$10,MATCH($C41,'Efficiency Distributions'!$C$9:$C$87,0)+RIGHT($E48),0))\n/SUM(H$10:H$11)","v":6.4760772024292784E-2},{"$f":"IF(INDEX(PC_MAPPING,RIGHT($C41,1),MATCH($E$2,'Data by Building Type'!$D$22:$F$22,0))=\"Yes\",1,0)*\n(I$10*OFFSET('Efficiency Distributions'!$D$10,MATCH($C41,'Efficiency Distributions'!$C$9:$C$87,0)+RIGHT($E48),0)\n+I$11*OFFSET('Efficiency Distributions'!$E$10,MATCH($C41,'Efficiency Distributions'!$C$9:$C$87,0)+RIGHT($E48),0))\n/SUM(I$10:I$11)","v":5.9396406761932641E-2},{"$f":"IF(INDEX(PC_MAPPING,RIGHT($C41,1),MATCH($E$2,'Data by Building Type'!$D$22:$F$22,0))=\"Yes\",1,0)*\n(J$10*OFFSET('Efficiency Distributions'!$D$10,MATCH($C41,'Efficiency Distributions'!$C$9:$C$87,0)+RIGHT($E48),0)\n+J$11*OFFSET('Efficiency Distributions'!$E$10,MATCH($C41,'Efficiency Distributions'!$C$9:$C$87,0)+RIGHT($E48),0))\n/SUM(J$10:J$11)","v":5.3258266035120648E-2},{"$f":"IF(INDEX(PC_MAPPING,RIGHT($C41,1),MATCH($E$2,'Data by Building Type'!$D$22:$F$22,0))=\"Yes\",1,0)*\n(K$10*OFFSET('Efficiency Distributions'!$D$10,MATCH($C41,'Efficiency Distributions'!$C$9:$C$87,0)+RIGHT($E48),0)\n+K$11*OFFSET('Efficiency Distributions'!$E$10,MATCH($C41,'Efficiency Distributions'!$C$9:$C$87,0)+RIGHT($E48),0))\n/SUM(K$10:K$11)","v":5.4987955267772129E-2},{"$f":"IF(INDEX(PC_MAPPING,RIGHT($C41,1),MATCH($E$2,'Data by Building Type'!$D$22:$F$22,0))=\"Yes\",1,0)*\n(L$10*OFFSET('Efficiency Distributions'!$D$10,MATCH($C41,'Efficiency Distributions'!$C$9:$C$87,0)+RIGHT($E48),0)\n+L$11*OFFSET('Efficiency Distributions'!$E$10,MATCH($C41,'Efficiency Distributions'!$C$9:$C$87,0)+RIGHT($E48),0))\n/SUM(L$10:L$11)","v":5.3383599394570692E-2},{"$f":"IF(INDEX(PC_MAPPING,RIGHT($C41,1),MATCH($E$2,'Data by Building Type'!$D$22:$F$22,0))=\"Yes\",1,0)*\n(M$10*OFFSET('Efficiency Distributions'!$D$10,MATCH($C41,'Efficiency Distributions'!$C$9:$C$87,0)+RIGHT($E48),0)\n+M$11*OFFSET('Efficiency Distributions'!$E$10,MATCH($C41,'Efficiency Distributions'!$C$9:$C$87,0)+RIGHT($E48),0))\n/SUM(M$10:M$11)","v":5.0162595588561426E-2},{"$f":"IF(INDEX(PC_MAPPING,RIGHT($C41,1),MATCH($E$2,'Data by Building Type'!$D$22:$F$22,0))=\"Yes\",1,0)*\n(N$10*OFFSET('Efficiency Distributions'!$D$10,MATCH($C41,'Efficiency Distributions'!$C$9:$C$87,0)+RIGHT($E48),0)\n+N$11*OFFSET('Efficiency Distributions'!$E$10,MATCH($C41,'Efficiency Distributions'!$C$9:$C$87,0)+RIGHT($E48),0))\n/SUM(N$10:N$11)","v":4.7526799716949494E-2},{"$f":"IF(INDEX(PC_MAPPING,RIGHT($C41,1),MATCH($E$2,'Data by Building Type'!$D$22:$F$22,0))=\"Yes\",1,0)*\n(O$10*OFFSET('Efficiency Distributions'!$D$10,MATCH($C41,'Efficiency Distributions'!$C$9:$C$87,0)+RIGHT($E48),0)\n+O$11*OFFSET('Efficiency Distributions'!$E$10,MATCH($C41,'Efficiency Distributions'!$C$9:$C$87,0)+RIGHT($E48),0))\n/SUM(O$10:O$11)","v":4.998898688872247E-2},{"$f":"IF(INDEX(PC_MAPPING,RIGHT($C41,1),MATCH($E$2,'Data by Building Type'!$D$22:$F$22,0))=\"Yes\",1,0)*\n(P$10*OFFSET('Efficiency Distributions'!$D$10,MATCH($C41,'Efficiency Distributions'!$C$9:$C$87,0)+RIGHT($E48),0)\n+P$11*OFFSET('Efficiency Distributions'!$E$10,MATCH($C41,'Efficiency Distributions'!$C$9:$C$87,0)+RIGHT($E48),0))\n/SUM(P$10:P$11)","v":6.0825533475953354E-2},{"$f":"IF(INDEX(PC_MAPPING,RIGHT($C41,1),MATCH($E$2,'Data by Building Type'!$D$22:$F$22,0))=\"Yes\",1,0)*\n(Q$10*OFFSET('Efficiency Distributions'!$D$10,MATCH($C41,'Efficiency Distributions'!$C$9:$C$87,0)+RIGHT($E48),0)\n+Q$11*OFFSET('Efficiency Distributions'!$E$10,MATCH($C41,'Efficiency Distributions'!$C$9:$C$87,0)+RIGHT($E48),0))\n/SUM(Q$10:Q$11)","v":6.0501386650938169E-2},{"$f":"IF(INDEX(PC_MAPPING,RIGHT($C41,1),MATCH($E$2,'Data by Building Type'!$D$22:$F$22,0))=\"Yes\",1,0)*\n(R$10*OFFSET('Efficiency Distributions'!$D$10,MATCH($C41,'Efficiency Distributions'!$C$9:$C$87,0)+RIGHT($E48),0)\n+R$11*OFFSET('Efficiency Distributions'!$E$10,MATCH($C41,'Efficiency Distributions'!$C$9:$C$87,0)+RIGHT($E48),0))\n/SUM(R$10:R$11)","v":8.0717979721860025E-2},{"$f":"IF(INDEX(PC_MAPPING,RIGHT($C41,1),MATCH($E$2,'Data by Building Type'!$D$22:$F$22,0))=\"Yes\",1,0)*\n(S$10*OFFSET('Efficiency Distributions'!$D$10,MATCH($C41,'Efficiency Distributions'!$C$9:$C$87,0)+RIGHT($E48),0)\n+S$11*OFFSET('Efficiency Distributions'!$E$10,MATCH($C41,'Efficiency Distributions'!$C$9:$C$87,0)+RIGHT($E48),0))\n/SUM(S$10:S$11)","v":8.0717979721860025E-2},{"$f":"IF(INDEX(PC_MAPPING,RIGHT($C41,1),MATCH($E$2,'Data by Building Type'!$D$22:$F$22,0))=\"Yes\",1,0)*\n(T$10*OFFSET('Efficiency Distributions'!$D$10,MATCH($C41,'Efficiency Distributions'!$C$9:$C$87,0)+RIGHT($E48),0)\n+T$11*OFFSET('Efficiency Distributions'!$E$10,MATCH($C41,'Efficiency Distributions'!$C$9:$C$87,0)+RIGHT($E48),0))\n/SUM(T$10:T$11)","v":8.0717979721860025E-2},{"$f":"IF(INDEX(PC_MAPPING,RIGHT($C41,1),MATCH($E$2,'Data by Building Type'!$D$22:$F$22,0))=\"Yes\",1,0)*\n(U$10*OFFSET('Efficiency Distributions'!$D$10,MATCH($C41,'Efficiency Distributions'!$C$9:$C$87,0)+RIGHT($E48),0)\n+U$11*OFFSET('Efficiency Distributions'!$E$10,MATCH($C41,'Efficiency Distributions'!$C$9:$C$87,0)+RIGHT($E48),0))\n/SUM(U$10:U$11)","v":8.0717979721860025E-2},{"$f":"IF(INDEX(PC_MAPPING,RIGHT($C41,1),MATCH($E$2,'Data by Building Type'!$D$22:$F$22,0))=\"Yes\",1,0)*\n(V$10*OFFSET('Efficiency Distributions'!$D$10,MATCH($C41,'Efficiency Distributions'!$C$9:$C$87,0)+RIGHT($E48),0)\n+V$11*OFFSET('Efficiency Distributions'!$E$10,MATCH($C41,'Efficiency Distributions'!$C$9:$C$87,0)+RIGHT($E48),0))\n/SUM(V$10:V$11)","v":8.0717979721860025E-2},{"$f":"IF(INDEX(PC_MAPPING,RIGHT($C41,1),MATCH($E$2,'Data by Building Type'!$D$22:$F$22,0))=\"Yes\",1,0)*\n(W$10*OFFSET('Efficiency Distributions'!$D$10,MATCH($C41,'Efficiency Distributions'!$C$9:$C$87,0)+RIGHT($E48),0)\n+W$11*OFFSET('Efficiency Distributions'!$E$10,MATCH($C41,'Efficiency Distributions'!$C$9:$C$87,0)+RIGHT($E48),0))\n/SUM(W$10:W$11)","v":8.0717979721860025E-2},{"$f":"IF(INDEX(PC_MAPPING,RIGHT($C41,1),MATCH($E$2,'Data by Building Type'!$D$22:$F$22,0))=\"Yes\",1,0)*\n(X$10*OFFSET('Efficiency Distributions'!$D$10,MATCH($C41,'Efficiency Distributions'!$C$9:$C$87,0)+RIGHT($E48),0)\n+X$11*OFFSET('Efficiency Distributions'!$E$10,MATCH($C41,'Efficiency Distributions'!$C$9:$C$87,0)+RIGHT($E48),0))\n/SUM(X$10:X$11)","v":8.0717979721860025E-2},{"$f":"IF(INDEX(PC_MAPPING,RIGHT($C41,1),MATCH($E$2,'Data by Building Type'!$D$22:$F$22,0))=\"Yes\",1,0)*\n(Y$10*OFFSET('Efficiency Distributions'!$D$10,MATCH($C41,'Efficiency Distributions'!$C$9:$C$87,0)+RIGHT($E48),0)\n+Y$11*OFFSET('Efficiency Distributions'!$E$10,MATCH($C41,'Efficiency Distributions'!$C$9:$C$87,0)+RIGHT($E48),0))\n/SUM(Y$10:Y$11)","v":8.0717979721860025E-2},{"$f":"IF(INDEX(PC_MAPPING,RIGHT($C41,1),MATCH($E$2,'Data by Building Type'!$D$22:$F$22,0))=\"Yes\",1,0)*\n(Z$10*OFFSET('Efficiency Distributions'!$D$10,MATCH($C41,'Efficiency Distributions'!$C$9:$C$87,0)+RIGHT($E48),0)\n+Z$11*OFFSET('Efficiency Distributions'!$E$10,MATCH($C41,'Efficiency Distributions'!$C$9:$C$87,0)+RIGHT($E48),0))\n/SUM(Z$10:Z$11)","v":8.0717979721860025E-2},{"$f":"IF(INDEX(PC_MAPPING,RIGHT($C41,1),MATCH($E$2,'Data by Building Type'!$D$22:$F$22,0))=\"Yes\",1,0)*\n(AA$10*OFFSET('Efficiency Distributions'!$D$10,MATCH($C41,'Efficiency Distributions'!$C$9:$C$87,0)+RIGHT($E48),0)\n+AA$11*OFFSET('Efficiency Distributions'!$E$10,MATCH($C41,'Efficiency Distributions'!$C$9:$C$87,0)+RIGHT($E48),0))\n/SUM(AA$10:AA$11)","v":8.0717979721860025E-2},{"$f":"IF(INDEX(PC_MAPPING,RIGHT($C41,1),MATCH($E$2,'Data by Building Type'!$D$22:$F$22,0))=\"Yes\",1,0)*\n(AB$10*OFFSET('Efficiency Distributions'!$D$10,MATCH($C41,'Efficiency Distributions'!$C$9:$C$87,0)+RIGHT($E48),0)\n+AB$11*OFFSET('Efficiency Distributions'!$E$10,MATCH($C41,'Efficiency Distributions'!$C$9:$C$87,0)+RIGHT($E48),0))\n/SUM(AB$10:AB$11)","v":8.0717979721860025E-2},{"$f":"IF(INDEX(PC_MAPPING,RIGHT($C41,1),MATCH($E$2,'Data by Building Type'!$D$22:$F$22,0))=\"Yes\",1,0)*\n(AC$10*OFFSET('Efficiency Distributions'!$D$10,MATCH($C41,'Efficiency Distributions'!$C$9:$C$87,0)+RIGHT($E48),0)\n+AC$11*OFFSET('Efficiency Distributions'!$E$10,MATCH($C41,'Efficiency Distributions'!$C$9:$C$87,0)+RIGHT($E48),0))\n/SUM(AC$10:AC$11)","v":8.0717979721860025E-2},{"$f":"IF(INDEX(PC_MAPPING,RIGHT($C41,1),MATCH($E$2,'Data by Building Type'!$D$22:$F$22,0))=\"Yes\",1,0)*\n(AD$10*OFFSET('Efficiency Distributions'!$D$10,MATCH($C41,'Efficiency Distributions'!$C$9:$C$87,0)+RIGHT($E48),0)\n+AD$11*OFFSET('Efficiency Distributions'!$E$10,MATCH($C41,'Efficiency Distributions'!$C$9:$C$87,0)+RIGHT($E48),0))\n/SUM(AD$10:AD$11)","v":8.0717979721860025E-2},{"$f":"IF(INDEX(PC_MAPPING,RIGHT($C41,1),MATCH($E$2,'Data by Building Type'!$D$22:$F$22,0))=\"Yes\",1,0)*\n(AE$10*OFFSET('Efficiency Distributions'!$D$10,MATCH($C41,'Efficiency Distributions'!$C$9:$C$87,0)+RIGHT($E48),0)\n+AE$11*OFFSET('Efficiency Distributions'!$E$10,MATCH($C41,'Efficiency Distributions'!$C$9:$C$87,0)+RIGHT($E48),0))\n/SUM(AE$10:AE$11)","v":8.0717979721860025E-2},{"$f":"IF(INDEX(PC_MAPPING,RIGHT($C41,1),MATCH($E$2,'Data by Building Type'!$D$22:$F$22,0))=\"Yes\",1,0)*\n(AF$10*OFFSET('Efficiency Distributions'!$D$10,MATCH($C41,'Efficiency Distributions'!$C$9:$C$87,0)+RIGHT($E48),0)\n+AF$11*OFFSET('Efficiency Distributions'!$E$10,MATCH($C41,'Efficiency Distributions'!$C$9:$C$87,0)+RIGHT($E48),0))\n/SUM(AF$10:AF$11)","v":8.0717979721860025E-2},{"$f":"IF(INDEX(PC_MAPPING,RIGHT($C41,1),MATCH($E$2,'Data by Building Type'!$D$22:$F$22,0))=\"Yes\",1,0)*\n(AG$10*OFFSET('Efficiency Distributions'!$D$10,MATCH($C41,'Efficiency Distributions'!$C$9:$C$87,0)+RIGHT($E48),0)\n+AG$11*OFFSET('Efficiency Distributions'!$E$10,MATCH($C41,'Efficiency Distributions'!$C$9:$C$87,0)+RIGHT($E48),0))\n/SUM(AG$10:AG$11)","v":8.0717979721860025E-2},{"$f":"IF(INDEX(PC_MAPPING,RIGHT($C41,1),MATCH($E$2,'Data by Building Type'!$D$22:$F$22,0))=\"Yes\",1,0)*\n(AH$10*OFFSET('Efficiency Distributions'!$D$10,MATCH($C41,'Efficiency Distributions'!$C$9:$C$87,0)+RIGHT($E48),0)\n+AH$11*OFFSET('Efficiency Distributions'!$E$10,MATCH($C41,'Efficiency Distributions'!$C$9:$C$87,0)+RIGHT($E48),0))\n/SUM(AH$10:AH$11)","v":8.0717979721860025E-2},{"$f":"IF(INDEX(PC_MAPPING,RIGHT($C41,1),MATCH($E$2,'Data by Building Type'!$D$22:$F$22,0))=\"Yes\",1,0)*\n(AI$10*OFFSET('Efficiency Distributions'!$D$10,MATCH($C41,'Efficiency Distributions'!$C$9:$C$87,0)+RIGHT($E48),0)\n+AI$11*OFFSET('Efficiency Distributions'!$E$10,MATCH($C41,'Efficiency Distributions'!$C$9:$C$87,0)+RIGHT($E48),0))\n/SUM(AI$10:AI$11)","v":8.0717979721860025E-2},{"$f":"IF(INDEX(PC_MAPPING,RIGHT($C41,1),MATCH($E$2,'Data by Building Type'!$D$22:$F$22,0))=\"Yes\",1,0)*\n(AJ$10*OFFSET('Efficiency Distributions'!$D$10,MATCH($C41,'Efficiency Distributions'!$C$9:$C$87,0)+RIGHT($E48),0)\n+AJ$11*OFFSET('Efficiency Distributions'!$E$10,MATCH($C41,'Efficiency Distributions'!$C$9:$C$87,0)+RIGHT($E48),0))\n/SUM(AJ$10:AJ$11)","v":8.0717979721860025E-2},{"$f":"IF(INDEX(PC_MAPPING,RIGHT($C41,1),MATCH($E$2,'Data by Building Type'!$D$22:$F$22,0))=\"Yes\",1,0)*\n(AK$10*OFFSET('Efficiency Distributions'!$D$10,MATCH($C41,'Efficiency Distributions'!$C$9:$C$87,0)+RIGHT($E48),0)\n+AK$11*OFFSET('Efficiency Distributions'!$E$10,MATCH($C41,'Efficiency Distributions'!$C$9:$C$87,0)+RIGHT($E48),0))\n/SUM(AK$10:AK$11)","v":7.185117357396173E-2},{"$f":"IF(INDEX(PC_MAPPING,RIGHT($C41,1),MATCH($E$2,'Data by Building Type'!$D$22:$F$22,0))=\"Yes\",1,0)*\n(AL$10*OFFSET('Efficiency Distributions'!$D$10,MATCH($C41,'Efficiency Distributions'!$C$9:$C$87,0)+RIGHT($E48),0)\n+AL$11*OFFSET('Efficiency Distributions'!$E$10,MATCH($C41,'Efficiency Distributions'!$C$9:$C$87,0)+RIGHT($E48),0))\n/SUM(AL$10:AL$11)","v":7.1495049777569403E-2},{"$f":"IF(INDEX(PC_MAPPING,RIGHT($C41,1),MATCH($E$2,'Data by Building Type'!$D$22:$F$22,0))=\"Yes\",1,0)*\n(AM$10*OFFSET('Efficiency Distributions'!$D$10,MATCH($C41,'Efficiency Distributions'!$C$9:$C$87,0)+RIGHT($E48),0)\n+AM$11*OFFSET('Efficiency Distributions'!$E$10,MATCH($C41,'Efficiency Distributions'!$C$9:$C$87,0)+RIGHT($E48),0))\n/SUM(AM$10:AM$11)","v":6.3065659709435062E-2},{"$f":"IF(INDEX(PC_MAPPING,RIGHT($C41,1),MATCH($E$2,'Data by Building Type'!$D$22:$F$22,0))=\"Yes\",1,0)*\n(AN$10*OFFSET('Efficiency Distributions'!$D$10,MATCH($C41,'Efficiency Distributions'!$C$9:$C$87,0)+RIGHT($E48),0)\n+AN$11*OFFSET('Efficiency Distributions'!$E$10,MATCH($C41,'Efficiency Distributions'!$C$9:$C$87,0)+RIGHT($E48),0))\n/SUM(AN$10:AN$11)","v":6.3495687400832265E-2},{"$f":"IF(INDEX(PC_MAPPING,RIGHT($C41,1),MATCH($E$2,'Data by Building Type'!$D$22:$F$22,0))=\"Yes\",1,0)*\n(AO$10*OFFSET('Efficiency Distributions'!$D$10,MATCH($C41,'Efficiency Distributions'!$C$9:$C$87,0)+RIGHT($E48),0)\n+AO$11*OFFSET('Efficiency Distributions'!$E$10,MATCH($C41,'Efficiency Distributions'!$C$9:$C$87,0)+RIGHT($E48),0))\n/SUM(AO$10:AO$11)","v":6.297173748359422E-2},{"$f":"IF(INDEX(PC_MAPPING,RIGHT($C41,1),MATCH($E$2,'Data by Building Type'!$D$22:$F$22,0))=\"Yes\",1,0)*\n(AP$10*OFFSET('Efficiency Distributions'!$D$10,MATCH($C41,'Efficiency Distributions'!$C$9:$C$87,0)+RIGHT($E48),0)\n+AP$11*OFFSET('Efficiency Distributions'!$E$10,MATCH($C41,'Efficiency Distributions'!$C$9:$C$87,0)+RIGHT($E48),0))\n/SUM(AP$10:AP$11)","v":6.1897180354687914E-2},{"$f":"IF(INDEX(PC_MAPPING,RIGHT($C41,1),MATCH($E$2,'Data by Building Type'!$D$22:$F$22,0))=\"Yes\",1,0)*\n(AQ$10*OFFSET('Efficiency Distributions'!$D$10,MATCH($C41,'Efficiency Distributions'!$C$9:$C$87,0)+RIGHT($E48),0)\n+AQ$11*OFFSET('Efficiency Distributions'!$E$10,MATCH($C41,'Efficiency Distributions'!$C$9:$C$87,0)+RIGHT($E48),0))\n/SUM(AQ$10:AQ$11)","v":6.0805617024272153E-2},{"$f":"IF(INDEX(PC_MAPPING,RIGHT($C41,1),MATCH($E$2,'Data by Building Type'!$D$22:$F$22,0))=\"Yes\",1,0)*\n(AR$10*OFFSET('Efficiency Distributions'!$D$10,MATCH($C41,'Efficiency Distributions'!$C$9:$C$87,0)+RIGHT($E48),0)\n+AR$11*OFFSET('Efficiency Distributions'!$E$10,MATCH($C41,'Efficiency Distributions'!$C$9:$C$87,0)+RIGHT($E48),0))\n/SUM(AR$10:AR$11)","v":6.1033340228211733E-2},{"$f":"IF(INDEX(PC_MAPPING,RIGHT($C41,1),MATCH($E$2,'Data by Building Type'!$D$22:$F$22,0))=\"Yes\",1,0)*\n(AS$10*OFFSET('Efficiency Distributions'!$D$10,MATCH($C41,'Efficiency Distributions'!$C$9:$C$87,0)+RIGHT($E48),0)\n+AS$11*OFFSET('Efficiency Distributions'!$E$10,MATCH($C41,'Efficiency Distributions'!$C$9:$C$87,0)+RIGHT($E48),0))\n/SUM(AS$10:AS$11)","v":5.7279210571119829E-2},{"$f":"IF(INDEX(PC_MAPPING,RIGHT($C41,1),MATCH($E$2,'Data by Building Type'!$D$22:$F$22,0))=\"Yes\",1,0)*\n(AT$10*OFFSET('Efficiency Distributions'!$D$10,MATCH($C41,'Efficiency Distributions'!$C$9:$C$87,0)+RIGHT($E48),0)\n+AT$11*OFFSET('Efficiency Distributions'!$E$10,MATCH($C41,'Efficiency Distributions'!$C$9:$C$87,0)+RIGHT($E48),0))\n/SUM(AT$10:AT$11)","v":5.3311251978339309E-2},{"$f":"IF(INDEX(PC_MAPPING,RIGHT($C41,1),MATCH($E$2,'Data by Building Type'!$D$22:$F$22,0))=\"Yes\",1,0)*\n(AU$10*OFFSET('Efficiency Distributions'!$D$10,MATCH($C41,'Efficiency Distributions'!$C$9:$C$87,0)+RIGHT($E48),0)\n+AU$11*OFFSET('Efficiency Distributions'!$E$10,MATCH($C41,'Efficiency Distributions'!$C$9:$C$87,0)+RIGHT($E48),0))\n/SUM(AU$10:AU$11)","v":5.2067606848840771E-2},{"$f":"IF(INDEX(PC_MAPPING,RIGHT($C41,1),MATCH($E$2,'Data by Building Type'!$D$22:$F$22,0))=\"Yes\",1,0)*\n(AV$10*OFFSET('Efficiency Distributions'!$D$10,MATCH($C41,'Efficiency Distributions'!$C$9:$C$87,0)+RIGHT($E48),0)\n+AV$11*OFFSET('Efficiency Distributions'!$E$10,MATCH($C41,'Efficiency Distributions'!$C$9:$C$87,0)+RIGHT($E48),0))\n/SUM(AV$10:AV$11)","v":6.0938786216969992E-2},{"$f":"IF(INDEX(PC_MAPPING,RIGHT($C41,1),MATCH($E$2,'Data by Building Type'!$D$22:$F$22,0))=\"Yes\",1,0)*\n(AW$10*OFFSET('Efficiency Distributions'!$D$10,MATCH($C41,'Efficiency Distributions'!$C$9:$C$87,0)+RIGHT($E48),0)\n+AW$11*OFFSET('Efficiency Distributions'!$E$10,MATCH($C41,'Efficiency Distributions'!$C$9:$C$87,0)+RIGHT($E48),0))\n/SUM(AW$10:AW$11)","v":5.8014515791063016E-2},{"$f":"IF(INDEX(PC_MAPPING,RIGHT($C41,1),MATCH($E$2,'Data by Building Type'!$D$22:$F$22,0))=\"Yes\",1,0)*\n(AX$10*OFFSET('Efficiency Distributions'!$D$10,MATCH($C41,'Efficiency Distributions'!$C$9:$C$87,0)+RIGHT($E48),0)\n+AX$11*OFFSET('Efficiency Distributions'!$E$10,MATCH($C41,'Efficiency Distributions'!$C$9:$C$87,0)+RIGHT($E48),0))\n/SUM(AX$10:AX$11)","v":5.9613443752409373E-2},{"$f":"IF(INDEX(PC_MAPPING,RIGHT($C41,1),MATCH($E$2,'Data by Building Type'!$D$22:$F$22,0))=\"Yes\",1,0)*\n(AY$10*OFFSET('Efficiency Distributions'!$D$10,MATCH($C41,'Efficiency Distributions'!$C$9:$C$87,0)+RIGHT($E48),0)\n+AY$11*OFFSET('Efficiency Distributions'!$E$10,MATCH($C41,'Efficiency Distributions'!$C$9:$C$87,0)+RIGHT($E48),0))\n/SUM(AY$10:AY$11)","v":6.2302097358538498E-2},{"$f":"IF(INDEX(PC_MAPPING,RIGHT($C41,1),MATCH($E$2,'Data by Building Type'!$D$22:$F$22,0))=\"Yes\",1,0)*\n(AZ$10*OFFSET('Efficiency Distributions'!$D$10,MATCH($C41,'Efficiency Distributions'!$C$9:$C$87,0)+RIGHT($E48),0)\n+AZ$11*OFFSET('Efficiency Distributions'!$E$10,MATCH($C41,'Efficiency Distributions'!$C$9:$C$87,0)+RIGHT($E48),0))\n/SUM(AZ$10:AZ$11)","v":6.6074498454604322E-2},{"$f":"IF(INDEX(PC_MAPPING,RIGHT($C41,1),MATCH($E$2,'Data by Building Type'!$D$22:$F$22,0))=\"Yes\",1,0)*\n(BA$10*OFFSET('Efficiency Distributions'!$D$10,MATCH($C41,'Efficiency Distributions'!$C$9:$C$87,0)+RIGHT($E48),0)\n+BA$11*OFFSET('Efficiency Distributions'!$E$10,MATCH($C41,'Efficiency Distributions'!$C$9:$C$87,0)+RIGHT($E48),0))\n/SUM(BA$10:BA$11)","v":6.4501656085698064E-2},{"$f":"IF(INDEX(PC_MAPPING,RIGHT($C41,1),MATCH($E$2,'Data by Building Type'!$D$22:$F$22,0))=\"Yes\",1,0)*\n(BB$10*OFFSET('Efficiency Distributions'!$D$10,MATCH($C41,'Efficiency Distributions'!$C$9:$C$87,0)+RIGHT($E48),0)\n+BB$11*OFFSET('Efficiency Distributions'!$E$10,MATCH($C41,'Efficiency Distributions'!$C$9:$C$87,0)+RIGHT($E48),0))\n/SUM(BB$10:BB$11)","v":6.3877546415257044E-2},{"$f":"IF(INDEX(PC_MAPPING,RIGHT($C41,1),MATCH($E$2,'Data by Building Type'!$D$22:$F$22,0))=\"Yes\",1,0)*\n(BC$10*OFFSET('Efficiency Distributions'!$D$10,MATCH($C41,'Efficiency Distributions'!$C$9:$C$87,0)+RIGHT($E48),0)\n+BC$11*OFFSET('Efficiency Distributions'!$E$10,MATCH($C41,'Efficiency Distributions'!$C$9:$C$87,0)+RIGHT($E48),0))\n/SUM(BC$10:BC$11)","v":6.4286241699701027E-2},{"$f":"IF(INDEX(PC_MAPPING,RIGHT($C41,1),MATCH($E$2,'Data by Building Type'!$D$22:$F$22,0))=\"Yes\",1,0)*\n(BD$10*OFFSET('Efficiency Distributions'!$D$10,MATCH($C41,'Efficiency Distributions'!$C$9:$C$87,0)+RIGHT($E48),0)\n+BD$11*OFFSET('Efficiency Distributions'!$E$10,MATCH($C41,'Efficiency Distributions'!$C$9:$C$87,0)+RIGHT($E48),0))\n/SUM(BD$10:BD$11)","v":6.6860186065516261E-2},{"$f":"IF(INDEX(PC_MAPPING,RIGHT($C41,1),MATCH($E$2,'Data by Building Type'!$D$22:$F$22,0))=\"Yes\",1,0)*\n(BE$10*OFFSET('Efficiency Distributions'!$D$10,MATCH($C41,'Efficiency Distributions'!$C$9:$C$87,0)+RIGHT($E48),0)\n+BE$11*OFFSET('Efficiency Distributions'!$E$10,MATCH($C41,'Efficiency Distributions'!$C$9:$C$87,0)+RIGHT($E48),0))\n/SUM(BE$10:BE$11)","v":6.5380533427892878E-2},{"$f":"IF(INDEX(PC_MAPPING,RIGHT($C41,1),MATCH($E$2,'Data by Building Type'!$D$22:$F$22,0))=\"Yes\",1,0)*\n(BF$10*OFFSET('Efficiency Distributions'!$D$10,MATCH($C41,'Efficiency Distributions'!$C$9:$C$87,0)+RIGHT($E48),0)\n+BF$11*OFFSET('Efficiency Distributions'!$E$10,MATCH($C41,'Efficiency Distributions'!$C$9:$C$87,0)+RIGHT($E48),0))\n/SUM(BF$10:BF$11)","v":7.0175998128530759E-2},{"$f":"IF(INDEX(PC_MAPPING,RIGHT($C41,1),MATCH($E$2,'Data by Building Type'!$D$22:$F$22,0))=\"Yes\",1,0)*\n(BG$10*OFFSET('Efficiency Distributions'!$D$10,MATCH($C41,'Efficiency Distributions'!$C$9:$C$87,0)+RIGHT($E48),0)\n+BG$11*OFFSET('Efficiency Distributions'!$E$10,MATCH($C41,'Efficiency Distributions'!$C$9:$C$87,0)+RIGHT($E48),0))\n/SUM(BG$10:BG$11)","v":7.0223400338825542E-2}]
[null,null,null,null,"EL4",{"$f":"IF(INDEX(PC_MAPPING,RIGHT($C41,1),MATCH($E$2,'Data by Building Type'!$D$22:$F$22,0))=\"Yes\",1,0)*\n(F$10*OFFSET('Efficiency Distributions'!$D$10,MATCH($C41,'Efficiency Distributions'!$C$9:$C$87,0)+RIGHT($E49),0)\n+F$11*OFFSET('Efficiency Distributions'!$E$10,MATCH($C41,'Efficiency Distributions'!$C$9:$C$87,0)+RIGHT($E49),0))\n/SUM(F$10:F$11)","v":5.4813654487077708E-2},{"$f":"IF(INDEX(PC_MAPPING,RIGHT($C41,1),MATCH($E$2,'Data by Building Type'!$D$22:$F$22,0))=\"Yes\",1,0)*\n(G$10*OFFSET('Efficiency Distributions'!$D$10,MATCH($C41,'Efficiency Distributions'!$C$9:$C$87,0)+RIGHT($E49),0)\n+G$11*OFFSET('Efficiency Distributions'!$E$10,MATCH($C41,'Efficiency Distributions'!$C$9:$C$87,0)+RIGHT($E49),0))\n/SUM(G$10:G$11)","v":5.8283006532852663E-2},{"$f":"IF(INDEX(PC_MAPPING,RIGHT($C41,1),MATCH($E$2,'Data by Building Type'!$D$22:$F$22,0))=\"Yes\",1,0)*\n(H$10*OFFSET('Efficiency Distributions'!$D$10,MATCH($C41,'Efficiency Distributions'!$C$9:$C$87,0)+RIGHT($E49),0)\n+H$11*OFFSET('Efficiency Distributions'!$E$10,MATCH($C41,'Efficiency Distributions'!$C$9:$C$87,0)+RIGHT($E49),0))\n/SUM(H$10:H$11)","v":5.6665675521256169E-2},{"$f":"IF(INDEX(PC_MAPPING,RIGHT($C41,1),MATCH($E$2,'Data by Building Type'!$D$22:$F$22,0))=\"Yes\",1,0)*\n(I$10*OFFSET('Efficiency Distributions'!$D$10,MATCH($C41,'Efficiency Distributions'!$C$9:$C$87,0)+RIGHT($E49),0)\n+I$11*OFFSET('Efficiency Distributions'!$E$10,MATCH($C41,'Efficiency Distributions'!$C$9:$C$87,0)+RIGHT($E49),0))\n/SUM(I$10:I$11)","v":5.197185591669104E-2},{"$f":"IF(INDEX(PC_MAPPING,RIGHT($C41,1),MATCH($E$2,'Data by Building Type'!$D$22:$F$22,0))=\"Yes\",1,0)*\n(J$10*OFFSET('Efficiency Distributions'!$D$10,MATCH($C41,'Efficiency Distributions'!$C$9:$C$87,0)+RIGHT($E49),0)\n+J$11*OFFSET('Efficiency Distributions'!$E$10,MATCH($C41,'Efficiency Distributions'!$C$9:$C$87,0)+RIGHT($E49),0))\n/SUM(J$10:J$11)","v":4.6600982780730556E-2},{"$f":"IF(INDEX(PC_MAPPING,RIGHT($C41,1),MATCH($E$2,'Data by Building Type'!$D$22:$F$22,0))=\"Yes\",1,0)*\n(K$10*OFFSET('Efficiency Distributions'!$D$10,MATCH($C41,'Efficiency Distributions'!$C$9:$C$87,0)+RIGHT($E49),0)\n+K$11*OFFSET('Efficiency Distributions'!$E$10,MATCH($C41,'Efficiency Distributions'!$C$9:$C$87,0)+RIGHT($E49),0))\n/SUM(K$10:K$11)","v":4.8114460859300594E-2},{"$f":"IF(INDEX(PC_MAPPING,RIGHT($C41,1),MATCH($E$2,'Data by Building Type'!$D$22:$F$22,0))=\"Yes\",1,0)*\n(L$10*OFFSET('Efficiency Distributions'!$D$10,MATCH($C41,'Efficiency Distributions'!$C$9:$C$87,0)+RIGHT($E49),0)\n+L$11*OFFSET('Efficiency Distributions'!$E$10,MATCH($C41,'Efficiency Distributions'!$C$9:$C$87,0)+RIGHT($E49),0))\n/SUM(L$10:L$11)","v":4.6710649470249339E-2},{"$f":"IF(INDEX(PC_MAPPING,RIGHT($C41,1),MATCH($E$2,'Data by Building Type'!$D$22:$F$22,0))=\"Yes\",1,0)*\n(M$10*OFFSET('Efficiency Distributions'!$D$10,MATCH($C41,'Efficiency Distributions'!$C$9:$C$87,0)+RIGHT($E49),0)\n+M$11*OFFSET('Efficiency Distributions'!$E$10,MATCH($C41,'Efficiency Distributions'!$C$9:$C$87,0)+RIGHT($E49),0))\n/SUM(M$10:M$11)","v":4.3892271139991237E-2},{"$f":"IF(INDEX(PC_MAPPING,RIGHT($C41,1),MATCH($E$2,'Data by Building Type'!$D$22:$F$22,0))=\"Yes\",1,0)*\n(N$10*OFFSET('Efficiency Distributions'!$D$10,MATCH($C41,'Efficiency Distributions'!$C$9:$C$87,0)+RIGHT($E49),0)\n+N$11*OFFSET('Efficiency Distributions'!$E$10,MATCH($C41,'Efficiency Distributions'!$C$9:$C$87,0)+RIGHT($E49),0))\n/SUM(N$10:N$11)","v":4.1585949752330799E-2},{"$f":"IF(INDEX(PC_MAPPING,RIGHT($C41,1),MATCH($E$2,'Data by Building Type'!$D$22:$F$22,0))=\"Yes\",1,0)*\n(O$10*OFFSET('Efficiency Distributions'!$D$10,MATCH($C41,'Efficiency Distributions'!$C$9:$C$87,0)+RIGHT($E49),0)\n+O$11*OFFSET('Efficiency Distributions'!$E$10,MATCH($C41,'Efficiency Distributions'!$C$9:$C$87,0)+RIGHT($E49),0))\n/SUM(O$10:O$11)","v":4.3740363527632151E-2},{"$f":"IF(INDEX(PC_MAPPING,RIGHT($C41,1),MATCH($E$2,'Data by Building Type'!$D$22:$F$22,0))=\"Yes\",1,0)*\n(P$10*OFFSET('Efficiency Distributions'!$D$10,MATCH($C41,'Efficiency Distributions'!$C$9:$C$87,0)+RIGHT($E49),0)\n+P$11*OFFSET('Efficiency Distributions'!$E$10,MATCH($C41,'Efficiency Distributions'!$C$9:$C$87,0)+RIGHT($E49),0))\n/SUM(P$10:P$11)","v":5.3222341791459168E-2},{"$f":"IF(INDEX(PC_MAPPING,RIGHT($C41,1),MATCH($E$2,'Data by Building Type'!$D$22:$F$22,0))=\"Yes\",1,0)*\n(Q$10*OFFSET('Efficiency Distributions'!$D$10,MATCH($C41,'Efficiency Distributions'!$C$9:$C$87,0)+RIGHT($E49),0)\n+Q$11*OFFSET('Efficiency Distributions'!$E$10,MATCH($C41,'Efficiency Distributions'!$C$9:$C$87,0)+RIGHT($E49),0))\n/SUM(Q$10:Q$11)","v":5.2938713319570889E-2},{"$f":"IF(INDEX(PC_MAPPING,RIGHT($C41,1),MATCH($E$2,'Data by Building Type'!$D$22:$F$22,0))=\"Yes\",1,0)*\n(R$10*OFFSET('Efficiency Distributions'!$D$10,MATCH($C41,'Efficiency Distributions'!$C$9:$C$87,0)+RIGHT($E49),0)\n+R$11*OFFSET('Efficiency Distributions'!$E$10,MATCH($C41,'Efficiency Distributions'!$C$9:$C$87,0)+RIGHT($E49),0))\n/SUM(R$10:R$11)","v":7.062823225662751E-2},{"$f":"IF(INDEX(PC_MAPPING,RIGHT($C41,1),MATCH($E$2,'Data by Building Type'!$D$22:$F$22,0))=\"Yes\",1,0)*\n(S$10*OFFSET('Efficiency Distributions'!$D$10,MATCH($C41,'Efficiency Distributions'!$C$9:$C$87,0)+RIGHT($E49),0)\n+S$11*OFFSET('Efficiency Distributions'!$E$10,MATCH($C41,'Efficiency Distributions'!$C$9:$C$87,0)+RIGHT($E49),0))\n/SUM(S$10:S$11)","v":7.062823225662751E-2},{"$f":"IF(INDEX(PC_MAPPING,RIGHT($C41,1),MATCH($E$2,'Data by Building Type'!$D$22:$F$22,0))=\"Yes\",1,0)*\n(T$10*OFFSET('Efficiency Distributions'!$D$10,MATCH($C41,'Efficiency Distributions'!$C$9:$C$87,0)+RIGHT($E49),0)\n+T$11*OFFSET('Efficiency Distributions'!$E$10,MATCH($C41,'Efficiency Distributions'!$C$9:$C$87,0)+RIGHT($E49),0))\n/SUM(T$10:T$11)","v":7.062823225662751E-2},{"$f":"IF(INDEX(PC_MAPPING,RIGHT($C41,1),MATCH($E$2,'Data by Building Type'!$D$22:$F$22,0))=\"Yes\",1,0)*\n(U$10*OFFSET('Efficiency Distributions'!$D$10,MATCH($C41,'Efficiency Distributions'!$C$9:$C$87,0)+RIGHT($E49),0)\n+U$11*OFFSET('Efficiency Distributions'!$E$10,MATCH($C41,'Efficiency Distributions'!$C$9:$C$87,0)+RIGHT($E49),0))\n/SUM(U$10:U$11)","v":7.062823225662751E-2},{"$f":"IF(INDEX(PC_MAPPING,RIGHT($C41,1),MATCH($E$2,'Data by Building Type'!$D$22:$F$22,0))=\"Yes\",1,0)*\n(V$10*OFFSET('Efficiency Distributions'!$D$10,MATCH($C41,'Efficiency Distributions'!$C$9:$C$87,0)+RIGHT($E49),0)\n+V$11*OFFSET('Efficiency Distributions'!$E$10,MATCH($C41,'Efficiency Distributions'!$C$9:$C$87,0)+RIGHT($E49),0))\n/SUM(V$10:V$11)","v":7.062823225662751E-2},{"$f":"IF(INDEX(PC_MAPPING,RIGHT($C41,1),MATCH($E$2,'Data by Building Type'!$D$22:$F$22,0))=\"Yes\",1,0)*\n(W$10*OFFSET('Efficiency Distributions'!$D$10,MATCH($C41,'Efficiency Distributions'!$C$9:$C$87,0)+RIGHT($E49),0)\n+W$11*OFFSET('Efficiency Distributions'!$E$10,MATCH($C41,'Efficiency Distributions'!$C$9:$C$87,0)+RIGHT($E49),0))\n/SUM(W$10:W$11)","v":7.062823225662751E-2},{"$f":"IF(INDEX(PC_MAPPING,RIGHT($C41,1),MATCH($E$2,'Data by Building Type'!$D$22:$F$22,0))=\"Yes\",1,0)*\n(X$10*OFFSET('Efficiency Distributions'!$D$10,MATCH($C41,'Efficiency Distributions'!$C$9:$C$87,0)+RIGHT($E49),0)\n+X$11*OFFSET('Efficiency Distributions'!$E$10,MATCH($C41,'Efficiency Distributions'!$C$9:$C$87,0)+RIGHT($E49),0))\n/SUM(X$10:X$11)","v":7.062823225662751E-2},{"$f":"IF(INDEX(PC_MAPPING,RIGHT($C41,1),MATCH($E$2,'Data by Building Type'!$D$22:$F$22,0))=\"Yes\",1,0)*\n(Y$10*OFFSET('Efficiency Distributions'!$D$10,MATCH($C41,'Efficiency Distributions'!$C$9:$C$87,0)+RIGHT($E49),0)\n+Y$11*OFFSET('Efficiency Distributions'!$E$10,MATCH($C41,'Efficiency Distributions'!$C$9:$C$87,0)+RIGHT($E49),0))\n/SUM(Y$10:Y$11)","v":7.062823225662751E-2},{"$f":"IF(INDEX(PC_MAPPING,RIGHT($C41,1),MATCH($E$2,'Data by Building Type'!$D$22:$F$22,0))=\"Yes\",1,0)*\n(Z$10*OFFSET('Efficiency Distributions'!$D$10,MATCH($C41,'Efficiency Distributions'!$C$9:$C$87,0)+RIGHT($E49),0)\n+Z$11*OFFSET('Efficiency Distributions'!$E$10,MATCH($C41,'Efficiency Distributions'!$C$9:$C$87,0)+RIGHT($E49),0))\n/SUM(Z$10:Z$11)","v":7.062823225662751E-2},{"$f":"IF(INDEX(PC_MAPPING,RIGHT($C41,1),MATCH($E$2,'Data by Building Type'!$D$22:$F$22,0))=\"Yes\",1,0)*\n(AA$10*OFFSET('Efficiency Distributions'!$D$10,MATCH($C41,'Efficiency Distributions'!$C$9:$C$87,0)+RIGHT($E49),0)\n+AA$11*OFFSET('Efficiency Distributions'!$E$10,MATCH($C41,'Efficiency Distributions'!$C$9:$C$87,0)+RIGHT($E49),0))\n/SUM(AA$10:AA$11)","v":7.062823225662751E-2},{"$f":"IF(INDEX(PC_MAPPING,RIGHT($C41,1),MATCH($E$2,'Data by Building Type'!$D$22:$F$22,0))=\"Yes\",1,0)*\n(AB$10*OFFSET('Efficiency Distributions'!$D$10,MATCH($C41,'Efficiency Distributions'!$C$9:$C$87,0)+RIGHT($E49),0)\n+AB$11*OFFSET('Efficiency Distributions'!$E$10,MATCH($C41,'Efficiency Distributions'!$C$9:$C$87,0)+RIGHT($E49),0))\n/SUM(AB$10:AB$11)","v":7.062823225662751E-2},{"$f":"IF(INDEX(PC_MAPPING,RIGHT($C41,1),MATCH($E$2,'Data by Building Type'!$D$22:$F$22,0))=\"Yes\",1,0)*\n(AC$10*OFFSET('Efficiency Distributions'!$D$10,MATCH($C41,'Efficiency Distributions'!$C$9:$C$87,0)+RIGHT($E49),0)\n+AC$11*OFFSET('Efficiency Distributions'!$E$10,MATCH($C41,'Efficiency Distributions'!$C$9:$C$87,0)+RIGHT($E49),0))\n/SUM(AC$10:AC$11)","v":7.062823225662751E-2},{"$f":"IF(INDEX(PC_MAPPING,RIGHT($C41,1),MATCH($E$2,'Data by Building Type'!$D$22:$F$22,0))=\"Yes\",1,0)*\n(AD$10*OFFSET('Efficiency Distributions'!$D$10,MATCH($C41,'Efficiency Distributions'!$C$9:$C$87,0)+RIGHT($E49),0)\n+AD$11*OFFSET('Efficiency Distributions'!$E$10,MATCH($C41,'Efficiency Distributions'!$C$9:$C$87,0)+RIGHT($E49),0))\n/SUM(AD$10:AD$11)","v":7.062823225662751E-2},{"$f":"IF(INDEX(PC_MAPPING,RIGHT($C41,1),MATCH($E$2,'Data by Building Type'!$D$22:$F$22,0))=\"Yes\",1,0)*\n(AE$10*OFFSET('Efficiency Distributions'!$D$10,MATCH($C41,'Efficiency Distributions'!$C$9:$C$87,0)+RIGHT($E49),0)\n+AE$11*OFFSET('Efficiency Distributions'!$E$10,MATCH($C41,'Efficiency Distributions'!$C$9:$C$87,0)+RIGHT($E49),0))\n/SUM(AE$10:AE$11)","v":7.062823225662751E-2},{"$f":"IF(INDEX(PC_MAPPING,RIGHT($C41,1),MATCH($E$2,'Data by Building Type'!$D$22:$F$22,0))=\"Yes\",1,0)*\n(AF$10*OFFSET('Efficiency Distributions'!$D$10,MATCH($C41,'Efficiency Distributions'!$C$9:$C$87,0)+RIGHT($E49),0)\n+AF$11*OFFSET('Efficiency Distributions'!$E$10,MATCH($C41,'Efficiency Distributions'!$C$9:$C$87,0)+RIGHT($E49),0))\n/SUM(AF$10:AF$11)","v":7.062823225662751E-2},{"$f":"IF(INDEX(PC_MAPPING,RIGHT($C41,1),MATCH($E$2,'Data by Building Type'!$D$22:$F$22,0))=\"Yes\",1,0)*\n(AG$10*OFFSET('Efficiency Distributions'!$D$10,MATCH($C41,'Efficiency Distributions'!$C$9:$C$87,0)+RIGHT($E49),0)\n+AG$11*OFFSET('Efficiency Distributions'!$E$10,MATCH($C41,'Efficiency Distributions'!$C$9:$C$87,0)+RIGHT($E49),0))\n/SUM(AG$10:AG$11)","v":7.062823225662751E-2},{"$f":"IF(INDEX(PC_MAPPING,RIGHT($C41,1),MATCH($E$2,'Data by Building Type'!$D$22:$F$22,0))=\"Yes\",1,0)*\n(AH$10*OFFSET('Efficiency Distributions'!$D$10,MATCH($C41,'Efficiency Distributions'!$C$9:$C$87,0)+RIGHT($E49),0)\n+AH$11*OFFSET('Efficiency Distributions'!$E$10,MATCH($C41,'Efficiency Distributions'!$C$9:$C$87,0)+RIGHT($E49),0))\n/SUM(AH$10:AH$11)","v":7.062823225662751E-2},{"$f":"IF(INDEX(PC_MAPPING,RIGHT($C41,1),MATCH($E$2,'Data by Building Type'!$D$22:$F$22,0))=\"Yes\",1,0)*\n(AI$10*OFFSET('Efficiency Distributions'!$D$10,MATCH($C41,'Efficiency Distributions'!$C$9:$C$87,0)+RIGHT($E49),0)\n+AI$11*OFFSET('Efficiency Distributions'!$E$10,MATCH($C41,'Efficiency Distributions'!$C$9:$C$87,0)+RIGHT($E49),0))\n/SUM(AI$10:AI$11)","v":7.062823225662751E-2},{"$f":"IF(INDEX(PC_MAPPING,RIGHT($C41,1),MATCH($E$2,'Data by Building Type'!$D$22:$F$22,0))=\"Yes\",1,0)*\n(AJ$10*OFFSET('Efficiency Distributions'!$D$10,MATCH($C41,'Efficiency Distributions'!$C$9:$C$87,0)+RIGHT($E49),0)\n+AJ$11*OFFSET('Efficiency Distributions'!$E$10,MATCH($C41,'Efficiency Distributions'!$C$9:$C$87,0)+RIGHT($E49),0))\n/SUM(AJ$10:AJ$11)","v":7.0628232256627496E-2},{"$f":"IF(INDEX(PC_MAPPING,RIGHT($C41,1),MATCH($E$2,'Data by Building Type'!$D$22:$F$22,0))=\"Yes\",1,0)*\n(AK$10*OFFSET('Efficiency Distributions'!$D$10,MATCH($C41,'Efficiency Distributions'!$C$9:$C$87,0)+RIGHT($E49),0)\n+AK$11*OFFSET('Efficiency Distributions'!$E$10,MATCH($C41,'Efficiency Distributions'!$C$9:$C$87,0)+RIGHT($E49),0))\n/SUM(AK$10:AK$11)","v":6.286977687721651E-2},{"$f":"IF(INDEX(PC_MAPPING,RIGHT($C41,1),MATCH($E$2,'Data by Building Type'!$D$22:$F$22,0))=\"Yes\",1,0)*\n(AL$10*OFFSET('Efficiency Distributions'!$D$10,MATCH($C41,'Efficiency Distributions'!$C$9:$C$87,0)+RIGHT($E49),0)\n+AL$11*OFFSET('Efficiency Distributions'!$E$10,MATCH($C41,'Efficiency Distributions'!$C$9:$C$87,0)+RIGHT($E49),0))\n/SUM(AL$10:AL$11)","v":6.2558168555373217E-2},{"$f":"IF(INDEX(PC_MAPPING,RIGHT($C41,1),MATCH($E$2,'Data by Building Type'!$D$22:$F$22,0))=\"Yes\",1,0)*\n(AM$10*OFFSET('Efficiency Distributions'!$D$10,MATCH($C41,'Efficiency Distributions'!$C$9:$C$87,0)+RIGHT($E49),0)\n+AM$11*OFFSET('Efficiency Distributions'!$E$10,MATCH($C41,'Efficiency Distributions'!$C$9:$C$87,0)+RIGHT($E49),0))\n/SUM(AM$10:AM$11)","v":5.5182452245755659E-2},{"$f":"IF(INDEX(PC_MAPPING,RIGHT($C41,1),MATCH($E$2,'Data by Building Type'!$D$22:$F$22,0))=\"Yes\",1,0)*\n(AN$10*OFFSET('Efficiency Distributions'!$D$10,MATCH($C41,'Efficiency Distributions'!$C$9:$C$87,0)+RIGHT($E49),0)\n+AN$11*OFFSET('Efficiency Distributions'!$E$10,MATCH($C41,'Efficiency Distributions'!$C$9:$C$87,0)+RIGHT($E49),0))\n/SUM(AN$10:AN$11)","v":5.555872647572823E-2},{"$f":"IF(INDEX(PC_MAPPING,RIGHT($C41,1),MATCH($E$2,'Data by Building Type'!$D$22:$F$22,0))=\"Yes\",1,0)*\n(AO$10*OFFSET('Efficiency Distributions'!$D$10,MATCH($C41,'Efficiency Distributions'!$C$9:$C$87,0)+RIGHT($E49),0)\n+AO$11*OFFSET('Efficiency Distributions'!$E$10,MATCH($C41,'Efficiency Distributions'!$C$9:$C$87,0)+RIGHT($E49),0))\n/SUM(AO$10:AO$11)","v":5.5100270298144939E-2},{"$f":"IF(INDEX(PC_MAPPING,RIGHT($C41,1),MATCH($E$2,'Data by Building Type'!$D$22:$F$22,0))=\"Yes\",1,0)*\n(AP$10*OFFSET('Efficiency Distributions'!$D$10,MATCH($C41,'Efficiency Distributions'!$C$9:$C$87,0)+RIGHT($E49),0)\n+AP$11*OFFSET('Efficiency Distributions'!$E$10,MATCH($C41,'Efficiency Distributions'!$C$9:$C$87,0)+RIGHT($E49),0))\n/SUM(AP$10:AP$11)","v":5.4160032810351914E-2},{"$f":"IF(INDEX(PC_MAPPING,RIGHT($C41,1),MATCH($E$2,'Data by Building Type'!$D$22:$F$22,0))=\"Yes\",1,0)*\n(AQ$10*OFFSET('Efficiency Distributions'!$D$10,MATCH($C41,'Efficiency Distributions'!$C$9:$C$87,0)+RIGHT($E49),0)\n+AQ$11*OFFSET('Efficiency Distributions'!$E$10,MATCH($C41,'Efficiency Distributions'!$C$9:$C$87,0)+RIGHT($E49),0))\n/SUM(AQ$10:AQ$11)","v":5.3204914896238117E-2},{"$f":"IF(INDEX(PC_MAPPING,RIGHT($C41,1),MATCH($E$2,'Data by Building Type'!$D$22:$F$22,0))=\"Yes\",1,0)*\n(AR$10*OFFSET('Efficiency Distributions'!$D$10,MATCH($C41,'Efficiency Distributions'!$C$9:$C$87,0)+RIGHT($E49),0)\n+AR$11*OFFSET('Efficiency Distributions'!$E$10,MATCH($C41,'Efficiency Distributions'!$C$9:$C$87,0)+RIGHT($E49),0))\n/SUM(AR$10:AR$11)","v":5.3404172699685254E-2},{"$f":"IF(INDEX(PC_MAPPING,RIGHT($C41,1),MATCH($E$2,'Data by Building Type'!$D$22:$F$22,0))=\"Yes\",1,0)*\n(AS$10*OFFSET('Efficiency Distributions'!$D$10,MATCH($C41,'Efficiency Distributions'!$C$9:$C$87,0)+RIGHT($E49),0)\n+AS$11*OFFSET('Efficiency Distributions'!$E$10,MATCH($C41,'Efficiency Distributions'!$C$9:$C$87,0)+RIGHT($E49),0))\n/SUM(AS$10:AS$11)","v":5.0119309249729835E-2},{"$f":"IF(INDEX(PC_MAPPING,RIGHT($C41,1),MATCH($E$2,'Data by Building Type'!$D$22:$F$22,0))=\"Yes\",1,0)*\n(AT$10*OFFSET('Efficiency Distributions'!$D$10,MATCH($C41,'Efficiency Distributions'!$C$9:$C$87,0)+RIGHT($E49),0)\n+AT$11*OFFSET('Efficiency Distributions'!$E$10,MATCH($C41,'Efficiency Distributions'!$C$9:$C$87,0)+RIGHT($E49),0))\n/SUM(AT$10:AT$11)","v":4.664734548104689E-2},{"$f":"IF(INDEX(PC_MAPPING,RIGHT($C41,1),MATCH($E$2,'Data by Building Type'!$D$22:$F$22,0))=\"Yes\",1,0)*\n(AU$10*OFFSET('Efficiency Distributions'!$D$10,MATCH($C41,'Efficiency Distributions'!$C$9:$C$87,0)+RIGHT($E49),0)\n+AU$11*OFFSET('Efficiency Distributions'!$E$10,MATCH($C41,'Efficiency Distributions'!$C$9:$C$87,0)+RIGHT($E49),0))\n/SUM(AU$10:AU$11)","v":4.5559155992735662E-2},{"$f":"IF(INDEX(PC_MAPPING,RIGHT($C41,1),MATCH($E$2,'Data by Building Type'!$D$22:$F$22,0))=\"Yes\",1,0)*\n(AV$10*OFFSET('Efficiency Distributions'!$D$10,MATCH($C41,'Efficiency Distributions'!$C$9:$C$87,0)+RIGHT($E49),0)\n+AV$11*OFFSET('Efficiency Distributions'!$E$10,MATCH($C41,'Efficiency Distributions'!$C$9:$C$87,0)+RIGHT($E49),0))\n/SUM(AV$10:AV$11)","v":5.3321437939848733E-2},{"$f":"IF(INDEX(PC_MAPPING,RIGHT($C41,1),MATCH($E$2,'Data by Building Type'!$D$22:$F$22,0))=\"Yes\",1,0)*\n(AW$10*OFFSET('Efficiency Distributions'!$D$10,MATCH($C41,'Efficiency Distributions'!$C$9:$C$87,0)+RIGHT($E49),0)\n+AW$11*OFFSET('Efficiency Distributions'!$E$10,MATCH($C41,'Efficiency Distributions'!$C$9:$C$87,0)+RIGHT($E49),0))\n/SUM(AW$10:AW$11)","v":5.076270131718013E-2},{"$f":"IF(INDEX(PC_MAPPING,RIGHT($C41,1),MATCH($E$2,'Data by Building Type'!$D$22:$F$22,0))=\"Yes\",1,0)*\n(AX$10*OFFSET('Efficiency Distributions'!$D$10,MATCH($C41,'Efficiency Distributions'!$C$9:$C$87,0)+RIGHT($E49),0)\n+AX$11*OFFSET('Efficiency Distributions'!$E$10,MATCH($C41,'Efficiency Distributions'!$C$9:$C$87,0)+RIGHT($E49),0))\n/SUM(AX$10:AX$11)","v":5.2161763283358191E-2},{"$f":"IF(INDEX(PC_MAPPING,RIGHT($C41,1),MATCH($E$2,'Data by Building Type'!$D$22:$F$22,0))=\"Yes\",1,0)*\n(AY$10*OFFSET('Efficiency Distributions'!$D$10,MATCH($C41,'Efficiency Distributions'!$C$9:$C$87,0)+RIGHT($E49),0)\n+AY$11*OFFSET('Efficiency Distributions'!$E$10,MATCH($C41,'Efficiency Distributions'!$C$9:$C$87,0)+RIGHT($E49),0))\n/SUM(AY$10:AY$11)","v":5.4514335188721175E-2},{"$f":"IF(INDEX(PC_MAPPING,RIGHT($C41,1),MATCH($E$2,'Data by Building Type'!$D$22:$F$22,0))=\"Yes\",1,0)*\n(AZ$10*OFFSET('Efficiency Distributions'!$D$10,MATCH($C41,'Efficiency Distributions'!$C$9:$C$87,0)+RIGHT($E49),0)\n+AZ$11*OFFSET('Efficiency Distributions'!$E$10,MATCH($C41,'Efficiency Distributions'!$C$9:$C$87,0)+RIGHT($E49),0))\n/SUM(AZ$10:AZ$11)","v":5.781518614777878E-2},{"$f":"IF(INDEX(PC_MAPPING,RIGHT($C41,1),MATCH($E$2,'Data by Building Type'!$D$22:$F$22,0))=\"Yes\",1,0)*\n(BA$10*OFFSET('Efficiency Distributions'!$D$10,MATCH($C41,'Efficiency Distributions'!$C$9:$C$87,0)+RIGHT($E49),0)\n+BA$11*OFFSET('Efficiency Distributions'!$E$10,MATCH($C41,'Efficiency Distributions'!$C$9:$C$87,0)+RIGHT($E49),0))\n/SUM(BA$10:BA$11)","v":5.6438949074985811E-2},{"$f":"IF(INDEX(PC_MAPPING,RIGHT($C41,1),MATCH($E$2,'Data by Building Type'!$D$22:$F$22,0))=\"Yes\",1,0)*\n(BB$10*OFFSET('Efficiency Distributions'!$D$10,MATCH($C41,'Efficiency Distributions'!$C$9:$C$87,0)+RIGHT($E49),0)\n+BB$11*OFFSET('Efficiency Distributions'!$E$10,MATCH($C41,'Efficiency Distributions'!$C$9:$C$87,0)+RIGHT($E49),0))\n/SUM(BB$10:BB$11)","v":5.5892853113349905E-2},{"$f":"IF(INDEX(PC_MAPPING,RIGHT($C41,1),MATCH($E$2,'Data by Building Type'!$D$22:$F$22,0))=\"Yes\",1,0)*\n(BC$10*OFFSET('Efficiency Distributions'!$D$10,MATCH($C41,'Efficiency Distributions'!$C$9:$C$87,0)+RIGHT($E49),0)\n+BC$11*OFFSET('Efficiency Distributions'!$E$10,MATCH($C41,'Efficiency Distributions'!$C$9:$C$87,0)+RIGHT($E49),0))\n/SUM(BC$10:BC$11)","v":5.6250461487238397E-2},{"$f":"IF(INDEX(PC_MAPPING,RIGHT($C41,1),MATCH($E$2,'Data by Building Type'!$D$22:$F$22,0))=\"Yes\",1,0)*\n(BD$10*OFFSET('Efficiency Distributions'!$D$10,MATCH($C41,'Efficiency Distributions'!$C$9:$C$87,0)+RIGHT($E49),0)\n+BD$11*OFFSET('Efficiency Distributions'!$E$10,MATCH($C41,'Efficiency Distributions'!$C$9:$C$87,0)+RIGHT($E49),0))\n/SUM(BD$10:BD$11)","v":5.850266280732673E-2},{"$f":"IF(INDEX(PC_MAPPING,RIGHT($C41,1),MATCH($E$2,'Data by Building Type'!$D$22:$F$22,0))=\"Yes\",1,0)*\n(BE$10*OFFSET('Efficiency Distributions'!$D$10,MATCH($C41,'Efficiency Distributions'!$C$9:$C$87,0)+RIGHT($E49),0)\n+BE$11*OFFSET('Efficiency Distributions'!$E$10,MATCH($C41,'Efficiency Distributions'!$C$9:$C$87,0)+RIGHT($E49),0))\n/SUM(BE$10:BE$11)","v":5.7207966749406251E-2},{"$f":"IF(INDEX(PC_MAPPING,RIGHT($C41,1),MATCH($E$2,'Data by Building Type'!$D$22:$F$22,0))=\"Yes\",1,0)*\n(BF$10*OFFSET('Efficiency Distributions'!$D$10,MATCH($C41,'Efficiency Distributions'!$C$9:$C$87,0)+RIGHT($E49),0)\n+BF$11*OFFSET('Efficiency Distributions'!$E$10,MATCH($C41,'Efficiency Distributions'!$C$9:$C$87,0)+RIGHT($E49),0))\n/SUM(BF$10:BF$11)","v":6.14039983624644E-2},{"$f":"IF(INDEX(PC_MAPPING,RIGHT($C41,1),MATCH($E$2,'Data by Building Type'!$D$22:$F$22,0))=\"Yes\",1,0)*\n(BG$10*OFFSET('Efficiency Distributions'!$D$10,MATCH($C41,'Efficiency Distributions'!$C$9:$C$87,0)+RIGHT($E49),0)\n+BG$11*OFFSET('Efficiency Distributions'!$E$10,MATCH($C41,'Efficiency Distributions'!$C$9:$C$87,0)+RIGHT($E49),0))\n/SUM(BG$10:BG$11)","v":6.1445475296472339E-2}]
[null,null,null,null,"EL5",{"$f":"IF(INDEX(PC_MAPPING,RIGHT($C41,1),MATCH($E$2,'Data by Building Type'!$D$22:$F$22,0))=\"Yes\",1,0)*\n(F$10*OFFSET('Efficiency Distributions'!$D$10,MATCH($C41,'Efficiency Distributions'!$C$9:$C$87,0)+RIGHT($E50),0)\n+F$11*OFFSET('Efficiency Distributions'!$E$10,MATCH($C41,'Efficiency Distributions'!$C$9:$C$87,0)+RIGHT($E50),0))\n/SUM(F$10:F$11)","v":0.27145809841219437},{"$f":"IF(INDEX(PC_MAPPING,RIGHT($C41,1),MATCH($E$2,'Data by Building Type'!$D$22:$F$22,0))=\"Yes\",1,0)*\n(G$10*OFFSET('Efficiency Distributions'!$D$10,MATCH($C41,'Efficiency Distributions'!$C$9:$C$87,0)+RIGHT($E50),0)\n+G$11*OFFSET('Efficiency Distributions'!$E$10,MATCH($C41,'Efficiency Distributions'!$C$9:$C$87,0)+RIGHT($E50),0))\n/SUM(G$10:G$11)","v":0.28863965140079423},{"$f":"IF(INDEX(PC_MAPPING,RIGHT($C41,1),MATCH($E$2,'Data by Building Type'!$D$22:$F$22,0))=\"Yes\",1,0)*\n(H$10*OFFSET('Efficiency Distributions'!$D$10,MATCH($C41,'Efficiency Distributions'!$C$9:$C$87,0)+RIGHT($E50),0)\n+H$11*OFFSET('Efficiency Distributions'!$E$10,MATCH($C41,'Efficiency Distributions'!$C$9:$C$87,0)+RIGHT($E50),0))\n/SUM(H$10:H$11)","v":0.28063001210526872},{"$f":"IF(INDEX(PC_MAPPING,RIGHT($C41,1),MATCH($E$2,'Data by Building Type'!$D$22:$F$22,0))=\"Yes\",1,0)*\n(I$10*OFFSET('Efficiency Distributions'!$D$10,MATCH($C41,'Efficiency Distributions'!$C$9:$C$87,0)+RIGHT($E50),0)\n+I$11*OFFSET('Efficiency Distributions'!$E$10,MATCH($C41,'Efficiency Distributions'!$C$9:$C$87,0)+RIGHT($E50),0))\n/SUM(I$10:I$11)","v":0.25738442930170807},{"$f":"IF(INDEX(PC_MAPPING,RIGHT($C41,1),MATCH($E$2,'Data by Building Type'!$D$22:$F$22,0))=\"Yes\",1,0)*\n(J$10*OFFSET('Efficiency Distributions'!$D$10,MATCH($C41,'Efficiency Distributions'!$C$9:$C$87,0)+RIGHT($E50),0)\n+J$11*OFFSET('Efficiency Distributions'!$E$10,MATCH($C41,'Efficiency Distributions'!$C$9:$C$87,0)+RIGHT($E50),0))\n/SUM(J$10:J$11)","v":0.23078581948552279},{"$f":"IF(INDEX(PC_MAPPING,RIGHT($C41,1),MATCH($E$2,'Data by Building Type'!$D$22:$F$22,0))=\"Yes\",1,0)*\n(K$10*OFFSET('Efficiency Distributions'!$D$10,MATCH($C41,'Efficiency Distributions'!$C$9:$C$87,0)+RIGHT($E50),0)\n+K$11*OFFSET('Efficiency Distributions'!$E$10,MATCH($C41,'Efficiency Distributions'!$C$9:$C$87,0)+RIGHT($E50),0))\n/SUM(K$10:K$11)","v":0.23828113949367918},{"$f":"IF(INDEX(PC_MAPPING,RIGHT($C41,1),MATCH($E$2,'Data by Building Type'!$D$22:$F$22,0))=\"Yes\",1,0)*\n(L$10*OFFSET('Efficiency Distributions'!$D$10,MATCH($C41,'Efficiency Distributions'!$C$9:$C$87,0)+RIGHT($E50),0)\n+L$11*OFFSET('Efficiency Distributions'!$E$10,MATCH($C41,'Efficiency Distributions'!$C$9:$C$87,0)+RIGHT($E50),0))\n/SUM(L$10:L$11)","v":0.23132893070980631},{"$f":"IF(INDEX(PC_MAPPING,RIGHT($C41,1),MATCH($E$2,'Data by Building Type'!$D$22:$F$22,0))=\"Yes\",1,0)*\n(M$10*OFFSET('Efficiency Distributions'!$D$10,MATCH($C41,'Efficiency Distributions'!$C$9:$C$87,0)+RIGHT($E50),0)\n+M$11*OFFSET('Efficiency Distributions'!$E$10,MATCH($C41,'Efficiency Distributions'!$C$9:$C$87,0)+RIGHT($E50),0))\n/SUM(M$10:M$11)","v":0.21737124755043286},{"$f":"IF(INDEX(PC_MAPPING,RIGHT($C41,1),MATCH($E$2,'Data by Building Type'!$D$22:$F$22,0))=\"Yes\",1,0)*\n(N$10*OFFSET('Efficiency Distributions'!$D$10,MATCH($C41,'Efficiency Distributions'!$C$9:$C$87,0)+RIGHT($E50),0)\n+N$11*OFFSET('Efficiency Distributions'!$E$10,MATCH($C41,'Efficiency Distributions'!$C$9:$C$87,0)+RIGHT($E50),0))\n/SUM(N$10:N$11)","v":0.20594946544011447},{"$f":"IF(INDEX(PC_MAPPING,RIGHT($C41,1),MATCH($E$2,'Data by Building Type'!$D$22:$F$22,0))=\"Yes\",1,0)*\n(O$10*OFFSET('Efficiency Distributions'!$D$10,MATCH($C41,'Efficiency Distributions'!$C$9:$C$87,0)+RIGHT($E50),0)\n+O$11*OFFSET('Efficiency Distributions'!$E$10,MATCH($C41,'Efficiency Distributions'!$C$9:$C$87,0)+RIGHT($E50),0))\n/SUM(O$10:O$11)","v":0.21661894318446398},{"$f":"IF(INDEX(PC_MAPPING,RIGHT($C41,1),MATCH($E$2,'Data by Building Type'!$D$22:$F$22,0))=\"Yes\",1,0)*\n(P$10*OFFSET('Efficiency Distributions'!$D$10,MATCH($C41,'Efficiency Distributions'!$C$9:$C$87,0)+RIGHT($E50),0)\n+P$11*OFFSET('Efficiency Distributions'!$E$10,MATCH($C41,'Efficiency Distributions'!$C$9:$C$87,0)+RIGHT($E50),0))\n/SUM(P$10:P$11)","v":0.26357731172913118},{"$f":"IF(INDEX(PC_MAPPING,RIGHT($C41,1),MATCH($E$2,'Data by Building Type'!$D$22:$F$22,0))=\"Yes\",1,0)*\n(Q$10*OFFSET('Efficiency Distributions'!$D$10,MATCH($C41,'Efficiency Distributions'!$C$9:$C$87,0)+RIGHT($E50),0)\n+Q$11*OFFSET('Efficiency Distributions'!$E$10,MATCH($C41,'Efficiency Distributions'!$C$9:$C$87,0)+RIGHT($E50),0))\n/SUM(Q$10:Q$11)","v":0.2621726754873987},{"$f":"IF(INDEX(PC_MAPPING,RIGHT($C41,1),MATCH($E$2,'Data by Building Type'!$D$22:$F$22,0))=\"Yes\",1,0)*\n(R$10*OFFSET('Efficiency Distributions'!$D$10,MATCH($C41,'Efficiency Distributions'!$C$9:$C$87,0)+RIGHT($E50),0)\n+R$11*OFFSET('Efficiency Distributions'!$E$10,MATCH($C41,'Efficiency Distributions'!$C$9:$C$87,0)+RIGHT($E50),0))\n/SUM(R$10:R$11)","v":0.34977791212806009},{"$f":"IF(INDEX(PC_MAPPING,RIGHT($C41,1),MATCH($E$2,'Data by Building Type'!$D$22:$F$22,0))=\"Yes\",1,0)*\n(S$10*OFFSET('Efficiency Distributions'!$D$10,MATCH($C41,'Efficiency Distributions'!$C$9:$C$87,0)+RIGHT($E50),0)\n+S$11*OFFSET('Efficiency Distributions'!$E$10,MATCH($C41,'Efficiency Distributions'!$C$9:$C$87,0)+RIGHT($E50),0))\n/SUM(S$10:S$11)","v":0.34977791212806009},{"$f":"IF(INDEX(PC_MAPPING,RIGHT($C41,1),MATCH($E$2,'Data by Building Type'!$D$22:$F$22,0))=\"Yes\",1,0)*\n(T$10*OFFSET('Efficiency Distributions'!$D$10,MATCH($C41,'Efficiency Distributions'!$C$9:$C$87,0)+RIGHT($E50),0)\n+T$11*OFFSET('Efficiency Distributions'!$E$10,MATCH($C41,'Efficiency Distributions'!$C$9:$C$87,0)+RIGHT($E50),0))\n/SUM(T$10:T$11)","v":0.34977791212806009},{"$f":"IF(INDEX(PC_MAPPING,RIGHT($C41,1),MATCH($E$2,'Data by Building Type'!$D$22:$F$22,0))=\"Yes\",1,0)*\n(U$10*OFFSET('Efficiency Distributions'!$D$10,MATCH($C41,'Efficiency Distributions'!$C$9:$C$87,0)+RIGHT($E50),0)\n+U$11*OFFSET('Efficiency Distributions'!$E$10,MATCH($C41,'Efficiency Distributions'!$C$9:$C$87,0)+RIGHT($E50),0))\n/SUM(U$10:U$11)","v":0.34977791212806009},{"$f":"IF(INDEX(PC_MAPPING,RIGHT($C41,1),MATCH($E$2,'Data by Building Type'!$D$22:$F$22,0))=\"Yes\",1,0)*\n(V$10*OFFSET('Efficiency Distributions'!$D$10,MATCH($C41,'Efficiency Distributions'!$C$9:$C$87,0)+RIGHT($E50),0)\n+V$11*OFFSET('Efficiency Distributions'!$E$10,MATCH($C41,'Efficiency Distributions'!$C$9:$C$87,0)+RIGHT($E50),0))\n/SUM(V$10:V$11)","v":0.34977791212806009},{"$f":"IF(INDEX(PC_MAPPING,RIGHT($C41,1),MATCH($E$2,'Data by Building Type'!$D$22:$F$22,0))=\"Yes\",1,0)*\n(W$10*OFFSET('Efficiency Distributions'!$D$10,MATCH($C41,'Efficiency Distributions'!$C$9:$C$87,0)+RIGHT($E50),0)\n+W$11*OFFSET('Efficiency Distributions'!$E$10,MATCH($C41,'Efficiency Distributions'!$C$9:$C$87,0)+RIGHT($E50),0))\n/SUM(W$10:W$11)","v":0.34977791212806009},{"$f":"IF(INDEX(PC_MAPPING,RIGHT($C41,1),MATCH($E$2,'Data by Building Type'!$D$22:$F$22,0))=\"Yes\",1,0)*\n(X$10*OFFSET('Efficiency Distributions'!$D$10,MATCH($C41,'Efficiency Distributions'!$C$9:$C$87,0)+RIGHT($E50),0)\n+X$11*OFFSET('Efficiency Distributions'!$E$10,MATCH($C41,'Efficiency Distributions'!$C$9:$C$87,0)+RIGHT($E50),0))\n/SUM(X$10:X$11)","v":0.34977791212806009},{"$f":"IF(INDEX(PC_MAPPING,RIGHT($C41,1),MATCH($E$2,'Data by Building Type'!$D$22:$F$22,0))=\"Yes\",1,0)*\n(Y$10*OFFSET('Efficiency Distributions'!$D$10,MATCH($C41,'Efficiency Distributions'!$C$9:$C$87,0)+RIGHT($E50),0)\n+Y$11*OFFSET('Efficiency Distributions'!$E$10,MATCH($C41,'Efficiency Distributions'!$C$9:$C$87,0)+RIGHT($E50),0))\n/SUM(Y$10:Y$11)","v":0.34977791212806009},{"$f":"IF(INDEX(PC_MAPPING,RIGHT($C41,1),MATCH($E$2,'Data by Building Type'!$D$22:$F$22,0))=\"Yes\",1,0)*\n(Z$10*OFFSET('Efficiency Distributions'!$D$10,MATCH($C41,'Efficiency Distributions'!$C$9:$C$87,0)+RIGHT($E50),0)\n+Z$11*OFFSET('Efficiency Distributions'!$E$10,MATCH($C41,'Efficiency Distributions'!$C$9:$C$87,0)+RIGHT($E50),0))\n/SUM(Z$10:Z$11)","v":0.34977791212806009},{"$f":"IF(INDEX(PC_MAPPING,RIGHT($C41,1),MATCH($E$2,'Data by Building Type'!$D$22:$F$22,0))=\"Yes\",1,0)*\n(AA$10*OFFSET('Efficiency Distributions'!$D$10,MATCH($C41,'Efficiency Distributions'!$C$9:$C$87,0)+RIGHT($E50),0)\n+AA$11*OFFSET('Efficiency Distributions'!$E$10,MATCH($C41,'Efficiency Distributions'!$C$9:$C$87,0)+RIGHT($E50),0))\n/SUM(AA$10:AA$11)","v":0.34977791212806009},{"$f":"IF(INDEX(PC_MAPPING,RIGHT($C41,1),MATCH($E$2,'Data by Building Type'!$D$22:$F$22,0))=\"Yes\",1,0)*\n(AB$10*OFFSET('Efficiency Distributions'!$D$10,MATCH($C41,'Efficiency Distributions'!$C$9:$C$87,0)+RIGHT($E50),0)\n+AB$11*OFFSET('Efficiency Distributions'!$E$10,MATCH($C41,'Efficiency Distributions'!$C$9:$C$87,0)+RIGHT($E50),0))\n/SUM(AB$10:AB$11)","v":0.34977791212806009},{"$f":"IF(INDEX(PC_MAPPING,RIGHT($C41,1),MATCH($E$2,'Data by Building Type'!$D$22:$F$22,0))=\"Yes\",1,0)*\n(AC$10*OFFSET('Efficiency Distributions'!$D$10,MATCH($C41,'Efficiency Distributions'!$C$9:$C$87,0)+RIGHT($E50),0)\n+AC$11*OFFSET('Efficiency Distributions'!$E$10,MATCH($C41,'Efficiency Distributions'!$C$9:$C$87,0)+RIGHT($E50),0))\n/SUM(AC$10:AC$11)","v":0.34977791212806009},{"$f":"IF(INDEX(PC_MAPPING,RIGHT($C41,1),MATCH($E$2,'Data by Building Type'!$D$22:$F$22,0))=\"Yes\",1,0)*\n(AD$10*OFFSET('Efficiency Distributions'!$D$10,MATCH($C41,'Efficiency Distributions'!$C$9:$C$87,0)+RIGHT($E50),0)\n+AD$11*OFFSET('Efficiency Distributions'!$E$10,MATCH($C41,'Efficiency Distributions'!$C$9:$C$87,0)+RIGHT($E50),0))\n/SUM(AD$10:AD$11)","v":0.34977791212806009},{"$f":"IF(INDEX(PC_MAPPING,RIGHT($C41,1),MATCH($E$2,'Data by Building Type'!$D$22:$F$22,0))=\"Yes\",1,0)*\n(AE$10*OFFSET('Efficiency Distributions'!$D$10,MATCH($C41,'Efficiency Distributions'!$C$9:$C$87,0)+RIGHT($E50),0)\n+AE$11*OFFSET('Efficiency Distributions'!$E$10,MATCH($C41,'Efficiency Distributions'!$C$9:$C$87,0)+RIGHT($E50),0))\n/SUM(AE$10:AE$11)","v":0.34977791212806009},{"$f":"IF(INDEX(PC_MAPPING,RIGHT($C41,1),MATCH($E$2,'Data by Building Type'!$D$22:$F$22,0))=\"Yes\",1,0)*\n(AF$10*OFFSET('Efficiency Distributions'!$D$10,MATCH($C41,'Efficiency Distributions'!$C$9:$C$87,0)+RIGHT($E50),0)\n+AF$11*OFFSET('Efficiency Distributions'!$E$10,MATCH($C41,'Efficiency Distributions'!$C$9:$C$87,0)+RIGHT($E50),0))\n/SUM(AF$10:AF$11)","v":0.34977791212806003},{"$f":"IF(INDEX(PC_MAPPING,RIGHT($C41,1),MATCH($E$2,'Data by Building Type'!$D$22:$F$22,0))=\"Yes\",1,0)*\n(AG$10*OFFSET('Efficiency Distributions'!$D$10,MATCH($C41,'Efficiency Distributions'!$C$9:$C$87,0)+RIGHT($E50),0)\n+AG$11*OFFSET('Efficiency Distributions'!$E$10,MATCH($C41,'Efficiency Distributions'!$C$9:$C$87,0)+RIGHT($E50),0))\n/SUM(AG$10:AG$11)","v":0.34977791212806009},{"$f":"IF(INDEX(PC_MAPPING,RIGHT($C41,1),MATCH($E$2,'Data by Building Type'!$D$22:$F$22,0))=\"Yes\",1,0)*\n(AH$10*OFFSET('Efficiency Distributions'!$D$10,MATCH($C41,'Efficiency Distributions'!$C$9:$C$87,0)+RIGHT($E50),0)\n+AH$11*OFFSET('Efficiency Distributions'!$E$10,MATCH($C41,'Efficiency Distributions'!$C$9:$C$87,0)+RIGHT($E50),0))\n/SUM(AH$10:AH$11)","v":0.34977791212806009},{"$f":"IF(INDEX(PC_MAPPING,RIGHT($C41,1),MATCH($E$2,'Data by Building Type'!$D$22:$F$22,0))=\"Yes\",1,0)*\n(AI$10*OFFSET('Efficiency Distributions'!$D$10,MATCH($C41,'Efficiency Distributions'!$C$9:$C$87,0)+RIGHT($E50),0)\n+AI$11*OFFSET('Efficiency Distributions'!$E$10,MATCH($C41,'Efficiency Distributions'!$C$9:$C$87,0)+RIGHT($E50),0))\n/SUM(AI$10:AI$11)","v":0.34977791212806009},{"$f":"IF(INDEX(PC_MAPPING,RIGHT($C41,1),MATCH($E$2,'Data by Building Type'!$D$22:$F$22,0))=\"Yes\",1,0)*\n(AJ$10*OFFSET('Efficiency Distributions'!$D$10,MATCH($C41,'Efficiency Distributions'!$C$9:$C$87,0)+RIGHT($E50),0)\n+AJ$11*OFFSET('Efficiency Distributions'!$E$10,MATCH($C41,'Efficiency Distributions'!$C$9:$C$87,0)+RIGHT($E50),0))\n/SUM(AJ$10:AJ$11)","v":0.34977791212806009},{"$f":"IF(INDEX(PC_MAPPING,RIGHT($C41,1),MATCH($E$2,'Data by Building Type'!$D$22:$F$22,0))=\"Yes\",1,0)*\n(AK$10*OFFSET('Efficiency Distributions'!$D$10,MATCH($C41,'Efficiency Distributions'!$C$9:$C$87,0)+RIGHT($E50),0)\n+AK$11*OFFSET('Efficiency Distributions'!$E$10,MATCH($C41,'Efficiency Distributions'!$C$9:$C$87,0)+RIGHT($E50),0))\n/SUM(AK$10:AK$11)","v":0.3113550854871675},{"$f":"IF(INDEX(PC_MAPPING,RIGHT($C41,1),MATCH($E$2,'Data by Building Type'!$D$22:$F$22,0))=\"Yes\",1,0)*\n(AL$10*OFFSET('Efficiency Distributions'!$D$10,MATCH($C41,'Efficiency Distributions'!$C$9:$C$87,0)+RIGHT($E50),0)\n+AL$11*OFFSET('Efficiency Distributions'!$E$10,MATCH($C41,'Efficiency Distributions'!$C$9:$C$87,0)+RIGHT($E50),0))\n/SUM(AL$10:AL$11)","v":0.30981188236946738},{"$f":"IF(INDEX(PC_MAPPING,RIGHT($C41,1),MATCH($E$2,'Data by Building Type'!$D$22:$F$22,0))=\"Yes\",1,0)*\n(AM$10*OFFSET('Efficiency Distributions'!$D$10,MATCH($C41,'Efficiency Distributions'!$C$9:$C$87,0)+RIGHT($E50),0)\n+AM$11*OFFSET('Efficiency Distributions'!$E$10,MATCH($C41,'Efficiency Distributions'!$C$9:$C$87,0)+RIGHT($E50),0))\n/SUM(AM$10:AM$11)","v":0.27328452540755188},{"$f":"IF(INDEX(PC_MAPPING,RIGHT($C41,1),MATCH($E$2,'Data by Building Type'!$D$22:$F$22,0))=\"Yes\",1,0)*\n(AN$10*OFFSET('Efficiency Distributions'!$D$10,MATCH($C41,'Efficiency Distributions'!$C$9:$C$87,0)+RIGHT($E50),0)\n+AN$11*OFFSET('Efficiency Distributions'!$E$10,MATCH($C41,'Efficiency Distributions'!$C$9:$C$87,0)+RIGHT($E50),0))\n/SUM(AN$10:AN$11)","v":0.2751479787369398},{"$f":"IF(INDEX(PC_MAPPING,RIGHT($C41,1),MATCH($E$2,'Data by Building Type'!$D$22:$F$22,0))=\"Yes\",1,0)*\n(AO$10*OFFSET('Efficiency Distributions'!$D$10,MATCH($C41,'Efficiency Distributions'!$C$9:$C$87,0)+RIGHT($E50),0)\n+AO$11*OFFSET('Efficiency Distributions'!$E$10,MATCH($C41,'Efficiency Distributions'!$C$9:$C$87,0)+RIGHT($E50),0))\n/SUM(AO$10:AO$11)","v":0.27287752909557494},{"$f":"IF(INDEX(PC_MAPPING,RIGHT($C41,1),MATCH($E$2,'Data by Building Type'!$D$22:$F$22,0))=\"Yes\",1,0)*\n(AP$10*OFFSET('Efficiency Distributions'!$D$10,MATCH($C41,'Efficiency Distributions'!$C$9:$C$87,0)+RIGHT($E50),0)\n+AP$11*OFFSET('Efficiency Distributions'!$E$10,MATCH($C41,'Efficiency Distributions'!$C$9:$C$87,0)+RIGHT($E50),0))\n/SUM(AP$10:AP$11)","v":0.2682211148703143},{"$f":"IF(INDEX(PC_MAPPING,RIGHT($C41,1),MATCH($E$2,'Data by Building Type'!$D$22:$F$22,0))=\"Yes\",1,0)*\n(AQ$10*OFFSET('Efficiency Distributions'!$D$10,MATCH($C41,'Efficiency Distributions'!$C$9:$C$87,0)+RIGHT($E50),0)\n+AQ$11*OFFSET('Efficiency Distributions'!$E$10,MATCH($C41,'Efficiency Distributions'!$C$9:$C$87,0)+RIGHT($E50),0))\n/SUM(AQ$10:AQ$11)","v":0.26349100710517931},{"$f":"IF(INDEX(PC_MAPPING,RIGHT($C41,1),MATCH($E$2,'Data by Building Type'!$D$22:$F$22,0))=\"Yes\",1,0)*\n(AR$10*OFFSET('Efficiency Distributions'!$D$10,MATCH($C41,'Efficiency Distributions'!$C$9:$C$87,0)+RIGHT($E50),0)\n+AR$11*OFFSET('Efficiency Distributions'!$E$10,MATCH($C41,'Efficiency Distributions'!$C$9:$C$87,0)+RIGHT($E50),0))\n/SUM(AR$10:AR$11)","v":0.26447780765558421},{"$f":"IF(INDEX(PC_MAPPING,RIGHT($C41,1),MATCH($E$2,'Data by Building Type'!$D$22:$F$22,0))=\"Yes\",1,0)*\n(AS$10*OFFSET('Efficiency Distributions'!$D$10,MATCH($C41,'Efficiency Distributions'!$C$9:$C$87,0)+RIGHT($E50),0)\n+AS$11*OFFSET('Efficiency Distributions'!$E$10,MATCH($C41,'Efficiency Distributions'!$C$9:$C$87,0)+RIGHT($E50),0))\n/SUM(AS$10:AS$11)","v":0.24820991247485255},{"$f":"IF(INDEX(PC_MAPPING,RIGHT($C41,1),MATCH($E$2,'Data by Building Type'!$D$22:$F$22,0))=\"Yes\",1,0)*\n(AT$10*OFFSET('Efficiency Distributions'!$D$10,MATCH($C41,'Efficiency Distributions'!$C$9:$C$87,0)+RIGHT($E50),0)\n+AT$11*OFFSET('Efficiency Distributions'!$E$10,MATCH($C41,'Efficiency Distributions'!$C$9:$C$87,0)+RIGHT($E50),0))\n/SUM(AT$10:AT$11)","v":0.23101542523947033},{"$f":"IF(INDEX(PC_MAPPING,RIGHT($C41,1),MATCH($E$2,'Data by Building Type'!$D$22:$F$22,0))=\"Yes\",1,0)*\n(AU$10*OFFSET('Efficiency Distributions'!$D$10,MATCH($C41,'Efficiency Distributions'!$C$9:$C$87,0)+RIGHT($E50),0)\n+AU$11*OFFSET('Efficiency Distributions'!$E$10,MATCH($C41,'Efficiency Distributions'!$C$9:$C$87,0)+RIGHT($E50),0))\n/SUM(AU$10:AU$11)","v":0.22562629634497666},{"$f":"IF(INDEX(PC_MAPPING,RIGHT($C41,1),MATCH($E$2,'Data by Building Type'!$D$22:$F$22,0))=\"Yes\",1,0)*\n(AV$10*OFFSET('Efficiency Distributions'!$D$10,MATCH($C41,'Efficiency Distributions'!$C$9:$C$87,0)+RIGHT($E50),0)\n+AV$11*OFFSET('Efficiency Distributions'!$E$10,MATCH($C41,'Efficiency Distributions'!$C$9:$C$87,0)+RIGHT($E50),0))\n/SUM(AV$10:AV$11)","v":0.26406807360686996},{"$f":"IF(INDEX(PC_MAPPING,RIGHT($C41,1),MATCH($E$2,'Data by Building Type'!$D$22:$F$22,0))=\"Yes\",1,0)*\n(AW$10*OFFSET('Efficiency Distributions'!$D$10,MATCH($C41,'Efficiency Distributions'!$C$9:$C$87,0)+RIGHT($E50),0)\n+AW$11*OFFSET('Efficiency Distributions'!$E$10,MATCH($C41,'Efficiency Distributions'!$C$9:$C$87,0)+RIGHT($E50),0))\n/SUM(AW$10:AW$11)","v":0.2513962350946064},{"$f":"IF(INDEX(PC_MAPPING,RIGHT($C41,1),MATCH($E$2,'Data by Building Type'!$D$22:$F$22,0))=\"Yes\",1,0)*\n(AX$10*OFFSET('Efficiency Distributions'!$D$10,MATCH($C41,'Efficiency Distributions'!$C$9:$C$87,0)+RIGHT($E50),0)\n+AX$11*OFFSET('Efficiency Distributions'!$E$10,MATCH($C41,'Efficiency Distributions'!$C$9:$C$87,0)+RIGHT($E50),0))\n/SUM(AX$10:AX$11)","v":0.25832492292710724},{"$f":"IF(INDEX(PC_MAPPING,RIGHT($C41,1),MATCH($E$2,'Data by Building Type'!$D$22:$F$22,0))=\"Yes\",1,0)*\n(AY$10*OFFSET('Efficiency Distributions'!$D$10,MATCH($C41,'Efficiency Distributions'!$C$9:$C$87,0)+RIGHT($E50),0)\n+AY$11*OFFSET('Efficiency Distributions'!$E$10,MATCH($C41,'Efficiency Distributions'!$C$9:$C$87,0)+RIGHT($E50),0))\n/SUM(AY$10:AY$11)","v":0.26997575522033351},{"$f":"IF(INDEX(PC_MAPPING,RIGHT($C41,1),MATCH($E$2,'Data by Building Type'!$D$22:$F$22,0))=\"Yes\",1,0)*\n(AZ$10*OFFSET('Efficiency Distributions'!$D$10,MATCH($C41,'Efficiency Distributions'!$C$9:$C$87,0)+RIGHT($E50),0)\n+AZ$11*OFFSET('Efficiency Distributions'!$E$10,MATCH($C41,'Efficiency Distributions'!$C$9:$C$87,0)+RIGHT($E50),0))\n/SUM(AZ$10:AZ$11)","v":0.28632282663661873},{"$f":"IF(INDEX(PC_MAPPING,RIGHT($C41,1),MATCH($E$2,'Data by Building Type'!$D$22:$F$22,0))=\"Yes\",1,0)*\n(BA$10*OFFSET('Efficiency Distributions'!$D$10,MATCH($C41,'Efficiency Distributions'!$C$9:$C$87,0)+RIGHT($E50),0)\n+BA$11*OFFSET('Efficiency Distributions'!$E$10,MATCH($C41,'Efficiency Distributions'!$C$9:$C$87,0)+RIGHT($E50),0))\n/SUM(BA$10:BA$11)","v":0.2795071763713583},{"$f":"IF(INDEX(PC_MAPPING,RIGHT($C41,1),MATCH($E$2,'Data by Building Type'!$D$22:$F$22,0))=\"Yes\",1,0)*\n(BB$10*OFFSET('Efficiency Distributions'!$D$10,MATCH($C41,'Efficiency Distributions'!$C$9:$C$87,0)+RIGHT($E50),0)\n+BB$11*OFFSET('Efficiency Distributions'!$E$10,MATCH($C41,'Efficiency Distributions'!$C$9:$C$87,0)+RIGHT($E50),0))\n/SUM(BB$10:BB$11)","v":0.27680270113278055},{"$f":"IF(INDEX(PC_MAPPING,RIGHT($C41,1),MATCH($E$2,'Data by Building Type'!$D$22:$F$22,0))=\"Yes\",1,0)*\n(BC$10*OFFSET('Efficiency Distributions'!$D$10,MATCH($C41,'Efficiency Distributions'!$C$9:$C$87,0)+RIGHT($E50),0)\n+BC$11*OFFSET('Efficiency Distributions'!$E$10,MATCH($C41,'Efficiency Distributions'!$C$9:$C$87,0)+RIGHT($E50),0))\n/SUM(BC$10:BC$11)","v":0.27857371403203779},{"$f":"IF(INDEX(PC_MAPPING,RIGHT($C41,1),MATCH($E$2,'Data by Building Type'!$D$22:$F$22,0))=\"Yes\",1,0)*\n(BD$10*OFFSET('Efficiency Distributions'!$D$10,MATCH($C41,'Efficiency Distributions'!$C$9:$C$87,0)+RIGHT($E50),0)\n+BD$11*OFFSET('Efficiency Distributions'!$E$10,MATCH($C41,'Efficiency Distributions'!$C$9:$C$87,0)+RIGHT($E50),0))\n/SUM(BD$10:BD$11)","v":0.2897274729505705},{"$f":"IF(INDEX(PC_MAPPING,RIGHT($C41,1),MATCH($E$2,'Data by Building Type'!$D$22:$F$22,0))=\"Yes\",1,0)*\n(BE$10*OFFSET('Efficiency Distributions'!$D$10,MATCH($C41,'Efficiency Distributions'!$C$9:$C$87,0)+RIGHT($E50),0)\n+BE$11*OFFSET('Efficiency Distributions'!$E$10,MATCH($C41,'Efficiency Distributions'!$C$9:$C$87,0)+RIGHT($E50),0))\n/SUM(BE$10:BE$11)","v":0.28331564485420246},{"$f":"IF(INDEX(PC_MAPPING,RIGHT($C41,1),MATCH($E$2,'Data by Building Type'!$D$22:$F$22,0))=\"Yes\",1,0)*\n(BF$10*OFFSET('Efficiency Distributions'!$D$10,MATCH($C41,'Efficiency Distributions'!$C$9:$C$87,0)+RIGHT($E50),0)\n+BF$11*OFFSET('Efficiency Distributions'!$E$10,MATCH($C41,'Efficiency Distributions'!$C$9:$C$87,0)+RIGHT($E50),0))\n/SUM(BF$10:BF$11)","v":0.3040959918902999},{"$f":"IF(INDEX(PC_MAPPING,RIGHT($C41,1),MATCH($E$2,'Data by Building Type'!$D$22:$F$22,0))=\"Yes\",1,0)*\n(BG$10*OFFSET('Efficiency Distributions'!$D$10,MATCH($C41,'Efficiency Distributions'!$C$9:$C$87,0)+RIGHT($E50),0)\n+BG$11*OFFSET('Efficiency Distributions'!$E$10,MATCH($C41,'Efficiency Distributions'!$C$9:$C$87,0)+RIGHT($E50),0))\n/SUM(BG$10:BG$11)","v":0.30430140146824397}]
[null,null,null,null,"EL6",{"$f":"IF(INDEX(PC_MAPPING,RIGHT($C41,1),MATCH($E$2,'Data by Building Type'!$D$22:$F$22,0))=\"Yes\",1,0)*\n(F$10*OFFSET('Efficiency Distributions'!$D$10,MATCH($C41,'Efficiency Distributions'!$C$9:$C$87,0)+RIGHT($E51),0)\n+F$11*OFFSET('Efficiency Distributions'!$E$10,MATCH($C41,'Efficiency Distributions'!$C$9:$C$87,0)+RIGHT($E51),0))\n/SUM(F$10:F$11)","v":0},{"$f":"IF(INDEX(PC_MAPPING,RIGHT($C41,1),MATCH($E$2,'Data by Building Type'!$D$22:$F$22,0))=\"Yes\",1,0)*\n(G$10*OFFSET('Efficiency Distributions'!$D$10,MATCH($C41,'Efficiency Distributions'!$C$9:$C$87,0)+RIGHT($E51),0)\n+G$11*OFFSET('Efficiency Distributions'!$E$10,MATCH($C41,'Efficiency Distributions'!$C$9:$C$87,0)+RIGHT($E51),0))\n/SUM(G$10:G$11)","v":0},{"$f":"IF(INDEX(PC_MAPPING,RIGHT($C41,1),MATCH($E$2,'Data by Building Type'!$D$22:$F$22,0))=\"Yes\",1,0)*\n(H$10*OFFSET('Efficiency Distributions'!$D$10,MATCH($C41,'Efficiency Distributions'!$C$9:$C$87,0)+RIGHT($E51),0)\n+H$11*OFFSET('Efficiency Distributions'!$E$10,MATCH($C41,'Efficiency Distributions'!$C$9:$C$87,0)+RIGHT($E51),0))\n/SUM(H$10:H$11)","v":0},{"$f":"IF(INDEX(PC_MAPPING,RIGHT($C41,1),MATCH($E$2,'Data by Building Type'!$D$22:$F$22,0))=\"Yes\",1,0)*\n(I$10*OFFSET('Efficiency Distributions'!$D$10,MATCH($C41,'Efficiency Distributions'!$C$9:$C$87,0)+RIGHT($E51),0)\n+I$11*OFFSET('Efficiency Distributions'!$E$10,MATCH($C41,'Efficiency Distributions'!$C$9:$C$87,0)+RIGHT($E51),0))\n/SUM(I$10:I$11)","v":0},{"$f":"IF(INDEX(PC_MAPPING,RIGHT($C41,1),MATCH($E$2,'Data by Building Type'!$D$22:$F$22,0))=\"Yes\",1,0)*\n(J$10*OFFSET('Efficiency Distributions'!$D$10,MATCH($C41,'Efficiency Distributions'!$C$9:$C$87,0)+RIGHT($E51),0)\n+J$11*OFFSET('Efficiency Distributions'!$E$10,MATCH($C41,'Efficiency Distributions'!$C$9:$C$87,0)+RIGHT($E51),0))\n/SUM(J$10:J$11)","v":0},{"$f":"IF(INDEX(PC_MAPPING,RIGHT($C41,1),MATCH($E$2,'Data by Building Type'!$D$22:$F$22,0))=\"Yes\",1,0)*\n(K$10*OFFSET('Efficiency Distributions'!$D$10,MATCH($C41,'Efficiency Distributions'!$C$9:$C$87,0)+RIGHT($E51),0)\n+K$11*OFFSET('Efficiency Distributions'!$E$10,MATCH($C41,'Efficiency Distributions'!$C$9:$C$87,0)+RIGHT($E51),0))\n/SUM(K$10:K$11)","v":0},{"$f":"IF(INDEX(PC_MAPPING,RIGHT($C41,1),MATCH($E$2,'Data by Building Type'!$D$22:$F$22,0))=\"Yes\",1,0)*\n(L$10*OFFSET('Efficiency Distributions'!$D$10,MATCH($C41,'Efficiency Distributions'!$C$9:$C$87,0)+RIGHT($E51),0)\n+L$11*OFFSET('Efficiency Distributions'!$E$10,MATCH($C41,'Efficiency Distributions'!$C$9:$C$87,0)+RIGHT($E51),0))\n/SUM(L$10:L$11)","v":0},{"$f":"IF(INDEX(PC_MAPPING,RIGHT($C41,1),MATCH($E$2,'Data by Building Type'!$D$22:$F$22,0))=\"Yes\",1,0)*\n(M$10*OFFSET('Efficiency Distributions'!$D$10,MATCH($C41,'Efficiency Distributions'!$C$9:$C$87,0)+RIGHT($E51),0)\n+M$11*OFFSET('Efficiency Distributions'!$E$10,MATCH($C41,'Efficiency Distributions'!$C$9:$C$87,0)+RIGHT($E51),0))\n/SUM(M$10:M$11)","v":0},{"$f":"IF(INDEX(PC_MAPPING,RIGHT($C41,1),MATCH($E$2,'Data by Building Type'!$D$22:$F$22,0))=\"Yes\",1,0)*\n(N$10*OFFSET('Efficiency Distributions'!$D$10,MATCH($C41,'Efficiency Distributions'!$C$9:$C$87,0)+RIGHT($E51),0)\n+N$11*OFFSET('Efficiency Distributions'!$E$10,MATCH($C41,'Efficiency Distributions'!$C$9:$C$87,0)+RIGHT($E51),0))\n/SUM(N$10:N$11)","v":0},{"$f":"IF(INDEX(PC_MAPPING,RIGHT($C41,1),MATCH($E$2,'Data by Building Type'!$D$22:$F$22,0))=\"Yes\",1,0)*\n(O$10*OFFSET('Efficiency Distributions'!$D$10,MATCH($C41,'Efficiency Distributions'!$C$9:$C$87,0)+RIGHT($E51),0)\n+O$11*OFFSET('Efficiency Distributions'!$E$10,MATCH($C41,'Efficiency Distributions'!$C$9:$C$87,0)+RIGHT($E51),0))\n/SUM(O$10:O$11)","v":0},{"$f":"IF(INDEX(PC_MAPPING,RIGHT($C41,1),MATCH($E$2,'Data by Building Type'!$D$22:$F$22,0))=\"Yes\",1,0)*\n(P$10*OFFSET('Efficiency Distributions'!$D$10,MATCH($C41,'Efficiency Distributions'!$C$9:$C$87,0)+RIGHT($E51),0)\n+P$11*OFFSET('Efficiency Distributions'!$E$10,MATCH($C41,'Efficiency Distributions'!$C$9:$C$87,0)+RIGHT($E51),0))\n/SUM(P$10:P$11)","v":0},{"$f":"IF(INDEX(PC_MAPPING,RIGHT($C41,1),MATCH($E$2,'Data by Building Type'!$D$22:$F$22,0))=\"Yes\",1,0)*\n(Q$10*OFFSET('Efficiency Distributions'!$D$10,MATCH($C41,'Efficiency Distributions'!$C$9:$C$87,0)+RIGHT($E51),0)\n+Q$11*OFFSET('Efficiency Distributions'!$E$10,MATCH($C41,'Efficiency Distributions'!$C$9:$C$87,0)+RIGHT($E51),0))\n/SUM(Q$10:Q$11)","v":0},{"$f":"IF(INDEX(PC_MAPPING,RIGHT($C41,1),MATCH($E$2,'Data by Building Type'!$D$22:$F$22,0))=\"Yes\",1,0)*\n(R$10*OFFSET('Efficiency Distributions'!$D$10,MATCH($C41,'Efficiency Distributions'!$C$9:$C$87,0)+RIGHT($E51),0)\n+R$11*OFFSET('Efficiency Distributions'!$E$10,MATCH($C41,'Efficiency Distributions'!$C$9:$C$87,0)+RIGHT($E51),0))\n/SUM(R$10:R$11)","v":0},{"$f":"IF(INDEX(PC_MAPPING,RIGHT($C41,1),MATCH($E$2,'Data by Building Type'!$D$22:$F$22,0))=\"Yes\",1,0)*\n(S$10*OFFSET('Efficiency Distributions'!$D$10,MATCH($C41,'Efficiency Distributions'!$C$9:$C$87,0)+RIGHT($E51),0)\n+S$11*OFFSET('Efficiency Distributions'!$E$10,MATCH($C41,'Efficiency Distributions'!$C$9:$C$87,0)+RIGHT($E51),0))\n/SUM(S$10:S$11)","v":0},{"$f":"IF(INDEX(PC_MAPPING,RIGHT($C41,1),MATCH($E$2,'Data by Building Type'!$D$22:$F$22,0))=\"Yes\",1,0)*\n(T$10*OFFSET('Efficiency Distributions'!$D$10,MATCH($C41,'Efficiency Distributions'!$C$9:$C$87,0)+RIGHT($E51),0)\n+T$11*OFFSET('Efficiency Distributions'!$E$10,MATCH($C41,'Efficiency Distributions'!$C$9:$C$87,0)+RIGHT($E51),0))\n/SUM(T$10:T$11)","v":0},{"$f":"IF(INDEX(PC_MAPPING,RIGHT($C41,1),MATCH($E$2,'Data by Building Type'!$D$22:$F$22,0))=\"Yes\",1,0)*\n(U$10*OFFSET('Efficiency Distributions'!$D$10,MATCH($C41,'Efficiency Distributions'!$C$9:$C$87,0)+RIGHT($E51),0)\n+U$11*OFFSET('Efficiency Distributions'!$E$10,MATCH($C41,'Efficiency Distributions'!$C$9:$C$87,0)+RIGHT($E51),0))\n/SUM(U$10:U$11)","v":0},{"$f":"IF(INDEX(PC_MAPPING,RIGHT($C41,1),MATCH($E$2,'Data by Building Type'!$D$22:$F$22,0))=\"Yes\",1,0)*\n(V$10*OFFSET('Efficiency Distributions'!$D$10,MATCH($C41,'Efficiency Distributions'!$C$9:$C$87,0)+RIGHT($E51),0)\n+V$11*OFFSET('Efficiency Distributions'!$E$10,MATCH($C41,'Efficiency Distributions'!$C$9:$C$87,0)+RIGHT($E51),0))\n/SUM(V$10:V$11)","v":0},{"$f":"IF(INDEX(PC_MAPPING,RIGHT($C41,1),MATCH($E$2,'Data by Building Type'!$D$22:$F$22,0))=\"Yes\",1,0)*\n(W$10*OFFSET('Efficiency Distributions'!$D$10,MATCH($C41,'Efficiency Distributions'!$C$9:$C$87,0)+RIGHT($E51),0)\n+W$11*OFFSET('Efficiency Distributions'!$E$10,MATCH($C41,'Efficiency Distributions'!$C$9:$C$87,0)+RIGHT($E51),0))\n/SUM(W$10:W$11)","v":0},{"$f":"IF(INDEX(PC_MAPPING,RIGHT($C41,1),MATCH($E$2,'Data by Building Type'!$D$22:$F$22,0))=\"Yes\",1,0)*\n(X$10*OFFSET('Efficiency Distributions'!$D$10,MATCH($C41,'Efficiency Distributions'!$C$9:$C$87,0)+RIGHT($E51),0)\n+X$11*OFFSET('Efficiency Distributions'!$E$10,MATCH($C41,'Efficiency Distributions'!$C$9:$C$87,0)+RIGHT($E51),0))\n/SUM(X$10:X$11)","v":0},{"$f":"IF(INDEX(PC_MAPPING,RIGHT($C41,1),MATCH($E$2,'Data by Building Type'!$D$22:$F$22,0))=\"Yes\",1,0)*\n(Y$10*OFFSET('Efficiency Distributions'!$D$10,MATCH($C41,'Efficiency Distributions'!$C$9:$C$87,0)+RIGHT($E51),0)\n+Y$11*OFFSET('Efficiency Distributions'!$E$10,MATCH($C41,'Efficiency Distributions'!$C$9:$C$87,0)+RIGHT($E51),0))\n/SUM(Y$10:Y$11)","v":0},{"$f":"IF(INDEX(PC_MAPPING,RIGHT($C41,1),MATCH($E$2,'Data by Building Type'!$D$22:$F$22,0))=\"Yes\",1,0)*\n(Z$10*OFFSET('Efficiency Distributions'!$D$10,MATCH($C41,'Efficiency Distributions'!$C$9:$C$87,0)+RIGHT($E51),0)\n+Z$11*OFFSET('Efficiency Distributions'!$E$10,MATCH($C41,'Efficiency Distributions'!$C$9:$C$87,0)+RIGHT($E51),0))\n/SUM(Z$10:Z$11)","v":0},{"$f":"IF(INDEX(PC_MAPPING,RIGHT($C41,1),MATCH($E$2,'Data by Building Type'!$D$22:$F$22,0))=\"Yes\",1,0)*\n(AA$10*OFFSET('Efficiency Distributions'!$D$10,MATCH($C41,'Efficiency Distributions'!$C$9:$C$87,0)+RIGHT($E51),0)\n+AA$11*OFFSET('Efficiency Distributions'!$E$10,MATCH($C41,'Efficiency Distributions'!$C$9:$C$87,0)+RIGHT($E51),0))\n/SUM(AA$10:AA$11)","v":0},{"$f":"IF(INDEX(PC_MAPPING,RIGHT($C41,1),MATCH($E$2,'Data by Building Type'!$D$22:$F$22,0))=\"Yes\",1,0)*\n(AB$10*OFFSET('Efficiency Distributions'!$D$10,MATCH($C41,'Efficiency Distributions'!$C$9:$C$87,0)+RIGHT($E51),0)\n+AB$11*OFFSET('Efficiency Distributions'!$E$10,MATCH($C41,'Efficiency Distributions'!$C$9:$C$87,0)+RIGHT($E51),0))\n/SUM(AB$10:AB$11)","v":0},{"$f":"IF(INDEX(PC_MAPPING,RIGHT($C41,1),MATCH($E$2,'Data by Building Type'!$D$22:$F$22,0))=\"Yes\",1,0)*\n(AC$10*OFFSET('Efficiency Distributions'!$D$10,MATCH($C41,'Efficiency Distributions'!$C$9:$C$87,0)+RIGHT($E51),0)\n+AC$11*OFFSET('Efficiency Distributions'!$E$10,MATCH($C41,'Efficiency Distributions'!$C$9:$C$87,0)+RIGHT($E51),0))\n/SUM(AC$10:AC$11)","v":0},{"$f":"IF(INDEX(PC_MAPPING,RIGHT($C41,1),MATCH($E$2,'Data by Building Type'!$D$22:$F$22,0))=\"Yes\",1,0)*\n(AD$10*OFFSET('Efficiency Distributions'!$D$10,MATCH($C41,'Efficiency Distributions'!$C$9:$C$87,0)+RIGHT($E51),0)\n+AD$11*OFFSET('Efficiency Distributions'!$E$10,MATCH($C41,'Efficiency Distributions'!$C$9:$C$87,0)+RIGHT($E51),0))\n/SUM(AD$10:AD$11)","v":0},{"$f":"IF(INDEX(PC_MAPPING,RIGHT($C41,1),MATCH($E$2,'Data by Building Type'!$D$22:$F$22,0))=\"Yes\",1,0)*\n(AE$10*OFFSET('Efficiency Distributions'!$D$10,MATCH($C41,'Efficiency Distributions'!$C$9:$C$87,0)+RIGHT($E51),0)\n+AE$11*OFFSET('Efficiency Distributions'!$E$10,MATCH($C41,'Efficiency Distributions'!$C$9:$C$87,0)+RIGHT($E51),0))\n/SUM(AE$10:AE$11)","v":0},{"$f":"IF(INDEX(PC_MAPPING,RIGHT($C41,1),MATCH($E$2,'Data by Building Type'!$D$22:$F$22,0))=\"Yes\",1,0)*\n(AF$10*OFFSET('Efficiency Distributions'!$D$10,MATCH($C41,'Efficiency Distributions'!$C$9:$C$87,0)+RIGHT($E51),0)\n+AF$11*OFFSET('Efficiency Distributions'!$E$10,MATCH($C41,'Efficiency Distributions'!$C$9:$C$87,0)+RIGHT($E51),0))\n/SUM(AF$10:AF$11)","v":0},{"$f":"IF(INDEX(PC_MAPPING,RIGHT($C41,1),MATCH($E$2,'Data by Building Type'!$D$22:$F$22,0))=\"Yes\",1,0)*\n(AG$10*OFFSET('Efficiency Distributions'!$D$10,MATCH($C41,'Efficiency Distributions'!$C$9:$C$87,0)+RIGHT($E51),0)\n+AG$11*OFFSET('Efficiency Distributions'!$E$10,MATCH($C41,'Efficiency Distributions'!$C$9:$C$87,0)+RIGHT($E51),0))\n/SUM(AG$10:AG$11)","v":0},{"$f":"IF(INDEX(PC_MAPPING,RIGHT($C41,1),MATCH($E$2,'Data by Building Type'!$D$22:$F$22,0))=\"Yes\",1,0)*\n(AH$10*OFFSET('Efficiency Distributions'!$D$10,MATCH($C41,'Efficiency Distributions'!$C$9:$C$87,0)+RIGHT($E51),0)\n+AH$11*OFFSET('Efficiency Distributions'!$E$10,MATCH($C41,'Efficiency Distributions'!$C$9:$C$87,0)+RIGHT($E51),0))\n/SUM(AH$10:AH$11)","v":0},{"$f":"IF(INDEX(PC_MAPPING,RIGHT($C41,1),MATCH($E$2,'Data by Building Type'!$D$22:$F$22,0))=\"Yes\",1,0)*\n(AI$10*OFFSET('Efficiency Distributions'!$D$10,MATCH($C41,'Efficiency Distributions'!$C$9:$C$87,0)+RIGHT($E51),0)\n+AI$11*OFFSET('Efficiency Distributions'!$E$10,MATCH($C41,'Efficiency Distributions'!$C$9:$C$87,0)+RIGHT($E51),0))\n/SUM(AI$10:AI$11)","v":0},{"$f":"IF(INDEX(PC_MAPPING,RIGHT($C41,1),MATCH($E$2,'Data by Building Type'!$D$22:$F$22,0))=\"Yes\",1,0)*\n(AJ$10*OFFSET('Efficiency Distributions'!$D$10,MATCH($C41,'Efficiency Distributions'!$C$9:$C$87,0)+RIGHT($E51),0)\n+AJ$11*OFFSET('Efficiency Distributions'!$E$10,MATCH($C41,'Efficiency Distributions'!$C$9:$C$87,0)+RIGHT($E51),0))\n/SUM(AJ$10:AJ$11)","v":0},{"$f":"IF(INDEX(PC_MAPPING,RIGHT($C41,1),MATCH($E$2,'Data by Building Type'!$D$22:$F$22,0))=\"Yes\",1,0)*\n(AK$10*OFFSET('Efficiency Distributions'!$D$10,MATCH($C41,'Efficiency Distributions'!$C$9:$C$87,0)+RIGHT($E51),0)\n+AK$11*OFFSET('Efficiency Distributions'!$E$10,MATCH($C41,'Efficiency Distributions'!$C$9:$C$87,0)+RIGHT($E51),0))\n/SUM(AK$10:AK$11)","v":0},{"$f":"IF(INDEX(PC_MAPPING,RIGHT($C41,1),MATCH($E$2,'Data by Building Type'!$D$22:$F$22,0))=\"Yes\",1,0)*\n(AL$10*OFFSET('Efficiency Distributions'!$D$10,MATCH($C41,'Efficiency Distributions'!$C$9:$C$87,0)+RIGHT($E51),0)\n+AL$11*OFFSET('Efficiency Distributions'!$E$10,MATCH($C41,'Efficiency Distributions'!$C$9:$C$87,0)+RIGHT($E51),0))\n/SUM(AL$10:AL$11)","v":0},{"$f":"IF(INDEX(PC_MAPPING,RIGHT($C41,1),MATCH($E$2,'Data by Building Type'!$D$22:$F$22,0))=\"Yes\",1,0)*\n(AM$10*OFFSET('Efficiency Distributions'!$D$10,MATCH($C41,'Efficiency Distributions'!$C$9:$C$87,0)+RIGHT($E51),0)\n+AM$11*OFFSET('Efficiency Distributions'!$E$10,MATCH($C41,'Efficiency Distributions'!$C$9:$C$87,0)+RIGHT($E51),0))\n/SUM(AM$10:AM$11)","v":0},{"$f":"IF(INDEX(PC_MAPPING,RIGHT($C41,1),MATCH($E$2,'Data by Building Type'!$D$22:$F$22,0))=\"Yes\",1,0)*\n(AN$10*OFFSET('Efficiency Distributions'!$D$10,MATCH($C41,'Efficiency Distributions'!$C$9:$C$87,0)+RIGHT($E51),0)\n+AN$11*OFFSET('Efficiency Distributions'!$E$10,MATCH($C41,'Efficiency Distributions'!$C$9:$C$87,0)+RIGHT($E51),0))\n/SUM(AN$10:AN$11)","v":0},{"$f":"IF(INDEX(PC_MAPPING,RIGHT($C41,1),MATCH($E$2,'Data by Building Type'!$D$22:$F$22,0))=\"Yes\",1,0)*\n(AO$10*OFFSET('Efficiency Distributions'!$D$10,MATCH($C41,'Efficiency Distributions'!$C$9:$C$87,0)+RIGHT($E51),0)\n+AO$11*OFFSET('Efficiency Distributions'!$E$10,MATCH($C41,'Efficiency Distributions'!$C$9:$C$87,0)+RIGHT($E51),0))\n/SUM(AO$10:AO$11)","v":0},{"$f":"IF(INDEX(PC_MAPPING,RIGHT($C41,1),MATCH($E$2,'Data by Building Type'!$D$22:$F$22,0))=\"Yes\",1,0)*\n(AP$10*OFFSET('Efficiency Distributions'!$D$10,MATCH($C41,'Efficiency Distributions'!$C$9:$C$87,0)+RIGHT($E51),0)\n+AP$11*OFFSET('Efficiency Distributions'!$E$10,MATCH($C41,'Efficiency Distributions'!$C$9:$C$87,0)+RIGHT($E51),0))\n/SUM(AP$10:AP$11)","v":0},{"$f":"IF(INDEX(PC_MAPPING,RIGHT($C41,1),MATCH($E$2,'Data by Building Type'!$D$22:$F$22,0))=\"Yes\",1,0)*\n(AQ$10*OFFSET('Efficiency Distributions'!$D$10,MATCH($C41,'Efficiency Distributions'!$C$9:$C$87,0)+RIGHT($E51),0)\n+AQ$11*OFFSET('Efficiency Distributions'!$E$10,MATCH($C41,'Efficiency Distributions'!$C$9:$C$87,0)+RIGHT($E51),0))\n/SUM(AQ$10:AQ$11)","v":0},{"$f":"IF(INDEX(PC_MAPPING,RIGHT($C41,1),MATCH($E$2,'Data by Building Type'!$D$22:$F$22,0))=\"Yes\",1,0)*\n(AR$10*OFFSET('Efficiency Distributions'!$D$10,MATCH($C41,'Efficiency Distributions'!$C$9:$C$87,0)+RIGHT($E51),0)\n+AR$11*OFFSET('Efficiency Distributions'!$E$10,MATCH($C41,'Efficiency Distributions'!$C$9:$C$87,0)+RIGHT($E51),0))\n/SUM(AR$10:AR$11)","v":0},{"$f":"IF(INDEX(PC_MAPPING,RIGHT($C41,1),MATCH($E$2,'Data by Building Type'!$D$22:$F$22,0))=\"Yes\",1,0)*\n(AS$10*OFFSET('Efficiency Distributions'!$D$10,MATCH($C41,'Efficiency Distributions'!$C$9:$C$87,0)+RIGHT($E51),0)\n+AS$11*OFFSET('Efficiency Distributions'!$E$10,MATCH($C41,'Efficiency Distributions'!$C$9:$C$87,0)+RIGHT($E51),0))\n/SUM(AS$10:AS$11)","v":0},{"$f":"IF(INDEX(PC_MAPPING,RIGHT($C41,1),MATCH($E$2,'Data by Building Type'!$D$22:$F$22,0))=\"Yes\",1,0)*\n(AT$10*OFFSET('Efficiency Distributions'!$D$10,MATCH($C41,'Efficiency Distributions'!$C$9:$C$87,0)+RIGHT($E51),0)\n+AT$11*OFFSET('Efficiency Distributions'!$E$10,MATCH($C41,'Efficiency Distributions'!$C$9:$C$87,0)+RIGHT($E51),0))\n/SUM(AT$10:AT$11)","v":0},{"$f":"IF(INDEX(PC_MAPPING,RIGHT($C41,1),MATCH($E$2,'Data by Building Type'!$D$22:$F$22,0))=\"Yes\",1,0)*\n(AU$10*OFFSET('Efficiency Distributions'!$D$10,MATCH($C41,'Efficiency Distributions'!$C$9:$C$87,0)+RIGHT($E51),0)\n+AU$11*OFFSET('Efficiency Distributions'!$E$10,MATCH($C41,'Efficiency Distributions'!$C$9:$C$87,0)+RIGHT($E51),0))\n/SUM(AU$10:AU$11)","v":0},{"$f":"IF(INDEX(PC_MAPPING,RIGHT($C41,1),MATCH($E$2,'Data by Building Type'!$D$22:$F$22,0))=\"Yes\",1,0)*\n(AV$10*OFFSET('Efficiency Distributions'!$D$10,MATCH($C41,'Efficiency Distributions'!$C$9:$C$87,0)+RIGHT($E51),0)\n+AV$11*OFFSET('Efficiency Distributions'!$E$10,MATCH($C41,'Efficiency Distributions'!$C$9:$C$87,0)+RIGHT($E51),0))\n/SUM(AV$10:AV$11)","v":0},{"$f":"IF(INDEX(PC_MAPPING,RIGHT($C41,1),MATCH($E$2,'Data by Building Type'!$D$22:$F$22,0))=\"Yes\",1,0)*\n(AW$10*OFFSET('Efficiency Distributions'!$D$10,MATCH($C41,'Efficiency Distributions'!$C$9:$C$87,0)+RIGHT($E51),0)\n+AW$11*OFFSET('Efficiency Distributions'!$E$10,MATCH($C41,'Efficiency Distributions'!$C$9:$C$87,0)+RIGHT($E51),0))\n/SUM(AW$10:AW$11)","v":0},{"$f":"IF(INDEX(PC_MAPPING,RIGHT($C41,1),MATCH($E$2,'Data by Building Type'!$D$22:$F$22,0))=\"Yes\",1,0)*\n(AX$10*OFFSET('Efficiency Distributions'!$D$10,MATCH($C41,'Efficiency Distributions'!$C$9:$C$87,0)+RIGHT($E51),0)\n+AX$11*OFFSET('Efficiency Distributions'!$E$10,MATCH($C41,'Efficiency Distributions'!$C$9:$C$87,0)+RIGHT($E51),0))\n/SUM(AX$10:AX$11)","v":0},{"$f":"IF(INDEX(PC_MAPPING,RIGHT($C41,1),MATCH($E$2,'Data by Building Type'!$D$22:$F$22,0))=\"Yes\",1,0)*\n(AY$10*OFFSET('Efficiency Distributions'!$D$10,MATCH($C41,'Efficiency Distributions'!$C$9:$C$87,0)+RIGHT($E51),0)\n+AY$11*OFFSET('Efficiency Distributions'!$E$10,MATCH($C41,'Efficiency Distributions'!$C$9:$C$87,0)+RIGHT($E51),0))\n/SUM(AY$10:AY$11)","v":0},{"$f":"IF(INDEX(PC_MAPPING,RIGHT($C41,1),MATCH($E$2,'Data by Building Type'!$D$22:$F$22,0))=\"Yes\",1,0)*\n(AZ$10*OFFSET('Efficiency Distributions'!$D$10,MATCH($C41,'Efficiency Distributions'!$C$9:$C$87,0)+RIGHT($E51),0)\n+AZ$11*OFFSET('Efficiency Distributions'!$E$10,MATCH($C41,'Efficiency Distributions'!$C$9:$C$87,0)+RIGHT($E51),0))\n/SUM(AZ$10:AZ$11)","v":0},{"$f":"IF(INDEX(PC_MAPPING,RIGHT($C41,1),MATCH($E$2,'Data by Building Type'!$D$22:$F$22,0))=\"Yes\",1,0)*\n(BA$10*OFFSET('Efficiency Distributions'!$D$10,MATCH($C41,'Efficiency Distributions'!$C$9:$C$87,0)+RIGHT($E51),0)\n+BA$11*OFFSET('Efficiency Distributions'!$E$10,MATCH($C41,'Efficiency Distributions'!$C$9:$C$87,0)+RIGHT($E51),0))\n/SUM(BA$10:BA$11)","v":0},{"$f":"IF(INDEX(PC_MAPPING,RIGHT($C41,1),MATCH($E$2,'Data by Building Type'!$D$22:$F$22,0))=\"Yes\",1,0)*\n(BB$10*OFFSET('Efficiency Distributions'!$D$10,MATCH($C41,'Efficiency Distributions'!$C$9:$C$87,0)+RIGHT($E51),0)\n+BB$11*OFFSET('Efficiency Distributions'!$E$10,MATCH($C41,'Efficiency Distributions'!$C$9:$C$87,0)+RIGHT($E51),0))\n/SUM(BB$10:BB$11)","v":0},{"$f":"IF(INDEX(PC_MAPPING,RIGHT($C41,1),MATCH($E$2,'Data by Building Type'!$D$22:$F$22,0))=\"Yes\",1,0)*\n(BC$10*OFFSET('Efficiency Distributions'!$D$10,MATCH($C41,'Efficiency Distributions'!$C$9:$C$87,0)+RIGHT($E51),0)\n+BC$11*OFFSET('Efficiency Distributions'!$E$10,MATCH($C41,'Efficiency Distributions'!$C$9:$C$87,0)+RIGHT($E51),0))\n/SUM(BC$10:BC$11)","v":0},{"$f":"IF(INDEX(PC_MAPPING,RIGHT($C41,1),MATCH($E$2,'Data by Building Type'!$D$22:$F$22,0))=\"Yes\",1,0)*\n(BD$10*OFFSET('Efficiency Distributions'!$D$10,MATCH($C41,'Efficiency Distributions'!$C$9:$C$87,0)+RIGHT($E51),0)\n+BD$11*OFFSET('Efficiency Distributions'!$E$10,MATCH($C41,'Efficiency Distributions'!$C$9:$C$87,0)+RIGHT($E51),0))\n/SUM(BD$10:BD$11)","v":0},{"$f":"IF(INDEX(PC_MAPPING,RIGHT($C41,1),MATCH($E$2,'Data by Building Type'!$D$22:$F$22,0))=\"Yes\",1,0)*\n(BE$10*OFFSET('Efficiency Distributions'!$D$10,MATCH($C41,'Efficiency Distributions'!$C$9:$C$87,0)+RIGHT($E51),0)\n+BE$11*OFFSET('Efficiency Distributions'!$E$10,MATCH($C41,'Efficiency Distributions'!$C$9:$C$87,0)+RIGHT($E51),0))\n/SUM(BE$10:BE$11)","v":0},{"$f":"IF(INDEX(PC_MAPPING,RIGHT($C41,1),MATCH($E$2,'Data by Building Type'!$D$22:$F$22,0))=\"Yes\",1,0)*\n(BF$10*OFFSET('Efficiency Distributions'!$D$10,MATCH($C41,'Efficiency Distributions'!$C$9:$C$87,0)+RIGHT($E51),0)\n+BF$11*OFFSET('Efficiency Distributions'!$E$10,MATCH($C41,'Efficiency Distributions'!$C$9:$C$87,0)+RIGHT($E51),0))\n/SUM(BF$10:BF$11)","v":0},{"$f":"IF(INDEX(PC_MAPPING,RIGHT($C41,1),MATCH($E$2,'Data by Building Type'!$D$22:$F$22,0))=\"Yes\",1,0)*\n(BG$10*OFFSET('Efficiency Distributions'!$D$10,MATCH($C41,'Efficiency Distributions'!$C$9:$C$87,0)+RIGHT($E51),0)\n+BG$11*OFFSET('Efficiency Distributions'!$E$10,MATCH($C41,'Efficiency Distributions'!$C$9:$C$87,0)+RIGHT($E51),0))\n/SUM(BG$10:BG$11)","v":0}]
[null,null,null,null,"TOTAL",{"$f":"SUM(F45:F51)","v":1},{"$f":"SUM(G45:G51)","v":1.0000000000000002},1,1,1,1,1,1,1,1,1,1,1,1,1,1,1,1,1,1,1,1,1,1,1,1,1,1,1,1,1,1,1,1,1,0.99999999999999989,1,1,1,1,0.99999999999999978,1,1.0000000000000002,1,1,1.0000000000000002,1,1,1,1,1,1,1,1.0000000000000002]
[]
[null,null,null,"POST-Case"]
[null,null,null,null,"Efficiency Level",1981,{"$f":"F55+1","v":1982},{"$f":"G55+1","v":1983},1984,1985,{"$f":"J55+1","v":1986},1987,1988,1989,1990,1991,1992,1993,1994,1995,1996,1997,1998,1999,2000,2001,2002,2003,2004,2005,2006,2007,2008,2009,2010,2011,2012,2013,2014,2015,2016,2017,2018,2019,2020,2021,2022,2023,2024,2025,2026,2027,2028,2029,2030,2031,2032,2033,2034]
[null,null,null,null,"EL0",{"$f":"IF(F$29<STANDARD_YEAR,F45,\nIF(RIGHT($E56,1)>RIGHT(INDEX(STANDARD_LEVELS,1,MID($C41,4,1)),1),F45,\nIF(RIGHT($E56,1)<RIGHT(INDEX(STANDARD_LEVELS,1,MID($C41,4,1)),1),0,\nIF(RIGHT($E56,1)=RIGHT(INDEX(STANDARD_LEVELS,1,MID($C41,4,1)),1),SUM(OFFSET(F45,-(RIGHT($E56,1)),0,RIGHT($E56,1)+1,1)),\"ERROR\"))))","v":0.27092344675670721},{"$f":"IF(G$29<STANDARD_YEAR,G45,\nIF(RIGHT($E56,1)>RIGHT(INDEX(STANDARD_LEVELS,1,MID($C41,4,1)),1),G45,\nIF(RIGHT($E56,1)<RIGHT(INDEX(STANDARD_LEVELS,1,MID($C41,4,1)),1),0,\nIF(RIGHT($E56,1)=RIGHT(INDEX(STANDARD_LEVELS,1,MID($C41,4,1)),1),SUM(OFFSET(G45,-(RIGHT($E56,1)),0,RIGHT($E56,1)+1,1)),\"ERROR\"))))","v":0.25526584263887409},0.26256505251234652,0.2837488263695736,0.30798822445325524,0.30115771538914121,0.30749328545982285,0.32021296670497129,0.33062167322423508,0.32089854407660201,0.2781052328328768,0.27938528232649362,0.19955035035738097,0.19955035035738095,0.19955035035738097,0.199550350357381,0.19955035035738095,0.19955035035738097,0.19955035035738097,0.19955035035738097,0.19955035035738097,0.19955035035738097,0.19955035035738097,0.19955035035738097,0.199550350357381,0.19955035035738097,0.19955035035738097,0.19955035035738097,0.19955035035738097,0.19955035035738097,0.19955035035738097,0.23456519500095921,0.23597152093123963,0.26925901800207686,0.26756084703097927,0.26962991504116174,0.27387332019761967,0.27818388251234832,0,0,0,0,0,0,0,0,0,0,0,0,0,0,0,0]
[null,null,null,null,"EL1",{"$f":"IF(F$29<STANDARD_YEAR,F46,\nIF(RIGHT($E57,1)>RIGHT(INDEX(STANDARD_LEVELS,1,MID($C41,4,1)),1),F46,\nIF(RIGHT($E57,1)<RIGHT(INDEX(STANDARD_LEVELS,1,MID($C41,4,1)),1),0,\nIF(RIGHT($E57,1)=RIGHT(INDEX(STANDARD_LEVELS,1,MID($C41,4,1)),1),SUM(OFFSET(F46,-(RIGHT($E57,1)),0,RIGHT($E57,1)+1,1)),\"ERROR\"))))","v":0.34016062378736045},{"$f":"IF(G$29<STANDARD_YEAR,G46,\nIF(RIGHT($E57,1)>RIGHT(INDEX(STANDARD_LEVELS,1,MID($C41,4,1)),1),G46,\nIF(RIGHT($E57,1)<RIGHT(INDEX(STANDARD_LEVELS,1,MID($C41,4,1)),1),0,\nIF(RIGHT($E57,1)=RIGHT(INDEX(STANDARD_LEVELS,1,MID($C41,4,1)),1),SUM(OFFSET(G46,-(RIGHT($E57,1)),0,RIGHT($E57,1)+1,1)),\"ERROR\"))))","v":0.33120234910421897},0.33537848783683588,0.34749848165009461,0.36136670724537079,0.35745872899010689,0.36108353496555085,0.36836091901604323,0.37431611186637026,0.36875316232257949,0.34426958017057963,0.34500194221559866,0.29932552553607145,0.29932552553607145,0.29932552553607145,0.29932552553607145,0.29932552553607145,0.29932552553607145,0.29932552553607145,0.29932552553607145,0.29932552553607145,0.29932552553607145,0.29932552553607145,0.29932552553607145,0.29932552553607145,0.29932552553607145,0.29932552553607145,0.29932552553607145,0.29932552553607145,0.29932552553607145,0.29932552553607145,0.31935876906069505,0.32016337836635045,0.33920834463518063,0.33823676035552042,0.33942054808152405,0.34184835176702627,0.34431457846196217,0,0,0,0,0,0,0,0,0,0,0,0,0,0,0,0]
[null,null,null,null,"EL2",{"$f":"IF(F$29<STANDARD_YEAR,F47,\nIF(RIGHT($E58,1)>RIGHT(INDEX(STANDARD_LEVELS,1,MID($C41,4,1)),1),F47,\nIF(RIGHT($E58,1)<RIGHT(INDEX(STANDARD_LEVELS,1,MID($C41,4,1)),1),0,\nIF(RIGHT($E58,1)=RIGHT(INDEX(STANDARD_LEVELS,1,MID($C41,4,1)),1),SUM(OFFSET(F47,-(RIGHT($E58,1)),0,RIGHT($E58,1)+1,1)),\"ERROR\"))))","v":0},{"$f":"IF(G$29<STANDARD_YEAR,G47,\nIF(RIGHT($E58,1)>RIGHT(INDEX(STANDARD_LEVELS,1,MID($C41,4,1)),1),G47,\nIF(RIGHT($E58,1)<RIGHT(INDEX(STANDARD_LEVELS,1,MID($C41,4,1)),1),0,\nIF(RIGHT($E58,1)=RIGHT(INDEX(STANDARD_LEVELS,1,MID($C41,4,1)),1),SUM(OFFSET(G47,-(RIGHT($E58,1)),0,RIGHT($E58,1)+1,1)),\"ERROR\"))))","v":0},0,0,0,0,0,0,0,0,0,0,0,0,0,0,0,0,0,0,0,0,0,0,0,0,0,0,0,0,0,0,0,0,0,0,0,0,0,0,0,0,0,0,0,0,0,0,0,0,0,0,0,0]
[null,null,null,null,"EL3",{"$f":"IF(F$29<STANDARD_YEAR,F48,\nIF(RIGHT($E59,1)>RIGHT(INDEX(STANDARD_LEVELS,1,MID($C41,4,1)),1),F48,\nIF(RIGHT($E59,1)<RIGHT(INDEX(STANDARD_LEVELS,1,MID($C41,4,1)),1),0,\nIF(RIGHT($E59,1)=RIGHT(INDEX(STANDARD_LEVELS,1,MID($C41,4,1)),1),SUM(OFFSET(F48,-(RIGHT($E59,1)),0,RIGHT($E59,1)+1,1)),\"ERROR\"))))","v":6.2644176556660255E-2},{"$f":"IF(G$29<STANDARD_YEAR,G48,\nIF(RIGHT($E59,1)>RIGHT(INDEX(STANDARD_LEVELS,1,MID($C41,4,1)),1),G48,\nIF(RIGHT($E59,1)<RIGHT(INDEX(STANDARD_LEVELS,1,MID($C41,4,1)),1),0,\nIF(RIGHT($E59,1)=RIGHT(INDEX(STANDARD_LEVELS,1,MID($C41,4,1)),1),SUM(OFFSET(G48,-(RIGHT($E59,1)),0,RIGHT($E59,1)+1,1)),\"ERROR\"))))","v":6.6609150323260202E-2},6.4760772024292784E-2,5.9396406761932641E-2,5.3258266035120648E-2,5.4987955267772129E-2,5.3383599394570692E-2,5.0162595588561426E-2,4.7526799716949494E-2,4.998898688872247E-2,6.0825533475953354E-2,6.0501386650938169E-2,8.0717979721860025E-2,8.0717979721860025E-2,8.0717979721860025E-2,8.0717979721860025E-2,8.0717979721860025E-2,8.0717979721860025E-2,8.0717979721860025E-2,8.0717979721860025E-2,8.0717979721860025E-2,8.0717979721860025E-2,8.0717979721860025E-2,8.0717979721860025E-2,8.0717979721860025E-2,8.0717979721860025E-2,8.0717979721860025E-2,8.0717979721860025E-2,8.0717979721860025E-2,8.0717979721860025E-2,8.0717979721860025E-2,7.185117357396173E-2,7.1495049777569403E-2,6.3065659709435062E-2,6.3495687400832265E-2,6.297173748359422E-2,6.1897180354687914E-2,6.0805617024272153E-2,0,0,0,0,0,0,0,0,0,0,0,0,0,0,0,0]
[null,null,null,null,"EL4",{"$f":"IF(F$29<STANDARD_YEAR,F49,\nIF(RIGHT($E60,1)>RIGHT(INDEX(STANDARD_LEVELS,1,MID($C41,4,1)),1),F49,\nIF(RIGHT($E60,1)<RIGHT(INDEX(STANDARD_LEVELS,1,MID($C41,4,1)),1),0,\nIF(RIGHT($E60,1)=RIGHT(INDEX(STANDARD_LEVELS,1,MID($C41,4,1)),1),SUM(OFFSET(F49,-(RIGHT($E60,1)),0,RIGHT($E60,1)+1,1)),\"ERROR\"))))","v":5.4813654487077708E-2},{"$f":"IF(G$29<STANDARD_YEAR,G49,\nIF(RIGHT($E60,1)>RIGHT(INDEX(STANDARD_LEVELS,1,MID($C41,4,1)),1),G49,\nIF(RIGHT($E60,1)<RIGHT(INDEX(STANDARD_LEVELS,1,MID($C41,4,1)),1),0,\nIF(RIGHT($E60,1)=RIGHT(INDEX(STANDARD_LEVELS,1,MID($C41,4,1)),1),SUM(OFFSET(G49,-(RIGHT($E60,1)),0,RIGHT($E60,1)+1,1)),\"ERROR\"))))","v":5.8283006532852663E-2},5.6665675521256169E-2,5.197185591669104E-2,4.6600982780730556E-2,4.8114460859300594E-2,4.6710649470249339E-2,4.3892271139991237E-2,4.1585949752330799E-2,4.3740363527632151E-2,5.3222341791459168E-2,5.2938713319570889E-2,7.062823225662751E-2,7.062823225662751E-2,7.062823225662751E-2,7.062823225662751E-2,7.062823225662751E-2,7.062823225662751E-2,7.062823225662751E-2,7.062823225662751E-2,7.062823225662751E-2,7.062823225662751E-2,7.062823225662751E-2,7.062823225662751E-2,7.062823225662751E-2,7.062823225662751E-2,7.062823225662751E-2,7.062823225662751E-2,7.062823225662751E-2,7.062823225662751E-2,7.0628232256627496E-2,6.286977687721651E-2,6.2558168555373217E-2,5.5182452245755659E-2,5.555872647572823E-2,5.5100270298144939E-2,5.4160032810351914E-2,5.3204914896238117E-2,0.73552219234441585,0.75179008752514753,0.7689845747605295,0.77437370365502345,0.73593192639313021,0.7486037649053936,0.74167507707289282,0.73002424477966665,0.71367717336338132,0.72049282362864164,0.72319729886721951,0.72142628596796221,0.71027252704942956,0.71668435514579754,0.6959040081097001,0.6956985985317562]
[null,null,null,null,"EL5",{"$f":"IF(F$29<STANDARD_YEAR,F50,\nIF(RIGHT($E61,1)>RIGHT(INDEX(STANDARD_LEVELS,1,MID($C41,4,1)),1),F50,\nIF(RIGHT($E61,1)<RIGHT(INDEX(STANDARD_LEVELS,1,MID($C41,4,1)),1),0,\nIF(RIGHT($E61,1)=RIGHT(INDEX(STANDARD_LEVELS,1,MID($C41,4,1)),1),SUM(OFFSET(F50,-(RIGHT($E61,1)),0,RIGHT($E61,1)+1,1)),\"ERROR\"))))","v":0.27145809841219437},{"$f":"IF(G$29<STANDARD_YEAR,G50,\nIF(RIGHT($E61,1)>RIGHT(INDEX(STANDARD_LEVELS,1,MID($C41,4,1)),1),G50,\nIF(RIGHT($E61,1)<RIGHT(INDEX(STANDARD_LEVELS,1,MID($C41,4,1)),1),0,\nIF(RIGHT($E61,1)=RIGHT(INDEX(STANDARD_LEVELS,1,MID($C41,4,1)),1),SUM(OFFSET(G50,-(RIGHT($E61,1)),0,RIGHT($E61,1)+1,1)),\"ERROR\"))))","v":0.28863965140079423},0.28063001210526872,0.25738442930170807,0.23078581948552279,0.23828113949367918,0.23132893070980631,0.21737124755043286,0.20594946544011447,0.21661894318446398,0.26357731172913118,0.2621726754873987,0.34977791212806009,0.34977791212806009,0.34977791212806009,0.34977791212806009,0.34977791212806009,0.34977791212806009,0.34977791212806009,0.34977791212806009,0.34977791212806009,0.34977791212806009,0.34977791212806009,0.34977791212806009,0.34977791212806009,0.34977791212806009,0.34977791212806003,0.34977791212806009,0.34977791212806009,0.34977791212806009,0.34977791212806009,0.3113550854871675,0.30981188236946738,0.27328452540755188,0.2751479787369398,0.27287752909557494,0.2682211148703143,0.26349100710517931,0.26447780765558421,0.24820991247485255,0.23101542523947033,0.22562629634497666,0.26406807360686996,0.2513962350946064,0.25832492292710724,0.26997575522033351,0.28632282663661873,0.2795071763713583,0.27680270113278055,0.27857371403203779,0.2897274729505705,0.28331564485420246,0.3040959918902999,0.30430140146824397]
[null,null,null,null,"EL6",{"$f":"IF(F$29<STANDARD_YEAR,F51,\nIF(RIGHT($E62,1)>RIGHT(INDEX(STANDARD_LEVELS,1,MID($C41,4,1)),1),F51,\nIF(RIGHT($E62,1)<RIGHT(INDEX(STANDARD_LEVELS,1,MID($C41,4,1)),1),0,\nIF(RIGHT($E62,1)=RIGHT(INDEX(STANDARD_LEVELS,1,MID($C41,4,1)),1),SUM(OFFSET(F51,-(RIGHT($E62,1)),0,RIGHT($E62,1)+1,1)),\"ERROR\"))))","v":0},{"$f":"IF(G$29<STANDARD_YEAR,G51,\nIF(RIGHT($E62,1)>RIGHT(INDEX(STANDARD_LEVELS,1,MID($C41,4,1)),1),G51,\nIF(RIGHT($E62,1)<RIGHT(INDEX(STANDARD_LEVELS,1,MID($C41,4,1)),1),0,\nIF(RIGHT($E62,1)=RIGHT(INDEX(STANDARD_LEVELS,1,MID($C41,4,1)),1),SUM(OFFSET(G51,-(RIGHT($E62,1)),0,RIGHT($E62,1)+1,1)),\"ERROR\"))))","v":0},0,0,0,0,0,0,0,0,0,0,0,0,0,0,0,0,0,0,0,0,0,0,0,0,0,0,0,0,0,0,0,0,0,0,0,0,0,0,0,0,0,0,0,0,0,0,0,0,0,0,0,0]
[null,null,null,null,"TOTAL",{"$f":"SUM(F56:F62)","v":1},{"$f":"SUM(G56:G62)","v":1.0000000000000002},1,1,1,1,1,1,1,1,1,1,1,1,1,1,1,1,1,1,1,1,1,1,1,1,1,1,1,1,1,1,1,1,1,0.99999999999999989,1,1,1,1,0.99999999999999978,1,1.0000000000000002,1,1,1.0000000000000002,1,1,1,1,1,1,1,1.0000000000000002]
[]
[]
[]
[null,null,"PC 3",{"$f":"OFFSET('Product Classes'!$C$9,MATCH(C67,MODEL_PCS,0),0)","v":"Weatherized Non-Condensing Gas Furnace Fan (WG-NC)"}]
[]
[null,null,null,"PRE-Case"]
[null,null,null,null,"Efficiency Level",1981,{"$f":"F70+1","v":1982},{"$f":"G70+1","v":1983},1984,1985,{"$f":"J70+1","v":1986},1987,1988,1989,1990,1991,1992,1993,1994,1995,1996,1997,1998,1999,2000,2001,2002,2003,2004,2005,2006,2007,2008,2009,2010,2011,2012,2013,2014,2015,2016,2017,2018,2019,2020,2021,2022,2023,2024,2025,2026,2027,2028,2029,2030,2031,2032,2033,2034]
[null,null,null,null,"EL0",{"$f":"IF(INDEX(PC_MAPPING,RIGHT($C67,1),MATCH($E$2,'Data by Building Type'!$D$22:$F$22,0))=\"Yes\",1,0)*\n(F$10*OFFSET('Efficiency Distributions'!$D$10,MATCH($C67,'Efficiency Distributions'!$C$9:$C$87,0)+RIGHT($E71),0)\n+F$11*OFFSET('Efficiency Distributions'!$E$10,MATCH($C67,'Efficiency Distributions'!$C$9:$C$87,0)+RIGHT($E71),0))\n/SUM(F$10:F$11)","v":0.211643924148993},{"$f":"IF(INDEX(PC_MAPPING,RIGHT($C67,1),MATCH($E$2,'Data by Building Type'!$D$22:$F$22,0))=\"Yes\",1,0)*\n(G$10*OFFSET('Efficiency Distributions'!$D$10,MATCH($C67,'Efficiency Distributions'!$C$9:$C$87,0)+RIGHT($E71),0)\n+G$11*OFFSET('Efficiency Distributions'!$E$10,MATCH($C67,'Efficiency Distributions'!$C$9:$C$87,0)+RIGHT($E71),0))\n/SUM(G$10:G$11)","v":0.19266632870099049},{"$f":"IF(INDEX(PC_MAPPING,RIGHT($C67,1),MATCH($E$2,'Data by Building Type'!$D$22:$F$22,0))=\"Yes\",1,0)*\n(H$10*OFFSET('Efficiency Distributions'!$D$10,MATCH($C67,'Efficiency Distributions'!$C$9:$C$87,0)+RIGHT($E71),0)\n+H$11*OFFSET('Efficiency Distributions'!$E$10,MATCH($C67,'Efficiency Distributions'!$C$9:$C$87,0)+RIGHT($E71),0))\n/SUM(H$10:H$11)","v":0.20151324110383109},{"$f":"IF(INDEX(PC_MAPPING,RIGHT($C67,1),MATCH($E$2,'Data by Building Type'!$D$22:$F$22,0))=\"Yes\",1,0)*\n(I$10*OFFSET('Efficiency Distributions'!$D$10,MATCH($C67,'Efficiency Distributions'!$C$9:$C$87,0)+RIGHT($E71),0)\n+I$11*OFFSET('Efficiency Distributions'!$E$10,MATCH($C67,'Efficiency Distributions'!$C$9:$C$87,0)+RIGHT($E71),0))\n/SUM(I$10:I$11)","v":0.22718875871808428},{"$f":"IF(INDEX(PC_MAPPING,RIGHT($C67,1),MATCH($E$2,'Data by Building Type'!$D$22:$F$22,0))=\"Yes\",1,0)*\n(J$10*OFFSET('Efficiency Distributions'!$D$10,MATCH($C67,'Efficiency Distributions'!$C$9:$C$87,0)+RIGHT($E71),0)\n+J$11*OFFSET('Efficiency Distributions'!$E$10,MATCH($C67,'Efficiency Distributions'!$C$9:$C$87,0)+RIGHT($E71),0))\n/SUM(J$10:J$11)","v":0.25656780593842349},{"$f":"IF(INDEX(PC_MAPPING,RIGHT($C67,1),MATCH($E$2,'Data by Building Type'!$D$22:$F$22,0))=\"Yes\",1,0)*\n(K$10*OFFSET('Efficiency Distributions'!$D$10,MATCH($C67,'Efficiency Distributions'!$C$9:$C$87,0)+RIGHT($E71),0)\n+K$11*OFFSET('Efficiency Distributions'!$E$10,MATCH($C67,'Efficiency Distributions'!$C$9:$C$87,0)+RIGHT($E71),0))\n/SUM(K$10:K$11)","v":0.24828897625623522},{"$f":"IF(INDEX(PC_MAPPING,RIGHT($C67,1),MATCH($E$2,'Data by Building Type'!$D$22:$F$22,0))=\"Yes\",1,0)*\n(L$10*OFFSET('Efficiency Distributions'!$D$10,MATCH($C67,'Efficiency Distributions'!$C$9:$C$87,0)+RIGHT($E71),0)\n+L$11*OFFSET('Efficiency Distributions'!$E$10,MATCH($C67,'Efficiency Distributions'!$C$9:$C$87,0)+RIGHT($E71),0))\n/SUM(L$10:L$11)","v":0.25596792156798504},{"$f":"IF(INDEX(PC_MAPPING,RIGHT($C67,1),MATCH($E$2,'Data by Building Type'!$D$22:$F$22,0))=\"Yes\",1,0)*\n(M$10*OFFSET('Efficiency Distributions'!$D$10,MATCH($C67,'Efficiency Distributions'!$C$9:$C$87,0)+RIGHT($E71),0)\n+M$11*OFFSET('Efficiency Distributions'!$E$10,MATCH($C67,'Efficiency Distributions'!$C$9:$C$87,0)+RIGHT($E71),0))\n/SUM(M$10:M$11)","v":0.27138464580506311},{"$f":"IF(INDEX(PC_MAPPING,RIGHT($C67,1),MATCH($E$2,'Data by Building Type'!$D$22:$F$22,0))=\"Yes\",1,0)*\n(N$10*OFFSET('Efficiency Distributions'!$D$10,MATCH($C67,'Efficiency Distributions'!$C$9:$C$87,0)+RIGHT($E71),0)\n+N$11*OFFSET('Efficiency Distributions'!$E$10,MATCH($C67,'Efficiency Distributions'!$C$9:$C$87,0)+RIGHT($E71),0))\n/SUM(N$10:N$11)","v":0.28400038317925025},{"$f":"IF(INDEX(PC_MAPPING,RIGHT($C67,1),MATCH($E$2,'Data by Building Type'!$D$22:$F$22,0))=\"Yes\",1,0)*\n(O$10*OFFSET('Efficiency Distributions'!$D$10,MATCH($C67,'Efficiency Distributions'!$C$9:$C$87,0)+RIGHT($E71),0)\n+O$11*OFFSET('Efficiency Distributions'!$E$10,MATCH($C67,'Efficiency Distributions'!$C$9:$C$87,0)+RIGHT($E71),0))\n/SUM(O$10:O$11)","v":0.27221559094259495},{"$f":"IF(INDEX(PC_MAPPING,RIGHT($C67,1),MATCH($E$2,'Data by Building Type'!$D$22:$F$22,0))=\"Yes\",1,0)*\n(P$10*OFFSET('Efficiency Distributions'!$D$10,MATCH($C67,'Efficiency Distributions'!$C$9:$C$87,0)+RIGHT($E71),0)\n+P$11*OFFSET('Efficiency Distributions'!$E$10,MATCH($C67,'Efficiency Distributions'!$C$9:$C$87,0)+RIGHT($E71),0))\n/SUM(P$10:P$11)","v":0.22034851456537824},{"$f":"IF(INDEX(PC_MAPPING,RIGHT($C67,1),MATCH($E$2,'Data by Building Type'!$D$22:$F$22,0))=\"Yes\",1,0)*\n(Q$10*OFFSET('Efficiency Distributions'!$D$10,MATCH($C67,'Efficiency Distributions'!$C$9:$C$87,0)+RIGHT($E71),0)\n+Q$11*OFFSET('Efficiency Distributions'!$E$10,MATCH($C67,'Efficiency Distributions'!$C$9:$C$87,0)+RIGHT($E71),0))\n/SUM(Q$10:Q$11)","v":0.22189998190741},{"$f":"IF(INDEX(PC_MAPPING,RIGHT($C67,1),MATCH($E$2,'Data by Building Type'!$D$22:$F$22,0))=\"Yes\",1,0)*\n(R$10*OFFSET('Efficiency Distributions'!$D$10,MATCH($C67,'Efficiency Distributions'!$C$9:$C$87,0)+RIGHT($E71),0)\n+R$11*OFFSET('Efficiency Distributions'!$E$10,MATCH($C67,'Efficiency Distributions'!$C$9:$C$87,0)+RIGHT($E71),0))\n/SUM(R$10:R$11)","v":0.1251370908465077},{"$f":"IF(INDEX(PC_MAPPING,RIGHT($C67,1),MATCH($E$2,'Data by Building Type'!$D$22:$F$22,0))=\"Yes\",1,0)*\n(S$10*OFFSET('Efficiency Distributions'!$D$10,MATCH($C67,'Efficiency Distributions'!$C$9:$C$87,0)+RIGHT($E71),0)\n+S$11*OFFSET('Efficiency Distributions'!$E$10,MATCH($C67,'Efficiency Distributions'!$C$9:$C$87,0)+RIGHT($E71),0))\n/SUM(S$10:S$11)","v":0.1251370908465077},{"$f":"IF(INDEX(PC_MAPPING,RIGHT($C67,1),MATCH($E$2,'Data by Building Type'!$D$22:$F$22,0))=\"Yes\",1,0)*\n(T$10*OFFSET('Efficiency Distributions'!$D$10,MATCH($C67,'Efficiency Distributions'!$C$9:$C$87,0)+RIGHT($E71),0)\n+T$11*OFFSET('Efficiency Distributions'!$E$10,MATCH($C67,'Efficiency Distributions'!$C$9:$C$87,0)+RIGHT($E71),0))\n/SUM(T$10:T$11)","v":0.1251370908465077},{"$f":"IF(INDEX(PC_MAPPING,RIGHT($C67,1),MATCH($E$2,'Data by Building Type'!$D$22:$F$22,0))=\"Yes\",1,0)*\n(U$10*OFFSET('Efficiency Distributions'!$D$10,MATCH($C67,'Efficiency Distributions'!$C$9:$C$87,0)+RIGHT($E71),0)\n+U$11*OFFSET('Efficiency Distributions'!$E$10,MATCH($C67,'Efficiency Distributions'!$C$9:$C$87,0)+RIGHT($E71),0))\n/SUM(U$10:U$11)","v":0.1251370908465077},{"$f":"IF(INDEX(PC_MAPPING,RIGHT($C67,1),MATCH($E$2,'Data by Building Type'!$D$22:$F$22,0))=\"Yes\",1,0)*\n(V$10*OFFSET('Efficiency Distributions'!$D$10,MATCH($C67,'Efficiency Distributions'!$C$9:$C$87,0)+RIGHT($E71),0)\n+V$11*OFFSET('Efficiency Distributions'!$E$10,MATCH($C67,'Efficiency Distributions'!$C$9:$C$87,0)+RIGHT($E71),0))\n/SUM(V$10:V$11)","v":0.1251370908465077},{"$f":"IF(INDEX(PC_MAPPING,RIGHT($C67,1),MATCH($E$2,'Data by Building Type'!$D$22:$F$22,0))=\"Yes\",1,0)*\n(W$10*OFFSET('Efficiency Distributions'!$D$10,MATCH($C67,'Efficiency Distributions'!$C$9:$C$87,0)+RIGHT($E71),0)\n+W$11*OFFSET('Efficiency Distributions'!$E$10,MATCH($C67,'Efficiency Distributions'!$C$9:$C$87,0)+RIGHT($E71),0))\n/SUM(W$10:W$11)","v":0.1251370908465077},{"$f":"IF(INDEX(PC_MAPPING,RIGHT($C67,1),MATCH($E$2,'Data by Building Type'!$D$22:$F$22,0))=\"Yes\",1,0)*\n(X$10*OFFSET('Efficiency Distributions'!$D$10,MATCH($C67,'Efficiency Distributions'!$C$9:$C$87,0)+RIGHT($E71),0)\n+X$11*OFFSET('Efficiency Distributions'!$E$10,MATCH($C67,'Efficiency Distributions'!$C$9:$C$87,0)+RIGHT($E71),0))\n/SUM(X$10:X$11)","v":0.1251370908465077},{"$f":"IF(INDEX(PC_MAPPING,RIGHT($C67,1),MATCH($E$2,'Data by Building Type'!$D$22:$F$22,0))=\"Yes\",1,0)*\n(Y$10*OFFSET('Efficiency Distributions'!$D$10,MATCH($C67,'Efficiency Distributions'!$C$9:$C$87,0)+RIGHT($E71),0)\n+Y$11*OFFSET('Efficiency Distributions'!$E$10,MATCH($C67,'Efficiency Distributions'!$C$9:$C$87,0)+RIGHT($E71),0))\n/SUM(Y$10:Y$11)","v":0.1251370908465077},{"$f":"IF(INDEX(PC_MAPPING,RIGHT($C67,1),MATCH($E$2,'Data by Building Type'!$D$22:$F$22,0))=\"Yes\",1,0)*\n(Z$10*OFFSET('Efficiency Distributions'!$D$10,MATCH($C67,'Efficiency Distributions'!$C$9:$C$87,0)+RIGHT($E71),0)\n+Z$11*OFFSET('Efficiency Distributions'!$E$10,MATCH($C67,'Efficiency Distributions'!$C$9:$C$87,0)+RIGHT($E71),0))\n/SUM(Z$10:Z$11)","v":0.1251370908465077},{"$f":"IF(INDEX(PC_MAPPING,RIGHT($C67,1),MATCH($E$2,'Data by Building Type'!$D$22:$F$22,0))=\"Yes\",1,0)*\n(AA$10*OFFSET('Efficiency Distributions'!$D$10,MATCH($C67,'Efficiency Distributions'!$C$9:$C$87,0)+RIGHT($E71),0)\n+AA$11*OFFSET('Efficiency Distributions'!$E$10,MATCH($C67,'Efficiency Distributions'!$C$9:$C$87,0)+RIGHT($E71),0))\n/SUM(AA$10:AA$11)","v":0.1251370908465077},{"$f":"IF(INDEX(PC_MAPPING,RIGHT($C67,1),MATCH($E$2,'Data by Building Type'!$D$22:$F$22,0))=\"Yes\",1,0)*\n(AB$10*OFFSET('Efficiency Distributions'!$D$10,MATCH($C67,'Efficiency Distributions'!$C$9:$C$87,0)+RIGHT($E71),0)\n+AB$11*OFFSET('Efficiency Distributions'!$E$10,MATCH($C67,'Efficiency Distributions'!$C$9:$C$87,0)+RIGHT($E71),0))\n/SUM(AB$10:AB$11)","v":0.1251370908465077},{"$f":"IF(INDEX(PC_MAPPING,RIGHT($C67,1),MATCH($E$2,'Data by Building Type'!$D$22:$F$22,0))=\"Yes\",1,0)*\n(AC$10*OFFSET('Efficiency Distributions'!$D$10,MATCH($C67,'Efficiency Distributions'!$C$9:$C$87,0)+RIGHT($E71),0)\n+AC$11*OFFSET('Efficiency Distributions'!$E$10,MATCH($C67,'Efficiency Distributions'!$C$9:$C$87,0)+RIGHT($E71),0))\n/SUM(AC$10:AC$11)","v":0.1251370908465077},{"$f":"IF(INDEX(PC_MAPPING,RIGHT($C67,1),MATCH($E$2,'Data by Building Type'!$D$22:$F$22,0))=\"Yes\",1,0)*\n(AD$10*OFFSET('Efficiency Distributions'!$D$10,MATCH($C67,'Efficiency Distributions'!$C$9:$C$87,0)+RIGHT($E71),0)\n+AD$11*OFFSET('Efficiency Distributions'!$E$10,MATCH($C67,'Efficiency Distributions'!$C$9:$C$87,0)+RIGHT($E71),0))\n/SUM(AD$10:AD$11)","v":0.1251370908465077},{"$f":"IF(INDEX(PC_MAPPING,RIGHT($C67,1),MATCH($E$2,'Data by Building Type'!$D$22:$F$22,0))=\"Yes\",1,0)*\n(AE$10*OFFSET('Efficiency Distributions'!$D$10,MATCH($C67,'Efficiency Distributions'!$C$9:$C$87,0)+RIGHT($E71),0)\n+AE$11*OFFSET('Efficiency Distributions'!$E$10,MATCH($C67,'Efficiency Distributions'!$C$9:$C$87,0)+RIGHT($E71),0))\n/SUM(AE$10:AE$11)","v":0.1251370908465077},{"$f":"IF(INDEX(PC_MAPPING,RIGHT($C67,1),MATCH($E$2,'Data by Building Type'!$D$22:$F$22,0))=\"Yes\",1,0)*\n(AF$10*OFFSET('Efficiency Distributions'!$D$10,MATCH($C67,'Efficiency Distributions'!$C$9:$C$87,0)+RIGHT($E71),0)\n+AF$11*OFFSET('Efficiency Distributions'!$E$10,MATCH($C67,'Efficiency Distributions'!$C$9:$C$87,0)+RIGHT($E71),0))\n/SUM(AF$10:AF$11)","v":0.1251370908465077},{"$f":"IF(INDEX(PC_MAPPING,RIGHT($C67,1),MATCH($E$2,'Data by Building Type'!$D$22:$F$22,0))=\"Yes\",1,0)*\n(AG$10*OFFSET('Efficiency Distributions'!$D$10,MATCH($C67,'Efficiency Distributions'!$C$9:$C$87,0)+RIGHT($E71),0)\n+AG$11*OFFSET('Efficiency Distributions'!$E$10,MATCH($C67,'Efficiency Distributions'!$C$9:$C$87,0)+RIGHT($E71),0))\n/SUM(AG$10:AG$11)","v":0.1251370908465077},{"$f":"IF(INDEX(PC_MAPPING,RIGHT($C67,1),MATCH($E$2,'Data by Building Type'!$D$22:$F$22,0))=\"Yes\",1,0)*\n(AH$10*OFFSET('Efficiency Distributions'!$D$10,MATCH($C67,'Efficiency Distributions'!$C$9:$C$87,0)+RIGHT($E71),0)\n+AH$11*OFFSET('Efficiency Distributions'!$E$10,MATCH($C67,'Efficiency Distributions'!$C$9:$C$87,0)+RIGHT($E71),0))\n/SUM(AH$10:AH$11)","v":0.1251370908465077},{"$f":"IF(INDEX(PC_MAPPING,RIGHT($C67,1),MATCH($E$2,'Data by Building Type'!$D$22:$F$22,0))=\"Yes\",1,0)*\n(AI$10*OFFSET('Efficiency Distributions'!$D$10,MATCH($C67,'Efficiency Distributions'!$C$9:$C$87,0)+RIGHT($E71),0)\n+AI$11*OFFSET('Efficiency Distributions'!$E$10,MATCH($C67,'Efficiency Distributions'!$C$9:$C$87,0)+RIGHT($E71),0))\n/SUM(AI$10:AI$11)","v":0.1251370908465077},{"$f":"IF(INDEX(PC_MAPPING,RIGHT($C67,1),MATCH($E$2,'Data by Building Type'!$D$22:$F$22,0))=\"Yes\",1,0)*\n(AJ$10*OFFSET('Efficiency Distributions'!$D$10,MATCH($C67,'Efficiency Distributions'!$C$9:$C$87,0)+RIGHT($E71),0)\n+AJ$11*OFFSET('Efficiency Distributions'!$E$10,MATCH($C67,'Efficiency Distributions'!$C$9:$C$87,0)+RIGHT($E71),0))\n/SUM(AJ$10:AJ$11)","v":0.1251370908465077},{"$f":"IF(INDEX(PC_MAPPING,RIGHT($C67,1),MATCH($E$2,'Data by Building Type'!$D$22:$F$22,0))=\"Yes\",1,0)*\n(AK$10*OFFSET('Efficiency Distributions'!$D$10,MATCH($C67,'Efficiency Distributions'!$C$9:$C$87,0)+RIGHT($E71),0)\n+AK$11*OFFSET('Efficiency Distributions'!$E$10,MATCH($C67,'Efficiency Distributions'!$C$9:$C$87,0)+RIGHT($E71),0))\n/SUM(AK$10:AK$11)","v":0.16757637793792551},{"$f":"IF(INDEX(PC_MAPPING,RIGHT($C67,1),MATCH($E$2,'Data by Building Type'!$D$22:$F$22,0))=\"Yes\",1,0)*\n(AL$10*OFFSET('Efficiency Distributions'!$D$10,MATCH($C67,'Efficiency Distributions'!$C$9:$C$87,0)+RIGHT($E71),0)\n+AL$11*OFFSET('Efficiency Distributions'!$E$10,MATCH($C67,'Efficiency Distributions'!$C$9:$C$87,0)+RIGHT($E71),0))\n/SUM(AL$10:AL$11)","v":0.16928089699282362},{"$f":"IF(INDEX(PC_MAPPING,RIGHT($C67,1),MATCH($E$2,'Data by Building Type'!$D$22:$F$22,0))=\"Yes\",1,0)*\n(AM$10*OFFSET('Efficiency Distributions'!$D$10,MATCH($C67,'Efficiency Distributions'!$C$9:$C$87,0)+RIGHT($E71),0)\n+AM$11*OFFSET('Efficiency Distributions'!$E$10,MATCH($C67,'Efficiency Distributions'!$C$9:$C$87,0)+RIGHT($E71),0))\n/SUM(AM$10:AM$11)","v":0.2096265749224008},{"$f":"IF(INDEX(PC_MAPPING,RIGHT($C67,1),MATCH($E$2,'Data by Building Type'!$D$22:$F$22,0))=\"Yes\",1,0)*\n(AN$10*OFFSET('Efficiency Distributions'!$D$10,MATCH($C67,'Efficiency Distributions'!$C$9:$C$87,0)+RIGHT($E71),0)\n+AN$11*OFFSET('Efficiency Distributions'!$E$10,MATCH($C67,'Efficiency Distributions'!$C$9:$C$87,0)+RIGHT($E71),0))\n/SUM(AN$10:AN$11)","v":0.20756832888114815},{"$f":"IF(INDEX(PC_MAPPING,RIGHT($C67,1),MATCH($E$2,'Data by Building Type'!$D$22:$F$22,0))=\"Yes\",1,0)*\n(AO$10*OFFSET('Efficiency Distributions'!$D$10,MATCH($C67,'Efficiency Distributions'!$C$9:$C$87,0)+RIGHT($E71),0)\n+AO$11*OFFSET('Efficiency Distributions'!$E$10,MATCH($C67,'Efficiency Distributions'!$C$9:$C$87,0)+RIGHT($E71),0))\n/SUM(AO$10:AO$11)","v":0.21007611585520536},{"$f":"IF(INDEX(PC_MAPPING,RIGHT($C67,1),MATCH($E$2,'Data by Building Type'!$D$22:$F$22,0))=\"Yes\",1,0)*\n(AP$10*OFFSET('Efficiency Distributions'!$D$10,MATCH($C67,'Efficiency Distributions'!$C$9:$C$87,0)+RIGHT($E71),0)\n+AP$11*OFFSET('Efficiency Distributions'!$E$10,MATCH($C67,'Efficiency Distributions'!$C$9:$C$87,0)+RIGHT($E71),0))\n/SUM(AP$10:AP$11)","v":0.2152192798907239},{"$f":"IF(INDEX(PC_MAPPING,RIGHT($C67,1),MATCH($E$2,'Data by Building Type'!$D$22:$F$22,0))=\"Yes\",1,0)*\n(AQ$10*OFFSET('Efficiency Distributions'!$D$10,MATCH($C67,'Efficiency Distributions'!$C$9:$C$87,0)+RIGHT($E71),0)\n+AQ$11*OFFSET('Efficiency Distributions'!$E$10,MATCH($C67,'Efficiency Distributions'!$C$9:$C$87,0)+RIGHT($E71),0))\n/SUM(AQ$10:AQ$11)","v":0.22044384088656332},{"$f":"IF(INDEX(PC_MAPPING,RIGHT($C67,1),MATCH($E$2,'Data by Building Type'!$D$22:$F$22,0))=\"Yes\",1,0)*\n(AR$10*OFFSET('Efficiency Distributions'!$D$10,MATCH($C67,'Efficiency Distributions'!$C$9:$C$87,0)+RIGHT($E71),0)\n+AR$11*OFFSET('Efficiency Distributions'!$E$10,MATCH($C67,'Efficiency Distributions'!$C$9:$C$87,0)+RIGHT($E71),0))\n/SUM(AR$10:AR$11)","v":0.21935388693153521},{"$f":"IF(INDEX(PC_MAPPING,RIGHT($C67,1),MATCH($E$2,'Data by Building Type'!$D$22:$F$22,0))=\"Yes\",1,0)*\n(AS$10*OFFSET('Efficiency Distributions'!$D$10,MATCH($C67,'Efficiency Distributions'!$C$9:$C$87,0)+RIGHT($E71),0)\n+AS$11*OFFSET('Efficiency Distributions'!$E$10,MATCH($C67,'Efficiency Distributions'!$C$9:$C$87,0)+RIGHT($E71),0))\n/SUM(AS$10:AS$11)","v":0.23732231701089287},{"$f":"IF(INDEX(PC_MAPPING,RIGHT($C67,1),MATCH($E$2,'Data by Building Type'!$D$22:$F$22,0))=\"Yes\",1,0)*\n(AT$10*OFFSET('Efficiency Distributions'!$D$10,MATCH($C67,'Efficiency Distributions'!$C$9:$C$87,0)+RIGHT($E71),0)\n+AT$11*OFFSET('Efficiency Distributions'!$E$10,MATCH($C67,'Efficiency Distributions'!$C$9:$C$87,0)+RIGHT($E71),0))\n/SUM(AT$10:AT$11)","v":0.25631419876369133},{"$f":"IF(INDEX(PC_MAPPING,RIGHT($C67,1),MATCH($E$2,'Data by Building Type'!$D$22:$F$22,0))=\"Yes\",1,0)*\n(AU$10*OFFSET('Efficiency Distributions'!$D$10,MATCH($C67,'Efficiency Distributions'!$C$9:$C$87,0)+RIGHT($E71),0)\n+AU$11*OFFSET('Efficiency Distributions'!$E$10,MATCH($C67,'Efficiency Distributions'!$C$9:$C$87,0)+RIGHT($E71),0))\n/SUM(AU$10:AU$11)","v":0.26226667046661023},{"$f":"IF(INDEX(PC_MAPPING,RIGHT($C67,1),MATCH($E$2,'Data by Building Type'!$D$22:$F$22,0))=\"Yes\",1,0)*\n(AV$10*OFFSET('Efficiency Distributions'!$D$10,MATCH($C67,'Efficiency Distributions'!$C$9:$C$87,0)+RIGHT($E71),0)\n+AV$11*OFFSET('Efficiency Distributions'!$E$10,MATCH($C67,'Efficiency Distributions'!$C$9:$C$87,0)+RIGHT($E71),0))\n/SUM(AV$10:AV$11)","v":0.21980645178541836},{"$f":"IF(INDEX(PC_MAPPING,RIGHT($C67,1),MATCH($E$2,'Data by Building Type'!$D$22:$F$22,0))=\"Yes\",1,0)*\n(AW$10*OFFSET('Efficiency Distributions'!$D$10,MATCH($C67,'Efficiency Distributions'!$C$9:$C$87,0)+RIGHT($E71),0)\n+AW$11*OFFSET('Efficiency Distributions'!$E$10,MATCH($C67,'Efficiency Distributions'!$C$9:$C$87,0)+RIGHT($E71),0))\n/SUM(AW$10:AW$11)","v":0.23380291793883989},{"$f":"IF(INDEX(PC_MAPPING,RIGHT($C67,1),MATCH($E$2,'Data by Building Type'!$D$22:$F$22,0))=\"Yes\",1,0)*\n(AX$10*OFFSET('Efficiency Distributions'!$D$10,MATCH($C67,'Efficiency Distributions'!$C$9:$C$87,0)+RIGHT($E71),0)\n+AX$11*OFFSET('Efficiency Distributions'!$E$10,MATCH($C67,'Efficiency Distributions'!$C$9:$C$87,0)+RIGHT($E71),0))\n/SUM(AX$10:AX$11)","v":0.22614995229842633},{"$f":"IF(INDEX(PC_MAPPING,RIGHT($C67,1),MATCH($E$2,'Data by Building Type'!$D$22:$F$22,0))=\"Yes\",1,0)*\n(AY$10*OFFSET('Efficiency Distributions'!$D$10,MATCH($C67,'Efficiency Distributions'!$C$9:$C$87,0)+RIGHT($E71),0)\n+AY$11*OFFSET('Efficiency Distributions'!$E$10,MATCH($C67,'Efficiency Distributions'!$C$9:$C$87,0)+RIGHT($E71),0))\n/SUM(AY$10:AY$11)","v":0.21328122139615707},{"$f":"IF(INDEX(PC_MAPPING,RIGHT($C67,1),MATCH($E$2,'Data by Building Type'!$D$22:$F$22,0))=\"Yes\",1,0)*\n(AZ$10*OFFSET('Efficiency Distributions'!$D$10,MATCH($C67,'Efficiency Distributions'!$C$9:$C$87,0)+RIGHT($E71),0)\n+AZ$11*OFFSET('Efficiency Distributions'!$E$10,MATCH($C67,'Efficiency Distributions'!$C$9:$C$87,0)+RIGHT($E71),0))\n/SUM(AZ$10:AZ$11)","v":0.19522533853715657},{"$f":"IF(INDEX(PC_MAPPING,RIGHT($C67,1),MATCH($E$2,'Data by Building Type'!$D$22:$F$22,0))=\"Yes\",1,0)*\n(BA$10*OFFSET('Efficiency Distributions'!$D$10,MATCH($C67,'Efficiency Distributions'!$C$9:$C$87,0)+RIGHT($E71),0)\n+BA$11*OFFSET('Efficiency Distributions'!$E$10,MATCH($C67,'Efficiency Distributions'!$C$9:$C$87,0)+RIGHT($E71),0))\n/SUM(BA$10:BA$11)","v":0.20275345043338652},{"$f":"IF(INDEX(PC_MAPPING,RIGHT($C67,1),MATCH($E$2,'Data by Building Type'!$D$22:$F$22,0))=\"Yes\",1,0)*\n(BB$10*OFFSET('Efficiency Distributions'!$D$10,MATCH($C67,'Efficiency Distributions'!$C$9:$C$87,0)+RIGHT($E71),0)\n+BB$11*OFFSET('Efficiency Distributions'!$E$10,MATCH($C67,'Efficiency Distributions'!$C$9:$C$87,0)+RIGHT($E71),0))\n/SUM(BB$10:BB$11)","v":0.20574063308276191},{"$f":"IF(INDEX(PC_MAPPING,RIGHT($C67,1),MATCH($E$2,'Data by Building Type'!$D$22:$F$22,0))=\"Yes\",1,0)*\n(BC$10*OFFSET('Efficiency Distributions'!$D$10,MATCH($C67,'Efficiency Distributions'!$C$9:$C$87,0)+RIGHT($E71),0)\n+BC$11*OFFSET('Efficiency Distributions'!$E$10,MATCH($C67,'Efficiency Distributions'!$C$9:$C$87,0)+RIGHT($E71),0))\n/SUM(BC$10:BC$11)","v":0.20378449056423645},{"$f":"IF(INDEX(PC_MAPPING,RIGHT($C67,1),MATCH($E$2,'Data by Building Type'!$D$22:$F$22,0))=\"Yes\",1,0)*\n(BD$10*OFFSET('Efficiency Distributions'!$D$10,MATCH($C67,'Efficiency Distributions'!$C$9:$C$87,0)+RIGHT($E71),0)\n+BD$11*OFFSET('Efficiency Distributions'!$E$10,MATCH($C67,'Efficiency Distributions'!$C$9:$C$87,0)+RIGHT($E71),0))\n/SUM(BD$10:BD$11)","v":0.19146479369976147},{"$f":"IF(INDEX(PC_MAPPING,RIGHT($C67,1),MATCH($E$2,'Data by Building Type'!$D$22:$F$22,0))=\"Yes\",1,0)*\n(BE$10*OFFSET('Efficiency Distributions'!$D$10,MATCH($C67,'Efficiency Distributions'!$C$9:$C$87,0)+RIGHT($E71),0)\n+BE$11*OFFSET('Efficiency Distributions'!$E$10,MATCH($C67,'Efficiency Distributions'!$C$9:$C$87,0)+RIGHT($E71),0))\n/SUM(BE$10:BE$11)","v":0.19854687060955803},{"$f":"IF(INDEX(PC_MAPPING,RIGHT($C67,1),MATCH($E$2,'Data by Building Type'!$D$22:$F$22,0))=\"Yes\",1,0)*\n(BF$10*OFFSET('Efficiency Distributions'!$D$10,MATCH($C67,'Efficiency Distributions'!$C$9:$C$87,0)+RIGHT($E71),0)\n+BF$11*OFFSET('Efficiency Distributions'!$E$10,MATCH($C67,'Efficiency Distributions'!$C$9:$C$87,0)+RIGHT($E71),0))\n/SUM(BF$10:BF$11)","v":0.17559428770964086},{"$f":"IF(INDEX(PC_MAPPING,RIGHT($C67,1),MATCH($E$2,'Data by Building Type'!$D$22:$F$22,0))=\"Yes\",1,0)*\n(BG$10*OFFSET('Efficiency Distributions'!$D$10,MATCH($C67,'Efficiency Distributions'!$C$9:$C$87,0)+RIGHT($E71),0)\n+BG$11*OFFSET('Efficiency Distributions'!$E$10,MATCH($C67,'Efficiency Distributions'!$C$9:$C$87,0)+RIGHT($E71),0))\n/SUM(BG$10:BG$11)","v":0.17536740601425777}]
[null,null,null,null,"EL1",{"$f":"IF(INDEX(PC_MAPPING,RIGHT($C67,1),MATCH($E$2,'Data by Building Type'!$D$22:$F$22,0))=\"Yes\",1,0)*\n(F$10*OFFSET('Efficiency Distributions'!$D$10,MATCH($C67,'Efficiency Distributions'!$C$9:$C$87,0)+RIGHT($E72),0)\n+F$11*OFFSET('Efficiency Distributions'!$E$10,MATCH($C67,'Efficiency Distributions'!$C$9:$C$87,0)+RIGHT($E72),0))\n/SUM(F$10:F$11)","v":0.25506223384638882},{"$f":"IF(INDEX(PC_MAPPING,RIGHT($C67,1),MATCH($E$2,'Data by Building Type'!$D$22:$F$22,0))=\"Yes\",1,0)*\n(G$10*OFFSET('Efficiency Distributions'!$D$10,MATCH($C67,'Efficiency Distributions'!$C$9:$C$87,0)+RIGHT($E72),0)\n+G$11*OFFSET('Efficiency Distributions'!$E$10,MATCH($C67,'Efficiency Distributions'!$C$9:$C$87,0)+RIGHT($E72),0))\n/SUM(G$10:G$11)","v":0.24028575653512863},{"$f":"IF(INDEX(PC_MAPPING,RIGHT($C67,1),MATCH($E$2,'Data by Building Type'!$D$22:$F$22,0))=\"Yes\",1,0)*\n(H$10*OFFSET('Efficiency Distributions'!$D$10,MATCH($C67,'Efficiency Distributions'!$C$9:$C$87,0)+RIGHT($E72),0)\n+H$11*OFFSET('Efficiency Distributions'!$E$10,MATCH($C67,'Efficiency Distributions'!$C$9:$C$87,0)+RIGHT($E72),0))\n/SUM(H$10:H$11)","v":0.24717420564099465},{"$f":"IF(INDEX(PC_MAPPING,RIGHT($C67,1),MATCH($E$2,'Data by Building Type'!$D$22:$F$22,0))=\"Yes\",1,0)*\n(I$10*OFFSET('Efficiency Distributions'!$D$10,MATCH($C67,'Efficiency Distributions'!$C$9:$C$87,0)+RIGHT($E72),0)\n+I$11*OFFSET('Efficiency Distributions'!$E$10,MATCH($C67,'Efficiency Distributions'!$C$9:$C$87,0)+RIGHT($E72),0))\n/SUM(I$10:I$11)","v":0.26716586920666546},{"$f":"IF(INDEX(PC_MAPPING,RIGHT($C67,1),MATCH($E$2,'Data by Building Type'!$D$22:$F$22,0))=\"Yes\",1,0)*\n(J$10*OFFSET('Efficiency Distributions'!$D$10,MATCH($C67,'Efficiency Distributions'!$C$9:$C$87,0)+RIGHT($E72),0)\n+J$11*OFFSET('Efficiency Distributions'!$E$10,MATCH($C67,'Efficiency Distributions'!$C$9:$C$87,0)+RIGHT($E72),0))\n/SUM(J$10:J$11)","v":0.29004120269489603},{"$f":"IF(INDEX(PC_MAPPING,RIGHT($C67,1),MATCH($E$2,'Data by Building Type'!$D$22:$F$22,0))=\"Yes\",1,0)*\n(K$10*OFFSET('Efficiency Distributions'!$D$10,MATCH($C67,'Efficiency Distributions'!$C$9:$C$87,0)+RIGHT($E72),0)\n+K$11*OFFSET('Efficiency Distributions'!$E$10,MATCH($C67,'Efficiency Distributions'!$C$9:$C$87,0)+RIGHT($E72),0))\n/SUM(K$10:K$11)","v":0.28359507840597731},{"$f":"IF(INDEX(PC_MAPPING,RIGHT($C67,1),MATCH($E$2,'Data by Building Type'!$D$22:$F$22,0))=\"Yes\",1,0)*\n(L$10*OFFSET('Efficiency Distributions'!$D$10,MATCH($C67,'Efficiency Distributions'!$C$9:$C$87,0)+RIGHT($E72),0)\n+L$11*OFFSET('Efficiency Distributions'!$E$10,MATCH($C67,'Efficiency Distributions'!$C$9:$C$87,0)+RIGHT($E72),0))\n/SUM(L$10:L$11)","v":0.28957411623953072},{"$f":"IF(INDEX(PC_MAPPING,RIGHT($C67,1),MATCH($E$2,'Data by Building Type'!$D$22:$F$22,0))=\"Yes\",1,0)*\n(M$10*OFFSET('Efficiency Distributions'!$D$10,MATCH($C67,'Efficiency Distributions'!$C$9:$C$87,0)+RIGHT($E72),0)\n+M$11*OFFSET('Efficiency Distributions'!$E$10,MATCH($C67,'Efficiency Distributions'!$C$9:$C$87,0)+RIGHT($E72),0))\n/SUM(M$10:M$11)","v":0.30157800137488994},{"$f":"IF(INDEX(PC_MAPPING,RIGHT($C67,1),MATCH($E$2,'Data by Building Type'!$D$22:$F$22,0))=\"Yes\",1,0)*\n(N$10*OFFSET('Efficiency Distributions'!$D$10,MATCH($C67,'Efficiency Distributions'!$C$9:$C$87,0)+RIGHT($E72),0)\n+N$11*OFFSET('Efficiency Distributions'!$E$10,MATCH($C67,'Efficiency Distributions'!$C$9:$C$87,0)+RIGHT($E72),0))\n/SUM(N$10:N$11)","v":0.31140096116899363},{"$f":"IF(INDEX(PC_MAPPING,RIGHT($C67,1),MATCH($E$2,'Data by Building Type'!$D$22:$F$22,0))=\"Yes\",1,0)*\n(O$10*OFFSET('Efficiency Distributions'!$D$10,MATCH($C67,'Efficiency Distributions'!$C$9:$C$87,0)+RIGHT($E72),0)\n+O$11*OFFSET('Efficiency Distributions'!$E$10,MATCH($C67,'Efficiency Distributions'!$C$9:$C$87,0)+RIGHT($E72),0))\n/SUM(O$10:O$11)","v":0.30222499809295594},{"$f":"IF(INDEX(PC_MAPPING,RIGHT($C67,1),MATCH($E$2,'Data by Building Type'!$D$22:$F$22,0))=\"Yes\",1,0)*\n(P$10*OFFSET('Efficiency Distributions'!$D$10,MATCH($C67,'Efficiency Distributions'!$C$9:$C$87,0)+RIGHT($E72),0)\n+P$11*OFFSET('Efficiency Distributions'!$E$10,MATCH($C67,'Efficiency Distributions'!$C$9:$C$87,0)+RIGHT($E72),0))\n/SUM(P$10:P$11)","v":0.26183986714265906},{"$f":"IF(INDEX(PC_MAPPING,RIGHT($C67,1),MATCH($E$2,'Data by Building Type'!$D$22:$F$22,0))=\"Yes\",1,0)*\n(Q$10*OFFSET('Efficiency Distributions'!$D$10,MATCH($C67,'Efficiency Distributions'!$C$9:$C$87,0)+RIGHT($E72),0)\n+Q$11*OFFSET('Efficiency Distributions'!$E$10,MATCH($C67,'Efficiency Distributions'!$C$9:$C$87,0)+RIGHT($E72),0))\n/SUM(Q$10:Q$11)","v":0.2630478822487618},{"$f":"IF(INDEX(PC_MAPPING,RIGHT($C67,1),MATCH($E$2,'Data by Building Type'!$D$22:$F$22,0))=\"Yes\",1,0)*\n(R$10*OFFSET('Efficiency Distributions'!$D$10,MATCH($C67,'Efficiency Distributions'!$C$9:$C$87,0)+RIGHT($E72),0)\n+R$11*OFFSET('Efficiency Distributions'!$E$10,MATCH($C67,'Efficiency Distributions'!$C$9:$C$87,0)+RIGHT($E72),0))\n/SUM(R$10:R$11)","v":0.18770563626976156},{"$f":"IF(INDEX(PC_MAPPING,RIGHT($C67,1),MATCH($E$2,'Data by Building Type'!$D$22:$F$22,0))=\"Yes\",1,0)*\n(S$10*OFFSET('Efficiency Distributions'!$D$10,MATCH($C67,'Efficiency Distributions'!$C$9:$C$87,0)+RIGHT($E72),0)\n+S$11*OFFSET('Efficiency Distributions'!$E$10,MATCH($C67,'Efficiency Distributions'!$C$9:$C$87,0)+RIGHT($E72),0))\n/SUM(S$10:S$11)","v":0.18770563626976158},{"$f":"IF(INDEX(PC_MAPPING,RIGHT($C67,1),MATCH($E$2,'Data by Building Type'!$D$22:$F$22,0))=\"Yes\",1,0)*\n(T$10*OFFSET('Efficiency Distributions'!$D$10,MATCH($C67,'Efficiency Distributions'!$C$9:$C$87,0)+RIGHT($E72),0)\n+T$11*OFFSET('Efficiency Distributions'!$E$10,MATCH($C67,'Efficiency Distributions'!$C$9:$C$87,0)+RIGHT($E72),0))\n/SUM(T$10:T$11)","v":0.18770563626976156},{"$f":"IF(INDEX(PC_MAPPING,RIGHT($C67,1),MATCH($E$2,'Data by Building Type'!$D$22:$F$22,0))=\"Yes\",1,0)*\n(U$10*OFFSET('Efficiency Distributions'!$D$10,MATCH($C67,'Efficiency Distributions'!$C$9:$C$87,0)+RIGHT($E72),0)\n+U$11*OFFSET('Efficiency Distributions'!$E$10,MATCH($C67,'Efficiency Distributions'!$C$9:$C$87,0)+RIGHT($E72),0))\n/SUM(U$10:U$11)","v":0.18770563626976156},{"$f":"IF(INDEX(PC_MAPPING,RIGHT($C67,1),MATCH($E$2,'Data by Building Type'!$D$22:$F$22,0))=\"Yes\",1,0)*\n(V$10*OFFSET('Efficiency Distributions'!$D$10,MATCH($C67,'Efficiency Distributions'!$C$9:$C$87,0)+RIGHT($E72),0)\n+V$11*OFFSET('Efficiency Distributions'!$E$10,MATCH($C67,'Efficiency Distributions'!$C$9:$C$87,0)+RIGHT($E72),0))\n/SUM(V$10:V$11)","v":0.18770563626976156},{"$f":"IF(INDEX(PC_MAPPING,RIGHT($C67,1),MATCH($E$2,'Data by Building Type'!$D$22:$F$22,0))=\"Yes\",1,0)*\n(W$10*OFFSET('Efficiency Distributions'!$D$10,MATCH($C67,'Efficiency Distributions'!$C$9:$C$87,0)+RIGHT($E72),0)\n+W$11*OFFSET('Efficiency Distributions'!$E$10,MATCH($C67,'Efficiency Distributions'!$C$9:$C$87,0)+RIGHT($E72),0))\n/SUM(W$10:W$11)","v":0.18770563626976153},{"$f":"IF(INDEX(PC_MAPPING,RIGHT($C67,1),MATCH($E$2,'Data by Building Type'!$D$22:$F$22,0))=\"Yes\",1,0)*\n(X$10*OFFSET('Efficiency Distributions'!$D$10,MATCH($C67,'Efficiency Distributions'!$C$9:$C$87,0)+RIGHT($E72),0)\n+X$11*OFFSET('Efficiency Distributions'!$E$10,MATCH($C67,'Efficiency Distributions'!$C$9:$C$87,0)+RIGHT($E72),0))\n/SUM(X$10:X$11)","v":0.18770563626976156},{"$f":"IF(INDEX(PC_MAPPING,RIGHT($C67,1),MATCH($E$2,'Data by Building Type'!$D$22:$F$22,0))=\"Yes\",1,0)*\n(Y$10*OFFSET('Efficiency Distributions'!$D$10,MATCH($C67,'Efficiency Distributions'!$C$9:$C$87,0)+RIGHT($E72),0)\n+Y$11*OFFSET('Efficiency Distributions'!$E$10,MATCH($C67,'Efficiency Distributions'!$C$9:$C$87,0)+RIGHT($E72),0))\n/SUM(Y$10:Y$11)","v":0.18770563626976156},{"$f":"IF(INDEX(PC_MAPPING,RIGHT($C67,1),MATCH($E$2,'Data by Building Type'!$D$22:$F$22,0))=\"Yes\",1,0)*\n(Z$10*OFFSET('Efficiency Distributions'!$D$10,MATCH($C67,'Efficiency Distributions'!$C$9:$C$87,0)+RIGHT($E72),0)\n+Z$11*OFFSET('Efficiency Distributions'!$E$10,MATCH($C67,'Efficiency Distributions'!$C$9:$C$87,0)+RIGHT($E72),0))\n/SUM(Z$10:Z$11)","v":0.18770563626976158},{"$f":"IF(INDEX(PC_MAPPING,RIGHT($C67,1),MATCH($E$2,'Data by Building Type'!$D$22:$F$22,0))=\"Yes\",1,0)*\n(AA$10*OFFSET('Efficiency Distributions'!$D$10,MATCH($C67,'Efficiency Distributions'!$C$9:$C$87,0)+RIGHT($E72),0)\n+AA$11*OFFSET('Efficiency Distributions'!$E$10,MATCH($C67,'Efficiency Distributions'!$C$9:$C$87,0)+RIGHT($E72),0))\n/SUM(AA$10:AA$11)","v":0.18770563626976156},{"$f":"IF(INDEX(PC_MAPPING,RIGHT($C67,1),MATCH($E$2,'Data by Building Type'!$D$22:$F$22,0))=\"Yes\",1,0)*\n(AB$10*OFFSET('Efficiency Distributions'!$D$10,MATCH($C67,'Efficiency Distributions'!$C$9:$C$87,0)+RIGHT($E72),0)\n+AB$11*OFFSET('Efficiency Distributions'!$E$10,MATCH($C67,'Efficiency Distributions'!$C$9:$C$87,0)+RIGHT($E72),0))\n/SUM(AB$10:AB$11)","v":0.18770563626976156},{"$f":"IF(INDEX(PC_MAPPING,RIGHT($C67,1),MATCH($E$2,'Data by Building Type'!$D$22:$F$22,0))=\"Yes\",1,0)*\n(AC$10*OFFSET('Efficiency Distributions'!$D$10,MATCH($C67,'Efficiency Distributions'!$C$9:$C$87,0)+RIGHT($E72),0)\n+AC$11*OFFSET('Efficiency Distributions'!$E$10,MATCH($C67,'Efficiency Distributions'!$C$9:$C$87,0)+RIGHT($E72),0))\n/SUM(AC$10:AC$11)","v":0.18770563626976156},{"$f":"IF(INDEX(PC_MAPPING,RIGHT($C67,1),MATCH($E$2,'Data by Building Type'!$D$22:$F$22,0))=\"Yes\",1,0)*\n(AD$10*OFFSET('Efficiency Distributions'!$D$10,MATCH($C67,'Efficiency Distributions'!$C$9:$C$87,0)+RIGHT($E72),0)\n+AD$11*OFFSET('Efficiency Distributions'!$E$10,MATCH($C67,'Efficiency Distributions'!$C$9:$C$87,0)+RIGHT($E72),0))\n/SUM(AD$10:AD$11)","v":0.18770563626976153},{"$f":"IF(INDEX(PC_MAPPING,RIGHT($C67,1),MATCH($E$2,'Data by Building Type'!$D$22:$F$22,0))=\"Yes\",1,0)*\n(AE$10*OFFSET('Efficiency Distributions'!$D$10,MATCH($C67,'Efficiency Distributions'!$C$9:$C$87,0)+RIGHT($E72),0)\n+AE$11*OFFSET('Efficiency Distributions'!$E$10,MATCH($C67,'Efficiency Distributions'!$C$9:$C$87,0)+RIGHT($E72),0))\n/SUM(AE$10:AE$11)","v":0.18770563626976156},{"$f":"IF(INDEX(PC_MAPPING,RIGHT($C67,1),MATCH($E$2,'Data by Building Type'!$D$22:$F$22,0))=\"Yes\",1,0)*\n(AF$10*OFFSET('Efficiency Distributions'!$D$10,MATCH($C67,'Efficiency Distributions'!$C$9:$C$87,0)+RIGHT($E72),0)\n+AF$11*OFFSET('Efficiency Distributions'!$E$10,MATCH($C67,'Efficiency Distributions'!$C$9:$C$87,0)+RIGHT($E72),0))\n/SUM(AF$10:AF$11)","v":0.18770563626976156},{"$f":"IF(INDEX(PC_MAPPING,RIGHT($C67,1),MATCH($E$2,'Data by Building Type'!$D$22:$F$22,0))=\"Yes\",1,0)*\n(AG$10*OFFSET('Efficiency Distributions'!$D$10,MATCH($C67,'Efficiency Distributions'!$C$9:$C$87,0)+RIGHT($E72),0)\n+AG$11*OFFSET('Efficiency Distributions'!$E$10,MATCH($C67,'Efficiency Distributions'!$C$9:$C$87,0)+RIGHT($E72),0))\n/SUM(AG$10:AG$11)","v":0.18770563626976153},{"$f":"IF(INDEX(PC_MAPPING,RIGHT($C67,1),MATCH($E$2,'Data by Building Type'!$D$22:$F$22,0))=\"Yes\",1,0)*\n(AH$10*OFFSET('Efficiency Distributions'!$D$10,MATCH($C67,'Efficiency Distributions'!$C$9:$C$87,0)+RIGHT($E72),0)\n+AH$11*OFFSET('Efficiency Distributions'!$E$10,MATCH($C67,'Efficiency Distributions'!$C$9:$C$87,0)+RIGHT($E72),0))\n/SUM(AH$10:AH$11)","v":0.18770563626976156},{"$f":"IF(INDEX(PC_MAPPING,RIGHT($C67,1),MATCH($E$2,'Data by Building Type'!$D$22:$F$22,0))=\"Yes\",1,0)*\n(AI$10*OFFSET('Efficiency Distributions'!$D$10,MATCH($C67,'Efficiency Distributions'!$C$9:$C$87,0)+RIGHT($E72),0)\n+AI$11*OFFSET('Efficiency Distributions'!$E$10,MATCH($C67,'Efficiency Distributions'!$C$9:$C$87,0)+RIGHT($E72),0))\n/SUM(AI$10:AI$11)","v":0.18770563626976156},{"$f":"IF(INDEX(PC_MAPPING,RIGHT($C67,1),MATCH($E$2,'Data by Building Type'!$D$22:$F$22,0))=\"Yes\",1,0)*\n(AJ$10*OFFSET('Efficiency Distributions'!$D$10,MATCH($C67,'Efficiency Distributions'!$C$9:$C$87,0)+RIGHT($E72),0)\n+AJ$11*OFFSET('Efficiency Distributions'!$E$10,MATCH($C67,'Efficiency Distributions'!$C$9:$C$87,0)+RIGHT($E72),0))\n/SUM(AJ$10:AJ$11)","v":0.18770563626976156},{"$f":"IF(INDEX(PC_MAPPING,RIGHT($C67,1),MATCH($E$2,'Data by Building Type'!$D$22:$F$22,0))=\"Yes\",1,0)*\n(AK$10*OFFSET('Efficiency Distributions'!$D$10,MATCH($C67,'Efficiency Distributions'!$C$9:$C$87,0)+RIGHT($E72),0)\n+AK$11*OFFSET('Efficiency Distributions'!$E$10,MATCH($C67,'Efficiency Distributions'!$C$9:$C$87,0)+RIGHT($E72),0))\n/SUM(AK$10:AK$11)","v":0.22075003141089608},{"$f":"IF(INDEX(PC_MAPPING,RIGHT($C67,1),MATCH($E$2,'Data by Building Type'!$D$22:$F$22,0))=\"Yes\",1,0)*\n(AL$10*OFFSET('Efficiency Distributions'!$D$10,MATCH($C67,'Efficiency Distributions'!$C$9:$C$87,0)+RIGHT($E72),0)\n+AL$11*OFFSET('Efficiency Distributions'!$E$10,MATCH($C67,'Efficiency Distributions'!$C$9:$C$87,0)+RIGHT($E72),0))\n/SUM(AL$10:AL$11)","v":0.222077216786426},{"$f":"IF(INDEX(PC_MAPPING,RIGHT($C67,1),MATCH($E$2,'Data by Building Type'!$D$22:$F$22,0))=\"Yes\",1,0)*\n(AM$10*OFFSET('Efficiency Distributions'!$D$10,MATCH($C67,'Efficiency Distributions'!$C$9:$C$87,0)+RIGHT($E72),0)\n+AM$11*OFFSET('Efficiency Distributions'!$E$10,MATCH($C67,'Efficiency Distributions'!$C$9:$C$87,0)+RIGHT($E72),0))\n/SUM(AM$10:AM$11)","v":0.25349147030275099},{"$f":"IF(INDEX(PC_MAPPING,RIGHT($C67,1),MATCH($E$2,'Data by Building Type'!$D$22:$F$22,0))=\"Yes\",1,0)*\n(AN$10*OFFSET('Efficiency Distributions'!$D$10,MATCH($C67,'Efficiency Distributions'!$C$9:$C$87,0)+RIGHT($E72),0)\n+AN$11*OFFSET('Efficiency Distributions'!$E$10,MATCH($C67,'Efficiency Distributions'!$C$9:$C$87,0)+RIGHT($E72),0))\n/SUM(AN$10:AN$11)","v":0.25188886337539335},{"$f":"IF(INDEX(PC_MAPPING,RIGHT($C67,1),MATCH($E$2,'Data by Building Type'!$D$22:$F$22,0))=\"Yes\",1,0)*\n(AO$10*OFFSET('Efficiency Distributions'!$D$10,MATCH($C67,'Efficiency Distributions'!$C$9:$C$87,0)+RIGHT($E72),0)\n+AO$11*OFFSET('Efficiency Distributions'!$E$10,MATCH($C67,'Efficiency Distributions'!$C$9:$C$87,0)+RIGHT($E72),0))\n/SUM(AO$10:AO$11)","v":0.25384149522620719},{"$f":"IF(INDEX(PC_MAPPING,RIGHT($C67,1),MATCH($E$2,'Data by Building Type'!$D$22:$F$22,0))=\"Yes\",1,0)*\n(AP$10*OFFSET('Efficiency Distributions'!$D$10,MATCH($C67,'Efficiency Distributions'!$C$9:$C$87,0)+RIGHT($E72),0)\n+AP$11*OFFSET('Efficiency Distributions'!$E$10,MATCH($C67,'Efficiency Distributions'!$C$9:$C$87,0)+RIGHT($E72),0))\n/SUM(AP$10:AP$11)","v":0.25784610407600372},{"$f":"IF(INDEX(PC_MAPPING,RIGHT($C67,1),MATCH($E$2,'Data by Building Type'!$D$22:$F$22,0))=\"Yes\",1,0)*\n(AQ$10*OFFSET('Efficiency Distributions'!$D$10,MATCH($C67,'Efficiency Distributions'!$C$9:$C$87,0)+RIGHT($E72),0)\n+AQ$11*OFFSET('Efficiency Distributions'!$E$10,MATCH($C67,'Efficiency Distributions'!$C$9:$C$87,0)+RIGHT($E72),0))\n/SUM(AQ$10:AQ$11)","v":0.26191409083585643},{"$f":"IF(INDEX(PC_MAPPING,RIGHT($C67,1),MATCH($E$2,'Data by Building Type'!$D$22:$F$22,0))=\"Yes\",1,0)*\n(AR$10*OFFSET('Efficiency Distributions'!$D$10,MATCH($C67,'Efficiency Distributions'!$C$9:$C$87,0)+RIGHT($E72),0)\n+AR$11*OFFSET('Efficiency Distributions'!$E$10,MATCH($C67,'Efficiency Distributions'!$C$9:$C$87,0)+RIGHT($E72),0))\n/SUM(AR$10:AR$11)","v":0.26106542273504674},{"$f":"IF(INDEX(PC_MAPPING,RIGHT($C67,1),MATCH($E$2,'Data by Building Type'!$D$22:$F$22,0))=\"Yes\",1,0)*\n(AS$10*OFFSET('Efficiency Distributions'!$D$10,MATCH($C67,'Efficiency Distributions'!$C$9:$C$87,0)+RIGHT($E72),0)\n+AS$11*OFFSET('Efficiency Distributions'!$E$10,MATCH($C67,'Efficiency Distributions'!$C$9:$C$87,0)+RIGHT($E72),0))\n/SUM(AS$10:AS$11)","v":0.2750561361588878},{"$f":"IF(INDEX(PC_MAPPING,RIGHT($C67,1),MATCH($E$2,'Data by Building Type'!$D$22:$F$22,0))=\"Yes\",1,0)*\n(AT$10*OFFSET('Efficiency Distributions'!$D$10,MATCH($C67,'Efficiency Distributions'!$C$9:$C$87,0)+RIGHT($E72),0)\n+AT$11*OFFSET('Efficiency Distributions'!$E$10,MATCH($C67,'Efficiency Distributions'!$C$9:$C$87,0)+RIGHT($E72),0))\n/SUM(AT$10:AT$11)","v":0.28984373717964296},{"$f":"IF(INDEX(PC_MAPPING,RIGHT($C67,1),MATCH($E$2,'Data by Building Type'!$D$22:$F$22,0))=\"Yes\",1,0)*\n(AU$10*OFFSET('Efficiency Distributions'!$D$10,MATCH($C67,'Efficiency Distributions'!$C$9:$C$87,0)+RIGHT($E72),0)\n+AU$11*OFFSET('Efficiency Distributions'!$E$10,MATCH($C67,'Efficiency Distributions'!$C$9:$C$87,0)+RIGHT($E72),0))\n/SUM(AU$10:AU$11)","v":0.29447849521867359},{"$f":"IF(INDEX(PC_MAPPING,RIGHT($C67,1),MATCH($E$2,'Data by Building Type'!$D$22:$F$22,0))=\"Yes\",1,0)*\n(AV$10*OFFSET('Efficiency Distributions'!$D$10,MATCH($C67,'Efficiency Distributions'!$C$9:$C$87,0)+RIGHT($E72),0)\n+AV$11*OFFSET('Efficiency Distributions'!$E$10,MATCH($C67,'Efficiency Distributions'!$C$9:$C$87,0)+RIGHT($E72),0))\n/SUM(AV$10:AV$11)","v":0.26141780216655064},{"$f":"IF(INDEX(PC_MAPPING,RIGHT($C67,1),MATCH($E$2,'Data by Building Type'!$D$22:$F$22,0))=\"Yes\",1,0)*\n(AW$10*OFFSET('Efficiency Distributions'!$D$10,MATCH($C67,'Efficiency Distributions'!$C$9:$C$87,0)+RIGHT($E72),0)\n+AW$11*OFFSET('Efficiency Distributions'!$E$10,MATCH($C67,'Efficiency Distributions'!$C$9:$C$87,0)+RIGHT($E72),0))\n/SUM(AW$10:AW$11)","v":0.27231583532994713},{"$f":"IF(INDEX(PC_MAPPING,RIGHT($C67,1),MATCH($E$2,'Data by Building Type'!$D$22:$F$22,0))=\"Yes\",1,0)*\n(AX$10*OFFSET('Efficiency Distributions'!$D$10,MATCH($C67,'Efficiency Distributions'!$C$9:$C$87,0)+RIGHT($E72),0)\n+AX$11*OFFSET('Efficiency Distributions'!$E$10,MATCH($C67,'Efficiency Distributions'!$C$9:$C$87,0)+RIGHT($E72),0))\n/SUM(AX$10:AX$11)","v":0.26635702598240535},{"$f":"IF(INDEX(PC_MAPPING,RIGHT($C67,1),MATCH($E$2,'Data by Building Type'!$D$22:$F$22,0))=\"Yes\",1,0)*\n(AY$10*OFFSET('Efficiency Distributions'!$D$10,MATCH($C67,'Efficiency Distributions'!$C$9:$C$87,0)+RIGHT($E72),0)\n+AY$11*OFFSET('Efficiency Distributions'!$E$10,MATCH($C67,'Efficiency Distributions'!$C$9:$C$87,0)+RIGHT($E72),0))\n/SUM(AY$10:AY$11)","v":0.2563370784751931},{"$f":"IF(INDEX(PC_MAPPING,RIGHT($C67,1),MATCH($E$2,'Data by Building Type'!$D$22:$F$22,0))=\"Yes\",1,0)*\n(AZ$10*OFFSET('Efficiency Distributions'!$D$10,MATCH($C67,'Efficiency Distributions'!$C$9:$C$87,0)+RIGHT($E72),0)\n+AZ$11*OFFSET('Efficiency Distributions'!$E$10,MATCH($C67,'Efficiency Distributions'!$C$9:$C$87,0)+RIGHT($E72),0))\n/SUM(AZ$10:AZ$11)","v":0.24227827191396073},{"$f":"IF(INDEX(PC_MAPPING,RIGHT($C67,1),MATCH($E$2,'Data by Building Type'!$D$22:$F$22,0))=\"Yes\",1,0)*\n(BA$10*OFFSET('Efficiency Distributions'!$D$10,MATCH($C67,'Efficiency Distributions'!$C$9:$C$87,0)+RIGHT($E72),0)\n+BA$11*OFFSET('Efficiency Distributions'!$E$10,MATCH($C67,'Efficiency Distributions'!$C$9:$C$87,0)+RIGHT($E72),0))\n/SUM(BA$10:BA$11)","v":0.2481398667053587},{"$f":"IF(INDEX(PC_MAPPING,RIGHT($C67,1),MATCH($E$2,'Data by Building Type'!$D$22:$F$22,0))=\"Yes\",1,0)*\n(BB$10*OFFSET('Efficiency Distributions'!$D$10,MATCH($C67,'Efficiency Distributions'!$C$9:$C$87,0)+RIGHT($E72),0)\n+BB$11*OFFSET('Efficiency Distributions'!$E$10,MATCH($C67,'Efficiency Distributions'!$C$9:$C$87,0)+RIGHT($E72),0))\n/SUM(BB$10:BB$11)","v":0.25046576920254421},{"$f":"IF(INDEX(PC_MAPPING,RIGHT($C67,1),MATCH($E$2,'Data by Building Type'!$D$22:$F$22,0))=\"Yes\",1,0)*\n(BC$10*OFFSET('Efficiency Distributions'!$D$10,MATCH($C67,'Efficiency Distributions'!$C$9:$C$87,0)+RIGHT($E72),0)\n+BC$11*OFFSET('Efficiency Distributions'!$E$10,MATCH($C67,'Efficiency Distributions'!$C$9:$C$87,0)+RIGHT($E72),0))\n/SUM(BC$10:BC$11)","v":0.24894266288373895},{"$f":"IF(INDEX(PC_MAPPING,RIGHT($C67,1),MATCH($E$2,'Data by Building Type'!$D$22:$F$22,0))=\"Yes\",1,0)*\n(BD$10*OFFSET('Efficiency Distributions'!$D$10,MATCH($C67,'Efficiency Distributions'!$C$9:$C$87,0)+RIGHT($E72),0)\n+BD$11*OFFSET('Efficiency Distributions'!$E$10,MATCH($C67,'Efficiency Distributions'!$C$9:$C$87,0)+RIGHT($E72),0))\n/SUM(BD$10:BD$11)","v":0.23935020836555196},{"$f":"IF(INDEX(PC_MAPPING,RIGHT($C67,1),MATCH($E$2,'Data by Building Type'!$D$22:$F$22,0))=\"Yes\",1,0)*\n(BE$10*OFFSET('Efficiency Distributions'!$D$10,MATCH($C67,'Efficiency Distributions'!$C$9:$C$87,0)+RIGHT($E72),0)\n+BE$11*OFFSET('Efficiency Distributions'!$E$10,MATCH($C67,'Efficiency Distributions'!$C$9:$C$87,0)+RIGHT($E72),0))\n/SUM(BE$10:BE$11)","v":0.24486450805968007},{"$f":"IF(INDEX(PC_MAPPING,RIGHT($C67,1),MATCH($E$2,'Data by Building Type'!$D$22:$F$22,0))=\"Yes\",1,0)*\n(BF$10*OFFSET('Efficiency Distributions'!$D$10,MATCH($C67,'Efficiency Distributions'!$C$9:$C$87,0)+RIGHT($E72),0)\n+BF$11*OFFSET('Efficiency Distributions'!$E$10,MATCH($C67,'Efficiency Distributions'!$C$9:$C$87,0)+RIGHT($E72),0))\n/SUM(BF$10:BF$11)","v":0.22699299628756348},{"$f":"IF(INDEX(PC_MAPPING,RIGHT($C67,1),MATCH($E$2,'Data by Building Type'!$D$22:$F$22,0))=\"Yes\",1,0)*\n(BG$10*OFFSET('Efficiency Distributions'!$D$10,MATCH($C67,'Efficiency Distributions'!$C$9:$C$87,0)+RIGHT($E72),0)\n+BG$11*OFFSET('Efficiency Distributions'!$E$10,MATCH($C67,'Efficiency Distributions'!$C$9:$C$87,0)+RIGHT($E72),0))\n/SUM(BG$10:BG$11)","v":0.22681633996493533}]
[null,null,null,null,"EL2",{"$f":"IF(INDEX(PC_MAPPING,RIGHT($C67,1),MATCH($E$2,'Data by Building Type'!$D$22:$F$22,0))=\"Yes\",1,0)*\n(F$10*OFFSET('Efficiency Distributions'!$D$10,MATCH($C67,'Efficiency Distributions'!$C$9:$C$87,0)+RIGHT($E73),0)\n+F$11*OFFSET('Efficiency Distributions'!$E$10,MATCH($C67,'Efficiency Distributions'!$C$9:$C$87,0)+RIGHT($E73),0))\n/SUM(F$10:F$11)","v":0},{"$f":"IF(INDEX(PC_MAPPING,RIGHT($C67,1),MATCH($E$2,'Data by Building Type'!$D$22:$F$22,0))=\"Yes\",1,0)*\n(G$10*OFFSET('Efficiency Distributions'!$D$10,MATCH($C67,'Efficiency Distributions'!$C$9:$C$87,0)+RIGHT($E73),0)\n+G$11*OFFSET('Efficiency Distributions'!$E$10,MATCH($C67,'Efficiency Distributions'!$C$9:$C$87,0)+RIGHT($E73),0))\n/SUM(G$10:G$11)","v":0},{"$f":"IF(INDEX(PC_MAPPING,RIGHT($C67,1),MATCH($E$2,'Data by Building Type'!$D$22:$F$22,0))=\"Yes\",1,0)*\n(H$10*OFFSET('Efficiency Distributions'!$D$10,MATCH($C67,'Efficiency Distributions'!$C$9:$C$87,0)+RIGHT($E73),0)\n+H$11*OFFSET('Efficiency Distributions'!$E$10,MATCH($C67,'Efficiency Distributions'!$C$9:$C$87,0)+RIGHT($E73),0))\n/SUM(H$10:H$11)","v":0},{"$f":"IF(INDEX(PC_MAPPING,RIGHT($C67,1),MATCH($E$2,'Data by Building Type'!$D$22:$F$22,0))=\"Yes\",1,0)*\n(I$10*OFFSET('Efficiency Distributions'!$D$10,MATCH($C67,'Efficiency Distributions'!$C$9:$C$87,0)+RIGHT($E73),0)\n+I$11*OFFSET('Efficiency Distributions'!$E$10,MATCH($C67,'Efficiency Distributions'!$C$9:$C$87,0)+RIGHT($E73),0))\n/SUM(I$10:I$11)","v":0},{"$f":"IF(INDEX(PC_MAPPING,RIGHT($C67,1),MATCH($E$2,'Data by Building Type'!$D$22:$F$22,0))=\"Yes\",1,0)*\n(J$10*OFFSET('Efficiency Distributions'!$D$10,MATCH($C67,'Efficiency Distributions'!$C$9:$C$87,0)+RIGHT($E73),0)\n+J$11*OFFSET('Efficiency Distributions'!$E$10,MATCH($C67,'Efficiency Distributions'!$C$9:$C$87,0)+RIGHT($E73),0))\n/SUM(J$10:J$11)","v":0},{"$f":"IF(INDEX(PC_MAPPING,RIGHT($C67,1),MATCH($E$2,'Data by Building Type'!$D$22:$F$22,0))=\"Yes\",1,0)*\n(K$10*OFFSET('Efficiency Distributions'!$D$10,MATCH($C67,'Efficiency Distributions'!$C$9:$C$87,0)+RIGHT($E73),0)\n+K$11*OFFSET('Efficiency Distributions'!$E$10,MATCH($C67,'Efficiency Distributions'!$C$9:$C$87,0)+RIGHT($E73),0))\n/SUM(K$10:K$11)","v":0},{"$f":"IF(INDEX(PC_MAPPING,RIGHT($C67,1),MATCH($E$2,'Data by Building Type'!$D$22:$F$22,0))=\"Yes\",1,0)*\n(L$10*OFFSET('Efficiency Distributions'!$D$10,MATCH($C67,'Efficiency Distributions'!$C$9:$C$87,0)+RIGHT($E73),0)\n+L$11*OFFSET('Efficiency Distributions'!$E$10,MATCH($C67,'Efficiency Distributions'!$C$9:$C$87,0)+RIGHT($E73),0))\n/SUM(L$10:L$11)","v":0},{"$f":"IF(INDEX(PC_MAPPING,RIGHT($C67,1),MATCH($E$2,'Data by Building Type'!$D$22:$F$22,0))=\"Yes\",1,0)*\n(M$10*OFFSET('Efficiency Distributions'!$D$10,MATCH($C67,'Efficiency Distributions'!$C$9:$C$87,0)+RIGHT($E73),0)\n+M$11*OFFSET('Efficiency Distributions'!$E$10,MATCH($C67,'Efficiency Distributions'!$C$9:$C$87,0)+RIGHT($E73),0))\n/SUM(M$10:M$11)","v":0},{"$f":"IF(INDEX(PC_MAPPING,RIGHT($C67,1),MATCH($E$2,'Data by Building Type'!$D$22:$F$22,0))=\"Yes\",1,0)*\n(N$10*OFFSET('Efficiency Distributions'!$D$10,MATCH($C67,'Efficiency Distributions'!$C$9:$C$87,0)+RIGHT($E73),0)\n+N$11*OFFSET('Efficiency Distributions'!$E$10,MATCH($C67,'Efficiency Distributions'!$C$9:$C$87,0)+RIGHT($E73),0))\n/SUM(N$10:N$11)","v":0},{"$f":"IF(INDEX(PC_MAPPING,RIGHT($C67,1),MATCH($E$2,'Data by Building Type'!$D$22:$F$22,0))=\"Yes\",1,0)*\n(O$10*OFFSET('Efficiency Distributions'!$D$10,MATCH($C67,'Efficiency Distributions'!$C$9:$C$87,0)+RIGHT($E73),0)\n+O$11*OFFSET('Efficiency Distributions'!$E$10,MATCH($C67,'Efficiency Distributions'!$C$9:$C$87,0)+RIGHT($E73),0))\n/SUM(O$10:O$11)","v":0},{"$f":"IF(INDEX(PC_MAPPING,RIGHT($C67,1),MATCH($E$2,'Data by Building Type'!$D$22:$F$22,0))=\"Yes\",1,0)*\n(P$10*OFFSET('Efficiency Distributions'!$D$10,MATCH($C67,'Efficiency Distributions'!$C$9:$C$87,0)+RIGHT($E73),0)\n+P$11*OFFSET('Efficiency Distributions'!$E$10,MATCH($C67,'Efficiency Distributions'!$C$9:$C$87,0)+RIGHT($E73),0))\n/SUM(P$10:P$11)","v":0},{"$f":"IF(INDEX(PC_MAPPING,RIGHT($C67,1),MATCH($E$2,'Data by Building Type'!$D$22:$F$22,0))=\"Yes\",1,0)*\n(Q$10*OFFSET('Efficiency Distributions'!$D$10,MATCH($C67,'Efficiency Distributions'!$C$9:$C$87,0)+RIGHT($E73),0)\n+Q$11*OFFSET('Efficiency Distributions'!$E$10,MATCH($C67,'Efficiency Distributions'!$C$9:$C$87,0)+RIGHT($E73),0))\n/SUM(Q$10:Q$11)","v":0},{"$f":"IF(INDEX(PC_MAPPING,RIGHT($C67,1),MATCH($E$2,'Data by Building Type'!$D$22:$F$22,0))=\"Yes\",1,0)*\n(R$10*OFFSET('Efficiency Distributions'!$D$10,MATCH($C67,'Efficiency Distributions'!$C$9:$C$87,0)+RIGHT($E73),0)\n+R$11*OFFSET('Efficiency Distributions'!$E$10,MATCH($C67,'Efficiency Distributions'!$C$9:$C$87,0)+RIGHT($E73),0))\n/SUM(R$10:R$11)","v":0},{"$f":"IF(INDEX(PC_MAPPING,RIGHT($C67,1),MATCH($E$2,'Data by Building Type'!$D$22:$F$22,0))=\"Yes\",1,0)*\n(S$10*OFFSET('Efficiency Distributions'!$D$10,MATCH($C67,'Efficiency Distributions'!$C$9:$C$87,0)+RIGHT($E73),0)\n+S$11*OFFSET('Efficiency Distributions'!$E$10,MATCH($C67,'Efficiency Distributions'!$C$9:$C$87,0)+RIGHT($E73),0))\n/SUM(S$10:S$11)","v":0},{"$f":"IF(INDEX(PC_MAPPING,RIGHT($C67,1),MATCH($E$2,'Data by Building Type'!$D$22:$F$22,0))=\"Yes\",1,0)*\n(T$10*OFFSET('Efficiency Distributions'!$D$10,MATCH($C67,'Efficiency Distributions'!$C$9:$C$87,0)+RIGHT($E73),0)\n+T$11*OFFSET('Efficiency Distributions'!$E$10,MATCH($C67,'Efficiency Distributions'!$C$9:$C$87,0)+RIGHT($E73),0))\n/SUM(T$10:T$11)","v":0},{"$f":"IF(INDEX(PC_MAPPING,RIGHT($C67,1),MATCH($E$2,'Data by Building Type'!$D$22:$F$22,0))=\"Yes\",1,0)*\n(U$10*OFFSET('Efficiency Distributions'!$D$10,MATCH($C67,'Efficiency Distributions'!$C$9:$C$87,0)+RIGHT($E73),0)\n+U$11*OFFSET('Efficiency Distributions'!$E$10,MATCH($C67,'Efficiency Distributions'!$C$9:$C$87,0)+RIGHT($E73),0))\n/SUM(U$10:U$11)","v":0},{"$f":"IF(INDEX(PC_MAPPING,RIGHT($C67,1),MATCH($E$2,'Data by Building Type'!$D$22:$F$22,0))=\"Yes\",1,0)*\n(V$10*OFFSET('Efficiency Distributions'!$D$10,MATCH($C67,'Efficiency Distributions'!$C$9:$C$87,0)+RIGHT($E73),0)\n+V$11*OFFSET('Efficiency Distributions'!$E$10,MATCH($C67,'Efficiency Distributions'!$C$9:$C$87,0)+RIGHT($E73),0))\n/SUM(V$10:V$11)","v":0},{"$f":"IF(INDEX(PC_MAPPING,RIGHT($C67,1),MATCH($E$2,'Data by Building Type'!$D$22:$F$22,0))=\"Yes\",1,0)*\n(W$10*OFFSET('Efficiency Distributions'!$D$10,MATCH($C67,'Efficiency Distributions'!$C$9:$C$87,0)+RIGHT($E73),0)\n+W$11*OFFSET('Efficiency Distributions'!$E$10,MATCH($C67,'Efficiency Distributions'!$C$9:$C$87,0)+RIGHT($E73),0))\n/SUM(W$10:W$11)","v":0},{"$f":"IF(INDEX(PC_MAPPING,RIGHT($C67,1),MATCH($E$2,'Data by Building Type'!$D$22:$F$22,0))=\"Yes\",1,0)*\n(X$10*OFFSET('Efficiency Distributions'!$D$10,MATCH($C67,'Efficiency Distributions'!$C$9:$C$87,0)+RIGHT($E73),0)\n+X$11*OFFSET('Efficiency Distributions'!$E$10,MATCH($C67,'Efficiency Distributions'!$C$9:$C$87,0)+RIGHT($E73),0))\n/SUM(X$10:X$11)","v":0},{"$f":"IF(INDEX(PC_MAPPING,RIGHT($C67,1),MATCH($E$2,'Data by Building Type'!$D$22:$F$22,0))=\"Yes\",1,0)*\n(Y$10*OFFSET('Efficiency Distributions'!$D$10,MATCH($C67,'Efficiency Distributions'!$C$9:$C$87,0)+RIGHT($E73),0)\n+Y$11*OFFSET('Efficiency Distributions'!$E$10,MATCH($C67,'Efficiency Distributions'!$C$9:$C$87,0)+RIGHT($E73),0))\n/SUM(Y$10:Y$11)","v":0},{"$f":"IF(INDEX(PC_MAPPING,RIGHT($C67,1),MATCH($E$2,'Data by Building Type'!$D$22:$F$22,0))=\"Yes\",1,0)*\n(Z$10*OFFSET('Efficiency Distributions'!$D$10,MATCH($C67,'Efficiency Distributions'!$C$9:$C$87,0)+RIGHT($E73),0)\n+Z$11*OFFSET('Efficiency Distributions'!$E$10,MATCH($C67,'Efficiency Distributions'!$C$9:$C$87,0)+RIGHT($E73),0))\n/SUM(Z$10:Z$11)","v":0},{"$f":"IF(INDEX(PC_MAPPING,RIGHT($C67,1),MATCH($E$2,'Data by Building Type'!$D$22:$F$22,0))=\"Yes\",1,0)*\n(AA$10*OFFSET('Efficiency Distributions'!$D$10,MATCH($C67,'Efficiency Distributions'!$C$9:$C$87,0)+RIGHT($E73),0)\n+AA$11*OFFSET('Efficiency Distributions'!$E$10,MATCH($C67,'Efficiency Distributions'!$C$9:$C$87,0)+RIGHT($E73),0))\n/SUM(AA$10:AA$11)","v":0},{"$f":"IF(INDEX(PC_MAPPING,RIGHT($C67,1),MATCH($E$2,'Data by Building Type'!$D$22:$F$22,0))=\"Yes\",1,0)*\n(AB$10*OFFSET('Efficiency Distributions'!$D$10,MATCH($C67,'Efficiency Distributions'!$C$9:$C$87,0)+RIGHT($E73),0)\n+AB$11*OFFSET('Efficiency Distributions'!$E$10,MATCH($C67,'Efficiency Distributions'!$C$9:$C$87,0)+RIGHT($E73),0))\n/SUM(AB$10:AB$11)","v":0},{"$f":"IF(INDEX(PC_MAPPING,RIGHT($C67,1),MATCH($E$2,'Data by Building Type'!$D$22:$F$22,0))=\"Yes\",1,0)*\n(AC$10*OFFSET('Efficiency Distributions'!$D$10,MATCH($C67,'Efficiency Distributions'!$C$9:$C$87,0)+RIGHT($E73),0)\n+AC$11*OFFSET('Efficiency Distributions'!$E$10,MATCH($C67,'Efficiency Distributions'!$C$9:$C$87,0)+RIGHT($E73),0))\n/SUM(AC$10:AC$11)","v":0},{"$f":"IF(INDEX(PC_MAPPING,RIGHT($C67,1),MATCH($E$2,'Data by Building Type'!$D$22:$F$22,0))=\"Yes\",1,0)*\n(AD$10*OFFSET('Efficiency Distributions'!$D$10,MATCH($C67,'Efficiency Distributions'!$C$9:$C$87,0)+RIGHT($E73),0)\n+AD$11*OFFSET('Efficiency Distributions'!$E$10,MATCH($C67,'Efficiency Distributions'!$C$9:$C$87,0)+RIGHT($E73),0))\n/SUM(AD$10:AD$11)","v":0},{"$f":"IF(INDEX(PC_MAPPING,RIGHT($C67,1),MATCH($E$2,'Data by Building Type'!$D$22:$F$22,0))=\"Yes\",1,0)*\n(AE$10*OFFSET('Efficiency Distributions'!$D$10,MATCH($C67,'Efficiency Distributions'!$C$9:$C$87,0)+RIGHT($E73),0)\n+AE$11*OFFSET('Efficiency Distributions'!$E$10,MATCH($C67,'Efficiency Distributions'!$C$9:$C$87,0)+RIGHT($E73),0))\n/SUM(AE$10:AE$11)","v":0},{"$f":"IF(INDEX(PC_MAPPING,RIGHT($C67,1),MATCH($E$2,'Data by Building Type'!$D$22:$F$22,0))=\"Yes\",1,0)*\n(AF$10*OFFSET('Efficiency Distributions'!$D$10,MATCH($C67,'Efficiency Distributions'!$C$9:$C$87,0)+RIGHT($E73),0)\n+AF$11*OFFSET('Efficiency Distributions'!$E$10,MATCH($C67,'Efficiency Distributions'!$C$9:$C$87,0)+RIGHT($E73),0))\n/SUM(AF$10:AF$11)","v":0},{"$f":"IF(INDEX(PC_MAPPING,RIGHT($C67,1),MATCH($E$2,'Data by Building Type'!$D$22:$F$22,0))=\"Yes\",1,0)*\n(AG$10*OFFSET('Efficiency Distributions'!$D$10,MATCH($C67,'Efficiency Distributions'!$C$9:$C$87,0)+RIGHT($E73),0)\n+AG$11*OFFSET('Efficiency Distributions'!$E$10,MATCH($C67,'Efficiency Distributions'!$C$9:$C$87,0)+RIGHT($E73),0))\n/SUM(AG$10:AG$11)","v":0},{"$f":"IF(INDEX(PC_MAPPING,RIGHT($C67,1),MATCH($E$2,'Data by Building Type'!$D$22:$F$22,0))=\"Yes\",1,0)*\n(AH$10*OFFSET('Efficiency Distributions'!$D$10,MATCH($C67,'Efficiency Distributions'!$C$9:$C$87,0)+RIGHT($E73),0)\n+AH$11*OFFSET('Efficiency Distributions'!$E$10,MATCH($C67,'Efficiency Distributions'!$C$9:$C$87,0)+RIGHT($E73),0))\n/SUM(AH$10:AH$11)","v":0},{"$f":"IF(INDEX(PC_MAPPING,RIGHT($C67,1),MATCH($E$2,'Data by Building Type'!$D$22:$F$22,0))=\"Yes\",1,0)*\n(AI$10*OFFSET('Efficiency Distributions'!$D$10,MATCH($C67,'Efficiency Distributions'!$C$9:$C$87,0)+RIGHT($E73),0)\n+AI$11*OFFSET('Efficiency Distributions'!$E$10,MATCH($C67,'Efficiency Distributions'!$C$9:$C$87,0)+RIGHT($E73),0))\n/SUM(AI$10:AI$11)","v":0},{"$f":"IF(INDEX(PC_MAPPING,RIGHT($C67,1),MATCH($E$2,'Data by Building Type'!$D$22:$F$22,0))=\"Yes\",1,0)*\n(AJ$10*OFFSET('Efficiency Distributions'!$D$10,MATCH($C67,'Efficiency Distributions'!$C$9:$C$87,0)+RIGHT($E73),0)\n+AJ$11*OFFSET('Efficiency Distributions'!$E$10,MATCH($C67,'Efficiency Distributions'!$C$9:$C$87,0)+RIGHT($E73),0))\n/SUM(AJ$10:AJ$11)","v":0},{"$f":"IF(INDEX(PC_MAPPING,RIGHT($C67,1),MATCH($E$2,'Data by Building Type'!$D$22:$F$22,0))=\"Yes\",1,0)*\n(AK$10*OFFSET('Efficiency Distributions'!$D$10,MATCH($C67,'Efficiency Distributions'!$C$9:$C$87,0)+RIGHT($E73),0)\n+AK$11*OFFSET('Efficiency Distributions'!$E$10,MATCH($C67,'Efficiency Distributions'!$C$9:$C$87,0)+RIGHT($E73),0))\n/SUM(AK$10:AK$11)","v":0},{"$f":"IF(INDEX(PC_MAPPING,RIGHT($C67,1),MATCH($E$2,'Data by Building Type'!$D$22:$F$22,0))=\"Yes\",1,0)*\n(AL$10*OFFSET('Efficiency Distributions'!$D$10,MATCH($C67,'Efficiency Distributions'!$C$9:$C$87,0)+RIGHT($E73),0)\n+AL$11*OFFSET('Efficiency Distributions'!$E$10,MATCH($C67,'Efficiency Distributions'!$C$9:$C$87,0)+RIGHT($E73),0))\n/SUM(AL$10:AL$11)","v":0},{"$f":"IF(INDEX(PC_MAPPING,RIGHT($C67,1),MATCH($E$2,'Data by Building Type'!$D$22:$F$22,0))=\"Yes\",1,0)*\n(AM$10*OFFSET('Efficiency Distributions'!$D$10,MATCH($C67,'Efficiency Distributions'!$C$9:$C$87,0)+RIGHT($E73),0)\n+AM$11*OFFSET('Efficiency Distributions'!$E$10,MATCH($C67,'Efficiency Distributions'!$C$9:$C$87,0)+RIGHT($E73),0))\n/SUM(AM$10:AM$11)","v":0},{"$f":"IF(INDEX(PC_MAPPING,RIGHT($C67,1),MATCH($E$2,'Data by Building Type'!$D$22:$F$22,0))=\"Yes\",1,0)*\n(AN$10*OFFSET('Efficiency Distributions'!$D$10,MATCH($C67,'Efficiency Distributions'!$C$9:$C$87,0)+RIGHT($E73),0)\n+AN$11*OFFSET('Efficiency Distributions'!$E$10,MATCH($C67,'Efficiency Distributions'!$C$9:$C$87,0)+RIGHT($E73),0))\n/SUM(AN$10:AN$11)","v":0},{"$f":"IF(INDEX(PC_MAPPING,RIGHT($C67,1),MATCH($E$2,'Data by Building Type'!$D$22:$F$22,0))=\"Yes\",1,0)*\n(AO$10*OFFSET('Efficiency Distributions'!$D$10,MATCH($C67,'Efficiency Distributions'!$C$9:$C$87,0)+RIGHT($E73),0)\n+AO$11*OFFSET('Efficiency Distributions'!$E$10,MATCH($C67,'Efficiency Distributions'!$C$9:$C$87,0)+RIGHT($E73),0))\n/SUM(AO$10:AO$11)","v":0},{"$f":"IF(INDEX(PC_MAPPING,RIGHT($C67,1),MATCH($E$2,'Data by Building Type'!$D$22:$F$22,0))=\"Yes\",1,0)*\n(AP$10*OFFSET('Efficiency Distributions'!$D$10,MATCH($C67,'Efficiency Distributions'!$C$9:$C$87,0)+RIGHT($E73),0)\n+AP$11*OFFSET('Efficiency Distributions'!$E$10,MATCH($C67,'Efficiency Distributions'!$C$9:$C$87,0)+RIGHT($E73),0))\n/SUM(AP$10:AP$11)","v":0},{"$f":"IF(INDEX(PC_MAPPING,RIGHT($C67,1),MATCH($E$2,'Data by Building Type'!$D$22:$F$22,0))=\"Yes\",1,0)*\n(AQ$10*OFFSET('Efficiency Distributions'!$D$10,MATCH($C67,'Efficiency Distributions'!$C$9:$C$87,0)+RIGHT($E73),0)\n+AQ$11*OFFSET('Efficiency Distributions'!$E$10,MATCH($C67,'Efficiency Distributions'!$C$9:$C$87,0)+RIGHT($E73),0))\n/SUM(AQ$10:AQ$11)","v":0},{"$f":"IF(INDEX(PC_MAPPING,RIGHT($C67,1),MATCH($E$2,'Data by Building Type'!$D$22:$F$22,0))=\"Yes\",1,0)*\n(AR$10*OFFSET('Efficiency Distributions'!$D$10,MATCH($C67,'Efficiency Distributions'!$C$9:$C$87,0)+RIGHT($E73),0)\n+AR$11*OFFSET('Efficiency Distributions'!$E$10,MATCH($C67,'Efficiency Distributions'!$C$9:$C$87,0)+RIGHT($E73),0))\n/SUM(AR$10:AR$11)","v":0},{"$f":"IF(INDEX(PC_MAPPING,RIGHT($C67,1),MATCH($E$2,'Data by Building Type'!$D$22:$F$22,0))=\"Yes\",1,0)*\n(AS$10*OFFSET('Efficiency Distributions'!$D$10,MATCH($C67,'Efficiency Distributions'!$C$9:$C$87,0)+RIGHT($E73),0)\n+AS$11*OFFSET('Efficiency Distributions'!$E$10,MATCH($C67,'Efficiency Distributions'!$C$9:$C$87,0)+RIGHT($E73),0))\n/SUM(AS$10:AS$11)","v":0},{"$f":"IF(INDEX(PC_MAPPING,RIGHT($C67,1),MATCH($E$2,'Data by Building Type'!$D$22:$F$22,0))=\"Yes\",1,0)*\n(AT$10*OFFSET('Efficiency Distributions'!$D$10,MATCH($C67,'Efficiency Distributions'!$C$9:$C$87,0)+RIGHT($E73),0)\n+AT$11*OFFSET('Efficiency Distributions'!$E$10,MATCH($C67,'Efficiency Distributions'!$C$9:$C$87,0)+RIGHT($E73),0))\n/SUM(AT$10:AT$11)","v":0},{"$f":"IF(INDEX(PC_MAPPING,RIGHT($C67,1),MATCH($E$2,'Data by Building Type'!$D$22:$F$22,0))=\"Yes\",1,0)*\n(AU$10*OFFSET('Efficiency Distributions'!$D$10,MATCH($C67,'Efficiency Distributions'!$C$9:$C$87,0)+RIGHT($E73),0)\n+AU$11*OFFSET('Efficiency Distributions'!$E$10,MATCH($C67,'Efficiency Distributions'!$C$9:$C$87,0)+RIGHT($E73),0))\n/SUM(AU$10:AU$11)","v":0},{"$f":"IF(INDEX(PC_MAPPING,RIGHT($C67,1),MATCH($E$2,'Data by Building Type'!$D$22:$F$22,0))=\"Yes\",1,0)*\n(AV$10*OFFSET('Efficiency Distributions'!$D$10,MATCH($C67,'Efficiency Distributions'!$C$9:$C$87,0)+RIGHT($E73),0)\n+AV$11*OFFSET('Efficiency Distributions'!$E$10,MATCH($C67,'Efficiency Distributions'!$C$9:$C$87,0)+RIGHT($E73),0))\n/SUM(AV$10:AV$11)","v":0},{"$f":"IF(INDEX(PC_MAPPING,RIGHT($C67,1),MATCH($E$2,'Data by Building Type'!$D$22:$F$22,0))=\"Yes\",1,0)*\n(AW$10*OFFSET('Efficiency Distributions'!$D$10,MATCH($C67,'Efficiency Distributions'!$C$9:$C$87,0)+RIGHT($E73),0)\n+AW$11*OFFSET('Efficiency Distributions'!$E$10,MATCH($C67,'Efficiency Distributions'!$C$9:$C$87,0)+RIGHT($E73),0))\n/SUM(AW$10:AW$11)","v":0},{"$f":"IF(INDEX(PC_MAPPING,RIGHT($C67,1),MATCH($E$2,'Data by Building Type'!$D$22:$F$22,0))=\"Yes\",1,0)*\n(AX$10*OFFSET('Efficiency Distributions'!$D$10,MATCH($C67,'Efficiency Distributions'!$C$9:$C$87,0)+RIGHT($E73),0)\n+AX$11*OFFSET('Efficiency Distributions'!$E$10,MATCH($C67,'Efficiency Distributions'!$C$9:$C$87,0)+RIGHT($E73),0))\n/SUM(AX$10:AX$11)","v":0},{"$f":"IF(INDEX(PC_MAPPING,RIGHT($C67,1),MATCH($E$2,'Data by Building Type'!$D$22:$F$22,0))=\"Yes\",1,0)*\n(AY$10*OFFSET('Efficiency Distributions'!$D$10,MATCH($C67,'Efficiency Distributions'!$C$9:$C$87,0)+RIGHT($E73),0)\n+AY$11*OFFSET('Efficiency Distributions'!$E$10,MATCH($C67,'Efficiency Distributions'!$C$9:$C$87,0)+RIGHT($E73),0))\n/SUM(AY$10:AY$11)","v":0},{"$f":"IF(INDEX(PC_MAPPING,RIGHT($C67,1),MATCH($E$2,'Data by Building Type'!$D$22:$F$22,0))=\"Yes\",1,0)*\n(AZ$10*OFFSET('Efficiency Distributions'!$D$10,MATCH($C67,'Efficiency Distributions'!$C$9:$C$87,0)+RIGHT($E73),0)\n+AZ$11*OFFSET('Efficiency Distributions'!$E$10,MATCH($C67,'Efficiency Distributions'!$C$9:$C$87,0)+RIGHT($E73),0))\n/SUM(AZ$10:AZ$11)","v":0},{"$f":"IF(INDEX(PC_MAPPING,RIGHT($C67,1),MATCH($E$2,'Data by Building Type'!$D$22:$F$22,0))=\"Yes\",1,0)*\n(BA$10*OFFSET('Efficiency Distributions'!$D$10,MATCH($C67,'Efficiency Distributions'!$C$9:$C$87,0)+RIGHT($E73),0)\n+BA$11*OFFSET('Efficiency Distributions'!$E$10,MATCH($C67,'Efficiency Distributions'!$C$9:$C$87,0)+RIGHT($E73),0))\n/SUM(BA$10:BA$11)","v":0},{"$f":"IF(INDEX(PC_MAPPING,RIGHT($C67,1),MATCH($E$2,'Data by Building Type'!$D$22:$F$22,0))=\"Yes\",1,0)*\n(BB$10*OFFSET('Efficiency Distributions'!$D$10,MATCH($C67,'Efficiency Distributions'!$C$9:$C$87,0)+RIGHT($E73),0)\n+BB$11*OFFSET('Efficiency Distributions'!$E$10,MATCH($C67,'Efficiency Distributions'!$C$9:$C$87,0)+RIGHT($E73),0))\n/SUM(BB$10:BB$11)","v":0},{"$f":"IF(INDEX(PC_MAPPING,RIGHT($C67,1),MATCH($E$2,'Data by Building Type'!$D$22:$F$22,0))=\"Yes\",1,0)*\n(BC$10*OFFSET('Efficiency Distributions'!$D$10,MATCH($C67,'Efficiency Distributions'!$C$9:$C$87,0)+RIGHT($E73),0)\n+BC$11*OFFSET('Efficiency Distributions'!$E$10,MATCH($C67,'Efficiency Distributions'!$C$9:$C$87,0)+RIGHT($E73),0))\n/SUM(BC$10:BC$11)","v":0},{"$f":"IF(INDEX(PC_MAPPING,RIGHT($C67,1),MATCH($E$2,'Data by Building Type'!$D$22:$F$22,0))=\"Yes\",1,0)*\n(BD$10*OFFSET('Efficiency Distributions'!$D$10,MATCH($C67,'Efficiency Distributions'!$C$9:$C$87,0)+RIGHT($E73),0)\n+BD$11*OFFSET('Efficiency Distributions'!$E$10,MATCH($C67,'Efficiency Distributions'!$C$9:$C$87,0)+RIGHT($E73),0))\n/SUM(BD$10:BD$11)","v":0},{"$f":"IF(INDEX(PC_MAPPING,RIGHT($C67,1),MATCH($E$2,'Data by Building Type'!$D$22:$F$22,0))=\"Yes\",1,0)*\n(BE$10*OFFSET('Efficiency Distributions'!$D$10,MATCH($C67,'Efficiency Distributions'!$C$9:$C$87,0)+RIGHT($E73),0)\n+BE$11*OFFSET('Efficiency Distributions'!$E$10,MATCH($C67,'Efficiency Distributions'!$C$9:$C$87,0)+RIGHT($E73),0))\n/SUM(BE$10:BE$11)","v":0},{"$f":"IF(INDEX(PC_MAPPING,RIGHT($C67,1),MATCH($E$2,'Data by Building Type'!$D$22:$F$22,0))=\"Yes\",1,0)*\n(BF$10*OFFSET('Efficiency Distributions'!$D$10,MATCH($C67,'Efficiency Distributions'!$C$9:$C$87,0)+RIGHT($E73),0)\n+BF$11*OFFSET('Efficiency Distributions'!$E$10,MATCH($C67,'Efficiency Distributions'!$C$9:$C$87,0)+RIGHT($E73),0))\n/SUM(BF$10:BF$11)","v":0},{"$f":"IF(INDEX(PC_MAPPING,RIGHT($C67,1),MATCH($E$2,'Data by Building Type'!$D$22:$F$22,0))=\"Yes\",1,0)*\n(BG$10*OFFSET('Efficiency Distributions'!$D$10,MATCH($C67,'Efficiency Distributions'!$C$9:$C$87,0)+RIGHT($E73),0)\n+BG$11*OFFSET('Efficiency Distributions'!$E$10,MATCH($C67,'Efficiency Distributions'!$C$9:$C$87,0)+RIGHT($E73),0))\n/SUM(BG$10:BG$11)","v":0}]
[null,null,null,null,"EL3",{"$f":"IF(INDEX(PC_MAPPING,RIGHT($C67,1),MATCH($E$2,'Data by Building Type'!$D$22:$F$22,0))=\"Yes\",1,0)*\n(F$10*OFFSET('Efficiency Distributions'!$D$10,MATCH($C67,'Efficiency Distributions'!$C$9:$C$87,0)+RIGHT($E74),0)\n+F$11*OFFSET('Efficiency Distributions'!$E$10,MATCH($C67,'Efficiency Distributions'!$C$9:$C$87,0)+RIGHT($E74),0))\n/SUM(F$10:F$11)","v":0.2170186297116585},{"$f":"IF(INDEX(PC_MAPPING,RIGHT($C67,1),MATCH($E$2,'Data by Building Type'!$D$22:$F$22,0))=\"Yes\",1,0)*\n(G$10*OFFSET('Efficiency Distributions'!$D$10,MATCH($C67,'Efficiency Distributions'!$C$9:$C$87,0)+RIGHT($E74),0)\n+G$11*OFFSET('Efficiency Distributions'!$E$10,MATCH($C67,'Efficiency Distributions'!$C$9:$C$87,0)+RIGHT($E74),0))\n/SUM(G$10:G$11)","v":0.23075451420990739},{"$f":"IF(INDEX(PC_MAPPING,RIGHT($C67,1),MATCH($E$2,'Data by Building Type'!$D$22:$F$22,0))=\"Yes\",1,0)*\n(H$10*OFFSET('Efficiency Distributions'!$D$10,MATCH($C67,'Efficiency Distributions'!$C$9:$C$87,0)+RIGHT($E74),0)\n+H$11*OFFSET('Efficiency Distributions'!$E$10,MATCH($C67,'Efficiency Distributions'!$C$9:$C$87,0)+RIGHT($E74),0))\n/SUM(H$10:H$11)","v":0.22435116520478704},{"$f":"IF(INDEX(PC_MAPPING,RIGHT($C67,1),MATCH($E$2,'Data by Building Type'!$D$22:$F$22,0))=\"Yes\",1,0)*\n(I$10*OFFSET('Efficiency Distributions'!$D$10,MATCH($C67,'Efficiency Distributions'!$C$9:$C$87,0)+RIGHT($E74),0)\n+I$11*OFFSET('Efficiency Distributions'!$E$10,MATCH($C67,'Efficiency Distributions'!$C$9:$C$87,0)+RIGHT($E74),0))\n/SUM(I$10:I$11)","v":0.20576735961421855},{"$f":"IF(INDEX(PC_MAPPING,RIGHT($C67,1),MATCH($E$2,'Data by Building Type'!$D$22:$F$22,0))=\"Yes\",1,0)*\n(J$10*OFFSET('Efficiency Distributions'!$D$10,MATCH($C67,'Efficiency Distributions'!$C$9:$C$87,0)+RIGHT($E74),0)\n+J$11*OFFSET('Efficiency Distributions'!$E$10,MATCH($C67,'Efficiency Distributions'!$C$9:$C$87,0)+RIGHT($E74),0))\n/SUM(J$10:J$11)","v":0.18450295863186683},{"$f":"IF(INDEX(PC_MAPPING,RIGHT($C67,1),MATCH($E$2,'Data by Building Type'!$D$22:$F$22,0))=\"Yes\",1,0)*\n(K$10*OFFSET('Efficiency Distributions'!$D$10,MATCH($C67,'Efficiency Distributions'!$C$9:$C$87,0)+RIGHT($E74),0)\n+K$11*OFFSET('Efficiency Distributions'!$E$10,MATCH($C67,'Efficiency Distributions'!$C$9:$C$87,0)+RIGHT($E74),0))\n/SUM(K$10:K$11)","v":0.19049513232988832},{"$f":"IF(INDEX(PC_MAPPING,RIGHT($C67,1),MATCH($E$2,'Data by Building Type'!$D$22:$F$22,0))=\"Yes\",1,0)*\n(L$10*OFFSET('Efficiency Distributions'!$D$10,MATCH($C67,'Efficiency Distributions'!$C$9:$C$87,0)+RIGHT($E74),0)\n+L$11*OFFSET('Efficiency Distributions'!$E$10,MATCH($C67,'Efficiency Distributions'!$C$9:$C$87,0)+RIGHT($E74),0))\n/SUM(L$10:L$11)","v":0.18493715180703615},{"$f":"IF(INDEX(PC_MAPPING,RIGHT($C67,1),MATCH($E$2,'Data by Building Type'!$D$22:$F$22,0))=\"Yes\",1,0)*\n(M$10*OFFSET('Efficiency Distributions'!$D$10,MATCH($C67,'Efficiency Distributions'!$C$9:$C$87,0)+RIGHT($E74),0)\n+M$11*OFFSET('Efficiency Distributions'!$E$10,MATCH($C67,'Efficiency Distributions'!$C$9:$C$87,0)+RIGHT($E74),0))\n/SUM(M$10:M$11)","v":0.17377860729900965},{"$f":"IF(INDEX(PC_MAPPING,RIGHT($C67,1),MATCH($E$2,'Data by Building Type'!$D$22:$F$22,0))=\"Yes\",1,0)*\n(N$10*OFFSET('Efficiency Distributions'!$D$10,MATCH($C67,'Efficiency Distributions'!$C$9:$C$87,0)+RIGHT($E74),0)\n+N$11*OFFSET('Efficiency Distributions'!$E$10,MATCH($C67,'Efficiency Distributions'!$C$9:$C$87,0)+RIGHT($E74),0))\n/SUM(N$10:N$11)","v":0.16464740245765472},{"$f":"IF(INDEX(PC_MAPPING,RIGHT($C67,1),MATCH($E$2,'Data by Building Type'!$D$22:$F$22,0))=\"Yes\",1,0)*\n(O$10*OFFSET('Efficiency Distributions'!$D$10,MATCH($C67,'Efficiency Distributions'!$C$9:$C$87,0)+RIGHT($E74),0)\n+O$11*OFFSET('Efficiency Distributions'!$E$10,MATCH($C67,'Efficiency Distributions'!$C$9:$C$87,0)+RIGHT($E74),0))\n/SUM(O$10:O$11)","v":0.17317717354704712},{"$f":"IF(INDEX(PC_MAPPING,RIGHT($C67,1),MATCH($E$2,'Data by Building Type'!$D$22:$F$22,0))=\"Yes\",1,0)*\n(P$10*OFFSET('Efficiency Distributions'!$D$10,MATCH($C67,'Efficiency Distributions'!$C$9:$C$87,0)+RIGHT($E74),0)\n+P$11*OFFSET('Efficiency Distributions'!$E$10,MATCH($C67,'Efficiency Distributions'!$C$9:$C$87,0)+RIGHT($E74),0))\n/SUM(P$10:P$11)","v":0.21071829261723407},{"$f":"IF(INDEX(PC_MAPPING,RIGHT($C67,1),MATCH($E$2,'Data by Building Type'!$D$22:$F$22,0))=\"Yes\",1,0)*\n(Q$10*OFFSET('Efficiency Distributions'!$D$10,MATCH($C67,'Efficiency Distributions'!$C$9:$C$87,0)+RIGHT($E74),0)\n+Q$11*OFFSET('Efficiency Distributions'!$E$10,MATCH($C67,'Efficiency Distributions'!$C$9:$C$87,0)+RIGHT($E74),0))\n/SUM(Q$10:Q$11)","v":0.20959534865569035},{"$f":"IF(INDEX(PC_MAPPING,RIGHT($C67,1),MATCH($E$2,'Data by Building Type'!$D$22:$F$22,0))=\"Yes\",1,0)*\n(R$10*OFFSET('Efficiency Distributions'!$D$10,MATCH($C67,'Efficiency Distributions'!$C$9:$C$87,0)+RIGHT($E74),0)\n+R$11*OFFSET('Efficiency Distributions'!$E$10,MATCH($C67,'Efficiency Distributions'!$C$9:$C$87,0)+RIGHT($E74),0))\n/SUM(R$10:R$11)","v":0.27963182398107655},{"$f":"IF(INDEX(PC_MAPPING,RIGHT($C67,1),MATCH($E$2,'Data by Building Type'!$D$22:$F$22,0))=\"Yes\",1,0)*\n(S$10*OFFSET('Efficiency Distributions'!$D$10,MATCH($C67,'Efficiency Distributions'!$C$9:$C$87,0)+RIGHT($E74),0)\n+S$11*OFFSET('Efficiency Distributions'!$E$10,MATCH($C67,'Efficiency Distributions'!$C$9:$C$87,0)+RIGHT($E74),0))\n/SUM(S$10:S$11)","v":0.27963182398107655},{"$f":"IF(INDEX(PC_MAPPING,RIGHT($C67,1),MATCH($E$2,'Data by Building Type'!$D$22:$F$22,0))=\"Yes\",1,0)*\n(T$10*OFFSET('Efficiency Distributions'!$D$10,MATCH($C67,'Efficiency Distributions'!$C$9:$C$87,0)+RIGHT($E74),0)\n+T$11*OFFSET('Efficiency Distributions'!$E$10,MATCH($C67,'Efficiency Distributions'!$C$9:$C$87,0)+RIGHT($E74),0))\n/SUM(T$10:T$11)","v":0.27963182398107655},{"$f":"IF(INDEX(PC_MAPPING,RIGHT($C67,1),MATCH($E$2,'Data by Building Type'!$D$22:$F$22,0))=\"Yes\",1,0)*\n(U$10*OFFSET('Efficiency Distributions'!$D$10,MATCH($C67,'Efficiency Distributions'!$C$9:$C$87,0)+RIGHT($E74),0)\n+U$11*OFFSET('Efficiency Distributions'!$E$10,MATCH($C67,'Efficiency Distributions'!$C$9:$C$87,0)+RIGHT($E74),0))\n/SUM(U$10:U$11)","v":0.27963182398107655},{"$f":"IF(INDEX(PC_MAPPING,RIGHT($C67,1),MATCH($E$2,'Data by Building Type'!$D$22:$F$22,0))=\"Yes\",1,0)*\n(V$10*OFFSET('Efficiency Distributions'!$D$10,MATCH($C67,'Efficiency Distributions'!$C$9:$C$87,0)+RIGHT($E74),0)\n+V$11*OFFSET('Efficiency Distributions'!$E$10,MATCH($C67,'Efficiency Distributions'!$C$9:$C$87,0)+RIGHT($E74),0))\n/SUM(V$10:V$11)","v":0.27963182398107655},{"$f":"IF(INDEX(PC_MAPPING,RIGHT($C67,1),MATCH($E$2,'Data by Building Type'!$D$22:$F$22,0))=\"Yes\",1,0)*\n(W$10*OFFSET('Efficiency Distributions'!$D$10,MATCH($C67,'Efficiency Distributions'!$C$9:$C$87,0)+RIGHT($E74),0)\n+W$11*OFFSET('Efficiency Distributions'!$E$10,MATCH($C67,'Efficiency Distributions'!$C$9:$C$87,0)+RIGHT($E74),0))\n/SUM(W$10:W$11)","v":0.27963182398107655},{"$f":"IF(INDEX(PC_MAPPING,RIGHT($C67,1),MATCH($E$2,'Data by Building Type'!$D$22:$F$22,0))=\"Yes\",1,0)*\n(X$10*OFFSET('Efficiency Distributions'!$D$10,MATCH($C67,'Efficiency Distributions'!$C$9:$C$87,0)+RIGHT($E74),0)\n+X$11*OFFSET('Efficiency Distributions'!$E$10,MATCH($C67,'Efficiency Distributions'!$C$9:$C$87,0)+RIGHT($E74),0))\n/SUM(X$10:X$11)","v":0.27963182398107655},{"$f":"IF(INDEX(PC_MAPPING,RIGHT($C67,1),MATCH($E$2,'Data by Building Type'!$D$22:$F$22,0))=\"Yes\",1,0)*\n(Y$10*OFFSET('Efficiency Distributions'!$D$10,MATCH($C67,'Efficiency Distributions'!$C$9:$C$87,0)+RIGHT($E74),0)\n+Y$11*OFFSET('Efficiency Distributions'!$E$10,MATCH($C67,'Efficiency Distributions'!$C$9:$C$87,0)+RIGHT($E74),0))\n/SUM(Y$10:Y$11)","v":0.27963182398107655},{"$f":"IF(INDEX(PC_MAPPING,RIGHT($C67,1),MATCH($E$2,'Data by Building Type'!$D$22:$F$22,0))=\"Yes\",1,0)*\n(Z$10*OFFSET('Efficiency Distributions'!$D$10,MATCH($C67,'Efficiency Distributions'!$C$9:$C$87,0)+RIGHT($E74),0)\n+Z$11*OFFSET('Efficiency Distributions'!$E$10,MATCH($C67,'Efficiency Distributions'!$C$9:$C$87,0)+RIGHT($E74),0))\n/SUM(Z$10:Z$11)","v":0.27963182398107655},{"$f":"IF(INDEX(PC_MAPPING,RIGHT($C67,1),MATCH($E$2,'Data by Building Type'!$D$22:$F$22,0))=\"Yes\",1,0)*\n(AA$10*OFFSET('Efficiency Distributions'!$D$10,MATCH($C67,'Efficiency Distributions'!$C$9:$C$87,0)+RIGHT($E74),0)\n+AA$11*OFFSET('Efficiency Distributions'!$E$10,MATCH($C67,'Efficiency Distributions'!$C$9:$C$87,0)+RIGHT($E74),0))\n/SUM(AA$10:AA$11)","v":0.27963182398107655},{"$f":"IF(INDEX(PC_MAPPING,RIGHT($C67,1),MATCH($E$2,'Data by Building Type'!$D$22:$F$22,0))=\"Yes\",1,0)*\n(AB$10*OFFSET('Efficiency Distributions'!$D$10,MATCH($C67,'Efficiency Distributions'!$C$9:$C$87,0)+RIGHT($E74),0)\n+AB$11*OFFSET('Efficiency Distributions'!$E$10,MATCH($C67,'Efficiency Distributions'!$C$9:$C$87,0)+RIGHT($E74),0))\n/SUM(AB$10:AB$11)","v":0.27963182398107655},{"$f":"IF(INDEX(PC_MAPPING,RIGHT($C67,1),MATCH($E$2,'Data by Building Type'!$D$22:$F$22,0))=\"Yes\",1,0)*\n(AC$10*OFFSET('Efficiency Distributions'!$D$10,MATCH($C67,'Efficiency Distributions'!$C$9:$C$87,0)+RIGHT($E74),0)\n+AC$11*OFFSET('Efficiency Distributions'!$E$10,MATCH($C67,'Efficiency Distributions'!$C$9:$C$87,0)+RIGHT($E74),0))\n/SUM(AC$10:AC$11)","v":0.27963182398107655},{"$f":"IF(INDEX(PC_MAPPING,RIGHT($C67,1),MATCH($E$2,'Data by Building Type'!$D$22:$F$22,0))=\"Yes\",1,0)*\n(AD$10*OFFSET('Efficiency Distributions'!$D$10,MATCH($C67,'Efficiency Distributions'!$C$9:$C$87,0)+RIGHT($E74),0)\n+AD$11*OFFSET('Efficiency Distributions'!$E$10,MATCH($C67,'Efficiency Distributions'!$C$9:$C$87,0)+RIGHT($E74),0))\n/SUM(AD$10:AD$11)","v":0.27963182398107655},{"$f":"IF(INDEX(PC_MAPPING,RIGHT($C67,1),MATCH($E$2,'Data by Building Type'!$D$22:$F$22,0))=\"Yes\",1,0)*\n(AE$10*OFFSET('Efficiency Distributions'!$D$10,MATCH($C67,'Efficiency Distributions'!$C$9:$C$87,0)+RIGHT($E74),0)\n+AE$11*OFFSET('Efficiency Distributions'!$E$10,MATCH($C67,'Efficiency Distributions'!$C$9:$C$87,0)+RIGHT($E74),0))\n/SUM(AE$10:AE$11)","v":0.27963182398107655},{"$f":"IF(INDEX(PC_MAPPING,RIGHT($C67,1),MATCH($E$2,'Data by Building Type'!$D$22:$F$22,0))=\"Yes\",1,0)*\n(AF$10*OFFSET('Efficiency Distributions'!$D$10,MATCH($C67,'Efficiency Distributions'!$C$9:$C$87,0)+RIGHT($E74),0)\n+AF$11*OFFSET('Efficiency Distributions'!$E$10,MATCH($C67,'Efficiency Distributions'!$C$9:$C$87,0)+RIGHT($E74),0))\n/SUM(AF$10:AF$11)","v":0.27963182398107655},{"$f":"IF(INDEX(PC_MAPPING,RIGHT($C67,1),MATCH($E$2,'Data by Building Type'!$D$22:$F$22,0))=\"Yes\",1,0)*\n(AG$10*OFFSET('Efficiency Distributions'!$D$10,MATCH($C67,'Efficiency Distributions'!$C$9:$C$87,0)+RIGHT($E74),0)\n+AG$11*OFFSET('Efficiency Distributions'!$E$10,MATCH($C67,'Efficiency Distributions'!$C$9:$C$87,0)+RIGHT($E74),0))\n/SUM(AG$10:AG$11)","v":0.27963182398107655},{"$f":"IF(INDEX(PC_MAPPING,RIGHT($C67,1),MATCH($E$2,'Data by Building Type'!$D$22:$F$22,0))=\"Yes\",1,0)*\n(AH$10*OFFSET('Efficiency Distributions'!$D$10,MATCH($C67,'Efficiency Distributions'!$C$9:$C$87,0)+RIGHT($E74),0)\n+AH$11*OFFSET('Efficiency Distributions'!$E$10,MATCH($C67,'Efficiency Distributions'!$C$9:$C$87,0)+RIGHT($E74),0))\n/SUM(AH$10:AH$11)","v":0.27963182398107655},{"$f":"IF(INDEX(PC_MAPPING,RIGHT($C67,1),MATCH($E$2,'Data by Building Type'!$D$22:$F$22,0))=\"Yes\",1,0)*\n(AI$10*OFFSET('Efficiency Distributions'!$D$10,MATCH($C67,'Efficiency Distributions'!$C$9:$C$87,0)+RIGHT($E74),0)\n+AI$11*OFFSET('Efficiency Distributions'!$E$10,MATCH($C67,'Efficiency Distributions'!$C$9:$C$87,0)+RIGHT($E74),0))\n/SUM(AI$10:AI$11)","v":0.27963182398107655},{"$f":"IF(INDEX(PC_MAPPING,RIGHT($C67,1),MATCH($E$2,'Data by Building Type'!$D$22:$F$22,0))=\"Yes\",1,0)*\n(AJ$10*OFFSET('Efficiency Distributions'!$D$10,MATCH($C67,'Efficiency Distributions'!$C$9:$C$87,0)+RIGHT($E74),0)\n+AJ$11*OFFSET('Efficiency Distributions'!$E$10,MATCH($C67,'Efficiency Distributions'!$C$9:$C$87,0)+RIGHT($E74),0))\n/SUM(AJ$10:AJ$11)","v":0.27963182398107655},{"$f":"IF(INDEX(PC_MAPPING,RIGHT($C67,1),MATCH($E$2,'Data by Building Type'!$D$22:$F$22,0))=\"Yes\",1,0)*\n(AK$10*OFFSET('Efficiency Distributions'!$D$10,MATCH($C67,'Efficiency Distributions'!$C$9:$C$87,0)+RIGHT($E74),0)\n+AK$11*OFFSET('Efficiency Distributions'!$E$10,MATCH($C67,'Efficiency Distributions'!$C$9:$C$87,0)+RIGHT($E74),0))\n/SUM(AK$10:AK$11)","v":0.24891448957098428},{"$f":"IF(INDEX(PC_MAPPING,RIGHT($C67,1),MATCH($E$2,'Data by Building Type'!$D$22:$F$22,0))=\"Yes\",1,0)*\n(AL$10*OFFSET('Efficiency Distributions'!$D$10,MATCH($C67,'Efficiency Distributions'!$C$9:$C$87,0)+RIGHT($E74),0)\n+AL$11*OFFSET('Efficiency Distributions'!$E$10,MATCH($C67,'Efficiency Distributions'!$C$9:$C$87,0)+RIGHT($E74),0))\n/SUM(AL$10:AL$11)","v":0.24768076757879115},{"$f":"IF(INDEX(PC_MAPPING,RIGHT($C67,1),MATCH($E$2,'Data by Building Type'!$D$22:$F$22,0))=\"Yes\",1,0)*\n(AM$10*OFFSET('Efficiency Distributions'!$D$10,MATCH($C67,'Efficiency Distributions'!$C$9:$C$87,0)+RIGHT($E74),0)\n+AM$11*OFFSET('Efficiency Distributions'!$E$10,MATCH($C67,'Efficiency Distributions'!$C$9:$C$87,0)+RIGHT($E74),0))\n/SUM(AM$10:AM$11)","v":0.21847877654875525},{"$f":"IF(INDEX(PC_MAPPING,RIGHT($C67,1),MATCH($E$2,'Data by Building Type'!$D$22:$F$22,0))=\"Yes\",1,0)*\n(AN$10*OFFSET('Efficiency Distributions'!$D$10,MATCH($C67,'Efficiency Distributions'!$C$9:$C$87,0)+RIGHT($E74),0)\n+AN$11*OFFSET('Efficiency Distributions'!$E$10,MATCH($C67,'Efficiency Distributions'!$C$9:$C$87,0)+RIGHT($E74),0))\n/SUM(AN$10:AN$11)","v":0.21996852428677022},{"$f":"IF(INDEX(PC_MAPPING,RIGHT($C67,1),MATCH($E$2,'Data by Building Type'!$D$22:$F$22,0))=\"Yes\",1,0)*\n(AO$10*OFFSET('Efficiency Distributions'!$D$10,MATCH($C67,'Efficiency Distributions'!$C$9:$C$87,0)+RIGHT($E74),0)\n+AO$11*OFFSET('Efficiency Distributions'!$E$10,MATCH($C67,'Efficiency Distributions'!$C$9:$C$87,0)+RIGHT($E74),0))\n/SUM(AO$10:AO$11)","v":0.21815340116876267},{"$f":"IF(INDEX(PC_MAPPING,RIGHT($C67,1),MATCH($E$2,'Data by Building Type'!$D$22:$F$22,0))=\"Yes\",1,0)*\n(AP$10*OFFSET('Efficiency Distributions'!$D$10,MATCH($C67,'Efficiency Distributions'!$C$9:$C$87,0)+RIGHT($E74),0)\n+AP$11*OFFSET('Efficiency Distributions'!$E$10,MATCH($C67,'Efficiency Distributions'!$C$9:$C$87,0)+RIGHT($E74),0))\n/SUM(AP$10:AP$11)","v":0.21443080589366606},{"$f":"IF(INDEX(PC_MAPPING,RIGHT($C67,1),MATCH($E$2,'Data by Building Type'!$D$22:$F$22,0))=\"Yes\",1,0)*\n(AQ$10*OFFSET('Efficiency Distributions'!$D$10,MATCH($C67,'Efficiency Distributions'!$C$9:$C$87,0)+RIGHT($E74),0)\n+AQ$11*OFFSET('Efficiency Distributions'!$E$10,MATCH($C67,'Efficiency Distributions'!$C$9:$C$87,0)+RIGHT($E74),0))\n/SUM(AQ$10:AQ$11)","v":0.21064929592368406},{"$f":"IF(INDEX(PC_MAPPING,RIGHT($C67,1),MATCH($E$2,'Data by Building Type'!$D$22:$F$22,0))=\"Yes\",1,0)*\n(AR$10*OFFSET('Efficiency Distributions'!$D$10,MATCH($C67,'Efficiency Distributions'!$C$9:$C$87,0)+RIGHT($E74),0)\n+AR$11*OFFSET('Efficiency Distributions'!$E$10,MATCH($C67,'Efficiency Distributions'!$C$9:$C$87,0)+RIGHT($E74),0))\n/SUM(AR$10:AR$11)","v":0.21143819890539728},{"$f":"IF(INDEX(PC_MAPPING,RIGHT($C67,1),MATCH($E$2,'Data by Building Type'!$D$22:$F$22,0))=\"Yes\",1,0)*\n(AS$10*OFFSET('Efficiency Distributions'!$D$10,MATCH($C67,'Efficiency Distributions'!$C$9:$C$87,0)+RIGHT($E74),0)\n+AS$11*OFFSET('Efficiency Distributions'!$E$10,MATCH($C67,'Efficiency Distributions'!$C$9:$C$87,0)+RIGHT($E74),0))\n/SUM(AS$10:AS$11)","v":0.19843274303185585},{"$f":"IF(INDEX(PC_MAPPING,RIGHT($C67,1),MATCH($E$2,'Data by Building Type'!$D$22:$F$22,0))=\"Yes\",1,0)*\n(AT$10*OFFSET('Efficiency Distributions'!$D$10,MATCH($C67,'Efficiency Distributions'!$C$9:$C$87,0)+RIGHT($E74),0)\n+AT$11*OFFSET('Efficiency Distributions'!$E$10,MATCH($C67,'Efficiency Distributions'!$C$9:$C$87,0)+RIGHT($E74),0))\n/SUM(AT$10:AT$11)","v":0.18468651818078824},{"$f":"IF(INDEX(PC_MAPPING,RIGHT($C67,1),MATCH($E$2,'Data by Building Type'!$D$22:$F$22,0))=\"Yes\",1,0)*\n(AU$10*OFFSET('Efficiency Distributions'!$D$10,MATCH($C67,'Efficiency Distributions'!$C$9:$C$87,0)+RIGHT($E74),0)\n+AU$11*OFFSET('Efficiency Distributions'!$E$10,MATCH($C67,'Efficiency Distributions'!$C$9:$C$87,0)+RIGHT($E74),0))\n/SUM(AU$10:AU$11)","v":0.18037815024163528},{"$f":"IF(INDEX(PC_MAPPING,RIGHT($C67,1),MATCH($E$2,'Data by Building Type'!$D$22:$F$22,0))=\"Yes\",1,0)*\n(AV$10*OFFSET('Efficiency Distributions'!$D$10,MATCH($C67,'Efficiency Distributions'!$C$9:$C$87,0)+RIGHT($E74),0)\n+AV$11*OFFSET('Efficiency Distributions'!$E$10,MATCH($C67,'Efficiency Distributions'!$C$9:$C$87,0)+RIGHT($E74),0))\n/SUM(AV$10:AV$11)","v":0.21111063482711673},{"$f":"IF(INDEX(PC_MAPPING,RIGHT($C67,1),MATCH($E$2,'Data by Building Type'!$D$22:$F$22,0))=\"Yes\",1,0)*\n(AW$10*OFFSET('Efficiency Distributions'!$D$10,MATCH($C67,'Efficiency Distributions'!$C$9:$C$87,0)+RIGHT($E74),0)\n+AW$11*OFFSET('Efficiency Distributions'!$E$10,MATCH($C67,'Efficiency Distributions'!$C$9:$C$87,0)+RIGHT($E74),0))\n/SUM(AW$10:AW$11)","v":0.20098006570449992},{"$f":"IF(INDEX(PC_MAPPING,RIGHT($C67,1),MATCH($E$2,'Data by Building Type'!$D$22:$F$22,0))=\"Yes\",1,0)*\n(AX$10*OFFSET('Efficiency Distributions'!$D$10,MATCH($C67,'Efficiency Distributions'!$C$9:$C$87,0)+RIGHT($E74),0)\n+AX$11*OFFSET('Efficiency Distributions'!$E$10,MATCH($C67,'Efficiency Distributions'!$C$9:$C$87,0)+RIGHT($E74),0))\n/SUM(AX$10:AX$11)","v":0.20651924227688556},{"$f":"IF(INDEX(PC_MAPPING,RIGHT($C67,1),MATCH($E$2,'Data by Building Type'!$D$22:$F$22,0))=\"Yes\",1,0)*\n(AY$10*OFFSET('Efficiency Distributions'!$D$10,MATCH($C67,'Efficiency Distributions'!$C$9:$C$87,0)+RIGHT($E74),0)\n+AY$11*OFFSET('Efficiency Distributions'!$E$10,MATCH($C67,'Efficiency Distributions'!$C$9:$C$87,0)+RIGHT($E74),0))\n/SUM(AY$10:AY$11)","v":0.2158335625129206},{"$f":"IF(INDEX(PC_MAPPING,RIGHT($C67,1),MATCH($E$2,'Data by Building Type'!$D$22:$F$22,0))=\"Yes\",1,0)*\n(AZ$10*OFFSET('Efficiency Distributions'!$D$10,MATCH($C67,'Efficiency Distributions'!$C$9:$C$87,0)+RIGHT($E74),0)\n+AZ$11*OFFSET('Efficiency Distributions'!$E$10,MATCH($C67,'Efficiency Distributions'!$C$9:$C$87,0)+RIGHT($E74),0))\n/SUM(AZ$10:AZ$11)","v":0.22890231625175356},{"$f":"IF(INDEX(PC_MAPPING,RIGHT($C67,1),MATCH($E$2,'Data by Building Type'!$D$22:$F$22,0))=\"Yes\",1,0)*\n(BA$10*OFFSET('Efficiency Distributions'!$D$10,MATCH($C67,'Efficiency Distributions'!$C$9:$C$87,0)+RIGHT($E74),0)\n+BA$11*OFFSET('Efficiency Distributions'!$E$10,MATCH($C67,'Efficiency Distributions'!$C$9:$C$87,0)+RIGHT($E74),0))\n/SUM(BA$10:BA$11)","v":0.22345350816751378},{"$f":"IF(INDEX(PC_MAPPING,RIGHT($C67,1),MATCH($E$2,'Data by Building Type'!$D$22:$F$22,0))=\"Yes\",1,0)*\n(BB$10*OFFSET('Efficiency Distributions'!$D$10,MATCH($C67,'Efficiency Distributions'!$C$9:$C$87,0)+RIGHT($E74),0)\n+BB$11*OFFSET('Efficiency Distributions'!$E$10,MATCH($C67,'Efficiency Distributions'!$C$9:$C$87,0)+RIGHT($E74),0))\n/SUM(BB$10:BB$11)","v":0.22129140096276181},{"$f":"IF(INDEX(PC_MAPPING,RIGHT($C67,1),MATCH($E$2,'Data by Building Type'!$D$22:$F$22,0))=\"Yes\",1,0)*\n(BC$10*OFFSET('Efficiency Distributions'!$D$10,MATCH($C67,'Efficiency Distributions'!$C$9:$C$87,0)+RIGHT($E74),0)\n+BC$11*OFFSET('Efficiency Distributions'!$E$10,MATCH($C67,'Efficiency Distributions'!$C$9:$C$87,0)+RIGHT($E74),0))\n/SUM(BC$10:BC$11)","v":0.22270724670413619},{"$f":"IF(INDEX(PC_MAPPING,RIGHT($C67,1),MATCH($E$2,'Data by Building Type'!$D$22:$F$22,0))=\"Yes\",1,0)*\n(BD$10*OFFSET('Efficiency Distributions'!$D$10,MATCH($C67,'Efficiency Distributions'!$C$9:$C$87,0)+RIGHT($E74),0)\n+BD$11*OFFSET('Efficiency Distributions'!$E$10,MATCH($C67,'Efficiency Distributions'!$C$9:$C$87,0)+RIGHT($E74),0))\n/SUM(BD$10:BD$11)","v":0.23162417897026683},{"$f":"IF(INDEX(PC_MAPPING,RIGHT($C67,1),MATCH($E$2,'Data by Building Type'!$D$22:$F$22,0))=\"Yes\",1,0)*\n(BE$10*OFFSET('Efficiency Distributions'!$D$10,MATCH($C67,'Efficiency Distributions'!$C$9:$C$87,0)+RIGHT($E74),0)\n+BE$11*OFFSET('Efficiency Distributions'!$E$10,MATCH($C67,'Efficiency Distributions'!$C$9:$C$87,0)+RIGHT($E74),0))\n/SUM(BE$10:BE$11)","v":0.2264982086803416},{"$f":"IF(INDEX(PC_MAPPING,RIGHT($C67,1),MATCH($E$2,'Data by Building Type'!$D$22:$F$22,0))=\"Yes\",1,0)*\n(BF$10*OFFSET('Efficiency Distributions'!$D$10,MATCH($C67,'Efficiency Distributions'!$C$9:$C$87,0)+RIGHT($E74),0)\n+BF$11*OFFSET('Efficiency Distributions'!$E$10,MATCH($C67,'Efficiency Distributions'!$C$9:$C$87,0)+RIGHT($E74),0))\n/SUM(BF$10:BF$11)","v":0.24311116834183169},{"$f":"IF(INDEX(PC_MAPPING,RIGHT($C67,1),MATCH($E$2,'Data by Building Type'!$D$22:$F$22,0))=\"Yes\",1,0)*\n(BG$10*OFFSET('Efficiency Distributions'!$D$10,MATCH($C67,'Efficiency Distributions'!$C$9:$C$87,0)+RIGHT($E74),0)\n+BG$11*OFFSET('Efficiency Distributions'!$E$10,MATCH($C67,'Efficiency Distributions'!$C$9:$C$87,0)+RIGHT($E74),0))\n/SUM(BG$10:BG$11)","v":0.24327538412834099}]
[null,null,null,null,"EL4",{"$f":"IF(INDEX(PC_MAPPING,RIGHT($C67,1),MATCH($E$2,'Data by Building Type'!$D$22:$F$22,0))=\"Yes\",1,0)*\n(F$10*OFFSET('Efficiency Distributions'!$D$10,MATCH($C67,'Efficiency Distributions'!$C$9:$C$87,0)+RIGHT($E75),0)\n+F$11*OFFSET('Efficiency Distributions'!$E$10,MATCH($C67,'Efficiency Distributions'!$C$9:$C$87,0)+RIGHT($E75),0))\n/SUM(F$10:F$11)","v":5.7198708606173564E-2},{"$f":"IF(INDEX(PC_MAPPING,RIGHT($C67,1),MATCH($E$2,'Data by Building Type'!$D$22:$F$22,0))=\"Yes\",1,0)*\n(G$10*OFFSET('Efficiency Distributions'!$D$10,MATCH($C67,'Efficiency Distributions'!$C$9:$C$87,0)+RIGHT($E75),0)\n+G$11*OFFSET('Efficiency Distributions'!$E$10,MATCH($C67,'Efficiency Distributions'!$C$9:$C$87,0)+RIGHT($E75),0))\n/SUM(G$10:G$11)","v":6.0819019249122884E-2},{"$f":"IF(INDEX(PC_MAPPING,RIGHT($C67,1),MATCH($E$2,'Data by Building Type'!$D$22:$F$22,0))=\"Yes\",1,0)*\n(H$10*OFFSET('Efficiency Distributions'!$D$10,MATCH($C67,'Efficiency Distributions'!$C$9:$C$87,0)+RIGHT($E75),0)\n+H$11*OFFSET('Efficiency Distributions'!$E$10,MATCH($C67,'Efficiency Distributions'!$C$9:$C$87,0)+RIGHT($E75),0))\n/SUM(H$10:H$11)","v":5.9131314860176427E-2},{"$f":"IF(INDEX(PC_MAPPING,RIGHT($C67,1),MATCH($E$2,'Data by Building Type'!$D$22:$F$22,0))=\"Yes\",1,0)*\n(I$10*OFFSET('Efficiency Distributions'!$D$10,MATCH($C67,'Efficiency Distributions'!$C$9:$C$87,0)+RIGHT($E75),0)\n+I$11*OFFSET('Efficiency Distributions'!$E$10,MATCH($C67,'Efficiency Distributions'!$C$9:$C$87,0)+RIGHT($E75),0))\n/SUM(I$10:I$11)","v":5.4233257572739772E-2},{"$f":"IF(INDEX(PC_MAPPING,RIGHT($C67,1),MATCH($E$2,'Data by Building Type'!$D$22:$F$22,0))=\"Yes\",1,0)*\n(J$10*OFFSET('Efficiency Distributions'!$D$10,MATCH($C67,'Efficiency Distributions'!$C$9:$C$87,0)+RIGHT($E75),0)\n+J$11*OFFSET('Efficiency Distributions'!$E$10,MATCH($C67,'Efficiency Distributions'!$C$9:$C$87,0)+RIGHT($E75),0))\n/SUM(J$10:J$11)","v":4.8628686771189707E-2},{"$f":"IF(INDEX(PC_MAPPING,RIGHT($C67,1),MATCH($E$2,'Data by Building Type'!$D$22:$F$22,0))=\"Yes\",1,0)*\n(K$10*OFFSET('Efficiency Distributions'!$D$10,MATCH($C67,'Efficiency Distributions'!$C$9:$C$87,0)+RIGHT($E75),0)\n+K$11*OFFSET('Efficiency Distributions'!$E$10,MATCH($C67,'Efficiency Distributions'!$C$9:$C$87,0)+RIGHT($E75),0))\n/SUM(K$10:K$11)","v":5.0208019373769008E-2},{"$f":"IF(INDEX(PC_MAPPING,RIGHT($C67,1),MATCH($E$2,'Data by Building Type'!$D$22:$F$22,0))=\"Yes\",1,0)*\n(L$10*OFFSET('Efficiency Distributions'!$D$10,MATCH($C67,'Efficiency Distributions'!$C$9:$C$87,0)+RIGHT($E75),0)\n+L$11*OFFSET('Efficiency Distributions'!$E$10,MATCH($C67,'Efficiency Distributions'!$C$9:$C$87,0)+RIGHT($E75),0))\n/SUM(L$10:L$11)","v":4.874312528247466E-2},{"$f":"IF(INDEX(PC_MAPPING,RIGHT($C67,1),MATCH($E$2,'Data by Building Type'!$D$22:$F$22,0))=\"Yes\",1,0)*\n(M$10*OFFSET('Efficiency Distributions'!$D$10,MATCH($C67,'Efficiency Distributions'!$C$9:$C$87,0)+RIGHT($E75),0)\n+M$11*OFFSET('Efficiency Distributions'!$E$10,MATCH($C67,'Efficiency Distributions'!$C$9:$C$87,0)+RIGHT($E75),0))\n/SUM(M$10:M$11)","v":4.580211355167696E-2},{"$f":"IF(INDEX(PC_MAPPING,RIGHT($C67,1),MATCH($E$2,'Data by Building Type'!$D$22:$F$22,0))=\"Yes\",1,0)*\n(N$10*OFFSET('Efficiency Distributions'!$D$10,MATCH($C67,'Efficiency Distributions'!$C$9:$C$87,0)+RIGHT($E75),0)\n+N$11*OFFSET('Efficiency Distributions'!$E$10,MATCH($C67,'Efficiency Distributions'!$C$9:$C$87,0)+RIGHT($E75),0))\n/SUM(N$10:N$11)","v":4.3395439407443878E-2},{"$f":"IF(INDEX(PC_MAPPING,RIGHT($C67,1),MATCH($E$2,'Data by Building Type'!$D$22:$F$22,0))=\"Yes\",1,0)*\n(O$10*OFFSET('Efficiency Distributions'!$D$10,MATCH($C67,'Efficiency Distributions'!$C$9:$C$87,0)+RIGHT($E75),0)\n+O$11*OFFSET('Efficiency Distributions'!$E$10,MATCH($C67,'Efficiency Distributions'!$C$9:$C$87,0)+RIGHT($E75),0))\n/SUM(O$10:O$11)","v":4.564359612867909E-2},{"$f":"IF(INDEX(PC_MAPPING,RIGHT($C67,1),MATCH($E$2,'Data by Building Type'!$D$22:$F$22,0))=\"Yes\",1,0)*\n(P$10*OFFSET('Efficiency Distributions'!$D$10,MATCH($C67,'Efficiency Distributions'!$C$9:$C$87,0)+RIGHT($E75),0)\n+P$11*OFFSET('Efficiency Distributions'!$E$10,MATCH($C67,'Efficiency Distributions'!$C$9:$C$87,0)+RIGHT($E75),0))\n/SUM(P$10:P$11)","v":5.5538154643302008E-2},{"$f":"IF(INDEX(PC_MAPPING,RIGHT($C67,1),MATCH($E$2,'Data by Building Type'!$D$22:$F$22,0))=\"Yes\",1,0)*\n(Q$10*OFFSET('Efficiency Distributions'!$D$10,MATCH($C67,'Efficiency Distributions'!$C$9:$C$87,0)+RIGHT($E75),0)\n+Q$11*OFFSET('Efficiency Distributions'!$E$10,MATCH($C67,'Efficiency Distributions'!$C$9:$C$87,0)+RIGHT($E75),0))\n/SUM(Q$10:Q$11)","v":5.5242184917003667E-2},{"$f":"IF(INDEX(PC_MAPPING,RIGHT($C67,1),MATCH($E$2,'Data by Building Type'!$D$22:$F$22,0))=\"Yes\",1,0)*\n(R$10*OFFSET('Efficiency Distributions'!$D$10,MATCH($C67,'Efficiency Distributions'!$C$9:$C$87,0)+RIGHT($E75),0)\n+R$11*OFFSET('Efficiency Distributions'!$E$10,MATCH($C67,'Efficiency Distributions'!$C$9:$C$87,0)+RIGHT($E75),0))\n/SUM(R$10:R$11)","v":7.3701410971756615E-2},{"$f":"IF(INDEX(PC_MAPPING,RIGHT($C67,1),MATCH($E$2,'Data by Building Type'!$D$22:$F$22,0))=\"Yes\",1,0)*\n(S$10*OFFSET('Efficiency Distributions'!$D$10,MATCH($C67,'Efficiency Distributions'!$C$9:$C$87,0)+RIGHT($E75),0)\n+S$11*OFFSET('Efficiency Distributions'!$E$10,MATCH($C67,'Efficiency Distributions'!$C$9:$C$87,0)+RIGHT($E75),0))\n/SUM(S$10:S$11)","v":7.3701410971756615E-2},{"$f":"IF(INDEX(PC_MAPPING,RIGHT($C67,1),MATCH($E$2,'Data by Building Type'!$D$22:$F$22,0))=\"Yes\",1,0)*\n(T$10*OFFSET('Efficiency Distributions'!$D$10,MATCH($C67,'Efficiency Distributions'!$C$9:$C$87,0)+RIGHT($E75),0)\n+T$11*OFFSET('Efficiency Distributions'!$E$10,MATCH($C67,'Efficiency Distributions'!$C$9:$C$87,0)+RIGHT($E75),0))\n/SUM(T$10:T$11)","v":7.3701410971756615E-2},{"$f":"IF(INDEX(PC_MAPPING,RIGHT($C67,1),MATCH($E$2,'Data by Building Type'!$D$22:$F$22,0))=\"Yes\",1,0)*\n(U$10*OFFSET('Efficiency Distributions'!$D$10,MATCH($C67,'Efficiency Distributions'!$C$9:$C$87,0)+RIGHT($E75),0)\n+U$11*OFFSET('Efficiency Distributions'!$E$10,MATCH($C67,'Efficiency Distributions'!$C$9:$C$87,0)+RIGHT($E75),0))\n/SUM(U$10:U$11)","v":7.3701410971756615E-2},{"$f":"IF(INDEX(PC_MAPPING,RIGHT($C67,1),MATCH($E$2,'Data by Building Type'!$D$22:$F$22,0))=\"Yes\",1,0)*\n(V$10*OFFSET('Efficiency Distributions'!$D$10,MATCH($C67,'Efficiency Distributions'!$C$9:$C$87,0)+RIGHT($E75),0)\n+V$11*OFFSET('Efficiency Distributions'!$E$10,MATCH($C67,'Efficiency Distributions'!$C$9:$C$87,0)+RIGHT($E75),0))\n/SUM(V$10:V$11)","v":7.3701410971756615E-2},{"$f":"IF(INDEX(PC_MAPPING,RIGHT($C67,1),MATCH($E$2,'Data by Building Type'!$D$22:$F$22,0))=\"Yes\",1,0)*\n(W$10*OFFSET('Efficiency Distributions'!$D$10,MATCH($C67,'Efficiency Distributions'!$C$9:$C$87,0)+RIGHT($E75),0)\n+W$11*OFFSET('Efficiency Distributions'!$E$10,MATCH($C67,'Efficiency Distributions'!$C$9:$C$87,0)+RIGHT($E75),0))\n/SUM(W$10:W$11)","v":7.3701410971756615E-2},{"$f":"IF(INDEX(PC_MAPPING,RIGHT($C67,1),MATCH($E$2,'Data by Building Type'!$D$22:$F$22,0))=\"Yes\",1,0)*\n(X$10*OFFSET('Efficiency Distributions'!$D$10,MATCH($C67,'Efficiency Distributions'!$C$9:$C$87,0)+RIGHT($E75),0)\n+X$11*OFFSET('Efficiency Distributions'!$E$10,MATCH($C67,'Efficiency Distributions'!$C$9:$C$87,0)+RIGHT($E75),0))\n/SUM(X$10:X$11)","v":7.3701410971756615E-2},{"$f":"IF(INDEX(PC_MAPPING,RIGHT($C67,1),MATCH($E$2,'Data by Building Type'!$D$22:$F$22,0))=\"Yes\",1,0)*\n(Y$10*OFFSET('Efficiency Distributions'!$D$10,MATCH($C67,'Efficiency Distributions'!$C$9:$C$87,0)+RIGHT($E75),0)\n+Y$11*OFFSET('Efficiency Distributions'!$E$10,MATCH($C67,'Efficiency Distributions'!$C$9:$C$87,0)+RIGHT($E75),0))\n/SUM(Y$10:Y$11)","v":7.3701410971756615E-2},{"$f":"IF(INDEX(PC_MAPPING,RIGHT($C67,1),MATCH($E$2,'Data by Building Type'!$D$22:$F$22,0))=\"Yes\",1,0)*\n(Z$10*OFFSET('Efficiency Distributions'!$D$10,MATCH($C67,'Efficiency Distributions'!$C$9:$C$87,0)+RIGHT($E75),0)\n+Z$11*OFFSET('Efficiency Distributions'!$E$10,MATCH($C67,'Efficiency Distributions'!$C$9:$C$87,0)+RIGHT($E75),0))\n/SUM(Z$10:Z$11)","v":7.3701410971756615E-2},{"$f":"IF(INDEX(PC_MAPPING,RIGHT($C67,1),MATCH($E$2,'Data by Building Type'!$D$22:$F$22,0))=\"Yes\",1,0)*\n(AA$10*OFFSET('Efficiency Distributions'!$D$10,MATCH($C67,'Efficiency Distributions'!$C$9:$C$87,0)+RIGHT($E75),0)\n+AA$11*OFFSET('Efficiency Distributions'!$E$10,MATCH($C67,'Efficiency Distributions'!$C$9:$C$87,0)+RIGHT($E75),0))\n/SUM(AA$10:AA$11)","v":7.3701410971756615E-2},{"$f":"IF(INDEX(PC_MAPPING,RIGHT($C67,1),MATCH($E$2,'Data by Building Type'!$D$22:$F$22,0))=\"Yes\",1,0)*\n(AB$10*OFFSET('Efficiency Distributions'!$D$10,MATCH($C67,'Efficiency Distributions'!$C$9:$C$87,0)+RIGHT($E75),0)\n+AB$11*OFFSET('Efficiency Distributions'!$E$10,MATCH($C67,'Efficiency Distributions'!$C$9:$C$87,0)+RIGHT($E75),0))\n/SUM(AB$10:AB$11)","v":7.3701410971756615E-2},{"$f":"IF(INDEX(PC_MAPPING,RIGHT($C67,1),MATCH($E$2,'Data by Building Type'!$D$22:$F$22,0))=\"Yes\",1,0)*\n(AC$10*OFFSET('Efficiency Distributions'!$D$10,MATCH($C67,'Efficiency Distributions'!$C$9:$C$87,0)+RIGHT($E75),0)\n+AC$11*OFFSET('Efficiency Distributions'!$E$10,MATCH($C67,'Efficiency Distributions'!$C$9:$C$87,0)+RIGHT($E75),0))\n/SUM(AC$10:AC$11)","v":7.3701410971756615E-2},{"$f":"IF(INDEX(PC_MAPPING,RIGHT($C67,1),MATCH($E$2,'Data by Building Type'!$D$22:$F$22,0))=\"Yes\",1,0)*\n(AD$10*OFFSET('Efficiency Distributions'!$D$10,MATCH($C67,'Efficiency Distributions'!$C$9:$C$87,0)+RIGHT($E75),0)\n+AD$11*OFFSET('Efficiency Distributions'!$E$10,MATCH($C67,'Efficiency Distributions'!$C$9:$C$87,0)+RIGHT($E75),0))\n/SUM(AD$10:AD$11)","v":7.3701410971756615E-2},{"$f":"IF(INDEX(PC_MAPPING,RIGHT($C67,1),MATCH($E$2,'Data by Building Type'!$D$22:$F$22,0))=\"Yes\",1,0)*\n(AE$10*OFFSET('Efficiency Distributions'!$D$10,MATCH($C67,'Efficiency Distributions'!$C$9:$C$87,0)+RIGHT($E75),0)\n+AE$11*OFFSET('Efficiency Distributions'!$E$10,MATCH($C67,'Efficiency Distributions'!$C$9:$C$87,0)+RIGHT($E75),0))\n/SUM(AE$10:AE$11)","v":7.3701410971756615E-2},{"$f":"IF(INDEX(PC_MAPPING,RIGHT($C67,1),MATCH($E$2,'Data by Building Type'!$D$22:$F$22,0))=\"Yes\",1,0)*\n(AF$10*OFFSET('Efficiency Distributions'!$D$10,MATCH($C67,'Efficiency Distributions'!$C$9:$C$87,0)+RIGHT($E75),0)\n+AF$11*OFFSET('Efficiency Distributions'!$E$10,MATCH($C67,'Efficiency Distributions'!$C$9:$C$87,0)+RIGHT($E75),0))\n/SUM(AF$10:AF$11)","v":7.3701410971756615E-2},{"$f":"IF(INDEX(PC_MAPPING,RIGHT($C67,1),MATCH($E$2,'Data by Building Type'!$D$22:$F$22,0))=\"Yes\",1,0)*\n(AG$10*OFFSET('Efficiency Distributions'!$D$10,MATCH($C67,'Efficiency Distributions'!$C$9:$C$87,0)+RIGHT($E75),0)\n+AG$11*OFFSET('Efficiency Distributions'!$E$10,MATCH($C67,'Efficiency Distributions'!$C$9:$C$87,0)+RIGHT($E75),0))\n/SUM(AG$10:AG$11)","v":7.3701410971756615E-2},{"$f":"IF(INDEX(PC_MAPPING,RIGHT($C67,1),MATCH($E$2,'Data by Building Type'!$D$22:$F$22,0))=\"Yes\",1,0)*\n(AH$10*OFFSET('Efficiency Distributions'!$D$10,MATCH($C67,'Efficiency Distributions'!$C$9:$C$87,0)+RIGHT($E75),0)\n+AH$11*OFFSET('Efficiency Distributions'!$E$10,MATCH($C67,'Efficiency Distributions'!$C$9:$C$87,0)+RIGHT($E75),0))\n/SUM(AH$10:AH$11)","v":7.3701410971756615E-2},{"$f":"IF(INDEX(PC_MAPPING,RIGHT($C67,1),MATCH($E$2,'Data by Building Type'!$D$22:$F$22,0))=\"Yes\",1,0)*\n(AI$10*OFFSET('Efficiency Distributions'!$D$10,MATCH($C67,'Efficiency Distributions'!$C$9:$C$87,0)+RIGHT($E75),0)\n+AI$11*OFFSET('Efficiency Distributions'!$E$10,MATCH($C67,'Efficiency Distributions'!$C$9:$C$87,0)+RIGHT($E75),0))\n/SUM(AI$10:AI$11)","v":7.3701410971756615E-2},{"$f":"IF(INDEX(PC_MAPPING,RIGHT($C67,1),MATCH($E$2,'Data by Building Type'!$D$22:$F$22,0))=\"Yes\",1,0)*\n(AJ$10*OFFSET('Efficiency Distributions'!$D$10,MATCH($C67,'Efficiency Distributions'!$C$9:$C$87,0)+RIGHT($E75),0)\n+AJ$11*OFFSET('Efficiency Distributions'!$E$10,MATCH($C67,'Efficiency Distributions'!$C$9:$C$87,0)+RIGHT($E75),0))\n/SUM(AJ$10:AJ$11)","v":7.3701410971756615E-2},{"$f":"IF(INDEX(PC_MAPPING,RIGHT($C67,1),MATCH($E$2,'Data by Building Type'!$D$22:$F$22,0))=\"Yes\",1,0)*\n(AK$10*OFFSET('Efficiency Distributions'!$D$10,MATCH($C67,'Efficiency Distributions'!$C$9:$C$87,0)+RIGHT($E75),0)\n+AK$11*OFFSET('Efficiency Distributions'!$E$10,MATCH($C67,'Efficiency Distributions'!$C$9:$C$87,0)+RIGHT($E75),0))\n/SUM(AK$10:AK$11)","v":6.5605369344290426E-2},{"$f":"IF(INDEX(PC_MAPPING,RIGHT($C67,1),MATCH($E$2,'Data by Building Type'!$D$22:$F$22,0))=\"Yes\",1,0)*\n(AL$10*OFFSET('Efficiency Distributions'!$D$10,MATCH($C67,'Efficiency Distributions'!$C$9:$C$87,0)+RIGHT($E75),0)\n+AL$11*OFFSET('Efficiency Distributions'!$E$10,MATCH($C67,'Efficiency Distributions'!$C$9:$C$87,0)+RIGHT($E75),0))\n/SUM(AL$10:AL$11)","v":6.5280202307588381E-2},{"$f":"IF(INDEX(PC_MAPPING,RIGHT($C67,1),MATCH($E$2,'Data by Building Type'!$D$22:$F$22,0))=\"Yes\",1,0)*\n(AM$10*OFFSET('Efficiency Distributions'!$D$10,MATCH($C67,'Efficiency Distributions'!$C$9:$C$87,0)+RIGHT($E75),0)\n+AM$11*OFFSET('Efficiency Distributions'!$E$10,MATCH($C67,'Efficiency Distributions'!$C$9:$C$87,0)+RIGHT($E75),0))\n/SUM(AM$10:AM$11)","v":5.7583553508974254E-2},{"$f":"IF(INDEX(PC_MAPPING,RIGHT($C67,1),MATCH($E$2,'Data by Building Type'!$D$22:$F$22,0))=\"Yes\",1,0)*\n(AN$10*OFFSET('Efficiency Distributions'!$D$10,MATCH($C67,'Efficiency Distributions'!$C$9:$C$87,0)+RIGHT($E75),0)\n+AN$11*OFFSET('Efficiency Distributions'!$E$10,MATCH($C67,'Efficiency Distributions'!$C$9:$C$87,0)+RIGHT($E75),0))\n/SUM(AN$10:AN$11)","v":5.7976200199613852E-2},{"$f":"IF(INDEX(PC_MAPPING,RIGHT($C67,1),MATCH($E$2,'Data by Building Type'!$D$22:$F$22,0))=\"Yes\",1,0)*\n(AO$10*OFFSET('Efficiency Distributions'!$D$10,MATCH($C67,'Efficiency Distributions'!$C$9:$C$87,0)+RIGHT($E75),0)\n+AO$11*OFFSET('Efficiency Distributions'!$E$10,MATCH($C67,'Efficiency Distributions'!$C$9:$C$87,0)+RIGHT($E75),0))\n/SUM(AO$10:AO$11)","v":5.7497795656883191E-2},{"$f":"IF(INDEX(PC_MAPPING,RIGHT($C67,1),MATCH($E$2,'Data by Building Type'!$D$22:$F$22,0))=\"Yes\",1,0)*\n(AP$10*OFFSET('Efficiency Distributions'!$D$10,MATCH($C67,'Efficiency Distributions'!$C$9:$C$87,0)+RIGHT($E75),0)\n+AP$11*OFFSET('Efficiency Distributions'!$E$10,MATCH($C67,'Efficiency Distributions'!$C$9:$C$87,0)+RIGHT($E75),0))\n/SUM(AP$10:AP$11)","v":5.6516646514609664E-2},{"$f":"IF(INDEX(PC_MAPPING,RIGHT($C67,1),MATCH($E$2,'Data by Building Type'!$D$22:$F$22,0))=\"Yes\",1,0)*\n(AQ$10*OFFSET('Efficiency Distributions'!$D$10,MATCH($C67,'Efficiency Distributions'!$C$9:$C$87,0)+RIGHT($E75),0)\n+AQ$11*OFFSET('Efficiency Distributions'!$E$10,MATCH($C67,'Efficiency Distributions'!$C$9:$C$87,0)+RIGHT($E75),0))\n/SUM(AQ$10:AQ$11)","v":5.5519969468257817E-2},{"$f":"IF(INDEX(PC_MAPPING,RIGHT($C67,1),MATCH($E$2,'Data by Building Type'!$D$22:$F$22,0))=\"Yes\",1,0)*\n(AR$10*OFFSET('Efficiency Distributions'!$D$10,MATCH($C67,'Efficiency Distributions'!$C$9:$C$87,0)+RIGHT($E75),0)\n+AR$11*OFFSET('Efficiency Distributions'!$E$10,MATCH($C67,'Efficiency Distributions'!$C$9:$C$87,0)+RIGHT($E75),0))\n/SUM(AR$10:AR$11)","v":5.5727897385918664E-2},{"$f":"IF(INDEX(PC_MAPPING,RIGHT($C67,1),MATCH($E$2,'Data by Building Type'!$D$22:$F$22,0))=\"Yes\",1,0)*\n(AS$10*OFFSET('Efficiency Distributions'!$D$10,MATCH($C67,'Efficiency Distributions'!$C$9:$C$87,0)+RIGHT($E75),0)\n+AS$11*OFFSET('Efficiency Distributions'!$E$10,MATCH($C67,'Efficiency Distributions'!$C$9:$C$87,0)+RIGHT($E75),0))\n/SUM(AS$10:AS$11)","v":5.2300102814597661E-2},{"$f":"IF(INDEX(PC_MAPPING,RIGHT($C67,1),MATCH($E$2,'Data by Building Type'!$D$22:$F$22,0))=\"Yes\",1,0)*\n(AT$10*OFFSET('Efficiency Distributions'!$D$10,MATCH($C67,'Efficiency Distributions'!$C$9:$C$87,0)+RIGHT($E75),0)\n+AT$11*OFFSET('Efficiency Distributions'!$E$10,MATCH($C67,'Efficiency Distributions'!$C$9:$C$87,0)+RIGHT($E75),0))\n/SUM(AT$10:AT$11)","v":4.867706680733954E-2},{"$f":"IF(INDEX(PC_MAPPING,RIGHT($C67,1),MATCH($E$2,'Data by Building Type'!$D$22:$F$22,0))=\"Yes\",1,0)*\n(AU$10*OFFSET('Efficiency Distributions'!$D$10,MATCH($C67,'Efficiency Distributions'!$C$9:$C$87,0)+RIGHT($E75),0)\n+AU$11*OFFSET('Efficiency Distributions'!$E$10,MATCH($C67,'Efficiency Distributions'!$C$9:$C$87,0)+RIGHT($E75),0))\n/SUM(AU$10:AU$11)","v":4.7541527970663564E-2},{"$f":"IF(INDEX(PC_MAPPING,RIGHT($C67,1),MATCH($E$2,'Data by Building Type'!$D$22:$F$22,0))=\"Yes\",1,0)*\n(AV$10*OFFSET('Efficiency Distributions'!$D$10,MATCH($C67,'Efficiency Distributions'!$C$9:$C$87,0)+RIGHT($E75),0)\n+AV$11*OFFSET('Efficiency Distributions'!$E$10,MATCH($C67,'Efficiency Distributions'!$C$9:$C$87,0)+RIGHT($E75),0))\n/SUM(AV$10:AV$11)","v":5.5641562667612166E-2},{"$f":"IF(INDEX(PC_MAPPING,RIGHT($C67,1),MATCH($E$2,'Data by Building Type'!$D$22:$F$22,0))=\"Yes\",1,0)*\n(AW$10*OFFSET('Efficiency Distributions'!$D$10,MATCH($C67,'Efficiency Distributions'!$C$9:$C$87,0)+RIGHT($E75),0)\n+AW$11*OFFSET('Efficiency Distributions'!$E$10,MATCH($C67,'Efficiency Distributions'!$C$9:$C$87,0)+RIGHT($E75),0))\n/SUM(AW$10:AW$11)","v":5.2971490185682153E-2},{"$f":"IF(INDEX(PC_MAPPING,RIGHT($C67,1),MATCH($E$2,'Data by Building Type'!$D$22:$F$22,0))=\"Yes\",1,0)*\n(AX$10*OFFSET('Efficiency Distributions'!$D$10,MATCH($C67,'Efficiency Distributions'!$C$9:$C$87,0)+RIGHT($E75),0)\n+AX$11*OFFSET('Efficiency Distributions'!$E$10,MATCH($C67,'Efficiency Distributions'!$C$9:$C$87,0)+RIGHT($E75),0))\n/SUM(AX$10:AX$11)","v":5.4431428197008601E-2},{"$f":"IF(INDEX(PC_MAPPING,RIGHT($C67,1),MATCH($E$2,'Data by Building Type'!$D$22:$F$22,0))=\"Yes\",1,0)*\n(AY$10*OFFSET('Efficiency Distributions'!$D$10,MATCH($C67,'Efficiency Distributions'!$C$9:$C$87,0)+RIGHT($E75),0)\n+AY$11*OFFSET('Efficiency Distributions'!$E$10,MATCH($C67,'Efficiency Distributions'!$C$9:$C$87,0)+RIGHT($E75),0))\n/SUM(AY$10:AY$11)","v":5.6886365313482942E-2},{"$f":"IF(INDEX(PC_MAPPING,RIGHT($C67,1),MATCH($E$2,'Data by Building Type'!$D$22:$F$22,0))=\"Yes\",1,0)*\n(AZ$10*OFFSET('Efficiency Distributions'!$D$10,MATCH($C67,'Efficiency Distributions'!$C$9:$C$87,0)+RIGHT($E75),0)\n+AZ$11*OFFSET('Efficiency Distributions'!$E$10,MATCH($C67,'Efficiency Distributions'!$C$9:$C$87,0)+RIGHT($E75),0))\n/SUM(AZ$10:AZ$11)","v":6.033084304309784E-2},{"$f":"IF(INDEX(PC_MAPPING,RIGHT($C67,1),MATCH($E$2,'Data by Building Type'!$D$22:$F$22,0))=\"Yes\",1,0)*\n(BA$10*OFFSET('Efficiency Distributions'!$D$10,MATCH($C67,'Efficiency Distributions'!$C$9:$C$87,0)+RIGHT($E75),0)\n+BA$11*OFFSET('Efficiency Distributions'!$E$10,MATCH($C67,'Efficiency Distributions'!$C$9:$C$87,0)+RIGHT($E75),0))\n/SUM(BA$10:BA$11)","v":5.8894723082910605E-2},{"$f":"IF(INDEX(PC_MAPPING,RIGHT($C67,1),MATCH($E$2,'Data by Building Type'!$D$22:$F$22,0))=\"Yes\",1,0)*\n(BB$10*OFFSET('Efficiency Distributions'!$D$10,MATCH($C67,'Efficiency Distributions'!$C$9:$C$87,0)+RIGHT($E75),0)\n+BB$11*OFFSET('Efficiency Distributions'!$E$10,MATCH($C67,'Efficiency Distributions'!$C$9:$C$87,0)+RIGHT($E75),0))\n/SUM(BB$10:BB$11)","v":5.8324865370030246E-2},{"$f":"IF(INDEX(PC_MAPPING,RIGHT($C67,1),MATCH($E$2,'Data by Building Type'!$D$22:$F$22,0))=\"Yes\",1,0)*\n(BC$10*OFFSET('Efficiency Distributions'!$D$10,MATCH($C67,'Efficiency Distributions'!$C$9:$C$87,0)+RIGHT($E75),0)\n+BC$11*OFFSET('Efficiency Distributions'!$E$10,MATCH($C67,'Efficiency Distributions'!$C$9:$C$87,0)+RIGHT($E75),0))\n/SUM(BC$10:BC$11)","v":5.8698034015043657E-2},{"$f":"IF(INDEX(PC_MAPPING,RIGHT($C67,1),MATCH($E$2,'Data by Building Type'!$D$22:$F$22,0))=\"Yes\",1,0)*\n(BD$10*OFFSET('Efficiency Distributions'!$D$10,MATCH($C67,'Efficiency Distributions'!$C$9:$C$87,0)+RIGHT($E75),0)\n+BD$11*OFFSET('Efficiency Distributions'!$E$10,MATCH($C67,'Efficiency Distributions'!$C$9:$C$87,0)+RIGHT($E75),0))\n/SUM(BD$10:BD$11)","v":6.1048233216969547E-2},{"$f":"IF(INDEX(PC_MAPPING,RIGHT($C67,1),MATCH($E$2,'Data by Building Type'!$D$22:$F$22,0))=\"Yes\",1,0)*\n(BE$10*OFFSET('Efficiency Distributions'!$D$10,MATCH($C67,'Efficiency Distributions'!$C$9:$C$87,0)+RIGHT($E75),0)\n+BE$11*OFFSET('Efficiency Distributions'!$E$10,MATCH($C67,'Efficiency Distributions'!$C$9:$C$87,0)+RIGHT($E75),0))\n/SUM(BE$10:BE$11)","v":5.9697202287841977E-2},{"$f":"IF(INDEX(PC_MAPPING,RIGHT($C67,1),MATCH($E$2,'Data by Building Type'!$D$22:$F$22,0))=\"Yes\",1,0)*\n(BF$10*OFFSET('Efficiency Distributions'!$D$10,MATCH($C67,'Efficiency Distributions'!$C$9:$C$87,0)+RIGHT($E75),0)\n+BF$11*OFFSET('Efficiency Distributions'!$E$10,MATCH($C67,'Efficiency Distributions'!$C$9:$C$87,0)+RIGHT($E75),0))\n/SUM(BF$10:BF$11)","v":6.407581181102541E-2},{"$f":"IF(INDEX(PC_MAPPING,RIGHT($C67,1),MATCH($E$2,'Data by Building Type'!$D$22:$F$22,0))=\"Yes\",1,0)*\n(BG$10*OFFSET('Efficiency Distributions'!$D$10,MATCH($C67,'Efficiency Distributions'!$C$9:$C$87,0)+RIGHT($E75),0)\n+BG$11*OFFSET('Efficiency Distributions'!$E$10,MATCH($C67,'Efficiency Distributions'!$C$9:$C$87,0)+RIGHT($E75),0))\n/SUM(BG$10:BG$11)","v":6.4119093491190646E-2}]
[null,null,null,null,"EL5",{"$f":"IF(INDEX(PC_MAPPING,RIGHT($C67,1),MATCH($E$2,'Data by Building Type'!$D$22:$F$22,0))=\"Yes\",1,0)*\n(F$10*OFFSET('Efficiency Distributions'!$D$10,MATCH($C67,'Efficiency Distributions'!$C$9:$C$87,0)+RIGHT($E76),0)\n+F$11*OFFSET('Efficiency Distributions'!$E$10,MATCH($C67,'Efficiency Distributions'!$C$9:$C$87,0)+RIGHT($E76),0))\n/SUM(F$10:F$11)","v":0.25907650368678614},{"$f":"IF(INDEX(PC_MAPPING,RIGHT($C67,1),MATCH($E$2,'Data by Building Type'!$D$22:$F$22,0))=\"Yes\",1,0)*\n(G$10*OFFSET('Efficiency Distributions'!$D$10,MATCH($C67,'Efficiency Distributions'!$C$9:$C$87,0)+RIGHT($E76),0)\n+G$11*OFFSET('Efficiency Distributions'!$E$10,MATCH($C67,'Efficiency Distributions'!$C$9:$C$87,0)+RIGHT($E76),0))\n/SUM(G$10:G$11)","v":0.27547438130485069},{"$f":"IF(INDEX(PC_MAPPING,RIGHT($C67,1),MATCH($E$2,'Data by Building Type'!$D$22:$F$22,0))=\"Yes\",1,0)*\n(H$10*OFFSET('Efficiency Distributions'!$D$10,MATCH($C67,'Efficiency Distributions'!$C$9:$C$87,0)+RIGHT($E76),0)\n+H$11*OFFSET('Efficiency Distributions'!$E$10,MATCH($C67,'Efficiency Distributions'!$C$9:$C$87,0)+RIGHT($E76),0))\n/SUM(H$10:H$11)","v":0.26783007319021085},{"$f":"IF(INDEX(PC_MAPPING,RIGHT($C67,1),MATCH($E$2,'Data by Building Type'!$D$22:$F$22,0))=\"Yes\",1,0)*\n(I$10*OFFSET('Efficiency Distributions'!$D$10,MATCH($C67,'Efficiency Distributions'!$C$9:$C$87,0)+RIGHT($E76),0)\n+I$11*OFFSET('Efficiency Distributions'!$E$10,MATCH($C67,'Efficiency Distributions'!$C$9:$C$87,0)+RIGHT($E76),0))\n/SUM(I$10:I$11)","v":0.24564475488829196},{"$f":"IF(INDEX(PC_MAPPING,RIGHT($C67,1),MATCH($E$2,'Data by Building Type'!$D$22:$F$22,0))=\"Yes\",1,0)*\n(J$10*OFFSET('Efficiency Distributions'!$D$10,MATCH($C67,'Efficiency Distributions'!$C$9:$C$87,0)+RIGHT($E76),0)\n+J$11*OFFSET('Efficiency Distributions'!$E$10,MATCH($C67,'Efficiency Distributions'!$C$9:$C$87,0)+RIGHT($E76),0))\n/SUM(J$10:J$11)","v":0.22025934596362398},{"$f":"IF(INDEX(PC_MAPPING,RIGHT($C67,1),MATCH($E$2,'Data by Building Type'!$D$22:$F$22,0))=\"Yes\",1,0)*\n(K$10*OFFSET('Efficiency Distributions'!$D$10,MATCH($C67,'Efficiency Distributions'!$C$9:$C$87,0)+RIGHT($E76),0)\n+K$11*OFFSET('Efficiency Distributions'!$E$10,MATCH($C67,'Efficiency Distributions'!$C$9:$C$87,0)+RIGHT($E76),0))\n/SUM(K$10:K$11)","v":0.22741279363413025},{"$f":"IF(INDEX(PC_MAPPING,RIGHT($C67,1),MATCH($E$2,'Data by Building Type'!$D$22:$F$22,0))=\"Yes\",1,0)*\n(L$10*OFFSET('Efficiency Distributions'!$D$10,MATCH($C67,'Efficiency Distributions'!$C$9:$C$87,0)+RIGHT($E76),0)\n+L$11*OFFSET('Efficiency Distributions'!$E$10,MATCH($C67,'Efficiency Distributions'!$C$9:$C$87,0)+RIGHT($E76),0))\n/SUM(L$10:L$11)","v":0.22077768510297344},{"$f":"IF(INDEX(PC_MAPPING,RIGHT($C67,1),MATCH($E$2,'Data by Building Type'!$D$22:$F$22,0))=\"Yes\",1,0)*\n(M$10*OFFSET('Efficiency Distributions'!$D$10,MATCH($C67,'Efficiency Distributions'!$C$9:$C$87,0)+RIGHT($E76),0)\n+M$11*OFFSET('Efficiency Distributions'!$E$10,MATCH($C67,'Efficiency Distributions'!$C$9:$C$87,0)+RIGHT($E76),0))\n/SUM(M$10:M$11)","v":0.20745663196936034},{"$f":"IF(INDEX(PC_MAPPING,RIGHT($C67,1),MATCH($E$2,'Data by Building Type'!$D$22:$F$22,0))=\"Yes\",1,0)*\n(N$10*OFFSET('Efficiency Distributions'!$D$10,MATCH($C67,'Efficiency Distributions'!$C$9:$C$87,0)+RIGHT($E76),0)\n+N$11*OFFSET('Efficiency Distributions'!$E$10,MATCH($C67,'Efficiency Distributions'!$C$9:$C$87,0)+RIGHT($E76),0))\n/SUM(N$10:N$11)","v":0.19655581378665757},{"$f":"IF(INDEX(PC_MAPPING,RIGHT($C67,1),MATCH($E$2,'Data by Building Type'!$D$22:$F$22,0))=\"Yes\",1,0)*\n(O$10*OFFSET('Efficiency Distributions'!$D$10,MATCH($C67,'Efficiency Distributions'!$C$9:$C$87,0)+RIGHT($E76),0)\n+O$11*OFFSET('Efficiency Distributions'!$E$10,MATCH($C67,'Efficiency Distributions'!$C$9:$C$87,0)+RIGHT($E76),0))\n/SUM(O$10:O$11)","v":0.20673864128872294},{"$f":"IF(INDEX(PC_MAPPING,RIGHT($C67,1),MATCH($E$2,'Data by Building Type'!$D$22:$F$22,0))=\"Yes\",1,0)*\n(P$10*OFFSET('Efficiency Distributions'!$D$10,MATCH($C67,'Efficiency Distributions'!$C$9:$C$87,0)+RIGHT($E76),0)\n+P$11*OFFSET('Efficiency Distributions'!$E$10,MATCH($C67,'Efficiency Distributions'!$C$9:$C$87,0)+RIGHT($E76),0))\n/SUM(P$10:P$11)","v":0.25155517103142672},{"$f":"IF(INDEX(PC_MAPPING,RIGHT($C67,1),MATCH($E$2,'Data by Building Type'!$D$22:$F$22,0))=\"Yes\",1,0)*\n(Q$10*OFFSET('Efficiency Distributions'!$D$10,MATCH($C67,'Efficiency Distributions'!$C$9:$C$87,0)+RIGHT($E76),0)\n+Q$11*OFFSET('Efficiency Distributions'!$E$10,MATCH($C67,'Efficiency Distributions'!$C$9:$C$87,0)+RIGHT($E76),0))\n/SUM(Q$10:Q$11)","v":0.25021460227113423},{"$f":"IF(INDEX(PC_MAPPING,RIGHT($C67,1),MATCH($E$2,'Data by Building Type'!$D$22:$F$22,0))=\"Yes\",1,0)*\n(R$10*OFFSET('Efficiency Distributions'!$D$10,MATCH($C67,'Efficiency Distributions'!$C$9:$C$87,0)+RIGHT($E76),0)\n+R$11*OFFSET('Efficiency Distributions'!$E$10,MATCH($C67,'Efficiency Distributions'!$C$9:$C$87,0)+RIGHT($E76),0))\n/SUM(R$10:R$11)","v":0.3338240379308976},{"$f":"IF(INDEX(PC_MAPPING,RIGHT($C67,1),MATCH($E$2,'Data by Building Type'!$D$22:$F$22,0))=\"Yes\",1,0)*\n(S$10*OFFSET('Efficiency Distributions'!$D$10,MATCH($C67,'Efficiency Distributions'!$C$9:$C$87,0)+RIGHT($E76),0)\n+S$11*OFFSET('Efficiency Distributions'!$E$10,MATCH($C67,'Efficiency Distributions'!$C$9:$C$87,0)+RIGHT($E76),0))\n/SUM(S$10:S$11)","v":0.3338240379308976},{"$f":"IF(INDEX(PC_MAPPING,RIGHT($C67,1),MATCH($E$2,'Data by Building Type'!$D$22:$F$22,0))=\"Yes\",1,0)*\n(T$10*OFFSET('Efficiency Distributions'!$D$10,MATCH($C67,'Efficiency Distributions'!$C$9:$C$87,0)+RIGHT($E76),0)\n+T$11*OFFSET('Efficiency Distributions'!$E$10,MATCH($C67,'Efficiency Distributions'!$C$9:$C$87,0)+RIGHT($E76),0))\n/SUM(T$10:T$11)","v":0.3338240379308976},{"$f":"IF(INDEX(PC_MAPPING,RIGHT($C67,1),MATCH($E$2,'Data by Building Type'!$D$22:$F$22,0))=\"Yes\",1,0)*\n(U$10*OFFSET('Efficiency Distributions'!$D$10,MATCH($C67,'Efficiency Distributions'!$C$9:$C$87,0)+RIGHT($E76),0)\n+U$11*OFFSET('Efficiency Distributions'!$E$10,MATCH($C67,'Efficiency Distributions'!$C$9:$C$87,0)+RIGHT($E76),0))\n/SUM(U$10:U$11)","v":0.3338240379308976},{"$f":"IF(INDEX(PC_MAPPING,RIGHT($C67,1),MATCH($E$2,'Data by Building Type'!$D$22:$F$22,0))=\"Yes\",1,0)*\n(V$10*OFFSET('Efficiency Distributions'!$D$10,MATCH($C67,'Efficiency Distributions'!$C$9:$C$87,0)+RIGHT($E76),0)\n+V$11*OFFSET('Efficiency Distributions'!$E$10,MATCH($C67,'Efficiency Distributions'!$C$9:$C$87,0)+RIGHT($E76),0))\n/SUM(V$10:V$11)","v":0.3338240379308976},{"$f":"IF(INDEX(PC_MAPPING,RIGHT($C67,1),MATCH($E$2,'Data by Building Type'!$D$22:$F$22,0))=\"Yes\",1,0)*\n(W$10*OFFSET('Efficiency Distributions'!$D$10,MATCH($C67,'Efficiency Distributions'!$C$9:$C$87,0)+RIGHT($E76),0)\n+W$11*OFFSET('Efficiency Distributions'!$E$10,MATCH($C67,'Efficiency Distributions'!$C$9:$C$87,0)+RIGHT($E76),0))\n/SUM(W$10:W$11)","v":0.3338240379308976},{"$f":"IF(INDEX(PC_MAPPING,RIGHT($C67,1),MATCH($E$2,'Data by Building Type'!$D$22:$F$22,0))=\"Yes\",1,0)*\n(X$10*OFFSET('Efficiency Distributions'!$D$10,MATCH($C67,'Efficiency Distributions'!$C$9:$C$87,0)+RIGHT($E76),0)\n+X$11*OFFSET('Efficiency Distributions'!$E$10,MATCH($C67,'Efficiency Distributions'!$C$9:$C$87,0)+RIGHT($E76),0))\n/SUM(X$10:X$11)","v":0.3338240379308976},{"$f":"IF(INDEX(PC_MAPPING,RIGHT($C67,1),MATCH($E$2,'Data by Building Type'!$D$22:$F$22,0))=\"Yes\",1,0)*\n(Y$10*OFFSET('Efficiency Distributions'!$D$10,MATCH($C67,'Efficiency Distributions'!$C$9:$C$87,0)+RIGHT($E76),0)\n+Y$11*OFFSET('Efficiency Distributions'!$E$10,MATCH($C67,'Efficiency Distributions'!$C$9:$C$87,0)+RIGHT($E76),0))\n/SUM(Y$10:Y$11)","v":0.3338240379308976},{"$f":"IF(INDEX(PC_MAPPING,RIGHT($C67,1),MATCH($E$2,'Data by Building Type'!$D$22:$F$22,0))=\"Yes\",1,0)*\n(Z$10*OFFSET('Efficiency Distributions'!$D$10,MATCH($C67,'Efficiency Distributions'!$C$9:$C$87,0)+RIGHT($E76),0)\n+Z$11*OFFSET('Efficiency Distributions'!$E$10,MATCH($C67,'Efficiency Distributions'!$C$9:$C$87,0)+RIGHT($E76),0))\n/SUM(Z$10:Z$11)","v":0.3338240379308976},{"$f":"IF(INDEX(PC_MAPPING,RIGHT($C67,1),MATCH($E$2,'Data by Building Type'!$D$22:$F$22,0))=\"Yes\",1,0)*\n(AA$10*OFFSET('Efficiency Distributions'!$D$10,MATCH($C67,'Efficiency Distributions'!$C$9:$C$87,0)+RIGHT($E76),0)\n+AA$11*OFFSET('Efficiency Distributions'!$E$10,MATCH($C67,'Efficiency Distributions'!$C$9:$C$87,0)+RIGHT($E76),0))\n/SUM(AA$10:AA$11)","v":0.3338240379308976},{"$f":"IF(INDEX(PC_MAPPING,RIGHT($C67,1),MATCH($E$2,'Data by Building Type'!$D$22:$F$22,0))=\"Yes\",1,0)*\n(AB$10*OFFSET('Efficiency Distributions'!$D$10,MATCH($C67,'Efficiency Distributions'!$C$9:$C$87,0)+RIGHT($E76),0)\n+AB$11*OFFSET('Efficiency Distributions'!$E$10,MATCH($C67,'Efficiency Distributions'!$C$9:$C$87,0)+RIGHT($E76),0))\n/SUM(AB$10:AB$11)","v":0.3338240379308976},{"$f":"IF(INDEX(PC_MAPPING,RIGHT($C67,1),MATCH($E$2,'Data by Building Type'!$D$22:$F$22,0))=\"Yes\",1,0)*\n(AC$10*OFFSET('Efficiency Distributions'!$D$10,MATCH($C67,'Efficiency Distributions'!$C$9:$C$87,0)+RIGHT($E76),0)\n+AC$11*OFFSET('Efficiency Distributions'!$E$10,MATCH($C67,'Efficiency Distributions'!$C$9:$C$87,0)+RIGHT($E76),0))\n/SUM(AC$10:AC$11)","v":0.3338240379308976},{"$f":"IF(INDEX(PC_MAPPING,RIGHT($C67,1),MATCH($E$2,'Data by Building Type'!$D$22:$F$22,0))=\"Yes\",1,0)*\n(AD$10*OFFSET('Efficiency Distributions'!$D$10,MATCH($C67,'Efficiency Distributions'!$C$9:$C$87,0)+RIGHT($E76),0)\n+AD$11*OFFSET('Efficiency Distributions'!$E$10,MATCH($C67,'Efficiency Distributions'!$C$9:$C$87,0)+RIGHT($E76),0))\n/SUM(AD$10:AD$11)","v":0.3338240379308976},{"$f":"IF(INDEX(PC_MAPPING,RIGHT($C67,1),MATCH($E$2,'Data by Building Type'!$D$22:$F$22,0))=\"Yes\",1,0)*\n(AE$10*OFFSET('Efficiency Distributions'!$D$10,MATCH($C67,'Efficiency Distributions'!$C$9:$C$87,0)+RIGHT($E76),0)\n+AE$11*OFFSET('Efficiency Distributions'!$E$10,MATCH($C67,'Efficiency Distributions'!$C$9:$C$87,0)+RIGHT($E76),0))\n/SUM(AE$10:AE$11)","v":0.3338240379308976},{"$f":"IF(INDEX(PC_MAPPING,RIGHT($C67,1),MATCH($E$2,'Data by Building Type'!$D$22:$F$22,0))=\"Yes\",1,0)*\n(AF$10*OFFSET('Efficiency Distributions'!$D$10,MATCH($C67,'Efficiency Distributions'!$C$9:$C$87,0)+RIGHT($E76),0)\n+AF$11*OFFSET('Efficiency Distributions'!$E$10,MATCH($C67,'Efficiency Distributions'!$C$9:$C$87,0)+RIGHT($E76),0))\n/SUM(AF$10:AF$11)","v":0.3338240379308976},{"$f":"IF(INDEX(PC_MAPPING,RIGHT($C67,1),MATCH($E$2,'Data by Building Type'!$D$22:$F$22,0))=\"Yes\",1,0)*\n(AG$10*OFFSET('Efficiency Distributions'!$D$10,MATCH($C67,'Efficiency Distributions'!$C$9:$C$87,0)+RIGHT($E76),0)\n+AG$11*OFFSET('Efficiency Distributions'!$E$10,MATCH($C67,'Efficiency Distributions'!$C$9:$C$87,0)+RIGHT($E76),0))\n/SUM(AG$10:AG$11)","v":0.3338240379308976},{"$f":"IF(INDEX(PC_MAPPING,RIGHT($C67,1),MATCH($E$2,'Data by Building Type'!$D$22:$F$22,0))=\"Yes\",1,0)*\n(AH$10*OFFSET('Efficiency Distributions'!$D$10,MATCH($C67,'Efficiency Distributions'!$C$9:$C$87,0)+RIGHT($E76),0)\n+AH$11*OFFSET('Efficiency Distributions'!$E$10,MATCH($C67,'Efficiency Distributions'!$C$9:$C$87,0)+RIGHT($E76),0))\n/SUM(AH$10:AH$11)","v":0.3338240379308976},{"$f":"IF(INDEX(PC_MAPPING,RIGHT($C67,1),MATCH($E$2,'Data by Building Type'!$D$22:$F$22,0))=\"Yes\",1,0)*\n(AI$10*OFFSET('Efficiency Distributions'!$D$10,MATCH($C67,'Efficiency Distributions'!$C$9:$C$87,0)+RIGHT($E76),0)\n+AI$11*OFFSET('Efficiency Distributions'!$E$10,MATCH($C67,'Efficiency Distributions'!$C$9:$C$87,0)+RIGHT($E76),0))\n/SUM(AI$10:AI$11)","v":0.3338240379308976},{"$f":"IF(INDEX(PC_MAPPING,RIGHT($C67,1),MATCH($E$2,'Data by Building Type'!$D$22:$F$22,0))=\"Yes\",1,0)*\n(AJ$10*OFFSET('Efficiency Distributions'!$D$10,MATCH($C67,'Efficiency Distributions'!$C$9:$C$87,0)+RIGHT($E76),0)\n+AJ$11*OFFSET('Efficiency Distributions'!$E$10,MATCH($C67,'Efficiency Distributions'!$C$9:$C$87,0)+RIGHT($E76),0))\n/SUM(AJ$10:AJ$11)","v":0.3338240379308976},{"$f":"IF(INDEX(PC_MAPPING,RIGHT($C67,1),MATCH($E$2,'Data by Building Type'!$D$22:$F$22,0))=\"Yes\",1,0)*\n(AK$10*OFFSET('Efficiency Distributions'!$D$10,MATCH($C67,'Efficiency Distributions'!$C$9:$C$87,0)+RIGHT($E76),0)\n+AK$11*OFFSET('Efficiency Distributions'!$E$10,MATCH($C67,'Efficiency Distributions'!$C$9:$C$87,0)+RIGHT($E76),0))\n/SUM(AK$10:AK$11)","v":0.2971537317359037},{"$f":"IF(INDEX(PC_MAPPING,RIGHT($C67,1),MATCH($E$2,'Data by Building Type'!$D$22:$F$22,0))=\"Yes\",1,0)*\n(AL$10*OFFSET('Efficiency Distributions'!$D$10,MATCH($C67,'Efficiency Distributions'!$C$9:$C$87,0)+RIGHT($E76),0)\n+AL$11*OFFSET('Efficiency Distributions'!$E$10,MATCH($C67,'Efficiency Distributions'!$C$9:$C$87,0)+RIGHT($E76),0))\n/SUM(AL$10:AL$11)","v":0.29568091633437088},{"$f":"IF(INDEX(PC_MAPPING,RIGHT($C67,1),MATCH($E$2,'Data by Building Type'!$D$22:$F$22,0))=\"Yes\",1,0)*\n(AM$10*OFFSET('Efficiency Distributions'!$D$10,MATCH($C67,'Efficiency Distributions'!$C$9:$C$87,0)+RIGHT($E76),0)\n+AM$11*OFFSET('Efficiency Distributions'!$E$10,MATCH($C67,'Efficiency Distributions'!$C$9:$C$87,0)+RIGHT($E76),0))\n/SUM(AM$10:AM$11)","v":0.26081962471711867},{"$f":"IF(INDEX(PC_MAPPING,RIGHT($C67,1),MATCH($E$2,'Data by Building Type'!$D$22:$F$22,0))=\"Yes\",1,0)*\n(AN$10*OFFSET('Efficiency Distributions'!$D$10,MATCH($C67,'Efficiency Distributions'!$C$9:$C$87,0)+RIGHT($E76),0)\n+AN$11*OFFSET('Efficiency Distributions'!$E$10,MATCH($C67,'Efficiency Distributions'!$C$9:$C$87,0)+RIGHT($E76),0))\n/SUM(AN$10:AN$11)","v":0.26259808325707451},{"$f":"IF(INDEX(PC_MAPPING,RIGHT($C67,1),MATCH($E$2,'Data by Building Type'!$D$22:$F$22,0))=\"Yes\",1,0)*\n(AO$10*OFFSET('Efficiency Distributions'!$D$10,MATCH($C67,'Efficiency Distributions'!$C$9:$C$87,0)+RIGHT($E76),0)\n+AO$11*OFFSET('Efficiency Distributions'!$E$10,MATCH($C67,'Efficiency Distributions'!$C$9:$C$87,0)+RIGHT($E76),0))\n/SUM(AO$10:AO$11)","v":0.26043119209294147},{"$f":"IF(INDEX(PC_MAPPING,RIGHT($C67,1),MATCH($E$2,'Data by Building Type'!$D$22:$F$22,0))=\"Yes\",1,0)*\n(AP$10*OFFSET('Efficiency Distributions'!$D$10,MATCH($C67,'Efficiency Distributions'!$C$9:$C$87,0)+RIGHT($E76),0)\n+AP$11*OFFSET('Efficiency Distributions'!$E$10,MATCH($C67,'Efficiency Distributions'!$C$9:$C$87,0)+RIGHT($E76),0))\n/SUM(AP$10:AP$11)","v":0.25598716362499668},{"$f":"IF(INDEX(PC_MAPPING,RIGHT($C67,1),MATCH($E$2,'Data by Building Type'!$D$22:$F$22,0))=\"Yes\",1,0)*\n(AQ$10*OFFSET('Efficiency Distributions'!$D$10,MATCH($C67,'Efficiency Distributions'!$C$9:$C$87,0)+RIGHT($E76),0)\n+AQ$11*OFFSET('Efficiency Distributions'!$E$10,MATCH($C67,'Efficiency Distributions'!$C$9:$C$87,0)+RIGHT($E76),0))\n/SUM(AQ$10:AQ$11)","v":0.25147280288563834},{"$f":"IF(INDEX(PC_MAPPING,RIGHT($C67,1),MATCH($E$2,'Data by Building Type'!$D$22:$F$22,0))=\"Yes\",1,0)*\n(AR$10*OFFSET('Efficiency Distributions'!$D$10,MATCH($C67,'Efficiency Distributions'!$C$9:$C$87,0)+RIGHT($E76),0)\n+AR$11*OFFSET('Efficiency Distributions'!$E$10,MATCH($C67,'Efficiency Distributions'!$C$9:$C$87,0)+RIGHT($E76),0))\n/SUM(AR$10:AR$11)","v":0.25241459404210215},{"$f":"IF(INDEX(PC_MAPPING,RIGHT($C67,1),MATCH($E$2,'Data by Building Type'!$D$22:$F$22,0))=\"Yes\",1,0)*\n(AS$10*OFFSET('Efficiency Distributions'!$D$10,MATCH($C67,'Efficiency Distributions'!$C$9:$C$87,0)+RIGHT($E76),0)\n+AS$11*OFFSET('Efficiency Distributions'!$E$10,MATCH($C67,'Efficiency Distributions'!$C$9:$C$87,0)+RIGHT($E76),0))\n/SUM(AS$10:AS$11)","v":0.23688870098376585},{"$f":"IF(INDEX(PC_MAPPING,RIGHT($C67,1),MATCH($E$2,'Data by Building Type'!$D$22:$F$22,0))=\"Yes\",1,0)*\n(AT$10*OFFSET('Efficiency Distributions'!$D$10,MATCH($C67,'Efficiency Distributions'!$C$9:$C$87,0)+RIGHT($E76),0)\n+AT$11*OFFSET('Efficiency Distributions'!$E$10,MATCH($C67,'Efficiency Distributions'!$C$9:$C$87,0)+RIGHT($E76),0))\n/SUM(AT$10:AT$11)","v":0.2204784790685379},{"$f":"IF(INDEX(PC_MAPPING,RIGHT($C67,1),MATCH($E$2,'Data by Building Type'!$D$22:$F$22,0))=\"Yes\",1,0)*\n(AU$10*OFFSET('Efficiency Distributions'!$D$10,MATCH($C67,'Efficiency Distributions'!$C$9:$C$87,0)+RIGHT($E76),0)\n+AU$11*OFFSET('Efficiency Distributions'!$E$10,MATCH($C67,'Efficiency Distributions'!$C$9:$C$87,0)+RIGHT($E76),0))\n/SUM(AU$10:AU$11)","v":0.21533515610241732},{"$f":"IF(INDEX(PC_MAPPING,RIGHT($C67,1),MATCH($E$2,'Data by Building Type'!$D$22:$F$22,0))=\"Yes\",1,0)*\n(AV$10*OFFSET('Efficiency Distributions'!$D$10,MATCH($C67,'Efficiency Distributions'!$C$9:$C$87,0)+RIGHT($E76),0)\n+AV$11*OFFSET('Efficiency Distributions'!$E$10,MATCH($C67,'Efficiency Distributions'!$C$9:$C$87,0)+RIGHT($E76),0))\n/SUM(AV$10:AV$11)","v":0.25202354855330211},{"$f":"IF(INDEX(PC_MAPPING,RIGHT($C67,1),MATCH($E$2,'Data by Building Type'!$D$22:$F$22,0))=\"Yes\",1,0)*\n(AW$10*OFFSET('Efficiency Distributions'!$D$10,MATCH($C67,'Efficiency Distributions'!$C$9:$C$87,0)+RIGHT($E76),0)\n+AW$11*OFFSET('Efficiency Distributions'!$E$10,MATCH($C67,'Efficiency Distributions'!$C$9:$C$87,0)+RIGHT($E76),0))\n/SUM(AW$10:AW$11)","v":0.23992969084103094},{"$f":"IF(INDEX(PC_MAPPING,RIGHT($C67,1),MATCH($E$2,'Data by Building Type'!$D$22:$F$22,0))=\"Yes\",1,0)*\n(AX$10*OFFSET('Efficiency Distributions'!$D$10,MATCH($C67,'Efficiency Distributions'!$C$9:$C$87,0)+RIGHT($E76),0)\n+AX$11*OFFSET('Efficiency Distributions'!$E$10,MATCH($C67,'Efficiency Distributions'!$C$9:$C$87,0)+RIGHT($E76),0))\n/SUM(AX$10:AX$11)","v":0.24654235124527421},{"$f":"IF(INDEX(PC_MAPPING,RIGHT($C67,1),MATCH($E$2,'Data by Building Type'!$D$22:$F$22,0))=\"Yes\",1,0)*\n(AY$10*OFFSET('Efficiency Distributions'!$D$10,MATCH($C67,'Efficiency Distributions'!$C$9:$C$87,0)+RIGHT($E76),0)\n+AY$11*OFFSET('Efficiency Distributions'!$E$10,MATCH($C67,'Efficiency Distributions'!$C$9:$C$87,0)+RIGHT($E76),0))\n/SUM(AY$10:AY$11)","v":0.25766177230224629},{"$f":"IF(INDEX(PC_MAPPING,RIGHT($C67,1),MATCH($E$2,'Data by Building Type'!$D$22:$F$22,0))=\"Yes\",1,0)*\n(AZ$10*OFFSET('Efficiency Distributions'!$D$10,MATCH($C67,'Efficiency Distributions'!$C$9:$C$87,0)+RIGHT($E76),0)\n+AZ$11*OFFSET('Efficiency Distributions'!$E$10,MATCH($C67,'Efficiency Distributions'!$C$9:$C$87,0)+RIGHT($E76),0))\n/SUM(AZ$10:AZ$11)","v":0.27326323025403138},{"$f":"IF(INDEX(PC_MAPPING,RIGHT($C67,1),MATCH($E$2,'Data by Building Type'!$D$22:$F$22,0))=\"Yes\",1,0)*\n(BA$10*OFFSET('Efficiency Distributions'!$D$10,MATCH($C67,'Efficiency Distributions'!$C$9:$C$87,0)+RIGHT($E76),0)\n+BA$11*OFFSET('Efficiency Distributions'!$E$10,MATCH($C67,'Efficiency Distributions'!$C$9:$C$87,0)+RIGHT($E76),0))\n/SUM(BA$10:BA$11)","v":0.26675845161083039},{"$f":"IF(INDEX(PC_MAPPING,RIGHT($C67,1),MATCH($E$2,'Data by Building Type'!$D$22:$F$22,0))=\"Yes\",1,0)*\n(BB$10*OFFSET('Efficiency Distributions'!$D$10,MATCH($C67,'Efficiency Distributions'!$C$9:$C$87,0)+RIGHT($E76),0)\n+BB$11*OFFSET('Efficiency Distributions'!$E$10,MATCH($C67,'Efficiency Distributions'!$C$9:$C$87,0)+RIGHT($E76),0))\n/SUM(BB$10:BB$11)","v":0.26417733138190169},{"$f":"IF(INDEX(PC_MAPPING,RIGHT($C67,1),MATCH($E$2,'Data by Building Type'!$D$22:$F$22,0))=\"Yes\",1,0)*\n(BC$10*OFFSET('Efficiency Distributions'!$D$10,MATCH($C67,'Efficiency Distributions'!$C$9:$C$87,0)+RIGHT($E76),0)\n+BC$11*OFFSET('Efficiency Distributions'!$E$10,MATCH($C67,'Efficiency Distributions'!$C$9:$C$87,0)+RIGHT($E76),0))\n/SUM(BC$10:BC$11)","v":0.26586756583284477},{"$f":"IF(INDEX(PC_MAPPING,RIGHT($C67,1),MATCH($E$2,'Data by Building Type'!$D$22:$F$22,0))=\"Yes\",1,0)*\n(BD$10*OFFSET('Efficiency Distributions'!$D$10,MATCH($C67,'Efficiency Distributions'!$C$9:$C$87,0)+RIGHT($E76),0)\n+BD$11*OFFSET('Efficiency Distributions'!$E$10,MATCH($C67,'Efficiency Distributions'!$C$9:$C$87,0)+RIGHT($E76),0))\n/SUM(BD$10:BD$11)","v":0.27651258574745025},{"$f":"IF(INDEX(PC_MAPPING,RIGHT($C67,1),MATCH($E$2,'Data by Building Type'!$D$22:$F$22,0))=\"Yes\",1,0)*\n(BE$10*OFFSET('Efficiency Distributions'!$D$10,MATCH($C67,'Efficiency Distributions'!$C$9:$C$87,0)+RIGHT($E76),0)\n+BE$11*OFFSET('Efficiency Distributions'!$E$10,MATCH($C67,'Efficiency Distributions'!$C$9:$C$87,0)+RIGHT($E76),0))\n/SUM(BE$10:BE$11)","v":0.2703932103625783},{"$f":"IF(INDEX(PC_MAPPING,RIGHT($C67,1),MATCH($E$2,'Data by Building Type'!$D$22:$F$22,0))=\"Yes\",1,0)*\n(BF$10*OFFSET('Efficiency Distributions'!$D$10,MATCH($C67,'Efficiency Distributions'!$C$9:$C$87,0)+RIGHT($E76),0)\n+BF$11*OFFSET('Efficiency Distributions'!$E$10,MATCH($C67,'Efficiency Distributions'!$C$9:$C$87,0)+RIGHT($E76),0))\n/SUM(BF$10:BF$11)","v":0.2902257358499386},{"$f":"IF(INDEX(PC_MAPPING,RIGHT($C67,1),MATCH($E$2,'Data by Building Type'!$D$22:$F$22,0))=\"Yes\",1,0)*\n(BG$10*OFFSET('Efficiency Distributions'!$D$10,MATCH($C67,'Efficiency Distributions'!$C$9:$C$87,0)+RIGHT($E76),0)\n+BG$11*OFFSET('Efficiency Distributions'!$E$10,MATCH($C67,'Efficiency Distributions'!$C$9:$C$87,0)+RIGHT($E76),0))\n/SUM(BG$10:BG$11)","v":0.29042177640127526}]
[null,null,null,null,"EL6",{"$f":"IF(INDEX(PC_MAPPING,RIGHT($C67,1),MATCH($E$2,'Data by Building Type'!$D$22:$F$22,0))=\"Yes\",1,0)*\n(F$10*OFFSET('Efficiency Distributions'!$D$10,MATCH($C67,'Efficiency Distributions'!$C$9:$C$87,0)+RIGHT($E77),0)\n+F$11*OFFSET('Efficiency Distributions'!$E$10,MATCH($C67,'Efficiency Distributions'!$C$9:$C$87,0)+RIGHT($E77),0))\n/SUM(F$10:F$11)","v":0},{"$f":"IF(INDEX(PC_MAPPING,RIGHT($C67,1),MATCH($E$2,'Data by Building Type'!$D$22:$F$22,0))=\"Yes\",1,0)*\n(G$10*OFFSET('Efficiency Distributions'!$D$10,MATCH($C67,'Efficiency Distributions'!$C$9:$C$87,0)+RIGHT($E77),0)\n+G$11*OFFSET('Efficiency Distributions'!$E$10,MATCH($C67,'Efficiency Distributions'!$C$9:$C$87,0)+RIGHT($E77),0))\n/SUM(G$10:G$11)","v":0},{"$f":"IF(INDEX(PC_MAPPING,RIGHT($C67,1),MATCH($E$2,'Data by Building Type'!$D$22:$F$22,0))=\"Yes\",1,0)*\n(H$10*OFFSET('Efficiency Distributions'!$D$10,MATCH($C67,'Efficiency Distributions'!$C$9:$C$87,0)+RIGHT($E77),0)\n+H$11*OFFSET('Efficiency Distributions'!$E$10,MATCH($C67,'Efficiency Distributions'!$C$9:$C$87,0)+RIGHT($E77),0))\n/SUM(H$10:H$11)","v":0},{"$f":"IF(INDEX(PC_MAPPING,RIGHT($C67,1),MATCH($E$2,'Data by Building Type'!$D$22:$F$22,0))=\"Yes\",1,0)*\n(I$10*OFFSET('Efficiency Distributions'!$D$10,MATCH($C67,'Efficiency Distributions'!$C$9:$C$87,0)+RIGHT($E77),0)\n+I$11*OFFSET('Efficiency Distributions'!$E$10,MATCH($C67,'Efficiency Distributions'!$C$9:$C$87,0)+RIGHT($E77),0))\n/SUM(I$10:I$11)","v":0},{"$f":"IF(INDEX(PC_MAPPING,RIGHT($C67,1),MATCH($E$2,'Data by Building Type'!$D$22:$F$22,0))=\"Yes\",1,0)*\n(J$10*OFFSET('Efficiency Distributions'!$D$10,MATCH($C67,'Efficiency Distributions'!$C$9:$C$87,0)+RIGHT($E77),0)\n+J$11*OFFSET('Efficiency Distributions'!$E$10,MATCH($C67,'Efficiency Distributions'!$C$9:$C$87,0)+RIGHT($E77),0))\n/SUM(J$10:J$11)","v":0},{"$f":"IF(INDEX(PC_MAPPING,RIGHT($C67,1),MATCH($E$2,'Data by Building Type'!$D$22:$F$22,0))=\"Yes\",1,0)*\n(K$10*OFFSET('Efficiency Distributions'!$D$10,MATCH($C67,'Efficiency Distributions'!$C$9:$C$87,0)+RIGHT($E77),0)\n+K$11*OFFSET('Efficiency Distributions'!$E$10,MATCH($C67,'Efficiency Distributions'!$C$9:$C$87,0)+RIGHT($E77),0))\n/SUM(K$10:K$11)","v":0},{"$f":"IF(INDEX(PC_MAPPING,RIGHT($C67,1),MATCH($E$2,'Data by Building Type'!$D$22:$F$22,0))=\"Yes\",1,0)*\n(L$10*OFFSET('Efficiency Distributions'!$D$10,MATCH($C67,'Efficiency Distributions'!$C$9:$C$87,0)+RIGHT($E77),0)\n+L$11*OFFSET('Efficiency Distributions'!$E$10,MATCH($C67,'Efficiency Distributions'!$C$9:$C$87,0)+RIGHT($E77),0))\n/SUM(L$10:L$11)","v":0},{"$f":"IF(INDEX(PC_MAPPING,RIGHT($C67,1),MATCH($E$2,'Data by Building Type'!$D$22:$F$22,0))=\"Yes\",1,0)*\n(M$10*OFFSET('Efficiency Distributions'!$D$10,MATCH($C67,'Efficiency Distributions'!$C$9:$C$87,0)+RIGHT($E77),0)\n+M$11*OFFSET('Efficiency Distributions'!$E$10,MATCH($C67,'Efficiency Distributions'!$C$9:$C$87,0)+RIGHT($E77),0))\n/SUM(M$10:M$11)","v":0},{"$f":"IF(INDEX(PC_MAPPING,RIGHT($C67,1),MATCH($E$2,'Data by Building Type'!$D$22:$F$22,0))=\"Yes\",1,0)*\n(N$10*OFFSET('Efficiency Distributions'!$D$10,MATCH($C67,'Efficiency Distributions'!$C$9:$C$87,0)+RIGHT($E77),0)\n+N$11*OFFSET('Efficiency Distributions'!$E$10,MATCH($C67,'Efficiency Distributions'!$C$9:$C$87,0)+RIGHT($E77),0))\n/SUM(N$10:N$11)","v":0},{"$f":"IF(INDEX(PC_MAPPING,RIGHT($C67,1),MATCH($E$2,'Data by Building Type'!$D$22:$F$22,0))=\"Yes\",1,0)*\n(O$10*OFFSET('Efficiency Distributions'!$D$10,MATCH($C67,'Efficiency Distributions'!$C$9:$C$87,0)+RIGHT($E77),0)\n+O$11*OFFSET('Efficiency Distributions'!$E$10,MATCH($C67,'Efficiency Distributions'!$C$9:$C$87,0)+RIGHT($E77),0))\n/SUM(O$10:O$11)","v":0},{"$f":"IF(INDEX(PC_MAPPING,RIGHT($C67,1),MATCH($E$2,'Data by Building Type'!$D$22:$F$22,0))=\"Yes\",1,0)*\n(P$10*OFFSET('Efficiency Distributions'!$D$10,MATCH($C67,'Efficiency Distributions'!$C$9:$C$87,0)+RIGHT($E77),0)\n+P$11*OFFSET('Efficiency Distributions'!$E$10,MATCH($C67,'Efficiency Distributions'!$C$9:$C$87,0)+RIGHT($E77),0))\n/SUM(P$10:P$11)","v":0},{"$f":"IF(INDEX(PC_MAPPING,RIGHT($C67,1),MATCH($E$2,'Data by Building Type'!$D$22:$F$22,0))=\"Yes\",1,0)*\n(Q$10*OFFSET('Efficiency Distributions'!$D$10,MATCH($C67,'Efficiency Distributions'!$C$9:$C$87,0)+RIGHT($E77),0)\n+Q$11*OFFSET('Efficiency Distributions'!$E$10,MATCH($C67,'Efficiency Distributions'!$C$9:$C$87,0)+RIGHT($E77),0))\n/SUM(Q$10:Q$11)","v":0},{"$f":"IF(INDEX(PC_MAPPING,RIGHT($C67,1),MATCH($E$2,'Data by Building Type'!$D$22:$F$22,0))=\"Yes\",1,0)*\n(R$10*OFFSET('Efficiency Distributions'!$D$10,MATCH($C67,'Efficiency Distributions'!$C$9:$C$87,0)+RIGHT($E77),0)\n+R$11*OFFSET('Efficiency Distributions'!$E$10,MATCH($C67,'Efficiency Distributions'!$C$9:$C$87,0)+RIGHT($E77),0))\n/SUM(R$10:R$11)","v":0},{"$f":"IF(INDEX(PC_MAPPING,RIGHT($C67,1),MATCH($E$2,'Data by Building Type'!$D$22:$F$22,0))=\"Yes\",1,0)*\n(S$10*OFFSET('Efficiency Distributions'!$D$10,MATCH($C67,'Efficiency Distributions'!$C$9:$C$87,0)+RIGHT($E77),0)\n+S$11*OFFSET('Efficiency Distributions'!$E$10,MATCH($C67,'Efficiency Distributions'!$C$9:$C$87,0)+RIGHT($E77),0))\n/SUM(S$10:S$11)","v":0},{"$f":"IF(INDEX(PC_MAPPING,RIGHT($C67,1),MATCH($E$2,'Data by Building Type'!$D$22:$F$22,0))=\"Yes\",1,0)*\n(T$10*OFFSET('Efficiency Distributions'!$D$10,MATCH($C67,'Efficiency Distributions'!$C$9:$C$87,0)+RIGHT($E77),0)\n+T$11*OFFSET('Efficiency Distributions'!$E$10,MATCH($C67,'Efficiency Distributions'!$C$9:$C$87,0)+RIGHT($E77),0))\n/SUM(T$10:T$11)","v":0},{"$f":"IF(INDEX(PC_MAPPING,RIGHT($C67,1),MATCH($E$2,'Data by Building Type'!$D$22:$F$22,0))=\"Yes\",1,0)*\n(U$10*OFFSET('Efficiency Distributions'!$D$10,MATCH($C67,'Efficiency Distributions'!$C$9:$C$87,0)+RIGHT($E77),0)\n+U$11*OFFSET('Efficiency Distributions'!$E$10,MATCH($C67,'Efficiency Distributions'!$C$9:$C$87,0)+RIGHT($E77),0))\n/SUM(U$10:U$11)","v":0},{"$f":"IF(INDEX(PC_MAPPING,RIGHT($C67,1),MATCH($E$2,'Data by Building Type'!$D$22:$F$22,0))=\"Yes\",1,0)*\n(V$10*OFFSET('Efficiency Distributions'!$D$10,MATCH($C67,'Efficiency Distributions'!$C$9:$C$87,0)+RIGHT($E77),0)\n+V$11*OFFSET('Efficiency Distributions'!$E$10,MATCH($C67,'Efficiency Distributions'!$C$9:$C$87,0)+RIGHT($E77),0))\n/SUM(V$10:V$11)","v":0},{"$f":"IF(INDEX(PC_MAPPING,RIGHT($C67,1),MATCH($E$2,'Data by Building Type'!$D$22:$F$22,0))=\"Yes\",1,0)*\n(W$10*OFFSET('Efficiency Distributions'!$D$10,MATCH($C67,'Efficiency Distributions'!$C$9:$C$87,0)+RIGHT($E77),0)\n+W$11*OFFSET('Efficiency Distributions'!$E$10,MATCH($C67,'Efficiency Distributions'!$C$9:$C$87,0)+RIGHT($E77),0))\n/SUM(W$10:W$11)","v":0},{"$f":"IF(INDEX(PC_MAPPING,RIGHT($C67,1),MATCH($E$2,'Data by Building Type'!$D$22:$F$22,0))=\"Yes\",1,0)*\n(X$10*OFFSET('Efficiency Distributions'!$D$10,MATCH($C67,'Efficiency Distributions'!$C$9:$C$87,0)+RIGHT($E77),0)\n+X$11*OFFSET('Efficiency Distributions'!$E$10,MATCH($C67,'Efficiency Distributions'!$C$9:$C$87,0)+RIGHT($E77),0))\n/SUM(X$10:X$11)","v":0},{"$f":"IF(INDEX(PC_MAPPING,RIGHT($C67,1),MATCH($E$2,'Data by Building Type'!$D$22:$F$22,0))=\"Yes\",1,0)*\n(Y$10*OFFSET('Efficiency Distributions'!$D$10,MATCH($C67,'Efficiency Distributions'!$C$9:$C$87,0)+RIGHT($E77),0)\n+Y$11*OFFSET('Efficiency Distributions'!$E$10,MATCH($C67,'Efficiency Distributions'!$C$9:$C$87,0)+RIGHT($E77),0))\n/SUM(Y$10:Y$11)","v":0},{"$f":"IF(INDEX(PC_MAPPING,RIGHT($C67,1),MATCH($E$2,'Data by Building Type'!$D$22:$F$22,0))=\"Yes\",1,0)*\n(Z$10*OFFSET('Efficiency Distributions'!$D$10,MATCH($C67,'Efficiency Distributions'!$C$9:$C$87,0)+RIGHT($E77),0)\n+Z$11*OFFSET('Efficiency Distributions'!$E$10,MATCH($C67,'Efficiency Distributions'!$C$9:$C$87,0)+RIGHT($E77),0))\n/SUM(Z$10:Z$11)","v":0},{"$f":"IF(INDEX(PC_MAPPING,RIGHT($C67,1),MATCH($E$2,'Data by Building Type'!$D$22:$F$22,0))=\"Yes\",1,0)*\n(AA$10*OFFSET('Efficiency Distributions'!$D$10,MATCH($C67,'Efficiency Distributions'!$C$9:$C$87,0)+RIGHT($E77),0)\n+AA$11*OFFSET('Efficiency Distributions'!$E$10,MATCH($C67,'Efficiency Distributions'!$C$9:$C$87,0)+RIGHT($E77),0))\n/SUM(AA$10:AA$11)","v":0},{"$f":"IF(INDEX(PC_MAPPING,RIGHT($C67,1),MATCH($E$2,'Data by Building Type'!$D$22:$F$22,0))=\"Yes\",1,0)*\n(AB$10*OFFSET('Efficiency Distributions'!$D$10,MATCH($C67,'Efficiency Distributions'!$C$9:$C$87,0)+RIGHT($E77),0)\n+AB$11*OFFSET('Efficiency Distributions'!$E$10,MATCH($C67,'Efficiency Distributions'!$C$9:$C$87,0)+RIGHT($E77),0))\n/SUM(AB$10:AB$11)","v":0},{"$f":"IF(INDEX(PC_MAPPING,RIGHT($C67,1),MATCH($E$2,'Data by Building Type'!$D$22:$F$22,0))=\"Yes\",1,0)*\n(AC$10*OFFSET('Efficiency Distributions'!$D$10,MATCH($C67,'Efficiency Distributions'!$C$9:$C$87,0)+RIGHT($E77),0)\n+AC$11*OFFSET('Efficiency Distributions'!$E$10,MATCH($C67,'Efficiency Distributions'!$C$9:$C$87,0)+RIGHT($E77),0))\n/SUM(AC$10:AC$11)","v":0},{"$f":"IF(INDEX(PC_MAPPING,RIGHT($C67,1),MATCH($E$2,'Data by Building Type'!$D$22:$F$22,0))=\"Yes\",1,0)*\n(AD$10*OFFSET('Efficiency Distributions'!$D$10,MATCH($C67,'Efficiency Distributions'!$C$9:$C$87,0)+RIGHT($E77),0)\n+AD$11*OFFSET('Efficiency Distributions'!$E$10,MATCH($C67,'Efficiency Distributions'!$C$9:$C$87,0)+RIGHT($E77),0))\n/SUM(AD$10:AD$11)","v":0},{"$f":"IF(INDEX(PC_MAPPING,RIGHT($C67,1),MATCH($E$2,'Data by Building Type'!$D$22:$F$22,0))=\"Yes\",1,0)*\n(AE$10*OFFSET('Efficiency Distributions'!$D$10,MATCH($C67,'Efficiency Distributions'!$C$9:$C$87,0)+RIGHT($E77),0)\n+AE$11*OFFSET('Efficiency Distributions'!$E$10,MATCH($C67,'Efficiency Distributions'!$C$9:$C$87,0)+RIGHT($E77),0))\n/SUM(AE$10:AE$11)","v":0},{"$f":"IF(INDEX(PC_MAPPING,RIGHT($C67,1),MATCH($E$2,'Data by Building Type'!$D$22:$F$22,0))=\"Yes\",1,0)*\n(AF$10*OFFSET('Efficiency Distributions'!$D$10,MATCH($C67,'Efficiency Distributions'!$C$9:$C$87,0)+RIGHT($E77),0)\n+AF$11*OFFSET('Efficiency Distributions'!$E$10,MATCH($C67,'Efficiency Distributions'!$C$9:$C$87,0)+RIGHT($E77),0))\n/SUM(AF$10:AF$11)","v":0},{"$f":"IF(INDEX(PC_MAPPING,RIGHT($C67,1),MATCH($E$2,'Data by Building Type'!$D$22:$F$22,0))=\"Yes\",1,0)*\n(AG$10*OFFSET('Efficiency Distributions'!$D$10,MATCH($C67,'Efficiency Distributions'!$C$9:$C$87,0)+RIGHT($E77),0)\n+AG$11*OFFSET('Efficiency Distributions'!$E$10,MATCH($C67,'Efficiency Distributions'!$C$9:$C$87,0)+RIGHT($E77),0))\n/SUM(AG$10:AG$11)","v":0},{"$f":"IF(INDEX(PC_MAPPING,RIGHT($C67,1),MATCH($E$2,'Data by Building Type'!$D$22:$F$22,0))=\"Yes\",1,0)*\n(AH$10*OFFSET('Efficiency Distributions'!$D$10,MATCH($C67,'Efficiency Distributions'!$C$9:$C$87,0)+RIGHT($E77),0)\n+AH$11*OFFSET('Efficiency Distributions'!$E$10,MATCH($C67,'Efficiency Distributions'!$C$9:$C$87,0)+RIGHT($E77),0))\n/SUM(AH$10:AH$11)","v":0},{"$f":"IF(INDEX(PC_MAPPING,RIGHT($C67,1),MATCH($E$2,'Data by Building Type'!$D$22:$F$22,0))=\"Yes\",1,0)*\n(AI$10*OFFSET('Efficiency Distributions'!$D$10,MATCH($C67,'Efficiency Distributions'!$C$9:$C$87,0)+RIGHT($E77),0)\n+AI$11*OFFSET('Efficiency Distributions'!$E$10,MATCH($C67,'Efficiency Distributions'!$C$9:$C$87,0)+RIGHT($E77),0))\n/SUM(AI$10:AI$11)","v":0},{"$f":"IF(INDEX(PC_MAPPING,RIGHT($C67,1),MATCH($E$2,'Data by Building Type'!$D$22:$F$22,0))=\"Yes\",1,0)*\n(AJ$10*OFFSET('Efficiency Distributions'!$D$10,MATCH($C67,'Efficiency Distributions'!$C$9:$C$87,0)+RIGHT($E77),0)\n+AJ$11*OFFSET('Efficiency Distributions'!$E$10,MATCH($C67,'Efficiency Distributions'!$C$9:$C$87,0)+RIGHT($E77),0))\n/SUM(AJ$10:AJ$11)","v":0},{"$f":"IF(INDEX(PC_MAPPING,RIGHT($C67,1),MATCH($E$2,'Data by Building Type'!$D$22:$F$22,0))=\"Yes\",1,0)*\n(AK$10*OFFSET('Efficiency Distributions'!$D$10,MATCH($C67,'Efficiency Distributions'!$C$9:$C$87,0)+RIGHT($E77),0)\n+AK$11*OFFSET('Efficiency Distributions'!$E$10,MATCH($C67,'Efficiency Distributions'!$C$9:$C$87,0)+RIGHT($E77),0))\n/SUM(AK$10:AK$11)","v":0},{"$f":"IF(INDEX(PC_MAPPING,RIGHT($C67,1),MATCH($E$2,'Data by Building Type'!$D$22:$F$22,0))=\"Yes\",1,0)*\n(AL$10*OFFSET('Efficiency Distributions'!$D$10,MATCH($C67,'Efficiency Distributions'!$C$9:$C$87,0)+RIGHT($E77),0)\n+AL$11*OFFSET('Efficiency Distributions'!$E$10,MATCH($C67,'Efficiency Distributions'!$C$9:$C$87,0)+RIGHT($E77),0))\n/SUM(AL$10:AL$11)","v":0},{"$f":"IF(INDEX(PC_MAPPING,RIGHT($C67,1),MATCH($E$2,'Data by Building Type'!$D$22:$F$22,0))=\"Yes\",1,0)*\n(AM$10*OFFSET('Efficiency Distributions'!$D$10,MATCH($C67,'Efficiency Distributions'!$C$9:$C$87,0)+RIGHT($E77),0)\n+AM$11*OFFSET('Efficiency Distributions'!$E$10,MATCH($C67,'Efficiency Distributions'!$C$9:$C$87,0)+RIGHT($E77),0))\n/SUM(AM$10:AM$11)","v":0},{"$f":"IF(INDEX(PC_MAPPING,RIGHT($C67,1),MATCH($E$2,'Data by Building Type'!$D$22:$F$22,0))=\"Yes\",1,0)*\n(AN$10*OFFSET('Efficiency Distributions'!$D$10,MATCH($C67,'Efficiency Distributions'!$C$9:$C$87,0)+RIGHT($E77),0)\n+AN$11*OFFSET('Efficiency Distributions'!$E$10,MATCH($C67,'Efficiency Distributions'!$C$9:$C$87,0)+RIGHT($E77),0))\n/SUM(AN$10:AN$11)","v":0},{"$f":"IF(INDEX(PC_MAPPING,RIGHT($C67,1),MATCH($E$2,'Data by Building Type'!$D$22:$F$22,0))=\"Yes\",1,0)*\n(AO$10*OFFSET('Efficiency Distributions'!$D$10,MATCH($C67,'Efficiency Distributions'!$C$9:$C$87,0)+RIGHT($E77),0)\n+AO$11*OFFSET('Efficiency Distributions'!$E$10,MATCH($C67,'Efficiency Distributions'!$C$9:$C$87,0)+RIGHT($E77),0))\n/SUM(AO$10:AO$11)","v":0},{"$f":"IF(INDEX(PC_MAPPING,RIGHT($C67,1),MATCH($E$2,'Data by Building Type'!$D$22:$F$22,0))=\"Yes\",1,0)*\n(AP$10*OFFSET('Efficiency Distributions'!$D$10,MATCH($C67,'Efficiency Distributions'!$C$9:$C$87,0)+RIGHT($E77),0)\n+AP$11*OFFSET('Efficiency Distributions'!$E$10,MATCH($C67,'Efficiency Distributions'!$C$9:$C$87,0)+RIGHT($E77),0))\n/SUM(AP$10:AP$11)","v":0},{"$f":"IF(INDEX(PC_MAPPING,RIGHT($C67,1),MATCH($E$2,'Data by Building Type'!$D$22:$F$22,0))=\"Yes\",1,0)*\n(AQ$10*OFFSET('Efficiency Distributions'!$D$10,MATCH($C67,'Efficiency Distributions'!$C$9:$C$87,0)+RIGHT($E77),0)\n+AQ$11*OFFSET('Efficiency Distributions'!$E$10,MATCH($C67,'Efficiency Distributions'!$C$9:$C$87,0)+RIGHT($E77),0))\n/SUM(AQ$10:AQ$11)","v":0},{"$f":"IF(INDEX(PC_MAPPING,RIGHT($C67,1),MATCH($E$2,'Data by Building Type'!$D$22:$F$22,0))=\"Yes\",1,0)*\n(AR$10*OFFSET('Efficiency Distributions'!$D$10,MATCH($C67,'Efficiency Distributions'!$C$9:$C$87,0)+RIGHT($E77),0)\n+AR$11*OFFSET('Efficiency Distributions'!$E$10,MATCH($C67,'Efficiency Distributions'!$C$9:$C$87,0)+RIGHT($E77),0))\n/SUM(AR$10:AR$11)","v":0},{"$f":"IF(INDEX(PC_MAPPING,RIGHT($C67,1),MATCH($E$2,'Data by Building Type'!$D$22:$F$22,0))=\"Yes\",1,0)*\n(AS$10*OFFSET('Efficiency Distributions'!$D$10,MATCH($C67,'Efficiency Distributions'!$C$9:$C$87,0)+RIGHT($E77),0)\n+AS$11*OFFSET('Efficiency Distributions'!$E$10,MATCH($C67,'Efficiency Distributions'!$C$9:$C$87,0)+RIGHT($E77),0))\n/SUM(AS$10:AS$11)","v":0},{"$f":"IF(INDEX(PC_MAPPING,RIGHT($C67,1),MATCH($E$2,'Data by Building Type'!$D$22:$F$22,0))=\"Yes\",1,0)*\n(AT$10*OFFSET('Efficiency Distributions'!$D$10,MATCH($C67,'Efficiency Distributions'!$C$9:$C$87,0)+RIGHT($E77),0)\n+AT$11*OFFSET('Efficiency Distributions'!$E$10,MATCH($C67,'Efficiency Distributions'!$C$9:$C$87,0)+RIGHT($E77),0))\n/SUM(AT$10:AT$11)","v":0},{"$f":"IF(INDEX(PC_MAPPING,RIGHT($C67,1),MATCH($E$2,'Data by Building Type'!$D$22:$F$22,0))=\"Yes\",1,0)*\n(AU$10*OFFSET('Efficiency Distributions'!$D$10,MATCH($C67,'Efficiency Distributions'!$C$9:$C$87,0)+RIGHT($E77),0)\n+AU$11*OFFSET('Efficiency Distributions'!$E$10,MATCH($C67,'Efficiency Distributions'!$C$9:$C$87,0)+RIGHT($E77),0))\n/SUM(AU$10:AU$11)","v":0},{"$f":"IF(INDEX(PC_MAPPING,RIGHT($C67,1),MATCH($E$2,'Data by Building Type'!$D$22:$F$22,0))=\"Yes\",1,0)*\n(AV$10*OFFSET('Efficiency Distributions'!$D$10,MATCH($C67,'Efficiency Distributions'!$C$9:$C$87,0)+RIGHT($E77),0)\n+AV$11*OFFSET('Efficiency Distributions'!$E$10,MATCH($C67,'Efficiency Distributions'!$C$9:$C$87,0)+RIGHT($E77),0))\n/SUM(AV$10:AV$11)","v":0},{"$f":"IF(INDEX(PC_MAPPING,RIGHT($C67,1),MATCH($E$2,'Data by Building Type'!$D$22:$F$22,0))=\"Yes\",1,0)*\n(AW$10*OFFSET('Efficiency Distributions'!$D$10,MATCH($C67,'Efficiency Distributions'!$C$9:$C$87,0)+RIGHT($E77),0)\n+AW$11*OFFSET('Efficiency Distributions'!$E$10,MATCH($C67,'Efficiency Distributions'!$C$9:$C$87,0)+RIGHT($E77),0))\n/SUM(AW$10:AW$11)","v":0},{"$f":"IF(INDEX(PC_MAPPING,RIGHT($C67,1),MATCH($E$2,'Data by Building Type'!$D$22:$F$22,0))=\"Yes\",1,0)*\n(AX$10*OFFSET('Efficiency Distributions'!$D$10,MATCH($C67,'Efficiency Distributions'!$C$9:$C$87,0)+RIGHT($E77),0)\n+AX$11*OFFSET('Efficiency Distributions'!$E$10,MATCH($C67,'Efficiency Distributions'!$C$9:$C$87,0)+RIGHT($E77),0))\n/SUM(AX$10:AX$11)","v":0},{"$f":"IF(INDEX(PC_MAPPING,RIGHT($C67,1),MATCH($E$2,'Data by Building Type'!$D$22:$F$22,0))=\"Yes\",1,0)*\n(AY$10*OFFSET('Efficiency Distributions'!$D$10,MATCH($C67,'Efficiency Distributions'!$C$9:$C$87,0)+RIGHT($E77),0)\n+AY$11*OFFSET('Efficiency Distributions'!$E$10,MATCH($C67,'Efficiency Distributions'!$C$9:$C$87,0)+RIGHT($E77),0))\n/SUM(AY$10:AY$11)","v":0},{"$f":"IF(INDEX(PC_MAPPING,RIGHT($C67,1),MATCH($E$2,'Data by Building Type'!$D$22:$F$22,0))=\"Yes\",1,0)*\n(AZ$10*OFFSET('Efficiency Distributions'!$D$10,MATCH($C67,'Efficiency Distributions'!$C$9:$C$87,0)+RIGHT($E77),0)\n+AZ$11*OFFSET('Efficiency Distributions'!$E$10,MATCH($C67,'Efficiency Distributions'!$C$9:$C$87,0)+RIGHT($E77),0))\n/SUM(AZ$10:AZ$11)","v":0},{"$f":"IF(INDEX(PC_MAPPING,RIGHT($C67,1),MATCH($E$2,'Data by Building Type'!$D$22:$F$22,0))=\"Yes\",1,0)*\n(BA$10*OFFSET('Efficiency Distributions'!$D$10,MATCH($C67,'Efficiency Distributions'!$C$9:$C$87,0)+RIGHT($E77),0)\n+BA$11*OFFSET('Efficiency Distributions'!$E$10,MATCH($C67,'Efficiency Distributions'!$C$9:$C$87,0)+RIGHT($E77),0))\n/SUM(BA$10:BA$11)","v":0},{"$f":"IF(INDEX(PC_MAPPING,RIGHT($C67,1),MATCH($E$2,'Data by Building Type'!$D$22:$F$22,0))=\"Yes\",1,0)*\n(BB$10*OFFSET('Efficiency Distributions'!$D$10,MATCH($C67,'Efficiency Distributions'!$C$9:$C$87,0)+RIGHT($E77),0)\n+BB$11*OFFSET('Efficiency Distributions'!$E$10,MATCH($C67,'Efficiency Distributions'!$C$9:$C$87,0)+RIGHT($E77),0))\n/SUM(BB$10:BB$11)","v":0},{"$f":"IF(INDEX(PC_MAPPING,RIGHT($C67,1),MATCH($E$2,'Data by Building Type'!$D$22:$F$22,0))=\"Yes\",1,0)*\n(BC$10*OFFSET('Efficiency Distributions'!$D$10,MATCH($C67,'Efficiency Distributions'!$C$9:$C$87,0)+RIGHT($E77),0)\n+BC$11*OFFSET('Efficiency Distributions'!$E$10,MATCH($C67,'Efficiency Distributions'!$C$9:$C$87,0)+RIGHT($E77),0))\n/SUM(BC$10:BC$11)","v":0},{"$f":"IF(INDEX(PC_MAPPING,RIGHT($C67,1),MATCH($E$2,'Data by Building Type'!$D$22:$F$22,0))=\"Yes\",1,0)*\n(BD$10*OFFSET('Efficiency Distributions'!$D$10,MATCH($C67,'Efficiency Distributions'!$C$9:$C$87,0)+RIGHT($E77),0)\n+BD$11*OFFSET('Efficiency Distributions'!$E$10,MATCH($C67,'Efficiency Distributions'!$C$9:$C$87,0)+RIGHT($E77),0))\n/SUM(BD$10:BD$11)","v":0},{"$f":"IF(INDEX(PC_MAPPING,RIGHT($C67,1),MATCH($E$2,'Data by Building Type'!$D$22:$F$22,0))=\"Yes\",1,0)*\n(BE$10*OFFSET('Efficiency Distributions'!$D$10,MATCH($C67,'Efficiency Distributions'!$C$9:$C$87,0)+RIGHT($E77),0)\n+BE$11*OFFSET('Efficiency Distributions'!$E$10,MATCH($C67,'Efficiency Distributions'!$C$9:$C$87,0)+RIGHT($E77),0))\n/SUM(BE$10:BE$11)","v":0},{"$f":"IF(INDEX(PC_MAPPING,RIGHT($C67,1),MATCH($E$2,'Data by Building Type'!$D$22:$F$22,0))=\"Yes\",1,0)*\n(BF$10*OFFSET('Efficiency Distributions'!$D$10,MATCH($C67,'Efficiency Distributions'!$C$9:$C$87,0)+RIGHT($E77),0)\n+BF$11*OFFSET('Efficiency Distributions'!$E$10,MATCH($C67,'Efficiency Distributions'!$C$9:$C$87,0)+RIGHT($E77),0))\n/SUM(BF$10:BF$11)","v":0},{"$f":"IF(INDEX(PC_MAPPING,RIGHT($C67,1),MATCH($E$2,'Data by Building Type'!$D$22:$F$22,0))=\"Yes\",1,0)*\n(BG$10*OFFSET('Efficiency Distributions'!$D$10,MATCH($C67,'Efficiency Distributions'!$C$9:$C$87,0)+RIGHT($E77),0)\n+BG$11*OFFSET('Efficiency Distributions'!$E$10,MATCH($C67,'Efficiency Distributions'!$C$9:$C$87,0)+RIGHT($E77),0))\n/SUM(BG$10:BG$11)","v":0}]
[null,null,null,null,"TOTAL",{"$f":"SUM(F71:F77)","v":1},{"$f":"SUM(G71:G77)","v":1},1,1,1,1,1,1,1,1,1.0000000000000002,1,1,1,1,1,1,1,1,1,1,1,1,1,1,1,1,1,1,1,1,1,1,1,1,0.99999999999999978,1,0.99999999999999989,1,1,1,1,0.99999999999999989,1,1,1,1,1,0.99999999999999989,1,1,1,1,1]
[]
[null,null,null,"POST-Case"]
[null,null,null,null,"Efficiency Level",1981,{"$f":"F81+1","v":1982},{"$f":"G81+1","v":1983},1984,1985,{"$f":"J81+1","v":1986},1987,1988,1989,1990,1991,1992,1993,1994,1995,1996,1997,1998,1999,2000,2001,2002,2003,2004,2005,2006,2007,2008,2009,2010,2011,2012,2013,2014,2015,2016,2017,2018,2019,2020,2021,2022,2023,2024,2025,2026,2027,2028,2029,2030,2031,2032,2033,2034]
[null,null,null,null,"EL0",{"$f":"IF(F$29<STANDARD_YEAR,F71,\nIF(RIGHT($E82,1)>RIGHT(INDEX(STANDARD_LEVELS,1,MID($C67,4,1)),1),F71,\nIF(RIGHT($E82,1)<RIGHT(INDEX(STANDARD_LEVELS,1,MID($C67,4,1)),1),0,\nIF(RIGHT($E82,1)=RIGHT(INDEX(STANDARD_LEVELS,1,MID($C67,4,1)),1),SUM(OFFSET(F71,-(RIGHT($E82,1)),0,RIGHT($E82,1)+1,1)),\"ERROR\"))))","v":0.211643924148993},{"$f":"IF(G$29<STANDARD_YEAR,G71,\nIF(RIGHT($E82,1)>RIGHT(INDEX(STANDARD_LEVELS,1,MID($C67,4,1)),1),G71,\nIF(RIGHT($E82,1)<RIGHT(INDEX(STANDARD_LEVELS,1,MID($C67,4,1)),1),0,\nIF(RIGHT($E82,1)=RIGHT(INDEX(STANDARD_LEVELS,1,MID($C67,4,1)),1),SUM(OFFSET(G71,-(RIGHT($E82,1)),0,RIGHT($E82,1)+1,1)),\"ERROR\"))))","v":0.19266632870099049},0.20151324110383109,0.22718875871808428,0.25656780593842349,0.24828897625623522,0.25596792156798504,0.27138464580506311,0.28400038317925025,0.27221559094259495,0.22034851456537824,0.22189998190741,0.1251370908465077,0.1251370908465077,0.1251370908465077,0.1251370908465077,0.1251370908465077,0.1251370908465077,0.1251370908465077,0.1251370908465077,0.1251370908465077,0.1251370908465077,0.1251370908465077,0.1251370908465077,0.1251370908465077,0.1251370908465077,0.1251370908465077,0.1251370908465077,0.1251370908465077,0.1251370908465077,0.1251370908465077,0.16757637793792551,0.16928089699282362,0.2096265749224008,0.20756832888114815,0.21007611585520536,0.2152192798907239,0.22044384088656332,0,0,0,0,0,0,0,0,0,0,0,0,0,0,0,0]
[null,null,null,null,"EL1",{"$f":"IF(F$29<STANDARD_YEAR,F72,\nIF(RIGHT($E83,1)>RIGHT(INDEX(STANDARD_LEVELS,1,MID($C67,4,1)),1),F72,\nIF(RIGHT($E83,1)<RIGHT(INDEX(STANDARD_LEVELS,1,MID($C67,4,1)),1),0,\nIF(RIGHT($E83,1)=RIGHT(INDEX(STANDARD_LEVELS,1,MID($C67,4,1)),1),SUM(OFFSET(F72,-(RIGHT($E83,1)),0,RIGHT($E83,1)+1,1)),\"ERROR\"))))","v":0.25506223384638882},{"$f":"IF(G$29<STANDARD_YEAR,G72,\nIF(RIGHT($E83,1)>RIGHT(INDEX(STANDARD_LEVELS,1,MID($C67,4,1)),1),G72,\nIF(RIGHT($E83,1)<RIGHT(INDEX(STANDARD_LEVELS,1,MID($C67,4,1)),1),0,\nIF(RIGHT($E83,1)=RIGHT(INDEX(STANDARD_LEVELS,1,MID($C67,4,1)),1),SUM(OFFSET(G72,-(RIGHT($E83,1)),0,RIGHT($E83,1)+1,1)),\"ERROR\"))))","v":0.24028575653512863},0.24717420564099465,0.26716586920666546,0.29004120269489603,0.28359507840597731,0.28957411623953072,0.30157800137488994,0.31140096116899363,0.30222499809295594,0.26183986714265906,0.2630478822487618,0.18770563626976156,0.18770563626976158,0.18770563626976156,0.18770563626976156,0.18770563626976156,0.18770563626976153,0.18770563626976156,0.18770563626976156,0.18770563626976158,0.18770563626976156,0.18770563626976156,0.18770563626976156,0.18770563626976153,0.18770563626976156,0.18770563626976156,0.18770563626976153,0.18770563626976156,0.18770563626976156,0.18770563626976156,0.22075003141089608,0.222077216786426,0.25349147030275099,0.25188886337539335,0.25384149522620719,0.25784610407600372,0.26191409083585643,0,0,0,0,0,0,0,0,0,0,0,0,0,0,0,0]
[null,null,null,null,"EL2",{"$f":"IF(F$29<STANDARD_YEAR,F73,\nIF(RIGHT($E84,1)>RIGHT(INDEX(STANDARD_LEVELS,1,MID($C67,4,1)),1),F73,\nIF(RIGHT($E84,1)<RIGHT(INDEX(STANDARD_LEVELS,1,MID($C67,4,1)),1),0,\nIF(RIGHT($E84,1)=RIGHT(INDEX(STANDARD_LEVELS,1,MID($C67,4,1)),1),SUM(OFFSET(F73,-(RIGHT($E84,1)),0,RIGHT($E84,1)+1,1)),\"ERROR\"))))","v":0},{"$f":"IF(G$29<STANDARD_YEAR,G73,\nIF(RIGHT($E84,1)>RIGHT(INDEX(STANDARD_LEVELS,1,MID($C67,4,1)),1),G73,\nIF(RIGHT($E84,1)<RIGHT(INDEX(STANDARD_LEVELS,1,MID($C67,4,1)),1),0,\nIF(RIGHT($E84,1)=RIGHT(INDEX(STANDARD_LEVELS,1,MID($C67,4,1)),1),SUM(OFFSET(G73,-(RIGHT($E84,1)),0,RIGHT($E84,1)+1,1)),\"ERROR\"))))","v":0},0,0,0,0,0,0,0,0,0,0,0,0,0,0,0,0,0,0,0,0,0,0,0,0,0,0,0,0,0,0,0,0,0,0,0,0,0,0,0,0,0,0,0,0,0,0,0,0,0,0,0,0]
[null,null,null,null,"EL3",{"$f":"IF(F$29<STANDARD_YEAR,F74,\nIF(RIGHT($E85,1)>RIGHT(INDEX(STANDARD_LEVELS,1,MID($C67,4,1)),1),F74,\nIF(RIGHT($E85,1)<RIGHT(INDEX(STANDARD_LEVELS,1,MID($C67,4,1)),1),0,\nIF(RIGHT($E85,1)=RIGHT(INDEX(STANDARD_LEVELS,1,MID($C67,4,1)),1),SUM(OFFSET(F74,-(RIGHT($E85,1)),0,RIGHT($E85,1)+1,1)),\"ERROR\"))))","v":0.2170186297116585},{"$f":"IF(G$29<STANDARD_YEAR,G74,\nIF(RIGHT($E85,1)>RIGHT(INDEX(STANDARD_LEVELS,1,MID($C67,4,1)),1),G74,\nIF(RIGHT($E85,1)<RIGHT(INDEX(STANDARD_LEVELS,1,MID($C67,4,1)),1),0,\nIF(RIGHT($E85,1)=RIGHT(INDEX(STANDARD_LEVELS,1,MID($C67,4,1)),1),SUM(OFFSET(G74,-(RIGHT($E85,1)),0,RIGHT($E85,1)+1,1)),\"ERROR\"))))","v":0.23075451420990739},0.22435116520478704,0.20576735961421855,0.18450295863186683,0.19049513232988832,0.18493715180703615,0.17377860729900965,0.16464740245765472,0.17317717354704712,0.21071829261723407,0.20959534865569035,0.27963182398107655,0.27963182398107655,0.27963182398107655,0.27963182398107655,0.27963182398107655,0.27963182398107655,0.27963182398107655,0.27963182398107655,0.27963182398107655,0.27963182398107655,0.27963182398107655,0.27963182398107655,0.27963182398107655,0.27963182398107655,0.27963182398107655,0.27963182398107655,0.27963182398107655,0.27963182398107655,0.27963182398107655,0.24891448957098428,0.24768076757879115,0.21847877654875525,0.21996852428677022,0.21815340116876267,0.21443080589366606,0.21064929592368406,0,0,0,0,0,0,0,0,0,0,0,0,0,0,0,0]
[null,null,null,null,"EL4",{"$f":"IF(F$29<STANDARD_YEAR,F75,\nIF(RIGHT($E86,1)>RIGHT(INDEX(STANDARD_LEVELS,1,MID($C67,4,1)),1),F75,\nIF(RIGHT($E86,1)<RIGHT(INDEX(STANDARD_LEVELS,1,MID($C67,4,1)),1),0,\nIF(RIGHT($E86,1)=RIGHT(INDEX(STANDARD_LEVELS,1,MID($C67,4,1)),1),SUM(OFFSET(F75,-(RIGHT($E86,1)),0,RIGHT($E86,1)+1,1)),\"ERROR\"))))","v":5.7198708606173564E-2},{"$f":"IF(G$29<STANDARD_YEAR,G75,\nIF(RIGHT($E86,1)>RIGHT(INDEX(STANDARD_LEVELS,1,MID($C67,4,1)),1),G75,\nIF(RIGHT($E86,1)<RIGHT(INDEX(STANDARD_LEVELS,1,MID($C67,4,1)),1),0,\nIF(RIGHT($E86,1)=RIGHT(INDEX(STANDARD_LEVELS,1,MID($C67,4,1)),1),SUM(OFFSET(G75,-(RIGHT($E86,1)),0,RIGHT($E86,1)+1,1)),\"ERROR\"))))","v":6.0819019249122884E-2},5.9131314860176427E-2,5.4233257572739772E-2,4.8628686771189707E-2,5.0208019373769008E-2,4.874312528247466E-2,4.580211355167696E-2,4.3395439407443878E-2,4.564359612867909E-2,5.5538154643302008E-2,5.5242184917003667E-2,7.3701410971756615E-2,7.3701410971756615E-2,7.3701410971756615E-2,7.3701410971756615E-2,7.3701410971756615E-2,7.3701410971756615E-2,7.3701410971756615E-2,7.3701410971756615E-2,7.3701410971756615E-2,7.3701410971756615E-2,7.3701410971756615E-2,7.3701410971756615E-2,7.3701410971756615E-2,7.3701410971756615E-2,7.3701410971756615E-2,7.3701410971756615E-2,7.3701410971756615E-2,7.3701410971756615E-2,7.3701410971756615E-2,6.5605369344290426E-2,6.5280202307588381E-2,5.7583553508974254E-2,5.7976200199613852E-2,5.7497795656883191E-2,5.6516646514609664E-2,5.5519969468257817E-2,0.74758540595789791,0.7631112990162342,0.7795215209314621,0.78466484389758262,0.74797645144669778,0.760070309158969,0.75345764875472587,0.74233822769775371,0.72673676974596868,0.73324154838916966,0.7358226686180982,0.73413243416715535,0.72348741425254981,0.72960678963742165,0.7097742641500614,0.70957822359872469]
[null,null,null,null,"EL5",{"$f":"IF(F$29<STANDARD_YEAR,F76,\nIF(RIGHT($E87,1)>RIGHT(INDEX(STANDARD_LEVELS,1,MID($C67,4,1)),1),F76,\nIF(RIGHT($E87,1)<RIGHT(INDEX(STANDARD_LEVELS,1,MID($C67,4,1)),1),0,\nIF(RIGHT($E87,1)=RIGHT(INDEX(STANDARD_LEVELS,1,MID($C67,4,1)),1),SUM(OFFSET(F76,-(RIGHT($E87,1)),0,RIGHT($E87,1)+1,1)),\"ERROR\"))))","v":0.25907650368678614},{"$f":"IF(G$29<STANDARD_YEAR,G76,\nIF(RIGHT($E87,1)>RIGHT(INDEX(STANDARD_LEVELS,1,MID($C67,4,1)),1),G76,\nIF(RIGHT($E87,1)<RIGHT(INDEX(STANDARD_LEVELS,1,MID($C67,4,1)),1),0,\nIF(RIGHT($E87,1)=RIGHT(INDEX(STANDARD_LEVELS,1,MID($C67,4,1)),1),SUM(OFFSET(G76,-(RIGHT($E87,1)),0,RIGHT($E87,1)+1,1)),\"ERROR\"))))","v":0.27547438130485069},0.26783007319021085,0.24564475488829196,0.22025934596362398,0.22741279363413025,0.22077768510297344,0.20745663196936034,0.19655581378665757,0.20673864128872294,0.25155517103142672,0.25021460227113423,0.3338240379308976,0.3338240379308976,0.3338240379308976,0.3338240379308976,0.3338240379308976,0.3338240379308976,0.3338240379308976,0.3338240379308976,0.3338240379308976,0.3338240379308976,0.3338240379308976,0.3338240379308976,0.3338240379308976,0.3338240379308976,0.3338240379308976,0.3338240379308976,0.3338240379308976,0.3338240379308976,0.3338240379308976,0.2971537317359037,0.29568091633437088,0.26081962471711867,0.26259808325707451,0.26043119209294147,0.25598716362499668,0.25147280288563834,0.25241459404210215,0.23688870098376585,0.2204784790685379,0.21533515610241732,0.25202354855330211,0.23992969084103094,0.24654235124527421,0.25766177230224629,0.27326323025403138,0.26675845161083039,0.26417733138190169,0.26586756583284477,0.27651258574745025,0.2703932103625783,0.2902257358499386,0.29042177640127526]
[null,null,null,null,"EL6",{"$f":"IF(F$29<STANDARD_YEAR,F77,\nIF(RIGHT($E88,1)>RIGHT(INDEX(STANDARD_LEVELS,1,MID($C67,4,1)),1),F77,\nIF(RIGHT($E88,1)<RIGHT(INDEX(STANDARD_LEVELS,1,MID($C67,4,1)),1),0,\nIF(RIGHT($E88,1)=RIGHT(INDEX(STANDARD_LEVELS,1,MID($C67,4,1)),1),SUM(OFFSET(F77,-(RIGHT($E88,1)),0,RIGHT($E88,1)+1,1)),\"ERROR\"))))","v":0},{"$f":"IF(G$29<STANDARD_YEAR,G77,\nIF(RIGHT($E88,1)>RIGHT(INDEX(STANDARD_LEVELS,1,MID($C67,4,1)),1),G77,\nIF(RIGHT($E88,1)<RIGHT(INDEX(STANDARD_LEVELS,1,MID($C67,4,1)),1),0,\nIF(RIGHT($E88,1)=RIGHT(INDEX(STANDARD_LEVELS,1,MID($C67,4,1)),1),SUM(OFFSET(G77,-(RIGHT($E88,1)),0,RIGHT($E88,1)+1,1)),\"ERROR\"))))","v":0},0,0,0,0,0,0,0,0,0,0,0,0,0,0,0,0,0,0,0,0,0,0,0,0,0,0,0,0,0,0,0,0,0,0,0,0,0,0,0,0,0,0,0,0,0,0,0,0,0,0,0,0]
[null,null,null,null,"TOTAL",{"$f":"SUM(F82:F88)","v":1},{"$f":"SUM(G82:G88)","v":1},1,1,1,1,1,1,1,1,1.0000000000000002,1,1,1,1,1,1,1,1,1,1,1,1,1,1,1,1,1,1,1,1,1,1,1,1,0.99999999999999978,1,0.99999999999999989,1,1,1,1,0.99999999999999989,1,1,1,1,1,0.99999999999999989,1,1,1,1,1]
[]
[]
[]
[null,null,"PC 4",{"$f":"OFFSET('Product Classes'!$C$9,MATCH(C93,MODEL_PCS,0),0)","v":"Non-Weatherized, Non-Condensing Oil Furnace Fan (NWO-NC)"}]
[]
[null,null,null,"PRE-Case"]
[null,null,null,null,"Efficiency Level",1981,{"$f":"F96+1","v":1982},{"$f":"G96+1","v":1983},1984,1985,{"$f":"J96+1","v":1986},1987,1988,1989,1990,1991,1992,1993,1994,1995,1996,1997,1998,1999,2000,2001,2002,2003,2004,2005,2006,2007,2008,2009,2010,2011,2012,2013,2014,2015,2016,2017,2018,2019,2020,2021,2022,2023,2024,2025,2026,2027,2028,2029,2030,2031,2032,2033,2034]
[null,null,null,null,"EL0",{"$f":"IF(INDEX(PC_MAPPING,RIGHT($C93,1),MATCH($E$2,'Data by Building Type'!$D$22:$F$22,0))=\"Yes\",1,0)*\n(F$10*OFFSET('Efficiency Distributions'!$D$10,MATCH($C93,'Efficiency Distributions'!$C$9:$C$87,0)+RIGHT($E97),0)\n+F$11*OFFSET('Efficiency Distributions'!$E$10,MATCH($C93,'Efficiency Distributions'!$C$9:$C$87,0)+RIGHT($E97),0))\n/SUM(F$10:F$11)","v":0.33391714738467232},{"$f":"IF(INDEX(PC_MAPPING,RIGHT($C93,1),MATCH($E$2,'Data by Building Type'!$D$22:$F$22,0))=\"Yes\",1,0)*\n(G$10*OFFSET('Efficiency Distributions'!$D$10,MATCH($C93,'Efficiency Distributions'!$C$9:$C$87,0)+RIGHT($E97),0)\n+G$11*OFFSET('Efficiency Distributions'!$E$10,MATCH($C93,'Efficiency Distributions'!$C$9:$C$87,0)+RIGHT($E97),0))\n/SUM(G$10:G$11)","v":0.32178754974766249},{"$f":"IF(INDEX(PC_MAPPING,RIGHT($C93,1),MATCH($E$2,'Data by Building Type'!$D$22:$F$22,0))=\"Yes\",1,0)*\n(H$10*OFFSET('Efficiency Distributions'!$D$10,MATCH($C93,'Efficiency Distributions'!$C$9:$C$87,0)+RIGHT($E97),0)\n+H$11*OFFSET('Efficiency Distributions'!$E$10,MATCH($C93,'Efficiency Distributions'!$C$9:$C$87,0)+RIGHT($E97),0))\n/SUM(H$10:H$11)","v":0.32744208527985624},{"$f":"IF(INDEX(PC_MAPPING,RIGHT($C93,1),MATCH($E$2,'Data by Building Type'!$D$22:$F$22,0))=\"Yes\",1,0)*\n(I$10*OFFSET('Efficiency Distributions'!$D$10,MATCH($C93,'Efficiency Distributions'!$C$9:$C$87,0)+RIGHT($E97),0)\n+I$11*OFFSET('Efficiency Distributions'!$E$10,MATCH($C93,'Efficiency Distributions'!$C$9:$C$87,0)+RIGHT($E97),0))\n/SUM(I$10:I$11)","v":0.34385268369503258},{"$f":"IF(INDEX(PC_MAPPING,RIGHT($C93,1),MATCH($E$2,'Data by Building Type'!$D$22:$F$22,0))=\"Yes\",1,0)*\n(J$10*OFFSET('Efficiency Distributions'!$D$10,MATCH($C93,'Efficiency Distributions'!$C$9:$C$87,0)+RIGHT($E97),0)\n+J$11*OFFSET('Efficiency Distributions'!$E$10,MATCH($C93,'Efficiency Distributions'!$C$9:$C$87,0)+RIGHT($E97),0))\n/SUM(J$10:J$11)","v":0.36263040623200093},{"$f":"IF(INDEX(PC_MAPPING,RIGHT($C93,1),MATCH($E$2,'Data by Building Type'!$D$22:$F$22,0))=\"Yes\",1,0)*\n(K$10*OFFSET('Efficiency Distributions'!$D$10,MATCH($C93,'Efficiency Distributions'!$C$9:$C$87,0)+RIGHT($E97),0)\n+K$11*OFFSET('Efficiency Distributions'!$E$10,MATCH($C93,'Efficiency Distributions'!$C$9:$C$87,0)+RIGHT($E97),0))\n/SUM(K$10:K$11)","v":0.35733896279147559},{"$f":"IF(INDEX(PC_MAPPING,RIGHT($C93,1),MATCH($E$2,'Data by Building Type'!$D$22:$F$22,0))=\"Yes\",1,0)*\n(L$10*OFFSET('Efficiency Distributions'!$D$10,MATCH($C93,'Efficiency Distributions'!$C$9:$C$87,0)+RIGHT($E97),0)\n+L$11*OFFSET('Efficiency Distributions'!$E$10,MATCH($C93,'Efficiency Distributions'!$C$9:$C$87,0)+RIGHT($E97),0))\n/SUM(L$10:L$11)","v":0.36224698800274813},{"$f":"IF(INDEX(PC_MAPPING,RIGHT($C93,1),MATCH($E$2,'Data by Building Type'!$D$22:$F$22,0))=\"Yes\",1,0)*\n(M$10*OFFSET('Efficiency Distributions'!$D$10,MATCH($C93,'Efficiency Distributions'!$C$9:$C$87,0)+RIGHT($E97),0)\n+M$11*OFFSET('Efficiency Distributions'!$E$10,MATCH($C93,'Efficiency Distributions'!$C$9:$C$87,0)+RIGHT($E97),0))\n/SUM(M$10:M$11)","v":0.37210064213869276},{"$f":"IF(INDEX(PC_MAPPING,RIGHT($C93,1),MATCH($E$2,'Data by Building Type'!$D$22:$F$22,0))=\"Yes\",1,0)*\n(N$10*OFFSET('Efficiency Distributions'!$D$10,MATCH($C93,'Efficiency Distributions'!$C$9:$C$87,0)+RIGHT($E97),0)\n+N$11*OFFSET('Efficiency Distributions'!$E$10,MATCH($C93,'Efficiency Distributions'!$C$9:$C$87,0)+RIGHT($E97),0))\n/SUM(N$10:N$11)","v":0.38016403555765105},{"$f":"IF(INDEX(PC_MAPPING,RIGHT($C93,1),MATCH($E$2,'Data by Building Type'!$D$22:$F$22,0))=\"Yes\",1,0)*\n(O$10*OFFSET('Efficiency Distributions'!$D$10,MATCH($C93,'Efficiency Distributions'!$C$9:$C$87,0)+RIGHT($E97),0)\n+O$11*OFFSET('Efficiency Distributions'!$E$10,MATCH($C93,'Efficiency Distributions'!$C$9:$C$87,0)+RIGHT($E97),0))\n/SUM(O$10:O$11)","v":0.3726317436791543},{"$f":"IF(INDEX(PC_MAPPING,RIGHT($C93,1),MATCH($E$2,'Data by Building Type'!$D$22:$F$22,0))=\"Yes\",1,0)*\n(P$10*OFFSET('Efficiency Distributions'!$D$10,MATCH($C93,'Efficiency Distributions'!$C$9:$C$87,0)+RIGHT($E97),0)\n+P$11*OFFSET('Efficiency Distributions'!$E$10,MATCH($C93,'Efficiency Distributions'!$C$9:$C$87,0)+RIGHT($E97),0))\n/SUM(P$10:P$11)","v":0.33948071731296042},{"$f":"IF(INDEX(PC_MAPPING,RIGHT($C93,1),MATCH($E$2,'Data by Building Type'!$D$22:$F$22,0))=\"Yes\",1,0)*\n(Q$10*OFFSET('Efficiency Distributions'!$D$10,MATCH($C93,'Efficiency Distributions'!$C$9:$C$87,0)+RIGHT($E97),0)\n+Q$11*OFFSET('Efficiency Distributions'!$E$10,MATCH($C93,'Efficiency Distributions'!$C$9:$C$87,0)+RIGHT($E97),0))\n/SUM(Q$10:Q$11)","v":0.34047234318344372},{"$f":"IF(INDEX(PC_MAPPING,RIGHT($C93,1),MATCH($E$2,'Data by Building Type'!$D$22:$F$22,0))=\"Yes\",1,0)*\n(R$10*OFFSET('Efficiency Distributions'!$D$10,MATCH($C93,'Efficiency Distributions'!$C$9:$C$87,0)+RIGHT($E97),0)\n+R$11*OFFSET('Efficiency Distributions'!$E$10,MATCH($C93,'Efficiency Distributions'!$C$9:$C$87,0)+RIGHT($E97),0))\n/SUM(R$10:R$11)","v":0.27862599716039727},{"$f":"IF(INDEX(PC_MAPPING,RIGHT($C93,1),MATCH($E$2,'Data by Building Type'!$D$22:$F$22,0))=\"Yes\",1,0)*\n(S$10*OFFSET('Efficiency Distributions'!$D$10,MATCH($C93,'Efficiency Distributions'!$C$9:$C$87,0)+RIGHT($E97),0)\n+S$11*OFFSET('Efficiency Distributions'!$E$10,MATCH($C93,'Efficiency Distributions'!$C$9:$C$87,0)+RIGHT($E97),0))\n/SUM(S$10:S$11)","v":0.27862599716039727},{"$f":"IF(INDEX(PC_MAPPING,RIGHT($C93,1),MATCH($E$2,'Data by Building Type'!$D$22:$F$22,0))=\"Yes\",1,0)*\n(T$10*OFFSET('Efficiency Distributions'!$D$10,MATCH($C93,'Efficiency Distributions'!$C$9:$C$87,0)+RIGHT($E97),0)\n+T$11*OFFSET('Efficiency Distributions'!$E$10,MATCH($C93,'Efficiency Distributions'!$C$9:$C$87,0)+RIGHT($E97),0))\n/SUM(T$10:T$11)","v":0.27862599716039727},{"$f":"IF(INDEX(PC_MAPPING,RIGHT($C93,1),MATCH($E$2,'Data by Building Type'!$D$22:$F$22,0))=\"Yes\",1,0)*\n(U$10*OFFSET('Efficiency Distributions'!$D$10,MATCH($C93,'Efficiency Distributions'!$C$9:$C$87,0)+RIGHT($E97),0)\n+U$11*OFFSET('Efficiency Distributions'!$E$10,MATCH($C93,'Efficiency Distributions'!$C$9:$C$87,0)+RIGHT($E97),0))\n/SUM(U$10:U$11)","v":0.27862599716039727},{"$f":"IF(INDEX(PC_MAPPING,RIGHT($C93,1),MATCH($E$2,'Data by Building Type'!$D$22:$F$22,0))=\"Yes\",1,0)*\n(V$10*OFFSET('Efficiency Distributions'!$D$10,MATCH($C93,'Efficiency Distributions'!$C$9:$C$87,0)+RIGHT($E97),0)\n+V$11*OFFSET('Efficiency Distributions'!$E$10,MATCH($C93,'Efficiency Distributions'!$C$9:$C$87,0)+RIGHT($E97),0))\n/SUM(V$10:V$11)","v":0.27862599716039727},{"$f":"IF(INDEX(PC_MAPPING,RIGHT($C93,1),MATCH($E$2,'Data by Building Type'!$D$22:$F$22,0))=\"Yes\",1,0)*\n(W$10*OFFSET('Efficiency Distributions'!$D$10,MATCH($C93,'Efficiency Distributions'!$C$9:$C$87,0)+RIGHT($E97),0)\n+W$11*OFFSET('Efficiency Distributions'!$E$10,MATCH($C93,'Efficiency Distributions'!$C$9:$C$87,0)+RIGHT($E97),0))\n/SUM(W$10:W$11)","v":0.27862599716039727},{"$f":"IF(INDEX(PC_MAPPING,RIGHT($C93,1),MATCH($E$2,'Data by Building Type'!$D$22:$F$22,0))=\"Yes\",1,0)*\n(X$10*OFFSET('Efficiency Distributions'!$D$10,MATCH($C93,'Efficiency Distributions'!$C$9:$C$87,0)+RIGHT($E97),0)\n+X$11*OFFSET('Efficiency Distributions'!$E$10,MATCH($C93,'Efficiency Distributions'!$C$9:$C$87,0)+RIGHT($E97),0))\n/SUM(X$10:X$11)","v":0.27862599716039727},{"$f":"IF(INDEX(PC_MAPPING,RIGHT($C93,1),MATCH($E$2,'Data by Building Type'!$D$22:$F$22,0))=\"Yes\",1,0)*\n(Y$10*OFFSET('Efficiency Distributions'!$D$10,MATCH($C93,'Efficiency Distributions'!$C$9:$C$87,0)+RIGHT($E97),0)\n+Y$11*OFFSET('Efficiency Distributions'!$E$10,MATCH($C93,'Efficiency Distributions'!$C$9:$C$87,0)+RIGHT($E97),0))\n/SUM(Y$10:Y$11)","v":0.27862599716039727},{"$f":"IF(INDEX(PC_MAPPING,RIGHT($C93,1),MATCH($E$2,'Data by Building Type'!$D$22:$F$22,0))=\"Yes\",1,0)*\n(Z$10*OFFSET('Efficiency Distributions'!$D$10,MATCH($C93,'Efficiency Distributions'!$C$9:$C$87,0)+RIGHT($E97),0)\n+Z$11*OFFSET('Efficiency Distributions'!$E$10,MATCH($C93,'Efficiency Distributions'!$C$9:$C$87,0)+RIGHT($E97),0))\n/SUM(Z$10:Z$11)","v":0.27862599716039727},{"$f":"IF(INDEX(PC_MAPPING,RIGHT($C93,1),MATCH($E$2,'Data by Building Type'!$D$22:$F$22,0))=\"Yes\",1,0)*\n(AA$10*OFFSET('Efficiency Distributions'!$D$10,MATCH($C93,'Efficiency Distributions'!$C$9:$C$87,0)+RIGHT($E97),0)\n+AA$11*OFFSET('Efficiency Distributions'!$E$10,MATCH($C93,'Efficiency Distributions'!$C$9:$C$87,0)+RIGHT($E97),0))\n/SUM(AA$10:AA$11)","v":0.27862599716039727},{"$f":"IF(INDEX(PC_MAPPING,RIGHT($C93,1),MATCH($E$2,'Data by Building Type'!$D$22:$F$22,0))=\"Yes\",1,0)*\n(AB$10*OFFSET('Efficiency Distributions'!$D$10,MATCH($C93,'Efficiency Distributions'!$C$9:$C$87,0)+RIGHT($E97),0)\n+AB$11*OFFSET('Efficiency Distributions'!$E$10,MATCH($C93,'Efficiency Distributions'!$C$9:$C$87,0)+RIGHT($E97),0))\n/SUM(AB$10:AB$11)","v":0.27862599716039727},{"$f":"IF(INDEX(PC_MAPPING,RIGHT($C93,1),MATCH($E$2,'Data by Building Type'!$D$22:$F$22,0))=\"Yes\",1,0)*\n(AC$10*OFFSET('Efficiency Distributions'!$D$10,MATCH($C93,'Efficiency Distributions'!$C$9:$C$87,0)+RIGHT($E97),0)\n+AC$11*OFFSET('Efficiency Distributions'!$E$10,MATCH($C93,'Efficiency Distributions'!$C$9:$C$87,0)+RIGHT($E97),0))\n/SUM(AC$10:AC$11)","v":0.27862599716039727},{"$f":"IF(INDEX(PC_MAPPING,RIGHT($C93,1),MATCH($E$2,'Data by Building Type'!$D$22:$F$22,0))=\"Yes\",1,0)*\n(AD$10*OFFSET('Efficiency Distributions'!$D$10,MATCH($C93,'Efficiency Distributions'!$C$9:$C$87,0)+RIGHT($E97),0)\n+AD$11*OFFSET('Efficiency Distributions'!$E$10,MATCH($C93,'Efficiency Distributions'!$C$9:$C$87,0)+RIGHT($E97),0))\n/SUM(AD$10:AD$11)","v":0.27862599716039727},{"$f":"IF(INDEX(PC_MAPPING,RIGHT($C93,1),MATCH($E$2,'Data by Building Type'!$D$22:$F$22,0))=\"Yes\",1,0)*\n(AE$10*OFFSET('Efficiency Distributions'!$D$10,MATCH($C93,'Efficiency Distributions'!$C$9:$C$87,0)+RIGHT($E97),0)\n+AE$11*OFFSET('Efficiency Distributions'!$E$10,MATCH($C93,'Efficiency Distributions'!$C$9:$C$87,0)+RIGHT($E97),0))\n/SUM(AE$10:AE$11)","v":0.27862599716039727},{"$f":"IF(INDEX(PC_MAPPING,RIGHT($C93,1),MATCH($E$2,'Data by Building Type'!$D$22:$F$22,0))=\"Yes\",1,0)*\n(AF$10*OFFSET('Efficiency Distributions'!$D$10,MATCH($C93,'Efficiency Distributions'!$C$9:$C$87,0)+RIGHT($E97),0)\n+AF$11*OFFSET('Efficiency Distributions'!$E$10,MATCH($C93,'Efficiency Distributions'!$C$9:$C$87,0)+RIGHT($E97),0))\n/SUM(AF$10:AF$11)","v":0.27862599716039727},{"$f":"IF(INDEX(PC_MAPPING,RIGHT($C93,1),MATCH($E$2,'Data by Building Type'!$D$22:$F$22,0))=\"Yes\",1,0)*\n(AG$10*OFFSET('Efficiency Distributions'!$D$10,MATCH($C93,'Efficiency Distributions'!$C$9:$C$87,0)+RIGHT($E97),0)\n+AG$11*OFFSET('Efficiency Distributions'!$E$10,MATCH($C93,'Efficiency Distributions'!$C$9:$C$87,0)+RIGHT($E97),0))\n/SUM(AG$10:AG$11)","v":0.27862599716039727},{"$f":"IF(INDEX(PC_MAPPING,RIGHT($C93,1),MATCH($E$2,'Data by Building Type'!$D$22:$F$22,0))=\"Yes\",1,0)*\n(AH$10*OFFSET('Efficiency Distributions'!$D$10,MATCH($C93,'Efficiency Distributions'!$C$9:$C$87,0)+RIGHT($E97),0)\n+AH$11*OFFSET('Efficiency Distributions'!$E$10,MATCH($C93,'Efficiency Distributions'!$C$9:$C$87,0)+RIGHT($E97),0))\n/SUM(AH$10:AH$11)","v":0.27862599716039727},{"$f":"IF(INDEX(PC_MAPPING,RIGHT($C93,1),MATCH($E$2,'Data by Building Type'!$D$22:$F$22,0))=\"Yes\",1,0)*\n(AI$10*OFFSET('Efficiency Distributions'!$D$10,MATCH($C93,'Efficiency Distributions'!$C$9:$C$87,0)+RIGHT($E97),0)\n+AI$11*OFFSET('Efficiency Distributions'!$E$10,MATCH($C93,'Efficiency Distributions'!$C$9:$C$87,0)+RIGHT($E97),0))\n/SUM(AI$10:AI$11)","v":0.27862599716039727},{"$f":"IF(INDEX(PC_MAPPING,RIGHT($C93,1),MATCH($E$2,'Data by Building Type'!$D$22:$F$22,0))=\"Yes\",1,0)*\n(AJ$10*OFFSET('Efficiency Distributions'!$D$10,MATCH($C93,'Efficiency Distributions'!$C$9:$C$87,0)+RIGHT($E97),0)\n+AJ$11*OFFSET('Efficiency Distributions'!$E$10,MATCH($C93,'Efficiency Distributions'!$C$9:$C$87,0)+RIGHT($E97),0))\n/SUM(AJ$10:AJ$11)","v":0.27862599716039727},{"$f":"IF(INDEX(PC_MAPPING,RIGHT($C93,1),MATCH($E$2,'Data by Building Type'!$D$22:$F$22,0))=\"Yes\",1,0)*\n(AK$10*OFFSET('Efficiency Distributions'!$D$10,MATCH($C93,'Efficiency Distributions'!$C$9:$C$87,0)+RIGHT($E97),0)\n+AK$11*OFFSET('Efficiency Distributions'!$E$10,MATCH($C93,'Efficiency Distributions'!$C$9:$C$87,0)+RIGHT($E97),0))\n/SUM(AK$10:AK$11)","v":0.30575121846838038},{"$f":"IF(INDEX(PC_MAPPING,RIGHT($C93,1),MATCH($E$2,'Data by Building Type'!$D$22:$F$22,0))=\"Yes\",1,0)*\n(AL$10*OFFSET('Efficiency Distributions'!$D$10,MATCH($C93,'Efficiency Distributions'!$C$9:$C$87,0)+RIGHT($E97),0)\n+AL$11*OFFSET('Efficiency Distributions'!$E$10,MATCH($C93,'Efficiency Distributions'!$C$9:$C$87,0)+RIGHT($E97),0))\n/SUM(AL$10:AL$11)","v":0.30684066788557229},{"$f":"IF(INDEX(PC_MAPPING,RIGHT($C93,1),MATCH($E$2,'Data by Building Type'!$D$22:$F$22,0))=\"Yes\",1,0)*\n(AM$10*OFFSET('Efficiency Distributions'!$D$10,MATCH($C93,'Efficiency Distributions'!$C$9:$C$87,0)+RIGHT($E97),0)\n+AM$11*OFFSET('Efficiency Distributions'!$E$10,MATCH($C93,'Efficiency Distributions'!$C$9:$C$87,0)+RIGHT($E97),0))\n/SUM(AM$10:AM$11)","v":0.33262775145045387},{"$f":"IF(INDEX(PC_MAPPING,RIGHT($C93,1),MATCH($E$2,'Data by Building Type'!$D$22:$F$22,0))=\"Yes\",1,0)*\n(AN$10*OFFSET('Efficiency Distributions'!$D$10,MATCH($C93,'Efficiency Distributions'!$C$9:$C$87,0)+RIGHT($E97),0)\n+AN$11*OFFSET('Efficiency Distributions'!$E$10,MATCH($C93,'Efficiency Distributions'!$C$9:$C$87,0)+RIGHT($E97),0))\n/SUM(AN$10:AN$11)","v":0.33131221617166851},{"$f":"IF(INDEX(PC_MAPPING,RIGHT($C93,1),MATCH($E$2,'Data by Building Type'!$D$22:$F$22,0))=\"Yes\",1,0)*\n(AO$10*OFFSET('Efficiency Distributions'!$D$10,MATCH($C93,'Efficiency Distributions'!$C$9:$C$87,0)+RIGHT($E97),0)\n+AO$11*OFFSET('Efficiency Distributions'!$E$10,MATCH($C93,'Efficiency Distributions'!$C$9:$C$87,0)+RIGHT($E97),0))\n/SUM(AO$10:AO$11)","v":0.33291507713674667},{"$f":"IF(INDEX(PC_MAPPING,RIGHT($C93,1),MATCH($E$2,'Data by Building Type'!$D$22:$F$22,0))=\"Yes\",1,0)*\n(AP$10*OFFSET('Efficiency Distributions'!$D$10,MATCH($C93,'Efficiency Distributions'!$C$9:$C$87,0)+RIGHT($E97),0)\n+AP$11*OFFSET('Efficiency Distributions'!$E$10,MATCH($C93,'Efficiency Distributions'!$C$9:$C$87,0)+RIGHT($E97),0))\n/SUM(AP$10:AP$11)","v":0.33620234872512628},{"$f":"IF(INDEX(PC_MAPPING,RIGHT($C93,1),MATCH($E$2,'Data by Building Type'!$D$22:$F$22,0))=\"Yes\",1,0)*\n(AQ$10*OFFSET('Efficiency Distributions'!$D$10,MATCH($C93,'Efficiency Distributions'!$C$9:$C$87,0)+RIGHT($E97),0)\n+AQ$11*OFFSET('Efficiency Distributions'!$E$10,MATCH($C93,'Efficiency Distributions'!$C$9:$C$87,0)+RIGHT($E97),0))\n/SUM(AQ$10:AQ$11)","v":0.33954164547023719},{"$f":"IF(INDEX(PC_MAPPING,RIGHT($C93,1),MATCH($E$2,'Data by Building Type'!$D$22:$F$22,0))=\"Yes\",1,0)*\n(AR$10*OFFSET('Efficiency Distributions'!$D$10,MATCH($C93,'Efficiency Distributions'!$C$9:$C$87,0)+RIGHT($E97),0)\n+AR$11*OFFSET('Efficiency Distributions'!$E$10,MATCH($C93,'Efficiency Distributions'!$C$9:$C$87,0)+RIGHT($E97),0))\n/SUM(AR$10:AR$11)","v":0.338844997522736},{"$f":"IF(INDEX(PC_MAPPING,RIGHT($C93,1),MATCH($E$2,'Data by Building Type'!$D$22:$F$22,0))=\"Yes\",1,0)*\n(AS$10*OFFSET('Efficiency Distributions'!$D$10,MATCH($C93,'Efficiency Distributions'!$C$9:$C$87,0)+RIGHT($E97),0)\n+AS$11*OFFSET('Efficiency Distributions'!$E$10,MATCH($C93,'Efficiency Distributions'!$C$9:$C$87,0)+RIGHT($E97),0))\n/SUM(AS$10:AS$11)","v":0.35032958352460974},{"$f":"IF(INDEX(PC_MAPPING,RIGHT($C93,1),MATCH($E$2,'Data by Building Type'!$D$22:$F$22,0))=\"Yes\",1,0)*\n(AT$10*OFFSET('Efficiency Distributions'!$D$10,MATCH($C93,'Efficiency Distributions'!$C$9:$C$87,0)+RIGHT($E97),0)\n+AT$11*OFFSET('Efficiency Distributions'!$E$10,MATCH($C93,'Efficiency Distributions'!$C$9:$C$87,0)+RIGHT($E97),0))\n/SUM(AT$10:AT$11)","v":0.36246831230414855},{"$f":"IF(INDEX(PC_MAPPING,RIGHT($C93,1),MATCH($E$2,'Data by Building Type'!$D$22:$F$22,0))=\"Yes\",1,0)*\n(AU$10*OFFSET('Efficiency Distributions'!$D$10,MATCH($C93,'Efficiency Distributions'!$C$9:$C$87,0)+RIGHT($E97),0)\n+AU$11*OFFSET('Efficiency Distributions'!$E$10,MATCH($C93,'Efficiency Distributions'!$C$9:$C$87,0)+RIGHT($E97),0))\n/SUM(AU$10:AU$11)","v":0.36627285576698715},{"$f":"IF(INDEX(PC_MAPPING,RIGHT($C93,1),MATCH($E$2,'Data by Building Type'!$D$22:$F$22,0))=\"Yes\",1,0)*\n(AV$10*OFFSET('Efficiency Distributions'!$D$10,MATCH($C93,'Efficiency Distributions'!$C$9:$C$87,0)+RIGHT($E97),0)\n+AV$11*OFFSET('Efficiency Distributions'!$E$10,MATCH($C93,'Efficiency Distributions'!$C$9:$C$87,0)+RIGHT($E97),0))\n/SUM(AV$10:AV$11)","v":0.33913425595894281},{"$f":"IF(INDEX(PC_MAPPING,RIGHT($C93,1),MATCH($E$2,'Data by Building Type'!$D$22:$F$22,0))=\"Yes\",1,0)*\n(AW$10*OFFSET('Efficiency Distributions'!$D$10,MATCH($C93,'Efficiency Distributions'!$C$9:$C$87,0)+RIGHT($E97),0)\n+AW$11*OFFSET('Efficiency Distributions'!$E$10,MATCH($C93,'Efficiency Distributions'!$C$9:$C$87,0)+RIGHT($E97),0))\n/SUM(AW$10:AW$11)","v":0.3480801470886275},{"$f":"IF(INDEX(PC_MAPPING,RIGHT($C93,1),MATCH($E$2,'Data by Building Type'!$D$22:$F$22,0))=\"Yes\",1,0)*\n(AX$10*OFFSET('Efficiency Distributions'!$D$10,MATCH($C93,'Efficiency Distributions'!$C$9:$C$87,0)+RIGHT($E97),0)\n+AX$11*OFFSET('Efficiency Distributions'!$E$10,MATCH($C93,'Efficiency Distributions'!$C$9:$C$87,0)+RIGHT($E97),0))\n/SUM(AX$10:AX$11)","v":0.34318872687670338},{"$f":"IF(INDEX(PC_MAPPING,RIGHT($C93,1),MATCH($E$2,'Data by Building Type'!$D$22:$F$22,0))=\"Yes\",1,0)*\n(AY$10*OFFSET('Efficiency Distributions'!$D$10,MATCH($C93,'Efficiency Distributions'!$C$9:$C$87,0)+RIGHT($E97),0)\n+AY$11*OFFSET('Efficiency Distributions'!$E$10,MATCH($C93,'Efficiency Distributions'!$C$9:$C$87,0)+RIGHT($E97),0))\n/SUM(AY$10:AY$11)","v":0.33496363174433197},{"$f":"IF(INDEX(PC_MAPPING,RIGHT($C93,1),MATCH($E$2,'Data by Building Type'!$D$22:$F$22,0))=\"Yes\",1,0)*\n(AZ$10*OFFSET('Efficiency Distributions'!$D$10,MATCH($C93,'Efficiency Distributions'!$C$9:$C$87,0)+RIGHT($E97),0)\n+AZ$11*OFFSET('Efficiency Distributions'!$E$10,MATCH($C93,'Efficiency Distributions'!$C$9:$C$87,0)+RIGHT($E97),0))\n/SUM(AZ$10:AZ$11)","v":0.32342314998726562},{"$f":"IF(INDEX(PC_MAPPING,RIGHT($C93,1),MATCH($E$2,'Data by Building Type'!$D$22:$F$22,0))=\"Yes\",1,0)*\n(BA$10*OFFSET('Efficiency Distributions'!$D$10,MATCH($C93,'Efficiency Distributions'!$C$9:$C$87,0)+RIGHT($E97),0)\n+BA$11*OFFSET('Efficiency Distributions'!$E$10,MATCH($C93,'Efficiency Distributions'!$C$9:$C$87,0)+RIGHT($E97),0))\n/SUM(BA$10:BA$11)","v":0.3282347694844695},{"$f":"IF(INDEX(PC_MAPPING,RIGHT($C93,1),MATCH($E$2,'Data by Building Type'!$D$22:$F$22,0))=\"Yes\",1,0)*\n(BB$10*OFFSET('Efficiency Distributions'!$D$10,MATCH($C93,'Efficiency Distributions'!$C$9:$C$87,0)+RIGHT($E97),0)\n+BB$11*OFFSET('Efficiency Distributions'!$E$10,MATCH($C93,'Efficiency Distributions'!$C$9:$C$87,0)+RIGHT($E97),0))\n/SUM(BB$10:BB$11)","v":0.33014403790071634},{"$f":"IF(INDEX(PC_MAPPING,RIGHT($C93,1),MATCH($E$2,'Data by Building Type'!$D$22:$F$22,0))=\"Yes\",1,0)*\n(BC$10*OFFSET('Efficiency Distributions'!$D$10,MATCH($C93,'Efficiency Distributions'!$C$9:$C$87,0)+RIGHT($E97),0)\n+BC$11*OFFSET('Efficiency Distributions'!$E$10,MATCH($C93,'Efficiency Distributions'!$C$9:$C$87,0)+RIGHT($E97),0))\n/SUM(BC$10:BC$11)","v":0.32889376245168106},{"$f":"IF(INDEX(PC_MAPPING,RIGHT($C93,1),MATCH($E$2,'Data by Building Type'!$D$22:$F$22,0))=\"Yes\",1,0)*\n(BD$10*OFFSET('Efficiency Distributions'!$D$10,MATCH($C93,'Efficiency Distributions'!$C$9:$C$87,0)+RIGHT($E97),0)\n+BD$11*OFFSET('Efficiency Distributions'!$E$10,MATCH($C93,'Efficiency Distributions'!$C$9:$C$87,0)+RIGHT($E97),0))\n/SUM(BD$10:BD$11)","v":0.32101958437756994},{"$f":"IF(INDEX(PC_MAPPING,RIGHT($C93,1),MATCH($E$2,'Data by Building Type'!$D$22:$F$22,0))=\"Yes\",1,0)*\n(BE$10*OFFSET('Efficiency Distributions'!$D$10,MATCH($C93,'Efficiency Distributions'!$C$9:$C$87,0)+RIGHT($E97),0)\n+BE$11*OFFSET('Efficiency Distributions'!$E$10,MATCH($C93,'Efficiency Distributions'!$C$9:$C$87,0)+RIGHT($E97),0))\n/SUM(BE$10:BE$11)","v":0.32554611902657526},{"$f":"IF(INDEX(PC_MAPPING,RIGHT($C93,1),MATCH($E$2,'Data by Building Type'!$D$22:$F$22,0))=\"Yes\",1,0)*\n(BF$10*OFFSET('Efficiency Distributions'!$D$10,MATCH($C93,'Efficiency Distributions'!$C$9:$C$87,0)+RIGHT($E97),0)\n+BF$11*OFFSET('Efficiency Distributions'!$E$10,MATCH($C93,'Efficiency Distributions'!$C$9:$C$87,0)+RIGHT($E97),0))\n/SUM(BF$10:BF$11)","v":0.31087589401999205},{"$f":"IF(INDEX(PC_MAPPING,RIGHT($C93,1),MATCH($E$2,'Data by Building Type'!$D$22:$F$22,0))=\"Yes\",1,0)*\n(BG$10*OFFSET('Efficiency Distributions'!$D$10,MATCH($C93,'Efficiency Distributions'!$C$9:$C$87,0)+RIGHT($E97),0)\n+BG$11*OFFSET('Efficiency Distributions'!$E$10,MATCH($C93,'Efficiency Distributions'!$C$9:$C$87,0)+RIGHT($E97),0))\n/SUM(BG$10:BG$11)","v":0.3107308817773326}]
[null,null,null,null,"EL1",{"$f":"IF(INDEX(PC_MAPPING,RIGHT($C93,1),MATCH($E$2,'Data by Building Type'!$D$22:$F$22,0))=\"Yes\",1,0)*\n(F$10*OFFSET('Efficiency Distributions'!$D$10,MATCH($C93,'Efficiency Distributions'!$C$9:$C$87,0)+RIGHT($E98),0)\n+F$11*OFFSET('Efficiency Distributions'!$E$10,MATCH($C93,'Efficiency Distributions'!$C$9:$C$87,0)+RIGHT($E98),0))\n/SUM(F$10:F$11)","v":0.43059088138808227},{"$f":"IF(INDEX(PC_MAPPING,RIGHT($C93,1),MATCH($E$2,'Data by Building Type'!$D$22:$F$22,0))=\"Yes\",1,0)*\n(G$10*OFFSET('Efficiency Distributions'!$D$10,MATCH($C93,'Efficiency Distributions'!$C$9:$C$87,0)+RIGHT($E98),0)\n+G$11*OFFSET('Efficiency Distributions'!$E$10,MATCH($C93,'Efficiency Distributions'!$C$9:$C$87,0)+RIGHT($E98),0))\n/SUM(G$10:G$11)","v":0.4278153507356906},{"$f":"IF(INDEX(PC_MAPPING,RIGHT($C93,1),MATCH($E$2,'Data by Building Type'!$D$22:$F$22,0))=\"Yes\",1,0)*\n(H$10*OFFSET('Efficiency Distributions'!$D$10,MATCH($C93,'Efficiency Distributions'!$C$9:$C$87,0)+RIGHT($E98),0)\n+H$11*OFFSET('Efficiency Distributions'!$E$10,MATCH($C93,'Efficiency Distributions'!$C$9:$C$87,0)+RIGHT($E98),0))\n/SUM(H$10:H$11)","v":0.42910923839497744},{"$f":"IF(INDEX(PC_MAPPING,RIGHT($C93,1),MATCH($E$2,'Data by Building Type'!$D$22:$F$22,0))=\"Yes\",1,0)*\n(I$10*OFFSET('Efficiency Distributions'!$D$10,MATCH($C93,'Efficiency Distributions'!$C$9:$C$87,0)+RIGHT($E98),0)\n+I$11*OFFSET('Efficiency Distributions'!$E$10,MATCH($C93,'Efficiency Distributions'!$C$9:$C$87,0)+RIGHT($E98),0))\n/SUM(I$10:I$11)","v":0.43286436039394921},{"$f":"IF(INDEX(PC_MAPPING,RIGHT($C93,1),MATCH($E$2,'Data by Building Type'!$D$22:$F$22,0))=\"Yes\",1,0)*\n(J$10*OFFSET('Efficiency Distributions'!$D$10,MATCH($C93,'Efficiency Distributions'!$C$9:$C$87,0)+RIGHT($E98),0)\n+J$11*OFFSET('Efficiency Distributions'!$E$10,MATCH($C93,'Efficiency Distributions'!$C$9:$C$87,0)+RIGHT($E98),0))\n/SUM(J$10:J$11)","v":0.43716113478359925},{"$f":"IF(INDEX(PC_MAPPING,RIGHT($C93,1),MATCH($E$2,'Data by Building Type'!$D$22:$F$22,0))=\"Yes\",1,0)*\n(K$10*OFFSET('Efficiency Distributions'!$D$10,MATCH($C93,'Efficiency Distributions'!$C$9:$C$87,0)+RIGHT($E98),0)\n+K$11*OFFSET('Efficiency Distributions'!$E$10,MATCH($C93,'Efficiency Distributions'!$C$9:$C$87,0)+RIGHT($E98),0))\n/SUM(K$10:K$11)","v":0.43595033093799074},{"$f":"IF(INDEX(PC_MAPPING,RIGHT($C93,1),MATCH($E$2,'Data by Building Type'!$D$22:$F$22,0))=\"Yes\",1,0)*\n(L$10*OFFSET('Efficiency Distributions'!$D$10,MATCH($C93,'Efficiency Distributions'!$C$9:$C$87,0)+RIGHT($E98),0)\n+L$11*OFFSET('Efficiency Distributions'!$E$10,MATCH($C93,'Efficiency Distributions'!$C$9:$C$87,0)+RIGHT($E98),0))\n/SUM(L$10:L$11)","v":0.43707339988258898},{"$f":"IF(INDEX(PC_MAPPING,RIGHT($C93,1),MATCH($E$2,'Data by Building Type'!$D$22:$F$22,0))=\"Yes\",1,0)*\n(M$10*OFFSET('Efficiency Distributions'!$D$10,MATCH($C93,'Efficiency Distributions'!$C$9:$C$87,0)+RIGHT($E98),0)\n+M$11*OFFSET('Efficiency Distributions'!$E$10,MATCH($C93,'Efficiency Distributions'!$C$9:$C$87,0)+RIGHT($E98),0))\n/SUM(M$10:M$11)","v":0.4393281423654668},{"$f":"IF(INDEX(PC_MAPPING,RIGHT($C93,1),MATCH($E$2,'Data by Building Type'!$D$22:$F$22,0))=\"Yes\",1,0)*\n(N$10*OFFSET('Efficiency Distributions'!$D$10,MATCH($C93,'Efficiency Distributions'!$C$9:$C$87,0)+RIGHT($E98),0)\n+N$11*OFFSET('Efficiency Distributions'!$E$10,MATCH($C93,'Efficiency Distributions'!$C$9:$C$87,0)+RIGHT($E98),0))\n/SUM(N$10:N$11)","v":0.44117323205981296},{"$f":"IF(INDEX(PC_MAPPING,RIGHT($C93,1),MATCH($E$2,'Data by Building Type'!$D$22:$F$22,0))=\"Yes\",1,0)*\n(O$10*OFFSET('Efficiency Distributions'!$D$10,MATCH($C93,'Efficiency Distributions'!$C$9:$C$87,0)+RIGHT($E98),0)\n+O$11*OFFSET('Efficiency Distributions'!$E$10,MATCH($C93,'Efficiency Distributions'!$C$9:$C$87,0)+RIGHT($E98),0))\n/SUM(O$10:O$11)","v":0.43944967060153839},{"$f":"IF(INDEX(PC_MAPPING,RIGHT($C93,1),MATCH($E$2,'Data by Building Type'!$D$22:$F$22,0))=\"Yes\",1,0)*\n(P$10*OFFSET('Efficiency Distributions'!$D$10,MATCH($C93,'Efficiency Distributions'!$C$9:$C$87,0)+RIGHT($E98),0)\n+P$11*OFFSET('Efficiency Distributions'!$E$10,MATCH($C93,'Efficiency Distributions'!$C$9:$C$87,0)+RIGHT($E98),0))\n/SUM(P$10:P$11)","v":0.43186395402699429},{"$f":"IF(INDEX(PC_MAPPING,RIGHT($C93,1),MATCH($E$2,'Data by Building Type'!$D$22:$F$22,0))=\"Yes\",1,0)*\n(Q$10*OFFSET('Efficiency Distributions'!$D$10,MATCH($C93,'Efficiency Distributions'!$C$9:$C$87,0)+RIGHT($E98),0)\n+Q$11*OFFSET('Efficiency Distributions'!$E$10,MATCH($C93,'Efficiency Distributions'!$C$9:$C$87,0)+RIGHT($E98),0))\n/SUM(Q$10:Q$11)","v":0.43209086081167059},{"$f":"IF(INDEX(PC_MAPPING,RIGHT($C93,1),MATCH($E$2,'Data by Building Type'!$D$22:$F$22,0))=\"Yes\",1,0)*\n(R$10*OFFSET('Efficiency Distributions'!$D$10,MATCH($C93,'Efficiency Distributions'!$C$9:$C$87,0)+RIGHT($E98),0)\n+R$11*OFFSET('Efficiency Distributions'!$E$10,MATCH($C93,'Efficiency Distributions'!$C$9:$C$87,0)+RIGHT($E98),0))\n/SUM(R$10:R$11)","v":0.4179389957405959},{"$f":"IF(INDEX(PC_MAPPING,RIGHT($C93,1),MATCH($E$2,'Data by Building Type'!$D$22:$F$22,0))=\"Yes\",1,0)*\n(S$10*OFFSET('Efficiency Distributions'!$D$10,MATCH($C93,'Efficiency Distributions'!$C$9:$C$87,0)+RIGHT($E98),0)\n+S$11*OFFSET('Efficiency Distributions'!$E$10,MATCH($C93,'Efficiency Distributions'!$C$9:$C$87,0)+RIGHT($E98),0))\n/SUM(S$10:S$11)","v":0.4179389957405959},{"$f":"IF(INDEX(PC_MAPPING,RIGHT($C93,1),MATCH($E$2,'Data by Building Type'!$D$22:$F$22,0))=\"Yes\",1,0)*\n(T$10*OFFSET('Efficiency Distributions'!$D$10,MATCH($C93,'Efficiency Distributions'!$C$9:$C$87,0)+RIGHT($E98),0)\n+T$11*OFFSET('Efficiency Distributions'!$E$10,MATCH($C93,'Efficiency Distributions'!$C$9:$C$87,0)+RIGHT($E98),0))\n/SUM(T$10:T$11)","v":0.41793899574059595},{"$f":"IF(INDEX(PC_MAPPING,RIGHT($C93,1),MATCH($E$2,'Data by Building Type'!$D$22:$F$22,0))=\"Yes\",1,0)*\n(U$10*OFFSET('Efficiency Distributions'!$D$10,MATCH($C93,'Efficiency Distributions'!$C$9:$C$87,0)+RIGHT($E98),0)\n+U$11*OFFSET('Efficiency Distributions'!$E$10,MATCH($C93,'Efficiency Distributions'!$C$9:$C$87,0)+RIGHT($E98),0))\n/SUM(U$10:U$11)","v":0.4179389957405959},{"$f":"IF(INDEX(PC_MAPPING,RIGHT($C93,1),MATCH($E$2,'Data by Building Type'!$D$22:$F$22,0))=\"Yes\",1,0)*\n(V$10*OFFSET('Efficiency Distributions'!$D$10,MATCH($C93,'Efficiency Distributions'!$C$9:$C$87,0)+RIGHT($E98),0)\n+V$11*OFFSET('Efficiency Distributions'!$E$10,MATCH($C93,'Efficiency Distributions'!$C$9:$C$87,0)+RIGHT($E98),0))\n/SUM(V$10:V$11)","v":0.4179389957405959},{"$f":"IF(INDEX(PC_MAPPING,RIGHT($C93,1),MATCH($E$2,'Data by Building Type'!$D$22:$F$22,0))=\"Yes\",1,0)*\n(W$10*OFFSET('Efficiency Distributions'!$D$10,MATCH($C93,'Efficiency Distributions'!$C$9:$C$87,0)+RIGHT($E98),0)\n+W$11*OFFSET('Efficiency Distributions'!$E$10,MATCH($C93,'Efficiency Distributions'!$C$9:$C$87,0)+RIGHT($E98),0))\n/SUM(W$10:W$11)","v":0.4179389957405959},{"$f":"IF(INDEX(PC_MAPPING,RIGHT($C93,1),MATCH($E$2,'Data by Building Type'!$D$22:$F$22,0))=\"Yes\",1,0)*\n(X$10*OFFSET('Efficiency Distributions'!$D$10,MATCH($C93,'Efficiency Distributions'!$C$9:$C$87,0)+RIGHT($E98),0)\n+X$11*OFFSET('Efficiency Distributions'!$E$10,MATCH($C93,'Efficiency Distributions'!$C$9:$C$87,0)+RIGHT($E98),0))\n/SUM(X$10:X$11)","v":0.4179389957405959},{"$f":"IF(INDEX(PC_MAPPING,RIGHT($C93,1),MATCH($E$2,'Data by Building Type'!$D$22:$F$22,0))=\"Yes\",1,0)*\n(Y$10*OFFSET('Efficiency Distributions'!$D$10,MATCH($C93,'Efficiency Distributions'!$C$9:$C$87,0)+RIGHT($E98),0)\n+Y$11*OFFSET('Efficiency Distributions'!$E$10,MATCH($C93,'Efficiency Distributions'!$C$9:$C$87,0)+RIGHT($E98),0))\n/SUM(Y$10:Y$11)","v":0.4179389957405959},{"$f":"IF(INDEX(PC_MAPPING,RIGHT($C93,1),MATCH($E$2,'Data by Building Type'!$D$22:$F$22,0))=\"Yes\",1,0)*\n(Z$10*OFFSET('Efficiency Distributions'!$D$10,MATCH($C93,'Efficiency Distributions'!$C$9:$C$87,0)+RIGHT($E98),0)\n+Z$11*OFFSET('Efficiency Distributions'!$E$10,MATCH($C93,'Efficiency Distributions'!$C$9:$C$87,0)+RIGHT($E98),0))\n/SUM(Z$10:Z$11)","v":0.4179389957405959},{"$f":"IF(INDEX(PC_MAPPING,RIGHT($C93,1),MATCH($E$2,'Data by Building Type'!$D$22:$F$22,0))=\"Yes\",1,0)*\n(AA$10*OFFSET('Efficiency Distributions'!$D$10,MATCH($C93,'Efficiency Distributions'!$C$9:$C$87,0)+RIGHT($E98),0)\n+AA$11*OFFSET('Efficiency Distributions'!$E$10,MATCH($C93,'Efficiency Distributions'!$C$9:$C$87,0)+RIGHT($E98),0))\n/SUM(AA$10:AA$11)","v":0.4179389957405959},{"$f":"IF(INDEX(PC_MAPPING,RIGHT($C93,1),MATCH($E$2,'Data by Building Type'!$D$22:$F$22,0))=\"Yes\",1,0)*\n(AB$10*OFFSET('Efficiency Distributions'!$D$10,MATCH($C93,'Efficiency Distributions'!$C$9:$C$87,0)+RIGHT($E98),0)\n+AB$11*OFFSET('Efficiency Distributions'!$E$10,MATCH($C93,'Efficiency Distributions'!$C$9:$C$87,0)+RIGHT($E98),0))\n/SUM(AB$10:AB$11)","v":0.4179389957405959},{"$f":"IF(INDEX(PC_MAPPING,RIGHT($C93,1),MATCH($E$2,'Data by Building Type'!$D$22:$F$22,0))=\"Yes\",1,0)*\n(AC$10*OFFSET('Efficiency Distributions'!$D$10,MATCH($C93,'Efficiency Distributions'!$C$9:$C$87,0)+RIGHT($E98),0)\n+AC$11*OFFSET('Efficiency Distributions'!$E$10,MATCH($C93,'Efficiency Distributions'!$C$9:$C$87,0)+RIGHT($E98),0))\n/SUM(AC$10:AC$11)","v":0.41793899574059584},{"$f":"IF(INDEX(PC_MAPPING,RIGHT($C93,1),MATCH($E$2,'Data by Building Type'!$D$22:$F$22,0))=\"Yes\",1,0)*\n(AD$10*OFFSET('Efficiency Distributions'!$D$10,MATCH($C93,'Efficiency Distributions'!$C$9:$C$87,0)+RIGHT($E98),0)\n+AD$11*OFFSET('Efficiency Distributions'!$E$10,MATCH($C93,'Efficiency Distributions'!$C$9:$C$87,0)+RIGHT($E98),0))\n/SUM(AD$10:AD$11)","v":0.4179389957405959},{"$f":"IF(INDEX(PC_MAPPING,RIGHT($C93,1),MATCH($E$2,'Data by Building Type'!$D$22:$F$22,0))=\"Yes\",1,0)*\n(AE$10*OFFSET('Efficiency Distributions'!$D$10,MATCH($C93,'Efficiency Distributions'!$C$9:$C$87,0)+RIGHT($E98),0)\n+AE$11*OFFSET('Efficiency Distributions'!$E$10,MATCH($C93,'Efficiency Distributions'!$C$9:$C$87,0)+RIGHT($E98),0))\n/SUM(AE$10:AE$11)","v":0.4179389957405959},{"$f":"IF(INDEX(PC_MAPPING,RIGHT($C93,1),MATCH($E$2,'Data by Building Type'!$D$22:$F$22,0))=\"Yes\",1,0)*\n(AF$10*OFFSET('Efficiency Distributions'!$D$10,MATCH($C93,'Efficiency Distributions'!$C$9:$C$87,0)+RIGHT($E98),0)\n+AF$11*OFFSET('Efficiency Distributions'!$E$10,MATCH($C93,'Efficiency Distributions'!$C$9:$C$87,0)+RIGHT($E98),0))\n/SUM(AF$10:AF$11)","v":0.4179389957405959},{"$f":"IF(INDEX(PC_MAPPING,RIGHT($C93,1),MATCH($E$2,'Data by Building Type'!$D$22:$F$22,0))=\"Yes\",1,0)*\n(AG$10*OFFSET('Efficiency Distributions'!$D$10,MATCH($C93,'Efficiency Distributions'!$C$9:$C$87,0)+RIGHT($E98),0)\n+AG$11*OFFSET('Efficiency Distributions'!$E$10,MATCH($C93,'Efficiency Distributions'!$C$9:$C$87,0)+RIGHT($E98),0))\n/SUM(AG$10:AG$11)","v":0.4179389957405959},{"$f":"IF(INDEX(PC_MAPPING,RIGHT($C93,1),MATCH($E$2,'Data by Building Type'!$D$22:$F$22,0))=\"Yes\",1,0)*\n(AH$10*OFFSET('Efficiency Distributions'!$D$10,MATCH($C93,'Efficiency Distributions'!$C$9:$C$87,0)+RIGHT($E98),0)\n+AH$11*OFFSET('Efficiency Distributions'!$E$10,MATCH($C93,'Efficiency Distributions'!$C$9:$C$87,0)+RIGHT($E98),0))\n/SUM(AH$10:AH$11)","v":0.4179389957405959},{"$f":"IF(INDEX(PC_MAPPING,RIGHT($C93,1),MATCH($E$2,'Data by Building Type'!$D$22:$F$22,0))=\"Yes\",1,0)*\n(AI$10*OFFSET('Efficiency Distributions'!$D$10,MATCH($C93,'Efficiency Distributions'!$C$9:$C$87,0)+RIGHT($E98),0)\n+AI$11*OFFSET('Efficiency Distributions'!$E$10,MATCH($C93,'Efficiency Distributions'!$C$9:$C$87,0)+RIGHT($E98),0))\n/SUM(AI$10:AI$11)","v":0.4179389957405959},{"$f":"IF(INDEX(PC_MAPPING,RIGHT($C93,1),MATCH($E$2,'Data by Building Type'!$D$22:$F$22,0))=\"Yes\",1,0)*\n(AJ$10*OFFSET('Efficiency Distributions'!$D$10,MATCH($C93,'Efficiency Distributions'!$C$9:$C$87,0)+RIGHT($E98),0)\n+AJ$11*OFFSET('Efficiency Distributions'!$E$10,MATCH($C93,'Efficiency Distributions'!$C$9:$C$87,0)+RIGHT($E98),0))\n/SUM(AJ$10:AJ$11)","v":0.4179389957405959},{"$f":"IF(INDEX(PC_MAPPING,RIGHT($C93,1),MATCH($E$2,'Data by Building Type'!$D$22:$F$22,0))=\"Yes\",1,0)*\n(AK$10*OFFSET('Efficiency Distributions'!$D$10,MATCH($C93,'Efficiency Distributions'!$C$9:$C$87,0)+RIGHT($E98),0)\n+AK$11*OFFSET('Efficiency Distributions'!$E$10,MATCH($C93,'Efficiency Distributions'!$C$9:$C$87,0)+RIGHT($E98),0))\n/SUM(AK$10:AK$11)","v":0.42414586965729534},{"$f":"IF(INDEX(PC_MAPPING,RIGHT($C93,1),MATCH($E$2,'Data by Building Type'!$D$22:$F$22,0))=\"Yes\",1,0)*\n(AL$10*OFFSET('Efficiency Distributions'!$D$10,MATCH($C93,'Efficiency Distributions'!$C$9:$C$87,0)+RIGHT($E98),0)\n+AL$11*OFFSET('Efficiency Distributions'!$E$10,MATCH($C93,'Efficiency Distributions'!$C$9:$C$87,0)+RIGHT($E98),0))\n/SUM(AL$10:AL$11)","v":0.42439516071724115},{"$f":"IF(INDEX(PC_MAPPING,RIGHT($C93,1),MATCH($E$2,'Data by Building Type'!$D$22:$F$22,0))=\"Yes\",1,0)*\n(AM$10*OFFSET('Efficiency Distributions'!$D$10,MATCH($C93,'Efficiency Distributions'!$C$9:$C$87,0)+RIGHT($E98),0)\n+AM$11*OFFSET('Efficiency Distributions'!$E$10,MATCH($C93,'Efficiency Distributions'!$C$9:$C$87,0)+RIGHT($E98),0))\n/SUM(AM$10:AM$11)","v":0.43029583797068377},{"$f":"IF(INDEX(PC_MAPPING,RIGHT($C93,1),MATCH($E$2,'Data by Building Type'!$D$22:$F$22,0))=\"Yes\",1,0)*\n(AN$10*OFFSET('Efficiency Distributions'!$D$10,MATCH($C93,'Efficiency Distributions'!$C$9:$C$87,0)+RIGHT($E98),0)\n+AN$11*OFFSET('Efficiency Distributions'!$E$10,MATCH($C93,'Efficiency Distributions'!$C$9:$C$87,0)+RIGHT($E98),0))\n/SUM(AN$10:AN$11)","v":0.42999481327062034},{"$f":"IF(INDEX(PC_MAPPING,RIGHT($C93,1),MATCH($E$2,'Data by Building Type'!$D$22:$F$22,0))=\"Yes\",1,0)*\n(AO$10*OFFSET('Efficiency Distributions'!$D$10,MATCH($C93,'Efficiency Distributions'!$C$9:$C$87,0)+RIGHT($E98),0)\n+AO$11*OFFSET('Efficiency Distributions'!$E$10,MATCH($C93,'Efficiency Distributions'!$C$9:$C$87,0)+RIGHT($E98),0))\n/SUM(AO$10:AO$11)","v":0.43036158468985708},{"$f":"IF(INDEX(PC_MAPPING,RIGHT($C93,1),MATCH($E$2,'Data by Building Type'!$D$22:$F$22,0))=\"Yes\",1,0)*\n(AP$10*OFFSET('Efficiency Distributions'!$D$10,MATCH($C93,'Efficiency Distributions'!$C$9:$C$87,0)+RIGHT($E98),0)\n+AP$11*OFFSET('Efficiency Distributions'!$E$10,MATCH($C93,'Efficiency Distributions'!$C$9:$C$87,0)+RIGHT($E98),0))\n/SUM(AP$10:AP$11)","v":0.43111378796397432},{"$f":"IF(INDEX(PC_MAPPING,RIGHT($C93,1),MATCH($E$2,'Data by Building Type'!$D$22:$F$22,0))=\"Yes\",1,0)*\n(AQ$10*OFFSET('Efficiency Distributions'!$D$10,MATCH($C93,'Efficiency Distributions'!$C$9:$C$87,0)+RIGHT($E98),0)\n+AQ$11*OFFSET('Efficiency Distributions'!$E$10,MATCH($C93,'Efficiency Distributions'!$C$9:$C$87,0)+RIGHT($E98),0))\n/SUM(AQ$10:AQ$11)","v":0.43187789578938207},{"$f":"IF(INDEX(PC_MAPPING,RIGHT($C93,1),MATCH($E$2,'Data by Building Type'!$D$22:$F$22,0))=\"Yes\",1,0)*\n(AR$10*OFFSET('Efficiency Distributions'!$D$10,MATCH($C93,'Efficiency Distributions'!$C$9:$C$87,0)+RIGHT($E98),0)\n+AR$11*OFFSET('Efficiency Distributions'!$E$10,MATCH($C93,'Efficiency Distributions'!$C$9:$C$87,0)+RIGHT($E98),0))\n/SUM(AR$10:AR$11)","v":0.43171848673146618},{"$f":"IF(INDEX(PC_MAPPING,RIGHT($C93,1),MATCH($E$2,'Data by Building Type'!$D$22:$F$22,0))=\"Yes\",1,0)*\n(AS$10*OFFSET('Efficiency Distributions'!$D$10,MATCH($C93,'Efficiency Distributions'!$C$9:$C$87,0)+RIGHT($E98),0)\n+AS$11*OFFSET('Efficiency Distributions'!$E$10,MATCH($C93,'Efficiency Distributions'!$C$9:$C$87,0)+RIGHT($E98),0))\n/SUM(AS$10:AS$11)","v":0.4343464239007066},{"$f":"IF(INDEX(PC_MAPPING,RIGHT($C93,1),MATCH($E$2,'Data by Building Type'!$D$22:$F$22,0))=\"Yes\",1,0)*\n(AT$10*OFFSET('Efficiency Distributions'!$D$10,MATCH($C93,'Efficiency Distributions'!$C$9:$C$87,0)+RIGHT($E98),0)\n+AT$11*OFFSET('Efficiency Distributions'!$E$10,MATCH($C93,'Efficiency Distributions'!$C$9:$C$87,0)+RIGHT($E98),0))\n/SUM(AT$10:AT$11)","v":0.43712404396832366},{"$f":"IF(INDEX(PC_MAPPING,RIGHT($C93,1),MATCH($E$2,'Data by Building Type'!$D$22:$F$22,0))=\"Yes\",1,0)*\n(AU$10*OFFSET('Efficiency Distributions'!$D$10,MATCH($C93,'Efficiency Distributions'!$C$9:$C$87,0)+RIGHT($E98),0)\n+AU$11*OFFSET('Efficiency Distributions'!$E$10,MATCH($C93,'Efficiency Distributions'!$C$9:$C$87,0)+RIGHT($E98),0))\n/SUM(AU$10:AU$11)","v":0.43799461093315406},{"$f":"IF(INDEX(PC_MAPPING,RIGHT($C93,1),MATCH($E$2,'Data by Building Type'!$D$22:$F$22,0))=\"Yes\",1,0)*\n(AV$10*OFFSET('Efficiency Distributions'!$D$10,MATCH($C93,'Efficiency Distributions'!$C$9:$C$87,0)+RIGHT($E98),0)\n+AV$11*OFFSET('Efficiency Distributions'!$E$10,MATCH($C93,'Efficiency Distributions'!$C$9:$C$87,0)+RIGHT($E98),0))\n/SUM(AV$10:AV$11)","v":0.43178467570823031},{"$f":"IF(INDEX(PC_MAPPING,RIGHT($C93,1),MATCH($E$2,'Data by Building Type'!$D$22:$F$22,0))=\"Yes\",1,0)*\n(AW$10*OFFSET('Efficiency Distributions'!$D$10,MATCH($C93,'Efficiency Distributions'!$C$9:$C$87,0)+RIGHT($E98),0)\n+AW$11*OFFSET('Efficiency Distributions'!$E$10,MATCH($C93,'Efficiency Distributions'!$C$9:$C$87,0)+RIGHT($E98),0))\n/SUM(AW$10:AW$11)","v":0.43383170115676117},{"$f":"IF(INDEX(PC_MAPPING,RIGHT($C93,1),MATCH($E$2,'Data by Building Type'!$D$22:$F$22,0))=\"Yes\",1,0)*\n(AX$10*OFFSET('Efficiency Distributions'!$D$10,MATCH($C93,'Efficiency Distributions'!$C$9:$C$87,0)+RIGHT($E98),0)\n+AX$11*OFFSET('Efficiency Distributions'!$E$10,MATCH($C93,'Efficiency Distributions'!$C$9:$C$87,0)+RIGHT($E98),0))\n/SUM(AX$10:AX$11)","v":0.43271243181756236},{"$f":"IF(INDEX(PC_MAPPING,RIGHT($C93,1),MATCH($E$2,'Data by Building Type'!$D$22:$F$22,0))=\"Yes\",1,0)*\n(AY$10*OFFSET('Efficiency Distributions'!$D$10,MATCH($C93,'Efficiency Distributions'!$C$9:$C$87,0)+RIGHT($E98),0)\n+AY$11*OFFSET('Efficiency Distributions'!$E$10,MATCH($C93,'Efficiency Distributions'!$C$9:$C$87,0)+RIGHT($E98),0))\n/SUM(AY$10:AY$11)","v":0.43083034105561668},{"$f":"IF(INDEX(PC_MAPPING,RIGHT($C93,1),MATCH($E$2,'Data by Building Type'!$D$22:$F$22,0))=\"Yes\",1,0)*\n(AZ$10*OFFSET('Efficiency Distributions'!$D$10,MATCH($C93,'Efficiency Distributions'!$C$9:$C$87,0)+RIGHT($E98),0)\n+AZ$11*OFFSET('Efficiency Distributions'!$E$10,MATCH($C93,'Efficiency Distributions'!$C$9:$C$87,0)+RIGHT($E98),0))\n/SUM(AZ$10:AZ$11)","v":0.42818961365321934},{"$f":"IF(INDEX(PC_MAPPING,RIGHT($C93,1),MATCH($E$2,'Data by Building Type'!$D$22:$F$22,0))=\"Yes\",1,0)*\n(BA$10*OFFSET('Efficiency Distributions'!$D$10,MATCH($C93,'Efficiency Distributions'!$C$9:$C$87,0)+RIGHT($E98),0)\n+BA$11*OFFSET('Efficiency Distributions'!$E$10,MATCH($C93,'Efficiency Distributions'!$C$9:$C$87,0)+RIGHT($E98),0))\n/SUM(BA$10:BA$11)","v":0.429290622755235},{"$f":"IF(INDEX(PC_MAPPING,RIGHT($C93,1),MATCH($E$2,'Data by Building Type'!$D$22:$F$22,0))=\"Yes\",1,0)*\n(BB$10*OFFSET('Efficiency Distributions'!$D$10,MATCH($C93,'Efficiency Distributions'!$C$9:$C$87,0)+RIGHT($E98),0)\n+BB$11*OFFSET('Efficiency Distributions'!$E$10,MATCH($C93,'Efficiency Distributions'!$C$9:$C$87,0)+RIGHT($E98),0))\n/SUM(BB$10:BB$11)","v":0.42972750723990805},{"$f":"IF(INDEX(PC_MAPPING,RIGHT($C93,1),MATCH($E$2,'Data by Building Type'!$D$22:$F$22,0))=\"Yes\",1,0)*\n(BC$10*OFFSET('Efficiency Distributions'!$D$10,MATCH($C93,'Efficiency Distributions'!$C$9:$C$87,0)+RIGHT($E98),0)\n+BC$11*OFFSET('Efficiency Distributions'!$E$10,MATCH($C93,'Efficiency Distributions'!$C$9:$C$87,0)+RIGHT($E98),0))\n/SUM(BC$10:BC$11)","v":0.42944141548842724},{"$f":"IF(INDEX(PC_MAPPING,RIGHT($C93,1),MATCH($E$2,'Data by Building Type'!$D$22:$F$22,0))=\"Yes\",1,0)*\n(BD$10*OFFSET('Efficiency Distributions'!$D$10,MATCH($C93,'Efficiency Distributions'!$C$9:$C$87,0)+RIGHT($E98),0)\n+BD$11*OFFSET('Efficiency Distributions'!$E$10,MATCH($C93,'Efficiency Distributions'!$C$9:$C$87,0)+RIGHT($E98),0))\n/SUM(BD$10:BD$11)","v":0.42763962261275906},{"$f":"IF(INDEX(PC_MAPPING,RIGHT($C93,1),MATCH($E$2,'Data by Building Type'!$D$22:$F$22,0))=\"Yes\",1,0)*\n(BE$10*OFFSET('Efficiency Distributions'!$D$10,MATCH($C93,'Efficiency Distributions'!$C$9:$C$87,0)+RIGHT($E98),0)\n+BE$11*OFFSET('Efficiency Distributions'!$E$10,MATCH($C93,'Efficiency Distributions'!$C$9:$C$87,0)+RIGHT($E98),0))\n/SUM(BE$10:BE$11)","v":0.42867539775084712},{"$f":"IF(INDEX(PC_MAPPING,RIGHT($C93,1),MATCH($E$2,'Data by Building Type'!$D$22:$F$22,0))=\"Yes\",1,0)*\n(BF$10*OFFSET('Efficiency Distributions'!$D$10,MATCH($C93,'Efficiency Distributions'!$C$9:$C$87,0)+RIGHT($E98),0)\n+BF$11*OFFSET('Efficiency Distributions'!$E$10,MATCH($C93,'Efficiency Distributions'!$C$9:$C$87,0)+RIGHT($E98),0))\n/SUM(BF$10:BF$11)","v":0.42531851317793951},{"$f":"IF(INDEX(PC_MAPPING,RIGHT($C93,1),MATCH($E$2,'Data by Building Type'!$D$22:$F$22,0))=\"Yes\",1,0)*\n(BG$10*OFFSET('Efficiency Distributions'!$D$10,MATCH($C93,'Efficiency Distributions'!$C$9:$C$87,0)+RIGHT($E98),0)\n+BG$11*OFFSET('Efficiency Distributions'!$E$10,MATCH($C93,'Efficiency Distributions'!$C$9:$C$87,0)+RIGHT($E98),0))\n/SUM(BG$10:BG$11)","v":0.42528533104473787}]
[null,null,null,null,"EL2",{"$f":"IF(INDEX(PC_MAPPING,RIGHT($C93,1),MATCH($E$2,'Data by Building Type'!$D$22:$F$22,0))=\"Yes\",1,0)*\n(F$10*OFFSET('Efficiency Distributions'!$D$10,MATCH($C93,'Efficiency Distributions'!$C$9:$C$87,0)+RIGHT($E99),0)\n+F$11*OFFSET('Efficiency Distributions'!$E$10,MATCH($C93,'Efficiency Distributions'!$C$9:$C$87,0)+RIGHT($E99),0))\n/SUM(F$10:F$11)","v":0},{"$f":"IF(INDEX(PC_MAPPING,RIGHT($C93,1),MATCH($E$2,'Data by Building Type'!$D$22:$F$22,0))=\"Yes\",1,0)*\n(G$10*OFFSET('Efficiency Distributions'!$D$10,MATCH($C93,'Efficiency Distributions'!$C$9:$C$87,0)+RIGHT($E99),0)\n+G$11*OFFSET('Efficiency Distributions'!$E$10,MATCH($C93,'Efficiency Distributions'!$C$9:$C$87,0)+RIGHT($E99),0))\n/SUM(G$10:G$11)","v":0},{"$f":"IF(INDEX(PC_MAPPING,RIGHT($C93,1),MATCH($E$2,'Data by Building Type'!$D$22:$F$22,0))=\"Yes\",1,0)*\n(H$10*OFFSET('Efficiency Distributions'!$D$10,MATCH($C93,'Efficiency Distributions'!$C$9:$C$87,0)+RIGHT($E99),0)\n+H$11*OFFSET('Efficiency Distributions'!$E$10,MATCH($C93,'Efficiency Distributions'!$C$9:$C$87,0)+RIGHT($E99),0))\n/SUM(H$10:H$11)","v":0},{"$f":"IF(INDEX(PC_MAPPING,RIGHT($C93,1),MATCH($E$2,'Data by Building Type'!$D$22:$F$22,0))=\"Yes\",1,0)*\n(I$10*OFFSET('Efficiency Distributions'!$D$10,MATCH($C93,'Efficiency Distributions'!$C$9:$C$87,0)+RIGHT($E99),0)\n+I$11*OFFSET('Efficiency Distributions'!$E$10,MATCH($C93,'Efficiency Distributions'!$C$9:$C$87,0)+RIGHT($E99),0))\n/SUM(I$10:I$11)","v":0},{"$f":"IF(INDEX(PC_MAPPING,RIGHT($C93,1),MATCH($E$2,'Data by Building Type'!$D$22:$F$22,0))=\"Yes\",1,0)*\n(J$10*OFFSET('Efficiency Distributions'!$D$10,MATCH($C93,'Efficiency Distributions'!$C$9:$C$87,0)+RIGHT($E99),0)\n+J$11*OFFSET('Efficiency Distributions'!$E$10,MATCH($C93,'Efficiency Distributions'!$C$9:$C$87,0)+RIGHT($E99),0))\n/SUM(J$10:J$11)","v":0},{"$f":"IF(INDEX(PC_MAPPING,RIGHT($C93,1),MATCH($E$2,'Data by Building Type'!$D$22:$F$22,0))=\"Yes\",1,0)*\n(K$10*OFFSET('Efficiency Distributions'!$D$10,MATCH($C93,'Efficiency Distributions'!$C$9:$C$87,0)+RIGHT($E99),0)\n+K$11*OFFSET('Efficiency Distributions'!$E$10,MATCH($C93,'Efficiency Distributions'!$C$9:$C$87,0)+RIGHT($E99),0))\n/SUM(K$10:K$11)","v":0},{"$f":"IF(INDEX(PC_MAPPING,RIGHT($C93,1),MATCH($E$2,'Data by Building Type'!$D$22:$F$22,0))=\"Yes\",1,0)*\n(L$10*OFFSET('Efficiency Distributions'!$D$10,MATCH($C93,'Efficiency Distributions'!$C$9:$C$87,0)+RIGHT($E99),0)\n+L$11*OFFSET('Efficiency Distributions'!$E$10,MATCH($C93,'Efficiency Distributions'!$C$9:$C$87,0)+RIGHT($E99),0))\n/SUM(L$10:L$11)","v":0},{"$f":"IF(INDEX(PC_MAPPING,RIGHT($C93,1),MATCH($E$2,'Data by Building Type'!$D$22:$F$22,0))=\"Yes\",1,0)*\n(M$10*OFFSET('Efficiency Distributions'!$D$10,MATCH($C93,'Efficiency Distributions'!$C$9:$C$87,0)+RIGHT($E99),0)\n+M$11*OFFSET('Efficiency Distributions'!$E$10,MATCH($C93,'Efficiency Distributions'!$C$9:$C$87,0)+RIGHT($E99),0))\n/SUM(M$10:M$11)","v":0},{"$f":"IF(INDEX(PC_MAPPING,RIGHT($C93,1),MATCH($E$2,'Data by Building Type'!$D$22:$F$22,0))=\"Yes\",1,0)*\n(N$10*OFFSET('Efficiency Distributions'!$D$10,MATCH($C93,'Efficiency Distributions'!$C$9:$C$87,0)+RIGHT($E99),0)\n+N$11*OFFSET('Efficiency Distributions'!$E$10,MATCH($C93,'Efficiency Distributions'!$C$9:$C$87,0)+RIGHT($E99),0))\n/SUM(N$10:N$11)","v":0},{"$f":"IF(INDEX(PC_MAPPING,RIGHT($C93,1),MATCH($E$2,'Data by Building Type'!$D$22:$F$22,0))=\"Yes\",1,0)*\n(O$10*OFFSET('Efficiency Distributions'!$D$10,MATCH($C93,'Efficiency Distributions'!$C$9:$C$87,0)+RIGHT($E99),0)\n+O$11*OFFSET('Efficiency Distributions'!$E$10,MATCH($C93,'Efficiency Distributions'!$C$9:$C$87,0)+RIGHT($E99),0))\n/SUM(O$10:O$11)","v":0},{"$f":"IF(INDEX(PC_MAPPING,RIGHT($C93,1),MATCH($E$2,'Data by Building Type'!$D$22:$F$22,0))=\"Yes\",1,0)*\n(P$10*OFFSET('Efficiency Distributions'!$D$10,MATCH($C93,'Efficiency Distributions'!$C$9:$C$87,0)+RIGHT($E99),0)\n+P$11*OFFSET('Efficiency Distributions'!$E$10,MATCH($C93,'Efficiency Distributions'!$C$9:$C$87,0)+RIGHT($E99),0))\n/SUM(P$10:P$11)","v":0},{"$f":"IF(INDEX(PC_MAPPING,RIGHT($C93,1),MATCH($E$2,'Data by Building Type'!$D$22:$F$22,0))=\"Yes\",1,0)*\n(Q$10*OFFSET('Efficiency Distributions'!$D$10,MATCH($C93,'Efficiency Distributions'!$C$9:$C$87,0)+RIGHT($E99),0)\n+Q$11*OFFSET('Efficiency Distributions'!$E$10,MATCH($C93,'Efficiency Distributions'!$C$9:$C$87,0)+RIGHT($E99),0))\n/SUM(Q$10:Q$11)","v":0},{"$f":"IF(INDEX(PC_MAPPING,RIGHT($C93,1),MATCH($E$2,'Data by Building Type'!$D$22:$F$22,0))=\"Yes\",1,0)*\n(R$10*OFFSET('Efficiency Distributions'!$D$10,MATCH($C93,'Efficiency Distributions'!$C$9:$C$87,0)+RIGHT($E99),0)\n+R$11*OFFSET('Efficiency Distributions'!$E$10,MATCH($C93,'Efficiency Distributions'!$C$9:$C$87,0)+RIGHT($E99),0))\n/SUM(R$10:R$11)","v":0},{"$f":"IF(INDEX(PC_MAPPING,RIGHT($C93,1),MATCH($E$2,'Data by Building Type'!$D$22:$F$22,0))=\"Yes\",1,0)*\n(S$10*OFFSET('Efficiency Distributions'!$D$10,MATCH($C93,'Efficiency Distributions'!$C$9:$C$87,0)+RIGHT($E99),0)\n+S$11*OFFSET('Efficiency Distributions'!$E$10,MATCH($C93,'Efficiency Distributions'!$C$9:$C$87,0)+RIGHT($E99),0))\n/SUM(S$10:S$11)","v":0},{"$f":"IF(INDEX(PC_MAPPING,RIGHT($C93,1),MATCH($E$2,'Data by Building Type'!$D$22:$F$22,0))=\"Yes\",1,0)*\n(T$10*OFFSET('Efficiency Distributions'!$D$10,MATCH($C93,'Efficiency Distributions'!$C$9:$C$87,0)+RIGHT($E99),0)\n+T$11*OFFSET('Efficiency Distributions'!$E$10,MATCH($C93,'Efficiency Distributions'!$C$9:$C$87,0)+RIGHT($E99),0))\n/SUM(T$10:T$11)","v":0},{"$f":"IF(INDEX(PC_MAPPING,RIGHT($C93,1),MATCH($E$2,'Data by Building Type'!$D$22:$F$22,0))=\"Yes\",1,0)*\n(U$10*OFFSET('Efficiency Distributions'!$D$10,MATCH($C93,'Efficiency Distributions'!$C$9:$C$87,0)+RIGHT($E99),0)\n+U$11*OFFSET('Efficiency Distributions'!$E$10,MATCH($C93,'Efficiency Distributions'!$C$9:$C$87,0)+RIGHT($E99),0))\n/SUM(U$10:U$11)","v":0},{"$f":"IF(INDEX(PC_MAPPING,RIGHT($C93,1),MATCH($E$2,'Data by Building Type'!$D$22:$F$22,0))=\"Yes\",1,0)*\n(V$10*OFFSET('Efficiency Distributions'!$D$10,MATCH($C93,'Efficiency Distributions'!$C$9:$C$87,0)+RIGHT($E99),0)\n+V$11*OFFSET('Efficiency Distributions'!$E$10,MATCH($C93,'Efficiency Distributions'!$C$9:$C$87,0)+RIGHT($E99),0))\n/SUM(V$10:V$11)","v":0},{"$f":"IF(INDEX(PC_MAPPING,RIGHT($C93,1),MATCH($E$2,'Data by Building Type'!$D$22:$F$22,0))=\"Yes\",1,0)*\n(W$10*OFFSET('Efficiency Distributions'!$D$10,MATCH($C93,'Efficiency Distributions'!$C$9:$C$87,0)+RIGHT($E99),0)\n+W$11*OFFSET('Efficiency Distributions'!$E$10,MATCH($C93,'Efficiency Distributions'!$C$9:$C$87,0)+RIGHT($E99),0))\n/SUM(W$10:W$11)","v":0},{"$f":"IF(INDEX(PC_MAPPING,RIGHT($C93,1),MATCH($E$2,'Data by Building Type'!$D$22:$F$22,0))=\"Yes\",1,0)*\n(X$10*OFFSET('Efficiency Distributions'!$D$10,MATCH($C93,'Efficiency Distributions'!$C$9:$C$87,0)+RIGHT($E99),0)\n+X$11*OFFSET('Efficiency Distributions'!$E$10,MATCH($C93,'Efficiency Distributions'!$C$9:$C$87,0)+RIGHT($E99),0))\n/SUM(X$10:X$11)","v":0},{"$f":"IF(INDEX(PC_MAPPING,RIGHT($C93,1),MATCH($E$2,'Data by Building Type'!$D$22:$F$22,0))=\"Yes\",1,0)*\n(Y$10*OFFSET('Efficiency Distributions'!$D$10,MATCH($C93,'Efficiency Distributions'!$C$9:$C$87,0)+RIGHT($E99),0)\n+Y$11*OFFSET('Efficiency Distributions'!$E$10,MATCH($C93,'Efficiency Distributions'!$C$9:$C$87,0)+RIGHT($E99),0))\n/SUM(Y$10:Y$11)","v":0},{"$f":"IF(INDEX(PC_MAPPING,RIGHT($C93,1),MATCH($E$2,'Data by Building Type'!$D$22:$F$22,0))=\"Yes\",1,0)*\n(Z$10*OFFSET('Efficiency Distributions'!$D$10,MATCH($C93,'Efficiency Distributions'!$C$9:$C$87,0)+RIGHT($E99),0)\n+Z$11*OFFSET('Efficiency Distributions'!$E$10,MATCH($C93,'Efficiency Distributions'!$C$9:$C$87,0)+RIGHT($E99),0))\n/SUM(Z$10:Z$11)","v":0},{"$f":"IF(INDEX(PC_MAPPING,RIGHT($C93,1),MATCH($E$2,'Data by Building Type'!$D$22:$F$22,0))=\"Yes\",1,0)*\n(AA$10*OFFSET('Efficiency Distributions'!$D$10,MATCH($C93,'Efficiency Distributions'!$C$9:$C$87,0)+RIGHT($E99),0)\n+AA$11*OFFSET('Efficiency Distributions'!$E$10,MATCH($C93,'Efficiency Distributions'!$C$9:$C$87,0)+RIGHT($E99),0))\n/SUM(AA$10:AA$11)","v":0},{"$f":"IF(INDEX(PC_MAPPING,RIGHT($C93,1),MATCH($E$2,'Data by Building Type'!$D$22:$F$22,0))=\"Yes\",1,0)*\n(AB$10*OFFSET('Efficiency Distributions'!$D$10,MATCH($C93,'Efficiency Distributions'!$C$9:$C$87,0)+RIGHT($E99),0)\n+AB$11*OFFSET('Efficiency Distributions'!$E$10,MATCH($C93,'Efficiency Distributions'!$C$9:$C$87,0)+RIGHT($E99),0))\n/SUM(AB$10:AB$11)","v":0},{"$f":"IF(INDEX(PC_MAPPING,RIGHT($C93,1),MATCH($E$2,'Data by Building Type'!$D$22:$F$22,0))=\"Yes\",1,0)*\n(AC$10*OFFSET('Efficiency Distributions'!$D$10,MATCH($C93,'Efficiency Distributions'!$C$9:$C$87,0)+RIGHT($E99),0)\n+AC$11*OFFSET('Efficiency Distributions'!$E$10,MATCH($C93,'Efficiency Distributions'!$C$9:$C$87,0)+RIGHT($E99),0))\n/SUM(AC$10:AC$11)","v":0},{"$f":"IF(INDEX(PC_MAPPING,RIGHT($C93,1),MATCH($E$2,'Data by Building Type'!$D$22:$F$22,0))=\"Yes\",1,0)*\n(AD$10*OFFSET('Efficiency Distributions'!$D$10,MATCH($C93,'Efficiency Distributions'!$C$9:$C$87,0)+RIGHT($E99),0)\n+AD$11*OFFSET('Efficiency Distributions'!$E$10,MATCH($C93,'Efficiency Distributions'!$C$9:$C$87,0)+RIGHT($E99),0))\n/SUM(AD$10:AD$11)","v":0},{"$f":"IF(INDEX(PC_MAPPING,RIGHT($C93,1),MATCH($E$2,'Data by Building Type'!$D$22:$F$22,0))=\"Yes\",1,0)*\n(AE$10*OFFSET('Efficiency Distributions'!$D$10,MATCH($C93,'Efficiency Distributions'!$C$9:$C$87,0)+RIGHT($E99),0)\n+AE$11*OFFSET('Efficiency Distributions'!$E$10,MATCH($C93,'Efficiency Distributions'!$C$9:$C$87,0)+RIGHT($E99),0))\n/SUM(AE$10:AE$11)","v":0},{"$f":"IF(INDEX(PC_MAPPING,RIGHT($C93,1),MATCH($E$2,'Data by Building Type'!$D$22:$F$22,0))=\"Yes\",1,0)*\n(AF$10*OFFSET('Efficiency Distributions'!$D$10,MATCH($C93,'Efficiency Distributions'!$C$9:$C$87,0)+RIGHT($E99),0)\n+AF$11*OFFSET('Efficiency Distributions'!$E$10,MATCH($C93,'Efficiency Distributions'!$C$9:$C$87,0)+RIGHT($E99),0))\n/SUM(AF$10:AF$11)","v":0},{"$f":"IF(INDEX(PC_MAPPING,RIGHT($C93,1),MATCH($E$2,'Data by Building Type'!$D$22:$F$22,0))=\"Yes\",1,0)*\n(AG$10*OFFSET('Efficiency Distributions'!$D$10,MATCH($C93,'Efficiency Distributions'!$C$9:$C$87,0)+RIGHT($E99),0)\n+AG$11*OFFSET('Efficiency Distributions'!$E$10,MATCH($C93,'Efficiency Distributions'!$C$9:$C$87,0)+RIGHT($E99),0))\n/SUM(AG$10:AG$11)","v":0},{"$f":"IF(INDEX(PC_MAPPING,RIGHT($C93,1),MATCH($E$2,'Data by Building Type'!$D$22:$F$22,0))=\"Yes\",1,0)*\n(AH$10*OFFSET('Efficiency Distributions'!$D$10,MATCH($C93,'Efficiency Distributions'!$C$9:$C$87,0)+RIGHT($E99),0)\n+AH$11*OFFSET('Efficiency Distributions'!$E$10,MATCH($C93,'Efficiency Distributions'!$C$9:$C$87,0)+RIGHT($E99),0))\n/SUM(AH$10:AH$11)","v":0},{"$f":"IF(INDEX(PC_MAPPING,RIGHT($C93,1),MATCH($E$2,'Data by Building Type'!$D$22:$F$22,0))=\"Yes\",1,0)*\n(AI$10*OFFSET('Efficiency Distributions'!$D$10,MATCH($C93,'Efficiency Distributions'!$C$9:$C$87,0)+RIGHT($E99),0)\n+AI$11*OFFSET('Efficiency Distributions'!$E$10,MATCH($C93,'Efficiency Distributions'!$C$9:$C$87,0)+RIGHT($E99),0))\n/SUM(AI$10:AI$11)","v":0},{"$f":"IF(INDEX(PC_MAPPING,RIGHT($C93,1),MATCH($E$2,'Data by Building Type'!$D$22:$F$22,0))=\"Yes\",1,0)*\n(AJ$10*OFFSET('Efficiency Distributions'!$D$10,MATCH($C93,'Efficiency Distributions'!$C$9:$C$87,0)+RIGHT($E99),0)\n+AJ$11*OFFSET('Efficiency Distributions'!$E$10,MATCH($C93,'Efficiency Distributions'!$C$9:$C$87,0)+RIGHT($E99),0))\n/SUM(AJ$10:AJ$11)","v":0},{"$f":"IF(INDEX(PC_MAPPING,RIGHT($C93,1),MATCH($E$2,'Data by Building Type'!$D$22:$F$22,0))=\"Yes\",1,0)*\n(AK$10*OFFSET('Efficiency Distributions'!$D$10,MATCH($C93,'Efficiency Distributions'!$C$9:$C$87,0)+RIGHT($E99),0)\n+AK$11*OFFSET('Efficiency Distributions'!$E$10,MATCH($C93,'Efficiency Distributions'!$C$9:$C$87,0)+RIGHT($E99),0))\n/SUM(AK$10:AK$11)","v":0},{"$f":"IF(INDEX(PC_MAPPING,RIGHT($C93,1),MATCH($E$2,'Data by Building Type'!$D$22:$F$22,0))=\"Yes\",1,0)*\n(AL$10*OFFSET('Efficiency Distributions'!$D$10,MATCH($C93,'Efficiency Distributions'!$C$9:$C$87,0)+RIGHT($E99),0)\n+AL$11*OFFSET('Efficiency Distributions'!$E$10,MATCH($C93,'Efficiency Distributions'!$C$9:$C$87,0)+RIGHT($E99),0))\n/SUM(AL$10:AL$11)","v":0},{"$f":"IF(INDEX(PC_MAPPING,RIGHT($C93,1),MATCH($E$2,'Data by Building Type'!$D$22:$F$22,0))=\"Yes\",1,0)*\n(AM$10*OFFSET('Efficiency Distributions'!$D$10,MATCH($C93,'Efficiency Distributions'!$C$9:$C$87,0)+RIGHT($E99),0)\n+AM$11*OFFSET('Efficiency Distributions'!$E$10,MATCH($C93,'Efficiency Distributions'!$C$9:$C$87,0)+RIGHT($E99),0))\n/SUM(AM$10:AM$11)","v":0},{"$f":"IF(INDEX(PC_MAPPING,RIGHT($C93,1),MATCH($E$2,'Data by Building Type'!$D$22:$F$22,0))=\"Yes\",1,0)*\n(AN$10*OFFSET('Efficiency Distributions'!$D$10,MATCH($C93,'Efficiency Distributions'!$C$9:$C$87,0)+RIGHT($E99),0)\n+AN$11*OFFSET('Efficiency Distributions'!$E$10,MATCH($C93,'Efficiency Distributions'!$C$9:$C$87,0)+RIGHT($E99),0))\n/SUM(AN$10:AN$11)","v":0},{"$f":"IF(INDEX(PC_MAPPING,RIGHT($C93,1),MATCH($E$2,'Data by Building Type'!$D$22:$F$22,0))=\"Yes\",1,0)*\n(AO$10*OFFSET('Efficiency Distributions'!$D$10,MATCH($C93,'Efficiency Distributions'!$C$9:$C$87,0)+RIGHT($E99),0)\n+AO$11*OFFSET('Efficiency Distributions'!$E$10,MATCH($C93,'Efficiency Distributions'!$C$9:$C$87,0)+RIGHT($E99),0))\n/SUM(AO$10:AO$11)","v":0},{"$f":"IF(INDEX(PC_MAPPING,RIGHT($C93,1),MATCH($E$2,'Data by Building Type'!$D$22:$F$22,0))=\"Yes\",1,0)*\n(AP$10*OFFSET('Efficiency Distributions'!$D$10,MATCH($C93,'Efficiency Distributions'!$C$9:$C$87,0)+RIGHT($E99),0)\n+AP$11*OFFSET('Efficiency Distributions'!$E$10,MATCH($C93,'Efficiency Distributions'!$C$9:$C$87,0)+RIGHT($E99),0))\n/SUM(AP$10:AP$11)","v":0},{"$f":"IF(INDEX(PC_MAPPING,RIGHT($C93,1),MATCH($E$2,'Data by Building Type'!$D$22:$F$22,0))=\"Yes\",1,0)*\n(AQ$10*OFFSET('Efficiency Distributions'!$D$10,MATCH($C93,'Efficiency Distributions'!$C$9:$C$87,0)+RIGHT($E99),0)\n+AQ$11*OFFSET('Efficiency Distributions'!$E$10,MATCH($C93,'Efficiency Distributions'!$C$9:$C$87,0)+RIGHT($E99),0))\n/SUM(AQ$10:AQ$11)","v":0},{"$f":"IF(INDEX(PC_MAPPING,RIGHT($C93,1),MATCH($E$2,'Data by Building Type'!$D$22:$F$22,0))=\"Yes\",1,0)*\n(AR$10*OFFSET('Efficiency Distributions'!$D$10,MATCH($C93,'Efficiency Distributions'!$C$9:$C$87,0)+RIGHT($E99),0)\n+AR$11*OFFSET('Efficiency Distributions'!$E$10,MATCH($C93,'Efficiency Distributions'!$C$9:$C$87,0)+RIGHT($E99),0))\n/SUM(AR$10:AR$11)","v":0},{"$f":"IF(INDEX(PC_MAPPING,RIGHT($C93,1),MATCH($E$2,'Data by Building Type'!$D$22:$F$22,0))=\"Yes\",1,0)*\n(AS$10*OFFSET('Efficiency Distributions'!$D$10,MATCH($C93,'Efficiency Distributions'!$C$9:$C$87,0)+RIGHT($E99),0)\n+AS$11*OFFSET('Efficiency Distributions'!$E$10,MATCH($C93,'Efficiency Distributions'!$C$9:$C$87,0)+RIGHT($E99),0))\n/SUM(AS$10:AS$11)","v":0},{"$f":"IF(INDEX(PC_MAPPING,RIGHT($C93,1),MATCH($E$2,'Data by Building Type'!$D$22:$F$22,0))=\"Yes\",1,0)*\n(AT$10*OFFSET('Efficiency Distributions'!$D$10,MATCH($C93,'Efficiency Distributions'!$C$9:$C$87,0)+RIGHT($E99),0)\n+AT$11*OFFSET('Efficiency Distributions'!$E$10,MATCH($C93,'Efficiency Distributions'!$C$9:$C$87,0)+RIGHT($E99),0))\n/SUM(AT$10:AT$11)","v":0},{"$f":"IF(INDEX(PC_MAPPING,RIGHT($C93,1),MATCH($E$2,'Data by Building Type'!$D$22:$F$22,0))=\"Yes\",1,0)*\n(AU$10*OFFSET('Efficiency Distributions'!$D$10,MATCH($C93,'Efficiency Distributions'!$C$9:$C$87,0)+RIGHT($E99),0)\n+AU$11*OFFSET('Efficiency Distributions'!$E$10,MATCH($C93,'Efficiency Distributions'!$C$9:$C$87,0)+RIGHT($E99),0))\n/SUM(AU$10:AU$11)","v":0},{"$f":"IF(INDEX(PC_MAPPING,RIGHT($C93,1),MATCH($E$2,'Data by Building Type'!$D$22:$F$22,0))=\"Yes\",1,0)*\n(AV$10*OFFSET('Efficiency Distributions'!$D$10,MATCH($C93,'Efficiency Distributions'!$C$9:$C$87,0)+RIGHT($E99),0)\n+AV$11*OFFSET('Efficiency Distributions'!$E$10,MATCH($C93,'Efficiency Distributions'!$C$9:$C$87,0)+RIGHT($E99),0))\n/SUM(AV$10:AV$11)","v":0},{"$f":"IF(INDEX(PC_MAPPING,RIGHT($C93,1),MATCH($E$2,'Data by Building Type'!$D$22:$F$22,0))=\"Yes\",1,0)*\n(AW$10*OFFSET('Efficiency Distributions'!$D$10,MATCH($C93,'Efficiency Distributions'!$C$9:$C$87,0)+RIGHT($E99),0)\n+AW$11*OFFSET('Efficiency Distributions'!$E$10,MATCH($C93,'Efficiency Distributions'!$C$9:$C$87,0)+RIGHT($E99),0))\n/SUM(AW$10:AW$11)","v":0},{"$f":"IF(INDEX(PC_MAPPING,RIGHT($C93,1),MATCH($E$2,'Data by Building Type'!$D$22:$F$22,0))=\"Yes\",1,0)*\n(AX$10*OFFSET('Efficiency Distributions'!$D$10,MATCH($C93,'Efficiency Distributions'!$C$9:$C$87,0)+RIGHT($E99),0)\n+AX$11*OFFSET('Efficiency Distributions'!$E$10,MATCH($C93,'Efficiency Distributions'!$C$9:$C$87,0)+RIGHT($E99),0))\n/SUM(AX$10:AX$11)","v":0},{"$f":"IF(INDEX(PC_MAPPING,RIGHT($C93,1),MATCH($E$2,'Data by Building Type'!$D$22:$F$22,0))=\"Yes\",1,0)*\n(AY$10*OFFSET('Efficiency Distributions'!$D$10,MATCH($C93,'Efficiency Distributions'!$C$9:$C$87,0)+RIGHT($E99),0)\n+AY$11*OFFSET('Efficiency Distributions'!$E$10,MATCH($C93,'Efficiency Distributions'!$C$9:$C$87,0)+RIGHT($E99),0))\n/SUM(AY$10:AY$11)","v":0},{"$f":"IF(INDEX(PC_MAPPING,RIGHT($C93,1),MATCH($E$2,'Data by Building Type'!$D$22:$F$22,0))=\"Yes\",1,0)*\n(AZ$10*OFFSET('Efficiency Distributions'!$D$10,MATCH($C93,'Efficiency Distributions'!$C$9:$C$87,0)+RIGHT($E99),0)\n+AZ$11*OFFSET('Efficiency Distributions'!$E$10,MATCH($C93,'Efficiency Distributions'!$C$9:$C$87,0)+RIGHT($E99),0))\n/SUM(AZ$10:AZ$11)","v":0},{"$f":"IF(INDEX(PC_MAPPING,RIGHT($C93,1),MATCH($E$2,'Data by Building Type'!$D$22:$F$22,0))=\"Yes\",1,0)*\n(BA$10*OFFSET('Efficiency Distributions'!$D$10,MATCH($C93,'Efficiency Distributions'!$C$9:$C$87,0)+RIGHT($E99),0)\n+BA$11*OFFSET('Efficiency Distributions'!$E$10,MATCH($C93,'Efficiency Distributions'!$C$9:$C$87,0)+RIGHT($E99),0))\n/SUM(BA$10:BA$11)","v":0},{"$f":"IF(INDEX(PC_MAPPING,RIGHT($C93,1),MATCH($E$2,'Data by Building Type'!$D$22:$F$22,0))=\"Yes\",1,0)*\n(BB$10*OFFSET('Efficiency Distributions'!$D$10,MATCH($C93,'Efficiency Distributions'!$C$9:$C$87,0)+RIGHT($E99),0)\n+BB$11*OFFSET('Efficiency Distributions'!$E$10,MATCH($C93,'Efficiency Distributions'!$C$9:$C$87,0)+RIGHT($E99),0))\n/SUM(BB$10:BB$11)","v":0},{"$f":"IF(INDEX(PC_MAPPING,RIGHT($C93,1),MATCH($E$2,'Data by Building Type'!$D$22:$F$22,0))=\"Yes\",1,0)*\n(BC$10*OFFSET('Efficiency Distributions'!$D$10,MATCH($C93,'Efficiency Distributions'!$C$9:$C$87,0)+RIGHT($E99),0)\n+BC$11*OFFSET('Efficiency Distributions'!$E$10,MATCH($C93,'Efficiency Distributions'!$C$9:$C$87,0)+RIGHT($E99),0))\n/SUM(BC$10:BC$11)","v":0},{"$f":"IF(INDEX(PC_MAPPING,RIGHT($C93,1),MATCH($E$2,'Data by Building Type'!$D$22:$F$22,0))=\"Yes\",1,0)*\n(BD$10*OFFSET('Efficiency Distributions'!$D$10,MATCH($C93,'Efficiency Distributions'!$C$9:$C$87,0)+RIGHT($E99),0)\n+BD$11*OFFSET('Efficiency Distributions'!$E$10,MATCH($C93,'Efficiency Distributions'!$C$9:$C$87,0)+RIGHT($E99),0))\n/SUM(BD$10:BD$11)","v":0},{"$f":"IF(INDEX(PC_MAPPING,RIGHT($C93,1),MATCH($E$2,'Data by Building Type'!$D$22:$F$22,0))=\"Yes\",1,0)*\n(BE$10*OFFSET('Efficiency Distributions'!$D$10,MATCH($C93,'Efficiency Distributions'!$C$9:$C$87,0)+RIGHT($E99),0)\n+BE$11*OFFSET('Efficiency Distributions'!$E$10,MATCH($C93,'Efficiency Distributions'!$C$9:$C$87,0)+RIGHT($E99),0))\n/SUM(BE$10:BE$11)","v":0},{"$f":"IF(INDEX(PC_MAPPING,RIGHT($C93,1),MATCH($E$2,'Data by Building Type'!$D$22:$F$22,0))=\"Yes\",1,0)*\n(BF$10*OFFSET('Efficiency Distributions'!$D$10,MATCH($C93,'Efficiency Distributions'!$C$9:$C$87,0)+RIGHT($E99),0)\n+BF$11*OFFSET('Efficiency Distributions'!$E$10,MATCH($C93,'Efficiency Distributions'!$C$9:$C$87,0)+RIGHT($E99),0))\n/SUM(BF$10:BF$11)","v":0},{"$f":"IF(INDEX(PC_MAPPING,RIGHT($C93,1),MATCH($E$2,'Data by Building Type'!$D$22:$F$22,0))=\"Yes\",1,0)*\n(BG$10*OFFSET('Efficiency Distributions'!$D$10,MATCH($C93,'Efficiency Distributions'!$C$9:$C$87,0)+RIGHT($E99),0)\n+BG$11*OFFSET('Efficiency Distributions'!$E$10,MATCH($C93,'Efficiency Distributions'!$C$9:$C$87,0)+RIGHT($E99),0))\n/SUM(BG$10:BG$11)","v":0}]
[null,null,null,null,"EL3",{"$f":"IF(INDEX(PC_MAPPING,RIGHT($C93,1),MATCH($E$2,'Data by Building Type'!$D$22:$F$22,0))=\"Yes\",1,0)*\n(F$10*OFFSET('Efficiency Distributions'!$D$10,MATCH($C93,'Efficiency Distributions'!$C$9:$C$87,0)+RIGHT($E100),0)\n+F$11*OFFSET('Efficiency Distributions'!$E$10,MATCH($C93,'Efficiency Distributions'!$C$9:$C$87,0)+RIGHT($E100),0))\n/SUM(F$10:F$11)","v":0},{"$f":"IF(INDEX(PC_MAPPING,RIGHT($C93,1),MATCH($E$2,'Data by Building Type'!$D$22:$F$22,0))=\"Yes\",1,0)*\n(G$10*OFFSET('Efficiency Distributions'!$D$10,MATCH($C93,'Efficiency Distributions'!$C$9:$C$87,0)+RIGHT($E100),0)\n+G$11*OFFSET('Efficiency Distributions'!$E$10,MATCH($C93,'Efficiency Distributions'!$C$9:$C$87,0)+RIGHT($E100),0))\n/SUM(G$10:G$11)","v":0},{"$f":"IF(INDEX(PC_MAPPING,RIGHT($C93,1),MATCH($E$2,'Data by Building Type'!$D$22:$F$22,0))=\"Yes\",1,0)*\n(H$10*OFFSET('Efficiency Distributions'!$D$10,MATCH($C93,'Efficiency Distributions'!$C$9:$C$87,0)+RIGHT($E100),0)\n+H$11*OFFSET('Efficiency Distributions'!$E$10,MATCH($C93,'Efficiency Distributions'!$C$9:$C$87,0)+RIGHT($E100),0))\n/SUM(H$10:H$11)","v":0},{"$f":"IF(INDEX(PC_MAPPING,RIGHT($C93,1),MATCH($E$2,'Data by Building Type'!$D$22:$F$22,0))=\"Yes\",1,0)*\n(I$10*OFFSET('Efficiency Distributions'!$D$10,MATCH($C93,'Efficiency Distributions'!$C$9:$C$87,0)+RIGHT($E100),0)\n+I$11*OFFSET('Efficiency Distributions'!$E$10,MATCH($C93,'Efficiency Distributions'!$C$9:$C$87,0)+RIGHT($E100),0))\n/SUM(I$10:I$11)","v":0},{"$f":"IF(INDEX(PC_MAPPING,RIGHT($C93,1),MATCH($E$2,'Data by Building Type'!$D$22:$F$22,0))=\"Yes\",1,0)*\n(J$10*OFFSET('Efficiency Distributions'!$D$10,MATCH($C93,'Efficiency Distributions'!$C$9:$C$87,0)+RIGHT($E100),0)\n+J$11*OFFSET('Efficiency Distributions'!$E$10,MATCH($C93,'Efficiency Distributions'!$C$9:$C$87,0)+RIGHT($E100),0))\n/SUM(J$10:J$11)","v":0},{"$f":"IF(INDEX(PC_MAPPING,RIGHT($C93,1),MATCH($E$2,'Data by Building Type'!$D$22:$F$22,0))=\"Yes\",1,0)*\n(K$10*OFFSET('Efficiency Distributions'!$D$10,MATCH($C93,'Efficiency Distributions'!$C$9:$C$87,0)+RIGHT($E100),0)\n+K$11*OFFSET('Efficiency Distributions'!$E$10,MATCH($C93,'Efficiency Distributions'!$C$9:$C$87,0)+RIGHT($E100),0))\n/SUM(K$10:K$11)","v":0},{"$f":"IF(INDEX(PC_MAPPING,RIGHT($C93,1),MATCH($E$2,'Data by Building Type'!$D$22:$F$22,0))=\"Yes\",1,0)*\n(L$10*OFFSET('Efficiency Distributions'!$D$10,MATCH($C93,'Efficiency Distributions'!$C$9:$C$87,0)+RIGHT($E100),0)\n+L$11*OFFSET('Efficiency Distributions'!$E$10,MATCH($C93,'Efficiency Distributions'!$C$9:$C$87,0)+RIGHT($E100),0))\n/SUM(L$10:L$11)","v":0},{"$f":"IF(INDEX(PC_MAPPING,RIGHT($C93,1),MATCH($E$2,'Data by Building Type'!$D$22:$F$22,0))=\"Yes\",1,0)*\n(M$10*OFFSET('Efficiency Distributions'!$D$10,MATCH($C93,'Efficiency Distributions'!$C$9:$C$87,0)+RIGHT($E100),0)\n+M$11*OFFSET('Efficiency Distributions'!$E$10,MATCH($C93,'Efficiency Distributions'!$C$9:$C$87,0)+RIGHT($E100),0))\n/SUM(M$10:M$11)","v":0},{"$f":"IF(INDEX(PC_MAPPING,RIGHT($C93,1),MATCH($E$2,'Data by Building Type'!$D$22:$F$22,0))=\"Yes\",1,0)*\n(N$10*OFFSET('Efficiency Distributions'!$D$10,MATCH($C93,'Efficiency Distributions'!$C$9:$C$87,0)+RIGHT($E100),0)\n+N$11*OFFSET('Efficiency Distributions'!$E$10,MATCH($C93,'Efficiency Distributions'!$C$9:$C$87,0)+RIGHT($E100),0))\n/SUM(N$10:N$11)","v":0},{"$f":"IF(INDEX(PC_MAPPING,RIGHT($C93,1),MATCH($E$2,'Data by Building Type'!$D$22:$F$22,0))=\"Yes\",1,0)*\n(O$10*OFFSET('Efficiency Distributions'!$D$10,MATCH($C93,'Efficiency Distributions'!$C$9:$C$87,0)+RIGHT($E100),0)\n+O$11*OFFSET('Efficiency Distributions'!$E$10,MATCH($C93,'Efficiency Distributions'!$C$9:$C$87,0)+RIGHT($E100),0))\n/SUM(O$10:O$11)","v":0},{"$f":"IF(INDEX(PC_MAPPING,RIGHT($C93,1),MATCH($E$2,'Data by Building Type'!$D$22:$F$22,0))=\"Yes\",1,0)*\n(P$10*OFFSET('Efficiency Distributions'!$D$10,MATCH($C93,'Efficiency Distributions'!$C$9:$C$87,0)+RIGHT($E100),0)\n+P$11*OFFSET('Efficiency Distributions'!$E$10,MATCH($C93,'Efficiency Distributions'!$C$9:$C$87,0)+RIGHT($E100),0))\n/SUM(P$10:P$11)","v":0},{"$f":"IF(INDEX(PC_MAPPING,RIGHT($C93,1),MATCH($E$2,'Data by Building Type'!$D$22:$F$22,0))=\"Yes\",1,0)*\n(Q$10*OFFSET('Efficiency Distributions'!$D$10,MATCH($C93,'Efficiency Distributions'!$C$9:$C$87,0)+RIGHT($E100),0)\n+Q$11*OFFSET('Efficiency Distributions'!$E$10,MATCH($C93,'Efficiency Distributions'!$C$9:$C$87,0)+RIGHT($E100),0))\n/SUM(Q$10:Q$11)","v":0},{"$f":"IF(INDEX(PC_MAPPING,RIGHT($C93,1),MATCH($E$2,'Data by Building Type'!$D$22:$F$22,0))=\"Yes\",1,0)*\n(R$10*OFFSET('Efficiency Distributions'!$D$10,MATCH($C93,'Efficiency Distributions'!$C$9:$C$87,0)+RIGHT($E100),0)\n+R$11*OFFSET('Efficiency Distributions'!$E$10,MATCH($C93,'Efficiency Distributions'!$C$9:$C$87,0)+RIGHT($E100),0))\n/SUM(R$10:R$11)","v":0},{"$f":"IF(INDEX(PC_MAPPING,RIGHT($C93,1),MATCH($E$2,'Data by Building Type'!$D$22:$F$22,0))=\"Yes\",1,0)*\n(S$10*OFFSET('Efficiency Distributions'!$D$10,MATCH($C93,'Efficiency Distributions'!$C$9:$C$87,0)+RIGHT($E100),0)\n+S$11*OFFSET('Efficiency Distributions'!$E$10,MATCH($C93,'Efficiency Distributions'!$C$9:$C$87,0)+RIGHT($E100),0))\n/SUM(S$10:S$11)","v":0},{"$f":"IF(INDEX(PC_MAPPING,RIGHT($C93,1),MATCH($E$2,'Data by Building Type'!$D$22:$F$22,0))=\"Yes\",1,0)*\n(T$10*OFFSET('Efficiency Distributions'!$D$10,MATCH($C93,'Efficiency Distributions'!$C$9:$C$87,0)+RIGHT($E100),0)\n+T$11*OFFSET('Efficiency Distributions'!$E$10,MATCH($C93,'Efficiency Distributions'!$C$9:$C$87,0)+RIGHT($E100),0))\n/SUM(T$10:T$11)","v":0},{"$f":"IF(INDEX(PC_MAPPING,RIGHT($C93,1),MATCH($E$2,'Data by Building Type'!$D$22:$F$22,0))=\"Yes\",1,0)*\n(U$10*OFFSET('Efficiency Distributions'!$D$10,MATCH($C93,'Efficiency Distributions'!$C$9:$C$87,0)+RIGHT($E100),0)\n+U$11*OFFSET('Efficiency Distributions'!$E$10,MATCH($C93,'Efficiency Distributions'!$C$9:$C$87,0)+RIGHT($E100),0))\n/SUM(U$10:U$11)","v":0},{"$f":"IF(INDEX(PC_MAPPING,RIGHT($C93,1),MATCH($E$2,'Data by Building Type'!$D$22:$F$22,0))=\"Yes\",1,0)*\n(V$10*OFFSET('Efficiency Distributions'!$D$10,MATCH($C93,'Efficiency Distributions'!$C$9:$C$87,0)+RIGHT($E100),0)\n+V$11*OFFSET('Efficiency Distributions'!$E$10,MATCH($C93,'Efficiency Distributions'!$C$9:$C$87,0)+RIGHT($E100),0))\n/SUM(V$10:V$11)","v":0},{"$f":"IF(INDEX(PC_MAPPING,RIGHT($C93,1),MATCH($E$2,'Data by Building Type'!$D$22:$F$22,0))=\"Yes\",1,0)*\n(W$10*OFFSET('Efficiency Distributions'!$D$10,MATCH($C93,'Efficiency Distributions'!$C$9:$C$87,0)+RIGHT($E100),0)\n+W$11*OFFSET('Efficiency Distributions'!$E$10,MATCH($C93,'Efficiency Distributions'!$C$9:$C$87,0)+RIGHT($E100),0))\n/SUM(W$10:W$11)","v":0},{"$f":"IF(INDEX(PC_MAPPING,RIGHT($C93,1),MATCH($E$2,'Data by Building Type'!$D$22:$F$22,0))=\"Yes\",1,0)*\n(X$10*OFFSET('Efficiency Distributions'!$D$10,MATCH($C93,'Efficiency Distributions'!$C$9:$C$87,0)+RIGHT($E100),0)\n+X$11*OFFSET('Efficiency Distributions'!$E$10,MATCH($C93,'Efficiency Distributions'!$C$9:$C$87,0)+RIGHT($E100),0))\n/SUM(X$10:X$11)","v":0},{"$f":"IF(INDEX(PC_MAPPING,RIGHT($C93,1),MATCH($E$2,'Data by Building Type'!$D$22:$F$22,0))=\"Yes\",1,0)*\n(Y$10*OFFSET('Efficiency Distributions'!$D$10,MATCH($C93,'Efficiency Distributions'!$C$9:$C$87,0)+RIGHT($E100),0)\n+Y$11*OFFSET('Efficiency Distributions'!$E$10,MATCH($C93,'Efficiency Distributions'!$C$9:$C$87,0)+RIGHT($E100),0))\n/SUM(Y$10:Y$11)","v":0},{"$f":"IF(INDEX(PC_MAPPING,RIGHT($C93,1),MATCH($E$2,'Data by Building Type'!$D$22:$F$22,0))=\"Yes\",1,0)*\n(Z$10*OFFSET('Efficiency Distributions'!$D$10,MATCH($C93,'Efficiency Distributions'!$C$9:$C$87,0)+RIGHT($E100),0)\n+Z$11*OFFSET('Efficiency Distributions'!$E$10,MATCH($C93,'Efficiency Distributions'!$C$9:$C$87,0)+RIGHT($E100),0))\n/SUM(Z$10:Z$11)","v":0},{"$f":"IF(INDEX(PC_MAPPING,RIGHT($C93,1),MATCH($E$2,'Data by Building Type'!$D$22:$F$22,0))=\"Yes\",1,0)*\n(AA$10*OFFSET('Efficiency Distributions'!$D$10,MATCH($C93,'Efficiency Distributions'!$C$9:$C$87,0)+RIGHT($E100),0)\n+AA$11*OFFSET('Efficiency Distributions'!$E$10,MATCH($C93,'Efficiency Distributions'!$C$9:$C$87,0)+RIGHT($E100),0))\n/SUM(AA$10:AA$11)","v":0},{"$f":"IF(INDEX(PC_MAPPING,RIGHT($C93,1),MATCH($E$2,'Data by Building Type'!$D$22:$F$22,0))=\"Yes\",1,0)*\n(AB$10*OFFSET('Efficiency Distributions'!$D$10,MATCH($C93,'Efficiency Distributions'!$C$9:$C$87,0)+RIGHT($E100),0)\n+AB$11*OFFSET('Efficiency Distributions'!$E$10,MATCH($C93,'Efficiency Distributions'!$C$9:$C$87,0)+RIGHT($E100),0))\n/SUM(AB$10:AB$11)","v":0},{"$f":"IF(INDEX(PC_MAPPING,RIGHT($C93,1),MATCH($E$2,'Data by Building Type'!$D$22:$F$22,0))=\"Yes\",1,0)*\n(AC$10*OFFSET('Efficiency Distributions'!$D$10,MATCH($C93,'Efficiency Distributions'!$C$9:$C$87,0)+RIGHT($E100),0)\n+AC$11*OFFSET('Efficiency Distributions'!$E$10,MATCH($C93,'Efficiency Distributions'!$C$9:$C$87,0)+RIGHT($E100),0))\n/SUM(AC$10:AC$11)","v":0},{"$f":"IF(INDEX(PC_MAPPING,RIGHT($C93,1),MATCH($E$2,'Data by Building Type'!$D$22:$F$22,0))=\"Yes\",1,0)*\n(AD$10*OFFSET('Efficiency Distributions'!$D$10,MATCH($C93,'Efficiency Distributions'!$C$9:$C$87,0)+RIGHT($E100),0)\n+AD$11*OFFSET('Efficiency Distributions'!$E$10,MATCH($C93,'Efficiency Distributions'!$C$9:$C$87,0)+RIGHT($E100),0))\n/SUM(AD$10:AD$11)","v":0},{"$f":"IF(INDEX(PC_MAPPING,RIGHT($C93,1),MATCH($E$2,'Data by Building Type'!$D$22:$F$22,0))=\"Yes\",1,0)*\n(AE$10*OFFSET('Efficiency Distributions'!$D$10,MATCH($C93,'Efficiency Distributions'!$C$9:$C$87,0)+RIGHT($E100),0)\n+AE$11*OFFSET('Efficiency Distributions'!$E$10,MATCH($C93,'Efficiency Distributions'!$C$9:$C$87,0)+RIGHT($E100),0))\n/SUM(AE$10:AE$11)","v":0},{"$f":"IF(INDEX(PC_MAPPING,RIGHT($C93,1),MATCH($E$2,'Data by Building Type'!$D$22:$F$22,0))=\"Yes\",1,0)*\n(AF$10*OFFSET('Efficiency Distributions'!$D$10,MATCH($C93,'Efficiency Distributions'!$C$9:$C$87,0)+RIGHT($E100),0)\n+AF$11*OFFSET('Efficiency Distributions'!$E$10,MATCH($C93,'Efficiency Distributions'!$C$9:$C$87,0)+RIGHT($E100),0))\n/SUM(AF$10:AF$11)","v":0},{"$f":"IF(INDEX(PC_MAPPING,RIGHT($C93,1),MATCH($E$2,'Data by Building Type'!$D$22:$F$22,0))=\"Yes\",1,0)*\n(AG$10*OFFSET('Efficiency Distributions'!$D$10,MATCH($C93,'Efficiency Distributions'!$C$9:$C$87,0)+RIGHT($E100),0)\n+AG$11*OFFSET('Efficiency Distributions'!$E$10,MATCH($C93,'Efficiency Distributions'!$C$9:$C$87,0)+RIGHT($E100),0))\n/SUM(AG$10:AG$11)","v":0},{"$f":"IF(INDEX(PC_MAPPING,RIGHT($C93,1),MATCH($E$2,'Data by Building Type'!$D$22:$F$22,0))=\"Yes\",1,0)*\n(AH$10*OFFSET('Efficiency Distributions'!$D$10,MATCH($C93,'Efficiency Distributions'!$C$9:$C$87,0)+RIGHT($E100),0)\n+AH$11*OFFSET('Efficiency Distributions'!$E$10,MATCH($C93,'Efficiency Distributions'!$C$9:$C$87,0)+RIGHT($E100),0))\n/SUM(AH$10:AH$11)","v":0},{"$f":"IF(INDEX(PC_MAPPING,RIGHT($C93,1),MATCH($E$2,'Data by Building Type'!$D$22:$F$22,0))=\"Yes\",1,0)*\n(AI$10*OFFSET('Efficiency Distributions'!$D$10,MATCH($C93,'Efficiency Distributions'!$C$9:$C$87,0)+RIGHT($E100),0)\n+AI$11*OFFSET('Efficiency Distributions'!$E$10,MATCH($C93,'Efficiency Distributions'!$C$9:$C$87,0)+RIGHT($E100),0))\n/SUM(AI$10:AI$11)","v":0},{"$f":"IF(INDEX(PC_MAPPING,RIGHT($C93,1),MATCH($E$2,'Data by Building Type'!$D$22:$F$22,0))=\"Yes\",1,0)*\n(AJ$10*OFFSET('Efficiency Distributions'!$D$10,MATCH($C93,'Efficiency Distributions'!$C$9:$C$87,0)+RIGHT($E100),0)\n+AJ$11*OFFSET('Efficiency Distributions'!$E$10,MATCH($C93,'Efficiency Distributions'!$C$9:$C$87,0)+RIGHT($E100),0))\n/SUM(AJ$10:AJ$11)","v":0},{"$f":"IF(INDEX(PC_MAPPING,RIGHT($C93,1),MATCH($E$2,'Data by Building Type'!$D$22:$F$22,0))=\"Yes\",1,0)*\n(AK$10*OFFSET('Efficiency Distributions'!$D$10,MATCH($C93,'Efficiency Distributions'!$C$9:$C$87,0)+RIGHT($E100),0)\n+AK$11*OFFSET('Efficiency Distributions'!$E$10,MATCH($C93,'Efficiency Distributions'!$C$9:$C$87,0)+RIGHT($E100),0))\n/SUM(AK$10:AK$11)","v":0},{"$f":"IF(INDEX(PC_MAPPING,RIGHT($C93,1),MATCH($E$2,'Data by Building Type'!$D$22:$F$22,0))=\"Yes\",1,0)*\n(AL$10*OFFSET('Efficiency Distributions'!$D$10,MATCH($C93,'Efficiency Distributions'!$C$9:$C$87,0)+RIGHT($E100),0)\n+AL$11*OFFSET('Efficiency Distributions'!$E$10,MATCH($C93,'Efficiency Distributions'!$C$9:$C$87,0)+RIGHT($E100),0))\n/SUM(AL$10:AL$11)","v":0},{"$f":"IF(INDEX(PC_MAPPING,RIGHT($C93,1),MATCH($E$2,'Data by Building Type'!$D$22:$F$22,0))=\"Yes\",1,0)*\n(AM$10*OFFSET('Efficiency Distributions'!$D$10,MATCH($C93,'Efficiency Distributions'!$C$9:$C$87,0)+RIGHT($E100),0)\n+AM$11*OFFSET('Efficiency Distributions'!$E$10,MATCH($C93,'Efficiency Distributions'!$C$9:$C$87,0)+RIGHT($E100),0))\n/SUM(AM$10:AM$11)","v":0},{"$f":"IF(INDEX(PC_MAPPING,RIGHT($C93,1),MATCH($E$2,'Data by Building Type'!$D$22:$F$22,0))=\"Yes\",1,0)*\n(AN$10*OFFSET('Efficiency Distributions'!$D$10,MATCH($C93,'Efficiency Distributions'!$C$9:$C$87,0)+RIGHT($E100),0)\n+AN$11*OFFSET('Efficiency Distributions'!$E$10,MATCH($C93,'Efficiency Distributions'!$C$9:$C$87,0)+RIGHT($E100),0))\n/SUM(AN$10:AN$11)","v":0},{"$f":"IF(INDEX(PC_MAPPING,RIGHT($C93,1),MATCH($E$2,'Data by Building Type'!$D$22:$F$22,0))=\"Yes\",1,0)*\n(AO$10*OFFSET('Efficiency Distributions'!$D$10,MATCH($C93,'Efficiency Distributions'!$C$9:$C$87,0)+RIGHT($E100),0)\n+AO$11*OFFSET('Efficiency Distributions'!$E$10,MATCH($C93,'Efficiency Distributions'!$C$9:$C$87,0)+RIGHT($E100),0))\n/SUM(AO$10:AO$11)","v":0},{"$f":"IF(INDEX(PC_MAPPING,RIGHT($C93,1),MATCH($E$2,'Data by Building Type'!$D$22:$F$22,0))=\"Yes\",1,0)*\n(AP$10*OFFSET('Efficiency Distributions'!$D$10,MATCH($C93,'Efficiency Distributions'!$C$9:$C$87,0)+RIGHT($E100),0)\n+AP$11*OFFSET('Efficiency Distributions'!$E$10,MATCH($C93,'Efficiency Distributions'!$C$9:$C$87,0)+RIGHT($E100),0))\n/SUM(AP$10:AP$11)","v":0},{"$f":"IF(INDEX(PC_MAPPING,RIGHT($C93,1),MATCH($E$2,'Data by Building Type'!$D$22:$F$22,0))=\"Yes\",1,0)*\n(AQ$10*OFFSET('Efficiency Distributions'!$D$10,MATCH($C93,'Efficiency Distributions'!$C$9:$C$87,0)+RIGHT($E100),0)\n+AQ$11*OFFSET('Efficiency Distributions'!$E$10,MATCH($C93,'Efficiency Distributions'!$C$9:$C$87,0)+RIGHT($E100),0))\n/SUM(AQ$10:AQ$11)","v":0},{"$f":"IF(INDEX(PC_MAPPING,RIGHT($C93,1),MATCH($E$2,'Data by Building Type'!$D$22:$F$22,0))=\"Yes\",1,0)*\n(AR$10*OFFSET('Efficiency Distributions'!$D$10,MATCH($C93,'Efficiency Distributions'!$C$9:$C$87,0)+RIGHT($E100),0)\n+AR$11*OFFSET('Efficiency Distributions'!$E$10,MATCH($C93,'Efficiency Distributions'!$C$9:$C$87,0)+RIGHT($E100),0))\n/SUM(AR$10:AR$11)","v":0},{"$f":"IF(INDEX(PC_MAPPING,RIGHT($C93,1),MATCH($E$2,'Data by Building Type'!$D$22:$F$22,0))=\"Yes\",1,0)*\n(AS$10*OFFSET('Efficiency Distributions'!$D$10,MATCH($C93,'Efficiency Distributions'!$C$9:$C$87,0)+RIGHT($E100),0)\n+AS$11*OFFSET('Efficiency Distributions'!$E$10,MATCH($C93,'Efficiency Distributions'!$C$9:$C$87,0)+RIGHT($E100),0))\n/SUM(AS$10:AS$11)","v":0},{"$f":"IF(INDEX(PC_MAPPING,RIGHT($C93,1),MATCH($E$2,'Data by Building Type'!$D$22:$F$22,0))=\"Yes\",1,0)*\n(AT$10*OFFSET('Efficiency Distributions'!$D$10,MATCH($C93,'Efficiency Distributions'!$C$9:$C$87,0)+RIGHT($E100),0)\n+AT$11*OFFSET('Efficiency Distributions'!$E$10,MATCH($C93,'Efficiency Distributions'!$C$9:$C$87,0)+RIGHT($E100),0))\n/SUM(AT$10:AT$11)","v":0},{"$f":"IF(INDEX(PC_MAPPING,RIGHT($C93,1),MATCH($E$2,'Data by Building Type'!$D$22:$F$22,0))=\"Yes\",1,0)*\n(AU$10*OFFSET('Efficiency Distributions'!$D$10,MATCH($C93,'Efficiency Distributions'!$C$9:$C$87,0)+RIGHT($E100),0)\n+AU$11*OFFSET('Efficiency Distributions'!$E$10,MATCH($C93,'Efficiency Distributions'!$C$9:$C$87,0)+RIGHT($E100),0))\n/SUM(AU$10:AU$11)","v":0},{"$f":"IF(INDEX(PC_MAPPING,RIGHT($C93,1),MATCH($E$2,'Data by Building Type'!$D$22:$F$22,0))=\"Yes\",1,0)*\n(AV$10*OFFSET('Efficiency Distributions'!$D$10,MATCH($C93,'Efficiency Distributions'!$C$9:$C$87,0)+RIGHT($E100),0)\n+AV$11*OFFSET('Efficiency Distributions'!$E$10,MATCH($C93,'Efficiency Distributions'!$C$9:$C$87,0)+RIGHT($E100),0))\n/SUM(AV$10:AV$11)","v":0},{"$f":"IF(INDEX(PC_MAPPING,RIGHT($C93,1),MATCH($E$2,'Data by Building Type'!$D$22:$F$22,0))=\"Yes\",1,0)*\n(AW$10*OFFSET('Efficiency Distributions'!$D$10,MATCH($C93,'Efficiency Distributions'!$C$9:$C$87,0)+RIGHT($E100),0)\n+AW$11*OFFSET('Efficiency Distributions'!$E$10,MATCH($C93,'Efficiency Distributions'!$C$9:$C$87,0)+RIGHT($E100),0))\n/SUM(AW$10:AW$11)","v":0},{"$f":"IF(INDEX(PC_MAPPING,RIGHT($C93,1),MATCH($E$2,'Data by Building Type'!$D$22:$F$22,0))=\"Yes\",1,0)*\n(AX$10*OFFSET('Efficiency Distributions'!$D$10,MATCH($C93,'Efficiency Distributions'!$C$9:$C$87,0)+RIGHT($E100),0)\n+AX$11*OFFSET('Efficiency Distributions'!$E$10,MATCH($C93,'Efficiency Distributions'!$C$9:$C$87,0)+RIGHT($E100),0))\n/SUM(AX$10:AX$11)","v":0},{"$f":"IF(INDEX(PC_MAPPING,RIGHT($C93,1),MATCH($E$2,'Data by Building Type'!$D$22:$F$22,0))=\"Yes\",1,0)*\n(AY$10*OFFSET('Efficiency Distributions'!$D$10,MATCH($C93,'Efficiency Distributions'!$C$9:$C$87,0)+RIGHT($E100),0)\n+AY$11*OFFSET('Efficiency Distributions'!$E$10,MATCH($C93,'Efficiency Distributions'!$C$9:$C$87,0)+RIGHT($E100),0))\n/SUM(AY$10:AY$11)","v":0},{"$f":"IF(INDEX(PC_MAPPING,RIGHT($C93,1),MATCH($E$2,'Data by Building Type'!$D$22:$F$22,0))=\"Yes\",1,0)*\n(AZ$10*OFFSET('Efficiency Distributions'!$D$10,MATCH($C93,'Efficiency Distributions'!$C$9:$C$87,0)+RIGHT($E100),0)\n+AZ$11*OFFSET('Efficiency Distributions'!$E$10,MATCH($C93,'Efficiency Distributions'!$C$9:$C$87,0)+RIGHT($E100),0))\n/SUM(AZ$10:AZ$11)","v":0},{"$f":"IF(INDEX(PC_MAPPING,RIGHT($C93,1),MATCH($E$2,'Data by Building Type'!$D$22:$F$22,0))=\"Yes\",1,0)*\n(BA$10*OFFSET('Efficiency Distributions'!$D$10,MATCH($C93,'Efficiency Distributions'!$C$9:$C$87,0)+RIGHT($E100),0)\n+BA$11*OFFSET('Efficiency Distributions'!$E$10,MATCH($C93,'Efficiency Distributions'!$C$9:$C$87,0)+RIGHT($E100),0))\n/SUM(BA$10:BA$11)","v":0},{"$f":"IF(INDEX(PC_MAPPING,RIGHT($C93,1),MATCH($E$2,'Data by Building Type'!$D$22:$F$22,0))=\"Yes\",1,0)*\n(BB$10*OFFSET('Efficiency Distributions'!$D$10,MATCH($C93,'Efficiency Distributions'!$C$9:$C$87,0)+RIGHT($E100),0)\n+BB$11*OFFSET('Efficiency Distributions'!$E$10,MATCH($C93,'Efficiency Distributions'!$C$9:$C$87,0)+RIGHT($E100),0))\n/SUM(BB$10:BB$11)","v":0},{"$f":"IF(INDEX(PC_MAPPING,RIGHT($C93,1),MATCH($E$2,'Data by Building Type'!$D$22:$F$22,0))=\"Yes\",1,0)*\n(BC$10*OFFSET('Efficiency Distributions'!$D$10,MATCH($C93,'Efficiency Distributions'!$C$9:$C$87,0)+RIGHT($E100),0)\n+BC$11*OFFSET('Efficiency Distributions'!$E$10,MATCH($C93,'Efficiency Distributions'!$C$9:$C$87,0)+RIGHT($E100),0))\n/SUM(BC$10:BC$11)","v":0},{"$f":"IF(INDEX(PC_MAPPING,RIGHT($C93,1),MATCH($E$2,'Data by Building Type'!$D$22:$F$22,0))=\"Yes\",1,0)*\n(BD$10*OFFSET('Efficiency Distributions'!$D$10,MATCH($C93,'Efficiency Distributions'!$C$9:$C$87,0)+RIGHT($E100),0)\n+BD$11*OFFSET('Efficiency Distributions'!$E$10,MATCH($C93,'Efficiency Distributions'!$C$9:$C$87,0)+RIGHT($E100),0))\n/SUM(BD$10:BD$11)","v":0},{"$f":"IF(INDEX(PC_MAPPING,RIGHT($C93,1),MATCH($E$2,'Data by Building Type'!$D$22:$F$22,0))=\"Yes\",1,0)*\n(BE$10*OFFSET('Efficiency Distributions'!$D$10,MATCH($C93,'Efficiency Distributions'!$C$9:$C$87,0)+RIGHT($E100),0)\n+BE$11*OFFSET('Efficiency Distributions'!$E$10,MATCH($C93,'Efficiency Distributions'!$C$9:$C$87,0)+RIGHT($E100),0))\n/SUM(BE$10:BE$11)","v":0},{"$f":"IF(INDEX(PC_MAPPING,RIGHT($C93,1),MATCH($E$2,'Data by Building Type'!$D$22:$F$22,0))=\"Yes\",1,0)*\n(BF$10*OFFSET('Efficiency Distributions'!$D$10,MATCH($C93,'Efficiency Distributions'!$C$9:$C$87,0)+RIGHT($E100),0)\n+BF$11*OFFSET('Efficiency Distributions'!$E$10,MATCH($C93,'Efficiency Distributions'!$C$9:$C$87,0)+RIGHT($E100),0))\n/SUM(BF$10:BF$11)","v":0},{"$f":"IF(INDEX(PC_MAPPING,RIGHT($C93,1),MATCH($E$2,'Data by Building Type'!$D$22:$F$22,0))=\"Yes\",1,0)*\n(BG$10*OFFSET('Efficiency Distributions'!$D$10,MATCH($C93,'Efficiency Distributions'!$C$9:$C$87,0)+RIGHT($E100),0)\n+BG$11*OFFSET('Efficiency Distributions'!$E$10,MATCH($C93,'Efficiency Distributions'!$C$9:$C$87,0)+RIGHT($E100),0))\n/SUM(BG$10:BG$11)","v":0}]
[null,null,null,null,"EL4",{"$f":"IF(INDEX(PC_MAPPING,RIGHT($C93,1),MATCH($E$2,'Data by Building Type'!$D$22:$F$22,0))=\"Yes\",1,0)*\n(F$10*OFFSET('Efficiency Distributions'!$D$10,MATCH($C93,'Efficiency Distributions'!$C$9:$C$87,0)+RIGHT($E101),0)\n+F$11*OFFSET('Efficiency Distributions'!$E$10,MATCH($C93,'Efficiency Distributions'!$C$9:$C$87,0)+RIGHT($E101),0))\n/SUM(F$10:F$11)","v":0},{"$f":"IF(INDEX(PC_MAPPING,RIGHT($C93,1),MATCH($E$2,'Data by Building Type'!$D$22:$F$22,0))=\"Yes\",1,0)*\n(G$10*OFFSET('Efficiency Distributions'!$D$10,MATCH($C93,'Efficiency Distributions'!$C$9:$C$87,0)+RIGHT($E101),0)\n+G$11*OFFSET('Efficiency Distributions'!$E$10,MATCH($C93,'Efficiency Distributions'!$C$9:$C$87,0)+RIGHT($E101),0))\n/SUM(G$10:G$11)","v":0},{"$f":"IF(INDEX(PC_MAPPING,RIGHT($C93,1),MATCH($E$2,'Data by Building Type'!$D$22:$F$22,0))=\"Yes\",1,0)*\n(H$10*OFFSET('Efficiency Distributions'!$D$10,MATCH($C93,'Efficiency Distributions'!$C$9:$C$87,0)+RIGHT($E101),0)\n+H$11*OFFSET('Efficiency Distributions'!$E$10,MATCH($C93,'Efficiency Distributions'!$C$9:$C$87,0)+RIGHT($E101),0))\n/SUM(H$10:H$11)","v":0},{"$f":"IF(INDEX(PC_MAPPING,RIGHT($C93,1),MATCH($E$2,'Data by Building Type'!$D$22:$F$22,0))=\"Yes\",1,0)*\n(I$10*OFFSET('Efficiency Distributions'!$D$10,MATCH($C93,'Efficiency Distributions'!$C$9:$C$87,0)+RIGHT($E101),0)\n+I$11*OFFSET('Efficiency Distributions'!$E$10,MATCH($C93,'Efficiency Distributions'!$C$9:$C$87,0)+RIGHT($E101),0))\n/SUM(I$10:I$11)","v":0},{"$f":"IF(INDEX(PC_MAPPING,RIGHT($C93,1),MATCH($E$2,'Data by Building Type'!$D$22:$F$22,0))=\"Yes\",1,0)*\n(J$10*OFFSET('Efficiency Distributions'!$D$10,MATCH($C93,'Efficiency Distributions'!$C$9:$C$87,0)+RIGHT($E101),0)\n+J$11*OFFSET('Efficiency Distributions'!$E$10,MATCH($C93,'Efficiency Distributions'!$C$9:$C$87,0)+RIGHT($E101),0))\n/SUM(J$10:J$11)","v":0},{"$f":"IF(INDEX(PC_MAPPING,RIGHT($C93,1),MATCH($E$2,'Data by Building Type'!$D$22:$F$22,0))=\"Yes\",1,0)*\n(K$10*OFFSET('Efficiency Distributions'!$D$10,MATCH($C93,'Efficiency Distributions'!$C$9:$C$87,0)+RIGHT($E101),0)\n+K$11*OFFSET('Efficiency Distributions'!$E$10,MATCH($C93,'Efficiency Distributions'!$C$9:$C$87,0)+RIGHT($E101),0))\n/SUM(K$10:K$11)","v":0},{"$f":"IF(INDEX(PC_MAPPING,RIGHT($C93,1),MATCH($E$2,'Data by Building Type'!$D$22:$F$22,0))=\"Yes\",1,0)*\n(L$10*OFFSET('Efficiency Distributions'!$D$10,MATCH($C93,'Efficiency Distributions'!$C$9:$C$87,0)+RIGHT($E101),0)\n+L$11*OFFSET('Efficiency Distributions'!$E$10,MATCH($C93,'Efficiency Distributions'!$C$9:$C$87,0)+RIGHT($E101),0))\n/SUM(L$10:L$11)","v":0},{"$f":"IF(INDEX(PC_MAPPING,RIGHT($C93,1),MATCH($E$2,'Data by Building Type'!$D$22:$F$22,0))=\"Yes\",1,0)*\n(M$10*OFFSET('Efficiency Distributions'!$D$10,MATCH($C93,'Efficiency Distributions'!$C$9:$C$87,0)+RIGHT($E101),0)\n+M$11*OFFSET('Efficiency Distributions'!$E$10,MATCH($C93,'Efficiency Distributions'!$C$9:$C$87,0)+RIGHT($E101),0))\n/SUM(M$10:M$11)","v":0},{"$f":"IF(INDEX(PC_MAPPING,RIGHT($C93,1),MATCH($E$2,'Data by Building Type'!$D$22:$F$22,0))=\"Yes\",1,0)*\n(N$10*OFFSET('Efficiency Distributions'!$D$10,MATCH($C93,'Efficiency Distributions'!$C$9:$C$87,0)+RIGHT($E101),0)\n+N$11*OFFSET('Efficiency Distributions'!$E$10,MATCH($C93,'Efficiency Distributions'!$C$9:$C$87,0)+RIGHT($E101),0))\n/SUM(N$10:N$11)","v":0},{"$f":"IF(INDEX(PC_MAPPING,RIGHT($C93,1),MATCH($E$2,'Data by Building Type'!$D$22:$F$22,0))=\"Yes\",1,0)*\n(O$10*OFFSET('Efficiency Distributions'!$D$10,MATCH($C93,'Efficiency Distributions'!$C$9:$C$87,0)+RIGHT($E101),0)\n+O$11*OFFSET('Efficiency Distributions'!$E$10,MATCH($C93,'Efficiency Distributions'!$C$9:$C$87,0)+RIGHT($E101),0))\n/SUM(O$10:O$11)","v":0},{"$f":"IF(INDEX(PC_MAPPING,RIGHT($C93,1),MATCH($E$2,'Data by Building Type'!$D$22:$F$22,0))=\"Yes\",1,0)*\n(P$10*OFFSET('Efficiency Distributions'!$D$10,MATCH($C93,'Efficiency Distributions'!$C$9:$C$87,0)+RIGHT($E101),0)\n+P$11*OFFSET('Efficiency Distributions'!$E$10,MATCH($C93,'Efficiency Distributions'!$C$9:$C$87,0)+RIGHT($E101),0))\n/SUM(P$10:P$11)","v":0},{"$f":"IF(INDEX(PC_MAPPING,RIGHT($C93,1),MATCH($E$2,'Data by Building Type'!$D$22:$F$22,0))=\"Yes\",1,0)*\n(Q$10*OFFSET('Efficiency Distributions'!$D$10,MATCH($C93,'Efficiency Distributions'!$C$9:$C$87,0)+RIGHT($E101),0)\n+Q$11*OFFSET('Efficiency Distributions'!$E$10,MATCH($C93,'Efficiency Distributions'!$C$9:$C$87,0)+RIGHT($E101),0))\n/SUM(Q$10:Q$11)","v":0},{"$f":"IF(INDEX(PC_MAPPING,RIGHT($C93,1),MATCH($E$2,'Data by Building Type'!$D$22:$F$22,0))=\"Yes\",1,0)*\n(R$10*OFFSET('Efficiency Distributions'!$D$10,MATCH($C93,'Efficiency Distributions'!$C$9:$C$87,0)+RIGHT($E101),0)\n+R$11*OFFSET('Efficiency Distributions'!$E$10,MATCH($C93,'Efficiency Distributions'!$C$9:$C$87,0)+RIGHT($E101),0))\n/SUM(R$10:R$11)","v":0},{"$f":"IF(INDEX(PC_MAPPING,RIGHT($C93,1),MATCH($E$2,'Data by Building Type'!$D$22:$F$22,0))=\"Yes\",1,0)*\n(S$10*OFFSET('Efficiency Distributions'!$D$10,MATCH($C93,'Efficiency Distributions'!$C$9:$C$87,0)+RIGHT($E101),0)\n+S$11*OFFSET('Efficiency Distributions'!$E$10,MATCH($C93,'Efficiency Distributions'!$C$9:$C$87,0)+RIGHT($E101),0))\n/SUM(S$10:S$11)","v":0},{"$f":"IF(INDEX(PC_MAPPING,RIGHT($C93,1),MATCH($E$2,'Data by Building Type'!$D$22:$F$22,0))=\"Yes\",1,0)*\n(T$10*OFFSET('Efficiency Distributions'!$D$10,MATCH($C93,'Efficiency Distributions'!$C$9:$C$87,0)+RIGHT($E101),0)\n+T$11*OFFSET('Efficiency Distributions'!$E$10,MATCH($C93,'Efficiency Distributions'!$C$9:$C$87,0)+RIGHT($E101),0))\n/SUM(T$10:T$11)","v":0},{"$f":"IF(INDEX(PC_MAPPING,RIGHT($C93,1),MATCH($E$2,'Data by Building Type'!$D$22:$F$22,0))=\"Yes\",1,0)*\n(U$10*OFFSET('Efficiency Distributions'!$D$10,MATCH($C93,'Efficiency Distributions'!$C$9:$C$87,0)+RIGHT($E101),0)\n+U$11*OFFSET('Efficiency Distributions'!$E$10,MATCH($C93,'Efficiency Distributions'!$C$9:$C$87,0)+RIGHT($E101),0))\n/SUM(U$10:U$11)","v":0},{"$f":"IF(INDEX(PC_MAPPING,RIGHT($C93,1),MATCH($E$2,'Data by Building Type'!$D$22:$F$22,0))=\"Yes\",1,0)*\n(V$10*OFFSET('Efficiency Distributions'!$D$10,MATCH($C93,'Efficiency Distributions'!$C$9:$C$87,0)+RIGHT($E101),0)\n+V$11*OFFSET('Efficiency Distributions'!$E$10,MATCH($C93,'Efficiency Distributions'!$C$9:$C$87,0)+RIGHT($E101),0))\n/SUM(V$10:V$11)","v":0},{"$f":"IF(INDEX(PC_MAPPING,RIGHT($C93,1),MATCH($E$2,'Data by Building Type'!$D$22:$F$22,0))=\"Yes\",1,0)*\n(W$10*OFFSET('Efficiency Distributions'!$D$10,MATCH($C93,'Efficiency Distributions'!$C$9:$C$87,0)+RIGHT($E101),0)\n+W$11*OFFSET('Efficiency Distributions'!$E$10,MATCH($C93,'Efficiency Distributions'!$C$9:$C$87,0)+RIGHT($E101),0))\n/SUM(W$10:W$11)","v":0},{"$f":"IF(INDEX(PC_MAPPING,RIGHT($C93,1),MATCH($E$2,'Data by Building Type'!$D$22:$F$22,0))=\"Yes\",1,0)*\n(X$10*OFFSET('Efficiency Distributions'!$D$10,MATCH($C93,'Efficiency Distributions'!$C$9:$C$87,0)+RIGHT($E101),0)\n+X$11*OFFSET('Efficiency Distributions'!$E$10,MATCH($C93,'Efficiency Distributions'!$C$9:$C$87,0)+RIGHT($E101),0))\n/SUM(X$10:X$11)","v":0},{"$f":"IF(INDEX(PC_MAPPING,RIGHT($C93,1),MATCH($E$2,'Data by Building Type'!$D$22:$F$22,0))=\"Yes\",1,0)*\n(Y$10*OFFSET('Efficiency Distributions'!$D$10,MATCH($C93,'Efficiency Distributions'!$C$9:$C$87,0)+RIGHT($E101),0)\n+Y$11*OFFSET('Efficiency Distributions'!$E$10,MATCH($C93,'Efficiency Distributions'!$C$9:$C$87,0)+RIGHT($E101),0))\n/SUM(Y$10:Y$11)","v":0},{"$f":"IF(INDEX(PC_MAPPING,RIGHT($C93,1),MATCH($E$2,'Data by Building Type'!$D$22:$F$22,0))=\"Yes\",1,0)*\n(Z$10*OFFSET('Efficiency Distributions'!$D$10,MATCH($C93,'Efficiency Distributions'!$C$9:$C$87,0)+RIGHT($E101),0)\n+Z$11*OFFSET('Efficiency Distributions'!$E$10,MATCH($C93,'Efficiency Distributions'!$C$9:$C$87,0)+RIGHT($E101),0))\n/SUM(Z$10:Z$11)","v":0},{"$f":"IF(INDEX(PC_MAPPING,RIGHT($C93,1),MATCH($E$2,'Data by Building Type'!$D$22:$F$22,0))=\"Yes\",1,0)*\n(AA$10*OFFSET('Efficiency Distributions'!$D$10,MATCH($C93,'Efficiency Distributions'!$C$9:$C$87,0)+RIGHT($E101),0)\n+AA$11*OFFSET('Efficiency Distributions'!$E$10,MATCH($C93,'Efficiency Distributions'!$C$9:$C$87,0)+RIGHT($E101),0))\n/SUM(AA$10:AA$11)","v":0},{"$f":"IF(INDEX(PC_MAPPING,RIGHT($C93,1),MATCH($E$2,'Data by Building Type'!$D$22:$F$22,0))=\"Yes\",1,0)*\n(AB$10*OFFSET('Efficiency Distributions'!$D$10,MATCH($C93,'Efficiency Distributions'!$C$9:$C$87,0)+RIGHT($E101),0)\n+AB$11*OFFSET('Efficiency Distributions'!$E$10,MATCH($C93,'Efficiency Distributions'!$C$9:$C$87,0)+RIGHT($E101),0))\n/SUM(AB$10:AB$11)","v":0},{"$f":"IF(INDEX(PC_MAPPING,RIGHT($C93,1),MATCH($E$2,'Data by Building Type'!$D$22:$F$22,0))=\"Yes\",1,0)*\n(AC$10*OFFSET('Efficiency Distributions'!$D$10,MATCH($C93,'Efficiency Distributions'!$C$9:$C$87,0)+RIGHT($E101),0)\n+AC$11*OFFSET('Efficiency Distributions'!$E$10,MATCH($C93,'Efficiency Distributions'!$C$9:$C$87,0)+RIGHT($E101),0))\n/SUM(AC$10:AC$11)","v":0},{"$f":"IF(INDEX(PC_MAPPING,RIGHT($C93,1),MATCH($E$2,'Data by Building Type'!$D$22:$F$22,0))=\"Yes\",1,0)*\n(AD$10*OFFSET('Efficiency Distributions'!$D$10,MATCH($C93,'Efficiency Distributions'!$C$9:$C$87,0)+RIGHT($E101),0)\n+AD$11*OFFSET('Efficiency Distributions'!$E$10,MATCH($C93,'Efficiency Distributions'!$C$9:$C$87,0)+RIGHT($E101),0))\n/SUM(AD$10:AD$11)","v":0},{"$f":"IF(INDEX(PC_MAPPING,RIGHT($C93,1),MATCH($E$2,'Data by Building Type'!$D$22:$F$22,0))=\"Yes\",1,0)*\n(AE$10*OFFSET('Efficiency Distributions'!$D$10,MATCH($C93,'Efficiency Distributions'!$C$9:$C$87,0)+RIGHT($E101),0)\n+AE$11*OFFSET('Efficiency Distributions'!$E$10,MATCH($C93,'Efficiency Distributions'!$C$9:$C$87,0)+RIGHT($E101),0))\n/SUM(AE$10:AE$11)","v":0},{"$f":"IF(INDEX(PC_MAPPING,RIGHT($C93,1),MATCH($E$2,'Data by Building Type'!$D$22:$F$22,0))=\"Yes\",1,0)*\n(AF$10*OFFSET('Efficiency Distributions'!$D$10,MATCH($C93,'Efficiency Distributions'!$C$9:$C$87,0)+RIGHT($E101),0)\n+AF$11*OFFSET('Efficiency Distributions'!$E$10,MATCH($C93,'Efficiency Distributions'!$C$9:$C$87,0)+RIGHT($E101),0))\n/SUM(AF$10:AF$11)","v":0},{"$f":"IF(INDEX(PC_MAPPING,RIGHT($C93,1),MATCH($E$2,'Data by Building Type'!$D$22:$F$22,0))=\"Yes\",1,0)*\n(AG$10*OFFSET('Efficiency Distributions'!$D$10,MATCH($C93,'Efficiency Distributions'!$C$9:$C$87,0)+RIGHT($E101),0)\n+AG$11*OFFSET('Efficiency Distributions'!$E$10,MATCH($C93,'Efficiency Distributions'!$C$9:$C$87,0)+RIGHT($E101),0))\n/SUM(AG$10:AG$11)","v":0},{"$f":"IF(INDEX(PC_MAPPING,RIGHT($C93,1),MATCH($E$2,'Data by Building Type'!$D$22:$F$22,0))=\"Yes\",1,0)*\n(AH$10*OFFSET('Efficiency Distributions'!$D$10,MATCH($C93,'Efficiency Distributions'!$C$9:$C$87,0)+RIGHT($E101),0)\n+AH$11*OFFSET('Efficiency Distributions'!$E$10,MATCH($C93,'Efficiency Distributions'!$C$9:$C$87,0)+RIGHT($E101),0))\n/SUM(AH$10:AH$11)","v":0},{"$f":"IF(INDEX(PC_MAPPING,RIGHT($C93,1),MATCH($E$2,'Data by Building Type'!$D$22:$F$22,0))=\"Yes\",1,0)*\n(AI$10*OFFSET('Efficiency Distributions'!$D$10,MATCH($C93,'Efficiency Distributions'!$C$9:$C$87,0)+RIGHT($E101),0)\n+AI$11*OFFSET('Efficiency Distributions'!$E$10,MATCH($C93,'Efficiency Distributions'!$C$9:$C$87,0)+RIGHT($E101),0))\n/SUM(AI$10:AI$11)","v":0},{"$f":"IF(INDEX(PC_MAPPING,RIGHT($C93,1),MATCH($E$2,'Data by Building Type'!$D$22:$F$22,0))=\"Yes\",1,0)*\n(AJ$10*OFFSET('Efficiency Distributions'!$D$10,MATCH($C93,'Efficiency Distributions'!$C$9:$C$87,0)+RIGHT($E101),0)\n+AJ$11*OFFSET('Efficiency Distributions'!$E$10,MATCH($C93,'Efficiency Distributions'!$C$9:$C$87,0)+RIGHT($E101),0))\n/SUM(AJ$10:AJ$11)","v":0},{"$f":"IF(INDEX(PC_MAPPING,RIGHT($C93,1),MATCH($E$2,'Data by Building Type'!$D$22:$F$22,0))=\"Yes\",1,0)*\n(AK$10*OFFSET('Efficiency Distributions'!$D$10,MATCH($C93,'Efficiency Distributions'!$C$9:$C$87,0)+RIGHT($E101),0)\n+AK$11*OFFSET('Efficiency Distributions'!$E$10,MATCH($C93,'Efficiency Distributions'!$C$9:$C$87,0)+RIGHT($E101),0))\n/SUM(AK$10:AK$11)","v":0},{"$f":"IF(INDEX(PC_MAPPING,RIGHT($C93,1),MATCH($E$2,'Data by Building Type'!$D$22:$F$22,0))=\"Yes\",1,0)*\n(AL$10*OFFSET('Efficiency Distributions'!$D$10,MATCH($C93,'Efficiency Distributions'!$C$9:$C$87,0)+RIGHT($E101),0)\n+AL$11*OFFSET('Efficiency Distributions'!$E$10,MATCH($C93,'Efficiency Distributions'!$C$9:$C$87,0)+RIGHT($E101),0))\n/SUM(AL$10:AL$11)","v":0},{"$f":"IF(INDEX(PC_MAPPING,RIGHT($C93,1),MATCH($E$2,'Data by Building Type'!$D$22:$F$22,0))=\"Yes\",1,0)*\n(AM$10*OFFSET('Efficiency Distributions'!$D$10,MATCH($C93,'Efficiency Distributions'!$C$9:$C$87,0)+RIGHT($E101),0)\n+AM$11*OFFSET('Efficiency Distributions'!$E$10,MATCH($C93,'Efficiency Distributions'!$C$9:$C$87,0)+RIGHT($E101),0))\n/SUM(AM$10:AM$11)","v":0},{"$f":"IF(INDEX(PC_MAPPING,RIGHT($C93,1),MATCH($E$2,'Data by Building Type'!$D$22:$F$22,0))=\"Yes\",1,0)*\n(AN$10*OFFSET('Efficiency Distributions'!$D$10,MATCH($C93,'Efficiency Distributions'!$C$9:$C$87,0)+RIGHT($E101),0)\n+AN$11*OFFSET('Efficiency Distributions'!$E$10,MATCH($C93,'Efficiency Distributions'!$C$9:$C$87,0)+RIGHT($E101),0))\n/SUM(AN$10:AN$11)","v":0},{"$f":"IF(INDEX(PC_MAPPING,RIGHT($C93,1),MATCH($E$2,'Data by Building Type'!$D$22:$F$22,0))=\"Yes\",1,0)*\n(AO$10*OFFSET('Efficiency Distributions'!$D$10,MATCH($C93,'Efficiency Distributions'!$C$9:$C$87,0)+RIGHT($E101),0)\n+AO$11*OFFSET('Efficiency Distributions'!$E$10,MATCH($C93,'Efficiency Distributions'!$C$9:$C$87,0)+RIGHT($E101),0))\n/SUM(AO$10:AO$11)","v":0},{"$f":"IF(INDEX(PC_MAPPING,RIGHT($C93,1),MATCH($E$2,'Data by Building Type'!$D$22:$F$22,0))=\"Yes\",1,0)*\n(AP$10*OFFSET('Efficiency Distributions'!$D$10,MATCH($C93,'Efficiency Distributions'!$C$9:$C$87,0)+RIGHT($E101),0)\n+AP$11*OFFSET('Efficiency Distributions'!$E$10,MATCH($C93,'Efficiency Distributions'!$C$9:$C$87,0)+RIGHT($E101),0))\n/SUM(AP$10:AP$11)","v":0},{"$f":"IF(INDEX(PC_MAPPING,RIGHT($C93,1),MATCH($E$2,'Data by Building Type'!$D$22:$F$22,0))=\"Yes\",1,0)*\n(AQ$10*OFFSET('Efficiency Distributions'!$D$10,MATCH($C93,'Efficiency Distributions'!$C$9:$C$87,0)+RIGHT($E101),0)\n+AQ$11*OFFSET('Efficiency Distributions'!$E$10,MATCH($C93,'Efficiency Distributions'!$C$9:$C$87,0)+RIGHT($E101),0))\n/SUM(AQ$10:AQ$11)","v":0},{"$f":"IF(INDEX(PC_MAPPING,RIGHT($C93,1),MATCH($E$2,'Data by Building Type'!$D$22:$F$22,0))=\"Yes\",1,0)*\n(AR$10*OFFSET('Efficiency Distributions'!$D$10,MATCH($C93,'Efficiency Distributions'!$C$9:$C$87,0)+RIGHT($E101),0)\n+AR$11*OFFSET('Efficiency Distributions'!$E$10,MATCH($C93,'Efficiency Distributions'!$C$9:$C$87,0)+RIGHT($E101),0))\n/SUM(AR$10:AR$11)","v":0},{"$f":"IF(INDEX(PC_MAPPING,RIGHT($C93,1),MATCH($E$2,'Data by Building Type'!$D$22:$F$22,0))=\"Yes\",1,0)*\n(AS$10*OFFSET('Efficiency Distributions'!$D$10,MATCH($C93,'Efficiency Distributions'!$C$9:$C$87,0)+RIGHT($E101),0)\n+AS$11*OFFSET('Efficiency Distributions'!$E$10,MATCH($C93,'Efficiency Distributions'!$C$9:$C$87,0)+RIGHT($E101),0))\n/SUM(AS$10:AS$11)","v":0},{"$f":"IF(INDEX(PC_MAPPING,RIGHT($C93,1),MATCH($E$2,'Data by Building Type'!$D$22:$F$22,0))=\"Yes\",1,0)*\n(AT$10*OFFSET('Efficiency Distributions'!$D$10,MATCH($C93,'Efficiency Distributions'!$C$9:$C$87,0)+RIGHT($E101),0)\n+AT$11*OFFSET('Efficiency Distributions'!$E$10,MATCH($C93,'Efficiency Distributions'!$C$9:$C$87,0)+RIGHT($E101),0))\n/SUM(AT$10:AT$11)","v":0},{"$f":"IF(INDEX(PC_MAPPING,RIGHT($C93,1),MATCH($E$2,'Data by Building Type'!$D$22:$F$22,0))=\"Yes\",1,0)*\n(AU$10*OFFSET('Efficiency Distributions'!$D$10,MATCH($C93,'Efficiency Distributions'!$C$9:$C$87,0)+RIGHT($E101),0)\n+AU$11*OFFSET('Efficiency Distributions'!$E$10,MATCH($C93,'Efficiency Distributions'!$C$9:$C$87,0)+RIGHT($E101),0))\n/SUM(AU$10:AU$11)","v":0},{"$f":"IF(INDEX(PC_MAPPING,RIGHT($C93,1),MATCH($E$2,'Data by Building Type'!$D$22:$F$22,0))=\"Yes\",1,0)*\n(AV$10*OFFSET('Efficiency Distributions'!$D$10,MATCH($C93,'Efficiency Distributions'!$C$9:$C$87,0)+RIGHT($E101),0)\n+AV$11*OFFSET('Efficiency Distributions'!$E$10,MATCH($C93,'Efficiency Distributions'!$C$9:$C$87,0)+RIGHT($E101),0))\n/SUM(AV$10:AV$11)","v":0},{"$f":"IF(INDEX(PC_MAPPING,RIGHT($C93,1),MATCH($E$2,'Data by Building Type'!$D$22:$F$22,0))=\"Yes\",1,0)*\n(AW$10*OFFSET('Efficiency Distributions'!$D$10,MATCH($C93,'Efficiency Distributions'!$C$9:$C$87,0)+RIGHT($E101),0)\n+AW$11*OFFSET('Efficiency Distributions'!$E$10,MATCH($C93,'Efficiency Distributions'!$C$9:$C$87,0)+RIGHT($E101),0))\n/SUM(AW$10:AW$11)","v":0},{"$f":"IF(INDEX(PC_MAPPING,RIGHT($C93,1),MATCH($E$2,'Data by Building Type'!$D$22:$F$22,0))=\"Yes\",1,0)*\n(AX$10*OFFSET('Efficiency Distributions'!$D$10,MATCH($C93,'Efficiency Distributions'!$C$9:$C$87,0)+RIGHT($E101),0)\n+AX$11*OFFSET('Efficiency Distributions'!$E$10,MATCH($C93,'Efficiency Distributions'!$C$9:$C$87,0)+RIGHT($E101),0))\n/SUM(AX$10:AX$11)","v":0},{"$f":"IF(INDEX(PC_MAPPING,RIGHT($C93,1),MATCH($E$2,'Data by Building Type'!$D$22:$F$22,0))=\"Yes\",1,0)*\n(AY$10*OFFSET('Efficiency Distributions'!$D$10,MATCH($C93,'Efficiency Distributions'!$C$9:$C$87,0)+RIGHT($E101),0)\n+AY$11*OFFSET('Efficiency Distributions'!$E$10,MATCH($C93,'Efficiency Distributions'!$C$9:$C$87,0)+RIGHT($E101),0))\n/SUM(AY$10:AY$11)","v":0},{"$f":"IF(INDEX(PC_MAPPING,RIGHT($C93,1),MATCH($E$2,'Data by Building Type'!$D$22:$F$22,0))=\"Yes\",1,0)*\n(AZ$10*OFFSET('Efficiency Distributions'!$D$10,MATCH($C93,'Efficiency Distributions'!$C$9:$C$87,0)+RIGHT($E101),0)\n+AZ$11*OFFSET('Efficiency Distributions'!$E$10,MATCH($C93,'Efficiency Distributions'!$C$9:$C$87,0)+RIGHT($E101),0))\n/SUM(AZ$10:AZ$11)","v":0},{"$f":"IF(INDEX(PC_MAPPING,RIGHT($C93,1),MATCH($E$2,'Data by Building Type'!$D$22:$F$22,0))=\"Yes\",1,0)*\n(BA$10*OFFSET('Efficiency Distributions'!$D$10,MATCH($C93,'Efficiency Distributions'!$C$9:$C$87,0)+RIGHT($E101),0)\n+BA$11*OFFSET('Efficiency Distributions'!$E$10,MATCH($C93,'Efficiency Distributions'!$C$9:$C$87,0)+RIGHT($E101),0))\n/SUM(BA$10:BA$11)","v":0},{"$f":"IF(INDEX(PC_MAPPING,RIGHT($C93,1),MATCH($E$2,'Data by Building Type'!$D$22:$F$22,0))=\"Yes\",1,0)*\n(BB$10*OFFSET('Efficiency Distributions'!$D$10,MATCH($C93,'Efficiency Distributions'!$C$9:$C$87,0)+RIGHT($E101),0)\n+BB$11*OFFSET('Efficiency Distributions'!$E$10,MATCH($C93,'Efficiency Distributions'!$C$9:$C$87,0)+RIGHT($E101),0))\n/SUM(BB$10:BB$11)","v":0},{"$f":"IF(INDEX(PC_MAPPING,RIGHT($C93,1),MATCH($E$2,'Data by Building Type'!$D$22:$F$22,0))=\"Yes\",1,0)*\n(BC$10*OFFSET('Efficiency Distributions'!$D$10,MATCH($C93,'Efficiency Distributions'!$C$9:$C$87,0)+RIGHT($E101),0)\n+BC$11*OFFSET('Efficiency Distributions'!$E$10,MATCH($C93,'Efficiency Distributions'!$C$9:$C$87,0)+RIGHT($E101),0))\n/SUM(BC$10:BC$11)","v":0},{"$f":"IF(INDEX(PC_MAPPING,RIGHT($C93,1),MATCH($E$2,'Data by Building Type'!$D$22:$F$22,0))=\"Yes\",1,0)*\n(BD$10*OFFSET('Efficiency Distributions'!$D$10,MATCH($C93,'Efficiency Distributions'!$C$9:$C$87,0)+RIGHT($E101),0)\n+BD$11*OFFSET('Efficiency Distributions'!$E$10,MATCH($C93,'Efficiency Distributions'!$C$9:$C$87,0)+RIGHT($E101),0))\n/SUM(BD$10:BD$11)","v":0},{"$f":"IF(INDEX(PC_MAPPING,RIGHT($C93,1),MATCH($E$2,'Data by Building Type'!$D$22:$F$22,0))=\"Yes\",1,0)*\n(BE$10*OFFSET('Efficiency Distributions'!$D$10,MATCH($C93,'Efficiency Distributions'!$C$9:$C$87,0)+RIGHT($E101),0)\n+BE$11*OFFSET('Efficiency Distributions'!$E$10,MATCH($C93,'Efficiency Distributions'!$C$9:$C$87,0)+RIGHT($E101),0))\n/SUM(BE$10:BE$11)","v":0},{"$f":"IF(INDEX(PC_MAPPING,RIGHT($C93,1),MATCH($E$2,'Data by Building Type'!$D$22:$F$22,0))=\"Yes\",1,0)*\n(BF$10*OFFSET('Efficiency Distributions'!$D$10,MATCH($C93,'Efficiency Distributions'!$C$9:$C$87,0)+RIGHT($E101),0)\n+BF$11*OFFSET('Efficiency Distributions'!$E$10,MATCH($C93,'Efficiency Distributions'!$C$9:$C$87,0)+RIGHT($E101),0))\n/SUM(BF$10:BF$11)","v":0},{"$f":"IF(INDEX(PC_MAPPING,RIGHT($C93,1),MATCH($E$2,'Data by Building Type'!$D$22:$F$22,0))=\"Yes\",1,0)*\n(BG$10*OFFSET('Efficiency Distributions'!$D$10,MATCH($C93,'Efficiency Distributions'!$C$9:$C$87,0)+RIGHT($E101),0)\n+BG$11*OFFSET('Efficiency Distributions'!$E$10,MATCH($C93,'Efficiency Distributions'!$C$9:$C$87,0)+RIGHT($E101),0))\n/SUM(BG$10:BG$11)","v":0}]
[null,null,null,null,"EL5",{"$f":"IF(INDEX(PC_MAPPING,RIGHT($C93,1),MATCH($E$2,'Data by Building Type'!$D$22:$F$22,0))=\"Yes\",1,0)*\n(F$10*OFFSET('Efficiency Distributions'!$D$10,MATCH($C93,'Efficiency Distributions'!$C$9:$C$87,0)+RIGHT($E102),0)\n+F$11*OFFSET('Efficiency Distributions'!$E$10,MATCH($C93,'Efficiency Distributions'!$C$9:$C$87,0)+RIGHT($E102),0))\n/SUM(F$10:F$11)","v":0.23549197122724538},{"$f":"IF(INDEX(PC_MAPPING,RIGHT($C93,1),MATCH($E$2,'Data by Building Type'!$D$22:$F$22,0))=\"Yes\",1,0)*\n(G$10*OFFSET('Efficiency Distributions'!$D$10,MATCH($C93,'Efficiency Distributions'!$C$9:$C$87,0)+RIGHT($E102),0)\n+G$11*OFFSET('Efficiency Distributions'!$E$10,MATCH($C93,'Efficiency Distributions'!$C$9:$C$87,0)+RIGHT($E102),0))\n/SUM(G$10:G$11)","v":0.2503970995166469},{"$f":"IF(INDEX(PC_MAPPING,RIGHT($C93,1),MATCH($E$2,'Data by Building Type'!$D$22:$F$22,0))=\"Yes\",1,0)*\n(H$10*OFFSET('Efficiency Distributions'!$D$10,MATCH($C93,'Efficiency Distributions'!$C$9:$C$87,0)+RIGHT($E102),0)\n+H$11*OFFSET('Efficiency Distributions'!$E$10,MATCH($C93,'Efficiency Distributions'!$C$9:$C$87,0)+RIGHT($E102),0))\n/SUM(H$10:H$11)","v":0.24344867632516634},{"$f":"IF(INDEX(PC_MAPPING,RIGHT($C93,1),MATCH($E$2,'Data by Building Type'!$D$22:$F$22,0))=\"Yes\",1,0)*\n(I$10*OFFSET('Efficiency Distributions'!$D$10,MATCH($C93,'Efficiency Distributions'!$C$9:$C$87,0)+RIGHT($E102),0)\n+I$11*OFFSET('Efficiency Distributions'!$E$10,MATCH($C93,'Efficiency Distributions'!$C$9:$C$87,0)+RIGHT($E102),0))\n/SUM(I$10:I$11)","v":0.22328295591101813},{"$f":"IF(INDEX(PC_MAPPING,RIGHT($C93,1),MATCH($E$2,'Data by Building Type'!$D$22:$F$22,0))=\"Yes\",1,0)*\n(J$10*OFFSET('Efficiency Distributions'!$D$10,MATCH($C93,'Efficiency Distributions'!$C$9:$C$87,0)+RIGHT($E102),0)\n+J$11*OFFSET('Efficiency Distributions'!$E$10,MATCH($C93,'Efficiency Distributions'!$C$9:$C$87,0)+RIGHT($E102),0))\n/SUM(J$10:J$11)","v":0.20020845898439982},{"$f":"IF(INDEX(PC_MAPPING,RIGHT($C93,1),MATCH($E$2,'Data by Building Type'!$D$22:$F$22,0))=\"Yes\",1,0)*\n(K$10*OFFSET('Efficiency Distributions'!$D$10,MATCH($C93,'Efficiency Distributions'!$C$9:$C$87,0)+RIGHT($E102),0)\n+K$11*OFFSET('Efficiency Distributions'!$E$10,MATCH($C93,'Efficiency Distributions'!$C$9:$C$87,0)+RIGHT($E102),0))\n/SUM(K$10:K$11)","v":0.2067107062705337},{"$f":"IF(INDEX(PC_MAPPING,RIGHT($C93,1),MATCH($E$2,'Data by Building Type'!$D$22:$F$22,0))=\"Yes\",1,0)*\n(L$10*OFFSET('Efficiency Distributions'!$D$10,MATCH($C93,'Efficiency Distributions'!$C$9:$C$87,0)+RIGHT($E102),0)\n+L$11*OFFSET('Efficiency Distributions'!$E$10,MATCH($C93,'Efficiency Distributions'!$C$9:$C$87,0)+RIGHT($E102),0))\n/SUM(L$10:L$11)","v":0.20067961211466284},{"$f":"IF(INDEX(PC_MAPPING,RIGHT($C93,1),MATCH($E$2,'Data by Building Type'!$D$22:$F$22,0))=\"Yes\",1,0)*\n(M$10*OFFSET('Efficiency Distributions'!$D$10,MATCH($C93,'Efficiency Distributions'!$C$9:$C$87,0)+RIGHT($E102),0)\n+M$11*OFFSET('Efficiency Distributions'!$E$10,MATCH($C93,'Efficiency Distributions'!$C$9:$C$87,0)+RIGHT($E102),0))\n/SUM(M$10:M$11)","v":0.18857121549584044},{"$f":"IF(INDEX(PC_MAPPING,RIGHT($C93,1),MATCH($E$2,'Data by Building Type'!$D$22:$F$22,0))=\"Yes\",1,0)*\n(N$10*OFFSET('Efficiency Distributions'!$D$10,MATCH($C93,'Efficiency Distributions'!$C$9:$C$87,0)+RIGHT($E102),0)\n+N$11*OFFSET('Efficiency Distributions'!$E$10,MATCH($C93,'Efficiency Distributions'!$C$9:$C$87,0)+RIGHT($E102),0))\n/SUM(N$10:N$11)","v":0.17866273238253597},{"$f":"IF(INDEX(PC_MAPPING,RIGHT($C93,1),MATCH($E$2,'Data by Building Type'!$D$22:$F$22,0))=\"Yes\",1,0)*\n(O$10*OFFSET('Efficiency Distributions'!$D$10,MATCH($C93,'Efficiency Distributions'!$C$9:$C$87,0)+RIGHT($E102),0)\n+O$11*OFFSET('Efficiency Distributions'!$E$10,MATCH($C93,'Efficiency Distributions'!$C$9:$C$87,0)+RIGHT($E102),0))\n/SUM(O$10:O$11)","v":0.18791858571930725},{"$f":"IF(INDEX(PC_MAPPING,RIGHT($C93,1),MATCH($E$2,'Data by Building Type'!$D$22:$F$22,0))=\"Yes\",1,0)*\n(P$10*OFFSET('Efficiency Distributions'!$D$10,MATCH($C93,'Efficiency Distributions'!$C$9:$C$87,0)+RIGHT($E102),0)\n+P$11*OFFSET('Efficiency Distributions'!$E$10,MATCH($C93,'Efficiency Distributions'!$C$9:$C$87,0)+RIGHT($E102),0))\n/SUM(P$10:P$11)","v":0.22865532866004537},{"$f":"IF(INDEX(PC_MAPPING,RIGHT($C93,1),MATCH($E$2,'Data by Building Type'!$D$22:$F$22,0))=\"Yes\",1,0)*\n(Q$10*OFFSET('Efficiency Distributions'!$D$10,MATCH($C93,'Efficiency Distributions'!$C$9:$C$87,0)+RIGHT($E102),0)\n+Q$11*OFFSET('Efficiency Distributions'!$E$10,MATCH($C93,'Efficiency Distributions'!$C$9:$C$87,0)+RIGHT($E102),0))\n/SUM(Q$10:Q$11)","v":0.2274367960048857},{"$f":"IF(INDEX(PC_MAPPING,RIGHT($C93,1),MATCH($E$2,'Data by Building Type'!$D$22:$F$22,0))=\"Yes\",1,0)*\n(R$10*OFFSET('Efficiency Distributions'!$D$10,MATCH($C93,'Efficiency Distributions'!$C$9:$C$87,0)+RIGHT($E102),0)\n+R$11*OFFSET('Efficiency Distributions'!$E$10,MATCH($C93,'Efficiency Distributions'!$C$9:$C$87,0)+RIGHT($E102),0))\n/SUM(R$10:R$11)","v":0.30343500709900678},{"$f":"IF(INDEX(PC_MAPPING,RIGHT($C93,1),MATCH($E$2,'Data by Building Type'!$D$22:$F$22,0))=\"Yes\",1,0)*\n(S$10*OFFSET('Efficiency Distributions'!$D$10,MATCH($C93,'Efficiency Distributions'!$C$9:$C$87,0)+RIGHT($E102),0)\n+S$11*OFFSET('Efficiency Distributions'!$E$10,MATCH($C93,'Efficiency Distributions'!$C$9:$C$87,0)+RIGHT($E102),0))\n/SUM(S$10:S$11)","v":0.30343500709900678},{"$f":"IF(INDEX(PC_MAPPING,RIGHT($C93,1),MATCH($E$2,'Data by Building Type'!$D$22:$F$22,0))=\"Yes\",1,0)*\n(T$10*OFFSET('Efficiency Distributions'!$D$10,MATCH($C93,'Efficiency Distributions'!$C$9:$C$87,0)+RIGHT($E102),0)\n+T$11*OFFSET('Efficiency Distributions'!$E$10,MATCH($C93,'Efficiency Distributions'!$C$9:$C$87,0)+RIGHT($E102),0))\n/SUM(T$10:T$11)","v":0.30343500709900678},{"$f":"IF(INDEX(PC_MAPPING,RIGHT($C93,1),MATCH($E$2,'Data by Building Type'!$D$22:$F$22,0))=\"Yes\",1,0)*\n(U$10*OFFSET('Efficiency Distributions'!$D$10,MATCH($C93,'Efficiency Distributions'!$C$9:$C$87,0)+RIGHT($E102),0)\n+U$11*OFFSET('Efficiency Distributions'!$E$10,MATCH($C93,'Efficiency Distributions'!$C$9:$C$87,0)+RIGHT($E102),0))\n/SUM(U$10:U$11)","v":0.30343500709900678},{"$f":"IF(INDEX(PC_MAPPING,RIGHT($C93,1),MATCH($E$2,'Data by Building Type'!$D$22:$F$22,0))=\"Yes\",1,0)*\n(V$10*OFFSET('Efficiency Distributions'!$D$10,MATCH($C93,'Efficiency Distributions'!$C$9:$C$87,0)+RIGHT($E102),0)\n+V$11*OFFSET('Efficiency Distributions'!$E$10,MATCH($C93,'Efficiency Distributions'!$C$9:$C$87,0)+RIGHT($E102),0))\n/SUM(V$10:V$11)","v":0.30343500709900678},{"$f":"IF(INDEX(PC_MAPPING,RIGHT($C93,1),MATCH($E$2,'Data by Building Type'!$D$22:$F$22,0))=\"Yes\",1,0)*\n(W$10*OFFSET('Efficiency Distributions'!$D$10,MATCH($C93,'Efficiency Distributions'!$C$9:$C$87,0)+RIGHT($E102),0)\n+W$11*OFFSET('Efficiency Distributions'!$E$10,MATCH($C93,'Efficiency Distributions'!$C$9:$C$87,0)+RIGHT($E102),0))\n/SUM(W$10:W$11)","v":0.30343500709900678},{"$f":"IF(INDEX(PC_MAPPING,RIGHT($C93,1),MATCH($E$2,'Data by Building Type'!$D$22:$F$22,0))=\"Yes\",1,0)*\n(X$10*OFFSET('Efficiency Distributions'!$D$10,MATCH($C93,'Efficiency Distributions'!$C$9:$C$87,0)+RIGHT($E102),0)\n+X$11*OFFSET('Efficiency Distributions'!$E$10,MATCH($C93,'Efficiency Distributions'!$C$9:$C$87,0)+RIGHT($E102),0))\n/SUM(X$10:X$11)","v":0.30343500709900678},{"$f":"IF(INDEX(PC_MAPPING,RIGHT($C93,1),MATCH($E$2,'Data by Building Type'!$D$22:$F$22,0))=\"Yes\",1,0)*\n(Y$10*OFFSET('Efficiency Distributions'!$D$10,MATCH($C93,'Efficiency Distributions'!$C$9:$C$87,0)+RIGHT($E102),0)\n+Y$11*OFFSET('Efficiency Distributions'!$E$10,MATCH($C93,'Efficiency Distributions'!$C$9:$C$87,0)+RIGHT($E102),0))\n/SUM(Y$10:Y$11)","v":0.30343500709900678},{"$f":"IF(INDEX(PC_MAPPING,RIGHT($C93,1),MATCH($E$2,'Data by Building Type'!$D$22:$F$22,0))=\"Yes\",1,0)*\n(Z$10*OFFSET('Efficiency Distributions'!$D$10,MATCH($C93,'Efficiency Distributions'!$C$9:$C$87,0)+RIGHT($E102),0)\n+Z$11*OFFSET('Efficiency Distributions'!$E$10,MATCH($C93,'Efficiency Distributions'!$C$9:$C$87,0)+RIGHT($E102),0))\n/SUM(Z$10:Z$11)","v":0.30343500709900678},{"$f":"IF(INDEX(PC_MAPPING,RIGHT($C93,1),MATCH($E$2,'Data by Building Type'!$D$22:$F$22,0))=\"Yes\",1,0)*\n(AA$10*OFFSET('Efficiency Distributions'!$D$10,MATCH($C93,'Efficiency Distributions'!$C$9:$C$87,0)+RIGHT($E102),0)\n+AA$11*OFFSET('Efficiency Distributions'!$E$10,MATCH($C93,'Efficiency Distributions'!$C$9:$C$87,0)+RIGHT($E102),0))\n/SUM(AA$10:AA$11)","v":0.30343500709900678},{"$f":"IF(INDEX(PC_MAPPING,RIGHT($C93,1),MATCH($E$2,'Data by Building Type'!$D$22:$F$22,0))=\"Yes\",1,0)*\n(AB$10*OFFSET('Efficiency Distributions'!$D$10,MATCH($C93,'Efficiency Distributions'!$C$9:$C$87,0)+RIGHT($E102),0)\n+AB$11*OFFSET('Efficiency Distributions'!$E$10,MATCH($C93,'Efficiency Distributions'!$C$9:$C$87,0)+RIGHT($E102),0))\n/SUM(AB$10:AB$11)","v":0.30343500709900678},{"$f":"IF(INDEX(PC_MAPPING,RIGHT($C93,1),MATCH($E$2,'Data by Building Type'!$D$22:$F$22,0))=\"Yes\",1,0)*\n(AC$10*OFFSET('Efficiency Distributions'!$D$10,MATCH($C93,'Efficiency Distributions'!$C$9:$C$87,0)+RIGHT($E102),0)\n+AC$11*OFFSET('Efficiency Distributions'!$E$10,MATCH($C93,'Efficiency Distributions'!$C$9:$C$87,0)+RIGHT($E102),0))\n/SUM(AC$10:AC$11)","v":0.30343500709900678},{"$f":"IF(INDEX(PC_MAPPING,RIGHT($C93,1),MATCH($E$2,'Data by Building Type'!$D$22:$F$22,0))=\"Yes\",1,0)*\n(AD$10*OFFSET('Efficiency Distributions'!$D$10,MATCH($C93,'Efficiency Distributions'!$C$9:$C$87,0)+RIGHT($E102),0)\n+AD$11*OFFSET('Efficiency Distributions'!$E$10,MATCH($C93,'Efficiency Distributions'!$C$9:$C$87,0)+RIGHT($E102),0))\n/SUM(AD$10:AD$11)","v":0.30343500709900678},{"$f":"IF(INDEX(PC_MAPPING,RIGHT($C93,1),MATCH($E$2,'Data by Building Type'!$D$22:$F$22,0))=\"Yes\",1,0)*\n(AE$10*OFFSET('Efficiency Distributions'!$D$10,MATCH($C93,'Efficiency Distributions'!$C$9:$C$87,0)+RIGHT($E102),0)\n+AE$11*OFFSET('Efficiency Distributions'!$E$10,MATCH($C93,'Efficiency Distributions'!$C$9:$C$87,0)+RIGHT($E102),0))\n/SUM(AE$10:AE$11)","v":0.30343500709900678},{"$f":"IF(INDEX(PC_MAPPING,RIGHT($C93,1),MATCH($E$2,'Data by Building Type'!$D$22:$F$22,0))=\"Yes\",1,0)*\n(AF$10*OFFSET('Efficiency Distributions'!$D$10,MATCH($C93,'Efficiency Distributions'!$C$9:$C$87,0)+RIGHT($E102),0)\n+AF$11*OFFSET('Efficiency Distributions'!$E$10,MATCH($C93,'Efficiency Distributions'!$C$9:$C$87,0)+RIGHT($E102),0))\n/SUM(AF$10:AF$11)","v":0.30343500709900678},{"$f":"IF(INDEX(PC_MAPPING,RIGHT($C93,1),MATCH($E$2,'Data by Building Type'!$D$22:$F$22,0))=\"Yes\",1,0)*\n(AG$10*OFFSET('Efficiency Distributions'!$D$10,MATCH($C93,'Efficiency Distributions'!$C$9:$C$87,0)+RIGHT($E102),0)\n+AG$11*OFFSET('Efficiency Distributions'!$E$10,MATCH($C93,'Efficiency Distributions'!$C$9:$C$87,0)+RIGHT($E102),0))\n/SUM(AG$10:AG$11)","v":0.30343500709900678},{"$f":"IF(INDEX(PC_MAPPING,RIGHT($C93,1),MATCH($E$2,'Data by Building Type'!$D$22:$F$22,0))=\"Yes\",1,0)*\n(AH$10*OFFSET('Efficiency Distributions'!$D$10,MATCH($C93,'Efficiency Distributions'!$C$9:$C$87,0)+RIGHT($E102),0)\n+AH$11*OFFSET('Efficiency Distributions'!$E$10,MATCH($C93,'Efficiency Distributions'!$C$9:$C$87,0)+RIGHT($E102),0))\n/SUM(AH$10:AH$11)","v":0.30343500709900673},{"$f":"IF(INDEX(PC_MAPPING,RIGHT($C93,1),MATCH($E$2,'Data by Building Type'!$D$22:$F$22,0))=\"Yes\",1,0)*\n(AI$10*OFFSET('Efficiency Distributions'!$D$10,MATCH($C93,'Efficiency Distributions'!$C$9:$C$87,0)+RIGHT($E102),0)\n+AI$11*OFFSET('Efficiency Distributions'!$E$10,MATCH($C93,'Efficiency Distributions'!$C$9:$C$87,0)+RIGHT($E102),0))\n/SUM(AI$10:AI$11)","v":0.30343500709900678},{"$f":"IF(INDEX(PC_MAPPING,RIGHT($C93,1),MATCH($E$2,'Data by Building Type'!$D$22:$F$22,0))=\"Yes\",1,0)*\n(AJ$10*OFFSET('Efficiency Distributions'!$D$10,MATCH($C93,'Efficiency Distributions'!$C$9:$C$87,0)+RIGHT($E102),0)\n+AJ$11*OFFSET('Efficiency Distributions'!$E$10,MATCH($C93,'Efficiency Distributions'!$C$9:$C$87,0)+RIGHT($E102),0))\n/SUM(AJ$10:AJ$11)","v":0.30343500709900678},{"$f":"IF(INDEX(PC_MAPPING,RIGHT($C93,1),MATCH($E$2,'Data by Building Type'!$D$22:$F$22,0))=\"Yes\",1,0)*\n(AK$10*OFFSET('Efficiency Distributions'!$D$10,MATCH($C93,'Efficiency Distributions'!$C$9:$C$87,0)+RIGHT($E102),0)\n+AK$11*OFFSET('Efficiency Distributions'!$E$10,MATCH($C93,'Efficiency Distributions'!$C$9:$C$87,0)+RIGHT($E102),0))\n/SUM(AK$10:AK$11)","v":0.27010291187432428},{"$f":"IF(INDEX(PC_MAPPING,RIGHT($C93,1),MATCH($E$2,'Data by Building Type'!$D$22:$F$22,0))=\"Yes\",1,0)*\n(AL$10*OFFSET('Efficiency Distributions'!$D$10,MATCH($C93,'Efficiency Distributions'!$C$9:$C$87,0)+RIGHT($E102),0)\n+AL$11*OFFSET('Efficiency Distributions'!$E$10,MATCH($C93,'Efficiency Distributions'!$C$9:$C$87,0)+RIGHT($E102),0))\n/SUM(AL$10:AL$11)","v":0.2687641713971865},{"$f":"IF(INDEX(PC_MAPPING,RIGHT($C93,1),MATCH($E$2,'Data by Building Type'!$D$22:$F$22,0))=\"Yes\",1,0)*\n(AM$10*OFFSET('Efficiency Distributions'!$D$10,MATCH($C93,'Efficiency Distributions'!$C$9:$C$87,0)+RIGHT($E102),0)\n+AM$11*OFFSET('Efficiency Distributions'!$E$10,MATCH($C93,'Efficiency Distributions'!$C$9:$C$87,0)+RIGHT($E102),0))\n/SUM(AM$10:AM$11)","v":0.23707641057886233},{"$f":"IF(INDEX(PC_MAPPING,RIGHT($C93,1),MATCH($E$2,'Data by Building Type'!$D$22:$F$22,0))=\"Yes\",1,0)*\n(AN$10*OFFSET('Efficiency Distributions'!$D$10,MATCH($C93,'Efficiency Distributions'!$C$9:$C$87,0)+RIGHT($E102),0)\n+AN$11*OFFSET('Efficiency Distributions'!$E$10,MATCH($C93,'Efficiency Distributions'!$C$9:$C$87,0)+RIGHT($E102),0))\n/SUM(AN$10:AN$11)","v":0.2386929705577111},{"$f":"IF(INDEX(PC_MAPPING,RIGHT($C93,1),MATCH($E$2,'Data by Building Type'!$D$22:$F$22,0))=\"Yes\",1,0)*\n(AO$10*OFFSET('Efficiency Distributions'!$D$10,MATCH($C93,'Efficiency Distributions'!$C$9:$C$87,0)+RIGHT($E102),0)\n+AO$11*OFFSET('Efficiency Distributions'!$E$10,MATCH($C93,'Efficiency Distributions'!$C$9:$C$87,0)+RIGHT($E102),0))\n/SUM(AO$10:AO$11)","v":0.23672333817339616},{"$f":"IF(INDEX(PC_MAPPING,RIGHT($C93,1),MATCH($E$2,'Data by Building Type'!$D$22:$F$22,0))=\"Yes\",1,0)*\n(AP$10*OFFSET('Efficiency Distributions'!$D$10,MATCH($C93,'Efficiency Distributions'!$C$9:$C$87,0)+RIGHT($E102),0)\n+AP$11*OFFSET('Efficiency Distributions'!$E$10,MATCH($C93,'Efficiency Distributions'!$C$9:$C$87,0)+RIGHT($E102),0))\n/SUM(AP$10:AP$11)","v":0.23268386331089944},{"$f":"IF(INDEX(PC_MAPPING,RIGHT($C93,1),MATCH($E$2,'Data by Building Type'!$D$22:$F$22,0))=\"Yes\",1,0)*\n(AQ$10*OFFSET('Efficiency Distributions'!$D$10,MATCH($C93,'Efficiency Distributions'!$C$9:$C$87,0)+RIGHT($E102),0)\n+AQ$11*OFFSET('Efficiency Distributions'!$E$10,MATCH($C93,'Efficiency Distributions'!$C$9:$C$87,0)+RIGHT($E102),0))\n/SUM(AQ$10:AQ$11)","v":0.22858045874038066},{"$f":"IF(INDEX(PC_MAPPING,RIGHT($C93,1),MATCH($E$2,'Data by Building Type'!$D$22:$F$22,0))=\"Yes\",1,0)*\n(AR$10*OFFSET('Efficiency Distributions'!$D$10,MATCH($C93,'Efficiency Distributions'!$C$9:$C$87,0)+RIGHT($E102),0)\n+AR$11*OFFSET('Efficiency Distributions'!$E$10,MATCH($C93,'Efficiency Distributions'!$C$9:$C$87,0)+RIGHT($E102),0))\n/SUM(AR$10:AR$11)","v":0.22943651574579779},{"$f":"IF(INDEX(PC_MAPPING,RIGHT($C93,1),MATCH($E$2,'Data by Building Type'!$D$22:$F$22,0))=\"Yes\",1,0)*\n(AS$10*OFFSET('Efficiency Distributions'!$D$10,MATCH($C93,'Efficiency Distributions'!$C$9:$C$87,0)+RIGHT($E102),0)\n+AS$11*OFFSET('Efficiency Distributions'!$E$10,MATCH($C93,'Efficiency Distributions'!$C$9:$C$87,0)+RIGHT($E102),0))\n/SUM(AS$10:AS$11)","v":0.2153239925746836},{"$f":"IF(INDEX(PC_MAPPING,RIGHT($C93,1),MATCH($E$2,'Data by Building Type'!$D$22:$F$22,0))=\"Yes\",1,0)*\n(AT$10*OFFSET('Efficiency Distributions'!$D$10,MATCH($C93,'Efficiency Distributions'!$C$9:$C$87,0)+RIGHT($E102),0)\n+AT$11*OFFSET('Efficiency Distributions'!$E$10,MATCH($C93,'Efficiency Distributions'!$C$9:$C$87,0)+RIGHT($E102),0))\n/SUM(AT$10:AT$11)","v":0.2004076437275277},{"$f":"IF(INDEX(PC_MAPPING,RIGHT($C93,1),MATCH($E$2,'Data by Building Type'!$D$22:$F$22,0))=\"Yes\",1,0)*\n(AU$10*OFFSET('Efficiency Distributions'!$D$10,MATCH($C93,'Efficiency Distributions'!$C$9:$C$87,0)+RIGHT($E102),0)\n+AU$11*OFFSET('Efficiency Distributions'!$E$10,MATCH($C93,'Efficiency Distributions'!$C$9:$C$87,0)+RIGHT($E102),0))\n/SUM(AU$10:AU$11)","v":0.19573253329985879},{"$f":"IF(INDEX(PC_MAPPING,RIGHT($C93,1),MATCH($E$2,'Data by Building Type'!$D$22:$F$22,0))=\"Yes\",1,0)*\n(AV$10*OFFSET('Efficiency Distributions'!$D$10,MATCH($C93,'Efficiency Distributions'!$C$9:$C$87,0)+RIGHT($E102),0)\n+AV$11*OFFSET('Efficiency Distributions'!$E$10,MATCH($C93,'Efficiency Distributions'!$C$9:$C$87,0)+RIGHT($E102),0))\n/SUM(AV$10:AV$11)","v":0.22908106833282682},{"$f":"IF(INDEX(PC_MAPPING,RIGHT($C93,1),MATCH($E$2,'Data by Building Type'!$D$22:$F$22,0))=\"Yes\",1,0)*\n(AW$10*OFFSET('Efficiency Distributions'!$D$10,MATCH($C93,'Efficiency Distributions'!$C$9:$C$87,0)+RIGHT($E102),0)\n+AW$11*OFFSET('Efficiency Distributions'!$E$10,MATCH($C93,'Efficiency Distributions'!$C$9:$C$87,0)+RIGHT($E102),0))\n/SUM(AW$10:AW$11)","v":0.21808815175461133},{"$f":"IF(INDEX(PC_MAPPING,RIGHT($C93,1),MATCH($E$2,'Data by Building Type'!$D$22:$F$22,0))=\"Yes\",1,0)*\n(AX$10*OFFSET('Efficiency Distributions'!$D$10,MATCH($C93,'Efficiency Distributions'!$C$9:$C$87,0)+RIGHT($E102),0)\n+AX$11*OFFSET('Efficiency Distributions'!$E$10,MATCH($C93,'Efficiency Distributions'!$C$9:$C$87,0)+RIGHT($E102),0))\n/SUM(AX$10:AX$11)","v":0.22409884130573418},{"$f":"IF(INDEX(PC_MAPPING,RIGHT($C93,1),MATCH($E$2,'Data by Building Type'!$D$22:$F$22,0))=\"Yes\",1,0)*\n(AY$10*OFFSET('Efficiency Distributions'!$D$10,MATCH($C93,'Efficiency Distributions'!$C$9:$C$87,0)+RIGHT($E102),0)\n+AY$11*OFFSET('Efficiency Distributions'!$E$10,MATCH($C93,'Efficiency Distributions'!$C$9:$C$87,0)+RIGHT($E102),0))\n/SUM(AY$10:AY$11)","v":0.23420602720005132},{"$f":"IF(INDEX(PC_MAPPING,RIGHT($C93,1),MATCH($E$2,'Data by Building Type'!$D$22:$F$22,0))=\"Yes\",1,0)*\n(AZ$10*OFFSET('Efficiency Distributions'!$D$10,MATCH($C93,'Efficiency Distributions'!$C$9:$C$87,0)+RIGHT($E102),0)\n+AZ$11*OFFSET('Efficiency Distributions'!$E$10,MATCH($C93,'Efficiency Distributions'!$C$9:$C$87,0)+RIGHT($E102),0))\n/SUM(AZ$10:AZ$11)","v":0.24838723635951493},{"$f":"IF(INDEX(PC_MAPPING,RIGHT($C93,1),MATCH($E$2,'Data by Building Type'!$D$22:$F$22,0))=\"Yes\",1,0)*\n(BA$10*OFFSET('Efficiency Distributions'!$D$10,MATCH($C93,'Efficiency Distributions'!$C$9:$C$87,0)+RIGHT($E102),0)\n+BA$11*OFFSET('Efficiency Distributions'!$E$10,MATCH($C93,'Efficiency Distributions'!$C$9:$C$87,0)+RIGHT($E102),0))\n/SUM(BA$10:BA$11)","v":0.24247460776029545},{"$f":"IF(INDEX(PC_MAPPING,RIGHT($C93,1),MATCH($E$2,'Data by Building Type'!$D$22:$F$22,0))=\"Yes\",1,0)*\n(BB$10*OFFSET('Efficiency Distributions'!$D$10,MATCH($C93,'Efficiency Distributions'!$C$9:$C$87,0)+RIGHT($E102),0)\n+BB$11*OFFSET('Efficiency Distributions'!$E$10,MATCH($C93,'Efficiency Distributions'!$C$9:$C$87,0)+RIGHT($E102),0))\n/SUM(BB$10:BB$11)","v":0.24012845485937556},{"$f":"IF(INDEX(PC_MAPPING,RIGHT($C93,1),MATCH($E$2,'Data by Building Type'!$D$22:$F$22,0))=\"Yes\",1,0)*\n(BC$10*OFFSET('Efficiency Distributions'!$D$10,MATCH($C93,'Efficiency Distributions'!$C$9:$C$87,0)+RIGHT($E102),0)\n+BC$11*OFFSET('Efficiency Distributions'!$E$10,MATCH($C93,'Efficiency Distributions'!$C$9:$C$87,0)+RIGHT($E102),0))\n/SUM(BC$10:BC$11)","v":0.24166482205989168},{"$f":"IF(INDEX(PC_MAPPING,RIGHT($C93,1),MATCH($E$2,'Data by Building Type'!$D$22:$F$22,0))=\"Yes\",1,0)*\n(BD$10*OFFSET('Efficiency Distributions'!$D$10,MATCH($C93,'Efficiency Distributions'!$C$9:$C$87,0)+RIGHT($E102),0)\n+BD$11*OFFSET('Efficiency Distributions'!$E$10,MATCH($C93,'Efficiency Distributions'!$C$9:$C$87,0)+RIGHT($E102),0))\n/SUM(BD$10:BD$11)","v":0.25134079300967105},{"$f":"IF(INDEX(PC_MAPPING,RIGHT($C93,1),MATCH($E$2,'Data by Building Type'!$D$22:$F$22,0))=\"Yes\",1,0)*\n(BE$10*OFFSET('Efficiency Distributions'!$D$10,MATCH($C93,'Efficiency Distributions'!$C$9:$C$87,0)+RIGHT($E102),0)\n+BE$11*OFFSET('Efficiency Distributions'!$E$10,MATCH($C93,'Efficiency Distributions'!$C$9:$C$87,0)+RIGHT($E102),0))\n/SUM(BE$10:BE$11)","v":0.2457784832225775},{"$f":"IF(INDEX(PC_MAPPING,RIGHT($C93,1),MATCH($E$2,'Data by Building Type'!$D$22:$F$22,0))=\"Yes\",1,0)*\n(BF$10*OFFSET('Efficiency Distributions'!$D$10,MATCH($C93,'Efficiency Distributions'!$C$9:$C$87,0)+RIGHT($E102),0)\n+BF$11*OFFSET('Efficiency Distributions'!$E$10,MATCH($C93,'Efficiency Distributions'!$C$9:$C$87,0)+RIGHT($E102),0))\n/SUM(BF$10:BF$11)","v":0.26380559280206839},{"$f":"IF(INDEX(PC_MAPPING,RIGHT($C93,1),MATCH($E$2,'Data by Building Type'!$D$22:$F$22,0))=\"Yes\",1,0)*\n(BG$10*OFFSET('Efficiency Distributions'!$D$10,MATCH($C93,'Efficiency Distributions'!$C$9:$C$87,0)+RIGHT($E102),0)\n+BG$11*OFFSET('Efficiency Distributions'!$E$10,MATCH($C93,'Efficiency Distributions'!$C$9:$C$87,0)+RIGHT($E102),0))\n/SUM(BG$10:BG$11)","v":0.26398378717792947}]
[null,null,null,null,"EL6",{"$f":"IF(INDEX(PC_MAPPING,RIGHT($C93,1),MATCH($E$2,'Data by Building Type'!$D$22:$F$22,0))=\"Yes\",1,0)*\n(F$10*OFFSET('Efficiency Distributions'!$D$10,MATCH($C93,'Efficiency Distributions'!$C$9:$C$87,0)+RIGHT($E103),0)\n+F$11*OFFSET('Efficiency Distributions'!$E$10,MATCH($C93,'Efficiency Distributions'!$C$9:$C$87,0)+RIGHT($E103),0))\n/SUM(F$10:F$11)","v":0},{"$f":"IF(INDEX(PC_MAPPING,RIGHT($C93,1),MATCH($E$2,'Data by Building Type'!$D$22:$F$22,0))=\"Yes\",1,0)*\n(G$10*OFFSET('Efficiency Distributions'!$D$10,MATCH($C93,'Efficiency Distributions'!$C$9:$C$87,0)+RIGHT($E103),0)\n+G$11*OFFSET('Efficiency Distributions'!$E$10,MATCH($C93,'Efficiency Distributions'!$C$9:$C$87,0)+RIGHT($E103),0))\n/SUM(G$10:G$11)","v":0},{"$f":"IF(INDEX(PC_MAPPING,RIGHT($C93,1),MATCH($E$2,'Data by Building Type'!$D$22:$F$22,0))=\"Yes\",1,0)*\n(H$10*OFFSET('Efficiency Distributions'!$D$10,MATCH($C93,'Efficiency Distributions'!$C$9:$C$87,0)+RIGHT($E103),0)\n+H$11*OFFSET('Efficiency Distributions'!$E$10,MATCH($C93,'Efficiency Distributions'!$C$9:$C$87,0)+RIGHT($E103),0))\n/SUM(H$10:H$11)","v":0},{"$f":"IF(INDEX(PC_MAPPING,RIGHT($C93,1),MATCH($E$2,'Data by Building Type'!$D$22:$F$22,0))=\"Yes\",1,0)*\n(I$10*OFFSET('Efficiency Distributions'!$D$10,MATCH($C93,'Efficiency Distributions'!$C$9:$C$87,0)+RIGHT($E103),0)\n+I$11*OFFSET('Efficiency Distributions'!$E$10,MATCH($C93,'Efficiency Distributions'!$C$9:$C$87,0)+RIGHT($E103),0))\n/SUM(I$10:I$11)","v":0},{"$f":"IF(INDEX(PC_MAPPING,RIGHT($C93,1),MATCH($E$2,'Data by Building Type'!$D$22:$F$22,0))=\"Yes\",1,0)*\n(J$10*OFFSET('Efficiency Distributions'!$D$10,MATCH($C93,'Efficiency Distributions'!$C$9:$C$87,0)+RIGHT($E103),0)\n+J$11*OFFSET('Efficiency Distributions'!$E$10,MATCH($C93,'Efficiency Distributions'!$C$9:$C$87,0)+RIGHT($E103),0))\n/SUM(J$10:J$11)","v":0},{"$f":"IF(INDEX(PC_MAPPING,RIGHT($C93,1),MATCH($E$2,'Data by Building Type'!$D$22:$F$22,0))=\"Yes\",1,0)*\n(K$10*OFFSET('Efficiency Distributions'!$D$10,MATCH($C93,'Efficiency Distributions'!$C$9:$C$87,0)+RIGHT($E103),0)\n+K$11*OFFSET('Efficiency Distributions'!$E$10,MATCH($C93,'Efficiency Distributions'!$C$9:$C$87,0)+RIGHT($E103),0))\n/SUM(K$10:K$11)","v":0},{"$f":"IF(INDEX(PC_MAPPING,RIGHT($C93,1),MATCH($E$2,'Data by Building Type'!$D$22:$F$22,0))=\"Yes\",1,0)*\n(L$10*OFFSET('Efficiency Distributions'!$D$10,MATCH($C93,'Efficiency Distributions'!$C$9:$C$87,0)+RIGHT($E103),0)\n+L$11*OFFSET('Efficiency Distributions'!$E$10,MATCH($C93,'Efficiency Distributions'!$C$9:$C$87,0)+RIGHT($E103),0))\n/SUM(L$10:L$11)","v":0},{"$f":"IF(INDEX(PC_MAPPING,RIGHT($C93,1),MATCH($E$2,'Data by Building Type'!$D$22:$F$22,0))=\"Yes\",1,0)*\n(M$10*OFFSET('Efficiency Distributions'!$D$10,MATCH($C93,'Efficiency Distributions'!$C$9:$C$87,0)+RIGHT($E103),0)\n+M$11*OFFSET('Efficiency Distributions'!$E$10,MATCH($C93,'Efficiency Distributions'!$C$9:$C$87,0)+RIGHT($E103),0))\n/SUM(M$10:M$11)","v":0},{"$f":"IF(INDEX(PC_MAPPING,RIGHT($C93,1),MATCH($E$2,'Data by Building Type'!$D$22:$F$22,0))=\"Yes\",1,0)*\n(N$10*OFFSET('Efficiency Distributions'!$D$10,MATCH($C93,'Efficiency Distributions'!$C$9:$C$87,0)+RIGHT($E103),0)\n+N$11*OFFSET('Efficiency Distributions'!$E$10,MATCH($C93,'Efficiency Distributions'!$C$9:$C$87,0)+RIGHT($E103),0))\n/SUM(N$10:N$11)","v":0},{"$f":"IF(INDEX(PC_MAPPING,RIGHT($C93,1),MATCH($E$2,'Data by Building Type'!$D$22:$F$22,0))=\"Yes\",1,0)*\n(O$10*OFFSET('Efficiency Distributions'!$D$10,MATCH($C93,'Efficiency Distributions'!$C$9:$C$87,0)+RIGHT($E103),0)\n+O$11*OFFSET('Efficiency Distributions'!$E$10,MATCH($C93,'Efficiency Distributions'!$C$9:$C$87,0)+RIGHT($E103),0))\n/SUM(O$10:O$11)","v":0},{"$f":"IF(INDEX(PC_MAPPING,RIGHT($C93,1),MATCH($E$2,'Data by Building Type'!$D$22:$F$22,0))=\"Yes\",1,0)*\n(P$10*OFFSET('Efficiency Distributions'!$D$10,MATCH($C93,'Efficiency Distributions'!$C$9:$C$87,0)+RIGHT($E103),0)\n+P$11*OFFSET('Efficiency Distributions'!$E$10,MATCH($C93,'Efficiency Distributions'!$C$9:$C$87,0)+RIGHT($E103),0))\n/SUM(P$10:P$11)","v":0},{"$f":"IF(INDEX(PC_MAPPING,RIGHT($C93,1),MATCH($E$2,'Data by Building Type'!$D$22:$F$22,0))=\"Yes\",1,0)*\n(Q$10*OFFSET('Efficiency Distributions'!$D$10,MATCH($C93,'Efficiency Distributions'!$C$9:$C$87,0)+RIGHT($E103),0)\n+Q$11*OFFSET('Efficiency Distributions'!$E$10,MATCH($C93,'Efficiency Distributions'!$C$9:$C$87,0)+RIGHT($E103),0))\n/SUM(Q$10:Q$11)","v":0},{"$f":"IF(INDEX(PC_MAPPING,RIGHT($C93,1),MATCH($E$2,'Data by Building Type'!$D$22:$F$22,0))=\"Yes\",1,0)*\n(R$10*OFFSET('Efficiency Distributions'!$D$10,MATCH($C93,'Efficiency Distributions'!$C$9:$C$87,0)+RIGHT($E103),0)\n+R$11*OFFSET('Efficiency Distributions'!$E$10,MATCH($C93,'Efficiency Distributions'!$C$9:$C$87,0)+RIGHT($E103),0))\n/SUM(R$10:R$11)","v":0},{"$f":"IF(INDEX(PC_MAPPING,RIGHT($C93,1),MATCH($E$2,'Data by Building Type'!$D$22:$F$22,0))=\"Yes\",1,0)*\n(S$10*OFFSET('Efficiency Distributions'!$D$10,MATCH($C93,'Efficiency Distributions'!$C$9:$C$87,0)+RIGHT($E103),0)\n+S$11*OFFSET('Efficiency Distributions'!$E$10,MATCH($C93,'Efficiency Distributions'!$C$9:$C$87,0)+RIGHT($E103),0))\n/SUM(S$10:S$11)","v":0},{"$f":"IF(INDEX(PC_MAPPING,RIGHT($C93,1),MATCH($E$2,'Data by Building Type'!$D$22:$F$22,0))=\"Yes\",1,0)*\n(T$10*OFFSET('Efficiency Distributions'!$D$10,MATCH($C93,'Efficiency Distributions'!$C$9:$C$87,0)+RIGHT($E103),0)\n+T$11*OFFSET('Efficiency Distributions'!$E$10,MATCH($C93,'Efficiency Distributions'!$C$9:$C$87,0)+RIGHT($E103),0))\n/SUM(T$10:T$11)","v":0},{"$f":"IF(INDEX(PC_MAPPING,RIGHT($C93,1),MATCH($E$2,'Data by Building Type'!$D$22:$F$22,0))=\"Yes\",1,0)*\n(U$10*OFFSET('Efficiency Distributions'!$D$10,MATCH($C93,'Efficiency Distributions'!$C$9:$C$87,0)+RIGHT($E103),0)\n+U$11*OFFSET('Efficiency Distributions'!$E$10,MATCH($C93,'Efficiency Distributions'!$C$9:$C$87,0)+RIGHT($E103),0))\n/SUM(U$10:U$11)","v":0},{"$f":"IF(INDEX(PC_MAPPING,RIGHT($C93,1),MATCH($E$2,'Data by Building Type'!$D$22:$F$22,0))=\"Yes\",1,0)*\n(V$10*OFFSET('Efficiency Distributions'!$D$10,MATCH($C93,'Efficiency Distributions'!$C$9:$C$87,0)+RIGHT($E103),0)\n+V$11*OFFSET('Efficiency Distributions'!$E$10,MATCH($C93,'Efficiency Distributions'!$C$9:$C$87,0)+RIGHT($E103),0))\n/SUM(V$10:V$11)","v":0},{"$f":"IF(INDEX(PC_MAPPING,RIGHT($C93,1),MATCH($E$2,'Data by Building Type'!$D$22:$F$22,0))=\"Yes\",1,0)*\n(W$10*OFFSET('Efficiency Distributions'!$D$10,MATCH($C93,'Efficiency Distributions'!$C$9:$C$87,0)+RIGHT($E103),0)\n+W$11*OFFSET('Efficiency Distributions'!$E$10,MATCH($C93,'Efficiency Distributions'!$C$9:$C$87,0)+RIGHT($E103),0))\n/SUM(W$10:W$11)","v":0},{"$f":"IF(INDEX(PC_MAPPING,RIGHT($C93,1),MATCH($E$2,'Data by Building Type'!$D$22:$F$22,0))=\"Yes\",1,0)*\n(X$10*OFFSET('Efficiency Distributions'!$D$10,MATCH($C93,'Efficiency Distributions'!$C$9:$C$87,0)+RIGHT($E103),0)\n+X$11*OFFSET('Efficiency Distributions'!$E$10,MATCH($C93,'Efficiency Distributions'!$C$9:$C$87,0)+RIGHT($E103),0))\n/SUM(X$10:X$11)","v":0},{"$f":"IF(INDEX(PC_MAPPING,RIGHT($C93,1),MATCH($E$2,'Data by Building Type'!$D$22:$F$22,0))=\"Yes\",1,0)*\n(Y$10*OFFSET('Efficiency Distributions'!$D$10,MATCH($C93,'Efficiency Distributions'!$C$9:$C$87,0)+RIGHT($E103),0)\n+Y$11*OFFSET('Efficiency Distributions'!$E$10,MATCH($C93,'Efficiency Distributions'!$C$9:$C$87,0)+RIGHT($E103),0))\n/SUM(Y$10:Y$11)","v":0},{"$f":"IF(INDEX(PC_MAPPING,RIGHT($C93,1),MATCH($E$2,'Data by Building Type'!$D$22:$F$22,0))=\"Yes\",1,0)*\n(Z$10*OFFSET('Efficiency Distributions'!$D$10,MATCH($C93,'Efficiency Distributions'!$C$9:$C$87,0)+RIGHT($E103),0)\n+Z$11*OFFSET('Efficiency Distributions'!$E$10,MATCH($C93,'Efficiency Distributions'!$C$9:$C$87,0)+RIGHT($E103),0))\n/SUM(Z$10:Z$11)","v":0},{"$f":"IF(INDEX(PC_MAPPING,RIGHT($C93,1),MATCH($E$2,'Data by Building Type'!$D$22:$F$22,0))=\"Yes\",1,0)*\n(AA$10*OFFSET('Efficiency Distributions'!$D$10,MATCH($C93,'Efficiency Distributions'!$C$9:$C$87,0)+RIGHT($E103),0)\n+AA$11*OFFSET('Efficiency Distributions'!$E$10,MATCH($C93,'Efficiency Distributions'!$C$9:$C$87,0)+RIGHT($E103),0))\n/SUM(AA$10:AA$11)","v":0},{"$f":"IF(INDEX(PC_MAPPING,RIGHT($C93,1),MATCH($E$2,'Data by Building Type'!$D$22:$F$22,0))=\"Yes\",1,0)*\n(AB$10*OFFSET('Efficiency Distributions'!$D$10,MATCH($C93,'Efficiency Distributions'!$C$9:$C$87,0)+RIGHT($E103),0)\n+AB$11*OFFSET('Efficiency Distributions'!$E$10,MATCH($C93,'Efficiency Distributions'!$C$9:$C$87,0)+RIGHT($E103),0))\n/SUM(AB$10:AB$11)","v":0},{"$f":"IF(INDEX(PC_MAPPING,RIGHT($C93,1),MATCH($E$2,'Data by Building Type'!$D$22:$F$22,0))=\"Yes\",1,0)*\n(AC$10*OFFSET('Efficiency Distributions'!$D$10,MATCH($C93,'Efficiency Distributions'!$C$9:$C$87,0)+RIGHT($E103),0)\n+AC$11*OFFSET('Efficiency Distributions'!$E$10,MATCH($C93,'Efficiency Distributions'!$C$9:$C$87,0)+RIGHT($E103),0))\n/SUM(AC$10:AC$11)","v":0},{"$f":"IF(INDEX(PC_MAPPING,RIGHT($C93,1),MATCH($E$2,'Data by Building Type'!$D$22:$F$22,0))=\"Yes\",1,0)*\n(AD$10*OFFSET('Efficiency Distributions'!$D$10,MATCH($C93,'Efficiency Distributions'!$C$9:$C$87,0)+RIGHT($E103),0)\n+AD$11*OFFSET('Efficiency Distributions'!$E$10,MATCH($C93,'Efficiency Distributions'!$C$9:$C$87,0)+RIGHT($E103),0))\n/SUM(AD$10:AD$11)","v":0},{"$f":"IF(INDEX(PC_MAPPING,RIGHT($C93,1),MATCH($E$2,'Data by Building Type'!$D$22:$F$22,0))=\"Yes\",1,0)*\n(AE$10*OFFSET('Efficiency Distributions'!$D$10,MATCH($C93,'Efficiency Distributions'!$C$9:$C$87,0)+RIGHT($E103),0)\n+AE$11*OFFSET('Efficiency Distributions'!$E$10,MATCH($C93,'Efficiency Distributions'!$C$9:$C$87,0)+RIGHT($E103),0))\n/SUM(AE$10:AE$11)","v":0},{"$f":"IF(INDEX(PC_MAPPING,RIGHT($C93,1),MATCH($E$2,'Data by Building Type'!$D$22:$F$22,0))=\"Yes\",1,0)*\n(AF$10*OFFSET('Efficiency Distributions'!$D$10,MATCH($C93,'Efficiency Distributions'!$C$9:$C$87,0)+RIGHT($E103),0)\n+AF$11*OFFSET('Efficiency Distributions'!$E$10,MATCH($C93,'Efficiency Distributions'!$C$9:$C$87,0)+RIGHT($E103),0))\n/SUM(AF$10:AF$11)","v":0},{"$f":"IF(INDEX(PC_MAPPING,RIGHT($C93,1),MATCH($E$2,'Data by Building Type'!$D$22:$F$22,0))=\"Yes\",1,0)*\n(AG$10*OFFSET('Efficiency Distributions'!$D$10,MATCH($C93,'Efficiency Distributions'!$C$9:$C$87,0)+RIGHT($E103),0)\n+AG$11*OFFSET('Efficiency Distributions'!$E$10,MATCH($C93,'Efficiency Distributions'!$C$9:$C$87,0)+RIGHT($E103),0))\n/SUM(AG$10:AG$11)","v":0},{"$f":"IF(INDEX(PC_MAPPING,RIGHT($C93,1),MATCH($E$2,'Data by Building Type'!$D$22:$F$22,0))=\"Yes\",1,0)*\n(AH$10*OFFSET('Efficiency Distributions'!$D$10,MATCH($C93,'Efficiency Distributions'!$C$9:$C$87,0)+RIGHT($E103),0)\n+AH$11*OFFSET('Efficiency Distributions'!$E$10,MATCH($C93,'Efficiency Distributions'!$C$9:$C$87,0)+RIGHT($E103),0))\n/SUM(AH$10:AH$11)","v":0},{"$f":"IF(INDEX(PC_MAPPING,RIGHT($C93,1),MATCH($E$2,'Data by Building Type'!$D$22:$F$22,0))=\"Yes\",1,0)*\n(AI$10*OFFSET('Efficiency Distributions'!$D$10,MATCH($C93,'Efficiency Distributions'!$C$9:$C$87,0)+RIGHT($E103),0)\n+AI$11*OFFSET('Efficiency Distributions'!$E$10,MATCH($C93,'Efficiency Distributions'!$C$9:$C$87,0)+RIGHT($E103),0))\n/SUM(AI$10:AI$11)","v":0},{"$f":"IF(INDEX(PC_MAPPING,RIGHT($C93,1),MATCH($E$2,'Data by Building Type'!$D$22:$F$22,0))=\"Yes\",1,0)*\n(AJ$10*OFFSET('Efficiency Distributions'!$D$10,MATCH($C93,'Efficiency Distributions'!$C$9:$C$87,0)+RIGHT($E103),0)\n+AJ$11*OFFSET('Efficiency Distributions'!$E$10,MATCH($C93,'Efficiency Distributions'!$C$9:$C$87,0)+RIGHT($E103),0))\n/SUM(AJ$10:AJ$11)","v":0},{"$f":"IF(INDEX(PC_MAPPING,RIGHT($C93,1),MATCH($E$2,'Data by Building Type'!$D$22:$F$22,0))=\"Yes\",1,0)*\n(AK$10*OFFSET('Efficiency Distributions'!$D$10,MATCH($C93,'Efficiency Distributions'!$C$9:$C$87,0)+RIGHT($E103),0)\n+AK$11*OFFSET('Efficiency Distributions'!$E$10,MATCH($C93,'Efficiency Distributions'!$C$9:$C$87,0)+RIGHT($E103),0))\n/SUM(AK$10:AK$11)","v":0},{"$f":"IF(INDEX(PC_MAPPING,RIGHT($C93,1),MATCH($E$2,'Data by Building Type'!$D$22:$F$22,0))=\"Yes\",1,0)*\n(AL$10*OFFSET('Efficiency Distributions'!$D$10,MATCH($C93,'Efficiency Distributions'!$C$9:$C$87,0)+RIGHT($E103),0)\n+AL$11*OFFSET('Efficiency Distributions'!$E$10,MATCH($C93,'Efficiency Distributions'!$C$9:$C$87,0)+RIGHT($E103),0))\n/SUM(AL$10:AL$11)","v":0},{"$f":"IF(INDEX(PC_MAPPING,RIGHT($C93,1),MATCH($E$2,'Data by Building Type'!$D$22:$F$22,0))=\"Yes\",1,0)*\n(AM$10*OFFSET('Efficiency Distributions'!$D$10,MATCH($C93,'Efficiency Distributions'!$C$9:$C$87,0)+RIGHT($E103),0)\n+AM$11*OFFSET('Efficiency Distributions'!$E$10,MATCH($C93,'Efficiency Distributions'!$C$9:$C$87,0)+RIGHT($E103),0))\n/SUM(AM$10:AM$11)","v":0},{"$f":"IF(INDEX(PC_MAPPING,RIGHT($C93,1),MATCH($E$2,'Data by Building Type'!$D$22:$F$22,0))=\"Yes\",1,0)*\n(AN$10*OFFSET('Efficiency Distributions'!$D$10,MATCH($C93,'Efficiency Distributions'!$C$9:$C$87,0)+RIGHT($E103),0)\n+AN$11*OFFSET('Efficiency Distributions'!$E$10,MATCH($C93,'Efficiency Distributions'!$C$9:$C$87,0)+RIGHT($E103),0))\n/SUM(AN$10:AN$11)","v":0},{"$f":"IF(INDEX(PC_MAPPING,RIGHT($C93,1),MATCH($E$2,'Data by Building Type'!$D$22:$F$22,0))=\"Yes\",1,0)*\n(AO$10*OFFSET('Efficiency Distributions'!$D$10,MATCH($C93,'Efficiency Distributions'!$C$9:$C$87,0)+RIGHT($E103),0)\n+AO$11*OFFSET('Efficiency Distributions'!$E$10,MATCH($C93,'Efficiency Distributions'!$C$9:$C$87,0)+RIGHT($E103),0))\n/SUM(AO$10:AO$11)","v":0},{"$f":"IF(INDEX(PC_MAPPING,RIGHT($C93,1),MATCH($E$2,'Data by Building Type'!$D$22:$F$22,0))=\"Yes\",1,0)*\n(AP$10*OFFSET('Efficiency Distributions'!$D$10,MATCH($C93,'Efficiency Distributions'!$C$9:$C$87,0)+RIGHT($E103),0)\n+AP$11*OFFSET('Efficiency Distributions'!$E$10,MATCH($C93,'Efficiency Distributions'!$C$9:$C$87,0)+RIGHT($E103),0))\n/SUM(AP$10:AP$11)","v":0},{"$f":"IF(INDEX(PC_MAPPING,RIGHT($C93,1),MATCH($E$2,'Data by Building Type'!$D$22:$F$22,0))=\"Yes\",1,0)*\n(AQ$10*OFFSET('Efficiency Distributions'!$D$10,MATCH($C93,'Efficiency Distributions'!$C$9:$C$87,0)+RIGHT($E103),0)\n+AQ$11*OFFSET('Efficiency Distributions'!$E$10,MATCH($C93,'Efficiency Distributions'!$C$9:$C$87,0)+RIGHT($E103),0))\n/SUM(AQ$10:AQ$11)","v":0},{"$f":"IF(INDEX(PC_MAPPING,RIGHT($C93,1),MATCH($E$2,'Data by Building Type'!$D$22:$F$22,0))=\"Yes\",1,0)*\n(AR$10*OFFSET('Efficiency Distributions'!$D$10,MATCH($C93,'Efficiency Distributions'!$C$9:$C$87,0)+RIGHT($E103),0)\n+AR$11*OFFSET('Efficiency Distributions'!$E$10,MATCH($C93,'Efficiency Distributions'!$C$9:$C$87,0)+RIGHT($E103),0))\n/SUM(AR$10:AR$11)","v":0},{"$f":"IF(INDEX(PC_MAPPING,RIGHT($C93,1),MATCH($E$2,'Data by Building Type'!$D$22:$F$22,0))=\"Yes\",1,0)*\n(AS$10*OFFSET('Efficiency Distributions'!$D$10,MATCH($C93,'Efficiency Distributions'!$C$9:$C$87,0)+RIGHT($E103),0)\n+AS$11*OFFSET('Efficiency Distributions'!$E$10,MATCH($C93,'Efficiency Distributions'!$C$9:$C$87,0)+RIGHT($E103),0))\n/SUM(AS$10:AS$11)","v":0},{"$f":"IF(INDEX(PC_MAPPING,RIGHT($C93,1),MATCH($E$2,'Data by Building Type'!$D$22:$F$22,0))=\"Yes\",1,0)*\n(AT$10*OFFSET('Efficiency Distributions'!$D$10,MATCH($C93,'Efficiency Distributions'!$C$9:$C$87,0)+RIGHT($E103),0)\n+AT$11*OFFSET('Efficiency Distributions'!$E$10,MATCH($C93,'Efficiency Distributions'!$C$9:$C$87,0)+RIGHT($E103),0))\n/SUM(AT$10:AT$11)","v":0},{"$f":"IF(INDEX(PC_MAPPING,RIGHT($C93,1),MATCH($E$2,'Data by Building Type'!$D$22:$F$22,0))=\"Yes\",1,0)*\n(AU$10*OFFSET('Efficiency Distributions'!$D$10,MATCH($C93,'Efficiency Distributions'!$C$9:$C$87,0)+RIGHT($E103),0)\n+AU$11*OFFSET('Efficiency Distributions'!$E$10,MATCH($C93,'Efficiency Distributions'!$C$9:$C$87,0)+RIGHT($E103),0))\n/SUM(AU$10:AU$11)","v":0},{"$f":"IF(INDEX(PC_MAPPING,RIGHT($C93,1),MATCH($E$2,'Data by Building Type'!$D$22:$F$22,0))=\"Yes\",1,0)*\n(AV$10*OFFSET('Efficiency Distributions'!$D$10,MATCH($C93,'Efficiency Distributions'!$C$9:$C$87,0)+RIGHT($E103),0)\n+AV$11*OFFSET('Efficiency Distributions'!$E$10,MATCH($C93,'Efficiency Distributions'!$C$9:$C$87,0)+RIGHT($E103),0))\n/SUM(AV$10:AV$11)","v":0},{"$f":"IF(INDEX(PC_MAPPING,RIGHT($C93,1),MATCH($E$2,'Data by Building Type'!$D$22:$F$22,0))=\"Yes\",1,0)*\n(AW$10*OFFSET('Efficiency Distributions'!$D$10,MATCH($C93,'Efficiency Distributions'!$C$9:$C$87,0)+RIGHT($E103),0)\n+AW$11*OFFSET('Efficiency Distributions'!$E$10,MATCH($C93,'Efficiency Distributions'!$C$9:$C$87,0)+RIGHT($E103),0))\n/SUM(AW$10:AW$11)","v":0},{"$f":"IF(INDEX(PC_MAPPING,RIGHT($C93,1),MATCH($E$2,'Data by Building Type'!$D$22:$F$22,0))=\"Yes\",1,0)*\n(AX$10*OFFSET('Efficiency Distributions'!$D$10,MATCH($C93,'Efficiency Distributions'!$C$9:$C$87,0)+RIGHT($E103),0)\n+AX$11*OFFSET('Efficiency Distributions'!$E$10,MATCH($C93,'Efficiency Distributions'!$C$9:$C$87,0)+RIGHT($E103),0))\n/SUM(AX$10:AX$11)","v":0},{"$f":"IF(INDEX(PC_MAPPING,RIGHT($C93,1),MATCH($E$2,'Data by Building Type'!$D$22:$F$22,0))=\"Yes\",1,0)*\n(AY$10*OFFSET('Efficiency Distributions'!$D$10,MATCH($C93,'Efficiency Distributions'!$C$9:$C$87,0)+RIGHT($E103),0)\n+AY$11*OFFSET('Efficiency Distributions'!$E$10,MATCH($C93,'Efficiency Distributions'!$C$9:$C$87,0)+RIGHT($E103),0))\n/SUM(AY$10:AY$11)","v":0},{"$f":"IF(INDEX(PC_MAPPING,RIGHT($C93,1),MATCH($E$2,'Data by Building Type'!$D$22:$F$22,0))=\"Yes\",1,0)*\n(AZ$10*OFFSET('Efficiency Distributions'!$D$10,MATCH($C93,'Efficiency Distributions'!$C$9:$C$87,0)+RIGHT($E103),0)\n+AZ$11*OFFSET('Efficiency Distributions'!$E$10,MATCH($C93,'Efficiency Distributions'!$C$9:$C$87,0)+RIGHT($E103),0))\n/SUM(AZ$10:AZ$11)","v":0},{"$f":"IF(INDEX(PC_MAPPING,RIGHT($C93,1),MATCH($E$2,'Data by Building Type'!$D$22:$F$22,0))=\"Yes\",1,0)*\n(BA$10*OFFSET('Efficiency Distributions'!$D$10,MATCH($C93,'Efficiency Distributions'!$C$9:$C$87,0)+RIGHT($E103),0)\n+BA$11*OFFSET('Efficiency Distributions'!$E$10,MATCH($C93,'Efficiency Distributions'!$C$9:$C$87,0)+RIGHT($E103),0))\n/SUM(BA$10:BA$11)","v":0},{"$f":"IF(INDEX(PC_MAPPING,RIGHT($C93,1),MATCH($E$2,'Data by Building Type'!$D$22:$F$22,0))=\"Yes\",1,0)*\n(BB$10*OFFSET('Efficiency Distributions'!$D$10,MATCH($C93,'Efficiency Distributions'!$C$9:$C$87,0)+RIGHT($E103),0)\n+BB$11*OFFSET('Efficiency Distributions'!$E$10,MATCH($C93,'Efficiency Distributions'!$C$9:$C$87,0)+RIGHT($E103),0))\n/SUM(BB$10:BB$11)","v":0},{"$f":"IF(INDEX(PC_MAPPING,RIGHT($C93,1),MATCH($E$2,'Data by Building Type'!$D$22:$F$22,0))=\"Yes\",1,0)*\n(BC$10*OFFSET('Efficiency Distributions'!$D$10,MATCH($C93,'Efficiency Distributions'!$C$9:$C$87,0)+RIGHT($E103),0)\n+BC$11*OFFSET('Efficiency Distributions'!$E$10,MATCH($C93,'Efficiency Distributions'!$C$9:$C$87,0)+RIGHT($E103),0))\n/SUM(BC$10:BC$11)","v":0},{"$f":"IF(INDEX(PC_MAPPING,RIGHT($C93,1),MATCH($E$2,'Data by Building Type'!$D$22:$F$22,0))=\"Yes\",1,0)*\n(BD$10*OFFSET('Efficiency Distributions'!$D$10,MATCH($C93,'Efficiency Distributions'!$C$9:$C$87,0)+RIGHT($E103),0)\n+BD$11*OFFSET('Efficiency Distributions'!$E$10,MATCH($C93,'Efficiency Distributions'!$C$9:$C$87,0)+RIGHT($E103),0))\n/SUM(BD$10:BD$11)","v":0},{"$f":"IF(INDEX(PC_MAPPING,RIGHT($C93,1),MATCH($E$2,'Data by Building Type'!$D$22:$F$22,0))=\"Yes\",1,0)*\n(BE$10*OFFSET('Efficiency Distributions'!$D$10,MATCH($C93,'Efficiency Distributions'!$C$9:$C$87,0)+RIGHT($E103),0)\n+BE$11*OFFSET('Efficiency Distributions'!$E$10,MATCH($C93,'Efficiency Distributions'!$C$9:$C$87,0)+RIGHT($E103),0))\n/SUM(BE$10:BE$11)","v":0},{"$f":"IF(INDEX(PC_MAPPING,RIGHT($C93,1),MATCH($E$2,'Data by Building Type'!$D$22:$F$22,0))=\"Yes\",1,0)*\n(BF$10*OFFSET('Efficiency Distributions'!$D$10,MATCH($C93,'Efficiency Distributions'!$C$9:$C$87,0)+RIGHT($E103),0)\n+BF$11*OFFSET('Efficiency Distributions'!$E$10,MATCH($C93,'Efficiency Distributions'!$C$9:$C$87,0)+RIGHT($E103),0))\n/SUM(BF$10:BF$11)","v":0},{"$f":"IF(INDEX(PC_MAPPING,RIGHT($C93,1),MATCH($E$2,'Data by Building Type'!$D$22:$F$22,0))=\"Yes\",1,0)*\n(BG$10*OFFSET('Efficiency Distributions'!$D$10,MATCH($C93,'Efficiency Distributions'!$C$9:$C$87,0)+RIGHT($E103),0)\n+BG$11*OFFSET('Efficiency Distributions'!$E$10,MATCH($C93,'Efficiency Distributions'!$C$9:$C$87,0)+RIGHT($E103),0))\n/SUM(BG$10:BG$11)","v":0}]
[null,null,null,null,"TOTAL",{"$f":"SUM(F97:F103)","v":1},{"$f":"SUM(G97:G103)","v":1},1,0.99999999999999989,1,1,1,1,0.99999999999999989,1,1.0000000000000002,1,1,1,1,1,1,1,1,1,1,1,1,1,1,1,1,1,0.99999999999999989,1,1,1,1,1,0.99999999999999989,1,1,0.99999999999999989,1,0.99999999999999989,1,1,1,1,0.99999999999999989,1,1,1,1,1,1,1,1,0.99999999999999989]
[]
[null,null,null,"POST-Case"]
[null,null,null,null,"Efficiency Level",1981,{"$f":"F107+1","v":1982},{"$f":"G107+1","v":1983},1984,1985,{"$f":"J107+1","v":1986},1987,1988,1989,1990,1991,1992,1993,1994,1995,1996,1997,1998,1999,2000,2001,2002,2003,2004,2005,2006,2007,2008,2009,2010,2011,2012,2013,2014,2015,2016,2017,2018,2019,2020,2021,2022,2023,2024,2025,2026,2027,2028,2029,2030,2031,2032,2033,2034]
[null,null,null,null,"EL0",{"$f":"IF(F$29<STANDARD_YEAR,F97,\nIF(RIGHT($E108,1)>RIGHT(INDEX(STANDARD_LEVELS,1,MID($C93,4,1)),1),F97,\nIF(RIGHT($E108,1)<RIGHT(INDEX(STANDARD_LEVELS,1,MID($C93,4,1)),1),0,\nIF(RIGHT($E108,1)=RIGHT(INDEX(STANDARD_LEVELS,1,MID($C93,4,1)),1),SUM(OFFSET(F97,-(RIGHT($E108,1)),0,RIGHT($E108,1)+1,1)),\"ERROR\"))))","v":0.33391714738467232},{"$f":"IF(G$29<STANDARD_YEAR,G97,\nIF(RIGHT($E108,1)>RIGHT(INDEX(STANDARD_LEVELS,1,MID($C93,4,1)),1),G97,\nIF(RIGHT($E108,1)<RIGHT(INDEX(STANDARD_LEVELS,1,MID($C93,4,1)),1),0,\nIF(RIGHT($E108,1)=RIGHT(INDEX(STANDARD_LEVELS,1,MID($C93,4,1)),1),SUM(OFFSET(G97,-(RIGHT($E108,1)),0,RIGHT($E108,1)+1,1)),\"ERROR\"))))","v":0.32178754974766249},0.32744208527985624,0.34385268369503258,0.36263040623200093,0.35733896279147559,0.36224698800274813,0.37210064213869276,0.38016403555765105,0.3726317436791543,0.33948071731296042,0.34047234318344372,0.27862599716039727,0.27862599716039727,0.27862599716039727,0.27862599716039727,0.27862599716039727,0.27862599716039727,0.27862599716039727,0.27862599716039727,0.27862599716039727,0.27862599716039727,0.27862599716039727,0.27862599716039727,0.27862599716039727,0.27862599716039727,0.27862599716039727,0.27862599716039727,0.27862599716039727,0.27862599716039727,0.27862599716039727,0.30575121846838038,0.30684066788557229,0.33262775145045387,0.33131221617166851,0.33291507713674667,0.33620234872512628,0.33954164547023719,0,0,0,0,0,0,0,0,0,0,0,0,0,0,0,0]
[null,null,null,null,"EL1",{"$f":"IF(F$29<STANDARD_YEAR,F98,\nIF(RIGHT($E109,1)>RIGHT(INDEX(STANDARD_LEVELS,1,MID($C93,4,1)),1),F98,\nIF(RIGHT($E109,1)<RIGHT(INDEX(STANDARD_LEVELS,1,MID($C93,4,1)),1),0,\nIF(RIGHT($E109,1)=RIGHT(INDEX(STANDARD_LEVELS,1,MID($C93,4,1)),1),SUM(OFFSET(F98,-(RIGHT($E109,1)),0,RIGHT($E109,1)+1,1)),\"ERROR\"))))","v":0.43059088138808227},{"$f":"IF(G$29<STANDARD_YEAR,G98,\nIF(RIGHT($E109,1)>RIGHT(INDEX(STANDARD_LEVELS,1,MID($C93,4,1)),1),G98,\nIF(RIGHT($E109,1)<RIGHT(INDEX(STANDARD_LEVELS,1,MID($C93,4,1)),1),0,\nIF(RIGHT($E109,1)=RIGHT(INDEX(STANDARD_LEVELS,1,MID($C93,4,1)),1),SUM(OFFSET(G98,-(RIGHT($E109,1)),0,RIGHT($E109,1)+1,1)),\"ERROR\"))))","v":0.4278153507356906},0.42910923839497744,0.43286436039394921,0.43716113478359925,0.43595033093799074,0.43707339988258898,0.4393281423654668,0.44117323205981296,0.43944967060153839,0.43186395402699429,0.43209086081167059,0.4179389957405959,0.4179389957405959,0.41793899574059595,0.4179389957405959,0.4179389957405959,0.4179389957405959,0.4179389957405959,0.4179389957405959,0.4179389957405959,0.4179389957405959,0.4179389957405959,0.41793899574059584,0.4179389957405959,0.4179389957405959,0.4179389957405959,0.4179389957405959,0.4179389957405959,0.4179389957405959,0.4179389957405959,0.42414586965729534,0.42439516071724115,0.43029583797068377,0.42999481327062034,0.43036158468985708,0.43111378796397432,0.43187789578938207,0.77056348425420218,0.78467600742531629,0.79959235627247227,0.80426746670014126,0.77091893166717318,0.78191184824538862,0.77590115869426568,0.76579397279994865,0.75161276364048502,0.7575253922397045,0.75987154514062438,0.7583351779401083,0.74865920699032906,0.75422151677742244,0.73619440719793161,0.73601621282207041]
[null,null,null,null,"EL2",{"$f":"IF(F$29<STANDARD_YEAR,F99,\nIF(RIGHT($E110,1)>RIGHT(INDEX(STANDARD_LEVELS,1,MID($C93,4,1)),1),F99,\nIF(RIGHT($E110,1)<RIGHT(INDEX(STANDARD_LEVELS,1,MID($C93,4,1)),1),0,\nIF(RIGHT($E110,1)=RIGHT(INDEX(STANDARD_LEVELS,1,MID($C93,4,1)),1),SUM(OFFSET(F99,-(RIGHT($E110,1)),0,RIGHT($E110,1)+1,1)),\"ERROR\"))))","v":0},{"$f":"IF(G$29<STANDARD_YEAR,G99,\nIF(RIGHT($E110,1)>RIGHT(INDEX(STANDARD_LEVELS,1,MID($C93,4,1)),1),G99,\nIF(RIGHT($E110,1)<RIGHT(INDEX(STANDARD_LEVELS,1,MID($C93,4,1)),1),0,\nIF(RIGHT($E110,1)=RIGHT(INDEX(STANDARD_LEVELS,1,MID($C93,4,1)),1),SUM(OFFSET(G99,-(RIGHT($E110,1)),0,RIGHT($E110,1)+1,1)),\"ERROR\"))))","v":0},0,0,0,0,0,0,0,0,0,0,0,0,0,0,0,0,0,0,0,0,0,0,0,0,0,0,0,0,0,0,0,0,0,0,0,0,0,0,0,0,0,0,0,0,0,0,0,0,0,0,0,0]
[null,null,null,null,"EL3",{"$f":"IF(F$29<STANDARD_YEAR,F100,\nIF(RIGHT($E111,1)>RIGHT(INDEX(STANDARD_LEVELS,1,MID($C93,4,1)),1),F100,\nIF(RIGHT($E111,1)<RIGHT(INDEX(STANDARD_LEVELS,1,MID($C93,4,1)),1),0,\nIF(RIGHT($E111,1)=RIGHT(INDEX(STANDARD_LEVELS,1,MID($C93,4,1)),1),SUM(OFFSET(F100,-(RIGHT($E111,1)),0,RIGHT($E111,1)+1,1)),\"ERROR\"))))","v":0},{"$f":"IF(G$29<STANDARD_YEAR,G100,\nIF(RIGHT($E111,1)>RIGHT(INDEX(STANDARD_LEVELS,1,MID($C93,4,1)),1),G100,\nIF(RIGHT($E111,1)<RIGHT(INDEX(STANDARD_LEVELS,1,MID($C93,4,1)),1),0,\nIF(RIGHT($E111,1)=RIGHT(INDEX(STANDARD_LEVELS,1,MID($C93,4,1)),1),SUM(OFFSET(G100,-(RIGHT($E111,1)),0,RIGHT($E111,1)+1,1)),\"ERROR\"))))","v":0},0,0,0,0,0,0,0,0,0,0,0,0,0,0,0,0,0,0,0,0,0,0,0,0,0,0,0,0,0,0,0,0,0,0,0,0,0,0,0,0,0,0,0,0,0,0,0,0,0,0,0,0]
[null,null,null,null,"EL4",{"$f":"IF(F$29<STANDARD_YEAR,F101,\nIF(RIGHT($E112,1)>RIGHT(INDEX(STANDARD_LEVELS,1,MID($C93,4,1)),1),F101,\nIF(RIGHT($E112,1)<RIGHT(INDEX(STANDARD_LEVELS,1,MID($C93,4,1)),1),0,\nIF(RIGHT($E112,1)=RIGHT(INDEX(STANDARD_LEVELS,1,MID($C93,4,1)),1),SUM(OFFSET(F101,-(RIGHT($E112,1)),0,RIGHT($E112,1)+1,1)),\"ERROR\"))))","v":0},{"$f":"IF(G$29<STANDARD_YEAR,G101,\nIF(RIGHT($E112,1)>RIGHT(INDEX(STANDARD_LEVELS,1,MID($C93,4,1)),1),G101,\nIF(RIGHT($E112,1)<RIGHT(INDEX(STANDARD_LEVELS,1,MID($C93,4,1)),1),0,\nIF(RIGHT($E112,1)=RIGHT(INDEX(STANDARD_LEVELS,1,MID($C93,4,1)),1),SUM(OFFSET(G101,-(RIGHT($E112,1)),0,RIGHT($E112,1)+1,1)),\"ERROR\"))))","v":0},0,0,0,0,0,0,0,0,0,0,0,0,0,0,0,0,0,0,0,0,0,0,0,0,0,0,0,0,0,0,0,0,0,0,0,0,0,0,0,0,0,0,0,0,0,0,0,0,0,0,0,0]
[null,null,null,null,"EL5",{"$f":"IF(F$29<STANDARD_YEAR,F102,\nIF(RIGHT($E113,1)>RIGHT(INDEX(STANDARD_LEVELS,1,MID($C93,4,1)),1),F102,\nIF(RIGHT($E113,1)<RIGHT(INDEX(STANDARD_LEVELS,1,MID($C93,4,1)),1),0,\nIF(RIGHT($E113,1)=RIGHT(INDEX(STANDARD_LEVELS,1,MID($C93,4,1)),1),SUM(OFFSET(F102,-(RIGHT($E113,1)),0,RIGHT($E113,1)+1,1)),\"ERROR\"))))","v":0.23549197122724538},{"$f":"IF(G$29<STANDARD_YEAR,G102,\nIF(RIGHT($E113,1)>RIGHT(INDEX(STANDARD_LEVELS,1,MID($C93,4,1)),1),G102,\nIF(RIGHT($E113,1)<RIGHT(INDEX(STANDARD_LEVELS,1,MID($C93,4,1)),1),0,\nIF(RIGHT($E113,1)=RIGHT(INDEX(STANDARD_LEVELS,1,MID($C93,4,1)),1),SUM(OFFSET(G102,-(RIGHT($E113,1)),0,RIGHT($E113,1)+1,1)),\"ERROR\"))))","v":0.2503970995166469},0.24344867632516634,0.22328295591101813,0.20020845898439982,0.2067107062705337,0.20067961211466284,0.18857121549584044,0.17866273238253597,0.18791858571930725,0.22865532866004537,0.2274367960048857,0.30343500709900678,0.30343500709900678,0.30343500709900678,0.30343500709900678,0.30343500709900678,0.30343500709900678,0.30343500709900678,0.30343500709900678,0.30343500709900678,0.30343500709900678,0.30343500709900678,0.30343500709900678,0.30343500709900678,0.30343500709900678,0.30343500709900678,0.30343500709900678,0.30343500709900673,0.30343500709900678,0.30343500709900678,0.27010291187432428,0.2687641713971865,0.23707641057886233,0.2386929705577111,0.23672333817339616,0.23268386331089944,0.22858045874038066,0.22943651574579779,0.2153239925746836,0.2004076437275277,0.19573253329985879,0.22908106833282682,0.21808815175461133,0.22409884130573418,0.23420602720005132,0.24838723635951493,0.24247460776029545,0.24012845485937556,0.24166482205989168,0.25134079300967105,0.2457784832225775,0.26380559280206839,0.26398378717792947]
[null,null,null,null,"EL6",{"$f":"IF(F$29<STANDARD_YEAR,F103,\nIF(RIGHT($E114,1)>RIGHT(INDEX(STANDARD_LEVELS,1,MID($C93,4,1)),1),F103,\nIF(RIGHT($E114,1)<RIGHT(INDEX(STANDARD_LEVELS,1,MID($C93,4,1)),1),0,\nIF(RIGHT($E114,1)=RIGHT(INDEX(STANDARD_LEVELS,1,MID($C93,4,1)),1),SUM(OFFSET(F103,-(RIGHT($E114,1)),0,RIGHT($E114,1)+1,1)),\"ERROR\"))))","v":0},{"$f":"IF(G$29<STANDARD_YEAR,G103,\nIF(RIGHT($E114,1)>RIGHT(INDEX(STANDARD_LEVELS,1,MID($C93,4,1)),1),G103,\nIF(RIGHT($E114,1)<RIGHT(INDEX(STANDARD_LEVELS,1,MID($C93,4,1)),1),0,\nIF(RIGHT($E114,1)=RIGHT(INDEX(STANDARD_LEVELS,1,MID($C93,4,1)),1),SUM(OFFSET(G103,-(RIGHT($E114,1)),0,RIGHT($E114,1)+1,1)),\"ERROR\"))))","v":0},0,0,0,0,0,0,0,0,0,0,0,0,0,0,0,0,0,0,0,0,0,0,0,0,0,0,0,0,0,0,0,0,0,0,0,0,0,0,0,0,0,0,0,0,0,0,0,0,0,0,0,0]
[null,null,null,null,"TOTAL",{"$f":"SUM(F108:F114)","v":1},{"$f":"SUM(G108:G114)","v":1},1,0.99999999999999989,1,1,1,1,0.99999999999999989,1,1.0000000000000002,1,1,1,1,1,1,1,1,1,1,1,1,1,1,1,1,1,0.99999999999999989,1,1,1,1,1,0.99999999999999989,1,1,0.99999999999999989,1,0.99999999999999989,1,1,1,1,0.99999999999999989,1,1,1,1,1,1,1,1,0.99999999999999989]
[]
[]
[]
[null,null,"PC 5",{"$f":"OFFSET('Product Classes'!$C$9,MATCH(C119,MODEL_PCS,0),0)","v":"Non-Weatherized Electric Furnace / Modular Blower Fan (NWEF/NWMB)"}]
[]
[null,null,null,"PRE-Case"]
[null,null,null,null,"Efficiency Level",1981,{"$f":"F122+1","v":1982},{"$f":"G122+1","v":1983},1984,1985,{"$f":"J122+1","v":1986},1987,1988,1989,1990,1991,1992,1993,1994,1995,1996,1997,1998,1999,2000,2001,2002,2003,2004,2005,2006,2007,2008,2009,2010,2011,2012,2013,2014,2015,2016,2017,2018,2019,2020,2021,2022,2023,2024,2025,2026,2027,2028,2029,2030,2031,2032,2033,2034]
[null,null,null,null,"EL0",{"$f":"IF(INDEX(PC_MAPPING,RIGHT($C119,1),MATCH($E$2,'Data by Building Type'!$D$22:$F$22,0))=\"Yes\",1,0)*\n(F$10*OFFSET('Efficiency Distributions'!$D$10,MATCH($C119,'Efficiency Distributions'!$C$9:$C$87,0)+RIGHT($E123),0)\n+F$11*OFFSET('Efficiency Distributions'!$E$10,MATCH($C119,'Efficiency Distributions'!$C$9:$C$87,0)+RIGHT($E123),0))\n/SUM(F$10:F$11)","v":0.28553094679951224},{"$f":"IF(INDEX(PC_MAPPING,RIGHT($C119,1),MATCH($E$2,'Data by Building Type'!$D$22:$F$22,0))=\"Yes\",1,0)*\n(G$10*OFFSET('Efficiency Distributions'!$D$10,MATCH($C119,'Efficiency Distributions'!$C$9:$C$87,0)+RIGHT($E123),0)\n+G$11*OFFSET('Efficiency Distributions'!$E$10,MATCH($C119,'Efficiency Distributions'!$C$9:$C$87,0)+RIGHT($E123),0))\n/SUM(G$10:G$11)","v":0.27069144598892897},{"$f":"IF(INDEX(PC_MAPPING,RIGHT($C119,1),MATCH($E$2,'Data by Building Type'!$D$22:$F$22,0))=\"Yes\",1,0)*\n(H$10*OFFSET('Efficiency Distributions'!$D$10,MATCH($C119,'Efficiency Distributions'!$C$9:$C$87,0)+RIGHT($E123),0)\n+H$11*OFFSET('Efficiency Distributions'!$E$10,MATCH($C119,'Efficiency Distributions'!$C$9:$C$87,0)+RIGHT($E123),0))\n/SUM(H$10:H$11)","v":0.27760927518034689},{"$f":"IF(INDEX(PC_MAPPING,RIGHT($C119,1),MATCH($E$2,'Data by Building Type'!$D$22:$F$22,0))=\"Yes\",1,0)*\n(I$10*OFFSET('Efficiency Distributions'!$D$10,MATCH($C119,'Efficiency Distributions'!$C$9:$C$87,0)+RIGHT($E123),0)\n+I$11*OFFSET('Efficiency Distributions'!$E$10,MATCH($C119,'Efficiency Distributions'!$C$9:$C$87,0)+RIGHT($E123),0))\n/SUM(I$10:I$11)","v":0.29768620565833109},{"$f":"IF(INDEX(PC_MAPPING,RIGHT($C119,1),MATCH($E$2,'Data by Building Type'!$D$22:$F$22,0))=\"Yes\",1,0)*\n(J$10*OFFSET('Efficiency Distributions'!$D$10,MATCH($C119,'Efficiency Distributions'!$C$9:$C$87,0)+RIGHT($E123),0)\n+J$11*OFFSET('Efficiency Distributions'!$E$10,MATCH($C119,'Efficiency Distributions'!$C$9:$C$87,0)+RIGHT($E123),0))\n/SUM(J$10:J$11)","v":0.32065910526697339},{"$f":"IF(INDEX(PC_MAPPING,RIGHT($C119,1),MATCH($E$2,'Data by Building Type'!$D$22:$F$22,0))=\"Yes\",1,0)*\n(K$10*OFFSET('Efficiency Distributions'!$D$10,MATCH($C119,'Efficiency Distributions'!$C$9:$C$87,0)+RIGHT($E123),0)\n+K$11*OFFSET('Efficiency Distributions'!$E$10,MATCH($C119,'Efficiency Distributions'!$C$9:$C$87,0)+RIGHT($E123),0))\n/SUM(K$10:K$11)","v":0.31418548746243508},{"$f":"IF(INDEX(PC_MAPPING,RIGHT($C119,1),MATCH($E$2,'Data by Building Type'!$D$22:$F$22,0))=\"Yes\",1,0)*\n(L$10*OFFSET('Efficiency Distributions'!$D$10,MATCH($C119,'Efficiency Distributions'!$C$9:$C$87,0)+RIGHT($E123),0)\n+L$11*OFFSET('Efficiency Distributions'!$E$10,MATCH($C119,'Efficiency Distributions'!$C$9:$C$87,0)+RIGHT($E123),0))\n/SUM(L$10:L$11)","v":0.32019002663023205},{"$f":"IF(INDEX(PC_MAPPING,RIGHT($C119,1),MATCH($E$2,'Data by Building Type'!$D$22:$F$22,0))=\"Yes\",1,0)*\n(M$10*OFFSET('Efficiency Distributions'!$D$10,MATCH($C119,'Efficiency Distributions'!$C$9:$C$87,0)+RIGHT($E123),0)\n+M$11*OFFSET('Efficiency Distributions'!$E$10,MATCH($C119,'Efficiency Distributions'!$C$9:$C$87,0)+RIGHT($E123),0))\n/SUM(M$10:M$11)","v":0.3322451098171138},{"$f":"IF(INDEX(PC_MAPPING,RIGHT($C119,1),MATCH($E$2,'Data by Building Type'!$D$22:$F$22,0))=\"Yes\",1,0)*\n(N$10*OFFSET('Efficiency Distributions'!$D$10,MATCH($C119,'Efficiency Distributions'!$C$9:$C$87,0)+RIGHT($E123),0)\n+N$11*OFFSET('Efficiency Distributions'!$E$10,MATCH($C119,'Efficiency Distributions'!$C$9:$C$87,0)+RIGHT($E123),0))\n/SUM(N$10:N$11)","v":0.3421099657470078},{"$f":"IF(INDEX(PC_MAPPING,RIGHT($C119,1),MATCH($E$2,'Data by Building Type'!$D$22:$F$22,0))=\"Yes\",1,0)*\n(O$10*OFFSET('Efficiency Distributions'!$D$10,MATCH($C119,'Efficiency Distributions'!$C$9:$C$87,0)+RIGHT($E123),0)\n+O$11*OFFSET('Efficiency Distributions'!$E$10,MATCH($C119,'Efficiency Distributions'!$C$9:$C$87,0)+RIGHT($E123),0))\n/SUM(O$10:O$11)","v":0.33289486605602936},{"$f":"IF(INDEX(PC_MAPPING,RIGHT($C119,1),MATCH($E$2,'Data by Building Type'!$D$22:$F$22,0))=\"Yes\",1,0)*\n(P$10*OFFSET('Efficiency Distributions'!$D$10,MATCH($C119,'Efficiency Distributions'!$C$9:$C$87,0)+RIGHT($E123),0)\n+P$11*OFFSET('Efficiency Distributions'!$E$10,MATCH($C119,'Efficiency Distributions'!$C$9:$C$87,0)+RIGHT($E123),0))\n/SUM(P$10:P$11)","v":0.29233748753823052},{"$f":"IF(INDEX(PC_MAPPING,RIGHT($C119,1),MATCH($E$2,'Data by Building Type'!$D$22:$F$22,0))=\"Yes\",1,0)*\n(Q$10*OFFSET('Efficiency Distributions'!$D$10,MATCH($C119,'Efficiency Distributions'!$C$9:$C$87,0)+RIGHT($E123),0)\n+Q$11*OFFSET('Efficiency Distributions'!$E$10,MATCH($C119,'Efficiency Distributions'!$C$9:$C$87,0)+RIGHT($E123),0))\n/SUM(Q$10:Q$11)","v":0.29355065497784405},{"$f":"IF(INDEX(PC_MAPPING,RIGHT($C119,1),MATCH($E$2,'Data by Building Type'!$D$22:$F$22,0))=\"Yes\",1,0)*\n(R$10*OFFSET('Efficiency Distributions'!$D$10,MATCH($C119,'Efficiency Distributions'!$C$9:$C$87,0)+RIGHT($E123),0)\n+R$11*OFFSET('Efficiency Distributions'!$E$10,MATCH($C119,'Efficiency Distributions'!$C$9:$C$87,0)+RIGHT($E123),0))\n/SUM(R$10:R$11)","v":0.21788706502162647},{"$f":"IF(INDEX(PC_MAPPING,RIGHT($C119,1),MATCH($E$2,'Data by Building Type'!$D$22:$F$22,0))=\"Yes\",1,0)*\n(S$10*OFFSET('Efficiency Distributions'!$D$10,MATCH($C119,'Efficiency Distributions'!$C$9:$C$87,0)+RIGHT($E123),0)\n+S$11*OFFSET('Efficiency Distributions'!$E$10,MATCH($C119,'Efficiency Distributions'!$C$9:$C$87,0)+RIGHT($E123),0))\n/SUM(S$10:S$11)","v":0.21788706502162647},{"$f":"IF(INDEX(PC_MAPPING,RIGHT($C119,1),MATCH($E$2,'Data by Building Type'!$D$22:$F$22,0))=\"Yes\",1,0)*\n(T$10*OFFSET('Efficiency Distributions'!$D$10,MATCH($C119,'Efficiency Distributions'!$C$9:$C$87,0)+RIGHT($E123),0)\n+T$11*OFFSET('Efficiency Distributions'!$E$10,MATCH($C119,'Efficiency Distributions'!$C$9:$C$87,0)+RIGHT($E123),0))\n/SUM(T$10:T$11)","v":0.21788706502162644},{"$f":"IF(INDEX(PC_MAPPING,RIGHT($C119,1),MATCH($E$2,'Data by Building Type'!$D$22:$F$22,0))=\"Yes\",1,0)*\n(U$10*OFFSET('Efficiency Distributions'!$D$10,MATCH($C119,'Efficiency Distributions'!$C$9:$C$87,0)+RIGHT($E123),0)\n+U$11*OFFSET('Efficiency Distributions'!$E$10,MATCH($C119,'Efficiency Distributions'!$C$9:$C$87,0)+RIGHT($E123),0))\n/SUM(U$10:U$11)","v":0.21788706502162644},{"$f":"IF(INDEX(PC_MAPPING,RIGHT($C119,1),MATCH($E$2,'Data by Building Type'!$D$22:$F$22,0))=\"Yes\",1,0)*\n(V$10*OFFSET('Efficiency Distributions'!$D$10,MATCH($C119,'Efficiency Distributions'!$C$9:$C$87,0)+RIGHT($E123),0)\n+V$11*OFFSET('Efficiency Distributions'!$E$10,MATCH($C119,'Efficiency Distributions'!$C$9:$C$87,0)+RIGHT($E123),0))\n/SUM(V$10:V$11)","v":0.21788706502162644},{"$f":"IF(INDEX(PC_MAPPING,RIGHT($C119,1),MATCH($E$2,'Data by Building Type'!$D$22:$F$22,0))=\"Yes\",1,0)*\n(W$10*OFFSET('Efficiency Distributions'!$D$10,MATCH($C119,'Efficiency Distributions'!$C$9:$C$87,0)+RIGHT($E123),0)\n+W$11*OFFSET('Efficiency Distributions'!$E$10,MATCH($C119,'Efficiency Distributions'!$C$9:$C$87,0)+RIGHT($E123),0))\n/SUM(W$10:W$11)","v":0.21788706502162644},{"$f":"IF(INDEX(PC_MAPPING,RIGHT($C119,1),MATCH($E$2,'Data by Building Type'!$D$22:$F$22,0))=\"Yes\",1,0)*\n(X$10*OFFSET('Efficiency Distributions'!$D$10,MATCH($C119,'Efficiency Distributions'!$C$9:$C$87,0)+RIGHT($E123),0)\n+X$11*OFFSET('Efficiency Distributions'!$E$10,MATCH($C119,'Efficiency Distributions'!$C$9:$C$87,0)+RIGHT($E123),0))\n/SUM(X$10:X$11)","v":0.21788706502162644},{"$f":"IF(INDEX(PC_MAPPING,RIGHT($C119,1),MATCH($E$2,'Data by Building Type'!$D$22:$F$22,0))=\"Yes\",1,0)*\n(Y$10*OFFSET('Efficiency Distributions'!$D$10,MATCH($C119,'Efficiency Distributions'!$C$9:$C$87,0)+RIGHT($E123),0)\n+Y$11*OFFSET('Efficiency Distributions'!$E$10,MATCH($C119,'Efficiency Distributions'!$C$9:$C$87,0)+RIGHT($E123),0))\n/SUM(Y$10:Y$11)","v":0.21788706502162641},{"$f":"IF(INDEX(PC_MAPPING,RIGHT($C119,1),MATCH($E$2,'Data by Building Type'!$D$22:$F$22,0))=\"Yes\",1,0)*\n(Z$10*OFFSET('Efficiency Distributions'!$D$10,MATCH($C119,'Efficiency Distributions'!$C$9:$C$87,0)+RIGHT($E123),0)\n+Z$11*OFFSET('Efficiency Distributions'!$E$10,MATCH($C119,'Efficiency Distributions'!$C$9:$C$87,0)+RIGHT($E123),0))\n/SUM(Z$10:Z$11)","v":0.21788706502162644},{"$f":"IF(INDEX(PC_MAPPING,RIGHT($C119,1),MATCH($E$2,'Data by Building Type'!$D$22:$F$22,0))=\"Yes\",1,0)*\n(AA$10*OFFSET('Efficiency Distributions'!$D$10,MATCH($C119,'Efficiency Distributions'!$C$9:$C$87,0)+RIGHT($E123),0)\n+AA$11*OFFSET('Efficiency Distributions'!$E$10,MATCH($C119,'Efficiency Distributions'!$C$9:$C$87,0)+RIGHT($E123),0))\n/SUM(AA$10:AA$11)","v":0.21788706502162647},{"$f":"IF(INDEX(PC_MAPPING,RIGHT($C119,1),MATCH($E$2,'Data by Building Type'!$D$22:$F$22,0))=\"Yes\",1,0)*\n(AB$10*OFFSET('Efficiency Distributions'!$D$10,MATCH($C119,'Efficiency Distributions'!$C$9:$C$87,0)+RIGHT($E123),0)\n+AB$11*OFFSET('Efficiency Distributions'!$E$10,MATCH($C119,'Efficiency Distributions'!$C$9:$C$87,0)+RIGHT($E123),0))\n/SUM(AB$10:AB$11)","v":0.21788706502162644},{"$f":"IF(INDEX(PC_MAPPING,RIGHT($C119,1),MATCH($E$2,'Data by Building Type'!$D$22:$F$22,0))=\"Yes\",1,0)*\n(AC$10*OFFSET('Efficiency Distributions'!$D$10,MATCH($C119,'Efficiency Distributions'!$C$9:$C$87,0)+RIGHT($E123),0)\n+AC$11*OFFSET('Efficiency Distributions'!$E$10,MATCH($C119,'Efficiency Distributions'!$C$9:$C$87,0)+RIGHT($E123),0))\n/SUM(AC$10:AC$11)","v":0.21788706502162647},{"$f":"IF(INDEX(PC_MAPPING,RIGHT($C119,1),MATCH($E$2,'Data by Building Type'!$D$22:$F$22,0))=\"Yes\",1,0)*\n(AD$10*OFFSET('Efficiency Distributions'!$D$10,MATCH($C119,'Efficiency Distributions'!$C$9:$C$87,0)+RIGHT($E123),0)\n+AD$11*OFFSET('Efficiency Distributions'!$E$10,MATCH($C119,'Efficiency Distributions'!$C$9:$C$87,0)+RIGHT($E123),0))\n/SUM(AD$10:AD$11)","v":0.21788706502162647},{"$f":"IF(INDEX(PC_MAPPING,RIGHT($C119,1),MATCH($E$2,'Data by Building Type'!$D$22:$F$22,0))=\"Yes\",1,0)*\n(AE$10*OFFSET('Efficiency Distributions'!$D$10,MATCH($C119,'Efficiency Distributions'!$C$9:$C$87,0)+RIGHT($E123),0)\n+AE$11*OFFSET('Efficiency Distributions'!$E$10,MATCH($C119,'Efficiency Distributions'!$C$9:$C$87,0)+RIGHT($E123),0))\n/SUM(AE$10:AE$11)","v":0.21788706502162644},{"$f":"IF(INDEX(PC_MAPPING,RIGHT($C119,1),MATCH($E$2,'Data by Building Type'!$D$22:$F$22,0))=\"Yes\",1,0)*\n(AF$10*OFFSET('Efficiency Distributions'!$D$10,MATCH($C119,'Efficiency Distributions'!$C$9:$C$87,0)+RIGHT($E123),0)\n+AF$11*OFFSET('Efficiency Distributions'!$E$10,MATCH($C119,'Efficiency Distributions'!$C$9:$C$87,0)+RIGHT($E123),0))\n/SUM(AF$10:AF$11)","v":0.21788706502162644},{"$f":"IF(INDEX(PC_MAPPING,RIGHT($C119,1),MATCH($E$2,'Data by Building Type'!$D$22:$F$22,0))=\"Yes\",1,0)*\n(AG$10*OFFSET('Efficiency Distributions'!$D$10,MATCH($C119,'Efficiency Distributions'!$C$9:$C$87,0)+RIGHT($E123),0)\n+AG$11*OFFSET('Efficiency Distributions'!$E$10,MATCH($C119,'Efficiency Distributions'!$C$9:$C$87,0)+RIGHT($E123),0))\n/SUM(AG$10:AG$11)","v":0.21788706502162644},{"$f":"IF(INDEX(PC_MAPPING,RIGHT($C119,1),MATCH($E$2,'Data by Building Type'!$D$22:$F$22,0))=\"Yes\",1,0)*\n(AH$10*OFFSET('Efficiency Distributions'!$D$10,MATCH($C119,'Efficiency Distributions'!$C$9:$C$87,0)+RIGHT($E123),0)\n+AH$11*OFFSET('Efficiency Distributions'!$E$10,MATCH($C119,'Efficiency Distributions'!$C$9:$C$87,0)+RIGHT($E123),0))\n/SUM(AH$10:AH$11)","v":0.21788706502162644},{"$f":"IF(INDEX(PC_MAPPING,RIGHT($C119,1),MATCH($E$2,'Data by Building Type'!$D$22:$F$22,0))=\"Yes\",1,0)*\n(AI$10*OFFSET('Efficiency Distributions'!$D$10,MATCH($C119,'Efficiency Distributions'!$C$9:$C$87,0)+RIGHT($E123),0)\n+AI$11*OFFSET('Efficiency Distributions'!$E$10,MATCH($C119,'Efficiency Distributions'!$C$9:$C$87,0)+RIGHT($E123),0))\n/SUM(AI$10:AI$11)","v":0.21788706502162644},{"$f":"IF(INDEX(PC_MAPPING,RIGHT($C119,1),MATCH($E$2,'Data by Building Type'!$D$22:$F$22,0))=\"Yes\",1,0)*\n(AJ$10*OFFSET('Efficiency Distributions'!$D$10,MATCH($C119,'Efficiency Distributions'!$C$9:$C$87,0)+RIGHT($E123),0)\n+AJ$11*OFFSET('Efficiency Distributions'!$E$10,MATCH($C119,'Efficiency Distributions'!$C$9:$C$87,0)+RIGHT($E123),0))\n/SUM(AJ$10:AJ$11)","v":0.21788706502162644},{"$f":"IF(INDEX(PC_MAPPING,RIGHT($C119,1),MATCH($E$2,'Data by Building Type'!$D$22:$F$22,0))=\"Yes\",1,0)*\n(AK$10*OFFSET('Efficiency Distributions'!$D$10,MATCH($C119,'Efficiency Distributions'!$C$9:$C$87,0)+RIGHT($E123),0)\n+AK$11*OFFSET('Efficiency Distributions'!$E$10,MATCH($C119,'Efficiency Distributions'!$C$9:$C$87,0)+RIGHT($E123),0))\n/SUM(AK$10:AK$11)","v":0.25107239858610392},{"$f":"IF(INDEX(PC_MAPPING,RIGHT($C119,1),MATCH($E$2,'Data by Building Type'!$D$22:$F$22,0))=\"Yes\",1,0)*\n(AL$10*OFFSET('Efficiency Distributions'!$D$10,MATCH($C119,'Efficiency Distributions'!$C$9:$C$87,0)+RIGHT($E123),0)\n+AL$11*OFFSET('Efficiency Distributions'!$E$10,MATCH($C119,'Efficiency Distributions'!$C$9:$C$87,0)+RIGHT($E123),0))\n/SUM(AL$10:AL$11)","v":0.25240524457105074},{"$f":"IF(INDEX(PC_MAPPING,RIGHT($C119,1),MATCH($E$2,'Data by Building Type'!$D$22:$F$22,0))=\"Yes\",1,0)*\n(AM$10*OFFSET('Efficiency Distributions'!$D$10,MATCH($C119,'Efficiency Distributions'!$C$9:$C$87,0)+RIGHT($E123),0)\n+AM$11*OFFSET('Efficiency Distributions'!$E$10,MATCH($C119,'Efficiency Distributions'!$C$9:$C$87,0)+RIGHT($E123),0))\n/SUM(AM$10:AM$11)","v":0.28395348375551022},{"$f":"IF(INDEX(PC_MAPPING,RIGHT($C119,1),MATCH($E$2,'Data by Building Type'!$D$22:$F$22,0))=\"Yes\",1,0)*\n(AN$10*OFFSET('Efficiency Distributions'!$D$10,MATCH($C119,'Efficiency Distributions'!$C$9:$C$87,0)+RIGHT($E123),0)\n+AN$11*OFFSET('Efficiency Distributions'!$E$10,MATCH($C119,'Efficiency Distributions'!$C$9:$C$87,0)+RIGHT($E123),0))\n/SUM(AN$10:AN$11)","v":0.28234404151182685},{"$f":"IF(INDEX(PC_MAPPING,RIGHT($C119,1),MATCH($E$2,'Data by Building Type'!$D$22:$F$22,0))=\"Yes\",1,0)*\n(AO$10*OFFSET('Efficiency Distributions'!$D$10,MATCH($C119,'Efficiency Distributions'!$C$9:$C$87,0)+RIGHT($E123),0)\n+AO$11*OFFSET('Efficiency Distributions'!$E$10,MATCH($C119,'Efficiency Distributions'!$C$9:$C$87,0)+RIGHT($E123),0))\n/SUM(AO$10:AO$11)","v":0.28430500157846206},{"$f":"IF(INDEX(PC_MAPPING,RIGHT($C119,1),MATCH($E$2,'Data by Building Type'!$D$22:$F$22,0))=\"Yes\",1,0)*\n(AP$10*OFFSET('Efficiency Distributions'!$D$10,MATCH($C119,'Efficiency Distributions'!$C$9:$C$87,0)+RIGHT($E123),0)\n+AP$11*OFFSET('Efficiency Distributions'!$E$10,MATCH($C119,'Efficiency Distributions'!$C$9:$C$87,0)+RIGHT($E123),0))\n/SUM(AP$10:AP$11)","v":0.28832669057921867},{"$f":"IF(INDEX(PC_MAPPING,RIGHT($C119,1),MATCH($E$2,'Data by Building Type'!$D$22:$F$22,0))=\"Yes\",1,0)*\n(AQ$10*OFFSET('Efficiency Distributions'!$D$10,MATCH($C119,'Efficiency Distributions'!$C$9:$C$87,0)+RIGHT($E123),0)\n+AQ$11*OFFSET('Efficiency Distributions'!$E$10,MATCH($C119,'Efficiency Distributions'!$C$9:$C$87,0)+RIGHT($E123),0))\n/SUM(AQ$10:AQ$11)","v":0.29241202780463948},{"$f":"IF(INDEX(PC_MAPPING,RIGHT($C119,1),MATCH($E$2,'Data by Building Type'!$D$22:$F$22,0))=\"Yes\",1,0)*\n(AR$10*OFFSET('Efficiency Distributions'!$D$10,MATCH($C119,'Efficiency Distributions'!$C$9:$C$87,0)+RIGHT($E123),0)\n+AR$11*OFFSET('Efficiency Distributions'!$E$10,MATCH($C119,'Efficiency Distributions'!$C$9:$C$87,0)+RIGHT($E123),0))\n/SUM(AR$10:AR$11)","v":0.29155974002964419},{"$f":"IF(INDEX(PC_MAPPING,RIGHT($C119,1),MATCH($E$2,'Data by Building Type'!$D$22:$F$22,0))=\"Yes\",1,0)*\n(AS$10*OFFSET('Efficiency Distributions'!$D$10,MATCH($C119,'Efficiency Distributions'!$C$9:$C$87,0)+RIGHT($E123),0)\n+AS$11*OFFSET('Efficiency Distributions'!$E$10,MATCH($C119,'Efficiency Distributions'!$C$9:$C$87,0)+RIGHT($E123),0))\n/SUM(AS$10:AS$11)","v":0.30561012557285611},{"$f":"IF(INDEX(PC_MAPPING,RIGHT($C119,1),MATCH($E$2,'Data by Building Type'!$D$22:$F$22,0))=\"Yes\",1,0)*\n(AT$10*OFFSET('Efficiency Distributions'!$D$10,MATCH($C119,'Efficiency Distributions'!$C$9:$C$87,0)+RIGHT($E123),0)\n+AT$11*OFFSET('Efficiency Distributions'!$E$10,MATCH($C119,'Efficiency Distributions'!$C$9:$C$87,0)+RIGHT($E123),0))\n/SUM(AT$10:AT$11)","v":0.32046079753692824},{"$f":"IF(INDEX(PC_MAPPING,RIGHT($C119,1),MATCH($E$2,'Data by Building Type'!$D$22:$F$22,0))=\"Yes\",1,0)*\n(AU$10*OFFSET('Efficiency Distributions'!$D$10,MATCH($C119,'Efficiency Distributions'!$C$9:$C$87,0)+RIGHT($E123),0)\n+AU$11*OFFSET('Efficiency Distributions'!$E$10,MATCH($C119,'Efficiency Distributions'!$C$9:$C$87,0)+RIGHT($E123),0))\n/SUM(AU$10:AU$11)","v":0.32511532339097882},{"$f":"IF(INDEX(PC_MAPPING,RIGHT($C119,1),MATCH($E$2,'Data by Building Type'!$D$22:$F$22,0))=\"Yes\",1,0)*\n(AV$10*OFFSET('Efficiency Distributions'!$D$10,MATCH($C119,'Efficiency Distributions'!$C$9:$C$87,0)+RIGHT($E123),0)\n+AV$11*OFFSET('Efficiency Distributions'!$E$10,MATCH($C119,'Efficiency Distributions'!$C$9:$C$87,0)+RIGHT($E123),0))\n/SUM(AV$10:AV$11)","v":0.29191362240291124},{"$f":"IF(INDEX(PC_MAPPING,RIGHT($C119,1),MATCH($E$2,'Data by Building Type'!$D$22:$F$22,0))=\"Yes\",1,0)*\n(AW$10*OFFSET('Efficiency Distributions'!$D$10,MATCH($C119,'Efficiency Distributions'!$C$9:$C$87,0)+RIGHT($E123),0)\n+AW$11*OFFSET('Efficiency Distributions'!$E$10,MATCH($C119,'Efficiency Distributions'!$C$9:$C$87,0)+RIGHT($E123),0))\n/SUM(AW$10:AW$11)","v":0.30285813702269482},{"$f":"IF(INDEX(PC_MAPPING,RIGHT($C119,1),MATCH($E$2,'Data by Building Type'!$D$22:$F$22,0))=\"Yes\",1,0)*\n(AX$10*OFFSET('Efficiency Distributions'!$D$10,MATCH($C119,'Efficiency Distributions'!$C$9:$C$87,0)+RIGHT($E123),0)\n+AX$11*OFFSET('Efficiency Distributions'!$E$10,MATCH($C119,'Efficiency Distributions'!$C$9:$C$87,0)+RIGHT($E123),0))\n/SUM(AX$10:AX$11)","v":0.29687391261789875},{"$f":"IF(INDEX(PC_MAPPING,RIGHT($C119,1),MATCH($E$2,'Data by Building Type'!$D$22:$F$22,0))=\"Yes\",1,0)*\n(AY$10*OFFSET('Efficiency Distributions'!$D$10,MATCH($C119,'Efficiency Distributions'!$C$9:$C$87,0)+RIGHT($E123),0)\n+AY$11*OFFSET('Efficiency Distributions'!$E$10,MATCH($C119,'Efficiency Distributions'!$C$9:$C$87,0)+RIGHT($E123),0))\n/SUM(AY$10:AY$11)","v":0.2868112287979892},{"$f":"IF(INDEX(PC_MAPPING,RIGHT($C119,1),MATCH($E$2,'Data by Building Type'!$D$22:$F$22,0))=\"Yes\",1,0)*\n(AZ$10*OFFSET('Efficiency Distributions'!$D$10,MATCH($C119,'Efficiency Distributions'!$C$9:$C$87,0)+RIGHT($E123),0)\n+AZ$11*OFFSET('Efficiency Distributions'!$E$10,MATCH($C119,'Efficiency Distributions'!$C$9:$C$87,0)+RIGHT($E123),0))\n/SUM(AZ$10:AZ$11)","v":0.27269245969175154},{"$f":"IF(INDEX(PC_MAPPING,RIGHT($C119,1),MATCH($E$2,'Data by Building Type'!$D$22:$F$22,0))=\"Yes\",1,0)*\n(BA$10*OFFSET('Efficiency Distributions'!$D$10,MATCH($C119,'Efficiency Distributions'!$C$9:$C$87,0)+RIGHT($E123),0)\n+BA$11*OFFSET('Efficiency Distributions'!$E$10,MATCH($C119,'Efficiency Distributions'!$C$9:$C$87,0)+RIGHT($E123),0))\n/SUM(BA$10:BA$11)","v":0.27857905490832435},{"$f":"IF(INDEX(PC_MAPPING,RIGHT($C119,1),MATCH($E$2,'Data by Building Type'!$D$22:$F$22,0))=\"Yes\",1,0)*\n(BB$10*OFFSET('Efficiency Distributions'!$D$10,MATCH($C119,'Efficiency Distributions'!$C$9:$C$87,0)+RIGHT($E123),0)\n+BB$11*OFFSET('Efficiency Distributions'!$E$10,MATCH($C119,'Efficiency Distributions'!$C$9:$C$87,0)+RIGHT($E123),0))\n/SUM(BB$10:BB$11)","v":0.28091487766670403},{"$f":"IF(INDEX(PC_MAPPING,RIGHT($C119,1),MATCH($E$2,'Data by Building Type'!$D$22:$F$22,0))=\"Yes\",1,0)*\n(BC$10*OFFSET('Efficiency Distributions'!$D$10,MATCH($C119,'Efficiency Distributions'!$C$9:$C$87,0)+RIGHT($E123),0)\n+BC$11*OFFSET('Efficiency Distributions'!$E$10,MATCH($C119,'Efficiency Distributions'!$C$9:$C$87,0)+RIGHT($E123),0))\n/SUM(BC$10:BC$11)","v":0.27938527511147981},{"$f":"IF(INDEX(PC_MAPPING,RIGHT($C119,1),MATCH($E$2,'Data by Building Type'!$D$22:$F$22,0))=\"Yes\",1,0)*\n(BD$10*OFFSET('Efficiency Distributions'!$D$10,MATCH($C119,'Efficiency Distributions'!$C$9:$C$87,0)+RIGHT($E123),0)\n+BD$11*OFFSET('Efficiency Distributions'!$E$10,MATCH($C119,'Efficiency Distributions'!$C$9:$C$87,0)+RIGHT($E123),0))\n/SUM(BD$10:BD$11)","v":0.26975190759095136},{"$f":"IF(INDEX(PC_MAPPING,RIGHT($C119,1),MATCH($E$2,'Data by Building Type'!$D$22:$F$22,0))=\"Yes\",1,0)*\n(BE$10*OFFSET('Efficiency Distributions'!$D$10,MATCH($C119,'Efficiency Distributions'!$C$9:$C$87,0)+RIGHT($E123),0)\n+BE$11*OFFSET('Efficiency Distributions'!$E$10,MATCH($C119,'Efficiency Distributions'!$C$9:$C$87,0)+RIGHT($E123),0))\n/SUM(BE$10:BE$11)","v":0.27528972645380423},{"$f":"IF(INDEX(PC_MAPPING,RIGHT($C119,1),MATCH($E$2,'Data by Building Type'!$D$22:$F$22,0))=\"Yes\",1,0)*\n(BF$10*OFFSET('Efficiency Distributions'!$D$10,MATCH($C119,'Efficiency Distributions'!$C$9:$C$87,0)+RIGHT($E123),0)\n+BF$11*OFFSET('Efficiency Distributions'!$E$10,MATCH($C119,'Efficiency Distributions'!$C$9:$C$87,0)+RIGHT($E123),0))\n/SUM(BF$10:BF$11)","v":0.25734199047842532},{"$f":"IF(INDEX(PC_MAPPING,RIGHT($C119,1),MATCH($E$2,'Data by Building Type'!$D$22:$F$22,0))=\"Yes\",1,0)*\n(BG$10*OFFSET('Efficiency Distributions'!$D$10,MATCH($C119,'Efficiency Distributions'!$C$9:$C$87,0)+RIGHT($E123),0)\n+BG$11*OFFSET('Efficiency Distributions'!$E$10,MATCH($C119,'Efficiency Distributions'!$C$9:$C$87,0)+RIGHT($E123),0))\n/SUM(BG$10:BG$11)","v":0.25716458069477977}]
[null,null,null,null,"EL1",{"$f":"IF(INDEX(PC_MAPPING,RIGHT($C119,1),MATCH($E$2,'Data by Building Type'!$D$22:$F$22,0))=\"Yes\",1,0)*\n(F$10*OFFSET('Efficiency Distributions'!$D$10,MATCH($C119,'Efficiency Distributions'!$C$9:$C$87,0)+RIGHT($E124),0)\n+F$11*OFFSET('Efficiency Distributions'!$E$10,MATCH($C119,'Efficiency Distributions'!$C$9:$C$87,0)+RIGHT($E124),0))\n/SUM(F$10:F$11)","v":0.36113033946694689},{"$f":"IF(INDEX(PC_MAPPING,RIGHT($C119,1),MATCH($E$2,'Data by Building Type'!$D$22:$F$22,0))=\"Yes\",1,0)*\n(G$10*OFFSET('Efficiency Distributions'!$D$10,MATCH($C119,'Efficiency Distributions'!$C$9:$C$87,0)+RIGHT($E124),0)\n+G$11*OFFSET('Efficiency Distributions'!$E$10,MATCH($C119,'Efficiency Distributions'!$C$9:$C$87,0)+RIGHT($E124),0))\n/SUM(G$10:G$11)","v":0.35360577057967885},{"$f":"IF(INDEX(PC_MAPPING,RIGHT($C119,1),MATCH($E$2,'Data by Building Type'!$D$22:$F$22,0))=\"Yes\",1,0)*\n(H$10*OFFSET('Efficiency Distributions'!$D$10,MATCH($C119,'Efficiency Distributions'!$C$9:$C$87,0)+RIGHT($E124),0)\n+H$11*OFFSET('Efficiency Distributions'!$E$10,MATCH($C119,'Efficiency Distributions'!$C$9:$C$87,0)+RIGHT($E124),0))\n/SUM(H$10:H$11)","v":0.35711354910711113},{"$f":"IF(INDEX(PC_MAPPING,RIGHT($C119,1),MATCH($E$2,'Data by Building Type'!$D$22:$F$22,0))=\"Yes\",1,0)*\n(I$10*OFFSET('Efficiency Distributions'!$D$10,MATCH($C119,'Efficiency Distributions'!$C$9:$C$87,0)+RIGHT($E124),0)\n+I$11*OFFSET('Efficiency Distributions'!$E$10,MATCH($C119,'Efficiency Distributions'!$C$9:$C$87,0)+RIGHT($E124),0))\n/SUM(I$10:I$11)","v":0.36729382729536009},{"$f":"IF(INDEX(PC_MAPPING,RIGHT($C119,1),MATCH($E$2,'Data by Building Type'!$D$22:$F$22,0))=\"Yes\",1,0)*\n(J$10*OFFSET('Efficiency Distributions'!$D$10,MATCH($C119,'Efficiency Distributions'!$C$9:$C$87,0)+RIGHT($E124),0)\n+J$11*OFFSET('Efficiency Distributions'!$E$10,MATCH($C119,'Efficiency Distributions'!$C$9:$C$87,0)+RIGHT($E124),0))\n/SUM(J$10:J$11)","v":0.378942545662102},{"$f":"IF(INDEX(PC_MAPPING,RIGHT($C119,1),MATCH($E$2,'Data by Building Type'!$D$22:$F$22,0))=\"Yes\",1,0)*\n(K$10*OFFSET('Efficiency Distributions'!$D$10,MATCH($C119,'Efficiency Distributions'!$C$9:$C$87,0)+RIGHT($E124),0)\n+K$11*OFFSET('Efficiency Distributions'!$E$10,MATCH($C119,'Efficiency Distributions'!$C$9:$C$87,0)+RIGHT($E124),0))\n/SUM(K$10:K$11)","v":0.37566001050530251},{"$f":"IF(INDEX(PC_MAPPING,RIGHT($C119,1),MATCH($E$2,'Data by Building Type'!$D$22:$F$22,0))=\"Yes\",1,0)*\n(L$10*OFFSET('Efficiency Distributions'!$D$10,MATCH($C119,'Efficiency Distributions'!$C$9:$C$87,0)+RIGHT($E124),0)\n+L$11*OFFSET('Efficiency Distributions'!$E$10,MATCH($C119,'Efficiency Distributions'!$C$9:$C$87,0)+RIGHT($E124),0))\n/SUM(L$10:L$11)","v":0.37870469301727522},{"$f":"IF(INDEX(PC_MAPPING,RIGHT($C119,1),MATCH($E$2,'Data by Building Type'!$D$22:$F$22,0))=\"Yes\",1,0)*\n(M$10*OFFSET('Efficiency Distributions'!$D$10,MATCH($C119,'Efficiency Distributions'!$C$9:$C$87,0)+RIGHT($E124),0)\n+M$11*OFFSET('Efficiency Distributions'!$E$10,MATCH($C119,'Efficiency Distributions'!$C$9:$C$87,0)+RIGHT($E124),0))\n/SUM(M$10:M$11)","v":0.38481738542110233},{"$f":"IF(INDEX(PC_MAPPING,RIGHT($C119,1),MATCH($E$2,'Data by Building Type'!$D$22:$F$22,0))=\"Yes\",1,0)*\n(N$10*OFFSET('Efficiency Distributions'!$D$10,MATCH($C119,'Efficiency Distributions'!$C$9:$C$87,0)+RIGHT($E124),0)\n+N$11*OFFSET('Efficiency Distributions'!$E$10,MATCH($C119,'Efficiency Distributions'!$C$9:$C$87,0)+RIGHT($E124),0))\n/SUM(N$10:N$11)","v":0.38981949357520707},{"$f":"IF(INDEX(PC_MAPPING,RIGHT($C119,1),MATCH($E$2,'Data by Building Type'!$D$22:$F$22,0))=\"Yes\",1,0)*\n(O$10*OFFSET('Efficiency Distributions'!$D$10,MATCH($C119,'Efficiency Distributions'!$C$9:$C$87,0)+RIGHT($E124),0)\n+O$11*OFFSET('Efficiency Distributions'!$E$10,MATCH($C119,'Efficiency Distributions'!$C$9:$C$87,0)+RIGHT($E124),0))\n/SUM(O$10:O$11)","v":0.38514685307921687},{"$f":"IF(INDEX(PC_MAPPING,RIGHT($C119,1),MATCH($E$2,'Data by Building Type'!$D$22:$F$22,0))=\"Yes\",1,0)*\n(P$10*OFFSET('Efficiency Distributions'!$D$10,MATCH($C119,'Efficiency Distributions'!$C$9:$C$87,0)+RIGHT($E124),0)\n+P$11*OFFSET('Efficiency Distributions'!$E$10,MATCH($C119,'Efficiency Distributions'!$C$9:$C$87,0)+RIGHT($E124),0))\n/SUM(P$10:P$11)","v":0.36458168768453353},{"$f":"IF(INDEX(PC_MAPPING,RIGHT($C119,1),MATCH($E$2,'Data by Building Type'!$D$22:$F$22,0))=\"Yes\",1,0)*\n(Q$10*OFFSET('Efficiency Distributions'!$D$10,MATCH($C119,'Efficiency Distributions'!$C$9:$C$87,0)+RIGHT($E124),0)\n+Q$11*OFFSET('Efficiency Distributions'!$E$10,MATCH($C119,'Efficiency Distributions'!$C$9:$C$87,0)+RIGHT($E124),0))\n/SUM(Q$10:Q$11)","v":0.36519684058540824},{"$f":"IF(INDEX(PC_MAPPING,RIGHT($C119,1),MATCH($E$2,'Data by Building Type'!$D$22:$F$22,0))=\"Yes\",1,0)*\n(R$10*OFFSET('Efficiency Distributions'!$D$10,MATCH($C119,'Efficiency Distributions'!$C$9:$C$87,0)+RIGHT($E124),0)\n+R$11*OFFSET('Efficiency Distributions'!$E$10,MATCH($C119,'Efficiency Distributions'!$C$9:$C$87,0)+RIGHT($E124),0))\n/SUM(R$10:R$11)","v":0.32683059753243965},{"$f":"IF(INDEX(PC_MAPPING,RIGHT($C119,1),MATCH($E$2,'Data by Building Type'!$D$22:$F$22,0))=\"Yes\",1,0)*\n(S$10*OFFSET('Efficiency Distributions'!$D$10,MATCH($C119,'Efficiency Distributions'!$C$9:$C$87,0)+RIGHT($E124),0)\n+S$11*OFFSET('Efficiency Distributions'!$E$10,MATCH($C119,'Efficiency Distributions'!$C$9:$C$87,0)+RIGHT($E124),0))\n/SUM(S$10:S$11)","v":0.32683059753243965},{"$f":"IF(INDEX(PC_MAPPING,RIGHT($C119,1),MATCH($E$2,'Data by Building Type'!$D$22:$F$22,0))=\"Yes\",1,0)*\n(T$10*OFFSET('Efficiency Distributions'!$D$10,MATCH($C119,'Efficiency Distributions'!$C$9:$C$87,0)+RIGHT($E124),0)\n+T$11*OFFSET('Efficiency Distributions'!$E$10,MATCH($C119,'Efficiency Distributions'!$C$9:$C$87,0)+RIGHT($E124),0))\n/SUM(T$10:T$11)","v":0.32683059753243965},{"$f":"IF(INDEX(PC_MAPPING,RIGHT($C119,1),MATCH($E$2,'Data by Building Type'!$D$22:$F$22,0))=\"Yes\",1,0)*\n(U$10*OFFSET('Efficiency Distributions'!$D$10,MATCH($C119,'Efficiency Distributions'!$C$9:$C$87,0)+RIGHT($E124),0)\n+U$11*OFFSET('Efficiency Distributions'!$E$10,MATCH($C119,'Efficiency Distributions'!$C$9:$C$87,0)+RIGHT($E124),0))\n/SUM(U$10:U$11)","v":0.32683059753243965},{"$f":"IF(INDEX(PC_MAPPING,RIGHT($C119,1),MATCH($E$2,'Data by Building Type'!$D$22:$F$22,0))=\"Yes\",1,0)*\n(V$10*OFFSET('Efficiency Distributions'!$D$10,MATCH($C119,'Efficiency Distributions'!$C$9:$C$87,0)+RIGHT($E124),0)\n+V$11*OFFSET('Efficiency Distributions'!$E$10,MATCH($C119,'Efficiency Distributions'!$C$9:$C$87,0)+RIGHT($E124),0))\n/SUM(V$10:V$11)","v":0.32683059753243965},{"$f":"IF(INDEX(PC_MAPPING,RIGHT($C119,1),MATCH($E$2,'Data by Building Type'!$D$22:$F$22,0))=\"Yes\",1,0)*\n(W$10*OFFSET('Efficiency Distributions'!$D$10,MATCH($C119,'Efficiency Distributions'!$C$9:$C$87,0)+RIGHT($E124),0)\n+W$11*OFFSET('Efficiency Distributions'!$E$10,MATCH($C119,'Efficiency Distributions'!$C$9:$C$87,0)+RIGHT($E124),0))\n/SUM(W$10:W$11)","v":0.32683059753243965},{"$f":"IF(INDEX(PC_MAPPING,RIGHT($C119,1),MATCH($E$2,'Data by Building Type'!$D$22:$F$22,0))=\"Yes\",1,0)*\n(X$10*OFFSET('Efficiency Distributions'!$D$10,MATCH($C119,'Efficiency Distributions'!$C$9:$C$87,0)+RIGHT($E124),0)\n+X$11*OFFSET('Efficiency Distributions'!$E$10,MATCH($C119,'Efficiency Distributions'!$C$9:$C$87,0)+RIGHT($E124),0))\n/SUM(X$10:X$11)","v":0.32683059753243965},{"$f":"IF(INDEX(PC_MAPPING,RIGHT($C119,1),MATCH($E$2,'Data by Building Type'!$D$22:$F$22,0))=\"Yes\",1,0)*\n(Y$10*OFFSET('Efficiency Distributions'!$D$10,MATCH($C119,'Efficiency Distributions'!$C$9:$C$87,0)+RIGHT($E124),0)\n+Y$11*OFFSET('Efficiency Distributions'!$E$10,MATCH($C119,'Efficiency Distributions'!$C$9:$C$87,0)+RIGHT($E124),0))\n/SUM(Y$10:Y$11)","v":0.32683059753243965},{"$f":"IF(INDEX(PC_MAPPING,RIGHT($C119,1),MATCH($E$2,'Data by Building Type'!$D$22:$F$22,0))=\"Yes\",1,0)*\n(Z$10*OFFSET('Efficiency Distributions'!$D$10,MATCH($C119,'Efficiency Distributions'!$C$9:$C$87,0)+RIGHT($E124),0)\n+Z$11*OFFSET('Efficiency Distributions'!$E$10,MATCH($C119,'Efficiency Distributions'!$C$9:$C$87,0)+RIGHT($E124),0))\n/SUM(Z$10:Z$11)","v":0.32683059753243965},{"$f":"IF(INDEX(PC_MAPPING,RIGHT($C119,1),MATCH($E$2,'Data by Building Type'!$D$22:$F$22,0))=\"Yes\",1,0)*\n(AA$10*OFFSET('Efficiency Distributions'!$D$10,MATCH($C119,'Efficiency Distributions'!$C$9:$C$87,0)+RIGHT($E124),0)\n+AA$11*OFFSET('Efficiency Distributions'!$E$10,MATCH($C119,'Efficiency Distributions'!$C$9:$C$87,0)+RIGHT($E124),0))\n/SUM(AA$10:AA$11)","v":0.32683059753243965},{"$f":"IF(INDEX(PC_MAPPING,RIGHT($C119,1),MATCH($E$2,'Data by Building Type'!$D$22:$F$22,0))=\"Yes\",1,0)*\n(AB$10*OFFSET('Efficiency Distributions'!$D$10,MATCH($C119,'Efficiency Distributions'!$C$9:$C$87,0)+RIGHT($E124),0)\n+AB$11*OFFSET('Efficiency Distributions'!$E$10,MATCH($C119,'Efficiency Distributions'!$C$9:$C$87,0)+RIGHT($E124),0))\n/SUM(AB$10:AB$11)","v":0.32683059753243965},{"$f":"IF(INDEX(PC_MAPPING,RIGHT($C119,1),MATCH($E$2,'Data by Building Type'!$D$22:$F$22,0))=\"Yes\",1,0)*\n(AC$10*OFFSET('Efficiency Distributions'!$D$10,MATCH($C119,'Efficiency Distributions'!$C$9:$C$87,0)+RIGHT($E124),0)\n+AC$11*OFFSET('Efficiency Distributions'!$E$10,MATCH($C119,'Efficiency Distributions'!$C$9:$C$87,0)+RIGHT($E124),0))\n/SUM(AC$10:AC$11)","v":0.32683059753243965},{"$f":"IF(INDEX(PC_MAPPING,RIGHT($C119,1),MATCH($E$2,'Data by Building Type'!$D$22:$F$22,0))=\"Yes\",1,0)*\n(AD$10*OFFSET('Efficiency Distributions'!$D$10,MATCH($C119,'Efficiency Distributions'!$C$9:$C$87,0)+RIGHT($E124),0)\n+AD$11*OFFSET('Efficiency Distributions'!$E$10,MATCH($C119,'Efficiency Distributions'!$C$9:$C$87,0)+RIGHT($E124),0))\n/SUM(AD$10:AD$11)","v":0.32683059753243965},{"$f":"IF(INDEX(PC_MAPPING,RIGHT($C119,1),MATCH($E$2,'Data by Building Type'!$D$22:$F$22,0))=\"Yes\",1,0)*\n(AE$10*OFFSET('Efficiency Distributions'!$D$10,MATCH($C119,'Efficiency Distributions'!$C$9:$C$87,0)+RIGHT($E124),0)\n+AE$11*OFFSET('Efficiency Distributions'!$E$10,MATCH($C119,'Efficiency Distributions'!$C$9:$C$87,0)+RIGHT($E124),0))\n/SUM(AE$10:AE$11)","v":0.32683059753243965},{"$f":"IF(INDEX(PC_MAPPING,RIGHT($C119,1),MATCH($E$2,'Data by Building Type'!$D$22:$F$22,0))=\"Yes\",1,0)*\n(AF$10*OFFSET('Efficiency Distributions'!$D$10,MATCH($C119,'Efficiency Distributions'!$C$9:$C$87,0)+RIGHT($E124),0)\n+AF$11*OFFSET('Efficiency Distributions'!$E$10,MATCH($C119,'Efficiency Distributions'!$C$9:$C$87,0)+RIGHT($E124),0))\n/SUM(AF$10:AF$11)","v":0.32683059753243959},{"$f":"IF(INDEX(PC_MAPPING,RIGHT($C119,1),MATCH($E$2,'Data by Building Type'!$D$22:$F$22,0))=\"Yes\",1,0)*\n(AG$10*OFFSET('Efficiency Distributions'!$D$10,MATCH($C119,'Efficiency Distributions'!$C$9:$C$87,0)+RIGHT($E124),0)\n+AG$11*OFFSET('Efficiency Distributions'!$E$10,MATCH($C119,'Efficiency Distributions'!$C$9:$C$87,0)+RIGHT($E124),0))\n/SUM(AG$10:AG$11)","v":0.32683059753243965},{"$f":"IF(INDEX(PC_MAPPING,RIGHT($C119,1),MATCH($E$2,'Data by Building Type'!$D$22:$F$22,0))=\"Yes\",1,0)*\n(AH$10*OFFSET('Efficiency Distributions'!$D$10,MATCH($C119,'Efficiency Distributions'!$C$9:$C$87,0)+RIGHT($E124),0)\n+AH$11*OFFSET('Efficiency Distributions'!$E$10,MATCH($C119,'Efficiency Distributions'!$C$9:$C$87,0)+RIGHT($E124),0))\n/SUM(AH$10:AH$11)","v":0.32683059753243965},{"$f":"IF(INDEX(PC_MAPPING,RIGHT($C119,1),MATCH($E$2,'Data by Building Type'!$D$22:$F$22,0))=\"Yes\",1,0)*\n(AI$10*OFFSET('Efficiency Distributions'!$D$10,MATCH($C119,'Efficiency Distributions'!$C$9:$C$87,0)+RIGHT($E124),0)\n+AI$11*OFFSET('Efficiency Distributions'!$E$10,MATCH($C119,'Efficiency Distributions'!$C$9:$C$87,0)+RIGHT($E124),0))\n/SUM(AI$10:AI$11)","v":0.32683059753243965},{"$f":"IF(INDEX(PC_MAPPING,RIGHT($C119,1),MATCH($E$2,'Data by Building Type'!$D$22:$F$22,0))=\"Yes\",1,0)*\n(AJ$10*OFFSET('Efficiency Distributions'!$D$10,MATCH($C119,'Efficiency Distributions'!$C$9:$C$87,0)+RIGHT($E124),0)\n+AJ$11*OFFSET('Efficiency Distributions'!$E$10,MATCH($C119,'Efficiency Distributions'!$C$9:$C$87,0)+RIGHT($E124),0))\n/SUM(AJ$10:AJ$11)","v":0.32683059753243965},{"$f":"IF(INDEX(PC_MAPPING,RIGHT($C119,1),MATCH($E$2,'Data by Building Type'!$D$22:$F$22,0))=\"Yes\",1,0)*\n(AK$10*OFFSET('Efficiency Distributions'!$D$10,MATCH($C119,'Efficiency Distributions'!$C$9:$C$87,0)+RIGHT($E124),0)\n+AK$11*OFFSET('Efficiency Distributions'!$E$10,MATCH($C119,'Efficiency Distributions'!$C$9:$C$87,0)+RIGHT($E124),0))\n/SUM(AK$10:AK$11)","v":0.34365766817586685},{"$f":"IF(INDEX(PC_MAPPING,RIGHT($C119,1),MATCH($E$2,'Data by Building Type'!$D$22:$F$22,0))=\"Yes\",1,0)*\n(AL$10*OFFSET('Efficiency Distributions'!$D$10,MATCH($C119,'Efficiency Distributions'!$C$9:$C$87,0)+RIGHT($E124),0)\n+AL$11*OFFSET('Efficiency Distributions'!$E$10,MATCH($C119,'Efficiency Distributions'!$C$9:$C$87,0)+RIGHT($E124),0))\n/SUM(AL$10:AL$11)","v":0.34433350569613558},{"$f":"IF(INDEX(PC_MAPPING,RIGHT($C119,1),MATCH($E$2,'Data by Building Type'!$D$22:$F$22,0))=\"Yes\",1,0)*\n(AM$10*OFFSET('Efficiency Distributions'!$D$10,MATCH($C119,'Efficiency Distributions'!$C$9:$C$87,0)+RIGHT($E124),0)\n+AM$11*OFFSET('Efficiency Distributions'!$E$10,MATCH($C119,'Efficiency Distributions'!$C$9:$C$87,0)+RIGHT($E124),0))\n/SUM(AM$10:AM$11)","v":0.36033046557002663},{"$f":"IF(INDEX(PC_MAPPING,RIGHT($C119,1),MATCH($E$2,'Data by Building Type'!$D$22:$F$22,0))=\"Yes\",1,0)*\n(AN$10*OFFSET('Efficiency Distributions'!$D$10,MATCH($C119,'Efficiency Distributions'!$C$9:$C$87,0)+RIGHT($E124),0)\n+AN$11*OFFSET('Efficiency Distributions'!$E$10,MATCH($C119,'Efficiency Distributions'!$C$9:$C$87,0)+RIGHT($E124),0))\n/SUM(AN$10:AN$11)","v":0.35951437618890425},{"$f":"IF(INDEX(PC_MAPPING,RIGHT($C119,1),MATCH($E$2,'Data by Building Type'!$D$22:$F$22,0))=\"Yes\",1,0)*\n(AO$10*OFFSET('Efficiency Distributions'!$D$10,MATCH($C119,'Efficiency Distributions'!$C$9:$C$87,0)+RIGHT($E124),0)\n+AO$11*OFFSET('Efficiency Distributions'!$E$10,MATCH($C119,'Efficiency Distributions'!$C$9:$C$87,0)+RIGHT($E124),0))\n/SUM(AO$10:AO$11)","v":0.36050870741978058},{"$f":"IF(INDEX(PC_MAPPING,RIGHT($C119,1),MATCH($E$2,'Data by Building Type'!$D$22:$F$22,0))=\"Yes\",1,0)*\n(AP$10*OFFSET('Efficiency Distributions'!$D$10,MATCH($C119,'Efficiency Distributions'!$C$9:$C$87,0)+RIGHT($E124),0)\n+AP$11*OFFSET('Efficiency Distributions'!$E$10,MATCH($C119,'Efficiency Distributions'!$C$9:$C$87,0)+RIGHT($E124),0))\n/SUM(AP$10:AP$11)","v":0.3625479590304399},{"$f":"IF(INDEX(PC_MAPPING,RIGHT($C119,1),MATCH($E$2,'Data by Building Type'!$D$22:$F$22,0))=\"Yes\",1,0)*\n(AQ$10*OFFSET('Efficiency Distributions'!$D$10,MATCH($C119,'Efficiency Distributions'!$C$9:$C$87,0)+RIGHT($E124),0)\n+AQ$11*OFFSET('Efficiency Distributions'!$E$10,MATCH($C119,'Efficiency Distributions'!$C$9:$C$87,0)+RIGHT($E124),0))\n/SUM(AQ$10:AQ$11)","v":0.36461948433124219},{"$f":"IF(INDEX(PC_MAPPING,RIGHT($C119,1),MATCH($E$2,'Data by Building Type'!$D$22:$F$22,0))=\"Yes\",1,0)*\n(AR$10*OFFSET('Efficiency Distributions'!$D$10,MATCH($C119,'Efficiency Distributions'!$C$9:$C$87,0)+RIGHT($E124),0)\n+AR$11*OFFSET('Efficiency Distributions'!$E$10,MATCH($C119,'Efficiency Distributions'!$C$9:$C$87,0)+RIGHT($E124),0))\n/SUM(AR$10:AR$11)","v":0.36418732032811379},{"$f":"IF(INDEX(PC_MAPPING,RIGHT($C119,1),MATCH($E$2,'Data by Building Type'!$D$22:$F$22,0))=\"Yes\",1,0)*\n(AS$10*OFFSET('Efficiency Distributions'!$D$10,MATCH($C119,'Efficiency Distributions'!$C$9:$C$87,0)+RIGHT($E124),0)\n+AS$11*OFFSET('Efficiency Distributions'!$E$10,MATCH($C119,'Efficiency Distributions'!$C$9:$C$87,0)+RIGHT($E124),0))\n/SUM(AS$10:AS$11)","v":0.37131175768365965},{"$f":"IF(INDEX(PC_MAPPING,RIGHT($C119,1),MATCH($E$2,'Data by Building Type'!$D$22:$F$22,0))=\"Yes\",1,0)*\n(AT$10*OFFSET('Efficiency Distributions'!$D$10,MATCH($C119,'Efficiency Distributions'!$C$9:$C$87,0)+RIGHT($E124),0)\n+AT$11*OFFSET('Efficiency Distributions'!$E$10,MATCH($C119,'Efficiency Distributions'!$C$9:$C$87,0)+RIGHT($E124),0))\n/SUM(AT$10:AT$11)","v":0.37884199105486488},{"$f":"IF(INDEX(PC_MAPPING,RIGHT($C119,1),MATCH($E$2,'Data by Building Type'!$D$22:$F$22,0))=\"Yes\",1,0)*\n(AU$10*OFFSET('Efficiency Distributions'!$D$10,MATCH($C119,'Efficiency Distributions'!$C$9:$C$87,0)+RIGHT($E124),0)\n+AU$11*OFFSET('Efficiency Distributions'!$E$10,MATCH($C119,'Efficiency Distributions'!$C$9:$C$87,0)+RIGHT($E124),0))\n/SUM(AU$10:AU$11)","v":0.38120213112112616},{"$f":"IF(INDEX(PC_MAPPING,RIGHT($C119,1),MATCH($E$2,'Data by Building Type'!$D$22:$F$22,0))=\"Yes\",1,0)*\n(AV$10*OFFSET('Efficiency Distributions'!$D$10,MATCH($C119,'Efficiency Distributions'!$C$9:$C$87,0)+RIGHT($E124),0)\n+AV$11*OFFSET('Efficiency Distributions'!$E$10,MATCH($C119,'Efficiency Distributions'!$C$9:$C$87,0)+RIGHT($E124),0))\n/SUM(AV$10:AV$11)","v":0.36436676115497363},{"$f":"IF(INDEX(PC_MAPPING,RIGHT($C119,1),MATCH($E$2,'Data by Building Type'!$D$22:$F$22,0))=\"Yes\",1,0)*\n(AW$10*OFFSET('Efficiency Distributions'!$D$10,MATCH($C119,'Efficiency Distributions'!$C$9:$C$87,0)+RIGHT($E124),0)\n+AW$11*OFFSET('Efficiency Distributions'!$E$10,MATCH($C119,'Efficiency Distributions'!$C$9:$C$87,0)+RIGHT($E124),0))\n/SUM(AW$10:AW$11)","v":0.36991632479902425},{"$f":"IF(INDEX(PC_MAPPING,RIGHT($C119,1),MATCH($E$2,'Data by Building Type'!$D$22:$F$22,0))=\"Yes\",1,0)*\n(AX$10*OFFSET('Efficiency Distributions'!$D$10,MATCH($C119,'Efficiency Distributions'!$C$9:$C$87,0)+RIGHT($E124),0)\n+AX$11*OFFSET('Efficiency Distributions'!$E$10,MATCH($C119,'Efficiency Distributions'!$C$9:$C$87,0)+RIGHT($E124),0))\n/SUM(AX$10:AX$11)","v":0.36688194316142597},{"$f":"IF(INDEX(PC_MAPPING,RIGHT($C119,1),MATCH($E$2,'Data by Building Type'!$D$22:$F$22,0))=\"Yes\",1,0)*\n(AY$10*OFFSET('Efficiency Distributions'!$D$10,MATCH($C119,'Efficiency Distributions'!$C$9:$C$87,0)+RIGHT($E124),0)\n+AY$11*OFFSET('Efficiency Distributions'!$E$10,MATCH($C119,'Efficiency Distributions'!$C$9:$C$87,0)+RIGHT($E124),0))\n/SUM(AY$10:AY$11)","v":0.36177952370943833},{"$f":"IF(INDEX(PC_MAPPING,RIGHT($C119,1),MATCH($E$2,'Data by Building Type'!$D$22:$F$22,0))=\"Yes\",1,0)*\n(AZ$10*OFFSET('Efficiency Distributions'!$D$10,MATCH($C119,'Efficiency Distributions'!$C$9:$C$87,0)+RIGHT($E124),0)\n+AZ$11*OFFSET('Efficiency Distributions'!$E$10,MATCH($C119,'Efficiency Distributions'!$C$9:$C$87,0)+RIGHT($E124),0))\n/SUM(AZ$10:AZ$11)","v":0.35462041154661206},{"$f":"IF(INDEX(PC_MAPPING,RIGHT($C119,1),MATCH($E$2,'Data by Building Type'!$D$22:$F$22,0))=\"Yes\",1,0)*\n(BA$10*OFFSET('Efficiency Distributions'!$D$10,MATCH($C119,'Efficiency Distributions'!$C$9:$C$87,0)+RIGHT($E124),0)\n+BA$11*OFFSET('Efficiency Distributions'!$E$10,MATCH($C119,'Efficiency Distributions'!$C$9:$C$87,0)+RIGHT($E124),0))\n/SUM(BA$10:BA$11)","v":0.3576052889885119},{"$f":"IF(INDEX(PC_MAPPING,RIGHT($C119,1),MATCH($E$2,'Data by Building Type'!$D$22:$F$22,0))=\"Yes\",1,0)*\n(BB$10*OFFSET('Efficiency Distributions'!$D$10,MATCH($C119,'Efficiency Distributions'!$C$9:$C$87,0)+RIGHT($E124),0)\n+BB$11*OFFSET('Efficiency Distributions'!$E$10,MATCH($C119,'Efficiency Distributions'!$C$9:$C$87,0)+RIGHT($E124),0))\n/SUM(BB$10:BB$11)","v":0.35878969939949695},{"$f":"IF(INDEX(PC_MAPPING,RIGHT($C119,1),MATCH($E$2,'Data by Building Type'!$D$22:$F$22,0))=\"Yes\",1,0)*\n(BC$10*OFFSET('Efficiency Distributions'!$D$10,MATCH($C119,'Efficiency Distributions'!$C$9:$C$87,0)+RIGHT($E124),0)\n+BC$11*OFFSET('Efficiency Distributions'!$E$10,MATCH($C119,'Efficiency Distributions'!$C$9:$C$87,0)+RIGHT($E124),0))\n/SUM(BC$10:BC$11)","v":0.35801409380845733},{"$f":"IF(INDEX(PC_MAPPING,RIGHT($C119,1),MATCH($E$2,'Data by Building Type'!$D$22:$F$22,0))=\"Yes\",1,0)*\n(BD$10*OFFSET('Efficiency Distributions'!$D$10,MATCH($C119,'Efficiency Distributions'!$C$9:$C$87,0)+RIGHT($E124),0)\n+BD$11*OFFSET('Efficiency Distributions'!$E$10,MATCH($C119,'Efficiency Distributions'!$C$9:$C$87,0)+RIGHT($E124),0))\n/SUM(BD$10:BD$11)","v":0.35312936497223596},{"$f":"IF(INDEX(PC_MAPPING,RIGHT($C119,1),MATCH($E$2,'Data by Building Type'!$D$22:$F$22,0))=\"Yes\",1,0)*\n(BE$10*OFFSET('Efficiency Distributions'!$D$10,MATCH($C119,'Efficiency Distributions'!$C$9:$C$87,0)+RIGHT($E124),0)\n+BE$11*OFFSET('Efficiency Distributions'!$E$10,MATCH($C119,'Efficiency Distributions'!$C$9:$C$87,0)+RIGHT($E124),0))\n/SUM(BE$10:BE$11)","v":0.35593739066330438},{"$f":"IF(INDEX(PC_MAPPING,RIGHT($C119,1),MATCH($E$2,'Data by Building Type'!$D$22:$F$22,0))=\"Yes\",1,0)*\n(BF$10*OFFSET('Efficiency Distributions'!$D$10,MATCH($C119,'Efficiency Distributions'!$C$9:$C$87,0)+RIGHT($E124),0)\n+BF$11*OFFSET('Efficiency Distributions'!$E$10,MATCH($C119,'Efficiency Distributions'!$C$9:$C$87,0)+RIGHT($E124),0))\n/SUM(BF$10:BF$11)","v":0.34683674924409141},{"$f":"IF(INDEX(PC_MAPPING,RIGHT($C119,1),MATCH($E$2,'Data by Building Type'!$D$22:$F$22,0))=\"Yes\",1,0)*\n(BG$10*OFFSET('Efficiency Distributions'!$D$10,MATCH($C119,'Efficiency Distributions'!$C$9:$C$87,0)+RIGHT($E124),0)\n+BG$11*OFFSET('Efficiency Distributions'!$E$10,MATCH($C119,'Efficiency Distributions'!$C$9:$C$87,0)+RIGHT($E124),0))\n/SUM(BG$10:BG$11)","v":0.34674679122223101}]
[null,null,null,null,"EL2",{"$f":"IF(INDEX(PC_MAPPING,RIGHT($C119,1),MATCH($E$2,'Data by Building Type'!$D$22:$F$22,0))=\"Yes\",1,0)*\n(F$10*OFFSET('Efficiency Distributions'!$D$10,MATCH($C119,'Efficiency Distributions'!$C$9:$C$87,0)+RIGHT($E125),0)\n+F$11*OFFSET('Efficiency Distributions'!$E$10,MATCH($C119,'Efficiency Distributions'!$C$9:$C$87,0)+RIGHT($E125),0))\n/SUM(F$10:F$11)","v":0},{"$f":"IF(INDEX(PC_MAPPING,RIGHT($C119,1),MATCH($E$2,'Data by Building Type'!$D$22:$F$22,0))=\"Yes\",1,0)*\n(G$10*OFFSET('Efficiency Distributions'!$D$10,MATCH($C119,'Efficiency Distributions'!$C$9:$C$87,0)+RIGHT($E125),0)\n+G$11*OFFSET('Efficiency Distributions'!$E$10,MATCH($C119,'Efficiency Distributions'!$C$9:$C$87,0)+RIGHT($E125),0))\n/SUM(G$10:G$11)","v":0},{"$f":"IF(INDEX(PC_MAPPING,RIGHT($C119,1),MATCH($E$2,'Data by Building Type'!$D$22:$F$22,0))=\"Yes\",1,0)*\n(H$10*OFFSET('Efficiency Distributions'!$D$10,MATCH($C119,'Efficiency Distributions'!$C$9:$C$87,0)+RIGHT($E125),0)\n+H$11*OFFSET('Efficiency Distributions'!$E$10,MATCH($C119,'Efficiency Distributions'!$C$9:$C$87,0)+RIGHT($E125),0))\n/SUM(H$10:H$11)","v":0},{"$f":"IF(INDEX(PC_MAPPING,RIGHT($C119,1),MATCH($E$2,'Data by Building Type'!$D$22:$F$22,0))=\"Yes\",1,0)*\n(I$10*OFFSET('Efficiency Distributions'!$D$10,MATCH($C119,'Efficiency Distributions'!$C$9:$C$87,0)+RIGHT($E125),0)\n+I$11*OFFSET('Efficiency Distributions'!$E$10,MATCH($C119,'Efficiency Distributions'!$C$9:$C$87,0)+RIGHT($E125),0))\n/SUM(I$10:I$11)","v":0},{"$f":"IF(INDEX(PC_MAPPING,RIGHT($C119,1),MATCH($E$2,'Data by Building Type'!$D$22:$F$22,0))=\"Yes\",1,0)*\n(J$10*OFFSET('Efficiency Distributions'!$D$10,MATCH($C119,'Efficiency Distributions'!$C$9:$C$87,0)+RIGHT($E125),0)\n+J$11*OFFSET('Efficiency Distributions'!$E$10,MATCH($C119,'Efficiency Distributions'!$C$9:$C$87,0)+RIGHT($E125),0))\n/SUM(J$10:J$11)","v":0},{"$f":"IF(INDEX(PC_MAPPING,RIGHT($C119,1),MATCH($E$2,'Data by Building Type'!$D$22:$F$22,0))=\"Yes\",1,0)*\n(K$10*OFFSET('Efficiency Distributions'!$D$10,MATCH($C119,'Efficiency Distributions'!$C$9:$C$87,0)+RIGHT($E125),0)\n+K$11*OFFSET('Efficiency Distributions'!$E$10,MATCH($C119,'Efficiency Distributions'!$C$9:$C$87,0)+RIGHT($E125),0))\n/SUM(K$10:K$11)","v":0},{"$f":"IF(INDEX(PC_MAPPING,RIGHT($C119,1),MATCH($E$2,'Data by Building Type'!$D$22:$F$22,0))=\"Yes\",1,0)*\n(L$10*OFFSET('Efficiency Distributions'!$D$10,MATCH($C119,'Efficiency Distributions'!$C$9:$C$87,0)+RIGHT($E125),0)\n+L$11*OFFSET('Efficiency Distributions'!$E$10,MATCH($C119,'Efficiency Distributions'!$C$9:$C$87,0)+RIGHT($E125),0))\n/SUM(L$10:L$11)","v":0},{"$f":"IF(INDEX(PC_MAPPING,RIGHT($C119,1),MATCH($E$2,'Data by Building Type'!$D$22:$F$22,0))=\"Yes\",1,0)*\n(M$10*OFFSET('Efficiency Distributions'!$D$10,MATCH($C119,'Efficiency Distributions'!$C$9:$C$87,0)+RIGHT($E125),0)\n+M$11*OFFSET('Efficiency Distributions'!$E$10,MATCH($C119,'Efficiency Distributions'!$C$9:$C$87,0)+RIGHT($E125),0))\n/SUM(M$10:M$11)","v":0},{"$f":"IF(INDEX(PC_MAPPING,RIGHT($C119,1),MATCH($E$2,'Data by Building Type'!$D$22:$F$22,0))=\"Yes\",1,0)*\n(N$10*OFFSET('Efficiency Distributions'!$D$10,MATCH($C119,'Efficiency Distributions'!$C$9:$C$87,0)+RIGHT($E125),0)\n+N$11*OFFSET('Efficiency Distributions'!$E$10,MATCH($C119,'Efficiency Distributions'!$C$9:$C$87,0)+RIGHT($E125),0))\n/SUM(N$10:N$11)","v":0},{"$f":"IF(INDEX(PC_MAPPING,RIGHT($C119,1),MATCH($E$2,'Data by Building Type'!$D$22:$F$22,0))=\"Yes\",1,0)*\n(O$10*OFFSET('Efficiency Distributions'!$D$10,MATCH($C119,'Efficiency Distributions'!$C$9:$C$87,0)+RIGHT($E125),0)\n+O$11*OFFSET('Efficiency Distributions'!$E$10,MATCH($C119,'Efficiency Distributions'!$C$9:$C$87,0)+RIGHT($E125),0))\n/SUM(O$10:O$11)","v":0},{"$f":"IF(INDEX(PC_MAPPING,RIGHT($C119,1),MATCH($E$2,'Data by Building Type'!$D$22:$F$22,0))=\"Yes\",1,0)*\n(P$10*OFFSET('Efficiency Distributions'!$D$10,MATCH($C119,'Efficiency Distributions'!$C$9:$C$87,0)+RIGHT($E125),0)\n+P$11*OFFSET('Efficiency Distributions'!$E$10,MATCH($C119,'Efficiency Distributions'!$C$9:$C$87,0)+RIGHT($E125),0))\n/SUM(P$10:P$11)","v":0},{"$f":"IF(INDEX(PC_MAPPING,RIGHT($C119,1),MATCH($E$2,'Data by Building Type'!$D$22:$F$22,0))=\"Yes\",1,0)*\n(Q$10*OFFSET('Efficiency Distributions'!$D$10,MATCH($C119,'Efficiency Distributions'!$C$9:$C$87,0)+RIGHT($E125),0)\n+Q$11*OFFSET('Efficiency Distributions'!$E$10,MATCH($C119,'Efficiency Distributions'!$C$9:$C$87,0)+RIGHT($E125),0))\n/SUM(Q$10:Q$11)","v":0},{"$f":"IF(INDEX(PC_MAPPING,RIGHT($C119,1),MATCH($E$2,'Data by Building Type'!$D$22:$F$22,0))=\"Yes\",1,0)*\n(R$10*OFFSET('Efficiency Distributions'!$D$10,MATCH($C119,'Efficiency Distributions'!$C$9:$C$87,0)+RIGHT($E125),0)\n+R$11*OFFSET('Efficiency Distributions'!$E$10,MATCH($C119,'Efficiency Distributions'!$C$9:$C$87,0)+RIGHT($E125),0))\n/SUM(R$10:R$11)","v":0},{"$f":"IF(INDEX(PC_MAPPING,RIGHT($C119,1),MATCH($E$2,'Data by Building Type'!$D$22:$F$22,0))=\"Yes\",1,0)*\n(S$10*OFFSET('Efficiency Distributions'!$D$10,MATCH($C119,'Efficiency Distributions'!$C$9:$C$87,0)+RIGHT($E125),0)\n+S$11*OFFSET('Efficiency Distributions'!$E$10,MATCH($C119,'Efficiency Distributions'!$C$9:$C$87,0)+RIGHT($E125),0))\n/SUM(S$10:S$11)","v":0},{"$f":"IF(INDEX(PC_MAPPING,RIGHT($C119,1),MATCH($E$2,'Data by Building Type'!$D$22:$F$22,0))=\"Yes\",1,0)*\n(T$10*OFFSET('Efficiency Distributions'!$D$10,MATCH($C119,'Efficiency Distributions'!$C$9:$C$87,0)+RIGHT($E125),0)\n+T$11*OFFSET('Efficiency Distributions'!$E$10,MATCH($C119,'Efficiency Distributions'!$C$9:$C$87,0)+RIGHT($E125),0))\n/SUM(T$10:T$11)","v":0},{"$f":"IF(INDEX(PC_MAPPING,RIGHT($C119,1),MATCH($E$2,'Data by Building Type'!$D$22:$F$22,0))=\"Yes\",1,0)*\n(U$10*OFFSET('Efficiency Distributions'!$D$10,MATCH($C119,'Efficiency Distributions'!$C$9:$C$87,0)+RIGHT($E125),0)\n+U$11*OFFSET('Efficiency Distributions'!$E$10,MATCH($C119,'Efficiency Distributions'!$C$9:$C$87,0)+RIGHT($E125),0))\n/SUM(U$10:U$11)","v":0},{"$f":"IF(INDEX(PC_MAPPING,RIGHT($C119,1),MATCH($E$2,'Data by Building Type'!$D$22:$F$22,0))=\"Yes\",1,0)*\n(V$10*OFFSET('Efficiency Distributions'!$D$10,MATCH($C119,'Efficiency Distributions'!$C$9:$C$87,0)+RIGHT($E125),0)\n+V$11*OFFSET('Efficiency Distributions'!$E$10,MATCH($C119,'Efficiency Distributions'!$C$9:$C$87,0)+RIGHT($E125),0))\n/SUM(V$10:V$11)","v":0},{"$f":"IF(INDEX(PC_MAPPING,RIGHT($C119,1),MATCH($E$2,'Data by Building Type'!$D$22:$F$22,0))=\"Yes\",1,0)*\n(W$10*OFFSET('Efficiency Distributions'!$D$10,MATCH($C119,'Efficiency Distributions'!$C$9:$C$87,0)+RIGHT($E125),0)\n+W$11*OFFSET('Efficiency Distributions'!$E$10,MATCH($C119,'Efficiency Distributions'!$C$9:$C$87,0)+RIGHT($E125),0))\n/SUM(W$10:W$11)","v":0},{"$f":"IF(INDEX(PC_MAPPING,RIGHT($C119,1),MATCH($E$2,'Data by Building Type'!$D$22:$F$22,0))=\"Yes\",1,0)*\n(X$10*OFFSET('Efficiency Distributions'!$D$10,MATCH($C119,'Efficiency Distributions'!$C$9:$C$87,0)+RIGHT($E125),0)\n+X$11*OFFSET('Efficiency Distributions'!$E$10,MATCH($C119,'Efficiency Distributions'!$C$9:$C$87,0)+RIGHT($E125),0))\n/SUM(X$10:X$11)","v":0},{"$f":"IF(INDEX(PC_MAPPING,RIGHT($C119,1),MATCH($E$2,'Data by Building Type'!$D$22:$F$22,0))=\"Yes\",1,0)*\n(Y$10*OFFSET('Efficiency Distributions'!$D$10,MATCH($C119,'Efficiency Distributions'!$C$9:$C$87,0)+RIGHT($E125),0)\n+Y$11*OFFSET('Efficiency Distributions'!$E$10,MATCH($C119,'Efficiency Distributions'!$C$9:$C$87,0)+RIGHT($E125),0))\n/SUM(Y$10:Y$11)","v":0},{"$f":"IF(INDEX(PC_MAPPING,RIGHT($C119,1),MATCH($E$2,'Data by Building Type'!$D$22:$F$22,0))=\"Yes\",1,0)*\n(Z$10*OFFSET('Efficiency Distributions'!$D$10,MATCH($C119,'Efficiency Distributions'!$C$9:$C$87,0)+RIGHT($E125),0)\n+Z$11*OFFSET('Efficiency Distributions'!$E$10,MATCH($C119,'Efficiency Distributions'!$C$9:$C$87,0)+RIGHT($E125),0))\n/SUM(Z$10:Z$11)","v":0},{"$f":"IF(INDEX(PC_MAPPING,RIGHT($C119,1),MATCH($E$2,'Data by Building Type'!$D$22:$F$22,0))=\"Yes\",1,0)*\n(AA$10*OFFSET('Efficiency Distributions'!$D$10,MATCH($C119,'Efficiency Distributions'!$C$9:$C$87,0)+RIGHT($E125),0)\n+AA$11*OFFSET('Efficiency Distributions'!$E$10,MATCH($C119,'Efficiency Distributions'!$C$9:$C$87,0)+RIGHT($E125),0))\n/SUM(AA$10:AA$11)","v":0},{"$f":"IF(INDEX(PC_MAPPING,RIGHT($C119,1),MATCH($E$2,'Data by Building Type'!$D$22:$F$22,0))=\"Yes\",1,0)*\n(AB$10*OFFSET('Efficiency Distributions'!$D$10,MATCH($C119,'Efficiency Distributions'!$C$9:$C$87,0)+RIGHT($E125),0)\n+AB$11*OFFSET('Efficiency Distributions'!$E$10,MATCH($C119,'Efficiency Distributions'!$C$9:$C$87,0)+RIGHT($E125),0))\n/SUM(AB$10:AB$11)","v":0},{"$f":"IF(INDEX(PC_MAPPING,RIGHT($C119,1),MATCH($E$2,'Data by Building Type'!$D$22:$F$22,0))=\"Yes\",1,0)*\n(AC$10*OFFSET('Efficiency Distributions'!$D$10,MATCH($C119,'Efficiency Distributions'!$C$9:$C$87,0)+RIGHT($E125),0)\n+AC$11*OFFSET('Efficiency Distributions'!$E$10,MATCH($C119,'Efficiency Distributions'!$C$9:$C$87,0)+RIGHT($E125),0))\n/SUM(AC$10:AC$11)","v":0},{"$f":"IF(INDEX(PC_MAPPING,RIGHT($C119,1),MATCH($E$2,'Data by Building Type'!$D$22:$F$22,0))=\"Yes\",1,0)*\n(AD$10*OFFSET('Efficiency Distributions'!$D$10,MATCH($C119,'Efficiency Distributions'!$C$9:$C$87,0)+RIGHT($E125),0)\n+AD$11*OFFSET('Efficiency Distributions'!$E$10,MATCH($C119,'Efficiency Distributions'!$C$9:$C$87,0)+RIGHT($E125),0))\n/SUM(AD$10:AD$11)","v":0},{"$f":"IF(INDEX(PC_MAPPING,RIGHT($C119,1),MATCH($E$2,'Data by Building Type'!$D$22:$F$22,0))=\"Yes\",1,0)*\n(AE$10*OFFSET('Efficiency Distributions'!$D$10,MATCH($C119,'Efficiency Distributions'!$C$9:$C$87,0)+RIGHT($E125),0)\n+AE$11*OFFSET('Efficiency Distributions'!$E$10,MATCH($C119,'Efficiency Distributions'!$C$9:$C$87,0)+RIGHT($E125),0))\n/SUM(AE$10:AE$11)","v":0},{"$f":"IF(INDEX(PC_MAPPING,RIGHT($C119,1),MATCH($E$2,'Data by Building Type'!$D$22:$F$22,0))=\"Yes\",1,0)*\n(AF$10*OFFSET('Efficiency Distributions'!$D$10,MATCH($C119,'Efficiency Distributions'!$C$9:$C$87,0)+RIGHT($E125),0)\n+AF$11*OFFSET('Efficiency Distributions'!$E$10,MATCH($C119,'Efficiency Distributions'!$C$9:$C$87,0)+RIGHT($E125),0))\n/SUM(AF$10:AF$11)","v":0},{"$f":"IF(INDEX(PC_MAPPING,RIGHT($C119,1),MATCH($E$2,'Data by Building Type'!$D$22:$F$22,0))=\"Yes\",1,0)*\n(AG$10*OFFSET('Efficiency Distributions'!$D$10,MATCH($C119,'Efficiency Distributions'!$C$9:$C$87,0)+RIGHT($E125),0)\n+AG$11*OFFSET('Efficiency Distributions'!$E$10,MATCH($C119,'Efficiency Distributions'!$C$9:$C$87,0)+RIGHT($E125),0))\n/SUM(AG$10:AG$11)","v":0},{"$f":"IF(INDEX(PC_MAPPING,RIGHT($C119,1),MATCH($E$2,'Data by Building Type'!$D$22:$F$22,0))=\"Yes\",1,0)*\n(AH$10*OFFSET('Efficiency Distributions'!$D$10,MATCH($C119,'Efficiency Distributions'!$C$9:$C$87,0)+RIGHT($E125),0)\n+AH$11*OFFSET('Efficiency Distributions'!$E$10,MATCH($C119,'Efficiency Distributions'!$C$9:$C$87,0)+RIGHT($E125),0))\n/SUM(AH$10:AH$11)","v":0},{"$f":"IF(INDEX(PC_MAPPING,RIGHT($C119,1),MATCH($E$2,'Data by Building Type'!$D$22:$F$22,0))=\"Yes\",1,0)*\n(AI$10*OFFSET('Efficiency Distributions'!$D$10,MATCH($C119,'Efficiency Distributions'!$C$9:$C$87,0)+RIGHT($E125),0)\n+AI$11*OFFSET('Efficiency Distributions'!$E$10,MATCH($C119,'Efficiency Distributions'!$C$9:$C$87,0)+RIGHT($E125),0))\n/SUM(AI$10:AI$11)","v":0},{"$f":"IF(INDEX(PC_MAPPING,RIGHT($C119,1),MATCH($E$2,'Data by Building Type'!$D$22:$F$22,0))=\"Yes\",1,0)*\n(AJ$10*OFFSET('Efficiency Distributions'!$D$10,MATCH($C119,'Efficiency Distributions'!$C$9:$C$87,0)+RIGHT($E125),0)\n+AJ$11*OFFSET('Efficiency Distributions'!$E$10,MATCH($C119,'Efficiency Distributions'!$C$9:$C$87,0)+RIGHT($E125),0))\n/SUM(AJ$10:AJ$11)","v":0},{"$f":"IF(INDEX(PC_MAPPING,RIGHT($C119,1),MATCH($E$2,'Data by Building Type'!$D$22:$F$22,0))=\"Yes\",1,0)*\n(AK$10*OFFSET('Efficiency Distributions'!$D$10,MATCH($C119,'Efficiency Distributions'!$C$9:$C$87,0)+RIGHT($E125),0)\n+AK$11*OFFSET('Efficiency Distributions'!$E$10,MATCH($C119,'Efficiency Distributions'!$C$9:$C$87,0)+RIGHT($E125),0))\n/SUM(AK$10:AK$11)","v":0},{"$f":"IF(INDEX(PC_MAPPING,RIGHT($C119,1),MATCH($E$2,'Data by Building Type'!$D$22:$F$22,0))=\"Yes\",1,0)*\n(AL$10*OFFSET('Efficiency Distributions'!$D$10,MATCH($C119,'Efficiency Distributions'!$C$9:$C$87,0)+RIGHT($E125),0)\n+AL$11*OFFSET('Efficiency Distributions'!$E$10,MATCH($C119,'Efficiency Distributions'!$C$9:$C$87,0)+RIGHT($E125),0))\n/SUM(AL$10:AL$11)","v":0},{"$f":"IF(INDEX(PC_MAPPING,RIGHT($C119,1),MATCH($E$2,'Data by Building Type'!$D$22:$F$22,0))=\"Yes\",1,0)*\n(AM$10*OFFSET('Efficiency Distributions'!$D$10,MATCH($C119,'Efficiency Distributions'!$C$9:$C$87,0)+RIGHT($E125),0)\n+AM$11*OFFSET('Efficiency Distributions'!$E$10,MATCH($C119,'Efficiency Distributions'!$C$9:$C$87,0)+RIGHT($E125),0))\n/SUM(AM$10:AM$11)","v":0},{"$f":"IF(INDEX(PC_MAPPING,RIGHT($C119,1),MATCH($E$2,'Data by Building Type'!$D$22:$F$22,0))=\"Yes\",1,0)*\n(AN$10*OFFSET('Efficiency Distributions'!$D$10,MATCH($C119,'Efficiency Distributions'!$C$9:$C$87,0)+RIGHT($E125),0)\n+AN$11*OFFSET('Efficiency Distributions'!$E$10,MATCH($C119,'Efficiency Distributions'!$C$9:$C$87,0)+RIGHT($E125),0))\n/SUM(AN$10:AN$11)","v":0},{"$f":"IF(INDEX(PC_MAPPING,RIGHT($C119,1),MATCH($E$2,'Data by Building Type'!$D$22:$F$22,0))=\"Yes\",1,0)*\n(AO$10*OFFSET('Efficiency Distributions'!$D$10,MATCH($C119,'Efficiency Distributions'!$C$9:$C$87,0)+RIGHT($E125),0)\n+AO$11*OFFSET('Efficiency Distributions'!$E$10,MATCH($C119,'Efficiency Distributions'!$C$9:$C$87,0)+RIGHT($E125),0))\n/SUM(AO$10:AO$11)","v":0},{"$f":"IF(INDEX(PC_MAPPING,RIGHT($C119,1),MATCH($E$2,'Data by Building Type'!$D$22:$F$22,0))=\"Yes\",1,0)*\n(AP$10*OFFSET('Efficiency Distributions'!$D$10,MATCH($C119,'Efficiency Distributions'!$C$9:$C$87,0)+RIGHT($E125),0)\n+AP$11*OFFSET('Efficiency Distributions'!$E$10,MATCH($C119,'Efficiency Distributions'!$C$9:$C$87,0)+RIGHT($E125),0))\n/SUM(AP$10:AP$11)","v":0},{"$f":"IF(INDEX(PC_MAPPING,RIGHT($C119,1),MATCH($E$2,'Data by Building Type'!$D$22:$F$22,0))=\"Yes\",1,0)*\n(AQ$10*OFFSET('Efficiency Distributions'!$D$10,MATCH($C119,'Efficiency Distributions'!$C$9:$C$87,0)+RIGHT($E125),0)\n+AQ$11*OFFSET('Efficiency Distributions'!$E$10,MATCH($C119,'Efficiency Distributions'!$C$9:$C$87,0)+RIGHT($E125),0))\n/SUM(AQ$10:AQ$11)","v":0},{"$f":"IF(INDEX(PC_MAPPING,RIGHT($C119,1),MATCH($E$2,'Data by Building Type'!$D$22:$F$22,0))=\"Yes\",1,0)*\n(AR$10*OFFSET('Efficiency Distributions'!$D$10,MATCH($C119,'Efficiency Distributions'!$C$9:$C$87,0)+RIGHT($E125),0)\n+AR$11*OFFSET('Efficiency Distributions'!$E$10,MATCH($C119,'Efficiency Distributions'!$C$9:$C$87,0)+RIGHT($E125),0))\n/SUM(AR$10:AR$11)","v":0},{"$f":"IF(INDEX(PC_MAPPING,RIGHT($C119,1),MATCH($E$2,'Data by Building Type'!$D$22:$F$22,0))=\"Yes\",1,0)*\n(AS$10*OFFSET('Efficiency Distributions'!$D$10,MATCH($C119,'Efficiency Distributions'!$C$9:$C$87,0)+RIGHT($E125),0)\n+AS$11*OFFSET('Efficiency Distributions'!$E$10,MATCH($C119,'Efficiency Distributions'!$C$9:$C$87,0)+RIGHT($E125),0))\n/SUM(AS$10:AS$11)","v":0},{"$f":"IF(INDEX(PC_MAPPING,RIGHT($C119,1),MATCH($E$2,'Data by Building Type'!$D$22:$F$22,0))=\"Yes\",1,0)*\n(AT$10*OFFSET('Efficiency Distributions'!$D$10,MATCH($C119,'Efficiency Distributions'!$C$9:$C$87,0)+RIGHT($E125),0)\n+AT$11*OFFSET('Efficiency Distributions'!$E$10,MATCH($C119,'Efficiency Distributions'!$C$9:$C$87,0)+RIGHT($E125),0))\n/SUM(AT$10:AT$11)","v":0},{"$f":"IF(INDEX(PC_MAPPING,RIGHT($C119,1),MATCH($E$2,'Data by Building Type'!$D$22:$F$22,0))=\"Yes\",1,0)*\n(AU$10*OFFSET('Efficiency Distributions'!$D$10,MATCH($C119,'Efficiency Distributions'!$C$9:$C$87,0)+RIGHT($E125),0)\n+AU$11*OFFSET('Efficiency Distributions'!$E$10,MATCH($C119,'Efficiency Distributions'!$C$9:$C$87,0)+RIGHT($E125),0))\n/SUM(AU$10:AU$11)","v":0},{"$f":"IF(INDEX(PC_MAPPING,RIGHT($C119,1),MATCH($E$2,'Data by Building Type'!$D$22:$F$22,0))=\"Yes\",1,0)*\n(AV$10*OFFSET('Efficiency Distributions'!$D$10,MATCH($C119,'Efficiency Distributions'!$C$9:$C$87,0)+RIGHT($E125),0)\n+AV$11*OFFSET('Efficiency Distributions'!$E$10,MATCH($C119,'Efficiency Distributions'!$C$9:$C$87,0)+RIGHT($E125),0))\n/SUM(AV$10:AV$11)","v":0},{"$f":"IF(INDEX(PC_MAPPING,RIGHT($C119,1),MATCH($E$2,'Data by Building Type'!$D$22:$F$22,0))=\"Yes\",1,0)*\n(AW$10*OFFSET('Efficiency Distributions'!$D$10,MATCH($C119,'Efficiency Distributions'!$C$9:$C$87,0)+RIGHT($E125),0)\n+AW$11*OFFSET('Efficiency Distributions'!$E$10,MATCH($C119,'Efficiency Distributions'!$C$9:$C$87,0)+RIGHT($E125),0))\n/SUM(AW$10:AW$11)","v":0},{"$f":"IF(INDEX(PC_MAPPING,RIGHT($C119,1),MATCH($E$2,'Data by Building Type'!$D$22:$F$22,0))=\"Yes\",1,0)*\n(AX$10*OFFSET('Efficiency Distributions'!$D$10,MATCH($C119,'Efficiency Distributions'!$C$9:$C$87,0)+RIGHT($E125),0)\n+AX$11*OFFSET('Efficiency Distributions'!$E$10,MATCH($C119,'Efficiency Distributions'!$C$9:$C$87,0)+RIGHT($E125),0))\n/SUM(AX$10:AX$11)","v":0},{"$f":"IF(INDEX(PC_MAPPING,RIGHT($C119,1),MATCH($E$2,'Data by Building Type'!$D$22:$F$22,0))=\"Yes\",1,0)*\n(AY$10*OFFSET('Efficiency Distributions'!$D$10,MATCH($C119,'Efficiency Distributions'!$C$9:$C$87,0)+RIGHT($E125),0)\n+AY$11*OFFSET('Efficiency Distributions'!$E$10,MATCH($C119,'Efficiency Distributions'!$C$9:$C$87,0)+RIGHT($E125),0))\n/SUM(AY$10:AY$11)","v":0},{"$f":"IF(INDEX(PC_MAPPING,RIGHT($C119,1),MATCH($E$2,'Data by Building Type'!$D$22:$F$22,0))=\"Yes\",1,0)*\n(AZ$10*OFFSET('Efficiency Distributions'!$D$10,MATCH($C119,'Efficiency Distributions'!$C$9:$C$87,0)+RIGHT($E125),0)\n+AZ$11*OFFSET('Efficiency Distributions'!$E$10,MATCH($C119,'Efficiency Distributions'!$C$9:$C$87,0)+RIGHT($E125),0))\n/SUM(AZ$10:AZ$11)","v":0},{"$f":"IF(INDEX(PC_MAPPING,RIGHT($C119,1),MATCH($E$2,'Data by Building Type'!$D$22:$F$22,0))=\"Yes\",1,0)*\n(BA$10*OFFSET('Efficiency Distributions'!$D$10,MATCH($C119,'Efficiency Distributions'!$C$9:$C$87,0)+RIGHT($E125),0)\n+BA$11*OFFSET('Efficiency Distributions'!$E$10,MATCH($C119,'Efficiency Distributions'!$C$9:$C$87,0)+RIGHT($E125),0))\n/SUM(BA$10:BA$11)","v":0},{"$f":"IF(INDEX(PC_MAPPING,RIGHT($C119,1),MATCH($E$2,'Data by Building Type'!$D$22:$F$22,0))=\"Yes\",1,0)*\n(BB$10*OFFSET('Efficiency Distributions'!$D$10,MATCH($C119,'Efficiency Distributions'!$C$9:$C$87,0)+RIGHT($E125),0)\n+BB$11*OFFSET('Efficiency Distributions'!$E$10,MATCH($C119,'Efficiency Distributions'!$C$9:$C$87,0)+RIGHT($E125),0))\n/SUM(BB$10:BB$11)","v":0},{"$f":"IF(INDEX(PC_MAPPING,RIGHT($C119,1),MATCH($E$2,'Data by Building Type'!$D$22:$F$22,0))=\"Yes\",1,0)*\n(BC$10*OFFSET('Efficiency Distributions'!$D$10,MATCH($C119,'Efficiency Distributions'!$C$9:$C$87,0)+RIGHT($E125),0)\n+BC$11*OFFSET('Efficiency Distributions'!$E$10,MATCH($C119,'Efficiency Distributions'!$C$9:$C$87,0)+RIGHT($E125),0))\n/SUM(BC$10:BC$11)","v":0},{"$f":"IF(INDEX(PC_MAPPING,RIGHT($C119,1),MATCH($E$2,'Data by Building Type'!$D$22:$F$22,0))=\"Yes\",1,0)*\n(BD$10*OFFSET('Efficiency Distributions'!$D$10,MATCH($C119,'Efficiency Distributions'!$C$9:$C$87,0)+RIGHT($E125),0)\n+BD$11*OFFSET('Efficiency Distributions'!$E$10,MATCH($C119,'Efficiency Distributions'!$C$9:$C$87,0)+RIGHT($E125),0))\n/SUM(BD$10:BD$11)","v":0},{"$f":"IF(INDEX(PC_MAPPING,RIGHT($C119,1),MATCH($E$2,'Data by Building Type'!$D$22:$F$22,0))=\"Yes\",1,0)*\n(BE$10*OFFSET('Efficiency Distributions'!$D$10,MATCH($C119,'Efficiency Distributions'!$C$9:$C$87,0)+RIGHT($E125),0)\n+BE$11*OFFSET('Efficiency Distributions'!$E$10,MATCH($C119,'Efficiency Distributions'!$C$9:$C$87,0)+RIGHT($E125),0))\n/SUM(BE$10:BE$11)","v":0},{"$f":"IF(INDEX(PC_MAPPING,RIGHT($C119,1),MATCH($E$2,'Data by Building Type'!$D$22:$F$22,0))=\"Yes\",1,0)*\n(BF$10*OFFSET('Efficiency Distributions'!$D$10,MATCH($C119,'Efficiency Distributions'!$C$9:$C$87,0)+RIGHT($E125),0)\n+BF$11*OFFSET('Efficiency Distributions'!$E$10,MATCH($C119,'Efficiency Distributions'!$C$9:$C$87,0)+RIGHT($E125),0))\n/SUM(BF$10:BF$11)","v":0},{"$f":"IF(INDEX(PC_MAPPING,RIGHT($C119,1),MATCH($E$2,'Data by Building Type'!$D$22:$F$22,0))=\"Yes\",1,0)*\n(BG$10*OFFSET('Efficiency Distributions'!$D$10,MATCH($C119,'Efficiency Distributions'!$C$9:$C$87,0)+RIGHT($E125),0)\n+BG$11*OFFSET('Efficiency Distributions'!$E$10,MATCH($C119,'Efficiency Distributions'!$C$9:$C$87,0)+RIGHT($E125),0))\n/SUM(BG$10:BG$11)","v":0}]
[null,null,null,null,"EL3",{"$f":"IF(INDEX(PC_MAPPING,RIGHT($C119,1),MATCH($E$2,'Data by Building Type'!$D$22:$F$22,0))=\"Yes\",1,0)*\n(F$10*OFFSET('Efficiency Distributions'!$D$10,MATCH($C119,'Efficiency Distributions'!$C$9:$C$87,0)+RIGHT($E126),0)\n+F$11*OFFSET('Efficiency Distributions'!$E$10,MATCH($C119,'Efficiency Distributions'!$C$9:$C$87,0)+RIGHT($E126),0))\n/SUM(F$10:F$11)","v":0.11276767459581094},{"$f":"IF(INDEX(PC_MAPPING,RIGHT($C119,1),MATCH($E$2,'Data by Building Type'!$D$22:$F$22,0))=\"Yes\",1,0)*\n(G$10*OFFSET('Efficiency Distributions'!$D$10,MATCH($C119,'Efficiency Distributions'!$C$9:$C$87,0)+RIGHT($E126),0)\n+G$11*OFFSET('Efficiency Distributions'!$E$10,MATCH($C119,'Efficiency Distributions'!$C$9:$C$87,0)+RIGHT($E126),0))\n/SUM(G$10:G$11)","v":0.1199051436483167},{"$f":"IF(INDEX(PC_MAPPING,RIGHT($C119,1),MATCH($E$2,'Data by Building Type'!$D$22:$F$22,0))=\"Yes\",1,0)*\n(H$10*OFFSET('Efficiency Distributions'!$D$10,MATCH($C119,'Efficiency Distributions'!$C$9:$C$87,0)+RIGHT($E126),0)\n+H$11*OFFSET('Efficiency Distributions'!$E$10,MATCH($C119,'Efficiency Distributions'!$C$9:$C$87,0)+RIGHT($E126),0))\n/SUM(H$10:H$11)","v":0.11657782203591767},{"$f":"IF(INDEX(PC_MAPPING,RIGHT($C119,1),MATCH($E$2,'Data by Building Type'!$D$22:$F$22,0))=\"Yes\",1,0)*\n(I$10*OFFSET('Efficiency Distributions'!$D$10,MATCH($C119,'Efficiency Distributions'!$C$9:$C$87,0)+RIGHT($E126),0)\n+I$11*OFFSET('Efficiency Distributions'!$E$10,MATCH($C119,'Efficiency Distributions'!$C$9:$C$87,0)+RIGHT($E126),0))\n/SUM(I$10:I$11)","v":0.1069212660786092},{"$f":"IF(INDEX(PC_MAPPING,RIGHT($C119,1),MATCH($E$2,'Data by Building Type'!$D$22:$F$22,0))=\"Yes\",1,0)*\n(J$10*OFFSET('Efficiency Distributions'!$D$10,MATCH($C119,'Efficiency Distributions'!$C$9:$C$87,0)+RIGHT($E126),0)\n+J$11*OFFSET('Efficiency Distributions'!$E$10,MATCH($C119,'Efficiency Distributions'!$C$9:$C$87,0)+RIGHT($E126),0))\n/SUM(J$10:J$11)","v":9.5871813533273828E-2},{"$f":"IF(INDEX(PC_MAPPING,RIGHT($C119,1),MATCH($E$2,'Data by Building Type'!$D$22:$F$22,0))=\"Yes\",1,0)*\n(K$10*OFFSET('Efficiency Distributions'!$D$10,MATCH($C119,'Efficiency Distributions'!$C$9:$C$87,0)+RIGHT($E126),0)\n+K$11*OFFSET('Efficiency Distributions'!$E$10,MATCH($C119,'Efficiency Distributions'!$C$9:$C$87,0)+RIGHT($E126),0))\n/SUM(K$10:K$11)","v":9.8985479371998655E-2},{"$f":"IF(INDEX(PC_MAPPING,RIGHT($C119,1),MATCH($E$2,'Data by Building Type'!$D$22:$F$22,0))=\"Yes\",1,0)*\n(L$10*OFFSET('Efficiency Distributions'!$D$10,MATCH($C119,'Efficiency Distributions'!$C$9:$C$87,0)+RIGHT($E126),0)\n+L$11*OFFSET('Efficiency Distributions'!$E$10,MATCH($C119,'Efficiency Distributions'!$C$9:$C$87,0)+RIGHT($E126),0))\n/SUM(L$10:L$11)","v":9.6097429899731746E-2},{"$f":"IF(INDEX(PC_MAPPING,RIGHT($C119,1),MATCH($E$2,'Data by Building Type'!$D$22:$F$22,0))=\"Yes\",1,0)*\n(M$10*OFFSET('Efficiency Distributions'!$D$10,MATCH($C119,'Efficiency Distributions'!$C$9:$C$87,0)+RIGHT($E126),0)\n+M$11*OFFSET('Efficiency Distributions'!$E$10,MATCH($C119,'Efficiency Distributions'!$C$9:$C$87,0)+RIGHT($E126),0))\n/SUM(M$10:M$11)","v":9.0299203647377826E-2},{"$f":"IF(INDEX(PC_MAPPING,RIGHT($C119,1),MATCH($E$2,'Data by Building Type'!$D$22:$F$22,0))=\"Yes\",1,0)*\n(N$10*OFFSET('Efficiency Distributions'!$D$10,MATCH($C119,'Efficiency Distributions'!$C$9:$C$87,0)+RIGHT($E126),0)\n+N$11*OFFSET('Efficiency Distributions'!$E$10,MATCH($C119,'Efficiency Distributions'!$C$9:$C$87,0)+RIGHT($E126),0))\n/SUM(N$10:N$11)","v":8.5554427875888892E-2},{"$f":"IF(INDEX(PC_MAPPING,RIGHT($C119,1),MATCH($E$2,'Data by Building Type'!$D$22:$F$22,0))=\"Yes\",1,0)*\n(O$10*OFFSET('Efficiency Distributions'!$D$10,MATCH($C119,'Efficiency Distributions'!$C$9:$C$87,0)+RIGHT($E126),0)\n+O$11*OFFSET('Efficiency Distributions'!$E$10,MATCH($C119,'Efficiency Distributions'!$C$9:$C$87,0)+RIGHT($E126),0))\n/SUM(O$10:O$11)","v":8.9986685382368231E-2},{"$f":"IF(INDEX(PC_MAPPING,RIGHT($C119,1),MATCH($E$2,'Data by Building Type'!$D$22:$F$22,0))=\"Yes\",1,0)*\n(P$10*OFFSET('Efficiency Distributions'!$D$10,MATCH($C119,'Efficiency Distributions'!$C$9:$C$87,0)+RIGHT($E126),0)\n+P$11*OFFSET('Efficiency Distributions'!$E$10,MATCH($C119,'Efficiency Distributions'!$C$9:$C$87,0)+RIGHT($E126),0))\n/SUM(P$10:P$11)","v":0.10949388024805405},{"$f":"IF(INDEX(PC_MAPPING,RIGHT($C119,1),MATCH($E$2,'Data by Building Type'!$D$22:$F$22,0))=\"Yes\",1,0)*\n(Q$10*OFFSET('Efficiency Distributions'!$D$10,MATCH($C119,'Efficiency Distributions'!$C$9:$C$87,0)+RIGHT($E126),0)\n+Q$11*OFFSET('Efficiency Distributions'!$E$10,MATCH($C119,'Efficiency Distributions'!$C$9:$C$87,0)+RIGHT($E126),0))\n/SUM(Q$10:Q$11)","v":0.10891037375640887},{"$f":"IF(INDEX(PC_MAPPING,RIGHT($C119,1),MATCH($E$2,'Data by Building Type'!$D$22:$F$22,0))=\"Yes\",1,0)*\n(R$10*OFFSET('Efficiency Distributions'!$D$10,MATCH($C119,'Efficiency Distributions'!$C$9:$C$87,0)+RIGHT($E126),0)\n+R$11*OFFSET('Efficiency Distributions'!$E$10,MATCH($C119,'Efficiency Distributions'!$C$9:$C$87,0)+RIGHT($E126),0))\n/SUM(R$10:R$11)","v":0.14530287365295766},{"$f":"IF(INDEX(PC_MAPPING,RIGHT($C119,1),MATCH($E$2,'Data by Building Type'!$D$22:$F$22,0))=\"Yes\",1,0)*\n(S$10*OFFSET('Efficiency Distributions'!$D$10,MATCH($C119,'Efficiency Distributions'!$C$9:$C$87,0)+RIGHT($E126),0)\n+S$11*OFFSET('Efficiency Distributions'!$E$10,MATCH($C119,'Efficiency Distributions'!$C$9:$C$87,0)+RIGHT($E126),0))\n/SUM(S$10:S$11)","v":0.14530287365295766},{"$f":"IF(INDEX(PC_MAPPING,RIGHT($C119,1),MATCH($E$2,'Data by Building Type'!$D$22:$F$22,0))=\"Yes\",1,0)*\n(T$10*OFFSET('Efficiency Distributions'!$D$10,MATCH($C119,'Efficiency Distributions'!$C$9:$C$87,0)+RIGHT($E126),0)\n+T$11*OFFSET('Efficiency Distributions'!$E$10,MATCH($C119,'Efficiency Distributions'!$C$9:$C$87,0)+RIGHT($E126),0))\n/SUM(T$10:T$11)","v":0.14530287365295766},{"$f":"IF(INDEX(PC_MAPPING,RIGHT($C119,1),MATCH($E$2,'Data by Building Type'!$D$22:$F$22,0))=\"Yes\",1,0)*\n(U$10*OFFSET('Efficiency Distributions'!$D$10,MATCH($C119,'Efficiency Distributions'!$C$9:$C$87,0)+RIGHT($E126),0)\n+U$11*OFFSET('Efficiency Distributions'!$E$10,MATCH($C119,'Efficiency Distributions'!$C$9:$C$87,0)+RIGHT($E126),0))\n/SUM(U$10:U$11)","v":0.14530287365295766},{"$f":"IF(INDEX(PC_MAPPING,RIGHT($C119,1),MATCH($E$2,'Data by Building Type'!$D$22:$F$22,0))=\"Yes\",1,0)*\n(V$10*OFFSET('Efficiency Distributions'!$D$10,MATCH($C119,'Efficiency Distributions'!$C$9:$C$87,0)+RIGHT($E126),0)\n+V$11*OFFSET('Efficiency Distributions'!$E$10,MATCH($C119,'Efficiency Distributions'!$C$9:$C$87,0)+RIGHT($E126),0))\n/SUM(V$10:V$11)","v":0.14530287365295766},{"$f":"IF(INDEX(PC_MAPPING,RIGHT($C119,1),MATCH($E$2,'Data by Building Type'!$D$22:$F$22,0))=\"Yes\",1,0)*\n(W$10*OFFSET('Efficiency Distributions'!$D$10,MATCH($C119,'Efficiency Distributions'!$C$9:$C$87,0)+RIGHT($E126),0)\n+W$11*OFFSET('Efficiency Distributions'!$E$10,MATCH($C119,'Efficiency Distributions'!$C$9:$C$87,0)+RIGHT($E126),0))\n/SUM(W$10:W$11)","v":0.14530287365295766},{"$f":"IF(INDEX(PC_MAPPING,RIGHT($C119,1),MATCH($E$2,'Data by Building Type'!$D$22:$F$22,0))=\"Yes\",1,0)*\n(X$10*OFFSET('Efficiency Distributions'!$D$10,MATCH($C119,'Efficiency Distributions'!$C$9:$C$87,0)+RIGHT($E126),0)\n+X$11*OFFSET('Efficiency Distributions'!$E$10,MATCH($C119,'Efficiency Distributions'!$C$9:$C$87,0)+RIGHT($E126),0))\n/SUM(X$10:X$11)","v":0.14530287365295766},{"$f":"IF(INDEX(PC_MAPPING,RIGHT($C119,1),MATCH($E$2,'Data by Building Type'!$D$22:$F$22,0))=\"Yes\",1,0)*\n(Y$10*OFFSET('Efficiency Distributions'!$D$10,MATCH($C119,'Efficiency Distributions'!$C$9:$C$87,0)+RIGHT($E126),0)\n+Y$11*OFFSET('Efficiency Distributions'!$E$10,MATCH($C119,'Efficiency Distributions'!$C$9:$C$87,0)+RIGHT($E126),0))\n/SUM(Y$10:Y$11)","v":0.14530287365295766},{"$f":"IF(INDEX(PC_MAPPING,RIGHT($C119,1),MATCH($E$2,'Data by Building Type'!$D$22:$F$22,0))=\"Yes\",1,0)*\n(Z$10*OFFSET('Efficiency Distributions'!$D$10,MATCH($C119,'Efficiency Distributions'!$C$9:$C$87,0)+RIGHT($E126),0)\n+Z$11*OFFSET('Efficiency Distributions'!$E$10,MATCH($C119,'Efficiency Distributions'!$C$9:$C$87,0)+RIGHT($E126),0))\n/SUM(Z$10:Z$11)","v":0.14530287365295766},{"$f":"IF(INDEX(PC_MAPPING,RIGHT($C119,1),MATCH($E$2,'Data by Building Type'!$D$22:$F$22,0))=\"Yes\",1,0)*\n(AA$10*OFFSET('Efficiency Distributions'!$D$10,MATCH($C119,'Efficiency Distributions'!$C$9:$C$87,0)+RIGHT($E126),0)\n+AA$11*OFFSET('Efficiency Distributions'!$E$10,MATCH($C119,'Efficiency Distributions'!$C$9:$C$87,0)+RIGHT($E126),0))\n/SUM(AA$10:AA$11)","v":0.14530287365295766},{"$f":"IF(INDEX(PC_MAPPING,RIGHT($C119,1),MATCH($E$2,'Data by Building Type'!$D$22:$F$22,0))=\"Yes\",1,0)*\n(AB$10*OFFSET('Efficiency Distributions'!$D$10,MATCH($C119,'Efficiency Distributions'!$C$9:$C$87,0)+RIGHT($E126),0)\n+AB$11*OFFSET('Efficiency Distributions'!$E$10,MATCH($C119,'Efficiency Distributions'!$C$9:$C$87,0)+RIGHT($E126),0))\n/SUM(AB$10:AB$11)","v":0.14530287365295766},{"$f":"IF(INDEX(PC_MAPPING,RIGHT($C119,1),MATCH($E$2,'Data by Building Type'!$D$22:$F$22,0))=\"Yes\",1,0)*\n(AC$10*OFFSET('Efficiency Distributions'!$D$10,MATCH($C119,'Efficiency Distributions'!$C$9:$C$87,0)+RIGHT($E126),0)\n+AC$11*OFFSET('Efficiency Distributions'!$E$10,MATCH($C119,'Efficiency Distributions'!$C$9:$C$87,0)+RIGHT($E126),0))\n/SUM(AC$10:AC$11)","v":0.14530287365295766},{"$f":"IF(INDEX(PC_MAPPING,RIGHT($C119,1),MATCH($E$2,'Data by Building Type'!$D$22:$F$22,0))=\"Yes\",1,0)*\n(AD$10*OFFSET('Efficiency Distributions'!$D$10,MATCH($C119,'Efficiency Distributions'!$C$9:$C$87,0)+RIGHT($E126),0)\n+AD$11*OFFSET('Efficiency Distributions'!$E$10,MATCH($C119,'Efficiency Distributions'!$C$9:$C$87,0)+RIGHT($E126),0))\n/SUM(AD$10:AD$11)","v":0.14530287365295766},{"$f":"IF(INDEX(PC_MAPPING,RIGHT($C119,1),MATCH($E$2,'Data by Building Type'!$D$22:$F$22,0))=\"Yes\",1,0)*\n(AE$10*OFFSET('Efficiency Distributions'!$D$10,MATCH($C119,'Efficiency Distributions'!$C$9:$C$87,0)+RIGHT($E126),0)\n+AE$11*OFFSET('Efficiency Distributions'!$E$10,MATCH($C119,'Efficiency Distributions'!$C$9:$C$87,0)+RIGHT($E126),0))\n/SUM(AE$10:AE$11)","v":0.14530287365295766},{"$f":"IF(INDEX(PC_MAPPING,RIGHT($C119,1),MATCH($E$2,'Data by Building Type'!$D$22:$F$22,0))=\"Yes\",1,0)*\n(AF$10*OFFSET('Efficiency Distributions'!$D$10,MATCH($C119,'Efficiency Distributions'!$C$9:$C$87,0)+RIGHT($E126),0)\n+AF$11*OFFSET('Efficiency Distributions'!$E$10,MATCH($C119,'Efficiency Distributions'!$C$9:$C$87,0)+RIGHT($E126),0))\n/SUM(AF$10:AF$11)","v":0.14530287365295769},{"$f":"IF(INDEX(PC_MAPPING,RIGHT($C119,1),MATCH($E$2,'Data by Building Type'!$D$22:$F$22,0))=\"Yes\",1,0)*\n(AG$10*OFFSET('Efficiency Distributions'!$D$10,MATCH($C119,'Efficiency Distributions'!$C$9:$C$87,0)+RIGHT($E126),0)\n+AG$11*OFFSET('Efficiency Distributions'!$E$10,MATCH($C119,'Efficiency Distributions'!$C$9:$C$87,0)+RIGHT($E126),0))\n/SUM(AG$10:AG$11)","v":0.14530287365295766},{"$f":"IF(INDEX(PC_MAPPING,RIGHT($C119,1),MATCH($E$2,'Data by Building Type'!$D$22:$F$22,0))=\"Yes\",1,0)*\n(AH$10*OFFSET('Efficiency Distributions'!$D$10,MATCH($C119,'Efficiency Distributions'!$C$9:$C$87,0)+RIGHT($E126),0)\n+AH$11*OFFSET('Efficiency Distributions'!$E$10,MATCH($C119,'Efficiency Distributions'!$C$9:$C$87,0)+RIGHT($E126),0))\n/SUM(AH$10:AH$11)","v":0.14530287365295766},{"$f":"IF(INDEX(PC_MAPPING,RIGHT($C119,1),MATCH($E$2,'Data by Building Type'!$D$22:$F$22,0))=\"Yes\",1,0)*\n(AI$10*OFFSET('Efficiency Distributions'!$D$10,MATCH($C119,'Efficiency Distributions'!$C$9:$C$87,0)+RIGHT($E126),0)\n+AI$11*OFFSET('Efficiency Distributions'!$E$10,MATCH($C119,'Efficiency Distributions'!$C$9:$C$87,0)+RIGHT($E126),0))\n/SUM(AI$10:AI$11)","v":0.14530287365295766},{"$f":"IF(INDEX(PC_MAPPING,RIGHT($C119,1),MATCH($E$2,'Data by Building Type'!$D$22:$F$22,0))=\"Yes\",1,0)*\n(AJ$10*OFFSET('Efficiency Distributions'!$D$10,MATCH($C119,'Efficiency Distributions'!$C$9:$C$87,0)+RIGHT($E126),0)\n+AJ$11*OFFSET('Efficiency Distributions'!$E$10,MATCH($C119,'Efficiency Distributions'!$C$9:$C$87,0)+RIGHT($E126),0))\n/SUM(AJ$10:AJ$11)","v":0.14530287365295766},{"$f":"IF(INDEX(PC_MAPPING,RIGHT($C119,1),MATCH($E$2,'Data by Building Type'!$D$22:$F$22,0))=\"Yes\",1,0)*\n(AK$10*OFFSET('Efficiency Distributions'!$D$10,MATCH($C119,'Efficiency Distributions'!$C$9:$C$87,0)+RIGHT($E126),0)\n+AK$11*OFFSET('Efficiency Distributions'!$E$10,MATCH($C119,'Efficiency Distributions'!$C$9:$C$87,0)+RIGHT($E126),0))\n/SUM(AK$10:AK$11)","v":0.12934146805469024},{"$f":"IF(INDEX(PC_MAPPING,RIGHT($C119,1),MATCH($E$2,'Data by Building Type'!$D$22:$F$22,0))=\"Yes\",1,0)*\n(AL$10*OFFSET('Efficiency Distributions'!$D$10,MATCH($C119,'Efficiency Distributions'!$C$9:$C$87,0)+RIGHT($E126),0)\n+AL$11*OFFSET('Efficiency Distributions'!$E$10,MATCH($C119,'Efficiency Distributions'!$C$9:$C$87,0)+RIGHT($E126),0))\n/SUM(AL$10:AL$11)","v":0.12870039885089804},{"$f":"IF(INDEX(PC_MAPPING,RIGHT($C119,1),MATCH($E$2,'Data by Building Type'!$D$22:$F$22,0))=\"Yes\",1,0)*\n(AM$10*OFFSET('Efficiency Distributions'!$D$10,MATCH($C119,'Efficiency Distributions'!$C$9:$C$87,0)+RIGHT($E126),0)\n+AM$11*OFFSET('Efficiency Distributions'!$E$10,MATCH($C119,'Efficiency Distributions'!$C$9:$C$87,0)+RIGHT($E126),0))\n/SUM(AM$10:AM$11)","v":0.11352639915142441},{"$f":"IF(INDEX(PC_MAPPING,RIGHT($C119,1),MATCH($E$2,'Data by Building Type'!$D$22:$F$22,0))=\"Yes\",1,0)*\n(AN$10*OFFSET('Efficiency Distributions'!$D$10,MATCH($C119,'Efficiency Distributions'!$C$9:$C$87,0)+RIGHT($E126),0)\n+AN$11*OFFSET('Efficiency Distributions'!$E$10,MATCH($C119,'Efficiency Distributions'!$C$9:$C$87,0)+RIGHT($E126),0))\n/SUM(AN$10:AN$11)","v":0.11430050498912842},{"$f":"IF(INDEX(PC_MAPPING,RIGHT($C119,1),MATCH($E$2,'Data by Building Type'!$D$22:$F$22,0))=\"Yes\",1,0)*\n(AO$10*OFFSET('Efficiency Distributions'!$D$10,MATCH($C119,'Efficiency Distributions'!$C$9:$C$87,0)+RIGHT($E126),0)\n+AO$11*OFFSET('Efficiency Distributions'!$E$10,MATCH($C119,'Efficiency Distributions'!$C$9:$C$87,0)+RIGHT($E126),0))\n/SUM(AO$10:AO$11)","v":0.11335732691545444},{"$f":"IF(INDEX(PC_MAPPING,RIGHT($C119,1),MATCH($E$2,'Data by Building Type'!$D$22:$F$22,0))=\"Yes\",1,0)*\n(AP$10*OFFSET('Efficiency Distributions'!$D$10,MATCH($C119,'Efficiency Distributions'!$C$9:$C$87,0)+RIGHT($E126),0)\n+AP$11*OFFSET('Efficiency Distributions'!$E$10,MATCH($C119,'Efficiency Distributions'!$C$9:$C$87,0)+RIGHT($E126),0))\n/SUM(AP$10:AP$11)","v":0.11142298416713024},{"$f":"IF(INDEX(PC_MAPPING,RIGHT($C119,1),MATCH($E$2,'Data by Building Type'!$D$22:$F$22,0))=\"Yes\",1,0)*\n(AQ$10*OFFSET('Efficiency Distributions'!$D$10,MATCH($C119,'Efficiency Distributions'!$C$9:$C$87,0)+RIGHT($E126),0)\n+AQ$11*OFFSET('Efficiency Distributions'!$E$10,MATCH($C119,'Efficiency Distributions'!$C$9:$C$87,0)+RIGHT($E126),0))\n/SUM(AQ$10:AQ$11)","v":0.1094580280417399},{"$f":"IF(INDEX(PC_MAPPING,RIGHT($C119,1),MATCH($E$2,'Data by Building Type'!$D$22:$F$22,0))=\"Yes\",1,0)*\n(AR$10*OFFSET('Efficiency Distributions'!$D$10,MATCH($C119,'Efficiency Distributions'!$C$9:$C$87,0)+RIGHT($E126),0)\n+AR$11*OFFSET('Efficiency Distributions'!$E$10,MATCH($C119,'Efficiency Distributions'!$C$9:$C$87,0)+RIGHT($E126),0))\n/SUM(AR$10:AR$11)","v":0.10986795946029},{"$f":"IF(INDEX(PC_MAPPING,RIGHT($C119,1),MATCH($E$2,'Data by Building Type'!$D$22:$F$22,0))=\"Yes\",1,0)*\n(AS$10*OFFSET('Efficiency Distributions'!$D$10,MATCH($C119,'Efficiency Distributions'!$C$9:$C$87,0)+RIGHT($E126),0)\n+AS$11*OFFSET('Efficiency Distributions'!$E$10,MATCH($C119,'Efficiency Distributions'!$C$9:$C$87,0)+RIGHT($E126),0))\n/SUM(AS$10:AS$11)","v":0.1031100372585588},{"$f":"IF(INDEX(PC_MAPPING,RIGHT($C119,1),MATCH($E$2,'Data by Building Type'!$D$22:$F$22,0))=\"Yes\",1,0)*\n(AT$10*OFFSET('Efficiency Distributions'!$D$10,MATCH($C119,'Efficiency Distributions'!$C$9:$C$87,0)+RIGHT($E126),0)\n+AT$11*OFFSET('Efficiency Distributions'!$E$10,MATCH($C119,'Efficiency Distributions'!$C$9:$C$87,0)+RIGHT($E126),0))\n/SUM(AT$10:AT$11)","v":9.5967195130278765E-2},{"$f":"IF(INDEX(PC_MAPPING,RIGHT($C119,1),MATCH($E$2,'Data by Building Type'!$D$22:$F$22,0))=\"Yes\",1,0)*\n(AU$10*OFFSET('Efficiency Distributions'!$D$10,MATCH($C119,'Efficiency Distributions'!$C$9:$C$87,0)+RIGHT($E126),0)\n+AU$11*OFFSET('Efficiency Distributions'!$E$10,MATCH($C119,'Efficiency Distributions'!$C$9:$C$87,0)+RIGHT($E126),0))\n/SUM(AU$10:AU$11)","v":9.3728471964221821E-2},{"$f":"IF(INDEX(PC_MAPPING,RIGHT($C119,1),MATCH($E$2,'Data by Building Type'!$D$22:$F$22,0))=\"Yes\",1,0)*\n(AV$10*OFFSET('Efficiency Distributions'!$D$10,MATCH($C119,'Efficiency Distributions'!$C$9:$C$87,0)+RIGHT($E126),0)\n+AV$11*OFFSET('Efficiency Distributions'!$E$10,MATCH($C119,'Efficiency Distributions'!$C$9:$C$87,0)+RIGHT($E126),0))\n/SUM(AV$10:AV$11)","v":0.10969774992833464},{"$f":"IF(INDEX(PC_MAPPING,RIGHT($C119,1),MATCH($E$2,'Data by Building Type'!$D$22:$F$22,0))=\"Yes\",1,0)*\n(AW$10*OFFSET('Efficiency Distributions'!$D$10,MATCH($C119,'Efficiency Distributions'!$C$9:$C$87,0)+RIGHT($E126),0)\n+AW$11*OFFSET('Efficiency Distributions'!$E$10,MATCH($C119,'Efficiency Distributions'!$C$9:$C$87,0)+RIGHT($E126),0))\n/SUM(AW$10:AW$11)","v":0.10443368239732372},{"$f":"IF(INDEX(PC_MAPPING,RIGHT($C119,1),MATCH($E$2,'Data by Building Type'!$D$22:$F$22,0))=\"Yes\",1,0)*\n(AX$10*OFFSET('Efficiency Distributions'!$D$10,MATCH($C119,'Efficiency Distributions'!$C$9:$C$87,0)+RIGHT($E126),0)\n+AX$11*OFFSET('Efficiency Distributions'!$E$10,MATCH($C119,'Efficiency Distributions'!$C$9:$C$87,0)+RIGHT($E126),0))\n/SUM(AX$10:AX$11)","v":0.10731196092149213},{"$f":"IF(INDEX(PC_MAPPING,RIGHT($C119,1),MATCH($E$2,'Data by Building Type'!$D$22:$F$22,0))=\"Yes\",1,0)*\n(AY$10*OFFSET('Efficiency Distributions'!$D$10,MATCH($C119,'Efficiency Distributions'!$C$9:$C$87,0)+RIGHT($E126),0)\n+AY$11*OFFSET('Efficiency Distributions'!$E$10,MATCH($C119,'Efficiency Distributions'!$C$9:$C$87,0)+RIGHT($E126),0))\n/SUM(AY$10:AY$11)","v":0.11215188749762953},{"$f":"IF(INDEX(PC_MAPPING,RIGHT($C119,1),MATCH($E$2,'Data by Building Type'!$D$22:$F$22,0))=\"Yes\",1,0)*\n(AZ$10*OFFSET('Efficiency Distributions'!$D$10,MATCH($C119,'Efficiency Distributions'!$C$9:$C$87,0)+RIGHT($E126),0)\n+AZ$11*OFFSET('Efficiency Distributions'!$E$10,MATCH($C119,'Efficiency Distributions'!$C$9:$C$87,0)+RIGHT($E126),0))\n/SUM(AZ$10:AZ$11)","v":0.1189427006686074},{"$f":"IF(INDEX(PC_MAPPING,RIGHT($C119,1),MATCH($E$2,'Data by Building Type'!$D$22:$F$22,0))=\"Yes\",1,0)*\n(BA$10*OFFSET('Efficiency Distributions'!$D$10,MATCH($C119,'Efficiency Distributions'!$C$9:$C$87,0)+RIGHT($E126),0)\n+BA$11*OFFSET('Efficiency Distributions'!$E$10,MATCH($C119,'Efficiency Distributions'!$C$9:$C$87,0)+RIGHT($E126),0))\n/SUM(BA$10:BA$11)","v":0.11611137960739269},{"$f":"IF(INDEX(PC_MAPPING,RIGHT($C119,1),MATCH($E$2,'Data by Building Type'!$D$22:$F$22,0))=\"Yes\",1,0)*\n(BB$10*OFFSET('Efficiency Distributions'!$D$10,MATCH($C119,'Efficiency Distributions'!$C$9:$C$87,0)+RIGHT($E126),0)\n+BB$11*OFFSET('Efficiency Distributions'!$E$10,MATCH($C119,'Efficiency Distributions'!$C$9:$C$87,0)+RIGHT($E126),0))\n/SUM(BB$10:BB$11)","v":0.11498790093631885},{"$f":"IF(INDEX(PC_MAPPING,RIGHT($C119,1),MATCH($E$2,'Data by Building Type'!$D$22:$F$22,0))=\"Yes\",1,0)*\n(BC$10*OFFSET('Efficiency Distributions'!$D$10,MATCH($C119,'Efficiency Distributions'!$C$9:$C$87,0)+RIGHT($E126),0)\n+BC$11*OFFSET('Efficiency Distributions'!$E$10,MATCH($C119,'Efficiency Distributions'!$C$9:$C$87,0)+RIGHT($E126),0))\n/SUM(BC$10:BC$11)","v":0.11572360566384984},{"$f":"IF(INDEX(PC_MAPPING,RIGHT($C119,1),MATCH($E$2,'Data by Building Type'!$D$22:$F$22,0))=\"Yes\",1,0)*\n(BD$10*OFFSET('Efficiency Distributions'!$D$10,MATCH($C119,'Efficiency Distributions'!$C$9:$C$87,0)+RIGHT($E126),0)\n+BD$11*OFFSET('Efficiency Distributions'!$E$10,MATCH($C119,'Efficiency Distributions'!$C$9:$C$87,0)+RIGHT($E126),0))\n/SUM(BD$10:BD$11)","v":0.12035704067132323},{"$f":"IF(INDEX(PC_MAPPING,RIGHT($C119,1),MATCH($E$2,'Data by Building Type'!$D$22:$F$22,0))=\"Yes\",1,0)*\n(BE$10*OFFSET('Efficiency Distributions'!$D$10,MATCH($C119,'Efficiency Distributions'!$C$9:$C$87,0)+RIGHT($E126),0)\n+BE$11*OFFSET('Efficiency Distributions'!$E$10,MATCH($C119,'Efficiency Distributions'!$C$9:$C$87,0)+RIGHT($E126),0))\n/SUM(BE$10:BE$11)","v":0.11769347326049728},{"$f":"IF(INDEX(PC_MAPPING,RIGHT($C119,1),MATCH($E$2,'Data by Building Type'!$D$22:$F$22,0))=\"Yes\",1,0)*\n(BF$10*OFFSET('Efficiency Distributions'!$D$10,MATCH($C119,'Efficiency Distributions'!$C$9:$C$87,0)+RIGHT($E126),0)\n+BF$11*OFFSET('Efficiency Distributions'!$E$10,MATCH($C119,'Efficiency Distributions'!$C$9:$C$87,0)+RIGHT($E126),0))\n/SUM(BF$10:BF$11)","v":0.12632593413111168},{"$f":"IF(INDEX(PC_MAPPING,RIGHT($C119,1),MATCH($E$2,'Data by Building Type'!$D$22:$F$22,0))=\"Yes\",1,0)*\n(BG$10*OFFSET('Efficiency Distributions'!$D$10,MATCH($C119,'Efficiency Distributions'!$C$9:$C$87,0)+RIGHT($E126),0)\n+BG$11*OFFSET('Efficiency Distributions'!$E$10,MATCH($C119,'Efficiency Distributions'!$C$9:$C$87,0)+RIGHT($E126),0))\n/SUM(BG$10:BG$11)","v":0.12641126428180507}]
[null,null,null,null,"EL4",{"$f":"IF(INDEX(PC_MAPPING,RIGHT($C119,1),MATCH($E$2,'Data by Building Type'!$D$22:$F$22,0))=\"Yes\",1,0)*\n(F$10*OFFSET('Efficiency Distributions'!$D$10,MATCH($C119,'Efficiency Distributions'!$C$9:$C$87,0)+RIGHT($E127),0)\n+F$11*OFFSET('Efficiency Distributions'!$E$10,MATCH($C119,'Efficiency Distributions'!$C$9:$C$87,0)+RIGHT($E127),0))\n/SUM(F$10:F$11)","v":0},{"$f":"IF(INDEX(PC_MAPPING,RIGHT($C119,1),MATCH($E$2,'Data by Building Type'!$D$22:$F$22,0))=\"Yes\",1,0)*\n(G$10*OFFSET('Efficiency Distributions'!$D$10,MATCH($C119,'Efficiency Distributions'!$C$9:$C$87,0)+RIGHT($E127),0)\n+G$11*OFFSET('Efficiency Distributions'!$E$10,MATCH($C119,'Efficiency Distributions'!$C$9:$C$87,0)+RIGHT($E127),0))\n/SUM(G$10:G$11)","v":0},{"$f":"IF(INDEX(PC_MAPPING,RIGHT($C119,1),MATCH($E$2,'Data by Building Type'!$D$22:$F$22,0))=\"Yes\",1,0)*\n(H$10*OFFSET('Efficiency Distributions'!$D$10,MATCH($C119,'Efficiency Distributions'!$C$9:$C$87,0)+RIGHT($E127),0)\n+H$11*OFFSET('Efficiency Distributions'!$E$10,MATCH($C119,'Efficiency Distributions'!$C$9:$C$87,0)+RIGHT($E127),0))\n/SUM(H$10:H$11)","v":0},{"$f":"IF(INDEX(PC_MAPPING,RIGHT($C119,1),MATCH($E$2,'Data by Building Type'!$D$22:$F$22,0))=\"Yes\",1,0)*\n(I$10*OFFSET('Efficiency Distributions'!$D$10,MATCH($C119,'Efficiency Distributions'!$C$9:$C$87,0)+RIGHT($E127),0)\n+I$11*OFFSET('Efficiency Distributions'!$E$10,MATCH($C119,'Efficiency Distributions'!$C$9:$C$87,0)+RIGHT($E127),0))\n/SUM(I$10:I$11)","v":0},{"$f":"IF(INDEX(PC_MAPPING,RIGHT($C119,1),MATCH($E$2,'Data by Building Type'!$D$22:$F$22,0))=\"Yes\",1,0)*\n(J$10*OFFSET('Efficiency Distributions'!$D$10,MATCH($C119,'Efficiency Distributions'!$C$9:$C$87,0)+RIGHT($E127),0)\n+J$11*OFFSET('Efficiency Distributions'!$E$10,MATCH($C119,'Efficiency Distributions'!$C$9:$C$87,0)+RIGHT($E127),0))\n/SUM(J$10:J$11)","v":0},{"$f":"IF(INDEX(PC_MAPPING,RIGHT($C119,1),MATCH($E$2,'Data by Building Type'!$D$22:$F$22,0))=\"Yes\",1,0)*\n(K$10*OFFSET('Efficiency Distributions'!$D$10,MATCH($C119,'Efficiency Distributions'!$C$9:$C$87,0)+RIGHT($E127),0)\n+K$11*OFFSET('Efficiency Distributions'!$E$10,MATCH($C119,'Efficiency Distributions'!$C$9:$C$87,0)+RIGHT($E127),0))\n/SUM(K$10:K$11)","v":0},{"$f":"IF(INDEX(PC_MAPPING,RIGHT($C119,1),MATCH($E$2,'Data by Building Type'!$D$22:$F$22,0))=\"Yes\",1,0)*\n(L$10*OFFSET('Efficiency Distributions'!$D$10,MATCH($C119,'Efficiency Distributions'!$C$9:$C$87,0)+RIGHT($E127),0)\n+L$11*OFFSET('Efficiency Distributions'!$E$10,MATCH($C119,'Efficiency Distributions'!$C$9:$C$87,0)+RIGHT($E127),0))\n/SUM(L$10:L$11)","v":0},{"$f":"IF(INDEX(PC_MAPPING,RIGHT($C119,1),MATCH($E$2,'Data by Building Type'!$D$22:$F$22,0))=\"Yes\",1,0)*\n(M$10*OFFSET('Efficiency Distributions'!$D$10,MATCH($C119,'Efficiency Distributions'!$C$9:$C$87,0)+RIGHT($E127),0)\n+M$11*OFFSET('Efficiency Distributions'!$E$10,MATCH($C119,'Efficiency Distributions'!$C$9:$C$87,0)+RIGHT($E127),0))\n/SUM(M$10:M$11)","v":0},{"$f":"IF(INDEX(PC_MAPPING,RIGHT($C119,1),MATCH($E$2,'Data by Building Type'!$D$22:$F$22,0))=\"Yes\",1,0)*\n(N$10*OFFSET('Efficiency Distributions'!$D$10,MATCH($C119,'Efficiency Distributions'!$C$9:$C$87,0)+RIGHT($E127),0)\n+N$11*OFFSET('Efficiency Distributions'!$E$10,MATCH($C119,'Efficiency Distributions'!$C$9:$C$87,0)+RIGHT($E127),0))\n/SUM(N$10:N$11)","v":0},{"$f":"IF(INDEX(PC_MAPPING,RIGHT($C119,1),MATCH($E$2,'Data by Building Type'!$D$22:$F$22,0))=\"Yes\",1,0)*\n(O$10*OFFSET('Efficiency Distributions'!$D$10,MATCH($C119,'Efficiency Distributions'!$C$9:$C$87,0)+RIGHT($E127),0)\n+O$11*OFFSET('Efficiency Distributions'!$E$10,MATCH($C119,'Efficiency Distributions'!$C$9:$C$87,0)+RIGHT($E127),0))\n/SUM(O$10:O$11)","v":0},{"$f":"IF(INDEX(PC_MAPPING,RIGHT($C119,1),MATCH($E$2,'Data by Building Type'!$D$22:$F$22,0))=\"Yes\",1,0)*\n(P$10*OFFSET('Efficiency Distributions'!$D$10,MATCH($C119,'Efficiency Distributions'!$C$9:$C$87,0)+RIGHT($E127),0)\n+P$11*OFFSET('Efficiency Distributions'!$E$10,MATCH($C119,'Efficiency Distributions'!$C$9:$C$87,0)+RIGHT($E127),0))\n/SUM(P$10:P$11)","v":0},{"$f":"IF(INDEX(PC_MAPPING,RIGHT($C119,1),MATCH($E$2,'Data by Building Type'!$D$22:$F$22,0))=\"Yes\",1,0)*\n(Q$10*OFFSET('Efficiency Distributions'!$D$10,MATCH($C119,'Efficiency Distributions'!$C$9:$C$87,0)+RIGHT($E127),0)\n+Q$11*OFFSET('Efficiency Distributions'!$E$10,MATCH($C119,'Efficiency Distributions'!$C$9:$C$87,0)+RIGHT($E127),0))\n/SUM(Q$10:Q$11)","v":0},{"$f":"IF(INDEX(PC_MAPPING,RIGHT($C119,1),MATCH($E$2,'Data by Building Type'!$D$22:$F$22,0))=\"Yes\",1,0)*\n(R$10*OFFSET('Efficiency Distributions'!$D$10,MATCH($C119,'Efficiency Distributions'!$C$9:$C$87,0)+RIGHT($E127),0)\n+R$11*OFFSET('Efficiency Distributions'!$E$10,MATCH($C119,'Efficiency Distributions'!$C$9:$C$87,0)+RIGHT($E127),0))\n/SUM(R$10:R$11)","v":0},{"$f":"IF(INDEX(PC_MAPPING,RIGHT($C119,1),MATCH($E$2,'Data by Building Type'!$D$22:$F$22,0))=\"Yes\",1,0)*\n(S$10*OFFSET('Efficiency Distributions'!$D$10,MATCH($C119,'Efficiency Distributions'!$C$9:$C$87,0)+RIGHT($E127),0)\n+S$11*OFFSET('Efficiency Distributions'!$E$10,MATCH($C119,'Efficiency Distributions'!$C$9:$C$87,0)+RIGHT($E127),0))\n/SUM(S$10:S$11)","v":0},{"$f":"IF(INDEX(PC_MAPPING,RIGHT($C119,1),MATCH($E$2,'Data by Building Type'!$D$22:$F$22,0))=\"Yes\",1,0)*\n(T$10*OFFSET('Efficiency Distributions'!$D$10,MATCH($C119,'Efficiency Distributions'!$C$9:$C$87,0)+RIGHT($E127),0)\n+T$11*OFFSET('Efficiency Distributions'!$E$10,MATCH($C119,'Efficiency Distributions'!$C$9:$C$87,0)+RIGHT($E127),0))\n/SUM(T$10:T$11)","v":0},{"$f":"IF(INDEX(PC_MAPPING,RIGHT($C119,1),MATCH($E$2,'Data by Building Type'!$D$22:$F$22,0))=\"Yes\",1,0)*\n(U$10*OFFSET('Efficiency Distributions'!$D$10,MATCH($C119,'Efficiency Distributions'!$C$9:$C$87,0)+RIGHT($E127),0)\n+U$11*OFFSET('Efficiency Distributions'!$E$10,MATCH($C119,'Efficiency Distributions'!$C$9:$C$87,0)+RIGHT($E127),0))\n/SUM(U$10:U$11)","v":0},{"$f":"IF(INDEX(PC_MAPPING,RIGHT($C119,1),MATCH($E$2,'Data by Building Type'!$D$22:$F$22,0))=\"Yes\",1,0)*\n(V$10*OFFSET('Efficiency Distributions'!$D$10,MATCH($C119,'Efficiency Distributions'!$C$9:$C$87,0)+RIGHT($E127),0)\n+V$11*OFFSET('Efficiency Distributions'!$E$10,MATCH($C119,'Efficiency Distributions'!$C$9:$C$87,0)+RIGHT($E127),0))\n/SUM(V$10:V$11)","v":0},{"$f":"IF(INDEX(PC_MAPPING,RIGHT($C119,1),MATCH($E$2,'Data by Building Type'!$D$22:$F$22,0))=\"Yes\",1,0)*\n(W$10*OFFSET('Efficiency Distributions'!$D$10,MATCH($C119,'Efficiency Distributions'!$C$9:$C$87,0)+RIGHT($E127),0)\n+W$11*OFFSET('Efficiency Distributions'!$E$10,MATCH($C119,'Efficiency Distributions'!$C$9:$C$87,0)+RIGHT($E127),0))\n/SUM(W$10:W$11)","v":0},{"$f":"IF(INDEX(PC_MAPPING,RIGHT($C119,1),MATCH($E$2,'Data by Building Type'!$D$22:$F$22,0))=\"Yes\",1,0)*\n(X$10*OFFSET('Efficiency Distributions'!$D$10,MATCH($C119,'Efficiency Distributions'!$C$9:$C$87,0)+RIGHT($E127),0)\n+X$11*OFFSET('Efficiency Distributions'!$E$10,MATCH($C119,'Efficiency Distributions'!$C$9:$C$87,0)+RIGHT($E127),0))\n/SUM(X$10:X$11)","v":0},{"$f":"IF(INDEX(PC_MAPPING,RIGHT($C119,1),MATCH($E$2,'Data by Building Type'!$D$22:$F$22,0))=\"Yes\",1,0)*\n(Y$10*OFFSET('Efficiency Distributions'!$D$10,MATCH($C119,'Efficiency Distributions'!$C$9:$C$87,0)+RIGHT($E127),0)\n+Y$11*OFFSET('Efficiency Distributions'!$E$10,MATCH($C119,'Efficiency Distributions'!$C$9:$C$87,0)+RIGHT($E127),0))\n/SUM(Y$10:Y$11)","v":0},{"$f":"IF(INDEX(PC_MAPPING,RIGHT($C119,1),MATCH($E$2,'Data by Building Type'!$D$22:$F$22,0))=\"Yes\",1,0)*\n(Z$10*OFFSET('Efficiency Distributions'!$D$10,MATCH($C119,'Efficiency Distributions'!$C$9:$C$87,0)+RIGHT($E127),0)\n+Z$11*OFFSET('Efficiency Distributions'!$E$10,MATCH($C119,'Efficiency Distributions'!$C$9:$C$87,0)+RIGHT($E127),0))\n/SUM(Z$10:Z$11)","v":0},{"$f":"IF(INDEX(PC_MAPPING,RIGHT($C119,1),MATCH($E$2,'Data by Building Type'!$D$22:$F$22,0))=\"Yes\",1,0)*\n(AA$10*OFFSET('Efficiency Distributions'!$D$10,MATCH($C119,'Efficiency Distributions'!$C$9:$C$87,0)+RIGHT($E127),0)\n+AA$11*OFFSET('Efficiency Distributions'!$E$10,MATCH($C119,'Efficiency Distributions'!$C$9:$C$87,0)+RIGHT($E127),0))\n/SUM(AA$10:AA$11)","v":0},{"$f":"IF(INDEX(PC_MAPPING,RIGHT($C119,1),MATCH($E$2,'Data by Building Type'!$D$22:$F$22,0))=\"Yes\",1,0)*\n(AB$10*OFFSET('Efficiency Distributions'!$D$10,MATCH($C119,'Efficiency Distributions'!$C$9:$C$87,0)+RIGHT($E127),0)\n+AB$11*OFFSET('Efficiency Distributions'!$E$10,MATCH($C119,'Efficiency Distributions'!$C$9:$C$87,0)+RIGHT($E127),0))\n/SUM(AB$10:AB$11)","v":0},{"$f":"IF(INDEX(PC_MAPPING,RIGHT($C119,1),MATCH($E$2,'Data by Building Type'!$D$22:$F$22,0))=\"Yes\",1,0)*\n(AC$10*OFFSET('Efficiency Distributions'!$D$10,MATCH($C119,'Efficiency Distributions'!$C$9:$C$87,0)+RIGHT($E127),0)\n+AC$11*OFFSET('Efficiency Distributions'!$E$10,MATCH($C119,'Efficiency Distributions'!$C$9:$C$87,0)+RIGHT($E127),0))\n/SUM(AC$10:AC$11)","v":0},{"$f":"IF(INDEX(PC_MAPPING,RIGHT($C119,1),MATCH($E$2,'Data by Building Type'!$D$22:$F$22,0))=\"Yes\",1,0)*\n(AD$10*OFFSET('Efficiency Distributions'!$D$10,MATCH($C119,'Efficiency Distributions'!$C$9:$C$87,0)+RIGHT($E127),0)\n+AD$11*OFFSET('Efficiency Distributions'!$E$10,MATCH($C119,'Efficiency Distributions'!$C$9:$C$87,0)+RIGHT($E127),0))\n/SUM(AD$10:AD$11)","v":0},{"$f":"IF(INDEX(PC_MAPPING,RIGHT($C119,1),MATCH($E$2,'Data by Building Type'!$D$22:$F$22,0))=\"Yes\",1,0)*\n(AE$10*OFFSET('Efficiency Distributions'!$D$10,MATCH($C119,'Efficiency Distributions'!$C$9:$C$87,0)+RIGHT($E127),0)\n+AE$11*OFFSET('Efficiency Distributions'!$E$10,MATCH($C119,'Efficiency Distributions'!$C$9:$C$87,0)+RIGHT($E127),0))\n/SUM(AE$10:AE$11)","v":0},{"$f":"IF(INDEX(PC_MAPPING,RIGHT($C119,1),MATCH($E$2,'Data by Building Type'!$D$22:$F$22,0))=\"Yes\",1,0)*\n(AF$10*OFFSET('Efficiency Distributions'!$D$10,MATCH($C119,'Efficiency Distributions'!$C$9:$C$87,0)+RIGHT($E127),0)\n+AF$11*OFFSET('Efficiency Distributions'!$E$10,MATCH($C119,'Efficiency Distributions'!$C$9:$C$87,0)+RIGHT($E127),0))\n/SUM(AF$10:AF$11)","v":0},{"$f":"IF(INDEX(PC_MAPPING,RIGHT($C119,1),MATCH($E$2,'Data by Building Type'!$D$22:$F$22,0))=\"Yes\",1,0)*\n(AG$10*OFFSET('Efficiency Distributions'!$D$10,MATCH($C119,'Efficiency Distributions'!$C$9:$C$87,0)+RIGHT($E127),0)\n+AG$11*OFFSET('Efficiency Distributions'!$E$10,MATCH($C119,'Efficiency Distributions'!$C$9:$C$87,0)+RIGHT($E127),0))\n/SUM(AG$10:AG$11)","v":0},{"$f":"IF(INDEX(PC_MAPPING,RIGHT($C119,1),MATCH($E$2,'Data by Building Type'!$D$22:$F$22,0))=\"Yes\",1,0)*\n(AH$10*OFFSET('Efficiency Distributions'!$D$10,MATCH($C119,'Efficiency Distributions'!$C$9:$C$87,0)+RIGHT($E127),0)\n+AH$11*OFFSET('Efficiency Distributions'!$E$10,MATCH($C119,'Efficiency Distributions'!$C$9:$C$87,0)+RIGHT($E127),0))\n/SUM(AH$10:AH$11)","v":0},{"$f":"IF(INDEX(PC_MAPPING,RIGHT($C119,1),MATCH($E$2,'Data by Building Type'!$D$22:$F$22,0))=\"Yes\",1,0)*\n(AI$10*OFFSET('Efficiency Distributions'!$D$10,MATCH($C119,'Efficiency Distributions'!$C$9:$C$87,0)+RIGHT($E127),0)\n+AI$11*OFFSET('Efficiency Distributions'!$E$10,MATCH($C119,'Efficiency Distributions'!$C$9:$C$87,0)+RIGHT($E127),0))\n/SUM(AI$10:AI$11)","v":0},{"$f":"IF(INDEX(PC_MAPPING,RIGHT($C119,1),MATCH($E$2,'Data by Building Type'!$D$22:$F$22,0))=\"Yes\",1,0)*\n(AJ$10*OFFSET('Efficiency Distributions'!$D$10,MATCH($C119,'Efficiency Distributions'!$C$9:$C$87,0)+RIGHT($E127),0)\n+AJ$11*OFFSET('Efficiency Distributions'!$E$10,MATCH($C119,'Efficiency Distributions'!$C$9:$C$87,0)+RIGHT($E127),0))\n/SUM(AJ$10:AJ$11)","v":0},{"$f":"IF(INDEX(PC_MAPPING,RIGHT($C119,1),MATCH($E$2,'Data by Building Type'!$D$22:$F$22,0))=\"Yes\",1,0)*\n(AK$10*OFFSET('Efficiency Distributions'!$D$10,MATCH($C119,'Efficiency Distributions'!$C$9:$C$87,0)+RIGHT($E127),0)\n+AK$11*OFFSET('Efficiency Distributions'!$E$10,MATCH($C119,'Efficiency Distributions'!$C$9:$C$87,0)+RIGHT($E127),0))\n/SUM(AK$10:AK$11)","v":0},{"$f":"IF(INDEX(PC_MAPPING,RIGHT($C119,1),MATCH($E$2,'Data by Building Type'!$D$22:$F$22,0))=\"Yes\",1,0)*\n(AL$10*OFFSET('Efficiency Distributions'!$D$10,MATCH($C119,'Efficiency Distributions'!$C$9:$C$87,0)+RIGHT($E127),0)\n+AL$11*OFFSET('Efficiency Distributions'!$E$10,MATCH($C119,'Efficiency Distributions'!$C$9:$C$87,0)+RIGHT($E127),0))\n/SUM(AL$10:AL$11)","v":0},{"$f":"IF(INDEX(PC_MAPPING,RIGHT($C119,1),MATCH($E$2,'Data by Building Type'!$D$22:$F$22,0))=\"Yes\",1,0)*\n(AM$10*OFFSET('Efficiency Distributions'!$D$10,MATCH($C119,'Efficiency Distributions'!$C$9:$C$87,0)+RIGHT($E127),0)\n+AM$11*OFFSET('Efficiency Distributions'!$E$10,MATCH($C119,'Efficiency Distributions'!$C$9:$C$87,0)+RIGHT($E127),0))\n/SUM(AM$10:AM$11)","v":0},{"$f":"IF(INDEX(PC_MAPPING,RIGHT($C119,1),MATCH($E$2,'Data by Building Type'!$D$22:$F$22,0))=\"Yes\",1,0)*\n(AN$10*OFFSET('Efficiency Distributions'!$D$10,MATCH($C119,'Efficiency Distributions'!$C$9:$C$87,0)+RIGHT($E127),0)\n+AN$11*OFFSET('Efficiency Distributions'!$E$10,MATCH($C119,'Efficiency Distributions'!$C$9:$C$87,0)+RIGHT($E127),0))\n/SUM(AN$10:AN$11)","v":0},{"$f":"IF(INDEX(PC_MAPPING,RIGHT($C119,1),MATCH($E$2,'Data by Building Type'!$D$22:$F$22,0))=\"Yes\",1,0)*\n(AO$10*OFFSET('Efficiency Distributions'!$D$10,MATCH($C119,'Efficiency Distributions'!$C$9:$C$87,0)+RIGHT($E127),0)\n+AO$11*OFFSET('Efficiency Distributions'!$E$10,MATCH($C119,'Efficiency Distributions'!$C$9:$C$87,0)+RIGHT($E127),0))\n/SUM(AO$10:AO$11)","v":0},{"$f":"IF(INDEX(PC_MAPPING,RIGHT($C119,1),MATCH($E$2,'Data by Building Type'!$D$22:$F$22,0))=\"Yes\",1,0)*\n(AP$10*OFFSET('Efficiency Distributions'!$D$10,MATCH($C119,'Efficiency Distributions'!$C$9:$C$87,0)+RIGHT($E127),0)\n+AP$11*OFFSET('Efficiency Distributions'!$E$10,MATCH($C119,'Efficiency Distributions'!$C$9:$C$87,0)+RIGHT($E127),0))\n/SUM(AP$10:AP$11)","v":0},{"$f":"IF(INDEX(PC_MAPPING,RIGHT($C119,1),MATCH($E$2,'Data by Building Type'!$D$22:$F$22,0))=\"Yes\",1,0)*\n(AQ$10*OFFSET('Efficiency Distributions'!$D$10,MATCH($C119,'Efficiency Distributions'!$C$9:$C$87,0)+RIGHT($E127),0)\n+AQ$11*OFFSET('Efficiency Distributions'!$E$10,MATCH($C119,'Efficiency Distributions'!$C$9:$C$87,0)+RIGHT($E127),0))\n/SUM(AQ$10:AQ$11)","v":0},{"$f":"IF(INDEX(PC_MAPPING,RIGHT($C119,1),MATCH($E$2,'Data by Building Type'!$D$22:$F$22,0))=\"Yes\",1,0)*\n(AR$10*OFFSET('Efficiency Distributions'!$D$10,MATCH($C119,'Efficiency Distributions'!$C$9:$C$87,0)+RIGHT($E127),0)\n+AR$11*OFFSET('Efficiency Distributions'!$E$10,MATCH($C119,'Efficiency Distributions'!$C$9:$C$87,0)+RIGHT($E127),0))\n/SUM(AR$10:AR$11)","v":0},{"$f":"IF(INDEX(PC_MAPPING,RIGHT($C119,1),MATCH($E$2,'Data by Building Type'!$D$22:$F$22,0))=\"Yes\",1,0)*\n(AS$10*OFFSET('Efficiency Distributions'!$D$10,MATCH($C119,'Efficiency Distributions'!$C$9:$C$87,0)+RIGHT($E127),0)\n+AS$11*OFFSET('Efficiency Distributions'!$E$10,MATCH($C119,'Efficiency Distributions'!$C$9:$C$87,0)+RIGHT($E127),0))\n/SUM(AS$10:AS$11)","v":0},{"$f":"IF(INDEX(PC_MAPPING,RIGHT($C119,1),MATCH($E$2,'Data by Building Type'!$D$22:$F$22,0))=\"Yes\",1,0)*\n(AT$10*OFFSET('Efficiency Distributions'!$D$10,MATCH($C119,'Efficiency Distributions'!$C$9:$C$87,0)+RIGHT($E127),0)\n+AT$11*OFFSET('Efficiency Distributions'!$E$10,MATCH($C119,'Efficiency Distributions'!$C$9:$C$87,0)+RIGHT($E127),0))\n/SUM(AT$10:AT$11)","v":0},{"$f":"IF(INDEX(PC_MAPPING,RIGHT($C119,1),MATCH($E$2,'Data by Building Type'!$D$22:$F$22,0))=\"Yes\",1,0)*\n(AU$10*OFFSET('Efficiency Distributions'!$D$10,MATCH($C119,'Efficiency Distributions'!$C$9:$C$87,0)+RIGHT($E127),0)\n+AU$11*OFFSET('Efficiency Distributions'!$E$10,MATCH($C119,'Efficiency Distributions'!$C$9:$C$87,0)+RIGHT($E127),0))\n/SUM(AU$10:AU$11)","v":0},{"$f":"IF(INDEX(PC_MAPPING,RIGHT($C119,1),MATCH($E$2,'Data by Building Type'!$D$22:$F$22,0))=\"Yes\",1,0)*\n(AV$10*OFFSET('Efficiency Distributions'!$D$10,MATCH($C119,'Efficiency Distributions'!$C$9:$C$87,0)+RIGHT($E127),0)\n+AV$11*OFFSET('Efficiency Distributions'!$E$10,MATCH($C119,'Efficiency Distributions'!$C$9:$C$87,0)+RIGHT($E127),0))\n/SUM(AV$10:AV$11)","v":0},{"$f":"IF(INDEX(PC_MAPPING,RIGHT($C119,1),MATCH($E$2,'Data by Building Type'!$D$22:$F$22,0))=\"Yes\",1,0)*\n(AW$10*OFFSET('Efficiency Distributions'!$D$10,MATCH($C119,'Efficiency Distributions'!$C$9:$C$87,0)+RIGHT($E127),0)\n+AW$11*OFFSET('Efficiency Distributions'!$E$10,MATCH($C119,'Efficiency Distributions'!$C$9:$C$87,0)+RIGHT($E127),0))\n/SUM(AW$10:AW$11)","v":0},{"$f":"IF(INDEX(PC_MAPPING,RIGHT($C119,1),MATCH($E$2,'Data by Building Type'!$D$22:$F$22,0))=\"Yes\",1,0)*\n(AX$10*OFFSET('Efficiency Distributions'!$D$10,MATCH($C119,'Efficiency Distributions'!$C$9:$C$87,0)+RIGHT($E127),0)\n+AX$11*OFFSET('Efficiency Distributions'!$E$10,MATCH($C119,'Efficiency Distributions'!$C$9:$C$87,0)+RIGHT($E127),0))\n/SUM(AX$10:AX$11)","v":0},{"$f":"IF(INDEX(PC_MAPPING,RIGHT($C119,1),MATCH($E$2,'Data by Building Type'!$D$22:$F$22,0))=\"Yes\",1,0)*\n(AY$10*OFFSET('Efficiency Distributions'!$D$10,MATCH($C119,'Efficiency Distributions'!$C$9:$C$87,0)+RIGHT($E127),0)\n+AY$11*OFFSET('Efficiency Distributions'!$E$10,MATCH($C119,'Efficiency Distributions'!$C$9:$C$87,0)+RIGHT($E127),0))\n/SUM(AY$10:AY$11)","v":0},{"$f":"IF(INDEX(PC_MAPPING,RIGHT($C119,1),MATCH($E$2,'Data by Building Type'!$D$22:$F$22,0))=\"Yes\",1,0)*\n(AZ$10*OFFSET('Efficiency Distributions'!$D$10,MATCH($C119,'Efficiency Distributions'!$C$9:$C$87,0)+RIGHT($E127),0)\n+AZ$11*OFFSET('Efficiency Distributions'!$E$10,MATCH($C119,'Efficiency Distributions'!$C$9:$C$87,0)+RIGHT($E127),0))\n/SUM(AZ$10:AZ$11)","v":0},{"$f":"IF(INDEX(PC_MAPPING,RIGHT($C119,1),MATCH($E$2,'Data by Building Type'!$D$22:$F$22,0))=\"Yes\",1,0)*\n(BA$10*OFFSET('Efficiency Distributions'!$D$10,MATCH($C119,'Efficiency Distributions'!$C$9:$C$87,0)+RIGHT($E127),0)\n+BA$11*OFFSET('Efficiency Distributions'!$E$10,MATCH($C119,'Efficiency Distributions'!$C$9:$C$87,0)+RIGHT($E127),0))\n/SUM(BA$10:BA$11)","v":0},{"$f":"IF(INDEX(PC_MAPPING,RIGHT($C119,1),MATCH($E$2,'Data by Building Type'!$D$22:$F$22,0))=\"Yes\",1,0)*\n(BB$10*OFFSET('Efficiency Distributions'!$D$10,MATCH($C119,'Efficiency Distributions'!$C$9:$C$87,0)+RIGHT($E127),0)\n+BB$11*OFFSET('Efficiency Distributions'!$E$10,MATCH($C119,'Efficiency Distributions'!$C$9:$C$87,0)+RIGHT($E127),0))\n/SUM(BB$10:BB$11)","v":0},{"$f":"IF(INDEX(PC_MAPPING,RIGHT($C119,1),MATCH($E$2,'Data by Building Type'!$D$22:$F$22,0))=\"Yes\",1,0)*\n(BC$10*OFFSET('Efficiency Distributions'!$D$10,MATCH($C119,'Efficiency Distributions'!$C$9:$C$87,0)+RIGHT($E127),0)\n+BC$11*OFFSET('Efficiency Distributions'!$E$10,MATCH($C119,'Efficiency Distributions'!$C$9:$C$87,0)+RIGHT($E127),0))\n/SUM(BC$10:BC$11)","v":0},{"$f":"IF(INDEX(PC_MAPPING,RIGHT($C119,1),MATCH($E$2,'Data by Building Type'!$D$22:$F$22,0))=\"Yes\",1,0)*\n(BD$10*OFFSET('Efficiency Distributions'!$D$10,MATCH($C119,'Efficiency Distributions'!$C$9:$C$87,0)+RIGHT($E127),0)\n+BD$11*OFFSET('Efficiency Distributions'!$E$10,MATCH($C119,'Efficiency Distributions'!$C$9:$C$87,0)+RIGHT($E127),0))\n/SUM(BD$10:BD$11)","v":0},{"$f":"IF(INDEX(PC_MAPPING,RIGHT($C119,1),MATCH($E$2,'Data by Building Type'!$D$22:$F$22,0))=\"Yes\",1,0)*\n(BE$10*OFFSET('Efficiency Distributions'!$D$10,MATCH($C119,'Efficiency Distributions'!$C$9:$C$87,0)+RIGHT($E127),0)\n+BE$11*OFFSET('Efficiency Distributions'!$E$10,MATCH($C119,'Efficiency Distributions'!$C$9:$C$87,0)+RIGHT($E127),0))\n/SUM(BE$10:BE$11)","v":0},{"$f":"IF(INDEX(PC_MAPPING,RIGHT($C119,1),MATCH($E$2,'Data by Building Type'!$D$22:$F$22,0))=\"Yes\",1,0)*\n(BF$10*OFFSET('Efficiency Distributions'!$D$10,MATCH($C119,'Efficiency Distributions'!$C$9:$C$87,0)+RIGHT($E127),0)\n+BF$11*OFFSET('Efficiency Distributions'!$E$10,MATCH($C119,'Efficiency Distributions'!$C$9:$C$87,0)+RIGHT($E127),0))\n/SUM(BF$10:BF$11)","v":0},{"$f":"IF(INDEX(PC_MAPPING,RIGHT($C119,1),MATCH($E$2,'Data by Building Type'!$D$22:$F$22,0))=\"Yes\",1,0)*\n(BG$10*OFFSET('Efficiency Distributions'!$D$10,MATCH($C119,'Efficiency Distributions'!$C$9:$C$87,0)+RIGHT($E127),0)\n+BG$11*OFFSET('Efficiency Distributions'!$E$10,MATCH($C119,'Efficiency Distributions'!$C$9:$C$87,0)+RIGHT($E127),0))\n/SUM(BG$10:BG$11)","v":0}]
[null,null,null,null,"EL5",{"$f":"IF(INDEX(PC_MAPPING,RIGHT($C119,1),MATCH($E$2,'Data by Building Type'!$D$22:$F$22,0))=\"Yes\",1,0)*\n(F$10*OFFSET('Efficiency Distributions'!$D$10,MATCH($C119,'Efficiency Distributions'!$C$9:$C$87,0)+RIGHT($E128),0)\n+F$11*OFFSET('Efficiency Distributions'!$E$10,MATCH($C119,'Efficiency Distributions'!$C$9:$C$87,0)+RIGHT($E128),0))\n/SUM(F$10:F$11)","v":0.24057103913772993},{"$f":"IF(INDEX(PC_MAPPING,RIGHT($C119,1),MATCH($E$2,'Data by Building Type'!$D$22:$F$22,0))=\"Yes\",1,0)*\n(G$10*OFFSET('Efficiency Distributions'!$D$10,MATCH($C119,'Efficiency Distributions'!$C$9:$C$87,0)+RIGHT($E128),0)\n+G$11*OFFSET('Efficiency Distributions'!$E$10,MATCH($C119,'Efficiency Distributions'!$C$9:$C$87,0)+RIGHT($E128),0))\n/SUM(G$10:G$11)","v":0.25579763978307557},{"$f":"IF(INDEX(PC_MAPPING,RIGHT($C119,1),MATCH($E$2,'Data by Building Type'!$D$22:$F$22,0))=\"Yes\",1,0)*\n(H$10*OFFSET('Efficiency Distributions'!$D$10,MATCH($C119,'Efficiency Distributions'!$C$9:$C$87,0)+RIGHT($E128),0)\n+H$11*OFFSET('Efficiency Distributions'!$E$10,MATCH($C119,'Efficiency Distributions'!$C$9:$C$87,0)+RIGHT($E128),0))\n/SUM(H$10:H$11)","v":0.24869935367662432},{"$f":"IF(INDEX(PC_MAPPING,RIGHT($C119,1),MATCH($E$2,'Data by Building Type'!$D$22:$F$22,0))=\"Yes\",1,0)*\n(I$10*OFFSET('Efficiency Distributions'!$D$10,MATCH($C119,'Efficiency Distributions'!$C$9:$C$87,0)+RIGHT($E128),0)\n+I$11*OFFSET('Efficiency Distributions'!$E$10,MATCH($C119,'Efficiency Distributions'!$C$9:$C$87,0)+RIGHT($E128),0))\n/SUM(I$10:I$11)","v":0.2280987009676996},{"$f":"IF(INDEX(PC_MAPPING,RIGHT($C119,1),MATCH($E$2,'Data by Building Type'!$D$22:$F$22,0))=\"Yes\",1,0)*\n(J$10*OFFSET('Efficiency Distributions'!$D$10,MATCH($C119,'Efficiency Distributions'!$C$9:$C$87,0)+RIGHT($E128),0)\n+J$11*OFFSET('Efficiency Distributions'!$E$10,MATCH($C119,'Efficiency Distributions'!$C$9:$C$87,0)+RIGHT($E128),0))\n/SUM(J$10:J$11)","v":0.20452653553765079},{"$f":"IF(INDEX(PC_MAPPING,RIGHT($C119,1),MATCH($E$2,'Data by Building Type'!$D$22:$F$22,0))=\"Yes\",1,0)*\n(K$10*OFFSET('Efficiency Distributions'!$D$10,MATCH($C119,'Efficiency Distributions'!$C$9:$C$87,0)+RIGHT($E128),0)\n+K$11*OFFSET('Efficiency Distributions'!$E$10,MATCH($C119,'Efficiency Distributions'!$C$9:$C$87,0)+RIGHT($E128),0))\n/SUM(K$10:K$11)","v":0.21116902266026374},{"$f":"IF(INDEX(PC_MAPPING,RIGHT($C119,1),MATCH($E$2,'Data by Building Type'!$D$22:$F$22,0))=\"Yes\",1,0)*\n(L$10*OFFSET('Efficiency Distributions'!$D$10,MATCH($C119,'Efficiency Distributions'!$C$9:$C$87,0)+RIGHT($E128),0)\n+L$11*OFFSET('Efficiency Distributions'!$E$10,MATCH($C119,'Efficiency Distributions'!$C$9:$C$87,0)+RIGHT($E128),0))\n/SUM(L$10:L$11)","v":0.20500785045276099},{"$f":"IF(INDEX(PC_MAPPING,RIGHT($C119,1),MATCH($E$2,'Data by Building Type'!$D$22:$F$22,0))=\"Yes\",1,0)*\n(M$10*OFFSET('Efficiency Distributions'!$D$10,MATCH($C119,'Efficiency Distributions'!$C$9:$C$87,0)+RIGHT($E128),0)\n+M$11*OFFSET('Efficiency Distributions'!$E$10,MATCH($C119,'Efficiency Distributions'!$C$9:$C$87,0)+RIGHT($E128),0))\n/SUM(M$10:M$11)","v":0.192638301114406},{"$f":"IF(INDEX(PC_MAPPING,RIGHT($C119,1),MATCH($E$2,'Data by Building Type'!$D$22:$F$22,0))=\"Yes\",1,0)*\n(N$10*OFFSET('Efficiency Distributions'!$D$10,MATCH($C119,'Efficiency Distributions'!$C$9:$C$87,0)+RIGHT($E128),0)\n+N$11*OFFSET('Efficiency Distributions'!$E$10,MATCH($C119,'Efficiency Distributions'!$C$9:$C$87,0)+RIGHT($E128),0))\n/SUM(N$10:N$11)","v":0.18251611280189628},{"$f":"IF(INDEX(PC_MAPPING,RIGHT($C119,1),MATCH($E$2,'Data by Building Type'!$D$22:$F$22,0))=\"Yes\",1,0)*\n(O$10*OFFSET('Efficiency Distributions'!$D$10,MATCH($C119,'Efficiency Distributions'!$C$9:$C$87,0)+RIGHT($E128),0)\n+O$11*OFFSET('Efficiency Distributions'!$E$10,MATCH($C119,'Efficiency Distributions'!$C$9:$C$87,0)+RIGHT($E128),0))\n/SUM(O$10:O$11)","v":0.19197159548238554},{"$f":"IF(INDEX(PC_MAPPING,RIGHT($C119,1),MATCH($E$2,'Data by Building Type'!$D$22:$F$22,0))=\"Yes\",1,0)*\n(P$10*OFFSET('Efficiency Distributions'!$D$10,MATCH($C119,'Efficiency Distributions'!$C$9:$C$87,0)+RIGHT($E128),0)\n+P$11*OFFSET('Efficiency Distributions'!$E$10,MATCH($C119,'Efficiency Distributions'!$C$9:$C$87,0)+RIGHT($E128),0))\n/SUM(P$10:P$11)","v":0.23358694452918194},{"$f":"IF(INDEX(PC_MAPPING,RIGHT($C119,1),MATCH($E$2,'Data by Building Type'!$D$22:$F$22,0))=\"Yes\",1,0)*\n(Q$10*OFFSET('Efficiency Distributions'!$D$10,MATCH($C119,'Efficiency Distributions'!$C$9:$C$87,0)+RIGHT($E128),0)\n+Q$11*OFFSET('Efficiency Distributions'!$E$10,MATCH($C119,'Efficiency Distributions'!$C$9:$C$87,0)+RIGHT($E128),0))\n/SUM(Q$10:Q$11)","v":0.2323421306803389},{"$f":"IF(INDEX(PC_MAPPING,RIGHT($C119,1),MATCH($E$2,'Data by Building Type'!$D$22:$F$22,0))=\"Yes\",1,0)*\n(R$10*OFFSET('Efficiency Distributions'!$D$10,MATCH($C119,'Efficiency Distributions'!$C$9:$C$87,0)+RIGHT($E128),0)\n+R$11*OFFSET('Efficiency Distributions'!$E$10,MATCH($C119,'Efficiency Distributions'!$C$9:$C$87,0)+RIGHT($E128),0))\n/SUM(R$10:R$11)","v":0.30997946379297631},{"$f":"IF(INDEX(PC_MAPPING,RIGHT($C119,1),MATCH($E$2,'Data by Building Type'!$D$22:$F$22,0))=\"Yes\",1,0)*\n(S$10*OFFSET('Efficiency Distributions'!$D$10,MATCH($C119,'Efficiency Distributions'!$C$9:$C$87,0)+RIGHT($E128),0)\n+S$11*OFFSET('Efficiency Distributions'!$E$10,MATCH($C119,'Efficiency Distributions'!$C$9:$C$87,0)+RIGHT($E128),0))\n/SUM(S$10:S$11)","v":0.30997946379297631},{"$f":"IF(INDEX(PC_MAPPING,RIGHT($C119,1),MATCH($E$2,'Data by Building Type'!$D$22:$F$22,0))=\"Yes\",1,0)*\n(T$10*OFFSET('Efficiency Distributions'!$D$10,MATCH($C119,'Efficiency Distributions'!$C$9:$C$87,0)+RIGHT($E128),0)\n+T$11*OFFSET('Efficiency Distributions'!$E$10,MATCH($C119,'Efficiency Distributions'!$C$9:$C$87,0)+RIGHT($E128),0))\n/SUM(T$10:T$11)","v":0.30997946379297631},{"$f":"IF(INDEX(PC_MAPPING,RIGHT($C119,1),MATCH($E$2,'Data by Building Type'!$D$22:$F$22,0))=\"Yes\",1,0)*\n(U$10*OFFSET('Efficiency Distributions'!$D$10,MATCH($C119,'Efficiency Distributions'!$C$9:$C$87,0)+RIGHT($E128),0)\n+U$11*OFFSET('Efficiency Distributions'!$E$10,MATCH($C119,'Efficiency Distributions'!$C$9:$C$87,0)+RIGHT($E128),0))\n/SUM(U$10:U$11)","v":0.30997946379297631},{"$f":"IF(INDEX(PC_MAPPING,RIGHT($C119,1),MATCH($E$2,'Data by Building Type'!$D$22:$F$22,0))=\"Yes\",1,0)*\n(V$10*OFFSET('Efficiency Distributions'!$D$10,MATCH($C119,'Efficiency Distributions'!$C$9:$C$87,0)+RIGHT($E128),0)\n+V$11*OFFSET('Efficiency Distributions'!$E$10,MATCH($C119,'Efficiency Distributions'!$C$9:$C$87,0)+RIGHT($E128),0))\n/SUM(V$10:V$11)","v":0.30997946379297631},{"$f":"IF(INDEX(PC_MAPPING,RIGHT($C119,1),MATCH($E$2,'Data by Building Type'!$D$22:$F$22,0))=\"Yes\",1,0)*\n(W$10*OFFSET('Efficiency Distributions'!$D$10,MATCH($C119,'Efficiency Distributions'!$C$9:$C$87,0)+RIGHT($E128),0)\n+W$11*OFFSET('Efficiency Distributions'!$E$10,MATCH($C119,'Efficiency Distributions'!$C$9:$C$87,0)+RIGHT($E128),0))\n/SUM(W$10:W$11)","v":0.30997946379297631},{"$f":"IF(INDEX(PC_MAPPING,RIGHT($C119,1),MATCH($E$2,'Data by Building Type'!$D$22:$F$22,0))=\"Yes\",1,0)*\n(X$10*OFFSET('Efficiency Distributions'!$D$10,MATCH($C119,'Efficiency Distributions'!$C$9:$C$87,0)+RIGHT($E128),0)\n+X$11*OFFSET('Efficiency Distributions'!$E$10,MATCH($C119,'Efficiency Distributions'!$C$9:$C$87,0)+RIGHT($E128),0))\n/SUM(X$10:X$11)","v":0.30997946379297631},{"$f":"IF(INDEX(PC_MAPPING,RIGHT($C119,1),MATCH($E$2,'Data by Building Type'!$D$22:$F$22,0))=\"Yes\",1,0)*\n(Y$10*OFFSET('Efficiency Distributions'!$D$10,MATCH($C119,'Efficiency Distributions'!$C$9:$C$87,0)+RIGHT($E128),0)\n+Y$11*OFFSET('Efficiency Distributions'!$E$10,MATCH($C119,'Efficiency Distributions'!$C$9:$C$87,0)+RIGHT($E128),0))\n/SUM(Y$10:Y$11)","v":0.30997946379297631},{"$f":"IF(INDEX(PC_MAPPING,RIGHT($C119,1),MATCH($E$2,'Data by Building Type'!$D$22:$F$22,0))=\"Yes\",1,0)*\n(Z$10*OFFSET('Efficiency Distributions'!$D$10,MATCH($C119,'Efficiency Distributions'!$C$9:$C$87,0)+RIGHT($E128),0)\n+Z$11*OFFSET('Efficiency Distributions'!$E$10,MATCH($C119,'Efficiency Distributions'!$C$9:$C$87,0)+RIGHT($E128),0))\n/SUM(Z$10:Z$11)","v":0.30997946379297631},{"$f":"IF(INDEX(PC_MAPPING,RIGHT($C119,1),MATCH($E$2,'Data by Building Type'!$D$22:$F$22,0))=\"Yes\",1,0)*\n(AA$10*OFFSET('Efficiency Distributions'!$D$10,MATCH($C119,'Efficiency Distributions'!$C$9:$C$87,0)+RIGHT($E128),0)\n+AA$11*OFFSET('Efficiency Distributions'!$E$10,MATCH($C119,'Efficiency Distributions'!$C$9:$C$87,0)+RIGHT($E128),0))\n/SUM(AA$10:AA$11)","v":0.30997946379297631},{"$f":"IF(INDEX(PC_MAPPING,RIGHT($C119,1),MATCH($E$2,'Data by Building Type'!$D$22:$F$22,0))=\"Yes\",1,0)*\n(AB$10*OFFSET('Efficiency Distributions'!$D$10,MATCH($C119,'Efficiency Distributions'!$C$9:$C$87,0)+RIGHT($E128),0)\n+AB$11*OFFSET('Efficiency Distributions'!$E$10,MATCH($C119,'Efficiency Distributions'!$C$9:$C$87,0)+RIGHT($E128),0))\n/SUM(AB$10:AB$11)","v":0.30997946379297631},{"$f":"IF(INDEX(PC_MAPPING,RIGHT($C119,1),MATCH($E$2,'Data by Building Type'!$D$22:$F$22,0))=\"Yes\",1,0)*\n(AC$10*OFFSET('Efficiency Distributions'!$D$10,MATCH($C119,'Efficiency Distributions'!$C$9:$C$87,0)+RIGHT($E128),0)\n+AC$11*OFFSET('Efficiency Distributions'!$E$10,MATCH($C119,'Efficiency Distributions'!$C$9:$C$87,0)+RIGHT($E128),0))\n/SUM(AC$10:AC$11)","v":0.30997946379297631},{"$f":"IF(INDEX(PC_MAPPING,RIGHT($C119,1),MATCH($E$2,'Data by Building Type'!$D$22:$F$22,0))=\"Yes\",1,0)*\n(AD$10*OFFSET('Efficiency Distributions'!$D$10,MATCH($C119,'Efficiency Distributions'!$C$9:$C$87,0)+RIGHT($E128),0)\n+AD$11*OFFSET('Efficiency Distributions'!$E$10,MATCH($C119,'Efficiency Distributions'!$C$9:$C$87,0)+RIGHT($E128),0))\n/SUM(AD$10:AD$11)","v":0.30997946379297631},{"$f":"IF(INDEX(PC_MAPPING,RIGHT($C119,1),MATCH($E$2,'Data by Building Type'!$D$22:$F$22,0))=\"Yes\",1,0)*\n(AE$10*OFFSET('Efficiency Distributions'!$D$10,MATCH($C119,'Efficiency Distributions'!$C$9:$C$87,0)+RIGHT($E128),0)\n+AE$11*OFFSET('Efficiency Distributions'!$E$10,MATCH($C119,'Efficiency Distributions'!$C$9:$C$87,0)+RIGHT($E128),0))\n/SUM(AE$10:AE$11)","v":0.30997946379297631},{"$f":"IF(INDEX(PC_MAPPING,RIGHT($C119,1),MATCH($E$2,'Data by Building Type'!$D$22:$F$22,0))=\"Yes\",1,0)*\n(AF$10*OFFSET('Efficiency Distributions'!$D$10,MATCH($C119,'Efficiency Distributions'!$C$9:$C$87,0)+RIGHT($E128),0)\n+AF$11*OFFSET('Efficiency Distributions'!$E$10,MATCH($C119,'Efficiency Distributions'!$C$9:$C$87,0)+RIGHT($E128),0))\n/SUM(AF$10:AF$11)","v":0.30997946379297631},{"$f":"IF(INDEX(PC_MAPPING,RIGHT($C119,1),MATCH($E$2,'Data by Building Type'!$D$22:$F$22,0))=\"Yes\",1,0)*\n(AG$10*OFFSET('Efficiency Distributions'!$D$10,MATCH($C119,'Efficiency Distributions'!$C$9:$C$87,0)+RIGHT($E128),0)\n+AG$11*OFFSET('Efficiency Distributions'!$E$10,MATCH($C119,'Efficiency Distributions'!$C$9:$C$87,0)+RIGHT($E128),0))\n/SUM(AG$10:AG$11)","v":0.30997946379297631},{"$f":"IF(INDEX(PC_MAPPING,RIGHT($C119,1),MATCH($E$2,'Data by Building Type'!$D$22:$F$22,0))=\"Yes\",1,0)*\n(AH$10*OFFSET('Efficiency Distributions'!$D$10,MATCH($C119,'Efficiency Distributions'!$C$9:$C$87,0)+RIGHT($E128),0)\n+AH$11*OFFSET('Efficiency Distributions'!$E$10,MATCH($C119,'Efficiency Distributions'!$C$9:$C$87,0)+RIGHT($E128),0))\n/SUM(AH$10:AH$11)","v":0.30997946379297631},{"$f":"IF(INDEX(PC_MAPPING,RIGHT($C119,1),MATCH($E$2,'Data by Building Type'!$D$22:$F$22,0))=\"Yes\",1,0)*\n(AI$10*OFFSET('Efficiency Distributions'!$D$10,MATCH($C119,'Efficiency Distributions'!$C$9:$C$87,0)+RIGHT($E128),0)\n+AI$11*OFFSET('Efficiency Distributions'!$E$10,MATCH($C119,'Efficiency Distributions'!$C$9:$C$87,0)+RIGHT($E128),0))\n/SUM(AI$10:AI$11)","v":0.30997946379297631},{"$f":"IF(INDEX(PC_MAPPING,RIGHT($C119,1),MATCH($E$2,'Data by Building Type'!$D$22:$F$22,0))=\"Yes\",1,0)*\n(AJ$10*OFFSET('Efficiency Distributions'!$D$10,MATCH($C119,'Efficiency Distributions'!$C$9:$C$87,0)+RIGHT($E128),0)\n+AJ$11*OFFSET('Efficiency Distributions'!$E$10,MATCH($C119,'Efficiency Distributions'!$C$9:$C$87,0)+RIGHT($E128),0))\n/SUM(AJ$10:AJ$11)","v":0.30997946379297631},{"$f":"IF(INDEX(PC_MAPPING,RIGHT($C119,1),MATCH($E$2,'Data by Building Type'!$D$22:$F$22,0))=\"Yes\",1,0)*\n(AK$10*OFFSET('Efficiency Distributions'!$D$10,MATCH($C119,'Efficiency Distributions'!$C$9:$C$87,0)+RIGHT($E128),0)\n+AK$11*OFFSET('Efficiency Distributions'!$E$10,MATCH($C119,'Efficiency Distributions'!$C$9:$C$87,0)+RIGHT($E128),0))\n/SUM(AK$10:AK$11)","v":0.27592846518333913},{"$f":"IF(INDEX(PC_MAPPING,RIGHT($C119,1),MATCH($E$2,'Data by Building Type'!$D$22:$F$22,0))=\"Yes\",1,0)*\n(AL$10*OFFSET('Efficiency Distributions'!$D$10,MATCH($C119,'Efficiency Distributions'!$C$9:$C$87,0)+RIGHT($E128),0)\n+AL$11*OFFSET('Efficiency Distributions'!$E$10,MATCH($C119,'Efficiency Distributions'!$C$9:$C$87,0)+RIGHT($E128),0))\n/SUM(AL$10:AL$11)","v":0.27456085088191579},{"$f":"IF(INDEX(PC_MAPPING,RIGHT($C119,1),MATCH($E$2,'Data by Building Type'!$D$22:$F$22,0))=\"Yes\",1,0)*\n(AM$10*OFFSET('Efficiency Distributions'!$D$10,MATCH($C119,'Efficiency Distributions'!$C$9:$C$87,0)+RIGHT($E128),0)\n+AM$11*OFFSET('Efficiency Distributions'!$E$10,MATCH($C119,'Efficiency Distributions'!$C$9:$C$87,0)+RIGHT($E128),0))\n/SUM(AM$10:AM$11)","v":0.24218965152303873},{"$f":"IF(INDEX(PC_MAPPING,RIGHT($C119,1),MATCH($E$2,'Data by Building Type'!$D$22:$F$22,0))=\"Yes\",1,0)*\n(AN$10*OFFSET('Efficiency Distributions'!$D$10,MATCH($C119,'Efficiency Distributions'!$C$9:$C$87,0)+RIGHT($E128),0)\n+AN$11*OFFSET('Efficiency Distributions'!$E$10,MATCH($C119,'Efficiency Distributions'!$C$9:$C$87,0)+RIGHT($E128),0))\n/SUM(AN$10:AN$11)","v":0.24384107731014054},{"$f":"IF(INDEX(PC_MAPPING,RIGHT($C119,1),MATCH($E$2,'Data by Building Type'!$D$22:$F$22,0))=\"Yes\",1,0)*\n(AO$10*OFFSET('Efficiency Distributions'!$D$10,MATCH($C119,'Efficiency Distributions'!$C$9:$C$87,0)+RIGHT($E128),0)\n+AO$11*OFFSET('Efficiency Distributions'!$E$10,MATCH($C119,'Efficiency Distributions'!$C$9:$C$87,0)+RIGHT($E128),0))\n/SUM(AO$10:AO$11)","v":0.24182896408630281},{"$f":"IF(INDEX(PC_MAPPING,RIGHT($C119,1),MATCH($E$2,'Data by Building Type'!$D$22:$F$22,0))=\"Yes\",1,0)*\n(AP$10*OFFSET('Efficiency Distributions'!$D$10,MATCH($C119,'Efficiency Distributions'!$C$9:$C$87,0)+RIGHT($E128),0)\n+AP$11*OFFSET('Efficiency Distributions'!$E$10,MATCH($C119,'Efficiency Distributions'!$C$9:$C$87,0)+RIGHT($E128),0))\n/SUM(AP$10:AP$11)","v":0.23770236622321117},{"$f":"IF(INDEX(PC_MAPPING,RIGHT($C119,1),MATCH($E$2,'Data by Building Type'!$D$22:$F$22,0))=\"Yes\",1,0)*\n(AQ$10*OFFSET('Efficiency Distributions'!$D$10,MATCH($C119,'Efficiency Distributions'!$C$9:$C$87,0)+RIGHT($E128),0)\n+AQ$11*OFFSET('Efficiency Distributions'!$E$10,MATCH($C119,'Efficiency Distributions'!$C$9:$C$87,0)+RIGHT($E128),0))\n/SUM(AQ$10:AQ$11)","v":0.23351045982237842},{"$f":"IF(INDEX(PC_MAPPING,RIGHT($C119,1),MATCH($E$2,'Data by Building Type'!$D$22:$F$22,0))=\"Yes\",1,0)*\n(AR$10*OFFSET('Efficiency Distributions'!$D$10,MATCH($C119,'Efficiency Distributions'!$C$9:$C$87,0)+RIGHT($E128),0)\n+AR$11*OFFSET('Efficiency Distributions'!$E$10,MATCH($C119,'Efficiency Distributions'!$C$9:$C$87,0)+RIGHT($E128),0))\n/SUM(AR$10:AR$11)","v":0.23438498018195197},{"$f":"IF(INDEX(PC_MAPPING,RIGHT($C119,1),MATCH($E$2,'Data by Building Type'!$D$22:$F$22,0))=\"Yes\",1,0)*\n(AS$10*OFFSET('Efficiency Distributions'!$D$10,MATCH($C119,'Efficiency Distributions'!$C$9:$C$87,0)+RIGHT($E128),0)\n+AS$11*OFFSET('Efficiency Distributions'!$E$10,MATCH($C119,'Efficiency Distributions'!$C$9:$C$87,0)+RIGHT($E128),0))\n/SUM(AS$10:AS$11)","v":0.21996807948492544},{"$f":"IF(INDEX(PC_MAPPING,RIGHT($C119,1),MATCH($E$2,'Data by Building Type'!$D$22:$F$22,0))=\"Yes\",1,0)*\n(AT$10*OFFSET('Efficiency Distributions'!$D$10,MATCH($C119,'Efficiency Distributions'!$C$9:$C$87,0)+RIGHT($E128),0)\n+AT$11*OFFSET('Efficiency Distributions'!$E$10,MATCH($C119,'Efficiency Distributions'!$C$9:$C$87,0)+RIGHT($E128),0))\n/SUM(AT$10:AT$11)","v":0.20473001627792803},{"$f":"IF(INDEX(PC_MAPPING,RIGHT($C119,1),MATCH($E$2,'Data by Building Type'!$D$22:$F$22,0))=\"Yes\",1,0)*\n(AU$10*OFFSET('Efficiency Distributions'!$D$10,MATCH($C119,'Efficiency Distributions'!$C$9:$C$87,0)+RIGHT($E128),0)\n+AU$11*OFFSET('Efficiency Distributions'!$E$10,MATCH($C119,'Efficiency Distributions'!$C$9:$C$87,0)+RIGHT($E128),0))\n/SUM(AU$10:AU$11)","v":0.1999540735236732},{"$f":"IF(INDEX(PC_MAPPING,RIGHT($C119,1),MATCH($E$2,'Data by Building Type'!$D$22:$F$22,0))=\"Yes\",1,0)*\n(AV$10*OFFSET('Efficiency Distributions'!$D$10,MATCH($C119,'Efficiency Distributions'!$C$9:$C$87,0)+RIGHT($E128),0)\n+AV$11*OFFSET('Efficiency Distributions'!$E$10,MATCH($C119,'Efficiency Distributions'!$C$9:$C$87,0)+RIGHT($E128),0))\n/SUM(AV$10:AV$11)","v":0.23402186651378057},{"$f":"IF(INDEX(PC_MAPPING,RIGHT($C119,1),MATCH($E$2,'Data by Building Type'!$D$22:$F$22,0))=\"Yes\",1,0)*\n(AW$10*OFFSET('Efficiency Distributions'!$D$10,MATCH($C119,'Efficiency Distributions'!$C$9:$C$87,0)+RIGHT($E128),0)\n+AW$11*OFFSET('Efficiency Distributions'!$E$10,MATCH($C119,'Efficiency Distributions'!$C$9:$C$87,0)+RIGHT($E128),0))\n/SUM(AW$10:AW$11)","v":0.22279185578095725},{"$f":"IF(INDEX(PC_MAPPING,RIGHT($C119,1),MATCH($E$2,'Data by Building Type'!$D$22:$F$22,0))=\"Yes\",1,0)*\n(AX$10*OFFSET('Efficiency Distributions'!$D$10,MATCH($C119,'Efficiency Distributions'!$C$9:$C$87,0)+RIGHT($E128),0)\n+AX$11*OFFSET('Efficiency Distributions'!$E$10,MATCH($C119,'Efficiency Distributions'!$C$9:$C$87,0)+RIGHT($E128),0))\n/SUM(AX$10:AX$11)","v":0.22893218329918319},{"$f":"IF(INDEX(PC_MAPPING,RIGHT($C119,1),MATCH($E$2,'Data by Building Type'!$D$22:$F$22,0))=\"Yes\",1,0)*\n(AY$10*OFFSET('Efficiency Distributions'!$D$10,MATCH($C119,'Efficiency Distributions'!$C$9:$C$87,0)+RIGHT($E128),0)\n+AY$11*OFFSET('Efficiency Distributions'!$E$10,MATCH($C119,'Efficiency Distributions'!$C$9:$C$87,0)+RIGHT($E128),0))\n/SUM(AY$10:AY$11)","v":0.23925735999494296},{"$f":"IF(INDEX(PC_MAPPING,RIGHT($C119,1),MATCH($E$2,'Data by Building Type'!$D$22:$F$22,0))=\"Yes\",1,0)*\n(AZ$10*OFFSET('Efficiency Distributions'!$D$10,MATCH($C119,'Efficiency Distributions'!$C$9:$C$87,0)+RIGHT($E128),0)\n+AZ$11*OFFSET('Efficiency Distributions'!$E$10,MATCH($C119,'Efficiency Distributions'!$C$9:$C$87,0)+RIGHT($E128),0))\n/SUM(AZ$10:AZ$11)","v":0.25374442809302911},{"$f":"IF(INDEX(PC_MAPPING,RIGHT($C119,1),MATCH($E$2,'Data by Building Type'!$D$22:$F$22,0))=\"Yes\",1,0)*\n(BA$10*OFFSET('Efficiency Distributions'!$D$10,MATCH($C119,'Efficiency Distributions'!$C$9:$C$87,0)+RIGHT($E128),0)\n+BA$11*OFFSET('Efficiency Distributions'!$E$10,MATCH($C119,'Efficiency Distributions'!$C$9:$C$87,0)+RIGHT($E128),0))\n/SUM(BA$10:BA$11)","v":0.24770427649577106},{"$f":"IF(INDEX(PC_MAPPING,RIGHT($C119,1),MATCH($E$2,'Data by Building Type'!$D$22:$F$22,0))=\"Yes\",1,0)*\n(BB$10*OFFSET('Efficiency Distributions'!$D$10,MATCH($C119,'Efficiency Distributions'!$C$9:$C$87,0)+RIGHT($E128),0)\n+BB$11*OFFSET('Efficiency Distributions'!$E$10,MATCH($C119,'Efficiency Distributions'!$C$9:$C$87,0)+RIGHT($E128),0))\n/SUM(BB$10:BB$11)","v":0.24530752199748013},{"$f":"IF(INDEX(PC_MAPPING,RIGHT($C119,1),MATCH($E$2,'Data by Building Type'!$D$22:$F$22,0))=\"Yes\",1,0)*\n(BC$10*OFFSET('Efficiency Distributions'!$D$10,MATCH($C119,'Efficiency Distributions'!$C$9:$C$87,0)+RIGHT($E128),0)\n+BC$11*OFFSET('Efficiency Distributions'!$E$10,MATCH($C119,'Efficiency Distributions'!$C$9:$C$87,0)+RIGHT($E128),0))\n/SUM(BC$10:BC$11)","v":0.24687702541621301},{"$f":"IF(INDEX(PC_MAPPING,RIGHT($C119,1),MATCH($E$2,'Data by Building Type'!$D$22:$F$22,0))=\"Yes\",1,0)*\n(BD$10*OFFSET('Efficiency Distributions'!$D$10,MATCH($C119,'Efficiency Distributions'!$C$9:$C$87,0)+RIGHT($E128),0)\n+BD$11*OFFSET('Efficiency Distributions'!$E$10,MATCH($C119,'Efficiency Distributions'!$C$9:$C$87,0)+RIGHT($E128),0))\n/SUM(BD$10:BD$11)","v":0.25676168676548949},{"$f":"IF(INDEX(PC_MAPPING,RIGHT($C119,1),MATCH($E$2,'Data by Building Type'!$D$22:$F$22,0))=\"Yes\",1,0)*\n(BE$10*OFFSET('Efficiency Distributions'!$D$10,MATCH($C119,'Efficiency Distributions'!$C$9:$C$87,0)+RIGHT($E128),0)\n+BE$11*OFFSET('Efficiency Distributions'!$E$10,MATCH($C119,'Efficiency Distributions'!$C$9:$C$87,0)+RIGHT($E128),0))\n/SUM(BE$10:BE$11)","v":0.25107940962239417},{"$f":"IF(INDEX(PC_MAPPING,RIGHT($C119,1),MATCH($E$2,'Data by Building Type'!$D$22:$F$22,0))=\"Yes\",1,0)*\n(BF$10*OFFSET('Efficiency Distributions'!$D$10,MATCH($C119,'Efficiency Distributions'!$C$9:$C$87,0)+RIGHT($E128),0)\n+BF$11*OFFSET('Efficiency Distributions'!$E$10,MATCH($C119,'Efficiency Distributions'!$C$9:$C$87,0)+RIGHT($E128),0))\n/SUM(BF$10:BF$11)","v":0.26949532614637156},{"$f":"IF(INDEX(PC_MAPPING,RIGHT($C119,1),MATCH($E$2,'Data by Building Type'!$D$22:$F$22,0))=\"Yes\",1,0)*\n(BG$10*OFFSET('Efficiency Distributions'!$D$10,MATCH($C119,'Efficiency Distributions'!$C$9:$C$87,0)+RIGHT($E128),0)\n+BG$11*OFFSET('Efficiency Distributions'!$E$10,MATCH($C119,'Efficiency Distributions'!$C$9:$C$87,0)+RIGHT($E128),0))\n/SUM(BG$10:BG$11)","v":0.26967736380118418}]
[null,null,null,null,"EL6",{"$f":"IF(INDEX(PC_MAPPING,RIGHT($C119,1),MATCH($E$2,'Data by Building Type'!$D$22:$F$22,0))=\"Yes\",1,0)*\n(F$10*OFFSET('Efficiency Distributions'!$D$10,MATCH($C119,'Efficiency Distributions'!$C$9:$C$87,0)+RIGHT($E129),0)\n+F$11*OFFSET('Efficiency Distributions'!$E$10,MATCH($C119,'Efficiency Distributions'!$C$9:$C$87,0)+RIGHT($E129),0))\n/SUM(F$10:F$11)","v":0},{"$f":"IF(INDEX(PC_MAPPING,RIGHT($C119,1),MATCH($E$2,'Data by Building Type'!$D$22:$F$22,0))=\"Yes\",1,0)*\n(G$10*OFFSET('Efficiency Distributions'!$D$10,MATCH($C119,'Efficiency Distributions'!$C$9:$C$87,0)+RIGHT($E129),0)\n+G$11*OFFSET('Efficiency Distributions'!$E$10,MATCH($C119,'Efficiency Distributions'!$C$9:$C$87,0)+RIGHT($E129),0))\n/SUM(G$10:G$11)","v":0},{"$f":"IF(INDEX(PC_MAPPING,RIGHT($C119,1),MATCH($E$2,'Data by Building Type'!$D$22:$F$22,0))=\"Yes\",1,0)*\n(H$10*OFFSET('Efficiency Distributions'!$D$10,MATCH($C119,'Efficiency Distributions'!$C$9:$C$87,0)+RIGHT($E129),0)\n+H$11*OFFSET('Efficiency Distributions'!$E$10,MATCH($C119,'Efficiency Distributions'!$C$9:$C$87,0)+RIGHT($E129),0))\n/SUM(H$10:H$11)","v":0},{"$f":"IF(INDEX(PC_MAPPING,RIGHT($C119,1),MATCH($E$2,'Data by Building Type'!$D$22:$F$22,0))=\"Yes\",1,0)*\n(I$10*OFFSET('Efficiency Distributions'!$D$10,MATCH($C119,'Efficiency Distributions'!$C$9:$C$87,0)+RIGHT($E129),0)\n+I$11*OFFSET('Efficiency Distributions'!$E$10,MATCH($C119,'Efficiency Distributions'!$C$9:$C$87,0)+RIGHT($E129),0))\n/SUM(I$10:I$11)","v":0},{"$f":"IF(INDEX(PC_MAPPING,RIGHT($C119,1),MATCH($E$2,'Data by Building Type'!$D$22:$F$22,0))=\"Yes\",1,0)*\n(J$10*OFFSET('Efficiency Distributions'!$D$10,MATCH($C119,'Efficiency Distributions'!$C$9:$C$87,0)+RIGHT($E129),0)\n+J$11*OFFSET('Efficiency Distributions'!$E$10,MATCH($C119,'Efficiency Distributions'!$C$9:$C$87,0)+RIGHT($E129),0))\n/SUM(J$10:J$11)","v":0},{"$f":"IF(INDEX(PC_MAPPING,RIGHT($C119,1),MATCH($E$2,'Data by Building Type'!$D$22:$F$22,0))=\"Yes\",1,0)*\n(K$10*OFFSET('Efficiency Distributions'!$D$10,MATCH($C119,'Efficiency Distributions'!$C$9:$C$87,0)+RIGHT($E129),0)\n+K$11*OFFSET('Efficiency Distributions'!$E$10,MATCH($C119,'Efficiency Distributions'!$C$9:$C$87,0)+RIGHT($E129),0))\n/SUM(K$10:K$11)","v":0},{"$f":"IF(INDEX(PC_MAPPING,RIGHT($C119,1),MATCH($E$2,'Data by Building Type'!$D$22:$F$22,0))=\"Yes\",1,0)*\n(L$10*OFFSET('Efficiency Distributions'!$D$10,MATCH($C119,'Efficiency Distributions'!$C$9:$C$87,0)+RIGHT($E129),0)\n+L$11*OFFSET('Efficiency Distributions'!$E$10,MATCH($C119,'Efficiency Distributions'!$C$9:$C$87,0)+RIGHT($E129),0))\n/SUM(L$10:L$11)","v":0},{"$f":"IF(INDEX(PC_MAPPING,RIGHT($C119,1),MATCH($E$2,'Data by Building Type'!$D$22:$F$22,0))=\"Yes\",1,0)*\n(M$10*OFFSET('Efficiency Distributions'!$D$10,MATCH($C119,'Efficiency Distributions'!$C$9:$C$87,0)+RIGHT($E129),0)\n+M$11*OFFSET('Efficiency Distributions'!$E$10,MATCH($C119,'Efficiency Distributions'!$C$9:$C$87,0)+RIGHT($E129),0))\n/SUM(M$10:M$11)","v":0},{"$f":"IF(INDEX(PC_MAPPING,RIGHT($C119,1),MATCH($E$2,'Data by Building Type'!$D$22:$F$22,0))=\"Yes\",1,0)*\n(N$10*OFFSET('Efficiency Distributions'!$D$10,MATCH($C119,'Efficiency Distributions'!$C$9:$C$87,0)+RIGHT($E129),0)\n+N$11*OFFSET('Efficiency Distributions'!$E$10,MATCH($C119,'Efficiency Distributions'!$C$9:$C$87,0)+RIGHT($E129),0))\n/SUM(N$10:N$11)","v":0},{"$f":"IF(INDEX(PC_MAPPING,RIGHT($C119,1),MATCH($E$2,'Data by Building Type'!$D$22:$F$22,0))=\"Yes\",1,0)*\n(O$10*OFFSET('Efficiency Distributions'!$D$10,MATCH($C119,'Efficiency Distributions'!$C$9:$C$87,0)+RIGHT($E129),0)\n+O$11*OFFSET('Efficiency Distributions'!$E$10,MATCH($C119,'Efficiency Distributions'!$C$9:$C$87,0)+RIGHT($E129),0))\n/SUM(O$10:O$11)","v":0},{"$f":"IF(INDEX(PC_MAPPING,RIGHT($C119,1),MATCH($E$2,'Data by Building Type'!$D$22:$F$22,0))=\"Yes\",1,0)*\n(P$10*OFFSET('Efficiency Distributions'!$D$10,MATCH($C119,'Efficiency Distributions'!$C$9:$C$87,0)+RIGHT($E129),0)\n+P$11*OFFSET('Efficiency Distributions'!$E$10,MATCH($C119,'Efficiency Distributions'!$C$9:$C$87,0)+RIGHT($E129),0))\n/SUM(P$10:P$11)","v":0},{"$f":"IF(INDEX(PC_MAPPING,RIGHT($C119,1),MATCH($E$2,'Data by Building Type'!$D$22:$F$22,0))=\"Yes\",1,0)*\n(Q$10*OFFSET('Efficiency Distributions'!$D$10,MATCH($C119,'Efficiency Distributions'!$C$9:$C$87,0)+RIGHT($E129),0)\n+Q$11*OFFSET('Efficiency Distributions'!$E$10,MATCH($C119,'Efficiency Distributions'!$C$9:$C$87,0)+RIGHT($E129),0))\n/SUM(Q$10:Q$11)","v":0},{"$f":"IF(INDEX(PC_MAPPING,RIGHT($C119,1),MATCH($E$2,'Data by Building Type'!$D$22:$F$22,0))=\"Yes\",1,0)*\n(R$10*OFFSET('Efficiency Distributions'!$D$10,MATCH($C119,'Efficiency Distributions'!$C$9:$C$87,0)+RIGHT($E129),0)\n+R$11*OFFSET('Efficiency Distributions'!$E$10,MATCH($C119,'Efficiency Distributions'!$C$9:$C$87,0)+RIGHT($E129),0))\n/SUM(R$10:R$11)","v":0},{"$f":"IF(INDEX(PC_MAPPING,RIGHT($C119,1),MATCH($E$2,'Data by Building Type'!$D$22:$F$22,0))=\"Yes\",1,0)*\n(S$10*OFFSET('Efficiency Distributions'!$D$10,MATCH($C119,'Efficiency Distributions'!$C$9:$C$87,0)+RIGHT($E129),0)\n+S$11*OFFSET('Efficiency Distributions'!$E$10,MATCH($C119,'Efficiency Distributions'!$C$9:$C$87,0)+RIGHT($E129),0))\n/SUM(S$10:S$11)","v":0},{"$f":"IF(INDEX(PC_MAPPING,RIGHT($C119,1),MATCH($E$2,'Data by Building Type'!$D$22:$F$22,0))=\"Yes\",1,0)*\n(T$10*OFFSET('Efficiency Distributions'!$D$10,MATCH($C119,'Efficiency Distributions'!$C$9:$C$87,0)+RIGHT($E129),0)\n+T$11*OFFSET('Efficiency Distributions'!$E$10,MATCH($C119,'Efficiency Distributions'!$C$9:$C$87,0)+RIGHT($E129),0))\n/SUM(T$10:T$11)","v":0},{"$f":"IF(INDEX(PC_MAPPING,RIGHT($C119,1),MATCH($E$2,'Data by Building Type'!$D$22:$F$22,0))=\"Yes\",1,0)*\n(U$10*OFFSET('Efficiency Distributions'!$D$10,MATCH($C119,'Efficiency Distributions'!$C$9:$C$87,0)+RIGHT($E129),0)\n+U$11*OFFSET('Efficiency Distributions'!$E$10,MATCH($C119,'Efficiency Distributions'!$C$9:$C$87,0)+RIGHT($E129),0))\n/SUM(U$10:U$11)","v":0},{"$f":"IF(INDEX(PC_MAPPING,RIGHT($C119,1),MATCH($E$2,'Data by Building Type'!$D$22:$F$22,0))=\"Yes\",1,0)*\n(V$10*OFFSET('Efficiency Distributions'!$D$10,MATCH($C119,'Efficiency Distributions'!$C$9:$C$87,0)+RIGHT($E129),0)\n+V$11*OFFSET('Efficiency Distributions'!$E$10,MATCH($C119,'Efficiency Distributions'!$C$9:$C$87,0)+RIGHT($E129),0))\n/SUM(V$10:V$11)","v":0},{"$f":"IF(INDEX(PC_MAPPING,RIGHT($C119,1),MATCH($E$2,'Data by Building Type'!$D$22:$F$22,0))=\"Yes\",1,0)*\n(W$10*OFFSET('Efficiency Distributions'!$D$10,MATCH($C119,'Efficiency Distributions'!$C$9:$C$87,0)+RIGHT($E129),0)\n+W$11*OFFSET('Efficiency Distributions'!$E$10,MATCH($C119,'Efficiency Distributions'!$C$9:$C$87,0)+RIGHT($E129),0))\n/SUM(W$10:W$11)","v":0},{"$f":"IF(INDEX(PC_MAPPING,RIGHT($C119,1),MATCH($E$2,'Data by Building Type'!$D$22:$F$22,0))=\"Yes\",1,0)*\n(X$10*OFFSET('Efficiency Distributions'!$D$10,MATCH($C119,'Efficiency Distributions'!$C$9:$C$87,0)+RIGHT($E129),0)\n+X$11*OFFSET('Efficiency Distributions'!$E$10,MATCH($C119,'Efficiency Distributions'!$C$9:$C$87,0)+RIGHT($E129),0))\n/SUM(X$10:X$11)","v":0},{"$f":"IF(INDEX(PC_MAPPING,RIGHT($C119,1),MATCH($E$2,'Data by Building Type'!$D$22:$F$22,0))=\"Yes\",1,0)*\n(Y$10*OFFSET('Efficiency Distributions'!$D$10,MATCH($C119,'Efficiency Distributions'!$C$9:$C$87,0)+RIGHT($E129),0)\n+Y$11*OFFSET('Efficiency Distributions'!$E$10,MATCH($C119,'Efficiency Distributions'!$C$9:$C$87,0)+RIGHT($E129),0))\n/SUM(Y$10:Y$11)","v":0},{"$f":"IF(INDEX(PC_MAPPING,RIGHT($C119,1),MATCH($E$2,'Data by Building Type'!$D$22:$F$22,0))=\"Yes\",1,0)*\n(Z$10*OFFSET('Efficiency Distributions'!$D$10,MATCH($C119,'Efficiency Distributions'!$C$9:$C$87,0)+RIGHT($E129),0)\n+Z$11*OFFSET('Efficiency Distributions'!$E$10,MATCH($C119,'Efficiency Distributions'!$C$9:$C$87,0)+RIGHT($E129),0))\n/SUM(Z$10:Z$11)","v":0},{"$f":"IF(INDEX(PC_MAPPING,RIGHT($C119,1),MATCH($E$2,'Data by Building Type'!$D$22:$F$22,0))=\"Yes\",1,0)*\n(AA$10*OFFSET('Efficiency Distributions'!$D$10,MATCH($C119,'Efficiency Distributions'!$C$9:$C$87,0)+RIGHT($E129),0)\n+AA$11*OFFSET('Efficiency Distributions'!$E$10,MATCH($C119,'Efficiency Distributions'!$C$9:$C$87,0)+RIGHT($E129),0))\n/SUM(AA$10:AA$11)","v":0},{"$f":"IF(INDEX(PC_MAPPING,RIGHT($C119,1),MATCH($E$2,'Data by Building Type'!$D$22:$F$22,0))=\"Yes\",1,0)*\n(AB$10*OFFSET('Efficiency Distributions'!$D$10,MATCH($C119,'Efficiency Distributions'!$C$9:$C$87,0)+RIGHT($E129),0)\n+AB$11*OFFSET('Efficiency Distributions'!$E$10,MATCH($C119,'Efficiency Distributions'!$C$9:$C$87,0)+RIGHT($E129),0))\n/SUM(AB$10:AB$11)","v":0},{"$f":"IF(INDEX(PC_MAPPING,RIGHT($C119,1),MATCH($E$2,'Data by Building Type'!$D$22:$F$22,0))=\"Yes\",1,0)*\n(AC$10*OFFSET('Efficiency Distributions'!$D$10,MATCH($C119,'Efficiency Distributions'!$C$9:$C$87,0)+RIGHT($E129),0)\n+AC$11*OFFSET('Efficiency Distributions'!$E$10,MATCH($C119,'Efficiency Distributions'!$C$9:$C$87,0)+RIGHT($E129),0))\n/SUM(AC$10:AC$11)","v":0},{"$f":"IF(INDEX(PC_MAPPING,RIGHT($C119,1),MATCH($E$2,'Data by Building Type'!$D$22:$F$22,0))=\"Yes\",1,0)*\n(AD$10*OFFSET('Efficiency Distributions'!$D$10,MATCH($C119,'Efficiency Distributions'!$C$9:$C$87,0)+RIGHT($E129),0)\n+AD$11*OFFSET('Efficiency Distributions'!$E$10,MATCH($C119,'Efficiency Distributions'!$C$9:$C$87,0)+RIGHT($E129),0))\n/SUM(AD$10:AD$11)","v":0},{"$f":"IF(INDEX(PC_MAPPING,RIGHT($C119,1),MATCH($E$2,'Data by Building Type'!$D$22:$F$22,0))=\"Yes\",1,0)*\n(AE$10*OFFSET('Efficiency Distributions'!$D$10,MATCH($C119,'Efficiency Distributions'!$C$9:$C$87,0)+RIGHT($E129),0)\n+AE$11*OFFSET('Efficiency Distributions'!$E$10,MATCH($C119,'Efficiency Distributions'!$C$9:$C$87,0)+RIGHT($E129),0))\n/SUM(AE$10:AE$11)","v":0},{"$f":"IF(INDEX(PC_MAPPING,RIGHT($C119,1),MATCH($E$2,'Data by Building Type'!$D$22:$F$22,0))=\"Yes\",1,0)*\n(AF$10*OFFSET('Efficiency Distributions'!$D$10,MATCH($C119,'Efficiency Distributions'!$C$9:$C$87,0)+RIGHT($E129),0)\n+AF$11*OFFSET('Efficiency Distributions'!$E$10,MATCH($C119,'Efficiency Distributions'!$C$9:$C$87,0)+RIGHT($E129),0))\n/SUM(AF$10:AF$11)","v":0},{"$f":"IF(INDEX(PC_MAPPING,RIGHT($C119,1),MATCH($E$2,'Data by Building Type'!$D$22:$F$22,0))=\"Yes\",1,0)*\n(AG$10*OFFSET('Efficiency Distributions'!$D$10,MATCH($C119,'Efficiency Distributions'!$C$9:$C$87,0)+RIGHT($E129),0)\n+AG$11*OFFSET('Efficiency Distributions'!$E$10,MATCH($C119,'Efficiency Distributions'!$C$9:$C$87,0)+RIGHT($E129),0))\n/SUM(AG$10:AG$11)","v":0},{"$f":"IF(INDEX(PC_MAPPING,RIGHT($C119,1),MATCH($E$2,'Data by Building Type'!$D$22:$F$22,0))=\"Yes\",1,0)*\n(AH$10*OFFSET('Efficiency Distributions'!$D$10,MATCH($C119,'Efficiency Distributions'!$C$9:$C$87,0)+RIGHT($E129),0)\n+AH$11*OFFSET('Efficiency Distributions'!$E$10,MATCH($C119,'Efficiency Distributions'!$C$9:$C$87,0)+RIGHT($E129),0))\n/SUM(AH$10:AH$11)","v":0},{"$f":"IF(INDEX(PC_MAPPING,RIGHT($C119,1),MATCH($E$2,'Data by Building Type'!$D$22:$F$22,0))=\"Yes\",1,0)*\n(AI$10*OFFSET('Efficiency Distributions'!$D$10,MATCH($C119,'Efficiency Distributions'!$C$9:$C$87,0)+RIGHT($E129),0)\n+AI$11*OFFSET('Efficiency Distributions'!$E$10,MATCH($C119,'Efficiency Distributions'!$C$9:$C$87,0)+RIGHT($E129),0))\n/SUM(AI$10:AI$11)","v":0},{"$f":"IF(INDEX(PC_MAPPING,RIGHT($C119,1),MATCH($E$2,'Data by Building Type'!$D$22:$F$22,0))=\"Yes\",1,0)*\n(AJ$10*OFFSET('Efficiency Distributions'!$D$10,MATCH($C119,'Efficiency Distributions'!$C$9:$C$87,0)+RIGHT($E129),0)\n+AJ$11*OFFSET('Efficiency Distributions'!$E$10,MATCH($C119,'Efficiency Distributions'!$C$9:$C$87,0)+RIGHT($E129),0))\n/SUM(AJ$10:AJ$11)","v":0},{"$f":"IF(INDEX(PC_MAPPING,RIGHT($C119,1),MATCH($E$2,'Data by Building Type'!$D$22:$F$22,0))=\"Yes\",1,0)*\n(AK$10*OFFSET('Efficiency Distributions'!$D$10,MATCH($C119,'Efficiency Distributions'!$C$9:$C$87,0)+RIGHT($E129),0)\n+AK$11*OFFSET('Efficiency Distributions'!$E$10,MATCH($C119,'Efficiency Distributions'!$C$9:$C$87,0)+RIGHT($E129),0))\n/SUM(AK$10:AK$11)","v":0},{"$f":"IF(INDEX(PC_MAPPING,RIGHT($C119,1),MATCH($E$2,'Data by Building Type'!$D$22:$F$22,0))=\"Yes\",1,0)*\n(AL$10*OFFSET('Efficiency Distributions'!$D$10,MATCH($C119,'Efficiency Distributions'!$C$9:$C$87,0)+RIGHT($E129),0)\n+AL$11*OFFSET('Efficiency Distributions'!$E$10,MATCH($C119,'Efficiency Distributions'!$C$9:$C$87,0)+RIGHT($E129),0))\n/SUM(AL$10:AL$11)","v":0},{"$f":"IF(INDEX(PC_MAPPING,RIGHT($C119,1),MATCH($E$2,'Data by Building Type'!$D$22:$F$22,0))=\"Yes\",1,0)*\n(AM$10*OFFSET('Efficiency Distributions'!$D$10,MATCH($C119,'Efficiency Distributions'!$C$9:$C$87,0)+RIGHT($E129),0)\n+AM$11*OFFSET('Efficiency Distributions'!$E$10,MATCH($C119,'Efficiency Distributions'!$C$9:$C$87,0)+RIGHT($E129),0))\n/SUM(AM$10:AM$11)","v":0},{"$f":"IF(INDEX(PC_MAPPING,RIGHT($C119,1),MATCH($E$2,'Data by Building Type'!$D$22:$F$22,0))=\"Yes\",1,0)*\n(AN$10*OFFSET('Efficiency Distributions'!$D$10,MATCH($C119,'Efficiency Distributions'!$C$9:$C$87,0)+RIGHT($E129),0)\n+AN$11*OFFSET('Efficiency Distributions'!$E$10,MATCH($C119,'Efficiency Distributions'!$C$9:$C$87,0)+RIGHT($E129),0))\n/SUM(AN$10:AN$11)","v":0},{"$f":"IF(INDEX(PC_MAPPING,RIGHT($C119,1),MATCH($E$2,'Data by Building Type'!$D$22:$F$22,0))=\"Yes\",1,0)*\n(AO$10*OFFSET('Efficiency Distributions'!$D$10,MATCH($C119,'Efficiency Distributions'!$C$9:$C$87,0)+RIGHT($E129),0)\n+AO$11*OFFSET('Efficiency Distributions'!$E$10,MATCH($C119,'Efficiency Distributions'!$C$9:$C$87,0)+RIGHT($E129),0))\n/SUM(AO$10:AO$11)","v":0},{"$f":"IF(INDEX(PC_MAPPING,RIGHT($C119,1),MATCH($E$2,'Data by Building Type'!$D$22:$F$22,0))=\"Yes\",1,0)*\n(AP$10*OFFSET('Efficiency Distributions'!$D$10,MATCH($C119,'Efficiency Distributions'!$C$9:$C$87,0)+RIGHT($E129),0)\n+AP$11*OFFSET('Efficiency Distributions'!$E$10,MATCH($C119,'Efficiency Distributions'!$C$9:$C$87,0)+RIGHT($E129),0))\n/SUM(AP$10:AP$11)","v":0},{"$f":"IF(INDEX(PC_MAPPING,RIGHT($C119,1),MATCH($E$2,'Data by Building Type'!$D$22:$F$22,0))=\"Yes\",1,0)*\n(AQ$10*OFFSET('Efficiency Distributions'!$D$10,MATCH($C119,'Efficiency Distributions'!$C$9:$C$87,0)+RIGHT($E129),0)\n+AQ$11*OFFSET('Efficiency Distributions'!$E$10,MATCH($C119,'Efficiency Distributions'!$C$9:$C$87,0)+RIGHT($E129),0))\n/SUM(AQ$10:AQ$11)","v":0},{"$f":"IF(INDEX(PC_MAPPING,RIGHT($C119,1),MATCH($E$2,'Data by Building Type'!$D$22:$F$22,0))=\"Yes\",1,0)*\n(AR$10*OFFSET('Efficiency Distributions'!$D$10,MATCH($C119,'Efficiency Distributions'!$C$9:$C$87,0)+RIGHT($E129),0)\n+AR$11*OFFSET('Efficiency Distributions'!$E$10,MATCH($C119,'Efficiency Distributions'!$C$9:$C$87,0)+RIGHT($E129),0))\n/SUM(AR$10:AR$11)","v":0},{"$f":"IF(INDEX(PC_MAPPING,RIGHT($C119,1),MATCH($E$2,'Data by Building Type'!$D$22:$F$22,0))=\"Yes\",1,0)*\n(AS$10*OFFSET('Efficiency Distributions'!$D$10,MATCH($C119,'Efficiency Distributions'!$C$9:$C$87,0)+RIGHT($E129),0)\n+AS$11*OFFSET('Efficiency Distributions'!$E$10,MATCH($C119,'Efficiency Distributions'!$C$9:$C$87,0)+RIGHT($E129),0))\n/SUM(AS$10:AS$11)","v":0},{"$f":"IF(INDEX(PC_MAPPING,RIGHT($C119,1),MATCH($E$2,'Data by Building Type'!$D$22:$F$22,0))=\"Yes\",1,0)*\n(AT$10*OFFSET('Efficiency Distributions'!$D$10,MATCH($C119,'Efficiency Distributions'!$C$9:$C$87,0)+RIGHT($E129),0)\n+AT$11*OFFSET('Efficiency Distributions'!$E$10,MATCH($C119,'Efficiency Distributions'!$C$9:$C$87,0)+RIGHT($E129),0))\n/SUM(AT$10:AT$11)","v":0},{"$f":"IF(INDEX(PC_MAPPING,RIGHT($C119,1),MATCH($E$2,'Data by Building Type'!$D$22:$F$22,0))=\"Yes\",1,0)*\n(AU$10*OFFSET('Efficiency Distributions'!$D$10,MATCH($C119,'Efficiency Distributions'!$C$9:$C$87,0)+RIGHT($E129),0)\n+AU$11*OFFSET('Efficiency Distributions'!$E$10,MATCH($C119,'Efficiency Distributions'!$C$9:$C$87,0)+RIGHT($E129),0))\n/SUM(AU$10:AU$11)","v":0},{"$f":"IF(INDEX(PC_MAPPING,RIGHT($C119,1),MATCH($E$2,'Data by Building Type'!$D$22:$F$22,0))=\"Yes\",1,0)*\n(AV$10*OFFSET('Efficiency Distributions'!$D$10,MATCH($C119,'Efficiency Distributions'!$C$9:$C$87,0)+RIGHT($E129),0)\n+AV$11*OFFSET('Efficiency Distributions'!$E$10,MATCH($C119,'Efficiency Distributions'!$C$9:$C$87,0)+RIGHT($E129),0))\n/SUM(AV$10:AV$11)","v":0},{"$f":"IF(INDEX(PC_MAPPING,RIGHT($C119,1),MATCH($E$2,'Data by Building Type'!$D$22:$F$22,0))=\"Yes\",1,0)*\n(AW$10*OFFSET('Efficiency Distributions'!$D$10,MATCH($C119,'Efficiency Distributions'!$C$9:$C$87,0)+RIGHT($E129),0)\n+AW$11*OFFSET('Efficiency Distributions'!$E$10,MATCH($C119,'Efficiency Distributions'!$C$9:$C$87,0)+RIGHT($E129),0))\n/SUM(AW$10:AW$11)","v":0},{"$f":"IF(INDEX(PC_MAPPING,RIGHT($C119,1),MATCH($E$2,'Data by Building Type'!$D$22:$F$22,0))=\"Yes\",1,0)*\n(AX$10*OFFSET('Efficiency Distributions'!$D$10,MATCH($C119,'Efficiency Distributions'!$C$9:$C$87,0)+RIGHT($E129),0)\n+AX$11*OFFSET('Efficiency Distributions'!$E$10,MATCH($C119,'Efficiency Distributions'!$C$9:$C$87,0)+RIGHT($E129),0))\n/SUM(AX$10:AX$11)","v":0},{"$f":"IF(INDEX(PC_MAPPING,RIGHT($C119,1),MATCH($E$2,'Data by Building Type'!$D$22:$F$22,0))=\"Yes\",1,0)*\n(AY$10*OFFSET('Efficiency Distributions'!$D$10,MATCH($C119,'Efficiency Distributions'!$C$9:$C$87,0)+RIGHT($E129),0)\n+AY$11*OFFSET('Efficiency Distributions'!$E$10,MATCH($C119,'Efficiency Distributions'!$C$9:$C$87,0)+RIGHT($E129),0))\n/SUM(AY$10:AY$11)","v":0},{"$f":"IF(INDEX(PC_MAPPING,RIGHT($C119,1),MATCH($E$2,'Data by Building Type'!$D$22:$F$22,0))=\"Yes\",1,0)*\n(AZ$10*OFFSET('Efficiency Distributions'!$D$10,MATCH($C119,'Efficiency Distributions'!$C$9:$C$87,0)+RIGHT($E129),0)\n+AZ$11*OFFSET('Efficiency Distributions'!$E$10,MATCH($C119,'Efficiency Distributions'!$C$9:$C$87,0)+RIGHT($E129),0))\n/SUM(AZ$10:AZ$11)","v":0},{"$f":"IF(INDEX(PC_MAPPING,RIGHT($C119,1),MATCH($E$2,'Data by Building Type'!$D$22:$F$22,0))=\"Yes\",1,0)*\n(BA$10*OFFSET('Efficiency Distributions'!$D$10,MATCH($C119,'Efficiency Distributions'!$C$9:$C$87,0)+RIGHT($E129),0)\n+BA$11*OFFSET('Efficiency Distributions'!$E$10,MATCH($C119,'Efficiency Distributions'!$C$9:$C$87,0)+RIGHT($E129),0))\n/SUM(BA$10:BA$11)","v":0},{"$f":"IF(INDEX(PC_MAPPING,RIGHT($C119,1),MATCH($E$2,'Data by Building Type'!$D$22:$F$22,0))=\"Yes\",1,0)*\n(BB$10*OFFSET('Efficiency Distributions'!$D$10,MATCH($C119,'Efficiency Distributions'!$C$9:$C$87,0)+RIGHT($E129),0)\n+BB$11*OFFSET('Efficiency Distributions'!$E$10,MATCH($C119,'Efficiency Distributions'!$C$9:$C$87,0)+RIGHT($E129),0))\n/SUM(BB$10:BB$11)","v":0},{"$f":"IF(INDEX(PC_MAPPING,RIGHT($C119,1),MATCH($E$2,'Data by Building Type'!$D$22:$F$22,0))=\"Yes\",1,0)*\n(BC$10*OFFSET('Efficiency Distributions'!$D$10,MATCH($C119,'Efficiency Distributions'!$C$9:$C$87,0)+RIGHT($E129),0)\n+BC$11*OFFSET('Efficiency Distributions'!$E$10,MATCH($C119,'Efficiency Distributions'!$C$9:$C$87,0)+RIGHT($E129),0))\n/SUM(BC$10:BC$11)","v":0},{"$f":"IF(INDEX(PC_MAPPING,RIGHT($C119,1),MATCH($E$2,'Data by Building Type'!$D$22:$F$22,0))=\"Yes\",1,0)*\n(BD$10*OFFSET('Efficiency Distributions'!$D$10,MATCH($C119,'Efficiency Distributions'!$C$9:$C$87,0)+RIGHT($E129),0)\n+BD$11*OFFSET('Efficiency Distributions'!$E$10,MATCH($C119,'Efficiency Distributions'!$C$9:$C$87,0)+RIGHT($E129),0))\n/SUM(BD$10:BD$11)","v":0},{"$f":"IF(INDEX(PC_MAPPING,RIGHT($C119,1),MATCH($E$2,'Data by Building Type'!$D$22:$F$22,0))=\"Yes\",1,0)*\n(BE$10*OFFSET('Efficiency Distributions'!$D$10,MATCH($C119,'Efficiency Distributions'!$C$9:$C$87,0)+RIGHT($E129),0)\n+BE$11*OFFSET('Efficiency Distributions'!$E$10,MATCH($C119,'Efficiency Distributions'!$C$9:$C$87,0)+RIGHT($E129),0))\n/SUM(BE$10:BE$11)","v":0},{"$f":"IF(INDEX(PC_MAPPING,RIGHT($C119,1),MATCH($E$2,'Data by Building Type'!$D$22:$F$22,0))=\"Yes\",1,0)*\n(BF$10*OFFSET('Efficiency Distributions'!$D$10,MATCH($C119,'Efficiency Distributions'!$C$9:$C$87,0)+RIGHT($E129),0)\n+BF$11*OFFSET('Efficiency Distributions'!$E$10,MATCH($C119,'Efficiency Distributions'!$C$9:$C$87,0)+RIGHT($E129),0))\n/SUM(BF$10:BF$11)","v":0},{"$f":"IF(INDEX(PC_MAPPING,RIGHT($C119,1),MATCH($E$2,'Data by Building Type'!$D$22:$F$22,0))=\"Yes\",1,0)*\n(BG$10*OFFSET('Efficiency Distributions'!$D$10,MATCH($C119,'Efficiency Distributions'!$C$9:$C$87,0)+RIGHT($E129),0)\n+BG$11*OFFSET('Efficiency Distributions'!$E$10,MATCH($C119,'Efficiency Distributions'!$C$9:$C$87,0)+RIGHT($E129),0))\n/SUM(BG$10:BG$11)","v":0}]
[null,null,null,null,"TOTAL",{"$f":"SUM(F123:F129)","v":1},{"$f":"SUM(G123:G129)","v":1},1,1,1,0.99999999999999989,1,1,1,0.99999999999999989,1,1,1.0000000000000002,1.0000000000000002,1,1,1,1,1,1,1,1.0000000000000002,1,1.0000000000000002,1.0000000000000002,1,1,1,1,1,1,1.0000000000000002,1.0000000000000002,0.99999999999999989,1,0.99999999999999989,1,0.99999999999999989,1,1,0.99999999999999978,1,1,1,1,1,1,1,1,1,1,1,1,1]
[]
[null,null,null,"POST-Case"]
[null,null,null,null,"Efficiency Level",1981,{"$f":"F133+1","v":1982},{"$f":"G133+1","v":1983},1984,1985,{"$f":"J133+1","v":1986},1987,1988,1989,1990,1991,1992,1993,1994,1995,1996,1997,1998,1999,2000,2001,2002,2003,2004,2005,2006,2007,2008,2009,2010,2011,2012,2013,2014,2015,2016,2017,2018,2019,2020,2021,2022,2023,2024,2025,2026,2027,2028,2029,2030,2031,2032,2033,2034]
[null,null,null,null,"EL0",{"$f":"IF(F$29<STANDARD_YEAR,F123,\nIF(RIGHT($E134,1)>RIGHT(INDEX(STANDARD_LEVELS,1,MID($C119,4,1)),1),F123,\nIF(RIGHT($E134,1)<RIGHT(INDEX(STANDARD_LEVELS,1,MID($C119,4,1)),1),0,\nIF(RIGHT($E134,1)=RIGHT(INDEX(STANDARD_LEVELS,1,MID($C119,4,1)),1),SUM(OFFSET(F123,-(RIGHT($E134,1)),0,RIGHT($E134,1)+1,1)),\"ERROR\"))))","v":0.28553094679951224},{"$f":"IF(G$29<STANDARD_YEAR,G123,\nIF(RIGHT($E134,1)>RIGHT(INDEX(STANDARD_LEVELS,1,MID($C119,4,1)),1),G123,\nIF(RIGHT($E134,1)<RIGHT(INDEX(STANDARD_LEVELS,1,MID($C119,4,1)),1),0,\nIF(RIGHT($E134,1)=RIGHT(INDEX(STANDARD_LEVELS,1,MID($C119,4,1)),1),SUM(OFFSET(G123,-(RIGHT($E134,1)),0,RIGHT($E134,1)+1,1)),\"ERROR\"))))","v":0.27069144598892897},0.27760927518034689,0.29768620565833109,0.32065910526697339,0.31418548746243508,0.32019002663023205,0.3322451098171138,0.3421099657470078,0.33289486605602936,0.29233748753823052,0.29355065497784405,0.21788706502162647,0.21788706502162647,0.21788706502162644,0.21788706502162644,0.21788706502162644,0.21788706502162644,0.21788706502162644,0.21788706502162641,0.21788706502162644,0.21788706502162647,0.21788706502162644,0.21788706502162647,0.21788706502162647,0.21788706502162644,0.21788706502162644,0.21788706502162644,0.21788706502162644,0.21788706502162644,0.21788706502162644,0.25107239858610392,0.25240524457105074,0.28395348375551022,0.28234404151182685,0.28430500157846206,0.28832669057921867,0.29241202780463948,0,0,0,0,0,0,0,0,0,0,0,0,0,0,0,0]
[null,null,null,null,"EL1",{"$f":"IF(F$29<STANDARD_YEAR,F124,\nIF(RIGHT($E135,1)>RIGHT(INDEX(STANDARD_LEVELS,1,MID($C119,4,1)),1),F124,\nIF(RIGHT($E135,1)<RIGHT(INDEX(STANDARD_LEVELS,1,MID($C119,4,1)),1),0,\nIF(RIGHT($E135,1)=RIGHT(INDEX(STANDARD_LEVELS,1,MID($C119,4,1)),1),SUM(OFFSET(F124,-(RIGHT($E135,1)),0,RIGHT($E135,1)+1,1)),\"ERROR\"))))","v":0.36113033946694689},{"$f":"IF(G$29<STANDARD_YEAR,G124,\nIF(RIGHT($E135,1)>RIGHT(INDEX(STANDARD_LEVELS,1,MID($C119,4,1)),1),G124,\nIF(RIGHT($E135,1)<RIGHT(INDEX(STANDARD_LEVELS,1,MID($C119,4,1)),1),0,\nIF(RIGHT($E135,1)=RIGHT(INDEX(STANDARD_LEVELS,1,MID($C119,4,1)),1),SUM(OFFSET(G124,-(RIGHT($E135,1)),0,RIGHT($E135,1)+1,1)),\"ERROR\"))))","v":0.35360577057967885},0.35711354910711113,0.36729382729536009,0.378942545662102,0.37566001050530251,0.37870469301727522,0.38481738542110233,0.38981949357520707,0.38514685307921687,0.36458168768453353,0.36519684058540824,0.32683059753243965,0.32683059753243965,0.32683059753243965,0.32683059753243965,0.32683059753243965,0.32683059753243965,0.32683059753243965,0.32683059753243965,0.32683059753243965,0.32683059753243965,0.32683059753243965,0.32683059753243965,0.32683059753243965,0.32683059753243965,0.32683059753243959,0.32683059753243965,0.32683059753243965,0.32683059753243965,0.32683059753243965,0.34365766817586685,0.34433350569613558,0.36033046557002663,0.35951437618890425,0.36050870741978058,0.3625479590304399,0.36461948433124219,0,0,0,0,0,0,0,0,0,0,0,0,0,0,0,0]
[null,null,null,null,"EL2",{"$f":"IF(F$29<STANDARD_YEAR,F125,\nIF(RIGHT($E136,1)>RIGHT(INDEX(STANDARD_LEVELS,1,MID($C119,4,1)),1),F125,\nIF(RIGHT($E136,1)<RIGHT(INDEX(STANDARD_LEVELS,1,MID($C119,4,1)),1),0,\nIF(RIGHT($E136,1)=RIGHT(INDEX(STANDARD_LEVELS,1,MID($C119,4,1)),1),SUM(OFFSET(F125,-(RIGHT($E136,1)),0,RIGHT($E136,1)+1,1)),\"ERROR\"))))","v":0},{"$f":"IF(G$29<STANDARD_YEAR,G125,\nIF(RIGHT($E136,1)>RIGHT(INDEX(STANDARD_LEVELS,1,MID($C119,4,1)),1),G125,\nIF(RIGHT($E136,1)<RIGHT(INDEX(STANDARD_LEVELS,1,MID($C119,4,1)),1),0,\nIF(RIGHT($E136,1)=RIGHT(INDEX(STANDARD_LEVELS,1,MID($C119,4,1)),1),SUM(OFFSET(G125,-(RIGHT($E136,1)),0,RIGHT($E136,1)+1,1)),\"ERROR\"))))","v":0},0,0,0,0,0,0,0,0,0,0,0,0,0,0,0,0,0,0,0,0,0,0,0,0,0,0,0,0,0,0,0,0,0,0,0,0,0,0,0,0,0,0,0,0,0,0,0,0,0,0,0,0]
[null,null,null,null,"EL3",{"$f":"IF(F$29<STANDARD_YEAR,F126,\nIF(RIGHT($E137,1)>RIGHT(INDEX(STANDARD_LEVELS,1,MID($C119,4,1)),1),F126,\nIF(RIGHT($E137,1)<RIGHT(INDEX(STANDARD_LEVELS,1,MID($C119,4,1)),1),0,\nIF(RIGHT($E137,1)=RIGHT(INDEX(STANDARD_LEVELS,1,MID($C119,4,1)),1),SUM(OFFSET(F126,-(RIGHT($E137,1)),0,RIGHT($E137,1)+1,1)),\"ERROR\"))))","v":0.11276767459581094},{"$f":"IF(G$29<STANDARD_YEAR,G126,\nIF(RIGHT($E137,1)>RIGHT(INDEX(STANDARD_LEVELS,1,MID($C119,4,1)),1),G126,\nIF(RIGHT($E137,1)<RIGHT(INDEX(STANDARD_LEVELS,1,MID($C119,4,1)),1),0,\nIF(RIGHT($E137,1)=RIGHT(INDEX(STANDARD_LEVELS,1,MID($C119,4,1)),1),SUM(OFFSET(G126,-(RIGHT($E137,1)),0,RIGHT($E137,1)+1,1)),\"ERROR\"))))","v":0.1199051436483167},0.11657782203591767,0.1069212660786092,9.5871813533273828E-2,9.8985479371998655E-2,9.6097429899731746E-2,9.0299203647377826E-2,8.5554427875888892E-2,8.9986685382368231E-2,0.10949388024805405,0.10891037375640887,0.14530287365295766,0.14530287365295766,0.14530287365295766,0.14530287365295766,0.14530287365295766,0.14530287365295766,0.14530287365295766,0.14530287365295766,0.14530287365295766,0.14530287365295766,0.14530287365295766,0.14530287365295766,0.14530287365295766,0.14530287365295766,0.14530287365295769,0.14530287365295766,0.14530287365295766,0.14530287365295766,0.14530287365295766,0.12934146805469024,0.12870039885089804,0.11352639915142441,0.11430050498912842,0.11335732691545444,0.11142298416713024,0.1094580280417399,0,0,0,0,0,0,0,0,0,0,0,0,0,0,0,0]
[null,null,null,null,"EL4",{"$f":"IF(F$29<STANDARD_YEAR,F127,\nIF(RIGHT($E138,1)>RIGHT(INDEX(STANDARD_LEVELS,1,MID($C119,4,1)),1),F127,\nIF(RIGHT($E138,1)<RIGHT(INDEX(STANDARD_LEVELS,1,MID($C119,4,1)),1),0,\nIF(RIGHT($E138,1)=RIGHT(INDEX(STANDARD_LEVELS,1,MID($C119,4,1)),1),SUM(OFFSET(F127,-(RIGHT($E138,1)),0,RIGHT($E138,1)+1,1)),\"ERROR\"))))","v":0},{"$f":"IF(G$29<STANDARD_YEAR,G127,\nIF(RIGHT($E138,1)>RIGHT(INDEX(STANDARD_LEVELS,1,MID($C119,4,1)),1),G127,\nIF(RIGHT($E138,1)<RIGHT(INDEX(STANDARD_LEVELS,1,MID($C119,4,1)),1),0,\nIF(RIGHT($E138,1)=RIGHT(INDEX(STANDARD_LEVELS,1,MID($C119,4,1)),1),SUM(OFFSET(G127,-(RIGHT($E138,1)),0,RIGHT($E138,1)+1,1)),\"ERROR\"))))","v":0},0,0,0,0,0,0,0,0,0,0,0,0,0,0,0,0,0,0,0,0,0,0,0,0,0,0,0,0,0,0,0,0,0,0,0,0,0.76561501981804803,0.78003192051507464,0.7952699837220718,0.80004592647632677,0.76597813348621946,0.77720814421904283,0.77106781670081681,0.76074264000505698,0.746255571906971,0.75229572350422891,0.75469247800251982,0.75312297458378696,0.74323831323451062,0.74892059037760594,0.73050467385362838,0.73032263619881588]
[null,null,null,null,"EL5",{"$f":"IF(F$29<STANDARD_YEAR,F128,\nIF(RIGHT($E139,1)>RIGHT(INDEX(STANDARD_LEVELS,1,MID($C119,4,1)),1),F128,\nIF(RIGHT($E139,1)<RIGHT(INDEX(STANDARD_LEVELS,1,MID($C119,4,1)),1),0,\nIF(RIGHT($E139,1)=RIGHT(INDEX(STANDARD_LEVELS,1,MID($C119,4,1)),1),SUM(OFFSET(F128,-(RIGHT($E139,1)),0,RIGHT($E139,1)+1,1)),\"ERROR\"))))","v":0.24057103913772993},{"$f":"IF(G$29<STANDARD_YEAR,G128,\nIF(RIGHT($E139,1)>RIGHT(INDEX(STANDARD_LEVELS,1,MID($C119,4,1)),1),G128,\nIF(RIGHT($E139,1)<RIGHT(INDEX(STANDARD_LEVELS,1,MID($C119,4,1)),1),0,\nIF(RIGHT($E139,1)=RIGHT(INDEX(STANDARD_LEVELS,1,MID($C119,4,1)),1),SUM(OFFSET(G128,-(RIGHT($E139,1)),0,RIGHT($E139,1)+1,1)),\"ERROR\"))))","v":0.25579763978307557},0.24869935367662432,0.2280987009676996,0.20452653553765079,0.21116902266026374,0.20500785045276099,0.192638301114406,0.18251611280189628,0.19197159548238554,0.23358694452918194,0.2323421306803389,0.30997946379297631,0.30997946379297631,0.30997946379297631,0.30997946379297631,0.30997946379297631,0.30997946379297631,0.30997946379297631,0.30997946379297631,0.30997946379297631,0.30997946379297631,0.30997946379297631,0.30997946379297631,0.30997946379297631,0.30997946379297631,0.30997946379297631,0.30997946379297631,0.30997946379297631,0.30997946379297631,0.30997946379297631,0.27592846518333913,0.27456085088191579,0.24218965152303873,0.24384107731014054,0.24182896408630281,0.23770236622321117,0.23351045982237842,0.23438498018195197,0.21996807948492544,0.20473001627792803,0.1999540735236732,0.23402186651378057,0.22279185578095725,0.22893218329918319,0.23925735999494296,0.25374442809302911,0.24770427649577106,0.24530752199748013,0.24687702541621301,0.25676168676548949,0.25107940962239417,0.26949532614637156,0.26967736380118418]
[null,null,null,null,"EL6",{"$f":"IF(F$29<STANDARD_YEAR,F129,\nIF(RIGHT($E140,1)>RIGHT(INDEX(STANDARD_LEVELS,1,MID($C119,4,1)),1),F129,\nIF(RIGHT($E140,1)<RIGHT(INDEX(STANDARD_LEVELS,1,MID($C119,4,1)),1),0,\nIF(RIGHT($E140,1)=RIGHT(INDEX(STANDARD_LEVELS,1,MID($C119,4,1)),1),SUM(OFFSET(F129,-(RIGHT($E140,1)),0,RIGHT($E140,1)+1,1)),\"ERROR\"))))","v":0},{"$f":"IF(G$29<STANDARD_YEAR,G129,\nIF(RIGHT($E140,1)>RIGHT(INDEX(STANDARD_LEVELS,1,MID($C119,4,1)),1),G129,\nIF(RIGHT($E140,1)<RIGHT(INDEX(STANDARD_LEVELS,1,MID($C119,4,1)),1),0,\nIF(RIGHT($E140,1)=RIGHT(INDEX(STANDARD_LEVELS,1,MID($C119,4,1)),1),SUM(OFFSET(G129,-(RIGHT($E140,1)),0,RIGHT($E140,1)+1,1)),\"ERROR\"))))","v":0},0,0,0,0,0,0,0,0,0,0,0,0,0,0,0,0,0,0,0,0,0,0,0,0,0,0,0,0,0,0,0,0,0,0,0,0,0,0,0,0,0,0,0,0,0,0,0,0,0,0,0,0]
[null,null,null,null,"TOTAL",{"$f":"SUM(F134:F140)","v":1},{"$f":"SUM(G134:G140)","v":1},1,1,1,0.99999999999999989,1,1,1,0.99999999999999989,1,1,1.0000000000000002,1.0000000000000002,1,1,1,1,1,1,1,1.0000000000000002,1,1.0000000000000002,1.0000000000000002,1,1,1,1,1,1,1.0000000000000002,1.0000000000000002,0.99999999999999989,1,0.99999999999999989,1,0.99999999999999989,1,1,0.99999999999999978,1,1,1,1,1,1,1,1,1,1,1,1,1]
[]
[]
[]
[null,null,"PC 6",{"$f":"OFFSET('Product Classes'!$C$9,MATCH(C145,MODEL_PCS,0),0)","v":"Mobile Home Non-Weatherized, Non-Condensing Gas Furnace Fan (MH-NWG-NC)"}]
[]
[null,null,null,"PRE-Case"]
[null,null,null,null,"Efficiency Level",1981,{"$f":"F148+1","v":1982},{"$f":"G148+1","v":1983},1984,1985,{"$f":"J148+1","v":1986},1987,1988,1989,1990,1991,1992,1993,1994,1995,1996,1997,1998,1999,2000,2001,2002,2003,2004,2005,2006,2007,2008,2009,2010,2011,2012,2013,2014,2015,2016,2017,2018,2019,2020,2021,2022,2023,2024,2025,2026,2027,2028,2029,2030,2031,2032,2033,2034]
[null,null,null,null,"EL0",{"$f":"IF(INDEX(PC_MAPPING,RIGHT($C145,1),MATCH($E$2,'Data by Building Type'!$D$22:$F$22,0))=\"Yes\",1,0)*\n(F$10*OFFSET('Efficiency Distributions'!$D$10,MATCH($C145,'Efficiency Distributions'!$C$9:$C$87,0)+RIGHT($E149),0)\n+F$11*OFFSET('Efficiency Distributions'!$E$10,MATCH($C145,'Efficiency Distributions'!$C$9:$C$87,0)+RIGHT($E149),0))\n/SUM(F$10:F$11)","v":0},{"$f":"IF(INDEX(PC_MAPPING,RIGHT($C145,1),MATCH($E$2,'Data by Building Type'!$D$22:$F$22,0))=\"Yes\",1,0)*\n(G$10*OFFSET('Efficiency Distributions'!$D$10,MATCH($C145,'Efficiency Distributions'!$C$9:$C$87,0)+RIGHT($E149),0)\n+G$11*OFFSET('Efficiency Distributions'!$E$10,MATCH($C145,'Efficiency Distributions'!$C$9:$C$87,0)+RIGHT($E149),0))\n/SUM(G$10:G$11)","v":0},{"$f":"IF(INDEX(PC_MAPPING,RIGHT($C145,1),MATCH($E$2,'Data by Building Type'!$D$22:$F$22,0))=\"Yes\",1,0)*\n(H$10*OFFSET('Efficiency Distributions'!$D$10,MATCH($C145,'Efficiency Distributions'!$C$9:$C$87,0)+RIGHT($E149),0)\n+H$11*OFFSET('Efficiency Distributions'!$E$10,MATCH($C145,'Efficiency Distributions'!$C$9:$C$87,0)+RIGHT($E149),0))\n/SUM(H$10:H$11)","v":0},{"$f":"IF(INDEX(PC_MAPPING,RIGHT($C145,1),MATCH($E$2,'Data by Building Type'!$D$22:$F$22,0))=\"Yes\",1,0)*\n(I$10*OFFSET('Efficiency Distributions'!$D$10,MATCH($C145,'Efficiency Distributions'!$C$9:$C$87,0)+RIGHT($E149),0)\n+I$11*OFFSET('Efficiency Distributions'!$E$10,MATCH($C145,'Efficiency Distributions'!$C$9:$C$87,0)+RIGHT($E149),0))\n/SUM(I$10:I$11)","v":0},{"$f":"IF(INDEX(PC_MAPPING,RIGHT($C145,1),MATCH($E$2,'Data by Building Type'!$D$22:$F$22,0))=\"Yes\",1,0)*\n(J$10*OFFSET('Efficiency Distributions'!$D$10,MATCH($C145,'Efficiency Distributions'!$C$9:$C$87,0)+RIGHT($E149),0)\n+J$11*OFFSET('Efficiency Distributions'!$E$10,MATCH($C145,'Efficiency Distributions'!$C$9:$C$87,0)+RIGHT($E149),0))\n/SUM(J$10:J$11)","v":0},{"$f":"IF(INDEX(PC_MAPPING,RIGHT($C145,1),MATCH($E$2,'Data by Building Type'!$D$22:$F$22,0))=\"Yes\",1,0)*\n(K$10*OFFSET('Efficiency Distributions'!$D$10,MATCH($C145,'Efficiency Distributions'!$C$9:$C$87,0)+RIGHT($E149),0)\n+K$11*OFFSET('Efficiency Distributions'!$E$10,MATCH($C145,'Efficiency Distributions'!$C$9:$C$87,0)+RIGHT($E149),0))\n/SUM(K$10:K$11)","v":0},{"$f":"IF(INDEX(PC_MAPPING,RIGHT($C145,1),MATCH($E$2,'Data by Building Type'!$D$22:$F$22,0))=\"Yes\",1,0)*\n(L$10*OFFSET('Efficiency Distributions'!$D$10,MATCH($C145,'Efficiency Distributions'!$C$9:$C$87,0)+RIGHT($E149),0)\n+L$11*OFFSET('Efficiency Distributions'!$E$10,MATCH($C145,'Efficiency Distributions'!$C$9:$C$87,0)+RIGHT($E149),0))\n/SUM(L$10:L$11)","v":0},{"$f":"IF(INDEX(PC_MAPPING,RIGHT($C145,1),MATCH($E$2,'Data by Building Type'!$D$22:$F$22,0))=\"Yes\",1,0)*\n(M$10*OFFSET('Efficiency Distributions'!$D$10,MATCH($C145,'Efficiency Distributions'!$C$9:$C$87,0)+RIGHT($E149),0)\n+M$11*OFFSET('Efficiency Distributions'!$E$10,MATCH($C145,'Efficiency Distributions'!$C$9:$C$87,0)+RIGHT($E149),0))\n/SUM(M$10:M$11)","v":0},{"$f":"IF(INDEX(PC_MAPPING,RIGHT($C145,1),MATCH($E$2,'Data by Building Type'!$D$22:$F$22,0))=\"Yes\",1,0)*\n(N$10*OFFSET('Efficiency Distributions'!$D$10,MATCH($C145,'Efficiency Distributions'!$C$9:$C$87,0)+RIGHT($E149),0)\n+N$11*OFFSET('Efficiency Distributions'!$E$10,MATCH($C145,'Efficiency Distributions'!$C$9:$C$87,0)+RIGHT($E149),0))\n/SUM(N$10:N$11)","v":0},{"$f":"IF(INDEX(PC_MAPPING,RIGHT($C145,1),MATCH($E$2,'Data by Building Type'!$D$22:$F$22,0))=\"Yes\",1,0)*\n(O$10*OFFSET('Efficiency Distributions'!$D$10,MATCH($C145,'Efficiency Distributions'!$C$9:$C$87,0)+RIGHT($E149),0)\n+O$11*OFFSET('Efficiency Distributions'!$E$10,MATCH($C145,'Efficiency Distributions'!$C$9:$C$87,0)+RIGHT($E149),0))\n/SUM(O$10:O$11)","v":0},{"$f":"IF(INDEX(PC_MAPPING,RIGHT($C145,1),MATCH($E$2,'Data by Building Type'!$D$22:$F$22,0))=\"Yes\",1,0)*\n(P$10*OFFSET('Efficiency Distributions'!$D$10,MATCH($C145,'Efficiency Distributions'!$C$9:$C$87,0)+RIGHT($E149),0)\n+P$11*OFFSET('Efficiency Distributions'!$E$10,MATCH($C145,'Efficiency Distributions'!$C$9:$C$87,0)+RIGHT($E149),0))\n/SUM(P$10:P$11)","v":0},{"$f":"IF(INDEX(PC_MAPPING,RIGHT($C145,1),MATCH($E$2,'Data by Building Type'!$D$22:$F$22,0))=\"Yes\",1,0)*\n(Q$10*OFFSET('Efficiency Distributions'!$D$10,MATCH($C145,'Efficiency Distributions'!$C$9:$C$87,0)+RIGHT($E149),0)\n+Q$11*OFFSET('Efficiency Distributions'!$E$10,MATCH($C145,'Efficiency Distributions'!$C$9:$C$87,0)+RIGHT($E149),0))\n/SUM(Q$10:Q$11)","v":0},{"$f":"IF(INDEX(PC_MAPPING,RIGHT($C145,1),MATCH($E$2,'Data by Building Type'!$D$22:$F$22,0))=\"Yes\",1,0)*\n(R$10*OFFSET('Efficiency Distributions'!$D$10,MATCH($C145,'Efficiency Distributions'!$C$9:$C$87,0)+RIGHT($E149),0)\n+R$11*OFFSET('Efficiency Distributions'!$E$10,MATCH($C145,'Efficiency Distributions'!$C$9:$C$87,0)+RIGHT($E149),0))\n/SUM(R$10:R$11)","v":0},{"$f":"IF(INDEX(PC_MAPPING,RIGHT($C145,1),MATCH($E$2,'Data by Building Type'!$D$22:$F$22,0))=\"Yes\",1,0)*\n(S$10*OFFSET('Efficiency Distributions'!$D$10,MATCH($C145,'Efficiency Distributions'!$C$9:$C$87,0)+RIGHT($E149),0)\n+S$11*OFFSET('Efficiency Distributions'!$E$10,MATCH($C145,'Efficiency Distributions'!$C$9:$C$87,0)+RIGHT($E149),0))\n/SUM(S$10:S$11)","v":0},{"$f":"IF(INDEX(PC_MAPPING,RIGHT($C145,1),MATCH($E$2,'Data by Building Type'!$D$22:$F$22,0))=\"Yes\",1,0)*\n(T$10*OFFSET('Efficiency Distributions'!$D$10,MATCH($C145,'Efficiency Distributions'!$C$9:$C$87,0)+RIGHT($E149),0)\n+T$11*OFFSET('Efficiency Distributions'!$E$10,MATCH($C145,'Efficiency Distributions'!$C$9:$C$87,0)+RIGHT($E149),0))\n/SUM(T$10:T$11)","v":0},{"$f":"IF(INDEX(PC_MAPPING,RIGHT($C145,1),MATCH($E$2,'Data by Building Type'!$D$22:$F$22,0))=\"Yes\",1,0)*\n(U$10*OFFSET('Efficiency Distributions'!$D$10,MATCH($C145,'Efficiency Distributions'!$C$9:$C$87,0)+RIGHT($E149),0)\n+U$11*OFFSET('Efficiency Distributions'!$E$10,MATCH($C145,'Efficiency Distributions'!$C$9:$C$87,0)+RIGHT($E149),0))\n/SUM(U$10:U$11)","v":0},{"$f":"IF(INDEX(PC_MAPPING,RIGHT($C145,1),MATCH($E$2,'Data by Building Type'!$D$22:$F$22,0))=\"Yes\",1,0)*\n(V$10*OFFSET('Efficiency Distributions'!$D$10,MATCH($C145,'Efficiency Distributions'!$C$9:$C$87,0)+RIGHT($E149),0)\n+V$11*OFFSET('Efficiency Distributions'!$E$10,MATCH($C145,'Efficiency Distributions'!$C$9:$C$87,0)+RIGHT($E149),0))\n/SUM(V$10:V$11)","v":0},{"$f":"IF(INDEX(PC_MAPPING,RIGHT($C145,1),MATCH($E$2,'Data by Building Type'!$D$22:$F$22,0))=\"Yes\",1,0)*\n(W$10*OFFSET('Efficiency Distributions'!$D$10,MATCH($C145,'Efficiency Distributions'!$C$9:$C$87,0)+RIGHT($E149),0)\n+W$11*OFFSET('Efficiency Distributions'!$E$10,MATCH($C145,'Efficiency Distributions'!$C$9:$C$87,0)+RIGHT($E149),0))\n/SUM(W$10:W$11)","v":0},{"$f":"IF(INDEX(PC_MAPPING,RIGHT($C145,1),MATCH($E$2,'Data by Building Type'!$D$22:$F$22,0))=\"Yes\",1,0)*\n(X$10*OFFSET('Efficiency Distributions'!$D$10,MATCH($C145,'Efficiency Distributions'!$C$9:$C$87,0)+RIGHT($E149),0)\n+X$11*OFFSET('Efficiency Distributions'!$E$10,MATCH($C145,'Efficiency Distributions'!$C$9:$C$87,0)+RIGHT($E149),0))\n/SUM(X$10:X$11)","v":0},{"$f":"IF(INDEX(PC_MAPPING,RIGHT($C145,1),MATCH($E$2,'Data by Building Type'!$D$22:$F$22,0))=\"Yes\",1,0)*\n(Y$10*OFFSET('Efficiency Distributions'!$D$10,MATCH($C145,'Efficiency Distributions'!$C$9:$C$87,0)+RIGHT($E149),0)\n+Y$11*OFFSET('Efficiency Distributions'!$E$10,MATCH($C145,'Efficiency Distributions'!$C$9:$C$87,0)+RIGHT($E149),0))\n/SUM(Y$10:Y$11)","v":0},{"$f":"IF(INDEX(PC_MAPPING,RIGHT($C145,1),MATCH($E$2,'Data by Building Type'!$D$22:$F$22,0))=\"Yes\",1,0)*\n(Z$10*OFFSET('Efficiency Distributions'!$D$10,MATCH($C145,'Efficiency Distributions'!$C$9:$C$87,0)+RIGHT($E149),0)\n+Z$11*OFFSET('Efficiency Distributions'!$E$10,MATCH($C145,'Efficiency Distributions'!$C$9:$C$87,0)+RIGHT($E149),0))\n/SUM(Z$10:Z$11)","v":0},{"$f":"IF(INDEX(PC_MAPPING,RIGHT($C145,1),MATCH($E$2,'Data by Building Type'!$D$22:$F$22,0))=\"Yes\",1,0)*\n(AA$10*OFFSET('Efficiency Distributions'!$D$10,MATCH($C145,'Efficiency Distributions'!$C$9:$C$87,0)+RIGHT($E149),0)\n+AA$11*OFFSET('Efficiency Distributions'!$E$10,MATCH($C145,'Efficiency Distributions'!$C$9:$C$87,0)+RIGHT($E149),0))\n/SUM(AA$10:AA$11)","v":0},{"$f":"IF(INDEX(PC_MAPPING,RIGHT($C145,1),MATCH($E$2,'Data by Building Type'!$D$22:$F$22,0))=\"Yes\",1,0)*\n(AB$10*OFFSET('Efficiency Distributions'!$D$10,MATCH($C145,'Efficiency Distributions'!$C$9:$C$87,0)+RIGHT($E149),0)\n+AB$11*OFFSET('Efficiency Distributions'!$E$10,MATCH($C145,'Efficiency Distributions'!$C$9:$C$87,0)+RIGHT($E149),0))\n/SUM(AB$10:AB$11)","v":0},{"$f":"IF(INDEX(PC_MAPPING,RIGHT($C145,1),MATCH($E$2,'Data by Building Type'!$D$22:$F$22,0))=\"Yes\",1,0)*\n(AC$10*OFFSET('Efficiency Distributions'!$D$10,MATCH($C145,'Efficiency Distributions'!$C$9:$C$87,0)+RIGHT($E149),0)\n+AC$11*OFFSET('Efficiency Distributions'!$E$10,MATCH($C145,'Efficiency Distributions'!$C$9:$C$87,0)+RIGHT($E149),0))\n/SUM(AC$10:AC$11)","v":0},{"$f":"IF(INDEX(PC_MAPPING,RIGHT($C145,1),MATCH($E$2,'Data by Building Type'!$D$22:$F$22,0))=\"Yes\",1,0)*\n(AD$10*OFFSET('Efficiency Distributions'!$D$10,MATCH($C145,'Efficiency Distributions'!$C$9:$C$87,0)+RIGHT($E149),0)\n+AD$11*OFFSET('Efficiency Distributions'!$E$10,MATCH($C145,'Efficiency Distributions'!$C$9:$C$87,0)+RIGHT($E149),0))\n/SUM(AD$10:AD$11)","v":0},{"$f":"IF(INDEX(PC_MAPPING,RIGHT($C145,1),MATCH($E$2,'Data by Building Type'!$D$22:$F$22,0))=\"Yes\",1,0)*\n(AE$10*OFFSET('Efficiency Distributions'!$D$10,MATCH($C145,'Efficiency Distributions'!$C$9:$C$87,0)+RIGHT($E149),0)\n+AE$11*OFFSET('Efficiency Distributions'!$E$10,MATCH($C145,'Efficiency Distributions'!$C$9:$C$87,0)+RIGHT($E149),0))\n/SUM(AE$10:AE$11)","v":0},{"$f":"IF(INDEX(PC_MAPPING,RIGHT($C145,1),MATCH($E$2,'Data by Building Type'!$D$22:$F$22,0))=\"Yes\",1,0)*\n(AF$10*OFFSET('Efficiency Distributions'!$D$10,MATCH($C145,'Efficiency Distributions'!$C$9:$C$87,0)+RIGHT($E149),0)\n+AF$11*OFFSET('Efficiency Distributions'!$E$10,MATCH($C145,'Efficiency Distributions'!$C$9:$C$87,0)+RIGHT($E149),0))\n/SUM(AF$10:AF$11)","v":0},{"$f":"IF(INDEX(PC_MAPPING,RIGHT($C145,1),MATCH($E$2,'Data by Building Type'!$D$22:$F$22,0))=\"Yes\",1,0)*\n(AG$10*OFFSET('Efficiency Distributions'!$D$10,MATCH($C145,'Efficiency Distributions'!$C$9:$C$87,0)+RIGHT($E149),0)\n+AG$11*OFFSET('Efficiency Distributions'!$E$10,MATCH($C145,'Efficiency Distributions'!$C$9:$C$87,0)+RIGHT($E149),0))\n/SUM(AG$10:AG$11)","v":0},{"$f":"IF(INDEX(PC_MAPPING,RIGHT($C145,1),MATCH($E$2,'Data by Building Type'!$D$22:$F$22,0))=\"Yes\",1,0)*\n(AH$10*OFFSET('Efficiency Distributions'!$D$10,MATCH($C145,'Efficiency Distributions'!$C$9:$C$87,0)+RIGHT($E149),0)\n+AH$11*OFFSET('Efficiency Distributions'!$E$10,MATCH($C145,'Efficiency Distributions'!$C$9:$C$87,0)+RIGHT($E149),0))\n/SUM(AH$10:AH$11)","v":0},{"$f":"IF(INDEX(PC_MAPPING,RIGHT($C145,1),MATCH($E$2,'Data by Building Type'!$D$22:$F$22,0))=\"Yes\",1,0)*\n(AI$10*OFFSET('Efficiency Distributions'!$D$10,MATCH($C145,'Efficiency Distributions'!$C$9:$C$87,0)+RIGHT($E149),0)\n+AI$11*OFFSET('Efficiency Distributions'!$E$10,MATCH($C145,'Efficiency Distributions'!$C$9:$C$87,0)+RIGHT($E149),0))\n/SUM(AI$10:AI$11)","v":0},{"$f":"IF(INDEX(PC_MAPPING,RIGHT($C145,1),MATCH($E$2,'Data by Building Type'!$D$22:$F$22,0))=\"Yes\",1,0)*\n(AJ$10*OFFSET('Efficiency Distributions'!$D$10,MATCH($C145,'Efficiency Distributions'!$C$9:$C$87,0)+RIGHT($E149),0)\n+AJ$11*OFFSET('Efficiency Distributions'!$E$10,MATCH($C145,'Efficiency Distributions'!$C$9:$C$87,0)+RIGHT($E149),0))\n/SUM(AJ$10:AJ$11)","v":0},{"$f":"IF(INDEX(PC_MAPPING,RIGHT($C145,1),MATCH($E$2,'Data by Building Type'!$D$22:$F$22,0))=\"Yes\",1,0)*\n(AK$10*OFFSET('Efficiency Distributions'!$D$10,MATCH($C145,'Efficiency Distributions'!$C$9:$C$87,0)+RIGHT($E149),0)\n+AK$11*OFFSET('Efficiency Distributions'!$E$10,MATCH($C145,'Efficiency Distributions'!$C$9:$C$87,0)+RIGHT($E149),0))\n/SUM(AK$10:AK$11)","v":0},{"$f":"IF(INDEX(PC_MAPPING,RIGHT($C145,1),MATCH($E$2,'Data by Building Type'!$D$22:$F$22,0))=\"Yes\",1,0)*\n(AL$10*OFFSET('Efficiency Distributions'!$D$10,MATCH($C145,'Efficiency Distributions'!$C$9:$C$87,0)+RIGHT($E149),0)\n+AL$11*OFFSET('Efficiency Distributions'!$E$10,MATCH($C145,'Efficiency Distributions'!$C$9:$C$87,0)+RIGHT($E149),0))\n/SUM(AL$10:AL$11)","v":0},{"$f":"IF(INDEX(PC_MAPPING,RIGHT($C145,1),MATCH($E$2,'Data by Building Type'!$D$22:$F$22,0))=\"Yes\",1,0)*\n(AM$10*OFFSET('Efficiency Distributions'!$D$10,MATCH($C145,'Efficiency Distributions'!$C$9:$C$87,0)+RIGHT($E149),0)\n+AM$11*OFFSET('Efficiency Distributions'!$E$10,MATCH($C145,'Efficiency Distributions'!$C$9:$C$87,0)+RIGHT($E149),0))\n/SUM(AM$10:AM$11)","v":0},{"$f":"IF(INDEX(PC_MAPPING,RIGHT($C145,1),MATCH($E$2,'Data by Building Type'!$D$22:$F$22,0))=\"Yes\",1,0)*\n(AN$10*OFFSET('Efficiency Distributions'!$D$10,MATCH($C145,'Efficiency Distributions'!$C$9:$C$87,0)+RIGHT($E149),0)\n+AN$11*OFFSET('Efficiency Distributions'!$E$10,MATCH($C145,'Efficiency Distributions'!$C$9:$C$87,0)+RIGHT($E149),0))\n/SUM(AN$10:AN$11)","v":0},{"$f":"IF(INDEX(PC_MAPPING,RIGHT($C145,1),MATCH($E$2,'Data by Building Type'!$D$22:$F$22,0))=\"Yes\",1,0)*\n(AO$10*OFFSET('Efficiency Distributions'!$D$10,MATCH($C145,'Efficiency Distributions'!$C$9:$C$87,0)+RIGHT($E149),0)\n+AO$11*OFFSET('Efficiency Distributions'!$E$10,MATCH($C145,'Efficiency Distributions'!$C$9:$C$87,0)+RIGHT($E149),0))\n/SUM(AO$10:AO$11)","v":0},{"$f":"IF(INDEX(PC_MAPPING,RIGHT($C145,1),MATCH($E$2,'Data by Building Type'!$D$22:$F$22,0))=\"Yes\",1,0)*\n(AP$10*OFFSET('Efficiency Distributions'!$D$10,MATCH($C145,'Efficiency Distributions'!$C$9:$C$87,0)+RIGHT($E149),0)\n+AP$11*OFFSET('Efficiency Distributions'!$E$10,MATCH($C145,'Efficiency Distributions'!$C$9:$C$87,0)+RIGHT($E149),0))\n/SUM(AP$10:AP$11)","v":0},{"$f":"IF(INDEX(PC_MAPPING,RIGHT($C145,1),MATCH($E$2,'Data by Building Type'!$D$22:$F$22,0))=\"Yes\",1,0)*\n(AQ$10*OFFSET('Efficiency Distributions'!$D$10,MATCH($C145,'Efficiency Distributions'!$C$9:$C$87,0)+RIGHT($E149),0)\n+AQ$11*OFFSET('Efficiency Distributions'!$E$10,MATCH($C145,'Efficiency Distributions'!$C$9:$C$87,0)+RIGHT($E149),0))\n/SUM(AQ$10:AQ$11)","v":0},{"$f":"IF(INDEX(PC_MAPPING,RIGHT($C145,1),MATCH($E$2,'Data by Building Type'!$D$22:$F$22,0))=\"Yes\",1,0)*\n(AR$10*OFFSET('Efficiency Distributions'!$D$10,MATCH($C145,'Efficiency Distributions'!$C$9:$C$87,0)+RIGHT($E149),0)\n+AR$11*OFFSET('Efficiency Distributions'!$E$10,MATCH($C145,'Efficiency Distributions'!$C$9:$C$87,0)+RIGHT($E149),0))\n/SUM(AR$10:AR$11)","v":0},{"$f":"IF(INDEX(PC_MAPPING,RIGHT($C145,1),MATCH($E$2,'Data by Building Type'!$D$22:$F$22,0))=\"Yes\",1,0)*\n(AS$10*OFFSET('Efficiency Distributions'!$D$10,MATCH($C145,'Efficiency Distributions'!$C$9:$C$87,0)+RIGHT($E149),0)\n+AS$11*OFFSET('Efficiency Distributions'!$E$10,MATCH($C145,'Efficiency Distributions'!$C$9:$C$87,0)+RIGHT($E149),0))\n/SUM(AS$10:AS$11)","v":0},{"$f":"IF(INDEX(PC_MAPPING,RIGHT($C145,1),MATCH($E$2,'Data by Building Type'!$D$22:$F$22,0))=\"Yes\",1,0)*\n(AT$10*OFFSET('Efficiency Distributions'!$D$10,MATCH($C145,'Efficiency Distributions'!$C$9:$C$87,0)+RIGHT($E149),0)\n+AT$11*OFFSET('Efficiency Distributions'!$E$10,MATCH($C145,'Efficiency Distributions'!$C$9:$C$87,0)+RIGHT($E149),0))\n/SUM(AT$10:AT$11)","v":0},{"$f":"IF(INDEX(PC_MAPPING,RIGHT($C145,1),MATCH($E$2,'Data by Building Type'!$D$22:$F$22,0))=\"Yes\",1,0)*\n(AU$10*OFFSET('Efficiency Distributions'!$D$10,MATCH($C145,'Efficiency Distributions'!$C$9:$C$87,0)+RIGHT($E149),0)\n+AU$11*OFFSET('Efficiency Distributions'!$E$10,MATCH($C145,'Efficiency Distributions'!$C$9:$C$87,0)+RIGHT($E149),0))\n/SUM(AU$10:AU$11)","v":0},{"$f":"IF(INDEX(PC_MAPPING,RIGHT($C145,1),MATCH($E$2,'Data by Building Type'!$D$22:$F$22,0))=\"Yes\",1,0)*\n(AV$10*OFFSET('Efficiency Distributions'!$D$10,MATCH($C145,'Efficiency Distributions'!$C$9:$C$87,0)+RIGHT($E149),0)\n+AV$11*OFFSET('Efficiency Distributions'!$E$10,MATCH($C145,'Efficiency Distributions'!$C$9:$C$87,0)+RIGHT($E149),0))\n/SUM(AV$10:AV$11)","v":0},{"$f":"IF(INDEX(PC_MAPPING,RIGHT($C145,1),MATCH($E$2,'Data by Building Type'!$D$22:$F$22,0))=\"Yes\",1,0)*\n(AW$10*OFFSET('Efficiency Distributions'!$D$10,MATCH($C145,'Efficiency Distributions'!$C$9:$C$87,0)+RIGHT($E149),0)\n+AW$11*OFFSET('Efficiency Distributions'!$E$10,MATCH($C145,'Efficiency Distributions'!$C$9:$C$87,0)+RIGHT($E149),0))\n/SUM(AW$10:AW$11)","v":0},{"$f":"IF(INDEX(PC_MAPPING,RIGHT($C145,1),MATCH($E$2,'Data by Building Type'!$D$22:$F$22,0))=\"Yes\",1,0)*\n(AX$10*OFFSET('Efficiency Distributions'!$D$10,MATCH($C145,'Efficiency Distributions'!$C$9:$C$87,0)+RIGHT($E149),0)\n+AX$11*OFFSET('Efficiency Distributions'!$E$10,MATCH($C145,'Efficiency Distributions'!$C$9:$C$87,0)+RIGHT($E149),0))\n/SUM(AX$10:AX$11)","v":0},{"$f":"IF(INDEX(PC_MAPPING,RIGHT($C145,1),MATCH($E$2,'Data by Building Type'!$D$22:$F$22,0))=\"Yes\",1,0)*\n(AY$10*OFFSET('Efficiency Distributions'!$D$10,MATCH($C145,'Efficiency Distributions'!$C$9:$C$87,0)+RIGHT($E149),0)\n+AY$11*OFFSET('Efficiency Distributions'!$E$10,MATCH($C145,'Efficiency Distributions'!$C$9:$C$87,0)+RIGHT($E149),0))\n/SUM(AY$10:AY$11)","v":0},{"$f":"IF(INDEX(PC_MAPPING,RIGHT($C145,1),MATCH($E$2,'Data by Building Type'!$D$22:$F$22,0))=\"Yes\",1,0)*\n(AZ$10*OFFSET('Efficiency Distributions'!$D$10,MATCH($C145,'Efficiency Distributions'!$C$9:$C$87,0)+RIGHT($E149),0)\n+AZ$11*OFFSET('Efficiency Distributions'!$E$10,MATCH($C145,'Efficiency Distributions'!$C$9:$C$87,0)+RIGHT($E149),0))\n/SUM(AZ$10:AZ$11)","v":0},{"$f":"IF(INDEX(PC_MAPPING,RIGHT($C145,1),MATCH($E$2,'Data by Building Type'!$D$22:$F$22,0))=\"Yes\",1,0)*\n(BA$10*OFFSET('Efficiency Distributions'!$D$10,MATCH($C145,'Efficiency Distributions'!$C$9:$C$87,0)+RIGHT($E149),0)\n+BA$11*OFFSET('Efficiency Distributions'!$E$10,MATCH($C145,'Efficiency Distributions'!$C$9:$C$87,0)+RIGHT($E149),0))\n/SUM(BA$10:BA$11)","v":0},{"$f":"IF(INDEX(PC_MAPPING,RIGHT($C145,1),MATCH($E$2,'Data by Building Type'!$D$22:$F$22,0))=\"Yes\",1,0)*\n(BB$10*OFFSET('Efficiency Distributions'!$D$10,MATCH($C145,'Efficiency Distributions'!$C$9:$C$87,0)+RIGHT($E149),0)\n+BB$11*OFFSET('Efficiency Distributions'!$E$10,MATCH($C145,'Efficiency Distributions'!$C$9:$C$87,0)+RIGHT($E149),0))\n/SUM(BB$10:BB$11)","v":0},{"$f":"IF(INDEX(PC_MAPPING,RIGHT($C145,1),MATCH($E$2,'Data by Building Type'!$D$22:$F$22,0))=\"Yes\",1,0)*\n(BC$10*OFFSET('Efficiency Distributions'!$D$10,MATCH($C145,'Efficiency Distributions'!$C$9:$C$87,0)+RIGHT($E149),0)\n+BC$11*OFFSET('Efficiency Distributions'!$E$10,MATCH($C145,'Efficiency Distributions'!$C$9:$C$87,0)+RIGHT($E149),0))\n/SUM(BC$10:BC$11)","v":0},{"$f":"IF(INDEX(PC_MAPPING,RIGHT($C145,1),MATCH($E$2,'Data by Building Type'!$D$22:$F$22,0))=\"Yes\",1,0)*\n(BD$10*OFFSET('Efficiency Distributions'!$D$10,MATCH($C145,'Efficiency Distributions'!$C$9:$C$87,0)+RIGHT($E149),0)\n+BD$11*OFFSET('Efficiency Distributions'!$E$10,MATCH($C145,'Efficiency Distributions'!$C$9:$C$87,0)+RIGHT($E149),0))\n/SUM(BD$10:BD$11)","v":0},{"$f":"IF(INDEX(PC_MAPPING,RIGHT($C145,1),MATCH($E$2,'Data by Building Type'!$D$22:$F$22,0))=\"Yes\",1,0)*\n(BE$10*OFFSET('Efficiency Distributions'!$D$10,MATCH($C145,'Efficiency Distributions'!$C$9:$C$87,0)+RIGHT($E149),0)\n+BE$11*OFFSET('Efficiency Distributions'!$E$10,MATCH($C145,'Efficiency Distributions'!$C$9:$C$87,0)+RIGHT($E149),0))\n/SUM(BE$10:BE$11)","v":0},{"$f":"IF(INDEX(PC_MAPPING,RIGHT($C145,1),MATCH($E$2,'Data by Building Type'!$D$22:$F$22,0))=\"Yes\",1,0)*\n(BF$10*OFFSET('Efficiency Distributions'!$D$10,MATCH($C145,'Efficiency Distributions'!$C$9:$C$87,0)+RIGHT($E149),0)\n+BF$11*OFFSET('Efficiency Distributions'!$E$10,MATCH($C145,'Efficiency Distributions'!$C$9:$C$87,0)+RIGHT($E149),0))\n/SUM(BF$10:BF$11)","v":0},{"$f":"IF(INDEX(PC_MAPPING,RIGHT($C145,1),MATCH($E$2,'Data by Building Type'!$D$22:$F$22,0))=\"Yes\",1,0)*\n(BG$10*OFFSET('Efficiency Distributions'!$D$10,MATCH($C145,'Efficiency Distributions'!$C$9:$C$87,0)+RIGHT($E149),0)\n+BG$11*OFFSET('Efficiency Distributions'!$E$10,MATCH($C145,'Efficiency Distributions'!$C$9:$C$87,0)+RIGHT($E149),0))\n/SUM(BG$10:BG$11)","v":0}]
[null,null,null,null,"EL1",{"$f":"IF(INDEX(PC_MAPPING,RIGHT($C145,1),MATCH($E$2,'Data by Building Type'!$D$22:$F$22,0))=\"Yes\",1,0)*\n(F$10*OFFSET('Efficiency Distributions'!$D$10,MATCH($C145,'Efficiency Distributions'!$C$9:$C$87,0)+RIGHT($E150),0)\n+F$11*OFFSET('Efficiency Distributions'!$E$10,MATCH($C145,'Efficiency Distributions'!$C$9:$C$87,0)+RIGHT($E150),0))\n/SUM(F$10:F$11)","v":0},{"$f":"IF(INDEX(PC_MAPPING,RIGHT($C145,1),MATCH($E$2,'Data by Building Type'!$D$22:$F$22,0))=\"Yes\",1,0)*\n(G$10*OFFSET('Efficiency Distributions'!$D$10,MATCH($C145,'Efficiency Distributions'!$C$9:$C$87,0)+RIGHT($E150),0)\n+G$11*OFFSET('Efficiency Distributions'!$E$10,MATCH($C145,'Efficiency Distributions'!$C$9:$C$87,0)+RIGHT($E150),0))\n/SUM(G$10:G$11)","v":0},{"$f":"IF(INDEX(PC_MAPPING,RIGHT($C145,1),MATCH($E$2,'Data by Building Type'!$D$22:$F$22,0))=\"Yes\",1,0)*\n(H$10*OFFSET('Efficiency Distributions'!$D$10,MATCH($C145,'Efficiency Distributions'!$C$9:$C$87,0)+RIGHT($E150),0)\n+H$11*OFFSET('Efficiency Distributions'!$E$10,MATCH($C145,'Efficiency Distributions'!$C$9:$C$87,0)+RIGHT($E150),0))\n/SUM(H$10:H$11)","v":0},{"$f":"IF(INDEX(PC_MAPPING,RIGHT($C145,1),MATCH($E$2,'Data by Building Type'!$D$22:$F$22,0))=\"Yes\",1,0)*\n(I$10*OFFSET('Efficiency Distributions'!$D$10,MATCH($C145,'Efficiency Distributions'!$C$9:$C$87,0)+RIGHT($E150),0)\n+I$11*OFFSET('Efficiency Distributions'!$E$10,MATCH($C145,'Efficiency Distributions'!$C$9:$C$87,0)+RIGHT($E150),0))\n/SUM(I$10:I$11)","v":0},{"$f":"IF(INDEX(PC_MAPPING,RIGHT($C145,1),MATCH($E$2,'Data by Building Type'!$D$22:$F$22,0))=\"Yes\",1,0)*\n(J$10*OFFSET('Efficiency Distributions'!$D$10,MATCH($C145,'Efficiency Distributions'!$C$9:$C$87,0)+RIGHT($E150),0)\n+J$11*OFFSET('Efficiency Distributions'!$E$10,MATCH($C145,'Efficiency Distributions'!$C$9:$C$87,0)+RIGHT($E150),0))\n/SUM(J$10:J$11)","v":0},{"$f":"IF(INDEX(PC_MAPPING,RIGHT($C145,1),MATCH($E$2,'Data by Building Type'!$D$22:$F$22,0))=\"Yes\",1,0)*\n(K$10*OFFSET('Efficiency Distributions'!$D$10,MATCH($C145,'Efficiency Distributions'!$C$9:$C$87,0)+RIGHT($E150),0)\n+K$11*OFFSET('Efficiency Distributions'!$E$10,MATCH($C145,'Efficiency Distributions'!$C$9:$C$87,0)+RIGHT($E150),0))\n/SUM(K$10:K$11)","v":0},{"$f":"IF(INDEX(PC_MAPPING,RIGHT($C145,1),MATCH($E$2,'Data by Building Type'!$D$22:$F$22,0))=\"Yes\",1,0)*\n(L$10*OFFSET('Efficiency Distributions'!$D$10,MATCH($C145,'Efficiency Distributions'!$C$9:$C$87,0)+RIGHT($E150),0)\n+L$11*OFFSET('Efficiency Distributions'!$E$10,MATCH($C145,'Efficiency Distributions'!$C$9:$C$87,0)+RIGHT($E150),0))\n/SUM(L$10:L$11)","v":0},{"$f":"IF(INDEX(PC_MAPPING,RIGHT($C145,1),MATCH($E$2,'Data by Building Type'!$D$22:$F$22,0))=\"Yes\",1,0)*\n(M$10*OFFSET('Efficiency Distributions'!$D$10,MATCH($C145,'Efficiency Distributions'!$C$9:$C$87,0)+RIGHT($E150),0)\n+M$11*OFFSET('Efficiency Distributions'!$E$10,MATCH($C145,'Efficiency Distributions'!$C$9:$C$87,0)+RIGHT($E150),0))\n/SUM(M$10:M$11)","v":0},{"$f":"IF(INDEX(PC_MAPPING,RIGHT($C145,1),MATCH($E$2,'Data by Building Type'!$D$22:$F$22,0))=\"Yes\",1,0)*\n(N$10*OFFSET('Efficiency Distributions'!$D$10,MATCH($C145,'Efficiency Distributions'!$C$9:$C$87,0)+RIGHT($E150),0)\n+N$11*OFFSET('Efficiency Distributions'!$E$10,MATCH($C145,'Efficiency Distributions'!$C$9:$C$87,0)+RIGHT($E150),0))\n/SUM(N$10:N$11)","v":0},{"$f":"IF(INDEX(PC_MAPPING,RIGHT($C145,1),MATCH($E$2,'Data by Building Type'!$D$22:$F$22,0))=\"Yes\",1,0)*\n(O$10*OFFSET('Efficiency Distributions'!$D$10,MATCH($C145,'Efficiency Distributions'!$C$9:$C$87,0)+RIGHT($E150),0)\n+O$11*OFFSET('Efficiency Distributions'!$E$10,MATCH($C145,'Efficiency Distributions'!$C$9:$C$87,0)+RIGHT($E150),0))\n/SUM(O$10:O$11)","v":0},{"$f":"IF(INDEX(PC_MAPPING,RIGHT($C145,1),MATCH($E$2,'Data by Building Type'!$D$22:$F$22,0))=\"Yes\",1,0)*\n(P$10*OFFSET('Efficiency Distributions'!$D$10,MATCH($C145,'Efficiency Distributions'!$C$9:$C$87,0)+RIGHT($E150),0)\n+P$11*OFFSET('Efficiency Distributions'!$E$10,MATCH($C145,'Efficiency Distributions'!$C$9:$C$87,0)+RIGHT($E150),0))\n/SUM(P$10:P$11)","v":0},{"$f":"IF(INDEX(PC_MAPPING,RIGHT($C145,1),MATCH($E$2,'Data by Building Type'!$D$22:$F$22,0))=\"Yes\",1,0)*\n(Q$10*OFFSET('Efficiency Distributions'!$D$10,MATCH($C145,'Efficiency Distributions'!$C$9:$C$87,0)+RIGHT($E150),0)\n+Q$11*OFFSET('Efficiency Distributions'!$E$10,MATCH($C145,'Efficiency Distributions'!$C$9:$C$87,0)+RIGHT($E150),0))\n/SUM(Q$10:Q$11)","v":0},{"$f":"IF(INDEX(PC_MAPPING,RIGHT($C145,1),MATCH($E$2,'Data by Building Type'!$D$22:$F$22,0))=\"Yes\",1,0)*\n(R$10*OFFSET('Efficiency Distributions'!$D$10,MATCH($C145,'Efficiency Distributions'!$C$9:$C$87,0)+RIGHT($E150),0)\n+R$11*OFFSET('Efficiency Distributions'!$E$10,MATCH($C145,'Efficiency Distributions'!$C$9:$C$87,0)+RIGHT($E150),0))\n/SUM(R$10:R$11)","v":0},{"$f":"IF(INDEX(PC_MAPPING,RIGHT($C145,1),MATCH($E$2,'Data by Building Type'!$D$22:$F$22,0))=\"Yes\",1,0)*\n(S$10*OFFSET('Efficiency Distributions'!$D$10,MATCH($C145,'Efficiency Distributions'!$C$9:$C$87,0)+RIGHT($E150),0)\n+S$11*OFFSET('Efficiency Distributions'!$E$10,MATCH($C145,'Efficiency Distributions'!$C$9:$C$87,0)+RIGHT($E150),0))\n/SUM(S$10:S$11)","v":0},{"$f":"IF(INDEX(PC_MAPPING,RIGHT($C145,1),MATCH($E$2,'Data by Building Type'!$D$22:$F$22,0))=\"Yes\",1,0)*\n(T$10*OFFSET('Efficiency Distributions'!$D$10,MATCH($C145,'Efficiency Distributions'!$C$9:$C$87,0)+RIGHT($E150),0)\n+T$11*OFFSET('Efficiency Distributions'!$E$10,MATCH($C145,'Efficiency Distributions'!$C$9:$C$87,0)+RIGHT($E150),0))\n/SUM(T$10:T$11)","v":0},{"$f":"IF(INDEX(PC_MAPPING,RIGHT($C145,1),MATCH($E$2,'Data by Building Type'!$D$22:$F$22,0))=\"Yes\",1,0)*\n(U$10*OFFSET('Efficiency Distributions'!$D$10,MATCH($C145,'Efficiency Distributions'!$C$9:$C$87,0)+RIGHT($E150),0)\n+U$11*OFFSET('Efficiency Distributions'!$E$10,MATCH($C145,'Efficiency Distributions'!$C$9:$C$87,0)+RIGHT($E150),0))\n/SUM(U$10:U$11)","v":0},{"$f":"IF(INDEX(PC_MAPPING,RIGHT($C145,1),MATCH($E$2,'Data by Building Type'!$D$22:$F$22,0))=\"Yes\",1,0)*\n(V$10*OFFSET('Efficiency Distributions'!$D$10,MATCH($C145,'Efficiency Distributions'!$C$9:$C$87,0)+RIGHT($E150),0)\n+V$11*OFFSET('Efficiency Distributions'!$E$10,MATCH($C145,'Efficiency Distributions'!$C$9:$C$87,0)+RIGHT($E150),0))\n/SUM(V$10:V$11)","v":0},{"$f":"IF(INDEX(PC_MAPPING,RIGHT($C145,1),MATCH($E$2,'Data by Building Type'!$D$22:$F$22,0))=\"Yes\",1,0)*\n(W$10*OFFSET('Efficiency Distributions'!$D$10,MATCH($C145,'Efficiency Distributions'!$C$9:$C$87,0)+RIGHT($E150),0)\n+W$11*OFFSET('Efficiency Distributions'!$E$10,MATCH($C145,'Efficiency Distributions'!$C$9:$C$87,0)+RIGHT($E150),0))\n/SUM(W$10:W$11)","v":0},{"$f":"IF(INDEX(PC_MAPPING,RIGHT($C145,1),MATCH($E$2,'Data by Building Type'!$D$22:$F$22,0))=\"Yes\",1,0)*\n(X$10*OFFSET('Efficiency Distributions'!$D$10,MATCH($C145,'Efficiency Distributions'!$C$9:$C$87,0)+RIGHT($E150),0)\n+X$11*OFFSET('Efficiency Distributions'!$E$10,MATCH($C145,'Efficiency Distributions'!$C$9:$C$87,0)+RIGHT($E150),0))\n/SUM(X$10:X$11)","v":0},{"$f":"IF(INDEX(PC_MAPPING,RIGHT($C145,1),MATCH($E$2,'Data by Building Type'!$D$22:$F$22,0))=\"Yes\",1,0)*\n(Y$10*OFFSET('Efficiency Distributions'!$D$10,MATCH($C145,'Efficiency Distributions'!$C$9:$C$87,0)+RIGHT($E150),0)\n+Y$11*OFFSET('Efficiency Distributions'!$E$10,MATCH($C145,'Efficiency Distributions'!$C$9:$C$87,0)+RIGHT($E150),0))\n/SUM(Y$10:Y$11)","v":0},{"$f":"IF(INDEX(PC_MAPPING,RIGHT($C145,1),MATCH($E$2,'Data by Building Type'!$D$22:$F$22,0))=\"Yes\",1,0)*\n(Z$10*OFFSET('Efficiency Distributions'!$D$10,MATCH($C145,'Efficiency Distributions'!$C$9:$C$87,0)+RIGHT($E150),0)\n+Z$11*OFFSET('Efficiency Distributions'!$E$10,MATCH($C145,'Efficiency Distributions'!$C$9:$C$87,0)+RIGHT($E150),0))\n/SUM(Z$10:Z$11)","v":0},{"$f":"IF(INDEX(PC_MAPPING,RIGHT($C145,1),MATCH($E$2,'Data by Building Type'!$D$22:$F$22,0))=\"Yes\",1,0)*\n(AA$10*OFFSET('Efficiency Distributions'!$D$10,MATCH($C145,'Efficiency Distributions'!$C$9:$C$87,0)+RIGHT($E150),0)\n+AA$11*OFFSET('Efficiency Distributions'!$E$10,MATCH($C145,'Efficiency Distributions'!$C$9:$C$87,0)+RIGHT($E150),0))\n/SUM(AA$10:AA$11)","v":0},{"$f":"IF(INDEX(PC_MAPPING,RIGHT($C145,1),MATCH($E$2,'Data by Building Type'!$D$22:$F$22,0))=\"Yes\",1,0)*\n(AB$10*OFFSET('Efficiency Distributions'!$D$10,MATCH($C145,'Efficiency Distributions'!$C$9:$C$87,0)+RIGHT($E150),0)\n+AB$11*OFFSET('Efficiency Distributions'!$E$10,MATCH($C145,'Efficiency Distributions'!$C$9:$C$87,0)+RIGHT($E150),0))\n/SUM(AB$10:AB$11)","v":0},{"$f":"IF(INDEX(PC_MAPPING,RIGHT($C145,1),MATCH($E$2,'Data by Building Type'!$D$22:$F$22,0))=\"Yes\",1,0)*\n(AC$10*OFFSET('Efficiency Distributions'!$D$10,MATCH($C145,'Efficiency Distributions'!$C$9:$C$87,0)+RIGHT($E150),0)\n+AC$11*OFFSET('Efficiency Distributions'!$E$10,MATCH($C145,'Efficiency Distributions'!$C$9:$C$87,0)+RIGHT($E150),0))\n/SUM(AC$10:AC$11)","v":0},{"$f":"IF(INDEX(PC_MAPPING,RIGHT($C145,1),MATCH($E$2,'Data by Building Type'!$D$22:$F$22,0))=\"Yes\",1,0)*\n(AD$10*OFFSET('Efficiency Distributions'!$D$10,MATCH($C145,'Efficiency Distributions'!$C$9:$C$87,0)+RIGHT($E150),0)\n+AD$11*OFFSET('Efficiency Distributions'!$E$10,MATCH($C145,'Efficiency Distributions'!$C$9:$C$87,0)+RIGHT($E150),0))\n/SUM(AD$10:AD$11)","v":0},{"$f":"IF(INDEX(PC_MAPPING,RIGHT($C145,1),MATCH($E$2,'Data by Building Type'!$D$22:$F$22,0))=\"Yes\",1,0)*\n(AE$10*OFFSET('Efficiency Distributions'!$D$10,MATCH($C145,'Efficiency Distributions'!$C$9:$C$87,0)+RIGHT($E150),0)\n+AE$11*OFFSET('Efficiency Distributions'!$E$10,MATCH($C145,'Efficiency Distributions'!$C$9:$C$87,0)+RIGHT($E150),0))\n/SUM(AE$10:AE$11)","v":0},{"$f":"IF(INDEX(PC_MAPPING,RIGHT($C145,1),MATCH($E$2,'Data by Building Type'!$D$22:$F$22,0))=\"Yes\",1,0)*\n(AF$10*OFFSET('Efficiency Distributions'!$D$10,MATCH($C145,'Efficiency Distributions'!$C$9:$C$87,0)+RIGHT($E150),0)\n+AF$11*OFFSET('Efficiency Distributions'!$E$10,MATCH($C145,'Efficiency Distributions'!$C$9:$C$87,0)+RIGHT($E150),0))\n/SUM(AF$10:AF$11)","v":0},{"$f":"IF(INDEX(PC_MAPPING,RIGHT($C145,1),MATCH($E$2,'Data by Building Type'!$D$22:$F$22,0))=\"Yes\",1,0)*\n(AG$10*OFFSET('Efficiency Distributions'!$D$10,MATCH($C145,'Efficiency Distributions'!$C$9:$C$87,0)+RIGHT($E150),0)\n+AG$11*OFFSET('Efficiency Distributions'!$E$10,MATCH($C145,'Efficiency Distributions'!$C$9:$C$87,0)+RIGHT($E150),0))\n/SUM(AG$10:AG$11)","v":0},{"$f":"IF(INDEX(PC_MAPPING,RIGHT($C145,1),MATCH($E$2,'Data by Building Type'!$D$22:$F$22,0))=\"Yes\",1,0)*\n(AH$10*OFFSET('Efficiency Distributions'!$D$10,MATCH($C145,'Efficiency Distributions'!$C$9:$C$87,0)+RIGHT($E150),0)\n+AH$11*OFFSET('Efficiency Distributions'!$E$10,MATCH($C145,'Efficiency Distributions'!$C$9:$C$87,0)+RIGHT($E150),0))\n/SUM(AH$10:AH$11)","v":0},{"$f":"IF(INDEX(PC_MAPPING,RIGHT($C145,1),MATCH($E$2,'Data by Building Type'!$D$22:$F$22,0))=\"Yes\",1,0)*\n(AI$10*OFFSET('Efficiency Distributions'!$D$10,MATCH($C145,'Efficiency Distributions'!$C$9:$C$87,0)+RIGHT($E150),0)\n+AI$11*OFFSET('Efficiency Distributions'!$E$10,MATCH($C145,'Efficiency Distributions'!$C$9:$C$87,0)+RIGHT($E150),0))\n/SUM(AI$10:AI$11)","v":0},{"$f":"IF(INDEX(PC_MAPPING,RIGHT($C145,1),MATCH($E$2,'Data by Building Type'!$D$22:$F$22,0))=\"Yes\",1,0)*\n(AJ$10*OFFSET('Efficiency Distributions'!$D$10,MATCH($C145,'Efficiency Distributions'!$C$9:$C$87,0)+RIGHT($E150),0)\n+AJ$11*OFFSET('Efficiency Distributions'!$E$10,MATCH($C145,'Efficiency Distributions'!$C$9:$C$87,0)+RIGHT($E150),0))\n/SUM(AJ$10:AJ$11)","v":0},{"$f":"IF(INDEX(PC_MAPPING,RIGHT($C145,1),MATCH($E$2,'Data by Building Type'!$D$22:$F$22,0))=\"Yes\",1,0)*\n(AK$10*OFFSET('Efficiency Distributions'!$D$10,MATCH($C145,'Efficiency Distributions'!$C$9:$C$87,0)+RIGHT($E150),0)\n+AK$11*OFFSET('Efficiency Distributions'!$E$10,MATCH($C145,'Efficiency Distributions'!$C$9:$C$87,0)+RIGHT($E150),0))\n/SUM(AK$10:AK$11)","v":0},{"$f":"IF(INDEX(PC_MAPPING,RIGHT($C145,1),MATCH($E$2,'Data by Building Type'!$D$22:$F$22,0))=\"Yes\",1,0)*\n(AL$10*OFFSET('Efficiency Distributions'!$D$10,MATCH($C145,'Efficiency Distributions'!$C$9:$C$87,0)+RIGHT($E150),0)\n+AL$11*OFFSET('Efficiency Distributions'!$E$10,MATCH($C145,'Efficiency Distributions'!$C$9:$C$87,0)+RIGHT($E150),0))\n/SUM(AL$10:AL$11)","v":0},{"$f":"IF(INDEX(PC_MAPPING,RIGHT($C145,1),MATCH($E$2,'Data by Building Type'!$D$22:$F$22,0))=\"Yes\",1,0)*\n(AM$10*OFFSET('Efficiency Distributions'!$D$10,MATCH($C145,'Efficiency Distributions'!$C$9:$C$87,0)+RIGHT($E150),0)\n+AM$11*OFFSET('Efficiency Distributions'!$E$10,MATCH($C145,'Efficiency Distributions'!$C$9:$C$87,0)+RIGHT($E150),0))\n/SUM(AM$10:AM$11)","v":0},{"$f":"IF(INDEX(PC_MAPPING,RIGHT($C145,1),MATCH($E$2,'Data by Building Type'!$D$22:$F$22,0))=\"Yes\",1,0)*\n(AN$10*OFFSET('Efficiency Distributions'!$D$10,MATCH($C145,'Efficiency Distributions'!$C$9:$C$87,0)+RIGHT($E150),0)\n+AN$11*OFFSET('Efficiency Distributions'!$E$10,MATCH($C145,'Efficiency Distributions'!$C$9:$C$87,0)+RIGHT($E150),0))\n/SUM(AN$10:AN$11)","v":0},{"$f":"IF(INDEX(PC_MAPPING,RIGHT($C145,1),MATCH($E$2,'Data by Building Type'!$D$22:$F$22,0))=\"Yes\",1,0)*\n(AO$10*OFFSET('Efficiency Distributions'!$D$10,MATCH($C145,'Efficiency Distributions'!$C$9:$C$87,0)+RIGHT($E150),0)\n+AO$11*OFFSET('Efficiency Distributions'!$E$10,MATCH($C145,'Efficiency Distributions'!$C$9:$C$87,0)+RIGHT($E150),0))\n/SUM(AO$10:AO$11)","v":0},{"$f":"IF(INDEX(PC_MAPPING,RIGHT($C145,1),MATCH($E$2,'Data by Building Type'!$D$22:$F$22,0))=\"Yes\",1,0)*\n(AP$10*OFFSET('Efficiency Distributions'!$D$10,MATCH($C145,'Efficiency Distributions'!$C$9:$C$87,0)+RIGHT($E150),0)\n+AP$11*OFFSET('Efficiency Distributions'!$E$10,MATCH($C145,'Efficiency Distributions'!$C$9:$C$87,0)+RIGHT($E150),0))\n/SUM(AP$10:AP$11)","v":0},{"$f":"IF(INDEX(PC_MAPPING,RIGHT($C145,1),MATCH($E$2,'Data by Building Type'!$D$22:$F$22,0))=\"Yes\",1,0)*\n(AQ$10*OFFSET('Efficiency Distributions'!$D$10,MATCH($C145,'Efficiency Distributions'!$C$9:$C$87,0)+RIGHT($E150),0)\n+AQ$11*OFFSET('Efficiency Distributions'!$E$10,MATCH($C145,'Efficiency Distributions'!$C$9:$C$87,0)+RIGHT($E150),0))\n/SUM(AQ$10:AQ$11)","v":0},{"$f":"IF(INDEX(PC_MAPPING,RIGHT($C145,1),MATCH($E$2,'Data by Building Type'!$D$22:$F$22,0))=\"Yes\",1,0)*\n(AR$10*OFFSET('Efficiency Distributions'!$D$10,MATCH($C145,'Efficiency Distributions'!$C$9:$C$87,0)+RIGHT($E150),0)\n+AR$11*OFFSET('Efficiency Distributions'!$E$10,MATCH($C145,'Efficiency Distributions'!$C$9:$C$87,0)+RIGHT($E150),0))\n/SUM(AR$10:AR$11)","v":0},{"$f":"IF(INDEX(PC_MAPPING,RIGHT($C145,1),MATCH($E$2,'Data by Building Type'!$D$22:$F$22,0))=\"Yes\",1,0)*\n(AS$10*OFFSET('Efficiency Distributions'!$D$10,MATCH($C145,'Efficiency Distributions'!$C$9:$C$87,0)+RIGHT($E150),0)\n+AS$11*OFFSET('Efficiency Distributions'!$E$10,MATCH($C145,'Efficiency Distributions'!$C$9:$C$87,0)+RIGHT($E150),0))\n/SUM(AS$10:AS$11)","v":0},{"$f":"IF(INDEX(PC_MAPPING,RIGHT($C145,1),MATCH($E$2,'Data by Building Type'!$D$22:$F$22,0))=\"Yes\",1,0)*\n(AT$10*OFFSET('Efficiency Distributions'!$D$10,MATCH($C145,'Efficiency Distributions'!$C$9:$C$87,0)+RIGHT($E150),0)\n+AT$11*OFFSET('Efficiency Distributions'!$E$10,MATCH($C145,'Efficiency Distributions'!$C$9:$C$87,0)+RIGHT($E150),0))\n/SUM(AT$10:AT$11)","v":0},{"$f":"IF(INDEX(PC_MAPPING,RIGHT($C145,1),MATCH($E$2,'Data by Building Type'!$D$22:$F$22,0))=\"Yes\",1,0)*\n(AU$10*OFFSET('Efficiency Distributions'!$D$10,MATCH($C145,'Efficiency Distributions'!$C$9:$C$87,0)+RIGHT($E150),0)\n+AU$11*OFFSET('Efficiency Distributions'!$E$10,MATCH($C145,'Efficiency Distributions'!$C$9:$C$87,0)+RIGHT($E150),0))\n/SUM(AU$10:AU$11)","v":0},{"$f":"IF(INDEX(PC_MAPPING,RIGHT($C145,1),MATCH($E$2,'Data by Building Type'!$D$22:$F$22,0))=\"Yes\",1,0)*\n(AV$10*OFFSET('Efficiency Distributions'!$D$10,MATCH($C145,'Efficiency Distributions'!$C$9:$C$87,0)+RIGHT($E150),0)\n+AV$11*OFFSET('Efficiency Distributions'!$E$10,MATCH($C145,'Efficiency Distributions'!$C$9:$C$87,0)+RIGHT($E150),0))\n/SUM(AV$10:AV$11)","v":0},{"$f":"IF(INDEX(PC_MAPPING,RIGHT($C145,1),MATCH($E$2,'Data by Building Type'!$D$22:$F$22,0))=\"Yes\",1,0)*\n(AW$10*OFFSET('Efficiency Distributions'!$D$10,MATCH($C145,'Efficiency Distributions'!$C$9:$C$87,0)+RIGHT($E150),0)\n+AW$11*OFFSET('Efficiency Distributions'!$E$10,MATCH($C145,'Efficiency Distributions'!$C$9:$C$87,0)+RIGHT($E150),0))\n/SUM(AW$10:AW$11)","v":0},{"$f":"IF(INDEX(PC_MAPPING,RIGHT($C145,1),MATCH($E$2,'Data by Building Type'!$D$22:$F$22,0))=\"Yes\",1,0)*\n(AX$10*OFFSET('Efficiency Distributions'!$D$10,MATCH($C145,'Efficiency Distributions'!$C$9:$C$87,0)+RIGHT($E150),0)\n+AX$11*OFFSET('Efficiency Distributions'!$E$10,MATCH($C145,'Efficiency Distributions'!$C$9:$C$87,0)+RIGHT($E150),0))\n/SUM(AX$10:AX$11)","v":0},{"$f":"IF(INDEX(PC_MAPPING,RIGHT($C145,1),MATCH($E$2,'Data by Building Type'!$D$22:$F$22,0))=\"Yes\",1,0)*\n(AY$10*OFFSET('Efficiency Distributions'!$D$10,MATCH($C145,'Efficiency Distributions'!$C$9:$C$87,0)+RIGHT($E150),0)\n+AY$11*OFFSET('Efficiency Distributions'!$E$10,MATCH($C145,'Efficiency Distributions'!$C$9:$C$87,0)+RIGHT($E150),0))\n/SUM(AY$10:AY$11)","v":0},{"$f":"IF(INDEX(PC_MAPPING,RIGHT($C145,1),MATCH($E$2,'Data by Building Type'!$D$22:$F$22,0))=\"Yes\",1,0)*\n(AZ$10*OFFSET('Efficiency Distributions'!$D$10,MATCH($C145,'Efficiency Distributions'!$C$9:$C$87,0)+RIGHT($E150),0)\n+AZ$11*OFFSET('Efficiency Distributions'!$E$10,MATCH($C145,'Efficiency Distributions'!$C$9:$C$87,0)+RIGHT($E150),0))\n/SUM(AZ$10:AZ$11)","v":0},{"$f":"IF(INDEX(PC_MAPPING,RIGHT($C145,1),MATCH($E$2,'Data by Building Type'!$D$22:$F$22,0))=\"Yes\",1,0)*\n(BA$10*OFFSET('Efficiency Distributions'!$D$10,MATCH($C145,'Efficiency Distributions'!$C$9:$C$87,0)+RIGHT($E150),0)\n+BA$11*OFFSET('Efficiency Distributions'!$E$10,MATCH($C145,'Efficiency Distributions'!$C$9:$C$87,0)+RIGHT($E150),0))\n/SUM(BA$10:BA$11)","v":0},{"$f":"IF(INDEX(PC_MAPPING,RIGHT($C145,1),MATCH($E$2,'Data by Building Type'!$D$22:$F$22,0))=\"Yes\",1,0)*\n(BB$10*OFFSET('Efficiency Distributions'!$D$10,MATCH($C145,'Efficiency Distributions'!$C$9:$C$87,0)+RIGHT($E150),0)\n+BB$11*OFFSET('Efficiency Distributions'!$E$10,MATCH($C145,'Efficiency Distributions'!$C$9:$C$87,0)+RIGHT($E150),0))\n/SUM(BB$10:BB$11)","v":0},{"$f":"IF(INDEX(PC_MAPPING,RIGHT($C145,1),MATCH($E$2,'Data by Building Type'!$D$22:$F$22,0))=\"Yes\",1,0)*\n(BC$10*OFFSET('Efficiency Distributions'!$D$10,MATCH($C145,'Efficiency Distributions'!$C$9:$C$87,0)+RIGHT($E150),0)\n+BC$11*OFFSET('Efficiency Distributions'!$E$10,MATCH($C145,'Efficiency Distributions'!$C$9:$C$87,0)+RIGHT($E150),0))\n/SUM(BC$10:BC$11)","v":0},{"$f":"IF(INDEX(PC_MAPPING,RIGHT($C145,1),MATCH($E$2,'Data by Building Type'!$D$22:$F$22,0))=\"Yes\",1,0)*\n(BD$10*OFFSET('Efficiency Distributions'!$D$10,MATCH($C145,'Efficiency Distributions'!$C$9:$C$87,0)+RIGHT($E150),0)\n+BD$11*OFFSET('Efficiency Distributions'!$E$10,MATCH($C145,'Efficiency Distributions'!$C$9:$C$87,0)+RIGHT($E150),0))\n/SUM(BD$10:BD$11)","v":0},{"$f":"IF(INDEX(PC_MAPPING,RIGHT($C145,1),MATCH($E$2,'Data by Building Type'!$D$22:$F$22,0))=\"Yes\",1,0)*\n(BE$10*OFFSET('Efficiency Distributions'!$D$10,MATCH($C145,'Efficiency Distributions'!$C$9:$C$87,0)+RIGHT($E150),0)\n+BE$11*OFFSET('Efficiency Distributions'!$E$10,MATCH($C145,'Efficiency Distributions'!$C$9:$C$87,0)+RIGHT($E150),0))\n/SUM(BE$10:BE$11)","v":0},{"$f":"IF(INDEX(PC_MAPPING,RIGHT($C145,1),MATCH($E$2,'Data by Building Type'!$D$22:$F$22,0))=\"Yes\",1,0)*\n(BF$10*OFFSET('Efficiency Distributions'!$D$10,MATCH($C145,'Efficiency Distributions'!$C$9:$C$87,0)+RIGHT($E150),0)\n+BF$11*OFFSET('Efficiency Distributions'!$E$10,MATCH($C145,'Efficiency Distributions'!$C$9:$C$87,0)+RIGHT($E150),0))\n/SUM(BF$10:BF$11)","v":0},{"$f":"IF(INDEX(PC_MAPPING,RIGHT($C145,1),MATCH($E$2,'Data by Building Type'!$D$22:$F$22,0))=\"Yes\",1,0)*\n(BG$10*OFFSET('Efficiency Distributions'!$D$10,MATCH($C145,'Efficiency Distributions'!$C$9:$C$87,0)+RIGHT($E150),0)\n+BG$11*OFFSET('Efficiency Distributions'!$E$10,MATCH($C145,'Efficiency Distributions'!$C$9:$C$87,0)+RIGHT($E150),0))\n/SUM(BG$10:BG$11)","v":0}]
[null,null,null,null,"EL2",{"$f":"IF(INDEX(PC_MAPPING,RIGHT($C145,1),MATCH($E$2,'Data by Building Type'!$D$22:$F$22,0))=\"Yes\",1,0)*\n(F$10*OFFSET('Efficiency Distributions'!$D$10,MATCH($C145,'Efficiency Distributions'!$C$9:$C$87,0)+RIGHT($E151),0)\n+F$11*OFFSET('Efficiency Distributions'!$E$10,MATCH($C145,'Efficiency Distributions'!$C$9:$C$87,0)+RIGHT($E151),0))\n/SUM(F$10:F$11)","v":0},{"$f":"IF(INDEX(PC_MAPPING,RIGHT($C145,1),MATCH($E$2,'Data by Building Type'!$D$22:$F$22,0))=\"Yes\",1,0)*\n(G$10*OFFSET('Efficiency Distributions'!$D$10,MATCH($C145,'Efficiency Distributions'!$C$9:$C$87,0)+RIGHT($E151),0)\n+G$11*OFFSET('Efficiency Distributions'!$E$10,MATCH($C145,'Efficiency Distributions'!$C$9:$C$87,0)+RIGHT($E151),0))\n/SUM(G$10:G$11)","v":0},{"$f":"IF(INDEX(PC_MAPPING,RIGHT($C145,1),MATCH($E$2,'Data by Building Type'!$D$22:$F$22,0))=\"Yes\",1,0)*\n(H$10*OFFSET('Efficiency Distributions'!$D$10,MATCH($C145,'Efficiency Distributions'!$C$9:$C$87,0)+RIGHT($E151),0)\n+H$11*OFFSET('Efficiency Distributions'!$E$10,MATCH($C145,'Efficiency Distributions'!$C$9:$C$87,0)+RIGHT($E151),0))\n/SUM(H$10:H$11)","v":0},{"$f":"IF(INDEX(PC_MAPPING,RIGHT($C145,1),MATCH($E$2,'Data by Building Type'!$D$22:$F$22,0))=\"Yes\",1,0)*\n(I$10*OFFSET('Efficiency Distributions'!$D$10,MATCH($C145,'Efficiency Distributions'!$C$9:$C$87,0)+RIGHT($E151),0)\n+I$11*OFFSET('Efficiency Distributions'!$E$10,MATCH($C145,'Efficiency Distributions'!$C$9:$C$87,0)+RIGHT($E151),0))\n/SUM(I$10:I$11)","v":0},{"$f":"IF(INDEX(PC_MAPPING,RIGHT($C145,1),MATCH($E$2,'Data by Building Type'!$D$22:$F$22,0))=\"Yes\",1,0)*\n(J$10*OFFSET('Efficiency Distributions'!$D$10,MATCH($C145,'Efficiency Distributions'!$C$9:$C$87,0)+RIGHT($E151),0)\n+J$11*OFFSET('Efficiency Distributions'!$E$10,MATCH($C145,'Efficiency Distributions'!$C$9:$C$87,0)+RIGHT($E151),0))\n/SUM(J$10:J$11)","v":0},{"$f":"IF(INDEX(PC_MAPPING,RIGHT($C145,1),MATCH($E$2,'Data by Building Type'!$D$22:$F$22,0))=\"Yes\",1,0)*\n(K$10*OFFSET('Efficiency Distributions'!$D$10,MATCH($C145,'Efficiency Distributions'!$C$9:$C$87,0)+RIGHT($E151),0)\n+K$11*OFFSET('Efficiency Distributions'!$E$10,MATCH($C145,'Efficiency Distributions'!$C$9:$C$87,0)+RIGHT($E151),0))\n/SUM(K$10:K$11)","v":0},{"$f":"IF(INDEX(PC_MAPPING,RIGHT($C145,1),MATCH($E$2,'Data by Building Type'!$D$22:$F$22,0))=\"Yes\",1,0)*\n(L$10*OFFSET('Efficiency Distributions'!$D$10,MATCH($C145,'Efficiency Distributions'!$C$9:$C$87,0)+RIGHT($E151),0)\n+L$11*OFFSET('Efficiency Distributions'!$E$10,MATCH($C145,'Efficiency Distributions'!$C$9:$C$87,0)+RIGHT($E151),0))\n/SUM(L$10:L$11)","v":0},{"$f":"IF(INDEX(PC_MAPPING,RIGHT($C145,1),MATCH($E$2,'Data by Building Type'!$D$22:$F$22,0))=\"Yes\",1,0)*\n(M$10*OFFSET('Efficiency Distributions'!$D$10,MATCH($C145,'Efficiency Distributions'!$C$9:$C$87,0)+RIGHT($E151),0)\n+M$11*OFFSET('Efficiency Distributions'!$E$10,MATCH($C145,'Efficiency Distributions'!$C$9:$C$87,0)+RIGHT($E151),0))\n/SUM(M$10:M$11)","v":0},{"$f":"IF(INDEX(PC_MAPPING,RIGHT($C145,1),MATCH($E$2,'Data by Building Type'!$D$22:$F$22,0))=\"Yes\",1,0)*\n(N$10*OFFSET('Efficiency Distributions'!$D$10,MATCH($C145,'Efficiency Distributions'!$C$9:$C$87,0)+RIGHT($E151),0)\n+N$11*OFFSET('Efficiency Distributions'!$E$10,MATCH($C145,'Efficiency Distributions'!$C$9:$C$87,0)+RIGHT($E151),0))\n/SUM(N$10:N$11)","v":0},{"$f":"IF(INDEX(PC_MAPPING,RIGHT($C145,1),MATCH($E$2,'Data by Building Type'!$D$22:$F$22,0))=\"Yes\",1,0)*\n(O$10*OFFSET('Efficiency Distributions'!$D$10,MATCH($C145,'Efficiency Distributions'!$C$9:$C$87,0)+RIGHT($E151),0)\n+O$11*OFFSET('Efficiency Distributions'!$E$10,MATCH($C145,'Efficiency Distributions'!$C$9:$C$87,0)+RIGHT($E151),0))\n/SUM(O$10:O$11)","v":0},{"$f":"IF(INDEX(PC_MAPPING,RIGHT($C145,1),MATCH($E$2,'Data by Building Type'!$D$22:$F$22,0))=\"Yes\",1,0)*\n(P$10*OFFSET('Efficiency Distributions'!$D$10,MATCH($C145,'Efficiency Distributions'!$C$9:$C$87,0)+RIGHT($E151),0)\n+P$11*OFFSET('Efficiency Distributions'!$E$10,MATCH($C145,'Efficiency Distributions'!$C$9:$C$87,0)+RIGHT($E151),0))\n/SUM(P$10:P$11)","v":0},{"$f":"IF(INDEX(PC_MAPPING,RIGHT($C145,1),MATCH($E$2,'Data by Building Type'!$D$22:$F$22,0))=\"Yes\",1,0)*\n(Q$10*OFFSET('Efficiency Distributions'!$D$10,MATCH($C145,'Efficiency Distributions'!$C$9:$C$87,0)+RIGHT($E151),0)\n+Q$11*OFFSET('Efficiency Distributions'!$E$10,MATCH($C145,'Efficiency Distributions'!$C$9:$C$87,0)+RIGHT($E151),0))\n/SUM(Q$10:Q$11)","v":0},{"$f":"IF(INDEX(PC_MAPPING,RIGHT($C145,1),MATCH($E$2,'Data by Building Type'!$D$22:$F$22,0))=\"Yes\",1,0)*\n(R$10*OFFSET('Efficiency Distributions'!$D$10,MATCH($C145,'Efficiency Distributions'!$C$9:$C$87,0)+RIGHT($E151),0)\n+R$11*OFFSET('Efficiency Distributions'!$E$10,MATCH($C145,'Efficiency Distributions'!$C$9:$C$87,0)+RIGHT($E151),0))\n/SUM(R$10:R$11)","v":0},{"$f":"IF(INDEX(PC_MAPPING,RIGHT($C145,1),MATCH($E$2,'Data by Building Type'!$D$22:$F$22,0))=\"Yes\",1,0)*\n(S$10*OFFSET('Efficiency Distributions'!$D$10,MATCH($C145,'Efficiency Distributions'!$C$9:$C$87,0)+RIGHT($E151),0)\n+S$11*OFFSET('Efficiency Distributions'!$E$10,MATCH($C145,'Efficiency Distributions'!$C$9:$C$87,0)+RIGHT($E151),0))\n/SUM(S$10:S$11)","v":0},{"$f":"IF(INDEX(PC_MAPPING,RIGHT($C145,1),MATCH($E$2,'Data by Building Type'!$D$22:$F$22,0))=\"Yes\",1,0)*\n(T$10*OFFSET('Efficiency Distributions'!$D$10,MATCH($C145,'Efficiency Distributions'!$C$9:$C$87,0)+RIGHT($E151),0)\n+T$11*OFFSET('Efficiency Distributions'!$E$10,MATCH($C145,'Efficiency Distributions'!$C$9:$C$87,0)+RIGHT($E151),0))\n/SUM(T$10:T$11)","v":0},{"$f":"IF(INDEX(PC_MAPPING,RIGHT($C145,1),MATCH($E$2,'Data by Building Type'!$D$22:$F$22,0))=\"Yes\",1,0)*\n(U$10*OFFSET('Efficiency Distributions'!$D$10,MATCH($C145,'Efficiency Distributions'!$C$9:$C$87,0)+RIGHT($E151),0)\n+U$11*OFFSET('Efficiency Distributions'!$E$10,MATCH($C145,'Efficiency Distributions'!$C$9:$C$87,0)+RIGHT($E151),0))\n/SUM(U$10:U$11)","v":0},{"$f":"IF(INDEX(PC_MAPPING,RIGHT($C145,1),MATCH($E$2,'Data by Building Type'!$D$22:$F$22,0))=\"Yes\",1,0)*\n(V$10*OFFSET('Efficiency Distributions'!$D$10,MATCH($C145,'Efficiency Distributions'!$C$9:$C$87,0)+RIGHT($E151),0)\n+V$11*OFFSET('Efficiency Distributions'!$E$10,MATCH($C145,'Efficiency Distributions'!$C$9:$C$87,0)+RIGHT($E151),0))\n/SUM(V$10:V$11)","v":0},{"$f":"IF(INDEX(PC_MAPPING,RIGHT($C145,1),MATCH($E$2,'Data by Building Type'!$D$22:$F$22,0))=\"Yes\",1,0)*\n(W$10*OFFSET('Efficiency Distributions'!$D$10,MATCH($C145,'Efficiency Distributions'!$C$9:$C$87,0)+RIGHT($E151),0)\n+W$11*OFFSET('Efficiency Distributions'!$E$10,MATCH($C145,'Efficiency Distributions'!$C$9:$C$87,0)+RIGHT($E151),0))\n/SUM(W$10:W$11)","v":0},{"$f":"IF(INDEX(PC_MAPPING,RIGHT($C145,1),MATCH($E$2,'Data by Building Type'!$D$22:$F$22,0))=\"Yes\",1,0)*\n(X$10*OFFSET('Efficiency Distributions'!$D$10,MATCH($C145,'Efficiency Distributions'!$C$9:$C$87,0)+RIGHT($E151),0)\n+X$11*OFFSET('Efficiency Distributions'!$E$10,MATCH($C145,'Efficiency Distributions'!$C$9:$C$87,0)+RIGHT($E151),0))\n/SUM(X$10:X$11)","v":0},{"$f":"IF(INDEX(PC_MAPPING,RIGHT($C145,1),MATCH($E$2,'Data by Building Type'!$D$22:$F$22,0))=\"Yes\",1,0)*\n(Y$10*OFFSET('Efficiency Distributions'!$D$10,MATCH($C145,'Efficiency Distributions'!$C$9:$C$87,0)+RIGHT($E151),0)\n+Y$11*OFFSET('Efficiency Distributions'!$E$10,MATCH($C145,'Efficiency Distributions'!$C$9:$C$87,0)+RIGHT($E151),0))\n/SUM(Y$10:Y$11)","v":0},{"$f":"IF(INDEX(PC_MAPPING,RIGHT($C145,1),MATCH($E$2,'Data by Building Type'!$D$22:$F$22,0))=\"Yes\",1,0)*\n(Z$10*OFFSET('Efficiency Distributions'!$D$10,MATCH($C145,'Efficiency Distributions'!$C$9:$C$87,0)+RIGHT($E151),0)\n+Z$11*OFFSET('Efficiency Distributions'!$E$10,MATCH($C145,'Efficiency Distributions'!$C$9:$C$87,0)+RIGHT($E151),0))\n/SUM(Z$10:Z$11)","v":0},{"$f":"IF(INDEX(PC_MAPPING,RIGHT($C145,1),MATCH($E$2,'Data by Building Type'!$D$22:$F$22,0))=\"Yes\",1,0)*\n(AA$10*OFFSET('Efficiency Distributions'!$D$10,MATCH($C145,'Efficiency Distributions'!$C$9:$C$87,0)+RIGHT($E151),0)\n+AA$11*OFFSET('Efficiency Distributions'!$E$10,MATCH($C145,'Efficiency Distributions'!$C$9:$C$87,0)+RIGHT($E151),0))\n/SUM(AA$10:AA$11)","v":0},{"$f":"IF(INDEX(PC_MAPPING,RIGHT($C145,1),MATCH($E$2,'Data by Building Type'!$D$22:$F$22,0))=\"Yes\",1,0)*\n(AB$10*OFFSET('Efficiency Distributions'!$D$10,MATCH($C145,'Efficiency Distributions'!$C$9:$C$87,0)+RIGHT($E151),0)\n+AB$11*OFFSET('Efficiency Distributions'!$E$10,MATCH($C145,'Efficiency Distributions'!$C$9:$C$87,0)+RIGHT($E151),0))\n/SUM(AB$10:AB$11)","v":0},{"$f":"IF(INDEX(PC_MAPPING,RIGHT($C145,1),MATCH($E$2,'Data by Building Type'!$D$22:$F$22,0))=\"Yes\",1,0)*\n(AC$10*OFFSET('Efficiency Distributions'!$D$10,MATCH($C145,'Efficiency Distributions'!$C$9:$C$87,0)+RIGHT($E151),0)\n+AC$11*OFFSET('Efficiency Distributions'!$E$10,MATCH($C145,'Efficiency Distributions'!$C$9:$C$87,0)+RIGHT($E151),0))\n/SUM(AC$10:AC$11)","v":0},{"$f":"IF(INDEX(PC_MAPPING,RIGHT($C145,1),MATCH($E$2,'Data by Building Type'!$D$22:$F$22,0))=\"Yes\",1,0)*\n(AD$10*OFFSET('Efficiency Distributions'!$D$10,MATCH($C145,'Efficiency Distributions'!$C$9:$C$87,0)+RIGHT($E151),0)\n+AD$11*OFFSET('Efficiency Distributions'!$E$10,MATCH($C145,'Efficiency Distributions'!$C$9:$C$87,0)+RIGHT($E151),0))\n/SUM(AD$10:AD$11)","v":0},{"$f":"IF(INDEX(PC_MAPPING,RIGHT($C145,1),MATCH($E$2,'Data by Building Type'!$D$22:$F$22,0))=\"Yes\",1,0)*\n(AE$10*OFFSET('Efficiency Distributions'!$D$10,MATCH($C145,'Efficiency Distributions'!$C$9:$C$87,0)+RIGHT($E151),0)\n+AE$11*OFFSET('Efficiency Distributions'!$E$10,MATCH($C145,'Efficiency Distributions'!$C$9:$C$87,0)+RIGHT($E151),0))\n/SUM(AE$10:AE$11)","v":0},{"$f":"IF(INDEX(PC_MAPPING,RIGHT($C145,1),MATCH($E$2,'Data by Building Type'!$D$22:$F$22,0))=\"Yes\",1,0)*\n(AF$10*OFFSET('Efficiency Distributions'!$D$10,MATCH($C145,'Efficiency Distributions'!$C$9:$C$87,0)+RIGHT($E151),0)\n+AF$11*OFFSET('Efficiency Distributions'!$E$10,MATCH($C145,'Efficiency Distributions'!$C$9:$C$87,0)+RIGHT($E151),0))\n/SUM(AF$10:AF$11)","v":0},{"$f":"IF(INDEX(PC_MAPPING,RIGHT($C145,1),MATCH($E$2,'Data by Building Type'!$D$22:$F$22,0))=\"Yes\",1,0)*\n(AG$10*OFFSET('Efficiency Distributions'!$D$10,MATCH($C145,'Efficiency Distributions'!$C$9:$C$87,0)+RIGHT($E151),0)\n+AG$11*OFFSET('Efficiency Distributions'!$E$10,MATCH($C145,'Efficiency Distributions'!$C$9:$C$87,0)+RIGHT($E151),0))\n/SUM(AG$10:AG$11)","v":0},{"$f":"IF(INDEX(PC_MAPPING,RIGHT($C145,1),MATCH($E$2,'Data by Building Type'!$D$22:$F$22,0))=\"Yes\",1,0)*\n(AH$10*OFFSET('Efficiency Distributions'!$D$10,MATCH($C145,'Efficiency Distributions'!$C$9:$C$87,0)+RIGHT($E151),0)\n+AH$11*OFFSET('Efficiency Distributions'!$E$10,MATCH($C145,'Efficiency Distributions'!$C$9:$C$87,0)+RIGHT($E151),0))\n/SUM(AH$10:AH$11)","v":0},{"$f":"IF(INDEX(PC_MAPPING,RIGHT($C145,1),MATCH($E$2,'Data by Building Type'!$D$22:$F$22,0))=\"Yes\",1,0)*\n(AI$10*OFFSET('Efficiency Distributions'!$D$10,MATCH($C145,'Efficiency Distributions'!$C$9:$C$87,0)+RIGHT($E151),0)\n+AI$11*OFFSET('Efficiency Distributions'!$E$10,MATCH($C145,'Efficiency Distributions'!$C$9:$C$87,0)+RIGHT($E151),0))\n/SUM(AI$10:AI$11)","v":0},{"$f":"IF(INDEX(PC_MAPPING,RIGHT($C145,1),MATCH($E$2,'Data by Building Type'!$D$22:$F$22,0))=\"Yes\",1,0)*\n(AJ$10*OFFSET('Efficiency Distributions'!$D$10,MATCH($C145,'Efficiency Distributions'!$C$9:$C$87,0)+RIGHT($E151),0)\n+AJ$11*OFFSET('Efficiency Distributions'!$E$10,MATCH($C145,'Efficiency Distributions'!$C$9:$C$87,0)+RIGHT($E151),0))\n/SUM(AJ$10:AJ$11)","v":0},{"$f":"IF(INDEX(PC_MAPPING,RIGHT($C145,1),MATCH($E$2,'Data by Building Type'!$D$22:$F$22,0))=\"Yes\",1,0)*\n(AK$10*OFFSET('Efficiency Distributions'!$D$10,MATCH($C145,'Efficiency Distributions'!$C$9:$C$87,0)+RIGHT($E151),0)\n+AK$11*OFFSET('Efficiency Distributions'!$E$10,MATCH($C145,'Efficiency Distributions'!$C$9:$C$87,0)+RIGHT($E151),0))\n/SUM(AK$10:AK$11)","v":0},{"$f":"IF(INDEX(PC_MAPPING,RIGHT($C145,1),MATCH($E$2,'Data by Building Type'!$D$22:$F$22,0))=\"Yes\",1,0)*\n(AL$10*OFFSET('Efficiency Distributions'!$D$10,MATCH($C145,'Efficiency Distributions'!$C$9:$C$87,0)+RIGHT($E151),0)\n+AL$11*OFFSET('Efficiency Distributions'!$E$10,MATCH($C145,'Efficiency Distributions'!$C$9:$C$87,0)+RIGHT($E151),0))\n/SUM(AL$10:AL$11)","v":0},{"$f":"IF(INDEX(PC_MAPPING,RIGHT($C145,1),MATCH($E$2,'Data by Building Type'!$D$22:$F$22,0))=\"Yes\",1,0)*\n(AM$10*OFFSET('Efficiency Distributions'!$D$10,MATCH($C145,'Efficiency Distributions'!$C$9:$C$87,0)+RIGHT($E151),0)\n+AM$11*OFFSET('Efficiency Distributions'!$E$10,MATCH($C145,'Efficiency Distributions'!$C$9:$C$87,0)+RIGHT($E151),0))\n/SUM(AM$10:AM$11)","v":0},{"$f":"IF(INDEX(PC_MAPPING,RIGHT($C145,1),MATCH($E$2,'Data by Building Type'!$D$22:$F$22,0))=\"Yes\",1,0)*\n(AN$10*OFFSET('Efficiency Distributions'!$D$10,MATCH($C145,'Efficiency Distributions'!$C$9:$C$87,0)+RIGHT($E151),0)\n+AN$11*OFFSET('Efficiency Distributions'!$E$10,MATCH($C145,'Efficiency Distributions'!$C$9:$C$87,0)+RIGHT($E151),0))\n/SUM(AN$10:AN$11)","v":0},{"$f":"IF(INDEX(PC_MAPPING,RIGHT($C145,1),MATCH($E$2,'Data by Building Type'!$D$22:$F$22,0))=\"Yes\",1,0)*\n(AO$10*OFFSET('Efficiency Distributions'!$D$10,MATCH($C145,'Efficiency Distributions'!$C$9:$C$87,0)+RIGHT($E151),0)\n+AO$11*OFFSET('Efficiency Distributions'!$E$10,MATCH($C145,'Efficiency Distributions'!$C$9:$C$87,0)+RIGHT($E151),0))\n/SUM(AO$10:AO$11)","v":0},{"$f":"IF(INDEX(PC_MAPPING,RIGHT($C145,1),MATCH($E$2,'Data by Building Type'!$D$22:$F$22,0))=\"Yes\",1,0)*\n(AP$10*OFFSET('Efficiency Distributions'!$D$10,MATCH($C145,'Efficiency Distributions'!$C$9:$C$87,0)+RIGHT($E151),0)\n+AP$11*OFFSET('Efficiency Distributions'!$E$10,MATCH($C145,'Efficiency Distributions'!$C$9:$C$87,0)+RIGHT($E151),0))\n/SUM(AP$10:AP$11)","v":0},{"$f":"IF(INDEX(PC_MAPPING,RIGHT($C145,1),MATCH($E$2,'Data by Building Type'!$D$22:$F$22,0))=\"Yes\",1,0)*\n(AQ$10*OFFSET('Efficiency Distributions'!$D$10,MATCH($C145,'Efficiency Distributions'!$C$9:$C$87,0)+RIGHT($E151),0)\n+AQ$11*OFFSET('Efficiency Distributions'!$E$10,MATCH($C145,'Efficiency Distributions'!$C$9:$C$87,0)+RIGHT($E151),0))\n/SUM(AQ$10:AQ$11)","v":0},{"$f":"IF(INDEX(PC_MAPPING,RIGHT($C145,1),MATCH($E$2,'Data by Building Type'!$D$22:$F$22,0))=\"Yes\",1,0)*\n(AR$10*OFFSET('Efficiency Distributions'!$D$10,MATCH($C145,'Efficiency Distributions'!$C$9:$C$87,0)+RIGHT($E151),0)\n+AR$11*OFFSET('Efficiency Distributions'!$E$10,MATCH($C145,'Efficiency Distributions'!$C$9:$C$87,0)+RIGHT($E151),0))\n/SUM(AR$10:AR$11)","v":0},{"$f":"IF(INDEX(PC_MAPPING,RIGHT($C145,1),MATCH($E$2,'Data by Building Type'!$D$22:$F$22,0))=\"Yes\",1,0)*\n(AS$10*OFFSET('Efficiency Distributions'!$D$10,MATCH($C145,'Efficiency Distributions'!$C$9:$C$87,0)+RIGHT($E151),0)\n+AS$11*OFFSET('Efficiency Distributions'!$E$10,MATCH($C145,'Efficiency Distributions'!$C$9:$C$87,0)+RIGHT($E151),0))\n/SUM(AS$10:AS$11)","v":0},{"$f":"IF(INDEX(PC_MAPPING,RIGHT($C145,1),MATCH($E$2,'Data by Building Type'!$D$22:$F$22,0))=\"Yes\",1,0)*\n(AT$10*OFFSET('Efficiency Distributions'!$D$10,MATCH($C145,'Efficiency Distributions'!$C$9:$C$87,0)+RIGHT($E151),0)\n+AT$11*OFFSET('Efficiency Distributions'!$E$10,MATCH($C145,'Efficiency Distributions'!$C$9:$C$87,0)+RIGHT($E151),0))\n/SUM(AT$10:AT$11)","v":0},{"$f":"IF(INDEX(PC_MAPPING,RIGHT($C145,1),MATCH($E$2,'Data by Building Type'!$D$22:$F$22,0))=\"Yes\",1,0)*\n(AU$10*OFFSET('Efficiency Distributions'!$D$10,MATCH($C145,'Efficiency Distributions'!$C$9:$C$87,0)+RIGHT($E151),0)\n+AU$11*OFFSET('Efficiency Distributions'!$E$10,MATCH($C145,'Efficiency Distributions'!$C$9:$C$87,0)+RIGHT($E151),0))\n/SUM(AU$10:AU$11)","v":0},{"$f":"IF(INDEX(PC_MAPPING,RIGHT($C145,1),MATCH($E$2,'Data by Building Type'!$D$22:$F$22,0))=\"Yes\",1,0)*\n(AV$10*OFFSET('Efficiency Distributions'!$D$10,MATCH($C145,'Efficiency Distributions'!$C$9:$C$87,0)+RIGHT($E151),0)\n+AV$11*OFFSET('Efficiency Distributions'!$E$10,MATCH($C145,'Efficiency Distributions'!$C$9:$C$87,0)+RIGHT($E151),0))\n/SUM(AV$10:AV$11)","v":0},{"$f":"IF(INDEX(PC_MAPPING,RIGHT($C145,1),MATCH($E$2,'Data by Building Type'!$D$22:$F$22,0))=\"Yes\",1,0)*\n(AW$10*OFFSET('Efficiency Distributions'!$D$10,MATCH($C145,'Efficiency Distributions'!$C$9:$C$87,0)+RIGHT($E151),0)\n+AW$11*OFFSET('Efficiency Distributions'!$E$10,MATCH($C145,'Efficiency Distributions'!$C$9:$C$87,0)+RIGHT($E151),0))\n/SUM(AW$10:AW$11)","v":0},{"$f":"IF(INDEX(PC_MAPPING,RIGHT($C145,1),MATCH($E$2,'Data by Building Type'!$D$22:$F$22,0))=\"Yes\",1,0)*\n(AX$10*OFFSET('Efficiency Distributions'!$D$10,MATCH($C145,'Efficiency Distributions'!$C$9:$C$87,0)+RIGHT($E151),0)\n+AX$11*OFFSET('Efficiency Distributions'!$E$10,MATCH($C145,'Efficiency Distributions'!$C$9:$C$87,0)+RIGHT($E151),0))\n/SUM(AX$10:AX$11)","v":0},{"$f":"IF(INDEX(PC_MAPPING,RIGHT($C145,1),MATCH($E$2,'Data by Building Type'!$D$22:$F$22,0))=\"Yes\",1,0)*\n(AY$10*OFFSET('Efficiency Distributions'!$D$10,MATCH($C145,'Efficiency Distributions'!$C$9:$C$87,0)+RIGHT($E151),0)\n+AY$11*OFFSET('Efficiency Distributions'!$E$10,MATCH($C145,'Efficiency Distributions'!$C$9:$C$87,0)+RIGHT($E151),0))\n/SUM(AY$10:AY$11)","v":0},{"$f":"IF(INDEX(PC_MAPPING,RIGHT($C145,1),MATCH($E$2,'Data by Building Type'!$D$22:$F$22,0))=\"Yes\",1,0)*\n(AZ$10*OFFSET('Efficiency Distributions'!$D$10,MATCH($C145,'Efficiency Distributions'!$C$9:$C$87,0)+RIGHT($E151),0)\n+AZ$11*OFFSET('Efficiency Distributions'!$E$10,MATCH($C145,'Efficiency Distributions'!$C$9:$C$87,0)+RIGHT($E151),0))\n/SUM(AZ$10:AZ$11)","v":0},{"$f":"IF(INDEX(PC_MAPPING,RIGHT($C145,1),MATCH($E$2,'Data by Building Type'!$D$22:$F$22,0))=\"Yes\",1,0)*\n(BA$10*OFFSET('Efficiency Distributions'!$D$10,MATCH($C145,'Efficiency Distributions'!$C$9:$C$87,0)+RIGHT($E151),0)\n+BA$11*OFFSET('Efficiency Distributions'!$E$10,MATCH($C145,'Efficiency Distributions'!$C$9:$C$87,0)+RIGHT($E151),0))\n/SUM(BA$10:BA$11)","v":0},{"$f":"IF(INDEX(PC_MAPPING,RIGHT($C145,1),MATCH($E$2,'Data by Building Type'!$D$22:$F$22,0))=\"Yes\",1,0)*\n(BB$10*OFFSET('Efficiency Distributions'!$D$10,MATCH($C145,'Efficiency Distributions'!$C$9:$C$87,0)+RIGHT($E151),0)\n+BB$11*OFFSET('Efficiency Distributions'!$E$10,MATCH($C145,'Efficiency Distributions'!$C$9:$C$87,0)+RIGHT($E151),0))\n/SUM(BB$10:BB$11)","v":0},{"$f":"IF(INDEX(PC_MAPPING,RIGHT($C145,1),MATCH($E$2,'Data by Building Type'!$D$22:$F$22,0))=\"Yes\",1,0)*\n(BC$10*OFFSET('Efficiency Distributions'!$D$10,MATCH($C145,'Efficiency Distributions'!$C$9:$C$87,0)+RIGHT($E151),0)\n+BC$11*OFFSET('Efficiency Distributions'!$E$10,MATCH($C145,'Efficiency Distributions'!$C$9:$C$87,0)+RIGHT($E151),0))\n/SUM(BC$10:BC$11)","v":0},{"$f":"IF(INDEX(PC_MAPPING,RIGHT($C145,1),MATCH($E$2,'Data by Building Type'!$D$22:$F$22,0))=\"Yes\",1,0)*\n(BD$10*OFFSET('Efficiency Distributions'!$D$10,MATCH($C145,'Efficiency Distributions'!$C$9:$C$87,0)+RIGHT($E151),0)\n+BD$11*OFFSET('Efficiency Distributions'!$E$10,MATCH($C145,'Efficiency Distributions'!$C$9:$C$87,0)+RIGHT($E151),0))\n/SUM(BD$10:BD$11)","v":0},{"$f":"IF(INDEX(PC_MAPPING,RIGHT($C145,1),MATCH($E$2,'Data by Building Type'!$D$22:$F$22,0))=\"Yes\",1,0)*\n(BE$10*OFFSET('Efficiency Distributions'!$D$10,MATCH($C145,'Efficiency Distributions'!$C$9:$C$87,0)+RIGHT($E151),0)\n+BE$11*OFFSET('Efficiency Distributions'!$E$10,MATCH($C145,'Efficiency Distributions'!$C$9:$C$87,0)+RIGHT($E151),0))\n/SUM(BE$10:BE$11)","v":0},{"$f":"IF(INDEX(PC_MAPPING,RIGHT($C145,1),MATCH($E$2,'Data by Building Type'!$D$22:$F$22,0))=\"Yes\",1,0)*\n(BF$10*OFFSET('Efficiency Distributions'!$D$10,MATCH($C145,'Efficiency Distributions'!$C$9:$C$87,0)+RIGHT($E151),0)\n+BF$11*OFFSET('Efficiency Distributions'!$E$10,MATCH($C145,'Efficiency Distributions'!$C$9:$C$87,0)+RIGHT($E151),0))\n/SUM(BF$10:BF$11)","v":0},{"$f":"IF(INDEX(PC_MAPPING,RIGHT($C145,1),MATCH($E$2,'Data by Building Type'!$D$22:$F$22,0))=\"Yes\",1,0)*\n(BG$10*OFFSET('Efficiency Distributions'!$D$10,MATCH($C145,'Efficiency Distributions'!$C$9:$C$87,0)+RIGHT($E151),0)\n+BG$11*OFFSET('Efficiency Distributions'!$E$10,MATCH($C145,'Efficiency Distributions'!$C$9:$C$87,0)+RIGHT($E151),0))\n/SUM(BG$10:BG$11)","v":0}]
[null,null,null,null,"EL3",{"$f":"IF(INDEX(PC_MAPPING,RIGHT($C145,1),MATCH($E$2,'Data by Building Type'!$D$22:$F$22,0))=\"Yes\",1,0)*\n(F$10*OFFSET('Efficiency Distributions'!$D$10,MATCH($C145,'Efficiency Distributions'!$C$9:$C$87,0)+RIGHT($E152),0)\n+F$11*OFFSET('Efficiency Distributions'!$E$10,MATCH($C145,'Efficiency Distributions'!$C$9:$C$87,0)+RIGHT($E152),0))\n/SUM(F$10:F$11)","v":0},{"$f":"IF(INDEX(PC_MAPPING,RIGHT($C145,1),MATCH($E$2,'Data by Building Type'!$D$22:$F$22,0))=\"Yes\",1,0)*\n(G$10*OFFSET('Efficiency Distributions'!$D$10,MATCH($C145,'Efficiency Distributions'!$C$9:$C$87,0)+RIGHT($E152),0)\n+G$11*OFFSET('Efficiency Distributions'!$E$10,MATCH($C145,'Efficiency Distributions'!$C$9:$C$87,0)+RIGHT($E152),0))\n/SUM(G$10:G$11)","v":0},{"$f":"IF(INDEX(PC_MAPPING,RIGHT($C145,1),MATCH($E$2,'Data by Building Type'!$D$22:$F$22,0))=\"Yes\",1,0)*\n(H$10*OFFSET('Efficiency Distributions'!$D$10,MATCH($C145,'Efficiency Distributions'!$C$9:$C$87,0)+RIGHT($E152),0)\n+H$11*OFFSET('Efficiency Distributions'!$E$10,MATCH($C145,'Efficiency Distributions'!$C$9:$C$87,0)+RIGHT($E152),0))\n/SUM(H$10:H$11)","v":0},{"$f":"IF(INDEX(PC_MAPPING,RIGHT($C145,1),MATCH($E$2,'Data by Building Type'!$D$22:$F$22,0))=\"Yes\",1,0)*\n(I$10*OFFSET('Efficiency Distributions'!$D$10,MATCH($C145,'Efficiency Distributions'!$C$9:$C$87,0)+RIGHT($E152),0)\n+I$11*OFFSET('Efficiency Distributions'!$E$10,MATCH($C145,'Efficiency Distributions'!$C$9:$C$87,0)+RIGHT($E152),0))\n/SUM(I$10:I$11)","v":0},{"$f":"IF(INDEX(PC_MAPPING,RIGHT($C145,1),MATCH($E$2,'Data by Building Type'!$D$22:$F$22,0))=\"Yes\",1,0)*\n(J$10*OFFSET('Efficiency Distributions'!$D$10,MATCH($C145,'Efficiency Distributions'!$C$9:$C$87,0)+RIGHT($E152),0)\n+J$11*OFFSET('Efficiency Distributions'!$E$10,MATCH($C145,'Efficiency Distributions'!$C$9:$C$87,0)+RIGHT($E152),0))\n/SUM(J$10:J$11)","v":0},{"$f":"IF(INDEX(PC_MAPPING,RIGHT($C145,1),MATCH($E$2,'Data by Building Type'!$D$22:$F$22,0))=\"Yes\",1,0)*\n(K$10*OFFSET('Efficiency Distributions'!$D$10,MATCH($C145,'Efficiency Distributions'!$C$9:$C$87,0)+RIGHT($E152),0)\n+K$11*OFFSET('Efficiency Distributions'!$E$10,MATCH($C145,'Efficiency Distributions'!$C$9:$C$87,0)+RIGHT($E152),0))\n/SUM(K$10:K$11)","v":0},{"$f":"IF(INDEX(PC_MAPPING,RIGHT($C145,1),MATCH($E$2,'Data by Building Type'!$D$22:$F$22,0))=\"Yes\",1,0)*\n(L$10*OFFSET('Efficiency Distributions'!$D$10,MATCH($C145,'Efficiency Distributions'!$C$9:$C$87,0)+RIGHT($E152),0)\n+L$11*OFFSET('Efficiency Distributions'!$E$10,MATCH($C145,'Efficiency Distributions'!$C$9:$C$87,0)+RIGHT($E152),0))\n/SUM(L$10:L$11)","v":0},{"$f":"IF(INDEX(PC_MAPPING,RIGHT($C145,1),MATCH($E$2,'Data by Building Type'!$D$22:$F$22,0))=\"Yes\",1,0)*\n(M$10*OFFSET('Efficiency Distributions'!$D$10,MATCH($C145,'Efficiency Distributions'!$C$9:$C$87,0)+RIGHT($E152),0)\n+M$11*OFFSET('Efficiency Distributions'!$E$10,MATCH($C145,'Efficiency Distributions'!$C$9:$C$87,0)+RIGHT($E152),0))\n/SUM(M$10:M$11)","v":0},{"$f":"IF(INDEX(PC_MAPPING,RIGHT($C145,1),MATCH($E$2,'Data by Building Type'!$D$22:$F$22,0))=\"Yes\",1,0)*\n(N$10*OFFSET('Efficiency Distributions'!$D$10,MATCH($C145,'Efficiency Distributions'!$C$9:$C$87,0)+RIGHT($E152),0)\n+N$11*OFFSET('Efficiency Distributions'!$E$10,MATCH($C145,'Efficiency Distributions'!$C$9:$C$87,0)+RIGHT($E152),0))\n/SUM(N$10:N$11)","v":0},{"$f":"IF(INDEX(PC_MAPPING,RIGHT($C145,1),MATCH($E$2,'Data by Building Type'!$D$22:$F$22,0))=\"Yes\",1,0)*\n(O$10*OFFSET('Efficiency Distributions'!$D$10,MATCH($C145,'Efficiency Distributions'!$C$9:$C$87,0)+RIGHT($E152),0)\n+O$11*OFFSET('Efficiency Distributions'!$E$10,MATCH($C145,'Efficiency Distributions'!$C$9:$C$87,0)+RIGHT($E152),0))\n/SUM(O$10:O$11)","v":0},{"$f":"IF(INDEX(PC_MAPPING,RIGHT($C145,1),MATCH($E$2,'Data by Building Type'!$D$22:$F$22,0))=\"Yes\",1,0)*\n(P$10*OFFSET('Efficiency Distributions'!$D$10,MATCH($C145,'Efficiency Distributions'!$C$9:$C$87,0)+RIGHT($E152),0)\n+P$11*OFFSET('Efficiency Distributions'!$E$10,MATCH($C145,'Efficiency Distributions'!$C$9:$C$87,0)+RIGHT($E152),0))\n/SUM(P$10:P$11)","v":0},{"$f":"IF(INDEX(PC_MAPPING,RIGHT($C145,1),MATCH($E$2,'Data by Building Type'!$D$22:$F$22,0))=\"Yes\",1,0)*\n(Q$10*OFFSET('Efficiency Distributions'!$D$10,MATCH($C145,'Efficiency Distributions'!$C$9:$C$87,0)+RIGHT($E152),0)\n+Q$11*OFFSET('Efficiency Distributions'!$E$10,MATCH($C145,'Efficiency Distributions'!$C$9:$C$87,0)+RIGHT($E152),0))\n/SUM(Q$10:Q$11)","v":0},{"$f":"IF(INDEX(PC_MAPPING,RIGHT($C145,1),MATCH($E$2,'Data by Building Type'!$D$22:$F$22,0))=\"Yes\",1,0)*\n(R$10*OFFSET('Efficiency Distributions'!$D$10,MATCH($C145,'Efficiency Distributions'!$C$9:$C$87,0)+RIGHT($E152),0)\n+R$11*OFFSET('Efficiency Distributions'!$E$10,MATCH($C145,'Efficiency Distributions'!$C$9:$C$87,0)+RIGHT($E152),0))\n/SUM(R$10:R$11)","v":0},{"$f":"IF(INDEX(PC_MAPPING,RIGHT($C145,1),MATCH($E$2,'Data by Building Type'!$D$22:$F$22,0))=\"Yes\",1,0)*\n(S$10*OFFSET('Efficiency Distributions'!$D$10,MATCH($C145,'Efficiency Distributions'!$C$9:$C$87,0)+RIGHT($E152),0)\n+S$11*OFFSET('Efficiency Distributions'!$E$10,MATCH($C145,'Efficiency Distributions'!$C$9:$C$87,0)+RIGHT($E152),0))\n/SUM(S$10:S$11)","v":0},{"$f":"IF(INDEX(PC_MAPPING,RIGHT($C145,1),MATCH($E$2,'Data by Building Type'!$D$22:$F$22,0))=\"Yes\",1,0)*\n(T$10*OFFSET('Efficiency Distributions'!$D$10,MATCH($C145,'Efficiency Distributions'!$C$9:$C$87,0)+RIGHT($E152),0)\n+T$11*OFFSET('Efficiency Distributions'!$E$10,MATCH($C145,'Efficiency Distributions'!$C$9:$C$87,0)+RIGHT($E152),0))\n/SUM(T$10:T$11)","v":0},{"$f":"IF(INDEX(PC_MAPPING,RIGHT($C145,1),MATCH($E$2,'Data by Building Type'!$D$22:$F$22,0))=\"Yes\",1,0)*\n(U$10*OFFSET('Efficiency Distributions'!$D$10,MATCH($C145,'Efficiency Distributions'!$C$9:$C$87,0)+RIGHT($E152),0)\n+U$11*OFFSET('Efficiency Distributions'!$E$10,MATCH($C145,'Efficiency Distributions'!$C$9:$C$87,0)+RIGHT($E152),0))\n/SUM(U$10:U$11)","v":0},{"$f":"IF(INDEX(PC_MAPPING,RIGHT($C145,1),MATCH($E$2,'Data by Building Type'!$D$22:$F$22,0))=\"Yes\",1,0)*\n(V$10*OFFSET('Efficiency Distributions'!$D$10,MATCH($C145,'Efficiency Distributions'!$C$9:$C$87,0)+RIGHT($E152),0)\n+V$11*OFFSET('Efficiency Distributions'!$E$10,MATCH($C145,'Efficiency Distributions'!$C$9:$C$87,0)+RIGHT($E152),0))\n/SUM(V$10:V$11)","v":0},{"$f":"IF(INDEX(PC_MAPPING,RIGHT($C145,1),MATCH($E$2,'Data by Building Type'!$D$22:$F$22,0))=\"Yes\",1,0)*\n(W$10*OFFSET('Efficiency Distributions'!$D$10,MATCH($C145,'Efficiency Distributions'!$C$9:$C$87,0)+RIGHT($E152),0)\n+W$11*OFFSET('Efficiency Distributions'!$E$10,MATCH($C145,'Efficiency Distributions'!$C$9:$C$87,0)+RIGHT($E152),0))\n/SUM(W$10:W$11)","v":0},{"$f":"IF(INDEX(PC_MAPPING,RIGHT($C145,1),MATCH($E$2,'Data by Building Type'!$D$22:$F$22,0))=\"Yes\",1,0)*\n(X$10*OFFSET('Efficiency Distributions'!$D$10,MATCH($C145,'Efficiency Distributions'!$C$9:$C$87,0)+RIGHT($E152),0)\n+X$11*OFFSET('Efficiency Distributions'!$E$10,MATCH($C145,'Efficiency Distributions'!$C$9:$C$87,0)+RIGHT($E152),0))\n/SUM(X$10:X$11)","v":0},{"$f":"IF(INDEX(PC_MAPPING,RIGHT($C145,1),MATCH($E$2,'Data by Building Type'!$D$22:$F$22,0))=\"Yes\",1,0)*\n(Y$10*OFFSET('Efficiency Distributions'!$D$10,MATCH($C145,'Efficiency Distributions'!$C$9:$C$87,0)+RIGHT($E152),0)\n+Y$11*OFFSET('Efficiency Distributions'!$E$10,MATCH($C145,'Efficiency Distributions'!$C$9:$C$87,0)+RIGHT($E152),0))\n/SUM(Y$10:Y$11)","v":0},{"$f":"IF(INDEX(PC_MAPPING,RIGHT($C145,1),MATCH($E$2,'Data by Building Type'!$D$22:$F$22,0))=\"Yes\",1,0)*\n(Z$10*OFFSET('Efficiency Distributions'!$D$10,MATCH($C145,'Efficiency Distributions'!$C$9:$C$87,0)+RIGHT($E152),0)\n+Z$11*OFFSET('Efficiency Distributions'!$E$10,MATCH($C145,'Efficiency Distributions'!$C$9:$C$87,0)+RIGHT($E152),0))\n/SUM(Z$10:Z$11)","v":0},{"$f":"IF(INDEX(PC_MAPPING,RIGHT($C145,1),MATCH($E$2,'Data by Building Type'!$D$22:$F$22,0))=\"Yes\",1,0)*\n(AA$10*OFFSET('Efficiency Distributions'!$D$10,MATCH($C145,'Efficiency Distributions'!$C$9:$C$87,0)+RIGHT($E152),0)\n+AA$11*OFFSET('Efficiency Distributions'!$E$10,MATCH($C145,'Efficiency Distributions'!$C$9:$C$87,0)+RIGHT($E152),0))\n/SUM(AA$10:AA$11)","v":0},{"$f":"IF(INDEX(PC_MAPPING,RIGHT($C145,1),MATCH($E$2,'Data by Building Type'!$D$22:$F$22,0))=\"Yes\",1,0)*\n(AB$10*OFFSET('Efficiency Distributions'!$D$10,MATCH($C145,'Efficiency Distributions'!$C$9:$C$87,0)+RIGHT($E152),0)\n+AB$11*OFFSET('Efficiency Distributions'!$E$10,MATCH($C145,'Efficiency Distributions'!$C$9:$C$87,0)+RIGHT($E152),0))\n/SUM(AB$10:AB$11)","v":0},{"$f":"IF(INDEX(PC_MAPPING,RIGHT($C145,1),MATCH($E$2,'Data by Building Type'!$D$22:$F$22,0))=\"Yes\",1,0)*\n(AC$10*OFFSET('Efficiency Distributions'!$D$10,MATCH($C145,'Efficiency Distributions'!$C$9:$C$87,0)+RIGHT($E152),0)\n+AC$11*OFFSET('Efficiency Distributions'!$E$10,MATCH($C145,'Efficiency Distributions'!$C$9:$C$87,0)+RIGHT($E152),0))\n/SUM(AC$10:AC$11)","v":0},{"$f":"IF(INDEX(PC_MAPPING,RIGHT($C145,1),MATCH($E$2,'Data by Building Type'!$D$22:$F$22,0))=\"Yes\",1,0)*\n(AD$10*OFFSET('Efficiency Distributions'!$D$10,MATCH($C145,'Efficiency Distributions'!$C$9:$C$87,0)+RIGHT($E152),0)\n+AD$11*OFFSET('Efficiency Distributions'!$E$10,MATCH($C145,'Efficiency Distributions'!$C$9:$C$87,0)+RIGHT($E152),0))\n/SUM(AD$10:AD$11)","v":0},{"$f":"IF(INDEX(PC_MAPPING,RIGHT($C145,1),MATCH($E$2,'Data by Building Type'!$D$22:$F$22,0))=\"Yes\",1,0)*\n(AE$10*OFFSET('Efficiency Distributions'!$D$10,MATCH($C145,'Efficiency Distributions'!$C$9:$C$87,0)+RIGHT($E152),0)\n+AE$11*OFFSET('Efficiency Distributions'!$E$10,MATCH($C145,'Efficiency Distributions'!$C$9:$C$87,0)+RIGHT($E152),0))\n/SUM(AE$10:AE$11)","v":0},{"$f":"IF(INDEX(PC_MAPPING,RIGHT($C145,1),MATCH($E$2,'Data by Building Type'!$D$22:$F$22,0))=\"Yes\",1,0)*\n(AF$10*OFFSET('Efficiency Distributions'!$D$10,MATCH($C145,'Efficiency Distributions'!$C$9:$C$87,0)+RIGHT($E152),0)\n+AF$11*OFFSET('Efficiency Distributions'!$E$10,MATCH($C145,'Efficiency Distributions'!$C$9:$C$87,0)+RIGHT($E152),0))\n/SUM(AF$10:AF$11)","v":0},{"$f":"IF(INDEX(PC_MAPPING,RIGHT($C145,1),MATCH($E$2,'Data by Building Type'!$D$22:$F$22,0))=\"Yes\",1,0)*\n(AG$10*OFFSET('Efficiency Distributions'!$D$10,MATCH($C145,'Efficiency Distributions'!$C$9:$C$87,0)+RIGHT($E152),0)\n+AG$11*OFFSET('Efficiency Distributions'!$E$10,MATCH($C145,'Efficiency Distributions'!$C$9:$C$87,0)+RIGHT($E152),0))\n/SUM(AG$10:AG$11)","v":0},{"$f":"IF(INDEX(PC_MAPPING,RIGHT($C145,1),MATCH($E$2,'Data by Building Type'!$D$22:$F$22,0))=\"Yes\",1,0)*\n(AH$10*OFFSET('Efficiency Distributions'!$D$10,MATCH($C145,'Efficiency Distributions'!$C$9:$C$87,0)+RIGHT($E152),0)\n+AH$11*OFFSET('Efficiency Distributions'!$E$10,MATCH($C145,'Efficiency Distributions'!$C$9:$C$87,0)+RIGHT($E152),0))\n/SUM(AH$10:AH$11)","v":0},{"$f":"IF(INDEX(PC_MAPPING,RIGHT($C145,1),MATCH($E$2,'Data by Building Type'!$D$22:$F$22,0))=\"Yes\",1,0)*\n(AI$10*OFFSET('Efficiency Distributions'!$D$10,MATCH($C145,'Efficiency Distributions'!$C$9:$C$87,0)+RIGHT($E152),0)\n+AI$11*OFFSET('Efficiency Distributions'!$E$10,MATCH($C145,'Efficiency Distributions'!$C$9:$C$87,0)+RIGHT($E152),0))\n/SUM(AI$10:AI$11)","v":0},{"$f":"IF(INDEX(PC_MAPPING,RIGHT($C145,1),MATCH($E$2,'Data by Building Type'!$D$22:$F$22,0))=\"Yes\",1,0)*\n(AJ$10*OFFSET('Efficiency Distributions'!$D$10,MATCH($C145,'Efficiency Distributions'!$C$9:$C$87,0)+RIGHT($E152),0)\n+AJ$11*OFFSET('Efficiency Distributions'!$E$10,MATCH($C145,'Efficiency Distributions'!$C$9:$C$87,0)+RIGHT($E152),0))\n/SUM(AJ$10:AJ$11)","v":0},{"$f":"IF(INDEX(PC_MAPPING,RIGHT($C145,1),MATCH($E$2,'Data by Building Type'!$D$22:$F$22,0))=\"Yes\",1,0)*\n(AK$10*OFFSET('Efficiency Distributions'!$D$10,MATCH($C145,'Efficiency Distributions'!$C$9:$C$87,0)+RIGHT($E152),0)\n+AK$11*OFFSET('Efficiency Distributions'!$E$10,MATCH($C145,'Efficiency Distributions'!$C$9:$C$87,0)+RIGHT($E152),0))\n/SUM(AK$10:AK$11)","v":0},{"$f":"IF(INDEX(PC_MAPPING,RIGHT($C145,1),MATCH($E$2,'Data by Building Type'!$D$22:$F$22,0))=\"Yes\",1,0)*\n(AL$10*OFFSET('Efficiency Distributions'!$D$10,MATCH($C145,'Efficiency Distributions'!$C$9:$C$87,0)+RIGHT($E152),0)\n+AL$11*OFFSET('Efficiency Distributions'!$E$10,MATCH($C145,'Efficiency Distributions'!$C$9:$C$87,0)+RIGHT($E152),0))\n/SUM(AL$10:AL$11)","v":0},{"$f":"IF(INDEX(PC_MAPPING,RIGHT($C145,1),MATCH($E$2,'Data by Building Type'!$D$22:$F$22,0))=\"Yes\",1,0)*\n(AM$10*OFFSET('Efficiency Distributions'!$D$10,MATCH($C145,'Efficiency Distributions'!$C$9:$C$87,0)+RIGHT($E152),0)\n+AM$11*OFFSET('Efficiency Distributions'!$E$10,MATCH($C145,'Efficiency Distributions'!$C$9:$C$87,0)+RIGHT($E152),0))\n/SUM(AM$10:AM$11)","v":0},{"$f":"IF(INDEX(PC_MAPPING,RIGHT($C145,1),MATCH($E$2,'Data by Building Type'!$D$22:$F$22,0))=\"Yes\",1,0)*\n(AN$10*OFFSET('Efficiency Distributions'!$D$10,MATCH($C145,'Efficiency Distributions'!$C$9:$C$87,0)+RIGHT($E152),0)\n+AN$11*OFFSET('Efficiency Distributions'!$E$10,MATCH($C145,'Efficiency Distributions'!$C$9:$C$87,0)+RIGHT($E152),0))\n/SUM(AN$10:AN$11)","v":0},{"$f":"IF(INDEX(PC_MAPPING,RIGHT($C145,1),MATCH($E$2,'Data by Building Type'!$D$22:$F$22,0))=\"Yes\",1,0)*\n(AO$10*OFFSET('Efficiency Distributions'!$D$10,MATCH($C145,'Efficiency Distributions'!$C$9:$C$87,0)+RIGHT($E152),0)\n+AO$11*OFFSET('Efficiency Distributions'!$E$10,MATCH($C145,'Efficiency Distributions'!$C$9:$C$87,0)+RIGHT($E152),0))\n/SUM(AO$10:AO$11)","v":0},{"$f":"IF(INDEX(PC_MAPPING,RIGHT($C145,1),MATCH($E$2,'Data by Building Type'!$D$22:$F$22,0))=\"Yes\",1,0)*\n(AP$10*OFFSET('Efficiency Distributions'!$D$10,MATCH($C145,'Efficiency Distributions'!$C$9:$C$87,0)+RIGHT($E152),0)\n+AP$11*OFFSET('Efficiency Distributions'!$E$10,MATCH($C145,'Efficiency Distributions'!$C$9:$C$87,0)+RIGHT($E152),0))\n/SUM(AP$10:AP$11)","v":0},{"$f":"IF(INDEX(PC_MAPPING,RIGHT($C145,1),MATCH($E$2,'Data by Building Type'!$D$22:$F$22,0))=\"Yes\",1,0)*\n(AQ$10*OFFSET('Efficiency Distributions'!$D$10,MATCH($C145,'Efficiency Distributions'!$C$9:$C$87,0)+RIGHT($E152),0)\n+AQ$11*OFFSET('Efficiency Distributions'!$E$10,MATCH($C145,'Efficiency Distributions'!$C$9:$C$87,0)+RIGHT($E152),0))\n/SUM(AQ$10:AQ$11)","v":0},{"$f":"IF(INDEX(PC_MAPPING,RIGHT($C145,1),MATCH($E$2,'Data by Building Type'!$D$22:$F$22,0))=\"Yes\",1,0)*\n(AR$10*OFFSET('Efficiency Distributions'!$D$10,MATCH($C145,'Efficiency Distributions'!$C$9:$C$87,0)+RIGHT($E152),0)\n+AR$11*OFFSET('Efficiency Distributions'!$E$10,MATCH($C145,'Efficiency Distributions'!$C$9:$C$87,0)+RIGHT($E152),0))\n/SUM(AR$10:AR$11)","v":0},{"$f":"IF(INDEX(PC_MAPPING,RIGHT($C145,1),MATCH($E$2,'Data by Building Type'!$D$22:$F$22,0))=\"Yes\",1,0)*\n(AS$10*OFFSET('Efficiency Distributions'!$D$10,MATCH($C145,'Efficiency Distributions'!$C$9:$C$87,0)+RIGHT($E152),0)\n+AS$11*OFFSET('Efficiency Distributions'!$E$10,MATCH($C145,'Efficiency Distributions'!$C$9:$C$87,0)+RIGHT($E152),0))\n/SUM(AS$10:AS$11)","v":0},{"$f":"IF(INDEX(PC_MAPPING,RIGHT($C145,1),MATCH($E$2,'Data by Building Type'!$D$22:$F$22,0))=\"Yes\",1,0)*\n(AT$10*OFFSET('Efficiency Distributions'!$D$10,MATCH($C145,'Efficiency Distributions'!$C$9:$C$87,0)+RIGHT($E152),0)\n+AT$11*OFFSET('Efficiency Distributions'!$E$10,MATCH($C145,'Efficiency Distributions'!$C$9:$C$87,0)+RIGHT($E152),0))\n/SUM(AT$10:AT$11)","v":0},{"$f":"IF(INDEX(PC_MAPPING,RIGHT($C145,1),MATCH($E$2,'Data by Building Type'!$D$22:$F$22,0))=\"Yes\",1,0)*\n(AU$10*OFFSET('Efficiency Distributions'!$D$10,MATCH($C145,'Efficiency Distributions'!$C$9:$C$87,0)+RIGHT($E152),0)\n+AU$11*OFFSET('Efficiency Distributions'!$E$10,MATCH($C145,'Efficiency Distributions'!$C$9:$C$87,0)+RIGHT($E152),0))\n/SUM(AU$10:AU$11)","v":0},{"$f":"IF(INDEX(PC_MAPPING,RIGHT($C145,1),MATCH($E$2,'Data by Building Type'!$D$22:$F$22,0))=\"Yes\",1,0)*\n(AV$10*OFFSET('Efficiency Distributions'!$D$10,MATCH($C145,'Efficiency Distributions'!$C$9:$C$87,0)+RIGHT($E152),0)\n+AV$11*OFFSET('Efficiency Distributions'!$E$10,MATCH($C145,'Efficiency Distributions'!$C$9:$C$87,0)+RIGHT($E152),0))\n/SUM(AV$10:AV$11)","v":0},{"$f":"IF(INDEX(PC_MAPPING,RIGHT($C145,1),MATCH($E$2,'Data by Building Type'!$D$22:$F$22,0))=\"Yes\",1,0)*\n(AW$10*OFFSET('Efficiency Distributions'!$D$10,MATCH($C145,'Efficiency Distributions'!$C$9:$C$87,0)+RIGHT($E152),0)\n+AW$11*OFFSET('Efficiency Distributions'!$E$10,MATCH($C145,'Efficiency Distributions'!$C$9:$C$87,0)+RIGHT($E152),0))\n/SUM(AW$10:AW$11)","v":0},{"$f":"IF(INDEX(PC_MAPPING,RIGHT($C145,1),MATCH($E$2,'Data by Building Type'!$D$22:$F$22,0))=\"Yes\",1,0)*\n(AX$10*OFFSET('Efficiency Distributions'!$D$10,MATCH($C145,'Efficiency Distributions'!$C$9:$C$87,0)+RIGHT($E152),0)\n+AX$11*OFFSET('Efficiency Distributions'!$E$10,MATCH($C145,'Efficiency Distributions'!$C$9:$C$87,0)+RIGHT($E152),0))\n/SUM(AX$10:AX$11)","v":0},{"$f":"IF(INDEX(PC_MAPPING,RIGHT($C145,1),MATCH($E$2,'Data by Building Type'!$D$22:$F$22,0))=\"Yes\",1,0)*\n(AY$10*OFFSET('Efficiency Distributions'!$D$10,MATCH($C145,'Efficiency Distributions'!$C$9:$C$87,0)+RIGHT($E152),0)\n+AY$11*OFFSET('Efficiency Distributions'!$E$10,MATCH($C145,'Efficiency Distributions'!$C$9:$C$87,0)+RIGHT($E152),0))\n/SUM(AY$10:AY$11)","v":0},{"$f":"IF(INDEX(PC_MAPPING,RIGHT($C145,1),MATCH($E$2,'Data by Building Type'!$D$22:$F$22,0))=\"Yes\",1,0)*\n(AZ$10*OFFSET('Efficiency Distributions'!$D$10,MATCH($C145,'Efficiency Distributions'!$C$9:$C$87,0)+RIGHT($E152),0)\n+AZ$11*OFFSET('Efficiency Distributions'!$E$10,MATCH($C145,'Efficiency Distributions'!$C$9:$C$87,0)+RIGHT($E152),0))\n/SUM(AZ$10:AZ$11)","v":0},{"$f":"IF(INDEX(PC_MAPPING,RIGHT($C145,1),MATCH($E$2,'Data by Building Type'!$D$22:$F$22,0))=\"Yes\",1,0)*\n(BA$10*OFFSET('Efficiency Distributions'!$D$10,MATCH($C145,'Efficiency Distributions'!$C$9:$C$87,0)+RIGHT($E152),0)\n+BA$11*OFFSET('Efficiency Distributions'!$E$10,MATCH($C145,'Efficiency Distributions'!$C$9:$C$87,0)+RIGHT($E152),0))\n/SUM(BA$10:BA$11)","v":0},{"$f":"IF(INDEX(PC_MAPPING,RIGHT($C145,1),MATCH($E$2,'Data by Building Type'!$D$22:$F$22,0))=\"Yes\",1,0)*\n(BB$10*OFFSET('Efficiency Distributions'!$D$10,MATCH($C145,'Efficiency Distributions'!$C$9:$C$87,0)+RIGHT($E152),0)\n+BB$11*OFFSET('Efficiency Distributions'!$E$10,MATCH($C145,'Efficiency Distributions'!$C$9:$C$87,0)+RIGHT($E152),0))\n/SUM(BB$10:BB$11)","v":0},{"$f":"IF(INDEX(PC_MAPPING,RIGHT($C145,1),MATCH($E$2,'Data by Building Type'!$D$22:$F$22,0))=\"Yes\",1,0)*\n(BC$10*OFFSET('Efficiency Distributions'!$D$10,MATCH($C145,'Efficiency Distributions'!$C$9:$C$87,0)+RIGHT($E152),0)\n+BC$11*OFFSET('Efficiency Distributions'!$E$10,MATCH($C145,'Efficiency Distributions'!$C$9:$C$87,0)+RIGHT($E152),0))\n/SUM(BC$10:BC$11)","v":0},{"$f":"IF(INDEX(PC_MAPPING,RIGHT($C145,1),MATCH($E$2,'Data by Building Type'!$D$22:$F$22,0))=\"Yes\",1,0)*\n(BD$10*OFFSET('Efficiency Distributions'!$D$10,MATCH($C145,'Efficiency Distributions'!$C$9:$C$87,0)+RIGHT($E152),0)\n+BD$11*OFFSET('Efficiency Distributions'!$E$10,MATCH($C145,'Efficiency Distributions'!$C$9:$C$87,0)+RIGHT($E152),0))\n/SUM(BD$10:BD$11)","v":0},{"$f":"IF(INDEX(PC_MAPPING,RIGHT($C145,1),MATCH($E$2,'Data by Building Type'!$D$22:$F$22,0))=\"Yes\",1,0)*\n(BE$10*OFFSET('Efficiency Distributions'!$D$10,MATCH($C145,'Efficiency Distributions'!$C$9:$C$87,0)+RIGHT($E152),0)\n+BE$11*OFFSET('Efficiency Distributions'!$E$10,MATCH($C145,'Efficiency Distributions'!$C$9:$C$87,0)+RIGHT($E152),0))\n/SUM(BE$10:BE$11)","v":0},{"$f":"IF(INDEX(PC_MAPPING,RIGHT($C145,1),MATCH($E$2,'Data by Building Type'!$D$22:$F$22,0))=\"Yes\",1,0)*\n(BF$10*OFFSET('Efficiency Distributions'!$D$10,MATCH($C145,'Efficiency Distributions'!$C$9:$C$87,0)+RIGHT($E152),0)\n+BF$11*OFFSET('Efficiency Distributions'!$E$10,MATCH($C145,'Efficiency Distributions'!$C$9:$C$87,0)+RIGHT($E152),0))\n/SUM(BF$10:BF$11)","v":0},{"$f":"IF(INDEX(PC_MAPPING,RIGHT($C145,1),MATCH($E$2,'Data by Building Type'!$D$22:$F$22,0))=\"Yes\",1,0)*\n(BG$10*OFFSET('Efficiency Distributions'!$D$10,MATCH($C145,'Efficiency Distributions'!$C$9:$C$87,0)+RIGHT($E152),0)\n+BG$11*OFFSET('Efficiency Distributions'!$E$10,MATCH($C145,'Efficiency Distributions'!$C$9:$C$87,0)+RIGHT($E152),0))\n/SUM(BG$10:BG$11)","v":0}]
[null,null,null,null,"EL4",{"$f":"IF(INDEX(PC_MAPPING,RIGHT($C145,1),MATCH($E$2,'Data by Building Type'!$D$22:$F$22,0))=\"Yes\",1,0)*\n(F$10*OFFSET('Efficiency Distributions'!$D$10,MATCH($C145,'Efficiency Distributions'!$C$9:$C$87,0)+RIGHT($E153),0)\n+F$11*OFFSET('Efficiency Distributions'!$E$10,MATCH($C145,'Efficiency Distributions'!$C$9:$C$87,0)+RIGHT($E153),0))\n/SUM(F$10:F$11)","v":0},{"$f":"IF(INDEX(PC_MAPPING,RIGHT($C145,1),MATCH($E$2,'Data by Building Type'!$D$22:$F$22,0))=\"Yes\",1,0)*\n(G$10*OFFSET('Efficiency Distributions'!$D$10,MATCH($C145,'Efficiency Distributions'!$C$9:$C$87,0)+RIGHT($E153),0)\n+G$11*OFFSET('Efficiency Distributions'!$E$10,MATCH($C145,'Efficiency Distributions'!$C$9:$C$87,0)+RIGHT($E153),0))\n/SUM(G$10:G$11)","v":0},{"$f":"IF(INDEX(PC_MAPPING,RIGHT($C145,1),MATCH($E$2,'Data by Building Type'!$D$22:$F$22,0))=\"Yes\",1,0)*\n(H$10*OFFSET('Efficiency Distributions'!$D$10,MATCH($C145,'Efficiency Distributions'!$C$9:$C$87,0)+RIGHT($E153),0)\n+H$11*OFFSET('Efficiency Distributions'!$E$10,MATCH($C145,'Efficiency Distributions'!$C$9:$C$87,0)+RIGHT($E153),0))\n/SUM(H$10:H$11)","v":0},{"$f":"IF(INDEX(PC_MAPPING,RIGHT($C145,1),MATCH($E$2,'Data by Building Type'!$D$22:$F$22,0))=\"Yes\",1,0)*\n(I$10*OFFSET('Efficiency Distributions'!$D$10,MATCH($C145,'Efficiency Distributions'!$C$9:$C$87,0)+RIGHT($E153),0)\n+I$11*OFFSET('Efficiency Distributions'!$E$10,MATCH($C145,'Efficiency Distributions'!$C$9:$C$87,0)+RIGHT($E153),0))\n/SUM(I$10:I$11)","v":0},{"$f":"IF(INDEX(PC_MAPPING,RIGHT($C145,1),MATCH($E$2,'Data by Building Type'!$D$22:$F$22,0))=\"Yes\",1,0)*\n(J$10*OFFSET('Efficiency Distributions'!$D$10,MATCH($C145,'Efficiency Distributions'!$C$9:$C$87,0)+RIGHT($E153),0)\n+J$11*OFFSET('Efficiency Distributions'!$E$10,MATCH($C145,'Efficiency Distributions'!$C$9:$C$87,0)+RIGHT($E153),0))\n/SUM(J$10:J$11)","v":0},{"$f":"IF(INDEX(PC_MAPPING,RIGHT($C145,1),MATCH($E$2,'Data by Building Type'!$D$22:$F$22,0))=\"Yes\",1,0)*\n(K$10*OFFSET('Efficiency Distributions'!$D$10,MATCH($C145,'Efficiency Distributions'!$C$9:$C$87,0)+RIGHT($E153),0)\n+K$11*OFFSET('Efficiency Distributions'!$E$10,MATCH($C145,'Efficiency Distributions'!$C$9:$C$87,0)+RIGHT($E153),0))\n/SUM(K$10:K$11)","v":0},{"$f":"IF(INDEX(PC_MAPPING,RIGHT($C145,1),MATCH($E$2,'Data by Building Type'!$D$22:$F$22,0))=\"Yes\",1,0)*\n(L$10*OFFSET('Efficiency Distributions'!$D$10,MATCH($C145,'Efficiency Distributions'!$C$9:$C$87,0)+RIGHT($E153),0)\n+L$11*OFFSET('Efficiency Distributions'!$E$10,MATCH($C145,'Efficiency Distributions'!$C$9:$C$87,0)+RIGHT($E153),0))\n/SUM(L$10:L$11)","v":0},{"$f":"IF(INDEX(PC_MAPPING,RIGHT($C145,1),MATCH($E$2,'Data by Building Type'!$D$22:$F$22,0))=\"Yes\",1,0)*\n(M$10*OFFSET('Efficiency Distributions'!$D$10,MATCH($C145,'Efficiency Distributions'!$C$9:$C$87,0)+RIGHT($E153),0)\n+M$11*OFFSET('Efficiency Distributions'!$E$10,MATCH($C145,'Efficiency Distributions'!$C$9:$C$87,0)+RIGHT($E153),0))\n/SUM(M$10:M$11)","v":0},{"$f":"IF(INDEX(PC_MAPPING,RIGHT($C145,1),MATCH($E$2,'Data by Building Type'!$D$22:$F$22,0))=\"Yes\",1,0)*\n(N$10*OFFSET('Efficiency Distributions'!$D$10,MATCH($C145,'Efficiency Distributions'!$C$9:$C$87,0)+RIGHT($E153),0)\n+N$11*OFFSET('Efficiency Distributions'!$E$10,MATCH($C145,'Efficiency Distributions'!$C$9:$C$87,0)+RIGHT($E153),0))\n/SUM(N$10:N$11)","v":0},{"$f":"IF(INDEX(PC_MAPPING,RIGHT($C145,1),MATCH($E$2,'Data by Building Type'!$D$22:$F$22,0))=\"Yes\",1,0)*\n(O$10*OFFSET('Efficiency Distributions'!$D$10,MATCH($C145,'Efficiency Distributions'!$C$9:$C$87,0)+RIGHT($E153),0)\n+O$11*OFFSET('Efficiency Distributions'!$E$10,MATCH($C145,'Efficiency Distributions'!$C$9:$C$87,0)+RIGHT($E153),0))\n/SUM(O$10:O$11)","v":0},{"$f":"IF(INDEX(PC_MAPPING,RIGHT($C145,1),MATCH($E$2,'Data by Building Type'!$D$22:$F$22,0))=\"Yes\",1,0)*\n(P$10*OFFSET('Efficiency Distributions'!$D$10,MATCH($C145,'Efficiency Distributions'!$C$9:$C$87,0)+RIGHT($E153),0)\n+P$11*OFFSET('Efficiency Distributions'!$E$10,MATCH($C145,'Efficiency Distributions'!$C$9:$C$87,0)+RIGHT($E153),0))\n/SUM(P$10:P$11)","v":0},{"$f":"IF(INDEX(PC_MAPPING,RIGHT($C145,1),MATCH($E$2,'Data by Building Type'!$D$22:$F$22,0))=\"Yes\",1,0)*\n(Q$10*OFFSET('Efficiency Distributions'!$D$10,MATCH($C145,'Efficiency Distributions'!$C$9:$C$87,0)+RIGHT($E153),0)\n+Q$11*OFFSET('Efficiency Distributions'!$E$10,MATCH($C145,'Efficiency Distributions'!$C$9:$C$87,0)+RIGHT($E153),0))\n/SUM(Q$10:Q$11)","v":0},{"$f":"IF(INDEX(PC_MAPPING,RIGHT($C145,1),MATCH($E$2,'Data by Building Type'!$D$22:$F$22,0))=\"Yes\",1,0)*\n(R$10*OFFSET('Efficiency Distributions'!$D$10,MATCH($C145,'Efficiency Distributions'!$C$9:$C$87,0)+RIGHT($E153),0)\n+R$11*OFFSET('Efficiency Distributions'!$E$10,MATCH($C145,'Efficiency Distributions'!$C$9:$C$87,0)+RIGHT($E153),0))\n/SUM(R$10:R$11)","v":0},{"$f":"IF(INDEX(PC_MAPPING,RIGHT($C145,1),MATCH($E$2,'Data by Building Type'!$D$22:$F$22,0))=\"Yes\",1,0)*\n(S$10*OFFSET('Efficiency Distributions'!$D$10,MATCH($C145,'Efficiency Distributions'!$C$9:$C$87,0)+RIGHT($E153),0)\n+S$11*OFFSET('Efficiency Distributions'!$E$10,MATCH($C145,'Efficiency Distributions'!$C$9:$C$87,0)+RIGHT($E153),0))\n/SUM(S$10:S$11)","v":0},{"$f":"IF(INDEX(PC_MAPPING,RIGHT($C145,1),MATCH($E$2,'Data by Building Type'!$D$22:$F$22,0))=\"Yes\",1,0)*\n(T$10*OFFSET('Efficiency Distributions'!$D$10,MATCH($C145,'Efficiency Distributions'!$C$9:$C$87,0)+RIGHT($E153),0)\n+T$11*OFFSET('Efficiency Distributions'!$E$10,MATCH($C145,'Efficiency Distributions'!$C$9:$C$87,0)+RIGHT($E153),0))\n/SUM(T$10:T$11)","v":0},{"$f":"IF(INDEX(PC_MAPPING,RIGHT($C145,1),MATCH($E$2,'Data by Building Type'!$D$22:$F$22,0))=\"Yes\",1,0)*\n(U$10*OFFSET('Efficiency Distributions'!$D$10,MATCH($C145,'Efficiency Distributions'!$C$9:$C$87,0)+RIGHT($E153),0)\n+U$11*OFFSET('Efficiency Distributions'!$E$10,MATCH($C145,'Efficiency Distributions'!$C$9:$C$87,0)+RIGHT($E153),0))\n/SUM(U$10:U$11)","v":0},{"$f":"IF(INDEX(PC_MAPPING,RIGHT($C145,1),MATCH($E$2,'Data by Building Type'!$D$22:$F$22,0))=\"Yes\",1,0)*\n(V$10*OFFSET('Efficiency Distributions'!$D$10,MATCH($C145,'Efficiency Distributions'!$C$9:$C$87,0)+RIGHT($E153),0)\n+V$11*OFFSET('Efficiency Distributions'!$E$10,MATCH($C145,'Efficiency Distributions'!$C$9:$C$87,0)+RIGHT($E153),0))\n/SUM(V$10:V$11)","v":0},{"$f":"IF(INDEX(PC_MAPPING,RIGHT($C145,1),MATCH($E$2,'Data by Building Type'!$D$22:$F$22,0))=\"Yes\",1,0)*\n(W$10*OFFSET('Efficiency Distributions'!$D$10,MATCH($C145,'Efficiency Distributions'!$C$9:$C$87,0)+RIGHT($E153),0)\n+W$11*OFFSET('Efficiency Distributions'!$E$10,MATCH($C145,'Efficiency Distributions'!$C$9:$C$87,0)+RIGHT($E153),0))\n/SUM(W$10:W$11)","v":0},{"$f":"IF(INDEX(PC_MAPPING,RIGHT($C145,1),MATCH($E$2,'Data by Building Type'!$D$22:$F$22,0))=\"Yes\",1,0)*\n(X$10*OFFSET('Efficiency Distributions'!$D$10,MATCH($C145,'Efficiency Distributions'!$C$9:$C$87,0)+RIGHT($E153),0)\n+X$11*OFFSET('Efficiency Distributions'!$E$10,MATCH($C145,'Efficiency Distributions'!$C$9:$C$87,0)+RIGHT($E153),0))\n/SUM(X$10:X$11)","v":0},{"$f":"IF(INDEX(PC_MAPPING,RIGHT($C145,1),MATCH($E$2,'Data by Building Type'!$D$22:$F$22,0))=\"Yes\",1,0)*\n(Y$10*OFFSET('Efficiency Distributions'!$D$10,MATCH($C145,'Efficiency Distributions'!$C$9:$C$87,0)+RIGHT($E153),0)\n+Y$11*OFFSET('Efficiency Distributions'!$E$10,MATCH($C145,'Efficiency Distributions'!$C$9:$C$87,0)+RIGHT($E153),0))\n/SUM(Y$10:Y$11)","v":0},{"$f":"IF(INDEX(PC_MAPPING,RIGHT($C145,1),MATCH($E$2,'Data by Building Type'!$D$22:$F$22,0))=\"Yes\",1,0)*\n(Z$10*OFFSET('Efficiency Distributions'!$D$10,MATCH($C145,'Efficiency Distributions'!$C$9:$C$87,0)+RIGHT($E153),0)\n+Z$11*OFFSET('Efficiency Distributions'!$E$10,MATCH($C145,'Efficiency Distributions'!$C$9:$C$87,0)+RIGHT($E153),0))\n/SUM(Z$10:Z$11)","v":0},{"$f":"IF(INDEX(PC_MAPPING,RIGHT($C145,1),MATCH($E$2,'Data by Building Type'!$D$22:$F$22,0))=\"Yes\",1,0)*\n(AA$10*OFFSET('Efficiency Distributions'!$D$10,MATCH($C145,'Efficiency Distributions'!$C$9:$C$87,0)+RIGHT($E153),0)\n+AA$11*OFFSET('Efficiency Distributions'!$E$10,MATCH($C145,'Efficiency Distributions'!$C$9:$C$87,0)+RIGHT($E153),0))\n/SUM(AA$10:AA$11)","v":0},{"$f":"IF(INDEX(PC_MAPPING,RIGHT($C145,1),MATCH($E$2,'Data by Building Type'!$D$22:$F$22,0))=\"Yes\",1,0)*\n(AB$10*OFFSET('Efficiency Distributions'!$D$10,MATCH($C145,'Efficiency Distributions'!$C$9:$C$87,0)+RIGHT($E153),0)\n+AB$11*OFFSET('Efficiency Distributions'!$E$10,MATCH($C145,'Efficiency Distributions'!$C$9:$C$87,0)+RIGHT($E153),0))\n/SUM(AB$10:AB$11)","v":0},{"$f":"IF(INDEX(PC_MAPPING,RIGHT($C145,1),MATCH($E$2,'Data by Building Type'!$D$22:$F$22,0))=\"Yes\",1,0)*\n(AC$10*OFFSET('Efficiency Distributions'!$D$10,MATCH($C145,'Efficiency Distributions'!$C$9:$C$87,0)+RIGHT($E153),0)\n+AC$11*OFFSET('Efficiency Distributions'!$E$10,MATCH($C145,'Efficiency Distributions'!$C$9:$C$87,0)+RIGHT($E153),0))\n/SUM(AC$10:AC$11)","v":0},{"$f":"IF(INDEX(PC_MAPPING,RIGHT($C145,1),MATCH($E$2,'Data by Building Type'!$D$22:$F$22,0))=\"Yes\",1,0)*\n(AD$10*OFFSET('Efficiency Distributions'!$D$10,MATCH($C145,'Efficiency Distributions'!$C$9:$C$87,0)+RIGHT($E153),0)\n+AD$11*OFFSET('Efficiency Distributions'!$E$10,MATCH($C145,'Efficiency Distributions'!$C$9:$C$87,0)+RIGHT($E153),0))\n/SUM(AD$10:AD$11)","v":0},{"$f":"IF(INDEX(PC_MAPPING,RIGHT($C145,1),MATCH($E$2,'Data by Building Type'!$D$22:$F$22,0))=\"Yes\",1,0)*\n(AE$10*OFFSET('Efficiency Distributions'!$D$10,MATCH($C145,'Efficiency Distributions'!$C$9:$C$87,0)+RIGHT($E153),0)\n+AE$11*OFFSET('Efficiency Distributions'!$E$10,MATCH($C145,'Efficiency Distributions'!$C$9:$C$87,0)+RIGHT($E153),0))\n/SUM(AE$10:AE$11)","v":0},{"$f":"IF(INDEX(PC_MAPPING,RIGHT($C145,1),MATCH($E$2,'Data by Building Type'!$D$22:$F$22,0))=\"Yes\",1,0)*\n(AF$10*OFFSET('Efficiency Distributions'!$D$10,MATCH($C145,'Efficiency Distributions'!$C$9:$C$87,0)+RIGHT($E153),0)\n+AF$11*OFFSET('Efficiency Distributions'!$E$10,MATCH($C145,'Efficiency Distributions'!$C$9:$C$87,0)+RIGHT($E153),0))\n/SUM(AF$10:AF$11)","v":0},{"$f":"IF(INDEX(PC_MAPPING,RIGHT($C145,1),MATCH($E$2,'Data by Building Type'!$D$22:$F$22,0))=\"Yes\",1,0)*\n(AG$10*OFFSET('Efficiency Distributions'!$D$10,MATCH($C145,'Efficiency Distributions'!$C$9:$C$87,0)+RIGHT($E153),0)\n+AG$11*OFFSET('Efficiency Distributions'!$E$10,MATCH($C145,'Efficiency Distributions'!$C$9:$C$87,0)+RIGHT($E153),0))\n/SUM(AG$10:AG$11)","v":0},{"$f":"IF(INDEX(PC_MAPPING,RIGHT($C145,1),MATCH($E$2,'Data by Building Type'!$D$22:$F$22,0))=\"Yes\",1,0)*\n(AH$10*OFFSET('Efficiency Distributions'!$D$10,MATCH($C145,'Efficiency Distributions'!$C$9:$C$87,0)+RIGHT($E153),0)\n+AH$11*OFFSET('Efficiency Distributions'!$E$10,MATCH($C145,'Efficiency Distributions'!$C$9:$C$87,0)+RIGHT($E153),0))\n/SUM(AH$10:AH$11)","v":0},{"$f":"IF(INDEX(PC_MAPPING,RIGHT($C145,1),MATCH($E$2,'Data by Building Type'!$D$22:$F$22,0))=\"Yes\",1,0)*\n(AI$10*OFFSET('Efficiency Distributions'!$D$10,MATCH($C145,'Efficiency Distributions'!$C$9:$C$87,0)+RIGHT($E153),0)\n+AI$11*OFFSET('Efficiency Distributions'!$E$10,MATCH($C145,'Efficiency Distributions'!$C$9:$C$87,0)+RIGHT($E153),0))\n/SUM(AI$10:AI$11)","v":0},{"$f":"IF(INDEX(PC_MAPPING,RIGHT($C145,1),MATCH($E$2,'Data by Building Type'!$D$22:$F$22,0))=\"Yes\",1,0)*\n(AJ$10*OFFSET('Efficiency Distributions'!$D$10,MATCH($C145,'Efficiency Distributions'!$C$9:$C$87,0)+RIGHT($E153),0)\n+AJ$11*OFFSET('Efficiency Distributions'!$E$10,MATCH($C145,'Efficiency Distributions'!$C$9:$C$87,0)+RIGHT($E153),0))\n/SUM(AJ$10:AJ$11)","v":0},{"$f":"IF(INDEX(PC_MAPPING,RIGHT($C145,1),MATCH($E$2,'Data by Building Type'!$D$22:$F$22,0))=\"Yes\",1,0)*\n(AK$10*OFFSET('Efficiency Distributions'!$D$10,MATCH($C145,'Efficiency Distributions'!$C$9:$C$87,0)+RIGHT($E153),0)\n+AK$11*OFFSET('Efficiency Distributions'!$E$10,MATCH($C145,'Efficiency Distributions'!$C$9:$C$87,0)+RIGHT($E153),0))\n/SUM(AK$10:AK$11)","v":0},{"$f":"IF(INDEX(PC_MAPPING,RIGHT($C145,1),MATCH($E$2,'Data by Building Type'!$D$22:$F$22,0))=\"Yes\",1,0)*\n(AL$10*OFFSET('Efficiency Distributions'!$D$10,MATCH($C145,'Efficiency Distributions'!$C$9:$C$87,0)+RIGHT($E153),0)\n+AL$11*OFFSET('Efficiency Distributions'!$E$10,MATCH($C145,'Efficiency Distributions'!$C$9:$C$87,0)+RIGHT($E153),0))\n/SUM(AL$10:AL$11)","v":0},{"$f":"IF(INDEX(PC_MAPPING,RIGHT($C145,1),MATCH($E$2,'Data by Building Type'!$D$22:$F$22,0))=\"Yes\",1,0)*\n(AM$10*OFFSET('Efficiency Distributions'!$D$10,MATCH($C145,'Efficiency Distributions'!$C$9:$C$87,0)+RIGHT($E153),0)\n+AM$11*OFFSET('Efficiency Distributions'!$E$10,MATCH($C145,'Efficiency Distributions'!$C$9:$C$87,0)+RIGHT($E153),0))\n/SUM(AM$10:AM$11)","v":0},{"$f":"IF(INDEX(PC_MAPPING,RIGHT($C145,1),MATCH($E$2,'Data by Building Type'!$D$22:$F$22,0))=\"Yes\",1,0)*\n(AN$10*OFFSET('Efficiency Distributions'!$D$10,MATCH($C145,'Efficiency Distributions'!$C$9:$C$87,0)+RIGHT($E153),0)\n+AN$11*OFFSET('Efficiency Distributions'!$E$10,MATCH($C145,'Efficiency Distributions'!$C$9:$C$87,0)+RIGHT($E153),0))\n/SUM(AN$10:AN$11)","v":0},{"$f":"IF(INDEX(PC_MAPPING,RIGHT($C145,1),MATCH($E$2,'Data by Building Type'!$D$22:$F$22,0))=\"Yes\",1,0)*\n(AO$10*OFFSET('Efficiency Distributions'!$D$10,MATCH($C145,'Efficiency Distributions'!$C$9:$C$87,0)+RIGHT($E153),0)\n+AO$11*OFFSET('Efficiency Distributions'!$E$10,MATCH($C145,'Efficiency Distributions'!$C$9:$C$87,0)+RIGHT($E153),0))\n/SUM(AO$10:AO$11)","v":0},{"$f":"IF(INDEX(PC_MAPPING,RIGHT($C145,1),MATCH($E$2,'Data by Building Type'!$D$22:$F$22,0))=\"Yes\",1,0)*\n(AP$10*OFFSET('Efficiency Distributions'!$D$10,MATCH($C145,'Efficiency Distributions'!$C$9:$C$87,0)+RIGHT($E153),0)\n+AP$11*OFFSET('Efficiency Distributions'!$E$10,MATCH($C145,'Efficiency Distributions'!$C$9:$C$87,0)+RIGHT($E153),0))\n/SUM(AP$10:AP$11)","v":0},{"$f":"IF(INDEX(PC_MAPPING,RIGHT($C145,1),MATCH($E$2,'Data by Building Type'!$D$22:$F$22,0))=\"Yes\",1,0)*\n(AQ$10*OFFSET('Efficiency Distributions'!$D$10,MATCH($C145,'Efficiency Distributions'!$C$9:$C$87,0)+RIGHT($E153),0)\n+AQ$11*OFFSET('Efficiency Distributions'!$E$10,MATCH($C145,'Efficiency Distributions'!$C$9:$C$87,0)+RIGHT($E153),0))\n/SUM(AQ$10:AQ$11)","v":0},{"$f":"IF(INDEX(PC_MAPPING,RIGHT($C145,1),MATCH($E$2,'Data by Building Type'!$D$22:$F$22,0))=\"Yes\",1,0)*\n(AR$10*OFFSET('Efficiency Distributions'!$D$10,MATCH($C145,'Efficiency Distributions'!$C$9:$C$87,0)+RIGHT($E153),0)\n+AR$11*OFFSET('Efficiency Distributions'!$E$10,MATCH($C145,'Efficiency Distributions'!$C$9:$C$87,0)+RIGHT($E153),0))\n/SUM(AR$10:AR$11)","v":0},{"$f":"IF(INDEX(PC_MAPPING,RIGHT($C145,1),MATCH($E$2,'Data by Building Type'!$D$22:$F$22,0))=\"Yes\",1,0)*\n(AS$10*OFFSET('Efficiency Distributions'!$D$10,MATCH($C145,'Efficiency Distributions'!$C$9:$C$87,0)+RIGHT($E153),0)\n+AS$11*OFFSET('Efficiency Distributions'!$E$10,MATCH($C145,'Efficiency Distributions'!$C$9:$C$87,0)+RIGHT($E153),0))\n/SUM(AS$10:AS$11)","v":0},{"$f":"IF(INDEX(PC_MAPPING,RIGHT($C145,1),MATCH($E$2,'Data by Building Type'!$D$22:$F$22,0))=\"Yes\",1,0)*\n(AT$10*OFFSET('Efficiency Distributions'!$D$10,MATCH($C145,'Efficiency Distributions'!$C$9:$C$87,0)+RIGHT($E153),0)\n+AT$11*OFFSET('Efficiency Distributions'!$E$10,MATCH($C145,'Efficiency Distributions'!$C$9:$C$87,0)+RIGHT($E153),0))\n/SUM(AT$10:AT$11)","v":0},{"$f":"IF(INDEX(PC_MAPPING,RIGHT($C145,1),MATCH($E$2,'Data by Building Type'!$D$22:$F$22,0))=\"Yes\",1,0)*\n(AU$10*OFFSET('Efficiency Distributions'!$D$10,MATCH($C145,'Efficiency Distributions'!$C$9:$C$87,0)+RIGHT($E153),0)\n+AU$11*OFFSET('Efficiency Distributions'!$E$10,MATCH($C145,'Efficiency Distributions'!$C$9:$C$87,0)+RIGHT($E153),0))\n/SUM(AU$10:AU$11)","v":0},{"$f":"IF(INDEX(PC_MAPPING,RIGHT($C145,1),MATCH($E$2,'Data by Building Type'!$D$22:$F$22,0))=\"Yes\",1,0)*\n(AV$10*OFFSET('Efficiency Distributions'!$D$10,MATCH($C145,'Efficiency Distributions'!$C$9:$C$87,0)+RIGHT($E153),0)\n+AV$11*OFFSET('Efficiency Distributions'!$E$10,MATCH($C145,'Efficiency Distributions'!$C$9:$C$87,0)+RIGHT($E153),0))\n/SUM(AV$10:AV$11)","v":0},{"$f":"IF(INDEX(PC_MAPPING,RIGHT($C145,1),MATCH($E$2,'Data by Building Type'!$D$22:$F$22,0))=\"Yes\",1,0)*\n(AW$10*OFFSET('Efficiency Distributions'!$D$10,MATCH($C145,'Efficiency Distributions'!$C$9:$C$87,0)+RIGHT($E153),0)\n+AW$11*OFFSET('Efficiency Distributions'!$E$10,MATCH($C145,'Efficiency Distributions'!$C$9:$C$87,0)+RIGHT($E153),0))\n/SUM(AW$10:AW$11)","v":0},{"$f":"IF(INDEX(PC_MAPPING,RIGHT($C145,1),MATCH($E$2,'Data by Building Type'!$D$22:$F$22,0))=\"Yes\",1,0)*\n(AX$10*OFFSET('Efficiency Distributions'!$D$10,MATCH($C145,'Efficiency Distributions'!$C$9:$C$87,0)+RIGHT($E153),0)\n+AX$11*OFFSET('Efficiency Distributions'!$E$10,MATCH($C145,'Efficiency Distributions'!$C$9:$C$87,0)+RIGHT($E153),0))\n/SUM(AX$10:AX$11)","v":0},{"$f":"IF(INDEX(PC_MAPPING,RIGHT($C145,1),MATCH($E$2,'Data by Building Type'!$D$22:$F$22,0))=\"Yes\",1,0)*\n(AY$10*OFFSET('Efficiency Distributions'!$D$10,MATCH($C145,'Efficiency Distributions'!$C$9:$C$87,0)+RIGHT($E153),0)\n+AY$11*OFFSET('Efficiency Distributions'!$E$10,MATCH($C145,'Efficiency Distributions'!$C$9:$C$87,0)+RIGHT($E153),0))\n/SUM(AY$10:AY$11)","v":0},{"$f":"IF(INDEX(PC_MAPPING,RIGHT($C145,1),MATCH($E$2,'Data by Building Type'!$D$22:$F$22,0))=\"Yes\",1,0)*\n(AZ$10*OFFSET('Efficiency Distributions'!$D$10,MATCH($C145,'Efficiency Distributions'!$C$9:$C$87,0)+RIGHT($E153),0)\n+AZ$11*OFFSET('Efficiency Distributions'!$E$10,MATCH($C145,'Efficiency Distributions'!$C$9:$C$87,0)+RIGHT($E153),0))\n/SUM(AZ$10:AZ$11)","v":0},{"$f":"IF(INDEX(PC_MAPPING,RIGHT($C145,1),MATCH($E$2,'Data by Building Type'!$D$22:$F$22,0))=\"Yes\",1,0)*\n(BA$10*OFFSET('Efficiency Distributions'!$D$10,MATCH($C145,'Efficiency Distributions'!$C$9:$C$87,0)+RIGHT($E153),0)\n+BA$11*OFFSET('Efficiency Distributions'!$E$10,MATCH($C145,'Efficiency Distributions'!$C$9:$C$87,0)+RIGHT($E153),0))\n/SUM(BA$10:BA$11)","v":0},{"$f":"IF(INDEX(PC_MAPPING,RIGHT($C145,1),MATCH($E$2,'Data by Building Type'!$D$22:$F$22,0))=\"Yes\",1,0)*\n(BB$10*OFFSET('Efficiency Distributions'!$D$10,MATCH($C145,'Efficiency Distributions'!$C$9:$C$87,0)+RIGHT($E153),0)\n+BB$11*OFFSET('Efficiency Distributions'!$E$10,MATCH($C145,'Efficiency Distributions'!$C$9:$C$87,0)+RIGHT($E153),0))\n/SUM(BB$10:BB$11)","v":0},{"$f":"IF(INDEX(PC_MAPPING,RIGHT($C145,1),MATCH($E$2,'Data by Building Type'!$D$22:$F$22,0))=\"Yes\",1,0)*\n(BC$10*OFFSET('Efficiency Distributions'!$D$10,MATCH($C145,'Efficiency Distributions'!$C$9:$C$87,0)+RIGHT($E153),0)\n+BC$11*OFFSET('Efficiency Distributions'!$E$10,MATCH($C145,'Efficiency Distributions'!$C$9:$C$87,0)+RIGHT($E153),0))\n/SUM(BC$10:BC$11)","v":0},{"$f":"IF(INDEX(PC_MAPPING,RIGHT($C145,1),MATCH($E$2,'Data by Building Type'!$D$22:$F$22,0))=\"Yes\",1,0)*\n(BD$10*OFFSET('Efficiency Distributions'!$D$10,MATCH($C145,'Efficiency Distributions'!$C$9:$C$87,0)+RIGHT($E153),0)\n+BD$11*OFFSET('Efficiency Distributions'!$E$10,MATCH($C145,'Efficiency Distributions'!$C$9:$C$87,0)+RIGHT($E153),0))\n/SUM(BD$10:BD$11)","v":0},{"$f":"IF(INDEX(PC_MAPPING,RIGHT($C145,1),MATCH($E$2,'Data by Building Type'!$D$22:$F$22,0))=\"Yes\",1,0)*\n(BE$10*OFFSET('Efficiency Distributions'!$D$10,MATCH($C145,'Efficiency Distributions'!$C$9:$C$87,0)+RIGHT($E153),0)\n+BE$11*OFFSET('Efficiency Distributions'!$E$10,MATCH($C145,'Efficiency Distributions'!$C$9:$C$87,0)+RIGHT($E153),0))\n/SUM(BE$10:BE$11)","v":0},{"$f":"IF(INDEX(PC_MAPPING,RIGHT($C145,1),MATCH($E$2,'Data by Building Type'!$D$22:$F$22,0))=\"Yes\",1,0)*\n(BF$10*OFFSET('Efficiency Distributions'!$D$10,MATCH($C145,'Efficiency Distributions'!$C$9:$C$87,0)+RIGHT($E153),0)\n+BF$11*OFFSET('Efficiency Distributions'!$E$10,MATCH($C145,'Efficiency Distributions'!$C$9:$C$87,0)+RIGHT($E153),0))\n/SUM(BF$10:BF$11)","v":0},{"$f":"IF(INDEX(PC_MAPPING,RIGHT($C145,1),MATCH($E$2,'Data by Building Type'!$D$22:$F$22,0))=\"Yes\",1,0)*\n(BG$10*OFFSET('Efficiency Distributions'!$D$10,MATCH($C145,'Efficiency Distributions'!$C$9:$C$87,0)+RIGHT($E153),0)\n+BG$11*OFFSET('Efficiency Distributions'!$E$10,MATCH($C145,'Efficiency Distributions'!$C$9:$C$87,0)+RIGHT($E153),0))\n/SUM(BG$10:BG$11)","v":0}]
[null,null,null,null,"EL5",{"$f":"IF(INDEX(PC_MAPPING,RIGHT($C145,1),MATCH($E$2,'Data by Building Type'!$D$22:$F$22,0))=\"Yes\",1,0)*\n(F$10*OFFSET('Efficiency Distributions'!$D$10,MATCH($C145,'Efficiency Distributions'!$C$9:$C$87,0)+RIGHT($E154),0)\n+F$11*OFFSET('Efficiency Distributions'!$E$10,MATCH($C145,'Efficiency Distributions'!$C$9:$C$87,0)+RIGHT($E154),0))\n/SUM(F$10:F$11)","v":0},{"$f":"IF(INDEX(PC_MAPPING,RIGHT($C145,1),MATCH($E$2,'Data by Building Type'!$D$22:$F$22,0))=\"Yes\",1,0)*\n(G$10*OFFSET('Efficiency Distributions'!$D$10,MATCH($C145,'Efficiency Distributions'!$C$9:$C$87,0)+RIGHT($E154),0)\n+G$11*OFFSET('Efficiency Distributions'!$E$10,MATCH($C145,'Efficiency Distributions'!$C$9:$C$87,0)+RIGHT($E154),0))\n/SUM(G$10:G$11)","v":0},{"$f":"IF(INDEX(PC_MAPPING,RIGHT($C145,1),MATCH($E$2,'Data by Building Type'!$D$22:$F$22,0))=\"Yes\",1,0)*\n(H$10*OFFSET('Efficiency Distributions'!$D$10,MATCH($C145,'Efficiency Distributions'!$C$9:$C$87,0)+RIGHT($E154),0)\n+H$11*OFFSET('Efficiency Distributions'!$E$10,MATCH($C145,'Efficiency Distributions'!$C$9:$C$87,0)+RIGHT($E154),0))\n/SUM(H$10:H$11)","v":0},{"$f":"IF(INDEX(PC_MAPPING,RIGHT($C145,1),MATCH($E$2,'Data by Building Type'!$D$22:$F$22,0))=\"Yes\",1,0)*\n(I$10*OFFSET('Efficiency Distributions'!$D$10,MATCH($C145,'Efficiency Distributions'!$C$9:$C$87,0)+RIGHT($E154),0)\n+I$11*OFFSET('Efficiency Distributions'!$E$10,MATCH($C145,'Efficiency Distributions'!$C$9:$C$87,0)+RIGHT($E154),0))\n/SUM(I$10:I$11)","v":0},{"$f":"IF(INDEX(PC_MAPPING,RIGHT($C145,1),MATCH($E$2,'Data by Building Type'!$D$22:$F$22,0))=\"Yes\",1,0)*\n(J$10*OFFSET('Efficiency Distributions'!$D$10,MATCH($C145,'Efficiency Distributions'!$C$9:$C$87,0)+RIGHT($E154),0)\n+J$11*OFFSET('Efficiency Distributions'!$E$10,MATCH($C145,'Efficiency Distributions'!$C$9:$C$87,0)+RIGHT($E154),0))\n/SUM(J$10:J$11)","v":0},{"$f":"IF(INDEX(PC_MAPPING,RIGHT($C145,1),MATCH($E$2,'Data by Building Type'!$D$22:$F$22,0))=\"Yes\",1,0)*\n(K$10*OFFSET('Efficiency Distributions'!$D$10,MATCH($C145,'Efficiency Distributions'!$C$9:$C$87,0)+RIGHT($E154),0)\n+K$11*OFFSET('Efficiency Distributions'!$E$10,MATCH($C145,'Efficiency Distributions'!$C$9:$C$87,0)+RIGHT($E154),0))\n/SUM(K$10:K$11)","v":0},{"$f":"IF(INDEX(PC_MAPPING,RIGHT($C145,1),MATCH($E$2,'Data by Building Type'!$D$22:$F$22,0))=\"Yes\",1,0)*\n(L$10*OFFSET('Efficiency Distributions'!$D$10,MATCH($C145,'Efficiency Distributions'!$C$9:$C$87,0)+RIGHT($E154),0)\n+L$11*OFFSET('Efficiency Distributions'!$E$10,MATCH($C145,'Efficiency Distributions'!$C$9:$C$87,0)+RIGHT($E154),0))\n/SUM(L$10:L$11)","v":0},{"$f":"IF(INDEX(PC_MAPPING,RIGHT($C145,1),MATCH($E$2,'Data by Building Type'!$D$22:$F$22,0))=\"Yes\",1,0)*\n(M$10*OFFSET('Efficiency Distributions'!$D$10,MATCH($C145,'Efficiency Distributions'!$C$9:$C$87,0)+RIGHT($E154),0)\n+M$11*OFFSET('Efficiency Distributions'!$E$10,MATCH($C145,'Efficiency Distributions'!$C$9:$C$87,0)+RIGHT($E154),0))\n/SUM(M$10:M$11)","v":0},{"$f":"IF(INDEX(PC_MAPPING,RIGHT($C145,1),MATCH($E$2,'Data by Building Type'!$D$22:$F$22,0))=\"Yes\",1,0)*\n(N$10*OFFSET('Efficiency Distributions'!$D$10,MATCH($C145,'Efficiency Distributions'!$C$9:$C$87,0)+RIGHT($E154),0)\n+N$11*OFFSET('Efficiency Distributions'!$E$10,MATCH($C145,'Efficiency Distributions'!$C$9:$C$87,0)+RIGHT($E154),0))\n/SUM(N$10:N$11)","v":0},{"$f":"IF(INDEX(PC_MAPPING,RIGHT($C145,1),MATCH($E$2,'Data by Building Type'!$D$22:$F$22,0))=\"Yes\",1,0)*\n(O$10*OFFSET('Efficiency Distributions'!$D$10,MATCH($C145,'Efficiency Distributions'!$C$9:$C$87,0)+RIGHT($E154),0)\n+O$11*OFFSET('Efficiency Distributions'!$E$10,MATCH($C145,'Efficiency Distributions'!$C$9:$C$87,0)+RIGHT($E154),0))\n/SUM(O$10:O$11)","v":0},{"$f":"IF(INDEX(PC_MAPPING,RIGHT($C145,1),MATCH($E$2,'Data by Building Type'!$D$22:$F$22,0))=\"Yes\",1,0)*\n(P$10*OFFSET('Efficiency Distributions'!$D$10,MATCH($C145,'Efficiency Distributions'!$C$9:$C$87,0)+RIGHT($E154),0)\n+P$11*OFFSET('Efficiency Distributions'!$E$10,MATCH($C145,'Efficiency Distributions'!$C$9:$C$87,0)+RIGHT($E154),0))\n/SUM(P$10:P$11)","v":0},{"$f":"IF(INDEX(PC_MAPPING,RIGHT($C145,1),MATCH($E$2,'Data by Building Type'!$D$22:$F$22,0))=\"Yes\",1,0)*\n(Q$10*OFFSET('Efficiency Distributions'!$D$10,MATCH($C145,'Efficiency Distributions'!$C$9:$C$87,0)+RIGHT($E154),0)\n+Q$11*OFFSET('Efficiency Distributions'!$E$10,MATCH($C145,'Efficiency Distributions'!$C$9:$C$87,0)+RIGHT($E154),0))\n/SUM(Q$10:Q$11)","v":0},{"$f":"IF(INDEX(PC_MAPPING,RIGHT($C145,1),MATCH($E$2,'Data by Building Type'!$D$22:$F$22,0))=\"Yes\",1,0)*\n(R$10*OFFSET('Efficiency Distributions'!$D$10,MATCH($C145,'Efficiency Distributions'!$C$9:$C$87,0)+RIGHT($E154),0)\n+R$11*OFFSET('Efficiency Distributions'!$E$10,MATCH($C145,'Efficiency Distributions'!$C$9:$C$87,0)+RIGHT($E154),0))\n/SUM(R$10:R$11)","v":0},{"$f":"IF(INDEX(PC_MAPPING,RIGHT($C145,1),MATCH($E$2,'Data by Building Type'!$D$22:$F$22,0))=\"Yes\",1,0)*\n(S$10*OFFSET('Efficiency Distributions'!$D$10,MATCH($C145,'Efficiency Distributions'!$C$9:$C$87,0)+RIGHT($E154),0)\n+S$11*OFFSET('Efficiency Distributions'!$E$10,MATCH($C145,'Efficiency Distributions'!$C$9:$C$87,0)+RIGHT($E154),0))\n/SUM(S$10:S$11)","v":0},{"$f":"IF(INDEX(PC_MAPPING,RIGHT($C145,1),MATCH($E$2,'Data by Building Type'!$D$22:$F$22,0))=\"Yes\",1,0)*\n(T$10*OFFSET('Efficiency Distributions'!$D$10,MATCH($C145,'Efficiency Distributions'!$C$9:$C$87,0)+RIGHT($E154),0)\n+T$11*OFFSET('Efficiency Distributions'!$E$10,MATCH($C145,'Efficiency Distributions'!$C$9:$C$87,0)+RIGHT($E154),0))\n/SUM(T$10:T$11)","v":0},{"$f":"IF(INDEX(PC_MAPPING,RIGHT($C145,1),MATCH($E$2,'Data by Building Type'!$D$22:$F$22,0))=\"Yes\",1,0)*\n(U$10*OFFSET('Efficiency Distributions'!$D$10,MATCH($C145,'Efficiency Distributions'!$C$9:$C$87,0)+RIGHT($E154),0)\n+U$11*OFFSET('Efficiency Distributions'!$E$10,MATCH($C145,'Efficiency Distributions'!$C$9:$C$87,0)+RIGHT($E154),0))\n/SUM(U$10:U$11)","v":0},{"$f":"IF(INDEX(PC_MAPPING,RIGHT($C145,1),MATCH($E$2,'Data by Building Type'!$D$22:$F$22,0))=\"Yes\",1,0)*\n(V$10*OFFSET('Efficiency Distributions'!$D$10,MATCH($C145,'Efficiency Distributions'!$C$9:$C$87,0)+RIGHT($E154),0)\n+V$11*OFFSET('Efficiency Distributions'!$E$10,MATCH($C145,'Efficiency Distributions'!$C$9:$C$87,0)+RIGHT($E154),0))\n/SUM(V$10:V$11)","v":0},{"$f":"IF(INDEX(PC_MAPPING,RIGHT($C145,1),MATCH($E$2,'Data by Building Type'!$D$22:$F$22,0))=\"Yes\",1,0)*\n(W$10*OFFSET('Efficiency Distributions'!$D$10,MATCH($C145,'Efficiency Distributions'!$C$9:$C$87,0)+RIGHT($E154),0)\n+W$11*OFFSET('Efficiency Distributions'!$E$10,MATCH($C145,'Efficiency Distributions'!$C$9:$C$87,0)+RIGHT($E154),0))\n/SUM(W$10:W$11)","v":0},{"$f":"IF(INDEX(PC_MAPPING,RIGHT($C145,1),MATCH($E$2,'Data by Building Type'!$D$22:$F$22,0))=\"Yes\",1,0)*\n(X$10*OFFSET('Efficiency Distributions'!$D$10,MATCH($C145,'Efficiency Distributions'!$C$9:$C$87,0)+RIGHT($E154),0)\n+X$11*OFFSET('Efficiency Distributions'!$E$10,MATCH($C145,'Efficiency Distributions'!$C$9:$C$87,0)+RIGHT($E154),0))\n/SUM(X$10:X$11)","v":0},{"$f":"IF(INDEX(PC_MAPPING,RIGHT($C145,1),MATCH($E$2,'Data by Building Type'!$D$22:$F$22,0))=\"Yes\",1,0)*\n(Y$10*OFFSET('Efficiency Distributions'!$D$10,MATCH($C145,'Efficiency Distributions'!$C$9:$C$87,0)+RIGHT($E154),0)\n+Y$11*OFFSET('Efficiency Distributions'!$E$10,MATCH($C145,'Efficiency Distributions'!$C$9:$C$87,0)+RIGHT($E154),0))\n/SUM(Y$10:Y$11)","v":0},{"$f":"IF(INDEX(PC_MAPPING,RIGHT($C145,1),MATCH($E$2,'Data by Building Type'!$D$22:$F$22,0))=\"Yes\",1,0)*\n(Z$10*OFFSET('Efficiency Distributions'!$D$10,MATCH($C145,'Efficiency Distributions'!$C$9:$C$87,0)+RIGHT($E154),0)\n+Z$11*OFFSET('Efficiency Distributions'!$E$10,MATCH($C145,'Efficiency Distributions'!$C$9:$C$87,0)+RIGHT($E154),0))\n/SUM(Z$10:Z$11)","v":0},{"$f":"IF(INDEX(PC_MAPPING,RIGHT($C145,1),MATCH($E$2,'Data by Building Type'!$D$22:$F$22,0))=\"Yes\",1,0)*\n(AA$10*OFFSET('Efficiency Distributions'!$D$10,MATCH($C145,'Efficiency Distributions'!$C$9:$C$87,0)+RIGHT($E154),0)\n+AA$11*OFFSET('Efficiency Distributions'!$E$10,MATCH($C145,'Efficiency Distributions'!$C$9:$C$87,0)+RIGHT($E154),0))\n/SUM(AA$10:AA$11)","v":0},{"$f":"IF(INDEX(PC_MAPPING,RIGHT($C145,1),MATCH($E$2,'Data by Building Type'!$D$22:$F$22,0))=\"Yes\",1,0)*\n(AB$10*OFFSET('Efficiency Distributions'!$D$10,MATCH($C145,'Efficiency Distributions'!$C$9:$C$87,0)+RIGHT($E154),0)\n+AB$11*OFFSET('Efficiency Distributions'!$E$10,MATCH($C145,'Efficiency Distributions'!$C$9:$C$87,0)+RIGHT($E154),0))\n/SUM(AB$10:AB$11)","v":0},{"$f":"IF(INDEX(PC_MAPPING,RIGHT($C145,1),MATCH($E$2,'Data by Building Type'!$D$22:$F$22,0))=\"Yes\",1,0)*\n(AC$10*OFFSET('Efficiency Distributions'!$D$10,MATCH($C145,'Efficiency Distributions'!$C$9:$C$87,0)+RIGHT($E154),0)\n+AC$11*OFFSET('Efficiency Distributions'!$E$10,MATCH($C145,'Efficiency Distributions'!$C$9:$C$87,0)+RIGHT($E154),0))\n/SUM(AC$10:AC$11)","v":0},{"$f":"IF(INDEX(PC_MAPPING,RIGHT($C145,1),MATCH($E$2,'Data by Building Type'!$D$22:$F$22,0))=\"Yes\",1,0)*\n(AD$10*OFFSET('Efficiency Distributions'!$D$10,MATCH($C145,'Efficiency Distributions'!$C$9:$C$87,0)+RIGHT($E154),0)\n+AD$11*OFFSET('Efficiency Distributions'!$E$10,MATCH($C145,'Efficiency Distributions'!$C$9:$C$87,0)+RIGHT($E154),0))\n/SUM(AD$10:AD$11)","v":0},{"$f":"IF(INDEX(PC_MAPPING,RIGHT($C145,1),MATCH($E$2,'Data by Building Type'!$D$22:$F$22,0))=\"Yes\",1,0)*\n(AE$10*OFFSET('Efficiency Distributions'!$D$10,MATCH($C145,'Efficiency Distributions'!$C$9:$C$87,0)+RIGHT($E154),0)\n+AE$11*OFFSET('Efficiency Distributions'!$E$10,MATCH($C145,'Efficiency Distributions'!$C$9:$C$87,0)+RIGHT($E154),0))\n/SUM(AE$10:AE$11)","v":0},{"$f":"IF(INDEX(PC_MAPPING,RIGHT($C145,1),MATCH($E$2,'Data by Building Type'!$D$22:$F$22,0))=\"Yes\",1,0)*\n(AF$10*OFFSET('Efficiency Distributions'!$D$10,MATCH($C145,'Efficiency Distributions'!$C$9:$C$87,0)+RIGHT($E154),0)\n+AF$11*OFFSET('Efficiency Distributions'!$E$10,MATCH($C145,'Efficiency Distributions'!$C$9:$C$87,0)+RIGHT($E154),0))\n/SUM(AF$10:AF$11)","v":0},{"$f":"IF(INDEX(PC_MAPPING,RIGHT($C145,1),MATCH($E$2,'Data by Building Type'!$D$22:$F$22,0))=\"Yes\",1,0)*\n(AG$10*OFFSET('Efficiency Distributions'!$D$10,MATCH($C145,'Efficiency Distributions'!$C$9:$C$87,0)+RIGHT($E154),0)\n+AG$11*OFFSET('Efficiency Distributions'!$E$10,MATCH($C145,'Efficiency Distributions'!$C$9:$C$87,0)+RIGHT($E154),0))\n/SUM(AG$10:AG$11)","v":0},{"$f":"IF(INDEX(PC_MAPPING,RIGHT($C145,1),MATCH($E$2,'Data by Building Type'!$D$22:$F$22,0))=\"Yes\",1,0)*\n(AH$10*OFFSET('Efficiency Distributions'!$D$10,MATCH($C145,'Efficiency Distributions'!$C$9:$C$87,0)+RIGHT($E154),0)\n+AH$11*OFFSET('Efficiency Distributions'!$E$10,MATCH($C145,'Efficiency Distributions'!$C$9:$C$87,0)+RIGHT($E154),0))\n/SUM(AH$10:AH$11)","v":0},{"$f":"IF(INDEX(PC_MAPPING,RIGHT($C145,1),MATCH($E$2,'Data by Building Type'!$D$22:$F$22,0))=\"Yes\",1,0)*\n(AI$10*OFFSET('Efficiency Distributions'!$D$10,MATCH($C145,'Efficiency Distributions'!$C$9:$C$87,0)+RIGHT($E154),0)\n+AI$11*OFFSET('Efficiency Distributions'!$E$10,MATCH($C145,'Efficiency Distributions'!$C$9:$C$87,0)+RIGHT($E154),0))\n/SUM(AI$10:AI$11)","v":0},{"$f":"IF(INDEX(PC_MAPPING,RIGHT($C145,1),MATCH($E$2,'Data by Building Type'!$D$22:$F$22,0))=\"Yes\",1,0)*\n(AJ$10*OFFSET('Efficiency Distributions'!$D$10,MATCH($C145,'Efficiency Distributions'!$C$9:$C$87,0)+RIGHT($E154),0)\n+AJ$11*OFFSET('Efficiency Distributions'!$E$10,MATCH($C145,'Efficiency Distributions'!$C$9:$C$87,0)+RIGHT($E154),0))\n/SUM(AJ$10:AJ$11)","v":0},{"$f":"IF(INDEX(PC_MAPPING,RIGHT($C145,1),MATCH($E$2,'Data by Building Type'!$D$22:$F$22,0))=\"Yes\",1,0)*\n(AK$10*OFFSET('Efficiency Distributions'!$D$10,MATCH($C145,'Efficiency Distributions'!$C$9:$C$87,0)+RIGHT($E154),0)\n+AK$11*OFFSET('Efficiency Distributions'!$E$10,MATCH($C145,'Efficiency Distributions'!$C$9:$C$87,0)+RIGHT($E154),0))\n/SUM(AK$10:AK$11)","v":0},{"$f":"IF(INDEX(PC_MAPPING,RIGHT($C145,1),MATCH($E$2,'Data by Building Type'!$D$22:$F$22,0))=\"Yes\",1,0)*\n(AL$10*OFFSET('Efficiency Distributions'!$D$10,MATCH($C145,'Efficiency Distributions'!$C$9:$C$87,0)+RIGHT($E154),0)\n+AL$11*OFFSET('Efficiency Distributions'!$E$10,MATCH($C145,'Efficiency Distributions'!$C$9:$C$87,0)+RIGHT($E154),0))\n/SUM(AL$10:AL$11)","v":0},{"$f":"IF(INDEX(PC_MAPPING,RIGHT($C145,1),MATCH($E$2,'Data by Building Type'!$D$22:$F$22,0))=\"Yes\",1,0)*\n(AM$10*OFFSET('Efficiency Distributions'!$D$10,MATCH($C145,'Efficiency Distributions'!$C$9:$C$87,0)+RIGHT($E154),0)\n+AM$11*OFFSET('Efficiency Distributions'!$E$10,MATCH($C145,'Efficiency Distributions'!$C$9:$C$87,0)+RIGHT($E154),0))\n/SUM(AM$10:AM$11)","v":0},{"$f":"IF(INDEX(PC_MAPPING,RIGHT($C145,1),MATCH($E$2,'Data by Building Type'!$D$22:$F$22,0))=\"Yes\",1,0)*\n(AN$10*OFFSET('Efficiency Distributions'!$D$10,MATCH($C145,'Efficiency Distributions'!$C$9:$C$87,0)+RIGHT($E154),0)\n+AN$11*OFFSET('Efficiency Distributions'!$E$10,MATCH($C145,'Efficiency Distributions'!$C$9:$C$87,0)+RIGHT($E154),0))\n/SUM(AN$10:AN$11)","v":0},{"$f":"IF(INDEX(PC_MAPPING,RIGHT($C145,1),MATCH($E$2,'Data by Building Type'!$D$22:$F$22,0))=\"Yes\",1,0)*\n(AO$10*OFFSET('Efficiency Distributions'!$D$10,MATCH($C145,'Efficiency Distributions'!$C$9:$C$87,0)+RIGHT($E154),0)\n+AO$11*OFFSET('Efficiency Distributions'!$E$10,MATCH($C145,'Efficiency Distributions'!$C$9:$C$87,0)+RIGHT($E154),0))\n/SUM(AO$10:AO$11)","v":0},{"$f":"IF(INDEX(PC_MAPPING,RIGHT($C145,1),MATCH($E$2,'Data by Building Type'!$D$22:$F$22,0))=\"Yes\",1,0)*\n(AP$10*OFFSET('Efficiency Distributions'!$D$10,MATCH($C145,'Efficiency Distributions'!$C$9:$C$87,0)+RIGHT($E154),0)\n+AP$11*OFFSET('Efficiency Distributions'!$E$10,MATCH($C145,'Efficiency Distributions'!$C$9:$C$87,0)+RIGHT($E154),0))\n/SUM(AP$10:AP$11)","v":0},{"$f":"IF(INDEX(PC_MAPPING,RIGHT($C145,1),MATCH($E$2,'Data by Building Type'!$D$22:$F$22,0))=\"Yes\",1,0)*\n(AQ$10*OFFSET('Efficiency Distributions'!$D$10,MATCH($C145,'Efficiency Distributions'!$C$9:$C$87,0)+RIGHT($E154),0)\n+AQ$11*OFFSET('Efficiency Distributions'!$E$10,MATCH($C145,'Efficiency Distributions'!$C$9:$C$87,0)+RIGHT($E154),0))\n/SUM(AQ$10:AQ$11)","v":0},{"$f":"IF(INDEX(PC_MAPPING,RIGHT($C145,1),MATCH($E$2,'Data by Building Type'!$D$22:$F$22,0))=\"Yes\",1,0)*\n(AR$10*OFFSET('Efficiency Distributions'!$D$10,MATCH($C145,'Efficiency Distributions'!$C$9:$C$87,0)+RIGHT($E154),0)\n+AR$11*OFFSET('Efficiency Distributions'!$E$10,MATCH($C145,'Efficiency Distributions'!$C$9:$C$87,0)+RIGHT($E154),0))\n/SUM(AR$10:AR$11)","v":0},{"$f":"IF(INDEX(PC_MAPPING,RIGHT($C145,1),MATCH($E$2,'Data by Building Type'!$D$22:$F$22,0))=\"Yes\",1,0)*\n(AS$10*OFFSET('Efficiency Distributions'!$D$10,MATCH($C145,'Efficiency Distributions'!$C$9:$C$87,0)+RIGHT($E154),0)\n+AS$11*OFFSET('Efficiency Distributions'!$E$10,MATCH($C145,'Efficiency Distributions'!$C$9:$C$87,0)+RIGHT($E154),0))\n/SUM(AS$10:AS$11)","v":0},{"$f":"IF(INDEX(PC_MAPPING,RIGHT($C145,1),MATCH($E$2,'Data by Building Type'!$D$22:$F$22,0))=\"Yes\",1,0)*\n(AT$10*OFFSET('Efficiency Distributions'!$D$10,MATCH($C145,'Efficiency Distributions'!$C$9:$C$87,0)+RIGHT($E154),0)\n+AT$11*OFFSET('Efficiency Distributions'!$E$10,MATCH($C145,'Efficiency Distributions'!$C$9:$C$87,0)+RIGHT($E154),0))\n/SUM(AT$10:AT$11)","v":0},{"$f":"IF(INDEX(PC_MAPPING,RIGHT($C145,1),MATCH($E$2,'Data by Building Type'!$D$22:$F$22,0))=\"Yes\",1,0)*\n(AU$10*OFFSET('Efficiency Distributions'!$D$10,MATCH($C145,'Efficiency Distributions'!$C$9:$C$87,0)+RIGHT($E154),0)\n+AU$11*OFFSET('Efficiency Distributions'!$E$10,MATCH($C145,'Efficiency Distributions'!$C$9:$C$87,0)+RIGHT($E154),0))\n/SUM(AU$10:AU$11)","v":0},{"$f":"IF(INDEX(PC_MAPPING,RIGHT($C145,1),MATCH($E$2,'Data by Building Type'!$D$22:$F$22,0))=\"Yes\",1,0)*\n(AV$10*OFFSET('Efficiency Distributions'!$D$10,MATCH($C145,'Efficiency Distributions'!$C$9:$C$87,0)+RIGHT($E154),0)\n+AV$11*OFFSET('Efficiency Distributions'!$E$10,MATCH($C145,'Efficiency Distributions'!$C$9:$C$87,0)+RIGHT($E154),0))\n/SUM(AV$10:AV$11)","v":0},{"$f":"IF(INDEX(PC_MAPPING,RIGHT($C145,1),MATCH($E$2,'Data by Building Type'!$D$22:$F$22,0))=\"Yes\",1,0)*\n(AW$10*OFFSET('Efficiency Distributions'!$D$10,MATCH($C145,'Efficiency Distributions'!$C$9:$C$87,0)+RIGHT($E154),0)\n+AW$11*OFFSET('Efficiency Distributions'!$E$10,MATCH($C145,'Efficiency Distributions'!$C$9:$C$87,0)+RIGHT($E154),0))\n/SUM(AW$10:AW$11)","v":0},{"$f":"IF(INDEX(PC_MAPPING,RIGHT($C145,1),MATCH($E$2,'Data by Building Type'!$D$22:$F$22,0))=\"Yes\",1,0)*\n(AX$10*OFFSET('Efficiency Distributions'!$D$10,MATCH($C145,'Efficiency Distributions'!$C$9:$C$87,0)+RIGHT($E154),0)\n+AX$11*OFFSET('Efficiency Distributions'!$E$10,MATCH($C145,'Efficiency Distributions'!$C$9:$C$87,0)+RIGHT($E154),0))\n/SUM(AX$10:AX$11)","v":0},{"$f":"IF(INDEX(PC_MAPPING,RIGHT($C145,1),MATCH($E$2,'Data by Building Type'!$D$22:$F$22,0))=\"Yes\",1,0)*\n(AY$10*OFFSET('Efficiency Distributions'!$D$10,MATCH($C145,'Efficiency Distributions'!$C$9:$C$87,0)+RIGHT($E154),0)\n+AY$11*OFFSET('Efficiency Distributions'!$E$10,MATCH($C145,'Efficiency Distributions'!$C$9:$C$87,0)+RIGHT($E154),0))\n/SUM(AY$10:AY$11)","v":0},{"$f":"IF(INDEX(PC_MAPPING,RIGHT($C145,1),MATCH($E$2,'Data by Building Type'!$D$22:$F$22,0))=\"Yes\",1,0)*\n(AZ$10*OFFSET('Efficiency Distributions'!$D$10,MATCH($C145,'Efficiency Distributions'!$C$9:$C$87,0)+RIGHT($E154),0)\n+AZ$11*OFFSET('Efficiency Distributions'!$E$10,MATCH($C145,'Efficiency Distributions'!$C$9:$C$87,0)+RIGHT($E154),0))\n/SUM(AZ$10:AZ$11)","v":0},{"$f":"IF(INDEX(PC_MAPPING,RIGHT($C145,1),MATCH($E$2,'Data by Building Type'!$D$22:$F$22,0))=\"Yes\",1,0)*\n(BA$10*OFFSET('Efficiency Distributions'!$D$10,MATCH($C145,'Efficiency Distributions'!$C$9:$C$87,0)+RIGHT($E154),0)\n+BA$11*OFFSET('Efficiency Distributions'!$E$10,MATCH($C145,'Efficiency Distributions'!$C$9:$C$87,0)+RIGHT($E154),0))\n/SUM(BA$10:BA$11)","v":0},{"$f":"IF(INDEX(PC_MAPPING,RIGHT($C145,1),MATCH($E$2,'Data by Building Type'!$D$22:$F$22,0))=\"Yes\",1,0)*\n(BB$10*OFFSET('Efficiency Distributions'!$D$10,MATCH($C145,'Efficiency Distributions'!$C$9:$C$87,0)+RIGHT($E154),0)\n+BB$11*OFFSET('Efficiency Distributions'!$E$10,MATCH($C145,'Efficiency Distributions'!$C$9:$C$87,0)+RIGHT($E154),0))\n/SUM(BB$10:BB$11)","v":0},{"$f":"IF(INDEX(PC_MAPPING,RIGHT($C145,1),MATCH($E$2,'Data by Building Type'!$D$22:$F$22,0))=\"Yes\",1,0)*\n(BC$10*OFFSET('Efficiency Distributions'!$D$10,MATCH($C145,'Efficiency Distributions'!$C$9:$C$87,0)+RIGHT($E154),0)\n+BC$11*OFFSET('Efficiency Distributions'!$E$10,MATCH($C145,'Efficiency Distributions'!$C$9:$C$87,0)+RIGHT($E154),0))\n/SUM(BC$10:BC$11)","v":0},{"$f":"IF(INDEX(PC_MAPPING,RIGHT($C145,1),MATCH($E$2,'Data by Building Type'!$D$22:$F$22,0))=\"Yes\",1,0)*\n(BD$10*OFFSET('Efficiency Distributions'!$D$10,MATCH($C145,'Efficiency Distributions'!$C$9:$C$87,0)+RIGHT($E154),0)\n+BD$11*OFFSET('Efficiency Distributions'!$E$10,MATCH($C145,'Efficiency Distributions'!$C$9:$C$87,0)+RIGHT($E154),0))\n/SUM(BD$10:BD$11)","v":0},{"$f":"IF(INDEX(PC_MAPPING,RIGHT($C145,1),MATCH($E$2,'Data by Building Type'!$D$22:$F$22,0))=\"Yes\",1,0)*\n(BE$10*OFFSET('Efficiency Distributions'!$D$10,MATCH($C145,'Efficiency Distributions'!$C$9:$C$87,0)+RIGHT($E154),0)\n+BE$11*OFFSET('Efficiency Distributions'!$E$10,MATCH($C145,'Efficiency Distributions'!$C$9:$C$87,0)+RIGHT($E154),0))\n/SUM(BE$10:BE$11)","v":0},{"$f":"IF(INDEX(PC_MAPPING,RIGHT($C145,1),MATCH($E$2,'Data by Building Type'!$D$22:$F$22,0))=\"Yes\",1,0)*\n(BF$10*OFFSET('Efficiency Distributions'!$D$10,MATCH($C145,'Efficiency Distributions'!$C$9:$C$87,0)+RIGHT($E154),0)\n+BF$11*OFFSET('Efficiency Distributions'!$E$10,MATCH($C145,'Efficiency Distributions'!$C$9:$C$87,0)+RIGHT($E154),0))\n/SUM(BF$10:BF$11)","v":0},{"$f":"IF(INDEX(PC_MAPPING,RIGHT($C145,1),MATCH($E$2,'Data by Building Type'!$D$22:$F$22,0))=\"Yes\",1,0)*\n(BG$10*OFFSET('Efficiency Distributions'!$D$10,MATCH($C145,'Efficiency Distributions'!$C$9:$C$87,0)+RIGHT($E154),0)\n+BG$11*OFFSET('Efficiency Distributions'!$E$10,MATCH($C145,'Efficiency Distributions'!$C$9:$C$87,0)+RIGHT($E154),0))\n/SUM(BG$10:BG$11)","v":0}]
[null,null,null,null,"EL6",{"$f":"IF(INDEX(PC_MAPPING,RIGHT($C145,1),MATCH($E$2,'Data by Building Type'!$D$22:$F$22,0))=\"Yes\",1,0)*\n(F$10*OFFSET('Efficiency Distributions'!$D$10,MATCH($C145,'Efficiency Distributions'!$C$9:$C$87,0)+RIGHT($E155),0)\n+F$11*OFFSET('Efficiency Distributions'!$E$10,MATCH($C145,'Efficiency Distributions'!$C$9:$C$87,0)+RIGHT($E155),0))\n/SUM(F$10:F$11)","v":0},{"$f":"IF(INDEX(PC_MAPPING,RIGHT($C145,1),MATCH($E$2,'Data by Building Type'!$D$22:$F$22,0))=\"Yes\",1,0)*\n(G$10*OFFSET('Efficiency Distributions'!$D$10,MATCH($C145,'Efficiency Distributions'!$C$9:$C$87,0)+RIGHT($E155),0)\n+G$11*OFFSET('Efficiency Distributions'!$E$10,MATCH($C145,'Efficiency Distributions'!$C$9:$C$87,0)+RIGHT($E155),0))\n/SUM(G$10:G$11)","v":0},{"$f":"IF(INDEX(PC_MAPPING,RIGHT($C145,1),MATCH($E$2,'Data by Building Type'!$D$22:$F$22,0))=\"Yes\",1,0)*\n(H$10*OFFSET('Efficiency Distributions'!$D$10,MATCH($C145,'Efficiency Distributions'!$C$9:$C$87,0)+RIGHT($E155),0)\n+H$11*OFFSET('Efficiency Distributions'!$E$10,MATCH($C145,'Efficiency Distributions'!$C$9:$C$87,0)+RIGHT($E155),0))\n/SUM(H$10:H$11)","v":0},{"$f":"IF(INDEX(PC_MAPPING,RIGHT($C145,1),MATCH($E$2,'Data by Building Type'!$D$22:$F$22,0))=\"Yes\",1,0)*\n(I$10*OFFSET('Efficiency Distributions'!$D$10,MATCH($C145,'Efficiency Distributions'!$C$9:$C$87,0)+RIGHT($E155),0)\n+I$11*OFFSET('Efficiency Distributions'!$E$10,MATCH($C145,'Efficiency Distributions'!$C$9:$C$87,0)+RIGHT($E155),0))\n/SUM(I$10:I$11)","v":0},{"$f":"IF(INDEX(PC_MAPPING,RIGHT($C145,1),MATCH($E$2,'Data by Building Type'!$D$22:$F$22,0))=\"Yes\",1,0)*\n(J$10*OFFSET('Efficiency Distributions'!$D$10,MATCH($C145,'Efficiency Distributions'!$C$9:$C$87,0)+RIGHT($E155),0)\n+J$11*OFFSET('Efficiency Distributions'!$E$10,MATCH($C145,'Efficiency Distributions'!$C$9:$C$87,0)+RIGHT($E155),0))\n/SUM(J$10:J$11)","v":0},{"$f":"IF(INDEX(PC_MAPPING,RIGHT($C145,1),MATCH($E$2,'Data by Building Type'!$D$22:$F$22,0))=\"Yes\",1,0)*\n(K$10*OFFSET('Efficiency Distributions'!$D$10,MATCH($C145,'Efficiency Distributions'!$C$9:$C$87,0)+RIGHT($E155),0)\n+K$11*OFFSET('Efficiency Distributions'!$E$10,MATCH($C145,'Efficiency Distributions'!$C$9:$C$87,0)+RIGHT($E155),0))\n/SUM(K$10:K$11)","v":0},{"$f":"IF(INDEX(PC_MAPPING,RIGHT($C145,1),MATCH($E$2,'Data by Building Type'!$D$22:$F$22,0))=\"Yes\",1,0)*\n(L$10*OFFSET('Efficiency Distributions'!$D$10,MATCH($C145,'Efficiency Distributions'!$C$9:$C$87,0)+RIGHT($E155),0)\n+L$11*OFFSET('Efficiency Distributions'!$E$10,MATCH($C145,'Efficiency Distributions'!$C$9:$C$87,0)+RIGHT($E155),0))\n/SUM(L$10:L$11)","v":0},{"$f":"IF(INDEX(PC_MAPPING,RIGHT($C145,1),MATCH($E$2,'Data by Building Type'!$D$22:$F$22,0))=\"Yes\",1,0)*\n(M$10*OFFSET('Efficiency Distributions'!$D$10,MATCH($C145,'Efficiency Distributions'!$C$9:$C$87,0)+RIGHT($E155),0)\n+M$11*OFFSET('Efficiency Distributions'!$E$10,MATCH($C145,'Efficiency Distributions'!$C$9:$C$87,0)+RIGHT($E155),0))\n/SUM(M$10:M$11)","v":0},{"$f":"IF(INDEX(PC_MAPPING,RIGHT($C145,1),MATCH($E$2,'Data by Building Type'!$D$22:$F$22,0))=\"Yes\",1,0)*\n(N$10*OFFSET('Efficiency Distributions'!$D$10,MATCH($C145,'Efficiency Distributions'!$C$9:$C$87,0)+RIGHT($E155),0)\n+N$11*OFFSET('Efficiency Distributions'!$E$10,MATCH($C145,'Efficiency Distributions'!$C$9:$C$87,0)+RIGHT($E155),0))\n/SUM(N$10:N$11)","v":0},{"$f":"IF(INDEX(PC_MAPPING,RIGHT($C145,1),MATCH($E$2,'Data by Building Type'!$D$22:$F$22,0))=\"Yes\",1,0)*\n(O$10*OFFSET('Efficiency Distributions'!$D$10,MATCH($C145,'Efficiency Distributions'!$C$9:$C$87,0)+RIGHT($E155),0)\n+O$11*OFFSET('Efficiency Distributions'!$E$10,MATCH($C145,'Efficiency Distributions'!$C$9:$C$87,0)+RIGHT($E155),0))\n/SUM(O$10:O$11)","v":0},{"$f":"IF(INDEX(PC_MAPPING,RIGHT($C145,1),MATCH($E$2,'Data by Building Type'!$D$22:$F$22,0))=\"Yes\",1,0)*\n(P$10*OFFSET('Efficiency Distributions'!$D$10,MATCH($C145,'Efficiency Distributions'!$C$9:$C$87,0)+RIGHT($E155),0)\n+P$11*OFFSET('Efficiency Distributions'!$E$10,MATCH($C145,'Efficiency Distributions'!$C$9:$C$87,0)+RIGHT($E155),0))\n/SUM(P$10:P$11)","v":0},{"$f":"IF(INDEX(PC_MAPPING,RIGHT($C145,1),MATCH($E$2,'Data by Building Type'!$D$22:$F$22,0))=\"Yes\",1,0)*\n(Q$10*OFFSET('Efficiency Distributions'!$D$10,MATCH($C145,'Efficiency Distributions'!$C$9:$C$87,0)+RIGHT($E155),0)\n+Q$11*OFFSET('Efficiency Distributions'!$E$10,MATCH($C145,'Efficiency Distributions'!$C$9:$C$87,0)+RIGHT($E155),0))\n/SUM(Q$10:Q$11)","v":0},{"$f":"IF(INDEX(PC_MAPPING,RIGHT($C145,1),MATCH($E$2,'Data by Building Type'!$D$22:$F$22,0))=\"Yes\",1,0)*\n(R$10*OFFSET('Efficiency Distributions'!$D$10,MATCH($C145,'Efficiency Distributions'!$C$9:$C$87,0)+RIGHT($E155),0)\n+R$11*OFFSET('Efficiency Distributions'!$E$10,MATCH($C145,'Efficiency Distributions'!$C$9:$C$87,0)+RIGHT($E155),0))\n/SUM(R$10:R$11)","v":0},{"$f":"IF(INDEX(PC_MAPPING,RIGHT($C145,1),MATCH($E$2,'Data by Building Type'!$D$22:$F$22,0))=\"Yes\",1,0)*\n(S$10*OFFSET('Efficiency Distributions'!$D$10,MATCH($C145,'Efficiency Distributions'!$C$9:$C$87,0)+RIGHT($E155),0)\n+S$11*OFFSET('Efficiency Distributions'!$E$10,MATCH($C145,'Efficiency Distributions'!$C$9:$C$87,0)+RIGHT($E155),0))\n/SUM(S$10:S$11)","v":0},{"$f":"IF(INDEX(PC_MAPPING,RIGHT($C145,1),MATCH($E$2,'Data by Building Type'!$D$22:$F$22,0))=\"Yes\",1,0)*\n(T$10*OFFSET('Efficiency Distributions'!$D$10,MATCH($C145,'Efficiency Distributions'!$C$9:$C$87,0)+RIGHT($E155),0)\n+T$11*OFFSET('Efficiency Distributions'!$E$10,MATCH($C145,'Efficiency Distributions'!$C$9:$C$87,0)+RIGHT($E155),0))\n/SUM(T$10:T$11)","v":0},{"$f":"IF(INDEX(PC_MAPPING,RIGHT($C145,1),MATCH($E$2,'Data by Building Type'!$D$22:$F$22,0))=\"Yes\",1,0)*\n(U$10*OFFSET('Efficiency Distributions'!$D$10,MATCH($C145,'Efficiency Distributions'!$C$9:$C$87,0)+RIGHT($E155),0)\n+U$11*OFFSET('Efficiency Distributions'!$E$10,MATCH($C145,'Efficiency Distributions'!$C$9:$C$87,0)+RIGHT($E155),0))\n/SUM(U$10:U$11)","v":0},{"$f":"IF(INDEX(PC_MAPPING,RIGHT($C145,1),MATCH($E$2,'Data by Building Type'!$D$22:$F$22,0))=\"Yes\",1,0)*\n(V$10*OFFSET('Efficiency Distributions'!$D$10,MATCH($C145,'Efficiency Distributions'!$C$9:$C$87,0)+RIGHT($E155),0)\n+V$11*OFFSET('Efficiency Distributions'!$E$10,MATCH($C145,'Efficiency Distributions'!$C$9:$C$87,0)+RIGHT($E155),0))\n/SUM(V$10:V$11)","v":0},{"$f":"IF(INDEX(PC_MAPPING,RIGHT($C145,1),MATCH($E$2,'Data by Building Type'!$D$22:$F$22,0))=\"Yes\",1,0)*\n(W$10*OFFSET('Efficiency Distributions'!$D$10,MATCH($C145,'Efficiency Distributions'!$C$9:$C$87,0)+RIGHT($E155),0)\n+W$11*OFFSET('Efficiency Distributions'!$E$10,MATCH($C145,'Efficiency Distributions'!$C$9:$C$87,0)+RIGHT($E155),0))\n/SUM(W$10:W$11)","v":0},{"$f":"IF(INDEX(PC_MAPPING,RIGHT($C145,1),MATCH($E$2,'Data by Building Type'!$D$22:$F$22,0))=\"Yes\",1,0)*\n(X$10*OFFSET('Efficiency Distributions'!$D$10,MATCH($C145,'Efficiency Distributions'!$C$9:$C$87,0)+RIGHT($E155),0)\n+X$11*OFFSET('Efficiency Distributions'!$E$10,MATCH($C145,'Efficiency Distributions'!$C$9:$C$87,0)+RIGHT($E155),0))\n/SUM(X$10:X$11)","v":0},{"$f":"IF(INDEX(PC_MAPPING,RIGHT($C145,1),MATCH($E$2,'Data by Building Type'!$D$22:$F$22,0))=\"Yes\",1,0)*\n(Y$10*OFFSET('Efficiency Distributions'!$D$10,MATCH($C145,'Efficiency Distributions'!$C$9:$C$87,0)+RIGHT($E155),0)\n+Y$11*OFFSET('Efficiency Distributions'!$E$10,MATCH($C145,'Efficiency Distributions'!$C$9:$C$87,0)+RIGHT($E155),0))\n/SUM(Y$10:Y$11)","v":0},{"$f":"IF(INDEX(PC_MAPPING,RIGHT($C145,1),MATCH($E$2,'Data by Building Type'!$D$22:$F$22,0))=\"Yes\",1,0)*\n(Z$10*OFFSET('Efficiency Distributions'!$D$10,MATCH($C145,'Efficiency Distributions'!$C$9:$C$87,0)+RIGHT($E155),0)\n+Z$11*OFFSET('Efficiency Distributions'!$E$10,MATCH($C145,'Efficiency Distributions'!$C$9:$C$87,0)+RIGHT($E155),0))\n/SUM(Z$10:Z$11)","v":0},{"$f":"IF(INDEX(PC_MAPPING,RIGHT($C145,1),MATCH($E$2,'Data by Building Type'!$D$22:$F$22,0))=\"Yes\",1,0)*\n(AA$10*OFFSET('Efficiency Distributions'!$D$10,MATCH($C145,'Efficiency Distributions'!$C$9:$C$87,0)+RIGHT($E155),0)\n+AA$11*OFFSET('Efficiency Distributions'!$E$10,MATCH($C145,'Efficiency Distributions'!$C$9:$C$87,0)+RIGHT($E155),0))\n/SUM(AA$10:AA$11)","v":0},{"$f":"IF(INDEX(PC_MAPPING,RIGHT($C145,1),MATCH($E$2,'Data by Building Type'!$D$22:$F$22,0))=\"Yes\",1,0)*\n(AB$10*OFFSET('Efficiency Distributions'!$D$10,MATCH($C145,'Efficiency Distributions'!$C$9:$C$87,0)+RIGHT($E155),0)\n+AB$11*OFFSET('Efficiency Distributions'!$E$10,MATCH($C145,'Efficiency Distributions'!$C$9:$C$87,0)+RIGHT($E155),0))\n/SUM(AB$10:AB$11)","v":0},{"$f":"IF(INDEX(PC_MAPPING,RIGHT($C145,1),MATCH($E$2,'Data by Building Type'!$D$22:$F$22,0))=\"Yes\",1,0)*\n(AC$10*OFFSET('Efficiency Distributions'!$D$10,MATCH($C145,'Efficiency Distributions'!$C$9:$C$87,0)+RIGHT($E155),0)\n+AC$11*OFFSET('Efficiency Distributions'!$E$10,MATCH($C145,'Efficiency Distributions'!$C$9:$C$87,0)+RIGHT($E155),0))\n/SUM(AC$10:AC$11)","v":0},{"$f":"IF(INDEX(PC_MAPPING,RIGHT($C145,1),MATCH($E$2,'Data by Building Type'!$D$22:$F$22,0))=\"Yes\",1,0)*\n(AD$10*OFFSET('Efficiency Distributions'!$D$10,MATCH($C145,'Efficiency Distributions'!$C$9:$C$87,0)+RIGHT($E155),0)\n+AD$11*OFFSET('Efficiency Distributions'!$E$10,MATCH($C145,'Efficiency Distributions'!$C$9:$C$87,0)+RIGHT($E155),0))\n/SUM(AD$10:AD$11)","v":0},{"$f":"IF(INDEX(PC_MAPPING,RIGHT($C145,1),MATCH($E$2,'Data by Building Type'!$D$22:$F$22,0))=\"Yes\",1,0)*\n(AE$10*OFFSET('Efficiency Distributions'!$D$10,MATCH($C145,'Efficiency Distributions'!$C$9:$C$87,0)+RIGHT($E155),0)\n+AE$11*OFFSET('Efficiency Distributions'!$E$10,MATCH($C145,'Efficiency Distributions'!$C$9:$C$87,0)+RIGHT($E155),0))\n/SUM(AE$10:AE$11)","v":0},{"$f":"IF(INDEX(PC_MAPPING,RIGHT($C145,1),MATCH($E$2,'Data by Building Type'!$D$22:$F$22,0))=\"Yes\",1,0)*\n(AF$10*OFFSET('Efficiency Distributions'!$D$10,MATCH($C145,'Efficiency Distributions'!$C$9:$C$87,0)+RIGHT($E155),0)\n+AF$11*OFFSET('Efficiency Distributions'!$E$10,MATCH($C145,'Efficiency Distributions'!$C$9:$C$87,0)+RIGHT($E155),0))\n/SUM(AF$10:AF$11)","v":0},{"$f":"IF(INDEX(PC_MAPPING,RIGHT($C145,1),MATCH($E$2,'Data by Building Type'!$D$22:$F$22,0))=\"Yes\",1,0)*\n(AG$10*OFFSET('Efficiency Distributions'!$D$10,MATCH($C145,'Efficiency Distributions'!$C$9:$C$87,0)+RIGHT($E155),0)\n+AG$11*OFFSET('Efficiency Distributions'!$E$10,MATCH($C145,'Efficiency Distributions'!$C$9:$C$87,0)+RIGHT($E155),0))\n/SUM(AG$10:AG$11)","v":0},{"$f":"IF(INDEX(PC_MAPPING,RIGHT($C145,1),MATCH($E$2,'Data by Building Type'!$D$22:$F$22,0))=\"Yes\",1,0)*\n(AH$10*OFFSET('Efficiency Distributions'!$D$10,MATCH($C145,'Efficiency Distributions'!$C$9:$C$87,0)+RIGHT($E155),0)\n+AH$11*OFFSET('Efficiency Distributions'!$E$10,MATCH($C145,'Efficiency Distributions'!$C$9:$C$87,0)+RIGHT($E155),0))\n/SUM(AH$10:AH$11)","v":0},{"$f":"IF(INDEX(PC_MAPPING,RIGHT($C145,1),MATCH($E$2,'Data by Building Type'!$D$22:$F$22,0))=\"Yes\",1,0)*\n(AI$10*OFFSET('Efficiency Distributions'!$D$10,MATCH($C145,'Efficiency Distributions'!$C$9:$C$87,0)+RIGHT($E155),0)\n+AI$11*OFFSET('Efficiency Distributions'!$E$10,MATCH($C145,'Efficiency Distributions'!$C$9:$C$87,0)+RIGHT($E155),0))\n/SUM(AI$10:AI$11)","v":0},{"$f":"IF(INDEX(PC_MAPPING,RIGHT($C145,1),MATCH($E$2,'Data by Building Type'!$D$22:$F$22,0))=\"Yes\",1,0)*\n(AJ$10*OFFSET('Efficiency Distributions'!$D$10,MATCH($C145,'Efficiency Distributions'!$C$9:$C$87,0)+RIGHT($E155),0)\n+AJ$11*OFFSET('Efficiency Distributions'!$E$10,MATCH($C145,'Efficiency Distributions'!$C$9:$C$87,0)+RIGHT($E155),0))\n/SUM(AJ$10:AJ$11)","v":0},{"$f":"IF(INDEX(PC_MAPPING,RIGHT($C145,1),MATCH($E$2,'Data by Building Type'!$D$22:$F$22,0))=\"Yes\",1,0)*\n(AK$10*OFFSET('Efficiency Distributions'!$D$10,MATCH($C145,'Efficiency Distributions'!$C$9:$C$87,0)+RIGHT($E155),0)\n+AK$11*OFFSET('Efficiency Distributions'!$E$10,MATCH($C145,'Efficiency Distributions'!$C$9:$C$87,0)+RIGHT($E155),0))\n/SUM(AK$10:AK$11)","v":0},{"$f":"IF(INDEX(PC_MAPPING,RIGHT($C145,1),MATCH($E$2,'Data by Building Type'!$D$22:$F$22,0))=\"Yes\",1,0)*\n(AL$10*OFFSET('Efficiency Distributions'!$D$10,MATCH($C145,'Efficiency Distributions'!$C$9:$C$87,0)+RIGHT($E155),0)\n+AL$11*OFFSET('Efficiency Distributions'!$E$10,MATCH($C145,'Efficiency Distributions'!$C$9:$C$87,0)+RIGHT($E155),0))\n/SUM(AL$10:AL$11)","v":0},{"$f":"IF(INDEX(PC_MAPPING,RIGHT($C145,1),MATCH($E$2,'Data by Building Type'!$D$22:$F$22,0))=\"Yes\",1,0)*\n(AM$10*OFFSET('Efficiency Distributions'!$D$10,MATCH($C145,'Efficiency Distributions'!$C$9:$C$87,0)+RIGHT($E155),0)\n+AM$11*OFFSET('Efficiency Distributions'!$E$10,MATCH($C145,'Efficiency Distributions'!$C$9:$C$87,0)+RIGHT($E155),0))\n/SUM(AM$10:AM$11)","v":0},{"$f":"IF(INDEX(PC_MAPPING,RIGHT($C145,1),MATCH($E$2,'Data by Building Type'!$D$22:$F$22,0))=\"Yes\",1,0)*\n(AN$10*OFFSET('Efficiency Distributions'!$D$10,MATCH($C145,'Efficiency Distributions'!$C$9:$C$87,0)+RIGHT($E155),0)\n+AN$11*OFFSET('Efficiency Distributions'!$E$10,MATCH($C145,'Efficiency Distributions'!$C$9:$C$87,0)+RIGHT($E155),0))\n/SUM(AN$10:AN$11)","v":0},{"$f":"IF(INDEX(PC_MAPPING,RIGHT($C145,1),MATCH($E$2,'Data by Building Type'!$D$22:$F$22,0))=\"Yes\",1,0)*\n(AO$10*OFFSET('Efficiency Distributions'!$D$10,MATCH($C145,'Efficiency Distributions'!$C$9:$C$87,0)+RIGHT($E155),0)\n+AO$11*OFFSET('Efficiency Distributions'!$E$10,MATCH($C145,'Efficiency Distributions'!$C$9:$C$87,0)+RIGHT($E155),0))\n/SUM(AO$10:AO$11)","v":0},{"$f":"IF(INDEX(PC_MAPPING,RIGHT($C145,1),MATCH($E$2,'Data by Building Type'!$D$22:$F$22,0))=\"Yes\",1,0)*\n(AP$10*OFFSET('Efficiency Distributions'!$D$10,MATCH($C145,'Efficiency Distributions'!$C$9:$C$87,0)+RIGHT($E155),0)\n+AP$11*OFFSET('Efficiency Distributions'!$E$10,MATCH($C145,'Efficiency Distributions'!$C$9:$C$87,0)+RIGHT($E155),0))\n/SUM(AP$10:AP$11)","v":0},{"$f":"IF(INDEX(PC_MAPPING,RIGHT($C145,1),MATCH($E$2,'Data by Building Type'!$D$22:$F$22,0))=\"Yes\",1,0)*\n(AQ$10*OFFSET('Efficiency Distributions'!$D$10,MATCH($C145,'Efficiency Distributions'!$C$9:$C$87,0)+RIGHT($E155),0)\n+AQ$11*OFFSET('Efficiency Distributions'!$E$10,MATCH($C145,'Efficiency Distributions'!$C$9:$C$87,0)+RIGHT($E155),0))\n/SUM(AQ$10:AQ$11)","v":0},{"$f":"IF(INDEX(PC_MAPPING,RIGHT($C145,1),MATCH($E$2,'Data by Building Type'!$D$22:$F$22,0))=\"Yes\",1,0)*\n(AR$10*OFFSET('Efficiency Distributions'!$D$10,MATCH($C145,'Efficiency Distributions'!$C$9:$C$87,0)+RIGHT($E155),0)\n+AR$11*OFFSET('Efficiency Distributions'!$E$10,MATCH($C145,'Efficiency Distributions'!$C$9:$C$87,0)+RIGHT($E155),0))\n/SUM(AR$10:AR$11)","v":0},{"$f":"IF(INDEX(PC_MAPPING,RIGHT($C145,1),MATCH($E$2,'Data by Building Type'!$D$22:$F$22,0))=\"Yes\",1,0)*\n(AS$10*OFFSET('Efficiency Distributions'!$D$10,MATCH($C145,'Efficiency Distributions'!$C$9:$C$87,0)+RIGHT($E155),0)\n+AS$11*OFFSET('Efficiency Distributions'!$E$10,MATCH($C145,'Efficiency Distributions'!$C$9:$C$87,0)+RIGHT($E155),0))\n/SUM(AS$10:AS$11)","v":0},{"$f":"IF(INDEX(PC_MAPPING,RIGHT($C145,1),MATCH($E$2,'Data by Building Type'!$D$22:$F$22,0))=\"Yes\",1,0)*\n(AT$10*OFFSET('Efficiency Distributions'!$D$10,MATCH($C145,'Efficiency Distributions'!$C$9:$C$87,0)+RIGHT($E155),0)\n+AT$11*OFFSET('Efficiency Distributions'!$E$10,MATCH($C145,'Efficiency Distributions'!$C$9:$C$87,0)+RIGHT($E155),0))\n/SUM(AT$10:AT$11)","v":0},{"$f":"IF(INDEX(PC_MAPPING,RIGHT($C145,1),MATCH($E$2,'Data by Building Type'!$D$22:$F$22,0))=\"Yes\",1,0)*\n(AU$10*OFFSET('Efficiency Distributions'!$D$10,MATCH($C145,'Efficiency Distributions'!$C$9:$C$87,0)+RIGHT($E155),0)\n+AU$11*OFFSET('Efficiency Distributions'!$E$10,MATCH($C145,'Efficiency Distributions'!$C$9:$C$87,0)+RIGHT($E155),0))\n/SUM(AU$10:AU$11)","v":0},{"$f":"IF(INDEX(PC_MAPPING,RIGHT($C145,1),MATCH($E$2,'Data by Building Type'!$D$22:$F$22,0))=\"Yes\",1,0)*\n(AV$10*OFFSET('Efficiency Distributions'!$D$10,MATCH($C145,'Efficiency Distributions'!$C$9:$C$87,0)+RIGHT($E155),0)\n+AV$11*OFFSET('Efficiency Distributions'!$E$10,MATCH($C145,'Efficiency Distributions'!$C$9:$C$87,0)+RIGHT($E155),0))\n/SUM(AV$10:AV$11)","v":0},{"$f":"IF(INDEX(PC_MAPPING,RIGHT($C145,1),MATCH($E$2,'Data by Building Type'!$D$22:$F$22,0))=\"Yes\",1,0)*\n(AW$10*OFFSET('Efficiency Distributions'!$D$10,MATCH($C145,'Efficiency Distributions'!$C$9:$C$87,0)+RIGHT($E155),0)\n+AW$11*OFFSET('Efficiency Distributions'!$E$10,MATCH($C145,'Efficiency Distributions'!$C$9:$C$87,0)+RIGHT($E155),0))\n/SUM(AW$10:AW$11)","v":0},{"$f":"IF(INDEX(PC_MAPPING,RIGHT($C145,1),MATCH($E$2,'Data by Building Type'!$D$22:$F$22,0))=\"Yes\",1,0)*\n(AX$10*OFFSET('Efficiency Distributions'!$D$10,MATCH($C145,'Efficiency Distributions'!$C$9:$C$87,0)+RIGHT($E155),0)\n+AX$11*OFFSET('Efficiency Distributions'!$E$10,MATCH($C145,'Efficiency Distributions'!$C$9:$C$87,0)+RIGHT($E155),0))\n/SUM(AX$10:AX$11)","v":0},{"$f":"IF(INDEX(PC_MAPPING,RIGHT($C145,1),MATCH($E$2,'Data by Building Type'!$D$22:$F$22,0))=\"Yes\",1,0)*\n(AY$10*OFFSET('Efficiency Distributions'!$D$10,MATCH($C145,'Efficiency Distributions'!$C$9:$C$87,0)+RIGHT($E155),0)\n+AY$11*OFFSET('Efficiency Distributions'!$E$10,MATCH($C145,'Efficiency Distributions'!$C$9:$C$87,0)+RIGHT($E155),0))\n/SUM(AY$10:AY$11)","v":0},{"$f":"IF(INDEX(PC_MAPPING,RIGHT($C145,1),MATCH($E$2,'Data by Building Type'!$D$22:$F$22,0))=\"Yes\",1,0)*\n(AZ$10*OFFSET('Efficiency Distributions'!$D$10,MATCH($C145,'Efficiency Distributions'!$C$9:$C$87,0)+RIGHT($E155),0)\n+AZ$11*OFFSET('Efficiency Distributions'!$E$10,MATCH($C145,'Efficiency Distributions'!$C$9:$C$87,0)+RIGHT($E155),0))\n/SUM(AZ$10:AZ$11)","v":0},{"$f":"IF(INDEX(PC_MAPPING,RIGHT($C145,1),MATCH($E$2,'Data by Building Type'!$D$22:$F$22,0))=\"Yes\",1,0)*\n(BA$10*OFFSET('Efficiency Distributions'!$D$10,MATCH($C145,'Efficiency Distributions'!$C$9:$C$87,0)+RIGHT($E155),0)\n+BA$11*OFFSET('Efficiency Distributions'!$E$10,MATCH($C145,'Efficiency Distributions'!$C$9:$C$87,0)+RIGHT($E155),0))\n/SUM(BA$10:BA$11)","v":0},{"$f":"IF(INDEX(PC_MAPPING,RIGHT($C145,1),MATCH($E$2,'Data by Building Type'!$D$22:$F$22,0))=\"Yes\",1,0)*\n(BB$10*OFFSET('Efficiency Distributions'!$D$10,MATCH($C145,'Efficiency Distributions'!$C$9:$C$87,0)+RIGHT($E155),0)\n+BB$11*OFFSET('Efficiency Distributions'!$E$10,MATCH($C145,'Efficiency Distributions'!$C$9:$C$87,0)+RIGHT($E155),0))\n/SUM(BB$10:BB$11)","v":0},{"$f":"IF(INDEX(PC_MAPPING,RIGHT($C145,1),MATCH($E$2,'Data by Building Type'!$D$22:$F$22,0))=\"Yes\",1,0)*\n(BC$10*OFFSET('Efficiency Distributions'!$D$10,MATCH($C145,'Efficiency Distributions'!$C$9:$C$87,0)+RIGHT($E155),0)\n+BC$11*OFFSET('Efficiency Distributions'!$E$10,MATCH($C145,'Efficiency Distributions'!$C$9:$C$87,0)+RIGHT($E155),0))\n/SUM(BC$10:BC$11)","v":0},{"$f":"IF(INDEX(PC_MAPPING,RIGHT($C145,1),MATCH($E$2,'Data by Building Type'!$D$22:$F$22,0))=\"Yes\",1,0)*\n(BD$10*OFFSET('Efficiency Distributions'!$D$10,MATCH($C145,'Efficiency Distributions'!$C$9:$C$87,0)+RIGHT($E155),0)\n+BD$11*OFFSET('Efficiency Distributions'!$E$10,MATCH($C145,'Efficiency Distributions'!$C$9:$C$87,0)+RIGHT($E155),0))\n/SUM(BD$10:BD$11)","v":0},{"$f":"IF(INDEX(PC_MAPPING,RIGHT($C145,1),MATCH($E$2,'Data by Building Type'!$D$22:$F$22,0))=\"Yes\",1,0)*\n(BE$10*OFFSET('Efficiency Distributions'!$D$10,MATCH($C145,'Efficiency Distributions'!$C$9:$C$87,0)+RIGHT($E155),0)\n+BE$11*OFFSET('Efficiency Distributions'!$E$10,MATCH($C145,'Efficiency Distributions'!$C$9:$C$87,0)+RIGHT($E155),0))\n/SUM(BE$10:BE$11)","v":0},{"$f":"IF(INDEX(PC_MAPPING,RIGHT($C145,1),MATCH($E$2,'Data by Building Type'!$D$22:$F$22,0))=\"Yes\",1,0)*\n(BF$10*OFFSET('Efficiency Distributions'!$D$10,MATCH($C145,'Efficiency Distributions'!$C$9:$C$87,0)+RIGHT($E155),0)\n+BF$11*OFFSET('Efficiency Distributions'!$E$10,MATCH($C145,'Efficiency Distributions'!$C$9:$C$87,0)+RIGHT($E155),0))\n/SUM(BF$10:BF$11)","v":0},{"$f":"IF(INDEX(PC_MAPPING,RIGHT($C145,1),MATCH($E$2,'Data by Building Type'!$D$22:$F$22,0))=\"Yes\",1,0)*\n(BG$10*OFFSET('Efficiency Distributions'!$D$10,MATCH($C145,'Efficiency Distributions'!$C$9:$C$87,0)+RIGHT($E155),0)\n+BG$11*OFFSET('Efficiency Distributions'!$E$10,MATCH($C145,'Efficiency Distributions'!$C$9:$C$87,0)+RIGHT($E155),0))\n/SUM(BG$10:BG$11)","v":0}]
[null,null,null,null,"TOTAL",{"$f":"SUM(F149:F155)","v":0},{"$f":"SUM(G149:G155)","v":0},0,0,0,0,0,0,0,0,0,0,0,0,0,0,0,0,0,0,0,0,0,0,0,0,0,0,0,0,0,0,0,0,0,0,0,0,0,0,0,0,0,0,0,0,0,0,0,0,0,0,0,0]
[]
[null,null,null,"POST-Case"]
[null,null,null,null,"Efficiency Level",1981,{"$f":"F159+1","v":1982},{"$f":"G159+1","v":1983},1984,1985,{"$f":"J159+1","v":1986},1987,1988,1989,1990,1991,1992,1993,1994,1995,1996,1997,1998,1999,2000,2001,2002,2003,2004,2005,2006,2007,2008,2009,2010,2011,2012,2013,2014,2015,2016,2017,2018,2019,2020,2021,2022,2023,2024,2025,2026,2027,2028,2029,2030,2031,2032,2033,2034]
[null,null,null,null,"EL0",{"$f":"IF(F$29<STANDARD_YEAR,F149,\nIF(RIGHT($E160,1)>RIGHT(INDEX(STANDARD_LEVELS,1,MID($C145,4,1)),1),F149,\nIF(RIGHT($E160,1)<RIGHT(INDEX(STANDARD_LEVELS,1,MID($C145,4,1)),1),0,\nIF(RIGHT($E160,1)=RIGHT(INDEX(STANDARD_LEVELS,1,MID($C145,4,1)),1),SUM(OFFSET(F149,-(RIGHT($E160,1)),0,RIGHT($E160,1)+1,1)),\"ERROR\"))))","v":0},{"$f":"IF(G$29<STANDARD_YEAR,G149,\nIF(RIGHT($E160,1)>RIGHT(INDEX(STANDARD_LEVELS,1,MID($C145,4,1)),1),G149,\nIF(RIGHT($E160,1)<RIGHT(INDEX(STANDARD_LEVELS,1,MID($C145,4,1)),1),0,\nIF(RIGHT($E160,1)=RIGHT(INDEX(STANDARD_LEVELS,1,MID($C145,4,1)),1),SUM(OFFSET(G149,-(RIGHT($E160,1)),0,RIGHT($E160,1)+1,1)),\"ERROR\"))))","v":0},0,0,0,0,0,0,0,0,0,0,0,0,0,0,0,0,0,0,0,0,0,0,0,0,0,0,0,0,0,0,0,0,0,0,0,0,0,0,0,0,0,0,0,0,0,0,0,0,0,0,0,0]
[null,null,null,null,"EL1",{"$f":"IF(F$29<STANDARD_YEAR,F150,\nIF(RIGHT($E161,1)>RIGHT(INDEX(STANDARD_LEVELS,1,MID($C145,4,1)),1),F150,\nIF(RIGHT($E161,1)<RIGHT(INDEX(STANDARD_LEVELS,1,MID($C145,4,1)),1),0,\nIF(RIGHT($E161,1)=RIGHT(INDEX(STANDARD_LEVELS,1,MID($C145,4,1)),1),SUM(OFFSET(F150,-(RIGHT($E161,1)),0,RIGHT($E161,1)+1,1)),\"ERROR\"))))","v":0},{"$f":"IF(G$29<STANDARD_YEAR,G150,\nIF(RIGHT($E161,1)>RIGHT(INDEX(STANDARD_LEVELS,1,MID($C145,4,1)),1),G150,\nIF(RIGHT($E161,1)<RIGHT(INDEX(STANDARD_LEVELS,1,MID($C145,4,1)),1),0,\nIF(RIGHT($E161,1)=RIGHT(INDEX(STANDARD_LEVELS,1,MID($C145,4,1)),1),SUM(OFFSET(G150,-(RIGHT($E161,1)),0,RIGHT($E161,1)+1,1)),\"ERROR\"))))","v":0},0,0,0,0,0,0,0,0,0,0,0,0,0,0,0,0,0,0,0,0,0,0,0,0,0,0,0,0,0,0,0,0,0,0,0,0,0,0,0,0,0,0,0,0,0,0,0,0,0,0,0,0]
[null,null,null,null,"EL2",{"$f":"IF(F$29<STANDARD_YEAR,F151,\nIF(RIGHT($E162,1)>RIGHT(INDEX(STANDARD_LEVELS,1,MID($C145,4,1)),1),F151,\nIF(RIGHT($E162,1)<RIGHT(INDEX(STANDARD_LEVELS,1,MID($C145,4,1)),1),0,\nIF(RIGHT($E162,1)=RIGHT(INDEX(STANDARD_LEVELS,1,MID($C145,4,1)),1),SUM(OFFSET(F151,-(RIGHT($E162,1)),0,RIGHT($E162,1)+1,1)),\"ERROR\"))))","v":0},{"$f":"IF(G$29<STANDARD_YEAR,G151,\nIF(RIGHT($E162,1)>RIGHT(INDEX(STANDARD_LEVELS,1,MID($C145,4,1)),1),G151,\nIF(RIGHT($E162,1)<RIGHT(INDEX(STANDARD_LEVELS,1,MID($C145,4,1)),1),0,\nIF(RIGHT($E162,1)=RIGHT(INDEX(STANDARD_LEVELS,1,MID($C145,4,1)),1),SUM(OFFSET(G151,-(RIGHT($E162,1)),0,RIGHT($E162,1)+1,1)),\"ERROR\"))))","v":0},0,0,0,0,0,0,0,0,0,0,0,0,0,0,0,0,0,0,0,0,0,0,0,0,0,0,0,0,0,0,0,0,0,0,0,0,0,0,0,0,0,0,0,0,0,0,0,0,0,0,0,0]
[null,null,null,null,"EL3",{"$f":"IF(F$29<STANDARD_YEAR,F152,\nIF(RIGHT($E163,1)>RIGHT(INDEX(STANDARD_LEVELS,1,MID($C145,4,1)),1),F152,\nIF(RIGHT($E163,1)<RIGHT(INDEX(STANDARD_LEVELS,1,MID($C145,4,1)),1),0,\nIF(RIGHT($E163,1)=RIGHT(INDEX(STANDARD_LEVELS,1,MID($C145,4,1)),1),SUM(OFFSET(F152,-(RIGHT($E163,1)),0,RIGHT($E163,1)+1,1)),\"ERROR\"))))","v":0},{"$f":"IF(G$29<STANDARD_YEAR,G152,\nIF(RIGHT($E163,1)>RIGHT(INDEX(STANDARD_LEVELS,1,MID($C145,4,1)),1),G152,\nIF(RIGHT($E163,1)<RIGHT(INDEX(STANDARD_LEVELS,1,MID($C145,4,1)),1),0,\nIF(RIGHT($E163,1)=RIGHT(INDEX(STANDARD_LEVELS,1,MID($C145,4,1)),1),SUM(OFFSET(G152,-(RIGHT($E163,1)),0,RIGHT($E163,1)+1,1)),\"ERROR\"))))","v":0},0,0,0,0,0,0,0,0,0,0,0,0,0,0,0,0,0,0,0,0,0,0,0,0,0,0,0,0,0,0,0,0,0,0,0,0,0,0,0,0,0,0,0,0,0,0,0,0,0,0,0,0]
[null,null,null,null,"EL4",{"$f":"IF(F$29<STANDARD_YEAR,F153,\nIF(RIGHT($E164,1)>RIGHT(INDEX(STANDARD_LEVELS,1,MID($C145,4,1)),1),F153,\nIF(RIGHT($E164,1)<RIGHT(INDEX(STANDARD_LEVELS,1,MID($C145,4,1)),1),0,\nIF(RIGHT($E164,1)=RIGHT(INDEX(STANDARD_LEVELS,1,MID($C145,4,1)),1),SUM(OFFSET(F153,-(RIGHT($E164,1)),0,RIGHT($E164,1)+1,1)),\"ERROR\"))))","v":0},{"$f":"IF(G$29<STANDARD_YEAR,G153,\nIF(RIGHT($E164,1)>RIGHT(INDEX(STANDARD_LEVELS,1,MID($C145,4,1)),1),G153,\nIF(RIGHT($E164,1)<RIGHT(INDEX(STANDARD_LEVELS,1,MID($C145,4,1)),1),0,\nIF(RIGHT($E164,1)=RIGHT(INDEX(STANDARD_LEVELS,1,MID($C145,4,1)),1),SUM(OFFSET(G153,-(RIGHT($E164,1)),0,RIGHT($E164,1)+1,1)),\"ERROR\"))))","v":0},0,0,0,0,0,0,0,0,0,0,0,0,0,0,0,0,0,0,0,0,0,0,0,0,0,0,0,0,0,0,0,0,0,0,0,0,0,0,0,0,0,0,0,0,0,0,0,0,0,0,0,0]
[null,null,null,null,"EL5",{"$f":"IF(F$29<STANDARD_YEAR,F154,\nIF(RIGHT($E165,1)>RIGHT(INDEX(STANDARD_LEVELS,1,MID($C145,4,1)),1),F154,\nIF(RIGHT($E165,1)<RIGHT(INDEX(STANDARD_LEVELS,1,MID($C145,4,1)),1),0,\nIF(RIGHT($E165,1)=RIGHT(INDEX(STANDARD_LEVELS,1,MID($C145,4,1)),1),SUM(OFFSET(F154,-(RIGHT($E165,1)),0,RIGHT($E165,1)+1,1)),\"ERROR\"))))","v":0},{"$f":"IF(G$29<STANDARD_YEAR,G154,\nIF(RIGHT($E165,1)>RIGHT(INDEX(STANDARD_LEVELS,1,MID($C145,4,1)),1),G154,\nIF(RIGHT($E165,1)<RIGHT(INDEX(STANDARD_LEVELS,1,MID($C145,4,1)),1),0,\nIF(RIGHT($E165,1)=RIGHT(INDEX(STANDARD_LEVELS,1,MID($C145,4,1)),1),SUM(OFFSET(G154,-(RIGHT($E165,1)),0,RIGHT($E165,1)+1,1)),\"ERROR\"))))","v":0},0,0,0,0,0,0,0,0,0,0,0,0,0,0,0,0,0,0,0,0,0,0,0,0,0,0,0,0,0,0,0,0,0,0,0,0,0,0,0,0,0,0,0,0,0,0,0,0,0,0,0,0]
[null,null,null,null,"EL6",{"$f":"IF(F$29<STANDARD_YEAR,F155,\nIF(RIGHT($E166,1)>RIGHT(INDEX(STANDARD_LEVELS,1,MID($C145,4,1)),1),F155,\nIF(RIGHT($E166,1)<RIGHT(INDEX(STANDARD_LEVELS,1,MID($C145,4,1)),1),0,\nIF(RIGHT($E166,1)=RIGHT(INDEX(STANDARD_LEVELS,1,MID($C145,4,1)),1),SUM(OFFSET(F155,-(RIGHT($E166,1)),0,RIGHT($E166,1)+1,1)),\"ERROR\"))))","v":0},{"$f":"IF(G$29<STANDARD_YEAR,G155,\nIF(RIGHT($E166,1)>RIGHT(INDEX(STANDARD_LEVELS,1,MID($C145,4,1)),1),G155,\nIF(RIGHT($E166,1)<RIGHT(INDEX(STANDARD_LEVELS,1,MID($C145,4,1)),1),0,\nIF(RIGHT($E166,1)=RIGHT(INDEX(STANDARD_LEVELS,1,MID($C145,4,1)),1),SUM(OFFSET(G155,-(RIGHT($E166,1)),0,RIGHT($E166,1)+1,1)),\"ERROR\"))))","v":0},0,0,0,0,0,0,0,0,0,0,0,0,0,0,0,0,0,0,0,0,0,0,0,0,0,0,0,0,0,0,0,0,0,0,0,0,0,0,0,0,0,0,0,0,0,0,0,0,0,0,0,0]
[null,null,null,null,"TOTAL",{"$f":"SUM(F160:F166)","v":0},{"$f":"SUM(G160:G166)","v":0},0,0,0,0,0,0,0,0,0,0,0,0,0,0,0,0,0,0,0,0,0,0,0,0,0,0,0,0,0,0,0,0,0,0,0,0,0,0,0,0,0,0,0,0,0,0,0,0,0,0,0,0]
[]
[]
[]
[null,null,"PC 7",{"$f":"OFFSET('Product Classes'!$C$9,MATCH(C171,MODEL_PCS,0),0)","v":"Mobile Home Non-Weatherized, Condensing Gas Furnace Fan (MH-NWG-C)"}]
[]
[null,null,null,"PRE-Case"]
[null,null,null,null,"Efficiency Level",1981,{"$f":"F174+1","v":1982},{"$f":"G174+1","v":1983},1984,1985,{"$f":"J174+1","v":1986},1987,1988,1989,1990,1991,1992,1993,1994,1995,1996,1997,1998,1999,2000,2001,2002,2003,2004,2005,2006,2007,2008,2009,2010,2011,2012,2013,2014,2015,2016,2017,2018,2019,2020,2021,2022,2023,2024,2025,2026,2027,2028,2029,2030,2031,2032,2033,2034]
[null,null,null,null,"EL0",{"$f":"IF(INDEX(PC_MAPPING,RIGHT($C171,1),MATCH($E$2,'Data by Building Type'!$D$22:$F$22,0))=\"Yes\",1,0)*\n(F$10*OFFSET('Efficiency Distributions'!$D$10,MATCH($C171,'Efficiency Distributions'!$C$9:$C$87,0)+RIGHT($E175),0)\n+F$11*OFFSET('Efficiency Distributions'!$E$10,MATCH($C171,'Efficiency Distributions'!$C$9:$C$87,0)+RIGHT($E175),0))\n/SUM(F$10:F$11)","v":0},{"$f":"IF(INDEX(PC_MAPPING,RIGHT($C171,1),MATCH($E$2,'Data by Building Type'!$D$22:$F$22,0))=\"Yes\",1,0)*\n(G$10*OFFSET('Efficiency Distributions'!$D$10,MATCH($C171,'Efficiency Distributions'!$C$9:$C$87,0)+RIGHT($E175),0)\n+G$11*OFFSET('Efficiency Distributions'!$E$10,MATCH($C171,'Efficiency Distributions'!$C$9:$C$87,0)+RIGHT($E175),0))\n/SUM(G$10:G$11)","v":0},{"$f":"IF(INDEX(PC_MAPPING,RIGHT($C171,1),MATCH($E$2,'Data by Building Type'!$D$22:$F$22,0))=\"Yes\",1,0)*\n(H$10*OFFSET('Efficiency Distributions'!$D$10,MATCH($C171,'Efficiency Distributions'!$C$9:$C$87,0)+RIGHT($E175),0)\n+H$11*OFFSET('Efficiency Distributions'!$E$10,MATCH($C171,'Efficiency Distributions'!$C$9:$C$87,0)+RIGHT($E175),0))\n/SUM(H$10:H$11)","v":0},{"$f":"IF(INDEX(PC_MAPPING,RIGHT($C171,1),MATCH($E$2,'Data by Building Type'!$D$22:$F$22,0))=\"Yes\",1,0)*\n(I$10*OFFSET('Efficiency Distributions'!$D$10,MATCH($C171,'Efficiency Distributions'!$C$9:$C$87,0)+RIGHT($E175),0)\n+I$11*OFFSET('Efficiency Distributions'!$E$10,MATCH($C171,'Efficiency Distributions'!$C$9:$C$87,0)+RIGHT($E175),0))\n/SUM(I$10:I$11)","v":0},{"$f":"IF(INDEX(PC_MAPPING,RIGHT($C171,1),MATCH($E$2,'Data by Building Type'!$D$22:$F$22,0))=\"Yes\",1,0)*\n(J$10*OFFSET('Efficiency Distributions'!$D$10,MATCH($C171,'Efficiency Distributions'!$C$9:$C$87,0)+RIGHT($E175),0)\n+J$11*OFFSET('Efficiency Distributions'!$E$10,MATCH($C171,'Efficiency Distributions'!$C$9:$C$87,0)+RIGHT($E175),0))\n/SUM(J$10:J$11)","v":0},{"$f":"IF(INDEX(PC_MAPPING,RIGHT($C171,1),MATCH($E$2,'Data by Building Type'!$D$22:$F$22,0))=\"Yes\",1,0)*\n(K$10*OFFSET('Efficiency Distributions'!$D$10,MATCH($C171,'Efficiency Distributions'!$C$9:$C$87,0)+RIGHT($E175),0)\n+K$11*OFFSET('Efficiency Distributions'!$E$10,MATCH($C171,'Efficiency Distributions'!$C$9:$C$87,0)+RIGHT($E175),0))\n/SUM(K$10:K$11)","v":0},{"$f":"IF(INDEX(PC_MAPPING,RIGHT($C171,1),MATCH($E$2,'Data by Building Type'!$D$22:$F$22,0))=\"Yes\",1,0)*\n(L$10*OFFSET('Efficiency Distributions'!$D$10,MATCH($C171,'Efficiency Distributions'!$C$9:$C$87,0)+RIGHT($E175),0)\n+L$11*OFFSET('Efficiency Distributions'!$E$10,MATCH($C171,'Efficiency Distributions'!$C$9:$C$87,0)+RIGHT($E175),0))\n/SUM(L$10:L$11)","v":0},{"$f":"IF(INDEX(PC_MAPPING,RIGHT($C171,1),MATCH($E$2,'Data by Building Type'!$D$22:$F$22,0))=\"Yes\",1,0)*\n(M$10*OFFSET('Efficiency Distributions'!$D$10,MATCH($C171,'Efficiency Distributions'!$C$9:$C$87,0)+RIGHT($E175),0)\n+M$11*OFFSET('Efficiency Distributions'!$E$10,MATCH($C171,'Efficiency Distributions'!$C$9:$C$87,0)+RIGHT($E175),0))\n/SUM(M$10:M$11)","v":0},{"$f":"IF(INDEX(PC_MAPPING,RIGHT($C171,1),MATCH($E$2,'Data by Building Type'!$D$22:$F$22,0))=\"Yes\",1,0)*\n(N$10*OFFSET('Efficiency Distributions'!$D$10,MATCH($C171,'Efficiency Distributions'!$C$9:$C$87,0)+RIGHT($E175),0)\n+N$11*OFFSET('Efficiency Distributions'!$E$10,MATCH($C171,'Efficiency Distributions'!$C$9:$C$87,0)+RIGHT($E175),0))\n/SUM(N$10:N$11)","v":0},{"$f":"IF(INDEX(PC_MAPPING,RIGHT($C171,1),MATCH($E$2,'Data by Building Type'!$D$22:$F$22,0))=\"Yes\",1,0)*\n(O$10*OFFSET('Efficiency Distributions'!$D$10,MATCH($C171,'Efficiency Distributions'!$C$9:$C$87,0)+RIGHT($E175),0)\n+O$11*OFFSET('Efficiency Distributions'!$E$10,MATCH($C171,'Efficiency Distributions'!$C$9:$C$87,0)+RIGHT($E175),0))\n/SUM(O$10:O$11)","v":0},{"$f":"IF(INDEX(PC_MAPPING,RIGHT($C171,1),MATCH($E$2,'Data by Building Type'!$D$22:$F$22,0))=\"Yes\",1,0)*\n(P$10*OFFSET('Efficiency Distributions'!$D$10,MATCH($C171,'Efficiency Distributions'!$C$9:$C$87,0)+RIGHT($E175),0)\n+P$11*OFFSET('Efficiency Distributions'!$E$10,MATCH($C171,'Efficiency Distributions'!$C$9:$C$87,0)+RIGHT($E175),0))\n/SUM(P$10:P$11)","v":0},{"$f":"IF(INDEX(PC_MAPPING,RIGHT($C171,1),MATCH($E$2,'Data by Building Type'!$D$22:$F$22,0))=\"Yes\",1,0)*\n(Q$10*OFFSET('Efficiency Distributions'!$D$10,MATCH($C171,'Efficiency Distributions'!$C$9:$C$87,0)+RIGHT($E175),0)\n+Q$11*OFFSET('Efficiency Distributions'!$E$10,MATCH($C171,'Efficiency Distributions'!$C$9:$C$87,0)+RIGHT($E175),0))\n/SUM(Q$10:Q$11)","v":0},{"$f":"IF(INDEX(PC_MAPPING,RIGHT($C171,1),MATCH($E$2,'Data by Building Type'!$D$22:$F$22,0))=\"Yes\",1,0)*\n(R$10*OFFSET('Efficiency Distributions'!$D$10,MATCH($C171,'Efficiency Distributions'!$C$9:$C$87,0)+RIGHT($E175),0)\n+R$11*OFFSET('Efficiency Distributions'!$E$10,MATCH($C171,'Efficiency Distributions'!$C$9:$C$87,0)+RIGHT($E175),0))\n/SUM(R$10:R$11)","v":0},{"$f":"IF(INDEX(PC_MAPPING,RIGHT($C171,1),MATCH($E$2,'Data by Building Type'!$D$22:$F$22,0))=\"Yes\",1,0)*\n(S$10*OFFSET('Efficiency Distributions'!$D$10,MATCH($C171,'Efficiency Distributions'!$C$9:$C$87,0)+RIGHT($E175),0)\n+S$11*OFFSET('Efficiency Distributions'!$E$10,MATCH($C171,'Efficiency Distributions'!$C$9:$C$87,0)+RIGHT($E175),0))\n/SUM(S$10:S$11)","v":0},{"$f":"IF(INDEX(PC_MAPPING,RIGHT($C171,1),MATCH($E$2,'Data by Building Type'!$D$22:$F$22,0))=\"Yes\",1,0)*\n(T$10*OFFSET('Efficiency Distributions'!$D$10,MATCH($C171,'Efficiency Distributions'!$C$9:$C$87,0)+RIGHT($E175),0)\n+T$11*OFFSET('Efficiency Distributions'!$E$10,MATCH($C171,'Efficiency Distributions'!$C$9:$C$87,0)+RIGHT($E175),0))\n/SUM(T$10:T$11)","v":0},{"$f":"IF(INDEX(PC_MAPPING,RIGHT($C171,1),MATCH($E$2,'Data by Building Type'!$D$22:$F$22,0))=\"Yes\",1,0)*\n(U$10*OFFSET('Efficiency Distributions'!$D$10,MATCH($C171,'Efficiency Distributions'!$C$9:$C$87,0)+RIGHT($E175),0)\n+U$11*OFFSET('Efficiency Distributions'!$E$10,MATCH($C171,'Efficiency Distributions'!$C$9:$C$87,0)+RIGHT($E175),0))\n/SUM(U$10:U$11)","v":0},{"$f":"IF(INDEX(PC_MAPPING,RIGHT($C171,1),MATCH($E$2,'Data by Building Type'!$D$22:$F$22,0))=\"Yes\",1,0)*\n(V$10*OFFSET('Efficiency Distributions'!$D$10,MATCH($C171,'Efficiency Distributions'!$C$9:$C$87,0)+RIGHT($E175),0)\n+V$11*OFFSET('Efficiency Distributions'!$E$10,MATCH($C171,'Efficiency Distributions'!$C$9:$C$87,0)+RIGHT($E175),0))\n/SUM(V$10:V$11)","v":0},{"$f":"IF(INDEX(PC_MAPPING,RIGHT($C171,1),MATCH($E$2,'Data by Building Type'!$D$22:$F$22,0))=\"Yes\",1,0)*\n(W$10*OFFSET('Efficiency Distributions'!$D$10,MATCH($C171,'Efficiency Distributions'!$C$9:$C$87,0)+RIGHT($E175),0)\n+W$11*OFFSET('Efficiency Distributions'!$E$10,MATCH($C171,'Efficiency Distributions'!$C$9:$C$87,0)+RIGHT($E175),0))\n/SUM(W$10:W$11)","v":0},{"$f":"IF(INDEX(PC_MAPPING,RIGHT($C171,1),MATCH($E$2,'Data by Building Type'!$D$22:$F$22,0))=\"Yes\",1,0)*\n(X$10*OFFSET('Efficiency Distributions'!$D$10,MATCH($C171,'Efficiency Distributions'!$C$9:$C$87,0)+RIGHT($E175),0)\n+X$11*OFFSET('Efficiency Distributions'!$E$10,MATCH($C171,'Efficiency Distributions'!$C$9:$C$87,0)+RIGHT($E175),0))\n/SUM(X$10:X$11)","v":0},{"$f":"IF(INDEX(PC_MAPPING,RIGHT($C171,1),MATCH($E$2,'Data by Building Type'!$D$22:$F$22,0))=\"Yes\",1,0)*\n(Y$10*OFFSET('Efficiency Distributions'!$D$10,MATCH($C171,'Efficiency Distributions'!$C$9:$C$87,0)+RIGHT($E175),0)\n+Y$11*OFFSET('Efficiency Distributions'!$E$10,MATCH($C171,'Efficiency Distributions'!$C$9:$C$87,0)+RIGHT($E175),0))\n/SUM(Y$10:Y$11)","v":0},{"$f":"IF(INDEX(PC_MAPPING,RIGHT($C171,1),MATCH($E$2,'Data by Building Type'!$D$22:$F$22,0))=\"Yes\",1,0)*\n(Z$10*OFFSET('Efficiency Distributions'!$D$10,MATCH($C171,'Efficiency Distributions'!$C$9:$C$87,0)+RIGHT($E175),0)\n+Z$11*OFFSET('Efficiency Distributions'!$E$10,MATCH($C171,'Efficiency Distributions'!$C$9:$C$87,0)+RIGHT($E175),0))\n/SUM(Z$10:Z$11)","v":0},{"$f":"IF(INDEX(PC_MAPPING,RIGHT($C171,1),MATCH($E$2,'Data by Building Type'!$D$22:$F$22,0))=\"Yes\",1,0)*\n(AA$10*OFFSET('Efficiency Distributions'!$D$10,MATCH($C171,'Efficiency Distributions'!$C$9:$C$87,0)+RIGHT($E175),0)\n+AA$11*OFFSET('Efficiency Distributions'!$E$10,MATCH($C171,'Efficiency Distributions'!$C$9:$C$87,0)+RIGHT($E175),0))\n/SUM(AA$10:AA$11)","v":0},{"$f":"IF(INDEX(PC_MAPPING,RIGHT($C171,1),MATCH($E$2,'Data by Building Type'!$D$22:$F$22,0))=\"Yes\",1,0)*\n(AB$10*OFFSET('Efficiency Distributions'!$D$10,MATCH($C171,'Efficiency Distributions'!$C$9:$C$87,0)+RIGHT($E175),0)\n+AB$11*OFFSET('Efficiency Distributions'!$E$10,MATCH($C171,'Efficiency Distributions'!$C$9:$C$87,0)+RIGHT($E175),0))\n/SUM(AB$10:AB$11)","v":0},{"$f":"IF(INDEX(PC_MAPPING,RIGHT($C171,1),MATCH($E$2,'Data by Building Type'!$D$22:$F$22,0))=\"Yes\",1,0)*\n(AC$10*OFFSET('Efficiency Distributions'!$D$10,MATCH($C171,'Efficiency Distributions'!$C$9:$C$87,0)+RIGHT($E175),0)\n+AC$11*OFFSET('Efficiency Distributions'!$E$10,MATCH($C171,'Efficiency Distributions'!$C$9:$C$87,0)+RIGHT($E175),0))\n/SUM(AC$10:AC$11)","v":0},{"$f":"IF(INDEX(PC_MAPPING,RIGHT($C171,1),MATCH($E$2,'Data by Building Type'!$D$22:$F$22,0))=\"Yes\",1,0)*\n(AD$10*OFFSET('Efficiency Distributions'!$D$10,MATCH($C171,'Efficiency Distributions'!$C$9:$C$87,0)+RIGHT($E175),0)\n+AD$11*OFFSET('Efficiency Distributions'!$E$10,MATCH($C171,'Efficiency Distributions'!$C$9:$C$87,0)+RIGHT($E175),0))\n/SUM(AD$10:AD$11)","v":0},{"$f":"IF(INDEX(PC_MAPPING,RIGHT($C171,1),MATCH($E$2,'Data by Building Type'!$D$22:$F$22,0))=\"Yes\",1,0)*\n(AE$10*OFFSET('Efficiency Distributions'!$D$10,MATCH($C171,'Efficiency Distributions'!$C$9:$C$87,0)+RIGHT($E175),0)\n+AE$11*OFFSET('Efficiency Distributions'!$E$10,MATCH($C171,'Efficiency Distributions'!$C$9:$C$87,0)+RIGHT($E175),0))\n/SUM(AE$10:AE$11)","v":0},{"$f":"IF(INDEX(PC_MAPPING,RIGHT($C171,1),MATCH($E$2,'Data by Building Type'!$D$22:$F$22,0))=\"Yes\",1,0)*\n(AF$10*OFFSET('Efficiency Distributions'!$D$10,MATCH($C171,'Efficiency Distributions'!$C$9:$C$87,0)+RIGHT($E175),0)\n+AF$11*OFFSET('Efficiency Distributions'!$E$10,MATCH($C171,'Efficiency Distributions'!$C$9:$C$87,0)+RIGHT($E175),0))\n/SUM(AF$10:AF$11)","v":0},{"$f":"IF(INDEX(PC_MAPPING,RIGHT($C171,1),MATCH($E$2,'Data by Building Type'!$D$22:$F$22,0))=\"Yes\",1,0)*\n(AG$10*OFFSET('Efficiency Distributions'!$D$10,MATCH($C171,'Efficiency Distributions'!$C$9:$C$87,0)+RIGHT($E175),0)\n+AG$11*OFFSET('Efficiency Distributions'!$E$10,MATCH($C171,'Efficiency Distributions'!$C$9:$C$87,0)+RIGHT($E175),0))\n/SUM(AG$10:AG$11)","v":0},{"$f":"IF(INDEX(PC_MAPPING,RIGHT($C171,1),MATCH($E$2,'Data by Building Type'!$D$22:$F$22,0))=\"Yes\",1,0)*\n(AH$10*OFFSET('Efficiency Distributions'!$D$10,MATCH($C171,'Efficiency Distributions'!$C$9:$C$87,0)+RIGHT($E175),0)\n+AH$11*OFFSET('Efficiency Distributions'!$E$10,MATCH($C171,'Efficiency Distributions'!$C$9:$C$87,0)+RIGHT($E175),0))\n/SUM(AH$10:AH$11)","v":0},{"$f":"IF(INDEX(PC_MAPPING,RIGHT($C171,1),MATCH($E$2,'Data by Building Type'!$D$22:$F$22,0))=\"Yes\",1,0)*\n(AI$10*OFFSET('Efficiency Distributions'!$D$10,MATCH($C171,'Efficiency Distributions'!$C$9:$C$87,0)+RIGHT($E175),0)\n+AI$11*OFFSET('Efficiency Distributions'!$E$10,MATCH($C171,'Efficiency Distributions'!$C$9:$C$87,0)+RIGHT($E175),0))\n/SUM(AI$10:AI$11)","v":0},{"$f":"IF(INDEX(PC_MAPPING,RIGHT($C171,1),MATCH($E$2,'Data by Building Type'!$D$22:$F$22,0))=\"Yes\",1,0)*\n(AJ$10*OFFSET('Efficiency Distributions'!$D$10,MATCH($C171,'Efficiency Distributions'!$C$9:$C$87,0)+RIGHT($E175),0)\n+AJ$11*OFFSET('Efficiency Distributions'!$E$10,MATCH($C171,'Efficiency Distributions'!$C$9:$C$87,0)+RIGHT($E175),0))\n/SUM(AJ$10:AJ$11)","v":0},{"$f":"IF(INDEX(PC_MAPPING,RIGHT($C171,1),MATCH($E$2,'Data by Building Type'!$D$22:$F$22,0))=\"Yes\",1,0)*\n(AK$10*OFFSET('Efficiency Distributions'!$D$10,MATCH($C171,'Efficiency Distributions'!$C$9:$C$87,0)+RIGHT($E175),0)\n+AK$11*OFFSET('Efficiency Distributions'!$E$10,MATCH($C171,'Efficiency Distributions'!$C$9:$C$87,0)+RIGHT($E175),0))\n/SUM(AK$10:AK$11)","v":0},{"$f":"IF(INDEX(PC_MAPPING,RIGHT($C171,1),MATCH($E$2,'Data by Building Type'!$D$22:$F$22,0))=\"Yes\",1,0)*\n(AL$10*OFFSET('Efficiency Distributions'!$D$10,MATCH($C171,'Efficiency Distributions'!$C$9:$C$87,0)+RIGHT($E175),0)\n+AL$11*OFFSET('Efficiency Distributions'!$E$10,MATCH($C171,'Efficiency Distributions'!$C$9:$C$87,0)+RIGHT($E175),0))\n/SUM(AL$10:AL$11)","v":0},{"$f":"IF(INDEX(PC_MAPPING,RIGHT($C171,1),MATCH($E$2,'Data by Building Type'!$D$22:$F$22,0))=\"Yes\",1,0)*\n(AM$10*OFFSET('Efficiency Distributions'!$D$10,MATCH($C171,'Efficiency Distributions'!$C$9:$C$87,0)+RIGHT($E175),0)\n+AM$11*OFFSET('Efficiency Distributions'!$E$10,MATCH($C171,'Efficiency Distributions'!$C$9:$C$87,0)+RIGHT($E175),0))\n/SUM(AM$10:AM$11)","v":0},{"$f":"IF(INDEX(PC_MAPPING,RIGHT($C171,1),MATCH($E$2,'Data by Building Type'!$D$22:$F$22,0))=\"Yes\",1,0)*\n(AN$10*OFFSET('Efficiency Distributions'!$D$10,MATCH($C171,'Efficiency Distributions'!$C$9:$C$87,0)+RIGHT($E175),0)\n+AN$11*OFFSET('Efficiency Distributions'!$E$10,MATCH($C171,'Efficiency Distributions'!$C$9:$C$87,0)+RIGHT($E175),0))\n/SUM(AN$10:AN$11)","v":0},{"$f":"IF(INDEX(PC_MAPPING,RIGHT($C171,1),MATCH($E$2,'Data by Building Type'!$D$22:$F$22,0))=\"Yes\",1,0)*\n(AO$10*OFFSET('Efficiency Distributions'!$D$10,MATCH($C171,'Efficiency Distributions'!$C$9:$C$87,0)+RIGHT($E175),0)\n+AO$11*OFFSET('Efficiency Distributions'!$E$10,MATCH($C171,'Efficiency Distributions'!$C$9:$C$87,0)+RIGHT($E175),0))\n/SUM(AO$10:AO$11)","v":0},{"$f":"IF(INDEX(PC_MAPPING,RIGHT($C171,1),MATCH($E$2,'Data by Building Type'!$D$22:$F$22,0))=\"Yes\",1,0)*\n(AP$10*OFFSET('Efficiency Distributions'!$D$10,MATCH($C171,'Efficiency Distributions'!$C$9:$C$87,0)+RIGHT($E175),0)\n+AP$11*OFFSET('Efficiency Distributions'!$E$10,MATCH($C171,'Efficiency Distributions'!$C$9:$C$87,0)+RIGHT($E175),0))\n/SUM(AP$10:AP$11)","v":0},{"$f":"IF(INDEX(PC_MAPPING,RIGHT($C171,1),MATCH($E$2,'Data by Building Type'!$D$22:$F$22,0))=\"Yes\",1,0)*\n(AQ$10*OFFSET('Efficiency Distributions'!$D$10,MATCH($C171,'Efficiency Distributions'!$C$9:$C$87,0)+RIGHT($E175),0)\n+AQ$11*OFFSET('Efficiency Distributions'!$E$10,MATCH($C171,'Efficiency Distributions'!$C$9:$C$87,0)+RIGHT($E175),0))\n/SUM(AQ$10:AQ$11)","v":0},{"$f":"IF(INDEX(PC_MAPPING,RIGHT($C171,1),MATCH($E$2,'Data by Building Type'!$D$22:$F$22,0))=\"Yes\",1,0)*\n(AR$10*OFFSET('Efficiency Distributions'!$D$10,MATCH($C171,'Efficiency Distributions'!$C$9:$C$87,0)+RIGHT($E175),0)\n+AR$11*OFFSET('Efficiency Distributions'!$E$10,MATCH($C171,'Efficiency Distributions'!$C$9:$C$87,0)+RIGHT($E175),0))\n/SUM(AR$10:AR$11)","v":0},{"$f":"IF(INDEX(PC_MAPPING,RIGHT($C171,1),MATCH($E$2,'Data by Building Type'!$D$22:$F$22,0))=\"Yes\",1,0)*\n(AS$10*OFFSET('Efficiency Distributions'!$D$10,MATCH($C171,'Efficiency Distributions'!$C$9:$C$87,0)+RIGHT($E175),0)\n+AS$11*OFFSET('Efficiency Distributions'!$E$10,MATCH($C171,'Efficiency Distributions'!$C$9:$C$87,0)+RIGHT($E175),0))\n/SUM(AS$10:AS$11)","v":0},{"$f":"IF(INDEX(PC_MAPPING,RIGHT($C171,1),MATCH($E$2,'Data by Building Type'!$D$22:$F$22,0))=\"Yes\",1,0)*\n(AT$10*OFFSET('Efficiency Distributions'!$D$10,MATCH($C171,'Efficiency Distributions'!$C$9:$C$87,0)+RIGHT($E175),0)\n+AT$11*OFFSET('Efficiency Distributions'!$E$10,MATCH($C171,'Efficiency Distributions'!$C$9:$C$87,0)+RIGHT($E175),0))\n/SUM(AT$10:AT$11)","v":0},{"$f":"IF(INDEX(PC_MAPPING,RIGHT($C171,1),MATCH($E$2,'Data by Building Type'!$D$22:$F$22,0))=\"Yes\",1,0)*\n(AU$10*OFFSET('Efficiency Distributions'!$D$10,MATCH($C171,'Efficiency Distributions'!$C$9:$C$87,0)+RIGHT($E175),0)\n+AU$11*OFFSET('Efficiency Distributions'!$E$10,MATCH($C171,'Efficiency Distributions'!$C$9:$C$87,0)+RIGHT($E175),0))\n/SUM(AU$10:AU$11)","v":0},{"$f":"IF(INDEX(PC_MAPPING,RIGHT($C171,1),MATCH($E$2,'Data by Building Type'!$D$22:$F$22,0))=\"Yes\",1,0)*\n(AV$10*OFFSET('Efficiency Distributions'!$D$10,MATCH($C171,'Efficiency Distributions'!$C$9:$C$87,0)+RIGHT($E175),0)\n+AV$11*OFFSET('Efficiency Distributions'!$E$10,MATCH($C171,'Efficiency Distributions'!$C$9:$C$87,0)+RIGHT($E175),0))\n/SUM(AV$10:AV$11)","v":0},{"$f":"IF(INDEX(PC_MAPPING,RIGHT($C171,1),MATCH($E$2,'Data by Building Type'!$D$22:$F$22,0))=\"Yes\",1,0)*\n(AW$10*OFFSET('Efficiency Distributions'!$D$10,MATCH($C171,'Efficiency Distributions'!$C$9:$C$87,0)+RIGHT($E175),0)\n+AW$11*OFFSET('Efficiency Distributions'!$E$10,MATCH($C171,'Efficiency Distributions'!$C$9:$C$87,0)+RIGHT($E175),0))\n/SUM(AW$10:AW$11)","v":0},{"$f":"IF(INDEX(PC_MAPPING,RIGHT($C171,1),MATCH($E$2,'Data by Building Type'!$D$22:$F$22,0))=\"Yes\",1,0)*\n(AX$10*OFFSET('Efficiency Distributions'!$D$10,MATCH($C171,'Efficiency Distributions'!$C$9:$C$87,0)+RIGHT($E175),0)\n+AX$11*OFFSET('Efficiency Distributions'!$E$10,MATCH($C171,'Efficiency Distributions'!$C$9:$C$87,0)+RIGHT($E175),0))\n/SUM(AX$10:AX$11)","v":0},{"$f":"IF(INDEX(PC_MAPPING,RIGHT($C171,1),MATCH($E$2,'Data by Building Type'!$D$22:$F$22,0))=\"Yes\",1,0)*\n(AY$10*OFFSET('Efficiency Distributions'!$D$10,MATCH($C171,'Efficiency Distributions'!$C$9:$C$87,0)+RIGHT($E175),0)\n+AY$11*OFFSET('Efficiency Distributions'!$E$10,MATCH($C171,'Efficiency Distributions'!$C$9:$C$87,0)+RIGHT($E175),0))\n/SUM(AY$10:AY$11)","v":0},{"$f":"IF(INDEX(PC_MAPPING,RIGHT($C171,1),MATCH($E$2,'Data by Building Type'!$D$22:$F$22,0))=\"Yes\",1,0)*\n(AZ$10*OFFSET('Efficiency Distributions'!$D$10,MATCH($C171,'Efficiency Distributions'!$C$9:$C$87,0)+RIGHT($E175),0)\n+AZ$11*OFFSET('Efficiency Distributions'!$E$10,MATCH($C171,'Efficiency Distributions'!$C$9:$C$87,0)+RIGHT($E175),0))\n/SUM(AZ$10:AZ$11)","v":0},{"$f":"IF(INDEX(PC_MAPPING,RIGHT($C171,1),MATCH($E$2,'Data by Building Type'!$D$22:$F$22,0))=\"Yes\",1,0)*\n(BA$10*OFFSET('Efficiency Distributions'!$D$10,MATCH($C171,'Efficiency Distributions'!$C$9:$C$87,0)+RIGHT($E175),0)\n+BA$11*OFFSET('Efficiency Distributions'!$E$10,MATCH($C171,'Efficiency Distributions'!$C$9:$C$87,0)+RIGHT($E175),0))\n/SUM(BA$10:BA$11)","v":0},{"$f":"IF(INDEX(PC_MAPPING,RIGHT($C171,1),MATCH($E$2,'Data by Building Type'!$D$22:$F$22,0))=\"Yes\",1,0)*\n(BB$10*OFFSET('Efficiency Distributions'!$D$10,MATCH($C171,'Efficiency Distributions'!$C$9:$C$87,0)+RIGHT($E175),0)\n+BB$11*OFFSET('Efficiency Distributions'!$E$10,MATCH($C171,'Efficiency Distributions'!$C$9:$C$87,0)+RIGHT($E175),0))\n/SUM(BB$10:BB$11)","v":0},{"$f":"IF(INDEX(PC_MAPPING,RIGHT($C171,1),MATCH($E$2,'Data by Building Type'!$D$22:$F$22,0))=\"Yes\",1,0)*\n(BC$10*OFFSET('Efficiency Distributions'!$D$10,MATCH($C171,'Efficiency Distributions'!$C$9:$C$87,0)+RIGHT($E175),0)\n+BC$11*OFFSET('Efficiency Distributions'!$E$10,MATCH($C171,'Efficiency Distributions'!$C$9:$C$87,0)+RIGHT($E175),0))\n/SUM(BC$10:BC$11)","v":0},{"$f":"IF(INDEX(PC_MAPPING,RIGHT($C171,1),MATCH($E$2,'Data by Building Type'!$D$22:$F$22,0))=\"Yes\",1,0)*\n(BD$10*OFFSET('Efficiency Distributions'!$D$10,MATCH($C171,'Efficiency Distributions'!$C$9:$C$87,0)+RIGHT($E175),0)\n+BD$11*OFFSET('Efficiency Distributions'!$E$10,MATCH($C171,'Efficiency Distributions'!$C$9:$C$87,0)+RIGHT($E175),0))\n/SUM(BD$10:BD$11)","v":0},{"$f":"IF(INDEX(PC_MAPPING,RIGHT($C171,1),MATCH($E$2,'Data by Building Type'!$D$22:$F$22,0))=\"Yes\",1,0)*\n(BE$10*OFFSET('Efficiency Distributions'!$D$10,MATCH($C171,'Efficiency Distributions'!$C$9:$C$87,0)+RIGHT($E175),0)\n+BE$11*OFFSET('Efficiency Distributions'!$E$10,MATCH($C171,'Efficiency Distributions'!$C$9:$C$87,0)+RIGHT($E175),0))\n/SUM(BE$10:BE$11)","v":0},{"$f":"IF(INDEX(PC_MAPPING,RIGHT($C171,1),MATCH($E$2,'Data by Building Type'!$D$22:$F$22,0))=\"Yes\",1,0)*\n(BF$10*OFFSET('Efficiency Distributions'!$D$10,MATCH($C171,'Efficiency Distributions'!$C$9:$C$87,0)+RIGHT($E175),0)\n+BF$11*OFFSET('Efficiency Distributions'!$E$10,MATCH($C171,'Efficiency Distributions'!$C$9:$C$87,0)+RIGHT($E175),0))\n/SUM(BF$10:BF$11)","v":0},{"$f":"IF(INDEX(PC_MAPPING,RIGHT($C171,1),MATCH($E$2,'Data by Building Type'!$D$22:$F$22,0))=\"Yes\",1,0)*\n(BG$10*OFFSET('Efficiency Distributions'!$D$10,MATCH($C171,'Efficiency Distributions'!$C$9:$C$87,0)+RIGHT($E175),0)\n+BG$11*OFFSET('Efficiency Distributions'!$E$10,MATCH($C171,'Efficiency Distributions'!$C$9:$C$87,0)+RIGHT($E175),0))\n/SUM(BG$10:BG$11)","v":0}]
[null,null,null,null,"EL1",{"$f":"IF(INDEX(PC_MAPPING,RIGHT($C171,1),MATCH($E$2,'Data by Building Type'!$D$22:$F$22,0))=\"Yes\",1,0)*\n(F$10*OFFSET('Efficiency Distributions'!$D$10,MATCH($C171,'Efficiency Distributions'!$C$9:$C$87,0)+RIGHT($E176),0)\n+F$11*OFFSET('Efficiency Distributions'!$E$10,MATCH($C171,'Efficiency Distributions'!$C$9:$C$87,0)+RIGHT($E176),0))\n/SUM(F$10:F$11)","v":0},{"$f":"IF(INDEX(PC_MAPPING,RIGHT($C171,1),MATCH($E$2,'Data by Building Type'!$D$22:$F$22,0))=\"Yes\",1,0)*\n(G$10*OFFSET('Efficiency Distributions'!$D$10,MATCH($C171,'Efficiency Distributions'!$C$9:$C$87,0)+RIGHT($E176),0)\n+G$11*OFFSET('Efficiency Distributions'!$E$10,MATCH($C171,'Efficiency Distributions'!$C$9:$C$87,0)+RIGHT($E176),0))\n/SUM(G$10:G$11)","v":0},{"$f":"IF(INDEX(PC_MAPPING,RIGHT($C171,1),MATCH($E$2,'Data by Building Type'!$D$22:$F$22,0))=\"Yes\",1,0)*\n(H$10*OFFSET('Efficiency Distributions'!$D$10,MATCH($C171,'Efficiency Distributions'!$C$9:$C$87,0)+RIGHT($E176),0)\n+H$11*OFFSET('Efficiency Distributions'!$E$10,MATCH($C171,'Efficiency Distributions'!$C$9:$C$87,0)+RIGHT($E176),0))\n/SUM(H$10:H$11)","v":0},{"$f":"IF(INDEX(PC_MAPPING,RIGHT($C171,1),MATCH($E$2,'Data by Building Type'!$D$22:$F$22,0))=\"Yes\",1,0)*\n(I$10*OFFSET('Efficiency Distributions'!$D$10,MATCH($C171,'Efficiency Distributions'!$C$9:$C$87,0)+RIGHT($E176),0)\n+I$11*OFFSET('Efficiency Distributions'!$E$10,MATCH($C171,'Efficiency Distributions'!$C$9:$C$87,0)+RIGHT($E176),0))\n/SUM(I$10:I$11)","v":0},{"$f":"IF(INDEX(PC_MAPPING,RIGHT($C171,1),MATCH($E$2,'Data by Building Type'!$D$22:$F$22,0))=\"Yes\",1,0)*\n(J$10*OFFSET('Efficiency Distributions'!$D$10,MATCH($C171,'Efficiency Distributions'!$C$9:$C$87,0)+RIGHT($E176),0)\n+J$11*OFFSET('Efficiency Distributions'!$E$10,MATCH($C171,'Efficiency Distributions'!$C$9:$C$87,0)+RIGHT($E176),0))\n/SUM(J$10:J$11)","v":0},{"$f":"IF(INDEX(PC_MAPPING,RIGHT($C171,1),MATCH($E$2,'Data by Building Type'!$D$22:$F$22,0))=\"Yes\",1,0)*\n(K$10*OFFSET('Efficiency Distributions'!$D$10,MATCH($C171,'Efficiency Distributions'!$C$9:$C$87,0)+RIGHT($E176),0)\n+K$11*OFFSET('Efficiency Distributions'!$E$10,MATCH($C171,'Efficiency Distributions'!$C$9:$C$87,0)+RIGHT($E176),0))\n/SUM(K$10:K$11)","v":0},{"$f":"IF(INDEX(PC_MAPPING,RIGHT($C171,1),MATCH($E$2,'Data by Building Type'!$D$22:$F$22,0))=\"Yes\",1,0)*\n(L$10*OFFSET('Efficiency Distributions'!$D$10,MATCH($C171,'Efficiency Distributions'!$C$9:$C$87,0)+RIGHT($E176),0)\n+L$11*OFFSET('Efficiency Distributions'!$E$10,MATCH($C171,'Efficiency Distributions'!$C$9:$C$87,0)+RIGHT($E176),0))\n/SUM(L$10:L$11)","v":0},{"$f":"IF(INDEX(PC_MAPPING,RIGHT($C171,1),MATCH($E$2,'Data by Building Type'!$D$22:$F$22,0))=\"Yes\",1,0)*\n(M$10*OFFSET('Efficiency Distributions'!$D$10,MATCH($C171,'Efficiency Distributions'!$C$9:$C$87,0)+RIGHT($E176),0)\n+M$11*OFFSET('Efficiency Distributions'!$E$10,MATCH($C171,'Efficiency Distributions'!$C$9:$C$87,0)+RIGHT($E176),0))\n/SUM(M$10:M$11)","v":0},{"$f":"IF(INDEX(PC_MAPPING,RIGHT($C171,1),MATCH($E$2,'Data by Building Type'!$D$22:$F$22,0))=\"Yes\",1,0)*\n(N$10*OFFSET('Efficiency Distributions'!$D$10,MATCH($C171,'Efficiency Distributions'!$C$9:$C$87,0)+RIGHT($E176),0)\n+N$11*OFFSET('Efficiency Distributions'!$E$10,MATCH($C171,'Efficiency Distributions'!$C$9:$C$87,0)+RIGHT($E176),0))\n/SUM(N$10:N$11)","v":0},{"$f":"IF(INDEX(PC_MAPPING,RIGHT($C171,1),MATCH($E$2,'Data by Building Type'!$D$22:$F$22,0))=\"Yes\",1,0)*\n(O$10*OFFSET('Efficiency Distributions'!$D$10,MATCH($C171,'Efficiency Distributions'!$C$9:$C$87,0)+RIGHT($E176),0)\n+O$11*OFFSET('Efficiency Distributions'!$E$10,MATCH($C171,'Efficiency Distributions'!$C$9:$C$87,0)+RIGHT($E176),0))\n/SUM(O$10:O$11)","v":0},{"$f":"IF(INDEX(PC_MAPPING,RIGHT($C171,1),MATCH($E$2,'Data by Building Type'!$D$22:$F$22,0))=\"Yes\",1,0)*\n(P$10*OFFSET('Efficiency Distributions'!$D$10,MATCH($C171,'Efficiency Distributions'!$C$9:$C$87,0)+RIGHT($E176),0)\n+P$11*OFFSET('Efficiency Distributions'!$E$10,MATCH($C171,'Efficiency Distributions'!$C$9:$C$87,0)+RIGHT($E176),0))\n/SUM(P$10:P$11)","v":0},{"$f":"IF(INDEX(PC_MAPPING,RIGHT($C171,1),MATCH($E$2,'Data by Building Type'!$D$22:$F$22,0))=\"Yes\",1,0)*\n(Q$10*OFFSET('Efficiency Distributions'!$D$10,MATCH($C171,'Efficiency Distributions'!$C$9:$C$87,0)+RIGHT($E176),0)\n+Q$11*OFFSET('Efficiency Distributions'!$E$10,MATCH($C171,'Efficiency Distributions'!$C$9:$C$87,0)+RIGHT($E176),0))\n/SUM(Q$10:Q$11)","v":0},{"$f":"IF(INDEX(PC_MAPPING,RIGHT($C171,1),MATCH($E$2,'Data by Building Type'!$D$22:$F$22,0))=\"Yes\",1,0)*\n(R$10*OFFSET('Efficiency Distributions'!$D$10,MATCH($C171,'Efficiency Distributions'!$C$9:$C$87,0)+RIGHT($E176),0)\n+R$11*OFFSET('Efficiency Distributions'!$E$10,MATCH($C171,'Efficiency Distributions'!$C$9:$C$87,0)+RIGHT($E176),0))\n/SUM(R$10:R$11)","v":0},{"$f":"IF(INDEX(PC_MAPPING,RIGHT($C171,1),MATCH($E$2,'Data by Building Type'!$D$22:$F$22,0))=\"Yes\",1,0)*\n(S$10*OFFSET('Efficiency Distributions'!$D$10,MATCH($C171,'Efficiency Distributions'!$C$9:$C$87,0)+RIGHT($E176),0)\n+S$11*OFFSET('Efficiency Distributions'!$E$10,MATCH($C171,'Efficiency Distributions'!$C$9:$C$87,0)+RIGHT($E176),0))\n/SUM(S$10:S$11)","v":0},{"$f":"IF(INDEX(PC_MAPPING,RIGHT($C171,1),MATCH($E$2,'Data by Building Type'!$D$22:$F$22,0))=\"Yes\",1,0)*\n(T$10*OFFSET('Efficiency Distributions'!$D$10,MATCH($C171,'Efficiency Distributions'!$C$9:$C$87,0)+RIGHT($E176),0)\n+T$11*OFFSET('Efficiency Distributions'!$E$10,MATCH($C171,'Efficiency Distributions'!$C$9:$C$87,0)+RIGHT($E176),0))\n/SUM(T$10:T$11)","v":0},{"$f":"IF(INDEX(PC_MAPPING,RIGHT($C171,1),MATCH($E$2,'Data by Building Type'!$D$22:$F$22,0))=\"Yes\",1,0)*\n(U$10*OFFSET('Efficiency Distributions'!$D$10,MATCH($C171,'Efficiency Distributions'!$C$9:$C$87,0)+RIGHT($E176),0)\n+U$11*OFFSET('Efficiency Distributions'!$E$10,MATCH($C171,'Efficiency Distributions'!$C$9:$C$87,0)+RIGHT($E176),0))\n/SUM(U$10:U$11)","v":0},{"$f":"IF(INDEX(PC_MAPPING,RIGHT($C171,1),MATCH($E$2,'Data by Building Type'!$D$22:$F$22,0))=\"Yes\",1,0)*\n(V$10*OFFSET('Efficiency Distributions'!$D$10,MATCH($C171,'Efficiency Distributions'!$C$9:$C$87,0)+RIGHT($E176),0)\n+V$11*OFFSET('Efficiency Distributions'!$E$10,MATCH($C171,'Efficiency Distributions'!$C$9:$C$87,0)+RIGHT($E176),0))\n/SUM(V$10:V$11)","v":0},{"$f":"IF(INDEX(PC_MAPPING,RIGHT($C171,1),MATCH($E$2,'Data by Building Type'!$D$22:$F$22,0))=\"Yes\",1,0)*\n(W$10*OFFSET('Efficiency Distributions'!$D$10,MATCH($C171,'Efficiency Distributions'!$C$9:$C$87,0)+RIGHT($E176),0)\n+W$11*OFFSET('Efficiency Distributions'!$E$10,MATCH($C171,'Efficiency Distributions'!$C$9:$C$87,0)+RIGHT($E176),0))\n/SUM(W$10:W$11)","v":0},{"$f":"IF(INDEX(PC_MAPPING,RIGHT($C171,1),MATCH($E$2,'Data by Building Type'!$D$22:$F$22,0))=\"Yes\",1,0)*\n(X$10*OFFSET('Efficiency Distributions'!$D$10,MATCH($C171,'Efficiency Distributions'!$C$9:$C$87,0)+RIGHT($E176),0)\n+X$11*OFFSET('Efficiency Distributions'!$E$10,MATCH($C171,'Efficiency Distributions'!$C$9:$C$87,0)+RIGHT($E176),0))\n/SUM(X$10:X$11)","v":0},{"$f":"IF(INDEX(PC_MAPPING,RIGHT($C171,1),MATCH($E$2,'Data by Building Type'!$D$22:$F$22,0))=\"Yes\",1,0)*\n(Y$10*OFFSET('Efficiency Distributions'!$D$10,MATCH($C171,'Efficiency Distributions'!$C$9:$C$87,0)+RIGHT($E176),0)\n+Y$11*OFFSET('Efficiency Distributions'!$E$10,MATCH($C171,'Efficiency Distributions'!$C$9:$C$87,0)+RIGHT($E176),0))\n/SUM(Y$10:Y$11)","v":0},{"$f":"IF(INDEX(PC_MAPPING,RIGHT($C171,1),MATCH($E$2,'Data by Building Type'!$D$22:$F$22,0))=\"Yes\",1,0)*\n(Z$10*OFFSET('Efficiency Distributions'!$D$10,MATCH($C171,'Efficiency Distributions'!$C$9:$C$87,0)+RIGHT($E176),0)\n+Z$11*OFFSET('Efficiency Distributions'!$E$10,MATCH($C171,'Efficiency Distributions'!$C$9:$C$87,0)+RIGHT($E176),0))\n/SUM(Z$10:Z$11)","v":0},{"$f":"IF(INDEX(PC_MAPPING,RIGHT($C171,1),MATCH($E$2,'Data by Building Type'!$D$22:$F$22,0))=\"Yes\",1,0)*\n(AA$10*OFFSET('Efficiency Distributions'!$D$10,MATCH($C171,'Efficiency Distributions'!$C$9:$C$87,0)+RIGHT($E176),0)\n+AA$11*OFFSET('Efficiency Distributions'!$E$10,MATCH($C171,'Efficiency Distributions'!$C$9:$C$87,0)+RIGHT($E176),0))\n/SUM(AA$10:AA$11)","v":0},{"$f":"IF(INDEX(PC_MAPPING,RIGHT($C171,1),MATCH($E$2,'Data by Building Type'!$D$22:$F$22,0))=\"Yes\",1,0)*\n(AB$10*OFFSET('Efficiency Distributions'!$D$10,MATCH($C171,'Efficiency Distributions'!$C$9:$C$87,0)+RIGHT($E176),0)\n+AB$11*OFFSET('Efficiency Distributions'!$E$10,MATCH($C171,'Efficiency Distributions'!$C$9:$C$87,0)+RIGHT($E176),0))\n/SUM(AB$10:AB$11)","v":0},{"$f":"IF(INDEX(PC_MAPPING,RIGHT($C171,1),MATCH($E$2,'Data by Building Type'!$D$22:$F$22,0))=\"Yes\",1,0)*\n(AC$10*OFFSET('Efficiency Distributions'!$D$10,MATCH($C171,'Efficiency Distributions'!$C$9:$C$87,0)+RIGHT($E176),0)\n+AC$11*OFFSET('Efficiency Distributions'!$E$10,MATCH($C171,'Efficiency Distributions'!$C$9:$C$87,0)+RIGHT($E176),0))\n/SUM(AC$10:AC$11)","v":0},{"$f":"IF(INDEX(PC_MAPPING,RIGHT($C171,1),MATCH($E$2,'Data by Building Type'!$D$22:$F$22,0))=\"Yes\",1,0)*\n(AD$10*OFFSET('Efficiency Distributions'!$D$10,MATCH($C171,'Efficiency Distributions'!$C$9:$C$87,0)+RIGHT($E176),0)\n+AD$11*OFFSET('Efficiency Distributions'!$E$10,MATCH($C171,'Efficiency Distributions'!$C$9:$C$87,0)+RIGHT($E176),0))\n/SUM(AD$10:AD$11)","v":0},{"$f":"IF(INDEX(PC_MAPPING,RIGHT($C171,1),MATCH($E$2,'Data by Building Type'!$D$22:$F$22,0))=\"Yes\",1,0)*\n(AE$10*OFFSET('Efficiency Distributions'!$D$10,MATCH($C171,'Efficiency Distributions'!$C$9:$C$87,0)+RIGHT($E176),0)\n+AE$11*OFFSET('Efficiency Distributions'!$E$10,MATCH($C171,'Efficiency Distributions'!$C$9:$C$87,0)+RIGHT($E176),0))\n/SUM(AE$10:AE$11)","v":0},{"$f":"IF(INDEX(PC_MAPPING,RIGHT($C171,1),MATCH($E$2,'Data by Building Type'!$D$22:$F$22,0))=\"Yes\",1,0)*\n(AF$10*OFFSET('Efficiency Distributions'!$D$10,MATCH($C171,'Efficiency Distributions'!$C$9:$C$87,0)+RIGHT($E176),0)\n+AF$11*OFFSET('Efficiency Distributions'!$E$10,MATCH($C171,'Efficiency Distributions'!$C$9:$C$87,0)+RIGHT($E176),0))\n/SUM(AF$10:AF$11)","v":0},{"$f":"IF(INDEX(PC_MAPPING,RIGHT($C171,1),MATCH($E$2,'Data by Building Type'!$D$22:$F$22,0))=\"Yes\",1,0)*\n(AG$10*OFFSET('Efficiency Distributions'!$D$10,MATCH($C171,'Efficiency Distributions'!$C$9:$C$87,0)+RIGHT($E176),0)\n+AG$11*OFFSET('Efficiency Distributions'!$E$10,MATCH($C171,'Efficiency Distributions'!$C$9:$C$87,0)+RIGHT($E176),0))\n/SUM(AG$10:AG$11)","v":0},{"$f":"IF(INDEX(PC_MAPPING,RIGHT($C171,1),MATCH($E$2,'Data by Building Type'!$D$22:$F$22,0))=\"Yes\",1,0)*\n(AH$10*OFFSET('Efficiency Distributions'!$D$10,MATCH($C171,'Efficiency Distributions'!$C$9:$C$87,0)+RIGHT($E176),0)\n+AH$11*OFFSET('Efficiency Distributions'!$E$10,MATCH($C171,'Efficiency Distributions'!$C$9:$C$87,0)+RIGHT($E176),0))\n/SUM(AH$10:AH$11)","v":0},{"$f":"IF(INDEX(PC_MAPPING,RIGHT($C171,1),MATCH($E$2,'Data by Building Type'!$D$22:$F$22,0))=\"Yes\",1,0)*\n(AI$10*OFFSET('Efficiency Distributions'!$D$10,MATCH($C171,'Efficiency Distributions'!$C$9:$C$87,0)+RIGHT($E176),0)\n+AI$11*OFFSET('Efficiency Distributions'!$E$10,MATCH($C171,'Efficiency Distributions'!$C$9:$C$87,0)+RIGHT($E176),0))\n/SUM(AI$10:AI$11)","v":0},{"$f":"IF(INDEX(PC_MAPPING,RIGHT($C171,1),MATCH($E$2,'Data by Building Type'!$D$22:$F$22,0))=\"Yes\",1,0)*\n(AJ$10*OFFSET('Efficiency Distributions'!$D$10,MATCH($C171,'Efficiency Distributions'!$C$9:$C$87,0)+RIGHT($E176),0)\n+AJ$11*OFFSET('Efficiency Distributions'!$E$10,MATCH($C171,'Efficiency Distributions'!$C$9:$C$87,0)+RIGHT($E176),0))\n/SUM(AJ$10:AJ$11)","v":0},{"$f":"IF(INDEX(PC_MAPPING,RIGHT($C171,1),MATCH($E$2,'Data by Building Type'!$D$22:$F$22,0))=\"Yes\",1,0)*\n(AK$10*OFFSET('Efficiency Distributions'!$D$10,MATCH($C171,'Efficiency Distributions'!$C$9:$C$87,0)+RIGHT($E176),0)\n+AK$11*OFFSET('Efficiency Distributions'!$E$10,MATCH($C171,'Efficiency Distributions'!$C$9:$C$87,0)+RIGHT($E176),0))\n/SUM(AK$10:AK$11)","v":0},{"$f":"IF(INDEX(PC_MAPPING,RIGHT($C171,1),MATCH($E$2,'Data by Building Type'!$D$22:$F$22,0))=\"Yes\",1,0)*\n(AL$10*OFFSET('Efficiency Distributions'!$D$10,MATCH($C171,'Efficiency Distributions'!$C$9:$C$87,0)+RIGHT($E176),0)\n+AL$11*OFFSET('Efficiency Distributions'!$E$10,MATCH($C171,'Efficiency Distributions'!$C$9:$C$87,0)+RIGHT($E176),0))\n/SUM(AL$10:AL$11)","v":0},{"$f":"IF(INDEX(PC_MAPPING,RIGHT($C171,1),MATCH($E$2,'Data by Building Type'!$D$22:$F$22,0))=\"Yes\",1,0)*\n(AM$10*OFFSET('Efficiency Distributions'!$D$10,MATCH($C171,'Efficiency Distributions'!$C$9:$C$87,0)+RIGHT($E176),0)\n+AM$11*OFFSET('Efficiency Distributions'!$E$10,MATCH($C171,'Efficiency Distributions'!$C$9:$C$87,0)+RIGHT($E176),0))\n/SUM(AM$10:AM$11)","v":0},{"$f":"IF(INDEX(PC_MAPPING,RIGHT($C171,1),MATCH($E$2,'Data by Building Type'!$D$22:$F$22,0))=\"Yes\",1,0)*\n(AN$10*OFFSET('Efficiency Distributions'!$D$10,MATCH($C171,'Efficiency Distributions'!$C$9:$C$87,0)+RIGHT($E176),0)\n+AN$11*OFFSET('Efficiency Distributions'!$E$10,MATCH($C171,'Efficiency Distributions'!$C$9:$C$87,0)+RIGHT($E176),0))\n/SUM(AN$10:AN$11)","v":0},{"$f":"IF(INDEX(PC_MAPPING,RIGHT($C171,1),MATCH($E$2,'Data by Building Type'!$D$22:$F$22,0))=\"Yes\",1,0)*\n(AO$10*OFFSET('Efficiency Distributions'!$D$10,MATCH($C171,'Efficiency Distributions'!$C$9:$C$87,0)+RIGHT($E176),0)\n+AO$11*OFFSET('Efficiency Distributions'!$E$10,MATCH($C171,'Efficiency Distributions'!$C$9:$C$87,0)+RIGHT($E176),0))\n/SUM(AO$10:AO$11)","v":0},{"$f":"IF(INDEX(PC_MAPPING,RIGHT($C171,1),MATCH($E$2,'Data by Building Type'!$D$22:$F$22,0))=\"Yes\",1,0)*\n(AP$10*OFFSET('Efficiency Distributions'!$D$10,MATCH($C171,'Efficiency Distributions'!$C$9:$C$87,0)+RIGHT($E176),0)\n+AP$11*OFFSET('Efficiency Distributions'!$E$10,MATCH($C171,'Efficiency Distributions'!$C$9:$C$87,0)+RIGHT($E176),0))\n/SUM(AP$10:AP$11)","v":0},{"$f":"IF(INDEX(PC_MAPPING,RIGHT($C171,1),MATCH($E$2,'Data by Building Type'!$D$22:$F$22,0))=\"Yes\",1,0)*\n(AQ$10*OFFSET('Efficiency Distributions'!$D$10,MATCH($C171,'Efficiency Distributions'!$C$9:$C$87,0)+RIGHT($E176),0)\n+AQ$11*OFFSET('Efficiency Distributions'!$E$10,MATCH($C171,'Efficiency Distributions'!$C$9:$C$87,0)+RIGHT($E176),0))\n/SUM(AQ$10:AQ$11)","v":0},{"$f":"IF(INDEX(PC_MAPPING,RIGHT($C171,1),MATCH($E$2,'Data by Building Type'!$D$22:$F$22,0))=\"Yes\",1,0)*\n(AR$10*OFFSET('Efficiency Distributions'!$D$10,MATCH($C171,'Efficiency Distributions'!$C$9:$C$87,0)+RIGHT($E176),0)\n+AR$11*OFFSET('Efficiency Distributions'!$E$10,MATCH($C171,'Efficiency Distributions'!$C$9:$C$87,0)+RIGHT($E176),0))\n/SUM(AR$10:AR$11)","v":0},{"$f":"IF(INDEX(PC_MAPPING,RIGHT($C171,1),MATCH($E$2,'Data by Building Type'!$D$22:$F$22,0))=\"Yes\",1,0)*\n(AS$10*OFFSET('Efficiency Distributions'!$D$10,MATCH($C171,'Efficiency Distributions'!$C$9:$C$87,0)+RIGHT($E176),0)\n+AS$11*OFFSET('Efficiency Distributions'!$E$10,MATCH($C171,'Efficiency Distributions'!$C$9:$C$87,0)+RIGHT($E176),0))\n/SUM(AS$10:AS$11)","v":0},{"$f":"IF(INDEX(PC_MAPPING,RIGHT($C171,1),MATCH($E$2,'Data by Building Type'!$D$22:$F$22,0))=\"Yes\",1,0)*\n(AT$10*OFFSET('Efficiency Distributions'!$D$10,MATCH($C171,'Efficiency Distributions'!$C$9:$C$87,0)+RIGHT($E176),0)\n+AT$11*OFFSET('Efficiency Distributions'!$E$10,MATCH($C171,'Efficiency Distributions'!$C$9:$C$87,0)+RIGHT($E176),0))\n/SUM(AT$10:AT$11)","v":0},{"$f":"IF(INDEX(PC_MAPPING,RIGHT($C171,1),MATCH($E$2,'Data by Building Type'!$D$22:$F$22,0))=\"Yes\",1,0)*\n(AU$10*OFFSET('Efficiency Distributions'!$D$10,MATCH($C171,'Efficiency Distributions'!$C$9:$C$87,0)+RIGHT($E176),0)\n+AU$11*OFFSET('Efficiency Distributions'!$E$10,MATCH($C171,'Efficiency Distributions'!$C$9:$C$87,0)+RIGHT($E176),0))\n/SUM(AU$10:AU$11)","v":0},{"$f":"IF(INDEX(PC_MAPPING,RIGHT($C171,1),MATCH($E$2,'Data by Building Type'!$D$22:$F$22,0))=\"Yes\",1,0)*\n(AV$10*OFFSET('Efficiency Distributions'!$D$10,MATCH($C171,'Efficiency Distributions'!$C$9:$C$87,0)+RIGHT($E176),0)\n+AV$11*OFFSET('Efficiency Distributions'!$E$10,MATCH($C171,'Efficiency Distributions'!$C$9:$C$87,0)+RIGHT($E176),0))\n/SUM(AV$10:AV$11)","v":0},{"$f":"IF(INDEX(PC_MAPPING,RIGHT($C171,1),MATCH($E$2,'Data by Building Type'!$D$22:$F$22,0))=\"Yes\",1,0)*\n(AW$10*OFFSET('Efficiency Distributions'!$D$10,MATCH($C171,'Efficiency Distributions'!$C$9:$C$87,0)+RIGHT($E176),0)\n+AW$11*OFFSET('Efficiency Distributions'!$E$10,MATCH($C171,'Efficiency Distributions'!$C$9:$C$87,0)+RIGHT($E176),0))\n/SUM(AW$10:AW$11)","v":0},{"$f":"IF(INDEX(PC_MAPPING,RIGHT($C171,1),MATCH($E$2,'Data by Building Type'!$D$22:$F$22,0))=\"Yes\",1,0)*\n(AX$10*OFFSET('Efficiency Distributions'!$D$10,MATCH($C171,'Efficiency Distributions'!$C$9:$C$87,0)+RIGHT($E176),0)\n+AX$11*OFFSET('Efficiency Distributions'!$E$10,MATCH($C171,'Efficiency Distributions'!$C$9:$C$87,0)+RIGHT($E176),0))\n/SUM(AX$10:AX$11)","v":0},{"$f":"IF(INDEX(PC_MAPPING,RIGHT($C171,1),MATCH($E$2,'Data by Building Type'!$D$22:$F$22,0))=\"Yes\",1,0)*\n(AY$10*OFFSET('Efficiency Distributions'!$D$10,MATCH($C171,'Efficiency Distributions'!$C$9:$C$87,0)+RIGHT($E176),0)\n+AY$11*OFFSET('Efficiency Distributions'!$E$10,MATCH($C171,'Efficiency Distributions'!$C$9:$C$87,0)+RIGHT($E176),0))\n/SUM(AY$10:AY$11)","v":0},{"$f":"IF(INDEX(PC_MAPPING,RIGHT($C171,1),MATCH($E$2,'Data by Building Type'!$D$22:$F$22,0))=\"Yes\",1,0)*\n(AZ$10*OFFSET('Efficiency Distributions'!$D$10,MATCH($C171,'Efficiency Distributions'!$C$9:$C$87,0)+RIGHT($E176),0)\n+AZ$11*OFFSET('Efficiency Distributions'!$E$10,MATCH($C171,'Efficiency Distributions'!$C$9:$C$87,0)+RIGHT($E176),0))\n/SUM(AZ$10:AZ$11)","v":0},{"$f":"IF(INDEX(PC_MAPPING,RIGHT($C171,1),MATCH($E$2,'Data by Building Type'!$D$22:$F$22,0))=\"Yes\",1,0)*\n(BA$10*OFFSET('Efficiency Distributions'!$D$10,MATCH($C171,'Efficiency Distributions'!$C$9:$C$87,0)+RIGHT($E176),0)\n+BA$11*OFFSET('Efficiency Distributions'!$E$10,MATCH($C171,'Efficiency Distributions'!$C$9:$C$87,0)+RIGHT($E176),0))\n/SUM(BA$10:BA$11)","v":0},{"$f":"IF(INDEX(PC_MAPPING,RIGHT($C171,1),MATCH($E$2,'Data by Building Type'!$D$22:$F$22,0))=\"Yes\",1,0)*\n(BB$10*OFFSET('Efficiency Distributions'!$D$10,MATCH($C171,'Efficiency Distributions'!$C$9:$C$87,0)+RIGHT($E176),0)\n+BB$11*OFFSET('Efficiency Distributions'!$E$10,MATCH($C171,'Efficiency Distributions'!$C$9:$C$87,0)+RIGHT($E176),0))\n/SUM(BB$10:BB$11)","v":0},{"$f":"IF(INDEX(PC_MAPPING,RIGHT($C171,1),MATCH($E$2,'Data by Building Type'!$D$22:$F$22,0))=\"Yes\",1,0)*\n(BC$10*OFFSET('Efficiency Distributions'!$D$10,MATCH($C171,'Efficiency Distributions'!$C$9:$C$87,0)+RIGHT($E176),0)\n+BC$11*OFFSET('Efficiency Distributions'!$E$10,MATCH($C171,'Efficiency Distributions'!$C$9:$C$87,0)+RIGHT($E176),0))\n/SUM(BC$10:BC$11)","v":0},{"$f":"IF(INDEX(PC_MAPPING,RIGHT($C171,1),MATCH($E$2,'Data by Building Type'!$D$22:$F$22,0))=\"Yes\",1,0)*\n(BD$10*OFFSET('Efficiency Distributions'!$D$10,MATCH($C171,'Efficiency Distributions'!$C$9:$C$87,0)+RIGHT($E176),0)\n+BD$11*OFFSET('Efficiency Distributions'!$E$10,MATCH($C171,'Efficiency Distributions'!$C$9:$C$87,0)+RIGHT($E176),0))\n/SUM(BD$10:BD$11)","v":0},{"$f":"IF(INDEX(PC_MAPPING,RIGHT($C171,1),MATCH($E$2,'Data by Building Type'!$D$22:$F$22,0))=\"Yes\",1,0)*\n(BE$10*OFFSET('Efficiency Distributions'!$D$10,MATCH($C171,'Efficiency Distributions'!$C$9:$C$87,0)+RIGHT($E176),0)\n+BE$11*OFFSET('Efficiency Distributions'!$E$10,MATCH($C171,'Efficiency Distributions'!$C$9:$C$87,0)+RIGHT($E176),0))\n/SUM(BE$10:BE$11)","v":0},{"$f":"IF(INDEX(PC_MAPPING,RIGHT($C171,1),MATCH($E$2,'Data by Building Type'!$D$22:$F$22,0))=\"Yes\",1,0)*\n(BF$10*OFFSET('Efficiency Distributions'!$D$10,MATCH($C171,'Efficiency Distributions'!$C$9:$C$87,0)+RIGHT($E176),0)\n+BF$11*OFFSET('Efficiency Distributions'!$E$10,MATCH($C171,'Efficiency Distributions'!$C$9:$C$87,0)+RIGHT($E176),0))\n/SUM(BF$10:BF$11)","v":0},{"$f":"IF(INDEX(PC_MAPPING,RIGHT($C171,1),MATCH($E$2,'Data by Building Type'!$D$22:$F$22,0))=\"Yes\",1,0)*\n(BG$10*OFFSET('Efficiency Distributions'!$D$10,MATCH($C171,'Efficiency Distributions'!$C$9:$C$87,0)+RIGHT($E176),0)\n+BG$11*OFFSET('Efficiency Distributions'!$E$10,MATCH($C171,'Efficiency Distributions'!$C$9:$C$87,0)+RIGHT($E176),0))\n/SUM(BG$10:BG$11)","v":0}]
[null,null,null,null,"EL2",{"$f":"IF(INDEX(PC_MAPPING,RIGHT($C171,1),MATCH($E$2,'Data by Building Type'!$D$22:$F$22,0))=\"Yes\",1,0)*\n(F$10*OFFSET('Efficiency Distributions'!$D$10,MATCH($C171,'Efficiency Distributions'!$C$9:$C$87,0)+RIGHT($E177),0)\n+F$11*OFFSET('Efficiency Distributions'!$E$10,MATCH($C171,'Efficiency Distributions'!$C$9:$C$87,0)+RIGHT($E177),0))\n/SUM(F$10:F$11)","v":0},{"$f":"IF(INDEX(PC_MAPPING,RIGHT($C171,1),MATCH($E$2,'Data by Building Type'!$D$22:$F$22,0))=\"Yes\",1,0)*\n(G$10*OFFSET('Efficiency Distributions'!$D$10,MATCH($C171,'Efficiency Distributions'!$C$9:$C$87,0)+RIGHT($E177),0)\n+G$11*OFFSET('Efficiency Distributions'!$E$10,MATCH($C171,'Efficiency Distributions'!$C$9:$C$87,0)+RIGHT($E177),0))\n/SUM(G$10:G$11)","v":0},{"$f":"IF(INDEX(PC_MAPPING,RIGHT($C171,1),MATCH($E$2,'Data by Building Type'!$D$22:$F$22,0))=\"Yes\",1,0)*\n(H$10*OFFSET('Efficiency Distributions'!$D$10,MATCH($C171,'Efficiency Distributions'!$C$9:$C$87,0)+RIGHT($E177),0)\n+H$11*OFFSET('Efficiency Distributions'!$E$10,MATCH($C171,'Efficiency Distributions'!$C$9:$C$87,0)+RIGHT($E177),0))\n/SUM(H$10:H$11)","v":0},{"$f":"IF(INDEX(PC_MAPPING,RIGHT($C171,1),MATCH($E$2,'Data by Building Type'!$D$22:$F$22,0))=\"Yes\",1,0)*\n(I$10*OFFSET('Efficiency Distributions'!$D$10,MATCH($C171,'Efficiency Distributions'!$C$9:$C$87,0)+RIGHT($E177),0)\n+I$11*OFFSET('Efficiency Distributions'!$E$10,MATCH($C171,'Efficiency Distributions'!$C$9:$C$87,0)+RIGHT($E177),0))\n/SUM(I$10:I$11)","v":0},{"$f":"IF(INDEX(PC_MAPPING,RIGHT($C171,1),MATCH($E$2,'Data by Building Type'!$D$22:$F$22,0))=\"Yes\",1,0)*\n(J$10*OFFSET('Efficiency Distributions'!$D$10,MATCH($C171,'Efficiency Distributions'!$C$9:$C$87,0)+RIGHT($E177),0)\n+J$11*OFFSET('Efficiency Distributions'!$E$10,MATCH($C171,'Efficiency Distributions'!$C$9:$C$87,0)+RIGHT($E177),0))\n/SUM(J$10:J$11)","v":0},{"$f":"IF(INDEX(PC_MAPPING,RIGHT($C171,1),MATCH($E$2,'Data by Building Type'!$D$22:$F$22,0))=\"Yes\",1,0)*\n(K$10*OFFSET('Efficiency Distributions'!$D$10,MATCH($C171,'Efficiency Distributions'!$C$9:$C$87,0)+RIGHT($E177),0)\n+K$11*OFFSET('Efficiency Distributions'!$E$10,MATCH($C171,'Efficiency Distributions'!$C$9:$C$87,0)+RIGHT($E177),0))\n/SUM(K$10:K$11)","v":0},{"$f":"IF(INDEX(PC_MAPPING,RIGHT($C171,1),MATCH($E$2,'Data by Building Type'!$D$22:$F$22,0))=\"Yes\",1,0)*\n(L$10*OFFSET('Efficiency Distributions'!$D$10,MATCH($C171,'Efficiency Distributions'!$C$9:$C$87,0)+RIGHT($E177),0)\n+L$11*OFFSET('Efficiency Distributions'!$E$10,MATCH($C171,'Efficiency Distributions'!$C$9:$C$87,0)+RIGHT($E177),0))\n/SUM(L$10:L$11)","v":0},{"$f":"IF(INDEX(PC_MAPPING,RIGHT($C171,1),MATCH($E$2,'Data by Building Type'!$D$22:$F$22,0))=\"Yes\",1,0)*\n(M$10*OFFSET('Efficiency Distributions'!$D$10,MATCH($C171,'Efficiency Distributions'!$C$9:$C$87,0)+RIGHT($E177),0)\n+M$11*OFFSET('Efficiency Distributions'!$E$10,MATCH($C171,'Efficiency Distributions'!$C$9:$C$87,0)+RIGHT($E177),0))\n/SUM(M$10:M$11)","v":0},{"$f":"IF(INDEX(PC_MAPPING,RIGHT($C171,1),MATCH($E$2,'Data by Building Type'!$D$22:$F$22,0))=\"Yes\",1,0)*\n(N$10*OFFSET('Efficiency Distributions'!$D$10,MATCH($C171,'Efficiency Distributions'!$C$9:$C$87,0)+RIGHT($E177),0)\n+N$11*OFFSET('Efficiency Distributions'!$E$10,MATCH($C171,'Efficiency Distributions'!$C$9:$C$87,0)+RIGHT($E177),0))\n/SUM(N$10:N$11)","v":0},{"$f":"IF(INDEX(PC_MAPPING,RIGHT($C171,1),MATCH($E$2,'Data by Building Type'!$D$22:$F$22,0))=\"Yes\",1,0)*\n(O$10*OFFSET('Efficiency Distributions'!$D$10,MATCH($C171,'Efficiency Distributions'!$C$9:$C$87,0)+RIGHT($E177),0)\n+O$11*OFFSET('Efficiency Distributions'!$E$10,MATCH($C171,'Efficiency Distributions'!$C$9:$C$87,0)+RIGHT($E177),0))\n/SUM(O$10:O$11)","v":0},{"$f":"IF(INDEX(PC_MAPPING,RIGHT($C171,1),MATCH($E$2,'Data by Building Type'!$D$22:$F$22,0))=\"Yes\",1,0)*\n(P$10*OFFSET('Efficiency Distributions'!$D$10,MATCH($C171,'Efficiency Distributions'!$C$9:$C$87,0)+RIGHT($E177),0)\n+P$11*OFFSET('Efficiency Distributions'!$E$10,MATCH($C171,'Efficiency Distributions'!$C$9:$C$87,0)+RIGHT($E177),0))\n/SUM(P$10:P$11)","v":0},{"$f":"IF(INDEX(PC_MAPPING,RIGHT($C171,1),MATCH($E$2,'Data by Building Type'!$D$22:$F$22,0))=\"Yes\",1,0)*\n(Q$10*OFFSET('Efficiency Distributions'!$D$10,MATCH($C171,'Efficiency Distributions'!$C$9:$C$87,0)+RIGHT($E177),0)\n+Q$11*OFFSET('Efficiency Distributions'!$E$10,MATCH($C171,'Efficiency Distributions'!$C$9:$C$87,0)+RIGHT($E177),0))\n/SUM(Q$10:Q$11)","v":0},{"$f":"IF(INDEX(PC_MAPPING,RIGHT($C171,1),MATCH($E$2,'Data by Building Type'!$D$22:$F$22,0))=\"Yes\",1,0)*\n(R$10*OFFSET('Efficiency Distributions'!$D$10,MATCH($C171,'Efficiency Distributions'!$C$9:$C$87,0)+RIGHT($E177),0)\n+R$11*OFFSET('Efficiency Distributions'!$E$10,MATCH($C171,'Efficiency Distributions'!$C$9:$C$87,0)+RIGHT($E177),0))\n/SUM(R$10:R$11)","v":0},{"$f":"IF(INDEX(PC_MAPPING,RIGHT($C171,1),MATCH($E$2,'Data by Building Type'!$D$22:$F$22,0))=\"Yes\",1,0)*\n(S$10*OFFSET('Efficiency Distributions'!$D$10,MATCH($C171,'Efficiency Distributions'!$C$9:$C$87,0)+RIGHT($E177),0)\n+S$11*OFFSET('Efficiency Distributions'!$E$10,MATCH($C171,'Efficiency Distributions'!$C$9:$C$87,0)+RIGHT($E177),0))\n/SUM(S$10:S$11)","v":0},{"$f":"IF(INDEX(PC_MAPPING,RIGHT($C171,1),MATCH($E$2,'Data by Building Type'!$D$22:$F$22,0))=\"Yes\",1,0)*\n(T$10*OFFSET('Efficiency Distributions'!$D$10,MATCH($C171,'Efficiency Distributions'!$C$9:$C$87,0)+RIGHT($E177),0)\n+T$11*OFFSET('Efficiency Distributions'!$E$10,MATCH($C171,'Efficiency Distributions'!$C$9:$C$87,0)+RIGHT($E177),0))\n/SUM(T$10:T$11)","v":0},{"$f":"IF(INDEX(PC_MAPPING,RIGHT($C171,1),MATCH($E$2,'Data by Building Type'!$D$22:$F$22,0))=\"Yes\",1,0)*\n(U$10*OFFSET('Efficiency Distributions'!$D$10,MATCH($C171,'Efficiency Distributions'!$C$9:$C$87,0)+RIGHT($E177),0)\n+U$11*OFFSET('Efficiency Distributions'!$E$10,MATCH($C171,'Efficiency Distributions'!$C$9:$C$87,0)+RIGHT($E177),0))\n/SUM(U$10:U$11)","v":0},{"$f":"IF(INDEX(PC_MAPPING,RIGHT($C171,1),MATCH($E$2,'Data by Building Type'!$D$22:$F$22,0))=\"Yes\",1,0)*\n(V$10*OFFSET('Efficiency Distributions'!$D$10,MATCH($C171,'Efficiency Distributions'!$C$9:$C$87,0)+RIGHT($E177),0)\n+V$11*OFFSET('Efficiency Distributions'!$E$10,MATCH($C171,'Efficiency Distributions'!$C$9:$C$87,0)+RIGHT($E177),0))\n/SUM(V$10:V$11)","v":0},{"$f":"IF(INDEX(PC_MAPPING,RIGHT($C171,1),MATCH($E$2,'Data by Building Type'!$D$22:$F$22,0))=\"Yes\",1,0)*\n(W$10*OFFSET('Efficiency Distributions'!$D$10,MATCH($C171,'Efficiency Distributions'!$C$9:$C$87,0)+RIGHT($E177),0)\n+W$11*OFFSET('Efficiency Distributions'!$E$10,MATCH($C171,'Efficiency Distributions'!$C$9:$C$87,0)+RIGHT($E177),0))\n/SUM(W$10:W$11)","v":0},{"$f":"IF(INDEX(PC_MAPPING,RIGHT($C171,1),MATCH($E$2,'Data by Building Type'!$D$22:$F$22,0))=\"Yes\",1,0)*\n(X$10*OFFSET('Efficiency Distributions'!$D$10,MATCH($C171,'Efficiency Distributions'!$C$9:$C$87,0)+RIGHT($E177),0)\n+X$11*OFFSET('Efficiency Distributions'!$E$10,MATCH($C171,'Efficiency Distributions'!$C$9:$C$87,0)+RIGHT($E177),0))\n/SUM(X$10:X$11)","v":0},{"$f":"IF(INDEX(PC_MAPPING,RIGHT($C171,1),MATCH($E$2,'Data by Building Type'!$D$22:$F$22,0))=\"Yes\",1,0)*\n(Y$10*OFFSET('Efficiency Distributions'!$D$10,MATCH($C171,'Efficiency Distributions'!$C$9:$C$87,0)+RIGHT($E177),0)\n+Y$11*OFFSET('Efficiency Distributions'!$E$10,MATCH($C171,'Efficiency Distributions'!$C$9:$C$87,0)+RIGHT($E177),0))\n/SUM(Y$10:Y$11)","v":0},{"$f":"IF(INDEX(PC_MAPPING,RIGHT($C171,1),MATCH($E$2,'Data by Building Type'!$D$22:$F$22,0))=\"Yes\",1,0)*\n(Z$10*OFFSET('Efficiency Distributions'!$D$10,MATCH($C171,'Efficiency Distributions'!$C$9:$C$87,0)+RIGHT($E177),0)\n+Z$11*OFFSET('Efficiency Distributions'!$E$10,MATCH($C171,'Efficiency Distributions'!$C$9:$C$87,0)+RIGHT($E177),0))\n/SUM(Z$10:Z$11)","v":0},{"$f":"IF(INDEX(PC_MAPPING,RIGHT($C171,1),MATCH($E$2,'Data by Building Type'!$D$22:$F$22,0))=\"Yes\",1,0)*\n(AA$10*OFFSET('Efficiency Distributions'!$D$10,MATCH($C171,'Efficiency Distributions'!$C$9:$C$87,0)+RIGHT($E177),0)\n+AA$11*OFFSET('Efficiency Distributions'!$E$10,MATCH($C171,'Efficiency Distributions'!$C$9:$C$87,0)+RIGHT($E177),0))\n/SUM(AA$10:AA$11)","v":0},{"$f":"IF(INDEX(PC_MAPPING,RIGHT($C171,1),MATCH($E$2,'Data by Building Type'!$D$22:$F$22,0))=\"Yes\",1,0)*\n(AB$10*OFFSET('Efficiency Distributions'!$D$10,MATCH($C171,'Efficiency Distributions'!$C$9:$C$87,0)+RIGHT($E177),0)\n+AB$11*OFFSET('Efficiency Distributions'!$E$10,MATCH($C171,'Efficiency Distributions'!$C$9:$C$87,0)+RIGHT($E177),0))\n/SUM(AB$10:AB$11)","v":0},{"$f":"IF(INDEX(PC_MAPPING,RIGHT($C171,1),MATCH($E$2,'Data by Building Type'!$D$22:$F$22,0))=\"Yes\",1,0)*\n(AC$10*OFFSET('Efficiency Distributions'!$D$10,MATCH($C171,'Efficiency Distributions'!$C$9:$C$87,0)+RIGHT($E177),0)\n+AC$11*OFFSET('Efficiency Distributions'!$E$10,MATCH($C171,'Efficiency Distributions'!$C$9:$C$87,0)+RIGHT($E177),0))\n/SUM(AC$10:AC$11)","v":0},{"$f":"IF(INDEX(PC_MAPPING,RIGHT($C171,1),MATCH($E$2,'Data by Building Type'!$D$22:$F$22,0))=\"Yes\",1,0)*\n(AD$10*OFFSET('Efficiency Distributions'!$D$10,MATCH($C171,'Efficiency Distributions'!$C$9:$C$87,0)+RIGHT($E177),0)\n+AD$11*OFFSET('Efficiency Distributions'!$E$10,MATCH($C171,'Efficiency Distributions'!$C$9:$C$87,0)+RIGHT($E177),0))\n/SUM(AD$10:AD$11)","v":0},{"$f":"IF(INDEX(PC_MAPPING,RIGHT($C171,1),MATCH($E$2,'Data by Building Type'!$D$22:$F$22,0))=\"Yes\",1,0)*\n(AE$10*OFFSET('Efficiency Distributions'!$D$10,MATCH($C171,'Efficiency Distributions'!$C$9:$C$87,0)+RIGHT($E177),0)\n+AE$11*OFFSET('Efficiency Distributions'!$E$10,MATCH($C171,'Efficiency Distributions'!$C$9:$C$87,0)+RIGHT($E177),0))\n/SUM(AE$10:AE$11)","v":0},{"$f":"IF(INDEX(PC_MAPPING,RIGHT($C171,1),MATCH($E$2,'Data by Building Type'!$D$22:$F$22,0))=\"Yes\",1,0)*\n(AF$10*OFFSET('Efficiency Distributions'!$D$10,MATCH($C171,'Efficiency Distributions'!$C$9:$C$87,0)+RIGHT($E177),0)\n+AF$11*OFFSET('Efficiency Distributions'!$E$10,MATCH($C171,'Efficiency Distributions'!$C$9:$C$87,0)+RIGHT($E177),0))\n/SUM(AF$10:AF$11)","v":0},{"$f":"IF(INDEX(PC_MAPPING,RIGHT($C171,1),MATCH($E$2,'Data by Building Type'!$D$22:$F$22,0))=\"Yes\",1,0)*\n(AG$10*OFFSET('Efficiency Distributions'!$D$10,MATCH($C171,'Efficiency Distributions'!$C$9:$C$87,0)+RIGHT($E177),0)\n+AG$11*OFFSET('Efficiency Distributions'!$E$10,MATCH($C171,'Efficiency Distributions'!$C$9:$C$87,0)+RIGHT($E177),0))\n/SUM(AG$10:AG$11)","v":0},{"$f":"IF(INDEX(PC_MAPPING,RIGHT($C171,1),MATCH($E$2,'Data by Building Type'!$D$22:$F$22,0))=\"Yes\",1,0)*\n(AH$10*OFFSET('Efficiency Distributions'!$D$10,MATCH($C171,'Efficiency Distributions'!$C$9:$C$87,0)+RIGHT($E177),0)\n+AH$11*OFFSET('Efficiency Distributions'!$E$10,MATCH($C171,'Efficiency Distributions'!$C$9:$C$87,0)+RIGHT($E177),0))\n/SUM(AH$10:AH$11)","v":0},{"$f":"IF(INDEX(PC_MAPPING,RIGHT($C171,1),MATCH($E$2,'Data by Building Type'!$D$22:$F$22,0))=\"Yes\",1,0)*\n(AI$10*OFFSET('Efficiency Distributions'!$D$10,MATCH($C171,'Efficiency Distributions'!$C$9:$C$87,0)+RIGHT($E177),0)\n+AI$11*OFFSET('Efficiency Distributions'!$E$10,MATCH($C171,'Efficiency Distributions'!$C$9:$C$87,0)+RIGHT($E177),0))\n/SUM(AI$10:AI$11)","v":0},{"$f":"IF(INDEX(PC_MAPPING,RIGHT($C171,1),MATCH($E$2,'Data by Building Type'!$D$22:$F$22,0))=\"Yes\",1,0)*\n(AJ$10*OFFSET('Efficiency Distributions'!$D$10,MATCH($C171,'Efficiency Distributions'!$C$9:$C$87,0)+RIGHT($E177),0)\n+AJ$11*OFFSET('Efficiency Distributions'!$E$10,MATCH($C171,'Efficiency Distributions'!$C$9:$C$87,0)+RIGHT($E177),0))\n/SUM(AJ$10:AJ$11)","v":0},{"$f":"IF(INDEX(PC_MAPPING,RIGHT($C171,1),MATCH($E$2,'Data by Building Type'!$D$22:$F$22,0))=\"Yes\",1,0)*\n(AK$10*OFFSET('Efficiency Distributions'!$D$10,MATCH($C171,'Efficiency Distributions'!$C$9:$C$87,0)+RIGHT($E177),0)\n+AK$11*OFFSET('Efficiency Distributions'!$E$10,MATCH($C171,'Efficiency Distributions'!$C$9:$C$87,0)+RIGHT($E177),0))\n/SUM(AK$10:AK$11)","v":0},{"$f":"IF(INDEX(PC_MAPPING,RIGHT($C171,1),MATCH($E$2,'Data by Building Type'!$D$22:$F$22,0))=\"Yes\",1,0)*\n(AL$10*OFFSET('Efficiency Distributions'!$D$10,MATCH($C171,'Efficiency Distributions'!$C$9:$C$87,0)+RIGHT($E177),0)\n+AL$11*OFFSET('Efficiency Distributions'!$E$10,MATCH($C171,'Efficiency Distributions'!$C$9:$C$87,0)+RIGHT($E177),0))\n/SUM(AL$10:AL$11)","v":0},{"$f":"IF(INDEX(PC_MAPPING,RIGHT($C171,1),MATCH($E$2,'Data by Building Type'!$D$22:$F$22,0))=\"Yes\",1,0)*\n(AM$10*OFFSET('Efficiency Distributions'!$D$10,MATCH($C171,'Efficiency Distributions'!$C$9:$C$87,0)+RIGHT($E177),0)\n+AM$11*OFFSET('Efficiency Distributions'!$E$10,MATCH($C171,'Efficiency Distributions'!$C$9:$C$87,0)+RIGHT($E177),0))\n/SUM(AM$10:AM$11)","v":0},{"$f":"IF(INDEX(PC_MAPPING,RIGHT($C171,1),MATCH($E$2,'Data by Building Type'!$D$22:$F$22,0))=\"Yes\",1,0)*\n(AN$10*OFFSET('Efficiency Distributions'!$D$10,MATCH($C171,'Efficiency Distributions'!$C$9:$C$87,0)+RIGHT($E177),0)\n+AN$11*OFFSET('Efficiency Distributions'!$E$10,MATCH($C171,'Efficiency Distributions'!$C$9:$C$87,0)+RIGHT($E177),0))\n/SUM(AN$10:AN$11)","v":0},{"$f":"IF(INDEX(PC_MAPPING,RIGHT($C171,1),MATCH($E$2,'Data by Building Type'!$D$22:$F$22,0))=\"Yes\",1,0)*\n(AO$10*OFFSET('Efficiency Distributions'!$D$10,MATCH($C171,'Efficiency Distributions'!$C$9:$C$87,0)+RIGHT($E177),0)\n+AO$11*OFFSET('Efficiency Distributions'!$E$10,MATCH($C171,'Efficiency Distributions'!$C$9:$C$87,0)+RIGHT($E177),0))\n/SUM(AO$10:AO$11)","v":0},{"$f":"IF(INDEX(PC_MAPPING,RIGHT($C171,1),MATCH($E$2,'Data by Building Type'!$D$22:$F$22,0))=\"Yes\",1,0)*\n(AP$10*OFFSET('Efficiency Distributions'!$D$10,MATCH($C171,'Efficiency Distributions'!$C$9:$C$87,0)+RIGHT($E177),0)\n+AP$11*OFFSET('Efficiency Distributions'!$E$10,MATCH($C171,'Efficiency Distributions'!$C$9:$C$87,0)+RIGHT($E177),0))\n/SUM(AP$10:AP$11)","v":0},{"$f":"IF(INDEX(PC_MAPPING,RIGHT($C171,1),MATCH($E$2,'Data by Building Type'!$D$22:$F$22,0))=\"Yes\",1,0)*\n(AQ$10*OFFSET('Efficiency Distributions'!$D$10,MATCH($C171,'Efficiency Distributions'!$C$9:$C$87,0)+RIGHT($E177),0)\n+AQ$11*OFFSET('Efficiency Distributions'!$E$10,MATCH($C171,'Efficiency Distributions'!$C$9:$C$87,0)+RIGHT($E177),0))\n/SUM(AQ$10:AQ$11)","v":0},{"$f":"IF(INDEX(PC_MAPPING,RIGHT($C171,1),MATCH($E$2,'Data by Building Type'!$D$22:$F$22,0))=\"Yes\",1,0)*\n(AR$10*OFFSET('Efficiency Distributions'!$D$10,MATCH($C171,'Efficiency Distributions'!$C$9:$C$87,0)+RIGHT($E177),0)\n+AR$11*OFFSET('Efficiency Distributions'!$E$10,MATCH($C171,'Efficiency Distributions'!$C$9:$C$87,0)+RIGHT($E177),0))\n/SUM(AR$10:AR$11)","v":0},{"$f":"IF(INDEX(PC_MAPPING,RIGHT($C171,1),MATCH($E$2,'Data by Building Type'!$D$22:$F$22,0))=\"Yes\",1,0)*\n(AS$10*OFFSET('Efficiency Distributions'!$D$10,MATCH($C171,'Efficiency Distributions'!$C$9:$C$87,0)+RIGHT($E177),0)\n+AS$11*OFFSET('Efficiency Distributions'!$E$10,MATCH($C171,'Efficiency Distributions'!$C$9:$C$87,0)+RIGHT($E177),0))\n/SUM(AS$10:AS$11)","v":0},{"$f":"IF(INDEX(PC_MAPPING,RIGHT($C171,1),MATCH($E$2,'Data by Building Type'!$D$22:$F$22,0))=\"Yes\",1,0)*\n(AT$10*OFFSET('Efficiency Distributions'!$D$10,MATCH($C171,'Efficiency Distributions'!$C$9:$C$87,0)+RIGHT($E177),0)\n+AT$11*OFFSET('Efficiency Distributions'!$E$10,MATCH($C171,'Efficiency Distributions'!$C$9:$C$87,0)+RIGHT($E177),0))\n/SUM(AT$10:AT$11)","v":0},{"$f":"IF(INDEX(PC_MAPPING,RIGHT($C171,1),MATCH($E$2,'Data by Building Type'!$D$22:$F$22,0))=\"Yes\",1,0)*\n(AU$10*OFFSET('Efficiency Distributions'!$D$10,MATCH($C171,'Efficiency Distributions'!$C$9:$C$87,0)+RIGHT($E177),0)\n+AU$11*OFFSET('Efficiency Distributions'!$E$10,MATCH($C171,'Efficiency Distributions'!$C$9:$C$87,0)+RIGHT($E177),0))\n/SUM(AU$10:AU$11)","v":0},{"$f":"IF(INDEX(PC_MAPPING,RIGHT($C171,1),MATCH($E$2,'Data by Building Type'!$D$22:$F$22,0))=\"Yes\",1,0)*\n(AV$10*OFFSET('Efficiency Distributions'!$D$10,MATCH($C171,'Efficiency Distributions'!$C$9:$C$87,0)+RIGHT($E177),0)\n+AV$11*OFFSET('Efficiency Distributions'!$E$10,MATCH($C171,'Efficiency Distributions'!$C$9:$C$87,0)+RIGHT($E177),0))\n/SUM(AV$10:AV$11)","v":0},{"$f":"IF(INDEX(PC_MAPPING,RIGHT($C171,1),MATCH($E$2,'Data by Building Type'!$D$22:$F$22,0))=\"Yes\",1,0)*\n(AW$10*OFFSET('Efficiency Distributions'!$D$10,MATCH($C171,'Efficiency Distributions'!$C$9:$C$87,0)+RIGHT($E177),0)\n+AW$11*OFFSET('Efficiency Distributions'!$E$10,MATCH($C171,'Efficiency Distributions'!$C$9:$C$87,0)+RIGHT($E177),0))\n/SUM(AW$10:AW$11)","v":0},{"$f":"IF(INDEX(PC_MAPPING,RIGHT($C171,1),MATCH($E$2,'Data by Building Type'!$D$22:$F$22,0))=\"Yes\",1,0)*\n(AX$10*OFFSET('Efficiency Distributions'!$D$10,MATCH($C171,'Efficiency Distributions'!$C$9:$C$87,0)+RIGHT($E177),0)\n+AX$11*OFFSET('Efficiency Distributions'!$E$10,MATCH($C171,'Efficiency Distributions'!$C$9:$C$87,0)+RIGHT($E177),0))\n/SUM(AX$10:AX$11)","v":0},{"$f":"IF(INDEX(PC_MAPPING,RIGHT($C171,1),MATCH($E$2,'Data by Building Type'!$D$22:$F$22,0))=\"Yes\",1,0)*\n(AY$10*OFFSET('Efficiency Distributions'!$D$10,MATCH($C171,'Efficiency Distributions'!$C$9:$C$87,0)+RIGHT($E177),0)\n+AY$11*OFFSET('Efficiency Distributions'!$E$10,MATCH($C171,'Efficiency Distributions'!$C$9:$C$87,0)+RIGHT($E177),0))\n/SUM(AY$10:AY$11)","v":0},{"$f":"IF(INDEX(PC_MAPPING,RIGHT($C171,1),MATCH($E$2,'Data by Building Type'!$D$22:$F$22,0))=\"Yes\",1,0)*\n(AZ$10*OFFSET('Efficiency Distributions'!$D$10,MATCH($C171,'Efficiency Distributions'!$C$9:$C$87,0)+RIGHT($E177),0)\n+AZ$11*OFFSET('Efficiency Distributions'!$E$10,MATCH($C171,'Efficiency Distributions'!$C$9:$C$87,0)+RIGHT($E177),0))\n/SUM(AZ$10:AZ$11)","v":0},{"$f":"IF(INDEX(PC_MAPPING,RIGHT($C171,1),MATCH($E$2,'Data by Building Type'!$D$22:$F$22,0))=\"Yes\",1,0)*\n(BA$10*OFFSET('Efficiency Distributions'!$D$10,MATCH($C171,'Efficiency Distributions'!$C$9:$C$87,0)+RIGHT($E177),0)\n+BA$11*OFFSET('Efficiency Distributions'!$E$10,MATCH($C171,'Efficiency Distributions'!$C$9:$C$87,0)+RIGHT($E177),0))\n/SUM(BA$10:BA$11)","v":0},{"$f":"IF(INDEX(PC_MAPPING,RIGHT($C171,1),MATCH($E$2,'Data by Building Type'!$D$22:$F$22,0))=\"Yes\",1,0)*\n(BB$10*OFFSET('Efficiency Distributions'!$D$10,MATCH($C171,'Efficiency Distributions'!$C$9:$C$87,0)+RIGHT($E177),0)\n+BB$11*OFFSET('Efficiency Distributions'!$E$10,MATCH($C171,'Efficiency Distributions'!$C$9:$C$87,0)+RIGHT($E177),0))\n/SUM(BB$10:BB$11)","v":0},{"$f":"IF(INDEX(PC_MAPPING,RIGHT($C171,1),MATCH($E$2,'Data by Building Type'!$D$22:$F$22,0))=\"Yes\",1,0)*\n(BC$10*OFFSET('Efficiency Distributions'!$D$10,MATCH($C171,'Efficiency Distributions'!$C$9:$C$87,0)+RIGHT($E177),0)\n+BC$11*OFFSET('Efficiency Distributions'!$E$10,MATCH($C171,'Efficiency Distributions'!$C$9:$C$87,0)+RIGHT($E177),0))\n/SUM(BC$10:BC$11)","v":0},{"$f":"IF(INDEX(PC_MAPPING,RIGHT($C171,1),MATCH($E$2,'Data by Building Type'!$D$22:$F$22,0))=\"Yes\",1,0)*\n(BD$10*OFFSET('Efficiency Distributions'!$D$10,MATCH($C171,'Efficiency Distributions'!$C$9:$C$87,0)+RIGHT($E177),0)\n+BD$11*OFFSET('Efficiency Distributions'!$E$10,MATCH($C171,'Efficiency Distributions'!$C$9:$C$87,0)+RIGHT($E177),0))\n/SUM(BD$10:BD$11)","v":0},{"$f":"IF(INDEX(PC_MAPPING,RIGHT($C171,1),MATCH($E$2,'Data by Building Type'!$D$22:$F$22,0))=\"Yes\",1,0)*\n(BE$10*OFFSET('Efficiency Distributions'!$D$10,MATCH($C171,'Efficiency Distributions'!$C$9:$C$87,0)+RIGHT($E177),0)\n+BE$11*OFFSET('Efficiency Distributions'!$E$10,MATCH($C171,'Efficiency Distributions'!$C$9:$C$87,0)+RIGHT($E177),0))\n/SUM(BE$10:BE$11)","v":0},{"$f":"IF(INDEX(PC_MAPPING,RIGHT($C171,1),MATCH($E$2,'Data by Building Type'!$D$22:$F$22,0))=\"Yes\",1,0)*\n(BF$10*OFFSET('Efficiency Distributions'!$D$10,MATCH($C171,'Efficiency Distributions'!$C$9:$C$87,0)+RIGHT($E177),0)\n+BF$11*OFFSET('Efficiency Distributions'!$E$10,MATCH($C171,'Efficiency Distributions'!$C$9:$C$87,0)+RIGHT($E177),0))\n/SUM(BF$10:BF$11)","v":0},{"$f":"IF(INDEX(PC_MAPPING,RIGHT($C171,1),MATCH($E$2,'Data by Building Type'!$D$22:$F$22,0))=\"Yes\",1,0)*\n(BG$10*OFFSET('Efficiency Distributions'!$D$10,MATCH($C171,'Efficiency Distributions'!$C$9:$C$87,0)+RIGHT($E177),0)\n+BG$11*OFFSET('Efficiency Distributions'!$E$10,MATCH($C171,'Efficiency Distributions'!$C$9:$C$87,0)+RIGHT($E177),0))\n/SUM(BG$10:BG$11)","v":0}]
[null,null,null,null,"EL3",{"$f":"IF(INDEX(PC_MAPPING,RIGHT($C171,1),MATCH($E$2,'Data by Building Type'!$D$22:$F$22,0))=\"Yes\",1,0)*\n(F$10*OFFSET('Efficiency Distributions'!$D$10,MATCH($C171,'Efficiency Distributions'!$C$9:$C$87,0)+RIGHT($E178),0)\n+F$11*OFFSET('Efficiency Distributions'!$E$10,MATCH($C171,'Efficiency Distributions'!$C$9:$C$87,0)+RIGHT($E178),0))\n/SUM(F$10:F$11)","v":0},{"$f":"IF(INDEX(PC_MAPPING,RIGHT($C171,1),MATCH($E$2,'Data by Building Type'!$D$22:$F$22,0))=\"Yes\",1,0)*\n(G$10*OFFSET('Efficiency Distributions'!$D$10,MATCH($C171,'Efficiency Distributions'!$C$9:$C$87,0)+RIGHT($E178),0)\n+G$11*OFFSET('Efficiency Distributions'!$E$10,MATCH($C171,'Efficiency Distributions'!$C$9:$C$87,0)+RIGHT($E178),0))\n/SUM(G$10:G$11)","v":0},{"$f":"IF(INDEX(PC_MAPPING,RIGHT($C171,1),MATCH($E$2,'Data by Building Type'!$D$22:$F$22,0))=\"Yes\",1,0)*\n(H$10*OFFSET('Efficiency Distributions'!$D$10,MATCH($C171,'Efficiency Distributions'!$C$9:$C$87,0)+RIGHT($E178),0)\n+H$11*OFFSET('Efficiency Distributions'!$E$10,MATCH($C171,'Efficiency Distributions'!$C$9:$C$87,0)+RIGHT($E178),0))\n/SUM(H$10:H$11)","v":0},{"$f":"IF(INDEX(PC_MAPPING,RIGHT($C171,1),MATCH($E$2,'Data by Building Type'!$D$22:$F$22,0))=\"Yes\",1,0)*\n(I$10*OFFSET('Efficiency Distributions'!$D$10,MATCH($C171,'Efficiency Distributions'!$C$9:$C$87,0)+RIGHT($E178),0)\n+I$11*OFFSET('Efficiency Distributions'!$E$10,MATCH($C171,'Efficiency Distributions'!$C$9:$C$87,0)+RIGHT($E178),0))\n/SUM(I$10:I$11)","v":0},{"$f":"IF(INDEX(PC_MAPPING,RIGHT($C171,1),MATCH($E$2,'Data by Building Type'!$D$22:$F$22,0))=\"Yes\",1,0)*\n(J$10*OFFSET('Efficiency Distributions'!$D$10,MATCH($C171,'Efficiency Distributions'!$C$9:$C$87,0)+RIGHT($E178),0)\n+J$11*OFFSET('Efficiency Distributions'!$E$10,MATCH($C171,'Efficiency Distributions'!$C$9:$C$87,0)+RIGHT($E178),0))\n/SUM(J$10:J$11)","v":0},{"$f":"IF(INDEX(PC_MAPPING,RIGHT($C171,1),MATCH($E$2,'Data by Building Type'!$D$22:$F$22,0))=\"Yes\",1,0)*\n(K$10*OFFSET('Efficiency Distributions'!$D$10,MATCH($C171,'Efficiency Distributions'!$C$9:$C$87,0)+RIGHT($E178),0)\n+K$11*OFFSET('Efficiency Distributions'!$E$10,MATCH($C171,'Efficiency Distributions'!$C$9:$C$87,0)+RIGHT($E178),0))\n/SUM(K$10:K$11)","v":0},{"$f":"IF(INDEX(PC_MAPPING,RIGHT($C171,1),MATCH($E$2,'Data by Building Type'!$D$22:$F$22,0))=\"Yes\",1,0)*\n(L$10*OFFSET('Efficiency Distributions'!$D$10,MATCH($C171,'Efficiency Distributions'!$C$9:$C$87,0)+RIGHT($E178),0)\n+L$11*OFFSET('Efficiency Distributions'!$E$10,MATCH($C171,'Efficiency Distributions'!$C$9:$C$87,0)+RIGHT($E178),0))\n/SUM(L$10:L$11)","v":0},{"$f":"IF(INDEX(PC_MAPPING,RIGHT($C171,1),MATCH($E$2,'Data by Building Type'!$D$22:$F$22,0))=\"Yes\",1,0)*\n(M$10*OFFSET('Efficiency Distributions'!$D$10,MATCH($C171,'Efficiency Distributions'!$C$9:$C$87,0)+RIGHT($E178),0)\n+M$11*OFFSET('Efficiency Distributions'!$E$10,MATCH($C171,'Efficiency Distributions'!$C$9:$C$87,0)+RIGHT($E178),0))\n/SUM(M$10:M$11)","v":0},{"$f":"IF(INDEX(PC_MAPPING,RIGHT($C171,1),MATCH($E$2,'Data by Building Type'!$D$22:$F$22,0))=\"Yes\",1,0)*\n(N$10*OFFSET('Efficiency Distributions'!$D$10,MATCH($C171,'Efficiency Distributions'!$C$9:$C$87,0)+RIGHT($E178),0)\n+N$11*OFFSET('Efficiency Distributions'!$E$10,MATCH($C171,'Efficiency Distributions'!$C$9:$C$87,0)+RIGHT($E178),0))\n/SUM(N$10:N$11)","v":0},{"$f":"IF(INDEX(PC_MAPPING,RIGHT($C171,1),MATCH($E$2,'Data by Building Type'!$D$22:$F$22,0))=\"Yes\",1,0)*\n(O$10*OFFSET('Efficiency Distributions'!$D$10,MATCH($C171,'Efficiency Distributions'!$C$9:$C$87,0)+RIGHT($E178),0)\n+O$11*OFFSET('Efficiency Distributions'!$E$10,MATCH($C171,'Efficiency Distributions'!$C$9:$C$87,0)+RIGHT($E178),0))\n/SUM(O$10:O$11)","v":0},{"$f":"IF(INDEX(PC_MAPPING,RIGHT($C171,1),MATCH($E$2,'Data by Building Type'!$D$22:$F$22,0))=\"Yes\",1,0)*\n(P$10*OFFSET('Efficiency Distributions'!$D$10,MATCH($C171,'Efficiency Distributions'!$C$9:$C$87,0)+RIGHT($E178),0)\n+P$11*OFFSET('Efficiency Distributions'!$E$10,MATCH($C171,'Efficiency Distributions'!$C$9:$C$87,0)+RIGHT($E178),0))\n/SUM(P$10:P$11)","v":0},{"$f":"IF(INDEX(PC_MAPPING,RIGHT($C171,1),MATCH($E$2,'Data by Building Type'!$D$22:$F$22,0))=\"Yes\",1,0)*\n(Q$10*OFFSET('Efficiency Distributions'!$D$10,MATCH($C171,'Efficiency Distributions'!$C$9:$C$87,0)+RIGHT($E178),0)\n+Q$11*OFFSET('Efficiency Distributions'!$E$10,MATCH($C171,'Efficiency Distributions'!$C$9:$C$87,0)+RIGHT($E178),0))\n/SUM(Q$10:Q$11)","v":0},{"$f":"IF(INDEX(PC_MAPPING,RIGHT($C171,1),MATCH($E$2,'Data by Building Type'!$D$22:$F$22,0))=\"Yes\",1,0)*\n(R$10*OFFSET('Efficiency Distributions'!$D$10,MATCH($C171,'Efficiency Distributions'!$C$9:$C$87,0)+RIGHT($E178),0)\n+R$11*OFFSET('Efficiency Distributions'!$E$10,MATCH($C171,'Efficiency Distributions'!$C$9:$C$87,0)+RIGHT($E178),0))\n/SUM(R$10:R$11)","v":0},{"$f":"IF(INDEX(PC_MAPPING,RIGHT($C171,1),MATCH($E$2,'Data by Building Type'!$D$22:$F$22,0))=\"Yes\",1,0)*\n(S$10*OFFSET('Efficiency Distributions'!$D$10,MATCH($C171,'Efficiency Distributions'!$C$9:$C$87,0)+RIGHT($E178),0)\n+S$11*OFFSET('Efficiency Distributions'!$E$10,MATCH($C171,'Efficiency Distributions'!$C$9:$C$87,0)+RIGHT($E178),0))\n/SUM(S$10:S$11)","v":0},{"$f":"IF(INDEX(PC_MAPPING,RIGHT($C171,1),MATCH($E$2,'Data by Building Type'!$D$22:$F$22,0))=\"Yes\",1,0)*\n(T$10*OFFSET('Efficiency Distributions'!$D$10,MATCH($C171,'Efficiency Distributions'!$C$9:$C$87,0)+RIGHT($E178),0)\n+T$11*OFFSET('Efficiency Distributions'!$E$10,MATCH($C171,'Efficiency Distributions'!$C$9:$C$87,0)+RIGHT($E178),0))\n/SUM(T$10:T$11)","v":0},{"$f":"IF(INDEX(PC_MAPPING,RIGHT($C171,1),MATCH($E$2,'Data by Building Type'!$D$22:$F$22,0))=\"Yes\",1,0)*\n(U$10*OFFSET('Efficiency Distributions'!$D$10,MATCH($C171,'Efficiency Distributions'!$C$9:$C$87,0)+RIGHT($E178),0)\n+U$11*OFFSET('Efficiency Distributions'!$E$10,MATCH($C171,'Efficiency Distributions'!$C$9:$C$87,0)+RIGHT($E178),0))\n/SUM(U$10:U$11)","v":0},{"$f":"IF(INDEX(PC_MAPPING,RIGHT($C171,1),MATCH($E$2,'Data by Building Type'!$D$22:$F$22,0))=\"Yes\",1,0)*\n(V$10*OFFSET('Efficiency Distributions'!$D$10,MATCH($C171,'Efficiency Distributions'!$C$9:$C$87,0)+RIGHT($E178),0)\n+V$11*OFFSET('Efficiency Distributions'!$E$10,MATCH($C171,'Efficiency Distributions'!$C$9:$C$87,0)+RIGHT($E178),0))\n/SUM(V$10:V$11)","v":0},{"$f":"IF(INDEX(PC_MAPPING,RIGHT($C171,1),MATCH($E$2,'Data by Building Type'!$D$22:$F$22,0))=\"Yes\",1,0)*\n(W$10*OFFSET('Efficiency Distributions'!$D$10,MATCH($C171,'Efficiency Distributions'!$C$9:$C$87,0)+RIGHT($E178),0)\n+W$11*OFFSET('Efficiency Distributions'!$E$10,MATCH($C171,'Efficiency Distributions'!$C$9:$C$87,0)+RIGHT($E178),0))\n/SUM(W$10:W$11)","v":0},{"$f":"IF(INDEX(PC_MAPPING,RIGHT($C171,1),MATCH($E$2,'Data by Building Type'!$D$22:$F$22,0))=\"Yes\",1,0)*\n(X$10*OFFSET('Efficiency Distributions'!$D$10,MATCH($C171,'Efficiency Distributions'!$C$9:$C$87,0)+RIGHT($E178),0)\n+X$11*OFFSET('Efficiency Distributions'!$E$10,MATCH($C171,'Efficiency Distributions'!$C$9:$C$87,0)+RIGHT($E178),0))\n/SUM(X$10:X$11)","v":0},{"$f":"IF(INDEX(PC_MAPPING,RIGHT($C171,1),MATCH($E$2,'Data by Building Type'!$D$22:$F$22,0))=\"Yes\",1,0)*\n(Y$10*OFFSET('Efficiency Distributions'!$D$10,MATCH($C171,'Efficiency Distributions'!$C$9:$C$87,0)+RIGHT($E178),0)\n+Y$11*OFFSET('Efficiency Distributions'!$E$10,MATCH($C171,'Efficiency Distributions'!$C$9:$C$87,0)+RIGHT($E178),0))\n/SUM(Y$10:Y$11)","v":0},{"$f":"IF(INDEX(PC_MAPPING,RIGHT($C171,1),MATCH($E$2,'Data by Building Type'!$D$22:$F$22,0))=\"Yes\",1,0)*\n(Z$10*OFFSET('Efficiency Distributions'!$D$10,MATCH($C171,'Efficiency Distributions'!$C$9:$C$87,0)+RIGHT($E178),0)\n+Z$11*OFFSET('Efficiency Distributions'!$E$10,MATCH($C171,'Efficiency Distributions'!$C$9:$C$87,0)+RIGHT($E178),0))\n/SUM(Z$10:Z$11)","v":0},{"$f":"IF(INDEX(PC_MAPPING,RIGHT($C171,1),MATCH($E$2,'Data by Building Type'!$D$22:$F$22,0))=\"Yes\",1,0)*\n(AA$10*OFFSET('Efficiency Distributions'!$D$10,MATCH($C171,'Efficiency Distributions'!$C$9:$C$87,0)+RIGHT($E178),0)\n+AA$11*OFFSET('Efficiency Distributions'!$E$10,MATCH($C171,'Efficiency Distributions'!$C$9:$C$87,0)+RIGHT($E178),0))\n/SUM(AA$10:AA$11)","v":0},{"$f":"IF(INDEX(PC_MAPPING,RIGHT($C171,1),MATCH($E$2,'Data by Building Type'!$D$22:$F$22,0))=\"Yes\",1,0)*\n(AB$10*OFFSET('Efficiency Distributions'!$D$10,MATCH($C171,'Efficiency Distributions'!$C$9:$C$87,0)+RIGHT($E178),0)\n+AB$11*OFFSET('Efficiency Distributions'!$E$10,MATCH($C171,'Efficiency Distributions'!$C$9:$C$87,0)+RIGHT($E178),0))\n/SUM(AB$10:AB$11)","v":0},{"$f":"IF(INDEX(PC_MAPPING,RIGHT($C171,1),MATCH($E$2,'Data by Building Type'!$D$22:$F$22,0))=\"Yes\",1,0)*\n(AC$10*OFFSET('Efficiency Distributions'!$D$10,MATCH($C171,'Efficiency Distributions'!$C$9:$C$87,0)+RIGHT($E178),0)\n+AC$11*OFFSET('Efficiency Distributions'!$E$10,MATCH($C171,'Efficiency Distributions'!$C$9:$C$87,0)+RIGHT($E178),0))\n/SUM(AC$10:AC$11)","v":0},{"$f":"IF(INDEX(PC_MAPPING,RIGHT($C171,1),MATCH($E$2,'Data by Building Type'!$D$22:$F$22,0))=\"Yes\",1,0)*\n(AD$10*OFFSET('Efficiency Distributions'!$D$10,MATCH($C171,'Efficiency Distributions'!$C$9:$C$87,0)+RIGHT($E178),0)\n+AD$11*OFFSET('Efficiency Distributions'!$E$10,MATCH($C171,'Efficiency Distributions'!$C$9:$C$87,0)+RIGHT($E178),0))\n/SUM(AD$10:AD$11)","v":0},{"$f":"IF(INDEX(PC_MAPPING,RIGHT($C171,1),MATCH($E$2,'Data by Building Type'!$D$22:$F$22,0))=\"Yes\",1,0)*\n(AE$10*OFFSET('Efficiency Distributions'!$D$10,MATCH($C171,'Efficiency Distributions'!$C$9:$C$87,0)+RIGHT($E178),0)\n+AE$11*OFFSET('Efficiency Distributions'!$E$10,MATCH($C171,'Efficiency Distributions'!$C$9:$C$87,0)+RIGHT($E178),0))\n/SUM(AE$10:AE$11)","v":0},{"$f":"IF(INDEX(PC_MAPPING,RIGHT($C171,1),MATCH($E$2,'Data by Building Type'!$D$22:$F$22,0))=\"Yes\",1,0)*\n(AF$10*OFFSET('Efficiency Distributions'!$D$10,MATCH($C171,'Efficiency Distributions'!$C$9:$C$87,0)+RIGHT($E178),0)\n+AF$11*OFFSET('Efficiency Distributions'!$E$10,MATCH($C171,'Efficiency Distributions'!$C$9:$C$87,0)+RIGHT($E178),0))\n/SUM(AF$10:AF$11)","v":0},{"$f":"IF(INDEX(PC_MAPPING,RIGHT($C171,1),MATCH($E$2,'Data by Building Type'!$D$22:$F$22,0))=\"Yes\",1,0)*\n(AG$10*OFFSET('Efficiency Distributions'!$D$10,MATCH($C171,'Efficiency Distributions'!$C$9:$C$87,0)+RIGHT($E178),0)\n+AG$11*OFFSET('Efficiency Distributions'!$E$10,MATCH($C171,'Efficiency Distributions'!$C$9:$C$87,0)+RIGHT($E178),0))\n/SUM(AG$10:AG$11)","v":0},{"$f":"IF(INDEX(PC_MAPPING,RIGHT($C171,1),MATCH($E$2,'Data by Building Type'!$D$22:$F$22,0))=\"Yes\",1,0)*\n(AH$10*OFFSET('Efficiency Distributions'!$D$10,MATCH($C171,'Efficiency Distributions'!$C$9:$C$87,0)+RIGHT($E178),0)\n+AH$11*OFFSET('Efficiency Distributions'!$E$10,MATCH($C171,'Efficiency Distributions'!$C$9:$C$87,0)+RIGHT($E178),0))\n/SUM(AH$10:AH$11)","v":0},{"$f":"IF(INDEX(PC_MAPPING,RIGHT($C171,1),MATCH($E$2,'Data by Building Type'!$D$22:$F$22,0))=\"Yes\",1,0)*\n(AI$10*OFFSET('Efficiency Distributions'!$D$10,MATCH($C171,'Efficiency Distributions'!$C$9:$C$87,0)+RIGHT($E178),0)\n+AI$11*OFFSET('Efficiency Distributions'!$E$10,MATCH($C171,'Efficiency Distributions'!$C$9:$C$87,0)+RIGHT($E178),0))\n/SUM(AI$10:AI$11)","v":0},{"$f":"IF(INDEX(PC_MAPPING,RIGHT($C171,1),MATCH($E$2,'Data by Building Type'!$D$22:$F$22,0))=\"Yes\",1,0)*\n(AJ$10*OFFSET('Efficiency Distributions'!$D$10,MATCH($C171,'Efficiency Distributions'!$C$9:$C$87,0)+RIGHT($E178),0)\n+AJ$11*OFFSET('Efficiency Distributions'!$E$10,MATCH($C171,'Efficiency Distributions'!$C$9:$C$87,0)+RIGHT($E178),0))\n/SUM(AJ$10:AJ$11)","v":0},{"$f":"IF(INDEX(PC_MAPPING,RIGHT($C171,1),MATCH($E$2,'Data by Building Type'!$D$22:$F$22,0))=\"Yes\",1,0)*\n(AK$10*OFFSET('Efficiency Distributions'!$D$10,MATCH($C171,'Efficiency Distributions'!$C$9:$C$87,0)+RIGHT($E178),0)\n+AK$11*OFFSET('Efficiency Distributions'!$E$10,MATCH($C171,'Efficiency Distributions'!$C$9:$C$87,0)+RIGHT($E178),0))\n/SUM(AK$10:AK$11)","v":0},{"$f":"IF(INDEX(PC_MAPPING,RIGHT($C171,1),MATCH($E$2,'Data by Building Type'!$D$22:$F$22,0))=\"Yes\",1,0)*\n(AL$10*OFFSET('Efficiency Distributions'!$D$10,MATCH($C171,'Efficiency Distributions'!$C$9:$C$87,0)+RIGHT($E178),0)\n+AL$11*OFFSET('Efficiency Distributions'!$E$10,MATCH($C171,'Efficiency Distributions'!$C$9:$C$87,0)+RIGHT($E178),0))\n/SUM(AL$10:AL$11)","v":0},{"$f":"IF(INDEX(PC_MAPPING,RIGHT($C171,1),MATCH($E$2,'Data by Building Type'!$D$22:$F$22,0))=\"Yes\",1,0)*\n(AM$10*OFFSET('Efficiency Distributions'!$D$10,MATCH($C171,'Efficiency Distributions'!$C$9:$C$87,0)+RIGHT($E178),0)\n+AM$11*OFFSET('Efficiency Distributions'!$E$10,MATCH($C171,'Efficiency Distributions'!$C$9:$C$87,0)+RIGHT($E178),0))\n/SUM(AM$10:AM$11)","v":0},{"$f":"IF(INDEX(PC_MAPPING,RIGHT($C171,1),MATCH($E$2,'Data by Building Type'!$D$22:$F$22,0))=\"Yes\",1,0)*\n(AN$10*OFFSET('Efficiency Distributions'!$D$10,MATCH($C171,'Efficiency Distributions'!$C$9:$C$87,0)+RIGHT($E178),0)\n+AN$11*OFFSET('Efficiency Distributions'!$E$10,MATCH($C171,'Efficiency Distributions'!$C$9:$C$87,0)+RIGHT($E178),0))\n/SUM(AN$10:AN$11)","v":0},{"$f":"IF(INDEX(PC_MAPPING,RIGHT($C171,1),MATCH($E$2,'Data by Building Type'!$D$22:$F$22,0))=\"Yes\",1,0)*\n(AO$10*OFFSET('Efficiency Distributions'!$D$10,MATCH($C171,'Efficiency Distributions'!$C$9:$C$87,0)+RIGHT($E178),0)\n+AO$11*OFFSET('Efficiency Distributions'!$E$10,MATCH($C171,'Efficiency Distributions'!$C$9:$C$87,0)+RIGHT($E178),0))\n/SUM(AO$10:AO$11)","v":0},{"$f":"IF(INDEX(PC_MAPPING,RIGHT($C171,1),MATCH($E$2,'Data by Building Type'!$D$22:$F$22,0))=\"Yes\",1,0)*\n(AP$10*OFFSET('Efficiency Distributions'!$D$10,MATCH($C171,'Efficiency Distributions'!$C$9:$C$87,0)+RIGHT($E178),0)\n+AP$11*OFFSET('Efficiency Distributions'!$E$10,MATCH($C171,'Efficiency Distributions'!$C$9:$C$87,0)+RIGHT($E178),0))\n/SUM(AP$10:AP$11)","v":0},{"$f":"IF(INDEX(PC_MAPPING,RIGHT($C171,1),MATCH($E$2,'Data by Building Type'!$D$22:$F$22,0))=\"Yes\",1,0)*\n(AQ$10*OFFSET('Efficiency Distributions'!$D$10,MATCH($C171,'Efficiency Distributions'!$C$9:$C$87,0)+RIGHT($E178),0)\n+AQ$11*OFFSET('Efficiency Distributions'!$E$10,MATCH($C171,'Efficiency Distributions'!$C$9:$C$87,0)+RIGHT($E178),0))\n/SUM(AQ$10:AQ$11)","v":0},{"$f":"IF(INDEX(PC_MAPPING,RIGHT($C171,1),MATCH($E$2,'Data by Building Type'!$D$22:$F$22,0))=\"Yes\",1,0)*\n(AR$10*OFFSET('Efficiency Distributions'!$D$10,MATCH($C171,'Efficiency Distributions'!$C$9:$C$87,0)+RIGHT($E178),0)\n+AR$11*OFFSET('Efficiency Distributions'!$E$10,MATCH($C171,'Efficiency Distributions'!$C$9:$C$87,0)+RIGHT($E178),0))\n/SUM(AR$10:AR$11)","v":0},{"$f":"IF(INDEX(PC_MAPPING,RIGHT($C171,1),MATCH($E$2,'Data by Building Type'!$D$22:$F$22,0))=\"Yes\",1,0)*\n(AS$10*OFFSET('Efficiency Distributions'!$D$10,MATCH($C171,'Efficiency Distributions'!$C$9:$C$87,0)+RIGHT($E178),0)\n+AS$11*OFFSET('Efficiency Distributions'!$E$10,MATCH($C171,'Efficiency Distributions'!$C$9:$C$87,0)+RIGHT($E178),0))\n/SUM(AS$10:AS$11)","v":0},{"$f":"IF(INDEX(PC_MAPPING,RIGHT($C171,1),MATCH($E$2,'Data by Building Type'!$D$22:$F$22,0))=\"Yes\",1,0)*\n(AT$10*OFFSET('Efficiency Distributions'!$D$10,MATCH($C171,'Efficiency Distributions'!$C$9:$C$87,0)+RIGHT($E178),0)\n+AT$11*OFFSET('Efficiency Distributions'!$E$10,MATCH($C171,'Efficiency Distributions'!$C$9:$C$87,0)+RIGHT($E178),0))\n/SUM(AT$10:AT$11)","v":0},{"$f":"IF(INDEX(PC_MAPPING,RIGHT($C171,1),MATCH($E$2,'Data by Building Type'!$D$22:$F$22,0))=\"Yes\",1,0)*\n(AU$10*OFFSET('Efficiency Distributions'!$D$10,MATCH($C171,'Efficiency Distributions'!$C$9:$C$87,0)+RIGHT($E178),0)\n+AU$11*OFFSET('Efficiency Distributions'!$E$10,MATCH($C171,'Efficiency Distributions'!$C$9:$C$87,0)+RIGHT($E178),0))\n/SUM(AU$10:AU$11)","v":0},{"$f":"IF(INDEX(PC_MAPPING,RIGHT($C171,1),MATCH($E$2,'Data by Building Type'!$D$22:$F$22,0))=\"Yes\",1,0)*\n(AV$10*OFFSET('Efficiency Distributions'!$D$10,MATCH($C171,'Efficiency Distributions'!$C$9:$C$87,0)+RIGHT($E178),0)\n+AV$11*OFFSET('Efficiency Distributions'!$E$10,MATCH($C171,'Efficiency Distributions'!$C$9:$C$87,0)+RIGHT($E178),0))\n/SUM(AV$10:AV$11)","v":0},{"$f":"IF(INDEX(PC_MAPPING,RIGHT($C171,1),MATCH($E$2,'Data by Building Type'!$D$22:$F$22,0))=\"Yes\",1,0)*\n(AW$10*OFFSET('Efficiency Distributions'!$D$10,MATCH($C171,'Efficiency Distributions'!$C$9:$C$87,0)+RIGHT($E178),0)\n+AW$11*OFFSET('Efficiency Distributions'!$E$10,MATCH($C171,'Efficiency Distributions'!$C$9:$C$87,0)+RIGHT($E178),0))\n/SUM(AW$10:AW$11)","v":0},{"$f":"IF(INDEX(PC_MAPPING,RIGHT($C171,1),MATCH($E$2,'Data by Building Type'!$D$22:$F$22,0))=\"Yes\",1,0)*\n(AX$10*OFFSET('Efficiency Distributions'!$D$10,MATCH($C171,'Efficiency Distributions'!$C$9:$C$87,0)+RIGHT($E178),0)\n+AX$11*OFFSET('Efficiency Distributions'!$E$10,MATCH($C171,'Efficiency Distributions'!$C$9:$C$87,0)+RIGHT($E178),0))\n/SUM(AX$10:AX$11)","v":0},{"$f":"IF(INDEX(PC_MAPPING,RIGHT($C171,1),MATCH($E$2,'Data by Building Type'!$D$22:$F$22,0))=\"Yes\",1,0)*\n(AY$10*OFFSET('Efficiency Distributions'!$D$10,MATCH($C171,'Efficiency Distributions'!$C$9:$C$87,0)+RIGHT($E178),0)\n+AY$11*OFFSET('Efficiency Distributions'!$E$10,MATCH($C171,'Efficiency Distributions'!$C$9:$C$87,0)+RIGHT($E178),0))\n/SUM(AY$10:AY$11)","v":0},{"$f":"IF(INDEX(PC_MAPPING,RIGHT($C171,1),MATCH($E$2,'Data by Building Type'!$D$22:$F$22,0))=\"Yes\",1,0)*\n(AZ$10*OFFSET('Efficiency Distributions'!$D$10,MATCH($C171,'Efficiency Distributions'!$C$9:$C$87,0)+RIGHT($E178),0)\n+AZ$11*OFFSET('Efficiency Distributions'!$E$10,MATCH($C171,'Efficiency Distributions'!$C$9:$C$87,0)+RIGHT($E178),0))\n/SUM(AZ$10:AZ$11)","v":0},{"$f":"IF(INDEX(PC_MAPPING,RIGHT($C171,1),MATCH($E$2,'Data by Building Type'!$D$22:$F$22,0))=\"Yes\",1,0)*\n(BA$10*OFFSET('Efficiency Distributions'!$D$10,MATCH($C171,'Efficiency Distributions'!$C$9:$C$87,0)+RIGHT($E178),0)\n+BA$11*OFFSET('Efficiency Distributions'!$E$10,MATCH($C171,'Efficiency Distributions'!$C$9:$C$87,0)+RIGHT($E178),0))\n/SUM(BA$10:BA$11)","v":0},{"$f":"IF(INDEX(PC_MAPPING,RIGHT($C171,1),MATCH($E$2,'Data by Building Type'!$D$22:$F$22,0))=\"Yes\",1,0)*\n(BB$10*OFFSET('Efficiency Distributions'!$D$10,MATCH($C171,'Efficiency Distributions'!$C$9:$C$87,0)+RIGHT($E178),0)\n+BB$11*OFFSET('Efficiency Distributions'!$E$10,MATCH($C171,'Efficiency Distributions'!$C$9:$C$87,0)+RIGHT($E178),0))\n/SUM(BB$10:BB$11)","v":0},{"$f":"IF(INDEX(PC_MAPPING,RIGHT($C171,1),MATCH($E$2,'Data by Building Type'!$D$22:$F$22,0))=\"Yes\",1,0)*\n(BC$10*OFFSET('Efficiency Distributions'!$D$10,MATCH($C171,'Efficiency Distributions'!$C$9:$C$87,0)+RIGHT($E178),0)\n+BC$11*OFFSET('Efficiency Distributions'!$E$10,MATCH($C171,'Efficiency Distributions'!$C$9:$C$87,0)+RIGHT($E178),0))\n/SUM(BC$10:BC$11)","v":0},{"$f":"IF(INDEX(PC_MAPPING,RIGHT($C171,1),MATCH($E$2,'Data by Building Type'!$D$22:$F$22,0))=\"Yes\",1,0)*\n(BD$10*OFFSET('Efficiency Distributions'!$D$10,MATCH($C171,'Efficiency Distributions'!$C$9:$C$87,0)+RIGHT($E178),0)\n+BD$11*OFFSET('Efficiency Distributions'!$E$10,MATCH($C171,'Efficiency Distributions'!$C$9:$C$87,0)+RIGHT($E178),0))\n/SUM(BD$10:BD$11)","v":0},{"$f":"IF(INDEX(PC_MAPPING,RIGHT($C171,1),MATCH($E$2,'Data by Building Type'!$D$22:$F$22,0))=\"Yes\",1,0)*\n(BE$10*OFFSET('Efficiency Distributions'!$D$10,MATCH($C171,'Efficiency Distributions'!$C$9:$C$87,0)+RIGHT($E178),0)\n+BE$11*OFFSET('Efficiency Distributions'!$E$10,MATCH($C171,'Efficiency Distributions'!$C$9:$C$87,0)+RIGHT($E178),0))\n/SUM(BE$10:BE$11)","v":0},{"$f":"IF(INDEX(PC_MAPPING,RIGHT($C171,1),MATCH($E$2,'Data by Building Type'!$D$22:$F$22,0))=\"Yes\",1,0)*\n(BF$10*OFFSET('Efficiency Distributions'!$D$10,MATCH($C171,'Efficiency Distributions'!$C$9:$C$87,0)+RIGHT($E178),0)\n+BF$11*OFFSET('Efficiency Distributions'!$E$10,MATCH($C171,'Efficiency Distributions'!$C$9:$C$87,0)+RIGHT($E178),0))\n/SUM(BF$10:BF$11)","v":0},{"$f":"IF(INDEX(PC_MAPPING,RIGHT($C171,1),MATCH($E$2,'Data by Building Type'!$D$22:$F$22,0))=\"Yes\",1,0)*\n(BG$10*OFFSET('Efficiency Distributions'!$D$10,MATCH($C171,'Efficiency Distributions'!$C$9:$C$87,0)+RIGHT($E178),0)\n+BG$11*OFFSET('Efficiency Distributions'!$E$10,MATCH($C171,'Efficiency Distributions'!$C$9:$C$87,0)+RIGHT($E178),0))\n/SUM(BG$10:BG$11)","v":0}]
[null,null,null,null,"EL4",{"$f":"IF(INDEX(PC_MAPPING,RIGHT($C171,1),MATCH($E$2,'Data by Building Type'!$D$22:$F$22,0))=\"Yes\",1,0)*\n(F$10*OFFSET('Efficiency Distributions'!$D$10,MATCH($C171,'Efficiency Distributions'!$C$9:$C$87,0)+RIGHT($E179),0)\n+F$11*OFFSET('Efficiency Distributions'!$E$10,MATCH($C171,'Efficiency Distributions'!$C$9:$C$87,0)+RIGHT($E179),0))\n/SUM(F$10:F$11)","v":0},{"$f":"IF(INDEX(PC_MAPPING,RIGHT($C171,1),MATCH($E$2,'Data by Building Type'!$D$22:$F$22,0))=\"Yes\",1,0)*\n(G$10*OFFSET('Efficiency Distributions'!$D$10,MATCH($C171,'Efficiency Distributions'!$C$9:$C$87,0)+RIGHT($E179),0)\n+G$11*OFFSET('Efficiency Distributions'!$E$10,MATCH($C171,'Efficiency Distributions'!$C$9:$C$87,0)+RIGHT($E179),0))\n/SUM(G$10:G$11)","v":0},{"$f":"IF(INDEX(PC_MAPPING,RIGHT($C171,1),MATCH($E$2,'Data by Building Type'!$D$22:$F$22,0))=\"Yes\",1,0)*\n(H$10*OFFSET('Efficiency Distributions'!$D$10,MATCH($C171,'Efficiency Distributions'!$C$9:$C$87,0)+RIGHT($E179),0)\n+H$11*OFFSET('Efficiency Distributions'!$E$10,MATCH($C171,'Efficiency Distributions'!$C$9:$C$87,0)+RIGHT($E179),0))\n/SUM(H$10:H$11)","v":0},{"$f":"IF(INDEX(PC_MAPPING,RIGHT($C171,1),MATCH($E$2,'Data by Building Type'!$D$22:$F$22,0))=\"Yes\",1,0)*\n(I$10*OFFSET('Efficiency Distributions'!$D$10,MATCH($C171,'Efficiency Distributions'!$C$9:$C$87,0)+RIGHT($E179),0)\n+I$11*OFFSET('Efficiency Distributions'!$E$10,MATCH($C171,'Efficiency Distributions'!$C$9:$C$87,0)+RIGHT($E179),0))\n/SUM(I$10:I$11)","v":0},{"$f":"IF(INDEX(PC_MAPPING,RIGHT($C171,1),MATCH($E$2,'Data by Building Type'!$D$22:$F$22,0))=\"Yes\",1,0)*\n(J$10*OFFSET('Efficiency Distributions'!$D$10,MATCH($C171,'Efficiency Distributions'!$C$9:$C$87,0)+RIGHT($E179),0)\n+J$11*OFFSET('Efficiency Distributions'!$E$10,MATCH($C171,'Efficiency Distributions'!$C$9:$C$87,0)+RIGHT($E179),0))\n/SUM(J$10:J$11)","v":0},{"$f":"IF(INDEX(PC_MAPPING,RIGHT($C171,1),MATCH($E$2,'Data by Building Type'!$D$22:$F$22,0))=\"Yes\",1,0)*\n(K$10*OFFSET('Efficiency Distributions'!$D$10,MATCH($C171,'Efficiency Distributions'!$C$9:$C$87,0)+RIGHT($E179),0)\n+K$11*OFFSET('Efficiency Distributions'!$E$10,MATCH($C171,'Efficiency Distributions'!$C$9:$C$87,0)+RIGHT($E179),0))\n/SUM(K$10:K$11)","v":0},{"$f":"IF(INDEX(PC_MAPPING,RIGHT($C171,1),MATCH($E$2,'Data by Building Type'!$D$22:$F$22,0))=\"Yes\",1,0)*\n(L$10*OFFSET('Efficiency Distributions'!$D$10,MATCH($C171,'Efficiency Distributions'!$C$9:$C$87,0)+RIGHT($E179),0)\n+L$11*OFFSET('Efficiency Distributions'!$E$10,MATCH($C171,'Efficiency Distributions'!$C$9:$C$87,0)+RIGHT($E179),0))\n/SUM(L$10:L$11)","v":0},{"$f":"IF(INDEX(PC_MAPPING,RIGHT($C171,1),MATCH($E$2,'Data by Building Type'!$D$22:$F$22,0))=\"Yes\",1,0)*\n(M$10*OFFSET('Efficiency Distributions'!$D$10,MATCH($C171,'Efficiency Distributions'!$C$9:$C$87,0)+RIGHT($E179),0)\n+M$11*OFFSET('Efficiency Distributions'!$E$10,MATCH($C171,'Efficiency Distributions'!$C$9:$C$87,0)+RIGHT($E179),0))\n/SUM(M$10:M$11)","v":0},{"$f":"IF(INDEX(PC_MAPPING,RIGHT($C171,1),MATCH($E$2,'Data by Building Type'!$D$22:$F$22,0))=\"Yes\",1,0)*\n(N$10*OFFSET('Efficiency Distributions'!$D$10,MATCH($C171,'Efficiency Distributions'!$C$9:$C$87,0)+RIGHT($E179),0)\n+N$11*OFFSET('Efficiency Distributions'!$E$10,MATCH($C171,'Efficiency Distributions'!$C$9:$C$87,0)+RIGHT($E179),0))\n/SUM(N$10:N$11)","v":0},{"$f":"IF(INDEX(PC_MAPPING,RIGHT($C171,1),MATCH($E$2,'Data by Building Type'!$D$22:$F$22,0))=\"Yes\",1,0)*\n(O$10*OFFSET('Efficiency Distributions'!$D$10,MATCH($C171,'Efficiency Distributions'!$C$9:$C$87,0)+RIGHT($E179),0)\n+O$11*OFFSET('Efficiency Distributions'!$E$10,MATCH($C171,'Efficiency Distributions'!$C$9:$C$87,0)+RIGHT($E179),0))\n/SUM(O$10:O$11)","v":0},{"$f":"IF(INDEX(PC_MAPPING,RIGHT($C171,1),MATCH($E$2,'Data by Building Type'!$D$22:$F$22,0))=\"Yes\",1,0)*\n(P$10*OFFSET('Efficiency Distributions'!$D$10,MATCH($C171,'Efficiency Distributions'!$C$9:$C$87,0)+RIGHT($E179),0)\n+P$11*OFFSET('Efficiency Distributions'!$E$10,MATCH($C171,'Efficiency Distributions'!$C$9:$C$87,0)+RIGHT($E179),0))\n/SUM(P$10:P$11)","v":0},{"$f":"IF(INDEX(PC_MAPPING,RIGHT($C171,1),MATCH($E$2,'Data by Building Type'!$D$22:$F$22,0))=\"Yes\",1,0)*\n(Q$10*OFFSET('Efficiency Distributions'!$D$10,MATCH($C171,'Efficiency Distributions'!$C$9:$C$87,0)+RIGHT($E179),0)\n+Q$11*OFFSET('Efficiency Distributions'!$E$10,MATCH($C171,'Efficiency Distributions'!$C$9:$C$87,0)+RIGHT($E179),0))\n/SUM(Q$10:Q$11)","v":0},{"$f":"IF(INDEX(PC_MAPPING,RIGHT($C171,1),MATCH($E$2,'Data by Building Type'!$D$22:$F$22,0))=\"Yes\",1,0)*\n(R$10*OFFSET('Efficiency Distributions'!$D$10,MATCH($C171,'Efficiency Distributions'!$C$9:$C$87,0)+RIGHT($E179),0)\n+R$11*OFFSET('Efficiency Distributions'!$E$10,MATCH($C171,'Efficiency Distributions'!$C$9:$C$87,0)+RIGHT($E179),0))\n/SUM(R$10:R$11)","v":0},{"$f":"IF(INDEX(PC_MAPPING,RIGHT($C171,1),MATCH($E$2,'Data by Building Type'!$D$22:$F$22,0))=\"Yes\",1,0)*\n(S$10*OFFSET('Efficiency Distributions'!$D$10,MATCH($C171,'Efficiency Distributions'!$C$9:$C$87,0)+RIGHT($E179),0)\n+S$11*OFFSET('Efficiency Distributions'!$E$10,MATCH($C171,'Efficiency Distributions'!$C$9:$C$87,0)+RIGHT($E179),0))\n/SUM(S$10:S$11)","v":0},{"$f":"IF(INDEX(PC_MAPPING,RIGHT($C171,1),MATCH($E$2,'Data by Building Type'!$D$22:$F$22,0))=\"Yes\",1,0)*\n(T$10*OFFSET('Efficiency Distributions'!$D$10,MATCH($C171,'Efficiency Distributions'!$C$9:$C$87,0)+RIGHT($E179),0)\n+T$11*OFFSET('Efficiency Distributions'!$E$10,MATCH($C171,'Efficiency Distributions'!$C$9:$C$87,0)+RIGHT($E179),0))\n/SUM(T$10:T$11)","v":0},{"$f":"IF(INDEX(PC_MAPPING,RIGHT($C171,1),MATCH($E$2,'Data by Building Type'!$D$22:$F$22,0))=\"Yes\",1,0)*\n(U$10*OFFSET('Efficiency Distributions'!$D$10,MATCH($C171,'Efficiency Distributions'!$C$9:$C$87,0)+RIGHT($E179),0)\n+U$11*OFFSET('Efficiency Distributions'!$E$10,MATCH($C171,'Efficiency Distributions'!$C$9:$C$87,0)+RIGHT($E179),0))\n/SUM(U$10:U$11)","v":0},{"$f":"IF(INDEX(PC_MAPPING,RIGHT($C171,1),MATCH($E$2,'Data by Building Type'!$D$22:$F$22,0))=\"Yes\",1,0)*\n(V$10*OFFSET('Efficiency Distributions'!$D$10,MATCH($C171,'Efficiency Distributions'!$C$9:$C$87,0)+RIGHT($E179),0)\n+V$11*OFFSET('Efficiency Distributions'!$E$10,MATCH($C171,'Efficiency Distributions'!$C$9:$C$87,0)+RIGHT($E179),0))\n/SUM(V$10:V$11)","v":0},{"$f":"IF(INDEX(PC_MAPPING,RIGHT($C171,1),MATCH($E$2,'Data by Building Type'!$D$22:$F$22,0))=\"Yes\",1,0)*\n(W$10*OFFSET('Efficiency Distributions'!$D$10,MATCH($C171,'Efficiency Distributions'!$C$9:$C$87,0)+RIGHT($E179),0)\n+W$11*OFFSET('Efficiency Distributions'!$E$10,MATCH($C171,'Efficiency Distributions'!$C$9:$C$87,0)+RIGHT($E179),0))\n/SUM(W$10:W$11)","v":0},{"$f":"IF(INDEX(PC_MAPPING,RIGHT($C171,1),MATCH($E$2,'Data by Building Type'!$D$22:$F$22,0))=\"Yes\",1,0)*\n(X$10*OFFSET('Efficiency Distributions'!$D$10,MATCH($C171,'Efficiency Distributions'!$C$9:$C$87,0)+RIGHT($E179),0)\n+X$11*OFFSET('Efficiency Distributions'!$E$10,MATCH($C171,'Efficiency Distributions'!$C$9:$C$87,0)+RIGHT($E179),0))\n/SUM(X$10:X$11)","v":0},{"$f":"IF(INDEX(PC_MAPPING,RIGHT($C171,1),MATCH($E$2,'Data by Building Type'!$D$22:$F$22,0))=\"Yes\",1,0)*\n(Y$10*OFFSET('Efficiency Distributions'!$D$10,MATCH($C171,'Efficiency Distributions'!$C$9:$C$87,0)+RIGHT($E179),0)\n+Y$11*OFFSET('Efficiency Distributions'!$E$10,MATCH($C171,'Efficiency Distributions'!$C$9:$C$87,0)+RIGHT($E179),0))\n/SUM(Y$10:Y$11)","v":0},{"$f":"IF(INDEX(PC_MAPPING,RIGHT($C171,1),MATCH($E$2,'Data by Building Type'!$D$22:$F$22,0))=\"Yes\",1,0)*\n(Z$10*OFFSET('Efficiency Distributions'!$D$10,MATCH($C171,'Efficiency Distributions'!$C$9:$C$87,0)+RIGHT($E179),0)\n+Z$11*OFFSET('Efficiency Distributions'!$E$10,MATCH($C171,'Efficiency Distributions'!$C$9:$C$87,0)+RIGHT($E179),0))\n/SUM(Z$10:Z$11)","v":0},{"$f":"IF(INDEX(PC_MAPPING,RIGHT($C171,1),MATCH($E$2,'Data by Building Type'!$D$22:$F$22,0))=\"Yes\",1,0)*\n(AA$10*OFFSET('Efficiency Distributions'!$D$10,MATCH($C171,'Efficiency Distributions'!$C$9:$C$87,0)+RIGHT($E179),0)\n+AA$11*OFFSET('Efficiency Distributions'!$E$10,MATCH($C171,'Efficiency Distributions'!$C$9:$C$87,0)+RIGHT($E179),0))\n/SUM(AA$10:AA$11)","v":0},{"$f":"IF(INDEX(PC_MAPPING,RIGHT($C171,1),MATCH($E$2,'Data by Building Type'!$D$22:$F$22,0))=\"Yes\",1,0)*\n(AB$10*OFFSET('Efficiency Distributions'!$D$10,MATCH($C171,'Efficiency Distributions'!$C$9:$C$87,0)+RIGHT($E179),0)\n+AB$11*OFFSET('Efficiency Distributions'!$E$10,MATCH($C171,'Efficiency Distributions'!$C$9:$C$87,0)+RIGHT($E179),0))\n/SUM(AB$10:AB$11)","v":0},{"$f":"IF(INDEX(PC_MAPPING,RIGHT($C171,1),MATCH($E$2,'Data by Building Type'!$D$22:$F$22,0))=\"Yes\",1,0)*\n(AC$10*OFFSET('Efficiency Distributions'!$D$10,MATCH($C171,'Efficiency Distributions'!$C$9:$C$87,0)+RIGHT($E179),0)\n+AC$11*OFFSET('Efficiency Distributions'!$E$10,MATCH($C171,'Efficiency Distributions'!$C$9:$C$87,0)+RIGHT($E179),0))\n/SUM(AC$10:AC$11)","v":0},{"$f":"IF(INDEX(PC_MAPPING,RIGHT($C171,1),MATCH($E$2,'Data by Building Type'!$D$22:$F$22,0))=\"Yes\",1,0)*\n(AD$10*OFFSET('Efficiency Distributions'!$D$10,MATCH($C171,'Efficiency Distributions'!$C$9:$C$87,0)+RIGHT($E179),0)\n+AD$11*OFFSET('Efficiency Distributions'!$E$10,MATCH($C171,'Efficiency Distributions'!$C$9:$C$87,0)+RIGHT($E179),0))\n/SUM(AD$10:AD$11)","v":0},{"$f":"IF(INDEX(PC_MAPPING,RIGHT($C171,1),MATCH($E$2,'Data by Building Type'!$D$22:$F$22,0))=\"Yes\",1,0)*\n(AE$10*OFFSET('Efficiency Distributions'!$D$10,MATCH($C171,'Efficiency Distributions'!$C$9:$C$87,0)+RIGHT($E179),0)\n+AE$11*OFFSET('Efficiency Distributions'!$E$10,MATCH($C171,'Efficiency Distributions'!$C$9:$C$87,0)+RIGHT($E179),0))\n/SUM(AE$10:AE$11)","v":0},{"$f":"IF(INDEX(PC_MAPPING,RIGHT($C171,1),MATCH($E$2,'Data by Building Type'!$D$22:$F$22,0))=\"Yes\",1,0)*\n(AF$10*OFFSET('Efficiency Distributions'!$D$10,MATCH($C171,'Efficiency Distributions'!$C$9:$C$87,0)+RIGHT($E179),0)\n+AF$11*OFFSET('Efficiency Distributions'!$E$10,MATCH($C171,'Efficiency Distributions'!$C$9:$C$87,0)+RIGHT($E179),0))\n/SUM(AF$10:AF$11)","v":0},{"$f":"IF(INDEX(PC_MAPPING,RIGHT($C171,1),MATCH($E$2,'Data by Building Type'!$D$22:$F$22,0))=\"Yes\",1,0)*\n(AG$10*OFFSET('Efficiency Distributions'!$D$10,MATCH($C171,'Efficiency Distributions'!$C$9:$C$87,0)+RIGHT($E179),0)\n+AG$11*OFFSET('Efficiency Distributions'!$E$10,MATCH($C171,'Efficiency Distributions'!$C$9:$C$87,0)+RIGHT($E179),0))\n/SUM(AG$10:AG$11)","v":0},{"$f":"IF(INDEX(PC_MAPPING,RIGHT($C171,1),MATCH($E$2,'Data by Building Type'!$D$22:$F$22,0))=\"Yes\",1,0)*\n(AH$10*OFFSET('Efficiency Distributions'!$D$10,MATCH($C171,'Efficiency Distributions'!$C$9:$C$87,0)+RIGHT($E179),0)\n+AH$11*OFFSET('Efficiency Distributions'!$E$10,MATCH($C171,'Efficiency Distributions'!$C$9:$C$87,0)+RIGHT($E179),0))\n/SUM(AH$10:AH$11)","v":0},{"$f":"IF(INDEX(PC_MAPPING,RIGHT($C171,1),MATCH($E$2,'Data by Building Type'!$D$22:$F$22,0))=\"Yes\",1,0)*\n(AI$10*OFFSET('Efficiency Distributions'!$D$10,MATCH($C171,'Efficiency Distributions'!$C$9:$C$87,0)+RIGHT($E179),0)\n+AI$11*OFFSET('Efficiency Distributions'!$E$10,MATCH($C171,'Efficiency Distributions'!$C$9:$C$87,0)+RIGHT($E179),0))\n/SUM(AI$10:AI$11)","v":0},{"$f":"IF(INDEX(PC_MAPPING,RIGHT($C171,1),MATCH($E$2,'Data by Building Type'!$D$22:$F$22,0))=\"Yes\",1,0)*\n(AJ$10*OFFSET('Efficiency Distributions'!$D$10,MATCH($C171,'Efficiency Distributions'!$C$9:$C$87,0)+RIGHT($E179),0)\n+AJ$11*OFFSET('Efficiency Distributions'!$E$10,MATCH($C171,'Efficiency Distributions'!$C$9:$C$87,0)+RIGHT($E179),0))\n/SUM(AJ$10:AJ$11)","v":0},{"$f":"IF(INDEX(PC_MAPPING,RIGHT($C171,1),MATCH($E$2,'Data by Building Type'!$D$22:$F$22,0))=\"Yes\",1,0)*\n(AK$10*OFFSET('Efficiency Distributions'!$D$10,MATCH($C171,'Efficiency Distributions'!$C$9:$C$87,0)+RIGHT($E179),0)\n+AK$11*OFFSET('Efficiency Distributions'!$E$10,MATCH($C171,'Efficiency Distributions'!$C$9:$C$87,0)+RIGHT($E179),0))\n/SUM(AK$10:AK$11)","v":0},{"$f":"IF(INDEX(PC_MAPPING,RIGHT($C171,1),MATCH($E$2,'Data by Building Type'!$D$22:$F$22,0))=\"Yes\",1,0)*\n(AL$10*OFFSET('Efficiency Distributions'!$D$10,MATCH($C171,'Efficiency Distributions'!$C$9:$C$87,0)+RIGHT($E179),0)\n+AL$11*OFFSET('Efficiency Distributions'!$E$10,MATCH($C171,'Efficiency Distributions'!$C$9:$C$87,0)+RIGHT($E179),0))\n/SUM(AL$10:AL$11)","v":0},{"$f":"IF(INDEX(PC_MAPPING,RIGHT($C171,1),MATCH($E$2,'Data by Building Type'!$D$22:$F$22,0))=\"Yes\",1,0)*\n(AM$10*OFFSET('Efficiency Distributions'!$D$10,MATCH($C171,'Efficiency Distributions'!$C$9:$C$87,0)+RIGHT($E179),0)\n+AM$11*OFFSET('Efficiency Distributions'!$E$10,MATCH($C171,'Efficiency Distributions'!$C$9:$C$87,0)+RIGHT($E179),0))\n/SUM(AM$10:AM$11)","v":0},{"$f":"IF(INDEX(PC_MAPPING,RIGHT($C171,1),MATCH($E$2,'Data by Building Type'!$D$22:$F$22,0))=\"Yes\",1,0)*\n(AN$10*OFFSET('Efficiency Distributions'!$D$10,MATCH($C171,'Efficiency Distributions'!$C$9:$C$87,0)+RIGHT($E179),0)\n+AN$11*OFFSET('Efficiency Distributions'!$E$10,MATCH($C171,'Efficiency Distributions'!$C$9:$C$87,0)+RIGHT($E179),0))\n/SUM(AN$10:AN$11)","v":0},{"$f":"IF(INDEX(PC_MAPPING,RIGHT($C171,1),MATCH($E$2,'Data by Building Type'!$D$22:$F$22,0))=\"Yes\",1,0)*\n(AO$10*OFFSET('Efficiency Distributions'!$D$10,MATCH($C171,'Efficiency Distributions'!$C$9:$C$87,0)+RIGHT($E179),0)\n+AO$11*OFFSET('Efficiency Distributions'!$E$10,MATCH($C171,'Efficiency Distributions'!$C$9:$C$87,0)+RIGHT($E179),0))\n/SUM(AO$10:AO$11)","v":0},{"$f":"IF(INDEX(PC_MAPPING,RIGHT($C171,1),MATCH($E$2,'Data by Building Type'!$D$22:$F$22,0))=\"Yes\",1,0)*\n(AP$10*OFFSET('Efficiency Distributions'!$D$10,MATCH($C171,'Efficiency Distributions'!$C$9:$C$87,0)+RIGHT($E179),0)\n+AP$11*OFFSET('Efficiency Distributions'!$E$10,MATCH($C171,'Efficiency Distributions'!$C$9:$C$87,0)+RIGHT($E179),0))\n/SUM(AP$10:AP$11)","v":0},{"$f":"IF(INDEX(PC_MAPPING,RIGHT($C171,1),MATCH($E$2,'Data by Building Type'!$D$22:$F$22,0))=\"Yes\",1,0)*\n(AQ$10*OFFSET('Efficiency Distributions'!$D$10,MATCH($C171,'Efficiency Distributions'!$C$9:$C$87,0)+RIGHT($E179),0)\n+AQ$11*OFFSET('Efficiency Distributions'!$E$10,MATCH($C171,'Efficiency Distributions'!$C$9:$C$87,0)+RIGHT($E179),0))\n/SUM(AQ$10:AQ$11)","v":0},{"$f":"IF(INDEX(PC_MAPPING,RIGHT($C171,1),MATCH($E$2,'Data by Building Type'!$D$22:$F$22,0))=\"Yes\",1,0)*\n(AR$10*OFFSET('Efficiency Distributions'!$D$10,MATCH($C171,'Efficiency Distributions'!$C$9:$C$87,0)+RIGHT($E179),0)\n+AR$11*OFFSET('Efficiency Distributions'!$E$10,MATCH($C171,'Efficiency Distributions'!$C$9:$C$87,0)+RIGHT($E179),0))\n/SUM(AR$10:AR$11)","v":0},{"$f":"IF(INDEX(PC_MAPPING,RIGHT($C171,1),MATCH($E$2,'Data by Building Type'!$D$22:$F$22,0))=\"Yes\",1,0)*\n(AS$10*OFFSET('Efficiency Distributions'!$D$10,MATCH($C171,'Efficiency Distributions'!$C$9:$C$87,0)+RIGHT($E179),0)\n+AS$11*OFFSET('Efficiency Distributions'!$E$10,MATCH($C171,'Efficiency Distributions'!$C$9:$C$87,0)+RIGHT($E179),0))\n/SUM(AS$10:AS$11)","v":0},{"$f":"IF(INDEX(PC_MAPPING,RIGHT($C171,1),MATCH($E$2,'Data by Building Type'!$D$22:$F$22,0))=\"Yes\",1,0)*\n(AT$10*OFFSET('Efficiency Distributions'!$D$10,MATCH($C171,'Efficiency Distributions'!$C$9:$C$87,0)+RIGHT($E179),0)\n+AT$11*OFFSET('Efficiency Distributions'!$E$10,MATCH($C171,'Efficiency Distributions'!$C$9:$C$87,0)+RIGHT($E179),0))\n/SUM(AT$10:AT$11)","v":0},{"$f":"IF(INDEX(PC_MAPPING,RIGHT($C171,1),MATCH($E$2,'Data by Building Type'!$D$22:$F$22,0))=\"Yes\",1,0)*\n(AU$10*OFFSET('Efficiency Distributions'!$D$10,MATCH($C171,'Efficiency Distributions'!$C$9:$C$87,0)+RIGHT($E179),0)\n+AU$11*OFFSET('Efficiency Distributions'!$E$10,MATCH($C171,'Efficiency Distributions'!$C$9:$C$87,0)+RIGHT($E179),0))\n/SUM(AU$10:AU$11)","v":0},{"$f":"IF(INDEX(PC_MAPPING,RIGHT($C171,1),MATCH($E$2,'Data by Building Type'!$D$22:$F$22,0))=\"Yes\",1,0)*\n(AV$10*OFFSET('Efficiency Distributions'!$D$10,MATCH($C171,'Efficiency Distributions'!$C$9:$C$87,0)+RIGHT($E179),0)\n+AV$11*OFFSET('Efficiency Distributions'!$E$10,MATCH($C171,'Efficiency Distributions'!$C$9:$C$87,0)+RIGHT($E179),0))\n/SUM(AV$10:AV$11)","v":0},{"$f":"IF(INDEX(PC_MAPPING,RIGHT($C171,1),MATCH($E$2,'Data by Building Type'!$D$22:$F$22,0))=\"Yes\",1,0)*\n(AW$10*OFFSET('Efficiency Distributions'!$D$10,MATCH($C171,'Efficiency Distributions'!$C$9:$C$87,0)+RIGHT($E179),0)\n+AW$11*OFFSET('Efficiency Distributions'!$E$10,MATCH($C171,'Efficiency Distributions'!$C$9:$C$87,0)+RIGHT($E179),0))\n/SUM(AW$10:AW$11)","v":0},{"$f":"IF(INDEX(PC_MAPPING,RIGHT($C171,1),MATCH($E$2,'Data by Building Type'!$D$22:$F$22,0))=\"Yes\",1,0)*\n(AX$10*OFFSET('Efficiency Distributions'!$D$10,MATCH($C171,'Efficiency Distributions'!$C$9:$C$87,0)+RIGHT($E179),0)\n+AX$11*OFFSET('Efficiency Distributions'!$E$10,MATCH($C171,'Efficiency Distributions'!$C$9:$C$87,0)+RIGHT($E179),0))\n/SUM(AX$10:AX$11)","v":0},{"$f":"IF(INDEX(PC_MAPPING,RIGHT($C171,1),MATCH($E$2,'Data by Building Type'!$D$22:$F$22,0))=\"Yes\",1,0)*\n(AY$10*OFFSET('Efficiency Distributions'!$D$10,MATCH($C171,'Efficiency Distributions'!$C$9:$C$87,0)+RIGHT($E179),0)\n+AY$11*OFFSET('Efficiency Distributions'!$E$10,MATCH($C171,'Efficiency Distributions'!$C$9:$C$87,0)+RIGHT($E179),0))\n/SUM(AY$10:AY$11)","v":0},{"$f":"IF(INDEX(PC_MAPPING,RIGHT($C171,1),MATCH($E$2,'Data by Building Type'!$D$22:$F$22,0))=\"Yes\",1,0)*\n(AZ$10*OFFSET('Efficiency Distributions'!$D$10,MATCH($C171,'Efficiency Distributions'!$C$9:$C$87,0)+RIGHT($E179),0)\n+AZ$11*OFFSET('Efficiency Distributions'!$E$10,MATCH($C171,'Efficiency Distributions'!$C$9:$C$87,0)+RIGHT($E179),0))\n/SUM(AZ$10:AZ$11)","v":0},{"$f":"IF(INDEX(PC_MAPPING,RIGHT($C171,1),MATCH($E$2,'Data by Building Type'!$D$22:$F$22,0))=\"Yes\",1,0)*\n(BA$10*OFFSET('Efficiency Distributions'!$D$10,MATCH($C171,'Efficiency Distributions'!$C$9:$C$87,0)+RIGHT($E179),0)\n+BA$11*OFFSET('Efficiency Distributions'!$E$10,MATCH($C171,'Efficiency Distributions'!$C$9:$C$87,0)+RIGHT($E179),0))\n/SUM(BA$10:BA$11)","v":0},{"$f":"IF(INDEX(PC_MAPPING,RIGHT($C171,1),MATCH($E$2,'Data by Building Type'!$D$22:$F$22,0))=\"Yes\",1,0)*\n(BB$10*OFFSET('Efficiency Distributions'!$D$10,MATCH($C171,'Efficiency Distributions'!$C$9:$C$87,0)+RIGHT($E179),0)\n+BB$11*OFFSET('Efficiency Distributions'!$E$10,MATCH($C171,'Efficiency Distributions'!$C$9:$C$87,0)+RIGHT($E179),0))\n/SUM(BB$10:BB$11)","v":0},{"$f":"IF(INDEX(PC_MAPPING,RIGHT($C171,1),MATCH($E$2,'Data by Building Type'!$D$22:$F$22,0))=\"Yes\",1,0)*\n(BC$10*OFFSET('Efficiency Distributions'!$D$10,MATCH($C171,'Efficiency Distributions'!$C$9:$C$87,0)+RIGHT($E179),0)\n+BC$11*OFFSET('Efficiency Distributions'!$E$10,MATCH($C171,'Efficiency Distributions'!$C$9:$C$87,0)+RIGHT($E179),0))\n/SUM(BC$10:BC$11)","v":0},{"$f":"IF(INDEX(PC_MAPPING,RIGHT($C171,1),MATCH($E$2,'Data by Building Type'!$D$22:$F$22,0))=\"Yes\",1,0)*\n(BD$10*OFFSET('Efficiency Distributions'!$D$10,MATCH($C171,'Efficiency Distributions'!$C$9:$C$87,0)+RIGHT($E179),0)\n+BD$11*OFFSET('Efficiency Distributions'!$E$10,MATCH($C171,'Efficiency Distributions'!$C$9:$C$87,0)+RIGHT($E179),0))\n/SUM(BD$10:BD$11)","v":0},{"$f":"IF(INDEX(PC_MAPPING,RIGHT($C171,1),MATCH($E$2,'Data by Building Type'!$D$22:$F$22,0))=\"Yes\",1,0)*\n(BE$10*OFFSET('Efficiency Distributions'!$D$10,MATCH($C171,'Efficiency Distributions'!$C$9:$C$87,0)+RIGHT($E179),0)\n+BE$11*OFFSET('Efficiency Distributions'!$E$10,MATCH($C171,'Efficiency Distributions'!$C$9:$C$87,0)+RIGHT($E179),0))\n/SUM(BE$10:BE$11)","v":0},{"$f":"IF(INDEX(PC_MAPPING,RIGHT($C171,1),MATCH($E$2,'Data by Building Type'!$D$22:$F$22,0))=\"Yes\",1,0)*\n(BF$10*OFFSET('Efficiency Distributions'!$D$10,MATCH($C171,'Efficiency Distributions'!$C$9:$C$87,0)+RIGHT($E179),0)\n+BF$11*OFFSET('Efficiency Distributions'!$E$10,MATCH($C171,'Efficiency Distributions'!$C$9:$C$87,0)+RIGHT($E179),0))\n/SUM(BF$10:BF$11)","v":0},{"$f":"IF(INDEX(PC_MAPPING,RIGHT($C171,1),MATCH($E$2,'Data by Building Type'!$D$22:$F$22,0))=\"Yes\",1,0)*\n(BG$10*OFFSET('Efficiency Distributions'!$D$10,MATCH($C171,'Efficiency Distributions'!$C$9:$C$87,0)+RIGHT($E179),0)\n+BG$11*OFFSET('Efficiency Distributions'!$E$10,MATCH($C171,'Efficiency Distributions'!$C$9:$C$87,0)+RIGHT($E179),0))\n/SUM(BG$10:BG$11)","v":0}]
[null,null,null,null,"EL5",{"$f":"IF(INDEX(PC_MAPPING,RIGHT($C171,1),MATCH($E$2,'Data by Building Type'!$D$22:$F$22,0))=\"Yes\",1,0)*\n(F$10*OFFSET('Efficiency Distributions'!$D$10,MATCH($C171,'Efficiency Distributions'!$C$9:$C$87,0)+RIGHT($E180),0)\n+F$11*OFFSET('Efficiency Distributions'!$E$10,MATCH($C171,'Efficiency Distributions'!$C$9:$C$87,0)+RIGHT($E180),0))\n/SUM(F$10:F$11)","v":0},{"$f":"IF(INDEX(PC_MAPPING,RIGHT($C171,1),MATCH($E$2,'Data by Building Type'!$D$22:$F$22,0))=\"Yes\",1,0)*\n(G$10*OFFSET('Efficiency Distributions'!$D$10,MATCH($C171,'Efficiency Distributions'!$C$9:$C$87,0)+RIGHT($E180),0)\n+G$11*OFFSET('Efficiency Distributions'!$E$10,MATCH($C171,'Efficiency Distributions'!$C$9:$C$87,0)+RIGHT($E180),0))\n/SUM(G$10:G$11)","v":0},{"$f":"IF(INDEX(PC_MAPPING,RIGHT($C171,1),MATCH($E$2,'Data by Building Type'!$D$22:$F$22,0))=\"Yes\",1,0)*\n(H$10*OFFSET('Efficiency Distributions'!$D$10,MATCH($C171,'Efficiency Distributions'!$C$9:$C$87,0)+RIGHT($E180),0)\n+H$11*OFFSET('Efficiency Distributions'!$E$10,MATCH($C171,'Efficiency Distributions'!$C$9:$C$87,0)+RIGHT($E180),0))\n/SUM(H$10:H$11)","v":0},{"$f":"IF(INDEX(PC_MAPPING,RIGHT($C171,1),MATCH($E$2,'Data by Building Type'!$D$22:$F$22,0))=\"Yes\",1,0)*\n(I$10*OFFSET('Efficiency Distributions'!$D$10,MATCH($C171,'Efficiency Distributions'!$C$9:$C$87,0)+RIGHT($E180),0)\n+I$11*OFFSET('Efficiency Distributions'!$E$10,MATCH($C171,'Efficiency Distributions'!$C$9:$C$87,0)+RIGHT($E180),0))\n/SUM(I$10:I$11)","v":0},{"$f":"IF(INDEX(PC_MAPPING,RIGHT($C171,1),MATCH($E$2,'Data by Building Type'!$D$22:$F$22,0))=\"Yes\",1,0)*\n(J$10*OFFSET('Efficiency Distributions'!$D$10,MATCH($C171,'Efficiency Distributions'!$C$9:$C$87,0)+RIGHT($E180),0)\n+J$11*OFFSET('Efficiency Distributions'!$E$10,MATCH($C171,'Efficiency Distributions'!$C$9:$C$87,0)+RIGHT($E180),0))\n/SUM(J$10:J$11)","v":0},{"$f":"IF(INDEX(PC_MAPPING,RIGHT($C171,1),MATCH($E$2,'Data by Building Type'!$D$22:$F$22,0))=\"Yes\",1,0)*\n(K$10*OFFSET('Efficiency Distributions'!$D$10,MATCH($C171,'Efficiency Distributions'!$C$9:$C$87,0)+RIGHT($E180),0)\n+K$11*OFFSET('Efficiency Distributions'!$E$10,MATCH($C171,'Efficiency Distributions'!$C$9:$C$87,0)+RIGHT($E180),0))\n/SUM(K$10:K$11)","v":0},{"$f":"IF(INDEX(PC_MAPPING,RIGHT($C171,1),MATCH($E$2,'Data by Building Type'!$D$22:$F$22,0))=\"Yes\",1,0)*\n(L$10*OFFSET('Efficiency Distributions'!$D$10,MATCH($C171,'Efficiency Distributions'!$C$9:$C$87,0)+RIGHT($E180),0)\n+L$11*OFFSET('Efficiency Distributions'!$E$10,MATCH($C171,'Efficiency Distributions'!$C$9:$C$87,0)+RIGHT($E180),0))\n/SUM(L$10:L$11)","v":0},{"$f":"IF(INDEX(PC_MAPPING,RIGHT($C171,1),MATCH($E$2,'Data by Building Type'!$D$22:$F$22,0))=\"Yes\",1,0)*\n(M$10*OFFSET('Efficiency Distributions'!$D$10,MATCH($C171,'Efficiency Distributions'!$C$9:$C$87,0)+RIGHT($E180),0)\n+M$11*OFFSET('Efficiency Distributions'!$E$10,MATCH($C171,'Efficiency Distributions'!$C$9:$C$87,0)+RIGHT($E180),0))\n/SUM(M$10:M$11)","v":0},{"$f":"IF(INDEX(PC_MAPPING,RIGHT($C171,1),MATCH($E$2,'Data by Building Type'!$D$22:$F$22,0))=\"Yes\",1,0)*\n(N$10*OFFSET('Efficiency Distributions'!$D$10,MATCH($C171,'Efficiency Distributions'!$C$9:$C$87,0)+RIGHT($E180),0)\n+N$11*OFFSET('Efficiency Distributions'!$E$10,MATCH($C171,'Efficiency Distributions'!$C$9:$C$87,0)+RIGHT($E180),0))\n/SUM(N$10:N$11)","v":0},{"$f":"IF(INDEX(PC_MAPPING,RIGHT($C171,1),MATCH($E$2,'Data by Building Type'!$D$22:$F$22,0))=\"Yes\",1,0)*\n(O$10*OFFSET('Efficiency Distributions'!$D$10,MATCH($C171,'Efficiency Distributions'!$C$9:$C$87,0)+RIGHT($E180),0)\n+O$11*OFFSET('Efficiency Distributions'!$E$10,MATCH($C171,'Efficiency Distributions'!$C$9:$C$87,0)+RIGHT($E180),0))\n/SUM(O$10:O$11)","v":0},{"$f":"IF(INDEX(PC_MAPPING,RIGHT($C171,1),MATCH($E$2,'Data by Building Type'!$D$22:$F$22,0))=\"Yes\",1,0)*\n(P$10*OFFSET('Efficiency Distributions'!$D$10,MATCH($C171,'Efficiency Distributions'!$C$9:$C$87,0)+RIGHT($E180),0)\n+P$11*OFFSET('Efficiency Distributions'!$E$10,MATCH($C171,'Efficiency Distributions'!$C$9:$C$87,0)+RIGHT($E180),0))\n/SUM(P$10:P$11)","v":0},{"$f":"IF(INDEX(PC_MAPPING,RIGHT($C171,1),MATCH($E$2,'Data by Building Type'!$D$22:$F$22,0))=\"Yes\",1,0)*\n(Q$10*OFFSET('Efficiency Distributions'!$D$10,MATCH($C171,'Efficiency Distributions'!$C$9:$C$87,0)+RIGHT($E180),0)\n+Q$11*OFFSET('Efficiency Distributions'!$E$10,MATCH($C171,'Efficiency Distributions'!$C$9:$C$87,0)+RIGHT($E180),0))\n/SUM(Q$10:Q$11)","v":0},{"$f":"IF(INDEX(PC_MAPPING,RIGHT($C171,1),MATCH($E$2,'Data by Building Type'!$D$22:$F$22,0))=\"Yes\",1,0)*\n(R$10*OFFSET('Efficiency Distributions'!$D$10,MATCH($C171,'Efficiency Distributions'!$C$9:$C$87,0)+RIGHT($E180),0)\n+R$11*OFFSET('Efficiency Distributions'!$E$10,MATCH($C171,'Efficiency Distributions'!$C$9:$C$87,0)+RIGHT($E180),0))\n/SUM(R$10:R$11)","v":0},{"$f":"IF(INDEX(PC_MAPPING,RIGHT($C171,1),MATCH($E$2,'Data by Building Type'!$D$22:$F$22,0))=\"Yes\",1,0)*\n(S$10*OFFSET('Efficiency Distributions'!$D$10,MATCH($C171,'Efficiency Distributions'!$C$9:$C$87,0)+RIGHT($E180),0)\n+S$11*OFFSET('Efficiency Distributions'!$E$10,MATCH($C171,'Efficiency Distributions'!$C$9:$C$87,0)+RIGHT($E180),0))\n/SUM(S$10:S$11)","v":0},{"$f":"IF(INDEX(PC_MAPPING,RIGHT($C171,1),MATCH($E$2,'Data by Building Type'!$D$22:$F$22,0))=\"Yes\",1,0)*\n(T$10*OFFSET('Efficiency Distributions'!$D$10,MATCH($C171,'Efficiency Distributions'!$C$9:$C$87,0)+RIGHT($E180),0)\n+T$11*OFFSET('Efficiency Distributions'!$E$10,MATCH($C171,'Efficiency Distributions'!$C$9:$C$87,0)+RIGHT($E180),0))\n/SUM(T$10:T$11)","v":0},{"$f":"IF(INDEX(PC_MAPPING,RIGHT($C171,1),MATCH($E$2,'Data by Building Type'!$D$22:$F$22,0))=\"Yes\",1,0)*\n(U$10*OFFSET('Efficiency Distributions'!$D$10,MATCH($C171,'Efficiency Distributions'!$C$9:$C$87,0)+RIGHT($E180),0)\n+U$11*OFFSET('Efficiency Distributions'!$E$10,MATCH($C171,'Efficiency Distributions'!$C$9:$C$87,0)+RIGHT($E180),0))\n/SUM(U$10:U$11)","v":0},{"$f":"IF(INDEX(PC_MAPPING,RIGHT($C171,1),MATCH($E$2,'Data by Building Type'!$D$22:$F$22,0))=\"Yes\",1,0)*\n(V$10*OFFSET('Efficiency Distributions'!$D$10,MATCH($C171,'Efficiency Distributions'!$C$9:$C$87,0)+RIGHT($E180),0)\n+V$11*OFFSET('Efficiency Distributions'!$E$10,MATCH($C171,'Efficiency Distributions'!$C$9:$C$87,0)+RIGHT($E180),0))\n/SUM(V$10:V$11)","v":0},{"$f":"IF(INDEX(PC_MAPPING,RIGHT($C171,1),MATCH($E$2,'Data by Building Type'!$D$22:$F$22,0))=\"Yes\",1,0)*\n(W$10*OFFSET('Efficiency Distributions'!$D$10,MATCH($C171,'Efficiency Distributions'!$C$9:$C$87,0)+RIGHT($E180),0)\n+W$11*OFFSET('Efficiency Distributions'!$E$10,MATCH($C171,'Efficiency Distributions'!$C$9:$C$87,0)+RIGHT($E180),0))\n/SUM(W$10:W$11)","v":0},{"$f":"IF(INDEX(PC_MAPPING,RIGHT($C171,1),MATCH($E$2,'Data by Building Type'!$D$22:$F$22,0))=\"Yes\",1,0)*\n(X$10*OFFSET('Efficiency Distributions'!$D$10,MATCH($C171,'Efficiency Distributions'!$C$9:$C$87,0)+RIGHT($E180),0)\n+X$11*OFFSET('Efficiency Distributions'!$E$10,MATCH($C171,'Efficiency Distributions'!$C$9:$C$87,0)+RIGHT($E180),0))\n/SUM(X$10:X$11)","v":0},{"$f":"IF(INDEX(PC_MAPPING,RIGHT($C171,1),MATCH($E$2,'Data by Building Type'!$D$22:$F$22,0))=\"Yes\",1,0)*\n(Y$10*OFFSET('Efficiency Distributions'!$D$10,MATCH($C171,'Efficiency Distributions'!$C$9:$C$87,0)+RIGHT($E180),0)\n+Y$11*OFFSET('Efficiency Distributions'!$E$10,MATCH($C171,'Efficiency Distributions'!$C$9:$C$87,0)+RIGHT($E180),0))\n/SUM(Y$10:Y$11)","v":0},{"$f":"IF(INDEX(PC_MAPPING,RIGHT($C171,1),MATCH($E$2,'Data by Building Type'!$D$22:$F$22,0))=\"Yes\",1,0)*\n(Z$10*OFFSET('Efficiency Distributions'!$D$10,MATCH($C171,'Efficiency Distributions'!$C$9:$C$87,0)+RIGHT($E180),0)\n+Z$11*OFFSET('Efficiency Distributions'!$E$10,MATCH($C171,'Efficiency Distributions'!$C$9:$C$87,0)+RIGHT($E180),0))\n/SUM(Z$10:Z$11)","v":0},{"$f":"IF(INDEX(PC_MAPPING,RIGHT($C171,1),MATCH($E$2,'Data by Building Type'!$D$22:$F$22,0))=\"Yes\",1,0)*\n(AA$10*OFFSET('Efficiency Distributions'!$D$10,MATCH($C171,'Efficiency Distributions'!$C$9:$C$87,0)+RIGHT($E180),0)\n+AA$11*OFFSET('Efficiency Distributions'!$E$10,MATCH($C171,'Efficiency Distributions'!$C$9:$C$87,0)+RIGHT($E180),0))\n/SUM(AA$10:AA$11)","v":0},{"$f":"IF(INDEX(PC_MAPPING,RIGHT($C171,1),MATCH($E$2,'Data by Building Type'!$D$22:$F$22,0))=\"Yes\",1,0)*\n(AB$10*OFFSET('Efficiency Distributions'!$D$10,MATCH($C171,'Efficiency Distributions'!$C$9:$C$87,0)+RIGHT($E180),0)\n+AB$11*OFFSET('Efficiency Distributions'!$E$10,MATCH($C171,'Efficiency Distributions'!$C$9:$C$87,0)+RIGHT($E180),0))\n/SUM(AB$10:AB$11)","v":0},{"$f":"IF(INDEX(PC_MAPPING,RIGHT($C171,1),MATCH($E$2,'Data by Building Type'!$D$22:$F$22,0))=\"Yes\",1,0)*\n(AC$10*OFFSET('Efficiency Distributions'!$D$10,MATCH($C171,'Efficiency Distributions'!$C$9:$C$87,0)+RIGHT($E180),0)\n+AC$11*OFFSET('Efficiency Distributions'!$E$10,MATCH($C171,'Efficiency Distributions'!$C$9:$C$87,0)+RIGHT($E180),0))\n/SUM(AC$10:AC$11)","v":0},{"$f":"IF(INDEX(PC_MAPPING,RIGHT($C171,1),MATCH($E$2,'Data by Building Type'!$D$22:$F$22,0))=\"Yes\",1,0)*\n(AD$10*OFFSET('Efficiency Distributions'!$D$10,MATCH($C171,'Efficiency Distributions'!$C$9:$C$87,0)+RIGHT($E180),0)\n+AD$11*OFFSET('Efficiency Distributions'!$E$10,MATCH($C171,'Efficiency Distributions'!$C$9:$C$87,0)+RIGHT($E180),0))\n/SUM(AD$10:AD$11)","v":0},{"$f":"IF(INDEX(PC_MAPPING,RIGHT($C171,1),MATCH($E$2,'Data by Building Type'!$D$22:$F$22,0))=\"Yes\",1,0)*\n(AE$10*OFFSET('Efficiency Distributions'!$D$10,MATCH($C171,'Efficiency Distributions'!$C$9:$C$87,0)+RIGHT($E180),0)\n+AE$11*OFFSET('Efficiency Distributions'!$E$10,MATCH($C171,'Efficiency Distributions'!$C$9:$C$87,0)+RIGHT($E180),0))\n/SUM(AE$10:AE$11)","v":0},{"$f":"IF(INDEX(PC_MAPPING,RIGHT($C171,1),MATCH($E$2,'Data by Building Type'!$D$22:$F$22,0))=\"Yes\",1,0)*\n(AF$10*OFFSET('Efficiency Distributions'!$D$10,MATCH($C171,'Efficiency Distributions'!$C$9:$C$87,0)+RIGHT($E180),0)\n+AF$11*OFFSET('Efficiency Distributions'!$E$10,MATCH($C171,'Efficiency Distributions'!$C$9:$C$87,0)+RIGHT($E180),0))\n/SUM(AF$10:AF$11)","v":0},{"$f":"IF(INDEX(PC_MAPPING,RIGHT($C171,1),MATCH($E$2,'Data by Building Type'!$D$22:$F$22,0))=\"Yes\",1,0)*\n(AG$10*OFFSET('Efficiency Distributions'!$D$10,MATCH($C171,'Efficiency Distributions'!$C$9:$C$87,0)+RIGHT($E180),0)\n+AG$11*OFFSET('Efficiency Distributions'!$E$10,MATCH($C171,'Efficiency Distributions'!$C$9:$C$87,0)+RIGHT($E180),0))\n/SUM(AG$10:AG$11)","v":0},{"$f":"IF(INDEX(PC_MAPPING,RIGHT($C171,1),MATCH($E$2,'Data by Building Type'!$D$22:$F$22,0))=\"Yes\",1,0)*\n(AH$10*OFFSET('Efficiency Distributions'!$D$10,MATCH($C171,'Efficiency Distributions'!$C$9:$C$87,0)+RIGHT($E180),0)\n+AH$11*OFFSET('Efficiency Distributions'!$E$10,MATCH($C171,'Efficiency Distributions'!$C$9:$C$87,0)+RIGHT($E180),0))\n/SUM(AH$10:AH$11)","v":0},{"$f":"IF(INDEX(PC_MAPPING,RIGHT($C171,1),MATCH($E$2,'Data by Building Type'!$D$22:$F$22,0))=\"Yes\",1,0)*\n(AI$10*OFFSET('Efficiency Distributions'!$D$10,MATCH($C171,'Efficiency Distributions'!$C$9:$C$87,0)+RIGHT($E180),0)\n+AI$11*OFFSET('Efficiency Distributions'!$E$10,MATCH($C171,'Efficiency Distributions'!$C$9:$C$87,0)+RIGHT($E180),0))\n/SUM(AI$10:AI$11)","v":0},{"$f":"IF(INDEX(PC_MAPPING,RIGHT($C171,1),MATCH($E$2,'Data by Building Type'!$D$22:$F$22,0))=\"Yes\",1,0)*\n(AJ$10*OFFSET('Efficiency Distributions'!$D$10,MATCH($C171,'Efficiency Distributions'!$C$9:$C$87,0)+RIGHT($E180),0)\n+AJ$11*OFFSET('Efficiency Distributions'!$E$10,MATCH($C171,'Efficiency Distributions'!$C$9:$C$87,0)+RIGHT($E180),0))\n/SUM(AJ$10:AJ$11)","v":0},{"$f":"IF(INDEX(PC_MAPPING,RIGHT($C171,1),MATCH($E$2,'Data by Building Type'!$D$22:$F$22,0))=\"Yes\",1,0)*\n(AK$10*OFFSET('Efficiency Distributions'!$D$10,MATCH($C171,'Efficiency Distributions'!$C$9:$C$87,0)+RIGHT($E180),0)\n+AK$11*OFFSET('Efficiency Distributions'!$E$10,MATCH($C171,'Efficiency Distributions'!$C$9:$C$87,0)+RIGHT($E180),0))\n/SUM(AK$10:AK$11)","v":0},{"$f":"IF(INDEX(PC_MAPPING,RIGHT($C171,1),MATCH($E$2,'Data by Building Type'!$D$22:$F$22,0))=\"Yes\",1,0)*\n(AL$10*OFFSET('Efficiency Distributions'!$D$10,MATCH($C171,'Efficiency Distributions'!$C$9:$C$87,0)+RIGHT($E180),0)\n+AL$11*OFFSET('Efficiency Distributions'!$E$10,MATCH($C171,'Efficiency Distributions'!$C$9:$C$87,0)+RIGHT($E180),0))\n/SUM(AL$10:AL$11)","v":0},{"$f":"IF(INDEX(PC_MAPPING,RIGHT($C171,1),MATCH($E$2,'Data by Building Type'!$D$22:$F$22,0))=\"Yes\",1,0)*\n(AM$10*OFFSET('Efficiency Distributions'!$D$10,MATCH($C171,'Efficiency Distributions'!$C$9:$C$87,0)+RIGHT($E180),0)\n+AM$11*OFFSET('Efficiency Distributions'!$E$10,MATCH($C171,'Efficiency Distributions'!$C$9:$C$87,0)+RIGHT($E180),0))\n/SUM(AM$10:AM$11)","v":0},{"$f":"IF(INDEX(PC_MAPPING,RIGHT($C171,1),MATCH($E$2,'Data by Building Type'!$D$22:$F$22,0))=\"Yes\",1,0)*\n(AN$10*OFFSET('Efficiency Distributions'!$D$10,MATCH($C171,'Efficiency Distributions'!$C$9:$C$87,0)+RIGHT($E180),0)\n+AN$11*OFFSET('Efficiency Distributions'!$E$10,MATCH($C171,'Efficiency Distributions'!$C$9:$C$87,0)+RIGHT($E180),0))\n/SUM(AN$10:AN$11)","v":0},{"$f":"IF(INDEX(PC_MAPPING,RIGHT($C171,1),MATCH($E$2,'Data by Building Type'!$D$22:$F$22,0))=\"Yes\",1,0)*\n(AO$10*OFFSET('Efficiency Distributions'!$D$10,MATCH($C171,'Efficiency Distributions'!$C$9:$C$87,0)+RIGHT($E180),0)\n+AO$11*OFFSET('Efficiency Distributions'!$E$10,MATCH($C171,'Efficiency Distributions'!$C$9:$C$87,0)+RIGHT($E180),0))\n/SUM(AO$10:AO$11)","v":0},{"$f":"IF(INDEX(PC_MAPPING,RIGHT($C171,1),MATCH($E$2,'Data by Building Type'!$D$22:$F$22,0))=\"Yes\",1,0)*\n(AP$10*OFFSET('Efficiency Distributions'!$D$10,MATCH($C171,'Efficiency Distributions'!$C$9:$C$87,0)+RIGHT($E180),0)\n+AP$11*OFFSET('Efficiency Distributions'!$E$10,MATCH($C171,'Efficiency Distributions'!$C$9:$C$87,0)+RIGHT($E180),0))\n/SUM(AP$10:AP$11)","v":0},{"$f":"IF(INDEX(PC_MAPPING,RIGHT($C171,1),MATCH($E$2,'Data by Building Type'!$D$22:$F$22,0))=\"Yes\",1,0)*\n(AQ$10*OFFSET('Efficiency Distributions'!$D$10,MATCH($C171,'Efficiency Distributions'!$C$9:$C$87,0)+RIGHT($E180),0)\n+AQ$11*OFFSET('Efficiency Distributions'!$E$10,MATCH($C171,'Efficiency Distributions'!$C$9:$C$87,0)+RIGHT($E180),0))\n/SUM(AQ$10:AQ$11)","v":0},{"$f":"IF(INDEX(PC_MAPPING,RIGHT($C171,1),MATCH($E$2,'Data by Building Type'!$D$22:$F$22,0))=\"Yes\",1,0)*\n(AR$10*OFFSET('Efficiency Distributions'!$D$10,MATCH($C171,'Efficiency Distributions'!$C$9:$C$87,0)+RIGHT($E180),0)\n+AR$11*OFFSET('Efficiency Distributions'!$E$10,MATCH($C171,'Efficiency Distributions'!$C$9:$C$87,0)+RIGHT($E180),0))\n/SUM(AR$10:AR$11)","v":0},{"$f":"IF(INDEX(PC_MAPPING,RIGHT($C171,1),MATCH($E$2,'Data by Building Type'!$D$22:$F$22,0))=\"Yes\",1,0)*\n(AS$10*OFFSET('Efficiency Distributions'!$D$10,MATCH($C171,'Efficiency Distributions'!$C$9:$C$87,0)+RIGHT($E180),0)\n+AS$11*OFFSET('Efficiency Distributions'!$E$10,MATCH($C171,'Efficiency Distributions'!$C$9:$C$87,0)+RIGHT($E180),0))\n/SUM(AS$10:AS$11)","v":0},{"$f":"IF(INDEX(PC_MAPPING,RIGHT($C171,1),MATCH($E$2,'Data by Building Type'!$D$22:$F$22,0))=\"Yes\",1,0)*\n(AT$10*OFFSET('Efficiency Distributions'!$D$10,MATCH($C171,'Efficiency Distributions'!$C$9:$C$87,0)+RIGHT($E180),0)\n+AT$11*OFFSET('Efficiency Distributions'!$E$10,MATCH($C171,'Efficiency Distributions'!$C$9:$C$87,0)+RIGHT($E180),0))\n/SUM(AT$10:AT$11)","v":0},{"$f":"IF(INDEX(PC_MAPPING,RIGHT($C171,1),MATCH($E$2,'Data by Building Type'!$D$22:$F$22,0))=\"Yes\",1,0)*\n(AU$10*OFFSET('Efficiency Distributions'!$D$10,MATCH($C171,'Efficiency Distributions'!$C$9:$C$87,0)+RIGHT($E180),0)\n+AU$11*OFFSET('Efficiency Distributions'!$E$10,MATCH($C171,'Efficiency Distributions'!$C$9:$C$87,0)+RIGHT($E180),0))\n/SUM(AU$10:AU$11)","v":0},{"$f":"IF(INDEX(PC_MAPPING,RIGHT($C171,1),MATCH($E$2,'Data by Building Type'!$D$22:$F$22,0))=\"Yes\",1,0)*\n(AV$10*OFFSET('Efficiency Distributions'!$D$10,MATCH($C171,'Efficiency Distributions'!$C$9:$C$87,0)+RIGHT($E180),0)\n+AV$11*OFFSET('Efficiency Distributions'!$E$10,MATCH($C171,'Efficiency Distributions'!$C$9:$C$87,0)+RIGHT($E180),0))\n/SUM(AV$10:AV$11)","v":0},{"$f":"IF(INDEX(PC_MAPPING,RIGHT($C171,1),MATCH($E$2,'Data by Building Type'!$D$22:$F$22,0))=\"Yes\",1,0)*\n(AW$10*OFFSET('Efficiency Distributions'!$D$10,MATCH($C171,'Efficiency Distributions'!$C$9:$C$87,0)+RIGHT($E180),0)\n+AW$11*OFFSET('Efficiency Distributions'!$E$10,MATCH($C171,'Efficiency Distributions'!$C$9:$C$87,0)+RIGHT($E180),0))\n/SUM(AW$10:AW$11)","v":0},{"$f":"IF(INDEX(PC_MAPPING,RIGHT($C171,1),MATCH($E$2,'Data by Building Type'!$D$22:$F$22,0))=\"Yes\",1,0)*\n(AX$10*OFFSET('Efficiency Distributions'!$D$10,MATCH($C171,'Efficiency Distributions'!$C$9:$C$87,0)+RIGHT($E180),0)\n+AX$11*OFFSET('Efficiency Distributions'!$E$10,MATCH($C171,'Efficiency Distributions'!$C$9:$C$87,0)+RIGHT($E180),0))\n/SUM(AX$10:AX$11)","v":0},{"$f":"IF(INDEX(PC_MAPPING,RIGHT($C171,1),MATCH($E$2,'Data by Building Type'!$D$22:$F$22,0))=\"Yes\",1,0)*\n(AY$10*OFFSET('Efficiency Distributions'!$D$10,MATCH($C171,'Efficiency Distributions'!$C$9:$C$87,0)+RIGHT($E180),0)\n+AY$11*OFFSET('Efficiency Distributions'!$E$10,MATCH($C171,'Efficiency Distributions'!$C$9:$C$87,0)+RIGHT($E180),0))\n/SUM(AY$10:AY$11)","v":0},{"$f":"IF(INDEX(PC_MAPPING,RIGHT($C171,1),MATCH($E$2,'Data by Building Type'!$D$22:$F$22,0))=\"Yes\",1,0)*\n(AZ$10*OFFSET('Efficiency Distributions'!$D$10,MATCH($C171,'Efficiency Distributions'!$C$9:$C$87,0)+RIGHT($E180),0)\n+AZ$11*OFFSET('Efficiency Distributions'!$E$10,MATCH($C171,'Efficiency Distributions'!$C$9:$C$87,0)+RIGHT($E180),0))\n/SUM(AZ$10:AZ$11)","v":0},{"$f":"IF(INDEX(PC_MAPPING,RIGHT($C171,1),MATCH($E$2,'Data by Building Type'!$D$22:$F$22,0))=\"Yes\",1,0)*\n(BA$10*OFFSET('Efficiency Distributions'!$D$10,MATCH($C171,'Efficiency Distributions'!$C$9:$C$87,0)+RIGHT($E180),0)\n+BA$11*OFFSET('Efficiency Distributions'!$E$10,MATCH($C171,'Efficiency Distributions'!$C$9:$C$87,0)+RIGHT($E180),0))\n/SUM(BA$10:BA$11)","v":0},{"$f":"IF(INDEX(PC_MAPPING,RIGHT($C171,1),MATCH($E$2,'Data by Building Type'!$D$22:$F$22,0))=\"Yes\",1,0)*\n(BB$10*OFFSET('Efficiency Distributions'!$D$10,MATCH($C171,'Efficiency Distributions'!$C$9:$C$87,0)+RIGHT($E180),0)\n+BB$11*OFFSET('Efficiency Distributions'!$E$10,MATCH($C171,'Efficiency Distributions'!$C$9:$C$87,0)+RIGHT($E180),0))\n/SUM(BB$10:BB$11)","v":0},{"$f":"IF(INDEX(PC_MAPPING,RIGHT($C171,1),MATCH($E$2,'Data by Building Type'!$D$22:$F$22,0))=\"Yes\",1,0)*\n(BC$10*OFFSET('Efficiency Distributions'!$D$10,MATCH($C171,'Efficiency Distributions'!$C$9:$C$87,0)+RIGHT($E180),0)\n+BC$11*OFFSET('Efficiency Distributions'!$E$10,MATCH($C171,'Efficiency Distributions'!$C$9:$C$87,0)+RIGHT($E180),0))\n/SUM(BC$10:BC$11)","v":0},{"$f":"IF(INDEX(PC_MAPPING,RIGHT($C171,1),MATCH($E$2,'Data by Building Type'!$D$22:$F$22,0))=\"Yes\",1,0)*\n(BD$10*OFFSET('Efficiency Distributions'!$D$10,MATCH($C171,'Efficiency Distributions'!$C$9:$C$87,0)+RIGHT($E180),0)\n+BD$11*OFFSET('Efficiency Distributions'!$E$10,MATCH($C171,'Efficiency Distributions'!$C$9:$C$87,0)+RIGHT($E180),0))\n/SUM(BD$10:BD$11)","v":0},{"$f":"IF(INDEX(PC_MAPPING,RIGHT($C171,1),MATCH($E$2,'Data by Building Type'!$D$22:$F$22,0))=\"Yes\",1,0)*\n(BE$10*OFFSET('Efficiency Distributions'!$D$10,MATCH($C171,'Efficiency Distributions'!$C$9:$C$87,0)+RIGHT($E180),0)\n+BE$11*OFFSET('Efficiency Distributions'!$E$10,MATCH($C171,'Efficiency Distributions'!$C$9:$C$87,0)+RIGHT($E180),0))\n/SUM(BE$10:BE$11)","v":0},{"$f":"IF(INDEX(PC_MAPPING,RIGHT($C171,1),MATCH($E$2,'Data by Building Type'!$D$22:$F$22,0))=\"Yes\",1,0)*\n(BF$10*OFFSET('Efficiency Distributions'!$D$10,MATCH($C171,'Efficiency Distributions'!$C$9:$C$87,0)+RIGHT($E180),0)\n+BF$11*OFFSET('Efficiency Distributions'!$E$10,MATCH($C171,'Efficiency Distributions'!$C$9:$C$87,0)+RIGHT($E180),0))\n/SUM(BF$10:BF$11)","v":0},{"$f":"IF(INDEX(PC_MAPPING,RIGHT($C171,1),MATCH($E$2,'Data by Building Type'!$D$22:$F$22,0))=\"Yes\",1,0)*\n(BG$10*OFFSET('Efficiency Distributions'!$D$10,MATCH($C171,'Efficiency Distributions'!$C$9:$C$87,0)+RIGHT($E180),0)\n+BG$11*OFFSET('Efficiency Distributions'!$E$10,MATCH($C171,'Efficiency Distributions'!$C$9:$C$87,0)+RIGHT($E180),0))\n/SUM(BG$10:BG$11)","v":0}]
[null,null,null,null,"EL6",{"$f":"IF(INDEX(PC_MAPPING,RIGHT($C171,1),MATCH($E$2,'Data by Building Type'!$D$22:$F$22,0))=\"Yes\",1,0)*\n(F$10*OFFSET('Efficiency Distributions'!$D$10,MATCH($C171,'Efficiency Distributions'!$C$9:$C$87,0)+RIGHT($E181),0)\n+F$11*OFFSET('Efficiency Distributions'!$E$10,MATCH($C171,'Efficiency Distributions'!$C$9:$C$87,0)+RIGHT($E181),0))\n/SUM(F$10:F$11)","v":0},{"$f":"IF(INDEX(PC_MAPPING,RIGHT($C171,1),MATCH($E$2,'Data by Building Type'!$D$22:$F$22,0))=\"Yes\",1,0)*\n(G$10*OFFSET('Efficiency Distributions'!$D$10,MATCH($C171,'Efficiency Distributions'!$C$9:$C$87,0)+RIGHT($E181),0)\n+G$11*OFFSET('Efficiency Distributions'!$E$10,MATCH($C171,'Efficiency Distributions'!$C$9:$C$87,0)+RIGHT($E181),0))\n/SUM(G$10:G$11)","v":0},{"$f":"IF(INDEX(PC_MAPPING,RIGHT($C171,1),MATCH($E$2,'Data by Building Type'!$D$22:$F$22,0))=\"Yes\",1,0)*\n(H$10*OFFSET('Efficiency Distributions'!$D$10,MATCH($C171,'Efficiency Distributions'!$C$9:$C$87,0)+RIGHT($E181),0)\n+H$11*OFFSET('Efficiency Distributions'!$E$10,MATCH($C171,'Efficiency Distributions'!$C$9:$C$87,0)+RIGHT($E181),0))\n/SUM(H$10:H$11)","v":0},{"$f":"IF(INDEX(PC_MAPPING,RIGHT($C171,1),MATCH($E$2,'Data by Building Type'!$D$22:$F$22,0))=\"Yes\",1,0)*\n(I$10*OFFSET('Efficiency Distributions'!$D$10,MATCH($C171,'Efficiency Distributions'!$C$9:$C$87,0)+RIGHT($E181),0)\n+I$11*OFFSET('Efficiency Distributions'!$E$10,MATCH($C171,'Efficiency Distributions'!$C$9:$C$87,0)+RIGHT($E181),0))\n/SUM(I$10:I$11)","v":0},{"$f":"IF(INDEX(PC_MAPPING,RIGHT($C171,1),MATCH($E$2,'Data by Building Type'!$D$22:$F$22,0))=\"Yes\",1,0)*\n(J$10*OFFSET('Efficiency Distributions'!$D$10,MATCH($C171,'Efficiency Distributions'!$C$9:$C$87,0)+RIGHT($E181),0)\n+J$11*OFFSET('Efficiency Distributions'!$E$10,MATCH($C171,'Efficiency Distributions'!$C$9:$C$87,0)+RIGHT($E181),0))\n/SUM(J$10:J$11)","v":0},{"$f":"IF(INDEX(PC_MAPPING,RIGHT($C171,1),MATCH($E$2,'Data by Building Type'!$D$22:$F$22,0))=\"Yes\",1,0)*\n(K$10*OFFSET('Efficiency Distributions'!$D$10,MATCH($C171,'Efficiency Distributions'!$C$9:$C$87,0)+RIGHT($E181),0)\n+K$11*OFFSET('Efficiency Distributions'!$E$10,MATCH($C171,'Efficiency Distributions'!$C$9:$C$87,0)+RIGHT($E181),0))\n/SUM(K$10:K$11)","v":0},{"$f":"IF(INDEX(PC_MAPPING,RIGHT($C171,1),MATCH($E$2,'Data by Building Type'!$D$22:$F$22,0))=\"Yes\",1,0)*\n(L$10*OFFSET('Efficiency Distributions'!$D$10,MATCH($C171,'Efficiency Distributions'!$C$9:$C$87,0)+RIGHT($E181),0)\n+L$11*OFFSET('Efficiency Distributions'!$E$10,MATCH($C171,'Efficiency Distributions'!$C$9:$C$87,0)+RIGHT($E181),0))\n/SUM(L$10:L$11)","v":0},{"$f":"IF(INDEX(PC_MAPPING,RIGHT($C171,1),MATCH($E$2,'Data by Building Type'!$D$22:$F$22,0))=\"Yes\",1,0)*\n(M$10*OFFSET('Efficiency Distributions'!$D$10,MATCH($C171,'Efficiency Distributions'!$C$9:$C$87,0)+RIGHT($E181),0)\n+M$11*OFFSET('Efficiency Distributions'!$E$10,MATCH($C171,'Efficiency Distributions'!$C$9:$C$87,0)+RIGHT($E181),0))\n/SUM(M$10:M$11)","v":0},{"$f":"IF(INDEX(PC_MAPPING,RIGHT($C171,1),MATCH($E$2,'Data by Building Type'!$D$22:$F$22,0))=\"Yes\",1,0)*\n(N$10*OFFSET('Efficiency Distributions'!$D$10,MATCH($C171,'Efficiency Distributions'!$C$9:$C$87,0)+RIGHT($E181),0)\n+N$11*OFFSET('Efficiency Distributions'!$E$10,MATCH($C171,'Efficiency Distributions'!$C$9:$C$87,0)+RIGHT($E181),0))\n/SUM(N$10:N$11)","v":0},{"$f":"IF(INDEX(PC_MAPPING,RIGHT($C171,1),MATCH($E$2,'Data by Building Type'!$D$22:$F$22,0))=\"Yes\",1,0)*\n(O$10*OFFSET('Efficiency Distributions'!$D$10,MATCH($C171,'Efficiency Distributions'!$C$9:$C$87,0)+RIGHT($E181),0)\n+O$11*OFFSET('Efficiency Distributions'!$E$10,MATCH($C171,'Efficiency Distributions'!$C$9:$C$87,0)+RIGHT($E181),0))\n/SUM(O$10:O$11)","v":0},{"$f":"IF(INDEX(PC_MAPPING,RIGHT($C171,1),MATCH($E$2,'Data by Building Type'!$D$22:$F$22,0))=\"Yes\",1,0)*\n(P$10*OFFSET('Efficiency Distributions'!$D$10,MATCH($C171,'Efficiency Distributions'!$C$9:$C$87,0)+RIGHT($E181),0)\n+P$11*OFFSET('Efficiency Distributions'!$E$10,MATCH($C171,'Efficiency Distributions'!$C$9:$C$87,0)+RIGHT($E181),0))\n/SUM(P$10:P$11)","v":0},{"$f":"IF(INDEX(PC_MAPPING,RIGHT($C171,1),MATCH($E$2,'Data by Building Type'!$D$22:$F$22,0))=\"Yes\",1,0)*\n(Q$10*OFFSET('Efficiency Distributions'!$D$10,MATCH($C171,'Efficiency Distributions'!$C$9:$C$87,0)+RIGHT($E181),0)\n+Q$11*OFFSET('Efficiency Distributions'!$E$10,MATCH($C171,'Efficiency Distributions'!$C$9:$C$87,0)+RIGHT($E181),0))\n/SUM(Q$10:Q$11)","v":0},{"$f":"IF(INDEX(PC_MAPPING,RIGHT($C171,1),MATCH($E$2,'Data by Building Type'!$D$22:$F$22,0))=\"Yes\",1,0)*\n(R$10*OFFSET('Efficiency Distributions'!$D$10,MATCH($C171,'Efficiency Distributions'!$C$9:$C$87,0)+RIGHT($E181),0)\n+R$11*OFFSET('Efficiency Distributions'!$E$10,MATCH($C171,'Efficiency Distributions'!$C$9:$C$87,0)+RIGHT($E181),0))\n/SUM(R$10:R$11)","v":0},{"$f":"IF(INDEX(PC_MAPPING,RIGHT($C171,1),MATCH($E$2,'Data by Building Type'!$D$22:$F$22,0))=\"Yes\",1,0)*\n(S$10*OFFSET('Efficiency Distributions'!$D$10,MATCH($C171,'Efficiency Distributions'!$C$9:$C$87,0)+RIGHT($E181),0)\n+S$11*OFFSET('Efficiency Distributions'!$E$10,MATCH($C171,'Efficiency Distributions'!$C$9:$C$87,0)+RIGHT($E181),0))\n/SUM(S$10:S$11)","v":0},{"$f":"IF(INDEX(PC_MAPPING,RIGHT($C171,1),MATCH($E$2,'Data by Building Type'!$D$22:$F$22,0))=\"Yes\",1,0)*\n(T$10*OFFSET('Efficiency Distributions'!$D$10,MATCH($C171,'Efficiency Distributions'!$C$9:$C$87,0)+RIGHT($E181),0)\n+T$11*OFFSET('Efficiency Distributions'!$E$10,MATCH($C171,'Efficiency Distributions'!$C$9:$C$87,0)+RIGHT($E181),0))\n/SUM(T$10:T$11)","v":0},{"$f":"IF(INDEX(PC_MAPPING,RIGHT($C171,1),MATCH($E$2,'Data by Building Type'!$D$22:$F$22,0))=\"Yes\",1,0)*\n(U$10*OFFSET('Efficiency Distributions'!$D$10,MATCH($C171,'Efficiency Distributions'!$C$9:$C$87,0)+RIGHT($E181),0)\n+U$11*OFFSET('Efficiency Distributions'!$E$10,MATCH($C171,'Efficiency Distributions'!$C$9:$C$87,0)+RIGHT($E181),0))\n/SUM(U$10:U$11)","v":0},{"$f":"IF(INDEX(PC_MAPPING,RIGHT($C171,1),MATCH($E$2,'Data by Building Type'!$D$22:$F$22,0))=\"Yes\",1,0)*\n(V$10*OFFSET('Efficiency Distributions'!$D$10,MATCH($C171,'Efficiency Distributions'!$C$9:$C$87,0)+RIGHT($E181),0)\n+V$11*OFFSET('Efficiency Distributions'!$E$10,MATCH($C171,'Efficiency Distributions'!$C$9:$C$87,0)+RIGHT($E181),0))\n/SUM(V$10:V$11)","v":0},{"$f":"IF(INDEX(PC_MAPPING,RIGHT($C171,1),MATCH($E$2,'Data by Building Type'!$D$22:$F$22,0))=\"Yes\",1,0)*\n(W$10*OFFSET('Efficiency Distributions'!$D$10,MATCH($C171,'Efficiency Distributions'!$C$9:$C$87,0)+RIGHT($E181),0)\n+W$11*OFFSET('Efficiency Distributions'!$E$10,MATCH($C171,'Efficiency Distributions'!$C$9:$C$87,0)+RIGHT($E181),0))\n/SUM(W$10:W$11)","v":0},{"$f":"IF(INDEX(PC_MAPPING,RIGHT($C171,1),MATCH($E$2,'Data by Building Type'!$D$22:$F$22,0))=\"Yes\",1,0)*\n(X$10*OFFSET('Efficiency Distributions'!$D$10,MATCH($C171,'Efficiency Distributions'!$C$9:$C$87,0)+RIGHT($E181),0)\n+X$11*OFFSET('Efficiency Distributions'!$E$10,MATCH($C171,'Efficiency Distributions'!$C$9:$C$87,0)+RIGHT($E181),0))\n/SUM(X$10:X$11)","v":0},{"$f":"IF(INDEX(PC_MAPPING,RIGHT($C171,1),MATCH($E$2,'Data by Building Type'!$D$22:$F$22,0))=\"Yes\",1,0)*\n(Y$10*OFFSET('Efficiency Distributions'!$D$10,MATCH($C171,'Efficiency Distributions'!$C$9:$C$87,0)+RIGHT($E181),0)\n+Y$11*OFFSET('Efficiency Distributions'!$E$10,MATCH($C171,'Efficiency Distributions'!$C$9:$C$87,0)+RIGHT($E181),0))\n/SUM(Y$10:Y$11)","v":0},{"$f":"IF(INDEX(PC_MAPPING,RIGHT($C171,1),MATCH($E$2,'Data by Building Type'!$D$22:$F$22,0))=\"Yes\",1,0)*\n(Z$10*OFFSET('Efficiency Distributions'!$D$10,MATCH($C171,'Efficiency Distributions'!$C$9:$C$87,0)+RIGHT($E181),0)\n+Z$11*OFFSET('Efficiency Distributions'!$E$10,MATCH($C171,'Efficiency Distributions'!$C$9:$C$87,0)+RIGHT($E181),0))\n/SUM(Z$10:Z$11)","v":0},{"$f":"IF(INDEX(PC_MAPPING,RIGHT($C171,1),MATCH($E$2,'Data by Building Type'!$D$22:$F$22,0))=\"Yes\",1,0)*\n(AA$10*OFFSET('Efficiency Distributions'!$D$10,MATCH($C171,'Efficiency Distributions'!$C$9:$C$87,0)+RIGHT($E181),0)\n+AA$11*OFFSET('Efficiency Distributions'!$E$10,MATCH($C171,'Efficiency Distributions'!$C$9:$C$87,0)+RIGHT($E181),0))\n/SUM(AA$10:AA$11)","v":0},{"$f":"IF(INDEX(PC_MAPPING,RIGHT($C171,1),MATCH($E$2,'Data by Building Type'!$D$22:$F$22,0))=\"Yes\",1,0)*\n(AB$10*OFFSET('Efficiency Distributions'!$D$10,MATCH($C171,'Efficiency Distributions'!$C$9:$C$87,0)+RIGHT($E181),0)\n+AB$11*OFFSET('Efficiency Distributions'!$E$10,MATCH($C171,'Efficiency Distributions'!$C$9:$C$87,0)+RIGHT($E181),0))\n/SUM(AB$10:AB$11)","v":0},{"$f":"IF(INDEX(PC_MAPPING,RIGHT($C171,1),MATCH($E$2,'Data by Building Type'!$D$22:$F$22,0))=\"Yes\",1,0)*\n(AC$10*OFFSET('Efficiency Distributions'!$D$10,MATCH($C171,'Efficiency Distributions'!$C$9:$C$87,0)+RIGHT($E181),0)\n+AC$11*OFFSET('Efficiency Distributions'!$E$10,MATCH($C171,'Efficiency Distributions'!$C$9:$C$87,0)+RIGHT($E181),0))\n/SUM(AC$10:AC$11)","v":0},{"$f":"IF(INDEX(PC_MAPPING,RIGHT($C171,1),MATCH($E$2,'Data by Building Type'!$D$22:$F$22,0))=\"Yes\",1,0)*\n(AD$10*OFFSET('Efficiency Distributions'!$D$10,MATCH($C171,'Efficiency Distributions'!$C$9:$C$87,0)+RIGHT($E181),0)\n+AD$11*OFFSET('Efficiency Distributions'!$E$10,MATCH($C171,'Efficiency Distributions'!$C$9:$C$87,0)+RIGHT($E181),0))\n/SUM(AD$10:AD$11)","v":0},{"$f":"IF(INDEX(PC_MAPPING,RIGHT($C171,1),MATCH($E$2,'Data by Building Type'!$D$22:$F$22,0))=\"Yes\",1,0)*\n(AE$10*OFFSET('Efficiency Distributions'!$D$10,MATCH($C171,'Efficiency Distributions'!$C$9:$C$87,0)+RIGHT($E181),0)\n+AE$11*OFFSET('Efficiency Distributions'!$E$10,MATCH($C171,'Efficiency Distributions'!$C$9:$C$87,0)+RIGHT($E181),0))\n/SUM(AE$10:AE$11)","v":0},{"$f":"IF(INDEX(PC_MAPPING,RIGHT($C171,1),MATCH($E$2,'Data by Building Type'!$D$22:$F$22,0))=\"Yes\",1,0)*\n(AF$10*OFFSET('Efficiency Distributions'!$D$10,MATCH($C171,'Efficiency Distributions'!$C$9:$C$87,0)+RIGHT($E181),0)\n+AF$11*OFFSET('Efficiency Distributions'!$E$10,MATCH($C171,'Efficiency Distributions'!$C$9:$C$87,0)+RIGHT($E181),0))\n/SUM(AF$10:AF$11)","v":0},{"$f":"IF(INDEX(PC_MAPPING,RIGHT($C171,1),MATCH($E$2,'Data by Building Type'!$D$22:$F$22,0))=\"Yes\",1,0)*\n(AG$10*OFFSET('Efficiency Distributions'!$D$10,MATCH($C171,'Efficiency Distributions'!$C$9:$C$87,0)+RIGHT($E181),0)\n+AG$11*OFFSET('Efficiency Distributions'!$E$10,MATCH($C171,'Efficiency Distributions'!$C$9:$C$87,0)+RIGHT($E181),0))\n/SUM(AG$10:AG$11)","v":0},{"$f":"IF(INDEX(PC_MAPPING,RIGHT($C171,1),MATCH($E$2,'Data by Building Type'!$D$22:$F$22,0))=\"Yes\",1,0)*\n(AH$10*OFFSET('Efficiency Distributions'!$D$10,MATCH($C171,'Efficiency Distributions'!$C$9:$C$87,0)+RIGHT($E181),0)\n+AH$11*OFFSET('Efficiency Distributions'!$E$10,MATCH($C171,'Efficiency Distributions'!$C$9:$C$87,0)+RIGHT($E181),0))\n/SUM(AH$10:AH$11)","v":0},{"$f":"IF(INDEX(PC_MAPPING,RIGHT($C171,1),MATCH($E$2,'Data by Building Type'!$D$22:$F$22,0))=\"Yes\",1,0)*\n(AI$10*OFFSET('Efficiency Distributions'!$D$10,MATCH($C171,'Efficiency Distributions'!$C$9:$C$87,0)+RIGHT($E181),0)\n+AI$11*OFFSET('Efficiency Distributions'!$E$10,MATCH($C171,'Efficiency Distributions'!$C$9:$C$87,0)+RIGHT($E181),0))\n/SUM(AI$10:AI$11)","v":0},{"$f":"IF(INDEX(PC_MAPPING,RIGHT($C171,1),MATCH($E$2,'Data by Building Type'!$D$22:$F$22,0))=\"Yes\",1,0)*\n(AJ$10*OFFSET('Efficiency Distributions'!$D$10,MATCH($C171,'Efficiency Distributions'!$C$9:$C$87,0)+RIGHT($E181),0)\n+AJ$11*OFFSET('Efficiency Distributions'!$E$10,MATCH($C171,'Efficiency Distributions'!$C$9:$C$87,0)+RIGHT($E181),0))\n/SUM(AJ$10:AJ$11)","v":0},{"$f":"IF(INDEX(PC_MAPPING,RIGHT($C171,1),MATCH($E$2,'Data by Building Type'!$D$22:$F$22,0))=\"Yes\",1,0)*\n(AK$10*OFFSET('Efficiency Distributions'!$D$10,MATCH($C171,'Efficiency Distributions'!$C$9:$C$87,0)+RIGHT($E181),0)\n+AK$11*OFFSET('Efficiency Distributions'!$E$10,MATCH($C171,'Efficiency Distributions'!$C$9:$C$87,0)+RIGHT($E181),0))\n/SUM(AK$10:AK$11)","v":0},{"$f":"IF(INDEX(PC_MAPPING,RIGHT($C171,1),MATCH($E$2,'Data by Building Type'!$D$22:$F$22,0))=\"Yes\",1,0)*\n(AL$10*OFFSET('Efficiency Distributions'!$D$10,MATCH($C171,'Efficiency Distributions'!$C$9:$C$87,0)+RIGHT($E181),0)\n+AL$11*OFFSET('Efficiency Distributions'!$E$10,MATCH($C171,'Efficiency Distributions'!$C$9:$C$87,0)+RIGHT($E181),0))\n/SUM(AL$10:AL$11)","v":0},{"$f":"IF(INDEX(PC_MAPPING,RIGHT($C171,1),MATCH($E$2,'Data by Building Type'!$D$22:$F$22,0))=\"Yes\",1,0)*\n(AM$10*OFFSET('Efficiency Distributions'!$D$10,MATCH($C171,'Efficiency Distributions'!$C$9:$C$87,0)+RIGHT($E181),0)\n+AM$11*OFFSET('Efficiency Distributions'!$E$10,MATCH($C171,'Efficiency Distributions'!$C$9:$C$87,0)+RIGHT($E181),0))\n/SUM(AM$10:AM$11)","v":0},{"$f":"IF(INDEX(PC_MAPPING,RIGHT($C171,1),MATCH($E$2,'Data by Building Type'!$D$22:$F$22,0))=\"Yes\",1,0)*\n(AN$10*OFFSET('Efficiency Distributions'!$D$10,MATCH($C171,'Efficiency Distributions'!$C$9:$C$87,0)+RIGHT($E181),0)\n+AN$11*OFFSET('Efficiency Distributions'!$E$10,MATCH($C171,'Efficiency Distributions'!$C$9:$C$87,0)+RIGHT($E181),0))\n/SUM(AN$10:AN$11)","v":0},{"$f":"IF(INDEX(PC_MAPPING,RIGHT($C171,1),MATCH($E$2,'Data by Building Type'!$D$22:$F$22,0))=\"Yes\",1,0)*\n(AO$10*OFFSET('Efficiency Distributions'!$D$10,MATCH($C171,'Efficiency Distributions'!$C$9:$C$87,0)+RIGHT($E181),0)\n+AO$11*OFFSET('Efficiency Distributions'!$E$10,MATCH($C171,'Efficiency Distributions'!$C$9:$C$87,0)+RIGHT($E181),0))\n/SUM(AO$10:AO$11)","v":0},{"$f":"IF(INDEX(PC_MAPPING,RIGHT($C171,1),MATCH($E$2,'Data by Building Type'!$D$22:$F$22,0))=\"Yes\",1,0)*\n(AP$10*OFFSET('Efficiency Distributions'!$D$10,MATCH($C171,'Efficiency Distributions'!$C$9:$C$87,0)+RIGHT($E181),0)\n+AP$11*OFFSET('Efficiency Distributions'!$E$10,MATCH($C171,'Efficiency Distributions'!$C$9:$C$87,0)+RIGHT($E181),0))\n/SUM(AP$10:AP$11)","v":0},{"$f":"IF(INDEX(PC_MAPPING,RIGHT($C171,1),MATCH($E$2,'Data by Building Type'!$D$22:$F$22,0))=\"Yes\",1,0)*\n(AQ$10*OFFSET('Efficiency Distributions'!$D$10,MATCH($C171,'Efficiency Distributions'!$C$9:$C$87,0)+RIGHT($E181),0)\n+AQ$11*OFFSET('Efficiency Distributions'!$E$10,MATCH($C171,'Efficiency Distributions'!$C$9:$C$87,0)+RIGHT($E181),0))\n/SUM(AQ$10:AQ$11)","v":0},{"$f":"IF(INDEX(PC_MAPPING,RIGHT($C171,1),MATCH($E$2,'Data by Building Type'!$D$22:$F$22,0))=\"Yes\",1,0)*\n(AR$10*OFFSET('Efficiency Distributions'!$D$10,MATCH($C171,'Efficiency Distributions'!$C$9:$C$87,0)+RIGHT($E181),0)\n+AR$11*OFFSET('Efficiency Distributions'!$E$10,MATCH($C171,'Efficiency Distributions'!$C$9:$C$87,0)+RIGHT($E181),0))\n/SUM(AR$10:AR$11)","v":0},{"$f":"IF(INDEX(PC_MAPPING,RIGHT($C171,1),MATCH($E$2,'Data by Building Type'!$D$22:$F$22,0))=\"Yes\",1,0)*\n(AS$10*OFFSET('Efficiency Distributions'!$D$10,MATCH($C171,'Efficiency Distributions'!$C$9:$C$87,0)+RIGHT($E181),0)\n+AS$11*OFFSET('Efficiency Distributions'!$E$10,MATCH($C171,'Efficiency Distributions'!$C$9:$C$87,0)+RIGHT($E181),0))\n/SUM(AS$10:AS$11)","v":0},{"$f":"IF(INDEX(PC_MAPPING,RIGHT($C171,1),MATCH($E$2,'Data by Building Type'!$D$22:$F$22,0))=\"Yes\",1,0)*\n(AT$10*OFFSET('Efficiency Distributions'!$D$10,MATCH($C171,'Efficiency Distributions'!$C$9:$C$87,0)+RIGHT($E181),0)\n+AT$11*OFFSET('Efficiency Distributions'!$E$10,MATCH($C171,'Efficiency Distributions'!$C$9:$C$87,0)+RIGHT($E181),0))\n/SUM(AT$10:AT$11)","v":0},{"$f":"IF(INDEX(PC_MAPPING,RIGHT($C171,1),MATCH($E$2,'Data by Building Type'!$D$22:$F$22,0))=\"Yes\",1,0)*\n(AU$10*OFFSET('Efficiency Distributions'!$D$10,MATCH($C171,'Efficiency Distributions'!$C$9:$C$87,0)+RIGHT($E181),0)\n+AU$11*OFFSET('Efficiency Distributions'!$E$10,MATCH($C171,'Efficiency Distributions'!$C$9:$C$87,0)+RIGHT($E181),0))\n/SUM(AU$10:AU$11)","v":0},{"$f":"IF(INDEX(PC_MAPPING,RIGHT($C171,1),MATCH($E$2,'Data by Building Type'!$D$22:$F$22,0))=\"Yes\",1,0)*\n(AV$10*OFFSET('Efficiency Distributions'!$D$10,MATCH($C171,'Efficiency Distributions'!$C$9:$C$87,0)+RIGHT($E181),0)\n+AV$11*OFFSET('Efficiency Distributions'!$E$10,MATCH($C171,'Efficiency Distributions'!$C$9:$C$87,0)+RIGHT($E181),0))\n/SUM(AV$10:AV$11)","v":0},{"$f":"IF(INDEX(PC_MAPPING,RIGHT($C171,1),MATCH($E$2,'Data by Building Type'!$D$22:$F$22,0))=\"Yes\",1,0)*\n(AW$10*OFFSET('Efficiency Distributions'!$D$10,MATCH($C171,'Efficiency Distributions'!$C$9:$C$87,0)+RIGHT($E181),0)\n+AW$11*OFFSET('Efficiency Distributions'!$E$10,MATCH($C171,'Efficiency Distributions'!$C$9:$C$87,0)+RIGHT($E181),0))\n/SUM(AW$10:AW$11)","v":0},{"$f":"IF(INDEX(PC_MAPPING,RIGHT($C171,1),MATCH($E$2,'Data by Building Type'!$D$22:$F$22,0))=\"Yes\",1,0)*\n(AX$10*OFFSET('Efficiency Distributions'!$D$10,MATCH($C171,'Efficiency Distributions'!$C$9:$C$87,0)+RIGHT($E181),0)\n+AX$11*OFFSET('Efficiency Distributions'!$E$10,MATCH($C171,'Efficiency Distributions'!$C$9:$C$87,0)+RIGHT($E181),0))\n/SUM(AX$10:AX$11)","v":0},{"$f":"IF(INDEX(PC_MAPPING,RIGHT($C171,1),MATCH($E$2,'Data by Building Type'!$D$22:$F$22,0))=\"Yes\",1,0)*\n(AY$10*OFFSET('Efficiency Distributions'!$D$10,MATCH($C171,'Efficiency Distributions'!$C$9:$C$87,0)+RIGHT($E181),0)\n+AY$11*OFFSET('Efficiency Distributions'!$E$10,MATCH($C171,'Efficiency Distributions'!$C$9:$C$87,0)+RIGHT($E181),0))\n/SUM(AY$10:AY$11)","v":0},{"$f":"IF(INDEX(PC_MAPPING,RIGHT($C171,1),MATCH($E$2,'Data by Building Type'!$D$22:$F$22,0))=\"Yes\",1,0)*\n(AZ$10*OFFSET('Efficiency Distributions'!$D$10,MATCH($C171,'Efficiency Distributions'!$C$9:$C$87,0)+RIGHT($E181),0)\n+AZ$11*OFFSET('Efficiency Distributions'!$E$10,MATCH($C171,'Efficiency Distributions'!$C$9:$C$87,0)+RIGHT($E181),0))\n/SUM(AZ$10:AZ$11)","v":0},{"$f":"IF(INDEX(PC_MAPPING,RIGHT($C171,1),MATCH($E$2,'Data by Building Type'!$D$22:$F$22,0))=\"Yes\",1,0)*\n(BA$10*OFFSET('Efficiency Distributions'!$D$10,MATCH($C171,'Efficiency Distributions'!$C$9:$C$87,0)+RIGHT($E181),0)\n+BA$11*OFFSET('Efficiency Distributions'!$E$10,MATCH($C171,'Efficiency Distributions'!$C$9:$C$87,0)+RIGHT($E181),0))\n/SUM(BA$10:BA$11)","v":0},{"$f":"IF(INDEX(PC_MAPPING,RIGHT($C171,1),MATCH($E$2,'Data by Building Type'!$D$22:$F$22,0))=\"Yes\",1,0)*\n(BB$10*OFFSET('Efficiency Distributions'!$D$10,MATCH($C171,'Efficiency Distributions'!$C$9:$C$87,0)+RIGHT($E181),0)\n+BB$11*OFFSET('Efficiency Distributions'!$E$10,MATCH($C171,'Efficiency Distributions'!$C$9:$C$87,0)+RIGHT($E181),0))\n/SUM(BB$10:BB$11)","v":0},{"$f":"IF(INDEX(PC_MAPPING,RIGHT($C171,1),MATCH($E$2,'Data by Building Type'!$D$22:$F$22,0))=\"Yes\",1,0)*\n(BC$10*OFFSET('Efficiency Distributions'!$D$10,MATCH($C171,'Efficiency Distributions'!$C$9:$C$87,0)+RIGHT($E181),0)\n+BC$11*OFFSET('Efficiency Distributions'!$E$10,MATCH($C171,'Efficiency Distributions'!$C$9:$C$87,0)+RIGHT($E181),0))\n/SUM(BC$10:BC$11)","v":0},{"$f":"IF(INDEX(PC_MAPPING,RIGHT($C171,1),MATCH($E$2,'Data by Building Type'!$D$22:$F$22,0))=\"Yes\",1,0)*\n(BD$10*OFFSET('Efficiency Distributions'!$D$10,MATCH($C171,'Efficiency Distributions'!$C$9:$C$87,0)+RIGHT($E181),0)\n+BD$11*OFFSET('Efficiency Distributions'!$E$10,MATCH($C171,'Efficiency Distributions'!$C$9:$C$87,0)+RIGHT($E181),0))\n/SUM(BD$10:BD$11)","v":0},{"$f":"IF(INDEX(PC_MAPPING,RIGHT($C171,1),MATCH($E$2,'Data by Building Type'!$D$22:$F$22,0))=\"Yes\",1,0)*\n(BE$10*OFFSET('Efficiency Distributions'!$D$10,MATCH($C171,'Efficiency Distributions'!$C$9:$C$87,0)+RIGHT($E181),0)\n+BE$11*OFFSET('Efficiency Distributions'!$E$10,MATCH($C171,'Efficiency Distributions'!$C$9:$C$87,0)+RIGHT($E181),0))\n/SUM(BE$10:BE$11)","v":0},{"$f":"IF(INDEX(PC_MAPPING,RIGHT($C171,1),MATCH($E$2,'Data by Building Type'!$D$22:$F$22,0))=\"Yes\",1,0)*\n(BF$10*OFFSET('Efficiency Distributions'!$D$10,MATCH($C171,'Efficiency Distributions'!$C$9:$C$87,0)+RIGHT($E181),0)\n+BF$11*OFFSET('Efficiency Distributions'!$E$10,MATCH($C171,'Efficiency Distributions'!$C$9:$C$87,0)+RIGHT($E181),0))\n/SUM(BF$10:BF$11)","v":0},{"$f":"IF(INDEX(PC_MAPPING,RIGHT($C171,1),MATCH($E$2,'Data by Building Type'!$D$22:$F$22,0))=\"Yes\",1,0)*\n(BG$10*OFFSET('Efficiency Distributions'!$D$10,MATCH($C171,'Efficiency Distributions'!$C$9:$C$87,0)+RIGHT($E181),0)\n+BG$11*OFFSET('Efficiency Distributions'!$E$10,MATCH($C171,'Efficiency Distributions'!$C$9:$C$87,0)+RIGHT($E181),0))\n/SUM(BG$10:BG$11)","v":0}]
[null,null,null,null,"TOTAL",{"$f":"SUM(F175:F181)","v":0},{"$f":"SUM(G175:G181)","v":0},0,0,0,0,0,0,0,0,0,0,0,0,0,0,0,0,0,0,0,0,0,0,0,0,0,0,0,0,0,0,0,0,0,0,0,0,0,0,0,0,0,0,0,0,0,0,0,0,0,0,0,0]
[]
[null,null,null,"POST-Case"]
[null,null,null,null,"Efficiency Level",1981,{"$f":"F185+1","v":1982},{"$f":"G185+1","v":1983},1984,1985,{"$f":"J185+1","v":1986},1987,1988,1989,1990,1991,1992,1993,1994,1995,1996,1997,1998,1999,2000,2001,2002,2003,2004,2005,2006,2007,2008,2009,2010,2011,2012,2013,2014,2015,2016,2017,2018,2019,2020,2021,2022,2023,2024,2025,2026,2027,2028,2029,2030,2031,2032,2033,2034]
[null,null,null,null,"EL0",{"$f":"IF(F$29<STANDARD_YEAR,F175,\nIF(RIGHT($E186,1)>RIGHT(INDEX(STANDARD_LEVELS,1,MID($C171,4,1)),1),F175,\nIF(RIGHT($E186,1)<RIGHT(INDEX(STANDARD_LEVELS,1,MID($C171,4,1)),1),0,\nIF(RIGHT($E186,1)=RIGHT(INDEX(STANDARD_LEVELS,1,MID($C171,4,1)),1),SUM(OFFSET(F175,-(RIGHT($E186,1)),0,RIGHT($E186,1)+1,1)),\"ERROR\"))))","v":0},{"$f":"IF(G$29<STANDARD_YEAR,G175,\nIF(RIGHT($E186,1)>RIGHT(INDEX(STANDARD_LEVELS,1,MID($C171,4,1)),1),G175,\nIF(RIGHT($E186,1)<RIGHT(INDEX(STANDARD_LEVELS,1,MID($C171,4,1)),1),0,\nIF(RIGHT($E186,1)=RIGHT(INDEX(STANDARD_LEVELS,1,MID($C171,4,1)),1),SUM(OFFSET(G175,-(RIGHT($E186,1)),0,RIGHT($E186,1)+1,1)),\"ERROR\"))))","v":0},0,0,0,0,0,0,0,0,0,0,0,0,0,0,0,0,0,0,0,0,0,0,0,0,0,0,0,0,0,0,0,0,0,0,0,0,0,0,0,0,0,0,0,0,0,0,0,0,0,0,0,0]
[null,null,null,null,"EL1",{"$f":"IF(F$29<STANDARD_YEAR,F176,\nIF(RIGHT($E187,1)>RIGHT(INDEX(STANDARD_LEVELS,1,MID($C171,4,1)),1),F176,\nIF(RIGHT($E187,1)<RIGHT(INDEX(STANDARD_LEVELS,1,MID($C171,4,1)),1),0,\nIF(RIGHT($E187,1)=RIGHT(INDEX(STANDARD_LEVELS,1,MID($C171,4,1)),1),SUM(OFFSET(F176,-(RIGHT($E187,1)),0,RIGHT($E187,1)+1,1)),\"ERROR\"))))","v":0},{"$f":"IF(G$29<STANDARD_YEAR,G176,\nIF(RIGHT($E187,1)>RIGHT(INDEX(STANDARD_LEVELS,1,MID($C171,4,1)),1),G176,\nIF(RIGHT($E187,1)<RIGHT(INDEX(STANDARD_LEVELS,1,MID($C171,4,1)),1),0,\nIF(RIGHT($E187,1)=RIGHT(INDEX(STANDARD_LEVELS,1,MID($C171,4,1)),1),SUM(OFFSET(G176,-(RIGHT($E187,1)),0,RIGHT($E187,1)+1,1)),\"ERROR\"))))","v":0},0,0,0,0,0,0,0,0,0,0,0,0,0,0,0,0,0,0,0,0,0,0,0,0,0,0,0,0,0,0,0,0,0,0,0,0,0,0,0,0,0,0,0,0,0,0,0,0,0,0,0,0]
[null,null,null,null,"EL2",{"$f":"IF(F$29<STANDARD_YEAR,F177,\nIF(RIGHT($E188,1)>RIGHT(INDEX(STANDARD_LEVELS,1,MID($C171,4,1)),1),F177,\nIF(RIGHT($E188,1)<RIGHT(INDEX(STANDARD_LEVELS,1,MID($C171,4,1)),1),0,\nIF(RIGHT($E188,1)=RIGHT(INDEX(STANDARD_LEVELS,1,MID($C171,4,1)),1),SUM(OFFSET(F177,-(RIGHT($E188,1)),0,RIGHT($E188,1)+1,1)),\"ERROR\"))))","v":0},{"$f":"IF(G$29<STANDARD_YEAR,G177,\nIF(RIGHT($E188,1)>RIGHT(INDEX(STANDARD_LEVELS,1,MID($C171,4,1)),1),G177,\nIF(RIGHT($E188,1)<RIGHT(INDEX(STANDARD_LEVELS,1,MID($C171,4,1)),1),0,\nIF(RIGHT($E188,1)=RIGHT(INDEX(STANDARD_LEVELS,1,MID($C171,4,1)),1),SUM(OFFSET(G177,-(RIGHT($E188,1)),0,RIGHT($E188,1)+1,1)),\"ERROR\"))))","v":0},0,0,0,0,0,0,0,0,0,0,0,0,0,0,0,0,0,0,0,0,0,0,0,0,0,0,0,0,0,0,0,0,0,0,0,0,0,0,0,0,0,0,0,0,0,0,0,0,0,0,0,0]
[null,null,null,null,"EL3",{"$f":"IF(F$29<STANDARD_YEAR,F178,\nIF(RIGHT($E189,1)>RIGHT(INDEX(STANDARD_LEVELS,1,MID($C171,4,1)),1),F178,\nIF(RIGHT($E189,1)<RIGHT(INDEX(STANDARD_LEVELS,1,MID($C171,4,1)),1),0,\nIF(RIGHT($E189,1)=RIGHT(INDEX(STANDARD_LEVELS,1,MID($C171,4,1)),1),SUM(OFFSET(F178,-(RIGHT($E189,1)),0,RIGHT($E189,1)+1,1)),\"ERROR\"))))","v":0},{"$f":"IF(G$29<STANDARD_YEAR,G178,\nIF(RIGHT($E189,1)>RIGHT(INDEX(STANDARD_LEVELS,1,MID($C171,4,1)),1),G178,\nIF(RIGHT($E189,1)<RIGHT(INDEX(STANDARD_LEVELS,1,MID($C171,4,1)),1),0,\nIF(RIGHT($E189,1)=RIGHT(INDEX(STANDARD_LEVELS,1,MID($C171,4,1)),1),SUM(OFFSET(G178,-(RIGHT($E189,1)),0,RIGHT($E189,1)+1,1)),\"ERROR\"))))","v":0},0,0,0,0,0,0,0,0,0,0,0,0,0,0,0,0,0,0,0,0,0,0,0,0,0,0,0,0,0,0,0,0,0,0,0,0,0,0,0,0,0,0,0,0,0,0,0,0,0,0,0,0]
[null,null,null,null,"EL4",{"$f":"IF(F$29<STANDARD_YEAR,F179,\nIF(RIGHT($E190,1)>RIGHT(INDEX(STANDARD_LEVELS,1,MID($C171,4,1)),1),F179,\nIF(RIGHT($E190,1)<RIGHT(INDEX(STANDARD_LEVELS,1,MID($C171,4,1)),1),0,\nIF(RIGHT($E190,1)=RIGHT(INDEX(STANDARD_LEVELS,1,MID($C171,4,1)),1),SUM(OFFSET(F179,-(RIGHT($E190,1)),0,RIGHT($E190,1)+1,1)),\"ERROR\"))))","v":0},{"$f":"IF(G$29<STANDARD_YEAR,G179,\nIF(RIGHT($E190,1)>RIGHT(INDEX(STANDARD_LEVELS,1,MID($C171,4,1)),1),G179,\nIF(RIGHT($E190,1)<RIGHT(INDEX(STANDARD_LEVELS,1,MID($C171,4,1)),1),0,\nIF(RIGHT($E190,1)=RIGHT(INDEX(STANDARD_LEVELS,1,MID($C171,4,1)),1),SUM(OFFSET(G179,-(RIGHT($E190,1)),0,RIGHT($E190,1)+1,1)),\"ERROR\"))))","v":0},0,0,0,0,0,0,0,0,0,0,0,0,0,0,0,0,0,0,0,0,0,0,0,0,0,0,0,0,0,0,0,0,0,0,0,0,0,0,0,0,0,0,0,0,0,0,0,0,0,0,0,0]
[null,null,null,null,"EL5",{"$f":"IF(F$29<STANDARD_YEAR,F180,\nIF(RIGHT($E191,1)>RIGHT(INDEX(STANDARD_LEVELS,1,MID($C171,4,1)),1),F180,\nIF(RIGHT($E191,1)<RIGHT(INDEX(STANDARD_LEVELS,1,MID($C171,4,1)),1),0,\nIF(RIGHT($E191,1)=RIGHT(INDEX(STANDARD_LEVELS,1,MID($C171,4,1)),1),SUM(OFFSET(F180,-(RIGHT($E191,1)),0,RIGHT($E191,1)+1,1)),\"ERROR\"))))","v":0},{"$f":"IF(G$29<STANDARD_YEAR,G180,\nIF(RIGHT($E191,1)>RIGHT(INDEX(STANDARD_LEVELS,1,MID($C171,4,1)),1),G180,\nIF(RIGHT($E191,1)<RIGHT(INDEX(STANDARD_LEVELS,1,MID($C171,4,1)),1),0,\nIF(RIGHT($E191,1)=RIGHT(INDEX(STANDARD_LEVELS,1,MID($C171,4,1)),1),SUM(OFFSET(G180,-(RIGHT($E191,1)),0,RIGHT($E191,1)+1,1)),\"ERROR\"))))","v":0},0,0,0,0,0,0,0,0,0,0,0,0,0,0,0,0,0,0,0,0,0,0,0,0,0,0,0,0,0,0,0,0,0,0,0,0,0,0,0,0,0,0,0,0,0,0,0,0,0,0,0,0]
[null,null,null,null,"EL6",{"$f":"IF(F$29<STANDARD_YEAR,F181,\nIF(RIGHT($E192,1)>RIGHT(INDEX(STANDARD_LEVELS,1,MID($C171,4,1)),1),F181,\nIF(RIGHT($E192,1)<RIGHT(INDEX(STANDARD_LEVELS,1,MID($C171,4,1)),1),0,\nIF(RIGHT($E192,1)=RIGHT(INDEX(STANDARD_LEVELS,1,MID($C171,4,1)),1),SUM(OFFSET(F181,-(RIGHT($E192,1)),0,RIGHT($E192,1)+1,1)),\"ERROR\"))))","v":0},{"$f":"IF(G$29<STANDARD_YEAR,G181,\nIF(RIGHT($E192,1)>RIGHT(INDEX(STANDARD_LEVELS,1,MID($C171,4,1)),1),G181,\nIF(RIGHT($E192,1)<RIGHT(INDEX(STANDARD_LEVELS,1,MID($C171,4,1)),1),0,\nIF(RIGHT($E192,1)=RIGHT(INDEX(STANDARD_LEVELS,1,MID($C171,4,1)),1),SUM(OFFSET(G181,-(RIGHT($E192,1)),0,RIGHT($E192,1)+1,1)),\"ERROR\"))))","v":0},0,0,0,0,0,0,0,0,0,0,0,0,0,0,0,0,0,0,0,0,0,0,0,0,0,0,0,0,0,0,0,0,0,0,0,0,0,0,0,0,0,0,0,0,0,0,0,0,0,0,0,0]
[null,null,null,null,"TOTAL",{"$f":"SUM(F186:F192)","v":0},{"$f":"SUM(G186:G192)","v":0},0,0,0,0,0,0,0,0,0,0,0,0,0,0,0,0,0,0,0,0,0,0,0,0,0,0,0,0,0,0,0,0,0,0,0,0,0,0,0,0,0,0,0,0,0,0,0,0,0,0,0,0]
[]
[]
[]
[null,null,"PC 8",{"$f":"OFFSET('Product Classes'!$C$9,MATCH(C197,MODEL_PCS,0),0)","v":"Mobile Home Electric Furnace / Modular Blower Fan (MH-EF/MB)"}]
[]
[null,null,null,"PRE-Case"]
[null,null,null,null,"Efficiency Level",1981,{"$f":"F200+1","v":1982},{"$f":"G200+1","v":1983},1984,1985,{"$f":"J200+1","v":1986},1987,1988,1989,1990,1991,1992,1993,1994,1995,1996,1997,1998,1999,2000,2001,2002,2003,2004,2005,2006,2007,2008,2009,2010,2011,2012,2013,2014,2015,2016,2017,2018,2019,2020,2021,2022,2023,2024,2025,2026,2027,2028,2029,2030,2031,2032,2033,2034]
[null,null,null,null,"EL0",{"$f":"IF(INDEX(PC_MAPPING,RIGHT($C197,1),MATCH($E$2,'Data by Building Type'!$D$22:$F$22,0))=\"Yes\",1,0)*\n(F$10*OFFSET('Efficiency Distributions'!$D$10,MATCH($C197,'Efficiency Distributions'!$C$9:$C$87,0)+RIGHT($E201),0)\n+F$11*OFFSET('Efficiency Distributions'!$E$10,MATCH($C197,'Efficiency Distributions'!$C$9:$C$87,0)+RIGHT($E201),0))\n/SUM(F$10:F$11)","v":0},{"$f":"IF(INDEX(PC_MAPPING,RIGHT($C197,1),MATCH($E$2,'Data by Building Type'!$D$22:$F$22,0))=\"Yes\",1,0)*\n(G$10*OFFSET('Efficiency Distributions'!$D$10,MATCH($C197,'Efficiency Distributions'!$C$9:$C$87,0)+RIGHT($E201),0)\n+G$11*OFFSET('Efficiency Distributions'!$E$10,MATCH($C197,'Efficiency Distributions'!$C$9:$C$87,0)+RIGHT($E201),0))\n/SUM(G$10:G$11)","v":0},{"$f":"IF(INDEX(PC_MAPPING,RIGHT($C197,1),MATCH($E$2,'Data by Building Type'!$D$22:$F$22,0))=\"Yes\",1,0)*\n(H$10*OFFSET('Efficiency Distributions'!$D$10,MATCH($C197,'Efficiency Distributions'!$C$9:$C$87,0)+RIGHT($E201),0)\n+H$11*OFFSET('Efficiency Distributions'!$E$10,MATCH($C197,'Efficiency Distributions'!$C$9:$C$87,0)+RIGHT($E201),0))\n/SUM(H$10:H$11)","v":0},{"$f":"IF(INDEX(PC_MAPPING,RIGHT($C197,1),MATCH($E$2,'Data by Building Type'!$D$22:$F$22,0))=\"Yes\",1,0)*\n(I$10*OFFSET('Efficiency Distributions'!$D$10,MATCH($C197,'Efficiency Distributions'!$C$9:$C$87,0)+RIGHT($E201),0)\n+I$11*OFFSET('Efficiency Distributions'!$E$10,MATCH($C197,'Efficiency Distributions'!$C$9:$C$87,0)+RIGHT($E201),0))\n/SUM(I$10:I$11)","v":0},{"$f":"IF(INDEX(PC_MAPPING,RIGHT($C197,1),MATCH($E$2,'Data by Building Type'!$D$22:$F$22,0))=\"Yes\",1,0)*\n(J$10*OFFSET('Efficiency Distributions'!$D$10,MATCH($C197,'Efficiency Distributions'!$C$9:$C$87,0)+RIGHT($E201),0)\n+J$11*OFFSET('Efficiency Distributions'!$E$10,MATCH($C197,'Efficiency Distributions'!$C$9:$C$87,0)+RIGHT($E201),0))\n/SUM(J$10:J$11)","v":0},{"$f":"IF(INDEX(PC_MAPPING,RIGHT($C197,1),MATCH($E$2,'Data by Building Type'!$D$22:$F$22,0))=\"Yes\",1,0)*\n(K$10*OFFSET('Efficiency Distributions'!$D$10,MATCH($C197,'Efficiency Distributions'!$C$9:$C$87,0)+RIGHT($E201),0)\n+K$11*OFFSET('Efficiency Distributions'!$E$10,MATCH($C197,'Efficiency Distributions'!$C$9:$C$87,0)+RIGHT($E201),0))\n/SUM(K$10:K$11)","v":0},{"$f":"IF(INDEX(PC_MAPPING,RIGHT($C197,1),MATCH($E$2,'Data by Building Type'!$D$22:$F$22,0))=\"Yes\",1,0)*\n(L$10*OFFSET('Efficiency Distributions'!$D$10,MATCH($C197,'Efficiency Distributions'!$C$9:$C$87,0)+RIGHT($E201),0)\n+L$11*OFFSET('Efficiency Distributions'!$E$10,MATCH($C197,'Efficiency Distributions'!$C$9:$C$87,0)+RIGHT($E201),0))\n/SUM(L$10:L$11)","v":0},{"$f":"IF(INDEX(PC_MAPPING,RIGHT($C197,1),MATCH($E$2,'Data by Building Type'!$D$22:$F$22,0))=\"Yes\",1,0)*\n(M$10*OFFSET('Efficiency Distributions'!$D$10,MATCH($C197,'Efficiency Distributions'!$C$9:$C$87,0)+RIGHT($E201),0)\n+M$11*OFFSET('Efficiency Distributions'!$E$10,MATCH($C197,'Efficiency Distributions'!$C$9:$C$87,0)+RIGHT($E201),0))\n/SUM(M$10:M$11)","v":0},{"$f":"IF(INDEX(PC_MAPPING,RIGHT($C197,1),MATCH($E$2,'Data by Building Type'!$D$22:$F$22,0))=\"Yes\",1,0)*\n(N$10*OFFSET('Efficiency Distributions'!$D$10,MATCH($C197,'Efficiency Distributions'!$C$9:$C$87,0)+RIGHT($E201),0)\n+N$11*OFFSET('Efficiency Distributions'!$E$10,MATCH($C197,'Efficiency Distributions'!$C$9:$C$87,0)+RIGHT($E201),0))\n/SUM(N$10:N$11)","v":0},{"$f":"IF(INDEX(PC_MAPPING,RIGHT($C197,1),MATCH($E$2,'Data by Building Type'!$D$22:$F$22,0))=\"Yes\",1,0)*\n(O$10*OFFSET('Efficiency Distributions'!$D$10,MATCH($C197,'Efficiency Distributions'!$C$9:$C$87,0)+RIGHT($E201),0)\n+O$11*OFFSET('Efficiency Distributions'!$E$10,MATCH($C197,'Efficiency Distributions'!$C$9:$C$87,0)+RIGHT($E201),0))\n/SUM(O$10:O$11)","v":0},{"$f":"IF(INDEX(PC_MAPPING,RIGHT($C197,1),MATCH($E$2,'Data by Building Type'!$D$22:$F$22,0))=\"Yes\",1,0)*\n(P$10*OFFSET('Efficiency Distributions'!$D$10,MATCH($C197,'Efficiency Distributions'!$C$9:$C$87,0)+RIGHT($E201),0)\n+P$11*OFFSET('Efficiency Distributions'!$E$10,MATCH($C197,'Efficiency Distributions'!$C$9:$C$87,0)+RIGHT($E201),0))\n/SUM(P$10:P$11)","v":0},{"$f":"IF(INDEX(PC_MAPPING,RIGHT($C197,1),MATCH($E$2,'Data by Building Type'!$D$22:$F$22,0))=\"Yes\",1,0)*\n(Q$10*OFFSET('Efficiency Distributions'!$D$10,MATCH($C197,'Efficiency Distributions'!$C$9:$C$87,0)+RIGHT($E201),0)\n+Q$11*OFFSET('Efficiency Distributions'!$E$10,MATCH($C197,'Efficiency Distributions'!$C$9:$C$87,0)+RIGHT($E201),0))\n/SUM(Q$10:Q$11)","v":0},{"$f":"IF(INDEX(PC_MAPPING,RIGHT($C197,1),MATCH($E$2,'Data by Building Type'!$D$22:$F$22,0))=\"Yes\",1,0)*\n(R$10*OFFSET('Efficiency Distributions'!$D$10,MATCH($C197,'Efficiency Distributions'!$C$9:$C$87,0)+RIGHT($E201),0)\n+R$11*OFFSET('Efficiency Distributions'!$E$10,MATCH($C197,'Efficiency Distributions'!$C$9:$C$87,0)+RIGHT($E201),0))\n/SUM(R$10:R$11)","v":0},{"$f":"IF(INDEX(PC_MAPPING,RIGHT($C197,1),MATCH($E$2,'Data by Building Type'!$D$22:$F$22,0))=\"Yes\",1,0)*\n(S$10*OFFSET('Efficiency Distributions'!$D$10,MATCH($C197,'Efficiency Distributions'!$C$9:$C$87,0)+RIGHT($E201),0)\n+S$11*OFFSET('Efficiency Distributions'!$E$10,MATCH($C197,'Efficiency Distributions'!$C$9:$C$87,0)+RIGHT($E201),0))\n/SUM(S$10:S$11)","v":0},{"$f":"IF(INDEX(PC_MAPPING,RIGHT($C197,1),MATCH($E$2,'Data by Building Type'!$D$22:$F$22,0))=\"Yes\",1,0)*\n(T$10*OFFSET('Efficiency Distributions'!$D$10,MATCH($C197,'Efficiency Distributions'!$C$9:$C$87,0)+RIGHT($E201),0)\n+T$11*OFFSET('Efficiency Distributions'!$E$10,MATCH($C197,'Efficiency Distributions'!$C$9:$C$87,0)+RIGHT($E201),0))\n/SUM(T$10:T$11)","v":0},{"$f":"IF(INDEX(PC_MAPPING,RIGHT($C197,1),MATCH($E$2,'Data by Building Type'!$D$22:$F$22,0))=\"Yes\",1,0)*\n(U$10*OFFSET('Efficiency Distributions'!$D$10,MATCH($C197,'Efficiency Distributions'!$C$9:$C$87,0)+RIGHT($E201),0)\n+U$11*OFFSET('Efficiency Distributions'!$E$10,MATCH($C197,'Efficiency Distributions'!$C$9:$C$87,0)+RIGHT($E201),0))\n/SUM(U$10:U$11)","v":0},{"$f":"IF(INDEX(PC_MAPPING,RIGHT($C197,1),MATCH($E$2,'Data by Building Type'!$D$22:$F$22,0))=\"Yes\",1,0)*\n(V$10*OFFSET('Efficiency Distributions'!$D$10,MATCH($C197,'Efficiency Distributions'!$C$9:$C$87,0)+RIGHT($E201),0)\n+V$11*OFFSET('Efficiency Distributions'!$E$10,MATCH($C197,'Efficiency Distributions'!$C$9:$C$87,0)+RIGHT($E201),0))\n/SUM(V$10:V$11)","v":0},{"$f":"IF(INDEX(PC_MAPPING,RIGHT($C197,1),MATCH($E$2,'Data by Building Type'!$D$22:$F$22,0))=\"Yes\",1,0)*\n(W$10*OFFSET('Efficiency Distributions'!$D$10,MATCH($C197,'Efficiency Distributions'!$C$9:$C$87,0)+RIGHT($E201),0)\n+W$11*OFFSET('Efficiency Distributions'!$E$10,MATCH($C197,'Efficiency Distributions'!$C$9:$C$87,0)+RIGHT($E201),0))\n/SUM(W$10:W$11)","v":0},{"$f":"IF(INDEX(PC_MAPPING,RIGHT($C197,1),MATCH($E$2,'Data by Building Type'!$D$22:$F$22,0))=\"Yes\",1,0)*\n(X$10*OFFSET('Efficiency Distributions'!$D$10,MATCH($C197,'Efficiency Distributions'!$C$9:$C$87,0)+RIGHT($E201),0)\n+X$11*OFFSET('Efficiency Distributions'!$E$10,MATCH($C197,'Efficiency Distributions'!$C$9:$C$87,0)+RIGHT($E201),0))\n/SUM(X$10:X$11)","v":0},{"$f":"IF(INDEX(PC_MAPPING,RIGHT($C197,1),MATCH($E$2,'Data by Building Type'!$D$22:$F$22,0))=\"Yes\",1,0)*\n(Y$10*OFFSET('Efficiency Distributions'!$D$10,MATCH($C197,'Efficiency Distributions'!$C$9:$C$87,0)+RIGHT($E201),0)\n+Y$11*OFFSET('Efficiency Distributions'!$E$10,MATCH($C197,'Efficiency Distributions'!$C$9:$C$87,0)+RIGHT($E201),0))\n/SUM(Y$10:Y$11)","v":0},{"$f":"IF(INDEX(PC_MAPPING,RIGHT($C197,1),MATCH($E$2,'Data by Building Type'!$D$22:$F$22,0))=\"Yes\",1,0)*\n(Z$10*OFFSET('Efficiency Distributions'!$D$10,MATCH($C197,'Efficiency Distributions'!$C$9:$C$87,0)+RIGHT($E201),0)\n+Z$11*OFFSET('Efficiency Distributions'!$E$10,MATCH($C197,'Efficiency Distributions'!$C$9:$C$87,0)+RIGHT($E201),0))\n/SUM(Z$10:Z$11)","v":0},{"$f":"IF(INDEX(PC_MAPPING,RIGHT($C197,1),MATCH($E$2,'Data by Building Type'!$D$22:$F$22,0))=\"Yes\",1,0)*\n(AA$10*OFFSET('Efficiency Distributions'!$D$10,MATCH($C197,'Efficiency Distributions'!$C$9:$C$87,0)+RIGHT($E201),0)\n+AA$11*OFFSET('Efficiency Distributions'!$E$10,MATCH($C197,'Efficiency Distributions'!$C$9:$C$87,0)+RIGHT($E201),0))\n/SUM(AA$10:AA$11)","v":0},{"$f":"IF(INDEX(PC_MAPPING,RIGHT($C197,1),MATCH($E$2,'Data by Building Type'!$D$22:$F$22,0))=\"Yes\",1,0)*\n(AB$10*OFFSET('Efficiency Distributions'!$D$10,MATCH($C197,'Efficiency Distributions'!$C$9:$C$87,0)+RIGHT($E201),0)\n+AB$11*OFFSET('Efficiency Distributions'!$E$10,MATCH($C197,'Efficiency Distributions'!$C$9:$C$87,0)+RIGHT($E201),0))\n/SUM(AB$10:AB$11)","v":0},{"$f":"IF(INDEX(PC_MAPPING,RIGHT($C197,1),MATCH($E$2,'Data by Building Type'!$D$22:$F$22,0))=\"Yes\",1,0)*\n(AC$10*OFFSET('Efficiency Distributions'!$D$10,MATCH($C197,'Efficiency Distributions'!$C$9:$C$87,0)+RIGHT($E201),0)\n+AC$11*OFFSET('Efficiency Distributions'!$E$10,MATCH($C197,'Efficiency Distributions'!$C$9:$C$87,0)+RIGHT($E201),0))\n/SUM(AC$10:AC$11)","v":0},{"$f":"IF(INDEX(PC_MAPPING,RIGHT($C197,1),MATCH($E$2,'Data by Building Type'!$D$22:$F$22,0))=\"Yes\",1,0)*\n(AD$10*OFFSET('Efficiency Distributions'!$D$10,MATCH($C197,'Efficiency Distributions'!$C$9:$C$87,0)+RIGHT($E201),0)\n+AD$11*OFFSET('Efficiency Distributions'!$E$10,MATCH($C197,'Efficiency Distributions'!$C$9:$C$87,0)+RIGHT($E201),0))\n/SUM(AD$10:AD$11)","v":0},{"$f":"IF(INDEX(PC_MAPPING,RIGHT($C197,1),MATCH($E$2,'Data by Building Type'!$D$22:$F$22,0))=\"Yes\",1,0)*\n(AE$10*OFFSET('Efficiency Distributions'!$D$10,MATCH($C197,'Efficiency Distributions'!$C$9:$C$87,0)+RIGHT($E201),0)\n+AE$11*OFFSET('Efficiency Distributions'!$E$10,MATCH($C197,'Efficiency Distributions'!$C$9:$C$87,0)+RIGHT($E201),0))\n/SUM(AE$10:AE$11)","v":0},{"$f":"IF(INDEX(PC_MAPPING,RIGHT($C197,1),MATCH($E$2,'Data by Building Type'!$D$22:$F$22,0))=\"Yes\",1,0)*\n(AF$10*OFFSET('Efficiency Distributions'!$D$10,MATCH($C197,'Efficiency Distributions'!$C$9:$C$87,0)+RIGHT($E201),0)\n+AF$11*OFFSET('Efficiency Distributions'!$E$10,MATCH($C197,'Efficiency Distributions'!$C$9:$C$87,0)+RIGHT($E201),0))\n/SUM(AF$10:AF$11)","v":0},{"$f":"IF(INDEX(PC_MAPPING,RIGHT($C197,1),MATCH($E$2,'Data by Building Type'!$D$22:$F$22,0))=\"Yes\",1,0)*\n(AG$10*OFFSET('Efficiency Distributions'!$D$10,MATCH($C197,'Efficiency Distributions'!$C$9:$C$87,0)+RIGHT($E201),0)\n+AG$11*OFFSET('Efficiency Distributions'!$E$10,MATCH($C197,'Efficiency Distributions'!$C$9:$C$87,0)+RIGHT($E201),0))\n/SUM(AG$10:AG$11)","v":0},{"$f":"IF(INDEX(PC_MAPPING,RIGHT($C197,1),MATCH($E$2,'Data by Building Type'!$D$22:$F$22,0))=\"Yes\",1,0)*\n(AH$10*OFFSET('Efficiency Distributions'!$D$10,MATCH($C197,'Efficiency Distributions'!$C$9:$C$87,0)+RIGHT($E201),0)\n+AH$11*OFFSET('Efficiency Distributions'!$E$10,MATCH($C197,'Efficiency Distributions'!$C$9:$C$87,0)+RIGHT($E201),0))\n/SUM(AH$10:AH$11)","v":0},{"$f":"IF(INDEX(PC_MAPPING,RIGHT($C197,1),MATCH($E$2,'Data by Building Type'!$D$22:$F$22,0))=\"Yes\",1,0)*\n(AI$10*OFFSET('Efficiency Distributions'!$D$10,MATCH($C197,'Efficiency Distributions'!$C$9:$C$87,0)+RIGHT($E201),0)\n+AI$11*OFFSET('Efficiency Distributions'!$E$10,MATCH($C197,'Efficiency Distributions'!$C$9:$C$87,0)+RIGHT($E201),0))\n/SUM(AI$10:AI$11)","v":0},{"$f":"IF(INDEX(PC_MAPPING,RIGHT($C197,1),MATCH($E$2,'Data by Building Type'!$D$22:$F$22,0))=\"Yes\",1,0)*\n(AJ$10*OFFSET('Efficiency Distributions'!$D$10,MATCH($C197,'Efficiency Distributions'!$C$9:$C$87,0)+RIGHT($E201),0)\n+AJ$11*OFFSET('Efficiency Distributions'!$E$10,MATCH($C197,'Efficiency Distributions'!$C$9:$C$87,0)+RIGHT($E201),0))\n/SUM(AJ$10:AJ$11)","v":0},{"$f":"IF(INDEX(PC_MAPPING,RIGHT($C197,1),MATCH($E$2,'Data by Building Type'!$D$22:$F$22,0))=\"Yes\",1,0)*\n(AK$10*OFFSET('Efficiency Distributions'!$D$10,MATCH($C197,'Efficiency Distributions'!$C$9:$C$87,0)+RIGHT($E201),0)\n+AK$11*OFFSET('Efficiency Distributions'!$E$10,MATCH($C197,'Efficiency Distributions'!$C$9:$C$87,0)+RIGHT($E201),0))\n/SUM(AK$10:AK$11)","v":0},{"$f":"IF(INDEX(PC_MAPPING,RIGHT($C197,1),MATCH($E$2,'Data by Building Type'!$D$22:$F$22,0))=\"Yes\",1,0)*\n(AL$10*OFFSET('Efficiency Distributions'!$D$10,MATCH($C197,'Efficiency Distributions'!$C$9:$C$87,0)+RIGHT($E201),0)\n+AL$11*OFFSET('Efficiency Distributions'!$E$10,MATCH($C197,'Efficiency Distributions'!$C$9:$C$87,0)+RIGHT($E201),0))\n/SUM(AL$10:AL$11)","v":0},{"$f":"IF(INDEX(PC_MAPPING,RIGHT($C197,1),MATCH($E$2,'Data by Building Type'!$D$22:$F$22,0))=\"Yes\",1,0)*\n(AM$10*OFFSET('Efficiency Distributions'!$D$10,MATCH($C197,'Efficiency Distributions'!$C$9:$C$87,0)+RIGHT($E201),0)\n+AM$11*OFFSET('Efficiency Distributions'!$E$10,MATCH($C197,'Efficiency Distributions'!$C$9:$C$87,0)+RIGHT($E201),0))\n/SUM(AM$10:AM$11)","v":0},{"$f":"IF(INDEX(PC_MAPPING,RIGHT($C197,1),MATCH($E$2,'Data by Building Type'!$D$22:$F$22,0))=\"Yes\",1,0)*\n(AN$10*OFFSET('Efficiency Distributions'!$D$10,MATCH($C197,'Efficiency Distributions'!$C$9:$C$87,0)+RIGHT($E201),0)\n+AN$11*OFFSET('Efficiency Distributions'!$E$10,MATCH($C197,'Efficiency Distributions'!$C$9:$C$87,0)+RIGHT($E201),0))\n/SUM(AN$10:AN$11)","v":0},{"$f":"IF(INDEX(PC_MAPPING,RIGHT($C197,1),MATCH($E$2,'Data by Building Type'!$D$22:$F$22,0))=\"Yes\",1,0)*\n(AO$10*OFFSET('Efficiency Distributions'!$D$10,MATCH($C197,'Efficiency Distributions'!$C$9:$C$87,0)+RIGHT($E201),0)\n+AO$11*OFFSET('Efficiency Distributions'!$E$10,MATCH($C197,'Efficiency Distributions'!$C$9:$C$87,0)+RIGHT($E201),0))\n/SUM(AO$10:AO$11)","v":0},{"$f":"IF(INDEX(PC_MAPPING,RIGHT($C197,1),MATCH($E$2,'Data by Building Type'!$D$22:$F$22,0))=\"Yes\",1,0)*\n(AP$10*OFFSET('Efficiency Distributions'!$D$10,MATCH($C197,'Efficiency Distributions'!$C$9:$C$87,0)+RIGHT($E201),0)\n+AP$11*OFFSET('Efficiency Distributions'!$E$10,MATCH($C197,'Efficiency Distributions'!$C$9:$C$87,0)+RIGHT($E201),0))\n/SUM(AP$10:AP$11)","v":0},{"$f":"IF(INDEX(PC_MAPPING,RIGHT($C197,1),MATCH($E$2,'Data by Building Type'!$D$22:$F$22,0))=\"Yes\",1,0)*\n(AQ$10*OFFSET('Efficiency Distributions'!$D$10,MATCH($C197,'Efficiency Distributions'!$C$9:$C$87,0)+RIGHT($E201),0)\n+AQ$11*OFFSET('Efficiency Distributions'!$E$10,MATCH($C197,'Efficiency Distributions'!$C$9:$C$87,0)+RIGHT($E201),0))\n/SUM(AQ$10:AQ$11)","v":0},{"$f":"IF(INDEX(PC_MAPPING,RIGHT($C197,1),MATCH($E$2,'Data by Building Type'!$D$22:$F$22,0))=\"Yes\",1,0)*\n(AR$10*OFFSET('Efficiency Distributions'!$D$10,MATCH($C197,'Efficiency Distributions'!$C$9:$C$87,0)+RIGHT($E201),0)\n+AR$11*OFFSET('Efficiency Distributions'!$E$10,MATCH($C197,'Efficiency Distributions'!$C$9:$C$87,0)+RIGHT($E201),0))\n/SUM(AR$10:AR$11)","v":0},{"$f":"IF(INDEX(PC_MAPPING,RIGHT($C197,1),MATCH($E$2,'Data by Building Type'!$D$22:$F$22,0))=\"Yes\",1,0)*\n(AS$10*OFFSET('Efficiency Distributions'!$D$10,MATCH($C197,'Efficiency Distributions'!$C$9:$C$87,0)+RIGHT($E201),0)\n+AS$11*OFFSET('Efficiency Distributions'!$E$10,MATCH($C197,'Efficiency Distributions'!$C$9:$C$87,0)+RIGHT($E201),0))\n/SUM(AS$10:AS$11)","v":0},{"$f":"IF(INDEX(PC_MAPPING,RIGHT($C197,1),MATCH($E$2,'Data by Building Type'!$D$22:$F$22,0))=\"Yes\",1,0)*\n(AT$10*OFFSET('Efficiency Distributions'!$D$10,MATCH($C197,'Efficiency Distributions'!$C$9:$C$87,0)+RIGHT($E201),0)\n+AT$11*OFFSET('Efficiency Distributions'!$E$10,MATCH($C197,'Efficiency Distributions'!$C$9:$C$87,0)+RIGHT($E201),0))\n/SUM(AT$10:AT$11)","v":0},{"$f":"IF(INDEX(PC_MAPPING,RIGHT($C197,1),MATCH($E$2,'Data by Building Type'!$D$22:$F$22,0))=\"Yes\",1,0)*\n(AU$10*OFFSET('Efficiency Distributions'!$D$10,MATCH($C197,'Efficiency Distributions'!$C$9:$C$87,0)+RIGHT($E201),0)\n+AU$11*OFFSET('Efficiency Distributions'!$E$10,MATCH($C197,'Efficiency Distributions'!$C$9:$C$87,0)+RIGHT($E201),0))\n/SUM(AU$10:AU$11)","v":0},{"$f":"IF(INDEX(PC_MAPPING,RIGHT($C197,1),MATCH($E$2,'Data by Building Type'!$D$22:$F$22,0))=\"Yes\",1,0)*\n(AV$10*OFFSET('Efficiency Distributions'!$D$10,MATCH($C197,'Efficiency Distributions'!$C$9:$C$87,0)+RIGHT($E201),0)\n+AV$11*OFFSET('Efficiency Distributions'!$E$10,MATCH($C197,'Efficiency Distributions'!$C$9:$C$87,0)+RIGHT($E201),0))\n/SUM(AV$10:AV$11)","v":0},{"$f":"IF(INDEX(PC_MAPPING,RIGHT($C197,1),MATCH($E$2,'Data by Building Type'!$D$22:$F$22,0))=\"Yes\",1,0)*\n(AW$10*OFFSET('Efficiency Distributions'!$D$10,MATCH($C197,'Efficiency Distributions'!$C$9:$C$87,0)+RIGHT($E201),0)\n+AW$11*OFFSET('Efficiency Distributions'!$E$10,MATCH($C197,'Efficiency Distributions'!$C$9:$C$87,0)+RIGHT($E201),0))\n/SUM(AW$10:AW$11)","v":0},{"$f":"IF(INDEX(PC_MAPPING,RIGHT($C197,1),MATCH($E$2,'Data by Building Type'!$D$22:$F$22,0))=\"Yes\",1,0)*\n(AX$10*OFFSET('Efficiency Distributions'!$D$10,MATCH($C197,'Efficiency Distributions'!$C$9:$C$87,0)+RIGHT($E201),0)\n+AX$11*OFFSET('Efficiency Distributions'!$E$10,MATCH($C197,'Efficiency Distributions'!$C$9:$C$87,0)+RIGHT($E201),0))\n/SUM(AX$10:AX$11)","v":0},{"$f":"IF(INDEX(PC_MAPPING,RIGHT($C197,1),MATCH($E$2,'Data by Building Type'!$D$22:$F$22,0))=\"Yes\",1,0)*\n(AY$10*OFFSET('Efficiency Distributions'!$D$10,MATCH($C197,'Efficiency Distributions'!$C$9:$C$87,0)+RIGHT($E201),0)\n+AY$11*OFFSET('Efficiency Distributions'!$E$10,MATCH($C197,'Efficiency Distributions'!$C$9:$C$87,0)+RIGHT($E201),0))\n/SUM(AY$10:AY$11)","v":0},{"$f":"IF(INDEX(PC_MAPPING,RIGHT($C197,1),MATCH($E$2,'Data by Building Type'!$D$22:$F$22,0))=\"Yes\",1,0)*\n(AZ$10*OFFSET('Efficiency Distributions'!$D$10,MATCH($C197,'Efficiency Distributions'!$C$9:$C$87,0)+RIGHT($E201),0)\n+AZ$11*OFFSET('Efficiency Distributions'!$E$10,MATCH($C197,'Efficiency Distributions'!$C$9:$C$87,0)+RIGHT($E201),0))\n/SUM(AZ$10:AZ$11)","v":0},{"$f":"IF(INDEX(PC_MAPPING,RIGHT($C197,1),MATCH($E$2,'Data by Building Type'!$D$22:$F$22,0))=\"Yes\",1,0)*\n(BA$10*OFFSET('Efficiency Distributions'!$D$10,MATCH($C197,'Efficiency Distributions'!$C$9:$C$87,0)+RIGHT($E201),0)\n+BA$11*OFFSET('Efficiency Distributions'!$E$10,MATCH($C197,'Efficiency Distributions'!$C$9:$C$87,0)+RIGHT($E201),0))\n/SUM(BA$10:BA$11)","v":0},{"$f":"IF(INDEX(PC_MAPPING,RIGHT($C197,1),MATCH($E$2,'Data by Building Type'!$D$22:$F$22,0))=\"Yes\",1,0)*\n(BB$10*OFFSET('Efficiency Distributions'!$D$10,MATCH($C197,'Efficiency Distributions'!$C$9:$C$87,0)+RIGHT($E201),0)\n+BB$11*OFFSET('Efficiency Distributions'!$E$10,MATCH($C197,'Efficiency Distributions'!$C$9:$C$87,0)+RIGHT($E201),0))\n/SUM(BB$10:BB$11)","v":0},{"$f":"IF(INDEX(PC_MAPPING,RIGHT($C197,1),MATCH($E$2,'Data by Building Type'!$D$22:$F$22,0))=\"Yes\",1,0)*\n(BC$10*OFFSET('Efficiency Distributions'!$D$10,MATCH($C197,'Efficiency Distributions'!$C$9:$C$87,0)+RIGHT($E201),0)\n+BC$11*OFFSET('Efficiency Distributions'!$E$10,MATCH($C197,'Efficiency Distributions'!$C$9:$C$87,0)+RIGHT($E201),0))\n/SUM(BC$10:BC$11)","v":0},{"$f":"IF(INDEX(PC_MAPPING,RIGHT($C197,1),MATCH($E$2,'Data by Building Type'!$D$22:$F$22,0))=\"Yes\",1,0)*\n(BD$10*OFFSET('Efficiency Distributions'!$D$10,MATCH($C197,'Efficiency Distributions'!$C$9:$C$87,0)+RIGHT($E201),0)\n+BD$11*OFFSET('Efficiency Distributions'!$E$10,MATCH($C197,'Efficiency Distributions'!$C$9:$C$87,0)+RIGHT($E201),0))\n/SUM(BD$10:BD$11)","v":0},{"$f":"IF(INDEX(PC_MAPPING,RIGHT($C197,1),MATCH($E$2,'Data by Building Type'!$D$22:$F$22,0))=\"Yes\",1,0)*\n(BE$10*OFFSET('Efficiency Distributions'!$D$10,MATCH($C197,'Efficiency Distributions'!$C$9:$C$87,0)+RIGHT($E201),0)\n+BE$11*OFFSET('Efficiency Distributions'!$E$10,MATCH($C197,'Efficiency Distributions'!$C$9:$C$87,0)+RIGHT($E201),0))\n/SUM(BE$10:BE$11)","v":0},{"$f":"IF(INDEX(PC_MAPPING,RIGHT($C197,1),MATCH($E$2,'Data by Building Type'!$D$22:$F$22,0))=\"Yes\",1,0)*\n(BF$10*OFFSET('Efficiency Distributions'!$D$10,MATCH($C197,'Efficiency Distributions'!$C$9:$C$87,0)+RIGHT($E201),0)\n+BF$11*OFFSET('Efficiency Distributions'!$E$10,MATCH($C197,'Efficiency Distributions'!$C$9:$C$87,0)+RIGHT($E201),0))\n/SUM(BF$10:BF$11)","v":0},{"$f":"IF(INDEX(PC_MAPPING,RIGHT($C197,1),MATCH($E$2,'Data by Building Type'!$D$22:$F$22,0))=\"Yes\",1,0)*\n(BG$10*OFFSET('Efficiency Distributions'!$D$10,MATCH($C197,'Efficiency Distributions'!$C$9:$C$87,0)+RIGHT($E201),0)\n+BG$11*OFFSET('Efficiency Distributions'!$E$10,MATCH($C197,'Efficiency Distributions'!$C$9:$C$87,0)+RIGHT($E201),0))\n/SUM(BG$10:BG$11)","v":0}]
[null,null,null,null,"EL1",{"$f":"IF(INDEX(PC_MAPPING,RIGHT($C197,1),MATCH($E$2,'Data by Building Type'!$D$22:$F$22,0))=\"Yes\",1,0)*\n(F$10*OFFSET('Efficiency Distributions'!$D$10,MATCH($C197,'Efficiency Distributions'!$C$9:$C$87,0)+RIGHT($E202),0)\n+F$11*OFFSET('Efficiency Distributions'!$E$10,MATCH($C197,'Efficiency Distributions'!$C$9:$C$87,0)+RIGHT($E202),0))\n/SUM(F$10:F$11)","v":0},{"$f":"IF(INDEX(PC_MAPPING,RIGHT($C197,1),MATCH($E$2,'Data by Building Type'!$D$22:$F$22,0))=\"Yes\",1,0)*\n(G$10*OFFSET('Efficiency Distributions'!$D$10,MATCH($C197,'Efficiency Distributions'!$C$9:$C$87,0)+RIGHT($E202),0)\n+G$11*OFFSET('Efficiency Distributions'!$E$10,MATCH($C197,'Efficiency Distributions'!$C$9:$C$87,0)+RIGHT($E202),0))\n/SUM(G$10:G$11)","v":0},{"$f":"IF(INDEX(PC_MAPPING,RIGHT($C197,1),MATCH($E$2,'Data by Building Type'!$D$22:$F$22,0))=\"Yes\",1,0)*\n(H$10*OFFSET('Efficiency Distributions'!$D$10,MATCH($C197,'Efficiency Distributions'!$C$9:$C$87,0)+RIGHT($E202),0)\n+H$11*OFFSET('Efficiency Distributions'!$E$10,MATCH($C197,'Efficiency Distributions'!$C$9:$C$87,0)+RIGHT($E202),0))\n/SUM(H$10:H$11)","v":0},{"$f":"IF(INDEX(PC_MAPPING,RIGHT($C197,1),MATCH($E$2,'Data by Building Type'!$D$22:$F$22,0))=\"Yes\",1,0)*\n(I$10*OFFSET('Efficiency Distributions'!$D$10,MATCH($C197,'Efficiency Distributions'!$C$9:$C$87,0)+RIGHT($E202),0)\n+I$11*OFFSET('Efficiency Distributions'!$E$10,MATCH($C197,'Efficiency Distributions'!$C$9:$C$87,0)+RIGHT($E202),0))\n/SUM(I$10:I$11)","v":0},{"$f":"IF(INDEX(PC_MAPPING,RIGHT($C197,1),MATCH($E$2,'Data by Building Type'!$D$22:$F$22,0))=\"Yes\",1,0)*\n(J$10*OFFSET('Efficiency Distributions'!$D$10,MATCH($C197,'Efficiency Distributions'!$C$9:$C$87,0)+RIGHT($E202),0)\n+J$11*OFFSET('Efficiency Distributions'!$E$10,MATCH($C197,'Efficiency Distributions'!$C$9:$C$87,0)+RIGHT($E202),0))\n/SUM(J$10:J$11)","v":0},{"$f":"IF(INDEX(PC_MAPPING,RIGHT($C197,1),MATCH($E$2,'Data by Building Type'!$D$22:$F$22,0))=\"Yes\",1,0)*\n(K$10*OFFSET('Efficiency Distributions'!$D$10,MATCH($C197,'Efficiency Distributions'!$C$9:$C$87,0)+RIGHT($E202),0)\n+K$11*OFFSET('Efficiency Distributions'!$E$10,MATCH($C197,'Efficiency Distributions'!$C$9:$C$87,0)+RIGHT($E202),0))\n/SUM(K$10:K$11)","v":0},{"$f":"IF(INDEX(PC_MAPPING,RIGHT($C197,1),MATCH($E$2,'Data by Building Type'!$D$22:$F$22,0))=\"Yes\",1,0)*\n(L$10*OFFSET('Efficiency Distributions'!$D$10,MATCH($C197,'Efficiency Distributions'!$C$9:$C$87,0)+RIGHT($E202),0)\n+L$11*OFFSET('Efficiency Distributions'!$E$10,MATCH($C197,'Efficiency Distributions'!$C$9:$C$87,0)+RIGHT($E202),0))\n/SUM(L$10:L$11)","v":0},{"$f":"IF(INDEX(PC_MAPPING,RIGHT($C197,1),MATCH($E$2,'Data by Building Type'!$D$22:$F$22,0))=\"Yes\",1,0)*\n(M$10*OFFSET('Efficiency Distributions'!$D$10,MATCH($C197,'Efficiency Distributions'!$C$9:$C$87,0)+RIGHT($E202),0)\n+M$11*OFFSET('Efficiency Distributions'!$E$10,MATCH($C197,'Efficiency Distributions'!$C$9:$C$87,0)+RIGHT($E202),0))\n/SUM(M$10:M$11)","v":0},{"$f":"IF(INDEX(PC_MAPPING,RIGHT($C197,1),MATCH($E$2,'Data by Building Type'!$D$22:$F$22,0))=\"Yes\",1,0)*\n(N$10*OFFSET('Efficiency Distributions'!$D$10,MATCH($C197,'Efficiency Distributions'!$C$9:$C$87,0)+RIGHT($E202),0)\n+N$11*OFFSET('Efficiency Distributions'!$E$10,MATCH($C197,'Efficiency Distributions'!$C$9:$C$87,0)+RIGHT($E202),0))\n/SUM(N$10:N$11)","v":0},{"$f":"IF(INDEX(PC_MAPPING,RIGHT($C197,1),MATCH($E$2,'Data by Building Type'!$D$22:$F$22,0))=\"Yes\",1,0)*\n(O$10*OFFSET('Efficiency Distributions'!$D$10,MATCH($C197,'Efficiency Distributions'!$C$9:$C$87,0)+RIGHT($E202),0)\n+O$11*OFFSET('Efficiency Distributions'!$E$10,MATCH($C197,'Efficiency Distributions'!$C$9:$C$87,0)+RIGHT($E202),0))\n/SUM(O$10:O$11)","v":0},{"$f":"IF(INDEX(PC_MAPPING,RIGHT($C197,1),MATCH($E$2,'Data by Building Type'!$D$22:$F$22,0))=\"Yes\",1,0)*\n(P$10*OFFSET('Efficiency Distributions'!$D$10,MATCH($C197,'Efficiency Distributions'!$C$9:$C$87,0)+RIGHT($E202),0)\n+P$11*OFFSET('Efficiency Distributions'!$E$10,MATCH($C197,'Efficiency Distributions'!$C$9:$C$87,0)+RIGHT($E202),0))\n/SUM(P$10:P$11)","v":0},{"$f":"IF(INDEX(PC_MAPPING,RIGHT($C197,1),MATCH($E$2,'Data by Building Type'!$D$22:$F$22,0))=\"Yes\",1,0)*\n(Q$10*OFFSET('Efficiency Distributions'!$D$10,MATCH($C197,'Efficiency Distributions'!$C$9:$C$87,0)+RIGHT($E202),0)\n+Q$11*OFFSET('Efficiency Distributions'!$E$10,MATCH($C197,'Efficiency Distributions'!$C$9:$C$87,0)+RIGHT($E202),0))\n/SUM(Q$10:Q$11)","v":0},{"$f":"IF(INDEX(PC_MAPPING,RIGHT($C197,1),MATCH($E$2,'Data by Building Type'!$D$22:$F$22,0))=\"Yes\",1,0)*\n(R$10*OFFSET('Efficiency Distributions'!$D$10,MATCH($C197,'Efficiency Distributions'!$C$9:$C$87,0)+RIGHT($E202),0)\n+R$11*OFFSET('Efficiency Distributions'!$E$10,MATCH($C197,'Efficiency Distributions'!$C$9:$C$87,0)+RIGHT($E202),0))\n/SUM(R$10:R$11)","v":0},{"$f":"IF(INDEX(PC_MAPPING,RIGHT($C197,1),MATCH($E$2,'Data by Building Type'!$D$22:$F$22,0))=\"Yes\",1,0)*\n(S$10*OFFSET('Efficiency Distributions'!$D$10,MATCH($C197,'Efficiency Distributions'!$C$9:$C$87,0)+RIGHT($E202),0)\n+S$11*OFFSET('Efficiency Distributions'!$E$10,MATCH($C197,'Efficiency Distributions'!$C$9:$C$87,0)+RIGHT($E202),0))\n/SUM(S$10:S$11)","v":0},{"$f":"IF(INDEX(PC_MAPPING,RIGHT($C197,1),MATCH($E$2,'Data by Building Type'!$D$22:$F$22,0))=\"Yes\",1,0)*\n(T$10*OFFSET('Efficiency Distributions'!$D$10,MATCH($C197,'Efficiency Distributions'!$C$9:$C$87,0)+RIGHT($E202),0)\n+T$11*OFFSET('Efficiency Distributions'!$E$10,MATCH($C197,'Efficiency Distributions'!$C$9:$C$87,0)+RIGHT($E202),0))\n/SUM(T$10:T$11)","v":0},{"$f":"IF(INDEX(PC_MAPPING,RIGHT($C197,1),MATCH($E$2,'Data by Building Type'!$D$22:$F$22,0))=\"Yes\",1,0)*\n(U$10*OFFSET('Efficiency Distributions'!$D$10,MATCH($C197,'Efficiency Distributions'!$C$9:$C$87,0)+RIGHT($E202),0)\n+U$11*OFFSET('Efficiency Distributions'!$E$10,MATCH($C197,'Efficiency Distributions'!$C$9:$C$87,0)+RIGHT($E202),0))\n/SUM(U$10:U$11)","v":0},{"$f":"IF(INDEX(PC_MAPPING,RIGHT($C197,1),MATCH($E$2,'Data by Building Type'!$D$22:$F$22,0))=\"Yes\",1,0)*\n(V$10*OFFSET('Efficiency Distributions'!$D$10,MATCH($C197,'Efficiency Distributions'!$C$9:$C$87,0)+RIGHT($E202),0)\n+V$11*OFFSET('Efficiency Distributions'!$E$10,MATCH($C197,'Efficiency Distributions'!$C$9:$C$87,0)+RIGHT($E202),0))\n/SUM(V$10:V$11)","v":0},{"$f":"IF(INDEX(PC_MAPPING,RIGHT($C197,1),MATCH($E$2,'Data by Building Type'!$D$22:$F$22,0))=\"Yes\",1,0)*\n(W$10*OFFSET('Efficiency Distributions'!$D$10,MATCH($C197,'Efficiency Distributions'!$C$9:$C$87,0)+RIGHT($E202),0)\n+W$11*OFFSET('Efficiency Distributions'!$E$10,MATCH($C197,'Efficiency Distributions'!$C$9:$C$87,0)+RIGHT($E202),0))\n/SUM(W$10:W$11)","v":0},{"$f":"IF(INDEX(PC_MAPPING,RIGHT($C197,1),MATCH($E$2,'Data by Building Type'!$D$22:$F$22,0))=\"Yes\",1,0)*\n(X$10*OFFSET('Efficiency Distributions'!$D$10,MATCH($C197,'Efficiency Distributions'!$C$9:$C$87,0)+RIGHT($E202),0)\n+X$11*OFFSET('Efficiency Distributions'!$E$10,MATCH($C197,'Efficiency Distributions'!$C$9:$C$87,0)+RIGHT($E202),0))\n/SUM(X$10:X$11)","v":0},{"$f":"IF(INDEX(PC_MAPPING,RIGHT($C197,1),MATCH($E$2,'Data by Building Type'!$D$22:$F$22,0))=\"Yes\",1,0)*\n(Y$10*OFFSET('Efficiency Distributions'!$D$10,MATCH($C197,'Efficiency Distributions'!$C$9:$C$87,0)+RIGHT($E202),0)\n+Y$11*OFFSET('Efficiency Distributions'!$E$10,MATCH($C197,'Efficiency Distributions'!$C$9:$C$87,0)+RIGHT($E202),0))\n/SUM(Y$10:Y$11)","v":0},{"$f":"IF(INDEX(PC_MAPPING,RIGHT($C197,1),MATCH($E$2,'Data by Building Type'!$D$22:$F$22,0))=\"Yes\",1,0)*\n(Z$10*OFFSET('Efficiency Distributions'!$D$10,MATCH($C197,'Efficiency Distributions'!$C$9:$C$87,0)+RIGHT($E202),0)\n+Z$11*OFFSET('Efficiency Distributions'!$E$10,MATCH($C197,'Efficiency Distributions'!$C$9:$C$87,0)+RIGHT($E202),0))\n/SUM(Z$10:Z$11)","v":0},{"$f":"IF(INDEX(PC_MAPPING,RIGHT($C197,1),MATCH($E$2,'Data by Building Type'!$D$22:$F$22,0))=\"Yes\",1,0)*\n(AA$10*OFFSET('Efficiency Distributions'!$D$10,MATCH($C197,'Efficiency Distributions'!$C$9:$C$87,0)+RIGHT($E202),0)\n+AA$11*OFFSET('Efficiency Distributions'!$E$10,MATCH($C197,'Efficiency Distributions'!$C$9:$C$87,0)+RIGHT($E202),0))\n/SUM(AA$10:AA$11)","v":0},{"$f":"IF(INDEX(PC_MAPPING,RIGHT($C197,1),MATCH($E$2,'Data by Building Type'!$D$22:$F$22,0))=\"Yes\",1,0)*\n(AB$10*OFFSET('Efficiency Distributions'!$D$10,MATCH($C197,'Efficiency Distributions'!$C$9:$C$87,0)+RIGHT($E202),0)\n+AB$11*OFFSET('Efficiency Distributions'!$E$10,MATCH($C197,'Efficiency Distributions'!$C$9:$C$87,0)+RIGHT($E202),0))\n/SUM(AB$10:AB$11)","v":0},{"$f":"IF(INDEX(PC_MAPPING,RIGHT($C197,1),MATCH($E$2,'Data by Building Type'!$D$22:$F$22,0))=\"Yes\",1,0)*\n(AC$10*OFFSET('Efficiency Distributions'!$D$10,MATCH($C197,'Efficiency Distributions'!$C$9:$C$87,0)+RIGHT($E202),0)\n+AC$11*OFFSET('Efficiency Distributions'!$E$10,MATCH($C197,'Efficiency Distributions'!$C$9:$C$87,0)+RIGHT($E202),0))\n/SUM(AC$10:AC$11)","v":0},{"$f":"IF(INDEX(PC_MAPPING,RIGHT($C197,1),MATCH($E$2,'Data by Building Type'!$D$22:$F$22,0))=\"Yes\",1,0)*\n(AD$10*OFFSET('Efficiency Distributions'!$D$10,MATCH($C197,'Efficiency Distributions'!$C$9:$C$87,0)+RIGHT($E202),0)\n+AD$11*OFFSET('Efficiency Distributions'!$E$10,MATCH($C197,'Efficiency Distributions'!$C$9:$C$87,0)+RIGHT($E202),0))\n/SUM(AD$10:AD$11)","v":0},{"$f":"IF(INDEX(PC_MAPPING,RIGHT($C197,1),MATCH($E$2,'Data by Building Type'!$D$22:$F$22,0))=\"Yes\",1,0)*\n(AE$10*OFFSET('Efficiency Distributions'!$D$10,MATCH($C197,'Efficiency Distributions'!$C$9:$C$87,0)+RIGHT($E202),0)\n+AE$11*OFFSET('Efficiency Distributions'!$E$10,MATCH($C197,'Efficiency Distributions'!$C$9:$C$87,0)+RIGHT($E202),0))\n/SUM(AE$10:AE$11)","v":0},{"$f":"IF(INDEX(PC_MAPPING,RIGHT($C197,1),MATCH($E$2,'Data by Building Type'!$D$22:$F$22,0))=\"Yes\",1,0)*\n(AF$10*OFFSET('Efficiency Distributions'!$D$10,MATCH($C197,'Efficiency Distributions'!$C$9:$C$87,0)+RIGHT($E202),0)\n+AF$11*OFFSET('Efficiency Distributions'!$E$10,MATCH($C197,'Efficiency Distributions'!$C$9:$C$87,0)+RIGHT($E202),0))\n/SUM(AF$10:AF$11)","v":0},{"$f":"IF(INDEX(PC_MAPPING,RIGHT($C197,1),MATCH($E$2,'Data by Building Type'!$D$22:$F$22,0))=\"Yes\",1,0)*\n(AG$10*OFFSET('Efficiency Distributions'!$D$10,MATCH($C197,'Efficiency Distributions'!$C$9:$C$87,0)+RIGHT($E202),0)\n+AG$11*OFFSET('Efficiency Distributions'!$E$10,MATCH($C197,'Efficiency Distributions'!$C$9:$C$87,0)+RIGHT($E202),0))\n/SUM(AG$10:AG$11)","v":0},{"$f":"IF(INDEX(PC_MAPPING,RIGHT($C197,1),MATCH($E$2,'Data by Building Type'!$D$22:$F$22,0))=\"Yes\",1,0)*\n(AH$10*OFFSET('Efficiency Distributions'!$D$10,MATCH($C197,'Efficiency Distributions'!$C$9:$C$87,0)+RIGHT($E202),0)\n+AH$11*OFFSET('Efficiency Distributions'!$E$10,MATCH($C197,'Efficiency Distributions'!$C$9:$C$87,0)+RIGHT($E202),0))\n/SUM(AH$10:AH$11)","v":0},{"$f":"IF(INDEX(PC_MAPPING,RIGHT($C197,1),MATCH($E$2,'Data by Building Type'!$D$22:$F$22,0))=\"Yes\",1,0)*\n(AI$10*OFFSET('Efficiency Distributions'!$D$10,MATCH($C197,'Efficiency Distributions'!$C$9:$C$87,0)+RIGHT($E202),0)\n+AI$11*OFFSET('Efficiency Distributions'!$E$10,MATCH($C197,'Efficiency Distributions'!$C$9:$C$87,0)+RIGHT($E202),0))\n/SUM(AI$10:AI$11)","v":0},{"$f":"IF(INDEX(PC_MAPPING,RIGHT($C197,1),MATCH($E$2,'Data by Building Type'!$D$22:$F$22,0))=\"Yes\",1,0)*\n(AJ$10*OFFSET('Efficiency Distributions'!$D$10,MATCH($C197,'Efficiency Distributions'!$C$9:$C$87,0)+RIGHT($E202),0)\n+AJ$11*OFFSET('Efficiency Distributions'!$E$10,MATCH($C197,'Efficiency Distributions'!$C$9:$C$87,0)+RIGHT($E202),0))\n/SUM(AJ$10:AJ$11)","v":0},{"$f":"IF(INDEX(PC_MAPPING,RIGHT($C197,1),MATCH($E$2,'Data by Building Type'!$D$22:$F$22,0))=\"Yes\",1,0)*\n(AK$10*OFFSET('Efficiency Distributions'!$D$10,MATCH($C197,'Efficiency Distributions'!$C$9:$C$87,0)+RIGHT($E202),0)\n+AK$11*OFFSET('Efficiency Distributions'!$E$10,MATCH($C197,'Efficiency Distributions'!$C$9:$C$87,0)+RIGHT($E202),0))\n/SUM(AK$10:AK$11)","v":0},{"$f":"IF(INDEX(PC_MAPPING,RIGHT($C197,1),MATCH($E$2,'Data by Building Type'!$D$22:$F$22,0))=\"Yes\",1,0)*\n(AL$10*OFFSET('Efficiency Distributions'!$D$10,MATCH($C197,'Efficiency Distributions'!$C$9:$C$87,0)+RIGHT($E202),0)\n+AL$11*OFFSET('Efficiency Distributions'!$E$10,MATCH($C197,'Efficiency Distributions'!$C$9:$C$87,0)+RIGHT($E202),0))\n/SUM(AL$10:AL$11)","v":0},{"$f":"IF(INDEX(PC_MAPPING,RIGHT($C197,1),MATCH($E$2,'Data by Building Type'!$D$22:$F$22,0))=\"Yes\",1,0)*\n(AM$10*OFFSET('Efficiency Distributions'!$D$10,MATCH($C197,'Efficiency Distributions'!$C$9:$C$87,0)+RIGHT($E202),0)\n+AM$11*OFFSET('Efficiency Distributions'!$E$10,MATCH($C197,'Efficiency Distributions'!$C$9:$C$87,0)+RIGHT($E202),0))\n/SUM(AM$10:AM$11)","v":0},{"$f":"IF(INDEX(PC_MAPPING,RIGHT($C197,1),MATCH($E$2,'Data by Building Type'!$D$22:$F$22,0))=\"Yes\",1,0)*\n(AN$10*OFFSET('Efficiency Distributions'!$D$10,MATCH($C197,'Efficiency Distributions'!$C$9:$C$87,0)+RIGHT($E202),0)\n+AN$11*OFFSET('Efficiency Distributions'!$E$10,MATCH($C197,'Efficiency Distributions'!$C$9:$C$87,0)+RIGHT($E202),0))\n/SUM(AN$10:AN$11)","v":0},{"$f":"IF(INDEX(PC_MAPPING,RIGHT($C197,1),MATCH($E$2,'Data by Building Type'!$D$22:$F$22,0))=\"Yes\",1,0)*\n(AO$10*OFFSET('Efficiency Distributions'!$D$10,MATCH($C197,'Efficiency Distributions'!$C$9:$C$87,0)+RIGHT($E202),0)\n+AO$11*OFFSET('Efficiency Distributions'!$E$10,MATCH($C197,'Efficiency Distributions'!$C$9:$C$87,0)+RIGHT($E202),0))\n/SUM(AO$10:AO$11)","v":0},{"$f":"IF(INDEX(PC_MAPPING,RIGHT($C197,1),MATCH($E$2,'Data by Building Type'!$D$22:$F$22,0))=\"Yes\",1,0)*\n(AP$10*OFFSET('Efficiency Distributions'!$D$10,MATCH($C197,'Efficiency Distributions'!$C$9:$C$87,0)+RIGHT($E202),0)\n+AP$11*OFFSET('Efficiency Distributions'!$E$10,MATCH($C197,'Efficiency Distributions'!$C$9:$C$87,0)+RIGHT($E202),0))\n/SUM(AP$10:AP$11)","v":0},{"$f":"IF(INDEX(PC_MAPPING,RIGHT($C197,1),MATCH($E$2,'Data by Building Type'!$D$22:$F$22,0))=\"Yes\",1,0)*\n(AQ$10*OFFSET('Efficiency Distributions'!$D$10,MATCH($C197,'Efficiency Distributions'!$C$9:$C$87,0)+RIGHT($E202),0)\n+AQ$11*OFFSET('Efficiency Distributions'!$E$10,MATCH($C197,'Efficiency Distributions'!$C$9:$C$87,0)+RIGHT($E202),0))\n/SUM(AQ$10:AQ$11)","v":0},{"$f":"IF(INDEX(PC_MAPPING,RIGHT($C197,1),MATCH($E$2,'Data by Building Type'!$D$22:$F$22,0))=\"Yes\",1,0)*\n(AR$10*OFFSET('Efficiency Distributions'!$D$10,MATCH($C197,'Efficiency Distributions'!$C$9:$C$87,0)+RIGHT($E202),0)\n+AR$11*OFFSET('Efficiency Distributions'!$E$10,MATCH($C197,'Efficiency Distributions'!$C$9:$C$87,0)+RIGHT($E202),0))\n/SUM(AR$10:AR$11)","v":0},{"$f":"IF(INDEX(PC_MAPPING,RIGHT($C197,1),MATCH($E$2,'Data by Building Type'!$D$22:$F$22,0))=\"Yes\",1,0)*\n(AS$10*OFFSET('Efficiency Distributions'!$D$10,MATCH($C197,'Efficiency Distributions'!$C$9:$C$87,0)+RIGHT($E202),0)\n+AS$11*OFFSET('Efficiency Distributions'!$E$10,MATCH($C197,'Efficiency Distributions'!$C$9:$C$87,0)+RIGHT($E202),0))\n/SUM(AS$10:AS$11)","v":0},{"$f":"IF(INDEX(PC_MAPPING,RIGHT($C197,1),MATCH($E$2,'Data by Building Type'!$D$22:$F$22,0))=\"Yes\",1,0)*\n(AT$10*OFFSET('Efficiency Distributions'!$D$10,MATCH($C197,'Efficiency Distributions'!$C$9:$C$87,0)+RIGHT($E202),0)\n+AT$11*OFFSET('Efficiency Distributions'!$E$10,MATCH($C197,'Efficiency Distributions'!$C$9:$C$87,0)+RIGHT($E202),0))\n/SUM(AT$10:AT$11)","v":0},{"$f":"IF(INDEX(PC_MAPPING,RIGHT($C197,1),MATCH($E$2,'Data by Building Type'!$D$22:$F$22,0))=\"Yes\",1,0)*\n(AU$10*OFFSET('Efficiency Distributions'!$D$10,MATCH($C197,'Efficiency Distributions'!$C$9:$C$87,0)+RIGHT($E202),0)\n+AU$11*OFFSET('Efficiency Distributions'!$E$10,MATCH($C197,'Efficiency Distributions'!$C$9:$C$87,0)+RIGHT($E202),0))\n/SUM(AU$10:AU$11)","v":0},{"$f":"IF(INDEX(PC_MAPPING,RIGHT($C197,1),MATCH($E$2,'Data by Building Type'!$D$22:$F$22,0))=\"Yes\",1,0)*\n(AV$10*OFFSET('Efficiency Distributions'!$D$10,MATCH($C197,'Efficiency Distributions'!$C$9:$C$87,0)+RIGHT($E202),0)\n+AV$11*OFFSET('Efficiency Distributions'!$E$10,MATCH($C197,'Efficiency Distributions'!$C$9:$C$87,0)+RIGHT($E202),0))\n/SUM(AV$10:AV$11)","v":0},{"$f":"IF(INDEX(PC_MAPPING,RIGHT($C197,1),MATCH($E$2,'Data by Building Type'!$D$22:$F$22,0))=\"Yes\",1,0)*\n(AW$10*OFFSET('Efficiency Distributions'!$D$10,MATCH($C197,'Efficiency Distributions'!$C$9:$C$87,0)+RIGHT($E202),0)\n+AW$11*OFFSET('Efficiency Distributions'!$E$10,MATCH($C197,'Efficiency Distributions'!$C$9:$C$87,0)+RIGHT($E202),0))\n/SUM(AW$10:AW$11)","v":0},{"$f":"IF(INDEX(PC_MAPPING,RIGHT($C197,1),MATCH($E$2,'Data by Building Type'!$D$22:$F$22,0))=\"Yes\",1,0)*\n(AX$10*OFFSET('Efficiency Distributions'!$D$10,MATCH($C197,'Efficiency Distributions'!$C$9:$C$87,0)+RIGHT($E202),0)\n+AX$11*OFFSET('Efficiency Distributions'!$E$10,MATCH($C197,'Efficiency Distributions'!$C$9:$C$87,0)+RIGHT($E202),0))\n/SUM(AX$10:AX$11)","v":0},{"$f":"IF(INDEX(PC_MAPPING,RIGHT($C197,1),MATCH($E$2,'Data by Building Type'!$D$22:$F$22,0))=\"Yes\",1,0)*\n(AY$10*OFFSET('Efficiency Distributions'!$D$10,MATCH($C197,'Efficiency Distributions'!$C$9:$C$87,0)+RIGHT($E202),0)\n+AY$11*OFFSET('Efficiency Distributions'!$E$10,MATCH($C197,'Efficiency Distributions'!$C$9:$C$87,0)+RIGHT($E202),0))\n/SUM(AY$10:AY$11)","v":0},{"$f":"IF(INDEX(PC_MAPPING,RIGHT($C197,1),MATCH($E$2,'Data by Building Type'!$D$22:$F$22,0))=\"Yes\",1,0)*\n(AZ$10*OFFSET('Efficiency Distributions'!$D$10,MATCH($C197,'Efficiency Distributions'!$C$9:$C$87,0)+RIGHT($E202),0)\n+AZ$11*OFFSET('Efficiency Distributions'!$E$10,MATCH($C197,'Efficiency Distributions'!$C$9:$C$87,0)+RIGHT($E202),0))\n/SUM(AZ$10:AZ$11)","v":0},{"$f":"IF(INDEX(PC_MAPPING,RIGHT($C197,1),MATCH($E$2,'Data by Building Type'!$D$22:$F$22,0))=\"Yes\",1,0)*\n(BA$10*OFFSET('Efficiency Distributions'!$D$10,MATCH($C197,'Efficiency Distributions'!$C$9:$C$87,0)+RIGHT($E202),0)\n+BA$11*OFFSET('Efficiency Distributions'!$E$10,MATCH($C197,'Efficiency Distributions'!$C$9:$C$87,0)+RIGHT($E202),0))\n/SUM(BA$10:BA$11)","v":0},{"$f":"IF(INDEX(PC_MAPPING,RIGHT($C197,1),MATCH($E$2,'Data by Building Type'!$D$22:$F$22,0))=\"Yes\",1,0)*\n(BB$10*OFFSET('Efficiency Distributions'!$D$10,MATCH($C197,'Efficiency Distributions'!$C$9:$C$87,0)+RIGHT($E202),0)\n+BB$11*OFFSET('Efficiency Distributions'!$E$10,MATCH($C197,'Efficiency Distributions'!$C$9:$C$87,0)+RIGHT($E202),0))\n/SUM(BB$10:BB$11)","v":0},{"$f":"IF(INDEX(PC_MAPPING,RIGHT($C197,1),MATCH($E$2,'Data by Building Type'!$D$22:$F$22,0))=\"Yes\",1,0)*\n(BC$10*OFFSET('Efficiency Distributions'!$D$10,MATCH($C197,'Efficiency Distributions'!$C$9:$C$87,0)+RIGHT($E202),0)\n+BC$11*OFFSET('Efficiency Distributions'!$E$10,MATCH($C197,'Efficiency Distributions'!$C$9:$C$87,0)+RIGHT($E202),0))\n/SUM(BC$10:BC$11)","v":0},{"$f":"IF(INDEX(PC_MAPPING,RIGHT($C197,1),MATCH($E$2,'Data by Building Type'!$D$22:$F$22,0))=\"Yes\",1,0)*\n(BD$10*OFFSET('Efficiency Distributions'!$D$10,MATCH($C197,'Efficiency Distributions'!$C$9:$C$87,0)+RIGHT($E202),0)\n+BD$11*OFFSET('Efficiency Distributions'!$E$10,MATCH($C197,'Efficiency Distributions'!$C$9:$C$87,0)+RIGHT($E202),0))\n/SUM(BD$10:BD$11)","v":0},{"$f":"IF(INDEX(PC_MAPPING,RIGHT($C197,1),MATCH($E$2,'Data by Building Type'!$D$22:$F$22,0))=\"Yes\",1,0)*\n(BE$10*OFFSET('Efficiency Distributions'!$D$10,MATCH($C197,'Efficiency Distributions'!$C$9:$C$87,0)+RIGHT($E202),0)\n+BE$11*OFFSET('Efficiency Distributions'!$E$10,MATCH($C197,'Efficiency Distributions'!$C$9:$C$87,0)+RIGHT($E202),0))\n/SUM(BE$10:BE$11)","v":0},{"$f":"IF(INDEX(PC_MAPPING,RIGHT($C197,1),MATCH($E$2,'Data by Building Type'!$D$22:$F$22,0))=\"Yes\",1,0)*\n(BF$10*OFFSET('Efficiency Distributions'!$D$10,MATCH($C197,'Efficiency Distributions'!$C$9:$C$87,0)+RIGHT($E202),0)\n+BF$11*OFFSET('Efficiency Distributions'!$E$10,MATCH($C197,'Efficiency Distributions'!$C$9:$C$87,0)+RIGHT($E202),0))\n/SUM(BF$10:BF$11)","v":0},{"$f":"IF(INDEX(PC_MAPPING,RIGHT($C197,1),MATCH($E$2,'Data by Building Type'!$D$22:$F$22,0))=\"Yes\",1,0)*\n(BG$10*OFFSET('Efficiency Distributions'!$D$10,MATCH($C197,'Efficiency Distributions'!$C$9:$C$87,0)+RIGHT($E202),0)\n+BG$11*OFFSET('Efficiency Distributions'!$E$10,MATCH($C197,'Efficiency Distributions'!$C$9:$C$87,0)+RIGHT($E202),0))\n/SUM(BG$10:BG$11)","v":0}]
[null,null,null,null,"EL2",{"$f":"IF(INDEX(PC_MAPPING,RIGHT($C197,1),MATCH($E$2,'Data by Building Type'!$D$22:$F$22,0))=\"Yes\",1,0)*\n(F$10*OFFSET('Efficiency Distributions'!$D$10,MATCH($C197,'Efficiency Distributions'!$C$9:$C$87,0)+RIGHT($E203),0)\n+F$11*OFFSET('Efficiency Distributions'!$E$10,MATCH($C197,'Efficiency Distributions'!$C$9:$C$87,0)+RIGHT($E203),0))\n/SUM(F$10:F$11)","v":0},{"$f":"IF(INDEX(PC_MAPPING,RIGHT($C197,1),MATCH($E$2,'Data by Building Type'!$D$22:$F$22,0))=\"Yes\",1,0)*\n(G$10*OFFSET('Efficiency Distributions'!$D$10,MATCH($C197,'Efficiency Distributions'!$C$9:$C$87,0)+RIGHT($E203),0)\n+G$11*OFFSET('Efficiency Distributions'!$E$10,MATCH($C197,'Efficiency Distributions'!$C$9:$C$87,0)+RIGHT($E203),0))\n/SUM(G$10:G$11)","v":0},{"$f":"IF(INDEX(PC_MAPPING,RIGHT($C197,1),MATCH($E$2,'Data by Building Type'!$D$22:$F$22,0))=\"Yes\",1,0)*\n(H$10*OFFSET('Efficiency Distributions'!$D$10,MATCH($C197,'Efficiency Distributions'!$C$9:$C$87,0)+RIGHT($E203),0)\n+H$11*OFFSET('Efficiency Distributions'!$E$10,MATCH($C197,'Efficiency Distributions'!$C$9:$C$87,0)+RIGHT($E203),0))\n/SUM(H$10:H$11)","v":0},{"$f":"IF(INDEX(PC_MAPPING,RIGHT($C197,1),MATCH($E$2,'Data by Building Type'!$D$22:$F$22,0))=\"Yes\",1,0)*\n(I$10*OFFSET('Efficiency Distributions'!$D$10,MATCH($C197,'Efficiency Distributions'!$C$9:$C$87,0)+RIGHT($E203),0)\n+I$11*OFFSET('Efficiency Distributions'!$E$10,MATCH($C197,'Efficiency Distributions'!$C$9:$C$87,0)+RIGHT($E203),0))\n/SUM(I$10:I$11)","v":0},{"$f":"IF(INDEX(PC_MAPPING,RIGHT($C197,1),MATCH($E$2,'Data by Building Type'!$D$22:$F$22,0))=\"Yes\",1,0)*\n(J$10*OFFSET('Efficiency Distributions'!$D$10,MATCH($C197,'Efficiency Distributions'!$C$9:$C$87,0)+RIGHT($E203),0)\n+J$11*OFFSET('Efficiency Distributions'!$E$10,MATCH($C197,'Efficiency Distributions'!$C$9:$C$87,0)+RIGHT($E203),0))\n/SUM(J$10:J$11)","v":0},{"$f":"IF(INDEX(PC_MAPPING,RIGHT($C197,1),MATCH($E$2,'Data by Building Type'!$D$22:$F$22,0))=\"Yes\",1,0)*\n(K$10*OFFSET('Efficiency Distributions'!$D$10,MATCH($C197,'Efficiency Distributions'!$C$9:$C$87,0)+RIGHT($E203),0)\n+K$11*OFFSET('Efficiency Distributions'!$E$10,MATCH($C197,'Efficiency Distributions'!$C$9:$C$87,0)+RIGHT($E203),0))\n/SUM(K$10:K$11)","v":0},{"$f":"IF(INDEX(PC_MAPPING,RIGHT($C197,1),MATCH($E$2,'Data by Building Type'!$D$22:$F$22,0))=\"Yes\",1,0)*\n(L$10*OFFSET('Efficiency Distributions'!$D$10,MATCH($C197,'Efficiency Distributions'!$C$9:$C$87,0)+RIGHT($E203),0)\n+L$11*OFFSET('Efficiency Distributions'!$E$10,MATCH($C197,'Efficiency Distributions'!$C$9:$C$87,0)+RIGHT($E203),0))\n/SUM(L$10:L$11)","v":0},{"$f":"IF(INDEX(PC_MAPPING,RIGHT($C197,1),MATCH($E$2,'Data by Building Type'!$D$22:$F$22,0))=\"Yes\",1,0)*\n(M$10*OFFSET('Efficiency Distributions'!$D$10,MATCH($C197,'Efficiency Distributions'!$C$9:$C$87,0)+RIGHT($E203),0)\n+M$11*OFFSET('Efficiency Distributions'!$E$10,MATCH($C197,'Efficiency Distributions'!$C$9:$C$87,0)+RIGHT($E203),0))\n/SUM(M$10:M$11)","v":0},{"$f":"IF(INDEX(PC_MAPPING,RIGHT($C197,1),MATCH($E$2,'Data by Building Type'!$D$22:$F$22,0))=\"Yes\",1,0)*\n(N$10*OFFSET('Efficiency Distributions'!$D$10,MATCH($C197,'Efficiency Distributions'!$C$9:$C$87,0)+RIGHT($E203),0)\n+N$11*OFFSET('Efficiency Distributions'!$E$10,MATCH($C197,'Efficiency Distributions'!$C$9:$C$87,0)+RIGHT($E203),0))\n/SUM(N$10:N$11)","v":0},{"$f":"IF(INDEX(PC_MAPPING,RIGHT($C197,1),MATCH($E$2,'Data by Building Type'!$D$22:$F$22,0))=\"Yes\",1,0)*\n(O$10*OFFSET('Efficiency Distributions'!$D$10,MATCH($C197,'Efficiency Distributions'!$C$9:$C$87,0)+RIGHT($E203),0)\n+O$11*OFFSET('Efficiency Distributions'!$E$10,MATCH($C197,'Efficiency Distributions'!$C$9:$C$87,0)+RIGHT($E203),0))\n/SUM(O$10:O$11)","v":0},{"$f":"IF(INDEX(PC_MAPPING,RIGHT($C197,1),MATCH($E$2,'Data by Building Type'!$D$22:$F$22,0))=\"Yes\",1,0)*\n(P$10*OFFSET('Efficiency Distributions'!$D$10,MATCH($C197,'Efficiency Distributions'!$C$9:$C$87,0)+RIGHT($E203),0)\n+P$11*OFFSET('Efficiency Distributions'!$E$10,MATCH($C197,'Efficiency Distributions'!$C$9:$C$87,0)+RIGHT($E203),0))\n/SUM(P$10:P$11)","v":0},{"$f":"IF(INDEX(PC_MAPPING,RIGHT($C197,1),MATCH($E$2,'Data by Building Type'!$D$22:$F$22,0))=\"Yes\",1,0)*\n(Q$10*OFFSET('Efficiency Distributions'!$D$10,MATCH($C197,'Efficiency Distributions'!$C$9:$C$87,0)+RIGHT($E203),0)\n+Q$11*OFFSET('Efficiency Distributions'!$E$10,MATCH($C197,'Efficiency Distributions'!$C$9:$C$87,0)+RIGHT($E203),0))\n/SUM(Q$10:Q$11)","v":0},{"$f":"IF(INDEX(PC_MAPPING,RIGHT($C197,1),MATCH($E$2,'Data by Building Type'!$D$22:$F$22,0))=\"Yes\",1,0)*\n(R$10*OFFSET('Efficiency Distributions'!$D$10,MATCH($C197,'Efficiency Distributions'!$C$9:$C$87,0)+RIGHT($E203),0)\n+R$11*OFFSET('Efficiency Distributions'!$E$10,MATCH($C197,'Efficiency Distributions'!$C$9:$C$87,0)+RIGHT($E203),0))\n/SUM(R$10:R$11)","v":0},{"$f":"IF(INDEX(PC_MAPPING,RIGHT($C197,1),MATCH($E$2,'Data by Building Type'!$D$22:$F$22,0))=\"Yes\",1,0)*\n(S$10*OFFSET('Efficiency Distributions'!$D$10,MATCH($C197,'Efficiency Distributions'!$C$9:$C$87,0)+RIGHT($E203),0)\n+S$11*OFFSET('Efficiency Distributions'!$E$10,MATCH($C197,'Efficiency Distributions'!$C$9:$C$87,0)+RIGHT($E203),0))\n/SUM(S$10:S$11)","v":0},{"$f":"IF(INDEX(PC_MAPPING,RIGHT($C197,1),MATCH($E$2,'Data by Building Type'!$D$22:$F$22,0))=\"Yes\",1,0)*\n(T$10*OFFSET('Efficiency Distributions'!$D$10,MATCH($C197,'Efficiency Distributions'!$C$9:$C$87,0)+RIGHT($E203),0)\n+T$11*OFFSET('Efficiency Distributions'!$E$10,MATCH($C197,'Efficiency Distributions'!$C$9:$C$87,0)+RIGHT($E203),0))\n/SUM(T$10:T$11)","v":0},{"$f":"IF(INDEX(PC_MAPPING,RIGHT($C197,1),MATCH($E$2,'Data by Building Type'!$D$22:$F$22,0))=\"Yes\",1,0)*\n(U$10*OFFSET('Efficiency Distributions'!$D$10,MATCH($C197,'Efficiency Distributions'!$C$9:$C$87,0)+RIGHT($E203),0)\n+U$11*OFFSET('Efficiency Distributions'!$E$10,MATCH($C197,'Efficiency Distributions'!$C$9:$C$87,0)+RIGHT($E203),0))\n/SUM(U$10:U$11)","v":0},{"$f":"IF(INDEX(PC_MAPPING,RIGHT($C197,1),MATCH($E$2,'Data by Building Type'!$D$22:$F$22,0))=\"Yes\",1,0)*\n(V$10*OFFSET('Efficiency Distributions'!$D$10,MATCH($C197,'Efficiency Distributions'!$C$9:$C$87,0)+RIGHT($E203),0)\n+V$11*OFFSET('Efficiency Distributions'!$E$10,MATCH($C197,'Efficiency Distributions'!$C$9:$C$87,0)+RIGHT($E203),0))\n/SUM(V$10:V$11)","v":0},{"$f":"IF(INDEX(PC_MAPPING,RIGHT($C197,1),MATCH($E$2,'Data by Building Type'!$D$22:$F$22,0))=\"Yes\",1,0)*\n(W$10*OFFSET('Efficiency Distributions'!$D$10,MATCH($C197,'Efficiency Distributions'!$C$9:$C$87,0)+RIGHT($E203),0)\n+W$11*OFFSET('Efficiency Distributions'!$E$10,MATCH($C197,'Efficiency Distributions'!$C$9:$C$87,0)+RIGHT($E203),0))\n/SUM(W$10:W$11)","v":0},{"$f":"IF(INDEX(PC_MAPPING,RIGHT($C197,1),MATCH($E$2,'Data by Building Type'!$D$22:$F$22,0))=\"Yes\",1,0)*\n(X$10*OFFSET('Efficiency Distributions'!$D$10,MATCH($C197,'Efficiency Distributions'!$C$9:$C$87,0)+RIGHT($E203),0)\n+X$11*OFFSET('Efficiency Distributions'!$E$10,MATCH($C197,'Efficiency Distributions'!$C$9:$C$87,0)+RIGHT($E203),0))\n/SUM(X$10:X$11)","v":0},{"$f":"IF(INDEX(PC_MAPPING,RIGHT($C197,1),MATCH($E$2,'Data by Building Type'!$D$22:$F$22,0))=\"Yes\",1,0)*\n(Y$10*OFFSET('Efficiency Distributions'!$D$10,MATCH($C197,'Efficiency Distributions'!$C$9:$C$87,0)+RIGHT($E203),0)\n+Y$11*OFFSET('Efficiency Distributions'!$E$10,MATCH($C197,'Efficiency Distributions'!$C$9:$C$87,0)+RIGHT($E203),0))\n/SUM(Y$10:Y$11)","v":0},{"$f":"IF(INDEX(PC_MAPPING,RIGHT($C197,1),MATCH($E$2,'Data by Building Type'!$D$22:$F$22,0))=\"Yes\",1,0)*\n(Z$10*OFFSET('Efficiency Distributions'!$D$10,MATCH($C197,'Efficiency Distributions'!$C$9:$C$87,0)+RIGHT($E203),0)\n+Z$11*OFFSET('Efficiency Distributions'!$E$10,MATCH($C197,'Efficiency Distributions'!$C$9:$C$87,0)+RIGHT($E203),0))\n/SUM(Z$10:Z$11)","v":0},{"$f":"IF(INDEX(PC_MAPPING,RIGHT($C197,1),MATCH($E$2,'Data by Building Type'!$D$22:$F$22,0))=\"Yes\",1,0)*\n(AA$10*OFFSET('Efficiency Distributions'!$D$10,MATCH($C197,'Efficiency Distributions'!$C$9:$C$87,0)+RIGHT($E203),0)\n+AA$11*OFFSET('Efficiency Distributions'!$E$10,MATCH($C197,'Efficiency Distributions'!$C$9:$C$87,0)+RIGHT($E203),0))\n/SUM(AA$10:AA$11)","v":0},{"$f":"IF(INDEX(PC_MAPPING,RIGHT($C197,1),MATCH($E$2,'Data by Building Type'!$D$22:$F$22,0))=\"Yes\",1,0)*\n(AB$10*OFFSET('Efficiency Distributions'!$D$10,MATCH($C197,'Efficiency Distributions'!$C$9:$C$87,0)+RIGHT($E203),0)\n+AB$11*OFFSET('Efficiency Distributions'!$E$10,MATCH($C197,'Efficiency Distributions'!$C$9:$C$87,0)+RIGHT($E203),0))\n/SUM(AB$10:AB$11)","v":0},{"$f":"IF(INDEX(PC_MAPPING,RIGHT($C197,1),MATCH($E$2,'Data by Building Type'!$D$22:$F$22,0))=\"Yes\",1,0)*\n(AC$10*OFFSET('Efficiency Distributions'!$D$10,MATCH($C197,'Efficiency Distributions'!$C$9:$C$87,0)+RIGHT($E203),0)\n+AC$11*OFFSET('Efficiency Distributions'!$E$10,MATCH($C197,'Efficiency Distributions'!$C$9:$C$87,0)+RIGHT($E203),0))\n/SUM(AC$10:AC$11)","v":0},{"$f":"IF(INDEX(PC_MAPPING,RIGHT($C197,1),MATCH($E$2,'Data by Building Type'!$D$22:$F$22,0))=\"Yes\",1,0)*\n(AD$10*OFFSET('Efficiency Distributions'!$D$10,MATCH($C197,'Efficiency Distributions'!$C$9:$C$87,0)+RIGHT($E203),0)\n+AD$11*OFFSET('Efficiency Distributions'!$E$10,MATCH($C197,'Efficiency Distributions'!$C$9:$C$87,0)+RIGHT($E203),0))\n/SUM(AD$10:AD$11)","v":0},{"$f":"IF(INDEX(PC_MAPPING,RIGHT($C197,1),MATCH($E$2,'Data by Building Type'!$D$22:$F$22,0))=\"Yes\",1,0)*\n(AE$10*OFFSET('Efficiency Distributions'!$D$10,MATCH($C197,'Efficiency Distributions'!$C$9:$C$87,0)+RIGHT($E203),0)\n+AE$11*OFFSET('Efficiency Distributions'!$E$10,MATCH($C197,'Efficiency Distributions'!$C$9:$C$87,0)+RIGHT($E203),0))\n/SUM(AE$10:AE$11)","v":0},{"$f":"IF(INDEX(PC_MAPPING,RIGHT($C197,1),MATCH($E$2,'Data by Building Type'!$D$22:$F$22,0))=\"Yes\",1,0)*\n(AF$10*OFFSET('Efficiency Distributions'!$D$10,MATCH($C197,'Efficiency Distributions'!$C$9:$C$87,0)+RIGHT($E203),0)\n+AF$11*OFFSET('Efficiency Distributions'!$E$10,MATCH($C197,'Efficiency Distributions'!$C$9:$C$87,0)+RIGHT($E203),0))\n/SUM(AF$10:AF$11)","v":0},{"$f":"IF(INDEX(PC_MAPPING,RIGHT($C197,1),MATCH($E$2,'Data by Building Type'!$D$22:$F$22,0))=\"Yes\",1,0)*\n(AG$10*OFFSET('Efficiency Distributions'!$D$10,MATCH($C197,'Efficiency Distributions'!$C$9:$C$87,0)+RIGHT($E203),0)\n+AG$11*OFFSET('Efficiency Distributions'!$E$10,MATCH($C197,'Efficiency Distributions'!$C$9:$C$87,0)+RIGHT($E203),0))\n/SUM(AG$10:AG$11)","v":0},{"$f":"IF(INDEX(PC_MAPPING,RIGHT($C197,1),MATCH($E$2,'Data by Building Type'!$D$22:$F$22,0))=\"Yes\",1,0)*\n(AH$10*OFFSET('Efficiency Distributions'!$D$10,MATCH($C197,'Efficiency Distributions'!$C$9:$C$87,0)+RIGHT($E203),0)\n+AH$11*OFFSET('Efficiency Distributions'!$E$10,MATCH($C197,'Efficiency Distributions'!$C$9:$C$87,0)+RIGHT($E203),0))\n/SUM(AH$10:AH$11)","v":0},{"$f":"IF(INDEX(PC_MAPPING,RIGHT($C197,1),MATCH($E$2,'Data by Building Type'!$D$22:$F$22,0))=\"Yes\",1,0)*\n(AI$10*OFFSET('Efficiency Distributions'!$D$10,MATCH($C197,'Efficiency Distributions'!$C$9:$C$87,0)+RIGHT($E203),0)\n+AI$11*OFFSET('Efficiency Distributions'!$E$10,MATCH($C197,'Efficiency Distributions'!$C$9:$C$87,0)+RIGHT($E203),0))\n/SUM(AI$10:AI$11)","v":0},{"$f":"IF(INDEX(PC_MAPPING,RIGHT($C197,1),MATCH($E$2,'Data by Building Type'!$D$22:$F$22,0))=\"Yes\",1,0)*\n(AJ$10*OFFSET('Efficiency Distributions'!$D$10,MATCH($C197,'Efficiency Distributions'!$C$9:$C$87,0)+RIGHT($E203),0)\n+AJ$11*OFFSET('Efficiency Distributions'!$E$10,MATCH($C197,'Efficiency Distributions'!$C$9:$C$87,0)+RIGHT($E203),0))\n/SUM(AJ$10:AJ$11)","v":0},{"$f":"IF(INDEX(PC_MAPPING,RIGHT($C197,1),MATCH($E$2,'Data by Building Type'!$D$22:$F$22,0))=\"Yes\",1,0)*\n(AK$10*OFFSET('Efficiency Distributions'!$D$10,MATCH($C197,'Efficiency Distributions'!$C$9:$C$87,0)+RIGHT($E203),0)\n+AK$11*OFFSET('Efficiency Distributions'!$E$10,MATCH($C197,'Efficiency Distributions'!$C$9:$C$87,0)+RIGHT($E203),0))\n/SUM(AK$10:AK$11)","v":0},{"$f":"IF(INDEX(PC_MAPPING,RIGHT($C197,1),MATCH($E$2,'Data by Building Type'!$D$22:$F$22,0))=\"Yes\",1,0)*\n(AL$10*OFFSET('Efficiency Distributions'!$D$10,MATCH($C197,'Efficiency Distributions'!$C$9:$C$87,0)+RIGHT($E203),0)\n+AL$11*OFFSET('Efficiency Distributions'!$E$10,MATCH($C197,'Efficiency Distributions'!$C$9:$C$87,0)+RIGHT($E203),0))\n/SUM(AL$10:AL$11)","v":0},{"$f":"IF(INDEX(PC_MAPPING,RIGHT($C197,1),MATCH($E$2,'Data by Building Type'!$D$22:$F$22,0))=\"Yes\",1,0)*\n(AM$10*OFFSET('Efficiency Distributions'!$D$10,MATCH($C197,'Efficiency Distributions'!$C$9:$C$87,0)+RIGHT($E203),0)\n+AM$11*OFFSET('Efficiency Distributions'!$E$10,MATCH($C197,'Efficiency Distributions'!$C$9:$C$87,0)+RIGHT($E203),0))\n/SUM(AM$10:AM$11)","v":0},{"$f":"IF(INDEX(PC_MAPPING,RIGHT($C197,1),MATCH($E$2,'Data by Building Type'!$D$22:$F$22,0))=\"Yes\",1,0)*\n(AN$10*OFFSET('Efficiency Distributions'!$D$10,MATCH($C197,'Efficiency Distributions'!$C$9:$C$87,0)+RIGHT($E203),0)\n+AN$11*OFFSET('Efficiency Distributions'!$E$10,MATCH($C197,'Efficiency Distributions'!$C$9:$C$87,0)+RIGHT($E203),0))\n/SUM(AN$10:AN$11)","v":0},{"$f":"IF(INDEX(PC_MAPPING,RIGHT($C197,1),MATCH($E$2,'Data by Building Type'!$D$22:$F$22,0))=\"Yes\",1,0)*\n(AO$10*OFFSET('Efficiency Distributions'!$D$10,MATCH($C197,'Efficiency Distributions'!$C$9:$C$87,0)+RIGHT($E203),0)\n+AO$11*OFFSET('Efficiency Distributions'!$E$10,MATCH($C197,'Efficiency Distributions'!$C$9:$C$87,0)+RIGHT($E203),0))\n/SUM(AO$10:AO$11)","v":0},{"$f":"IF(INDEX(PC_MAPPING,RIGHT($C197,1),MATCH($E$2,'Data by Building Type'!$D$22:$F$22,0))=\"Yes\",1,0)*\n(AP$10*OFFSET('Efficiency Distributions'!$D$10,MATCH($C197,'Efficiency Distributions'!$C$9:$C$87,0)+RIGHT($E203),0)\n+AP$11*OFFSET('Efficiency Distributions'!$E$10,MATCH($C197,'Efficiency Distributions'!$C$9:$C$87,0)+RIGHT($E203),0))\n/SUM(AP$10:AP$11)","v":0},{"$f":"IF(INDEX(PC_MAPPING,RIGHT($C197,1),MATCH($E$2,'Data by Building Type'!$D$22:$F$22,0))=\"Yes\",1,0)*\n(AQ$10*OFFSET('Efficiency Distributions'!$D$10,MATCH($C197,'Efficiency Distributions'!$C$9:$C$87,0)+RIGHT($E203),0)\n+AQ$11*OFFSET('Efficiency Distributions'!$E$10,MATCH($C197,'Efficiency Distributions'!$C$9:$C$87,0)+RIGHT($E203),0))\n/SUM(AQ$10:AQ$11)","v":0},{"$f":"IF(INDEX(PC_MAPPING,RIGHT($C197,1),MATCH($E$2,'Data by Building Type'!$D$22:$F$22,0))=\"Yes\",1,0)*\n(AR$10*OFFSET('Efficiency Distributions'!$D$10,MATCH($C197,'Efficiency Distributions'!$C$9:$C$87,0)+RIGHT($E203),0)\n+AR$11*OFFSET('Efficiency Distributions'!$E$10,MATCH($C197,'Efficiency Distributions'!$C$9:$C$87,0)+RIGHT($E203),0))\n/SUM(AR$10:AR$11)","v":0},{"$f":"IF(INDEX(PC_MAPPING,RIGHT($C197,1),MATCH($E$2,'Data by Building Type'!$D$22:$F$22,0))=\"Yes\",1,0)*\n(AS$10*OFFSET('Efficiency Distributions'!$D$10,MATCH($C197,'Efficiency Distributions'!$C$9:$C$87,0)+RIGHT($E203),0)\n+AS$11*OFFSET('Efficiency Distributions'!$E$10,MATCH($C197,'Efficiency Distributions'!$C$9:$C$87,0)+RIGHT($E203),0))\n/SUM(AS$10:AS$11)","v":0},{"$f":"IF(INDEX(PC_MAPPING,RIGHT($C197,1),MATCH($E$2,'Data by Building Type'!$D$22:$F$22,0))=\"Yes\",1,0)*\n(AT$10*OFFSET('Efficiency Distributions'!$D$10,MATCH($C197,'Efficiency Distributions'!$C$9:$C$87,0)+RIGHT($E203),0)\n+AT$11*OFFSET('Efficiency Distributions'!$E$10,MATCH($C197,'Efficiency Distributions'!$C$9:$C$87,0)+RIGHT($E203),0))\n/SUM(AT$10:AT$11)","v":0},{"$f":"IF(INDEX(PC_MAPPING,RIGHT($C197,1),MATCH($E$2,'Data by Building Type'!$D$22:$F$22,0))=\"Yes\",1,0)*\n(AU$10*OFFSET('Efficiency Distributions'!$D$10,MATCH($C197,'Efficiency Distributions'!$C$9:$C$87,0)+RIGHT($E203),0)\n+AU$11*OFFSET('Efficiency Distributions'!$E$10,MATCH($C197,'Efficiency Distributions'!$C$9:$C$87,0)+RIGHT($E203),0))\n/SUM(AU$10:AU$11)","v":0},{"$f":"IF(INDEX(PC_MAPPING,RIGHT($C197,1),MATCH($E$2,'Data by Building Type'!$D$22:$F$22,0))=\"Yes\",1,0)*\n(AV$10*OFFSET('Efficiency Distributions'!$D$10,MATCH($C197,'Efficiency Distributions'!$C$9:$C$87,0)+RIGHT($E203),0)\n+AV$11*OFFSET('Efficiency Distributions'!$E$10,MATCH($C197,'Efficiency Distributions'!$C$9:$C$87,0)+RIGHT($E203),0))\n/SUM(AV$10:AV$11)","v":0},{"$f":"IF(INDEX(PC_MAPPING,RIGHT($C197,1),MATCH($E$2,'Data by Building Type'!$D$22:$F$22,0))=\"Yes\",1,0)*\n(AW$10*OFFSET('Efficiency Distributions'!$D$10,MATCH($C197,'Efficiency Distributions'!$C$9:$C$87,0)+RIGHT($E203),0)\n+AW$11*OFFSET('Efficiency Distributions'!$E$10,MATCH($C197,'Efficiency Distributions'!$C$9:$C$87,0)+RIGHT($E203),0))\n/SUM(AW$10:AW$11)","v":0},{"$f":"IF(INDEX(PC_MAPPING,RIGHT($C197,1),MATCH($E$2,'Data by Building Type'!$D$22:$F$22,0))=\"Yes\",1,0)*\n(AX$10*OFFSET('Efficiency Distributions'!$D$10,MATCH($C197,'Efficiency Distributions'!$C$9:$C$87,0)+RIGHT($E203),0)\n+AX$11*OFFSET('Efficiency Distributions'!$E$10,MATCH($C197,'Efficiency Distributions'!$C$9:$C$87,0)+RIGHT($E203),0))\n/SUM(AX$10:AX$11)","v":0},{"$f":"IF(INDEX(PC_MAPPING,RIGHT($C197,1),MATCH($E$2,'Data by Building Type'!$D$22:$F$22,0))=\"Yes\",1,0)*\n(AY$10*OFFSET('Efficiency Distributions'!$D$10,MATCH($C197,'Efficiency Distributions'!$C$9:$C$87,0)+RIGHT($E203),0)\n+AY$11*OFFSET('Efficiency Distributions'!$E$10,MATCH($C197,'Efficiency Distributions'!$C$9:$C$87,0)+RIGHT($E203),0))\n/SUM(AY$10:AY$11)","v":0},{"$f":"IF(INDEX(PC_MAPPING,RIGHT($C197,1),MATCH($E$2,'Data by Building Type'!$D$22:$F$22,0))=\"Yes\",1,0)*\n(AZ$10*OFFSET('Efficiency Distributions'!$D$10,MATCH($C197,'Efficiency Distributions'!$C$9:$C$87,0)+RIGHT($E203),0)\n+AZ$11*OFFSET('Efficiency Distributions'!$E$10,MATCH($C197,'Efficiency Distributions'!$C$9:$C$87,0)+RIGHT($E203),0))\n/SUM(AZ$10:AZ$11)","v":0},{"$f":"IF(INDEX(PC_MAPPING,RIGHT($C197,1),MATCH($E$2,'Data by Building Type'!$D$22:$F$22,0))=\"Yes\",1,0)*\n(BA$10*OFFSET('Efficiency Distributions'!$D$10,MATCH($C197,'Efficiency Distributions'!$C$9:$C$87,0)+RIGHT($E203),0)\n+BA$11*OFFSET('Efficiency Distributions'!$E$10,MATCH($C197,'Efficiency Distributions'!$C$9:$C$87,0)+RIGHT($E203),0))\n/SUM(BA$10:BA$11)","v":0},{"$f":"IF(INDEX(PC_MAPPING,RIGHT($C197,1),MATCH($E$2,'Data by Building Type'!$D$22:$F$22,0))=\"Yes\",1,0)*\n(BB$10*OFFSET('Efficiency Distributions'!$D$10,MATCH($C197,'Efficiency Distributions'!$C$9:$C$87,0)+RIGHT($E203),0)\n+BB$11*OFFSET('Efficiency Distributions'!$E$10,MATCH($C197,'Efficiency Distributions'!$C$9:$C$87,0)+RIGHT($E203),0))\n/SUM(BB$10:BB$11)","v":0},{"$f":"IF(INDEX(PC_MAPPING,RIGHT($C197,1),MATCH($E$2,'Data by Building Type'!$D$22:$F$22,0))=\"Yes\",1,0)*\n(BC$10*OFFSET('Efficiency Distributions'!$D$10,MATCH($C197,'Efficiency Distributions'!$C$9:$C$87,0)+RIGHT($E203),0)\n+BC$11*OFFSET('Efficiency Distributions'!$E$10,MATCH($C197,'Efficiency Distributions'!$C$9:$C$87,0)+RIGHT($E203),0))\n/SUM(BC$10:BC$11)","v":0},{"$f":"IF(INDEX(PC_MAPPING,RIGHT($C197,1),MATCH($E$2,'Data by Building Type'!$D$22:$F$22,0))=\"Yes\",1,0)*\n(BD$10*OFFSET('Efficiency Distributions'!$D$10,MATCH($C197,'Efficiency Distributions'!$C$9:$C$87,0)+RIGHT($E203),0)\n+BD$11*OFFSET('Efficiency Distributions'!$E$10,MATCH($C197,'Efficiency Distributions'!$C$9:$C$87,0)+RIGHT($E203),0))\n/SUM(BD$10:BD$11)","v":0},{"$f":"IF(INDEX(PC_MAPPING,RIGHT($C197,1),MATCH($E$2,'Data by Building Type'!$D$22:$F$22,0))=\"Yes\",1,0)*\n(BE$10*OFFSET('Efficiency Distributions'!$D$10,MATCH($C197,'Efficiency Distributions'!$C$9:$C$87,0)+RIGHT($E203),0)\n+BE$11*OFFSET('Efficiency Distributions'!$E$10,MATCH($C197,'Efficiency Distributions'!$C$9:$C$87,0)+RIGHT($E203),0))\n/SUM(BE$10:BE$11)","v":0},{"$f":"IF(INDEX(PC_MAPPING,RIGHT($C197,1),MATCH($E$2,'Data by Building Type'!$D$22:$F$22,0))=\"Yes\",1,0)*\n(BF$10*OFFSET('Efficiency Distributions'!$D$10,MATCH($C197,'Efficiency Distributions'!$C$9:$C$87,0)+RIGHT($E203),0)\n+BF$11*OFFSET('Efficiency Distributions'!$E$10,MATCH($C197,'Efficiency Distributions'!$C$9:$C$87,0)+RIGHT($E203),0))\n/SUM(BF$10:BF$11)","v":0},{"$f":"IF(INDEX(PC_MAPPING,RIGHT($C197,1),MATCH($E$2,'Data by Building Type'!$D$22:$F$22,0))=\"Yes\",1,0)*\n(BG$10*OFFSET('Efficiency Distributions'!$D$10,MATCH($C197,'Efficiency Distributions'!$C$9:$C$87,0)+RIGHT($E203),0)\n+BG$11*OFFSET('Efficiency Distributions'!$E$10,MATCH($C197,'Efficiency Distributions'!$C$9:$C$87,0)+RIGHT($E203),0))\n/SUM(BG$10:BG$11)","v":0}]
[null,null,null,null,"EL3",{"$f":"IF(INDEX(PC_MAPPING,RIGHT($C197,1),MATCH($E$2,'Data by Building Type'!$D$22:$F$22,0))=\"Yes\",1,0)*\n(F$10*OFFSET('Efficiency Distributions'!$D$10,MATCH($C197,'Efficiency Distributions'!$C$9:$C$87,0)+RIGHT($E204),0)\n+F$11*OFFSET('Efficiency Distributions'!$E$10,MATCH($C197,'Efficiency Distributions'!$C$9:$C$87,0)+RIGHT($E204),0))\n/SUM(F$10:F$11)","v":0},{"$f":"IF(INDEX(PC_MAPPING,RIGHT($C197,1),MATCH($E$2,'Data by Building Type'!$D$22:$F$22,0))=\"Yes\",1,0)*\n(G$10*OFFSET('Efficiency Distributions'!$D$10,MATCH($C197,'Efficiency Distributions'!$C$9:$C$87,0)+RIGHT($E204),0)\n+G$11*OFFSET('Efficiency Distributions'!$E$10,MATCH($C197,'Efficiency Distributions'!$C$9:$C$87,0)+RIGHT($E204),0))\n/SUM(G$10:G$11)","v":0},{"$f":"IF(INDEX(PC_MAPPING,RIGHT($C197,1),MATCH($E$2,'Data by Building Type'!$D$22:$F$22,0))=\"Yes\",1,0)*\n(H$10*OFFSET('Efficiency Distributions'!$D$10,MATCH($C197,'Efficiency Distributions'!$C$9:$C$87,0)+RIGHT($E204),0)\n+H$11*OFFSET('Efficiency Distributions'!$E$10,MATCH($C197,'Efficiency Distributions'!$C$9:$C$87,0)+RIGHT($E204),0))\n/SUM(H$10:H$11)","v":0},{"$f":"IF(INDEX(PC_MAPPING,RIGHT($C197,1),MATCH($E$2,'Data by Building Type'!$D$22:$F$22,0))=\"Yes\",1,0)*\n(I$10*OFFSET('Efficiency Distributions'!$D$10,MATCH($C197,'Efficiency Distributions'!$C$9:$C$87,0)+RIGHT($E204),0)\n+I$11*OFFSET('Efficiency Distributions'!$E$10,MATCH($C197,'Efficiency Distributions'!$C$9:$C$87,0)+RIGHT($E204),0))\n/SUM(I$10:I$11)","v":0},{"$f":"IF(INDEX(PC_MAPPING,RIGHT($C197,1),MATCH($E$2,'Data by Building Type'!$D$22:$F$22,0))=\"Yes\",1,0)*\n(J$10*OFFSET('Efficiency Distributions'!$D$10,MATCH($C197,'Efficiency Distributions'!$C$9:$C$87,0)+RIGHT($E204),0)\n+J$11*OFFSET('Efficiency Distributions'!$E$10,MATCH($C197,'Efficiency Distributions'!$C$9:$C$87,0)+RIGHT($E204),0))\n/SUM(J$10:J$11)","v":0},{"$f":"IF(INDEX(PC_MAPPING,RIGHT($C197,1),MATCH($E$2,'Data by Building Type'!$D$22:$F$22,0))=\"Yes\",1,0)*\n(K$10*OFFSET('Efficiency Distributions'!$D$10,MATCH($C197,'Efficiency Distributions'!$C$9:$C$87,0)+RIGHT($E204),0)\n+K$11*OFFSET('Efficiency Distributions'!$E$10,MATCH($C197,'Efficiency Distributions'!$C$9:$C$87,0)+RIGHT($E204),0))\n/SUM(K$10:K$11)","v":0},{"$f":"IF(INDEX(PC_MAPPING,RIGHT($C197,1),MATCH($E$2,'Data by Building Type'!$D$22:$F$22,0))=\"Yes\",1,0)*\n(L$10*OFFSET('Efficiency Distributions'!$D$10,MATCH($C197,'Efficiency Distributions'!$C$9:$C$87,0)+RIGHT($E204),0)\n+L$11*OFFSET('Efficiency Distributions'!$E$10,MATCH($C197,'Efficiency Distributions'!$C$9:$C$87,0)+RIGHT($E204),0))\n/SUM(L$10:L$11)","v":0},{"$f":"IF(INDEX(PC_MAPPING,RIGHT($C197,1),MATCH($E$2,'Data by Building Type'!$D$22:$F$22,0))=\"Yes\",1,0)*\n(M$10*OFFSET('Efficiency Distributions'!$D$10,MATCH($C197,'Efficiency Distributions'!$C$9:$C$87,0)+RIGHT($E204),0)\n+M$11*OFFSET('Efficiency Distributions'!$E$10,MATCH($C197,'Efficiency Distributions'!$C$9:$C$87,0)+RIGHT($E204),0))\n/SUM(M$10:M$11)","v":0},{"$f":"IF(INDEX(PC_MAPPING,RIGHT($C197,1),MATCH($E$2,'Data by Building Type'!$D$22:$F$22,0))=\"Yes\",1,0)*\n(N$10*OFFSET('Efficiency Distributions'!$D$10,MATCH($C197,'Efficiency Distributions'!$C$9:$C$87,0)+RIGHT($E204),0)\n+N$11*OFFSET('Efficiency Distributions'!$E$10,MATCH($C197,'Efficiency Distributions'!$C$9:$C$87,0)+RIGHT($E204),0))\n/SUM(N$10:N$11)","v":0},{"$f":"IF(INDEX(PC_MAPPING,RIGHT($C197,1),MATCH($E$2,'Data by Building Type'!$D$22:$F$22,0))=\"Yes\",1,0)*\n(O$10*OFFSET('Efficiency Distributions'!$D$10,MATCH($C197,'Efficiency Distributions'!$C$9:$C$87,0)+RIGHT($E204),0)\n+O$11*OFFSET('Efficiency Distributions'!$E$10,MATCH($C197,'Efficiency Distributions'!$C$9:$C$87,0)+RIGHT($E204),0))\n/SUM(O$10:O$11)","v":0},{"$f":"IF(INDEX(PC_MAPPING,RIGHT($C197,1),MATCH($E$2,'Data by Building Type'!$D$22:$F$22,0))=\"Yes\",1,0)*\n(P$10*OFFSET('Efficiency Distributions'!$D$10,MATCH($C197,'Efficiency Distributions'!$C$9:$C$87,0)+RIGHT($E204),0)\n+P$11*OFFSET('Efficiency Distributions'!$E$10,MATCH($C197,'Efficiency Distributions'!$C$9:$C$87,0)+RIGHT($E204),0))\n/SUM(P$10:P$11)","v":0},{"$f":"IF(INDEX(PC_MAPPING,RIGHT($C197,1),MATCH($E$2,'Data by Building Type'!$D$22:$F$22,0))=\"Yes\",1,0)*\n(Q$10*OFFSET('Efficiency Distributions'!$D$10,MATCH($C197,'Efficiency Distributions'!$C$9:$C$87,0)+RIGHT($E204),0)\n+Q$11*OFFSET('Efficiency Distributions'!$E$10,MATCH($C197,'Efficiency Distributions'!$C$9:$C$87,0)+RIGHT($E204),0))\n/SUM(Q$10:Q$11)","v":0},{"$f":"IF(INDEX(PC_MAPPING,RIGHT($C197,1),MATCH($E$2,'Data by Building Type'!$D$22:$F$22,0))=\"Yes\",1,0)*\n(R$10*OFFSET('Efficiency Distributions'!$D$10,MATCH($C197,'Efficiency Distributions'!$C$9:$C$87,0)+RIGHT($E204),0)\n+R$11*OFFSET('Efficiency Distributions'!$E$10,MATCH($C197,'Efficiency Distributions'!$C$9:$C$87,0)+RIGHT($E204),0))\n/SUM(R$10:R$11)","v":0},{"$f":"IF(INDEX(PC_MAPPING,RIGHT($C197,1),MATCH($E$2,'Data by Building Type'!$D$22:$F$22,0))=\"Yes\",1,0)*\n(S$10*OFFSET('Efficiency Distributions'!$D$10,MATCH($C197,'Efficiency Distributions'!$C$9:$C$87,0)+RIGHT($E204),0)\n+S$11*OFFSET('Efficiency Distributions'!$E$10,MATCH($C197,'Efficiency Distributions'!$C$9:$C$87,0)+RIGHT($E204),0))\n/SUM(S$10:S$11)","v":0},{"$f":"IF(INDEX(PC_MAPPING,RIGHT($C197,1),MATCH($E$2,'Data by Building Type'!$D$22:$F$22,0))=\"Yes\",1,0)*\n(T$10*OFFSET('Efficiency Distributions'!$D$10,MATCH($C197,'Efficiency Distributions'!$C$9:$C$87,0)+RIGHT($E204),0)\n+T$11*OFFSET('Efficiency Distributions'!$E$10,MATCH($C197,'Efficiency Distributions'!$C$9:$C$87,0)+RIGHT($E204),0))\n/SUM(T$10:T$11)","v":0},{"$f":"IF(INDEX(PC_MAPPING,RIGHT($C197,1),MATCH($E$2,'Data by Building Type'!$D$22:$F$22,0))=\"Yes\",1,0)*\n(U$10*OFFSET('Efficiency Distributions'!$D$10,MATCH($C197,'Efficiency Distributions'!$C$9:$C$87,0)+RIGHT($E204),0)\n+U$11*OFFSET('Efficiency Distributions'!$E$10,MATCH($C197,'Efficiency Distributions'!$C$9:$C$87,0)+RIGHT($E204),0))\n/SUM(U$10:U$11)","v":0},{"$f":"IF(INDEX(PC_MAPPING,RIGHT($C197,1),MATCH($E$2,'Data by Building Type'!$D$22:$F$22,0))=\"Yes\",1,0)*\n(V$10*OFFSET('Efficiency Distributions'!$D$10,MATCH($C197,'Efficiency Distributions'!$C$9:$C$87,0)+RIGHT($E204),0)\n+V$11*OFFSET('Efficiency Distributions'!$E$10,MATCH($C197,'Efficiency Distributions'!$C$9:$C$87,0)+RIGHT($E204),0))\n/SUM(V$10:V$11)","v":0},{"$f":"IF(INDEX(PC_MAPPING,RIGHT($C197,1),MATCH($E$2,'Data by Building Type'!$D$22:$F$22,0))=\"Yes\",1,0)*\n(W$10*OFFSET('Efficiency Distributions'!$D$10,MATCH($C197,'Efficiency Distributions'!$C$9:$C$87,0)+RIGHT($E204),0)\n+W$11*OFFSET('Efficiency Distributions'!$E$10,MATCH($C197,'Efficiency Distributions'!$C$9:$C$87,0)+RIGHT($E204),0))\n/SUM(W$10:W$11)","v":0},{"$f":"IF(INDEX(PC_MAPPING,RIGHT($C197,1),MATCH($E$2,'Data by Building Type'!$D$22:$F$22,0))=\"Yes\",1,0)*\n(X$10*OFFSET('Efficiency Distributions'!$D$10,MATCH($C197,'Efficiency Distributions'!$C$9:$C$87,0)+RIGHT($E204),0)\n+X$11*OFFSET('Efficiency Distributions'!$E$10,MATCH($C197,'Efficiency Distributions'!$C$9:$C$87,0)+RIGHT($E204),0))\n/SUM(X$10:X$11)","v":0},{"$f":"IF(INDEX(PC_MAPPING,RIGHT($C197,1),MATCH($E$2,'Data by Building Type'!$D$22:$F$22,0))=\"Yes\",1,0)*\n(Y$10*OFFSET('Efficiency Distributions'!$D$10,MATCH($C197,'Efficiency Distributions'!$C$9:$C$87,0)+RIGHT($E204),0)\n+Y$11*OFFSET('Efficiency Distributions'!$E$10,MATCH($C197,'Efficiency Distributions'!$C$9:$C$87,0)+RIGHT($E204),0))\n/SUM(Y$10:Y$11)","v":0},{"$f":"IF(INDEX(PC_MAPPING,RIGHT($C197,1),MATCH($E$2,'Data by Building Type'!$D$22:$F$22,0))=\"Yes\",1,0)*\n(Z$10*OFFSET('Efficiency Distributions'!$D$10,MATCH($C197,'Efficiency Distributions'!$C$9:$C$87,0)+RIGHT($E204),0)\n+Z$11*OFFSET('Efficiency Distributions'!$E$10,MATCH($C197,'Efficiency Distributions'!$C$9:$C$87,0)+RIGHT($E204),0))\n/SUM(Z$10:Z$11)","v":0},{"$f":"IF(INDEX(PC_MAPPING,RIGHT($C197,1),MATCH($E$2,'Data by Building Type'!$D$22:$F$22,0))=\"Yes\",1,0)*\n(AA$10*OFFSET('Efficiency Distributions'!$D$10,MATCH($C197,'Efficiency Distributions'!$C$9:$C$87,0)+RIGHT($E204),0)\n+AA$11*OFFSET('Efficiency Distributions'!$E$10,MATCH($C197,'Efficiency Distributions'!$C$9:$C$87,0)+RIGHT($E204),0))\n/SUM(AA$10:AA$11)","v":0},{"$f":"IF(INDEX(PC_MAPPING,RIGHT($C197,1),MATCH($E$2,'Data by Building Type'!$D$22:$F$22,0))=\"Yes\",1,0)*\n(AB$10*OFFSET('Efficiency Distributions'!$D$10,MATCH($C197,'Efficiency Distributions'!$C$9:$C$87,0)+RIGHT($E204),0)\n+AB$11*OFFSET('Efficiency Distributions'!$E$10,MATCH($C197,'Efficiency Distributions'!$C$9:$C$87,0)+RIGHT($E204),0))\n/SUM(AB$10:AB$11)","v":0},{"$f":"IF(INDEX(PC_MAPPING,RIGHT($C197,1),MATCH($E$2,'Data by Building Type'!$D$22:$F$22,0))=\"Yes\",1,0)*\n(AC$10*OFFSET('Efficiency Distributions'!$D$10,MATCH($C197,'Efficiency Distributions'!$C$9:$C$87,0)+RIGHT($E204),0)\n+AC$11*OFFSET('Efficiency Distributions'!$E$10,MATCH($C197,'Efficiency Distributions'!$C$9:$C$87,0)+RIGHT($E204),0))\n/SUM(AC$10:AC$11)","v":0},{"$f":"IF(INDEX(PC_MAPPING,RIGHT($C197,1),MATCH($E$2,'Data by Building Type'!$D$22:$F$22,0))=\"Yes\",1,0)*\n(AD$10*OFFSET('Efficiency Distributions'!$D$10,MATCH($C197,'Efficiency Distributions'!$C$9:$C$87,0)+RIGHT($E204),0)\n+AD$11*OFFSET('Efficiency Distributions'!$E$10,MATCH($C197,'Efficiency Distributions'!$C$9:$C$87,0)+RIGHT($E204),0))\n/SUM(AD$10:AD$11)","v":0},{"$f":"IF(INDEX(PC_MAPPING,RIGHT($C197,1),MATCH($E$2,'Data by Building Type'!$D$22:$F$22,0))=\"Yes\",1,0)*\n(AE$10*OFFSET('Efficiency Distributions'!$D$10,MATCH($C197,'Efficiency Distributions'!$C$9:$C$87,0)+RIGHT($E204),0)\n+AE$11*OFFSET('Efficiency Distributions'!$E$10,MATCH($C197,'Efficiency Distributions'!$C$9:$C$87,0)+RIGHT($E204),0))\n/SUM(AE$10:AE$11)","v":0},{"$f":"IF(INDEX(PC_MAPPING,RIGHT($C197,1),MATCH($E$2,'Data by Building Type'!$D$22:$F$22,0))=\"Yes\",1,0)*\n(AF$10*OFFSET('Efficiency Distributions'!$D$10,MATCH($C197,'Efficiency Distributions'!$C$9:$C$87,0)+RIGHT($E204),0)\n+AF$11*OFFSET('Efficiency Distributions'!$E$10,MATCH($C197,'Efficiency Distributions'!$C$9:$C$87,0)+RIGHT($E204),0))\n/SUM(AF$10:AF$11)","v":0},{"$f":"IF(INDEX(PC_MAPPING,RIGHT($C197,1),MATCH($E$2,'Data by Building Type'!$D$22:$F$22,0))=\"Yes\",1,0)*\n(AG$10*OFFSET('Efficiency Distributions'!$D$10,MATCH($C197,'Efficiency Distributions'!$C$9:$C$87,0)+RIGHT($E204),0)\n+AG$11*OFFSET('Efficiency Distributions'!$E$10,MATCH($C197,'Efficiency Distributions'!$C$9:$C$87,0)+RIGHT($E204),0))\n/SUM(AG$10:AG$11)","v":0},{"$f":"IF(INDEX(PC_MAPPING,RIGHT($C197,1),MATCH($E$2,'Data by Building Type'!$D$22:$F$22,0))=\"Yes\",1,0)*\n(AH$10*OFFSET('Efficiency Distributions'!$D$10,MATCH($C197,'Efficiency Distributions'!$C$9:$C$87,0)+RIGHT($E204),0)\n+AH$11*OFFSET('Efficiency Distributions'!$E$10,MATCH($C197,'Efficiency Distributions'!$C$9:$C$87,0)+RIGHT($E204),0))\n/SUM(AH$10:AH$11)","v":0},{"$f":"IF(INDEX(PC_MAPPING,RIGHT($C197,1),MATCH($E$2,'Data by Building Type'!$D$22:$F$22,0))=\"Yes\",1,0)*\n(AI$10*OFFSET('Efficiency Distributions'!$D$10,MATCH($C197,'Efficiency Distributions'!$C$9:$C$87,0)+RIGHT($E204),0)\n+AI$11*OFFSET('Efficiency Distributions'!$E$10,MATCH($C197,'Efficiency Distributions'!$C$9:$C$87,0)+RIGHT($E204),0))\n/SUM(AI$10:AI$11)","v":0},{"$f":"IF(INDEX(PC_MAPPING,RIGHT($C197,1),MATCH($E$2,'Data by Building Type'!$D$22:$F$22,0))=\"Yes\",1,0)*\n(AJ$10*OFFSET('Efficiency Distributions'!$D$10,MATCH($C197,'Efficiency Distributions'!$C$9:$C$87,0)+RIGHT($E204),0)\n+AJ$11*OFFSET('Efficiency Distributions'!$E$10,MATCH($C197,'Efficiency Distributions'!$C$9:$C$87,0)+RIGHT($E204),0))\n/SUM(AJ$10:AJ$11)","v":0},{"$f":"IF(INDEX(PC_MAPPING,RIGHT($C197,1),MATCH($E$2,'Data by Building Type'!$D$22:$F$22,0))=\"Yes\",1,0)*\n(AK$10*OFFSET('Efficiency Distributions'!$D$10,MATCH($C197,'Efficiency Distributions'!$C$9:$C$87,0)+RIGHT($E204),0)\n+AK$11*OFFSET('Efficiency Distributions'!$E$10,MATCH($C197,'Efficiency Distributions'!$C$9:$C$87,0)+RIGHT($E204),0))\n/SUM(AK$10:AK$11)","v":0},{"$f":"IF(INDEX(PC_MAPPING,RIGHT($C197,1),MATCH($E$2,'Data by Building Type'!$D$22:$F$22,0))=\"Yes\",1,0)*\n(AL$10*OFFSET('Efficiency Distributions'!$D$10,MATCH($C197,'Efficiency Distributions'!$C$9:$C$87,0)+RIGHT($E204),0)\n+AL$11*OFFSET('Efficiency Distributions'!$E$10,MATCH($C197,'Efficiency Distributions'!$C$9:$C$87,0)+RIGHT($E204),0))\n/SUM(AL$10:AL$11)","v":0},{"$f":"IF(INDEX(PC_MAPPING,RIGHT($C197,1),MATCH($E$2,'Data by Building Type'!$D$22:$F$22,0))=\"Yes\",1,0)*\n(AM$10*OFFSET('Efficiency Distributions'!$D$10,MATCH($C197,'Efficiency Distributions'!$C$9:$C$87,0)+RIGHT($E204),0)\n+AM$11*OFFSET('Efficiency Distributions'!$E$10,MATCH($C197,'Efficiency Distributions'!$C$9:$C$87,0)+RIGHT($E204),0))\n/SUM(AM$10:AM$11)","v":0},{"$f":"IF(INDEX(PC_MAPPING,RIGHT($C197,1),MATCH($E$2,'Data by Building Type'!$D$22:$F$22,0))=\"Yes\",1,0)*\n(AN$10*OFFSET('Efficiency Distributions'!$D$10,MATCH($C197,'Efficiency Distributions'!$C$9:$C$87,0)+RIGHT($E204),0)\n+AN$11*OFFSET('Efficiency Distributions'!$E$10,MATCH($C197,'Efficiency Distributions'!$C$9:$C$87,0)+RIGHT($E204),0))\n/SUM(AN$10:AN$11)","v":0},{"$f":"IF(INDEX(PC_MAPPING,RIGHT($C197,1),MATCH($E$2,'Data by Building Type'!$D$22:$F$22,0))=\"Yes\",1,0)*\n(AO$10*OFFSET('Efficiency Distributions'!$D$10,MATCH($C197,'Efficiency Distributions'!$C$9:$C$87,0)+RIGHT($E204),0)\n+AO$11*OFFSET('Efficiency Distributions'!$E$10,MATCH($C197,'Efficiency Distributions'!$C$9:$C$87,0)+RIGHT($E204),0))\n/SUM(AO$10:AO$11)","v":0},{"$f":"IF(INDEX(PC_MAPPING,RIGHT($C197,1),MATCH($E$2,'Data by Building Type'!$D$22:$F$22,0))=\"Yes\",1,0)*\n(AP$10*OFFSET('Efficiency Distributions'!$D$10,MATCH($C197,'Efficiency Distributions'!$C$9:$C$87,0)+RIGHT($E204),0)\n+AP$11*OFFSET('Efficiency Distributions'!$E$10,MATCH($C197,'Efficiency Distributions'!$C$9:$C$87,0)+RIGHT($E204),0))\n/SUM(AP$10:AP$11)","v":0},{"$f":"IF(INDEX(PC_MAPPING,RIGHT($C197,1),MATCH($E$2,'Data by Building Type'!$D$22:$F$22,0))=\"Yes\",1,0)*\n(AQ$10*OFFSET('Efficiency Distributions'!$D$10,MATCH($C197,'Efficiency Distributions'!$C$9:$C$87,0)+RIGHT($E204),0)\n+AQ$11*OFFSET('Efficiency Distributions'!$E$10,MATCH($C197,'Efficiency Distributions'!$C$9:$C$87,0)+RIGHT($E204),0))\n/SUM(AQ$10:AQ$11)","v":0},{"$f":"IF(INDEX(PC_MAPPING,RIGHT($C197,1),MATCH($E$2,'Data by Building Type'!$D$22:$F$22,0))=\"Yes\",1,0)*\n(AR$10*OFFSET('Efficiency Distributions'!$D$10,MATCH($C197,'Efficiency Distributions'!$C$9:$C$87,0)+RIGHT($E204),0)\n+AR$11*OFFSET('Efficiency Distributions'!$E$10,MATCH($C197,'Efficiency Distributions'!$C$9:$C$87,0)+RIGHT($E204),0))\n/SUM(AR$10:AR$11)","v":0},{"$f":"IF(INDEX(PC_MAPPING,RIGHT($C197,1),MATCH($E$2,'Data by Building Type'!$D$22:$F$22,0))=\"Yes\",1,0)*\n(AS$10*OFFSET('Efficiency Distributions'!$D$10,MATCH($C197,'Efficiency Distributions'!$C$9:$C$87,0)+RIGHT($E204),0)\n+AS$11*OFFSET('Efficiency Distributions'!$E$10,MATCH($C197,'Efficiency Distributions'!$C$9:$C$87,0)+RIGHT($E204),0))\n/SUM(AS$10:AS$11)","v":0},{"$f":"IF(INDEX(PC_MAPPING,RIGHT($C197,1),MATCH($E$2,'Data by Building Type'!$D$22:$F$22,0))=\"Yes\",1,0)*\n(AT$10*OFFSET('Efficiency Distributions'!$D$10,MATCH($C197,'Efficiency Distributions'!$C$9:$C$87,0)+RIGHT($E204),0)\n+AT$11*OFFSET('Efficiency Distributions'!$E$10,MATCH($C197,'Efficiency Distributions'!$C$9:$C$87,0)+RIGHT($E204),0))\n/SUM(AT$10:AT$11)","v":0},{"$f":"IF(INDEX(PC_MAPPING,RIGHT($C197,1),MATCH($E$2,'Data by Building Type'!$D$22:$F$22,0))=\"Yes\",1,0)*\n(AU$10*OFFSET('Efficiency Distributions'!$D$10,MATCH($C197,'Efficiency Distributions'!$C$9:$C$87,0)+RIGHT($E204),0)\n+AU$11*OFFSET('Efficiency Distributions'!$E$10,MATCH($C197,'Efficiency Distributions'!$C$9:$C$87,0)+RIGHT($E204),0))\n/SUM(AU$10:AU$11)","v":0},{"$f":"IF(INDEX(PC_MAPPING,RIGHT($C197,1),MATCH($E$2,'Data by Building Type'!$D$22:$F$22,0))=\"Yes\",1,0)*\n(AV$10*OFFSET('Efficiency Distributions'!$D$10,MATCH($C197,'Efficiency Distributions'!$C$9:$C$87,0)+RIGHT($E204),0)\n+AV$11*OFFSET('Efficiency Distributions'!$E$10,MATCH($C197,'Efficiency Distributions'!$C$9:$C$87,0)+RIGHT($E204),0))\n/SUM(AV$10:AV$11)","v":0},{"$f":"IF(INDEX(PC_MAPPING,RIGHT($C197,1),MATCH($E$2,'Data by Building Type'!$D$22:$F$22,0))=\"Yes\",1,0)*\n(AW$10*OFFSET('Efficiency Distributions'!$D$10,MATCH($C197,'Efficiency Distributions'!$C$9:$C$87,0)+RIGHT($E204),0)\n+AW$11*OFFSET('Efficiency Distributions'!$E$10,MATCH($C197,'Efficiency Distributions'!$C$9:$C$87,0)+RIGHT($E204),0))\n/SUM(AW$10:AW$11)","v":0},{"$f":"IF(INDEX(PC_MAPPING,RIGHT($C197,1),MATCH($E$2,'Data by Building Type'!$D$22:$F$22,0))=\"Yes\",1,0)*\n(AX$10*OFFSET('Efficiency Distributions'!$D$10,MATCH($C197,'Efficiency Distributions'!$C$9:$C$87,0)+RIGHT($E204),0)\n+AX$11*OFFSET('Efficiency Distributions'!$E$10,MATCH($C197,'Efficiency Distributions'!$C$9:$C$87,0)+RIGHT($E204),0))\n/SUM(AX$10:AX$11)","v":0},{"$f":"IF(INDEX(PC_MAPPING,RIGHT($C197,1),MATCH($E$2,'Data by Building Type'!$D$22:$F$22,0))=\"Yes\",1,0)*\n(AY$10*OFFSET('Efficiency Distributions'!$D$10,MATCH($C197,'Efficiency Distributions'!$C$9:$C$87,0)+RIGHT($E204),0)\n+AY$11*OFFSET('Efficiency Distributions'!$E$10,MATCH($C197,'Efficiency Distributions'!$C$9:$C$87,0)+RIGHT($E204),0))\n/SUM(AY$10:AY$11)","v":0},{"$f":"IF(INDEX(PC_MAPPING,RIGHT($C197,1),MATCH($E$2,'Data by Building Type'!$D$22:$F$22,0))=\"Yes\",1,0)*\n(AZ$10*OFFSET('Efficiency Distributions'!$D$10,MATCH($C197,'Efficiency Distributions'!$C$9:$C$87,0)+RIGHT($E204),0)\n+AZ$11*OFFSET('Efficiency Distributions'!$E$10,MATCH($C197,'Efficiency Distributions'!$C$9:$C$87,0)+RIGHT($E204),0))\n/SUM(AZ$10:AZ$11)","v":0},{"$f":"IF(INDEX(PC_MAPPING,RIGHT($C197,1),MATCH($E$2,'Data by Building Type'!$D$22:$F$22,0))=\"Yes\",1,0)*\n(BA$10*OFFSET('Efficiency Distributions'!$D$10,MATCH($C197,'Efficiency Distributions'!$C$9:$C$87,0)+RIGHT($E204),0)\n+BA$11*OFFSET('Efficiency Distributions'!$E$10,MATCH($C197,'Efficiency Distributions'!$C$9:$C$87,0)+RIGHT($E204),0))\n/SUM(BA$10:BA$11)","v":0},{"$f":"IF(INDEX(PC_MAPPING,RIGHT($C197,1),MATCH($E$2,'Data by Building Type'!$D$22:$F$22,0))=\"Yes\",1,0)*\n(BB$10*OFFSET('Efficiency Distributions'!$D$10,MATCH($C197,'Efficiency Distributions'!$C$9:$C$87,0)+RIGHT($E204),0)\n+BB$11*OFFSET('Efficiency Distributions'!$E$10,MATCH($C197,'Efficiency Distributions'!$C$9:$C$87,0)+RIGHT($E204),0))\n/SUM(BB$10:BB$11)","v":0},{"$f":"IF(INDEX(PC_MAPPING,RIGHT($C197,1),MATCH($E$2,'Data by Building Type'!$D$22:$F$22,0))=\"Yes\",1,0)*\n(BC$10*OFFSET('Efficiency Distributions'!$D$10,MATCH($C197,'Efficiency Distributions'!$C$9:$C$87,0)+RIGHT($E204),0)\n+BC$11*OFFSET('Efficiency Distributions'!$E$10,MATCH($C197,'Efficiency Distributions'!$C$9:$C$87,0)+RIGHT($E204),0))\n/SUM(BC$10:BC$11)","v":0},{"$f":"IF(INDEX(PC_MAPPING,RIGHT($C197,1),MATCH($E$2,'Data by Building Type'!$D$22:$F$22,0))=\"Yes\",1,0)*\n(BD$10*OFFSET('Efficiency Distributions'!$D$10,MATCH($C197,'Efficiency Distributions'!$C$9:$C$87,0)+RIGHT($E204),0)\n+BD$11*OFFSET('Efficiency Distributions'!$E$10,MATCH($C197,'Efficiency Distributions'!$C$9:$C$87,0)+RIGHT($E204),0))\n/SUM(BD$10:BD$11)","v":0},{"$f":"IF(INDEX(PC_MAPPING,RIGHT($C197,1),MATCH($E$2,'Data by Building Type'!$D$22:$F$22,0))=\"Yes\",1,0)*\n(BE$10*OFFSET('Efficiency Distributions'!$D$10,MATCH($C197,'Efficiency Distributions'!$C$9:$C$87,0)+RIGHT($E204),0)\n+BE$11*OFFSET('Efficiency Distributions'!$E$10,MATCH($C197,'Efficiency Distributions'!$C$9:$C$87,0)+RIGHT($E204),0))\n/SUM(BE$10:BE$11)","v":0},{"$f":"IF(INDEX(PC_MAPPING,RIGHT($C197,1),MATCH($E$2,'Data by Building Type'!$D$22:$F$22,0))=\"Yes\",1,0)*\n(BF$10*OFFSET('Efficiency Distributions'!$D$10,MATCH($C197,'Efficiency Distributions'!$C$9:$C$87,0)+RIGHT($E204),0)\n+BF$11*OFFSET('Efficiency Distributions'!$E$10,MATCH($C197,'Efficiency Distributions'!$C$9:$C$87,0)+RIGHT($E204),0))\n/SUM(BF$10:BF$11)","v":0},{"$f":"IF(INDEX(PC_MAPPING,RIGHT($C197,1),MATCH($E$2,'Data by Building Type'!$D$22:$F$22,0))=\"Yes\",1,0)*\n(BG$10*OFFSET('Efficiency Distributions'!$D$10,MATCH($C197,'Efficiency Distributions'!$C$9:$C$87,0)+RIGHT($E204),0)\n+BG$11*OFFSET('Efficiency Distributions'!$E$10,MATCH($C197,'Efficiency Distributions'!$C$9:$C$87,0)+RIGHT($E204),0))\n/SUM(BG$10:BG$11)","v":0}]
[null,null,null,null,"EL4",{"$f":"IF(INDEX(PC_MAPPING,RIGHT($C197,1),MATCH($E$2,'Data by Building Type'!$D$22:$F$22,0))=\"Yes\",1,0)*\n(F$10*OFFSET('Efficiency Distributions'!$D$10,MATCH($C197,'Efficiency Distributions'!$C$9:$C$87,0)+RIGHT($E205),0)\n+F$11*OFFSET('Efficiency Distributions'!$E$10,MATCH($C197,'Efficiency Distributions'!$C$9:$C$87,0)+RIGHT($E205),0))\n/SUM(F$10:F$11)","v":0},{"$f":"IF(INDEX(PC_MAPPING,RIGHT($C197,1),MATCH($E$2,'Data by Building Type'!$D$22:$F$22,0))=\"Yes\",1,0)*\n(G$10*OFFSET('Efficiency Distributions'!$D$10,MATCH($C197,'Efficiency Distributions'!$C$9:$C$87,0)+RIGHT($E205),0)\n+G$11*OFFSET('Efficiency Distributions'!$E$10,MATCH($C197,'Efficiency Distributions'!$C$9:$C$87,0)+RIGHT($E205),0))\n/SUM(G$10:G$11)","v":0},{"$f":"IF(INDEX(PC_MAPPING,RIGHT($C197,1),MATCH($E$2,'Data by Building Type'!$D$22:$F$22,0))=\"Yes\",1,0)*\n(H$10*OFFSET('Efficiency Distributions'!$D$10,MATCH($C197,'Efficiency Distributions'!$C$9:$C$87,0)+RIGHT($E205),0)\n+H$11*OFFSET('Efficiency Distributions'!$E$10,MATCH($C197,'Efficiency Distributions'!$C$9:$C$87,0)+RIGHT($E205),0))\n/SUM(H$10:H$11)","v":0},{"$f":"IF(INDEX(PC_MAPPING,RIGHT($C197,1),MATCH($E$2,'Data by Building Type'!$D$22:$F$22,0))=\"Yes\",1,0)*\n(I$10*OFFSET('Efficiency Distributions'!$D$10,MATCH($C197,'Efficiency Distributions'!$C$9:$C$87,0)+RIGHT($E205),0)\n+I$11*OFFSET('Efficiency Distributions'!$E$10,MATCH($C197,'Efficiency Distributions'!$C$9:$C$87,0)+RIGHT($E205),0))\n/SUM(I$10:I$11)","v":0},{"$f":"IF(INDEX(PC_MAPPING,RIGHT($C197,1),MATCH($E$2,'Data by Building Type'!$D$22:$F$22,0))=\"Yes\",1,0)*\n(J$10*OFFSET('Efficiency Distributions'!$D$10,MATCH($C197,'Efficiency Distributions'!$C$9:$C$87,0)+RIGHT($E205),0)\n+J$11*OFFSET('Efficiency Distributions'!$E$10,MATCH($C197,'Efficiency Distributions'!$C$9:$C$87,0)+RIGHT($E205),0))\n/SUM(J$10:J$11)","v":0},{"$f":"IF(INDEX(PC_MAPPING,RIGHT($C197,1),MATCH($E$2,'Data by Building Type'!$D$22:$F$22,0))=\"Yes\",1,0)*\n(K$10*OFFSET('Efficiency Distributions'!$D$10,MATCH($C197,'Efficiency Distributions'!$C$9:$C$87,0)+RIGHT($E205),0)\n+K$11*OFFSET('Efficiency Distributions'!$E$10,MATCH($C197,'Efficiency Distributions'!$C$9:$C$87,0)+RIGHT($E205),0))\n/SUM(K$10:K$11)","v":0},{"$f":"IF(INDEX(PC_MAPPING,RIGHT($C197,1),MATCH($E$2,'Data by Building Type'!$D$22:$F$22,0))=\"Yes\",1,0)*\n(L$10*OFFSET('Efficiency Distributions'!$D$10,MATCH($C197,'Efficiency Distributions'!$C$9:$C$87,0)+RIGHT($E205),0)\n+L$11*OFFSET('Efficiency Distributions'!$E$10,MATCH($C197,'Efficiency Distributions'!$C$9:$C$87,0)+RIGHT($E205),0))\n/SUM(L$10:L$11)","v":0},{"$f":"IF(INDEX(PC_MAPPING,RIGHT($C197,1),MATCH($E$2,'Data by Building Type'!$D$22:$F$22,0))=\"Yes\",1,0)*\n(M$10*OFFSET('Efficiency Distributions'!$D$10,MATCH($C197,'Efficiency Distributions'!$C$9:$C$87,0)+RIGHT($E205),0)\n+M$11*OFFSET('Efficiency Distributions'!$E$10,MATCH($C197,'Efficiency Distributions'!$C$9:$C$87,0)+RIGHT($E205),0))\n/SUM(M$10:M$11)","v":0},{"$f":"IF(INDEX(PC_MAPPING,RIGHT($C197,1),MATCH($E$2,'Data by Building Type'!$D$22:$F$22,0))=\"Yes\",1,0)*\n(N$10*OFFSET('Efficiency Distributions'!$D$10,MATCH($C197,'Efficiency Distributions'!$C$9:$C$87,0)+RIGHT($E205),0)\n+N$11*OFFSET('Efficiency Distributions'!$E$10,MATCH($C197,'Efficiency Distributions'!$C$9:$C$87,0)+RIGHT($E205),0))\n/SUM(N$10:N$11)","v":0},{"$f":"IF(INDEX(PC_MAPPING,RIGHT($C197,1),MATCH($E$2,'Data by Building Type'!$D$22:$F$22,0))=\"Yes\",1,0)*\n(O$10*OFFSET('Efficiency Distributions'!$D$10,MATCH($C197,'Efficiency Distributions'!$C$9:$C$87,0)+RIGHT($E205),0)\n+O$11*OFFSET('Efficiency Distributions'!$E$10,MATCH($C197,'Efficiency Distributions'!$C$9:$C$87,0)+RIGHT($E205),0))\n/SUM(O$10:O$11)","v":0},{"$f":"IF(INDEX(PC_MAPPING,RIGHT($C197,1),MATCH($E$2,'Data by Building Type'!$D$22:$F$22,0))=\"Yes\",1,0)*\n(P$10*OFFSET('Efficiency Distributions'!$D$10,MATCH($C197,'Efficiency Distributions'!$C$9:$C$87,0)+RIGHT($E205),0)\n+P$11*OFFSET('Efficiency Distributions'!$E$10,MATCH($C197,'Efficiency Distributions'!$C$9:$C$87,0)+RIGHT($E205),0))\n/SUM(P$10:P$11)","v":0},{"$f":"IF(INDEX(PC_MAPPING,RIGHT($C197,1),MATCH($E$2,'Data by Building Type'!$D$22:$F$22,0))=\"Yes\",1,0)*\n(Q$10*OFFSET('Efficiency Distributions'!$D$10,MATCH($C197,'Efficiency Distributions'!$C$9:$C$87,0)+RIGHT($E205),0)\n+Q$11*OFFSET('Efficiency Distributions'!$E$10,MATCH($C197,'Efficiency Distributions'!$C$9:$C$87,0)+RIGHT($E205),0))\n/SUM(Q$10:Q$11)","v":0},{"$f":"IF(INDEX(PC_MAPPING,RIGHT($C197,1),MATCH($E$2,'Data by Building Type'!$D$22:$F$22,0))=\"Yes\",1,0)*\n(R$10*OFFSET('Efficiency Distributions'!$D$10,MATCH($C197,'Efficiency Distributions'!$C$9:$C$87,0)+RIGHT($E205),0)\n+R$11*OFFSET('Efficiency Distributions'!$E$10,MATCH($C197,'Efficiency Distributions'!$C$9:$C$87,0)+RIGHT($E205),0))\n/SUM(R$10:R$11)","v":0},{"$f":"IF(INDEX(PC_MAPPING,RIGHT($C197,1),MATCH($E$2,'Data by Building Type'!$D$22:$F$22,0))=\"Yes\",1,0)*\n(S$10*OFFSET('Efficiency Distributions'!$D$10,MATCH($C197,'Efficiency Distributions'!$C$9:$C$87,0)+RIGHT($E205),0)\n+S$11*OFFSET('Efficiency Distributions'!$E$10,MATCH($C197,'Efficiency Distributions'!$C$9:$C$87,0)+RIGHT($E205),0))\n/SUM(S$10:S$11)","v":0},{"$f":"IF(INDEX(PC_MAPPING,RIGHT($C197,1),MATCH($E$2,'Data by Building Type'!$D$22:$F$22,0))=\"Yes\",1,0)*\n(T$10*OFFSET('Efficiency Distributions'!$D$10,MATCH($C197,'Efficiency Distributions'!$C$9:$C$87,0)+RIGHT($E205),0)\n+T$11*OFFSET('Efficiency Distributions'!$E$10,MATCH($C197,'Efficiency Distributions'!$C$9:$C$87,0)+RIGHT($E205),0))\n/SUM(T$10:T$11)","v":0},{"$f":"IF(INDEX(PC_MAPPING,RIGHT($C197,1),MATCH($E$2,'Data by Building Type'!$D$22:$F$22,0))=\"Yes\",1,0)*\n(U$10*OFFSET('Efficiency Distributions'!$D$10,MATCH($C197,'Efficiency Distributions'!$C$9:$C$87,0)+RIGHT($E205),0)\n+U$11*OFFSET('Efficiency Distributions'!$E$10,MATCH($C197,'Efficiency Distributions'!$C$9:$C$87,0)+RIGHT($E205),0))\n/SUM(U$10:U$11)","v":0},{"$f":"IF(INDEX(PC_MAPPING,RIGHT($C197,1),MATCH($E$2,'Data by Building Type'!$D$22:$F$22,0))=\"Yes\",1,0)*\n(V$10*OFFSET('Efficiency Distributions'!$D$10,MATCH($C197,'Efficiency Distributions'!$C$9:$C$87,0)+RIGHT($E205),0)\n+V$11*OFFSET('Efficiency Distributions'!$E$10,MATCH($C197,'Efficiency Distributions'!$C$9:$C$87,0)+RIGHT($E205),0))\n/SUM(V$10:V$11)","v":0},{"$f":"IF(INDEX(PC_MAPPING,RIGHT($C197,1),MATCH($E$2,'Data by Building Type'!$D$22:$F$22,0))=\"Yes\",1,0)*\n(W$10*OFFSET('Efficiency Distributions'!$D$10,MATCH($C197,'Efficiency Distributions'!$C$9:$C$87,0)+RIGHT($E205),0)\n+W$11*OFFSET('Efficiency Distributions'!$E$10,MATCH($C197,'Efficiency Distributions'!$C$9:$C$87,0)+RIGHT($E205),0))\n/SUM(W$10:W$11)","v":0},{"$f":"IF(INDEX(PC_MAPPING,RIGHT($C197,1),MATCH($E$2,'Data by Building Type'!$D$22:$F$22,0))=\"Yes\",1,0)*\n(X$10*OFFSET('Efficiency Distributions'!$D$10,MATCH($C197,'Efficiency Distributions'!$C$9:$C$87,0)+RIGHT($E205),0)\n+X$11*OFFSET('Efficiency Distributions'!$E$10,MATCH($C197,'Efficiency Distributions'!$C$9:$C$87,0)+RIGHT($E205),0))\n/SUM(X$10:X$11)","v":0},{"$f":"IF(INDEX(PC_MAPPING,RIGHT($C197,1),MATCH($E$2,'Data by Building Type'!$D$22:$F$22,0))=\"Yes\",1,0)*\n(Y$10*OFFSET('Efficiency Distributions'!$D$10,MATCH($C197,'Efficiency Distributions'!$C$9:$C$87,0)+RIGHT($E205),0)\n+Y$11*OFFSET('Efficiency Distributions'!$E$10,MATCH($C197,'Efficiency Distributions'!$C$9:$C$87,0)+RIGHT($E205),0))\n/SUM(Y$10:Y$11)","v":0},{"$f":"IF(INDEX(PC_MAPPING,RIGHT($C197,1),MATCH($E$2,'Data by Building Type'!$D$22:$F$22,0))=\"Yes\",1,0)*\n(Z$10*OFFSET('Efficiency Distributions'!$D$10,MATCH($C197,'Efficiency Distributions'!$C$9:$C$87,0)+RIGHT($E205),0)\n+Z$11*OFFSET('Efficiency Distributions'!$E$10,MATCH($C197,'Efficiency Distributions'!$C$9:$C$87,0)+RIGHT($E205),0))\n/SUM(Z$10:Z$11)","v":0},{"$f":"IF(INDEX(PC_MAPPING,RIGHT($C197,1),MATCH($E$2,'Data by Building Type'!$D$22:$F$22,0))=\"Yes\",1,0)*\n(AA$10*OFFSET('Efficiency Distributions'!$D$10,MATCH($C197,'Efficiency Distributions'!$C$9:$C$87,0)+RIGHT($E205),0)\n+AA$11*OFFSET('Efficiency Distributions'!$E$10,MATCH($C197,'Efficiency Distributions'!$C$9:$C$87,0)+RIGHT($E205),0))\n/SUM(AA$10:AA$11)","v":0},{"$f":"IF(INDEX(PC_MAPPING,RIGHT($C197,1),MATCH($E$2,'Data by Building Type'!$D$22:$F$22,0))=\"Yes\",1,0)*\n(AB$10*OFFSET('Efficiency Distributions'!$D$10,MATCH($C197,'Efficiency Distributions'!$C$9:$C$87,0)+RIGHT($E205),0)\n+AB$11*OFFSET('Efficiency Distributions'!$E$10,MATCH($C197,'Efficiency Distributions'!$C$9:$C$87,0)+RIGHT($E205),0))\n/SUM(AB$10:AB$11)","v":0},{"$f":"IF(INDEX(PC_MAPPING,RIGHT($C197,1),MATCH($E$2,'Data by Building Type'!$D$22:$F$22,0))=\"Yes\",1,0)*\n(AC$10*OFFSET('Efficiency Distributions'!$D$10,MATCH($C197,'Efficiency Distributions'!$C$9:$C$87,0)+RIGHT($E205),0)\n+AC$11*OFFSET('Efficiency Distributions'!$E$10,MATCH($C197,'Efficiency Distributions'!$C$9:$C$87,0)+RIGHT($E205),0))\n/SUM(AC$10:AC$11)","v":0},{"$f":"IF(INDEX(PC_MAPPING,RIGHT($C197,1),MATCH($E$2,'Data by Building Type'!$D$22:$F$22,0))=\"Yes\",1,0)*\n(AD$10*OFFSET('Efficiency Distributions'!$D$10,MATCH($C197,'Efficiency Distributions'!$C$9:$C$87,0)+RIGHT($E205),0)\n+AD$11*OFFSET('Efficiency Distributions'!$E$10,MATCH($C197,'Efficiency Distributions'!$C$9:$C$87,0)+RIGHT($E205),0))\n/SUM(AD$10:AD$11)","v":0},{"$f":"IF(INDEX(PC_MAPPING,RIGHT($C197,1),MATCH($E$2,'Data by Building Type'!$D$22:$F$22,0))=\"Yes\",1,0)*\n(AE$10*OFFSET('Efficiency Distributions'!$D$10,MATCH($C197,'Efficiency Distributions'!$C$9:$C$87,0)+RIGHT($E205),0)\n+AE$11*OFFSET('Efficiency Distributions'!$E$10,MATCH($C197,'Efficiency Distributions'!$C$9:$C$87,0)+RIGHT($E205),0))\n/SUM(AE$10:AE$11)","v":0},{"$f":"IF(INDEX(PC_MAPPING,RIGHT($C197,1),MATCH($E$2,'Data by Building Type'!$D$22:$F$22,0))=\"Yes\",1,0)*\n(AF$10*OFFSET('Efficiency Distributions'!$D$10,MATCH($C197,'Efficiency Distributions'!$C$9:$C$87,0)+RIGHT($E205),0)\n+AF$11*OFFSET('Efficiency Distributions'!$E$10,MATCH($C197,'Efficiency Distributions'!$C$9:$C$87,0)+RIGHT($E205),0))\n/SUM(AF$10:AF$11)","v":0},{"$f":"IF(INDEX(PC_MAPPING,RIGHT($C197,1),MATCH($E$2,'Data by Building Type'!$D$22:$F$22,0))=\"Yes\",1,0)*\n(AG$10*OFFSET('Efficiency Distributions'!$D$10,MATCH($C197,'Efficiency Distributions'!$C$9:$C$87,0)+RIGHT($E205),0)\n+AG$11*OFFSET('Efficiency Distributions'!$E$10,MATCH($C197,'Efficiency Distributions'!$C$9:$C$87,0)+RIGHT($E205),0))\n/SUM(AG$10:AG$11)","v":0},{"$f":"IF(INDEX(PC_MAPPING,RIGHT($C197,1),MATCH($E$2,'Data by Building Type'!$D$22:$F$22,0))=\"Yes\",1,0)*\n(AH$10*OFFSET('Efficiency Distributions'!$D$10,MATCH($C197,'Efficiency Distributions'!$C$9:$C$87,0)+RIGHT($E205),0)\n+AH$11*OFFSET('Efficiency Distributions'!$E$10,MATCH($C197,'Efficiency Distributions'!$C$9:$C$87,0)+RIGHT($E205),0))\n/SUM(AH$10:AH$11)","v":0},{"$f":"IF(INDEX(PC_MAPPING,RIGHT($C197,1),MATCH($E$2,'Data by Building Type'!$D$22:$F$22,0))=\"Yes\",1,0)*\n(AI$10*OFFSET('Efficiency Distributions'!$D$10,MATCH($C197,'Efficiency Distributions'!$C$9:$C$87,0)+RIGHT($E205),0)\n+AI$11*OFFSET('Efficiency Distributions'!$E$10,MATCH($C197,'Efficiency Distributions'!$C$9:$C$87,0)+RIGHT($E205),0))\n/SUM(AI$10:AI$11)","v":0},{"$f":"IF(INDEX(PC_MAPPING,RIGHT($C197,1),MATCH($E$2,'Data by Building Type'!$D$22:$F$22,0))=\"Yes\",1,0)*\n(AJ$10*OFFSET('Efficiency Distributions'!$D$10,MATCH($C197,'Efficiency Distributions'!$C$9:$C$87,0)+RIGHT($E205),0)\n+AJ$11*OFFSET('Efficiency Distributions'!$E$10,MATCH($C197,'Efficiency Distributions'!$C$9:$C$87,0)+RIGHT($E205),0))\n/SUM(AJ$10:AJ$11)","v":0},{"$f":"IF(INDEX(PC_MAPPING,RIGHT($C197,1),MATCH($E$2,'Data by Building Type'!$D$22:$F$22,0))=\"Yes\",1,0)*\n(AK$10*OFFSET('Efficiency Distributions'!$D$10,MATCH($C197,'Efficiency Distributions'!$C$9:$C$87,0)+RIGHT($E205),0)\n+AK$11*OFFSET('Efficiency Distributions'!$E$10,MATCH($C197,'Efficiency Distributions'!$C$9:$C$87,0)+RIGHT($E205),0))\n/SUM(AK$10:AK$11)","v":0},{"$f":"IF(INDEX(PC_MAPPING,RIGHT($C197,1),MATCH($E$2,'Data by Building Type'!$D$22:$F$22,0))=\"Yes\",1,0)*\n(AL$10*OFFSET('Efficiency Distributions'!$D$10,MATCH($C197,'Efficiency Distributions'!$C$9:$C$87,0)+RIGHT($E205),0)\n+AL$11*OFFSET('Efficiency Distributions'!$E$10,MATCH($C197,'Efficiency Distributions'!$C$9:$C$87,0)+RIGHT($E205),0))\n/SUM(AL$10:AL$11)","v":0},{"$f":"IF(INDEX(PC_MAPPING,RIGHT($C197,1),MATCH($E$2,'Data by Building Type'!$D$22:$F$22,0))=\"Yes\",1,0)*\n(AM$10*OFFSET('Efficiency Distributions'!$D$10,MATCH($C197,'Efficiency Distributions'!$C$9:$C$87,0)+RIGHT($E205),0)\n+AM$11*OFFSET('Efficiency Distributions'!$E$10,MATCH($C197,'Efficiency Distributions'!$C$9:$C$87,0)+RIGHT($E205),0))\n/SUM(AM$10:AM$11)","v":0},{"$f":"IF(INDEX(PC_MAPPING,RIGHT($C197,1),MATCH($E$2,'Data by Building Type'!$D$22:$F$22,0))=\"Yes\",1,0)*\n(AN$10*OFFSET('Efficiency Distributions'!$D$10,MATCH($C197,'Efficiency Distributions'!$C$9:$C$87,0)+RIGHT($E205),0)\n+AN$11*OFFSET('Efficiency Distributions'!$E$10,MATCH($C197,'Efficiency Distributions'!$C$9:$C$87,0)+RIGHT($E205),0))\n/SUM(AN$10:AN$11)","v":0},{"$f":"IF(INDEX(PC_MAPPING,RIGHT($C197,1),MATCH($E$2,'Data by Building Type'!$D$22:$F$22,0))=\"Yes\",1,0)*\n(AO$10*OFFSET('Efficiency Distributions'!$D$10,MATCH($C197,'Efficiency Distributions'!$C$9:$C$87,0)+RIGHT($E205),0)\n+AO$11*OFFSET('Efficiency Distributions'!$E$10,MATCH($C197,'Efficiency Distributions'!$C$9:$C$87,0)+RIGHT($E205),0))\n/SUM(AO$10:AO$11)","v":0},{"$f":"IF(INDEX(PC_MAPPING,RIGHT($C197,1),MATCH($E$2,'Data by Building Type'!$D$22:$F$22,0))=\"Yes\",1,0)*\n(AP$10*OFFSET('Efficiency Distributions'!$D$10,MATCH($C197,'Efficiency Distributions'!$C$9:$C$87,0)+RIGHT($E205),0)\n+AP$11*OFFSET('Efficiency Distributions'!$E$10,MATCH($C197,'Efficiency Distributions'!$C$9:$C$87,0)+RIGHT($E205),0))\n/SUM(AP$10:AP$11)","v":0},{"$f":"IF(INDEX(PC_MAPPING,RIGHT($C197,1),MATCH($E$2,'Data by Building Type'!$D$22:$F$22,0))=\"Yes\",1,0)*\n(AQ$10*OFFSET('Efficiency Distributions'!$D$10,MATCH($C197,'Efficiency Distributions'!$C$9:$C$87,0)+RIGHT($E205),0)\n+AQ$11*OFFSET('Efficiency Distributions'!$E$10,MATCH($C197,'Efficiency Distributions'!$C$9:$C$87,0)+RIGHT($E205),0))\n/SUM(AQ$10:AQ$11)","v":0},{"$f":"IF(INDEX(PC_MAPPING,RIGHT($C197,1),MATCH($E$2,'Data by Building Type'!$D$22:$F$22,0))=\"Yes\",1,0)*\n(AR$10*OFFSET('Efficiency Distributions'!$D$10,MATCH($C197,'Efficiency Distributions'!$C$9:$C$87,0)+RIGHT($E205),0)\n+AR$11*OFFSET('Efficiency Distributions'!$E$10,MATCH($C197,'Efficiency Distributions'!$C$9:$C$87,0)+RIGHT($E205),0))\n/SUM(AR$10:AR$11)","v":0},{"$f":"IF(INDEX(PC_MAPPING,RIGHT($C197,1),MATCH($E$2,'Data by Building Type'!$D$22:$F$22,0))=\"Yes\",1,0)*\n(AS$10*OFFSET('Efficiency Distributions'!$D$10,MATCH($C197,'Efficiency Distributions'!$C$9:$C$87,0)+RIGHT($E205),0)\n+AS$11*OFFSET('Efficiency Distributions'!$E$10,MATCH($C197,'Efficiency Distributions'!$C$9:$C$87,0)+RIGHT($E205),0))\n/SUM(AS$10:AS$11)","v":0},{"$f":"IF(INDEX(PC_MAPPING,RIGHT($C197,1),MATCH($E$2,'Data by Building Type'!$D$22:$F$22,0))=\"Yes\",1,0)*\n(AT$10*OFFSET('Efficiency Distributions'!$D$10,MATCH($C197,'Efficiency Distributions'!$C$9:$C$87,0)+RIGHT($E205),0)\n+AT$11*OFFSET('Efficiency Distributions'!$E$10,MATCH($C197,'Efficiency Distributions'!$C$9:$C$87,0)+RIGHT($E205),0))\n/SUM(AT$10:AT$11)","v":0},{"$f":"IF(INDEX(PC_MAPPING,RIGHT($C197,1),MATCH($E$2,'Data by Building Type'!$D$22:$F$22,0))=\"Yes\",1,0)*\n(AU$10*OFFSET('Efficiency Distributions'!$D$10,MATCH($C197,'Efficiency Distributions'!$C$9:$C$87,0)+RIGHT($E205),0)\n+AU$11*OFFSET('Efficiency Distributions'!$E$10,MATCH($C197,'Efficiency Distributions'!$C$9:$C$87,0)+RIGHT($E205),0))\n/SUM(AU$10:AU$11)","v":0},{"$f":"IF(INDEX(PC_MAPPING,RIGHT($C197,1),MATCH($E$2,'Data by Building Type'!$D$22:$F$22,0))=\"Yes\",1,0)*\n(AV$10*OFFSET('Efficiency Distributions'!$D$10,MATCH($C197,'Efficiency Distributions'!$C$9:$C$87,0)+RIGHT($E205),0)\n+AV$11*OFFSET('Efficiency Distributions'!$E$10,MATCH($C197,'Efficiency Distributions'!$C$9:$C$87,0)+RIGHT($E205),0))\n/SUM(AV$10:AV$11)","v":0},{"$f":"IF(INDEX(PC_MAPPING,RIGHT($C197,1),MATCH($E$2,'Data by Building Type'!$D$22:$F$22,0))=\"Yes\",1,0)*\n(AW$10*OFFSET('Efficiency Distributions'!$D$10,MATCH($C197,'Efficiency Distributions'!$C$9:$C$87,0)+RIGHT($E205),0)\n+AW$11*OFFSET('Efficiency Distributions'!$E$10,MATCH($C197,'Efficiency Distributions'!$C$9:$C$87,0)+RIGHT($E205),0))\n/SUM(AW$10:AW$11)","v":0},{"$f":"IF(INDEX(PC_MAPPING,RIGHT($C197,1),MATCH($E$2,'Data by Building Type'!$D$22:$F$22,0))=\"Yes\",1,0)*\n(AX$10*OFFSET('Efficiency Distributions'!$D$10,MATCH($C197,'Efficiency Distributions'!$C$9:$C$87,0)+RIGHT($E205),0)\n+AX$11*OFFSET('Efficiency Distributions'!$E$10,MATCH($C197,'Efficiency Distributions'!$C$9:$C$87,0)+RIGHT($E205),0))\n/SUM(AX$10:AX$11)","v":0},{"$f":"IF(INDEX(PC_MAPPING,RIGHT($C197,1),MATCH($E$2,'Data by Building Type'!$D$22:$F$22,0))=\"Yes\",1,0)*\n(AY$10*OFFSET('Efficiency Distributions'!$D$10,MATCH($C197,'Efficiency Distributions'!$C$9:$C$87,0)+RIGHT($E205),0)\n+AY$11*OFFSET('Efficiency Distributions'!$E$10,MATCH($C197,'Efficiency Distributions'!$C$9:$C$87,0)+RIGHT($E205),0))\n/SUM(AY$10:AY$11)","v":0},{"$f":"IF(INDEX(PC_MAPPING,RIGHT($C197,1),MATCH($E$2,'Data by Building Type'!$D$22:$F$22,0))=\"Yes\",1,0)*\n(AZ$10*OFFSET('Efficiency Distributions'!$D$10,MATCH($C197,'Efficiency Distributions'!$C$9:$C$87,0)+RIGHT($E205),0)\n+AZ$11*OFFSET('Efficiency Distributions'!$E$10,MATCH($C197,'Efficiency Distributions'!$C$9:$C$87,0)+RIGHT($E205),0))\n/SUM(AZ$10:AZ$11)","v":0},{"$f":"IF(INDEX(PC_MAPPING,RIGHT($C197,1),MATCH($E$2,'Data by Building Type'!$D$22:$F$22,0))=\"Yes\",1,0)*\n(BA$10*OFFSET('Efficiency Distributions'!$D$10,MATCH($C197,'Efficiency Distributions'!$C$9:$C$87,0)+RIGHT($E205),0)\n+BA$11*OFFSET('Efficiency Distributions'!$E$10,MATCH($C197,'Efficiency Distributions'!$C$9:$C$87,0)+RIGHT($E205),0))\n/SUM(BA$10:BA$11)","v":0},{"$f":"IF(INDEX(PC_MAPPING,RIGHT($C197,1),MATCH($E$2,'Data by Building Type'!$D$22:$F$22,0))=\"Yes\",1,0)*\n(BB$10*OFFSET('Efficiency Distributions'!$D$10,MATCH($C197,'Efficiency Distributions'!$C$9:$C$87,0)+RIGHT($E205),0)\n+BB$11*OFFSET('Efficiency Distributions'!$E$10,MATCH($C197,'Efficiency Distributions'!$C$9:$C$87,0)+RIGHT($E205),0))\n/SUM(BB$10:BB$11)","v":0},{"$f":"IF(INDEX(PC_MAPPING,RIGHT($C197,1),MATCH($E$2,'Data by Building Type'!$D$22:$F$22,0))=\"Yes\",1,0)*\n(BC$10*OFFSET('Efficiency Distributions'!$D$10,MATCH($C197,'Efficiency Distributions'!$C$9:$C$87,0)+RIGHT($E205),0)\n+BC$11*OFFSET('Efficiency Distributions'!$E$10,MATCH($C197,'Efficiency Distributions'!$C$9:$C$87,0)+RIGHT($E205),0))\n/SUM(BC$10:BC$11)","v":0},{"$f":"IF(INDEX(PC_MAPPING,RIGHT($C197,1),MATCH($E$2,'Data by Building Type'!$D$22:$F$22,0))=\"Yes\",1,0)*\n(BD$10*OFFSET('Efficiency Distributions'!$D$10,MATCH($C197,'Efficiency Distributions'!$C$9:$C$87,0)+RIGHT($E205),0)\n+BD$11*OFFSET('Efficiency Distributions'!$E$10,MATCH($C197,'Efficiency Distributions'!$C$9:$C$87,0)+RIGHT($E205),0))\n/SUM(BD$10:BD$11)","v":0},{"$f":"IF(INDEX(PC_MAPPING,RIGHT($C197,1),MATCH($E$2,'Data by Building Type'!$D$22:$F$22,0))=\"Yes\",1,0)*\n(BE$10*OFFSET('Efficiency Distributions'!$D$10,MATCH($C197,'Efficiency Distributions'!$C$9:$C$87,0)+RIGHT($E205),0)\n+BE$11*OFFSET('Efficiency Distributions'!$E$10,MATCH($C197,'Efficiency Distributions'!$C$9:$C$87,0)+RIGHT($E205),0))\n/SUM(BE$10:BE$11)","v":0},{"$f":"IF(INDEX(PC_MAPPING,RIGHT($C197,1),MATCH($E$2,'Data by Building Type'!$D$22:$F$22,0))=\"Yes\",1,0)*\n(BF$10*OFFSET('Efficiency Distributions'!$D$10,MATCH($C197,'Efficiency Distributions'!$C$9:$C$87,0)+RIGHT($E205),0)\n+BF$11*OFFSET('Efficiency Distributions'!$E$10,MATCH($C197,'Efficiency Distributions'!$C$9:$C$87,0)+RIGHT($E205),0))\n/SUM(BF$10:BF$11)","v":0},{"$f":"IF(INDEX(PC_MAPPING,RIGHT($C197,1),MATCH($E$2,'Data by Building Type'!$D$22:$F$22,0))=\"Yes\",1,0)*\n(BG$10*OFFSET('Efficiency Distributions'!$D$10,MATCH($C197,'Efficiency Distributions'!$C$9:$C$87,0)+RIGHT($E205),0)\n+BG$11*OFFSET('Efficiency Distributions'!$E$10,MATCH($C197,'Efficiency Distributions'!$C$9:$C$87,0)+RIGHT($E205),0))\n/SUM(BG$10:BG$11)","v":0}]
[null,null,null,null,"EL5",{"$f":"IF(INDEX(PC_MAPPING,RIGHT($C197,1),MATCH($E$2,'Data by Building Type'!$D$22:$F$22,0))=\"Yes\",1,0)*\n(F$10*OFFSET('Efficiency Distributions'!$D$10,MATCH($C197,'Efficiency Distributions'!$C$9:$C$87,0)+RIGHT($E206),0)\n+F$11*OFFSET('Efficiency Distributions'!$E$10,MATCH($C197,'Efficiency Distributions'!$C$9:$C$87,0)+RIGHT($E206),0))\n/SUM(F$10:F$11)","v":0},{"$f":"IF(INDEX(PC_MAPPING,RIGHT($C197,1),MATCH($E$2,'Data by Building Type'!$D$22:$F$22,0))=\"Yes\",1,0)*\n(G$10*OFFSET('Efficiency Distributions'!$D$10,MATCH($C197,'Efficiency Distributions'!$C$9:$C$87,0)+RIGHT($E206),0)\n+G$11*OFFSET('Efficiency Distributions'!$E$10,MATCH($C197,'Efficiency Distributions'!$C$9:$C$87,0)+RIGHT($E206),0))\n/SUM(G$10:G$11)","v":0},{"$f":"IF(INDEX(PC_MAPPING,RIGHT($C197,1),MATCH($E$2,'Data by Building Type'!$D$22:$F$22,0))=\"Yes\",1,0)*\n(H$10*OFFSET('Efficiency Distributions'!$D$10,MATCH($C197,'Efficiency Distributions'!$C$9:$C$87,0)+RIGHT($E206),0)\n+H$11*OFFSET('Efficiency Distributions'!$E$10,MATCH($C197,'Efficiency Distributions'!$C$9:$C$87,0)+RIGHT($E206),0))\n/SUM(H$10:H$11)","v":0},{"$f":"IF(INDEX(PC_MAPPING,RIGHT($C197,1),MATCH($E$2,'Data by Building Type'!$D$22:$F$22,0))=\"Yes\",1,0)*\n(I$10*OFFSET('Efficiency Distributions'!$D$10,MATCH($C197,'Efficiency Distributions'!$C$9:$C$87,0)+RIGHT($E206),0)\n+I$11*OFFSET('Efficiency Distributions'!$E$10,MATCH($C197,'Efficiency Distributions'!$C$9:$C$87,0)+RIGHT($E206),0))\n/SUM(I$10:I$11)","v":0},{"$f":"IF(INDEX(PC_MAPPING,RIGHT($C197,1),MATCH($E$2,'Data by Building Type'!$D$22:$F$22,0))=\"Yes\",1,0)*\n(J$10*OFFSET('Efficiency Distributions'!$D$10,MATCH($C197,'Efficiency Distributions'!$C$9:$C$87,0)+RIGHT($E206),0)\n+J$11*OFFSET('Efficiency Distributions'!$E$10,MATCH($C197,'Efficiency Distributions'!$C$9:$C$87,0)+RIGHT($E206),0))\n/SUM(J$10:J$11)","v":0},{"$f":"IF(INDEX(PC_MAPPING,RIGHT($C197,1),MATCH($E$2,'Data by Building Type'!$D$22:$F$22,0))=\"Yes\",1,0)*\n(K$10*OFFSET('Efficiency Distributions'!$D$10,MATCH($C197,'Efficiency Distributions'!$C$9:$C$87,0)+RIGHT($E206),0)\n+K$11*OFFSET('Efficiency Distributions'!$E$10,MATCH($C197,'Efficiency Distributions'!$C$9:$C$87,0)+RIGHT($E206),0))\n/SUM(K$10:K$11)","v":0},{"$f":"IF(INDEX(PC_MAPPING,RIGHT($C197,1),MATCH($E$2,'Data by Building Type'!$D$22:$F$22,0))=\"Yes\",1,0)*\n(L$10*OFFSET('Efficiency Distributions'!$D$10,MATCH($C197,'Efficiency Distributions'!$C$9:$C$87,0)+RIGHT($E206),0)\n+L$11*OFFSET('Efficiency Distributions'!$E$10,MATCH($C197,'Efficiency Distributions'!$C$9:$C$87,0)+RIGHT($E206),0))\n/SUM(L$10:L$11)","v":0},{"$f":"IF(INDEX(PC_MAPPING,RIGHT($C197,1),MATCH($E$2,'Data by Building Type'!$D$22:$F$22,0))=\"Yes\",1,0)*\n(M$10*OFFSET('Efficiency Distributions'!$D$10,MATCH($C197,'Efficiency Distributions'!$C$9:$C$87,0)+RIGHT($E206),0)\n+M$11*OFFSET('Efficiency Distributions'!$E$10,MATCH($C197,'Efficiency Distributions'!$C$9:$C$87,0)+RIGHT($E206),0))\n/SUM(M$10:M$11)","v":0},{"$f":"IF(INDEX(PC_MAPPING,RIGHT($C197,1),MATCH($E$2,'Data by Building Type'!$D$22:$F$22,0))=\"Yes\",1,0)*\n(N$10*OFFSET('Efficiency Distributions'!$D$10,MATCH($C197,'Efficiency Distributions'!$C$9:$C$87,0)+RIGHT($E206),0)\n+N$11*OFFSET('Efficiency Distributions'!$E$10,MATCH($C197,'Efficiency Distributions'!$C$9:$C$87,0)+RIGHT($E206),0))\n/SUM(N$10:N$11)","v":0},{"$f":"IF(INDEX(PC_MAPPING,RIGHT($C197,1),MATCH($E$2,'Data by Building Type'!$D$22:$F$22,0))=\"Yes\",1,0)*\n(O$10*OFFSET('Efficiency Distributions'!$D$10,MATCH($C197,'Efficiency Distributions'!$C$9:$C$87,0)+RIGHT($E206),0)\n+O$11*OFFSET('Efficiency Distributions'!$E$10,MATCH($C197,'Efficiency Distributions'!$C$9:$C$87,0)+RIGHT($E206),0))\n/SUM(O$10:O$11)","v":0},{"$f":"IF(INDEX(PC_MAPPING,RIGHT($C197,1),MATCH($E$2,'Data by Building Type'!$D$22:$F$22,0))=\"Yes\",1,0)*\n(P$10*OFFSET('Efficiency Distributions'!$D$10,MATCH($C197,'Efficiency Distributions'!$C$9:$C$87,0)+RIGHT($E206),0)\n+P$11*OFFSET('Efficiency Distributions'!$E$10,MATCH($C197,'Efficiency Distributions'!$C$9:$C$87,0)+RIGHT($E206),0))\n/SUM(P$10:P$11)","v":0},{"$f":"IF(INDEX(PC_MAPPING,RIGHT($C197,1),MATCH($E$2,'Data by Building Type'!$D$22:$F$22,0))=\"Yes\",1,0)*\n(Q$10*OFFSET('Efficiency Distributions'!$D$10,MATCH($C197,'Efficiency Distributions'!$C$9:$C$87,0)+RIGHT($E206),0)\n+Q$11*OFFSET('Efficiency Distributions'!$E$10,MATCH($C197,'Efficiency Distributions'!$C$9:$C$87,0)+RIGHT($E206),0))\n/SUM(Q$10:Q$11)","v":0},{"$f":"IF(INDEX(PC_MAPPING,RIGHT($C197,1),MATCH($E$2,'Data by Building Type'!$D$22:$F$22,0))=\"Yes\",1,0)*\n(R$10*OFFSET('Efficiency Distributions'!$D$10,MATCH($C197,'Efficiency Distributions'!$C$9:$C$87,0)+RIGHT($E206),0)\n+R$11*OFFSET('Efficiency Distributions'!$E$10,MATCH($C197,'Efficiency Distributions'!$C$9:$C$87,0)+RIGHT($E206),0))\n/SUM(R$10:R$11)","v":0},{"$f":"IF(INDEX(PC_MAPPING,RIGHT($C197,1),MATCH($E$2,'Data by Building Type'!$D$22:$F$22,0))=\"Yes\",1,0)*\n(S$10*OFFSET('Efficiency Distributions'!$D$10,MATCH($C197,'Efficiency Distributions'!$C$9:$C$87,0)+RIGHT($E206),0)\n+S$11*OFFSET('Efficiency Distributions'!$E$10,MATCH($C197,'Efficiency Distributions'!$C$9:$C$87,0)+RIGHT($E206),0))\n/SUM(S$10:S$11)","v":0},{"$f":"IF(INDEX(PC_MAPPING,RIGHT($C197,1),MATCH($E$2,'Data by Building Type'!$D$22:$F$22,0))=\"Yes\",1,0)*\n(T$10*OFFSET('Efficiency Distributions'!$D$10,MATCH($C197,'Efficiency Distributions'!$C$9:$C$87,0)+RIGHT($E206),0)\n+T$11*OFFSET('Efficiency Distributions'!$E$10,MATCH($C197,'Efficiency Distributions'!$C$9:$C$87,0)+RIGHT($E206),0))\n/SUM(T$10:T$11)","v":0},{"$f":"IF(INDEX(PC_MAPPING,RIGHT($C197,1),MATCH($E$2,'Data by Building Type'!$D$22:$F$22,0))=\"Yes\",1,0)*\n(U$10*OFFSET('Efficiency Distributions'!$D$10,MATCH($C197,'Efficiency Distributions'!$C$9:$C$87,0)+RIGHT($E206),0)\n+U$11*OFFSET('Efficiency Distributions'!$E$10,MATCH($C197,'Efficiency Distributions'!$C$9:$C$87,0)+RIGHT($E206),0))\n/SUM(U$10:U$11)","v":0},{"$f":"IF(INDEX(PC_MAPPING,RIGHT($C197,1),MATCH($E$2,'Data by Building Type'!$D$22:$F$22,0))=\"Yes\",1,0)*\n(V$10*OFFSET('Efficiency Distributions'!$D$10,MATCH($C197,'Efficiency Distributions'!$C$9:$C$87,0)+RIGHT($E206),0)\n+V$11*OFFSET('Efficiency Distributions'!$E$10,MATCH($C197,'Efficiency Distributions'!$C$9:$C$87,0)+RIGHT($E206),0))\n/SUM(V$10:V$11)","v":0},{"$f":"IF(INDEX(PC_MAPPING,RIGHT($C197,1),MATCH($E$2,'Data by Building Type'!$D$22:$F$22,0))=\"Yes\",1,0)*\n(W$10*OFFSET('Efficiency Distributions'!$D$10,MATCH($C197,'Efficiency Distributions'!$C$9:$C$87,0)+RIGHT($E206),0)\n+W$11*OFFSET('Efficiency Distributions'!$E$10,MATCH($C197,'Efficiency Distributions'!$C$9:$C$87,0)+RIGHT($E206),0))\n/SUM(W$10:W$11)","v":0},{"$f":"IF(INDEX(PC_MAPPING,RIGHT($C197,1),MATCH($E$2,'Data by Building Type'!$D$22:$F$22,0))=\"Yes\",1,0)*\n(X$10*OFFSET('Efficiency Distributions'!$D$10,MATCH($C197,'Efficiency Distributions'!$C$9:$C$87,0)+RIGHT($E206),0)\n+X$11*OFFSET('Efficiency Distributions'!$E$10,MATCH($C197,'Efficiency Distributions'!$C$9:$C$87,0)+RIGHT($E206),0))\n/SUM(X$10:X$11)","v":0},{"$f":"IF(INDEX(PC_MAPPING,RIGHT($C197,1),MATCH($E$2,'Data by Building Type'!$D$22:$F$22,0))=\"Yes\",1,0)*\n(Y$10*OFFSET('Efficiency Distributions'!$D$10,MATCH($C197,'Efficiency Distributions'!$C$9:$C$87,0)+RIGHT($E206),0)\n+Y$11*OFFSET('Efficiency Distributions'!$E$10,MATCH($C197,'Efficiency Distributions'!$C$9:$C$87,0)+RIGHT($E206),0))\n/SUM(Y$10:Y$11)","v":0},{"$f":"IF(INDEX(PC_MAPPING,RIGHT($C197,1),MATCH($E$2,'Data by Building Type'!$D$22:$F$22,0))=\"Yes\",1,0)*\n(Z$10*OFFSET('Efficiency Distributions'!$D$10,MATCH($C197,'Efficiency Distributions'!$C$9:$C$87,0)+RIGHT($E206),0)\n+Z$11*OFFSET('Efficiency Distributions'!$E$10,MATCH($C197,'Efficiency Distributions'!$C$9:$C$87,0)+RIGHT($E206),0))\n/SUM(Z$10:Z$11)","v":0},{"$f":"IF(INDEX(PC_MAPPING,RIGHT($C197,1),MATCH($E$2,'Data by Building Type'!$D$22:$F$22,0))=\"Yes\",1,0)*\n(AA$10*OFFSET('Efficiency Distributions'!$D$10,MATCH($C197,'Efficiency Distributions'!$C$9:$C$87,0)+RIGHT($E206),0)\n+AA$11*OFFSET('Efficiency Distributions'!$E$10,MATCH($C197,'Efficiency Distributions'!$C$9:$C$87,0)+RIGHT($E206),0))\n/SUM(AA$10:AA$11)","v":0},{"$f":"IF(INDEX(PC_MAPPING,RIGHT($C197,1),MATCH($E$2,'Data by Building Type'!$D$22:$F$22,0))=\"Yes\",1,0)*\n(AB$10*OFFSET('Efficiency Distributions'!$D$10,MATCH($C197,'Efficiency Distributions'!$C$9:$C$87,0)+RIGHT($E206),0)\n+AB$11*OFFSET('Efficiency Distributions'!$E$10,MATCH($C197,'Efficiency Distributions'!$C$9:$C$87,0)+RIGHT($E206),0))\n/SUM(AB$10:AB$11)","v":0},{"$f":"IF(INDEX(PC_MAPPING,RIGHT($C197,1),MATCH($E$2,'Data by Building Type'!$D$22:$F$22,0))=\"Yes\",1,0)*\n(AC$10*OFFSET('Efficiency Distributions'!$D$10,MATCH($C197,'Efficiency Distributions'!$C$9:$C$87,0)+RIGHT($E206),0)\n+AC$11*OFFSET('Efficiency Distributions'!$E$10,MATCH($C197,'Efficiency Distributions'!$C$9:$C$87,0)+RIGHT($E206),0))\n/SUM(AC$10:AC$11)","v":0},{"$f":"IF(INDEX(PC_MAPPING,RIGHT($C197,1),MATCH($E$2,'Data by Building Type'!$D$22:$F$22,0))=\"Yes\",1,0)*\n(AD$10*OFFSET('Efficiency Distributions'!$D$10,MATCH($C197,'Efficiency Distributions'!$C$9:$C$87,0)+RIGHT($E206),0)\n+AD$11*OFFSET('Efficiency Distributions'!$E$10,MATCH($C197,'Efficiency Distributions'!$C$9:$C$87,0)+RIGHT($E206),0))\n/SUM(AD$10:AD$11)","v":0},{"$f":"IF(INDEX(PC_MAPPING,RIGHT($C197,1),MATCH($E$2,'Data by Building Type'!$D$22:$F$22,0))=\"Yes\",1,0)*\n(AE$10*OFFSET('Efficiency Distributions'!$D$10,MATCH($C197,'Efficiency Distributions'!$C$9:$C$87,0)+RIGHT($E206),0)\n+AE$11*OFFSET('Efficiency Distributions'!$E$10,MATCH($C197,'Efficiency Distributions'!$C$9:$C$87,0)+RIGHT($E206),0))\n/SUM(AE$10:AE$11)","v":0},{"$f":"IF(INDEX(PC_MAPPING,RIGHT($C197,1),MATCH($E$2,'Data by Building Type'!$D$22:$F$22,0))=\"Yes\",1,0)*\n(AF$10*OFFSET('Efficiency Distributions'!$D$10,MATCH($C197,'Efficiency Distributions'!$C$9:$C$87,0)+RIGHT($E206),0)\n+AF$11*OFFSET('Efficiency Distributions'!$E$10,MATCH($C197,'Efficiency Distributions'!$C$9:$C$87,0)+RIGHT($E206),0))\n/SUM(AF$10:AF$11)","v":0},{"$f":"IF(INDEX(PC_MAPPING,RIGHT($C197,1),MATCH($E$2,'Data by Building Type'!$D$22:$F$22,0))=\"Yes\",1,0)*\n(AG$10*OFFSET('Efficiency Distributions'!$D$10,MATCH($C197,'Efficiency Distributions'!$C$9:$C$87,0)+RIGHT($E206),0)\n+AG$11*OFFSET('Efficiency Distributions'!$E$10,MATCH($C197,'Efficiency Distributions'!$C$9:$C$87,0)+RIGHT($E206),0))\n/SUM(AG$10:AG$11)","v":0},{"$f":"IF(INDEX(PC_MAPPING,RIGHT($C197,1),MATCH($E$2,'Data by Building Type'!$D$22:$F$22,0))=\"Yes\",1,0)*\n(AH$10*OFFSET('Efficiency Distributions'!$D$10,MATCH($C197,'Efficiency Distributions'!$C$9:$C$87,0)+RIGHT($E206),0)\n+AH$11*OFFSET('Efficiency Distributions'!$E$10,MATCH($C197,'Efficiency Distributions'!$C$9:$C$87,0)+RIGHT($E206),0))\n/SUM(AH$10:AH$11)","v":0},{"$f":"IF(INDEX(PC_MAPPING,RIGHT($C197,1),MATCH($E$2,'Data by Building Type'!$D$22:$F$22,0))=\"Yes\",1,0)*\n(AI$10*OFFSET('Efficiency Distributions'!$D$10,MATCH($C197,'Efficiency Distributions'!$C$9:$C$87,0)+RIGHT($E206),0)\n+AI$11*OFFSET('Efficiency Distributions'!$E$10,MATCH($C197,'Efficiency Distributions'!$C$9:$C$87,0)+RIGHT($E206),0))\n/SUM(AI$10:AI$11)","v":0},{"$f":"IF(INDEX(PC_MAPPING,RIGHT($C197,1),MATCH($E$2,'Data by Building Type'!$D$22:$F$22,0))=\"Yes\",1,0)*\n(AJ$10*OFFSET('Efficiency Distributions'!$D$10,MATCH($C197,'Efficiency Distributions'!$C$9:$C$87,0)+RIGHT($E206),0)\n+AJ$11*OFFSET('Efficiency Distributions'!$E$10,MATCH($C197,'Efficiency Distributions'!$C$9:$C$87,0)+RIGHT($E206),0))\n/SUM(AJ$10:AJ$11)","v":0},{"$f":"IF(INDEX(PC_MAPPING,RIGHT($C197,1),MATCH($E$2,'Data by Building Type'!$D$22:$F$22,0))=\"Yes\",1,0)*\n(AK$10*OFFSET('Efficiency Distributions'!$D$10,MATCH($C197,'Efficiency Distributions'!$C$9:$C$87,0)+RIGHT($E206),0)\n+AK$11*OFFSET('Efficiency Distributions'!$E$10,MATCH($C197,'Efficiency Distributions'!$C$9:$C$87,0)+RIGHT($E206),0))\n/SUM(AK$10:AK$11)","v":0},{"$f":"IF(INDEX(PC_MAPPING,RIGHT($C197,1),MATCH($E$2,'Data by Building Type'!$D$22:$F$22,0))=\"Yes\",1,0)*\n(AL$10*OFFSET('Efficiency Distributions'!$D$10,MATCH($C197,'Efficiency Distributions'!$C$9:$C$87,0)+RIGHT($E206),0)\n+AL$11*OFFSET('Efficiency Distributions'!$E$10,MATCH($C197,'Efficiency Distributions'!$C$9:$C$87,0)+RIGHT($E206),0))\n/SUM(AL$10:AL$11)","v":0},{"$f":"IF(INDEX(PC_MAPPING,RIGHT($C197,1),MATCH($E$2,'Data by Building Type'!$D$22:$F$22,0))=\"Yes\",1,0)*\n(AM$10*OFFSET('Efficiency Distributions'!$D$10,MATCH($C197,'Efficiency Distributions'!$C$9:$C$87,0)+RIGHT($E206),0)\n+AM$11*OFFSET('Efficiency Distributions'!$E$10,MATCH($C197,'Efficiency Distributions'!$C$9:$C$87,0)+RIGHT($E206),0))\n/SUM(AM$10:AM$11)","v":0},{"$f":"IF(INDEX(PC_MAPPING,RIGHT($C197,1),MATCH($E$2,'Data by Building Type'!$D$22:$F$22,0))=\"Yes\",1,0)*\n(AN$10*OFFSET('Efficiency Distributions'!$D$10,MATCH($C197,'Efficiency Distributions'!$C$9:$C$87,0)+RIGHT($E206),0)\n+AN$11*OFFSET('Efficiency Distributions'!$E$10,MATCH($C197,'Efficiency Distributions'!$C$9:$C$87,0)+RIGHT($E206),0))\n/SUM(AN$10:AN$11)","v":0},{"$f":"IF(INDEX(PC_MAPPING,RIGHT($C197,1),MATCH($E$2,'Data by Building Type'!$D$22:$F$22,0))=\"Yes\",1,0)*\n(AO$10*OFFSET('Efficiency Distributions'!$D$10,MATCH($C197,'Efficiency Distributions'!$C$9:$C$87,0)+RIGHT($E206),0)\n+AO$11*OFFSET('Efficiency Distributions'!$E$10,MATCH($C197,'Efficiency Distributions'!$C$9:$C$87,0)+RIGHT($E206),0))\n/SUM(AO$10:AO$11)","v":0},{"$f":"IF(INDEX(PC_MAPPING,RIGHT($C197,1),MATCH($E$2,'Data by Building Type'!$D$22:$F$22,0))=\"Yes\",1,0)*\n(AP$10*OFFSET('Efficiency Distributions'!$D$10,MATCH($C197,'Efficiency Distributions'!$C$9:$C$87,0)+RIGHT($E206),0)\n+AP$11*OFFSET('Efficiency Distributions'!$E$10,MATCH($C197,'Efficiency Distributions'!$C$9:$C$87,0)+RIGHT($E206),0))\n/SUM(AP$10:AP$11)","v":0},{"$f":"IF(INDEX(PC_MAPPING,RIGHT($C197,1),MATCH($E$2,'Data by Building Type'!$D$22:$F$22,0))=\"Yes\",1,0)*\n(AQ$10*OFFSET('Efficiency Distributions'!$D$10,MATCH($C197,'Efficiency Distributions'!$C$9:$C$87,0)+RIGHT($E206),0)\n+AQ$11*OFFSET('Efficiency Distributions'!$E$10,MATCH($C197,'Efficiency Distributions'!$C$9:$C$87,0)+RIGHT($E206),0))\n/SUM(AQ$10:AQ$11)","v":0},{"$f":"IF(INDEX(PC_MAPPING,RIGHT($C197,1),MATCH($E$2,'Data by Building Type'!$D$22:$F$22,0))=\"Yes\",1,0)*\n(AR$10*OFFSET('Efficiency Distributions'!$D$10,MATCH($C197,'Efficiency Distributions'!$C$9:$C$87,0)+RIGHT($E206),0)\n+AR$11*OFFSET('Efficiency Distributions'!$E$10,MATCH($C197,'Efficiency Distributions'!$C$9:$C$87,0)+RIGHT($E206),0))\n/SUM(AR$10:AR$11)","v":0},{"$f":"IF(INDEX(PC_MAPPING,RIGHT($C197,1),MATCH($E$2,'Data by Building Type'!$D$22:$F$22,0))=\"Yes\",1,0)*\n(AS$10*OFFSET('Efficiency Distributions'!$D$10,MATCH($C197,'Efficiency Distributions'!$C$9:$C$87,0)+RIGHT($E206),0)\n+AS$11*OFFSET('Efficiency Distributions'!$E$10,MATCH($C197,'Efficiency Distributions'!$C$9:$C$87,0)+RIGHT($E206),0))\n/SUM(AS$10:AS$11)","v":0},{"$f":"IF(INDEX(PC_MAPPING,RIGHT($C197,1),MATCH($E$2,'Data by Building Type'!$D$22:$F$22,0))=\"Yes\",1,0)*\n(AT$10*OFFSET('Efficiency Distributions'!$D$10,MATCH($C197,'Efficiency Distributions'!$C$9:$C$87,0)+RIGHT($E206),0)\n+AT$11*OFFSET('Efficiency Distributions'!$E$10,MATCH($C197,'Efficiency Distributions'!$C$9:$C$87,0)+RIGHT($E206),0))\n/SUM(AT$10:AT$11)","v":0},{"$f":"IF(INDEX(PC_MAPPING,RIGHT($C197,1),MATCH($E$2,'Data by Building Type'!$D$22:$F$22,0))=\"Yes\",1,0)*\n(AU$10*OFFSET('Efficiency Distributions'!$D$10,MATCH($C197,'Efficiency Distributions'!$C$9:$C$87,0)+RIGHT($E206),0)\n+AU$11*OFFSET('Efficiency Distributions'!$E$10,MATCH($C197,'Efficiency Distributions'!$C$9:$C$87,0)+RIGHT($E206),0))\n/SUM(AU$10:AU$11)","v":0},{"$f":"IF(INDEX(PC_MAPPING,RIGHT($C197,1),MATCH($E$2,'Data by Building Type'!$D$22:$F$22,0))=\"Yes\",1,0)*\n(AV$10*OFFSET('Efficiency Distributions'!$D$10,MATCH($C197,'Efficiency Distributions'!$C$9:$C$87,0)+RIGHT($E206),0)\n+AV$11*OFFSET('Efficiency Distributions'!$E$10,MATCH($C197,'Efficiency Distributions'!$C$9:$C$87,0)+RIGHT($E206),0))\n/SUM(AV$10:AV$11)","v":0},{"$f":"IF(INDEX(PC_MAPPING,RIGHT($C197,1),MATCH($E$2,'Data by Building Type'!$D$22:$F$22,0))=\"Yes\",1,0)*\n(AW$10*OFFSET('Efficiency Distributions'!$D$10,MATCH($C197,'Efficiency Distributions'!$C$9:$C$87,0)+RIGHT($E206),0)\n+AW$11*OFFSET('Efficiency Distributions'!$E$10,MATCH($C197,'Efficiency Distributions'!$C$9:$C$87,0)+RIGHT($E206),0))\n/SUM(AW$10:AW$11)","v":0},{"$f":"IF(INDEX(PC_MAPPING,RIGHT($C197,1),MATCH($E$2,'Data by Building Type'!$D$22:$F$22,0))=\"Yes\",1,0)*\n(AX$10*OFFSET('Efficiency Distributions'!$D$10,MATCH($C197,'Efficiency Distributions'!$C$9:$C$87,0)+RIGHT($E206),0)\n+AX$11*OFFSET('Efficiency Distributions'!$E$10,MATCH($C197,'Efficiency Distributions'!$C$9:$C$87,0)+RIGHT($E206),0))\n/SUM(AX$10:AX$11)","v":0},{"$f":"IF(INDEX(PC_MAPPING,RIGHT($C197,1),MATCH($E$2,'Data by Building Type'!$D$22:$F$22,0))=\"Yes\",1,0)*\n(AY$10*OFFSET('Efficiency Distributions'!$D$10,MATCH($C197,'Efficiency Distributions'!$C$9:$C$87,0)+RIGHT($E206),0)\n+AY$11*OFFSET('Efficiency Distributions'!$E$10,MATCH($C197,'Efficiency Distributions'!$C$9:$C$87,0)+RIGHT($E206),0))\n/SUM(AY$10:AY$11)","v":0},{"$f":"IF(INDEX(PC_MAPPING,RIGHT($C197,1),MATCH($E$2,'Data by Building Type'!$D$22:$F$22,0))=\"Yes\",1,0)*\n(AZ$10*OFFSET('Efficiency Distributions'!$D$10,MATCH($C197,'Efficiency Distributions'!$C$9:$C$87,0)+RIGHT($E206),0)\n+AZ$11*OFFSET('Efficiency Distributions'!$E$10,MATCH($C197,'Efficiency Distributions'!$C$9:$C$87,0)+RIGHT($E206),0))\n/SUM(AZ$10:AZ$11)","v":0},{"$f":"IF(INDEX(PC_MAPPING,RIGHT($C197,1),MATCH($E$2,'Data by Building Type'!$D$22:$F$22,0))=\"Yes\",1,0)*\n(BA$10*OFFSET('Efficiency Distributions'!$D$10,MATCH($C197,'Efficiency Distributions'!$C$9:$C$87,0)+RIGHT($E206),0)\n+BA$11*OFFSET('Efficiency Distributions'!$E$10,MATCH($C197,'Efficiency Distributions'!$C$9:$C$87,0)+RIGHT($E206),0))\n/SUM(BA$10:BA$11)","v":0},{"$f":"IF(INDEX(PC_MAPPING,RIGHT($C197,1),MATCH($E$2,'Data by Building Type'!$D$22:$F$22,0))=\"Yes\",1,0)*\n(BB$10*OFFSET('Efficiency Distributions'!$D$10,MATCH($C197,'Efficiency Distributions'!$C$9:$C$87,0)+RIGHT($E206),0)\n+BB$11*OFFSET('Efficiency Distributions'!$E$10,MATCH($C197,'Efficiency Distributions'!$C$9:$C$87,0)+RIGHT($E206),0))\n/SUM(BB$10:BB$11)","v":0},{"$f":"IF(INDEX(PC_MAPPING,RIGHT($C197,1),MATCH($E$2,'Data by Building Type'!$D$22:$F$22,0))=\"Yes\",1,0)*\n(BC$10*OFFSET('Efficiency Distributions'!$D$10,MATCH($C197,'Efficiency Distributions'!$C$9:$C$87,0)+RIGHT($E206),0)\n+BC$11*OFFSET('Efficiency Distributions'!$E$10,MATCH($C197,'Efficiency Distributions'!$C$9:$C$87,0)+RIGHT($E206),0))\n/SUM(BC$10:BC$11)","v":0},{"$f":"IF(INDEX(PC_MAPPING,RIGHT($C197,1),MATCH($E$2,'Data by Building Type'!$D$22:$F$22,0))=\"Yes\",1,0)*\n(BD$10*OFFSET('Efficiency Distributions'!$D$10,MATCH($C197,'Efficiency Distributions'!$C$9:$C$87,0)+RIGHT($E206),0)\n+BD$11*OFFSET('Efficiency Distributions'!$E$10,MATCH($C197,'Efficiency Distributions'!$C$9:$C$87,0)+RIGHT($E206),0))\n/SUM(BD$10:BD$11)","v":0},{"$f":"IF(INDEX(PC_MAPPING,RIGHT($C197,1),MATCH($E$2,'Data by Building Type'!$D$22:$F$22,0))=\"Yes\",1,0)*\n(BE$10*OFFSET('Efficiency Distributions'!$D$10,MATCH($C197,'Efficiency Distributions'!$C$9:$C$87,0)+RIGHT($E206),0)\n+BE$11*OFFSET('Efficiency Distributions'!$E$10,MATCH($C197,'Efficiency Distributions'!$C$9:$C$87,0)+RIGHT($E206),0))\n/SUM(BE$10:BE$11)","v":0},{"$f":"IF(INDEX(PC_MAPPING,RIGHT($C197,1),MATCH($E$2,'Data by Building Type'!$D$22:$F$22,0))=\"Yes\",1,0)*\n(BF$10*OFFSET('Efficiency Distributions'!$D$10,MATCH($C197,'Efficiency Distributions'!$C$9:$C$87,0)+RIGHT($E206),0)\n+BF$11*OFFSET('Efficiency Distributions'!$E$10,MATCH($C197,'Efficiency Distributions'!$C$9:$C$87,0)+RIGHT($E206),0))\n/SUM(BF$10:BF$11)","v":0},{"$f":"IF(INDEX(PC_MAPPING,RIGHT($C197,1),MATCH($E$2,'Data by Building Type'!$D$22:$F$22,0))=\"Yes\",1,0)*\n(BG$10*OFFSET('Efficiency Distributions'!$D$10,MATCH($C197,'Efficiency Distributions'!$C$9:$C$87,0)+RIGHT($E206),0)\n+BG$11*OFFSET('Efficiency Distributions'!$E$10,MATCH($C197,'Efficiency Distributions'!$C$9:$C$87,0)+RIGHT($E206),0))\n/SUM(BG$10:BG$11)","v":0}]
[null,null,null,null,"EL6",{"$f":"IF(INDEX(PC_MAPPING,RIGHT($C197,1),MATCH($E$2,'Data by Building Type'!$D$22:$F$22,0))=\"Yes\",1,0)*\n(F$10*OFFSET('Efficiency Distributions'!$D$10,MATCH($C197,'Efficiency Distributions'!$C$9:$C$87,0)+RIGHT($E207),0)\n+F$11*OFFSET('Efficiency Distributions'!$E$10,MATCH($C197,'Efficiency Distributions'!$C$9:$C$87,0)+RIGHT($E207),0))\n/SUM(F$10:F$11)","v":0},{"$f":"IF(INDEX(PC_MAPPING,RIGHT($C197,1),MATCH($E$2,'Data by Building Type'!$D$22:$F$22,0))=\"Yes\",1,0)*\n(G$10*OFFSET('Efficiency Distributions'!$D$10,MATCH($C197,'Efficiency Distributions'!$C$9:$C$87,0)+RIGHT($E207),0)\n+G$11*OFFSET('Efficiency Distributions'!$E$10,MATCH($C197,'Efficiency Distributions'!$C$9:$C$87,0)+RIGHT($E207),0))\n/SUM(G$10:G$11)","v":0},{"$f":"IF(INDEX(PC_MAPPING,RIGHT($C197,1),MATCH($E$2,'Data by Building Type'!$D$22:$F$22,0))=\"Yes\",1,0)*\n(H$10*OFFSET('Efficiency Distributions'!$D$10,MATCH($C197,'Efficiency Distributions'!$C$9:$C$87,0)+RIGHT($E207),0)\n+H$11*OFFSET('Efficiency Distributions'!$E$10,MATCH($C197,'Efficiency Distributions'!$C$9:$C$87,0)+RIGHT($E207),0))\n/SUM(H$10:H$11)","v":0},{"$f":"IF(INDEX(PC_MAPPING,RIGHT($C197,1),MATCH($E$2,'Data by Building Type'!$D$22:$F$22,0))=\"Yes\",1,0)*\n(I$10*OFFSET('Efficiency Distributions'!$D$10,MATCH($C197,'Efficiency Distributions'!$C$9:$C$87,0)+RIGHT($E207),0)\n+I$11*OFFSET('Efficiency Distributions'!$E$10,MATCH($C197,'Efficiency Distributions'!$C$9:$C$87,0)+RIGHT($E207),0))\n/SUM(I$10:I$11)","v":0},{"$f":"IF(INDEX(PC_MAPPING,RIGHT($C197,1),MATCH($E$2,'Data by Building Type'!$D$22:$F$22,0))=\"Yes\",1,0)*\n(J$10*OFFSET('Efficiency Distributions'!$D$10,MATCH($C197,'Efficiency Distributions'!$C$9:$C$87,0)+RIGHT($E207),0)\n+J$11*OFFSET('Efficiency Distributions'!$E$10,MATCH($C197,'Efficiency Distributions'!$C$9:$C$87,0)+RIGHT($E207),0))\n/SUM(J$10:J$11)","v":0},{"$f":"IF(INDEX(PC_MAPPING,RIGHT($C197,1),MATCH($E$2,'Data by Building Type'!$D$22:$F$22,0))=\"Yes\",1,0)*\n(K$10*OFFSET('Efficiency Distributions'!$D$10,MATCH($C197,'Efficiency Distributions'!$C$9:$C$87,0)+RIGHT($E207),0)\n+K$11*OFFSET('Efficiency Distributions'!$E$10,MATCH($C197,'Efficiency Distributions'!$C$9:$C$87,0)+RIGHT($E207),0))\n/SUM(K$10:K$11)","v":0},{"$f":"IF(INDEX(PC_MAPPING,RIGHT($C197,1),MATCH($E$2,'Data by Building Type'!$D$22:$F$22,0))=\"Yes\",1,0)*\n(L$10*OFFSET('Efficiency Distributions'!$D$10,MATCH($C197,'Efficiency Distributions'!$C$9:$C$87,0)+RIGHT($E207),0)\n+L$11*OFFSET('Efficiency Distributions'!$E$10,MATCH($C197,'Efficiency Distributions'!$C$9:$C$87,0)+RIGHT($E207),0))\n/SUM(L$10:L$11)","v":0},{"$f":"IF(INDEX(PC_MAPPING,RIGHT($C197,1),MATCH($E$2,'Data by Building Type'!$D$22:$F$22,0))=\"Yes\",1,0)*\n(M$10*OFFSET('Efficiency Distributions'!$D$10,MATCH($C197,'Efficiency Distributions'!$C$9:$C$87,0)+RIGHT($E207),0)\n+M$11*OFFSET('Efficiency Distributions'!$E$10,MATCH($C197,'Efficiency Distributions'!$C$9:$C$87,0)+RIGHT($E207),0))\n/SUM(M$10:M$11)","v":0},{"$f":"IF(INDEX(PC_MAPPING,RIGHT($C197,1),MATCH($E$2,'Data by Building Type'!$D$22:$F$22,0))=\"Yes\",1,0)*\n(N$10*OFFSET('Efficiency Distributions'!$D$10,MATCH($C197,'Efficiency Distributions'!$C$9:$C$87,0)+RIGHT($E207),0)\n+N$11*OFFSET('Efficiency Distributions'!$E$10,MATCH($C197,'Efficiency Distributions'!$C$9:$C$87,0)+RIGHT($E207),0))\n/SUM(N$10:N$11)","v":0},{"$f":"IF(INDEX(PC_MAPPING,RIGHT($C197,1),MATCH($E$2,'Data by Building Type'!$D$22:$F$22,0))=\"Yes\",1,0)*\n(O$10*OFFSET('Efficiency Distributions'!$D$10,MATCH($C197,'Efficiency Distributions'!$C$9:$C$87,0)+RIGHT($E207),0)\n+O$11*OFFSET('Efficiency Distributions'!$E$10,MATCH($C197,'Efficiency Distributions'!$C$9:$C$87,0)+RIGHT($E207),0))\n/SUM(O$10:O$11)","v":0},{"$f":"IF(INDEX(PC_MAPPING,RIGHT($C197,1),MATCH($E$2,'Data by Building Type'!$D$22:$F$22,0))=\"Yes\",1,0)*\n(P$10*OFFSET('Efficiency Distributions'!$D$10,MATCH($C197,'Efficiency Distributions'!$C$9:$C$87,0)+RIGHT($E207),0)\n+P$11*OFFSET('Efficiency Distributions'!$E$10,MATCH($C197,'Efficiency Distributions'!$C$9:$C$87,0)+RIGHT($E207),0))\n/SUM(P$10:P$11)","v":0},{"$f":"IF(INDEX(PC_MAPPING,RIGHT($C197,1),MATCH($E$2,'Data by Building Type'!$D$22:$F$22,0))=\"Yes\",1,0)*\n(Q$10*OFFSET('Efficiency Distributions'!$D$10,MATCH($C197,'Efficiency Distributions'!$C$9:$C$87,0)+RIGHT($E207),0)\n+Q$11*OFFSET('Efficiency Distributions'!$E$10,MATCH($C197,'Efficiency Distributions'!$C$9:$C$87,0)+RIGHT($E207),0))\n/SUM(Q$10:Q$11)","v":0},{"$f":"IF(INDEX(PC_MAPPING,RIGHT($C197,1),MATCH($E$2,'Data by Building Type'!$D$22:$F$22,0))=\"Yes\",1,0)*\n(R$10*OFFSET('Efficiency Distributions'!$D$10,MATCH($C197,'Efficiency Distributions'!$C$9:$C$87,0)+RIGHT($E207),0)\n+R$11*OFFSET('Efficiency Distributions'!$E$10,MATCH($C197,'Efficiency Distributions'!$C$9:$C$87,0)+RIGHT($E207),0))\n/SUM(R$10:R$11)","v":0},{"$f":"IF(INDEX(PC_MAPPING,RIGHT($C197,1),MATCH($E$2,'Data by Building Type'!$D$22:$F$22,0))=\"Yes\",1,0)*\n(S$10*OFFSET('Efficiency Distributions'!$D$10,MATCH($C197,'Efficiency Distributions'!$C$9:$C$87,0)+RIGHT($E207),0)\n+S$11*OFFSET('Efficiency Distributions'!$E$10,MATCH($C197,'Efficiency Distributions'!$C$9:$C$87,0)+RIGHT($E207),0))\n/SUM(S$10:S$11)","v":0},{"$f":"IF(INDEX(PC_MAPPING,RIGHT($C197,1),MATCH($E$2,'Data by Building Type'!$D$22:$F$22,0))=\"Yes\",1,0)*\n(T$10*OFFSET('Efficiency Distributions'!$D$10,MATCH($C197,'Efficiency Distributions'!$C$9:$C$87,0)+RIGHT($E207),0)\n+T$11*OFFSET('Efficiency Distributions'!$E$10,MATCH($C197,'Efficiency Distributions'!$C$9:$C$87,0)+RIGHT($E207),0))\n/SUM(T$10:T$11)","v":0},{"$f":"IF(INDEX(PC_MAPPING,RIGHT($C197,1),MATCH($E$2,'Data by Building Type'!$D$22:$F$22,0))=\"Yes\",1,0)*\n(U$10*OFFSET('Efficiency Distributions'!$D$10,MATCH($C197,'Efficiency Distributions'!$C$9:$C$87,0)+RIGHT($E207),0)\n+U$11*OFFSET('Efficiency Distributions'!$E$10,MATCH($C197,'Efficiency Distributions'!$C$9:$C$87,0)+RIGHT($E207),0))\n/SUM(U$10:U$11)","v":0},{"$f":"IF(INDEX(PC_MAPPING,RIGHT($C197,1),MATCH($E$2,'Data by Building Type'!$D$22:$F$22,0))=\"Yes\",1,0)*\n(V$10*OFFSET('Efficiency Distributions'!$D$10,MATCH($C197,'Efficiency Distributions'!$C$9:$C$87,0)+RIGHT($E207),0)\n+V$11*OFFSET('Efficiency Distributions'!$E$10,MATCH($C197,'Efficiency Distributions'!$C$9:$C$87,0)+RIGHT($E207),0))\n/SUM(V$10:V$11)","v":0},{"$f":"IF(INDEX(PC_MAPPING,RIGHT($C197,1),MATCH($E$2,'Data by Building Type'!$D$22:$F$22,0))=\"Yes\",1,0)*\n(W$10*OFFSET('Efficiency Distributions'!$D$10,MATCH($C197,'Efficiency Distributions'!$C$9:$C$87,0)+RIGHT($E207),0)\n+W$11*OFFSET('Efficiency Distributions'!$E$10,MATCH($C197,'Efficiency Distributions'!$C$9:$C$87,0)+RIGHT($E207),0))\n/SUM(W$10:W$11)","v":0},{"$f":"IF(INDEX(PC_MAPPING,RIGHT($C197,1),MATCH($E$2,'Data by Building Type'!$D$22:$F$22,0))=\"Yes\",1,0)*\n(X$10*OFFSET('Efficiency Distributions'!$D$10,MATCH($C197,'Efficiency Distributions'!$C$9:$C$87,0)+RIGHT($E207),0)\n+X$11*OFFSET('Efficiency Distributions'!$E$10,MATCH($C197,'Efficiency Distributions'!$C$9:$C$87,0)+RIGHT($E207),0))\n/SUM(X$10:X$11)","v":0},{"$f":"IF(INDEX(PC_MAPPING,RIGHT($C197,1),MATCH($E$2,'Data by Building Type'!$D$22:$F$22,0))=\"Yes\",1,0)*\n(Y$10*OFFSET('Efficiency Distributions'!$D$10,MATCH($C197,'Efficiency Distributions'!$C$9:$C$87,0)+RIGHT($E207),0)\n+Y$11*OFFSET('Efficiency Distributions'!$E$10,MATCH($C197,'Efficiency Distributions'!$C$9:$C$87,0)+RIGHT($E207),0))\n/SUM(Y$10:Y$11)","v":0},{"$f":"IF(INDEX(PC_MAPPING,RIGHT($C197,1),MATCH($E$2,'Data by Building Type'!$D$22:$F$22,0))=\"Yes\",1,0)*\n(Z$10*OFFSET('Efficiency Distributions'!$D$10,MATCH($C197,'Efficiency Distributions'!$C$9:$C$87,0)+RIGHT($E207),0)\n+Z$11*OFFSET('Efficiency Distributions'!$E$10,MATCH($C197,'Efficiency Distributions'!$C$9:$C$87,0)+RIGHT($E207),0))\n/SUM(Z$10:Z$11)","v":0},{"$f":"IF(INDEX(PC_MAPPING,RIGHT($C197,1),MATCH($E$2,'Data by Building Type'!$D$22:$F$22,0))=\"Yes\",1,0)*\n(AA$10*OFFSET('Efficiency Distributions'!$D$10,MATCH($C197,'Efficiency Distributions'!$C$9:$C$87,0)+RIGHT($E207),0)\n+AA$11*OFFSET('Efficiency Distributions'!$E$10,MATCH($C197,'Efficiency Distributions'!$C$9:$C$87,0)+RIGHT($E207),0))\n/SUM(AA$10:AA$11)","v":0},{"$f":"IF(INDEX(PC_MAPPING,RIGHT($C197,1),MATCH($E$2,'Data by Building Type'!$D$22:$F$22,0))=\"Yes\",1,0)*\n(AB$10*OFFSET('Efficiency Distributions'!$D$10,MATCH($C197,'Efficiency Distributions'!$C$9:$C$87,0)+RIGHT($E207),0)\n+AB$11*OFFSET('Efficiency Distributions'!$E$10,MATCH($C197,'Efficiency Distributions'!$C$9:$C$87,0)+RIGHT($E207),0))\n/SUM(AB$10:AB$11)","v":0},{"$f":"IF(INDEX(PC_MAPPING,RIGHT($C197,1),MATCH($E$2,'Data by Building Type'!$D$22:$F$22,0))=\"Yes\",1,0)*\n(AC$10*OFFSET('Efficiency Distributions'!$D$10,MATCH($C197,'Efficiency Distributions'!$C$9:$C$87,0)+RIGHT($E207),0)\n+AC$11*OFFSET('Efficiency Distributions'!$E$10,MATCH($C197,'Efficiency Distributions'!$C$9:$C$87,0)+RIGHT($E207),0))\n/SUM(AC$10:AC$11)","v":0},{"$f":"IF(INDEX(PC_MAPPING,RIGHT($C197,1),MATCH($E$2,'Data by Building Type'!$D$22:$F$22,0))=\"Yes\",1,0)*\n(AD$10*OFFSET('Efficiency Distributions'!$D$10,MATCH($C197,'Efficiency Distributions'!$C$9:$C$87,0)+RIGHT($E207),0)\n+AD$11*OFFSET('Efficiency Distributions'!$E$10,MATCH($C197,'Efficiency Distributions'!$C$9:$C$87,0)+RIGHT($E207),0))\n/SUM(AD$10:AD$11)","v":0},{"$f":"IF(INDEX(PC_MAPPING,RIGHT($C197,1),MATCH($E$2,'Data by Building Type'!$D$22:$F$22,0))=\"Yes\",1,0)*\n(AE$10*OFFSET('Efficiency Distributions'!$D$10,MATCH($C197,'Efficiency Distributions'!$C$9:$C$87,0)+RIGHT($E207),0)\n+AE$11*OFFSET('Efficiency Distributions'!$E$10,MATCH($C197,'Efficiency Distributions'!$C$9:$C$87,0)+RIGHT($E207),0))\n/SUM(AE$10:AE$11)","v":0},{"$f":"IF(INDEX(PC_MAPPING,RIGHT($C197,1),MATCH($E$2,'Data by Building Type'!$D$22:$F$22,0))=\"Yes\",1,0)*\n(AF$10*OFFSET('Efficiency Distributions'!$D$10,MATCH($C197,'Efficiency Distributions'!$C$9:$C$87,0)+RIGHT($E207),0)\n+AF$11*OFFSET('Efficiency Distributions'!$E$10,MATCH($C197,'Efficiency Distributions'!$C$9:$C$87,0)+RIGHT($E207),0))\n/SUM(AF$10:AF$11)","v":0},{"$f":"IF(INDEX(PC_MAPPING,RIGHT($C197,1),MATCH($E$2,'Data by Building Type'!$D$22:$F$22,0))=\"Yes\",1,0)*\n(AG$10*OFFSET('Efficiency Distributions'!$D$10,MATCH($C197,'Efficiency Distributions'!$C$9:$C$87,0)+RIGHT($E207),0)\n+AG$11*OFFSET('Efficiency Distributions'!$E$10,MATCH($C197,'Efficiency Distributions'!$C$9:$C$87,0)+RIGHT($E207),0))\n/SUM(AG$10:AG$11)","v":0},{"$f":"IF(INDEX(PC_MAPPING,RIGHT($C197,1),MATCH($E$2,'Data by Building Type'!$D$22:$F$22,0))=\"Yes\",1,0)*\n(AH$10*OFFSET('Efficiency Distributions'!$D$10,MATCH($C197,'Efficiency Distributions'!$C$9:$C$87,0)+RIGHT($E207),0)\n+AH$11*OFFSET('Efficiency Distributions'!$E$10,MATCH($C197,'Efficiency Distributions'!$C$9:$C$87,0)+RIGHT($E207),0))\n/SUM(AH$10:AH$11)","v":0},{"$f":"IF(INDEX(PC_MAPPING,RIGHT($C197,1),MATCH($E$2,'Data by Building Type'!$D$22:$F$22,0))=\"Yes\",1,0)*\n(AI$10*OFFSET('Efficiency Distributions'!$D$10,MATCH($C197,'Efficiency Distributions'!$C$9:$C$87,0)+RIGHT($E207),0)\n+AI$11*OFFSET('Efficiency Distributions'!$E$10,MATCH($C197,'Efficiency Distributions'!$C$9:$C$87,0)+RIGHT($E207),0))\n/SUM(AI$10:AI$11)","v":0},{"$f":"IF(INDEX(PC_MAPPING,RIGHT($C197,1),MATCH($E$2,'Data by Building Type'!$D$22:$F$22,0))=\"Yes\",1,0)*\n(AJ$10*OFFSET('Efficiency Distributions'!$D$10,MATCH($C197,'Efficiency Distributions'!$C$9:$C$87,0)+RIGHT($E207),0)\n+AJ$11*OFFSET('Efficiency Distributions'!$E$10,MATCH($C197,'Efficiency Distributions'!$C$9:$C$87,0)+RIGHT($E207),0))\n/SUM(AJ$10:AJ$11)","v":0},{"$f":"IF(INDEX(PC_MAPPING,RIGHT($C197,1),MATCH($E$2,'Data by Building Type'!$D$22:$F$22,0))=\"Yes\",1,0)*\n(AK$10*OFFSET('Efficiency Distributions'!$D$10,MATCH($C197,'Efficiency Distributions'!$C$9:$C$87,0)+RIGHT($E207),0)\n+AK$11*OFFSET('Efficiency Distributions'!$E$10,MATCH($C197,'Efficiency Distributions'!$C$9:$C$87,0)+RIGHT($E207),0))\n/SUM(AK$10:AK$11)","v":0},{"$f":"IF(INDEX(PC_MAPPING,RIGHT($C197,1),MATCH($E$2,'Data by Building Type'!$D$22:$F$22,0))=\"Yes\",1,0)*\n(AL$10*OFFSET('Efficiency Distributions'!$D$10,MATCH($C197,'Efficiency Distributions'!$C$9:$C$87,0)+RIGHT($E207),0)\n+AL$11*OFFSET('Efficiency Distributions'!$E$10,MATCH($C197,'Efficiency Distributions'!$C$9:$C$87,0)+RIGHT($E207),0))\n/SUM(AL$10:AL$11)","v":0},{"$f":"IF(INDEX(PC_MAPPING,RIGHT($C197,1),MATCH($E$2,'Data by Building Type'!$D$22:$F$22,0))=\"Yes\",1,0)*\n(AM$10*OFFSET('Efficiency Distributions'!$D$10,MATCH($C197,'Efficiency Distributions'!$C$9:$C$87,0)+RIGHT($E207),0)\n+AM$11*OFFSET('Efficiency Distributions'!$E$10,MATCH($C197,'Efficiency Distributions'!$C$9:$C$87,0)+RIGHT($E207),0))\n/SUM(AM$10:AM$11)","v":0},{"$f":"IF(INDEX(PC_MAPPING,RIGHT($C197,1),MATCH($E$2,'Data by Building Type'!$D$22:$F$22,0))=\"Yes\",1,0)*\n(AN$10*OFFSET('Efficiency Distributions'!$D$10,MATCH($C197,'Efficiency Distributions'!$C$9:$C$87,0)+RIGHT($E207),0)\n+AN$11*OFFSET('Efficiency Distributions'!$E$10,MATCH($C197,'Efficiency Distributions'!$C$9:$C$87,0)+RIGHT($E207),0))\n/SUM(AN$10:AN$11)","v":0},{"$f":"IF(INDEX(PC_MAPPING,RIGHT($C197,1),MATCH($E$2,'Data by Building Type'!$D$22:$F$22,0))=\"Yes\",1,0)*\n(AO$10*OFFSET('Efficiency Distributions'!$D$10,MATCH($C197,'Efficiency Distributions'!$C$9:$C$87,0)+RIGHT($E207),0)\n+AO$11*OFFSET('Efficiency Distributions'!$E$10,MATCH($C197,'Efficiency Distributions'!$C$9:$C$87,0)+RIGHT($E207),0))\n/SUM(AO$10:AO$11)","v":0},{"$f":"IF(INDEX(PC_MAPPING,RIGHT($C197,1),MATCH($E$2,'Data by Building Type'!$D$22:$F$22,0))=\"Yes\",1,0)*\n(AP$10*OFFSET('Efficiency Distributions'!$D$10,MATCH($C197,'Efficiency Distributions'!$C$9:$C$87,0)+RIGHT($E207),0)\n+AP$11*OFFSET('Efficiency Distributions'!$E$10,MATCH($C197,'Efficiency Distributions'!$C$9:$C$87,0)+RIGHT($E207),0))\n/SUM(AP$10:AP$11)","v":0},{"$f":"IF(INDEX(PC_MAPPING,RIGHT($C197,1),MATCH($E$2,'Data by Building Type'!$D$22:$F$22,0))=\"Yes\",1,0)*\n(AQ$10*OFFSET('Efficiency Distributions'!$D$10,MATCH($C197,'Efficiency Distributions'!$C$9:$C$87,0)+RIGHT($E207),0)\n+AQ$11*OFFSET('Efficiency Distributions'!$E$10,MATCH($C197,'Efficiency Distributions'!$C$9:$C$87,0)+RIGHT($E207),0))\n/SUM(AQ$10:AQ$11)","v":0},{"$f":"IF(INDEX(PC_MAPPING,RIGHT($C197,1),MATCH($E$2,'Data by Building Type'!$D$22:$F$22,0))=\"Yes\",1,0)*\n(AR$10*OFFSET('Efficiency Distributions'!$D$10,MATCH($C197,'Efficiency Distributions'!$C$9:$C$87,0)+RIGHT($E207),0)\n+AR$11*OFFSET('Efficiency Distributions'!$E$10,MATCH($C197,'Efficiency Distributions'!$C$9:$C$87,0)+RIGHT($E207),0))\n/SUM(AR$10:AR$11)","v":0},{"$f":"IF(INDEX(PC_MAPPING,RIGHT($C197,1),MATCH($E$2,'Data by Building Type'!$D$22:$F$22,0))=\"Yes\",1,0)*\n(AS$10*OFFSET('Efficiency Distributions'!$D$10,MATCH($C197,'Efficiency Distributions'!$C$9:$C$87,0)+RIGHT($E207),0)\n+AS$11*OFFSET('Efficiency Distributions'!$E$10,MATCH($C197,'Efficiency Distributions'!$C$9:$C$87,0)+RIGHT($E207),0))\n/SUM(AS$10:AS$11)","v":0},{"$f":"IF(INDEX(PC_MAPPING,RIGHT($C197,1),MATCH($E$2,'Data by Building Type'!$D$22:$F$22,0))=\"Yes\",1,0)*\n(AT$10*OFFSET('Efficiency Distributions'!$D$10,MATCH($C197,'Efficiency Distributions'!$C$9:$C$87,0)+RIGHT($E207),0)\n+AT$11*OFFSET('Efficiency Distributions'!$E$10,MATCH($C197,'Efficiency Distributions'!$C$9:$C$87,0)+RIGHT($E207),0))\n/SUM(AT$10:AT$11)","v":0},{"$f":"IF(INDEX(PC_MAPPING,RIGHT($C197,1),MATCH($E$2,'Data by Building Type'!$D$22:$F$22,0))=\"Yes\",1,0)*\n(AU$10*OFFSET('Efficiency Distributions'!$D$10,MATCH($C197,'Efficiency Distributions'!$C$9:$C$87,0)+RIGHT($E207),0)\n+AU$11*OFFSET('Efficiency Distributions'!$E$10,MATCH($C197,'Efficiency Distributions'!$C$9:$C$87,0)+RIGHT($E207),0))\n/SUM(AU$10:AU$11)","v":0},{"$f":"IF(INDEX(PC_MAPPING,RIGHT($C197,1),MATCH($E$2,'Data by Building Type'!$D$22:$F$22,0))=\"Yes\",1,0)*\n(AV$10*OFFSET('Efficiency Distributions'!$D$10,MATCH($C197,'Efficiency Distributions'!$C$9:$C$87,0)+RIGHT($E207),0)\n+AV$11*OFFSET('Efficiency Distributions'!$E$10,MATCH($C197,'Efficiency Distributions'!$C$9:$C$87,0)+RIGHT($E207),0))\n/SUM(AV$10:AV$11)","v":0},{"$f":"IF(INDEX(PC_MAPPING,RIGHT($C197,1),MATCH($E$2,'Data by Building Type'!$D$22:$F$22,0))=\"Yes\",1,0)*\n(AW$10*OFFSET('Efficiency Distributions'!$D$10,MATCH($C197,'Efficiency Distributions'!$C$9:$C$87,0)+RIGHT($E207),0)\n+AW$11*OFFSET('Efficiency Distributions'!$E$10,MATCH($C197,'Efficiency Distributions'!$C$9:$C$87,0)+RIGHT($E207),0))\n/SUM(AW$10:AW$11)","v":0},{"$f":"IF(INDEX(PC_MAPPING,RIGHT($C197,1),MATCH($E$2,'Data by Building Type'!$D$22:$F$22,0))=\"Yes\",1,0)*\n(AX$10*OFFSET('Efficiency Distributions'!$D$10,MATCH($C197,'Efficiency Distributions'!$C$9:$C$87,0)+RIGHT($E207),0)\n+AX$11*OFFSET('Efficiency Distributions'!$E$10,MATCH($C197,'Efficiency Distributions'!$C$9:$C$87,0)+RIGHT($E207),0))\n/SUM(AX$10:AX$11)","v":0},{"$f":"IF(INDEX(PC_MAPPING,RIGHT($C197,1),MATCH($E$2,'Data by Building Type'!$D$22:$F$22,0))=\"Yes\",1,0)*\n(AY$10*OFFSET('Efficiency Distributions'!$D$10,MATCH($C197,'Efficiency Distributions'!$C$9:$C$87,0)+RIGHT($E207),0)\n+AY$11*OFFSET('Efficiency Distributions'!$E$10,MATCH($C197,'Efficiency Distributions'!$C$9:$C$87,0)+RIGHT($E207),0))\n/SUM(AY$10:AY$11)","v":0},{"$f":"IF(INDEX(PC_MAPPING,RIGHT($C197,1),MATCH($E$2,'Data by Building Type'!$D$22:$F$22,0))=\"Yes\",1,0)*\n(AZ$10*OFFSET('Efficiency Distributions'!$D$10,MATCH($C197,'Efficiency Distributions'!$C$9:$C$87,0)+RIGHT($E207),0)\n+AZ$11*OFFSET('Efficiency Distributions'!$E$10,MATCH($C197,'Efficiency Distributions'!$C$9:$C$87,0)+RIGHT($E207),0))\n/SUM(AZ$10:AZ$11)","v":0},{"$f":"IF(INDEX(PC_MAPPING,RIGHT($C197,1),MATCH($E$2,'Data by Building Type'!$D$22:$F$22,0))=\"Yes\",1,0)*\n(BA$10*OFFSET('Efficiency Distributions'!$D$10,MATCH($C197,'Efficiency Distributions'!$C$9:$C$87,0)+RIGHT($E207),0)\n+BA$11*OFFSET('Efficiency Distributions'!$E$10,MATCH($C197,'Efficiency Distributions'!$C$9:$C$87,0)+RIGHT($E207),0))\n/SUM(BA$10:BA$11)","v":0},{"$f":"IF(INDEX(PC_MAPPING,RIGHT($C197,1),MATCH($E$2,'Data by Building Type'!$D$22:$F$22,0))=\"Yes\",1,0)*\n(BB$10*OFFSET('Efficiency Distributions'!$D$10,MATCH($C197,'Efficiency Distributions'!$C$9:$C$87,0)+RIGHT($E207),0)\n+BB$11*OFFSET('Efficiency Distributions'!$E$10,MATCH($C197,'Efficiency Distributions'!$C$9:$C$87,0)+RIGHT($E207),0))\n/SUM(BB$10:BB$11)","v":0},{"$f":"IF(INDEX(PC_MAPPING,RIGHT($C197,1),MATCH($E$2,'Data by Building Type'!$D$22:$F$22,0))=\"Yes\",1,0)*\n(BC$10*OFFSET('Efficiency Distributions'!$D$10,MATCH($C197,'Efficiency Distributions'!$C$9:$C$87,0)+RIGHT($E207),0)\n+BC$11*OFFSET('Efficiency Distributions'!$E$10,MATCH($C197,'Efficiency Distributions'!$C$9:$C$87,0)+RIGHT($E207),0))\n/SUM(BC$10:BC$11)","v":0},{"$f":"IF(INDEX(PC_MAPPING,RIGHT($C197,1),MATCH($E$2,'Data by Building Type'!$D$22:$F$22,0))=\"Yes\",1,0)*\n(BD$10*OFFSET('Efficiency Distributions'!$D$10,MATCH($C197,'Efficiency Distributions'!$C$9:$C$87,0)+RIGHT($E207),0)\n+BD$11*OFFSET('Efficiency Distributions'!$E$10,MATCH($C197,'Efficiency Distributions'!$C$9:$C$87,0)+RIGHT($E207),0))\n/SUM(BD$10:BD$11)","v":0},{"$f":"IF(INDEX(PC_MAPPING,RIGHT($C197,1),MATCH($E$2,'Data by Building Type'!$D$22:$F$22,0))=\"Yes\",1,0)*\n(BE$10*OFFSET('Efficiency Distributions'!$D$10,MATCH($C197,'Efficiency Distributions'!$C$9:$C$87,0)+RIGHT($E207),0)\n+BE$11*OFFSET('Efficiency Distributions'!$E$10,MATCH($C197,'Efficiency Distributions'!$C$9:$C$87,0)+RIGHT($E207),0))\n/SUM(BE$10:BE$11)","v":0},{"$f":"IF(INDEX(PC_MAPPING,RIGHT($C197,1),MATCH($E$2,'Data by Building Type'!$D$22:$F$22,0))=\"Yes\",1,0)*\n(BF$10*OFFSET('Efficiency Distributions'!$D$10,MATCH($C197,'Efficiency Distributions'!$C$9:$C$87,0)+RIGHT($E207),0)\n+BF$11*OFFSET('Efficiency Distributions'!$E$10,MATCH($C197,'Efficiency Distributions'!$C$9:$C$87,0)+RIGHT($E207),0))\n/SUM(BF$10:BF$11)","v":0},{"$f":"IF(INDEX(PC_MAPPING,RIGHT($C197,1),MATCH($E$2,'Data by Building Type'!$D$22:$F$22,0))=\"Yes\",1,0)*\n(BG$10*OFFSET('Efficiency Distributions'!$D$10,MATCH($C197,'Efficiency Distributions'!$C$9:$C$87,0)+RIGHT($E207),0)\n+BG$11*OFFSET('Efficiency Distributions'!$E$10,MATCH($C197,'Efficiency Distributions'!$C$9:$C$87,0)+RIGHT($E207),0))\n/SUM(BG$10:BG$11)","v":0}]
[null,null,null,null,"TOTAL",{"$f":"SUM(F201:F207)","v":0},{"$f":"SUM(G201:G207)","v":0},0,0,0,0,0,0,0,0,0,0,0,0,0,0,0,0,0,0,0,0,0,0,0,0,0,0,0,0,0,0,0,0,0,0,0,0,0,0,0,0,0,0,0,0,0,0,0,0,0,0,0,0]
[]
[null,null,null,"POST-Case"]
[null,null,null,null,"Efficiency Level",1981,{"$f":"F211+1","v":1982},{"$f":"G211+1","v":1983},1984,1985,{"$f":"J211+1","v":1986},1987,1988,1989,1990,1991,1992,1993,1994,1995,1996,1997,1998,1999,2000,2001,2002,2003,2004,2005,2006,2007,2008,2009,2010,2011,2012,2013,2014,2015,2016,2017,2018,2019,2020,2021,2022,2023,2024,2025,2026,2027,2028,2029,2030,2031,2032,2033,2034]
[null,null,null,null,"EL0",{"$f":"IF(F$29<STANDARD_YEAR,F201,\nIF(RIGHT($E212,1)>RIGHT(INDEX(STANDARD_LEVELS,1,MID($C197,4,1)),1),F201,\nIF(RIGHT($E212,1)<RIGHT(INDEX(STANDARD_LEVELS,1,MID($C197,4,1)),1),0,\nIF(RIGHT($E212,1)=RIGHT(INDEX(STANDARD_LEVELS,1,MID($C197,4,1)),1),SUM(OFFSET(F201,-(RIGHT($E212,1)),0,RIGHT($E212,1)+1,1)),\"ERROR\"))))","v":0},{"$f":"IF(G$29<STANDARD_YEAR,G201,\nIF(RIGHT($E212,1)>RIGHT(INDEX(STANDARD_LEVELS,1,MID($C197,4,1)),1),G201,\nIF(RIGHT($E212,1)<RIGHT(INDEX(STANDARD_LEVELS,1,MID($C197,4,1)),1),0,\nIF(RIGHT($E212,1)=RIGHT(INDEX(STANDARD_LEVELS,1,MID($C197,4,1)),1),SUM(OFFSET(G201,-(RIGHT($E212,1)),0,RIGHT($E212,1)+1,1)),\"ERROR\"))))","v":0},0,0,0,0,0,0,0,0,0,0,0,0,0,0,0,0,0,0,0,0,0,0,0,0,0,0,0,0,0,0,0,0,0,0,0,0,0,0,0,0,0,0,0,0,0,0,0,0,0,0,0,0]
[null,null,null,null,"EL1",{"$f":"IF(F$29<STANDARD_YEAR,F202,\nIF(RIGHT($E213,1)>RIGHT(INDEX(STANDARD_LEVELS,1,MID($C197,4,1)),1),F202,\nIF(RIGHT($E213,1)<RIGHT(INDEX(STANDARD_LEVELS,1,MID($C197,4,1)),1),0,\nIF(RIGHT($E213,1)=RIGHT(INDEX(STANDARD_LEVELS,1,MID($C197,4,1)),1),SUM(OFFSET(F202,-(RIGHT($E213,1)),0,RIGHT($E213,1)+1,1)),\"ERROR\"))))","v":0},{"$f":"IF(G$29<STANDARD_YEAR,G202,\nIF(RIGHT($E213,1)>RIGHT(INDEX(STANDARD_LEVELS,1,MID($C197,4,1)),1),G202,\nIF(RIGHT($E213,1)<RIGHT(INDEX(STANDARD_LEVELS,1,MID($C197,4,1)),1),0,\nIF(RIGHT($E213,1)=RIGHT(INDEX(STANDARD_LEVELS,1,MID($C197,4,1)),1),SUM(OFFSET(G202,-(RIGHT($E213,1)),0,RIGHT($E213,1)+1,1)),\"ERROR\"))))","v":0},0,0,0,0,0,0,0,0,0,0,0,0,0,0,0,0,0,0,0,0,0,0,0,0,0,0,0,0,0,0,0,0,0,0,0,0,0,0,0,0,0,0,0,0,0,0,0,0,0,0,0,0]
[null,null,null,null,"EL2",{"$f":"IF(F$29<STANDARD_YEAR,F203,\nIF(RIGHT($E214,1)>RIGHT(INDEX(STANDARD_LEVELS,1,MID($C197,4,1)),1),F203,\nIF(RIGHT($E214,1)<RIGHT(INDEX(STANDARD_LEVELS,1,MID($C197,4,1)),1),0,\nIF(RIGHT($E214,1)=RIGHT(INDEX(STANDARD_LEVELS,1,MID($C197,4,1)),1),SUM(OFFSET(F203,-(RIGHT($E214,1)),0,RIGHT($E214,1)+1,1)),\"ERROR\"))))","v":0},{"$f":"IF(G$29<STANDARD_YEAR,G203,\nIF(RIGHT($E214,1)>RIGHT(INDEX(STANDARD_LEVELS,1,MID($C197,4,1)),1),G203,\nIF(RIGHT($E214,1)<RIGHT(INDEX(STANDARD_LEVELS,1,MID($C197,4,1)),1),0,\nIF(RIGHT($E214,1)=RIGHT(INDEX(STANDARD_LEVELS,1,MID($C197,4,1)),1),SUM(OFFSET(G203,-(RIGHT($E214,1)),0,RIGHT($E214,1)+1,1)),\"ERROR\"))))","v":0},0,0,0,0,0,0,0,0,0,0,0,0,0,0,0,0,0,0,0,0,0,0,0,0,0,0,0,0,0,0,0,0,0,0,0,0,0,0,0,0,0,0,0,0,0,0,0,0,0,0,0,0]
[null,null,null,null,"EL3",{"$f":"IF(F$29<STANDARD_YEAR,F204,\nIF(RIGHT($E215,1)>RIGHT(INDEX(STANDARD_LEVELS,1,MID($C197,4,1)),1),F204,\nIF(RIGHT($E215,1)<RIGHT(INDEX(STANDARD_LEVELS,1,MID($C197,4,1)),1),0,\nIF(RIGHT($E215,1)=RIGHT(INDEX(STANDARD_LEVELS,1,MID($C197,4,1)),1),SUM(OFFSET(F204,-(RIGHT($E215,1)),0,RIGHT($E215,1)+1,1)),\"ERROR\"))))","v":0},{"$f":"IF(G$29<STANDARD_YEAR,G204,\nIF(RIGHT($E215,1)>RIGHT(INDEX(STANDARD_LEVELS,1,MID($C197,4,1)),1),G204,\nIF(RIGHT($E215,1)<RIGHT(INDEX(STANDARD_LEVELS,1,MID($C197,4,1)),1),0,\nIF(RIGHT($E215,1)=RIGHT(INDEX(STANDARD_LEVELS,1,MID($C197,4,1)),1),SUM(OFFSET(G204,-(RIGHT($E215,1)),0,RIGHT($E215,1)+1,1)),\"ERROR\"))))","v":0},0,0,0,0,0,0,0,0,0,0,0,0,0,0,0,0,0,0,0,0,0,0,0,0,0,0,0,0,0,0,0,0,0,0,0,0,0,0,0,0,0,0,0,0,0,0,0,0,0,0,0,0]
[null,null,null,null,"EL4",{"$f":"IF(F$29<STANDARD_YEAR,F205,\nIF(RIGHT($E216,1)>RIGHT(INDEX(STANDARD_LEVELS,1,MID($C197,4,1)),1),F205,\nIF(RIGHT($E216,1)<RIGHT(INDEX(STANDARD_LEVELS,1,MID($C197,4,1)),1),0,\nIF(RIGHT($E216,1)=RIGHT(INDEX(STANDARD_LEVELS,1,MID($C197,4,1)),1),SUM(OFFSET(F205,-(RIGHT($E216,1)),0,RIGHT($E216,1)+1,1)),\"ERROR\"))))","v":0},{"$f":"IF(G$29<STANDARD_YEAR,G205,\nIF(RIGHT($E216,1)>RIGHT(INDEX(STANDARD_LEVELS,1,MID($C197,4,1)),1),G205,\nIF(RIGHT($E216,1)<RIGHT(INDEX(STANDARD_LEVELS,1,MID($C197,4,1)),1),0,\nIF(RIGHT($E216,1)=RIGHT(INDEX(STANDARD_LEVELS,1,MID($C197,4,1)),1),SUM(OFFSET(G205,-(RIGHT($E216,1)),0,RIGHT($E216,1)+1,1)),\"ERROR\"))))","v":0},0,0,0,0,0,0,0,0,0,0,0,0,0,0,0,0,0,0,0,0,0,0,0,0,0,0,0,0,0,0,0,0,0,0,0,0,0,0,0,0,0,0,0,0,0,0,0,0,0,0,0,0]
[null,null,null,null,"EL5",{"$f":"IF(F$29<STANDARD_YEAR,F206,\nIF(RIGHT($E217,1)>RIGHT(INDEX(STANDARD_LEVELS,1,MID($C197,4,1)),1),F206,\nIF(RIGHT($E217,1)<RIGHT(INDEX(STANDARD_LEVELS,1,MID($C197,4,1)),1),0,\nIF(RIGHT($E217,1)=RIGHT(INDEX(STANDARD_LEVELS,1,MID($C197,4,1)),1),SUM(OFFSET(F206,-(RIGHT($E217,1)),0,RIGHT($E217,1)+1,1)),\"ERROR\"))))","v":0},{"$f":"IF(G$29<STANDARD_YEAR,G206,\nIF(RIGHT($E217,1)>RIGHT(INDEX(STANDARD_LEVELS,1,MID($C197,4,1)),1),G206,\nIF(RIGHT($E217,1)<RIGHT(INDEX(STANDARD_LEVELS,1,MID($C197,4,1)),1),0,\nIF(RIGHT($E217,1)=RIGHT(INDEX(STANDARD_LEVELS,1,MID($C197,4,1)),1),SUM(OFFSET(G206,-(RIGHT($E217,1)),0,RIGHT($E217,1)+1,1)),\"ERROR\"))))","v":0},0,0,0,0,0,0,0,0,0,0,0,0,0,0,0,0,0,0,0,0,0,0,0,0,0,0,0,0,0,0,0,0,0,0,0,0,0,0,0,0,0,0,0,0,0,0,0,0,0,0,0,0]
[null,null,null,null,"EL6",{"$f":"IF(F$29<STANDARD_YEAR,F207,\nIF(RIGHT($E218,1)>RIGHT(INDEX(STANDARD_LEVELS,1,MID($C197,4,1)),1),F207,\nIF(RIGHT($E218,1)<RIGHT(INDEX(STANDARD_LEVELS,1,MID($C197,4,1)),1),0,\nIF(RIGHT($E218,1)=RIGHT(INDEX(STANDARD_LEVELS,1,MID($C197,4,1)),1),SUM(OFFSET(F207,-(RIGHT($E218,1)),0,RIGHT($E218,1)+1,1)),\"ERROR\"))))","v":0},{"$f":"IF(G$29<STANDARD_YEAR,G207,\nIF(RIGHT($E218,1)>RIGHT(INDEX(STANDARD_LEVELS,1,MID($C197,4,1)),1),G207,\nIF(RIGHT($E218,1)<RIGHT(INDEX(STANDARD_LEVELS,1,MID($C197,4,1)),1),0,\nIF(RIGHT($E218,1)=RIGHT(INDEX(STANDARD_LEVELS,1,MID($C197,4,1)),1),SUM(OFFSET(G207,-(RIGHT($E218,1)),0,RIGHT($E218,1)+1,1)),\"ERROR\"))))","v":0},0,0,0,0,0,0,0,0,0,0,0,0,0,0,0,0,0,0,0,0,0,0,0,0,0,0,0,0,0,0,0,0,0,0,0,0,0,0,0,0,0,0,0,0,0,0,0,0,0,0,0,0]
[null,null,null,null,"TOTAL",{"$f":"SUM(F212:F218)","v":0},{"$f":"SUM(G212:G218)","v":0},0,0,0,0,0,0,0,0,0,0,0,0,0,0,0,0,0,0,0,0,0,0,0,0,0,0,0,0,0,0,0,0,0,0,0,0,0,0,0,0,0,0,0,0,0,0,0,0,0,0,0,0]

{"sheet":"Efficiency Dist - MH","index":13,"n_rows":219,"n_cols":59,"rows_kept":219,"cut":false,"hidden":false,"merged":[[3,2,3,4],[5,2,5,4]]}
[]
[null,null,null,"Efficiency Distributions  - ","Manufactured Homes"]
[]
[null,null,{"$f":"Navigation!$C$17","v":"NAVIGATION"}]
[]
[null,null,"COMMENTS"]
[]
[]
[null,null,null,"Shipments of Furnace Fans",null,1981,{"$f":"F9+1","v":1982},{"$f":"G9+1","v":1983},{"$f":"H9+1","v":1984},{"$f":"I9+1","v":1985},{"$f":"J9+1","v":1986},{"$f":"K9+1","v":1987},{"$f":"L9+1","v":1988},{"$f":"M9+1","v":1989},{"$f":"N9+1","v":1990},{"$f":"O9+1","v":1991},{"$f":"P9+1","v":1992},{"$f":"Q9+1","v":1993},{"$f":"R9+1","v":1994},1995,1996,1997,1998,1999,2000,2001,2002,2003,2004,2005,2006,2007,2008,2009,2010,2011,2012,2013,2014,2015,2016,2017,2018,2019,2020,2021,2022,2023,2024,2025,2026,2027,2028,2029,2030,2031,2032,2033,2034]
[null,null,null,null,"Replacements",{"$f":"'Shipments and Stock - MH'!E12","v":8893.0911129538035},{"$f":"'Shipments and Stock - MH'!F12","v":8893.0911129538035},{"$f":"'Shipments and Stock - MH'!G12","v":8893.0911129538035},{"$f":"'Shipments and Stock - MH'!H12","v":8893.0911129538035},{"$f":"'Shipments and Stock - MH'!I12","v":8893.0911129538035},{"$f":"'Shipments and Stock - MH'!J12","v":8893.0911129538035},{"$f":"'Shipments and Stock - MH'!K12","v":8893.0911129538035},{"$f":"'Shipments and Stock - MH'!L12","v":8893.0911129538035},{"$f":"'Shipments and Stock - MH'!M12","v":8893.0911129538035},{"$f":"'Shipments and Stock - MH'!N12","v":8893.0911129538035},{"$f":"'Shipments and Stock - MH'!O12","v":8893.0911129538035},{"$f":"'Shipments and Stock - MH'!P12","v":8893.0911129538035},{"$f":"'Shipments and Stock - MH'!Q12","v":8893.0911129538035},{"$f":"'Shipments and Stock - MH'!R12","v":8893.0911129538035},{"$f":"'Shipments and Stock - MH'!S12","v":8893.0911129538035},{"$f":"'Shipments and Stock - MH'!T12","v":8893.0911129538035},{"$f":"'Shipments and Stock - MH'!U12","v":8893.0911129538035},{"$f":"'Shipments and Stock - MH'!V12","v":8893.0911129538035},{"$f":"'Shipments and Stock - MH'!W12","v":8893.0911129538035},{"$f":"'Shipments and Stock - MH'!X12","v":8893.0911129538035},{"$f":"'Shipments and Stock - MH'!Y12","v":8893.0911129538035},{"$f":"'Shipments and Stock - MH'!Z12","v":16247.14740986731},{"$f":"'Shipments and Stock - MH'!AA12","v":14833.0362433023},{"$f":"'Shipments and Stock - MH'!AB12","v":17109.178725312948},{"$f":"'Shipments and Stock - MH'!AC12","v":16958.611493189514},{"$f":"'Shipments and Stock - MH'!AD12","v":15736.439636043116},{"$f":"'Shipments and Stock - MH'!AE12","v":14557.674548517902},{"$f":"'Shipments and Stock - MH'!AF12","v":14252.470699618993},{"$f":"'Shipments and Stock - MH'!AG12","v":15030.401398923586},{"$f":"'Shipments and Stock - MH'!AH12","v":15653.017250677411},{"$f":"'Shipments and Stock - MH'!AI12","v":16947.081570008875},{"$f":"'Shipments and Stock - MH'!AJ12","v":16906.38772348901},{"$f":"'Shipments and Stock - MH'!AK12","v":18241.824120115682},{"$f":"'Shipments and Stock - MH'!AL12","v":20008.320838325209},{"$f":"'Shipments and Stock - MH'!AM12","v":21951.345049791988},{"$f":"'Shipments and Stock - MH'!AN12","v":21289.382396518915},{"$f":"'Shipments and Stock - MH'!AO12","v":19528.776250332492},{"$f":"'Shipments and Stock - MH'!AP12","v":19583.005017455165},{"$f":"'Shipments and Stock - MH'!AQ12","v":19982.482373619059},{"$f":"'Shipments and Stock - MH'!AR12","v":17669.856729623301},{"$f":"'Shipments and Stock - MH'!AS12","v":14261.504378492555},{"$f":"'Shipments and Stock - MH'!AT12","v":12717.057786080539},{"$f":"'Shipments and Stock - MH'!AU12","v":20163.508633496345},{"$f":"'Shipments and Stock - MH'!AV12","v":18347.409650960431},{"$f":"'Shipments and Stock - MH'!AW12","v":20443.170783883623},{"$f":"'Shipments and Stock - MH'!AX12","v":20266.600381488548},{"$f":"'Shipments and Stock - MH'!AY12","v":18814.927847498697},{"$f":"'Shipments and Stock - MH'!AZ12","v":18712.553709578227},{"$f":"'Shipments and Stock - MH'!BA12","v":18566.820603845481},{"$f":"'Shipments and Stock - MH'!BB12","v":19392.318174959732},{"$f":"'Shipments and Stock - MH'!BC12","v":20005.76502248233},{"$f":"'Shipments and Stock - MH'!BD12","v":21185.849145073433},{"$f":"'Shipments and Stock - MH'!BE12","v":22093.687088335093},{"$f":"'Shipments and Stock - MH'!BF12","v":23198.108027556169}]
[null,null,null,null,"Total New Shipments",{"$f":"'Shipments and Stock - MH'!E13","v":7354.0562969135062},{"$f":"'Shipments and Stock - MH'!F13","v":5939.9451303484966},{"$f":"'Shipments and Stock - MH'!G13","v":8216.0876123591443},{"$f":"'Shipments and Stock - MH'!H13","v":8065.5203802357137},{"$f":"'Shipments and Stock - MH'!I13","v":6843.3485230893139},{"$f":"'Shipments and Stock - MH'!J13","v":5664.5834355640982},{"$f":"'Shipments and Stock - MH'!K13","v":5359.379586665189},{"$f":"'Shipments and Stock - MH'!L13","v":6137.3102859697829},{"$f":"'Shipments and Stock - MH'!M13","v":6759.9261377236062},{"$f":"'Shipments and Stock - MH'!N13","v":8053.9904570550716},{"$f":"'Shipments and Stock - MH'!O13","v":8013.296610535207},{"$f":"'Shipments and Stock - MH'!P13","v":9348.733007161878},{"$f":"'Shipments and Stock - MH'!Q13","v":11115.229725371406},{"$f":"'Shipments and Stock - MH'!R13","v":13058.253936838184},{"$f":"'Shipments and Stock - MH'!S13","v":12396.291283565108},{"$f":"'Shipments and Stock - MH'!T13","v":10635.685137378692},{"$f":"'Shipments and Stock - MH'!U13","v":10689.913904501358},{"$f":"'Shipments and Stock - MH'!V13","v":11089.391260665259},{"$f":"'Shipments and Stock - MH'!W13","v":8776.7656166694942},{"$f":"'Shipments and Stock - MH'!X13","v":5368.4132655387511},{"$f":"'Shipments and Stock - MH'!Y13","v":3823.9666731267353},{"$f":"'Shipments and Stock - MH'!Z13","v":3916.3612236290355},{"$f":"'Shipments and Stock - MH'!AA13","v":3514.3734076581313},{"$f":"'Shipments and Stock - MH'!AB13","v":3333.9920585706714},{"$f":"'Shipments and Stock - MH'!AC13","v":3307.9888882990344},{"$f":"'Shipments and Stock - MH'!AD13","v":3078.4882114555803},{"$f":"'Shipments and Stock - MH'!AE13","v":4154.8791610603221},{"$f":"'Shipments and Stock - MH'!AF13","v":4314.3499042264884},{"$f":"'Shipments and Stock - MH'!AG13","v":4361.9167760361452},{"$f":"'Shipments and Stock - MH'!AH13","v":4352.7477718049195},{"$f":"'Shipments and Stock - MH'!AI13","v":4238.7675750645576},{"$f":"'Shipments and Stock - MH'!AJ13","v":5187.2993648460833},{"$f":"'Shipments and Stock - MH'!AK13","v":4956.283907440491},{"$f":"'Shipments and Stock - MH'!AL13","v":4660.4808557335673},{"$f":"'Shipments and Stock - MH'!AM13","v":4386.7139726914465},{"$f":"'Shipments and Stock - MH'!AN13","v":4179.3884132480598},{"$f":"'Shipments and Stock - MH'!AO13","v":4059.1930378967663},{"$f":"'Shipments and Stock - MH'!AP13","v":4037.66665760259},{"$f":"'Shipments and Stock - MH'!AQ13","v":4110.1259950341773},{"$f":"'Shipments and Stock - MH'!AR13","v":4250.8011141968309},{"$f":"'Shipments and Stock - MH'!AS13","v":4431.0721648880863},{"$f":"'Shipments and Stock - MH'!AT13","v":4611.9965035258792},{"$f":"'Shipments and Stock - MH'!AU13","v":4756.0347024806542},{"$f":"'Shipments and Stock - MH'!AV13","v":4834.7506252389285},{"$f":"'Shipments and Stock - MH'!AW13","v":4832.0134610952227},{"$f":"'Shipments and Stock - MH'!AX13","v":4746.2514568484667},{"$f":"'Shipments and Stock - MH'!AY13","v":4591.7345689762733},{"$f":"'Shipments and Stock - MH'!AZ13","v":4393.3944178608363},{"$f":"'Shipments and Stock - MH'!BA13","v":4182.6458658272168},{"$f":"'Shipments and Stock - MH'!BB13","v":3992.0656923559145},{"$f":"'Shipments and Stock - MH'!BC13","v":4031.9863492794684},{"$f":"'Shipments and Stock - MH'!BD13","v":4072.306212772266},{"$f":"'Shipments and Stock - MH'!BE13","v":4113.0292748999782},{"$f":"'Shipments and Stock - MH'!BF13","v":4154.1595676490106}]
[]
[]
[]
[null,null,"PC 1",{"$f":"OFFSET('Product Classes'!$C$9,MATCH(C15,MODEL_PCS,0),0)","v":"Non-Weatherized, Non-Condensing Gas Furnace Fan (NWG-NC)"}]
[]
[null,null,null,"PRE-Case"]
[null,null,null,null,"Efficiency Level",1981,{"$f":"F18+1","v":1982},{"$f":"G18+1","v":1983},{"$f":"H18+1","v":1984},{"$f":"I18+1","v":1985},{"$f":"J18+1","v":1986},{"$f":"K18+1","v":1987},{"$f":"L18+1","v":1988},{"$f":"M18+1","v":1989},{"$f":"N18+1","v":1990},{"$f":"O18+1","v":1991},{"$f":"P18+1","v":1992},{"$f":"Q18+1","v":1993},{"$f":"R18+1","v":1994},1995,1996,1997,1998,1999,2000,2001,2002,2003,2004,2005,2006,2007,2008,2009,2010,2011,2012,2013,2014,2015,2016,2017,2018,2019,2020,2021,2022,2023,2024,2025,2026,2027,2028,2029,2030,2031,2032,2033,2034]
[null,null,null,null,"EL0",{"$f":"IF(INDEX(PC_MAPPING,RIGHT($C15,1),MATCH($E$2,'Data by Building Type'!$D$22:$F$22,0))=\"Yes\",1,0)*\n(F$10*OFFSET('Efficiency Distributions'!$D$10,MATCH($C15,'Efficiency Distributions'!$C$9:$C$87,0)+RIGHT($E19),0)\n+F$11*OFFSET('Efficiency Distributions'!$E$10,MATCH($C15,'Efficiency Distributions'!$C$9:$C$87,0)+RIGHT($E19),0))\n/SUM(F$10:F$11)","v":0},{"$f":"IF(INDEX(PC_MAPPING,RIGHT($C15,1),MATCH($E$2,'Data by Building Type'!$D$22:$F$22,0))=\"Yes\",1,0)*\n(G$10*OFFSET('Efficiency Distributions'!$D$10,MATCH($C15,'Efficiency Distributions'!$C$9:$C$87,0)+RIGHT($E19),0)\n+G$11*OFFSET('Efficiency Distributions'!$E$10,MATCH($C15,'Efficiency Distributions'!$C$9:$C$87,0)+RIGHT($E19),0))\n/SUM(G$10:G$11)","v":0},{"$f":"IF(INDEX(PC_MAPPING,RIGHT($C15,1),MATCH($E$2,'Data by Building Type'!$D$22:$F$22,0))=\"Yes\",1,0)*\n(H$10*OFFSET('Efficiency Distributions'!$D$10,MATCH($C15,'Efficiency Distributions'!$C$9:$C$87,0)+RIGHT($E19),0)\n+H$11*OFFSET('Efficiency Distributions'!$E$10,MATCH($C15,'Efficiency Distributions'!$C$9:$C$87,0)+RIGHT($E19),0))\n/SUM(H$10:H$11)","v":0},{"$f":"IF(INDEX(PC_MAPPING,RIGHT($C15,1),MATCH($E$2,'Data by Building Type'!$D$22:$F$22,0))=\"Yes\",1,0)*\n(I$10*OFFSET('Efficiency Distributions'!$D$10,MATCH($C15,'Efficiency Distributions'!$C$9:$C$87,0)+RIGHT($E19),0)\n+I$11*OFFSET('Efficiency Distributions'!$E$10,MATCH($C15,'Efficiency Distributions'!$C$9:$C$87,0)+RIGHT($E19),0))\n/SUM(I$10:I$11)","v":0},{"$f":"IF(INDEX(PC_MAPPING,RIGHT($C15,1),MATCH($E$2,'Data by Building Type'!$D$22:$F$22,0))=\"Yes\",1,0)*\n(J$10*OFFSET('Efficiency Distributions'!$D$10,MATCH($C15,'Efficiency Distributions'!$C$9:$C$87,0)+RIGHT($E19),0)\n+J$11*OFFSET('Efficiency Distributions'!$E$10,MATCH($C15,'Efficiency Distributions'!$C$9:$C$87,0)+RIGHT($E19),0))\n/SUM(J$10:J$11)","v":0},{"$f":"IF(INDEX(PC_MAPPING,RIGHT($C15,1),MATCH($E$2,'Data by Building Type'!$D$22:$F$22,0))=\"Yes\",1,0)*\n(K$10*OFFSET('Efficiency Distributions'!$D$10,MATCH($C15,'Efficiency Distributions'!$C$9:$C$87,0)+RIGHT($E19),0)\n+K$11*OFFSET('Efficiency Distributions'!$E$10,MATCH($C15,'Efficiency Distributions'!$C$9:$C$87,0)+RIGHT($E19),0))\n/SUM(K$10:K$11)","v":0},{"$f":"IF(INDEX(PC_MAPPING,RIGHT($C15,1),MATCH($E$2,'Data by Building Type'!$D$22:$F$22,0))=\"Yes\",1,0)*\n(L$10*OFFSET('Efficiency Distributions'!$D$10,MATCH($C15,'Efficiency Distributions'!$C$9:$C$87,0)+RIGHT($E19),0)\n+L$11*OFFSET('Efficiency Distributions'!$E$10,MATCH($C15,'Efficiency Distributions'!$C$9:$C$87,0)+RIGHT($E19),0))\n/SUM(L$10:L$11)","v":0},{"$f":"IF(INDEX(PC_MAPPING,RIGHT($C15,1),MATCH($E$2,'Data by Building Type'!$D$22:$F$22,0))=\"Yes\",1,0)*\n(M$10*OFFSET('Efficiency Distributions'!$D$10,MATCH($C15,'Efficiency Distributions'!$C$9:$C$87,0)+RIGHT($E19),0)\n+M$11*OFFSET('Efficiency Distributions'!$E$10,MATCH($C15,'Efficiency Distributions'!$C$9:$C$87,0)+RIGHT($E19),0))\n/SUM(M$10:M$11)","v":0},{"$f":"IF(INDEX(PC_MAPPING,RIGHT($C15,1),MATCH($E$2,'Data by Building Type'!$D$22:$F$22,0))=\"Yes\",1,0)*\n(N$10*OFFSET('Efficiency Distributions'!$D$10,MATCH($C15,'Efficiency Distributions'!$C$9:$C$87,0)+RIGHT($E19),0)\n+N$11*OFFSET('Efficiency Distributions'!$E$10,MATCH($C15,'Efficiency Distributions'!$C$9:$C$87,0)+RIGHT($E19),0))\n/SUM(N$10:N$11)","v":0},{"$f":"IF(INDEX(PC_MAPPING,RIGHT($C15,1),MATCH($E$2,'Data by Building Type'!$D$22:$F$22,0))=\"Yes\",1,0)*\n(O$10*OFFSET('Efficiency Distributions'!$D$10,MATCH($C15,'Efficiency Distributions'!$C$9:$C$87,0)+RIGHT($E19),0)\n+O$11*OFFSET('Efficiency Distributions'!$E$10,MATCH($C15,'Efficiency Distributions'!$C$9:$C$87,0)+RIGHT($E19),0))\n/SUM(O$10:O$11)","v":0},{"$f":"IF(INDEX(PC_MAPPING,RIGHT($C15,1),MATCH($E$2,'Data by Building Type'!$D$22:$F$22,0))=\"Yes\",1,0)*\n(P$10*OFFSET('Efficiency Distributions'!$D$10,MATCH($C15,'Efficiency Distributions'!$C$9:$C$87,0)+RIGHT($E19),0)\n+P$11*OFFSET('Efficiency Distributions'!$E$10,MATCH($C15,'Efficiency Distributions'!$C$9:$C$87,0)+RIGHT($E19),0))\n/SUM(P$10:P$11)","v":0},{"$f":"IF(INDEX(PC_MAPPING,RIGHT($C15,1),MATCH($E$2,'Data by Building Type'!$D$22:$F$22,0))=\"Yes\",1,0)*\n(Q$10*OFFSET('Efficiency Distributions'!$D$10,MATCH($C15,'Efficiency Distributions'!$C$9:$C$87,0)+RIGHT($E19),0)\n+Q$11*OFFSET('Efficiency Distributions'!$E$10,MATCH($C15,'Efficiency Distributions'!$C$9:$C$87,0)+RIGHT($E19),0))\n/SUM(Q$10:Q$11)","v":0},{"$f":"IF(INDEX(PC_MAPPING,RIGHT($C15,1),MATCH($E$2,'Data by Building Type'!$D$22:$F$22,0))=\"Yes\",1,0)*\n(R$10*OFFSET('Efficiency Distributions'!$D$10,MATCH($C15,'Efficiency Distributions'!$C$9:$C$87,0)+RIGHT($E19),0)\n+R$11*OFFSET('Efficiency Distributions'!$E$10,MATCH($C15,'Efficiency Distributions'!$C$9:$C$87,0)+RIGHT($E19),0))\n/SUM(R$10:R$11)","v":0},{"$f":"IF(INDEX(PC_MAPPING,RIGHT($C15,1),MATCH($E$2,'Data by Building Type'!$D$22:$F$22,0))=\"Yes\",1,0)*\n(S$10*OFFSET('Efficiency Distributions'!$D$10,MATCH($C15,'Efficiency Distributions'!$C$9:$C$87,0)+RIGHT($E19),0)\n+S$11*OFFSET('Efficiency Distributions'!$E$10,MATCH($C15,'Efficiency Distributions'!$C$9:$C$87,0)+RIGHT($E19),0))\n/SUM(S$10:S$11)","v":0},{"$f":"IF(INDEX(PC_MAPPING,RIGHT($C15,1),MATCH($E$2,'Data by Building Type'!$D$22:$F$22,0))=\"Yes\",1,0)*\n(T$10*OFFSET('Efficiency Distributions'!$D$10,MATCH($C15,'Efficiency Distributions'!$C$9:$C$87,0)+RIGHT($E19),0)\n+T$11*OFFSET('Efficiency Distributions'!$E$10,MATCH($C15,'Efficiency Distributions'!$C$9:$C$87,0)+RIGHT($E19),0))\n/SUM(T$10:T$11)","v":0},{"$f":"IF(INDEX(PC_MAPPING,RIGHT($C15,1),MATCH($E$2,'Data by Building Type'!$D$22:$F$22,0))=\"Yes\",1,0)*\n(U$10*OFFSET('Efficiency Distributions'!$D$10,MATCH($C15,'Efficiency Distributions'!$C$9:$C$87,0)+RIGHT($E19),0)\n+U$11*OFFSET('Efficiency Distributions'!$E$10,MATCH($C15,'Efficiency Distributions'!$C$9:$C$87,0)+RIGHT($E19),0))\n/SUM(U$10:U$11)","v":0},{"$f":"IF(INDEX(PC_MAPPING,RIGHT($C15,1),MATCH($E$2,'Data by Building Type'!$D$22:$F$22,0))=\"Yes\",1,0)*\n(V$10*OFFSET('Efficiency Distributions'!$D$10,MATCH($C15,'Efficiency Distributions'!$C$9:$C$87,0)+RIGHT($E19),0)\n+V$11*OFFSET('Efficiency Distributions'!$E$10,MATCH($C15,'Efficiency Distributions'!$C$9:$C$87,0)+RIGHT($E19),0))\n/SUM(V$10:V$11)","v":0},{"$f":"IF(INDEX(PC_MAPPING,RIGHT($C15,1),MATCH($E$2,'Data by Building Type'!$D$22:$F$22,0))=\"Yes\",1,0)*\n(W$10*OFFSET('Efficiency Distributions'!$D$10,MATCH($C15,'Efficiency Distributions'!$C$9:$C$87,0)+RIGHT($E19),0)\n+W$11*OFFSET('Efficiency Distributions'!$E$10,MATCH($C15,'Efficiency Distributions'!$C$9:$C$87,0)+RIGHT($E19),0))\n/SUM(W$10:W$11)","v":0},{"$f":"IF(INDEX(PC_MAPPING,RIGHT($C15,1),MATCH($E$2,'Data by Building Type'!$D$22:$F$22,0))=\"Yes\",1,0)*\n(X$10*OFFSET('Efficiency Distributions'!$D$10,MATCH($C15,'Efficiency Distributions'!$C$9:$C$87,0)+RIGHT($E19),0)\n+X$11*OFFSET('Efficiency Distributions'!$E$10,MATCH($C15,'Efficiency Distributions'!$C$9:$C$87,0)+RIGHT($E19),0))\n/SUM(X$10:X$11)","v":0},{"$f":"IF(INDEX(PC_MAPPING,RIGHT($C15,1),MATCH($E$2,'Data by Building Type'!$D$22:$F$22,0))=\"Yes\",1,0)*\n(Y$10*OFFSET('Efficiency Distributions'!$D$10,MATCH($C15,'Efficiency Distributions'!$C$9:$C$87,0)+RIGHT($E19),0)\n+Y$11*OFFSET('Efficiency Distributions'!$E$10,MATCH($C15,'Efficiency Distributions'!$C$9:$C$87,0)+RIGHT($E19),0))\n/SUM(Y$10:Y$11)","v":0},{"$f":"IF(INDEX(PC_MAPPING,RIGHT($C15,1),MATCH($E$2,'Data by Building Type'!$D$22:$F$22,0))=\"Yes\",1,0)*\n(Z$10*OFFSET('Efficiency Distributions'!$D$10,MATCH($C15,'Efficiency Distributions'!$C$9:$C$87,0)+RIGHT($E19),0)\n+Z$11*OFFSET('Efficiency Distributions'!$E$10,MATCH($C15,'Efficiency Distributions'!$C$9:$C$87,0)+RIGHT($E19),0))\n/SUM(Z$10:Z$11)","v":0},{"$f":"IF(INDEX(PC_MAPPING,RIGHT($C15,1),MATCH($E$2,'Data by Building Type'!$D$22:$F$22,0))=\"Yes\",1,0)*\n(AA$10*OFFSET('Efficiency Distributions'!$D$10,MATCH($C15,'Efficiency Distributions'!$C$9:$C$87,0)+RIGHT($E19),0)\n+AA$11*OFFSET('Efficiency Distributions'!$E$10,MATCH($C15,'Efficiency Distributions'!$C$9:$C$87,0)+RIGHT($E19),0))\n/SUM(AA$10:AA$11)","v":0},{"$f":"IF(INDEX(PC_MAPPING,RIGHT($C15,1),MATCH($E$2,'Data by Building Type'!$D$22:$F$22,0))=\"Yes\",1,0)*\n(AB$10*OFFSET('Efficiency Distributions'!$D$10,MATCH($C15,'Efficiency Distributions'!$C$9:$C$87,0)+RIGHT($E19),0)\n+AB$11*OFFSET('Efficiency Distributions'!$E$10,MATCH($C15,'Efficiency Distributions'!$C$9:$C$87,0)+RIGHT($E19),0))\n/SUM(AB$10:AB$11)","v":0},{"$f":"IF(INDEX(PC_MAPPING,RIGHT($C15,1),MATCH($E$2,'Data by Building Type'!$D$22:$F$22,0))=\"Yes\",1,0)*\n(AC$10*OFFSET('Efficiency Distributions'!$D$10,MATCH($C15,'Efficiency Distributions'!$C$9:$C$87,0)+RIGHT($E19),0)\n+AC$11*OFFSET('Efficiency Distributions'!$E$10,MATCH($C15,'Efficiency Distributions'!$C$9:$C$87,0)+RIGHT($E19),0))\n/SUM(AC$10:AC$11)","v":0},{"$f":"IF(INDEX(PC_MAPPING,RIGHT($C15,1),MATCH($E$2,'Data by Building Type'!$D$22:$F$22,0))=\"Yes\",1,0)*\n(AD$10*OFFSET('Efficiency Distributions'!$D$10,MATCH($C15,'Efficiency Distributions'!$C$9:$C$87,0)+RIGHT($E19),0)\n+AD$11*OFFSET('Efficiency Distributions'!$E$10,MATCH($C15,'Efficiency Distributions'!$C$9:$C$87,0)+RIGHT($E19),0))\n/SUM(AD$10:AD$11)","v":0},{"$f":"IF(INDEX(PC_MAPPING,RIGHT($C15,1),MATCH($E$2,'Data by Building Type'!$D$22:$F$22,0))=\"Yes\",1,0)*\n(AE$10*OFFSET('Efficiency Distributions'!$D$10,MATCH($C15,'Efficiency Distributions'!$C$9:$C$87,0)+RIGHT($E19),0)\n+AE$11*OFFSET('Efficiency Distributions'!$E$10,MATCH($C15,'Efficiency Distributions'!$C$9:$C$87,0)+RIGHT($E19),0))\n/SUM(AE$10:AE$11)","v":0},{"$f":"IF(INDEX(PC_MAPPING,RIGHT($C15,1),MATCH($E$2,'Data by Building Type'!$D$22:$F$22,0))=\"Yes\",1,0)*\n(AF$10*OFFSET('Efficiency Distributions'!$D$10,MATCH($C15,'Efficiency Distributions'!$C$9:$C$87,0)+RIGHT($E19),0)\n+AF$11*OFFSET('Efficiency Distributions'!$E$10,MATCH($C15,'Efficiency Distributions'!$C$9:$C$87,0)+RIGHT($E19),0))\n/SUM(AF$10:AF$11)","v":0},{"$f":"IF(INDEX(PC_MAPPING,RIGHT($C15,1),MATCH($E$2,'Data by Building Type'!$D$22:$F$22,0))=\"Yes\",1,0)*\n(AG$10*OFFSET('Efficiency Distributions'!$D$10,MATCH($C15,'Efficiency Distributions'!$C$9:$C$87,0)+RIGHT($E19),0)\n+AG$11*OFFSET('Efficiency Distributions'!$E$10,MATCH($C15,'Efficiency Distributions'!$C$9:$C$87,0)+RIGHT($E19),0))\n/SUM(AG$10:AG$11)","v":0},{"$f":"IF(INDEX(PC_MAPPING,RIGHT($C15,1),MATCH($E$2,'Data by Building Type'!$D$22:$F$22,0))=\"Yes\",1,0)*\n(AH$10*OFFSET('Efficiency Distributions'!$D$10,MATCH($C15,'Efficiency Distributions'!$C$9:$C$87,0)+RIGHT($E19),0)\n+AH$11*OFFSET('Efficiency Distributions'!$E$10,MATCH($C15,'Efficiency Distributions'!$C$9:$C$87,0)+RIGHT($E19),0))\n/SUM(AH$10:AH$11)","v":0},{"$f":"IF(INDEX(PC_MAPPING,RIGHT($C15,1),MATCH($E$2,'Data by Building Type'!$D$22:$F$22,0))=\"Yes\",1,0)*\n(AI$10*OFFSET('Efficiency Distributions'!$D$10,MATCH($C15,'Efficiency Distributions'!$C$9:$C$87,0)+RIGHT($E19),0)\n+AI$11*OFFSET('Efficiency Distributions'!$E$10,MATCH($C15,'Efficiency Distributions'!$C$9:$C$87,0)+RIGHT($E19),0))\n/SUM(AI$10:AI$11)","v":0},{"$f":"IF(INDEX(PC_MAPPING,RIGHT($C15,1),MATCH($E$2,'Data by Building Type'!$D$22:$F$22,0))=\"Yes\",1,0)*\n(AJ$10*OFFSET('Efficiency Distributions'!$D$10,MATCH($C15,'Efficiency Distributions'!$C$9:$C$87,0)+RIGHT($E19),0)\n+AJ$11*OFFSET('Efficiency Distributions'!$E$10,MATCH($C15,'Efficiency Distributions'!$C$9:$C$87,0)+RIGHT($E19),0))\n/SUM(AJ$10:AJ$11)","v":0},{"$f":"IF(INDEX(PC_MAPPING,RIGHT($C15,1),MATCH($E$2,'Data by Building Type'!$D$22:$F$22,0))=\"Yes\",1,0)*\n(AK$10*OFFSET('Efficiency Distributions'!$D$10,MATCH($C15,'Efficiency Distributions'!$C$9:$C$87,0)+RIGHT($E19),0)\n+AK$11*OFFSET('Efficiency Distributions'!$E$10,MATCH($C15,'Efficiency Distributions'!$C$9:$C$87,0)+RIGHT($E19),0))\n/SUM(AK$10:AK$11)","v":0},{"$f":"IF(INDEX(PC_MAPPING,RIGHT($C15,1),MATCH($E$2,'Data by Building Type'!$D$22:$F$22,0))=\"Yes\",1,0)*\n(AL$10*OFFSET('Efficiency Distributions'!$D$10,MATCH($C15,'Efficiency Distributions'!$C$9:$C$87,0)+RIGHT($E19),0)\n+AL$11*OFFSET('Efficiency Distributions'!$E$10,MATCH($C15,'Efficiency Distributions'!$C$9:$C$87,0)+RIGHT($E19),0))\n/SUM(AL$10:AL$11)","v":0},{"$f":"IF(INDEX(PC_MAPPING,RIGHT($C15,1),MATCH($E$2,'Data by Building Type'!$D$22:$F$22,0))=\"Yes\",1,0)*\n(AM$10*OFFSET('Efficiency Distributions'!$D$10,MATCH($C15,'Efficiency Distributions'!$C$9:$C$87,0)+RIGHT($E19),0)\n+AM$11*OFFSET('Efficiency Distributions'!$E$10,MATCH($C15,'Efficiency Distributions'!$C$9:$C$87,0)+RIGHT($E19),0))\n/SUM(AM$10:AM$11)","v":0},{"$f":"IF(INDEX(PC_MAPPING,RIGHT($C15,1),MATCH($E$2,'Data by Building Type'!$D$22:$F$22,0))=\"Yes\",1,0)*\n(AN$10*OFFSET('Efficiency Distributions'!$D$10,MATCH($C15,'Efficiency Distributions'!$C$9:$C$87,0)+RIGHT($E19),0)\n+AN$11*OFFSET('Efficiency Distributions'!$E$10,MATCH($C15,'Efficiency Distributions'!$C$9:$C$87,0)+RIGHT($E19),0))\n/SUM(AN$10:AN$11)","v":0},{"$f":"IF(INDEX(PC_MAPPING,RIGHT($C15,1),MATCH($E$2,'Data by Building Type'!$D$22:$F$22,0))=\"Yes\",1,0)*\n(AO$10*OFFSET('Efficiency Distributions'!$D$10,MATCH($C15,'Efficiency Distributions'!$C$9:$C$87,0)+RIGHT($E19),0)\n+AO$11*OFFSET('Efficiency Distributions'!$E$10,MATCH($C15,'Efficiency Distributions'!$C$9:$C$87,0)+RIGHT($E19),0))\n/SUM(AO$10:AO$11)","v":0},{"$f":"IF(INDEX(PC_MAPPING,RIGHT($C15,1),MATCH($E$2,'Data by Building Type'!$D$22:$F$22,0))=\"Yes\",1,0)*\n(AP$10*OFFSET('Efficiency Distributions'!$D$10,MATCH($C15,'Efficiency Distributions'!$C$9:$C$87,0)+RIGHT($E19),0)\n+AP$11*OFFSET('Efficiency Distributions'!$E$10,MATCH($C15,'Efficiency Distributions'!$C$9:$C$87,0)+RIGHT($E19),0))\n/SUM(AP$10:AP$11)","v":0},{"$f":"IF(INDEX(PC_MAPPING,RIGHT($C15,1),MATCH($E$2,'Data by Building Type'!$D$22:$F$22,0))=\"Yes\",1,0)*\n(AQ$10*OFFSET('Efficiency Distributions'!$D$10,MATCH($C15,'Efficiency Distributions'!$C$9:$C$87,0)+RIGHT($E19),0)\n+AQ$11*OFFSET('Efficiency Distributions'!$E$10,MATCH($C15,'Efficiency Distributions'!$C$9:$C$87,0)+RIGHT($E19),0))\n/SUM(AQ$10:AQ$11)","v":0},{"$f":"IF(INDEX(PC_MAPPING,RIGHT($C15,1),MATCH($E$2,'Data by Building Type'!$D$22:$F$22,0))=\"Yes\",1,0)*\n(AR$10*OFFSET('Efficiency Distributions'!$D$10,MATCH($C15,'Efficiency Distributions'!$C$9:$C$87,0)+RIGHT($E19),0)\n+AR$11*OFFSET('Efficiency Distributions'!$E$10,MATCH($C15,'Efficiency Distributions'!$C$9:$C$87,0)+RIGHT($E19),0))\n/SUM(AR$10:AR$11)","v":0},{"$f":"IF(INDEX(PC_MAPPING,RIGHT($C15,1),MATCH($E$2,'Data by Building Type'!$D$22:$F$22,0))=\"Yes\",1,0)*\n(AS$10*OFFSET('Efficiency Distributions'!$D$10,MATCH($C15,'Efficiency Distributions'!$C$9:$C$87,0)+RIGHT($E19),0)\n+AS$11*OFFSET('Efficiency Distributions'!$E$10,MATCH($C15,'Efficiency Distributions'!$C$9:$C$87,0)+RIGHT($E19),0))\n/SUM(AS$10:AS$11)","v":0},{"$f":"IF(INDEX(PC_MAPPING,RIGHT($C15,1),MATCH($E$2,'Data by Building Type'!$D$22:$F$22,0))=\"Yes\",1,0)*\n(AT$10*OFFSET('Efficiency Distributions'!$D$10,MATCH($C15,'Efficiency Distributions'!$C$9:$C$87,0)+RIGHT($E19),0)\n+AT$11*OFFSET('Efficiency Distributions'!$E$10,MATCH($C15,'Efficiency Distributions'!$C$9:$C$87,0)+RIGHT($E19),0))\n/SUM(AT$10:AT$11)","v":0},{"$f":"IF(INDEX(PC_MAPPING,RIGHT($C15,1),MATCH($E$2,'Data by Building Type'!$D$22:$F$22,0))=\"Yes\",1,0)*\n(AU$10*OFFSET('Efficiency Distributions'!$D$10,MATCH($C15,'Efficiency Distributions'!$C$9:$C$87,0)+RIGHT($E19),0)\n+AU$11*OFFSET('Efficiency Distributions'!$E$10,MATCH($C15,'Efficiency Distributions'!$C$9:$C$87,0)+RIGHT($E19),0))\n/SUM(AU$10:AU$11)","v":0},{"$f":"IF(INDEX(PC_MAPPING,RIGHT($C15,1),MATCH($E$2,'Data by Building Type'!$D$22:$F$22,0))=\"Yes\",1,0)*\n(AV$10*OFFSET('Efficiency Distributions'!$D$10,MATCH($C15,'Efficiency Distributions'!$C$9:$C$87,0)+RIGHT($E19),0)\n+AV$11*OFFSET('Efficiency Distributions'!$E$10,MATCH($C15,'Efficiency Distributions'!$C$9:$C$87,0)+RIGHT($E19),0))\n/SUM(AV$10:AV$11)","v":0},{"$f":"IF(INDEX(PC_MAPPING,RIGHT($C15,1),MATCH($E$2,'Data by Building Type'!$D$22:$F$22,0))=\"Yes\",1,0)*\n(AW$10*OFFSET('Efficiency Distributions'!$D$10,MATCH($C15,'Efficiency Distributions'!$C$9:$C$87,0)+RIGHT($E19),0)\n+AW$11*OFFSET('Efficiency Distributions'!$E$10,MATCH($C15,'Efficiency Distributions'!$C$9:$C$87,0)+RIGHT($E19),0))\n/SUM(AW$10:AW$11)","v":0},{"$f":"IF(INDEX(PC_MAPPING,RIGHT($C15,1),MATCH($E$2,'Data by Building Type'!$D$22:$F$22,0))=\"Yes\",1,0)*\n(AX$10*OFFSET('Efficiency Distributions'!$D$10,MATCH($C15,'Efficiency Distributions'!$C$9:$C$87,0)+RIGHT($E19),0)\n+AX$11*OFFSET('Efficiency Distributions'!$E$10,MATCH($C15,'Efficiency Distributions'!$C$9:$C$87,0)+RIGHT($E19),0))\n/SUM(AX$10:AX$11)","v":0},{"$f":"IF(INDEX(PC_MAPPING,RIGHT($C15,1),MATCH($E$2,'Data by Building Type'!$D$22:$F$22,0))=\"Yes\",1,0)*\n(AY$10*OFFSET('Efficiency Distributions'!$D$10,MATCH($C15,'Efficiency Distributions'!$C$9:$C$87,0)+RIGHT($E19),0)\n+AY$11*OFFSET('Efficiency Distributions'!$E$10,MATCH($C15,'Efficiency Distributions'!$C$9:$C$87,0)+RIGHT($E19),0))\n/SUM(AY$10:AY$11)","v":0},{"$f":"IF(INDEX(PC_MAPPING,RIGHT($C15,1),MATCH($E$2,'Data by Building Type'!$D$22:$F$22,0))=\"Yes\",1,0)*\n(AZ$10*OFFSET('Efficiency Distributions'!$D$10,MATCH($C15,'Efficiency Distributions'!$C$9:$C$87,0)+RIGHT($E19),0)\n+AZ$11*OFFSET('Efficiency Distributions'!$E$10,MATCH($C15,'Efficiency Distributions'!$C$9:$C$87,0)+RIGHT($E19),0))\n/SUM(AZ$10:AZ$11)","v":0},{"$f":"IF(INDEX(PC_MAPPING,RIGHT($C15,1),MATCH($E$2,'Data by Building Type'!$D$22:$F$22,0))=\"Yes\",1,0)*\n(BA$10*OFFSET('Efficiency Distributions'!$D$10,MATCH($C15,'Efficiency Distributions'!$C$9:$C$87,0)+RIGHT($E19),0)\n+BA$11*OFFSET('Efficiency Distributions'!$E$10,MATCH($C15,'Efficiency Distributions'!$C$9:$C$87,0)+RIGHT($E19),0))\n/SUM(BA$10:BA$11)","v":0},{"$f":"IF(INDEX(PC_MAPPING,RIGHT($C15,1),MATCH($E$2,'Data by Building Type'!$D$22:$F$22,0))=\"Yes\",1,0)*\n(BB$10*OFFSET('Efficiency Distributions'!$D$10,MATCH($C15,'Efficiency Distributions'!$C$9:$C$87,0)+RIGHT($E19),0)\n+BB$11*OFFSET('Efficiency Distributions'!$E$10,MATCH($C15,'Efficiency Distributions'!$C$9:$C$87,0)+RIGHT($E19),0))\n/SUM(BB$10:BB$11)","v":0},{"$f":"IF(INDEX(PC_MAPPING,RIGHT($C15,1),MATCH($E$2,'Data by Building Type'!$D$22:$F$22,0))=\"Yes\",1,0)*\n(BC$10*OFFSET('Efficiency Distributions'!$D$10,MATCH($C15,'Efficiency Distributions'!$C$9:$C$87,0)+RIGHT($E19),0)\n+BC$11*OFFSET('Efficiency Distributions'!$E$10,MATCH($C15,'Efficiency Distributions'!$C$9:$C$87,0)+RIGHT($E19),0))\n/SUM(BC$10:BC$11)","v":0},{"$f":"IF(INDEX(PC_MAPPING,RIGHT($C15,1),MATCH($E$2,'Data by Building Type'!$D$22:$F$22,0))=\"Yes\",1,0)*\n(BD$10*OFFSET('Efficiency Distributions'!$D$10,MATCH($C15,'Efficiency Distributions'!$C$9:$C$87,0)+RIGHT($E19),0)\n+BD$11*OFFSET('Efficiency Distributions'!$E$10,MATCH($C15,'Efficiency Distributions'!$C$9:$C$87,0)+RIGHT($E19),0))\n/SUM(BD$10:BD$11)","v":0},{"$f":"IF(INDEX(PC_MAPPING,RIGHT($C15,1),MATCH($E$2,'Data by Building Type'!$D$22:$F$22,0))=\"Yes\",1,0)*\n(BE$10*OFFSET('Efficiency Distributions'!$D$10,MATCH($C15,'Efficiency Distributions'!$C$9:$C$87,0)+RIGHT($E19),0)\n+BE$11*OFFSET('Efficiency Distributions'!$E$10,MATCH($C15,'Efficiency Distributions'!$C$9:$C$87,0)+RIGHT($E19),0))\n/SUM(BE$10:BE$11)","v":0},{"$f":"IF(INDEX(PC_MAPPING,RIGHT($C15,1),MATCH($E$2,'Data by Building Type'!$D$22:$F$22,0))=\"Yes\",1,0)*\n(BF$10*OFFSET('Efficiency Distributions'!$D$10,MATCH($C15,'Efficiency Distributions'!$C$9:$C$87,0)+RIGHT($E19),0)\n+BF$11*OFFSET('Efficiency Distributions'!$E$10,MATCH($C15,'Efficiency Distributions'!$C$9:$C$87,0)+RIGHT($E19),0))\n/SUM(BF$10:BF$11)","v":0},{"$f":"IF(INDEX(PC_MAPPING,RIGHT($C15,1),MATCH($E$2,'Data by Building Type'!$D$22:$F$22,0))=\"Yes\",1,0)*\n(BG$10*OFFSET('Efficiency Distributions'!$D$10,MATCH($C15,'Efficiency Distributions'!$C$9:$C$87,0)+RIGHT($E19),0)\n+BG$11*OFFSET('Efficiency Distributions'!$E$10,MATCH($C15,'Efficiency Distributions'!$C$9:$C$87,0)+RIGHT($E19),0))\n/SUM(BG$10:BG$11)","v":0}]
[null,null,null,null,"EL1",{"$f":"IF(INDEX(PC_MAPPING,RIGHT($C15,1),MATCH($E$2,'Data by Building Type'!$D$22:$F$22,0))=\"Yes\",1,0)*\n(F$10*OFFSET('Efficiency Distributions'!$D$10,MATCH($C15,'Efficiency Distributions'!$C$9:$C$87,0)+RIGHT($E20),0)\n+F$11*OFFSET('Efficiency Distributions'!$E$10,MATCH($C15,'Efficiency Distributions'!$C$9:$C$87,0)+RIGHT($E20),0))\n/SUM(F$10:F$11)","v":0},{"$f":"IF(INDEX(PC_MAPPING,RIGHT($C15,1),MATCH($E$2,'Data by Building Type'!$D$22:$F$22,0))=\"Yes\",1,0)*\n(G$10*OFFSET('Efficiency Distributions'!$D$10,MATCH($C15,'Efficiency Distributions'!$C$9:$C$87,0)+RIGHT($E20),0)\n+G$11*OFFSET('Efficiency Distributions'!$E$10,MATCH($C15,'Efficiency Distributions'!$C$9:$C$87,0)+RIGHT($E20),0))\n/SUM(G$10:G$11)","v":0},{"$f":"IF(INDEX(PC_MAPPING,RIGHT($C15,1),MATCH($E$2,'Data by Building Type'!$D$22:$F$22,0))=\"Yes\",1,0)*\n(H$10*OFFSET('Efficiency Distributions'!$D$10,MATCH($C15,'Efficiency Distributions'!$C$9:$C$87,0)+RIGHT($E20),0)\n+H$11*OFFSET('Efficiency Distributions'!$E$10,MATCH($C15,'Efficiency Distributions'!$C$9:$C$87,0)+RIGHT($E20),0))\n/SUM(H$10:H$11)","v":0},{"$f":"IF(INDEX(PC_MAPPING,RIGHT($C15,1),MATCH($E$2,'Data by Building Type'!$D$22:$F$22,0))=\"Yes\",1,0)*\n(I$10*OFFSET('Efficiency Distributions'!$D$10,MATCH($C15,'Efficiency Distributions'!$C$9:$C$87,0)+RIGHT($E20),0)\n+I$11*OFFSET('Efficiency Distributions'!$E$10,MATCH($C15,'Efficiency Distributions'!$C$9:$C$87,0)+RIGHT($E20),0))\n/SUM(I$10:I$11)","v":0},{"$f":"IF(INDEX(PC_MAPPING,RIGHT($C15,1),MATCH($E$2,'Data by Building Type'!$D$22:$F$22,0))=\"Yes\",1,0)*\n(J$10*OFFSET('Efficiency Distributions'!$D$10,MATCH($C15,'Efficiency Distributions'!$C$9:$C$87,0)+RIGHT($E20),0)\n+J$11*OFFSET('Efficiency Distributions'!$E$10,MATCH($C15,'Efficiency Distributions'!$C$9:$C$87,0)+RIGHT($E20),0))\n/SUM(J$10:J$11)","v":0},{"$f":"IF(INDEX(PC_MAPPING,RIGHT($C15,1),MATCH($E$2,'Data by Building Type'!$D$22:$F$22,0))=\"Yes\",1,0)*\n(K$10*OFFSET('Efficiency Distributions'!$D$10,MATCH($C15,'Efficiency Distributions'!$C$9:$C$87,0)+RIGHT($E20),0)\n+K$11*OFFSET('Efficiency Distributions'!$E$10,MATCH($C15,'Efficiency Distributions'!$C$9:$C$87,0)+RIGHT($E20),0))\n/SUM(K$10:K$11)","v":0},{"$f":"IF(INDEX(PC_MAPPING,RIGHT($C15,1),MATCH($E$2,'Data by Building Type'!$D$22:$F$22,0))=\"Yes\",1,0)*\n(L$10*OFFSET('Efficiency Distributions'!$D$10,MATCH($C15,'Efficiency Distributions'!$C$9:$C$87,0)+RIGHT($E20),0)\n+L$11*OFFSET('Efficiency Distributions'!$E$10,MATCH($C15,'Efficiency Distributions'!$C$9:$C$87,0)+RIGHT($E20),0))\n/SUM(L$10:L$11)","v":0},{"$f":"IF(INDEX(PC_MAPPING,RIGHT($C15,1),MATCH($E$2,'Data by Building Type'!$D$22:$F$22,0))=\"Yes\",1,0)*\n(M$10*OFFSET('Efficiency Distributions'!$D$10,MATCH($C15,'Efficiency Distributions'!$C$9:$C$87,0)+RIGHT($E20),0)\n+M$11*OFFSET('Efficiency Distributions'!$E$10,MATCH($C15,'Efficiency Distributions'!$C$9:$C$87,0)+RIGHT($E20),0))\n/SUM(M$10:M$11)","v":0},{"$f":"IF(INDEX(PC_MAPPING,RIGHT($C15,1),MATCH($E$2,'Data by Building Type'!$D$22:$F$22,0))=\"Yes\",1,0)*\n(N$10*OFFSET('Efficiency Distributions'!$D$10,MATCH($C15,'Efficiency Distributions'!$C$9:$C$87,0)+RIGHT($E20),0)\n+N$11*OFFSET('Efficiency Distributions'!$E$10,MATCH($C15,'Efficiency Distributions'!$C$9:$C$87,0)+RIGHT($E20),0))\n/SUM(N$10:N$11)","v":0},{"$f":"IF(INDEX(PC_MAPPING,RIGHT($C15,1),MATCH($E$2,'Data by Building Type'!$D$22:$F$22,0))=\"Yes\",1,0)*\n(O$10*OFFSET('Efficiency Distributions'!$D$10,MATCH($C15,'Efficiency Distributions'!$C$9:$C$87,0)+RIGHT($E20),0)\n+O$11*OFFSET('Efficiency Distributions'!$E$10,MATCH($C15,'Efficiency Distributions'!$C$9:$C$87,0)+RIGHT($E20),0))\n/SUM(O$10:O$11)","v":0},{"$f":"IF(INDEX(PC_MAPPING,RIGHT($C15,1),MATCH($E$2,'Data by Building Type'!$D$22:$F$22,0))=\"Yes\",1,0)*\n(P$10*OFFSET('Efficiency Distributions'!$D$10,MATCH($C15,'Efficiency Distributions'!$C$9:$C$87,0)+RIGHT($E20),0)\n+P$11*OFFSET('Efficiency Distributions'!$E$10,MATCH($C15,'Efficiency Distributions'!$C$9:$C$87,0)+RIGHT($E20),0))\n/SUM(P$10:P$11)","v":0},{"$f":"IF(INDEX(PC_MAPPING,RIGHT($C15,1),MATCH($E$2,'Data by Building Type'!$D$22:$F$22,0))=\"Yes\",1,0)*\n(Q$10*OFFSET('Efficiency Distributions'!$D$10,MATCH($C15,'Efficiency Distributions'!$C$9:$C$87,0)+RIGHT($E20),0)\n+Q$11*OFFSET('Efficiency Distributions'!$E$10,MATCH($C15,'Efficiency Distributions'!$C$9:$C$87,0)+RIGHT($E20),0))\n/SUM(Q$10:Q$11)","v":0},{"$f":"IF(INDEX(PC_MAPPING,RIGHT($C15,1),MATCH($E$2,'Data by Building Type'!$D$22:$F$22,0))=\"Yes\",1,0)*\n(R$10*OFFSET('Efficiency Distributions'!$D$10,MATCH($C15,'Efficiency Distributions'!$C$9:$C$87,0)+RIGHT($E20),0)\n+R$11*OFFSET('Efficiency Distributions'!$E$10,MATCH($C15,'Efficiency Distributions'!$C$9:$C$87,0)+RIGHT($E20),0))\n/SUM(R$10:R$11)","v":0},{"$f":"IF(INDEX(PC_MAPPING,RIGHT($C15,1),MATCH($E$2,'Data by Building Type'!$D$22:$F$22,0))=\"Yes\",1,0)*\n(S$10*OFFSET('Efficiency Distributions'!$D$10,MATCH($C15,'Efficiency Distributions'!$C$9:$C$87,0)+RIGHT($E20),0)\n+S$11*OFFSET('Efficiency Distributions'!$E$10,MATCH($C15,'Efficiency Distributions'!$C$9:$C$87,0)+RIGHT($E20),0))\n/SUM(S$10:S$11)","v":0},{"$f":"IF(INDEX(PC_MAPPING,RIGHT($C15,1),MATCH($E$2,'Data by Building Type'!$D$22:$F$22,0))=\"Yes\",1,0)*\n(T$10*OFFSET('Efficiency Distributions'!$D$10,MATCH($C15,'Efficiency Distributions'!$C$9:$C$87,0)+RIGHT($E20),0)\n+T$11*OFFSET('Efficiency Distributions'!$E$10,MATCH($C15,'Efficiency Distributions'!$C$9:$C$87,0)+RIGHT($E20),0))\n/SUM(T$10:T$11)","v":0},{"$f":"IF(INDEX(PC_MAPPING,RIGHT($C15,1),MATCH($E$2,'Data by Building Type'!$D$22:$F$22,0))=\"Yes\",1,0)*\n(U$10*OFFSET('Efficiency Distributions'!$D$10,MATCH($C15,'Efficiency Distributions'!$C$9:$C$87,0)+RIGHT($E20),0)\n+U$11*OFFSET('Efficiency Distributions'!$E$10,MATCH($C15,'Efficiency Distributions'!$C$9:$C$87,0)+RIGHT($E20),0))\n/SUM(U$10:U$11)","v":0},{"$f":"IF(INDEX(PC_MAPPING,RIGHT($C15,1),MATCH($E$2,'Data by Building Type'!$D$22:$F$22,0))=\"Yes\",1,0)*\n(V$10*OFFSET('Efficiency Distributions'!$D$10,MATCH($C15,'Efficiency Distributions'!$C$9:$C$87,0)+RIGHT($E20),0)\n+V$11*OFFSET('Efficiency Distributions'!$E$10,MATCH($C15,'Efficiency Distributions'!$C$9:$C$87,0)+RIGHT($E20),0))\n/SUM(V$10:V$11)","v":0},{"$f":"IF(INDEX(PC_MAPPING,RIGHT($C15,1),MATCH($E$2,'Data by Building Type'!$D$22:$F$22,0))=\"Yes\",1,0)*\n(W$10*OFFSET('Efficiency Distributions'!$D$10,MATCH($C15,'Efficiency Distributions'!$C$9:$C$87,0)+RIGHT($E20),0)\n+W$11*OFFSET('Efficiency Distributions'!$E$10,MATCH($C15,'Efficiency Distributions'!$C$9:$C$87,0)+RIGHT($E20),0))\n/SUM(W$10:W$11)","v":0},{"$f":"IF(INDEX(PC_MAPPING,RIGHT($C15,1),MATCH($E$2,'Data by Building Type'!$D$22:$F$22,0))=\"Yes\",1,0)*\n(X$10*OFFSET('Efficiency Distributions'!$D$10,MATCH($C15,'Efficiency Distributions'!$C$9:$C$87,0)+RIGHT($E20),0)\n+X$11*OFFSET('Efficiency Distributions'!$E$10,MATCH($C15,'Efficiency Distributions'!$C$9:$C$87,0)+RIGHT($E20),0))\n/SUM(X$10:X$11)","v":0},{"$f":"IF(INDEX(PC_MAPPING,RIGHT($C15,1),MATCH($E$2,'Data by Building Type'!$D$22:$F$22,0))=\"Yes\",1,0)*\n(Y$10*OFFSET('Efficiency Distributions'!$D$10,MATCH($C15,'Efficiency Distributions'!$C$9:$C$87,0)+RIGHT($E20),0)\n+Y$11*OFFSET('Efficiency Distributions'!$E$10,MATCH($C15,'Efficiency Distributions'!$C$9:$C$87,0)+RIGHT($E20),0))\n/SUM(Y$10:Y$11)","v":0},{"$f":"IF(INDEX(PC_MAPPING,RIGHT($C15,1),MATCH($E$2,'Data by Building Type'!$D$22:$F$22,0))=\"Yes\",1,0)*\n(Z$10*OFFSET('Efficiency Distributions'!$D$10,MATCH($C15,'Efficiency Distributions'!$C$9:$C$87,0)+RIGHT($E20),0)\n+Z$11*OFFSET('Efficiency Distributions'!$E$10,MATCH($C15,'Efficiency Distributions'!$C$9:$C$87,0)+RIGHT($E20),0))\n/SUM(Z$10:Z$11)","v":0},{"$f":"IF(INDEX(PC_MAPPING,RIGHT($C15,1),MATCH($E$2,'Data by Building Type'!$D$22:$F$22,0))=\"Yes\",1,0)*\n(AA$10*OFFSET('Efficiency Distributions'!$D$10,MATCH($C15,'Efficiency Distributions'!$C$9:$C$87,0)+RIGHT($E20),0)\n+AA$11*OFFSET('Efficiency Distributions'!$E$10,MATCH($C15,'Efficiency Distributions'!$C$9:$C$87,0)+RIGHT($E20),0))\n/SUM(AA$10:AA$11)","v":0},{"$f":"IF(INDEX(PC_MAPPING,RIGHT($C15,1),MATCH($E$2,'Data by Building Type'!$D$22:$F$22,0))=\"Yes\",1,0)*\n(AB$10*OFFSET('Efficiency Distributions'!$D$10,MATCH($C15,'Efficiency Distributions'!$C$9:$C$87,0)+RIGHT($E20),0)\n+AB$11*OFFSET('Efficiency Distributions'!$E$10,MATCH($C15,'Efficiency Distributions'!$C$9:$C$87,0)+RIGHT($E20),0))\n/SUM(AB$10:AB$11)","v":0},{"$f":"IF(INDEX(PC_MAPPING,RIGHT($C15,1),MATCH($E$2,'Data by Building Type'!$D$22:$F$22,0))=\"Yes\",1,0)*\n(AC$10*OFFSET('Efficiency Distributions'!$D$10,MATCH($C15,'Efficiency Distributions'!$C$9:$C$87,0)+RIGHT($E20),0)\n+AC$11*OFFSET('Efficiency Distributions'!$E$10,MATCH($C15,'Efficiency Distributions'!$C$9:$C$87,0)+RIGHT($E20),0))\n/SUM(AC$10:AC$11)","v":0},{"$f":"IF(INDEX(PC_MAPPING,RIGHT($C15,1),MATCH($E$2,'Data by Building Type'!$D$22:$F$22,0))=\"Yes\",1,0)*\n(AD$10*OFFSET('Efficiency Distributions'!$D$10,MATCH($C15,'Efficiency Distributions'!$C$9:$C$87,0)+RIGHT($E20),0)\n+AD$11*OFFSET('Efficiency Distributions'!$E$10,MATCH($C15,'Efficiency Distributions'!$C$9:$C$87,0)+RIGHT($E20),0))\n/SUM(AD$10:AD$11)","v":0},{"$f":"IF(INDEX(PC_MAPPING,RIGHT($C15,1),MATCH($E$2,'Data by Building Type'!$D$22:$F$22,0))=\"Yes\",1,0)*\n(AE$10*OFFSET('Efficiency Distributions'!$D$10,MATCH($C15,'Efficiency Distributions'!$C$9:$C$87,0)+RIGHT($E20),0)\n+AE$11*OFFSET('Efficiency Distributions'!$E$10,MATCH($C15,'Efficiency Distributions'!$C$9:$C$87,0)+RIGHT($E20),0))\n/SUM(AE$10:AE$11)","v":0},{"$f":"IF(INDEX(PC_MAPPING,RIGHT($C15,1),MATCH($E$2,'Data by Building Type'!$D$22:$F$22,0))=\"Yes\",1,0)*\n(AF$10*OFFSET('Efficiency Distributions'!$D$10,MATCH($C15,'Efficiency Distributions'!$C$9:$C$87,0)+RIGHT($E20),0)\n+AF$11*OFFSET('Efficiency Distributions'!$E$10,MATCH($C15,'Efficiency Distributions'!$C$9:$C$87,0)+RIGHT($E20),0))\n/SUM(AF$10:AF$11)","v":0},{"$f":"IF(INDEX(PC_MAPPING,RIGHT($C15,1),MATCH($E$2,'Data by Building Type'!$D$22:$F$22,0))=\"Yes\",1,0)*\n(AG$10*OFFSET('Efficiency Distributions'!$D$10,MATCH($C15,'Efficiency Distributions'!$C$9:$C$87,0)+RIGHT($E20),0)\n+AG$11*OFFSET('Efficiency Distributions'!$E$10,MATCH($C15,'Efficiency Distributions'!$C$9:$C$87,0)+RIGHT($E20),0))\n/SUM(AG$10:AG$11)","v":0},{"$f":"IF(INDEX(PC_MAPPING,RIGHT($C15,1),MATCH($E$2,'Data by Building Type'!$D$22:$F$22,0))=\"Yes\",1,0)*\n(AH$10*OFFSET('Efficiency Distributions'!$D$10,MATCH($C15,'Efficiency Distributions'!$C$9:$C$87,0)+RIGHT($E20),0)\n+AH$11*OFFSET('Efficiency Distributions'!$E$10,MATCH($C15,'Efficiency Distributions'!$C$9:$C$87,0)+RIGHT($E20),0))\n/SUM(AH$10:AH$11)","v":0},{"$f":"IF(INDEX(PC_MAPPING,RIGHT($C15,1),MATCH($E$2,'Data by Building Type'!$D$22:$F$22,0))=\"Yes\",1,0)*\n(AI$10*OFFSET('Efficiency Distributions'!$D$10,MATCH($C15,'Efficiency Distributions'!$C$9:$C$87,0)+RIGHT($E20),0)\n+AI$11*OFFSET('Efficiency Distributions'!$E$10,MATCH($C15,'Efficiency Distributions'!$C$9:$C$87,0)+RIGHT($E20),0))\n/SUM(AI$10:AI$11)","v":0},{"$f":"IF(INDEX(PC_MAPPING,RIGHT($C15,1),MATCH($E$2,'Data by Building Type'!$D$22:$F$22,0))=\"Yes\",1,0)*\n(AJ$10*OFFSET('Efficiency Distributions'!$D$10,MATCH($C15,'Efficiency Distributions'!$C$9:$C$87,0)+RIGHT($E20),0)\n+AJ$11*OFFSET('Efficiency Distributions'!$E$10,MATCH($C15,'Efficiency Distributions'!$C$9:$C$87,0)+RIGHT($E20),0))\n/SUM(AJ$10:AJ$11)","v":0},{"$f":"IF(INDEX(PC_MAPPING,RIGHT($C15,1),MATCH($E$2,'Data by Building Type'!$D$22:$F$22,0))=\"Yes\",1,0)*\n(AK$10*OFFSET('Efficiency Distributions'!$D$10,MATCH($C15,'Efficiency Distributions'!$C$9:$C$87,0)+RIGHT($E20),0)\n+AK$11*OFFSET('Efficiency Distributions'!$E$10,MATCH($C15,'Efficiency Distributions'!$C$9:$C$87,0)+RIGHT($E20),0))\n/SUM(AK$10:AK$11)","v":0},{"$f":"IF(INDEX(PC_MAPPING,RIGHT($C15,1),MATCH($E$2,'Data by Building Type'!$D$22:$F$22,0))=\"Yes\",1,0)*\n(AL$10*OFFSET('Efficiency Distributions'!$D$10,MATCH($C15,'Efficiency Distributions'!$C$9:$C$87,0)+RIGHT($E20),0)\n+AL$11*OFFSET('Efficiency Distributions'!$E$10,MATCH($C15,'Efficiency Distributions'!$C$9:$C$87,0)+RIGHT($E20),0))\n/SUM(AL$10:AL$11)","v":0},{"$f":"IF(INDEX(PC_MAPPING,RIGHT($C15,1),MATCH($E$2,'Data by Building Type'!$D$22:$F$22,0))=\"Yes\",1,0)*\n(AM$10*OFFSET('Efficiency Distributions'!$D$10,MATCH($C15,'Efficiency Distributions'!$C$9:$C$87,0)+RIGHT($E20),0)\n+AM$11*OFFSET('Efficiency Distributions'!$E$10,MATCH($C15,'Efficiency Distributions'!$C$9:$C$87,0)+RIGHT($E20),0))\n/SUM(AM$10:AM$11)","v":0},{"$f":"IF(INDEX(PC_MAPPING,RIGHT($C15,1),MATCH($E$2,'Data by Building Type'!$D$22:$F$22,0))=\"Yes\",1,0)*\n(AN$10*OFFSET('Efficiency Distributions'!$D$10,MATCH($C15,'Efficiency Distributions'!$C$9:$C$87,0)+RIGHT($E20),0)\n+AN$11*OFFSET('Efficiency Distributions'!$E$10,MATCH($C15,'Efficiency Distributions'!$C$9:$C$87,0)+RIGHT($E20),0))\n/SUM(AN$10:AN$11)","v":0},{"$f":"IF(INDEX(PC_MAPPING,RIGHT($C15,1),MATCH($E$2,'Data by Building Type'!$D$22:$F$22,0))=\"Yes\",1,0)*\n(AO$10*OFFSET('Efficiency Distributions'!$D$10,MATCH($C15,'Efficiency Distributions'!$C$9:$C$87,0)+RIGHT($E20),0)\n+AO$11*OFFSET('Efficiency Distributions'!$E$10,MATCH($C15,'Efficiency Distributions'!$C$9:$C$87,0)+RIGHT($E20),0))\n/SUM(AO$10:AO$11)","v":0},{"$f":"IF(INDEX(PC_MAPPING,RIGHT($C15,1),MATCH($E$2,'Data by Building Type'!$D$22:$F$22,0))=\"Yes\",1,0)*\n(AP$10*OFFSET('Efficiency Distributions'!$D$10,MATCH($C15,'Efficiency Distributions'!$C$9:$C$87,0)+RIGHT($E20),0)\n+AP$11*OFFSET('Efficiency Distributions'!$E$10,MATCH($C15,'Efficiency Distributions'!$C$9:$C$87,0)+RIGHT($E20),0))\n/SUM(AP$10:AP$11)","v":0},{"$f":"IF(INDEX(PC_MAPPING,RIGHT($C15,1),MATCH($E$2,'Data by Building Type'!$D$22:$F$22,0))=\"Yes\",1,0)*\n(AQ$10*OFFSET('Efficiency Distributions'!$D$10,MATCH($C15,'Efficiency Distributions'!$C$9:$C$87,0)+RIGHT($E20),0)\n+AQ$11*OFFSET('Efficiency Distributions'!$E$10,MATCH($C15,'Efficiency Distributions'!$C$9:$C$87,0)+RIGHT($E20),0))\n/SUM(AQ$10:AQ$11)","v":0},{"$f":"IF(INDEX(PC_MAPPING,RIGHT($C15,1),MATCH($E$2,'Data by Building Type'!$D$22:$F$22,0))=\"Yes\",1,0)*\n(AR$10*OFFSET('Efficiency Distributions'!$D$10,MATCH($C15,'Efficiency Distributions'!$C$9:$C$87,0)+RIGHT($E20),0)\n+AR$11*OFFSET('Efficiency Distributions'!$E$10,MATCH($C15,'Efficiency Distributions'!$C$9:$C$87,0)+RIGHT($E20),0))\n/SUM(AR$10:AR$11)","v":0},{"$f":"IF(INDEX(PC_MAPPING,RIGHT($C15,1),MATCH($E$2,'Data by Building Type'!$D$22:$F$22,0))=\"Yes\",1,0)*\n(AS$10*OFFSET('Efficiency Distributions'!$D$10,MATCH($C15,'Efficiency Distributions'!$C$9:$C$87,0)+RIGHT($E20),0)\n+AS$11*OFFSET('Efficiency Distributions'!$E$10,MATCH($C15,'Efficiency Distributions'!$C$9:$C$87,0)+RIGHT($E20),0))\n/SUM(AS$10:AS$11)","v":0},{"$f":"IF(INDEX(PC_MAPPING,RIGHT($C15,1),MATCH($E$2,'Data by Building Type'!$D$22:$F$22,0))=\"Yes\",1,0)*\n(AT$10*OFFSET('Efficiency Distributions'!$D$10,MATCH($C15,'Efficiency Distributions'!$C$9:$C$87,0)+RIGHT($E20),0)\n+AT$11*OFFSET('Efficiency Distributions'!$E$10,MATCH($C15,'Efficiency Distributions'!$C$9:$C$87,0)+RIGHT($E20),0))\n/SUM(AT$10:AT$11)","v":0},{"$f":"IF(INDEX(PC_MAPPING,RIGHT($C15,1),MATCH($E$2,'Data by Building Type'!$D$22:$F$22,0))=\"Yes\",1,0)*\n(AU$10*OFFSET('Efficiency Distributions'!$D$10,MATCH($C15,'Efficiency Distributions'!$C$9:$C$87,0)+RIGHT($E20),0)\n+AU$11*OFFSET('Efficiency Distributions'!$E$10,MATCH($C15,'Efficiency Distributions'!$C$9:$C$87,0)+RIGHT($E20),0))\n/SUM(AU$10:AU$11)","v":0},{"$f":"IF(INDEX(PC_MAPPING,RIGHT($C15,1),MATCH($E$2,'Data by Building Type'!$D$22:$F$22,0))=\"Yes\",1,0)*\n(AV$10*OFFSET('Efficiency Distributions'!$D$10,MATCH($C15,'Efficiency Distributions'!$C$9:$C$87,0)+RIGHT($E20),0)\n+AV$11*OFFSET('Efficiency Distributions'!$E$10,MATCH($C15,'Efficiency Distributions'!$C$9:$C$87,0)+RIGHT($E20),0))\n/SUM(AV$10:AV$11)","v":0},{"$f":"IF(INDEX(PC_MAPPING,RIGHT($C15,1),MATCH($E$2,'Data by Building Type'!$D$22:$F$22,0))=\"Yes\",1,0)*\n(AW$10*OFFSET('Efficiency Distributions'!$D$10,MATCH($C15,'Efficiency Distributions'!$C$9:$C$87,0)+RIGHT($E20),0)\n+AW$11*OFFSET('Efficiency Distributions'!$E$10,MATCH($C15,'Efficiency Distributions'!$C$9:$C$87,0)+RIGHT($E20),0))\n/SUM(AW$10:AW$11)","v":0},{"$f":"IF(INDEX(PC_MAPPING,RIGHT($C15,1),MATCH($E$2,'Data by Building Type'!$D$22:$F$22,0))=\"Yes\",1,0)*\n(AX$10*OFFSET('Efficiency Distributions'!$D$10,MATCH($C15,'Efficiency Distributions'!$C$9:$C$87,0)+RIGHT($E20),0)\n+AX$11*OFFSET('Efficiency Distributions'!$E$10,MATCH($C15,'Efficiency Distributions'!$C$9:$C$87,0)+RIGHT($E20),0))\n/SUM(AX$10:AX$11)","v":0},{"$f":"IF(INDEX(PC_MAPPING,RIGHT($C15,1),MATCH($E$2,'Data by Building Type'!$D$22:$F$22,0))=\"Yes\",1,0)*\n(AY$10*OFFSET('Efficiency Distributions'!$D$10,MATCH($C15,'Efficiency Distributions'!$C$9:$C$87,0)+RIGHT($E20),0)\n+AY$11*OFFSET('Efficiency Distributions'!$E$10,MATCH($C15,'Efficiency Distributions'!$C$9:$C$87,0)+RIGHT($E20),0))\n/SUM(AY$10:AY$11)","v":0},{"$f":"IF(INDEX(PC_MAPPING,RIGHT($C15,1),MATCH($E$2,'Data by Building Type'!$D$22:$F$22,0))=\"Yes\",1,0)*\n(AZ$10*OFFSET('Efficiency Distributions'!$D$10,MATCH($C15,'Efficiency Distributions'!$C$9:$C$87,0)+RIGHT($E20),0)\n+AZ$11*OFFSET('Efficiency Distributions'!$E$10,MATCH($C15,'Efficiency Distributions'!$C$9:$C$87,0)+RIGHT($E20),0))\n/SUM(AZ$10:AZ$11)","v":0},{"$f":"IF(INDEX(PC_MAPPING,RIGHT($C15,1),MATCH($E$2,'Data by Building Type'!$D$22:$F$22,0))=\"Yes\",1,0)*\n(BA$10*OFFSET('Efficiency Distributions'!$D$10,MATCH($C15,'Efficiency Distributions'!$C$9:$C$87,0)+RIGHT($E20),0)\n+BA$11*OFFSET('Efficiency Distributions'!$E$10,MATCH($C15,'Efficiency Distributions'!$C$9:$C$87,0)+RIGHT($E20),0))\n/SUM(BA$10:BA$11)","v":0},{"$f":"IF(INDEX(PC_MAPPING,RIGHT($C15,1),MATCH($E$2,'Data by Building Type'!$D$22:$F$22,0))=\"Yes\",1,0)*\n(BB$10*OFFSET('Efficiency Distributions'!$D$10,MATCH($C15,'Efficiency Distributions'!$C$9:$C$87,0)+RIGHT($E20),0)\n+BB$11*OFFSET('Efficiency Distributions'!$E$10,MATCH($C15,'Efficiency Distributions'!$C$9:$C$87,0)+RIGHT($E20),0))\n/SUM(BB$10:BB$11)","v":0},{"$f":"IF(INDEX(PC_MAPPING,RIGHT($C15,1),MATCH($E$2,'Data by Building Type'!$D$22:$F$22,0))=\"Yes\",1,0)*\n(BC$10*OFFSET('Efficiency Distributions'!$D$10,MATCH($C15,'Efficiency Distributions'!$C$9:$C$87,0)+RIGHT($E20),0)\n+BC$11*OFFSET('Efficiency Distributions'!$E$10,MATCH($C15,'Efficiency Distributions'!$C$9:$C$87,0)+RIGHT($E20),0))\n/SUM(BC$10:BC$11)","v":0},{"$f":"IF(INDEX(PC_MAPPING,RIGHT($C15,1),MATCH($E$2,'Data by Building Type'!$D$22:$F$22,0))=\"Yes\",1,0)*\n(BD$10*OFFSET('Efficiency Distributions'!$D$10,MATCH($C15,'Efficiency Distributions'!$C$9:$C$87,0)+RIGHT($E20),0)\n+BD$11*OFFSET('Efficiency Distributions'!$E$10,MATCH($C15,'Efficiency Distributions'!$C$9:$C$87,0)+RIGHT($E20),0))\n/SUM(BD$10:BD$11)","v":0},{"$f":"IF(INDEX(PC_MAPPING,RIGHT($C15,1),MATCH($E$2,'Data by Building Type'!$D$22:$F$22,0))=\"Yes\",1,0)*\n(BE$10*OFFSET('Efficiency Distributions'!$D$10,MATCH($C15,'Efficiency Distributions'!$C$9:$C$87,0)+RIGHT($E20),0)\n+BE$11*OFFSET('Efficiency Distributions'!$E$10,MATCH($C15,'Efficiency Distributions'!$C$9:$C$87,0)+RIGHT($E20),0))\n/SUM(BE$10:BE$11)","v":0},{"$f":"IF(INDEX(PC_MAPPING,RIGHT($C15,1),MATCH($E$2,'Data by Building Type'!$D$22:$F$22,0))=\"Yes\",1,0)*\n(BF$10*OFFSET('Efficiency Distributions'!$D$10,MATCH($C15,'Efficiency Distributions'!$C$9:$C$87,0)+RIGHT($E20),0)\n+BF$11*OFFSET('Efficiency Distributions'!$E$10,MATCH($C15,'Efficiency Distributions'!$C$9:$C$87,0)+RIGHT($E20),0))\n/SUM(BF$10:BF$11)","v":0},{"$f":"IF(INDEX(PC_MAPPING,RIGHT($C15,1),MATCH($E$2,'Data by Building Type'!$D$22:$F$22,0))=\"Yes\",1,0)*\n(BG$10*OFFSET('Efficiency Distributions'!$D$10,MATCH($C15,'Efficiency Distributions'!$C$9:$C$87,0)+RIGHT($E20),0)\n+BG$11*OFFSET('Efficiency Distributions'!$E$10,MATCH($C15,'Efficiency Distributions'!$C$9:$C$87,0)+RIGHT($E20),0))\n/SUM(BG$10:BG$11)","v":0}]
[null,null,null,null,"EL2",{"$f":"IF(INDEX(PC_MAPPING,RIGHT($C15,1),MATCH($E$2,'Data by Building Type'!$D$22:$F$22,0))=\"Yes\",1,0)*\n(F$10*OFFSET('Efficiency Distributions'!$D$10,MATCH($C15,'Efficiency Distributions'!$C$9:$C$87,0)+RIGHT($E21),0)\n+F$11*OFFSET('Efficiency Distributions'!$E$10,MATCH($C15,'Efficiency Distributions'!$C$9:$C$87,0)+RIGHT($E21),0))\n/SUM(F$10:F$11)","v":0},{"$f":"IF(INDEX(PC_MAPPING,RIGHT($C15,1),MATCH($E$2,'Data by Building Type'!$D$22:$F$22,0))=\"Yes\",1,0)*\n(G$10*OFFSET('Efficiency Distributions'!$D$10,MATCH($C15,'Efficiency Distributions'!$C$9:$C$87,0)+RIGHT($E21),0)\n+G$11*OFFSET('Efficiency Distributions'!$E$10,MATCH($C15,'Efficiency Distributions'!$C$9:$C$87,0)+RIGHT($E21),0))\n/SUM(G$10:G$11)","v":0},{"$f":"IF(INDEX(PC_MAPPING,RIGHT($C15,1),MATCH($E$2,'Data by Building Type'!$D$22:$F$22,0))=\"Yes\",1,0)*\n(H$10*OFFSET('Efficiency Distributions'!$D$10,MATCH($C15,'Efficiency Distributions'!$C$9:$C$87,0)+RIGHT($E21),0)\n+H$11*OFFSET('Efficiency Distributions'!$E$10,MATCH($C15,'Efficiency Distributions'!$C$9:$C$87,0)+RIGHT($E21),0))\n/SUM(H$10:H$11)","v":0},{"$f":"IF(INDEX(PC_MAPPING,RIGHT($C15,1),MATCH($E$2,'Data by Building Type'!$D$22:$F$22,0))=\"Yes\",1,0)*\n(I$10*OFFSET('Efficiency Distributions'!$D$10,MATCH($C15,'Efficiency Distributions'!$C$9:$C$87,0)+RIGHT($E21),0)\n+I$11*OFFSET('Efficiency Distributions'!$E$10,MATCH($C15,'Efficiency Distributions'!$C$9:$C$87,0)+RIGHT($E21),0))\n/SUM(I$10:I$11)","v":0},{"$f":"IF(INDEX(PC_MAPPING,RIGHT($C15,1),MATCH($E$2,'Data by Building Type'!$D$22:$F$22,0))=\"Yes\",1,0)*\n(J$10*OFFSET('Efficiency Distributions'!$D$10,MATCH($C15,'Efficiency Distributions'!$C$9:$C$87,0)+RIGHT($E21),0)\n+J$11*OFFSET('Efficiency Distributions'!$E$10,MATCH($C15,'Efficiency Distributions'!$C$9:$C$87,0)+RIGHT($E21),0))\n/SUM(J$10:J$11)","v":0},{"$f":"IF(INDEX(PC_MAPPING,RIGHT($C15,1),MATCH($E$2,'Data by Building Type'!$D$22:$F$22,0))=\"Yes\",1,0)*\n(K$10*OFFSET('Efficiency Distributions'!$D$10,MATCH($C15,'Efficiency Distributions'!$C$9:$C$87,0)+RIGHT($E21),0)\n+K$11*OFFSET('Efficiency Distributions'!$E$10,MATCH($C15,'Efficiency Distributions'!$C$9:$C$87,0)+RIGHT($E21),0))\n/SUM(K$10:K$11)","v":0},{"$f":"IF(INDEX(PC_MAPPING,RIGHT($C15,1),MATCH($E$2,'Data by Building Type'!$D$22:$F$22,0))=\"Yes\",1,0)*\n(L$10*OFFSET('Efficiency Distributions'!$D$10,MATCH($C15,'Efficiency Distributions'!$C$9:$C$87,0)+RIGHT($E21),0)\n+L$11*OFFSET('Efficiency Distributions'!$E$10,MATCH($C15,'Efficiency Distributions'!$C$9:$C$87,0)+RIGHT($E21),0))\n/SUM(L$10:L$11)","v":0},{"$f":"IF(INDEX(PC_MAPPING,RIGHT($C15,1),MATCH($E$2,'Data by Building Type'!$D$22:$F$22,0))=\"Yes\",1,0)*\n(M$10*OFFSET('Efficiency Distributions'!$D$10,MATCH($C15,'Efficiency Distributions'!$C$9:$C$87,0)+RIGHT($E21),0)\n+M$11*OFFSET('Efficiency Distributions'!$E$10,MATCH($C15,'Efficiency Distributions'!$C$9:$C$87,0)+RIGHT($E21),0))\n/SUM(M$10:M$11)","v":0},{"$f":"IF(INDEX(PC_MAPPING,RIGHT($C15,1),MATCH($E$2,'Data by Building Type'!$D$22:$F$22,0))=\"Yes\",1,0)*\n(N$10*OFFSET('Efficiency Distributions'!$D$10,MATCH($C15,'Efficiency Distributions'!$C$9:$C$87,0)+RIGHT($E21),0)\n+N$11*OFFSET('Efficiency Distributions'!$E$10,MATCH($C15,'Efficiency Distributions'!$C$9:$C$87,0)+RIGHT($E21),0))\n/SUM(N$10:N$11)","v":0},{"$f":"IF(INDEX(PC_MAPPING,RIGHT($C15,1),MATCH($E$2,'Data by Building Type'!$D$22:$F$22,0))=\"Yes\",1,0)*\n(O$10*OFFSET('Efficiency Distributions'!$D$10,MATCH($C15,'Efficiency Distributions'!$C$9:$C$87,0)+RIGHT($E21),0)\n+O$11*OFFSET('Efficiency Distributions'!$E$10,MATCH($C15,'Efficiency Distributions'!$C$9:$C$87,0)+RIGHT($E21),0))\n/SUM(O$10:O$11)","v":0},{"$f":"IF(INDEX(PC_MAPPING,RIGHT($C15,1),MATCH($E$2,'Data by Building Type'!$D$22:$F$22,0))=\"Yes\",1,0)*\n(P$10*OFFSET('Efficiency Distributions'!$D$10,MATCH($C15,'Efficiency Distributions'!$C$9:$C$87,0)+RIGHT($E21),0)\n+P$11*OFFSET('Efficiency Distributions'!$E$10,MATCH($C15,'Efficiency Distributions'!$C$9:$C$87,0)+RIGHT($E21),0))\n/SUM(P$10:P$11)","v":0},{"$f":"IF(INDEX(PC_MAPPING,RIGHT($C15,1),MATCH($E$2,'Data by Building Type'!$D$22:$F$22,0))=\"Yes\",1,0)*\n(Q$10*OFFSET('Efficiency Distributions'!$D$10,MATCH($C15,'Efficiency Distributions'!$C$9:$C$87,0)+RIGHT($E21),0)\n+Q$11*OFFSET('Efficiency Distributions'!$E$10,MATCH($C15,'Efficiency Distributions'!$C$9:$C$87,0)+RIGHT($E21),0))\n/SUM(Q$10:Q$11)","v":0},{"$f":"IF(INDEX(PC_MAPPING,RIGHT($C15,1),MATCH($E$2,'Data by Building Type'!$D$22:$F$22,0))=\"Yes\",1,0)*\n(R$10*OFFSET('Efficiency Distributions'!$D$10,MATCH($C15,'Efficiency Distributions'!$C$9:$C$87,0)+RIGHT($E21),0)\n+R$11*OFFSET('Efficiency Distributions'!$E$10,MATCH($C15,'Efficiency Distributions'!$C$9:$C$87,0)+RIGHT($E21),0))\n/SUM(R$10:R$11)","v":0},{"$f":"IF(INDEX(PC_MAPPING,RIGHT($C15,1),MATCH($E$2,'Data by Building Type'!$D$22:$F$22,0))=\"Yes\",1,0)*\n(S$10*OFFSET('Efficiency Distributions'!$D$10,MATCH($C15,'Efficiency Distributions'!$C$9:$C$87,0)+RIGHT($E21),0)\n+S$11*OFFSET('Efficiency Distributions'!$E$10,MATCH($C15,'Efficiency Distributions'!$C$9:$C$87,0)+RIGHT($E21),0))\n/SUM(S$10:S$11)","v":0},{"$f":"IF(INDEX(PC_MAPPING,RIGHT($C15,1),MATCH($E$2,'Data by Building Type'!$D$22:$F$22,0))=\"Yes\",1,0)*\n(T$10*OFFSET('Efficiency Distributions'!$D$10,MATCH($C15,'Efficiency Distributions'!$C$9:$C$87,0)+RIGHT($E21),0)\n+T$11*OFFSET('Efficiency Distributions'!$E$10,MATCH($C15,'Efficiency Distributions'!$C$9:$C$87,0)+RIGHT($E21),0))\n/SUM(T$10:T$11)","v":0},{"$f":"IF(INDEX(PC_MAPPING,RIGHT($C15,1),MATCH($E$2,'Data by Building Type'!$D$22:$F$22,0))=\"Yes\",1,0)*\n(U$10*OFFSET('Efficiency Distributions'!$D$10,MATCH($C15,'Efficiency Distributions'!$C$9:$C$87,0)+RIGHT($E21),0)\n+U$11*OFFSET('Efficiency Distributions'!$E$10,MATCH($C15,'Efficiency Distributions'!$C$9:$C$87,0)+RIGHT($E21),0))\n/SUM(U$10:U$11)","v":0},{"$f":"IF(INDEX(PC_MAPPING,RIGHT($C15,1),MATCH($E$2,'Data by Building Type'!$D$22:$F$22,0))=\"Yes\",1,0)*\n(V$10*OFFSET('Efficiency Distributions'!$D$10,MATCH($C15,'Efficiency Distributions'!$C$9:$C$87,0)+RIGHT($E21),0)\n+V$11*OFFSET('Efficiency Distributions'!$E$10,MATCH($C15,'Efficiency Distributions'!$C$9:$C$87,0)+RIGHT($E21),0))\n/SUM(V$10:V$11)","v":0},{"$f":"IF(INDEX(PC_MAPPING,RIGHT($C15,1),MATCH($E$2,'Data by Building Type'!$D$22:$F$22,0))=\"Yes\",1,0)*\n(W$10*OFFSET('Efficiency Distributions'!$D$10,MATCH($C15,'Efficiency Distributions'!$C$9:$C$87,0)+RIGHT($E21),0)\n+W$11*OFFSET('Efficiency Distributions'!$E$10,MATCH($C15,'Efficiency Distributions'!$C$9:$C$87,0)+RIGHT($E21),0))\n/SUM(W$10:W$11)","v":0},{"$f":"IF(INDEX(PC_MAPPING,RIGHT($C15,1),MATCH($E$2,'Data by Building Type'!$D$22:$F$22,0))=\"Yes\",1,0)*\n(X$10*OFFSET('Efficiency Distributions'!$D$10,MATCH($C15,'Efficiency Distributions'!$C$9:$C$87,0)+RIGHT($E21),0)\n+X$11*OFFSET('Efficiency Distributions'!$E$10,MATCH($C15,'Efficiency Distributions'!$C$9:$C$87,0)+RIGHT($E21),0))\n/SUM(X$10:X$11)","v":0},{"$f":"IF(INDEX(PC_MAPPING,RIGHT($C15,1),MATCH($E$2,'Data by Building Type'!$D$22:$F$22,0))=\"Yes\",1,0)*\n(Y$10*OFFSET('Efficiency Distributions'!$D$10,MATCH($C15,'Efficiency Distributions'!$C$9:$C$87,0)+RIGHT($E21),0)\n+Y$11*OFFSET('Efficiency Distributions'!$E$10,MATCH($C15,'Efficiency Distributions'!$C$9:$C$87,0)+RIGHT($E21),0))\n/SUM(Y$10:Y$11)","v":0},{"$f":"IF(INDEX(PC_MAPPING,RIGHT($C15,1),MATCH($E$2,'Data by Building Type'!$D$22:$F$22,0))=\"Yes\",1,0)*\n(Z$10*OFFSET('Efficiency Distributions'!$D$10,MATCH($C15,'Efficiency Distributions'!$C$9:$C$87,0)+RIGHT($E21),0)\n+Z$11*OFFSET('Efficiency Distributions'!$E$10,MATCH($C15,'Efficiency Distributions'!$C$9:$C$87,0)+RIGHT($E21),0))\n/SUM(Z$10:Z$11)","v":0},{"$f":"IF(INDEX(PC_MAPPING,RIGHT($C15,1),MATCH($E$2,'Data by Building Type'!$D$22:$F$22,0))=\"Yes\",1,0)*\n(AA$10*OFFSET('Efficiency Distributions'!$D$10,MATCH($C15,'Efficiency Distributions'!$C$9:$C$87,0)+RIGHT($E21),0)\n+AA$11*OFFSET('Efficiency Distributions'!$E$10,MATCH($C15,'Efficiency Distributions'!$C$9:$C$87,0)+RIGHT($E21),0))\n/SUM(AA$10:AA$11)","v":0},{"$f":"IF(INDEX(PC_MAPPING,RIGHT($C15,1),MATCH($E$2,'Data by Building Type'!$D$22:$F$22,0))=\"Yes\",1,0)*\n(AB$10*OFFSET('Efficiency Distributions'!$D$10,MATCH($C15,'Efficiency Distributions'!$C$9:$C$87,0)+RIGHT($E21),0)\n+AB$11*OFFSET('Efficiency Distributions'!$E$10,MATCH($C15,'Efficiency Distributions'!$C$9:$C$87,0)+RIGHT($E21),0))\n/SUM(AB$10:AB$11)","v":0},{"$f":"IF(INDEX(PC_MAPPING,RIGHT($C15,1),MATCH($E$2,'Data by Building Type'!$D$22:$F$22,0))=\"Yes\",1,0)*\n(AC$10*OFFSET('Efficiency Distributions'!$D$10,MATCH($C15,'Efficiency Distributions'!$C$9:$C$87,0)+RIGHT($E21),0)\n+AC$11*OFFSET('Efficiency Distributions'!$E$10,MATCH($C15,'Efficiency Distributions'!$C$9:$C$87,0)+RIGHT($E21),0))\n/SUM(AC$10:AC$11)","v":0},{"$f":"IF(INDEX(PC_MAPPING,RIGHT($C15,1),MATCH($E$2,'Data by Building Type'!$D$22:$F$22,0))=\"Yes\",1,0)*\n(AD$10*OFFSET('Efficiency Distributions'!$D$10,MATCH($C15,'Efficiency Distributions'!$C$9:$C$87,0)+RIGHT($E21),0)\n+AD$11*OFFSET('Efficiency Distributions'!$E$10,MATCH($C15,'Efficiency Distributions'!$C$9:$C$87,0)+RIGHT($E21),0))\n/SUM(AD$10:AD$11)","v":0},{"$f":"IF(INDEX(PC_MAPPING,RIGHT($C15,1),MATCH($E$2,'Data by Building Type'!$D$22:$F$22,0))=\"Yes\",1,0)*\n(AE$10*OFFSET('Efficiency Distributions'!$D$10,MATCH($C15,'Efficiency Distributions'!$C$9:$C$87,0)+RIGHT($E21),0)\n+AE$11*OFFSET('Efficiency Distributions'!$E$10,MATCH($C15,'Efficiency Distributions'!$C$9:$C$87,0)+RIGHT($E21),0))\n/SUM(AE$10:AE$11)","v":0},{"$f":"IF(INDEX(PC_MAPPING,RIGHT($C15,1),MATCH($E$2,'Data by Building Type'!$D$22:$F$22,0))=\"Yes\",1,0)*\n(AF$10*OFFSET('Efficiency Distributions'!$D$10,MATCH($C15,'Efficiency Distributions'!$C$9:$C$87,0)+RIGHT($E21),0)\n+AF$11*OFFSET('Efficiency Distributions'!$E$10,MATCH($C15,'Efficiency Distributions'!$C$9:$C$87,0)+RIGHT($E21),0))\n/SUM(AF$10:AF$11)","v":0},{"$f":"IF(INDEX(PC_MAPPING,RIGHT($C15,1),MATCH($E$2,'Data by Building Type'!$D$22:$F$22,0))=\"Yes\",1,0)*\n(AG$10*OFFSET('Efficiency Distributions'!$D$10,MATCH($C15,'Efficiency Distributions'!$C$9:$C$87,0)+RIGHT($E21),0)\n+AG$11*OFFSET('Efficiency Distributions'!$E$10,MATCH($C15,'Efficiency Distributions'!$C$9:$C$87,0)+RIGHT($E21),0))\n/SUM(AG$10:AG$11)","v":0},{"$f":"IF(INDEX(PC_MAPPING,RIGHT($C15,1),MATCH($E$2,'Data by Building Type'!$D$22:$F$22,0))=\"Yes\",1,0)*\n(AH$10*OFFSET('Efficiency Distributions'!$D$10,MATCH($C15,'Efficiency Distributions'!$C$9:$C$87,0)+RIGHT($E21),0)\n+AH$11*OFFSET('Efficiency Distributions'!$E$10,MATCH($C15,'Efficiency Distributions'!$C$9:$C$87,0)+RIGHT($E21),0))\n/SUM(AH$10:AH$11)","v":0},{"$f":"IF(INDEX(PC_MAPPING,RIGHT($C15,1),MATCH($E$2,'Data by Building Type'!$D$22:$F$22,0))=\"Yes\",1,0)*\n(AI$10*OFFSET('Efficiency Distributions'!$D$10,MATCH($C15,'Efficiency Distributions'!$C$9:$C$87,0)+RIGHT($E21),0)\n+AI$11*OFFSET('Efficiency Distributions'!$E$10,MATCH($C15,'Efficiency Distributions'!$C$9:$C$87,0)+RIGHT($E21),0))\n/SUM(AI$10:AI$11)","v":0},{"$f":"IF(INDEX(PC_MAPPING,RIGHT($C15,1),MATCH($E$2,'Data by Building Type'!$D$22:$F$22,0))=\"Yes\",1,0)*\n(AJ$10*OFFSET('Efficiency Distributions'!$D$10,MATCH($C15,'Efficiency Distributions'!$C$9:$C$87,0)+RIGHT($E21),0)\n+AJ$11*OFFSET('Efficiency Distributions'!$E$10,MATCH($C15,'Efficiency Distributions'!$C$9:$C$87,0)+RIGHT($E21),0))\n/SUM(AJ$10:AJ$11)","v":0},{"$f":"IF(INDEX(PC_MAPPING,RIGHT($C15,1),MATCH($E$2,'Data by Building Type'!$D$22:$F$22,0))=\"Yes\",1,0)*\n(AK$10*OFFSET('Efficiency Distributions'!$D$10,MATCH($C15,'Efficiency Distributions'!$C$9:$C$87,0)+RIGHT($E21),0)\n+AK$11*OFFSET('Efficiency Distributions'!$E$10,MATCH($C15,'Efficiency Distributions'!$C$9:$C$87,0)+RIGHT($E21),0))\n/SUM(AK$10:AK$11)","v":0},{"$f":"IF(INDEX(PC_MAPPING,RIGHT($C15,1),MATCH($E$2,'Data by Building Type'!$D$22:$F$22,0))=\"Yes\",1,0)*\n(AL$10*OFFSET('Efficiency Distributions'!$D$10,MATCH($C15,'Efficiency Distributions'!$C$9:$C$87,0)+RIGHT($E21),0)\n+AL$11*OFFSET('Efficiency Distributions'!$E$10,MATCH($C15,'Efficiency Distributions'!$C$9:$C$87,0)+RIGHT($E21),0))\n/SUM(AL$10:AL$11)","v":0},{"$f":"IF(INDEX(PC_MAPPING,RIGHT($C15,1),MATCH($E$2,'Data by Building Type'!$D$22:$F$22,0))=\"Yes\",1,0)*\n(AM$10*OFFSET('Efficiency Distributions'!$D$10,MATCH($C15,'Efficiency Distributions'!$C$9:$C$87,0)+RIGHT($E21),0)\n+AM$11*OFFSET('Efficiency Distributions'!$E$10,MATCH($C15,'Efficiency Distributions'!$C$9:$C$87,0)+RIGHT($E21),0))\n/SUM(AM$10:AM$11)","v":0},{"$f":"IF(INDEX(PC_MAPPING,RIGHT($C15,1),MATCH($E$2,'Data by Building Type'!$D$22:$F$22,0))=\"Yes\",1,0)*\n(AN$10*OFFSET('Efficiency Distributions'!$D$10,MATCH($C15,'Efficiency Distributions'!$C$9:$C$87,0)+RIGHT($E21),0)\n+AN$11*OFFSET('Efficiency Distributions'!$E$10,MATCH($C15,'Efficiency Distributions'!$C$9:$C$87,0)+RIGHT($E21),0))\n/SUM(AN$10:AN$11)","v":0},{"$f":"IF(INDEX(PC_MAPPING,RIGHT($C15,1),MATCH($E$2,'Data by Building Type'!$D$22:$F$22,0))=\"Yes\",1,0)*\n(AO$10*OFFSET('Efficiency Distributions'!$D$10,MATCH($C15,'Efficiency Distributions'!$C$9:$C$87,0)+RIGHT($E21),0)\n+AO$11*OFFSET('Efficiency Distributions'!$E$10,MATCH($C15,'Efficiency Distributions'!$C$9:$C$87,0)+RIGHT($E21),0))\n/SUM(AO$10:AO$11)","v":0},{"$f":"IF(INDEX(PC_MAPPING,RIGHT($C15,1),MATCH($E$2,'Data by Building Type'!$D$22:$F$22,0))=\"Yes\",1,0)*\n(AP$10*OFFSET('Efficiency Distributions'!$D$10,MATCH($C15,'Efficiency Distributions'!$C$9:$C$87,0)+RIGHT($E21),0)\n+AP$11*OFFSET('Efficiency Distributions'!$E$10,MATCH($C15,'Efficiency Distributions'!$C$9:$C$87,0)+RIGHT($E21),0))\n/SUM(AP$10:AP$11)","v":0},{"$f":"IF(INDEX(PC_MAPPING,RIGHT($C15,1),MATCH($E$2,'Data by Building Type'!$D$22:$F$22,0))=\"Yes\",1,0)*\n(AQ$10*OFFSET('Efficiency Distributions'!$D$10,MATCH($C15,'Efficiency Distributions'!$C$9:$C$87,0)+RIGHT($E21),0)\n+AQ$11*OFFSET('Efficiency Distributions'!$E$10,MATCH($C15,'Efficiency Distributions'!$C$9:$C$87,0)+RIGHT($E21),0))\n/SUM(AQ$10:AQ$11)","v":0},{"$f":"IF(INDEX(PC_MAPPING,RIGHT($C15,1),MATCH($E$2,'Data by Building Type'!$D$22:$F$22,0))=\"Yes\",1,0)*\n(AR$10*OFFSET('Efficiency Distributions'!$D$10,MATCH($C15,'Efficiency Distributions'!$C$9:$C$87,0)+RIGHT($E21),0)\n+AR$11*OFFSET('Efficiency Distributions'!$E$10,MATCH($C15,'Efficiency Distributions'!$C$9:$C$87,0)+RIGHT($E21),0))\n/SUM(AR$10:AR$11)","v":0},{"$f":"IF(INDEX(PC_MAPPING,RIGHT($C15,1),MATCH($E$2,'Data by Building Type'!$D$22:$F$22,0))=\"Yes\",1,0)*\n(AS$10*OFFSET('Efficiency Distributions'!$D$10,MATCH($C15,'Efficiency Distributions'!$C$9:$C$87,0)+RIGHT($E21),0)\n+AS$11*OFFSET('Efficiency Distributions'!$E$10,MATCH($C15,'Efficiency Distributions'!$C$9:$C$87,0)+RIGHT($E21),0))\n/SUM(AS$10:AS$11)","v":0},{"$f":"IF(INDEX(PC_MAPPING,RIGHT($C15,1),MATCH($E$2,'Data by Building Type'!$D$22:$F$22,0))=\"Yes\",1,0)*\n(AT$10*OFFSET('Efficiency Distributions'!$D$10,MATCH($C15,'Efficiency Distributions'!$C$9:$C$87,0)+RIGHT($E21),0)\n+AT$11*OFFSET('Efficiency Distributions'!$E$10,MATCH($C15,'Efficiency Distributions'!$C$9:$C$87,0)+RIGHT($E21),0))\n/SUM(AT$10:AT$11)","v":0},{"$f":"IF(INDEX(PC_MAPPING,RIGHT($C15,1),MATCH($E$2,'Data by Building Type'!$D$22:$F$22,0))=\"Yes\",1,0)*\n(AU$10*OFFSET('Efficiency Distributions'!$D$10,MATCH($C15,'Efficiency Distributions'!$C$9:$C$87,0)+RIGHT($E21),0)\n+AU$11*OFFSET('Efficiency Distributions'!$E$10,MATCH($C15,'Efficiency Distributions'!$C$9:$C$87,0)+RIGHT($E21),0))\n/SUM(AU$10:AU$11)","v":0},{"$f":"IF(INDEX(PC_MAPPING,RIGHT($C15,1),MATCH($E$2,'Data by Building Type'!$D$22:$F$22,0))=\"Yes\",1,0)*\n(AV$10*OFFSET('Efficiency Distributions'!$D$10,MATCH($C15,'Efficiency Distributions'!$C$9:$C$87,0)+RIGHT($E21),0)\n+AV$11*OFFSET('Efficiency Distributions'!$E$10,MATCH($C15,'Efficiency Distributions'!$C$9:$C$87,0)+RIGHT($E21),0))\n/SUM(AV$10:AV$11)","v":0},{"$f":"IF(INDEX(PC_MAPPING,RIGHT($C15,1),MATCH($E$2,'Data by Building Type'!$D$22:$F$22,0))=\"Yes\",1,0)*\n(AW$10*OFFSET('Efficiency Distributions'!$D$10,MATCH($C15,'Efficiency Distributions'!$C$9:$C$87,0)+RIGHT($E21),0)\n+AW$11*OFFSET('Efficiency Distributions'!$E$10,MATCH($C15,'Efficiency Distributions'!$C$9:$C$87,0)+RIGHT($E21),0))\n/SUM(AW$10:AW$11)","v":0},{"$f":"IF(INDEX(PC_MAPPING,RIGHT($C15,1),MATCH($E$2,'Data by Building Type'!$D$22:$F$22,0))=\"Yes\",1,0)*\n(AX$10*OFFSET('Efficiency Distributions'!$D$10,MATCH($C15,'Efficiency Distributions'!$C$9:$C$87,0)+RIGHT($E21),0)\n+AX$11*OFFSET('Efficiency Distributions'!$E$10,MATCH($C15,'Efficiency Distributions'!$C$9:$C$87,0)+RIGHT($E21),0))\n/SUM(AX$10:AX$11)","v":0},{"$f":"IF(INDEX(PC_MAPPING,RIGHT($C15,1),MATCH($E$2,'Data by Building Type'!$D$22:$F$22,0))=\"Yes\",1,0)*\n(AY$10*OFFSET('Efficiency Distributions'!$D$10,MATCH($C15,'Efficiency Distributions'!$C$9:$C$87,0)+RIGHT($E21),0)\n+AY$11*OFFSET('Efficiency Distributions'!$E$10,MATCH($C15,'Efficiency Distributions'!$C$9:$C$87,0)+RIGHT($E21),0))\n/SUM(AY$10:AY$11)","v":0},{"$f":"IF(INDEX(PC_MAPPING,RIGHT($C15,1),MATCH($E$2,'Data by Building Type'!$D$22:$F$22,0))=\"Yes\",1,0)*\n(AZ$10*OFFSET('Efficiency Distributions'!$D$10,MATCH($C15,'Efficiency Distributions'!$C$9:$C$87,0)+RIGHT($E21),0)\n+AZ$11*OFFSET('Efficiency Distributions'!$E$10,MATCH($C15,'Efficiency Distributions'!$C$9:$C$87,0)+RIGHT($E21),0))\n/SUM(AZ$10:AZ$11)","v":0},{"$f":"IF(INDEX(PC_MAPPING,RIGHT($C15,1),MATCH($E$2,'Data by Building Type'!$D$22:$F$22,0))=\"Yes\",1,0)*\n(BA$10*OFFSET('Efficiency Distributions'!$D$10,MATCH($C15,'Efficiency Distributions'!$C$9:$C$87,0)+RIGHT($E21),0)\n+BA$11*OFFSET('Efficiency Distributions'!$E$10,MATCH($C15,'Efficiency Distributions'!$C$9:$C$87,0)+RIGHT($E21),0))\n/SUM(BA$10:BA$11)","v":0},{"$f":"IF(INDEX(PC_MAPPING,RIGHT($C15,1),MATCH($E$2,'Data by Building Type'!$D$22:$F$22,0))=\"Yes\",1,0)*\n(BB$10*OFFSET('Efficiency Distributions'!$D$10,MATCH($C15,'Efficiency Distributions'!$C$9:$C$87,0)+RIGHT($E21),0)\n+BB$11*OFFSET('Efficiency Distributions'!$E$10,MATCH($C15,'Efficiency Distributions'!$C$9:$C$87,0)+RIGHT($E21),0))\n/SUM(BB$10:BB$11)","v":0},{"$f":"IF(INDEX(PC_MAPPING,RIGHT($C15,1),MATCH($E$2,'Data by Building Type'!$D$22:$F$22,0))=\"Yes\",1,0)*\n(BC$10*OFFSET('Efficiency Distributions'!$D$10,MATCH($C15,'Efficiency Distributions'!$C$9:$C$87,0)+RIGHT($E21),0)\n+BC$11*OFFSET('Efficiency Distributions'!$E$10,MATCH($C15,'Efficiency Distributions'!$C$9:$C$87,0)+RIGHT($E21),0))\n/SUM(BC$10:BC$11)","v":0},{"$f":"IF(INDEX(PC_MAPPING,RIGHT($C15,1),MATCH($E$2,'Data by Building Type'!$D$22:$F$22,0))=\"Yes\",1,0)*\n(BD$10*OFFSET('Efficiency Distributions'!$D$10,MATCH($C15,'Efficiency Distributions'!$C$9:$C$87,0)+RIGHT($E21),0)\n+BD$11*OFFSET('Efficiency Distributions'!$E$10,MATCH($C15,'Efficiency Distributions'!$C$9:$C$87,0)+RIGHT($E21),0))\n/SUM(BD$10:BD$11)","v":0},{"$f":"IF(INDEX(PC_MAPPING,RIGHT($C15,1),MATCH($E$2,'Data by Building Type'!$D$22:$F$22,0))=\"Yes\",1,0)*\n(BE$10*OFFSET('Efficiency Distributions'!$D$10,MATCH($C15,'Efficiency Distributions'!$C$9:$C$87,0)+RIGHT($E21),0)\n+BE$11*OFFSET('Efficiency Distributions'!$E$10,MATCH($C15,'Efficiency Distributions'!$C$9:$C$87,0)+RIGHT($E21),0))\n/SUM(BE$10:BE$11)","v":0},{"$f":"IF(INDEX(PC_MAPPING,RIGHT($C15,1),MATCH($E$2,'Data by Building Type'!$D$22:$F$22,0))=\"Yes\",1,0)*\n(BF$10*OFFSET('Efficiency Distributions'!$D$10,MATCH($C15,'Efficiency Distributions'!$C$9:$C$87,0)+RIGHT($E21),0)\n+BF$11*OFFSET('Efficiency Distributions'!$E$10,MATCH($C15,'Efficiency Distributions'!$C$9:$C$87,0)+RIGHT($E21),0))\n/SUM(BF$10:BF$11)","v":0},{"$f":"IF(INDEX(PC_MAPPING,RIGHT($C15,1),MATCH($E$2,'Data by Building Type'!$D$22:$F$22,0))=\"Yes\",1,0)*\n(BG$10*OFFSET('Efficiency Distributions'!$D$10,MATCH($C15,'Efficiency Distributions'!$C$9:$C$87,0)+RIGHT($E21),0)\n+BG$11*OFFSET('Efficiency Distributions'!$E$10,MATCH($C15,'Efficiency Distributions'!$C$9:$C$87,0)+RIGHT($E21),0))\n/SUM(BG$10:BG$11)","v":0}]
[null,null,null,null,"EL3",{"$f":"IF(INDEX(PC_MAPPING,RIGHT($C15,1),MATCH($E$2,'Data by Building Type'!$D$22:$F$22,0))=\"Yes\",1,0)*\n(F$10*OFFSET('Efficiency Distributions'!$D$10,MATCH($C15,'Efficiency Distributions'!$C$9:$C$87,0)+RIGHT($E22),0)\n+F$11*OFFSET('Efficiency Distributions'!$E$10,MATCH($C15,'Efficiency Distributions'!$C$9:$C$87,0)+RIGHT($E22),0))\n/SUM(F$10:F$11)","v":0},{"$f":"IF(INDEX(PC_MAPPING,RIGHT($C15,1),MATCH($E$2,'Data by Building Type'!$D$22:$F$22,0))=\"Yes\",1,0)*\n(G$10*OFFSET('Efficiency Distributions'!$D$10,MATCH($C15,'Efficiency Distributions'!$C$9:$C$87,0)+RIGHT($E22),0)\n+G$11*OFFSET('Efficiency Distributions'!$E$10,MATCH($C15,'Efficiency Distributions'!$C$9:$C$87,0)+RIGHT($E22),0))\n/SUM(G$10:G$11)","v":0},{"$f":"IF(INDEX(PC_MAPPING,RIGHT($C15,1),MATCH($E$2,'Data by Building Type'!$D$22:$F$22,0))=\"Yes\",1,0)*\n(H$10*OFFSET('Efficiency Distributions'!$D$10,MATCH($C15,'Efficiency Distributions'!$C$9:$C$87,0)+RIGHT($E22),0)\n+H$11*OFFSET('Efficiency Distributions'!$E$10,MATCH($C15,'Efficiency Distributions'!$C$9:$C$87,0)+RIGHT($E22),0))\n/SUM(H$10:H$11)","v":0},{"$f":"IF(INDEX(PC_MAPPING,RIGHT($C15,1),MATCH($E$2,'Data by Building Type'!$D$22:$F$22,0))=\"Yes\",1,0)*\n(I$10*OFFSET('Efficiency Distributions'!$D$10,MATCH($C15,'Efficiency Distributions'!$C$9:$C$87,0)+RIGHT($E22),0)\n+I$11*OFFSET('Efficiency Distributions'!$E$10,MATCH($C15,'Efficiency Distributions'!$C$9:$C$87,0)+RIGHT($E22),0))\n/SUM(I$10:I$11)","v":0},{"$f":"IF(INDEX(PC_MAPPING,RIGHT($C15,1),MATCH($E$2,'Data by Building Type'!$D$22:$F$22,0))=\"Yes\",1,0)*\n(J$10*OFFSET('Efficiency Distributions'!$D$10,MATCH($C15,'Efficiency Distributions'!$C$9:$C$87,0)+RIGHT($E22),0)\n+J$11*OFFSET('Efficiency Distributions'!$E$10,MATCH($C15,'Efficiency Distributions'!$C$9:$C$87,0)+RIGHT($E22),0))\n/SUM(J$10:J$11)","v":0},{"$f":"IF(INDEX(PC_MAPPING,RIGHT($C15,1),MATCH($E$2,'Data by Building Type'!$D$22:$F$22,0))=\"Yes\",1,0)*\n(K$10*OFFSET('Efficiency Distributions'!$D$10,MATCH($C15,'Efficiency Distributions'!$C$9:$C$87,0)+RIGHT($E22),0)\n+K$11*OFFSET('Efficiency Distributions'!$E$10,MATCH($C15,'Efficiency Distributions'!$C$9:$C$87,0)+RIGHT($E22),0))\n/SUM(K$10:K$11)","v":0},{"$f":"IF(INDEX(PC_MAPPING,RIGHT($C15,1),MATCH($E$2,'Data by Building Type'!$D$22:$F$22,0))=\"Yes\",1,0)*\n(L$10*OFFSET('Efficiency Distributions'!$D$10,MATCH($C15,'Efficiency Distributions'!$C$9:$C$87,0)+RIGHT($E22),0)\n+L$11*OFFSET('Efficiency Distributions'!$E$10,MATCH($C15,'Efficiency Distributions'!$C$9:$C$87,0)+RIGHT($E22),0))\n/SUM(L$10:L$11)","v":0},{"$f":"IF(INDEX(PC_MAPPING,RIGHT($C15,1),MATCH($E$2,'Data by Building Type'!$D$22:$F$22,0))=\"Yes\",1,0)*\n(M$10*OFFSET('Efficiency Distributions'!$D$10,MATCH($C15,'Efficiency Distributions'!$C$9:$C$87,0)+RIGHT($E22),0)\n+M$11*OFFSET('Efficiency Distributions'!$E$10,MATCH($C15,'Efficiency Distributions'!$C$9:$C$87,0)+RIGHT($E22),0))\n/SUM(M$10:M$11)","v":0},{"$f":"IF(INDEX(PC_MAPPING,RIGHT($C15,1),MATCH($E$2,'Data by Building Type'!$D$22:$F$22,0))=\"Yes\",1,0)*\n(N$10*OFFSET('Efficiency Distributions'!$D$10,MATCH($C15,'Efficiency Distributions'!$C$9:$C$87,0)+RIGHT($E22),0)\n+N$11*OFFSET('Efficiency Distributions'!$E$10,MATCH($C15,'Efficiency Distributions'!$C$9:$C$87,0)+RIGHT($E22),0))\n/SUM(N$10:N$11)","v":0},{"$f":"IF(INDEX(PC_MAPPING,RIGHT($C15,1),MATCH($E$2,'Data by Building Type'!$D$22:$F$22,0))=\"Yes\",1,0)*\n(O$10*OFFSET('Efficiency Distributions'!$D$10,MATCH($C15,'Efficiency Distributions'!$C$9:$C$87,0)+RIGHT($E22),0)\n+O$11*OFFSET('Efficiency Distributions'!$E$10,MATCH($C15,'Efficiency Distributions'!$C$9:$C$87,0)+RIGHT($E22),0))\n/SUM(O$10:O$11)","v":0},{"$f":"IF(INDEX(PC_MAPPING,RIGHT($C15,1),MATCH($E$2,'Data by Building Type'!$D$22:$F$22,0))=\"Yes\",1,0)*\n(P$10*OFFSET('Efficiency Distributions'!$D$10,MATCH($C15,'Efficiency Distributions'!$C$9:$C$87,0)+RIGHT($E22),0)\n+P$11*OFFSET('Efficiency Distributions'!$E$10,MATCH($C15,'Efficiency Distributions'!$C$9:$C$87,0)+RIGHT($E22),0))\n/SUM(P$10:P$11)","v":0},{"$f":"IF(INDEX(PC_MAPPING,RIGHT($C15,1),MATCH($E$2,'Data by Building Type'!$D$22:$F$22,0))=\"Yes\",1,0)*\n(Q$10*OFFSET('Efficiency Distributions'!$D$10,MATCH($C15,'Efficiency Distributions'!$C$9:$C$87,0)+RIGHT($E22),0)\n+Q$11*OFFSET('Efficiency Distributions'!$E$10,MATCH($C15,'Efficiency Distributions'!$C$9:$C$87,0)+RIGHT($E22),0))\n/SUM(Q$10:Q$11)","v":0},{"$f":"IF(INDEX(PC_MAPPING,RIGHT($C15,1),MATCH($E$2,'Data by Building Type'!$D$22:$F$22,0))=\"Yes\",1,0)*\n(R$10*OFFSET('Efficiency Distributions'!$D$10,MATCH($C15,'Efficiency Distributions'!$C$9:$C$87,0)+RIGHT($E22),0)\n+R$11*OFFSET('Efficiency Distributions'!$E$10,MATCH($C15,'Efficiency Distributions'!$C$9:$C$87,0)+RIGHT($E22),0))\n/SUM(R$10:R$11)","v":0},{"$f":"IF(INDEX(PC_MAPPING,RIGHT($C15,1),MATCH($E$2,'Data by Building Type'!$D$22:$F$22,0))=\"Yes\",1,0)*\n(S$10*OFFSET('Efficiency Distributions'!$D$10,MATCH($C15,'Efficiency Distributions'!$C$9:$C$87,0)+RIGHT($E22),0)\n+S$11*OFFSET('Efficiency Distributions'!$E$10,MATCH($C15,'Efficiency Distributions'!$C$9:$C$87,0)+RIGHT($E22),0))\n/SUM(S$10:S$11)","v":0},{"$f":"IF(INDEX(PC_MAPPING,RIGHT($C15,1),MATCH($E$2,'Data by Building Type'!$D$22:$F$22,0))=\"Yes\",1,0)*\n(T$10*OFFSET('Efficiency Distributions'!$D$10,MATCH($C15,'Efficiency Distributions'!$C$9:$C$87,0)+RIGHT($E22),0)\n+T$11*OFFSET('Efficiency Distributions'!$E$10,MATCH($C15,'Efficiency Distributions'!$C$9:$C$87,0)+RIGHT($E22),0))\n/SUM(T$10:T$11)","v":0},{"$f":"IF(INDEX(PC_MAPPING,RIGHT($C15,1),MATCH($E$2,'Data by Building Type'!$D$22:$F$22,0))=\"Yes\",1,0)*\n(U$10*OFFSET('Efficiency Distributions'!$D$10,MATCH($C15,'Efficiency Distributions'!$C$9:$C$87,0)+RIGHT($E22),0)\n+U$11*OFFSET('Efficiency Distributions'!$E$10,MATCH($C15,'Efficiency Distributions'!$C$9:$C$87,0)+RIGHT($E22),0))\n/SUM(U$10:U$11)","v":0},{"$f":"IF(INDEX(PC_MAPPING,RIGHT($C15,1),MATCH($E$2,'Data by Building Type'!$D$22:$F$22,0))=\"Yes\",1,0)*\n(V$10*OFFSET('Efficiency Distributions'!$D$10,MATCH($C15,'Efficiency Distributions'!$C$9:$C$87,0)+RIGHT($E22),0)\n+V$11*OFFSET('Efficiency Distributions'!$E$10,MATCH($C15,'Efficiency Distributions'!$C$9:$C$87,0)+RIGHT($E22),0))\n/SUM(V$10:V$11)","v":0},{"$f":"IF(INDEX(PC_MAPPING,RIGHT($C15,1),MATCH($E$2,'Data by Building Type'!$D$22:$F$22,0))=\"Yes\",1,0)*\n(W$10*OFFSET('Efficiency Distributions'!$D$10,MATCH($C15,'Efficiency Distributions'!$C$9:$C$87,0)+RIGHT($E22),0)\n+W$11*OFFSET('Efficiency Distributions'!$E$10,MATCH($C15,'Efficiency Distributions'!$C$9:$C$87,0)+RIGHT($E22),0))\n/SUM(W$10:W$11)","v":0},{"$f":"IF(INDEX(PC_MAPPING,RIGHT($C15,1),MATCH($E$2,'Data by Building Type'!$D$22:$F$22,0))=\"Yes\",1,0)*\n(X$10*OFFSET('Efficiency Distributions'!$D$10,MATCH($C15,'Efficiency Distributions'!$C$9:$C$87,0)+RIGHT($E22),0)\n+X$11*OFFSET('Efficiency Distributions'!$E$10,MATCH($C15,'Efficiency Distributions'!$C$9:$C$87,0)+RIGHT($E22),0))\n/SUM(X$10:X$11)","v":0},{"$f":"IF(INDEX(PC_MAPPING,RIGHT($C15,1),MATCH($E$2,'Data by Building Type'!$D$22:$F$22,0))=\"Yes\",1,0)*\n(Y$10*OFFSET('Efficiency Distributions'!$D$10,MATCH($C15,'Efficiency Distributions'!$C$9:$C$87,0)+RIGHT($E22),0)\n+Y$11*OFFSET('Efficiency Distributions'!$E$10,MATCH($C15,'Efficiency Distributions'!$C$9:$C$87,0)+RIGHT($E22),0))\n/SUM(Y$10:Y$11)","v":0},{"$f":"IF(INDEX(PC_MAPPING,RIGHT($C15,1),MATCH($E$2,'Data by Building Type'!$D$22:$F$22,0))=\"Yes\",1,0)*\n(Z$10*OFFSET('Efficiency Distributions'!$D$10,MATCH($C15,'Efficiency Distributions'!$C$9:$C$87,0)+RIGHT($E22),0)\n+Z$11*OFFSET('Efficiency Distributions'!$E$10,MATCH($C15,'Efficiency Distributions'!$C$9:$C$87,0)+RIGHT($E22),0))\n/SUM(Z$10:Z$11)","v":0},{"$f":"IF(INDEX(PC_MAPPING,RIGHT($C15,1),MATCH($E$2,'Data by Building Type'!$D$22:$F$22,0))=\"Yes\",1,0)*\n(AA$10*OFFSET('Efficiency Distributions'!$D$10,MATCH($C15,'Efficiency Distributions'!$C$9:$C$87,0)+RIGHT($E22),0)\n+AA$11*OFFSET('Efficiency Distributions'!$E$10,MATCH($C15,'Efficiency Distributions'!$C$9:$C$87,0)+RIGHT($E22),0))\n/SUM(AA$10:AA$11)","v":0},{"$f":"IF(INDEX(PC_MAPPING,RIGHT($C15,1),MATCH($E$2,'Data by Building Type'!$D$22:$F$22,0))=\"Yes\",1,0)*\n(AB$10*OFFSET('Efficiency Distributions'!$D$10,MATCH($C15,'Efficiency Distributions'!$C$9:$C$87,0)+RIGHT($E22),0)\n+AB$11*OFFSET('Efficiency Distributions'!$E$10,MATCH($C15,'Efficiency Distributions'!$C$9:$C$87,0)+RIGHT($E22),0))\n/SUM(AB$10:AB$11)","v":0},{"$f":"IF(INDEX(PC_MAPPING,RIGHT($C15,1),MATCH($E$2,'Data by Building Type'!$D$22:$F$22,0))=\"Yes\",1,0)*\n(AC$10*OFFSET('Efficiency Distributions'!$D$10,MATCH($C15,'Efficiency Distributions'!$C$9:$C$87,0)+RIGHT($E22),0)\n+AC$11*OFFSET('Efficiency Distributions'!$E$10,MATCH($C15,'Efficiency Distributions'!$C$9:$C$87,0)+RIGHT($E22),0))\n/SUM(AC$10:AC$11)","v":0},{"$f":"IF(INDEX(PC_MAPPING,RIGHT($C15,1),MATCH($E$2,'Data by Building Type'!$D$22:$F$22,0))=\"Yes\",1,0)*\n(AD$10*OFFSET('Efficiency Distributions'!$D$10,MATCH($C15,'Efficiency Distributions'!$C$9:$C$87,0)+RIGHT($E22),0)\n+AD$11*OFFSET('Efficiency Distributions'!$E$10,MATCH($C15,'Efficiency Distributions'!$C$9:$C$87,0)+RIGHT($E22),0))\n/SUM(AD$10:AD$11)","v":0},{"$f":"IF(INDEX(PC_MAPPING,RIGHT($C15,1),MATCH($E$2,'Data by Building Type'!$D$22:$F$22,0))=\"Yes\",1,0)*\n(AE$10*OFFSET('Efficiency Distributions'!$D$10,MATCH($C15,'Efficiency Distributions'!$C$9:$C$87,0)+RIGHT($E22),0)\n+AE$11*OFFSET('Efficiency Distributions'!$E$10,MATCH($C15,'Efficiency Distributions'!$C$9:$C$87,0)+RIGHT($E22),0))\n/SUM(AE$10:AE$11)","v":0},{"$f":"IF(INDEX(PC_MAPPING,RIGHT($C15,1),MATCH($E$2,'Data by Building Type'!$D$22:$F$22,0))=\"Yes\",1,0)*\n(AF$10*OFFSET('Efficiency Distributions'!$D$10,MATCH($C15,'Efficiency Distributions'!$C$9:$C$87,0)+RIGHT($E22),0)\n+AF$11*OFFSET('Efficiency Distributions'!$E$10,MATCH($C15,'Efficiency Distributions'!$C$9:$C$87,0)+RIGHT($E22),0))\n/SUM(AF$10:AF$11)","v":0},{"$f":"IF(INDEX(PC_MAPPING,RIGHT($C15,1),MATCH($E$2,'Data by Building Type'!$D$22:$F$22,0))=\"Yes\",1,0)*\n(AG$10*OFFSET('Efficiency Distributions'!$D$10,MATCH($C15,'Efficiency Distributions'!$C$9:$C$87,0)+RIGHT($E22),0)\n+AG$11*OFFSET('Efficiency Distributions'!$E$10,MATCH($C15,'Efficiency Distributions'!$C$9:$C$87,0)+RIGHT($E22),0))\n/SUM(AG$10:AG$11)","v":0},{"$f":"IF(INDEX(PC_MAPPING,RIGHT($C15,1),MATCH($E$2,'Data by Building Type'!$D$22:$F$22,0))=\"Yes\",1,0)*\n(AH$10*OFFSET('Efficiency Distributions'!$D$10,MATCH($C15,'Efficiency Distributions'!$C$9:$C$87,0)+RIGHT($E22),0)\n+AH$11*OFFSET('Efficiency Distributions'!$E$10,MATCH($C15,'Efficiency Distributions'!$C$9:$C$87,0)+RIGHT($E22),0))\n/SUM(AH$10:AH$11)","v":0},{"$f":"IF(INDEX(PC_MAPPING,RIGHT($C15,1),MATCH($E$2,'Data by Building Type'!$D$22:$F$22,0))=\"Yes\",1,0)*\n(AI$10*OFFSET('Efficiency Distributions'!$D$10,MATCH($C15,'Efficiency Distributions'!$C$9:$C$87,0)+RIGHT($E22),0)\n+AI$11*OFFSET('Efficiency Distributions'!$E$10,MATCH($C15,'Efficiency Distributions'!$C$9:$C$87,0)+RIGHT($E22),0))\n/SUM(AI$10:AI$11)","v":0},{"$f":"IF(INDEX(PC_MAPPING,RIGHT($C15,1),MATCH($E$2,'Data by Building Type'!$D$22:$F$22,0))=\"Yes\",1,0)*\n(AJ$10*OFFSET('Efficiency Distributions'!$D$10,MATCH($C15,'Efficiency Distributions'!$C$9:$C$87,0)+RIGHT($E22),0)\n+AJ$11*OFFSET('Efficiency Distributions'!$E$10,MATCH($C15,'Efficiency Distributions'!$C$9:$C$87,0)+RIGHT($E22),0))\n/SUM(AJ$10:AJ$11)","v":0},{"$f":"IF(INDEX(PC_MAPPING,RIGHT($C15,1),MATCH($E$2,'Data by Building Type'!$D$22:$F$22,0))=\"Yes\",1,0)*\n(AK$10*OFFSET('Efficiency Distributions'!$D$10,MATCH($C15,'Efficiency Distributions'!$C$9:$C$87,0)+RIGHT($E22),0)\n+AK$11*OFFSET('Efficiency Distributions'!$E$10,MATCH($C15,'Efficiency Distributions'!$C$9:$C$87,0)+RIGHT($E22),0))\n/SUM(AK$10:AK$11)","v":0},{"$f":"IF(INDEX(PC_MAPPING,RIGHT($C15,1),MATCH($E$2,'Data by Building Type'!$D$22:$F$22,0))=\"Yes\",1,0)*\n(AL$10*OFFSET('Efficiency Distributions'!$D$10,MATCH($C15,'Efficiency Distributions'!$C$9:$C$87,0)+RIGHT($E22),0)\n+AL$11*OFFSET('Efficiency Distributions'!$E$10,MATCH($C15,'Efficiency Distributions'!$C$9:$C$87,0)+RIGHT($E22),0))\n/SUM(AL$10:AL$11)","v":0},{"$f":"IF(INDEX(PC_MAPPING,RIGHT($C15,1),MATCH($E$2,'Data by Building Type'!$D$22:$F$22,0))=\"Yes\",1,0)*\n(AM$10*OFFSET('Efficiency Distributions'!$D$10,MATCH($C15,'Efficiency Distributions'!$C$9:$C$87,0)+RIGHT($E22),0)\n+AM$11*OFFSET('Efficiency Distributions'!$E$10,MATCH($C15,'Efficiency Distributions'!$C$9:$C$87,0)+RIGHT($E22),0))\n/SUM(AM$10:AM$11)","v":0},{"$f":"IF(INDEX(PC_MAPPING,RIGHT($C15,1),MATCH($E$2,'Data by Building Type'!$D$22:$F$22,0))=\"Yes\",1,0)*\n(AN$10*OFFSET('Efficiency Distributions'!$D$10,MATCH($C15,'Efficiency Distributions'!$C$9:$C$87,0)+RIGHT($E22),0)\n+AN$11*OFFSET('Efficiency Distributions'!$E$10,MATCH($C15,'Efficiency Distributions'!$C$9:$C$87,0)+RIGHT($E22),0))\n/SUM(AN$10:AN$11)","v":0},{"$f":"IF(INDEX(PC_MAPPING,RIGHT($C15,1),MATCH($E$2,'Data by Building Type'!$D$22:$F$22,0))=\"Yes\",1,0)*\n(AO$10*OFFSET('Efficiency Distributions'!$D$10,MATCH($C15,'Efficiency Distributions'!$C$9:$C$87,0)+RIGHT($E22),0)\n+AO$11*OFFSET('Efficiency Distributions'!$E$10,MATCH($C15,'Efficiency Distributions'!$C$9:$C$87,0)+RIGHT($E22),0))\n/SUM(AO$10:AO$11)","v":0},{"$f":"IF(INDEX(PC_MAPPING,RIGHT($C15,1),MATCH($E$2,'Data by Building Type'!$D$22:$F$22,0))=\"Yes\",1,0)*\n(AP$10*OFFSET('Efficiency Distributions'!$D$10,MATCH($C15,'Efficiency Distributions'!$C$9:$C$87,0)+RIGHT($E22),0)\n+AP$11*OFFSET('Efficiency Distributions'!$E$10,MATCH($C15,'Efficiency Distributions'!$C$9:$C$87,0)+RIGHT($E22),0))\n/SUM(AP$10:AP$11)","v":0},{"$f":"IF(INDEX(PC_MAPPING,RIGHT($C15,1),MATCH($E$2,'Data by Building Type'!$D$22:$F$22,0))=\"Yes\",1,0)*\n(AQ$10*OFFSET('Efficiency Distributions'!$D$10,MATCH($C15,'Efficiency Distributions'!$C$9:$C$87,0)+RIGHT($E22),0)\n+AQ$11*OFFSET('Efficiency Distributions'!$E$10,MATCH($C15,'Efficiency Distributions'!$C$9:$C$87,0)+RIGHT($E22),0))\n/SUM(AQ$10:AQ$11)","v":0},{"$f":"IF(INDEX(PC_MAPPING,RIGHT($C15,1),MATCH($E$2,'Data by Building Type'!$D$22:$F$22,0))=\"Yes\",1,0)*\n(AR$10*OFFSET('Efficiency Distributions'!$D$10,MATCH($C15,'Efficiency Distributions'!$C$9:$C$87,0)+RIGHT($E22),0)\n+AR$11*OFFSET('Efficiency Distributions'!$E$10,MATCH($C15,'Efficiency Distributions'!$C$9:$C$87,0)+RIGHT($E22),0))\n/SUM(AR$10:AR$11)","v":0},{"$f":"IF(INDEX(PC_MAPPING,RIGHT($C15,1),MATCH($E$2,'Data by Building Type'!$D$22:$F$22,0))=\"Yes\",1,0)*\n(AS$10*OFFSET('Efficiency Distributions'!$D$10,MATCH($C15,'Efficiency Distributions'!$C$9:$C$87,0)+RIGHT($E22),0)\n+AS$11*OFFSET('Efficiency Distributions'!$E$10,MATCH($C15,'Efficiency Distributions'!$C$9:$C$87,0)+RIGHT($E22),0))\n/SUM(AS$10:AS$11)","v":0},{"$f":"IF(INDEX(PC_MAPPING,RIGHT($C15,1),MATCH($E$2,'Data by Building Type'!$D$22:$F$22,0))=\"Yes\",1,0)*\n(AT$10*OFFSET('Efficiency Distributions'!$D$10,MATCH($C15,'Efficiency Distributions'!$C$9:$C$87,0)+RIGHT($E22),0)\n+AT$11*OFFSET('Efficiency Distributions'!$E$10,MATCH($C15,'Efficiency Distributions'!$C$9:$C$87,0)+RIGHT($E22),0))\n/SUM(AT$10:AT$11)","v":0},{"$f":"IF(INDEX(PC_MAPPING,RIGHT($C15,1),MATCH($E$2,'Data by Building Type'!$D$22:$F$22,0))=\"Yes\",1,0)*\n(AU$10*OFFSET('Efficiency Distributions'!$D$10,MATCH($C15,'Efficiency Distributions'!$C$9:$C$87,0)+RIGHT($E22),0)\n+AU$11*OFFSET('Efficiency Distributions'!$E$10,MATCH($C15,'Efficiency Distributions'!$C$9:$C$87,0)+RIGHT($E22),0))\n/SUM(AU$10:AU$11)","v":0},{"$f":"IF(INDEX(PC_MAPPING,RIGHT($C15,1),MATCH($E$2,'Data by Building Type'!$D$22:$F$22,0))=\"Yes\",1,0)*\n(AV$10*OFFSET('Efficiency Distributions'!$D$10,MATCH($C15,'Efficiency Distributions'!$C$9:$C$87,0)+RIGHT($E22),0)\n+AV$11*OFFSET('Efficiency Distributions'!$E$10,MATCH($C15,'Efficiency Distributions'!$C$9:$C$87,0)+RIGHT($E22),0))\n/SUM(AV$10:AV$11)","v":0},{"$f":"IF(INDEX(PC_MAPPING,RIGHT($C15,1),MATCH($E$2,'Data by Building Type'!$D$22:$F$22,0))=\"Yes\",1,0)*\n(AW$10*OFFSET('Efficiency Distributions'!$D$10,MATCH($C15,'Efficiency Distributions'!$C$9:$C$87,0)+RIGHT($E22),0)\n+AW$11*OFFSET('Efficiency Distributions'!$E$10,MATCH($C15,'Efficiency Distributions'!$C$9:$C$87,0)+RIGHT($E22),0))\n/SUM(AW$10:AW$11)","v":0},{"$f":"IF(INDEX(PC_MAPPING,RIGHT($C15,1),MATCH($E$2,'Data by Building Type'!$D$22:$F$22,0))=\"Yes\",1,0)*\n(AX$10*OFFSET('Efficiency Distributions'!$D$10,MATCH($C15,'Efficiency Distributions'!$C$9:$C$87,0)+RIGHT($E22),0)\n+AX$11*OFFSET('Efficiency Distributions'!$E$10,MATCH($C15,'Efficiency Distributions'!$C$9:$C$87,0)+RIGHT($E22),0))\n/SUM(AX$10:AX$11)","v":0},{"$f":"IF(INDEX(PC_MAPPING,RIGHT($C15,1),MATCH($E$2,'Data by Building Type'!$D$22:$F$22,0))=\"Yes\",1,0)*\n(AY$10*OFFSET('Efficiency Distributions'!$D$10,MATCH($C15,'Efficiency Distributions'!$C$9:$C$87,0)+RIGHT($E22),0)\n+AY$11*OFFSET('Efficiency Distributions'!$E$10,MATCH($C15,'Efficiency Distributions'!$C$9:$C$87,0)+RIGHT($E22),0))\n/SUM(AY$10:AY$11)","v":0},{"$f":"IF(INDEX(PC_MAPPING,RIGHT($C15,1),MATCH($E$2,'Data by Building Type'!$D$22:$F$22,0))=\"Yes\",1,0)*\n(AZ$10*OFFSET('Efficiency Distributions'!$D$10,MATCH($C15,'Efficiency Distributions'!$C$9:$C$87,0)+RIGHT($E22),0)\n+AZ$11*OFFSET('Efficiency Distributions'!$E$10,MATCH($C15,'Efficiency Distributions'!$C$9:$C$87,0)+RIGHT($E22),0))\n/SUM(AZ$10:AZ$11)","v":0},{"$f":"IF(INDEX(PC_MAPPING,RIGHT($C15,1),MATCH($E$2,'Data by Building Type'!$D$22:$F$22,0))=\"Yes\",1,0)*\n(BA$10*OFFSET('Efficiency Distributions'!$D$10,MATCH($C15,'Efficiency Distributions'!$C$9:$C$87,0)+RIGHT($E22),0)\n+BA$11*OFFSET('Efficiency Distributions'!$E$10,MATCH($C15,'Efficiency Distributions'!$C$9:$C$87,0)+RIGHT($E22),0))\n/SUM(BA$10:BA$11)","v":0},{"$f":"IF(INDEX(PC_MAPPING,RIGHT($C15,1),MATCH($E$2,'Data by Building Type'!$D$22:$F$22,0))=\"Yes\",1,0)*\n(BB$10*OFFSET('Efficiency Distributions'!$D$10,MATCH($C15,'Efficiency Distributions'!$C$9:$C$87,0)+RIGHT($E22),0)\n+BB$11*OFFSET('Efficiency Distributions'!$E$10,MATCH($C15,'Efficiency Distributions'!$C$9:$C$87,0)+RIGHT($E22),0))\n/SUM(BB$10:BB$11)","v":0},{"$f":"IF(INDEX(PC_MAPPING,RIGHT($C15,1),MATCH($E$2,'Data by Building Type'!$D$22:$F$22,0))=\"Yes\",1,0)*\n(BC$10*OFFSET('Efficiency Distributions'!$D$10,MATCH($C15,'Efficiency Distributions'!$C$9:$C$87,0)+RIGHT($E22),0)\n+BC$11*OFFSET('Efficiency Distributions'!$E$10,MATCH($C15,'Efficiency Distributions'!$C$9:$C$87,0)+RIGHT($E22),0))\n/SUM(BC$10:BC$11)","v":0},{"$f":"IF(INDEX(PC_MAPPING,RIGHT($C15,1),MATCH($E$2,'Data by Building Type'!$D$22:$F$22,0))=\"Yes\",1,0)*\n(BD$10*OFFSET('Efficiency Distributions'!$D$10,MATCH($C15,'Efficiency Distributions'!$C$9:$C$87,0)+RIGHT($E22),0)\n+BD$11*OFFSET('Efficiency Distributions'!$E$10,MATCH($C15,'Efficiency Distributions'!$C$9:$C$87,0)+RIGHT($E22),0))\n/SUM(BD$10:BD$11)","v":0},{"$f":"IF(INDEX(PC_MAPPING,RIGHT($C15,1),MATCH($E$2,'Data by Building Type'!$D$22:$F$22,0))=\"Yes\",1,0)*\n(BE$10*OFFSET('Efficiency Distributions'!$D$10,MATCH($C15,'Efficiency Distributions'!$C$9:$C$87,0)+RIGHT($E22),0)\n+BE$11*OFFSET('Efficiency Distributions'!$E$10,MATCH($C15,'Efficiency Distributions'!$C$9:$C$87,0)+RIGHT($E22),0))\n/SUM(BE$10:BE$11)","v":0},{"$f":"IF(INDEX(PC_MAPPING,RIGHT($C15,1),MATCH($E$2,'Data by Building Type'!$D$22:$F$22,0))=\"Yes\",1,0)*\n(BF$10*OFFSET('Efficiency Distributions'!$D$10,MATCH($C15,'Efficiency Distributions'!$C$9:$C$87,0)+RIGHT($E22),0)\n+BF$11*OFFSET('Efficiency Distributions'!$E$10,MATCH($C15,'Efficiency Distributions'!$C$9:$C$87,0)+RIGHT($E22),0))\n/SUM(BF$10:BF$11)","v":0},{"$f":"IF(INDEX(PC_MAPPING,RIGHT($C15,1),MATCH($E$2,'Data by Building Type'!$D$22:$F$22,0))=\"Yes\",1,0)*\n(BG$10*OFFSET('Efficiency Distributions'!$D$10,MATCH($C15,'Efficiency Distributions'!$C$9:$C$87,0)+RIGHT($E22),0)\n+BG$11*OFFSET('Efficiency Distributions'!$E$10,MATCH($C15,'Efficiency Distributions'!$C$9:$C$87,0)+RIGHT($E22),0))\n/SUM(BG$10:BG$11)","v":0}]
[null,null,null,null,"EL4",{"$f":"IF(INDEX(PC_MAPPING,RIGHT($C15,1),MATCH($E$2,'Data by Building Type'!$D$22:$F$22,0))=\"Yes\",1,0)*\n(F$10*OFFSET('Efficiency Distributions'!$D$10,MATCH($C15,'Efficiency Distributions'!$C$9:$C$87,0)+RIGHT($E23),0)\n+F$11*OFFSET('Efficiency Distributions'!$E$10,MATCH($C15,'Efficiency Distributions'!$C$9:$C$87,0)+RIGHT($E23),0))\n/SUM(F$10:F$11)","v":0},{"$f":"IF(INDEX(PC_MAPPING,RIGHT($C15,1),MATCH($E$2,'Data by Building Type'!$D$22:$F$22,0))=\"Yes\",1,0)*\n(G$10*OFFSET('Efficiency Distributions'!$D$10,MATCH($C15,'Efficiency Distributions'!$C$9:$C$87,0)+RIGHT($E23),0)\n+G$11*OFFSET('Efficiency Distributions'!$E$10,MATCH($C15,'Efficiency Distributions'!$C$9:$C$87,0)+RIGHT($E23),0))\n/SUM(G$10:G$11)","v":0},{"$f":"IF(INDEX(PC_MAPPING,RIGHT($C15,1),MATCH($E$2,'Data by Building Type'!$D$22:$F$22,0))=\"Yes\",1,0)*\n(H$10*OFFSET('Efficiency Distributions'!$D$10,MATCH($C15,'Efficiency Distributions'!$C$9:$C$87,0)+RIGHT($E23),0)\n+H$11*OFFSET('Efficiency Distributions'!$E$10,MATCH($C15,'Efficiency Distributions'!$C$9:$C$87,0)+RIGHT($E23),0))\n/SUM(H$10:H$11)","v":0},{"$f":"IF(INDEX(PC_MAPPING,RIGHT($C15,1),MATCH($E$2,'Data by Building Type'!$D$22:$F$22,0))=\"Yes\",1,0)*\n(I$10*OFFSET('Efficiency Distributions'!$D$10,MATCH($C15,'Efficiency Distributions'!$C$9:$C$87,0)+RIGHT($E23),0)\n+I$11*OFFSET('Efficiency Distributions'!$E$10,MATCH($C15,'Efficiency Distributions'!$C$9:$C$87,0)+RIGHT($E23),0))\n/SUM(I$10:I$11)","v":0},{"$f":"IF(INDEX(PC_MAPPING,RIGHT($C15,1),MATCH($E$2,'Data by Building Type'!$D$22:$F$22,0))=\"Yes\",1,0)*\n(J$10*OFFSET('Efficiency Distributions'!$D$10,MATCH($C15,'Efficiency Distributions'!$C$9:$C$87,0)+RIGHT($E23),0)\n+J$11*OFFSET('Efficiency Distributions'!$E$10,MATCH($C15,'Efficiency Distributions'!$C$9:$C$87,0)+RIGHT($E23),0))\n/SUM(J$10:J$11)","v":0},{"$f":"IF(INDEX(PC_MAPPING,RIGHT($C15,1),MATCH($E$2,'Data by Building Type'!$D$22:$F$22,0))=\"Yes\",1,0)*\n(K$10*OFFSET('Efficiency Distributions'!$D$10,MATCH($C15,'Efficiency Distributions'!$C$9:$C$87,0)+RIGHT($E23),0)\n+K$11*OFFSET('Efficiency Distributions'!$E$10,MATCH($C15,'Efficiency Distributions'!$C$9:$C$87,0)+RIGHT($E23),0))\n/SUM(K$10:K$11)","v":0},{"$f":"IF(INDEX(PC_MAPPING,RIGHT($C15,1),MATCH($E$2,'Data by Building Type'!$D$22:$F$22,0))=\"Yes\",1,0)*\n(L$10*OFFSET('Efficiency Distributions'!$D$10,MATCH($C15,'Efficiency Distributions'!$C$9:$C$87,0)+RIGHT($E23),0)\n+L$11*OFFSET('Efficiency Distributions'!$E$10,MATCH($C15,'Efficiency Distributions'!$C$9:$C$87,0)+RIGHT($E23),0))\n/SUM(L$10:L$11)","v":0},{"$f":"IF(INDEX(PC_MAPPING,RIGHT($C15,1),MATCH($E$2,'Data by Building Type'!$D$22:$F$22,0))=\"Yes\",1,0)*\n(M$10*OFFSET('Efficiency Distributions'!$D$10,MATCH($C15,'Efficiency Distributions'!$C$9:$C$87,0)+RIGHT($E23),0)\n+M$11*OFFSET('Efficiency Distributions'!$E$10,MATCH($C15,'Efficiency Distributions'!$C$9:$C$87,0)+RIGHT($E23),0))\n/SUM(M$10:M$11)","v":0},{"$f":"IF(INDEX(PC_MAPPING,RIGHT($C15,1),MATCH($E$2,'Data by Building Type'!$D$22:$F$22,0))=\"Yes\",1,0)*\n(N$10*OFFSET('Efficiency Distributions'!$D$10,MATCH($C15,'Efficiency Distributions'!$C$9:$C$87,0)+RIGHT($E23),0)\n+N$11*OFFSET('Efficiency Distributions'!$E$10,MATCH($C15,'Efficiency Distributions'!$C$9:$C$87,0)+RIGHT($E23),0))\n/SUM(N$10:N$11)","v":0},{"$f":"IF(INDEX(PC_MAPPING,RIGHT($C15,1),MATCH($E$2,'Data by Building Type'!$D$22:$F$22,0))=\"Yes\",1,0)*\n(O$10*OFFSET('Efficiency Distributions'!$D$10,MATCH($C15,'Efficiency Distributions'!$C$9:$C$87,0)+RIGHT($E23),0)\n+O$11*OFFSET('Efficiency Distributions'!$E$10,MATCH($C15,'Efficiency Distributions'!$C$9:$C$87,0)+RIGHT($E23),0))\n/SUM(O$10:O$11)","v":0},{"$f":"IF(INDEX(PC_MAPPING,RIGHT($C15,1),MATCH($E$2,'Data by Building Type'!$D$22:$F$22,0))=\"Yes\",1,0)*\n(P$10*OFFSET('Efficiency Distributions'!$D$10,MATCH($C15,'Efficiency Distributions'!$C$9:$C$87,0)+RIGHT($E23),0)\n+P$11*OFFSET('Efficiency Distributions'!$E$10,MATCH($C15,'Efficiency Distributions'!$C$9:$C$87,0)+RIGHT($E23),0))\n/SUM(P$10:P$11)","v":0},{"$f":"IF(INDEX(PC_MAPPING,RIGHT($C15,1),MATCH($E$2,'Data by Building Type'!$D$22:$F$22,0))=\"Yes\",1,0)*\n(Q$10*OFFSET('Efficiency Distributions'!$D$10,MATCH($C15,'Efficiency Distributions'!$C$9:$C$87,0)+RIGHT($E23),0)\n+Q$11*OFFSET('Efficiency Distributions'!$E$10,MATCH($C15,'Efficiency Distributions'!$C$9:$C$87,0)+RIGHT($E23),0))\n/SUM(Q$10:Q$11)","v":0},{"$f":"IF(INDEX(PC_MAPPING,RIGHT($C15,1),MATCH($E$2,'Data by Building Type'!$D$22:$F$22,0))=\"Yes\",1,0)*\n(R$10*OFFSET('Efficiency Distributions'!$D$10,MATCH($C15,'Efficiency Distributions'!$C$9:$C$87,0)+RIGHT($E23),0)\n+R$11*OFFSET('Efficiency Distributions'!$E$10,MATCH($C15,'Efficiency Distributions'!$C$9:$C$87,0)+RIGHT($E23),0))\n/SUM(R$10:R$11)","v":0},{"$f":"IF(INDEX(PC_MAPPING,RIGHT($C15,1),MATCH($E$2,'Data by Building Type'!$D$22:$F$22,0))=\"Yes\",1,0)*\n(S$10*OFFSET('Efficiency Distributions'!$D$10,MATCH($C15,'Efficiency Distributions'!$C$9:$C$87,0)+RIGHT($E23),0)\n+S$11*OFFSET('Efficiency Distributions'!$E$10,MATCH($C15,'Efficiency Distributions'!$C$9:$C$87,0)+RIGHT($E23),0))\n/SUM(S$10:S$11)","v":0},{"$f":"IF(INDEX(PC_MAPPING,RIGHT($C15,1),MATCH($E$2,'Data by Building Type'!$D$22:$F$22,0))=\"Yes\",1,0)*\n(T$10*OFFSET('Efficiency Distributions'!$D$10,MATCH($C15,'Efficiency Distributions'!$C$9:$C$87,0)+RIGHT($E23),0)\n+T$11*OFFSET('Efficiency Distributions'!$E$10,MATCH($C15,'Efficiency Distributions'!$C$9:$C$87,0)+RIGHT($E23),0))\n/SUM(T$10:T$11)","v":0},{"$f":"IF(INDEX(PC_MAPPING,RIGHT($C15,1),MATCH($E$2,'Data by Building Type'!$D$22:$F$22,0))=\"Yes\",1,0)*\n(U$10*OFFSET('Efficiency Distributions'!$D$10,MATCH($C15,'Efficiency Distributions'!$C$9:$C$87,0)+RIGHT($E23),0)\n+U$11*OFFSET('Efficiency Distributions'!$E$10,MATCH($C15,'Efficiency Distributions'!$C$9:$C$87,0)+RIGHT($E23),0))\n/SUM(U$10:U$11)","v":0},{"$f":"IF(INDEX(PC_MAPPING,RIGHT($C15,1),MATCH($E$2,'Data by Building Type'!$D$22:$F$22,0))=\"Yes\",1,0)*\n(V$10*OFFSET('Efficiency Distributions'!$D$10,MATCH($C15,'Efficiency Distributions'!$C$9:$C$87,0)+RIGHT($E23),0)\n+V$11*OFFSET('Efficiency Distributions'!$E$10,MATCH($C15,'Efficiency Distributions'!$C$9:$C$87,0)+RIGHT($E23),0))\n/SUM(V$10:V$11)","v":0},{"$f":"IF(INDEX(PC_MAPPING,RIGHT($C15,1),MATCH($E$2,'Data by Building Type'!$D$22:$F$22,0))=\"Yes\",1,0)*\n(W$10*OFFSET('Efficiency Distributions'!$D$10,MATCH($C15,'Efficiency Distributions'!$C$9:$C$87,0)+RIGHT($E23),0)\n+W$11*OFFSET('Efficiency Distributions'!$E$10,MATCH($C15,'Efficiency Distributions'!$C$9:$C$87,0)+RIGHT($E23),0))\n/SUM(W$10:W$11)","v":0},{"$f":"IF(INDEX(PC_MAPPING,RIGHT($C15,1),MATCH($E$2,'Data by Building Type'!$D$22:$F$22,0))=\"Yes\",1,0)*\n(X$10*OFFSET('Efficiency Distributions'!$D$10,MATCH($C15,'Efficiency Distributions'!$C$9:$C$87,0)+RIGHT($E23),0)\n+X$11*OFFSET('Efficiency Distributions'!$E$10,MATCH($C15,'Efficiency Distributions'!$C$9:$C$87,0)+RIGHT($E23),0))\n/SUM(X$10:X$11)","v":0},{"$f":"IF(INDEX(PC_MAPPING,RIGHT($C15,1),MATCH($E$2,'Data by Building Type'!$D$22:$F$22,0))=\"Yes\",1,0)*\n(Y$10*OFFSET('Efficiency Distributions'!$D$10,MATCH($C15,'Efficiency Distributions'!$C$9:$C$87,0)+RIGHT($E23),0)\n+Y$11*OFFSET('Efficiency Distributions'!$E$10,MATCH($C15,'Efficiency Distributions'!$C$9:$C$87,0)+RIGHT($E23),0))\n/SUM(Y$10:Y$11)","v":0},{"$f":"IF(INDEX(PC_MAPPING,RIGHT($C15,1),MATCH($E$2,'Data by Building Type'!$D$22:$F$22,0))=\"Yes\",1,0)*\n(Z$10*OFFSET('Efficiency Distributions'!$D$10,MATCH($C15,'Efficiency Distributions'!$C$9:$C$87,0)+RIGHT($E23),0)\n+Z$11*OFFSET('Efficiency Distributions'!$E$10,MATCH($C15,'Efficiency Distributions'!$C$9:$C$87,0)+RIGHT($E23),0))\n/SUM(Z$10:Z$11)","v":0},{"$f":"IF(INDEX(PC_MAPPING,RIGHT($C15,1),MATCH($E$2,'Data by Building Type'!$D$22:$F$22,0))=\"Yes\",1,0)*\n(AA$10*OFFSET('Efficiency Distributions'!$D$10,MATCH($C15,'Efficiency Distributions'!$C$9:$C$87,0)+RIGHT($E23),0)\n+AA$11*OFFSET('Efficiency Distributions'!$E$10,MATCH($C15,'Efficiency Distributions'!$C$9:$C$87,0)+RIGHT($E23),0))\n/SUM(AA$10:AA$11)","v":0},{"$f":"IF(INDEX(PC_MAPPING,RIGHT($C15,1),MATCH($E$2,'Data by Building Type'!$D$22:$F$22,0))=\"Yes\",1,0)*\n(AB$10*OFFSET('Efficiency Distributions'!$D$10,MATCH($C15,'Efficiency Distributions'!$C$9:$C$87,0)+RIGHT($E23),0)\n+AB$11*OFFSET('Efficiency Distributions'!$E$10,MATCH($C15,'Efficiency Distributions'!$C$9:$C$87,0)+RIGHT($E23),0))\n/SUM(AB$10:AB$11)","v":0},{"$f":"IF(INDEX(PC_MAPPING,RIGHT($C15,1),MATCH($E$2,'Data by Building Type'!$D$22:$F$22,0))=\"Yes\",1,0)*\n(AC$10*OFFSET('Efficiency Distributions'!$D$10,MATCH($C15,'Efficiency Distributions'!$C$9:$C$87,0)+RIGHT($E23),0)\n+AC$11*OFFSET('Efficiency Distributions'!$E$10,MATCH($C15,'Efficiency Distributions'!$C$9:$C$87,0)+RIGHT($E23),0))\n/SUM(AC$10:AC$11)","v":0},{"$f":"IF(INDEX(PC_MAPPING,RIGHT($C15,1),MATCH($E$2,'Data by Building Type'!$D$22:$F$22,0))=\"Yes\",1,0)*\n(AD$10*OFFSET('Efficiency Distributions'!$D$10,MATCH($C15,'Efficiency Distributions'!$C$9:$C$87,0)+RIGHT($E23),0)\n+AD$11*OFFSET('Efficiency Distributions'!$E$10,MATCH($C15,'Efficiency Distributions'!$C$9:$C$87,0)+RIGHT($E23),0))\n/SUM(AD$10:AD$11)","v":0},{"$f":"IF(INDEX(PC_MAPPING,RIGHT($C15,1),MATCH($E$2,'Data by Building Type'!$D$22:$F$22,0))=\"Yes\",1,0)*\n(AE$10*OFFSET('Efficiency Distributions'!$D$10,MATCH($C15,'Efficiency Distributions'!$C$9:$C$87,0)+RIGHT($E23),0)\n+AE$11*OFFSET('Efficiency Distributions'!$E$10,MATCH($C15,'Efficiency Distributions'!$C$9:$C$87,0)+RIGHT($E23),0))\n/SUM(AE$10:AE$11)","v":0},{"$f":"IF(INDEX(PC_MAPPING,RIGHT($C15,1),MATCH($E$2,'Data by Building Type'!$D$22:$F$22,0))=\"Yes\",1,0)*\n(AF$10*OFFSET('Efficiency Distributions'!$D$10,MATCH($C15,'Efficiency Distributions'!$C$9:$C$87,0)+RIGHT($E23),0)\n+AF$11*OFFSET('Efficiency Distributions'!$E$10,MATCH($C15,'Efficiency Distributions'!$C$9:$C$87,0)+RIGHT($E23),0))\n/SUM(AF$10:AF$11)","v":0},{"$f":"IF(INDEX(PC_MAPPING,RIGHT($C15,1),MATCH($E$2,'Data by Building Type'!$D$22:$F$22,0))=\"Yes\",1,0)*\n(AG$10*OFFSET('Efficiency Distributions'!$D$10,MATCH($C15,'Efficiency Distributions'!$C$9:$C$87,0)+RIGHT($E23),0)\n+AG$11*OFFSET('Efficiency Distributions'!$E$10,MATCH($C15,'Efficiency Distributions'!$C$9:$C$87,0)+RIGHT($E23),0))\n/SUM(AG$10:AG$11)","v":0},{"$f":"IF(INDEX(PC_MAPPING,RIGHT($C15,1),MATCH($E$2,'Data by Building Type'!$D$22:$F$22,0))=\"Yes\",1,0)*\n(AH$10*OFFSET('Efficiency Distributions'!$D$10,MATCH($C15,'Efficiency Distributions'!$C$9:$C$87,0)+RIGHT($E23),0)\n+AH$11*OFFSET('Efficiency Distributions'!$E$10,MATCH($C15,'Efficiency Distributions'!$C$9:$C$87,0)+RIGHT($E23),0))\n/SUM(AH$10:AH$11)","v":0},{"$f":"IF(INDEX(PC_MAPPING,RIGHT($C15,1),MATCH($E$2,'Data by Building Type'!$D$22:$F$22,0))=\"Yes\",1,0)*\n(AI$10*OFFSET('Efficiency Distributions'!$D$10,MATCH($C15,'Efficiency Distributions'!$C$9:$C$87,0)+RIGHT($E23),0)\n+AI$11*OFFSET('Efficiency Distributions'!$E$10,MATCH($C15,'Efficiency Distributions'!$C$9:$C$87,0)+RIGHT($E23),0))\n/SUM(AI$10:AI$11)","v":0},{"$f":"IF(INDEX(PC_MAPPING,RIGHT($C15,1),MATCH($E$2,'Data by Building Type'!$D$22:$F$22,0))=\"Yes\",1,0)*\n(AJ$10*OFFSET('Efficiency Distributions'!$D$10,MATCH($C15,'Efficiency Distributions'!$C$9:$C$87,0)+RIGHT($E23),0)\n+AJ$11*OFFSET('Efficiency Distributions'!$E$10,MATCH($C15,'Efficiency Distributions'!$C$9:$C$87,0)+RIGHT($E23),0))\n/SUM(AJ$10:AJ$11)","v":0},{"$f":"IF(INDEX(PC_MAPPING,RIGHT($C15,1),MATCH($E$2,'Data by Building Type'!$D$22:$F$22,0))=\"Yes\",1,0)*\n(AK$10*OFFSET('Efficiency Distributions'!$D$10,MATCH($C15,'Efficiency Distributions'!$C$9:$C$87,0)+RIGHT($E23),0)\n+AK$11*OFFSET('Efficiency Distributions'!$E$10,MATCH($C15,'Efficiency Distributions'!$C$9:$C$87,0)+RIGHT($E23),0))\n/SUM(AK$10:AK$11)","v":0},{"$f":"IF(INDEX(PC_MAPPING,RIGHT($C15,1),MATCH($E$2,'Data by Building Type'!$D$22:$F$22,0))=\"Yes\",1,0)*\n(AL$10*OFFSET('Efficiency Distributions'!$D$10,MATCH($C15,'Efficiency Distributions'!$C$9:$C$87,0)+RIGHT($E23),0)\n+AL$11*OFFSET('Efficiency Distributions'!$E$10,MATCH($C15,'Efficiency Distributions'!$C$9:$C$87,0)+RIGHT($E23),0))\n/SUM(AL$10:AL$11)","v":0},{"$f":"IF(INDEX(PC_MAPPING,RIGHT($C15,1),MATCH($E$2,'Data by Building Type'!$D$22:$F$22,0))=\"Yes\",1,0)*\n(AM$10*OFFSET('Efficiency Distributions'!$D$10,MATCH($C15,'Efficiency Distributions'!$C$9:$C$87,0)+RIGHT($E23),0)\n+AM$11*OFFSET('Efficiency Distributions'!$E$10,MATCH($C15,'Efficiency Distributions'!$C$9:$C$87,0)+RIGHT($E23),0))\n/SUM(AM$10:AM$11)","v":0},{"$f":"IF(INDEX(PC_MAPPING,RIGHT($C15,1),MATCH($E$2,'Data by Building Type'!$D$22:$F$22,0))=\"Yes\",1,0)*\n(AN$10*OFFSET('Efficiency Distributions'!$D$10,MATCH($C15,'Efficiency Distributions'!$C$9:$C$87,0)+RIGHT($E23),0)\n+AN$11*OFFSET('Efficiency Distributions'!$E$10,MATCH($C15,'Efficiency Distributions'!$C$9:$C$87,0)+RIGHT($E23),0))\n/SUM(AN$10:AN$11)","v":0},{"$f":"IF(INDEX(PC_MAPPING,RIGHT($C15,1),MATCH($E$2,'Data by Building Type'!$D$22:$F$22,0))=\"Yes\",1,0)*\n(AO$10*OFFSET('Efficiency Distributions'!$D$10,MATCH($C15,'Efficiency Distributions'!$C$9:$C$87,0)+RIGHT($E23),0)\n+AO$11*OFFSET('Efficiency Distributions'!$E$10,MATCH($C15,'Efficiency Distributions'!$C$9:$C$87,0)+RIGHT($E23),0))\n/SUM(AO$10:AO$11)","v":0},{"$f":"IF(INDEX(PC_MAPPING,RIGHT($C15,1),MATCH($E$2,'Data by Building Type'!$D$22:$F$22,0))=\"Yes\",1,0)*\n(AP$10*OFFSET('Efficiency Distributions'!$D$10,MATCH($C15,'Efficiency Distributions'!$C$9:$C$87,0)+RIGHT($E23),0)\n+AP$11*OFFSET('Efficiency Distributions'!$E$10,MATCH($C15,'Efficiency Distributions'!$C$9:$C$87,0)+RIGHT($E23),0))\n/SUM(AP$10:AP$11)","v":0},{"$f":"IF(INDEX(PC_MAPPING,RIGHT($C15,1),MATCH($E$2,'Data by Building Type'!$D$22:$F$22,0))=\"Yes\",1,0)*\n(AQ$10*OFFSET('Efficiency Distributions'!$D$10,MATCH($C15,'Efficiency Distributions'!$C$9:$C$87,0)+RIGHT($E23),0)\n+AQ$11*OFFSET('Efficiency Distributions'!$E$10,MATCH($C15,'Efficiency Distributions'!$C$9:$C$87,0)+RIGHT($E23),0))\n/SUM(AQ$10:AQ$11)","v":0},{"$f":"IF(INDEX(PC_MAPPING,RIGHT($C15,1),MATCH($E$2,'Data by Building Type'!$D$22:$F$22,0))=\"Yes\",1,0)*\n(AR$10*OFFSET('Efficiency Distributions'!$D$10,MATCH($C15,'Efficiency Distributions'!$C$9:$C$87,0)+RIGHT($E23),0)\n+AR$11*OFFSET('Efficiency Distributions'!$E$10,MATCH($C15,'Efficiency Distributions'!$C$9:$C$87,0)+RIGHT($E23),0))\n/SUM(AR$10:AR$11)","v":0},{"$f":"IF(INDEX(PC_MAPPING,RIGHT($C15,1),MATCH($E$2,'Data by Building Type'!$D$22:$F$22,0))=\"Yes\",1,0)*\n(AS$10*OFFSET('Efficiency Distributions'!$D$10,MATCH($C15,'Efficiency Distributions'!$C$9:$C$87,0)+RIGHT($E23),0)\n+AS$11*OFFSET('Efficiency Distributions'!$E$10,MATCH($C15,'Efficiency Distributions'!$C$9:$C$87,0)+RIGHT($E23),0))\n/SUM(AS$10:AS$11)","v":0},{"$f":"IF(INDEX(PC_MAPPING,RIGHT($C15,1),MATCH($E$2,'Data by Building Type'!$D$22:$F$22,0))=\"Yes\",1,0)*\n(AT$10*OFFSET('Efficiency Distributions'!$D$10,MATCH($C15,'Efficiency Distributions'!$C$9:$C$87,0)+RIGHT($E23),0)\n+AT$11*OFFSET('Efficiency Distributions'!$E$10,MATCH($C15,'Efficiency Distributions'!$C$9:$C$87,0)+RIGHT($E23),0))\n/SUM(AT$10:AT$11)","v":0},{"$f":"IF(INDEX(PC_MAPPING,RIGHT($C15,1),MATCH($E$2,'Data by Building Type'!$D$22:$F$22,0))=\"Yes\",1,0)*\n(AU$10*OFFSET('Efficiency Distributions'!$D$10,MATCH($C15,'Efficiency Distributions'!$C$9:$C$87,0)+RIGHT($E23),0)\n+AU$11*OFFSET('Efficiency Distributions'!$E$10,MATCH($C15,'Efficiency Distributions'!$C$9:$C$87,0)+RIGHT($E23),0))\n/SUM(AU$10:AU$11)","v":0},{"$f":"IF(INDEX(PC_MAPPING,RIGHT($C15,1),MATCH($E$2,'Data by Building Type'!$D$22:$F$22,0))=\"Yes\",1,0)*\n(AV$10*OFFSET('Efficiency Distributions'!$D$10,MATCH($C15,'Efficiency Distributions'!$C$9:$C$87,0)+RIGHT($E23),0)\n+AV$11*OFFSET('Efficiency Distributions'!$E$10,MATCH($C15,'Efficiency Distributions'!$C$9:$C$87,0)+RIGHT($E23),0))\n/SUM(AV$10:AV$11)","v":0},{"$f":"IF(INDEX(PC_MAPPING,RIGHT($C15,1),MATCH($E$2,'Data by Building Type'!$D$22:$F$22,0))=\"Yes\",1,0)*\n(AW$10*OFFSET('Efficiency Distributions'!$D$10,MATCH($C15,'Efficiency Distributions'!$C$9:$C$87,0)+RIGHT($E23),0)\n+AW$11*OFFSET('Efficiency Distributions'!$E$10,MATCH($C15,'Efficiency Distributions'!$C$9:$C$87,0)+RIGHT($E23),0))\n/SUM(AW$10:AW$11)","v":0},{"$f":"IF(INDEX(PC_MAPPING,RIGHT($C15,1),MATCH($E$2,'Data by Building Type'!$D$22:$F$22,0))=\"Yes\",1,0)*\n(AX$10*OFFSET('Efficiency Distributions'!$D$10,MATCH($C15,'Efficiency Distributions'!$C$9:$C$87,0)+RIGHT($E23),0)\n+AX$11*OFFSET('Efficiency Distributions'!$E$10,MATCH($C15,'Efficiency Distributions'!$C$9:$C$87,0)+RIGHT($E23),0))\n/SUM(AX$10:AX$11)","v":0},{"$f":"IF(INDEX(PC_MAPPING,RIGHT($C15,1),MATCH($E$2,'Data by Building Type'!$D$22:$F$22,0))=\"Yes\",1,0)*\n(AY$10*OFFSET('Efficiency Distributions'!$D$10,MATCH($C15,'Efficiency Distributions'!$C$9:$C$87,0)+RIGHT($E23),0)\n+AY$11*OFFSET('Efficiency Distributions'!$E$10,MATCH($C15,'Efficiency Distributions'!$C$9:$C$87,0)+RIGHT($E23),0))\n/SUM(AY$10:AY$11)","v":0},{"$f":"IF(INDEX(PC_MAPPING,RIGHT($C15,1),MATCH($E$2,'Data by Building Type'!$D$22:$F$22,0))=\"Yes\",1,0)*\n(AZ$10*OFFSET('Efficiency Distributions'!$D$10,MATCH($C15,'Efficiency Distributions'!$C$9:$C$87,0)+RIGHT($E23),0)\n+AZ$11*OFFSET('Efficiency Distributions'!$E$10,MATCH($C15,'Efficiency Distributions'!$C$9:$C$87,0)+RIGHT($E23),0))\n/SUM(AZ$10:AZ$11)","v":0},{"$f":"IF(INDEX(PC_MAPPING,RIGHT($C15,1),MATCH($E$2,'Data by Building Type'!$D$22:$F$22,0))=\"Yes\",1,0)*\n(BA$10*OFFSET('Efficiency Distributions'!$D$10,MATCH($C15,'Efficiency Distributions'!$C$9:$C$87,0)+RIGHT($E23),0)\n+BA$11*OFFSET('Efficiency Distributions'!$E$10,MATCH($C15,'Efficiency Distributions'!$C$9:$C$87,0)+RIGHT($E23),0))\n/SUM(BA$10:BA$11)","v":0},{"$f":"IF(INDEX(PC_MAPPING,RIGHT($C15,1),MATCH($E$2,'Data by Building Type'!$D$22:$F$22,0))=\"Yes\",1,0)*\n(BB$10*OFFSET('Efficiency Distributions'!$D$10,MATCH($C15,'Efficiency Distributions'!$C$9:$C$87,0)+RIGHT($E23),0)\n+BB$11*OFFSET('Efficiency Distributions'!$E$10,MATCH($C15,'Efficiency Distributions'!$C$9:$C$87,0)+RIGHT($E23),0))\n/SUM(BB$10:BB$11)","v":0},{"$f":"IF(INDEX(PC_MAPPING,RIGHT($C15,1),MATCH($E$2,'Data by Building Type'!$D$22:$F$22,0))=\"Yes\",1,0)*\n(BC$10*OFFSET('Efficiency Distributions'!$D$10,MATCH($C15,'Efficiency Distributions'!$C$9:$C$87,0)+RIGHT($E23),0)\n+BC$11*OFFSET('Efficiency Distributions'!$E$10,MATCH($C15,'Efficiency Distributions'!$C$9:$C$87,0)+RIGHT($E23),0))\n/SUM(BC$10:BC$11)","v":0},{"$f":"IF(INDEX(PC_MAPPING,RIGHT($C15,1),MATCH($E$2,'Data by Building Type'!$D$22:$F$22,0))=\"Yes\",1,0)*\n(BD$10*OFFSET('Efficiency Distributions'!$D$10,MATCH($C15,'Efficiency Distributions'!$C$9:$C$87,0)+RIGHT($E23),0)\n+BD$11*OFFSET('Efficiency Distributions'!$E$10,MATCH($C15,'Efficiency Distributions'!$C$9:$C$87,0)+RIGHT($E23),0))\n/SUM(BD$10:BD$11)","v":0},{"$f":"IF(INDEX(PC_MAPPING,RIGHT($C15,1),MATCH($E$2,'Data by Building Type'!$D$22:$F$22,0))=\"Yes\",1,0)*\n(BE$10*OFFSET('Efficiency Distributions'!$D$10,MATCH($C15,'Efficiency Distributions'!$C$9:$C$87,0)+RIGHT($E23),0)\n+BE$11*OFFSET('Efficiency Distributions'!$E$10,MATCH($C15,'Efficiency Distributions'!$C$9:$C$87,0)+RIGHT($E23),0))\n/SUM(BE$10:BE$11)","v":0},{"$f":"IF(INDEX(PC_MAPPING,RIGHT($C15,1),MATCH($E$2,'Data by Building Type'!$D$22:$F$22,0))=\"Yes\",1,0)*\n(BF$10*OFFSET('Efficiency Distributions'!$D$10,MATCH($C15,'Efficiency Distributions'!$C$9:$C$87,0)+RIGHT($E23),0)\n+BF$11*OFFSET('Efficiency Distributions'!$E$10,MATCH($C15,'Efficiency Distributions'!$C$9:$C$87,0)+RIGHT($E23),0))\n/SUM(BF$10:BF$11)","v":0},{"$f":"IF(INDEX(PC_MAPPING,RIGHT($C15,1),MATCH($E$2,'Data by Building Type'!$D$22:$F$22,0))=\"Yes\",1,0)*\n(BG$10*OFFSET('Efficiency Distributions'!$D$10,MATCH($C15,'Efficiency Distributions'!$C$9:$C$87,0)+RIGHT($E23),0)\n+BG$11*OFFSET('Efficiency Distributions'!$E$10,MATCH($C15,'Efficiency Distributions'!$C$9:$C$87,0)+RIGHT($E23),0))\n/SUM(BG$10:BG$11)","v":0}]
[null,null,null,null,"EL5",{"$f":"IF(INDEX(PC_MAPPING,RIGHT($C15,1),MATCH($E$2,'Data by Building Type'!$D$22:$F$22,0))=\"Yes\",1,0)*\n(F$10*OFFSET('Efficiency Distributions'!$D$10,MATCH($C15,'Efficiency Distributions'!$C$9:$C$87,0)+RIGHT($E24),0)\n+F$11*OFFSET('Efficiency Distributions'!$E$10,MATCH($C15,'Efficiency Distributions'!$C$9:$C$87,0)+RIGHT($E24),0))\n/SUM(F$10:F$11)","v":0},{"$f":"IF(INDEX(PC_MAPPING,RIGHT($C15,1),MATCH($E$2,'Data by Building Type'!$D$22:$F$22,0))=\"Yes\",1,0)*\n(G$10*OFFSET('Efficiency Distributions'!$D$10,MATCH($C15,'Efficiency Distributions'!$C$9:$C$87,0)+RIGHT($E24),0)\n+G$11*OFFSET('Efficiency Distributions'!$E$10,MATCH($C15,'Efficiency Distributions'!$C$9:$C$87,0)+RIGHT($E24),0))\n/SUM(G$10:G$11)","v":0},{"$f":"IF(INDEX(PC_MAPPING,RIGHT($C15,1),MATCH($E$2,'Data by Building Type'!$D$22:$F$22,0))=\"Yes\",1,0)*\n(H$10*OFFSET('Efficiency Distributions'!$D$10,MATCH($C15,'Efficiency Distributions'!$C$9:$C$87,0)+RIGHT($E24),0)\n+H$11*OFFSET('Efficiency Distributions'!$E$10,MATCH($C15,'Efficiency Distributions'!$C$9:$C$87,0)+RIGHT($E24),0))\n/SUM(H$10:H$11)","v":0},{"$f":"IF(INDEX(PC_MAPPING,RIGHT($C15,1),MATCH($E$2,'Data by Building Type'!$D$22:$F$22,0))=\"Yes\",1,0)*\n(I$10*OFFSET('Efficiency Distributions'!$D$10,MATCH($C15,'Efficiency Distributions'!$C$9:$C$87,0)+RIGHT($E24),0)\n+I$11*OFFSET('Efficiency Distributions'!$E$10,MATCH($C15,'Efficiency Distributions'!$C$9:$C$87,0)+RIGHT($E24),0))\n/SUM(I$10:I$11)","v":0},{"$f":"IF(INDEX(PC_MAPPING,RIGHT($C15,1),MATCH($E$2,'Data by Building Type'!$D$22:$F$22,0))=\"Yes\",1,0)*\n(J$10*OFFSET('Efficiency Distributions'!$D$10,MATCH($C15,'Efficiency Distributions'!$C$9:$C$87,0)+RIGHT($E24),0)\n+J$11*OFFSET('Efficiency Distributions'!$E$10,MATCH($C15,'Efficiency Distributions'!$C$9:$C$87,0)+RIGHT($E24),0))\n/SUM(J$10:J$11)","v":0},{"$f":"IF(INDEX(PC_MAPPING,RIGHT($C15,1),MATCH($E$2,'Data by Building Type'!$D$22:$F$22,0))=\"Yes\",1,0)*\n(K$10*OFFSET('Efficiency Distributions'!$D$10,MATCH($C15,'Efficiency Distributions'!$C$9:$C$87,0)+RIGHT($E24),0)\n+K$11*OFFSET('Efficiency Distributions'!$E$10,MATCH($C15,'Efficiency Distributions'!$C$9:$C$87,0)+RIGHT($E24),0))\n/SUM(K$10:K$11)","v":0},{"$f":"IF(INDEX(PC_MAPPING,RIGHT($C15,1),MATCH($E$2,'Data by Building Type'!$D$22:$F$22,0))=\"Yes\",1,0)*\n(L$10*OFFSET('Efficiency Distributions'!$D$10,MATCH($C15,'Efficiency Distributions'!$C$9:$C$87,0)+RIGHT($E24),0)\n+L$11*OFFSET('Efficiency Distributions'!$E$10,MATCH($C15,'Efficiency Distributions'!$C$9:$C$87,0)+RIGHT($E24),0))\n/SUM(L$10:L$11)","v":0},{"$f":"IF(INDEX(PC_MAPPING,RIGHT($C15,1),MATCH($E$2,'Data by Building Type'!$D$22:$F$22,0))=\"Yes\",1,0)*\n(M$10*OFFSET('Efficiency Distributions'!$D$10,MATCH($C15,'Efficiency Distributions'!$C$9:$C$87,0)+RIGHT($E24),0)\n+M$11*OFFSET('Efficiency Distributions'!$E$10,MATCH($C15,'Efficiency Distributions'!$C$9:$C$87,0)+RIGHT($E24),0))\n/SUM(M$10:M$11)","v":0},{"$f":"IF(INDEX(PC_MAPPING,RIGHT($C15,1),MATCH($E$2,'Data by Building Type'!$D$22:$F$22,0))=\"Yes\",1,0)*\n(N$10*OFFSET('Efficiency Distributions'!$D$10,MATCH($C15,'Efficiency Distributions'!$C$9:$C$87,0)+RIGHT($E24),0)\n+N$11*OFFSET('Efficiency Distributions'!$E$10,MATCH($C15,'Efficiency Distributions'!$C$9:$C$87,0)+RIGHT($E24),0))\n/SUM(N$10:N$11)","v":0},{"$f":"IF(INDEX(PC_MAPPING,RIGHT($C15,1),MATCH($E$2,'Data by Building Type'!$D$22:$F$22,0))=\"Yes\",1,0)*\n(O$10*OFFSET('Efficiency Distributions'!$D$10,MATCH($C15,'Efficiency Distributions'!$C$9:$C$87,0)+RIGHT($E24),0)\n+O$11*OFFSET('Efficiency Distributions'!$E$10,MATCH($C15,'Efficiency Distributions'!$C$9:$C$87,0)+RIGHT($E24),0))\n/SUM(O$10:O$11)","v":0},{"$f":"IF(INDEX(PC_MAPPING,RIGHT($C15,1),MATCH($E$2,'Data by Building Type'!$D$22:$F$22,0))=\"Yes\",1,0)*\n(P$10*OFFSET('Efficiency Distributions'!$D$10,MATCH($C15,'Efficiency Distributions'!$C$9:$C$87,0)+RIGHT($E24),0)\n+P$11*OFFSET('Efficiency Distributions'!$E$10,MATCH($C15,'Efficiency Distributions'!$C$9:$C$87,0)+RIGHT($E24),0))\n/SUM(P$10:P$11)","v":0},{"$f":"IF(INDEX(PC_MAPPING,RIGHT($C15,1),MATCH($E$2,'Data by Building Type'!$D$22:$F$22,0))=\"Yes\",1,0)*\n(Q$10*OFFSET('Efficiency Distributions'!$D$10,MATCH($C15,'Efficiency Distributions'!$C$9:$C$87,0)+RIGHT($E24),0)\n+Q$11*OFFSET('Efficiency Distributions'!$E$10,MATCH($C15,'Efficiency Distributions'!$C$9:$C$87,0)+RIGHT($E24),0))\n/SUM(Q$10:Q$11)","v":0},{"$f":"IF(INDEX(PC_MAPPING,RIGHT($C15,1),MATCH($E$2,'Data by Building Type'!$D$22:$F$22,0))=\"Yes\",1,0)*\n(R$10*OFFSET('Efficiency Distributions'!$D$10,MATCH($C15,'Efficiency Distributions'!$C$9:$C$87,0)+RIGHT($E24),0)\n+R$11*OFFSET('Efficiency Distributions'!$E$10,MATCH($C15,'Efficiency Distributions'!$C$9:$C$87,0)+RIGHT($E24),0))\n/SUM(R$10:R$11)","v":0},{"$f":"IF(INDEX(PC_MAPPING,RIGHT($C15,1),MATCH($E$2,'Data by Building Type'!$D$22:$F$22,0))=\"Yes\",1,0)*\n(S$10*OFFSET('Efficiency Distributions'!$D$10,MATCH($C15,'Efficiency Distributions'!$C$9:$C$87,0)+RIGHT($E24),0)\n+S$11*OFFSET('Efficiency Distributions'!$E$10,MATCH($C15,'Efficiency Distributions'!$C$9:$C$87,0)+RIGHT($E24),0))\n/SUM(S$10:S$11)","v":0},{"$f":"IF(INDEX(PC_MAPPING,RIGHT($C15,1),MATCH($E$2,'Data by Building Type'!$D$22:$F$22,0))=\"Yes\",1,0)*\n(T$10*OFFSET('Efficiency Distributions'!$D$10,MATCH($C15,'Efficiency Distributions'!$C$9:$C$87,0)+RIGHT($E24),0)\n+T$11*OFFSET('Efficiency Distributions'!$E$10,MATCH($C15,'Efficiency Distributions'!$C$9:$C$87,0)+RIGHT($E24),0))\n/SUM(T$10:T$11)","v":0},{"$f":"IF(INDEX(PC_MAPPING,RIGHT($C15,1),MATCH($E$2,'Data by Building Type'!$D$22:$F$22,0))=\"Yes\",1,0)*\n(U$10*OFFSET('Efficiency Distributions'!$D$10,MATCH($C15,'Efficiency Distributions'!$C$9:$C$87,0)+RIGHT($E24),0)\n+U$11*OFFSET('Efficiency Distributions'!$E$10,MATCH($C15,'Efficiency Distributions'!$C$9:$C$87,0)+RIGHT($E24),0))\n/SUM(U$10:U$11)","v":0},{"$f":"IF(INDEX(PC_MAPPING,RIGHT($C15,1),MATCH($E$2,'Data by Building Type'!$D$22:$F$22,0))=\"Yes\",1,0)*\n(V$10*OFFSET('Efficiency Distributions'!$D$10,MATCH($C15,'Efficiency Distributions'!$C$9:$C$87,0)+RIGHT($E24),0)\n+V$11*OFFSET('Efficiency Distributions'!$E$10,MATCH($C15,'Efficiency Distributions'!$C$9:$C$87,0)+RIGHT($E24),0))\n/SUM(V$10:V$11)","v":0},{"$f":"IF(INDEX(PC_MAPPING,RIGHT($C15,1),MATCH($E$2,'Data by Building Type'!$D$22:$F$22,0))=\"Yes\",1,0)*\n(W$10*OFFSET('Efficiency Distributions'!$D$10,MATCH($C15,'Efficiency Distributions'!$C$9:$C$87,0)+RIGHT($E24),0)\n+W$11*OFFSET('Efficiency Distributions'!$E$10,MATCH($C15,'Efficiency Distributions'!$C$9:$C$87,0)+RIGHT($E24),0))\n/SUM(W$10:W$11)","v":0},{"$f":"IF(INDEX(PC_MAPPING,RIGHT($C15,1),MATCH($E$2,'Data by Building Type'!$D$22:$F$22,0))=\"Yes\",1,0)*\n(X$10*OFFSET('Efficiency Distributions'!$D$10,MATCH($C15,'Efficiency Distributions'!$C$9:$C$87,0)+RIGHT($E24),0)\n+X$11*OFFSET('Efficiency Distributions'!$E$10,MATCH($C15,'Efficiency Distributions'!$C$9:$C$87,0)+RIGHT($E24),0))\n/SUM(X$10:X$11)","v":0},{"$f":"IF(INDEX(PC_MAPPING,RIGHT($C15,1),MATCH($E$2,'Data by Building Type'!$D$22:$F$22,0))=\"Yes\",1,0)*\n(Y$10*OFFSET('Efficiency Distributions'!$D$10,MATCH($C15,'Efficiency Distributions'!$C$9:$C$87,0)+RIGHT($E24),0)\n+Y$11*OFFSET('Efficiency Distributions'!$E$10,MATCH($C15,'Efficiency Distributions'!$C$9:$C$87,0)+RIGHT($E24),0))\n/SUM(Y$10:Y$11)","v":0},{"$f":"IF(INDEX(PC_MAPPING,RIGHT($C15,1),MATCH($E$2,'Data by Building Type'!$D$22:$F$22,0))=\"Yes\",1,0)*\n(Z$10*OFFSET('Efficiency Distributions'!$D$10,MATCH($C15,'Efficiency Distributions'!$C$9:$C$87,0)+RIGHT($E24),0)\n+Z$11*OFFSET('Efficiency Distributions'!$E$10,MATCH($C15,'Efficiency Distributions'!$C$9:$C$87,0)+RIGHT($E24),0))\n/SUM(Z$10:Z$11)","v":0},{"$f":"IF(INDEX(PC_MAPPING,RIGHT($C15,1),MATCH($E$2,'Data by Building Type'!$D$22:$F$22,0))=\"Yes\",1,0)*\n(AA$10*OFFSET('Efficiency Distributions'!$D$10,MATCH($C15,'Efficiency Distributions'!$C$9:$C$87,0)+RIGHT($E24),0)\n+AA$11*OFFSET('Efficiency Distributions'!$E$10,MATCH($C15,'Efficiency Distributions'!$C$9:$C$87,0)+RIGHT($E24),0))\n/SUM(AA$10:AA$11)","v":0},{"$f":"IF(INDEX(PC_MAPPING,RIGHT($C15,1),MATCH($E$2,'Data by Building Type'!$D$22:$F$22,0))=\"Yes\",1,0)*\n(AB$10*OFFSET('Efficiency Distributions'!$D$10,MATCH($C15,'Efficiency Distributions'!$C$9:$C$87,0)+RIGHT($E24),0)\n+AB$11*OFFSET('Efficiency Distributions'!$E$10,MATCH($C15,'Efficiency Distributions'!$C$9:$C$87,0)+RIGHT($E24),0))\n/SUM(AB$10:AB$11)","v":0},{"$f":"IF(INDEX(PC_MAPPING,RIGHT($C15,1),MATCH($E$2,'Data by Building Type'!$D$22:$F$22,0))=\"Yes\",1,0)*\n(AC$10*OFFSET('Efficiency Distributions'!$D$10,MATCH($C15,'Efficiency Distributions'!$C$9:$C$87,0)+RIGHT($E24),0)\n+AC$11*OFFSET('Efficiency Distributions'!$E$10,MATCH($C15,'Efficiency Distributions'!$C$9:$C$87,0)+RIGHT($E24),0))\n/SUM(AC$10:AC$11)","v":0},{"$f":"IF(INDEX(PC_MAPPING,RIGHT($C15,1),MATCH($E$2,'Data by Building Type'!$D$22:$F$22,0))=\"Yes\",1,0)*\n(AD$10*OFFSET('Efficiency Distributions'!$D$10,MATCH($C15,'Efficiency Distributions'!$C$9:$C$87,0)+RIGHT($E24),0)\n+AD$11*OFFSET('Efficiency Distributions'!$E$10,MATCH($C15,'Efficiency Distributions'!$C$9:$C$87,0)+RIGHT($E24),0))\n/SUM(AD$10:AD$11)","v":0},{"$f":"IF(INDEX(PC_MAPPING,RIGHT($C15,1),MATCH($E$2,'Data by Building Type'!$D$22:$F$22,0))=\"Yes\",1,0)*\n(AE$10*OFFSET('Efficiency Distributions'!$D$10,MATCH($C15,'Efficiency Distributions'!$C$9:$C$87,0)+RIGHT($E24),0)\n+AE$11*OFFSET('Efficiency Distributions'!$E$10,MATCH($C15,'Efficiency Distributions'!$C$9:$C$87,0)+RIGHT($E24),0))\n/SUM(AE$10:AE$11)","v":0},{"$f":"IF(INDEX(PC_MAPPING,RIGHT($C15,1),MATCH($E$2,'Data by Building Type'!$D$22:$F$22,0))=\"Yes\",1,0)*\n(AF$10*OFFSET('Efficiency Distributions'!$D$10,MATCH($C15,'Efficiency Distributions'!$C$9:$C$87,0)+RIGHT($E24),0)\n+AF$11*OFFSET('Efficiency Distributions'!$E$10,MATCH($C15,'Efficiency Distributions'!$C$9:$C$87,0)+RIGHT($E24),0))\n/SUM(AF$10:AF$11)","v":0},{"$f":"IF(INDEX(PC_MAPPING,RIGHT($C15,1),MATCH($E$2,'Data by Building Type'!$D$22:$F$22,0))=\"Yes\",1,0)*\n(AG$10*OFFSET('Efficiency Distributions'!$D$10,MATCH($C15,'Efficiency Distributions'!$C$9:$C$87,0)+RIGHT($E24),0)\n+AG$11*OFFSET('Efficiency Distributions'!$E$10,MATCH($C15,'Efficiency Distributions'!$C$9:$C$87,0)+RIGHT($E24),0))\n/SUM(AG$10:AG$11)","v":0},{"$f":"IF(INDEX(PC_MAPPING,RIGHT($C15,1),MATCH($E$2,'Data by Building Type'!$D$22:$F$22,0))=\"Yes\",1,0)*\n(AH$10*OFFSET('Efficiency Distributions'!$D$10,MATCH($C15,'Efficiency Distributions'!$C$9:$C$87,0)+RIGHT($E24),0)\n+AH$11*OFFSET('Efficiency Distributions'!$E$10,MATCH($C15,'Efficiency Distributions'!$C$9:$C$87,0)+RIGHT($E24),0))\n/SUM(AH$10:AH$11)","v":0},{"$f":"IF(INDEX(PC_MAPPING,RIGHT($C15,1),MATCH($E$2,'Data by Building Type'!$D$22:$F$22,0))=\"Yes\",1,0)*\n(AI$10*OFFSET('Efficiency Distributions'!$D$10,MATCH($C15,'Efficiency Distributions'!$C$9:$C$87,0)+RIGHT($E24),0)\n+AI$11*OFFSET('Efficiency Distributions'!$E$10,MATCH($C15,'Efficiency Distributions'!$C$9:$C$87,0)+RIGHT($E24),0))\n/SUM(AI$10:AI$11)","v":0},{"$f":"IF(INDEX(PC_MAPPING,RIGHT($C15,1),MATCH($E$2,'Data by Building Type'!$D$22:$F$22,0))=\"Yes\",1,0)*\n(AJ$10*OFFSET('Efficiency Distributions'!$D$10,MATCH($C15,'Efficiency Distributions'!$C$9:$C$87,0)+RIGHT($E24),0)\n+AJ$11*OFFSET('Efficiency Distributions'!$E$10,MATCH($C15,'Efficiency Distributions'!$C$9:$C$87,0)+RIGHT($E24),0))\n/SUM(AJ$10:AJ$11)","v":0},{"$f":"IF(INDEX(PC_MAPPING,RIGHT($C15,1),MATCH($E$2,'Data by Building Type'!$D$22:$F$22,0))=\"Yes\",1,0)*\n(AK$10*OFFSET('Efficiency Distributions'!$D$10,MATCH($C15,'Efficiency Distributions'!$C$9:$C$87,0)+RIGHT($E24),0)\n+AK$11*OFFSET('Efficiency Distributions'!$E$10,MATCH($C15,'Efficiency Distributions'!$C$9:$C$87,0)+RIGHT($E24),0))\n/SUM(AK$10:AK$11)","v":0},{"$f":"IF(INDEX(PC_MAPPING,RIGHT($C15,1),MATCH($E$2,'Data by Building Type'!$D$22:$F$22,0))=\"Yes\",1,0)*\n(AL$10*OFFSET('Efficiency Distributions'!$D$10,MATCH($C15,'Efficiency Distributions'!$C$9:$C$87,0)+RIGHT($E24),0)\n+AL$11*OFFSET('Efficiency Distributions'!$E$10,MATCH($C15,'Efficiency Distributions'!$C$9:$C$87,0)+RIGHT($E24),0))\n/SUM(AL$10:AL$11)","v":0},{"$f":"IF(INDEX(PC_MAPPING,RIGHT($C15,1),MATCH($E$2,'Data by Building Type'!$D$22:$F$22,0))=\"Yes\",1,0)*\n(AM$10*OFFSET('Efficiency Distributions'!$D$10,MATCH($C15,'Efficiency Distributions'!$C$9:$C$87,0)+RIGHT($E24),0)\n+AM$11*OFFSET('Efficiency Distributions'!$E$10,MATCH($C15,'Efficiency Distributions'!$C$9:$C$87,0)+RIGHT($E24),0))\n/SUM(AM$10:AM$11)","v":0},{"$f":"IF(INDEX(PC_MAPPING,RIGHT($C15,1),MATCH($E$2,'Data by Building Type'!$D$22:$F$22,0))=\"Yes\",1,0)*\n(AN$10*OFFSET('Efficiency Distributions'!$D$10,MATCH($C15,'Efficiency Distributions'!$C$9:$C$87,0)+RIGHT($E24),0)\n+AN$11*OFFSET('Efficiency Distributions'!$E$10,MATCH($C15,'Efficiency Distributions'!$C$9:$C$87,0)+RIGHT($E24),0))\n/SUM(AN$10:AN$11)","v":0},{"$f":"IF(INDEX(PC_MAPPING,RIGHT($C15,1),MATCH($E$2,'Data by Building Type'!$D$22:$F$22,0))=\"Yes\",1,0)*\n(AO$10*OFFSET('Efficiency Distributions'!$D$10,MATCH($C15,'Efficiency Distributions'!$C$9:$C$87,0)+RIGHT($E24),0)\n+AO$11*OFFSET('Efficiency Distributions'!$E$10,MATCH($C15,'Efficiency Distributions'!$C$9:$C$87,0)+RIGHT($E24),0))\n/SUM(AO$10:AO$11)","v":0},{"$f":"IF(INDEX(PC_MAPPING,RIGHT($C15,1),MATCH($E$2,'Data by Building Type'!$D$22:$F$22,0))=\"Yes\",1,0)*\n(AP$10*OFFSET('Efficiency Distributions'!$D$10,MATCH($C15,'Efficiency Distributions'!$C$9:$C$87,0)+RIGHT($E24),0)\n+AP$11*OFFSET('Efficiency Distributions'!$E$10,MATCH($C15,'Efficiency Distributions'!$C$9:$C$87,0)+RIGHT($E24),0))\n/SUM(AP$10:AP$11)","v":0},{"$f":"IF(INDEX(PC_MAPPING,RIGHT($C15,1),MATCH($E$2,'Data by Building Type'!$D$22:$F$22,0))=\"Yes\",1,0)*\n(AQ$10*OFFSET('Efficiency Distributions'!$D$10,MATCH($C15,'Efficiency Distributions'!$C$9:$C$87,0)+RIGHT($E24),0)\n+AQ$11*OFFSET('Efficiency Distributions'!$E$10,MATCH($C15,'Efficiency Distributions'!$C$9:$C$87,0)+RIGHT($E24),0))\n/SUM(AQ$10:AQ$11)","v":0},{"$f":"IF(INDEX(PC_MAPPING,RIGHT($C15,1),MATCH($E$2,'Data by Building Type'!$D$22:$F$22,0))=\"Yes\",1,0)*\n(AR$10*OFFSET('Efficiency Distributions'!$D$10,MATCH($C15,'Efficiency Distributions'!$C$9:$C$87,0)+RIGHT($E24),0)\n+AR$11*OFFSET('Efficiency Distributions'!$E$10,MATCH($C15,'Efficiency Distributions'!$C$9:$C$87,0)+RIGHT($E24),0))\n/SUM(AR$10:AR$11)","v":0},{"$f":"IF(INDEX(PC_MAPPING,RIGHT($C15,1),MATCH($E$2,'Data by Building Type'!$D$22:$F$22,0))=\"Yes\",1,0)*\n(AS$10*OFFSET('Efficiency Distributions'!$D$10,MATCH($C15,'Efficiency Distributions'!$C$9:$C$87,0)+RIGHT($E24),0)\n+AS$11*OFFSET('Efficiency Distributions'!$E$10,MATCH($C15,'Efficiency Distributions'!$C$9:$C$87,0)+RIGHT($E24),0))\n/SUM(AS$10:AS$11)","v":0},{"$f":"IF(INDEX(PC_MAPPING,RIGHT($C15,1),MATCH($E$2,'Data by Building Type'!$D$22:$F$22,0))=\"Yes\",1,0)*\n(AT$10*OFFSET('Efficiency Distributions'!$D$10,MATCH($C15,'Efficiency Distributions'!$C$9:$C$87,0)+RIGHT($E24),0)\n+AT$11*OFFSET('Efficiency Distributions'!$E$10,MATCH($C15,'Efficiency Distributions'!$C$9:$C$87,0)+RIGHT($E24),0))\n/SUM(AT$10:AT$11)","v":0},{"$f":"IF(INDEX(PC_MAPPING,RIGHT($C15,1),MATCH($E$2,'Data by Building Type'!$D$22:$F$22,0))=\"Yes\",1,0)*\n(AU$10*OFFSET('Efficiency Distributions'!$D$10,MATCH($C15,'Efficiency Distributions'!$C$9:$C$87,0)+RIGHT($E24),0)\n+AU$11*OFFSET('Efficiency Distributions'!$E$10,MATCH($C15,'Efficiency Distributions'!$C$9:$C$87,0)+RIGHT($E24),0))\n/SUM(AU$10:AU$11)","v":0},{"$f":"IF(INDEX(PC_MAPPING,RIGHT($C15,1),MATCH($E$2,'Data by Building Type'!$D$22:$F$22,0))=\"Yes\",1,0)*\n(AV$10*OFFSET('Efficiency Distributions'!$D$10,MATCH($C15,'Efficiency Distributions'!$C$9:$C$87,0)+RIGHT($E24),0)\n+AV$11*OFFSET('Efficiency Distributions'!$E$10,MATCH($C15,'Efficiency Distributions'!$C$9:$C$87,0)+RIGHT($E24),0))\n/SUM(AV$10:AV$11)","v":0},{"$f":"IF(INDEX(PC_MAPPING,RIGHT($C15,1),MATCH($E$2,'Data by Building Type'!$D$22:$F$22,0))=\"Yes\",1,0)*\n(AW$10*OFFSET('Efficiency Distributions'!$D$10,MATCH($C15,'Efficiency Distributions'!$C$9:$C$87,0)+RIGHT($E24),0)\n+AW$11*OFFSET('Efficiency Distributions'!$E$10,MATCH($C15,'Efficiency Distributions'!$C$9:$C$87,0)+RIGHT($E24),0))\n/SUM(AW$10:AW$11)","v":0},{"$f":"IF(INDEX(PC_MAPPING,RIGHT($C15,1),MATCH($E$2,'Data by Building Type'!$D$22:$F$22,0))=\"Yes\",1,0)*\n(AX$10*OFFSET('Efficiency Distributions'!$D$10,MATCH($C15,'Efficiency Distributions'!$C$9:$C$87,0)+RIGHT($E24),0)\n+AX$11*OFFSET('Efficiency Distributions'!$E$10,MATCH($C15,'Efficiency Distributions'!$C$9:$C$87,0)+RIGHT($E24),0))\n/SUM(AX$10:AX$11)","v":0},{"$f":"IF(INDEX(PC_MAPPING,RIGHT($C15,1),MATCH($E$2,'Data by Building Type'!$D$22:$F$22,0))=\"Yes\",1,0)*\n(AY$10*OFFSET('Efficiency Distributions'!$D$10,MATCH($C15,'Efficiency Distributions'!$C$9:$C$87,0)+RIGHT($E24),0)\n+AY$11*OFFSET('Efficiency Distributions'!$E$10,MATCH($C15,'Efficiency Distributions'!$C$9:$C$87,0)+RIGHT($E24),0))\n/SUM(AY$10:AY$11)","v":0},{"$f":"IF(INDEX(PC_MAPPING,RIGHT($C15,1),MATCH($E$2,'Data by Building Type'!$D$22:$F$22,0))=\"Yes\",1,0)*\n(AZ$10*OFFSET('Efficiency Distributions'!$D$10,MATCH($C15,'Efficiency Distributions'!$C$9:$C$87,0)+RIGHT($E24),0)\n+AZ$11*OFFSET('Efficiency Distributions'!$E$10,MATCH($C15,'Efficiency Distributions'!$C$9:$C$87,0)+RIGHT($E24),0))\n/SUM(AZ$10:AZ$11)","v":0},{"$f":"IF(INDEX(PC_MAPPING,RIGHT($C15,1),MATCH($E$2,'Data by Building Type'!$D$22:$F$22,0))=\"Yes\",1,0)*\n(BA$10*OFFSET('Efficiency Distributions'!$D$10,MATCH($C15,'Efficiency Distributions'!$C$9:$C$87,0)+RIGHT($E24),0)\n+BA$11*OFFSET('Efficiency Distributions'!$E$10,MATCH($C15,'Efficiency Distributions'!$C$9:$C$87,0)+RIGHT($E24),0))\n/SUM(BA$10:BA$11)","v":0},{"$f":"IF(INDEX(PC_MAPPING,RIGHT($C15,1),MATCH($E$2,'Data by Building Type'!$D$22:$F$22,0))=\"Yes\",1,0)*\n(BB$10*OFFSET('Efficiency Distributions'!$D$10,MATCH($C15,'Efficiency Distributions'!$C$9:$C$87,0)+RIGHT($E24),0)\n+BB$11*OFFSET('Efficiency Distributions'!$E$10,MATCH($C15,'Efficiency Distributions'!$C$9:$C$87,0)+RIGHT($E24),0))\n/SUM(BB$10:BB$11)","v":0},{"$f":"IF(INDEX(PC_MAPPING,RIGHT($C15,1),MATCH($E$2,'Data by Building Type'!$D$22:$F$22,0))=\"Yes\",1,0)*\n(BC$10*OFFSET('Efficiency Distributions'!$D$10,MATCH($C15,'Efficiency Distributions'!$C$9:$C$87,0)+RIGHT($E24),0)\n+BC$11*OFFSET('Efficiency Distributions'!$E$10,MATCH($C15,'Efficiency Distributions'!$C$9:$C$87,0)+RIGHT($E24),0))\n/SUM(BC$10:BC$11)","v":0},{"$f":"IF(INDEX(PC_MAPPING,RIGHT($C15,1),MATCH($E$2,'Data by Building Type'!$D$22:$F$22,0))=\"Yes\",1,0)*\n(BD$10*OFFSET('Efficiency Distributions'!$D$10,MATCH($C15,'Efficiency Distributions'!$C$9:$C$87,0)+RIGHT($E24),0)\n+BD$11*OFFSET('Efficiency Distributions'!$E$10,MATCH($C15,'Efficiency Distributions'!$C$9:$C$87,0)+RIGHT($E24),0))\n/SUM(BD$10:BD$11)","v":0},{"$f":"IF(INDEX(PC_MAPPING,RIGHT($C15,1),MATCH($E$2,'Data by Building Type'!$D$22:$F$22,0))=\"Yes\",1,0)*\n(BE$10*OFFSET('Efficiency Distributions'!$D$10,MATCH($C15,'Efficiency Distributions'!$C$9:$C$87,0)+RIGHT($E24),0)\n+BE$11*OFFSET('Efficiency Distributions'!$E$10,MATCH($C15,'Efficiency Distributions'!$C$9:$C$87,0)+RIGHT($E24),0))\n/SUM(BE$10:BE$11)","v":0},{"$f":"IF(INDEX(PC_MAPPING,RIGHT($C15,1),MATCH($E$2,'Data by Building Type'!$D$22:$F$22,0))=\"Yes\",1,0)*\n(BF$10*OFFSET('Efficiency Distributions'!$D$10,MATCH($C15,'Efficiency Distributions'!$C$9:$C$87,0)+RIGHT($E24),0)\n+BF$11*OFFSET('Efficiency Distributions'!$E$10,MATCH($C15,'Efficiency Distributions'!$C$9:$C$87,0)+RIGHT($E24),0))\n/SUM(BF$10:BF$11)","v":0},{"$f":"IF(INDEX(PC_MAPPING,RIGHT($C15,1),MATCH($E$2,'Data by Building Type'!$D$22:$F$22,0))=\"Yes\",1,0)*\n(BG$10*OFFSET('Efficiency Distributions'!$D$10,MATCH($C15,'Efficiency Distributions'!$C$9:$C$87,0)+RIGHT($E24),0)\n+BG$11*OFFSET('Efficiency Distributions'!$E$10,MATCH($C15,'Efficiency Distributions'!$C$9:$C$87,0)+RIGHT($E24),0))\n/SUM(BG$10:BG$11)","v":0}]
[null,null,null,null,"EL6",{"$f":"IF(INDEX(PC_MAPPING,RIGHT($C15,1),MATCH($E$2,'Data by Building Type'!$D$22:$F$22,0))=\"Yes\",1,0)*\n(F$10*OFFSET('Efficiency Distributions'!$D$10,MATCH($C15,'Efficiency Distributions'!$C$9:$C$87,0)+RIGHT($E25),0)\n+F$11*OFFSET('Efficiency Distributions'!$E$10,MATCH($C15,'Efficiency Distributions'!$C$9:$C$87,0)+RIGHT($E25),0))\n/SUM(F$10:F$11)","v":0},{"$f":"IF(INDEX(PC_MAPPING,RIGHT($C15,1),MATCH($E$2,'Data by Building Type'!$D$22:$F$22,0))=\"Yes\",1,0)*\n(G$10*OFFSET('Efficiency Distributions'!$D$10,MATCH($C15,'Efficiency Distributions'!$C$9:$C$87,0)+RIGHT($E25),0)\n+G$11*OFFSET('Efficiency Distributions'!$E$10,MATCH($C15,'Efficiency Distributions'!$C$9:$C$87,0)+RIGHT($E25),0))\n/SUM(G$10:G$11)","v":0},{"$f":"IF(INDEX(PC_MAPPING,RIGHT($C15,1),MATCH($E$2,'Data by Building Type'!$D$22:$F$22,0))=\"Yes\",1,0)*\n(H$10*OFFSET('Efficiency Distributions'!$D$10,MATCH($C15,'Efficiency Distributions'!$C$9:$C$87,0)+RIGHT($E25),0)\n+H$11*OFFSET('Efficiency Distributions'!$E$10,MATCH($C15,'Efficiency Distributions'!$C$9:$C$87,0)+RIGHT($E25),0))\n/SUM(H$10:H$11)","v":0},{"$f":"IF(INDEX(PC_MAPPING,RIGHT($C15,1),MATCH($E$2,'Data by Building Type'!$D$22:$F$22,0))=\"Yes\",1,0)*\n(I$10*OFFSET('Efficiency Distributions'!$D$10,MATCH($C15,'Efficiency Distributions'!$C$9:$C$87,0)+RIGHT($E25),0)\n+I$11*OFFSET('Efficiency Distributions'!$E$10,MATCH($C15,'Efficiency Distributions'!$C$9:$C$87,0)+RIGHT($E25),0))\n/SUM(I$10:I$11)","v":0},{"$f":"IF(INDEX(PC_MAPPING,RIGHT($C15,1),MATCH($E$2,'Data by Building Type'!$D$22:$F$22,0))=\"Yes\",1,0)*\n(J$10*OFFSET('Efficiency Distributions'!$D$10,MATCH($C15,'Efficiency Distributions'!$C$9:$C$87,0)+RIGHT($E25),0)\n+J$11*OFFSET('Efficiency Distributions'!$E$10,MATCH($C15,'Efficiency Distributions'!$C$9:$C$87,0)+RIGHT($E25),0))\n/SUM(J$10:J$11)","v":0},{"$f":"IF(INDEX(PC_MAPPING,RIGHT($C15,1),MATCH($E$2,'Data by Building Type'!$D$22:$F$22,0))=\"Yes\",1,0)*\n(K$10*OFFSET('Efficiency Distributions'!$D$10,MATCH($C15,'Efficiency Distributions'!$C$9:$C$87,0)+RIGHT($E25),0)\n+K$11*OFFSET('Efficiency Distributions'!$E$10,MATCH($C15,'Efficiency Distributions'!$C$9:$C$87,0)+RIGHT($E25),0))\n/SUM(K$10:K$11)","v":0},{"$f":"IF(INDEX(PC_MAPPING,RIGHT($C15,1),MATCH($E$2,'Data by Building Type'!$D$22:$F$22,0))=\"Yes\",1,0)*\n(L$10*OFFSET('Efficiency Distributions'!$D$10,MATCH($C15,'Efficiency Distributions'!$C$9:$C$87,0)+RIGHT($E25),0)\n+L$11*OFFSET('Efficiency Distributions'!$E$10,MATCH($C15,'Efficiency Distributions'!$C$9:$C$87,0)+RIGHT($E25),0))\n/SUM(L$10:L$11)","v":0},{"$f":"IF(INDEX(PC_MAPPING,RIGHT($C15,1),MATCH($E$2,'Data by Building Type'!$D$22:$F$22,0))=\"Yes\",1,0)*\n(M$10*OFFSET('Efficiency Distributions'!$D$10,MATCH($C15,'Efficiency Distributions'!$C$9:$C$87,0)+RIGHT($E25),0)\n+M$11*OFFSET('Efficiency Distributions'!$E$10,MATCH($C15,'Efficiency Distributions'!$C$9:$C$87,0)+RIGHT($E25),0))\n/SUM(M$10:M$11)","v":0},{"$f":"IF(INDEX(PC_MAPPING,RIGHT($C15,1),MATCH($E$2,'Data by Building Type'!$D$22:$F$22,0))=\"Yes\",1,0)*\n(N$10*OFFSET('Efficiency Distributions'!$D$10,MATCH($C15,'Efficiency Distributions'!$C$9:$C$87,0)+RIGHT($E25),0)\n+N$11*OFFSET('Efficiency Distributions'!$E$10,MATCH($C15,'Efficiency Distributions'!$C$9:$C$87,0)+RIGHT($E25),0))\n/SUM(N$10:N$11)","v":0},{"$f":"IF(INDEX(PC_MAPPING,RIGHT($C15,1),MATCH($E$2,'Data by Building Type'!$D$22:$F$22,0))=\"Yes\",1,0)*\n(O$10*OFFSET('Efficiency Distributions'!$D$10,MATCH($C15,'Efficiency Distributions'!$C$9:$C$87,0)+RIGHT($E25),0)\n+O$11*OFFSET('Efficiency Distributions'!$E$10,MATCH($C15,'Efficiency Distributions'!$C$9:$C$87,0)+RIGHT($E25),0))\n/SUM(O$10:O$11)","v":0},{"$f":"IF(INDEX(PC_MAPPING,RIGHT($C15,1),MATCH($E$2,'Data by Building Type'!$D$22:$F$22,0))=\"Yes\",1,0)*\n(P$10*OFFSET('Efficiency Distributions'!$D$10,MATCH($C15,'Efficiency Distributions'!$C$9:$C$87,0)+RIGHT($E25),0)\n+P$11*OFFSET('Efficiency Distributions'!$E$10,MATCH($C15,'Efficiency Distributions'!$C$9:$C$87,0)+RIGHT($E25),0))\n/SUM(P$10:P$11)","v":0},{"$f":"IF(INDEX(PC_MAPPING,RIGHT($C15,1),MATCH($E$2,'Data by Building Type'!$D$22:$F$22,0))=\"Yes\",1,0)*\n(Q$10*OFFSET('Efficiency Distributions'!$D$10,MATCH($C15,'Efficiency Distributions'!$C$9:$C$87,0)+RIGHT($E25),0)\n+Q$11*OFFSET('Efficiency Distributions'!$E$10,MATCH($C15,'Efficiency Distributions'!$C$9:$C$87,0)+RIGHT($E25),0))\n/SUM(Q$10:Q$11)","v":0},{"$f":"IF(INDEX(PC_MAPPING,RIGHT($C15,1),MATCH($E$2,'Data by Building Type'!$D$22:$F$22,0))=\"Yes\",1,0)*\n(R$10*OFFSET('Efficiency Distributions'!$D$10,MATCH($C15,'Efficiency Distributions'!$C$9:$C$87,0)+RIGHT($E25),0)\n+R$11*OFFSET('Efficiency Distributions'!$E$10,MATCH($C15,'Efficiency Distributions'!$C$9:$C$87,0)+RIGHT($E25),0))\n/SUM(R$10:R$11)","v":0},{"$f":"IF(INDEX(PC_MAPPING,RIGHT($C15,1),MATCH($E$2,'Data by Building Type'!$D$22:$F$22,0))=\"Yes\",1,0)*\n(S$10*OFFSET('Efficiency Distributions'!$D$10,MATCH($C15,'Efficiency Distributions'!$C$9:$C$87,0)+RIGHT($E25),0)\n+S$11*OFFSET('Efficiency Distributions'!$E$10,MATCH($C15,'Efficiency Distributions'!$C$9:$C$87,0)+RIGHT($E25),0))\n/SUM(S$10:S$11)","v":0},{"$f":"IF(INDEX(PC_MAPPING,RIGHT($C15,1),MATCH($E$2,'Data by Building Type'!$D$22:$F$22,0))=\"Yes\",1,0)*\n(T$10*OFFSET('Efficiency Distributions'!$D$10,MATCH($C15,'Efficiency Distributions'!$C$9:$C$87,0)+RIGHT($E25),0)\n+T$11*OFFSET('Efficiency Distributions'!$E$10,MATCH($C15,'Efficiency Distributions'!$C$9:$C$87,0)+RIGHT($E25),0))\n/SUM(T$10:T$11)","v":0},{"$f":"IF(INDEX(PC_MAPPING,RIGHT($C15,1),MATCH($E$2,'Data by Building Type'!$D$22:$F$22,0))=\"Yes\",1,0)*\n(U$10*OFFSET('Efficiency Distributions'!$D$10,MATCH($C15,'Efficiency Distributions'!$C$9:$C$87,0)+RIGHT($E25),0)\n+U$11*OFFSET('Efficiency Distributions'!$E$10,MATCH($C15,'Efficiency Distributions'!$C$9:$C$87,0)+RIGHT($E25),0))\n/SUM(U$10:U$11)","v":0},{"$f":"IF(INDEX(PC_MAPPING,RIGHT($C15,1),MATCH($E$2,'Data by Building Type'!$D$22:$F$22,0))=\"Yes\",1,0)*\n(V$10*OFFSET('Efficiency Distributions'!$D$10,MATCH($C15,'Efficiency Distributions'!$C$9:$C$87,0)+RIGHT($E25),0)\n+V$11*OFFSET('Efficiency Distributions'!$E$10,MATCH($C15,'Efficiency Distributions'!$C$9:$C$87,0)+RIGHT($E25),0))\n/SUM(V$10:V$11)","v":0},{"$f":"IF(INDEX(PC_MAPPING,RIGHT($C15,1),MATCH($E$2,'Data by Building Type'!$D$22:$F$22,0))=\"Yes\",1,0)*\n(W$10*OFFSET('Efficiency Distributions'!$D$10,MATCH($C15,'Efficiency Distributions'!$C$9:$C$87,0)+RIGHT($E25),0)\n+W$11*OFFSET('Efficiency Distributions'!$E$10,MATCH($C15,'Efficiency Distributions'!$C$9:$C$87,0)+RIGHT($E25),0))\n/SUM(W$10:W$11)","v":0},{"$f":"IF(INDEX(PC_MAPPING,RIGHT($C15,1),MATCH($E$2,'Data by Building Type'!$D$22:$F$22,0))=\"Yes\",1,0)*\n(X$10*OFFSET('Efficiency Distributions'!$D$10,MATCH($C15,'Efficiency Distributions'!$C$9:$C$87,0)+RIGHT($E25),0)\n+X$11*OFFSET('Efficiency Distributions'!$E$10,MATCH($C15,'Efficiency Distributions'!$C$9:$C$87,0)+RIGHT($E25),0))\n/SUM(X$10:X$11)","v":0},{"$f":"IF(INDEX(PC_MAPPING,RIGHT($C15,1),MATCH($E$2,'Data by Building Type'!$D$22:$F$22,0))=\"Yes\",1,0)*\n(Y$10*OFFSET('Efficiency Distributions'!$D$10,MATCH($C15,'Efficiency Distributions'!$C$9:$C$87,0)+RIGHT($E25),0)\n+Y$11*OFFSET('Efficiency Distributions'!$E$10,MATCH($C15,'Efficiency Distributions'!$C$9:$C$87,0)+RIGHT($E25),0))\n/SUM(Y$10:Y$11)","v":0},{"$f":"IF(INDEX(PC_MAPPING,RIGHT($C15,1),MATCH($E$2,'Data by Building Type'!$D$22:$F$22,0))=\"Yes\",1,0)*\n(Z$10*OFFSET('Efficiency Distributions'!$D$10,MATCH($C15,'Efficiency Distributions'!$C$9:$C$87,0)+RIGHT($E25),0)\n+Z$11*OFFSET('Efficiency Distributions'!$E$10,MATCH($C15,'Efficiency Distributions'!$C$9:$C$87,0)+RIGHT($E25),0))\n/SUM(Z$10:Z$11)","v":0},{"$f":"IF(INDEX(PC_MAPPING,RIGHT($C15,1),MATCH($E$2,'Data by Building Type'!$D$22:$F$22,0))=\"Yes\",1,0)*\n(AA$10*OFFSET('Efficiency Distributions'!$D$10,MATCH($C15,'Efficiency Distributions'!$C$9:$C$87,0)+RIGHT($E25),0)\n+AA$11*OFFSET('Efficiency Distributions'!$E$10,MATCH($C15,'Efficiency Distributions'!$C$9:$C$87,0)+RIGHT($E25),0))\n/SUM(AA$10:AA$11)","v":0},{"$f":"IF(INDEX(PC_MAPPING,RIGHT($C15,1),MATCH($E$2,'Data by Building Type'!$D$22:$F$22,0))=\"Yes\",1,0)*\n(AB$10*OFFSET('Efficiency Distributions'!$D$10,MATCH($C15,'Efficiency Distributions'!$C$9:$C$87,0)+RIGHT($E25),0)\n+AB$11*OFFSET('Efficiency Distributions'!$E$10,MATCH($C15,'Efficiency Distributions'!$C$9:$C$87,0)+RIGHT($E25),0))\n/SUM(AB$10:AB$11)","v":0},{"$f":"IF(INDEX(PC_MAPPING,RIGHT($C15,1),MATCH($E$2,'Data by Building Type'!$D$22:$F$22,0))=\"Yes\",1,0)*\n(AC$10*OFFSET('Efficiency Distributions'!$D$10,MATCH($C15,'Efficiency Distributions'!$C$9:$C$87,0)+RIGHT($E25),0)\n+AC$11*OFFSET('Efficiency Distributions'!$E$10,MATCH($C15,'Efficiency Distributions'!$C$9:$C$87,0)+RIGHT($E25),0))\n/SUM(AC$10:AC$11)","v":0},{"$f":"IF(INDEX(PC_MAPPING,RIGHT($C15,1),MATCH($E$2,'Data by Building Type'!$D$22:$F$22,0))=\"Yes\",1,0)*\n(AD$10*OFFSET('Efficiency Distributions'!$D$10,MATCH($C15,'Efficiency Distributions'!$C$9:$C$87,0)+RIGHT($E25),0)\n+AD$11*OFFSET('Efficiency Distributions'!$E$10,MATCH($C15,'Efficiency Distributions'!$C$9:$C$87,0)+RIGHT($E25),0))\n/SUM(AD$10:AD$11)","v":0},{"$f":"IF(INDEX(PC_MAPPING,RIGHT($C15,1),MATCH($E$2,'Data by Building Type'!$D$22:$F$22,0))=\"Yes\",1,0)*\n(AE$10*OFFSET('Efficiency Distributions'!$D$10,MATCH($C15,'Efficiency Distributions'!$C$9:$C$87,0)+RIGHT($E25),0)\n+AE$11*OFFSET('Efficiency Distributions'!$E$10,MATCH($C15,'Efficiency Distributions'!$C$9:$C$87,0)+RIGHT($E25),0))\n/SUM(AE$10:AE$11)","v":0},{"$f":"IF(INDEX(PC_MAPPING,RIGHT($C15,1),MATCH($E$2,'Data by Building Type'!$D$22:$F$22,0))=\"Yes\",1,0)*\n(AF$10*OFFSET('Efficiency Distributions'!$D$10,MATCH($C15,'Efficiency Distributions'!$C$9:$C$87,0)+RIGHT($E25),0)\n+AF$11*OFFSET('Efficiency Distributions'!$E$10,MATCH($C15,'Efficiency Distributions'!$C$9:$C$87,0)+RIGHT($E25),0))\n/SUM(AF$10:AF$11)","v":0},{"$f":"IF(INDEX(PC_MAPPING,RIGHT($C15,1),MATCH($E$2,'Data by Building Type'!$D$22:$F$22,0))=\"Yes\",1,0)*\n(AG$10*OFFSET('Efficiency Distributions'!$D$10,MATCH($C15,'Efficiency Distributions'!$C$9:$C$87,0)+RIGHT($E25),0)\n+AG$11*OFFSET('Efficiency Distributions'!$E$10,MATCH($C15,'Efficiency Distributions'!$C$9:$C$87,0)+RIGHT($E25),0))\n/SUM(AG$10:AG$11)","v":0},{"$f":"IF(INDEX(PC_MAPPING,RIGHT($C15,1),MATCH($E$2,'Data by Building Type'!$D$22:$F$22,0))=\"Yes\",1,0)*\n(AH$10*OFFSET('Efficiency Distributions'!$D$10,MATCH($C15,'Efficiency Distributions'!$C$9:$C$87,0)+RIGHT($E25),0)\n+AH$11*OFFSET('Efficiency Distributions'!$E$10,MATCH($C15,'Efficiency Distributions'!$C$9:$C$87,0)+RIGHT($E25),0))\n/SUM(AH$10:AH$11)","v":0},{"$f":"IF(INDEX(PC_MAPPING,RIGHT($C15,1),MATCH($E$2,'Data by Building Type'!$D$22:$F$22,0))=\"Yes\",1,0)*\n(AI$10*OFFSET('Efficiency Distributions'!$D$10,MATCH($C15,'Efficiency Distributions'!$C$9:$C$87,0)+RIGHT($E25),0)\n+AI$11*OFFSET('Efficiency Distributions'!$E$10,MATCH($C15,'Efficiency Distributions'!$C$9:$C$87,0)+RIGHT($E25),0))\n/SUM(AI$10:AI$11)","v":0},{"$f":"IF(INDEX(PC_MAPPING,RIGHT($C15,1),MATCH($E$2,'Data by Building Type'!$D$22:$F$22,0))=\"Yes\",1,0)*\n(AJ$10*OFFSET('Efficiency Distributions'!$D$10,MATCH($C15,'Efficiency Distributions'!$C$9:$C$87,0)+RIGHT($E25),0)\n+AJ$11*OFFSET('Efficiency Distributions'!$E$10,MATCH($C15,'Efficiency Distributions'!$C$9:$C$87,0)+RIGHT($E25),0))\n/SUM(AJ$10:AJ$11)","v":0},{"$f":"IF(INDEX(PC_MAPPING,RIGHT($C15,1),MATCH($E$2,'Data by Building Type'!$D$22:$F$22,0))=\"Yes\",1,0)*\n(AK$10*OFFSET('Efficiency Distributions'!$D$10,MATCH($C15,'Efficiency Distributions'!$C$9:$C$87,0)+RIGHT($E25),0)\n+AK$11*OFFSET('Efficiency Distributions'!$E$10,MATCH($C15,'Efficiency Distributions'!$C$9:$C$87,0)+RIGHT($E25),0))\n/SUM(AK$10:AK$11)","v":0},{"$f":"IF(INDEX(PC_MAPPING,RIGHT($C15,1),MATCH($E$2,'Data by Building Type'!$D$22:$F$22,0))=\"Yes\",1,0)*\n(AL$10*OFFSET('Efficiency Distributions'!$D$10,MATCH($C15,'Efficiency Distributions'!$C$9:$C$87,0)+RIGHT($E25),0)\n+AL$11*OFFSET('Efficiency Distributions'!$E$10,MATCH($C15,'Efficiency Distributions'!$C$9:$C$87,0)+RIGHT($E25),0))\n/SUM(AL$10:AL$11)","v":0},{"$f":"IF(INDEX(PC_MAPPING,RIGHT($C15,1),MATCH($E$2,'Data by Building Type'!$D$22:$F$22,0))=\"Yes\",1,0)*\n(AM$10*OFFSET('Efficiency Distributions'!$D$10,MATCH($C15,'Efficiency Distributions'!$C$9:$C$87,0)+RIGHT($E25),0)\n+AM$11*OFFSET('Efficiency Distributions'!$E$10,MATCH($C15,'Efficiency Distributions'!$C$9:$C$87,0)+RIGHT($E25),0))\n/SUM(AM$10:AM$11)","v":0},{"$f":"IF(INDEX(PC_MAPPING,RIGHT($C15,1),MATCH($E$2,'Data by Building Type'!$D$22:$F$22,0))=\"Yes\",1,0)*\n(AN$10*OFFSET('Efficiency Distributions'!$D$10,MATCH($C15,'Efficiency Distributions'!$C$9:$C$87,0)+RIGHT($E25),0)\n+AN$11*OFFSET('Efficiency Distributions'!$E$10,MATCH($C15,'Efficiency Distributions'!$C$9:$C$87,0)+RIGHT($E25),0))\n/SUM(AN$10:AN$11)","v":0},{"$f":"IF(INDEX(PC_MAPPING,RIGHT($C15,1),MATCH($E$2,'Data by Building Type'!$D$22:$F$22,0))=\"Yes\",1,0)*\n(AO$10*OFFSET('Efficiency Distributions'!$D$10,MATCH($C15,'Efficiency Distributions'!$C$9:$C$87,0)+RIGHT($E25),0)\n+AO$11*OFFSET('Efficiency Distributions'!$E$10,MATCH($C15,'Efficiency Distributions'!$C$9:$C$87,0)+RIGHT($E25),0))\n/SUM(AO$10:AO$11)","v":0},{"$f":"IF(INDEX(PC_MAPPING,RIGHT($C15,1),MATCH($E$2,'Data by Building Type'!$D$22:$F$22,0))=\"Yes\",1,0)*\n(AP$10*OFFSET('Efficiency Distributions'!$D$10,MATCH($C15,'Efficiency Distributions'!$C$9:$C$87,0)+RIGHT($E25),0)\n+AP$11*OFFSET('Efficiency Distributions'!$E$10,MATCH($C15,'Efficiency Distributions'!$C$9:$C$87,0)+RIGHT($E25),0))\n/SUM(AP$10:AP$11)","v":0},{"$f":"IF(INDEX(PC_MAPPING,RIGHT($C15,1),MATCH($E$2,'Data by Building Type'!$D$22:$F$22,0))=\"Yes\",1,0)*\n(AQ$10*OFFSET('Efficiency Distributions'!$D$10,MATCH($C15,'Efficiency Distributions'!$C$9:$C$87,0)+RIGHT($E25),0)\n+AQ$11*OFFSET('Efficiency Distributions'!$E$10,MATCH($C15,'Efficiency Distributions'!$C$9:$C$87,0)+RIGHT($E25),0))\n/SUM(AQ$10:AQ$11)","v":0},{"$f":"IF(INDEX(PC_MAPPING,RIGHT($C15,1),MATCH($E$2,'Data by Building Type'!$D$22:$F$22,0))=\"Yes\",1,0)*\n(AR$10*OFFSET('Efficiency Distributions'!$D$10,MATCH($C15,'Efficiency Distributions'!$C$9:$C$87,0)+RIGHT($E25),0)\n+AR$11*OFFSET('Efficiency Distributions'!$E$10,MATCH($C15,'Efficiency Distributions'!$C$9:$C$87,0)+RIGHT($E25),0))\n/SUM(AR$10:AR$11)","v":0},{"$f":"IF(INDEX(PC_MAPPING,RIGHT($C15,1),MATCH($E$2,'Data by Building Type'!$D$22:$F$22,0))=\"Yes\",1,0)*\n(AS$10*OFFSET('Efficiency Distributions'!$D$10,MATCH($C15,'Efficiency Distributions'!$C$9:$C$87,0)+RIGHT($E25),0)\n+AS$11*OFFSET('Efficiency Distributions'!$E$10,MATCH($C15,'Efficiency Distributions'!$C$9:$C$87,0)+RIGHT($E25),0))\n/SUM(AS$10:AS$11)","v":0},{"$f":"IF(INDEX(PC_MAPPING,RIGHT($C15,1),MATCH($E$2,'Data by Building Type'!$D$22:$F$22,0))=\"Yes\",1,0)*\n(AT$10*OFFSET('Efficiency Distributions'!$D$10,MATCH($C15,'Efficiency Distributions'!$C$9:$C$87,0)+RIGHT($E25),0)\n+AT$11*OFFSET('Efficiency Distributions'!$E$10,MATCH($C15,'Efficiency Distributions'!$C$9:$C$87,0)+RIGHT($E25),0))\n/SUM(AT$10:AT$11)","v":0},{"$f":"IF(INDEX(PC_MAPPING,RIGHT($C15,1),MATCH($E$2,'Data by Building Type'!$D$22:$F$22,0))=\"Yes\",1,0)*\n(AU$10*OFFSET('Efficiency Distributions'!$D$10,MATCH($C15,'Efficiency Distributions'!$C$9:$C$87,0)+RIGHT($E25),0)\n+AU$11*OFFSET('Efficiency Distributions'!$E$10,MATCH($C15,'Efficiency Distributions'!$C$9:$C$87,0)+RIGHT($E25),0))\n/SUM(AU$10:AU$11)","v":0},{"$f":"IF(INDEX(PC_MAPPING,RIGHT($C15,1),MATCH($E$2,'Data by Building Type'!$D$22:$F$22,0))=\"Yes\",1,0)*\n(AV$10*OFFSET('Efficiency Distributions'!$D$10,MATCH($C15,'Efficiency Distributions'!$C$9:$C$87,0)+RIGHT($E25),0)\n+AV$11*OFFSET('Efficiency Distributions'!$E$10,MATCH($C15,'Efficiency Distributions'!$C$9:$C$87,0)+RIGHT($E25),0))\n/SUM(AV$10:AV$11)","v":0},{"$f":"IF(INDEX(PC_MAPPING,RIGHT($C15,1),MATCH($E$2,'Data by Building Type'!$D$22:$F$22,0))=\"Yes\",1,0)*\n(AW$10*OFFSET('Efficiency Distributions'!$D$10,MATCH($C15,'Efficiency Distributions'!$C$9:$C$87,0)+RIGHT($E25),0)\n+AW$11*OFFSET('Efficiency Distributions'!$E$10,MATCH($C15,'Efficiency Distributions'!$C$9:$C$87,0)+RIGHT($E25),0))\n/SUM(AW$10:AW$11)","v":0},{"$f":"IF(INDEX(PC_MAPPING,RIGHT($C15,1),MATCH($E$2,'Data by Building Type'!$D$22:$F$22,0))=\"Yes\",1,0)*\n(AX$10*OFFSET('Efficiency Distributions'!$D$10,MATCH($C15,'Efficiency Distributions'!$C$9:$C$87,0)+RIGHT($E25),0)\n+AX$11*OFFSET('Efficiency Distributions'!$E$10,MATCH($C15,'Efficiency Distributions'!$C$9:$C$87,0)+RIGHT($E25),0))\n/SUM(AX$10:AX$11)","v":0},{"$f":"IF(INDEX(PC_MAPPING,RIGHT($C15,1),MATCH($E$2,'Data by Building Type'!$D$22:$F$22,0))=\"Yes\",1,0)*\n(AY$10*OFFSET('Efficiency Distributions'!$D$10,MATCH($C15,'Efficiency Distributions'!$C$9:$C$87,0)+RIGHT($E25),0)\n+AY$11*OFFSET('Efficiency Distributions'!$E$10,MATCH($C15,'Efficiency Distributions'!$C$9:$C$87,0)+RIGHT($E25),0))\n/SUM(AY$10:AY$11)","v":0},{"$f":"IF(INDEX(PC_MAPPING,RIGHT($C15,1),MATCH($E$2,'Data by Building Type'!$D$22:$F$22,0))=\"Yes\",1,0)*\n(AZ$10*OFFSET('Efficiency Distributions'!$D$10,MATCH($C15,'Efficiency Distributions'!$C$9:$C$87,0)+RIGHT($E25),0)\n+AZ$11*OFFSET('Efficiency Distributions'!$E$10,MATCH($C15,'Efficiency Distributions'!$C$9:$C$87,0)+RIGHT($E25),0))\n/SUM(AZ$10:AZ$11)","v":0},{"$f":"IF(INDEX(PC_MAPPING,RIGHT($C15,1),MATCH($E$2,'Data by Building Type'!$D$22:$F$22,0))=\"Yes\",1,0)*\n(BA$10*OFFSET('Efficiency Distributions'!$D$10,MATCH($C15,'Efficiency Distributions'!$C$9:$C$87,0)+RIGHT($E25),0)\n+BA$11*OFFSET('Efficiency Distributions'!$E$10,MATCH($C15,'Efficiency Distributions'!$C$9:$C$87,0)+RIGHT($E25),0))\n/SUM(BA$10:BA$11)","v":0},{"$f":"IF(INDEX(PC_MAPPING,RIGHT($C15,1),MATCH($E$2,'Data by Building Type'!$D$22:$F$22,0))=\"Yes\",1,0)*\n(BB$10*OFFSET('Efficiency Distributions'!$D$10,MATCH($C15,'Efficiency Distributions'!$C$9:$C$87,0)+RIGHT($E25),0)\n+BB$11*OFFSET('Efficiency Distributions'!$E$10,MATCH($C15,'Efficiency Distributions'!$C$9:$C$87,0)+RIGHT($E25),0))\n/SUM(BB$10:BB$11)","v":0},{"$f":"IF(INDEX(PC_MAPPING,RIGHT($C15,1),MATCH($E$2,'Data by Building Type'!$D$22:$F$22,0))=\"Yes\",1,0)*\n(BC$10*OFFSET('Efficiency Distributions'!$D$10,MATCH($C15,'Efficiency Distributions'!$C$9:$C$87,0)+RIGHT($E25),0)\n+BC$11*OFFSET('Efficiency Distributions'!$E$10,MATCH($C15,'Efficiency Distributions'!$C$9:$C$87,0)+RIGHT($E25),0))\n/SUM(BC$10:BC$11)","v":0},{"$f":"IF(INDEX(PC_MAPPING,RIGHT($C15,1),MATCH($E$2,'Data by Building Type'!$D$22:$F$22,0))=\"Yes\",1,0)*\n(BD$10*OFFSET('Efficiency Distributions'!$D$10,MATCH($C15,'Efficiency Distributions'!$C$9:$C$87,0)+RIGHT($E25),0)\n+BD$11*OFFSET('Efficiency Distributions'!$E$10,MATCH($C15,'Efficiency Distributions'!$C$9:$C$87,0)+RIGHT($E25),0))\n/SUM(BD$10:BD$11)","v":0},{"$f":"IF(INDEX(PC_MAPPING,RIGHT($C15,1),MATCH($E$2,'Data by Building Type'!$D$22:$F$22,0))=\"Yes\",1,0)*\n(BE$10*OFFSET('Efficiency Distributions'!$D$10,MATCH($C15,'Efficiency Distributions'!$C$9:$C$87,0)+RIGHT($E25),0)\n+BE$11*OFFSET('Efficiency Distributions'!$E$10,MATCH($C15,'Efficiency Distributions'!$C$9:$C$87,0)+RIGHT($E25),0))\n/SUM(BE$10:BE$11)","v":0},{"$f":"IF(INDEX(PC_MAPPING,RIGHT($C15,1),MATCH($E$2,'Data by Building Type'!$D$22:$F$22,0))=\"Yes\",1,0)*\n(BF$10*OFFSET('Efficiency Distributions'!$D$10,MATCH($C15,'Efficiency Distributions'!$C$9:$C$87,0)+RIGHT($E25),0)\n+BF$11*OFFSET('Efficiency Distributions'!$E$10,MATCH($C15,'Efficiency Distributions'!$C$9:$C$87,0)+RIGHT($E25),0))\n/SUM(BF$10:BF$11)","v":0},{"$f":"IF(INDEX(PC_MAPPING,RIGHT($C15,1),MATCH($E$2,'Data by Building Type'!$D$22:$F$22,0))=\"Yes\",1,0)*\n(BG$10*OFFSET('Efficiency Distributions'!$D$10,MATCH($C15,'Efficiency Distributions'!$C$9:$C$87,0)+RIGHT($E25),0)\n+BG$11*OFFSET('Efficiency Distributions'!$E$10,MATCH($C15,'Efficiency Distributions'!$C$9:$C$87,0)+RIGHT($E25),0))\n/SUM(BG$10:BG$11)","v":0}]
[null,null,null,null,"TOTAL",{"$f":"SUM(F19:F25)","v":0},0,0,{"$f":"SUM(I19:I25)","v":0},0,0,0,0,0,0,0,0,0,0,0,0,0,0,0,0,0,0,0,0,0,0,0,0,0,0,0,0,0,0,0,0,0,0,0,0,0,0,0,0,0,0,0,0,0,0,0,0,0,0]
[]
[null,null,null,"POST-Case"]
[null,null,null,null,"Efficiency Level",1981,{"$f":"F29+1","v":1982},{"$f":"G29+1","v":1983},{"$f":"H29+1","v":1984},{"$f":"I29+1","v":1985},{"$f":"J29+1","v":1986},{"$f":"K29+1","v":1987},{"$f":"L29+1","v":1988},{"$f":"M29+1","v":1989},{"$f":"N29+1","v":1990},{"$f":"O29+1","v":1991},{"$f":"P29+1","v":1992},{"$f":"Q29+1","v":1993},{"$f":"R29+1","v":1994},1995,1996,1997,1998,1999,2000,2001,2002,2003,2004,2005,2006,2007,2008,2009,2010,2011,2012,2013,2014,2015,2016,2017,2018,2019,2020,2021,2022,2023,2024,2025,2026,2027,2028,2029,2030,2031,2032,2033,2034]
[null,null,null,null,"EL0",{"$f":"IF(F$29<STANDARD_YEAR,F19,\nIF(RIGHT($E30,1)>RIGHT(INDEX(STANDARD_LEVELS,1,MID($C15,4,1)),1),F19,\nIF(RIGHT($E30,1)<RIGHT(INDEX(STANDARD_LEVELS,1,MID($C15,4,1)),1),0,\nIF(RIGHT($E30,1)=RIGHT(INDEX(STANDARD_LEVELS,1,MID($C15,4,1)),1),SUM(OFFSET(F19,-(RIGHT($E30,1)),0,RIGHT($E30,1)+1,1)),\"ERROR\"))))","v":0},0,0,{"$f":"IF(I$29<STANDARD_YEAR,I19,\nIF(RIGHT($E30,1)>RIGHT(INDEX(STANDARD_LEVELS,1,MID($C15,4,1)),1),I19,\nIF(RIGHT($E30,1)<RIGHT(INDEX(STANDARD_LEVELS,1,MID($C15,4,1)),1),0,\nIF(RIGHT($E30,1)=RIGHT(INDEX(STANDARD_LEVELS,1,MID($C15,4,1)),1),SUM(OFFSET(I19,-(RIGHT($E30,1)),0,RIGHT($E30,1)+1,1)),\"ERROR\"))))","v":0},0,0,0,0,0,0,0,0,0,0,0,0,0,0,0,0,0,0,0,0,0,0,0,0,0,0,0,0,0,0,0,0,0,0,0,0,0,0,0,0,0,0,0,0,0,0,0,0,0,0]
[null,null,null,null,"EL1",{"$f":"IF(F$29<STANDARD_YEAR,F20,\nIF(RIGHT($E31,1)>RIGHT(INDEX(STANDARD_LEVELS,1,MID($C15,4,1)),1),F20,\nIF(RIGHT($E31,1)<RIGHT(INDEX(STANDARD_LEVELS,1,MID($C15,4,1)),1),0,\nIF(RIGHT($E31,1)=RIGHT(INDEX(STANDARD_LEVELS,1,MID($C15,4,1)),1),SUM(OFFSET(F20,-(RIGHT($E31,1)),0,RIGHT($E31,1)+1,1)),\"ERROR\"))))","v":0},0,0,{"$f":"IF(I$29<STANDARD_YEAR,I20,\nIF(RIGHT($E31,1)>RIGHT(INDEX(STANDARD_LEVELS,1,MID($C15,4,1)),1),I20,\nIF(RIGHT($E31,1)<RIGHT(INDEX(STANDARD_LEVELS,1,MID($C15,4,1)),1),0,\nIF(RIGHT($E31,1)=RIGHT(INDEX(STANDARD_LEVELS,1,MID($C15,4,1)),1),SUM(OFFSET(I20,-(RIGHT($E31,1)),0,RIGHT($E31,1)+1,1)),\"ERROR\"))))","v":0},0,0,0,0,0,0,0,0,0,0,0,0,0,0,0,0,0,0,0,0,0,0,0,0,0,0,0,0,0,0,0,0,0,0,0,0,0,0,0,0,0,0,0,0,0,0,0,0,0,0]
[null,null,null,null,"EL2",{"$f":"IF(F$29<STANDARD_YEAR,F21,\nIF(RIGHT($E32,1)>RIGHT(INDEX(STANDARD_LEVELS,1,MID($C15,4,1)),1),F21,\nIF(RIGHT($E32,1)<RIGHT(INDEX(STANDARD_LEVELS,1,MID($C15,4,1)),1),0,\nIF(RIGHT($E32,1)=RIGHT(INDEX(STANDARD_LEVELS,1,MID($C15,4,1)),1),SUM(OFFSET(F21,-(RIGHT($E32,1)),0,RIGHT($E32,1)+1,1)),\"ERROR\"))))","v":0},0,0,{"$f":"IF(I$29<STANDARD_YEAR,I21,\nIF(RIGHT($E32,1)>RIGHT(INDEX(STANDARD_LEVELS,1,MID($C15,4,1)),1),I21,\nIF(RIGHT($E32,1)<RIGHT(INDEX(STANDARD_LEVELS,1,MID($C15,4,1)),1),0,\nIF(RIGHT($E32,1)=RIGHT(INDEX(STANDARD_LEVELS,1,MID($C15,4,1)),1),SUM(OFFSET(I21,-(RIGHT($E32,1)),0,RIGHT($E32,1)+1,1)),\"ERROR\"))))","v":0},0,0,0,0,0,0,0,0,0,0,0,0,0,0,0,0,0,0,0,0,0,0,0,0,0,0,0,0,0,0,0,0,0,0,0,0,0,0,0,0,0,0,0,0,0,0,0,0,0,0]
[null,null,null,null,"EL3",{"$f":"IF(F$29<STANDARD_YEAR,F22,\nIF(RIGHT($E33,1)>RIGHT(INDEX(STANDARD_LEVELS,1,MID($C15,4,1)),1),F22,\nIF(RIGHT($E33,1)<RIGHT(INDEX(STANDARD_LEVELS,1,MID($C15,4,1)),1),0,\nIF(RIGHT($E33,1)=RIGHT(INDEX(STANDARD_LEVELS,1,MID($C15,4,1)),1),SUM(OFFSET(F22,-(RIGHT($E33,1)),0,RIGHT($E33,1)+1,1)),\"ERROR\"))))","v":0},0,0,{"$f":"IF(I$29<STANDARD_YEAR,I22,\nIF(RIGHT($E33,1)>RIGHT(INDEX(STANDARD_LEVELS,1,MID($C15,4,1)),1),I22,\nIF(RIGHT($E33,1)<RIGHT(INDEX(STANDARD_LEVELS,1,MID($C15,4,1)),1),0,\nIF(RIGHT($E33,1)=RIGHT(INDEX(STANDARD_LEVELS,1,MID($C15,4,1)),1),SUM(OFFSET(I22,-(RIGHT($E33,1)),0,RIGHT($E33,1)+1,1)),\"ERROR\"))))","v":0},0,0,0,0,0,0,0,0,0,0,0,0,0,0,0,0,0,0,0,0,0,0,0,0,0,0,0,0,0,0,0,0,0,0,0,0,0,0,0,0,0,0,0,0,0,0,0,0,0,0]
[null,null,null,null,"EL4",{"$f":"IF(F$29<STANDARD_YEAR,F23,\nIF(RIGHT($E34,1)>RIGHT(INDEX(STANDARD_LEVELS,1,MID($C15,4,1)),1),F23,\nIF(RIGHT($E34,1)<RIGHT(INDEX(STANDARD_LEVELS,1,MID($C15,4,1)),1),0,\nIF(RIGHT($E34,1)=RIGHT(INDEX(STANDARD_LEVELS,1,MID($C15,4,1)),1),SUM(OFFSET(F23,-(RIGHT($E34,1)),0,RIGHT($E34,1)+1,1)),\"ERROR\"))))","v":0},0,0,{"$f":"IF(I$29<STANDARD_YEAR,I23,\nIF(RIGHT($E34,1)>RIGHT(INDEX(STANDARD_LEVELS,1,MID($C15,4,1)),1),I23,\nIF(RIGHT($E34,1)<RIGHT(INDEX(STANDARD_LEVELS,1,MID($C15,4,1)),1),0,\nIF(RIGHT($E34,1)=RIGHT(INDEX(STANDARD_LEVELS,1,MID($C15,4,1)),1),SUM(OFFSET(I23,-(RIGHT($E34,1)),0,RIGHT($E34,1)+1,1)),\"ERROR\"))))","v":0},0,0,0,0,0,0,0,0,0,0,0,0,0,0,0,0,0,0,0,0,0,0,0,0,0,0,0,0,0,0,0,0,0,0,0,0,0,0,0,0,0,0,0,0,0,0,0,0,0,0]
[null,null,null,null,"EL5",{"$f":"IF(F$29<STANDARD_YEAR,F24,\nIF(RIGHT($E35,1)>RIGHT(INDEX(STANDARD_LEVELS,1,MID($C15,4,1)),1),F24,\nIF(RIGHT($E35,1)<RIGHT(INDEX(STANDARD_LEVELS,1,MID($C15,4,1)),1),0,\nIF(RIGHT($E35,1)=RIGHT(INDEX(STANDARD_LEVELS,1,MID($C15,4,1)),1),SUM(OFFSET(F24,-(RIGHT($E35,1)),0,RIGHT($E35,1)+1,1)),\"ERROR\"))))","v":0},0,0,{"$f":"IF(I$29<STANDARD_YEAR,I24,\nIF(RIGHT($E35,1)>RIGHT(INDEX(STANDARD_LEVELS,1,MID($C15,4,1)),1),I24,\nIF(RIGHT($E35,1)<RIGHT(INDEX(STANDARD_LEVELS,1,MID($C15,4,1)),1),0,\nIF(RIGHT($E35,1)=RIGHT(INDEX(STANDARD_LEVELS,1,MID($C15,4,1)),1),SUM(OFFSET(I24,-(RIGHT($E35,1)),0,RIGHT($E35,1)+1,1)),\"ERROR\"))))","v":0},0,0,0,0,0,0,0,0,0,0,0,0,0,0,0,0,0,0,0,0,0,0,0,0,0,0,0,0,0,0,0,0,0,0,0,0,0,0,0,0,0,0,0,0,0,0,0,0,0,0]
[null,null,null,null,"EL6",{"$f":"IF(F$29<STANDARD_YEAR,F25,\nIF(RIGHT($E36,1)>RIGHT(INDEX(STANDARD_LEVELS,1,MID($C15,4,1)),1),F25,\nIF(RIGHT($E36,1)<RIGHT(INDEX(STANDARD_LEVELS,1,MID($C15,4,1)),1),0,\nIF(RIGHT($E36,1)=RIGHT(INDEX(STANDARD_LEVELS,1,MID($C15,4,1)),1),SUM(OFFSET(F25,-(RIGHT($E36,1)),0,RIGHT($E36,1)+1,1)),\"ERROR\"))))","v":0},0,0,{"$f":"IF(I$29<STANDARD_YEAR,I25,\nIF(RIGHT($E36,1)>RIGHT(INDEX(STANDARD_LEVELS,1,MID($C15,4,1)),1),I25,\nIF(RIGHT($E36,1)<RIGHT(INDEX(STANDARD_LEVELS,1,MID($C15,4,1)),1),0,\nIF(RIGHT($E36,1)=RIGHT(INDEX(STANDARD_LEVELS,1,MID($C15,4,1)),1),SUM(OFFSET(I25,-(RIGHT($E36,1)),0,RIGHT($E36,1)+1,1)),\"ERROR\"))))","v":0},0,0,0,0,0,0,0,0,0,0,0,0,0,0,0,0,0,0,0,0,0,0,0,0,0,0,0,0,0,0,0,0,0,0,0,0,0,0,0,0,0,0,0,0,0,0,0,0,0,0]
[null,null,null,null,"TOTAL",{"$f":"SUM(F30:F36)","v":0},0,0,{"$f":"SUM(I30:I36)","v":0},0,0,0,0,0,0,0,0,0,0,0,0,0,0,0,0,0,0,0,0,0,0,0,0,0,0,0,0,0,0,0,0,0,0,0,0,0,0,0,0,0,0,0,0,0,0,0,0,0,0]
[]
[]
[]
[null,null,"PC 2",{"$f":"OFFSET('Product Classes'!$C$9,MATCH(C41,MODEL_PCS,0),0)","v":"Non-Weatherized, Condensing Gas Furnace Fan (NWG-C)"}]
[]
[null,null,null,"PRE-Case"]
[null,null,null,null,"Efficiency Level",1981,{"$f":"F44+1","v":1982},{"$f":"G44+1","v":1983},{"$f":"H44+1","v":1984},{"$f":"I44+1","v":1985},{"$f":"J44+1","v":1986},{"$f":"K44+1","v":1987},{"$f":"L44+1","v":1988},{"$f":"M44+1","v":1989},{"$f":"N44+1","v":1990},{"$f":"O44+1","v":1991},{"$f":"P44+1","v":1992},{"$f":"Q44+1","v":1993},{"$f":"R44+1","v":1994},1995,1996,1997,1998,1999,2000,2001,2002,2003,2004,2005,2006,2007,2008,2009,2010,2011,2012,2013,2014,2015,2016,2017,2018,2019,2020,2021,2022,2023,2024,2025,2026,2027,2028,2029,2030,2031,2032,2033,2034]
[null,null,null,null,"EL0",{"$f":"IF(INDEX(PC_MAPPING,RIGHT($C41,1),MATCH($E$2,'Data by Building Type'!$D$22:$F$22,0))=\"Yes\",1,0)*\n(F$10*OFFSET('Efficiency Distributions'!$D$10,MATCH($C41,'Efficiency Distributions'!$C$9:$C$87,0)+RIGHT($E45),0)\n+F$11*OFFSET('Efficiency Distributions'!$E$10,MATCH($C41,'Efficiency Distributions'!$C$9:$C$87,0)+RIGHT($E45),0))\n/SUM(F$10:F$11)","v":0},{"$f":"IF(INDEX(PC_MAPPING,RIGHT($C41,1),MATCH($E$2,'Data by Building Type'!$D$22:$F$22,0))=\"Yes\",1,0)*\n(G$10*OFFSET('Efficiency Distributions'!$D$10,MATCH($C41,'Efficiency Distributions'!$C$9:$C$87,0)+RIGHT($E45),0)\n+G$11*OFFSET('Efficiency Distributions'!$E$10,MATCH($C41,'Efficiency Distributions'!$C$9:$C$87,0)+RIGHT($E45),0))\n/SUM(G$10:G$11)","v":0},{"$f":"IF(INDEX(PC_MAPPING,RIGHT($C41,1),MATCH($E$2,'Data by Building Type'!$D$22:$F$22,0))=\"Yes\",1,0)*\n(H$10*OFFSET('Efficiency Distributions'!$D$10,MATCH($C41,'Efficiency Distributions'!$C$9:$C$87,0)+RIGHT($E45),0)\n+H$11*OFFSET('Efficiency Distributions'!$E$10,MATCH($C41,'Efficiency Distributions'!$C$9:$C$87,0)+RIGHT($E45),0))\n/SUM(H$10:H$11)","v":0},{"$f":"IF(INDEX(PC_MAPPING,RIGHT($C41,1),MATCH($E$2,'Data by Building Type'!$D$22:$F$22,0))=\"Yes\",1,0)*\n(I$10*OFFSET('Efficiency Distributions'!$D$10,MATCH($C41,'Efficiency Distributions'!$C$9:$C$87,0)+RIGHT($E45),0)\n+I$11*OFFSET('Efficiency Distributions'!$E$10,MATCH($C41,'Efficiency Distributions'!$C$9:$C$87,0)+RIGHT($E45),0))\n/SUM(I$10:I$11)","v":0},{"$f":"IF(INDEX(PC_MAPPING,RIGHT($C41,1),MATCH($E$2,'Data by Building Type'!$D$22:$F$22,0))=\"Yes\",1,0)*\n(J$10*OFFSET('Efficiency Distributions'!$D$10,MATCH($C41,'Efficiency Distributions'!$C$9:$C$87,0)+RIGHT($E45),0)\n+J$11*OFFSET('Efficiency Distributions'!$E$10,MATCH($C41,'Efficiency Distributions'!$C$9:$C$87,0)+RIGHT($E45),0))\n/SUM(J$10:J$11)","v":0},{"$f":"IF(INDEX(PC_MAPPING,RIGHT($C41,1),MATCH($E$2,'Data by Building Type'!$D$22:$F$22,0))=\"Yes\",1,0)*\n(K$10*OFFSET('Efficiency Distributions'!$D$10,MATCH($C41,'Efficiency Distributions'!$C$9:$C$87,0)+RIGHT($E45),0)\n+K$11*OFFSET('Efficiency Distributions'!$E$10,MATCH($C41,'Efficiency Distributions'!$C$9:$C$87,0)+RIGHT($E45),0))\n/SUM(K$10:K$11)","v":0},{"$f":"IF(INDEX(PC_MAPPING,RIGHT($C41,1),MATCH($E$2,'Data by Building Type'!$D$22:$F$22,0))=\"Yes\",1,0)*\n(L$10*OFFSET('Efficiency Distributions'!$D$10,MATCH($C41,'Efficiency Distributions'!$C$9:$C$87,0)+RIGHT($E45),0)\n+L$11*OFFSET('Efficiency Distributions'!$E$10,MATCH($C41,'Efficiency Distributions'!$C$9:$C$87,0)+RIGHT($E45),0))\n/SUM(L$10:L$11)","v":0},{"$f":"IF(INDEX(PC_MAPPING,RIGHT($C41,1),MATCH($E$2,'Data by Building Type'!$D$22:$F$22,0))=\"Yes\",1,0)*\n(M$10*OFFSET('Efficiency Distributions'!$D$10,MATCH($C41,'Efficiency Distributions'!$C$9:$C$87,0)+RIGHT($E45),0)\n+M$11*OFFSET('Efficiency Distributions'!$E$10,MATCH($C41,'Efficiency Distributions'!$C$9:$C$87,0)+RIGHT($E45),0))\n/SUM(M$10:M$11)","v":0},{"$f":"IF(INDEX(PC_MAPPING,RIGHT($C41,1),MATCH($E$2,'Data by Building Type'!$D$22:$F$22,0))=\"Yes\",1,0)*\n(N$10*OFFSET('Efficiency Distributions'!$D$10,MATCH($C41,'Efficiency Distributions'!$C$9:$C$87,0)+RIGHT($E45),0)\n+N$11*OFFSET('Efficiency Distributions'!$E$10,MATCH($C41,'Efficiency Distributions'!$C$9:$C$87,0)+RIGHT($E45),0))\n/SUM(N$10:N$11)","v":0},{"$f":"IF(INDEX(PC_MAPPING,RIGHT($C41,1),MATCH($E$2,'Data by Building Type'!$D$22:$F$22,0))=\"Yes\",1,0)*\n(O$10*OFFSET('Efficiency Distributions'!$D$10,MATCH($C41,'Efficiency Distributions'!$C$9:$C$87,0)+RIGHT($E45),0)\n+O$11*OFFSET('Efficiency Distributions'!$E$10,MATCH($C41,'Efficiency Distributions'!$C$9:$C$87,0)+RIGHT($E45),0))\n/SUM(O$10:O$11)","v":0},{"$f":"IF(INDEX(PC_MAPPING,RIGHT($C41,1),MATCH($E$2,'Data by Building Type'!$D$22:$F$22,0))=\"Yes\",1,0)*\n(P$10*OFFSET('Efficiency Distributions'!$D$10,MATCH($C41,'Efficiency Distributions'!$C$9:$C$87,0)+RIGHT($E45),0)\n+P$11*OFFSET('Efficiency Distributions'!$E$10,MATCH($C41,'Efficiency Distributions'!$C$9:$C$87,0)+RIGHT($E45),0))\n/SUM(P$10:P$11)","v":0},{"$f":"IF(INDEX(PC_MAPPING,RIGHT($C41,1),MATCH($E$2,'Data by Building Type'!$D$22:$F$22,0))=\"Yes\",1,0)*\n(Q$10*OFFSET('Efficiency Distributions'!$D$10,MATCH($C41,'Efficiency Distributions'!$C$9:$C$87,0)+RIGHT($E45),0)\n+Q$11*OFFSET('Efficiency Distributions'!$E$10,MATCH($C41,'Efficiency Distributions'!$C$9:$C$87,0)+RIGHT($E45),0))\n/SUM(Q$10:Q$11)","v":0},{"$f":"IF(INDEX(PC_MAPPING,RIGHT($C41,1),MATCH($E$2,'Data by Building Type'!$D$22:$F$22,0))=\"Yes\",1,0)*\n(R$10*OFFSET('Efficiency Distributions'!$D$10,MATCH($C41,'Efficiency Distributions'!$C$9:$C$87,0)+RIGHT($E45),0)\n+R$11*OFFSET('Efficiency Distributions'!$E$10,MATCH($C41,'Efficiency Distributions'!$C$9:$C$87,0)+RIGHT($E45),0))\n/SUM(R$10:R$11)","v":0},{"$f":"IF(INDEX(PC_MAPPING,RIGHT($C41,1),MATCH($E$2,'Data by Building Type'!$D$22:$F$22,0))=\"Yes\",1,0)*\n(S$10*OFFSET('Efficiency Distributions'!$D$10,MATCH($C41,'Efficiency Distributions'!$C$9:$C$87,0)+RIGHT($E45),0)\n+S$11*OFFSET('Efficiency Distributions'!$E$10,MATCH($C41,'Efficiency Distributions'!$C$9:$C$87,0)+RIGHT($E45),0))\n/SUM(S$10:S$11)","v":0},{"$f":"IF(INDEX(PC_MAPPING,RIGHT($C41,1),MATCH($E$2,'Data by Building Type'!$D$22:$F$22,0))=\"Yes\",1,0)*\n(T$10*OFFSET('Efficiency Distributions'!$D$10,MATCH($C41,'Efficiency Distributions'!$C$9:$C$87,0)+RIGHT($E45),0)\n+T$11*OFFSET('Efficiency Distributions'!$E$10,MATCH($C41,'Efficiency Distributions'!$C$9:$C$87,0)+RIGHT($E45),0))\n/SUM(T$10:T$11)","v":0},{"$f":"IF(INDEX(PC_MAPPING,RIGHT($C41,1),MATCH($E$2,'Data by Building Type'!$D$22:$F$22,0))=\"Yes\",1,0)*\n(U$10*OFFSET('Efficiency Distributions'!$D$10,MATCH($C41,'Efficiency Distributions'!$C$9:$C$87,0)+RIGHT($E45),0)\n+U$11*OFFSET('Efficiency Distributions'!$E$10,MATCH($C41,'Efficiency Distributions'!$C$9:$C$87,0)+RIGHT($E45),0))\n/SUM(U$10:U$11)","v":0},{"$f":"IF(INDEX(PC_MAPPING,RIGHT($C41,1),MATCH($E$2,'Data by Building Type'!$D$22:$F$22,0))=\"Yes\",1,0)*\n(V$10*OFFSET('Efficiency Distributions'!$D$10,MATCH($C41,'Efficiency Distributions'!$C$9:$C$87,0)+RIGHT($E45),0)\n+V$11*OFFSET('Efficiency Distributions'!$E$10,MATCH($C41,'Efficiency Distributions'!$C$9:$C$87,0)+RIGHT($E45),0))\n/SUM(V$10:V$11)","v":0},{"$f":"IF(INDEX(PC_MAPPING,RIGHT($C41,1),MATCH($E$2,'Data by Building Type'!$D$22:$F$22,0))=\"Yes\",1,0)*\n(W$10*OFFSET('Efficiency Distributions'!$D$10,MATCH($C41,'Efficiency Distributions'!$C$9:$C$87,0)+RIGHT($E45),0)\n+W$11*OFFSET('Efficiency Distributions'!$E$10,MATCH($C41,'Efficiency Distributions'!$C$9:$C$87,0)+RIGHT($E45),0))\n/SUM(W$10:W$11)","v":0},{"$f":"IF(INDEX(PC_MAPPING,RIGHT($C41,1),MATCH($E$2,'Data by Building Type'!$D$22:$F$22,0))=\"Yes\",1,0)*\n(X$10*OFFSET('Efficiency Distributions'!$D$10,MATCH($C41,'Efficiency Distributions'!$C$9:$C$87,0)+RIGHT($E45),0)\n+X$11*OFFSET('Efficiency Distributions'!$E$10,MATCH($C41,'Efficiency Distributions'!$C$9:$C$87,0)+RIGHT($E45),0))\n/SUM(X$10:X$11)","v":0},{"$f":"IF(INDEX(PC_MAPPING,RIGHT($C41,1),MATCH($E$2,'Data by Building Type'!$D$22:$F$22,0))=\"Yes\",1,0)*\n(Y$10*OFFSET('Efficiency Distributions'!$D$10,MATCH($C41,'Efficiency Distributions'!$C$9:$C$87,0)+RIGHT($E45),0)\n+Y$11*OFFSET('Efficiency Distributions'!$E$10,MATCH($C41,'Efficiency Distributions'!$C$9:$C$87,0)+RIGHT($E45),0))\n/SUM(Y$10:Y$11)","v":0},{"$f":"IF(INDEX(PC_MAPPING,RIGHT($C41,1),MATCH($E$2,'Data by Building Type'!$D$22:$F$22,0))=\"Yes\",1,0)*\n(Z$10*OFFSET('Efficiency Distributions'!$D$10,MATCH($C41,'Efficiency Distributions'!$C$9:$C$87,0)+RIGHT($E45),0)\n+Z$11*OFFSET('Efficiency Distributions'!$E$10,MATCH($C41,'Efficiency Distributions'!$C$9:$C$87,0)+RIGHT($E45),0))\n/SUM(Z$10:Z$11)","v":0},{"$f":"IF(INDEX(PC_MAPPING,RIGHT($C41,1),MATCH($E$2,'Data by Building Type'!$D$22:$F$22,0))=\"Yes\",1,0)*\n(AA$10*OFFSET('Efficiency Distributions'!$D$10,MATCH($C41,'Efficiency Distributions'!$C$9:$C$87,0)+RIGHT($E45),0)\n+AA$11*OFFSET('Efficiency Distributions'!$E$10,MATCH($C41,'Efficiency Distributions'!$C$9:$C$87,0)+RIGHT($E45),0))\n/SUM(AA$10:AA$11)","v":0},{"$f":"IF(INDEX(PC_MAPPING,RIGHT($C41,1),MATCH($E$2,'Data by Building Type'!$D$22:$F$22,0))=\"Yes\",1,0)*\n(AB$10*OFFSET('Efficiency Distributions'!$D$10,MATCH($C41,'Efficiency Distributions'!$C$9:$C$87,0)+RIGHT($E45),0)\n+AB$11*OFFSET('Efficiency Distributions'!$E$10,MATCH($C41,'Efficiency Distributions'!$C$9:$C$87,0)+RIGHT($E45),0))\n/SUM(AB$10:AB$11)","v":0},{"$f":"IF(INDEX(PC_MAPPING,RIGHT($C41,1),MATCH($E$2,'Data by Building Type'!$D$22:$F$22,0))=\"Yes\",1,0)*\n(AC$10*OFFSET('Efficiency Distributions'!$D$10,MATCH($C41,'Efficiency Distributions'!$C$9:$C$87,0)+RIGHT($E45),0)\n+AC$11*OFFSET('Efficiency Distributions'!$E$10,MATCH($C41,'Efficiency Distributions'!$C$9:$C$87,0)+RIGHT($E45),0))\n/SUM(AC$10:AC$11)","v":0},{"$f":"IF(INDEX(PC_MAPPING,RIGHT($C41,1),MATCH($E$2,'Data by Building Type'!$D$22:$F$22,0))=\"Yes\",1,0)*\n(AD$10*OFFSET('Efficiency Distributions'!$D$10,MATCH($C41,'Efficiency Distributions'!$C$9:$C$87,0)+RIGHT($E45),0)\n+AD$11*OFFSET('Efficiency Distributions'!$E$10,MATCH($C41,'Efficiency Distributions'!$C$9:$C$87,0)+RIGHT($E45),0))\n/SUM(AD$10:AD$11)","v":0},{"$f":"IF(INDEX(PC_MAPPING,RIGHT($C41,1),MATCH($E$2,'Data by Building Type'!$D$22:$F$22,0))=\"Yes\",1,0)*\n(AE$10*OFFSET('Efficiency Distributions'!$D$10,MATCH($C41,'Efficiency Distributions'!$C$9:$C$87,0)+RIGHT($E45),0)\n+AE$11*OFFSET('Efficiency Distributions'!$E$10,MATCH($C41,'Efficiency Distributions'!$C$9:$C$87,0)+RIGHT($E45),0))\n/SUM(AE$10:AE$11)","v":0},{"$f":"IF(INDEX(PC_MAPPING,RIGHT($C41,1),MATCH($E$2,'Data by Building Type'!$D$22:$F$22,0))=\"Yes\",1,0)*\n(AF$10*OFFSET('Efficiency Distributions'!$D$10,MATCH($C41,'Efficiency Distributions'!$C$9:$C$87,0)+RIGHT($E45),0)\n+AF$11*OFFSET('Efficiency Distributions'!$E$10,MATCH($C41,'Efficiency Distributions'!$C$9:$C$87,0)+RIGHT($E45),0))\n/SUM(AF$10:AF$11)","v":0},{"$f":"IF(INDEX(PC_MAPPING,RIGHT($C41,1),MATCH($E$2,'Data by Building Type'!$D$22:$F$22,0))=\"Yes\",1,0)*\n(AG$10*OFFSET('Efficiency Distributions'!$D$10,MATCH($C41,'Efficiency Distributions'!$C$9:$C$87,0)+RIGHT($E45),0)\n+AG$11*OFFSET('Efficiency Distributions'!$E$10,MATCH($C41,'Efficiency Distributions'!$C$9:$C$87,0)+RIGHT($E45),0))\n/SUM(AG$10:AG$11)","v":0},{"$f":"IF(INDEX(PC_MAPPING,RIGHT($C41,1),MATCH($E$2,'Data by Building Type'!$D$22:$F$22,0))=\"Yes\",1,0)*\n(AH$10*OFFSET('Efficiency Distributions'!$D$10,MATCH($C41,'Efficiency Distributions'!$C$9:$C$87,0)+RIGHT($E45),0)\n+AH$11*OFFSET('Efficiency Distributions'!$E$10,MATCH($C41,'Efficiency Distributions'!$C$9:$C$87,0)+RIGHT($E45),0))\n/SUM(AH$10:AH$11)","v":0},{"$f":"IF(INDEX(PC_MAPPING,RIGHT($C41,1),MATCH($E$2,'Data by Building Type'!$D$22:$F$22,0))=\"Yes\",1,0)*\n(AI$10*OFFSET('Efficiency Distributions'!$D$10,MATCH($C41,'Efficiency Distributions'!$C$9:$C$87,0)+RIGHT($E45),0)\n+AI$11*OFFSET('Efficiency Distributions'!$E$10,MATCH($C41,'Efficiency Distributions'!$C$9:$C$87,0)+RIGHT($E45),0))\n/SUM(AI$10:AI$11)","v":0},{"$f":"IF(INDEX(PC_MAPPING,RIGHT($C41,1),MATCH($E$2,'Data by Building Type'!$D$22:$F$22,0))=\"Yes\",1,0)*\n(AJ$10*OFFSET('Efficiency Distributions'!$D$10,MATCH($C41,'Efficiency Distributions'!$C$9:$C$87,0)+RIGHT($E45),0)\n+AJ$11*OFFSET('Efficiency Distributions'!$E$10,MATCH($C41,'Efficiency Distributions'!$C$9:$C$87,0)+RIGHT($E45),0))\n/SUM(AJ$10:AJ$11)","v":0},{"$f":"IF(INDEX(PC_MAPPING,RIGHT($C41,1),MATCH($E$2,'Data by Building Type'!$D$22:$F$22,0))=\"Yes\",1,0)*\n(AK$10*OFFSET('Efficiency Distributions'!$D$10,MATCH($C41,'Efficiency Distributions'!$C$9:$C$87,0)+RIGHT($E45),0)\n+AK$11*OFFSET('Efficiency Distributions'!$E$10,MATCH($C41,'Efficiency Distributions'!$C$9:$C$87,0)+RIGHT($E45),0))\n/SUM(AK$10:AK$11)","v":0},{"$f":"IF(INDEX(PC_MAPPING,RIGHT($C41,1),MATCH($E$2,'Data by Building Type'!$D$22:$F$22,0))=\"Yes\",1,0)*\n(AL$10*OFFSET('Efficiency Distributions'!$D$10,MATCH($C41,'Efficiency Distributions'!$C$9:$C$87,0)+RIGHT($E45),0)\n+AL$11*OFFSET('Efficiency Distributions'!$E$10,MATCH($C41,'Efficiency Distributions'!$C$9:$C$87,0)+RIGHT($E45),0))\n/SUM(AL$10:AL$11)","v":0},{"$f":"IF(INDEX(PC_MAPPING,RIGHT($C41,1),MATCH($E$2,'Data by Building Type'!$D$22:$F$22,0))=\"Yes\",1,0)*\n(AM$10*OFFSET('Efficiency Distributions'!$D$10,MATCH($C41,'Efficiency Distributions'!$C$9:$C$87,0)+RIGHT($E45),0)\n+AM$11*OFFSET('Efficiency Distributions'!$E$10,MATCH($C41,'Efficiency Distributions'!$C$9:$C$87,0)+RIGHT($E45),0))\n/SUM(AM$10:AM$11)","v":0},{"$f":"IF(INDEX(PC_MAPPING,RIGHT($C41,1),MATCH($E$2,'Data by Building Type'!$D$22:$F$22,0))=\"Yes\",1,0)*\n(AN$10*OFFSET('Efficiency Distributions'!$D$10,MATCH($C41,'Efficiency Distributions'!$C$9:$C$87,0)+RIGHT($E45),0)\n+AN$11*OFFSET('Efficiency Distributions'!$E$10,MATCH($C41,'Efficiency Distributions'!$C$9:$C$87,0)+RIGHT($E45),0))\n/SUM(AN$10:AN$11)","v":0},{"$f":"IF(INDEX(PC_MAPPING,RIGHT($C41,1),MATCH($E$2,'Data by Building Type'!$D$22:$F$22,0))=\"Yes\",1,0)*\n(AO$10*OFFSET('Efficiency Distributions'!$D$10,MATCH($C41,'Efficiency Distributions'!$C$9:$C$87,0)+RIGHT($E45),0)\n+AO$11*OFFSET('Efficiency Distributions'!$E$10,MATCH($C41,'Efficiency Distributions'!$C$9:$C$87,0)+RIGHT($E45),0))\n/SUM(AO$10:AO$11)","v":0},{"$f":"IF(INDEX(PC_MAPPING,RIGHT($C41,1),MATCH($E$2,'Data by Building Type'!$D$22:$F$22,0))=\"Yes\",1,0)*\n(AP$10*OFFSET('Efficiency Distributions'!$D$10,MATCH($C41,'Efficiency Distributions'!$C$9:$C$87,0)+RIGHT($E45),0)\n+AP$11*OFFSET('Efficiency Distributions'!$E$10,MATCH($C41,'Efficiency Distributions'!$C$9:$C$87,0)+RIGHT($E45),0))\n/SUM(AP$10:AP$11)","v":0},{"$f":"IF(INDEX(PC_MAPPING,RIGHT($C41,1),MATCH($E$2,'Data by Building Type'!$D$22:$F$22,0))=\"Yes\",1,0)*\n(AQ$10*OFFSET('Efficiency Distributions'!$D$10,MATCH($C41,'Efficiency Distributions'!$C$9:$C$87,0)+RIGHT($E45),0)\n+AQ$11*OFFSET('Efficiency Distributions'!$E$10,MATCH($C41,'Efficiency Distributions'!$C$9:$C$87,0)+RIGHT($E45),0))\n/SUM(AQ$10:AQ$11)","v":0},{"$f":"IF(INDEX(PC_MAPPING,RIGHT($C41,1),MATCH($E$2,'Data by Building Type'!$D$22:$F$22,0))=\"Yes\",1,0)*\n(AR$10*OFFSET('Efficiency Distributions'!$D$10,MATCH($C41,'Efficiency Distributions'!$C$9:$C$87,0)+RIGHT($E45),0)\n+AR$11*OFFSET('Efficiency Distributions'!$E$10,MATCH($C41,'Efficiency Distributions'!$C$9:$C$87,0)+RIGHT($E45),0))\n/SUM(AR$10:AR$11)","v":0},{"$f":"IF(INDEX(PC_MAPPING,RIGHT($C41,1),MATCH($E$2,'Data by Building Type'!$D$22:$F$22,0))=\"Yes\",1,0)*\n(AS$10*OFFSET('Efficiency Distributions'!$D$10,MATCH($C41,'Efficiency Distributions'!$C$9:$C$87,0)+RIGHT($E45),0)\n+AS$11*OFFSET('Efficiency Distributions'!$E$10,MATCH($C41,'Efficiency Distributions'!$C$9:$C$87,0)+RIGHT($E45),0))\n/SUM(AS$10:AS$11)","v":0},{"$f":"IF(INDEX(PC_MAPPING,RIGHT($C41,1),MATCH($E$2,'Data by Building Type'!$D$22:$F$22,0))=\"Yes\",1,0)*\n(AT$10*OFFSET('Efficiency Distributions'!$D$10,MATCH($C41,'Efficiency Distributions'!$C$9:$C$87,0)+RIGHT($E45),0)\n+AT$11*OFFSET('Efficiency Distributions'!$E$10,MATCH($C41,'Efficiency Distributions'!$C$9:$C$87,0)+RIGHT($E45),0))\n/SUM(AT$10:AT$11)","v":0},{"$f":"IF(INDEX(PC_MAPPING,RIGHT($C41,1),MATCH($E$2,'Data by Building Type'!$D$22:$F$22,0))=\"Yes\",1,0)*\n(AU$10*OFFSET('Efficiency Distributions'!$D$10,MATCH($C41,'Efficiency Distributions'!$C$9:$C$87,0)+RIGHT($E45),0)\n+AU$11*OFFSET('Efficiency Distributions'!$E$10,MATCH($C41,'Efficiency Distributions'!$C$9:$C$87,0)+RIGHT($E45),0))\n/SUM(AU$10:AU$11)","v":0},{"$f":"IF(INDEX(PC_MAPPING,RIGHT($C41,1),MATCH($E$2,'Data by Building Type'!$D$22:$F$22,0))=\"Yes\",1,0)*\n(AV$10*OFFSET('Efficiency Distributions'!$D$10,MATCH($C41,'Efficiency Distributions'!$C$9:$C$87,0)+RIGHT($E45),0)\n+AV$11*OFFSET('Efficiency Distributions'!$E$10,MATCH($C41,'Efficiency Distributions'!$C$9:$C$87,0)+RIGHT($E45),0))\n/SUM(AV$10:AV$11)","v":0},{"$f":"IF(INDEX(PC_MAPPING,RIGHT($C41,1),MATCH($E$2,'Data by Building Type'!$D$22:$F$22,0))=\"Yes\",1,0)*\n(AW$10*OFFSET('Efficiency Distributions'!$D$10,MATCH($C41,'Efficiency Distributions'!$C$9:$C$87,0)+RIGHT($E45),0)\n+AW$11*OFFSET('Efficiency Distributions'!$E$10,MATCH($C41,'Efficiency Distributions'!$C$9:$C$87,0)+RIGHT($E45),0))\n/SUM(AW$10:AW$11)","v":0},{"$f":"IF(INDEX(PC_MAPPING,RIGHT($C41,1),MATCH($E$2,'Data by Building Type'!$D$22:$F$22,0))=\"Yes\",1,0)*\n(AX$10*OFFSET('Efficiency Distributions'!$D$10,MATCH($C41,'Efficiency Distributions'!$C$9:$C$87,0)+RIGHT($E45),0)\n+AX$11*OFFSET('Efficiency Distributions'!$E$10,MATCH($C41,'Efficiency Distributions'!$C$9:$C$87,0)+RIGHT($E45),0))\n/SUM(AX$10:AX$11)","v":0},{"$f":"IF(INDEX(PC_MAPPING,RIGHT($C41,1),MATCH($E$2,'Data by Building Type'!$D$22:$F$22,0))=\"Yes\",1,0)*\n(AY$10*OFFSET('Efficiency Distributions'!$D$10,MATCH($C41,'Efficiency Distributions'!$C$9:$C$87,0)+RIGHT($E45),0)\n+AY$11*OFFSET('Efficiency Distributions'!$E$10,MATCH($C41,'Efficiency Distributions'!$C$9:$C$87,0)+RIGHT($E45),0))\n/SUM(AY$10:AY$11)","v":0},{"$f":"IF(INDEX(PC_MAPPING,RIGHT($C41,1),MATCH($E$2,'Data by Building Type'!$D$22:$F$22,0))=\"Yes\",1,0)*\n(AZ$10*OFFSET('Efficiency Distributions'!$D$10,MATCH($C41,'Efficiency Distributions'!$C$9:$C$87,0)+RIGHT($E45),0)\n+AZ$11*OFFSET('Efficiency Distributions'!$E$10,MATCH($C41,'Efficiency Distributions'!$C$9:$C$87,0)+RIGHT($E45),0))\n/SUM(AZ$10:AZ$11)","v":0},{"$f":"IF(INDEX(PC_MAPPING,RIGHT($C41,1),MATCH($E$2,'Data by Building Type'!$D$22:$F$22,0))=\"Yes\",1,0)*\n(BA$10*OFFSET('Efficiency Distributions'!$D$10,MATCH($C41,'Efficiency Distributions'!$C$9:$C$87,0)+RIGHT($E45),0)\n+BA$11*OFFSET('Efficiency Distributions'!$E$10,MATCH($C41,'Efficiency Distributions'!$C$9:$C$87,0)+RIGHT($E45),0))\n/SUM(BA$10:BA$11)","v":0},{"$f":"IF(INDEX(PC_MAPPING,RIGHT($C41,1),MATCH($E$2,'Data by Building Type'!$D$22:$F$22,0))=\"Yes\",1,0)*\n(BB$10*OFFSET('Efficiency Distributions'!$D$10,MATCH($C41,'Efficiency Distributions'!$C$9:$C$87,0)+RIGHT($E45),0)\n+BB$11*OFFSET('Efficiency Distributions'!$E$10,MATCH($C41,'Efficiency Distributions'!$C$9:$C$87,0)+RIGHT($E45),0))\n/SUM(BB$10:BB$11)","v":0},{"$f":"IF(INDEX(PC_MAPPING,RIGHT($C41,1),MATCH($E$2,'Data by Building Type'!$D$22:$F$22,0))=\"Yes\",1,0)*\n(BC$10*OFFSET('Efficiency Distributions'!$D$10,MATCH($C41,'Efficiency Distributions'!$C$9:$C$87,0)+RIGHT($E45),0)\n+BC$11*OFFSET('Efficiency Distributions'!$E$10,MATCH($C41,'Efficiency Distributions'!$C$9:$C$87,0)+RIGHT($E45),0))\n/SUM(BC$10:BC$11)","v":0},{"$f":"IF(INDEX(PC_MAPPING,RIGHT($C41,1),MATCH($E$2,'Data by Building Type'!$D$22:$F$22,0))=\"Yes\",1,0)*\n(BD$10*OFFSET('Efficiency Distributions'!$D$10,MATCH($C41,'Efficiency Distributions'!$C$9:$C$87,0)+RIGHT($E45),0)\n+BD$11*OFFSET('Efficiency Distributions'!$E$10,MATCH($C41,'Efficiency Distributions'!$C$9:$C$87,0)+RIGHT($E45),0))\n/SUM(BD$10:BD$11)","v":0},{"$f":"IF(INDEX(PC_MAPPING,RIGHT($C41,1),MATCH($E$2,'Data by Building Type'!$D$22:$F$22,0))=\"Yes\",1,0)*\n(BE$10*OFFSET('Efficiency Distributions'!$D$10,MATCH($C41,'Efficiency Distributions'!$C$9:$C$87,0)+RIGHT($E45),0)\n+BE$11*OFFSET('Efficiency Distributions'!$E$10,MATCH($C41,'Efficiency Distributions'!$C$9:$C$87,0)+RIGHT($E45),0))\n/SUM(BE$10:BE$11)","v":0},{"$f":"IF(INDEX(PC_MAPPING,RIGHT($C41,1),MATCH($E$2,'Data by Building Type'!$D$22:$F$22,0))=\"Yes\",1,0)*\n(BF$10*OFFSET('Efficiency Distributions'!$D$10,MATCH($C41,'Efficiency Distributions'!$C$9:$C$87,0)+RIGHT($E45),0)\n+BF$11*OFFSET('Efficiency Distributions'!$E$10,MATCH($C41,'Efficiency Distributions'!$C$9:$C$87,0)+RIGHT($E45),0))\n/SUM(BF$10:BF$11)","v":0},{"$f":"IF(INDEX(PC_MAPPING,RIGHT($C41,1),MATCH($E$2,'Data by Building Type'!$D$22:$F$22,0))=\"Yes\",1,0)*\n(BG$10*OFFSET('Efficiency Distributions'!$D$10,MATCH($C41,'Efficiency Distributions'!$C$9:$C$87,0)+RIGHT($E45),0)\n+BG$11*OFFSET('Efficiency Distributions'!$E$10,MATCH($C41,'Efficiency Distributions'!$C$9:$C$87,0)+RIGHT($E45),0))\n/SUM(BG$10:BG$11)","v":0}]
[null,null,null,null,"EL1",{"$f":"IF(INDEX(PC_MAPPING,RIGHT($C41,1),MATCH($E$2,'Data by Building Type'!$D$22:$F$22,0))=\"Yes\",1,0)*\n(F$10*OFFSET('Efficiency Distributions'!$D$10,MATCH($C41,'Efficiency Distributions'!$C$9:$C$87,0)+RIGHT($E46),0)\n+F$11*OFFSET('Efficiency Distributions'!$E$10,MATCH($C41,'Efficiency Distributions'!$C$9:$C$87,0)+RIGHT($E46),0))\n/SUM(F$10:F$11)","v":0},{"$f":"IF(INDEX(PC_MAPPING,RIGHT($C41,1),MATCH($E$2,'Data by Building Type'!$D$22:$F$22,0))=\"Yes\",1,0)*\n(G$10*OFFSET('Efficiency Distributions'!$D$10,MATCH($C41,'Efficiency Distributions'!$C$9:$C$87,0)+RIGHT($E46),0)\n+G$11*OFFSET('Efficiency Distributions'!$E$10,MATCH($C41,'Efficiency Distributions'!$C$9:$C$87,0)+RIGHT($E46),0))\n/SUM(G$10:G$11)","v":0},{"$f":"IF(INDEX(PC_MAPPING,RIGHT($C41,1),MATCH($E$2,'Data by Building Type'!$D$22:$F$22,0))=\"Yes\",1,0)*\n(H$10*OFFSET('Efficiency Distributions'!$D$10,MATCH($C41,'Efficiency Distributions'!$C$9:$C$87,0)+RIGHT($E46),0)\n+H$11*OFFSET('Efficiency Distributions'!$E$10,MATCH($C41,'Efficiency Distributions'!$C$9:$C$87,0)+RIGHT($E46),0))\n/SUM(H$10:H$11)","v":0},{"$f":"IF(INDEX(PC_MAPPING,RIGHT($C41,1),MATCH($E$2,'Data by Building Type'!$D$22:$F$22,0))=\"Yes\",1,0)*\n(I$10*OFFSET('Efficiency Distributions'!$D$10,MATCH($C41,'Efficiency Distributions'!$C$9:$C$87,0)+RIGHT($E46),0)\n+I$11*OFFSET('Efficiency Distributions'!$E$10,MATCH($C41,'Efficiency Distributions'!$C$9:$C$87,0)+RIGHT($E46),0))\n/SUM(I$10:I$11)","v":0},{"$f":"IF(INDEX(PC_MAPPING,RIGHT($C41,1),MATCH($E$2,'Data by Building Type'!$D$22:$F$22,0))=\"Yes\",1,0)*\n(J$10*OFFSET('Efficiency Distributions'!$D$10,MATCH($C41,'Efficiency Distributions'!$C$9:$C$87,0)+RIGHT($E46),0)\n+J$11*OFFSET('Efficiency Distributions'!$E$10,MATCH($C41,'Efficiency Distributions'!$C$9:$C$87,0)+RIGHT($E46),0))\n/SUM(J$10:J$11)","v":0},{"$f":"IF(INDEX(PC_MAPPING,RIGHT($C41,1),MATCH($E$2,'Data by Building Type'!$D$22:$F$22,0))=\"Yes\",1,0)*\n(K$10*OFFSET('Efficiency Distributions'!$D$10,MATCH($C41,'Efficiency Distributions'!$C$9:$C$87,0)+RIGHT($E46),0)\n+K$11*OFFSET('Efficiency Distributions'!$E$10,MATCH($C41,'Efficiency Distributions'!$C$9:$C$87,0)+RIGHT($E46),0))\n/SUM(K$10:K$11)","v":0},{"$f":"IF(INDEX(PC_MAPPING,RIGHT($C41,1),MATCH($E$2,'Data by Building Type'!$D$22:$F$22,0))=\"Yes\",1,0)*\n(L$10*OFFSET('Efficiency Distributions'!$D$10,MATCH($C41,'Efficiency Distributions'!$C$9:$C$87,0)+RIGHT($E46),0)\n+L$11*OFFSET('Efficiency Distributions'!$E$10,MATCH($C41,'Efficiency Distributions'!$C$9:$C$87,0)+RIGHT($E46),0))\n/SUM(L$10:L$11)","v":0},{"$f":"IF(INDEX(PC_MAPPING,RIGHT($C41,1),MATCH($E$2,'Data by Building Type'!$D$22:$F$22,0))=\"Yes\",1,0)*\n(M$10*OFFSET('Efficiency Distributions'!$D$10,MATCH($C41,'Efficiency Distributions'!$C$9:$C$87,0)+RIGHT($E46),0)\n+M$11*OFFSET('Efficiency Distributions'!$E$10,MATCH($C41,'Efficiency Distributions'!$C$9:$C$87,0)+RIGHT($E46),0))\n/SUM(M$10:M$11)","v":0},{"$f":"IF(INDEX(PC_MAPPING,RIGHT($C41,1),MATCH($E$2,'Data by Building Type'!$D$22:$F$22,0))=\"Yes\",1,0)*\n(N$10*OFFSET('Efficiency Distributions'!$D$10,MATCH($C41,'Efficiency Distributions'!$C$9:$C$87,0)+RIGHT($E46),0)\n+N$11*OFFSET('Efficiency Distributions'!$E$10,MATCH($C41,'Efficiency Distributions'!$C$9:$C$87,0)+RIGHT($E46),0))\n/SUM(N$10:N$11)","v":0},{"$f":"IF(INDEX(PC_MAPPING,RIGHT($C41,1),MATCH($E$2,'Data by Building Type'!$D$22:$F$22,0))=\"Yes\",1,0)*\n(O$10*OFFSET('Efficiency Distributions'!$D$10,MATCH($C41,'Efficiency Distributions'!$C$9:$C$87,0)+RIGHT($E46),0)\n+O$11*OFFSET('Efficiency Distributions'!$E$10,MATCH($C41,'Efficiency Distributions'!$C$9:$C$87,0)+RIGHT($E46),0))\n/SUM(O$10:O$11)","v":0},{"$f":"IF(INDEX(PC_MAPPING,RIGHT($C41,1),MATCH($E$2,'Data by Building Type'!$D$22:$F$22,0))=\"Yes\",1,0)*\n(P$10*OFFSET('Efficiency Distributions'!$D$10,MATCH($C41,'Efficiency Distributions'!$C$9:$C$87,0)+RIGHT($E46),0)\n+P$11*OFFSET('Efficiency Distributions'!$E$10,MATCH($C41,'Efficiency Distributions'!$C$9:$C$87,0)+RIGHT($E46),0))\n/SUM(P$10:P$11)","v":0},{"$f":"IF(INDEX(PC_MAPPING,RIGHT($C41,1),MATCH($E$2,'Data by Building Type'!$D$22:$F$22,0))=\"Yes\",1,0)*\n(Q$10*OFFSET('Efficiency Distributions'!$D$10,MATCH($C41,'Efficiency Distributions'!$C$9:$C$87,0)+RIGHT($E46),0)\n+Q$11*OFFSET('Efficiency Distributions'!$E$10,MATCH($C41,'Efficiency Distributions'!$C$9:$C$87,0)+RIGHT($E46),0))\n/SUM(Q$10:Q$11)","v":0},{"$f":"IF(INDEX(PC_MAPPING,RIGHT($C41,1),MATCH($E$2,'Data by Building Type'!$D$22:$F$22,0))=\"Yes\",1,0)*\n(R$10*OFFSET('Efficiency Distributions'!$D$10,MATCH($C41,'Efficiency Distributions'!$C$9:$C$87,0)+RIGHT($E46),0)\n+R$11*OFFSET('Efficiency Distributions'!$E$10,MATCH($C41,'Efficiency Distributions'!$C$9:$C$87,0)+RIGHT($E46),0))\n/SUM(R$10:R$11)","v":0},{"$f":"IF(INDEX(PC_MAPPING,RIGHT($C41,1),MATCH($E$2,'Data by Building Type'!$D$22:$F$22,0))=\"Yes\",1,0)*\n(S$10*OFFSET('Efficiency Distributions'!$D$10,MATCH($C41,'Efficiency Distributions'!$C$9:$C$87,0)+RIGHT($E46),0)\n+S$11*OFFSET('Efficiency Distributions'!$E$10,MATCH($C41,'Efficiency Distributions'!$C$9:$C$87,0)+RIGHT($E46),0))\n/SUM(S$10:S$11)","v":0},{"$f":"IF(INDEX(PC_MAPPING,RIGHT($C41,1),MATCH($E$2,'Data by Building Type'!$D$22:$F$22,0))=\"Yes\",1,0)*\n(T$10*OFFSET('Efficiency Distributions'!$D$10,MATCH($C41,'Efficiency Distributions'!$C$9:$C$87,0)+RIGHT($E46),0)\n+T$11*OFFSET('Efficiency Distributions'!$E$10,MATCH($C41,'Efficiency Distributions'!$C$9:$C$87,0)+RIGHT($E46),0))\n/SUM(T$10:T$11)","v":0},{"$f":"IF(INDEX(PC_MAPPING,RIGHT($C41,1),MATCH($E$2,'Data by Building Type'!$D$22:$F$22,0))=\"Yes\",1,0)*\n(U$10*OFFSET('Efficiency Distributions'!$D$10,MATCH($C41,'Efficiency Distributions'!$C$9:$C$87,0)+RIGHT($E46),0)\n+U$11*OFFSET('Efficiency Distributions'!$E$10,MATCH($C41,'Efficiency Distributions'!$C$9:$C$87,0)+RIGHT($E46),0))\n/SUM(U$10:U$11)","v":0},{"$f":"IF(INDEX(PC_MAPPING,RIGHT($C41,1),MATCH($E$2,'Data by Building Type'!$D$22:$F$22,0))=\"Yes\",1,0)*\n(V$10*OFFSET('Efficiency Distributions'!$D$10,MATCH($C41,'Efficiency Distributions'!$C$9:$C$87,0)+RIGHT($E46),0)\n+V$11*OFFSET('Efficiency Distributions'!$E$10,MATCH($C41,'Efficiency Distributions'!$C$9:$C$87,0)+RIGHT($E46),0))\n/SUM(V$10:V$11)","v":0},{"$f":"IF(INDEX(PC_MAPPING,RIGHT($C41,1),MATCH($E$2,'Data by Building Type'!$D$22:$F$22,0))=\"Yes\",1,0)*\n(W$10*OFFSET('Efficiency Distributions'!$D$10,MATCH($C41,'Efficiency Distributions'!$C$9:$C$87,0)+RIGHT($E46),0)\n+W$11*OFFSET('Efficiency Distributions'!$E$10,MATCH($C41,'Efficiency Distributions'!$C$9:$C$87,0)+RIGHT($E46),0))\n/SUM(W$10:W$11)","v":0},{"$f":"IF(INDEX(PC_MAPPING,RIGHT($C41,1),MATCH($E$2,'Data by Building Type'!$D$22:$F$22,0))=\"Yes\",1,0)*\n(X$10*OFFSET('Efficiency Distributions'!$D$10,MATCH($C41,'Efficiency Distributions'!$C$9:$C$87,0)+RIGHT($E46),0)\n+X$11*OFFSET('Efficiency Distributions'!$E$10,MATCH($C41,'Efficiency Distributions'!$C$9:$C$87,0)+RIGHT($E46),0))\n/SUM(X$10:X$11)","v":0},{"$f":"IF(INDEX(PC_MAPPING,RIGHT($C41,1),MATCH($E$2,'Data by Building Type'!$D$22:$F$22,0))=\"Yes\",1,0)*\n(Y$10*OFFSET('Efficiency Distributions'!$D$10,MATCH($C41,'Efficiency Distributions'!$C$9:$C$87,0)+RIGHT($E46),0)\n+Y$11*OFFSET('Efficiency Distributions'!$E$10,MATCH($C41,'Efficiency Distributions'!$C$9:$C$87,0)+RIGHT($E46),0))\n/SUM(Y$10:Y$11)","v":0},{"$f":"IF(INDEX(PC_MAPPING,RIGHT($C41,1),MATCH($E$2,'Data by Building Type'!$D$22:$F$22,0))=\"Yes\",1,0)*\n(Z$10*OFFSET('Efficiency Distributions'!$D$10,MATCH($C41,'Efficiency Distributions'!$C$9:$C$87,0)+RIGHT($E46),0)\n+Z$11*OFFSET('Efficiency Distributions'!$E$10,MATCH($C41,'Efficiency Distributions'!$C$9:$C$87,0)+RIGHT($E46),0))\n/SUM(Z$10:Z$11)","v":0},{"$f":"IF(INDEX(PC_MAPPING,RIGHT($C41,1),MATCH($E$2,'Data by Building Type'!$D$22:$F$22,0))=\"Yes\",1,0)*\n(AA$10*OFFSET('Efficiency Distributions'!$D$10,MATCH($C41,'Efficiency Distributions'!$C$9:$C$87,0)+RIGHT($E46),0)\n+AA$11*OFFSET('Efficiency Distributions'!$E$10,MATCH($C41,'Efficiency Distributions'!$C$9:$C$87,0)+RIGHT($E46),0))\n/SUM(AA$10:AA$11)","v":0},{"$f":"IF(INDEX(PC_MAPPING,RIGHT($C41,1),MATCH($E$2,'Data by Building Type'!$D$22:$F$22,0))=\"Yes\",1,0)*\n(AB$10*OFFSET('Efficiency Distributions'!$D$10,MATCH($C41,'Efficiency Distributions'!$C$9:$C$87,0)+RIGHT($E46),0)\n+AB$11*OFFSET('Efficiency Distributions'!$E$10,MATCH($C41,'Efficiency Distributions'!$C$9:$C$87,0)+RIGHT($E46),0))\n/SUM(AB$10:AB$11)","v":0},{"$f":"IF(INDEX(PC_MAPPING,RIGHT($C41,1),MATCH($E$2,'Data by Building Type'!$D$22:$F$22,0))=\"Yes\",1,0)*\n(AC$10*OFFSET('Efficiency Distributions'!$D$10,MATCH($C41,'Efficiency Distributions'!$C$9:$C$87,0)+RIGHT($E46),0)\n+AC$11*OFFSET('Efficiency Distributions'!$E$10,MATCH($C41,'Efficiency Distributions'!$C$9:$C$87,0)+RIGHT($E46),0))\n/SUM(AC$10:AC$11)","v":0},{"$f":"IF(INDEX(PC_MAPPING,RIGHT($C41,1),MATCH($E$2,'Data by Building Type'!$D$22:$F$22,0))=\"Yes\",1,0)*\n(AD$10*OFFSET('Efficiency Distributions'!$D$10,MATCH($C41,'Efficiency Distributions'!$C$9:$C$87,0)+RIGHT($E46),0)\n+AD$11*OFFSET('Efficiency Distributions'!$E$10,MATCH($C41,'Efficiency Distributions'!$C$9:$C$87,0)+RIGHT($E46),0))\n/SUM(AD$10:AD$11)","v":0},{"$f":"IF(INDEX(PC_MAPPING,RIGHT($C41,1),MATCH($E$2,'Data by Building Type'!$D$22:$F$22,0))=\"Yes\",1,0)*\n(AE$10*OFFSET('Efficiency Distributions'!$D$10,MATCH($C41,'Efficiency Distributions'!$C$9:$C$87,0)+RIGHT($E46),0)\n+AE$11*OFFSET('Efficiency Distributions'!$E$10,MATCH($C41,'Efficiency Distributions'!$C$9:$C$87,0)+RIGHT($E46),0))\n/SUM(AE$10:AE$11)","v":0},{"$f":"IF(INDEX(PC_MAPPING,RIGHT($C41,1),MATCH($E$2,'Data by Building Type'!$D$22:$F$22,0))=\"Yes\",1,0)*\n(AF$10*OFFSET('Efficiency Distributions'!$D$10,MATCH($C41,'Efficiency Distributions'!$C$9:$C$87,0)+RIGHT($E46),0)\n+AF$11*OFFSET('Efficiency Distributions'!$E$10,MATCH($C41,'Efficiency Distributions'!$C$9:$C$87,0)+RIGHT($E46),0))\n/SUM(AF$10:AF$11)","v":0},{"$f":"IF(INDEX(PC_MAPPING,RIGHT($C41,1),MATCH($E$2,'Data by Building Type'!$D$22:$F$22,0))=\"Yes\",1,0)*\n(AG$10*OFFSET('Efficiency Distributions'!$D$10,MATCH($C41,'Efficiency Distributions'!$C$9:$C$87,0)+RIGHT($E46),0)\n+AG$11*OFFSET('Efficiency Distributions'!$E$10,MATCH($C41,'Efficiency Distributions'!$C$9:$C$87,0)+RIGHT($E46),0))\n/SUM(AG$10:AG$11)","v":0},{"$f":"IF(INDEX(PC_MAPPING,RIGHT($C41,1),MATCH($E$2,'Data by Building Type'!$D$22:$F$22,0))=\"Yes\",1,0)*\n(AH$10*OFFSET('Efficiency Distributions'!$D$10,MATCH($C41,'Efficiency Distributions'!$C$9:$C$87,0)+RIGHT($E46),0)\n+AH$11*OFFSET('Efficiency Distributions'!$E$10,MATCH($C41,'Efficiency Distributions'!$C$9:$C$87,0)+RIGHT($E46),0))\n/SUM(AH$10:AH$11)","v":0},{"$f":"IF(INDEX(PC_MAPPING,RIGHT($C41,1),MATCH($E$2,'Data by Building Type'!$D$22:$F$22,0))=\"Yes\",1,0)*\n(AI$10*OFFSET('Efficiency Distributions'!$D$10,MATCH($C41,'Efficiency Distributions'!$C$9:$C$87,0)+RIGHT($E46),0)\n+AI$11*OFFSET('Efficiency Distributions'!$E$10,MATCH($C41,'Efficiency Distributions'!$C$9:$C$87,0)+RIGHT($E46),0))\n/SUM(AI$10:AI$11)","v":0},{"$f":"IF(INDEX(PC_MAPPING,RIGHT($C41,1),MATCH($E$2,'Data by Building Type'!$D$22:$F$22,0))=\"Yes\",1,0)*\n(AJ$10*OFFSET('Efficiency Distributions'!$D$10,MATCH($C41,'Efficiency Distributions'!$C$9:$C$87,0)+RIGHT($E46),0)\n+AJ$11*OFFSET('Efficiency Distributions'!$E$10,MATCH($C41,'Efficiency Distributions'!$C$9:$C$87,0)+RIGHT($E46),0))\n/SUM(AJ$10:AJ$11)","v":0},{"$f":"IF(INDEX(PC_MAPPING,RIGHT($C41,1),MATCH($E$2,'Data by Building Type'!$D$22:$F$22,0))=\"Yes\",1,0)*\n(AK$10*OFFSET('Efficiency Distributions'!$D$10,MATCH($C41,'Efficiency Distributions'!$C$9:$C$87,0)+RIGHT($E46),0)\n+AK$11*OFFSET('Efficiency Distributions'!$E$10,MATCH($C41,'Efficiency Distributions'!$C$9:$C$87,0)+RIGHT($E46),0))\n/SUM(AK$10:AK$11)","v":0},{"$f":"IF(INDEX(PC_MAPPING,RIGHT($C41,1),MATCH($E$2,'Data by Building Type'!$D$22:$F$22,0))=\"Yes\",1,0)*\n(AL$10*OFFSET('Efficiency Distributions'!$D$10,MATCH($C41,'Efficiency Distributions'!$C$9:$C$87,0)+RIGHT($E46),0)\n+AL$11*OFFSET('Efficiency Distributions'!$E$10,MATCH($C41,'Efficiency Distributions'!$C$9:$C$87,0)+RIGHT($E46),0))\n/SUM(AL$10:AL$11)","v":0},{"$f":"IF(INDEX(PC_MAPPING,RIGHT($C41,1),MATCH($E$2,'Data by Building Type'!$D$22:$F$22,0))=\"Yes\",1,0)*\n(AM$10*OFFSET('Efficiency Distributions'!$D$10,MATCH($C41,'Efficiency Distributions'!$C$9:$C$87,0)+RIGHT($E46),0)\n+AM$11*OFFSET('Efficiency Distributions'!$E$10,MATCH($C41,'Efficiency Distributions'!$C$9:$C$87,0)+RIGHT($E46),0))\n/SUM(AM$10:AM$11)","v":0},{"$f":"IF(INDEX(PC_MAPPING,RIGHT($C41,1),MATCH($E$2,'Data by Building Type'!$D$22:$F$22,0))=\"Yes\",1,0)*\n(AN$10*OFFSET('Efficiency Distributions'!$D$10,MATCH($C41,'Efficiency Distributions'!$C$9:$C$87,0)+RIGHT($E46),0)\n+AN$11*OFFSET('Efficiency Distributions'!$E$10,MATCH($C41,'Efficiency Distributions'!$C$9:$C$87,0)+RIGHT($E46),0))\n/SUM(AN$10:AN$11)","v":0},{"$f":"IF(INDEX(PC_MAPPING,RIGHT($C41,1),MATCH($E$2,'Data by Building Type'!$D$22:$F$22,0))=\"Yes\",1,0)*\n(AO$10*OFFSET('Efficiency Distributions'!$D$10,MATCH($C41,'Efficiency Distributions'!$C$9:$C$87,0)+RIGHT($E46),0)\n+AO$11*OFFSET('Efficiency Distributions'!$E$10,MATCH($C41,'Efficiency Distributions'!$C$9:$C$87,0)+RIGHT($E46),0))\n/SUM(AO$10:AO$11)","v":0},{"$f":"IF(INDEX(PC_MAPPING,RIGHT($C41,1),MATCH($E$2,'Data by Building Type'!$D$22:$F$22,0))=\"Yes\",1,0)*\n(AP$10*OFFSET('Efficiency Distributions'!$D$10,MATCH($C41,'Efficiency Distributions'!$C$9:$C$87,0)+RIGHT($E46),0)\n+AP$11*OFFSET('Efficiency Distributions'!$E$10,MATCH($C41,'Efficiency Distributions'!$C$9:$C$87,0)+RIGHT($E46),0))\n/SUM(AP$10:AP$11)","v":0},{"$f":"IF(INDEX(PC_MAPPING,RIGHT($C41,1),MATCH($E$2,'Data by Building Type'!$D$22:$F$22,0))=\"Yes\",1,0)*\n(AQ$10*OFFSET('Efficiency Distributions'!$D$10,MATCH($C41,'Efficiency Distributions'!$C$9:$C$87,0)+RIGHT($E46),0)\n+AQ$11*OFFSET('Efficiency Distributions'!$E$10,MATCH($C41,'Efficiency Distributions'!$C$9:$C$87,0)+RIGHT($E46),0))\n/SUM(AQ$10:AQ$11)","v":0},{"$f":"IF(INDEX(PC_MAPPING,RIGHT($C41,1),MATCH($E$2,'Data by Building Type'!$D$22:$F$22,0))=\"Yes\",1,0)*\n(AR$10*OFFSET('Efficiency Distributions'!$D$10,MATCH($C41,'Efficiency Distributions'!$C$9:$C$87,0)+RIGHT($E46),0)\n+AR$11*OFFSET('Efficiency Distributions'!$E$10,MATCH($C41,'Efficiency Distributions'!$C$9:$C$87,0)+RIGHT($E46),0))\n/SUM(AR$10:AR$11)","v":0},{"$f":"IF(INDEX(PC_MAPPING,RIGHT($C41,1),MATCH($E$2,'Data by Building Type'!$D$22:$F$22,0))=\"Yes\",1,0)*\n(AS$10*OFFSET('Efficiency Distributions'!$D$10,MATCH($C41,'Efficiency Distributions'!$C$9:$C$87,0)+RIGHT($E46),0)\n+AS$11*OFFSET('Efficiency Distributions'!$E$10,MATCH($C41,'Efficiency Distributions'!$C$9:$C$87,0)+RIGHT($E46),0))\n/SUM(AS$10:AS$11)","v":0},{"$f":"IF(INDEX(PC_MAPPING,RIGHT($C41,1),MATCH($E$2,'Data by Building Type'!$D$22:$F$22,0))=\"Yes\",1,0)*\n(AT$10*OFFSET('Efficiency Distributions'!$D$10,MATCH($C41,'Efficiency Distributions'!$C$9:$C$87,0)+RIGHT($E46),0)\n+AT$11*OFFSET('Efficiency Distributions'!$E$10,MATCH($C41,'Efficiency Distributions'!$C$9:$C$87,0)+RIGHT($E46),0))\n/SUM(AT$10:AT$11)","v":0},{"$f":"IF(INDEX(PC_MAPPING,RIGHT($C41,1),MATCH($E$2,'Data by Building Type'!$D$22:$F$22,0))=\"Yes\",1,0)*\n(AU$10*OFFSET('Efficiency Distributions'!$D$10,MATCH($C41,'Efficiency Distributions'!$C$9:$C$87,0)+RIGHT($E46),0)\n+AU$11*OFFSET('Efficiency Distributions'!$E$10,MATCH($C41,'Efficiency Distributions'!$C$9:$C$87,0)+RIGHT($E46),0))\n/SUM(AU$10:AU$11)","v":0},{"$f":"IF(INDEX(PC_MAPPING,RIGHT($C41,1),MATCH($E$2,'Data by Building Type'!$D$22:$F$22,0))=\"Yes\",1,0)*\n(AV$10*OFFSET('Efficiency Distributions'!$D$10,MATCH($C41,'Efficiency Distributions'!$C$9:$C$87,0)+RIGHT($E46),0)\n+AV$11*OFFSET('Efficiency Distributions'!$E$10,MATCH($C41,'Efficiency Distributions'!$C$9:$C$87,0)+RIGHT($E46),0))\n/SUM(AV$10:AV$11)","v":0},{"$f":"IF(INDEX(PC_MAPPING,RIGHT($C41,1),MATCH($E$2,'Data by Building Type'!$D$22:$F$22,0))=\"Yes\",1,0)*\n(AW$10*OFFSET('Efficiency Distributions'!$D$10,MATCH($C41,'Efficiency Distributions'!$C$9:$C$87,0)+RIGHT($E46),0)\n+AW$11*OFFSET('Efficiency Distributions'!$E$10,MATCH($C41,'Efficiency Distributions'!$C$9:$C$87,0)+RIGHT($E46),0))\n/SUM(AW$10:AW$11)","v":0},{"$f":"IF(INDEX(PC_MAPPING,RIGHT($C41,1),MATCH($E$2,'Data by Building Type'!$D$22:$F$22,0))=\"Yes\",1,0)*\n(AX$10*OFFSET('Efficiency Distributions'!$D$10,MATCH($C41,'Efficiency Distributions'!$C$9:$C$87,0)+RIGHT($E46),0)\n+AX$11*OFFSET('Efficiency Distributions'!$E$10,MATCH($C41,'Efficiency Distributions'!$C$9:$C$87,0)+RIGHT($E46),0))\n/SUM(AX$10:AX$11)","v":0},{"$f":"IF(INDEX(PC_MAPPING,RIGHT($C41,1),MATCH($E$2,'Data by Building Type'!$D$22:$F$22,0))=\"Yes\",1,0)*\n(AY$10*OFFSET('Efficiency Distributions'!$D$10,MATCH($C41,'Efficiency Distributions'!$C$9:$C$87,0)+RIGHT($E46),0)\n+AY$11*OFFSET('Efficiency Distributions'!$E$10,MATCH($C41,'Efficiency Distributions'!$C$9:$C$87,0)+RIGHT($E46),0))\n/SUM(AY$10:AY$11)","v":0},{"$f":"IF(INDEX(PC_MAPPING,RIGHT($C41,1),MATCH($E$2,'Data by Building Type'!$D$22:$F$22,0))=\"Yes\",1,0)*\n(AZ$10*OFFSET('Efficiency Distributions'!$D$10,MATCH($C41,'Efficiency Distributions'!$C$9:$C$87,0)+RIGHT($E46),0)\n+AZ$11*OFFSET('Efficiency Distributions'!$E$10,MATCH($C41,'Efficiency Distributions'!$C$9:$C$87,0)+RIGHT($E46),0))\n/SUM(AZ$10:AZ$11)","v":0},{"$f":"IF(INDEX(PC_MAPPING,RIGHT($C41,1),MATCH($E$2,'Data by Building Type'!$D$22:$F$22,0))=\"Yes\",1,0)*\n(BA$10*OFFSET('Efficiency Distributions'!$D$10,MATCH($C41,'Efficiency Distributions'!$C$9:$C$87,0)+RIGHT($E46),0)\n+BA$11*OFFSET('Efficiency Distributions'!$E$10,MATCH($C41,'Efficiency Distributions'!$C$9:$C$87,0)+RIGHT($E46),0))\n/SUM(BA$10:BA$11)","v":0},{"$f":"IF(INDEX(PC_MAPPING,RIGHT($C41,1),MATCH($E$2,'Data by Building Type'!$D$22:$F$22,0))=\"Yes\",1,0)*\n(BB$10*OFFSET('Efficiency Distributions'!$D$10,MATCH($C41,'Efficiency Distributions'!$C$9:$C$87,0)+RIGHT($E46),0)\n+BB$11*OFFSET('Efficiency Distributions'!$E$10,MATCH($C41,'Efficiency Distributions'!$C$9:$C$87,0)+RIGHT($E46),0))\n/SUM(BB$10:BB$11)","v":0},{"$f":"IF(INDEX(PC_MAPPING,RIGHT($C41,1),MATCH($E$2,'Data by Building Type'!$D$22:$F$22,0))=\"Yes\",1,0)*\n(BC$10*OFFSET('Efficiency Distributions'!$D$10,MATCH($C41,'Efficiency Distributions'!$C$9:$C$87,0)+RIGHT($E46),0)\n+BC$11*OFFSET('Efficiency Distributions'!$E$10,MATCH($C41,'Efficiency Distributions'!$C$9:$C$87,0)+RIGHT($E46),0))\n/SUM(BC$10:BC$11)","v":0},{"$f":"IF(INDEX(PC_MAPPING,RIGHT($C41,1),MATCH($E$2,'Data by Building Type'!$D$22:$F$22,0))=\"Yes\",1,0)*\n(BD$10*OFFSET('Efficiency Distributions'!$D$10,MATCH($C41,'Efficiency Distributions'!$C$9:$C$87,0)+RIGHT($E46),0)\n+BD$11*OFFSET('Efficiency Distributions'!$E$10,MATCH($C41,'Efficiency Distributions'!$C$9:$C$87,0)+RIGHT($E46),0))\n/SUM(BD$10:BD$11)","v":0},{"$f":"IF(INDEX(PC_MAPPING,RIGHT($C41,1),MATCH($E$2,'Data by Building Type'!$D$22:$F$22,0))=\"Yes\",1,0)*\n(BE$10*OFFSET('Efficiency Distributions'!$D$10,MATCH($C41,'Efficiency Distributions'!$C$9:$C$87,0)+RIGHT($E46),0)\n+BE$11*OFFSET('Efficiency Distributions'!$E$10,MATCH($C41,'Efficiency Distributions'!$C$9:$C$87,0)+RIGHT($E46),0))\n/SUM(BE$10:BE$11)","v":0},{"$f":"IF(INDEX(PC_MAPPING,RIGHT($C41,1),MATCH($E$2,'Data by Building Type'!$D$22:$F$22,0))=\"Yes\",1,0)*\n(BF$10*OFFSET('Efficiency Distributions'!$D$10,MATCH($C41,'Efficiency Distributions'!$C$9:$C$87,0)+RIGHT($E46),0)\n+BF$11*OFFSET('Efficiency Distributions'!$E$10,MATCH($C41,'Efficiency Distributions'!$C$9:$C$87,0)+RIGHT($E46),0))\n/SUM(BF$10:BF$11)","v":0},{"$f":"IF(INDEX(PC_MAPPING,RIGHT($C41,1),MATCH($E$2,'Data by Building Type'!$D$22:$F$22,0))=\"Yes\",1,0)*\n(BG$10*OFFSET('Efficiency Distributions'!$D$10,MATCH($C41,'Efficiency Distributions'!$C$9:$C$87,0)+RIGHT($E46),0)\n+BG$11*OFFSET('Efficiency Distributions'!$E$10,MATCH($C41,'Efficiency Distributions'!$C$9:$C$87,0)+RIGHT($E46),0))\n/SUM(BG$10:BG$11)","v":0}]
[null,null,null,null,"EL2",{"$f":"IF(INDEX(PC_MAPPING,RIGHT($C41,1),MATCH($E$2,'Data by Building Type'!$D$22:$F$22,0))=\"Yes\",1,0)*\n(F$10*OFFSET('Efficiency Distributions'!$D$10,MATCH($C41,'Efficiency Distributions'!$C$9:$C$87,0)+RIGHT($E47),0)\n+F$11*OFFSET('Efficiency Distributions'!$E$10,MATCH($C41,'Efficiency Distributions'!$C$9:$C$87,0)+RIGHT($E47),0))\n/SUM(F$10:F$11)","v":0},{"$f":"IF(INDEX(PC_MAPPING,RIGHT($C41,1),MATCH($E$2,'Data by Building Type'!$D$22:$F$22,0))=\"Yes\",1,0)*\n(G$10*OFFSET('Efficiency Distributions'!$D$10,MATCH($C41,'Efficiency Distributions'!$C$9:$C$87,0)+RIGHT($E47),0)\n+G$11*OFFSET('Efficiency Distributions'!$E$10,MATCH($C41,'Efficiency Distributions'!$C$9:$C$87,0)+RIGHT($E47),0))\n/SUM(G$10:G$11)","v":0},{"$f":"IF(INDEX(PC_MAPPING,RIGHT($C41,1),MATCH($E$2,'Data by Building Type'!$D$22:$F$22,0))=\"Yes\",1,0)*\n(H$10*OFFSET('Efficiency Distributions'!$D$10,MATCH($C41,'Efficiency Distributions'!$C$9:$C$87,0)+RIGHT($E47),0)\n+H$11*OFFSET('Efficiency Distributions'!$E$10,MATCH($C41,'Efficiency Distributions'!$C$9:$C$87,0)+RIGHT($E47),0))\n/SUM(H$10:H$11)","v":0},{"$f":"IF(INDEX(PC_MAPPING,RIGHT($C41,1),MATCH($E$2,'Data by Building Type'!$D$22:$F$22,0))=\"Yes\",1,0)*\n(I$10*OFFSET('Efficiency Distributions'!$D$10,MATCH($C41,'Efficiency Distributions'!$C$9:$C$87,0)+RIGHT($E47),0)\n+I$11*OFFSET('Efficiency Distributions'!$E$10,MATCH($C41,'Efficiency Distributions'!$C$9:$C$87,0)+RIGHT($E47),0))\n/SUM(I$10:I$11)","v":0},{"$f":"IF(INDEX(PC_MAPPING,RIGHT($C41,1),MATCH($E$2,'Data by Building Type'!$D$22:$F$22,0))=\"Yes\",1,0)*\n(J$10*OFFSET('Efficiency Distributions'!$D$10,MATCH($C41,'Efficiency Distributions'!$C$9:$C$87,0)+RIGHT($E47),0)\n+J$11*OFFSET('Efficiency Distributions'!$E$10,MATCH($C41,'Efficiency Distributions'!$C$9:$C$87,0)+RIGHT($E47),0))\n/SUM(J$10:J$11)","v":0},{"$f":"IF(INDEX(PC_MAPPING,RIGHT($C41,1),MATCH($E$2,'Data by Building Type'!$D$22:$F$22,0))=\"Yes\",1,0)*\n(K$10*OFFSET('Efficiency Distributions'!$D$10,MATCH($C41,'Efficiency Distributions'!$C$9:$C$87,0)+RIGHT($E47),0)\n+K$11*OFFSET('Efficiency Distributions'!$E$10,MATCH($C41,'Efficiency Distributions'!$C$9:$C$87,0)+RIGHT($E47),0))\n/SUM(K$10:K$11)","v":0},{"$f":"IF(INDEX(PC_MAPPING,RIGHT($C41,1),MATCH($E$2,'Data by Building Type'!$D$22:$F$22,0))=\"Yes\",1,0)*\n(L$10*OFFSET('Efficiency Distributions'!$D$10,MATCH($C41,'Efficiency Distributions'!$C$9:$C$87,0)+RIGHT($E47),0)\n+L$11*OFFSET('Efficiency Distributions'!$E$10,MATCH($C41,'Efficiency Distributions'!$C$9:$C$87,0)+RIGHT($E47),0))\n/SUM(L$10:L$11)","v":0},{"$f":"IF(INDEX(PC_MAPPING,RIGHT($C41,1),MATCH($E$2,'Data by Building Type'!$D$22:$F$22,0))=\"Yes\",1,0)*\n(M$10*OFFSET('Efficiency Distributions'!$D$10,MATCH($C41,'Efficiency Distributions'!$C$9:$C$87,0)+RIGHT($E47),0)\n+M$11*OFFSET('Efficiency Distributions'!$E$10,MATCH($C41,'Efficiency Distributions'!$C$9:$C$87,0)+RIGHT($E47),0))\n/SUM(M$10:M$11)","v":0},{"$f":"IF(INDEX(PC_MAPPING,RIGHT($C41,1),MATCH($E$2,'Data by Building Type'!$D$22:$F$22,0))=\"Yes\",1,0)*\n(N$10*OFFSET('Efficiency Distributions'!$D$10,MATCH($C41,'Efficiency Distributions'!$C$9:$C$87,0)+RIGHT($E47),0)\n+N$11*OFFSET('Efficiency Distributions'!$E$10,MATCH($C41,'Efficiency Distributions'!$C$9:$C$87,0)+RIGHT($E47),0))\n/SUM(N$10:N$11)","v":0},{"$f":"IF(INDEX(PC_MAPPING,RIGHT($C41,1),MATCH($E$2,'Data by Building Type'!$D$22:$F$22,0))=\"Yes\",1,0)*\n(O$10*OFFSET('Efficiency Distributions'!$D$10,MATCH($C41,'Efficiency Distributions'!$C$9:$C$87,0)+RIGHT($E47),0)\n+O$11*OFFSET('Efficiency Distributions'!$E$10,MATCH($C41,'Efficiency Distributions'!$C$9:$C$87,0)+RIGHT($E47),0))\n/SUM(O$10:O$11)","v":0},{"$f":"IF(INDEX(PC_MAPPING,RIGHT($C41,1),MATCH($E$2,'Data by Building Type'!$D$22:$F$22,0))=\"Yes\",1,0)*\n(P$10*OFFSET('Efficiency Distributions'!$D$10,MATCH($C41,'Efficiency Distributions'!$C$9:$C$87,0)+RIGHT($E47),0)\n+P$11*OFFSET('Efficiency Distributions'!$E$10,MATCH($C41,'Efficiency Distributions'!$C$9:$C$87,0)+RIGHT($E47),0))\n/SUM(P$10:P$11)","v":0},{"$f":"IF(INDEX(PC_MAPPING,RIGHT($C41,1),MATCH($E$2,'Data by Building Type'!$D$22:$F$22,0))=\"Yes\",1,0)*\n(Q$10*OFFSET('Efficiency Distributions'!$D$10,MATCH($C41,'Efficiency Distributions'!$C$9:$C$87,0)+RIGHT($E47),0)\n+Q$11*OFFSET('Efficiency Distributions'!$E$10,MATCH($C41,'Efficiency Distributions'!$C$9:$C$87,0)+RIGHT($E47),0))\n/SUM(Q$10:Q$11)","v":0},{"$f":"IF(INDEX(PC_MAPPING,RIGHT($C41,1),MATCH($E$2,'Data by Building Type'!$D$22:$F$22,0))=\"Yes\",1,0)*\n(R$10*OFFSET('Efficiency Distributions'!$D$10,MATCH($C41,'Efficiency Distributions'!$C$9:$C$87,0)+RIGHT($E47),0)\n+R$11*OFFSET('Efficiency Distributions'!$E$10,MATCH($C41,'Efficiency Distributions'!$C$9:$C$87,0)+RIGHT($E47),0))\n/SUM(R$10:R$11)","v":0},{"$f":"IF(INDEX(PC_MAPPING,RIGHT($C41,1),MATCH($E$2,'Data by Building Type'!$D$22:$F$22,0))=\"Yes\",1,0)*\n(S$10*OFFSET('Efficiency Distributions'!$D$10,MATCH($C41,'Efficiency Distributions'!$C$9:$C$87,0)+RIGHT($E47),0)\n+S$11*OFFSET('Efficiency Distributions'!$E$10,MATCH($C41,'Efficiency Distributions'!$C$9:$C$87,0)+RIGHT($E47),0))\n/SUM(S$10:S$11)","v":0},{"$f":"IF(INDEX(PC_MAPPING,RIGHT($C41,1),MATCH($E$2,'Data by Building Type'!$D$22:$F$22,0))=\"Yes\",1,0)*\n(T$10*OFFSET('Efficiency Distributions'!$D$10,MATCH($C41,'Efficiency Distributions'!$C$9:$C$87,0)+RIGHT($E47),0)\n+T$11*OFFSET('Efficiency Distributions'!$E$10,MATCH($C41,'Efficiency Distributions'!$C$9:$C$87,0)+RIGHT($E47),0))\n/SUM(T$10:T$11)","v":0},{"$f":"IF(INDEX(PC_MAPPING,RIGHT($C41,1),MATCH($E$2,'Data by Building Type'!$D$22:$F$22,0))=\"Yes\",1,0)*\n(U$10*OFFSET('Efficiency Distributions'!$D$10,MATCH($C41,'Efficiency Distributions'!$C$9:$C$87,0)+RIGHT($E47),0)\n+U$11*OFFSET('Efficiency Distributions'!$E$10,MATCH($C41,'Efficiency Distributions'!$C$9:$C$87,0)+RIGHT($E47),0))\n/SUM(U$10:U$11)","v":0},{"$f":"IF(INDEX(PC_MAPPING,RIGHT($C41,1),MATCH($E$2,'Data by Building Type'!$D$22:$F$22,0))=\"Yes\",1,0)*\n(V$10*OFFSET('Efficiency Distributions'!$D$10,MATCH($C41,'Efficiency Distributions'!$C$9:$C$87,0)+RIGHT($E47),0)\n+V$11*OFFSET('Efficiency Distributions'!$E$10,MATCH($C41,'Efficiency Distributions'!$C$9:$C$87,0)+RIGHT($E47),0))\n/SUM(V$10:V$11)","v":0},{"$f":"IF(INDEX(PC_MAPPING,RIGHT($C41,1),MATCH($E$2,'Data by Building Type'!$D$22:$F$22,0))=\"Yes\",1,0)*\n(W$10*OFFSET('Efficiency Distributions'!$D$10,MATCH($C41,'Efficiency Distributions'!$C$9:$C$87,0)+RIGHT($E47),0)\n+W$11*OFFSET('Efficiency Distributions'!$E$10,MATCH($C41,'Efficiency Distributions'!$C$9:$C$87,0)+RIGHT($E47),0))\n/SUM(W$10:W$11)","v":0},{"$f":"IF(INDEX(PC_MAPPING,RIGHT($C41,1),MATCH($E$2,'Data by Building Type'!$D$22:$F$22,0))=\"Yes\",1,0)*\n(X$10*OFFSET('Efficiency Distributions'!$D$10,MATCH($C41,'Efficiency Distributions'!$C$9:$C$87,0)+RIGHT($E47),0)\n+X$11*OFFSET('Efficiency Distributions'!$E$10,MATCH($C41,'Efficiency Distributions'!$C$9:$C$87,0)+RIGHT($E47),0))\n/SUM(X$10:X$11)","v":0},{"$f":"IF(INDEX(PC_MAPPING,RIGHT($C41,1),MATCH($E$2,'Data by Building Type'!$D$22:$F$22,0))=\"Yes\",1,0)*\n(Y$10*OFFSET('Efficiency Distributions'!$D$10,MATCH($C41,'Efficiency Distributions'!$C$9:$C$87,0)+RIGHT($E47),0)\n+Y$11*OFFSET('Efficiency Distributions'!$E$10,MATCH($C41,'Efficiency Distributions'!$C$9:$C$87,0)+RIGHT($E47),0))\n/SUM(Y$10:Y$11)","v":0},{"$f":"IF(INDEX(PC_MAPPING,RIGHT($C41,1),MATCH($E$2,'Data by Building Type'!$D$22:$F$22,0))=\"Yes\",1,0)*\n(Z$10*OFFSET('Efficiency Distributions'!$D$10,MATCH($C41,'Efficiency Distributions'!$C$9:$C$87,0)+RIGHT($E47),0)\n+Z$11*OFFSET('Efficiency Distributions'!$E$10,MATCH($C41,'Efficiency Distributions'!$C$9:$C$87,0)+RIGHT($E47),0))\n/SUM(Z$10:Z$11)","v":0},{"$f":"IF(INDEX(PC_MAPPING,RIGHT($C41,1),MATCH($E$2,'Data by Building Type'!$D$22:$F$22,0))=\"Yes\",1,0)*\n(AA$10*OFFSET('Efficiency Distributions'!$D$10,MATCH($C41,'Efficiency Distributions'!$C$9:$C$87,0)+RIGHT($E47),0)\n+AA$11*OFFSET('Efficiency Distributions'!$E$10,MATCH($C41,'Efficiency Distributions'!$C$9:$C$87,0)+RIGHT($E47),0))\n/SUM(AA$10:AA$11)","v":0},{"$f":"IF(INDEX(PC_MAPPING,RIGHT($C41,1),MATCH($E$2,'Data by Building Type'!$D$22:$F$22,0))=\"Yes\",1,0)*\n(AB$10*OFFSET('Efficiency Distributions'!$D$10,MATCH($C41,'Efficiency Distributions'!$C$9:$C$87,0)+RIGHT($E47),0)\n+AB$11*OFFSET('Efficiency Distributions'!$E$10,MATCH($C41,'Efficiency Distributions'!$C$9:$C$87,0)+RIGHT($E47),0))\n/SUM(AB$10:AB$11)","v":0},{"$f":"IF(INDEX(PC_MAPPING,RIGHT($C41,1),MATCH($E$2,'Data by Building Type'!$D$22:$F$22,0))=\"Yes\",1,0)*\n(AC$10*OFFSET('Efficiency Distributions'!$D$10,MATCH($C41,'Efficiency Distributions'!$C$9:$C$87,0)+RIGHT($E47),0)\n+AC$11*OFFSET('Efficiency Distributions'!$E$10,MATCH($C41,'Efficiency Distributions'!$C$9:$C$87,0)+RIGHT($E47),0))\n/SUM(AC$10:AC$11)","v":0},{"$f":"IF(INDEX(PC_MAPPING,RIGHT($C41,1),MATCH($E$2,'Data by Building Type'!$D$22:$F$22,0))=\"Yes\",1,0)*\n(AD$10*OFFSET('Efficiency Distributions'!$D$10,MATCH($C41,'Efficiency Distributions'!$C$9:$C$87,0)+RIGHT($E47),0)\n+AD$11*OFFSET('Efficiency Distributions'!$E$10,MATCH($C41,'Efficiency Distributions'!$C$9:$C$87,0)+RIGHT($E47),0))\n/SUM(AD$10:AD$11)","v":0},{"$f":"IF(INDEX(PC_MAPPING,RIGHT($C41,1),MATCH($E$2,'Data by Building Type'!$D$22:$F$22,0))=\"Yes\",1,0)*\n(AE$10*OFFSET('Efficiency Distributions'!$D$10,MATCH($C41,'Efficiency Distributions'!$C$9:$C$87,0)+RIGHT($E47),0)\n+AE$11*OFFSET('Efficiency Distributions'!$E$10,MATCH($C41,'Efficiency Distributions'!$C$9:$C$87,0)+RIGHT($E47),0))\n/SUM(AE$10:AE$11)","v":0},{"$f":"IF(INDEX(PC_MAPPING,RIGHT($C41,1),MATCH($E$2,'Data by Building Type'!$D$22:$F$22,0))=\"Yes\",1,0)*\n(AF$10*OFFSET('Efficiency Distributions'!$D$10,MATCH($C41,'Efficiency Distributions'!$C$9:$C$87,0)+RIGHT($E47),0)\n+AF$11*OFFSET('Efficiency Distributions'!$E$10,MATCH($C41,'Efficiency Distributions'!$C$9:$C$87,0)+RIGHT($E47),0))\n/SUM(AF$10:AF$11)","v":0},{"$f":"IF(INDEX(PC_MAPPING,RIGHT($C41,1),MATCH($E$2,'Data by Building Type'!$D$22:$F$22,0))=\"Yes\",1,0)*\n(AG$10*OFFSET('Efficiency Distributions'!$D$10,MATCH($C41,'Efficiency Distributions'!$C$9:$C$87,0)+RIGHT($E47),0)\n+AG$11*OFFSET('Efficiency Distributions'!$E$10,MATCH($C41,'Efficiency Distributions'!$C$9:$C$87,0)+RIGHT($E47),0))\n/SUM(AG$10:AG$11)","v":0},{"$f":"IF(INDEX(PC_MAPPING,RIGHT($C41,1),MATCH($E$2,'Data by Building Type'!$D$22:$F$22,0))=\"Yes\",1,0)*\n(AH$10*OFFSET('Efficiency Distributions'!$D$10,MATCH($C41,'Efficiency Distributions'!$C$9:$C$87,0)+RIGHT($E47),0)\n+AH$11*OFFSET('Efficiency Distributions'!$E$10,MATCH($C41,'Efficiency Distributions'!$C$9:$C$87,0)+RIGHT($E47),0))\n/SUM(AH$10:AH$11)","v":0},{"$f":"IF(INDEX(PC_MAPPING,RIGHT($C41,1),MATCH($E$2,'Data by Building Type'!$D$22:$F$22,0))=\"Yes\",1,0)*\n(AI$10*OFFSET('Efficiency Distributions'!$D$10,MATCH($C41,'Efficiency Distributions'!$C$9:$C$87,0)+RIGHT($E47),0)\n+AI$11*OFFSET('Efficiency Distributions'!$E$10,MATCH($C41,'Efficiency Distributions'!$C$9:$C$87,0)+RIGHT($E47),0))\n/SUM(AI$10:AI$11)","v":0},{"$f":"IF(INDEX(PC_MAPPING,RIGHT($C41,1),MATCH($E$2,'Data by Building Type'!$D$22:$F$22,0))=\"Yes\",1,0)*\n(AJ$10*OFFSET('Efficiency Distributions'!$D$10,MATCH($C41,'Efficiency Distributions'!$C$9:$C$87,0)+RIGHT($E47),0)\n+AJ$11*OFFSET('Efficiency Distributions'!$E$10,MATCH($C41,'Efficiency Distributions'!$C$9:$C$87,0)+RIGHT($E47),0))\n/SUM(AJ$10:AJ$11)","v":0},{"$f":"IF(INDEX(PC_MAPPING,RIGHT($C41,1),MATCH($E$2,'Data by Building Type'!$D$22:$F$22,0))=\"Yes\",1,0)*\n(AK$10*OFFSET('Efficiency Distributions'!$D$10,MATCH($C41,'Efficiency Distributions'!$C$9:$C$87,0)+RIGHT($E47),0)\n+AK$11*OFFSET('Efficiency Distributions'!$E$10,MATCH($C41,'Efficiency Distributions'!$C$9:$C$87,0)+RIGHT($E47),0))\n/SUM(AK$10:AK$11)","v":0},{"$f":"IF(INDEX(PC_MAPPING,RIGHT($C41,1),MATCH($E$2,'Data by Building Type'!$D$22:$F$22,0))=\"Yes\",1,0)*\n(AL$10*OFFSET('Efficiency Distributions'!$D$10,MATCH($C41,'Efficiency Distributions'!$C$9:$C$87,0)+RIGHT($E47),0)\n+AL$11*OFFSET('Efficiency Distributions'!$E$10,MATCH($C41,'Efficiency Distributions'!$C$9:$C$87,0)+RIGHT($E47),0))\n/SUM(AL$10:AL$11)","v":0},{"$f":"IF(INDEX(PC_MAPPING,RIGHT($C41,1),MATCH($E$2,'Data by Building Type'!$D$22:$F$22,0))=\"Yes\",1,0)*\n(AM$10*OFFSET('Efficiency Distributions'!$D$10,MATCH($C41,'Efficiency Distributions'!$C$9:$C$87,0)+RIGHT($E47),0)\n+AM$11*OFFSET('Efficiency Distributions'!$E$10,MATCH($C41,'Efficiency Distributions'!$C$9:$C$87,0)+RIGHT($E47),0))\n/SUM(AM$10:AM$11)","v":0},{"$f":"IF(INDEX(PC_MAPPING,RIGHT($C41,1),MATCH($E$2,'Data by Building Type'!$D$22:$F$22,0))=\"Yes\",1,0)*\n(AN$10*OFFSET('Efficiency Distributions'!$D$10,MATCH($C41,'Efficiency Distributions'!$C$9:$C$87,0)+RIGHT($E47),0)\n+AN$11*OFFSET('Efficiency Distributions'!$E$10,MATCH($C41,'Efficiency Distributions'!$C$9:$C$87,0)+RIGHT($E47),0))\n/SUM(AN$10:AN$11)","v":0},{"$f":"IF(INDEX(PC_MAPPING,RIGHT($C41,1),MATCH($E$2,'Data by Building Type'!$D$22:$F$22,0))=\"Yes\",1,0)*\n(AO$10*OFFSET('Efficiency Distributions'!$D$10,MATCH($C41,'Efficiency Distributions'!$C$9:$C$87,0)+RIGHT($E47),0)\n+AO$11*OFFSET('Efficiency Distributions'!$E$10,MATCH($C41,'Efficiency Distributions'!$C$9:$C$87,0)+RIGHT($E47),0))\n/SUM(AO$10:AO$11)","v":0},{"$f":"IF(INDEX(PC_MAPPING,RIGHT($C41,1),MATCH($E$2,'Data by Building Type'!$D$22:$F$22,0))=\"Yes\",1,0)*\n(AP$10*OFFSET('Efficiency Distributions'!$D$10,MATCH($C41,'Efficiency Distributions'!$C$9:$C$87,0)+RIGHT($E47),0)\n+AP$11*OFFSET('Efficiency Distributions'!$E$10,MATCH($C41,'Efficiency Distributions'!$C$9:$C$87,0)+RIGHT($E47),0))\n/SUM(AP$10:AP$11)","v":0},{"$f":"IF(INDEX(PC_MAPPING,RIGHT($C41,1),MATCH($E$2,'Data by Building Type'!$D$22:$F$22,0))=\"Yes\",1,0)*\n(AQ$10*OFFSET('Efficiency Distributions'!$D$10,MATCH($C41,'Efficiency Distributions'!$C$9:$C$87,0)+RIGHT($E47),0)\n+AQ$11*OFFSET('Efficiency Distributions'!$E$10,MATCH($C41,'Efficiency Distributions'!$C$9:$C$87,0)+RIGHT($E47),0))\n/SUM(AQ$10:AQ$11)","v":0},{"$f":"IF(INDEX(PC_MAPPING,RIGHT($C41,1),MATCH($E$2,'Data by Building Type'!$D$22:$F$22,0))=\"Yes\",1,0)*\n(AR$10*OFFSET('Efficiency Distributions'!$D$10,MATCH($C41,'Efficiency Distributions'!$C$9:$C$87,0)+RIGHT($E47),0)\n+AR$11*OFFSET('Efficiency Distributions'!$E$10,MATCH($C41,'Efficiency Distributions'!$C$9:$C$87,0)+RIGHT($E47),0))\n/SUM(AR$10:AR$11)","v":0},{"$f":"IF(INDEX(PC_MAPPING,RIGHT($C41,1),MATCH($E$2,'Data by Building Type'!$D$22:$F$22,0))=\"Yes\",1,0)*\n(AS$10*OFFSET('Efficiency Distributions'!$D$10,MATCH($C41,'Efficiency Distributions'!$C$9:$C$87,0)+RIGHT($E47),0)\n+AS$11*OFFSET('Efficiency Distributions'!$E$10,MATCH($C41,'Efficiency Distributions'!$C$9:$C$87,0)+RIGHT($E47),0))\n/SUM(AS$10:AS$11)","v":0},{"$f":"IF(INDEX(PC_MAPPING,RIGHT($C41,1),MATCH($E$2,'Data by Building Type'!$D$22:$F$22,0))=\"Yes\",1,0)*\n(AT$10*OFFSET('Efficiency Distributions'!$D$10,MATCH($C41,'Efficiency Distributions'!$C$9:$C$87,0)+RIGHT($E47),0)\n+AT$11*OFFSET('Efficiency Distributions'!$E$10,MATCH($C41,'Efficiency Distributions'!$C$9:$C$87,0)+RIGHT($E47),0))\n/SUM(AT$10:AT$11)","v":0},{"$f":"IF(INDEX(PC_MAPPING,RIGHT($C41,1),MATCH($E$2,'Data by Building Type'!$D$22:$F$22,0))=\"Yes\",1,0)*\n(AU$10*OFFSET('Efficiency Distributions'!$D$10,MATCH($C41,'Efficiency Distributions'!$C$9:$C$87,0)+RIGHT($E47),0)\n+AU$11*OFFSET('Efficiency Distributions'!$E$10,MATCH($C41,'Efficiency Distributions'!$C$9:$C$87,0)+RIGHT($E47),0))\n/SUM(AU$10:AU$11)","v":0},{"$f":"IF(INDEX(PC_MAPPING,RIGHT($C41,1),MATCH($E$2,'Data by Building Type'!$D$22:$F$22,0))=\"Yes\",1,0)*\n(AV$10*OFFSET('Efficiency Distributions'!$D$10,MATCH($C41,'Efficiency Distributions'!$C$9:$C$87,0)+RIGHT($E47),0)\n+AV$11*OFFSET('Efficiency Distributions'!$E$10,MATCH($C41,'Efficiency Distributions'!$C$9:$C$87,0)+RIGHT($E47),0))\n/SUM(AV$10:AV$11)","v":0},{"$f":"IF(INDEX(PC_MAPPING,RIGHT($C41,1),MATCH($E$2,'Data by Building Type'!$D$22:$F$22,0))=\"Yes\",1,0)*\n(AW$10*OFFSET('Efficiency Distributions'!$D$10,MATCH($C41,'Efficiency Distributions'!$C$9:$C$87,0)+RIGHT($E47),0)\n+AW$11*OFFSET('Efficiency Distributions'!$E$10,MATCH($C41,'Efficiency Distributions'!$C$9:$C$87,0)+RIGHT($E47),0))\n/SUM(AW$10:AW$11)","v":0},{"$f":"IF(INDEX(PC_MAPPING,RIGHT($C41,1),MATCH($E$2,'Data by Building Type'!$D$22:$F$22,0))=\"Yes\",1,0)*\n(AX$10*OFFSET('Efficiency Distributions'!$D$10,MATCH($C41,'Efficiency Distributions'!$C$9:$C$87,0)+RIGHT($E47),0)\n+AX$11*OFFSET('Efficiency Distributions'!$E$10,MATCH($C41,'Efficiency Distributions'!$C$9:$C$87,0)+RIGHT($E47),0))\n/SUM(AX$10:AX$11)","v":0},{"$f":"IF(INDEX(PC_MAPPING,RIGHT($C41,1),MATCH($E$2,'Data by Building Type'!$D$22:$F$22,0))=\"Yes\",1,0)*\n(AY$10*OFFSET('Efficiency Distributions'!$D$10,MATCH($C41,'Efficiency Distributions'!$C$9:$C$87,0)+RIGHT($E47),0)\n+AY$11*OFFSET('Efficiency Distributions'!$E$10,MATCH($C41,'Efficiency Distributions'!$C$9:$C$87,0)+RIGHT($E47),0))\n/SUM(AY$10:AY$11)","v":0},{"$f":"IF(INDEX(PC_MAPPING,RIGHT($C41,1),MATCH($E$2,'Data by Building Type'!$D$22:$F$22,0))=\"Yes\",1,0)*\n(AZ$10*OFFSET('Efficiency Distributions'!$D$10,MATCH($C41,'Efficiency Distributions'!$C$9:$C$87,0)+RIGHT($E47),0)\n+AZ$11*OFFSET('Efficiency Distributions'!$E$10,MATCH($C41,'Efficiency Distributions'!$C$9:$C$87,0)+RIGHT($E47),0))\n/SUM(AZ$10:AZ$11)","v":0},{"$f":"IF(INDEX(PC_MAPPING,RIGHT($C41,1),MATCH($E$2,'Data by Building Type'!$D$22:$F$22,0))=\"Yes\",1,0)*\n(BA$10*OFFSET('Efficiency Distributions'!$D$10,MATCH($C41,'Efficiency Distributions'!$C$9:$C$87,0)+RIGHT($E47),0)\n+BA$11*OFFSET('Efficiency Distributions'!$E$10,MATCH($C41,'Efficiency Distributions'!$C$9:$C$87,0)+RIGHT($E47),0))\n/SUM(BA$10:BA$11)","v":0},{"$f":"IF(INDEX(PC_MAPPING,RIGHT($C41,1),MATCH($E$2,'Data by Building Type'!$D$22:$F$22,0))=\"Yes\",1,0)*\n(BB$10*OFFSET('Efficiency Distributions'!$D$10,MATCH($C41,'Efficiency Distributions'!$C$9:$C$87,0)+RIGHT($E47),0)\n+BB$11*OFFSET('Efficiency Distributions'!$E$10,MATCH($C41,'Efficiency Distributions'!$C$9:$C$87,0)+RIGHT($E47),0))\n/SUM(BB$10:BB$11)","v":0},{"$f":"IF(INDEX(PC_MAPPING,RIGHT($C41,1),MATCH($E$2,'Data by Building Type'!$D$22:$F$22,0))=\"Yes\",1,0)*\n(BC$10*OFFSET('Efficiency Distributions'!$D$10,MATCH($C41,'Efficiency Distributions'!$C$9:$C$87,0)+RIGHT($E47),0)\n+BC$11*OFFSET('Efficiency Distributions'!$E$10,MATCH($C41,'Efficiency Distributions'!$C$9:$C$87,0)+RIGHT($E47),0))\n/SUM(BC$10:BC$11)","v":0},{"$f":"IF(INDEX(PC_MAPPING,RIGHT($C41,1),MATCH($E$2,'Data by Building Type'!$D$22:$F$22,0))=\"Yes\",1,0)*\n(BD$10*OFFSET('Efficiency Distributions'!$D$10,MATCH($C41,'Efficiency Distributions'!$C$9:$C$87,0)+RIGHT($E47),0)\n+BD$11*OFFSET('Efficiency Distributions'!$E$10,MATCH($C41,'Efficiency Distributions'!$C$9:$C$87,0)+RIGHT($E47),0))\n/SUM(BD$10:BD$11)","v":0},{"$f":"IF(INDEX(PC_MAPPING,RIGHT($C41,1),MATCH($E$2,'Data by Building Type'!$D$22:$F$22,0))=\"Yes\",1,0)*\n(BE$10*OFFSET('Efficiency Distributions'!$D$10,MATCH($C41,'Efficiency Distributions'!$C$9:$C$87,0)+RIGHT($E47),0)\n+BE$11*OFFSET('Efficiency Distributions'!$E$10,MATCH($C41,'Efficiency Distributions'!$C$9:$C$87,0)+RIGHT($E47),0))\n/SUM(BE$10:BE$11)","v":0},{"$f":"IF(INDEX(PC_MAPPING,RIGHT($C41,1),MATCH($E$2,'Data by Building Type'!$D$22:$F$22,0))=\"Yes\",1,0)*\n(BF$10*OFFSET('Efficiency Distributions'!$D$10,MATCH($C41,'Efficiency Distributions'!$C$9:$C$87,0)+RIGHT($E47),0)\n+BF$11*OFFSET('Efficiency Distributions'!$E$10,MATCH($C41,'Efficiency Distributions'!$C$9:$C$87,0)+RIGHT($E47),0))\n/SUM(BF$10:BF$11)","v":0},{"$f":"IF(INDEX(PC_MAPPING,RIGHT($C41,1),MATCH($E$2,'Data by Building Type'!$D$22:$F$22,0))=\"Yes\",1,0)*\n(BG$10*OFFSET('Efficiency Distributions'!$D$10,MATCH($C41,'Efficiency Distributions'!$C$9:$C$87,0)+RIGHT($E47),0)\n+BG$11*OFFSET('Efficiency Distributions'!$E$10,MATCH($C41,'Efficiency Distributions'!$C$9:$C$87,0)+RIGHT($E47),0))\n/SUM(BG$10:BG$11)","v":0}]
[null,null,null,null,"EL3",{"$f":"IF(INDEX(PC_MAPPING,RIGHT($C41,1),MATCH($E$2,'Data by Building Type'!$D$22:$F$22,0))=\"Yes\",1,0)*\n(F$10*OFFSET('Efficiency Distributions'!$D$10,MATCH($C41,'Efficiency Distributions'!$C$9:$C$87,0)+RIGHT($E48),0)\n+F$11*OFFSET('Efficiency Distributions'!$E$10,MATCH($C41,'Efficiency Distributions'!$C$9:$C$87,0)+RIGHT($E48),0))\n/SUM(F$10:F$11)","v":0},{"$f":"IF(INDEX(PC_MAPPING,RIGHT($C41,1),MATCH($E$2,'Data by Building Type'!$D$22:$F$22,0))=\"Yes\",1,0)*\n(G$10*OFFSET('Efficiency Distributions'!$D$10,MATCH($C41,'Efficiency Distributions'!$C$9:$C$87,0)+RIGHT($E48),0)\n+G$11*OFFSET('Efficiency Distributions'!$E$10,MATCH($C41,'Efficiency Distributions'!$C$9:$C$87,0)+RIGHT($E48),0))\n/SUM(G$10:G$11)","v":0},{"$f":"IF(INDEX(PC_MAPPING,RIGHT($C41,1),MATCH($E$2,'Data by Building Type'!$D$22:$F$22,0))=\"Yes\",1,0)*\n(H$10*OFFSET('Efficiency Distributions'!$D$10,MATCH($C41,'Efficiency Distributions'!$C$9:$C$87,0)+RIGHT($E48),0)\n+H$11*OFFSET('Efficiency Distributions'!$E$10,MATCH($C41,'Efficiency Distributions'!$C$9:$C$87,0)+RIGHT($E48),0))\n/SUM(H$10:H$11)","v":0},{"$f":"IF(INDEX(PC_MAPPING,RIGHT($C41,1),MATCH($E$2,'Data by Building Type'!$D$22:$F$22,0))=\"Yes\",1,0)*\n(I$10*OFFSET('Efficiency Distributions'!$D$10,MATCH($C41,'Efficiency Distributions'!$C$9:$C$87,0)+RIGHT($E48),0)\n+I$11*OFFSET('Efficiency Distributions'!$E$10,MATCH($C41,'Efficiency Distributions'!$C$9:$C$87,0)+RIGHT($E48),0))\n/SUM(I$10:I$11)","v":0},{"$f":"IF(INDEX(PC_MAPPING,RIGHT($C41,1),MATCH($E$2,'Data by Building Type'!$D$22:$F$22,0))=\"Yes\",1,0)*\n(J$10*OFFSET('Efficiency Distributions'!$D$10,MATCH($C41,'Efficiency Distributions'!$C$9:$C$87,0)+RIGHT($E48),0)\n+J$11*OFFSET('Efficiency Distributions'!$E$10,MATCH($C41,'Efficiency Distributions'!$C$9:$C$87,0)+RIGHT($E48),0))\n/SUM(J$10:J$11)","v":0},{"$f":"IF(INDEX(PC_MAPPING,RIGHT($C41,1),MATCH($E$2,'Data by Building Type'!$D$22:$F$22,0))=\"Yes\",1,0)*\n(K$10*OFFSET('Efficiency Distributions'!$D$10,MATCH($C41,'Efficiency Distributions'!$C$9:$C$87,0)+RIGHT($E48),0)\n+K$11*OFFSET('Efficiency Distributions'!$E$10,MATCH($C41,'Efficiency Distributions'!$C$9:$C$87,0)+RIGHT($E48),0))\n/SUM(K$10:K$11)","v":0},{"$f":"IF(INDEX(PC_MAPPING,RIGHT($C41,1),MATCH($E$2,'Data by Building Type'!$D$22:$F$22,0))=\"Yes\",1,0)*\n(L$10*OFFSET('Efficiency Distributions'!$D$10,MATCH($C41,'Efficiency Distributions'!$C$9:$C$87,0)+RIGHT($E48),0)\n+L$11*OFFSET('Efficiency Distributions'!$E$10,MATCH($C41,'Efficiency Distributions'!$C$9:$C$87,0)+RIGHT($E48),0))\n/SUM(L$10:L$11)","v":0},{"$f":"IF(INDEX(PC_MAPPING,RIGHT($C41,1),MATCH($E$2,'Data by Building Type'!$D$22:$F$22,0))=\"Yes\",1,0)*\n(M$10*OFFSET('Efficiency Distributions'!$D$10,MATCH($C41,'Efficiency Distributions'!$C$9:$C$87,0)+RIGHT($E48),0)\n+M$11*OFFSET('Efficiency Distributions'!$E$10,MATCH($C41,'Efficiency Distributions'!$C$9:$C$87,0)+RIGHT($E48),0))\n/SUM(M$10:M$11)","v":0},{"$f":"IF(INDEX(PC_MAPPING,RIGHT($C41,1),MATCH($E$2,'Data by Building Type'!$D$22:$F$22,0))=\"Yes\",1,0)*\n(N$10*OFFSET('Efficiency Distributions'!$D$10,MATCH($C41,'Efficiency Distributions'!$C$9:$C$87,0)+RIGHT($E48),0)\n+N$11*OFFSET('Efficiency Distributions'!$E$10,MATCH($C41,'Efficiency Distributions'!$C$9:$C$87,0)+RIGHT($E48),0))\n/SUM(N$10:N$11)","v":0},{"$f":"IF(INDEX(PC_MAPPING,RIGHT($C41,1),MATCH($E$2,'Data by Building Type'!$D$22:$F$22,0))=\"Yes\",1,0)*\n(O$10*OFFSET('Efficiency Distributions'!$D$10,MATCH($C41,'Efficiency Distributions'!$C$9:$C$87,0)+RIGHT($E48),0)\n+O$11*OFFSET('Efficiency Distributions'!$E$10,MATCH($C41,'Efficiency Distributions'!$C$9:$C$87,0)+RIGHT($E48),0))\n/SUM(O$10:O$11)","v":0},{"$f":"IF(INDEX(PC_MAPPING,RIGHT($C41,1),MATCH($E$2,'Data by Building Type'!$D$22:$F$22,0))=\"Yes\",1,0)*\n(P$10*OFFSET('Efficiency Distributions'!$D$10,MATCH($C41,'Efficiency Distributions'!$C$9:$C$87,0)+RIGHT($E48),0)\n+P$11*OFFSET('Efficiency Distributions'!$E$10,MATCH($C41,'Efficiency Distributions'!$C$9:$C$87,0)+RIGHT($E48),0))\n/SUM(P$10:P$11)","v":0},{"$f":"IF(INDEX(PC_MAPPING,RIGHT($C41,1),MATCH($E$2,'Data by Building Type'!$D$22:$F$22,0))=\"Yes\",1,0)*\n(Q$10*OFFSET('Efficiency Distributions'!$D$10,MATCH($C41,'Efficiency Distributions'!$C$9:$C$87,0)+RIGHT($E48),0)\n+Q$11*OFFSET('Efficiency Distributions'!$E$10,MATCH($C41,'Efficiency Distributions'!$C$9:$C$87,0)+RIGHT($E48),0))\n/SUM(Q$10:Q$11)","v":0},{"$f":"IF(INDEX(PC_MAPPING,RIGHT($C41,1),MATCH($E$2,'Data by Building Type'!$D$22:$F$22,0))=\"Yes\",1,0)*\n(R$10*OFFSET('Efficiency Distributions'!$D$10,MATCH($C41,'Efficiency Distributions'!$C$9:$C$87,0)+RIGHT($E48),0)\n+R$11*OFFSET('Efficiency Distributions'!$E$10,MATCH($C41,'Efficiency Distributions'!$C$9:$C$87,0)+RIGHT($E48),0))\n/SUM(R$10:R$11)","v":0},{"$f":"IF(INDEX(PC_MAPPING,RIGHT($C41,1),MATCH($E$2,'Data by Building Type'!$D$22:$F$22,0))=\"Yes\",1,0)*\n(S$10*OFFSET('Efficiency Distributions'!$D$10,MATCH($C41,'Efficiency Distributions'!$C$9:$C$87,0)+RIGHT($E48),0)\n+S$11*OFFSET('Efficiency Distributions'!$E$10,MATCH($C41,'Efficiency Distributions'!$C$9:$C$87,0)+RIGHT($E48),0))\n/SUM(S$10:S$11)","v":0},{"$f":"IF(INDEX(PC_MAPPING,RIGHT($C41,1),MATCH($E$2,'Data by Building Type'!$D$22:$F$22,0))=\"Yes\",1,0)*\n(T$10*OFFSET('Efficiency Distributions'!$D$10,MATCH($C41,'Efficiency Distributions'!$C$9:$C$87,0)+RIGHT($E48),0)\n+T$11*OFFSET('Efficiency Distributions'!$E$10,MATCH($C41,'Efficiency Distributions'!$C$9:$C$87,0)+RIGHT($E48),0))\n/SUM(T$10:T$11)","v":0},{"$f":"IF(INDEX(PC_MAPPING,RIGHT($C41,1),MATCH($E$2,'Data by Building Type'!$D$22:$F$22,0))=\"Yes\",1,0)*\n(U$10*OFFSET('Efficiency Distributions'!$D$10,MATCH($C41,'Efficiency Distributions'!$C$9:$C$87,0)+RIGHT($E48),0)\n+U$11*OFFSET('Efficiency Distributions'!$E$10,MATCH($C41,'Efficiency Distributions'!$C$9:$C$87,0)+RIGHT($E48),0))\n/SUM(U$10:U$11)","v":0},{"$f":"IF(INDEX(PC_MAPPING,RIGHT($C41,1),MATCH($E$2,'Data by Building Type'!$D$22:$F$22,0))=\"Yes\",1,0)*\n(V$10*OFFSET('Efficiency Distributions'!$D$10,MATCH($C41,'Efficiency Distributions'!$C$9:$C$87,0)+RIGHT($E48),0)\n+V$11*OFFSET('Efficiency Distributions'!$E$10,MATCH($C41,'Efficiency Distributions'!$C$9:$C$87,0)+RIGHT($E48),0))\n/SUM(V$10:V$11)","v":0},{"$f":"IF(INDEX(PC_MAPPING,RIGHT($C41,1),MATCH($E$2,'Data by Building Type'!$D$22:$F$22,0))=\"Yes\",1,0)*\n(W$10*OFFSET('Efficiency Distributions'!$D$10,MATCH($C41,'Efficiency Distributions'!$C$9:$C$87,0)+RIGHT($E48),0)\n+W$11*OFFSET('Efficiency Distributions'!$E$10,MATCH($C41,'Efficiency Distributions'!$C$9:$C$87,0)+RIGHT($E48),0))\n/SUM(W$10:W$11)","v":0},{"$f":"IF(INDEX(PC_MAPPING,RIGHT($C41,1),MATCH($E$2,'Data by Building Type'!$D$22:$F$22,0))=\"Yes\",1,0)*\n(X$10*OFFSET('Efficiency Distributions'!$D$10,MATCH($C41,'Efficiency Distributions'!$C$9:$C$87,0)+RIGHT($E48),0)\n+X$11*OFFSET('Efficiency Distributions'!$E$10,MATCH($C41,'Efficiency Distributions'!$C$9:$C$87,0)+RIGHT($E48),0))\n/SUM(X$10:X$11)","v":0},{"$f":"IF(INDEX(PC_MAPPING,RIGHT($C41,1),MATCH($E$2,'Data by Building Type'!$D$22:$F$22,0))=\"Yes\",1,0)*\n(Y$10*OFFSET('Efficiency Distributions'!$D$10,MATCH($C41,'Efficiency Distributions'!$C$9:$C$87,0)+RIGHT($E48),0)\n+Y$11*OFFSET('Efficiency Distributions'!$E$10,MATCH($C41,'Efficiency Distributions'!$C$9:$C$87,0)+RIGHT($E48),0))\n/SUM(Y$10:Y$11)","v":0},{"$f":"IF(INDEX(PC_MAPPING,RIGHT($C41,1),MATCH($E$2,'Data by Building Type'!$D$22:$F$22,0))=\"Yes\",1,0)*\n(Z$10*OFFSET('Efficiency Distributions'!$D$10,MATCH($C41,'Efficiency Distributions'!$C$9:$C$87,0)+RIGHT($E48),0)\n+Z$11*OFFSET('Efficiency Distributions'!$E$10,MATCH($C41,'Efficiency Distributions'!$C$9:$C$87,0)+RIGHT($E48),0))\n/SUM(Z$10:Z$11)","v":0},{"$f":"IF(INDEX(PC_MAPPING,RIGHT($C41,1),MATCH($E$2,'Data by Building Type'!$D$22:$F$22,0))=\"Yes\",1,0)*\n(AA$10*OFFSET('Efficiency Distributions'!$D$10,MATCH($C41,'Efficiency Distributions'!$C$9:$C$87,0)+RIGHT($E48),0)\n+AA$11*OFFSET('Efficiency Distributions'!$E$10,MATCH($C41,'Efficiency Distributions'!$C$9:$C$87,0)+RIGHT($E48),0))\n/SUM(AA$10:AA$11)","v":0},{"$f":"IF(INDEX(PC_MAPPING,RIGHT($C41,1),MATCH($E$2,'Data by Building Type'!$D$22:$F$22,0))=\"Yes\",1,0)*\n(AB$10*OFFSET('Efficiency Distributions'!$D$10,MATCH($C41,'Efficiency Distributions'!$C$9:$C$87,0)+RIGHT($E48),0)\n+AB$11*OFFSET('Efficiency Distributions'!$E$10,MATCH($C41,'Efficiency Distributions'!$C$9:$C$87,0)+RIGHT($E48),0))\n/SUM(AB$10:AB$11)","v":0},{"$f":"IF(INDEX(PC_MAPPING,RIGHT($C41,1),MATCH($E$2,'Data by Building Type'!$D$22:$F$22,0))=\"Yes\",1,0)*\n(AC$10*OFFSET('Efficiency Distributions'!$D$10,MATCH($C41,'Efficiency Distributions'!$C$9:$C$87,0)+RIGHT($E48),0)\n+AC$11*OFFSET('Efficiency Distributions'!$E$10,MATCH($C41,'Efficiency Distributions'!$C$9:$C$87,0)+RIGHT($E48),0))\n/SUM(AC$10:AC$11)","v":0},{"$f":"IF(INDEX(PC_MAPPING,RIGHT($C41,1),MATCH($E$2,'Data by Building Type'!$D$22:$F$22,0))=\"Yes\",1,0)*\n(AD$10*OFFSET('Efficiency Distributions'!$D$10,MATCH($C41,'Efficiency Distributions'!$C$9:$C$87,0)+RIGHT($E48),0)\n+AD$11*OFFSET('Efficiency Distributions'!$E$10,MATCH($C41,'Efficiency Distributions'!$C$9:$C$87,0)+RIGHT($E48),0))\n/SUM(AD$10:AD$11)","v":0},{"$f":"IF(INDEX(PC_MAPPING,RIGHT($C41,1),MATCH($E$2,'Data by Building Type'!$D$22:$F$22,0))=\"Yes\",1,0)*\n(AE$10*OFFSET('Efficiency Distributions'!$D$10,MATCH($C41,'Efficiency Distributions'!$C$9:$C$87,0)+RIGHT($E48),0)\n+AE$11*OFFSET('Efficiency Distributions'!$E$10,MATCH($C41,'Efficiency Distributions'!$C$9:$C$87,0)+RIGHT($E48),0))\n/SUM(AE$10:AE$11)","v":0},{"$f":"IF(INDEX(PC_MAPPING,RIGHT($C41,1),MATCH($E$2,'Data by Building Type'!$D$22:$F$22,0))=\"Yes\",1,0)*\n(AF$10*OFFSET('Efficiency Distributions'!$D$10,MATCH($C41,'Efficiency Distributions'!$C$9:$C$87,0)+RIGHT($E48),0)\n+AF$11*OFFSET('Efficiency Distributions'!$E$10,MATCH($C41,'Efficiency Distributions'!$C$9:$C$87,0)+RIGHT($E48),0))\n/SUM(AF$10:AF$11)","v":0},{"$f":"IF(INDEX(PC_MAPPING,RIGHT($C41,1),MATCH($E$2,'Data by Building Type'!$D$22:$F$22,0))=\"Yes\",1,0)*\n(AG$10*OFFSET('Efficiency Distributions'!$D$10,MATCH($C41,'Efficiency Distributions'!$C$9:$C$87,0)+RIGHT($E48),0)\n+AG$11*OFFSET('Efficiency Distributions'!$E$10,MATCH($C41,'Efficiency Distributions'!$C$9:$C$87,0)+RIGHT($E48),0))\n/SUM(AG$10:AG$11)","v":0},{"$f":"IF(INDEX(PC_MAPPING,RIGHT($C41,1),MATCH($E$2,'Data by Building Type'!$D$22:$F$22,0))=\"Yes\",1,0)*\n(AH$10*OFFSET('Efficiency Distributions'!$D$10,MATCH($C41,'Efficiency Distributions'!$C$9:$C$87,0)+RIGHT($E48),0)\n+AH$11*OFFSET('Efficiency Distributions'!$E$10,MATCH($C41,'Efficiency Distributions'!$C$9:$C$87,0)+RIGHT($E48),0))\n/SUM(AH$10:AH$11)","v":0},{"$f":"IF(INDEX(PC_MAPPING,RIGHT($C41,1),MATCH($E$2,'Data by Building Type'!$D$22:$F$22,0))=\"Yes\",1,0)*\n(AI$10*OFFSET('Efficiency Distributions'!$D$10,MATCH($C41,'Efficiency Distributions'!$C$9:$C$87,0)+RIGHT($E48),0)\n+AI$11*OFFSET('Efficiency Distributions'!$E$10,MATCH($C41,'Efficiency Distributions'!$C$9:$C$87,0)+RIGHT($E48),0))\n/SUM(AI$10:AI$11)","v":0},{"$f":"IF(INDEX(PC_MAPPING,RIGHT($C41,1),MATCH($E$2,'Data by Building Type'!$D$22:$F$22,0))=\"Yes\",1,0)*\n(AJ$10*OFFSET('Efficiency Distributions'!$D$10,MATCH($C41,'Efficiency Distributions'!$C$9:$C$87,0)+RIGHT($E48),0)\n+AJ$11*OFFSET('Efficiency Distributions'!$E$10,MATCH($C41,'Efficiency Distributions'!$C$9:$C$87,0)+RIGHT($E48),0))\n/SUM(AJ$10:AJ$11)","v":0},{"$f":"IF(INDEX(PC_MAPPING,RIGHT($C41,1),MATCH($E$2,'Data by Building Type'!$D$22:$F$22,0))=\"Yes\",1,0)*\n(AK$10*OFFSET('Efficiency Distributions'!$D$10,MATCH($C41,'Efficiency Distributions'!$C$9:$C$87,0)+RIGHT($E48),0)\n+AK$11*OFFSET('Efficiency Distributions'!$E$10,MATCH($C41,'Efficiency Distributions'!$C$9:$C$87,0)+RIGHT($E48),0))\n/SUM(AK$10:AK$11)","v":0},{"$f":"IF(INDEX(PC_MAPPING,RIGHT($C41,1),MATCH($E$2,'Data by Building Type'!$D$22:$F$22,0))=\"Yes\",1,0)*\n(AL$10*OFFSET('Efficiency Distributions'!$D$10,MATCH($C41,'Efficiency Distributions'!$C$9:$C$87,0)+RIGHT($E48),0)\n+AL$11*OFFSET('Efficiency Distributions'!$E$10,MATCH($C41,'Efficiency Distributions'!$C$9:$C$87,0)+RIGHT($E48),0))\n/SUM(AL$10:AL$11)","v":0},{"$f":"IF(INDEX(PC_MAPPING,RIGHT($C41,1),MATCH($E$2,'Data by Building Type'!$D$22:$F$22,0))=\"Yes\",1,0)*\n(AM$10*OFFSET('Efficiency Distributions'!$D$10,MATCH($C41,'Efficiency Distributions'!$C$9:$C$87,0)+RIGHT($E48),0)\n+AM$11*OFFSET('Efficiency Distributions'!$E$10,MATCH($C41,'Efficiency Distributions'!$C$9:$C$87,0)+RIGHT($E48),0))\n/SUM(AM$10:AM$11)","v":0},{"$f":"IF(INDEX(PC_MAPPING,RIGHT($C41,1),MATCH($E$2,'Data by Building Type'!$D$22:$F$22,0))=\"Yes\",1,0)*\n(AN$10*OFFSET('Efficiency Distributions'!$D$10,MATCH($C41,'Efficiency Distributions'!$C$9:$C$87,0)+RIGHT($E48),0)\n+AN$11*OFFSET('Efficiency Distributions'!$E$10,MATCH($C41,'Efficiency Distributions'!$C$9:$C$87,0)+RIGHT($E48),0))\n/SUM(AN$10:AN$11)","v":0},{"$f":"IF(INDEX(PC_MAPPING,RIGHT($C41,1),MATCH($E$2,'Data by Building Type'!$D$22:$F$22,0))=\"Yes\",1,0)*\n(AO$10*OFFSET('Efficiency Distributions'!$D$10,MATCH($C41,'Efficiency Distributions'!$C$9:$C$87,0)+RIGHT($E48),0)\n+AO$11*OFFSET('Efficiency Distributions'!$E$10,MATCH($C41,'Efficiency Distributions'!$C$9:$C$87,0)+RIGHT($E48),0))\n/SUM(AO$10:AO$11)","v":0},{"$f":"IF(INDEX(PC_MAPPING,RIGHT($C41,1),MATCH($E$2,'Data by Building Type'!$D$22:$F$22,0))=\"Yes\",1,0)*\n(AP$10*OFFSET('Efficiency Distributions'!$D$10,MATCH($C41,'Efficiency Distributions'!$C$9:$C$87,0)+RIGHT($E48),0)\n+AP$11*OFFSET('Efficiency Distributions'!$E$10,MATCH($C41,'Efficiency Distributions'!$C$9:$C$87,0)+RIGHT($E48),0))\n/SUM(AP$10:AP$11)","v":0},{"$f":"IF(INDEX(PC_MAPPING,RIGHT($C41,1),MATCH($E$2,'Data by Building Type'!$D$22:$F$22,0))=\"Yes\",1,0)*\n(AQ$10*OFFSET('Efficiency Distributions'!$D$10,MATCH($C41,'Efficiency Distributions'!$C$9:$C$87,0)+RIGHT($E48),0)\n+AQ$11*OFFSET('Efficiency Distributions'!$E$10,MATCH($C41,'Efficiency Distributions'!$C$9:$C$87,0)+RIGHT($E48),0))\n/SUM(AQ$10:AQ$11)","v":0},{"$f":"IF(INDEX(PC_MAPPING,RIGHT($C41,1),MATCH($E$2,'Data by Building Type'!$D$22:$F$22,0))=\"Yes\",1,0)*\n(AR$10*OFFSET('Efficiency Distributions'!$D$10,MATCH($C41,'Efficiency Distributions'!$C$9:$C$87,0)+RIGHT($E48),0)\n+AR$11*OFFSET('Efficiency Distributions'!$E$10,MATCH($C41,'Efficiency Distributions'!$C$9:$C$87,0)+RIGHT($E48),0))\n/SUM(AR$10:AR$11)","v":0},{"$f":"IF(INDEX(PC_MAPPING,RIGHT($C41,1),MATCH($E$2,'Data by Building Type'!$D$22:$F$22,0))=\"Yes\",1,0)*\n(AS$10*OFFSET('Efficiency Distributions'!$D$10,MATCH($C41,'Efficiency Distributions'!$C$9:$C$87,0)+RIGHT($E48),0)\n+AS$11*OFFSET('Efficiency Distributions'!$E$10,MATCH($C41,'Efficiency Distributions'!$C$9:$C$87,0)+RIGHT($E48),0))\n/SUM(AS$10:AS$11)","v":0},{"$f":"IF(INDEX(PC_MAPPING,RIGHT($C41,1),MATCH($E$2,'Data by Building Type'!$D$22:$F$22,0))=\"Yes\",1,0)*\n(AT$10*OFFSET('Efficiency Distributions'!$D$10,MATCH($C41,'Efficiency Distributions'!$C$9:$C$87,0)+RIGHT($E48),0)\n+AT$11*OFFSET('Efficiency Distributions'!$E$10,MATCH($C41,'Efficiency Distributions'!$C$9:$C$87,0)+RIGHT($E48),0))\n/SUM(AT$10:AT$11)","v":0},{"$f":"IF(INDEX(PC_MAPPING,RIGHT($C41,1),MATCH($E$2,'Data by Building Type'!$D$22:$F$22,0))=\"Yes\",1,0)*\n(AU$10*OFFSET('Efficiency Distributions'!$D$10,MATCH($C41,'Efficiency Distributions'!$C$9:$C$87,0)+RIGHT($E48),0)\n+AU$11*OFFSET('Efficiency Distributions'!$E$10,MATCH($C41,'Efficiency Distributions'!$C$9:$C$87,0)+RIGHT($E48),0))\n/SUM(AU$10:AU$11)","v":0},{"$f":"IF(INDEX(PC_MAPPING,RIGHT($C41,1),MATCH($E$2,'Data by Building Type'!$D$22:$F$22,0))=\"Yes\",1,0)*\n(AV$10*OFFSET('Efficiency Distributions'!$D$10,MATCH($C41,'Efficiency Distributions'!$C$9:$C$87,0)+RIGHT($E48),0)\n+AV$11*OFFSET('Efficiency Distributions'!$E$10,MATCH($C41,'Efficiency Distributions'!$C$9:$C$87,0)+RIGHT($E48),0))\n/SUM(AV$10:AV$11)","v":0},{"$f":"IF(INDEX(PC_MAPPING,RIGHT($C41,1),MATCH($E$2,'Data by Building Type'!$D$22:$F$22,0))=\"Yes\",1,0)*\n(AW$10*OFFSET('Efficiency Distributions'!$D$10,MATCH($C41,'Efficiency Distributions'!$C$9:$C$87,0)+RIGHT($E48),0)\n+AW$11*OFFSET('Efficiency Distributions'!$E$10,MATCH($C41,'Efficiency Distributions'!$C$9:$C$87,0)+RIGHT($E48),0))\n/SUM(AW$10:AW$11)","v":0},{"$f":"IF(INDEX(PC_MAPPING,RIGHT($C41,1),MATCH($E$2,'Data by Building Type'!$D$22:$F$22,0))=\"Yes\",1,0)*\n(AX$10*OFFSET('Efficiency Distributions'!$D$10,MATCH($C41,'Efficiency Distributions'!$C$9:$C$87,0)+RIGHT($E48),0)\n+AX$11*OFFSET('Efficiency Distributions'!$E$10,MATCH($C41,'Efficiency Distributions'!$C$9:$C$87,0)+RIGHT($E48),0))\n/SUM(AX$10:AX$11)","v":0},{"$f":"IF(INDEX(PC_MAPPING,RIGHT($C41,1),MATCH($E$2,'Data by Building Type'!$D$22:$F$22,0))=\"Yes\",1,0)*\n(AY$10*OFFSET('Efficiency Distributions'!$D$10,MATCH($C41,'Efficiency Distributions'!$C$9:$C$87,0)+RIGHT($E48),0)\n+AY$11*OFFSET('Efficiency Distributions'!$E$10,MATCH($C41,'Efficiency Distributions'!$C$9:$C$87,0)+RIGHT($E48),0))\n/SUM(AY$10:AY$11)","v":0},{"$f":"IF(INDEX(PC_MAPPING,RIGHT($C41,1),MATCH($E$2,'Data by Building Type'!$D$22:$F$22,0))=\"Yes\",1,0)*\n(AZ$10*OFFSET('Efficiency Distributions'!$D$10,MATCH($C41,'Efficiency Distributions'!$C$9:$C$87,0)+RIGHT($E48),0)\n+AZ$11*OFFSET('Efficiency Distributions'!$E$10,MATCH($C41,'Efficiency Distributions'!$C$9:$C$87,0)+RIGHT($E48),0))\n/SUM(AZ$10:AZ$11)","v":0},{"$f":"IF(INDEX(PC_MAPPING,RIGHT($C41,1),MATCH($E$2,'Data by Building Type'!$D$22:$F$22,0))=\"Yes\",1,0)*\n(BA$10*OFFSET('Efficiency Distributions'!$D$10,MATCH($C41,'Efficiency Distributions'!$C$9:$C$87,0)+RIGHT($E48),0)\n+BA$11*OFFSET('Efficiency Distributions'!$E$10,MATCH($C41,'Efficiency Distributions'!$C$9:$C$87,0)+RIGHT($E48),0))\n/SUM(BA$10:BA$11)","v":0},{"$f":"IF(INDEX(PC_MAPPING,RIGHT($C41,1),MATCH($E$2,'Data by Building Type'!$D$22:$F$22,0))=\"Yes\",1,0)*\n(BB$10*OFFSET('Efficiency Distributions'!$D$10,MATCH($C41,'Efficiency Distributions'!$C$9:$C$87,0)+RIGHT($E48),0)\n+BB$11*OFFSET('Efficiency Distributions'!$E$10,MATCH($C41,'Efficiency Distributions'!$C$9:$C$87,0)+RIGHT($E48),0))\n/SUM(BB$10:BB$11)","v":0},{"$f":"IF(INDEX(PC_MAPPING,RIGHT($C41,1),MATCH($E$2,'Data by Building Type'!$D$22:$F$22,0))=\"Yes\",1,0)*\n(BC$10*OFFSET('Efficiency Distributions'!$D$10,MATCH($C41,'Efficiency Distributions'!$C$9:$C$87,0)+RIGHT($E48),0)\n+BC$11*OFFSET('Efficiency Distributions'!$E$10,MATCH($C41,'Efficiency Distributions'!$C$9:$C$87,0)+RIGHT($E48),0))\n/SUM(BC$10:BC$11)","v":0},{"$f":"IF(INDEX(PC_MAPPING,RIGHT($C41,1),MATCH($E$2,'Data by Building Type'!$D$22:$F$22,0))=\"Yes\",1,0)*\n(BD$10*OFFSET('Efficiency Distributions'!$D$10,MATCH($C41,'Efficiency Distributions'!$C$9:$C$87,0)+RIGHT($E48),0)\n+BD$11*OFFSET('Efficiency Distributions'!$E$10,MATCH($C41,'Efficiency Distributions'!$C$9:$C$87,0)+RIGHT($E48),0))\n/SUM(BD$10:BD$11)","v":0},{"$f":"IF(INDEX(PC_MAPPING,RIGHT($C41,1),MATCH($E$2,'Data by Building Type'!$D$22:$F$22,0))=\"Yes\",1,0)*\n(BE$10*OFFSET('Efficiency Distributions'!$D$10,MATCH($C41,'Efficiency Distributions'!$C$9:$C$87,0)+RIGHT($E48),0)\n+BE$11*OFFSET('Efficiency Distributions'!$E$10,MATCH($C41,'Efficiency Distributions'!$C$9:$C$87,0)+RIGHT($E48),0))\n/SUM(BE$10:BE$11)","v":0},{"$f":"IF(INDEX(PC_MAPPING,RIGHT($C41,1),MATCH($E$2,'Data by Building Type'!$D$22:$F$22,0))=\"Yes\",1,0)*\n(BF$10*OFFSET('Efficiency Distributions'!$D$10,MATCH($C41,'Efficiency Distributions'!$C$9:$C$87,0)+RIGHT($E48),0)\n+BF$11*OFFSET('Efficiency Distributions'!$E$10,MATCH($C41,'Efficiency Distributions'!$C$9:$C$87,0)+RIGHT($E48),0))\n/SUM(BF$10:BF$11)","v":0},{"$f":"IF(INDEX(PC_MAPPING,RIGHT($C41,1),MATCH($E$2,'Data by Building Type'!$D$22:$F$22,0))=\"Yes\",1,0)*\n(BG$10*OFFSET('Efficiency Distributions'!$D$10,MATCH($C41,'Efficiency Distributions'!$C$9:$C$87,0)+RIGHT($E48),0)\n+BG$11*OFFSET('Efficiency Distributions'!$E$10,MATCH($C41,'Efficiency Distributions'!$C$9:$C$87,0)+RIGHT($E48),0))\n/SUM(BG$10:BG$11)","v":0}]
[null,null,null,null,"EL4",{"$f":"IF(INDEX(PC_MAPPING,RIGHT($C41,1),MATCH($E$2,'Data by Building Type'!$D$22:$F$22,0))=\"Yes\",1,0)*\n(F$10*OFFSET('Efficiency Distributions'!$D$10,MATCH($C41,'Efficiency Distributions'!$C$9:$C$87,0)+RIGHT($E49),0)\n+F$11*OFFSET('Efficiency Distributions'!$E$10,MATCH($C41,'Efficiency Distributions'!$C$9:$C$87,0)+RIGHT($E49),0))\n/SUM(F$10:F$11)","v":0},{"$f":"IF(INDEX(PC_MAPPING,RIGHT($C41,1),MATCH($E$2,'Data by Building Type'!$D$22:$F$22,0))=\"Yes\",1,0)*\n(G$10*OFFSET('Efficiency Distributions'!$D$10,MATCH($C41,'Efficiency Distributions'!$C$9:$C$87,0)+RIGHT($E49),0)\n+G$11*OFFSET('Efficiency Distributions'!$E$10,MATCH($C41,'Efficiency Distributions'!$C$9:$C$87,0)+RIGHT($E49),0))\n/SUM(G$10:G$11)","v":0},{"$f":"IF(INDEX(PC_MAPPING,RIGHT($C41,1),MATCH($E$2,'Data by Building Type'!$D$22:$F$22,0))=\"Yes\",1,0)*\n(H$10*OFFSET('Efficiency Distributions'!$D$10,MATCH($C41,'Efficiency Distributions'!$C$9:$C$87,0)+RIGHT($E49),0)\n+H$11*OFFSET('Efficiency Distributions'!$E$10,MATCH($C41,'Efficiency Distributions'!$C$9:$C$87,0)+RIGHT($E49),0))\n/SUM(H$10:H$11)","v":0},{"$f":"IF(INDEX(PC_MAPPING,RIGHT($C41,1),MATCH($E$2,'Data by Building Type'!$D$22:$F$22,0))=\"Yes\",1,0)*\n(I$10*OFFSET('Efficiency Distributions'!$D$10,MATCH($C41,'Efficiency Distributions'!$C$9:$C$87,0)+RIGHT($E49),0)\n+I$11*OFFSET('Efficiency Distributions'!$E$10,MATCH($C41,'Efficiency Distributions'!$C$9:$C$87,0)+RIGHT($E49),0))\n/SUM(I$10:I$11)","v":0},{"$f":"IF(INDEX(PC_MAPPING,RIGHT($C41,1),MATCH($E$2,'Data by Building Type'!$D$22:$F$22,0))=\"Yes\",1,0)*\n(J$10*OFFSET('Efficiency Distributions'!$D$10,MATCH($C41,'Efficiency Distributions'!$C$9:$C$87,0)+RIGHT($E49),0)\n+J$11*OFFSET('Efficiency Distributions'!$E$10,MATCH($C41,'Efficiency Distributions'!$C$9:$C$87,0)+RIGHT($E49),0))\n/SUM(J$10:J$11)","v":0},{"$f":"IF(INDEX(PC_MAPPING,RIGHT($C41,1),MATCH($E$2,'Data by Building Type'!$D$22:$F$22,0))=\"Yes\",1,0)*\n(K$10*OFFSET('Efficiency Distributions'!$D$10,MATCH($C41,'Efficiency Distributions'!$C$9:$C$87,0)+RIGHT($E49),0)\n+K$11*OFFSET('Efficiency Distributions'!$E$10,MATCH($C41,'Efficiency Distributions'!$C$9:$C$87,0)+RIGHT($E49),0))\n/SUM(K$10:K$11)","v":0},{"$f":"IF(INDEX(PC_MAPPING,RIGHT($C41,1),MATCH($E$2,'Data by Building Type'!$D$22:$F$22,0))=\"Yes\",1,0)*\n(L$10*OFFSET('Efficiency Distributions'!$D$10,MATCH($C41,'Efficiency Distributions'!$C$9:$C$87,0)+RIGHT($E49),0)\n+L$11*OFFSET('Efficiency Distributions'!$E$10,MATCH($C41,'Efficiency Distributions'!$C$9:$C$87,0)+RIGHT($E49),0))\n/SUM(L$10:L$11)","v":0},{"$f":"IF(INDEX(PC_MAPPING,RIGHT($C41,1),MATCH($E$2,'Data by Building Type'!$D$22:$F$22,0))=\"Yes\",1,0)*\n(M$10*OFFSET('Efficiency Distributions'!$D$10,MATCH($C41,'Efficiency Distributions'!$C$9:$C$87,0)+RIGHT($E49),0)\n+M$11*OFFSET('Efficiency Distributions'!$E$10,MATCH($C41,'Efficiency Distributions'!$C$9:$C$87,0)+RIGHT($E49),0))\n/SUM(M$10:M$11)","v":0},{"$f":"IF(INDEX(PC_MAPPING,RIGHT($C41,1),MATCH($E$2,'Data by Building Type'!$D$22:$F$22,0))=\"Yes\",1,0)*\n(N$10*OFFSET('Efficiency Distributions'!$D$10,MATCH($C41,'Efficiency Distributions'!$C$9:$C$87,0)+RIGHT($E49),0)\n+N$11*OFFSET('Efficiency Distributions'!$E$10,MATCH($C41,'Efficiency Distributions'!$C$9:$C$87,0)+RIGHT($E49),0))\n/SUM(N$10:N$11)","v":0},{"$f":"IF(INDEX(PC_MAPPING,RIGHT($C41,1),MATCH($E$2,'Data by Building Type'!$D$22:$F$22,0))=\"Yes\",1,0)*\n(O$10*OFFSET('Efficiency Distributions'!$D$10,MATCH($C41,'Efficiency Distributions'!$C$9:$C$87,0)+RIGHT($E49),0)\n+O$11*OFFSET('Efficiency Distributions'!$E$10,MATCH($C41,'Efficiency Distributions'!$C$9:$C$87,0)+RIGHT($E49),0))\n/SUM(O$10:O$11)","v":0},{"$f":"IF(INDEX(PC_MAPPING,RIGHT($C41,1),MATCH($E$2,'Data by Building Type'!$D$22:$F$22,0))=\"Yes\",1,0)*\n(P$10*OFFSET('Efficiency Distributions'!$D$10,MATCH($C41,'Efficiency Distributions'!$C$9:$C$87,0)+RIGHT($E49),0)\n+P$11*OFFSET('Efficiency Distributions'!$E$10,MATCH($C41,'Efficiency Distributions'!$C$9:$C$87,0)+RIGHT($E49),0))\n/SUM(P$10:P$11)","v":0},{"$f":"IF(INDEX(PC_MAPPING,RIGHT($C41,1),MATCH($E$2,'Data by Building Type'!$D$22:$F$22,0))=\"Yes\",1,0)*\n(Q$10*OFFSET('Efficiency Distributions'!$D$10,MATCH($C41,'Efficiency Distributions'!$C$9:$C$87,0)+RIGHT($E49),0)\n+Q$11*OFFSET('Efficiency Distributions'!$E$10,MATCH($C41,'Efficiency Distributions'!$C$9:$C$87,0)+RIGHT($E49),0))\n/SUM(Q$10:Q$11)","v":0},{"$f":"IF(INDEX(PC_MAPPING,RIGHT($C41,1),MATCH($E$2,'Data by Building Type'!$D$22:$F$22,0))=\"Yes\",1,0)*\n(R$10*OFFSET('Efficiency Distributions'!$D$10,MATCH($C41,'Efficiency Distributions'!$C$9:$C$87,0)+RIGHT($E49),0)\n+R$11*OFFSET('Efficiency Distributions'!$E$10,MATCH($C41,'Efficiency Distributions'!$C$9:$C$87,0)+RIGHT($E49),0))\n/SUM(R$10:R$11)","v":0},{"$f":"IF(INDEX(PC_MAPPING,RIGHT($C41,1),MATCH($E$2,'Data by Building Type'!$D$22:$F$22,0))=\"Yes\",1,0)*\n(S$10*OFFSET('Efficiency Distributions'!$D$10,MATCH($C41,'Efficiency Distributions'!$C$9:$C$87,0)+RIGHT($E49),0)\n+S$11*OFFSET('Efficiency Distributions'!$E$10,MATCH($C41,'Efficiency Distributions'!$C$9:$C$87,0)+RIGHT($E49),0))\n/SUM(S$10:S$11)","v":0},{"$f":"IF(INDEX(PC_MAPPING,RIGHT($C41,1),MATCH($E$2,'Data by Building Type'!$D$22:$F$22,0))=\"Yes\",1,0)*\n(T$10*OFFSET('Efficiency Distributions'!$D$10,MATCH($C41,'Efficiency Distributions'!$C$9:$C$87,0)+RIGHT($E49),0)\n+T$11*OFFSET('Efficiency Distributions'!$E$10,MATCH($C41,'Efficiency Distributions'!$C$9:$C$87,0)+RIGHT($E49),0))\n/SUM(T$10:T$11)","v":0},{"$f":"IF(INDEX(PC_MAPPING,RIGHT($C41,1),MATCH($E$2,'Data by Building Type'!$D$22:$F$22,0))=\"Yes\",1,0)*\n(U$10*OFFSET('Efficiency Distributions'!$D$10,MATCH($C41,'Efficiency Distributions'!$C$9:$C$87,0)+RIGHT($E49),0)\n+U$11*OFFSET('Efficiency Distributions'!$E$10,MATCH($C41,'Efficiency Distributions'!$C$9:$C$87,0)+RIGHT($E49),0))\n/SUM(U$10:U$11)","v":0},{"$f":"IF(INDEX(PC_MAPPING,RIGHT($C41,1),MATCH($E$2,'Data by Building Type'!$D$22:$F$22,0))=\"Yes\",1,0)*\n(V$10*OFFSET('Efficiency Distributions'!$D$10,MATCH($C41,'Efficiency Distributions'!$C$9:$C$87,0)+RIGHT($E49),0)\n+V$11*OFFSET('Efficiency Distributions'!$E$10,MATCH($C41,'Efficiency Distributions'!$C$9:$C$87,0)+RIGHT($E49),0))\n/SUM(V$10:V$11)","v":0},{"$f":"IF(INDEX(PC_MAPPING,RIGHT($C41,1),MATCH($E$2,'Data by Building Type'!$D$22:$F$22,0))=\"Yes\",1,0)*\n(W$10*OFFSET('Efficiency Distributions'!$D$10,MATCH($C41,'Efficiency Distributions'!$C$9:$C$87,0)+RIGHT($E49),0)\n+W$11*OFFSET('Efficiency Distributions'!$E$10,MATCH($C41,'Efficiency Distributions'!$C$9:$C$87,0)+RIGHT($E49),0))\n/SUM(W$10:W$11)","v":0},{"$f":"IF(INDEX(PC_MAPPING,RIGHT($C41,1),MATCH($E$2,'Data by Building Type'!$D$22:$F$22,0))=\"Yes\",1,0)*\n(X$10*OFFSET('Efficiency Distributions'!$D$10,MATCH($C41,'Efficiency Distributions'!$C$9:$C$87,0)+RIGHT($E49),0)\n+X$11*OFFSET('Efficiency Distributions'!$E$10,MATCH($C41,'Efficiency Distributions'!$C$9:$C$87,0)+RIGHT($E49),0))\n/SUM(X$10:X$11)","v":0},{"$f":"IF(INDEX(PC_MAPPING,RIGHT($C41,1),MATCH($E$2,'Data by Building Type'!$D$22:$F$22,0))=\"Yes\",1,0)*\n(Y$10*OFFSET('Efficiency Distributions'!$D$10,MATCH($C41,'Efficiency Distributions'!$C$9:$C$87,0)+RIGHT($E49),0)\n+Y$11*OFFSET('Efficiency Distributions'!$E$10,MATCH($C41,'Efficiency Distributions'!$C$9:$C$87,0)+RIGHT($E49),0))\n/SUM(Y$10:Y$11)","v":0},{"$f":"IF(INDEX(PC_MAPPING,RIGHT($C41,1),MATCH($E$2,'Data by Building Type'!$D$22:$F$22,0))=\"Yes\",1,0)*\n(Z$10*OFFSET('Efficiency Distributions'!$D$10,MATCH($C41,'Efficiency Distributions'!$C$9:$C$87,0)+RIGHT($E49),0)\n+Z$11*OFFSET('Efficiency Distributions'!$E$10,MATCH($C41,'Efficiency Distributions'!$C$9:$C$87,0)+RIGHT($E49),0))\n/SUM(Z$10:Z$11)","v":0},{"$f":"IF(INDEX(PC_MAPPING,RIGHT($C41,1),MATCH($E$2,'Data by Building Type'!$D$22:$F$22,0))=\"Yes\",1,0)*\n(AA$10*OFFSET('Efficiency Distributions'!$D$10,MATCH($C41,'Efficiency Distributions'!$C$9:$C$87,0)+RIGHT($E49),0)\n+AA$11*OFFSET('Efficiency Distributions'!$E$10,MATCH($C41,'Efficiency Distributions'!$C$9:$C$87,0)+RIGHT($E49),0))\n/SUM(AA$10:AA$11)","v":0},{"$f":"IF(INDEX(PC_MAPPING,RIGHT($C41,1),MATCH($E$2,'Data by Building Type'!$D$22:$F$22,0))=\"Yes\",1,0)*\n(AB$10*OFFSET('Efficiency Distributions'!$D$10,MATCH($C41,'Efficiency Distributions'!$C$9:$C$87,0)+RIGHT($E49),0)\n+AB$11*OFFSET('Efficiency Distributions'!$E$10,MATCH($C41,'Efficiency Distributions'!$C$9:$C$87,0)+RIGHT($E49),0))\n/SUM(AB$10:AB$11)","v":0},{"$f":"IF(INDEX(PC_MAPPING,RIGHT($C41,1),MATCH($E$2,'Data by Building Type'!$D$22:$F$22,0))=\"Yes\",1,0)*\n(AC$10*OFFSET('Efficiency Distributions'!$D$10,MATCH($C41,'Efficiency Distributions'!$C$9:$C$87,0)+RIGHT($E49),0)\n+AC$11*OFFSET('Efficiency Distributions'!$E$10,MATCH($C41,'Efficiency Distributions'!$C$9:$C$87,0)+RIGHT($E49),0))\n/SUM(AC$10:AC$11)","v":0},{"$f":"IF(INDEX(PC_MAPPING,RIGHT($C41,1),MATCH($E$2,'Data by Building Type'!$D$22:$F$22,0))=\"Yes\",1,0)*\n(AD$10*OFFSET('Efficiency Distributions'!$D$10,MATCH($C41,'Efficiency Distributions'!$C$9:$C$87,0)+RIGHT($E49),0)\n+AD$11*OFFSET('Efficiency Distributions'!$E$10,MATCH($C41,'Efficiency Distributions'!$C$9:$C$87,0)+RIGHT($E49),0))\n/SUM(AD$10:AD$11)","v":0},{"$f":"IF(INDEX(PC_MAPPING,RIGHT($C41,1),MATCH($E$2,'Data by Building Type'!$D$22:$F$22,0))=\"Yes\",1,0)*\n(AE$10*OFFSET('Efficiency Distributions'!$D$10,MATCH($C41,'Efficiency Distributions'!$C$9:$C$87,0)+RIGHT($E49),0)\n+AE$11*OFFSET('Efficiency Distributions'!$E$10,MATCH($C41,'Efficiency Distributions'!$C$9:$C$87,0)+RIGHT($E49),0))\n/SUM(AE$10:AE$11)","v":0},{"$f":"IF(INDEX(PC_MAPPING,RIGHT($C41,1),MATCH($E$2,'Data by Building Type'!$D$22:$F$22,0))=\"Yes\",1,0)*\n(AF$10*OFFSET('Efficiency Distributions'!$D$10,MATCH($C41,'Efficiency Distributions'!$C$9:$C$87,0)+RIGHT($E49),0)\n+AF$11*OFFSET('Efficiency Distributions'!$E$10,MATCH($C41,'Efficiency Distributions'!$C$9:$C$87,0)+RIGHT($E49),0))\n/SUM(AF$10:AF$11)","v":0},{"$f":"IF(INDEX(PC_MAPPING,RIGHT($C41,1),MATCH($E$2,'Data by Building Type'!$D$22:$F$22,0))=\"Yes\",1,0)*\n(AG$10*OFFSET('Efficiency Distributions'!$D$10,MATCH($C41,'Efficiency Distributions'!$C$9:$C$87,0)+RIGHT($E49),0)\n+AG$11*OFFSET('Efficiency Distributions'!$E$10,MATCH($C41,'Efficiency Distributions'!$C$9:$C$87,0)+RIGHT($E49),0))\n/SUM(AG$10:AG$11)","v":0},{"$f":"IF(INDEX(PC_MAPPING,RIGHT($C41,1),MATCH($E$2,'Data by Building Type'!$D$22:$F$22,0))=\"Yes\",1,0)*\n(AH$10*OFFSET('Efficiency Distributions'!$D$10,MATCH($C41,'Efficiency Distributions'!$C$9:$C$87,0)+RIGHT($E49),0)\n+AH$11*OFFSET('Efficiency Distributions'!$E$10,MATCH($C41,'Efficiency Distributions'!$C$9:$C$87,0)+RIGHT($E49),0))\n/SUM(AH$10:AH$11)","v":0},{"$f":"IF(INDEX(PC_MAPPING,RIGHT($C41,1),MATCH($E$2,'Data by Building Type'!$D$22:$F$22,0))=\"Yes\",1,0)*\n(AI$10*OFFSET('Efficiency Distributions'!$D$10,MATCH($C41,'Efficiency Distributions'!$C$9:$C$87,0)+RIGHT($E49),0)\n+AI$11*OFFSET('Efficiency Distributions'!$E$10,MATCH($C41,'Efficiency Distributions'!$C$9:$C$87,0)+RIGHT($E49),0))\n/SUM(AI$10:AI$11)","v":0},{"$f":"IF(INDEX(PC_MAPPING,RIGHT($C41,1),MATCH($E$2,'Data by Building Type'!$D$22:$F$22,0))=\"Yes\",1,0)*\n(AJ$10*OFFSET('Efficiency Distributions'!$D$10,MATCH($C41,'Efficiency Distributions'!$C$9:$C$87,0)+RIGHT($E49),0)\n+AJ$11*OFFSET('Efficiency Distributions'!$E$10,MATCH($C41,'Efficiency Distributions'!$C$9:$C$87,0)+RIGHT($E49),0))\n/SUM(AJ$10:AJ$11)","v":0},{"$f":"IF(INDEX(PC_MAPPING,RIGHT($C41,1),MATCH($E$2,'Data by Building Type'!$D$22:$F$22,0))=\"Yes\",1,0)*\n(AK$10*OFFSET('Efficiency Distributions'!$D$10,MATCH($C41,'Efficiency Distributions'!$C$9:$C$87,0)+RIGHT($E49),0)\n+AK$11*OFFSET('Efficiency Distributions'!$E$10,MATCH($C41,'Efficiency Distributions'!$C$9:$C$87,0)+RIGHT($E49),0))\n/SUM(AK$10:AK$11)","v":0},{"$f":"IF(INDEX(PC_MAPPING,RIGHT($C41,1),MATCH($E$2,'Data by Building Type'!$D$22:$F$22,0))=\"Yes\",1,0)*\n(AL$10*OFFSET('Efficiency Distributions'!$D$10,MATCH($C41,'Efficiency Distributions'!$C$9:$C$87,0)+RIGHT($E49),0)\n+AL$11*OFFSET('Efficiency Distributions'!$E$10,MATCH($C41,'Efficiency Distributions'!$C$9:$C$87,0)+RIGHT($E49),0))\n/SUM(AL$10:AL$11)","v":0},{"$f":"IF(INDEX(PC_MAPPING,RIGHT($C41,1),MATCH($E$2,'Data by Building Type'!$D$22:$F$22,0))=\"Yes\",1,0)*\n(AM$10*OFFSET('Efficiency Distributions'!$D$10,MATCH($C41,'Efficiency Distributions'!$C$9:$C$87,0)+RIGHT($E49),0)\n+AM$11*OFFSET('Efficiency Distributions'!$E$10,MATCH($C41,'Efficiency Distributions'!$C$9:$C$87,0)+RIGHT($E49),0))\n/SUM(AM$10:AM$11)","v":0},{"$f":"IF(INDEX(PC_MAPPING,RIGHT($C41,1),MATCH($E$2,'Data by Building Type'!$D$22:$F$22,0))=\"Yes\",1,0)*\n(AN$10*OFFSET('Efficiency Distributions'!$D$10,MATCH($C41,'Efficiency Distributions'!$C$9:$C$87,0)+RIGHT($E49),0)\n+AN$11*OFFSET('Efficiency Distributions'!$E$10,MATCH($C41,'Efficiency Distributions'!$C$9:$C$87,0)+RIGHT($E49),0))\n/SUM(AN$10:AN$11)","v":0},{"$f":"IF(INDEX(PC_MAPPING,RIGHT($C41,1),MATCH($E$2,'Data by Building Type'!$D$22:$F$22,0))=\"Yes\",1,0)*\n(AO$10*OFFSET('Efficiency Distributions'!$D$10,MATCH($C41,'Efficiency Distributions'!$C$9:$C$87,0)+RIGHT($E49),0)\n+AO$11*OFFSET('Efficiency Distributions'!$E$10,MATCH($C41,'Efficiency Distributions'!$C$9:$C$87,0)+RIGHT($E49),0))\n/SUM(AO$10:AO$11)","v":0},{"$f":"IF(INDEX(PC_MAPPING,RIGHT($C41,1),MATCH($E$2,'Data by Building Type'!$D$22:$F$22,0))=\"Yes\",1,0)*\n(AP$10*OFFSET('Efficiency Distributions'!$D$10,MATCH($C41,'Efficiency Distributions'!$C$9:$C$87,0)+RIGHT($E49),0)\n+AP$11*OFFSET('Efficiency Distributions'!$E$10,MATCH($C41,'Efficiency Distributions'!$C$9:$C$87,0)+RIGHT($E49),0))\n/SUM(AP$10:AP$11)","v":0},{"$f":"IF(INDEX(PC_MAPPING,RIGHT($C41,1),MATCH($E$2,'Data by Building Type'!$D$22:$F$22,0))=\"Yes\",1,0)*\n(AQ$10*OFFSET('Efficiency Distributions'!$D$10,MATCH($C41,'Efficiency Distributions'!$C$9:$C$87,0)+RIGHT($E49),0)\n+AQ$11*OFFSET('Efficiency Distributions'!$E$10,MATCH($C41,'Efficiency Distributions'!$C$9:$C$87,0)+RIGHT($E49),0))\n/SUM(AQ$10:AQ$11)","v":0},{"$f":"IF(INDEX(PC_MAPPING,RIGHT($C41,1),MATCH($E$2,'Data by Building Type'!$D$22:$F$22,0))=\"Yes\",1,0)*\n(AR$10*OFFSET('Efficiency Distributions'!$D$10,MATCH($C41,'Efficiency Distributions'!$C$9:$C$87,0)+RIGHT($E49),0)\n+AR$11*OFFSET('Efficiency Distributions'!$E$10,MATCH($C41,'Efficiency Distributions'!$C$9:$C$87,0)+RIGHT($E49),0))\n/SUM(AR$10:AR$11)","v":0},{"$f":"IF(INDEX(PC_MAPPING,RIGHT($C41,1),MATCH($E$2,'Data by Building Type'!$D$22:$F$22,0))=\"Yes\",1,0)*\n(AS$10*OFFSET('Efficiency Distributions'!$D$10,MATCH($C41,'Efficiency Distributions'!$C$9:$C$87,0)+RIGHT($E49),0)\n+AS$11*OFFSET('Efficiency Distributions'!$E$10,MATCH($C41,'Efficiency Distributions'!$C$9:$C$87,0)+RIGHT($E49),0))\n/SUM(AS$10:AS$11)","v":0},{"$f":"IF(INDEX(PC_MAPPING,RIGHT($C41,1),MATCH($E$2,'Data by Building Type'!$D$22:$F$22,0))=\"Yes\",1,0)*\n(AT$10*OFFSET('Efficiency Distributions'!$D$10,MATCH($C41,'Efficiency Distributions'!$C$9:$C$87,0)+RIGHT($E49),0)\n+AT$11*OFFSET('Efficiency Distributions'!$E$10,MATCH($C41,'Efficiency Distributions'!$C$9:$C$87,0)+RIGHT($E49),0))\n/SUM(AT$10:AT$11)","v":0},{"$f":"IF(INDEX(PC_MAPPING,RIGHT($C41,1),MATCH($E$2,'Data by Building Type'!$D$22:$F$22,0))=\"Yes\",1,0)*\n(AU$10*OFFSET('Efficiency Distributions'!$D$10,MATCH($C41,'Efficiency Distributions'!$C$9:$C$87,0)+RIGHT($E49),0)\n+AU$11*OFFSET('Efficiency Distributions'!$E$10,MATCH($C41,'Efficiency Distributions'!$C$9:$C$87,0)+RIGHT($E49),0))\n/SUM(AU$10:AU$11)","v":0},{"$f":"IF(INDEX(PC_MAPPING,RIGHT($C41,1),MATCH($E$2,'Data by Building Type'!$D$22:$F$22,0))=\"Yes\",1,0)*\n(AV$10*OFFSET('Efficiency Distributions'!$D$10,MATCH($C41,'Efficiency Distributions'!$C$9:$C$87,0)+RIGHT($E49),0)\n+AV$11*OFFSET('Efficiency Distributions'!$E$10,MATCH($C41,'Efficiency Distributions'!$C$9:$C$87,0)+RIGHT($E49),0))\n/SUM(AV$10:AV$11)","v":0},{"$f":"IF(INDEX(PC_MAPPING,RIGHT($C41,1),MATCH($E$2,'Data by Building Type'!$D$22:$F$22,0))=\"Yes\",1,0)*\n(AW$10*OFFSET('Efficiency Distributions'!$D$10,MATCH($C41,'Efficiency Distributions'!$C$9:$C$87,0)+RIGHT($E49),0)\n+AW$11*OFFSET('Efficiency Distributions'!$E$10,MATCH($C41,'Efficiency Distributions'!$C$9:$C$87,0)+RIGHT($E49),0))\n/SUM(AW$10:AW$11)","v":0},{"$f":"IF(INDEX(PC_MAPPING,RIGHT($C41,1),MATCH($E$2,'Data by Building Type'!$D$22:$F$22,0))=\"Yes\",1,0)*\n(AX$10*OFFSET('Efficiency Distributions'!$D$10,MATCH($C41,'Efficiency Distributions'!$C$9:$C$87,0)+RIGHT($E49),0)\n+AX$11*OFFSET('Efficiency Distributions'!$E$10,MATCH($C41,'Efficiency Distributions'!$C$9:$C$87,0)+RIGHT($E49),0))\n/SUM(AX$10:AX$11)","v":0},{"$f":"IF(INDEX(PC_MAPPING,RIGHT($C41,1),MATCH($E$2,'Data by Building Type'!$D$22:$F$22,0))=\"Yes\",1,0)*\n(AY$10*OFFSET('Efficiency Distributions'!$D$10,MATCH($C41,'Efficiency Distributions'!$C$9:$C$87,0)+RIGHT($E49),0)\n+AY$11*OFFSET('Efficiency Distributions'!$E$10,MATCH($C41,'Efficiency Distributions'!$C$9:$C$87,0)+RIGHT($E49),0))\n/SUM(AY$10:AY$11)","v":0},{"$f":"IF(INDEX(PC_MAPPING,RIGHT($C41,1),MATCH($E$2,'Data by Building Type'!$D$22:$F$22,0))=\"Yes\",1,0)*\n(AZ$10*OFFSET('Efficiency Distributions'!$D$10,MATCH($C41,'Efficiency Distributions'!$C$9:$C$87,0)+RIGHT($E49),0)\n+AZ$11*OFFSET('Efficiency Distributions'!$E$10,MATCH($C41,'Efficiency Distributions'!$C$9:$C$87,0)+RIGHT($E49),0))\n/SUM(AZ$10:AZ$11)","v":0},{"$f":"IF(INDEX(PC_MAPPING,RIGHT($C41,1),MATCH($E$2,'Data by Building Type'!$D$22:$F$22,0))=\"Yes\",1,0)*\n(BA$10*OFFSET('Efficiency Distributions'!$D$10,MATCH($C41,'Efficiency Distributions'!$C$9:$C$87,0)+RIGHT($E49),0)\n+BA$11*OFFSET('Efficiency Distributions'!$E$10,MATCH($C41,'Efficiency Distributions'!$C$9:$C$87,0)+RIGHT($E49),0))\n/SUM(BA$10:BA$11)","v":0},{"$f":"IF(INDEX(PC_MAPPING,RIGHT($C41,1),MATCH($E$2,'Data by Building Type'!$D$22:$F$22,0))=\"Yes\",1,0)*\n(BB$10*OFFSET('Efficiency Distributions'!$D$10,MATCH($C41,'Efficiency Distributions'!$C$9:$C$87,0)+RIGHT($E49),0)\n+BB$11*OFFSET('Efficiency Distributions'!$E$10,MATCH($C41,'Efficiency Distributions'!$C$9:$C$87,0)+RIGHT($E49),0))\n/SUM(BB$10:BB$11)","v":0},{"$f":"IF(INDEX(PC_MAPPING,RIGHT($C41,1),MATCH($E$2,'Data by Building Type'!$D$22:$F$22,0))=\"Yes\",1,0)*\n(BC$10*OFFSET('Efficiency Distributions'!$D$10,MATCH($C41,'Efficiency Distributions'!$C$9:$C$87,0)+RIGHT($E49),0)\n+BC$11*OFFSET('Efficiency Distributions'!$E$10,MATCH($C41,'Efficiency Distributions'!$C$9:$C$87,0)+RIGHT($E49),0))\n/SUM(BC$10:BC$11)","v":0},{"$f":"IF(INDEX(PC_MAPPING,RIGHT($C41,1),MATCH($E$2,'Data by Building Type'!$D$22:$F$22,0))=\"Yes\",1,0)*\n(BD$10*OFFSET('Efficiency Distributions'!$D$10,MATCH($C41,'Efficiency Distributions'!$C$9:$C$87,0)+RIGHT($E49),0)\n+BD$11*OFFSET('Efficiency Distributions'!$E$10,MATCH($C41,'Efficiency Distributions'!$C$9:$C$87,0)+RIGHT($E49),0))\n/SUM(BD$10:BD$11)","v":0},{"$f":"IF(INDEX(PC_MAPPING,RIGHT($C41,1),MATCH($E$2,'Data by Building Type'!$D$22:$F$22,0))=\"Yes\",1,0)*\n(BE$10*OFFSET('Efficiency Distributions'!$D$10,MATCH($C41,'Efficiency Distributions'!$C$9:$C$87,0)+RIGHT($E49),0)\n+BE$11*OFFSET('Efficiency Distributions'!$E$10,MATCH($C41,'Efficiency Distributions'!$C$9:$C$87,0)+RIGHT($E49),0))\n/SUM(BE$10:BE$11)","v":0},{"$f":"IF(INDEX(PC_MAPPING,RIGHT($C41,1),MATCH($E$2,'Data by Building Type'!$D$22:$F$22,0))=\"Yes\",1,0)*\n(BF$10*OFFSET('Efficiency Distributions'!$D$10,MATCH($C41,'Efficiency Distributions'!$C$9:$C$87,0)+RIGHT($E49),0)\n+BF$11*OFFSET('Efficiency Distributions'!$E$10,MATCH($C41,'Efficiency Distributions'!$C$9:$C$87,0)+RIGHT($E49),0))\n/SUM(BF$10:BF$11)","v":0},{"$f":"IF(INDEX(PC_MAPPING,RIGHT($C41,1),MATCH($E$2,'Data by Building Type'!$D$22:$F$22,0))=\"Yes\",1,0)*\n(BG$10*OFFSET('Efficiency Distributions'!$D$10,MATCH($C41,'Efficiency Distributions'!$C$9:$C$87,0)+RIGHT($E49),0)\n+BG$11*OFFSET('Efficiency Distributions'!$E$10,MATCH($C41,'Efficiency Distributions'!$C$9:$C$87,0)+RIGHT($E49),0))\n/SUM(BG$10:BG$11)","v":0}]
[null,null,null,null,"EL5",{"$f":"IF(INDEX(PC_MAPPING,RIGHT($C41,1),MATCH($E$2,'Data by Building Type'!$D$22:$F$22,0))=\"Yes\",1,0)*\n(F$10*OFFSET('Efficiency Distributions'!$D$10,MATCH($C41,'Efficiency Distributions'!$C$9:$C$87,0)+RIGHT($E50),0)\n+F$11*OFFSET('Efficiency Distributions'!$E$10,MATCH($C41,'Efficiency Distributions'!$C$9:$C$87,0)+RIGHT($E50),0))\n/SUM(F$10:F$11)","v":0},{"$f":"IF(INDEX(PC_MAPPING,RIGHT($C41,1),MATCH($E$2,'Data by Building Type'!$D$22:$F$22,0))=\"Yes\",1,0)*\n(G$10*OFFSET('Efficiency Distributions'!$D$10,MATCH($C41,'Efficiency Distributions'!$C$9:$C$87,0)+RIGHT($E50),0)\n+G$11*OFFSET('Efficiency Distributions'!$E$10,MATCH($C41,'Efficiency Distributions'!$C$9:$C$87,0)+RIGHT($E50),0))\n/SUM(G$10:G$11)","v":0},{"$f":"IF(INDEX(PC_MAPPING,RIGHT($C41,1),MATCH($E$2,'Data by Building Type'!$D$22:$F$22,0))=\"Yes\",1,0)*\n(H$10*OFFSET('Efficiency Distributions'!$D$10,MATCH($C41,'Efficiency Distributions'!$C$9:$C$87,0)+RIGHT($E50),0)\n+H$11*OFFSET('Efficiency Distributions'!$E$10,MATCH($C41,'Efficiency Distributions'!$C$9:$C$87,0)+RIGHT($E50),0))\n/SUM(H$10:H$11)","v":0},{"$f":"IF(INDEX(PC_MAPPING,RIGHT($C41,1),MATCH($E$2,'Data by Building Type'!$D$22:$F$22,0))=\"Yes\",1,0)*\n(I$10*OFFSET('Efficiency Distributions'!$D$10,MATCH($C41,'Efficiency Distributions'!$C$9:$C$87,0)+RIGHT($E50),0)\n+I$11*OFFSET('Efficiency Distributions'!$E$10,MATCH($C41,'Efficiency Distributions'!$C$9:$C$87,0)+RIGHT($E50),0))\n/SUM(I$10:I$11)","v":0},{"$f":"IF(INDEX(PC_MAPPING,RIGHT($C41,1),MATCH($E$2,'Data by Building Type'!$D$22:$F$22,0))=\"Yes\",1,0)*\n(J$10*OFFSET('Efficiency Distributions'!$D$10,MATCH($C41,'Efficiency Distributions'!$C$9:$C$87,0)+RIGHT($E50),0)\n+J$11*OFFSET('Efficiency Distributions'!$E$10,MATCH($C41,'Efficiency Distributions'!$C$9:$C$87,0)+RIGHT($E50),0))\n/SUM(J$10:J$11)","v":0},{"$f":"IF(INDEX(PC_MAPPING,RIGHT($C41,1),MATCH($E$2,'Data by Building Type'!$D$22:$F$22,0))=\"Yes\",1,0)*\n(K$10*OFFSET('Efficiency Distributions'!$D$10,MATCH($C41,'Efficiency Distributions'!$C$9:$C$87,0)+RIGHT($E50),0)\n+K$11*OFFSET('Efficiency Distributions'!$E$10,MATCH($C41,'Efficiency Distributions'!$C$9:$C$87,0)+RIGHT($E50),0))\n/SUM(K$10:K$11)","v":0},{"$f":"IF(INDEX(PC_MAPPING,RIGHT($C41,1),MATCH($E$2,'Data by Building Type'!$D$22:$F$22,0))=\"Yes\",1,0)*\n(L$10*OFFSET('Efficiency Distributions'!$D$10,MATCH($C41,'Efficiency Distributions'!$C$9:$C$87,0)+RIGHT($E50),0)\n+L$11*OFFSET('Efficiency Distributions'!$E$10,MATCH($C41,'Efficiency Distributions'!$C$9:$C$87,0)+RIGHT($E50),0))\n/SUM(L$10:L$11)","v":0},{"$f":"IF(INDEX(PC_MAPPING,RIGHT($C41,1),MATCH($E$2,'Data by Building Type'!$D$22:$F$22,0))=\"Yes\",1,0)*\n(M$10*OFFSET('Efficiency Distributions'!$D$10,MATCH($C41,'Efficiency Distributions'!$C$9:$C$87,0)+RIGHT($E50),0)\n+M$11*OFFSET('Efficiency Distributions'!$E$10,MATCH($C41,'Efficiency Distributions'!$C$9:$C$87,0)+RIGHT($E50),0))\n/SUM(M$10:M$11)","v":0},{"$f":"IF(INDEX(PC_MAPPING,RIGHT($C41,1),MATCH($E$2,'Data by Building Type'!$D$22:$F$22,0))=\"Yes\",1,0)*\n(N$10*OFFSET('Efficiency Distributions'!$D$10,MATCH($C41,'Efficiency Distributions'!$C$9:$C$87,0)+RIGHT($E50),0)\n+N$11*OFFSET('Efficiency Distributions'!$E$10,MATCH($C41,'Efficiency Distributions'!$C$9:$C$87,0)+RIGHT($E50),0))\n/SUM(N$10:N$11)","v":0},{"$f":"IF(INDEX(PC_MAPPING,RIGHT($C41,1),MATCH($E$2,'Data by Building Type'!$D$22:$F$22,0))=\"Yes\",1,0)*\n(O$10*OFFSET('Efficiency Distributions'!$D$10,MATCH($C41,'Efficiency Distributions'!$C$9:$C$87,0)+RIGHT($E50),0)\n+O$11*OFFSET('Efficiency Distributions'!$E$10,MATCH($C41,'Efficiency Distributions'!$C$9:$C$87,0)+RIGHT($E50),0))\n/SUM(O$10:O$11)","v":0},{"$f":"IF(INDEX(PC_MAPPING,RIGHT($C41,1),MATCH($E$2,'Data by Building Type'!$D$22:$F$22,0))=\"Yes\",1,0)*\n(P$10*OFFSET('Efficiency Distributions'!$D$10,MATCH($C41,'Efficiency Distributions'!$C$9:$C$87,0)+RIGHT($E50),0)\n+P$11*OFFSET('Efficiency Distributions'!$E$10,MATCH($C41,'Efficiency Distributions'!$C$9:$C$87,0)+RIGHT($E50),0))\n/SUM(P$10:P$11)","v":0},{"$f":"IF(INDEX(PC_MAPPING,RIGHT($C41,1),MATCH($E$2,'Data by Building Type'!$D$22:$F$22,0))=\"Yes\",1,0)*\n(Q$10*OFFSET('Efficiency Distributions'!$D$10,MATCH($C41,'Efficiency Distributions'!$C$9:$C$87,0)+RIGHT($E50),0)\n+Q$11*OFFSET('Efficiency Distributions'!$E$10,MATCH($C41,'Efficiency Distributions'!$C$9:$C$87,0)+RIGHT($E50),0))\n/SUM(Q$10:Q$11)","v":0},{"$f":"IF(INDEX(PC_MAPPING,RIGHT($C41,1),MATCH($E$2,'Data by Building Type'!$D$22:$F$22,0))=\"Yes\",1,0)*\n(R$10*OFFSET('Efficiency Distributions'!$D$10,MATCH($C41,'Efficiency Distributions'!$C$9:$C$87,0)+RIGHT($E50),0)\n+R$11*OFFSET('Efficiency Distributions'!$E$10,MATCH($C41,'Efficiency Distributions'!$C$9:$C$87,0)+RIGHT($E50),0))\n/SUM(R$10:R$11)","v":0},{"$f":"IF(INDEX(PC_MAPPING,RIGHT($C41,1),MATCH($E$2,'Data by Building Type'!$D$22:$F$22,0))=\"Yes\",1,0)*\n(S$10*OFFSET('Efficiency Distributions'!$D$10,MATCH($C41,'Efficiency Distributions'!$C$9:$C$87,0)+RIGHT($E50),0)\n+S$11*OFFSET('Efficiency Distributions'!$E$10,MATCH($C41,'Efficiency Distributions'!$C$9:$C$87,0)+RIGHT($E50),0))\n/SUM(S$10:S$11)","v":0},{"$f":"IF(INDEX(PC_MAPPING,RIGHT($C41,1),MATCH($E$2,'Data by Building Type'!$D$22:$F$22,0))=\"Yes\",1,0)*\n(T$10*OFFSET('Efficiency Distributions'!$D$10,MATCH($C41,'Efficiency Distributions'!$C$9:$C$87,0)+RIGHT($E50),0)\n+T$11*OFFSET('Efficiency Distributions'!$E$10,MATCH($C41,'Efficiency Distributions'!$C$9:$C$87,0)+RIGHT($E50),0))\n/SUM(T$10:T$11)","v":0},{"$f":"IF(INDEX(PC_MAPPING,RIGHT($C41,1),MATCH($E$2,'Data by Building Type'!$D$22:$F$22,0))=\"Yes\",1,0)*\n(U$10*OFFSET('Efficiency Distributions'!$D$10,MATCH($C41,'Efficiency Distributions'!$C$9:$C$87,0)+RIGHT($E50),0)\n+U$11*OFFSET('Efficiency Distributions'!$E$10,MATCH($C41,'Efficiency Distributions'!$C$9:$C$87,0)+RIGHT($E50),0))\n/SUM(U$10:U$11)","v":0},{"$f":"IF(INDEX(PC_MAPPING,RIGHT($C41,1),MATCH($E$2,'Data by Building Type'!$D$22:$F$22,0))=\"Yes\",1,0)*\n(V$10*OFFSET('Efficiency Distributions'!$D$10,MATCH($C41,'Efficiency Distributions'!$C$9:$C$87,0)+RIGHT($E50),0)\n+V$11*OFFSET('Efficiency Distributions'!$E$10,MATCH($C41,'Efficiency Distributions'!$C$9:$C$87,0)+RIGHT($E50),0))\n/SUM(V$10:V$11)","v":0},{"$f":"IF(INDEX(PC_MAPPING,RIGHT($C41,1),MATCH($E$2,'Data by Building Type'!$D$22:$F$22,0))=\"Yes\",1,0)*\n(W$10*OFFSET('Efficiency Distributions'!$D$10,MATCH($C41,'Efficiency Distributions'!$C$9:$C$87,0)+RIGHT($E50),0)\n+W$11*OFFSET('Efficiency Distributions'!$E$10,MATCH($C41,'Efficiency Distributions'!$C$9:$C$87,0)+RIGHT($E50),0))\n/SUM(W$10:W$11)","v":0},{"$f":"IF(INDEX(PC_MAPPING,RIGHT($C41,1),MATCH($E$2,'Data by Building Type'!$D$22:$F$22,0))=\"Yes\",1,0)*\n(X$10*OFFSET('Efficiency Distributions'!$D$10,MATCH($C41,'Efficiency Distributions'!$C$9:$C$87,0)+RIGHT($E50),0)\n+X$11*OFFSET('Efficiency Distributions'!$E$10,MATCH($C41,'Efficiency Distributions'!$C$9:$C$87,0)+RIGHT($E50),0))\n/SUM(X$10:X$11)","v":0},{"$f":"IF(INDEX(PC_MAPPING,RIGHT($C41,1),MATCH($E$2,'Data by Building Type'!$D$22:$F$22,0))=\"Yes\",1,0)*\n(Y$10*OFFSET('Efficiency Distributions'!$D$10,MATCH($C41,'Efficiency Distributions'!$C$9:$C$87,0)+RIGHT($E50),0)\n+Y$11*OFFSET('Efficiency Distributions'!$E$10,MATCH($C41,'Efficiency Distributions'!$C$9:$C$87,0)+RIGHT($E50),0))\n/SUM(Y$10:Y$11)","v":0},{"$f":"IF(INDEX(PC_MAPPING,RIGHT($C41,1),MATCH($E$2,'Data by Building Type'!$D$22:$F$22,0))=\"Yes\",1,0)*\n(Z$10*OFFSET('Efficiency Distributions'!$D$10,MATCH($C41,'Efficiency Distributions'!$C$9:$C$87,0)+RIGHT($E50),0)\n+Z$11*OFFSET('Efficiency Distributions'!$E$10,MATCH($C41,'Efficiency Distributions'!$C$9:$C$87,0)+RIGHT($E50),0))\n/SUM(Z$10:Z$11)","v":0},{"$f":"IF(INDEX(PC_MAPPING,RIGHT($C41,1),MATCH($E$2,'Data by Building Type'!$D$22:$F$22,0))=\"Yes\",1,0)*\n(AA$10*OFFSET('Efficiency Distributions'!$D$10,MATCH($C41,'Efficiency Distributions'!$C$9:$C$87,0)+RIGHT($E50),0)\n+AA$11*OFFSET('Efficiency Distributions'!$E$10,MATCH($C41,'Efficiency Distributions'!$C$9:$C$87,0)+RIGHT($E50),0))\n/SUM(AA$10:AA$11)","v":0},{"$f":"IF(INDEX(PC_MAPPING,RIGHT($C41,1),MATCH($E$2,'Data by Building Type'!$D$22:$F$22,0))=\"Yes\",1,0)*\n(AB$10*OFFSET('Efficiency Distributions'!$D$10,MATCH($C41,'Efficiency Distributions'!$C$9:$C$87,0)+RIGHT($E50),0)\n+AB$11*OFFSET('Efficiency Distributions'!$E$10,MATCH($C41,'Efficiency Distributions'!$C$9:$C$87,0)+RIGHT($E50),0))\n/SUM(AB$10:AB$11)","v":0},{"$f":"IF(INDEX(PC_MAPPING,RIGHT($C41,1),MATCH($E$2,'Data by Building Type'!$D$22:$F$22,0))=\"Yes\",1,0)*\n(AC$10*OFFSET('Efficiency Distributions'!$D$10,MATCH($C41,'Efficiency Distributions'!$C$9:$C$87,0)+RIGHT($E50),0)\n+AC$11*OFFSET('Efficiency Distributions'!$E$10,MATCH($C41,'Efficiency Distributions'!$C$9:$C$87,0)+RIGHT($E50),0))\n/SUM(AC$10:AC$11)","v":0},{"$f":"IF(INDEX(PC_MAPPING,RIGHT($C41,1),MATCH($E$2,'Data by Building Type'!$D$22:$F$22,0))=\"Yes\",1,0)*\n(AD$10*OFFSET('Efficiency Distributions'!$D$10,MATCH($C41,'Efficiency Distributions'!$C$9:$C$87,0)+RIGHT($E50),0)\n+AD$11*OFFSET('Efficiency Distributions'!$E$10,MATCH($C41,'Efficiency Distributions'!$C$9:$C$87,0)+RIGHT($E50),0))\n/SUM(AD$10:AD$11)","v":0},{"$f":"IF(INDEX(PC_MAPPING,RIGHT($C41,1),MATCH($E$2,'Data by Building Type'!$D$22:$F$22,0))=\"Yes\",1,0)*\n(AE$10*OFFSET('Efficiency Distributions'!$D$10,MATCH($C41,'Efficiency Distributions'!$C$9:$C$87,0)+RIGHT($E50),0)\n+AE$11*OFFSET('Efficiency Distributions'!$E$10,MATCH($C41,'Efficiency Distributions'!$C$9:$C$87,0)+RIGHT($E50),0))\n/SUM(AE$10:AE$11)","v":0},{"$f":"IF(INDEX(PC_MAPPING,RIGHT($C41,1),MATCH($E$2,'Data by Building Type'!$D$22:$F$22,0))=\"Yes\",1,0)*\n(AF$10*OFFSET('Efficiency Distributions'!$D$10,MATCH($C41,'Efficiency Distributions'!$C$9:$C$87,0)+RIGHT($E50),0)\n+AF$11*OFFSET('Efficiency Distributions'!$E$10,MATCH($C41,'Efficiency Distributions'!$C$9:$C$87,0)+RIGHT($E50),0))\n/SUM(AF$10:AF$11)","v":0},{"$f":"IF(INDEX(PC_MAPPING,RIGHT($C41,1),MATCH($E$2,'Data by Building Type'!$D$22:$F$22,0))=\"Yes\",1,0)*\n(AG$10*OFFSET('Efficiency Distributions'!$D$10,MATCH($C41,'Efficiency Distributions'!$C$9:$C$87,0)+RIGHT($E50),0)\n+AG$11*OFFSET('Efficiency Distributions'!$E$10,MATCH($C41,'Efficiency Distributions'!$C$9:$C$87,0)+RIGHT($E50),0))\n/SUM(AG$10:AG$11)","v":0},{"$f":"IF(INDEX(PC_MAPPING,RIGHT($C41,1),MATCH($E$2,'Data by Building Type'!$D$22:$F$22,0))=\"Yes\",1,0)*\n(AH$10*OFFSET('Efficiency Distributions'!$D$10,MATCH($C41,'Efficiency Distributions'!$C$9:$C$87,0)+RIGHT($E50),0)\n+AH$11*OFFSET('Efficiency Distributions'!$E$10,MATCH($C41,'Efficiency Distributions'!$C$9:$C$87,0)+RIGHT($E50),0))\n/SUM(AH$10:AH$11)","v":0},{"$f":"IF(INDEX(PC_MAPPING,RIGHT($C41,1),MATCH($E$2,'Data by Building Type'!$D$22:$F$22,0))=\"Yes\",1,0)*\n(AI$10*OFFSET('Efficiency Distributions'!$D$10,MATCH($C41,'Efficiency Distributions'!$C$9:$C$87,0)+RIGHT($E50),0)\n+AI$11*OFFSET('Efficiency Distributions'!$E$10,MATCH($C41,'Efficiency Distributions'!$C$9:$C$87,0)+RIGHT($E50),0))\n/SUM(AI$10:AI$11)","v":0},{"$f":"IF(INDEX(PC_MAPPING,RIGHT($C41,1),MATCH($E$2,'Data by Building Type'!$D$22:$F$22,0))=\"Yes\",1,0)*\n(AJ$10*OFFSET('Efficiency Distributions'!$D$10,MATCH($C41,'Efficiency Distributions'!$C$9:$C$87,0)+RIGHT($E50),0)\n+AJ$11*OFFSET('Efficiency Distributions'!$E$10,MATCH($C41,'Efficiency Distributions'!$C$9:$C$87,0)+RIGHT($E50),0))\n/SUM(AJ$10:AJ$11)","v":0},{"$f":"IF(INDEX(PC_MAPPING,RIGHT($C41,1),MATCH($E$2,'Data by Building Type'!$D$22:$F$22,0))=\"Yes\",1,0)*\n(AK$10*OFFSET('Efficiency Distributions'!$D$10,MATCH($C41,'Efficiency Distributions'!$C$9:$C$87,0)+RIGHT($E50),0)\n+AK$11*OFFSET('Efficiency Distributions'!$E$10,MATCH($C41,'Efficiency Distributions'!$C$9:$C$87,0)+RIGHT($E50),0))\n/SUM(AK$10:AK$11)","v":0},{"$f":"IF(INDEX(PC_MAPPING,RIGHT($C41,1),MATCH($E$2,'Data by Building Type'!$D$22:$F$22,0))=\"Yes\",1,0)*\n(AL$10*OFFSET('Efficiency Distributions'!$D$10,MATCH($C41,'Efficiency Distributions'!$C$9:$C$87,0)+RIGHT($E50),0)\n+AL$11*OFFSET('Efficiency Distributions'!$E$10,MATCH($C41,'Efficiency Distributions'!$C$9:$C$87,0)+RIGHT($E50),0))\n/SUM(AL$10:AL$11)","v":0},{"$f":"IF(INDEX(PC_MAPPING,RIGHT($C41,1),MATCH($E$2,'Data by Building Type'!$D$22:$F$22,0))=\"Yes\",1,0)*\n(AM$10*OFFSET('Efficiency Distributions'!$D$10,MATCH($C41,'Efficiency Distributions'!$C$9:$C$87,0)+RIGHT($E50),0)\n+AM$11*OFFSET('Efficiency Distributions'!$E$10,MATCH($C41,'Efficiency Distributions'!$C$9:$C$87,0)+RIGHT($E50),0))\n/SUM(AM$10:AM$11)","v":0},{"$f":"IF(INDEX(PC_MAPPING,RIGHT($C41,1),MATCH($E$2,'Data by Building Type'!$D$22:$F$22,0))=\"Yes\",1,0)*\n(AN$10*OFFSET('Efficiency Distributions'!$D$10,MATCH($C41,'Efficiency Distributions'!$C$9:$C$87,0)+RIGHT($E50),0)\n+AN$11*OFFSET('Efficiency Distributions'!$E$10,MATCH($C41,'Efficiency Distributions'!$C$9:$C$87,0)+RIGHT($E50),0))\n/SUM(AN$10:AN$11)","v":0},{"$f":"IF(INDEX(PC_MAPPING,RIGHT($C41,1),MATCH($E$2,'Data by Building Type'!$D$22:$F$22,0))=\"Yes\",1,0)*\n(AO$10*OFFSET('Efficiency Distributions'!$D$10,MATCH($C41,'Efficiency Distributions'!$C$9:$C$87,0)+RIGHT($E50),0)\n+AO$11*OFFSET('Efficiency Distributions'!$E$10,MATCH($C41,'Efficiency Distributions'!$C$9:$C$87,0)+RIGHT($E50),0))\n/SUM(AO$10:AO$11)","v":0},{"$f":"IF(INDEX(PC_MAPPING,RIGHT($C41,1),MATCH($E$2,'Data by Building Type'!$D$22:$F$22,0))=\"Yes\",1,0)*\n(AP$10*OFFSET('Efficiency Distributions'!$D$10,MATCH($C41,'Efficiency Distributions'!$C$9:$C$87,0)+RIGHT($E50),0)\n+AP$11*OFFSET('Efficiency Distributions'!$E$10,MATCH($C41,'Efficiency Distributions'!$C$9:$C$87,0)+RIGHT($E50),0))\n/SUM(AP$10:AP$11)","v":0},{"$f":"IF(INDEX(PC_MAPPING,RIGHT($C41,1),MATCH($E$2,'Data by Building Type'!$D$22:$F$22,0))=\"Yes\",1,0)*\n(AQ$10*OFFSET('Efficiency Distributions'!$D$10,MATCH($C41,'Efficiency Distributions'!$C$9:$C$87,0)+RIGHT($E50),0)\n+AQ$11*OFFSET('Efficiency Distributions'!$E$10,MATCH($C41,'Efficiency Distributions'!$C$9:$C$87,0)+RIGHT($E50),0))\n/SUM(AQ$10:AQ$11)","v":0},{"$f":"IF(INDEX(PC_MAPPING,RIGHT($C41,1),MATCH($E$2,'Data by Building Type'!$D$22:$F$22,0))=\"Yes\",1,0)*\n(AR$10*OFFSET('Efficiency Distributions'!$D$10,MATCH($C41,'Efficiency Distributions'!$C$9:$C$87,0)+RIGHT($E50),0)\n+AR$11*OFFSET('Efficiency Distributions'!$E$10,MATCH($C41,'Efficiency Distributions'!$C$9:$C$87,0)+RIGHT($E50),0))\n/SUM(AR$10:AR$11)","v":0},{"$f":"IF(INDEX(PC_MAPPING,RIGHT($C41,1),MATCH($E$2,'Data by Building Type'!$D$22:$F$22,0))=\"Yes\",1,0)*\n(AS$10*OFFSET('Efficiency Distributions'!$D$10,MATCH($C41,'Efficiency Distributions'!$C$9:$C$87,0)+RIGHT($E50),0)\n+AS$11*OFFSET('Efficiency Distributions'!$E$10,MATCH($C41,'Efficiency Distributions'!$C$9:$C$87,0)+RIGHT($E50),0))\n/SUM(AS$10:AS$11)","v":0},{"$f":"IF(INDEX(PC_MAPPING,RIGHT($C41,1),MATCH($E$2,'Data by Building Type'!$D$22:$F$22,0))=\"Yes\",1,0)*\n(AT$10*OFFSET('Efficiency Distributions'!$D$10,MATCH($C41,'Efficiency Distributions'!$C$9:$C$87,0)+RIGHT($E50),0)\n+AT$11*OFFSET('Efficiency Distributions'!$E$10,MATCH($C41,'Efficiency Distributions'!$C$9:$C$87,0)+RIGHT($E50),0))\n/SUM(AT$10:AT$11)","v":0},{"$f":"IF(INDEX(PC_MAPPING,RIGHT($C41,1),MATCH($E$2,'Data by Building Type'!$D$22:$F$22,0))=\"Yes\",1,0)*\n(AU$10*OFFSET('Efficiency Distributions'!$D$10,MATCH($C41,'Efficiency Distributions'!$C$9:$C$87,0)+RIGHT($E50),0)\n+AU$11*OFFSET('Efficiency Distributions'!$E$10,MATCH($C41,'Efficiency Distributions'!$C$9:$C$87,0)+RIGHT($E50),0))\n/SUM(AU$10:AU$11)","v":0},{"$f":"IF(INDEX(PC_MAPPING,RIGHT($C41,1),MATCH($E$2,'Data by Building Type'!$D$22:$F$22,0))=\"Yes\",1,0)*\n(AV$10*OFFSET('Efficiency Distributions'!$D$10,MATCH($C41,'Efficiency Distributions'!$C$9:$C$87,0)+RIGHT($E50),0)\n+AV$11*OFFSET('Efficiency Distributions'!$E$10,MATCH($C41,'Efficiency Distributions'!$C$9:$C$87,0)+RIGHT($E50),0))\n/SUM(AV$10:AV$11)","v":0},{"$f":"IF(INDEX(PC_MAPPING,RIGHT($C41,1),MATCH($E$2,'Data by Building Type'!$D$22:$F$22,0))=\"Yes\",1,0)*\n(AW$10*OFFSET('Efficiency Distributions'!$D$10,MATCH($C41,'Efficiency Distributions'!$C$9:$C$87,0)+RIGHT($E50),0)\n+AW$11*OFFSET('Efficiency Distributions'!$E$10,MATCH($C41,'Efficiency Distributions'!$C$9:$C$87,0)+RIGHT($E50),0))\n/SUM(AW$10:AW$11)","v":0},{"$f":"IF(INDEX(PC_MAPPING,RIGHT($C41,1),MATCH($E$2,'Data by Building Type'!$D$22:$F$22,0))=\"Yes\",1,0)*\n(AX$10*OFFSET('Efficiency Distributions'!$D$10,MATCH($C41,'Efficiency Distributions'!$C$9:$C$87,0)+RIGHT($E50),0)\n+AX$11*OFFSET('Efficiency Distributions'!$E$10,MATCH($C41,'Efficiency Distributions'!$C$9:$C$87,0)+RIGHT($E50),0))\n/SUM(AX$10:AX$11)","v":0},{"$f":"IF(INDEX(PC_MAPPING,RIGHT($C41,1),MATCH($E$2,'Data by Building Type'!$D$22:$F$22,0))=\"Yes\",1,0)*\n(AY$10*OFFSET('Efficiency Distributions'!$D$10,MATCH($C41,'Efficiency Distributions'!$C$9:$C$87,0)+RIGHT($E50),0)\n+AY$11*OFFSET('Efficiency Distributions'!$E$10,MATCH($C41,'Efficiency Distributions'!$C$9:$C$87,0)+RIGHT($E50),0))\n/SUM(AY$10:AY$11)","v":0},{"$f":"IF(INDEX(PC_MAPPING,RIGHT($C41,1),MATCH($E$2,'Data by Building Type'!$D$22:$F$22,0))=\"Yes\",1,0)*\n(AZ$10*OFFSET('Efficiency Distributions'!$D$10,MATCH($C41,'Efficiency Distributions'!$C$9:$C$87,0)+RIGHT($E50),0)\n+AZ$11*OFFSET('Efficiency Distributions'!$E$10,MATCH($C41,'Efficiency Distributions'!$C$9:$C$87,0)+RIGHT($E50),0))\n/SUM(AZ$10:AZ$11)","v":0},{"$f":"IF(INDEX(PC_MAPPING,RIGHT($C41,1),MATCH($E$2,'Data by Building Type'!$D$22:$F$22,0))=\"Yes\",1,0)*\n(BA$10*OFFSET('Efficiency Distributions'!$D$10,MATCH($C41,'Efficiency Distributions'!$C$9:$C$87,0)+RIGHT($E50),0)\n+BA$11*OFFSET('Efficiency Distributions'!$E$10,MATCH($C41,'Efficiency Distributions'!$C$9:$C$87,0)+RIGHT($E50),0))\n/SUM(BA$10:BA$11)","v":0},{"$f":"IF(INDEX(PC_MAPPING,RIGHT($C41,1),MATCH($E$2,'Data by Building Type'!$D$22:$F$22,0))=\"Yes\",1,0)*\n(BB$10*OFFSET('Efficiency Distributions'!$D$10,MATCH($C41,'Efficiency Distributions'!$C$9:$C$87,0)+RIGHT($E50),0)\n+BB$11*OFFSET('Efficiency Distributions'!$E$10,MATCH($C41,'Efficiency Distributions'!$C$9:$C$87,0)+RIGHT($E50),0))\n/SUM(BB$10:BB$11)","v":0},{"$f":"IF(INDEX(PC_MAPPING,RIGHT($C41,1),MATCH($E$2,'Data by Building Type'!$D$22:$F$22,0))=\"Yes\",1,0)*\n(BC$10*OFFSET('Efficiency Distributions'!$D$10,MATCH($C41,'Efficiency Distributions'!$C$9:$C$87,0)+RIGHT($E50),0)\n+BC$11*OFFSET('Efficiency Distributions'!$E$10,MATCH($C41,'Efficiency Distributions'!$C$9:$C$87,0)+RIGHT($E50),0))\n/SUM(BC$10:BC$11)","v":0},{"$f":"IF(INDEX(PC_MAPPING,RIGHT($C41,1),MATCH($E$2,'Data by Building Type'!$D$22:$F$22,0))=\"Yes\",1,0)*\n(BD$10*OFFSET('Efficiency Distributions'!$D$10,MATCH($C41,'Efficiency Distributions'!$C$9:$C$87,0)+RIGHT($E50),0)\n+BD$11*OFFSET('Efficiency Distributions'!$E$10,MATCH($C41,'Efficiency Distributions'!$C$9:$C$87,0)+RIGHT($E50),0))\n/SUM(BD$10:BD$11)","v":0},{"$f":"IF(INDEX(PC_MAPPING,RIGHT($C41,1),MATCH($E$2,'Data by Building Type'!$D$22:$F$22,0))=\"Yes\",1,0)*\n(BE$10*OFFSET('Efficiency Distributions'!$D$10,MATCH($C41,'Efficiency Distributions'!$C$9:$C$87,0)+RIGHT($E50),0)\n+BE$11*OFFSET('Efficiency Distributions'!$E$10,MATCH($C41,'Efficiency Distributions'!$C$9:$C$87,0)+RIGHT($E50),0))\n/SUM(BE$10:BE$11)","v":0},{"$f":"IF(INDEX(PC_MAPPING,RIGHT($C41,1),MATCH($E$2,'Data by Building Type'!$D$22:$F$22,0))=\"Yes\",1,0)*\n(BF$10*OFFSET('Efficiency Distributions'!$D$10,MATCH($C41,'Efficiency Distributions'!$C$9:$C$87,0)+RIGHT($E50),0)\n+BF$11*OFFSET('Efficiency Distributions'!$E$10,MATCH($C41,'Efficiency Distributions'!$C$9:$C$87,0)+RIGHT($E50),0))\n/SUM(BF$10:BF$11)","v":0},{"$f":"IF(INDEX(PC_MAPPING,RIGHT($C41,1),MATCH($E$2,'Data by Building Type'!$D$22:$F$22,0))=\"Yes\",1,0)*\n(BG$10*OFFSET('Efficiency Distributions'!$D$10,MATCH($C41,'Efficiency Distributions'!$C$9:$C$87,0)+RIGHT($E50),0)\n+BG$11*OFFSET('Efficiency Distributions'!$E$10,MATCH($C41,'Efficiency Distributions'!$C$9:$C$87,0)+RIGHT($E50),0))\n/SUM(BG$10:BG$11)","v":0}]
[null,null,null,null,"EL6",{"$f":"IF(INDEX(PC_MAPPING,RIGHT($C41,1),MATCH($E$2,'Data by Building Type'!$D$22:$F$22,0))=\"Yes\",1,0)*\n(F$10*OFFSET('Efficiency Distributions'!$D$10,MATCH($C41,'Efficiency Distributions'!$C$9:$C$87,0)+RIGHT($E51),0)\n+F$11*OFFSET('Efficiency Distributions'!$E$10,MATCH($C41,'Efficiency Distributions'!$C$9:$C$87,0)+RIGHT($E51),0))\n/SUM(F$10:F$11)","v":0},{"$f":"IF(INDEX(PC_MAPPING,RIGHT($C41,1),MATCH($E$2,'Data by Building Type'!$D$22:$F$22,0))=\"Yes\",1,0)*\n(G$10*OFFSET('Efficiency Distributions'!$D$10,MATCH($C41,'Efficiency Distributions'!$C$9:$C$87,0)+RIGHT($E51),0)\n+G$11*OFFSET('Efficiency Distributions'!$E$10,MATCH($C41,'Efficiency Distributions'!$C$9:$C$87,0)+RIGHT($E51),0))\n/SUM(G$10:G$11)","v":0},{"$f":"IF(INDEX(PC_MAPPING,RIGHT($C41,1),MATCH($E$2,'Data by Building Type'!$D$22:$F$22,0))=\"Yes\",1,0)*\n(H$10*OFFSET('Efficiency Distributions'!$D$10,MATCH($C41,'Efficiency Distributions'!$C$9:$C$87,0)+RIGHT($E51),0)\n+H$11*OFFSET('Efficiency Distributions'!$E$10,MATCH($C41,'Efficiency Distributions'!$C$9:$C$87,0)+RIGHT($E51),0))\n/SUM(H$10:H$11)","v":0},{"$f":"IF(INDEX(PC_MAPPING,RIGHT($C41,1),MATCH($E$2,'Data by Building Type'!$D$22:$F$22,0))=\"Yes\",1,0)*\n(I$10*OFFSET('Efficiency Distributions'!$D$10,MATCH($C41,'Efficiency Distributions'!$C$9:$C$87,0)+RIGHT($E51),0)\n+I$11*OFFSET('Efficiency Distributions'!$E$10,MATCH($C41,'Efficiency Distributions'!$C$9:$C$87,0)+RIGHT($E51),0))\n/SUM(I$10:I$11)","v":0},{"$f":"IF(INDEX(PC_MAPPING,RIGHT($C41,1),MATCH($E$2,'Data by Building Type'!$D$22:$F$22,0))=\"Yes\",1,0)*\n(J$10*OFFSET('Efficiency Distributions'!$D$10,MATCH($C41,'Efficiency Distributions'!$C$9:$C$87,0)+RIGHT($E51),0)\n+J$11*OFFSET('Efficiency Distributions'!$E$10,MATCH($C41,'Efficiency Distributions'!$C$9:$C$87,0)+RIGHT($E51),0))\n/SUM(J$10:J$11)","v":0},{"$f":"IF(INDEX(PC_MAPPING,RIGHT($C41,1),MATCH($E$2,'Data by Building Type'!$D$22:$F$22,0))=\"Yes\",1,0)*\n(K$10*OFFSET('Efficiency Distributions'!$D$10,MATCH($C41,'Efficiency Distributions'!$C$9:$C$87,0)+RIGHT($E51),0)\n+K$11*OFFSET('Efficiency Distributions'!$E$10,MATCH($C41,'Efficiency Distributions'!$C$9:$C$87,0)+RIGHT($E51),0))\n/SUM(K$10:K$11)","v":0},{"$f":"IF(INDEX(PC_MAPPING,RIGHT($C41,1),MATCH($E$2,'Data by Building Type'!$D$22:$F$22,0))=\"Yes\",1,0)*\n(L$10*OFFSET('Efficiency Distributions'!$D$10,MATCH($C41,'Efficiency Distributions'!$C$9:$C$87,0)+RIGHT($E51),0)\n+L$11*OFFSET('Efficiency Distributions'!$E$10,MATCH($C41,'Efficiency Distributions'!$C$9:$C$87,0)+RIGHT($E51),0))\n/SUM(L$10:L$11)","v":0},{"$f":"IF(INDEX(PC_MAPPING,RIGHT($C41,1),MATCH($E$2,'Data by Building Type'!$D$22:$F$22,0))=\"Yes\",1,0)*\n(M$10*OFFSET('Efficiency Distributions'!$D$10,MATCH($C41,'Efficiency Distributions'!$C$9:$C$87,0)+RIGHT($E51),0)\n+M$11*OFFSET('Efficiency Distributions'!$E$10,MATCH($C41,'Efficiency Distributions'!$C$9:$C$87,0)+RIGHT($E51),0))\n/SUM(M$10:M$11)","v":0},{"$f":"IF(INDEX(PC_MAPPING,RIGHT($C41,1),MATCH($E$2,'Data by Building Type'!$D$22:$F$22,0))=\"Yes\",1,0)*\n(N$10*OFFSET('Efficiency Distributions'!$D$10,MATCH($C41,'Efficiency Distributions'!$C$9:$C$87,0)+RIGHT($E51),0)\n+N$11*OFFSET('Efficiency Distributions'!$E$10,MATCH($C41,'Efficiency Distributions'!$C$9:$C$87,0)+RIGHT($E51),0))\n/SUM(N$10:N$11)","v":0},{"$f":"IF(INDEX(PC_MAPPING,RIGHT($C41,1),MATCH($E$2,'Data by Building Type'!$D$22:$F$22,0))=\"Yes\",1,0)*\n(O$10*OFFSET('Efficiency Distributions'!$D$10,MATCH($C41,'Efficiency Distributions'!$C$9:$C$87,0)+RIGHT($E51),0)\n+O$11*OFFSET('Efficiency Distributions'!$E$10,MATCH($C41,'Efficiency Distributions'!$C$9:$C$87,0)+RIGHT($E51),0))\n/SUM(O$10:O$11)","v":0},{"$f":"IF(INDEX(PC_MAPPING,RIGHT($C41,1),MATCH($E$2,'Data by Building Type'!$D$22:$F$22,0))=\"Yes\",1,0)*\n(P$10*OFFSET('Efficiency Distributions'!$D$10,MATCH($C41,'Efficiency Distributions'!$C$9:$C$87,0)+RIGHT($E51),0)\n+P$11*OFFSET('Efficiency Distributions'!$E$10,MATCH($C41,'Efficiency Distributions'!$C$9:$C$87,0)+RIGHT($E51),0))\n/SUM(P$10:P$11)","v":0},{"$f":"IF(INDEX(PC_MAPPING,RIGHT($C41,1),MATCH($E$2,'Data by Building Type'!$D$22:$F$22,0))=\"Yes\",1,0)*\n(Q$10*OFFSET('Efficiency Distributions'!$D$10,MATCH($C41,'Efficiency Distributions'!$C$9:$C$87,0)+RIGHT($E51),0)\n+Q$11*OFFSET('Efficiency Distributions'!$E$10,MATCH($C41,'Efficiency Distributions'!$C$9:$C$87,0)+RIGHT($E51),0))\n/SUM(Q$10:Q$11)","v":0},{"$f":"IF(INDEX(PC_MAPPING,RIGHT($C41,1),MATCH($E$2,'Data by Building Type'!$D$22:$F$22,0))=\"Yes\",1,0)*\n(R$10*OFFSET('Efficiency Distributions'!$D$10,MATCH($C41,'Efficiency Distributions'!$C$9:$C$87,0)+RIGHT($E51),0)\n+R$11*OFFSET('Efficiency Distributions'!$E$10,MATCH($C41,'Efficiency Distributions'!$C$9:$C$87,0)+RIGHT($E51),0))\n/SUM(R$10:R$11)","v":0},{"$f":"IF(INDEX(PC_MAPPING,RIGHT($C41,1),MATCH($E$2,'Data by Building Type'!$D$22:$F$22,0))=\"Yes\",1,0)*\n(S$10*OFFSET('Efficiency Distributions'!$D$10,MATCH($C41,'Efficiency Distributions'!$C$9:$C$87,0)+RIGHT($E51),0)\n+S$11*OFFSET('Efficiency Distributions'!$E$10,MATCH($C41,'Efficiency Distributions'!$C$9:$C$87,0)+RIGHT($E51),0))\n/SUM(S$10:S$11)","v":0},{"$f":"IF(INDEX(PC_MAPPING,RIGHT($C41,1),MATCH($E$2,'Data by Building Type'!$D$22:$F$22,0))=\"Yes\",1,0)*\n(T$10*OFFSET('Efficiency Distributions'!$D$10,MATCH($C41,'Efficiency Distributions'!$C$9:$C$87,0)+RIGHT($E51),0)\n+T$11*OFFSET('Efficiency Distributions'!$E$10,MATCH($C41,'Efficiency Distributions'!$C$9:$C$87,0)+RIGHT($E51),0))\n/SUM(T$10:T$11)","v":0},{"$f":"IF(INDEX(PC_MAPPING,RIGHT($C41,1),MATCH($E$2,'Data by Building Type'!$D$22:$F$22,0))=\"Yes\",1,0)*\n(U$10*OFFSET('Efficiency Distributions'!$D$10,MATCH($C41,'Efficiency Distributions'!$C$9:$C$87,0)+RIGHT($E51),0)\n+U$11*OFFSET('Efficiency Distributions'!$E$10,MATCH($C41,'Efficiency Distributions'!$C$9:$C$87,0)+RIGHT($E51),0))\n/SUM(U$10:U$11)","v":0},{"$f":"IF(INDEX(PC_MAPPING,RIGHT($C41,1),MATCH($E$2,'Data by Building Type'!$D$22:$F$22,0))=\"Yes\",1,0)*\n(V$10*OFFSET('Efficiency Distributions'!$D$10,MATCH($C41,'Efficiency Distributions'!$C$9:$C$87,0)+RIGHT($E51),0)\n+V$11*OFFSET('Efficiency Distributions'!$E$10,MATCH($C41,'Efficiency Distributions'!$C$9:$C$87,0)+RIGHT($E51),0))\n/SUM(V$10:V$11)","v":0},{"$f":"IF(INDEX(PC_MAPPING,RIGHT($C41,1),MATCH($E$2,'Data by Building Type'!$D$22:$F$22,0))=\"Yes\",1,0)*\n(W$10*OFFSET('Efficiency Distributions'!$D$10,MATCH($C41,'Efficiency Distributions'!$C$9:$C$87,0)+RIGHT($E51),0)\n+W$11*OFFSET('Efficiency Distributions'!$E$10,MATCH($C41,'Efficiency Distributions'!$C$9:$C$87,0)+RIGHT($E51),0))\n/SUM(W$10:W$11)","v":0},{"$f":"IF(INDEX(PC_MAPPING,RIGHT($C41,1),MATCH($E$2,'Data by Building Type'!$D$22:$F$22,0))=\"Yes\",1,0)*\n(X$10*OFFSET('Efficiency Distributions'!$D$10,MATCH($C41,'Efficiency Distributions'!$C$9:$C$87,0)+RIGHT($E51),0)\n+X$11*OFFSET('Efficiency Distributions'!$E$10,MATCH($C41,'Efficiency Distributions'!$C$9:$C$87,0)+RIGHT($E51),0))\n/SUM(X$10:X$11)","v":0},{"$f":"IF(INDEX(PC_MAPPING,RIGHT($C41,1),MATCH($E$2,'Data by Building Type'!$D$22:$F$22,0))=\"Yes\",1,0)*\n(Y$10*OFFSET('Efficiency Distributions'!$D$10,MATCH($C41,'Efficiency Distributions'!$C$9:$C$87,0)+RIGHT($E51),0)\n+Y$11*OFFSET('Efficiency Distributions'!$E$10,MATCH($C41,'Efficiency Distributions'!$C$9:$C$87,0)+RIGHT($E51),0))\n/SUM(Y$10:Y$11)","v":0},{"$f":"IF(INDEX(PC_MAPPING,RIGHT($C41,1),MATCH($E$2,'Data by Building Type'!$D$22:$F$22,0))=\"Yes\",1,0)*\n(Z$10*OFFSET('Efficiency Distributions'!$D$10,MATCH($C41,'Efficiency Distributions'!$C$9:$C$87,0)+RIGHT($E51),0)\n+Z$11*OFFSET('Efficiency Distributions'!$E$10,MATCH($C41,'Efficiency Distributions'!$C$9:$C$87,0)+RIGHT($E51),0))\n/SUM(Z$10:Z$11)","v":0},{"$f":"IF(INDEX(PC_MAPPING,RIGHT($C41,1),MATCH($E$2,'Data by Building Type'!$D$22:$F$22,0))=\"Yes\",1,0)*\n(AA$10*OFFSET('Efficiency Distributions'!$D$10,MATCH($C41,'Efficiency Distributions'!$C$9:$C$87,0)+RIGHT($E51),0)\n+AA$11*OFFSET('Efficiency Distributions'!$E$10,MATCH($C41,'Efficiency Distributions'!$C$9:$C$87,0)+RIGHT($E51),0))\n/SUM(AA$10:AA$11)","v":0},{"$f":"IF(INDEX(PC_MAPPING,RIGHT($C41,1),MATCH($E$2,'Data by Building Type'!$D$22:$F$22,0))=\"Yes\",1,0)*\n(AB$10*OFFSET('Efficiency Distributions'!$D$10,MATCH($C41,'Efficiency Distributions'!$C$9:$C$87,0)+RIGHT($E51),0)\n+AB$11*OFFSET('Efficiency Distributions'!$E$10,MATCH($C41,'Efficiency Distributions'!$C$9:$C$87,0)+RIGHT($E51),0))\n/SUM(AB$10:AB$11)","v":0},{"$f":"IF(INDEX(PC_MAPPING,RIGHT($C41,1),MATCH($E$2,'Data by Building Type'!$D$22:$F$22,0))=\"Yes\",1,0)*\n(AC$10*OFFSET('Efficiency Distributions'!$D$10,MATCH($C41,'Efficiency Distributions'!$C$9:$C$87,0)+RIGHT($E51),0)\n+AC$11*OFFSET('Efficiency Distributions'!$E$10,MATCH($C41,'Efficiency Distributions'!$C$9:$C$87,0)+RIGHT($E51),0))\n/SUM(AC$10:AC$11)","v":0},{"$f":"IF(INDEX(PC_MAPPING,RIGHT($C41,1),MATCH($E$2,'Data by Building Type'!$D$22:$F$22,0))=\"Yes\",1,0)*\n(AD$10*OFFSET('Efficiency Distributions'!$D$10,MATCH($C41,'Efficiency Distributions'!$C$9:$C$87,0)+RIGHT($E51),0)\n+AD$11*OFFSET('Efficiency Distributions'!$E$10,MATCH($C41,'Efficiency Distributions'!$C$9:$C$87,0)+RIGHT($E51),0))\n/SUM(AD$10:AD$11)","v":0},{"$f":"IF(INDEX(PC_MAPPING,RIGHT($C41,1),MATCH($E$2,'Data by Building Type'!$D$22:$F$22,0))=\"Yes\",1,0)*\n(AE$10*OFFSET('Efficiency Distributions'!$D$10,MATCH($C41,'Efficiency Distributions'!$C$9:$C$87,0)+RIGHT($E51),0)\n+AE$11*OFFSET('Efficiency Distributions'!$E$10,MATCH($C41,'Efficiency Distributions'!$C$9:$C$87,0)+RIGHT($E51),0))\n/SUM(AE$10:AE$11)","v":0},{"$f":"IF(INDEX(PC_MAPPING,RIGHT($C41,1),MATCH($E$2,'Data by Building Type'!$D$22:$F$22,0))=\"Yes\",1,0)*\n(AF$10*OFFSET('Efficiency Distributions'!$D$10,MATCH($C41,'Efficiency Distributions'!$C$9:$C$87,0)+RIGHT($E51),0)\n+AF$11*OFFSET('Efficiency Distributions'!$E$10,MATCH($C41,'Efficiency Distributions'!$C$9:$C$87,0)+RIGHT($E51),0))\n/SUM(AF$10:AF$11)","v":0},{"$f":"IF(INDEX(PC_MAPPING,RIGHT($C41,1),MATCH($E$2,'Data by Building Type'!$D$22:$F$22,0))=\"Yes\",1,0)*\n(AG$10*OFFSET('Efficiency Distributions'!$D$10,MATCH($C41,'Efficiency Distributions'!$C$9:$C$87,0)+RIGHT($E51),0)\n+AG$11*OFFSET('Efficiency Distributions'!$E$10,MATCH($C41,'Efficiency Distributions'!$C$9:$C$87,0)+RIGHT($E51),0))\n/SUM(AG$10:AG$11)","v":0},{"$f":"IF(INDEX(PC_MAPPING,RIGHT($C41,1),MATCH($E$2,'Data by Building Type'!$D$22:$F$22,0))=\"Yes\",1,0)*\n(AH$10*OFFSET('Efficiency Distributions'!$D$10,MATCH($C41,'Efficiency Distributions'!$C$9:$C$87,0)+RIGHT($E51),0)\n+AH$11*OFFSET('Efficiency Distributions'!$E$10,MATCH($C41,'Efficiency Distributions'!$C$9:$C$87,0)+RIGHT($E51),0))\n/SUM(AH$10:AH$11)","v":0},{"$f":"IF(INDEX(PC_MAPPING,RIGHT($C41,1),MATCH($E$2,'Data by Building Type'!$D$22:$F$22,0))=\"Yes\",1,0)*\n(AI$10*OFFSET('Efficiency Distributions'!$D$10,MATCH($C41,'Efficiency Distributions'!$C$9:$C$87,0)+RIGHT($E51),0)\n+AI$11*OFFSET('Efficiency Distributions'!$E$10,MATCH($C41,'Efficiency Distributions'!$C$9:$C$87,0)+RIGHT($E51),0))\n/SUM(AI$10:AI$11)","v":0},{"$f":"IF(INDEX(PC_MAPPING,RIGHT($C41,1),MATCH($E$2,'Data by Building Type'!$D$22:$F$22,0))=\"Yes\",1,0)*\n(AJ$10*OFFSET('Efficiency Distributions'!$D$10,MATCH($C41,'Efficiency Distributions'!$C$9:$C$87,0)+RIGHT($E51),0)\n+AJ$11*OFFSET('Efficiency Distributions'!$E$10,MATCH($C41,'Efficiency Distributions'!$C$9:$C$87,0)+RIGHT($E51),0))\n/SUM(AJ$10:AJ$11)","v":0},{"$f":"IF(INDEX(PC_MAPPING,RIGHT($C41,1),MATCH($E$2,'Data by Building Type'!$D$22:$F$22,0))=\"Yes\",1,0)*\n(AK$10*OFFSET('Efficiency Distributions'!$D$10,MATCH($C41,'Efficiency Distributions'!$C$9:$C$87,0)+RIGHT($E51),0)\n+AK$11*OFFSET('Efficiency Distributions'!$E$10,MATCH($C41,'Efficiency Distributions'!$C$9:$C$87,0)+RIGHT($E51),0))\n/SUM(AK$10:AK$11)","v":0},{"$f":"IF(INDEX(PC_MAPPING,RIGHT($C41,1),MATCH($E$2,'Data by Building Type'!$D$22:$F$22,0))=\"Yes\",1,0)*\n(AL$10*OFFSET('Efficiency Distributions'!$D$10,MATCH($C41,'Efficiency Distributions'!$C$9:$C$87,0)+RIGHT($E51),0)\n+AL$11*OFFSET('Efficiency Distributions'!$E$10,MATCH($C41,'Efficiency Distributions'!$C$9:$C$87,0)+RIGHT($E51),0))\n/SUM(AL$10:AL$11)","v":0},{"$f":"IF(INDEX(PC_MAPPING,RIGHT($C41,1),MATCH($E$2,'Data by Building Type'!$D$22:$F$22,0))=\"Yes\",1,0)*\n(AM$10*OFFSET('Efficiency Distributions'!$D$10,MATCH($C41,'Efficiency Distributions'!$C$9:$C$87,0)+RIGHT($E51),0)\n+AM$11*OFFSET('Efficiency Distributions'!$E$10,MATCH($C41,'Efficiency Distributions'!$C$9:$C$87,0)+RIGHT($E51),0))\n/SUM(AM$10:AM$11)","v":0},{"$f":"IF(INDEX(PC_MAPPING,RIGHT($C41,1),MATCH($E$2,'Data by Building Type'!$D$22:$F$22,0))=\"Yes\",1,0)*\n(AN$10*OFFSET('Efficiency Distributions'!$D$10,MATCH($C41,'Efficiency Distributions'!$C$9:$C$87,0)+RIGHT($E51),0)\n+AN$11*OFFSET('Efficiency Distributions'!$E$10,MATCH($C41,'Efficiency Distributions'!$C$9:$C$87,0)+RIGHT($E51),0))\n/SUM(AN$10:AN$11)","v":0},{"$f":"IF(INDEX(PC_MAPPING,RIGHT($C41,1),MATCH($E$2,'Data by Building Type'!$D$22:$F$22,0))=\"Yes\",1,0)*\n(AO$10*OFFSET('Efficiency Distributions'!$D$10,MATCH($C41,'Efficiency Distributions'!$C$9:$C$87,0)+RIGHT($E51),0)\n+AO$11*OFFSET('Efficiency Distributions'!$E$10,MATCH($C41,'Efficiency Distributions'!$C$9:$C$87,0)+RIGHT($E51),0))\n/SUM(AO$10:AO$11)","v":0},{"$f":"IF(INDEX(PC_MAPPING,RIGHT($C41,1),MATCH($E$2,'Data by Building Type'!$D$22:$F$22,0))=\"Yes\",1,0)*\n(AP$10*OFFSET('Efficiency Distributions'!$D$10,MATCH($C41,'Efficiency Distributions'!$C$9:$C$87,0)+RIGHT($E51),0)\n+AP$11*OFFSET('Efficiency Distributions'!$E$10,MATCH($C41,'Efficiency Distributions'!$C$9:$C$87,0)+RIGHT($E51),0))\n/SUM(AP$10:AP$11)","v":0},{"$f":"IF(INDEX(PC_MAPPING,RIGHT($C41,1),MATCH($E$2,'Data by Building Type'!$D$22:$F$22,0))=\"Yes\",1,0)*\n(AQ$10*OFFSET('Efficiency Distributions'!$D$10,MATCH($C41,'Efficiency Distributions'!$C$9:$C$87,0)+RIGHT($E51),0)\n+AQ$11*OFFSET('Efficiency Distributions'!$E$10,MATCH($C41,'Efficiency Distributions'!$C$9:$C$87,0)+RIGHT($E51),0))\n/SUM(AQ$10:AQ$11)","v":0},{"$f":"IF(INDEX(PC_MAPPING,RIGHT($C41,1),MATCH($E$2,'Data by Building Type'!$D$22:$F$22,0))=\"Yes\",1,0)*\n(AR$10*OFFSET('Efficiency Distributions'!$D$10,MATCH($C41,'Efficiency Distributions'!$C$9:$C$87,0)+RIGHT($E51),0)\n+AR$11*OFFSET('Efficiency Distributions'!$E$10,MATCH($C41,'Efficiency Distributions'!$C$9:$C$87,0)+RIGHT($E51),0))\n/SUM(AR$10:AR$11)","v":0},{"$f":"IF(INDEX(PC_MAPPING,RIGHT($C41,1),MATCH($E$2,'Data by Building Type'!$D$22:$F$22,0))=\"Yes\",1,0)*\n(AS$10*OFFSET('Efficiency Distributions'!$D$10,MATCH($C41,'Efficiency Distributions'!$C$9:$C$87,0)+RIGHT($E51),0)\n+AS$11*OFFSET('Efficiency Distributions'!$E$10,MATCH($C41,'Efficiency Distributions'!$C$9:$C$87,0)+RIGHT($E51),0))\n/SUM(AS$10:AS$11)","v":0},{"$f":"IF(INDEX(PC_MAPPING,RIGHT($C41,1),MATCH($E$2,'Data by Building Type'!$D$22:$F$22,0))=\"Yes\",1,0)*\n(AT$10*OFFSET('Efficiency Distributions'!$D$10,MATCH($C41,'Efficiency Distributions'!$C$9:$C$87,0)+RIGHT($E51),0)\n+AT$11*OFFSET('Efficiency Distributions'!$E$10,MATCH($C41,'Efficiency Distributions'!$C$9:$C$87,0)+RIGHT($E51),0))\n/SUM(AT$10:AT$11)","v":0},{"$f":"IF(INDEX(PC_MAPPING,RIGHT($C41,1),MATCH($E$2,'Data by Building Type'!$D$22:$F$22,0))=\"Yes\",1,0)*\n(AU$10*OFFSET('Efficiency Distributions'!$D$10,MATCH($C41,'Efficiency Distributions'!$C$9:$C$87,0)+RIGHT($E51),0)\n+AU$11*OFFSET('Efficiency Distributions'!$E$10,MATCH($C41,'Efficiency Distributions'!$C$9:$C$87,0)+RIGHT($E51),0))\n/SUM(AU$10:AU$11)","v":0},{"$f":"IF(INDEX(PC_MAPPING,RIGHT($C41,1),MATCH($E$2,'Data by Building Type'!$D$22:$F$22,0))=\"Yes\",1,0)*\n(AV$10*OFFSET('Efficiency Distributions'!$D$10,MATCH($C41,'Efficiency Distributions'!$C$9:$C$87,0)+RIGHT($E51),0)\n+AV$11*OFFSET('Efficiency Distributions'!$E$10,MATCH($C41,'Efficiency Distributions'!$C$9:$C$87,0)+RIGHT($E51),0))\n/SUM(AV$10:AV$11)","v":0},{"$f":"IF(INDEX(PC_MAPPING,RIGHT($C41,1),MATCH($E$2,'Data by Building Type'!$D$22:$F$22,0))=\"Yes\",1,0)*\n(AW$10*OFFSET('Efficiency Distributions'!$D$10,MATCH($C41,'Efficiency Distributions'!$C$9:$C$87,0)+RIGHT($E51),0)\n+AW$11*OFFSET('Efficiency Distributions'!$E$10,MATCH($C41,'Efficiency Distributions'!$C$9:$C$87,0)+RIGHT($E51),0))\n/SUM(AW$10:AW$11)","v":0},{"$f":"IF(INDEX(PC_MAPPING,RIGHT($C41,1),MATCH($E$2,'Data by Building Type'!$D$22:$F$22,0))=\"Yes\",1,0)*\n(AX$10*OFFSET('Efficiency Distributions'!$D$10,MATCH($C41,'Efficiency Distributions'!$C$9:$C$87,0)+RIGHT($E51),0)\n+AX$11*OFFSET('Efficiency Distributions'!$E$10,MATCH($C41,'Efficiency Distributions'!$C$9:$C$87,0)+RIGHT($E51),0))\n/SUM(AX$10:AX$11)","v":0},{"$f":"IF(INDEX(PC_MAPPING,RIGHT($C41,1),MATCH($E$2,'Data by Building Type'!$D$22:$F$22,0))=\"Yes\",1,0)*\n(AY$10*OFFSET('Efficiency Distributions'!$D$10,MATCH($C41,'Efficiency Distributions'!$C$9:$C$87,0)+RIGHT($E51),0)\n+AY$11*OFFSET('Efficiency Distributions'!$E$10,MATCH($C41,'Efficiency Distributions'!$C$9:$C$87,0)+RIGHT($E51),0))\n/SUM(AY$10:AY$11)","v":0},{"$f":"IF(INDEX(PC_MAPPING,RIGHT($C41,1),MATCH($E$2,'Data by Building Type'!$D$22:$F$22,0))=\"Yes\",1,0)*\n(AZ$10*OFFSET('Efficiency Distributions'!$D$10,MATCH($C41,'Efficiency Distributions'!$C$9:$C$87,0)+RIGHT($E51),0)\n+AZ$11*OFFSET('Efficiency Distributions'!$E$10,MATCH($C41,'Efficiency Distributions'!$C$9:$C$87,0)+RIGHT($E51),0))\n/SUM(AZ$10:AZ$11)","v":0},{"$f":"IF(INDEX(PC_MAPPING,RIGHT($C41,1),MATCH($E$2,'Data by Building Type'!$D$22:$F$22,0))=\"Yes\",1,0)*\n(BA$10*OFFSET('Efficiency Distributions'!$D$10,MATCH($C41,'Efficiency Distributions'!$C$9:$C$87,0)+RIGHT($E51),0)\n+BA$11*OFFSET('Efficiency Distributions'!$E$10,MATCH($C41,'Efficiency Distributions'!$C$9:$C$87,0)+RIGHT($E51),0))\n/SUM(BA$10:BA$11)","v":0},{"$f":"IF(INDEX(PC_MAPPING,RIGHT($C41,1),MATCH($E$2,'Data by Building Type'!$D$22:$F$22,0))=\"Yes\",1,0)*\n(BB$10*OFFSET('Efficiency Distributions'!$D$10,MATCH($C41,'Efficiency Distributions'!$C$9:$C$87,0)+RIGHT($E51),0)\n+BB$11*OFFSET('Efficiency Distributions'!$E$10,MATCH($C41,'Efficiency Distributions'!$C$9:$C$87,0)+RIGHT($E51),0))\n/SUM(BB$10:BB$11)","v":0},{"$f":"IF(INDEX(PC_MAPPING,RIGHT($C41,1),MATCH($E$2,'Data by Building Type'!$D$22:$F$22,0))=\"Yes\",1,0)*\n(BC$10*OFFSET('Efficiency Distributions'!$D$10,MATCH($C41,'Efficiency Distributions'!$C$9:$C$87,0)+RIGHT($E51),0)\n+BC$11*OFFSET('Efficiency Distributions'!$E$10,MATCH($C41,'Efficiency Distributions'!$C$9:$C$87,0)+RIGHT($E51),0))\n/SUM(BC$10:BC$11)","v":0},{"$f":"IF(INDEX(PC_MAPPING,RIGHT($C41,1),MATCH($E$2,'Data by Building Type'!$D$22:$F$22,0))=\"Yes\",1,0)*\n(BD$10*OFFSET('Efficiency Distributions'!$D$10,MATCH($C41,'Efficiency Distributions'!$C$9:$C$87,0)+RIGHT($E51),0)\n+BD$11*OFFSET('Efficiency Distributions'!$E$10,MATCH($C41,'Efficiency Distributions'!$C$9:$C$87,0)+RIGHT($E51),0))\n/SUM(BD$10:BD$11)","v":0},{"$f":"IF(INDEX(PC_MAPPING,RIGHT($C41,1),MATCH($E$2,'Data by Building Type'!$D$22:$F$22,0))=\"Yes\",1,0)*\n(BE$10*OFFSET('Efficiency Distributions'!$D$10,MATCH($C41,'Efficiency Distributions'!$C$9:$C$87,0)+RIGHT($E51),0)\n+BE$11*OFFSET('Efficiency Distributions'!$E$10,MATCH($C41,'Efficiency Distributions'!$C$9:$C$87,0)+RIGHT($E51),0))\n/SUM(BE$10:BE$11)","v":0},{"$f":"IF(INDEX(PC_MAPPING,RIGHT($C41,1),MATCH($E$2,'Data by Building Type'!$D$22:$F$22,0))=\"Yes\",1,0)*\n(BF$10*OFFSET('Efficiency Distributions'!$D$10,MATCH($C41,'Efficiency Distributions'!$C$9:$C$87,0)+RIGHT($E51),0)\n+BF$11*OFFSET('Efficiency Distributions'!$E$10,MATCH($C41,'Efficiency Distributions'!$C$9:$C$87,0)+RIGHT($E51),0))\n/SUM(BF$10:BF$11)","v":0},{"$f":"IF(INDEX(PC_MAPPING,RIGHT($C41,1),MATCH($E$2,'Data by Building Type'!$D$22:$F$22,0))=\"Yes\",1,0)*\n(BG$10*OFFSET('Efficiency Distributions'!$D$10,MATCH($C41,'Efficiency Distributions'!$C$9:$C$87,0)+RIGHT($E51),0)\n+BG$11*OFFSET('Efficiency Distributions'!$E$10,MATCH($C41,'Efficiency Distributions'!$C$9:$C$87,0)+RIGHT($E51),0))\n/SUM(BG$10:BG$11)","v":0}]
[null,null,null,null,"TOTAL",{"$f":"SUM(F45:F51)","v":0},0,0,{"$f":"SUM(I45:I51)","v":0},0,0,0,0,0,0,0,0,0,0,0,0,0,0,0,0,0,0,0,0,0,0,0,0,0,0,0,0,0,0,0,0,0,0,0,0,0,0,0,0,0,0,0,0,0,0,0,0,0,0]
[]
[null,null,null,"POST-Case"]
[null,null,null,null,"Efficiency Level",1981,{"$f":"F55+1","v":1982},{"$f":"G55+1","v":1983},{"$f":"H55+1","v":1984},{"$f":"I55+1","v":1985},{"$f":"J55+1","v":1986},{"$f":"K55+1","v":1987},{"$f":"L55+1","v":1988},{"$f":"M55+1","v":1989},{"$f":"N55+1","v":1990},{"$f":"O55+1","v":1991},{"$f":"P55+1","v":1992},{"$f":"Q55+1","v":1993},{"$f":"R55+1","v":1994},1995,1996,1997,1998,1999,2000,2001,2002,2003,2004,2005,2006,2007,2008,2009,2010,2011,2012,2013,2014,2015,2016,2017,2018,2019,2020,2021,2022,2023,2024,2025,2026,2027,2028,2029,2030,2031,2032,2033,2034]
[null,null,null,null,"EL0",{"$f":"IF(F$29<STANDARD_YEAR,F45,\nIF(RIGHT($E56,1)>RIGHT(INDEX(STANDARD_LEVELS,1,MID($C41,4,1)),1),F45,\nIF(RIGHT($E56,1)<RIGHT(INDEX(STANDARD_LEVELS,1,MID($C41,4,1)),1),0,\nIF(RIGHT($E56,1)=RIGHT(INDEX(STANDARD_LEVELS,1,MID($C41,4,1)),1),SUM(OFFSET(F45,-(RIGHT($E56,1)),0,RIGHT($E56,1)+1,1)),\"ERROR\"))))","v":0},0,0,{"$f":"IF(I$29<STANDARD_YEAR,I45,\nIF(RIGHT($E56,1)>RIGHT(INDEX(STANDARD_LEVELS,1,MID($C41,4,1)),1),I45,\nIF(RIGHT($E56,1)<RIGHT(INDEX(STANDARD_LEVELS,1,MID($C41,4,1)),1),0,\nIF(RIGHT($E56,1)=RIGHT(INDEX(STANDARD_LEVELS,1,MID($C41,4,1)),1),SUM(OFFSET(I45,-(RIGHT($E56,1)),0,RIGHT($E56,1)+1,1)),\"ERROR\"))))","v":0},0,0,0,0,0,0,0,0,0,0,0,0,0,0,0,0,0,0,0,0,0,0,0,0,0,0,0,0,0,0,0,0,0,0,0,0,0,0,0,0,0,0,0,0,0,0,0,0,0,0]
[null,null,null,null,"EL1",{"$f":"IF(F$29<STANDARD_YEAR,F46,\nIF(RIGHT($E57,1)>RIGHT(INDEX(STANDARD_LEVELS,1,MID($C41,4,1)),1),F46,\nIF(RIGHT($E57,1)<RIGHT(INDEX(STANDARD_LEVELS,1,MID($C41,4,1)),1),0,\nIF(RIGHT($E57,1)=RIGHT(INDEX(STANDARD_LEVELS,1,MID($C41,4,1)),1),SUM(OFFSET(F46,-(RIGHT($E57,1)),0,RIGHT($E57,1)+1,1)),\"ERROR\"))))","v":0},0,0,{"$f":"IF(I$29<STANDARD_YEAR,I46,\nIF(RIGHT($E57,1)>RIGHT(INDEX(STANDARD_LEVELS,1,MID($C41,4,1)),1),I46,\nIF(RIGHT($E57,1)<RIGHT(INDEX(STANDARD_LEVELS,1,MID($C41,4,1)),1),0,\nIF(RIGHT($E57,1)=RIGHT(INDEX(STANDARD_LEVELS,1,MID($C41,4,1)),1),SUM(OFFSET(I46,-(RIGHT($E57,1)),0,RIGHT($E57,1)+1,1)),\"ERROR\"))))","v":0},0,0,0,0,0,0,0,0,0,0,0,0,0,0,0,0,0,0,0,0,0,0,0,0,0,0,0,0,0,0,0,0,0,0,0,0,0,0,0,0,0,0,0,0,0,0,0,0,0,0]
[null,null,null,null,"EL2",{"$f":"IF(F$29<STANDARD_YEAR,F47,\nIF(RIGHT($E58,1)>RIGHT(INDEX(STANDARD_LEVELS,1,MID($C41,4,1)),1),F47,\nIF(RIGHT($E58,1)<RIGHT(INDEX(STANDARD_LEVELS,1,MID($C41,4,1)),1),0,\nIF(RIGHT($E58,1)=RIGHT(INDEX(STANDARD_LEVELS,1,MID($C41,4,1)),1),SUM(OFFSET(F47,-(RIGHT($E58,1)),0,RIGHT($E58,1)+1,1)),\"ERROR\"))))","v":0},0,0,{"$f":"IF(I$29<STANDARD_YEAR,I47,\nIF(RIGHT($E58,1)>RIGHT(INDEX(STANDARD_LEVELS,1,MID($C41,4,1)),1),I47,\nIF(RIGHT($E58,1)<RIGHT(INDEX(STANDARD_LEVELS,1,MID($C41,4,1)),1),0,\nIF(RIGHT($E58,1)=RIGHT(INDEX(STANDARD_LEVELS,1,MID($C41,4,1)),1),SUM(OFFSET(I47,-(RIGHT($E58,1)),0,RIGHT($E58,1)+1,1)),\"ERROR\"))))","v":0},0,0,0,0,0,0,0,0,0,0,0,0,0,0,0,0,0,0,0,0,0,0,0,0,0,0,0,0,0,0,0,0,0,0,0,0,0,0,0,0,0,0,0,0,0,0,0,0,0,0]
[null,null,null,null,"EL3",{"$f":"IF(F$29<STANDARD_YEAR,F48,\nIF(RIGHT($E59,1)>RIGHT(INDEX(STANDARD_LEVELS,1,MID($C41,4,1)),1),F48,\nIF(RIGHT($E59,1)<RIGHT(INDEX(STANDARD_LEVELS,1,MID($C41,4,1)),1),0,\nIF(RIGHT($E59,1)=RIGHT(INDEX(STANDARD_LEVELS,1,MID($C41,4,1)),1),SUM(OFFSET(F48,-(RIGHT($E59,1)),0,RIGHT($E59,1)+1,1)),\"ERROR\"))))","v":0},0,0,{"$f":"IF(I$29<STANDARD_YEAR,I48,\nIF(RIGHT($E59,1)>RIGHT(INDEX(STANDARD_LEVELS,1,MID($C41,4,1)),1),I48,\nIF(RIGHT($E59,1)<RIGHT(INDEX(STANDARD_LEVELS,1,MID($C41,4,1)),1),0,\nIF(RIGHT($E59,1)=RIGHT(INDEX(STANDARD_LEVELS,1,MID($C41,4,1)),1),SUM(OFFSET(I48,-(RIGHT($E59,1)),0,RIGHT($E59,1)+1,1)),\"ERROR\"))))","v":0},0,0,0,0,0,0,0,0,0,0,0,0,0,0,0,0,0,0,0,0,0,0,0,0,0,0,0,0,0,0,0,0,0,0,0,0,0,0,0,0,0,0,0,0,0,0,0,0,0,0]
[null,null,null,null,"EL4",{"$f":"IF(F$29<STANDARD_YEAR,F49,\nIF(RIGHT($E60,1)>RIGHT(INDEX(STANDARD_LEVELS,1,MID($C41,4,1)),1),F49,\nIF(RIGHT($E60,1)<RIGHT(INDEX(STANDARD_LEVELS,1,MID($C41,4,1)),1),0,\nIF(RIGHT($E60,1)=RIGHT(INDEX(STANDARD_LEVELS,1,MID($C41,4,1)),1),SUM(OFFSET(F49,-(RIGHT($E60,1)),0,RIGHT($E60,1)+1,1)),\"ERROR\"))))","v":0},0,0,{"$f":"IF(I$29<STANDARD_YEAR,I49,\nIF(RIGHT($E60,1)>RIGHT(INDEX(STANDARD_LEVELS,1,MID($C41,4,1)),1),I49,\nIF(RIGHT($E60,1)<RIGHT(INDEX(STANDARD_LEVELS,1,MID($C41,4,1)),1),0,\nIF(RIGHT($E60,1)=RIGHT(INDEX(STANDARD_LEVELS,1,MID($C41,4,1)),1),SUM(OFFSET(I49,-(RIGHT($E60,1)),0,RIGHT($E60,1)+1,1)),\"ERROR\"))))","v":0},0,0,0,0,0,0,0,0,0,0,0,0,0,0,0,0,0,0,0,0,0,0,0,0,0,0,0,0,0,0,0,0,0,0,0,0,0,0,0,0,0,0,0,0,0,0,0,0,0,0]
[null,null,null,null,"EL5",{"$f":"IF(F$29<STANDARD_YEAR,F50,\nIF(RIGHT($E61,1)>RIGHT(INDEX(STANDARD_LEVELS,1,MID($C41,4,1)),1),F50,\nIF(RIGHT($E61,1)<RIGHT(INDEX(STANDARD_LEVELS,1,MID($C41,4,1)),1),0,\nIF(RIGHT($E61,1)=RIGHT(INDEX(STANDARD_LEVELS,1,MID($C41,4,1)),1),SUM(OFFSET(F50,-(RIGHT($E61,1)),0,RIGHT($E61,1)+1,1)),\"ERROR\"))))","v":0},0,0,{"$f":"IF(I$29<STANDARD_YEAR,I50,\nIF(RIGHT($E61,1)>RIGHT(INDEX(STANDARD_LEVELS,1,MID($C41,4,1)),1),I50,\nIF(RIGHT($E61,1)<RIGHT(INDEX(STANDARD_LEVELS,1,MID($C41,4,1)),1),0,\nIF(RIGHT($E61,1)=RIGHT(INDEX(STANDARD_LEVELS,1,MID($C41,4,1)),1),SUM(OFFSET(I50,-(RIGHT($E61,1)),0,RIGHT($E61,1)+1,1)),\"ERROR\"))))","v":0},0,0,0,0,0,0,0,0,0,0,0,0,0,0,0,0,0,0,0,0,0,0,0,0,0,0,0,0,0,0,0,0,0,0,0,0,0,0,0,0,0,0,0,0,0,0,0,0,0,0]
[null,null,null,null,"EL6",{"$f":"IF(F$29<STANDARD_YEAR,F51,\nIF(RIGHT($E62,1)>RIGHT(INDEX(STANDARD_LEVELS,1,MID($C41,4,1)),1),F51,\nIF(RIGHT($E62,1)<RIGHT(INDEX(STANDARD_LEVELS,1,MID($C41,4,1)),1),0,\nIF(RIGHT($E62,1)=RIGHT(INDEX(STANDARD_LEVELS,1,MID($C41,4,1)),1),SUM(OFFSET(F51,-(RIGHT($E62,1)),0,RIGHT($E62,1)+1,1)),\"ERROR\"))))","v":0},0,0,{"$f":"IF(I$29<STANDARD_YEAR,I51,\nIF(RIGHT($E62,1)>RIGHT(INDEX(STANDARD_LEVELS,1,MID($C41,4,1)),1),I51,\nIF(RIGHT($E62,1)<RIGHT(INDEX(STANDARD_LEVELS,1,MID($C41,4,1)),1),0,\nIF(RIGHT($E62,1)=RIGHT(INDEX(STANDARD_LEVELS,1,MID($C41,4,1)),1),SUM(OFFSET(I51,-(RIGHT($E62,1)),0,RIGHT($E62,1)+1,1)),\"ERROR\"))))","v":0},0,0,0,0,0,0,0,0,0,0,0,0,0,0,0,0,0,0,0,0,0,0,0,0,0,0,0,0,0,0,0,0,0,0,0,0,0,0,0,0,0,0,0,0,0,0,0,0,0,0]
[null,null,null,null,"TOTAL",{"$f":"SUM(F56:F62)","v":0},0,0,{"$f":"SUM(I56:I62)","v":0},0,0,0,0,0,0,0,0,0,0,0,0,0,0,0,0,0,0,0,0,0,0,0,0,0,0,0,0,0,0,0,0,0,0,0,0,0,0,0,0,0,0,0,0,0,0,0,0,0,0]
[]
[]
[]
[null,null,"PC 3",{"$f":"OFFSET('Product Classes'!$C$9,MATCH(C67,MODEL_PCS,0),0)","v":"Weatherized Non-Condensing Gas Furnace Fan (WG-NC)"}]
[]
[null,null,null,"PRE-Case"]
[null,null,null,null,"Efficiency Level",1981,{"$f":"F70+1","v":1982},{"$f":"G70+1","v":1983},{"$f":"H70+1","v":1984},{"$f":"I70+1","v":1985},{"$f":"J70+1","v":1986},{"$f":"K70+1","v":1987},{"$f":"L70+1","v":1988},{"$f":"M70+1","v":1989},{"$f":"N70+1","v":1990},{"$f":"O70+1","v":1991},{"$f":"P70+1","v":1992},{"$f":"Q70+1","v":1993},{"$f":"R70+1","v":1994},1995,1996,1997,1998,1999,2000,2001,2002,2003,2004,2005,2006,2007,2008,2009,2010,2011,2012,2013,2014,2015,2016,2017,2018,2019,2020,2021,2022,2023,2024,2025,2026,2027,2028,2029,2030,2031,2032,2033,2034]
[null,null,null,null,"EL0",{"$f":"IF(INDEX(PC_MAPPING,RIGHT($C67,1),MATCH($E$2,'Data by Building Type'!$D$22:$F$22,0))=\"Yes\",1,0)*\n(F$10*OFFSET('Efficiency Distributions'!$D$10,MATCH($C67,'Efficiency Distributions'!$C$9:$C$87,0)+RIGHT($E71),0)\n+F$11*OFFSET('Efficiency Distributions'!$E$10,MATCH($C67,'Efficiency Distributions'!$C$9:$C$87,0)+RIGHT($E71),0))\n/SUM(F$10:F$11)","v":0},{"$f":"IF(INDEX(PC_MAPPING,RIGHT($C67,1),MATCH($E$2,'Data by Building Type'!$D$22:$F$22,0))=\"Yes\",1,0)*\n(G$10*OFFSET('Efficiency Distributions'!$D$10,MATCH($C67,'Efficiency Distributions'!$C$9:$C$87,0)+RIGHT($E71),0)\n+G$11*OFFSET('Efficiency Distributions'!$E$10,MATCH($C67,'Efficiency Distributions'!$C$9:$C$87,0)+RIGHT($E71),0))\n/SUM(G$10:G$11)","v":0},{"$f":"IF(INDEX(PC_MAPPING,RIGHT($C67,1),MATCH($E$2,'Data by Building Type'!$D$22:$F$22,0))=\"Yes\",1,0)*\n(H$10*OFFSET('Efficiency Distributions'!$D$10,MATCH($C67,'Efficiency Distributions'!$C$9:$C$87,0)+RIGHT($E71),0)\n+H$11*OFFSET('Efficiency Distributions'!$E$10,MATCH($C67,'Efficiency Distributions'!$C$9:$C$87,0)+RIGHT($E71),0))\n/SUM(H$10:H$11)","v":0},{"$f":"IF(INDEX(PC_MAPPING,RIGHT($C67,1),MATCH($E$2,'Data by Building Type'!$D$22:$F$22,0))=\"Yes\",1,0)*\n(I$10*OFFSET('Efficiency Distributions'!$D$10,MATCH($C67,'Efficiency Distributions'!$C$9:$C$87,0)+RIGHT($E71),0)\n+I$11*OFFSET('Efficiency Distributions'!$E$10,MATCH($C67,'Efficiency Distributions'!$C$9:$C$87,0)+RIGHT($E71),0))\n/SUM(I$10:I$11)","v":0},{"$f":"IF(INDEX(PC_MAPPING,RIGHT($C67,1),MATCH($E$2,'Data by Building Type'!$D$22:$F$22,0))=\"Yes\",1,0)*\n(J$10*OFFSET('Efficiency Distributions'!$D$10,MATCH($C67,'Efficiency Distributions'!$C$9:$C$87,0)+RIGHT($E71),0)\n+J$11*OFFSET('Efficiency Distributions'!$E$10,MATCH($C67,'Efficiency Distributions'!$C$9:$C$87,0)+RIGHT($E71),0))\n/SUM(J$10:J$11)","v":0},{"$f":"IF(INDEX(PC_MAPPING,RIGHT($C67,1),MATCH($E$2,'Data by Building Type'!$D$22:$F$22,0))=\"Yes\",1,0)*\n(K$10*OFFSET('Efficiency Distributions'!$D$10,MATCH($C67,'Efficiency Distributions'!$C$9:$C$87,0)+RIGHT($E71),0)\n+K$11*OFFSET('Efficiency Distributions'!$E$10,MATCH($C67,'Efficiency Distributions'!$C$9:$C$87,0)+RIGHT($E71),0))\n/SUM(K$10:K$11)","v":0},{"$f":"IF(INDEX(PC_MAPPING,RIGHT($C67,1),MATCH($E$2,'Data by Building Type'!$D$22:$F$22,0))=\"Yes\",1,0)*\n(L$10*OFFSET('Efficiency Distributions'!$D$10,MATCH($C67,'Efficiency Distributions'!$C$9:$C$87,0)+RIGHT($E71),0)\n+L$11*OFFSET('Efficiency Distributions'!$E$10,MATCH($C67,'Efficiency Distributions'!$C$9:$C$87,0)+RIGHT($E71),0))\n/SUM(L$10:L$11)","v":0},{"$f":"IF(INDEX(PC_MAPPING,RIGHT($C67,1),MATCH($E$2,'Data by Building Type'!$D$22:$F$22,0))=\"Yes\",1,0)*\n(M$10*OFFSET('Efficiency Distributions'!$D$10,MATCH($C67,'Efficiency Distributions'!$C$9:$C$87,0)+RIGHT($E71),0)\n+M$11*OFFSET('Efficiency Distributions'!$E$10,MATCH($C67,'Efficiency Distributions'!$C$9:$C$87,0)+RIGHT($E71),0))\n/SUM(M$10:M$11)","v":0},{"$f":"IF(INDEX(PC_MAPPING,RIGHT($C67,1),MATCH($E$2,'Data by Building Type'!$D$22:$F$22,0))=\"Yes\",1,0)*\n(N$10*OFFSET('Efficiency Distributions'!$D$10,MATCH($C67,'Efficiency Distributions'!$C$9:$C$87,0)+RIGHT($E71),0)\n+N$11*OFFSET('Efficiency Distributions'!$E$10,MATCH($C67,'Efficiency Distributions'!$C$9:$C$87,0)+RIGHT($E71),0))\n/SUM(N$10:N$11)","v":0},{"$f":"IF(INDEX(PC_MAPPING,RIGHT($C67,1),MATCH($E$2,'Data by Building Type'!$D$22:$F$22,0))=\"Yes\",1,0)*\n(O$10*OFFSET('Efficiency Distributions'!$D$10,MATCH($C67,'Efficiency Distributions'!$C$9:$C$87,0)+RIGHT($E71),0)\n+O$11*OFFSET('Efficiency Distributions'!$E$10,MATCH($C67,'Efficiency Distributions'!$C$9:$C$87,0)+RIGHT($E71),0))\n/SUM(O$10:O$11)","v":0},{"$f":"IF(INDEX(PC_MAPPING,RIGHT($C67,1),MATCH($E$2,'Data by Building Type'!$D$22:$F$22,0))=\"Yes\",1,0)*\n(P$10*OFFSET('Efficiency Distributions'!$D$10,MATCH($C67,'Efficiency Distributions'!$C$9:$C$87,0)+RIGHT($E71),0)\n+P$11*OFFSET('Efficiency Distributions'!$E$10,MATCH($C67,'Efficiency Distributions'!$C$9:$C$87,0)+RIGHT($E71),0))\n/SUM(P$10:P$11)","v":0},{"$f":"IF(INDEX(PC_MAPPING,RIGHT($C67,1),MATCH($E$2,'Data by Building Type'!$D$22:$F$22,0))=\"Yes\",1,0)*\n(Q$10*OFFSET('Efficiency Distributions'!$D$10,MATCH($C67,'Efficiency Distributions'!$C$9:$C$87,0)+RIGHT($E71),0)\n+Q$11*OFFSET('Efficiency Distributions'!$E$10,MATCH($C67,'Efficiency Distributions'!$C$9:$C$87,0)+RIGHT($E71),0))\n/SUM(Q$10:Q$11)","v":0},{"$f":"IF(INDEX(PC_MAPPING,RIGHT($C67,1),MATCH($E$2,'Data by Building Type'!$D$22:$F$22,0))=\"Yes\",1,0)*\n(R$10*OFFSET('Efficiency Distributions'!$D$10,MATCH($C67,'Efficiency Distributions'!$C$9:$C$87,0)+RIGHT($E71),0)\n+R$11*OFFSET('Efficiency Distributions'!$E$10,MATCH($C67,'Efficiency Distributions'!$C$9:$C$87,0)+RIGHT($E71),0))\n/SUM(R$10:R$11)","v":0},{"$f":"IF(INDEX(PC_MAPPING,RIGHT($C67,1),MATCH($E$2,'Data by Building Type'!$D$22:$F$22,0))=\"Yes\",1,0)*\n(S$10*OFFSET('Efficiency Distributions'!$D$10,MATCH($C67,'Efficiency Distributions'!$C$9:$C$87,0)+RIGHT($E71),0)\n+S$11*OFFSET('Efficiency Distributions'!$E$10,MATCH($C67,'Efficiency Distributions'!$C$9:$C$87,0)+RIGHT($E71),0))\n/SUM(S$10:S$11)","v":0},{"$f":"IF(INDEX(PC_MAPPING,RIGHT($C67,1),MATCH($E$2,'Data by Building Type'!$D$22:$F$22,0))=\"Yes\",1,0)*\n(T$10*OFFSET('Efficiency Distributions'!$D$10,MATCH($C67,'Efficiency Distributions'!$C$9:$C$87,0)+RIGHT($E71),0)\n+T$11*OFFSET('Efficiency Distributions'!$E$10,MATCH($C67,'Efficiency Distributions'!$C$9:$C$87,0)+RIGHT($E71),0))\n/SUM(T$10:T$11)","v":0},{"$f":"IF(INDEX(PC_MAPPING,RIGHT($C67,1),MATCH($E$2,'Data by Building Type'!$D$22:$F$22,0))=\"Yes\",1,0)*\n(U$10*OFFSET('Efficiency Distributions'!$D$10,MATCH($C67,'Efficiency Distributions'!$C$9:$C$87,0)+RIGHT($E71),0)\n+U$11*OFFSET('Efficiency Distributions'!$E$10,MATCH($C67,'Efficiency Distributions'!$C$9:$C$87,0)+RIGHT($E71),0))\n/SUM(U$10:U$11)","v":0},{"$f":"IF(INDEX(PC_MAPPING,RIGHT($C67,1),MATCH($E$2,'Data by Building Type'!$D$22:$F$22,0))=\"Yes\",1,0)*\n(V$10*OFFSET('Efficiency Distributions'!$D$10,MATCH($C67,'Efficiency Distributions'!$C$9:$C$87,0)+RIGHT($E71),0)\n+V$11*OFFSET('Efficiency Distributions'!$E$10,MATCH($C67,'Efficiency Distributions'!$C$9:$C$87,0)+RIGHT($E71),0))\n/SUM(V$10:V$11)","v":0},{"$f":"IF(INDEX(PC_MAPPING,RIGHT($C67,1),MATCH($E$2,'Data by Building Type'!$D$22:$F$22,0))=\"Yes\",1,0)*\n(W$10*OFFSET('Efficiency Distributions'!$D$10,MATCH($C67,'Efficiency Distributions'!$C$9:$C$87,0)+RIGHT($E71),0)\n+W$11*OFFSET('Efficiency Distributions'!$E$10,MATCH($C67,'Efficiency Distributions'!$C$9:$C$87,0)+RIGHT($E71),0))\n/SUM(W$10:W$11)","v":0},{"$f":"IF(INDEX(PC_MAPPING,RIGHT($C67,1),MATCH($E$2,'Data by Building Type'!$D$22:$F$22,0))=\"Yes\",1,0)*\n(X$10*OFFSET('Efficiency Distributions'!$D$10,MATCH($C67,'Efficiency Distributions'!$C$9:$C$87,0)+RIGHT($E71),0)\n+X$11*OFFSET('Efficiency Distributions'!$E$10,MATCH($C67,'Efficiency Distributions'!$C$9:$C$87,0)+RIGHT($E71),0))\n/SUM(X$10:X$11)","v":0},{"$f":"IF(INDEX(PC_MAPPING,RIGHT($C67,1),MATCH($E$2,'Data by Building Type'!$D$22:$F$22,0))=\"Yes\",1,0)*\n(Y$10*OFFSET('Efficiency Distributions'!$D$10,MATCH($C67,'Efficiency Distributions'!$C$9:$C$87,0)+RIGHT($E71),0)\n+Y$11*OFFSET('Efficiency Distributions'!$E$10,MATCH($C67,'Efficiency Distributions'!$C$9:$C$87,0)+RIGHT($E71),0))\n/SUM(Y$10:Y$11)","v":0},{"$f":"IF(INDEX(PC_MAPPING,RIGHT($C67,1),MATCH($E$2,'Data by Building Type'!$D$22:$F$22,0))=\"Yes\",1,0)*\n(Z$10*OFFSET('Efficiency Distributions'!$D$10,MATCH($C67,'Efficiency Distributions'!$C$9:$C$87,0)+RIGHT($E71),0)\n+Z$11*OFFSET('Efficiency Distributions'!$E$10,MATCH($C67,'Efficiency Distributions'!$C$9:$C$87,0)+RIGHT($E71),0))\n/SUM(Z$10:Z$11)","v":0},{"$f":"IF(INDEX(PC_MAPPING,RIGHT($C67,1),MATCH($E$2,'Data by Building Type'!$D$22:$F$22,0))=\"Yes\",1,0)*\n(AA$10*OFFSET('Efficiency Distributions'!$D$10,MATCH($C67,'Efficiency Distributions'!$C$9:$C$87,0)+RIGHT($E71),0)\n+AA$11*OFFSET('Efficiency Distributions'!$E$10,MATCH($C67,'Efficiency Distributions'!$C$9:$C$87,0)+RIGHT($E71),0))\n/SUM(AA$10:AA$11)","v":0},{"$f":"IF(INDEX(PC_MAPPING,RIGHT($C67,1),MATCH($E$2,'Data by Building Type'!$D$22:$F$22,0))=\"Yes\",1,0)*\n(AB$10*OFFSET('Efficiency Distributions'!$D$10,MATCH($C67,'Efficiency Distributions'!$C$9:$C$87,0)+RIGHT($E71),0)\n+AB$11*OFFSET('Efficiency Distributions'!$E$10,MATCH($C67,'Efficiency Distributions'!$C$9:$C$87,0)+RIGHT($E71),0))\n/SUM(AB$10:AB$11)","v":0},{"$f":"IF(INDEX(PC_MAPPING,RIGHT($C67,1),MATCH($E$2,'Data by Building Type'!$D$22:$F$22,0))=\"Yes\",1,0)*\n(AC$10*OFFSET('Efficiency Distributions'!$D$10,MATCH($C67,'Efficiency Distributions'!$C$9:$C$87,0)+RIGHT($E71),0)\n+AC$11*OFFSET('Efficiency Distributions'!$E$10,MATCH($C67,'Efficiency Distributions'!$C$9:$C$87,0)+RIGHT($E71),0))\n/SUM(AC$10:AC$11)","v":0},{"$f":"IF(INDEX(PC_MAPPING,RIGHT($C67,1),MATCH($E$2,'Data by Building Type'!$D$22:$F$22,0))=\"Yes\",1,0)*\n(AD$10*OFFSET('Efficiency Distributions'!$D$10,MATCH($C67,'Efficiency Distributions'!$C$9:$C$87,0)+RIGHT($E71),0)\n+AD$11*OFFSET('Efficiency Distributions'!$E$10,MATCH($C67,'Efficiency Distributions'!$C$9:$C$87,0)+RIGHT($E71),0))\n/SUM(AD$10:AD$11)","v":0},{"$f":"IF(INDEX(PC_MAPPING,RIGHT($C67,1),MATCH($E$2,'Data by Building Type'!$D$22:$F$22,0))=\"Yes\",1,0)*\n(AE$10*OFFSET('Efficiency Distributions'!$D$10,MATCH($C67,'Efficiency Distributions'!$C$9:$C$87,0)+RIGHT($E71),0)\n+AE$11*OFFSET('Efficiency Distributions'!$E$10,MATCH($C67,'Efficiency Distributions'!$C$9:$C$87,0)+RIGHT($E71),0))\n/SUM(AE$10:AE$11)","v":0},{"$f":"IF(INDEX(PC_MAPPING,RIGHT($C67,1),MATCH($E$2,'Data by Building Type'!$D$22:$F$22,0))=\"Yes\",1,0)*\n(AF$10*OFFSET('Efficiency Distributions'!$D$10,MATCH($C67,'Efficiency Distributions'!$C$9:$C$87,0)+RIGHT($E71),0)\n+AF$11*OFFSET('Efficiency Distributions'!$E$10,MATCH($C67,'Efficiency Distributions'!$C$9:$C$87,0)+RIGHT($E71),0))\n/SUM(AF$10:AF$11)","v":0},{"$f":"IF(INDEX(PC_MAPPING,RIGHT($C67,1),MATCH($E$2,'Data by Building Type'!$D$22:$F$22,0))=\"Yes\",1,0)*\n(AG$10*OFFSET('Efficiency Distributions'!$D$10,MATCH($C67,'Efficiency Distributions'!$C$9:$C$87,0)+RIGHT($E71),0)\n+AG$11*OFFSET('Efficiency Distributions'!$E$10,MATCH($C67,'Efficiency Distributions'!$C$9:$C$87,0)+RIGHT($E71),0))\n/SUM(AG$10:AG$11)","v":0},{"$f":"IF(INDEX(PC_MAPPING,RIGHT($C67,1),MATCH($E$2,'Data by Building Type'!$D$22:$F$22,0))=\"Yes\",1,0)*\n(AH$10*OFFSET('Efficiency Distributions'!$D$10,MATCH($C67,'Efficiency Distributions'!$C$9:$C$87,0)+RIGHT($E71),0)\n+AH$11*OFFSET('Efficiency Distributions'!$E$10,MATCH($C67,'Efficiency Distributions'!$C$9:$C$87,0)+RIGHT($E71),0))\n/SUM(AH$10:AH$11)","v":0},{"$f":"IF(INDEX(PC_MAPPING,RIGHT($C67,1),MATCH($E$2,'Data by Building Type'!$D$22:$F$22,0))=\"Yes\",1,0)*\n(AI$10*OFFSET('Efficiency Distributions'!$D$10,MATCH($C67,'Efficiency Distributions'!$C$9:$C$87,0)+RIGHT($E71),0)\n+AI$11*OFFSET('Efficiency Distributions'!$E$10,MATCH($C67,'Efficiency Distributions'!$C$9:$C$87,0)+RIGHT($E71),0))\n/SUM(AI$10:AI$11)","v":0},{"$f":"IF(INDEX(PC_MAPPING,RIGHT($C67,1),MATCH($E$2,'Data by Building Type'!$D$22:$F$22,0))=\"Yes\",1,0)*\n(AJ$10*OFFSET('Efficiency Distributions'!$D$10,MATCH($C67,'Efficiency Distributions'!$C$9:$C$87,0)+RIGHT($E71),0)\n+AJ$11*OFFSET('Efficiency Distributions'!$E$10,MATCH($C67,'Efficiency Distributions'!$C$9:$C$87,0)+RIGHT($E71),0))\n/SUM(AJ$10:AJ$11)","v":0},{"$f":"IF(INDEX(PC_MAPPING,RIGHT($C67,1),MATCH($E$2,'Data by Building Type'!$D$22:$F$22,0))=\"Yes\",1,0)*\n(AK$10*OFFSET('Efficiency Distributions'!$D$10,MATCH($C67,'Efficiency Distributions'!$C$9:$C$87,0)+RIGHT($E71),0)\n+AK$11*OFFSET('Efficiency Distributions'!$E$10,MATCH($C67,'Efficiency Distributions'!$C$9:$C$87,0)+RIGHT($E71),0))\n/SUM(AK$10:AK$11)","v":0},{"$f":"IF(INDEX(PC_MAPPING,RIGHT($C67,1),MATCH($E$2,'Data by Building Type'!$D$22:$F$22,0))=\"Yes\",1,0)*\n(AL$10*OFFSET('Efficiency Distributions'!$D$10,MATCH($C67,'Efficiency Distributions'!$C$9:$C$87,0)+RIGHT($E71),0)\n+AL$11*OFFSET('Efficiency Distributions'!$E$10,MATCH($C67,'Efficiency Distributions'!$C$9:$C$87,0)+RIGHT($E71),0))\n/SUM(AL$10:AL$11)","v":0},{"$f":"IF(INDEX(PC_MAPPING,RIGHT($C67,1),MATCH($E$2,'Data by Building Type'!$D$22:$F$22,0))=\"Yes\",1,0)*\n(AM$10*OFFSET('Efficiency Distributions'!$D$10,MATCH($C67,'Efficiency Distributions'!$C$9:$C$87,0)+RIGHT($E71),0)\n+AM$11*OFFSET('Efficiency Distributions'!$E$10,MATCH($C67,'Efficiency Distributions'!$C$9:$C$87,0)+RIGHT($E71),0))\n/SUM(AM$10:AM$11)","v":0},{"$f":"IF(INDEX(PC_MAPPING,RIGHT($C67,1),MATCH($E$2,'Data by Building Type'!$D$22:$F$22,0))=\"Yes\",1,0)*\n(AN$10*OFFSET('Efficiency Distributions'!$D$10,MATCH($C67,'Efficiency Distributions'!$C$9:$C$87,0)+RIGHT($E71),0)\n+AN$11*OFFSET('Efficiency Distributions'!$E$10,MATCH($C67,'Efficiency Distributions'!$C$9:$C$87,0)+RIGHT($E71),0))\n/SUM(AN$10:AN$11)","v":0},{"$f":"IF(INDEX(PC_MAPPING,RIGHT($C67,1),MATCH($E$2,'Data by Building Type'!$D$22:$F$22,0))=\"Yes\",1,0)*\n(AO$10*OFFSET('Efficiency Distributions'!$D$10,MATCH($C67,'Efficiency Distributions'!$C$9:$C$87,0)+RIGHT($E71),0)\n+AO$11*OFFSET('Efficiency Distributions'!$E$10,MATCH($C67,'Efficiency Distributions'!$C$9:$C$87,0)+RIGHT($E71),0))\n/SUM(AO$10:AO$11)","v":0},{"$f":"IF(INDEX(PC_MAPPING,RIGHT($C67,1),MATCH($E$2,'Data by Building Type'!$D$22:$F$22,0))=\"Yes\",1,0)*\n(AP$10*OFFSET('Efficiency Distributions'!$D$10,MATCH($C67,'Efficiency Distributions'!$C$9:$C$87,0)+RIGHT($E71),0)\n+AP$11*OFFSET('Efficiency Distributions'!$E$10,MATCH($C67,'Efficiency Distributions'!$C$9:$C$87,0)+RIGHT($E71),0))\n/SUM(AP$10:AP$11)","v":0},{"$f":"IF(INDEX(PC_MAPPING,RIGHT($C67,1),MATCH($E$2,'Data by Building Type'!$D$22:$F$22,0))=\"Yes\",1,0)*\n(AQ$10*OFFSET('Efficiency Distributions'!$D$10,MATCH($C67,'Efficiency Distributions'!$C$9:$C$87,0)+RIGHT($E71),0)\n+AQ$11*OFFSET('Efficiency Distributions'!$E$10,MATCH($C67,'Efficiency Distributions'!$C$9:$C$87,0)+RIGHT($E71),0))\n/SUM(AQ$10:AQ$11)","v":0},{"$f":"IF(INDEX(PC_MAPPING,RIGHT($C67,1),MATCH($E$2,'Data by Building Type'!$D$22:$F$22,0))=\"Yes\",1,0)*\n(AR$10*OFFSET('Efficiency Distributions'!$D$10,MATCH($C67,'Efficiency Distributions'!$C$9:$C$87,0)+RIGHT($E71),0)\n+AR$11*OFFSET('Efficiency Distributions'!$E$10,MATCH($C67,'Efficiency Distributions'!$C$9:$C$87,0)+RIGHT($E71),0))\n/SUM(AR$10:AR$11)","v":0},{"$f":"IF(INDEX(PC_MAPPING,RIGHT($C67,1),MATCH($E$2,'Data by Building Type'!$D$22:$F$22,0))=\"Yes\",1,0)*\n(AS$10*OFFSET('Efficiency Distributions'!$D$10,MATCH($C67,'Efficiency Distributions'!$C$9:$C$87,0)+RIGHT($E71),0)\n+AS$11*OFFSET('Efficiency Distributions'!$E$10,MATCH($C67,'Efficiency Distributions'!$C$9:$C$87,0)+RIGHT($E71),0))\n/SUM(AS$10:AS$11)","v":0},{"$f":"IF(INDEX(PC_MAPPING,RIGHT($C67,1),MATCH($E$2,'Data by Building Type'!$D$22:$F$22,0))=\"Yes\",1,0)*\n(AT$10*OFFSET('Efficiency Distributions'!$D$10,MATCH($C67,'Efficiency Distributions'!$C$9:$C$87,0)+RIGHT($E71),0)\n+AT$11*OFFSET('Efficiency Distributions'!$E$10,MATCH($C67,'Efficiency Distributions'!$C$9:$C$87,0)+RIGHT($E71),0))\n/SUM(AT$10:AT$11)","v":0},{"$f":"IF(INDEX(PC_MAPPING,RIGHT($C67,1),MATCH($E$2,'Data by Building Type'!$D$22:$F$22,0))=\"Yes\",1,0)*\n(AU$10*OFFSET('Efficiency Distributions'!$D$10,MATCH($C67,'Efficiency Distributions'!$C$9:$C$87,0)+RIGHT($E71),0)\n+AU$11*OFFSET('Efficiency Distributions'!$E$10,MATCH($C67,'Efficiency Distributions'!$C$9:$C$87,0)+RIGHT($E71),0))\n/SUM(AU$10:AU$11)","v":0},{"$f":"IF(INDEX(PC_MAPPING,RIGHT($C67,1),MATCH($E$2,'Data by Building Type'!$D$22:$F$22,0))=\"Yes\",1,0)*\n(AV$10*OFFSET('Efficiency Distributions'!$D$10,MATCH($C67,'Efficiency Distributions'!$C$9:$C$87,0)+RIGHT($E71),0)\n+AV$11*OFFSET('Efficiency Distributions'!$E$10,MATCH($C67,'Efficiency Distributions'!$C$9:$C$87,0)+RIGHT($E71),0))\n/SUM(AV$10:AV$11)","v":0},{"$f":"IF(INDEX(PC_MAPPING,RIGHT($C67,1),MATCH($E$2,'Data by Building Type'!$D$22:$F$22,0))=\"Yes\",1,0)*\n(AW$10*OFFSET('Efficiency Distributions'!$D$10,MATCH($C67,'Efficiency Distributions'!$C$9:$C$87,0)+RIGHT($E71),0)\n+AW$11*OFFSET('Efficiency Distributions'!$E$10,MATCH($C67,'Efficiency Distributions'!$C$9:$C$87,0)+RIGHT($E71),0))\n/SUM(AW$10:AW$11)","v":0},{"$f":"IF(INDEX(PC_MAPPING,RIGHT($C67,1),MATCH($E$2,'Data by Building Type'!$D$22:$F$22,0))=\"Yes\",1,0)*\n(AX$10*OFFSET('Efficiency Distributions'!$D$10,MATCH($C67,'Efficiency Distributions'!$C$9:$C$87,0)+RIGHT($E71),0)\n+AX$11*OFFSET('Efficiency Distributions'!$E$10,MATCH($C67,'Efficiency Distributions'!$C$9:$C$87,0)+RIGHT($E71),0))\n/SUM(AX$10:AX$11)","v":0},{"$f":"IF(INDEX(PC_MAPPING,RIGHT($C67,1),MATCH($E$2,'Data by Building Type'!$D$22:$F$22,0))=\"Yes\",1,0)*\n(AY$10*OFFSET('Efficiency Distributions'!$D$10,MATCH($C67,'Efficiency Distributions'!$C$9:$C$87,0)+RIGHT($E71),0)\n+AY$11*OFFSET('Efficiency Distributions'!$E$10,MATCH($C67,'Efficiency Distributions'!$C$9:$C$87,0)+RIGHT($E71),0))\n/SUM(AY$10:AY$11)","v":0},{"$f":"IF(INDEX(PC_MAPPING,RIGHT($C67,1),MATCH($E$2,'Data by Building Type'!$D$22:$F$22,0))=\"Yes\",1,0)*\n(AZ$10*OFFSET('Efficiency Distributions'!$D$10,MATCH($C67,'Efficiency Distributions'!$C$9:$C$87,0)+RIGHT($E71),0)\n+AZ$11*OFFSET('Efficiency Distributions'!$E$10,MATCH($C67,'Efficiency Distributions'!$C$9:$C$87,0)+RIGHT($E71),0))\n/SUM(AZ$10:AZ$11)","v":0},{"$f":"IF(INDEX(PC_MAPPING,RIGHT($C67,1),MATCH($E$2,'Data by Building Type'!$D$22:$F$22,0))=\"Yes\",1,0)*\n(BA$10*OFFSET('Efficiency Distributions'!$D$10,MATCH($C67,'Efficiency Distributions'!$C$9:$C$87,0)+RIGHT($E71),0)\n+BA$11*OFFSET('Efficiency Distributions'!$E$10,MATCH($C67,'Efficiency Distributions'!$C$9:$C$87,0)+RIGHT($E71),0))\n/SUM(BA$10:BA$11)","v":0},{"$f":"IF(INDEX(PC_MAPPING,RIGHT($C67,1),MATCH($E$2,'Data by Building Type'!$D$22:$F$22,0))=\"Yes\",1,0)*\n(BB$10*OFFSET('Efficiency Distributions'!$D$10,MATCH($C67,'Efficiency Distributions'!$C$9:$C$87,0)+RIGHT($E71),0)\n+BB$11*OFFSET('Efficiency Distributions'!$E$10,MATCH($C67,'Efficiency Distributions'!$C$9:$C$87,0)+RIGHT($E71),0))\n/SUM(BB$10:BB$11)","v":0},{"$f":"IF(INDEX(PC_MAPPING,RIGHT($C67,1),MATCH($E$2,'Data by Building Type'!$D$22:$F$22,0))=\"Yes\",1,0)*\n(BC$10*OFFSET('Efficiency Distributions'!$D$10,MATCH($C67,'Efficiency Distributions'!$C$9:$C$87,0)+RIGHT($E71),0)\n+BC$11*OFFSET('Efficiency Distributions'!$E$10,MATCH($C67,'Efficiency Distributions'!$C$9:$C$87,0)+RIGHT($E71),0))\n/SUM(BC$10:BC$11)","v":0},{"$f":"IF(INDEX(PC_MAPPING,RIGHT($C67,1),MATCH($E$2,'Data by Building Type'!$D$22:$F$22,0))=\"Yes\",1,0)*\n(BD$10*OFFSET('Efficiency Distributions'!$D$10,MATCH($C67,'Efficiency Distributions'!$C$9:$C$87,0)+RIGHT($E71),0)\n+BD$11*OFFSET('Efficiency Distributions'!$E$10,MATCH($C67,'Efficiency Distributions'!$C$9:$C$87,0)+RIGHT($E71),0))\n/SUM(BD$10:BD$11)","v":0},{"$f":"IF(INDEX(PC_MAPPING,RIGHT($C67,1),MATCH($E$2,'Data by Building Type'!$D$22:$F$22,0))=\"Yes\",1,0)*\n(BE$10*OFFSET('Efficiency Distributions'!$D$10,MATCH($C67,'Efficiency Distributions'!$C$9:$C$87,0)+RIGHT($E71),0)\n+BE$11*OFFSET('Efficiency Distributions'!$E$10,MATCH($C67,'Efficiency Distributions'!$C$9:$C$87,0)+RIGHT($E71),0))\n/SUM(BE$10:BE$11)","v":0},{"$f":"IF(INDEX(PC_MAPPING,RIGHT($C67,1),MATCH($E$2,'Data by Building Type'!$D$22:$F$22,0))=\"Yes\",1,0)*\n(BF$10*OFFSET('Efficiency Distributions'!$D$10,MATCH($C67,'Efficiency Distributions'!$C$9:$C$87,0)+RIGHT($E71),0)\n+BF$11*OFFSET('Efficiency Distributions'!$E$10,MATCH($C67,'Efficiency Distributions'!$C$9:$C$87,0)+RIGHT($E71),0))\n/SUM(BF$10:BF$11)","v":0},{"$f":"IF(INDEX(PC_MAPPING,RIGHT($C67,1),MATCH($E$2,'Data by Building Type'!$D$22:$F$22,0))=\"Yes\",1,0)*\n(BG$10*OFFSET('Efficiency Distributions'!$D$10,MATCH($C67,'Efficiency Distributions'!$C$9:$C$87,0)+RIGHT($E71),0)\n+BG$11*OFFSET('Efficiency Distributions'!$E$10,MATCH($C67,'Efficiency Distributions'!$C$9:$C$87,0)+RIGHT($E71),0))\n/SUM(BG$10:BG$11)","v":0}]
[null,null,null,null,"EL1",{"$f":"IF(INDEX(PC_MAPPING,RIGHT($C67,1),MATCH($E$2,'Data by Building Type'!$D$22:$F$22,0))=\"Yes\",1,0)*\n(F$10*OFFSET('Efficiency Distributions'!$D$10,MATCH($C67,'Efficiency Distributions'!$C$9:$C$87,0)+RIGHT($E72),0)\n+F$11*OFFSET('Efficiency Distributions'!$E$10,MATCH($C67,'Efficiency Distributions'!$C$9:$C$87,0)+RIGHT($E72),0))\n/SUM(F$10:F$11)","v":0},{"$f":"IF(INDEX(PC_MAPPING,RIGHT($C67,1),MATCH($E$2,'Data by Building Type'!$D$22:$F$22,0))=\"Yes\",1,0)*\n(G$10*OFFSET('Efficiency Distributions'!$D$10,MATCH($C67,'Efficiency Distributions'!$C$9:$C$87,0)+RIGHT($E72),0)\n+G$11*OFFSET('Efficiency Distributions'!$E$10,MATCH($C67,'Efficiency Distributions'!$C$9:$C$87,0)+RIGHT($E72),0))\n/SUM(G$10:G$11)","v":0},{"$f":"IF(INDEX(PC_MAPPING,RIGHT($C67,1),MATCH($E$2,'Data by Building Type'!$D$22:$F$22,0))=\"Yes\",1,0)*\n(H$10*OFFSET('Efficiency Distributions'!$D$10,MATCH($C67,'Efficiency Distributions'!$C$9:$C$87,0)+RIGHT($E72),0)\n+H$11*OFFSET('Efficiency Distributions'!$E$10,MATCH($C67,'Efficiency Distributions'!$C$9:$C$87,0)+RIGHT($E72),0))\n/SUM(H$10:H$11)","v":0},{"$f":"IF(INDEX(PC_MAPPING,RIGHT($C67,1),MATCH($E$2,'Data by Building Type'!$D$22:$F$22,0))=\"Yes\",1,0)*\n(I$10*OFFSET('Efficiency Distributions'!$D$10,MATCH($C67,'Efficiency Distributions'!$C$9:$C$87,0)+RIGHT($E72),0)\n+I$11*OFFSET('Efficiency Distributions'!$E$10,MATCH($C67,'Efficiency Distributions'!$C$9:$C$87,0)+RIGHT($E72),0))\n/SUM(I$10:I$11)","v":0},{"$f":"IF(INDEX(PC_MAPPING,RIGHT($C67,1),MATCH($E$2,'Data by Building Type'!$D$22:$F$22,0))=\"Yes\",1,0)*\n(J$10*OFFSET('Efficiency Distributions'!$D$10,MATCH($C67,'Efficiency Distributions'!$C$9:$C$87,0)+RIGHT($E72),0)\n+J$11*OFFSET('Efficiency Distributions'!$E$10,MATCH($C67,'Efficiency Distributions'!$C$9:$C$87,0)+RIGHT($E72),0))\n/SUM(J$10:J$11)","v":0},{"$f":"IF(INDEX(PC_MAPPING,RIGHT($C67,1),MATCH($E$2,'Data by Building Type'!$D$22:$F$22,0))=\"Yes\",1,0)*\n(K$10*OFFSET('Efficiency Distributions'!$D$10,MATCH($C67,'Efficiency Distributions'!$C$9:$C$87,0)+RIGHT($E72),0)\n+K$11*OFFSET('Efficiency Distributions'!$E$10,MATCH($C67,'Efficiency Distributions'!$C$9:$C$87,0)+RIGHT($E72),0))\n/SUM(K$10:K$11)","v":0},{"$f":"IF(INDEX(PC_MAPPING,RIGHT($C67,1),MATCH($E$2,'Data by Building Type'!$D$22:$F$22,0))=\"Yes\",1,0)*\n(L$10*OFFSET('Efficiency Distributions'!$D$10,MATCH($C67,'Efficiency Distributions'!$C$9:$C$87,0)+RIGHT($E72),0)\n+L$11*OFFSET('Efficiency Distributions'!$E$10,MATCH($C67,'Efficiency Distributions'!$C$9:$C$87,0)+RIGHT($E72),0))\n/SUM(L$10:L$11)","v":0},{"$f":"IF(INDEX(PC_MAPPING,RIGHT($C67,1),MATCH($E$2,'Data by Building Type'!$D$22:$F$22,0))=\"Yes\",1,0)*\n(M$10*OFFSET('Efficiency Distributions'!$D$10,MATCH($C67,'Efficiency Distributions'!$C$9:$C$87,0)+RIGHT($E72),0)\n+M$11*OFFSET('Efficiency Distributions'!$E$10,MATCH($C67,'Efficiency Distributions'!$C$9:$C$87,0)+RIGHT($E72),0))\n/SUM(M$10:M$11)","v":0},{"$f":"IF(INDEX(PC_MAPPING,RIGHT($C67,1),MATCH($E$2,'Data by Building Type'!$D$22:$F$22,0))=\"Yes\",1,0)*\n(N$10*OFFSET('Efficiency Distributions'!$D$10,MATCH($C67,'Efficiency Distributions'!$C$9:$C$87,0)+RIGHT($E72),0)\n+N$11*OFFSET('Efficiency Distributions'!$E$10,MATCH($C67,'Efficiency Distributions'!$C$9:$C$87,0)+RIGHT($E72),0))\n/SUM(N$10:N$11)","v":0},{"$f":"IF(INDEX(PC_MAPPING,RIGHT($C67,1),MATCH($E$2,'Data by Building Type'!$D$22:$F$22,0))=\"Yes\",1,0)*\n(O$10*OFFSET('Efficiency Distributions'!$D$10,MATCH($C67,'Efficiency Distributions'!$C$9:$C$87,0)+RIGHT($E72),0)\n+O$11*OFFSET('Efficiency Distributions'!$E$10,MATCH($C67,'Efficiency Distributions'!$C$9:$C$87,0)+RIGHT($E72),0))\n/SUM(O$10:O$11)","v":0},{"$f":"IF(INDEX(PC_MAPPING,RIGHT($C67,1),MATCH($E$2,'Data by Building Type'!$D$22:$F$22,0))=\"Yes\",1,0)*\n(P$10*OFFSET('Efficiency Distributions'!$D$10,MATCH($C67,'Efficiency Distributions'!$C$9:$C$87,0)+RIGHT($E72),0)\n+P$11*OFFSET('Efficiency Distributions'!$E$10,MATCH($C67,'Efficiency Distributions'!$C$9:$C$87,0)+RIGHT($E72),0))\n/SUM(P$10:P$11)","v":0},{"$f":"IF(INDEX(PC_MAPPING,RIGHT($C67,1),MATCH($E$2,'Data by Building Type'!$D$22:$F$22,0))=\"Yes\",1,0)*\n(Q$10*OFFSET('Efficiency Distributions'!$D$10,MATCH($C67,'Efficiency Distributions'!$C$9:$C$87,0)+RIGHT($E72),0)\n+Q$11*OFFSET('Efficiency Distributions'!$E$10,MATCH($C67,'Efficiency Distributions'!$C$9:$C$87,0)+RIGHT($E72),0))\n/SUM(Q$10:Q$11)","v":0},{"$f":"IF(INDEX(PC_MAPPING,RIGHT($C67,1),MATCH($E$2,'Data by Building Type'!$D$22:$F$22,0))=\"Yes\",1,0)*\n(R$10*OFFSET('Efficiency Distributions'!$D$10,MATCH($C67,'Efficiency Distributions'!$C$9:$C$87,0)+RIGHT($E72),0)\n+R$11*OFFSET('Efficiency Distributions'!$E$10,MATCH($C67,'Efficiency Distributions'!$C$9:$C$87,0)+RIGHT($E72),0))\n/SUM(R$10:R$11)","v":0},{"$f":"IF(INDEX(PC_MAPPING,RIGHT($C67,1),MATCH($E$2,'Data by Building Type'!$D$22:$F$22,0))=\"Yes\",1,0)*\n(S$10*OFFSET('Efficiency Distributions'!$D$10,MATCH($C67,'Efficiency Distributions'!$C$9:$C$87,0)+RIGHT($E72),0)\n+S$11*OFFSET('Efficiency Distributions'!$E$10,MATCH($C67,'Efficiency Distributions'!$C$9:$C$87,0)+RIGHT($E72),0))\n/SUM(S$10:S$11)","v":0},{"$f":"IF(INDEX(PC_MAPPING,RIGHT($C67,1),MATCH($E$2,'Data by Building Type'!$D$22:$F$22,0))=\"Yes\",1,0)*\n(T$10*OFFSET('Efficiency Distributions'!$D$10,MATCH($C67,'Efficiency Distributions'!$C$9:$C$87,0)+RIGHT($E72),0)\n+T$11*OFFSET('Efficiency Distributions'!$E$10,MATCH($C67,'Efficiency Distributions'!$C$9:$C$87,0)+RIGHT($E72),0))\n/SUM(T$10:T$11)","v":0},{"$f":"IF(INDEX(PC_MAPPING,RIGHT($C67,1),MATCH($E$2,'Data by Building Type'!$D$22:$F$22,0))=\"Yes\",1,0)*\n(U$10*OFFSET('Efficiency Distributions'!$D$10,MATCH($C67,'Efficiency Distributions'!$C$9:$C$87,0)+RIGHT($E72),0)\n+U$11*OFFSET('Efficiency Distributions'!$E$10,MATCH($C67,'Efficiency Distributions'!$C$9:$C$87,0)+RIGHT($E72),0))\n/SUM(U$10:U$11)","v":0},{"$f":"IF(INDEX(PC_MAPPING,RIGHT($C67,1),MATCH($E$2,'Data by Building Type'!$D$22:$F$22,0))=\"Yes\",1,0)*\n(V$10*OFFSET('Efficiency Distributions'!$D$10,MATCH($C67,'Efficiency Distributions'!$C$9:$C$87,0)+RIGHT($E72),0)\n+V$11*OFFSET('Efficiency Distributions'!$E$10,MATCH($C67,'Efficiency Distributions'!$C$9:$C$87,0)+RIGHT($E72),0))\n/SUM(V$10:V$11)","v":0},{"$f":"IF(INDEX(PC_MAPPING,RIGHT($C67,1),MATCH($E$2,'Data by Building Type'!$D$22:$F$22,0))=\"Yes\",1,0)*\n(W$10*OFFSET('Efficiency Distributions'!$D$10,MATCH($C67,'Efficiency Distributions'!$C$9:$C$87,0)+RIGHT($E72),0)\n+W$11*OFFSET('Efficiency Distributions'!$E$10,MATCH($C67,'Efficiency Distributions'!$C$9:$C$87,0)+RIGHT($E72),0))\n/SUM(W$10:W$11)","v":0},{"$f":"IF(INDEX(PC_MAPPING,RIGHT($C67,1),MATCH($E$2,'Data by Building Type'!$D$22:$F$22,0))=\"Yes\",1,0)*\n(X$10*OFFSET('Efficiency Distributions'!$D$10,MATCH($C67,'Efficiency Distributions'!$C$9:$C$87,0)+RIGHT($E72),0)\n+X$11*OFFSET('Efficiency Distributions'!$E$10,MATCH($C67,'Efficiency Distributions'!$C$9:$C$87,0)+RIGHT($E72),0))\n/SUM(X$10:X$11)","v":0},{"$f":"IF(INDEX(PC_MAPPING,RIGHT($C67,1),MATCH($E$2,'Data by Building Type'!$D$22:$F$22,0))=\"Yes\",1,0)*\n(Y$10*OFFSET('Efficiency Distributions'!$D$10,MATCH($C67,'Efficiency Distributions'!$C$9:$C$87,0)+RIGHT($E72),0)\n+Y$11*OFFSET('Efficiency Distributions'!$E$10,MATCH($C67,'Efficiency Distributions'!$C$9:$C$87,0)+RIGHT($E72),0))\n/SUM(Y$10:Y$11)","v":0},{"$f":"IF(INDEX(PC_MAPPING,RIGHT($C67,1),MATCH($E$2,'Data by Building Type'!$D$22:$F$22,0))=\"Yes\",1,0)*\n(Z$10*OFFSET('Efficiency Distributions'!$D$10,MATCH($C67,'Efficiency Distributions'!$C$9:$C$87,0)+RIGHT($E72),0)\n+Z$11*OFFSET('Efficiency Distributions'!$E$10,MATCH($C67,'Efficiency Distributions'!$C$9:$C$87,0)+RIGHT($E72),0))\n/SUM(Z$10:Z$11)","v":0},{"$f":"IF(INDEX(PC_MAPPING,RIGHT($C67,1),MATCH($E$2,'Data by Building Type'!$D$22:$F$22,0))=\"Yes\",1,0)*\n(AA$10*OFFSET('Efficiency Distributions'!$D$10,MATCH($C67,'Efficiency Distributions'!$C$9:$C$87,0)+RIGHT($E72),0)\n+AA$11*OFFSET('Efficiency Distributions'!$E$10,MATCH($C67,'Efficiency Distributions'!$C$9:$C$87,0)+RIGHT($E72),0))\n/SUM(AA$10:AA$11)","v":0},{"$f":"IF(INDEX(PC_MAPPING,RIGHT($C67,1),MATCH($E$2,'Data by Building Type'!$D$22:$F$22,0))=\"Yes\",1,0)*\n(AB$10*OFFSET('Efficiency Distributions'!$D$10,MATCH($C67,'Efficiency Distributions'!$C$9:$C$87,0)+RIGHT($E72),0)\n+AB$11*OFFSET('Efficiency Distributions'!$E$10,MATCH($C67,'Efficiency Distributions'!$C$9:$C$87,0)+RIGHT($E72),0))\n/SUM(AB$10:AB$11)","v":0},{"$f":"IF(INDEX(PC_MAPPING,RIGHT($C67,1),MATCH($E$2,'Data by Building Type'!$D$22:$F$22,0))=\"Yes\",1,0)*\n(AC$10*OFFSET('Efficiency Distributions'!$D$10,MATCH($C67,'Efficiency Distributions'!$C$9:$C$87,0)+RIGHT($E72),0)\n+AC$11*OFFSET('Efficiency Distributions'!$E$10,MATCH($C67,'Efficiency Distributions'!$C$9:$C$87,0)+RIGHT($E72),0))\n/SUM(AC$10:AC$11)","v":0},{"$f":"IF(INDEX(PC_MAPPING,RIGHT($C67,1),MATCH($E$2,'Data by Building Type'!$D$22:$F$22,0))=\"Yes\",1,0)*\n(AD$10*OFFSET('Efficiency Distributions'!$D$10,MATCH($C67,'Efficiency Distributions'!$C$9:$C$87,0)+RIGHT($E72),0)\n+AD$11*OFFSET('Efficiency Distributions'!$E$10,MATCH($C67,'Efficiency Distributions'!$C$9:$C$87,0)+RIGHT($E72),0))\n/SUM(AD$10:AD$11)","v":0},{"$f":"IF(INDEX(PC_MAPPING,RIGHT($C67,1),MATCH($E$2,'Data by Building Type'!$D$22:$F$22,0))=\"Yes\",1,0)*\n(AE$10*OFFSET('Efficiency Distributions'!$D$10,MATCH($C67,'Efficiency Distributions'!$C$9:$C$87,0)+RIGHT($E72),0)\n+AE$11*OFFSET('Efficiency Distributions'!$E$10,MATCH($C67,'Efficiency Distributions'!$C$9:$C$87,0)+RIGHT($E72),0))\n/SUM(AE$10:AE$11)","v":0},{"$f":"IF(INDEX(PC_MAPPING,RIGHT($C67,1),MATCH($E$2,'Data by Building Type'!$D$22:$F$22,0))=\"Yes\",1,0)*\n(AF$10*OFFSET('Efficiency Distributions'!$D$10,MATCH($C67,'Efficiency Distributions'!$C$9:$C$87,0)+RIGHT($E72),0)\n+AF$11*OFFSET('Efficiency Distributions'!$E$10,MATCH($C67,'Efficiency Distributions'!$C$9:$C$87,0)+RIGHT($E72),0))\n/SUM(AF$10:AF$11)","v":0},{"$f":"IF(INDEX(PC_MAPPING,RIGHT($C67,1),MATCH($E$2,'Data by Building Type'!$D$22:$F$22,0))=\"Yes\",1,0)*\n(AG$10*OFFSET('Efficiency Distributions'!$D$10,MATCH($C67,'Efficiency Distributions'!$C$9:$C$87,0)+RIGHT($E72),0)\n+AG$11*OFFSET('Efficiency Distributions'!$E$10,MATCH($C67,'Efficiency Distributions'!$C$9:$C$87,0)+RIGHT($E72),0))\n/SUM(AG$10:AG$11)","v":0},{"$f":"IF(INDEX(PC_MAPPING,RIGHT($C67,1),MATCH($E$2,'Data by Building Type'!$D$22:$F$22,0))=\"Yes\",1,0)*\n(AH$10*OFFSET('Efficiency Distributions'!$D$10,MATCH($C67,'Efficiency Distributions'!$C$9:$C$87,0)+RIGHT($E72),0)\n+AH$11*OFFSET('Efficiency Distributions'!$E$10,MATCH($C67,'Efficiency Distributions'!$C$9:$C$87,0)+RIGHT($E72),0))\n/SUM(AH$10:AH$11)","v":0},{"$f":"IF(INDEX(PC_MAPPING,RIGHT($C67,1),MATCH($E$2,'Data by Building Type'!$D$22:$F$22,0))=\"Yes\",1,0)*\n(AI$10*OFFSET('Efficiency Distributions'!$D$10,MATCH($C67,'Efficiency Distributions'!$C$9:$C$87,0)+RIGHT($E72),0)\n+AI$11*OFFSET('Efficiency Distributions'!$E$10,MATCH($C67,'Efficiency Distributions'!$C$9:$C$87,0)+RIGHT($E72),0))\n/SUM(AI$10:AI$11)","v":0},{"$f":"IF(INDEX(PC_MAPPING,RIGHT($C67,1),MATCH($E$2,'Data by Building Type'!$D$22:$F$22,0))=\"Yes\",1,0)*\n(AJ$10*OFFSET('Efficiency Distributions'!$D$10,MATCH($C67,'Efficiency Distributions'!$C$9:$C$87,0)+RIGHT($E72),0)\n+AJ$11*OFFSET('Efficiency Distributions'!$E$10,MATCH($C67,'Efficiency Distributions'!$C$9:$C$87,0)+RIGHT($E72),0))\n/SUM(AJ$10:AJ$11)","v":0},{"$f":"IF(INDEX(PC_MAPPING,RIGHT($C67,1),MATCH($E$2,'Data by Building Type'!$D$22:$F$22,0))=\"Yes\",1,0)*\n(AK$10*OFFSET('Efficiency Distributions'!$D$10,MATCH($C67,'Efficiency Distributions'!$C$9:$C$87,0)+RIGHT($E72),0)\n+AK$11*OFFSET('Efficiency Distributions'!$E$10,MATCH($C67,'Efficiency Distributions'!$C$9:$C$87,0)+RIGHT($E72),0))\n/SUM(AK$10:AK$11)","v":0},{"$f":"IF(INDEX(PC_MAPPING,RIGHT($C67,1),MATCH($E$2,'Data by Building Type'!$D$22:$F$22,0))=\"Yes\",1,0)*\n(AL$10*OFFSET('Efficiency Distributions'!$D$10,MATCH($C67,'Efficiency Distributions'!$C$9:$C$87,0)+RIGHT($E72),0)\n+AL$11*OFFSET('Efficiency Distributions'!$E$10,MATCH($C67,'Efficiency Distributions'!$C$9:$C$87,0)+RIGHT($E72),0))\n/SUM(AL$10:AL$11)","v":0},{"$f":"IF(INDEX(PC_MAPPING,RIGHT($C67,1),MATCH($E$2,'Data by Building Type'!$D$22:$F$22,0))=\"Yes\",1,0)*\n(AM$10*OFFSET('Efficiency Distributions'!$D$10,MATCH($C67,'Efficiency Distributions'!$C$9:$C$87,0)+RIGHT($E72),0)\n+AM$11*OFFSET('Efficiency Distributions'!$E$10,MATCH($C67,'Efficiency Distributions'!$C$9:$C$87,0)+RIGHT($E72),0))\n/SUM(AM$10:AM$11)","v":0},{"$f":"IF(INDEX(PC_MAPPING,RIGHT($C67,1),MATCH($E$2,'Data by Building Type'!$D$22:$F$22,0))=\"Yes\",1,0)*\n(AN$10*OFFSET('Efficiency Distributions'!$D$10,MATCH($C67,'Efficiency Distributions'!$C$9:$C$87,0)+RIGHT($E72),0)\n+AN$11*OFFSET('Efficiency Distributions'!$E$10,MATCH($C67,'Efficiency Distributions'!$C$9:$C$87,0)+RIGHT($E72),0))\n/SUM(AN$10:AN$11)","v":0},{"$f":"IF(INDEX(PC_MAPPING,RIGHT($C67,1),MATCH($E$2,'Data by Building Type'!$D$22:$F$22,0))=\"Yes\",1,0)*\n(AO$10*OFFSET('Efficiency Distributions'!$D$10,MATCH($C67,'Efficiency Distributions'!$C$9:$C$87,0)+RIGHT($E72),0)\n+AO$11*OFFSET('Efficiency Distributions'!$E$10,MATCH($C67,'Efficiency Distributions'!$C$9:$C$87,0)+RIGHT($E72),0))\n/SUM(AO$10:AO$11)","v":0},{"$f":"IF(INDEX(PC_MAPPING,RIGHT($C67,1),MATCH($E$2,'Data by Building Type'!$D$22:$F$22,0))=\"Yes\",1,0)*\n(AP$10*OFFSET('Efficiency Distributions'!$D$10,MATCH($C67,'Efficiency Distributions'!$C$9:$C$87,0)+RIGHT($E72),0)\n+AP$11*OFFSET('Efficiency Distributions'!$E$10,MATCH($C67,'Efficiency Distributions'!$C$9:$C$87,0)+RIGHT($E72),0))\n/SUM(AP$10:AP$11)","v":0},{"$f":"IF(INDEX(PC_MAPPING,RIGHT($C67,1),MATCH($E$2,'Data by Building Type'!$D$22:$F$22,0))=\"Yes\",1,0)*\n(AQ$10*OFFSET('Efficiency Distributions'!$D$10,MATCH($C67,'Efficiency Distributions'!$C$9:$C$87,0)+RIGHT($E72),0)\n+AQ$11*OFFSET('Efficiency Distributions'!$E$10,MATCH($C67,'Efficiency Distributions'!$C$9:$C$87,0)+RIGHT($E72),0))\n/SUM(AQ$10:AQ$11)","v":0},{"$f":"IF(INDEX(PC_MAPPING,RIGHT($C67,1),MATCH($E$2,'Data by Building Type'!$D$22:$F$22,0))=\"Yes\",1,0)*\n(AR$10*OFFSET('Efficiency Distributions'!$D$10,MATCH($C67,'Efficiency Distributions'!$C$9:$C$87,0)+RIGHT($E72),0)\n+AR$11*OFFSET('Efficiency Distributions'!$E$10,MATCH($C67,'Efficiency Distributions'!$C$9:$C$87,0)+RIGHT($E72),0))\n/SUM(AR$10:AR$11)","v":0},{"$f":"IF(INDEX(PC_MAPPING,RIGHT($C67,1),MATCH($E$2,'Data by Building Type'!$D$22:$F$22,0))=\"Yes\",1,0)*\n(AS$10*OFFSET('Efficiency Distributions'!$D$10,MATCH($C67,'Efficiency Distributions'!$C$9:$C$87,0)+RIGHT($E72),0)\n+AS$11*OFFSET('Efficiency Distributions'!$E$10,MATCH($C67,'Efficiency Distributions'!$C$9:$C$87,0)+RIGHT($E72),0))\n/SUM(AS$10:AS$11)","v":0},{"$f":"IF(INDEX(PC_MAPPING,RIGHT($C67,1),MATCH($E$2,'Data by Building Type'!$D$22:$F$22,0))=\"Yes\",1,0)*\n(AT$10*OFFSET('Efficiency Distributions'!$D$10,MATCH($C67,'Efficiency Distributions'!$C$9:$C$87,0)+RIGHT($E72),0)\n+AT$11*OFFSET('Efficiency Distributions'!$E$10,MATCH($C67,'Efficiency Distributions'!$C$9:$C$87,0)+RIGHT($E72),0))\n/SUM(AT$10:AT$11)","v":0},{"$f":"IF(INDEX(PC_MAPPING,RIGHT($C67,1),MATCH($E$2,'Data by Building Type'!$D$22:$F$22,0))=\"Yes\",1,0)*\n(AU$10*OFFSET('Efficiency Distributions'!$D$10,MATCH($C67,'Efficiency Distributions'!$C$9:$C$87,0)+RIGHT($E72),0)\n+AU$11*OFFSET('Efficiency Distributions'!$E$10,MATCH($C67,'Efficiency Distributions'!$C$9:$C$87,0)+RIGHT($E72),0))\n/SUM(AU$10:AU$11)","v":0},{"$f":"IF(INDEX(PC_MAPPING,RIGHT($C67,1),MATCH($E$2,'Data by Building Type'!$D$22:$F$22,0))=\"Yes\",1,0)*\n(AV$10*OFFSET('Efficiency Distributions'!$D$10,MATCH($C67,'Efficiency Distributions'!$C$9:$C$87,0)+RIGHT($E72),0)\n+AV$11*OFFSET('Efficiency Distributions'!$E$10,MATCH($C67,'Efficiency Distributions'!$C$9:$C$87,0)+RIGHT($E72),0))\n/SUM(AV$10:AV$11)","v":0},{"$f":"IF(INDEX(PC_MAPPING,RIGHT($C67,1),MATCH($E$2,'Data by Building Type'!$D$22:$F$22,0))=\"Yes\",1,0)*\n(AW$10*OFFSET('Efficiency Distributions'!$D$10,MATCH($C67,'Efficiency Distributions'!$C$9:$C$87,0)+RIGHT($E72),0)\n+AW$11*OFFSET('Efficiency Distributions'!$E$10,MATCH($C67,'Efficiency Distributions'!$C$9:$C$87,0)+RIGHT($E72),0))\n/SUM(AW$10:AW$11)","v":0},{"$f":"IF(INDEX(PC_MAPPING,RIGHT($C67,1),MATCH($E$2,'Data by Building Type'!$D$22:$F$22,0))=\"Yes\",1,0)*\n(AX$10*OFFSET('Efficiency Distributions'!$D$10,MATCH($C67,'Efficiency Distributions'!$C$9:$C$87,0)+RIGHT($E72),0)\n+AX$11*OFFSET('Efficiency Distributions'!$E$10,MATCH($C67,'Efficiency Distributions'!$C$9:$C$87,0)+RIGHT($E72),0))\n/SUM(AX$10:AX$11)","v":0},{"$f":"IF(INDEX(PC_MAPPING,RIGHT($C67,1),MATCH($E$2,'Data by Building Type'!$D$22:$F$22,0))=\"Yes\",1,0)*\n(AY$10*OFFSET('Efficiency Distributions'!$D$10,MATCH($C67,'Efficiency Distributions'!$C$9:$C$87,0)+RIGHT($E72),0)\n+AY$11*OFFSET('Efficiency Distributions'!$E$10,MATCH($C67,'Efficiency Distributions'!$C$9:$C$87,0)+RIGHT($E72),0))\n/SUM(AY$10:AY$11)","v":0},{"$f":"IF(INDEX(PC_MAPPING,RIGHT($C67,1),MATCH($E$2,'Data by Building Type'!$D$22:$F$22,0))=\"Yes\",1,0)*\n(AZ$10*OFFSET('Efficiency Distributions'!$D$10,MATCH($C67,'Efficiency Distributions'!$C$9:$C$87,0)+RIGHT($E72),0)\n+AZ$11*OFFSET('Efficiency Distributions'!$E$10,MATCH($C67,'Efficiency Distributions'!$C$9:$C$87,0)+RIGHT($E72),0))\n/SUM(AZ$10:AZ$11)","v":0},{"$f":"IF(INDEX(PC_MAPPING,RIGHT($C67,1),MATCH($E$2,'Data by Building Type'!$D$22:$F$22,0))=\"Yes\",1,0)*\n(BA$10*OFFSET('Efficiency Distributions'!$D$10,MATCH($C67,'Efficiency Distributions'!$C$9:$C$87,0)+RIGHT($E72),0)\n+BA$11*OFFSET('Efficiency Distributions'!$E$10,MATCH($C67,'Efficiency Distributions'!$C$9:$C$87,0)+RIGHT($E72),0))\n/SUM(BA$10:BA$11)","v":0},{"$f":"IF(INDEX(PC_MAPPING,RIGHT($C67,1),MATCH($E$2,'Data by Building Type'!$D$22:$F$22,0))=\"Yes\",1,0)*\n(BB$10*OFFSET('Efficiency Distributions'!$D$10,MATCH($C67,'Efficiency Distributions'!$C$9:$C$87,0)+RIGHT($E72),0)\n+BB$11*OFFSET('Efficiency Distributions'!$E$10,MATCH($C67,'Efficiency Distributions'!$C$9:$C$87,0)+RIGHT($E72),0))\n/SUM(BB$10:BB$11)","v":0},{"$f":"IF(INDEX(PC_MAPPING,RIGHT($C67,1),MATCH($E$2,'Data by Building Type'!$D$22:$F$22,0))=\"Yes\",1,0)*\n(BC$10*OFFSET('Efficiency Distributions'!$D$10,MATCH($C67,'Efficiency Distributions'!$C$9:$C$87,0)+RIGHT($E72),0)\n+BC$11*OFFSET('Efficiency Distributions'!$E$10,MATCH($C67,'Efficiency Distributions'!$C$9:$C$87,0)+RIGHT($E72),0))\n/SUM(BC$10:BC$11)","v":0},{"$f":"IF(INDEX(PC_MAPPING,RIGHT($C67,1),MATCH($E$2,'Data by Building Type'!$D$22:$F$22,0))=\"Yes\",1,0)*\n(BD$10*OFFSET('Efficiency Distributions'!$D$10,MATCH($C67,'Efficiency Distributions'!$C$9:$C$87,0)+RIGHT($E72),0)\n+BD$11*OFFSET('Efficiency Distributions'!$E$10,MATCH($C67,'Efficiency Distributions'!$C$9:$C$87,0)+RIGHT($E72),0))\n/SUM(BD$10:BD$11)","v":0},{"$f":"IF(INDEX(PC_MAPPING,RIGHT($C67,1),MATCH($E$2,'Data by Building Type'!$D$22:$F$22,0))=\"Yes\",1,0)*\n(BE$10*OFFSET('Efficiency Distributions'!$D$10,MATCH($C67,'Efficiency Distributions'!$C$9:$C$87,0)+RIGHT($E72),0)\n+BE$11*OFFSET('Efficiency Distributions'!$E$10,MATCH($C67,'Efficiency Distributions'!$C$9:$C$87,0)+RIGHT($E72),0))\n/SUM(BE$10:BE$11)","v":0},{"$f":"IF(INDEX(PC_MAPPING,RIGHT($C67,1),MATCH($E$2,'Data by Building Type'!$D$22:$F$22,0))=\"Yes\",1,0)*\n(BF$10*OFFSET('Efficiency Distributions'!$D$10,MATCH($C67,'Efficiency Distributions'!$C$9:$C$87,0)+RIGHT($E72),0)\n+BF$11*OFFSET('Efficiency Distributions'!$E$10,MATCH($C67,'Efficiency Distributions'!$C$9:$C$87,0)+RIGHT($E72),0))\n/SUM(BF$10:BF$11)","v":0},{"$f":"IF(INDEX(PC_MAPPING,RIGHT($C67,1),MATCH($E$2,'Data by Building Type'!$D$22:$F$22,0))=\"Yes\",1,0)*\n(BG$10*OFFSET('Efficiency Distributions'!$D$10,MATCH($C67,'Efficiency Distributions'!$C$9:$C$87,0)+RIGHT($E72),0)\n+BG$11*OFFSET('Efficiency Distributions'!$E$10,MATCH($C67,'Efficiency Distributions'!$C$9:$C$87,0)+RIGHT($E72),0))\n/SUM(BG$10:BG$11)","v":0}]
[null,null,null,null,"EL2",{"$f":"IF(INDEX(PC_MAPPING,RIGHT($C67,1),MATCH($E$2,'Data by Building Type'!$D$22:$F$22,0))=\"Yes\",1,0)*\n(F$10*OFFSET('Efficiency Distributions'!$D$10,MATCH($C67,'Efficiency Distributions'!$C$9:$C$87,0)+RIGHT($E73),0)\n+F$11*OFFSET('Efficiency Distributions'!$E$10,MATCH($C67,'Efficiency Distributions'!$C$9:$C$87,0)+RIGHT($E73),0))\n/SUM(F$10:F$11)","v":0},{"$f":"IF(INDEX(PC_MAPPING,RIGHT($C67,1),MATCH($E$2,'Data by Building Type'!$D$22:$F$22,0))=\"Yes\",1,0)*\n(G$10*OFFSET('Efficiency Distributions'!$D$10,MATCH($C67,'Efficiency Distributions'!$C$9:$C$87,0)+RIGHT($E73),0)\n+G$11*OFFSET('Efficiency Distributions'!$E$10,MATCH($C67,'Efficiency Distributions'!$C$9:$C$87,0)+RIGHT($E73),0))\n/SUM(G$10:G$11)","v":0},{"$f":"IF(INDEX(PC_MAPPING,RIGHT($C67,1),MATCH($E$2,'Data by Building Type'!$D$22:$F$22,0))=\"Yes\",1,0)*\n(H$10*OFFSET('Efficiency Distributions'!$D$10,MATCH($C67,'Efficiency Distributions'!$C$9:$C$87,0)+RIGHT($E73),0)\n+H$11*OFFSET('Efficiency Distributions'!$E$10,MATCH($C67,'Efficiency Distributions'!$C$9:$C$87,0)+RIGHT($E73),0))\n/SUM(H$10:H$11)","v":0},{"$f":"IF(INDEX(PC_MAPPING,RIGHT($C67,1),MATCH($E$2,'Data by Building Type'!$D$22:$F$22,0))=\"Yes\",1,0)*\n(I$10*OFFSET('Efficiency Distributions'!$D$10,MATCH($C67,'Efficiency Distributions'!$C$9:$C$87,0)+RIGHT($E73),0)\n+I$11*OFFSET('Efficiency Distributions'!$E$10,MATCH($C67,'Efficiency Distributions'!$C$9:$C$87,0)+RIGHT($E73),0))\n/SUM(I$10:I$11)","v":0},{"$f":"IF(INDEX(PC_MAPPING,RIGHT($C67,1),MATCH($E$2,'Data by Building Type'!$D$22:$F$22,0))=\"Yes\",1,0)*\n(J$10*OFFSET('Efficiency Distributions'!$D$10,MATCH($C67,'Efficiency Distributions'!$C$9:$C$87,0)+RIGHT($E73),0)\n+J$11*OFFSET('Efficiency Distributions'!$E$10,MATCH($C67,'Efficiency Distributions'!$C$9:$C$87,0)+RIGHT($E73),0))\n/SUM(J$10:J$11)","v":0},{"$f":"IF(INDEX(PC_MAPPING,RIGHT($C67,1),MATCH($E$2,'Data by Building Type'!$D$22:$F$22,0))=\"Yes\",1,0)*\n(K$10*OFFSET('Efficiency Distributions'!$D$10,MATCH($C67,'Efficiency Distributions'!$C$9:$C$87,0)+RIGHT($E73),0)\n+K$11*OFFSET('Efficiency Distributions'!$E$10,MATCH($C67,'Efficiency Distributions'!$C$9:$C$87,0)+RIGHT($E73),0))\n/SUM(K$10:K$11)","v":0},{"$f":"IF(INDEX(PC_MAPPING,RIGHT($C67,1),MATCH($E$2,'Data by Building Type'!$D$22:$F$22,0))=\"Yes\",1,0)*\n(L$10*OFFSET('Efficiency Distributions'!$D$10,MATCH($C67,'Efficiency Distributions'!$C$9:$C$87,0)+RIGHT($E73),0)\n+L$11*OFFSET('Efficiency Distributions'!$E$10,MATCH($C67,'Efficiency Distributions'!$C$9:$C$87,0)+RIGHT($E73),0))\n/SUM(L$10:L$11)","v":0},{"$f":"IF(INDEX(PC_MAPPING,RIGHT($C67,1),MATCH($E$2,'Data by Building Type'!$D$22:$F$22,0))=\"Yes\",1,0)*\n(M$10*OFFSET('Efficiency Distributions'!$D$10,MATCH($C67,'Efficiency Distributions'!$C$9:$C$87,0)+RIGHT($E73),0)\n+M$11*OFFSET('Efficiency Distributions'!$E$10,MATCH($C67,'Efficiency Distributions'!$C$9:$C$87,0)+RIGHT($E73),0))\n/SUM(M$10:M$11)","v":0},{"$f":"IF(INDEX(PC_MAPPING,RIGHT($C67,1),MATCH($E$2,'Data by Building Type'!$D$22:$F$22,0))=\"Yes\",1,0)*\n(N$10*OFFSET('Efficiency Distributions'!$D$10,MATCH($C67,'Efficiency Distributions'!$C$9:$C$87,0)+RIGHT($E73),0)\n+N$11*OFFSET('Efficiency Distributions'!$E$10,MATCH($C67,'Efficiency Distributions'!$C$9:$C$87,0)+RIGHT($E73),0))\n/SUM(N$10:N$11)","v":0},{"$f":"IF(INDEX(PC_MAPPING,RIGHT($C67,1),MATCH($E$2,'Data by Building Type'!$D$22:$F$22,0))=\"Yes\",1,0)*\n(O$10*OFFSET('Efficiency Distributions'!$D$10,MATCH($C67,'Efficiency Distributions'!$C$9:$C$87,0)+RIGHT($E73),0)\n+O$11*OFFSET('Efficiency Distributions'!$E$10,MATCH($C67,'Efficiency Distributions'!$C$9:$C$87,0)+RIGHT($E73),0))\n/SUM(O$10:O$11)","v":0},{"$f":"IF(INDEX(PC_MAPPING,RIGHT($C67,1),MATCH($E$2,'Data by Building Type'!$D$22:$F$22,0))=\"Yes\",1,0)*\n(P$10*OFFSET('Efficiency Distributions'!$D$10,MATCH($C67,'Efficiency Distributions'!$C$9:$C$87,0)+RIGHT($E73),0)\n+P$11*OFFSET('Efficiency Distributions'!$E$10,MATCH($C67,'Efficiency Distributions'!$C$9:$C$87,0)+RIGHT($E73),0))\n/SUM(P$10:P$11)","v":0},{"$f":"IF(INDEX(PC_MAPPING,RIGHT($C67,1),MATCH($E$2,'Data by Building Type'!$D$22:$F$22,0))=\"Yes\",1,0)*\n(Q$10*OFFSET('Efficiency Distributions'!$D$10,MATCH($C67,'Efficiency Distributions'!$C$9:$C$87,0)+RIGHT($E73),0)\n+Q$11*OFFSET('Efficiency Distributions'!$E$10,MATCH($C67,'Efficiency Distributions'!$C$9:$C$87,0)+RIGHT($E73),0))\n/SUM(Q$10:Q$11)","v":0},{"$f":"IF(INDEX(PC_MAPPING,RIGHT($C67,1),MATCH($E$2,'Data by Building Type'!$D$22:$F$22,0))=\"Yes\",1,0)*\n(R$10*OFFSET('Efficiency Distributions'!$D$10,MATCH($C67,'Efficiency Distributions'!$C$9:$C$87,0)+RIGHT($E73),0)\n+R$11*OFFSET('Efficiency Distributions'!$E$10,MATCH($C67,'Efficiency Distributions'!$C$9:$C$87,0)+RIGHT($E73),0))\n/SUM(R$10:R$11)","v":0},{"$f":"IF(INDEX(PC_MAPPING,RIGHT($C67,1),MATCH($E$2,'Data by Building Type'!$D$22:$F$22,0))=\"Yes\",1,0)*\n(S$10*OFFSET('Efficiency Distributions'!$D$10,MATCH($C67,'Efficiency Distributions'!$C$9:$C$87,0)+RIGHT($E73),0)\n+S$11*OFFSET('Efficiency Distributions'!$E$10,MATCH($C67,'Efficiency Distributions'!$C$9:$C$87,0)+RIGHT($E73),0))\n/SUM(S$10:S$11)","v":0},{"$f":"IF(INDEX(PC_MAPPING,RIGHT($C67,1),MATCH($E$2,'Data by Building Type'!$D$22:$F$22,0))=\"Yes\",1,0)*\n(T$10*OFFSET('Efficiency Distributions'!$D$10,MATCH($C67,'Efficiency Distributions'!$C$9:$C$87,0)+RIGHT($E73),0)\n+T$11*OFFSET('Efficiency Distributions'!$E$10,MATCH($C67,'Efficiency Distributions'!$C$9:$C$87,0)+RIGHT($E73),0))\n/SUM(T$10:T$11)","v":0},{"$f":"IF(INDEX(PC_MAPPING,RIGHT($C67,1),MATCH($E$2,'Data by Building Type'!$D$22:$F$22,0))=\"Yes\",1,0)*\n(U$10*OFFSET('Efficiency Distributions'!$D$10,MATCH($C67,'Efficiency Distributions'!$C$9:$C$87,0)+RIGHT($E73),0)\n+U$11*OFFSET('Efficiency Distributions'!$E$10,MATCH($C67,'Efficiency Distributions'!$C$9:$C$87,0)+RIGHT($E73),0))\n/SUM(U$10:U$11)","v":0},{"$f":"IF(INDEX(PC_MAPPING,RIGHT($C67,1),MATCH($E$2,'Data by Building Type'!$D$22:$F$22,0))=\"Yes\",1,0)*\n(V$10*OFFSET('Efficiency Distributions'!$D$10,MATCH($C67,'Efficiency Distributions'!$C$9:$C$87,0)+RIGHT($E73),0)\n+V$11*OFFSET('Efficiency Distributions'!$E$10,MATCH($C67,'Efficiency Distributions'!$C$9:$C$87,0)+RIGHT($E73),0))\n/SUM(V$10:V$11)","v":0},{"$f":"IF(INDEX(PC_MAPPING,RIGHT($C67,1),MATCH($E$2,'Data by Building Type'!$D$22:$F$22,0))=\"Yes\",1,0)*\n(W$10*OFFSET('Efficiency Distributions'!$D$10,MATCH($C67,'Efficiency Distributions'!$C$9:$C$87,0)+RIGHT($E73),0)\n+W$11*OFFSET('Efficiency Distributions'!$E$10,MATCH($C67,'Efficiency Distributions'!$C$9:$C$87,0)+RIGHT($E73),0))\n/SUM(W$10:W$11)","v":0},{"$f":"IF(INDEX(PC_MAPPING,RIGHT($C67,1),MATCH($E$2,'Data by Building Type'!$D$22:$F$22,0))=\"Yes\",1,0)*\n(X$10*OFFSET('Efficiency Distributions'!$D$10,MATCH($C67,'Efficiency Distributions'!$C$9:$C$87,0)+RIGHT($E73),0)\n+X$11*OFFSET('Efficiency Distributions'!$E$10,MATCH($C67,'Efficiency Distributions'!$C$9:$C$87,0)+RIGHT($E73),0))\n/SUM(X$10:X$11)","v":0},{"$f":"IF(INDEX(PC_MAPPING,RIGHT($C67,1),MATCH($E$2,'Data by Building Type'!$D$22:$F$22,0))=\"Yes\",1,0)*\n(Y$10*OFFSET('Efficiency Distributions'!$D$10,MATCH($C67,'Efficiency Distributions'!$C$9:$C$87,0)+RIGHT($E73),0)\n+Y$11*OFFSET('Efficiency Distributions'!$E$10,MATCH($C67,'Efficiency Distributions'!$C$9:$C$87,0)+RIGHT($E73),0))\n/SUM(Y$10:Y$11)","v":0},{"$f":"IF(INDEX(PC_MAPPING,RIGHT($C67,1),MATCH($E$2,'Data by Building Type'!$D$22:$F$22,0))=\"Yes\",1,0)*\n(Z$10*OFFSET('Efficiency Distributions'!$D$10,MATCH($C67,'Efficiency Distributions'!$C$9:$C$87,0)+RIGHT($E73),0)\n+Z$11*OFFSET('Efficiency Distributions'!$E$10,MATCH($C67,'Efficiency Distributions'!$C$9:$C$87,0)+RIGHT($E73),0))\n/SUM(Z$10:Z$11)","v":0},{"$f":"IF(INDEX(PC_MAPPING,RIGHT($C67,1),MATCH($E$2,'Data by Building Type'!$D$22:$F$22,0))=\"Yes\",1,0)*\n(AA$10*OFFSET('Efficiency Distributions'!$D$10,MATCH($C67,'Efficiency Distributions'!$C$9:$C$87,0)+RIGHT($E73),0)\n+AA$11*OFFSET('Efficiency Distributions'!$E$10,MATCH($C67,'Efficiency Distributions'!$C$9:$C$87,0)+RIGHT($E73),0))\n/SUM(AA$10:AA$11)","v":0},{"$f":"IF(INDEX(PC_MAPPING,RIGHT($C67,1),MATCH($E$2,'Data by Building Type'!$D$22:$F$22,0))=\"Yes\",1,0)*\n(AB$10*OFFSET('Efficiency Distributions'!$D$10,MATCH($C67,'Efficiency Distributions'!$C$9:$C$87,0)+RIGHT($E73),0)\n+AB$11*OFFSET('Efficiency Distributions'!$E$10,MATCH($C67,'Efficiency Distributions'!$C$9:$C$87,0)+RIGHT($E73),0))\n/SUM(AB$10:AB$11)","v":0},{"$f":"IF(INDEX(PC_MAPPING,RIGHT($C67,1),MATCH($E$2,'Data by Building Type'!$D$22:$F$22,0))=\"Yes\",1,0)*\n(AC$10*OFFSET('Efficiency Distributions'!$D$10,MATCH($C67,'Efficiency Distributions'!$C$9:$C$87,0)+RIGHT($E73),0)\n+AC$11*OFFSET('Efficiency Distributions'!$E$10,MATCH($C67,'Efficiency Distributions'!$C$9:$C$87,0)+RIGHT($E73),0))\n/SUM(AC$10:AC$11)","v":0},{"$f":"IF(INDEX(PC_MAPPING,RIGHT($C67,1),MATCH($E$2,'Data by Building Type'!$D$22:$F$22,0))=\"Yes\",1,0)*\n(AD$10*OFFSET('Efficiency Distributions'!$D$10,MATCH($C67,'Efficiency Distributions'!$C$9:$C$87,0)+RIGHT($E73),0)\n+AD$11*OFFSET('Efficiency Distributions'!$E$10,MATCH($C67,'Efficiency Distributions'!$C$9:$C$87,0)+RIGHT($E73),0))\n/SUM(AD$10:AD$11)","v":0},{"$f":"IF(INDEX(PC_MAPPING,RIGHT($C67,1),MATCH($E$2,'Data by Building Type'!$D$22:$F$22,0))=\"Yes\",1,0)*\n(AE$10*OFFSET('Efficiency Distributions'!$D$10,MATCH($C67,'Efficiency Distributions'!$C$9:$C$87,0)+RIGHT($E73),0)\n+AE$11*OFFSET('Efficiency Distributions'!$E$10,MATCH($C67,'Efficiency Distributions'!$C$9:$C$87,0)+RIGHT($E73),0))\n/SUM(AE$10:AE$11)","v":0},{"$f":"IF(INDEX(PC_MAPPING,RIGHT($C67,1),MATCH($E$2,'Data by Building Type'!$D$22:$F$22,0))=\"Yes\",1,0)*\n(AF$10*OFFSET('Efficiency Distributions'!$D$10,MATCH($C67,'Efficiency Distributions'!$C$9:$C$87,0)+RIGHT($E73),0)\n+AF$11*OFFSET('Efficiency Distributions'!$E$10,MATCH($C67,'Efficiency Distributions'!$C$9:$C$87,0)+RIGHT($E73),0))\n/SUM(AF$10:AF$11)","v":0},{"$f":"IF(INDEX(PC_MAPPING,RIGHT($C67,1),MATCH($E$2,'Data by Building Type'!$D$22:$F$22,0))=\"Yes\",1,0)*\n(AG$10*OFFSET('Efficiency Distributions'!$D$10,MATCH($C67,'Efficiency Distributions'!$C$9:$C$87,0)+RIGHT($E73),0)\n+AG$11*OFFSET('Efficiency Distributions'!$E$10,MATCH($C67,'Efficiency Distributions'!$C$9:$C$87,0)+RIGHT($E73),0))\n/SUM(AG$10:AG$11)","v":0},{"$f":"IF(INDEX(PC_MAPPING,RIGHT($C67,1),MATCH($E$2,'Data by Building Type'!$D$22:$F$22,0))=\"Yes\",1,0)*\n(AH$10*OFFSET('Efficiency Distributions'!$D$10,MATCH($C67,'Efficiency Distributions'!$C$9:$C$87,0)+RIGHT($E73),0)\n+AH$11*OFFSET('Efficiency Distributions'!$E$10,MATCH($C67,'Efficiency Distributions'!$C$9:$C$87,0)+RIGHT($E73),0))\n/SUM(AH$10:AH$11)","v":0},{"$f":"IF(INDEX(PC_MAPPING,RIGHT($C67,1),MATCH($E$2,'Data by Building Type'!$D$22:$F$22,0))=\"Yes\",1,0)*\n(AI$10*OFFSET('Efficiency Distributions'!$D$10,MATCH($C67,'Efficiency Distributions'!$C$9:$C$87,0)+RIGHT($E73),0)\n+AI$11*OFFSET('Efficiency Distributions'!$E$10,MATCH($C67,'Efficiency Distributions'!$C$9:$C$87,0)+RIGHT($E73),0))\n/SUM(AI$10:AI$11)","v":0},{"$f":"IF(INDEX(PC_MAPPING,RIGHT($C67,1),MATCH($E$2,'Data by Building Type'!$D$22:$F$22,0))=\"Yes\",1,0)*\n(AJ$10*OFFSET('Efficiency Distributions'!$D$10,MATCH($C67,'Efficiency Distributions'!$C$9:$C$87,0)+RIGHT($E73),0)\n+AJ$11*OFFSET('Efficiency Distributions'!$E$10,MATCH($C67,'Efficiency Distributions'!$C$9:$C$87,0)+RIGHT($E73),0))\n/SUM(AJ$10:AJ$11)","v":0},{"$f":"IF(INDEX(PC_MAPPING,RIGHT($C67,1),MATCH($E$2,'Data by Building Type'!$D$22:$F$22,0))=\"Yes\",1,0)*\n(AK$10*OFFSET('Efficiency Distributions'!$D$10,MATCH($C67,'Efficiency Distributions'!$C$9:$C$87,0)+RIGHT($E73),0)\n+AK$11*OFFSET('Efficiency Distributions'!$E$10,MATCH($C67,'Efficiency Distributions'!$C$9:$C$87,0)+RIGHT($E73),0))\n/SUM(AK$10:AK$11)","v":0},{"$f":"IF(INDEX(PC_MAPPING,RIGHT($C67,1),MATCH($E$2,'Data by Building Type'!$D$22:$F$22,0))=\"Yes\",1,0)*\n(AL$10*OFFSET('Efficiency Distributions'!$D$10,MATCH($C67,'Efficiency Distributions'!$C$9:$C$87,0)+RIGHT($E73),0)\n+AL$11*OFFSET('Efficiency Distributions'!$E$10,MATCH($C67,'Efficiency Distributions'!$C$9:$C$87,0)+RIGHT($E73),0))\n/SUM(AL$10:AL$11)","v":0},{"$f":"IF(INDEX(PC_MAPPING,RIGHT($C67,1),MATCH($E$2,'Data by Building Type'!$D$22:$F$22,0))=\"Yes\",1,0)*\n(AM$10*OFFSET('Efficiency Distributions'!$D$10,MATCH($C67,'Efficiency Distributions'!$C$9:$C$87,0)+RIGHT($E73),0)\n+AM$11*OFFSET('Efficiency Distributions'!$E$10,MATCH($C67,'Efficiency Distributions'!$C$9:$C$87,0)+RIGHT($E73),0))\n/SUM(AM$10:AM$11)","v":0},{"$f":"IF(INDEX(PC_MAPPING,RIGHT($C67,1),MATCH($E$2,'Data by Building Type'!$D$22:$F$22,0))=\"Yes\",1,0)*\n(AN$10*OFFSET('Efficiency Distributions'!$D$10,MATCH($C67,'Efficiency Distributions'!$C$9:$C$87,0)+RIGHT($E73),0)\n+AN$11*OFFSET('Efficiency Distributions'!$E$10,MATCH($C67,'Efficiency Distributions'!$C$9:$C$87,0)+RIGHT($E73),0))\n/SUM(AN$10:AN$11)","v":0},{"$f":"IF(INDEX(PC_MAPPING,RIGHT($C67,1),MATCH($E$2,'Data by Building Type'!$D$22:$F$22,0))=\"Yes\",1,0)*\n(AO$10*OFFSET('Efficiency Distributions'!$D$10,MATCH($C67,'Efficiency Distributions'!$C$9:$C$87,0)+RIGHT($E73),0)\n+AO$11*OFFSET('Efficiency Distributions'!$E$10,MATCH($C67,'Efficiency Distributions'!$C$9:$C$87,0)+RIGHT($E73),0))\n/SUM(AO$10:AO$11)","v":0},{"$f":"IF(INDEX(PC_MAPPING,RIGHT($C67,1),MATCH($E$2,'Data by Building Type'!$D$22:$F$22,0))=\"Yes\",1,0)*\n(AP$10*OFFSET('Efficiency Distributions'!$D$10,MATCH($C67,'Efficiency Distributions'!$C$9:$C$87,0)+RIGHT($E73),0)\n+AP$11*OFFSET('Efficiency Distributions'!$E$10,MATCH($C67,'Efficiency Distributions'!$C$9:$C$87,0)+RIGHT($E73),0))\n/SUM(AP$10:AP$11)","v":0},{"$f":"IF(INDEX(PC_MAPPING,RIGHT($C67,1),MATCH($E$2,'Data by Building Type'!$D$22:$F$22,0))=\"Yes\",1,0)*\n(AQ$10*OFFSET('Efficiency Distributions'!$D$10,MATCH($C67,'Efficiency Distributions'!$C$9:$C$87,0)+RIGHT($E73),0)\n+AQ$11*OFFSET('Efficiency Distributions'!$E$10,MATCH($C67,'Efficiency Distributions'!$C$9:$C$87,0)+RIGHT($E73),0))\n/SUM(AQ$10:AQ$11)","v":0},{"$f":"IF(INDEX(PC_MAPPING,RIGHT($C67,1),MATCH($E$2,'Data by Building Type'!$D$22:$F$22,0))=\"Yes\",1,0)*\n(AR$10*OFFSET('Efficiency Distributions'!$D$10,MATCH($C67,'Efficiency Distributions'!$C$9:$C$87,0)+RIGHT($E73),0)\n+AR$11*OFFSET('Efficiency Distributions'!$E$10,MATCH($C67,'Efficiency Distributions'!$C$9:$C$87,0)+RIGHT($E73),0))\n/SUM(AR$10:AR$11)","v":0},{"$f":"IF(INDEX(PC_MAPPING,RIGHT($C67,1),MATCH($E$2,'Data by Building Type'!$D$22:$F$22,0))=\"Yes\",1,0)*\n(AS$10*OFFSET('Efficiency Distributions'!$D$10,MATCH($C67,'Efficiency Distributions'!$C$9:$C$87,0)+RIGHT($E73),0)\n+AS$11*OFFSET('Efficiency Distributions'!$E$10,MATCH($C67,'Efficiency Distributions'!$C$9:$C$87,0)+RIGHT($E73),0))\n/SUM(AS$10:AS$11)","v":0},{"$f":"IF(INDEX(PC_MAPPING,RIGHT($C67,1),MATCH($E$2,'Data by Building Type'!$D$22:$F$22,0))=\"Yes\",1,0)*\n(AT$10*OFFSET('Efficiency Distributions'!$D$10,MATCH($C67,'Efficiency Distributions'!$C$9:$C$87,0)+RIGHT($E73),0)\n+AT$11*OFFSET('Efficiency Distributions'!$E$10,MATCH($C67,'Efficiency Distributions'!$C$9:$C$87,0)+RIGHT($E73),0))\n/SUM(AT$10:AT$11)","v":0},{"$f":"IF(INDEX(PC_MAPPING,RIGHT($C67,1),MATCH($E$2,'Data by Building Type'!$D$22:$F$22,0))=\"Yes\",1,0)*\n(AU$10*OFFSET('Efficiency Distributions'!$D$10,MATCH($C67,'Efficiency Distributions'!$C$9:$C$87,0)+RIGHT($E73),0)\n+AU$11*OFFSET('Efficiency Distributions'!$E$10,MATCH($C67,'Efficiency Distributions'!$C$9:$C$87,0)+RIGHT($E73),0))\n/SUM(AU$10:AU$11)","v":0},{"$f":"IF(INDEX(PC_MAPPING,RIGHT($C67,1),MATCH($E$2,'Data by Building Type'!$D$22:$F$22,0))=\"Yes\",1,0)*\n(AV$10*OFFSET('Efficiency Distributions'!$D$10,MATCH($C67,'Efficiency Distributions'!$C$9:$C$87,0)+RIGHT($E73),0)\n+AV$11*OFFSET('Efficiency Distributions'!$E$10,MATCH($C67,'Efficiency Distributions'!$C$9:$C$87,0)+RIGHT($E73),0))\n/SUM(AV$10:AV$11)","v":0},{"$f":"IF(INDEX(PC_MAPPING,RIGHT($C67,1),MATCH($E$2,'Data by Building Type'!$D$22:$F$22,0))=\"Yes\",1,0)*\n(AW$10*OFFSET('Efficiency Distributions'!$D$10,MATCH($C67,'Efficiency Distributions'!$C$9:$C$87,0)+RIGHT($E73),0)\n+AW$11*OFFSET('Efficiency Distributions'!$E$10,MATCH($C67,'Efficiency Distributions'!$C$9:$C$87,0)+RIGHT($E73),0))\n/SUM(AW$10:AW$11)","v":0},{"$f":"IF(INDEX(PC_MAPPING,RIGHT($C67,1),MATCH($E$2,'Data by Building Type'!$D$22:$F$22,0))=\"Yes\",1,0)*\n(AX$10*OFFSET('Efficiency Distributions'!$D$10,MATCH($C67,'Efficiency Distributions'!$C$9:$C$87,0)+RIGHT($E73),0)\n+AX$11*OFFSET('Efficiency Distributions'!$E$10,MATCH($C67,'Efficiency Distributions'!$C$9:$C$87,0)+RIGHT($E73),0))\n/SUM(AX$10:AX$11)","v":0},{"$f":"IF(INDEX(PC_MAPPING,RIGHT($C67,1),MATCH($E$2,'Data by Building Type'!$D$22:$F$22,0))=\"Yes\",1,0)*\n(AY$10*OFFSET('Efficiency Distributions'!$D$10,MATCH($C67,'Efficiency Distributions'!$C$9:$C$87,0)+RIGHT($E73),0)\n+AY$11*OFFSET('Efficiency Distributions'!$E$10,MATCH($C67,'Efficiency Distributions'!$C$9:$C$87,0)+RIGHT($E73),0))\n/SUM(AY$10:AY$11)","v":0},{"$f":"IF(INDEX(PC_MAPPING,RIGHT($C67,1),MATCH($E$2,'Data by Building Type'!$D$22:$F$22,0))=\"Yes\",1,0)*\n(AZ$10*OFFSET('Efficiency Distributions'!$D$10,MATCH($C67,'Efficiency Distributions'!$C$9:$C$87,0)+RIGHT($E73),0)\n+AZ$11*OFFSET('Efficiency Distributions'!$E$10,MATCH($C67,'Efficiency Distributions'!$C$9:$C$87,0)+RIGHT($E73),0))\n/SUM(AZ$10:AZ$11)","v":0},{"$f":"IF(INDEX(PC_MAPPING,RIGHT($C67,1),MATCH($E$2,'Data by Building Type'!$D$22:$F$22,0))=\"Yes\",1,0)*\n(BA$10*OFFSET('Efficiency Distributions'!$D$10,MATCH($C67,'Efficiency Distributions'!$C$9:$C$87,0)+RIGHT($E73),0)\n+BA$11*OFFSET('Efficiency Distributions'!$E$10,MATCH($C67,'Efficiency Distributions'!$C$9:$C$87,0)+RIGHT($E73),0))\n/SUM(BA$10:BA$11)","v":0},{"$f":"IF(INDEX(PC_MAPPING,RIGHT($C67,1),MATCH($E$2,'Data by Building Type'!$D$22:$F$22,0))=\"Yes\",1,0)*\n(BB$10*OFFSET('Efficiency Distributions'!$D$10,MATCH($C67,'Efficiency Distributions'!$C$9:$C$87,0)+RIGHT($E73),0)\n+BB$11*OFFSET('Efficiency Distributions'!$E$10,MATCH($C67,'Efficiency Distributions'!$C$9:$C$87,0)+RIGHT($E73),0))\n/SUM(BB$10:BB$11)","v":0},{"$f":"IF(INDEX(PC_MAPPING,RIGHT($C67,1),MATCH($E$2,'Data by Building Type'!$D$22:$F$22,0))=\"Yes\",1,0)*\n(BC$10*OFFSET('Efficiency Distributions'!$D$10,MATCH($C67,'Efficiency Distributions'!$C$9:$C$87,0)+RIGHT($E73),0)\n+BC$11*OFFSET('Efficiency Distributions'!$E$10,MATCH($C67,'Efficiency Distributions'!$C$9:$C$87,0)+RIGHT($E73),0))\n/SUM(BC$10:BC$11)","v":0},{"$f":"IF(INDEX(PC_MAPPING,RIGHT($C67,1),MATCH($E$2,'Data by Building Type'!$D$22:$F$22,0))=\"Yes\",1,0)*\n(BD$10*OFFSET('Efficiency Distributions'!$D$10,MATCH($C67,'Efficiency Distributions'!$C$9:$C$87,0)+RIGHT($E73),0)\n+BD$11*OFFSET('Efficiency Distributions'!$E$10,MATCH($C67,'Efficiency Distributions'!$C$9:$C$87,0)+RIGHT($E73),0))\n/SUM(BD$10:BD$11)","v":0},{"$f":"IF(INDEX(PC_MAPPING,RIGHT($C67,1),MATCH($E$2,'Data by Building Type'!$D$22:$F$22,0))=\"Yes\",1,0)*\n(BE$10*OFFSET('Efficiency Distributions'!$D$10,MATCH($C67,'Efficiency Distributions'!$C$9:$C$87,0)+RIGHT($E73),0)\n+BE$11*OFFSET('Efficiency Distributions'!$E$10,MATCH($C67,'Efficiency Distributions'!$C$9:$C$87,0)+RIGHT($E73),0))\n/SUM(BE$10:BE$11)","v":0},{"$f":"IF(INDEX(PC_MAPPING,RIGHT($C67,1),MATCH($E$2,'Data by Building Type'!$D$22:$F$22,0))=\"Yes\",1,0)*\n(BF$10*OFFSET('Efficiency Distributions'!$D$10,MATCH($C67,'Efficiency Distributions'!$C$9:$C$87,0)+RIGHT($E73),0)\n+BF$11*OFFSET('Efficiency Distributions'!$E$10,MATCH($C67,'Efficiency Distributions'!$C$9:$C$87,0)+RIGHT($E73),0))\n/SUM(BF$10:BF$11)","v":0},{"$f":"IF(INDEX(PC_MAPPING,RIGHT($C67,1),MATCH($E$2,'Data by Building Type'!$D$22:$F$22,0))=\"Yes\",1,0)*\n(BG$10*OFFSET('Efficiency Distributions'!$D$10,MATCH($C67,'Efficiency Distributions'!$C$9:$C$87,0)+RIGHT($E73),0)\n+BG$11*OFFSET('Efficiency Distributions'!$E$10,MATCH($C67,'Efficiency Distributions'!$C$9:$C$87,0)+RIGHT($E73),0))\n/SUM(BG$10:BG$11)","v":0}]
[null,null,null,null,"EL3",{"$f":"IF(INDEX(PC_MAPPING,RIGHT($C67,1),MATCH($E$2,'Data by Building Type'!$D$22:$F$22,0))=\"Yes\",1,0)*\n(F$10*OFFSET('Efficiency Distributions'!$D$10,MATCH($C67,'Efficiency Distributions'!$C$9:$C$87,0)+RIGHT($E74),0)\n+F$11*OFFSET('Efficiency Distributions'!$E$10,MATCH($C67,'Efficiency Distributions'!$C$9:$C$87,0)+RIGHT($E74),0))\n/SUM(F$10:F$11)","v":0},{"$f":"IF(INDEX(PC_MAPPING,RIGHT($C67,1),MATCH($E$2,'Data by Building Type'!$D$22:$F$22,0))=\"Yes\",1,0)*\n(G$10*OFFSET('Efficiency Distributions'!$D$10,MATCH($C67,'Efficiency Distributions'!$C$9:$C$87,0)+RIGHT($E74),0)\n+G$11*OFFSET('Efficiency Distributions'!$E$10,MATCH($C67,'Efficiency Distributions'!$C$9:$C$87,0)+RIGHT($E74),0))\n/SUM(G$10:G$11)","v":0},{"$f":"IF(INDEX(PC_MAPPING,RIGHT($C67,1),MATCH($E$2,'Data by Building Type'!$D$22:$F$22,0))=\"Yes\",1,0)*\n(H$10*OFFSET('Efficiency Distributions'!$D$10,MATCH($C67,'Efficiency Distributions'!$C$9:$C$87,0)+RIGHT($E74),0)\n+H$11*OFFSET('Efficiency Distributions'!$E$10,MATCH($C67,'Efficiency Distributions'!$C$9:$C$87,0)+RIGHT($E74),0))\n/SUM(H$10:H$11)","v":0},{"$f":"IF(INDEX(PC_MAPPING,RIGHT($C67,1),MATCH($E$2,'Data by Building Type'!$D$22:$F$22,0))=\"Yes\",1,0)*\n(I$10*OFFSET('Efficiency Distributions'!$D$10,MATCH($C67,'Efficiency Distributions'!$C$9:$C$87,0)+RIGHT($E74),0)\n+I$11*OFFSET('Efficiency Distributions'!$E$10,MATCH($C67,'Efficiency Distributions'!$C$9:$C$87,0)+RIGHT($E74),0))\n/SUM(I$10:I$11)","v":0},{"$f":"IF(INDEX(PC_MAPPING,RIGHT($C67,1),MATCH($E$2,'Data by Building Type'!$D$22:$F$22,0))=\"Yes\",1,0)*\n(J$10*OFFSET('Efficiency Distributions'!$D$10,MATCH($C67,'Efficiency Distributions'!$C$9:$C$87,0)+RIGHT($E74),0)\n+J$11*OFFSET('Efficiency Distributions'!$E$10,MATCH($C67,'Efficiency Distributions'!$C$9:$C$87,0)+RIGHT($E74),0))\n/SUM(J$10:J$11)","v":0},{"$f":"IF(INDEX(PC_MAPPING,RIGHT($C67,1),MATCH($E$2,'Data by Building Type'!$D$22:$F$22,0))=\"Yes\",1,0)*\n(K$10*OFFSET('Efficiency Distributions'!$D$10,MATCH($C67,'Efficiency Distributions'!$C$9:$C$87,0)+RIGHT($E74),0)\n+K$11*OFFSET('Efficiency Distributions'!$E$10,MATCH($C67,'Efficiency Distributions'!$C$9:$C$87,0)+RIGHT($E74),0))\n/SUM(K$10:K$11)","v":0},{"$f":"IF(INDEX(PC_MAPPING,RIGHT($C67,1),MATCH($E$2,'Data by Building Type'!$D$22:$F$22,0))=\"Yes\",1,0)*\n(L$10*OFFSET('Efficiency Distributions'!$D$10,MATCH($C67,'Efficiency Distributions'!$C$9:$C$87,0)+RIGHT($E74),0)\n+L$11*OFFSET('Efficiency Distributions'!$E$10,MATCH($C67,'Efficiency Distributions'!$C$9:$C$87,0)+RIGHT($E74),0))\n/SUM(L$10:L$11)","v":0},{"$f":"IF(INDEX(PC_MAPPING,RIGHT($C67,1),MATCH($E$2,'Data by Building Type'!$D$22:$F$22,0))=\"Yes\",1,0)*\n(M$10*OFFSET('Efficiency Distributions'!$D$10,MATCH($C67,'Efficiency Distributions'!$C$9:$C$87,0)+RIGHT($E74),0)\n+M$11*OFFSET('Efficiency Distributions'!$E$10,MATCH($C67,'Efficiency Distributions'!$C$9:$C$87,0)+RIGHT($E74),0))\n/SUM(M$10:M$11)","v":0},{"$f":"IF(INDEX(PC_MAPPING,RIGHT($C67,1),MATCH($E$2,'Data by Building Type'!$D$22:$F$22,0))=\"Yes\",1,0)*\n(N$10*OFFSET('Efficiency Distributions'!$D$10,MATCH($C67,'Efficiency Distributions'!$C$9:$C$87,0)+RIGHT($E74),0)\n+N$11*OFFSET('Efficiency Distributions'!$E$10,MATCH($C67,'Efficiency Distributions'!$C$9:$C$87,0)+RIGHT($E74),0))\n/SUM(N$10:N$11)","v":0},{"$f":"IF(INDEX(PC_MAPPING,RIGHT($C67,1),MATCH($E$2,'Data by Building Type'!$D$22:$F$22,0))=\"Yes\",1,0)*\n(O$10*OFFSET('Efficiency Distributions'!$D$10,MATCH($C67,'Efficiency Distributions'!$C$9:$C$87,0)+RIGHT($E74),0)\n+O$11*OFFSET('Efficiency Distributions'!$E$10,MATCH($C67,'Efficiency Distributions'!$C$9:$C$87,0)+RIGHT($E74),0))\n/SUM(O$10:O$11)","v":0},{"$f":"IF(INDEX(PC_MAPPING,RIGHT($C67,1),MATCH($E$2,'Data by Building Type'!$D$22:$F$22,0))=\"Yes\",1,0)*\n(P$10*OFFSET('Efficiency Distributions'!$D$10,MATCH($C67,'Efficiency Distributions'!$C$9:$C$87,0)+RIGHT($E74),0)\n+P$11*OFFSET('Efficiency Distributions'!$E$10,MATCH($C67,'Efficiency Distributions'!$C$9:$C$87,0)+RIGHT($E74),0))\n/SUM(P$10:P$11)","v":0},{"$f":"IF(INDEX(PC_MAPPING,RIGHT($C67,1),MATCH($E$2,'Data by Building Type'!$D$22:$F$22,0))=\"Yes\",1,0)*\n(Q$10*OFFSET('Efficiency Distributions'!$D$10,MATCH($C67,'Efficiency Distributions'!$C$9:$C$87,0)+RIGHT($E74),0)\n+Q$11*OFFSET('Efficiency Distributions'!$E$10,MATCH($C67,'Efficiency Distributions'!$C$9:$C$87,0)+RIGHT($E74),0))\n/SUM(Q$10:Q$11)","v":0},{"$f":"IF(INDEX(PC_MAPPING,RIGHT($C67,1),MATCH($E$2,'Data by Building Type'!$D$22:$F$22,0))=\"Yes\",1,0)*\n(R$10*OFFSET('Efficiency Distributions'!$D$10,MATCH($C67,'Efficiency Distributions'!$C$9:$C$87,0)+RIGHT($E74),0)\n+R$11*OFFSET('Efficiency Distributions'!$E$10,MATCH($C67,'Efficiency Distributions'!$C$9:$C$87,0)+RIGHT($E74),0))\n/SUM(R$10:R$11)","v":0},{"$f":"IF(INDEX(PC_MAPPING,RIGHT($C67,1),MATCH($E$2,'Data by Building Type'!$D$22:$F$22,0))=\"Yes\",1,0)*\n(S$10*OFFSET('Efficiency Distributions'!$D$10,MATCH($C67,'Efficiency Distributions'!$C$9:$C$87,0)+RIGHT($E74),0)\n+S$11*OFFSET('Efficiency Distributions'!$E$10,MATCH($C67,'Efficiency Distributions'!$C$9:$C$87,0)+RIGHT($E74),0))\n/SUM(S$10:S$11)","v":0},{"$f":"IF(INDEX(PC_MAPPING,RIGHT($C67,1),MATCH($E$2,'Data by Building Type'!$D$22:$F$22,0))=\"Yes\",1,0)*\n(T$10*OFFSET('Efficiency Distributions'!$D$10,MATCH($C67,'Efficiency Distributions'!$C$9:$C$87,0)+RIGHT($E74),0)\n+T$11*OFFSET('Efficiency Distributions'!$E$10,MATCH($C67,'Efficiency Distributions'!$C$9:$C$87,0)+RIGHT($E74),0))\n/SUM(T$10:T$11)","v":0},{"$f":"IF(INDEX(PC_MAPPING,RIGHT($C67,1),MATCH($E$2,'Data by Building Type'!$D$22:$F$22,0))=\"Yes\",1,0)*\n(U$10*OFFSET('Efficiency Distributions'!$D$10,MATCH($C67,'Efficiency Distributions'!$C$9:$C$87,0)+RIGHT($E74),0)\n+U$11*OFFSET('Efficiency Distributions'!$E$10,MATCH($C67,'Efficiency Distributions'!$C$9:$C$87,0)+RIGHT($E74),0))\n/SUM(U$10:U$11)","v":0},{"$f":"IF(INDEX(PC_MAPPING,RIGHT($C67,1),MATCH($E$2,'Data by Building Type'!$D$22:$F$22,0))=\"Yes\",1,0)*\n(V$10*OFFSET('Efficiency Distributions'!$D$10,MATCH($C67,'Efficiency Distributions'!$C$9:$C$87,0)+RIGHT($E74),0)\n+V$11*OFFSET('Efficiency Distributions'!$E$10,MATCH($C67,'Efficiency Distributions'!$C$9:$C$87,0)+RIGHT($E74),0))\n/SUM(V$10:V$11)","v":0},{"$f":"IF(INDEX(PC_MAPPING,RIGHT($C67,1),MATCH($E$2,'Data by Building Type'!$D$22:$F$22,0))=\"Yes\",1,0)*\n(W$10*OFFSET('Efficiency Distributions'!$D$10,MATCH($C67,'Efficiency Distributions'!$C$9:$C$87,0)+RIGHT($E74),0)\n+W$11*OFFSET('Efficiency Distributions'!$E$10,MATCH($C67,'Efficiency Distributions'!$C$9:$C$87,0)+RIGHT($E74),0))\n/SUM(W$10:W$11)","v":0},{"$f":"IF(INDEX(PC_MAPPING,RIGHT($C67,1),MATCH($E$2,'Data by Building Type'!$D$22:$F$22,0))=\"Yes\",1,0)*\n(X$10*OFFSET('Efficiency Distributions'!$D$10,MATCH($C67,'Efficiency Distributions'!$C$9:$C$87,0)+RIGHT($E74),0)\n+X$11*OFFSET('Efficiency Distributions'!$E$10,MATCH($C67,'Efficiency Distributions'!$C$9:$C$87,0)+RIGHT($E74),0))\n/SUM(X$10:X$11)","v":0},{"$f":"IF(INDEX(PC_MAPPING,RIGHT($C67,1),MATCH($E$2,'Data by Building Type'!$D$22:$F$22,0))=\"Yes\",1,0)*\n(Y$10*OFFSET('Efficiency Distributions'!$D$10,MATCH($C67,'Efficiency Distributions'!$C$9:$C$87,0)+RIGHT($E74),0)\n+Y$11*OFFSET('Efficiency Distributions'!$E$10,MATCH($C67,'Efficiency Distributions'!$C$9:$C$87,0)+RIGHT($E74),0))\n/SUM(Y$10:Y$11)","v":0},{"$f":"IF(INDEX(PC_MAPPING,RIGHT($C67,1),MATCH($E$2,'Data by Building Type'!$D$22:$F$22,0))=\"Yes\",1,0)*\n(Z$10*OFFSET('Efficiency Distributions'!$D$10,MATCH($C67,'Efficiency Distributions'!$C$9:$C$87,0)+RIGHT($E74),0)\n+Z$11*OFFSET('Efficiency Distributions'!$E$10,MATCH($C67,'Efficiency Distributions'!$C$9:$C$87,0)+RIGHT($E74),0))\n/SUM(Z$10:Z$11)","v":0},{"$f":"IF(INDEX(PC_MAPPING,RIGHT($C67,1),MATCH($E$2,'Data by Building Type'!$D$22:$F$22,0))=\"Yes\",1,0)*\n(AA$10*OFFSET('Efficiency Distributions'!$D$10,MATCH($C67,'Efficiency Distributions'!$C$9:$C$87,0)+RIGHT($E74),0)\n+AA$11*OFFSET('Efficiency Distributions'!$E$10,MATCH($C67,'Efficiency Distributions'!$C$9:$C$87,0)+RIGHT($E74),0))\n/SUM(AA$10:AA$11)","v":0},{"$f":"IF(INDEX(PC_MAPPING,RIGHT($C67,1),MATCH($E$2,'Data by Building Type'!$D$22:$F$22,0))=\"Yes\",1,0)*\n(AB$10*OFFSET('Efficiency Distributions'!$D$10,MATCH($C67,'Efficiency Distributions'!$C$9:$C$87,0)+RIGHT($E74),0)\n+AB$11*OFFSET('Efficiency Distributions'!$E$10,MATCH($C67,'Efficiency Distributions'!$C$9:$C$87,0)+RIGHT($E74),0))\n/SUM(AB$10:AB$11)","v":0},{"$f":"IF(INDEX(PC_MAPPING,RIGHT($C67,1),MATCH($E$2,'Data by Building Type'!$D$22:$F$22,0))=\"Yes\",1,0)*\n(AC$10*OFFSET('Efficiency Distributions'!$D$10,MATCH($C67,'Efficiency Distributions'!$C$9:$C$87,0)+RIGHT($E74),0)\n+AC$11*OFFSET('Efficiency Distributions'!$E$10,MATCH($C67,'Efficiency Distributions'!$C$9:$C$87,0)+RIGHT($E74),0))\n/SUM(AC$10:AC$11)","v":0},{"$f":"IF(INDEX(PC_MAPPING,RIGHT($C67,1),MATCH($E$2,'Data by Building Type'!$D$22:$F$22,0))=\"Yes\",1,0)*\n(AD$10*OFFSET('Efficiency Distributions'!$D$10,MATCH($C67,'Efficiency Distributions'!$C$9:$C$87,0)+RIGHT($E74),0)\n+AD$11*OFFSET('Efficiency Distributions'!$E$10,MATCH($C67,'Efficiency Distributions'!$C$9:$C$87,0)+RIGHT($E74),0))\n/SUM(AD$10:AD$11)","v":0},{"$f":"IF(INDEX(PC_MAPPING,RIGHT($C67,1),MATCH($E$2,'Data by Building Type'!$D$22:$F$22,0))=\"Yes\",1,0)*\n(AE$10*OFFSET('Efficiency Distributions'!$D$10,MATCH($C67,'Efficiency Distributions'!$C$9:$C$87,0)+RIGHT($E74),0)\n+AE$11*OFFSET('Efficiency Distributions'!$E$10,MATCH($C67,'Efficiency Distributions'!$C$9:$C$87,0)+RIGHT($E74),0))\n/SUM(AE$10:AE$11)","v":0},{"$f":"IF(INDEX(PC_MAPPING,RIGHT($C67,1),MATCH($E$2,'Data by Building Type'!$D$22:$F$22,0))=\"Yes\",1,0)*\n(AF$10*OFFSET('Efficiency Distributions'!$D$10,MATCH($C67,'Efficiency Distributions'!$C$9:$C$87,0)+RIGHT($E74),0)\n+AF$11*OFFSET('Efficiency Distributions'!$E$10,MATCH($C67,'Efficiency Distributions'!$C$9:$C$87,0)+RIGHT($E74),0))\n/SUM(AF$10:AF$11)","v":0},{"$f":"IF(INDEX(PC_MAPPING,RIGHT($C67,1),MATCH($E$2,'Data by Building Type'!$D$22:$F$22,0))=\"Yes\",1,0)*\n(AG$10*OFFSET('Efficiency Distributions'!$D$10,MATCH($C67,'Efficiency Distributions'!$C$9:$C$87,0)+RIGHT($E74),0)\n+AG$11*OFFSET('Efficiency Distributions'!$E$10,MATCH($C67,'Efficiency Distributions'!$C$9:$C$87,0)+RIGHT($E74),0))\n/SUM(AG$10:AG$11)","v":0},{"$f":"IF(INDEX(PC_MAPPING,RIGHT($C67,1),MATCH($E$2,'Data by Building Type'!$D$22:$F$22,0))=\"Yes\",1,0)*\n(AH$10*OFFSET('Efficiency Distributions'!$D$10,MATCH($C67,'Efficiency Distributions'!$C$9:$C$87,0)+RIGHT($E74),0)\n+AH$11*OFFSET('Efficiency Distributions'!$E$10,MATCH($C67,'Efficiency Distributions'!$C$9:$C$87,0)+RIGHT($E74),0))\n/SUM(AH$10:AH$11)","v":0},{"$f":"IF(INDEX(PC_MAPPING,RIGHT($C67,1),MATCH($E$2,'Data by Building Type'!$D$22:$F$22,0))=\"Yes\",1,0)*\n(AI$10*OFFSET('Efficiency Distributions'!$D$10,MATCH($C67,'Efficiency Distributions'!$C$9:$C$87,0)+RIGHT($E74),0)\n+AI$11*OFFSET('Efficiency Distributions'!$E$10,MATCH($C67,'Efficiency Distributions'!$C$9:$C$87,0)+RIGHT($E74),0))\n/SUM(AI$10:AI$11)","v":0},{"$f":"IF(INDEX(PC_MAPPING,RIGHT($C67,1),MATCH($E$2,'Data by Building Type'!$D$22:$F$22,0))=\"Yes\",1,0)*\n(AJ$10*OFFSET('Efficiency Distributions'!$D$10,MATCH($C67,'Efficiency Distributions'!$C$9:$C$87,0)+RIGHT($E74),0)\n+AJ$11*OFFSET('Efficiency Distributions'!$E$10,MATCH($C67,'Efficiency Distributions'!$C$9:$C$87,0)+RIGHT($E74),0))\n/SUM(AJ$10:AJ$11)","v":0},{"$f":"IF(INDEX(PC_MAPPING,RIGHT($C67,1),MATCH($E$2,'Data by Building Type'!$D$22:$F$22,0))=\"Yes\",1,0)*\n(AK$10*OFFSET('Efficiency Distributions'!$D$10,MATCH($C67,'Efficiency Distributions'!$C$9:$C$87,0)+RIGHT($E74),0)\n+AK$11*OFFSET('Efficiency Distributions'!$E$10,MATCH($C67,'Efficiency Distributions'!$C$9:$C$87,0)+RIGHT($E74),0))\n/SUM(AK$10:AK$11)","v":0},{"$f":"IF(INDEX(PC_MAPPING,RIGHT($C67,1),MATCH($E$2,'Data by Building Type'!$D$22:$F$22,0))=\"Yes\",1,0)*\n(AL$10*OFFSET('Efficiency Distributions'!$D$10,MATCH($C67,'Efficiency Distributions'!$C$9:$C$87,0)+RIGHT($E74),0)\n+AL$11*OFFSET('Efficiency Distributions'!$E$10,MATCH($C67,'Efficiency Distributions'!$C$9:$C$87,0)+RIGHT($E74),0))\n/SUM(AL$10:AL$11)","v":0},{"$f":"IF(INDEX(PC_MAPPING,RIGHT($C67,1),MATCH($E$2,'Data by Building Type'!$D$22:$F$22,0))=\"Yes\",1,0)*\n(AM$10*OFFSET('Efficiency Distributions'!$D$10,MATCH($C67,'Efficiency Distributions'!$C$9:$C$87,0)+RIGHT($E74),0)\n+AM$11*OFFSET('Efficiency Distributions'!$E$10,MATCH($C67,'Efficiency Distributions'!$C$9:$C$87,0)+RIGHT($E74),0))\n/SUM(AM$10:AM$11)","v":0},{"$f":"IF(INDEX(PC_MAPPING,RIGHT($C67,1),MATCH($E$2,'Data by Building Type'!$D$22:$F$22,0))=\"Yes\",1,0)*\n(AN$10*OFFSET('Efficiency Distributions'!$D$10,MATCH($C67,'Efficiency Distributions'!$C$9:$C$87,0)+RIGHT($E74),0)\n+AN$11*OFFSET('Efficiency Distributions'!$E$10,MATCH($C67,'Efficiency Distributions'!$C$9:$C$87,0)+RIGHT($E74),0))\n/SUM(AN$10:AN$11)","v":0},{"$f":"IF(INDEX(PC_MAPPING,RIGHT($C67,1),MATCH($E$2,'Data by Building Type'!$D$22:$F$22,0))=\"Yes\",1,0)*\n(AO$10*OFFSET('Efficiency Distributions'!$D$10,MATCH($C67,'Efficiency Distributions'!$C$9:$C$87,0)+RIGHT($E74),0)\n+AO$11*OFFSET('Efficiency Distributions'!$E$10,MATCH($C67,'Efficiency Distributions'!$C$9:$C$87,0)+RIGHT($E74),0))\n/SUM(AO$10:AO$11)","v":0},{"$f":"IF(INDEX(PC_MAPPING,RIGHT($C67,1),MATCH($E$2,'Data by Building Type'!$D$22:$F$22,0))=\"Yes\",1,0)*\n(AP$10*OFFSET('Efficiency Distributions'!$D$10,MATCH($C67,'Efficiency Distributions'!$C$9:$C$87,0)+RIGHT($E74),0)\n+AP$11*OFFSET('Efficiency Distributions'!$E$10,MATCH($C67,'Efficiency Distributions'!$C$9:$C$87,0)+RIGHT($E74),0))\n/SUM(AP$10:AP$11)","v":0},{"$f":"IF(INDEX(PC_MAPPING,RIGHT($C67,1),MATCH($E$2,'Data by Building Type'!$D$22:$F$22,0))=\"Yes\",1,0)*\n(AQ$10*OFFSET('Efficiency Distributions'!$D$10,MATCH($C67,'Efficiency Distributions'!$C$9:$C$87,0)+RIGHT($E74),0)\n+AQ$11*OFFSET('Efficiency Distributions'!$E$10,MATCH($C67,'Efficiency Distributions'!$C$9:$C$87,0)+RIGHT($E74),0))\n/SUM(AQ$10:AQ$11)","v":0},{"$f":"IF(INDEX(PC_MAPPING,RIGHT($C67,1),MATCH($E$2,'Data by Building Type'!$D$22:$F$22,0))=\"Yes\",1,0)*\n(AR$10*OFFSET('Efficiency Distributions'!$D$10,MATCH($C67,'Efficiency Distributions'!$C$9:$C$87,0)+RIGHT($E74),0)\n+AR$11*OFFSET('Efficiency Distributions'!$E$10,MATCH($C67,'Efficiency Distributions'!$C$9:$C$87,0)+RIGHT($E74),0))\n/SUM(AR$10:AR$11)","v":0},{"$f":"IF(INDEX(PC_MAPPING,RIGHT($C67,1),MATCH($E$2,'Data by Building Type'!$D$22:$F$22,0))=\"Yes\",1,0)*\n(AS$10*OFFSET('Efficiency Distributions'!$D$10,MATCH($C67,'Efficiency Distributions'!$C$9:$C$87,0)+RIGHT($E74),0)\n+AS$11*OFFSET('Efficiency Distributions'!$E$10,MATCH($C67,'Efficiency Distributions'!$C$9:$C$87,0)+RIGHT($E74),0))\n/SUM(AS$10:AS$11)","v":0},{"$f":"IF(INDEX(PC_MAPPING,RIGHT($C67,1),MATCH($E$2,'Data by Building Type'!$D$22:$F$22,0))=\"Yes\",1,0)*\n(AT$10*OFFSET('Efficiency Distributions'!$D$10,MATCH($C67,'Efficiency Distributions'!$C$9:$C$87,0)+RIGHT($E74),0)\n+AT$11*OFFSET('Efficiency Distributions'!$E$10,MATCH($C67,'Efficiency Distributions'!$C$9:$C$87,0)+RIGHT($E74),0))\n/SUM(AT$10:AT$11)","v":0},{"$f":"IF(INDEX(PC_MAPPING,RIGHT($C67,1),MATCH($E$2,'Data by Building Type'!$D$22:$F$22,0))=\"Yes\",1,0)*\n(AU$10*OFFSET('Efficiency Distributions'!$D$10,MATCH($C67,'Efficiency Distributions'!$C$9:$C$87,0)+RIGHT($E74),0)\n+AU$11*OFFSET('Efficiency Distributions'!$E$10,MATCH($C67,'Efficiency Distributions'!$C$9:$C$87,0)+RIGHT($E74),0))\n/SUM(AU$10:AU$11)","v":0},{"$f":"IF(INDEX(PC_MAPPING,RIGHT($C67,1),MATCH($E$2,'Data by Building Type'!$D$22:$F$22,0))=\"Yes\",1,0)*\n(AV$10*OFFSET('Efficiency Distributions'!$D$10,MATCH($C67,'Efficiency Distributions'!$C$9:$C$87,0)+RIGHT($E74),0)\n+AV$11*OFFSET('Efficiency Distributions'!$E$10,MATCH($C67,'Efficiency Distributions'!$C$9:$C$87,0)+RIGHT($E74),0))\n/SUM(AV$10:AV$11)","v":0},{"$f":"IF(INDEX(PC_MAPPING,RIGHT($C67,1),MATCH($E$2,'Data by Building Type'!$D$22:$F$22,0))=\"Yes\",1,0)*\n(AW$10*OFFSET('Efficiency Distributions'!$D$10,MATCH($C67,'Efficiency Distributions'!$C$9:$C$87,0)+RIGHT($E74),0)\n+AW$11*OFFSET('Efficiency Distributions'!$E$10,MATCH($C67,'Efficiency Distributions'!$C$9:$C$87,0)+RIGHT($E74),0))\n/SUM(AW$10:AW$11)","v":0},{"$f":"IF(INDEX(PC_MAPPING,RIGHT($C67,1),MATCH($E$2,'Data by Building Type'!$D$22:$F$22,0))=\"Yes\",1,0)*\n(AX$10*OFFSET('Efficiency Distributions'!$D$10,MATCH($C67,'Efficiency Distributions'!$C$9:$C$87,0)+RIGHT($E74),0)\n+AX$11*OFFSET('Efficiency Distributions'!$E$10,MATCH($C67,'Efficiency Distributions'!$C$9:$C$87,0)+RIGHT($E74),0))\n/SUM(AX$10:AX$11)","v":0},{"$f":"IF(INDEX(PC_MAPPING,RIGHT($C67,1),MATCH($E$2,'Data by Building Type'!$D$22:$F$22,0))=\"Yes\",1,0)*\n(AY$10*OFFSET('Efficiency Distributions'!$D$10,MATCH($C67,'Efficiency Distributions'!$C$9:$C$87,0)+RIGHT($E74),0)\n+AY$11*OFFSET('Efficiency Distributions'!$E$10,MATCH($C67,'Efficiency Distributions'!$C$9:$C$87,0)+RIGHT($E74),0))\n/SUM(AY$10:AY$11)","v":0},{"$f":"IF(INDEX(PC_MAPPING,RIGHT($C67,1),MATCH($E$2,'Data by Building Type'!$D$22:$F$22,0))=\"Yes\",1,0)*\n(AZ$10*OFFSET('Efficiency Distributions'!$D$10,MATCH($C67,'Efficiency Distributions'!$C$9:$C$87,0)+RIGHT($E74),0)\n+AZ$11*OFFSET('Efficiency Distributions'!$E$10,MATCH($C67,'Efficiency Distributions'!$C$9:$C$87,0)+RIGHT($E74),0))\n/SUM(AZ$10:AZ$11)","v":0},{"$f":"IF(INDEX(PC_MAPPING,RIGHT($C67,1),MATCH($E$2,'Data by Building Type'!$D$22:$F$22,0))=\"Yes\",1,0)*\n(BA$10*OFFSET('Efficiency Distributions'!$D$10,MATCH($C67,'Efficiency Distributions'!$C$9:$C$87,0)+RIGHT($E74),0)\n+BA$11*OFFSET('Efficiency Distributions'!$E$10,MATCH($C67,'Efficiency Distributions'!$C$9:$C$87,0)+RIGHT($E74),0))\n/SUM(BA$10:BA$11)","v":0},{"$f":"IF(INDEX(PC_MAPPING,RIGHT($C67,1),MATCH($E$2,'Data by Building Type'!$D$22:$F$22,0))=\"Yes\",1,0)*\n(BB$10*OFFSET('Efficiency Distributions'!$D$10,MATCH($C67,'Efficiency Distributions'!$C$9:$C$87,0)+RIGHT($E74),0)\n+BB$11*OFFSET('Efficiency Distributions'!$E$10,MATCH($C67,'Efficiency Distributions'!$C$9:$C$87,0)+RIGHT($E74),0))\n/SUM(BB$10:BB$11)","v":0},{"$f":"IF(INDEX(PC_MAPPING,RIGHT($C67,1),MATCH($E$2,'Data by Building Type'!$D$22:$F$22,0))=\"Yes\",1,0)*\n(BC$10*OFFSET('Efficiency Distributions'!$D$10,MATCH($C67,'Efficiency Distributions'!$C$9:$C$87,0)+RIGHT($E74),0)\n+BC$11*OFFSET('Efficiency Distributions'!$E$10,MATCH($C67,'Efficiency Distributions'!$C$9:$C$87,0)+RIGHT($E74),0))\n/SUM(BC$10:BC$11)","v":0},{"$f":"IF(INDEX(PC_MAPPING,RIGHT($C67,1),MATCH($E$2,'Data by Building Type'!$D$22:$F$22,0))=\"Yes\",1,0)*\n(BD$10*OFFSET('Efficiency Distributions'!$D$10,MATCH($C67,'Efficiency Distributions'!$C$9:$C$87,0)+RIGHT($E74),0)\n+BD$11*OFFSET('Efficiency Distributions'!$E$10,MATCH($C67,'Efficiency Distributions'!$C$9:$C$87,0)+RIGHT($E74),0))\n/SUM(BD$10:BD$11)","v":0},{"$f":"IF(INDEX(PC_MAPPING,RIGHT($C67,1),MATCH($E$2,'Data by Building Type'!$D$22:$F$22,0))=\"Yes\",1,0)*\n(BE$10*OFFSET('Efficiency Distributions'!$D$10,MATCH($C67,'Efficiency Distributions'!$C$9:$C$87,0)+RIGHT($E74),0)\n+BE$11*OFFSET('Efficiency Distributions'!$E$10,MATCH($C67,'Efficiency Distributions'!$C$9:$C$87,0)+RIGHT($E74),0))\n/SUM(BE$10:BE$11)","v":0},{"$f":"IF(INDEX(PC_MAPPING,RIGHT($C67,1),MATCH($E$2,'Data by Building Type'!$D$22:$F$22,0))=\"Yes\",1,0)*\n(BF$10*OFFSET('Efficiency Distributions'!$D$10,MATCH($C67,'Efficiency Distributions'!$C$9:$C$87,0)+RIGHT($E74),0)\n+BF$11*OFFSET('Efficiency Distributions'!$E$10,MATCH($C67,'Efficiency Distributions'!$C$9:$C$87,0)+RIGHT($E74),0))\n/SUM(BF$10:BF$11)","v":0},{"$f":"IF(INDEX(PC_MAPPING,RIGHT($C67,1),MATCH($E$2,'Data by Building Type'!$D$22:$F$22,0))=\"Yes\",1,0)*\n(BG$10*OFFSET('Efficiency Distributions'!$D$10,MATCH($C67,'Efficiency Distributions'!$C$9:$C$87,0)+RIGHT($E74),0)\n+BG$11*OFFSET('Efficiency Distributions'!$E$10,MATCH($C67,'Efficiency Distributions'!$C$9:$C$87,0)+RIGHT($E74),0))\n/SUM(BG$10:BG$11)","v":0}]
[null,null,null,null,"EL4",{"$f":"IF(INDEX(PC_MAPPING,RIGHT($C67,1),MATCH($E$2,'Data by Building Type'!$D$22:$F$22,0))=\"Yes\",1,0)*\n(F$10*OFFSET('Efficiency Distributions'!$D$10,MATCH($C67,'Efficiency Distributions'!$C$9:$C$87,0)+RIGHT($E75),0)\n+F$11*OFFSET('Efficiency Distributions'!$E$10,MATCH($C67,'Efficiency Distributions'!$C$9:$C$87,0)+RIGHT($E75),0))\n/SUM(F$10:F$11)","v":0},{"$f":"IF(INDEX(PC_MAPPING,RIGHT($C67,1),MATCH($E$2,'Data by Building Type'!$D$22:$F$22,0))=\"Yes\",1,0)*\n(G$10*OFFSET('Efficiency Distributions'!$D$10,MATCH($C67,'Efficiency Distributions'!$C$9:$C$87,0)+RIGHT($E75),0)\n+G$11*OFFSET('Efficiency Distributions'!$E$10,MATCH($C67,'Efficiency Distributions'!$C$9:$C$87,0)+RIGHT($E75),0))\n/SUM(G$10:G$11)","v":0},{"$f":"IF(INDEX(PC_MAPPING,RIGHT($C67,1),MATCH($E$2,'Data by Building Type'!$D$22:$F$22,0))=\"Yes\",1,0)*\n(H$10*OFFSET('Efficiency Distributions'!$D$10,MATCH($C67,'Efficiency Distributions'!$C$9:$C$87,0)+RIGHT($E75),0)\n+H$11*OFFSET('Efficiency Distributions'!$E$10,MATCH($C67,'Efficiency Distributions'!$C$9:$C$87,0)+RIGHT($E75),0))\n/SUM(H$10:H$11)","v":0},{"$f":"IF(INDEX(PC_MAPPING,RIGHT($C67,1),MATCH($E$2,'Data by Building Type'!$D$22:$F$22,0))=\"Yes\",1,0)*\n(I$10*OFFSET('Efficiency Distributions'!$D$10,MATCH($C67,'Efficiency Distributions'!$C$9:$C$87,0)+RIGHT($E75),0)\n+I$11*OFFSET('Efficiency Distributions'!$E$10,MATCH($C67,'Efficiency Distributions'!$C$9:$C$87,0)+RIGHT($E75),0))\n/SUM(I$10:I$11)","v":0},{"$f":"IF(INDEX(PC_MAPPING,RIGHT($C67,1),MATCH($E$2,'Data by Building Type'!$D$22:$F$22,0))=\"Yes\",1,0)*\n(J$10*OFFSET('Efficiency Distributions'!$D$10,MATCH($C67,'Efficiency Distributions'!$C$9:$C$87,0)+RIGHT($E75),0)\n+J$11*OFFSET('Efficiency Distributions'!$E$10,MATCH($C67,'Efficiency Distributions'!$C$9:$C$87,0)+RIGHT($E75),0))\n/SUM(J$10:J$11)","v":0},{"$f":"IF(INDEX(PC_MAPPING,RIGHT($C67,1),MATCH($E$2,'Data by Building Type'!$D$22:$F$22,0))=\"Yes\",1,0)*\n(K$10*OFFSET('Efficiency Distributions'!$D$10,MATCH($C67,'Efficiency Distributions'!$C$9:$C$87,0)+RIGHT($E75),0)\n+K$11*OFFSET('Efficiency Distributions'!$E$10,MATCH($C67,'Efficiency Distributions'!$C$9:$C$87,0)+RIGHT($E75),0))\n/SUM(K$10:K$11)","v":0},{"$f":"IF(INDEX(PC_MAPPING,RIGHT($C67,1),MATCH($E$2,'Data by Building Type'!$D$22:$F$22,0))=\"Yes\",1,0)*\n(L$10*OFFSET('Efficiency Distributions'!$D$10,MATCH($C67,'Efficiency Distributions'!$C$9:$C$87,0)+RIGHT($E75),0)\n+L$11*OFFSET('Efficiency Distributions'!$E$10,MATCH($C67,'Efficiency Distributions'!$C$9:$C$87,0)+RIGHT($E75),0))\n/SUM(L$10:L$11)","v":0},{"$f":"IF(INDEX(PC_MAPPING,RIGHT($C67,1),MATCH($E$2,'Data by Building Type'!$D$22:$F$22,0))=\"Yes\",1,0)*\n(M$10*OFFSET('Efficiency Distributions'!$D$10,MATCH($C67,'Efficiency Distributions'!$C$9:$C$87,0)+RIGHT($E75),0)\n+M$11*OFFSET('Efficiency Distributions'!$E$10,MATCH($C67,'Efficiency Distributions'!$C$9:$C$87,0)+RIGHT($E75),0))\n/SUM(M$10:M$11)","v":0},{"$f":"IF(INDEX(PC_MAPPING,RIGHT($C67,1),MATCH($E$2,'Data by Building Type'!$D$22:$F$22,0))=\"Yes\",1,0)*\n(N$10*OFFSET('Efficiency Distributions'!$D$10,MATCH($C67,'Efficiency Distributions'!$C$9:$C$87,0)+RIGHT($E75),0)\n+N$11*OFFSET('Efficiency Distributions'!$E$10,MATCH($C67,'Efficiency Distributions'!$C$9:$C$87,0)+RIGHT($E75),0))\n/SUM(N$10:N$11)","v":0},{"$f":"IF(INDEX(PC_MAPPING,RIGHT($C67,1),MATCH($E$2,'Data by Building Type'!$D$22:$F$22,0))=\"Yes\",1,0)*\n(O$10*OFFSET('Efficiency Distributions'!$D$10,MATCH($C67,'Efficiency Distributions'!$C$9:$C$87,0)+RIGHT($E75),0)\n+O$11*OFFSET('Efficiency Distributions'!$E$10,MATCH($C67,'Efficiency Distributions'!$C$9:$C$87,0)+RIGHT($E75),0))\n/SUM(O$10:O$11)","v":0},{"$f":"IF(INDEX(PC_MAPPING,RIGHT($C67,1),MATCH($E$2,'Data by Building Type'!$D$22:$F$22,0))=\"Yes\",1,0)*\n(P$10*OFFSET('Efficiency Distributions'!$D$10,MATCH($C67,'Efficiency Distributions'!$C$9:$C$87,0)+RIGHT($E75),0)\n+P$11*OFFSET('Efficiency Distributions'!$E$10,MATCH($C67,'Efficiency Distributions'!$C$9:$C$87,0)+RIGHT($E75),0))\n/SUM(P$10:P$11)","v":0},{"$f":"IF(INDEX(PC_MAPPING,RIGHT($C67,1),MATCH($E$2,'Data by Building Type'!$D$22:$F$22,0))=\"Yes\",1,0)*\n(Q$10*OFFSET('Efficiency Distributions'!$D$10,MATCH($C67,'Efficiency Distributions'!$C$9:$C$87,0)+RIGHT($E75),0)\n+Q$11*OFFSET('Efficiency Distributions'!$E$10,MATCH($C67,'Efficiency Distributions'!$C$9:$C$87,0)+RIGHT($E75),0))\n/SUM(Q$10:Q$11)","v":0},{"$f":"IF(INDEX(PC_MAPPING,RIGHT($C67,1),MATCH($E$2,'Data by Building Type'!$D$22:$F$22,0))=\"Yes\",1,0)*\n(R$10*OFFSET('Efficiency Distributions'!$D$10,MATCH($C67,'Efficiency Distributions'!$C$9:$C$87,0)+RIGHT($E75),0)\n+R$11*OFFSET('Efficiency Distributions'!$E$10,MATCH($C67,'Efficiency Distributions'!$C$9:$C$87,0)+RIGHT($E75),0))\n/SUM(R$10:R$11)","v":0},{"$f":"IF(INDEX(PC_MAPPING,RIGHT($C67,1),MATCH($E$2,'Data by Building Type'!$D$22:$F$22,0))=\"Yes\",1,0)*\n(S$10*OFFSET('Efficiency Distributions'!$D$10,MATCH($C67,'Efficiency Distributions'!$C$9:$C$87,0)+RIGHT($E75),0)\n+S$11*OFFSET('Efficiency Distributions'!$E$10,MATCH($C67,'Efficiency Distributions'!$C$9:$C$87,0)+RIGHT($E75),0))\n/SUM(S$10:S$11)","v":0},{"$f":"IF(INDEX(PC_MAPPING,RIGHT($C67,1),MATCH($E$2,'Data by Building Type'!$D$22:$F$22,0))=\"Yes\",1,0)*\n(T$10*OFFSET('Efficiency Distributions'!$D$10,MATCH($C67,'Efficiency Distributions'!$C$9:$C$87,0)+RIGHT($E75),0)\n+T$11*OFFSET('Efficiency Distributions'!$E$10,MATCH($C67,'Efficiency Distributions'!$C$9:$C$87,0)+RIGHT($E75),0))\n/SUM(T$10:T$11)","v":0},{"$f":"IF(INDEX(PC_MAPPING,RIGHT($C67,1),MATCH($E$2,'Data by Building Type'!$D$22:$F$22,0))=\"Yes\",1,0)*\n(U$10*OFFSET('Efficiency Distributions'!$D$10,MATCH($C67,'Efficiency Distributions'!$C$9:$C$87,0)+RIGHT($E75),0)\n+U$11*OFFSET('Efficiency Distributions'!$E$10,MATCH($C67,'Efficiency Distributions'!$C$9:$C$87,0)+RIGHT($E75),0))\n/SUM(U$10:U$11)","v":0},{"$f":"IF(INDEX(PC_MAPPING,RIGHT($C67,1),MATCH($E$2,'Data by Building Type'!$D$22:$F$22,0))=\"Yes\",1,0)*\n(V$10*OFFSET('Efficiency Distributions'!$D$10,MATCH($C67,'Efficiency Distributions'!$C$9:$C$87,0)+RIGHT($E75),0)\n+V$11*OFFSET('Efficiency Distributions'!$E$10,MATCH($C67,'Efficiency Distributions'!$C$9:$C$87,0)+RIGHT($E75),0))\n/SUM(V$10:V$11)","v":0},{"$f":"IF(INDEX(PC_MAPPING,RIGHT($C67,1),MATCH($E$2,'Data by Building Type'!$D$22:$F$22,0))=\"Yes\",1,0)*\n(W$10*OFFSET('Efficiency Distributions'!$D$10,MATCH($C67,'Efficiency Distributions'!$C$9:$C$87,0)+RIGHT($E75),0)\n+W$11*OFFSET('Efficiency Distributions'!$E$10,MATCH($C67,'Efficiency Distributions'!$C$9:$C$87,0)+RIGHT($E75),0))\n/SUM(W$10:W$11)","v":0},{"$f":"IF(INDEX(PC_MAPPING,RIGHT($C67,1),MATCH($E$2,'Data by Building Type'!$D$22:$F$22,0))=\"Yes\",1,0)*\n(X$10*OFFSET('Efficiency Distributions'!$D$10,MATCH($C67,'Efficiency Distributions'!$C$9:$C$87,0)+RIGHT($E75),0)\n+X$11*OFFSET('Efficiency Distributions'!$E$10,MATCH($C67,'Efficiency Distributions'!$C$9:$C$87,0)+RIGHT($E75),0))\n/SUM(X$10:X$11)","v":0},{"$f":"IF(INDEX(PC_MAPPING,RIGHT($C67,1),MATCH($E$2,'Data by Building Type'!$D$22:$F$22,0))=\"Yes\",1,0)*\n(Y$10*OFFSET('Efficiency Distributions'!$D$10,MATCH($C67,'Efficiency Distributions'!$C$9:$C$87,0)+RIGHT($E75),0)\n+Y$11*OFFSET('Efficiency Distributions'!$E$10,MATCH($C67,'Efficiency Distributions'!$C$9:$C$87,0)+RIGHT($E75),0))\n/SUM(Y$10:Y$11)","v":0},{"$f":"IF(INDEX(PC_MAPPING,RIGHT($C67,1),MATCH($E$2,'Data by Building Type'!$D$22:$F$22,0))=\"Yes\",1,0)*\n(Z$10*OFFSET('Efficiency Distributions'!$D$10,MATCH($C67,'Efficiency Distributions'!$C$9:$C$87,0)+RIGHT($E75),0)\n+Z$11*OFFSET('Efficiency Distributions'!$E$10,MATCH($C67,'Efficiency Distributions'!$C$9:$C$87,0)+RIGHT($E75),0))\n/SUM(Z$10:Z$11)","v":0},{"$f":"IF(INDEX(PC_MAPPING,RIGHT($C67,1),MATCH($E$2,'Data by Building Type'!$D$22:$F$22,0))=\"Yes\",1,0)*\n(AA$10*OFFSET('Efficiency Distributions'!$D$10,MATCH($C67,'Efficiency Distributions'!$C$9:$C$87,0)+RIGHT($E75),0)\n+AA$11*OFFSET('Efficiency Distributions'!$E$10,MATCH($C67,'Efficiency Distributions'!$C$9:$C$87,0)+RIGHT($E75),0))\n/SUM(AA$10:AA$11)","v":0},{"$f":"IF(INDEX(PC_MAPPING,RIGHT($C67,1),MATCH($E$2,'Data by Building Type'!$D$22:$F$22,0))=\"Yes\",1,0)*\n(AB$10*OFFSET('Efficiency Distributions'!$D$10,MATCH($C67,'Efficiency Distributions'!$C$9:$C$87,0)+RIGHT($E75),0)\n+AB$11*OFFSET('Efficiency Distributions'!$E$10,MATCH($C67,'Efficiency Distributions'!$C$9:$C$87,0)+RIGHT($E75),0))\n/SUM(AB$10:AB$11)","v":0},{"$f":"IF(INDEX(PC_MAPPING,RIGHT($C67,1),MATCH($E$2,'Data by Building Type'!$D$22:$F$22,0))=\"Yes\",1,0)*\n(AC$10*OFFSET('Efficiency Distributions'!$D$10,MATCH($C67,'Efficiency Distributions'!$C$9:$C$87,0)+RIGHT($E75),0)\n+AC$11*OFFSET('Efficiency Distributions'!$E$10,MATCH($C67,'Efficiency Distributions'!$C$9:$C$87,0)+RIGHT($E75),0))\n/SUM(AC$10:AC$11)","v":0},{"$f":"IF(INDEX(PC_MAPPING,RIGHT($C67,1),MATCH($E$2,'Data by Building Type'!$D$22:$F$22,0))=\"Yes\",1,0)*\n(AD$10*OFFSET('Efficiency Distributions'!$D$10,MATCH($C67,'Efficiency Distributions'!$C$9:$C$87,0)+RIGHT($E75),0)\n+AD$11*OFFSET('Efficiency Distributions'!$E$10,MATCH($C67,'Efficiency Distributions'!$C$9:$C$87,0)+RIGHT($E75),0))\n/SUM(AD$10:AD$11)","v":0},{"$f":"IF(INDEX(PC_MAPPING,RIGHT($C67,1),MATCH($E$2,'Data by Building Type'!$D$22:$F$22,0))=\"Yes\",1,0)*\n(AE$10*OFFSET('Efficiency Distributions'!$D$10,MATCH($C67,'Efficiency Distributions'!$C$9:$C$87,0)+RIGHT($E75),0)\n+AE$11*OFFSET('Efficiency Distributions'!$E$10,MATCH($C67,'Efficiency Distributions'!$C$9:$C$87,0)+RIGHT($E75),0))\n/SUM(AE$10:AE$11)","v":0},{"$f":"IF(INDEX(PC_MAPPING,RIGHT($C67,1),MATCH($E$2,'Data by Building Type'!$D$22:$F$22,0))=\"Yes\",1,0)*\n(AF$10*OFFSET('Efficiency Distributions'!$D$10,MATCH($C67,'Efficiency Distributions'!$C$9:$C$87,0)+RIGHT($E75),0)\n+AF$11*OFFSET('Efficiency Distributions'!$E$10,MATCH($C67,'Efficiency Distributions'!$C$9:$C$87,0)+RIGHT($E75),0))\n/SUM(AF$10:AF$11)","v":0},{"$f":"IF(INDEX(PC_MAPPING,RIGHT($C67,1),MATCH($E$2,'Data by Building Type'!$D$22:$F$22,0))=\"Yes\",1,0)*\n(AG$10*OFFSET('Efficiency Distributions'!$D$10,MATCH($C67,'Efficiency Distributions'!$C$9:$C$87,0)+RIGHT($E75),0)\n+AG$11*OFFSET('Efficiency Distributions'!$E$10,MATCH($C67,'Efficiency Distributions'!$C$9:$C$87,0)+RIGHT($E75),0))\n/SUM(AG$10:AG$11)","v":0},{"$f":"IF(INDEX(PC_MAPPING,RIGHT($C67,1),MATCH($E$2,'Data by Building Type'!$D$22:$F$22,0))=\"Yes\",1,0)*\n(AH$10*OFFSET('Efficiency Distributions'!$D$10,MATCH($C67,'Efficiency Distributions'!$C$9:$C$87,0)+RIGHT($E75),0)\n+AH$11*OFFSET('Efficiency Distributions'!$E$10,MATCH($C67,'Efficiency Distributions'!$C$9:$C$87,0)+RIGHT($E75),0))\n/SUM(AH$10:AH$11)","v":0},{"$f":"IF(INDEX(PC_MAPPING,RIGHT($C67,1),MATCH($E$2,'Data by Building Type'!$D$22:$F$22,0))=\"Yes\",1,0)*\n(AI$10*OFFSET('Efficiency Distributions'!$D$10,MATCH($C67,'Efficiency Distributions'!$C$9:$C$87,0)+RIGHT($E75),0)\n+AI$11*OFFSET('Efficiency Distributions'!$E$10,MATCH($C67,'Efficiency Distributions'!$C$9:$C$87,0)+RIGHT($E75),0))\n/SUM(AI$10:AI$11)","v":0},{"$f":"IF(INDEX(PC_MAPPING,RIGHT($C67,1),MATCH($E$2,'Data by Building Type'!$D$22:$F$22,0))=\"Yes\",1,0)*\n(AJ$10*OFFSET('Efficiency Distributions'!$D$10,MATCH($C67,'Efficiency Distributions'!$C$9:$C$87,0)+RIGHT($E75),0)\n+AJ$11*OFFSET('Efficiency Distributions'!$E$10,MATCH($C67,'Efficiency Distributions'!$C$9:$C$87,0)+RIGHT($E75),0))\n/SUM(AJ$10:AJ$11)","v":0},{"$f":"IF(INDEX(PC_MAPPING,RIGHT($C67,1),MATCH($E$2,'Data by Building Type'!$D$22:$F$22,0))=\"Yes\",1,0)*\n(AK$10*OFFSET('Efficiency Distributions'!$D$10,MATCH($C67,'Efficiency Distributions'!$C$9:$C$87,0)+RIGHT($E75),0)\n+AK$11*OFFSET('Efficiency Distributions'!$E$10,MATCH($C67,'Efficiency Distributions'!$C$9:$C$87,0)+RIGHT($E75),0))\n/SUM(AK$10:AK$11)","v":0},{"$f":"IF(INDEX(PC_MAPPING,RIGHT($C67,1),MATCH($E$2,'Data by Building Type'!$D$22:$F$22,0))=\"Yes\",1,0)*\n(AL$10*OFFSET('Efficiency Distributions'!$D$10,MATCH($C67,'Efficiency Distributions'!$C$9:$C$87,0)+RIGHT($E75),0)\n+AL$11*OFFSET('Efficiency Distributions'!$E$10,MATCH($C67,'Efficiency Distributions'!$C$9:$C$87,0)+RIGHT($E75),0))\n/SUM(AL$10:AL$11)","v":0},{"$f":"IF(INDEX(PC_MAPPING,RIGHT($C67,1),MATCH($E$2,'Data by Building Type'!$D$22:$F$22,0))=\"Yes\",1,0)*\n(AM$10*OFFSET('Efficiency Distributions'!$D$10,MATCH($C67,'Efficiency Distributions'!$C$9:$C$87,0)+RIGHT($E75),0)\n+AM$11*OFFSET('Efficiency Distributions'!$E$10,MATCH($C67,'Efficiency Distributions'!$C$9:$C$87,0)+RIGHT($E75),0))\n/SUM(AM$10:AM$11)","v":0},{"$f":"IF(INDEX(PC_MAPPING,RIGHT($C67,1),MATCH($E$2,'Data by Building Type'!$D$22:$F$22,0))=\"Yes\",1,0)*\n(AN$10*OFFSET('Efficiency Distributions'!$D$10,MATCH($C67,'Efficiency Distributions'!$C$9:$C$87,0)+RIGHT($E75),0)\n+AN$11*OFFSET('Efficiency Distributions'!$E$10,MATCH($C67,'Efficiency Distributions'!$C$9:$C$87,0)+RIGHT($E75),0))\n/SUM(AN$10:AN$11)","v":0},{"$f":"IF(INDEX(PC_MAPPING,RIGHT($C67,1),MATCH($E$2,'Data by Building Type'!$D$22:$F$22,0))=\"Yes\",1,0)*\n(AO$10*OFFSET('Efficiency Distributions'!$D$10,MATCH($C67,'Efficiency Distributions'!$C$9:$C$87,0)+RIGHT($E75),0)\n+AO$11*OFFSET('Efficiency Distributions'!$E$10,MATCH($C67,'Efficiency Distributions'!$C$9:$C$87,0)+RIGHT($E75),0))\n/SUM(AO$10:AO$11)","v":0},{"$f":"IF(INDEX(PC_MAPPING,RIGHT($C67,1),MATCH($E$2,'Data by Building Type'!$D$22:$F$22,0))=\"Yes\",1,0)*\n(AP$10*OFFSET('Efficiency Distributions'!$D$10,MATCH($C67,'Efficiency Distributions'!$C$9:$C$87,0)+RIGHT($E75),0)\n+AP$11*OFFSET('Efficiency Distributions'!$E$10,MATCH($C67,'Efficiency Distributions'!$C$9:$C$87,0)+RIGHT($E75),0))\n/SUM(AP$10:AP$11)","v":0},{"$f":"IF(INDEX(PC_MAPPING,RIGHT($C67,1),MATCH($E$2,'Data by Building Type'!$D$22:$F$22,0))=\"Yes\",1,0)*\n(AQ$10*OFFSET('Efficiency Distributions'!$D$10,MATCH($C67,'Efficiency Distributions'!$C$9:$C$87,0)+RIGHT($E75),0)\n+AQ$11*OFFSET('Efficiency Distributions'!$E$10,MATCH($C67,'Efficiency Distributions'!$C$9:$C$87,0)+RIGHT($E75),0))\n/SUM(AQ$10:AQ$11)","v":0},{"$f":"IF(INDEX(PC_MAPPING,RIGHT($C67,1),MATCH($E$2,'Data by Building Type'!$D$22:$F$22,0))=\"Yes\",1,0)*\n(AR$10*OFFSET('Efficiency Distributions'!$D$10,MATCH($C67,'Efficiency Distributions'!$C$9:$C$87,0)+RIGHT($E75),0)\n+AR$11*OFFSET('Efficiency Distributions'!$E$10,MATCH($C67,'Efficiency Distributions'!$C$9:$C$87,0)+RIGHT($E75),0))\n/SUM(AR$10:AR$11)","v":0},{"$f":"IF(INDEX(PC_MAPPING,RIGHT($C67,1),MATCH($E$2,'Data by Building Type'!$D$22:$F$22,0))=\"Yes\",1,0)*\n(AS$10*OFFSET('Efficiency Distributions'!$D$10,MATCH($C67,'Efficiency Distributions'!$C$9:$C$87,0)+RIGHT($E75),0)\n+AS$11*OFFSET('Efficiency Distributions'!$E$10,MATCH($C67,'Efficiency Distributions'!$C$9:$C$87,0)+RIGHT($E75),0))\n/SUM(AS$10:AS$11)","v":0},{"$f":"IF(INDEX(PC_MAPPING,RIGHT($C67,1),MATCH($E$2,'Data by Building Type'!$D$22:$F$22,0))=\"Yes\",1,0)*\n(AT$10*OFFSET('Efficiency Distributions'!$D$10,MATCH($C67,'Efficiency Distributions'!$C$9:$C$87,0)+RIGHT($E75),0)\n+AT$11*OFFSET('Efficiency Distributions'!$E$10,MATCH($C67,'Efficiency Distributions'!$C$9:$C$87,0)+RIGHT($E75),0))\n/SUM(AT$10:AT$11)","v":0},{"$f":"IF(INDEX(PC_MAPPING,RIGHT($C67,1),MATCH($E$2,'Data by Building Type'!$D$22:$F$22,0))=\"Yes\",1,0)*\n(AU$10*OFFSET('Efficiency Distributions'!$D$10,MATCH($C67,'Efficiency Distributions'!$C$9:$C$87,0)+RIGHT($E75),0)\n+AU$11*OFFSET('Efficiency Distributions'!$E$10,MATCH($C67,'Efficiency Distributions'!$C$9:$C$87,0)+RIGHT($E75),0))\n/SUM(AU$10:AU$11)","v":0},{"$f":"IF(INDEX(PC_MAPPING,RIGHT($C67,1),MATCH($E$2,'Data by Building Type'!$D$22:$F$22,0))=\"Yes\",1,0)*\n(AV$10*OFFSET('Efficiency Distributions'!$D$10,MATCH($C67,'Efficiency Distributions'!$C$9:$C$87,0)+RIGHT($E75),0)\n+AV$11*OFFSET('Efficiency Distributions'!$E$10,MATCH($C67,'Efficiency Distributions'!$C$9:$C$87,0)+RIGHT($E75),0))\n/SUM(AV$10:AV$11)","v":0},{"$f":"IF(INDEX(PC_MAPPING,RIGHT($C67,1),MATCH($E$2,'Data by Building Type'!$D$22:$F$22,0))=\"Yes\",1,0)*\n(AW$10*OFFSET('Efficiency Distributions'!$D$10,MATCH($C67,'Efficiency Distributions'!$C$9:$C$87,0)+RIGHT($E75),0)\n+AW$11*OFFSET('Efficiency Distributions'!$E$10,MATCH($C67,'Efficiency Distributions'!$C$9:$C$87,0)+RIGHT($E75),0))\n/SUM(AW$10:AW$11)","v":0},{"$f":"IF(INDEX(PC_MAPPING,RIGHT($C67,1),MATCH($E$2,'Data by Building Type'!$D$22:$F$22,0))=\"Yes\",1,0)*\n(AX$10*OFFSET('Efficiency Distributions'!$D$10,MATCH($C67,'Efficiency Distributions'!$C$9:$C$87,0)+RIGHT($E75),0)\n+AX$11*OFFSET('Efficiency Distributions'!$E$10,MATCH($C67,'Efficiency Distributions'!$C$9:$C$87,0)+RIGHT($E75),0))\n/SUM(AX$10:AX$11)","v":0},{"$f":"IF(INDEX(PC_MAPPING,RIGHT($C67,1),MATCH($E$2,'Data by Building Type'!$D$22:$F$22,0))=\"Yes\",1,0)*\n(AY$10*OFFSET('Efficiency Distributions'!$D$10,MATCH($C67,'Efficiency Distributions'!$C$9:$C$87,0)+RIGHT($E75),0)\n+AY$11*OFFSET('Efficiency Distributions'!$E$10,MATCH($C67,'Efficiency Distributions'!$C$9:$C$87,0)+RIGHT($E75),0))\n/SUM(AY$10:AY$11)","v":0},{"$f":"IF(INDEX(PC_MAPPING,RIGHT($C67,1),MATCH($E$2,'Data by Building Type'!$D$22:$F$22,0))=\"Yes\",1,0)*\n(AZ$10*OFFSET('Efficiency Distributions'!$D$10,MATCH($C67,'Efficiency Distributions'!$C$9:$C$87,0)+RIGHT($E75),0)\n+AZ$11*OFFSET('Efficiency Distributions'!$E$10,MATCH($C67,'Efficiency Distributions'!$C$9:$C$87,0)+RIGHT($E75),0))\n/SUM(AZ$10:AZ$11)","v":0},{"$f":"IF(INDEX(PC_MAPPING,RIGHT($C67,1),MATCH($E$2,'Data by Building Type'!$D$22:$F$22,0))=\"Yes\",1,0)*\n(BA$10*OFFSET('Efficiency Distributions'!$D$10,MATCH($C67,'Efficiency Distributions'!$C$9:$C$87,0)+RIGHT($E75),0)\n+BA$11*OFFSET('Efficiency Distributions'!$E$10,MATCH($C67,'Efficiency Distributions'!$C$9:$C$87,0)+RIGHT($E75),0))\n/SUM(BA$10:BA$11)","v":0},{"$f":"IF(INDEX(PC_MAPPING,RIGHT($C67,1),MATCH($E$2,'Data by Building Type'!$D$22:$F$22,0))=\"Yes\",1,0)*\n(BB$10*OFFSET('Efficiency Distributions'!$D$10,MATCH($C67,'Efficiency Distributions'!$C$9:$C$87,0)+RIGHT($E75),0)\n+BB$11*OFFSET('Efficiency Distributions'!$E$10,MATCH($C67,'Efficiency Distributions'!$C$9:$C$87,0)+RIGHT($E75),0))\n/SUM(BB$10:BB$11)","v":0},{"$f":"IF(INDEX(PC_MAPPING,RIGHT($C67,1),MATCH($E$2,'Data by Building Type'!$D$22:$F$22,0))=\"Yes\",1,0)*\n(BC$10*OFFSET('Efficiency Distributions'!$D$10,MATCH($C67,'Efficiency Distributions'!$C$9:$C$87,0)+RIGHT($E75),0)\n+BC$11*OFFSET('Efficiency Distributions'!$E$10,MATCH($C67,'Efficiency Distributions'!$C$9:$C$87,0)+RIGHT($E75),0))\n/SUM(BC$10:BC$11)","v":0},{"$f":"IF(INDEX(PC_MAPPING,RIGHT($C67,1),MATCH($E$2,'Data by Building Type'!$D$22:$F$22,0))=\"Yes\",1,0)*\n(BD$10*OFFSET('Efficiency Distributions'!$D$10,MATCH($C67,'Efficiency Distributions'!$C$9:$C$87,0)+RIGHT($E75),0)\n+BD$11*OFFSET('Efficiency Distributions'!$E$10,MATCH($C67,'Efficiency Distributions'!$C$9:$C$87,0)+RIGHT($E75),0))\n/SUM(BD$10:BD$11)","v":0},{"$f":"IF(INDEX(PC_MAPPING,RIGHT($C67,1),MATCH($E$2,'Data by Building Type'!$D$22:$F$22,0))=\"Yes\",1,0)*\n(BE$10*OFFSET('Efficiency Distributions'!$D$10,MATCH($C67,'Efficiency Distributions'!$C$9:$C$87,0)+RIGHT($E75),0)\n+BE$11*OFFSET('Efficiency Distributions'!$E$10,MATCH($C67,'Efficiency Distributions'!$C$9:$C$87,0)+RIGHT($E75),0))\n/SUM(BE$10:BE$11)","v":0},{"$f":"IF(INDEX(PC_MAPPING,RIGHT($C67,1),MATCH($E$2,'Data by Building Type'!$D$22:$F$22,0))=\"Yes\",1,0)*\n(BF$10*OFFSET('Efficiency Distributions'!$D$10,MATCH($C67,'Efficiency Distributions'!$C$9:$C$87,0)+RIGHT($E75),0)\n+BF$11*OFFSET('Efficiency Distributions'!$E$10,MATCH($C67,'Efficiency Distributions'!$C$9:$C$87,0)+RIGHT($E75),0))\n/SUM(BF$10:BF$11)","v":0},{"$f":"IF(INDEX(PC_MAPPING,RIGHT($C67,1),MATCH($E$2,'Data by Building Type'!$D$22:$F$22,0))=\"Yes\",1,0)*\n(BG$10*OFFSET('Efficiency Distributions'!$D$10,MATCH($C67,'Efficiency Distributions'!$C$9:$C$87,0)+RIGHT($E75),0)\n+BG$11*OFFSET('Efficiency Distributions'!$E$10,MATCH($C67,'Efficiency Distributions'!$C$9:$C$87,0)+RIGHT($E75),0))\n/SUM(BG$10:BG$11)","v":0}]
[null,null,null,null,"EL5",{"$f":"IF(INDEX(PC_MAPPING,RIGHT($C67,1),MATCH($E$2,'Data by Building Type'!$D$22:$F$22,0))=\"Yes\",1,0)*\n(F$10*OFFSET('Efficiency Distributions'!$D$10,MATCH($C67,'Efficiency Distributions'!$C$9:$C$87,0)+RIGHT($E76),0)\n+F$11*OFFSET('Efficiency Distributions'!$E$10,MATCH($C67,'Efficiency Distributions'!$C$9:$C$87,0)+RIGHT($E76),0))\n/SUM(F$10:F$11)","v":0},{"$f":"IF(INDEX(PC_MAPPING,RIGHT($C67,1),MATCH($E$2,'Data by Building Type'!$D$22:$F$22,0))=\"Yes\",1,0)*\n(G$10*OFFSET('Efficiency Distributions'!$D$10,MATCH($C67,'Efficiency Distributions'!$C$9:$C$87,0)+RIGHT($E76),0)\n+G$11*OFFSET('Efficiency Distributions'!$E$10,MATCH($C67,'Efficiency Distributions'!$C$9:$C$87,0)+RIGHT($E76),0))\n/SUM(G$10:G$11)","v":0},{"$f":"IF(INDEX(PC_MAPPING,RIGHT($C67,1),MATCH($E$2,'Data by Building Type'!$D$22:$F$22,0))=\"Yes\",1,0)*\n(H$10*OFFSET('Efficiency Distributions'!$D$10,MATCH($C67,'Efficiency Distributions'!$C$9:$C$87,0)+RIGHT($E76),0)\n+H$11*OFFSET('Efficiency Distributions'!$E$10,MATCH($C67,'Efficiency Distributions'!$C$9:$C$87,0)+RIGHT($E76),0))\n/SUM(H$10:H$11)","v":0},{"$f":"IF(INDEX(PC_MAPPING,RIGHT($C67,1),MATCH($E$2,'Data by Building Type'!$D$22:$F$22,0))=\"Yes\",1,0)*\n(I$10*OFFSET('Efficiency Distributions'!$D$10,MATCH($C67,'Efficiency Distributions'!$C$9:$C$87,0)+RIGHT($E76),0)\n+I$11*OFFSET('Efficiency Distributions'!$E$10,MATCH($C67,'Efficiency Distributions'!$C$9:$C$87,0)+RIGHT($E76),0))\n/SUM(I$10:I$11)","v":0},{"$f":"IF(INDEX(PC_MAPPING,RIGHT($C67,1),MATCH($E$2,'Data by Building Type'!$D$22:$F$22,0))=\"Yes\",1,0)*\n(J$10*OFFSET('Efficiency Distributions'!$D$10,MATCH($C67,'Efficiency Distributions'!$C$9:$C$87,0)+RIGHT($E76),0)\n+J$11*OFFSET('Efficiency Distributions'!$E$10,MATCH($C67,'Efficiency Distributions'!$C$9:$C$87,0)+RIGHT($E76),0))\n/SUM(J$10:J$11)","v":0},{"$f":"IF(INDEX(PC_MAPPING,RIGHT($C67,1),MATCH($E$2,'Data by Building Type'!$D$22:$F$22,0))=\"Yes\",1,0)*\n(K$10*OFFSET('Efficiency Distributions'!$D$10,MATCH($C67,'Efficiency Distributions'!$C$9:$C$87,0)+RIGHT($E76),0)\n+K$11*OFFSET('Efficiency Distributions'!$E$10,MATCH($C67,'Efficiency Distributions'!$C$9:$C$87,0)+RIGHT($E76),0))\n/SUM(K$10:K$11)","v":0},{"$f":"IF(INDEX(PC_MAPPING,RIGHT($C67,1),MATCH($E$2,'Data by Building Type'!$D$22:$F$22,0))=\"Yes\",1,0)*\n(L$10*OFFSET('Efficiency Distributions'!$D$10,MATCH($C67,'Efficiency Distributions'!$C$9:$C$87,0)+RIGHT($E76),0)\n+L$11*OFFSET('Efficiency Distributions'!$E$10,MATCH($C67,'Efficiency Distributions'!$C$9:$C$87,0)+RIGHT($E76),0))\n/SUM(L$10:L$11)","v":0},{"$f":"IF(INDEX(PC_MAPPING,RIGHT($C67,1),MATCH($E$2,'Data by Building Type'!$D$22:$F$22,0))=\"Yes\",1,0)*\n(M$10*OFFSET('Efficiency Distributions'!$D$10,MATCH($C67,'Efficiency Distributions'!$C$9:$C$87,0)+RIGHT($E76),0)\n+M$11*OFFSET('Efficiency Distributions'!$E$10,MATCH($C67,'Efficiency Distributions'!$C$9:$C$87,0)+RIGHT($E76),0))\n/SUM(M$10:M$11)","v":0},{"$f":"IF(INDEX(PC_MAPPING,RIGHT($C67,1),MATCH($E$2,'Data by Building Type'!$D$22:$F$22,0))=\"Yes\",1,0)*\n(N$10*OFFSET('Efficiency Distributions'!$D$10,MATCH($C67,'Efficiency Distributions'!$C$9:$C$87,0)+RIGHT($E76),0)\n+N$11*OFFSET('Efficiency Distributions'!$E$10,MATCH($C67,'Efficiency Distributions'!$C$9:$C$87,0)+RIGHT($E76),0))\n/SUM(N$10:N$11)","v":0},{"$f":"IF(INDEX(PC_MAPPING,RIGHT($C67,1),MATCH($E$2,'Data by Building Type'!$D$22:$F$22,0))=\"Yes\",1,0)*\n(O$10*OFFSET('Efficiency Distributions'!$D$10,MATCH($C67,'Efficiency Distributions'!$C$9:$C$87,0)+RIGHT($E76),0)\n+O$11*OFFSET('Efficiency Distributions'!$E$10,MATCH($C67,'Efficiency Distributions'!$C$9:$C$87,0)+RIGHT($E76),0))\n/SUM(O$10:O$11)","v":0},{"$f":"IF(INDEX(PC_MAPPING,RIGHT($C67,1),MATCH($E$2,'Data by Building Type'!$D$22:$F$22,0))=\"Yes\",1,0)*\n(P$10*OFFSET('Efficiency Distributions'!$D$10,MATCH($C67,'Efficiency Distributions'!$C$9:$C$87,0)+RIGHT($E76),0)\n+P$11*OFFSET('Efficiency Distributions'!$E$10,MATCH($C67,'Efficiency Distributions'!$C$9:$C$87,0)+RIGHT($E76),0))\n/SUM(P$10:P$11)","v":0},{"$f":"IF(INDEX(PC_MAPPING,RIGHT($C67,1),MATCH($E$2,'Data by Building Type'!$D$22:$F$22,0))=\"Yes\",1,0)*\n(Q$10*OFFSET('Efficiency Distributions'!$D$10,MATCH($C67,'Efficiency Distributions'!$C$9:$C$87,0)+RIGHT($E76),0)\n+Q$11*OFFSET('Efficiency Distributions'!$E$10,MATCH($C67,'Efficiency Distributions'!$C$9:$C$87,0)+RIGHT($E76),0))\n/SUM(Q$10:Q$11)","v":0},{"$f":"IF(INDEX(PC_MAPPING,RIGHT($C67,1),MATCH($E$2,'Data by Building Type'!$D$22:$F$22,0))=\"Yes\",1,0)*\n(R$10*OFFSET('Efficiency Distributions'!$D$10,MATCH($C67,'Efficiency Distributions'!$C$9:$C$87,0)+RIGHT($E76),0)\n+R$11*OFFSET('Efficiency Distributions'!$E$10,MATCH($C67,'Efficiency Distributions'!$C$9:$C$87,0)+RIGHT($E76),0))\n/SUM(R$10:R$11)","v":0},{"$f":"IF(INDEX(PC_MAPPING,RIGHT($C67,1),MATCH($E$2,'Data by Building Type'!$D$22:$F$22,0))=\"Yes\",1,0)*\n(S$10*OFFSET('Efficiency Distributions'!$D$10,MATCH($C67,'Efficiency Distributions'!$C$9:$C$87,0)+RIGHT($E76),0)\n+S$11*OFFSET('Efficiency Distributions'!$E$10,MATCH($C67,'Efficiency Distributions'!$C$9:$C$87,0)+RIGHT($E76),0))\n/SUM(S$10:S$11)","v":0},{"$f":"IF(INDEX(PC_MAPPING,RIGHT($C67,1),MATCH($E$2,'Data by Building Type'!$D$22:$F$22,0))=\"Yes\",1,0)*\n(T$10*OFFSET('Efficiency Distributions'!$D$10,MATCH($C67,'Efficiency Distributions'!$C$9:$C$87,0)+RIGHT($E76),0)\n+T$11*OFFSET('Efficiency Distributions'!$E$10,MATCH($C67,'Efficiency Distributions'!$C$9:$C$87,0)+RIGHT($E76),0))\n/SUM(T$10:T$11)","v":0},{"$f":"IF(INDEX(PC_MAPPING,RIGHT($C67,1),MATCH($E$2,'Data by Building Type'!$D$22:$F$22,0))=\"Yes\",1,0)*\n(U$10*OFFSET('Efficiency Distributions'!$D$10,MATCH($C67,'Efficiency Distributions'!$C$9:$C$87,0)+RIGHT($E76),0)\n+U$11*OFFSET('Efficiency Distributions'!$E$10,MATCH($C67,'Efficiency Distributions'!$C$9:$C$87,0)+RIGHT($E76),0))\n/SUM(U$10:U$11)","v":0},{"$f":"IF(INDEX(PC_MAPPING,RIGHT($C67,1),MATCH($E$2,'Data by Building Type'!$D$22:$F$22,0))=\"Yes\",1,0)*\n(V$10*OFFSET('Efficiency Distributions'!$D$10,MATCH($C67,'Efficiency Distributions'!$C$9:$C$87,0)+RIGHT($E76),0)\n+V$11*OFFSET('Efficiency Distributions'!$E$10,MATCH($C67,'Efficiency Distributions'!$C$9:$C$87,0)+RIGHT($E76),0))\n/SUM(V$10:V$11)","v":0},{"$f":"IF(INDEX(PC_MAPPING,RIGHT($C67,1),MATCH($E$2,'Data by Building Type'!$D$22:$F$22,0))=\"Yes\",1,0)*\n(W$10*OFFSET('Efficiency Distributions'!$D$10,MATCH($C67,'Efficiency Distributions'!$C$9:$C$87,0)+RIGHT($E76),0)\n+W$11*OFFSET('Efficiency Distributions'!$E$10,MATCH($C67,'Efficiency Distributions'!$C$9:$C$87,0)+RIGHT($E76),0))\n/SUM(W$10:W$11)","v":0},{"$f":"IF(INDEX(PC_MAPPING,RIGHT($C67,1),MATCH($E$2,'Data by Building Type'!$D$22:$F$22,0))=\"Yes\",1,0)*\n(X$10*OFFSET('Efficiency Distributions'!$D$10,MATCH($C67,'Efficiency Distributions'!$C$9:$C$87,0)+RIGHT($E76),0)\n+X$11*OFFSET('Efficiency Distributions'!$E$10,MATCH($C67,'Efficiency Distributions'!$C$9:$C$87,0)+RIGHT($E76),0))\n/SUM(X$10:X$11)","v":0},{"$f":"IF(INDEX(PC_MAPPING,RIGHT($C67,1),MATCH($E$2,'Data by Building Type'!$D$22:$F$22,0))=\"Yes\",1,0)*\n(Y$10*OFFSET('Efficiency Distributions'!$D$10,MATCH($C67,'Efficiency Distributions'!$C$9:$C$87,0)+RIGHT($E76),0)\n+Y$11*OFFSET('Efficiency Distributions'!$E$10,MATCH($C67,'Efficiency Distributions'!$C$9:$C$87,0)+RIGHT($E76),0))\n/SUM(Y$10:Y$11)","v":0},{"$f":"IF(INDEX(PC_MAPPING,RIGHT($C67,1),MATCH($E$2,'Data by Building Type'!$D$22:$F$22,0))=\"Yes\",1,0)*\n(Z$10*OFFSET('Efficiency Distributions'!$D$10,MATCH($C67,'Efficiency Distributions'!$C$9:$C$87,0)+RIGHT($E76),0)\n+Z$11*OFFSET('Efficiency Distributions'!$E$10,MATCH($C67,'Efficiency Distributions'!$C$9:$C$87,0)+RIGHT($E76),0))\n/SUM(Z$10:Z$11)","v":0},{"$f":"IF(INDEX(PC_MAPPING,RIGHT($C67,1),MATCH($E$2,'Data by Building Type'!$D$22:$F$22,0))=\"Yes\",1,0)*\n(AA$10*OFFSET('Efficiency Distributions'!$D$10,MATCH($C67,'Efficiency Distributions'!$C$9:$C$87,0)+RIGHT($E76),0)\n+AA$11*OFFSET('Efficiency Distributions'!$E$10,MATCH($C67,'Efficiency Distributions'!$C$9:$C$87,0)+RIGHT($E76),0))\n/SUM(AA$10:AA$11)","v":0},{"$f":"IF(INDEX(PC_MAPPING,RIGHT($C67,1),MATCH($E$2,'Data by Building Type'!$D$22:$F$22,0))=\"Yes\",1,0)*\n(AB$10*OFFSET('Efficiency Distributions'!$D$10,MATCH($C67,'Efficiency Distributions'!$C$9:$C$87,0)+RIGHT($E76),0)\n+AB$11*OFFSET('Efficiency Distributions'!$E$10,MATCH($C67,'Efficiency Distributions'!$C$9:$C$87,0)+RIGHT($E76),0))\n/SUM(AB$10:AB$11)","v":0},{"$f":"IF(INDEX(PC_MAPPING,RIGHT($C67,1),MATCH($E$2,'Data by Building Type'!$D$22:$F$22,0))=\"Yes\",1,0)*\n(AC$10*OFFSET('Efficiency Distributions'!$D$10,MATCH($C67,'Efficiency Distributions'!$C$9:$C$87,0)+RIGHT($E76),0)\n+AC$11*OFFSET('Efficiency Distributions'!$E$10,MATCH($C67,'Efficiency Distributions'!$C$9:$C$87,0)+RIGHT($E76),0))\n/SUM(AC$10:AC$11)","v":0},{"$f":"IF(INDEX(PC_MAPPING,RIGHT($C67,1),MATCH($E$2,'Data by Building Type'!$D$22:$F$22,0))=\"Yes\",1,0)*\n(AD$10*OFFSET('Efficiency Distributions'!$D$10,MATCH($C67,'Efficiency Distributions'!$C$9:$C$87,0)+RIGHT($E76),0)\n+AD$11*OFFSET('Efficiency Distributions'!$E$10,MATCH($C67,'Efficiency Distributions'!$C$9:$C$87,0)+RIGHT($E76),0))\n/SUM(AD$10:AD$11)","v":0},{"$f":"IF(INDEX(PC_MAPPING,RIGHT($C67,1),MATCH($E$2,'Data by Building Type'!$D$22:$F$22,0))=\"Yes\",1,0)*\n(AE$10*OFFSET('Efficiency Distributions'!$D$10,MATCH($C67,'Efficiency Distributions'!$C$9:$C$87,0)+RIGHT($E76),0)\n+AE$11*OFFSET('Efficiency Distributions'!$E$10,MATCH($C67,'Efficiency Distributions'!$C$9:$C$87,0)+RIGHT($E76),0))\n/SUM(AE$10:AE$11)","v":0},{"$f":"IF(INDEX(PC_MAPPING,RIGHT($C67,1),MATCH($E$2,'Data by Building Type'!$D$22:$F$22,0))=\"Yes\",1,0)*\n(AF$10*OFFSET('Efficiency Distributions'!$D$10,MATCH($C67,'Efficiency Distributions'!$C$9:$C$87,0)+RIGHT($E76),0)\n+AF$11*OFFSET('Efficiency Distributions'!$E$10,MATCH($C67,'Efficiency Distributions'!$C$9:$C$87,0)+RIGHT($E76),0))\n/SUM(AF$10:AF$11)","v":0},{"$f":"IF(INDEX(PC_MAPPING,RIGHT($C67,1),MATCH($E$2,'Data by Building Type'!$D$22:$F$22,0))=\"Yes\",1,0)*\n(AG$10*OFFSET('Efficiency Distributions'!$D$10,MATCH($C67,'Efficiency Distributions'!$C$9:$C$87,0)+RIGHT($E76),0)\n+AG$11*OFFSET('Efficiency Distributions'!$E$10,MATCH($C67,'Efficiency Distributions'!$C$9:$C$87,0)+RIGHT($E76),0))\n/SUM(AG$10:AG$11)","v":0},{"$f":"IF(INDEX(PC_MAPPING,RIGHT($C67,1),MATCH($E$2,'Data by Building Type'!$D$22:$F$22,0))=\"Yes\",1,0)*\n(AH$10*OFFSET('Efficiency Distributions'!$D$10,MATCH($C67,'Efficiency Distributions'!$C$9:$C$87,0)+RIGHT($E76),0)\n+AH$11*OFFSET('Efficiency Distributions'!$E$10,MATCH($C67,'Efficiency Distributions'!$C$9:$C$87,0)+RIGHT($E76),0))\n/SUM(AH$10:AH$11)","v":0},{"$f":"IF(INDEX(PC_MAPPING,RIGHT($C67,1),MATCH($E$2,'Data by Building Type'!$D$22:$F$22,0))=\"Yes\",1,0)*\n(AI$10*OFFSET('Efficiency Distributions'!$D$10,MATCH($C67,'Efficiency Distributions'!$C$9:$C$87,0)+RIGHT($E76),0)\n+AI$11*OFFSET('Efficiency Distributions'!$E$10,MATCH($C67,'Efficiency Distributions'!$C$9:$C$87,0)+RIGHT($E76),0))\n/SUM(AI$10:AI$11)","v":0},{"$f":"IF(INDEX(PC_MAPPING,RIGHT($C67,1),MATCH($E$2,'Data by Building Type'!$D$22:$F$22,0))=\"Yes\",1,0)*\n(AJ$10*OFFSET('Efficiency Distributions'!$D$10,MATCH($C67,'Efficiency Distributions'!$C$9:$C$87,0)+RIGHT($E76),0)\n+AJ$11*OFFSET('Efficiency Distributions'!$E$10,MATCH($C67,'Efficiency Distributions'!$C$9:$C$87,0)+RIGHT($E76),0))\n/SUM(AJ$10:AJ$11)","v":0},{"$f":"IF(INDEX(PC_MAPPING,RIGHT($C67,1),MATCH($E$2,'Data by Building Type'!$D$22:$F$22,0))=\"Yes\",1,0)*\n(AK$10*OFFSET('Efficiency Distributions'!$D$10,MATCH($C67,'Efficiency Distributions'!$C$9:$C$87,0)+RIGHT($E76),0)\n+AK$11*OFFSET('Efficiency Distributions'!$E$10,MATCH($C67,'Efficiency Distributions'!$C$9:$C$87,0)+RIGHT($E76),0))\n/SUM(AK$10:AK$11)","v":0},{"$f":"IF(INDEX(PC_MAPPING,RIGHT($C67,1),MATCH($E$2,'Data by Building Type'!$D$22:$F$22,0))=\"Yes\",1,0)*\n(AL$10*OFFSET('Efficiency Distributions'!$D$10,MATCH($C67,'Efficiency Distributions'!$C$9:$C$87,0)+RIGHT($E76),0)\n+AL$11*OFFSET('Efficiency Distributions'!$E$10,MATCH($C67,'Efficiency Distributions'!$C$9:$C$87,0)+RIGHT($E76),0))\n/SUM(AL$10:AL$11)","v":0},{"$f":"IF(INDEX(PC_MAPPING,RIGHT($C67,1),MATCH($E$2,'Data by Building Type'!$D$22:$F$22,0))=\"Yes\",1,0)*\n(AM$10*OFFSET('Efficiency Distributions'!$D$10,MATCH($C67,'Efficiency Distributions'!$C$9:$C$87,0)+RIGHT($E76),0)\n+AM$11*OFFSET('Efficiency Distributions'!$E$10,MATCH($C67,'Efficiency Distributions'!$C$9:$C$87,0)+RIGHT($E76),0))\n/SUM(AM$10:AM$11)","v":0},{"$f":"IF(INDEX(PC_MAPPING,RIGHT($C67,1),MATCH($E$2,'Data by Building Type'!$D$22:$F$22,0))=\"Yes\",1,0)*\n(AN$10*OFFSET('Efficiency Distributions'!$D$10,MATCH($C67,'Efficiency Distributions'!$C$9:$C$87,0)+RIGHT($E76),0)\n+AN$11*OFFSET('Efficiency Distributions'!$E$10,MATCH($C67,'Efficiency Distributions'!$C$9:$C$87,0)+RIGHT($E76),0))\n/SUM(AN$10:AN$11)","v":0},{"$f":"IF(INDEX(PC_MAPPING,RIGHT($C67,1),MATCH($E$2,'Data by Building Type'!$D$22:$F$22,0))=\"Yes\",1,0)*\n(AO$10*OFFSET('Efficiency Distributions'!$D$10,MATCH($C67,'Efficiency Distributions'!$C$9:$C$87,0)+RIGHT($E76),0)\n+AO$11*OFFSET('Efficiency Distributions'!$E$10,MATCH($C67,'Efficiency Distributions'!$C$9:$C$87,0)+RIGHT($E76),0))\n/SUM(AO$10:AO$11)","v":0},{"$f":"IF(INDEX(PC_MAPPING,RIGHT($C67,1),MATCH($E$2,'Data by Building Type'!$D$22:$F$22,0))=\"Yes\",1,0)*\n(AP$10*OFFSET('Efficiency Distributions'!$D$10,MATCH($C67,'Efficiency Distributions'!$C$9:$C$87,0)+RIGHT($E76),0)\n+AP$11*OFFSET('Efficiency Distributions'!$E$10,MATCH($C67,'Efficiency Distributions'!$C$9:$C$87,0)+RIGHT($E76),0))\n/SUM(AP$10:AP$11)","v":0},{"$f":"IF(INDEX(PC_MAPPING,RIGHT($C67,1),MATCH($E$2,'Data by Building Type'!$D$22:$F$22,0))=\"Yes\",1,0)*\n(AQ$10*OFFSET('Efficiency Distributions'!$D$10,MATCH($C67,'Efficiency Distributions'!$C$9:$C$87,0)+RIGHT($E76),0)\n+AQ$11*OFFSET('Efficiency Distributions'!$E$10,MATCH($C67,'Efficiency Distributions'!$C$9:$C$87,0)+RIGHT($E76),0))\n/SUM(AQ$10:AQ$11)","v":0},{"$f":"IF(INDEX(PC_MAPPING,RIGHT($C67,1),MATCH($E$2,'Data by Building Type'!$D$22:$F$22,0))=\"Yes\",1,0)*\n(AR$10*OFFSET('Efficiency Distributions'!$D$10,MATCH($C67,'Efficiency Distributions'!$C$9:$C$87,0)+RIGHT($E76),0)\n+AR$11*OFFSET('Efficiency Distributions'!$E$10,MATCH($C67,'Efficiency Distributions'!$C$9:$C$87,0)+RIGHT($E76),0))\n/SUM(AR$10:AR$11)","v":0},{"$f":"IF(INDEX(PC_MAPPING,RIGHT($C67,1),MATCH($E$2,'Data by Building Type'!$D$22:$F$22,0))=\"Yes\",1,0)*\n(AS$10*OFFSET('Efficiency Distributions'!$D$10,MATCH($C67,'Efficiency Distributions'!$C$9:$C$87,0)+RIGHT($E76),0)\n+AS$11*OFFSET('Efficiency Distributions'!$E$10,MATCH($C67,'Efficiency Distributions'!$C$9:$C$87,0)+RIGHT($E76),0))\n/SUM(AS$10:AS$11)","v":0},{"$f":"IF(INDEX(PC_MAPPING,RIGHT($C67,1),MATCH($E$2,'Data by Building Type'!$D$22:$F$22,0))=\"Yes\",1,0)*\n(AT$10*OFFSET('Efficiency Distributions'!$D$10,MATCH($C67,'Efficiency Distributions'!$C$9:$C$87,0)+RIGHT($E76),0)\n+AT$11*OFFSET('Efficiency Distributions'!$E$10,MATCH($C67,'Efficiency Distributions'!$C$9:$C$87,0)+RIGHT($E76),0))\n/SUM(AT$10:AT$11)","v":0},{"$f":"IF(INDEX(PC_MAPPING,RIGHT($C67,1),MATCH($E$2,'Data by Building Type'!$D$22:$F$22,0))=\"Yes\",1,0)*\n(AU$10*OFFSET('Efficiency Distributions'!$D$10,MATCH($C67,'Efficiency Distributions'!$C$9:$C$87,0)+RIGHT($E76),0)\n+AU$11*OFFSET('Efficiency Distributions'!$E$10,MATCH($C67,'Efficiency Distributions'!$C$9:$C$87,0)+RIGHT($E76),0))\n/SUM(AU$10:AU$11)","v":0},{"$f":"IF(INDEX(PC_MAPPING,RIGHT($C67,1),MATCH($E$2,'Data by Building Type'!$D$22:$F$22,0))=\"Yes\",1,0)*\n(AV$10*OFFSET('Efficiency Distributions'!$D$10,MATCH($C67,'Efficiency Distributions'!$C$9:$C$87,0)+RIGHT($E76),0)\n+AV$11*OFFSET('Efficiency Distributions'!$E$10,MATCH($C67,'Efficiency Distributions'!$C$9:$C$87,0)+RIGHT($E76),0))\n/SUM(AV$10:AV$11)","v":0},{"$f":"IF(INDEX(PC_MAPPING,RIGHT($C67,1),MATCH($E$2,'Data by Building Type'!$D$22:$F$22,0))=\"Yes\",1,0)*\n(AW$10*OFFSET('Efficiency Distributions'!$D$10,MATCH($C67,'Efficiency Distributions'!$C$9:$C$87,0)+RIGHT($E76),0)\n+AW$11*OFFSET('Efficiency Distributions'!$E$10,MATCH($C67,'Efficiency Distributions'!$C$9:$C$87,0)+RIGHT($E76),0))\n/SUM(AW$10:AW$11)","v":0},{"$f":"IF(INDEX(PC_MAPPING,RIGHT($C67,1),MATCH($E$2,'Data by Building Type'!$D$22:$F$22,0))=\"Yes\",1,0)*\n(AX$10*OFFSET('Efficiency Distributions'!$D$10,MATCH($C67,'Efficiency Distributions'!$C$9:$C$87,0)+RIGHT($E76),0)\n+AX$11*OFFSET('Efficiency Distributions'!$E$10,MATCH($C67,'Efficiency Distributions'!$C$9:$C$87,0)+RIGHT($E76),0))\n/SUM(AX$10:AX$11)","v":0},{"$f":"IF(INDEX(PC_MAPPING,RIGHT($C67,1),MATCH($E$2,'Data by Building Type'!$D$22:$F$22,0))=\"Yes\",1,0)*\n(AY$10*OFFSET('Efficiency Distributions'!$D$10,MATCH($C67,'Efficiency Distributions'!$C$9:$C$87,0)+RIGHT($E76),0)\n+AY$11*OFFSET('Efficiency Distributions'!$E$10,MATCH($C67,'Efficiency Distributions'!$C$9:$C$87,0)+RIGHT($E76),0))\n/SUM(AY$10:AY$11)","v":0},{"$f":"IF(INDEX(PC_MAPPING,RIGHT($C67,1),MATCH($E$2,'Data by Building Type'!$D$22:$F$22,0))=\"Yes\",1,0)*\n(AZ$10*OFFSET('Efficiency Distributions'!$D$10,MATCH($C67,'Efficiency Distributions'!$C$9:$C$87,0)+RIGHT($E76),0)\n+AZ$11*OFFSET('Efficiency Distributions'!$E$10,MATCH($C67,'Efficiency Distributions'!$C$9:$C$87,0)+RIGHT($E76),0))\n/SUM(AZ$10:AZ$11)","v":0},{"$f":"IF(INDEX(PC_MAPPING,RIGHT($C67,1),MATCH($E$2,'Data by Building Type'!$D$22:$F$22,0))=\"Yes\",1,0)*\n(BA$10*OFFSET('Efficiency Distributions'!$D$10,MATCH($C67,'Efficiency Distributions'!$C$9:$C$87,0)+RIGHT($E76),0)\n+BA$11*OFFSET('Efficiency Distributions'!$E$10,MATCH($C67,'Efficiency Distributions'!$C$9:$C$87,0)+RIGHT($E76),0))\n/SUM(BA$10:BA$11)","v":0},{"$f":"IF(INDEX(PC_MAPPING,RIGHT($C67,1),MATCH($E$2,'Data by Building Type'!$D$22:$F$22,0))=\"Yes\",1,0)*\n(BB$10*OFFSET('Efficiency Distributions'!$D$10,MATCH($C67,'Efficiency Distributions'!$C$9:$C$87,0)+RIGHT($E76),0)\n+BB$11*OFFSET('Efficiency Distributions'!$E$10,MATCH($C67,'Efficiency Distributions'!$C$9:$C$87,0)+RIGHT($E76),0))\n/SUM(BB$10:BB$11)","v":0},{"$f":"IF(INDEX(PC_MAPPING,RIGHT($C67,1),MATCH($E$2,'Data by Building Type'!$D$22:$F$22,0))=\"Yes\",1,0)*\n(BC$10*OFFSET('Efficiency Distributions'!$D$10,MATCH($C67,'Efficiency Distributions'!$C$9:$C$87,0)+RIGHT($E76),0)\n+BC$11*OFFSET('Efficiency Distributions'!$E$10,MATCH($C67,'Efficiency Distributions'!$C$9:$C$87,0)+RIGHT($E76),0))\n/SUM(BC$10:BC$11)","v":0},{"$f":"IF(INDEX(PC_MAPPING,RIGHT($C67,1),MATCH($E$2,'Data by Building Type'!$D$22:$F$22,0))=\"Yes\",1,0)*\n(BD$10*OFFSET('Efficiency Distributions'!$D$10,MATCH($C67,'Efficiency Distributions'!$C$9:$C$87,0)+RIGHT($E76),0)\n+BD$11*OFFSET('Efficiency Distributions'!$E$10,MATCH($C67,'Efficiency Distributions'!$C$9:$C$87,0)+RIGHT($E76),0))\n/SUM(BD$10:BD$11)","v":0},{"$f":"IF(INDEX(PC_MAPPING,RIGHT($C67,1),MATCH($E$2,'Data by Building Type'!$D$22:$F$22,0))=\"Yes\",1,0)*\n(BE$10*OFFSET('Efficiency Distributions'!$D$10,MATCH($C67,'Efficiency Distributions'!$C$9:$C$87,0)+RIGHT($E76),0)\n+BE$11*OFFSET('Efficiency Distributions'!$E$10,MATCH($C67,'Efficiency Distributions'!$C$9:$C$87,0)+RIGHT($E76),0))\n/SUM(BE$10:BE$11)","v":0},{"$f":"IF(INDEX(PC_MAPPING,RIGHT($C67,1),MATCH($E$2,'Data by Building Type'!$D$22:$F$22,0))=\"Yes\",1,0)*\n(BF$10*OFFSET('Efficiency Distributions'!$D$10,MATCH($C67,'Efficiency Distributions'!$C$9:$C$87,0)+RIGHT($E76),0)\n+BF$11*OFFSET('Efficiency Distributions'!$E$10,MATCH($C67,'Efficiency Distributions'!$C$9:$C$87,0)+RIGHT($E76),0))\n/SUM(BF$10:BF$11)","v":0},{"$f":"IF(INDEX(PC_MAPPING,RIGHT($C67,1),MATCH($E$2,'Data by Building Type'!$D$22:$F$22,0))=\"Yes\",1,0)*\n(BG$10*OFFSET('Efficiency Distributions'!$D$10,MATCH($C67,'Efficiency Distributions'!$C$9:$C$87,0)+RIGHT($E76),0)\n+BG$11*OFFSET('Efficiency Distributions'!$E$10,MATCH($C67,'Efficiency Distributions'!$C$9:$C$87,0)+RIGHT($E76),0))\n/SUM(BG$10:BG$11)","v":0}]
[null,null,null,null,"EL6",{"$f":"IF(INDEX(PC_MAPPING,RIGHT($C67,1),MATCH($E$2,'Data by Building Type'!$D$22:$F$22,0))=\"Yes\",1,0)*\n(F$10*OFFSET('Efficiency Distributions'!$D$10,MATCH($C67,'Efficiency Distributions'!$C$9:$C$87,0)+RIGHT($E77),0)\n+F$11*OFFSET('Efficiency Distributions'!$E$10,MATCH($C67,'Efficiency Distributions'!$C$9:$C$87,0)+RIGHT($E77),0))\n/SUM(F$10:F$11)","v":0},{"$f":"IF(INDEX(PC_MAPPING,RIGHT($C67,1),MATCH($E$2,'Data by Building Type'!$D$22:$F$22,0))=\"Yes\",1,0)*\n(G$10*OFFSET('Efficiency Distributions'!$D$10,MATCH($C67,'Efficiency Distributions'!$C$9:$C$87,0)+RIGHT($E77),0)\n+G$11*OFFSET('Efficiency Distributions'!$E$10,MATCH($C67,'Efficiency Distributions'!$C$9:$C$87,0)+RIGHT($E77),0))\n/SUM(G$10:G$11)","v":0},{"$f":"IF(INDEX(PC_MAPPING,RIGHT($C67,1),MATCH($E$2,'Data by Building Type'!$D$22:$F$22,0))=\"Yes\",1,0)*\n(H$10*OFFSET('Efficiency Distributions'!$D$10,MATCH($C67,'Efficiency Distributions'!$C$9:$C$87,0)+RIGHT($E77),0)\n+H$11*OFFSET('Efficiency Distributions'!$E$10,MATCH($C67,'Efficiency Distributions'!$C$9:$C$87,0)+RIGHT($E77),0))\n/SUM(H$10:H$11)","v":0},{"$f":"IF(INDEX(PC_MAPPING,RIGHT($C67,1),MATCH($E$2,'Data by Building Type'!$D$22:$F$22,0))=\"Yes\",1,0)*\n(I$10*OFFSET('Efficiency Distributions'!$D$10,MATCH($C67,'Efficiency Distributions'!$C$9:$C$87,0)+RIGHT($E77),0)\n+I$11*OFFSET('Efficiency Distributions'!$E$10,MATCH($C67,'Efficiency Distributions'!$C$9:$C$87,0)+RIGHT($E77),0))\n/SUM(I$10:I$11)","v":0},{"$f":"IF(INDEX(PC_MAPPING,RIGHT($C67,1),MATCH($E$2,'Data by Building Type'!$D$22:$F$22,0))=\"Yes\",1,0)*\n(J$10*OFFSET('Efficiency Distributions'!$D$10,MATCH($C67,'Efficiency Distributions'!$C$9:$C$87,0)+RIGHT($E77),0)\n+J$11*OFFSET('Efficiency Distributions'!$E$10,MATCH($C67,'Efficiency Distributions'!$C$9:$C$87,0)+RIGHT($E77),0))\n/SUM(J$10:J$11)","v":0},{"$f":"IF(INDEX(PC_MAPPING,RIGHT($C67,1),MATCH($E$2,'Data by Building Type'!$D$22:$F$22,0))=\"Yes\",1,0)*\n(K$10*OFFSET('Efficiency Distributions'!$D$10,MATCH($C67,'Efficiency Distributions'!$C$9:$C$87,0)+RIGHT($E77),0)\n+K$11*OFFSET('Efficiency Distributions'!$E$10,MATCH($C67,'Efficiency Distributions'!$C$9:$C$87,0)+RIGHT($E77),0))\n/SUM(K$10:K$11)","v":0},{"$f":"IF(INDEX(PC_MAPPING,RIGHT($C67,1),MATCH($E$2,'Data by Building Type'!$D$22:$F$22,0))=\"Yes\",1,0)*\n(L$10*OFFSET('Efficiency Distributions'!$D$10,MATCH($C67,'Efficiency Distributions'!$C$9:$C$87,0)+RIGHT($E77),0)\n+L$11*OFFSET('Efficiency Distributions'!$E$10,MATCH($C67,'Efficiency Distributions'!$C$9:$C$87,0)+RIGHT($E77),0))\n/SUM(L$10:L$11)","v":0},{"$f":"IF(INDEX(PC_MAPPING,RIGHT($C67,1),MATCH($E$2,'Data by Building Type'!$D$22:$F$22,0))=\"Yes\",1,0)*\n(M$10*OFFSET('Efficiency Distributions'!$D$10,MATCH($C67,'Efficiency Distributions'!$C$9:$C$87,0)+RIGHT($E77),0)\n+M$11*OFFSET('Efficiency Distributions'!$E$10,MATCH($C67,'Efficiency Distributions'!$C$9:$C$87,0)+RIGHT($E77),0))\n/SUM(M$10:M$11)","v":0},{"$f":"IF(INDEX(PC_MAPPING,RIGHT($C67,1),MATCH($E$2,'Data by Building Type'!$D$22:$F$22,0))=\"Yes\",1,0)*\n(N$10*OFFSET('Efficiency Distributions'!$D$10,MATCH($C67,'Efficiency Distributions'!$C$9:$C$87,0)+RIGHT($E77),0)\n+N$11*OFFSET('Efficiency Distributions'!$E$10,MATCH($C67,'Efficiency Distributions'!$C$9:$C$87,0)+RIGHT($E77),0))\n/SUM(N$10:N$11)","v":0},{"$f":"IF(INDEX(PC_MAPPING,RIGHT($C67,1),MATCH($E$2,'Data by Building Type'!$D$22:$F$22,0))=\"Yes\",1,0)*\n(O$10*OFFSET('Efficiency Distributions'!$D$10,MATCH($C67,'Efficiency Distributions'!$C$9:$C$87,0)+RIGHT($E77),0)\n+O$11*OFFSET('Efficiency Distributions'!$E$10,MATCH($C67,'Efficiency Distributions'!$C$9:$C$87,0)+RIGHT($E77),0))\n/SUM(O$10:O$11)","v":0},{"$f":"IF(INDEX(PC_MAPPING,RIGHT($C67,1),MATCH($E$2,'Data by Building Type'!$D$22:$F$22,0))=\"Yes\",1,0)*\n(P$10*OFFSET('Efficiency Distributions'!$D$10,MATCH($C67,'Efficiency Distributions'!$C$9:$C$87,0)+RIGHT($E77),0)\n+P$11*OFFSET('Efficiency Distributions'!$E$10,MATCH($C67,'Efficiency Distributions'!$C$9:$C$87,0)+RIGHT($E77),0))\n/SUM(P$10:P$11)","v":0},{"$f":"IF(INDEX(PC_MAPPING,RIGHT($C67,1),MATCH($E$2,'Data by Building Type'!$D$22:$F$22,0))=\"Yes\",1,0)*\n(Q$10*OFFSET('Efficiency Distributions'!$D$10,MATCH($C67,'Efficiency Distributions'!$C$9:$C$87,0)+RIGHT($E77),0)\n+Q$11*OFFSET('Efficiency Distributions'!$E$10,MATCH($C67,'Efficiency Distributions'!$C$9:$C$87,0)+RIGHT($E77),0))\n/SUM(Q$10:Q$11)","v":0},{"$f":"IF(INDEX(PC_MAPPING,RIGHT($C67,1),MATCH($E$2,'Data by Building Type'!$D$22:$F$22,0))=\"Yes\",1,0)*\n(R$10*OFFSET('Efficiency Distributions'!$D$10,MATCH($C67,'Efficiency Distributions'!$C$9:$C$87,0)+RIGHT($E77),0)\n+R$11*OFFSET('Efficiency Distributions'!$E$10,MATCH($C67,'Efficiency Distributions'!$C$9:$C$87,0)+RIGHT($E77),0))\n/SUM(R$10:R$11)","v":0},{"$f":"IF(INDEX(PC_MAPPING,RIGHT($C67,1),MATCH($E$2,'Data by Building Type'!$D$22:$F$22,0))=\"Yes\",1,0)*\n(S$10*OFFSET('Efficiency Distributions'!$D$10,MATCH($C67,'Efficiency Distributions'!$C$9:$C$87,0)+RIGHT($E77),0)\n+S$11*OFFSET('Efficiency Distributions'!$E$10,MATCH($C67,'Efficiency Distributions'!$C$9:$C$87,0)+RIGHT($E77),0))\n/SUM(S$10:S$11)","v":0},{"$f":"IF(INDEX(PC_MAPPING,RIGHT($C67,1),MATCH($E$2,'Data by Building Type'!$D$22:$F$22,0))=\"Yes\",1,0)*\n(T$10*OFFSET('Efficiency Distributions'!$D$10,MATCH($C67,'Efficiency Distributions'!$C$9:$C$87,0)+RIGHT($E77),0)\n+T$11*OFFSET('Efficiency Distributions'!$E$10,MATCH($C67,'Efficiency Distributions'!$C$9:$C$87,0)+RIGHT($E77),0))\n/SUM(T$10:T$11)","v":0},{"$f":"IF(INDEX(PC_MAPPING,RIGHT($C67,1),MATCH($E$2,'Data by Building Type'!$D$22:$F$22,0))=\"Yes\",1,0)*\n(U$10*OFFSET('Efficiency Distributions'!$D$10,MATCH($C67,'Efficiency Distributions'!$C$9:$C$87,0)+RIGHT($E77),0)\n+U$11*OFFSET('Efficiency Distributions'!$E$10,MATCH($C67,'Efficiency Distributions'!$C$9:$C$87,0)+RIGHT($E77),0))\n/SUM(U$10:U$11)","v":0},{"$f":"IF(INDEX(PC_MAPPING,RIGHT($C67,1),MATCH($E$2,'Data by Building Type'!$D$22:$F$22,0))=\"Yes\",1,0)*\n(V$10*OFFSET('Efficiency Distributions'!$D$10,MATCH($C67,'Efficiency Distributions'!$C$9:$C$87,0)+RIGHT($E77),0)\n+V$11*OFFSET('Efficiency Distributions'!$E$10,MATCH($C67,'Efficiency Distributions'!$C$9:$C$87,0)+RIGHT($E77),0))\n/SUM(V$10:V$11)","v":0},{"$f":"IF(INDEX(PC_MAPPING,RIGHT($C67,1),MATCH($E$2,'Data by Building Type'!$D$22:$F$22,0))=\"Yes\",1,0)*\n(W$10*OFFSET('Efficiency Distributions'!$D$10,MATCH($C67,'Efficiency Distributions'!$C$9:$C$87,0)+RIGHT($E77),0)\n+W$11*OFFSET('Efficiency Distributions'!$E$10,MATCH($C67,'Efficiency Distributions'!$C$9:$C$87,0)+RIGHT($E77),0))\n/SUM(W$10:W$11)","v":0},{"$f":"IF(INDEX(PC_MAPPING,RIGHT($C67,1),MATCH($E$2,'Data by Building Type'!$D$22:$F$22,0))=\"Yes\",1,0)*\n(X$10*OFFSET('Efficiency Distributions'!$D$10,MATCH($C67,'Efficiency Distributions'!$C$9:$C$87,0)+RIGHT($E77),0)\n+X$11*OFFSET('Efficiency Distributions'!$E$10,MATCH($C67,'Efficiency Distributions'!$C$9:$C$87,0)+RIGHT($E77),0))\n/SUM(X$10:X$11)","v":0},{"$f":"IF(INDEX(PC_MAPPING,RIGHT($C67,1),MATCH($E$2,'Data by Building Type'!$D$22:$F$22,0))=\"Yes\",1,0)*\n(Y$10*OFFSET('Efficiency Distributions'!$D$10,MATCH($C67,'Efficiency Distributions'!$C$9:$C$87,0)+RIGHT($E77),0)\n+Y$11*OFFSET('Efficiency Distributions'!$E$10,MATCH($C67,'Efficiency Distributions'!$C$9:$C$87,0)+RIGHT($E77),0))\n/SUM(Y$10:Y$11)","v":0},{"$f":"IF(INDEX(PC_MAPPING,RIGHT($C67,1),MATCH($E$2,'Data by Building Type'!$D$22:$F$22,0))=\"Yes\",1,0)*\n(Z$10*OFFSET('Efficiency Distributions'!$D$10,MATCH($C67,'Efficiency Distributions'!$C$9:$C$87,0)+RIGHT($E77),0)\n+Z$11*OFFSET('Efficiency Distributions'!$E$10,MATCH($C67,'Efficiency Distributions'!$C$9:$C$87,0)+RIGHT($E77),0))\n/SUM(Z$10:Z$11)","v":0},{"$f":"IF(INDEX(PC_MAPPING,RIGHT($C67,1),MATCH($E$2,'Data by Building Type'!$D$22:$F$22,0))=\"Yes\",1,0)*\n(AA$10*OFFSET('Efficiency Distributions'!$D$10,MATCH($C67,'Efficiency Distributions'!$C$9:$C$87,0)+RIGHT($E77),0)\n+AA$11*OFFSET('Efficiency Distributions'!$E$10,MATCH($C67,'Efficiency Distributions'!$C$9:$C$87,0)+RIGHT($E77),0))\n/SUM(AA$10:AA$11)","v":0},{"$f":"IF(INDEX(PC_MAPPING,RIGHT($C67,1),MATCH($E$2,'Data by Building Type'!$D$22:$F$22,0))=\"Yes\",1,0)*\n(AB$10*OFFSET('Efficiency Distributions'!$D$10,MATCH($C67,'Efficiency Distributions'!$C$9:$C$87,0)+RIGHT($E77),0)\n+AB$11*OFFSET('Efficiency Distributions'!$E$10,MATCH($C67,'Efficiency Distributions'!$C$9:$C$87,0)+RIGHT($E77),0))\n/SUM(AB$10:AB$11)","v":0},{"$f":"IF(INDEX(PC_MAPPING,RIGHT($C67,1),MATCH($E$2,'Data by Building Type'!$D$22:$F$22,0))=\"Yes\",1,0)*\n(AC$10*OFFSET('Efficiency Distributions'!$D$10,MATCH($C67,'Efficiency Distributions'!$C$9:$C$87,0)+RIGHT($E77),0)\n+AC$11*OFFSET('Efficiency Distributions'!$E$10,MATCH($C67,'Efficiency Distributions'!$C$9:$C$87,0)+RIGHT($E77),0))\n/SUM(AC$10:AC$11)","v":0},{"$f":"IF(INDEX(PC_MAPPING,RIGHT($C67,1),MATCH($E$2,'Data by Building Type'!$D$22:$F$22,0))=\"Yes\",1,0)*\n(AD$10*OFFSET('Efficiency Distributions'!$D$10,MATCH($C67,'Efficiency Distributions'!$C$9:$C$87,0)+RIGHT($E77),0)\n+AD$11*OFFSET('Efficiency Distributions'!$E$10,MATCH($C67,'Efficiency Distributions'!$C$9:$C$87,0)+RIGHT($E77),0))\n/SUM(AD$10:AD$11)","v":0},{"$f":"IF(INDEX(PC_MAPPING,RIGHT($C67,1),MATCH($E$2,'Data by Building Type'!$D$22:$F$22,0))=\"Yes\",1,0)*\n(AE$10*OFFSET('Efficiency Distributions'!$D$10,MATCH($C67,'Efficiency Distributions'!$C$9:$C$87,0)+RIGHT($E77),0)\n+AE$11*OFFSET('Efficiency Distributions'!$E$10,MATCH($C67,'Efficiency Distributions'!$C$9:$C$87,0)+RIGHT($E77),0))\n/SUM(AE$10:AE$11)","v":0},{"$f":"IF(INDEX(PC_MAPPING,RIGHT($C67,1),MATCH($E$2,'Data by Building Type'!$D$22:$F$22,0))=\"Yes\",1,0)*\n(AF$10*OFFSET('Efficiency Distributions'!$D$10,MATCH($C67,'Efficiency Distributions'!$C$9:$C$87,0)+RIGHT($E77),0)\n+AF$11*OFFSET('Efficiency Distributions'!$E$10,MATCH($C67,'Efficiency Distributions'!$C$9:$C$87,0)+RIGHT($E77),0))\n/SUM(AF$10:AF$11)","v":0},{"$f":"IF(INDEX(PC_MAPPING,RIGHT($C67,1),MATCH($E$2,'Data by Building Type'!$D$22:$F$22,0))=\"Yes\",1,0)*\n(AG$10*OFFSET('Efficiency Distributions'!$D$10,MATCH($C67,'Efficiency Distributions'!$C$9:$C$87,0)+RIGHT($E77),0)\n+AG$11*OFFSET('Efficiency Distributions'!$E$10,MATCH($C67,'Efficiency Distributions'!$C$9:$C$87,0)+RIGHT($E77),0))\n/SUM(AG$10:AG$11)","v":0},{"$f":"IF(INDEX(PC_MAPPING,RIGHT($C67,1),MATCH($E$2,'Data by Building Type'!$D$22:$F$22,0))=\"Yes\",1,0)*\n(AH$10*OFFSET('Efficiency Distributions'!$D$10,MATCH($C67,'Efficiency Distributions'!$C$9:$C$87,0)+RIGHT($E77),0)\n+AH$11*OFFSET('Efficiency Distributions'!$E$10,MATCH($C67,'Efficiency Distributions'!$C$9:$C$87,0)+RIGHT($E77),0))\n/SUM(AH$10:AH$11)","v":0},{"$f":"IF(INDEX(PC_MAPPING,RIGHT($C67,1),MATCH($E$2,'Data by Building Type'!$D$22:$F$22,0))=\"Yes\",1,0)*\n(AI$10*OFFSET('Efficiency Distributions'!$D$10,MATCH($C67,'Efficiency Distributions'!$C$9:$C$87,0)+RIGHT($E77),0)\n+AI$11*OFFSET('Efficiency Distributions'!$E$10,MATCH($C67,'Efficiency Distributions'!$C$9:$C$87,0)+RIGHT($E77),0))\n/SUM(AI$10:AI$11)","v":0},{"$f":"IF(INDEX(PC_MAPPING,RIGHT($C67,1),MATCH($E$2,'Data by Building Type'!$D$22:$F$22,0))=\"Yes\",1,0)*\n(AJ$10*OFFSET('Efficiency Distributions'!$D$10,MATCH($C67,'Efficiency Distributions'!$C$9:$C$87,0)+RIGHT($E77),0)\n+AJ$11*OFFSET('Efficiency Distributions'!$E$10,MATCH($C67,'Efficiency Distributions'!$C$9:$C$87,0)+RIGHT($E77),0))\n/SUM(AJ$10:AJ$11)","v":0},{"$f":"IF(INDEX(PC_MAPPING,RIGHT($C67,1),MATCH($E$2,'Data by Building Type'!$D$22:$F$22,0))=\"Yes\",1,0)*\n(AK$10*OFFSET('Efficiency Distributions'!$D$10,MATCH($C67,'Efficiency Distributions'!$C$9:$C$87,0)+RIGHT($E77),0)\n+AK$11*OFFSET('Efficiency Distributions'!$E$10,MATCH($C67,'Efficiency Distributions'!$C$9:$C$87,0)+RIGHT($E77),0))\n/SUM(AK$10:AK$11)","v":0},{"$f":"IF(INDEX(PC_MAPPING,RIGHT($C67,1),MATCH($E$2,'Data by Building Type'!$D$22:$F$22,0))=\"Yes\",1,0)*\n(AL$10*OFFSET('Efficiency Distributions'!$D$10,MATCH($C67,'Efficiency Distributions'!$C$9:$C$87,0)+RIGHT($E77),0)\n+AL$11*OFFSET('Efficiency Distributions'!$E$10,MATCH($C67,'Efficiency Distributions'!$C$9:$C$87,0)+RIGHT($E77),0))\n/SUM(AL$10:AL$11)","v":0},{"$f":"IF(INDEX(PC_MAPPING,RIGHT($C67,1),MATCH($E$2,'Data by Building Type'!$D$22:$F$22,0))=\"Yes\",1,0)*\n(AM$10*OFFSET('Efficiency Distributions'!$D$10,MATCH($C67,'Efficiency Distributions'!$C$9:$C$87,0)+RIGHT($E77),0)\n+AM$11*OFFSET('Efficiency Distributions'!$E$10,MATCH($C67,'Efficiency Distributions'!$C$9:$C$87,0)+RIGHT($E77),0))\n/SUM(AM$10:AM$11)","v":0},{"$f":"IF(INDEX(PC_MAPPING,RIGHT($C67,1),MATCH($E$2,'Data by Building Type'!$D$22:$F$22,0))=\"Yes\",1,0)*\n(AN$10*OFFSET('Efficiency Distributions'!$D$10,MATCH($C67,'Efficiency Distributions'!$C$9:$C$87,0)+RIGHT($E77),0)\n+AN$11*OFFSET('Efficiency Distributions'!$E$10,MATCH($C67,'Efficiency Distributions'!$C$9:$C$87,0)+RIGHT($E77),0))\n/SUM(AN$10:AN$11)","v":0},{"$f":"IF(INDEX(PC_MAPPING,RIGHT($C67,1),MATCH($E$2,'Data by Building Type'!$D$22:$F$22,0))=\"Yes\",1,0)*\n(AO$10*OFFSET('Efficiency Distributions'!$D$10,MATCH($C67,'Efficiency Distributions'!$C$9:$C$87,0)+RIGHT($E77),0)\n+AO$11*OFFSET('Efficiency Distributions'!$E$10,MATCH($C67,'Efficiency Distributions'!$C$9:$C$87,0)+RIGHT($E77),0))\n/SUM(AO$10:AO$11)","v":0},{"$f":"IF(INDEX(PC_MAPPING,RIGHT($C67,1),MATCH($E$2,'Data by Building Type'!$D$22:$F$22,0))=\"Yes\",1,0)*\n(AP$10*OFFSET('Efficiency Distributions'!$D$10,MATCH($C67,'Efficiency Distributions'!$C$9:$C$87,0)+RIGHT($E77),0)\n+AP$11*OFFSET('Efficiency Distributions'!$E$10,MATCH($C67,'Efficiency Distributions'!$C$9:$C$87,0)+RIGHT($E77),0))\n/SUM(AP$10:AP$11)","v":0},{"$f":"IF(INDEX(PC_MAPPING,RIGHT($C67,1),MATCH($E$2,'Data by Building Type'!$D$22:$F$22,0))=\"Yes\",1,0)*\n(AQ$10*OFFSET('Efficiency Distributions'!$D$10,MATCH($C67,'Efficiency Distributions'!$C$9:$C$87,0)+RIGHT($E77),0)\n+AQ$11*OFFSET('Efficiency Distributions'!$E$10,MATCH($C67,'Efficiency Distributions'!$C$9:$C$87,0)+RIGHT($E77),0))\n/SUM(AQ$10:AQ$11)","v":0},{"$f":"IF(INDEX(PC_MAPPING,RIGHT($C67,1),MATCH($E$2,'Data by Building Type'!$D$22:$F$22,0))=\"Yes\",1,0)*\n(AR$10*OFFSET('Efficiency Distributions'!$D$10,MATCH($C67,'Efficiency Distributions'!$C$9:$C$87,0)+RIGHT($E77),0)\n+AR$11*OFFSET('Efficiency Distributions'!$E$10,MATCH($C67,'Efficiency Distributions'!$C$9:$C$87,0)+RIGHT($E77),0))\n/SUM(AR$10:AR$11)","v":0},{"$f":"IF(INDEX(PC_MAPPING,RIGHT($C67,1),MATCH($E$2,'Data by Building Type'!$D$22:$F$22,0))=\"Yes\",1,0)*\n(AS$10*OFFSET('Efficiency Distributions'!$D$10,MATCH($C67,'Efficiency Distributions'!$C$9:$C$87,0)+RIGHT($E77),0)\n+AS$11*OFFSET('Efficiency Distributions'!$E$10,MATCH($C67,'Efficiency Distributions'!$C$9:$C$87,0)+RIGHT($E77),0))\n/SUM(AS$10:AS$11)","v":0},{"$f":"IF(INDEX(PC_MAPPING,RIGHT($C67,1),MATCH($E$2,'Data by Building Type'!$D$22:$F$22,0))=\"Yes\",1,0)*\n(AT$10*OFFSET('Efficiency Distributions'!$D$10,MATCH($C67,'Efficiency Distributions'!$C$9:$C$87,0)+RIGHT($E77),0)\n+AT$11*OFFSET('Efficiency Distributions'!$E$10,MATCH($C67,'Efficiency Distributions'!$C$9:$C$87,0)+RIGHT($E77),0))\n/SUM(AT$10:AT$11)","v":0},{"$f":"IF(INDEX(PC_MAPPING,RIGHT($C67,1),MATCH($E$2,'Data by Building Type'!$D$22:$F$22,0))=\"Yes\",1,0)*\n(AU$10*OFFSET('Efficiency Distributions'!$D$10,MATCH($C67,'Efficiency Distributions'!$C$9:$C$87,0)+RIGHT($E77),0)\n+AU$11*OFFSET('Efficiency Distributions'!$E$10,MATCH($C67,'Efficiency Distributions'!$C$9:$C$87,0)+RIGHT($E77),0))\n/SUM(AU$10:AU$11)","v":0},{"$f":"IF(INDEX(PC_MAPPING,RIGHT($C67,1),MATCH($E$2,'Data by Building Type'!$D$22:$F$22,0))=\"Yes\",1,0)*\n(AV$10*OFFSET('Efficiency Distributions'!$D$10,MATCH($C67,'Efficiency Distributions'!$C$9:$C$87,0)+RIGHT($E77),0)\n+AV$11*OFFSET('Efficiency Distributions'!$E$10,MATCH($C67,'Efficiency Distributions'!$C$9:$C$87,0)+RIGHT($E77),0))\n/SUM(AV$10:AV$11)","v":0},{"$f":"IF(INDEX(PC_MAPPING,RIGHT($C67,1),MATCH($E$2,'Data by Building Type'!$D$22:$F$22,0))=\"Yes\",1,0)*\n(AW$10*OFFSET('Efficiency Distributions'!$D$10,MATCH($C67,'Efficiency Distributions'!$C$9:$C$87,0)+RIGHT($E77),0)\n+AW$11*OFFSET('Efficiency Distributions'!$E$10,MATCH($C67,'Efficiency Distributions'!$C$9:$C$87,0)+RIGHT($E77),0))\n/SUM(AW$10:AW$11)","v":0},{"$f":"IF(INDEX(PC_MAPPING,RIGHT($C67,1),MATCH($E$2,'Data by Building Type'!$D$22:$F$22,0))=\"Yes\",1,0)*\n(AX$10*OFFSET('Efficiency Distributions'!$D$10,MATCH($C67,'Efficiency Distributions'!$C$9:$C$87,0)+RIGHT($E77),0)\n+AX$11*OFFSET('Efficiency Distributions'!$E$10,MATCH($C67,'Efficiency Distributions'!$C$9:$C$87,0)+RIGHT($E77),0))\n/SUM(AX$10:AX$11)","v":0},{"$f":"IF(INDEX(PC_MAPPING,RIGHT($C67,1),MATCH($E$2,'Data by Building Type'!$D$22:$F$22,0))=\"Yes\",1,0)*\n(AY$10*OFFSET('Efficiency Distributions'!$D$10,MATCH($C67,'Efficiency Distributions'!$C$9:$C$87,0)+RIGHT($E77),0)\n+AY$11*OFFSET('Efficiency Distributions'!$E$10,MATCH($C67,'Efficiency Distributions'!$C$9:$C$87,0)+RIGHT($E77),0))\n/SUM(AY$10:AY$11)","v":0},{"$f":"IF(INDEX(PC_MAPPING,RIGHT($C67,1),MATCH($E$2,'Data by Building Type'!$D$22:$F$22,0))=\"Yes\",1,0)*\n(AZ$10*OFFSET('Efficiency Distributions'!$D$10,MATCH($C67,'Efficiency Distributions'!$C$9:$C$87,0)+RIGHT($E77),0)\n+AZ$11*OFFSET('Efficiency Distributions'!$E$10,MATCH($C67,'Efficiency Distributions'!$C$9:$C$87,0)+RIGHT($E77),0))\n/SUM(AZ$10:AZ$11)","v":0},{"$f":"IF(INDEX(PC_MAPPING,RIGHT($C67,1),MATCH($E$2,'Data by Building Type'!$D$22:$F$22,0))=\"Yes\",1,0)*\n(BA$10*OFFSET('Efficiency Distributions'!$D$10,MATCH($C67,'Efficiency Distributions'!$C$9:$C$87,0)+RIGHT($E77),0)\n+BA$11*OFFSET('Efficiency Distributions'!$E$10,MATCH($C67,'Efficiency Distributions'!$C$9:$C$87,0)+RIGHT($E77),0))\n/SUM(BA$10:BA$11)","v":0},{"$f":"IF(INDEX(PC_MAPPING,RIGHT($C67,1),MATCH($E$2,'Data by Building Type'!$D$22:$F$22,0))=\"Yes\",1,0)*\n(BB$10*OFFSET('Efficiency Distributions'!$D$10,MATCH($C67,'Efficiency Distributions'!$C$9:$C$87,0)+RIGHT($E77),0)\n+BB$11*OFFSET('Efficiency Distributions'!$E$10,MATCH($C67,'Efficiency Distributions'!$C$9:$C$87,0)+RIGHT($E77),0))\n/SUM(BB$10:BB$11)","v":0},{"$f":"IF(INDEX(PC_MAPPING,RIGHT($C67,1),MATCH($E$2,'Data by Building Type'!$D$22:$F$22,0))=\"Yes\",1,0)*\n(BC$10*OFFSET('Efficiency Distributions'!$D$10,MATCH($C67,'Efficiency Distributions'!$C$9:$C$87,0)+RIGHT($E77),0)\n+BC$11*OFFSET('Efficiency Distributions'!$E$10,MATCH($C67,'Efficiency Distributions'!$C$9:$C$87,0)+RIGHT($E77),0))\n/SUM(BC$10:BC$11)","v":0},{"$f":"IF(INDEX(PC_MAPPING,RIGHT($C67,1),MATCH($E$2,'Data by Building Type'!$D$22:$F$22,0))=\"Yes\",1,0)*\n(BD$10*OFFSET('Efficiency Distributions'!$D$10,MATCH($C67,'Efficiency Distributions'!$C$9:$C$87,0)+RIGHT($E77),0)\n+BD$11*OFFSET('Efficiency Distributions'!$E$10,MATCH($C67,'Efficiency Distributions'!$C$9:$C$87,0)+RIGHT($E77),0))\n/SUM(BD$10:BD$11)","v":0},{"$f":"IF(INDEX(PC_MAPPING,RIGHT($C67,1),MATCH($E$2,'Data by Building Type'!$D$22:$F$22,0))=\"Yes\",1,0)*\n(BE$10*OFFSET('Efficiency Distributions'!$D$10,MATCH($C67,'Efficiency Distributions'!$C$9:$C$87,0)+RIGHT($E77),0)\n+BE$11*OFFSET('Efficiency Distributions'!$E$10,MATCH($C67,'Efficiency Distributions'!$C$9:$C$87,0)+RIGHT($E77),0))\n/SUM(BE$10:BE$11)","v":0},{"$f":"IF(INDEX(PC_MAPPING,RIGHT($C67,1),MATCH($E$2,'Data by Building Type'!$D$22:$F$22,0))=\"Yes\",1,0)*\n(BF$10*OFFSET('Efficiency Distributions'!$D$10,MATCH($C67,'Efficiency Distributions'!$C$9:$C$87,0)+RIGHT($E77),0)\n+BF$11*OFFSET('Efficiency Distributions'!$E$10,MATCH($C67,'Efficiency Distributions'!$C$9:$C$87,0)+RIGHT($E77),0))\n/SUM(BF$10:BF$11)","v":0},{"$f":"IF(INDEX(PC_MAPPING,RIGHT($C67,1),MATCH($E$2,'Data by Building Type'!$D$22:$F$22,0))=\"Yes\",1,0)*\n(BG$10*OFFSET('Efficiency Distributions'!$D$10,MATCH($C67,'Efficiency Distributions'!$C$9:$C$87,0)+RIGHT($E77),0)\n+BG$11*OFFSET('Efficiency Distributions'!$E$10,MATCH($C67,'Efficiency Distributions'!$C$9:$C$87,0)+RIGHT($E77),0))\n/SUM(BG$10:BG$11)","v":0}]
[null,null,null,null,"TOTAL",{"$f":"SUM(F71:F77)","v":0},0,0,{"$f":"SUM(I71:I77)","v":0},0,0,0,0,0,0,0,0,0,0,0,0,0,0,0,0,0,0,0,0,0,0,0,0,0,0,0,0,0,0,0,0,0,0,0,0,0,0,0,0,0,0,0,0,0,0,0,0,0,0]
[]
[null,null,null,"POST-Case"]
[null,null,null,null,"Efficiency Level",1981,{"$f":"F81+1","v":1982},{"$f":"G81+1","v":1983},{"$f":"H81+1","v":1984},{"$f":"I81+1","v":1985},{"$f":"J81+1","v":1986},{"$f":"K81+1","v":1987},{"$f":"L81+1","v":1988},{"$f":"M81+1","v":1989},{"$f":"N81+1","v":1990},{"$f":"O81+1","v":1991},{"$f":"P81+1","v":1992},{"$f":"Q81+1","v":1993},{"$f":"R81+1","v":1994},1995,1996,1997,1998,1999,2000,2001,2002,2003,2004,2005,2006,2007,2008,2009,2010,2011,2012,2013,2014,2015,2016,2017,2018,2019,2020,2021,2022,2023,2024,2025,2026,2027,2028,2029,2030,2031,2032,2033,2034]
[null,null,null,null,"EL0",{"$f":"IF(F$29<STANDARD_YEAR,F71,\nIF(RIGHT($E82,1)>RIGHT(INDEX(STANDARD_LEVELS,1,MID($C67,4,1)),1),F71,\nIF(RIGHT($E82,1)<RIGHT(INDEX(STANDARD_LEVELS,1,MID($C67,4,1)),1),0,\nIF(RIGHT($E82,1)=RIGHT(INDEX(STANDARD_LEVELS,1,MID($C67,4,1)),1),SUM(OFFSET(F71,-(RIGHT($E82,1)),0,RIGHT($E82,1)+1,1)),\"ERROR\"))))","v":0},0,0,{"$f":"IF(I$29<STANDARD_YEAR,I71,\nIF(RIGHT($E82,1)>RIGHT(INDEX(STANDARD_LEVELS,1,MID($C67,4,1)),1),I71,\nIF(RIGHT($E82,1)<RIGHT(INDEX(STANDARD_LEVELS,1,MID($C67,4,1)),1),0,\nIF(RIGHT($E82,1)=RIGHT(INDEX(STANDARD_LEVELS,1,MID($C67,4,1)),1),SUM(OFFSET(I71,-(RIGHT($E82,1)),0,RIGHT($E82,1)+1,1)),\"ERROR\"))))","v":0},0,0,0,0,0,0,0,0,0,0,0,0,0,0,0,0,0,0,0,0,0,0,0,0,0,0,0,0,0,0,0,0,0,0,0,0,0,0,0,0,0,0,0,0,0,0,0,0,0,0]
[null,null,null,null,"EL1",{"$f":"IF(F$29<STANDARD_YEAR,F72,\nIF(RIGHT($E83,1)>RIGHT(INDEX(STANDARD_LEVELS,1,MID($C67,4,1)),1),F72,\nIF(RIGHT($E83,1)<RIGHT(INDEX(STANDARD_LEVELS,1,MID($C67,4,1)),1),0,\nIF(RIGHT($E83,1)=RIGHT(INDEX(STANDARD_LEVELS,1,MID($C67,4,1)),1),SUM(OFFSET(F72,-(RIGHT($E83,1)),0,RIGHT($E83,1)+1,1)),\"ERROR\"))))","v":0},0,0,{"$f":"IF(I$29<STANDARD_YEAR,I72,\nIF(RIGHT($E83,1)>RIGHT(INDEX(STANDARD_LEVELS,1,MID($C67,4,1)),1),I72,\nIF(RIGHT($E83,1)<RIGHT(INDEX(STANDARD_LEVELS,1,MID($C67,4,1)),1),0,\nIF(RIGHT($E83,1)=RIGHT(INDEX(STANDARD_LEVELS,1,MID($C67,4,1)),1),SUM(OFFSET(I72,-(RIGHT($E83,1)),0,RIGHT($E83,1)+1,1)),\"ERROR\"))))","v":0},0,0,0,0,0,0,0,0,0,0,0,0,0,0,0,0,0,0,0,0,0,0,0,0,0,0,0,0,0,0,0,0,0,0,0,0,0,0,0,0,0,0,0,0,0,0,0,0,0,0]
[null,null,null,null,"EL2",{"$f":"IF(F$29<STANDARD_YEAR,F73,\nIF(RIGHT($E84,1)>RIGHT(INDEX(STANDARD_LEVELS,1,MID($C67,4,1)),1),F73,\nIF(RIGHT($E84,1)<RIGHT(INDEX(STANDARD_LEVELS,1,MID($C67,4,1)),1),0,\nIF(RIGHT($E84,1)=RIGHT(INDEX(STANDARD_LEVELS,1,MID($C67,4,1)),1),SUM(OFFSET(F73,-(RIGHT($E84,1)),0,RIGHT($E84,1)+1,1)),\"ERROR\"))))","v":0},0,0,{"$f":"IF(I$29<STANDARD_YEAR,I73,\nIF(RIGHT($E84,1)>RIGHT(INDEX(STANDARD_LEVELS,1,MID($C67,4,1)),1),I73,\nIF(RIGHT($E84,1)<RIGHT(INDEX(STANDARD_LEVELS,1,MID($C67,4,1)),1),0,\nIF(RIGHT($E84,1)=RIGHT(INDEX(STANDARD_LEVELS,1,MID($C67,4,1)),1),SUM(OFFSET(I73,-(RIGHT($E84,1)),0,RIGHT($E84,1)+1,1)),\"ERROR\"))))","v":0},0,0,0,0,0,0,0,0,0,0,0,0,0,0,0,0,0,0,0,0,0,0,0,0,0,0,0,0,0,0,0,0,0,0,0,0,0,0,0,0,0,0,0,0,0,0,0,0,0,0]
[null,null,null,null,"EL3",{"$f":"IF(F$29<STANDARD_YEAR,F74,\nIF(RIGHT($E85,1)>RIGHT(INDEX(STANDARD_LEVELS,1,MID($C67,4,1)),1),F74,\nIF(RIGHT($E85,1)<RIGHT(INDEX(STANDARD_LEVELS,1,MID($C67,4,1)),1),0,\nIF(RIGHT($E85,1)=RIGHT(INDEX(STANDARD_LEVELS,1,MID($C67,4,1)),1),SUM(OFFSET(F74,-(RIGHT($E85,1)),0,RIGHT($E85,1)+1,1)),\"ERROR\"))))","v":0},0,0,{"$f":"IF(I$29<STANDARD_YEAR,I74,\nIF(RIGHT($E85,1)>RIGHT(INDEX(STANDARD_LEVELS,1,MID($C67,4,1)),1),I74,\nIF(RIGHT($E85,1)<RIGHT(INDEX(STANDARD_LEVELS,1,MID($C67,4,1)),1),0,\nIF(RIGHT($E85,1)=RIGHT(INDEX(STANDARD_LEVELS,1,MID($C67,4,1)),1),SUM(OFFSET(I74,-(RIGHT($E85,1)),0,RIGHT($E85,1)+1,1)),\"ERROR\"))))","v":0},0,0,0,0,0,0,0,0,0,0,0,0,0,0,0,0,0,0,0,0,0,0,0,0,0,0,0,0,0,0,0,0,0,0,0,0,0,0,0,0,0,0,0,0,0,0,0,0,0,0]
[null,null,null,null,"EL4",{"$f":"IF(F$29<STANDARD_YEAR,F75,\nIF(RIGHT($E86,1)>RIGHT(INDEX(STANDARD_LEVELS,1,MID($C67,4,1)),1),F75,\nIF(RIGHT($E86,1)<RIGHT(INDEX(STANDARD_LEVELS,1,MID($C67,4,1)),1),0,\nIF(RIGHT($E86,1)=RIGHT(INDEX(STANDARD_LEVELS,1,MID($C67,4,1)),1),SUM(OFFSET(F75,-(RIGHT($E86,1)),0,RIGHT($E86,1)+1,1)),\"ERROR\"))))","v":0},0,0,{"$f":"IF(I$29<STANDARD_YEAR,I75,\nIF(RIGHT($E86,1)>RIGHT(INDEX(STANDARD_LEVELS,1,MID($C67,4,1)),1),I75,\nIF(RIGHT($E86,1)<RIGHT(INDEX(STANDARD_LEVELS,1,MID($C67,4,1)),1),0,\nIF(RIGHT($E86,1)=RIGHT(INDEX(STANDARD_LEVELS,1,MID($C67,4,1)),1),SUM(OFFSET(I75,-(RIGHT($E86,1)),0,RIGHT($E86,1)+1,1)),\"ERROR\"))))","v":0},0,0,0,0,0,0,0,0,0,0,0,0,0,0,0,0,0,0,0,0,0,0,0,0,0,0,0,0,0,0,0,0,0,0,0,0,0,0,0,0,0,0,0,0,0,0,0,0,0,0]
[null,null,null,null,"EL5",{"$f":"IF(F$29<STANDARD_YEAR,F76,\nIF(RIGHT($E87,1)>RIGHT(INDEX(STANDARD_LEVELS,1,MID($C67,4,1)),1),F76,\nIF(RIGHT($E87,1)<RIGHT(INDEX(STANDARD_LEVELS,1,MID($C67,4,1)),1),0,\nIF(RIGHT($E87,1)=RIGHT(INDEX(STANDARD_LEVELS,1,MID($C67,4,1)),1),SUM(OFFSET(F76,-(RIGHT($E87,1)),0,RIGHT($E87,1)+1,1)),\"ERROR\"))))","v":0},0,0,{"$f":"IF(I$29<STANDARD_YEAR,I76,\nIF(RIGHT($E87,1)>RIGHT(INDEX(STANDARD_LEVELS,1,MID($C67,4,1)),1),I76,\nIF(RIGHT($E87,1)<RIGHT(INDEX(STANDARD_LEVELS,1,MID($C67,4,1)),1),0,\nIF(RIGHT($E87,1)=RIGHT(INDEX(STANDARD_LEVELS,1,MID($C67,4,1)),1),SUM(OFFSET(I76,-(RIGHT($E87,1)),0,RIGHT($E87,1)+1,1)),\"ERROR\"))))","v":0},0,0,0,0,0,0,0,0,0,0,0,0,0,0,0,0,0,0,0,0,0,0,0,0,0,0,0,0,0,0,0,0,0,0,0,0,0,0,0,0,0,0,0,0,0,0,0,0,0,0]
[null,null,null,null,"EL6",{"$f":"IF(F$29<STANDARD_YEAR,F77,\nIF(RIGHT($E88,1)>RIGHT(INDEX(STANDARD_LEVELS,1,MID($C67,4,1)),1),F77,\nIF(RIGHT($E88,1)<RIGHT(INDEX(STANDARD_LEVELS,1,MID($C67,4,1)),1),0,\nIF(RIGHT($E88,1)=RIGHT(INDEX(STANDARD_LEVELS,1,MID($C67,4,1)),1),SUM(OFFSET(F77,-(RIGHT($E88,1)),0,RIGHT($E88,1)+1,1)),\"ERROR\"))))","v":0},0,0,{"$f":"IF(I$29<STANDARD_YEAR,I77,\nIF(RIGHT($E88,1)>RIGHT(INDEX(STANDARD_LEVELS,1,MID($C67,4,1)),1),I77,\nIF(RIGHT($E88,1)<RIGHT(INDEX(STANDARD_LEVELS,1,MID($C67,4,1)),1),0,\nIF(RIGHT($E88,1)=RIGHT(INDEX(STANDARD_LEVELS,1,MID($C67,4,1)),1),SUM(OFFSET(I77,-(RIGHT($E88,1)),0,RIGHT($E88,1)+1,1)),\"ERROR\"))))","v":0},0,0,0,0,0,0,0,0,0,0,0,0,0,0,0,0,0,0,0,0,0,0,0,0,0,0,0,0,0,0,0,0,0,0,0,0,0,0,0,0,0,0,0,0,0,0,0,0,0,0]
[null,null,null,null,"TOTAL",{"$f":"SUM(F82:F88)","v":0},0,0,{"$f":"SUM(I82:I88)","v":0},0,0,0,0,0,0,0,0,0,0,0,0,0,0,0,0,0,0,0,0,0,0,0,0,0,0,0,0,0,0,0,0,0,0,0,0,0,0,0,0,0,0,0,0,0,0,0,0,0,0]
[]
[]
[]
[null,null,"PC 4",{"$f":"OFFSET('Product Classes'!$C$9,MATCH(C93,MODEL_PCS,0),0)","v":"Non-Weatherized, Non-Condensing Oil Furnace Fan (NWO-NC)"}]
[]
[null,null,null,"PRE-Case"]
[null,null,null,null,"Efficiency Level",1981,{"$f":"F96+1","v":1982},{"$f":"G96+1","v":1983},{"$f":"H96+1","v":1984},{"$f":"I96+1","v":1985},{"$f":"J96+1","v":1986},{"$f":"K96+1","v":1987},{"$f":"L96+1","v":1988},{"$f":"M96+1","v":1989},{"$f":"N96+1","v":1990},{"$f":"O96+1","v":1991},{"$f":"P96+1","v":1992},{"$f":"Q96+1","v":1993},{"$f":"R96+1","v":1994},1995,1996,1997,1998,1999,2000,2001,2002,2003,2004,2005,2006,2007,2008,2009,2010,2011,2012,2013,2014,2015,2016,2017,2018,2019,2020,2021,2022,2023,2024,2025,2026,2027,2028,2029,2030,2031,2032,2033,2034]
[null,null,null,null,"EL0",{"$f":"IF(INDEX(PC_MAPPING,RIGHT($C93,1),MATCH($E$2,'Data by Building Type'!$D$22:$F$22,0))=\"Yes\",1,0)*\n(F$10*OFFSET('Efficiency Distributions'!$D$10,MATCH($C93,'Efficiency Distributions'!$C$9:$C$87,0)+RIGHT($E97),0)\n+F$11*OFFSET('Efficiency Distributions'!$E$10,MATCH($C93,'Efficiency Distributions'!$C$9:$C$87,0)+RIGHT($E97),0))\n/SUM(F$10:F$11)","v":0},{"$f":"IF(INDEX(PC_MAPPING,RIGHT($C93,1),MATCH($E$2,'Data by Building Type'!$D$22:$F$22,0))=\"Yes\",1,0)*\n(G$10*OFFSET('Efficiency Distributions'!$D$10,MATCH($C93,'Efficiency Distributions'!$C$9:$C$87,0)+RIGHT($E97),0)\n+G$11*OFFSET('Efficiency Distributions'!$E$10,MATCH($C93,'Efficiency Distributions'!$C$9:$C$87,0)+RIGHT($E97),0))\n/SUM(G$10:G$11)","v":0},{"$f":"IF(INDEX(PC_MAPPING,RIGHT($C93,1),MATCH($E$2,'Data by Building Type'!$D$22:$F$22,0))=\"Yes\",1,0)*\n(H$10*OFFSET('Efficiency Distributions'!$D$10,MATCH($C93,'Efficiency Distributions'!$C$9:$C$87,0)+RIGHT($E97),0)\n+H$11*OFFSET('Efficiency Distributions'!$E$10,MATCH($C93,'Efficiency Distributions'!$C$9:$C$87,0)+RIGHT($E97),0))\n/SUM(H$10:H$11)","v":0},{"$f":"IF(INDEX(PC_MAPPING,RIGHT($C93,1),MATCH($E$2,'Data by Building Type'!$D$22:$F$22,0))=\"Yes\",1,0)*\n(I$10*OFFSET('Efficiency Distributions'!$D$10,MATCH($C93,'Efficiency Distributions'!$C$9:$C$87,0)+RIGHT($E97),0)\n+I$11*OFFSET('Efficiency Distributions'!$E$10,MATCH($C93,'Efficiency Distributions'!$C$9:$C$87,0)+RIGHT($E97),0))\n/SUM(I$10:I$11)","v":0},{"$f":"IF(INDEX(PC_MAPPING,RIGHT($C93,1),MATCH($E$2,'Data by Building Type'!$D$22:$F$22,0))=\"Yes\",1,0)*\n(J$10*OFFSET('Efficiency Distributions'!$D$10,MATCH($C93,'Efficiency Distributions'!$C$9:$C$87,0)+RIGHT($E97),0)\n+J$11*OFFSET('Efficiency Distributions'!$E$10,MATCH($C93,'Efficiency Distributions'!$C$9:$C$87,0)+RIGHT($E97),0))\n/SUM(J$10:J$11)","v":0},{"$f":"IF(INDEX(PC_MAPPING,RIGHT($C93,1),MATCH($E$2,'Data by Building Type'!$D$22:$F$22,0))=\"Yes\",1,0)*\n(K$10*OFFSET('Efficiency Distributions'!$D$10,MATCH($C93,'Efficiency Distributions'!$C$9:$C$87,0)+RIGHT($E97),0)\n+K$11*OFFSET('Efficiency Distributions'!$E$10,MATCH($C93,'Efficiency Distributions'!$C$9:$C$87,0)+RIGHT($E97),0))\n/SUM(K$10:K$11)","v":0},{"$f":"IF(INDEX(PC_MAPPING,RIGHT($C93,1),MATCH($E$2,'Data by Building Type'!$D$22:$F$22,0))=\"Yes\",1,0)*\n(L$10*OFFSET('Efficiency Distributions'!$D$10,MATCH($C93,'Efficiency Distributions'!$C$9:$C$87,0)+RIGHT($E97),0)\n+L$11*OFFSET('Efficiency Distributions'!$E$10,MATCH($C93,'Efficiency Distributions'!$C$9:$C$87,0)+RIGHT($E97),0))\n/SUM(L$10:L$11)","v":0},{"$f":"IF(INDEX(PC_MAPPING,RIGHT($C93,1),MATCH($E$2,'Data by Building Type'!$D$22:$F$22,0))=\"Yes\",1,0)*\n(M$10*OFFSET('Efficiency Distributions'!$D$10,MATCH($C93,'Efficiency Distributions'!$C$9:$C$87,0)+RIGHT($E97),0)\n+M$11*OFFSET('Efficiency Distributions'!$E$10,MATCH($C93,'Efficiency Distributions'!$C$9:$C$87,0)+RIGHT($E97),0))\n/SUM(M$10:M$11)","v":0},{"$f":"IF(INDEX(PC_MAPPING,RIGHT($C93,1),MATCH($E$2,'Data by Building Type'!$D$22:$F$22,0))=\"Yes\",1,0)*\n(N$10*OFFSET('Efficiency Distributions'!$D$10,MATCH($C93,'Efficiency Distributions'!$C$9:$C$87,0)+RIGHT($E97),0)\n+N$11*OFFSET('Efficiency Distributions'!$E$10,MATCH($C93,'Efficiency Distributions'!$C$9:$C$87,0)+RIGHT($E97),0))\n/SUM(N$10:N$11)","v":0},{"$f":"IF(INDEX(PC_MAPPING,RIGHT($C93,1),MATCH($E$2,'Data by Building Type'!$D$22:$F$22,0))=\"Yes\",1,0)*\n(O$10*OFFSET('Efficiency Distributions'!$D$10,MATCH($C93,'Efficiency Distributions'!$C$9:$C$87,0)+RIGHT($E97),0)\n+O$11*OFFSET('Efficiency Distributions'!$E$10,MATCH($C93,'Efficiency Distributions'!$C$9:$C$87,0)+RIGHT($E97),0))\n/SUM(O$10:O$11)","v":0},{"$f":"IF(INDEX(PC_MAPPING,RIGHT($C93,1),MATCH($E$2,'Data by Building Type'!$D$22:$F$22,0))=\"Yes\",1,0)*\n(P$10*OFFSET('Efficiency Distributions'!$D$10,MATCH($C93,'Efficiency Distributions'!$C$9:$C$87,0)+RIGHT($E97),0)\n+P$11*OFFSET('Efficiency Distributions'!$E$10,MATCH($C93,'Efficiency Distributions'!$C$9:$C$87,0)+RIGHT($E97),0))\n/SUM(P$10:P$11)","v":0},{"$f":"IF(INDEX(PC_MAPPING,RIGHT($C93,1),MATCH($E$2,'Data by Building Type'!$D$22:$F$22,0))=\"Yes\",1,0)*\n(Q$10*OFFSET('Efficiency Distributions'!$D$10,MATCH($C93,'Efficiency Distributions'!$C$9:$C$87,0)+RIGHT($E97),0)\n+Q$11*OFFSET('Efficiency Distributions'!$E$10,MATCH($C93,'Efficiency Distributions'!$C$9:$C$87,0)+RIGHT($E97),0))\n/SUM(Q$10:Q$11)","v":0},{"$f":"IF(INDEX(PC_MAPPING,RIGHT($C93,1),MATCH($E$2,'Data by Building Type'!$D$22:$F$22,0))=\"Yes\",1,0)*\n(R$10*OFFSET('Efficiency Distributions'!$D$10,MATCH($C93,'Efficiency Distributions'!$C$9:$C$87,0)+RIGHT($E97),0)\n+R$11*OFFSET('Efficiency Distributions'!$E$10,MATCH($C93,'Efficiency Distributions'!$C$9:$C$87,0)+RIGHT($E97),0))\n/SUM(R$10:R$11)","v":0},{"$f":"IF(INDEX(PC_MAPPING,RIGHT($C93,1),MATCH($E$2,'Data by Building Type'!$D$22:$F$22,0))=\"Yes\",1,0)*\n(S$10*OFFSET('Efficiency Distributions'!$D$10,MATCH($C93,'Efficiency Distributions'!$C$9:$C$87,0)+RIGHT($E97),0)\n+S$11*OFFSET('Efficiency Distributions'!$E$10,MATCH($C93,'Efficiency Distributions'!$C$9:$C$87,0)+RIGHT($E97),0))\n/SUM(S$10:S$11)","v":0},{"$f":"IF(INDEX(PC_MAPPING,RIGHT($C93,1),MATCH($E$2,'Data by Building Type'!$D$22:$F$22,0))=\"Yes\",1,0)*\n(T$10*OFFSET('Efficiency Distributions'!$D$10,MATCH($C93,'Efficiency Distributions'!$C$9:$C$87,0)+RIGHT($E97),0)\n+T$11*OFFSET('Efficiency Distributions'!$E$10,MATCH($C93,'Efficiency Distributions'!$C$9:$C$87,0)+RIGHT($E97),0))\n/SUM(T$10:T$11)","v":0},{"$f":"IF(INDEX(PC_MAPPING,RIGHT($C93,1),MATCH($E$2,'Data by Building Type'!$D$22:$F$22,0))=\"Yes\",1,0)*\n(U$10*OFFSET('Efficiency Distributions'!$D$10,MATCH($C93,'Efficiency Distributions'!$C$9:$C$87,0)+RIGHT($E97),0)\n+U$11*OFFSET('Efficiency Distributions'!$E$10,MATCH($C93,'Efficiency Distributions'!$C$9:$C$87,0)+RIGHT($E97),0))\n/SUM(U$10:U$11)","v":0},{"$f":"IF(INDEX(PC_MAPPING,RIGHT($C93,1),MATCH($E$2,'Data by Building Type'!$D$22:$F$22,0))=\"Yes\",1,0)*\n(V$10*OFFSET('Efficiency Distributions'!$D$10,MATCH($C93,'Efficiency Distributions'!$C$9:$C$87,0)+RIGHT($E97),0)\n+V$11*OFFSET('Efficiency Distributions'!$E$10,MATCH($C93,'Efficiency Distributions'!$C$9:$C$87,0)+RIGHT($E97),0))\n/SUM(V$10:V$11)","v":0},{"$f":"IF(INDEX(PC_MAPPING,RIGHT($C93,1),MATCH($E$2,'Data by Building Type'!$D$22:$F$22,0))=\"Yes\",1,0)*\n(W$10*OFFSET('Efficiency Distributions'!$D$10,MATCH($C93,'Efficiency Distributions'!$C$9:$C$87,0)+RIGHT($E97),0)\n+W$11*OFFSET('Efficiency Distributions'!$E$10,MATCH($C93,'Efficiency Distributions'!$C$9:$C$87,0)+RIGHT($E97),0))\n/SUM(W$10:W$11)","v":0},{"$f":"IF(INDEX(PC_MAPPING,RIGHT($C93,1),MATCH($E$2,'Data by Building Type'!$D$22:$F$22,0))=\"Yes\",1,0)*\n(X$10*OFFSET('Efficiency Distributions'!$D$10,MATCH($C93,'Efficiency Distributions'!$C$9:$C$87,0)+RIGHT($E97),0)\n+X$11*OFFSET('Efficiency Distributions'!$E$10,MATCH($C93,'Efficiency Distributions'!$C$9:$C$87,0)+RIGHT($E97),0))\n/SUM(X$10:X$11)","v":0},{"$f":"IF(INDEX(PC_MAPPING,RIGHT($C93,1),MATCH($E$2,'Data by Building Type'!$D$22:$F$22,0))=\"Yes\",1,0)*\n(Y$10*OFFSET('Efficiency Distributions'!$D$10,MATCH($C93,'Efficiency Distributions'!$C$9:$C$87,0)+RIGHT($E97),0)\n+Y$11*OFFSET('Efficiency Distributions'!$E$10,MATCH($C93,'Efficiency Distributions'!$C$9:$C$87,0)+RIGHT($E97),0))\n/SUM(Y$10:Y$11)","v":0},{"$f":"IF(INDEX(PC_MAPPING,RIGHT($C93,1),MATCH($E$2,'Data by Building Type'!$D$22:$F$22,0))=\"Yes\",1,0)*\n(Z$10*OFFSET('Efficiency Distributions'!$D$10,MATCH($C93,'Efficiency Distributions'!$C$9:$C$87,0)+RIGHT($E97),0)\n+Z$11*OFFSET('Efficiency Distributions'!$E$10,MATCH($C93,'Efficiency Distributions'!$C$9:$C$87,0)+RIGHT($E97),0))\n/SUM(Z$10:Z$11)","v":0},{"$f":"IF(INDEX(PC_MAPPING,RIGHT($C93,1),MATCH($E$2,'Data by Building Type'!$D$22:$F$22,0))=\"Yes\",1,0)*\n(AA$10*OFFSET('Efficiency Distributions'!$D$10,MATCH($C93,'Efficiency Distributions'!$C$9:$C$87,0)+RIGHT($E97),0)\n+AA$11*OFFSET('Efficiency Distributions'!$E$10,MATCH($C93,'Efficiency Distributions'!$C$9:$C$87,0)+RIGHT($E97),0))\n/SUM(AA$10:AA$11)","v":0},{"$f":"IF(INDEX(PC_MAPPING,RIGHT($C93,1),MATCH($E$2,'Data by Building Type'!$D$22:$F$22,0))=\"Yes\",1,0)*\n(AB$10*OFFSET('Efficiency Distributions'!$D$10,MATCH($C93,'Efficiency Distributions'!$C$9:$C$87,0)+RIGHT($E97),0)\n+AB$11*OFFSET('Efficiency Distributions'!$E$10,MATCH($C93,'Efficiency Distributions'!$C$9:$C$87,0)+RIGHT($E97),0))\n/SUM(AB$10:AB$11)","v":0},{"$f":"IF(INDEX(PC_MAPPING,RIGHT($C93,1),MATCH($E$2,'Data by Building Type'!$D$22:$F$22,0))=\"Yes\",1,0)*\n(AC$10*OFFSET('Efficiency Distributions'!$D$10,MATCH($C93,'Efficiency Distributions'!$C$9:$C$87,0)+RIGHT($E97),0)\n+AC$11*OFFSET('Efficiency Distributions'!$E$10,MATCH($C93,'Efficiency Distributions'!$C$9:$C$87,0)+RIGHT($E97),0))\n/SUM(AC$10:AC$11)","v":0},{"$f":"IF(INDEX(PC_MAPPING,RIGHT($C93,1),MATCH($E$2,'Data by Building Type'!$D$22:$F$22,0))=\"Yes\",1,0)*\n(AD$10*OFFSET('Efficiency Distributions'!$D$10,MATCH($C93,'Efficiency Distributions'!$C$9:$C$87,0)+RIGHT($E97),0)\n+AD$11*OFFSET('Efficiency Distributions'!$E$10,MATCH($C93,'Efficiency Distributions'!$C$9:$C$87,0)+RIGHT($E97),0))\n/SUM(AD$10:AD$11)","v":0},{"$f":"IF(INDEX(PC_MAPPING,RIGHT($C93,1),MATCH($E$2,'Data by Building Type'!$D$22:$F$22,0))=\"Yes\",1,0)*\n(AE$10*OFFSET('Efficiency Distributions'!$D$10,MATCH($C93,'Efficiency Distributions'!$C$9:$C$87,0)+RIGHT($E97),0)\n+AE$11*OFFSET('Efficiency Distributions'!$E$10,MATCH($C93,'Efficiency Distributions'!$C$9:$C$87,0)+RIGHT($E97),0))\n/SUM(AE$10:AE$11)","v":0},{"$f":"IF(INDEX(PC_MAPPING,RIGHT($C93,1),MATCH($E$2,'Data by Building Type'!$D$22:$F$22,0))=\"Yes\",1,0)*\n(AF$10*OFFSET('Efficiency Distributions'!$D$10,MATCH($C93,'Efficiency Distributions'!$C$9:$C$87,0)+RIGHT($E97),0)\n+AF$11*OFFSET('Efficiency Distributions'!$E$10,MATCH($C93,'Efficiency Distributions'!$C$9:$C$87,0)+RIGHT($E97),0))\n/SUM(AF$10:AF$11)","v":0},{"$f":"IF(INDEX(PC_MAPPING,RIGHT($C93,1),MATCH($E$2,'Data by Building Type'!$D$22:$F$22,0))=\"Yes\",1,0)*\n(AG$10*OFFSET('Efficiency Distributions'!$D$10,MATCH($C93,'Efficiency Distributions'!$C$9:$C$87,0)+RIGHT($E97),0)\n+AG$11*OFFSET('Efficiency Distributions'!$E$10,MATCH($C93,'Efficiency Distributions'!$C$9:$C$87,0)+RIGHT($E97),0))\n/SUM(AG$10:AG$11)","v":0},{"$f":"IF(INDEX(PC_MAPPING,RIGHT($C93,1),MATCH($E$2,'Data by Building Type'!$D$22:$F$22,0))=\"Yes\",1,0)*\n(AH$10*OFFSET('Efficiency Distributions'!$D$10,MATCH($C93,'Efficiency Distributions'!$C$9:$C$87,0)+RIGHT($E97),0)\n+AH$11*OFFSET('Efficiency Distributions'!$E$10,MATCH($C93,'Efficiency Distributions'!$C$9:$C$87,0)+RIGHT($E97),0))\n/SUM(AH$10:AH$11)","v":0},{"$f":"IF(INDEX(PC_MAPPING,RIGHT($C93,1),MATCH($E$2,'Data by Building Type'!$D$22:$F$22,0))=\"Yes\",1,0)*\n(AI$10*OFFSET('Efficiency Distributions'!$D$10,MATCH($C93,'Efficiency Distributions'!$C$9:$C$87,0)+RIGHT($E97),0)\n+AI$11*OFFSET('Efficiency Distributions'!$E$10,MATCH($C93,'Efficiency Distributions'!$C$9:$C$87,0)+RIGHT($E97),0))\n/SUM(AI$10:AI$11)","v":0},{"$f":"IF(INDEX(PC_MAPPING,RIGHT($C93,1),MATCH($E$2,'Data by Building Type'!$D$22:$F$22,0))=\"Yes\",1,0)*\n(AJ$10*OFFSET('Efficiency Distributions'!$D$10,MATCH($C93,'Efficiency Distributions'!$C$9:$C$87,0)+RIGHT($E97),0)\n+AJ$11*OFFSET('Efficiency Distributions'!$E$10,MATCH($C93,'Efficiency Distributions'!$C$9:$C$87,0)+RIGHT($E97),0))\n/SUM(AJ$10:AJ$11)","v":0},{"$f":"IF(INDEX(PC_MAPPING,RIGHT($C93,1),MATCH($E$2,'Data by Building Type'!$D$22:$F$22,0))=\"Yes\",1,0)*\n(AK$10*OFFSET('Efficiency Distributions'!$D$10,MATCH($C93,'Efficiency Distributions'!$C$9:$C$87,0)+RIGHT($E97),0)\n+AK$11*OFFSET('Efficiency Distributions'!$E$10,MATCH($C93,'Efficiency Distributions'!$C$9:$C$87,0)+RIGHT($E97),0))\n/SUM(AK$10:AK$11)","v":0},{"$f":"IF(INDEX(PC_MAPPING,RIGHT($C93,1),MATCH($E$2,'Data by Building Type'!$D$22:$F$22,0))=\"Yes\",1,0)*\n(AL$10*OFFSET('Efficiency Distributions'!$D$10,MATCH($C93,'Efficiency Distributions'!$C$9:$C$87,0)+RIGHT($E97),0)\n+AL$11*OFFSET('Efficiency Distributions'!$E$10,MATCH($C93,'Efficiency Distributions'!$C$9:$C$87,0)+RIGHT($E97),0))\n/SUM(AL$10:AL$11)","v":0},{"$f":"IF(INDEX(PC_MAPPING,RIGHT($C93,1),MATCH($E$2,'Data by Building Type'!$D$22:$F$22,0))=\"Yes\",1,0)*\n(AM$10*OFFSET('Efficiency Distributions'!$D$10,MATCH($C93,'Efficiency Distributions'!$C$9:$C$87,0)+RIGHT($E97),0)\n+AM$11*OFFSET('Efficiency Distributions'!$E$10,MATCH($C93,'Efficiency Distributions'!$C$9:$C$87,0)+RIGHT($E97),0))\n/SUM(AM$10:AM$11)","v":0},{"$f":"IF(INDEX(PC_MAPPING,RIGHT($C93,1),MATCH($E$2,'Data by Building Type'!$D$22:$F$22,0))=\"Yes\",1,0)*\n(AN$10*OFFSET('Efficiency Distributions'!$D$10,MATCH($C93,'Efficiency Distributions'!$C$9:$C$87,0)+RIGHT($E97),0)\n+AN$11*OFFSET('Efficiency Distributions'!$E$10,MATCH($C93,'Efficiency Distributions'!$C$9:$C$87,0)+RIGHT($E97),0))\n/SUM(AN$10:AN$11)","v":0},{"$f":"IF(INDEX(PC_MAPPING,RIGHT($C93,1),MATCH($E$2,'Data by Building Type'!$D$22:$F$22,0))=\"Yes\",1,0)*\n(AO$10*OFFSET('Efficiency Distributions'!$D$10,MATCH($C93,'Efficiency Distributions'!$C$9:$C$87,0)+RIGHT($E97),0)\n+AO$11*OFFSET('Efficiency Distributions'!$E$10,MATCH($C93,'Efficiency Distributions'!$C$9:$C$87,0)+RIGHT($E97),0))\n/SUM(AO$10:AO$11)","v":0},{"$f":"IF(INDEX(PC_MAPPING,RIGHT($C93,1),MATCH($E$2,'Data by Building Type'!$D$22:$F$22,0))=\"Yes\",1,0)*\n(AP$10*OFFSET('Efficiency Distributions'!$D$10,MATCH($C93,'Efficiency Distributions'!$C$9:$C$87,0)+RIGHT($E97),0)\n+AP$11*OFFSET('Efficiency Distributions'!$E$10,MATCH($C93,'Efficiency Distributions'!$C$9:$C$87,0)+RIGHT($E97),0))\n/SUM(AP$10:AP$11)","v":0},{"$f":"IF(INDEX(PC_MAPPING,RIGHT($C93,1),MATCH($E$2,'Data by Building Type'!$D$22:$F$22,0))=\"Yes\",1,0)*\n(AQ$10*OFFSET('Efficiency Distributions'!$D$10,MATCH($C93,'Efficiency Distributions'!$C$9:$C$87,0)+RIGHT($E97),0)\n+AQ$11*OFFSET('Efficiency Distributions'!$E$10,MATCH($C93,'Efficiency Distributions'!$C$9:$C$87,0)+RIGHT($E97),0))\n/SUM(AQ$10:AQ$11)","v":0},{"$f":"IF(INDEX(PC_MAPPING,RIGHT($C93,1),MATCH($E$2,'Data by Building Type'!$D$22:$F$22,0))=\"Yes\",1,0)*\n(AR$10*OFFSET('Efficiency Distributions'!$D$10,MATCH($C93,'Efficiency Distributions'!$C$9:$C$87,0)+RIGHT($E97),0)\n+AR$11*OFFSET('Efficiency Distributions'!$E$10,MATCH($C93,'Efficiency Distributions'!$C$9:$C$87,0)+RIGHT($E97),0))\n/SUM(AR$10:AR$11)","v":0},{"$f":"IF(INDEX(PC_MAPPING,RIGHT($C93,1),MATCH($E$2,'Data by Building Type'!$D$22:$F$22,0))=\"Yes\",1,0)*\n(AS$10*OFFSET('Efficiency Distributions'!$D$10,MATCH($C93,'Efficiency Distributions'!$C$9:$C$87,0)+RIGHT($E97),0)\n+AS$11*OFFSET('Efficiency Distributions'!$E$10,MATCH($C93,'Efficiency Distributions'!$C$9:$C$87,0)+RIGHT($E97),0))\n/SUM(AS$10:AS$11)","v":0},{"$f":"IF(INDEX(PC_MAPPING,RIGHT($C93,1),MATCH($E$2,'Data by Building Type'!$D$22:$F$22,0))=\"Yes\",1,0)*\n(AT$10*OFFSET('Efficiency Distributions'!$D$10,MATCH($C93,'Efficiency Distributions'!$C$9:$C$87,0)+RIGHT($E97),0)\n+AT$11*OFFSET('Efficiency Distributions'!$E$10,MATCH($C93,'Efficiency Distributions'!$C$9:$C$87,0)+RIGHT($E97),0))\n/SUM(AT$10:AT$11)","v":0},{"$f":"IF(INDEX(PC_MAPPING,RIGHT($C93,1),MATCH($E$2,'Data by Building Type'!$D$22:$F$22,0))=\"Yes\",1,0)*\n(AU$10*OFFSET('Efficiency Distributions'!$D$10,MATCH($C93,'Efficiency Distributions'!$C$9:$C$87,0)+RIGHT($E97),0)\n+AU$11*OFFSET('Efficiency Distributions'!$E$10,MATCH($C93,'Efficiency Distributions'!$C$9:$C$87,0)+RIGHT($E97),0))\n/SUM(AU$10:AU$11)","v":0},{"$f":"IF(INDEX(PC_MAPPING,RIGHT($C93,1),MATCH($E$2,'Data by Building Type'!$D$22:$F$22,0))=\"Yes\",1,0)*\n(AV$10*OFFSET('Efficiency Distributions'!$D$10,MATCH($C93,'Efficiency Distributions'!$C$9:$C$87,0)+RIGHT($E97),0)\n+AV$11*OFFSET('Efficiency Distributions'!$E$10,MATCH($C93,'Efficiency Distributions'!$C$9:$C$87,0)+RIGHT($E97),0))\n/SUM(AV$10:AV$11)","v":0},{"$f":"IF(INDEX(PC_MAPPING,RIGHT($C93,1),MATCH($E$2,'Data by Building Type'!$D$22:$F$22,0))=\"Yes\",1,0)*\n(AW$10*OFFSET('Efficiency Distributions'!$D$10,MATCH($C93,'Efficiency Distributions'!$C$9:$C$87,0)+RIGHT($E97),0)\n+AW$11*OFFSET('Efficiency Distributions'!$E$10,MATCH($C93,'Efficiency Distributions'!$C$9:$C$87,0)+RIGHT($E97),0))\n/SUM(AW$10:AW$11)","v":0},{"$f":"IF(INDEX(PC_MAPPING,RIGHT($C93,1),MATCH($E$2,'Data by Building Type'!$D$22:$F$22,0))=\"Yes\",1,0)*\n(AX$10*OFFSET('Efficiency Distributions'!$D$10,MATCH($C93,'Efficiency Distributions'!$C$9:$C$87,0)+RIGHT($E97),0)\n+AX$11*OFFSET('Efficiency Distributions'!$E$10,MATCH($C93,'Efficiency Distributions'!$C$9:$C$87,0)+RIGHT($E97),0))\n/SUM(AX$10:AX$11)","v":0},{"$f":"IF(INDEX(PC_MAPPING,RIGHT($C93,1),MATCH($E$2,'Data by Building Type'!$D$22:$F$22,0))=\"Yes\",1,0)*\n(AY$10*OFFSET('Efficiency Distributions'!$D$10,MATCH($C93,'Efficiency Distributions'!$C$9:$C$87,0)+RIGHT($E97),0)\n+AY$11*OFFSET('Efficiency Distributions'!$E$10,MATCH($C93,'Efficiency Distributions'!$C$9:$C$87,0)+RIGHT($E97),0))\n/SUM(AY$10:AY$11)","v":0},{"$f":"IF(INDEX(PC_MAPPING,RIGHT($C93,1),MATCH($E$2,'Data by Building Type'!$D$22:$F$22,0))=\"Yes\",1,0)*\n(AZ$10*OFFSET('Efficiency Distributions'!$D$10,MATCH($C93,'Efficiency Distributions'!$C$9:$C$87,0)+RIGHT($E97),0)\n+AZ$11*OFFSET('Efficiency Distributions'!$E$10,MATCH($C93,'Efficiency Distributions'!$C$9:$C$87,0)+RIGHT($E97),0))\n/SUM(AZ$10:AZ$11)","v":0},{"$f":"IF(INDEX(PC_MAPPING,RIGHT($C93,1),MATCH($E$2,'Data by Building Type'!$D$22:$F$22,0))=\"Yes\",1,0)*\n(BA$10*OFFSET('Efficiency Distributions'!$D$10,MATCH($C93,'Efficiency Distributions'!$C$9:$C$87,0)+RIGHT($E97),0)\n+BA$11*OFFSET('Efficiency Distributions'!$E$10,MATCH($C93,'Efficiency Distributions'!$C$9:$C$87,0)+RIGHT($E97),0))\n/SUM(BA$10:BA$11)","v":0},{"$f":"IF(INDEX(PC_MAPPING,RIGHT($C93,1),MATCH($E$2,'Data by Building Type'!$D$22:$F$22,0))=\"Yes\",1,0)*\n(BB$10*OFFSET('Efficiency Distributions'!$D$10,MATCH($C93,'Efficiency Distributions'!$C$9:$C$87,0)+RIGHT($E97),0)\n+BB$11*OFFSET('Efficiency Distributions'!$E$10,MATCH($C93,'Efficiency Distributions'!$C$9:$C$87,0)+RIGHT($E97),0))\n/SUM(BB$10:BB$11)","v":0},{"$f":"IF(INDEX(PC_MAPPING,RIGHT($C93,1),MATCH($E$2,'Data by Building Type'!$D$22:$F$22,0))=\"Yes\",1,0)*\n(BC$10*OFFSET('Efficiency Distributions'!$D$10,MATCH($C93,'Efficiency Distributions'!$C$9:$C$87,0)+RIGHT($E97),0)\n+BC$11*OFFSET('Efficiency Distributions'!$E$10,MATCH($C93,'Efficiency Distributions'!$C$9:$C$87,0)+RIGHT($E97),0))\n/SUM(BC$10:BC$11)","v":0},{"$f":"IF(INDEX(PC_MAPPING,RIGHT($C93,1),MATCH($E$2,'Data by Building Type'!$D$22:$F$22,0))=\"Yes\",1,0)*\n(BD$10*OFFSET('Efficiency Distributions'!$D$10,MATCH($C93,'Efficiency Distributions'!$C$9:$C$87,0)+RIGHT($E97),0)\n+BD$11*OFFSET('Efficiency Distributions'!$E$10,MATCH($C93,'Efficiency Distributions'!$C$9:$C$87,0)+RIGHT($E97),0))\n/SUM(BD$10:BD$11)","v":0},{"$f":"IF(INDEX(PC_MAPPING,RIGHT($C93,1),MATCH($E$2,'Data by Building Type'!$D$22:$F$22,0))=\"Yes\",1,0)*\n(BE$10*OFFSET('Efficiency Distributions'!$D$10,MATCH($C93,'Efficiency Distributions'!$C$9:$C$87,0)+RIGHT($E97),0)\n+BE$11*OFFSET('Efficiency Distributions'!$E$10,MATCH($C93,'Efficiency Distributions'!$C$9:$C$87,0)+RIGHT($E97),0))\n/SUM(BE$10:BE$11)","v":0},{"$f":"IF(INDEX(PC_MAPPING,RIGHT($C93,1),MATCH($E$2,'Data by Building Type'!$D$22:$F$22,0))=\"Yes\",1,0)*\n(BF$10*OFFSET('Efficiency Distributions'!$D$10,MATCH($C93,'Efficiency Distributions'!$C$9:$C$87,0)+RIGHT($E97),0)\n+BF$11*OFFSET('Efficiency Distributions'!$E$10,MATCH($C93,'Efficiency Distributions'!$C$9:$C$87,0)+RIGHT($E97),0))\n/SUM(BF$10:BF$11)","v":0},{"$f":"IF(INDEX(PC_MAPPING,RIGHT($C93,1),MATCH($E$2,'Data by Building Type'!$D$22:$F$22,0))=\"Yes\",1,0)*\n(BG$10*OFFSET('Efficiency Distributions'!$D$10,MATCH($C93,'Efficiency Distributions'!$C$9:$C$87,0)+RIGHT($E97),0)\n+BG$11*OFFSET('Efficiency Distributions'!$E$10,MATCH($C93,'Efficiency Distributions'!$C$9:$C$87,0)+RIGHT($E97),0))\n/SUM(BG$10:BG$11)","v":0}]
[null,null,null,null,"EL1",{"$f":"IF(INDEX(PC_MAPPING,RIGHT($C93,1),MATCH($E$2,'Data by Building Type'!$D$22:$F$22,0))=\"Yes\",1,0)*\n(F$10*OFFSET('Efficiency Distributions'!$D$10,MATCH($C93,'Efficiency Distributions'!$C$9:$C$87,0)+RIGHT($E98),0)\n+F$11*OFFSET('Efficiency Distributions'!$E$10,MATCH($C93,'Efficiency Distributions'!$C$9:$C$87,0)+RIGHT($E98),0))\n/SUM(F$10:F$11)","v":0},{"$f":"IF(INDEX(PC_MAPPING,RIGHT($C93,1),MATCH($E$2,'Data by Building Type'!$D$22:$F$22,0))=\"Yes\",1,0)*\n(G$10*OFFSET('Efficiency Distributions'!$D$10,MATCH($C93,'Efficiency Distributions'!$C$9:$C$87,0)+RIGHT($E98),0)\n+G$11*OFFSET('Efficiency Distributions'!$E$10,MATCH($C93,'Efficiency Distributions'!$C$9:$C$87,0)+RIGHT($E98),0))\n/SUM(G$10:G$11)","v":0},{"$f":"IF(INDEX(PC_MAPPING,RIGHT($C93,1),MATCH($E$2,'Data by Building Type'!$D$22:$F$22,0))=\"Yes\",1,0)*\n(H$10*OFFSET('Efficiency Distributions'!$D$10,MATCH($C93,'Efficiency Distributions'!$C$9:$C$87,0)+RIGHT($E98),0)\n+H$11*OFFSET('Efficiency Distributions'!$E$10,MATCH($C93,'Efficiency Distributions'!$C$9:$C$87,0)+RIGHT($E98),0))\n/SUM(H$10:H$11)","v":0},{"$f":"IF(INDEX(PC_MAPPING,RIGHT($C93,1),MATCH($E$2,'Data by Building Type'!$D$22:$F$22,0))=\"Yes\",1,0)*\n(I$10*OFFSET('Efficiency Distributions'!$D$10,MATCH($C93,'Efficiency Distributions'!$C$9:$C$87,0)+RIGHT($E98),0)\n+I$11*OFFSET('Efficiency Distributions'!$E$10,MATCH($C93,'Efficiency Distributions'!$C$9:$C$87,0)+RIGHT($E98),0))\n/SUM(I$10:I$11)","v":0},{"$f":"IF(INDEX(PC_MAPPING,RIGHT($C93,1),MATCH($E$2,'Data by Building Type'!$D$22:$F$22,0))=\"Yes\",1,0)*\n(J$10*OFFSET('Efficiency Distributions'!$D$10,MATCH($C93,'Efficiency Distributions'!$C$9:$C$87,0)+RIGHT($E98),0)\n+J$11*OFFSET('Efficiency Distributions'!$E$10,MATCH($C93,'Efficiency Distributions'!$C$9:$C$87,0)+RIGHT($E98),0))\n/SUM(J$10:J$11)","v":0},{"$f":"IF(INDEX(PC_MAPPING,RIGHT($C93,1),MATCH($E$2,'Data by Building Type'!$D$22:$F$22,0))=\"Yes\",1,0)*\n(K$10*OFFSET('Efficiency Distributions'!$D$10,MATCH($C93,'Efficiency Distributions'!$C$9:$C$87,0)+RIGHT($E98),0)\n+K$11*OFFSET('Efficiency Distributions'!$E$10,MATCH($C93,'Efficiency Distributions'!$C$9:$C$87,0)+RIGHT($E98),0))\n/SUM(K$10:K$11)","v":0},{"$f":"IF(INDEX(PC_MAPPING,RIGHT($C93,1),MATCH($E$2,'Data by Building Type'!$D$22:$F$22,0))=\"Yes\",1,0)*\n(L$10*OFFSET('Efficiency Distributions'!$D$10,MATCH($C93,'Efficiency Distributions'!$C$9:$C$87,0)+RIGHT($E98),0)\n+L$11*OFFSET('Efficiency Distributions'!$E$10,MATCH($C93,'Efficiency Distributions'!$C$9:$C$87,0)+RIGHT($E98),0))\n/SUM(L$10:L$11)","v":0},{"$f":"IF(INDEX(PC_MAPPING,RIGHT($C93,1),MATCH($E$2,'Data by Building Type'!$D$22:$F$22,0))=\"Yes\",1,0)*\n(M$10*OFFSET('Efficiency Distributions'!$D$10,MATCH($C93,'Efficiency Distributions'!$C$9:$C$87,0)+RIGHT($E98),0)\n+M$11*OFFSET('Efficiency Distributions'!$E$10,MATCH($C93,'Efficiency Distributions'!$C$9:$C$87,0)+RIGHT($E98),0))\n/SUM(M$10:M$11)","v":0},{"$f":"IF(INDEX(PC_MAPPING,RIGHT($C93,1),MATCH($E$2,'Data by Building Type'!$D$22:$F$22,0))=\"Yes\",1,0)*\n(N$10*OFFSET('Efficiency Distributions'!$D$10,MATCH($C93,'Efficiency Distributions'!$C$9:$C$87,0)+RIGHT($E98),0)\n+N$11*OFFSET('Efficiency Distributions'!$E$10,MATCH($C93,'Efficiency Distributions'!$C$9:$C$87,0)+RIGHT($E98),0))\n/SUM(N$10:N$11)","v":0},{"$f":"IF(INDEX(PC_MAPPING,RIGHT($C93,1),MATCH($E$2,'Data by Building Type'!$D$22:$F$22,0))=\"Yes\",1,0)*\n(O$10*OFFSET('Efficiency Distributions'!$D$10,MATCH($C93,'Efficiency Distributions'!$C$9:$C$87,0)+RIGHT($E98),0)\n+O$11*OFFSET('Efficiency Distributions'!$E$10,MATCH($C93,'Efficiency Distributions'!$C$9:$C$87,0)+RIGHT($E98),0))\n/SUM(O$10:O$11)","v":0},{"$f":"IF(INDEX(PC_MAPPING,RIGHT($C93,1),MATCH($E$2,'Data by Building Type'!$D$22:$F$22,0))=\"Yes\",1,0)*\n(P$10*OFFSET('Efficiency Distributions'!$D$10,MATCH($C93,'Efficiency Distributions'!$C$9:$C$87,0)+RIGHT($E98),0)\n+P$11*OFFSET('Efficiency Distributions'!$E$10,MATCH($C93,'Efficiency Distributions'!$C$9:$C$87,0)+RIGHT($E98),0))\n/SUM(P$10:P$11)","v":0},{"$f":"IF(INDEX(PC_MAPPING,RIGHT($C93,1),MATCH($E$2,'Data by Building Type'!$D$22:$F$22,0))=\"Yes\",1,0)*\n(Q$10*OFFSET('Efficiency Distributions'!$D$10,MATCH($C93,'Efficiency Distributions'!$C$9:$C$87,0)+RIGHT($E98),0)\n+Q$11*OFFSET('Efficiency Distributions'!$E$10,MATCH($C93,'Efficiency Distributions'!$C$9:$C$87,0)+RIGHT($E98),0))\n/SUM(Q$10:Q$11)","v":0},{"$f":"IF(INDEX(PC_MAPPING,RIGHT($C93,1),MATCH($E$2,'Data by Building Type'!$D$22:$F$22,0))=\"Yes\",1,0)*\n(R$10*OFFSET('Efficiency Distributions'!$D$10,MATCH($C93,'Efficiency Distributions'!$C$9:$C$87,0)+RIGHT($E98),0)\n+R$11*OFFSET('Efficiency Distributions'!$E$10,MATCH($C93,'Efficiency Distributions'!$C$9:$C$87,0)+RIGHT($E98),0))\n/SUM(R$10:R$11)","v":0},{"$f":"IF(INDEX(PC_MAPPING,RIGHT($C93,1),MATCH($E$2,'Data by Building Type'!$D$22:$F$22,0))=\"Yes\",1,0)*\n(S$10*OFFSET('Efficiency Distributions'!$D$10,MATCH($C93,'Efficiency Distributions'!$C$9:$C$87,0)+RIGHT($E98),0)\n+S$11*OFFSET('Efficiency Distributions'!$E$10,MATCH($C93,'Efficiency Distributions'!$C$9:$C$87,0)+RIGHT($E98),0))\n/SUM(S$10:S$11)","v":0},{"$f":"IF(INDEX(PC_MAPPING,RIGHT($C93,1),MATCH($E$2,'Data by Building Type'!$D$22:$F$22,0))=\"Yes\",1,0)*\n(T$10*OFFSET('Efficiency Distributions'!$D$10,MATCH($C93,'Efficiency Distributions'!$C$9:$C$87,0)+RIGHT($E98),0)\n+T$11*OFFSET('Efficiency Distributions'!$E$10,MATCH($C93,'Efficiency Distributions'!$C$9:$C$87,0)+RIGHT($E98),0))\n/SUM(T$10:T$11)","v":0},{"$f":"IF(INDEX(PC_MAPPING,RIGHT($C93,1),MATCH($E$2,'Data by Building Type'!$D$22:$F$22,0))=\"Yes\",1,0)*\n(U$10*OFFSET('Efficiency Distributions'!$D$10,MATCH($C93,'Efficiency Distributions'!$C$9:$C$87,0)+RIGHT($E98),0)\n+U$11*OFFSET('Efficiency Distributions'!$E$10,MATCH($C93,'Efficiency Distributions'!$C$9:$C$87,0)+RIGHT($E98),0))\n/SUM(U$10:U$11)","v":0},{"$f":"IF(INDEX(PC_MAPPING,RIGHT($C93,1),MATCH($E$2,'Data by Building Type'!$D$22:$F$22,0))=\"Yes\",1,0)*\n(V$10*OFFSET('Efficiency Distributions'!$D$10,MATCH($C93,'Efficiency Distributions'!$C$9:$C$87,0)+RIGHT($E98),0)\n+V$11*OFFSET('Efficiency Distributions'!$E$10,MATCH($C93,'Efficiency Distributions'!$C$9:$C$87,0)+RIGHT($E98),0))\n/SUM(V$10:V$11)","v":0},{"$f":"IF(INDEX(PC_MAPPING,RIGHT($C93,1),MATCH($E$2,'Data by Building Type'!$D$22:$F$22,0))=\"Yes\",1,0)*\n(W$10*OFFSET('Efficiency Distributions'!$D$10,MATCH($C93,'Efficiency Distributions'!$C$9:$C$87,0)+RIGHT($E98),0)\n+W$11*OFFSET('Efficiency Distributions'!$E$10,MATCH($C93,'Efficiency Distributions'!$C$9:$C$87,0)+RIGHT($E98),0))\n/SUM(W$10:W$11)","v":0},{"$f":"IF(INDEX(PC_MAPPING,RIGHT($C93,1),MATCH($E$2,'Data by Building Type'!$D$22:$F$22,0))=\"Yes\",1,0)*\n(X$10*OFFSET('Efficiency Distributions'!$D$10,MATCH($C93,'Efficiency Distributions'!$C$9:$C$87,0)+RIGHT($E98),0)\n+X$11*OFFSET('Efficiency Distributions'!$E$10,MATCH($C93,'Efficiency Distributions'!$C$9:$C$87,0)+RIGHT($E98),0))\n/SUM(X$10:X$11)","v":0},{"$f":"IF(INDEX(PC_MAPPING,RIGHT($C93,1),MATCH($E$2,'Data by Building Type'!$D$22:$F$22,0))=\"Yes\",1,0)*\n(Y$10*OFFSET('Efficiency Distributions'!$D$10,MATCH($C93,'Efficiency Distributions'!$C$9:$C$87,0)+RIGHT($E98),0)\n+Y$11*OFFSET('Efficiency Distributions'!$E$10,MATCH($C93,'Efficiency Distributions'!$C$9:$C$87,0)+RIGHT($E98),0))\n/SUM(Y$10:Y$11)","v":0},{"$f":"IF(INDEX(PC_MAPPING,RIGHT($C93,1),MATCH($E$2,'Data by Building Type'!$D$22:$F$22,0))=\"Yes\",1,0)*\n(Z$10*OFFSET('Efficiency Distributions'!$D$10,MATCH($C93,'Efficiency Distributions'!$C$9:$C$87,0)+RIGHT($E98),0)\n+Z$11*OFFSET('Efficiency Distributions'!$E$10,MATCH($C93,'Efficiency Distributions'!$C$9:$C$87,0)+RIGHT($E98),0))\n/SUM(Z$10:Z$11)","v":0},{"$f":"IF(INDEX(PC_MAPPING,RIGHT($C93,1),MATCH($E$2,'Data by Building Type'!$D$22:$F$22,0))=\"Yes\",1,0)*\n(AA$10*OFFSET('Efficiency Distributions'!$D$10,MATCH($C93,'Efficiency Distributions'!$C$9:$C$87,0)+RIGHT($E98),0)\n+AA$11*OFFSET('Efficiency Distributions'!$E$10,MATCH($C93,'Efficiency Distributions'!$C$9:$C$87,0)+RIGHT($E98),0))\n/SUM(AA$10:AA$11)","v":0},{"$f":"IF(INDEX(PC_MAPPING,RIGHT($C93,1),MATCH($E$2,'Data by Building Type'!$D$22:$F$22,0))=\"Yes\",1,0)*\n(AB$10*OFFSET('Efficiency Distributions'!$D$10,MATCH($C93,'Efficiency Distributions'!$C$9:$C$87,0)+RIGHT($E98),0)\n+AB$11*OFFSET('Efficiency Distributions'!$E$10,MATCH($C93,'Efficiency Distributions'!$C$9:$C$87,0)+RIGHT($E98),0))\n/SUM(AB$10:AB$11)","v":0},{"$f":"IF(INDEX(PC_MAPPING,RIGHT($C93,1),MATCH($E$2,'Data by Building Type'!$D$22:$F$22,0))=\"Yes\",1,0)*\n(AC$10*OFFSET('Efficiency Distributions'!$D$10,MATCH($C93,'Efficiency Distributions'!$C$9:$C$87,0)+RIGHT($E98),0)\n+AC$11*OFFSET('Efficiency Distributions'!$E$10,MATCH($C93,'Efficiency Distributions'!$C$9:$C$87,0)+RIGHT($E98),0))\n/SUM(AC$10:AC$11)","v":0},{"$f":"IF(INDEX(PC_MAPPING,RIGHT($C93,1),MATCH($E$2,'Data by Building Type'!$D$22:$F$22,0))=\"Yes\",1,0)*\n(AD$10*OFFSET('Efficiency Distributions'!$D$10,MATCH($C93,'Efficiency Distributions'!$C$9:$C$87,0)+RIGHT($E98),0)\n+AD$11*OFFSET('Efficiency Distributions'!$E$10,MATCH($C93,'Efficiency Distributions'!$C$9:$C$87,0)+RIGHT($E98),0))\n/SUM(AD$10:AD$11)","v":0},{"$f":"IF(INDEX(PC_MAPPING,RIGHT($C93,1),MATCH($E$2,'Data by Building Type'!$D$22:$F$22,0))=\"Yes\",1,0)*\n(AE$10*OFFSET('Efficiency Distributions'!$D$10,MATCH($C93,'Efficiency Distributions'!$C$9:$C$87,0)+RIGHT($E98),0)\n+AE$11*OFFSET('Efficiency Distributions'!$E$10,MATCH($C93,'Efficiency Distributions'!$C$9:$C$87,0)+RIGHT($E98),0))\n/SUM(AE$10:AE$11)","v":0},{"$f":"IF(INDEX(PC_MAPPING,RIGHT($C93,1),MATCH($E$2,'Data by Building Type'!$D$22:$F$22,0))=\"Yes\",1,0)*\n(AF$10*OFFSET('Efficiency Distributions'!$D$10,MATCH($C93,'Efficiency Distributions'!$C$9:$C$87,0)+RIGHT($E98),0)\n+AF$11*OFFSET('Efficiency Distributions'!$E$10,MATCH($C93,'Efficiency Distributions'!$C$9:$C$87,0)+RIGHT($E98),0))\n/SUM(AF$10:AF$11)","v":0},{"$f":"IF(INDEX(PC_MAPPING,RIGHT($C93,1),MATCH($E$2,'Data by Building Type'!$D$22:$F$22,0))=\"Yes\",1,0)*\n(AG$10*OFFSET('Efficiency Distributions'!$D$10,MATCH($C93,'Efficiency Distributions'!$C$9:$C$87,0)+RIGHT($E98),0)\n+AG$11*OFFSET('Efficiency Distributions'!$E$10,MATCH($C93,'Efficiency Distributions'!$C$9:$C$87,0)+RIGHT($E98),0))\n/SUM(AG$10:AG$11)","v":0},{"$f":"IF(INDEX(PC_MAPPING,RIGHT($C93,1),MATCH($E$2,'Data by Building Type'!$D$22:$F$22,0))=\"Yes\",1,0)*\n(AH$10*OFFSET('Efficiency Distributions'!$D$10,MATCH($C93,'Efficiency Distributions'!$C$9:$C$87,0)+RIGHT($E98),0)\n+AH$11*OFFSET('Efficiency Distributions'!$E$10,MATCH($C93,'Efficiency Distributions'!$C$9:$C$87,0)+RIGHT($E98),0))\n/SUM(AH$10:AH$11)","v":0},{"$f":"IF(INDEX(PC_MAPPING,RIGHT($C93,1),MATCH($E$2,'Data by Building Type'!$D$22:$F$22,0))=\"Yes\",1,0)*\n(AI$10*OFFSET('Efficiency Distributions'!$D$10,MATCH($C93,'Efficiency Distributions'!$C$9:$C$87,0)+RIGHT($E98),0)\n+AI$11*OFFSET('Efficiency Distributions'!$E$10,MATCH($C93,'Efficiency Distributions'!$C$9:$C$87,0)+RIGHT($E98),0))\n/SUM(AI$10:AI$11)","v":0},{"$f":"IF(INDEX(PC_MAPPING,RIGHT($C93,1),MATCH($E$2,'Data by Building Type'!$D$22:$F$22,0))=\"Yes\",1,0)*\n(AJ$10*OFFSET('Efficiency Distributions'!$D$10,MATCH($C93,'Efficiency Distributions'!$C$9:$C$87,0)+RIGHT($E98),0)\n+AJ$11*OFFSET('Efficiency Distributions'!$E$10,MATCH($C93,'Efficiency Distributions'!$C$9:$C$87,0)+RIGHT($E98),0))\n/SUM(AJ$10:AJ$11)","v":0},{"$f":"IF(INDEX(PC_MAPPING,RIGHT($C93,1),MATCH($E$2,'Data by Building Type'!$D$22:$F$22,0))=\"Yes\",1,0)*\n(AK$10*OFFSET('Efficiency Distributions'!$D$10,MATCH($C93,'Efficiency Distributions'!$C$9:$C$87,0)+RIGHT($E98),0)\n+AK$11*OFFSET('Efficiency Distributions'!$E$10,MATCH($C93,'Efficiency Distributions'!$C$9:$C$87,0)+RIGHT($E98),0))\n/SUM(AK$10:AK$11)","v":0},{"$f":"IF(INDEX(PC_MAPPING,RIGHT($C93,1),MATCH($E$2,'Data by Building Type'!$D$22:$F$22,0))=\"Yes\",1,0)*\n(AL$10*OFFSET('Efficiency Distributions'!$D$10,MATCH($C93,'Efficiency Distributions'!$C$9:$C$87,0)+RIGHT($E98),0)\n+AL$11*OFFSET('Efficiency Distributions'!$E$10,MATCH($C93,'Efficiency Distributions'!$C$9:$C$87,0)+RIGHT($E98),0))\n/SUM(AL$10:AL$11)","v":0},{"$f":"IF(INDEX(PC_MAPPING,RIGHT($C93,1),MATCH($E$2,'Data by Building Type'!$D$22:$F$22,0))=\"Yes\",1,0)*\n(AM$10*OFFSET('Efficiency Distributions'!$D$10,MATCH($C93,'Efficiency Distributions'!$C$9:$C$87,0)+RIGHT($E98),0)\n+AM$11*OFFSET('Efficiency Distributions'!$E$10,MATCH($C93,'Efficiency Distributions'!$C$9:$C$87,0)+RIGHT($E98),0))\n/SUM(AM$10:AM$11)","v":0},{"$f":"IF(INDEX(PC_MAPPING,RIGHT($C93,1),MATCH($E$2,'Data by Building Type'!$D$22:$F$22,0))=\"Yes\",1,0)*\n(AN$10*OFFSET('Efficiency Distributions'!$D$10,MATCH($C93,'Efficiency Distributions'!$C$9:$C$87,0)+RIGHT($E98),0)\n+AN$11*OFFSET('Efficiency Distributions'!$E$10,MATCH($C93,'Efficiency Distributions'!$C$9:$C$87,0)+RIGHT($E98),0))\n/SUM(AN$10:AN$11)","v":0},{"$f":"IF(INDEX(PC_MAPPING,RIGHT($C93,1),MATCH($E$2,'Data by Building Type'!$D$22:$F$22,0))=\"Yes\",1,0)*\n(AO$10*OFFSET('Efficiency Distributions'!$D$10,MATCH($C93,'Efficiency Distributions'!$C$9:$C$87,0)+RIGHT($E98),0)\n+AO$11*OFFSET('Efficiency Distributions'!$E$10,MATCH($C93,'Efficiency Distributions'!$C$9:$C$87,0)+RIGHT($E98),0))\n/SUM(AO$10:AO$11)","v":0},{"$f":"IF(INDEX(PC_MAPPING,RIGHT($C93,1),MATCH($E$2,'Data by Building Type'!$D$22:$F$22,0))=\"Yes\",1,0)*\n(AP$10*OFFSET('Efficiency Distributions'!$D$10,MATCH($C93,'Efficiency Distributions'!$C$9:$C$87,0)+RIGHT($E98),0)\n+AP$11*OFFSET('Efficiency Distributions'!$E$10,MATCH($C93,'Efficiency Distributions'!$C$9:$C$87,0)+RIGHT($E98),0))\n/SUM(AP$10:AP$11)","v":0},{"$f":"IF(INDEX(PC_MAPPING,RIGHT($C93,1),MATCH($E$2,'Data by Building Type'!$D$22:$F$22,0))=\"Yes\",1,0)*\n(AQ$10*OFFSET('Efficiency Distributions'!$D$10,MATCH($C93,'Efficiency Distributions'!$C$9:$C$87,0)+RIGHT($E98),0)\n+AQ$11*OFFSET('Efficiency Distributions'!$E$10,MATCH($C93,'Efficiency Distributions'!$C$9:$C$87,0)+RIGHT($E98),0))\n/SUM(AQ$10:AQ$11)","v":0},{"$f":"IF(INDEX(PC_MAPPING,RIGHT($C93,1),MATCH($E$2,'Data by Building Type'!$D$22:$F$22,0))=\"Yes\",1,0)*\n(AR$10*OFFSET('Efficiency Distributions'!$D$10,MATCH($C93,'Efficiency Distributions'!$C$9:$C$87,0)+RIGHT($E98),0)\n+AR$11*OFFSET('Efficiency Distributions'!$E$10,MATCH($C93,'Efficiency Distributions'!$C$9:$C$87,0)+RIGHT($E98),0))\n/SUM(AR$10:AR$11)","v":0},{"$f":"IF(INDEX(PC_MAPPING,RIGHT($C93,1),MATCH($E$2,'Data by Building Type'!$D$22:$F$22,0))=\"Yes\",1,0)*\n(AS$10*OFFSET('Efficiency Distributions'!$D$10,MATCH($C93,'Efficiency Distributions'!$C$9:$C$87,0)+RIGHT($E98),0)\n+AS$11*OFFSET('Efficiency Distributions'!$E$10,MATCH($C93,'Efficiency Distributions'!$C$9:$C$87,0)+RIGHT($E98),0))\n/SUM(AS$10:AS$11)","v":0},{"$f":"IF(INDEX(PC_MAPPING,RIGHT($C93,1),MATCH($E$2,'Data by Building Type'!$D$22:$F$22,0))=\"Yes\",1,0)*\n(AT$10*OFFSET('Efficiency Distributions'!$D$10,MATCH($C93,'Efficiency Distributions'!$C$9:$C$87,0)+RIGHT($E98),0)\n+AT$11*OFFSET('Efficiency Distributions'!$E$10,MATCH($C93,'Efficiency Distributions'!$C$9:$C$87,0)+RIGHT($E98),0))\n/SUM(AT$10:AT$11)","v":0},{"$f":"IF(INDEX(PC_MAPPING,RIGHT($C93,1),MATCH($E$2,'Data by Building Type'!$D$22:$F$22,0))=\"Yes\",1,0)*\n(AU$10*OFFSET('Efficiency Distributions'!$D$10,MATCH($C93,'Efficiency Distributions'!$C$9:$C$87,0)+RIGHT($E98),0)\n+AU$11*OFFSET('Efficiency Distributions'!$E$10,MATCH($C93,'Efficiency Distributions'!$C$9:$C$87,0)+RIGHT($E98),0))\n/SUM(AU$10:AU$11)","v":0},{"$f":"IF(INDEX(PC_MAPPING,RIGHT($C93,1),MATCH($E$2,'Data by Building Type'!$D$22:$F$22,0))=\"Yes\",1,0)*\n(AV$10*OFFSET('Efficiency Distributions'!$D$10,MATCH($C93,'Efficiency Distributions'!$C$9:$C$87,0)+RIGHT($E98),0)\n+AV$11*OFFSET('Efficiency Distributions'!$E$10,MATCH($C93,'Efficiency Distributions'!$C$9:$C$87,0)+RIGHT($E98),0))\n/SUM(AV$10:AV$11)","v":0},{"$f":"IF(INDEX(PC_MAPPING,RIGHT($C93,1),MATCH($E$2,'Data by Building Type'!$D$22:$F$22,0))=\"Yes\",1,0)*\n(AW$10*OFFSET('Efficiency Distributions'!$D$10,MATCH($C93,'Efficiency Distributions'!$C$9:$C$87,0)+RIGHT($E98),0)\n+AW$11*OFFSET('Efficiency Distributions'!$E$10,MATCH($C93,'Efficiency Distributions'!$C$9:$C$87,0)+RIGHT($E98),0))\n/SUM(AW$10:AW$11)","v":0},{"$f":"IF(INDEX(PC_MAPPING,RIGHT($C93,1),MATCH($E$2,'Data by Building Type'!$D$22:$F$22,0))=\"Yes\",1,0)*\n(AX$10*OFFSET('Efficiency Distributions'!$D$10,MATCH($C93,'Efficiency Distributions'!$C$9:$C$87,0)+RIGHT($E98),0)\n+AX$11*OFFSET('Efficiency Distributions'!$E$10,MATCH($C93,'Efficiency Distributions'!$C$9:$C$87,0)+RIGHT($E98),0))\n/SUM(AX$10:AX$11)","v":0},{"$f":"IF(INDEX(PC_MAPPING,RIGHT($C93,1),MATCH($E$2,'Data by Building Type'!$D$22:$F$22,0))=\"Yes\",1,0)*\n(AY$10*OFFSET('Efficiency Distributions'!$D$10,MATCH($C93,'Efficiency Distributions'!$C$9:$C$87,0)+RIGHT($E98),0)\n+AY$11*OFFSET('Efficiency Distributions'!$E$10,MATCH($C93,'Efficiency Distributions'!$C$9:$C$87,0)+RIGHT($E98),0))\n/SUM(AY$10:AY$11)","v":0},{"$f":"IF(INDEX(PC_MAPPING,RIGHT($C93,1),MATCH($E$2,'Data by Building Type'!$D$22:$F$22,0))=\"Yes\",1,0)*\n(AZ$10*OFFSET('Efficiency Distributions'!$D$10,MATCH($C93,'Efficiency Distributions'!$C$9:$C$87,0)+RIGHT($E98),0)\n+AZ$11*OFFSET('Efficiency Distributions'!$E$10,MATCH($C93,'Efficiency Distributions'!$C$9:$C$87,0)+RIGHT($E98),0))\n/SUM(AZ$10:AZ$11)","v":0},{"$f":"IF(INDEX(PC_MAPPING,RIGHT($C93,1),MATCH($E$2,'Data by Building Type'!$D$22:$F$22,0))=\"Yes\",1,0)*\n(BA$10*OFFSET('Efficiency Distributions'!$D$10,MATCH($C93,'Efficiency Distributions'!$C$9:$C$87,0)+RIGHT($E98),0)\n+BA$11*OFFSET('Efficiency Distributions'!$E$10,MATCH($C93,'Efficiency Distributions'!$C$9:$C$87,0)+RIGHT($E98),0))\n/SUM(BA$10:BA$11)","v":0},{"$f":"IF(INDEX(PC_MAPPING,RIGHT($C93,1),MATCH($E$2,'Data by Building Type'!$D$22:$F$22,0))=\"Yes\",1,0)*\n(BB$10*OFFSET('Efficiency Distributions'!$D$10,MATCH($C93,'Efficiency Distributions'!$C$9:$C$87,0)+RIGHT($E98),0)\n+BB$11*OFFSET('Efficiency Distributions'!$E$10,MATCH($C93,'Efficiency Distributions'!$C$9:$C$87,0)+RIGHT($E98),0))\n/SUM(BB$10:BB$11)","v":0},{"$f":"IF(INDEX(PC_MAPPING,RIGHT($C93,1),MATCH($E$2,'Data by Building Type'!$D$22:$F$22,0))=\"Yes\",1,0)*\n(BC$10*OFFSET('Efficiency Distributions'!$D$10,MATCH($C93,'Efficiency Distributions'!$C$9:$C$87,0)+RIGHT($E98),0)\n+BC$11*OFFSET('Efficiency Distributions'!$E$10,MATCH($C93,'Efficiency Distributions'!$C$9:$C$87,0)+RIGHT($E98),0))\n/SUM(BC$10:BC$11)","v":0},{"$f":"IF(INDEX(PC_MAPPING,RIGHT($C93,1),MATCH($E$2,'Data by Building Type'!$D$22:$F$22,0))=\"Yes\",1,0)*\n(BD$10*OFFSET('Efficiency Distributions'!$D$10,MATCH($C93,'Efficiency Distributions'!$C$9:$C$87,0)+RIGHT($E98),0)\n+BD$11*OFFSET('Efficiency Distributions'!$E$10,MATCH($C93,'Efficiency Distributions'!$C$9:$C$87,0)+RIGHT($E98),0))\n/SUM(BD$10:BD$11)","v":0},{"$f":"IF(INDEX(PC_MAPPING,RIGHT($C93,1),MATCH($E$2,'Data by Building Type'!$D$22:$F$22,0))=\"Yes\",1,0)*\n(BE$10*OFFSET('Efficiency Distributions'!$D$10,MATCH($C93,'Efficiency Distributions'!$C$9:$C$87,0)+RIGHT($E98),0)\n+BE$11*OFFSET('Efficiency Distributions'!$E$10,MATCH($C93,'Efficiency Distributions'!$C$9:$C$87,0)+RIGHT($E98),0))\n/SUM(BE$10:BE$11)","v":0},{"$f":"IF(INDEX(PC_MAPPING,RIGHT($C93,1),MATCH($E$2,'Data by Building Type'!$D$22:$F$22,0))=\"Yes\",1,0)*\n(BF$10*OFFSET('Efficiency Distributions'!$D$10,MATCH($C93,'Efficiency Distributions'!$C$9:$C$87,0)+RIGHT($E98),0)\n+BF$11*OFFSET('Efficiency Distributions'!$E$10,MATCH($C93,'Efficiency Distributions'!$C$9:$C$87,0)+RIGHT($E98),0))\n/SUM(BF$10:BF$11)","v":0},{"$f":"IF(INDEX(PC_MAPPING,RIGHT($C93,1),MATCH($E$2,'Data by Building Type'!$D$22:$F$22,0))=\"Yes\",1,0)*\n(BG$10*OFFSET('Efficiency Distributions'!$D$10,MATCH($C93,'Efficiency Distributions'!$C$9:$C$87,0)+RIGHT($E98),0)\n+BG$11*OFFSET('Efficiency Distributions'!$E$10,MATCH($C93,'Efficiency Distributions'!$C$9:$C$87,0)+RIGHT($E98),0))\n/SUM(BG$10:BG$11)","v":0}]
[null,null,null,null,"EL2",{"$f":"IF(INDEX(PC_MAPPING,RIGHT($C93,1),MATCH($E$2,'Data by Building Type'!$D$22:$F$22,0))=\"Yes\",1,0)*\n(F$10*OFFSET('Efficiency Distributions'!$D$10,MATCH($C93,'Efficiency Distributions'!$C$9:$C$87,0)+RIGHT($E99),0)\n+F$11*OFFSET('Efficiency Distributions'!$E$10,MATCH($C93,'Efficiency Distributions'!$C$9:$C$87,0)+RIGHT($E99),0))\n/SUM(F$10:F$11)","v":0},{"$f":"IF(INDEX(PC_MAPPING,RIGHT($C93,1),MATCH($E$2,'Data by Building Type'!$D$22:$F$22,0))=\"Yes\",1,0)*\n(G$10*OFFSET('Efficiency Distributions'!$D$10,MATCH($C93,'Efficiency Distributions'!$C$9:$C$87,0)+RIGHT($E99),0)\n+G$11*OFFSET('Efficiency Distributions'!$E$10,MATCH($C93,'Efficiency Distributions'!$C$9:$C$87,0)+RIGHT($E99),0))\n/SUM(G$10:G$11)","v":0},{"$f":"IF(INDEX(PC_MAPPING,RIGHT($C93,1),MATCH($E$2,'Data by Building Type'!$D$22:$F$22,0))=\"Yes\",1,0)*\n(H$10*OFFSET('Efficiency Distributions'!$D$10,MATCH($C93,'Efficiency Distributions'!$C$9:$C$87,0)+RIGHT($E99),0)\n+H$11*OFFSET('Efficiency Distributions'!$E$10,MATCH($C93,'Efficiency Distributions'!$C$9:$C$87,0)+RIGHT($E99),0))\n/SUM(H$10:H$11)","v":0},{"$f":"IF(INDEX(PC_MAPPING,RIGHT($C93,1),MATCH($E$2,'Data by Building Type'!$D$22:$F$22,0))=\"Yes\",1,0)*\n(I$10*OFFSET('Efficiency Distributions'!$D$10,MATCH($C93,'Efficiency Distributions'!$C$9:$C$87,0)+RIGHT($E99),0)\n+I$11*OFFSET('Efficiency Distributions'!$E$10,MATCH($C93,'Efficiency Distributions'!$C$9:$C$87,0)+RIGHT($E99),0))\n/SUM(I$10:I$11)","v":0},{"$f":"IF(INDEX(PC_MAPPING,RIGHT($C93,1),MATCH($E$2,'Data by Building Type'!$D$22:$F$22,0))=\"Yes\",1,0)*\n(J$10*OFFSET('Efficiency Distributions'!$D$10,MATCH($C93,'Efficiency Distributions'!$C$9:$C$87,0)+RIGHT($E99),0)\n+J$11*OFFSET('Efficiency Distributions'!$E$10,MATCH($C93,'Efficiency Distributions'!$C$9:$C$87,0)+RIGHT($E99),0))\n/SUM(J$10:J$11)","v":0},{"$f":"IF(INDEX(PC_MAPPING,RIGHT($C93,1),MATCH($E$2,'Data by Building Type'!$D$22:$F$22,0))=\"Yes\",1,0)*\n(K$10*OFFSET('Efficiency Distributions'!$D$10,MATCH($C93,'Efficiency Distributions'!$C$9:$C$87,0)+RIGHT($E99),0)\n+K$11*OFFSET('Efficiency Distributions'!$E$10,MATCH($C93,'Efficiency Distributions'!$C$9:$C$87,0)+RIGHT($E99),0))\n/SUM(K$10:K$11)","v":0},{"$f":"IF(INDEX(PC_MAPPING,RIGHT($C93,1),MATCH($E$2,'Data by Building Type'!$D$22:$F$22,0))=\"Yes\",1,0)*\n(L$10*OFFSET('Efficiency Distributions'!$D$10,MATCH($C93,'Efficiency Distributions'!$C$9:$C$87,0)+RIGHT($E99),0)\n+L$11*OFFSET('Efficiency Distributions'!$E$10,MATCH($C93,'Efficiency Distributions'!$C$9:$C$87,0)+RIGHT($E99),0))\n/SUM(L$10:L$11)","v":0},{"$f":"IF(INDEX(PC_MAPPING,RIGHT($C93,1),MATCH($E$2,'Data by Building Type'!$D$22:$F$22,0))=\"Yes\",1,0)*\n(M$10*OFFSET('Efficiency Distributions'!$D$10,MATCH($C93,'Efficiency Distributions'!$C$9:$C$87,0)+RIGHT($E99),0)\n+M$11*OFFSET('Efficiency Distributions'!$E$10,MATCH($C93,'Efficiency Distributions'!$C$9:$C$87,0)+RIGHT($E99),0))\n/SUM(M$10:M$11)","v":0},{"$f":"IF(INDEX(PC_MAPPING,RIGHT($C93,1),MATCH($E$2,'Data by Building Type'!$D$22:$F$22,0))=\"Yes\",1,0)*\n(N$10*OFFSET('Efficiency Distributions'!$D$10,MATCH($C93,'Efficiency Distributions'!$C$9:$C$87,0)+RIGHT($E99),0)\n+N$11*OFFSET('Efficiency Distributions'!$E$10,MATCH($C93,'Efficiency Distributions'!$C$9:$C$87,0)+RIGHT($E99),0))\n/SUM(N$10:N$11)","v":0},{"$f":"IF(INDEX(PC_MAPPING,RIGHT($C93,1),MATCH($E$2,'Data by Building Type'!$D$22:$F$22,0))=\"Yes\",1,0)*\n(O$10*OFFSET('Efficiency Distributions'!$D$10,MATCH($C93,'Efficiency Distributions'!$C$9:$C$87,0)+RIGHT($E99),0)\n+O$11*OFFSET('Efficiency Distributions'!$E$10,MATCH($C93,'Efficiency Distributions'!$C$9:$C$87,0)+RIGHT($E99),0))\n/SUM(O$10:O$11)","v":0},{"$f":"IF(INDEX(PC_MAPPING,RIGHT($C93,1),MATCH($E$2,'Data by Building Type'!$D$22:$F$22,0))=\"Yes\",1,0)*\n(P$10*OFFSET('Efficiency Distributions'!$D$10,MATCH($C93,'Efficiency Distributions'!$C$9:$C$87,0)+RIGHT($E99),0)\n+P$11*OFFSET('Efficiency Distributions'!$E$10,MATCH($C93,'Efficiency Distributions'!$C$9:$C$87,0)+RIGHT($E99),0))\n/SUM(P$10:P$11)","v":0},{"$f":"IF(INDEX(PC_MAPPING,RIGHT($C93,1),MATCH($E$2,'Data by Building Type'!$D$22:$F$22,0))=\"Yes\",1,0)*\n(Q$10*OFFSET('Efficiency Distributions'!$D$10,MATCH($C93,'Efficiency Distributions'!$C$9:$C$87,0)+RIGHT($E99),0)\n+Q$11*OFFSET('Efficiency Distributions'!$E$10,MATCH($C93,'Efficiency Distributions'!$C$9:$C$87,0)+RIGHT($E99),0))\n/SUM(Q$10:Q$11)","v":0},{"$f":"IF(INDEX(PC_MAPPING,RIGHT($C93,1),MATCH($E$2,'Data by Building Type'!$D$22:$F$22,0))=\"Yes\",1,0)*\n(R$10*OFFSET('Efficiency Distributions'!$D$10,MATCH($C93,'Efficiency Distributions'!$C$9:$C$87,0)+RIGHT($E99),0)\n+R$11*OFFSET('Efficiency Distributions'!$E$10,MATCH($C93,'Efficiency Distributions'!$C$9:$C$87,0)+RIGHT($E99),0))\n/SUM(R$10:R$11)","v":0},{"$f":"IF(INDEX(PC_MAPPING,RIGHT($C93,1),MATCH($E$2,'Data by Building Type'!$D$22:$F$22,0))=\"Yes\",1,0)*\n(S$10*OFFSET('Efficiency Distributions'!$D$10,MATCH($C93,'Efficiency Distributions'!$C$9:$C$87,0)+RIGHT($E99),0)\n+S$11*OFFSET('Efficiency Distributions'!$E$10,MATCH($C93,'Efficiency Distributions'!$C$9:$C$87,0)+RIGHT($E99),0))\n/SUM(S$10:S$11)","v":0},{"$f":"IF(INDEX(PC_MAPPING,RIGHT($C93,1),MATCH($E$2,'Data by Building Type'!$D$22:$F$22,0))=\"Yes\",1,0)*\n(T$10*OFFSET('Efficiency Distributions'!$D$10,MATCH($C93,'Efficiency Distributions'!$C$9:$C$87,0)+RIGHT($E99),0)\n+T$11*OFFSET('Efficiency Distributions'!$E$10,MATCH($C93,'Efficiency Distributions'!$C$9:$C$87,0)+RIGHT($E99),0))\n/SUM(T$10:T$11)","v":0},{"$f":"IF(INDEX(PC_MAPPING,RIGHT($C93,1),MATCH($E$2,'Data by Building Type'!$D$22:$F$22,0))=\"Yes\",1,0)*\n(U$10*OFFSET('Efficiency Distributions'!$D$10,MATCH($C93,'Efficiency Distributions'!$C$9:$C$87,0)+RIGHT($E99),0)\n+U$11*OFFSET('Efficiency Distributions'!$E$10,MATCH($C93,'Efficiency Distributions'!$C$9:$C$87,0)+RIGHT($E99),0))\n/SUM(U$10:U$11)","v":0},{"$f":"IF(INDEX(PC_MAPPING,RIGHT($C93,1),MATCH($E$2,'Data by Building Type'!$D$22:$F$22,0))=\"Yes\",1,0)*\n(V$10*OFFSET('Efficiency Distributions'!$D$10,MATCH($C93,'Efficiency Distributions'!$C$9:$C$87,0)+RIGHT($E99),0)\n+V$11*OFFSET('Efficiency Distributions'!$E$10,MATCH($C93,'Efficiency Distributions'!$C$9:$C$87,0)+RIGHT($E99),0))\n/SUM(V$10:V$11)","v":0},{"$f":"IF(INDEX(PC_MAPPING,RIGHT($C93,1),MATCH($E$2,'Data by Building Type'!$D$22:$F$22,0))=\"Yes\",1,0)*\n(W$10*OFFSET('Efficiency Distributions'!$D$10,MATCH($C93,'Efficiency Distributions'!$C$9:$C$87,0)+RIGHT($E99),0)\n+W$11*OFFSET('Efficiency Distributions'!$E$10,MATCH($C93,'Efficiency Distributions'!$C$9:$C$87,0)+RIGHT($E99),0))\n/SUM(W$10:W$11)","v":0},{"$f":"IF(INDEX(PC_MAPPING,RIGHT($C93,1),MATCH($E$2,'Data by Building Type'!$D$22:$F$22,0))=\"Yes\",1,0)*\n(X$10*OFFSET('Efficiency Distributions'!$D$10,MATCH($C93,'Efficiency Distributions'!$C$9:$C$87,0)+RIGHT($E99),0)\n+X$11*OFFSET('Efficiency Distributions'!$E$10,MATCH($C93,'Efficiency Distributions'!$C$9:$C$87,0)+RIGHT($E99),0))\n/SUM(X$10:X$11)","v":0},{"$f":"IF(INDEX(PC_MAPPING,RIGHT($C93,1),MATCH($E$2,'Data by Building Type'!$D$22:$F$22,0))=\"Yes\",1,0)*\n(Y$10*OFFSET('Efficiency Distributions'!$D$10,MATCH($C93,'Efficiency Distributions'!$C$9:$C$87,0)+RIGHT($E99),0)\n+Y$11*OFFSET('Efficiency Distributions'!$E$10,MATCH($C93,'Efficiency Distributions'!$C$9:$C$87,0)+RIGHT($E99),0))\n/SUM(Y$10:Y$11)","v":0},{"$f":"IF(INDEX(PC_MAPPING,RIGHT($C93,1),MATCH($E$2,'Data by Building Type'!$D$22:$F$22,0))=\"Yes\",1,0)*\n(Z$10*OFFSET('Efficiency Distributions'!$D$10,MATCH($C93,'Efficiency Distributions'!$C$9:$C$87,0)+RIGHT($E99),0)\n+Z$11*OFFSET('Efficiency Distributions'!$E$10,MATCH($C93,'Efficiency Distributions'!$C$9:$C$87,0)+RIGHT($E99),0))\n/SUM(Z$10:Z$11)","v":0},{"$f":"IF(INDEX(PC_MAPPING,RIGHT($C93,1),MATCH($E$2,'Data by Building Type'!$D$22:$F$22,0))=\"Yes\",1,0)*\n(AA$10*OFFSET('Efficiency Distributions'!$D$10,MATCH($C93,'Efficiency Distributions'!$C$9:$C$87,0)+RIGHT($E99),0)\n+AA$11*OFFSET('Efficiency Distributions'!$E$10,MATCH($C93,'Efficiency Distributions'!$C$9:$C$87,0)+RIGHT($E99),0))\n/SUM(AA$10:AA$11)","v":0},{"$f":"IF(INDEX(PC_MAPPING,RIGHT($C93,1),MATCH($E$2,'Data by Building Type'!$D$22:$F$22,0))=\"Yes\",1,0)*\n(AB$10*OFFSET('Efficiency Distributions'!$D$10,MATCH($C93,'Efficiency Distributions'!$C$9:$C$87,0)+RIGHT($E99),0)\n+AB$11*OFFSET('Efficiency Distributions'!$E$10,MATCH($C93,'Efficiency Distributions'!$C$9:$C$87,0)+RIGHT($E99),0))\n/SUM(AB$10:AB$11)","v":0},{"$f":"IF(INDEX(PC_MAPPING,RIGHT($C93,1),MATCH($E$2,'Data by Building Type'!$D$22:$F$22,0))=\"Yes\",1,0)*\n(AC$10*OFFSET('Efficiency Distributions'!$D$10,MATCH($C93,'Efficiency Distributions'!$C$9:$C$87,0)+RIGHT($E99),0)\n+AC$11*OFFSET('Efficiency Distributions'!$E$10,MATCH($C93,'Efficiency Distributions'!$C$9:$C$87,0)+RIGHT($E99),0))\n/SUM(AC$10:AC$11)","v":0},{"$f":"IF(INDEX(PC_MAPPING,RIGHT($C93,1),MATCH($E$2,'Data by Building Type'!$D$22:$F$22,0))=\"Yes\",1,0)*\n(AD$10*OFFSET('Efficiency Distributions'!$D$10,MATCH($C93,'Efficiency Distributions'!$C$9:$C$87,0)+RIGHT($E99),0)\n+AD$11*OFFSET('Efficiency Distributions'!$E$10,MATCH($C93,'Efficiency Distributions'!$C$9:$C$87,0)+RIGHT($E99),0))\n/SUM(AD$10:AD$11)","v":0},{"$f":"IF(INDEX(PC_MAPPING,RIGHT($C93,1),MATCH($E$2,'Data by Building Type'!$D$22:$F$22,0))=\"Yes\",1,0)*\n(AE$10*OFFSET('Efficiency Distributions'!$D$10,MATCH($C93,'Efficiency Distributions'!$C$9:$C$87,0)+RIGHT($E99),0)\n+AE$11*OFFSET('Efficiency Distributions'!$E$10,MATCH($C93,'Efficiency Distributions'!$C$9:$C$87,0)+RIGHT($E99),0))\n/SUM(AE$10:AE$11)","v":0},{"$f":"IF(INDEX(PC_MAPPING,RIGHT($C93,1),MATCH($E$2,'Data by Building Type'!$D$22:$F$22,0))=\"Yes\",1,0)*\n(AF$10*OFFSET('Efficiency Distributions'!$D$10,MATCH($C93,'Efficiency Distributions'!$C$9:$C$87,0)+RIGHT($E99),0)\n+AF$11*OFFSET('Efficiency Distributions'!$E$10,MATCH($C93,'Efficiency Distributions'!$C$9:$C$87,0)+RIGHT($E99),0))\n/SUM(AF$10:AF$11)","v":0},{"$f":"IF(INDEX(PC_MAPPING,RIGHT($C93,1),MATCH($E$2,'Data by Building Type'!$D$22:$F$22,0))=\"Yes\",1,0)*\n(AG$10*OFFSET('Efficiency Distributions'!$D$10,MATCH($C93,'Efficiency Distributions'!$C$9:$C$87,0)+RIGHT($E99),0)\n+AG$11*OFFSET('Efficiency Distributions'!$E$10,MATCH($C93,'Efficiency Distributions'!$C$9:$C$87,0)+RIGHT($E99),0))\n/SUM(AG$10:AG$11)","v":0},{"$f":"IF(INDEX(PC_MAPPING,RIGHT($C93,1),MATCH($E$2,'Data by Building Type'!$D$22:$F$22,0))=\"Yes\",1,0)*\n(AH$10*OFFSET('Efficiency Distributions'!$D$10,MATCH($C93,'Efficiency Distributions'!$C$9:$C$87,0)+RIGHT($E99),0)\n+AH$11*OFFSET('Efficiency Distributions'!$E$10,MATCH($C93,'Efficiency Distributions'!$C$9:$C$87,0)+RIGHT($E99),0))\n/SUM(AH$10:AH$11)","v":0},{"$f":"IF(INDEX(PC_MAPPING,RIGHT($C93,1),MATCH($E$2,'Data by Building Type'!$D$22:$F$22,0))=\"Yes\",1,0)*\n(AI$10*OFFSET('Efficiency Distributions'!$D$10,MATCH($C93,'Efficiency Distributions'!$C$9:$C$87,0)+RIGHT($E99),0)\n+AI$11*OFFSET('Efficiency Distributions'!$E$10,MATCH($C93,'Efficiency Distributions'!$C$9:$C$87,0)+RIGHT($E99),0))\n/SUM(AI$10:AI$11)","v":0},{"$f":"IF(INDEX(PC_MAPPING,RIGHT($C93,1),MATCH($E$2,'Data by Building Type'!$D$22:$F$22,0))=\"Yes\",1,0)*\n(AJ$10*OFFSET('Efficiency Distributions'!$D$10,MATCH($C93,'Efficiency Distributions'!$C$9:$C$87,0)+RIGHT($E99),0)\n+AJ$11*OFFSET('Efficiency Distributions'!$E$10,MATCH($C93,'Efficiency Distributions'!$C$9:$C$87,0)+RIGHT($E99),0))\n/SUM(AJ$10:AJ$11)","v":0},{"$f":"IF(INDEX(PC_MAPPING,RIGHT($C93,1),MATCH($E$2,'Data by Building Type'!$D$22:$F$22,0))=\"Yes\",1,0)*\n(AK$10*OFFSET('Efficiency Distributions'!$D$10,MATCH($C93,'Efficiency Distributions'!$C$9:$C$87,0)+RIGHT($E99),0)\n+AK$11*OFFSET('Efficiency Distributions'!$E$10,MATCH($C93,'Efficiency Distributions'!$C$9:$C$87,0)+RIGHT($E99),0))\n/SUM(AK$10:AK$11)","v":0},{"$f":"IF(INDEX(PC_MAPPING,RIGHT($C93,1),MATCH($E$2,'Data by Building Type'!$D$22:$F$22,0))=\"Yes\",1,0)*\n(AL$10*OFFSET('Efficiency Distributions'!$D$10,MATCH($C93,'Efficiency Distributions'!$C$9:$C$87,0)+RIGHT($E99),0)\n+AL$11*OFFSET('Efficiency Distributions'!$E$10,MATCH($C93,'Efficiency Distributions'!$C$9:$C$87,0)+RIGHT($E99),0))\n/SUM(AL$10:AL$11)","v":0},{"$f":"IF(INDEX(PC_MAPPING,RIGHT($C93,1),MATCH($E$2,'Data by Building Type'!$D$22:$F$22,0))=\"Yes\",1,0)*\n(AM$10*OFFSET('Efficiency Distributions'!$D$10,MATCH($C93,'Efficiency Distributions'!$C$9:$C$87,0)+RIGHT($E99),0)\n+AM$11*OFFSET('Efficiency Distributions'!$E$10,MATCH($C93,'Efficiency Distributions'!$C$9:$C$87,0)+RIGHT($E99),0))\n/SUM(AM$10:AM$11)","v":0},{"$f":"IF(INDEX(PC_MAPPING,RIGHT($C93,1),MATCH($E$2,'Data by Building Type'!$D$22:$F$22,0))=\"Yes\",1,0)*\n(AN$10*OFFSET('Efficiency Distributions'!$D$10,MATCH($C93,'Efficiency Distributions'!$C$9:$C$87,0)+RIGHT($E99),0)\n+AN$11*OFFSET('Efficiency Distributions'!$E$10,MATCH($C93,'Efficiency Distributions'!$C$9:$C$87,0)+RIGHT($E99),0))\n/SUM(AN$10:AN$11)","v":0},{"$f":"IF(INDEX(PC_MAPPING,RIGHT($C93,1),MATCH($E$2,'Data by Building Type'!$D$22:$F$22,0))=\"Yes\",1,0)*\n(AO$10*OFFSET('Efficiency Distributions'!$D$10,MATCH($C93,'Efficiency Distributions'!$C$9:$C$87,0)+RIGHT($E99),0)\n+AO$11*OFFSET('Efficiency Distributions'!$E$10,MATCH($C93,'Efficiency Distributions'!$C$9:$C$87,0)+RIGHT($E99),0))\n/SUM(AO$10:AO$11)","v":0},{"$f":"IF(INDEX(PC_MAPPING,RIGHT($C93,1),MATCH($E$2,'Data by Building Type'!$D$22:$F$22,0))=\"Yes\",1,0)*\n(AP$10*OFFSET('Efficiency Distributions'!$D$10,MATCH($C93,'Efficiency Distributions'!$C$9:$C$87,0)+RIGHT($E99),0)\n+AP$11*OFFSET('Efficiency Distributions'!$E$10,MATCH($C93,'Efficiency Distributions'!$C$9:$C$87,0)+RIGHT($E99),0))\n/SUM(AP$10:AP$11)","v":0},{"$f":"IF(INDEX(PC_MAPPING,RIGHT($C93,1),MATCH($E$2,'Data by Building Type'!$D$22:$F$22,0))=\"Yes\",1,0)*\n(AQ$10*OFFSET('Efficiency Distributions'!$D$10,MATCH($C93,'Efficiency Distributions'!$C$9:$C$87,0)+RIGHT($E99),0)\n+AQ$11*OFFSET('Efficiency Distributions'!$E$10,MATCH($C93,'Efficiency Distributions'!$C$9:$C$87,0)+RIGHT($E99),0))\n/SUM(AQ$10:AQ$11)","v":0},{"$f":"IF(INDEX(PC_MAPPING,RIGHT($C93,1),MATCH($E$2,'Data by Building Type'!$D$22:$F$22,0))=\"Yes\",1,0)*\n(AR$10*OFFSET('Efficiency Distributions'!$D$10,MATCH($C93,'Efficiency Distributions'!$C$9:$C$87,0)+RIGHT($E99),0)\n+AR$11*OFFSET('Efficiency Distributions'!$E$10,MATCH($C93,'Efficiency Distributions'!$C$9:$C$87,0)+RIGHT($E99),0))\n/SUM(AR$10:AR$11)","v":0},{"$f":"IF(INDEX(PC_MAPPING,RIGHT($C93,1),MATCH($E$2,'Data by Building Type'!$D$22:$F$22,0))=\"Yes\",1,0)*\n(AS$10*OFFSET('Efficiency Distributions'!$D$10,MATCH($C93,'Efficiency Distributions'!$C$9:$C$87,0)+RIGHT($E99),0)\n+AS$11*OFFSET('Efficiency Distributions'!$E$10,MATCH($C93,'Efficiency Distributions'!$C$9:$C$87,0)+RIGHT($E99),0))\n/SUM(AS$10:AS$11)","v":0},{"$f":"IF(INDEX(PC_MAPPING,RIGHT($C93,1),MATCH($E$2,'Data by Building Type'!$D$22:$F$22,0))=\"Yes\",1,0)*\n(AT$10*OFFSET('Efficiency Distributions'!$D$10,MATCH($C93,'Efficiency Distributions'!$C$9:$C$87,0)+RIGHT($E99),0)\n+AT$11*OFFSET('Efficiency Distributions'!$E$10,MATCH($C93,'Efficiency Distributions'!$C$9:$C$87,0)+RIGHT($E99),0))\n/SUM(AT$10:AT$11)","v":0},{"$f":"IF(INDEX(PC_MAPPING,RIGHT($C93,1),MATCH($E$2,'Data by Building Type'!$D$22:$F$22,0))=\"Yes\",1,0)*\n(AU$10*OFFSET('Efficiency Distributions'!$D$10,MATCH($C93,'Efficiency Distributions'!$C$9:$C$87,0)+RIGHT($E99),0)\n+AU$11*OFFSET('Efficiency Distributions'!$E$10,MATCH($C93,'Efficiency Distributions'!$C$9:$C$87,0)+RIGHT($E99),0))\n/SUM(AU$10:AU$11)","v":0},{"$f":"IF(INDEX(PC_MAPPING,RIGHT($C93,1),MATCH($E$2,'Data by Building Type'!$D$22:$F$22,0))=\"Yes\",1,0)*\n(AV$10*OFFSET('Efficiency Distributions'!$D$10,MATCH($C93,'Efficiency Distributions'!$C$9:$C$87,0)+RIGHT($E99),0)\n+AV$11*OFFSET('Efficiency Distributions'!$E$10,MATCH($C93,'Efficiency Distributions'!$C$9:$C$87,0)+RIGHT($E99),0))\n/SUM(AV$10:AV$11)","v":0},{"$f":"IF(INDEX(PC_MAPPING,RIGHT($C93,1),MATCH($E$2,'Data by Building Type'!$D$22:$F$22,0))=\"Yes\",1,0)*\n(AW$10*OFFSET('Efficiency Distributions'!$D$10,MATCH($C93,'Efficiency Distributions'!$C$9:$C$87,0)+RIGHT($E99),0)\n+AW$11*OFFSET('Efficiency Distributions'!$E$10,MATCH($C93,'Efficiency Distributions'!$C$9:$C$87,0)+RIGHT($E99),0))\n/SUM(AW$10:AW$11)","v":0},{"$f":"IF(INDEX(PC_MAPPING,RIGHT($C93,1),MATCH($E$2,'Data by Building Type'!$D$22:$F$22,0))=\"Yes\",1,0)*\n(AX$10*OFFSET('Efficiency Distributions'!$D$10,MATCH($C93,'Efficiency Distributions'!$C$9:$C$87,0)+RIGHT($E99),0)\n+AX$11*OFFSET('Efficiency Distributions'!$E$10,MATCH($C93,'Efficiency Distributions'!$C$9:$C$87,0)+RIGHT($E99),0))\n/SUM(AX$10:AX$11)","v":0},{"$f":"IF(INDEX(PC_MAPPING,RIGHT($C93,1),MATCH($E$2,'Data by Building Type'!$D$22:$F$22,0))=\"Yes\",1,0)*\n(AY$10*OFFSET('Efficiency Distributions'!$D$10,MATCH($C93,'Efficiency Distributions'!$C$9:$C$87,0)+RIGHT($E99),0)\n+AY$11*OFFSET('Efficiency Distributions'!$E$10,MATCH($C93,'Efficiency Distributions'!$C$9:$C$87,0)+RIGHT($E99),0))\n/SUM(AY$10:AY$11)","v":0},{"$f":"IF(INDEX(PC_MAPPING,RIGHT($C93,1),MATCH($E$2,'Data by Building Type'!$D$22:$F$22,0))=\"Yes\",1,0)*\n(AZ$10*OFFSET('Efficiency Distributions'!$D$10,MATCH($C93,'Efficiency Distributions'!$C$9:$C$87,0)+RIGHT($E99),0)\n+AZ$11*OFFSET('Efficiency Distributions'!$E$10,MATCH($C93,'Efficiency Distributions'!$C$9:$C$87,0)+RIGHT($E99),0))\n/SUM(AZ$10:AZ$11)","v":0},{"$f":"IF(INDEX(PC_MAPPING,RIGHT($C93,1),MATCH($E$2,'Data by Building Type'!$D$22:$F$22,0))=\"Yes\",1,0)*\n(BA$10*OFFSET('Efficiency Distributions'!$D$10,MATCH($C93,'Efficiency Distributions'!$C$9:$C$87,0)+RIGHT($E99),0)\n+BA$11*OFFSET('Efficiency Distributions'!$E$10,MATCH($C93,'Efficiency Distributions'!$C$9:$C$87,0)+RIGHT($E99),0))\n/SUM(BA$10:BA$11)","v":0},{"$f":"IF(INDEX(PC_MAPPING,RIGHT($C93,1),MATCH($E$2,'Data by Building Type'!$D$22:$F$22,0))=\"Yes\",1,0)*\n(BB$10*OFFSET('Efficiency Distributions'!$D$10,MATCH($C93,'Efficiency Distributions'!$C$9:$C$87,0)+RIGHT($E99),0)\n+BB$11*OFFSET('Efficiency Distributions'!$E$10,MATCH($C93,'Efficiency Distributions'!$C$9:$C$87,0)+RIGHT($E99),0))\n/SUM(BB$10:BB$11)","v":0},{"$f":"IF(INDEX(PC_MAPPING,RIGHT($C93,1),MATCH($E$2,'Data by Building Type'!$D$22:$F$22,0))=\"Yes\",1,0)*\n(BC$10*OFFSET('Efficiency Distributions'!$D$10,MATCH($C93,'Efficiency Distributions'!$C$9:$C$87,0)+RIGHT($E99),0)\n+BC$11*OFFSET('Efficiency Distributions'!$E$10,MATCH($C93,'Efficiency Distributions'!$C$9:$C$87,0)+RIGHT($E99),0))\n/SUM(BC$10:BC$11)","v":0},{"$f":"IF(INDEX(PC_MAPPING,RIGHT($C93,1),MATCH($E$2,'Data by Building Type'!$D$22:$F$22,0))=\"Yes\",1,0)*\n(BD$10*OFFSET('Efficiency Distributions'!$D$10,MATCH($C93,'Efficiency Distributions'!$C$9:$C$87,0)+RIGHT($E99),0)\n+BD$11*OFFSET('Efficiency Distributions'!$E$10,MATCH($C93,'Efficiency Distributions'!$C$9:$C$87,0)+RIGHT($E99),0))\n/SUM(BD$10:BD$11)","v":0},{"$f":"IF(INDEX(PC_MAPPING,RIGHT($C93,1),MATCH($E$2,'Data by Building Type'!$D$22:$F$22,0))=\"Yes\",1,0)*\n(BE$10*OFFSET('Efficiency Distributions'!$D$10,MATCH($C93,'Efficiency Distributions'!$C$9:$C$87,0)+RIGHT($E99),0)\n+BE$11*OFFSET('Efficiency Distributions'!$E$10,MATCH($C93,'Efficiency Distributions'!$C$9:$C$87,0)+RIGHT($E99),0))\n/SUM(BE$10:BE$11)","v":0},{"$f":"IF(INDEX(PC_MAPPING,RIGHT($C93,1),MATCH($E$2,'Data by Building Type'!$D$22:$F$22,0))=\"Yes\",1,0)*\n(BF$10*OFFSET('Efficiency Distributions'!$D$10,MATCH($C93,'Efficiency Distributions'!$C$9:$C$87,0)+RIGHT($E99),0)\n+BF$11*OFFSET('Efficiency Distributions'!$E$10,MATCH($C93,'Efficiency Distributions'!$C$9:$C$87,0)+RIGHT($E99),0))\n/SUM(BF$10:BF$11)","v":0},{"$f":"IF(INDEX(PC_MAPPING,RIGHT($C93,1),MATCH($E$2,'Data by Building Type'!$D$22:$F$22,0))=\"Yes\",1,0)*\n(BG$10*OFFSET('Efficiency Distributions'!$D$10,MATCH($C93,'Efficiency Distributions'!$C$9:$C$87,0)+RIGHT($E99),0)\n+BG$11*OFFSET('Efficiency Distributions'!$E$10,MATCH($C93,'Efficiency Distributions'!$C$9:$C$87,0)+RIGHT($E99),0))\n/SUM(BG$10:BG$11)","v":0}]
[null,null,null,null,"EL3",{"$f":"IF(INDEX(PC_MAPPING,RIGHT($C93,1),MATCH($E$2,'Data by Building Type'!$D$22:$F$22,0))=\"Yes\",1,0)*\n(F$10*OFFSET('Efficiency Distributions'!$D$10,MATCH($C93,'Efficiency Distributions'!$C$9:$C$87,0)+RIGHT($E100),0)\n+F$11*OFFSET('Efficiency Distributions'!$E$10,MATCH($C93,'Efficiency Distributions'!$C$9:$C$87,0)+RIGHT($E100),0))\n/SUM(F$10:F$11)","v":0},{"$f":"IF(INDEX(PC_MAPPING,RIGHT($C93,1),MATCH($E$2,'Data by Building Type'!$D$22:$F$22,0))=\"Yes\",1,0)*\n(G$10*OFFSET('Efficiency Distributions'!$D$10,MATCH($C93,'Efficiency Distributions'!$C$9:$C$87,0)+RIGHT($E100),0)\n+G$11*OFFSET('Efficiency Distributions'!$E$10,MATCH($C93,'Efficiency Distributions'!$C$9:$C$87,0)+RIGHT($E100),0))\n/SUM(G$10:G$11)","v":0},{"$f":"IF(INDEX(PC_MAPPING,RIGHT($C93,1),MATCH($E$2,'Data by Building Type'!$D$22:$F$22,0))=\"Yes\",1,0)*\n(H$10*OFFSET('Efficiency Distributions'!$D$10,MATCH($C93,'Efficiency Distributions'!$C$9:$C$87,0)+RIGHT($E100),0)\n+H$11*OFFSET('Efficiency Distributions'!$E$10,MATCH($C93,'Efficiency Distributions'!$C$9:$C$87,0)+RIGHT($E100),0))\n/SUM(H$10:H$11)","v":0},{"$f":"IF(INDEX(PC_MAPPING,RIGHT($C93,1),MATCH($E$2,'Data by Building Type'!$D$22:$F$22,0))=\"Yes\",1,0)*\n(I$10*OFFSET('Efficiency Distributions'!$D$10,MATCH($C93,'Efficiency Distributions'!$C$9:$C$87,0)+RIGHT($E100),0)\n+I$11*OFFSET('Efficiency Distributions'!$E$10,MATCH($C93,'Efficiency Distributions'!$C$9:$C$87,0)+RIGHT($E100),0))\n/SUM(I$10:I$11)","v":0},{"$f":"IF(INDEX(PC_MAPPING,RIGHT($C93,1),MATCH($E$2,'Data by Building Type'!$D$22:$F$22,0))=\"Yes\",1,0)*\n(J$10*OFFSET('Efficiency Distributions'!$D$10,MATCH($C93,'Efficiency Distributions'!$C$9:$C$87,0)+RIGHT($E100),0)\n+J$11*OFFSET('Efficiency Distributions'!$E$10,MATCH($C93,'Efficiency Distributions'!$C$9:$C$87,0)+RIGHT($E100),0))\n/SUM(J$10:J$11)","v":0},{"$f":"IF(INDEX(PC_MAPPING,RIGHT($C93,1),MATCH($E$2,'Data by Building Type'!$D$22:$F$22,0))=\"Yes\",1,0)*\n(K$10*OFFSET('Efficiency Distributions'!$D$10,MATCH($C93,'Efficiency Distributions'!$C$9:$C$87,0)+RIGHT($E100),0)\n+K$11*OFFSET('Efficiency Distributions'!$E$10,MATCH($C93,'Efficiency Distributions'!$C$9:$C$87,0)+RIGHT($E100),0))\n/SUM(K$10:K$11)","v":0},{"$f":"IF(INDEX(PC_MAPPING,RIGHT($C93,1),MATCH($E$2,'Data by Building Type'!$D$22:$F$22,0))=\"Yes\",1,0)*\n(L$10*OFFSET('Efficiency Distributions'!$D$10,MATCH($C93,'Efficiency Distributions'!$C$9:$C$87,0)+RIGHT($E100),0)\n+L$11*OFFSET('Efficiency Distributions'!$E$10,MATCH($C93,'Efficiency Distributions'!$C$9:$C$87,0)+RIGHT($E100),0))\n/SUM(L$10:L$11)","v":0},{"$f":"IF(INDEX(PC_MAPPING,RIGHT($C93,1),MATCH($E$2,'Data by Building Type'!$D$22:$F$22,0))=\"Yes\",1,0)*\n(M$10*OFFSET('Efficiency Distributions'!$D$10,MATCH($C93,'Efficiency Distributions'!$C$9:$C$87,0)+RIGHT($E100),0)\n+M$11*OFFSET('Efficiency Distributions'!$E$10,MATCH($C93,'Efficiency Distributions'!$C$9:$C$87,0)+RIGHT($E100),0))\n/SUM(M$10:M$11)","v":0},{"$f":"IF(INDEX(PC_MAPPING,RIGHT($C93,1),MATCH($E$2,'Data by Building Type'!$D$22:$F$22,0))=\"Yes\",1,0)*\n(N$10*OFFSET('Efficiency Distributions'!$D$10,MATCH($C93,'Efficiency Distributions'!$C$9:$C$87,0)+RIGHT($E100),0)\n+N$11*OFFSET('Efficiency Distributions'!$E$10,MATCH($C93,'Efficiency Distributions'!$C$9:$C$87,0)+RIGHT($E100),0))\n/SUM(N$10:N$11)","v":0},{"$f":"IF(INDEX(PC_MAPPING,RIGHT($C93,1),MATCH($E$2,'Data by Building Type'!$D$22:$F$22,0))=\"Yes\",1,0)*\n(O$10*OFFSET('Efficiency Distributions'!$D$10,MATCH($C93,'Efficiency Distributions'!$C$9:$C$87,0)+RIGHT($E100),0)\n+O$11*OFFSET('Efficiency Distributions'!$E$10,MATCH($C93,'Efficiency Distributions'!$C$9:$C$87,0)+RIGHT($E100),0))\n/SUM(O$10:O$11)","v":0},{"$f":"IF(INDEX(PC_MAPPING,RIGHT($C93,1),MATCH($E$2,'Data by Building Type'!$D$22:$F$22,0))=\"Yes\",1,0)*\n(P$10*OFFSET('Efficiency Distributions'!$D$10,MATCH($C93,'Efficiency Distributions'!$C$9:$C$87,0)+RIGHT($E100),0)\n+P$11*OFFSET('Efficiency Distributions'!$E$10,MATCH($C93,'Efficiency Distributions'!$C$9:$C$87,0)+RIGHT($E100),0))\n/SUM(P$10:P$11)","v":0},{"$f":"IF(INDEX(PC_MAPPING,RIGHT($C93,1),MATCH($E$2,'Data by Building Type'!$D$22:$F$22,0))=\"Yes\",1,0)*\n(Q$10*OFFSET('Efficiency Distributions'!$D$10,MATCH($C93,'Efficiency Distributions'!$C$9:$C$87,0)+RIGHT($E100),0)\n+Q$11*OFFSET('Efficiency Distributions'!$E$10,MATCH($C93,'Efficiency Distributions'!$C$9:$C$87,0)+RIGHT($E100),0))\n/SUM(Q$10:Q$11)","v":0},{"$f":"IF(INDEX(PC_MAPPING,RIGHT($C93,1),MATCH($E$2,'Data by Building Type'!$D$22:$F$22,0))=\"Yes\",1,0)*\n(R$10*OFFSET('Efficiency Distributions'!$D$10,MATCH($C93,'Efficiency Distributions'!$C$9:$C$87,0)+RIGHT($E100),0)\n+R$11*OFFSET('Efficiency Distributions'!$E$10,MATCH($C93,'Efficiency Distributions'!$C$9:$C$87,0)+RIGHT($E100),0))\n/SUM(R$10:R$11)","v":0},{"$f":"IF(INDEX(PC_MAPPING,RIGHT($C93,1),MATCH($E$2,'Data by Building Type'!$D$22:$F$22,0))=\"Yes\",1,0)*\n(S$10*OFFSET('Efficiency Distributions'!$D$10,MATCH($C93,'Efficiency Distributions'!$C$9:$C$87,0)+RIGHT($E100),0)\n+S$11*OFFSET('Efficiency Distributions'!$E$10,MATCH($C93,'Efficiency Distributions'!$C$9:$C$87,0)+RIGHT($E100),0))\n/SUM(S$10:S$11)","v":0},{"$f":"IF(INDEX(PC_MAPPING,RIGHT($C93,1),MATCH($E$2,'Data by Building Type'!$D$22:$F$22,0))=\"Yes\",1,0)*\n(T$10*OFFSET('Efficiency Distributions'!$D$10,MATCH($C93,'Efficiency Distributions'!$C$9:$C$87,0)+RIGHT($E100),0)\n+T$11*OFFSET('Efficiency Distributions'!$E$10,MATCH($C93,'Efficiency Distributions'!$C$9:$C$87,0)+RIGHT($E100),0))\n/SUM(T$10:T$11)","v":0},{"$f":"IF(INDEX(PC_MAPPING,RIGHT($C93,1),MATCH($E$2,'Data by Building Type'!$D$22:$F$22,0))=\"Yes\",1,0)*\n(U$10*OFFSET('Efficiency Distributions'!$D$10,MATCH($C93,'Efficiency Distributions'!$C$9:$C$87,0)+RIGHT($E100),0)\n+U$11*OFFSET('Efficiency Distributions'!$E$10,MATCH($C93,'Efficiency Distributions'!$C$9:$C$87,0)+RIGHT($E100),0))\n/SUM(U$10:U$11)","v":0},{"$f":"IF(INDEX(PC_MAPPING,RIGHT($C93,1),MATCH($E$2,'Data by Building Type'!$D$22:$F$22,0))=\"Yes\",1,0)*\n(V$10*OFFSET('Efficiency Distributions'!$D$10,MATCH($C93,'Efficiency Distributions'!$C$9:$C$87,0)+RIGHT($E100),0)\n+V$11*OFFSET('Efficiency Distributions'!$E$10,MATCH($C93,'Efficiency Distributions'!$C$9:$C$87,0)+RIGHT($E100),0))\n/SUM(V$10:V$11)","v":0},{"$f":"IF(INDEX(PC_MAPPING,RIGHT($C93,1),MATCH($E$2,'Data by Building Type'!$D$22:$F$22,0))=\"Yes\",1,0)*\n(W$10*OFFSET('Efficiency Distributions'!$D$10,MATCH($C93,'Efficiency Distributions'!$C$9:$C$87,0)+RIGHT($E100),0)\n+W$11*OFFSET('Efficiency Distributions'!$E$10,MATCH($C93,'Efficiency Distributions'!$C$9:$C$87,0)+RIGHT($E100),0))\n/SUM(W$10:W$11)","v":0},{"$f":"IF(INDEX(PC_MAPPING,RIGHT($C93,1),MATCH($E$2,'Data by Building Type'!$D$22:$F$22,0))=\"Yes\",1,0)*\n(X$10*OFFSET('Efficiency Distributions'!$D$10,MATCH($C93,'Efficiency Distributions'!$C$9:$C$87,0)+RIGHT($E100),0)\n+X$11*OFFSET('Efficiency Distributions'!$E$10,MATCH($C93,'Efficiency Distributions'!$C$9:$C$87,0)+RIGHT($E100),0))\n/SUM(X$10:X$11)","v":0},{"$f":"IF(INDEX(PC_MAPPING,RIGHT($C93,1),MATCH($E$2,'Data by Building Type'!$D$22:$F$22,0))=\"Yes\",1,0)*\n(Y$10*OFFSET('Efficiency Distributions'!$D$10,MATCH($C93,'Efficiency Distributions'!$C$9:$C$87,0)+RIGHT($E100),0)\n+Y$11*OFFSET('Efficiency Distributions'!$E$10,MATCH($C93,'Efficiency Distributions'!$C$9:$C$87,0)+RIGHT($E100),0))\n/SUM(Y$10:Y$11)","v":0},{"$f":"IF(INDEX(PC_MAPPING,RIGHT($C93,1),MATCH($E$2,'Data by Building Type'!$D$22:$F$22,0))=\"Yes\",1,0)*\n(Z$10*OFFSET('Efficiency Distributions'!$D$10,MATCH($C93,'Efficiency Distributions'!$C$9:$C$87,0)+RIGHT($E100),0)\n+Z$11*OFFSET('Efficiency Distributions'!$E$10,MATCH($C93,'Efficiency Distributions'!$C$9:$C$87,0)+RIGHT($E100),0))\n/SUM(Z$10:Z$11)","v":0},{"$f":"IF(INDEX(PC_MAPPING,RIGHT($C93,1),MATCH($E$2,'Data by Building Type'!$D$22:$F$22,0))=\"Yes\",1,0)*\n(AA$10*OFFSET('Efficiency Distributions'!$D$10,MATCH($C93,'Efficiency Distributions'!$C$9:$C$87,0)+RIGHT($E100),0)\n+AA$11*OFFSET('Efficiency Distributions'!$E$10,MATCH($C93,'Efficiency Distributions'!$C$9:$C$87,0)+RIGHT($E100),0))\n/SUM(AA$10:AA$11)","v":0},{"$f":"IF(INDEX(PC_MAPPING,RIGHT($C93,1),MATCH($E$2,'Data by Building Type'!$D$22:$F$22,0))=\"Yes\",1,0)*\n(AB$10*OFFSET('Efficiency Distributions'!$D$10,MATCH($C93,'Efficiency Distributions'!$C$9:$C$87,0)+RIGHT($E100),0)\n+AB$11*OFFSET('Efficiency Distributions'!$E$10,MATCH($C93,'Efficiency Distributions'!$C$9:$C$87,0)+RIGHT($E100),0))\n/SUM(AB$10:AB$11)","v":0},{"$f":"IF(INDEX(PC_MAPPING,RIGHT($C93,1),MATCH($E$2,'Data by Building Type'!$D$22:$F$22,0))=\"Yes\",1,0)*\n(AC$10*OFFSET('Efficiency Distributions'!$D$10,MATCH($C93,'Efficiency Distributions'!$C$9:$C$87,0)+RIGHT($E100),0)\n+AC$11*OFFSET('Efficiency Distributions'!$E$10,MATCH($C93,'Efficiency Distributions'!$C$9:$C$87,0)+RIGHT($E100),0))\n/SUM(AC$10:AC$11)","v":0},{"$f":"IF(INDEX(PC_MAPPING,RIGHT($C93,1),MATCH($E$2,'Data by Building Type'!$D$22:$F$22,0))=\"Yes\",1,0)*\n(AD$10*OFFSET('Efficiency Distributions'!$D$10,MATCH($C93,'Efficiency Distributions'!$C$9:$C$87,0)+RIGHT($E100),0)\n+AD$11*OFFSET('Efficiency Distributions'!$E$10,MATCH($C93,'Efficiency Distributions'!$C$9:$C$87,0)+RIGHT($E100),0))\n/SUM(AD$10:AD$11)","v":0},{"$f":"IF(INDEX(PC_MAPPING,RIGHT($C93,1),MATCH($E$2,'Data by Building Type'!$D$22:$F$22,0))=\"Yes\",1,0)*\n(AE$10*OFFSET('Efficiency Distributions'!$D$10,MATCH($C93,'Efficiency Distributions'!$C$9:$C$87,0)+RIGHT($E100),0)\n+AE$11*OFFSET('Efficiency Distributions'!$E$10,MATCH($C93,'Efficiency Distributions'!$C$9:$C$87,0)+RIGHT($E100),0))\n/SUM(AE$10:AE$11)","v":0},{"$f":"IF(INDEX(PC_MAPPING,RIGHT($C93,1),MATCH($E$2,'Data by Building Type'!$D$22:$F$22,0))=\"Yes\",1,0)*\n(AF$10*OFFSET('Efficiency Distributions'!$D$10,MATCH($C93,'Efficiency Distributions'!$C$9:$C$87,0)+RIGHT($E100),0)\n+AF$11*OFFSET('Efficiency Distributions'!$E$10,MATCH($C93,'Efficiency Distributions'!$C$9:$C$87,0)+RIGHT($E100),0))\n/SUM(AF$10:AF$11)","v":0},{"$f":"IF(INDEX(PC_MAPPING,RIGHT($C93,1),MATCH($E$2,'Data by Building Type'!$D$22:$F$22,0))=\"Yes\",1,0)*\n(AG$10*OFFSET('Efficiency Distributions'!$D$10,MATCH($C93,'Efficiency Distributions'!$C$9:$C$87,0)+RIGHT($E100),0)\n+AG$11*OFFSET('Efficiency Distributions'!$E$10,MATCH($C93,'Efficiency Distributions'!$C$9:$C$87,0)+RIGHT($E100),0))\n/SUM(AG$10:AG$11)","v":0},{"$f":"IF(INDEX(PC_MAPPING,RIGHT($C93,1),MATCH($E$2,'Data by Building Type'!$D$22:$F$22,0))=\"Yes\",1,0)*\n(AH$10*OFFSET('Efficiency Distributions'!$D$10,MATCH($C93,'Efficiency Distributions'!$C$9:$C$87,0)+RIGHT($E100),0)\n+AH$11*OFFSET('Efficiency Distributions'!$E$10,MATCH($C93,'Efficiency Distributions'!$C$9:$C$87,0)+RIGHT($E100),0))\n/SUM(AH$10:AH$11)","v":0},{"$f":"IF(INDEX(PC_MAPPING,RIGHT($C93,1),MATCH($E$2,'Data by Building Type'!$D$22:$F$22,0))=\"Yes\",1,0)*\n(AI$10*OFFSET('Efficiency Distributions'!$D$10,MATCH($C93,'Efficiency Distributions'!$C$9:$C$87,0)+RIGHT($E100),0)\n+AI$11*OFFSET('Efficiency Distributions'!$E$10,MATCH($C93,'Efficiency Distributions'!$C$9:$C$87,0)+RIGHT($E100),0))\n/SUM(AI$10:AI$11)","v":0},{"$f":"IF(INDEX(PC_MAPPING,RIGHT($C93,1),MATCH($E$2,'Data by Building Type'!$D$22:$F$22,0))=\"Yes\",1,0)*\n(AJ$10*OFFSET('Efficiency Distributions'!$D$10,MATCH($C93,'Efficiency Distributions'!$C$9:$C$87,0)+RIGHT($E100),0)\n+AJ$11*OFFSET('Efficiency Distributions'!$E$10,MATCH($C93,'Efficiency Distributions'!$C$9:$C$87,0)+RIGHT($E100),0))\n/SUM(AJ$10:AJ$11)","v":0},{"$f":"IF(INDEX(PC_MAPPING,RIGHT($C93,1),MATCH($E$2,'Data by Building Type'!$D$22:$F$22,0))=\"Yes\",1,0)*\n(AK$10*OFFSET('Efficiency Distributions'!$D$10,MATCH($C93,'Efficiency Distributions'!$C$9:$C$87,0)+RIGHT($E100),0)\n+AK$11*OFFSET('Efficiency Distributions'!$E$10,MATCH($C93,'Efficiency Distributions'!$C$9:$C$87,0)+RIGHT($E100),0))\n/SUM(AK$10:AK$11)","v":0},{"$f":"IF(INDEX(PC_MAPPING,RIGHT($C93,1),MATCH($E$2,'Data by Building Type'!$D$22:$F$22,0))=\"Yes\",1,0)*\n(AL$10*OFFSET('Efficiency Distributions'!$D$10,MATCH($C93,'Efficiency Distributions'!$C$9:$C$87,0)+RIGHT($E100),0)\n+AL$11*OFFSET('Efficiency Distributions'!$E$10,MATCH($C93,'Efficiency Distributions'!$C$9:$C$87,0)+RIGHT($E100),0))\n/SUM(AL$10:AL$11)","v":0},{"$f":"IF(INDEX(PC_MAPPING,RIGHT($C93,1),MATCH($E$2,'Data by Building Type'!$D$22:$F$22,0))=\"Yes\",1,0)*\n(AM$10*OFFSET('Efficiency Distributions'!$D$10,MATCH($C93,'Efficiency Distributions'!$C$9:$C$87,0)+RIGHT($E100),0)\n+AM$11*OFFSET('Efficiency Distributions'!$E$10,MATCH($C93,'Efficiency Distributions'!$C$9:$C$87,0)+RIGHT($E100),0))\n/SUM(AM$10:AM$11)","v":0},{"$f":"IF(INDEX(PC_MAPPING,RIGHT($C93,1),MATCH($E$2,'Data by Building Type'!$D$22:$F$22,0))=\"Yes\",1,0)*\n(AN$10*OFFSET('Efficiency Distributions'!$D$10,MATCH($C93,'Efficiency Distributions'!$C$9:$C$87,0)+RIGHT($E100),0)\n+AN$11*OFFSET('Efficiency Distributions'!$E$10,MATCH($C93,'Efficiency Distributions'!$C$9:$C$87,0)+RIGHT($E100),0))\n/SUM(AN$10:AN$11)","v":0},{"$f":"IF(INDEX(PC_MAPPING,RIGHT($C93,1),MATCH($E$2,'Data by Building Type'!$D$22:$F$22,0))=\"Yes\",1,0)*\n(AO$10*OFFSET('Efficiency Distributions'!$D$10,MATCH($C93,'Efficiency Distributions'!$C$9:$C$87,0)+RIGHT($E100),0)\n+AO$11*OFFSET('Efficiency Distributions'!$E$10,MATCH($C93,'Efficiency Distributions'!$C$9:$C$87,0)+RIGHT($E100),0))\n/SUM(AO$10:AO$11)","v":0},{"$f":"IF(INDEX(PC_MAPPING,RIGHT($C93,1),MATCH($E$2,'Data by Building Type'!$D$22:$F$22,0))=\"Yes\",1,0)*\n(AP$10*OFFSET('Efficiency Distributions'!$D$10,MATCH($C93,'Efficiency Distributions'!$C$9:$C$87,0)+RIGHT($E100),0)\n+AP$11*OFFSET('Efficiency Distributions'!$E$10,MATCH($C93,'Efficiency Distributions'!$C$9:$C$87,0)+RIGHT($E100),0))\n/SUM(AP$10:AP$11)","v":0},{"$f":"IF(INDEX(PC_MAPPING,RIGHT($C93,1),MATCH($E$2,'Data by Building Type'!$D$22:$F$22,0))=\"Yes\",1,0)*\n(AQ$10*OFFSET('Efficiency Distributions'!$D$10,MATCH($C93,'Efficiency Distributions'!$C$9:$C$87,0)+RIGHT($E100),0)\n+AQ$11*OFFSET('Efficiency Distributions'!$E$10,MATCH($C93,'Efficiency Distributions'!$C$9:$C$87,0)+RIGHT($E100),0))\n/SUM(AQ$10:AQ$11)","v":0},{"$f":"IF(INDEX(PC_MAPPING,RIGHT($C93,1),MATCH($E$2,'Data by Building Type'!$D$22:$F$22,0))=\"Yes\",1,0)*\n(AR$10*OFFSET('Efficiency Distributions'!$D$10,MATCH($C93,'Efficiency Distributions'!$C$9:$C$87,0)+RIGHT($E100),0)\n+AR$11*OFFSET('Efficiency Distributions'!$E$10,MATCH($C93,'Efficiency Distributions'!$C$9:$C$87,0)+RIGHT($E100),0))\n/SUM(AR$10:AR$11)","v":0},{"$f":"IF(INDEX(PC_MAPPING,RIGHT($C93,1),MATCH($E$2,'Data by Building Type'!$D$22:$F$22,0))=\"Yes\",1,0)*\n(AS$10*OFFSET('Efficiency Distributions'!$D$10,MATCH($C93,'Efficiency Distributions'!$C$9:$C$87,0)+RIGHT($E100),0)\n+AS$11*OFFSET('Efficiency Distributions'!$E$10,MATCH($C93,'Efficiency Distributions'!$C$9:$C$87,0)+RIGHT($E100),0))\n/SUM(AS$10:AS$11)","v":0},{"$f":"IF(INDEX(PC_MAPPING,RIGHT($C93,1),MATCH($E$2,'Data by Building Type'!$D$22:$F$22,0))=\"Yes\",1,0)*\n(AT$10*OFFSET('Efficiency Distributions'!$D$10,MATCH($C93,'Efficiency Distributions'!$C$9:$C$87,0)+RIGHT($E100),0)\n+AT$11*OFFSET('Efficiency Distributions'!$E$10,MATCH($C93,'Efficiency Distributions'!$C$9:$C$87,0)+RIGHT($E100),0))\n/SUM(AT$10:AT$11)","v":0},{"$f":"IF(INDEX(PC_MAPPING,RIGHT($C93,1),MATCH($E$2,'Data by Building Type'!$D$22:$F$22,0))=\"Yes\",1,0)*\n(AU$10*OFFSET('Efficiency Distributions'!$D$10,MATCH($C93,'Efficiency Distributions'!$C$9:$C$87,0)+RIGHT($E100),0)\n+AU$11*OFFSET('Efficiency Distributions'!$E$10,MATCH($C93,'Efficiency Distributions'!$C$9:$C$87,0)+RIGHT($E100),0))\n/SUM(AU$10:AU$11)","v":0},{"$f":"IF(INDEX(PC_MAPPING,RIGHT($C93,1),MATCH($E$2,'Data by Building Type'!$D$22:$F$22,0))=\"Yes\",1,0)*\n(AV$10*OFFSET('Efficiency Distributions'!$D$10,MATCH($C93,'Efficiency Distributions'!$C$9:$C$87,0)+RIGHT($E100),0)\n+AV$11*OFFSET('Efficiency Distributions'!$E$10,MATCH($C93,'Efficiency Distributions'!$C$9:$C$87,0)+RIGHT($E100),0))\n/SUM(AV$10:AV$11)","v":0},{"$f":"IF(INDEX(PC_MAPPING,RIGHT($C93,1),MATCH($E$2,'Data by Building Type'!$D$22:$F$22,0))=\"Yes\",1,0)*\n(AW$10*OFFSET('Efficiency Distributions'!$D$10,MATCH($C93,'Efficiency Distributions'!$C$9:$C$87,0)+RIGHT($E100),0)\n+AW$11*OFFSET('Efficiency Distributions'!$E$10,MATCH($C93,'Efficiency Distributions'!$C$9:$C$87,0)+RIGHT($E100),0))\n/SUM(AW$10:AW$11)","v":0},{"$f":"IF(INDEX(PC_MAPPING,RIGHT($C93,1),MATCH($E$2,'Data by Building Type'!$D$22:$F$22,0))=\"Yes\",1,0)*\n(AX$10*OFFSET('Efficiency Distributions'!$D$10,MATCH($C93,'Efficiency Distributions'!$C$9:$C$87,0)+RIGHT($E100),0)\n+AX$11*OFFSET('Efficiency Distributions'!$E$10,MATCH($C93,'Efficiency Distributions'!$C$9:$C$87,0)+RIGHT($E100),0))\n/SUM(AX$10:AX$11)","v":0},{"$f":"IF(INDEX(PC_MAPPING,RIGHT($C93,1),MATCH($E$2,'Data by Building Type'!$D$22:$F$22,0))=\"Yes\",1,0)*\n(AY$10*OFFSET('Efficiency Distributions'!$D$10,MATCH($C93,'Efficiency Distributions'!$C$9:$C$87,0)+RIGHT($E100),0)\n+AY$11*OFFSET('Efficiency Distributions'!$E$10,MATCH($C93,'Efficiency Distributions'!$C$9:$C$87,0)+RIGHT($E100),0))\n/SUM(AY$10:AY$11)","v":0},{"$f":"IF(INDEX(PC_MAPPING,RIGHT($C93,1),MATCH($E$2,'Data by Building Type'!$D$22:$F$22,0))=\"Yes\",1,0)*\n(AZ$10*OFFSET('Efficiency Distributions'!$D$10,MATCH($C93,'Efficiency Distributions'!$C$9:$C$87,0)+RIGHT($E100),0)\n+AZ$11*OFFSET('Efficiency Distributions'!$E$10,MATCH($C93,'Efficiency Distributions'!$C$9:$C$87,0)+RIGHT($E100),0))\n/SUM(AZ$10:AZ$11)","v":0},{"$f":"IF(INDEX(PC_MAPPING,RIGHT($C93,1),MATCH($E$2,'Data by Building Type'!$D$22:$F$22,0))=\"Yes\",1,0)*\n(BA$10*OFFSET('Efficiency Distributions'!$D$10,MATCH($C93,'Efficiency Distributions'!$C$9:$C$87,0)+RIGHT($E100),0)\n+BA$11*OFFSET('Efficiency Distributions'!$E$10,MATCH($C93,'Efficiency Distributions'!$C$9:$C$87,0)+RIGHT($E100),0))\n/SUM(BA$10:BA$11)","v":0},{"$f":"IF(INDEX(PC_MAPPING,RIGHT($C93,1),MATCH($E$2,'Data by Building Type'!$D$22:$F$22,0))=\"Yes\",1,0)*\n(BB$10*OFFSET('Efficiency Distributions'!$D$10,MATCH($C93,'Efficiency Distributions'!$C$9:$C$87,0)+RIGHT($E100),0)\n+BB$11*OFFSET('Efficiency Distributions'!$E$10,MATCH($C93,'Efficiency Distributions'!$C$9:$C$87,0)+RIGHT($E100),0))\n/SUM(BB$10:BB$11)","v":0},{"$f":"IF(INDEX(PC_MAPPING,RIGHT($C93,1),MATCH($E$2,'Data by Building Type'!$D$22:$F$22,0))=\"Yes\",1,0)*\n(BC$10*OFFSET('Efficiency Distributions'!$D$10,MATCH($C93,'Efficiency Distributions'!$C$9:$C$87,0)+RIGHT($E100),0)\n+BC$11*OFFSET('Efficiency Distributions'!$E$10,MATCH($C93,'Efficiency Distributions'!$C$9:$C$87,0)+RIGHT($E100),0))\n/SUM(BC$10:BC$11)","v":0},{"$f":"IF(INDEX(PC_MAPPING,RIGHT($C93,1),MATCH($E$2,'Data by Building Type'!$D$22:$F$22,0))=\"Yes\",1,0)*\n(BD$10*OFFSET('Efficiency Distributions'!$D$10,MATCH($C93,'Efficiency Distributions'!$C$9:$C$87,0)+RIGHT($E100),0)\n+BD$11*OFFSET('Efficiency Distributions'!$E$10,MATCH($C93,'Efficiency Distributions'!$C$9:$C$87,0)+RIGHT($E100),0))\n/SUM(BD$10:BD$11)","v":0},{"$f":"IF(INDEX(PC_MAPPING,RIGHT($C93,1),MATCH($E$2,'Data by Building Type'!$D$22:$F$22,0))=\"Yes\",1,0)*\n(BE$10*OFFSET('Efficiency Distributions'!$D$10,MATCH($C93,'Efficiency Distributions'!$C$9:$C$87,0)+RIGHT($E100),0)\n+BE$11*OFFSET('Efficiency Distributions'!$E$10,MATCH($C93,'Efficiency Distributions'!$C$9:$C$87,0)+RIGHT($E100),0))\n/SUM(BE$10:BE$11)","v":0},{"$f":"IF(INDEX(PC_MAPPING,RIGHT($C93,1),MATCH($E$2,'Data by Building Type'!$D$22:$F$22,0))=\"Yes\",1,0)*\n(BF$10*OFFSET('Efficiency Distributions'!$D$10,MATCH($C93,'Efficiency Distributions'!$C$9:$C$87,0)+RIGHT($E100),0)\n+BF$11*OFFSET('Efficiency Distributions'!$E$10,MATCH($C93,'Efficiency Distributions'!$C$9:$C$87,0)+RIGHT($E100),0))\n/SUM(BF$10:BF$11)","v":0},{"$f":"IF(INDEX(PC_MAPPING,RIGHT($C93,1),MATCH($E$2,'Data by Building Type'!$D$22:$F$22,0))=\"Yes\",1,0)*\n(BG$10*OFFSET('Efficiency Distributions'!$D$10,MATCH($C93,'Efficiency Distributions'!$C$9:$C$87,0)+RIGHT($E100),0)\n+BG$11*OFFSET('Efficiency Distributions'!$E$10,MATCH($C93,'Efficiency Distributions'!$C$9:$C$87,0)+RIGHT($E100),0))\n/SUM(BG$10:BG$11)","v":0}]
[null,null,null,null,"EL4",{"$f":"IF(INDEX(PC_MAPPING,RIGHT($C93,1),MATCH($E$2,'Data by Building Type'!$D$22:$F$22,0))=\"Yes\",1,0)*\n(F$10*OFFSET('Efficiency Distributions'!$D$10,MATCH($C93,'Efficiency Distributions'!$C$9:$C$87,0)+RIGHT($E101),0)\n+F$11*OFFSET('Efficiency Distributions'!$E$10,MATCH($C93,'Efficiency Distributions'!$C$9:$C$87,0)+RIGHT($E101),0))\n/SUM(F$10:F$11)","v":0},{"$f":"IF(INDEX(PC_MAPPING,RIGHT($C93,1),MATCH($E$2,'Data by Building Type'!$D$22:$F$22,0))=\"Yes\",1,0)*\n(G$10*OFFSET('Efficiency Distributions'!$D$10,MATCH($C93,'Efficiency Distributions'!$C$9:$C$87,0)+RIGHT($E101),0)\n+G$11*OFFSET('Efficiency Distributions'!$E$10,MATCH($C93,'Efficiency Distributions'!$C$9:$C$87,0)+RIGHT($E101),0))\n/SUM(G$10:G$11)","v":0},{"$f":"IF(INDEX(PC_MAPPING,RIGHT($C93,1),MATCH($E$2,'Data by Building Type'!$D$22:$F$22,0))=\"Yes\",1,0)*\n(H$10*OFFSET('Efficiency Distributions'!$D$10,MATCH($C93,'Efficiency Distributions'!$C$9:$C$87,0)+RIGHT($E101),0)\n+H$11*OFFSET('Efficiency Distributions'!$E$10,MATCH($C93,'Efficiency Distributions'!$C$9:$C$87,0)+RIGHT($E101),0))\n/SUM(H$10:H$11)","v":0},{"$f":"IF(INDEX(PC_MAPPING,RIGHT($C93,1),MATCH($E$2,'Data by Building Type'!$D$22:$F$22,0))=\"Yes\",1,0)*\n(I$10*OFFSET('Efficiency Distributions'!$D$10,MATCH($C93,'Efficiency Distributions'!$C$9:$C$87,0)+RIGHT($E101),0)\n+I$11*OFFSET('Efficiency Distributions'!$E$10,MATCH($C93,'Efficiency Distributions'!$C$9:$C$87,0)+RIGHT($E101),0))\n/SUM(I$10:I$11)","v":0},{"$f":"IF(INDEX(PC_MAPPING,RIGHT($C93,1),MATCH($E$2,'Data by Building Type'!$D$22:$F$22,0))=\"Yes\",1,0)*\n(J$10*OFFSET('Efficiency Distributions'!$D$10,MATCH($C93,'Efficiency Distributions'!$C$9:$C$87,0)+RIGHT($E101),0)\n+J$11*OFFSET('Efficiency Distributions'!$E$10,MATCH($C93,'Efficiency Distributions'!$C$9:$C$87,0)+RIGHT($E101),0))\n/SUM(J$10:J$11)","v":0},{"$f":"IF(INDEX(PC_MAPPING,RIGHT($C93,1),MATCH($E$2,'Data by Building Type'!$D$22:$F$22,0))=\"Yes\",1,0)*\n(K$10*OFFSET('Efficiency Distributions'!$D$10,MATCH($C93,'Efficiency Distributions'!$C$9:$C$87,0)+RIGHT($E101),0)\n+K$11*OFFSET('Efficiency Distributions'!$E$10,MATCH($C93,'Efficiency Distributions'!$C$9:$C$87,0)+RIGHT($E101),0))\n/SUM(K$10:K$11)","v":0},{"$f":"IF(INDEX(PC_MAPPING,RIGHT($C93,1),MATCH($E$2,'Data by Building Type'!$D$22:$F$22,0))=\"Yes\",1,0)*\n(L$10*OFFSET('Efficiency Distributions'!$D$10,MATCH($C93,'Efficiency Distributions'!$C$9:$C$87,0)+RIGHT($E101),0)\n+L$11*OFFSET('Efficiency Distributions'!$E$10,MATCH($C93,'Efficiency Distributions'!$C$9:$C$87,0)+RIGHT($E101),0))\n/SUM(L$10:L$11)","v":0},{"$f":"IF(INDEX(PC_MAPPING,RIGHT($C93,1),MATCH($E$2,'Data by Building Type'!$D$22:$F$22,0))=\"Yes\",1,0)*\n(M$10*OFFSET('Efficiency Distributions'!$D$10,MATCH($C93,'Efficiency Distributions'!$C$9:$C$87,0)+RIGHT($E101),0)\n+M$11*OFFSET('Efficiency Distributions'!$E$10,MATCH($C93,'Efficiency Distributions'!$C$9:$C$87,0)+RIGHT($E101),0))\n/SUM(M$10:M$11)","v":0},{"$f":"IF(INDEX(PC_MAPPING,RIGHT($C93,1),MATCH($E$2,'Data by Building Type'!$D$22:$F$22,0))=\"Yes\",1,0)*\n(N$10*OFFSET('Efficiency Distributions'!$D$10,MATCH($C93,'Efficiency Distributions'!$C$9:$C$87,0)+RIGHT($E101),0)\n+N$11*OFFSET('Efficiency Distributions'!$E$10,MATCH($C93,'Efficiency Distributions'!$C$9:$C$87,0)+RIGHT($E101),0))\n/SUM(N$10:N$11)","v":0},{"$f":"IF(INDEX(PC_MAPPING,RIGHT($C93,1),MATCH($E$2,'Data by Building Type'!$D$22:$F$22,0))=\"Yes\",1,0)*\n(O$10*OFFSET('Efficiency Distributions'!$D$10,MATCH($C93,'Efficiency Distributions'!$C$9:$C$87,0)+RIGHT($E101),0)\n+O$11*OFFSET('Efficiency Distributions'!$E$10,MATCH($C93,'Efficiency Distributions'!$C$9:$C$87,0)+RIGHT($E101),0))\n/SUM(O$10:O$11)","v":0},{"$f":"IF(INDEX(PC_MAPPING,RIGHT($C93,1),MATCH($E$2,'Data by Building Type'!$D$22:$F$22,0))=\"Yes\",1,0)*\n(P$10*OFFSET('Efficiency Distributions'!$D$10,MATCH($C93,'Efficiency Distributions'!$C$9:$C$87,0)+RIGHT($E101),0)\n+P$11*OFFSET('Efficiency Distributions'!$E$10,MATCH($C93,'Efficiency Distributions'!$C$9:$C$87,0)+RIGHT($E101),0))\n/SUM(P$10:P$11)","v":0},{"$f":"IF(INDEX(PC_MAPPING,RIGHT($C93,1),MATCH($E$2,'Data by Building Type'!$D$22:$F$22,0))=\"Yes\",1,0)*\n(Q$10*OFFSET('Efficiency Distributions'!$D$10,MATCH($C93,'Efficiency Distributions'!$C$9:$C$87,0)+RIGHT($E101),0)\n+Q$11*OFFSET('Efficiency Distributions'!$E$10,MATCH($C93,'Efficiency Distributions'!$C$9:$C$87,0)+RIGHT($E101),0))\n/SUM(Q$10:Q$11)","v":0},{"$f":"IF(INDEX(PC_MAPPING,RIGHT($C93,1),MATCH($E$2,'Data by Building Type'!$D$22:$F$22,0))=\"Yes\",1,0)*\n(R$10*OFFSET('Efficiency Distributions'!$D$10,MATCH($C93,'Efficiency Distributions'!$C$9:$C$87,0)+RIGHT($E101),0)\n+R$11*OFFSET('Efficiency Distributions'!$E$10,MATCH($C93,'Efficiency Distributions'!$C$9:$C$87,0)+RIGHT($E101),0))\n/SUM(R$10:R$11)","v":0},{"$f":"IF(INDEX(PC_MAPPING,RIGHT($C93,1),MATCH($E$2,'Data by Building Type'!$D$22:$F$22,0))=\"Yes\",1,0)*\n(S$10*OFFSET('Efficiency Distributions'!$D$10,MATCH($C93,'Efficiency Distributions'!$C$9:$C$87,0)+RIGHT($E101),0)\n+S$11*OFFSET('Efficiency Distributions'!$E$10,MATCH($C93,'Efficiency Distributions'!$C$9:$C$87,0)+RIGHT($E101),0))\n/SUM(S$10:S$11)","v":0},{"$f":"IF(INDEX(PC_MAPPING,RIGHT($C93,1),MATCH($E$2,'Data by Building Type'!$D$22:$F$22,0))=\"Yes\",1,0)*\n(T$10*OFFSET('Efficiency Distributions'!$D$10,MATCH($C93,'Efficiency Distributions'!$C$9:$C$87,0)+RIGHT($E101),0)\n+T$11*OFFSET('Efficiency Distributions'!$E$10,MATCH($C93,'Efficiency Distributions'!$C$9:$C$87,0)+RIGHT($E101),0))\n/SUM(T$10:T$11)","v":0},{"$f":"IF(INDEX(PC_MAPPING,RIGHT($C93,1),MATCH($E$2,'Data by Building Type'!$D$22:$F$22,0))=\"Yes\",1,0)*\n(U$10*OFFSET('Efficiency Distributions'!$D$10,MATCH($C93,'Efficiency Distributions'!$C$9:$C$87,0)+RIGHT($E101),0)\n+U$11*OFFSET('Efficiency Distributions'!$E$10,MATCH($C93,'Efficiency Distributions'!$C$9:$C$87,0)+RIGHT($E101),0))\n/SUM(U$10:U$11)","v":0},{"$f":"IF(INDEX(PC_MAPPING,RIGHT($C93,1),MATCH($E$2,'Data by Building Type'!$D$22:$F$22,0))=\"Yes\",1,0)*\n(V$10*OFFSET('Efficiency Distributions'!$D$10,MATCH($C93,'Efficiency Distributions'!$C$9:$C$87,0)+RIGHT($E101),0)\n+V$11*OFFSET('Efficiency Distributions'!$E$10,MATCH($C93,'Efficiency Distributions'!$C$9:$C$87,0)+RIGHT($E101),0))\n/SUM(V$10:V$11)","v":0},{"$f":"IF(INDEX(PC_MAPPING,RIGHT($C93,1),MATCH($E$2,'Data by Building Type'!$D$22:$F$22,0))=\"Yes\",1,0)*\n(W$10*OFFSET('Efficiency Distributions'!$D$10,MATCH($C93,'Efficiency Distributions'!$C$9:$C$87,0)+RIGHT($E101),0)\n+W$11*OFFSET('Efficiency Distributions'!$E$10,MATCH($C93,'Efficiency Distributions'!$C$9:$C$87,0)+RIGHT($E101),0))\n/SUM(W$10:W$11)","v":0},{"$f":"IF(INDEX(PC_MAPPING,RIGHT($C93,1),MATCH($E$2,'Data by Building Type'!$D$22:$F$22,0))=\"Yes\",1,0)*\n(X$10*OFFSET('Efficiency Distributions'!$D$10,MATCH($C93,'Efficiency Distributions'!$C$9:$C$87,0)+RIGHT($E101),0)\n+X$11*OFFSET('Efficiency Distributions'!$E$10,MATCH($C93,'Efficiency Distributions'!$C$9:$C$87,0)+RIGHT($E101),0))\n/SUM(X$10:X$11)","v":0},{"$f":"IF(INDEX(PC_MAPPING,RIGHT($C93,1),MATCH($E$2,'Data by Building Type'!$D$22:$F$22,0))=\"Yes\",1,0)*\n(Y$10*OFFSET('Efficiency Distributions'!$D$10,MATCH($C93,'Efficiency Distributions'!$C$9:$C$87,0)+RIGHT($E101),0)\n+Y$11*OFFSET('Efficiency Distributions'!$E$10,MATCH($C93,'Efficiency Distributions'!$C$9:$C$87,0)+RIGHT($E101),0))\n/SUM(Y$10:Y$11)","v":0},{"$f":"IF(INDEX(PC_MAPPING,RIGHT($C93,1),MATCH($E$2,'Data by Building Type'!$D$22:$F$22,0))=\"Yes\",1,0)*\n(Z$10*OFFSET('Efficiency Distributions'!$D$10,MATCH($C93,'Efficiency Distributions'!$C$9:$C$87,0)+RIGHT($E101),0)\n+Z$11*OFFSET('Efficiency Distributions'!$E$10,MATCH($C93,'Efficiency Distributions'!$C$9:$C$87,0)+RIGHT($E101),0))\n/SUM(Z$10:Z$11)","v":0},{"$f":"IF(INDEX(PC_MAPPING,RIGHT($C93,1),MATCH($E$2,'Data by Building Type'!$D$22:$F$22,0))=\"Yes\",1,0)*\n(AA$10*OFFSET('Efficiency Distributions'!$D$10,MATCH($C93,'Efficiency Distributions'!$C$9:$C$87,0)+RIGHT($E101),0)\n+AA$11*OFFSET('Efficiency Distributions'!$E$10,MATCH($C93,'Efficiency Distributions'!$C$9:$C$87,0)+RIGHT($E101),0))\n/SUM(AA$10:AA$11)","v":0},{"$f":"IF(INDEX(PC_MAPPING,RIGHT($C93,1),MATCH($E$2,'Data by Building Type'!$D$22:$F$22,0))=\"Yes\",1,0)*\n(AB$10*OFFSET('Efficiency Distributions'!$D$10,MATCH($C93,'Efficiency Distributions'!$C$9:$C$87,0)+RIGHT($E101),0)\n+AB$11*OFFSET('Efficiency Distributions'!$E$10,MATCH($C93,'Efficiency Distributions'!$C$9:$C$87,0)+RIGHT($E101),0))\n/SUM(AB$10:AB$11)","v":0},{"$f":"IF(INDEX(PC_MAPPING,RIGHT($C93,1),MATCH($E$2,'Data by Building Type'!$D$22:$F$22,0))=\"Yes\",1,0)*\n(AC$10*OFFSET('Efficiency Distributions'!$D$10,MATCH($C93,'Efficiency Distributions'!$C$9:$C$87,0)+RIGHT($E101),0)\n+AC$11*OFFSET('Efficiency Distributions'!$E$10,MATCH($C93,'Efficiency Distributions'!$C$9:$C$87,0)+RIGHT($E101),0))\n/SUM(AC$10:AC$11)","v":0},{"$f":"IF(INDEX(PC_MAPPING,RIGHT($C93,1),MATCH($E$2,'Data by Building Type'!$D$22:$F$22,0))=\"Yes\",1,0)*\n(AD$10*OFFSET('Efficiency Distributions'!$D$10,MATCH($C93,'Efficiency Distributions'!$C$9:$C$87,0)+RIGHT($E101),0)\n+AD$11*OFFSET('Efficiency Distributions'!$E$10,MATCH($C93,'Efficiency Distributions'!$C$9:$C$87,0)+RIGHT($E101),0))\n/SUM(AD$10:AD$11)","v":0},{"$f":"IF(INDEX(PC_MAPPING,RIGHT($C93,1),MATCH($E$2,'Data by Building Type'!$D$22:$F$22,0))=\"Yes\",1,0)*\n(AE$10*OFFSET('Efficiency Distributions'!$D$10,MATCH($C93,'Efficiency Distributions'!$C$9:$C$87,0)+RIGHT($E101),0)\n+AE$11*OFFSET('Efficiency Distributions'!$E$10,MATCH($C93,'Efficiency Distributions'!$C$9:$C$87,0)+RIGHT($E101),0))\n/SUM(AE$10:AE$11)","v":0},{"$f":"IF(INDEX(PC_MAPPING,RIGHT($C93,1),MATCH($E$2,'Data by Building Type'!$D$22:$F$22,0))=\"Yes\",1,0)*\n(AF$10*OFFSET('Efficiency Distributions'!$D$10,MATCH($C93,'Efficiency Distributions'!$C$9:$C$87,0)+RIGHT($E101),0)\n+AF$11*OFFSET('Efficiency Distributions'!$E$10,MATCH($C93,'Efficiency Distributions'!$C$9:$C$87,0)+RIGHT($E101),0))\n/SUM(AF$10:AF$11)","v":0},{"$f":"IF(INDEX(PC_MAPPING,RIGHT($C93,1),MATCH($E$2,'Data by Building Type'!$D$22:$F$22,0))=\"Yes\",1,0)*\n(AG$10*OFFSET('Efficiency Distributions'!$D$10,MATCH($C93,'Efficiency Distributions'!$C$9:$C$87,0)+RIGHT($E101),0)\n+AG$11*OFFSET('Efficiency Distributions'!$E$10,MATCH($C93,'Efficiency Distributions'!$C$9:$C$87,0)+RIGHT($E101),0))\n/SUM(AG$10:AG$11)","v":0},{"$f":"IF(INDEX(PC_MAPPING,RIGHT($C93,1),MATCH($E$2,'Data by Building Type'!$D$22:$F$22,0))=\"Yes\",1,0)*\n(AH$10*OFFSET('Efficiency Distributions'!$D$10,MATCH($C93,'Efficiency Distributions'!$C$9:$C$87,0)+RIGHT($E101),0)\n+AH$11*OFFSET('Efficiency Distributions'!$E$10,MATCH($C93,'Efficiency Distributions'!$C$9:$C$87,0)+RIGHT($E101),0))\n/SUM(AH$10:AH$11)","v":0},{"$f":"IF(INDEX(PC_MAPPING,RIGHT($C93,1),MATCH($E$2,'Data by Building Type'!$D$22:$F$22,0))=\"Yes\",1,0)*\n(AI$10*OFFSET('Efficiency Distributions'!$D$10,MATCH($C93,'Efficiency Distributions'!$C$9:$C$87,0)+RIGHT($E101),0)\n+AI$11*OFFSET('Efficiency Distributions'!$E$10,MATCH($C93,'Efficiency Distributions'!$C$9:$C$87,0)+RIGHT($E101),0))\n/SUM(AI$10:AI$11)","v":0},{"$f":"IF(INDEX(PC_MAPPING,RIGHT($C93,1),MATCH($E$2,'Data by Building Type'!$D$22:$F$22,0))=\"Yes\",1,0)*\n(AJ$10*OFFSET('Efficiency Distributions'!$D$10,MATCH($C93,'Efficiency Distributions'!$C$9:$C$87,0)+RIGHT($E101),0)\n+AJ$11*OFFSET('Efficiency Distributions'!$E$10,MATCH($C93,'Efficiency Distributions'!$C$9:$C$87,0)+RIGHT($E101),0))\n/SUM(AJ$10:AJ$11)","v":0},{"$f":"IF(INDEX(PC_MAPPING,RIGHT($C93,1),MATCH($E$2,'Data by Building Type'!$D$22:$F$22,0))=\"Yes\",1,0)*\n(AK$10*OFFSET('Efficiency Distributions'!$D$10,MATCH($C93,'Efficiency Distributions'!$C$9:$C$87,0)+RIGHT($E101),0)\n+AK$11*OFFSET('Efficiency Distributions'!$E$10,MATCH($C93,'Efficiency Distributions'!$C$9:$C$87,0)+RIGHT($E101),0))\n/SUM(AK$10:AK$11)","v":0},{"$f":"IF(INDEX(PC_MAPPING,RIGHT($C93,1),MATCH($E$2,'Data by Building Type'!$D$22:$F$22,0))=\"Yes\",1,0)*\n(AL$10*OFFSET('Efficiency Distributions'!$D$10,MATCH($C93,'Efficiency Distributions'!$C$9:$C$87,0)+RIGHT($E101),0)\n+AL$11*OFFSET('Efficiency Distributions'!$E$10,MATCH($C93,'Efficiency Distributions'!$C$9:$C$87,0)+RIGHT($E101),0))\n/SUM(AL$10:AL$11)","v":0},{"$f":"IF(INDEX(PC_MAPPING,RIGHT($C93,1),MATCH($E$2,'Data by Building Type'!$D$22:$F$22,0))=\"Yes\",1,0)*\n(AM$10*OFFSET('Efficiency Distributions'!$D$10,MATCH($C93,'Efficiency Distributions'!$C$9:$C$87,0)+RIGHT($E101),0)\n+AM$11*OFFSET('Efficiency Distributions'!$E$10,MATCH($C93,'Efficiency Distributions'!$C$9:$C$87,0)+RIGHT($E101),0))\n/SUM(AM$10:AM$11)","v":0},{"$f":"IF(INDEX(PC_MAPPING,RIGHT($C93,1),MATCH($E$2,'Data by Building Type'!$D$22:$F$22,0))=\"Yes\",1,0)*\n(AN$10*OFFSET('Efficiency Distributions'!$D$10,MATCH($C93,'Efficiency Distributions'!$C$9:$C$87,0)+RIGHT($E101),0)\n+AN$11*OFFSET('Efficiency Distributions'!$E$10,MATCH($C93,'Efficiency Distributions'!$C$9:$C$87,0)+RIGHT($E101),0))\n/SUM(AN$10:AN$11)","v":0},{"$f":"IF(INDEX(PC_MAPPING,RIGHT($C93,1),MATCH($E$2,'Data by Building Type'!$D$22:$F$22,0))=\"Yes\",1,0)*\n(AO$10*OFFSET('Efficiency Distributions'!$D$10,MATCH($C93,'Efficiency Distributions'!$C$9:$C$87,0)+RIGHT($E101),0)\n+AO$11*OFFSET('Efficiency Distributions'!$E$10,MATCH($C93,'Efficiency Distributions'!$C$9:$C$87,0)+RIGHT($E101),0))\n/SUM(AO$10:AO$11)","v":0},{"$f":"IF(INDEX(PC_MAPPING,RIGHT($C93,1),MATCH($E$2,'Data by Building Type'!$D$22:$F$22,0))=\"Yes\",1,0)*\n(AP$10*OFFSET('Efficiency Distributions'!$D$10,MATCH($C93,'Efficiency Distributions'!$C$9:$C$87,0)+RIGHT($E101),0)\n+AP$11*OFFSET('Efficiency Distributions'!$E$10,MATCH($C93,'Efficiency Distributions'!$C$9:$C$87,0)+RIGHT($E101),0))\n/SUM(AP$10:AP$11)","v":0},{"$f":"IF(INDEX(PC_MAPPING,RIGHT($C93,1),MATCH($E$2,'Data by Building Type'!$D$22:$F$22,0))=\"Yes\",1,0)*\n(AQ$10*OFFSET('Efficiency Distributions'!$D$10,MATCH($C93,'Efficiency Distributions'!$C$9:$C$87,0)+RIGHT($E101),0)\n+AQ$11*OFFSET('Efficiency Distributions'!$E$10,MATCH($C93,'Efficiency Distributions'!$C$9:$C$87,0)+RIGHT($E101),0))\n/SUM(AQ$10:AQ$11)","v":0},{"$f":"IF(INDEX(PC_MAPPING,RIGHT($C93,1),MATCH($E$2,'Data by Building Type'!$D$22:$F$22,0))=\"Yes\",1,0)*\n(AR$10*OFFSET('Efficiency Distributions'!$D$10,MATCH($C93,'Efficiency Distributions'!$C$9:$C$87,0)+RIGHT($E101),0)\n+AR$11*OFFSET('Efficiency Distributions'!$E$10,MATCH($C93,'Efficiency Distributions'!$C$9:$C$87,0)+RIGHT($E101),0))\n/SUM(AR$10:AR$11)","v":0},{"$f":"IF(INDEX(PC_MAPPING,RIGHT($C93,1),MATCH($E$2,'Data by Building Type'!$D$22:$F$22,0))=\"Yes\",1,0)*\n(AS$10*OFFSET('Efficiency Distributions'!$D$10,MATCH($C93,'Efficiency Distributions'!$C$9:$C$87,0)+RIGHT($E101),0)\n+AS$11*OFFSET('Efficiency Distributions'!$E$10,MATCH($C93,'Efficiency Distributions'!$C$9:$C$87,0)+RIGHT($E101),0))\n/SUM(AS$10:AS$11)","v":0},{"$f":"IF(INDEX(PC_MAPPING,RIGHT($C93,1),MATCH($E$2,'Data by Building Type'!$D$22:$F$22,0))=\"Yes\",1,0)*\n(AT$10*OFFSET('Efficiency Distributions'!$D$10,MATCH($C93,'Efficiency Distributions'!$C$9:$C$87,0)+RIGHT($E101),0)\n+AT$11*OFFSET('Efficiency Distributions'!$E$10,MATCH($C93,'Efficiency Distributions'!$C$9:$C$87,0)+RIGHT($E101),0))\n/SUM(AT$10:AT$11)","v":0},{"$f":"IF(INDEX(PC_MAPPING,RIGHT($C93,1),MATCH($E$2,'Data by Building Type'!$D$22:$F$22,0))=\"Yes\",1,0)*\n(AU$10*OFFSET('Efficiency Distributions'!$D$10,MATCH($C93,'Efficiency Distributions'!$C$9:$C$87,0)+RIGHT($E101),0)\n+AU$11*OFFSET('Efficiency Distributions'!$E$10,MATCH($C93,'Efficiency Distributions'!$C$9:$C$87,0)+RIGHT($E101),0))\n/SUM(AU$10:AU$11)","v":0},{"$f":"IF(INDEX(PC_MAPPING,RIGHT($C93,1),MATCH($E$2,'Data by Building Type'!$D$22:$F$22,0))=\"Yes\",1,0)*\n(AV$10*OFFSET('Efficiency Distributions'!$D$10,MATCH($C93,'Efficiency Distributions'!$C$9:$C$87,0)+RIGHT($E101),0)\n+AV$11*OFFSET('Efficiency Distributions'!$E$10,MATCH($C93,'Efficiency Distributions'!$C$9:$C$87,0)+RIGHT($E101),0))\n/SUM(AV$10:AV$11)","v":0},{"$f":"IF(INDEX(PC_MAPPING,RIGHT($C93,1),MATCH($E$2,'Data by Building Type'!$D$22:$F$22,0))=\"Yes\",1,0)*\n(AW$10*OFFSET('Efficiency Distributions'!$D$10,MATCH($C93,'Efficiency Distributions'!$C$9:$C$87,0)+RIGHT($E101),0)\n+AW$11*OFFSET('Efficiency Distributions'!$E$10,MATCH($C93,'Efficiency Distributions'!$C$9:$C$87,0)+RIGHT($E101),0))\n/SUM(AW$10:AW$11)","v":0},{"$f":"IF(INDEX(PC_MAPPING,RIGHT($C93,1),MATCH($E$2,'Data by Building Type'!$D$22:$F$22,0))=\"Yes\",1,0)*\n(AX$10*OFFSET('Efficiency Distributions'!$D$10,MATCH($C93,'Efficiency Distributions'!$C$9:$C$87,0)+RIGHT($E101),0)\n+AX$11*OFFSET('Efficiency Distributions'!$E$10,MATCH($C93,'Efficiency Distributions'!$C$9:$C$87,0)+RIGHT($E101),0))\n/SUM(AX$10:AX$11)","v":0},{"$f":"IF(INDEX(PC_MAPPING,RIGHT($C93,1),MATCH($E$2,'Data by Building Type'!$D$22:$F$22,0))=\"Yes\",1,0)*\n(AY$10*OFFSET('Efficiency Distributions'!$D$10,MATCH($C93,'Efficiency Distributions'!$C$9:$C$87,0)+RIGHT($E101),0)\n+AY$11*OFFSET('Efficiency Distributions'!$E$10,MATCH($C93,'Efficiency Distributions'!$C$9:$C$87,0)+RIGHT($E101),0))\n/SUM(AY$10:AY$11)","v":0},{"$f":"IF(INDEX(PC_MAPPING,RIGHT($C93,1),MATCH($E$2,'Data by Building Type'!$D$22:$F$22,0))=\"Yes\",1,0)*\n(AZ$10*OFFSET('Efficiency Distributions'!$D$10,MATCH($C93,'Efficiency Distributions'!$C$9:$C$87,0)+RIGHT($E101),0)\n+AZ$11*OFFSET('Efficiency Distributions'!$E$10,MATCH($C93,'Efficiency Distributions'!$C$9:$C$87,0)+RIGHT($E101),0))\n/SUM(AZ$10:AZ$11)","v":0},{"$f":"IF(INDEX(PC_MAPPING,RIGHT($C93,1),MATCH($E$2,'Data by Building Type'!$D$22:$F$22,0))=\"Yes\",1,0)*\n(BA$10*OFFSET('Efficiency Distributions'!$D$10,MATCH($C93,'Efficiency Distributions'!$C$9:$C$87,0)+RIGHT($E101),0)\n+BA$11*OFFSET('Efficiency Distributions'!$E$10,MATCH($C93,'Efficiency Distributions'!$C$9:$C$87,0)+RIGHT($E101),0))\n/SUM(BA$10:BA$11)","v":0},{"$f":"IF(INDEX(PC_MAPPING,RIGHT($C93,1),MATCH($E$2,'Data by Building Type'!$D$22:$F$22,0))=\"Yes\",1,0)*\n(BB$10*OFFSET('Efficiency Distributions'!$D$10,MATCH($C93,'Efficiency Distributions'!$C$9:$C$87,0)+RIGHT($E101),0)\n+BB$11*OFFSET('Efficiency Distributions'!$E$10,MATCH($C93,'Efficiency Distributions'!$C$9:$C$87,0)+RIGHT($E101),0))\n/SUM(BB$10:BB$11)","v":0},{"$f":"IF(INDEX(PC_MAPPING,RIGHT($C93,1),MATCH($E$2,'Data by Building Type'!$D$22:$F$22,0))=\"Yes\",1,0)*\n(BC$10*OFFSET('Efficiency Distributions'!$D$10,MATCH($C93,'Efficiency Distributions'!$C$9:$C$87,0)+RIGHT($E101),0)\n+BC$11*OFFSET('Efficiency Distributions'!$E$10,MATCH($C93,'Efficiency Distributions'!$C$9:$C$87,0)+RIGHT($E101),0))\n/SUM(BC$10:BC$11)","v":0},{"$f":"IF(INDEX(PC_MAPPING,RIGHT($C93,1),MATCH($E$2,'Data by Building Type'!$D$22:$F$22,0))=\"Yes\",1,0)*\n(BD$10*OFFSET('Efficiency Distributions'!$D$10,MATCH($C93,'Efficiency Distributions'!$C$9:$C$87,0)+RIGHT($E101),0)\n+BD$11*OFFSET('Efficiency Distributions'!$E$10,MATCH($C93,'Efficiency Distributions'!$C$9:$C$87,0)+RIGHT($E101),0))\n/SUM(BD$10:BD$11)","v":0},{"$f":"IF(INDEX(PC_MAPPING,RIGHT($C93,1),MATCH($E$2,'Data by Building Type'!$D$22:$F$22,0))=\"Yes\",1,0)*\n(BE$10*OFFSET('Efficiency Distributions'!$D$10,MATCH($C93,'Efficiency Distributions'!$C$9:$C$87,0)+RIGHT($E101),0)\n+BE$11*OFFSET('Efficiency Distributions'!$E$10,MATCH($C93,'Efficiency Distributions'!$C$9:$C$87,0)+RIGHT($E101),0))\n/SUM(BE$10:BE$11)","v":0},{"$f":"IF(INDEX(PC_MAPPING,RIGHT($C93,1),MATCH($E$2,'Data by Building Type'!$D$22:$F$22,0))=\"Yes\",1,0)*\n(BF$10*OFFSET('Efficiency Distributions'!$D$10,MATCH($C93,'Efficiency Distributions'!$C$9:$C$87,0)+RIGHT($E101),0)\n+BF$11*OFFSET('Efficiency Distributions'!$E$10,MATCH($C93,'Efficiency Distributions'!$C$9:$C$87,0)+RIGHT($E101),0))\n/SUM(BF$10:BF$11)","v":0},{"$f":"IF(INDEX(PC_MAPPING,RIGHT($C93,1),MATCH($E$2,'Data by Building Type'!$D$22:$F$22,0))=\"Yes\",1,0)*\n(BG$10*OFFSET('Efficiency Distributions'!$D$10,MATCH($C93,'Efficiency Distributions'!$C$9:$C$87,0)+RIGHT($E101),0)\n+BG$11*OFFSET('Efficiency Distributions'!$E$10,MATCH($C93,'Efficiency Distributions'!$C$9:$C$87,0)+RIGHT($E101),0))\n/SUM(BG$10:BG$11)","v":0}]
[null,null,null,null,"EL5",{"$f":"IF(INDEX(PC_MAPPING,RIGHT($C93,1),MATCH($E$2,'Data by Building Type'!$D$22:$F$22,0))=\"Yes\",1,0)*\n(F$10*OFFSET('Efficiency Distributions'!$D$10,MATCH($C93,'Efficiency Distributions'!$C$9:$C$87,0)+RIGHT($E102),0)\n+F$11*OFFSET('Efficiency Distributions'!$E$10,MATCH($C93,'Efficiency Distributions'!$C$9:$C$87,0)+RIGHT($E102),0))\n/SUM(F$10:F$11)","v":0},{"$f":"IF(INDEX(PC_MAPPING,RIGHT($C93,1),MATCH($E$2,'Data by Building Type'!$D$22:$F$22,0))=\"Yes\",1,0)*\n(G$10*OFFSET('Efficiency Distributions'!$D$10,MATCH($C93,'Efficiency Distributions'!$C$9:$C$87,0)+RIGHT($E102),0)\n+G$11*OFFSET('Efficiency Distributions'!$E$10,MATCH($C93,'Efficiency Distributions'!$C$9:$C$87,0)+RIGHT($E102),0))\n/SUM(G$10:G$11)","v":0},{"$f":"IF(INDEX(PC_MAPPING,RIGHT($C93,1),MATCH($E$2,'Data by Building Type'!$D$22:$F$22,0))=\"Yes\",1,0)*\n(H$10*OFFSET('Efficiency Distributions'!$D$10,MATCH($C93,'Efficiency Distributions'!$C$9:$C$87,0)+RIGHT($E102),0)\n+H$11*OFFSET('Efficiency Distributions'!$E$10,MATCH($C93,'Efficiency Distributions'!$C$9:$C$87,0)+RIGHT($E102),0))\n/SUM(H$10:H$11)","v":0},{"$f":"IF(INDEX(PC_MAPPING,RIGHT($C93,1),MATCH($E$2,'Data by Building Type'!$D$22:$F$22,0))=\"Yes\",1,0)*\n(I$10*OFFSET('Efficiency Distributions'!$D$10,MATCH($C93,'Efficiency Distributions'!$C$9:$C$87,0)+RIGHT($E102),0)\n+I$11*OFFSET('Efficiency Distributions'!$E$10,MATCH($C93,'Efficiency Distributions'!$C$9:$C$87,0)+RIGHT($E102),0))\n/SUM(I$10:I$11)","v":0},{"$f":"IF(INDEX(PC_MAPPING,RIGHT($C93,1),MATCH($E$2,'Data by Building Type'!$D$22:$F$22,0))=\"Yes\",1,0)*\n(J$10*OFFSET('Efficiency Distributions'!$D$10,MATCH($C93,'Efficiency Distributions'!$C$9:$C$87,0)+RIGHT($E102),0)\n+J$11*OFFSET('Efficiency Distributions'!$E$10,MATCH($C93,'Efficiency Distributions'!$C$9:$C$87,0)+RIGHT($E102),0))\n/SUM(J$10:J$11)","v":0},{"$f":"IF(INDEX(PC_MAPPING,RIGHT($C93,1),MATCH($E$2,'Data by Building Type'!$D$22:$F$22,0))=\"Yes\",1,0)*\n(K$10*OFFSET('Efficiency Distributions'!$D$10,MATCH($C93,'Efficiency Distributions'!$C$9:$C$87,0)+RIGHT($E102),0)\n+K$11*OFFSET('Efficiency Distributions'!$E$10,MATCH($C93,'Efficiency Distributions'!$C$9:$C$87,0)+RIGHT($E102),0))\n/SUM(K$10:K$11)","v":0},{"$f":"IF(INDEX(PC_MAPPING,RIGHT($C93,1),MATCH($E$2,'Data by Building Type'!$D$22:$F$22,0))=\"Yes\",1,0)*\n(L$10*OFFSET('Efficiency Distributions'!$D$10,MATCH($C93,'Efficiency Distributions'!$C$9:$C$87,0)+RIGHT($E102),0)\n+L$11*OFFSET('Efficiency Distributions'!$E$10,MATCH($C93,'Efficiency Distributions'!$C$9:$C$87,0)+RIGHT($E102),0))\n/SUM(L$10:L$11)","v":0},{"$f":"IF(INDEX(PC_MAPPING,RIGHT($C93,1),MATCH($E$2,'Data by Building Type'!$D$22:$F$22,0))=\"Yes\",1,0)*\n(M$10*OFFSET('Efficiency Distributions'!$D$10,MATCH($C93,'Efficiency Distributions'!$C$9:$C$87,0)+RIGHT($E102),0)\n+M$11*OFFSET('Efficiency Distributions'!$E$10,MATCH($C93,'Efficiency Distributions'!$C$9:$C$87,0)+RIGHT($E102),0))\n/SUM(M$10:M$11)","v":0},{"$f":"IF(INDEX(PC_MAPPING,RIGHT($C93,1),MATCH($E$2,'Data by Building Type'!$D$22:$F$22,0))=\"Yes\",1,0)*\n(N$10*OFFSET('Efficiency Distributions'!$D$10,MATCH($C93,'Efficiency Distributions'!$C$9:$C$87,0)+RIGHT($E102),0)\n+N$11*OFFSET('Efficiency Distributions'!$E$10,MATCH($C93,'Efficiency Distributions'!$C$9:$C$87,0)+RIGHT($E102),0))\n/SUM(N$10:N$11)","v":0},{"$f":"IF(INDEX(PC_MAPPING,RIGHT($C93,1),MATCH($E$2,'Data by Building Type'!$D$22:$F$22,0))=\"Yes\",1,0)*\n(O$10*OFFSET('Efficiency Distributions'!$D$10,MATCH($C93,'Efficiency Distributions'!$C$9:$C$87,0)+RIGHT($E102),0)\n+O$11*OFFSET('Efficiency Distributions'!$E$10,MATCH($C93,'Efficiency Distributions'!$C$9:$C$87,0)+RIGHT($E102),0))\n/SUM(O$10:O$11)","v":0},{"$f":"IF(INDEX(PC_MAPPING,RIGHT($C93,1),MATCH($E$2,'Data by Building Type'!$D$22:$F$22,0))=\"Yes\",1,0)*\n(P$10*OFFSET('Efficiency Distributions'!$D$10,MATCH($C93,'Efficiency Distributions'!$C$9:$C$87,0)+RIGHT($E102),0)\n+P$11*OFFSET('Efficiency Distributions'!$E$10,MATCH($C93,'Efficiency Distributions'!$C$9:$C$87,0)+RIGHT($E102),0))\n/SUM(P$10:P$11)","v":0},{"$f":"IF(INDEX(PC_MAPPING,RIGHT($C93,1),MATCH($E$2,'Data by Building Type'!$D$22:$F$22,0))=\"Yes\",1,0)*\n(Q$10*OFFSET('Efficiency Distributions'!$D$10,MATCH($C93,'Efficiency Distributions'!$C$9:$C$87,0)+RIGHT($E102),0)\n+Q$11*OFFSET('Efficiency Distributions'!$E$10,MATCH($C93,'Efficiency Distributions'!$C$9:$C$87,0)+RIGHT($E102),0))\n/SUM(Q$10:Q$11)","v":0},{"$f":"IF(INDEX(PC_MAPPING,RIGHT($C93,1),MATCH($E$2,'Data by Building Type'!$D$22:$F$22,0))=\"Yes\",1,0)*\n(R$10*OFFSET('Efficiency Distributions'!$D$10,MATCH($C93,'Efficiency Distributions'!$C$9:$C$87,0)+RIGHT($E102),0)\n+R$11*OFFSET('Efficiency Distributions'!$E$10,MATCH($C93,'Efficiency Distributions'!$C$9:$C$87,0)+RIGHT($E102),0))\n/SUM(R$10:R$11)","v":0},{"$f":"IF(INDEX(PC_MAPPING,RIGHT($C93,1),MATCH($E$2,'Data by Building Type'!$D$22:$F$22,0))=\"Yes\",1,0)*\n(S$10*OFFSET('Efficiency Distributions'!$D$10,MATCH($C93,'Efficiency Distributions'!$C$9:$C$87,0)+RIGHT($E102),0)\n+S$11*OFFSET('Efficiency Distributions'!$E$10,MATCH($C93,'Efficiency Distributions'!$C$9:$C$87,0)+RIGHT($E102),0))\n/SUM(S$10:S$11)","v":0},{"$f":"IF(INDEX(PC_MAPPING,RIGHT($C93,1),MATCH($E$2,'Data by Building Type'!$D$22:$F$22,0))=\"Yes\",1,0)*\n(T$10*OFFSET('Efficiency Distributions'!$D$10,MATCH($C93,'Efficiency Distributions'!$C$9:$C$87,0)+RIGHT($E102),0)\n+T$11*OFFSET('Efficiency Distributions'!$E$10,MATCH($C93,'Efficiency Distributions'!$C$9:$C$87,0)+RIGHT($E102),0))\n/SUM(T$10:T$11)","v":0},{"$f":"IF(INDEX(PC_MAPPING,RIGHT($C93,1),MATCH($E$2,'Data by Building Type'!$D$22:$F$22,0))=\"Yes\",1,0)*\n(U$10*OFFSET('Efficiency Distributions'!$D$10,MATCH($C93,'Efficiency Distributions'!$C$9:$C$87,0)+RIGHT($E102),0)\n+U$11*OFFSET('Efficiency Distributions'!$E$10,MATCH($C93,'Efficiency Distributions'!$C$9:$C$87,0)+RIGHT($E102),0))\n/SUM(U$10:U$11)","v":0},{"$f":"IF(INDEX(PC_MAPPING,RIGHT($C93,1),MATCH($E$2,'Data by Building Type'!$D$22:$F$22,0))=\"Yes\",1,0)*\n(V$10*OFFSET('Efficiency Distributions'!$D$10,MATCH($C93,'Efficiency Distributions'!$C$9:$C$87,0)+RIGHT($E102),0)\n+V$11*OFFSET('Efficiency Distributions'!$E$10,MATCH($C93,'Efficiency Distributions'!$C$9:$C$87,0)+RIGHT($E102),0))\n/SUM(V$10:V$11)","v":0},{"$f":"IF(INDEX(PC_MAPPING,RIGHT($C93,1),MATCH($E$2,'Data by Building Type'!$D$22:$F$22,0))=\"Yes\",1,0)*\n(W$10*OFFSET('Efficiency Distributions'!$D$10,MATCH($C93,'Efficiency Distributions'!$C$9:$C$87,0)+RIGHT($E102),0)\n+W$11*OFFSET('Efficiency Distributions'!$E$10,MATCH($C93,'Efficiency Distributions'!$C$9:$C$87,0)+RIGHT($E102),0))\n/SUM(W$10:W$11)","v":0},{"$f":"IF(INDEX(PC_MAPPING,RIGHT($C93,1),MATCH($E$2,'Data by Building Type'!$D$22:$F$22,0))=\"Yes\",1,0)*\n(X$10*OFFSET('Efficiency Distributions'!$D$10,MATCH($C93,'Efficiency Distributions'!$C$9:$C$87,0)+RIGHT($E102),0)\n+X$11*OFFSET('Efficiency Distributions'!$E$10,MATCH($C93,'Efficiency Distributions'!$C$9:$C$87,0)+RIGHT($E102),0))\n/SUM(X$10:X$11)","v":0},{"$f":"IF(INDEX(PC_MAPPING,RIGHT($C93,1),MATCH($E$2,'Data by Building Type'!$D$22:$F$22,0))=\"Yes\",1,0)*\n(Y$10*OFFSET('Efficiency Distributions'!$D$10,MATCH($C93,'Efficiency Distributions'!$C$9:$C$87,0)+RIGHT($E102),0)\n+Y$11*OFFSET('Efficiency Distributions'!$E$10,MATCH($C93,'Efficiency Distributions'!$C$9:$C$87,0)+RIGHT($E102),0))\n/SUM(Y$10:Y$11)","v":0},{"$f":"IF(INDEX(PC_MAPPING,RIGHT($C93,1),MATCH($E$2,'Data by Building Type'!$D$22:$F$22,0))=\"Yes\",1,0)*\n(Z$10*OFFSET('Efficiency Distributions'!$D$10,MATCH($C93,'Efficiency Distributions'!$C$9:$C$87,0)+RIGHT($E102),0)\n+Z$11*OFFSET('Efficiency Distributions'!$E$10,MATCH($C93,'Efficiency Distributions'!$C$9:$C$87,0)+RIGHT($E102),0))\n/SUM(Z$10:Z$11)","v":0},{"$f":"IF(INDEX(PC_MAPPING,RIGHT($C93,1),MATCH($E$2,'Data by Building Type'!$D$22:$F$22,0))=\"Yes\",1,0)*\n(AA$10*OFFSET('Efficiency Distributions'!$D$10,MATCH($C93,'Efficiency Distributions'!$C$9:$C$87,0)+RIGHT($E102),0)\n+AA$11*OFFSET('Efficiency Distributions'!$E$10,MATCH($C93,'Efficiency Distributions'!$C$9:$C$87,0)+RIGHT($E102),0))\n/SUM(AA$10:AA$11)","v":0},{"$f":"IF(INDEX(PC_MAPPING,RIGHT($C93,1),MATCH($E$2,'Data by Building Type'!$D$22:$F$22,0))=\"Yes\",1,0)*\n(AB$10*OFFSET('Efficiency Distributions'!$D$10,MATCH($C93,'Efficiency Distributions'!$C$9:$C$87,0)+RIGHT($E102),0)\n+AB$11*OFFSET('Efficiency Distributions'!$E$10,MATCH($C93,'Efficiency Distributions'!$C$9:$C$87,0)+RIGHT($E102),0))\n/SUM(AB$10:AB$11)","v":0},{"$f":"IF(INDEX(PC_MAPPING,RIGHT($C93,1),MATCH($E$2,'Data by Building Type'!$D$22:$F$22,0))=\"Yes\",1,0)*\n(AC$10*OFFSET('Efficiency Distributions'!$D$10,MATCH($C93,'Efficiency Distributions'!$C$9:$C$87,0)+RIGHT($E102),0)\n+AC$11*OFFSET('Efficiency Distributions'!$E$10,MATCH($C93,'Efficiency Distributions'!$C$9:$C$87,0)+RIGHT($E102),0))\n/SUM(AC$10:AC$11)","v":0},{"$f":"IF(INDEX(PC_MAPPING,RIGHT($C93,1),MATCH($E$2,'Data by Building Type'!$D$22:$F$22,0))=\"Yes\",1,0)*\n(AD$10*OFFSET('Efficiency Distributions'!$D$10,MATCH($C93,'Efficiency Distributions'!$C$9:$C$87,0)+RIGHT($E102),0)\n+AD$11*OFFSET('Efficiency Distributions'!$E$10,MATCH($C93,'Efficiency Distributions'!$C$9:$C$87,0)+RIGHT($E102),0))\n/SUM(AD$10:AD$11)","v":0},{"$f":"IF(INDEX(PC_MAPPING,RIGHT($C93,1),MATCH($E$2,'Data by Building Type'!$D$22:$F$22,0))=\"Yes\",1,0)*\n(AE$10*OFFSET('Efficiency Distributions'!$D$10,MATCH($C93,'Efficiency Distributions'!$C$9:$C$87,0)+RIGHT($E102),0)\n+AE$11*OFFSET('Efficiency Distributions'!$E$10,MATCH($C93,'Efficiency Distributions'!$C$9:$C$87,0)+RIGHT($E102),0))\n/SUM(AE$10:AE$11)","v":0},{"$f":"IF(INDEX(PC_MAPPING,RIGHT($C93,1),MATCH($E$2,'Data by Building Type'!$D$22:$F$22,0))=\"Yes\",1,0)*\n(AF$10*OFFSET('Efficiency Distributions'!$D$10,MATCH($C93,'Efficiency Distributions'!$C$9:$C$87,0)+RIGHT($E102),0)\n+AF$11*OFFSET('Efficiency Distributions'!$E$10,MATCH($C93,'Efficiency Distributions'!$C$9:$C$87,0)+RIGHT($E102),0))\n/SUM(AF$10:AF$11)","v":0},{"$f":"IF(INDEX(PC_MAPPING,RIGHT($C93,1),MATCH($E$2,'Data by Building Type'!$D$22:$F$22,0))=\"Yes\",1,0)*\n(AG$10*OFFSET('Efficiency Distributions'!$D$10,MATCH($C93,'Efficiency Distributions'!$C$9:$C$87,0)+RIGHT($E102),0)\n+AG$11*OFFSET('Efficiency Distributions'!$E$10,MATCH($C93,'Efficiency Distributions'!$C$9:$C$87,0)+RIGHT($E102),0))\n/SUM(AG$10:AG$11)","v":0},{"$f":"IF(INDEX(PC_MAPPING,RIGHT($C93,1),MATCH($E$2,'Data by Building Type'!$D$22:$F$22,0))=\"Yes\",1,0)*\n(AH$10*OFFSET('Efficiency Distributions'!$D$10,MATCH($C93,'Efficiency Distributions'!$C$9:$C$87,0)+RIGHT($E102),0)\n+AH$11*OFFSET('Efficiency Distributions'!$E$10,MATCH($C93,'Efficiency Distributions'!$C$9:$C$87,0)+RIGHT($E102),0))\n/SUM(AH$10:AH$11)","v":0},{"$f":"IF(INDEX(PC_MAPPING,RIGHT($C93,1),MATCH($E$2,'Data by Building Type'!$D$22:$F$22,0))=\"Yes\",1,0)*\n(AI$10*OFFSET('Efficiency Distributions'!$D$10,MATCH($C93,'Efficiency Distributions'!$C$9:$C$87,0)+RIGHT($E102),0)\n+AI$11*OFFSET('Efficiency Distributions'!$E$10,MATCH($C93,'Efficiency Distributions'!$C$9:$C$87,0)+RIGHT($E102),0))\n/SUM(AI$10:AI$11)","v":0},{"$f":"IF(INDEX(PC_MAPPING,RIGHT($C93,1),MATCH($E$2,'Data by Building Type'!$D$22:$F$22,0))=\"Yes\",1,0)*\n(AJ$10*OFFSET('Efficiency Distributions'!$D$10,MATCH($C93,'Efficiency Distributions'!$C$9:$C$87,0)+RIGHT($E102),0)\n+AJ$11*OFFSET('Efficiency Distributions'!$E$10,MATCH($C93,'Efficiency Distributions'!$C$9:$C$87,0)+RIGHT($E102),0))\n/SUM(AJ$10:AJ$11)","v":0},{"$f":"IF(INDEX(PC_MAPPING,RIGHT($C93,1),MATCH($E$2,'Data by Building Type'!$D$22:$F$22,0))=\"Yes\",1,0)*\n(AK$10*OFFSET('Efficiency Distributions'!$D$10,MATCH($C93,'Efficiency Distributions'!$C$9:$C$87,0)+RIGHT($E102),0)\n+AK$11*OFFSET('Efficiency Distributions'!$E$10,MATCH($C93,'Efficiency Distributions'!$C$9:$C$87,0)+RIGHT($E102),0))\n/SUM(AK$10:AK$11)","v":0},{"$f":"IF(INDEX(PC_MAPPING,RIGHT($C93,1),MATCH($E$2,'Data by Building Type'!$D$22:$F$22,0))=\"Yes\",1,0)*\n(AL$10*OFFSET('Efficiency Distributions'!$D$10,MATCH($C93,'Efficiency Distributions'!$C$9:$C$87,0)+RIGHT($E102),0)\n+AL$11*OFFSET('Efficiency Distributions'!$E$10,MATCH($C93,'Efficiency Distributions'!$C$9:$C$87,0)+RIGHT($E102),0))\n/SUM(AL$10:AL$11)","v":0},{"$f":"IF(INDEX(PC_MAPPING,RIGHT($C93,1),MATCH($E$2,'Data by Building Type'!$D$22:$F$22,0))=\"Yes\",1,0)*\n(AM$10*OFFSET('Efficiency Distributions'!$D$10,MATCH($C93,'Efficiency Distributions'!$C$9:$C$87,0)+RIGHT($E102),0)\n+AM$11*OFFSET('Efficiency Distributions'!$E$10,MATCH($C93,'Efficiency Distributions'!$C$9:$C$87,0)+RIGHT($E102),0))\n/SUM(AM$10:AM$11)","v":0},{"$f":"IF(INDEX(PC_MAPPING,RIGHT($C93,1),MATCH($E$2,'Data by Building Type'!$D$22:$F$22,0))=\"Yes\",1,0)*\n(AN$10*OFFSET('Efficiency Distributions'!$D$10,MATCH($C93,'Efficiency Distributions'!$C$9:$C$87,0)+RIGHT($E102),0)\n+AN$11*OFFSET('Efficiency Distributions'!$E$10,MATCH($C93,'Efficiency Distributions'!$C$9:$C$87,0)+RIGHT($E102),0))\n/SUM(AN$10:AN$11)","v":0},{"$f":"IF(INDEX(PC_MAPPING,RIGHT($C93,1),MATCH($E$2,'Data by Building Type'!$D$22:$F$22,0))=\"Yes\",1,0)*\n(AO$10*OFFSET('Efficiency Distributions'!$D$10,MATCH($C93,'Efficiency Distributions'!$C$9:$C$87,0)+RIGHT($E102),0)\n+AO$11*OFFSET('Efficiency Distributions'!$E$10,MATCH($C93,'Efficiency Distributions'!$C$9:$C$87,0)+RIGHT($E102),0))\n/SUM(AO$10:AO$11)","v":0},{"$f":"IF(INDEX(PC_MAPPING,RIGHT($C93,1),MATCH($E$2,'Data by Building Type'!$D$22:$F$22,0))=\"Yes\",1,0)*\n(AP$10*OFFSET('Efficiency Distributions'!$D$10,MATCH($C93,'Efficiency Distributions'!$C$9:$C$87,0)+RIGHT($E102),0)\n+AP$11*OFFSET('Efficiency Distributions'!$E$10,MATCH($C93,'Efficiency Distributions'!$C$9:$C$87,0)+RIGHT($E102),0))\n/SUM(AP$10:AP$11)","v":0},{"$f":"IF(INDEX(PC_MAPPING,RIGHT($C93,1),MATCH($E$2,'Data by Building Type'!$D$22:$F$22,0))=\"Yes\",1,0)*\n(AQ$10*OFFSET('Efficiency Distributions'!$D$10,MATCH($C93,'Efficiency Distributions'!$C$9:$C$87,0)+RIGHT($E102),0)\n+AQ$11*OFFSET('Efficiency Distributions'!$E$10,MATCH($C93,'Efficiency Distributions'!$C$9:$C$87,0)+RIGHT($E102),0))\n/SUM(AQ$10:AQ$11)","v":0},{"$f":"IF(INDEX(PC_MAPPING,RIGHT($C93,1),MATCH($E$2,'Data by Building Type'!$D$22:$F$22,0))=\"Yes\",1,0)*\n(AR$10*OFFSET('Efficiency Distributions'!$D$10,MATCH($C93,'Efficiency Distributions'!$C$9:$C$87,0)+RIGHT($E102),0)\n+AR$11*OFFSET('Efficiency Distributions'!$E$10,MATCH($C93,'Efficiency Distributions'!$C$9:$C$87,0)+RIGHT($E102),0))\n/SUM(AR$10:AR$11)","v":0},{"$f":"IF(INDEX(PC_MAPPING,RIGHT($C93,1),MATCH($E$2,'Data by Building Type'!$D$22:$F$22,0))=\"Yes\",1,0)*\n(AS$10*OFFSET('Efficiency Distributions'!$D$10,MATCH($C93,'Efficiency Distributions'!$C$9:$C$87,0)+RIGHT($E102),0)\n+AS$11*OFFSET('Efficiency Distributions'!$E$10,MATCH($C93,'Efficiency Distributions'!$C$9:$C$87,0)+RIGHT($E102),0))\n/SUM(AS$10:AS$11)","v":0},{"$f":"IF(INDEX(PC_MAPPING,RIGHT($C93,1),MATCH($E$2,'Data by Building Type'!$D$22:$F$22,0))=\"Yes\",1,0)*\n(AT$10*OFFSET('Efficiency Distributions'!$D$10,MATCH($C93,'Efficiency Distributions'!$C$9:$C$87,0)+RIGHT($E102),0)\n+AT$11*OFFSET('Efficiency Distributions'!$E$10,MATCH($C93,'Efficiency Distributions'!$C$9:$C$87,0)+RIGHT($E102),0))\n/SUM(AT$10:AT$11)","v":0},{"$f":"IF(INDEX(PC_MAPPING,RIGHT($C93,1),MATCH($E$2,'Data by Building Type'!$D$22:$F$22,0))=\"Yes\",1,0)*\n(AU$10*OFFSET('Efficiency Distributions'!$D$10,MATCH($C93,'Efficiency Distributions'!$C$9:$C$87,0)+RIGHT($E102),0)\n+AU$11*OFFSET('Efficiency Distributions'!$E$10,MATCH($C93,'Efficiency Distributions'!$C$9:$C$87,0)+RIGHT($E102),0))\n/SUM(AU$10:AU$11)","v":0},{"$f":"IF(INDEX(PC_MAPPING,RIGHT($C93,1),MATCH($E$2,'Data by Building Type'!$D$22:$F$22,0))=\"Yes\",1,0)*\n(AV$10*OFFSET('Efficiency Distributions'!$D$10,MATCH($C93,'Efficiency Distributions'!$C$9:$C$87,0)+RIGHT($E102),0)\n+AV$11*OFFSET('Efficiency Distributions'!$E$10,MATCH($C93,'Efficiency Distributions'!$C$9:$C$87,0)+RIGHT($E102),0))\n/SUM(AV$10:AV$11)","v":0},{"$f":"IF(INDEX(PC_MAPPING,RIGHT($C93,1),MATCH($E$2,'Data by Building Type'!$D$22:$F$22,0))=\"Yes\",1,0)*\n(AW$10*OFFSET('Efficiency Distributions'!$D$10,MATCH($C93,'Efficiency Distributions'!$C$9:$C$87,0)+RIGHT($E102),0)\n+AW$11*OFFSET('Efficiency Distributions'!$E$10,MATCH($C93,'Efficiency Distributions'!$C$9:$C$87,0)+RIGHT($E102),0))\n/SUM(AW$10:AW$11)","v":0},{"$f":"IF(INDEX(PC_MAPPING,RIGHT($C93,1),MATCH($E$2,'Data by Building Type'!$D$22:$F$22,0))=\"Yes\",1,0)*\n(AX$10*OFFSET('Efficiency Distributions'!$D$10,MATCH($C93,'Efficiency Distributions'!$C$9:$C$87,0)+RIGHT($E102),0)\n+AX$11*OFFSET('Efficiency Distributions'!$E$10,MATCH($C93,'Efficiency Distributions'!$C$9:$C$87,0)+RIGHT($E102),0))\n/SUM(AX$10:AX$11)","v":0},{"$f":"IF(INDEX(PC_MAPPING,RIGHT($C93,1),MATCH($E$2,'Data by Building Type'!$D$22:$F$22,0))=\"Yes\",1,0)*\n(AY$10*OFFSET('Efficiency Distributions'!$D$10,MATCH($C93,'Efficiency Distributions'!$C$9:$C$87,0)+RIGHT($E102),0)\n+AY$11*OFFSET('Efficiency Distributions'!$E$10,MATCH($C93,'Efficiency Distributions'!$C$9:$C$87,0)+RIGHT($E102),0))\n/SUM(AY$10:AY$11)","v":0},{"$f":"IF(INDEX(PC_MAPPING,RIGHT($C93,1),MATCH($E$2,'Data by Building Type'!$D$22:$F$22,0))=\"Yes\",1,0)*\n(AZ$10*OFFSET('Efficiency Distributions'!$D$10,MATCH($C93,'Efficiency Distributions'!$C$9:$C$87,0)+RIGHT($E102),0)\n+AZ$11*OFFSET('Efficiency Distributions'!$E$10,MATCH($C93,'Efficiency Distributions'!$C$9:$C$87,0)+RIGHT($E102),0))\n/SUM(AZ$10:AZ$11)","v":0},{"$f":"IF(INDEX(PC_MAPPING,RIGHT($C93,1),MATCH($E$2,'Data by Building Type'!$D$22:$F$22,0))=\"Yes\",1,0)*\n(BA$10*OFFSET('Efficiency Distributions'!$D$10,MATCH($C93,'Efficiency Distributions'!$C$9:$C$87,0)+RIGHT($E102),0)\n+BA$11*OFFSET('Efficiency Distributions'!$E$10,MATCH($C93,'Efficiency Distributions'!$C$9:$C$87,0)+RIGHT($E102),0))\n/SUM(BA$10:BA$11)","v":0},{"$f":"IF(INDEX(PC_MAPPING,RIGHT($C93,1),MATCH($E$2,'Data by Building Type'!$D$22:$F$22,0))=\"Yes\",1,0)*\n(BB$10*OFFSET('Efficiency Distributions'!$D$10,MATCH($C93,'Efficiency Distributions'!$C$9:$C$87,0)+RIGHT($E102),0)\n+BB$11*OFFSET('Efficiency Distributions'!$E$10,MATCH($C93,'Efficiency Distributions'!$C$9:$C$87,0)+RIGHT($E102),0))\n/SUM(BB$10:BB$11)","v":0},{"$f":"IF(INDEX(PC_MAPPING,RIGHT($C93,1),MATCH($E$2,'Data by Building Type'!$D$22:$F$22,0))=\"Yes\",1,0)*\n(BC$10*OFFSET('Efficiency Distributions'!$D$10,MATCH($C93,'Efficiency Distributions'!$C$9:$C$87,0)+RIGHT($E102),0)\n+BC$11*OFFSET('Efficiency Distributions'!$E$10,MATCH($C93,'Efficiency Distributions'!$C$9:$C$87,0)+RIGHT($E102),0))\n/SUM(BC$10:BC$11)","v":0},{"$f":"IF(INDEX(PC_MAPPING,RIGHT($C93,1),MATCH($E$2,'Data by Building Type'!$D$22:$F$22,0))=\"Yes\",1,0)*\n(BD$10*OFFSET('Efficiency Distributions'!$D$10,MATCH($C93,'Efficiency Distributions'!$C$9:$C$87,0)+RIGHT($E102),0)\n+BD$11*OFFSET('Efficiency Distributions'!$E$10,MATCH($C93,'Efficiency Distributions'!$C$9:$C$87,0)+RIGHT($E102),0))\n/SUM(BD$10:BD$11)","v":0},{"$f":"IF(INDEX(PC_MAPPING,RIGHT($C93,1),MATCH($E$2,'Data by Building Type'!$D$22:$F$22,0))=\"Yes\",1,0)*\n(BE$10*OFFSET('Efficiency Distributions'!$D$10,MATCH($C93,'Efficiency Distributions'!$C$9:$C$87,0)+RIGHT($E102),0)\n+BE$11*OFFSET('Efficiency Distributions'!$E$10,MATCH($C93,'Efficiency Distributions'!$C$9:$C$87,0)+RIGHT($E102),0))\n/SUM(BE$10:BE$11)","v":0},{"$f":"IF(INDEX(PC_MAPPING,RIGHT($C93,1),MATCH($E$2,'Data by Building Type'!$D$22:$F$22,0))=\"Yes\",1,0)*\n(BF$10*OFFSET('Efficiency Distributions'!$D$10,MATCH($C93,'Efficiency Distributions'!$C$9:$C$87,0)+RIGHT($E102),0)\n+BF$11*OFFSET('Efficiency Distributions'!$E$10,MATCH($C93,'Efficiency Distributions'!$C$9:$C$87,0)+RIGHT($E102),0))\n/SUM(BF$10:BF$11)","v":0},{"$f":"IF(INDEX(PC_MAPPING,RIGHT($C93,1),MATCH($E$2,'Data by Building Type'!$D$22:$F$22,0))=\"Yes\",1,0)*\n(BG$10*OFFSET('Efficiency Distributions'!$D$10,MATCH($C93,'Efficiency Distributions'!$C$9:$C$87,0)+RIGHT($E102),0)\n+BG$11*OFFSET('Efficiency Distributions'!$E$10,MATCH($C93,'Efficiency Distributions'!$C$9:$C$87,0)+RIGHT($E102),0))\n/SUM(BG$10:BG$11)","v":0}]
[null,null,null,null,"EL6",{"$f":"IF(INDEX(PC_MAPPING,RIGHT($C93,1),MATCH($E$2,'Data by Building Type'!$D$22:$F$22,0))=\"Yes\",1,0)*\n(F$10*OFFSET('Efficiency Distributions'!$D$10,MATCH($C93,'Efficiency Distributions'!$C$9:$C$87,0)+RIGHT($E103),0)\n+F$11*OFFSET('Efficiency Distributions'!$E$10,MATCH($C93,'Efficiency Distributions'!$C$9:$C$87,0)+RIGHT($E103),0))\n/SUM(F$10:F$11)","v":0},{"$f":"IF(INDEX(PC_MAPPING,RIGHT($C93,1),MATCH($E$2,'Data by Building Type'!$D$22:$F$22,0))=\"Yes\",1,0)*\n(G$10*OFFSET('Efficiency Distributions'!$D$10,MATCH($C93,'Efficiency Distributions'!$C$9:$C$87,0)+RIGHT($E103),0)\n+G$11*OFFSET('Efficiency Distributions'!$E$10,MATCH($C93,'Efficiency Distributions'!$C$9:$C$87,0)+RIGHT($E103),0))\n/SUM(G$10:G$11)","v":0},{"$f":"IF(INDEX(PC_MAPPING,RIGHT($C93,1),MATCH($E$2,'Data by Building Type'!$D$22:$F$22,0))=\"Yes\",1,0)*\n(H$10*OFFSET('Efficiency Distributions'!$D$10,MATCH($C93,'Efficiency Distributions'!$C$9:$C$87,0)+RIGHT($E103),0)\n+H$11*OFFSET('Efficiency Distributions'!$E$10,MATCH($C93,'Efficiency Distributions'!$C$9:$C$87,0)+RIGHT($E103),0))\n/SUM(H$10:H$11)","v":0},{"$f":"IF(INDEX(PC_MAPPING,RIGHT($C93,1),MATCH($E$2,'Data by Building Type'!$D$22:$F$22,0))=\"Yes\",1,0)*\n(I$10*OFFSET('Efficiency Distributions'!$D$10,MATCH($C93,'Efficiency Distributions'!$C$9:$C$87,0)+RIGHT($E103),0)\n+I$11*OFFSET('Efficiency Distributions'!$E$10,MATCH($C93,'Efficiency Distributions'!$C$9:$C$87,0)+RIGHT($E103),0))\n/SUM(I$10:I$11)","v":0},{"$f":"IF(INDEX(PC_MAPPING,RIGHT($C93,1),MATCH($E$2,'Data by Building Type'!$D$22:$F$22,0))=\"Yes\",1,0)*\n(J$10*OFFSET('Efficiency Distributions'!$D$10,MATCH($C93,'Efficiency Distributions'!$C$9:$C$87,0)+RIGHT($E103),0)\n+J$11*OFFSET('Efficiency Distributions'!$E$10,MATCH($C93,'Efficiency Distributions'!$C$9:$C$87,0)+RIGHT($E103),0))\n/SUM(J$10:J$11)","v":0},{"$f":"IF(INDEX(PC_MAPPING,RIGHT($C93,1),MATCH($E$2,'Data by Building Type'!$D$22:$F$22,0))=\"Yes\",1,0)*\n(K$10*OFFSET('Efficiency Distributions'!$D$10,MATCH($C93,'Efficiency Distributions'!$C$9:$C$87,0)+RIGHT($E103),0)\n+K$11*OFFSET('Efficiency Distributions'!$E$10,MATCH($C93,'Efficiency Distributions'!$C$9:$C$87,0)+RIGHT($E103),0))\n/SUM(K$10:K$11)","v":0},{"$f":"IF(INDEX(PC_MAPPING,RIGHT($C93,1),MATCH($E$2,'Data by Building Type'!$D$22:$F$22,0))=\"Yes\",1,0)*\n(L$10*OFFSET('Efficiency Distributions'!$D$10,MATCH($C93,'Efficiency Distributions'!$C$9:$C$87,0)+RIGHT($E103),0)\n+L$11*OFFSET('Efficiency Distributions'!$E$10,MATCH($C93,'Efficiency Distributions'!$C$9:$C$87,0)+RIGHT($E103),0))\n/SUM(L$10:L$11)","v":0},{"$f":"IF(INDEX(PC_MAPPING,RIGHT($C93,1),MATCH($E$2,'Data by Building Type'!$D$22:$F$22,0))=\"Yes\",1,0)*\n(M$10*OFFSET('Efficiency Distributions'!$D$10,MATCH($C93,'Efficiency Distributions'!$C$9:$C$87,0)+RIGHT($E103),0)\n+M$11*OFFSET('Efficiency Distributions'!$E$10,MATCH($C93,'Efficiency Distributions'!$C$9:$C$87,0)+RIGHT($E103),0))\n/SUM(M$10:M$11)","v":0},{"$f":"IF(INDEX(PC_MAPPING,RIGHT($C93,1),MATCH($E$2,'Data by Building Type'!$D$22:$F$22,0))=\"Yes\",1,0)*\n(N$10*OFFSET('Efficiency Distributions'!$D$10,MATCH($C93,'Efficiency Distributions'!$C$9:$C$87,0)+RIGHT($E103),0)\n+N$11*OFFSET('Efficiency Distributions'!$E$10,MATCH($C93,'Efficiency Distributions'!$C$9:$C$87,0)+RIGHT($E103),0))\n/SUM(N$10:N$11)","v":0},{"$f":"IF(INDEX(PC_MAPPING,RIGHT($C93,1),MATCH($E$2,'Data by Building Type'!$D$22:$F$22,0))=\"Yes\",1,0)*\n(O$10*OFFSET('Efficiency Distributions'!$D$10,MATCH($C93,'Efficiency Distributions'!$C$9:$C$87,0)+RIGHT($E103),0)\n+O$11*OFFSET('Efficiency Distributions'!$E$10,MATCH($C93,'Efficiency Distributions'!$C$9:$C$87,0)+RIGHT($E103),0))\n/SUM(O$10:O$11)","v":0},{"$f":"IF(INDEX(PC_MAPPING,RIGHT($C93,1),MATCH($E$2,'Data by Building Type'!$D$22:$F$22,0))=\"Yes\",1,0)*\n(P$10*OFFSET('Efficiency Distributions'!$D$10,MATCH($C93,'Efficiency Distributions'!$C$9:$C$87,0)+RIGHT($E103),0)\n+P$11*OFFSET('Efficiency Distributions'!$E$10,MATCH($C93,'Efficiency Distributions'!$C$9:$C$87,0)+RIGHT($E103),0))\n/SUM(P$10:P$11)","v":0},{"$f":"IF(INDEX(PC_MAPPING,RIGHT($C93,1),MATCH($E$2,'Data by Building Type'!$D$22:$F$22,0))=\"Yes\",1,0)*\n(Q$10*OFFSET('Efficiency Distributions'!$D$10,MATCH($C93,'Efficiency Distributions'!$C$9:$C$87,0)+RIGHT($E103),0)\n+Q$11*OFFSET('Efficiency Distributions'!$E$10,MATCH($C93,'Efficiency Distributions'!$C$9:$C$87,0)+RIGHT($E103),0))\n/SUM(Q$10:Q$11)","v":0},{"$f":"IF(INDEX(PC_MAPPING,RIGHT($C93,1),MATCH($E$2,'Data by Building Type'!$D$22:$F$22,0))=\"Yes\",1,0)*\n(R$10*OFFSET('Efficiency Distributions'!$D$10,MATCH($C93,'Efficiency Distributions'!$C$9:$C$87,0)+RIGHT($E103),0)\n+R$11*OFFSET('Efficiency Distributions'!$E$10,MATCH($C93,'Efficiency Distributions'!$C$9:$C$87,0)+RIGHT($E103),0))\n/SUM(R$10:R$11)","v":0},{"$f":"IF(INDEX(PC_MAPPING,RIGHT($C93,1),MATCH($E$2,'Data by Building Type'!$D$22:$F$22,0))=\"Yes\",1,0)*\n(S$10*OFFSET('Efficiency Distributions'!$D$10,MATCH($C93,'Efficiency Distributions'!$C$9:$C$87,0)+RIGHT($E103),0)\n+S$11*OFFSET('Efficiency Distributions'!$E$10,MATCH($C93,'Efficiency Distributions'!$C$9:$C$87,0)+RIGHT($E103),0))\n/SUM(S$10:S$11)","v":0},{"$f":"IF(INDEX(PC_MAPPING,RIGHT($C93,1),MATCH($E$2,'Data by Building Type'!$D$22:$F$22,0))=\"Yes\",1,0)*\n(T$10*OFFSET('Efficiency Distributions'!$D$10,MATCH($C93,'Efficiency Distributions'!$C$9:$C$87,0)+RIGHT($E103),0)\n+T$11*OFFSET('Efficiency Distributions'!$E$10,MATCH($C93,'Efficiency Distributions'!$C$9:$C$87,0)+RIGHT($E103),0))\n/SUM(T$10:T$11)","v":0},{"$f":"IF(INDEX(PC_MAPPING,RIGHT($C93,1),MATCH($E$2,'Data by Building Type'!$D$22:$F$22,0))=\"Yes\",1,0)*\n(U$10*OFFSET('Efficiency Distributions'!$D$10,MATCH($C93,'Efficiency Distributions'!$C$9:$C$87,0)+RIGHT($E103),0)\n+U$11*OFFSET('Efficiency Distributions'!$E$10,MATCH($C93,'Efficiency Distributions'!$C$9:$C$87,0)+RIGHT($E103),0))\n/SUM(U$10:U$11)","v":0},{"$f":"IF(INDEX(PC_MAPPING,RIGHT($C93,1),MATCH($E$2,'Data by Building Type'!$D$22:$F$22,0))=\"Yes\",1,0)*\n(V$10*OFFSET('Efficiency Distributions'!$D$10,MATCH($C93,'Efficiency Distributions'!$C$9:$C$87,0)+RIGHT($E103),0)\n+V$11*OFFSET('Efficiency Distributions'!$E$10,MATCH($C93,'Efficiency Distributions'!$C$9:$C$87,0)+RIGHT($E103),0))\n/SUM(V$10:V$11)","v":0},{"$f":"IF(INDEX(PC_MAPPING,RIGHT($C93,1),MATCH($E$2,'Data by Building Type'!$D$22:$F$22,0))=\"Yes\",1,0)*\n(W$10*OFFSET('Efficiency Distributions'!$D$10,MATCH($C93,'Efficiency Distributions'!$C$9:$C$87,0)+RIGHT($E103),0)\n+W$11*OFFSET('Efficiency Distributions'!$E$10,MATCH($C93,'Efficiency Distributions'!$C$9:$C$87,0)+RIGHT($E103),0))\n/SUM(W$10:W$11)","v":0},{"$f":"IF(INDEX(PC_MAPPING,RIGHT($C93,1),MATCH($E$2,'Data by Building Type'!$D$22:$F$22,0))=\"Yes\",1,0)*\n(X$10*OFFSET('Efficiency Distributions'!$D$10,MATCH($C93,'Efficiency Distributions'!$C$9:$C$87,0)+RIGHT($E103),0)\n+X$11*OFFSET('Efficiency Distributions'!$E$10,MATCH($C93,'Efficiency Distributions'!$C$9:$C$87,0)+RIGHT($E103),0))\n/SUM(X$10:X$11)","v":0},{"$f":"IF(INDEX(PC_MAPPING,RIGHT($C93,1),MATCH($E$2,'Data by Building Type'!$D$22:$F$22,0))=\"Yes\",1,0)*\n(Y$10*OFFSET('Efficiency Distributions'!$D$10,MATCH($C93,'Efficiency Distributions'!$C$9:$C$87,0)+RIGHT($E103),0)\n+Y$11*OFFSET('Efficiency Distributions'!$E$10,MATCH($C93,'Efficiency Distributions'!$C$9:$C$87,0)+RIGHT($E103),0))\n/SUM(Y$10:Y$11)","v":0},{"$f":"IF(INDEX(PC_MAPPING,RIGHT($C93,1),MATCH($E$2,'Data by Building Type'!$D$22:$F$22,0))=\"Yes\",1,0)*\n(Z$10*OFFSET('Efficiency Distributions'!$D$10,MATCH($C93,'Efficiency Distributions'!$C$9:$C$87,0)+RIGHT($E103),0)\n+Z$11*OFFSET('Efficiency Distributions'!$E$10,MATCH($C93,'Efficiency Distributions'!$C$9:$C$87,0)+RIGHT($E103),0))\n/SUM(Z$10:Z$11)","v":0},{"$f":"IF(INDEX(PC_MAPPING,RIGHT($C93,1),MATCH($E$2,'Data by Building Type'!$D$22:$F$22,0))=\"Yes\",1,0)*\n(AA$10*OFFSET('Efficiency Distributions'!$D$10,MATCH($C93,'Efficiency Distributions'!$C$9:$C$87,0)+RIGHT($E103),0)\n+AA$11*OFFSET('Efficiency Distributions'!$E$10,MATCH($C93,'Efficiency Distributions'!$C$9:$C$87,0)+RIGHT($E103),0))\n/SUM(AA$10:AA$11)","v":0},{"$f":"IF(INDEX(PC_MAPPING,RIGHT($C93,1),MATCH($E$2,'Data by Building Type'!$D$22:$F$22,0))=\"Yes\",1,0)*\n(AB$10*OFFSET('Efficiency Distributions'!$D$10,MATCH($C93,'Efficiency Distributions'!$C$9:$C$87,0)+RIGHT($E103),0)\n+AB$11*OFFSET('Efficiency Distributions'!$E$10,MATCH($C93,'Efficiency Distributions'!$C$9:$C$87,0)+RIGHT($E103),0))\n/SUM(AB$10:AB$11)","v":0},{"$f":"IF(INDEX(PC_MAPPING,RIGHT($C93,1),MATCH($E$2,'Data by Building Type'!$D$22:$F$22,0))=\"Yes\",1,0)*\n(AC$10*OFFSET('Efficiency Distributions'!$D$10,MATCH($C93,'Efficiency Distributions'!$C$9:$C$87,0)+RIGHT($E103),0)\n+AC$11*OFFSET('Efficiency Distributions'!$E$10,MATCH($C93,'Efficiency Distributions'!$C$9:$C$87,0)+RIGHT($E103),0))\n/SUM(AC$10:AC$11)","v":0},{"$f":"IF(INDEX(PC_MAPPING,RIGHT($C93,1),MATCH($E$2,'Data by Building Type'!$D$22:$F$22,0))=\"Yes\",1,0)*\n(AD$10*OFFSET('Efficiency Distributions'!$D$10,MATCH($C93,'Efficiency Distributions'!$C$9:$C$87,0)+RIGHT($E103),0)\n+AD$11*OFFSET('Efficiency Distributions'!$E$10,MATCH($C93,'Efficiency Distributions'!$C$9:$C$87,0)+RIGHT($E103),0))\n/SUM(AD$10:AD$11)","v":0},{"$f":"IF(INDEX(PC_MAPPING,RIGHT($C93,1),MATCH($E$2,'Data by Building Type'!$D$22:$F$22,0))=\"Yes\",1,0)*\n(AE$10*OFFSET('Efficiency Distributions'!$D$10,MATCH($C93,'Efficiency Distributions'!$C$9:$C$87,0)+RIGHT($E103),0)\n+AE$11*OFFSET('Efficiency Distributions'!$E$10,MATCH($C93,'Efficiency Distributions'!$C$9:$C$87,0)+RIGHT($E103),0))\n/SUM(AE$10:AE$11)","v":0},{"$f":"IF(INDEX(PC_MAPPING,RIGHT($C93,1),MATCH($E$2,'Data by Building Type'!$D$22:$F$22,0))=\"Yes\",1,0)*\n(AF$10*OFFSET('Efficiency Distributions'!$D$10,MATCH($C93,'Efficiency Distributions'!$C$9:$C$87,0)+RIGHT($E103),0)\n+AF$11*OFFSET('Efficiency Distributions'!$E$10,MATCH($C93,'Efficiency Distributions'!$C$9:$C$87,0)+RIGHT($E103),0))\n/SUM(AF$10:AF$11)","v":0},{"$f":"IF(INDEX(PC_MAPPING,RIGHT($C93,1),MATCH($E$2,'Data by Building Type'!$D$22:$F$22,0))=\"Yes\",1,0)*\n(AG$10*OFFSET('Efficiency Distributions'!$D$10,MATCH($C93,'Efficiency Distributions'!$C$9:$C$87,0)+RIGHT($E103),0)\n+AG$11*OFFSET('Efficiency Distributions'!$E$10,MATCH($C93,'Efficiency Distributions'!$C$9:$C$87,0)+RIGHT($E103),0))\n/SUM(AG$10:AG$11)","v":0},{"$f":"IF(INDEX(PC_MAPPING,RIGHT($C93,1),MATCH($E$2,'Data by Building Type'!$D$22:$F$22,0))=\"Yes\",1,0)*\n(AH$10*OFFSET('Efficiency Distributions'!$D$10,MATCH($C93,'Efficiency Distributions'!$C$9:$C$87,0)+RIGHT($E103),0)\n+AH$11*OFFSET('Efficiency Distributions'!$E$10,MATCH($C93,'Efficiency Distributions'!$C$9:$C$87,0)+RIGHT($E103),0))\n/SUM(AH$10:AH$11)","v":0},{"$f":"IF(INDEX(PC_MAPPING,RIGHT($C93,1),MATCH($E$2,'Data by Building Type'!$D$22:$F$22,0))=\"Yes\",1,0)*\n(AI$10*OFFSET('Efficiency Distributions'!$D$10,MATCH($C93,'Efficiency Distributions'!$C$9:$C$87,0)+RIGHT($E103),0)\n+AI$11*OFFSET('Efficiency Distributions'!$E$10,MATCH($C93,'Efficiency Distributions'!$C$9:$C$87,0)+RIGHT($E103),0))\n/SUM(AI$10:AI$11)","v":0},{"$f":"IF(INDEX(PC_MAPPING,RIGHT($C93,1),MATCH($E$2,'Data by Building Type'!$D$22:$F$22,0))=\"Yes\",1,0)*\n(AJ$10*OFFSET('Efficiency Distributions'!$D$10,MATCH($C93,'Efficiency Distributions'!$C$9:$C$87,0)+RIGHT($E103),0)\n+AJ$11*OFFSET('Efficiency Distributions'!$E$10,MATCH($C93,'Efficiency Distributions'!$C$9:$C$87,0)+RIGHT($E103),0))\n/SUM(AJ$10:AJ$11)","v":0},{"$f":"IF(INDEX(PC_MAPPING,RIGHT($C93,1),MATCH($E$2,'Data by Building Type'!$D$22:$F$22,0))=\"Yes\",1,0)*\n(AK$10*OFFSET('Efficiency Distributions'!$D$10,MATCH($C93,'Efficiency Distributions'!$C$9:$C$87,0)+RIGHT($E103),0)\n+AK$11*OFFSET('Efficiency Distributions'!$E$10,MATCH($C93,'Efficiency Distributions'!$C$9:$C$87,0)+RIGHT($E103),0))\n/SUM(AK$10:AK$11)","v":0},{"$f":"IF(INDEX(PC_MAPPING,RIGHT($C93,1),MATCH($E$2,'Data by Building Type'!$D$22:$F$22,0))=\"Yes\",1,0)*\n(AL$10*OFFSET('Efficiency Distributions'!$D$10,MATCH($C93,'Efficiency Distributions'!$C$9:$C$87,0)+RIGHT($E103),0)\n+AL$11*OFFSET('Efficiency Distributions'!$E$10,MATCH($C93,'Efficiency Distributions'!$C$9:$C$87,0)+RIGHT($E103),0))\n/SUM(AL$10:AL$11)","v":0},{"$f":"IF(INDEX(PC_MAPPING,RIGHT($C93,1),MATCH($E$2,'Data by Building Type'!$D$22:$F$22,0))=\"Yes\",1,0)*\n(AM$10*OFFSET('Efficiency Distributions'!$D$10,MATCH($C93,'Efficiency Distributions'!$C$9:$C$87,0)+RIGHT($E103),0)\n+AM$11*OFFSET('Efficiency Distributions'!$E$10,MATCH($C93,'Efficiency Distributions'!$C$9:$C$87,0)+RIGHT($E103),0))\n/SUM(AM$10:AM$11)","v":0},{"$f":"IF(INDEX(PC_MAPPING,RIGHT($C93,1),MATCH($E$2,'Data by Building Type'!$D$22:$F$22,0))=\"Yes\",1,0)*\n(AN$10*OFFSET('Efficiency Distributions'!$D$10,MATCH($C93,'Efficiency Distributions'!$C$9:$C$87,0)+RIGHT($E103),0)\n+AN$11*OFFSET('Efficiency Distributions'!$E$10,MATCH($C93,'Efficiency Distributions'!$C$9:$C$87,0)+RIGHT($E103),0))\n/SUM(AN$10:AN$11)","v":0},{"$f":"IF(INDEX(PC_MAPPING,RIGHT($C93,1),MATCH($E$2,'Data by Building Type'!$D$22:$F$22,0))=\"Yes\",1,0)*\n(AO$10*OFFSET('Efficiency Distributions'!$D$10,MATCH($C93,'Efficiency Distributions'!$C$9:$C$87,0)+RIGHT($E103),0)\n+AO$11*OFFSET('Efficiency Distributions'!$E$10,MATCH($C93,'Efficiency Distributions'!$C$9:$C$87,0)+RIGHT($E103),0))\n/SUM(AO$10:AO$11)","v":0},{"$f":"IF(INDEX(PC_MAPPING,RIGHT($C93,1),MATCH($E$2,'Data by Building Type'!$D$22:$F$22,0))=\"Yes\",1,0)*\n(AP$10*OFFSET('Efficiency Distributions'!$D$10,MATCH($C93,'Efficiency Distributions'!$C$9:$C$87,0)+RIGHT($E103),0)\n+AP$11*OFFSET('Efficiency Distributions'!$E$10,MATCH($C93,'Efficiency Distributions'!$C$9:$C$87,0)+RIGHT($E103),0))\n/SUM(AP$10:AP$11)","v":0},{"$f":"IF(INDEX(PC_MAPPING,RIGHT($C93,1),MATCH($E$2,'Data by Building Type'!$D$22:$F$22,0))=\"Yes\",1,0)*\n(AQ$10*OFFSET('Efficiency Distributions'!$D$10,MATCH($C93,'Efficiency Distributions'!$C$9:$C$87,0)+RIGHT($E103),0)\n+AQ$11*OFFSET('Efficiency Distributions'!$E$10,MATCH($C93,'Efficiency Distributions'!$C$9:$C$87,0)+RIGHT($E103),0))\n/SUM(AQ$10:AQ$11)","v":0},{"$f":"IF(INDEX(PC_MAPPING,RIGHT($C93,1),MATCH($E$2,'Data by Building Type'!$D$22:$F$22,0))=\"Yes\",1,0)*\n(AR$10*OFFSET('Efficiency Distributions'!$D$10,MATCH($C93,'Efficiency Distributions'!$C$9:$C$87,0)+RIGHT($E103),0)\n+AR$11*OFFSET('Efficiency Distributions'!$E$10,MATCH($C93,'Efficiency Distributions'!$C$9:$C$87,0)+RIGHT($E103),0))\n/SUM(AR$10:AR$11)","v":0},{"$f":"IF(INDEX(PC_MAPPING,RIGHT($C93,1),MATCH($E$2,'Data by Building Type'!$D$22:$F$22,0))=\"Yes\",1,0)*\n(AS$10*OFFSET('Efficiency Distributions'!$D$10,MATCH($C93,'Efficiency Distributions'!$C$9:$C$87,0)+RIGHT($E103),0)\n+AS$11*OFFSET('Efficiency Distributions'!$E$10,MATCH($C93,'Efficiency Distributions'!$C$9:$C$87,0)+RIGHT($E103),0))\n/SUM(AS$10:AS$11)","v":0},{"$f":"IF(INDEX(PC_MAPPING,RIGHT($C93,1),MATCH($E$2,'Data by Building Type'!$D$22:$F$22,0))=\"Yes\",1,0)*\n(AT$10*OFFSET('Efficiency Distributions'!$D$10,MATCH($C93,'Efficiency Distributions'!$C$9:$C$87,0)+RIGHT($E103),0)\n+AT$11*OFFSET('Efficiency Distributions'!$E$10,MATCH($C93,'Efficiency Distributions'!$C$9:$C$87,0)+RIGHT($E103),0))\n/SUM(AT$10:AT$11)","v":0},{"$f":"IF(INDEX(PC_MAPPING,RIGHT($C93,1),MATCH($E$2,'Data by Building Type'!$D$22:$F$22,0))=\"Yes\",1,0)*\n(AU$10*OFFSET('Efficiency Distributions'!$D$10,MATCH($C93,'Efficiency Distributions'!$C$9:$C$87,0)+RIGHT($E103),0)\n+AU$11*OFFSET('Efficiency Distributions'!$E$10,MATCH($C93,'Efficiency Distributions'!$C$9:$C$87,0)+RIGHT($E103),0))\n/SUM(AU$10:AU$11)","v":0},{"$f":"IF(INDEX(PC_MAPPING,RIGHT($C93,1),MATCH($E$2,'Data by Building Type'!$D$22:$F$22,0))=\"Yes\",1,0)*\n(AV$10*OFFSET('Efficiency Distributions'!$D$10,MATCH($C93,'Efficiency Distributions'!$C$9:$C$87,0)+RIGHT($E103),0)\n+AV$11*OFFSET('Efficiency Distributions'!$E$10,MATCH($C93,'Efficiency Distributions'!$C$9:$C$87,0)+RIGHT($E103),0))\n/SUM(AV$10:AV$11)","v":0},{"$f":"IF(INDEX(PC_MAPPING,RIGHT($C93,1),MATCH($E$2,'Data by Building Type'!$D$22:$F$22,0))=\"Yes\",1,0)*\n(AW$10*OFFSET('Efficiency Distributions'!$D$10,MATCH($C93,'Efficiency Distributions'!$C$9:$C$87,0)+RIGHT($E103),0)\n+AW$11*OFFSET('Efficiency Distributions'!$E$10,MATCH($C93,'Efficiency Distributions'!$C$9:$C$87,0)+RIGHT($E103),0))\n/SUM(AW$10:AW$11)","v":0},{"$f":"IF(INDEX(PC_MAPPING,RIGHT($C93,1),MATCH($E$2,'Data by Building Type'!$D$22:$F$22,0))=\"Yes\",1,0)*\n(AX$10*OFFSET('Efficiency Distributions'!$D$10,MATCH($C93,'Efficiency Distributions'!$C$9:$C$87,0)+RIGHT($E103),0)\n+AX$11*OFFSET('Efficiency Distributions'!$E$10,MATCH($C93,'Efficiency Distributions'!$C$9:$C$87,0)+RIGHT($E103),0))\n/SUM(AX$10:AX$11)","v":0},{"$f":"IF(INDEX(PC_MAPPING,RIGHT($C93,1),MATCH($E$2,'Data by Building Type'!$D$22:$F$22,0))=\"Yes\",1,0)*\n(AY$10*OFFSET('Efficiency Distributions'!$D$10,MATCH($C93,'Efficiency Distributions'!$C$9:$C$87,0)+RIGHT($E103),0)\n+AY$11*OFFSET('Efficiency Distributions'!$E$10,MATCH($C93,'Efficiency Distributions'!$C$9:$C$87,0)+RIGHT($E103),0))\n/SUM(AY$10:AY$11)","v":0},{"$f":"IF(INDEX(PC_MAPPING,RIGHT($C93,1),MATCH($E$2,'Data by Building Type'!$D$22:$F$22,0))=\"Yes\",1,0)*\n(AZ$10*OFFSET('Efficiency Distributions'!$D$10,MATCH($C93,'Efficiency Distributions'!$C$9:$C$87,0)+RIGHT($E103),0)\n+AZ$11*OFFSET('Efficiency Distributions'!$E$10,MATCH($C93,'Efficiency Distributions'!$C$9:$C$87,0)+RIGHT($E103),0))\n/SUM(AZ$10:AZ$11)","v":0},{"$f":"IF(INDEX(PC_MAPPING,RIGHT($C93,1),MATCH($E$2,'Data by Building Type'!$D$22:$F$22,0))=\"Yes\",1,0)*\n(BA$10*OFFSET('Efficiency Distributions'!$D$10,MATCH($C93,'Efficiency Distributions'!$C$9:$C$87,0)+RIGHT($E103),0)\n+BA$11*OFFSET('Efficiency Distributions'!$E$10,MATCH($C93,'Efficiency Distributions'!$C$9:$C$87,0)+RIGHT($E103),0))\n/SUM(BA$10:BA$11)","v":0},{"$f":"IF(INDEX(PC_MAPPING,RIGHT($C93,1),MATCH($E$2,'Data by Building Type'!$D$22:$F$22,0))=\"Yes\",1,0)*\n(BB$10*OFFSET('Efficiency Distributions'!$D$10,MATCH($C93,'Efficiency Distributions'!$C$9:$C$87,0)+RIGHT($E103),0)\n+BB$11*OFFSET('Efficiency Distributions'!$E$10,MATCH($C93,'Efficiency Distributions'!$C$9:$C$87,0)+RIGHT($E103),0))\n/SUM(BB$10:BB$11)","v":0},{"$f":"IF(INDEX(PC_MAPPING,RIGHT($C93,1),MATCH($E$2,'Data by Building Type'!$D$22:$F$22,0))=\"Yes\",1,0)*\n(BC$10*OFFSET('Efficiency Distributions'!$D$10,MATCH($C93,'Efficiency Distributions'!$C$9:$C$87,0)+RIGHT($E103),0)\n+BC$11*OFFSET('Efficiency Distributions'!$E$10,MATCH($C93,'Efficiency Distributions'!$C$9:$C$87,0)+RIGHT($E103),0))\n/SUM(BC$10:BC$11)","v":0},{"$f":"IF(INDEX(PC_MAPPING,RIGHT($C93,1),MATCH($E$2,'Data by Building Type'!$D$22:$F$22,0))=\"Yes\",1,0)*\n(BD$10*OFFSET('Efficiency Distributions'!$D$10,MATCH($C93,'Efficiency Distributions'!$C$9:$C$87,0)+RIGHT($E103),0)\n+BD$11*OFFSET('Efficiency Distributions'!$E$10,MATCH($C93,'Efficiency Distributions'!$C$9:$C$87,0)+RIGHT($E103),0))\n/SUM(BD$10:BD$11)","v":0},{"$f":"IF(INDEX(PC_MAPPING,RIGHT($C93,1),MATCH($E$2,'Data by Building Type'!$D$22:$F$22,0))=\"Yes\",1,0)*\n(BE$10*OFFSET('Efficiency Distributions'!$D$10,MATCH($C93,'Efficiency Distributions'!$C$9:$C$87,0)+RIGHT($E103),0)\n+BE$11*OFFSET('Efficiency Distributions'!$E$10,MATCH($C93,'Efficiency Distributions'!$C$9:$C$87,0)+RIGHT($E103),0))\n/SUM(BE$10:BE$11)","v":0},{"$f":"IF(INDEX(PC_MAPPING,RIGHT($C93,1),MATCH($E$2,'Data by Building Type'!$D$22:$F$22,0))=\"Yes\",1,0)*\n(BF$10*OFFSET('Efficiency Distributions'!$D$10,MATCH($C93,'Efficiency Distributions'!$C$9:$C$87,0)+RIGHT($E103),0)\n+BF$11*OFFSET('Efficiency Distributions'!$E$10,MATCH($C93,'Efficiency Distributions'!$C$9:$C$87,0)+RIGHT($E103),0))\n/SUM(BF$10:BF$11)","v":0},{"$f":"IF(INDEX(PC_MAPPING,RIGHT($C93,1),MATCH($E$2,'Data by Building Type'!$D$22:$F$22,0))=\"Yes\",1,0)*\n(BG$10*OFFSET('Efficiency Distributions'!$D$10,MATCH($C93,'Efficiency Distributions'!$C$9:$C$87,0)+RIGHT($E103),0)\n+BG$11*OFFSET('Efficiency Distributions'!$E$10,MATCH($C93,'Efficiency Distributions'!$C$9:$C$87,0)+RIGHT($E103),0))\n/SUM(BG$10:BG$11)","v":0}]
[null,null,null,null,"TOTAL",{"$f":"SUM(F97:F103)","v":0},0,0,{"$f":"SUM(I97:I103)","v":0},0,0,0,0,0,0,0,0,0,0,0,0,0,0,0,0,0,0,0,0,0,0,0,0,0,0,0,0,0,0,0,0,0,0,0,0,0,0,0,0,0,0,0,0,0,0,0,0,0,0]
[]
[null,null,null,"POST-Case"]
[null,null,null,null,"Efficiency Level",1981,{"$f":"F107+1","v":1982},{"$f":"G107+1","v":1983},{"$f":"H107+1","v":1984},{"$f":"I107+1","v":1985},{"$f":"J107+1","v":1986},{"$f":"K107+1","v":1987},{"$f":"L107+1","v":1988},{"$f":"M107+1","v":1989},{"$f":"N107+1","v":1990},{"$f":"O107+1","v":1991},{"$f":"P107+1","v":1992},{"$f":"Q107+1","v":1993},{"$f":"R107+1","v":1994},1995,1996,1997,1998,1999,2000,2001,2002,2003,2004,2005,2006,2007,2008,2009,2010,2011,2012,2013,2014,2015,2016,2017,2018,2019,2020,2021,2022,2023,2024,2025,2026,2027,2028,2029,2030,2031,2032,2033,2034]
[null,null,null,null,"EL0",{"$f":"IF(F$29<STANDARD_YEAR,F97,\nIF(RIGHT($E108,1)>RIGHT(INDEX(STANDARD_LEVELS,1,MID($C93,4,1)),1),F97,\nIF(RIGHT($E108,1)<RIGHT(INDEX(STANDARD_LEVELS,1,MID($C93,4,1)),1),0,\nIF(RIGHT($E108,1)=RIGHT(INDEX(STANDARD_LEVELS,1,MID($C93,4,1)),1),SUM(OFFSET(F97,-(RIGHT($E108,1)),0,RIGHT($E108,1)+1,1)),\"ERROR\"))))","v":0},0,0,{"$f":"IF(I$29<STANDARD_YEAR,I97,\nIF(RIGHT($E108,1)>RIGHT(INDEX(STANDARD_LEVELS,1,MID($C93,4,1)),1),I97,\nIF(RIGHT($E108,1)<RIGHT(INDEX(STANDARD_LEVELS,1,MID($C93,4,1)),1),0,\nIF(RIGHT($E108,1)=RIGHT(INDEX(STANDARD_LEVELS,1,MID($C93,4,1)),1),SUM(OFFSET(I97,-(RIGHT($E108,1)),0,RIGHT($E108,1)+1,1)),\"ERROR\"))))","v":0},0,0,0,0,0,0,0,0,0,0,0,0,0,0,0,0,0,0,0,0,0,0,0,0,0,0,0,0,0,0,0,0,0,0,0,0,0,0,0,0,0,0,0,0,0,0,0,0,0,0]
[null,null,null,null,"EL1",{"$f":"IF(F$29<STANDARD_YEAR,F98,\nIF(RIGHT($E109,1)>RIGHT(INDEX(STANDARD_LEVELS,1,MID($C93,4,1)),1),F98,\nIF(RIGHT($E109,1)<RIGHT(INDEX(STANDARD_LEVELS,1,MID($C93,4,1)),1),0,\nIF(RIGHT($E109,1)=RIGHT(INDEX(STANDARD_LEVELS,1,MID($C93,4,1)),1),SUM(OFFSET(F98,-(RIGHT($E109,1)),0,RIGHT($E109,1)+1,1)),\"ERROR\"))))","v":0},0,0,{"$f":"IF(I$29<STANDARD_YEAR,I98,\nIF(RIGHT($E109,1)>RIGHT(INDEX(STANDARD_LEVELS,1,MID($C93,4,1)),1),I98,\nIF(RIGHT($E109,1)<RIGHT(INDEX(STANDARD_LEVELS,1,MID($C93,4,1)),1),0,\nIF(RIGHT($E109,1)=RIGHT(INDEX(STANDARD_LEVELS,1,MID($C93,4,1)),1),SUM(OFFSET(I98,-(RIGHT($E109,1)),0,RIGHT($E109,1)+1,1)),\"ERROR\"))))","v":0},0,0,0,0,0,0,0,0,0,0,0,0,0,0,0,0,0,0,0,0,0,0,0,0,0,0,0,0,0,0,0,0,0,0,0,0,0,0,0,0,0,0,0,0,0,0,0,0,0,0]
[null,null,null,null,"EL2",{"$f":"IF(F$29<STANDARD_YEAR,F99,\nIF(RIGHT($E110,1)>RIGHT(INDEX(STANDARD_LEVELS,1,MID($C93,4,1)),1),F99,\nIF(RIGHT($E110,1)<RIGHT(INDEX(STANDARD_LEVELS,1,MID($C93,4,1)),1),0,\nIF(RIGHT($E110,1)=RIGHT(INDEX(STANDARD_LEVELS,1,MID($C93,4,1)),1),SUM(OFFSET(F99,-(RIGHT($E110,1)),0,RIGHT($E110,1)+1,1)),\"ERROR\"))))","v":0},0,0,{"$f":"IF(I$29<STANDARD_YEAR,I99,\nIF(RIGHT($E110,1)>RIGHT(INDEX(STANDARD_LEVELS,1,MID($C93,4,1)),1),I99,\nIF(RIGHT($E110,1)<RIGHT(INDEX(STANDARD_LEVELS,1,MID($C93,4,1)),1),0,\nIF(RIGHT($E110,1)=RIGHT(INDEX(STANDARD_LEVELS,1,MID($C93,4,1)),1),SUM(OFFSET(I99,-(RIGHT($E110,1)),0,RIGHT($E110,1)+1,1)),\"ERROR\"))))","v":0},0,0,0,0,0,0,0,0,0,0,0,0,0,0,0,0,0,0,0,0,0,0,0,0,0,0,0,0,0,0,0,0,0,0,0,0,0,0,0,0,0,0,0,0,0,0,0,0,0,0]
[null,null,null,null,"EL3",{"$f":"IF(F$29<STANDARD_YEAR,F100,\nIF(RIGHT($E111,1)>RIGHT(INDEX(STANDARD_LEVELS,1,MID($C93,4,1)),1),F100,\nIF(RIGHT($E111,1)<RIGHT(INDEX(STANDARD_LEVELS,1,MID($C93,4,1)),1),0,\nIF(RIGHT($E111,1)=RIGHT(INDEX(STANDARD_LEVELS,1,MID($C93,4,1)),1),SUM(OFFSET(F100,-(RIGHT($E111,1)),0,RIGHT($E111,1)+1,1)),\"ERROR\"))))","v":0},0,0,{"$f":"IF(I$29<STANDARD_YEAR,I100,\nIF(RIGHT($E111,1)>RIGHT(INDEX(STANDARD_LEVELS,1,MID($C93,4,1)),1),I100,\nIF(RIGHT($E111,1)<RIGHT(INDEX(STANDARD_LEVELS,1,MID($C93,4,1)),1),0,\nIF(RIGHT($E111,1)=RIGHT(INDEX(STANDARD_LEVELS,1,MID($C93,4,1)),1),SUM(OFFSET(I100,-(RIGHT($E111,1)),0,RIGHT($E111,1)+1,1)),\"ERROR\"))))","v":0},0,0,0,0,0,0,0,0,0,0,0,0,0,0,0,0,0,0,0,0,0,0,0,0,0,0,0,0,0,0,0,0,0,0,0,0,0,0,0,0,0,0,0,0,0,0,0,0,0,0]
[null,null,null,null,"EL4",{"$f":"IF(F$29<STANDARD_YEAR,F101,\nIF(RIGHT($E112,1)>RIGHT(INDEX(STANDARD_LEVELS,1,MID($C93,4,1)),1),F101,\nIF(RIGHT($E112,1)<RIGHT(INDEX(STANDARD_LEVELS,1,MID($C93,4,1)),1),0,\nIF(RIGHT($E112,1)=RIGHT(INDEX(STANDARD_LEVELS,1,MID($C93,4,1)),1),SUM(OFFSET(F101,-(RIGHT($E112,1)),0,RIGHT($E112,1)+1,1)),\"ERROR\"))))","v":0},0,0,{"$f":"IF(I$29<STANDARD_YEAR,I101,\nIF(RIGHT($E112,1)>RIGHT(INDEX(STANDARD_LEVELS,1,MID($C93,4,1)),1),I101,\nIF(RIGHT($E112,1)<RIGHT(INDEX(STANDARD_LEVELS,1,MID($C93,4,1)),1),0,\nIF(RIGHT($E112,1)=RIGHT(INDEX(STANDARD_LEVELS,1,MID($C93,4,1)),1),SUM(OFFSET(I101,-(RIGHT($E112,1)),0,RIGHT($E112,1)+1,1)),\"ERROR\"))))","v":0},0,0,0,0,0,0,0,0,0,0,0,0,0,0,0,0,0,0,0,0,0,0,0,0,0,0,0,0,0,0,0,0,0,0,0,0,0,0,0,0,0,0,0,0,0,0,0,0,0,0]
[null,null,null,null,"EL5",{"$f":"IF(F$29<STANDARD_YEAR,F102,\nIF(RIGHT($E113,1)>RIGHT(INDEX(STANDARD_LEVELS,1,MID($C93,4,1)),1),F102,\nIF(RIGHT($E113,1)<RIGHT(INDEX(STANDARD_LEVELS,1,MID($C93,4,1)),1),0,\nIF(RIGHT($E113,1)=RIGHT(INDEX(STANDARD_LEVELS,1,MID($C93,4,1)),1),SUM(OFFSET(F102,-(RIGHT($E113,1)),0,RIGHT($E113,1)+1,1)),\"ERROR\"))))","v":0},0,0,{"$f":"IF(I$29<STANDARD_YEAR,I102,\nIF(RIGHT($E113,1)>RIGHT(INDEX(STANDARD_LEVELS,1,MID($C93,4,1)),1),I102,\nIF(RIGHT($E113,1)<RIGHT(INDEX(STANDARD_LEVELS,1,MID($C93,4,1)),1),0,\nIF(RIGHT($E113,1)=RIGHT(INDEX(STANDARD_LEVELS,1,MID($C93,4,1)),1),SUM(OFFSET(I102,-(RIGHT($E113,1)),0,RIGHT($E113,1)+1,1)),\"ERROR\"))))","v":0},0,0,0,0,0,0,0,0,0,0,0,0,0,0,0,0,0,0,0,0,0,0,0,0,0,0,0,0,0,0,0,0,0,0,0,0,0,0,0,0,0,0,0,0,0,0,0,0,0,0]
[null,null,null,null,"EL6",{"$f":"IF(F$29<STANDARD_YEAR,F103,\nIF(RIGHT($E114,1)>RIGHT(INDEX(STANDARD_LEVELS,1,MID($C93,4,1)),1),F103,\nIF(RIGHT($E114,1)<RIGHT(INDEX(STANDARD_LEVELS,1,MID($C93,4,1)),1),0,\nIF(RIGHT($E114,1)=RIGHT(INDEX(STANDARD_LEVELS,1,MID($C93,4,1)),1),SUM(OFFSET(F103,-(RIGHT($E114,1)),0,RIGHT($E114,1)+1,1)),\"ERROR\"))))","v":0},0,0,{"$f":"IF(I$29<STANDARD_YEAR,I103,\nIF(RIGHT($E114,1)>RIGHT(INDEX(STANDARD_LEVELS,1,MID($C93,4,1)),1),I103,\nIF(RIGHT($E114,1)<RIGHT(INDEX(STANDARD_LEVELS,1,MID($C93,4,1)),1),0,\nIF(RIGHT($E114,1)=RIGHT(INDEX(STANDARD_LEVELS,1,MID($C93,4,1)),1),SUM(OFFSET(I103,-(RIGHT($E114,1)),0,RIGHT($E114,1)+1,1)),\"ERROR\"))))","v":0},0,0,0,0,0,0,0,0,0,0,0,0,0,0,0,0,0,0,0,0,0,0,0,0,0,0,0,0,0,0,0,0,0,0,0,0,0,0,0,0,0,0,0,0,0,0,0,0,0,0]
[null,null,null,null,"TOTAL",{"$f":"SUM(F108:F114)","v":0},0,0,{"$f":"SUM(I108:I114)","v":0},0,0,0,0,0,0,0,0,0,0,0,0,0,0,0,0,0,0,0,0,0,0,0,0,0,0,0,0,0,0,0,0,0,0,0,0,0,0,0,0,0,0,0,0,0,0,0,0,0,0]
[]
[]
[]
[null,null,"PC 5",{"$f":"OFFSET('Product Classes'!$C$9,MATCH(C119,MODEL_PCS,0),0)","v":"Non-Weatherized Electric Furnace / Modular Blower Fan (NWEF/NWMB)"}]
[]
[null,null,null,"PRE-Case"]
[null,null,null,null,"Efficiency Level",1981,{"$f":"F122+1","v":1982},{"$f":"G122+1","v":1983},{"$f":"H122+1","v":1984},{"$f":"I122+1","v":1985},{"$f":"J122+1","v":1986},{"$f":"K122+1","v":1987},{"$f":"L122+1","v":1988},{"$f":"M122+1","v":1989},{"$f":"N122+1","v":1990},{"$f":"O122+1","v":1991},{"$f":"P122+1","v":1992},{"$f":"Q122+1","v":1993},{"$f":"R122+1","v":1994},1995,1996,1997,1998,1999,2000,2001,2002,2003,2004,2005,2006,2007,2008,2009,2010,2011,2012,2013,2014,2015,2016,2017,2018,2019,2020,2021,2022,2023,2024,2025,2026,2027,2028,2029,2030,2031,2032,2033,2034]
[null,null,null,null,"EL0",{"$f":"IF(INDEX(PC_MAPPING,RIGHT($C119,1),MATCH($E$2,'Data by Building Type'!$D$22:$F$22,0))=\"Yes\",1,0)*\n(F$10*OFFSET('Efficiency Distributions'!$D$10,MATCH($C119,'Efficiency Distributions'!$C$9:$C$87,0)+RIGHT($E123),0)\n+F$11*OFFSET('Efficiency Distributions'!$E$10,MATCH($C119,'Efficiency Distributions'!$C$9:$C$87,0)+RIGHT($E123),0))\n/SUM(F$10:F$11)","v":0},{"$f":"IF(INDEX(PC_MAPPING,RIGHT($C119,1),MATCH($E$2,'Data by Building Type'!$D$22:$F$22,0))=\"Yes\",1,0)*\n(G$10*OFFSET('Efficiency Distributions'!$D$10,MATCH($C119,'Efficiency Distributions'!$C$9:$C$87,0)+RIGHT($E123),0)\n+G$11*OFFSET('Efficiency Distributions'!$E$10,MATCH($C119,'Efficiency Distributions'!$C$9:$C$87,0)+RIGHT($E123),0))\n/SUM(G$10:G$11)","v":0},{"$f":"IF(INDEX(PC_MAPPING,RIGHT($C119,1),MATCH($E$2,'Data by Building Type'!$D$22:$F$22,0))=\"Yes\",1,0)*\n(H$10*OFFSET('Efficiency Distributions'!$D$10,MATCH($C119,'Efficiency Distributions'!$C$9:$C$87,0)+RIGHT($E123),0)\n+H$11*OFFSET('Efficiency Distributions'!$E$10,MATCH($C119,'Efficiency Distributions'!$C$9:$C$87,0)+RIGHT($E123),0))\n/SUM(H$10:H$11)","v":0},{"$f":"IF(INDEX(PC_MAPPING,RIGHT($C119,1),MATCH($E$2,'Data by Building Type'!$D$22:$F$22,0))=\"Yes\",1,0)*\n(I$10*OFFSET('Efficiency Distributions'!$D$10,MATCH($C119,'Efficiency Distributions'!$C$9:$C$87,0)+RIGHT($E123),0)\n+I$11*OFFSET('Efficiency Distributions'!$E$10,MATCH($C119,'Efficiency Distributions'!$C$9:$C$87,0)+RIGHT($E123),0))\n/SUM(I$10:I$11)","v":0},{"$f":"IF(INDEX(PC_MAPPING,RIGHT($C119,1),MATCH($E$2,'Data by Building Type'!$D$22:$F$22,0))=\"Yes\",1,0)*\n(J$10*OFFSET('Efficiency Distributions'!$D$10,MATCH($C119,'Efficiency Distributions'!$C$9:$C$87,0)+RIGHT($E123),0)\n+J$11*OFFSET('Efficiency Distributions'!$E$10,MATCH($C119,'Efficiency Distributions'!$C$9:$C$87,0)+RIGHT($E123),0))\n/SUM(J$10:J$11)","v":0},{"$f":"IF(INDEX(PC_MAPPING,RIGHT($C119,1),MATCH($E$2,'Data by Building Type'!$D$22:$F$22,0))=\"Yes\",1,0)*\n(K$10*OFFSET('Efficiency Distributions'!$D$10,MATCH($C119,'Efficiency Distributions'!$C$9:$C$87,0)+RIGHT($E123),0)\n+K$11*OFFSET('Efficiency Distributions'!$E$10,MATCH($C119,'Efficiency Distributions'!$C$9:$C$87,0)+RIGHT($E123),0))\n/SUM(K$10:K$11)","v":0},{"$f":"IF(INDEX(PC_MAPPING,RIGHT($C119,1),MATCH($E$2,'Data by Building Type'!$D$22:$F$22,0))=\"Yes\",1,0)*\n(L$10*OFFSET('Efficiency Distributions'!$D$10,MATCH($C119,'Efficiency Distributions'!$C$9:$C$87,0)+RIGHT($E123),0)\n+L$11*OFFSET('Efficiency Distributions'!$E$10,MATCH($C119,'Efficiency Distributions'!$C$9:$C$87,0)+RIGHT($E123),0))\n/SUM(L$10:L$11)","v":0},{"$f":"IF(INDEX(PC_MAPPING,RIGHT($C119,1),MATCH($E$2,'Data by Building Type'!$D$22:$F$22,0))=\"Yes\",1,0)*\n(M$10*OFFSET('Efficiency Distributions'!$D$10,MATCH($C119,'Efficiency Distributions'!$C$9:$C$87,0)+RIGHT($E123),0)\n+M$11*OFFSET('Efficiency Distributions'!$E$10,MATCH($C119,'Efficiency Distributions'!$C$9:$C$87,0)+RIGHT($E123),0))\n/SUM(M$10:M$11)","v":0},{"$f":"IF(INDEX(PC_MAPPING,RIGHT($C119,1),MATCH($E$2,'Data by Building Type'!$D$22:$F$22,0))=\"Yes\",1,0)*\n(N$10*OFFSET('Efficiency Distributions'!$D$10,MATCH($C119,'Efficiency Distributions'!$C$9:$C$87,0)+RIGHT($E123),0)\n+N$11*OFFSET('Efficiency Distributions'!$E$10,MATCH($C119,'Efficiency Distributions'!$C$9:$C$87,0)+RIGHT($E123),0))\n/SUM(N$10:N$11)","v":0},{"$f":"IF(INDEX(PC_MAPPING,RIGHT($C119,1),MATCH($E$2,'Data by Building Type'!$D$22:$F$22,0))=\"Yes\",1,0)*\n(O$10*OFFSET('Efficiency Distributions'!$D$10,MATCH($C119,'Efficiency Distributions'!$C$9:$C$87,0)+RIGHT($E123),0)\n+O$11*OFFSET('Efficiency Distributions'!$E$10,MATCH($C119,'Efficiency Distributions'!$C$9:$C$87,0)+RIGHT($E123),0))\n/SUM(O$10:O$11)","v":0},{"$f":"IF(INDEX(PC_MAPPING,RIGHT($C119,1),MATCH($E$2,'Data by Building Type'!$D$22:$F$22,0))=\"Yes\",1,0)*\n(P$10*OFFSET('Efficiency Distributions'!$D$10,MATCH($C119,'Efficiency Distributions'!$C$9:$C$87,0)+RIGHT($E123),0)\n+P$11*OFFSET('Efficiency Distributions'!$E$10,MATCH($C119,'Efficiency Distributions'!$C$9:$C$87,0)+RIGHT($E123),0))\n/SUM(P$10:P$11)","v":0},{"$f":"IF(INDEX(PC_MAPPING,RIGHT($C119,1),MATCH($E$2,'Data by Building Type'!$D$22:$F$22,0))=\"Yes\",1,0)*\n(Q$10*OFFSET('Efficiency Distributions'!$D$10,MATCH($C119,'Efficiency Distributions'!$C$9:$C$87,0)+RIGHT($E123),0)\n+Q$11*OFFSET('Efficiency Distributions'!$E$10,MATCH($C119,'Efficiency Distributions'!$C$9:$C$87,0)+RIGHT($E123),0))\n/SUM(Q$10:Q$11)","v":0},{"$f":"IF(INDEX(PC_MAPPING,RIGHT($C119,1),MATCH($E$2,'Data by Building Type'!$D$22:$F$22,0))=\"Yes\",1,0)*\n(R$10*OFFSET('Efficiency Distributions'!$D$10,MATCH($C119,'Efficiency Distributions'!$C$9:$C$87,0)+RIGHT($E123),0)\n+R$11*OFFSET('Efficiency Distributions'!$E$10,MATCH($C119,'Efficiency Distributions'!$C$9:$C$87,0)+RIGHT($E123),0))\n/SUM(R$10:R$11)","v":0},{"$f":"IF(INDEX(PC_MAPPING,RIGHT($C119,1),MATCH($E$2,'Data by Building Type'!$D$22:$F$22,0))=\"Yes\",1,0)*\n(S$10*OFFSET('Efficiency Distributions'!$D$10,MATCH($C119,'Efficiency Distributions'!$C$9:$C$87,0)+RIGHT($E123),0)\n+S$11*OFFSET('Efficiency Distributions'!$E$10,MATCH($C119,'Efficiency Distributions'!$C$9:$C$87,0)+RIGHT($E123),0))\n/SUM(S$10:S$11)","v":0},{"$f":"IF(INDEX(PC_MAPPING,RIGHT($C119,1),MATCH($E$2,'Data by Building Type'!$D$22:$F$22,0))=\"Yes\",1,0)*\n(T$10*OFFSET('Efficiency Distributions'!$D$10,MATCH($C119,'Efficiency Distributions'!$C$9:$C$87,0)+RIGHT($E123),0)\n+T$11*OFFSET('Efficiency Distributions'!$E$10,MATCH($C119,'Efficiency Distributions'!$C$9:$C$87,0)+RIGHT($E123),0))\n/SUM(T$10:T$11)","v":0},{"$f":"IF(INDEX(PC_MAPPING,RIGHT($C119,1),MATCH($E$2,'Data by Building Type'!$D$22:$F$22,0))=\"Yes\",1,0)*\n(U$10*OFFSET('Efficiency Distributions'!$D$10,MATCH($C119,'Efficiency Distributions'!$C$9:$C$87,0)+RIGHT($E123),0)\n+U$11*OFFSET('Efficiency Distributions'!$E$10,MATCH($C119,'Efficiency Distributions'!$C$9:$C$87,0)+RIGHT($E123),0))\n/SUM(U$10:U$11)","v":0},{"$f":"IF(INDEX(PC_MAPPING,RIGHT($C119,1),MATCH($E$2,'Data by Building Type'!$D$22:$F$22,0))=\"Yes\",1,0)*\n(V$10*OFFSET('Efficiency Distributions'!$D$10,MATCH($C119,'Efficiency Distributions'!$C$9:$C$87,0)+RIGHT($E123),0)\n+V$11*OFFSET('Efficiency Distributions'!$E$10,MATCH($C119,'Efficiency Distributions'!$C$9:$C$87,0)+RIGHT($E123),0))\n/SUM(V$10:V$11)","v":0},{"$f":"IF(INDEX(PC_MAPPING,RIGHT($C119,1),MATCH($E$2,'Data by Building Type'!$D$22:$F$22,0))=\"Yes\",1,0)*\n(W$10*OFFSET('Efficiency Distributions'!$D$10,MATCH($C119,'Efficiency Distributions'!$C$9:$C$87,0)+RIGHT($E123),0)\n+W$11*OFFSET('Efficiency Distributions'!$E$10,MATCH($C119,'Efficiency Distributions'!$C$9:$C$87,0)+RIGHT($E123),0))\n/SUM(W$10:W$11)","v":0},{"$f":"IF(INDEX(PC_MAPPING,RIGHT($C119,1),MATCH($E$2,'Data by Building Type'!$D$22:$F$22,0))=\"Yes\",1,0)*\n(X$10*OFFSET('Efficiency Distributions'!$D$10,MATCH($C119,'Efficiency Distributions'!$C$9:$C$87,0)+RIGHT($E123),0)\n+X$11*OFFSET('Efficiency Distributions'!$E$10,MATCH($C119,'Efficiency Distributions'!$C$9:$C$87,0)+RIGHT($E123),0))\n/SUM(X$10:X$11)","v":0},{"$f":"IF(INDEX(PC_MAPPING,RIGHT($C119,1),MATCH($E$2,'Data by Building Type'!$D$22:$F$22,0))=\"Yes\",1,0)*\n(Y$10*OFFSET('Efficiency Distributions'!$D$10,MATCH($C119,'Efficiency Distributions'!$C$9:$C$87,0)+RIGHT($E123),0)\n+Y$11*OFFSET('Efficiency Distributions'!$E$10,MATCH($C119,'Efficiency Distributions'!$C$9:$C$87,0)+RIGHT($E123),0))\n/SUM(Y$10:Y$11)","v":0},{"$f":"IF(INDEX(PC_MAPPING,RIGHT($C119,1),MATCH($E$2,'Data by Building Type'!$D$22:$F$22,0))=\"Yes\",1,0)*\n(Z$10*OFFSET('Efficiency Distributions'!$D$10,MATCH($C119,'Efficiency Distributions'!$C$9:$C$87,0)+RIGHT($E123),0)\n+Z$11*OFFSET('Efficiency Distributions'!$E$10,MATCH($C119,'Efficiency Distributions'!$C$9:$C$87,0)+RIGHT($E123),0))\n/SUM(Z$10:Z$11)","v":0},{"$f":"IF(INDEX(PC_MAPPING,RIGHT($C119,1),MATCH($E$2,'Data by Building Type'!$D$22:$F$22,0))=\"Yes\",1,0)*\n(AA$10*OFFSET('Efficiency Distributions'!$D$10,MATCH($C119,'Efficiency Distributions'!$C$9:$C$87,0)+RIGHT($E123),0)\n+AA$11*OFFSET('Efficiency Distributions'!$E$10,MATCH($C119,'Efficiency Distributions'!$C$9:$C$87,0)+RIGHT($E123),0))\n/SUM(AA$10:AA$11)","v":0},{"$f":"IF(INDEX(PC_MAPPING,RIGHT($C119,1),MATCH($E$2,'Data by Building Type'!$D$22:$F$22,0))=\"Yes\",1,0)*\n(AB$10*OFFSET('Efficiency Distributions'!$D$10,MATCH($C119,'Efficiency Distributions'!$C$9:$C$87,0)+RIGHT($E123),0)\n+AB$11*OFFSET('Efficiency Distributions'!$E$10,MATCH($C119,'Efficiency Distributions'!$C$9:$C$87,0)+RIGHT($E123),0))\n/SUM(AB$10:AB$11)","v":0},{"$f":"IF(INDEX(PC_MAPPING,RIGHT($C119,1),MATCH($E$2,'Data by Building Type'!$D$22:$F$22,0))=\"Yes\",1,0)*\n(AC$10*OFFSET('Efficiency Distributions'!$D$10,MATCH($C119,'Efficiency Distributions'!$C$9:$C$87,0)+RIGHT($E123),0)\n+AC$11*OFFSET('Efficiency Distributions'!$E$10,MATCH($C119,'Efficiency Distributions'!$C$9:$C$87,0)+RIGHT($E123),0))\n/SUM(AC$10:AC$11)","v":0},{"$f":"IF(INDEX(PC_MAPPING,RIGHT($C119,1),MATCH($E$2,'Data by Building Type'!$D$22:$F$22,0))=\"Yes\",1,0)*\n(AD$10*OFFSET('Efficiency Distributions'!$D$10,MATCH($C119,'Efficiency Distributions'!$C$9:$C$87,0)+RIGHT($E123),0)\n+AD$11*OFFSET('Efficiency Distributions'!$E$10,MATCH($C119,'Efficiency Distributions'!$C$9:$C$87,0)+RIGHT($E123),0))\n/SUM(AD$10:AD$11)","v":0},{"$f":"IF(INDEX(PC_MAPPING,RIGHT($C119,1),MATCH($E$2,'Data by Building Type'!$D$22:$F$22,0))=\"Yes\",1,0)*\n(AE$10*OFFSET('Efficiency Distributions'!$D$10,MATCH($C119,'Efficiency Distributions'!$C$9:$C$87,0)+RIGHT($E123),0)\n+AE$11*OFFSET('Efficiency Distributions'!$E$10,MATCH($C119,'Efficiency Distributions'!$C$9:$C$87,0)+RIGHT($E123),0))\n/SUM(AE$10:AE$11)","v":0},{"$f":"IF(INDEX(PC_MAPPING,RIGHT($C119,1),MATCH($E$2,'Data by Building Type'!$D$22:$F$22,0))=\"Yes\",1,0)*\n(AF$10*OFFSET('Efficiency Distributions'!$D$10,MATCH($C119,'Efficiency Distributions'!$C$9:$C$87,0)+RIGHT($E123),0)\n+AF$11*OFFSET('Efficiency Distributions'!$E$10,MATCH($C119,'Efficiency Distributions'!$C$9:$C$87,0)+RIGHT($E123),0))\n/SUM(AF$10:AF$11)","v":0},{"$f":"IF(INDEX(PC_MAPPING,RIGHT($C119,1),MATCH($E$2,'Data by Building Type'!$D$22:$F$22,0))=\"Yes\",1,0)*\n(AG$10*OFFSET('Efficiency Distributions'!$D$10,MATCH($C119,'Efficiency Distributions'!$C$9:$C$87,0)+RIGHT($E123),0)\n+AG$11*OFFSET('Efficiency Distributions'!$E$10,MATCH($C119,'Efficiency Distributions'!$C$9:$C$87,0)+RIGHT($E123),0))\n/SUM(AG$10:AG$11)","v":0},{"$f":"IF(INDEX(PC_MAPPING,RIGHT($C119,1),MATCH($E$2,'Data by Building Type'!$D$22:$F$22,0))=\"Yes\",1,0)*\n(AH$10*OFFSET('Efficiency Distributions'!$D$10,MATCH($C119,'Efficiency Distributions'!$C$9:$C$87,0)+RIGHT($E123),0)\n+AH$11*OFFSET('Efficiency Distributions'!$E$10,MATCH($C119,'Efficiency Distributions'!$C$9:$C$87,0)+RIGHT($E123),0))\n/SUM(AH$10:AH$11)","v":0},{"$f":"IF(INDEX(PC_MAPPING,RIGHT($C119,1),MATCH($E$2,'Data by Building Type'!$D$22:$F$22,0))=\"Yes\",1,0)*\n(AI$10*OFFSET('Efficiency Distributions'!$D$10,MATCH($C119,'Efficiency Distributions'!$C$9:$C$87,0)+RIGHT($E123),0)\n+AI$11*OFFSET('Efficiency Distributions'!$E$10,MATCH($C119,'Efficiency Distributions'!$C$9:$C$87,0)+RIGHT($E123),0))\n/SUM(AI$10:AI$11)","v":0},{"$f":"IF(INDEX(PC_MAPPING,RIGHT($C119,1),MATCH($E$2,'Data by Building Type'!$D$22:$F$22,0))=\"Yes\",1,0)*\n(AJ$10*OFFSET('Efficiency Distributions'!$D$10,MATCH($C119,'Efficiency Distributions'!$C$9:$C$87,0)+RIGHT($E123),0)\n+AJ$11*OFFSET('Efficiency Distributions'!$E$10,MATCH($C119,'Efficiency Distributions'!$C$9:$C$87,0)+RIGHT($E123),0))\n/SUM(AJ$10:AJ$11)","v":0},{"$f":"IF(INDEX(PC_MAPPING,RIGHT($C119,1),MATCH($E$2,'Data by Building Type'!$D$22:$F$22,0))=\"Yes\",1,0)*\n(AK$10*OFFSET('Efficiency Distributions'!$D$10,MATCH($C119,'Efficiency Distributions'!$C$9:$C$87,0)+RIGHT($E123),0)\n+AK$11*OFFSET('Efficiency Distributions'!$E$10,MATCH($C119,'Efficiency Distributions'!$C$9:$C$87,0)+RIGHT($E123),0))\n/SUM(AK$10:AK$11)","v":0},{"$f":"IF(INDEX(PC_MAPPING,RIGHT($C119,1),MATCH($E$2,'Data by Building Type'!$D$22:$F$22,0))=\"Yes\",1,0)*\n(AL$10*OFFSET('Efficiency Distributions'!$D$10,MATCH($C119,'Efficiency Distributions'!$C$9:$C$87,0)+RIGHT($E123),0)\n+AL$11*OFFSET('Efficiency Distributions'!$E$10,MATCH($C119,'Efficiency Distributions'!$C$9:$C$87,0)+RIGHT($E123),0))\n/SUM(AL$10:AL$11)","v":0},{"$f":"IF(INDEX(PC_MAPPING,RIGHT($C119,1),MATCH($E$2,'Data by Building Type'!$D$22:$F$22,0))=\"Yes\",1,0)*\n(AM$10*OFFSET('Efficiency Distributions'!$D$10,MATCH($C119,'Efficiency Distributions'!$C$9:$C$87,0)+RIGHT($E123),0)\n+AM$11*OFFSET('Efficiency Distributions'!$E$10,MATCH($C119,'Efficiency Distributions'!$C$9:$C$87,0)+RIGHT($E123),0))\n/SUM(AM$10:AM$11)","v":0},{"$f":"IF(INDEX(PC_MAPPING,RIGHT($C119,1),MATCH($E$2,'Data by Building Type'!$D$22:$F$22,0))=\"Yes\",1,0)*\n(AN$10*OFFSET('Efficiency Distributions'!$D$10,MATCH($C119,'Efficiency Distributions'!$C$9:$C$87,0)+RIGHT($E123),0)\n+AN$11*OFFSET('Efficiency Distributions'!$E$10,MATCH($C119,'Efficiency Distributions'!$C$9:$C$87,0)+RIGHT($E123),0))\n/SUM(AN$10:AN$11)","v":0},{"$f":"IF(INDEX(PC_MAPPING,RIGHT($C119,1),MATCH($E$2,'Data by Building Type'!$D$22:$F$22,0))=\"Yes\",1,0)*\n(AO$10*OFFSET('Efficiency Distributions'!$D$10,MATCH($C119,'Efficiency Distributions'!$C$9:$C$87,0)+RIGHT($E123),0)\n+AO$11*OFFSET('Efficiency Distributions'!$E$10,MATCH($C119,'Efficiency Distributions'!$C$9:$C$87,0)+RIGHT($E123),0))\n/SUM(AO$10:AO$11)","v":0},{"$f":"IF(INDEX(PC_MAPPING,RIGHT($C119,1),MATCH($E$2,'Data by Building Type'!$D$22:$F$22,0))=\"Yes\",1,0)*\n(AP$10*OFFSET('Efficiency Distributions'!$D$10,MATCH($C119,'Efficiency Distributions'!$C$9:$C$87,0)+RIGHT($E123),0)\n+AP$11*OFFSET('Efficiency Distributions'!$E$10,MATCH($C119,'Efficiency Distributions'!$C$9:$C$87,0)+RIGHT($E123),0))\n/SUM(AP$10:AP$11)","v":0},{"$f":"IF(INDEX(PC_MAPPING,RIGHT($C119,1),MATCH($E$2,'Data by Building Type'!$D$22:$F$22,0))=\"Yes\",1,0)*\n(AQ$10*OFFSET('Efficiency Distributions'!$D$10,MATCH($C119,'Efficiency Distributions'!$C$9:$C$87,0)+RIGHT($E123),0)\n+AQ$11*OFFSET('Efficiency Distributions'!$E$10,MATCH($C119,'Efficiency Distributions'!$C$9:$C$87,0)+RIGHT($E123),0))\n/SUM(AQ$10:AQ$11)","v":0},{"$f":"IF(INDEX(PC_MAPPING,RIGHT($C119,1),MATCH($E$2,'Data by Building Type'!$D$22:$F$22,0))=\"Yes\",1,0)*\n(AR$10*OFFSET('Efficiency Distributions'!$D$10,MATCH($C119,'Efficiency Distributions'!$C$9:$C$87,0)+RIGHT($E123),0)\n+AR$11*OFFSET('Efficiency Distributions'!$E$10,MATCH($C119,'Efficiency Distributions'!$C$9:$C$87,0)+RIGHT($E123),0))\n/SUM(AR$10:AR$11)","v":0},{"$f":"IF(INDEX(PC_MAPPING,RIGHT($C119,1),MATCH($E$2,'Data by Building Type'!$D$22:$F$22,0))=\"Yes\",1,0)*\n(AS$10*OFFSET('Efficiency Distributions'!$D$10,MATCH($C119,'Efficiency Distributions'!$C$9:$C$87,0)+RIGHT($E123),0)\n+AS$11*OFFSET('Efficiency Distributions'!$E$10,MATCH($C119,'Efficiency Distributions'!$C$9:$C$87,0)+RIGHT($E123),0))\n/SUM(AS$10:AS$11)","v":0},{"$f":"IF(INDEX(PC_MAPPING,RIGHT($C119,1),MATCH($E$2,'Data by Building Type'!$D$22:$F$22,0))=\"Yes\",1,0)*\n(AT$10*OFFSET('Efficiency Distributions'!$D$10,MATCH($C119,'Efficiency Distributions'!$C$9:$C$87,0)+RIGHT($E123),0)\n+AT$11*OFFSET('Efficiency Distributions'!$E$10,MATCH($C119,'Efficiency Distributions'!$C$9:$C$87,0)+RIGHT($E123),0))\n/SUM(AT$10:AT$11)","v":0},{"$f":"IF(INDEX(PC_MAPPING,RIGHT($C119,1),MATCH($E$2,'Data by Building Type'!$D$22:$F$22,0))=\"Yes\",1,0)*\n(AU$10*OFFSET('Efficiency Distributions'!$D$10,MATCH($C119,'Efficiency Distributions'!$C$9:$C$87,0)+RIGHT($E123),0)\n+AU$11*OFFSET('Efficiency Distributions'!$E$10,MATCH($C119,'Efficiency Distributions'!$C$9:$C$87,0)+RIGHT($E123),0))\n/SUM(AU$10:AU$11)","v":0},{"$f":"IF(INDEX(PC_MAPPING,RIGHT($C119,1),MATCH($E$2,'Data by Building Type'!$D$22:$F$22,0))=\"Yes\",1,0)*\n(AV$10*OFFSET('Efficiency Distributions'!$D$10,MATCH($C119,'Efficiency Distributions'!$C$9:$C$87,0)+RIGHT($E123),0)\n+AV$11*OFFSET('Efficiency Distributions'!$E$10,MATCH($C119,'Efficiency Distributions'!$C$9:$C$87,0)+RIGHT($E123),0))\n/SUM(AV$10:AV$11)","v":0},{"$f":"IF(INDEX(PC_MAPPING,RIGHT($C119,1),MATCH($E$2,'Data by Building Type'!$D$22:$F$22,0))=\"Yes\",1,0)*\n(AW$10*OFFSET('Efficiency Distributions'!$D$10,MATCH($C119,'Efficiency Distributions'!$C$9:$C$87,0)+RIGHT($E123),0)\n+AW$11*OFFSET('Efficiency Distributions'!$E$10,MATCH($C119,'Efficiency Distributions'!$C$9:$C$87,0)+RIGHT($E123),0))\n/SUM(AW$10:AW$11)","v":0},{"$f":"IF(INDEX(PC_MAPPING,RIGHT($C119,1),MATCH($E$2,'Data by Building Type'!$D$22:$F$22,0))=\"Yes\",1,0)*\n(AX$10*OFFSET('Efficiency Distributions'!$D$10,MATCH($C119,'Efficiency Distributions'!$C$9:$C$87,0)+RIGHT($E123),0)\n+AX$11*OFFSET('Efficiency Distributions'!$E$10,MATCH($C119,'Efficiency Distributions'!$C$9:$C$87,0)+RIGHT($E123),0))\n/SUM(AX$10:AX$11)","v":0},{"$f":"IF(INDEX(PC_MAPPING,RIGHT($C119,1),MATCH($E$2,'Data by Building Type'!$D$22:$F$22,0))=\"Yes\",1,0)*\n(AY$10*OFFSET('Efficiency Distributions'!$D$10,MATCH($C119,'Efficiency Distributions'!$C$9:$C$87,0)+RIGHT($E123),0)\n+AY$11*OFFSET('Efficiency Distributions'!$E$10,MATCH($C119,'Efficiency Distributions'!$C$9:$C$87,0)+RIGHT($E123),0))\n/SUM(AY$10:AY$11)","v":0},{"$f":"IF(INDEX(PC_MAPPING,RIGHT($C119,1),MATCH($E$2,'Data by Building Type'!$D$22:$F$22,0))=\"Yes\",1,0)*\n(AZ$10*OFFSET('Efficiency Distributions'!$D$10,MATCH($C119,'Efficiency Distributions'!$C$9:$C$87,0)+RIGHT($E123),0)\n+AZ$11*OFFSET('Efficiency Distributions'!$E$10,MATCH($C119,'Efficiency Distributions'!$C$9:$C$87,0)+RIGHT($E123),0))\n/SUM(AZ$10:AZ$11)","v":0},{"$f":"IF(INDEX(PC_MAPPING,RIGHT($C119,1),MATCH($E$2,'Data by Building Type'!$D$22:$F$22,0))=\"Yes\",1,0)*\n(BA$10*OFFSET('Efficiency Distributions'!$D$10,MATCH($C119,'Efficiency Distributions'!$C$9:$C$87,0)+RIGHT($E123),0)\n+BA$11*OFFSET('Efficiency Distributions'!$E$10,MATCH($C119,'Efficiency Distributions'!$C$9:$C$87,0)+RIGHT($E123),0))\n/SUM(BA$10:BA$11)","v":0},{"$f":"IF(INDEX(PC_MAPPING,RIGHT($C119,1),MATCH($E$2,'Data by Building Type'!$D$22:$F$22,0))=\"Yes\",1,0)*\n(BB$10*OFFSET('Efficiency Distributions'!$D$10,MATCH($C119,'Efficiency Distributions'!$C$9:$C$87,0)+RIGHT($E123),0)\n+BB$11*OFFSET('Efficiency Distributions'!$E$10,MATCH($C119,'Efficiency Distributions'!$C$9:$C$87,0)+RIGHT($E123),0))\n/SUM(BB$10:BB$11)","v":0},{"$f":"IF(INDEX(PC_MAPPING,RIGHT($C119,1),MATCH($E$2,'Data by Building Type'!$D$22:$F$22,0))=\"Yes\",1,0)*\n(BC$10*OFFSET('Efficiency Distributions'!$D$10,MATCH($C119,'Efficiency Distributions'!$C$9:$C$87,0)+RIGHT($E123),0)\n+BC$11*OFFSET('Efficiency Distributions'!$E$10,MATCH($C119,'Efficiency Distributions'!$C$9:$C$87,0)+RIGHT($E123),0))\n/SUM(BC$10:BC$11)","v":0},{"$f":"IF(INDEX(PC_MAPPING,RIGHT($C119,1),MATCH($E$2,'Data by Building Type'!$D$22:$F$22,0))=\"Yes\",1,0)*\n(BD$10*OFFSET('Efficiency Distributions'!$D$10,MATCH($C119,'Efficiency Distributions'!$C$9:$C$87,0)+RIGHT($E123),0)\n+BD$11*OFFSET('Efficiency Distributions'!$E$10,MATCH($C119,'Efficiency Distributions'!$C$9:$C$87,0)+RIGHT($E123),0))\n/SUM(BD$10:BD$11)","v":0},{"$f":"IF(INDEX(PC_MAPPING,RIGHT($C119,1),MATCH($E$2,'Data by Building Type'!$D$22:$F$22,0))=\"Yes\",1,0)*\n(BE$10*OFFSET('Efficiency Distributions'!$D$10,MATCH($C119,'Efficiency Distributions'!$C$9:$C$87,0)+RIGHT($E123),0)\n+BE$11*OFFSET('Efficiency Distributions'!$E$10,MATCH($C119,'Efficiency Distributions'!$C$9:$C$87,0)+RIGHT($E123),0))\n/SUM(BE$10:BE$11)","v":0},{"$f":"IF(INDEX(PC_MAPPING,RIGHT($C119,1),MATCH($E$2,'Data by Building Type'!$D$22:$F$22,0))=\"Yes\",1,0)*\n(BF$10*OFFSET('Efficiency Distributions'!$D$10,MATCH($C119,'Efficiency Distributions'!$C$9:$C$87,0)+RIGHT($E123),0)\n+BF$11*OFFSET('Efficiency Distributions'!$E$10,MATCH($C119,'Efficiency Distributions'!$C$9:$C$87,0)+RIGHT($E123),0))\n/SUM(BF$10:BF$11)","v":0},{"$f":"IF(INDEX(PC_MAPPING,RIGHT($C119,1),MATCH($E$2,'Data by Building Type'!$D$22:$F$22,0))=\"Yes\",1,0)*\n(BG$10*OFFSET('Efficiency Distributions'!$D$10,MATCH($C119,'Efficiency Distributions'!$C$9:$C$87,0)+RIGHT($E123),0)\n+BG$11*OFFSET('Efficiency Distributions'!$E$10,MATCH($C119,'Efficiency Distributions'!$C$9:$C$87,0)+RIGHT($E123),0))\n/SUM(BG$10:BG$11)","v":0}]
[null,null,null,null,"EL1",{"$f":"IF(INDEX(PC_MAPPING,RIGHT($C119,1),MATCH($E$2,'Data by Building Type'!$D$22:$F$22,0))=\"Yes\",1,0)*\n(F$10*OFFSET('Efficiency Distributions'!$D$10,MATCH($C119,'Efficiency Distributions'!$C$9:$C$87,0)+RIGHT($E124),0)\n+F$11*OFFSET('Efficiency Distributions'!$E$10,MATCH($C119,'Efficiency Distributions'!$C$9:$C$87,0)+RIGHT($E124),0))\n/SUM(F$10:F$11)","v":0},{"$f":"IF(INDEX(PC_MAPPING,RIGHT($C119,1),MATCH($E$2,'Data by Building Type'!$D$22:$F$22,0))=\"Yes\",1,0)*\n(G$10*OFFSET('Efficiency Distributions'!$D$10,MATCH($C119,'Efficiency Distributions'!$C$9:$C$87,0)+RIGHT($E124),0)\n+G$11*OFFSET('Efficiency Distributions'!$E$10,MATCH($C119,'Efficiency Distributions'!$C$9:$C$87,0)+RIGHT($E124),0))\n/SUM(G$10:G$11)","v":0},{"$f":"IF(INDEX(PC_MAPPING,RIGHT($C119,1),MATCH($E$2,'Data by Building Type'!$D$22:$F$22,0))=\"Yes\",1,0)*\n(H$10*OFFSET('Efficiency Distributions'!$D$10,MATCH($C119,'Efficiency Distributions'!$C$9:$C$87,0)+RIGHT($E124),0)\n+H$11*OFFSET('Efficiency Distributions'!$E$10,MATCH($C119,'Efficiency Distributions'!$C$9:$C$87,0)+RIGHT($E124),0))\n/SUM(H$10:H$11)","v":0},{"$f":"IF(INDEX(PC_MAPPING,RIGHT($C119,1),MATCH($E$2,'Data by Building Type'!$D$22:$F$22,0))=\"Yes\",1,0)*\n(I$10*OFFSET('Efficiency Distributions'!$D$10,MATCH($C119,'Efficiency Distributions'!$C$9:$C$87,0)+RIGHT($E124),0)\n+I$11*OFFSET('Efficiency Distributions'!$E$10,MATCH($C119,'Efficiency Distributions'!$C$9:$C$87,0)+RIGHT($E124),0))\n/SUM(I$10:I$11)","v":0},{"$f":"IF(INDEX(PC_MAPPING,RIGHT($C119,1),MATCH($E$2,'Data by Building Type'!$D$22:$F$22,0))=\"Yes\",1,0)*\n(J$10*OFFSET('Efficiency Distributions'!$D$10,MATCH($C119,'Efficiency Distributions'!$C$9:$C$87,0)+RIGHT($E124),0)\n+J$11*OFFSET('Efficiency Distributions'!$E$10,MATCH($C119,'Efficiency Distributions'!$C$9:$C$87,0)+RIGHT($E124),0))\n/SUM(J$10:J$11)","v":0},{"$f":"IF(INDEX(PC_MAPPING,RIGHT($C119,1),MATCH($E$2,'Data by Building Type'!$D$22:$F$22,0))=\"Yes\",1,0)*\n(K$10*OFFSET('Efficiency Distributions'!$D$10,MATCH($C119,'Efficiency Distributions'!$C$9:$C$87,0)+RIGHT($E124),0)\n+K$11*OFFSET('Efficiency Distributions'!$E$10,MATCH($C119,'Efficiency Distributions'!$C$9:$C$87,0)+RIGHT($E124),0))\n/SUM(K$10:K$11)","v":0},{"$f":"IF(INDEX(PC_MAPPING,RIGHT($C119,1),MATCH($E$2,'Data by Building Type'!$D$22:$F$22,0))=\"Yes\",1,0)*\n(L$10*OFFSET('Efficiency Distributions'!$D$10,MATCH($C119,'Efficiency Distributions'!$C$9:$C$87,0)+RIGHT($E124),0)\n+L$11*OFFSET('Efficiency Distributions'!$E$10,MATCH($C119,'Efficiency Distributions'!$C$9:$C$87,0)+RIGHT($E124),0))\n/SUM(L$10:L$11)","v":0},{"$f":"IF(INDEX(PC_MAPPING,RIGHT($C119,1),MATCH($E$2,'Data by Building Type'!$D$22:$F$22,0))=\"Yes\",1,0)*\n(M$10*OFFSET('Efficiency Distributions'!$D$10,MATCH($C119,'Efficiency Distributions'!$C$9:$C$87,0)+RIGHT($E124),0)\n+M$11*OFFSET('Efficiency Distributions'!$E$10,MATCH($C119,'Efficiency Distributions'!$C$9:$C$87,0)+RIGHT($E124),0))\n/SUM(M$10:M$11)","v":0},{"$f":"IF(INDEX(PC_MAPPING,RIGHT($C119,1),MATCH($E$2,'Data by Building Type'!$D$22:$F$22,0))=\"Yes\",1,0)*\n(N$10*OFFSET('Efficiency Distributions'!$D$10,MATCH($C119,'Efficiency Distributions'!$C$9:$C$87,0)+RIGHT($E124),0)\n+N$11*OFFSET('Efficiency Distributions'!$E$10,MATCH($C119,'Efficiency Distributions'!$C$9:$C$87,0)+RIGHT($E124),0))\n/SUM(N$10:N$11)","v":0},{"$f":"IF(INDEX(PC_MAPPING,RIGHT($C119,1),MATCH($E$2,'Data by Building Type'!$D$22:$F$22,0))=\"Yes\",1,0)*\n(O$10*OFFSET('Efficiency Distributions'!$D$10,MATCH($C119,'Efficiency Distributions'!$C$9:$C$87,0)+RIGHT($E124),0)\n+O$11*OFFSET('Efficiency Distributions'!$E$10,MATCH($C119,'Efficiency Distributions'!$C$9:$C$87,0)+RIGHT($E124),0))\n/SUM(O$10:O$11)","v":0},{"$f":"IF(INDEX(PC_MAPPING,RIGHT($C119,1),MATCH($E$2,'Data by Building Type'!$D$22:$F$22,0))=\"Yes\",1,0)*\n(P$10*OFFSET('Efficiency Distributions'!$D$10,MATCH($C119,'Efficiency Distributions'!$C$9:$C$87,0)+RIGHT($E124),0)\n+P$11*OFFSET('Efficiency Distributions'!$E$10,MATCH($C119,'Efficiency Distributions'!$C$9:$C$87,0)+RIGHT($E124),0))\n/SUM(P$10:P$11)","v":0},{"$f":"IF(INDEX(PC_MAPPING,RIGHT($C119,1),MATCH($E$2,'Data by Building Type'!$D$22:$F$22,0))=\"Yes\",1,0)*\n(Q$10*OFFSET('Efficiency Distributions'!$D$10,MATCH($C119,'Efficiency Distributions'!$C$9:$C$87,0)+RIGHT($E124),0)\n+Q$11*OFFSET('Efficiency Distributions'!$E$10,MATCH($C119,'Efficiency Distributions'!$C$9:$C$87,0)+RIGHT($E124),0))\n/SUM(Q$10:Q$11)","v":0},{"$f":"IF(INDEX(PC_MAPPING,RIGHT($C119,1),MATCH($E$2,'Data by Building Type'!$D$22:$F$22,0))=\"Yes\",1,0)*\n(R$10*OFFSET('Efficiency Distributions'!$D$10,MATCH($C119,'Efficiency Distributions'!$C$9:$C$87,0)+RIGHT($E124),0)\n+R$11*OFFSET('Efficiency Distributions'!$E$10,MATCH($C119,'Efficiency Distributions'!$C$9:$C$87,0)+RIGHT($E124),0))\n/SUM(R$10:R$11)","v":0},{"$f":"IF(INDEX(PC_MAPPING,RIGHT($C119,1),MATCH($E$2,'Data by Building Type'!$D$22:$F$22,0))=\"Yes\",1,0)*\n(S$10*OFFSET('Efficiency Distributions'!$D$10,MATCH($C119,'Efficiency Distributions'!$C$9:$C$87,0)+RIGHT($E124),0)\n+S$11*OFFSET('Efficiency Distributions'!$E$10,MATCH($C119,'Efficiency Distributions'!$C$9:$C$87,0)+RIGHT($E124),0))\n/SUM(S$10:S$11)","v":0},{"$f":"IF(INDEX(PC_MAPPING,RIGHT($C119,1),MATCH($E$2,'Data by Building Type'!$D$22:$F$22,0))=\"Yes\",1,0)*\n(T$10*OFFSET('Efficiency Distributions'!$D$10,MATCH($C119,'Efficiency Distributions'!$C$9:$C$87,0)+RIGHT($E124),0)\n+T$11*OFFSET('Efficiency Distributions'!$E$10,MATCH($C119,'Efficiency Distributions'!$C$9:$C$87,0)+RIGHT($E124),0))\n/SUM(T$10:T$11)","v":0},{"$f":"IF(INDEX(PC_MAPPING,RIGHT($C119,1),MATCH($E$2,'Data by Building Type'!$D$22:$F$22,0))=\"Yes\",1,0)*\n(U$10*OFFSET('Efficiency Distributions'!$D$10,MATCH($C119,'Efficiency Distributions'!$C$9:$C$87,0)+RIGHT($E124),0)\n+U$11*OFFSET('Efficiency Distributions'!$E$10,MATCH($C119,'Efficiency Distributions'!$C$9:$C$87,0)+RIGHT($E124),0))\n/SUM(U$10:U$11)","v":0},{"$f":"IF(INDEX(PC_MAPPING,RIGHT($C119,1),MATCH($E$2,'Data by Building Type'!$D$22:$F$22,0))=\"Yes\",1,0)*\n(V$10*OFFSET('Efficiency Distributions'!$D$10,MATCH($C119,'Efficiency Distributions'!$C$9:$C$87,0)+RIGHT($E124),0)\n+V$11*OFFSET('Efficiency Distributions'!$E$10,MATCH($C119,'Efficiency Distributions'!$C$9:$C$87,0)+RIGHT($E124),0))\n/SUM(V$10:V$11)","v":0},{"$f":"IF(INDEX(PC_MAPPING,RIGHT($C119,1),MATCH($E$2,'Data by Building Type'!$D$22:$F$22,0))=\"Yes\",1,0)*\n(W$10*OFFSET('Efficiency Distributions'!$D$10,MATCH($C119,'Efficiency Distributions'!$C$9:$C$87,0)+RIGHT($E124),0)\n+W$11*OFFSET('Efficiency Distributions'!$E$10,MATCH($C119,'Efficiency Distributions'!$C$9:$C$87,0)+RIGHT($E124),0))\n/SUM(W$10:W$11)","v":0},{"$f":"IF(INDEX(PC_MAPPING,RIGHT($C119,1),MATCH($E$2,'Data by Building Type'!$D$22:$F$22,0))=\"Yes\",1,0)*\n(X$10*OFFSET('Efficiency Distributions'!$D$10,MATCH($C119,'Efficiency Distributions'!$C$9:$C$87,0)+RIGHT($E124),0)\n+X$11*OFFSET('Efficiency Distributions'!$E$10,MATCH($C119,'Efficiency Distributions'!$C$9:$C$87,0)+RIGHT($E124),0))\n/SUM(X$10:X$11)","v":0},{"$f":"IF(INDEX(PC_MAPPING,RIGHT($C119,1),MATCH($E$2,'Data by Building Type'!$D$22:$F$22,0))=\"Yes\",1,0)*\n(Y$10*OFFSET('Efficiency Distributions'!$D$10,MATCH($C119,'Efficiency Distributions'!$C$9:$C$87,0)+RIGHT($E124),0)\n+Y$11*OFFSET('Efficiency Distributions'!$E$10,MATCH($C119,'Efficiency Distributions'!$C$9:$C$87,0)+RIGHT($E124),0))\n/SUM(Y$10:Y$11)","v":0},{"$f":"IF(INDEX(PC_MAPPING,RIGHT($C119,1),MATCH($E$2,'Data by Building Type'!$D$22:$F$22,0))=\"Yes\",1,0)*\n(Z$10*OFFSET('Efficiency Distributions'!$D$10,MATCH($C119,'Efficiency Distributions'!$C$9:$C$87,0)+RIGHT($E124),0)\n+Z$11*OFFSET('Efficiency Distributions'!$E$10,MATCH($C119,'Efficiency Distributions'!$C$9:$C$87,0)+RIGHT($E124),0))\n/SUM(Z$10:Z$11)","v":0},{"$f":"IF(INDEX(PC_MAPPING,RIGHT($C119,1),MATCH($E$2,'Data by Building Type'!$D$22:$F$22,0))=\"Yes\",1,0)*\n(AA$10*OFFSET('Efficiency Distributions'!$D$10,MATCH($C119,'Efficiency Distributions'!$C$9:$C$87,0)+RIGHT($E124),0)\n+AA$11*OFFSET('Efficiency Distributions'!$E$10,MATCH($C119,'Efficiency Distributions'!$C$9:$C$87,0)+RIGHT($E124),0))\n/SUM(AA$10:AA$11)","v":0},{"$f":"IF(INDEX(PC_MAPPING,RIGHT($C119,1),MATCH($E$2,'Data by Building Type'!$D$22:$F$22,0))=\"Yes\",1,0)*\n(AB$10*OFFSET('Efficiency Distributions'!$D$10,MATCH($C119,'Efficiency Distributions'!$C$9:$C$87,0)+RIGHT($E124),0)\n+AB$11*OFFSET('Efficiency Distributions'!$E$10,MATCH($C119,'Efficiency Distributions'!$C$9:$C$87,0)+RIGHT($E124),0))\n/SUM(AB$10:AB$11)","v":0},{"$f":"IF(INDEX(PC_MAPPING,RIGHT($C119,1),MATCH($E$2,'Data by Building Type'!$D$22:$F$22,0))=\"Yes\",1,0)*\n(AC$10*OFFSET('Efficiency Distributions'!$D$10,MATCH($C119,'Efficiency Distributions'!$C$9:$C$87,0)+RIGHT($E124),0)\n+AC$11*OFFSET('Efficiency Distributions'!$E$10,MATCH($C119,'Efficiency Distributions'!$C$9:$C$87,0)+RIGHT($E124),0))\n/SUM(AC$10:AC$11)","v":0},{"$f":"IF(INDEX(PC_MAPPING,RIGHT($C119,1),MATCH($E$2,'Data by Building Type'!$D$22:$F$22,0))=\"Yes\",1,0)*\n(AD$10*OFFSET('Efficiency Distributions'!$D$10,MATCH($C119,'Efficiency Distributions'!$C$9:$C$87,0)+RIGHT($E124),0)\n+AD$11*OFFSET('Efficiency Distributions'!$E$10,MATCH($C119,'Efficiency Distributions'!$C$9:$C$87,0)+RIGHT($E124),0))\n/SUM(AD$10:AD$11)","v":0},{"$f":"IF(INDEX(PC_MAPPING,RIGHT($C119,1),MATCH($E$2,'Data by Building Type'!$D$22:$F$22,0))=\"Yes\",1,0)*\n(AE$10*OFFSET('Efficiency Distributions'!$D$10,MATCH($C119,'Efficiency Distributions'!$C$9:$C$87,0)+RIGHT($E124),0)\n+AE$11*OFFSET('Efficiency Distributions'!$E$10,MATCH($C119,'Efficiency Distributions'!$C$9:$C$87,0)+RIGHT($E124),0))\n/SUM(AE$10:AE$11)","v":0},{"$f":"IF(INDEX(PC_MAPPING,RIGHT($C119,1),MATCH($E$2,'Data by Building Type'!$D$22:$F$22,0))=\"Yes\",1,0)*\n(AF$10*OFFSET('Efficiency Distributions'!$D$10,MATCH($C119,'Efficiency Distributions'!$C$9:$C$87,0)+RIGHT($E124),0)\n+AF$11*OFFSET('Efficiency Distributions'!$E$10,MATCH($C119,'Efficiency Distributions'!$C$9:$C$87,0)+RIGHT($E124),0))\n/SUM(AF$10:AF$11)","v":0},{"$f":"IF(INDEX(PC_MAPPING,RIGHT($C119,1),MATCH($E$2,'Data by Building Type'!$D$22:$F$22,0))=\"Yes\",1,0)*\n(AG$10*OFFSET('Efficiency Distributions'!$D$10,MATCH($C119,'Efficiency Distributions'!$C$9:$C$87,0)+RIGHT($E124),0)\n+AG$11*OFFSET('Efficiency Distributions'!$E$10,MATCH($C119,'Efficiency Distributions'!$C$9:$C$87,0)+RIGHT($E124),0))\n/SUM(AG$10:AG$11)","v":0},{"$f":"IF(INDEX(PC_MAPPING,RIGHT($C119,1),MATCH($E$2,'Data by Building Type'!$D$22:$F$22,0))=\"Yes\",1,0)*\n(AH$10*OFFSET('Efficiency Distributions'!$D$10,MATCH($C119,'Efficiency Distributions'!$C$9:$C$87,0)+RIGHT($E124),0)\n+AH$11*OFFSET('Efficiency Distributions'!$E$10,MATCH($C119,'Efficiency Distributions'!$C$9:$C$87,0)+RIGHT($E124),0))\n/SUM(AH$10:AH$11)","v":0},{"$f":"IF(INDEX(PC_MAPPING,RIGHT($C119,1),MATCH($E$2,'Data by Building Type'!$D$22:$F$22,0))=\"Yes\",1,0)*\n(AI$10*OFFSET('Efficiency Distributions'!$D$10,MATCH($C119,'Efficiency Distributions'!$C$9:$C$87,0)+RIGHT($E124),0)\n+AI$11*OFFSET('Efficiency Distributions'!$E$10,MATCH($C119,'Efficiency Distributions'!$C$9:$C$87,0)+RIGHT($E124),0))\n/SUM(AI$10:AI$11)","v":0},{"$f":"IF(INDEX(PC_MAPPING,RIGHT($C119,1),MATCH($E$2,'Data by Building Type'!$D$22:$F$22,0))=\"Yes\",1,0)*\n(AJ$10*OFFSET('Efficiency Distributions'!$D$10,MATCH($C119,'Efficiency Distributions'!$C$9:$C$87,0)+RIGHT($E124),0)\n+AJ$11*OFFSET('Efficiency Distributions'!$E$10,MATCH($C119,'Efficiency Distributions'!$C$9:$C$87,0)+RIGHT($E124),0))\n/SUM(AJ$10:AJ$11)","v":0},{"$f":"IF(INDEX(PC_MAPPING,RIGHT($C119,1),MATCH($E$2,'Data by Building Type'!$D$22:$F$22,0))=\"Yes\",1,0)*\n(AK$10*OFFSET('Efficiency Distributions'!$D$10,MATCH($C119,'Efficiency Distributions'!$C$9:$C$87,0)+RIGHT($E124),0)\n+AK$11*OFFSET('Efficiency Distributions'!$E$10,MATCH($C119,'Efficiency Distributions'!$C$9:$C$87,0)+RIGHT($E124),0))\n/SUM(AK$10:AK$11)","v":0},{"$f":"IF(INDEX(PC_MAPPING,RIGHT($C119,1),MATCH($E$2,'Data by Building Type'!$D$22:$F$22,0))=\"Yes\",1,0)*\n(AL$10*OFFSET('Efficiency Distributions'!$D$10,MATCH($C119,'Efficiency Distributions'!$C$9:$C$87,0)+RIGHT($E124),0)\n+AL$11*OFFSET('Efficiency Distributions'!$E$10,MATCH($C119,'Efficiency Distributions'!$C$9:$C$87,0)+RIGHT($E124),0))\n/SUM(AL$10:AL$11)","v":0},{"$f":"IF(INDEX(PC_MAPPING,RIGHT($C119,1),MATCH($E$2,'Data by Building Type'!$D$22:$F$22,0))=\"Yes\",1,0)*\n(AM$10*OFFSET('Efficiency Distributions'!$D$10,MATCH($C119,'Efficiency Distributions'!$C$9:$C$87,0)+RIGHT($E124),0)\n+AM$11*OFFSET('Efficiency Distributions'!$E$10,MATCH($C119,'Efficiency Distributions'!$C$9:$C$87,0)+RIGHT($E124),0))\n/SUM(AM$10:AM$11)","v":0},{"$f":"IF(INDEX(PC_MAPPING,RIGHT($C119,1),MATCH($E$2,'Data by Building Type'!$D$22:$F$22,0))=\"Yes\",1,0)*\n(AN$10*OFFSET('Efficiency Distributions'!$D$10,MATCH($C119,'Efficiency Distributions'!$C$9:$C$87,0)+RIGHT($E124),0)\n+AN$11*OFFSET('Efficiency Distributions'!$E$10,MATCH($C119,'Efficiency Distributions'!$C$9:$C$87,0)+RIGHT($E124),0))\n/SUM(AN$10:AN$11)","v":0},{"$f":"IF(INDEX(PC_MAPPING,RIGHT($C119,1),MATCH($E$2,'Data by Building Type'!$D$22:$F$22,0))=\"Yes\",1,0)*\n(AO$10*OFFSET('Efficiency Distributions'!$D$10,MATCH($C119,'Efficiency Distributions'!$C$9:$C$87,0)+RIGHT($E124),0)\n+AO$11*OFFSET('Efficiency Distributions'!$E$10,MATCH($C119,'Efficiency Distributions'!$C$9:$C$87,0)+RIGHT($E124),0))\n/SUM(AO$10:AO$11)","v":0},{"$f":"IF(INDEX(PC_MAPPING,RIGHT($C119,1),MATCH($E$2,'Data by Building Type'!$D$22:$F$22,0))=\"Yes\",1,0)*\n(AP$10*OFFSET('Efficiency Distributions'!$D$10,MATCH($C119,'Efficiency Distributions'!$C$9:$C$87,0)+RIGHT($E124),0)\n+AP$11*OFFSET('Efficiency Distributions'!$E$10,MATCH($C119,'Efficiency Distributions'!$C$9:$C$87,0)+RIGHT($E124),0))\n/SUM(AP$10:AP$11)","v":0},{"$f":"IF(INDEX(PC_MAPPING,RIGHT($C119,1),MATCH($E$2,'Data by Building Type'!$D$22:$F$22,0))=\"Yes\",1,0)*\n(AQ$10*OFFSET('Efficiency Distributions'!$D$10,MATCH($C119,'Efficiency Distributions'!$C$9:$C$87,0)+RIGHT($E124),0)\n+AQ$11*OFFSET('Efficiency Distributions'!$E$10,MATCH($C119,'Efficiency Distributions'!$C$9:$C$87,0)+RIGHT($E124),0))\n/SUM(AQ$10:AQ$11)","v":0},{"$f":"IF(INDEX(PC_MAPPING,RIGHT($C119,1),MATCH($E$2,'Data by Building Type'!$D$22:$F$22,0))=\"Yes\",1,0)*\n(AR$10*OFFSET('Efficiency Distributions'!$D$10,MATCH($C119,'Efficiency Distributions'!$C$9:$C$87,0)+RIGHT($E124),0)\n+AR$11*OFFSET('Efficiency Distributions'!$E$10,MATCH($C119,'Efficiency Distributions'!$C$9:$C$87,0)+RIGHT($E124),0))\n/SUM(AR$10:AR$11)","v":0},{"$f":"IF(INDEX(PC_MAPPING,RIGHT($C119,1),MATCH($E$2,'Data by Building Type'!$D$22:$F$22,0))=\"Yes\",1,0)*\n(AS$10*OFFSET('Efficiency Distributions'!$D$10,MATCH($C119,'Efficiency Distributions'!$C$9:$C$87,0)+RIGHT($E124),0)\n+AS$11*OFFSET('Efficiency Distributions'!$E$10,MATCH($C119,'Efficiency Distributions'!$C$9:$C$87,0)+RIGHT($E124),0))\n/SUM(AS$10:AS$11)","v":0},{"$f":"IF(INDEX(PC_MAPPING,RIGHT($C119,1),MATCH($E$2,'Data by Building Type'!$D$22:$F$22,0))=\"Yes\",1,0)*\n(AT$10*OFFSET('Efficiency Distributions'!$D$10,MATCH($C119,'Efficiency Distributions'!$C$9:$C$87,0)+RIGHT($E124),0)\n+AT$11*OFFSET('Efficiency Distributions'!$E$10,MATCH($C119,'Efficiency Distributions'!$C$9:$C$87,0)+RIGHT($E124),0))\n/SUM(AT$10:AT$11)","v":0},{"$f":"IF(INDEX(PC_MAPPING,RIGHT($C119,1),MATCH($E$2,'Data by Building Type'!$D$22:$F$22,0))=\"Yes\",1,0)*\n(AU$10*OFFSET('Efficiency Distributions'!$D$10,MATCH($C119,'Efficiency Distributions'!$C$9:$C$87,0)+RIGHT($E124),0)\n+AU$11*OFFSET('Efficiency Distributions'!$E$10,MATCH($C119,'Efficiency Distributions'!$C$9:$C$87,0)+RIGHT($E124),0))\n/SUM(AU$10:AU$11)","v":0},{"$f":"IF(INDEX(PC_MAPPING,RIGHT($C119,1),MATCH($E$2,'Data by Building Type'!$D$22:$F$22,0))=\"Yes\",1,0)*\n(AV$10*OFFSET('Efficiency Distributions'!$D$10,MATCH($C119,'Efficiency Distributions'!$C$9:$C$87,0)+RIGHT($E124),0)\n+AV$11*OFFSET('Efficiency Distributions'!$E$10,MATCH($C119,'Efficiency Distributions'!$C$9:$C$87,0)+RIGHT($E124),0))\n/SUM(AV$10:AV$11)","v":0},{"$f":"IF(INDEX(PC_MAPPING,RIGHT($C119,1),MATCH($E$2,'Data by Building Type'!$D$22:$F$22,0))=\"Yes\",1,0)*\n(AW$10*OFFSET('Efficiency Distributions'!$D$10,MATCH($C119,'Efficiency Distributions'!$C$9:$C$87,0)+RIGHT($E124),0)\n+AW$11*OFFSET('Efficiency Distributions'!$E$10,MATCH($C119,'Efficiency Distributions'!$C$9:$C$87,0)+RIGHT($E124),0))\n/SUM(AW$10:AW$11)","v":0},{"$f":"IF(INDEX(PC_MAPPING,RIGHT($C119,1),MATCH($E$2,'Data by Building Type'!$D$22:$F$22,0))=\"Yes\",1,0)*\n(AX$10*OFFSET('Efficiency Distributions'!$D$10,MATCH($C119,'Efficiency Distributions'!$C$9:$C$87,0)+RIGHT($E124),0)\n+AX$11*OFFSET('Efficiency Distributions'!$E$10,MATCH($C119,'Efficiency Distributions'!$C$9:$C$87,0)+RIGHT($E124),0))\n/SUM(AX$10:AX$11)","v":0},{"$f":"IF(INDEX(PC_MAPPING,RIGHT($C119,1),MATCH($E$2,'Data by Building Type'!$D$22:$F$22,0))=\"Yes\",1,0)*\n(AY$10*OFFSET('Efficiency Distributions'!$D$10,MATCH($C119,'Efficiency Distributions'!$C$9:$C$87,0)+RIGHT($E124),0)\n+AY$11*OFFSET('Efficiency Distributions'!$E$10,MATCH($C119,'Efficiency Distributions'!$C$9:$C$87,0)+RIGHT($E124),0))\n/SUM(AY$10:AY$11)","v":0},{"$f":"IF(INDEX(PC_MAPPING,RIGHT($C119,1),MATCH($E$2,'Data by Building Type'!$D$22:$F$22,0))=\"Yes\",1,0)*\n(AZ$10*OFFSET('Efficiency Distributions'!$D$10,MATCH($C119,'Efficiency Distributions'!$C$9:$C$87,0)+RIGHT($E124),0)\n+AZ$11*OFFSET('Efficiency Distributions'!$E$10,MATCH($C119,'Efficiency Distributions'!$C$9:$C$87,0)+RIGHT($E124),0))\n/SUM(AZ$10:AZ$11)","v":0},{"$f":"IF(INDEX(PC_MAPPING,RIGHT($C119,1),MATCH($E$2,'Data by Building Type'!$D$22:$F$22,0))=\"Yes\",1,0)*\n(BA$10*OFFSET('Efficiency Distributions'!$D$10,MATCH($C119,'Efficiency Distributions'!$C$9:$C$87,0)+RIGHT($E124),0)\n+BA$11*OFFSET('Efficiency Distributions'!$E$10,MATCH($C119,'Efficiency Distributions'!$C$9:$C$87,0)+RIGHT($E124),0))\n/SUM(BA$10:BA$11)","v":0},{"$f":"IF(INDEX(PC_MAPPING,RIGHT($C119,1),MATCH($E$2,'Data by Building Type'!$D$22:$F$22,0))=\"Yes\",1,0)*\n(BB$10*OFFSET('Efficiency Distributions'!$D$10,MATCH($C119,'Efficiency Distributions'!$C$9:$C$87,0)+RIGHT($E124),0)\n+BB$11*OFFSET('Efficiency Distributions'!$E$10,MATCH($C119,'Efficiency Distributions'!$C$9:$C$87,0)+RIGHT($E124),0))\n/SUM(BB$10:BB$11)","v":0},{"$f":"IF(INDEX(PC_MAPPING,RIGHT($C119,1),MATCH($E$2,'Data by Building Type'!$D$22:$F$22,0))=\"Yes\",1,0)*\n(BC$10*OFFSET('Efficiency Distributions'!$D$10,MATCH($C119,'Efficiency Distributions'!$C$9:$C$87,0)+RIGHT($E124),0)\n+BC$11*OFFSET('Efficiency Distributions'!$E$10,MATCH($C119,'Efficiency Distributions'!$C$9:$C$87,0)+RIGHT($E124),0))\n/SUM(BC$10:BC$11)","v":0},{"$f":"IF(INDEX(PC_MAPPING,RIGHT($C119,1),MATCH($E$2,'Data by Building Type'!$D$22:$F$22,0))=\"Yes\",1,0)*\n(BD$10*OFFSET('Efficiency Distributions'!$D$10,MATCH($C119,'Efficiency Distributions'!$C$9:$C$87,0)+RIGHT($E124),0)\n+BD$11*OFFSET('Efficiency Distributions'!$E$10,MATCH($C119,'Efficiency Distributions'!$C$9:$C$87,0)+RIGHT($E124),0))\n/SUM(BD$10:BD$11)","v":0},{"$f":"IF(INDEX(PC_MAPPING,RIGHT($C119,1),MATCH($E$2,'Data by Building Type'!$D$22:$F$22,0))=\"Yes\",1,0)*\n(BE$10*OFFSET('Efficiency Distributions'!$D$10,MATCH($C119,'Efficiency Distributions'!$C$9:$C$87,0)+RIGHT($E124),0)\n+BE$11*OFFSET('Efficiency Distributions'!$E$10,MATCH($C119,'Efficiency Distributions'!$C$9:$C$87,0)+RIGHT($E124),0))\n/SUM(BE$10:BE$11)","v":0},{"$f":"IF(INDEX(PC_MAPPING,RIGHT($C119,1),MATCH($E$2,'Data by Building Type'!$D$22:$F$22,0))=\"Yes\",1,0)*\n(BF$10*OFFSET('Efficiency Distributions'!$D$10,MATCH($C119,'Efficiency Distributions'!$C$9:$C$87,0)+RIGHT($E124),0)\n+BF$11*OFFSET('Efficiency Distributions'!$E$10,MATCH($C119,'Efficiency Distributions'!$C$9:$C$87,0)+RIGHT($E124),0))\n/SUM(BF$10:BF$11)","v":0},{"$f":"IF(INDEX(PC_MAPPING,RIGHT($C119,1),MATCH($E$2,'Data by Building Type'!$D$22:$F$22,0))=\"Yes\",1,0)*\n(BG$10*OFFSET('Efficiency Distributions'!$D$10,MATCH($C119,'Efficiency Distributions'!$C$9:$C$87,0)+RIGHT($E124),0)\n+BG$11*OFFSET('Efficiency Distributions'!$E$10,MATCH($C119,'Efficiency Distributions'!$C$9:$C$87,0)+RIGHT($E124),0))\n/SUM(BG$10:BG$11)","v":0}]
[null,null,null,null,"EL2",{"$f":"IF(INDEX(PC_MAPPING,RIGHT($C119,1),MATCH($E$2,'Data by Building Type'!$D$22:$F$22,0))=\"Yes\",1,0)*\n(F$10*OFFSET('Efficiency Distributions'!$D$10,MATCH($C119,'Efficiency Distributions'!$C$9:$C$87,0)+RIGHT($E125),0)\n+F$11*OFFSET('Efficiency Distributions'!$E$10,MATCH($C119,'Efficiency Distributions'!$C$9:$C$87,0)+RIGHT($E125),0))\n/SUM(F$10:F$11)","v":0},{"$f":"IF(INDEX(PC_MAPPING,RIGHT($C119,1),MATCH($E$2,'Data by Building Type'!$D$22:$F$22,0))=\"Yes\",1,0)*\n(G$10*OFFSET('Efficiency Distributions'!$D$10,MATCH($C119,'Efficiency Distributions'!$C$9:$C$87,0)+RIGHT($E125),0)\n+G$11*OFFSET('Efficiency Distributions'!$E$10,MATCH($C119,'Efficiency Distributions'!$C$9:$C$87,0)+RIGHT($E125),0))\n/SUM(G$10:G$11)","v":0},{"$f":"IF(INDEX(PC_MAPPING,RIGHT($C119,1),MATCH($E$2,'Data by Building Type'!$D$22:$F$22,0))=\"Yes\",1,0)*\n(H$10*OFFSET('Efficiency Distributions'!$D$10,MATCH($C119,'Efficiency Distributions'!$C$9:$C$87,0)+RIGHT($E125),0)\n+H$11*OFFSET('Efficiency Distributions'!$E$10,MATCH($C119,'Efficiency Distributions'!$C$9:$C$87,0)+RIGHT($E125),0))\n/SUM(H$10:H$11)","v":0},{"$f":"IF(INDEX(PC_MAPPING,RIGHT($C119,1),MATCH($E$2,'Data by Building Type'!$D$22:$F$22,0))=\"Yes\",1,0)*\n(I$10*OFFSET('Efficiency Distributions'!$D$10,MATCH($C119,'Efficiency Distributions'!$C$9:$C$87,0)+RIGHT($E125),0)\n+I$11*OFFSET('Efficiency Distributions'!$E$10,MATCH($C119,'Efficiency Distributions'!$C$9:$C$87,0)+RIGHT($E125),0))\n/SUM(I$10:I$11)","v":0},{"$f":"IF(INDEX(PC_MAPPING,RIGHT($C119,1),MATCH($E$2,'Data by Building Type'!$D$22:$F$22,0))=\"Yes\",1,0)*\n(J$10*OFFSET('Efficiency Distributions'!$D$10,MATCH($C119,'Efficiency Distributions'!$C$9:$C$87,0)+RIGHT($E125),0)\n+J$11*OFFSET('Efficiency Distributions'!$E$10,MATCH($C119,'Efficiency Distributions'!$C$9:$C$87,0)+RIGHT($E125),0))\n/SUM(J$10:J$11)","v":0},{"$f":"IF(INDEX(PC_MAPPING,RIGHT($C119,1),MATCH($E$2,'Data by Building Type'!$D$22:$F$22,0))=\"Yes\",1,0)*\n(K$10*OFFSET('Efficiency Distributions'!$D$10,MATCH($C119,'Efficiency Distributions'!$C$9:$C$87,0)+RIGHT($E125),0)\n+K$11*OFFSET('Efficiency Distributions'!$E$10,MATCH($C119,'Efficiency Distributions'!$C$9:$C$87,0)+RIGHT($E125),0))\n/SUM(K$10:K$11)","v":0},{"$f":"IF(INDEX(PC_MAPPING,RIGHT($C119,1),MATCH($E$2,'Data by Building Type'!$D$22:$F$22,0))=\"Yes\",1,0)*\n(L$10*OFFSET('Efficiency Distributions'!$D$10,MATCH($C119,'Efficiency Distributions'!$C$9:$C$87,0)+RIGHT($E125),0)\n+L$11*OFFSET('Efficiency Distributions'!$E$10,MATCH($C119,'Efficiency Distributions'!$C$9:$C$87,0)+RIGHT($E125),0))\n/SUM(L$10:L$11)","v":0},{"$f":"IF(INDEX(PC_MAPPING,RIGHT($C119,1),MATCH($E$2,'Data by Building Type'!$D$22:$F$22,0))=\"Yes\",1,0)*\n(M$10*OFFSET('Efficiency Distributions'!$D$10,MATCH($C119,'Efficiency Distributions'!$C$9:$C$87,0)+RIGHT($E125),0)\n+M$11*OFFSET('Efficiency Distributions'!$E$10,MATCH($C119,'Efficiency Distributions'!$C$9:$C$87,0)+RIGHT($E125),0))\n/SUM(M$10:M$11)","v":0},{"$f":"IF(INDEX(PC_MAPPING,RIGHT($C119,1),MATCH($E$2,'Data by Building Type'!$D$22:$F$22,0))=\"Yes\",1,0)*\n(N$10*OFFSET('Efficiency Distributions'!$D$10,MATCH($C119,'Efficiency Distributions'!$C$9:$C$87,0)+RIGHT($E125),0)\n+N$11*OFFSET('Efficiency Distributions'!$E$10,MATCH($C119,'Efficiency Distributions'!$C$9:$C$87,0)+RIGHT($E125),0))\n/SUM(N$10:N$11)","v":0},{"$f":"IF(INDEX(PC_MAPPING,RIGHT($C119,1),MATCH($E$2,'Data by Building Type'!$D$22:$F$22,0))=\"Yes\",1,0)*\n(O$10*OFFSET('Efficiency Distributions'!$D$10,MATCH($C119,'Efficiency Distributions'!$C$9:$C$87,0)+RIGHT($E125),0)\n+O$11*OFFSET('Efficiency Distributions'!$E$10,MATCH($C119,'Efficiency Distributions'!$C$9:$C$87,0)+RIGHT($E125),0))\n/SUM(O$10:O$11)","v":0},{"$f":"IF(INDEX(PC_MAPPING,RIGHT($C119,1),MATCH($E$2,'Data by Building Type'!$D$22:$F$22,0))=\"Yes\",1,0)*\n(P$10*OFFSET('Efficiency Distributions'!$D$10,MATCH($C119,'Efficiency Distributions'!$C$9:$C$87,0)+RIGHT($E125),0)\n+P$11*OFFSET('Efficiency Distributions'!$E$10,MATCH($C119,'Efficiency Distributions'!$C$9:$C$87,0)+RIGHT($E125),0))\n/SUM(P$10:P$11)","v":0},{"$f":"IF(INDEX(PC_MAPPING,RIGHT($C119,1),MATCH($E$2,'Data by Building Type'!$D$22:$F$22,0))=\"Yes\",1,0)*\n(Q$10*OFFSET('Efficiency Distributions'!$D$10,MATCH($C119,'Efficiency Distributions'!$C$9:$C$87,0)+RIGHT($E125),0)\n+Q$11*OFFSET('Efficiency Distributions'!$E$10,MATCH($C119,'Efficiency Distributions'!$C$9:$C$87,0)+RIGHT($E125),0))\n/SUM(Q$10:Q$11)","v":0},{"$f":"IF(INDEX(PC_MAPPING,RIGHT($C119,1),MATCH($E$2,'Data by Building Type'!$D$22:$F$22,0))=\"Yes\",1,0)*\n(R$10*OFFSET('Efficiency Distributions'!$D$10,MATCH($C119,'Efficiency Distributions'!$C$9:$C$87,0)+RIGHT($E125),0)\n+R$11*OFFSET('Efficiency Distributions'!$E$10,MATCH($C119,'Efficiency Distributions'!$C$9:$C$87,0)+RIGHT($E125),0))\n/SUM(R$10:R$11)","v":0},{"$f":"IF(INDEX(PC_MAPPING,RIGHT($C119,1),MATCH($E$2,'Data by Building Type'!$D$22:$F$22,0))=\"Yes\",1,0)*\n(S$10*OFFSET('Efficiency Distributions'!$D$10,MATCH($C119,'Efficiency Distributions'!$C$9:$C$87,0)+RIGHT($E125),0)\n+S$11*OFFSET('Efficiency Distributions'!$E$10,MATCH($C119,'Efficiency Distributions'!$C$9:$C$87,0)+RIGHT($E125),0))\n/SUM(S$10:S$11)","v":0},{"$f":"IF(INDEX(PC_MAPPING,RIGHT($C119,1),MATCH($E$2,'Data by Building Type'!$D$22:$F$22,0))=\"Yes\",1,0)*\n(T$10*OFFSET('Efficiency Distributions'!$D$10,MATCH($C119,'Efficiency Distributions'!$C$9:$C$87,0)+RIGHT($E125),0)\n+T$11*OFFSET('Efficiency Distributions'!$E$10,MATCH($C119,'Efficiency Distributions'!$C$9:$C$87,0)+RIGHT($E125),0))\n/SUM(T$10:T$11)","v":0},{"$f":"IF(INDEX(PC_MAPPING,RIGHT($C119,1),MATCH($E$2,'Data by Building Type'!$D$22:$F$22,0))=\"Yes\",1,0)*\n(U$10*OFFSET('Efficiency Distributions'!$D$10,MATCH($C119,'Efficiency Distributions'!$C$9:$C$87,0)+RIGHT($E125),0)\n+U$11*OFFSET('Efficiency Distributions'!$E$10,MATCH($C119,'Efficiency Distributions'!$C$9:$C$87,0)+RIGHT($E125),0))\n/SUM(U$10:U$11)","v":0},{"$f":"IF(INDEX(PC_MAPPING,RIGHT($C119,1),MATCH($E$2,'Data by Building Type'!$D$22:$F$22,0))=\"Yes\",1,0)*\n(V$10*OFFSET('Efficiency Distributions'!$D$10,MATCH($C119,'Efficiency Distributions'!$C$9:$C$87,0)+RIGHT($E125),0)\n+V$11*OFFSET('Efficiency Distributions'!$E$10,MATCH($C119,'Efficiency Distributions'!$C$9:$C$87,0)+RIGHT($E125),0))\n/SUM(V$10:V$11)","v":0},{"$f":"IF(INDEX(PC_MAPPING,RIGHT($C119,1),MATCH($E$2,'Data by Building Type'!$D$22:$F$22,0))=\"Yes\",1,0)*\n(W$10*OFFSET('Efficiency Distributions'!$D$10,MATCH($C119,'Efficiency Distributions'!$C$9:$C$87,0)+RIGHT($E125),0)\n+W$11*OFFSET('Efficiency Distributions'!$E$10,MATCH($C119,'Efficiency Distributions'!$C$9:$C$87,0)+RIGHT($E125),0))\n/SUM(W$10:W$11)","v":0},{"$f":"IF(INDEX(PC_MAPPING,RIGHT($C119,1),MATCH($E$2,'Data by Building Type'!$D$22:$F$22,0))=\"Yes\",1,0)*\n(X$10*OFFSET('Efficiency Distributions'!$D$10,MATCH($C119,'Efficiency Distributions'!$C$9:$C$87,0)+RIGHT($E125),0)\n+X$11*OFFSET('Efficiency Distributions'!$E$10,MATCH($C119,'Efficiency Distributions'!$C$9:$C$87,0)+RIGHT($E125),0))\n/SUM(X$10:X$11)","v":0},{"$f":"IF(INDEX(PC_MAPPING,RIGHT($C119,1),MATCH($E$2,'Data by Building Type'!$D$22:$F$22,0))=\"Yes\",1,0)*\n(Y$10*OFFSET('Efficiency Distributions'!$D$10,MATCH($C119,'Efficiency Distributions'!$C$9:$C$87,0)+RIGHT($E125),0)\n+Y$11*OFFSET('Efficiency Distributions'!$E$10,MATCH($C119,'Efficiency Distributions'!$C$9:$C$87,0)+RIGHT($E125),0))\n/SUM(Y$10:Y$11)","v":0},{"$f":"IF(INDEX(PC_MAPPING,RIGHT($C119,1),MATCH($E$2,'Data by Building Type'!$D$22:$F$22,0))=\"Yes\",1,0)*\n(Z$10*OFFSET('Efficiency Distributions'!$D$10,MATCH($C119,'Efficiency Distributions'!$C$9:$C$87,0)+RIGHT($E125),0)\n+Z$11*OFFSET('Efficiency Distributions'!$E$10,MATCH($C119,'Efficiency Distributions'!$C$9:$C$87,0)+RIGHT($E125),0))\n/SUM(Z$10:Z$11)","v":0},{"$f":"IF(INDEX(PC_MAPPING,RIGHT($C119,1),MATCH($E$2,'Data by Building Type'!$D$22:$F$22,0))=\"Yes\",1,0)*\n(AA$10*OFFSET('Efficiency Distributions'!$D$10,MATCH($C119,'Efficiency Distributions'!$C$9:$C$87,0)+RIGHT($E125),0)\n+AA$11*OFFSET('Efficiency Distributions'!$E$10,MATCH($C119,'Efficiency Distributions'!$C$9:$C$87,0)+RIGHT($E125),0))\n/SUM(AA$10:AA$11)","v":0},{"$f":"IF(INDEX(PC_MAPPING,RIGHT($C119,1),MATCH($E$2,'Data by Building Type'!$D$22:$F$22,0))=\"Yes\",1,0)*\n(AB$10*OFFSET('Efficiency Distributions'!$D$10,MATCH($C119,'Efficiency Distributions'!$C$9:$C$87,0)+RIGHT($E125),0)\n+AB$11*OFFSET('Efficiency Distributions'!$E$10,MATCH($C119,'Efficiency Distributions'!$C$9:$C$87,0)+RIGHT($E125),0))\n/SUM(AB$10:AB$11)","v":0},{"$f":"IF(INDEX(PC_MAPPING,RIGHT($C119,1),MATCH($E$2,'Data by Building Type'!$D$22:$F$22,0))=\"Yes\",1,0)*\n(AC$10*OFFSET('Efficiency Distributions'!$D$10,MATCH($C119,'Efficiency Distributions'!$C$9:$C$87,0)+RIGHT($E125),0)\n+AC$11*OFFSET('Efficiency Distributions'!$E$10,MATCH($C119,'Efficiency Distributions'!$C$9:$C$87,0)+RIGHT($E125),0))\n/SUM(AC$10:AC$11)","v":0},{"$f":"IF(INDEX(PC_MAPPING,RIGHT($C119,1),MATCH($E$2,'Data by Building Type'!$D$22:$F$22,0))=\"Yes\",1,0)*\n(AD$10*OFFSET('Efficiency Distributions'!$D$10,MATCH($C119,'Efficiency Distributions'!$C$9:$C$87,0)+RIGHT($E125),0)\n+AD$11*OFFSET('Efficiency Distributions'!$E$10,MATCH($C119,'Efficiency Distributions'!$C$9:$C$87,0)+RIGHT($E125),0))\n/SUM(AD$10:AD$11)","v":0},{"$f":"IF(INDEX(PC_MAPPING,RIGHT($C119,1),MATCH($E$2,'Data by Building Type'!$D$22:$F$22,0))=\"Yes\",1,0)*\n(AE$10*OFFSET('Efficiency Distributions'!$D$10,MATCH($C119,'Efficiency Distributions'!$C$9:$C$87,0)+RIGHT($E125),0)\n+AE$11*OFFSET('Efficiency Distributions'!$E$10,MATCH($C119,'Efficiency Distributions'!$C$9:$C$87,0)+RIGHT($E125),0))\n/SUM(AE$10:AE$11)","v":0},{"$f":"IF(INDEX(PC_MAPPING,RIGHT($C119,1),MATCH($E$2,'Data by Building Type'!$D$22:$F$22,0))=\"Yes\",1,0)*\n(AF$10*OFFSET('Efficiency Distributions'!$D$10,MATCH($C119,'Efficiency Distributions'!$C$9:$C$87,0)+RIGHT($E125),0)\n+AF$11*OFFSET('Efficiency Distributions'!$E$10,MATCH($C119,'Efficiency Distributions'!$C$9:$C$87,0)+RIGHT($E125),0))\n/SUM(AF$10:AF$11)","v":0},{"$f":"IF(INDEX(PC_MAPPING,RIGHT($C119,1),MATCH($E$2,'Data by Building Type'!$D$22:$F$22,0))=\"Yes\",1,0)*\n(AG$10*OFFSET('Efficiency Distributions'!$D$10,MATCH($C119,'Efficiency Distributions'!$C$9:$C$87,0)+RIGHT($E125),0)\n+AG$11*OFFSET('Efficiency Distributions'!$E$10,MATCH($C119,'Efficiency Distributions'!$C$9:$C$87,0)+RIGHT($E125),0))\n/SUM(AG$10:AG$11)","v":0},{"$f":"IF(INDEX(PC_MAPPING,RIGHT($C119,1),MATCH($E$2,'Data by Building Type'!$D$22:$F$22,0))=\"Yes\",1,0)*\n(AH$10*OFFSET('Efficiency Distributions'!$D$10,MATCH($C119,'Efficiency Distributions'!$C$9:$C$87,0)+RIGHT($E125),0)\n+AH$11*OFFSET('Efficiency Distributions'!$E$10,MATCH($C119,'Efficiency Distributions'!$C$9:$C$87,0)+RIGHT($E125),0))\n/SUM(AH$10:AH$11)","v":0},{"$f":"IF(INDEX(PC_MAPPING,RIGHT($C119,1),MATCH($E$2,'Data by Building Type'!$D$22:$F$22,0))=\"Yes\",1,0)*\n(AI$10*OFFSET('Efficiency Distributions'!$D$10,MATCH($C119,'Efficiency Distributions'!$C$9:$C$87,0)+RIGHT($E125),0)\n+AI$11*OFFSET('Efficiency Distributions'!$E$10,MATCH($C119,'Efficiency Distributions'!$C$9:$C$87,0)+RIGHT($E125),0))\n/SUM(AI$10:AI$11)","v":0},{"$f":"IF(INDEX(PC_MAPPING,RIGHT($C119,1),MATCH($E$2,'Data by Building Type'!$D$22:$F$22,0))=\"Yes\",1,0)*\n(AJ$10*OFFSET('Efficiency Distributions'!$D$10,MATCH($C119,'Efficiency Distributions'!$C$9:$C$87,0)+RIGHT($E125),0)\n+AJ$11*OFFSET('Efficiency Distributions'!$E$10,MATCH($C119,'Efficiency Distributions'!$C$9:$C$87,0)+RIGHT($E125),0))\n/SUM(AJ$10:AJ$11)","v":0},{"$f":"IF(INDEX(PC_MAPPING,RIGHT($C119,1),MATCH($E$2,'Data by Building Type'!$D$22:$F$22,0))=\"Yes\",1,0)*\n(AK$10*OFFSET('Efficiency Distributions'!$D$10,MATCH($C119,'Efficiency Distributions'!$C$9:$C$87,0)+RIGHT($E125),0)\n+AK$11*OFFSET('Efficiency Distributions'!$E$10,MATCH($C119,'Efficiency Distributions'!$C$9:$C$87,0)+RIGHT($E125),0))\n/SUM(AK$10:AK$11)","v":0},{"$f":"IF(INDEX(PC_MAPPING,RIGHT($C119,1),MATCH($E$2,'Data by Building Type'!$D$22:$F$22,0))=\"Yes\",1,0)*\n(AL$10*OFFSET('Efficiency Distributions'!$D$10,MATCH($C119,'Efficiency Distributions'!$C$9:$C$87,0)+RIGHT($E125),0)\n+AL$11*OFFSET('Efficiency Distributions'!$E$10,MATCH($C119,'Efficiency Distributions'!$C$9:$C$87,0)+RIGHT($E125),0))\n/SUM(AL$10:AL$11)","v":0},{"$f":"IF(INDEX(PC_MAPPING,RIGHT($C119,1),MATCH($E$2,'Data by Building Type'!$D$22:$F$22,0))=\"Yes\",1,0)*\n(AM$10*OFFSET('Efficiency Distributions'!$D$10,MATCH($C119,'Efficiency Distributions'!$C$9:$C$87,0)+RIGHT($E125),0)\n+AM$11*OFFSET('Efficiency Distributions'!$E$10,MATCH($C119,'Efficiency Distributions'!$C$9:$C$87,0)+RIGHT($E125),0))\n/SUM(AM$10:AM$11)","v":0},{"$f":"IF(INDEX(PC_MAPPING,RIGHT($C119,1),MATCH($E$2,'Data by Building Type'!$D$22:$F$22,0))=\"Yes\",1,0)*\n(AN$10*OFFSET('Efficiency Distributions'!$D$10,MATCH($C119,'Efficiency Distributions'!$C$9:$C$87,0)+RIGHT($E125),0)\n+AN$11*OFFSET('Efficiency Distributions'!$E$10,MATCH($C119,'Efficiency Distributions'!$C$9:$C$87,0)+RIGHT($E125),0))\n/SUM(AN$10:AN$11)","v":0},{"$f":"IF(INDEX(PC_MAPPING,RIGHT($C119,1),MATCH($E$2,'Data by Building Type'!$D$22:$F$22,0))=\"Yes\",1,0)*\n(AO$10*OFFSET('Efficiency Distributions'!$D$10,MATCH($C119,'Efficiency Distributions'!$C$9:$C$87,0)+RIGHT($E125),0)\n+AO$11*OFFSET('Efficiency Distributions'!$E$10,MATCH($C119,'Efficiency Distributions'!$C$9:$C$87,0)+RIGHT($E125),0))\n/SUM(AO$10:AO$11)","v":0},{"$f":"IF(INDEX(PC_MAPPING,RIGHT($C119,1),MATCH($E$2,'Data by Building Type'!$D$22:$F$22,0))=\"Yes\",1,0)*\n(AP$10*OFFSET('Efficiency Distributions'!$D$10,MATCH($C119,'Efficiency Distributions'!$C$9:$C$87,0)+RIGHT($E125),0)\n+AP$11*OFFSET('Efficiency Distributions'!$E$10,MATCH($C119,'Efficiency Distributions'!$C$9:$C$87,0)+RIGHT($E125),0))\n/SUM(AP$10:AP$11)","v":0},{"$f":"IF(INDEX(PC_MAPPING,RIGHT($C119,1),MATCH($E$2,'Data by Building Type'!$D$22:$F$22,0))=\"Yes\",1,0)*\n(AQ$10*OFFSET('Efficiency Distributions'!$D$10,MATCH($C119,'Efficiency Distributions'!$C$9:$C$87,0)+RIGHT($E125),0)\n+AQ$11*OFFSET('Efficiency Distributions'!$E$10,MATCH($C119,'Efficiency Distributions'!$C$9:$C$87,0)+RIGHT($E125),0))\n/SUM(AQ$10:AQ$11)","v":0},{"$f":"IF(INDEX(PC_MAPPING,RIGHT($C119,1),MATCH($E$2,'Data by Building Type'!$D$22:$F$22,0))=\"Yes\",1,0)*\n(AR$10*OFFSET('Efficiency Distributions'!$D$10,MATCH($C119,'Efficiency Distributions'!$C$9:$C$87,0)+RIGHT($E125),0)\n+AR$11*OFFSET('Efficiency Distributions'!$E$10,MATCH($C119,'Efficiency Distributions'!$C$9:$C$87,0)+RIGHT($E125),0))\n/SUM(AR$10:AR$11)","v":0},{"$f":"IF(INDEX(PC_MAPPING,RIGHT($C119,1),MATCH($E$2,'Data by Building Type'!$D$22:$F$22,0))=\"Yes\",1,0)*\n(AS$10*OFFSET('Efficiency Distributions'!$D$10,MATCH($C119,'Efficiency Distributions'!$C$9:$C$87,0)+RIGHT($E125),0)\n+AS$11*OFFSET('Efficiency Distributions'!$E$10,MATCH($C119,'Efficiency Distributions'!$C$9:$C$87,0)+RIGHT($E125),0))\n/SUM(AS$10:AS$11)","v":0},{"$f":"IF(INDEX(PC_MAPPING,RIGHT($C119,1),MATCH($E$2,'Data by Building Type'!$D$22:$F$22,0))=\"Yes\",1,0)*\n(AT$10*OFFSET('Efficiency Distributions'!$D$10,MATCH($C119,'Efficiency Distributions'!$C$9:$C$87,0)+RIGHT($E125),0)\n+AT$11*OFFSET('Efficiency Distributions'!$E$10,MATCH($C119,'Efficiency Distributions'!$C$9:$C$87,0)+RIGHT($E125),0))\n/SUM(AT$10:AT$11)","v":0},{"$f":"IF(INDEX(PC_MAPPING,RIGHT($C119,1),MATCH($E$2,'Data by Building Type'!$D$22:$F$22,0))=\"Yes\",1,0)*\n(AU$10*OFFSET('Efficiency Distributions'!$D$10,MATCH($C119,'Efficiency Distributions'!$C$9:$C$87,0)+RIGHT($E125),0)\n+AU$11*OFFSET('Efficiency Distributions'!$E$10,MATCH($C119,'Efficiency Distributions'!$C$9:$C$87,0)+RIGHT($E125),0))\n/SUM(AU$10:AU$11)","v":0},{"$f":"IF(INDEX(PC_MAPPING,RIGHT($C119,1),MATCH($E$2,'Data by Building Type'!$D$22:$F$22,0))=\"Yes\",1,0)*\n(AV$10*OFFSET('Efficiency Distributions'!$D$10,MATCH($C119,'Efficiency Distributions'!$C$9:$C$87,0)+RIGHT($E125),0)\n+AV$11*OFFSET('Efficiency Distributions'!$E$10,MATCH($C119,'Efficiency Distributions'!$C$9:$C$87,0)+RIGHT($E125),0))\n/SUM(AV$10:AV$11)","v":0},{"$f":"IF(INDEX(PC_MAPPING,RIGHT($C119,1),MATCH($E$2,'Data by Building Type'!$D$22:$F$22,0))=\"Yes\",1,0)*\n(AW$10*OFFSET('Efficiency Distributions'!$D$10,MATCH($C119,'Efficiency Distributions'!$C$9:$C$87,0)+RIGHT($E125),0)\n+AW$11*OFFSET('Efficiency Distributions'!$E$10,MATCH($C119,'Efficiency Distributions'!$C$9:$C$87,0)+RIGHT($E125),0))\n/SUM(AW$10:AW$11)","v":0},{"$f":"IF(INDEX(PC_MAPPING,RIGHT($C119,1),MATCH($E$2,'Data by Building Type'!$D$22:$F$22,0))=\"Yes\",1,0)*\n(AX$10*OFFSET('Efficiency Distributions'!$D$10,MATCH($C119,'Efficiency Distributions'!$C$9:$C$87,0)+RIGHT($E125),0)\n+AX$11*OFFSET('Efficiency Distributions'!$E$10,MATCH($C119,'Efficiency Distributions'!$C$9:$C$87,0)+RIGHT($E125),0))\n/SUM(AX$10:AX$11)","v":0},{"$f":"IF(INDEX(PC_MAPPING,RIGHT($C119,1),MATCH($E$2,'Data by Building Type'!$D$22:$F$22,0))=\"Yes\",1,0)*\n(AY$10*OFFSET('Efficiency Distributions'!$D$10,MATCH($C119,'Efficiency Distributions'!$C$9:$C$87,0)+RIGHT($E125),0)\n+AY$11*OFFSET('Efficiency Distributions'!$E$10,MATCH($C119,'Efficiency Distributions'!$C$9:$C$87,0)+RIGHT($E125),0))\n/SUM(AY$10:AY$11)","v":0},{"$f":"IF(INDEX(PC_MAPPING,RIGHT($C119,1),MATCH($E$2,'Data by Building Type'!$D$22:$F$22,0))=\"Yes\",1,0)*\n(AZ$10*OFFSET('Efficiency Distributions'!$D$10,MATCH($C119,'Efficiency Distributions'!$C$9:$C$87,0)+RIGHT($E125),0)\n+AZ$11*OFFSET('Efficiency Distributions'!$E$10,MATCH($C119,'Efficiency Distributions'!$C$9:$C$87,0)+RIGHT($E125),0))\n/SUM(AZ$10:AZ$11)","v":0},{"$f":"IF(INDEX(PC_MAPPING,RIGHT($C119,1),MATCH($E$2,'Data by Building Type'!$D$22:$F$22,0))=\"Yes\",1,0)*\n(BA$10*OFFSET('Efficiency Distributions'!$D$10,MATCH($C119,'Efficiency Distributions'!$C$9:$C$87,0)+RIGHT($E125),0)\n+BA$11*OFFSET('Efficiency Distributions'!$E$10,MATCH($C119,'Efficiency Distributions'!$C$9:$C$87,0)+RIGHT($E125),0))\n/SUM(BA$10:BA$11)","v":0},{"$f":"IF(INDEX(PC_MAPPING,RIGHT($C119,1),MATCH($E$2,'Data by Building Type'!$D$22:$F$22,0))=\"Yes\",1,0)*\n(BB$10*OFFSET('Efficiency Distributions'!$D$10,MATCH($C119,'Efficiency Distributions'!$C$9:$C$87,0)+RIGHT($E125),0)\n+BB$11*OFFSET('Efficiency Distributions'!$E$10,MATCH($C119,'Efficiency Distributions'!$C$9:$C$87,0)+RIGHT($E125),0))\n/SUM(BB$10:BB$11)","v":0},{"$f":"IF(INDEX(PC_MAPPING,RIGHT($C119,1),MATCH($E$2,'Data by Building Type'!$D$22:$F$22,0))=\"Yes\",1,0)*\n(BC$10*OFFSET('Efficiency Distributions'!$D$10,MATCH($C119,'Efficiency Distributions'!$C$9:$C$87,0)+RIGHT($E125),0)\n+BC$11*OFFSET('Efficiency Distributions'!$E$10,MATCH($C119,'Efficiency Distributions'!$C$9:$C$87,0)+RIGHT($E125),0))\n/SUM(BC$10:BC$11)","v":0},{"$f":"IF(INDEX(PC_MAPPING,RIGHT($C119,1),MATCH($E$2,'Data by Building Type'!$D$22:$F$22,0))=\"Yes\",1,0)*\n(BD$10*OFFSET('Efficiency Distributions'!$D$10,MATCH($C119,'Efficiency Distributions'!$C$9:$C$87,0)+RIGHT($E125),0)\n+BD$11*OFFSET('Efficiency Distributions'!$E$10,MATCH($C119,'Efficiency Distributions'!$C$9:$C$87,0)+RIGHT($E125),0))\n/SUM(BD$10:BD$11)","v":0},{"$f":"IF(INDEX(PC_MAPPING,RIGHT($C119,1),MATCH($E$2,'Data by Building Type'!$D$22:$F$22,0))=\"Yes\",1,0)*\n(BE$10*OFFSET('Efficiency Distributions'!$D$10,MATCH($C119,'Efficiency Distributions'!$C$9:$C$87,0)+RIGHT($E125),0)\n+BE$11*OFFSET('Efficiency Distributions'!$E$10,MATCH($C119,'Efficiency Distributions'!$C$9:$C$87,0)+RIGHT($E125),0))\n/SUM(BE$10:BE$11)","v":0},{"$f":"IF(INDEX(PC_MAPPING,RIGHT($C119,1),MATCH($E$2,'Data by Building Type'!$D$22:$F$22,0))=\"Yes\",1,0)*\n(BF$10*OFFSET('Efficiency Distributions'!$D$10,MATCH($C119,'Efficiency Distributions'!$C$9:$C$87,0)+RIGHT($E125),0)\n+BF$11*OFFSET('Efficiency Distributions'!$E$10,MATCH($C119,'Efficiency Distributions'!$C$9:$C$87,0)+RIGHT($E125),0))\n/SUM(BF$10:BF$11)","v":0},{"$f":"IF(INDEX(PC_MAPPING,RIGHT($C119,1),MATCH($E$2,'Data by Building Type'!$D$22:$F$22,0))=\"Yes\",1,0)*\n(BG$10*OFFSET('Efficiency Distributions'!$D$10,MATCH($C119,'Efficiency Distributions'!$C$9:$C$87,0)+RIGHT($E125),0)\n+BG$11*OFFSET('Efficiency Distributions'!$E$10,MATCH($C119,'Efficiency Distributions'!$C$9:$C$87,0)+RIGHT($E125),0))\n/SUM(BG$10:BG$11)","v":0}]
[null,null,null,null,"EL3",{"$f":"IF(INDEX(PC_MAPPING,RIGHT($C119,1),MATCH($E$2,'Data by Building Type'!$D$22:$F$22,0))=\"Yes\",1,0)*\n(F$10*OFFSET('Efficiency Distributions'!$D$10,MATCH($C119,'Efficiency Distributions'!$C$9:$C$87,0)+RIGHT($E126),0)\n+F$11*OFFSET('Efficiency Distributions'!$E$10,MATCH($C119,'Efficiency Distributions'!$C$9:$C$87,0)+RIGHT($E126),0))\n/SUM(F$10:F$11)","v":0},{"$f":"IF(INDEX(PC_MAPPING,RIGHT($C119,1),MATCH($E$2,'Data by Building Type'!$D$22:$F$22,0))=\"Yes\",1,0)*\n(G$10*OFFSET('Efficiency Distributions'!$D$10,MATCH($C119,'Efficiency Distributions'!$C$9:$C$87,0)+RIGHT($E126),0)\n+G$11*OFFSET('Efficiency Distributions'!$E$10,MATCH($C119,'Efficiency Distributions'!$C$9:$C$87,0)+RIGHT($E126),0))\n/SUM(G$10:G$11)","v":0},{"$f":"IF(INDEX(PC_MAPPING,RIGHT($C119,1),MATCH($E$2,'Data by Building Type'!$D$22:$F$22,0))=\"Yes\",1,0)*\n(H$10*OFFSET('Efficiency Distributions'!$D$10,MATCH($C119,'Efficiency Distributions'!$C$9:$C$87,0)+RIGHT($E126),0)\n+H$11*OFFSET('Efficiency Distributions'!$E$10,MATCH($C119,'Efficiency Distributions'!$C$9:$C$87,0)+RIGHT($E126),0))\n/SUM(H$10:H$11)","v":0},{"$f":"IF(INDEX(PC_MAPPING,RIGHT($C119,1),MATCH($E$2,'Data by Building Type'!$D$22:$F$22,0))=\"Yes\",1,0)*\n(I$10*OFFSET('Efficiency Distributions'!$D$10,MATCH($C119,'Efficiency Distributions'!$C$9:$C$87,0)+RIGHT($E126),0)\n+I$11*OFFSET('Efficiency Distributions'!$E$10,MATCH($C119,'Efficiency Distributions'!$C$9:$C$87,0)+RIGHT($E126),0))\n/SUM(I$10:I$11)","v":0},{"$f":"IF(INDEX(PC_MAPPING,RIGHT($C119,1),MATCH($E$2,'Data by Building Type'!$D$22:$F$22,0))=\"Yes\",1,0)*\n(J$10*OFFSET('Efficiency Distributions'!$D$10,MATCH($C119,'Efficiency Distributions'!$C$9:$C$87,0)+RIGHT($E126),0)\n+J$11*OFFSET('Efficiency Distributions'!$E$10,MATCH($C119,'Efficiency Distributions'!$C$9:$C$87,0)+RIGHT($E126),0))\n/SUM(J$10:J$11)","v":0},{"$f":"IF(INDEX(PC_MAPPING,RIGHT($C119,1),MATCH($E$2,'Data by Building Type'!$D$22:$F$22,0))=\"Yes\",1,0)*\n(K$10*OFFSET('Efficiency Distributions'!$D$10,MATCH($C119,'Efficiency Distributions'!$C$9:$C$87,0)+RIGHT($E126),0)\n+K$11*OFFSET('Efficiency Distributions'!$E$10,MATCH($C119,'Efficiency Distributions'!$C$9:$C$87,0)+RIGHT($E126),0))\n/SUM(K$10:K$11)","v":0},{"$f":"IF(INDEX(PC_MAPPING,RIGHT($C119,1),MATCH($E$2,'Data by Building Type'!$D$22:$F$22,0))=\"Yes\",1,0)*\n(L$10*OFFSET('Efficiency Distributions'!$D$10,MATCH($C119,'Efficiency Distributions'!$C$9:$C$87,0)+RIGHT($E126),0)\n+L$11*OFFSET('Efficiency Distributions'!$E$10,MATCH($C119,'Efficiency Distributions'!$C$9:$C$87,0)+RIGHT($E126),0))\n/SUM(L$10:L$11)","v":0},{"$f":"IF(INDEX(PC_MAPPING,RIGHT($C119,1),MATCH($E$2,'Data by Building Type'!$D$22:$F$22,0))=\"Yes\",1,0)*\n(M$10*OFFSET('Efficiency Distributions'!$D$10,MATCH($C119,'Efficiency Distributions'!$C$9:$C$87,0)+RIGHT($E126),0)\n+M$11*OFFSET('Efficiency Distributions'!$E$10,MATCH($C119,'Efficiency Distributions'!$C$9:$C$87,0)+RIGHT($E126),0))\n/SUM(M$10:M$11)","v":0},{"$f":"IF(INDEX(PC_MAPPING,RIGHT($C119,1),MATCH($E$2,'Data by Building Type'!$D$22:$F$22,0))=\"Yes\",1,0)*\n(N$10*OFFSET('Efficiency Distributions'!$D$10,MATCH($C119,'Efficiency Distributions'!$C$9:$C$87,0)+RIGHT($E126),0)\n+N$11*OFFSET('Efficiency Distributions'!$E$10,MATCH($C119,'Efficiency Distributions'!$C$9:$C$87,0)+RIGHT($E126),0))\n/SUM(N$10:N$11)","v":0},{"$f":"IF(INDEX(PC_MAPPING,RIGHT($C119,1),MATCH($E$2,'Data by Building Type'!$D$22:$F$22,0))=\"Yes\",1,0)*\n(O$10*OFFSET('Efficiency Distributions'!$D$10,MATCH($C119,'Efficiency Distributions'!$C$9:$C$87,0)+RIGHT($E126),0)\n+O$11*OFFSET('Efficiency Distributions'!$E$10,MATCH($C119,'Efficiency Distributions'!$C$9:$C$87,0)+RIGHT($E126),0))\n/SUM(O$10:O$11)","v":0},{"$f":"IF(INDEX(PC_MAPPING,RIGHT($C119,1),MATCH($E$2,'Data by Building Type'!$D$22:$F$22,0))=\"Yes\",1,0)*\n(P$10*OFFSET('Efficiency Distributions'!$D$10,MATCH($C119,'Efficiency Distributions'!$C$9:$C$87,0)+RIGHT($E126),0)\n+P$11*OFFSET('Efficiency Distributions'!$E$10,MATCH($C119,'Efficiency Distributions'!$C$9:$C$87,0)+RIGHT($E126),0))\n/SUM(P$10:P$11)","v":0},{"$f":"IF(INDEX(PC_MAPPING,RIGHT($C119,1),MATCH($E$2,'Data by Building Type'!$D$22:$F$22,0))=\"Yes\",1,0)*\n(Q$10*OFFSET('Efficiency Distributions'!$D$10,MATCH($C119,'Efficiency Distributions'!$C$9:$C$87,0)+RIGHT($E126),0)\n+Q$11*OFFSET('Efficiency Distributions'!$E$10,MATCH($C119,'Efficiency Distributions'!$C$9:$C$87,0)+RIGHT($E126),0))\n/SUM(Q$10:Q$11)","v":0},{"$f":"IF(INDEX(PC_MAPPING,RIGHT($C119,1),MATCH($E$2,'Data by Building Type'!$D$22:$F$22,0))=\"Yes\",1,0)*\n(R$10*OFFSET('Efficiency Distributions'!$D$10,MATCH($C119,'Efficiency Distributions'!$C$9:$C$87,0)+RIGHT($E126),0)\n+R$11*OFFSET('Efficiency Distributions'!$E$10,MATCH($C119,'Efficiency Distributions'!$C$9:$C$87,0)+RIGHT($E126),0))\n/SUM(R$10:R$11)","v":0},{"$f":"IF(INDEX(PC_MAPPING,RIGHT($C119,1),MATCH($E$2,'Data by Building Type'!$D$22:$F$22,0))=\"Yes\",1,0)*\n(S$10*OFFSET('Efficiency Distributions'!$D$10,MATCH($C119,'Efficiency Distributions'!$C$9:$C$87,0)+RIGHT($E126),0)\n+S$11*OFFSET('Efficiency Distributions'!$E$10,MATCH($C119,'Efficiency Distributions'!$C$9:$C$87,0)+RIGHT($E126),0))\n/SUM(S$10:S$11)","v":0},{"$f":"IF(INDEX(PC_MAPPING,RIGHT($C119,1),MATCH($E$2,'Data by Building Type'!$D$22:$F$22,0))=\"Yes\",1,0)*\n(T$10*OFFSET('Efficiency Distributions'!$D$10,MATCH($C119,'Efficiency Distributions'!$C$9:$C$87,0)+RIGHT($E126),0)\n+T$11*OFFSET('Efficiency Distributions'!$E$10,MATCH($C119,'Efficiency Distributions'!$C$9:$C$87,0)+RIGHT($E126),0))\n/SUM(T$10:T$11)","v":0},{"$f":"IF(INDEX(PC_MAPPING,RIGHT($C119,1),MATCH($E$2,'Data by Building Type'!$D$22:$F$22,0))=\"Yes\",1,0)*\n(U$10*OFFSET('Efficiency Distributions'!$D$10,MATCH($C119,'Efficiency Distributions'!$C$9:$C$87,0)+RIGHT($E126),0)\n+U$11*OFFSET('Efficiency Distributions'!$E$10,MATCH($C119,'Efficiency Distributions'!$C$9:$C$87,0)+RIGHT($E126),0))\n/SUM(U$10:U$11)","v":0},{"$f":"IF(INDEX(PC_MAPPING,RIGHT($C119,1),MATCH($E$2,'Data by Building Type'!$D$22:$F$22,0))=\"Yes\",1,0)*\n(V$10*OFFSET('Efficiency Distributions'!$D$10,MATCH($C119,'Efficiency Distributions'!$C$9:$C$87,0)+RIGHT($E126),0)\n+V$11*OFFSET('Efficiency Distributions'!$E$10,MATCH($C119,'Efficiency Distributions'!$C$9:$C$87,0)+RIGHT($E126),0))\n/SUM(V$10:V$11)","v":0},{"$f":"IF(INDEX(PC_MAPPING,RIGHT($C119,1),MATCH($E$2,'Data by Building Type'!$D$22:$F$22,0))=\"Yes\",1,0)*\n(W$10*OFFSET('Efficiency Distributions'!$D$10,MATCH($C119,'Efficiency Distributions'!$C$9:$C$87,0)+RIGHT($E126),0)\n+W$11*OFFSET('Efficiency Distributions'!$E$10,MATCH($C119,'Efficiency Distributions'!$C$9:$C$87,0)+RIGHT($E126),0))\n/SUM(W$10:W$11)","v":0},{"$f":"IF(INDEX(PC_MAPPING,RIGHT($C119,1),MATCH($E$2,'Data by Building Type'!$D$22:$F$22,0))=\"Yes\",1,0)*\n(X$10*OFFSET('Efficiency Distributions'!$D$10,MATCH($C119,'Efficiency Distributions'!$C$9:$C$87,0)+RIGHT($E126),0)\n+X$11*OFFSET('Efficiency Distributions'!$E$10,MATCH($C119,'Efficiency Distributions'!$C$9:$C$87,0)+RIGHT($E126),0))\n/SUM(X$10:X$11)","v":0},{"$f":"IF(INDEX(PC_MAPPING,RIGHT($C119,1),MATCH($E$2,'Data by Building Type'!$D$22:$F$22,0))=\"Yes\",1,0)*\n(Y$10*OFFSET('Efficiency Distributions'!$D$10,MATCH($C119,'Efficiency Distributions'!$C$9:$C$87,0)+RIGHT($E126),0)\n+Y$11*OFFSET('Efficiency Distributions'!$E$10,MATCH($C119,'Efficiency Distributions'!$C$9:$C$87,0)+RIGHT($E126),0))\n/SUM(Y$10:Y$11)","v":0},{"$f":"IF(INDEX(PC_MAPPING,RIGHT($C119,1),MATCH($E$2,'Data by Building Type'!$D$22:$F$22,0))=\"Yes\",1,0)*\n(Z$10*OFFSET('Efficiency Distributions'!$D$10,MATCH($C119,'Efficiency Distributions'!$C$9:$C$87,0)+RIGHT($E126),0)\n+Z$11*OFFSET('Efficiency Distributions'!$E$10,MATCH($C119,'Efficiency Distributions'!$C$9:$C$87,0)+RIGHT($E126),0))\n/SUM(Z$10:Z$11)","v":0},{"$f":"IF(INDEX(PC_MAPPING,RIGHT($C119,1),MATCH($E$2,'Data by Building Type'!$D$22:$F$22,0))=\"Yes\",1,0)*\n(AA$10*OFFSET('Efficiency Distributions'!$D$10,MATCH($C119,'Efficiency Distributions'!$C$9:$C$87,0)+RIGHT($E126),0)\n+AA$11*OFFSET('Efficiency Distributions'!$E$10,MATCH($C119,'Efficiency Distributions'!$C$9:$C$87,0)+RIGHT($E126),0))\n/SUM(AA$10:AA$11)","v":0},{"$f":"IF(INDEX(PC_MAPPING,RIGHT($C119,1),MATCH($E$2,'Data by Building Type'!$D$22:$F$22,0))=\"Yes\",1,0)*\n(AB$10*OFFSET('Efficiency Distributions'!$D$10,MATCH($C119,'Efficiency Distributions'!$C$9:$C$87,0)+RIGHT($E126),0)\n+AB$11*OFFSET('Efficiency Distributions'!$E$10,MATCH($C119,'Efficiency Distributions'!$C$9:$C$87,0)+RIGHT($E126),0))\n/SUM(AB$10:AB$11)","v":0},{"$f":"IF(INDEX(PC_MAPPING,RIGHT($C119,1),MATCH($E$2,'Data by Building Type'!$D$22:$F$22,0))=\"Yes\",1,0)*\n(AC$10*OFFSET('Efficiency Distributions'!$D$10,MATCH($C119,'Efficiency Distributions'!$C$9:$C$87,0)+RIGHT($E126),0)\n+AC$11*OFFSET('Efficiency Distributions'!$E$10,MATCH($C119,'Efficiency Distributions'!$C$9:$C$87,0)+RIGHT($E126),0))\n/SUM(AC$10:AC$11)","v":0},{"$f":"IF(INDEX(PC_MAPPING,RIGHT($C119,1),MATCH($E$2,'Data by Building Type'!$D$22:$F$22,0))=\"Yes\",1,0)*\n(AD$10*OFFSET('Efficiency Distributions'!$D$10,MATCH($C119,'Efficiency Distributions'!$C$9:$C$87,0)+RIGHT($E126),0)\n+AD$11*OFFSET('Efficiency Distributions'!$E$10,MATCH($C119,'Efficiency Distributions'!$C$9:$C$87,0)+RIGHT($E126),0))\n/SUM(AD$10:AD$11)","v":0},{"$f":"IF(INDEX(PC_MAPPING,RIGHT($C119,1),MATCH($E$2,'Data by Building Type'!$D$22:$F$22,0))=\"Yes\",1,0)*\n(AE$10*OFFSET('Efficiency Distributions'!$D$10,MATCH($C119,'Efficiency Distributions'!$C$9:$C$87,0)+RIGHT($E126),0)\n+AE$11*OFFSET('Efficiency Distributions'!$E$10,MATCH($C119,'Efficiency Distributions'!$C$9:$C$87,0)+RIGHT($E126),0))\n/SUM(AE$10:AE$11)","v":0},{"$f":"IF(INDEX(PC_MAPPING,RIGHT($C119,1),MATCH($E$2,'Data by Building Type'!$D$22:$F$22,0))=\"Yes\",1,0)*\n(AF$10*OFFSET('Efficiency Distributions'!$D$10,MATCH($C119,'Efficiency Distributions'!$C$9:$C$87,0)+RIGHT($E126),0)\n+AF$11*OFFSET('Efficiency Distributions'!$E$10,MATCH($C119,'Efficiency Distributions'!$C$9:$C$87,0)+RIGHT($E126),0))\n/SUM(AF$10:AF$11)","v":0},{"$f":"IF(INDEX(PC_MAPPING,RIGHT($C119,1),MATCH($E$2,'Data by Building Type'!$D$22:$F$22,0))=\"Yes\",1,0)*\n(AG$10*OFFSET('Efficiency Distributions'!$D$10,MATCH($C119,'Efficiency Distributions'!$C$9:$C$87,0)+RIGHT($E126),0)\n+AG$11*OFFSET('Efficiency Distributions'!$E$10,MATCH($C119,'Efficiency Distributions'!$C$9:$C$87,0)+RIGHT($E126),0))\n/SUM(AG$10:AG$11)","v":0},{"$f":"IF(INDEX(PC_MAPPING,RIGHT($C119,1),MATCH($E$2,'Data by Building Type'!$D$22:$F$22,0))=\"Yes\",1,0)*\n(AH$10*OFFSET('Efficiency Distributions'!$D$10,MATCH($C119,'Efficiency Distributions'!$C$9:$C$87,0)+RIGHT($E126),0)\n+AH$11*OFFSET('Efficiency Distributions'!$E$10,MATCH($C119,'Efficiency Distributions'!$C$9:$C$87,0)+RIGHT($E126),0))\n/SUM(AH$10:AH$11)","v":0},{"$f":"IF(INDEX(PC_MAPPING,RIGHT($C119,1),MATCH($E$2,'Data by Building Type'!$D$22:$F$22,0))=\"Yes\",1,0)*\n(AI$10*OFFSET('Efficiency Distributions'!$D$10,MATCH($C119,'Efficiency Distributions'!$C$9:$C$87,0)+RIGHT($E126),0)\n+AI$11*OFFSET('Efficiency Distributions'!$E$10,MATCH($C119,'Efficiency Distributions'!$C$9:$C$87,0)+RIGHT($E126),0))\n/SUM(AI$10:AI$11)","v":0},{"$f":"IF(INDEX(PC_MAPPING,RIGHT($C119,1),MATCH($E$2,'Data by Building Type'!$D$22:$F$22,0))=\"Yes\",1,0)*\n(AJ$10*OFFSET('Efficiency Distributions'!$D$10,MATCH($C119,'Efficiency Distributions'!$C$9:$C$87,0)+RIGHT($E126),0)\n+AJ$11*OFFSET('Efficiency Distributions'!$E$10,MATCH($C119,'Efficiency Distributions'!$C$9:$C$87,0)+RIGHT($E126),0))\n/SUM(AJ$10:AJ$11)","v":0},{"$f":"IF(INDEX(PC_MAPPING,RIGHT($C119,1),MATCH($E$2,'Data by Building Type'!$D$22:$F$22,0))=\"Yes\",1,0)*\n(AK$10*OFFSET('Efficiency Distributions'!$D$10,MATCH($C119,'Efficiency Distributions'!$C$9:$C$87,0)+RIGHT($E126),0)\n+AK$11*OFFSET('Efficiency Distributions'!$E$10,MATCH($C119,'Efficiency Distributions'!$C$9:$C$87,0)+RIGHT($E126),0))\n/SUM(AK$10:AK$11)","v":0},{"$f":"IF(INDEX(PC_MAPPING,RIGHT($C119,1),MATCH($E$2,'Data by Building Type'!$D$22:$F$22,0))=\"Yes\",1,0)*\n(AL$10*OFFSET('Efficiency Distributions'!$D$10,MATCH($C119,'Efficiency Distributions'!$C$9:$C$87,0)+RIGHT($E126),0)\n+AL$11*OFFSET('Efficiency Distributions'!$E$10,MATCH($C119,'Efficiency Distributions'!$C$9:$C$87,0)+RIGHT($E126),0))\n/SUM(AL$10:AL$11)","v":0},{"$f":"IF(INDEX(PC_MAPPING,RIGHT($C119,1),MATCH($E$2,'Data by Building Type'!$D$22:$F$22,0))=\"Yes\",1,0)*\n(AM$10*OFFSET('Efficiency Distributions'!$D$10,MATCH($C119,'Efficiency Distributions'!$C$9:$C$87,0)+RIGHT($E126),0)\n+AM$11*OFFSET('Efficiency Distributions'!$E$10,MATCH($C119,'Efficiency Distributions'!$C$9:$C$87,0)+RIGHT($E126),0))\n/SUM(AM$10:AM$11)","v":0},{"$f":"IF(INDEX(PC_MAPPING,RIGHT($C119,1),MATCH($E$2,'Data by Building Type'!$D$22:$F$22,0))=\"Yes\",1,0)*\n(AN$10*OFFSET('Efficiency Distributions'!$D$10,MATCH($C119,'Efficiency Distributions'!$C$9:$C$87,0)+RIGHT($E126),0)\n+AN$11*OFFSET('Efficiency Distributions'!$E$10,MATCH($C119,'Efficiency Distributions'!$C$9:$C$87,0)+RIGHT($E126),0))\n/SUM(AN$10:AN$11)","v":0},{"$f":"IF(INDEX(PC_MAPPING,RIGHT($C119,1),MATCH($E$2,'Data by Building Type'!$D$22:$F$22,0))=\"Yes\",1,0)*\n(AO$10*OFFSET('Efficiency Distributions'!$D$10,MATCH($C119,'Efficiency Distributions'!$C$9:$C$87,0)+RIGHT($E126),0)\n+AO$11*OFFSET('Efficiency Distributions'!$E$10,MATCH($C119,'Efficiency Distributions'!$C$9:$C$87,0)+RIGHT($E126),0))\n/SUM(AO$10:AO$11)","v":0},{"$f":"IF(INDEX(PC_MAPPING,RIGHT($C119,1),MATCH($E$2,'Data by Building Type'!$D$22:$F$22,0))=\"Yes\",1,0)*\n(AP$10*OFFSET('Efficiency Distributions'!$D$10,MATCH($C119,'Efficiency Distributions'!$C$9:$C$87,0)+RIGHT($E126),0)\n+AP$11*OFFSET('Efficiency Distributions'!$E$10,MATCH($C119,'Efficiency Distributions'!$C$9:$C$87,0)+RIGHT($E126),0))\n/SUM(AP$10:AP$11)","v":0},{"$f":"IF(INDEX(PC_MAPPING,RIGHT($C119,1),MATCH($E$2,'Data by Building Type'!$D$22:$F$22,0))=\"Yes\",1,0)*\n(AQ$10*OFFSET('Efficiency Distributions'!$D$10,MATCH($C119,'Efficiency Distributions'!$C$9:$C$87,0)+RIGHT($E126),0)\n+AQ$11*OFFSET('Efficiency Distributions'!$E$10,MATCH($C119,'Efficiency Distributions'!$C$9:$C$87,0)+RIGHT($E126),0))\n/SUM(AQ$10:AQ$11)","v":0},{"$f":"IF(INDEX(PC_MAPPING,RIGHT($C119,1),MATCH($E$2,'Data by Building Type'!$D$22:$F$22,0))=\"Yes\",1,0)*\n(AR$10*OFFSET('Efficiency Distributions'!$D$10,MATCH($C119,'Efficiency Distributions'!$C$9:$C$87,0)+RIGHT($E126),0)\n+AR$11*OFFSET('Efficiency Distributions'!$E$10,MATCH($C119,'Efficiency Distributions'!$C$9:$C$87,0)+RIGHT($E126),0))\n/SUM(AR$10:AR$11)","v":0},{"$f":"IF(INDEX(PC_MAPPING,RIGHT($C119,1),MATCH($E$2,'Data by Building Type'!$D$22:$F$22,0))=\"Yes\",1,0)*\n(AS$10*OFFSET('Efficiency Distributions'!$D$10,MATCH($C119,'Efficiency Distributions'!$C$9:$C$87,0)+RIGHT($E126),0)\n+AS$11*OFFSET('Efficiency Distributions'!$E$10,MATCH($C119,'Efficiency Distributions'!$C$9:$C$87,0)+RIGHT($E126),0))\n/SUM(AS$10:AS$11)","v":0},{"$f":"IF(INDEX(PC_MAPPING,RIGHT($C119,1),MATCH($E$2,'Data by Building Type'!$D$22:$F$22,0))=\"Yes\",1,0)*\n(AT$10*OFFSET('Efficiency Distributions'!$D$10,MATCH($C119,'Efficiency Distributions'!$C$9:$C$87,0)+RIGHT($E126),0)\n+AT$11*OFFSET('Efficiency Distributions'!$E$10,MATCH($C119,'Efficiency Distributions'!$C$9:$C$87,0)+RIGHT($E126),0))\n/SUM(AT$10:AT$11)","v":0},{"$f":"IF(INDEX(PC_MAPPING,RIGHT($C119,1),MATCH($E$2,'Data by Building Type'!$D$22:$F$22,0))=\"Yes\",1,0)*\n(AU$10*OFFSET('Efficiency Distributions'!$D$10,MATCH($C119,'Efficiency Distributions'!$C$9:$C$87,0)+RIGHT($E126),0)\n+AU$11*OFFSET('Efficiency Distributions'!$E$10,MATCH($C119,'Efficiency Distributions'!$C$9:$C$87,0)+RIGHT($E126),0))\n/SUM(AU$10:AU$11)","v":0},{"$f":"IF(INDEX(PC_MAPPING,RIGHT($C119,1),MATCH($E$2,'Data by Building Type'!$D$22:$F$22,0))=\"Yes\",1,0)*\n(AV$10*OFFSET('Efficiency Distributions'!$D$10,MATCH($C119,'Efficiency Distributions'!$C$9:$C$87,0)+RIGHT($E126),0)\n+AV$11*OFFSET('Efficiency Distributions'!$E$10,MATCH($C119,'Efficiency Distributions'!$C$9:$C$87,0)+RIGHT($E126),0))\n/SUM(AV$10:AV$11)","v":0},{"$f":"IF(INDEX(PC_MAPPING,RIGHT($C119,1),MATCH($E$2,'Data by Building Type'!$D$22:$F$22,0))=\"Yes\",1,0)*\n(AW$10*OFFSET('Efficiency Distributions'!$D$10,MATCH($C119,'Efficiency Distributions'!$C$9:$C$87,0)+RIGHT($E126),0)\n+AW$11*OFFSET('Efficiency Distributions'!$E$10,MATCH($C119,'Efficiency Distributions'!$C$9:$C$87,0)+RIGHT($E126),0))\n/SUM(AW$10:AW$11)","v":0},{"$f":"IF(INDEX(PC_MAPPING,RIGHT($C119,1),MATCH($E$2,'Data by Building Type'!$D$22:$F$22,0))=\"Yes\",1,0)*\n(AX$10*OFFSET('Efficiency Distributions'!$D$10,MATCH($C119,'Efficiency Distributions'!$C$9:$C$87,0)+RIGHT($E126),0)\n+AX$11*OFFSET('Efficiency Distributions'!$E$10,MATCH($C119,'Efficiency Distributions'!$C$9:$C$87,0)+RIGHT($E126),0))\n/SUM(AX$10:AX$11)","v":0},{"$f":"IF(INDEX(PC_MAPPING,RIGHT($C119,1),MATCH($E$2,'Data by Building Type'!$D$22:$F$22,0))=\"Yes\",1,0)*\n(AY$10*OFFSET('Efficiency Distributions'!$D$10,MATCH($C119,'Efficiency Distributions'!$C$9:$C$87,0)+RIGHT($E126),0)\n+AY$11*OFFSET('Efficiency Distributions'!$E$10,MATCH($C119,'Efficiency Distributions'!$C$9:$C$87,0)+RIGHT($E126),0))\n/SUM(AY$10:AY$11)","v":0},{"$f":"IF(INDEX(PC_MAPPING,RIGHT($C119,1),MATCH($E$2,'Data by Building Type'!$D$22:$F$22,0))=\"Yes\",1,0)*\n(AZ$10*OFFSET('Efficiency Distributions'!$D$10,MATCH($C119,'Efficiency Distributions'!$C$9:$C$87,0)+RIGHT($E126),0)\n+AZ$11*OFFSET('Efficiency Distributions'!$E$10,MATCH($C119,'Efficiency Distributions'!$C$9:$C$87,0)+RIGHT($E126),0))\n/SUM(AZ$10:AZ$11)","v":0},{"$f":"IF(INDEX(PC_MAPPING,RIGHT($C119,1),MATCH($E$2,'Data by Building Type'!$D$22:$F$22,0))=\"Yes\",1,0)*\n(BA$10*OFFSET('Efficiency Distributions'!$D$10,MATCH($C119,'Efficiency Distributions'!$C$9:$C$87,0)+RIGHT($E126),0)\n+BA$11*OFFSET('Efficiency Distributions'!$E$10,MATCH($C119,'Efficiency Distributions'!$C$9:$C$87,0)+RIGHT($E126),0))\n/SUM(BA$10:BA$11)","v":0},{"$f":"IF(INDEX(PC_MAPPING,RIGHT($C119,1),MATCH($E$2,'Data by Building Type'!$D$22:$F$22,0))=\"Yes\",1,0)*\n(BB$10*OFFSET('Efficiency Distributions'!$D$10,MATCH($C119,'Efficiency Distributions'!$C$9:$C$87,0)+RIGHT($E126),0)\n+BB$11*OFFSET('Efficiency Distributions'!$E$10,MATCH($C119,'Efficiency Distributions'!$C$9:$C$87,0)+RIGHT($E126),0))\n/SUM(BB$10:BB$11)","v":0},{"$f":"IF(INDEX(PC_MAPPING,RIGHT($C119,1),MATCH($E$2,'Data by Building Type'!$D$22:$F$22,0))=\"Yes\",1,0)*\n(BC$10*OFFSET('Efficiency Distributions'!$D$10,MATCH($C119,'Efficiency Distributions'!$C$9:$C$87,0)+RIGHT($E126),0)\n+BC$11*OFFSET('Efficiency Distributions'!$E$10,MATCH($C119,'Efficiency Distributions'!$C$9:$C$87,0)+RIGHT($E126),0))\n/SUM(BC$10:BC$11)","v":0},{"$f":"IF(INDEX(PC_MAPPING,RIGHT($C119,1),MATCH($E$2,'Data by Building Type'!$D$22:$F$22,0))=\"Yes\",1,0)*\n(BD$10*OFFSET('Efficiency Distributions'!$D$10,MATCH($C119,'Efficiency Distributions'!$C$9:$C$87,0)+RIGHT($E126),0)\n+BD$11*OFFSET('Efficiency Distributions'!$E$10,MATCH($C119,'Efficiency Distributions'!$C$9:$C$87,0)+RIGHT($E126),0))\n/SUM(BD$10:BD$11)","v":0},{"$f":"IF(INDEX(PC_MAPPING,RIGHT($C119,1),MATCH($E$2,'Data by Building Type'!$D$22:$F$22,0))=\"Yes\",1,0)*\n(BE$10*OFFSET('Efficiency Distributions'!$D$10,MATCH($C119,'Efficiency Distributions'!$C$9:$C$87,0)+RIGHT($E126),0)\n+BE$11*OFFSET('Efficiency Distributions'!$E$10,MATCH($C119,'Efficiency Distributions'!$C$9:$C$87,0)+RIGHT($E126),0))\n/SUM(BE$10:BE$11)","v":0},{"$f":"IF(INDEX(PC_MAPPING,RIGHT($C119,1),MATCH($E$2,'Data by Building Type'!$D$22:$F$22,0))=\"Yes\",1,0)*\n(BF$10*OFFSET('Efficiency Distributions'!$D$10,MATCH($C119,'Efficiency Distributions'!$C$9:$C$87,0)+RIGHT($E126),0)\n+BF$11*OFFSET('Efficiency Distributions'!$E$10,MATCH($C119,'Efficiency Distributions'!$C$9:$C$87,0)+RIGHT($E126),0))\n/SUM(BF$10:BF$11)","v":0},{"$f":"IF(INDEX(PC_MAPPING,RIGHT($C119,1),MATCH($E$2,'Data by Building Type'!$D$22:$F$22,0))=\"Yes\",1,0)*\n(BG$10*OFFSET('Efficiency Distributions'!$D$10,MATCH($C119,'Efficiency Distributions'!$C$9:$C$87,0)+RIGHT($E126),0)\n+BG$11*OFFSET('Efficiency Distributions'!$E$10,MATCH($C119,'Efficiency Distributions'!$C$9:$C$87,0)+RIGHT($E126),0))\n/SUM(BG$10:BG$11)","v":0}]
[null,null,null,null,"EL4",{"$f":"IF(INDEX(PC_MAPPING,RIGHT($C119,1),MATCH($E$2,'Data by Building Type'!$D$22:$F$22,0))=\"Yes\",1,0)*\n(F$10*OFFSET('Efficiency Distributions'!$D$10,MATCH($C119,'Efficiency Distributions'!$C$9:$C$87,0)+RIGHT($E127),0)\n+F$11*OFFSET('Efficiency Distributions'!$E$10,MATCH($C119,'Efficiency Distributions'!$C$9:$C$87,0)+RIGHT($E127),0))\n/SUM(F$10:F$11)","v":0},{"$f":"IF(INDEX(PC_MAPPING,RIGHT($C119,1),MATCH($E$2,'Data by Building Type'!$D$22:$F$22,0))=\"Yes\",1,0)*\n(G$10*OFFSET('Efficiency Distributions'!$D$10,MATCH($C119,'Efficiency Distributions'!$C$9:$C$87,0)+RIGHT($E127),0)\n+G$11*OFFSET('Efficiency Distributions'!$E$10,MATCH($C119,'Efficiency Distributions'!$C$9:$C$87,0)+RIGHT($E127),0))\n/SUM(G$10:G$11)","v":0},{"$f":"IF(INDEX(PC_MAPPING,RIGHT($C119,1),MATCH($E$2,'Data by Building Type'!$D$22:$F$22,0))=\"Yes\",1,0)*\n(H$10*OFFSET('Efficiency Distributions'!$D$10,MATCH($C119,'Efficiency Distributions'!$C$9:$C$87,0)+RIGHT($E127),0)\n+H$11*OFFSET('Efficiency Distributions'!$E$10,MATCH($C119,'Efficiency Distributions'!$C$9:$C$87,0)+RIGHT($E127),0))\n/SUM(H$10:H$11)","v":0},{"$f":"IF(INDEX(PC_MAPPING,RIGHT($C119,1),MATCH($E$2,'Data by Building Type'!$D$22:$F$22,0))=\"Yes\",1,0)*\n(I$10*OFFSET('Efficiency Distributions'!$D$10,MATCH($C119,'Efficiency Distributions'!$C$9:$C$87,0)+RIGHT($E127),0)\n+I$11*OFFSET('Efficiency Distributions'!$E$10,MATCH($C119,'Efficiency Distributions'!$C$9:$C$87,0)+RIGHT($E127),0))\n/SUM(I$10:I$11)","v":0},{"$f":"IF(INDEX(PC_MAPPING,RIGHT($C119,1),MATCH($E$2,'Data by Building Type'!$D$22:$F$22,0))=\"Yes\",1,0)*\n(J$10*OFFSET('Efficiency Distributions'!$D$10,MATCH($C119,'Efficiency Distributions'!$C$9:$C$87,0)+RIGHT($E127),0)\n+J$11*OFFSET('Efficiency Distributions'!$E$10,MATCH($C119,'Efficiency Distributions'!$C$9:$C$87,0)+RIGHT($E127),0))\n/SUM(J$10:J$11)","v":0},{"$f":"IF(INDEX(PC_MAPPING,RIGHT($C119,1),MATCH($E$2,'Data by Building Type'!$D$22:$F$22,0))=\"Yes\",1,0)*\n(K$10*OFFSET('Efficiency Distributions'!$D$10,MATCH($C119,'Efficiency Distributions'!$C$9:$C$87,0)+RIGHT($E127),0)\n+K$11*OFFSET('Efficiency Distributions'!$E$10,MATCH($C119,'Efficiency Distributions'!$C$9:$C$87,0)+RIGHT($E127),0))\n/SUM(K$10:K$11)","v":0},{"$f":"IF(INDEX(PC_MAPPING,RIGHT($C119,1),MATCH($E$2,'Data by Building Type'!$D$22:$F$22,0))=\"Yes\",1,0)*\n(L$10*OFFSET('Efficiency Distributions'!$D$10,MATCH($C119,'Efficiency Distributions'!$C$9:$C$87,0)+RIGHT($E127),0)\n+L$11*OFFSET('Efficiency Distributions'!$E$10,MATCH($C119,'Efficiency Distributions'!$C$9:$C$87,0)+RIGHT($E127),0))\n/SUM(L$10:L$11)","v":0},{"$f":"IF(INDEX(PC_MAPPING,RIGHT($C119,1),MATCH($E$2,'Data by Building Type'!$D$22:$F$22,0))=\"Yes\",1,0)*\n(M$10*OFFSET('Efficiency Distributions'!$D$10,MATCH($C119,'Efficiency Distributions'!$C$9:$C$87,0)+RIGHT($E127),0)\n+M$11*OFFSET('Efficiency Distributions'!$E$10,MATCH($C119,'Efficiency Distributions'!$C$9:$C$87,0)+RIGHT($E127),0))\n/SUM(M$10:M$11)","v":0},{"$f":"IF(INDEX(PC_MAPPING,RIGHT($C119,1),MATCH($E$2,'Data by Building Type'!$D$22:$F$22,0))=\"Yes\",1,0)*\n(N$10*OFFSET('Efficiency Distributions'!$D$10,MATCH($C119,'Efficiency Distributions'!$C$9:$C$87,0)+RIGHT($E127),0)\n+N$11*OFFSET('Efficiency Distributions'!$E$10,MATCH($C119,'Efficiency Distributions'!$C$9:$C$87,0)+RIGHT($E127),0))\n/SUM(N$10:N$11)","v":0},{"$f":"IF(INDEX(PC_MAPPING,RIGHT($C119,1),MATCH($E$2,'Data by Building Type'!$D$22:$F$22,0))=\"Yes\",1,0)*\n(O$10*OFFSET('Efficiency Distributions'!$D$10,MATCH($C119,'Efficiency Distributions'!$C$9:$C$87,0)+RIGHT($E127),0)\n+O$11*OFFSET('Efficiency Distributions'!$E$10,MATCH($C119,'Efficiency Distributions'!$C$9:$C$87,0)+RIGHT($E127),0))\n/SUM(O$10:O$11)","v":0},{"$f":"IF(INDEX(PC_MAPPING,RIGHT($C119,1),MATCH($E$2,'Data by Building Type'!$D$22:$F$22,0))=\"Yes\",1,0)*\n(P$10*OFFSET('Efficiency Distributions'!$D$10,MATCH($C119,'Efficiency Distributions'!$C$9:$C$87,0)+RIGHT($E127),0)\n+P$11*OFFSET('Efficiency Distributions'!$E$10,MATCH($C119,'Efficiency Distributions'!$C$9:$C$87,0)+RIGHT($E127),0))\n/SUM(P$10:P$11)","v":0},{"$f":"IF(INDEX(PC_MAPPING,RIGHT($C119,1),MATCH($E$2,'Data by Building Type'!$D$22:$F$22,0))=\"Yes\",1,0)*\n(Q$10*OFFSET('Efficiency Distributions'!$D$10,MATCH($C119,'Efficiency Distributions'!$C$9:$C$87,0)+RIGHT($E127),0)\n+Q$11*OFFSET('Efficiency Distributions'!$E$10,MATCH($C119,'Efficiency Distributions'!$C$9:$C$87,0)+RIGHT($E127),0))\n/SUM(Q$10:Q$11)","v":0},{"$f":"IF(INDEX(PC_MAPPING,RIGHT($C119,1),MATCH($E$2,'Data by Building Type'!$D$22:$F$22,0))=\"Yes\",1,0)*\n(R$10*OFFSET('Efficiency Distributions'!$D$10,MATCH($C119,'Efficiency Distributions'!$C$9:$C$87,0)+RIGHT($E127),0)\n+R$11*OFFSET('Efficiency Distributions'!$E$10,MATCH($C119,'Efficiency Distributions'!$C$9:$C$87,0)+RIGHT($E127),0))\n/SUM(R$10:R$11)","v":0},{"$f":"IF(INDEX(PC_MAPPING,RIGHT($C119,1),MATCH($E$2,'Data by Building Type'!$D$22:$F$22,0))=\"Yes\",1,0)*\n(S$10*OFFSET('Efficiency Distributions'!$D$10,MATCH($C119,'Efficiency Distributions'!$C$9:$C$87,0)+RIGHT($E127),0)\n+S$11*OFFSET('Efficiency Distributions'!$E$10,MATCH($C119,'Efficiency Distributions'!$C$9:$C$87,0)+RIGHT($E127),0))\n/SUM(S$10:S$11)","v":0},{"$f":"IF(INDEX(PC_MAPPING,RIGHT($C119,1),MATCH($E$2,'Data by Building Type'!$D$22:$F$22,0))=\"Yes\",1,0)*\n(T$10*OFFSET('Efficiency Distributions'!$D$10,MATCH($C119,'Efficiency Distributions'!$C$9:$C$87,0)+RIGHT($E127),0)\n+T$11*OFFSET('Efficiency Distributions'!$E$10,MATCH($C119,'Efficiency Distributions'!$C$9:$C$87,0)+RIGHT($E127),0))\n/SUM(T$10:T$11)","v":0},{"$f":"IF(INDEX(PC_MAPPING,RIGHT($C119,1),MATCH($E$2,'Data by Building Type'!$D$22:$F$22,0))=\"Yes\",1,0)*\n(U$10*OFFSET('Efficiency Distributions'!$D$10,MATCH($C119,'Efficiency Distributions'!$C$9:$C$87,0)+RIGHT($E127),0)\n+U$11*OFFSET('Efficiency Distributions'!$E$10,MATCH($C119,'Efficiency Distributions'!$C$9:$C$87,0)+RIGHT($E127),0))\n/SUM(U$10:U$11)","v":0},{"$f":"IF(INDEX(PC_MAPPING,RIGHT($C119,1),MATCH($E$2,'Data by Building Type'!$D$22:$F$22,0))=\"Yes\",1,0)*\n(V$10*OFFSET('Efficiency Distributions'!$D$10,MATCH($C119,'Efficiency Distributions'!$C$9:$C$87,0)+RIGHT($E127),0)\n+V$11*OFFSET('Efficiency Distributions'!$E$10,MATCH($C119,'Efficiency Distributions'!$C$9:$C$87,0)+RIGHT($E127),0))\n/SUM(V$10:V$11)","v":0},{"$f":"IF(INDEX(PC_MAPPING,RIGHT($C119,1),MATCH($E$2,'Data by Building Type'!$D$22:$F$22,0))=\"Yes\",1,0)*\n(W$10*OFFSET('Efficiency Distributions'!$D$10,MATCH($C119,'Efficiency Distributions'!$C$9:$C$87,0)+RIGHT($E127),0)\n+W$11*OFFSET('Efficiency Distributions'!$E$10,MATCH($C119,'Efficiency Distributions'!$C$9:$C$87,0)+RIGHT($E127),0))\n/SUM(W$10:W$11)","v":0},{"$f":"IF(INDEX(PC_MAPPING,RIGHT($C119,1),MATCH($E$2,'Data by Building Type'!$D$22:$F$22,0))=\"Yes\",1,0)*\n(X$10*OFFSET('Efficiency Distributions'!$D$10,MATCH($C119,'Efficiency Distributions'!$C$9:$C$87,0)+RIGHT($E127),0)\n+X$11*OFFSET('Efficiency Distributions'!$E$10,MATCH($C119,'Efficiency Distributions'!$C$9:$C$87,0)+RIGHT($E127),0))\n/SUM(X$10:X$11)","v":0},{"$f":"IF(INDEX(PC_MAPPING,RIGHT($C119,1),MATCH($E$2,'Data by Building Type'!$D$22:$F$22,0))=\"Yes\",1,0)*\n(Y$10*OFFSET('Efficiency Distributions'!$D$10,MATCH($C119,'Efficiency Distributions'!$C$9:$C$87,0)+RIGHT($E127),0)\n+Y$11*OFFSET('Efficiency Distributions'!$E$10,MATCH($C119,'Efficiency Distributions'!$C$9:$C$87,0)+RIGHT($E127),0))\n/SUM(Y$10:Y$11)","v":0},{"$f":"IF(INDEX(PC_MAPPING,RIGHT($C119,1),MATCH($E$2,'Data by Building Type'!$D$22:$F$22,0))=\"Yes\",1,0)*\n(Z$10*OFFSET('Efficiency Distributions'!$D$10,MATCH($C119,'Efficiency Distributions'!$C$9:$C$87,0)+RIGHT($E127),0)\n+Z$11*OFFSET('Efficiency Distributions'!$E$10,MATCH($C119,'Efficiency Distributions'!$C$9:$C$87,0)+RIGHT($E127),0))\n/SUM(Z$10:Z$11)","v":0},{"$f":"IF(INDEX(PC_MAPPING,RIGHT($C119,1),MATCH($E$2,'Data by Building Type'!$D$22:$F$22,0))=\"Yes\",1,0)*\n(AA$10*OFFSET('Efficiency Distributions'!$D$10,MATCH($C119,'Efficiency Distributions'!$C$9:$C$87,0)+RIGHT($E127),0)\n+AA$11*OFFSET('Efficiency Distributions'!$E$10,MATCH($C119,'Efficiency Distributions'!$C$9:$C$87,0)+RIGHT($E127),0))\n/SUM(AA$10:AA$11)","v":0},{"$f":"IF(INDEX(PC_MAPPING,RIGHT($C119,1),MATCH($E$2,'Data by Building Type'!$D$22:$F$22,0))=\"Yes\",1,0)*\n(AB$10*OFFSET('Efficiency Distributions'!$D$10,MATCH($C119,'Efficiency Distributions'!$C$9:$C$87,0)+RIGHT($E127),0)\n+AB$11*OFFSET('Efficiency Distributions'!$E$10,MATCH($C119,'Efficiency Distributions'!$C$9:$C$87,0)+RIGHT($E127),0))\n/SUM(AB$10:AB$11)","v":0},{"$f":"IF(INDEX(PC_MAPPING,RIGHT($C119,1),MATCH($E$2,'Data by Building Type'!$D$22:$F$22,0))=\"Yes\",1,0)*\n(AC$10*OFFSET('Efficiency Distributions'!$D$10,MATCH($C119,'Efficiency Distributions'!$C$9:$C$87,0)+RIGHT($E127),0)\n+AC$11*OFFSET('Efficiency Distributions'!$E$10,MATCH($C119,'Efficiency Distributions'!$C$9:$C$87,0)+RIGHT($E127),0))\n/SUM(AC$10:AC$11)","v":0},{"$f":"IF(INDEX(PC_MAPPING,RIGHT($C119,1),MATCH($E$2,'Data by Building Type'!$D$22:$F$22,0))=\"Yes\",1,0)*\n(AD$10*OFFSET('Efficiency Distributions'!$D$10,MATCH($C119,'Efficiency Distributions'!$C$9:$C$87,0)+RIGHT($E127),0)\n+AD$11*OFFSET('Efficiency Distributions'!$E$10,MATCH($C119,'Efficiency Distributions'!$C$9:$C$87,0)+RIGHT($E127),0))\n/SUM(AD$10:AD$11)","v":0},{"$f":"IF(INDEX(PC_MAPPING,RIGHT($C119,1),MATCH($E$2,'Data by Building Type'!$D$22:$F$22,0))=\"Yes\",1,0)*\n(AE$10*OFFSET('Efficiency Distributions'!$D$10,MATCH($C119,'Efficiency Distributions'!$C$9:$C$87,0)+RIGHT($E127),0)\n+AE$11*OFFSET('Efficiency Distributions'!$E$10,MATCH($C119,'Efficiency Distributions'!$C$9:$C$87,0)+RIGHT($E127),0))\n/SUM(AE$10:AE$11)","v":0},{"$f":"IF(INDEX(PC_MAPPING,RIGHT($C119,1),MATCH($E$2,'Data by Building Type'!$D$22:$F$22,0))=\"Yes\",1,0)*\n(AF$10*OFFSET('Efficiency Distributions'!$D$10,MATCH($C119,'Efficiency Distributions'!$C$9:$C$87,0)+RIGHT($E127),0)\n+AF$11*OFFSET('Efficiency Distributions'!$E$10,MATCH($C119,'Efficiency Distributions'!$C$9:$C$87,0)+RIGHT($E127),0))\n/SUM(AF$10:AF$11)","v":0},{"$f":"IF(INDEX(PC_MAPPING,RIGHT($C119,1),MATCH($E$2,'Data by Building Type'!$D$22:$F$22,0))=\"Yes\",1,0)*\n(AG$10*OFFSET('Efficiency Distributions'!$D$10,MATCH($C119,'Efficiency Distributions'!$C$9:$C$87,0)+RIGHT($E127),0)\n+AG$11*OFFSET('Efficiency Distributions'!$E$10,MATCH($C119,'Efficiency Distributions'!$C$9:$C$87,0)+RIGHT($E127),0))\n/SUM(AG$10:AG$11)","v":0},{"$f":"IF(INDEX(PC_MAPPING,RIGHT($C119,1),MATCH($E$2,'Data by Building Type'!$D$22:$F$22,0))=\"Yes\",1,0)*\n(AH$10*OFFSET('Efficiency Distributions'!$D$10,MATCH($C119,'Efficiency Distributions'!$C$9:$C$87,0)+RIGHT($E127),0)\n+AH$11*OFFSET('Efficiency Distributions'!$E$10,MATCH($C119,'Efficiency Distributions'!$C$9:$C$87,0)+RIGHT($E127),0))\n/SUM(AH$10:AH$11)","v":0},{"$f":"IF(INDEX(PC_MAPPING,RIGHT($C119,1),MATCH($E$2,'Data by Building Type'!$D$22:$F$22,0))=\"Yes\",1,0)*\n(AI$10*OFFSET('Efficiency Distributions'!$D$10,MATCH($C119,'Efficiency Distributions'!$C$9:$C$87,0)+RIGHT($E127),0)\n+AI$11*OFFSET('Efficiency Distributions'!$E$10,MATCH($C119,'Efficiency Distributions'!$C$9:$C$87,0)+RIGHT($E127),0))\n/SUM(AI$10:AI$11)","v":0},{"$f":"IF(INDEX(PC_MAPPING,RIGHT($C119,1),MATCH($E$2,'Data by Building Type'!$D$22:$F$22,0))=\"Yes\",1,0)*\n(AJ$10*OFFSET('Efficiency Distributions'!$D$10,MATCH($C119,'Efficiency Distributions'!$C$9:$C$87,0)+RIGHT($E127),0)\n+AJ$11*OFFSET('Efficiency Distributions'!$E$10,MATCH($C119,'Efficiency Distributions'!$C$9:$C$87,0)+RIGHT($E127),0))\n/SUM(AJ$10:AJ$11)","v":0},{"$f":"IF(INDEX(PC_MAPPING,RIGHT($C119,1),MATCH($E$2,'Data by Building Type'!$D$22:$F$22,0))=\"Yes\",1,0)*\n(AK$10*OFFSET('Efficiency Distributions'!$D$10,MATCH($C119,'Efficiency Distributions'!$C$9:$C$87,0)+RIGHT($E127),0)\n+AK$11*OFFSET('Efficiency Distributions'!$E$10,MATCH($C119,'Efficiency Distributions'!$C$9:$C$87,0)+RIGHT($E127),0))\n/SUM(AK$10:AK$11)","v":0},{"$f":"IF(INDEX(PC_MAPPING,RIGHT($C119,1),MATCH($E$2,'Data by Building Type'!$D$22:$F$22,0))=\"Yes\",1,0)*\n(AL$10*OFFSET('Efficiency Distributions'!$D$10,MATCH($C119,'Efficiency Distributions'!$C$9:$C$87,0)+RIGHT($E127),0)\n+AL$11*OFFSET('Efficiency Distributions'!$E$10,MATCH($C119,'Efficiency Distributions'!$C$9:$C$87,0)+RIGHT($E127),0))\n/SUM(AL$10:AL$11)","v":0},{"$f":"IF(INDEX(PC_MAPPING,RIGHT($C119,1),MATCH($E$2,'Data by Building Type'!$D$22:$F$22,0))=\"Yes\",1,0)*\n(AM$10*OFFSET('Efficiency Distributions'!$D$10,MATCH($C119,'Efficiency Distributions'!$C$9:$C$87,0)+RIGHT($E127),0)\n+AM$11*OFFSET('Efficiency Distributions'!$E$10,MATCH($C119,'Efficiency Distributions'!$C$9:$C$87,0)+RIGHT($E127),0))\n/SUM(AM$10:AM$11)","v":0},{"$f":"IF(INDEX(PC_MAPPING,RIGHT($C119,1),MATCH($E$2,'Data by Building Type'!$D$22:$F$22,0))=\"Yes\",1,0)*\n(AN$10*OFFSET('Efficiency Distributions'!$D$10,MATCH($C119,'Efficiency Distributions'!$C$9:$C$87,0)+RIGHT($E127),0)\n+AN$11*OFFSET('Efficiency Distributions'!$E$10,MATCH($C119,'Efficiency Distributions'!$C$9:$C$87,0)+RIGHT($E127),0))\n/SUM(AN$10:AN$11)","v":0},{"$f":"IF(INDEX(PC_MAPPING,RIGHT($C119,1),MATCH($E$2,'Data by Building Type'!$D$22:$F$22,0))=\"Yes\",1,0)*\n(AO$10*OFFSET('Efficiency Distributions'!$D$10,MATCH($C119,'Efficiency Distributions'!$C$9:$C$87,0)+RIGHT($E127),0)\n+AO$11*OFFSET('Efficiency Distributions'!$E$10,MATCH($C119,'Efficiency Distributions'!$C$9:$C$87,0)+RIGHT($E127),0))\n/SUM(AO$10:AO$11)","v":0},{"$f":"IF(INDEX(PC_MAPPING,RIGHT($C119,1),MATCH($E$2,'Data by Building Type'!$D$22:$F$22,0))=\"Yes\",1,0)*\n(AP$10*OFFSET('Efficiency Distributions'!$D$10,MATCH($C119,'Efficiency Distributions'!$C$9:$C$87,0)+RIGHT($E127),0)\n+AP$11*OFFSET('Efficiency Distributions'!$E$10,MATCH($C119,'Efficiency Distributions'!$C$9:$C$87,0)+RIGHT($E127),0))\n/SUM(AP$10:AP$11)","v":0},{"$f":"IF(INDEX(PC_MAPPING,RIGHT($C119,1),MATCH($E$2,'Data by Building Type'!$D$22:$F$22,0))=\"Yes\",1,0)*\n(AQ$10*OFFSET('Efficiency Distributions'!$D$10,MATCH($C119,'Efficiency Distributions'!$C$9:$C$87,0)+RIGHT($E127),0)\n+AQ$11*OFFSET('Efficiency Distributions'!$E$10,MATCH($C119,'Efficiency Distributions'!$C$9:$C$87,0)+RIGHT($E127),0))\n/SUM(AQ$10:AQ$11)","v":0},{"$f":"IF(INDEX(PC_MAPPING,RIGHT($C119,1),MATCH($E$2,'Data by Building Type'!$D$22:$F$22,0))=\"Yes\",1,0)*\n(AR$10*OFFSET('Efficiency Distributions'!$D$10,MATCH($C119,'Efficiency Distributions'!$C$9:$C$87,0)+RIGHT($E127),0)\n+AR$11*OFFSET('Efficiency Distributions'!$E$10,MATCH($C119,'Efficiency Distributions'!$C$9:$C$87,0)+RIGHT($E127),0))\n/SUM(AR$10:AR$11)","v":0},{"$f":"IF(INDEX(PC_MAPPING,RIGHT($C119,1),MATCH($E$2,'Data by Building Type'!$D$22:$F$22,0))=\"Yes\",1,0)*\n(AS$10*OFFSET('Efficiency Distributions'!$D$10,MATCH($C119,'Efficiency Distributions'!$C$9:$C$87,0)+RIGHT($E127),0)\n+AS$11*OFFSET('Efficiency Distributions'!$E$10,MATCH($C119,'Efficiency Distributions'!$C$9:$C$87,0)+RIGHT($E127),0))\n/SUM(AS$10:AS$11)","v":0},{"$f":"IF(INDEX(PC_MAPPING,RIGHT($C119,1),MATCH($E$2,'Data by Building Type'!$D$22:$F$22,0))=\"Yes\",1,0)*\n(AT$10*OFFSET('Efficiency Distributions'!$D$10,MATCH($C119,'Efficiency Distributions'!$C$9:$C$87,0)+RIGHT($E127),0)\n+AT$11*OFFSET('Efficiency Distributions'!$E$10,MATCH($C119,'Efficiency Distributions'!$C$9:$C$87,0)+RIGHT($E127),0))\n/SUM(AT$10:AT$11)","v":0},{"$f":"IF(INDEX(PC_MAPPING,RIGHT($C119,1),MATCH($E$2,'Data by Building Type'!$D$22:$F$22,0))=\"Yes\",1,0)*\n(AU$10*OFFSET('Efficiency Distributions'!$D$10,MATCH($C119,'Efficiency Distributions'!$C$9:$C$87,0)+RIGHT($E127),0)\n+AU$11*OFFSET('Efficiency Distributions'!$E$10,MATCH($C119,'Efficiency Distributions'!$C$9:$C$87,0)+RIGHT($E127),0))\n/SUM(AU$10:AU$11)","v":0},{"$f":"IF(INDEX(PC_MAPPING,RIGHT($C119,1),MATCH($E$2,'Data by Building Type'!$D$22:$F$22,0))=\"Yes\",1,0)*\n(AV$10*OFFSET('Efficiency Distributions'!$D$10,MATCH($C119,'Efficiency Distributions'!$C$9:$C$87,0)+RIGHT($E127),0)\n+AV$11*OFFSET('Efficiency Distributions'!$E$10,MATCH($C119,'Efficiency Distributions'!$C$9:$C$87,0)+RIGHT($E127),0))\n/SUM(AV$10:AV$11)","v":0},{"$f":"IF(INDEX(PC_MAPPING,RIGHT($C119,1),MATCH($E$2,'Data by Building Type'!$D$22:$F$22,0))=\"Yes\",1,0)*\n(AW$10*OFFSET('Efficiency Distributions'!$D$10,MATCH($C119,'Efficiency Distributions'!$C$9:$C$87,0)+RIGHT($E127),0)\n+AW$11*OFFSET('Efficiency Distributions'!$E$10,MATCH($C119,'Efficiency Distributions'!$C$9:$C$87,0)+RIGHT($E127),0))\n/SUM(AW$10:AW$11)","v":0},{"$f":"IF(INDEX(PC_MAPPING,RIGHT($C119,1),MATCH($E$2,'Data by Building Type'!$D$22:$F$22,0))=\"Yes\",1,0)*\n(AX$10*OFFSET('Efficiency Distributions'!$D$10,MATCH($C119,'Efficiency Distributions'!$C$9:$C$87,0)+RIGHT($E127),0)\n+AX$11*OFFSET('Efficiency Distributions'!$E$10,MATCH($C119,'Efficiency Distributions'!$C$9:$C$87,0)+RIGHT($E127),0))\n/SUM(AX$10:AX$11)","v":0},{"$f":"IF(INDEX(PC_MAPPING,RIGHT($C119,1),MATCH($E$2,'Data by Building Type'!$D$22:$F$22,0))=\"Yes\",1,0)*\n(AY$10*OFFSET('Efficiency Distributions'!$D$10,MATCH($C119,'Efficiency Distributions'!$C$9:$C$87,0)+RIGHT($E127),0)\n+AY$11*OFFSET('Efficiency Distributions'!$E$10,MATCH($C119,'Efficiency Distributions'!$C$9:$C$87,0)+RIGHT($E127),0))\n/SUM(AY$10:AY$11)","v":0},{"$f":"IF(INDEX(PC_MAPPING,RIGHT($C119,1),MATCH($E$2,'Data by Building Type'!$D$22:$F$22,0))=\"Yes\",1,0)*\n(AZ$10*OFFSET('Efficiency Distributions'!$D$10,MATCH($C119,'Efficiency Distributions'!$C$9:$C$87,0)+RIGHT($E127),0)\n+AZ$11*OFFSET('Efficiency Distributions'!$E$10,MATCH($C119,'Efficiency Distributions'!$C$9:$C$87,0)+RIGHT($E127),0))\n/SUM(AZ$10:AZ$11)","v":0},{"$f":"IF(INDEX(PC_MAPPING,RIGHT($C119,1),MATCH($E$2,'Data by Building Type'!$D$22:$F$22,0))=\"Yes\",1,0)*\n(BA$10*OFFSET('Efficiency Distributions'!$D$10,MATCH($C119,'Efficiency Distributions'!$C$9:$C$87,0)+RIGHT($E127),0)\n+BA$11*OFFSET('Efficiency Distributions'!$E$10,MATCH($C119,'Efficiency Distributions'!$C$9:$C$87,0)+RIGHT($E127),0))\n/SUM(BA$10:BA$11)","v":0},{"$f":"IF(INDEX(PC_MAPPING,RIGHT($C119,1),MATCH($E$2,'Data by Building Type'!$D$22:$F$22,0))=\"Yes\",1,0)*\n(BB$10*OFFSET('Efficiency Distributions'!$D$10,MATCH($C119,'Efficiency Distributions'!$C$9:$C$87,0)+RIGHT($E127),0)\n+BB$11*OFFSET('Efficiency Distributions'!$E$10,MATCH($C119,'Efficiency Distributions'!$C$9:$C$87,0)+RIGHT($E127),0))\n/SUM(BB$10:BB$11)","v":0},{"$f":"IF(INDEX(PC_MAPPING,RIGHT($C119,1),MATCH($E$2,'Data by Building Type'!$D$22:$F$22,0))=\"Yes\",1,0)*\n(BC$10*OFFSET('Efficiency Distributions'!$D$10,MATCH($C119,'Efficiency Distributions'!$C$9:$C$87,0)+RIGHT($E127),0)\n+BC$11*OFFSET('Efficiency Distributions'!$E$10,MATCH($C119,'Efficiency Distributions'!$C$9:$C$87,0)+RIGHT($E127),0))\n/SUM(BC$10:BC$11)","v":0},{"$f":"IF(INDEX(PC_MAPPING,RIGHT($C119,1),MATCH($E$2,'Data by Building Type'!$D$22:$F$22,0))=\"Yes\",1,0)*\n(BD$10*OFFSET('Efficiency Distributions'!$D$10,MATCH($C119,'Efficiency Distributions'!$C$9:$C$87,0)+RIGHT($E127),0)\n+BD$11*OFFSET('Efficiency Distributions'!$E$10,MATCH($C119,'Efficiency Distributions'!$C$9:$C$87,0)+RIGHT($E127),0))\n/SUM(BD$10:BD$11)","v":0},{"$f":"IF(INDEX(PC_MAPPING,RIGHT($C119,1),MATCH($E$2,'Data by Building Type'!$D$22:$F$22,0))=\"Yes\",1,0)*\n(BE$10*OFFSET('Efficiency Distributions'!$D$10,MATCH($C119,'Efficiency Distributions'!$C$9:$C$87,0)+RIGHT($E127),0)\n+BE$11*OFFSET('Efficiency Distributions'!$E$10,MATCH($C119,'Efficiency Distributions'!$C$9:$C$87,0)+RIGHT($E127),0))\n/SUM(BE$10:BE$11)","v":0},{"$f":"IF(INDEX(PC_MAPPING,RIGHT($C119,1),MATCH($E$2,'Data by Building Type'!$D$22:$F$22,0))=\"Yes\",1,0)*\n(BF$10*OFFSET('Efficiency Distributions'!$D$10,MATCH($C119,'Efficiency Distributions'!$C$9:$C$87,0)+RIGHT($E127),0)\n+BF$11*OFFSET('Efficiency Distributions'!$E$10,MATCH($C119,'Efficiency Distributions'!$C$9:$C$87,0)+RIGHT($E127),0))\n/SUM(BF$10:BF$11)","v":0},{"$f":"IF(INDEX(PC_MAPPING,RIGHT($C119,1),MATCH($E$2,'Data by Building Type'!$D$22:$F$22,0))=\"Yes\",1,0)*\n(BG$10*OFFSET('Efficiency Distributions'!$D$10,MATCH($C119,'Efficiency Distributions'!$C$9:$C$87,0)+RIGHT($E127),0)\n+BG$11*OFFSET('Efficiency Distributions'!$E$10,MATCH($C119,'Efficiency Distributions'!$C$9:$C$87,0)+RIGHT($E127),0))\n/SUM(BG$10:BG$11)","v":0}]
[null,null,null,null,"EL5",{"$f":"IF(INDEX(PC_MAPPING,RIGHT($C119,1),MATCH($E$2,'Data by Building Type'!$D$22:$F$22,0))=\"Yes\",1,0)*\n(F$10*OFFSET('Efficiency Distributions'!$D$10,MATCH($C119,'Efficiency Distributions'!$C$9:$C$87,0)+RIGHT($E128),0)\n+F$11*OFFSET('Efficiency Distributions'!$E$10,MATCH($C119,'Efficiency Distributions'!$C$9:$C$87,0)+RIGHT($E128),0))\n/SUM(F$10:F$11)","v":0},{"$f":"IF(INDEX(PC_MAPPING,RIGHT($C119,1),MATCH($E$2,'Data by Building Type'!$D$22:$F$22,0))=\"Yes\",1,0)*\n(G$10*OFFSET('Efficiency Distributions'!$D$10,MATCH($C119,'Efficiency Distributions'!$C$9:$C$87,0)+RIGHT($E128),0)\n+G$11*OFFSET('Efficiency Distributions'!$E$10,MATCH($C119,'Efficiency Distributions'!$C$9:$C$87,0)+RIGHT($E128),0))\n/SUM(G$10:G$11)","v":0},{"$f":"IF(INDEX(PC_MAPPING,RIGHT($C119,1),MATCH($E$2,'Data by Building Type'!$D$22:$F$22,0))=\"Yes\",1,0)*\n(H$10*OFFSET('Efficiency Distributions'!$D$10,MATCH($C119,'Efficiency Distributions'!$C$9:$C$87,0)+RIGHT($E128),0)\n+H$11*OFFSET('Efficiency Distributions'!$E$10,MATCH($C119,'Efficiency Distributions'!$C$9:$C$87,0)+RIGHT($E128),0))\n/SUM(H$10:H$11)","v":0},{"$f":"IF(INDEX(PC_MAPPING,RIGHT($C119,1),MATCH($E$2,'Data by Building Type'!$D$22:$F$22,0))=\"Yes\",1,0)*\n(I$10*OFFSET('Efficiency Distributions'!$D$10,MATCH($C119,'Efficiency Distributions'!$C$9:$C$87,0)+RIGHT($E128),0)\n+I$11*OFFSET('Efficiency Distributions'!$E$10,MATCH($C119,'Efficiency Distributions'!$C$9:$C$87,0)+RIGHT($E128),0))\n/SUM(I$10:I$11)","v":0},{"$f":"IF(INDEX(PC_MAPPING,RIGHT($C119,1),MATCH($E$2,'Data by Building Type'!$D$22:$F$22,0))=\"Yes\",1,0)*\n(J$10*OFFSET('Efficiency Distributions'!$D$10,MATCH($C119,'Efficiency Distributions'!$C$9:$C$87,0)+RIGHT($E128),0)\n+J$11*OFFSET('Efficiency Distributions'!$E$10,MATCH($C119,'Efficiency Distributions'!$C$9:$C$87,0)+RIGHT($E128),0))\n/SUM(J$10:J$11)","v":0},{"$f":"IF(INDEX(PC_MAPPING,RIGHT($C119,1),MATCH($E$2,'Data by Building Type'!$D$22:$F$22,0))=\"Yes\",1,0)*\n(K$10*OFFSET('Efficiency Distributions'!$D$10,MATCH($C119,'Efficiency Distributions'!$C$9:$C$87,0)+RIGHT($E128),0)\n+K$11*OFFSET('Efficiency Distributions'!$E$10,MATCH($C119,'Efficiency Distributions'!$C$9:$C$87,0)+RIGHT($E128),0))\n/SUM(K$10:K$11)","v":0},{"$f":"IF(INDEX(PC_MAPPING,RIGHT($C119,1),MATCH($E$2,'Data by Building Type'!$D$22:$F$22,0))=\"Yes\",1,0)*\n(L$10*OFFSET('Efficiency Distributions'!$D$10,MATCH($C119,'Efficiency Distributions'!$C$9:$C$87,0)+RIGHT($E128),0)\n+L$11*OFFSET('Efficiency Distributions'!$E$10,MATCH($C119,'Efficiency Distributions'!$C$9:$C$87,0)+RIGHT($E128),0))\n/SUM(L$10:L$11)","v":0},{"$f":"IF(INDEX(PC_MAPPING,RIGHT($C119,1),MATCH($E$2,'Data by Building Type'!$D$22:$F$22,0))=\"Yes\",1,0)*\n(M$10*OFFSET('Efficiency Distributions'!$D$10,MATCH($C119,'Efficiency Distributions'!$C$9:$C$87,0)+RIGHT($E128),0)\n+M$11*OFFSET('Efficiency Distributions'!$E$10,MATCH($C119,'Efficiency Distributions'!$C$9:$C$87,0)+RIGHT($E128),0))\n/SUM(M$10:M$11)","v":0},{"$f":"IF(INDEX(PC_MAPPING,RIGHT($C119,1),MATCH($E$2,'Data by Building Type'!$D$22:$F$22,0))=\"Yes\",1,0)*\n(N$10*OFFSET('Efficiency Distributions'!$D$10,MATCH($C119,'Efficiency Distributions'!$C$9:$C$87,0)+RIGHT($E128),0)\n+N$11*OFFSET('Efficiency Distributions'!$E$10,MATCH($C119,'Efficiency Distributions'!$C$9:$C$87,0)+RIGHT($E128),0))\n/SUM(N$10:N$11)","v":0},{"$f":"IF(INDEX(PC_MAPPING,RIGHT($C119,1),MATCH($E$2,'Data by Building Type'!$D$22:$F$22,0))=\"Yes\",1,0)*\n(O$10*OFFSET('Efficiency Distributions'!$D$10,MATCH($C119,'Efficiency Distributions'!$C$9:$C$87,0)+RIGHT($E128),0)\n+O$11*OFFSET('Efficiency Distributions'!$E$10,MATCH($C119,'Efficiency Distributions'!$C$9:$C$87,0)+RIGHT($E128),0))\n/SUM(O$10:O$11)","v":0},{"$f":"IF(INDEX(PC_MAPPING,RIGHT($C119,1),MATCH($E$2,'Data by Building Type'!$D$22:$F$22,0))=\"Yes\",1,0)*\n(P$10*OFFSET('Efficiency Distributions'!$D$10,MATCH($C119,'Efficiency Distributions'!$C$9:$C$87,0)+RIGHT($E128),0)\n+P$11*OFFSET('Efficiency Distributions'!$E$10,MATCH($C119,'Efficiency Distributions'!$C$9:$C$87,0)+RIGHT($E128),0))\n/SUM(P$10:P$11)","v":0},{"$f":"IF(INDEX(PC_MAPPING,RIGHT($C119,1),MATCH($E$2,'Data by Building Type'!$D$22:$F$22,0))=\"Yes\",1,0)*\n(Q$10*OFFSET('Efficiency Distributions'!$D$10,MATCH($C119,'Efficiency Distributions'!$C$9:$C$87,0)+RIGHT($E128),0)\n+Q$11*OFFSET('Efficiency Distributions'!$E$10,MATCH($C119,'Efficiency Distributions'!$C$9:$C$87,0)+RIGHT($E128),0))\n/SUM(Q$10:Q$11)","v":0},{"$f":"IF(INDEX(PC_MAPPING,RIGHT($C119,1),MATCH($E$2,'Data by Building Type'!$D$22:$F$22,0))=\"Yes\",1,0)*\n(R$10*OFFSET('Efficiency Distributions'!$D$10,MATCH($C119,'Efficiency Distributions'!$C$9:$C$87,0)+RIGHT($E128),0)\n+R$11*OFFSET('Efficiency Distributions'!$E$10,MATCH($C119,'Efficiency Distributions'!$C$9:$C$87,0)+RIGHT($E128),0))\n/SUM(R$10:R$11)","v":0},{"$f":"IF(INDEX(PC_MAPPING,RIGHT($C119,1),MATCH($E$2,'Data by Building Type'!$D$22:$F$22,0))=\"Yes\",1,0)*\n(S$10*OFFSET('Efficiency Distributions'!$D$10,MATCH($C119,'Efficiency Distributions'!$C$9:$C$87,0)+RIGHT($E128),0)\n+S$11*OFFSET('Efficiency Distributions'!$E$10,MATCH($C119,'Efficiency Distributions'!$C$9:$C$87,0)+RIGHT($E128),0))\n/SUM(S$10:S$11)","v":0},{"$f":"IF(INDEX(PC_MAPPING,RIGHT($C119,1),MATCH($E$2,'Data by Building Type'!$D$22:$F$22,0))=\"Yes\",1,0)*\n(T$10*OFFSET('Efficiency Distributions'!$D$10,MATCH($C119,'Efficiency Distributions'!$C$9:$C$87,0)+RIGHT($E128),0)\n+T$11*OFFSET('Efficiency Distributions'!$E$10,MATCH($C119,'Efficiency Distributions'!$C$9:$C$87,0)+RIGHT($E128),0))\n/SUM(T$10:T$11)","v":0},{"$f":"IF(INDEX(PC_MAPPING,RIGHT($C119,1),MATCH($E$2,'Data by Building Type'!$D$22:$F$22,0))=\"Yes\",1,0)*\n(U$10*OFFSET('Efficiency Distributions'!$D$10,MATCH($C119,'Efficiency Distributions'!$C$9:$C$87,0)+RIGHT($E128),0)\n+U$11*OFFSET('Efficiency Distributions'!$E$10,MATCH($C119,'Efficiency Distributions'!$C$9:$C$87,0)+RIGHT($E128),0))\n/SUM(U$10:U$11)","v":0},{"$f":"IF(INDEX(PC_MAPPING,RIGHT($C119,1),MATCH($E$2,'Data by Building Type'!$D$22:$F$22,0))=\"Yes\",1,0)*\n(V$10*OFFSET('Efficiency Distributions'!$D$10,MATCH($C119,'Efficiency Distributions'!$C$9:$C$87,0)+RIGHT($E128),0)\n+V$11*OFFSET('Efficiency Distributions'!$E$10,MATCH($C119,'Efficiency Distributions'!$C$9:$C$87,0)+RIGHT($E128),0))\n/SUM(V$10:V$11)","v":0},{"$f":"IF(INDEX(PC_MAPPING,RIGHT($C119,1),MATCH($E$2,'Data by Building Type'!$D$22:$F$22,0))=\"Yes\",1,0)*\n(W$10*OFFSET('Efficiency Distributions'!$D$10,MATCH($C119,'Efficiency Distributions'!$C$9:$C$87,0)+RIGHT($E128),0)\n+W$11*OFFSET('Efficiency Distributions'!$E$10,MATCH($C119,'Efficiency Distributions'!$C$9:$C$87,0)+RIGHT($E128),0))\n/SUM(W$10:W$11)","v":0},{"$f":"IF(INDEX(PC_MAPPING,RIGHT($C119,1),MATCH($E$2,'Data by Building Type'!$D$22:$F$22,0))=\"Yes\",1,0)*\n(X$10*OFFSET('Efficiency Distributions'!$D$10,MATCH($C119,'Efficiency Distributions'!$C$9:$C$87,0)+RIGHT($E128),0)\n+X$11*OFFSET('Efficiency Distributions'!$E$10,MATCH($C119,'Efficiency Distributions'!$C$9:$C$87,0)+RIGHT($E128),0))\n/SUM(X$10:X$11)","v":0},{"$f":"IF(INDEX(PC_MAPPING,RIGHT($C119,1),MATCH($E$2,'Data by Building Type'!$D$22:$F$22,0))=\"Yes\",1,0)*\n(Y$10*OFFSET('Efficiency Distributions'!$D$10,MATCH($C119,'Efficiency Distributions'!$C$9:$C$87,0)+RIGHT($E128),0)\n+Y$11*OFFSET('Efficiency Distributions'!$E$10,MATCH($C119,'Efficiency Distributions'!$C$9:$C$87,0)+RIGHT($E128),0))\n/SUM(Y$10:Y$11)","v":0},{"$f":"IF(INDEX(PC_MAPPING,RIGHT($C119,1),MATCH($E$2,'Data by Building Type'!$D$22:$F$22,0))=\"Yes\",1,0)*\n(Z$10*OFFSET('Efficiency Distributions'!$D$10,MATCH($C119,'Efficiency Distributions'!$C$9:$C$87,0)+RIGHT($E128),0)\n+Z$11*OFFSET('Efficiency Distributions'!$E$10,MATCH($C119,'Efficiency Distributions'!$C$9:$C$87,0)+RIGHT($E128),0))\n/SUM(Z$10:Z$11)","v":0},{"$f":"IF(INDEX(PC_MAPPING,RIGHT($C119,1),MATCH($E$2,'Data by Building Type'!$D$22:$F$22,0))=\"Yes\",1,0)*\n(AA$10*OFFSET('Efficiency Distributions'!$D$10,MATCH($C119,'Efficiency Distributions'!$C$9:$C$87,0)+RIGHT($E128),0)\n+AA$11*OFFSET('Efficiency Distributions'!$E$10,MATCH($C119,'Efficiency Distributions'!$C$9:$C$87,0)+RIGHT($E128),0))\n/SUM(AA$10:AA$11)","v":0},{"$f":"IF(INDEX(PC_MAPPING,RIGHT($C119,1),MATCH($E$2,'Data by Building Type'!$D$22:$F$22,0))=\"Yes\",1,0)*\n(AB$10*OFFSET('Efficiency Distributions'!$D$10,MATCH($C119,'Efficiency Distributions'!$C$9:$C$87,0)+RIGHT($E128),0)\n+AB$11*OFFSET('Efficiency Distributions'!$E$10,MATCH($C119,'Efficiency Distributions'!$C$9:$C$87,0)+RIGHT($E128),0))\n/SUM(AB$10:AB$11)","v":0},{"$f":"IF(INDEX(PC_MAPPING,RIGHT($C119,1),MATCH($E$2,'Data by Building Type'!$D$22:$F$22,0))=\"Yes\",1,0)*\n(AC$10*OFFSET('Efficiency Distributions'!$D$10,MATCH($C119,'Efficiency Distributions'!$C$9:$C$87,0)+RIGHT($E128),0)\n+AC$11*OFFSET('Efficiency Distributions'!$E$10,MATCH($C119,'Efficiency Distributions'!$C$9:$C$87,0)+RIGHT($E128),0))\n/SUM(AC$10:AC$11)","v":0},{"$f":"IF(INDEX(PC_MAPPING,RIGHT($C119,1),MATCH($E$2,'Data by Building Type'!$D$22:$F$22,0))=\"Yes\",1,0)*\n(AD$10*OFFSET('Efficiency Distributions'!$D$10,MATCH($C119,'Efficiency Distributions'!$C$9:$C$87,0)+RIGHT($E128),0)\n+AD$11*OFFSET('Efficiency Distributions'!$E$10,MATCH($C119,'Efficiency Distributions'!$C$9:$C$87,0)+RIGHT($E128),0))\n/SUM(AD$10:AD$11)","v":0},{"$f":"IF(INDEX(PC_MAPPING,RIGHT($C119,1),MATCH($E$2,'Data by Building Type'!$D$22:$F$22,0))=\"Yes\",1,0)*\n(AE$10*OFFSET('Efficiency Distributions'!$D$10,MATCH($C119,'Efficiency Distributions'!$C$9:$C$87,0)+RIGHT($E128),0)\n+AE$11*OFFSET('Efficiency Distributions'!$E$10,MATCH($C119,'Efficiency Distributions'!$C$9:$C$87,0)+RIGHT($E128),0))\n/SUM(AE$10:AE$11)","v":0},{"$f":"IF(INDEX(PC_MAPPING,RIGHT($C119,1),MATCH($E$2,'Data by Building Type'!$D$22:$F$22,0))=\"Yes\",1,0)*\n(AF$10*OFFSET('Efficiency Distributions'!$D$10,MATCH($C119,'Efficiency Distributions'!$C$9:$C$87,0)+RIGHT($E128),0)\n+AF$11*OFFSET('Efficiency Distributions'!$E$10,MATCH($C119,'Efficiency Distributions'!$C$9:$C$87,0)+RIGHT($E128),0))\n/SUM(AF$10:AF$11)","v":0},{"$f":"IF(INDEX(PC_MAPPING,RIGHT($C119,1),MATCH($E$2,'Data by Building Type'!$D$22:$F$22,0))=\"Yes\",1,0)*\n(AG$10*OFFSET('Efficiency Distributions'!$D$10,MATCH($C119,'Efficiency Distributions'!$C$9:$C$87,0)+RIGHT($E128),0)\n+AG$11*OFFSET('Efficiency Distributions'!$E$10,MATCH($C119,'Efficiency Distributions'!$C$9:$C$87,0)+RIGHT($E128),0))\n/SUM(AG$10:AG$11)","v":0},{"$f":"IF(INDEX(PC_MAPPING,RIGHT($C119,1),MATCH($E$2,'Data by Building Type'!$D$22:$F$22,0))=\"Yes\",1,0)*\n(AH$10*OFFSET('Efficiency Distributions'!$D$10,MATCH($C119,'Efficiency Distributions'!$C$9:$C$87,0)+RIGHT($E128),0)\n+AH$11*OFFSET('Efficiency Distributions'!$E$10,MATCH($C119,'Efficiency Distributions'!$C$9:$C$87,0)+RIGHT($E128),0))\n/SUM(AH$10:AH$11)","v":0},{"$f":"IF(INDEX(PC_MAPPING,RIGHT($C119,1),MATCH($E$2,'Data by Building Type'!$D$22:$F$22,0))=\"Yes\",1,0)*\n(AI$10*OFFSET('Efficiency Distributions'!$D$10,MATCH($C119,'Efficiency Distributions'!$C$9:$C$87,0)+RIGHT($E128),0)\n+AI$11*OFFSET('Efficiency Distributions'!$E$10,MATCH($C119,'Efficiency Distributions'!$C$9:$C$87,0)+RIGHT($E128),0))\n/SUM(AI$10:AI$11)","v":0},{"$f":"IF(INDEX(PC_MAPPING,RIGHT($C119,1),MATCH($E$2,'Data by Building Type'!$D$22:$F$22,0))=\"Yes\",1,0)*\n(AJ$10*OFFSET('Efficiency Distributions'!$D$10,MATCH($C119,'Efficiency Distributions'!$C$9:$C$87,0)+RIGHT($E128),0)\n+AJ$11*OFFSET('Efficiency Distributions'!$E$10,MATCH($C119,'Efficiency Distributions'!$C$9:$C$87,0)+RIGHT($E128),0))\n/SUM(AJ$10:AJ$11)","v":0},{"$f":"IF(INDEX(PC_MAPPING,RIGHT($C119,1),MATCH($E$2,'Data by Building Type'!$D$22:$F$22,0))=\"Yes\",1,0)*\n(AK$10*OFFSET('Efficiency Distributions'!$D$10,MATCH($C119,'Efficiency Distributions'!$C$9:$C$87,0)+RIGHT($E128),0)\n+AK$11*OFFSET('Efficiency Distributions'!$E$10,MATCH($C119,'Efficiency Distributions'!$C$9:$C$87,0)+RIGHT($E128),0))\n/SUM(AK$10:AK$11)","v":0},{"$f":"IF(INDEX(PC_MAPPING,RIGHT($C119,1),MATCH($E$2,'Data by Building Type'!$D$22:$F$22,0))=\"Yes\",1,0)*\n(AL$10*OFFSET('Efficiency Distributions'!$D$10,MATCH($C119,'Efficiency Distributions'!$C$9:$C$87,0)+RIGHT($E128),0)\n+AL$11*OFFSET('Efficiency Distributions'!$E$10,MATCH($C119,'Efficiency Distributions'!$C$9:$C$87,0)+RIGHT($E128),0))\n/SUM(AL$10:AL$11)","v":0},{"$f":"IF(INDEX(PC_MAPPING,RIGHT($C119,1),MATCH($E$2,'Data by Building Type'!$D$22:$F$22,0))=\"Yes\",1,0)*\n(AM$10*OFFSET('Efficiency Distributions'!$D$10,MATCH($C119,'Efficiency Distributions'!$C$9:$C$87,0)+RIGHT($E128),0)\n+AM$11*OFFSET('Efficiency Distributions'!$E$10,MATCH($C119,'Efficiency Distributions'!$C$9:$C$87,0)+RIGHT($E128),0))\n/SUM(AM$10:AM$11)","v":0},{"$f":"IF(INDEX(PC_MAPPING,RIGHT($C119,1),MATCH($E$2,'Data by Building Type'!$D$22:$F$22,0))=\"Yes\",1,0)*\n(AN$10*OFFSET('Efficiency Distributions'!$D$10,MATCH($C119,'Efficiency Distributions'!$C$9:$C$87,0)+RIGHT($E128),0)\n+AN$11*OFFSET('Efficiency Distributions'!$E$10,MATCH($C119,'Efficiency Distributions'!$C$9:$C$87,0)+RIGHT($E128),0))\n/SUM(AN$10:AN$11)","v":0},{"$f":"IF(INDEX(PC_MAPPING,RIGHT($C119,1),MATCH($E$2,'Data by Building Type'!$D$22:$F$22,0))=\"Yes\",1,0)*\n(AO$10*OFFSET('Efficiency Distributions'!$D$10,MATCH($C119,'Efficiency Distributions'!$C$9:$C$87,0)+RIGHT($E128),0)\n+AO$11*OFFSET('Efficiency Distributions'!$E$10,MATCH($C119,'Efficiency Distributions'!$C$9:$C$87,0)+RIGHT($E128),0))\n/SUM(AO$10:AO$11)","v":0},{"$f":"IF(INDEX(PC_MAPPING,RIGHT($C119,1),MATCH($E$2,'Data by Building Type'!$D$22:$F$22,0))=\"Yes\",1,0)*\n(AP$10*OFFSET('Efficiency Distributions'!$D$10,MATCH($C119,'Efficiency Distributions'!$C$9:$C$87,0)+RIGHT($E128),0)\n+AP$11*OFFSET('Efficiency Distributions'!$E$10,MATCH($C119,'Efficiency Distributions'!$C$9:$C$87,0)+RIGHT($E128),0))\n/SUM(AP$10:AP$11)","v":0},{"$f":"IF(INDEX(PC_MAPPING,RIGHT($C119,1),MATCH($E$2,'Data by Building Type'!$D$22:$F$22,0))=\"Yes\",1,0)*\n(AQ$10*OFFSET('Efficiency Distributions'!$D$10,MATCH($C119,'Efficiency Distributions'!$C$9:$C$87,0)+RIGHT($E128),0)\n+AQ$11*OFFSET('Efficiency Distributions'!$E$10,MATCH($C119,'Efficiency Distributions'!$C$9:$C$87,0)+RIGHT($E128),0))\n/SUM(AQ$10:AQ$11)","v":0},{"$f":"IF(INDEX(PC_MAPPING,RIGHT($C119,1),MATCH($E$2,'Data by Building Type'!$D$22:$F$22,0))=\"Yes\",1,0)*\n(AR$10*OFFSET('Efficiency Distributions'!$D$10,MATCH($C119,'Efficiency Distributions'!$C$9:$C$87,0)+RIGHT($E128),0)\n+AR$11*OFFSET('Efficiency Distributions'!$E$10,MATCH($C119,'Efficiency Distributions'!$C$9:$C$87,0)+RIGHT($E128),0))\n/SUM(AR$10:AR$11)","v":0},{"$f":"IF(INDEX(PC_MAPPING,RIGHT($C119,1),MATCH($E$2,'Data by Building Type'!$D$22:$F$22,0))=\"Yes\",1,0)*\n(AS$10*OFFSET('Efficiency Distributions'!$D$10,MATCH($C119,'Efficiency Distributions'!$C$9:$C$87,0)+RIGHT($E128),0)\n+AS$11*OFFSET('Efficiency Distributions'!$E$10,MATCH($C119,'Efficiency Distributions'!$C$9:$C$87,0)+RIGHT($E128),0))\n/SUM(AS$10:AS$11)","v":0},{"$f":"IF(INDEX(PC_MAPPING,RIGHT($C119,1),MATCH($E$2,'Data by Building Type'!$D$22:$F$22,0))=\"Yes\",1,0)*\n(AT$10*OFFSET('Efficiency Distributions'!$D$10,MATCH($C119,'Efficiency Distributions'!$C$9:$C$87,0)+RIGHT($E128),0)\n+AT$11*OFFSET('Efficiency Distributions'!$E$10,MATCH($C119,'Efficiency Distributions'!$C$9:$C$87,0)+RIGHT($E128),0))\n/SUM(AT$10:AT$11)","v":0},{"$f":"IF(INDEX(PC_MAPPING,RIGHT($C119,1),MATCH($E$2,'Data by Building Type'!$D$22:$F$22,0))=\"Yes\",1,0)*\n(AU$10*OFFSET('Efficiency Distributions'!$D$10,MATCH($C119,'Efficiency Distributions'!$C$9:$C$87,0)+RIGHT($E128),0)\n+AU$11*OFFSET('Efficiency Distributions'!$E$10,MATCH($C119,'Efficiency Distributions'!$C$9:$C$87,0)+RIGHT($E128),0))\n/SUM(AU$10:AU$11)","v":0},{"$f":"IF(INDEX(PC_MAPPING,RIGHT($C119,1),MATCH($E$2,'Data by Building Type'!$D$22:$F$22,0))=\"Yes\",1,0)*\n(AV$10*OFFSET('Efficiency Distributions'!$D$10,MATCH($C119,'Efficiency Distributions'!$C$9:$C$87,0)+RIGHT($E128),0)\n+AV$11*OFFSET('Efficiency Distributions'!$E$10,MATCH($C119,'Efficiency Distributions'!$C$9:$C$87,0)+RIGHT($E128),0))\n/SUM(AV$10:AV$11)","v":0},{"$f":"IF(INDEX(PC_MAPPING,RIGHT($C119,1),MATCH($E$2,'Data by Building Type'!$D$22:$F$22,0))=\"Yes\",1,0)*\n(AW$10*OFFSET('Efficiency Distributions'!$D$10,MATCH($C119,'Efficiency Distributions'!$C$9:$C$87,0)+RIGHT($E128),0)\n+AW$11*OFFSET('Efficiency Distributions'!$E$10,MATCH($C119,'Efficiency Distributions'!$C$9:$C$87,0)+RIGHT($E128),0))\n/SUM(AW$10:AW$11)","v":0},{"$f":"IF(INDEX(PC_MAPPING,RIGHT($C119,1),MATCH($E$2,'Data by Building Type'!$D$22:$F$22,0))=\"Yes\",1,0)*\n(AX$10*OFFSET('Efficiency Distributions'!$D$10,MATCH($C119,'Efficiency Distributions'!$C$9:$C$87,0)+RIGHT($E128),0)\n+AX$11*OFFSET('Efficiency Distributions'!$E$10,MATCH($C119,'Efficiency Distributions'!$C$9:$C$87,0)+RIGHT($E128),0))\n/SUM(AX$10:AX$11)","v":0},{"$f":"IF(INDEX(PC_MAPPING,RIGHT($C119,1),MATCH($E$2,'Data by Building Type'!$D$22:$F$22,0))=\"Yes\",1,0)*\n(AY$10*OFFSET('Efficiency Distributions'!$D$10,MATCH($C119,'Efficiency Distributions'!$C$9:$C$87,0)+RIGHT($E128),0)\n+AY$11*OFFSET('Efficiency Distributions'!$E$10,MATCH($C119,'Efficiency Distributions'!$C$9:$C$87,0)+RIGHT($E128),0))\n/SUM(AY$10:AY$11)","v":0},{"$f":"IF(INDEX(PC_MAPPING,RIGHT($C119,1),MATCH($E$2,'Data by Building Type'!$D$22:$F$22,0))=\"Yes\",1,0)*\n(AZ$10*OFFSET('Efficiency Distributions'!$D$10,MATCH($C119,'Efficiency Distributions'!$C$9:$C$87,0)+RIGHT($E128),0)\n+AZ$11*OFFSET('Efficiency Distributions'!$E$10,MATCH($C119,'Efficiency Distributions'!$C$9:$C$87,0)+RIGHT($E128),0))\n/SUM(AZ$10:AZ$11)","v":0},{"$f":"IF(INDEX(PC_MAPPING,RIGHT($C119,1),MATCH($E$2,'Data by Building Type'!$D$22:$F$22,0))=\"Yes\",1,0)*\n(BA$10*OFFSET('Efficiency Distributions'!$D$10,MATCH($C119,'Efficiency Distributions'!$C$9:$C$87,0)+RIGHT($E128),0)\n+BA$11*OFFSET('Efficiency Distributions'!$E$10,MATCH($C119,'Efficiency Distributions'!$C$9:$C$87,0)+RIGHT($E128),0))\n/SUM(BA$10:BA$11)","v":0},{"$f":"IF(INDEX(PC_MAPPING,RIGHT($C119,1),MATCH($E$2,'Data by Building Type'!$D$22:$F$22,0))=\"Yes\",1,0)*\n(BB$10*OFFSET('Efficiency Distributions'!$D$10,MATCH($C119,'Efficiency Distributions'!$C$9:$C$87,0)+RIGHT($E128),0)\n+BB$11*OFFSET('Efficiency Distributions'!$E$10,MATCH($C119,'Efficiency Distributions'!$C$9:$C$87,0)+RIGHT($E128),0))\n/SUM(BB$10:BB$11)","v":0},{"$f":"IF(INDEX(PC_MAPPING,RIGHT($C119,1),MATCH($E$2,'Data by Building Type'!$D$22:$F$22,0))=\"Yes\",1,0)*\n(BC$10*OFFSET('Efficiency Distributions'!$D$10,MATCH($C119,'Efficiency Distributions'!$C$9:$C$87,0)+RIGHT($E128),0)\n+BC$11*OFFSET('Efficiency Distributions'!$E$10,MATCH($C119,'Efficiency Distributions'!$C$9:$C$87,0)+RIGHT($E128),0))\n/SUM(BC$10:BC$11)","v":0},{"$f":"IF(INDEX(PC_MAPPING,RIGHT($C119,1),MATCH($E$2,'Data by Building Type'!$D$22:$F$22,0))=\"Yes\",1,0)*\n(BD$10*OFFSET('Efficiency Distributions'!$D$10,MATCH($C119,'Efficiency Distributions'!$C$9:$C$87,0)+RIGHT($E128),0)\n+BD$11*OFFSET('Efficiency Distributions'!$E$10,MATCH($C119,'Efficiency Distributions'!$C$9:$C$87,0)+RIGHT($E128),0))\n/SUM(BD$10:BD$11)","v":0},{"$f":"IF(INDEX(PC_MAPPING,RIGHT($C119,1),MATCH($E$2,'Data by Building Type'!$D$22:$F$22,0))=\"Yes\",1,0)*\n(BE$10*OFFSET('Efficiency Distributions'!$D$10,MATCH($C119,'Efficiency Distributions'!$C$9:$C$87,0)+RIGHT($E128),0)\n+BE$11*OFFSET('Efficiency Distributions'!$E$10,MATCH($C119,'Efficiency Distributions'!$C$9:$C$87,0)+RIGHT($E128),0))\n/SUM(BE$10:BE$11)","v":0},{"$f":"IF(INDEX(PC_MAPPING,RIGHT($C119,1),MATCH($E$2,'Data by Building Type'!$D$22:$F$22,0))=\"Yes\",1,0)*\n(BF$10*OFFSET('Efficiency Distributions'!$D$10,MATCH($C119,'Efficiency Distributions'!$C$9:$C$87,0)+RIGHT($E128),0)\n+BF$11*OFFSET('Efficiency Distributions'!$E$10,MATCH($C119,'Efficiency Distributions'!$C$9:$C$87,0)+RIGHT($E128),0))\n/SUM(BF$10:BF$11)","v":0},{"$f":"IF(INDEX(PC_MAPPING,RIGHT($C119,1),MATCH($E$2,'Data by Building Type'!$D$22:$F$22,0))=\"Yes\",1,0)*\n(BG$10*OFFSET('Efficiency Distributions'!$D$10,MATCH($C119,'Efficiency Distributions'!$C$9:$C$87,0)+RIGHT($E128),0)\n+BG$11*OFFSET('Efficiency Distributions'!$E$10,MATCH($C119,'Efficiency Distributions'!$C$9:$C$87,0)+RIGHT($E128),0))\n/SUM(BG$10:BG$11)","v":0}]
[null,null,null,null,"EL6",{"$f":"IF(INDEX(PC_MAPPING,RIGHT($C119,1),MATCH($E$2,'Data by Building Type'!$D$22:$F$22,0))=\"Yes\",1,0)*\n(F$10*OFFSET('Efficiency Distributions'!$D$10,MATCH($C119,'Efficiency Distributions'!$C$9:$C$87,0)+RIGHT($E129),0)\n+F$11*OFFSET('Efficiency Distributions'!$E$10,MATCH($C119,'Efficiency Distributions'!$C$9:$C$87,0)+RIGHT($E129),0))\n/SUM(F$10:F$11)","v":0},{"$f":"IF(INDEX(PC_MAPPING,RIGHT($C119,1),MATCH($E$2,'Data by Building Type'!$D$22:$F$22,0))=\"Yes\",1,0)*\n(G$10*OFFSET('Efficiency Distributions'!$D$10,MATCH($C119,'Efficiency Distributions'!$C$9:$C$87,0)+RIGHT($E129),0)\n+G$11*OFFSET('Efficiency Distributions'!$E$10,MATCH($C119,'Efficiency Distributions'!$C$9:$C$87,0)+RIGHT($E129),0))\n/SUM(G$10:G$11)","v":0},{"$f":"IF(INDEX(PC_MAPPING,RIGHT($C119,1),MATCH($E$2,'Data by Building Type'!$D$22:$F$22,0))=\"Yes\",1,0)*\n(H$10*OFFSET('Efficiency Distributions'!$D$10,MATCH($C119,'Efficiency Distributions'!$C$9:$C$87,0)+RIGHT($E129),0)\n+H$11*OFFSET('Efficiency Distributions'!$E$10,MATCH($C119,'Efficiency Distributions'!$C$9:$C$87,0)+RIGHT($E129),0))\n/SUM(H$10:H$11)","v":0},{"$f":"IF(INDEX(PC_MAPPING,RIGHT($C119,1),MATCH($E$2,'Data by Building Type'!$D$22:$F$22,0))=\"Yes\",1,0)*\n(I$10*OFFSET('Efficiency Distributions'!$D$10,MATCH($C119,'Efficiency Distributions'!$C$9:$C$87,0)+RIGHT($E129),0)\n+I$11*OFFSET('Efficiency Distributions'!$E$10,MATCH($C119,'Efficiency Distributions'!$C$9:$C$87,0)+RIGHT($E129),0))\n/SUM(I$10:I$11)","v":0},{"$f":"IF(INDEX(PC_MAPPING,RIGHT($C119,1),MATCH($E$2,'Data by Building Type'!$D$22:$F$22,0))=\"Yes\",1,0)*\n(J$10*OFFSET('Efficiency Distributions'!$D$10,MATCH($C119,'Efficiency Distributions'!$C$9:$C$87,0)+RIGHT($E129),0)\n+J$11*OFFSET('Efficiency Distributions'!$E$10,MATCH($C119,'Efficiency Distributions'!$C$9:$C$87,0)+RIGHT($E129),0))\n/SUM(J$10:J$11)","v":0},{"$f":"IF(INDEX(PC_MAPPING,RIGHT($C119,1),MATCH($E$2,'Data by Building Type'!$D$22:$F$22,0))=\"Yes\",1,0)*\n(K$10*OFFSET('Efficiency Distributions'!$D$10,MATCH($C119,'Efficiency Distributions'!$C$9:$C$87,0)+RIGHT($E129),0)\n+K$11*OFFSET('Efficiency Distributions'!$E$10,MATCH($C119,'Efficiency Distributions'!$C$9:$C$87,0)+RIGHT($E129),0))\n/SUM(K$10:K$11)","v":0},{"$f":"IF(INDEX(PC_MAPPING,RIGHT($C119,1),MATCH($E$2,'Data by Building Type'!$D$22:$F$22,0))=\"Yes\",1,0)*\n(L$10*OFFSET('Efficiency Distributions'!$D$10,MATCH($C119,'Efficiency Distributions'!$C$9:$C$87,0)+RIGHT($E129),0)\n+L$11*OFFSET('Efficiency Distributions'!$E$10,MATCH($C119,'Efficiency Distributions'!$C$9:$C$87,0)+RIGHT($E129),0))\n/SUM(L$10:L$11)","v":0},{"$f":"IF(INDEX(PC_MAPPING,RIGHT($C119,1),MATCH($E$2,'Data by Building Type'!$D$22:$F$22,0))=\"Yes\",1,0)*\n(M$10*OFFSET('Efficiency Distributions'!$D$10,MATCH($C119,'Efficiency Distributions'!$C$9:$C$87,0)+RIGHT($E129),0)\n+M$11*OFFSET('Efficiency Distributions'!$E$10,MATCH($C119,'Efficiency Distributions'!$C$9:$C$87,0)+RIGHT($E129),0))\n/SUM(M$10:M$11)","v":0},{"$f":"IF(INDEX(PC_MAPPING,RIGHT($C119,1),MATCH($E$2,'Data by Building Type'!$D$22:$F$22,0))=\"Yes\",1,0)*\n(N$10*OFFSET('Efficiency Distributions'!$D$10,MATCH($C119,'Efficiency Distributions'!$C$9:$C$87,0)+RIGHT($E129),0)\n+N$11*OFFSET('Efficiency Distributions'!$E$10,MATCH($C119,'Efficiency Distributions'!$C$9:$C$87,0)+RIGHT($E129),0))\n/SUM(N$10:N$11)","v":0},{"$f":"IF(INDEX(PC_MAPPING,RIGHT($C119,1),MATCH($E$2,'Data by Building Type'!$D$22:$F$22,0))=\"Yes\",1,0)*\n(O$10*OFFSET('Efficiency Distributions'!$D$10,MATCH($C119,'Efficiency Distributions'!$C$9:$C$87,0)+RIGHT($E129),0)\n+O$11*OFFSET('Efficiency Distributions'!$E$10,MATCH($C119,'Efficiency Distributions'!$C$9:$C$87,0)+RIGHT($E129),0))\n/SUM(O$10:O$11)","v":0},{"$f":"IF(INDEX(PC_MAPPING,RIGHT($C119,1),MATCH($E$2,'Data by Building Type'!$D$22:$F$22,0))=\"Yes\",1,0)*\n(P$10*OFFSET('Efficiency Distributions'!$D$10,MATCH($C119,'Efficiency Distributions'!$C$9:$C$87,0)+RIGHT($E129),0)\n+P$11*OFFSET('Efficiency Distributions'!$E$10,MATCH($C119,'Efficiency Distributions'!$C$9:$C$87,0)+RIGHT($E129),0))\n/SUM(P$10:P$11)","v":0},{"$f":"IF(INDEX(PC_MAPPING,RIGHT($C119,1),MATCH($E$2,'Data by Building Type'!$D$22:$F$22,0))=\"Yes\",1,0)*\n(Q$10*OFFSET('Efficiency Distributions'!$D$10,MATCH($C119,'Efficiency Distributions'!$C$9:$C$87,0)+RIGHT($E129),0)\n+Q$11*OFFSET('Efficiency Distributions'!$E$10,MATCH($C119,'Efficiency Distributions'!$C$9:$C$87,0)+RIGHT($E129),0))\n/SUM(Q$10:Q$11)","v":0},{"$f":"IF(INDEX(PC_MAPPING,RIGHT($C119,1),MATCH($E$2,'Data by Building Type'!$D$22:$F$22,0))=\"Yes\",1,0)*\n(R$10*OFFSET('Efficiency Distributions'!$D$10,MATCH($C119,'Efficiency Distributions'!$C$9:$C$87,0)+RIGHT($E129),0)\n+R$11*OFFSET('Efficiency Distributions'!$E$10,MATCH($C119,'Efficiency Distributions'!$C$9:$C$87,0)+RIGHT($E129),0))\n/SUM(R$10:R$11)","v":0},{"$f":"IF(INDEX(PC_MAPPING,RIGHT($C119,1),MATCH($E$2,'Data by Building Type'!$D$22:$F$22,0))=\"Yes\",1,0)*\n(S$10*OFFSET('Efficiency Distributions'!$D$10,MATCH($C119,'Efficiency Distributions'!$C$9:$C$87,0)+RIGHT($E129),0)\n+S$11*OFFSET('Efficiency Distributions'!$E$10,MATCH($C119,'Efficiency Distributions'!$C$9:$C$87,0)+RIGHT($E129),0))\n/SUM(S$10:S$11)","v":0},{"$f":"IF(INDEX(PC_MAPPING,RIGHT($C119,1),MATCH($E$2,'Data by Building Type'!$D$22:$F$22,0))=\"Yes\",1,0)*\n(T$10*OFFSET('Efficiency Distributions'!$D$10,MATCH($C119,'Efficiency Distributions'!$C$9:$C$87,0)+RIGHT($E129),0)\n+T$11*OFFSET('Efficiency Distributions'!$E$10,MATCH($C119,'Efficiency Distributions'!$C$9:$C$87,0)+RIGHT($E129),0))\n/SUM(T$10:T$11)","v":0},{"$f":"IF(INDEX(PC_MAPPING,RIGHT($C119,1),MATCH($E$2,'Data by Building Type'!$D$22:$F$22,0))=\"Yes\",1,0)*\n(U$10*OFFSET('Efficiency Distributions'!$D$10,MATCH($C119,'Efficiency Distributions'!$C$9:$C$87,0)+RIGHT($E129),0)\n+U$11*OFFSET('Efficiency Distributions'!$E$10,MATCH($C119,'Efficiency Distributions'!$C$9:$C$87,0)+RIGHT($E129),0))\n/SUM(U$10:U$11)","v":0},{"$f":"IF(INDEX(PC_MAPPING,RIGHT($C119,1),MATCH($E$2,'Data by Building Type'!$D$22:$F$22,0))=\"Yes\",1,0)*\n(V$10*OFFSET('Efficiency Distributions'!$D$10,MATCH($C119,'Efficiency Distributions'!$C$9:$C$87,0)+RIGHT($E129),0)\n+V$11*OFFSET('Efficiency Distributions'!$E$10,MATCH($C119,'Efficiency Distributions'!$C$9:$C$87,0)+RIGHT($E129),0))\n/SUM(V$10:V$11)","v":0},{"$f":"IF(INDEX(PC_MAPPING,RIGHT($C119,1),MATCH($E$2,'Data by Building Type'!$D$22:$F$22,0))=\"Yes\",1,0)*\n(W$10*OFFSET('Efficiency Distributions'!$D$10,MATCH($C119,'Efficiency Distributions'!$C$9:$C$87,0)+RIGHT($E129),0)\n+W$11*OFFSET('Efficiency Distributions'!$E$10,MATCH($C119,'Efficiency Distributions'!$C$9:$C$87,0)+RIGHT($E129),0))\n/SUM(W$10:W$11)","v":0},{"$f":"IF(INDEX(PC_MAPPING,RIGHT($C119,1),MATCH($E$2,'Data by Building Type'!$D$22:$F$22,0))=\"Yes\",1,0)*\n(X$10*OFFSET('Efficiency Distributions'!$D$10,MATCH($C119,'Efficiency Distributions'!$C$9:$C$87,0)+RIGHT($E129),0)\n+X$11*OFFSET('Efficiency Distributions'!$E$10,MATCH($C119,'Efficiency Distributions'!$C$9:$C$87,0)+RIGHT($E129),0))\n/SUM(X$10:X$11)","v":0},{"$f":"IF(INDEX(PC_MAPPING,RIGHT($C119,1),MATCH($E$2,'Data by Building Type'!$D$22:$F$22,0))=\"Yes\",1,0)*\n(Y$10*OFFSET('Efficiency Distributions'!$D$10,MATCH($C119,'Efficiency Distributions'!$C$9:$C$87,0)+RIGHT($E129),0)\n+Y$11*OFFSET('Efficiency Distributions'!$E$10,MATCH($C119,'Efficiency Distributions'!$C$9:$C$87,0)+RIGHT($E129),0))\n/SUM(Y$10:Y$11)","v":0},{"$f":"IF(INDEX(PC_MAPPING,RIGHT($C119,1),MATCH($E$2,'Data by Building Type'!$D$22:$F$22,0))=\"Yes\",1,0)*\n(Z$10*OFFSET('Efficiency Distributions'!$D$10,MATCH($C119,'Efficiency Distributions'!$C$9:$C$87,0)+RIGHT($E129),0)\n+Z$11*OFFSET('Efficiency Distributions'!$E$10,MATCH($C119,'Efficiency Distributions'!$C$9:$C$87,0)+RIGHT($E129),0))\n/SUM(Z$10:Z$11)","v":0},{"$f":"IF(INDEX(PC_MAPPING,RIGHT($C119,1),MATCH($E$2,'Data by Building Type'!$D$22:$F$22,0))=\"Yes\",1,0)*\n(AA$10*OFFSET('Efficiency Distributions'!$D$10,MATCH($C119,'Efficiency Distributions'!$C$9:$C$87,0)+RIGHT($E129),0)\n+AA$11*OFFSET('Efficiency Distributions'!$E$10,MATCH($C119,'Efficiency Distributions'!$C$9:$C$87,0)+RIGHT($E129),0))\n/SUM(AA$10:AA$11)","v":0},{"$f":"IF(INDEX(PC_MAPPING,RIGHT($C119,1),MATCH($E$2,'Data by Building Type'!$D$22:$F$22,0))=\"Yes\",1,0)*\n(AB$10*OFFSET('Efficiency Distributions'!$D$10,MATCH($C119,'Efficiency Distributions'!$C$9:$C$87,0)+RIGHT($E129),0)\n+AB$11*OFFSET('Efficiency Distributions'!$E$10,MATCH($C119,'Efficiency Distributions'!$C$9:$C$87,0)+RIGHT($E129),0))\n/SUM(AB$10:AB$11)","v":0},{"$f":"IF(INDEX(PC_MAPPING,RIGHT($C119,1),MATCH($E$2,'Data by Building Type'!$D$22:$F$22,0))=\"Yes\",1,0)*\n(AC$10*OFFSET('Efficiency Distributions'!$D$10,MATCH($C119,'Efficiency Distributions'!$C$9:$C$87,0)+RIGHT($E129),0)\n+AC$11*OFFSET('Efficiency Distributions'!$E$10,MATCH($C119,'Efficiency Distributions'!$C$9:$C$87,0)+RIGHT($E129),0))\n/SUM(AC$10:AC$11)","v":0},{"$f":"IF(INDEX(PC_MAPPING,RIGHT($C119,1),MATCH($E$2,'Data by Building Type'!$D$22:$F$22,0))=\"Yes\",1,0)*\n(AD$10*OFFSET('Efficiency Distributions'!$D$10,MATCH($C119,'Efficiency Distributions'!$C$9:$C$87,0)+RIGHT($E129),0)\n+AD$11*OFFSET('Efficiency Distributions'!$E$10,MATCH($C119,'Efficiency Distributions'!$C$9:$C$87,0)+RIGHT($E129),0))\n/SUM(AD$10:AD$11)","v":0},{"$f":"IF(INDEX(PC_MAPPING,RIGHT($C119,1),MATCH($E$2,'Data by Building Type'!$D$22:$F$22,0))=\"Yes\",1,0)*\n(AE$10*OFFSET('Efficiency Distributions'!$D$10,MATCH($C119,'Efficiency Distributions'!$C$9:$C$87,0)+RIGHT($E129),0)\n+AE$11*OFFSET('Efficiency Distributions'!$E$10,MATCH($C119,'Efficiency Distributions'!$C$9:$C$87,0)+RIGHT($E129),0))\n/SUM(AE$10:AE$11)","v":0},{"$f":"IF(INDEX(PC_MAPPING,RIGHT($C119,1),MATCH($E$2,'Data by Building Type'!$D$22:$F$22,0))=\"Yes\",1,0)*\n(AF$10*OFFSET('Efficiency Distributions'!$D$10,MATCH($C119,'Efficiency Distributions'!$C$9:$C$87,0)+RIGHT($E129),0)\n+AF$11*OFFSET('Efficiency Distributions'!$E$10,MATCH($C119,'Efficiency Distributions'!$C$9:$C$87,0)+RIGHT($E129),0))\n/SUM(AF$10:AF$11)","v":0},{"$f":"IF(INDEX(PC_MAPPING,RIGHT($C119,1),MATCH($E$2,'Data by Building Type'!$D$22:$F$22,0))=\"Yes\",1,0)*\n(AG$10*OFFSET('Efficiency Distributions'!$D$10,MATCH($C119,'Efficiency Distributions'!$C$9:$C$87,0)+RIGHT($E129),0)\n+AG$11*OFFSET('Efficiency Distributions'!$E$10,MATCH($C119,'Efficiency Distributions'!$C$9:$C$87,0)+RIGHT($E129),0))\n/SUM(AG$10:AG$11)","v":0},{"$f":"IF(INDEX(PC_MAPPING,RIGHT($C119,1),MATCH($E$2,'Data by Building Type'!$D$22:$F$22,0))=\"Yes\",1,0)*\n(AH$10*OFFSET('Efficiency Distributions'!$D$10,MATCH($C119,'Efficiency Distributions'!$C$9:$C$87,0)+RIGHT($E129),0)\n+AH$11*OFFSET('Efficiency Distributions'!$E$10,MATCH($C119,'Efficiency Distributions'!$C$9:$C$87,0)+RIGHT($E129),0))\n/SUM(AH$10:AH$11)","v":0},{"$f":"IF(INDEX(PC_MAPPING,RIGHT($C119,1),MATCH($E$2,'Data by Building Type'!$D$22:$F$22,0))=\"Yes\",1,0)*\n(AI$10*OFFSET('Efficiency Distributions'!$D$10,MATCH($C119,'Efficiency Distributions'!$C$9:$C$87,0)+RIGHT($E129),0)\n+AI$11*OFFSET('Efficiency Distributions'!$E$10,MATCH($C119,'Efficiency Distributions'!$C$9:$C$87,0)+RIGHT($E129),0))\n/SUM(AI$10:AI$11)","v":0},{"$f":"IF(INDEX(PC_MAPPING,RIGHT($C119,1),MATCH($E$2,'Data by Building Type'!$D$22:$F$22,0))=\"Yes\",1,0)*\n(AJ$10*OFFSET('Efficiency Distributions'!$D$10,MATCH($C119,'Efficiency Distributions'!$C$9:$C$87,0)+RIGHT($E129),0)\n+AJ$11*OFFSET('Efficiency Distributions'!$E$10,MATCH($C119,'Efficiency Distributions'!$C$9:$C$87,0)+RIGHT($E129),0))\n/SUM(AJ$10:AJ$11)","v":0},{"$f":"IF(INDEX(PC_MAPPING,RIGHT($C119,1),MATCH($E$2,'Data by Building Type'!$D$22:$F$22,0))=\"Yes\",1,0)*\n(AK$10*OFFSET('Efficiency Distributions'!$D$10,MATCH($C119,'Efficiency Distributions'!$C$9:$C$87,0)+RIGHT($E129),0)\n+AK$11*OFFSET('Efficiency Distributions'!$E$10,MATCH($C119,'Efficiency Distributions'!$C$9:$C$87,0)+RIGHT($E129),0))\n/SUM(AK$10:AK$11)","v":0},{"$f":"IF(INDEX(PC_MAPPING,RIGHT($C119,1),MATCH($E$2,'Data by Building Type'!$D$22:$F$22,0))=\"Yes\",1,0)*\n(AL$10*OFFSET('Efficiency Distributions'!$D$10,MATCH($C119,'Efficiency Distributions'!$C$9:$C$87,0)+RIGHT($E129),0)\n+AL$11*OFFSET('Efficiency Distributions'!$E$10,MATCH($C119,'Efficiency Distributions'!$C$9:$C$87,0)+RIGHT($E129),0))\n/SUM(AL$10:AL$11)","v":0},{"$f":"IF(INDEX(PC_MAPPING,RIGHT($C119,1),MATCH($E$2,'Data by Building Type'!$D$22:$F$22,0))=\"Yes\",1,0)*\n(AM$10*OFFSET('Efficiency Distributions'!$D$10,MATCH($C119,'Efficiency Distributions'!$C$9:$C$87,0)+RIGHT($E129),0)\n+AM$11*OFFSET('Efficiency Distributions'!$E$10,MATCH($C119,'Efficiency Distributions'!$C$9:$C$87,0)+RIGHT($E129),0))\n/SUM(AM$10:AM$11)","v":0},{"$f":"IF(INDEX(PC_MAPPING,RIGHT($C119,1),MATCH($E$2,'Data by Building Type'!$D$22:$F$22,0))=\"Yes\",1,0)*\n(AN$10*OFFSET('Efficiency Distributions'!$D$10,MATCH($C119,'Efficiency Distributions'!$C$9:$C$87,0)+RIGHT($E129),0)\n+AN$11*OFFSET('Efficiency Distributions'!$E$10,MATCH($C119,'Efficiency Distributions'!$C$9:$C$87,0)+RIGHT($E129),0))\n/SUM(AN$10:AN$11)","v":0},{"$f":"IF(INDEX(PC_MAPPING,RIGHT($C119,1),MATCH($E$2,'Data by Building Type'!$D$22:$F$22,0))=\"Yes\",1,0)*\n(AO$10*OFFSET('Efficiency Distributions'!$D$10,MATCH($C119,'Efficiency Distributions'!$C$9:$C$87,0)+RIGHT($E129),0)\n+AO$11*OFFSET('Efficiency Distributions'!$E$10,MATCH($C119,'Efficiency Distributions'!$C$9:$C$87,0)+RIGHT($E129),0))\n/SUM(AO$10:AO$11)","v":0},{"$f":"IF(INDEX(PC_MAPPING,RIGHT($C119,1),MATCH($E$2,'Data by Building Type'!$D$22:$F$22,0))=\"Yes\",1,0)*\n(AP$10*OFFSET('Efficiency Distributions'!$D$10,MATCH($C119,'Efficiency Distributions'!$C$9:$C$87,0)+RIGHT($E129),0)\n+AP$11*OFFSET('Efficiency Distributions'!$E$10,MATCH($C119,'Efficiency Distributions'!$C$9:$C$87,0)+RIGHT($E129),0))\n/SUM(AP$10:AP$11)","v":0},{"$f":"IF(INDEX(PC_MAPPING,RIGHT($C119,1),MATCH($E$2,'Data by Building Type'!$D$22:$F$22,0))=\"Yes\",1,0)*\n(AQ$10*OFFSET('Efficiency Distributions'!$D$10,MATCH($C119,'Efficiency Distributions'!$C$9:$C$87,0)+RIGHT($E129),0)\n+AQ$11*OFFSET('Efficiency Distributions'!$E$10,MATCH($C119,'Efficiency Distributions'!$C$9:$C$87,0)+RIGHT($E129),0))\n/SUM(AQ$10:AQ$11)","v":0},{"$f":"IF(INDEX(PC_MAPPING,RIGHT($C119,1),MATCH($E$2,'Data by Building Type'!$D$22:$F$22,0))=\"Yes\",1,0)*\n(AR$10*OFFSET('Efficiency Distributions'!$D$10,MATCH($C119,'Efficiency Distributions'!$C$9:$C$87,0)+RIGHT($E129),0)\n+AR$11*OFFSET('Efficiency Distributions'!$E$10,MATCH($C119,'Efficiency Distributions'!$C$9:$C$87,0)+RIGHT($E129),0))\n/SUM(AR$10:AR$11)","v":0},{"$f":"IF(INDEX(PC_MAPPING,RIGHT($C119,1),MATCH($E$2,'Data by Building Type'!$D$22:$F$22,0))=\"Yes\",1,0)*\n(AS$10*OFFSET('Efficiency Distributions'!$D$10,MATCH($C119,'Efficiency Distributions'!$C$9:$C$87,0)+RIGHT($E129),0)\n+AS$11*OFFSET('Efficiency Distributions'!$E$10,MATCH($C119,'Efficiency Distributions'!$C$9:$C$87,0)+RIGHT($E129),0))\n/SUM(AS$10:AS$11)","v":0},{"$f":"IF(INDEX(PC_MAPPING,RIGHT($C119,1),MATCH($E$2,'Data by Building Type'!$D$22:$F$22,0))=\"Yes\",1,0)*\n(AT$10*OFFSET('Efficiency Distributions'!$D$10,MATCH($C119,'Efficiency Distributions'!$C$9:$C$87,0)+RIGHT($E129),0)\n+AT$11*OFFSET('Efficiency Distributions'!$E$10,MATCH($C119,'Efficiency Distributions'!$C$9:$C$87,0)+RIGHT($E129),0))\n/SUM(AT$10:AT$11)","v":0},{"$f":"IF(INDEX(PC_MAPPING,RIGHT($C119,1),MATCH($E$2,'Data by Building Type'!$D$22:$F$22,0))=\"Yes\",1,0)*\n(AU$10*OFFSET('Efficiency Distributions'!$D$10,MATCH($C119,'Efficiency Distributions'!$C$9:$C$87,0)+RIGHT($E129),0)\n+AU$11*OFFSET('Efficiency Distributions'!$E$10,MATCH($C119,'Efficiency Distributions'!$C$9:$C$87,0)+RIGHT($E129),0))\n/SUM(AU$10:AU$11)","v":0},{"$f":"IF(INDEX(PC_MAPPING,RIGHT($C119,1),MATCH($E$2,'Data by Building Type'!$D$22:$F$22,0))=\"Yes\",1,0)*\n(AV$10*OFFSET('Efficiency Distributions'!$D$10,MATCH($C119,'Efficiency Distributions'!$C$9:$C$87,0)+RIGHT($E129),0)\n+AV$11*OFFSET('Efficiency Distributions'!$E$10,MATCH($C119,'Efficiency Distributions'!$C$9:$C$87,0)+RIGHT($E129),0))\n/SUM(AV$10:AV$11)","v":0},{"$f":"IF(INDEX(PC_MAPPING,RIGHT($C119,1),MATCH($E$2,'Data by Building Type'!$D$22:$F$22,0))=\"Yes\",1,0)*\n(AW$10*OFFSET('Efficiency Distributions'!$D$10,MATCH($C119,'Efficiency Distributions'!$C$9:$C$87,0)+RIGHT($E129),0)\n+AW$11*OFFSET('Efficiency Distributions'!$E$10,MATCH($C119,'Efficiency Distributions'!$C$9:$C$87,0)+RIGHT($E129),0))\n/SUM(AW$10:AW$11)","v":0},{"$f":"IF(INDEX(PC_MAPPING,RIGHT($C119,1),MATCH($E$2,'Data by Building Type'!$D$22:$F$22,0))=\"Yes\",1,0)*\n(AX$10*OFFSET('Efficiency Distributions'!$D$10,MATCH($C119,'Efficiency Distributions'!$C$9:$C$87,0)+RIGHT($E129),0)\n+AX$11*OFFSET('Efficiency Distributions'!$E$10,MATCH($C119,'Efficiency Distributions'!$C$9:$C$87,0)+RIGHT($E129),0))\n/SUM(AX$10:AX$11)","v":0},{"$f":"IF(INDEX(PC_MAPPING,RIGHT($C119,1),MATCH($E$2,'Data by Building Type'!$D$22:$F$22,0))=\"Yes\",1,0)*\n(AY$10*OFFSET('Efficiency Distributions'!$D$10,MATCH($C119,'Efficiency Distributions'!$C$9:$C$87,0)+RIGHT($E129),0)\n+AY$11*OFFSET('Efficiency Distributions'!$E$10,MATCH($C119,'Efficiency Distributions'!$C$9:$C$87,0)+RIGHT($E129),0))\n/SUM(AY$10:AY$11)","v":0},{"$f":"IF(INDEX(PC_MAPPING,RIGHT($C119,1),MATCH($E$2,'Data by Building Type'!$D$22:$F$22,0))=\"Yes\",1,0)*\n(AZ$10*OFFSET('Efficiency Distributions'!$D$10,MATCH($C119,'Efficiency Distributions'!$C$9:$C$87,0)+RIGHT($E129),0)\n+AZ$11*OFFSET('Efficiency Distributions'!$E$10,MATCH($C119,'Efficiency Distributions'!$C$9:$C$87,0)+RIGHT($E129),0))\n/SUM(AZ$10:AZ$11)","v":0},{"$f":"IF(INDEX(PC_MAPPING,RIGHT($C119,1),MATCH($E$2,'Data by Building Type'!$D$22:$F$22,0))=\"Yes\",1,0)*\n(BA$10*OFFSET('Efficiency Distributions'!$D$10,MATCH($C119,'Efficiency Distributions'!$C$9:$C$87,0)+RIGHT($E129),0)\n+BA$11*OFFSET('Efficiency Distributions'!$E$10,MATCH($C119,'Efficiency Distributions'!$C$9:$C$87,0)+RIGHT($E129),0))\n/SUM(BA$10:BA$11)","v":0},{"$f":"IF(INDEX(PC_MAPPING,RIGHT($C119,1),MATCH($E$2,'Data by Building Type'!$D$22:$F$22,0))=\"Yes\",1,0)*\n(BB$10*OFFSET('Efficiency Distributions'!$D$10,MATCH($C119,'Efficiency Distributions'!$C$9:$C$87,0)+RIGHT($E129),0)\n+BB$11*OFFSET('Efficiency Distributions'!$E$10,MATCH($C119,'Efficiency Distributions'!$C$9:$C$87,0)+RIGHT($E129),0))\n/SUM(BB$10:BB$11)","v":0},{"$f":"IF(INDEX(PC_MAPPING,RIGHT($C119,1),MATCH($E$2,'Data by Building Type'!$D$22:$F$22,0))=\"Yes\",1,0)*\n(BC$10*OFFSET('Efficiency Distributions'!$D$10,MATCH($C119,'Efficiency Distributions'!$C$9:$C$87,0)+RIGHT($E129),0)\n+BC$11*OFFSET('Efficiency Distributions'!$E$10,MATCH($C119,'Efficiency Distributions'!$C$9:$C$87,0)+RIGHT($E129),0))\n/SUM(BC$10:BC$11)","v":0},{"$f":"IF(INDEX(PC_MAPPING,RIGHT($C119,1),MATCH($E$2,'Data by Building Type'!$D$22:$F$22,0))=\"Yes\",1,0)*\n(BD$10*OFFSET('Efficiency Distributions'!$D$10,MATCH($C119,'Efficiency Distributions'!$C$9:$C$87,0)+RIGHT($E129),0)\n+BD$11*OFFSET('Efficiency Distributions'!$E$10,MATCH($C119,'Efficiency Distributions'!$C$9:$C$87,0)+RIGHT($E129),0))\n/SUM(BD$10:BD$11)","v":0},{"$f":"IF(INDEX(PC_MAPPING,RIGHT($C119,1),MATCH($E$2,'Data by Building Type'!$D$22:$F$22,0))=\"Yes\",1,0)*\n(BE$10*OFFSET('Efficiency Distributions'!$D$10,MATCH($C119,'Efficiency Distributions'!$C$9:$C$87,0)+RIGHT($E129),0)\n+BE$11*OFFSET('Efficiency Distributions'!$E$10,MATCH($C119,'Efficiency Distributions'!$C$9:$C$87,0)+RIGHT($E129),0))\n/SUM(BE$10:BE$11)","v":0},{"$f":"IF(INDEX(PC_MAPPING,RIGHT($C119,1),MATCH($E$2,'Data by Building Type'!$D$22:$F$22,0))=\"Yes\",1,0)*\n(BF$10*OFFSET('Efficiency Distributions'!$D$10,MATCH($C119,'Efficiency Distributions'!$C$9:$C$87,0)+RIGHT($E129),0)\n+BF$11*OFFSET('Efficiency Distributions'!$E$10,MATCH($C119,'Efficiency Distributions'!$C$9:$C$87,0)+RIGHT($E129),0))\n/SUM(BF$10:BF$11)","v":0},{"$f":"IF(INDEX(PC_MAPPING,RIGHT($C119,1),MATCH($E$2,'Data by Building Type'!$D$22:$F$22,0))=\"Yes\",1,0)*\n(BG$10*OFFSET('Efficiency Distributions'!$D$10,MATCH($C119,'Efficiency Distributions'!$C$9:$C$87,0)+RIGHT($E129),0)\n+BG$11*OFFSET('Efficiency Distributions'!$E$10,MATCH($C119,'Efficiency Distributions'!$C$9:$C$87,0)+RIGHT($E129),0))\n/SUM(BG$10:BG$11)","v":0}]
[null,null,null,null,"TOTAL",{"$f":"SUM(F123:F129)","v":0},0,0,{"$f":"SUM(I123:I129)","v":0},0,0,0,0,0,0,0,0,0,0,0,0,0,0,0,0,0,0,0,0,0,0,0,0,0,0,0,0,0,0,0,0,0,0,0,0,0,0,0,0,0,0,0,0,0,0,0,0,0,0]
[]
[null,null,null,"POST-Case"]
[null,null,null,null,"Efficiency Level",1981,{"$f":"F133+1","v":1982},{"$f":"G133+1","v":1983},{"$f":"H133+1","v":1984},{"$f":"I133+1","v":1985},{"$f":"J133+1","v":1986},{"$f":"K133+1","v":1987},{"$f":"L133+1","v":1988},{"$f":"M133+1","v":1989},{"$f":"N133+1","v":1990},{"$f":"O133+1","v":1991},{"$f":"P133+1","v":1992},{"$f":"Q133+1","v":1993},{"$f":"R133+1","v":1994},1995,1996,1997,1998,1999,2000,2001,2002,2003,2004,2005,2006,2007,2008,2009,2010,2011,2012,2013,2014,2015,2016,2017,2018,2019,2020,2021,2022,2023,2024,2025,2026,2027,2028,2029,2030,2031,2032,2033,2034]
[null,null,null,null,"EL0",{"$f":"IF(F$29<STANDARD_YEAR,F123,\nIF(RIGHT($E134,1)>RIGHT(INDEX(STANDARD_LEVELS,1,MID($C119,4,1)),1),F123,\nIF(RIGHT($E134,1)<RIGHT(INDEX(STANDARD_LEVELS,1,MID($C119,4,1)),1),0,\nIF(RIGHT($E134,1)=RIGHT(INDEX(STANDARD_LEVELS,1,MID($C119,4,1)),1),SUM(OFFSET(F123,-(RIGHT($E134,1)),0,RIGHT($E134,1)+1,1)),\"ERROR\"))))","v":0},0,0,{"$f":"IF(I$29<STANDARD_YEAR,I123,\nIF(RIGHT($E134,1)>RIGHT(INDEX(STANDARD_LEVELS,1,MID($C119,4,1)),1),I123,\nIF(RIGHT($E134,1)<RIGHT(INDEX(STANDARD_LEVELS,1,MID($C119,4,1)),1),0,\nIF(RIGHT($E134,1)=RIGHT(INDEX(STANDARD_LEVELS,1,MID($C119,4,1)),1),SUM(OFFSET(I123,-(RIGHT($E134,1)),0,RIGHT($E134,1)+1,1)),\"ERROR\"))))","v":0},0,0,0,0,0,0,0,0,0,0,0,0,0,0,0,0,0,0,0,0,0,0,0,0,0,0,0,0,0,0,0,0,0,0,0,0,0,0,0,0,0,0,0,0,0,0,0,0,0,0]
[null,null,null,null,"EL1",{"$f":"IF(F$29<STANDARD_YEAR,F124,\nIF(RIGHT($E135,1)>RIGHT(INDEX(STANDARD_LEVELS,1,MID($C119,4,1)),1),F124,\nIF(RIGHT($E135,1)<RIGHT(INDEX(STANDARD_LEVELS,1,MID($C119,4,1)),1),0,\nIF(RIGHT($E135,1)=RIGHT(INDEX(STANDARD_LEVELS,1,MID($C119,4,1)),1),SUM(OFFSET(F124,-(RIGHT($E135,1)),0,RIGHT($E135,1)+1,1)),\"ERROR\"))))","v":0},0,0,{"$f":"IF(I$29<STANDARD_YEAR,I124,\nIF(RIGHT($E135,1)>RIGHT(INDEX(STANDARD_LEVELS,1,MID($C119,4,1)),1),I124,\nIF(RIGHT($E135,1)<RIGHT(INDEX(STANDARD_LEVELS,1,MID($C119,4,1)),1),0,\nIF(RIGHT($E135,1)=RIGHT(INDEX(STANDARD_LEVELS,1,MID($C119,4,1)),1),SUM(OFFSET(I124,-(RIGHT($E135,1)),0,RIGHT($E135,1)+1,1)),\"ERROR\"))))","v":0},0,0,0,0,0,0,0,0,0,0,0,0,0,0,0,0,0,0,0,0,0,0,0,0,0,0,0,0,0,0,0,0,0,0,0,0,0,0,0,0,0,0,0,0,0,0,0,0,0,0]
[null,null,null,null,"EL2",{"$f":"IF(F$29<STANDARD_YEAR,F125,\nIF(RIGHT($E136,1)>RIGHT(INDEX(STANDARD_LEVELS,1,MID($C119,4,1)),1),F125,\nIF(RIGHT($E136,1)<RIGHT(INDEX(STANDARD_LEVELS,1,MID($C119,4,1)),1),0,\nIF(RIGHT($E136,1)=RIGHT(INDEX(STANDARD_LEVELS,1,MID($C119,4,1)),1),SUM(OFFSET(F125,-(RIGHT($E136,1)),0,RIGHT($E136,1)+1,1)),\"ERROR\"))))","v":0},0,0,{"$f":"IF(I$29<STANDARD_YEAR,I125,\nIF(RIGHT($E136,1)>RIGHT(INDEX(STANDARD_LEVELS,1,MID($C119,4,1)),1),I125,\nIF(RIGHT($E136,1)<RIGHT(INDEX(STANDARD_LEVELS,1,MID($C119,4,1)),1),0,\nIF(RIGHT($E136,1)=RIGHT(INDEX(STANDARD_LEVELS,1,MID($C119,4,1)),1),SUM(OFFSET(I125,-(RIGHT($E136,1)),0,RIGHT($E136,1)+1,1)),\"ERROR\"))))","v":0},0,0,0,0,0,0,0,0,0,0,0,0,0,0,0,0,0,0,0,0,0,0,0,0,0,0,0,0,0,0,0,0,0,0,0,0,0,0,0,0,0,0,0,0,0,0,0,0,0,0]
[null,null,null,null,"EL3",{"$f":"IF(F$29<STANDARD_YEAR,F126,\nIF(RIGHT($E137,1)>RIGHT(INDEX(STANDARD_LEVELS,1,MID($C119,4,1)),1),F126,\nIF(RIGHT($E137,1)<RIGHT(INDEX(STANDARD_LEVELS,1,MID($C119,4,1)),1),0,\nIF(RIGHT($E137,1)=RIGHT(INDEX(STANDARD_LEVELS,1,MID($C119,4,1)),1),SUM(OFFSET(F126,-(RIGHT($E137,1)),0,RIGHT($E137,1)+1,1)),\"ERROR\"))))","v":0},0,0,{"$f":"IF(I$29<STANDARD_YEAR,I126,\nIF(RIGHT($E137,1)>RIGHT(INDEX(STANDARD_LEVELS,1,MID($C119,4,1)),1),I126,\nIF(RIGHT($E137,1)<RIGHT(INDEX(STANDARD_LEVELS,1,MID($C119,4,1)),1),0,\nIF(RIGHT($E137,1)=RIGHT(INDEX(STANDARD_LEVELS,1,MID($C119,4,1)),1),SUM(OFFSET(I126,-(RIGHT($E137,1)),0,RIGHT($E137,1)+1,1)),\"ERROR\"))))","v":0},0,0,0,0,0,0,0,0,0,0,0,0,0,0,0,0,0,0,0,0,0,0,0,0,0,0,0,0,0,0,0,0,0,0,0,0,0,0,0,0,0,0,0,0,0,0,0,0,0,0]
[null,null,null,null,"EL4",{"$f":"IF(F$29<STANDARD_YEAR,F127,\nIF(RIGHT($E138,1)>RIGHT(INDEX(STANDARD_LEVELS,1,MID($C119,4,1)),1),F127,\nIF(RIGHT($E138,1)<RIGHT(INDEX(STANDARD_LEVELS,1,MID($C119,4,1)),1),0,\nIF(RIGHT($E138,1)=RIGHT(INDEX(STANDARD_LEVELS,1,MID($C119,4,1)),1),SUM(OFFSET(F127,-(RIGHT($E138,1)),0,RIGHT($E138,1)+1,1)),\"ERROR\"))))","v":0},0,0,{"$f":"IF(I$29<STANDARD_YEAR,I127,\nIF(RIGHT($E138,1)>RIGHT(INDEX(STANDARD_LEVELS,1,MID($C119,4,1)),1),I127,\nIF(RIGHT($E138,1)<RIGHT(INDEX(STANDARD_LEVELS,1,MID($C119,4,1)),1),0,\nIF(RIGHT($E138,1)=RIGHT(INDEX(STANDARD_LEVELS,1,MID($C119,4,1)),1),SUM(OFFSET(I127,-(RIGHT($E138,1)),0,RIGHT($E138,1)+1,1)),\"ERROR\"))))","v":0},0,0,0,0,0,0,0,0,0,0,0,0,0,0,0,0,0,0,0,0,0,0,0,0,0,0,0,0,0,0,0,0,0,0,0,0,0,0,0,0,0,0,0,0,0,0,0,0,0,0]
[null,null,null,null,"EL5",{"$f":"IF(F$29<STANDARD_YEAR,F128,\nIF(RIGHT($E139,1)>RIGHT(INDEX(STANDARD_LEVELS,1,MID($C119,4,1)),1),F128,\nIF(RIGHT($E139,1)<RIGHT(INDEX(STANDARD_LEVELS,1,MID($C119,4,1)),1),0,\nIF(RIGHT($E139,1)=RIGHT(INDEX(STANDARD_LEVELS,1,MID($C119,4,1)),1),SUM(OFFSET(F128,-(RIGHT($E139,1)),0,RIGHT($E139,1)+1,1)),\"ERROR\"))))","v":0},0,0,{"$f":"IF(I$29<STANDARD_YEAR,I128,\nIF(RIGHT($E139,1)>RIGHT(INDEX(STANDARD_LEVELS,1,MID($C119,4,1)),1),I128,\nIF(RIGHT($E139,1)<RIGHT(INDEX(STANDARD_LEVELS,1,MID($C119,4,1)),1),0,\nIF(RIGHT($E139,1)=RIGHT(INDEX(STANDARD_LEVELS,1,MID($C119,4,1)),1),SUM(OFFSET(I128,-(RIGHT($E139,1)),0,RIGHT($E139,1)+1,1)),\"ERROR\"))))","v":0},0,0,0,0,0,0,0,0,0,0,0,0,0,0,0,0,0,0,0,0,0,0,0,0,0,0,0,0,0,0,0,0,0,0,0,0,0,0,0,0,0,0,0,0,0,0,0,0,0,0]
[null,null,null,null,"EL6",{"$f":"IF(F$29<STANDARD_YEAR,F129,\nIF(RIGHT($E140,1)>RIGHT(INDEX(STANDARD_LEVELS,1,MID($C119,4,1)),1),F129,\nIF(RIGHT($E140,1)<RIGHT(INDEX(STANDARD_LEVELS,1,MID($C119,4,1)),1),0,\nIF(RIGHT($E140,1)=RIGHT(INDEX(STANDARD_LEVELS,1,MID($C119,4,1)),1),SUM(OFFSET(F129,-(RIGHT($E140,1)),0,RIGHT($E140,1)+1,1)),\"ERROR\"))))","v":0},0,0,{"$f":"IF(I$29<STANDARD_YEAR,I129,\nIF(RIGHT($E140,1)>RIGHT(INDEX(STANDARD_LEVELS,1,MID($C119,4,1)),1),I129,\nIF(RIGHT($E140,1)<RIGHT(INDEX(STANDARD_LEVELS,1,MID($C119,4,1)),1),0,\nIF(RIGHT($E140,1)=RIGHT(INDEX(STANDARD_LEVELS,1,MID($C119,4,1)),1),SUM(OFFSET(I129,-(RIGHT($E140,1)),0,RIGHT($E140,1)+1,1)),\"ERROR\"))))","v":0},0,0,0,0,0,0,0,0,0,0,0,0,0,0,0,0,0,0,0,0,0,0,0,0,0,0,0,0,0,0,0,0,0,0,0,0,0,0,0,0,0,0,0,0,0,0,0,0,0,0]
[null,null,null,null,"TOTAL",{"$f":"SUM(F134:F140)","v":0},0,0,{"$f":"SUM(I134:I140)","v":0},0,0,0,0,0,0,0,0,0,0,0,0,0,0,0,0,0,0,0,0,0,0,0,0,0,0,0,0,0,0,0,0,0,0,0,0,0,0,0,0,0,0,0,0,0,0,0,0,0,0]
[]
[]
[]
[null,null,"PC 6",{"$f":"OFFSET('Product Classes'!$C$9,MATCH(C145,MODEL_PCS,0),0)","v":"Mobile Home Non-Weatherized, Non-Condensing Gas Furnace Fan (MH-NWG-NC)"}]
[]
[null,null,null,"PRE-Case"]
[null,null,null,null,"Efficiency Level",1981,{"$f":"F148+1","v":1982},{"$f":"G148+1","v":1983},{"$f":"H148+1","v":1984},{"$f":"I148+1","v":1985},{"$f":"J148+1","v":1986},{"$f":"K148+1","v":1987},{"$f":"L148+1","v":1988},{"$f":"M148+1","v":1989},{"$f":"N148+1","v":1990},{"$f":"O148+1","v":1991},{"$f":"P148+1","v":1992},{"$f":"Q148+1","v":1993},{"$f":"R148+1","v":1994},1995,1996,1997,1998,1999,2000,2001,2002,2003,2004,2005,2006,2007,2008,2009,2010,2011,2012,2013,2014,2015,2016,2017,2018,2019,2020,2021,2022,2023,2024,2025,2026,2027,2028,2029,2030,2031,2032,2033,2034]
[null,null,null,null,"EL0",{"$f":"IF(INDEX(PC_MAPPING,RIGHT($C145,1),MATCH($E$2,'Data by Building Type'!$D$22:$F$22,0))=\"Yes\",1,0)*\n(F$10*OFFSET('Efficiency Distributions'!$D$10,MATCH($C145,'Efficiency Distributions'!$C$9:$C$87,0)+RIGHT($E149),0)\n+F$11*OFFSET('Efficiency Distributions'!$E$10,MATCH($C145,'Efficiency Distributions'!$C$9:$C$87,0)+RIGHT($E149),0))\n/SUM(F$10:F$11)","v":0.44526367682518347},{"$f":"IF(INDEX(PC_MAPPING,RIGHT($C145,1),MATCH($E$2,'Data by Building Type'!$D$22:$F$22,0))=\"Yes\",1,0)*\n(G$10*OFFSET('Efficiency Distributions'!$D$10,MATCH($C145,'Efficiency Distributions'!$C$9:$C$87,0)+RIGHT($E149),0)\n+G$11*OFFSET('Efficiency Distributions'!$E$10,MATCH($C145,'Efficiency Distributions'!$C$9:$C$87,0)+RIGHT($E149),0))\n/SUM(G$10:G$11)","v":0.44004537596293281},{"$f":"IF(INDEX(PC_MAPPING,RIGHT($C145,1),MATCH($E$2,'Data by Building Type'!$D$22:$F$22,0))=\"Yes\",1,0)*\n(H$10*OFFSET('Efficiency Distributions'!$D$10,MATCH($C145,'Efficiency Distributions'!$C$9:$C$87,0)+RIGHT($E149),0)\n+H$11*OFFSET('Efficiency Distributions'!$E$10,MATCH($C145,'Efficiency Distributions'!$C$9:$C$87,0)+RIGHT($E149),0))\n/SUM(H$10:H$11)","v":0.4480215195847097},{"$f":"IF(INDEX(PC_MAPPING,RIGHT($C145,1),MATCH($E$2,'Data by Building Type'!$D$22:$F$22,0))=\"Yes\",1,0)*\n(I$10*OFFSET('Efficiency Distributions'!$D$10,MATCH($C145,'Efficiency Distributions'!$C$9:$C$87,0)+RIGHT($E149),0)\n+I$11*OFFSET('Efficiency Distributions'!$E$10,MATCH($C145,'Efficiency Distributions'!$C$9:$C$87,0)+RIGHT($E149),0))\n/SUM(I$10:I$11)","v":0.44756002803339634},{"$f":"IF(INDEX(PC_MAPPING,RIGHT($C145,1),MATCH($E$2,'Data by Building Type'!$D$22:$F$22,0))=\"Yes\",1,0)*\n(J$10*OFFSET('Efficiency Distributions'!$D$10,MATCH($C145,'Efficiency Distributions'!$C$9:$C$87,0)+RIGHT($E149),0)\n+J$11*OFFSET('Efficiency Distributions'!$E$10,MATCH($C145,'Efficiency Distributions'!$C$9:$C$87,0)+RIGHT($E149),0))\n/SUM(J$10:J$11)","v":0.44348727336909899},{"$f":"IF(INDEX(PC_MAPPING,RIGHT($C145,1),MATCH($E$2,'Data by Building Type'!$D$22:$F$22,0))=\"Yes\",1,0)*\n(K$10*OFFSET('Efficiency Distributions'!$D$10,MATCH($C145,'Efficiency Distributions'!$C$9:$C$87,0)+RIGHT($E149),0)\n+K$11*OFFSET('Efficiency Distributions'!$E$10,MATCH($C145,'Efficiency Distributions'!$C$9:$C$87,0)+RIGHT($E149),0))\n/SUM(K$10:K$11)","v":0.43891132073797323},{"$f":"IF(INDEX(PC_MAPPING,RIGHT($C145,1),MATCH($E$2,'Data by Building Type'!$D$22:$F$22,0))=\"Yes\",1,0)*\n(L$10*OFFSET('Efficiency Distributions'!$D$10,MATCH($C145,'Efficiency Distributions'!$C$9:$C$87,0)+RIGHT($E149),0)\n+L$11*OFFSET('Efficiency Distributions'!$E$10,MATCH($C145,'Efficiency Distributions'!$C$9:$C$87,0)+RIGHT($E149),0))\n/SUM(L$10:L$11)","v":0.43760316158242274},{"$f":"IF(INDEX(PC_MAPPING,RIGHT($C145,1),MATCH($E$2,'Data by Building Type'!$D$22:$F$22,0))=\"Yes\",1,0)*\n(M$10*OFFSET('Efficiency Distributions'!$D$10,MATCH($C145,'Efficiency Distributions'!$C$9:$C$87,0)+RIGHT($E149),0)\n+M$11*OFFSET('Efficiency Distributions'!$E$10,MATCH($C145,'Efficiency Distributions'!$C$9:$C$87,0)+RIGHT($E149),0))\n/SUM(M$10:M$11)","v":0.44083264393996363},{"$f":"IF(INDEX(PC_MAPPING,RIGHT($C145,1),MATCH($E$2,'Data by Building Type'!$D$22:$F$22,0))=\"Yes\",1,0)*\n(N$10*OFFSET('Efficiency Distributions'!$D$10,MATCH($C145,'Efficiency Distributions'!$C$9:$C$87,0)+RIGHT($E149),0)\n+N$11*OFFSET('Efficiency Distributions'!$E$10,MATCH($C145,'Efficiency Distributions'!$C$9:$C$87,0)+RIGHT($E149),0))\n/SUM(N$10:N$11)","v":0.44318609012860483},{"$f":"IF(INDEX(PC_MAPPING,RIGHT($C145,1),MATCH($E$2,'Data by Building Type'!$D$22:$F$22,0))=\"Yes\",1,0)*\n(O$10*OFFSET('Efficiency Distributions'!$D$10,MATCH($C145,'Efficiency Distributions'!$C$9:$C$87,0)+RIGHT($E149),0)\n+O$11*OFFSET('Efficiency Distributions'!$E$10,MATCH($C145,'Efficiency Distributions'!$C$9:$C$87,0)+RIGHT($E149),0))\n/SUM(O$10:O$11)","v":0.44752435057200735},{"$f":"IF(INDEX(PC_MAPPING,RIGHT($C145,1),MATCH($E$2,'Data by Building Type'!$D$22:$F$22,0))=\"Yes\",1,0)*\n(P$10*OFFSET('Efficiency Distributions'!$D$10,MATCH($C145,'Efficiency Distributions'!$C$9:$C$87,0)+RIGHT($E149),0)\n+P$11*OFFSET('Efficiency Distributions'!$E$10,MATCH($C145,'Efficiency Distributions'!$C$9:$C$87,0)+RIGHT($E149),0))\n/SUM(P$10:P$11)","v":0.44739804115223197},{"$f":"IF(INDEX(PC_MAPPING,RIGHT($C145,1),MATCH($E$2,'Data by Building Type'!$D$22:$F$22,0))=\"Yes\",1,0)*\n(Q$10*OFFSET('Efficiency Distributions'!$D$10,MATCH($C145,'Efficiency Distributions'!$C$9:$C$87,0)+RIGHT($E149),0)\n+Q$11*OFFSET('Efficiency Distributions'!$E$10,MATCH($C145,'Efficiency Distributions'!$C$9:$C$87,0)+RIGHT($E149),0))\n/SUM(Q$10:Q$11)","v":0.45124889345278146},{"$f":"IF(INDEX(PC_MAPPING,RIGHT($C145,1),MATCH($E$2,'Data by Building Type'!$D$22:$F$22,0))=\"Yes\",1,0)*\n(R$10*OFFSET('Efficiency Distributions'!$D$10,MATCH($C145,'Efficiency Distributions'!$C$9:$C$87,0)+RIGHT($E149),0)\n+R$11*OFFSET('Efficiency Distributions'!$E$10,MATCH($C145,'Efficiency Distributions'!$C$9:$C$87,0)+RIGHT($E149),0))\n/SUM(R$10:R$11)","v":0.45555303623520765},{"$f":"IF(INDEX(PC_MAPPING,RIGHT($C145,1),MATCH($E$2,'Data by Building Type'!$D$22:$F$22,0))=\"Yes\",1,0)*\n(S$10*OFFSET('Efficiency Distributions'!$D$10,MATCH($C145,'Efficiency Distributions'!$C$9:$C$87,0)+RIGHT($E149),0)\n+S$11*OFFSET('Efficiency Distributions'!$E$10,MATCH($C145,'Efficiency Distributions'!$C$9:$C$87,0)+RIGHT($E149),0))\n/SUM(S$10:S$11)","v":0.45948726106404092},{"$f":"IF(INDEX(PC_MAPPING,RIGHT($C145,1),MATCH($E$2,'Data by Building Type'!$D$22:$F$22,0))=\"Yes\",1,0)*\n(T$10*OFFSET('Efficiency Distributions'!$D$10,MATCH($C145,'Efficiency Distributions'!$C$9:$C$87,0)+RIGHT($E149),0)\n+T$11*OFFSET('Efficiency Distributions'!$E$10,MATCH($C145,'Efficiency Distributions'!$C$9:$C$87,0)+RIGHT($E149),0))\n/SUM(T$10:T$11)","v":0.45822757585298507},{"$f":"IF(INDEX(PC_MAPPING,RIGHT($C145,1),MATCH($E$2,'Data by Building Type'!$D$22:$F$22,0))=\"Yes\",1,0)*\n(U$10*OFFSET('Efficiency Distributions'!$D$10,MATCH($C145,'Efficiency Distributions'!$C$9:$C$87,0)+RIGHT($E149),0)\n+U$11*OFFSET('Efficiency Distributions'!$E$10,MATCH($C145,'Efficiency Distributions'!$C$9:$C$87,0)+RIGHT($E149),0))\n/SUM(U$10:U$11)","v":0.45446160579159489},{"$f":"IF(INDEX(PC_MAPPING,RIGHT($C145,1),MATCH($E$2,'Data by Building Type'!$D$22:$F$22,0))=\"Yes\",1,0)*\n(V$10*OFFSET('Efficiency Distributions'!$D$10,MATCH($C145,'Efficiency Distributions'!$C$9:$C$87,0)+RIGHT($E149),0)\n+V$11*OFFSET('Efficiency Distributions'!$E$10,MATCH($C145,'Efficiency Distributions'!$C$9:$C$87,0)+RIGHT($E149),0))\n/SUM(V$10:V$11)","v":0.45458770957252465},{"$f":"IF(INDEX(PC_MAPPING,RIGHT($C145,1),MATCH($E$2,'Data by Building Type'!$D$22:$F$22,0))=\"Yes\",1,0)*\n(W$10*OFFSET('Efficiency Distributions'!$D$10,MATCH($C145,'Efficiency Distributions'!$C$9:$C$87,0)+RIGHT($E149),0)\n+W$11*OFFSET('Efficiency Distributions'!$E$10,MATCH($C145,'Efficiency Distributions'!$C$9:$C$87,0)+RIGHT($E149),0))\n/SUM(W$10:W$11)","v":0.45549556383097578},{"$f":"IF(INDEX(PC_MAPPING,RIGHT($C145,1),MATCH($E$2,'Data by Building Type'!$D$22:$F$22,0))=\"Yes\",1,0)*\n(X$10*OFFSET('Efficiency Distributions'!$D$10,MATCH($C145,'Efficiency Distributions'!$C$9:$C$87,0)+RIGHT($E149),0)\n+X$11*OFFSET('Efficiency Distributions'!$E$10,MATCH($C145,'Efficiency Distributions'!$C$9:$C$87,0)+RIGHT($E149),0))\n/SUM(X$10:X$11)","v":0.44967083633426042},{"$f":"IF(INDEX(PC_MAPPING,RIGHT($C145,1),MATCH($E$2,'Data by Building Type'!$D$22:$F$22,0))=\"Yes\",1,0)*\n(Y$10*OFFSET('Efficiency Distributions'!$D$10,MATCH($C145,'Efficiency Distributions'!$C$9:$C$87,0)+RIGHT($E149),0)\n+Y$11*OFFSET('Efficiency Distributions'!$E$10,MATCH($C145,'Efficiency Distributions'!$C$9:$C$87,0)+RIGHT($E149),0))\n/SUM(Y$10:Y$11)","v":0.43764268567371284},{"$f":"IF(INDEX(PC_MAPPING,RIGHT($C145,1),MATCH($E$2,'Data by Building Type'!$D$22:$F$22,0))=\"Yes\",1,0)*\n(Z$10*OFFSET('Efficiency Distributions'!$D$10,MATCH($C145,'Efficiency Distributions'!$C$9:$C$87,0)+RIGHT($E149),0)\n+Z$11*OFFSET('Efficiency Distributions'!$E$10,MATCH($C145,'Efficiency Distributions'!$C$9:$C$87,0)+RIGHT($E149),0))\n/SUM(Z$10:Z$11)","v":0.43006958635756343},{"$f":"IF(INDEX(PC_MAPPING,RIGHT($C145,1),MATCH($E$2,'Data by Building Type'!$D$22:$F$22,0))=\"Yes\",1,0)*\n(AA$10*OFFSET('Efficiency Distributions'!$D$10,MATCH($C145,'Efficiency Distributions'!$C$9:$C$87,0)+RIGHT($E149),0)\n+AA$11*OFFSET('Efficiency Distributions'!$E$10,MATCH($C145,'Efficiency Distributions'!$C$9:$C$87,0)+RIGHT($E149),0))\n/SUM(AA$10:AA$11)","v":0.41942301458945019},{"$f":"IF(INDEX(PC_MAPPING,RIGHT($C145,1),MATCH($E$2,'Data by Building Type'!$D$22:$F$22,0))=\"Yes\",1,0)*\n(AB$10*OFFSET('Efficiency Distributions'!$D$10,MATCH($C145,'Efficiency Distributions'!$C$9:$C$87,0)+RIGHT($E149),0)\n+AB$11*OFFSET('Efficiency Distributions'!$E$10,MATCH($C145,'Efficiency Distributions'!$C$9:$C$87,0)+RIGHT($E149),0))\n/SUM(AB$10:AB$11)","v":0.41915460260884385},{"$f":"IF(INDEX(PC_MAPPING,RIGHT($C145,1),MATCH($E$2,'Data by Building Type'!$D$22:$F$22,0))=\"Yes\",1,0)*\n(AC$10*OFFSET('Efficiency Distributions'!$D$10,MATCH($C145,'Efficiency Distributions'!$C$9:$C$87,0)+RIGHT($E149),0)\n+AC$11*OFFSET('Efficiency Distributions'!$E$10,MATCH($C145,'Efficiency Distributions'!$C$9:$C$87,0)+RIGHT($E149),0))\n/SUM(AC$10:AC$11)","v":0.41630858585400576},{"$f":"IF(INDEX(PC_MAPPING,RIGHT($C145,1),MATCH($E$2,'Data by Building Type'!$D$22:$F$22,0))=\"Yes\",1,0)*\n(AD$10*OFFSET('Efficiency Distributions'!$D$10,MATCH($C145,'Efficiency Distributions'!$C$9:$C$87,0)+RIGHT($E149),0)\n+AD$11*OFFSET('Efficiency Distributions'!$E$10,MATCH($C145,'Efficiency Distributions'!$C$9:$C$87,0)+RIGHT($E149),0))\n/SUM(AD$10:AD$11)","v":0.41632236697833419},{"$f":"IF(INDEX(PC_MAPPING,RIGHT($C145,1),MATCH($E$2,'Data by Building Type'!$D$22:$F$22,0))=\"Yes\",1,0)*\n(AE$10*OFFSET('Efficiency Distributions'!$D$10,MATCH($C145,'Efficiency Distributions'!$C$9:$C$87,0)+RIGHT($E149),0)\n+AE$11*OFFSET('Efficiency Distributions'!$E$10,MATCH($C145,'Efficiency Distributions'!$C$9:$C$87,0)+RIGHT($E149),0))\n/SUM(AE$10:AE$11)","v":0.41636194534684245},{"$f":"IF(INDEX(PC_MAPPING,RIGHT($C145,1),MATCH($E$2,'Data by Building Type'!$D$22:$F$22,0))=\"Yes\",1,0)*\n(AF$10*OFFSET('Efficiency Distributions'!$D$10,MATCH($C145,'Efficiency Distributions'!$C$9:$C$87,0)+RIGHT($E149),0)\n+AF$11*OFFSET('Efficiency Distributions'!$E$10,MATCH($C145,'Efficiency Distributions'!$C$9:$C$87,0)+RIGHT($E149),0))\n/SUM(AF$10:AF$11)","v":0.42220369932156082},{"$f":"IF(INDEX(PC_MAPPING,RIGHT($C145,1),MATCH($E$2,'Data by Building Type'!$D$22:$F$22,0))=\"Yes\",1,0)*\n(AG$10*OFFSET('Efficiency Distributions'!$D$10,MATCH($C145,'Efficiency Distributions'!$C$9:$C$87,0)+RIGHT($E149),0)\n+AG$11*OFFSET('Efficiency Distributions'!$E$10,MATCH($C145,'Efficiency Distributions'!$C$9:$C$87,0)+RIGHT($E149),0))\n/SUM(AG$10:AG$11)","v":0.42323688043462282},{"$f":"IF(INDEX(PC_MAPPING,RIGHT($C145,1),MATCH($E$2,'Data by Building Type'!$D$22:$F$22,0))=\"Yes\",1,0)*\n(AH$10*OFFSET('Efficiency Distributions'!$D$10,MATCH($C145,'Efficiency Distributions'!$C$9:$C$87,0)+RIGHT($E149),0)\n+AH$11*OFFSET('Efficiency Distributions'!$E$10,MATCH($C145,'Efficiency Distributions'!$C$9:$C$87,0)+RIGHT($E149),0))\n/SUM(AH$10:AH$11)","v":0.42249301365975139},{"$f":"IF(INDEX(PC_MAPPING,RIGHT($C145,1),MATCH($E$2,'Data by Building Type'!$D$22:$F$22,0))=\"Yes\",1,0)*\n(AI$10*OFFSET('Efficiency Distributions'!$D$10,MATCH($C145,'Efficiency Distributions'!$C$9:$C$87,0)+RIGHT($E149),0)\n+AI$11*OFFSET('Efficiency Distributions'!$E$10,MATCH($C145,'Efficiency Distributions'!$C$9:$C$87,0)+RIGHT($E149),0))\n/SUM(AI$10:AI$11)","v":0.42175746724463342},{"$f":"IF(INDEX(PC_MAPPING,RIGHT($C145,1),MATCH($E$2,'Data by Building Type'!$D$22:$F$22,0))=\"Yes\",1,0)*\n(AJ$10*OFFSET('Efficiency Distributions'!$D$10,MATCH($C145,'Efficiency Distributions'!$C$9:$C$87,0)+RIGHT($E149),0)\n+AJ$11*OFFSET('Efficiency Distributions'!$E$10,MATCH($C145,'Efficiency Distributions'!$C$9:$C$87,0)+RIGHT($E149),0))\n/SUM(AJ$10:AJ$11)","v":0.42000754157191877},{"$f":"IF(INDEX(PC_MAPPING,RIGHT($C145,1),MATCH($E$2,'Data by Building Type'!$D$22:$F$22,0))=\"Yes\",1,0)*\n(AK$10*OFFSET('Efficiency Distributions'!$D$10,MATCH($C145,'Efficiency Distributions'!$C$9:$C$87,0)+RIGHT($E149),0)\n+AK$11*OFFSET('Efficiency Distributions'!$E$10,MATCH($C145,'Efficiency Distributions'!$C$9:$C$87,0)+RIGHT($E149),0))\n/SUM(AK$10:AK$11)","v":0.42347864955317871},{"$f":"IF(INDEX(PC_MAPPING,RIGHT($C145,1),MATCH($E$2,'Data by Building Type'!$D$22:$F$22,0))=\"Yes\",1,0)*\n(AL$10*OFFSET('Efficiency Distributions'!$D$10,MATCH($C145,'Efficiency Distributions'!$C$9:$C$87,0)+RIGHT($E149),0)\n+AL$11*OFFSET('Efficiency Distributions'!$E$10,MATCH($C145,'Efficiency Distributions'!$C$9:$C$87,0)+RIGHT($E149),0))\n/SUM(AL$10:AL$11)","v":0.42136503503455153},{"$f":"IF(INDEX(PC_MAPPING,RIGHT($C145,1),MATCH($E$2,'Data by Building Type'!$D$22:$F$22,0))=\"Yes\",1,0)*\n(AM$10*OFFSET('Efficiency Distributions'!$D$10,MATCH($C145,'Efficiency Distributions'!$C$9:$C$87,0)+RIGHT($E149),0)\n+AM$11*OFFSET('Efficiency Distributions'!$E$10,MATCH($C145,'Efficiency Distributions'!$C$9:$C$87,0)+RIGHT($E149),0))\n/SUM(AM$10:AM$11)","v":0.41889220608902139},{"$f":"IF(INDEX(PC_MAPPING,RIGHT($C145,1),MATCH($E$2,'Data by Building Type'!$D$22:$F$22,0))=\"Yes\",1,0)*\n(AN$10*OFFSET('Efficiency Distributions'!$D$10,MATCH($C145,'Efficiency Distributions'!$C$9:$C$87,0)+RIGHT($E149),0)\n+AN$11*OFFSET('Efficiency Distributions'!$E$10,MATCH($C145,'Efficiency Distributions'!$C$9:$C$87,0)+RIGHT($E149),0))\n/SUM(AN$10:AN$11)","v":0.41665541856727839},{"$f":"IF(INDEX(PC_MAPPING,RIGHT($C145,1),MATCH($E$2,'Data by Building Type'!$D$22:$F$22,0))=\"Yes\",1,0)*\n(AO$10*OFFSET('Efficiency Distributions'!$D$10,MATCH($C145,'Efficiency Distributions'!$C$9:$C$87,0)+RIGHT($E149),0)\n+AO$11*OFFSET('Efficiency Distributions'!$E$10,MATCH($C145,'Efficiency Distributions'!$C$9:$C$87,0)+RIGHT($E149),0))\n/SUM(AO$10:AO$11)","v":0.41640985520842383},{"$f":"IF(INDEX(PC_MAPPING,RIGHT($C145,1),MATCH($E$2,'Data by Building Type'!$D$22:$F$22,0))=\"Yes\",1,0)*\n(AP$10*OFFSET('Efficiency Distributions'!$D$10,MATCH($C145,'Efficiency Distributions'!$C$9:$C$87,0)+RIGHT($E149),0)\n+AP$11*OFFSET('Efficiency Distributions'!$E$10,MATCH($C145,'Efficiency Distributions'!$C$9:$C$87,0)+RIGHT($E149),0))\n/SUM(AP$10:AP$11)","v":0.41720874310245254},{"$f":"IF(INDEX(PC_MAPPING,RIGHT($C145,1),MATCH($E$2,'Data by Building Type'!$D$22:$F$22,0))=\"Yes\",1,0)*\n(AQ$10*OFFSET('Efficiency Distributions'!$D$10,MATCH($C145,'Efficiency Distributions'!$C$9:$C$87,0)+RIGHT($E149),0)\n+AQ$11*OFFSET('Efficiency Distributions'!$E$10,MATCH($C145,'Efficiency Distributions'!$C$9:$C$87,0)+RIGHT($E149),0))\n/SUM(AQ$10:AQ$11)","v":0.41709378426298593},{"$f":"IF(INDEX(PC_MAPPING,RIGHT($C145,1),MATCH($E$2,'Data by Building Type'!$D$22:$F$22,0))=\"Yes\",1,0)*\n(AR$10*OFFSET('Efficiency Distributions'!$D$10,MATCH($C145,'Efficiency Distributions'!$C$9:$C$87,0)+RIGHT($E149),0)\n+AR$11*OFFSET('Efficiency Distributions'!$E$10,MATCH($C145,'Efficiency Distributions'!$C$9:$C$87,0)+RIGHT($E149),0))\n/SUM(AR$10:AR$11)","v":0.41705969703297813},{"$f":"IF(INDEX(PC_MAPPING,RIGHT($C145,1),MATCH($E$2,'Data by Building Type'!$D$22:$F$22,0))=\"Yes\",1,0)*\n(AS$10*OFFSET('Efficiency Distributions'!$D$10,MATCH($C145,'Efficiency Distributions'!$C$9:$C$87,0)+RIGHT($E149),0)\n+AS$11*OFFSET('Efficiency Distributions'!$E$10,MATCH($C145,'Efficiency Distributions'!$C$9:$C$87,0)+RIGHT($E149),0))\n/SUM(AS$10:AS$11)","v":0.41939175888097363},{"$f":"IF(INDEX(PC_MAPPING,RIGHT($C145,1),MATCH($E$2,'Data by Building Type'!$D$22:$F$22,0))=\"Yes\",1,0)*\n(AT$10*OFFSET('Efficiency Distributions'!$D$10,MATCH($C145,'Efficiency Distributions'!$C$9:$C$87,0)+RIGHT($E149),0)\n+AT$11*OFFSET('Efficiency Distributions'!$E$10,MATCH($C145,'Efficiency Distributions'!$C$9:$C$87,0)+RIGHT($E149),0))\n/SUM(AT$10:AT$11)","v":0.42370498339062412},{"$f":"IF(INDEX(PC_MAPPING,RIGHT($C145,1),MATCH($E$2,'Data by Building Type'!$D$22:$F$22,0))=\"Yes\",1,0)*\n(AU$10*OFFSET('Efficiency Distributions'!$D$10,MATCH($C145,'Efficiency Distributions'!$C$9:$C$87,0)+RIGHT($E149),0)\n+AU$11*OFFSET('Efficiency Distributions'!$E$10,MATCH($C145,'Efficiency Distributions'!$C$9:$C$87,0)+RIGHT($E149),0))\n/SUM(AU$10:AU$11)","v":0.42661424233803724},{"$f":"IF(INDEX(PC_MAPPING,RIGHT($C145,1),MATCH($E$2,'Data by Building Type'!$D$22:$F$22,0))=\"Yes\",1,0)*\n(AV$10*OFFSET('Efficiency Distributions'!$D$10,MATCH($C145,'Efficiency Distributions'!$C$9:$C$87,0)+RIGHT($E149),0)\n+AV$11*OFFSET('Efficiency Distributions'!$E$10,MATCH($C145,'Efficiency Distributions'!$C$9:$C$87,0)+RIGHT($E149),0))\n/SUM(AV$10:AV$11)","v":0.41908556123343665},{"$f":"IF(INDEX(PC_MAPPING,RIGHT($C145,1),MATCH($E$2,'Data by Building Type'!$D$22:$F$22,0))=\"Yes\",1,0)*\n(AW$10*OFFSET('Efficiency Distributions'!$D$10,MATCH($C145,'Efficiency Distributions'!$C$9:$C$87,0)+RIGHT($E149),0)\n+AW$11*OFFSET('Efficiency Distributions'!$E$10,MATCH($C145,'Efficiency Distributions'!$C$9:$C$87,0)+RIGHT($E149),0))\n/SUM(AW$10:AW$11)","v":0.42085547924626626},{"$f":"IF(INDEX(PC_MAPPING,RIGHT($C145,1),MATCH($E$2,'Data by Building Type'!$D$22:$F$22,0))=\"Yes\",1,0)*\n(AX$10*OFFSET('Efficiency Distributions'!$D$10,MATCH($C145,'Efficiency Distributions'!$C$9:$C$87,0)+RIGHT($E149),0)\n+AX$11*OFFSET('Efficiency Distributions'!$E$10,MATCH($C145,'Efficiency Distributions'!$C$9:$C$87,0)+RIGHT($E149),0))\n/SUM(AX$10:AX$11)","v":0.41911761914081858},{"$f":"IF(INDEX(PC_MAPPING,RIGHT($C145,1),MATCH($E$2,'Data by Building Type'!$D$22:$F$22,0))=\"Yes\",1,0)*\n(AY$10*OFFSET('Efficiency Distributions'!$D$10,MATCH($C145,'Efficiency Distributions'!$C$9:$C$87,0)+RIGHT($E149),0)\n+AY$11*OFFSET('Efficiency Distributions'!$E$10,MATCH($C145,'Efficiency Distributions'!$C$9:$C$87,0)+RIGHT($E149),0))\n/SUM(AY$10:AY$11)","v":0.41897525115298501},{"$f":"IF(INDEX(PC_MAPPING,RIGHT($C145,1),MATCH($E$2,'Data by Building Type'!$D$22:$F$22,0))=\"Yes\",1,0)*\n(AZ$10*OFFSET('Efficiency Distributions'!$D$10,MATCH($C145,'Efficiency Distributions'!$C$9:$C$87,0)+RIGHT($E149),0)\n+AZ$11*OFFSET('Efficiency Distributions'!$E$10,MATCH($C145,'Efficiency Distributions'!$C$9:$C$87,0)+RIGHT($E149),0))\n/SUM(AZ$10:AZ$11)","v":0.41961721191716911},{"$f":"IF(INDEX(PC_MAPPING,RIGHT($C145,1),MATCH($E$2,'Data by Building Type'!$D$22:$F$22,0))=\"Yes\",1,0)*\n(BA$10*OFFSET('Efficiency Distributions'!$D$10,MATCH($C145,'Efficiency Distributions'!$C$9:$C$87,0)+RIGHT($E149),0)\n+BA$11*OFFSET('Efficiency Distributions'!$E$10,MATCH($C145,'Efficiency Distributions'!$C$9:$C$87,0)+RIGHT($E149),0))\n/SUM(BA$10:BA$11)","v":0.41901412741701582},{"$f":"IF(INDEX(PC_MAPPING,RIGHT($C145,1),MATCH($E$2,'Data by Building Type'!$D$22:$F$22,0))=\"Yes\",1,0)*\n(BB$10*OFFSET('Efficiency Distributions'!$D$10,MATCH($C145,'Efficiency Distributions'!$C$9:$C$87,0)+RIGHT($E149),0)\n+BB$11*OFFSET('Efficiency Distributions'!$E$10,MATCH($C145,'Efficiency Distributions'!$C$9:$C$87,0)+RIGHT($E149),0))\n/SUM(BB$10:BB$11)","v":0.41838568773207541},{"$f":"IF(INDEX(PC_MAPPING,RIGHT($C145,1),MATCH($E$2,'Data by Building Type'!$D$22:$F$22,0))=\"Yes\",1,0)*\n(BC$10*OFFSET('Efficiency Distributions'!$D$10,MATCH($C145,'Efficiency Distributions'!$C$9:$C$87,0)+RIGHT($E149),0)\n+BC$11*OFFSET('Efficiency Distributions'!$E$10,MATCH($C145,'Efficiency Distributions'!$C$9:$C$87,0)+RIGHT($E149),0))\n/SUM(BC$10:BC$11)","v":0.41707150256772696},{"$f":"IF(INDEX(PC_MAPPING,RIGHT($C145,1),MATCH($E$2,'Data by Building Type'!$D$22:$F$22,0))=\"Yes\",1,0)*\n(BD$10*OFFSET('Efficiency Distributions'!$D$10,MATCH($C145,'Efficiency Distributions'!$C$9:$C$87,0)+RIGHT($E149),0)\n+BD$11*OFFSET('Efficiency Distributions'!$E$10,MATCH($C145,'Efficiency Distributions'!$C$9:$C$87,0)+RIGHT($E149),0))\n/SUM(BD$10:BD$11)","v":0.41677355875315364},{"$f":"IF(INDEX(PC_MAPPING,RIGHT($C145,1),MATCH($E$2,'Data by Building Type'!$D$22:$F$22,0))=\"Yes\",1,0)*\n(BE$10*OFFSET('Efficiency Distributions'!$D$10,MATCH($C145,'Efficiency Distributions'!$C$9:$C$87,0)+RIGHT($E149),0)\n+BE$11*OFFSET('Efficiency Distributions'!$E$10,MATCH($C145,'Efficiency Distributions'!$C$9:$C$87,0)+RIGHT($E149),0))\n/SUM(BE$10:BE$11)","v":0.41612273800314292},{"$f":"IF(INDEX(PC_MAPPING,RIGHT($C145,1),MATCH($E$2,'Data by Building Type'!$D$22:$F$22,0))=\"Yes\",1,0)*\n(BF$10*OFFSET('Efficiency Distributions'!$D$10,MATCH($C145,'Efficiency Distributions'!$C$9:$C$87,0)+RIGHT($E149),0)\n+BF$11*OFFSET('Efficiency Distributions'!$E$10,MATCH($C145,'Efficiency Distributions'!$C$9:$C$87,0)+RIGHT($E149),0))\n/SUM(BF$10:BF$11)","v":0.41569456172185726},{"$f":"IF(INDEX(PC_MAPPING,RIGHT($C145,1),MATCH($E$2,'Data by Building Type'!$D$22:$F$22,0))=\"Yes\",1,0)*\n(BG$10*OFFSET('Efficiency Distributions'!$D$10,MATCH($C145,'Efficiency Distributions'!$C$9:$C$87,0)+RIGHT($E149),0)\n+BG$11*OFFSET('Efficiency Distributions'!$E$10,MATCH($C145,'Efficiency Distributions'!$C$9:$C$87,0)+RIGHT($E149),0))\n/SUM(BG$10:BG$11)","v":0.41518762403588516}]
[null,null,null,null,"EL1",{"$f":"IF(INDEX(PC_MAPPING,RIGHT($C145,1),MATCH($E$2,'Data by Building Type'!$D$22:$F$22,0))=\"Yes\",1,0)*\n(F$10*OFFSET('Efficiency Distributions'!$D$10,MATCH($C145,'Efficiency Distributions'!$C$9:$C$87,0)+RIGHT($E150),0)\n+F$11*OFFSET('Efficiency Distributions'!$E$10,MATCH($C145,'Efficiency Distributions'!$C$9:$C$87,0)+RIGHT($E150),0))\n/SUM(F$10:F$11)","v":0.55473632317481647},{"$f":"IF(INDEX(PC_MAPPING,RIGHT($C145,1),MATCH($E$2,'Data by Building Type'!$D$22:$F$22,0))=\"Yes\",1,0)*\n(G$10*OFFSET('Efficiency Distributions'!$D$10,MATCH($C145,'Efficiency Distributions'!$C$9:$C$87,0)+RIGHT($E150),0)\n+G$11*OFFSET('Efficiency Distributions'!$E$10,MATCH($C145,'Efficiency Distributions'!$C$9:$C$87,0)+RIGHT($E150),0))\n/SUM(G$10:G$11)","v":0.55995462403706708},{"$f":"IF(INDEX(PC_MAPPING,RIGHT($C145,1),MATCH($E$2,'Data by Building Type'!$D$22:$F$22,0))=\"Yes\",1,0)*\n(H$10*OFFSET('Efficiency Distributions'!$D$10,MATCH($C145,'Efficiency Distributions'!$C$9:$C$87,0)+RIGHT($E150),0)\n+H$11*OFFSET('Efficiency Distributions'!$E$10,MATCH($C145,'Efficiency Distributions'!$C$9:$C$87,0)+RIGHT($E150),0))\n/SUM(H$10:H$11)","v":0.55197848041529018},{"$f":"IF(INDEX(PC_MAPPING,RIGHT($C145,1),MATCH($E$2,'Data by Building Type'!$D$22:$F$22,0))=\"Yes\",1,0)*\n(I$10*OFFSET('Efficiency Distributions'!$D$10,MATCH($C145,'Efficiency Distributions'!$C$9:$C$87,0)+RIGHT($E150),0)\n+I$11*OFFSET('Efficiency Distributions'!$E$10,MATCH($C145,'Efficiency Distributions'!$C$9:$C$87,0)+RIGHT($E150),0))\n/SUM(I$10:I$11)","v":0.55243997196660355},{"$f":"IF(INDEX(PC_MAPPING,RIGHT($C145,1),MATCH($E$2,'Data by Building Type'!$D$22:$F$22,0))=\"Yes\",1,0)*\n(J$10*OFFSET('Efficiency Distributions'!$D$10,MATCH($C145,'Efficiency Distributions'!$C$9:$C$87,0)+RIGHT($E150),0)\n+J$11*OFFSET('Efficiency Distributions'!$E$10,MATCH($C145,'Efficiency Distributions'!$C$9:$C$87,0)+RIGHT($E150),0))\n/SUM(J$10:J$11)","v":0.55651272663090101},{"$f":"IF(INDEX(PC_MAPPING,RIGHT($C145,1),MATCH($E$2,'Data by Building Type'!$D$22:$F$22,0))=\"Yes\",1,0)*\n(K$10*OFFSET('Efficiency Distributions'!$D$10,MATCH($C145,'Efficiency Distributions'!$C$9:$C$87,0)+RIGHT($E150),0)\n+K$11*OFFSET('Efficiency Distributions'!$E$10,MATCH($C145,'Efficiency Distributions'!$C$9:$C$87,0)+RIGHT($E150),0))\n/SUM(K$10:K$11)","v":0.56108867926202677},{"$f":"IF(INDEX(PC_MAPPING,RIGHT($C145,1),MATCH($E$2,'Data by Building Type'!$D$22:$F$22,0))=\"Yes\",1,0)*\n(L$10*OFFSET('Efficiency Distributions'!$D$10,MATCH($C145,'Efficiency Distributions'!$C$9:$C$87,0)+RIGHT($E150),0)\n+L$11*OFFSET('Efficiency Distributions'!$E$10,MATCH($C145,'Efficiency Distributions'!$C$9:$C$87,0)+RIGHT($E150),0))\n/SUM(L$10:L$11)","v":0.56239683841757715},{"$f":"IF(INDEX(PC_MAPPING,RIGHT($C145,1),MATCH($E$2,'Data by Building Type'!$D$22:$F$22,0))=\"Yes\",1,0)*\n(M$10*OFFSET('Efficiency Distributions'!$D$10,MATCH($C145,'Efficiency Distributions'!$C$9:$C$87,0)+RIGHT($E150),0)\n+M$11*OFFSET('Efficiency Distributions'!$E$10,MATCH($C145,'Efficiency Distributions'!$C$9:$C$87,0)+RIGHT($E150),0))\n/SUM(M$10:M$11)","v":0.5591673560600362},{"$f":"IF(INDEX(PC_MAPPING,RIGHT($C145,1),MATCH($E$2,'Data by Building Type'!$D$22:$F$22,0))=\"Yes\",1,0)*\n(N$10*OFFSET('Efficiency Distributions'!$D$10,MATCH($C145,'Efficiency Distributions'!$C$9:$C$87,0)+RIGHT($E150),0)\n+N$11*OFFSET('Efficiency Distributions'!$E$10,MATCH($C145,'Efficiency Distributions'!$C$9:$C$87,0)+RIGHT($E150),0))\n/SUM(N$10:N$11)","v":0.55681390987139512},{"$f":"IF(INDEX(PC_MAPPING,RIGHT($C145,1),MATCH($E$2,'Data by Building Type'!$D$22:$F$22,0))=\"Yes\",1,0)*\n(O$10*OFFSET('Efficiency Distributions'!$D$10,MATCH($C145,'Efficiency Distributions'!$C$9:$C$87,0)+RIGHT($E150),0)\n+O$11*OFFSET('Efficiency Distributions'!$E$10,MATCH($C145,'Efficiency Distributions'!$C$9:$C$87,0)+RIGHT($E150),0))\n/SUM(O$10:O$11)","v":0.55247564942799254},{"$f":"IF(INDEX(PC_MAPPING,RIGHT($C145,1),MATCH($E$2,'Data by Building Type'!$D$22:$F$22,0))=\"Yes\",1,0)*\n(P$10*OFFSET('Efficiency Distributions'!$D$10,MATCH($C145,'Efficiency Distributions'!$C$9:$C$87,0)+RIGHT($E150),0)\n+P$11*OFFSET('Efficiency Distributions'!$E$10,MATCH($C145,'Efficiency Distributions'!$C$9:$C$87,0)+RIGHT($E150),0))\n/SUM(P$10:P$11)","v":0.55260195884776808},{"$f":"IF(INDEX(PC_MAPPING,RIGHT($C145,1),MATCH($E$2,'Data by Building Type'!$D$22:$F$22,0))=\"Yes\",1,0)*\n(Q$10*OFFSET('Efficiency Distributions'!$D$10,MATCH($C145,'Efficiency Distributions'!$C$9:$C$87,0)+RIGHT($E150),0)\n+Q$11*OFFSET('Efficiency Distributions'!$E$10,MATCH($C145,'Efficiency Distributions'!$C$9:$C$87,0)+RIGHT($E150),0))\n/SUM(Q$10:Q$11)","v":0.54875110654721848},{"$f":"IF(INDEX(PC_MAPPING,RIGHT($C145,1),MATCH($E$2,'Data by Building Type'!$D$22:$F$22,0))=\"Yes\",1,0)*\n(R$10*OFFSET('Efficiency Distributions'!$D$10,MATCH($C145,'Efficiency Distributions'!$C$9:$C$87,0)+RIGHT($E150),0)\n+R$11*OFFSET('Efficiency Distributions'!$E$10,MATCH($C145,'Efficiency Distributions'!$C$9:$C$87,0)+RIGHT($E150),0))\n/SUM(R$10:R$11)","v":0.54444696376479229},{"$f":"IF(INDEX(PC_MAPPING,RIGHT($C145,1),MATCH($E$2,'Data by Building Type'!$D$22:$F$22,0))=\"Yes\",1,0)*\n(S$10*OFFSET('Efficiency Distributions'!$D$10,MATCH($C145,'Efficiency Distributions'!$C$9:$C$87,0)+RIGHT($E150),0)\n+S$11*OFFSET('Efficiency Distributions'!$E$10,MATCH($C145,'Efficiency Distributions'!$C$9:$C$87,0)+RIGHT($E150),0))\n/SUM(S$10:S$11)","v":0.54051273893595897},{"$f":"IF(INDEX(PC_MAPPING,RIGHT($C145,1),MATCH($E$2,'Data by Building Type'!$D$22:$F$22,0))=\"Yes\",1,0)*\n(T$10*OFFSET('Efficiency Distributions'!$D$10,MATCH($C145,'Efficiency Distributions'!$C$9:$C$87,0)+RIGHT($E150),0)\n+T$11*OFFSET('Efficiency Distributions'!$E$10,MATCH($C145,'Efficiency Distributions'!$C$9:$C$87,0)+RIGHT($E150),0))\n/SUM(T$10:T$11)","v":0.54177242414701487},{"$f":"IF(INDEX(PC_MAPPING,RIGHT($C145,1),MATCH($E$2,'Data by Building Type'!$D$22:$F$22,0))=\"Yes\",1,0)*\n(U$10*OFFSET('Efficiency Distributions'!$D$10,MATCH($C145,'Efficiency Distributions'!$C$9:$C$87,0)+RIGHT($E150),0)\n+U$11*OFFSET('Efficiency Distributions'!$E$10,MATCH($C145,'Efficiency Distributions'!$C$9:$C$87,0)+RIGHT($E150),0))\n/SUM(U$10:U$11)","v":0.545538394208405},{"$f":"IF(INDEX(PC_MAPPING,RIGHT($C145,1),MATCH($E$2,'Data by Building Type'!$D$22:$F$22,0))=\"Yes\",1,0)*\n(V$10*OFFSET('Efficiency Distributions'!$D$10,MATCH($C145,'Efficiency Distributions'!$C$9:$C$87,0)+RIGHT($E150),0)\n+V$11*OFFSET('Efficiency Distributions'!$E$10,MATCH($C145,'Efficiency Distributions'!$C$9:$C$87,0)+RIGHT($E150),0))\n/SUM(V$10:V$11)","v":0.5454122904274753},{"$f":"IF(INDEX(PC_MAPPING,RIGHT($C145,1),MATCH($E$2,'Data by Building Type'!$D$22:$F$22,0))=\"Yes\",1,0)*\n(W$10*OFFSET('Efficiency Distributions'!$D$10,MATCH($C145,'Efficiency Distributions'!$C$9:$C$87,0)+RIGHT($E150),0)\n+W$11*OFFSET('Efficiency Distributions'!$E$10,MATCH($C145,'Efficiency Distributions'!$C$9:$C$87,0)+RIGHT($E150),0))\n/SUM(W$10:W$11)","v":0.54450443616902411},{"$f":"IF(INDEX(PC_MAPPING,RIGHT($C145,1),MATCH($E$2,'Data by Building Type'!$D$22:$F$22,0))=\"Yes\",1,0)*\n(X$10*OFFSET('Efficiency Distributions'!$D$10,MATCH($C145,'Efficiency Distributions'!$C$9:$C$87,0)+RIGHT($E150),0)\n+X$11*OFFSET('Efficiency Distributions'!$E$10,MATCH($C145,'Efficiency Distributions'!$C$9:$C$87,0)+RIGHT($E150),0))\n/SUM(X$10:X$11)","v":0.55032916366573947},{"$f":"IF(INDEX(PC_MAPPING,RIGHT($C145,1),MATCH($E$2,'Data by Building Type'!$D$22:$F$22,0))=\"Yes\",1,0)*\n(Y$10*OFFSET('Efficiency Distributions'!$D$10,MATCH($C145,'Efficiency Distributions'!$C$9:$C$87,0)+RIGHT($E150),0)\n+Y$11*OFFSET('Efficiency Distributions'!$E$10,MATCH($C145,'Efficiency Distributions'!$C$9:$C$87,0)+RIGHT($E150),0))\n/SUM(Y$10:Y$11)","v":0.56235731432628711},{"$f":"IF(INDEX(PC_MAPPING,RIGHT($C145,1),MATCH($E$2,'Data by Building Type'!$D$22:$F$22,0))=\"Yes\",1,0)*\n(Z$10*OFFSET('Efficiency Distributions'!$D$10,MATCH($C145,'Efficiency Distributions'!$C$9:$C$87,0)+RIGHT($E150),0)\n+Z$11*OFFSET('Efficiency Distributions'!$E$10,MATCH($C145,'Efficiency Distributions'!$C$9:$C$87,0)+RIGHT($E150),0))\n/SUM(Z$10:Z$11)","v":0.56993041364243646},{"$f":"IF(INDEX(PC_MAPPING,RIGHT($C145,1),MATCH($E$2,'Data by Building Type'!$D$22:$F$22,0))=\"Yes\",1,0)*\n(AA$10*OFFSET('Efficiency Distributions'!$D$10,MATCH($C145,'Efficiency Distributions'!$C$9:$C$87,0)+RIGHT($E150),0)\n+AA$11*OFFSET('Efficiency Distributions'!$E$10,MATCH($C145,'Efficiency Distributions'!$C$9:$C$87,0)+RIGHT($E150),0))\n/SUM(AA$10:AA$11)","v":0.58057698541054981},{"$f":"IF(INDEX(PC_MAPPING,RIGHT($C145,1),MATCH($E$2,'Data by Building Type'!$D$22:$F$22,0))=\"Yes\",1,0)*\n(AB$10*OFFSET('Efficiency Distributions'!$D$10,MATCH($C145,'Efficiency Distributions'!$C$9:$C$87,0)+RIGHT($E150),0)\n+AB$11*OFFSET('Efficiency Distributions'!$E$10,MATCH($C145,'Efficiency Distributions'!$C$9:$C$87,0)+RIGHT($E150),0))\n/SUM(AB$10:AB$11)","v":0.58084539739115615},{"$f":"IF(INDEX(PC_MAPPING,RIGHT($C145,1),MATCH($E$2,'Data by Building Type'!$D$22:$F$22,0))=\"Yes\",1,0)*\n(AC$10*OFFSET('Efficiency Distributions'!$D$10,MATCH($C145,'Efficiency Distributions'!$C$9:$C$87,0)+RIGHT($E150),0)\n+AC$11*OFFSET('Efficiency Distributions'!$E$10,MATCH($C145,'Efficiency Distributions'!$C$9:$C$87,0)+RIGHT($E150),0))\n/SUM(AC$10:AC$11)","v":0.58369141414599424},{"$f":"IF(INDEX(PC_MAPPING,RIGHT($C145,1),MATCH($E$2,'Data by Building Type'!$D$22:$F$22,0))=\"Yes\",1,0)*\n(AD$10*OFFSET('Efficiency Distributions'!$D$10,MATCH($C145,'Efficiency Distributions'!$C$9:$C$87,0)+RIGHT($E150),0)\n+AD$11*OFFSET('Efficiency Distributions'!$E$10,MATCH($C145,'Efficiency Distributions'!$C$9:$C$87,0)+RIGHT($E150),0))\n/SUM(AD$10:AD$11)","v":0.58367763302166575},{"$f":"IF(INDEX(PC_MAPPING,RIGHT($C145,1),MATCH($E$2,'Data by Building Type'!$D$22:$F$22,0))=\"Yes\",1,0)*\n(AE$10*OFFSET('Efficiency Distributions'!$D$10,MATCH($C145,'Efficiency Distributions'!$C$9:$C$87,0)+RIGHT($E150),0)\n+AE$11*OFFSET('Efficiency Distributions'!$E$10,MATCH($C145,'Efficiency Distributions'!$C$9:$C$87,0)+RIGHT($E150),0))\n/SUM(AE$10:AE$11)","v":0.58363805465315743},{"$f":"IF(INDEX(PC_MAPPING,RIGHT($C145,1),MATCH($E$2,'Data by Building Type'!$D$22:$F$22,0))=\"Yes\",1,0)*\n(AF$10*OFFSET('Efficiency Distributions'!$D$10,MATCH($C145,'Efficiency Distributions'!$C$9:$C$87,0)+RIGHT($E150),0)\n+AF$11*OFFSET('Efficiency Distributions'!$E$10,MATCH($C145,'Efficiency Distributions'!$C$9:$C$87,0)+RIGHT($E150),0))\n/SUM(AF$10:AF$11)","v":0.57779630067843912},{"$f":"IF(INDEX(PC_MAPPING,RIGHT($C145,1),MATCH($E$2,'Data by Building Type'!$D$22:$F$22,0))=\"Yes\",1,0)*\n(AG$10*OFFSET('Efficiency Distributions'!$D$10,MATCH($C145,'Efficiency Distributions'!$C$9:$C$87,0)+RIGHT($E150),0)\n+AG$11*OFFSET('Efficiency Distributions'!$E$10,MATCH($C145,'Efficiency Distributions'!$C$9:$C$87,0)+RIGHT($E150),0))\n/SUM(AG$10:AG$11)","v":0.57676311956537718},{"$f":"IF(INDEX(PC_MAPPING,RIGHT($C145,1),MATCH($E$2,'Data by Building Type'!$D$22:$F$22,0))=\"Yes\",1,0)*\n(AH$10*OFFSET('Efficiency Distributions'!$D$10,MATCH($C145,'Efficiency Distributions'!$C$9:$C$87,0)+RIGHT($E150),0)\n+AH$11*OFFSET('Efficiency Distributions'!$E$10,MATCH($C145,'Efficiency Distributions'!$C$9:$C$87,0)+RIGHT($E150),0))\n/SUM(AH$10:AH$11)","v":0.57750698634024855},{"$f":"IF(INDEX(PC_MAPPING,RIGHT($C145,1),MATCH($E$2,'Data by Building Type'!$D$22:$F$22,0))=\"Yes\",1,0)*\n(AI$10*OFFSET('Efficiency Distributions'!$D$10,MATCH($C145,'Efficiency Distributions'!$C$9:$C$87,0)+RIGHT($E150),0)\n+AI$11*OFFSET('Efficiency Distributions'!$E$10,MATCH($C145,'Efficiency Distributions'!$C$9:$C$87,0)+RIGHT($E150),0))\n/SUM(AI$10:AI$11)","v":0.57824253275536652},{"$f":"IF(INDEX(PC_MAPPING,RIGHT($C145,1),MATCH($E$2,'Data by Building Type'!$D$22:$F$22,0))=\"Yes\",1,0)*\n(AJ$10*OFFSET('Efficiency Distributions'!$D$10,MATCH($C145,'Efficiency Distributions'!$C$9:$C$87,0)+RIGHT($E150),0)\n+AJ$11*OFFSET('Efficiency Distributions'!$E$10,MATCH($C145,'Efficiency Distributions'!$C$9:$C$87,0)+RIGHT($E150),0))\n/SUM(AJ$10:AJ$11)","v":0.57999245842808123},{"$f":"IF(INDEX(PC_MAPPING,RIGHT($C145,1),MATCH($E$2,'Data by Building Type'!$D$22:$F$22,0))=\"Yes\",1,0)*\n(AK$10*OFFSET('Efficiency Distributions'!$D$10,MATCH($C145,'Efficiency Distributions'!$C$9:$C$87,0)+RIGHT($E150),0)\n+AK$11*OFFSET('Efficiency Distributions'!$E$10,MATCH($C145,'Efficiency Distributions'!$C$9:$C$87,0)+RIGHT($E150),0))\n/SUM(AK$10:AK$11)","v":0.57652135044682129},{"$f":"IF(INDEX(PC_MAPPING,RIGHT($C145,1),MATCH($E$2,'Data by Building Type'!$D$22:$F$22,0))=\"Yes\",1,0)*\n(AL$10*OFFSET('Efficiency Distributions'!$D$10,MATCH($C145,'Efficiency Distributions'!$C$9:$C$87,0)+RIGHT($E150),0)\n+AL$11*OFFSET('Efficiency Distributions'!$E$10,MATCH($C145,'Efficiency Distributions'!$C$9:$C$87,0)+RIGHT($E150),0))\n/SUM(AL$10:AL$11)","v":0.57863496496544842},{"$f":"IF(INDEX(PC_MAPPING,RIGHT($C145,1),MATCH($E$2,'Data by Building Type'!$D$22:$F$22,0))=\"Yes\",1,0)*\n(AM$10*OFFSET('Efficiency Distributions'!$D$10,MATCH($C145,'Efficiency Distributions'!$C$9:$C$87,0)+RIGHT($E150),0)\n+AM$11*OFFSET('Efficiency Distributions'!$E$10,MATCH($C145,'Efficiency Distributions'!$C$9:$C$87,0)+RIGHT($E150),0))\n/SUM(AM$10:AM$11)","v":0.58110779391097866},{"$f":"IF(INDEX(PC_MAPPING,RIGHT($C145,1),MATCH($E$2,'Data by Building Type'!$D$22:$F$22,0))=\"Yes\",1,0)*\n(AN$10*OFFSET('Efficiency Distributions'!$D$10,MATCH($C145,'Efficiency Distributions'!$C$9:$C$87,0)+RIGHT($E150),0)\n+AN$11*OFFSET('Efficiency Distributions'!$E$10,MATCH($C145,'Efficiency Distributions'!$C$9:$C$87,0)+RIGHT($E150),0))\n/SUM(AN$10:AN$11)","v":0.58334458143272161},{"$f":"IF(INDEX(PC_MAPPING,RIGHT($C145,1),MATCH($E$2,'Data by Building Type'!$D$22:$F$22,0))=\"Yes\",1,0)*\n(AO$10*OFFSET('Efficiency Distributions'!$D$10,MATCH($C145,'Efficiency Distributions'!$C$9:$C$87,0)+RIGHT($E150),0)\n+AO$11*OFFSET('Efficiency Distributions'!$E$10,MATCH($C145,'Efficiency Distributions'!$C$9:$C$87,0)+RIGHT($E150),0))\n/SUM(AO$10:AO$11)","v":0.58359014479157623},{"$f":"IF(INDEX(PC_MAPPING,RIGHT($C145,1),MATCH($E$2,'Data by Building Type'!$D$22:$F$22,0))=\"Yes\",1,0)*\n(AP$10*OFFSET('Efficiency Distributions'!$D$10,MATCH($C145,'Efficiency Distributions'!$C$9:$C$87,0)+RIGHT($E150),0)\n+AP$11*OFFSET('Efficiency Distributions'!$E$10,MATCH($C145,'Efficiency Distributions'!$C$9:$C$87,0)+RIGHT($E150),0))\n/SUM(AP$10:AP$11)","v":0.58279125689754752},{"$f":"IF(INDEX(PC_MAPPING,RIGHT($C145,1),MATCH($E$2,'Data by Building Type'!$D$22:$F$22,0))=\"Yes\",1,0)*\n(AQ$10*OFFSET('Efficiency Distributions'!$D$10,MATCH($C145,'Efficiency Distributions'!$C$9:$C$87,0)+RIGHT($E150),0)\n+AQ$11*OFFSET('Efficiency Distributions'!$E$10,MATCH($C145,'Efficiency Distributions'!$C$9:$C$87,0)+RIGHT($E150),0))\n/SUM(AQ$10:AQ$11)","v":0.58290621573701407},{"$f":"IF(INDEX(PC_MAPPING,RIGHT($C145,1),MATCH($E$2,'Data by Building Type'!$D$22:$F$22,0))=\"Yes\",1,0)*\n(AR$10*OFFSET('Efficiency Distributions'!$D$10,MATCH($C145,'Efficiency Distributions'!$C$9:$C$87,0)+RIGHT($E150),0)\n+AR$11*OFFSET('Efficiency Distributions'!$E$10,MATCH($C145,'Efficiency Distributions'!$C$9:$C$87,0)+RIGHT($E150),0))\n/SUM(AR$10:AR$11)","v":0.58294030296702182},{"$f":"IF(INDEX(PC_MAPPING,RIGHT($C145,1),MATCH($E$2,'Data by Building Type'!$D$22:$F$22,0))=\"Yes\",1,0)*\n(AS$10*OFFSET('Efficiency Distributions'!$D$10,MATCH($C145,'Efficiency Distributions'!$C$9:$C$87,0)+RIGHT($E150),0)\n+AS$11*OFFSET('Efficiency Distributions'!$E$10,MATCH($C145,'Efficiency Distributions'!$C$9:$C$87,0)+RIGHT($E150),0))\n/SUM(AS$10:AS$11)","v":0.58060824111902631},{"$f":"IF(INDEX(PC_MAPPING,RIGHT($C145,1),MATCH($E$2,'Data by Building Type'!$D$22:$F$22,0))=\"Yes\",1,0)*\n(AT$10*OFFSET('Efficiency Distributions'!$D$10,MATCH($C145,'Efficiency Distributions'!$C$9:$C$87,0)+RIGHT($E150),0)\n+AT$11*OFFSET('Efficiency Distributions'!$E$10,MATCH($C145,'Efficiency Distributions'!$C$9:$C$87,0)+RIGHT($E150),0))\n/SUM(AT$10:AT$11)","v":0.57629501660937588},{"$f":"IF(INDEX(PC_MAPPING,RIGHT($C145,1),MATCH($E$2,'Data by Building Type'!$D$22:$F$22,0))=\"Yes\",1,0)*\n(AU$10*OFFSET('Efficiency Distributions'!$D$10,MATCH($C145,'Efficiency Distributions'!$C$9:$C$87,0)+RIGHT($E150),0)\n+AU$11*OFFSET('Efficiency Distributions'!$E$10,MATCH($C145,'Efficiency Distributions'!$C$9:$C$87,0)+RIGHT($E150),0))\n/SUM(AU$10:AU$11)","v":0.57338575766196276},{"$f":"IF(INDEX(PC_MAPPING,RIGHT($C145,1),MATCH($E$2,'Data by Building Type'!$D$22:$F$22,0))=\"Yes\",1,0)*\n(AV$10*OFFSET('Efficiency Distributions'!$D$10,MATCH($C145,'Efficiency Distributions'!$C$9:$C$87,0)+RIGHT($E150),0)\n+AV$11*OFFSET('Efficiency Distributions'!$E$10,MATCH($C145,'Efficiency Distributions'!$C$9:$C$87,0)+RIGHT($E150),0))\n/SUM(AV$10:AV$11)","v":0.58091443876656346},{"$f":"IF(INDEX(PC_MAPPING,RIGHT($C145,1),MATCH($E$2,'Data by Building Type'!$D$22:$F$22,0))=\"Yes\",1,0)*\n(AW$10*OFFSET('Efficiency Distributions'!$D$10,MATCH($C145,'Efficiency Distributions'!$C$9:$C$87,0)+RIGHT($E150),0)\n+AW$11*OFFSET('Efficiency Distributions'!$E$10,MATCH($C145,'Efficiency Distributions'!$C$9:$C$87,0)+RIGHT($E150),0))\n/SUM(AW$10:AW$11)","v":0.57914452075373379},{"$f":"IF(INDEX(PC_MAPPING,RIGHT($C145,1),MATCH($E$2,'Data by Building Type'!$D$22:$F$22,0))=\"Yes\",1,0)*\n(AX$10*OFFSET('Efficiency Distributions'!$D$10,MATCH($C145,'Efficiency Distributions'!$C$9:$C$87,0)+RIGHT($E150),0)\n+AX$11*OFFSET('Efficiency Distributions'!$E$10,MATCH($C145,'Efficiency Distributions'!$C$9:$C$87,0)+RIGHT($E150),0))\n/SUM(AX$10:AX$11)","v":0.58088238085918142},{"$f":"IF(INDEX(PC_MAPPING,RIGHT($C145,1),MATCH($E$2,'Data by Building Type'!$D$22:$F$22,0))=\"Yes\",1,0)*\n(AY$10*OFFSET('Efficiency Distributions'!$D$10,MATCH($C145,'Efficiency Distributions'!$C$9:$C$87,0)+RIGHT($E150),0)\n+AY$11*OFFSET('Efficiency Distributions'!$E$10,MATCH($C145,'Efficiency Distributions'!$C$9:$C$87,0)+RIGHT($E150),0))\n/SUM(AY$10:AY$11)","v":0.58102474884701505},{"$f":"IF(INDEX(PC_MAPPING,RIGHT($C145,1),MATCH($E$2,'Data by Building Type'!$D$22:$F$22,0))=\"Yes\",1,0)*\n(AZ$10*OFFSET('Efficiency Distributions'!$D$10,MATCH($C145,'Efficiency Distributions'!$C$9:$C$87,0)+RIGHT($E150),0)\n+AZ$11*OFFSET('Efficiency Distributions'!$E$10,MATCH($C145,'Efficiency Distributions'!$C$9:$C$87,0)+RIGHT($E150),0))\n/SUM(AZ$10:AZ$11)","v":0.58038278808283084},{"$f":"IF(INDEX(PC_MAPPING,RIGHT($C145,1),MATCH($E$2,'Data by Building Type'!$D$22:$F$22,0))=\"Yes\",1,0)*\n(BA$10*OFFSET('Efficiency Distributions'!$D$10,MATCH($C145,'Efficiency Distributions'!$C$9:$C$87,0)+RIGHT($E150),0)\n+BA$11*OFFSET('Efficiency Distributions'!$E$10,MATCH($C145,'Efficiency Distributions'!$C$9:$C$87,0)+RIGHT($E150),0))\n/SUM(BA$10:BA$11)","v":0.58098587258298418},{"$f":"IF(INDEX(PC_MAPPING,RIGHT($C145,1),MATCH($E$2,'Data by Building Type'!$D$22:$F$22,0))=\"Yes\",1,0)*\n(BB$10*OFFSET('Efficiency Distributions'!$D$10,MATCH($C145,'Efficiency Distributions'!$C$9:$C$87,0)+RIGHT($E150),0)\n+BB$11*OFFSET('Efficiency Distributions'!$E$10,MATCH($C145,'Efficiency Distributions'!$C$9:$C$87,0)+RIGHT($E150),0))\n/SUM(BB$10:BB$11)","v":0.58161431226792459},{"$f":"IF(INDEX(PC_MAPPING,RIGHT($C145,1),MATCH($E$2,'Data by Building Type'!$D$22:$F$22,0))=\"Yes\",1,0)*\n(BC$10*OFFSET('Efficiency Distributions'!$D$10,MATCH($C145,'Efficiency Distributions'!$C$9:$C$87,0)+RIGHT($E150),0)\n+BC$11*OFFSET('Efficiency Distributions'!$E$10,MATCH($C145,'Efficiency Distributions'!$C$9:$C$87,0)+RIGHT($E150),0))\n/SUM(BC$10:BC$11)","v":0.58292849743227304},{"$f":"IF(INDEX(PC_MAPPING,RIGHT($C145,1),MATCH($E$2,'Data by Building Type'!$D$22:$F$22,0))=\"Yes\",1,0)*\n(BD$10*OFFSET('Efficiency Distributions'!$D$10,MATCH($C145,'Efficiency Distributions'!$C$9:$C$87,0)+RIGHT($E150),0)\n+BD$11*OFFSET('Efficiency Distributions'!$E$10,MATCH($C145,'Efficiency Distributions'!$C$9:$C$87,0)+RIGHT($E150),0))\n/SUM(BD$10:BD$11)","v":0.58322644124684631},{"$f":"IF(INDEX(PC_MAPPING,RIGHT($C145,1),MATCH($E$2,'Data by Building Type'!$D$22:$F$22,0))=\"Yes\",1,0)*\n(BE$10*OFFSET('Efficiency Distributions'!$D$10,MATCH($C145,'Efficiency Distributions'!$C$9:$C$87,0)+RIGHT($E150),0)\n+BE$11*OFFSET('Efficiency Distributions'!$E$10,MATCH($C145,'Efficiency Distributions'!$C$9:$C$87,0)+RIGHT($E150),0))\n/SUM(BE$10:BE$11)","v":0.58387726199685708},{"$f":"IF(INDEX(PC_MAPPING,RIGHT($C145,1),MATCH($E$2,'Data by Building Type'!$D$22:$F$22,0))=\"Yes\",1,0)*\n(BF$10*OFFSET('Efficiency Distributions'!$D$10,MATCH($C145,'Efficiency Distributions'!$C$9:$C$87,0)+RIGHT($E150),0)\n+BF$11*OFFSET('Efficiency Distributions'!$E$10,MATCH($C145,'Efficiency Distributions'!$C$9:$C$87,0)+RIGHT($E150),0))\n/SUM(BF$10:BF$11)","v":0.58430543827814274},{"$f":"IF(INDEX(PC_MAPPING,RIGHT($C145,1),MATCH($E$2,'Data by Building Type'!$D$22:$F$22,0))=\"Yes\",1,0)*\n(BG$10*OFFSET('Efficiency Distributions'!$D$10,MATCH($C145,'Efficiency Distributions'!$C$9:$C$87,0)+RIGHT($E150),0)\n+BG$11*OFFSET('Efficiency Distributions'!$E$10,MATCH($C145,'Efficiency Distributions'!$C$9:$C$87,0)+RIGHT($E150),0))\n/SUM(BG$10:BG$11)","v":0.58481237596411484}]
[null,null,null,null,"EL2",{"$f":"IF(INDEX(PC_MAPPING,RIGHT($C145,1),MATCH($E$2,'Data by Building Type'!$D$22:$F$22,0))=\"Yes\",1,0)*\n(F$10*OFFSET('Efficiency Distributions'!$D$10,MATCH($C145,'Efficiency Distributions'!$C$9:$C$87,0)+RIGHT($E151),0)\n+F$11*OFFSET('Efficiency Distributions'!$E$10,MATCH($C145,'Efficiency Distributions'!$C$9:$C$87,0)+RIGHT($E151),0))\n/SUM(F$10:F$11)","v":0},{"$f":"IF(INDEX(PC_MAPPING,RIGHT($C145,1),MATCH($E$2,'Data by Building Type'!$D$22:$F$22,0))=\"Yes\",1,0)*\n(G$10*OFFSET('Efficiency Distributions'!$D$10,MATCH($C145,'Efficiency Distributions'!$C$9:$C$87,0)+RIGHT($E151),0)\n+G$11*OFFSET('Efficiency Distributions'!$E$10,MATCH($C145,'Efficiency Distributions'!$C$9:$C$87,0)+RIGHT($E151),0))\n/SUM(G$10:G$11)","v":0},{"$f":"IF(INDEX(PC_MAPPING,RIGHT($C145,1),MATCH($E$2,'Data by Building Type'!$D$22:$F$22,0))=\"Yes\",1,0)*\n(H$10*OFFSET('Efficiency Distributions'!$D$10,MATCH($C145,'Efficiency Distributions'!$C$9:$C$87,0)+RIGHT($E151),0)\n+H$11*OFFSET('Efficiency Distributions'!$E$10,MATCH($C145,'Efficiency Distributions'!$C$9:$C$87,0)+RIGHT($E151),0))\n/SUM(H$10:H$11)","v":0},{"$f":"IF(INDEX(PC_MAPPING,RIGHT($C145,1),MATCH($E$2,'Data by Building Type'!$D$22:$F$22,0))=\"Yes\",1,0)*\n(I$10*OFFSET('Efficiency Distributions'!$D$10,MATCH($C145,'Efficiency Distributions'!$C$9:$C$87,0)+RIGHT($E151),0)\n+I$11*OFFSET('Efficiency Distributions'!$E$10,MATCH($C145,'Efficiency Distributions'!$C$9:$C$87,0)+RIGHT($E151),0))\n/SUM(I$10:I$11)","v":0},{"$f":"IF(INDEX(PC_MAPPING,RIGHT($C145,1),MATCH($E$2,'Data by Building Type'!$D$22:$F$22,0))=\"Yes\",1,0)*\n(J$10*OFFSET('Efficiency Distributions'!$D$10,MATCH($C145,'Efficiency Distributions'!$C$9:$C$87,0)+RIGHT($E151),0)\n+J$11*OFFSET('Efficiency Distributions'!$E$10,MATCH($C145,'Efficiency Distributions'!$C$9:$C$87,0)+RIGHT($E151),0))\n/SUM(J$10:J$11)","v":0},{"$f":"IF(INDEX(PC_MAPPING,RIGHT($C145,1),MATCH($E$2,'Data by Building Type'!$D$22:$F$22,0))=\"Yes\",1,0)*\n(K$10*OFFSET('Efficiency Distributions'!$D$10,MATCH($C145,'Efficiency Distributions'!$C$9:$C$87,0)+RIGHT($E151),0)\n+K$11*OFFSET('Efficiency Distributions'!$E$10,MATCH($C145,'Efficiency Distributions'!$C$9:$C$87,0)+RIGHT($E151),0))\n/SUM(K$10:K$11)","v":0},{"$f":"IF(INDEX(PC_MAPPING,RIGHT($C145,1),MATCH($E$2,'Data by Building Type'!$D$22:$F$22,0))=\"Yes\",1,0)*\n(L$10*OFFSET('Efficiency Distributions'!$D$10,MATCH($C145,'Efficiency Distributions'!$C$9:$C$87,0)+RIGHT($E151),0)\n+L$11*OFFSET('Efficiency Distributions'!$E$10,MATCH($C145,'Efficiency Distributions'!$C$9:$C$87,0)+RIGHT($E151),0))\n/SUM(L$10:L$11)","v":0},{"$f":"IF(INDEX(PC_MAPPING,RIGHT($C145,1),MATCH($E$2,'Data by Building Type'!$D$22:$F$22,0))=\"Yes\",1,0)*\n(M$10*OFFSET('Efficiency Distributions'!$D$10,MATCH($C145,'Efficiency Distributions'!$C$9:$C$87,0)+RIGHT($E151),0)\n+M$11*OFFSET('Efficiency Distributions'!$E$10,MATCH($C145,'Efficiency Distributions'!$C$9:$C$87,0)+RIGHT($E151),0))\n/SUM(M$10:M$11)","v":0},{"$f":"IF(INDEX(PC_MAPPING,RIGHT($C145,1),MATCH($E$2,'Data by Building Type'!$D$22:$F$22,0))=\"Yes\",1,0)*\n(N$10*OFFSET('Efficiency Distributions'!$D$10,MATCH($C145,'Efficiency Distributions'!$C$9:$C$87,0)+RIGHT($E151),0)\n+N$11*OFFSET('Efficiency Distributions'!$E$10,MATCH($C145,'Efficiency Distributions'!$C$9:$C$87,0)+RIGHT($E151),0))\n/SUM(N$10:N$11)","v":0},{"$f":"IF(INDEX(PC_MAPPING,RIGHT($C145,1),MATCH($E$2,'Data by Building Type'!$D$22:$F$22,0))=\"Yes\",1,0)*\n(O$10*OFFSET('Efficiency Distributions'!$D$10,MATCH($C145,'Efficiency Distributions'!$C$9:$C$87,0)+RIGHT($E151),0)\n+O$11*OFFSET('Efficiency Distributions'!$E$10,MATCH($C145,'Efficiency Distributions'!$C$9:$C$87,0)+RIGHT($E151),0))\n/SUM(O$10:O$11)","v":0},{"$f":"IF(INDEX(PC_MAPPING,RIGHT($C145,1),MATCH($E$2,'Data by Building Type'!$D$22:$F$22,0))=\"Yes\",1,0)*\n(P$10*OFFSET('Efficiency Distributions'!$D$10,MATCH($C145,'Efficiency Distributions'!$C$9:$C$87,0)+RIGHT($E151),0)\n+P$11*OFFSET('Efficiency Distributions'!$E$10,MATCH($C145,'Efficiency Distributions'!$C$9:$C$87,0)+RIGHT($E151),0))\n/SUM(P$10:P$11)","v":0},{"$f":"IF(INDEX(PC_MAPPING,RIGHT($C145,1),MATCH($E$2,'Data by Building Type'!$D$22:$F$22,0))=\"Yes\",1,0)*\n(Q$10*OFFSET('Efficiency Distributions'!$D$10,MATCH($C145,'Efficiency Distributions'!$C$9:$C$87,0)+RIGHT($E151),0)\n+Q$11*OFFSET('Efficiency Distributions'!$E$10,MATCH($C145,'Efficiency Distributions'!$C$9:$C$87,0)+RIGHT($E151),0))\n/SUM(Q$10:Q$11)","v":0},{"$f":"IF(INDEX(PC_MAPPING,RIGHT($C145,1),MATCH($E$2,'Data by Building Type'!$D$22:$F$22,0))=\"Yes\",1,0)*\n(R$10*OFFSET('Efficiency Distributions'!$D$10,MATCH($C145,'Efficiency Distributions'!$C$9:$C$87,0)+RIGHT($E151),0)\n+R$11*OFFSET('Efficiency Distributions'!$E$10,MATCH($C145,'Efficiency Distributions'!$C$9:$C$87,0)+RIGHT($E151),0))\n/SUM(R$10:R$11)","v":0},{"$f":"IF(INDEX(PC_MAPPING,RIGHT($C145,1),MATCH($E$2,'Data by Building Type'!$D$22:$F$22,0))=\"Yes\",1,0)*\n(S$10*OFFSET('Efficiency Distributions'!$D$10,MATCH($C145,'Efficiency Distributions'!$C$9:$C$87,0)+RIGHT($E151),0)\n+S$11*OFFSET('Efficiency Distributions'!$E$10,MATCH($C145,'Efficiency Distributions'!$C$9:$C$87,0)+RIGHT($E151),0))\n/SUM(S$10:S$11)","v":0},{"$f":"IF(INDEX(PC_MAPPING,RIGHT($C145,1),MATCH($E$2,'Data by Building Type'!$D$22:$F$22,0))=\"Yes\",1,0)*\n(T$10*OFFSET('Efficiency Distributions'!$D$10,MATCH($C145,'Efficiency Distributions'!$C$9:$C$87,0)+RIGHT($E151),0)\n+T$11*OFFSET('Efficiency Distributions'!$E$10,MATCH($C145,'Efficiency Distributions'!$C$9:$C$87,0)+RIGHT($E151),0))\n/SUM(T$10:T$11)","v":0},{"$f":"IF(INDEX(PC_MAPPING,RIGHT($C145,1),MATCH($E$2,'Data by Building Type'!$D$22:$F$22,0))=\"Yes\",1,0)*\n(U$10*OFFSET('Efficiency Distributions'!$D$10,MATCH($C145,'Efficiency Distributions'!$C$9:$C$87,0)+RIGHT($E151),0)\n+U$11*OFFSET('Efficiency Distributions'!$E$10,MATCH($C145,'Efficiency Distributions'!$C$9:$C$87,0)+RIGHT($E151),0))\n/SUM(U$10:U$11)","v":0},{"$f":"IF(INDEX(PC_MAPPING,RIGHT($C145,1),MATCH($E$2,'Data by Building Type'!$D$22:$F$22,0))=\"Yes\",1,0)*\n(V$10*OFFSET('Efficiency Distributions'!$D$10,MATCH($C145,'Efficiency Distributions'!$C$9:$C$87,0)+RIGHT($E151),0)\n+V$11*OFFSET('Efficiency Distributions'!$E$10,MATCH($C145,'Efficiency Distributions'!$C$9:$C$87,0)+RIGHT($E151),0))\n/SUM(V$10:V$11)","v":0},{"$f":"IF(INDEX(PC_MAPPING,RIGHT($C145,1),MATCH($E$2,'Data by Building Type'!$D$22:$F$22,0))=\"Yes\",1,0)*\n(W$10*OFFSET('Efficiency Distributions'!$D$10,MATCH($C145,'Efficiency Distributions'!$C$9:$C$87,0)+RIGHT($E151),0)\n+W$11*OFFSET('Efficiency Distributions'!$E$10,MATCH($C145,'Efficiency Distributions'!$C$9:$C$87,0)+RIGHT($E151),0))\n/SUM(W$10:W$11)","v":0},{"$f":"IF(INDEX(PC_MAPPING,RIGHT($C145,1),MATCH($E$2,'Data by Building Type'!$D$22:$F$22,0))=\"Yes\",1,0)*\n(X$10*OFFSET('Efficiency Distributions'!$D$10,MATCH($C145,'Efficiency Distributions'!$C$9:$C$87,0)+RIGHT($E151),0)\n+X$11*OFFSET('Efficiency Distributions'!$E$10,MATCH($C145,'Efficiency Distributions'!$C$9:$C$87,0)+RIGHT($E151),0))\n/SUM(X$10:X$11)","v":0},{"$f":"IF(INDEX(PC_MAPPING,RIGHT($C145,1),MATCH($E$2,'Data by Building Type'!$D$22:$F$22,0))=\"Yes\",1,0)*\n(Y$10*OFFSET('Efficiency Distributions'!$D$10,MATCH($C145,'Efficiency Distributions'!$C$9:$C$87,0)+RIGHT($E151),0)\n+Y$11*OFFSET('Efficiency Distributions'!$E$10,MATCH($C145,'Efficiency Distributions'!$C$9:$C$87,0)+RIGHT($E151),0))\n/SUM(Y$10:Y$11)","v":0},{"$f":"IF(INDEX(PC_MAPPING,RIGHT($C145,1),MATCH($E$2,'Data by Building Type'!$D$22:$F$22,0))=\"Yes\",1,0)*\n(Z$10*OFFSET('Efficiency Distributions'!$D$10,MATCH($C145,'Efficiency Distributions'!$C$9:$C$87,0)+RIGHT($E151),0)\n+Z$11*OFFSET('Efficiency Distributions'!$E$10,MATCH($C145,'Efficiency Distributions'!$C$9:$C$87,0)+RIGHT($E151),0))\n/SUM(Z$10:Z$11)","v":0},{"$f":"IF(INDEX(PC_MAPPING,RIGHT($C145,1),MATCH($E$2,'Data by Building Type'!$D$22:$F$22,0))=\"Yes\",1,0)*\n(AA$10*OFFSET('Efficiency Distributions'!$D$10,MATCH($C145,'Efficiency Distributions'!$C$9:$C$87,0)+RIGHT($E151),0)\n+AA$11*OFFSET('Efficiency Distributions'!$E$10,MATCH($C145,'Efficiency Distributions'!$C$9:$C$87,0)+RIGHT($E151),0))\n/SUM(AA$10:AA$11)","v":0},{"$f":"IF(INDEX(PC_MAPPING,RIGHT($C145,1),MATCH($E$2,'Data by Building Type'!$D$22:$F$22,0))=\"Yes\",1,0)*\n(AB$10*OFFSET('Efficiency Distributions'!$D$10,MATCH($C145,'Efficiency Distributions'!$C$9:$C$87,0)+RIGHT($E151),0)\n+AB$11*OFFSET('Efficiency Distributions'!$E$10,MATCH($C145,'Efficiency Distributions'!$C$9:$C$87,0)+RIGHT($E151),0))\n/SUM(AB$10:AB$11)","v":0},{"$f":"IF(INDEX(PC_MAPPING,RIGHT($C145,1),MATCH($E$2,'Data by Building Type'!$D$22:$F$22,0))=\"Yes\",1,0)*\n(AC$10*OFFSET('Efficiency Distributions'!$D$10,MATCH($C145,'Efficiency Distributions'!$C$9:$C$87,0)+RIGHT($E151),0)\n+AC$11*OFFSET('Efficiency Distributions'!$E$10,MATCH($C145,'Efficiency Distributions'!$C$9:$C$87,0)+RIGHT($E151),0))\n/SUM(AC$10:AC$11)","v":0},{"$f":"IF(INDEX(PC_MAPPING,RIGHT($C145,1),MATCH($E$2,'Data by Building Type'!$D$22:$F$22,0))=\"Yes\",1,0)*\n(AD$10*OFFSET('Efficiency Distributions'!$D$10,MATCH($C145,'Efficiency Distributions'!$C$9:$C$87,0)+RIGHT($E151),0)\n+AD$11*OFFSET('Efficiency Distributions'!$E$10,MATCH($C145,'Efficiency Distributions'!$C$9:$C$87,0)+RIGHT($E151),0))\n/SUM(AD$10:AD$11)","v":0},{"$f":"IF(INDEX(PC_MAPPING,RIGHT($C145,1),MATCH($E$2,'Data by Building Type'!$D$22:$F$22,0))=\"Yes\",1,0)*\n(AE$10*OFFSET('Efficiency Distributions'!$D$10,MATCH($C145,'Efficiency Distributions'!$C$9:$C$87,0)+RIGHT($E151),0)\n+AE$11*OFFSET('Efficiency Distributions'!$E$10,MATCH($C145,'Efficiency Distributions'!$C$9:$C$87,0)+RIGHT($E151),0))\n/SUM(AE$10:AE$11)","v":0},{"$f":"IF(INDEX(PC_MAPPING,RIGHT($C145,1),MATCH($E$2,'Data by Building Type'!$D$22:$F$22,0))=\"Yes\",1,0)*\n(AF$10*OFFSET('Efficiency Distributions'!$D$10,MATCH($C145,'Efficiency Distributions'!$C$9:$C$87,0)+RIGHT($E151),0)\n+AF$11*OFFSET('Efficiency Distributions'!$E$10,MATCH($C145,'Efficiency Distributions'!$C$9:$C$87,0)+RIGHT($E151),0))\n/SUM(AF$10:AF$11)","v":0},{"$f":"IF(INDEX(PC_MAPPING,RIGHT($C145,1),MATCH($E$2,'Data by Building Type'!$D$22:$F$22,0))=\"Yes\",1,0)*\n(AG$10*OFFSET('Efficiency Distributions'!$D$10,MATCH($C145,'Efficiency Distributions'!$C$9:$C$87,0)+RIGHT($E151),0)\n+AG$11*OFFSET('Efficiency Distributions'!$E$10,MATCH($C145,'Efficiency Distributions'!$C$9:$C$87,0)+RIGHT($E151),0))\n/SUM(AG$10:AG$11)","v":0},{"$f":"IF(INDEX(PC_MAPPING,RIGHT($C145,1),MATCH($E$2,'Data by Building Type'!$D$22:$F$22,0))=\"Yes\",1,0)*\n(AH$10*OFFSET('Efficiency Distributions'!$D$10,MATCH($C145,'Efficiency Distributions'!$C$9:$C$87,0)+RIGHT($E151),0)\n+AH$11*OFFSET('Efficiency Distributions'!$E$10,MATCH($C145,'Efficiency Distributions'!$C$9:$C$87,0)+RIGHT($E151),0))\n/SUM(AH$10:AH$11)","v":0},{"$f":"IF(INDEX(PC_MAPPING,RIGHT($C145,1),MATCH($E$2,'Data by Building Type'!$D$22:$F$22,0))=\"Yes\",1,0)*\n(AI$10*OFFSET('Efficiency Distributions'!$D$10,MATCH($C145,'Efficiency Distributions'!$C$9:$C$87,0)+RIGHT($E151),0)\n+AI$11*OFFSET('Efficiency Distributions'!$E$10,MATCH($C145,'Efficiency Distributions'!$C$9:$C$87,0)+RIGHT($E151),0))\n/SUM(AI$10:AI$11)","v":0},{"$f":"IF(INDEX(PC_MAPPING,RIGHT($C145,1),MATCH($E$2,'Data by Building Type'!$D$22:$F$22,0))=\"Yes\",1,0)*\n(AJ$10*OFFSET('Efficiency Distributions'!$D$10,MATCH($C145,'Efficiency Distributions'!$C$9:$C$87,0)+RIGHT($E151),0)\n+AJ$11*OFFSET('Efficiency Distributions'!$E$10,MATCH($C145,'Efficiency Distributions'!$C$9:$C$87,0)+RIGHT($E151),0))\n/SUM(AJ$10:AJ$11)","v":0},{"$f":"IF(INDEX(PC_MAPPING,RIGHT($C145,1),MATCH($E$2,'Data by Building Type'!$D$22:$F$22,0))=\"Yes\",1,0)*\n(AK$10*OFFSET('Efficiency Distributions'!$D$10,MATCH($C145,'Efficiency Distributions'!$C$9:$C$87,0)+RIGHT($E151),0)\n+AK$11*OFFSET('Efficiency Distributions'!$E$10,MATCH($C145,'Efficiency Distributions'!$C$9:$C$87,0)+RIGHT($E151),0))\n/SUM(AK$10:AK$11)","v":0},{"$f":"IF(INDEX(PC_MAPPING,RIGHT($C145,1),MATCH($E$2,'Data by Building Type'!$D$22:$F$22,0))=\"Yes\",1,0)*\n(AL$10*OFFSET('Efficiency Distributions'!$D$10,MATCH($C145,'Efficiency Distributions'!$C$9:$C$87,0)+RIGHT($E151),0)\n+AL$11*OFFSET('Efficiency Distributions'!$E$10,MATCH($C145,'Efficiency Distributions'!$C$9:$C$87,0)+RIGHT($E151),0))\n/SUM(AL$10:AL$11)","v":0},{"$f":"IF(INDEX(PC_MAPPING,RIGHT($C145,1),MATCH($E$2,'Data by Building Type'!$D$22:$F$22,0))=\"Yes\",1,0)*\n(AM$10*OFFSET('Efficiency Distributions'!$D$10,MATCH($C145,'Efficiency Distributions'!$C$9:$C$87,0)+RIGHT($E151),0)\n+AM$11*OFFSET('Efficiency Distributions'!$E$10,MATCH($C145,'Efficiency Distributions'!$C$9:$C$87,0)+RIGHT($E151),0))\n/SUM(AM$10:AM$11)","v":0},{"$f":"IF(INDEX(PC_MAPPING,RIGHT($C145,1),MATCH($E$2,'Data by Building Type'!$D$22:$F$22,0))=\"Yes\",1,0)*\n(AN$10*OFFSET('Efficiency Distributions'!$D$10,MATCH($C145,'Efficiency Distributions'!$C$9:$C$87,0)+RIGHT($E151),0)\n+AN$11*OFFSET('Efficiency Distributions'!$E$10,MATCH($C145,'Efficiency Distributions'!$C$9:$C$87,0)+RIGHT($E151),0))\n/SUM(AN$10:AN$11)","v":0},{"$f":"IF(INDEX(PC_MAPPING,RIGHT($C145,1),MATCH($E$2,'Data by Building Type'!$D$22:$F$22,0))=\"Yes\",1,0)*\n(AO$10*OFFSET('Efficiency Distributions'!$D$10,MATCH($C145,'Efficiency Distributions'!$C$9:$C$87,0)+RIGHT($E151),0)\n+AO$11*OFFSET('Efficiency Distributions'!$E$10,MATCH($C145,'Efficiency Distributions'!$C$9:$C$87,0)+RIGHT($E151),0))\n/SUM(AO$10:AO$11)","v":0},{"$f":"IF(INDEX(PC_MAPPING,RIGHT($C145,1),MATCH($E$2,'Data by Building Type'!$D$22:$F$22,0))=\"Yes\",1,0)*\n(AP$10*OFFSET('Efficiency Distributions'!$D$10,MATCH($C145,'Efficiency Distributions'!$C$9:$C$87,0)+RIGHT($E151),0)\n+AP$11*OFFSET('Efficiency Distributions'!$E$10,MATCH($C145,'Efficiency Distributions'!$C$9:$C$87,0)+RIGHT($E151),0))\n/SUM(AP$10:AP$11)","v":0},{"$f":"IF(INDEX(PC_MAPPING,RIGHT($C145,1),MATCH($E$2,'Data by Building Type'!$D$22:$F$22,0))=\"Yes\",1,0)*\n(AQ$10*OFFSET('Efficiency Distributions'!$D$10,MATCH($C145,'Efficiency Distributions'!$C$9:$C$87,0)+RIGHT($E151),0)\n+AQ$11*OFFSET('Efficiency Distributions'!$E$10,MATCH($C145,'Efficiency Distributions'!$C$9:$C$87,0)+RIGHT($E151),0))\n/SUM(AQ$10:AQ$11)","v":0},{"$f":"IF(INDEX(PC_MAPPING,RIGHT($C145,1),MATCH($E$2,'Data by Building Type'!$D$22:$F$22,0))=\"Yes\",1,0)*\n(AR$10*OFFSET('Efficiency Distributions'!$D$10,MATCH($C145,'Efficiency Distributions'!$C$9:$C$87,0)+RIGHT($E151),0)\n+AR$11*OFFSET('Efficiency Distributions'!$E$10,MATCH($C145,'Efficiency Distributions'!$C$9:$C$87,0)+RIGHT($E151),0))\n/SUM(AR$10:AR$11)","v":0},{"$f":"IF(INDEX(PC_MAPPING,RIGHT($C145,1),MATCH($E$2,'Data by Building Type'!$D$22:$F$22,0))=\"Yes\",1,0)*\n(AS$10*OFFSET('Efficiency Distributions'!$D$10,MATCH($C145,'Efficiency Distributions'!$C$9:$C$87,0)+RIGHT($E151),0)\n+AS$11*OFFSET('Efficiency Distributions'!$E$10,MATCH($C145,'Efficiency Distributions'!$C$9:$C$87,0)+RIGHT($E151),0))\n/SUM(AS$10:AS$11)","v":0},{"$f":"IF(INDEX(PC_MAPPING,RIGHT($C145,1),MATCH($E$2,'Data by Building Type'!$D$22:$F$22,0))=\"Yes\",1,0)*\n(AT$10*OFFSET('Efficiency Distributions'!$D$10,MATCH($C145,'Efficiency Distributions'!$C$9:$C$87,0)+RIGHT($E151),0)\n+AT$11*OFFSET('Efficiency Distributions'!$E$10,MATCH($C145,'Efficiency Distributions'!$C$9:$C$87,0)+RIGHT($E151),0))\n/SUM(AT$10:AT$11)","v":0},{"$f":"IF(INDEX(PC_MAPPING,RIGHT($C145,1),MATCH($E$2,'Data by Building Type'!$D$22:$F$22,0))=\"Yes\",1,0)*\n(AU$10*OFFSET('Efficiency Distributions'!$D$10,MATCH($C145,'Efficiency Distributions'!$C$9:$C$87,0)+RIGHT($E151),0)\n+AU$11*OFFSET('Efficiency Distributions'!$E$10,MATCH($C145,'Efficiency Distributions'!$C$9:$C$87,0)+RIGHT($E151),0))\n/SUM(AU$10:AU$11)","v":0},{"$f":"IF(INDEX(PC_MAPPING,RIGHT($C145,1),MATCH($E$2,'Data by Building Type'!$D$22:$F$22,0))=\"Yes\",1,0)*\n(AV$10*OFFSET('Efficiency Distributions'!$D$10,MATCH($C145,'Efficiency Distributions'!$C$9:$C$87,0)+RIGHT($E151),0)\n+AV$11*OFFSET('Efficiency Distributions'!$E$10,MATCH($C145,'Efficiency Distributions'!$C$9:$C$87,0)+RIGHT($E151),0))\n/SUM(AV$10:AV$11)","v":0},{"$f":"IF(INDEX(PC_MAPPING,RIGHT($C145,1),MATCH($E$2,'Data by Building Type'!$D$22:$F$22,0))=\"Yes\",1,0)*\n(AW$10*OFFSET('Efficiency Distributions'!$D$10,MATCH($C145,'Efficiency Distributions'!$C$9:$C$87,0)+RIGHT($E151),0)\n+AW$11*OFFSET('Efficiency Distributions'!$E$10,MATCH($C145,'Efficiency Distributions'!$C$9:$C$87,0)+RIGHT($E151),0))\n/SUM(AW$10:AW$11)","v":0},{"$f":"IF(INDEX(PC_MAPPING,RIGHT($C145,1),MATCH($E$2,'Data by Building Type'!$D$22:$F$22,0))=\"Yes\",1,0)*\n(AX$10*OFFSET('Efficiency Distributions'!$D$10,MATCH($C145,'Efficiency Distributions'!$C$9:$C$87,0)+RIGHT($E151),0)\n+AX$11*OFFSET('Efficiency Distributions'!$E$10,MATCH($C145,'Efficiency Distributions'!$C$9:$C$87,0)+RIGHT($E151),0))\n/SUM(AX$10:AX$11)","v":0},{"$f":"IF(INDEX(PC_MAPPING,RIGHT($C145,1),MATCH($E$2,'Data by Building Type'!$D$22:$F$22,0))=\"Yes\",1,0)*\n(AY$10*OFFSET('Efficiency Distributions'!$D$10,MATCH($C145,'Efficiency Distributions'!$C$9:$C$87,0)+RIGHT($E151),0)\n+AY$11*OFFSET('Efficiency Distributions'!$E$10,MATCH($C145,'Efficiency Distributions'!$C$9:$C$87,0)+RIGHT($E151),0))\n/SUM(AY$10:AY$11)","v":0},{"$f":"IF(INDEX(PC_MAPPING,RIGHT($C145,1),MATCH($E$2,'Data by Building Type'!$D$22:$F$22,0))=\"Yes\",1,0)*\n(AZ$10*OFFSET('Efficiency Distributions'!$D$10,MATCH($C145,'Efficiency Distributions'!$C$9:$C$87,0)+RIGHT($E151),0)\n+AZ$11*OFFSET('Efficiency Distributions'!$E$10,MATCH($C145,'Efficiency Distributions'!$C$9:$C$87,0)+RIGHT($E151),0))\n/SUM(AZ$10:AZ$11)","v":0},{"$f":"IF(INDEX(PC_MAPPING,RIGHT($C145,1),MATCH($E$2,'Data by Building Type'!$D$22:$F$22,0))=\"Yes\",1,0)*\n(BA$10*OFFSET('Efficiency Distributions'!$D$10,MATCH($C145,'Efficiency Distributions'!$C$9:$C$87,0)+RIGHT($E151),0)\n+BA$11*OFFSET('Efficiency Distributions'!$E$10,MATCH($C145,'Efficiency Distributions'!$C$9:$C$87,0)+RIGHT($E151),0))\n/SUM(BA$10:BA$11)","v":0},{"$f":"IF(INDEX(PC_MAPPING,RIGHT($C145,1),MATCH($E$2,'Data by Building Type'!$D$22:$F$22,0))=\"Yes\",1,0)*\n(BB$10*OFFSET('Efficiency Distributions'!$D$10,MATCH($C145,'Efficiency Distributions'!$C$9:$C$87,0)+RIGHT($E151),0)\n+BB$11*OFFSET('Efficiency Distributions'!$E$10,MATCH($C145,'Efficiency Distributions'!$C$9:$C$87,0)+RIGHT($E151),0))\n/SUM(BB$10:BB$11)","v":0},{"$f":"IF(INDEX(PC_MAPPING,RIGHT($C145,1),MATCH($E$2,'Data by Building Type'!$D$22:$F$22,0))=\"Yes\",1,0)*\n(BC$10*OFFSET('Efficiency Distributions'!$D$10,MATCH($C145,'Efficiency Distributions'!$C$9:$C$87,0)+RIGHT($E151),0)\n+BC$11*OFFSET('Efficiency Distributions'!$E$10,MATCH($C145,'Efficiency Distributions'!$C$9:$C$87,0)+RIGHT($E151),0))\n/SUM(BC$10:BC$11)","v":0},{"$f":"IF(INDEX(PC_MAPPING,RIGHT($C145,1),MATCH($E$2,'Data by Building Type'!$D$22:$F$22,0))=\"Yes\",1,0)*\n(BD$10*OFFSET('Efficiency Distributions'!$D$10,MATCH($C145,'Efficiency Distributions'!$C$9:$C$87,0)+RIGHT($E151),0)\n+BD$11*OFFSET('Efficiency Distributions'!$E$10,MATCH($C145,'Efficiency Distributions'!$C$9:$C$87,0)+RIGHT($E151),0))\n/SUM(BD$10:BD$11)","v":0},{"$f":"IF(INDEX(PC_MAPPING,RIGHT($C145,1),MATCH($E$2,'Data by Building Type'!$D$22:$F$22,0))=\"Yes\",1,0)*\n(BE$10*OFFSET('Efficiency Distributions'!$D$10,MATCH($C145,'Efficiency Distributions'!$C$9:$C$87,0)+RIGHT($E151),0)\n+BE$11*OFFSET('Efficiency Distributions'!$E$10,MATCH($C145,'Efficiency Distributions'!$C$9:$C$87,0)+RIGHT($E151),0))\n/SUM(BE$10:BE$11)","v":0},{"$f":"IF(INDEX(PC_MAPPING,RIGHT($C145,1),MATCH($E$2,'Data by Building Type'!$D$22:$F$22,0))=\"Yes\",1,0)*\n(BF$10*OFFSET('Efficiency Distributions'!$D$10,MATCH($C145,'Efficiency Distributions'!$C$9:$C$87,0)+RIGHT($E151),0)\n+BF$11*OFFSET('Efficiency Distributions'!$E$10,MATCH($C145,'Efficiency Distributions'!$C$9:$C$87,0)+RIGHT($E151),0))\n/SUM(BF$10:BF$11)","v":0},{"$f":"IF(INDEX(PC_MAPPING,RIGHT($C145,1),MATCH($E$2,'Data by Building Type'!$D$22:$F$22,0))=\"Yes\",1,0)*\n(BG$10*OFFSET('Efficiency Distributions'!$D$10,MATCH($C145,'Efficiency Distributions'!$C$9:$C$87,0)+RIGHT($E151),0)\n+BG$11*OFFSET('Efficiency Distributions'!$E$10,MATCH($C145,'Efficiency Distributions'!$C$9:$C$87,0)+RIGHT($E151),0))\n/SUM(BG$10:BG$11)","v":0}]
[null,null,null,null,"EL3",{"$f":"IF(INDEX(PC_MAPPING,RIGHT($C145,1),MATCH($E$2,'Data by Building Type'!$D$22:$F$22,0))=\"Yes\",1,0)*\n(F$10*OFFSET('Efficiency Distributions'!$D$10,MATCH($C145,'Efficiency Distributions'!$C$9:$C$87,0)+RIGHT($E152),0)\n+F$11*OFFSET('Efficiency Distributions'!$E$10,MATCH($C145,'Efficiency Distributions'!$C$9:$C$87,0)+RIGHT($E152),0))\n/SUM(F$10:F$11)","v":0},{"$f":"IF(INDEX(PC_MAPPING,RIGHT($C145,1),MATCH($E$2,'Data by Building Type'!$D$22:$F$22,0))=\"Yes\",1,0)*\n(G$10*OFFSET('Efficiency Distributions'!$D$10,MATCH($C145,'Efficiency Distributions'!$C$9:$C$87,0)+RIGHT($E152),0)\n+G$11*OFFSET('Efficiency Distributions'!$E$10,MATCH($C145,'Efficiency Distributions'!$C$9:$C$87,0)+RIGHT($E152),0))\n/SUM(G$10:G$11)","v":0},{"$f":"IF(INDEX(PC_MAPPING,RIGHT($C145,1),MATCH($E$2,'Data by Building Type'!$D$22:$F$22,0))=\"Yes\",1,0)*\n(H$10*OFFSET('Efficiency Distributions'!$D$10,MATCH($C145,'Efficiency Distributions'!$C$9:$C$87,0)+RIGHT($E152),0)\n+H$11*OFFSET('Efficiency Distributions'!$E$10,MATCH($C145,'Efficiency Distributions'!$C$9:$C$87,0)+RIGHT($E152),0))\n/SUM(H$10:H$11)","v":0},{"$f":"IF(INDEX(PC_MAPPING,RIGHT($C145,1),MATCH($E$2,'Data by Building Type'!$D$22:$F$22,0))=\"Yes\",1,0)*\n(I$10*OFFSET('Efficiency Distributions'!$D$10,MATCH($C145,'Efficiency Distributions'!$C$9:$C$87,0)+RIGHT($E152),0)\n+I$11*OFFSET('Efficiency Distributions'!$E$10,MATCH($C145,'Efficiency Distributions'!$C$9:$C$87,0)+RIGHT($E152),0))\n/SUM(I$10:I$11)","v":0},{"$f":"IF(INDEX(PC_MAPPING,RIGHT($C145,1),MATCH($E$2,'Data by Building Type'!$D$22:$F$22,0))=\"Yes\",1,0)*\n(J$10*OFFSET('Efficiency Distributions'!$D$10,MATCH($C145,'Efficiency Distributions'!$C$9:$C$87,0)+RIGHT($E152),0)\n+J$11*OFFSET('Efficiency Distributions'!$E$10,MATCH($C145,'Efficiency Distributions'!$C$9:$C$87,0)+RIGHT($E152),0))\n/SUM(J$10:J$11)","v":0},{"$f":"IF(INDEX(PC_MAPPING,RIGHT($C145,1),MATCH($E$2,'Data by Building Type'!$D$22:$F$22,0))=\"Yes\",1,0)*\n(K$10*OFFSET('Efficiency Distributions'!$D$10,MATCH($C145,'Efficiency Distributions'!$C$9:$C$87,0)+RIGHT($E152),0)\n+K$11*OFFSET('Efficiency Distributions'!$E$10,MATCH($C145,'Efficiency Distributions'!$C$9:$C$87,0)+RIGHT($E152),0))\n/SUM(K$10:K$11)","v":0},{"$f":"IF(INDEX(PC_MAPPING,RIGHT($C145,1),MATCH($E$2,'Data by Building Type'!$D$22:$F$22,0))=\"Yes\",1,0)*\n(L$10*OFFSET('Efficiency Distributions'!$D$10,MATCH($C145,'Efficiency Distributions'!$C$9:$C$87,0)+RIGHT($E152),0)\n+L$11*OFFSET('Efficiency Distributions'!$E$10,MATCH($C145,'Efficiency Distributions'!$C$9:$C$87,0)+RIGHT($E152),0))\n/SUM(L$10:L$11)","v":0},{"$f":"IF(INDEX(PC_MAPPING,RIGHT($C145,1),MATCH($E$2,'Data by Building Type'!$D$22:$F$22,0))=\"Yes\",1,0)*\n(M$10*OFFSET('Efficiency Distributions'!$D$10,MATCH($C145,'Efficiency Distributions'!$C$9:$C$87,0)+RIGHT($E152),0)\n+M$11*OFFSET('Efficiency Distributions'!$E$10,MATCH($C145,'Efficiency Distributions'!$C$9:$C$87,0)+RIGHT($E152),0))\n/SUM(M$10:M$11)","v":0},{"$f":"IF(INDEX(PC_MAPPING,RIGHT($C145,1),MATCH($E$2,'Data by Building Type'!$D$22:$F$22,0))=\"Yes\",1,0)*\n(N$10*OFFSET('Efficiency Distributions'!$D$10,MATCH($C145,'Efficiency Distributions'!$C$9:$C$87,0)+RIGHT($E152),0)\n+N$11*OFFSET('Efficiency Distributions'!$E$10,MATCH($C145,'Efficiency Distributions'!$C$9:$C$87,0)+RIGHT($E152),0))\n/SUM(N$10:N$11)","v":0},{"$f":"IF(INDEX(PC_MAPPING,RIGHT($C145,1),MATCH($E$2,'Data by Building Type'!$D$22:$F$22,0))=\"Yes\",1,0)*\n(O$10*OFFSET('Efficiency Distributions'!$D$10,MATCH($C145,'Efficiency Distributions'!$C$9:$C$87,0)+RIGHT($E152),0)\n+O$11*OFFSET('Efficiency Distributions'!$E$10,MATCH($C145,'Efficiency Distributions'!$C$9:$C$87,0)+RIGHT($E152),0))\n/SUM(O$10:O$11)","v":0},{"$f":"IF(INDEX(PC_MAPPING,RIGHT($C145,1),MATCH($E$2,'Data by Building Type'!$D$22:$F$22,0))=\"Yes\",1,0)*\n(P$10*OFFSET('Efficiency Distributions'!$D$10,MATCH($C145,'Efficiency Distributions'!$C$9:$C$87,0)+RIGHT($E152),0)\n+P$11*OFFSET('Efficiency Distributions'!$E$10,MATCH($C145,'Efficiency Distributions'!$C$9:$C$87,0)+RIGHT($E152),0))\n/SUM(P$10:P$11)","v":0},{"$f":"IF(INDEX(PC_MAPPING,RIGHT($C145,1),MATCH($E$2,'Data by Building Type'!$D$22:$F$22,0))=\"Yes\",1,0)*\n(Q$10*OFFSET('Efficiency Distributions'!$D$10,MATCH($C145,'Efficiency Distributions'!$C$9:$C$87,0)+RIGHT($E152),0)\n+Q$11*OFFSET('Efficiency Distributions'!$E$10,MATCH($C145,'Efficiency Distributions'!$C$9:$C$87,0)+RIGHT($E152),0))\n/SUM(Q$10:Q$11)","v":0},{"$f":"IF(INDEX(PC_MAPPING,RIGHT($C145,1),MATCH($E$2,'Data by Building Type'!$D$22:$F$22,0))=\"Yes\",1,0)*\n(R$10*OFFSET('Efficiency Distributions'!$D$10,MATCH($C145,'Efficiency Distributions'!$C$9:$C$87,0)+RIGHT($E152),0)\n+R$11*OFFSET('Efficiency Distributions'!$E$10,MATCH($C145,'Efficiency Distributions'!$C$9:$C$87,0)+RIGHT($E152),0))\n/SUM(R$10:R$11)","v":0},{"$f":"IF(INDEX(PC_MAPPING,RIGHT($C145,1),MATCH($E$2,'Data by Building Type'!$D$22:$F$22,0))=\"Yes\",1,0)*\n(S$10*OFFSET('Efficiency Distributions'!$D$10,MATCH($C145,'Efficiency Distributions'!$C$9:$C$87,0)+RIGHT($E152),0)\n+S$11*OFFSET('Efficiency Distributions'!$E$10,MATCH($C145,'Efficiency Distributions'!$C$9:$C$87,0)+RIGHT($E152),0))\n/SUM(S$10:S$11)","v":0},{"$f":"IF(INDEX(PC_MAPPING,RIGHT($C145,1),MATCH($E$2,'Data by Building Type'!$D$22:$F$22,0))=\"Yes\",1,0)*\n(T$10*OFFSET('Efficiency Distributions'!$D$10,MATCH($C145,'Efficiency Distributions'!$C$9:$C$87,0)+RIGHT($E152),0)\n+T$11*OFFSET('Efficiency Distributions'!$E$10,MATCH($C145,'Efficiency Distributions'!$C$9:$C$87,0)+RIGHT($E152),0))\n/SUM(T$10:T$11)","v":0},{"$f":"IF(INDEX(PC_MAPPING,RIGHT($C145,1),MATCH($E$2,'Data by Building Type'!$D$22:$F$22,0))=\"Yes\",1,0)*\n(U$10*OFFSET('Efficiency Distributions'!$D$10,MATCH($C145,'Efficiency Distributions'!$C$9:$C$87,0)+RIGHT($E152),0)\n+U$11*OFFSET('Efficiency Distributions'!$E$10,MATCH($C145,'Efficiency Distributions'!$C$9:$C$87,0)+RIGHT($E152),0))\n/SUM(U$10:U$11)","v":0},{"$f":"IF(INDEX(PC_MAPPING,RIGHT($C145,1),MATCH($E$2,'Data by Building Type'!$D$22:$F$22,0))=\"Yes\",1,0)*\n(V$10*OFFSET('Efficiency Distributions'!$D$10,MATCH($C145,'Efficiency Distributions'!$C$9:$C$87,0)+RIGHT($E152),0)\n+V$11*OFFSET('Efficiency Distributions'!$E$10,MATCH($C145,'Efficiency Distributions'!$C$9:$C$87,0)+RIGHT($E152),0))\n/SUM(V$10:V$11)","v":0},{"$f":"IF(INDEX(PC_MAPPING,RIGHT($C145,1),MATCH($E$2,'Data by Building Type'!$D$22:$F$22,0))=\"Yes\",1,0)*\n(W$10*OFFSET('Efficiency Distributions'!$D$10,MATCH($C145,'Efficiency Distributions'!$C$9:$C$87,0)+RIGHT($E152),0)\n+W$11*OFFSET('Efficiency Distributions'!$E$10,MATCH($C145,'Efficiency Distributions'!$C$9:$C$87,0)+RIGHT($E152),0))\n/SUM(W$10:W$11)","v":0},{"$f":"IF(INDEX(PC_MAPPING,RIGHT($C145,1),MATCH($E$2,'Data by Building Type'!$D$22:$F$22,0))=\"Yes\",1,0)*\n(X$10*OFFSET('Efficiency Distributions'!$D$10,MATCH($C145,'Efficiency Distributions'!$C$9:$C$87,0)+RIGHT($E152),0)\n+X$11*OFFSET('Efficiency Distributions'!$E$10,MATCH($C145,'Efficiency Distributions'!$C$9:$C$87,0)+RIGHT($E152),0))\n/SUM(X$10:X$11)","v":0},{"$f":"IF(INDEX(PC_MAPPING,RIGHT($C145,1),MATCH($E$2,'Data by Building Type'!$D$22:$F$22,0))=\"Yes\",1,0)*\n(Y$10*OFFSET('Efficiency Distributions'!$D$10,MATCH($C145,'Efficiency Distributions'!$C$9:$C$87,0)+RIGHT($E152),0)\n+Y$11*OFFSET('Efficiency Distributions'!$E$10,MATCH($C145,'Efficiency Distributions'!$C$9:$C$87,0)+RIGHT($E152),0))\n/SUM(Y$10:Y$11)","v":0},{"$f":"IF(INDEX(PC_MAPPING,RIGHT($C145,1),MATCH($E$2,'Data by Building Type'!$D$22:$F$22,0))=\"Yes\",1,0)*\n(Z$10*OFFSET('Efficiency Distributions'!$D$10,MATCH($C145,'Efficiency Distributions'!$C$9:$C$87,0)+RIGHT($E152),0)\n+Z$11*OFFSET('Efficiency Distributions'!$E$10,MATCH($C145,'Efficiency Distributions'!$C$9:$C$87,0)+RIGHT($E152),0))\n/SUM(Z$10:Z$11)","v":0},{"$f":"IF(INDEX(PC_MAPPING,RIGHT($C145,1),MATCH($E$2,'Data by Building Type'!$D$22:$F$22,0))=\"Yes\",1,0)*\n(AA$10*OFFSET('Efficiency Distributions'!$D$10,MATCH($C145,'Efficiency Distributions'!$C$9:$C$87,0)+RIGHT($E152),0)\n+AA$11*OFFSET('Efficiency Distributions'!$E$10,MATCH($C145,'Efficiency Distributions'!$C$9:$C$87,0)+RIGHT($E152),0))\n/SUM(AA$10:AA$11)","v":0},{"$f":"IF(INDEX(PC_MAPPING,RIGHT($C145,1),MATCH($E$2,'Data by Building Type'!$D$22:$F$22,0))=\"Yes\",1,0)*\n(AB$10*OFFSET('Efficiency Distributions'!$D$10,MATCH($C145,'Efficiency Distributions'!$C$9:$C$87,0)+RIGHT($E152),0)\n+AB$11*OFFSET('Efficiency Distributions'!$E$10,MATCH($C145,'Efficiency Distributions'!$C$9:$C$87,0)+RIGHT($E152),0))\n/SUM(AB$10:AB$11)","v":0},{"$f":"IF(INDEX(PC_MAPPING,RIGHT($C145,1),MATCH($E$2,'Data by Building Type'!$D$22:$F$22,0))=\"Yes\",1,0)*\n(AC$10*OFFSET('Efficiency Distributions'!$D$10,MATCH($C145,'Efficiency Distributions'!$C$9:$C$87,0)+RIGHT($E152),0)\n+AC$11*OFFSET('Efficiency Distributions'!$E$10,MATCH($C145,'Efficiency Distributions'!$C$9:$C$87,0)+RIGHT($E152),0))\n/SUM(AC$10:AC$11)","v":0},{"$f":"IF(INDEX(PC_MAPPING,RIGHT($C145,1),MATCH($E$2,'Data by Building Type'!$D$22:$F$22,0))=\"Yes\",1,0)*\n(AD$10*OFFSET('Efficiency Distributions'!$D$10,MATCH($C145,'Efficiency Distributions'!$C$9:$C$87,0)+RIGHT($E152),0)\n+AD$11*OFFSET('Efficiency Distributions'!$E$10,MATCH($C145,'Efficiency Distributions'!$C$9:$C$87,0)+RIGHT($E152),0))\n/SUM(AD$10:AD$11)","v":0},{"$f":"IF(INDEX(PC_MAPPING,RIGHT($C145,1),MATCH($E$2,'Data by Building Type'!$D$22:$F$22,0))=\"Yes\",1,0)*\n(AE$10*OFFSET('Efficiency Distributions'!$D$10,MATCH($C145,'Efficiency Distributions'!$C$9:$C$87,0)+RIGHT($E152),0)\n+AE$11*OFFSET('Efficiency Distributions'!$E$10,MATCH($C145,'Efficiency Distributions'!$C$9:$C$87,0)+RIGHT($E152),0))\n/SUM(AE$10:AE$11)","v":0},{"$f":"IF(INDEX(PC_MAPPING,RIGHT($C145,1),MATCH($E$2,'Data by Building Type'!$D$22:$F$22,0))=\"Yes\",1,0)*\n(AF$10*OFFSET('Efficiency Distributions'!$D$10,MATCH($C145,'Efficiency Distributions'!$C$9:$C$87,0)+RIGHT($E152),0)\n+AF$11*OFFSET('Efficiency Distributions'!$E$10,MATCH($C145,'Efficiency Distributions'!$C$9:$C$87,0)+RIGHT($E152),0))\n/SUM(AF$10:AF$11)","v":0},{"$f":"IF(INDEX(PC_MAPPING,RIGHT($C145,1),MATCH($E$2,'Data by Building Type'!$D$22:$F$22,0))=\"Yes\",1,0)*\n(AG$10*OFFSET('Efficiency Distributions'!$D$10,MATCH($C145,'Efficiency Distributions'!$C$9:$C$87,0)+RIGHT($E152),0)\n+AG$11*OFFSET('Efficiency Distributions'!$E$10,MATCH($C145,'Efficiency Distributions'!$C$9:$C$87,0)+RIGHT($E152),0))\n/SUM(AG$10:AG$11)","v":0},{"$f":"IF(INDEX(PC_MAPPING,RIGHT($C145,1),MATCH($E$2,'Data by Building Type'!$D$22:$F$22,0))=\"Yes\",1,0)*\n(AH$10*OFFSET('Efficiency Distributions'!$D$10,MATCH($C145,'Efficiency Distributions'!$C$9:$C$87,0)+RIGHT($E152),0)\n+AH$11*OFFSET('Efficiency Distributions'!$E$10,MATCH($C145,'Efficiency Distributions'!$C$9:$C$87,0)+RIGHT($E152),0))\n/SUM(AH$10:AH$11)","v":0},{"$f":"IF(INDEX(PC_MAPPING,RIGHT($C145,1),MATCH($E$2,'Data by Building Type'!$D$22:$F$22,0))=\"Yes\",1,0)*\n(AI$10*OFFSET('Efficiency Distributions'!$D$10,MATCH($C145,'Efficiency Distributions'!$C$9:$C$87,0)+RIGHT($E152),0)\n+AI$11*OFFSET('Efficiency Distributions'!$E$10,MATCH($C145,'Efficiency Distributions'!$C$9:$C$87,0)+RIGHT($E152),0))\n/SUM(AI$10:AI$11)","v":0},{"$f":"IF(INDEX(PC_MAPPING,RIGHT($C145,1),MATCH($E$2,'Data by Building Type'!$D$22:$F$22,0))=\"Yes\",1,0)*\n(AJ$10*OFFSET('Efficiency Distributions'!$D$10,MATCH($C145,'Efficiency Distributions'!$C$9:$C$87,0)+RIGHT($E152),0)\n+AJ$11*OFFSET('Efficiency Distributions'!$E$10,MATCH($C145,'Efficiency Distributions'!$C$9:$C$87,0)+RIGHT($E152),0))\n/SUM(AJ$10:AJ$11)","v":0},{"$f":"IF(INDEX(PC_MAPPING,RIGHT($C145,1),MATCH($E$2,'Data by Building Type'!$D$22:$F$22,0))=\"Yes\",1,0)*\n(AK$10*OFFSET('Efficiency Distributions'!$D$10,MATCH($C145,'Efficiency Distributions'!$C$9:$C$87,0)+RIGHT($E152),0)\n+AK$11*OFFSET('Efficiency Distributions'!$E$10,MATCH($C145,'Efficiency Distributions'!$C$9:$C$87,0)+RIGHT($E152),0))\n/SUM(AK$10:AK$11)","v":0},{"$f":"IF(INDEX(PC_MAPPING,RIGHT($C145,1),MATCH($E$2,'Data by Building Type'!$D$22:$F$22,0))=\"Yes\",1,0)*\n(AL$10*OFFSET('Efficiency Distributions'!$D$10,MATCH($C145,'Efficiency Distributions'!$C$9:$C$87,0)+RIGHT($E152),0)\n+AL$11*OFFSET('Efficiency Distributions'!$E$10,MATCH($C145,'Efficiency Distributions'!$C$9:$C$87,0)+RIGHT($E152),0))\n/SUM(AL$10:AL$11)","v":0},{"$f":"IF(INDEX(PC_MAPPING,RIGHT($C145,1),MATCH($E$2,'Data by Building Type'!$D$22:$F$22,0))=\"Yes\",1,0)*\n(AM$10*OFFSET('Efficiency Distributions'!$D$10,MATCH($C145,'Efficiency Distributions'!$C$9:$C$87,0)+RIGHT($E152),0)\n+AM$11*OFFSET('Efficiency Distributions'!$E$10,MATCH($C145,'Efficiency Distributions'!$C$9:$C$87,0)+RIGHT($E152),0))\n/SUM(AM$10:AM$11)","v":0},{"$f":"IF(INDEX(PC_MAPPING,RIGHT($C145,1),MATCH($E$2,'Data by Building Type'!$D$22:$F$22,0))=\"Yes\",1,0)*\n(AN$10*OFFSET('Efficiency Distributions'!$D$10,MATCH($C145,'Efficiency Distributions'!$C$9:$C$87,0)+RIGHT($E152),0)\n+AN$11*OFFSET('Efficiency Distributions'!$E$10,MATCH($C145,'Efficiency Distributions'!$C$9:$C$87,0)+RIGHT($E152),0))\n/SUM(AN$10:AN$11)","v":0},{"$f":"IF(INDEX(PC_MAPPING,RIGHT($C145,1),MATCH($E$2,'Data by Building Type'!$D$22:$F$22,0))=\"Yes\",1,0)*\n(AO$10*OFFSET('Efficiency Distributions'!$D$10,MATCH($C145,'Efficiency Distributions'!$C$9:$C$87,0)+RIGHT($E152),0)\n+AO$11*OFFSET('Efficiency Distributions'!$E$10,MATCH($C145,'Efficiency Distributions'!$C$9:$C$87,0)+RIGHT($E152),0))\n/SUM(AO$10:AO$11)","v":0},{"$f":"IF(INDEX(PC_MAPPING,RIGHT($C145,1),MATCH($E$2,'Data by Building Type'!$D$22:$F$22,0))=\"Yes\",1,0)*\n(AP$10*OFFSET('Efficiency Distributions'!$D$10,MATCH($C145,'Efficiency Distributions'!$C$9:$C$87,0)+RIGHT($E152),0)\n+AP$11*OFFSET('Efficiency Distributions'!$E$10,MATCH($C145,'Efficiency Distributions'!$C$9:$C$87,0)+RIGHT($E152),0))\n/SUM(AP$10:AP$11)","v":0},{"$f":"IF(INDEX(PC_MAPPING,RIGHT($C145,1),MATCH($E$2,'Data by Building Type'!$D$22:$F$22,0))=\"Yes\",1,0)*\n(AQ$10*OFFSET('Efficiency Distributions'!$D$10,MATCH($C145,'Efficiency Distributions'!$C$9:$C$87,0)+RIGHT($E152),0)\n+AQ$11*OFFSET('Efficiency Distributions'!$E$10,MATCH($C145,'Efficiency Distributions'!$C$9:$C$87,0)+RIGHT($E152),0))\n/SUM(AQ$10:AQ$11)","v":0},{"$f":"IF(INDEX(PC_MAPPING,RIGHT($C145,1),MATCH($E$2,'Data by Building Type'!$D$22:$F$22,0))=\"Yes\",1,0)*\n(AR$10*OFFSET('Efficiency Distributions'!$D$10,MATCH($C145,'Efficiency Distributions'!$C$9:$C$87,0)+RIGHT($E152),0)\n+AR$11*OFFSET('Efficiency Distributions'!$E$10,MATCH($C145,'Efficiency Distributions'!$C$9:$C$87,0)+RIGHT($E152),0))\n/SUM(AR$10:AR$11)","v":0},{"$f":"IF(INDEX(PC_MAPPING,RIGHT($C145,1),MATCH($E$2,'Data by Building Type'!$D$22:$F$22,0))=\"Yes\",1,0)*\n(AS$10*OFFSET('Efficiency Distributions'!$D$10,MATCH($C145,'Efficiency Distributions'!$C$9:$C$87,0)+RIGHT($E152),0)\n+AS$11*OFFSET('Efficiency Distributions'!$E$10,MATCH($C145,'Efficiency Distributions'!$C$9:$C$87,0)+RIGHT($E152),0))\n/SUM(AS$10:AS$11)","v":0},{"$f":"IF(INDEX(PC_MAPPING,RIGHT($C145,1),MATCH($E$2,'Data by Building Type'!$D$22:$F$22,0))=\"Yes\",1,0)*\n(AT$10*OFFSET('Efficiency Distributions'!$D$10,MATCH($C145,'Efficiency Distributions'!$C$9:$C$87,0)+RIGHT($E152),0)\n+AT$11*OFFSET('Efficiency Distributions'!$E$10,MATCH($C145,'Efficiency Distributions'!$C$9:$C$87,0)+RIGHT($E152),0))\n/SUM(AT$10:AT$11)","v":0},{"$f":"IF(INDEX(PC_MAPPING,RIGHT($C145,1),MATCH($E$2,'Data by Building Type'!$D$22:$F$22,0))=\"Yes\",1,0)*\n(AU$10*OFFSET('Efficiency Distributions'!$D$10,MATCH($C145,'Efficiency Distributions'!$C$9:$C$87,0)+RIGHT($E152),0)\n+AU$11*OFFSET('Efficiency Distributions'!$E$10,MATCH($C145,'Efficiency Distributions'!$C$9:$C$87,0)+RIGHT($E152),0))\n/SUM(AU$10:AU$11)","v":0},{"$f":"IF(INDEX(PC_MAPPING,RIGHT($C145,1),MATCH($E$2,'Data by Building Type'!$D$22:$F$22,0))=\"Yes\",1,0)*\n(AV$10*OFFSET('Efficiency Distributions'!$D$10,MATCH($C145,'Efficiency Distributions'!$C$9:$C$87,0)+RIGHT($E152),0)\n+AV$11*OFFSET('Efficiency Distributions'!$E$10,MATCH($C145,'Efficiency Distributions'!$C$9:$C$87,0)+RIGHT($E152),0))\n/SUM(AV$10:AV$11)","v":0},{"$f":"IF(INDEX(PC_MAPPING,RIGHT($C145,1),MATCH($E$2,'Data by Building Type'!$D$22:$F$22,0))=\"Yes\",1,0)*\n(AW$10*OFFSET('Efficiency Distributions'!$D$10,MATCH($C145,'Efficiency Distributions'!$C$9:$C$87,0)+RIGHT($E152),0)\n+AW$11*OFFSET('Efficiency Distributions'!$E$10,MATCH($C145,'Efficiency Distributions'!$C$9:$C$87,0)+RIGHT($E152),0))\n/SUM(AW$10:AW$11)","v":0},{"$f":"IF(INDEX(PC_MAPPING,RIGHT($C145,1),MATCH($E$2,'Data by Building Type'!$D$22:$F$22,0))=\"Yes\",1,0)*\n(AX$10*OFFSET('Efficiency Distributions'!$D$10,MATCH($C145,'Efficiency Distributions'!$C$9:$C$87,0)+RIGHT($E152),0)\n+AX$11*OFFSET('Efficiency Distributions'!$E$10,MATCH($C145,'Efficiency Distributions'!$C$9:$C$87,0)+RIGHT($E152),0))\n/SUM(AX$10:AX$11)","v":0},{"$f":"IF(INDEX(PC_MAPPING,RIGHT($C145,1),MATCH($E$2,'Data by Building Type'!$D$22:$F$22,0))=\"Yes\",1,0)*\n(AY$10*OFFSET('Efficiency Distributions'!$D$10,MATCH($C145,'Efficiency Distributions'!$C$9:$C$87,0)+RIGHT($E152),0)\n+AY$11*OFFSET('Efficiency Distributions'!$E$10,MATCH($C145,'Efficiency Distributions'!$C$9:$C$87,0)+RIGHT($E152),0))\n/SUM(AY$10:AY$11)","v":0},{"$f":"IF(INDEX(PC_MAPPING,RIGHT($C145,1),MATCH($E$2,'Data by Building Type'!$D$22:$F$22,0))=\"Yes\",1,0)*\n(AZ$10*OFFSET('Efficiency Distributions'!$D$10,MATCH($C145,'Efficiency Distributions'!$C$9:$C$87,0)+RIGHT($E152),0)\n+AZ$11*OFFSET('Efficiency Distributions'!$E$10,MATCH($C145,'Efficiency Distributions'!$C$9:$C$87,0)+RIGHT($E152),0))\n/SUM(AZ$10:AZ$11)","v":0},{"$f":"IF(INDEX(PC_MAPPING,RIGHT($C145,1),MATCH($E$2,'Data by Building Type'!$D$22:$F$22,0))=\"Yes\",1,0)*\n(BA$10*OFFSET('Efficiency Distributions'!$D$10,MATCH($C145,'Efficiency Distributions'!$C$9:$C$87,0)+RIGHT($E152),0)\n+BA$11*OFFSET('Efficiency Distributions'!$E$10,MATCH($C145,'Efficiency Distributions'!$C$9:$C$87,0)+RIGHT($E152),0))\n/SUM(BA$10:BA$11)","v":0},{"$f":"IF(INDEX(PC_MAPPING,RIGHT($C145,1),MATCH($E$2,'Data by Building Type'!$D$22:$F$22,0))=\"Yes\",1,0)*\n(BB$10*OFFSET('Efficiency Distributions'!$D$10,MATCH($C145,'Efficiency Distributions'!$C$9:$C$87,0)+RIGHT($E152),0)\n+BB$11*OFFSET('Efficiency Distributions'!$E$10,MATCH($C145,'Efficiency Distributions'!$C$9:$C$87,0)+RIGHT($E152),0))\n/SUM(BB$10:BB$11)","v":0},{"$f":"IF(INDEX(PC_MAPPING,RIGHT($C145,1),MATCH($E$2,'Data by Building Type'!$D$22:$F$22,0))=\"Yes\",1,0)*\n(BC$10*OFFSET('Efficiency Distributions'!$D$10,MATCH($C145,'Efficiency Distributions'!$C$9:$C$87,0)+RIGHT($E152),0)\n+BC$11*OFFSET('Efficiency Distributions'!$E$10,MATCH($C145,'Efficiency Distributions'!$C$9:$C$87,0)+RIGHT($E152),0))\n/SUM(BC$10:BC$11)","v":0},{"$f":"IF(INDEX(PC_MAPPING,RIGHT($C145,1),MATCH($E$2,'Data by Building Type'!$D$22:$F$22,0))=\"Yes\",1,0)*\n(BD$10*OFFSET('Efficiency Distributions'!$D$10,MATCH($C145,'Efficiency Distributions'!$C$9:$C$87,0)+RIGHT($E152),0)\n+BD$11*OFFSET('Efficiency Distributions'!$E$10,MATCH($C145,'Efficiency Distributions'!$C$9:$C$87,0)+RIGHT($E152),0))\n/SUM(BD$10:BD$11)","v":0},{"$f":"IF(INDEX(PC_MAPPING,RIGHT($C145,1),MATCH($E$2,'Data by Building Type'!$D$22:$F$22,0))=\"Yes\",1,0)*\n(BE$10*OFFSET('Efficiency Distributions'!$D$10,MATCH($C145,'Efficiency Distributions'!$C$9:$C$87,0)+RIGHT($E152),0)\n+BE$11*OFFSET('Efficiency Distributions'!$E$10,MATCH($C145,'Efficiency Distributions'!$C$9:$C$87,0)+RIGHT($E152),0))\n/SUM(BE$10:BE$11)","v":0},{"$f":"IF(INDEX(PC_MAPPING,RIGHT($C145,1),MATCH($E$2,'Data by Building Type'!$D$22:$F$22,0))=\"Yes\",1,0)*\n(BF$10*OFFSET('Efficiency Distributions'!$D$10,MATCH($C145,'Efficiency Distributions'!$C$9:$C$87,0)+RIGHT($E152),0)\n+BF$11*OFFSET('Efficiency Distributions'!$E$10,MATCH($C145,'Efficiency Distributions'!$C$9:$C$87,0)+RIGHT($E152),0))\n/SUM(BF$10:BF$11)","v":0},{"$f":"IF(INDEX(PC_MAPPING,RIGHT($C145,1),MATCH($E$2,'Data by Building Type'!$D$22:$F$22,0))=\"Yes\",1,0)*\n(BG$10*OFFSET('Efficiency Distributions'!$D$10,MATCH($C145,'Efficiency Distributions'!$C$9:$C$87,0)+RIGHT($E152),0)\n+BG$11*OFFSET('Efficiency Distributions'!$E$10,MATCH($C145,'Efficiency Distributions'!$C$9:$C$87,0)+RIGHT($E152),0))\n/SUM(BG$10:BG$11)","v":0}]
[null,null,null,null,"EL4",{"$f":"IF(INDEX(PC_MAPPING,RIGHT($C145,1),MATCH($E$2,'Data by Building Type'!$D$22:$F$22,0))=\"Yes\",1,0)*\n(F$10*OFFSET('Efficiency Distributions'!$D$10,MATCH($C145,'Efficiency Distributions'!$C$9:$C$87,0)+RIGHT($E153),0)\n+F$11*OFFSET('Efficiency Distributions'!$E$10,MATCH($C145,'Efficiency Distributions'!$C$9:$C$87,0)+RIGHT($E153),0))\n/SUM(F$10:F$11)","v":0},{"$f":"IF(INDEX(PC_MAPPING,RIGHT($C145,1),MATCH($E$2,'Data by Building Type'!$D$22:$F$22,0))=\"Yes\",1,0)*\n(G$10*OFFSET('Efficiency Distributions'!$D$10,MATCH($C145,'Efficiency Distributions'!$C$9:$C$87,0)+RIGHT($E153),0)\n+G$11*OFFSET('Efficiency Distributions'!$E$10,MATCH($C145,'Efficiency Distributions'!$C$9:$C$87,0)+RIGHT($E153),0))\n/SUM(G$10:G$11)","v":0},{"$f":"IF(INDEX(PC_MAPPING,RIGHT($C145,1),MATCH($E$2,'Data by Building Type'!$D$22:$F$22,0))=\"Yes\",1,0)*\n(H$10*OFFSET('Efficiency Distributions'!$D$10,MATCH($C145,'Efficiency Distributions'!$C$9:$C$87,0)+RIGHT($E153),0)\n+H$11*OFFSET('Efficiency Distributions'!$E$10,MATCH($C145,'Efficiency Distributions'!$C$9:$C$87,0)+RIGHT($E153),0))\n/SUM(H$10:H$11)","v":0},{"$f":"IF(INDEX(PC_MAPPING,RIGHT($C145,1),MATCH($E$2,'Data by Building Type'!$D$22:$F$22,0))=\"Yes\",1,0)*\n(I$10*OFFSET('Efficiency Distributions'!$D$10,MATCH($C145,'Efficiency Distributions'!$C$9:$C$87,0)+RIGHT($E153),0)\n+I$11*OFFSET('Efficiency Distributions'!$E$10,MATCH($C145,'Efficiency Distributions'!$C$9:$C$87,0)+RIGHT($E153),0))\n/SUM(I$10:I$11)","v":0},{"$f":"IF(INDEX(PC_MAPPING,RIGHT($C145,1),MATCH($E$2,'Data by Building Type'!$D$22:$F$22,0))=\"Yes\",1,0)*\n(J$10*OFFSET('Efficiency Distributions'!$D$10,MATCH($C145,'Efficiency Distributions'!$C$9:$C$87,0)+RIGHT($E153),0)\n+J$11*OFFSET('Efficiency Distributions'!$E$10,MATCH($C145,'Efficiency Distributions'!$C$9:$C$87,0)+RIGHT($E153),0))\n/SUM(J$10:J$11)","v":0},{"$f":"IF(INDEX(PC_MAPPING,RIGHT($C145,1),MATCH($E$2,'Data by Building Type'!$D$22:$F$22,0))=\"Yes\",1,0)*\n(K$10*OFFSET('Efficiency Distributions'!$D$10,MATCH($C145,'Efficiency Distributions'!$C$9:$C$87,0)+RIGHT($E153),0)\n+K$11*OFFSET('Efficiency Distributions'!$E$10,MATCH($C145,'Efficiency Distributions'!$C$9:$C$87,0)+RIGHT($E153),0))\n/SUM(K$10:K$11)","v":0},{"$f":"IF(INDEX(PC_MAPPING,RIGHT($C145,1),MATCH($E$2,'Data by Building Type'!$D$22:$F$22,0))=\"Yes\",1,0)*\n(L$10*OFFSET('Efficiency Distributions'!$D$10,MATCH($C145,'Efficiency Distributions'!$C$9:$C$87,0)+RIGHT($E153),0)\n+L$11*OFFSET('Efficiency Distributions'!$E$10,MATCH($C145,'Efficiency Distributions'!$C$9:$C$87,0)+RIGHT($E153),0))\n/SUM(L$10:L$11)","v":0},{"$f":"IF(INDEX(PC_MAPPING,RIGHT($C145,1),MATCH($E$2,'Data by Building Type'!$D$22:$F$22,0))=\"Yes\",1,0)*\n(M$10*OFFSET('Efficiency Distributions'!$D$10,MATCH($C145,'Efficiency Distributions'!$C$9:$C$87,0)+RIGHT($E153),0)\n+M$11*OFFSET('Efficiency Distributions'!$E$10,MATCH($C145,'Efficiency Distributions'!$C$9:$C$87,0)+RIGHT($E153),0))\n/SUM(M$10:M$11)","v":0},{"$f":"IF(INDEX(PC_MAPPING,RIGHT($C145,1),MATCH($E$2,'Data by Building Type'!$D$22:$F$22,0))=\"Yes\",1,0)*\n(N$10*OFFSET('Efficiency Distributions'!$D$10,MATCH($C145,'Efficiency Distributions'!$C$9:$C$87,0)+RIGHT($E153),0)\n+N$11*OFFSET('Efficiency Distributions'!$E$10,MATCH($C145,'Efficiency Distributions'!$C$9:$C$87,0)+RIGHT($E153),0))\n/SUM(N$10:N$11)","v":0},{"$f":"IF(INDEX(PC_MAPPING,RIGHT($C145,1),MATCH($E$2,'Data by Building Type'!$D$22:$F$22,0))=\"Yes\",1,0)*\n(O$10*OFFSET('Efficiency Distributions'!$D$10,MATCH($C145,'Efficiency Distributions'!$C$9:$C$87,0)+RIGHT($E153),0)\n+O$11*OFFSET('Efficiency Distributions'!$E$10,MATCH($C145,'Efficiency Distributions'!$C$9:$C$87,0)+RIGHT($E153),0))\n/SUM(O$10:O$11)","v":0},{"$f":"IF(INDEX(PC_MAPPING,RIGHT($C145,1),MATCH($E$2,'Data by Building Type'!$D$22:$F$22,0))=\"Yes\",1,0)*\n(P$10*OFFSET('Efficiency Distributions'!$D$10,MATCH($C145,'Efficiency Distributions'!$C$9:$C$87,0)+RIGHT($E153),0)\n+P$11*OFFSET('Efficiency Distributions'!$E$10,MATCH($C145,'Efficiency Distributions'!$C$9:$C$87,0)+RIGHT($E153),0))\n/SUM(P$10:P$11)","v":0},{"$f":"IF(INDEX(PC_MAPPING,RIGHT($C145,1),MATCH($E$2,'Data by Building Type'!$D$22:$F$22,0))=\"Yes\",1,0)*\n(Q$10*OFFSET('Efficiency Distributions'!$D$10,MATCH($C145,'Efficiency Distributions'!$C$9:$C$87,0)+RIGHT($E153),0)\n+Q$11*OFFSET('Efficiency Distributions'!$E$10,MATCH($C145,'Efficiency Distributions'!$C$9:$C$87,0)+RIGHT($E153),0))\n/SUM(Q$10:Q$11)","v":0},{"$f":"IF(INDEX(PC_MAPPING,RIGHT($C145,1),MATCH($E$2,'Data by Building Type'!$D$22:$F$22,0))=\"Yes\",1,0)*\n(R$10*OFFSET('Efficiency Distributions'!$D$10,MATCH($C145,'Efficiency Distributions'!$C$9:$C$87,0)+RIGHT($E153),0)\n+R$11*OFFSET('Efficiency Distributions'!$E$10,MATCH($C145,'Efficiency Distributions'!$C$9:$C$87,0)+RIGHT($E153),0))\n/SUM(R$10:R$11)","v":0},{"$f":"IF(INDEX(PC_MAPPING,RIGHT($C145,1),MATCH($E$2,'Data by Building Type'!$D$22:$F$22,0))=\"Yes\",1,0)*\n(S$10*OFFSET('Efficiency Distributions'!$D$10,MATCH($C145,'Efficiency Distributions'!$C$9:$C$87,0)+RIGHT($E153),0)\n+S$11*OFFSET('Efficiency Distributions'!$E$10,MATCH($C145,'Efficiency Distributions'!$C$9:$C$87,0)+RIGHT($E153),0))\n/SUM(S$10:S$11)","v":0},{"$f":"IF(INDEX(PC_MAPPING,RIGHT($C145,1),MATCH($E$2,'Data by Building Type'!$D$22:$F$22,0))=\"Yes\",1,0)*\n(T$10*OFFSET('Efficiency Distributions'!$D$10,MATCH($C145,'Efficiency Distributions'!$C$9:$C$87,0)+RIGHT($E153),0)\n+T$11*OFFSET('Efficiency Distributions'!$E$10,MATCH($C145,'Efficiency Distributions'!$C$9:$C$87,0)+RIGHT($E153),0))\n/SUM(T$10:T$11)","v":0},{"$f":"IF(INDEX(PC_MAPPING,RIGHT($C145,1),MATCH($E$2,'Data by Building Type'!$D$22:$F$22,0))=\"Yes\",1,0)*\n(U$10*OFFSET('Efficiency Distributions'!$D$10,MATCH($C145,'Efficiency Distributions'!$C$9:$C$87,0)+RIGHT($E153),0)\n+U$11*OFFSET('Efficiency Distributions'!$E$10,MATCH($C145,'Efficiency Distributions'!$C$9:$C$87,0)+RIGHT($E153),0))\n/SUM(U$10:U$11)","v":0},{"$f":"IF(INDEX(PC_MAPPING,RIGHT($C145,1),MATCH($E$2,'Data by Building Type'!$D$22:$F$22,0))=\"Yes\",1,0)*\n(V$10*OFFSET('Efficiency Distributions'!$D$10,MATCH($C145,'Efficiency Distributions'!$C$9:$C$87,0)+RIGHT($E153),0)\n+V$11*OFFSET('Efficiency Distributions'!$E$10,MATCH($C145,'Efficiency Distributions'!$C$9:$C$87,0)+RIGHT($E153),0))\n/SUM(V$10:V$11)","v":0},{"$f":"IF(INDEX(PC_MAPPING,RIGHT($C145,1),MATCH($E$2,'Data by Building Type'!$D$22:$F$22,0))=\"Yes\",1,0)*\n(W$10*OFFSET('Efficiency Distributions'!$D$10,MATCH($C145,'Efficiency Distributions'!$C$9:$C$87,0)+RIGHT($E153),0)\n+W$11*OFFSET('Efficiency Distributions'!$E$10,MATCH($C145,'Efficiency Distributions'!$C$9:$C$87,0)+RIGHT($E153),0))\n/SUM(W$10:W$11)","v":0},{"$f":"IF(INDEX(PC_MAPPING,RIGHT($C145,1),MATCH($E$2,'Data by Building Type'!$D$22:$F$22,0))=\"Yes\",1,0)*\n(X$10*OFFSET('Efficiency Distributions'!$D$10,MATCH($C145,'Efficiency Distributions'!$C$9:$C$87,0)+RIGHT($E153),0)\n+X$11*OFFSET('Efficiency Distributions'!$E$10,MATCH($C145,'Efficiency Distributions'!$C$9:$C$87,0)+RIGHT($E153),0))\n/SUM(X$10:X$11)","v":0},{"$f":"IF(INDEX(PC_MAPPING,RIGHT($C145,1),MATCH($E$2,'Data by Building Type'!$D$22:$F$22,0))=\"Yes\",1,0)*\n(Y$10*OFFSET('Efficiency Distributions'!$D$10,MATCH($C145,'Efficiency Distributions'!$C$9:$C$87,0)+RIGHT($E153),0)\n+Y$11*OFFSET('Efficiency Distributions'!$E$10,MATCH($C145,'Efficiency Distributions'!$C$9:$C$87,0)+RIGHT($E153),0))\n/SUM(Y$10:Y$11)","v":0},{"$f":"IF(INDEX(PC_MAPPING,RIGHT($C145,1),MATCH($E$2,'Data by Building Type'!$D$22:$F$22,0))=\"Yes\",1,0)*\n(Z$10*OFFSET('Efficiency Distributions'!$D$10,MATCH($C145,'Efficiency Distributions'!$C$9:$C$87,0)+RIGHT($E153),0)\n+Z$11*OFFSET('Efficiency Distributions'!$E$10,MATCH($C145,'Efficiency Distributions'!$C$9:$C$87,0)+RIGHT($E153),0))\n/SUM(Z$10:Z$11)","v":0},{"$f":"IF(INDEX(PC_MAPPING,RIGHT($C145,1),MATCH($E$2,'Data by Building Type'!$D$22:$F$22,0))=\"Yes\",1,0)*\n(AA$10*OFFSET('Efficiency Distributions'!$D$10,MATCH($C145,'Efficiency Distributions'!$C$9:$C$87,0)+RIGHT($E153),0)\n+AA$11*OFFSET('Efficiency Distributions'!$E$10,MATCH($C145,'Efficiency Distributions'!$C$9:$C$87,0)+RIGHT($E153),0))\n/SUM(AA$10:AA$11)","v":0},{"$f":"IF(INDEX(PC_MAPPING,RIGHT($C145,1),MATCH($E$2,'Data by Building Type'!$D$22:$F$22,0))=\"Yes\",1,0)*\n(AB$10*OFFSET('Efficiency Distributions'!$D$10,MATCH($C145,'Efficiency Distributions'!$C$9:$C$87,0)+RIGHT($E153),0)\n+AB$11*OFFSET('Efficiency Distributions'!$E$10,MATCH($C145,'Efficiency Distributions'!$C$9:$C$87,0)+RIGHT($E153),0))\n/SUM(AB$10:AB$11)","v":0},{"$f":"IF(INDEX(PC_MAPPING,RIGHT($C145,1),MATCH($E$2,'Data by Building Type'!$D$22:$F$22,0))=\"Yes\",1,0)*\n(AC$10*OFFSET('Efficiency Distributions'!$D$10,MATCH($C145,'Efficiency Distributions'!$C$9:$C$87,0)+RIGHT($E153),0)\n+AC$11*OFFSET('Efficiency Distributions'!$E$10,MATCH($C145,'Efficiency Distributions'!$C$9:$C$87,0)+RIGHT($E153),0))\n/SUM(AC$10:AC$11)","v":0},{"$f":"IF(INDEX(PC_MAPPING,RIGHT($C145,1),MATCH($E$2,'Data by Building Type'!$D$22:$F$22,0))=\"Yes\",1,0)*\n(AD$10*OFFSET('Efficiency Distributions'!$D$10,MATCH($C145,'Efficiency Distributions'!$C$9:$C$87,0)+RIGHT($E153),0)\n+AD$11*OFFSET('Efficiency Distributions'!$E$10,MATCH($C145,'Efficiency Distributions'!$C$9:$C$87,0)+RIGHT($E153),0))\n/SUM(AD$10:AD$11)","v":0},{"$f":"IF(INDEX(PC_MAPPING,RIGHT($C145,1),MATCH($E$2,'Data by Building Type'!$D$22:$F$22,0))=\"Yes\",1,0)*\n(AE$10*OFFSET('Efficiency Distributions'!$D$10,MATCH($C145,'Efficiency Distributions'!$C$9:$C$87,0)+RIGHT($E153),0)\n+AE$11*OFFSET('Efficiency Distributions'!$E$10,MATCH($C145,'Efficiency Distributions'!$C$9:$C$87,0)+RIGHT($E153),0))\n/SUM(AE$10:AE$11)","v":0},{"$f":"IF(INDEX(PC_MAPPING,RIGHT($C145,1),MATCH($E$2,'Data by Building Type'!$D$22:$F$22,0))=\"Yes\",1,0)*\n(AF$10*OFFSET('Efficiency Distributions'!$D$10,MATCH($C145,'Efficiency Distributions'!$C$9:$C$87,0)+RIGHT($E153),0)\n+AF$11*OFFSET('Efficiency Distributions'!$E$10,MATCH($C145,'Efficiency Distributions'!$C$9:$C$87,0)+RIGHT($E153),0))\n/SUM(AF$10:AF$11)","v":0},{"$f":"IF(INDEX(PC_MAPPING,RIGHT($C145,1),MATCH($E$2,'Data by Building Type'!$D$22:$F$22,0))=\"Yes\",1,0)*\n(AG$10*OFFSET('Efficiency Distributions'!$D$10,MATCH($C145,'Efficiency Distributions'!$C$9:$C$87,0)+RIGHT($E153),0)\n+AG$11*OFFSET('Efficiency Distributions'!$E$10,MATCH($C145,'Efficiency Distributions'!$C$9:$C$87,0)+RIGHT($E153),0))\n/SUM(AG$10:AG$11)","v":0},{"$f":"IF(INDEX(PC_MAPPING,RIGHT($C145,1),MATCH($E$2,'Data by Building Type'!$D$22:$F$22,0))=\"Yes\",1,0)*\n(AH$10*OFFSET('Efficiency Distributions'!$D$10,MATCH($C145,'Efficiency Distributions'!$C$9:$C$87,0)+RIGHT($E153),0)\n+AH$11*OFFSET('Efficiency Distributions'!$E$10,MATCH($C145,'Efficiency Distributions'!$C$9:$C$87,0)+RIGHT($E153),0))\n/SUM(AH$10:AH$11)","v":0},{"$f":"IF(INDEX(PC_MAPPING,RIGHT($C145,1),MATCH($E$2,'Data by Building Type'!$D$22:$F$22,0))=\"Yes\",1,0)*\n(AI$10*OFFSET('Efficiency Distributions'!$D$10,MATCH($C145,'Efficiency Distributions'!$C$9:$C$87,0)+RIGHT($E153),0)\n+AI$11*OFFSET('Efficiency Distributions'!$E$10,MATCH($C145,'Efficiency Distributions'!$C$9:$C$87,0)+RIGHT($E153),0))\n/SUM(AI$10:AI$11)","v":0},{"$f":"IF(INDEX(PC_MAPPING,RIGHT($C145,1),MATCH($E$2,'Data by Building Type'!$D$22:$F$22,0))=\"Yes\",1,0)*\n(AJ$10*OFFSET('Efficiency Distributions'!$D$10,MATCH($C145,'Efficiency Distributions'!$C$9:$C$87,0)+RIGHT($E153),0)\n+AJ$11*OFFSET('Efficiency Distributions'!$E$10,MATCH($C145,'Efficiency Distributions'!$C$9:$C$87,0)+RIGHT($E153),0))\n/SUM(AJ$10:AJ$11)","v":0},{"$f":"IF(INDEX(PC_MAPPING,RIGHT($C145,1),MATCH($E$2,'Data by Building Type'!$D$22:$F$22,0))=\"Yes\",1,0)*\n(AK$10*OFFSET('Efficiency Distributions'!$D$10,MATCH($C145,'Efficiency Distributions'!$C$9:$C$87,0)+RIGHT($E153),0)\n+AK$11*OFFSET('Efficiency Distributions'!$E$10,MATCH($C145,'Efficiency Distributions'!$C$9:$C$87,0)+RIGHT($E153),0))\n/SUM(AK$10:AK$11)","v":0},{"$f":"IF(INDEX(PC_MAPPING,RIGHT($C145,1),MATCH($E$2,'Data by Building Type'!$D$22:$F$22,0))=\"Yes\",1,0)*\n(AL$10*OFFSET('Efficiency Distributions'!$D$10,MATCH($C145,'Efficiency Distributions'!$C$9:$C$87,0)+RIGHT($E153),0)\n+AL$11*OFFSET('Efficiency Distributions'!$E$10,MATCH($C145,'Efficiency Distributions'!$C$9:$C$87,0)+RIGHT($E153),0))\n/SUM(AL$10:AL$11)","v":0},{"$f":"IF(INDEX(PC_MAPPING,RIGHT($C145,1),MATCH($E$2,'Data by Building Type'!$D$22:$F$22,0))=\"Yes\",1,0)*\n(AM$10*OFFSET('Efficiency Distributions'!$D$10,MATCH($C145,'Efficiency Distributions'!$C$9:$C$87,0)+RIGHT($E153),0)\n+AM$11*OFFSET('Efficiency Distributions'!$E$10,MATCH($C145,'Efficiency Distributions'!$C$9:$C$87,0)+RIGHT($E153),0))\n/SUM(AM$10:AM$11)","v":0},{"$f":"IF(INDEX(PC_MAPPING,RIGHT($C145,1),MATCH($E$2,'Data by Building Type'!$D$22:$F$22,0))=\"Yes\",1,0)*\n(AN$10*OFFSET('Efficiency Distributions'!$D$10,MATCH($C145,'Efficiency Distributions'!$C$9:$C$87,0)+RIGHT($E153),0)\n+AN$11*OFFSET('Efficiency Distributions'!$E$10,MATCH($C145,'Efficiency Distributions'!$C$9:$C$87,0)+RIGHT($E153),0))\n/SUM(AN$10:AN$11)","v":0},{"$f":"IF(INDEX(PC_MAPPING,RIGHT($C145,1),MATCH($E$2,'Data by Building Type'!$D$22:$F$22,0))=\"Yes\",1,0)*\n(AO$10*OFFSET('Efficiency Distributions'!$D$10,MATCH($C145,'Efficiency Distributions'!$C$9:$C$87,0)+RIGHT($E153),0)\n+AO$11*OFFSET('Efficiency Distributions'!$E$10,MATCH($C145,'Efficiency Distributions'!$C$9:$C$87,0)+RIGHT($E153),0))\n/SUM(AO$10:AO$11)","v":0},{"$f":"IF(INDEX(PC_MAPPING,RIGHT($C145,1),MATCH($E$2,'Data by Building Type'!$D$22:$F$22,0))=\"Yes\",1,0)*\n(AP$10*OFFSET('Efficiency Distributions'!$D$10,MATCH($C145,'Efficiency Distributions'!$C$9:$C$87,0)+RIGHT($E153),0)\n+AP$11*OFFSET('Efficiency Distributions'!$E$10,MATCH($C145,'Efficiency Distributions'!$C$9:$C$87,0)+RIGHT($E153),0))\n/SUM(AP$10:AP$11)","v":0},{"$f":"IF(INDEX(PC_MAPPING,RIGHT($C145,1),MATCH($E$2,'Data by Building Type'!$D$22:$F$22,0))=\"Yes\",1,0)*\n(AQ$10*OFFSET('Efficiency Distributions'!$D$10,MATCH($C145,'Efficiency Distributions'!$C$9:$C$87,0)+RIGHT($E153),0)\n+AQ$11*OFFSET('Efficiency Distributions'!$E$10,MATCH($C145,'Efficiency Distributions'!$C$9:$C$87,0)+RIGHT($E153),0))\n/SUM(AQ$10:AQ$11)","v":0},{"$f":"IF(INDEX(PC_MAPPING,RIGHT($C145,1),MATCH($E$2,'Data by Building Type'!$D$22:$F$22,0))=\"Yes\",1,0)*\n(AR$10*OFFSET('Efficiency Distributions'!$D$10,MATCH($C145,'Efficiency Distributions'!$C$9:$C$87,0)+RIGHT($E153),0)\n+AR$11*OFFSET('Efficiency Distributions'!$E$10,MATCH($C145,'Efficiency Distributions'!$C$9:$C$87,0)+RIGHT($E153),0))\n/SUM(AR$10:AR$11)","v":0},{"$f":"IF(INDEX(PC_MAPPING,RIGHT($C145,1),MATCH($E$2,'Data by Building Type'!$D$22:$F$22,0))=\"Yes\",1,0)*\n(AS$10*OFFSET('Efficiency Distributions'!$D$10,MATCH($C145,'Efficiency Distributions'!$C$9:$C$87,0)+RIGHT($E153),0)\n+AS$11*OFFSET('Efficiency Distributions'!$E$10,MATCH($C145,'Efficiency Distributions'!$C$9:$C$87,0)+RIGHT($E153),0))\n/SUM(AS$10:AS$11)","v":0},{"$f":"IF(INDEX(PC_MAPPING,RIGHT($C145,1),MATCH($E$2,'Data by Building Type'!$D$22:$F$22,0))=\"Yes\",1,0)*\n(AT$10*OFFSET('Efficiency Distributions'!$D$10,MATCH($C145,'Efficiency Distributions'!$C$9:$C$87,0)+RIGHT($E153),0)\n+AT$11*OFFSET('Efficiency Distributions'!$E$10,MATCH($C145,'Efficiency Distributions'!$C$9:$C$87,0)+RIGHT($E153),0))\n/SUM(AT$10:AT$11)","v":0},{"$f":"IF(INDEX(PC_MAPPING,RIGHT($C145,1),MATCH($E$2,'Data by Building Type'!$D$22:$F$22,0))=\"Yes\",1,0)*\n(AU$10*OFFSET('Efficiency Distributions'!$D$10,MATCH($C145,'Efficiency Distributions'!$C$9:$C$87,0)+RIGHT($E153),0)\n+AU$11*OFFSET('Efficiency Distributions'!$E$10,MATCH($C145,'Efficiency Distributions'!$C$9:$C$87,0)+RIGHT($E153),0))\n/SUM(AU$10:AU$11)","v":0},{"$f":"IF(INDEX(PC_MAPPING,RIGHT($C145,1),MATCH($E$2,'Data by Building Type'!$D$22:$F$22,0))=\"Yes\",1,0)*\n(AV$10*OFFSET('Efficiency Distributions'!$D$10,MATCH($C145,'Efficiency Distributions'!$C$9:$C$87,0)+RIGHT($E153),0)\n+AV$11*OFFSET('Efficiency Distributions'!$E$10,MATCH($C145,'Efficiency Distributions'!$C$9:$C$87,0)+RIGHT($E153),0))\n/SUM(AV$10:AV$11)","v":0},{"$f":"IF(INDEX(PC_MAPPING,RIGHT($C145,1),MATCH($E$2,'Data by Building Type'!$D$22:$F$22,0))=\"Yes\",1,0)*\n(AW$10*OFFSET('Efficiency Distributions'!$D$10,MATCH($C145,'Efficiency Distributions'!$C$9:$C$87,0)+RIGHT($E153),0)\n+AW$11*OFFSET('Efficiency Distributions'!$E$10,MATCH($C145,'Efficiency Distributions'!$C$9:$C$87,0)+RIGHT($E153),0))\n/SUM(AW$10:AW$11)","v":0},{"$f":"IF(INDEX(PC_MAPPING,RIGHT($C145,1),MATCH($E$2,'Data by Building Type'!$D$22:$F$22,0))=\"Yes\",1,0)*\n(AX$10*OFFSET('Efficiency Distributions'!$D$10,MATCH($C145,'Efficiency Distributions'!$C$9:$C$87,0)+RIGHT($E153),0)\n+AX$11*OFFSET('Efficiency Distributions'!$E$10,MATCH($C145,'Efficiency Distributions'!$C$9:$C$87,0)+RIGHT($E153),0))\n/SUM(AX$10:AX$11)","v":0},{"$f":"IF(INDEX(PC_MAPPING,RIGHT($C145,1),MATCH($E$2,'Data by Building Type'!$D$22:$F$22,0))=\"Yes\",1,0)*\n(AY$10*OFFSET('Efficiency Distributions'!$D$10,MATCH($C145,'Efficiency Distributions'!$C$9:$C$87,0)+RIGHT($E153),0)\n+AY$11*OFFSET('Efficiency Distributions'!$E$10,MATCH($C145,'Efficiency Distributions'!$C$9:$C$87,0)+RIGHT($E153),0))\n/SUM(AY$10:AY$11)","v":0},{"$f":"IF(INDEX(PC_MAPPING,RIGHT($C145,1),MATCH($E$2,'Data by Building Type'!$D$22:$F$22,0))=\"Yes\",1,0)*\n(AZ$10*OFFSET('Efficiency Distributions'!$D$10,MATCH($C145,'Efficiency Distributions'!$C$9:$C$87,0)+RIGHT($E153),0)\n+AZ$11*OFFSET('Efficiency Distributions'!$E$10,MATCH($C145,'Efficiency Distributions'!$C$9:$C$87,0)+RIGHT($E153),0))\n/SUM(AZ$10:AZ$11)","v":0},{"$f":"IF(INDEX(PC_MAPPING,RIGHT($C145,1),MATCH($E$2,'Data by Building Type'!$D$22:$F$22,0))=\"Yes\",1,0)*\n(BA$10*OFFSET('Efficiency Distributions'!$D$10,MATCH($C145,'Efficiency Distributions'!$C$9:$C$87,0)+RIGHT($E153),0)\n+BA$11*OFFSET('Efficiency Distributions'!$E$10,MATCH($C145,'Efficiency Distributions'!$C$9:$C$87,0)+RIGHT($E153),0))\n/SUM(BA$10:BA$11)","v":0},{"$f":"IF(INDEX(PC_MAPPING,RIGHT($C145,1),MATCH($E$2,'Data by Building Type'!$D$22:$F$22,0))=\"Yes\",1,0)*\n(BB$10*OFFSET('Efficiency Distributions'!$D$10,MATCH($C145,'Efficiency Distributions'!$C$9:$C$87,0)+RIGHT($E153),0)\n+BB$11*OFFSET('Efficiency Distributions'!$E$10,MATCH($C145,'Efficiency Distributions'!$C$9:$C$87,0)+RIGHT($E153),0))\n/SUM(BB$10:BB$11)","v":0},{"$f":"IF(INDEX(PC_MAPPING,RIGHT($C145,1),MATCH($E$2,'Data by Building Type'!$D$22:$F$22,0))=\"Yes\",1,0)*\n(BC$10*OFFSET('Efficiency Distributions'!$D$10,MATCH($C145,'Efficiency Distributions'!$C$9:$C$87,0)+RIGHT($E153),0)\n+BC$11*OFFSET('Efficiency Distributions'!$E$10,MATCH($C145,'Efficiency Distributions'!$C$9:$C$87,0)+RIGHT($E153),0))\n/SUM(BC$10:BC$11)","v":0},{"$f":"IF(INDEX(PC_MAPPING,RIGHT($C145,1),MATCH($E$2,'Data by Building Type'!$D$22:$F$22,0))=\"Yes\",1,0)*\n(BD$10*OFFSET('Efficiency Distributions'!$D$10,MATCH($C145,'Efficiency Distributions'!$C$9:$C$87,0)+RIGHT($E153),0)\n+BD$11*OFFSET('Efficiency Distributions'!$E$10,MATCH($C145,'Efficiency Distributions'!$C$9:$C$87,0)+RIGHT($E153),0))\n/SUM(BD$10:BD$11)","v":0},{"$f":"IF(INDEX(PC_MAPPING,RIGHT($C145,1),MATCH($E$2,'Data by Building Type'!$D$22:$F$22,0))=\"Yes\",1,0)*\n(BE$10*OFFSET('Efficiency Distributions'!$D$10,MATCH($C145,'Efficiency Distributions'!$C$9:$C$87,0)+RIGHT($E153),0)\n+BE$11*OFFSET('Efficiency Distributions'!$E$10,MATCH($C145,'Efficiency Distributions'!$C$9:$C$87,0)+RIGHT($E153),0))\n/SUM(BE$10:BE$11)","v":0},{"$f":"IF(INDEX(PC_MAPPING,RIGHT($C145,1),MATCH($E$2,'Data by Building Type'!$D$22:$F$22,0))=\"Yes\",1,0)*\n(BF$10*OFFSET('Efficiency Distributions'!$D$10,MATCH($C145,'Efficiency Distributions'!$C$9:$C$87,0)+RIGHT($E153),0)\n+BF$11*OFFSET('Efficiency Distributions'!$E$10,MATCH($C145,'Efficiency Distributions'!$C$9:$C$87,0)+RIGHT($E153),0))\n/SUM(BF$10:BF$11)","v":0},{"$f":"IF(INDEX(PC_MAPPING,RIGHT($C145,1),MATCH($E$2,'Data by Building Type'!$D$22:$F$22,0))=\"Yes\",1,0)*\n(BG$10*OFFSET('Efficiency Distributions'!$D$10,MATCH($C145,'Efficiency Distributions'!$C$9:$C$87,0)+RIGHT($E153),0)\n+BG$11*OFFSET('Efficiency Distributions'!$E$10,MATCH($C145,'Efficiency Distributions'!$C$9:$C$87,0)+RIGHT($E153),0))\n/SUM(BG$10:BG$11)","v":0}]
[null,null,null,null,"EL5",{"$f":"IF(INDEX(PC_MAPPING,RIGHT($C145,1),MATCH($E$2,'Data by Building Type'!$D$22:$F$22,0))=\"Yes\",1,0)*\n(F$10*OFFSET('Efficiency Distributions'!$D$10,MATCH($C145,'Efficiency Distributions'!$C$9:$C$87,0)+RIGHT($E154),0)\n+F$11*OFFSET('Efficiency Distributions'!$E$10,MATCH($C145,'Efficiency Distributions'!$C$9:$C$87,0)+RIGHT($E154),0))\n/SUM(F$10:F$11)","v":0},{"$f":"IF(INDEX(PC_MAPPING,RIGHT($C145,1),MATCH($E$2,'Data by Building Type'!$D$22:$F$22,0))=\"Yes\",1,0)*\n(G$10*OFFSET('Efficiency Distributions'!$D$10,MATCH($C145,'Efficiency Distributions'!$C$9:$C$87,0)+RIGHT($E154),0)\n+G$11*OFFSET('Efficiency Distributions'!$E$10,MATCH($C145,'Efficiency Distributions'!$C$9:$C$87,0)+RIGHT($E154),0))\n/SUM(G$10:G$11)","v":0},{"$f":"IF(INDEX(PC_MAPPING,RIGHT($C145,1),MATCH($E$2,'Data by Building Type'!$D$22:$F$22,0))=\"Yes\",1,0)*\n(H$10*OFFSET('Efficiency Distributions'!$D$10,MATCH($C145,'Efficiency Distributions'!$C$9:$C$87,0)+RIGHT($E154),0)\n+H$11*OFFSET('Efficiency Distributions'!$E$10,MATCH($C145,'Efficiency Distributions'!$C$9:$C$87,0)+RIGHT($E154),0))\n/SUM(H$10:H$11)","v":0},{"$f":"IF(INDEX(PC_MAPPING,RIGHT($C145,1),MATCH($E$2,'Data by Building Type'!$D$22:$F$22,0))=\"Yes\",1,0)*\n(I$10*OFFSET('Efficiency Distributions'!$D$10,MATCH($C145,'Efficiency Distributions'!$C$9:$C$87,0)+RIGHT($E154),0)\n+I$11*OFFSET('Efficiency Distributions'!$E$10,MATCH($C145,'Efficiency Distributions'!$C$9:$C$87,0)+RIGHT($E154),0))\n/SUM(I$10:I$11)","v":0},{"$f":"IF(INDEX(PC_MAPPING,RIGHT($C145,1),MATCH($E$2,'Data by Building Type'!$D$22:$F$22,0))=\"Yes\",1,0)*\n(J$10*OFFSET('Efficiency Distributions'!$D$10,MATCH($C145,'Efficiency Distributions'!$C$9:$C$87,0)+RIGHT($E154),0)\n+J$11*OFFSET('Efficiency Distributions'!$E$10,MATCH($C145,'Efficiency Distributions'!$C$9:$C$87,0)+RIGHT($E154),0))\n/SUM(J$10:J$11)","v":0},{"$f":"IF(INDEX(PC_MAPPING,RIGHT($C145,1),MATCH($E$2,'Data by Building Type'!$D$22:$F$22,0))=\"Yes\",1,0)*\n(K$10*OFFSET('Efficiency Distributions'!$D$10,MATCH($C145,'Efficiency Distributions'!$C$9:$C$87,0)+RIGHT($E154),0)\n+K$11*OFFSET('Efficiency Distributions'!$E$10,MATCH($C145,'Efficiency Distributions'!$C$9:$C$87,0)+RIGHT($E154),0))\n/SUM(K$10:K$11)","v":0},{"$f":"IF(INDEX(PC_MAPPING,RIGHT($C145,1),MATCH($E$2,'Data by Building Type'!$D$22:$F$22,0))=\"Yes\",1,0)*\n(L$10*OFFSET('Efficiency Distributions'!$D$10,MATCH($C145,'Efficiency Distributions'!$C$9:$C$87,0)+RIGHT($E154),0)\n+L$11*OFFSET('Efficiency Distributions'!$E$10,MATCH($C145,'Efficiency Distributions'!$C$9:$C$87,0)+RIGHT($E154),0))\n/SUM(L$10:L$11)","v":0},{"$f":"IF(INDEX(PC_MAPPING,RIGHT($C145,1),MATCH($E$2,'Data by Building Type'!$D$22:$F$22,0))=\"Yes\",1,0)*\n(M$10*OFFSET('Efficiency Distributions'!$D$10,MATCH($C145,'Efficiency Distributions'!$C$9:$C$87,0)+RIGHT($E154),0)\n+M$11*OFFSET('Efficiency Distributions'!$E$10,MATCH($C145,'Efficiency Distributions'!$C$9:$C$87,0)+RIGHT($E154),0))\n/SUM(M$10:M$11)","v":0},{"$f":"IF(INDEX(PC_MAPPING,RIGHT($C145,1),MATCH($E$2,'Data by Building Type'!$D$22:$F$22,0))=\"Yes\",1,0)*\n(N$10*OFFSET('Efficiency Distributions'!$D$10,MATCH($C145,'Efficiency Distributions'!$C$9:$C$87,0)+RIGHT($E154),0)\n+N$11*OFFSET('Efficiency Distributions'!$E$10,MATCH($C145,'Efficiency Distributions'!$C$9:$C$87,0)+RIGHT($E154),0))\n/SUM(N$10:N$11)","v":0},{"$f":"IF(INDEX(PC_MAPPING,RIGHT($C145,1),MATCH($E$2,'Data by Building Type'!$D$22:$F$22,0))=\"Yes\",1,0)*\n(O$10*OFFSET('Efficiency Distributions'!$D$10,MATCH($C145,'Efficiency Distributions'!$C$9:$C$87,0)+RIGHT($E154),0)\n+O$11*OFFSET('Efficiency Distributions'!$E$10,MATCH($C145,'Efficiency Distributions'!$C$9:$C$87,0)+RIGHT($E154),0))\n/SUM(O$10:O$11)","v":0},{"$f":"IF(INDEX(PC_MAPPING,RIGHT($C145,1),MATCH($E$2,'Data by Building Type'!$D$22:$F$22,0))=\"Yes\",1,0)*\n(P$10*OFFSET('Efficiency Distributions'!$D$10,MATCH($C145,'Efficiency Distributions'!$C$9:$C$87,0)+RIGHT($E154),0)\n+P$11*OFFSET('Efficiency Distributions'!$E$10,MATCH($C145,'Efficiency Distributions'!$C$9:$C$87,0)+RIGHT($E154),0))\n/SUM(P$10:P$11)","v":0},{"$f":"IF(INDEX(PC_MAPPING,RIGHT($C145,1),MATCH($E$2,'Data by Building Type'!$D$22:$F$22,0))=\"Yes\",1,0)*\n(Q$10*OFFSET('Efficiency Distributions'!$D$10,MATCH($C145,'Efficiency Distributions'!$C$9:$C$87,0)+RIGHT($E154),0)\n+Q$11*OFFSET('Efficiency Distributions'!$E$10,MATCH($C145,'Efficiency Distributions'!$C$9:$C$87,0)+RIGHT($E154),0))\n/SUM(Q$10:Q$11)","v":0},{"$f":"IF(INDEX(PC_MAPPING,RIGHT($C145,1),MATCH($E$2,'Data by Building Type'!$D$22:$F$22,0))=\"Yes\",1,0)*\n(R$10*OFFSET('Efficiency Distributions'!$D$10,MATCH($C145,'Efficiency Distributions'!$C$9:$C$87,0)+RIGHT($E154),0)\n+R$11*OFFSET('Efficiency Distributions'!$E$10,MATCH($C145,'Efficiency Distributions'!$C$9:$C$87,0)+RIGHT($E154),0))\n/SUM(R$10:R$11)","v":0},{"$f":"IF(INDEX(PC_MAPPING,RIGHT($C145,1),MATCH($E$2,'Data by Building Type'!$D$22:$F$22,0))=\"Yes\",1,0)*\n(S$10*OFFSET('Efficiency Distributions'!$D$10,MATCH($C145,'Efficiency Distributions'!$C$9:$C$87,0)+RIGHT($E154),0)\n+S$11*OFFSET('Efficiency Distributions'!$E$10,MATCH($C145,'Efficiency Distributions'!$C$9:$C$87,0)+RIGHT($E154),0))\n/SUM(S$10:S$11)","v":0},{"$f":"IF(INDEX(PC_MAPPING,RIGHT($C145,1),MATCH($E$2,'Data by Building Type'!$D$22:$F$22,0))=\"Yes\",1,0)*\n(T$10*OFFSET('Efficiency Distributions'!$D$10,MATCH($C145,'Efficiency Distributions'!$C$9:$C$87,0)+RIGHT($E154),0)\n+T$11*OFFSET('Efficiency Distributions'!$E$10,MATCH($C145,'Efficiency Distributions'!$C$9:$C$87,0)+RIGHT($E154),0))\n/SUM(T$10:T$11)","v":0},{"$f":"IF(INDEX(PC_MAPPING,RIGHT($C145,1),MATCH($E$2,'Data by Building Type'!$D$22:$F$22,0))=\"Yes\",1,0)*\n(U$10*OFFSET('Efficiency Distributions'!$D$10,MATCH($C145,'Efficiency Distributions'!$C$9:$C$87,0)+RIGHT($E154),0)\n+U$11*OFFSET('Efficiency Distributions'!$E$10,MATCH($C145,'Efficiency Distributions'!$C$9:$C$87,0)+RIGHT($E154),0))\n/SUM(U$10:U$11)","v":0},{"$f":"IF(INDEX(PC_MAPPING,RIGHT($C145,1),MATCH($E$2,'Data by Building Type'!$D$22:$F$22,0))=\"Yes\",1,0)*\n(V$10*OFFSET('Efficiency Distributions'!$D$10,MATCH($C145,'Efficiency Distributions'!$C$9:$C$87,0)+RIGHT($E154),0)\n+V$11*OFFSET('Efficiency Distributions'!$E$10,MATCH($C145,'Efficiency Distributions'!$C$9:$C$87,0)+RIGHT($E154),0))\n/SUM(V$10:V$11)","v":0},{"$f":"IF(INDEX(PC_MAPPING,RIGHT($C145,1),MATCH($E$2,'Data by Building Type'!$D$22:$F$22,0))=\"Yes\",1,0)*\n(W$10*OFFSET('Efficiency Distributions'!$D$10,MATCH($C145,'Efficiency Distributions'!$C$9:$C$87,0)+RIGHT($E154),0)\n+W$11*OFFSET('Efficiency Distributions'!$E$10,MATCH($C145,'Efficiency Distributions'!$C$9:$C$87,0)+RIGHT($E154),0))\n/SUM(W$10:W$11)","v":0},{"$f":"IF(INDEX(PC_MAPPING,RIGHT($C145,1),MATCH($E$2,'Data by Building Type'!$D$22:$F$22,0))=\"Yes\",1,0)*\n(X$10*OFFSET('Efficiency Distributions'!$D$10,MATCH($C145,'Efficiency Distributions'!$C$9:$C$87,0)+RIGHT($E154),0)\n+X$11*OFFSET('Efficiency Distributions'!$E$10,MATCH($C145,'Efficiency Distributions'!$C$9:$C$87,0)+RIGHT($E154),0))\n/SUM(X$10:X$11)","v":0},{"$f":"IF(INDEX(PC_MAPPING,RIGHT($C145,1),MATCH($E$2,'Data by Building Type'!$D$22:$F$22,0))=\"Yes\",1,0)*\n(Y$10*OFFSET('Efficiency Distributions'!$D$10,MATCH($C145,'Efficiency Distributions'!$C$9:$C$87,0)+RIGHT($E154),0)\n+Y$11*OFFSET('Efficiency Distributions'!$E$10,MATCH($C145,'Efficiency Distributions'!$C$9:$C$87,0)+RIGHT($E154),0))\n/SUM(Y$10:Y$11)","v":0},{"$f":"IF(INDEX(PC_MAPPING,RIGHT($C145,1),MATCH($E$2,'Data by Building Type'!$D$22:$F$22,0))=\"Yes\",1,0)*\n(Z$10*OFFSET('Efficiency Distributions'!$D$10,MATCH($C145,'Efficiency Distributions'!$C$9:$C$87,0)+RIGHT($E154),0)\n+Z$11*OFFSET('Efficiency Distributions'!$E$10,MATCH($C145,'Efficiency Distributions'!$C$9:$C$87,0)+RIGHT($E154),0))\n/SUM(Z$10:Z$11)","v":0},{"$f":"IF(INDEX(PC_MAPPING,RIGHT($C145,1),MATCH($E$2,'Data by Building Type'!$D$22:$F$22,0))=\"Yes\",1,0)*\n(AA$10*OFFSET('Efficiency Distributions'!$D$10,MATCH($C145,'Efficiency Distributions'!$C$9:$C$87,0)+RIGHT($E154),0)\n+AA$11*OFFSET('Efficiency Distributions'!$E$10,MATCH($C145,'Efficiency Distributions'!$C$9:$C$87,0)+RIGHT($E154),0))\n/SUM(AA$10:AA$11)","v":0},{"$f":"IF(INDEX(PC_MAPPING,RIGHT($C145,1),MATCH($E$2,'Data by Building Type'!$D$22:$F$22,0))=\"Yes\",1,0)*\n(AB$10*OFFSET('Efficiency Distributions'!$D$10,MATCH($C145,'Efficiency Distributions'!$C$9:$C$87,0)+RIGHT($E154),0)\n+AB$11*OFFSET('Efficiency Distributions'!$E$10,MATCH($C145,'Efficiency Distributions'!$C$9:$C$87,0)+RIGHT($E154),0))\n/SUM(AB$10:AB$11)","v":0},{"$f":"IF(INDEX(PC_MAPPING,RIGHT($C145,1),MATCH($E$2,'Data by Building Type'!$D$22:$F$22,0))=\"Yes\",1,0)*\n(AC$10*OFFSET('Efficiency Distributions'!$D$10,MATCH($C145,'Efficiency Distributions'!$C$9:$C$87,0)+RIGHT($E154),0)\n+AC$11*OFFSET('Efficiency Distributions'!$E$10,MATCH($C145,'Efficiency Distributions'!$C$9:$C$87,0)+RIGHT($E154),0))\n/SUM(AC$10:AC$11)","v":0},{"$f":"IF(INDEX(PC_MAPPING,RIGHT($C145,1),MATCH($E$2,'Data by Building Type'!$D$22:$F$22,0))=\"Yes\",1,0)*\n(AD$10*OFFSET('Efficiency Distributions'!$D$10,MATCH($C145,'Efficiency Distributions'!$C$9:$C$87,0)+RIGHT($E154),0)\n+AD$11*OFFSET('Efficiency Distributions'!$E$10,MATCH($C145,'Efficiency Distributions'!$C$9:$C$87,0)+RIGHT($E154),0))\n/SUM(AD$10:AD$11)","v":0},{"$f":"IF(INDEX(PC_MAPPING,RIGHT($C145,1),MATCH($E$2,'Data by Building Type'!$D$22:$F$22,0))=\"Yes\",1,0)*\n(AE$10*OFFSET('Efficiency Distributions'!$D$10,MATCH($C145,'Efficiency Distributions'!$C$9:$C$87,0)+RIGHT($E154),0)\n+AE$11*OFFSET('Efficiency Distributions'!$E$10,MATCH($C145,'Efficiency Distributions'!$C$9:$C$87,0)+RIGHT($E154),0))\n/SUM(AE$10:AE$11)","v":0},{"$f":"IF(INDEX(PC_MAPPING,RIGHT($C145,1),MATCH($E$2,'Data by Building Type'!$D$22:$F$22,0))=\"Yes\",1,0)*\n(AF$10*OFFSET('Efficiency Distributions'!$D$10,MATCH($C145,'Efficiency Distributions'!$C$9:$C$87,0)+RIGHT($E154),0)\n+AF$11*OFFSET('Efficiency Distributions'!$E$10,MATCH($C145,'Efficiency Distributions'!$C$9:$C$87,0)+RIGHT($E154),0))\n/SUM(AF$10:AF$11)","v":0},{"$f":"IF(INDEX(PC_MAPPING,RIGHT($C145,1),MATCH($E$2,'Data by Building Type'!$D$22:$F$22,0))=\"Yes\",1,0)*\n(AG$10*OFFSET('Efficiency Distributions'!$D$10,MATCH($C145,'Efficiency Distributions'!$C$9:$C$87,0)+RIGHT($E154),0)\n+AG$11*OFFSET('Efficiency Distributions'!$E$10,MATCH($C145,'Efficiency Distributions'!$C$9:$C$87,0)+RIGHT($E154),0))\n/SUM(AG$10:AG$11)","v":0},{"$f":"IF(INDEX(PC_MAPPING,RIGHT($C145,1),MATCH($E$2,'Data by Building Type'!$D$22:$F$22,0))=\"Yes\",1,0)*\n(AH$10*OFFSET('Efficiency Distributions'!$D$10,MATCH($C145,'Efficiency Distributions'!$C$9:$C$87,0)+RIGHT($E154),0)\n+AH$11*OFFSET('Efficiency Distributions'!$E$10,MATCH($C145,'Efficiency Distributions'!$C$9:$C$87,0)+RIGHT($E154),0))\n/SUM(AH$10:AH$11)","v":0},{"$f":"IF(INDEX(PC_MAPPING,RIGHT($C145,1),MATCH($E$2,'Data by Building Type'!$D$22:$F$22,0))=\"Yes\",1,0)*\n(AI$10*OFFSET('Efficiency Distributions'!$D$10,MATCH($C145,'Efficiency Distributions'!$C$9:$C$87,0)+RIGHT($E154),0)\n+AI$11*OFFSET('Efficiency Distributions'!$E$10,MATCH($C145,'Efficiency Distributions'!$C$9:$C$87,0)+RIGHT($E154),0))\n/SUM(AI$10:AI$11)","v":0},{"$f":"IF(INDEX(PC_MAPPING,RIGHT($C145,1),MATCH($E$2,'Data by Building Type'!$D$22:$F$22,0))=\"Yes\",1,0)*\n(AJ$10*OFFSET('Efficiency Distributions'!$D$10,MATCH($C145,'Efficiency Distributions'!$C$9:$C$87,0)+RIGHT($E154),0)\n+AJ$11*OFFSET('Efficiency Distributions'!$E$10,MATCH($C145,'Efficiency Distributions'!$C$9:$C$87,0)+RIGHT($E154),0))\n/SUM(AJ$10:AJ$11)","v":0},{"$f":"IF(INDEX(PC_MAPPING,RIGHT($C145,1),MATCH($E$2,'Data by Building Type'!$D$22:$F$22,0))=\"Yes\",1,0)*\n(AK$10*OFFSET('Efficiency Distributions'!$D$10,MATCH($C145,'Efficiency Distributions'!$C$9:$C$87,0)+RIGHT($E154),0)\n+AK$11*OFFSET('Efficiency Distributions'!$E$10,MATCH($C145,'Efficiency Distributions'!$C$9:$C$87,0)+RIGHT($E154),0))\n/SUM(AK$10:AK$11)","v":0},{"$f":"IF(INDEX(PC_MAPPING,RIGHT($C145,1),MATCH($E$2,'Data by Building Type'!$D$22:$F$22,0))=\"Yes\",1,0)*\n(AL$10*OFFSET('Efficiency Distributions'!$D$10,MATCH($C145,'Efficiency Distributions'!$C$9:$C$87,0)+RIGHT($E154),0)\n+AL$11*OFFSET('Efficiency Distributions'!$E$10,MATCH($C145,'Efficiency Distributions'!$C$9:$C$87,0)+RIGHT($E154),0))\n/SUM(AL$10:AL$11)","v":0},{"$f":"IF(INDEX(PC_MAPPING,RIGHT($C145,1),MATCH($E$2,'Data by Building Type'!$D$22:$F$22,0))=\"Yes\",1,0)*\n(AM$10*OFFSET('Efficiency Distributions'!$D$10,MATCH($C145,'Efficiency Distributions'!$C$9:$C$87,0)+RIGHT($E154),0)\n+AM$11*OFFSET('Efficiency Distributions'!$E$10,MATCH($C145,'Efficiency Distributions'!$C$9:$C$87,0)+RIGHT($E154),0))\n/SUM(AM$10:AM$11)","v":0},{"$f":"IF(INDEX(PC_MAPPING,RIGHT($C145,1),MATCH($E$2,'Data by Building Type'!$D$22:$F$22,0))=\"Yes\",1,0)*\n(AN$10*OFFSET('Efficiency Distributions'!$D$10,MATCH($C145,'Efficiency Distributions'!$C$9:$C$87,0)+RIGHT($E154),0)\n+AN$11*OFFSET('Efficiency Distributions'!$E$10,MATCH($C145,'Efficiency Distributions'!$C$9:$C$87,0)+RIGHT($E154),0))\n/SUM(AN$10:AN$11)","v":0},{"$f":"IF(INDEX(PC_MAPPING,RIGHT($C145,1),MATCH($E$2,'Data by Building Type'!$D$22:$F$22,0))=\"Yes\",1,0)*\n(AO$10*OFFSET('Efficiency Distributions'!$D$10,MATCH($C145,'Efficiency Distributions'!$C$9:$C$87,0)+RIGHT($E154),0)\n+AO$11*OFFSET('Efficiency Distributions'!$E$10,MATCH($C145,'Efficiency Distributions'!$C$9:$C$87,0)+RIGHT($E154),0))\n/SUM(AO$10:AO$11)","v":0},{"$f":"IF(INDEX(PC_MAPPING,RIGHT($C145,1),MATCH($E$2,'Data by Building Type'!$D$22:$F$22,0))=\"Yes\",1,0)*\n(AP$10*OFFSET('Efficiency Distributions'!$D$10,MATCH($C145,'Efficiency Distributions'!$C$9:$C$87,0)+RIGHT($E154),0)\n+AP$11*OFFSET('Efficiency Distributions'!$E$10,MATCH($C145,'Efficiency Distributions'!$C$9:$C$87,0)+RIGHT($E154),0))\n/SUM(AP$10:AP$11)","v":0},{"$f":"IF(INDEX(PC_MAPPING,RIGHT($C145,1),MATCH($E$2,'Data by Building Type'!$D$22:$F$22,0))=\"Yes\",1,0)*\n(AQ$10*OFFSET('Efficiency Distributions'!$D$10,MATCH($C145,'Efficiency Distributions'!$C$9:$C$87,0)+RIGHT($E154),0)\n+AQ$11*OFFSET('Efficiency Distributions'!$E$10,MATCH($C145,'Efficiency Distributions'!$C$9:$C$87,0)+RIGHT($E154),0))\n/SUM(AQ$10:AQ$11)","v":0},{"$f":"IF(INDEX(PC_MAPPING,RIGHT($C145,1),MATCH($E$2,'Data by Building Type'!$D$22:$F$22,0))=\"Yes\",1,0)*\n(AR$10*OFFSET('Efficiency Distributions'!$D$10,MATCH($C145,'Efficiency Distributions'!$C$9:$C$87,0)+RIGHT($E154),0)\n+AR$11*OFFSET('Efficiency Distributions'!$E$10,MATCH($C145,'Efficiency Distributions'!$C$9:$C$87,0)+RIGHT($E154),0))\n/SUM(AR$10:AR$11)","v":0},{"$f":"IF(INDEX(PC_MAPPING,RIGHT($C145,1),MATCH($E$2,'Data by Building Type'!$D$22:$F$22,0))=\"Yes\",1,0)*\n(AS$10*OFFSET('Efficiency Distributions'!$D$10,MATCH($C145,'Efficiency Distributions'!$C$9:$C$87,0)+RIGHT($E154),0)\n+AS$11*OFFSET('Efficiency Distributions'!$E$10,MATCH($C145,'Efficiency Distributions'!$C$9:$C$87,0)+RIGHT($E154),0))\n/SUM(AS$10:AS$11)","v":0},{"$f":"IF(INDEX(PC_MAPPING,RIGHT($C145,1),MATCH($E$2,'Data by Building Type'!$D$22:$F$22,0))=\"Yes\",1,0)*\n(AT$10*OFFSET('Efficiency Distributions'!$D$10,MATCH($C145,'Efficiency Distributions'!$C$9:$C$87,0)+RIGHT($E154),0)\n+AT$11*OFFSET('Efficiency Distributions'!$E$10,MATCH($C145,'Efficiency Distributions'!$C$9:$C$87,0)+RIGHT($E154),0))\n/SUM(AT$10:AT$11)","v":0},{"$f":"IF(INDEX(PC_MAPPING,RIGHT($C145,1),MATCH($E$2,'Data by Building Type'!$D$22:$F$22,0))=\"Yes\",1,0)*\n(AU$10*OFFSET('Efficiency Distributions'!$D$10,MATCH($C145,'Efficiency Distributions'!$C$9:$C$87,0)+RIGHT($E154),0)\n+AU$11*OFFSET('Efficiency Distributions'!$E$10,MATCH($C145,'Efficiency Distributions'!$C$9:$C$87,0)+RIGHT($E154),0))\n/SUM(AU$10:AU$11)","v":0},{"$f":"IF(INDEX(PC_MAPPING,RIGHT($C145,1),MATCH($E$2,'Data by Building Type'!$D$22:$F$22,0))=\"Yes\",1,0)*\n(AV$10*OFFSET('Efficiency Distributions'!$D$10,MATCH($C145,'Efficiency Distributions'!$C$9:$C$87,0)+RIGHT($E154),0)\n+AV$11*OFFSET('Efficiency Distributions'!$E$10,MATCH($C145,'Efficiency Distributions'!$C$9:$C$87,0)+RIGHT($E154),0))\n/SUM(AV$10:AV$11)","v":0},{"$f":"IF(INDEX(PC_MAPPING,RIGHT($C145,1),MATCH($E$2,'Data by Building Type'!$D$22:$F$22,0))=\"Yes\",1,0)*\n(AW$10*OFFSET('Efficiency Distributions'!$D$10,MATCH($C145,'Efficiency Distributions'!$C$9:$C$87,0)+RIGHT($E154),0)\n+AW$11*OFFSET('Efficiency Distributions'!$E$10,MATCH($C145,'Efficiency Distributions'!$C$9:$C$87,0)+RIGHT($E154),0))\n/SUM(AW$10:AW$11)","v":0},{"$f":"IF(INDEX(PC_MAPPING,RIGHT($C145,1),MATCH($E$2,'Data by Building Type'!$D$22:$F$22,0))=\"Yes\",1,0)*\n(AX$10*OFFSET('Efficiency Distributions'!$D$10,MATCH($C145,'Efficiency Distributions'!$C$9:$C$87,0)+RIGHT($E154),0)\n+AX$11*OFFSET('Efficiency Distributions'!$E$10,MATCH($C145,'Efficiency Distributions'!$C$9:$C$87,0)+RIGHT($E154),0))\n/SUM(AX$10:AX$11)","v":0},{"$f":"IF(INDEX(PC_MAPPING,RIGHT($C145,1),MATCH($E$2,'Data by Building Type'!$D$22:$F$22,0))=\"Yes\",1,0)*\n(AY$10*OFFSET('Efficiency Distributions'!$D$10,MATCH($C145,'Efficiency Distributions'!$C$9:$C$87,0)+RIGHT($E154),0)\n+AY$11*OFFSET('Efficiency Distributions'!$E$10,MATCH($C145,'Efficiency Distributions'!$C$9:$C$87,0)+RIGHT($E154),0))\n/SUM(AY$10:AY$11)","v":0},{"$f":"IF(INDEX(PC_MAPPING,RIGHT($C145,1),MATCH($E$2,'Data by Building Type'!$D$22:$F$22,0))=\"Yes\",1,0)*\n(AZ$10*OFFSET('Efficiency Distributions'!$D$10,MATCH($C145,'Efficiency Distributions'!$C$9:$C$87,0)+RIGHT($E154),0)\n+AZ$11*OFFSET('Efficiency Distributions'!$E$10,MATCH($C145,'Efficiency Distributions'!$C$9:$C$87,0)+RIGHT($E154),0))\n/SUM(AZ$10:AZ$11)","v":0},{"$f":"IF(INDEX(PC_MAPPING,RIGHT($C145,1),MATCH($E$2,'Data by Building Type'!$D$22:$F$22,0))=\"Yes\",1,0)*\n(BA$10*OFFSET('Efficiency Distributions'!$D$10,MATCH($C145,'Efficiency Distributions'!$C$9:$C$87,0)+RIGHT($E154),0)\n+BA$11*OFFSET('Efficiency Distributions'!$E$10,MATCH($C145,'Efficiency Distributions'!$C$9:$C$87,0)+RIGHT($E154),0))\n/SUM(BA$10:BA$11)","v":0},{"$f":"IF(INDEX(PC_MAPPING,RIGHT($C145,1),MATCH($E$2,'Data by Building Type'!$D$22:$F$22,0))=\"Yes\",1,0)*\n(BB$10*OFFSET('Efficiency Distributions'!$D$10,MATCH($C145,'Efficiency Distributions'!$C$9:$C$87,0)+RIGHT($E154),0)\n+BB$11*OFFSET('Efficiency Distributions'!$E$10,MATCH($C145,'Efficiency Distributions'!$C$9:$C$87,0)+RIGHT($E154),0))\n/SUM(BB$10:BB$11)","v":0},{"$f":"IF(INDEX(PC_MAPPING,RIGHT($C145,1),MATCH($E$2,'Data by Building Type'!$D$22:$F$22,0))=\"Yes\",1,0)*\n(BC$10*OFFSET('Efficiency Distributions'!$D$10,MATCH($C145,'Efficiency Distributions'!$C$9:$C$87,0)+RIGHT($E154),0)\n+BC$11*OFFSET('Efficiency Distributions'!$E$10,MATCH($C145,'Efficiency Distributions'!$C$9:$C$87,0)+RIGHT($E154),0))\n/SUM(BC$10:BC$11)","v":0},{"$f":"IF(INDEX(PC_MAPPING,RIGHT($C145,1),MATCH($E$2,'Data by Building Type'!$D$22:$F$22,0))=\"Yes\",1,0)*\n(BD$10*OFFSET('Efficiency Distributions'!$D$10,MATCH($C145,'Efficiency Distributions'!$C$9:$C$87,0)+RIGHT($E154),0)\n+BD$11*OFFSET('Efficiency Distributions'!$E$10,MATCH($C145,'Efficiency Distributions'!$C$9:$C$87,0)+RIGHT($E154),0))\n/SUM(BD$10:BD$11)","v":0},{"$f":"IF(INDEX(PC_MAPPING,RIGHT($C145,1),MATCH($E$2,'Data by Building Type'!$D$22:$F$22,0))=\"Yes\",1,0)*\n(BE$10*OFFSET('Efficiency Distributions'!$D$10,MATCH($C145,'Efficiency Distributions'!$C$9:$C$87,0)+RIGHT($E154),0)\n+BE$11*OFFSET('Efficiency Distributions'!$E$10,MATCH($C145,'Efficiency Distributions'!$C$9:$C$87,0)+RIGHT($E154),0))\n/SUM(BE$10:BE$11)","v":0},{"$f":"IF(INDEX(PC_MAPPING,RIGHT($C145,1),MATCH($E$2,'Data by Building Type'!$D$22:$F$22,0))=\"Yes\",1,0)*\n(BF$10*OFFSET('Efficiency Distributions'!$D$10,MATCH($C145,'Efficiency Distributions'!$C$9:$C$87,0)+RIGHT($E154),0)\n+BF$11*OFFSET('Efficiency Distributions'!$E$10,MATCH($C145,'Efficiency Distributions'!$C$9:$C$87,0)+RIGHT($E154),0))\n/SUM(BF$10:BF$11)","v":0},{"$f":"IF(INDEX(PC_MAPPING,RIGHT($C145,1),MATCH($E$2,'Data by Building Type'!$D$22:$F$22,0))=\"Yes\",1,0)*\n(BG$10*OFFSET('Efficiency Distributions'!$D$10,MATCH($C145,'Efficiency Distributions'!$C$9:$C$87,0)+RIGHT($E154),0)\n+BG$11*OFFSET('Efficiency Distributions'!$E$10,MATCH($C145,'Efficiency Distributions'!$C$9:$C$87,0)+RIGHT($E154),0))\n/SUM(BG$10:BG$11)","v":0}]
[null,null,null,null,"EL6",{"$f":"IF(INDEX(PC_MAPPING,RIGHT($C145,1),MATCH($E$2,'Data by Building Type'!$D$22:$F$22,0))=\"Yes\",1,0)*\n(F$10*OFFSET('Efficiency Distributions'!$D$10,MATCH($C145,'Efficiency Distributions'!$C$9:$C$87,0)+RIGHT($E155),0)\n+F$11*OFFSET('Efficiency Distributions'!$E$10,MATCH($C145,'Efficiency Distributions'!$C$9:$C$87,0)+RIGHT($E155),0))\n/SUM(F$10:F$11)","v":0},{"$f":"IF(INDEX(PC_MAPPING,RIGHT($C145,1),MATCH($E$2,'Data by Building Type'!$D$22:$F$22,0))=\"Yes\",1,0)*\n(G$10*OFFSET('Efficiency Distributions'!$D$10,MATCH($C145,'Efficiency Distributions'!$C$9:$C$87,0)+RIGHT($E155),0)\n+G$11*OFFSET('Efficiency Distributions'!$E$10,MATCH($C145,'Efficiency Distributions'!$C$9:$C$87,0)+RIGHT($E155),0))\n/SUM(G$10:G$11)","v":0},{"$f":"IF(INDEX(PC_MAPPING,RIGHT($C145,1),MATCH($E$2,'Data by Building Type'!$D$22:$F$22,0))=\"Yes\",1,0)*\n(H$10*OFFSET('Efficiency Distributions'!$D$10,MATCH($C145,'Efficiency Distributions'!$C$9:$C$87,0)+RIGHT($E155),0)\n+H$11*OFFSET('Efficiency Distributions'!$E$10,MATCH($C145,'Efficiency Distributions'!$C$9:$C$87,0)+RIGHT($E155),0))\n/SUM(H$10:H$11)","v":0},{"$f":"IF(INDEX(PC_MAPPING,RIGHT($C145,1),MATCH($E$2,'Data by Building Type'!$D$22:$F$22,0))=\"Yes\",1,0)*\n(I$10*OFFSET('Efficiency Distributions'!$D$10,MATCH($C145,'Efficiency Distributions'!$C$9:$C$87,0)+RIGHT($E155),0)\n+I$11*OFFSET('Efficiency Distributions'!$E$10,MATCH($C145,'Efficiency Distributions'!$C$9:$C$87,0)+RIGHT($E155),0))\n/SUM(I$10:I$11)","v":0},{"$f":"IF(INDEX(PC_MAPPING,RIGHT($C145,1),MATCH($E$2,'Data by Building Type'!$D$22:$F$22,0))=\"Yes\",1,0)*\n(J$10*OFFSET('Efficiency Distributions'!$D$10,MATCH($C145,'Efficiency Distributions'!$C$9:$C$87,0)+RIGHT($E155),0)\n+J$11*OFFSET('Efficiency Distributions'!$E$10,MATCH($C145,'Efficiency Distributions'!$C$9:$C$87,0)+RIGHT($E155),0))\n/SUM(J$10:J$11)","v":0},{"$f":"IF(INDEX(PC_MAPPING,RIGHT($C145,1),MATCH($E$2,'Data by Building Type'!$D$22:$F$22,0))=\"Yes\",1,0)*\n(K$10*OFFSET('Efficiency Distributions'!$D$10,MATCH($C145,'Efficiency Distributions'!$C$9:$C$87,0)+RIGHT($E155),0)\n+K$11*OFFSET('Efficiency Distributions'!$E$10,MATCH($C145,'Efficiency Distributions'!$C$9:$C$87,0)+RIGHT($E155),0))\n/SUM(K$10:K$11)","v":0},{"$f":"IF(INDEX(PC_MAPPING,RIGHT($C145,1),MATCH($E$2,'Data by Building Type'!$D$22:$F$22,0))=\"Yes\",1,0)*\n(L$10*OFFSET('Efficiency Distributions'!$D$10,MATCH($C145,'Efficiency Distributions'!$C$9:$C$87,0)+RIGHT($E155),0)\n+L$11*OFFSET('Efficiency Distributions'!$E$10,MATCH($C145,'Efficiency Distributions'!$C$9:$C$87,0)+RIGHT($E155),0))\n/SUM(L$10:L$11)","v":0},{"$f":"IF(INDEX(PC_MAPPING,RIGHT($C145,1),MATCH($E$2,'Data by Building Type'!$D$22:$F$22,0))=\"Yes\",1,0)*\n(M$10*OFFSET('Efficiency Distributions'!$D$10,MATCH($C145,'Efficiency Distributions'!$C$9:$C$87,0)+RIGHT($E155),0)\n+M$11*OFFSET('Efficiency Distributions'!$E$10,MATCH($C145,'Efficiency Distributions'!$C$9:$C$87,0)+RIGHT($E155),0))\n/SUM(M$10:M$11)","v":0},{"$f":"IF(INDEX(PC_MAPPING,RIGHT($C145,1),MATCH($E$2,'Data by Building Type'!$D$22:$F$22,0))=\"Yes\",1,0)*\n(N$10*OFFSET('Efficiency Distributions'!$D$10,MATCH($C145,'Efficiency Distributions'!$C$9:$C$87,0)+RIGHT($E155),0)\n+N$11*OFFSET('Efficiency Distributions'!$E$10,MATCH($C145,'Efficiency Distributions'!$C$9:$C$87,0)+RIGHT($E155),0))\n/SUM(N$10:N$11)","v":0},{"$f":"IF(INDEX(PC_MAPPING,RIGHT($C145,1),MATCH($E$2,'Data by Building Type'!$D$22:$F$22,0))=\"Yes\",1,0)*\n(O$10*OFFSET('Efficiency Distributions'!$D$10,MATCH($C145,'Efficiency Distributions'!$C$9:$C$87,0)+RIGHT($E155),0)\n+O$11*OFFSET('Efficiency Distributions'!$E$10,MATCH($C145,'Efficiency Distributions'!$C$9:$C$87,0)+RIGHT($E155),0))\n/SUM(O$10:O$11)","v":0},{"$f":"IF(INDEX(PC_MAPPING,RIGHT($C145,1),MATCH($E$2,'Data by Building Type'!$D$22:$F$22,0))=\"Yes\",1,0)*\n(P$10*OFFSET('Efficiency Distributions'!$D$10,MATCH($C145,'Efficiency Distributions'!$C$9:$C$87,0)+RIGHT($E155),0)\n+P$11*OFFSET('Efficiency Distributions'!$E$10,MATCH($C145,'Efficiency Distributions'!$C$9:$C$87,0)+RIGHT($E155),0))\n/SUM(P$10:P$11)","v":0},{"$f":"IF(INDEX(PC_MAPPING,RIGHT($C145,1),MATCH($E$2,'Data by Building Type'!$D$22:$F$22,0))=\"Yes\",1,0)*\n(Q$10*OFFSET('Efficiency Distributions'!$D$10,MATCH($C145,'Efficiency Distributions'!$C$9:$C$87,0)+RIGHT($E155),0)\n+Q$11*OFFSET('Efficiency Distributions'!$E$10,MATCH($C145,'Efficiency Distributions'!$C$9:$C$87,0)+RIGHT($E155),0))\n/SUM(Q$10:Q$11)","v":0},{"$f":"IF(INDEX(PC_MAPPING,RIGHT($C145,1),MATCH($E$2,'Data by Building Type'!$D$22:$F$22,0))=\"Yes\",1,0)*\n(R$10*OFFSET('Efficiency Distributions'!$D$10,MATCH($C145,'Efficiency Distributions'!$C$9:$C$87,0)+RIGHT($E155),0)\n+R$11*OFFSET('Efficiency Distributions'!$E$10,MATCH($C145,'Efficiency Distributions'!$C$9:$C$87,0)+RIGHT($E155),0))\n/SUM(R$10:R$11)","v":0},{"$f":"IF(INDEX(PC_MAPPING,RIGHT($C145,1),MATCH($E$2,'Data by Building Type'!$D$22:$F$22,0))=\"Yes\",1,0)*\n(S$10*OFFSET('Efficiency Distributions'!$D$10,MATCH($C145,'Efficiency Distributions'!$C$9:$C$87,0)+RIGHT($E155),0)\n+S$11*OFFSET('Efficiency Distributions'!$E$10,MATCH($C145,'Efficiency Distributions'!$C$9:$C$87,0)+RIGHT($E155),0))\n/SUM(S$10:S$11)","v":0},{"$f":"IF(INDEX(PC_MAPPING,RIGHT($C145,1),MATCH($E$2,'Data by Building Type'!$D$22:$F$22,0))=\"Yes\",1,0)*\n(T$10*OFFSET('Efficiency Distributions'!$D$10,MATCH($C145,'Efficiency Distributions'!$C$9:$C$87,0)+RIGHT($E155),0)\n+T$11*OFFSET('Efficiency Distributions'!$E$10,MATCH($C145,'Efficiency Distributions'!$C$9:$C$87,0)+RIGHT($E155),0))\n/SUM(T$10:T$11)","v":0},{"$f":"IF(INDEX(PC_MAPPING,RIGHT($C145,1),MATCH($E$2,'Data by Building Type'!$D$22:$F$22,0))=\"Yes\",1,0)*\n(U$10*OFFSET('Efficiency Distributions'!$D$10,MATCH($C145,'Efficiency Distributions'!$C$9:$C$87,0)+RIGHT($E155),0)\n+U$11*OFFSET('Efficiency Distributions'!$E$10,MATCH($C145,'Efficiency Distributions'!$C$9:$C$87,0)+RIGHT($E155),0))\n/SUM(U$10:U$11)","v":0},{"$f":"IF(INDEX(PC_MAPPING,RIGHT($C145,1),MATCH($E$2,'Data by Building Type'!$D$22:$F$22,0))=\"Yes\",1,0)*\n(V$10*OFFSET('Efficiency Distributions'!$D$10,MATCH($C145,'Efficiency Distributions'!$C$9:$C$87,0)+RIGHT($E155),0)\n+V$11*OFFSET('Efficiency Distributions'!$E$10,MATCH($C145,'Efficiency Distributions'!$C$9:$C$87,0)+RIGHT($E155),0))\n/SUM(V$10:V$11)","v":0},{"$f":"IF(INDEX(PC_MAPPING,RIGHT($C145,1),MATCH($E$2,'Data by Building Type'!$D$22:$F$22,0))=\"Yes\",1,0)*\n(W$10*OFFSET('Efficiency Distributions'!$D$10,MATCH($C145,'Efficiency Distributions'!$C$9:$C$87,0)+RIGHT($E155),0)\n+W$11*OFFSET('Efficiency Distributions'!$E$10,MATCH($C145,'Efficiency Distributions'!$C$9:$C$87,0)+RIGHT($E155),0))\n/SUM(W$10:W$11)","v":0},{"$f":"IF(INDEX(PC_MAPPING,RIGHT($C145,1),MATCH($E$2,'Data by Building Type'!$D$22:$F$22,0))=\"Yes\",1,0)*\n(X$10*OFFSET('Efficiency Distributions'!$D$10,MATCH($C145,'Efficiency Distributions'!$C$9:$C$87,0)+RIGHT($E155),0)\n+X$11*OFFSET('Efficiency Distributions'!$E$10,MATCH($C145,'Efficiency Distributions'!$C$9:$C$87,0)+RIGHT($E155),0))\n/SUM(X$10:X$11)","v":0},{"$f":"IF(INDEX(PC_MAPPING,RIGHT($C145,1),MATCH($E$2,'Data by Building Type'!$D$22:$F$22,0))=\"Yes\",1,0)*\n(Y$10*OFFSET('Efficiency Distributions'!$D$10,MATCH($C145,'Efficiency Distributions'!$C$9:$C$87,0)+RIGHT($E155),0)\n+Y$11*OFFSET('Efficiency Distributions'!$E$10,MATCH($C145,'Efficiency Distributions'!$C$9:$C$87,0)+RIGHT($E155),0))\n/SUM(Y$10:Y$11)","v":0},{"$f":"IF(INDEX(PC_MAPPING,RIGHT($C145,1),MATCH($E$2,'Data by Building Type'!$D$22:$F$22,0))=\"Yes\",1,0)*\n(Z$10*OFFSET('Efficiency Distributions'!$D$10,MATCH($C145,'Efficiency Distributions'!$C$9:$C$87,0)+RIGHT($E155),0)\n+Z$11*OFFSET('Efficiency Distributions'!$E$10,MATCH($C145,'Efficiency Distributions'!$C$9:$C$87,0)+RIGHT($E155),0))\n/SUM(Z$10:Z$11)","v":0},{"$f":"IF(INDEX(PC_MAPPING,RIGHT($C145,1),MATCH($E$2,'Data by Building Type'!$D$22:$F$22,0))=\"Yes\",1,0)*\n(AA$10*OFFSET('Efficiency Distributions'!$D$10,MATCH($C145,'Efficiency Distributions'!$C$9:$C$87,0)+RIGHT($E155),0)\n+AA$11*OFFSET('Efficiency Distributions'!$E$10,MATCH($C145,'Efficiency Distributions'!$C$9:$C$87,0)+RIGHT($E155),0))\n/SUM(AA$10:AA$11)","v":0},{"$f":"IF(INDEX(PC_MAPPING,RIGHT($C145,1),MATCH($E$2,'Data by Building Type'!$D$22:$F$22,0))=\"Yes\",1,0)*\n(AB$10*OFFSET('Efficiency Distributions'!$D$10,MATCH($C145,'Efficiency Distributions'!$C$9:$C$87,0)+RIGHT($E155),0)\n+AB$11*OFFSET('Efficiency Distributions'!$E$10,MATCH($C145,'Efficiency Distributions'!$C$9:$C$87,0)+RIGHT($E155),0))\n/SUM(AB$10:AB$11)","v":0},{"$f":"IF(INDEX(PC_MAPPING,RIGHT($C145,1),MATCH($E$2,'Data by Building Type'!$D$22:$F$22,0))=\"Yes\",1,0)*\n(AC$10*OFFSET('Efficiency Distributions'!$D$10,MATCH($C145,'Efficiency Distributions'!$C$9:$C$87,0)+RIGHT($E155),0)\n+AC$11*OFFSET('Efficiency Distributions'!$E$10,MATCH($C145,'Efficiency Distributions'!$C$9:$C$87,0)+RIGHT($E155),0))\n/SUM(AC$10:AC$11)","v":0},{"$f":"IF(INDEX(PC_MAPPING,RIGHT($C145,1),MATCH($E$2,'Data by Building Type'!$D$22:$F$22,0))=\"Yes\",1,0)*\n(AD$10*OFFSET('Efficiency Distributions'!$D$10,MATCH($C145,'Efficiency Distributions'!$C$9:$C$87,0)+RIGHT($E155),0)\n+AD$11*OFFSET('Efficiency Distributions'!$E$10,MATCH($C145,'Efficiency Distributions'!$C$9:$C$87,0)+RIGHT($E155),0))\n/SUM(AD$10:AD$11)","v":0},{"$f":"IF(INDEX(PC_MAPPING,RIGHT($C145,1),MATCH($E$2,'Data by Building Type'!$D$22:$F$22,0))=\"Yes\",1,0)*\n(AE$10*OFFSET('Efficiency Distributions'!$D$10,MATCH($C145,'Efficiency Distributions'!$C$9:$C$87,0)+RIGHT($E155),0)\n+AE$11*OFFSET('Efficiency Distributions'!$E$10,MATCH($C145,'Efficiency Distributions'!$C$9:$C$87,0)+RIGHT($E155),0))\n/SUM(AE$10:AE$11)","v":0},{"$f":"IF(INDEX(PC_MAPPING,RIGHT($C145,1),MATCH($E$2,'Data by Building Type'!$D$22:$F$22,0))=\"Yes\",1,0)*\n(AF$10*OFFSET('Efficiency Distributions'!$D$10,MATCH($C145,'Efficiency Distributions'!$C$9:$C$87,0)+RIGHT($E155),0)\n+AF$11*OFFSET('Efficiency Distributions'!$E$10,MATCH($C145,'Efficiency Distributions'!$C$9:$C$87,0)+RIGHT($E155),0))\n/SUM(AF$10:AF$11)","v":0},{"$f":"IF(INDEX(PC_MAPPING,RIGHT($C145,1),MATCH($E$2,'Data by Building Type'!$D$22:$F$22,0))=\"Yes\",1,0)*\n(AG$10*OFFSET('Efficiency Distributions'!$D$10,MATCH($C145,'Efficiency Distributions'!$C$9:$C$87,0)+RIGHT($E155),0)\n+AG$11*OFFSET('Efficiency Distributions'!$E$10,MATCH($C145,'Efficiency Distributions'!$C$9:$C$87,0)+RIGHT($E155),0))\n/SUM(AG$10:AG$11)","v":0},{"$f":"IF(INDEX(PC_MAPPING,RIGHT($C145,1),MATCH($E$2,'Data by Building Type'!$D$22:$F$22,0))=\"Yes\",1,0)*\n(AH$10*OFFSET('Efficiency Distributions'!$D$10,MATCH($C145,'Efficiency Distributions'!$C$9:$C$87,0)+RIGHT($E155),0)\n+AH$11*OFFSET('Efficiency Distributions'!$E$10,MATCH($C145,'Efficiency Distributions'!$C$9:$C$87,0)+RIGHT($E155),0))\n/SUM(AH$10:AH$11)","v":0},{"$f":"IF(INDEX(PC_MAPPING,RIGHT($C145,1),MATCH($E$2,'Data by Building Type'!$D$22:$F$22,0))=\"Yes\",1,0)*\n(AI$10*OFFSET('Efficiency Distributions'!$D$10,MATCH($C145,'Efficiency Distributions'!$C$9:$C$87,0)+RIGHT($E155),0)\n+AI$11*OFFSET('Efficiency Distributions'!$E$10,MATCH($C145,'Efficiency Distributions'!$C$9:$C$87,0)+RIGHT($E155),0))\n/SUM(AI$10:AI$11)","v":0},{"$f":"IF(INDEX(PC_MAPPING,RIGHT($C145,1),MATCH($E$2,'Data by Building Type'!$D$22:$F$22,0))=\"Yes\",1,0)*\n(AJ$10*OFFSET('Efficiency Distributions'!$D$10,MATCH($C145,'Efficiency Distributions'!$C$9:$C$87,0)+RIGHT($E155),0)\n+AJ$11*OFFSET('Efficiency Distributions'!$E$10,MATCH($C145,'Efficiency Distributions'!$C$9:$C$87,0)+RIGHT($E155),0))\n/SUM(AJ$10:AJ$11)","v":0},{"$f":"IF(INDEX(PC_MAPPING,RIGHT($C145,1),MATCH($E$2,'Data by Building Type'!$D$22:$F$22,0))=\"Yes\",1,0)*\n(AK$10*OFFSET('Efficiency Distributions'!$D$10,MATCH($C145,'Efficiency Distributions'!$C$9:$C$87,0)+RIGHT($E155),0)\n+AK$11*OFFSET('Efficiency Distributions'!$E$10,MATCH($C145,'Efficiency Distributions'!$C$9:$C$87,0)+RIGHT($E155),0))\n/SUM(AK$10:AK$11)","v":0},{"$f":"IF(INDEX(PC_MAPPING,RIGHT($C145,1),MATCH($E$2,'Data by Building Type'!$D$22:$F$22,0))=\"Yes\",1,0)*\n(AL$10*OFFSET('Efficiency Distributions'!$D$10,MATCH($C145,'Efficiency Distributions'!$C$9:$C$87,0)+RIGHT($E155),0)\n+AL$11*OFFSET('Efficiency Distributions'!$E$10,MATCH($C145,'Efficiency Distributions'!$C$9:$C$87,0)+RIGHT($E155),0))\n/SUM(AL$10:AL$11)","v":0},{"$f":"IF(INDEX(PC_MAPPING,RIGHT($C145,1),MATCH($E$2,'Data by Building Type'!$D$22:$F$22,0))=\"Yes\",1,0)*\n(AM$10*OFFSET('Efficiency Distributions'!$D$10,MATCH($C145,'Efficiency Distributions'!$C$9:$C$87,0)+RIGHT($E155),0)\n+AM$11*OFFSET('Efficiency Distributions'!$E$10,MATCH($C145,'Efficiency Distributions'!$C$9:$C$87,0)+RIGHT($E155),0))\n/SUM(AM$10:AM$11)","v":0},{"$f":"IF(INDEX(PC_MAPPING,RIGHT($C145,1),MATCH($E$2,'Data by Building Type'!$D$22:$F$22,0))=\"Yes\",1,0)*\n(AN$10*OFFSET('Efficiency Distributions'!$D$10,MATCH($C145,'Efficiency Distributions'!$C$9:$C$87,0)+RIGHT($E155),0)\n+AN$11*OFFSET('Efficiency Distributions'!$E$10,MATCH($C145,'Efficiency Distributions'!$C$9:$C$87,0)+RIGHT($E155),0))\n/SUM(AN$10:AN$11)","v":0},{"$f":"IF(INDEX(PC_MAPPING,RIGHT($C145,1),MATCH($E$2,'Data by Building Type'!$D$22:$F$22,0))=\"Yes\",1,0)*\n(AO$10*OFFSET('Efficiency Distributions'!$D$10,MATCH($C145,'Efficiency Distributions'!$C$9:$C$87,0)+RIGHT($E155),0)\n+AO$11*OFFSET('Efficiency Distributions'!$E$10,MATCH($C145,'Efficiency Distributions'!$C$9:$C$87,0)+RIGHT($E155),0))\n/SUM(AO$10:AO$11)","v":0},{"$f":"IF(INDEX(PC_MAPPING,RIGHT($C145,1),MATCH($E$2,'Data by Building Type'!$D$22:$F$22,0))=\"Yes\",1,0)*\n(AP$10*OFFSET('Efficiency Distributions'!$D$10,MATCH($C145,'Efficiency Distributions'!$C$9:$C$87,0)+RIGHT($E155),0)\n+AP$11*OFFSET('Efficiency Distributions'!$E$10,MATCH($C145,'Efficiency Distributions'!$C$9:$C$87,0)+RIGHT($E155),0))\n/SUM(AP$10:AP$11)","v":0},{"$f":"IF(INDEX(PC_MAPPING,RIGHT($C145,1),MATCH($E$2,'Data by Building Type'!$D$22:$F$22,0))=\"Yes\",1,0)*\n(AQ$10*OFFSET('Efficiency Distributions'!$D$10,MATCH($C145,'Efficiency Distributions'!$C$9:$C$87,0)+RIGHT($E155),0)\n+AQ$11*OFFSET('Efficiency Distributions'!$E$10,MATCH($C145,'Efficiency Distributions'!$C$9:$C$87,0)+RIGHT($E155),0))\n/SUM(AQ$10:AQ$11)","v":0},{"$f":"IF(INDEX(PC_MAPPING,RIGHT($C145,1),MATCH($E$2,'Data by Building Type'!$D$22:$F$22,0))=\"Yes\",1,0)*\n(AR$10*OFFSET('Efficiency Distributions'!$D$10,MATCH($C145,'Efficiency Distributions'!$C$9:$C$87,0)+RIGHT($E155),0)\n+AR$11*OFFSET('Efficiency Distributions'!$E$10,MATCH($C145,'Efficiency Distributions'!$C$9:$C$87,0)+RIGHT($E155),0))\n/SUM(AR$10:AR$11)","v":0},{"$f":"IF(INDEX(PC_MAPPING,RIGHT($C145,1),MATCH($E$2,'Data by Building Type'!$D$22:$F$22,0))=\"Yes\",1,0)*\n(AS$10*OFFSET('Efficiency Distributions'!$D$10,MATCH($C145,'Efficiency Distributions'!$C$9:$C$87,0)+RIGHT($E155),0)\n+AS$11*OFFSET('Efficiency Distributions'!$E$10,MATCH($C145,'Efficiency Distributions'!$C$9:$C$87,0)+RIGHT($E155),0))\n/SUM(AS$10:AS$11)","v":0},{"$f":"IF(INDEX(PC_MAPPING,RIGHT($C145,1),MATCH($E$2,'Data by Building Type'!$D$22:$F$22,0))=\"Yes\",1,0)*\n(AT$10*OFFSET('Efficiency Distributions'!$D$10,MATCH($C145,'Efficiency Distributions'!$C$9:$C$87,0)+RIGHT($E155),0)\n+AT$11*OFFSET('Efficiency Distributions'!$E$10,MATCH($C145,'Efficiency Distributions'!$C$9:$C$87,0)+RIGHT($E155),0))\n/SUM(AT$10:AT$11)","v":0},{"$f":"IF(INDEX(PC_MAPPING,RIGHT($C145,1),MATCH($E$2,'Data by Building Type'!$D$22:$F$22,0))=\"Yes\",1,0)*\n(AU$10*OFFSET('Efficiency Distributions'!$D$10,MATCH($C145,'Efficiency Distributions'!$C$9:$C$87,0)+RIGHT($E155),0)\n+AU$11*OFFSET('Efficiency Distributions'!$E$10,MATCH($C145,'Efficiency Distributions'!$C$9:$C$87,0)+RIGHT($E155),0))\n/SUM(AU$10:AU$11)","v":0},{"$f":"IF(INDEX(PC_MAPPING,RIGHT($C145,1),MATCH($E$2,'Data by Building Type'!$D$22:$F$22,0))=\"Yes\",1,0)*\n(AV$10*OFFSET('Efficiency Distributions'!$D$10,MATCH($C145,'Efficiency Distributions'!$C$9:$C$87,0)+RIGHT($E155),0)\n+AV$11*OFFSET('Efficiency Distributions'!$E$10,MATCH($C145,'Efficiency Distributions'!$C$9:$C$87,0)+RIGHT($E155),0))\n/SUM(AV$10:AV$11)","v":0},{"$f":"IF(INDEX(PC_MAPPING,RIGHT($C145,1),MATCH($E$2,'Data by Building Type'!$D$22:$F$22,0))=\"Yes\",1,0)*\n(AW$10*OFFSET('Efficiency Distributions'!$D$10,MATCH($C145,'Efficiency Distributions'!$C$9:$C$87,0)+RIGHT($E155),0)\n+AW$11*OFFSET('Efficiency Distributions'!$E$10,MATCH($C145,'Efficiency Distributions'!$C$9:$C$87,0)+RIGHT($E155),0))\n/SUM(AW$10:AW$11)","v":0},{"$f":"IF(INDEX(PC_MAPPING,RIGHT($C145,1),MATCH($E$2,'Data by Building Type'!$D$22:$F$22,0))=\"Yes\",1,0)*\n(AX$10*OFFSET('Efficiency Distributions'!$D$10,MATCH($C145,'Efficiency Distributions'!$C$9:$C$87,0)+RIGHT($E155),0)\n+AX$11*OFFSET('Efficiency Distributions'!$E$10,MATCH($C145,'Efficiency Distributions'!$C$9:$C$87,0)+RIGHT($E155),0))\n/SUM(AX$10:AX$11)","v":0},{"$f":"IF(INDEX(PC_MAPPING,RIGHT($C145,1),MATCH($E$2,'Data by Building Type'!$D$22:$F$22,0))=\"Yes\",1,0)*\n(AY$10*OFFSET('Efficiency Distributions'!$D$10,MATCH($C145,'Efficiency Distributions'!$C$9:$C$87,0)+RIGHT($E155),0)\n+AY$11*OFFSET('Efficiency Distributions'!$E$10,MATCH($C145,'Efficiency Distributions'!$C$9:$C$87,0)+RIGHT($E155),0))\n/SUM(AY$10:AY$11)","v":0},{"$f":"IF(INDEX(PC_MAPPING,RIGHT($C145,1),MATCH($E$2,'Data by Building Type'!$D$22:$F$22,0))=\"Yes\",1,0)*\n(AZ$10*OFFSET('Efficiency Distributions'!$D$10,MATCH($C145,'Efficiency Distributions'!$C$9:$C$87,0)+RIGHT($E155),0)\n+AZ$11*OFFSET('Efficiency Distributions'!$E$10,MATCH($C145,'Efficiency Distributions'!$C$9:$C$87,0)+RIGHT($E155),0))\n/SUM(AZ$10:AZ$11)","v":0},{"$f":"IF(INDEX(PC_MAPPING,RIGHT($C145,1),MATCH($E$2,'Data by Building Type'!$D$22:$F$22,0))=\"Yes\",1,0)*\n(BA$10*OFFSET('Efficiency Distributions'!$D$10,MATCH($C145,'Efficiency Distributions'!$C$9:$C$87,0)+RIGHT($E155),0)\n+BA$11*OFFSET('Efficiency Distributions'!$E$10,MATCH($C145,'Efficiency Distributions'!$C$9:$C$87,0)+RIGHT($E155),0))\n/SUM(BA$10:BA$11)","v":0},{"$f":"IF(INDEX(PC_MAPPING,RIGHT($C145,1),MATCH($E$2,'Data by Building Type'!$D$22:$F$22,0))=\"Yes\",1,0)*\n(BB$10*OFFSET('Efficiency Distributions'!$D$10,MATCH($C145,'Efficiency Distributions'!$C$9:$C$87,0)+RIGHT($E155),0)\n+BB$11*OFFSET('Efficiency Distributions'!$E$10,MATCH($C145,'Efficiency Distributions'!$C$9:$C$87,0)+RIGHT($E155),0))\n/SUM(BB$10:BB$11)","v":0},{"$f":"IF(INDEX(PC_MAPPING,RIGHT($C145,1),MATCH($E$2,'Data by Building Type'!$D$22:$F$22,0))=\"Yes\",1,0)*\n(BC$10*OFFSET('Efficiency Distributions'!$D$10,MATCH($C145,'Efficiency Distributions'!$C$9:$C$87,0)+RIGHT($E155),0)\n+BC$11*OFFSET('Efficiency Distributions'!$E$10,MATCH($C145,'Efficiency Distributions'!$C$9:$C$87,0)+RIGHT($E155),0))\n/SUM(BC$10:BC$11)","v":0},{"$f":"IF(INDEX(PC_MAPPING,RIGHT($C145,1),MATCH($E$2,'Data by Building Type'!$D$22:$F$22,0))=\"Yes\",1,0)*\n(BD$10*OFFSET('Efficiency Distributions'!$D$10,MATCH($C145,'Efficiency Distributions'!$C$9:$C$87,0)+RIGHT($E155),0)\n+BD$11*OFFSET('Efficiency Distributions'!$E$10,MATCH($C145,'Efficiency Distributions'!$C$9:$C$87,0)+RIGHT($E155),0))\n/SUM(BD$10:BD$11)","v":0},{"$f":"IF(INDEX(PC_MAPPING,RIGHT($C145,1),MATCH($E$2,'Data by Building Type'!$D$22:$F$22,0))=\"Yes\",1,0)*\n(BE$10*OFFSET('Efficiency Distributions'!$D$10,MATCH($C145,'Efficiency Distributions'!$C$9:$C$87,0)+RIGHT($E155),0)\n+BE$11*OFFSET('Efficiency Distributions'!$E$10,MATCH($C145,'Efficiency Distributions'!$C$9:$C$87,0)+RIGHT($E155),0))\n/SUM(BE$10:BE$11)","v":0},{"$f":"IF(INDEX(PC_MAPPING,RIGHT($C145,1),MATCH($E$2,'Data by Building Type'!$D$22:$F$22,0))=\"Yes\",1,0)*\n(BF$10*OFFSET('Efficiency Distributions'!$D$10,MATCH($C145,'Efficiency Distributions'!$C$9:$C$87,0)+RIGHT($E155),0)\n+BF$11*OFFSET('Efficiency Distributions'!$E$10,MATCH($C145,'Efficiency Distributions'!$C$9:$C$87,0)+RIGHT($E155),0))\n/SUM(BF$10:BF$11)","v":0},{"$f":"IF(INDEX(PC_MAPPING,RIGHT($C145,1),MATCH($E$2,'Data by Building Type'!$D$22:$F$22,0))=\"Yes\",1,0)*\n(BG$10*OFFSET('Efficiency Distributions'!$D$10,MATCH($C145,'Efficiency Distributions'!$C$9:$C$87,0)+RIGHT($E155),0)\n+BG$11*OFFSET('Efficiency Distributions'!$E$10,MATCH($C145,'Efficiency Distributions'!$C$9:$C$87,0)+RIGHT($E155),0))\n/SUM(BG$10:BG$11)","v":0}]
[null,null,null,null,"TOTAL",{"$f":"SUM(F149:F155)","v":1},0.99999999999999989,0.99999999999999989,{"$f":"SUM(I149:I155)","v":0.99999999999999989},1,1,0.99999999999999989,0.99999999999999978,1,0.99999999999999989,1,1,1,0.99999999999999989,1,0.99999999999999989,1,0.99999999999999989,0.99999999999999989,1,0.99999999999999989,1,1,1,1,0.99999999999999989,1,1,1,1,1,1,1,1,1,1,1,1,1,1,1,1,1,1,1,1,1,1,1,1,1,1,1,1]
[]
[null,null,null,"POST-Case"]
[null,null,null,null,"Efficiency Level",1981,{"$f":"F159+1","v":1982},{"$f":"G159+1","v":1983},{"$f":"H159+1","v":1984},{"$f":"I159+1","v":1985},{"$f":"J159+1","v":1986},{"$f":"K159+1","v":1987},{"$f":"L159+1","v":1988},{"$f":"M159+1","v":1989},{"$f":"N159+1","v":1990},{"$f":"O159+1","v":1991},{"$f":"P159+1","v":1992},{"$f":"Q159+1","v":1993},{"$f":"R159+1","v":1994},1995,1996,1997,1998,1999,2000,2001,2002,2003,2004,2005,2006,2007,2008,2009,2010,2011,2012,2013,2014,2015,2016,2017,2018,2019,2020,2021,2022,2023,2024,2025,2026,2027,2028,2029,2030,2031,2032,2033,2034]
[null,null,null,null,"EL0",{"$f":"IF(F$29<STANDARD_YEAR,F149,\nIF(RIGHT($E160,1)>RIGHT(INDEX(STANDARD_LEVELS,1,MID($C145,4,1)),1),F149,\nIF(RIGHT($E160,1)<RIGHT(INDEX(STANDARD_LEVELS,1,MID($C145,4,1)),1),0,\nIF(RIGHT($E160,1)=RIGHT(INDEX(STANDARD_LEVELS,1,MID($C145,4,1)),1),SUM(OFFSET(F149,-(RIGHT($E160,1)),0,RIGHT($E160,1)+1,1)),\"ERROR\"))))","v":0.44526367682518347},0.44004537596293281,0.4480215195847097,{"$f":"IF(I$29<STANDARD_YEAR,I149,\nIF(RIGHT($E160,1)>RIGHT(INDEX(STANDARD_LEVELS,1,MID($C145,4,1)),1),I149,\nIF(RIGHT($E160,1)<RIGHT(INDEX(STANDARD_LEVELS,1,MID($C145,4,1)),1),0,\nIF(RIGHT($E160,1)=RIGHT(INDEX(STANDARD_LEVELS,1,MID($C145,4,1)),1),SUM(OFFSET(I149,-(RIGHT($E160,1)),0,RIGHT($E160,1)+1,1)),\"ERROR\"))))","v":0.44756002803339634},0.44348727336909899,0.43891132073797323,0.43760316158242274,0.44083264393996363,0.44318609012860483,0.44752435057200735,0.44739804115223197,0.45124889345278146,0.45555303623520765,0.45948726106404092,0.45822757585298507,0.45446160579159489,0.45458770957252465,0.45549556383097578,0.44967083633426042,0.43764268567371284,0.43006958635756343,0.41942301458945019,0.41915460260884385,0.41630858585400576,0.41632236697833419,0.41636194534684245,0.42220369932156082,0.42323688043462282,0.42249301365975139,0.42175746724463342,0.42000754157191877,0.42347864955317871,0.42136503503455153,0.41889220608902139,0.41665541856727839,0.41640985520842383,0.41720874310245254,0.41709378426298593,0,0,0,0,0,0,0,0,0,0,0,0,0,0,0,0]
[null,null,null,null,"EL1",{"$f":"IF(F$29<STANDARD_YEAR,F150,\nIF(RIGHT($E161,1)>RIGHT(INDEX(STANDARD_LEVELS,1,MID($C145,4,1)),1),F150,\nIF(RIGHT($E161,1)<RIGHT(INDEX(STANDARD_LEVELS,1,MID($C145,4,1)),1),0,\nIF(RIGHT($E161,1)=RIGHT(INDEX(STANDARD_LEVELS,1,MID($C145,4,1)),1),SUM(OFFSET(F150,-(RIGHT($E161,1)),0,RIGHT($E161,1)+1,1)),\"ERROR\"))))","v":0.55473632317481647},0.55995462403706708,0.55197848041529018,{"$f":"IF(I$29<STANDARD_YEAR,I150,\nIF(RIGHT($E161,1)>RIGHT(INDEX(STANDARD_LEVELS,1,MID($C145,4,1)),1),I150,\nIF(RIGHT($E161,1)<RIGHT(INDEX(STANDARD_LEVELS,1,MID($C145,4,1)),1),0,\nIF(RIGHT($E161,1)=RIGHT(INDEX(STANDARD_LEVELS,1,MID($C145,4,1)),1),SUM(OFFSET(I150,-(RIGHT($E161,1)),0,RIGHT($E161,1)+1,1)),\"ERROR\"))))","v":0.55243997196660355},0.55651272663090101,0.56108867926202677,0.56239683841757715,0.5591673560600362,0.55681390987139512,0.55247564942799254,0.55260195884776808,0.54875110654721848,0.54444696376479229,0.54051273893595897,0.54177242414701487,0.545538394208405,0.5454122904274753,0.54450443616902411,0.55032916366573947,0.56235731432628711,0.56993041364243646,0.58057698541054981,0.58084539739115615,0.58369141414599424,0.58367763302166575,0.58363805465315743,0.57779630067843912,0.57676311956537718,0.57750698634024855,0.57824253275536652,0.57999245842808123,0.57652135044682129,0.57863496496544842,0.58110779391097866,0.58334458143272161,0.58359014479157623,0.58279125689754752,0.58290621573701407,1,1,1,1,1,1,1,1,1,1,1,1,1,1,1,1]
[null,null,null,null,"EL2",{"$f":"IF(F$29<STANDARD_YEAR,F151,\nIF(RIGHT($E162,1)>RIGHT(INDEX(STANDARD_LEVELS,1,MID($C145,4,1)),1),F151,\nIF(RIGHT($E162,1)<RIGHT(INDEX(STANDARD_LEVELS,1,MID($C145,4,1)),1),0,\nIF(RIGHT($E162,1)=RIGHT(INDEX(STANDARD_LEVELS,1,MID($C145,4,1)),1),SUM(OFFSET(F151,-(RIGHT($E162,1)),0,RIGHT($E162,1)+1,1)),\"ERROR\"))))","v":0},0,0,{"$f":"IF(I$29<STANDARD_YEAR,I151,\nIF(RIGHT($E162,1)>RIGHT(INDEX(STANDARD_LEVELS,1,MID($C145,4,1)),1),I151,\nIF(RIGHT($E162,1)<RIGHT(INDEX(STANDARD_LEVELS,1,MID($C145,4,1)),1),0,\nIF(RIGHT($E162,1)=RIGHT(INDEX(STANDARD_LEVELS,1,MID($C145,4,1)),1),SUM(OFFSET(I151,-(RIGHT($E162,1)),0,RIGHT($E162,1)+1,1)),\"ERROR\"))))","v":0},0,0,0,0,0,0,0,0,0,0,0,0,0,0,0,0,0,0,0,0,0,0,0,0,0,0,0,0,0,0,0,0,0,0,0,0,0,0,0,0,0,0,0,0,0,0,0,0,0,0]
[null,null,null,null,"EL3",{"$f":"IF(F$29<STANDARD_YEAR,F152,\nIF(RIGHT($E163,1)>RIGHT(INDEX(STANDARD_LEVELS,1,MID($C145,4,1)),1),F152,\nIF(RIGHT($E163,1)<RIGHT(INDEX(STANDARD_LEVELS,1,MID($C145,4,1)),1),0,\nIF(RIGHT($E163,1)=RIGHT(INDEX(STANDARD_LEVELS,1,MID($C145,4,1)),1),SUM(OFFSET(F152,-(RIGHT($E163,1)),0,RIGHT($E163,1)+1,1)),\"ERROR\"))))","v":0},0,0,{"$f":"IF(I$29<STANDARD_YEAR,I152,\nIF(RIGHT($E163,1)>RIGHT(INDEX(STANDARD_LEVELS,1,MID($C145,4,1)),1),I152,\nIF(RIGHT($E163,1)<RIGHT(INDEX(STANDARD_LEVELS,1,MID($C145,4,1)),1),0,\nIF(RIGHT($E163,1)=RIGHT(INDEX(STANDARD_LEVELS,1,MID($C145,4,1)),1),SUM(OFFSET(I152,-(RIGHT($E163,1)),0,RIGHT($E163,1)+1,1)),\"ERROR\"))))","v":0},0,0,0,0,0,0,0,0,0,0,0,0,0,0,0,0,0,0,0,0,0,0,0,0,0,0,0,0,0,0,0,0,0,0,0,0,0,0,0,0,0,0,0,0,0,0,0,0,0,0]
[null,null,null,null,"EL4",{"$f":"IF(F$29<STANDARD_YEAR,F153,\nIF(RIGHT($E164,1)>RIGHT(INDEX(STANDARD_LEVELS,1,MID($C145,4,1)),1),F153,\nIF(RIGHT($E164,1)<RIGHT(INDEX(STANDARD_LEVELS,1,MID($C145,4,1)),1),0,\nIF(RIGHT($E164,1)=RIGHT(INDEX(STANDARD_LEVELS,1,MID($C145,4,1)),1),SUM(OFFSET(F153,-(RIGHT($E164,1)),0,RIGHT($E164,1)+1,1)),\"ERROR\"))))","v":0},0,0,{"$f":"IF(I$29<STANDARD_YEAR,I153,\nIF(RIGHT($E164,1)>RIGHT(INDEX(STANDARD_LEVELS,1,MID($C145,4,1)),1),I153,\nIF(RIGHT($E164,1)<RIGHT(INDEX(STANDARD_LEVELS,1,MID($C145,4,1)),1),0,\nIF(RIGHT($E164,1)=RIGHT(INDEX(STANDARD_LEVELS,1,MID($C145,4,1)),1),SUM(OFFSET(I153,-(RIGHT($E164,1)),0,RIGHT($E164,1)+1,1)),\"ERROR\"))))","v":0},0,0,0,0,0,0,0,0,0,0,0,0,0,0,0,0,0,0,0,0,0,0,0,0,0,0,0,0,0,0,0,0,0,0,0,0,0,0,0,0,0,0,0,0,0,0,0,0,0,0]
[null,null,null,null,"EL5",{"$f":"IF(F$29<STANDARD_YEAR,F154,\nIF(RIGHT($E165,1)>RIGHT(INDEX(STANDARD_LEVELS,1,MID($C145,4,1)),1),F154,\nIF(RIGHT($E165,1)<RIGHT(INDEX(STANDARD_LEVELS,1,MID($C145,4,1)),1),0,\nIF(RIGHT($E165,1)=RIGHT(INDEX(STANDARD_LEVELS,1,MID($C145,4,1)),1),SUM(OFFSET(F154,-(RIGHT($E165,1)),0,RIGHT($E165,1)+1,1)),\"ERROR\"))))","v":0},0,0,{"$f":"IF(I$29<STANDARD_YEAR,I154,\nIF(RIGHT($E165,1)>RIGHT(INDEX(STANDARD_LEVELS,1,MID($C145,4,1)),1),I154,\nIF(RIGHT($E165,1)<RIGHT(INDEX(STANDARD_LEVELS,1,MID($C145,4,1)),1),0,\nIF(RIGHT($E165,1)=RIGHT(INDEX(STANDARD_LEVELS,1,MID($C145,4,1)),1),SUM(OFFSET(I154,-(RIGHT($E165,1)),0,RIGHT($E165,1)+1,1)),\"ERROR\"))))","v":0},0,0,0,0,0,0,0,0,0,0,0,0,0,0,0,0,0,0,0,0,0,0,0,0,0,0,0,0,0,0,0,0,0,0,0,0,0,0,0,0,0,0,0,0,0,0,0,0,0,0]
[null,null,null,null,"EL6",{"$f":"IF(F$29<STANDARD_YEAR,F155,\nIF(RIGHT($E166,1)>RIGHT(INDEX(STANDARD_LEVELS,1,MID($C145,4,1)),1),F155,\nIF(RIGHT($E166,1)<RIGHT(INDEX(STANDARD_LEVELS,1,MID($C145,4,1)),1),0,\nIF(RIGHT($E166,1)=RIGHT(INDEX(STANDARD_LEVELS,1,MID($C145,4,1)),1),SUM(OFFSET(F155,-(RIGHT($E166,1)),0,RIGHT($E166,1)+1,1)),\"ERROR\"))))","v":0},0,0,{"$f":"IF(I$29<STANDARD_YEAR,I155,\nIF(RIGHT($E166,1)>RIGHT(INDEX(STANDARD_LEVELS,1,MID($C145,4,1)),1),I155,\nIF(RIGHT($E166,1)<RIGHT(INDEX(STANDARD_LEVELS,1,MID($C145,4,1)),1),0,\nIF(RIGHT($E166,1)=RIGHT(INDEX(STANDARD_LEVELS,1,MID($C145,4,1)),1),SUM(OFFSET(I155,-(RIGHT($E166,1)),0,RIGHT($E166,1)+1,1)),\"ERROR\"))))","v":0},0,0,0,0,0,0,0,0,0,0,0,0,0,0,0,0,0,0,0,0,0,0,0,0,0,0,0,0,0,0,0,0,0,0,0,0,0,0,0,0,0,0,0,0,0,0,0,0,0,0]
[null,null,null,null,"TOTAL",{"$f":"SUM(F160:F166)","v":1},0.99999999999999989,0.99999999999999989,{"$f":"SUM(I160:I166)","v":0.99999999999999989},1,1,0.99999999999999989,0.99999999999999978,1,0.99999999999999989,1,1,1,0.99999999999999989,1,0.99999999999999989,1,0.99999999999999989,0.99999999999999989,1,0.99999999999999989,1,1,1,1,0.99999999999999989,1,1,1,1,1,1,1,1,1,1,1,1,1,1,1,1,1,1,1,1,1,1,1,1,1,1,1,1]
[]
[]
[]
[null,null,"PC 7",{"$f":"OFFSET('Product Classes'!$C$9,MATCH(C171,MODEL_PCS,0),0)","v":"Mobile Home Non-Weatherized, Condensing Gas Furnace Fan (MH-NWG-C)"}]
[]
[null,null,null,"PRE-Case"]
[null,null,null,null,"Efficiency Level",1981,{"$f":"F174+1","v":1982},{"$f":"G174+1","v":1983},{"$f":"H174+1","v":1984},{"$f":"I174+1","v":1985},{"$f":"J174+1","v":1986},{"$f":"K174+1","v":1987},{"$f":"L174+1","v":1988},{"$f":"M174+1","v":1989},{"$f":"N174+1","v":1990},{"$f":"O174+1","v":1991},{"$f":"P174+1","v":1992},{"$f":"Q174+1","v":1993},{"$f":"R174+1","v":1994},1995,1996,1997,1998,1999,2000,2001,2002,2003,2004,2005,2006,2007,2008,2009,2010,2011,2012,2013,2014,2015,2016,2017,2018,2019,2020,2021,2022,2023,2024,2025,2026,2027,2028,2029,2030,2031,2032,2033,2034]
[null,null,null,null,"EL0",{"$f":"IF(INDEX(PC_MAPPING,RIGHT($C171,1),MATCH($E$2,'Data by Building Type'!$D$22:$F$22,0))=\"Yes\",1,0)*\n(F$10*OFFSET('Efficiency Distributions'!$D$10,MATCH($C171,'Efficiency Distributions'!$C$9:$C$87,0)+RIGHT($E175),0)\n+F$11*OFFSET('Efficiency Distributions'!$E$10,MATCH($C171,'Efficiency Distributions'!$C$9:$C$87,0)+RIGHT($E175),0))\n/SUM(F$10:F$11)","v":0.31880871403824468},{"$f":"IF(INDEX(PC_MAPPING,RIGHT($C171,1),MATCH($E$2,'Data by Building Type'!$D$22:$F$22,0))=\"Yes\",1,0)*\n(G$10*OFFSET('Efficiency Distributions'!$D$10,MATCH($C171,'Efficiency Distributions'!$C$9:$C$87,0)+RIGHT($E175),0)\n+G$11*OFFSET('Efficiency Distributions'!$E$10,MATCH($C171,'Efficiency Distributions'!$C$9:$C$87,0)+RIGHT($E175),0))\n/SUM(G$10:G$11)","v":0.307319659269219},{"$f":"IF(INDEX(PC_MAPPING,RIGHT($C171,1),MATCH($E$2,'Data by Building Type'!$D$22:$F$22,0))=\"Yes\",1,0)*\n(H$10*OFFSET('Efficiency Distributions'!$D$10,MATCH($C171,'Efficiency Distributions'!$C$9:$C$87,0)+RIGHT($E175),0)\n+H$11*OFFSET('Efficiency Distributions'!$E$10,MATCH($C171,'Efficiency Distributions'!$C$9:$C$87,0)+RIGHT($E175),0))\n/SUM(H$10:H$11)","v":0.32488061509281368},{"$f":"IF(INDEX(PC_MAPPING,RIGHT($C171,1),MATCH($E$2,'Data by Building Type'!$D$22:$F$22,0))=\"Yes\",1,0)*\n(I$10*OFFSET('Efficiency Distributions'!$D$10,MATCH($C171,'Efficiency Distributions'!$C$9:$C$87,0)+RIGHT($E175),0)\n+I$11*OFFSET('Efficiency Distributions'!$E$10,MATCH($C171,'Efficiency Distributions'!$C$9:$C$87,0)+RIGHT($E175),0))\n/SUM(I$10:I$11)","v":0.32386455606355435},{"$f":"IF(INDEX(PC_MAPPING,RIGHT($C171,1),MATCH($E$2,'Data by Building Type'!$D$22:$F$22,0))=\"Yes\",1,0)*\n(J$10*OFFSET('Efficiency Distributions'!$D$10,MATCH($C171,'Efficiency Distributions'!$C$9:$C$87,0)+RIGHT($E175),0)\n+J$11*OFFSET('Efficiency Distributions'!$E$10,MATCH($C171,'Efficiency Distributions'!$C$9:$C$87,0)+RIGHT($E175),0))\n/SUM(J$10:J$11)","v":0.31489763318307934},{"$f":"IF(INDEX(PC_MAPPING,RIGHT($C171,1),MATCH($E$2,'Data by Building Type'!$D$22:$F$22,0))=\"Yes\",1,0)*\n(K$10*OFFSET('Efficiency Distributions'!$D$10,MATCH($C171,'Efficiency Distributions'!$C$9:$C$87,0)+RIGHT($E175),0)\n+K$11*OFFSET('Efficiency Distributions'!$E$10,MATCH($C171,'Efficiency Distributions'!$C$9:$C$87,0)+RIGHT($E175),0))\n/SUM(K$10:K$11)","v":0.30482282688362111},{"$f":"IF(INDEX(PC_MAPPING,RIGHT($C171,1),MATCH($E$2,'Data by Building Type'!$D$22:$F$22,0))=\"Yes\",1,0)*\n(L$10*OFFSET('Efficiency Distributions'!$D$10,MATCH($C171,'Efficiency Distributions'!$C$9:$C$87,0)+RIGHT($E175),0)\n+L$11*OFFSET('Efficiency Distributions'!$E$10,MATCH($C171,'Efficiency Distributions'!$C$9:$C$87,0)+RIGHT($E175),0))\n/SUM(L$10:L$11)","v":0.30194267248442852},{"$f":"IF(INDEX(PC_MAPPING,RIGHT($C171,1),MATCH($E$2,'Data by Building Type'!$D$22:$F$22,0))=\"Yes\",1,0)*\n(M$10*OFFSET('Efficiency Distributions'!$D$10,MATCH($C171,'Efficiency Distributions'!$C$9:$C$87,0)+RIGHT($E175),0)\n+M$11*OFFSET('Efficiency Distributions'!$E$10,MATCH($C171,'Efficiency Distributions'!$C$9:$C$87,0)+RIGHT($E175),0))\n/SUM(M$10:M$11)","v":0.30905297537052673},{"$f":"IF(INDEX(PC_MAPPING,RIGHT($C171,1),MATCH($E$2,'Data by Building Type'!$D$22:$F$22,0))=\"Yes\",1,0)*\n(N$10*OFFSET('Efficiency Distributions'!$D$10,MATCH($C171,'Efficiency Distributions'!$C$9:$C$87,0)+RIGHT($E175),0)\n+N$11*OFFSET('Efficiency Distributions'!$E$10,MATCH($C171,'Efficiency Distributions'!$C$9:$C$87,0)+RIGHT($E175),0))\n/SUM(N$10:N$11)","v":0.31423452255820489},{"$f":"IF(INDEX(PC_MAPPING,RIGHT($C171,1),MATCH($E$2,'Data by Building Type'!$D$22:$F$22,0))=\"Yes\",1,0)*\n(O$10*OFFSET('Efficiency Distributions'!$D$10,MATCH($C171,'Efficiency Distributions'!$C$9:$C$87,0)+RIGHT($E175),0)\n+O$11*OFFSET('Efficiency Distributions'!$E$10,MATCH($C171,'Efficiency Distributions'!$C$9:$C$87,0)+RIGHT($E175),0))\n/SUM(O$10:O$11)","v":0.32378600553173603},{"$f":"IF(INDEX(PC_MAPPING,RIGHT($C171,1),MATCH($E$2,'Data by Building Type'!$D$22:$F$22,0))=\"Yes\",1,0)*\n(P$10*OFFSET('Efficiency Distributions'!$D$10,MATCH($C171,'Efficiency Distributions'!$C$9:$C$87,0)+RIGHT($E175),0)\n+P$11*OFFSET('Efficiency Distributions'!$E$10,MATCH($C171,'Efficiency Distributions'!$C$9:$C$87,0)+RIGHT($E175),0))\n/SUM(P$10:P$11)","v":0.32350791197600759},{"$f":"IF(INDEX(PC_MAPPING,RIGHT($C171,1),MATCH($E$2,'Data by Building Type'!$D$22:$F$22,0))=\"Yes\",1,0)*\n(Q$10*OFFSET('Efficiency Distributions'!$D$10,MATCH($C171,'Efficiency Distributions'!$C$9:$C$87,0)+RIGHT($E175),0)\n+Q$11*OFFSET('Efficiency Distributions'!$E$10,MATCH($C171,'Efficiency Distributions'!$C$9:$C$87,0)+RIGHT($E175),0))\n/SUM(Q$10:Q$11)","v":0.33198627574926098},{"$f":"IF(INDEX(PC_MAPPING,RIGHT($C171,1),MATCH($E$2,'Data by Building Type'!$D$22:$F$22,0))=\"Yes\",1,0)*\n(R$10*OFFSET('Efficiency Distributions'!$D$10,MATCH($C171,'Efficiency Distributions'!$C$9:$C$87,0)+RIGHT($E175),0)\n+R$11*OFFSET('Efficiency Distributions'!$E$10,MATCH($C171,'Efficiency Distributions'!$C$9:$C$87,0)+RIGHT($E175),0))\n/SUM(R$10:R$11)","v":0.34146264238015567},{"$f":"IF(INDEX(PC_MAPPING,RIGHT($C171,1),MATCH($E$2,'Data by Building Type'!$D$22:$F$22,0))=\"Yes\",1,0)*\n(S$10*OFFSET('Efficiency Distributions'!$D$10,MATCH($C171,'Efficiency Distributions'!$C$9:$C$87,0)+RIGHT($E175),0)\n+S$11*OFFSET('Efficiency Distributions'!$E$10,MATCH($C171,'Efficiency Distributions'!$C$9:$C$87,0)+RIGHT($E175),0))\n/SUM(S$10:S$11)","v":0.35012456619890453},{"$f":"IF(INDEX(PC_MAPPING,RIGHT($C171,1),MATCH($E$2,'Data by Building Type'!$D$22:$F$22,0))=\"Yes\",1,0)*\n(T$10*OFFSET('Efficiency Distributions'!$D$10,MATCH($C171,'Efficiency Distributions'!$C$9:$C$87,0)+RIGHT($E175),0)\n+T$11*OFFSET('Efficiency Distributions'!$E$10,MATCH($C171,'Efficiency Distributions'!$C$9:$C$87,0)+RIGHT($E175),0))\n/SUM(T$10:T$11)","v":0.34735113615652286},{"$f":"IF(INDEX(PC_MAPPING,RIGHT($C171,1),MATCH($E$2,'Data by Building Type'!$D$22:$F$22,0))=\"Yes\",1,0)*\n(U$10*OFFSET('Efficiency Distributions'!$D$10,MATCH($C171,'Efficiency Distributions'!$C$9:$C$87,0)+RIGHT($E175),0)\n+U$11*OFFSET('Efficiency Distributions'!$E$10,MATCH($C171,'Efficiency Distributions'!$C$9:$C$87,0)+RIGHT($E175),0))\n/SUM(U$10:U$11)","v":0.33905965633656432},{"$f":"IF(INDEX(PC_MAPPING,RIGHT($C171,1),MATCH($E$2,'Data by Building Type'!$D$22:$F$22,0))=\"Yes\",1,0)*\n(V$10*OFFSET('Efficiency Distributions'!$D$10,MATCH($C171,'Efficiency Distributions'!$C$9:$C$87,0)+RIGHT($E175),0)\n+V$11*OFFSET('Efficiency Distributions'!$E$10,MATCH($C171,'Efficiency Distributions'!$C$9:$C$87,0)+RIGHT($E175),0))\n/SUM(V$10:V$11)","v":0.3393372971403294},{"$f":"IF(INDEX(PC_MAPPING,RIGHT($C171,1),MATCH($E$2,'Data by Building Type'!$D$22:$F$22,0))=\"Yes\",1,0)*\n(W$10*OFFSET('Efficiency Distributions'!$D$10,MATCH($C171,'Efficiency Distributions'!$C$9:$C$87,0)+RIGHT($E175),0)\n+W$11*OFFSET('Efficiency Distributions'!$E$10,MATCH($C171,'Efficiency Distributions'!$C$9:$C$87,0)+RIGHT($E175),0))\n/SUM(W$10:W$11)","v":0.3413361062494577},{"$f":"IF(INDEX(PC_MAPPING,RIGHT($C171,1),MATCH($E$2,'Data by Building Type'!$D$22:$F$22,0))=\"Yes\",1,0)*\n(X$10*OFFSET('Efficiency Distributions'!$D$10,MATCH($C171,'Efficiency Distributions'!$C$9:$C$87,0)+RIGHT($E175),0)\n+X$11*OFFSET('Efficiency Distributions'!$E$10,MATCH($C171,'Efficiency Distributions'!$C$9:$C$87,0)+RIGHT($E175),0))\n/SUM(X$10:X$11)","v":0.32851189105164891},{"$f":"IF(INDEX(PC_MAPPING,RIGHT($C171,1),MATCH($E$2,'Data by Building Type'!$D$22:$F$22,0))=\"Yes\",1,0)*\n(Y$10*OFFSET('Efficiency Distributions'!$D$10,MATCH($C171,'Efficiency Distributions'!$C$9:$C$87,0)+RIGHT($E175),0)\n+Y$11*OFFSET('Efficiency Distributions'!$E$10,MATCH($C171,'Efficiency Distributions'!$C$9:$C$87,0)+RIGHT($E175),0))\n/SUM(Y$10:Y$11)","v":0.30202969208362657},{"$f":"IF(INDEX(PC_MAPPING,RIGHT($C171,1),MATCH($E$2,'Data by Building Type'!$D$22:$F$22,0))=\"Yes\",1,0)*\n(Z$10*OFFSET('Efficiency Distributions'!$D$10,MATCH($C171,'Efficiency Distributions'!$C$9:$C$87,0)+RIGHT($E175),0)\n+Z$11*OFFSET('Efficiency Distributions'!$E$10,MATCH($C171,'Efficiency Distributions'!$C$9:$C$87,0)+RIGHT($E175),0))\n/SUM(Z$10:Z$11)","v":0.28535611286477991},{"$f":"IF(INDEX(PC_MAPPING,RIGHT($C171,1),MATCH($E$2,'Data by Building Type'!$D$22:$F$22,0))=\"Yes\",1,0)*\n(AA$10*OFFSET('Efficiency Distributions'!$D$10,MATCH($C171,'Efficiency Distributions'!$C$9:$C$87,0)+RIGHT($E175),0)\n+AA$11*OFFSET('Efficiency Distributions'!$E$10,MATCH($C171,'Efficiency Distributions'!$C$9:$C$87,0)+RIGHT($E175),0))\n/SUM(AA$10:AA$11)","v":0.26191571542984526},{"$f":"IF(INDEX(PC_MAPPING,RIGHT($C171,1),MATCH($E$2,'Data by Building Type'!$D$22:$F$22,0))=\"Yes\",1,0)*\n(AB$10*OFFSET('Efficiency Distributions'!$D$10,MATCH($C171,'Efficiency Distributions'!$C$9:$C$87,0)+RIGHT($E175),0)\n+AB$11*OFFSET('Efficiency Distributions'!$E$10,MATCH($C171,'Efficiency Distributions'!$C$9:$C$87,0)+RIGHT($E175),0))\n/SUM(AB$10:AB$11)","v":0.26132475679651757},{"$f":"IF(INDEX(PC_MAPPING,RIGHT($C171,1),MATCH($E$2,'Data by Building Type'!$D$22:$F$22,0))=\"Yes\",1,0)*\n(AC$10*OFFSET('Efficiency Distributions'!$D$10,MATCH($C171,'Efficiency Distributions'!$C$9:$C$87,0)+RIGHT($E175),0)\n+AC$11*OFFSET('Efficiency Distributions'!$E$10,MATCH($C171,'Efficiency Distributions'!$C$9:$C$87,0)+RIGHT($E175),0))\n/SUM(AC$10:AC$11)","v":0.25505872437848687},{"$f":"IF(INDEX(PC_MAPPING,RIGHT($C171,1),MATCH($E$2,'Data by Building Type'!$D$22:$F$22,0))=\"Yes\",1,0)*\n(AD$10*OFFSET('Efficiency Distributions'!$D$10,MATCH($C171,'Efficiency Distributions'!$C$9:$C$87,0)+RIGHT($E175),0)\n+AD$11*OFFSET('Efficiency Distributions'!$E$10,MATCH($C171,'Efficiency Distributions'!$C$9:$C$87,0)+RIGHT($E175),0))\n/SUM(AD$10:AD$11)","v":0.25508906607329673},{"$f":"IF(INDEX(PC_MAPPING,RIGHT($C171,1),MATCH($E$2,'Data by Building Type'!$D$22:$F$22,0))=\"Yes\",1,0)*\n(AE$10*OFFSET('Efficiency Distributions'!$D$10,MATCH($C171,'Efficiency Distributions'!$C$9:$C$87,0)+RIGHT($E175),0)\n+AE$11*OFFSET('Efficiency Distributions'!$E$10,MATCH($C171,'Efficiency Distributions'!$C$9:$C$87,0)+RIGHT($E175),0))\n/SUM(AE$10:AE$11)","v":0.25517620517383227},{"$f":"IF(INDEX(PC_MAPPING,RIGHT($C171,1),MATCH($E$2,'Data by Building Type'!$D$22:$F$22,0))=\"Yes\",1,0)*\n(AF$10*OFFSET('Efficiency Distributions'!$D$10,MATCH($C171,'Efficiency Distributions'!$C$9:$C$87,0)+RIGHT($E175),0)\n+AF$11*OFFSET('Efficiency Distributions'!$E$10,MATCH($C171,'Efficiency Distributions'!$C$9:$C$87,0)+RIGHT($E175),0))\n/SUM(AF$10:AF$11)","v":0.26803790731297755},{"$f":"IF(INDEX(PC_MAPPING,RIGHT($C171,1),MATCH($E$2,'Data by Building Type'!$D$22:$F$22,0))=\"Yes\",1,0)*\n(AG$10*OFFSET('Efficiency Distributions'!$D$10,MATCH($C171,'Efficiency Distributions'!$C$9:$C$87,0)+RIGHT($E175),0)\n+AG$11*OFFSET('Efficiency Distributions'!$E$10,MATCH($C171,'Efficiency Distributions'!$C$9:$C$87,0)+RIGHT($E175),0))\n/SUM(AG$10:AG$11)","v":0.27031264667884325},{"$f":"IF(INDEX(PC_MAPPING,RIGHT($C171,1),MATCH($E$2,'Data by Building Type'!$D$22:$F$22,0))=\"Yes\",1,0)*\n(AH$10*OFFSET('Efficiency Distributions'!$D$10,MATCH($C171,'Efficiency Distributions'!$C$9:$C$87,0)+RIGHT($E175),0)\n+AH$11*OFFSET('Efficiency Distributions'!$E$10,MATCH($C171,'Efficiency Distributions'!$C$9:$C$87,0)+RIGHT($E175),0))\n/SUM(AH$10:AH$11)","v":0.26867488635360393},{"$f":"IF(INDEX(PC_MAPPING,RIGHT($C171,1),MATCH($E$2,'Data by Building Type'!$D$22:$F$22,0))=\"Yes\",1,0)*\n(AI$10*OFFSET('Efficiency Distributions'!$D$10,MATCH($C171,'Efficiency Distributions'!$C$9:$C$87,0)+RIGHT($E175),0)\n+AI$11*OFFSET('Efficiency Distributions'!$E$10,MATCH($C171,'Efficiency Distributions'!$C$9:$C$87,0)+RIGHT($E175),0))\n/SUM(AI$10:AI$11)","v":0.26705544483968435},{"$f":"IF(INDEX(PC_MAPPING,RIGHT($C171,1),MATCH($E$2,'Data by Building Type'!$D$22:$F$22,0))=\"Yes\",1,0)*\n(AJ$10*OFFSET('Efficiency Distributions'!$D$10,MATCH($C171,'Efficiency Distributions'!$C$9:$C$87,0)+RIGHT($E175),0)\n+AJ$11*OFFSET('Efficiency Distributions'!$E$10,MATCH($C171,'Efficiency Distributions'!$C$9:$C$87,0)+RIGHT($E175),0))\n/SUM(AJ$10:AJ$11)","v":0.2632026597231758},{"$f":"IF(INDEX(PC_MAPPING,RIGHT($C171,1),MATCH($E$2,'Data by Building Type'!$D$22:$F$22,0))=\"Yes\",1,0)*\n(AK$10*OFFSET('Efficiency Distributions'!$D$10,MATCH($C171,'Efficiency Distributions'!$C$9:$C$87,0)+RIGHT($E175),0)\n+AK$11*OFFSET('Efficiency Distributions'!$E$10,MATCH($C171,'Efficiency Distributions'!$C$9:$C$87,0)+RIGHT($E175),0))\n/SUM(AK$10:AK$11)","v":0.27084494612225818},{"$f":"IF(INDEX(PC_MAPPING,RIGHT($C171,1),MATCH($E$2,'Data by Building Type'!$D$22:$F$22,0))=\"Yes\",1,0)*\n(AL$10*OFFSET('Efficiency Distributions'!$D$10,MATCH($C171,'Efficiency Distributions'!$C$9:$C$87,0)+RIGHT($E175),0)\n+AL$11*OFFSET('Efficiency Distributions'!$E$10,MATCH($C171,'Efficiency Distributions'!$C$9:$C$87,0)+RIGHT($E175),0))\n/SUM(AL$10:AL$11)","v":0.26619143272658902},{"$f":"IF(INDEX(PC_MAPPING,RIGHT($C171,1),MATCH($E$2,'Data by Building Type'!$D$22:$F$22,0))=\"Yes\",1,0)*\n(AM$10*OFFSET('Efficiency Distributions'!$D$10,MATCH($C171,'Efficiency Distributions'!$C$9:$C$87,0)+RIGHT($E175),0)\n+AM$11*OFFSET('Efficiency Distributions'!$E$10,MATCH($C171,'Efficiency Distributions'!$C$9:$C$87,0)+RIGHT($E175),0))\n/SUM(AM$10:AM$11)","v":0.26074704231300611},{"$f":"IF(INDEX(PC_MAPPING,RIGHT($C171,1),MATCH($E$2,'Data by Building Type'!$D$22:$F$22,0))=\"Yes\",1,0)*\n(AN$10*OFFSET('Efficiency Distributions'!$D$10,MATCH($C171,'Efficiency Distributions'!$C$9:$C$87,0)+RIGHT($E175),0)\n+AN$11*OFFSET('Efficiency Distributions'!$E$10,MATCH($C171,'Efficiency Distributions'!$C$9:$C$87,0)+RIGHT($E175),0))\n/SUM(AN$10:AN$11)","v":0.25582234076314292},{"$f":"IF(INDEX(PC_MAPPING,RIGHT($C171,1),MATCH($E$2,'Data by Building Type'!$D$22:$F$22,0))=\"Yes\",1,0)*\n(AO$10*OFFSET('Efficiency Distributions'!$D$10,MATCH($C171,'Efficiency Distributions'!$C$9:$C$87,0)+RIGHT($E175),0)\n+AO$11*OFFSET('Efficiency Distributions'!$E$10,MATCH($C171,'Efficiency Distributions'!$C$9:$C$87,0)+RIGHT($E175),0))\n/SUM(AO$10:AO$11)","v":0.25528168759775038},{"$f":"IF(INDEX(PC_MAPPING,RIGHT($C171,1),MATCH($E$2,'Data by Building Type'!$D$22:$F$22,0))=\"Yes\",1,0)*\n(AP$10*OFFSET('Efficiency Distributions'!$D$10,MATCH($C171,'Efficiency Distributions'!$C$9:$C$87,0)+RIGHT($E175),0)\n+AP$11*OFFSET('Efficiency Distributions'!$E$10,MATCH($C171,'Efficiency Distributions'!$C$9:$C$87,0)+RIGHT($E175),0))\n/SUM(AP$10:AP$11)","v":0.25704058709609184},{"$f":"IF(INDEX(PC_MAPPING,RIGHT($C171,1),MATCH($E$2,'Data by Building Type'!$D$22:$F$22,0))=\"Yes\",1,0)*\n(AQ$10*OFFSET('Efficiency Distributions'!$D$10,MATCH($C171,'Efficiency Distributions'!$C$9:$C$87,0)+RIGHT($E175),0)\n+AQ$11*OFFSET('Efficiency Distributions'!$E$10,MATCH($C171,'Efficiency Distributions'!$C$9:$C$87,0)+RIGHT($E175),0))\n/SUM(AQ$10:AQ$11)","v":0.25678748394284717},{"$f":"IF(INDEX(PC_MAPPING,RIGHT($C171,1),MATCH($E$2,'Data by Building Type'!$D$22:$F$22,0))=\"Yes\",1,0)*\n(AR$10*OFFSET('Efficiency Distributions'!$D$10,MATCH($C171,'Efficiency Distributions'!$C$9:$C$87,0)+RIGHT($E175),0)\n+AR$11*OFFSET('Efficiency Distributions'!$E$10,MATCH($C171,'Efficiency Distributions'!$C$9:$C$87,0)+RIGHT($E175),0))\n/SUM(AR$10:AR$11)","v":0.25671243459961807},{"$f":"IF(INDEX(PC_MAPPING,RIGHT($C171,1),MATCH($E$2,'Data by Building Type'!$D$22:$F$22,0))=\"Yes\",1,0)*\n(AS$10*OFFSET('Efficiency Distributions'!$D$10,MATCH($C171,'Efficiency Distributions'!$C$9:$C$87,0)+RIGHT($E175),0)\n+AS$11*OFFSET('Efficiency Distributions'!$E$10,MATCH($C171,'Efficiency Distributions'!$C$9:$C$87,0)+RIGHT($E175),0))\n/SUM(AS$10:AS$11)","v":0.26184690020511775},{"$f":"IF(INDEX(PC_MAPPING,RIGHT($C171,1),MATCH($E$2,'Data by Building Type'!$D$22:$F$22,0))=\"Yes\",1,0)*\n(AT$10*OFFSET('Efficiency Distributions'!$D$10,MATCH($C171,'Efficiency Distributions'!$C$9:$C$87,0)+RIGHT($E175),0)\n+AT$11*OFFSET('Efficiency Distributions'!$E$10,MATCH($C171,'Efficiency Distributions'!$C$9:$C$87,0)+RIGHT($E175),0))\n/SUM(AT$10:AT$11)","v":0.27134326193867758},{"$f":"IF(INDEX(PC_MAPPING,RIGHT($C171,1),MATCH($E$2,'Data by Building Type'!$D$22:$F$22,0))=\"Yes\",1,0)*\n(AU$10*OFFSET('Efficiency Distributions'!$D$10,MATCH($C171,'Efficiency Distributions'!$C$9:$C$87,0)+RIGHT($E175),0)\n+AU$11*OFFSET('Efficiency Distributions'!$E$10,MATCH($C171,'Efficiency Distributions'!$C$9:$C$87,0)+RIGHT($E175),0))\n/SUM(AU$10:AU$11)","v":0.27774853374389319},{"$f":"IF(INDEX(PC_MAPPING,RIGHT($C171,1),MATCH($E$2,'Data by Building Type'!$D$22:$F$22,0))=\"Yes\",1,0)*\n(AV$10*OFFSET('Efficiency Distributions'!$D$10,MATCH($C171,'Efficiency Distributions'!$C$9:$C$87,0)+RIGHT($E175),0)\n+AV$11*OFFSET('Efficiency Distributions'!$E$10,MATCH($C171,'Efficiency Distributions'!$C$9:$C$87,0)+RIGHT($E175),0))\n/SUM(AV$10:AV$11)","v":0.26117274943543939},{"$f":"IF(INDEX(PC_MAPPING,RIGHT($C171,1),MATCH($E$2,'Data by Building Type'!$D$22:$F$22,0))=\"Yes\",1,0)*\n(AW$10*OFFSET('Efficiency Distributions'!$D$10,MATCH($C171,'Efficiency Distributions'!$C$9:$C$87,0)+RIGHT($E175),0)\n+AW$11*OFFSET('Efficiency Distributions'!$E$10,MATCH($C171,'Efficiency Distributions'!$C$9:$C$87,0)+RIGHT($E175),0))\n/SUM(AW$10:AW$11)","v":0.26506955138742849},{"$f":"IF(INDEX(PC_MAPPING,RIGHT($C171,1),MATCH($E$2,'Data by Building Type'!$D$22:$F$22,0))=\"Yes\",1,0)*\n(AX$10*OFFSET('Efficiency Distributions'!$D$10,MATCH($C171,'Efficiency Distributions'!$C$9:$C$87,0)+RIGHT($E175),0)\n+AX$11*OFFSET('Efficiency Distributions'!$E$10,MATCH($C171,'Efficiency Distributions'!$C$9:$C$87,0)+RIGHT($E175),0))\n/SUM(AX$10:AX$11)","v":0.26124333084946932},{"$f":"IF(INDEX(PC_MAPPING,RIGHT($C171,1),MATCH($E$2,'Data by Building Type'!$D$22:$F$22,0))=\"Yes\",1,0)*\n(AY$10*OFFSET('Efficiency Distributions'!$D$10,MATCH($C171,'Efficiency Distributions'!$C$9:$C$87,0)+RIGHT($E175),0)\n+AY$11*OFFSET('Efficiency Distributions'!$E$10,MATCH($C171,'Efficiency Distributions'!$C$9:$C$87,0)+RIGHT($E175),0))\n/SUM(AY$10:AY$11)","v":0.26092988138521783},{"$f":"IF(INDEX(PC_MAPPING,RIGHT($C171,1),MATCH($E$2,'Data by Building Type'!$D$22:$F$22,0))=\"Yes\",1,0)*\n(AZ$10*OFFSET('Efficiency Distributions'!$D$10,MATCH($C171,'Efficiency Distributions'!$C$9:$C$87,0)+RIGHT($E175),0)\n+AZ$11*OFFSET('Efficiency Distributions'!$E$10,MATCH($C171,'Efficiency Distributions'!$C$9:$C$87,0)+RIGHT($E175),0))\n/SUM(AZ$10:AZ$11)","v":0.26234327677463126},{"$f":"IF(INDEX(PC_MAPPING,RIGHT($C171,1),MATCH($E$2,'Data by Building Type'!$D$22:$F$22,0))=\"Yes\",1,0)*\n(BA$10*OFFSET('Efficiency Distributions'!$D$10,MATCH($C171,'Efficiency Distributions'!$C$9:$C$87,0)+RIGHT($E175),0)\n+BA$11*OFFSET('Efficiency Distributions'!$E$10,MATCH($C171,'Efficiency Distributions'!$C$9:$C$87,0)+RIGHT($E175),0))\n/SUM(BA$10:BA$11)","v":0.26101547467285213},{"$f":"IF(INDEX(PC_MAPPING,RIGHT($C171,1),MATCH($E$2,'Data by Building Type'!$D$22:$F$22,0))=\"Yes\",1,0)*\n(BB$10*OFFSET('Efficiency Distributions'!$D$10,MATCH($C171,'Efficiency Distributions'!$C$9:$C$87,0)+RIGHT($E175),0)\n+BB$11*OFFSET('Efficiency Distributions'!$E$10,MATCH($C171,'Efficiency Distributions'!$C$9:$C$87,0)+RIGHT($E175),0))\n/SUM(BB$10:BB$11)","v":0.25963184844088449},{"$f":"IF(INDEX(PC_MAPPING,RIGHT($C171,1),MATCH($E$2,'Data by Building Type'!$D$22:$F$22,0))=\"Yes\",1,0)*\n(BC$10*OFFSET('Efficiency Distributions'!$D$10,MATCH($C171,'Efficiency Distributions'!$C$9:$C$87,0)+RIGHT($E175),0)\n+BC$11*OFFSET('Efficiency Distributions'!$E$10,MATCH($C171,'Efficiency Distributions'!$C$9:$C$87,0)+RIGHT($E175),0))\n/SUM(BC$10:BC$11)","v":0.25673842666847091},{"$f":"IF(INDEX(PC_MAPPING,RIGHT($C171,1),MATCH($E$2,'Data by Building Type'!$D$22:$F$22,0))=\"Yes\",1,0)*\n(BD$10*OFFSET('Efficiency Distributions'!$D$10,MATCH($C171,'Efficiency Distributions'!$C$9:$C$87,0)+RIGHT($E175),0)\n+BD$11*OFFSET('Efficiency Distributions'!$E$10,MATCH($C171,'Efficiency Distributions'!$C$9:$C$87,0)+RIGHT($E175),0))\n/SUM(BD$10:BD$11)","v":0.25608244823907689},{"$f":"IF(INDEX(PC_MAPPING,RIGHT($C171,1),MATCH($E$2,'Data by Building Type'!$D$22:$F$22,0))=\"Yes\",1,0)*\n(BE$10*OFFSET('Efficiency Distributions'!$D$10,MATCH($C171,'Efficiency Distributions'!$C$9:$C$87,0)+RIGHT($E175),0)\n+BE$11*OFFSET('Efficiency Distributions'!$E$10,MATCH($C171,'Efficiency Distributions'!$C$9:$C$87,0)+RIGHT($E175),0))\n/SUM(BE$10:BE$11)","v":0.25464954595170919},{"$f":"IF(INDEX(PC_MAPPING,RIGHT($C171,1),MATCH($E$2,'Data by Building Type'!$D$22:$F$22,0))=\"Yes\",1,0)*\n(BF$10*OFFSET('Efficiency Distributions'!$D$10,MATCH($C171,'Efficiency Distributions'!$C$9:$C$87,0)+RIGHT($E175),0)\n+BF$11*OFFSET('Efficiency Distributions'!$E$10,MATCH($C171,'Efficiency Distributions'!$C$9:$C$87,0)+RIGHT($E175),0))\n/SUM(BF$10:BF$11)","v":0.25370683665296484},{"$f":"IF(INDEX(PC_MAPPING,RIGHT($C171,1),MATCH($E$2,'Data by Building Type'!$D$22:$F$22,0))=\"Yes\",1,0)*\n(BG$10*OFFSET('Efficiency Distributions'!$D$10,MATCH($C171,'Efficiency Distributions'!$C$9:$C$87,0)+RIGHT($E175),0)\n+BG$11*OFFSET('Efficiency Distributions'!$E$10,MATCH($C171,'Efficiency Distributions'!$C$9:$C$87,0)+RIGHT($E175),0))\n/SUM(BG$10:BG$11)","v":0.25259071955041357}]
[null,null,null,null,"EL1",{"$f":"IF(INDEX(PC_MAPPING,RIGHT($C171,1),MATCH($E$2,'Data by Building Type'!$D$22:$F$22,0))=\"Yes\",1,0)*\n(F$10*OFFSET('Efficiency Distributions'!$D$10,MATCH($C171,'Efficiency Distributions'!$C$9:$C$87,0)+RIGHT($E176),0)\n+F$11*OFFSET('Efficiency Distributions'!$E$10,MATCH($C171,'Efficiency Distributions'!$C$9:$C$87,0)+RIGHT($E176),0))\n/SUM(F$10:F$11)","v":0.37878668479295324},{"$f":"IF(INDEX(PC_MAPPING,RIGHT($C171,1),MATCH($E$2,'Data by Building Type'!$D$22:$F$22,0))=\"Yes\",1,0)*\n(G$10*OFFSET('Efficiency Distributions'!$D$10,MATCH($C171,'Efficiency Distributions'!$C$9:$C$87,0)+RIGHT($E176),0)\n+G$11*OFFSET('Efficiency Distributions'!$E$10,MATCH($C171,'Efficiency Distributions'!$C$9:$C$87,0)+RIGHT($E176),0))\n/SUM(G$10:G$11)","v":0.37301564465026144},{"$f":"IF(INDEX(PC_MAPPING,RIGHT($C171,1),MATCH($E$2,'Data by Building Type'!$D$22:$F$22,0))=\"Yes\",1,0)*\n(H$10*OFFSET('Efficiency Distributions'!$D$10,MATCH($C171,'Efficiency Distributions'!$C$9:$C$87,0)+RIGHT($E176),0)\n+H$11*OFFSET('Efficiency Distributions'!$E$10,MATCH($C171,'Efficiency Distributions'!$C$9:$C$87,0)+RIGHT($E176),0))\n/SUM(H$10:H$11)","v":0.38183664716434351},{"$f":"IF(INDEX(PC_MAPPING,RIGHT($C171,1),MATCH($E$2,'Data by Building Type'!$D$22:$F$22,0))=\"Yes\",1,0)*\n(I$10*OFFSET('Efficiency Distributions'!$D$10,MATCH($C171,'Efficiency Distributions'!$C$9:$C$87,0)+RIGHT($E176),0)\n+I$11*OFFSET('Efficiency Distributions'!$E$10,MATCH($C171,'Efficiency Distributions'!$C$9:$C$87,0)+RIGHT($E176),0))\n/SUM(I$10:I$11)","v":0.38132627293747429},{"$f":"IF(INDEX(PC_MAPPING,RIGHT($C171,1),MATCH($E$2,'Data by Building Type'!$D$22:$F$22,0))=\"Yes\",1,0)*\n(J$10*OFFSET('Efficiency Distributions'!$D$10,MATCH($C171,'Efficiency Distributions'!$C$9:$C$87,0)+RIGHT($E176),0)\n+J$11*OFFSET('Efficiency Distributions'!$E$10,MATCH($C171,'Efficiency Distributions'!$C$9:$C$87,0)+RIGHT($E176),0))\n/SUM(J$10:J$11)","v":0.37682211894569806},{"$f":"IF(INDEX(PC_MAPPING,RIGHT($C171,1),MATCH($E$2,'Data by Building Type'!$D$22:$F$22,0))=\"Yes\",1,0)*\n(K$10*OFFSET('Efficiency Distributions'!$D$10,MATCH($C171,'Efficiency Distributions'!$C$9:$C$87,0)+RIGHT($E176),0)\n+K$11*OFFSET('Efficiency Distributions'!$E$10,MATCH($C171,'Efficiency Distributions'!$C$9:$C$87,0)+RIGHT($E176),0))\n/SUM(K$10:K$11)","v":0.37176146663331039},{"$f":"IF(INDEX(PC_MAPPING,RIGHT($C171,1),MATCH($E$2,'Data by Building Type'!$D$22:$F$22,0))=\"Yes\",1,0)*\n(L$10*OFFSET('Efficiency Distributions'!$D$10,MATCH($C171,'Efficiency Distributions'!$C$9:$C$87,0)+RIGHT($E176),0)\n+L$11*OFFSET('Efficiency Distributions'!$E$10,MATCH($C171,'Efficiency Distributions'!$C$9:$C$87,0)+RIGHT($E176),0))\n/SUM(L$10:L$11)","v":0.37031474303515133},{"$f":"IF(INDEX(PC_MAPPING,RIGHT($C171,1),MATCH($E$2,'Data by Building Type'!$D$22:$F$22,0))=\"Yes\",1,0)*\n(M$10*OFFSET('Efficiency Distributions'!$D$10,MATCH($C171,'Efficiency Distributions'!$C$9:$C$87,0)+RIGHT($E176),0)\n+M$11*OFFSET('Efficiency Distributions'!$E$10,MATCH($C171,'Efficiency Distributions'!$C$9:$C$87,0)+RIGHT($E176),0))\n/SUM(M$10:M$11)","v":0.37388630259399314},{"$f":"IF(INDEX(PC_MAPPING,RIGHT($C171,1),MATCH($E$2,'Data by Building Type'!$D$22:$F$22,0))=\"Yes\",1,0)*\n(N$10*OFFSET('Efficiency Distributions'!$D$10,MATCH($C171,'Efficiency Distributions'!$C$9:$C$87,0)+RIGHT($E176),0)\n+N$11*OFFSET('Efficiency Distributions'!$E$10,MATCH($C171,'Efficiency Distributions'!$C$9:$C$87,0)+RIGHT($E176),0))\n/SUM(N$10:N$11)","v":0.37648903340366424},{"$f":"IF(INDEX(PC_MAPPING,RIGHT($C171,1),MATCH($E$2,'Data by Building Type'!$D$22:$F$22,0))=\"Yes\",1,0)*\n(O$10*OFFSET('Efficiency Distributions'!$D$10,MATCH($C171,'Efficiency Distributions'!$C$9:$C$87,0)+RIGHT($E176),0)\n+O$11*OFFSET('Efficiency Distributions'!$E$10,MATCH($C171,'Efficiency Distributions'!$C$9:$C$87,0)+RIGHT($E176),0))\n/SUM(O$10:O$11)","v":0.38128681640415046},{"$f":"IF(INDEX(PC_MAPPING,RIGHT($C171,1),MATCH($E$2,'Data by Building Type'!$D$22:$F$22,0))=\"Yes\",1,0)*\n(P$10*OFFSET('Efficiency Distributions'!$D$10,MATCH($C171,'Efficiency Distributions'!$C$9:$C$87,0)+RIGHT($E176),0)\n+P$11*OFFSET('Efficiency Distributions'!$E$10,MATCH($C171,'Efficiency Distributions'!$C$9:$C$87,0)+RIGHT($E176),0))\n/SUM(P$10:P$11)","v":0.38114712788270133},{"$f":"IF(INDEX(PC_MAPPING,RIGHT($C171,1),MATCH($E$2,'Data by Building Type'!$D$22:$F$22,0))=\"Yes\",1,0)*\n(Q$10*OFFSET('Efficiency Distributions'!$D$10,MATCH($C171,'Efficiency Distributions'!$C$9:$C$87,0)+RIGHT($E176),0)\n+Q$11*OFFSET('Efficiency Distributions'!$E$10,MATCH($C171,'Efficiency Distributions'!$C$9:$C$87,0)+RIGHT($E176),0))\n/SUM(Q$10:Q$11)","v":0.38540587489570205},{"$f":"IF(INDEX(PC_MAPPING,RIGHT($C171,1),MATCH($E$2,'Data by Building Type'!$D$22:$F$22,0))=\"Yes\",1,0)*\n(R$10*OFFSET('Efficiency Distributions'!$D$10,MATCH($C171,'Efficiency Distributions'!$C$9:$C$87,0)+RIGHT($E176),0)\n+R$11*OFFSET('Efficiency Distributions'!$E$10,MATCH($C171,'Efficiency Distributions'!$C$9:$C$87,0)+RIGHT($E176),0))\n/SUM(R$10:R$11)","v":0.39016592638237418},{"$f":"IF(INDEX(PC_MAPPING,RIGHT($C171,1),MATCH($E$2,'Data by Building Type'!$D$22:$F$22,0))=\"Yes\",1,0)*\n(S$10*OFFSET('Efficiency Distributions'!$D$10,MATCH($C171,'Efficiency Distributions'!$C$9:$C$87,0)+RIGHT($E176),0)\n+S$11*OFFSET('Efficiency Distributions'!$E$10,MATCH($C171,'Efficiency Distributions'!$C$9:$C$87,0)+RIGHT($E176),0))\n/SUM(S$10:S$11)","v":0.39451687701111571},{"$f":"IF(INDEX(PC_MAPPING,RIGHT($C171,1),MATCH($E$2,'Data by Building Type'!$D$22:$F$22,0))=\"Yes\",1,0)*\n(T$10*OFFSET('Efficiency Distributions'!$D$10,MATCH($C171,'Efficiency Distributions'!$C$9:$C$87,0)+RIGHT($E176),0)\n+T$11*OFFSET('Efficiency Distributions'!$E$10,MATCH($C171,'Efficiency Distributions'!$C$9:$C$87,0)+RIGHT($E176),0))\n/SUM(T$10:T$11)","v":0.3931237618742045},{"$f":"IF(INDEX(PC_MAPPING,RIGHT($C171,1),MATCH($E$2,'Data by Building Type'!$D$22:$F$22,0))=\"Yes\",1,0)*\n(U$10*OFFSET('Efficiency Distributions'!$D$10,MATCH($C171,'Efficiency Distributions'!$C$9:$C$87,0)+RIGHT($E176),0)\n+U$11*OFFSET('Efficiency Distributions'!$E$10,MATCH($C171,'Efficiency Distributions'!$C$9:$C$87,0)+RIGHT($E176),0))\n/SUM(U$10:U$11)","v":0.38895888810127194},{"$f":"IF(INDEX(PC_MAPPING,RIGHT($C171,1),MATCH($E$2,'Data by Building Type'!$D$22:$F$22,0))=\"Yes\",1,0)*\n(V$10*OFFSET('Efficiency Distributions'!$D$10,MATCH($C171,'Efficiency Distributions'!$C$9:$C$87,0)+RIGHT($E176),0)\n+V$11*OFFSET('Efficiency Distributions'!$E$10,MATCH($C171,'Efficiency Distributions'!$C$9:$C$87,0)+RIGHT($E176),0))\n/SUM(V$10:V$11)","v":0.38909834920194469},{"$f":"IF(INDEX(PC_MAPPING,RIGHT($C171,1),MATCH($E$2,'Data by Building Type'!$D$22:$F$22,0))=\"Yes\",1,0)*\n(W$10*OFFSET('Efficiency Distributions'!$D$10,MATCH($C171,'Efficiency Distributions'!$C$9:$C$87,0)+RIGHT($E176),0)\n+W$11*OFFSET('Efficiency Distributions'!$E$10,MATCH($C171,'Efficiency Distributions'!$C$9:$C$87,0)+RIGHT($E176),0))\n/SUM(W$10:W$11)","v":0.39010236631547224},{"$f":"IF(INDEX(PC_MAPPING,RIGHT($C171,1),MATCH($E$2,'Data by Building Type'!$D$22:$F$22,0))=\"Yes\",1,0)*\n(X$10*OFFSET('Efficiency Distributions'!$D$10,MATCH($C171,'Efficiency Distributions'!$C$9:$C$87,0)+RIGHT($E176),0)\n+X$11*OFFSET('Efficiency Distributions'!$E$10,MATCH($C171,'Efficiency Distributions'!$C$9:$C$87,0)+RIGHT($E176),0))\n/SUM(X$10:X$11)","v":0.38366066487066758},{"$f":"IF(INDEX(PC_MAPPING,RIGHT($C171,1),MATCH($E$2,'Data by Building Type'!$D$22:$F$22,0))=\"Yes\",1,0)*\n(Y$10*OFFSET('Efficiency Distributions'!$D$10,MATCH($C171,'Efficiency Distributions'!$C$9:$C$87,0)+RIGHT($E176),0)\n+Y$11*OFFSET('Efficiency Distributions'!$E$10,MATCH($C171,'Efficiency Distributions'!$C$9:$C$87,0)+RIGHT($E176),0))\n/SUM(Y$10:Y$11)","v":0.37035845364583853},{"$f":"IF(INDEX(PC_MAPPING,RIGHT($C171,1),MATCH($E$2,'Data by Building Type'!$D$22:$F$22,0))=\"Yes\",1,0)*\n(Z$10*OFFSET('Efficiency Distributions'!$D$10,MATCH($C171,'Efficiency Distributions'!$C$9:$C$87,0)+RIGHT($E176),0)\n+Z$11*OFFSET('Efficiency Distributions'!$E$10,MATCH($C171,'Efficiency Distributions'!$C$9:$C$87,0)+RIGHT($E176),0))\n/SUM(Z$10:Z$11)","v":0.36198318719191458},{"$f":"IF(INDEX(PC_MAPPING,RIGHT($C171,1),MATCH($E$2,'Data by Building Type'!$D$22:$F$22,0))=\"Yes\",1,0)*\n(AA$10*OFFSET('Efficiency Distributions'!$D$10,MATCH($C171,'Efficiency Distributions'!$C$9:$C$87,0)+RIGHT($E176),0)\n+AA$11*OFFSET('Efficiency Distributions'!$E$10,MATCH($C171,'Efficiency Distributions'!$C$9:$C$87,0)+RIGHT($E176),0))\n/SUM(AA$10:AA$11)","v":0.35020889615777667},{"$f":"IF(INDEX(PC_MAPPING,RIGHT($C171,1),MATCH($E$2,'Data by Building Type'!$D$22:$F$22,0))=\"Yes\",1,0)*\n(AB$10*OFFSET('Efficiency Distributions'!$D$10,MATCH($C171,'Efficiency Distributions'!$C$9:$C$87,0)+RIGHT($E176),0)\n+AB$11*OFFSET('Efficiency Distributions'!$E$10,MATCH($C171,'Efficiency Distributions'!$C$9:$C$87,0)+RIGHT($E176),0))\n/SUM(AB$10:AB$11)","v":0.34991205311331669},{"$f":"IF(INDEX(PC_MAPPING,RIGHT($C171,1),MATCH($E$2,'Data by Building Type'!$D$22:$F$22,0))=\"Yes\",1,0)*\n(AC$10*OFFSET('Efficiency Distributions'!$D$10,MATCH($C171,'Efficiency Distributions'!$C$9:$C$87,0)+RIGHT($E176),0)\n+AC$11*OFFSET('Efficiency Distributions'!$E$10,MATCH($C171,'Efficiency Distributions'!$C$9:$C$87,0)+RIGHT($E176),0))\n/SUM(AC$10:AC$11)","v":0.34676457707226288},{"$f":"IF(INDEX(PC_MAPPING,RIGHT($C171,1),MATCH($E$2,'Data by Building Type'!$D$22:$F$22,0))=\"Yes\",1,0)*\n(AD$10*OFFSET('Efficiency Distributions'!$D$10,MATCH($C171,'Efficiency Distributions'!$C$9:$C$87,0)+RIGHT($E176),0)\n+AD$11*OFFSET('Efficiency Distributions'!$E$10,MATCH($C171,'Efficiency Distributions'!$C$9:$C$87,0)+RIGHT($E176),0))\n/SUM(AD$10:AD$11)","v":0.34677981793778795},{"$f":"IF(INDEX(PC_MAPPING,RIGHT($C171,1),MATCH($E$2,'Data by Building Type'!$D$22:$F$22,0))=\"Yes\",1,0)*\n(AE$10*OFFSET('Efficiency Distributions'!$D$10,MATCH($C171,'Efficiency Distributions'!$C$9:$C$87,0)+RIGHT($E176),0)\n+AE$11*OFFSET('Efficiency Distributions'!$E$10,MATCH($C171,'Efficiency Distributions'!$C$9:$C$87,0)+RIGHT($E176),0))\n/SUM(AE$10:AE$11)","v":0.34682358857491158},{"$f":"IF(INDEX(PC_MAPPING,RIGHT($C171,1),MATCH($E$2,'Data by Building Type'!$D$22:$F$22,0))=\"Yes\",1,0)*\n(AF$10*OFFSET('Efficiency Distributions'!$D$10,MATCH($C171,'Efficiency Distributions'!$C$9:$C$87,0)+RIGHT($E176),0)\n+AF$11*OFFSET('Efficiency Distributions'!$E$10,MATCH($C171,'Efficiency Distributions'!$C$9:$C$87,0)+RIGHT($E176),0))\n/SUM(AF$10:AF$11)","v":0.35328411999725828},{"$f":"IF(INDEX(PC_MAPPING,RIGHT($C171,1),MATCH($E$2,'Data by Building Type'!$D$22:$F$22,0))=\"Yes\",1,0)*\n(AG$10*OFFSET('Efficiency Distributions'!$D$10,MATCH($C171,'Efficiency Distributions'!$C$9:$C$87,0)+RIGHT($E176),0)\n+AG$11*OFFSET('Efficiency Distributions'!$E$10,MATCH($C171,'Efficiency Distributions'!$C$9:$C$87,0)+RIGHT($E176),0))\n/SUM(AG$10:AG$11)","v":0.35442673899059485},{"$f":"IF(INDEX(PC_MAPPING,RIGHT($C171,1),MATCH($E$2,'Data by Building Type'!$D$22:$F$22,0))=\"Yes\",1,0)*\n(AH$10*OFFSET('Efficiency Distributions'!$D$10,MATCH($C171,'Efficiency Distributions'!$C$9:$C$87,0)+RIGHT($E176),0)\n+AH$11*OFFSET('Efficiency Distributions'!$E$10,MATCH($C171,'Efficiency Distributions'!$C$9:$C$87,0)+RIGHT($E176),0))\n/SUM(AH$10:AH$11)","v":0.35360407944452449},{"$f":"IF(INDEX(PC_MAPPING,RIGHT($C171,1),MATCH($E$2,'Data by Building Type'!$D$22:$F$22,0))=\"Yes\",1,0)*\n(AI$10*OFFSET('Efficiency Distributions'!$D$10,MATCH($C171,'Efficiency Distributions'!$C$9:$C$87,0)+RIGHT($E176),0)\n+AI$11*OFFSET('Efficiency Distributions'!$E$10,MATCH($C171,'Efficiency Distributions'!$C$9:$C$87,0)+RIGHT($E176),0))\n/SUM(AI$10:AI$11)","v":0.35279062157758423},{"$f":"IF(INDEX(PC_MAPPING,RIGHT($C171,1),MATCH($E$2,'Data by Building Type'!$D$22:$F$22,0))=\"Yes\",1,0)*\n(AJ$10*OFFSET('Efficiency Distributions'!$D$10,MATCH($C171,'Efficiency Distributions'!$C$9:$C$87,0)+RIGHT($E176),0)\n+AJ$11*OFFSET('Efficiency Distributions'!$E$10,MATCH($C171,'Efficiency Distributions'!$C$9:$C$87,0)+RIGHT($E176),0))\n/SUM(AJ$10:AJ$11)","v":0.35085533812602643},{"$f":"IF(INDEX(PC_MAPPING,RIGHT($C171,1),MATCH($E$2,'Data by Building Type'!$D$22:$F$22,0))=\"Yes\",1,0)*\n(AK$10*OFFSET('Efficiency Distributions'!$D$10,MATCH($C171,'Efficiency Distributions'!$C$9:$C$87,0)+RIGHT($E176),0)\n+AK$11*OFFSET('Efficiency Distributions'!$E$10,MATCH($C171,'Efficiency Distributions'!$C$9:$C$87,0)+RIGHT($E176),0))\n/SUM(AK$10:AK$11)","v":0.35469411707500975},{"$f":"IF(INDEX(PC_MAPPING,RIGHT($C171,1),MATCH($E$2,'Data by Building Type'!$D$22:$F$22,0))=\"Yes\",1,0)*\n(AL$10*OFFSET('Efficiency Distributions'!$D$10,MATCH($C171,'Efficiency Distributions'!$C$9:$C$87,0)+RIGHT($E176),0)\n+AL$11*OFFSET('Efficiency Distributions'!$E$10,MATCH($C171,'Efficiency Distributions'!$C$9:$C$87,0)+RIGHT($E176),0))\n/SUM(AL$10:AL$11)","v":0.35235662168040482},{"$f":"IF(INDEX(PC_MAPPING,RIGHT($C171,1),MATCH($E$2,'Data by Building Type'!$D$22:$F$22,0))=\"Yes\",1,0)*\n(AM$10*OFFSET('Efficiency Distributions'!$D$10,MATCH($C171,'Efficiency Distributions'!$C$9:$C$87,0)+RIGHT($E176),0)\n+AM$11*OFFSET('Efficiency Distributions'!$E$10,MATCH($C171,'Efficiency Distributions'!$C$9:$C$87,0)+RIGHT($E176),0))\n/SUM(AM$10:AM$11)","v":0.34962186270667439},{"$f":"IF(INDEX(PC_MAPPING,RIGHT($C171,1),MATCH($E$2,'Data by Building Type'!$D$22:$F$22,0))=\"Yes\",1,0)*\n(AN$10*OFFSET('Efficiency Distributions'!$D$10,MATCH($C171,'Efficiency Distributions'!$C$9:$C$87,0)+RIGHT($E176),0)\n+AN$11*OFFSET('Efficiency Distributions'!$E$10,MATCH($C171,'Efficiency Distributions'!$C$9:$C$87,0)+RIGHT($E176),0))\n/SUM(AN$10:AN$11)","v":0.34714814742666206},{"$f":"IF(INDEX(PC_MAPPING,RIGHT($C171,1),MATCH($E$2,'Data by Building Type'!$D$22:$F$22,0))=\"Yes\",1,0)*\n(AO$10*OFFSET('Efficiency Distributions'!$D$10,MATCH($C171,'Efficiency Distributions'!$C$9:$C$87,0)+RIGHT($E176),0)\n+AO$11*OFFSET('Efficiency Distributions'!$E$10,MATCH($C171,'Efficiency Distributions'!$C$9:$C$87,0)+RIGHT($E176),0))\n/SUM(AO$10:AO$11)","v":0.34687657320376208},{"$f":"IF(INDEX(PC_MAPPING,RIGHT($C171,1),MATCH($E$2,'Data by Building Type'!$D$22:$F$22,0))=\"Yes\",1,0)*\n(AP$10*OFFSET('Efficiency Distributions'!$D$10,MATCH($C171,'Efficiency Distributions'!$C$9:$C$87,0)+RIGHT($E176),0)\n+AP$11*OFFSET('Efficiency Distributions'!$E$10,MATCH($C171,'Efficiency Distributions'!$C$9:$C$87,0)+RIGHT($E176),0))\n/SUM(AP$10:AP$11)","v":0.347760081883628},{"$f":"IF(INDEX(PC_MAPPING,RIGHT($C171,1),MATCH($E$2,'Data by Building Type'!$D$22:$F$22,0))=\"Yes\",1,0)*\n(AQ$10*OFFSET('Efficiency Distributions'!$D$10,MATCH($C171,'Efficiency Distributions'!$C$9:$C$87,0)+RIGHT($E176),0)\n+AQ$11*OFFSET('Efficiency Distributions'!$E$10,MATCH($C171,'Efficiency Distributions'!$C$9:$C$87,0)+RIGHT($E176),0))\n/SUM(AQ$10:AQ$11)","v":0.34763294623261209},{"$f":"IF(INDEX(PC_MAPPING,RIGHT($C171,1),MATCH($E$2,'Data by Building Type'!$D$22:$F$22,0))=\"Yes\",1,0)*\n(AR$10*OFFSET('Efficiency Distributions'!$D$10,MATCH($C171,'Efficiency Distributions'!$C$9:$C$87,0)+RIGHT($E176),0)\n+AR$11*OFFSET('Efficiency Distributions'!$E$10,MATCH($C171,'Efficiency Distributions'!$C$9:$C$87,0)+RIGHT($E176),0))\n/SUM(AR$10:AR$11)","v":0.34759524837311329},{"$f":"IF(INDEX(PC_MAPPING,RIGHT($C171,1),MATCH($E$2,'Data by Building Type'!$D$22:$F$22,0))=\"Yes\",1,0)*\n(AS$10*OFFSET('Efficiency Distributions'!$D$10,MATCH($C171,'Efficiency Distributions'!$C$9:$C$87,0)+RIGHT($E176),0)\n+AS$11*OFFSET('Efficiency Distributions'!$E$10,MATCH($C171,'Efficiency Distributions'!$C$9:$C$87,0)+RIGHT($E176),0))\n/SUM(AS$10:AS$11)","v":0.35017432974371437},{"$f":"IF(INDEX(PC_MAPPING,RIGHT($C171,1),MATCH($E$2,'Data by Building Type'!$D$22:$F$22,0))=\"Yes\",1,0)*\n(AT$10*OFFSET('Efficiency Distributions'!$D$10,MATCH($C171,'Efficiency Distributions'!$C$9:$C$87,0)+RIGHT($E176),0)\n+AT$11*OFFSET('Efficiency Distributions'!$E$10,MATCH($C171,'Efficiency Distributions'!$C$9:$C$87,0)+RIGHT($E176),0))\n/SUM(AT$10:AT$11)","v":0.35494442492348893},{"$f":"IF(INDEX(PC_MAPPING,RIGHT($C171,1),MATCH($E$2,'Data by Building Type'!$D$22:$F$22,0))=\"Yes\",1,0)*\n(AU$10*OFFSET('Efficiency Distributions'!$D$10,MATCH($C171,'Efficiency Distributions'!$C$9:$C$87,0)+RIGHT($E176),0)\n+AU$11*OFFSET('Efficiency Distributions'!$E$10,MATCH($C171,'Efficiency Distributions'!$C$9:$C$87,0)+RIGHT($E176),0))\n/SUM(AU$10:AU$11)","v":0.35816184197440326},{"$f":"IF(INDEX(PC_MAPPING,RIGHT($C171,1),MATCH($E$2,'Data by Building Type'!$D$22:$F$22,0))=\"Yes\",1,0)*\n(AV$10*OFFSET('Efficiency Distributions'!$D$10,MATCH($C171,'Efficiency Distributions'!$C$9:$C$87,0)+RIGHT($E176),0)\n+AV$11*OFFSET('Efficiency Distributions'!$E$10,MATCH($C171,'Efficiency Distributions'!$C$9:$C$87,0)+RIGHT($E176),0))\n/SUM(AV$10:AV$11)","v":0.34983569865244912},{"$f":"IF(INDEX(PC_MAPPING,RIGHT($C171,1),MATCH($E$2,'Data by Building Type'!$D$22:$F$22,0))=\"Yes\",1,0)*\n(AW$10*OFFSET('Efficiency Distributions'!$D$10,MATCH($C171,'Efficiency Distributions'!$C$9:$C$87,0)+RIGHT($E176),0)\n+AW$11*OFFSET('Efficiency Distributions'!$E$10,MATCH($C171,'Efficiency Distributions'!$C$9:$C$87,0)+RIGHT($E176),0))\n/SUM(AW$10:AW$11)","v":0.35179309209735443},{"$f":"IF(INDEX(PC_MAPPING,RIGHT($C171,1),MATCH($E$2,'Data by Building Type'!$D$22:$F$22,0))=\"Yes\",1,0)*\n(AX$10*OFFSET('Efficiency Distributions'!$D$10,MATCH($C171,'Efficiency Distributions'!$C$9:$C$87,0)+RIGHT($E176),0)\n+AX$11*OFFSET('Efficiency Distributions'!$E$10,MATCH($C171,'Efficiency Distributions'!$C$9:$C$87,0)+RIGHT($E176),0))\n/SUM(AX$10:AX$11)","v":0.34987115223691567},{"$f":"IF(INDEX(PC_MAPPING,RIGHT($C171,1),MATCH($E$2,'Data by Building Type'!$D$22:$F$22,0))=\"Yes\",1,0)*\n(AY$10*OFFSET('Efficiency Distributions'!$D$10,MATCH($C171,'Efficiency Distributions'!$C$9:$C$87,0)+RIGHT($E176),0)\n+AY$11*OFFSET('Efficiency Distributions'!$E$10,MATCH($C171,'Efficiency Distributions'!$C$9:$C$87,0)+RIGHT($E176),0))\n/SUM(AY$10:AY$11)","v":0.3497137041720168},{"$f":"IF(INDEX(PC_MAPPING,RIGHT($C171,1),MATCH($E$2,'Data by Building Type'!$D$22:$F$22,0))=\"Yes\",1,0)*\n(AZ$10*OFFSET('Efficiency Distributions'!$D$10,MATCH($C171,'Efficiency Distributions'!$C$9:$C$87,0)+RIGHT($E176),0)\n+AZ$11*OFFSET('Efficiency Distributions'!$E$10,MATCH($C171,'Efficiency Distributions'!$C$9:$C$87,0)+RIGHT($E176),0))\n/SUM(AZ$10:AZ$11)","v":0.35042366349363058},{"$f":"IF(INDEX(PC_MAPPING,RIGHT($C171,1),MATCH($E$2,'Data by Building Type'!$D$22:$F$22,0))=\"Yes\",1,0)*\n(BA$10*OFFSET('Efficiency Distributions'!$D$10,MATCH($C171,'Efficiency Distributions'!$C$9:$C$87,0)+RIGHT($E176),0)\n+BA$11*OFFSET('Efficiency Distributions'!$E$10,MATCH($C171,'Efficiency Distributions'!$C$9:$C$87,0)+RIGHT($E176),0))\n/SUM(BA$10:BA$11)","v":0.34975669833548917},{"$f":"IF(INDEX(PC_MAPPING,RIGHT($C171,1),MATCH($E$2,'Data by Building Type'!$D$22:$F$22,0))=\"Yes\",1,0)*\n(BB$10*OFFSET('Efficiency Distributions'!$D$10,MATCH($C171,'Efficiency Distributions'!$C$9:$C$87,0)+RIGHT($E176),0)\n+BB$11*OFFSET('Efficiency Distributions'!$E$10,MATCH($C171,'Efficiency Distributions'!$C$9:$C$87,0)+RIGHT($E176),0))\n/SUM(BB$10:BB$11)","v":0.34906169228950062},{"$f":"IF(INDEX(PC_MAPPING,RIGHT($C171,1),MATCH($E$2,'Data by Building Type'!$D$22:$F$22,0))=\"Yes\",1,0)*\n(BC$10*OFFSET('Efficiency Distributions'!$D$10,MATCH($C171,'Efficiency Distributions'!$C$9:$C$87,0)+RIGHT($E176),0)\n+BC$11*OFFSET('Efficiency Distributions'!$E$10,MATCH($C171,'Efficiency Distributions'!$C$9:$C$87,0)+RIGHT($E176),0))\n/SUM(BC$10:BC$11)","v":0.34760830438823004},{"$f":"IF(INDEX(PC_MAPPING,RIGHT($C171,1),MATCH($E$2,'Data by Building Type'!$D$22:$F$22,0))=\"Yes\",1,0)*\n(BD$10*OFFSET('Efficiency Distributions'!$D$10,MATCH($C171,'Efficiency Distributions'!$C$9:$C$87,0)+RIGHT($E176),0)\n+BD$11*OFFSET('Efficiency Distributions'!$E$10,MATCH($C171,'Efficiency Distributions'!$C$9:$C$87,0)+RIGHT($E176),0))\n/SUM(BD$10:BD$11)","v":0.34727880140257283},{"$f":"IF(INDEX(PC_MAPPING,RIGHT($C171,1),MATCH($E$2,'Data by Building Type'!$D$22:$F$22,0))=\"Yes\",1,0)*\n(BE$10*OFFSET('Efficiency Distributions'!$D$10,MATCH($C171,'Efficiency Distributions'!$C$9:$C$87,0)+RIGHT($E176),0)\n+BE$11*OFFSET('Efficiency Distributions'!$E$10,MATCH($C171,'Efficiency Distributions'!$C$9:$C$87,0)+RIGHT($E176),0))\n/SUM(BE$10:BE$11)","v":0.34655904361681938},{"$f":"IF(INDEX(PC_MAPPING,RIGHT($C171,1),MATCH($E$2,'Data by Building Type'!$D$22:$F$22,0))=\"Yes\",1,0)*\n(BF$10*OFFSET('Efficiency Distributions'!$D$10,MATCH($C171,'Efficiency Distributions'!$C$9:$C$87,0)+RIGHT($E176),0)\n+BF$11*OFFSET('Efficiency Distributions'!$E$10,MATCH($C171,'Efficiency Distributions'!$C$9:$C$87,0)+RIGHT($E176),0))\n/SUM(BF$10:BF$11)","v":0.34608551352097455},{"$f":"IF(INDEX(PC_MAPPING,RIGHT($C171,1),MATCH($E$2,'Data by Building Type'!$D$22:$F$22,0))=\"Yes\",1,0)*\n(BG$10*OFFSET('Efficiency Distributions'!$D$10,MATCH($C171,'Efficiency Distributions'!$C$9:$C$87,0)+RIGHT($E176),0)\n+BG$11*OFFSET('Efficiency Distributions'!$E$10,MATCH($C171,'Efficiency Distributions'!$C$9:$C$87,0)+RIGHT($E176),0))\n/SUM(BG$10:BG$11)","v":0.34552487935809001}]
[null,null,null,null,"EL2",{"$f":"IF(INDEX(PC_MAPPING,RIGHT($C171,1),MATCH($E$2,'Data by Building Type'!$D$22:$F$22,0))=\"Yes\",1,0)*\n(F$10*OFFSET('Efficiency Distributions'!$D$10,MATCH($C171,'Efficiency Distributions'!$C$9:$C$87,0)+RIGHT($E177),0)\n+F$11*OFFSET('Efficiency Distributions'!$E$10,MATCH($C171,'Efficiency Distributions'!$C$9:$C$87,0)+RIGHT($E177),0))\n/SUM(F$10:F$11)","v":0},{"$f":"IF(INDEX(PC_MAPPING,RIGHT($C171,1),MATCH($E$2,'Data by Building Type'!$D$22:$F$22,0))=\"Yes\",1,0)*\n(G$10*OFFSET('Efficiency Distributions'!$D$10,MATCH($C171,'Efficiency Distributions'!$C$9:$C$87,0)+RIGHT($E177),0)\n+G$11*OFFSET('Efficiency Distributions'!$E$10,MATCH($C171,'Efficiency Distributions'!$C$9:$C$87,0)+RIGHT($E177),0))\n/SUM(G$10:G$11)","v":0},{"$f":"IF(INDEX(PC_MAPPING,RIGHT($C171,1),MATCH($E$2,'Data by Building Type'!$D$22:$F$22,0))=\"Yes\",1,0)*\n(H$10*OFFSET('Efficiency Distributions'!$D$10,MATCH($C171,'Efficiency Distributions'!$C$9:$C$87,0)+RIGHT($E177),0)\n+H$11*OFFSET('Efficiency Distributions'!$E$10,MATCH($C171,'Efficiency Distributions'!$C$9:$C$87,0)+RIGHT($E177),0))\n/SUM(H$10:H$11)","v":0},{"$f":"IF(INDEX(PC_MAPPING,RIGHT($C171,1),MATCH($E$2,'Data by Building Type'!$D$22:$F$22,0))=\"Yes\",1,0)*\n(I$10*OFFSET('Efficiency Distributions'!$D$10,MATCH($C171,'Efficiency Distributions'!$C$9:$C$87,0)+RIGHT($E177),0)\n+I$11*OFFSET('Efficiency Distributions'!$E$10,MATCH($C171,'Efficiency Distributions'!$C$9:$C$87,0)+RIGHT($E177),0))\n/SUM(I$10:I$11)","v":0},{"$f":"IF(INDEX(PC_MAPPING,RIGHT($C171,1),MATCH($E$2,'Data by Building Type'!$D$22:$F$22,0))=\"Yes\",1,0)*\n(J$10*OFFSET('Efficiency Distributions'!$D$10,MATCH($C171,'Efficiency Distributions'!$C$9:$C$87,0)+RIGHT($E177),0)\n+J$11*OFFSET('Efficiency Distributions'!$E$10,MATCH($C171,'Efficiency Distributions'!$C$9:$C$87,0)+RIGHT($E177),0))\n/SUM(J$10:J$11)","v":0},{"$f":"IF(INDEX(PC_MAPPING,RIGHT($C171,1),MATCH($E$2,'Data by Building Type'!$D$22:$F$22,0))=\"Yes\",1,0)*\n(K$10*OFFSET('Efficiency Distributions'!$D$10,MATCH($C171,'Efficiency Distributions'!$C$9:$C$87,0)+RIGHT($E177),0)\n+K$11*OFFSET('Efficiency Distributions'!$E$10,MATCH($C171,'Efficiency Distributions'!$C$9:$C$87,0)+RIGHT($E177),0))\n/SUM(K$10:K$11)","v":0},{"$f":"IF(INDEX(PC_MAPPING,RIGHT($C171,1),MATCH($E$2,'Data by Building Type'!$D$22:$F$22,0))=\"Yes\",1,0)*\n(L$10*OFFSET('Efficiency Distributions'!$D$10,MATCH($C171,'Efficiency Distributions'!$C$9:$C$87,0)+RIGHT($E177),0)\n+L$11*OFFSET('Efficiency Distributions'!$E$10,MATCH($C171,'Efficiency Distributions'!$C$9:$C$87,0)+RIGHT($E177),0))\n/SUM(L$10:L$11)","v":0},{"$f":"IF(INDEX(PC_MAPPING,RIGHT($C171,1),MATCH($E$2,'Data by Building Type'!$D$22:$F$22,0))=\"Yes\",1,0)*\n(M$10*OFFSET('Efficiency Distributions'!$D$10,MATCH($C171,'Efficiency Distributions'!$C$9:$C$87,0)+RIGHT($E177),0)\n+M$11*OFFSET('Efficiency Distributions'!$E$10,MATCH($C171,'Efficiency Distributions'!$C$9:$C$87,0)+RIGHT($E177),0))\n/SUM(M$10:M$11)","v":0},{"$f":"IF(INDEX(PC_MAPPING,RIGHT($C171,1),MATCH($E$2,'Data by Building Type'!$D$22:$F$22,0))=\"Yes\",1,0)*\n(N$10*OFFSET('Efficiency Distributions'!$D$10,MATCH($C171,'Efficiency Distributions'!$C$9:$C$87,0)+RIGHT($E177),0)\n+N$11*OFFSET('Efficiency Distributions'!$E$10,MATCH($C171,'Efficiency Distributions'!$C$9:$C$87,0)+RIGHT($E177),0))\n/SUM(N$10:N$11)","v":0},{"$f":"IF(INDEX(PC_MAPPING,RIGHT($C171,1),MATCH($E$2,'Data by Building Type'!$D$22:$F$22,0))=\"Yes\",1,0)*\n(O$10*OFFSET('Efficiency Distributions'!$D$10,MATCH($C171,'Efficiency Distributions'!$C$9:$C$87,0)+RIGHT($E177),0)\n+O$11*OFFSET('Efficiency Distributions'!$E$10,MATCH($C171,'Efficiency Distributions'!$C$9:$C$87,0)+RIGHT($E177),0))\n/SUM(O$10:O$11)","v":0},{"$f":"IF(INDEX(PC_MAPPING,RIGHT($C171,1),MATCH($E$2,'Data by Building Type'!$D$22:$F$22,0))=\"Yes\",1,0)*\n(P$10*OFFSET('Efficiency Distributions'!$D$10,MATCH($C171,'Efficiency Distributions'!$C$9:$C$87,0)+RIGHT($E177),0)\n+P$11*OFFSET('Efficiency Distributions'!$E$10,MATCH($C171,'Efficiency Distributions'!$C$9:$C$87,0)+RIGHT($E177),0))\n/SUM(P$10:P$11)","v":0},{"$f":"IF(INDEX(PC_MAPPING,RIGHT($C171,1),MATCH($E$2,'Data by Building Type'!$D$22:$F$22,0))=\"Yes\",1,0)*\n(Q$10*OFFSET('Efficiency Distributions'!$D$10,MATCH($C171,'Efficiency Distributions'!$C$9:$C$87,0)+RIGHT($E177),0)\n+Q$11*OFFSET('Efficiency Distributions'!$E$10,MATCH($C171,'Efficiency Distributions'!$C$9:$C$87,0)+RIGHT($E177),0))\n/SUM(Q$10:Q$11)","v":0},{"$f":"IF(INDEX(PC_MAPPING,RIGHT($C171,1),MATCH($E$2,'Data by Building Type'!$D$22:$F$22,0))=\"Yes\",1,0)*\n(R$10*OFFSET('Efficiency Distributions'!$D$10,MATCH($C171,'Efficiency Distributions'!$C$9:$C$87,0)+RIGHT($E177),0)\n+R$11*OFFSET('Efficiency Distributions'!$E$10,MATCH($C171,'Efficiency Distributions'!$C$9:$C$87,0)+RIGHT($E177),0))\n/SUM(R$10:R$11)","v":0},{"$f":"IF(INDEX(PC_MAPPING,RIGHT($C171,1),MATCH($E$2,'Data by Building Type'!$D$22:$F$22,0))=\"Yes\",1,0)*\n(S$10*OFFSET('Efficiency Distributions'!$D$10,MATCH($C171,'Efficiency Distributions'!$C$9:$C$87,0)+RIGHT($E177),0)\n+S$11*OFFSET('Efficiency Distributions'!$E$10,MATCH($C171,'Efficiency Distributions'!$C$9:$C$87,0)+RIGHT($E177),0))\n/SUM(S$10:S$11)","v":0},{"$f":"IF(INDEX(PC_MAPPING,RIGHT($C171,1),MATCH($E$2,'Data by Building Type'!$D$22:$F$22,0))=\"Yes\",1,0)*\n(T$10*OFFSET('Efficiency Distributions'!$D$10,MATCH($C171,'Efficiency Distributions'!$C$9:$C$87,0)+RIGHT($E177),0)\n+T$11*OFFSET('Efficiency Distributions'!$E$10,MATCH($C171,'Efficiency Distributions'!$C$9:$C$87,0)+RIGHT($E177),0))\n/SUM(T$10:T$11)","v":0},{"$f":"IF(INDEX(PC_MAPPING,RIGHT($C171,1),MATCH($E$2,'Data by Building Type'!$D$22:$F$22,0))=\"Yes\",1,0)*\n(U$10*OFFSET('Efficiency Distributions'!$D$10,MATCH($C171,'Efficiency Distributions'!$C$9:$C$87,0)+RIGHT($E177),0)\n+U$11*OFFSET('Efficiency Distributions'!$E$10,MATCH($C171,'Efficiency Distributions'!$C$9:$C$87,0)+RIGHT($E177),0))\n/SUM(U$10:U$11)","v":0},{"$f":"IF(INDEX(PC_MAPPING,RIGHT($C171,1),MATCH($E$2,'Data by Building Type'!$D$22:$F$22,0))=\"Yes\",1,0)*\n(V$10*OFFSET('Efficiency Distributions'!$D$10,MATCH($C171,'Efficiency Distributions'!$C$9:$C$87,0)+RIGHT($E177),0)\n+V$11*OFFSET('Efficiency Distributions'!$E$10,MATCH($C171,'Efficiency Distributions'!$C$9:$C$87,0)+RIGHT($E177),0))\n/SUM(V$10:V$11)","v":0},{"$f":"IF(INDEX(PC_MAPPING,RIGHT($C171,1),MATCH($E$2,'Data by Building Type'!$D$22:$F$22,0))=\"Yes\",1,0)*\n(W$10*OFFSET('Efficiency Distributions'!$D$10,MATCH($C171,'Efficiency Distributions'!$C$9:$C$87,0)+RIGHT($E177),0)\n+W$11*OFFSET('Efficiency Distributions'!$E$10,MATCH($C171,'Efficiency Distributions'!$C$9:$C$87,0)+RIGHT($E177),0))\n/SUM(W$10:W$11)","v":0},{"$f":"IF(INDEX(PC_MAPPING,RIGHT($C171,1),MATCH($E$2,'Data by Building Type'!$D$22:$F$22,0))=\"Yes\",1,0)*\n(X$10*OFFSET('Efficiency Distributions'!$D$10,MATCH($C171,'Efficiency Distributions'!$C$9:$C$87,0)+RIGHT($E177),0)\n+X$11*OFFSET('Efficiency Distributions'!$E$10,MATCH($C171,'Efficiency Distributions'!$C$9:$C$87,0)+RIGHT($E177),0))\n/SUM(X$10:X$11)","v":0},{"$f":"IF(INDEX(PC_MAPPING,RIGHT($C171,1),MATCH($E$2,'Data by Building Type'!$D$22:$F$22,0))=\"Yes\",1,0)*\n(Y$10*OFFSET('Efficiency Distributions'!$D$10,MATCH($C171,'Efficiency Distributions'!$C$9:$C$87,0)+RIGHT($E177),0)\n+Y$11*OFFSET('Efficiency Distributions'!$E$10,MATCH($C171,'Efficiency Distributions'!$C$9:$C$87,0)+RIGHT($E177),0))\n/SUM(Y$10:Y$11)","v":0},{"$f":"IF(INDEX(PC_MAPPING,RIGHT($C171,1),MATCH($E$2,'Data by Building Type'!$D$22:$F$22,0))=\"Yes\",1,0)*\n(Z$10*OFFSET('Efficiency Distributions'!$D$10,MATCH($C171,'Efficiency Distributions'!$C$9:$C$87,0)+RIGHT($E177),0)\n+Z$11*OFFSET('Efficiency Distributions'!$E$10,MATCH($C171,'Efficiency Distributions'!$C$9:$C$87,0)+RIGHT($E177),0))\n/SUM(Z$10:Z$11)","v":0},{"$f":"IF(INDEX(PC_MAPPING,RIGHT($C171,1),MATCH($E$2,'Data by Building Type'!$D$22:$F$22,0))=\"Yes\",1,0)*\n(AA$10*OFFSET('Efficiency Distributions'!$D$10,MATCH($C171,'Efficiency Distributions'!$C$9:$C$87,0)+RIGHT($E177),0)\n+AA$11*OFFSET('Efficiency Distributions'!$E$10,MATCH($C171,'Efficiency Distributions'!$C$9:$C$87,0)+RIGHT($E177),0))\n/SUM(AA$10:AA$11)","v":0},{"$f":"IF(INDEX(PC_MAPPING,RIGHT($C171,1),MATCH($E$2,'Data by Building Type'!$D$22:$F$22,0))=\"Yes\",1,0)*\n(AB$10*OFFSET('Efficiency Distributions'!$D$10,MATCH($C171,'Efficiency Distributions'!$C$9:$C$87,0)+RIGHT($E177),0)\n+AB$11*OFFSET('Efficiency Distributions'!$E$10,MATCH($C171,'Efficiency Distributions'!$C$9:$C$87,0)+RIGHT($E177),0))\n/SUM(AB$10:AB$11)","v":0},{"$f":"IF(INDEX(PC_MAPPING,RIGHT($C171,1),MATCH($E$2,'Data by Building Type'!$D$22:$F$22,0))=\"Yes\",1,0)*\n(AC$10*OFFSET('Efficiency Distributions'!$D$10,MATCH($C171,'Efficiency Distributions'!$C$9:$C$87,0)+RIGHT($E177),0)\n+AC$11*OFFSET('Efficiency Distributions'!$E$10,MATCH($C171,'Efficiency Distributions'!$C$9:$C$87,0)+RIGHT($E177),0))\n/SUM(AC$10:AC$11)","v":0},{"$f":"IF(INDEX(PC_MAPPING,RIGHT($C171,1),MATCH($E$2,'Data by Building Type'!$D$22:$F$22,0))=\"Yes\",1,0)*\n(AD$10*OFFSET('Efficiency Distributions'!$D$10,MATCH($C171,'Efficiency Distributions'!$C$9:$C$87,0)+RIGHT($E177),0)\n+AD$11*OFFSET('Efficiency Distributions'!$E$10,MATCH($C171,'Efficiency Distributions'!$C$9:$C$87,0)+RIGHT($E177),0))\n/SUM(AD$10:AD$11)","v":0},{"$f":"IF(INDEX(PC_MAPPING,RIGHT($C171,1),MATCH($E$2,'Data by Building Type'!$D$22:$F$22,0))=\"Yes\",1,0)*\n(AE$10*OFFSET('Efficiency Distributions'!$D$10,MATCH($C171,'Efficiency Distributions'!$C$9:$C$87,0)+RIGHT($E177),0)\n+AE$11*OFFSET('Efficiency Distributions'!$E$10,MATCH($C171,'Efficiency Distributions'!$C$9:$C$87,0)+RIGHT($E177),0))\n/SUM(AE$10:AE$11)","v":0},{"$f":"IF(INDEX(PC_MAPPING,RIGHT($C171,1),MATCH($E$2,'Data by Building Type'!$D$22:$F$22,0))=\"Yes\",1,0)*\n(AF$10*OFFSET('Efficiency Distributions'!$D$10,MATCH($C171,'Efficiency Distributions'!$C$9:$C$87,0)+RIGHT($E177),0)\n+AF$11*OFFSET('Efficiency Distributions'!$E$10,MATCH($C171,'Efficiency Distributions'!$C$9:$C$87,0)+RIGHT($E177),0))\n/SUM(AF$10:AF$11)","v":0},{"$f":"IF(INDEX(PC_MAPPING,RIGHT($C171,1),MATCH($E$2,'Data by Building Type'!$D$22:$F$22,0))=\"Yes\",1,0)*\n(AG$10*OFFSET('Efficiency Distributions'!$D$10,MATCH($C171,'Efficiency Distributions'!$C$9:$C$87,0)+RIGHT($E177),0)\n+AG$11*OFFSET('Efficiency Distributions'!$E$10,MATCH($C171,'Efficiency Distributions'!$C$9:$C$87,0)+RIGHT($E177),0))\n/SUM(AG$10:AG$11)","v":0},{"$f":"IF(INDEX(PC_MAPPING,RIGHT($C171,1),MATCH($E$2,'Data by Building Type'!$D$22:$F$22,0))=\"Yes\",1,0)*\n(AH$10*OFFSET('Efficiency Distributions'!$D$10,MATCH($C171,'Efficiency Distributions'!$C$9:$C$87,0)+RIGHT($E177),0)\n+AH$11*OFFSET('Efficiency Distributions'!$E$10,MATCH($C171,'Efficiency Distributions'!$C$9:$C$87,0)+RIGHT($E177),0))\n/SUM(AH$10:AH$11)","v":0},{"$f":"IF(INDEX(PC_MAPPING,RIGHT($C171,1),MATCH($E$2,'Data by Building Type'!$D$22:$F$22,0))=\"Yes\",1,0)*\n(AI$10*OFFSET('Efficiency Distributions'!$D$10,MATCH($C171,'Efficiency Distributions'!$C$9:$C$87,0)+RIGHT($E177),0)\n+AI$11*OFFSET('Efficiency Distributions'!$E$10,MATCH($C171,'Efficiency Distributions'!$C$9:$C$87,0)+RIGHT($E177),0))\n/SUM(AI$10:AI$11)","v":0},{"$f":"IF(INDEX(PC_MAPPING,RIGHT($C171,1),MATCH($E$2,'Data by Building Type'!$D$22:$F$22,0))=\"Yes\",1,0)*\n(AJ$10*OFFSET('Efficiency Distributions'!$D$10,MATCH($C171,'Efficiency Distributions'!$C$9:$C$87,0)+RIGHT($E177),0)\n+AJ$11*OFFSET('Efficiency Distributions'!$E$10,MATCH($C171,'Efficiency Distributions'!$C$9:$C$87,0)+RIGHT($E177),0))\n/SUM(AJ$10:AJ$11)","v":0},{"$f":"IF(INDEX(PC_MAPPING,RIGHT($C171,1),MATCH($E$2,'Data by Building Type'!$D$22:$F$22,0))=\"Yes\",1,0)*\n(AK$10*OFFSET('Efficiency Distributions'!$D$10,MATCH($C171,'Efficiency Distributions'!$C$9:$C$87,0)+RIGHT($E177),0)\n+AK$11*OFFSET('Efficiency Distributions'!$E$10,MATCH($C171,'Efficiency Distributions'!$C$9:$C$87,0)+RIGHT($E177),0))\n/SUM(AK$10:AK$11)","v":0},{"$f":"IF(INDEX(PC_MAPPING,RIGHT($C171,1),MATCH($E$2,'Data by Building Type'!$D$22:$F$22,0))=\"Yes\",1,0)*\n(AL$10*OFFSET('Efficiency Distributions'!$D$10,MATCH($C171,'Efficiency Distributions'!$C$9:$C$87,0)+RIGHT($E177),0)\n+AL$11*OFFSET('Efficiency Distributions'!$E$10,MATCH($C171,'Efficiency Distributions'!$C$9:$C$87,0)+RIGHT($E177),0))\n/SUM(AL$10:AL$11)","v":0},{"$f":"IF(INDEX(PC_MAPPING,RIGHT($C171,1),MATCH($E$2,'Data by Building Type'!$D$22:$F$22,0))=\"Yes\",1,0)*\n(AM$10*OFFSET('Efficiency Distributions'!$D$10,MATCH($C171,'Efficiency Distributions'!$C$9:$C$87,0)+RIGHT($E177),0)\n+AM$11*OFFSET('Efficiency Distributions'!$E$10,MATCH($C171,'Efficiency Distributions'!$C$9:$C$87,0)+RIGHT($E177),0))\n/SUM(AM$10:AM$11)","v":0},{"$f":"IF(INDEX(PC_MAPPING,RIGHT($C171,1),MATCH($E$2,'Data by Building Type'!$D$22:$F$22,0))=\"Yes\",1,0)*\n(AN$10*OFFSET('Efficiency Distributions'!$D$10,MATCH($C171,'Efficiency Distributions'!$C$9:$C$87,0)+RIGHT($E177),0)\n+AN$11*OFFSET('Efficiency Distributions'!$E$10,MATCH($C171,'Efficiency Distributions'!$C$9:$C$87,0)+RIGHT($E177),0))\n/SUM(AN$10:AN$11)","v":0},{"$f":"IF(INDEX(PC_MAPPING,RIGHT($C171,1),MATCH($E$2,'Data by Building Type'!$D$22:$F$22,0))=\"Yes\",1,0)*\n(AO$10*OFFSET('Efficiency Distributions'!$D$10,MATCH($C171,'Efficiency Distributions'!$C$9:$C$87,0)+RIGHT($E177),0)\n+AO$11*OFFSET('Efficiency Distributions'!$E$10,MATCH($C171,'Efficiency Distributions'!$C$9:$C$87,0)+RIGHT($E177),0))\n/SUM(AO$10:AO$11)","v":0},{"$f":"IF(INDEX(PC_MAPPING,RIGHT($C171,1),MATCH($E$2,'Data by Building Type'!$D$22:$F$22,0))=\"Yes\",1,0)*\n(AP$10*OFFSET('Efficiency Distributions'!$D$10,MATCH($C171,'Efficiency Distributions'!$C$9:$C$87,0)+RIGHT($E177),0)\n+AP$11*OFFSET('Efficiency Distributions'!$E$10,MATCH($C171,'Efficiency Distributions'!$C$9:$C$87,0)+RIGHT($E177),0))\n/SUM(AP$10:AP$11)","v":0},{"$f":"IF(INDEX(PC_MAPPING,RIGHT($C171,1),MATCH($E$2,'Data by Building Type'!$D$22:$F$22,0))=\"Yes\",1,0)*\n(AQ$10*OFFSET('Efficiency Distributions'!$D$10,MATCH($C171,'Efficiency Distributions'!$C$9:$C$87,0)+RIGHT($E177),0)\n+AQ$11*OFFSET('Efficiency Distributions'!$E$10,MATCH($C171,'Efficiency Distributions'!$C$9:$C$87,0)+RIGHT($E177),0))\n/SUM(AQ$10:AQ$11)","v":0},{"$f":"IF(INDEX(PC_MAPPING,RIGHT($C171,1),MATCH($E$2,'Data by Building Type'!$D$22:$F$22,0))=\"Yes\",1,0)*\n(AR$10*OFFSET('Efficiency Distributions'!$D$10,MATCH($C171,'Efficiency Distributions'!$C$9:$C$87,0)+RIGHT($E177),0)\n+AR$11*OFFSET('Efficiency Distributions'!$E$10,MATCH($C171,'Efficiency Distributions'!$C$9:$C$87,0)+RIGHT($E177),0))\n/SUM(AR$10:AR$11)","v":0},{"$f":"IF(INDEX(PC_MAPPING,RIGHT($C171,1),MATCH($E$2,'Data by Building Type'!$D$22:$F$22,0))=\"Yes\",1,0)*\n(AS$10*OFFSET('Efficiency Distributions'!$D$10,MATCH($C171,'Efficiency Distributions'!$C$9:$C$87,0)+RIGHT($E177),0)\n+AS$11*OFFSET('Efficiency Distributions'!$E$10,MATCH($C171,'Efficiency Distributions'!$C$9:$C$87,0)+RIGHT($E177),0))\n/SUM(AS$10:AS$11)","v":0},{"$f":"IF(INDEX(PC_MAPPING,RIGHT($C171,1),MATCH($E$2,'Data by Building Type'!$D$22:$F$22,0))=\"Yes\",1,0)*\n(AT$10*OFFSET('Efficiency Distributions'!$D$10,MATCH($C171,'Efficiency Distributions'!$C$9:$C$87,0)+RIGHT($E177),0)\n+AT$11*OFFSET('Efficiency Distributions'!$E$10,MATCH($C171,'Efficiency Distributions'!$C$9:$C$87,0)+RIGHT($E177),0))\n/SUM(AT$10:AT$11)","v":0},{"$f":"IF(INDEX(PC_MAPPING,RIGHT($C171,1),MATCH($E$2,'Data by Building Type'!$D$22:$F$22,0))=\"Yes\",1,0)*\n(AU$10*OFFSET('Efficiency Distributions'!$D$10,MATCH($C171,'Efficiency Distributions'!$C$9:$C$87,0)+RIGHT($E177),0)\n+AU$11*OFFSET('Efficiency Distributions'!$E$10,MATCH($C171,'Efficiency Distributions'!$C$9:$C$87,0)+RIGHT($E177),0))\n/SUM(AU$10:AU$11)","v":0},{"$f":"IF(INDEX(PC_MAPPING,RIGHT($C171,1),MATCH($E$2,'Data by Building Type'!$D$22:$F$22,0))=\"Yes\",1,0)*\n(AV$10*OFFSET('Efficiency Distributions'!$D$10,MATCH($C171,'Efficiency Distributions'!$C$9:$C$87,0)+RIGHT($E177),0)\n+AV$11*OFFSET('Efficiency Distributions'!$E$10,MATCH($C171,'Efficiency Distributions'!$C$9:$C$87,0)+RIGHT($E177),0))\n/SUM(AV$10:AV$11)","v":0},{"$f":"IF(INDEX(PC_MAPPING,RIGHT($C171,1),MATCH($E$2,'Data by Building Type'!$D$22:$F$22,0))=\"Yes\",1,0)*\n(AW$10*OFFSET('Efficiency Distributions'!$D$10,MATCH($C171,'Efficiency Distributions'!$C$9:$C$87,0)+RIGHT($E177),0)\n+AW$11*OFFSET('Efficiency Distributions'!$E$10,MATCH($C171,'Efficiency Distributions'!$C$9:$C$87,0)+RIGHT($E177),0))\n/SUM(AW$10:AW$11)","v":0},{"$f":"IF(INDEX(PC_MAPPING,RIGHT($C171,1),MATCH($E$2,'Data by Building Type'!$D$22:$F$22,0))=\"Yes\",1,0)*\n(AX$10*OFFSET('Efficiency Distributions'!$D$10,MATCH($C171,'Efficiency Distributions'!$C$9:$C$87,0)+RIGHT($E177),0)\n+AX$11*OFFSET('Efficiency Distributions'!$E$10,MATCH($C171,'Efficiency Distributions'!$C$9:$C$87,0)+RIGHT($E177),0))\n/SUM(AX$10:AX$11)","v":0},{"$f":"IF(INDEX(PC_MAPPING,RIGHT($C171,1),MATCH($E$2,'Data by Building Type'!$D$22:$F$22,0))=\"Yes\",1,0)*\n(AY$10*OFFSET('Efficiency Distributions'!$D$10,MATCH($C171,'Efficiency Distributions'!$C$9:$C$87,0)+RIGHT($E177),0)\n+AY$11*OFFSET('Efficiency Distributions'!$E$10,MATCH($C171,'Efficiency Distributions'!$C$9:$C$87,0)+RIGHT($E177),0))\n/SUM(AY$10:AY$11)","v":0},{"$f":"IF(INDEX(PC_MAPPING,RIGHT($C171,1),MATCH($E$2,'Data by Building Type'!$D$22:$F$22,0))=\"Yes\",1,0)*\n(AZ$10*OFFSET('Efficiency Distributions'!$D$10,MATCH($C171,'Efficiency Distributions'!$C$9:$C$87,0)+RIGHT($E177),0)\n+AZ$11*OFFSET('Efficiency Distributions'!$E$10,MATCH($C171,'Efficiency Distributions'!$C$9:$C$87,0)+RIGHT($E177),0))\n/SUM(AZ$10:AZ$11)","v":0},{"$f":"IF(INDEX(PC_MAPPING,RIGHT($C171,1),MATCH($E$2,'Data by Building Type'!$D$22:$F$22,0))=\"Yes\",1,0)*\n(BA$10*OFFSET('Efficiency Distributions'!$D$10,MATCH($C171,'Efficiency Distributions'!$C$9:$C$87,0)+RIGHT($E177),0)\n+BA$11*OFFSET('Efficiency Distributions'!$E$10,MATCH($C171,'Efficiency Distributions'!$C$9:$C$87,0)+RIGHT($E177),0))\n/SUM(BA$10:BA$11)","v":0},{"$f":"IF(INDEX(PC_MAPPING,RIGHT($C171,1),MATCH($E$2,'Data by Building Type'!$D$22:$F$22,0))=\"Yes\",1,0)*\n(BB$10*OFFSET('Efficiency Distributions'!$D$10,MATCH($C171,'Efficiency Distributions'!$C$9:$C$87,0)+RIGHT($E177),0)\n+BB$11*OFFSET('Efficiency Distributions'!$E$10,MATCH($C171,'Efficiency Distributions'!$C$9:$C$87,0)+RIGHT($E177),0))\n/SUM(BB$10:BB$11)","v":0},{"$f":"IF(INDEX(PC_MAPPING,RIGHT($C171,1),MATCH($E$2,'Data by Building Type'!$D$22:$F$22,0))=\"Yes\",1,0)*\n(BC$10*OFFSET('Efficiency Distributions'!$D$10,MATCH($C171,'Efficiency Distributions'!$C$9:$C$87,0)+RIGHT($E177),0)\n+BC$11*OFFSET('Efficiency Distributions'!$E$10,MATCH($C171,'Efficiency Distributions'!$C$9:$C$87,0)+RIGHT($E177),0))\n/SUM(BC$10:BC$11)","v":0},{"$f":"IF(INDEX(PC_MAPPING,RIGHT($C171,1),MATCH($E$2,'Data by Building Type'!$D$22:$F$22,0))=\"Yes\",1,0)*\n(BD$10*OFFSET('Efficiency Distributions'!$D$10,MATCH($C171,'Efficiency Distributions'!$C$9:$C$87,0)+RIGHT($E177),0)\n+BD$11*OFFSET('Efficiency Distributions'!$E$10,MATCH($C171,'Efficiency Distributions'!$C$9:$C$87,0)+RIGHT($E177),0))\n/SUM(BD$10:BD$11)","v":0},{"$f":"IF(INDEX(PC_MAPPING,RIGHT($C171,1),MATCH($E$2,'Data by Building Type'!$D$22:$F$22,0))=\"Yes\",1,0)*\n(BE$10*OFFSET('Efficiency Distributions'!$D$10,MATCH($C171,'Efficiency Distributions'!$C$9:$C$87,0)+RIGHT($E177),0)\n+BE$11*OFFSET('Efficiency Distributions'!$E$10,MATCH($C171,'Efficiency Distributions'!$C$9:$C$87,0)+RIGHT($E177),0))\n/SUM(BE$10:BE$11)","v":0},{"$f":"IF(INDEX(PC_MAPPING,RIGHT($C171,1),MATCH($E$2,'Data by Building Type'!$D$22:$F$22,0))=\"Yes\",1,0)*\n(BF$10*OFFSET('Efficiency Distributions'!$D$10,MATCH($C171,'Efficiency Distributions'!$C$9:$C$87,0)+RIGHT($E177),0)\n+BF$11*OFFSET('Efficiency Distributions'!$E$10,MATCH($C171,'Efficiency Distributions'!$C$9:$C$87,0)+RIGHT($E177),0))\n/SUM(BF$10:BF$11)","v":0},{"$f":"IF(INDEX(PC_MAPPING,RIGHT($C171,1),MATCH($E$2,'Data by Building Type'!$D$22:$F$22,0))=\"Yes\",1,0)*\n(BG$10*OFFSET('Efficiency Distributions'!$D$10,MATCH($C171,'Efficiency Distributions'!$C$9:$C$87,0)+RIGHT($E177),0)\n+BG$11*OFFSET('Efficiency Distributions'!$E$10,MATCH($C171,'Efficiency Distributions'!$C$9:$C$87,0)+RIGHT($E177),0))\n/SUM(BG$10:BG$11)","v":0}]
[null,null,null,null,"EL3",{"$f":"IF(INDEX(PC_MAPPING,RIGHT($C171,1),MATCH($E$2,'Data by Building Type'!$D$22:$F$22,0))=\"Yes\",1,0)*\n(F$10*OFFSET('Efficiency Distributions'!$D$10,MATCH($C171,'Efficiency Distributions'!$C$9:$C$87,0)+RIGHT($E178),0)\n+F$11*OFFSET('Efficiency Distributions'!$E$10,MATCH($C171,'Efficiency Distributions'!$C$9:$C$87,0)+RIGHT($E178),0))\n/SUM(F$10:F$11)","v":0.25704391099348173},{"$f":"IF(INDEX(PC_MAPPING,RIGHT($C171,1),MATCH($E$2,'Data by Building Type'!$D$22:$F$22,0))=\"Yes\",1,0)*\n(G$10*OFFSET('Efficiency Distributions'!$D$10,MATCH($C171,'Efficiency Distributions'!$C$9:$C$87,0)+RIGHT($E178),0)\n+G$11*OFFSET('Efficiency Distributions'!$E$10,MATCH($C171,'Efficiency Distributions'!$C$9:$C$87,0)+RIGHT($E178),0))\n/SUM(G$10:G$11)","v":0.27171499166844165},{"$f":"IF(INDEX(PC_MAPPING,RIGHT($C171,1),MATCH($E$2,'Data by Building Type'!$D$22:$F$22,0))=\"Yes\",1,0)*\n(H$10*OFFSET('Efficiency Distributions'!$D$10,MATCH($C171,'Efficiency Distributions'!$C$9:$C$87,0)+RIGHT($E178),0)\n+H$11*OFFSET('Efficiency Distributions'!$E$10,MATCH($C171,'Efficiency Distributions'!$C$9:$C$87,0)+RIGHT($E178),0))\n/SUM(H$10:H$11)","v":0.24929032708141632},{"$f":"IF(INDEX(PC_MAPPING,RIGHT($C171,1),MATCH($E$2,'Data by Building Type'!$D$22:$F$22,0))=\"Yes\",1,0)*\n(I$10*OFFSET('Efficiency Distributions'!$D$10,MATCH($C171,'Efficiency Distributions'!$C$9:$C$87,0)+RIGHT($E178),0)\n+I$11*OFFSET('Efficiency Distributions'!$E$10,MATCH($C171,'Efficiency Distributions'!$C$9:$C$87,0)+RIGHT($E178),0))\n/SUM(I$10:I$11)","v":0.25058779534912562},{"$f":"IF(INDEX(PC_MAPPING,RIGHT($C171,1),MATCH($E$2,'Data by Building Type'!$D$22:$F$22,0))=\"Yes\",1,0)*\n(J$10*OFFSET('Efficiency Distributions'!$D$10,MATCH($C171,'Efficiency Distributions'!$C$9:$C$87,0)+RIGHT($E178),0)\n+J$11*OFFSET('Efficiency Distributions'!$E$10,MATCH($C171,'Efficiency Distributions'!$C$9:$C$87,0)+RIGHT($E178),0))\n/SUM(J$10:J$11)","v":0.26203821069053929},{"$f":"IF(INDEX(PC_MAPPING,RIGHT($C171,1),MATCH($E$2,'Data by Building Type'!$D$22:$F$22,0))=\"Yes\",1,0)*\n(K$10*OFFSET('Efficiency Distributions'!$D$10,MATCH($C171,'Efficiency Distributions'!$C$9:$C$87,0)+RIGHT($E178),0)\n+K$11*OFFSET('Efficiency Distributions'!$E$10,MATCH($C171,'Efficiency Distributions'!$C$9:$C$87,0)+RIGHT($E178),0))\n/SUM(K$10:K$11)","v":0.27490335051060821},{"$f":"IF(INDEX(PC_MAPPING,RIGHT($C171,1),MATCH($E$2,'Data by Building Type'!$D$22:$F$22,0))=\"Yes\",1,0)*\n(L$10*OFFSET('Efficiency Distributions'!$D$10,MATCH($C171,'Efficiency Distributions'!$C$9:$C$87,0)+RIGHT($E178),0)\n+L$11*OFFSET('Efficiency Distributions'!$E$10,MATCH($C171,'Efficiency Distributions'!$C$9:$C$87,0)+RIGHT($E178),0))\n/SUM(L$10:L$11)","v":0.27858119680835713},{"$f":"IF(INDEX(PC_MAPPING,RIGHT($C171,1),MATCH($E$2,'Data by Building Type'!$D$22:$F$22,0))=\"Yes\",1,0)*\n(M$10*OFFSET('Efficiency Distributions'!$D$10,MATCH($C171,'Efficiency Distributions'!$C$9:$C$87,0)+RIGHT($E178),0)\n+M$11*OFFSET('Efficiency Distributions'!$E$10,MATCH($C171,'Efficiency Distributions'!$C$9:$C$87,0)+RIGHT($E178),0))\n/SUM(M$10:M$11)","v":0.26950161373015813},{"$f":"IF(INDEX(PC_MAPPING,RIGHT($C171,1),MATCH($E$2,'Data by Building Type'!$D$22:$F$22,0))=\"Yes\",1,0)*\n(N$10*OFFSET('Efficiency Distributions'!$D$10,MATCH($C171,'Efficiency Distributions'!$C$9:$C$87,0)+RIGHT($E178),0)\n+N$11*OFFSET('Efficiency Distributions'!$E$10,MATCH($C171,'Efficiency Distributions'!$C$9:$C$87,0)+RIGHT($E178),0))\n/SUM(N$10:N$11)","v":0.26288497743241124},{"$f":"IF(INDEX(PC_MAPPING,RIGHT($C171,1),MATCH($E$2,'Data by Building Type'!$D$22:$F$22,0))=\"Yes\",1,0)*\n(O$10*OFFSET('Efficiency Distributions'!$D$10,MATCH($C171,'Efficiency Distributions'!$C$9:$C$87,0)+RIGHT($E178),0)\n+O$11*OFFSET('Efficiency Distributions'!$E$10,MATCH($C171,'Efficiency Distributions'!$C$9:$C$87,0)+RIGHT($E178),0))\n/SUM(O$10:O$11)","v":0.25068810135449648},{"$f":"IF(INDEX(PC_MAPPING,RIGHT($C171,1),MATCH($E$2,'Data by Building Type'!$D$22:$F$22,0))=\"Yes\",1,0)*\n(P$10*OFFSET('Efficiency Distributions'!$D$10,MATCH($C171,'Efficiency Distributions'!$C$9:$C$87,0)+RIGHT($E178),0)\n+P$11*OFFSET('Efficiency Distributions'!$E$10,MATCH($C171,'Efficiency Distributions'!$C$9:$C$87,0)+RIGHT($E178),0))\n/SUM(P$10:P$11)","v":0.25104321612009745},{"$f":"IF(INDEX(PC_MAPPING,RIGHT($C171,1),MATCH($E$2,'Data by Building Type'!$D$22:$F$22,0))=\"Yes\",1,0)*\n(Q$10*OFFSET('Efficiency Distributions'!$D$10,MATCH($C171,'Efficiency Distributions'!$C$9:$C$87,0)+RIGHT($E178),0)\n+Q$11*OFFSET('Efficiency Distributions'!$E$10,MATCH($C171,'Efficiency Distributions'!$C$9:$C$87,0)+RIGHT($E178),0))\n/SUM(Q$10:Q$11)","v":0.24021667195178145},{"$f":"IF(INDEX(PC_MAPPING,RIGHT($C171,1),MATCH($E$2,'Data by Building Type'!$D$22:$F$22,0))=\"Yes\",1,0)*\n(R$10*OFFSET('Efficiency Distributions'!$D$10,MATCH($C171,'Efficiency Distributions'!$C$9:$C$87,0)+RIGHT($E178),0)\n+R$11*OFFSET('Efficiency Distributions'!$E$10,MATCH($C171,'Efficiency Distributions'!$C$9:$C$87,0)+RIGHT($E178),0))\n/SUM(R$10:R$11)","v":0.22811571655184962},{"$f":"IF(INDEX(PC_MAPPING,RIGHT($C171,1),MATCH($E$2,'Data by Building Type'!$D$22:$F$22,0))=\"Yes\",1,0)*\n(S$10*OFFSET('Efficiency Distributions'!$D$10,MATCH($C171,'Efficiency Distributions'!$C$9:$C$87,0)+RIGHT($E178),0)\n+S$11*OFFSET('Efficiency Distributions'!$E$10,MATCH($C171,'Efficiency Distributions'!$C$9:$C$87,0)+RIGHT($E178),0))\n/SUM(S$10:S$11)","v":0.21705477327148281},{"$f":"IF(INDEX(PC_MAPPING,RIGHT($C171,1),MATCH($E$2,'Data by Building Type'!$D$22:$F$22,0))=\"Yes\",1,0)*\n(T$10*OFFSET('Efficiency Distributions'!$D$10,MATCH($C171,'Efficiency Distributions'!$C$9:$C$87,0)+RIGHT($E178),0)\n+T$11*OFFSET('Efficiency Distributions'!$E$10,MATCH($C171,'Efficiency Distributions'!$C$9:$C$87,0)+RIGHT($E178),0))\n/SUM(T$10:T$11)","v":0.22059633667388179},{"$f":"IF(INDEX(PC_MAPPING,RIGHT($C171,1),MATCH($E$2,'Data by Building Type'!$D$22:$F$22,0))=\"Yes\",1,0)*\n(U$10*OFFSET('Efficiency Distributions'!$D$10,MATCH($C171,'Efficiency Distributions'!$C$9:$C$87,0)+RIGHT($E178),0)\n+U$11*OFFSET('Efficiency Distributions'!$E$10,MATCH($C171,'Efficiency Distributions'!$C$9:$C$87,0)+RIGHT($E178),0))\n/SUM(U$10:U$11)","v":0.23118423722783915},{"$f":"IF(INDEX(PC_MAPPING,RIGHT($C171,1),MATCH($E$2,'Data by Building Type'!$D$22:$F$22,0))=\"Yes\",1,0)*\n(V$10*OFFSET('Efficiency Distributions'!$D$10,MATCH($C171,'Efficiency Distributions'!$C$9:$C$87,0)+RIGHT($E178),0)\n+V$11*OFFSET('Efficiency Distributions'!$E$10,MATCH($C171,'Efficiency Distributions'!$C$9:$C$87,0)+RIGHT($E178),0))\n/SUM(V$10:V$11)","v":0.23082970060906699},{"$f":"IF(INDEX(PC_MAPPING,RIGHT($C171,1),MATCH($E$2,'Data by Building Type'!$D$22:$F$22,0))=\"Yes\",1,0)*\n(W$10*OFFSET('Efficiency Distributions'!$D$10,MATCH($C171,'Efficiency Distributions'!$C$9:$C$87,0)+RIGHT($E178),0)\n+W$11*OFFSET('Efficiency Distributions'!$E$10,MATCH($C171,'Efficiency Distributions'!$C$9:$C$87,0)+RIGHT($E178),0))\n/SUM(W$10:W$11)","v":0.22827729831980953},{"$f":"IF(INDEX(PC_MAPPING,RIGHT($C171,1),MATCH($E$2,'Data by Building Type'!$D$22:$F$22,0))=\"Yes\",1,0)*\n(X$10*OFFSET('Efficiency Distributions'!$D$10,MATCH($C171,'Efficiency Distributions'!$C$9:$C$87,0)+RIGHT($E178),0)\n+X$11*OFFSET('Efficiency Distributions'!$E$10,MATCH($C171,'Efficiency Distributions'!$C$9:$C$87,0)+RIGHT($E178),0))\n/SUM(X$10:X$11)","v":0.24465332746603091},{"$f":"IF(INDEX(PC_MAPPING,RIGHT($C171,1),MATCH($E$2,'Data by Building Type'!$D$22:$F$22,0))=\"Yes\",1,0)*\n(Y$10*OFFSET('Efficiency Distributions'!$D$10,MATCH($C171,'Efficiency Distributions'!$C$9:$C$87,0)+RIGHT($E178),0)\n+Y$11*OFFSET('Efficiency Distributions'!$E$10,MATCH($C171,'Efficiency Distributions'!$C$9:$C$87,0)+RIGHT($E178),0))\n/SUM(Y$10:Y$11)","v":0.27847007612995461},{"$f":"IF(INDEX(PC_MAPPING,RIGHT($C171,1),MATCH($E$2,'Data by Building Type'!$D$22:$F$22,0))=\"Yes\",1,0)*\n(Z$10*OFFSET('Efficiency Distributions'!$D$10,MATCH($C171,'Efficiency Distributions'!$C$9:$C$87,0)+RIGHT($E178),0)\n+Z$11*OFFSET('Efficiency Distributions'!$E$10,MATCH($C171,'Efficiency Distributions'!$C$9:$C$87,0)+RIGHT($E178),0))\n/SUM(Z$10:Z$11)","v":0.29976159495180971},{"$f":"IF(INDEX(PC_MAPPING,RIGHT($C171,1),MATCH($E$2,'Data by Building Type'!$D$22:$F$22,0))=\"Yes\",1,0)*\n(AA$10*OFFSET('Efficiency Distributions'!$D$10,MATCH($C171,'Efficiency Distributions'!$C$9:$C$87,0)+RIGHT($E178),0)\n+AA$11*OFFSET('Efficiency Distributions'!$E$10,MATCH($C171,'Efficiency Distributions'!$C$9:$C$87,0)+RIGHT($E178),0))\n/SUM(AA$10:AA$11)","v":0.32969408015052132},{"$f":"IF(INDEX(PC_MAPPING,RIGHT($C171,1),MATCH($E$2,'Data by Building Type'!$D$22:$F$22,0))=\"Yes\",1,0)*\n(AB$10*OFFSET('Efficiency Distributions'!$D$10,MATCH($C171,'Efficiency Distributions'!$C$9:$C$87,0)+RIGHT($E178),0)\n+AB$11*OFFSET('Efficiency Distributions'!$E$10,MATCH($C171,'Efficiency Distributions'!$C$9:$C$87,0)+RIGHT($E178),0))\n/SUM(AB$10:AB$11)","v":0.33044871157664091},{"$f":"IF(INDEX(PC_MAPPING,RIGHT($C171,1),MATCH($E$2,'Data by Building Type'!$D$22:$F$22,0))=\"Yes\",1,0)*\n(AC$10*OFFSET('Efficiency Distributions'!$D$10,MATCH($C171,'Efficiency Distributions'!$C$9:$C$87,0)+RIGHT($E178),0)\n+AC$11*OFFSET('Efficiency Distributions'!$E$10,MATCH($C171,'Efficiency Distributions'!$C$9:$C$87,0)+RIGHT($E178),0))\n/SUM(AC$10:AC$11)","v":0.33845019376686275},{"$f":"IF(INDEX(PC_MAPPING,RIGHT($C171,1),MATCH($E$2,'Data by Building Type'!$D$22:$F$22,0))=\"Yes\",1,0)*\n(AD$10*OFFSET('Efficiency Distributions'!$D$10,MATCH($C171,'Efficiency Distributions'!$C$9:$C$87,0)+RIGHT($E178),0)\n+AD$11*OFFSET('Efficiency Distributions'!$E$10,MATCH($C171,'Efficiency Distributions'!$C$9:$C$87,0)+RIGHT($E178),0))\n/SUM(AD$10:AD$11)","v":0.33841144859057803},{"$f":"IF(INDEX(PC_MAPPING,RIGHT($C171,1),MATCH($E$2,'Data by Building Type'!$D$22:$F$22,0))=\"Yes\",1,0)*\n(AE$10*OFFSET('Efficiency Distributions'!$D$10,MATCH($C171,'Efficiency Distributions'!$C$9:$C$87,0)+RIGHT($E178),0)\n+AE$11*OFFSET('Efficiency Distributions'!$E$10,MATCH($C171,'Efficiency Distributions'!$C$9:$C$87,0)+RIGHT($E178),0))\n/SUM(AE$10:AE$11)","v":0.33830017531356771},{"$f":"IF(INDEX(PC_MAPPING,RIGHT($C171,1),MATCH($E$2,'Data by Building Type'!$D$22:$F$22,0))=\"Yes\",1,0)*\n(AF$10*OFFSET('Efficiency Distributions'!$D$10,MATCH($C171,'Efficiency Distributions'!$C$9:$C$87,0)+RIGHT($E178),0)\n+AF$11*OFFSET('Efficiency Distributions'!$E$10,MATCH($C171,'Efficiency Distributions'!$C$9:$C$87,0)+RIGHT($E178),0))\n/SUM(AF$10:AF$11)","v":0.32187627678629949},{"$f":"IF(INDEX(PC_MAPPING,RIGHT($C171,1),MATCH($E$2,'Data by Building Type'!$D$22:$F$22,0))=\"Yes\",1,0)*\n(AG$10*OFFSET('Efficiency Distributions'!$D$10,MATCH($C171,'Efficiency Distributions'!$C$9:$C$87,0)+RIGHT($E178),0)\n+AG$11*OFFSET('Efficiency Distributions'!$E$10,MATCH($C171,'Efficiency Distributions'!$C$9:$C$87,0)+RIGHT($E178),0))\n/SUM(AG$10:AG$11)","v":0.31897152218097757},{"$f":"IF(INDEX(PC_MAPPING,RIGHT($C171,1),MATCH($E$2,'Data by Building Type'!$D$22:$F$22,0))=\"Yes\",1,0)*\n(AH$10*OFFSET('Efficiency Distributions'!$D$10,MATCH($C171,'Efficiency Distributions'!$C$9:$C$87,0)+RIGHT($E178),0)\n+AH$11*OFFSET('Efficiency Distributions'!$E$10,MATCH($C171,'Efficiency Distributions'!$C$9:$C$87,0)+RIGHT($E178),0))\n/SUM(AH$10:AH$11)","v":0.32106287907159081},{"$f":"IF(INDEX(PC_MAPPING,RIGHT($C171,1),MATCH($E$2,'Data by Building Type'!$D$22:$F$22,0))=\"Yes\",1,0)*\n(AI$10*OFFSET('Efficiency Distributions'!$D$10,MATCH($C171,'Efficiency Distributions'!$C$9:$C$87,0)+RIGHT($E178),0)\n+AI$11*OFFSET('Efficiency Distributions'!$E$10,MATCH($C171,'Efficiency Distributions'!$C$9:$C$87,0)+RIGHT($E178),0))\n/SUM(AI$10:AI$11)","v":0.32313084354532173},{"$f":"IF(INDEX(PC_MAPPING,RIGHT($C171,1),MATCH($E$2,'Data by Building Type'!$D$22:$F$22,0))=\"Yes\",1,0)*\n(AJ$10*OFFSET('Efficiency Distributions'!$D$10,MATCH($C171,'Efficiency Distributions'!$C$9:$C$87,0)+RIGHT($E178),0)\n+AJ$11*OFFSET('Efficiency Distributions'!$E$10,MATCH($C171,'Efficiency Distributions'!$C$9:$C$87,0)+RIGHT($E178),0))\n/SUM(AJ$10:AJ$11)","v":0.32805070182817814},{"$f":"IF(INDEX(PC_MAPPING,RIGHT($C171,1),MATCH($E$2,'Data by Building Type'!$D$22:$F$22,0))=\"Yes\",1,0)*\n(AK$10*OFFSET('Efficiency Distributions'!$D$10,MATCH($C171,'Efficiency Distributions'!$C$9:$C$87,0)+RIGHT($E178),0)\n+AK$11*OFFSET('Efficiency Distributions'!$E$10,MATCH($C171,'Efficiency Distributions'!$C$9:$C$87,0)+RIGHT($E178),0))\n/SUM(AK$10:AK$11)","v":0.31829179628232229},{"$f":"IF(INDEX(PC_MAPPING,RIGHT($C171,1),MATCH($E$2,'Data by Building Type'!$D$22:$F$22,0))=\"Yes\",1,0)*\n(AL$10*OFFSET('Efficiency Distributions'!$D$10,MATCH($C171,'Efficiency Distributions'!$C$9:$C$87,0)+RIGHT($E178),0)\n+AL$11*OFFSET('Efficiency Distributions'!$E$10,MATCH($C171,'Efficiency Distributions'!$C$9:$C$87,0)+RIGHT($E178),0))\n/SUM(AL$10:AL$11)","v":0.32423415375405523},{"$f":"IF(INDEX(PC_MAPPING,RIGHT($C171,1),MATCH($E$2,'Data by Building Type'!$D$22:$F$22,0))=\"Yes\",1,0)*\n(AM$10*OFFSET('Efficiency Distributions'!$D$10,MATCH($C171,'Efficiency Distributions'!$C$9:$C$87,0)+RIGHT($E178),0)\n+AM$11*OFFSET('Efficiency Distributions'!$E$10,MATCH($C171,'Efficiency Distributions'!$C$9:$C$87,0)+RIGHT($E178),0))\n/SUM(AM$10:AM$11)","v":0.33118643073327159},{"$f":"IF(INDEX(PC_MAPPING,RIGHT($C171,1),MATCH($E$2,'Data by Building Type'!$D$22:$F$22,0))=\"Yes\",1,0)*\n(AN$10*OFFSET('Efficiency Distributions'!$D$10,MATCH($C171,'Efficiency Distributions'!$C$9:$C$87,0)+RIGHT($E178),0)\n+AN$11*OFFSET('Efficiency Distributions'!$E$10,MATCH($C171,'Efficiency Distributions'!$C$9:$C$87,0)+RIGHT($E178),0))\n/SUM(AN$10:AN$11)","v":0.33747508503866569},{"$f":"IF(INDEX(PC_MAPPING,RIGHT($C171,1),MATCH($E$2,'Data by Building Type'!$D$22:$F$22,0))=\"Yes\",1,0)*\n(AO$10*OFFSET('Efficiency Distributions'!$D$10,MATCH($C171,'Efficiency Distributions'!$C$9:$C$87,0)+RIGHT($E178),0)\n+AO$11*OFFSET('Efficiency Distributions'!$E$10,MATCH($C171,'Efficiency Distributions'!$C$9:$C$87,0)+RIGHT($E178),0))\n/SUM(AO$10:AO$11)","v":0.33816547831871435},{"$f":"IF(INDEX(PC_MAPPING,RIGHT($C171,1),MATCH($E$2,'Data by Building Type'!$D$22:$F$22,0))=\"Yes\",1,0)*\n(AP$10*OFFSET('Efficiency Distributions'!$D$10,MATCH($C171,'Efficiency Distributions'!$C$9:$C$87,0)+RIGHT($E178),0)\n+AP$11*OFFSET('Efficiency Distributions'!$E$10,MATCH($C171,'Efficiency Distributions'!$C$9:$C$87,0)+RIGHT($E178),0))\n/SUM(AP$10:AP$11)","v":0.33591943136723806},{"$f":"IF(INDEX(PC_MAPPING,RIGHT($C171,1),MATCH($E$2,'Data by Building Type'!$D$22:$F$22,0))=\"Yes\",1,0)*\n(AQ$10*OFFSET('Efficiency Distributions'!$D$10,MATCH($C171,'Efficiency Distributions'!$C$9:$C$87,0)+RIGHT($E178),0)\n+AQ$11*OFFSET('Efficiency Distributions'!$E$10,MATCH($C171,'Efficiency Distributions'!$C$9:$C$87,0)+RIGHT($E178),0))\n/SUM(AQ$10:AQ$11)","v":0.33624263435085966},{"$f":"IF(INDEX(PC_MAPPING,RIGHT($C171,1),MATCH($E$2,'Data by Building Type'!$D$22:$F$22,0))=\"Yes\",1,0)*\n(AR$10*OFFSET('Efficiency Distributions'!$D$10,MATCH($C171,'Efficiency Distributions'!$C$9:$C$87,0)+RIGHT($E178),0)\n+AR$11*OFFSET('Efficiency Distributions'!$E$10,MATCH($C171,'Efficiency Distributions'!$C$9:$C$87,0)+RIGHT($E178),0))\n/SUM(AR$10:AR$11)","v":0.33633846947317836},{"$f":"IF(INDEX(PC_MAPPING,RIGHT($C171,1),MATCH($E$2,'Data by Building Type'!$D$22:$F$22,0))=\"Yes\",1,0)*\n(AS$10*OFFSET('Efficiency Distributions'!$D$10,MATCH($C171,'Efficiency Distributions'!$C$9:$C$87,0)+RIGHT($E178),0)\n+AS$11*OFFSET('Efficiency Distributions'!$E$10,MATCH($C171,'Efficiency Distributions'!$C$9:$C$87,0)+RIGHT($E178),0))\n/SUM(AS$10:AS$11)","v":0.32978195454349274},{"$f":"IF(INDEX(PC_MAPPING,RIGHT($C171,1),MATCH($E$2,'Data by Building Type'!$D$22:$F$22,0))=\"Yes\",1,0)*\n(AT$10*OFFSET('Efficiency Distributions'!$D$10,MATCH($C171,'Efficiency Distributions'!$C$9:$C$87,0)+RIGHT($E178),0)\n+AT$11*OFFSET('Efficiency Distributions'!$E$10,MATCH($C171,'Efficiency Distributions'!$C$9:$C$87,0)+RIGHT($E178),0))\n/SUM(AT$10:AT$11)","v":0.31765546616715845},{"$f":"IF(INDEX(PC_MAPPING,RIGHT($C171,1),MATCH($E$2,'Data by Building Type'!$D$22:$F$22,0))=\"Yes\",1,0)*\n(AU$10*OFFSET('Efficiency Distributions'!$D$10,MATCH($C171,'Efficiency Distributions'!$C$9:$C$87,0)+RIGHT($E178),0)\n+AU$11*OFFSET('Efficiency Distributions'!$E$10,MATCH($C171,'Efficiency Distributions'!$C$9:$C$87,0)+RIGHT($E178),0))\n/SUM(AU$10:AU$11)","v":0.30947618063944798},{"$f":"IF(INDEX(PC_MAPPING,RIGHT($C171,1),MATCH($E$2,'Data by Building Type'!$D$22:$F$22,0))=\"Yes\",1,0)*\n(AV$10*OFFSET('Efficiency Distributions'!$D$10,MATCH($C171,'Efficiency Distributions'!$C$9:$C$87,0)+RIGHT($E178),0)\n+AV$11*OFFSET('Efficiency Distributions'!$E$10,MATCH($C171,'Efficiency Distributions'!$C$9:$C$87,0)+RIGHT($E178),0))\n/SUM(AV$10:AV$11)","v":0.33064281912529481},{"$f":"IF(INDEX(PC_MAPPING,RIGHT($C171,1),MATCH($E$2,'Data by Building Type'!$D$22:$F$22,0))=\"Yes\",1,0)*\n(AW$10*OFFSET('Efficiency Distributions'!$D$10,MATCH($C171,'Efficiency Distributions'!$C$9:$C$87,0)+RIGHT($E178),0)\n+AW$11*OFFSET('Efficiency Distributions'!$E$10,MATCH($C171,'Efficiency Distributions'!$C$9:$C$87,0)+RIGHT($E178),0))\n/SUM(AW$10:AW$11)","v":0.32566675303793446},{"$f":"IF(INDEX(PC_MAPPING,RIGHT($C171,1),MATCH($E$2,'Data by Building Type'!$D$22:$F$22,0))=\"Yes\",1,0)*\n(AX$10*OFFSET('Efficiency Distributions'!$D$10,MATCH($C171,'Efficiency Distributions'!$C$9:$C$87,0)+RIGHT($E178),0)\n+AX$11*OFFSET('Efficiency Distributions'!$E$10,MATCH($C171,'Efficiency Distributions'!$C$9:$C$87,0)+RIGHT($E178),0))\n/SUM(AX$10:AX$11)","v":0.33055268937657273},{"$f":"IF(INDEX(PC_MAPPING,RIGHT($C171,1),MATCH($E$2,'Data by Building Type'!$D$22:$F$22,0))=\"Yes\",1,0)*\n(AY$10*OFFSET('Efficiency Distributions'!$D$10,MATCH($C171,'Efficiency Distributions'!$C$9:$C$87,0)+RIGHT($E178),0)\n+AY$11*OFFSET('Efficiency Distributions'!$E$10,MATCH($C171,'Efficiency Distributions'!$C$9:$C$87,0)+RIGHT($E178),0))\n/SUM(AY$10:AY$11)","v":0.33095295227635052},{"$f":"IF(INDEX(PC_MAPPING,RIGHT($C171,1),MATCH($E$2,'Data by Building Type'!$D$22:$F$22,0))=\"Yes\",1,0)*\n(AZ$10*OFFSET('Efficiency Distributions'!$D$10,MATCH($C171,'Efficiency Distributions'!$C$9:$C$87,0)+RIGHT($E178),0)\n+AZ$11*OFFSET('Efficiency Distributions'!$E$10,MATCH($C171,'Efficiency Distributions'!$C$9:$C$87,0)+RIGHT($E178),0))\n/SUM(AZ$10:AZ$11)","v":0.32914810077197743},{"$f":"IF(INDEX(PC_MAPPING,RIGHT($C171,1),MATCH($E$2,'Data by Building Type'!$D$22:$F$22,0))=\"Yes\",1,0)*\n(BA$10*OFFSET('Efficiency Distributions'!$D$10,MATCH($C171,'Efficiency Distributions'!$C$9:$C$87,0)+RIGHT($E178),0)\n+BA$11*OFFSET('Efficiency Distributions'!$E$10,MATCH($C171,'Efficiency Distributions'!$C$9:$C$87,0)+RIGHT($E178),0))\n/SUM(BA$10:BA$11)","v":0.33084365294290985},{"$f":"IF(INDEX(PC_MAPPING,RIGHT($C171,1),MATCH($E$2,'Data by Building Type'!$D$22:$F$22,0))=\"Yes\",1,0)*\n(BB$10*OFFSET('Efficiency Distributions'!$D$10,MATCH($C171,'Efficiency Distributions'!$C$9:$C$87,0)+RIGHT($E178),0)\n+BB$11*OFFSET('Efficiency Distributions'!$E$10,MATCH($C171,'Efficiency Distributions'!$C$9:$C$87,0)+RIGHT($E178),0))\n/SUM(BB$10:BB$11)","v":0.33261049037917267},{"$f":"IF(INDEX(PC_MAPPING,RIGHT($C171,1),MATCH($E$2,'Data by Building Type'!$D$22:$F$22,0))=\"Yes\",1,0)*\n(BC$10*OFFSET('Efficiency Distributions'!$D$10,MATCH($C171,'Efficiency Distributions'!$C$9:$C$87,0)+RIGHT($E178),0)\n+BC$11*OFFSET('Efficiency Distributions'!$E$10,MATCH($C171,'Efficiency Distributions'!$C$9:$C$87,0)+RIGHT($E178),0))\n/SUM(BC$10:BC$11)","v":0.3363052786018042},{"$f":"IF(INDEX(PC_MAPPING,RIGHT($C171,1),MATCH($E$2,'Data by Building Type'!$D$22:$F$22,0))=\"Yes\",1,0)*\n(BD$10*OFFSET('Efficiency Distributions'!$D$10,MATCH($C171,'Efficiency Distributions'!$C$9:$C$87,0)+RIGHT($E178),0)\n+BD$11*OFFSET('Efficiency Distributions'!$E$10,MATCH($C171,'Efficiency Distributions'!$C$9:$C$87,0)+RIGHT($E178),0))\n/SUM(BD$10:BD$11)","v":0.33714293780459775},{"$f":"IF(INDEX(PC_MAPPING,RIGHT($C171,1),MATCH($E$2,'Data by Building Type'!$D$22:$F$22,0))=\"Yes\",1,0)*\n(BE$10*OFFSET('Efficiency Distributions'!$D$10,MATCH($C171,'Efficiency Distributions'!$C$9:$C$87,0)+RIGHT($E178),0)\n+BE$11*OFFSET('Efficiency Distributions'!$E$10,MATCH($C171,'Efficiency Distributions'!$C$9:$C$87,0)+RIGHT($E178),0))\n/SUM(BE$10:BE$11)","v":0.33897269886675074},{"$f":"IF(INDEX(PC_MAPPING,RIGHT($C171,1),MATCH($E$2,'Data by Building Type'!$D$22:$F$22,0))=\"Yes\",1,0)*\n(BF$10*OFFSET('Efficiency Distributions'!$D$10,MATCH($C171,'Efficiency Distributions'!$C$9:$C$87,0)+RIGHT($E178),0)\n+BF$11*OFFSET('Efficiency Distributions'!$E$10,MATCH($C171,'Efficiency Distributions'!$C$9:$C$87,0)+RIGHT($E178),0))\n/SUM(BF$10:BF$11)","v":0.34017650235215152},{"$f":"IF(INDEX(PC_MAPPING,RIGHT($C171,1),MATCH($E$2,'Data by Building Type'!$D$22:$F$22,0))=\"Yes\",1,0)*\n(BG$10*OFFSET('Efficiency Distributions'!$D$10,MATCH($C171,'Efficiency Distributions'!$C$9:$C$87,0)+RIGHT($E178),0)\n+BG$11*OFFSET('Efficiency Distributions'!$E$10,MATCH($C171,'Efficiency Distributions'!$C$9:$C$87,0)+RIGHT($E178),0))\n/SUM(BG$10:BG$11)","v":0.34160174092777207}]
[null,null,null,null,"EL4",{"$f":"IF(INDEX(PC_MAPPING,RIGHT($C171,1),MATCH($E$2,'Data by Building Type'!$D$22:$F$22,0))=\"Yes\",1,0)*\n(F$10*OFFSET('Efficiency Distributions'!$D$10,MATCH($C171,'Efficiency Distributions'!$C$9:$C$87,0)+RIGHT($E179),0)\n+F$11*OFFSET('Efficiency Distributions'!$E$10,MATCH($C171,'Efficiency Distributions'!$C$9:$C$87,0)+RIGHT($E179),0))\n/SUM(F$10:F$11)","v":0},{"$f":"IF(INDEX(PC_MAPPING,RIGHT($C171,1),MATCH($E$2,'Data by Building Type'!$D$22:$F$22,0))=\"Yes\",1,0)*\n(G$10*OFFSET('Efficiency Distributions'!$D$10,MATCH($C171,'Efficiency Distributions'!$C$9:$C$87,0)+RIGHT($E179),0)\n+G$11*OFFSET('Efficiency Distributions'!$E$10,MATCH($C171,'Efficiency Distributions'!$C$9:$C$87,0)+RIGHT($E179),0))\n/SUM(G$10:G$11)","v":0},{"$f":"IF(INDEX(PC_MAPPING,RIGHT($C171,1),MATCH($E$2,'Data by Building Type'!$D$22:$F$22,0))=\"Yes\",1,0)*\n(H$10*OFFSET('Efficiency Distributions'!$D$10,MATCH($C171,'Efficiency Distributions'!$C$9:$C$87,0)+RIGHT($E179),0)\n+H$11*OFFSET('Efficiency Distributions'!$E$10,MATCH($C171,'Efficiency Distributions'!$C$9:$C$87,0)+RIGHT($E179),0))\n/SUM(H$10:H$11)","v":0},{"$f":"IF(INDEX(PC_MAPPING,RIGHT($C171,1),MATCH($E$2,'Data by Building Type'!$D$22:$F$22,0))=\"Yes\",1,0)*\n(I$10*OFFSET('Efficiency Distributions'!$D$10,MATCH($C171,'Efficiency Distributions'!$C$9:$C$87,0)+RIGHT($E179),0)\n+I$11*OFFSET('Efficiency Distributions'!$E$10,MATCH($C171,'Efficiency Distributions'!$C$9:$C$87,0)+RIGHT($E179),0))\n/SUM(I$10:I$11)","v":0},{"$f":"IF(INDEX(PC_MAPPING,RIGHT($C171,1),MATCH($E$2,'Data by Building Type'!$D$22:$F$22,0))=\"Yes\",1,0)*\n(J$10*OFFSET('Efficiency Distributions'!$D$10,MATCH($C171,'Efficiency Distributions'!$C$9:$C$87,0)+RIGHT($E179),0)\n+J$11*OFFSET('Efficiency Distributions'!$E$10,MATCH($C171,'Efficiency Distributions'!$C$9:$C$87,0)+RIGHT($E179),0))\n/SUM(J$10:J$11)","v":0},{"$f":"IF(INDEX(PC_MAPPING,RIGHT($C171,1),MATCH($E$2,'Data by Building Type'!$D$22:$F$22,0))=\"Yes\",1,0)*\n(K$10*OFFSET('Efficiency Distributions'!$D$10,MATCH($C171,'Efficiency Distributions'!$C$9:$C$87,0)+RIGHT($E179),0)\n+K$11*OFFSET('Efficiency Distributions'!$E$10,MATCH($C171,'Efficiency Distributions'!$C$9:$C$87,0)+RIGHT($E179),0))\n/SUM(K$10:K$11)","v":0},{"$f":"IF(INDEX(PC_MAPPING,RIGHT($C171,1),MATCH($E$2,'Data by Building Type'!$D$22:$F$22,0))=\"Yes\",1,0)*\n(L$10*OFFSET('Efficiency Distributions'!$D$10,MATCH($C171,'Efficiency Distributions'!$C$9:$C$87,0)+RIGHT($E179),0)\n+L$11*OFFSET('Efficiency Distributions'!$E$10,MATCH($C171,'Efficiency Distributions'!$C$9:$C$87,0)+RIGHT($E179),0))\n/SUM(L$10:L$11)","v":0},{"$f":"IF(INDEX(PC_MAPPING,RIGHT($C171,1),MATCH($E$2,'Data by Building Type'!$D$22:$F$22,0))=\"Yes\",1,0)*\n(M$10*OFFSET('Efficiency Distributions'!$D$10,MATCH($C171,'Efficiency Distributions'!$C$9:$C$87,0)+RIGHT($E179),0)\n+M$11*OFFSET('Efficiency Distributions'!$E$10,MATCH($C171,'Efficiency Distributions'!$C$9:$C$87,0)+RIGHT($E179),0))\n/SUM(M$10:M$11)","v":0},{"$f":"IF(INDEX(PC_MAPPING,RIGHT($C171,1),MATCH($E$2,'Data by Building Type'!$D$22:$F$22,0))=\"Yes\",1,0)*\n(N$10*OFFSET('Efficiency Distributions'!$D$10,MATCH($C171,'Efficiency Distributions'!$C$9:$C$87,0)+RIGHT($E179),0)\n+N$11*OFFSET('Efficiency Distributions'!$E$10,MATCH($C171,'Efficiency Distributions'!$C$9:$C$87,0)+RIGHT($E179),0))\n/SUM(N$10:N$11)","v":0},{"$f":"IF(INDEX(PC_MAPPING,RIGHT($C171,1),MATCH($E$2,'Data by Building Type'!$D$22:$F$22,0))=\"Yes\",1,0)*\n(O$10*OFFSET('Efficiency Distributions'!$D$10,MATCH($C171,'Efficiency Distributions'!$C$9:$C$87,0)+RIGHT($E179),0)\n+O$11*OFFSET('Efficiency Distributions'!$E$10,MATCH($C171,'Efficiency Distributions'!$C$9:$C$87,0)+RIGHT($E179),0))\n/SUM(O$10:O$11)","v":0},{"$f":"IF(INDEX(PC_MAPPING,RIGHT($C171,1),MATCH($E$2,'Data by Building Type'!$D$22:$F$22,0))=\"Yes\",1,0)*\n(P$10*OFFSET('Efficiency Distributions'!$D$10,MATCH($C171,'Efficiency Distributions'!$C$9:$C$87,0)+RIGHT($E179),0)\n+P$11*OFFSET('Efficiency Distributions'!$E$10,MATCH($C171,'Efficiency Distributions'!$C$9:$C$87,0)+RIGHT($E179),0))\n/SUM(P$10:P$11)","v":0},{"$f":"IF(INDEX(PC_MAPPING,RIGHT($C171,1),MATCH($E$2,'Data by Building Type'!$D$22:$F$22,0))=\"Yes\",1,0)*\n(Q$10*OFFSET('Efficiency Distributions'!$D$10,MATCH($C171,'Efficiency Distributions'!$C$9:$C$87,0)+RIGHT($E179),0)\n+Q$11*OFFSET('Efficiency Distributions'!$E$10,MATCH($C171,'Efficiency Distributions'!$C$9:$C$87,0)+RIGHT($E179),0))\n/SUM(Q$10:Q$11)","v":0},{"$f":"IF(INDEX(PC_MAPPING,RIGHT($C171,1),MATCH($E$2,'Data by Building Type'!$D$22:$F$22,0))=\"Yes\",1,0)*\n(R$10*OFFSET('Efficiency Distributions'!$D$10,MATCH($C171,'Efficiency Distributions'!$C$9:$C$87,0)+RIGHT($E179),0)\n+R$11*OFFSET('Efficiency Distributions'!$E$10,MATCH($C171,'Efficiency Distributions'!$C$9:$C$87,0)+RIGHT($E179),0))\n/SUM(R$10:R$11)","v":0},{"$f":"IF(INDEX(PC_MAPPING,RIGHT($C171,1),MATCH($E$2,'Data by Building Type'!$D$22:$F$22,0))=\"Yes\",1,0)*\n(S$10*OFFSET('Efficiency Distributions'!$D$10,MATCH($C171,'Efficiency Distributions'!$C$9:$C$87,0)+RIGHT($E179),0)\n+S$11*OFFSET('Efficiency Distributions'!$E$10,MATCH($C171,'Efficiency Distributions'!$C$9:$C$87,0)+RIGHT($E179),0))\n/SUM(S$10:S$11)","v":0},{"$f":"IF(INDEX(PC_MAPPING,RIGHT($C171,1),MATCH($E$2,'Data by Building Type'!$D$22:$F$22,0))=\"Yes\",1,0)*\n(T$10*OFFSET('Efficiency Distributions'!$D$10,MATCH($C171,'Efficiency Distributions'!$C$9:$C$87,0)+RIGHT($E179),0)\n+T$11*OFFSET('Efficiency Distributions'!$E$10,MATCH($C171,'Efficiency Distributions'!$C$9:$C$87,0)+RIGHT($E179),0))\n/SUM(T$10:T$11)","v":0},{"$f":"IF(INDEX(PC_MAPPING,RIGHT($C171,1),MATCH($E$2,'Data by Building Type'!$D$22:$F$22,0))=\"Yes\",1,0)*\n(U$10*OFFSET('Efficiency Distributions'!$D$10,MATCH($C171,'Efficiency Distributions'!$C$9:$C$87,0)+RIGHT($E179),0)\n+U$11*OFFSET('Efficiency Distributions'!$E$10,MATCH($C171,'Efficiency Distributions'!$C$9:$C$87,0)+RIGHT($E179),0))\n/SUM(U$10:U$11)","v":0},{"$f":"IF(INDEX(PC_MAPPING,RIGHT($C171,1),MATCH($E$2,'Data by Building Type'!$D$22:$F$22,0))=\"Yes\",1,0)*\n(V$10*OFFSET('Efficiency Distributions'!$D$10,MATCH($C171,'Efficiency Distributions'!$C$9:$C$87,0)+RIGHT($E179),0)\n+V$11*OFFSET('Efficiency Distributions'!$E$10,MATCH($C171,'Efficiency Distributions'!$C$9:$C$87,0)+RIGHT($E179),0))\n/SUM(V$10:V$11)","v":0},{"$f":"IF(INDEX(PC_MAPPING,RIGHT($C171,1),MATCH($E$2,'Data by Building Type'!$D$22:$F$22,0))=\"Yes\",1,0)*\n(W$10*OFFSET('Efficiency Distributions'!$D$10,MATCH($C171,'Efficiency Distributions'!$C$9:$C$87,0)+RIGHT($E179),0)\n+W$11*OFFSET('Efficiency Distributions'!$E$10,MATCH($C171,'Efficiency Distributions'!$C$9:$C$87,0)+RIGHT($E179),0))\n/SUM(W$10:W$11)","v":0},{"$f":"IF(INDEX(PC_MAPPING,RIGHT($C171,1),MATCH($E$2,'Data by Building Type'!$D$22:$F$22,0))=\"Yes\",1,0)*\n(X$10*OFFSET('Efficiency Distributions'!$D$10,MATCH($C171,'Efficiency Distributions'!$C$9:$C$87,0)+RIGHT($E179),0)\n+X$11*OFFSET('Efficiency Distributions'!$E$10,MATCH($C171,'Efficiency Distributions'!$C$9:$C$87,0)+RIGHT($E179),0))\n/SUM(X$10:X$11)","v":0},{"$f":"IF(INDEX(PC_MAPPING,RIGHT($C171,1),MATCH($E$2,'Data by Building Type'!$D$22:$F$22,0))=\"Yes\",1,0)*\n(Y$10*OFFSET('Efficiency Distributions'!$D$10,MATCH($C171,'Efficiency Distributions'!$C$9:$C$87,0)+RIGHT($E179),0)\n+Y$11*OFFSET('Efficiency Distributions'!$E$10,MATCH($C171,'Efficiency Distributions'!$C$9:$C$87,0)+RIGHT($E179),0))\n/SUM(Y$10:Y$11)","v":0},{"$f":"IF(INDEX(PC_MAPPING,RIGHT($C171,1),MATCH($E$2,'Data by Building Type'!$D$22:$F$22,0))=\"Yes\",1,0)*\n(Z$10*OFFSET('Efficiency Distributions'!$D$10,MATCH($C171,'Efficiency Distributions'!$C$9:$C$87,0)+RIGHT($E179),0)\n+Z$11*OFFSET('Efficiency Distributions'!$E$10,MATCH($C171,'Efficiency Distributions'!$C$9:$C$87,0)+RIGHT($E179),0))\n/SUM(Z$10:Z$11)","v":0},{"$f":"IF(INDEX(PC_MAPPING,RIGHT($C171,1),MATCH($E$2,'Data by Building Type'!$D$22:$F$22,0))=\"Yes\",1,0)*\n(AA$10*OFFSET('Efficiency Distributions'!$D$10,MATCH($C171,'Efficiency Distributions'!$C$9:$C$87,0)+RIGHT($E179),0)\n+AA$11*OFFSET('Efficiency Distributions'!$E$10,MATCH($C171,'Efficiency Distributions'!$C$9:$C$87,0)+RIGHT($E179),0))\n/SUM(AA$10:AA$11)","v":0},{"$f":"IF(INDEX(PC_MAPPING,RIGHT($C171,1),MATCH($E$2,'Data by Building Type'!$D$22:$F$22,0))=\"Yes\",1,0)*\n(AB$10*OFFSET('Efficiency Distributions'!$D$10,MATCH($C171,'Efficiency Distributions'!$C$9:$C$87,0)+RIGHT($E179),0)\n+AB$11*OFFSET('Efficiency Distributions'!$E$10,MATCH($C171,'Efficiency Distributions'!$C$9:$C$87,0)+RIGHT($E179),0))\n/SUM(AB$10:AB$11)","v":0},{"$f":"IF(INDEX(PC_MAPPING,RIGHT($C171,1),MATCH($E$2,'Data by Building Type'!$D$22:$F$22,0))=\"Yes\",1,0)*\n(AC$10*OFFSET('Efficiency Distributions'!$D$10,MATCH($C171,'Efficiency Distributions'!$C$9:$C$87,0)+RIGHT($E179),0)\n+AC$11*OFFSET('Efficiency Distributions'!$E$10,MATCH($C171,'Efficiency Distributions'!$C$9:$C$87,0)+RIGHT($E179),0))\n/SUM(AC$10:AC$11)","v":0},{"$f":"IF(INDEX(PC_MAPPING,RIGHT($C171,1),MATCH($E$2,'Data by Building Type'!$D$22:$F$22,0))=\"Yes\",1,0)*\n(AD$10*OFFSET('Efficiency Distributions'!$D$10,MATCH($C171,'Efficiency Distributions'!$C$9:$C$87,0)+RIGHT($E179),0)\n+AD$11*OFFSET('Efficiency Distributions'!$E$10,MATCH($C171,'Efficiency Distributions'!$C$9:$C$87,0)+RIGHT($E179),0))\n/SUM(AD$10:AD$11)","v":0},{"$f":"IF(INDEX(PC_MAPPING,RIGHT($C171,1),MATCH($E$2,'Data by Building Type'!$D$22:$F$22,0))=\"Yes\",1,0)*\n(AE$10*OFFSET('Efficiency Distributions'!$D$10,MATCH($C171,'Efficiency Distributions'!$C$9:$C$87,0)+RIGHT($E179),0)\n+AE$11*OFFSET('Efficiency Distributions'!$E$10,MATCH($C171,'Efficiency Distributions'!$C$9:$C$87,0)+RIGHT($E179),0))\n/SUM(AE$10:AE$11)","v":0},{"$f":"IF(INDEX(PC_MAPPING,RIGHT($C171,1),MATCH($E$2,'Data by Building Type'!$D$22:$F$22,0))=\"Yes\",1,0)*\n(AF$10*OFFSET('Efficiency Distributions'!$D$10,MATCH($C171,'Efficiency Distributions'!$C$9:$C$87,0)+RIGHT($E179),0)\n+AF$11*OFFSET('Efficiency Distributions'!$E$10,MATCH($C171,'Efficiency Distributions'!$C$9:$C$87,0)+RIGHT($E179),0))\n/SUM(AF$10:AF$11)","v":0},{"$f":"IF(INDEX(PC_MAPPING,RIGHT($C171,1),MATCH($E$2,'Data by Building Type'!$D$22:$F$22,0))=\"Yes\",1,0)*\n(AG$10*OFFSET('Efficiency Distributions'!$D$10,MATCH($C171,'Efficiency Distributions'!$C$9:$C$87,0)+RIGHT($E179),0)\n+AG$11*OFFSET('Efficiency Distributions'!$E$10,MATCH($C171,'Efficiency Distributions'!$C$9:$C$87,0)+RIGHT($E179),0))\n/SUM(AG$10:AG$11)","v":0},{"$f":"IF(INDEX(PC_MAPPING,RIGHT($C171,1),MATCH($E$2,'Data by Building Type'!$D$22:$F$22,0))=\"Yes\",1,0)*\n(AH$10*OFFSET('Efficiency Distributions'!$D$10,MATCH($C171,'Efficiency Distributions'!$C$9:$C$87,0)+RIGHT($E179),0)\n+AH$11*OFFSET('Efficiency Distributions'!$E$10,MATCH($C171,'Efficiency Distributions'!$C$9:$C$87,0)+RIGHT($E179),0))\n/SUM(AH$10:AH$11)","v":0},{"$f":"IF(INDEX(PC_MAPPING,RIGHT($C171,1),MATCH($E$2,'Data by Building Type'!$D$22:$F$22,0))=\"Yes\",1,0)*\n(AI$10*OFFSET('Efficiency Distributions'!$D$10,MATCH($C171,'Efficiency Distributions'!$C$9:$C$87,0)+RIGHT($E179),0)\n+AI$11*OFFSET('Efficiency Distributions'!$E$10,MATCH($C171,'Efficiency Distributions'!$C$9:$C$87,0)+RIGHT($E179),0))\n/SUM(AI$10:AI$11)","v":0},{"$f":"IF(INDEX(PC_MAPPING,RIGHT($C171,1),MATCH($E$2,'Data by Building Type'!$D$22:$F$22,0))=\"Yes\",1,0)*\n(AJ$10*OFFSET('Efficiency Distributions'!$D$10,MATCH($C171,'Efficiency Distributions'!$C$9:$C$87,0)+RIGHT($E179),0)\n+AJ$11*OFFSET('Efficiency Distributions'!$E$10,MATCH($C171,'Efficiency Distributions'!$C$9:$C$87,0)+RIGHT($E179),0))\n/SUM(AJ$10:AJ$11)","v":0},{"$f":"IF(INDEX(PC_MAPPING,RIGHT($C171,1),MATCH($E$2,'Data by Building Type'!$D$22:$F$22,0))=\"Yes\",1,0)*\n(AK$10*OFFSET('Efficiency Distributions'!$D$10,MATCH($C171,'Efficiency Distributions'!$C$9:$C$87,0)+RIGHT($E179),0)\n+AK$11*OFFSET('Efficiency Distributions'!$E$10,MATCH($C171,'Efficiency Distributions'!$C$9:$C$87,0)+RIGHT($E179),0))\n/SUM(AK$10:AK$11)","v":0},{"$f":"IF(INDEX(PC_MAPPING,RIGHT($C171,1),MATCH($E$2,'Data by Building Type'!$D$22:$F$22,0))=\"Yes\",1,0)*\n(AL$10*OFFSET('Efficiency Distributions'!$D$10,MATCH($C171,'Efficiency Distributions'!$C$9:$C$87,0)+RIGHT($E179),0)\n+AL$11*OFFSET('Efficiency Distributions'!$E$10,MATCH($C171,'Efficiency Distributions'!$C$9:$C$87,0)+RIGHT($E179),0))\n/SUM(AL$10:AL$11)","v":0},{"$f":"IF(INDEX(PC_MAPPING,RIGHT($C171,1),MATCH($E$2,'Data by Building Type'!$D$22:$F$22,0))=\"Yes\",1,0)*\n(AM$10*OFFSET('Efficiency Distributions'!$D$10,MATCH($C171,'Efficiency Distributions'!$C$9:$C$87,0)+RIGHT($E179),0)\n+AM$11*OFFSET('Efficiency Distributions'!$E$10,MATCH($C171,'Efficiency Distributions'!$C$9:$C$87,0)+RIGHT($E179),0))\n/SUM(AM$10:AM$11)","v":0},{"$f":"IF(INDEX(PC_MAPPING,RIGHT($C171,1),MATCH($E$2,'Data by Building Type'!$D$22:$F$22,0))=\"Yes\",1,0)*\n(AN$10*OFFSET('Efficiency Distributions'!$D$10,MATCH($C171,'Efficiency Distributions'!$C$9:$C$87,0)+RIGHT($E179),0)\n+AN$11*OFFSET('Efficiency Distributions'!$E$10,MATCH($C171,'Efficiency Distributions'!$C$9:$C$87,0)+RIGHT($E179),0))\n/SUM(AN$10:AN$11)","v":0},{"$f":"IF(INDEX(PC_MAPPING,RIGHT($C171,1),MATCH($E$2,'Data by Building Type'!$D$22:$F$22,0))=\"Yes\",1,0)*\n(AO$10*OFFSET('Efficiency Distributions'!$D$10,MATCH($C171,'Efficiency Distributions'!$C$9:$C$87,0)+RIGHT($E179),0)\n+AO$11*OFFSET('Efficiency Distributions'!$E$10,MATCH($C171,'Efficiency Distributions'!$C$9:$C$87,0)+RIGHT($E179),0))\n/SUM(AO$10:AO$11)","v":0},{"$f":"IF(INDEX(PC_MAPPING,RIGHT($C171,1),MATCH($E$2,'Data by Building Type'!$D$22:$F$22,0))=\"Yes\",1,0)*\n(AP$10*OFFSET('Efficiency Distributions'!$D$10,MATCH($C171,'Efficiency Distributions'!$C$9:$C$87,0)+RIGHT($E179),0)\n+AP$11*OFFSET('Efficiency Distributions'!$E$10,MATCH($C171,'Efficiency Distributions'!$C$9:$C$87,0)+RIGHT($E179),0))\n/SUM(AP$10:AP$11)","v":0},{"$f":"IF(INDEX(PC_MAPPING,RIGHT($C171,1),MATCH($E$2,'Data by Building Type'!$D$22:$F$22,0))=\"Yes\",1,0)*\n(AQ$10*OFFSET('Efficiency Distributions'!$D$10,MATCH($C171,'Efficiency Distributions'!$C$9:$C$87,0)+RIGHT($E179),0)\n+AQ$11*OFFSET('Efficiency Distributions'!$E$10,MATCH($C171,'Efficiency Distributions'!$C$9:$C$87,0)+RIGHT($E179),0))\n/SUM(AQ$10:AQ$11)","v":0},{"$f":"IF(INDEX(PC_MAPPING,RIGHT($C171,1),MATCH($E$2,'Data by Building Type'!$D$22:$F$22,0))=\"Yes\",1,0)*\n(AR$10*OFFSET('Efficiency Distributions'!$D$10,MATCH($C171,'Efficiency Distributions'!$C$9:$C$87,0)+RIGHT($E179),0)\n+AR$11*OFFSET('Efficiency Distributions'!$E$10,MATCH($C171,'Efficiency Distributions'!$C$9:$C$87,0)+RIGHT($E179),0))\n/SUM(AR$10:AR$11)","v":0},{"$f":"IF(INDEX(PC_MAPPING,RIGHT($C171,1),MATCH($E$2,'Data by Building Type'!$D$22:$F$22,0))=\"Yes\",1,0)*\n(AS$10*OFFSET('Efficiency Distributions'!$D$10,MATCH($C171,'Efficiency Distributions'!$C$9:$C$87,0)+RIGHT($E179),0)\n+AS$11*OFFSET('Efficiency Distributions'!$E$10,MATCH($C171,'Efficiency Distributions'!$C$9:$C$87,0)+RIGHT($E179),0))\n/SUM(AS$10:AS$11)","v":0},{"$f":"IF(INDEX(PC_MAPPING,RIGHT($C171,1),MATCH($E$2,'Data by Building Type'!$D$22:$F$22,0))=\"Yes\",1,0)*\n(AT$10*OFFSET('Efficiency Distributions'!$D$10,MATCH($C171,'Efficiency Distributions'!$C$9:$C$87,0)+RIGHT($E179),0)\n+AT$11*OFFSET('Efficiency Distributions'!$E$10,MATCH($C171,'Efficiency Distributions'!$C$9:$C$87,0)+RIGHT($E179),0))\n/SUM(AT$10:AT$11)","v":0},{"$f":"IF(INDEX(PC_MAPPING,RIGHT($C171,1),MATCH($E$2,'Data by Building Type'!$D$22:$F$22,0))=\"Yes\",1,0)*\n(AU$10*OFFSET('Efficiency Distributions'!$D$10,MATCH($C171,'Efficiency Distributions'!$C$9:$C$87,0)+RIGHT($E179),0)\n+AU$11*OFFSET('Efficiency Distributions'!$E$10,MATCH($C171,'Efficiency Distributions'!$C$9:$C$87,0)+RIGHT($E179),0))\n/SUM(AU$10:AU$11)","v":0},{"$f":"IF(INDEX(PC_MAPPING,RIGHT($C171,1),MATCH($E$2,'Data by Building Type'!$D$22:$F$22,0))=\"Yes\",1,0)*\n(AV$10*OFFSET('Efficiency Distributions'!$D$10,MATCH($C171,'Efficiency Distributions'!$C$9:$C$87,0)+RIGHT($E179),0)\n+AV$11*OFFSET('Efficiency Distributions'!$E$10,MATCH($C171,'Efficiency Distributions'!$C$9:$C$87,0)+RIGHT($E179),0))\n/SUM(AV$10:AV$11)","v":0},{"$f":"IF(INDEX(PC_MAPPING,RIGHT($C171,1),MATCH($E$2,'Data by Building Type'!$D$22:$F$22,0))=\"Yes\",1,0)*\n(AW$10*OFFSET('Efficiency Distributions'!$D$10,MATCH($C171,'Efficiency Distributions'!$C$9:$C$87,0)+RIGHT($E179),0)\n+AW$11*OFFSET('Efficiency Distributions'!$E$10,MATCH($C171,'Efficiency Distributions'!$C$9:$C$87,0)+RIGHT($E179),0))\n/SUM(AW$10:AW$11)","v":0},{"$f":"IF(INDEX(PC_MAPPING,RIGHT($C171,1),MATCH($E$2,'Data by Building Type'!$D$22:$F$22,0))=\"Yes\",1,0)*\n(AX$10*OFFSET('Efficiency Distributions'!$D$10,MATCH($C171,'Efficiency Distributions'!$C$9:$C$87,0)+RIGHT($E179),0)\n+AX$11*OFFSET('Efficiency Distributions'!$E$10,MATCH($C171,'Efficiency Distributions'!$C$9:$C$87,0)+RIGHT($E179),0))\n/SUM(AX$10:AX$11)","v":0},{"$f":"IF(INDEX(PC_MAPPING,RIGHT($C171,1),MATCH($E$2,'Data by Building Type'!$D$22:$F$22,0))=\"Yes\",1,0)*\n(AY$10*OFFSET('Efficiency Distributions'!$D$10,MATCH($C171,'Efficiency Distributions'!$C$9:$C$87,0)+RIGHT($E179),0)\n+AY$11*OFFSET('Efficiency Distributions'!$E$10,MATCH($C171,'Efficiency Distributions'!$C$9:$C$87,0)+RIGHT($E179),0))\n/SUM(AY$10:AY$11)","v":0},{"$f":"IF(INDEX(PC_MAPPING,RIGHT($C171,1),MATCH($E$2,'Data by Building Type'!$D$22:$F$22,0))=\"Yes\",1,0)*\n(AZ$10*OFFSET('Efficiency Distributions'!$D$10,MATCH($C171,'Efficiency Distributions'!$C$9:$C$87,0)+RIGHT($E179),0)\n+AZ$11*OFFSET('Efficiency Distributions'!$E$10,MATCH($C171,'Efficiency Distributions'!$C$9:$C$87,0)+RIGHT($E179),0))\n/SUM(AZ$10:AZ$11)","v":0},{"$f":"IF(INDEX(PC_MAPPING,RIGHT($C171,1),MATCH($E$2,'Data by Building Type'!$D$22:$F$22,0))=\"Yes\",1,0)*\n(BA$10*OFFSET('Efficiency Distributions'!$D$10,MATCH($C171,'Efficiency Distributions'!$C$9:$C$87,0)+RIGHT($E179),0)\n+BA$11*OFFSET('Efficiency Distributions'!$E$10,MATCH($C171,'Efficiency Distributions'!$C$9:$C$87,0)+RIGHT($E179),0))\n/SUM(BA$10:BA$11)","v":0},{"$f":"IF(INDEX(PC_MAPPING,RIGHT($C171,1),MATCH($E$2,'Data by Building Type'!$D$22:$F$22,0))=\"Yes\",1,0)*\n(BB$10*OFFSET('Efficiency Distributions'!$D$10,MATCH($C171,'Efficiency Distributions'!$C$9:$C$87,0)+RIGHT($E179),0)\n+BB$11*OFFSET('Efficiency Distributions'!$E$10,MATCH($C171,'Efficiency Distributions'!$C$9:$C$87,0)+RIGHT($E179),0))\n/SUM(BB$10:BB$11)","v":0},{"$f":"IF(INDEX(PC_MAPPING,RIGHT($C171,1),MATCH($E$2,'Data by Building Type'!$D$22:$F$22,0))=\"Yes\",1,0)*\n(BC$10*OFFSET('Efficiency Distributions'!$D$10,MATCH($C171,'Efficiency Distributions'!$C$9:$C$87,0)+RIGHT($E179),0)\n+BC$11*OFFSET('Efficiency Distributions'!$E$10,MATCH($C171,'Efficiency Distributions'!$C$9:$C$87,0)+RIGHT($E179),0))\n/SUM(BC$10:BC$11)","v":0},{"$f":"IF(INDEX(PC_MAPPING,RIGHT($C171,1),MATCH($E$2,'Data by Building Type'!$D$22:$F$22,0))=\"Yes\",1,0)*\n(BD$10*OFFSET('Efficiency Distributions'!$D$10,MATCH($C171,'Efficiency Distributions'!$C$9:$C$87,0)+RIGHT($E179),0)\n+BD$11*OFFSET('Efficiency Distributions'!$E$10,MATCH($C171,'Efficiency Distributions'!$C$9:$C$87,0)+RIGHT($E179),0))\n/SUM(BD$10:BD$11)","v":0},{"$f":"IF(INDEX(PC_MAPPING,RIGHT($C171,1),MATCH($E$2,'Data by Building Type'!$D$22:$F$22,0))=\"Yes\",1,0)*\n(BE$10*OFFSET('Efficiency Distributions'!$D$10,MATCH($C171,'Efficiency Distributions'!$C$9:$C$87,0)+RIGHT($E179),0)\n+BE$11*OFFSET('Efficiency Distributions'!$E$10,MATCH($C171,'Efficiency Distributions'!$C$9:$C$87,0)+RIGHT($E179),0))\n/SUM(BE$10:BE$11)","v":0},{"$f":"IF(INDEX(PC_MAPPING,RIGHT($C171,1),MATCH($E$2,'Data by Building Type'!$D$22:$F$22,0))=\"Yes\",1,0)*\n(BF$10*OFFSET('Efficiency Distributions'!$D$10,MATCH($C171,'Efficiency Distributions'!$C$9:$C$87,0)+RIGHT($E179),0)\n+BF$11*OFFSET('Efficiency Distributions'!$E$10,MATCH($C171,'Efficiency Distributions'!$C$9:$C$87,0)+RIGHT($E179),0))\n/SUM(BF$10:BF$11)","v":0},{"$f":"IF(INDEX(PC_MAPPING,RIGHT($C171,1),MATCH($E$2,'Data by Building Type'!$D$22:$F$22,0))=\"Yes\",1,0)*\n(BG$10*OFFSET('Efficiency Distributions'!$D$10,MATCH($C171,'Efficiency Distributions'!$C$9:$C$87,0)+RIGHT($E179),0)\n+BG$11*OFFSET('Efficiency Distributions'!$E$10,MATCH($C171,'Efficiency Distributions'!$C$9:$C$87,0)+RIGHT($E179),0))\n/SUM(BG$10:BG$11)","v":0}]
[null,null,null,null,"EL5",{"$f":"IF(INDEX(PC_MAPPING,RIGHT($C171,1),MATCH($E$2,'Data by Building Type'!$D$22:$F$22,0))=\"Yes\",1,0)*\n(F$10*OFFSET('Efficiency Distributions'!$D$10,MATCH($C171,'Efficiency Distributions'!$C$9:$C$87,0)+RIGHT($E180),0)\n+F$11*OFFSET('Efficiency Distributions'!$E$10,MATCH($C171,'Efficiency Distributions'!$C$9:$C$87,0)+RIGHT($E180),0))\n/SUM(F$10:F$11)","v":4.5360690175320302E-2},{"$f":"IF(INDEX(PC_MAPPING,RIGHT($C171,1),MATCH($E$2,'Data by Building Type'!$D$22:$F$22,0))=\"Yes\",1,0)*\n(G$10*OFFSET('Efficiency Distributions'!$D$10,MATCH($C171,'Efficiency Distributions'!$C$9:$C$87,0)+RIGHT($E180),0)\n+G$11*OFFSET('Efficiency Distributions'!$E$10,MATCH($C171,'Efficiency Distributions'!$C$9:$C$87,0)+RIGHT($E180),0))\n/SUM(G$10:G$11)","v":4.794970441207793E-2},{"$f":"IF(INDEX(PC_MAPPING,RIGHT($C171,1),MATCH($E$2,'Data by Building Type'!$D$22:$F$22,0))=\"Yes\",1,0)*\n(H$10*OFFSET('Efficiency Distributions'!$D$10,MATCH($C171,'Efficiency Distributions'!$C$9:$C$87,0)+RIGHT($E180),0)\n+H$11*OFFSET('Efficiency Distributions'!$E$10,MATCH($C171,'Efficiency Distributions'!$C$9:$C$87,0)+RIGHT($E180),0))\n/SUM(H$10:H$11)","v":4.3992410661426402E-2},{"$f":"IF(INDEX(PC_MAPPING,RIGHT($C171,1),MATCH($E$2,'Data by Building Type'!$D$22:$F$22,0))=\"Yes\",1,0)*\n(I$10*OFFSET('Efficiency Distributions'!$D$10,MATCH($C171,'Efficiency Distributions'!$C$9:$C$87,0)+RIGHT($E180),0)\n+I$11*OFFSET('Efficiency Distributions'!$E$10,MATCH($C171,'Efficiency Distributions'!$C$9:$C$87,0)+RIGHT($E180),0))\n/SUM(I$10:I$11)","v":4.4221375649845691E-2},{"$f":"IF(INDEX(PC_MAPPING,RIGHT($C171,1),MATCH($E$2,'Data by Building Type'!$D$22:$F$22,0))=\"Yes\",1,0)*\n(J$10*OFFSET('Efficiency Distributions'!$D$10,MATCH($C171,'Efficiency Distributions'!$C$9:$C$87,0)+RIGHT($E180),0)\n+J$11*OFFSET('Efficiency Distributions'!$E$10,MATCH($C171,'Efficiency Distributions'!$C$9:$C$87,0)+RIGHT($E180),0))\n/SUM(J$10:J$11)","v":4.6242037180683399E-2},{"$f":"IF(INDEX(PC_MAPPING,RIGHT($C171,1),MATCH($E$2,'Data by Building Type'!$D$22:$F$22,0))=\"Yes\",1,0)*\n(K$10*OFFSET('Efficiency Distributions'!$D$10,MATCH($C171,'Efficiency Distributions'!$C$9:$C$87,0)+RIGHT($E180),0)\n+K$11*OFFSET('Efficiency Distributions'!$E$10,MATCH($C171,'Efficiency Distributions'!$C$9:$C$87,0)+RIGHT($E180),0))\n/SUM(K$10:K$11)","v":4.8512355972460265E-2},{"$f":"IF(INDEX(PC_MAPPING,RIGHT($C171,1),MATCH($E$2,'Data by Building Type'!$D$22:$F$22,0))=\"Yes\",1,0)*\n(L$10*OFFSET('Efficiency Distributions'!$D$10,MATCH($C171,'Efficiency Distributions'!$C$9:$C$87,0)+RIGHT($E180),0)\n+L$11*OFFSET('Efficiency Distributions'!$E$10,MATCH($C171,'Efficiency Distributions'!$C$9:$C$87,0)+RIGHT($E180),0))\n/SUM(L$10:L$11)","v":4.9161387672063017E-2},{"$f":"IF(INDEX(PC_MAPPING,RIGHT($C171,1),MATCH($E$2,'Data by Building Type'!$D$22:$F$22,0))=\"Yes\",1,0)*\n(M$10*OFFSET('Efficiency Distributions'!$D$10,MATCH($C171,'Efficiency Distributions'!$C$9:$C$87,0)+RIGHT($E180),0)\n+M$11*OFFSET('Efficiency Distributions'!$E$10,MATCH($C171,'Efficiency Distributions'!$C$9:$C$87,0)+RIGHT($E180),0))\n/SUM(M$10:M$11)","v":4.7559108305322013E-2},{"$f":"IF(INDEX(PC_MAPPING,RIGHT($C171,1),MATCH($E$2,'Data by Building Type'!$D$22:$F$22,0))=\"Yes\",1,0)*\n(N$10*OFFSET('Efficiency Distributions'!$D$10,MATCH($C171,'Efficiency Distributions'!$C$9:$C$87,0)+RIGHT($E180),0)\n+N$11*OFFSET('Efficiency Distributions'!$E$10,MATCH($C171,'Efficiency Distributions'!$C$9:$C$87,0)+RIGHT($E180),0))\n/SUM(N$10:N$11)","v":4.6391466605719613E-2},{"$f":"IF(INDEX(PC_MAPPING,RIGHT($C171,1),MATCH($E$2,'Data by Building Type'!$D$22:$F$22,0))=\"Yes\",1,0)*\n(O$10*OFFSET('Efficiency Distributions'!$D$10,MATCH($C171,'Efficiency Distributions'!$C$9:$C$87,0)+RIGHT($E180),0)\n+O$11*OFFSET('Efficiency Distributions'!$E$10,MATCH($C171,'Efficiency Distributions'!$C$9:$C$87,0)+RIGHT($E180),0))\n/SUM(O$10:O$11)","v":4.423907670961702E-2},{"$f":"IF(INDEX(PC_MAPPING,RIGHT($C171,1),MATCH($E$2,'Data by Building Type'!$D$22:$F$22,0))=\"Yes\",1,0)*\n(P$10*OFFSET('Efficiency Distributions'!$D$10,MATCH($C171,'Efficiency Distributions'!$C$9:$C$87,0)+RIGHT($E180),0)\n+P$11*OFFSET('Efficiency Distributions'!$E$10,MATCH($C171,'Efficiency Distributions'!$C$9:$C$87,0)+RIGHT($E180),0))\n/SUM(P$10:P$11)","v":4.4301744021193655E-2},{"$f":"IF(INDEX(PC_MAPPING,RIGHT($C171,1),MATCH($E$2,'Data by Building Type'!$D$22:$F$22,0))=\"Yes\",1,0)*\n(Q$10*OFFSET('Efficiency Distributions'!$D$10,MATCH($C171,'Efficiency Distributions'!$C$9:$C$87,0)+RIGHT($E180),0)\n+Q$11*OFFSET('Efficiency Distributions'!$E$10,MATCH($C171,'Efficiency Distributions'!$C$9:$C$87,0)+RIGHT($E180),0))\n/SUM(Q$10:Q$11)","v":4.2391177403255549E-2},{"$f":"IF(INDEX(PC_MAPPING,RIGHT($C171,1),MATCH($E$2,'Data by Building Type'!$D$22:$F$22,0))=\"Yes\",1,0)*\n(R$10*OFFSET('Efficiency Distributions'!$D$10,MATCH($C171,'Efficiency Distributions'!$C$9:$C$87,0)+RIGHT($E180),0)\n+R$11*OFFSET('Efficiency Distributions'!$E$10,MATCH($C171,'Efficiency Distributions'!$C$9:$C$87,0)+RIGHT($E180),0))\n/SUM(R$10:R$11)","v":4.0255714685620517E-2},{"$f":"IF(INDEX(PC_MAPPING,RIGHT($C171,1),MATCH($E$2,'Data by Building Type'!$D$22:$F$22,0))=\"Yes\",1,0)*\n(S$10*OFFSET('Efficiency Distributions'!$D$10,MATCH($C171,'Efficiency Distributions'!$C$9:$C$87,0)+RIGHT($E180),0)\n+S$11*OFFSET('Efficiency Distributions'!$E$10,MATCH($C171,'Efficiency Distributions'!$C$9:$C$87,0)+RIGHT($E180),0))\n/SUM(S$10:S$11)","v":3.8303783518496962E-2},{"$f":"IF(INDEX(PC_MAPPING,RIGHT($C171,1),MATCH($E$2,'Data by Building Type'!$D$22:$F$22,0))=\"Yes\",1,0)*\n(T$10*OFFSET('Efficiency Distributions'!$D$10,MATCH($C171,'Efficiency Distributions'!$C$9:$C$87,0)+RIGHT($E180),0)\n+T$11*OFFSET('Efficiency Distributions'!$E$10,MATCH($C171,'Efficiency Distributions'!$C$9:$C$87,0)+RIGHT($E180),0))\n/SUM(T$10:T$11)","v":3.8928765295390903E-2},{"$f":"IF(INDEX(PC_MAPPING,RIGHT($C171,1),MATCH($E$2,'Data by Building Type'!$D$22:$F$22,0))=\"Yes\",1,0)*\n(U$10*OFFSET('Efficiency Distributions'!$D$10,MATCH($C171,'Efficiency Distributions'!$C$9:$C$87,0)+RIGHT($E180),0)\n+U$11*OFFSET('Efficiency Distributions'!$E$10,MATCH($C171,'Efficiency Distributions'!$C$9:$C$87,0)+RIGHT($E180),0))\n/SUM(U$10:U$11)","v":4.0797218334324543E-2},{"$f":"IF(INDEX(PC_MAPPING,RIGHT($C171,1),MATCH($E$2,'Data by Building Type'!$D$22:$F$22,0))=\"Yes\",1,0)*\n(V$10*OFFSET('Efficiency Distributions'!$D$10,MATCH($C171,'Efficiency Distributions'!$C$9:$C$87,0)+RIGHT($E180),0)\n+V$11*OFFSET('Efficiency Distributions'!$E$10,MATCH($C171,'Efficiency Distributions'!$C$9:$C$87,0)+RIGHT($E180),0))\n/SUM(V$10:V$11)","v":4.0734653048658871E-2},{"$f":"IF(INDEX(PC_MAPPING,RIGHT($C171,1),MATCH($E$2,'Data by Building Type'!$D$22:$F$22,0))=\"Yes\",1,0)*\n(W$10*OFFSET('Efficiency Distributions'!$D$10,MATCH($C171,'Efficiency Distributions'!$C$9:$C$87,0)+RIGHT($E180),0)\n+W$11*OFFSET('Efficiency Distributions'!$E$10,MATCH($C171,'Efficiency Distributions'!$C$9:$C$87,0)+RIGHT($E180),0))\n/SUM(W$10:W$11)","v":4.0284229115260493E-2},{"$f":"IF(INDEX(PC_MAPPING,RIGHT($C171,1),MATCH($E$2,'Data by Building Type'!$D$22:$F$22,0))=\"Yes\",1,0)*\n(X$10*OFFSET('Efficiency Distributions'!$D$10,MATCH($C171,'Efficiency Distributions'!$C$9:$C$87,0)+RIGHT($E180),0)\n+X$11*OFFSET('Efficiency Distributions'!$E$10,MATCH($C171,'Efficiency Distributions'!$C$9:$C$87,0)+RIGHT($E180),0))\n/SUM(X$10:X$11)","v":4.3174116611652505E-2},{"$f":"IF(INDEX(PC_MAPPING,RIGHT($C171,1),MATCH($E$2,'Data by Building Type'!$D$22:$F$22,0))=\"Yes\",1,0)*\n(Y$10*OFFSET('Efficiency Distributions'!$D$10,MATCH($C171,'Efficiency Distributions'!$C$9:$C$87,0)+RIGHT($E180),0)\n+Y$11*OFFSET('Efficiency Distributions'!$E$10,MATCH($C171,'Efficiency Distributions'!$C$9:$C$87,0)+RIGHT($E180),0))\n/SUM(Y$10:Y$11)","v":4.9141778140580218E-2},{"$f":"IF(INDEX(PC_MAPPING,RIGHT($C171,1),MATCH($E$2,'Data by Building Type'!$D$22:$F$22,0))=\"Yes\",1,0)*\n(Z$10*OFFSET('Efficiency Distributions'!$D$10,MATCH($C171,'Efficiency Distributions'!$C$9:$C$87,0)+RIGHT($E180),0)\n+Z$11*OFFSET('Efficiency Distributions'!$E$10,MATCH($C171,'Efficiency Distributions'!$C$9:$C$87,0)+RIGHT($E180),0))\n/SUM(Z$10:Z$11)","v":5.2899104991495825E-2},{"$f":"IF(INDEX(PC_MAPPING,RIGHT($C171,1),MATCH($E$2,'Data by Building Type'!$D$22:$F$22,0))=\"Yes\",1,0)*\n(AA$10*OFFSET('Efficiency Distributions'!$D$10,MATCH($C171,'Efficiency Distributions'!$C$9:$C$87,0)+RIGHT($E180),0)\n+AA$11*OFFSET('Efficiency Distributions'!$E$10,MATCH($C171,'Efficiency Distributions'!$C$9:$C$87,0)+RIGHT($E180),0))\n/SUM(AA$10:AA$11)","v":5.8181308261856697E-2},{"$f":"IF(INDEX(PC_MAPPING,RIGHT($C171,1),MATCH($E$2,'Data by Building Type'!$D$22:$F$22,0))=\"Yes\",1,0)*\n(AB$10*OFFSET('Efficiency Distributions'!$D$10,MATCH($C171,'Efficiency Distributions'!$C$9:$C$87,0)+RIGHT($E180),0)\n+AB$11*OFFSET('Efficiency Distributions'!$E$10,MATCH($C171,'Efficiency Distributions'!$C$9:$C$87,0)+RIGHT($E180),0))\n/SUM(AB$10:AB$11)","v":5.8314478513524844E-2},{"$f":"IF(INDEX(PC_MAPPING,RIGHT($C171,1),MATCH($E$2,'Data by Building Type'!$D$22:$F$22,0))=\"Yes\",1,0)*\n(AC$10*OFFSET('Efficiency Distributions'!$D$10,MATCH($C171,'Efficiency Distributions'!$C$9:$C$87,0)+RIGHT($E180),0)\n+AC$11*OFFSET('Efficiency Distributions'!$E$10,MATCH($C171,'Efficiency Distributions'!$C$9:$C$87,0)+RIGHT($E180),0))\n/SUM(AC$10:AC$11)","v":5.9726504782387529E-2},{"$f":"IF(INDEX(PC_MAPPING,RIGHT($C171,1),MATCH($E$2,'Data by Building Type'!$D$22:$F$22,0))=\"Yes\",1,0)*\n(AD$10*OFFSET('Efficiency Distributions'!$D$10,MATCH($C171,'Efficiency Distributions'!$C$9:$C$87,0)+RIGHT($E180),0)\n+AD$11*OFFSET('Efficiency Distributions'!$E$10,MATCH($C171,'Efficiency Distributions'!$C$9:$C$87,0)+RIGHT($E180),0))\n/SUM(AD$10:AD$11)","v":5.9719667398337291E-2},{"$f":"IF(INDEX(PC_MAPPING,RIGHT($C171,1),MATCH($E$2,'Data by Building Type'!$D$22:$F$22,0))=\"Yes\",1,0)*\n(AE$10*OFFSET('Efficiency Distributions'!$D$10,MATCH($C171,'Efficiency Distributions'!$C$9:$C$87,0)+RIGHT($E180),0)\n+AE$11*OFFSET('Efficiency Distributions'!$E$10,MATCH($C171,'Efficiency Distributions'!$C$9:$C$87,0)+RIGHT($E180),0))\n/SUM(AE$10:AE$11)","v":5.9700030937688407E-2},{"$f":"IF(INDEX(PC_MAPPING,RIGHT($C171,1),MATCH($E$2,'Data by Building Type'!$D$22:$F$22,0))=\"Yes\",1,0)*\n(AF$10*OFFSET('Efficiency Distributions'!$D$10,MATCH($C171,'Efficiency Distributions'!$C$9:$C$87,0)+RIGHT($E180),0)\n+AF$11*OFFSET('Efficiency Distributions'!$E$10,MATCH($C171,'Efficiency Distributions'!$C$9:$C$87,0)+RIGHT($E180),0))\n/SUM(AF$10:AF$11)","v":5.6801695903464601E-2},{"$f":"IF(INDEX(PC_MAPPING,RIGHT($C171,1),MATCH($E$2,'Data by Building Type'!$D$22:$F$22,0))=\"Yes\",1,0)*\n(AG$10*OFFSET('Efficiency Distributions'!$D$10,MATCH($C171,'Efficiency Distributions'!$C$9:$C$87,0)+RIGHT($E180),0)\n+AG$11*OFFSET('Efficiency Distributions'!$E$10,MATCH($C171,'Efficiency Distributions'!$C$9:$C$87,0)+RIGHT($E180),0))\n/SUM(AG$10:AG$11)","v":5.6289092149584267E-2},{"$f":"IF(INDEX(PC_MAPPING,RIGHT($C171,1),MATCH($E$2,'Data by Building Type'!$D$22:$F$22,0))=\"Yes\",1,0)*\n(AH$10*OFFSET('Efficiency Distributions'!$D$10,MATCH($C171,'Efficiency Distributions'!$C$9:$C$87,0)+RIGHT($E180),0)\n+AH$11*OFFSET('Efficiency Distributions'!$E$10,MATCH($C171,'Efficiency Distributions'!$C$9:$C$87,0)+RIGHT($E180),0))\n/SUM(AH$10:AH$11)","v":5.6658155130280725E-2},{"$f":"IF(INDEX(PC_MAPPING,RIGHT($C171,1),MATCH($E$2,'Data by Building Type'!$D$22:$F$22,0))=\"Yes\",1,0)*\n(AI$10*OFFSET('Efficiency Distributions'!$D$10,MATCH($C171,'Efficiency Distributions'!$C$9:$C$87,0)+RIGHT($E180),0)\n+AI$11*OFFSET('Efficiency Distributions'!$E$10,MATCH($C171,'Efficiency Distributions'!$C$9:$C$87,0)+RIGHT($E180),0))\n/SUM(AI$10:AI$11)","v":5.7023090037409706E-2},{"$f":"IF(INDEX(PC_MAPPING,RIGHT($C171,1),MATCH($E$2,'Data by Building Type'!$D$22:$F$22,0))=\"Yes\",1,0)*\n(AJ$10*OFFSET('Efficiency Distributions'!$D$10,MATCH($C171,'Efficiency Distributions'!$C$9:$C$87,0)+RIGHT($E180),0)\n+AJ$11*OFFSET('Efficiency Distributions'!$E$10,MATCH($C171,'Efficiency Distributions'!$C$9:$C$87,0)+RIGHT($E180),0))\n/SUM(AJ$10:AJ$11)","v":5.7891300322619646E-2},{"$f":"IF(INDEX(PC_MAPPING,RIGHT($C171,1),MATCH($E$2,'Data by Building Type'!$D$22:$F$22,0))=\"Yes\",1,0)*\n(AK$10*OFFSET('Efficiency Distributions'!$D$10,MATCH($C171,'Efficiency Distributions'!$C$9:$C$87,0)+RIGHT($E180),0)\n+AK$11*OFFSET('Efficiency Distributions'!$E$10,MATCH($C171,'Efficiency Distributions'!$C$9:$C$87,0)+RIGHT($E180),0))\n/SUM(AK$10:AK$11)","v":5.6169140520409812E-2},{"$f":"IF(INDEX(PC_MAPPING,RIGHT($C171,1),MATCH($E$2,'Data by Building Type'!$D$22:$F$22,0))=\"Yes\",1,0)*\n(AL$10*OFFSET('Efficiency Distributions'!$D$10,MATCH($C171,'Efficiency Distributions'!$C$9:$C$87,0)+RIGHT($E180),0)\n+AL$11*OFFSET('Efficiency Distributions'!$E$10,MATCH($C171,'Efficiency Distributions'!$C$9:$C$87,0)+RIGHT($E180),0))\n/SUM(AL$10:AL$11)","v":5.7217791838950899E-2},{"$f":"IF(INDEX(PC_MAPPING,RIGHT($C171,1),MATCH($E$2,'Data by Building Type'!$D$22:$F$22,0))=\"Yes\",1,0)*\n(AM$10*OFFSET('Efficiency Distributions'!$D$10,MATCH($C171,'Efficiency Distributions'!$C$9:$C$87,0)+RIGHT($E180),0)\n+AM$11*OFFSET('Efficiency Distributions'!$E$10,MATCH($C171,'Efficiency Distributions'!$C$9:$C$87,0)+RIGHT($E180),0))\n/SUM(AM$10:AM$11)","v":5.844466424704791E-2},{"$f":"IF(INDEX(PC_MAPPING,RIGHT($C171,1),MATCH($E$2,'Data by Building Type'!$D$22:$F$22,0))=\"Yes\",1,0)*\n(AN$10*OFFSET('Efficiency Distributions'!$D$10,MATCH($C171,'Efficiency Distributions'!$C$9:$C$87,0)+RIGHT($E180),0)\n+AN$11*OFFSET('Efficiency Distributions'!$E$10,MATCH($C171,'Efficiency Distributions'!$C$9:$C$87,0)+RIGHT($E180),0))\n/SUM(AN$10:AN$11)","v":5.955442677152923E-2},{"$f":"IF(INDEX(PC_MAPPING,RIGHT($C171,1),MATCH($E$2,'Data by Building Type'!$D$22:$F$22,0))=\"Yes\",1,0)*\n(AO$10*OFFSET('Efficiency Distributions'!$D$10,MATCH($C171,'Efficiency Distributions'!$C$9:$C$87,0)+RIGHT($E180),0)\n+AO$11*OFFSET('Efficiency Distributions'!$E$10,MATCH($C171,'Efficiency Distributions'!$C$9:$C$87,0)+RIGHT($E180),0))\n/SUM(AO$10:AO$11)","v":5.9676260879773117E-2},{"$f":"IF(INDEX(PC_MAPPING,RIGHT($C171,1),MATCH($E$2,'Data by Building Type'!$D$22:$F$22,0))=\"Yes\",1,0)*\n(AP$10*OFFSET('Efficiency Distributions'!$D$10,MATCH($C171,'Efficiency Distributions'!$C$9:$C$87,0)+RIGHT($E180),0)\n+AP$11*OFFSET('Efficiency Distributions'!$E$10,MATCH($C171,'Efficiency Distributions'!$C$9:$C$87,0)+RIGHT($E180),0))\n/SUM(AP$10:AP$11)","v":5.9279899653042006E-2},{"$f":"IF(INDEX(PC_MAPPING,RIGHT($C171,1),MATCH($E$2,'Data by Building Type'!$D$22:$F$22,0))=\"Yes\",1,0)*\n(AQ$10*OFFSET('Efficiency Distributions'!$D$10,MATCH($C171,'Efficiency Distributions'!$C$9:$C$87,0)+RIGHT($E180),0)\n+AQ$11*OFFSET('Efficiency Distributions'!$E$10,MATCH($C171,'Efficiency Distributions'!$C$9:$C$87,0)+RIGHT($E180),0))\n/SUM(AQ$10:AQ$11)","v":5.9336935473681102E-2},{"$f":"IF(INDEX(PC_MAPPING,RIGHT($C171,1),MATCH($E$2,'Data by Building Type'!$D$22:$F$22,0))=\"Yes\",1,0)*\n(AR$10*OFFSET('Efficiency Distributions'!$D$10,MATCH($C171,'Efficiency Distributions'!$C$9:$C$87,0)+RIGHT($E180),0)\n+AR$11*OFFSET('Efficiency Distributions'!$E$10,MATCH($C171,'Efficiency Distributions'!$C$9:$C$87,0)+RIGHT($E180),0))\n/SUM(AR$10:AR$11)","v":5.9353847554090289E-2},{"$f":"IF(INDEX(PC_MAPPING,RIGHT($C171,1),MATCH($E$2,'Data by Building Type'!$D$22:$F$22,0))=\"Yes\",1,0)*\n(AS$10*OFFSET('Efficiency Distributions'!$D$10,MATCH($C171,'Efficiency Distributions'!$C$9:$C$87,0)+RIGHT($E180),0)\n+AS$11*OFFSET('Efficiency Distributions'!$E$10,MATCH($C171,'Efficiency Distributions'!$C$9:$C$87,0)+RIGHT($E180),0))\n/SUM(AS$10:AS$11)","v":5.8196815507675165E-2},{"$f":"IF(INDEX(PC_MAPPING,RIGHT($C171,1),MATCH($E$2,'Data by Building Type'!$D$22:$F$22,0))=\"Yes\",1,0)*\n(AT$10*OFFSET('Efficiency Distributions'!$D$10,MATCH($C171,'Efficiency Distributions'!$C$9:$C$87,0)+RIGHT($E180),0)\n+AT$11*OFFSET('Efficiency Distributions'!$E$10,MATCH($C171,'Efficiency Distributions'!$C$9:$C$87,0)+RIGHT($E180),0))\n/SUM(AT$10:AT$11)","v":5.6056846970675013E-2},{"$f":"IF(INDEX(PC_MAPPING,RIGHT($C171,1),MATCH($E$2,'Data by Building Type'!$D$22:$F$22,0))=\"Yes\",1,0)*\n(AU$10*OFFSET('Efficiency Distributions'!$D$10,MATCH($C171,'Efficiency Distributions'!$C$9:$C$87,0)+RIGHT($E180),0)\n+AU$11*OFFSET('Efficiency Distributions'!$E$10,MATCH($C171,'Efficiency Distributions'!$C$9:$C$87,0)+RIGHT($E180),0))\n/SUM(AU$10:AU$11)","v":5.4613443642255517E-2},{"$f":"IF(INDEX(PC_MAPPING,RIGHT($C171,1),MATCH($E$2,'Data by Building Type'!$D$22:$F$22,0))=\"Yes\",1,0)*\n(AV$10*OFFSET('Efficiency Distributions'!$D$10,MATCH($C171,'Efficiency Distributions'!$C$9:$C$87,0)+RIGHT($E180),0)\n+AV$11*OFFSET('Efficiency Distributions'!$E$10,MATCH($C171,'Efficiency Distributions'!$C$9:$C$87,0)+RIGHT($E180),0))\n/SUM(AV$10:AV$11)","v":5.8348732786816709E-2},{"$f":"IF(INDEX(PC_MAPPING,RIGHT($C171,1),MATCH($E$2,'Data by Building Type'!$D$22:$F$22,0))=\"Yes\",1,0)*\n(AW$10*OFFSET('Efficiency Distributions'!$D$10,MATCH($C171,'Efficiency Distributions'!$C$9:$C$87,0)+RIGHT($E180),0)\n+AW$11*OFFSET('Efficiency Distributions'!$E$10,MATCH($C171,'Efficiency Distributions'!$C$9:$C$87,0)+RIGHT($E180),0))\n/SUM(AW$10:AW$11)","v":5.7470603477282542E-2},{"$f":"IF(INDEX(PC_MAPPING,RIGHT($C171,1),MATCH($E$2,'Data by Building Type'!$D$22:$F$22,0))=\"Yes\",1,0)*\n(AX$10*OFFSET('Efficiency Distributions'!$D$10,MATCH($C171,'Efficiency Distributions'!$C$9:$C$87,0)+RIGHT($E180),0)\n+AX$11*OFFSET('Efficiency Distributions'!$E$10,MATCH($C171,'Efficiency Distributions'!$C$9:$C$87,0)+RIGHT($E180),0))\n/SUM(AX$10:AX$11)","v":5.833282753704222E-2},{"$f":"IF(INDEX(PC_MAPPING,RIGHT($C171,1),MATCH($E$2,'Data by Building Type'!$D$22:$F$22,0))=\"Yes\",1,0)*\n(AY$10*OFFSET('Efficiency Distributions'!$D$10,MATCH($C171,'Efficiency Distributions'!$C$9:$C$87,0)+RIGHT($E180),0)\n+AY$11*OFFSET('Efficiency Distributions'!$E$10,MATCH($C171,'Efficiency Distributions'!$C$9:$C$87,0)+RIGHT($E180),0))\n/SUM(AY$10:AY$11)","v":5.8403462166414788E-2},{"$f":"IF(INDEX(PC_MAPPING,RIGHT($C171,1),MATCH($E$2,'Data by Building Type'!$D$22:$F$22,0))=\"Yes\",1,0)*\n(AZ$10*OFFSET('Efficiency Distributions'!$D$10,MATCH($C171,'Efficiency Distributions'!$C$9:$C$87,0)+RIGHT($E180),0)\n+AZ$11*OFFSET('Efficiency Distributions'!$E$10,MATCH($C171,'Efficiency Distributions'!$C$9:$C$87,0)+RIGHT($E180),0))\n/SUM(AZ$10:AZ$11)","v":5.8084958959760714E-2},{"$f":"IF(INDEX(PC_MAPPING,RIGHT($C171,1),MATCH($E$2,'Data by Building Type'!$D$22:$F$22,0))=\"Yes\",1,0)*\n(BA$10*OFFSET('Efficiency Distributions'!$D$10,MATCH($C171,'Efficiency Distributions'!$C$9:$C$87,0)+RIGHT($E180),0)\n+BA$11*OFFSET('Efficiency Distributions'!$E$10,MATCH($C171,'Efficiency Distributions'!$C$9:$C$87,0)+RIGHT($E180),0))\n/SUM(BA$10:BA$11)","v":5.838417404874878E-2},{"$f":"IF(INDEX(PC_MAPPING,RIGHT($C171,1),MATCH($E$2,'Data by Building Type'!$D$22:$F$22,0))=\"Yes\",1,0)*\n(BB$10*OFFSET('Efficiency Distributions'!$D$10,MATCH($C171,'Efficiency Distributions'!$C$9:$C$87,0)+RIGHT($E180),0)\n+BB$11*OFFSET('Efficiency Distributions'!$E$10,MATCH($C171,'Efficiency Distributions'!$C$9:$C$87,0)+RIGHT($E180),0))\n/SUM(BB$10:BB$11)","v":5.8695968890442228E-2},{"$f":"IF(INDEX(PC_MAPPING,RIGHT($C171,1),MATCH($E$2,'Data by Building Type'!$D$22:$F$22,0))=\"Yes\",1,0)*\n(BC$10*OFFSET('Efficiency Distributions'!$D$10,MATCH($C171,'Efficiency Distributions'!$C$9:$C$87,0)+RIGHT($E180),0)\n+BC$11*OFFSET('Efficiency Distributions'!$E$10,MATCH($C171,'Efficiency Distributions'!$C$9:$C$87,0)+RIGHT($E180),0))\n/SUM(BC$10:BC$11)","v":5.9347990341494836E-2},{"$f":"IF(INDEX(PC_MAPPING,RIGHT($C171,1),MATCH($E$2,'Data by Building Type'!$D$22:$F$22,0))=\"Yes\",1,0)*\n(BD$10*OFFSET('Efficiency Distributions'!$D$10,MATCH($C171,'Efficiency Distributions'!$C$9:$C$87,0)+RIGHT($E180),0)\n+BD$11*OFFSET('Efficiency Distributions'!$E$10,MATCH($C171,'Efficiency Distributions'!$C$9:$C$87,0)+RIGHT($E180),0))\n/SUM(BD$10:BD$11)","v":5.9495812553752518E-2},{"$f":"IF(INDEX(PC_MAPPING,RIGHT($C171,1),MATCH($E$2,'Data by Building Type'!$D$22:$F$22,0))=\"Yes\",1,0)*\n(BE$10*OFFSET('Efficiency Distributions'!$D$10,MATCH($C171,'Efficiency Distributions'!$C$9:$C$87,0)+RIGHT($E180),0)\n+BE$11*OFFSET('Efficiency Distributions'!$E$10,MATCH($C171,'Efficiency Distributions'!$C$9:$C$87,0)+RIGHT($E180),0))\n/SUM(BE$10:BE$11)","v":5.9818711564720711E-2},{"$f":"IF(INDEX(PC_MAPPING,RIGHT($C171,1),MATCH($E$2,'Data by Building Type'!$D$22:$F$22,0))=\"Yes\",1,0)*\n(BF$10*OFFSET('Efficiency Distributions'!$D$10,MATCH($C171,'Efficiency Distributions'!$C$9:$C$87,0)+RIGHT($E180),0)\n+BF$11*OFFSET('Efficiency Distributions'!$E$10,MATCH($C171,'Efficiency Distributions'!$C$9:$C$87,0)+RIGHT($E180),0))\n/SUM(BF$10:BF$11)","v":6.0031147473909079E-2},{"$f":"IF(INDEX(PC_MAPPING,RIGHT($C171,1),MATCH($E$2,'Data by Building Type'!$D$22:$F$22,0))=\"Yes\",1,0)*\n(BG$10*OFFSET('Efficiency Distributions'!$D$10,MATCH($C171,'Efficiency Distributions'!$C$9:$C$87,0)+RIGHT($E180),0)\n+BG$11*OFFSET('Efficiency Distributions'!$E$10,MATCH($C171,'Efficiency Distributions'!$C$9:$C$87,0)+RIGHT($E180),0))\n/SUM(BG$10:BG$11)","v":6.0282660163724452E-2}]
[null,null,null,null,"EL6",{"$f":"IF(INDEX(PC_MAPPING,RIGHT($C171,1),MATCH($E$2,'Data by Building Type'!$D$22:$F$22,0))=\"Yes\",1,0)*\n(F$10*OFFSET('Efficiency Distributions'!$D$10,MATCH($C171,'Efficiency Distributions'!$C$9:$C$87,0)+RIGHT($E181),0)\n+F$11*OFFSET('Efficiency Distributions'!$E$10,MATCH($C171,'Efficiency Distributions'!$C$9:$C$87,0)+RIGHT($E181),0))\n/SUM(F$10:F$11)","v":0},{"$f":"IF(INDEX(PC_MAPPING,RIGHT($C171,1),MATCH($E$2,'Data by Building Type'!$D$22:$F$22,0))=\"Yes\",1,0)*\n(G$10*OFFSET('Efficiency Distributions'!$D$10,MATCH($C171,'Efficiency Distributions'!$C$9:$C$87,0)+RIGHT($E181),0)\n+G$11*OFFSET('Efficiency Distributions'!$E$10,MATCH($C171,'Efficiency Distributions'!$C$9:$C$87,0)+RIGHT($E181),0))\n/SUM(G$10:G$11)","v":0},{"$f":"IF(INDEX(PC_MAPPING,RIGHT($C171,1),MATCH($E$2,'Data by Building Type'!$D$22:$F$22,0))=\"Yes\",1,0)*\n(H$10*OFFSET('Efficiency Distributions'!$D$10,MATCH($C171,'Efficiency Distributions'!$C$9:$C$87,0)+RIGHT($E181),0)\n+H$11*OFFSET('Efficiency Distributions'!$E$10,MATCH($C171,'Efficiency Distributions'!$C$9:$C$87,0)+RIGHT($E181),0))\n/SUM(H$10:H$11)","v":0},{"$f":"IF(INDEX(PC_MAPPING,RIGHT($C171,1),MATCH($E$2,'Data by Building Type'!$D$22:$F$22,0))=\"Yes\",1,0)*\n(I$10*OFFSET('Efficiency Distributions'!$D$10,MATCH($C171,'Efficiency Distributions'!$C$9:$C$87,0)+RIGHT($E181),0)\n+I$11*OFFSET('Efficiency Distributions'!$E$10,MATCH($C171,'Efficiency Distributions'!$C$9:$C$87,0)+RIGHT($E181),0))\n/SUM(I$10:I$11)","v":0},{"$f":"IF(INDEX(PC_MAPPING,RIGHT($C171,1),MATCH($E$2,'Data by Building Type'!$D$22:$F$22,0))=\"Yes\",1,0)*\n(J$10*OFFSET('Efficiency Distributions'!$D$10,MATCH($C171,'Efficiency Distributions'!$C$9:$C$87,0)+RIGHT($E181),0)\n+J$11*OFFSET('Efficiency Distributions'!$E$10,MATCH($C171,'Efficiency Distributions'!$C$9:$C$87,0)+RIGHT($E181),0))\n/SUM(J$10:J$11)","v":0},{"$f":"IF(INDEX(PC_MAPPING,RIGHT($C171,1),MATCH($E$2,'Data by Building Type'!$D$22:$F$22,0))=\"Yes\",1,0)*\n(K$10*OFFSET('Efficiency Distributions'!$D$10,MATCH($C171,'Efficiency Distributions'!$C$9:$C$87,0)+RIGHT($E181),0)\n+K$11*OFFSET('Efficiency Distributions'!$E$10,MATCH($C171,'Efficiency Distributions'!$C$9:$C$87,0)+RIGHT($E181),0))\n/SUM(K$10:K$11)","v":0},{"$f":"IF(INDEX(PC_MAPPING,RIGHT($C171,1),MATCH($E$2,'Data by Building Type'!$D$22:$F$22,0))=\"Yes\",1,0)*\n(L$10*OFFSET('Efficiency Distributions'!$D$10,MATCH($C171,'Efficiency Distributions'!$C$9:$C$87,0)+RIGHT($E181),0)\n+L$11*OFFSET('Efficiency Distributions'!$E$10,MATCH($C171,'Efficiency Distributions'!$C$9:$C$87,0)+RIGHT($E181),0))\n/SUM(L$10:L$11)","v":0},{"$f":"IF(INDEX(PC_MAPPING,RIGHT($C171,1),MATCH($E$2,'Data by Building Type'!$D$22:$F$22,0))=\"Yes\",1,0)*\n(M$10*OFFSET('Efficiency Distributions'!$D$10,MATCH($C171,'Efficiency Distributions'!$C$9:$C$87,0)+RIGHT($E181),0)\n+M$11*OFFSET('Efficiency Distributions'!$E$10,MATCH($C171,'Efficiency Distributions'!$C$9:$C$87,0)+RIGHT($E181),0))\n/SUM(M$10:M$11)","v":0},{"$f":"IF(INDEX(PC_MAPPING,RIGHT($C171,1),MATCH($E$2,'Data by Building Type'!$D$22:$F$22,0))=\"Yes\",1,0)*\n(N$10*OFFSET('Efficiency Distributions'!$D$10,MATCH($C171,'Efficiency Distributions'!$C$9:$C$87,0)+RIGHT($E181),0)\n+N$11*OFFSET('Efficiency Distributions'!$E$10,MATCH($C171,'Efficiency Distributions'!$C$9:$C$87,0)+RIGHT($E181),0))\n/SUM(N$10:N$11)","v":0},{"$f":"IF(INDEX(PC_MAPPING,RIGHT($C171,1),MATCH($E$2,'Data by Building Type'!$D$22:$F$22,0))=\"Yes\",1,0)*\n(O$10*OFFSET('Efficiency Distributions'!$D$10,MATCH($C171,'Efficiency Distributions'!$C$9:$C$87,0)+RIGHT($E181),0)\n+O$11*OFFSET('Efficiency Distributions'!$E$10,MATCH($C171,'Efficiency Distributions'!$C$9:$C$87,0)+RIGHT($E181),0))\n/SUM(O$10:O$11)","v":0},{"$f":"IF(INDEX(PC_MAPPING,RIGHT($C171,1),MATCH($E$2,'Data by Building Type'!$D$22:$F$22,0))=\"Yes\",1,0)*\n(P$10*OFFSET('Efficiency Distributions'!$D$10,MATCH($C171,'Efficiency Distributions'!$C$9:$C$87,0)+RIGHT($E181),0)\n+P$11*OFFSET('Efficiency Distributions'!$E$10,MATCH($C171,'Efficiency Distributions'!$C$9:$C$87,0)+RIGHT($E181),0))\n/SUM(P$10:P$11)","v":0},{"$f":"IF(INDEX(PC_MAPPING,RIGHT($C171,1),MATCH($E$2,'Data by Building Type'!$D$22:$F$22,0))=\"Yes\",1,0)*\n(Q$10*OFFSET('Efficiency Distributions'!$D$10,MATCH($C171,'Efficiency Distributions'!$C$9:$C$87,0)+RIGHT($E181),0)\n+Q$11*OFFSET('Efficiency Distributions'!$E$10,MATCH($C171,'Efficiency Distributions'!$C$9:$C$87,0)+RIGHT($E181),0))\n/SUM(Q$10:Q$11)","v":0},{"$f":"IF(INDEX(PC_MAPPING,RIGHT($C171,1),MATCH($E$2,'Data by Building Type'!$D$22:$F$22,0))=\"Yes\",1,0)*\n(R$10*OFFSET('Efficiency Distributions'!$D$10,MATCH($C171,'Efficiency Distributions'!$C$9:$C$87,0)+RIGHT($E181),0)\n+R$11*OFFSET('Efficiency Distributions'!$E$10,MATCH($C171,'Efficiency Distributions'!$C$9:$C$87,0)+RIGHT($E181),0))\n/SUM(R$10:R$11)","v":0},{"$f":"IF(INDEX(PC_MAPPING,RIGHT($C171,1),MATCH($E$2,'Data by Building Type'!$D$22:$F$22,0))=\"Yes\",1,0)*\n(S$10*OFFSET('Efficiency Distributions'!$D$10,MATCH($C171,'Efficiency Distributions'!$C$9:$C$87,0)+RIGHT($E181),0)\n+S$11*OFFSET('Efficiency Distributions'!$E$10,MATCH($C171,'Efficiency Distributions'!$C$9:$C$87,0)+RIGHT($E181),0))\n/SUM(S$10:S$11)","v":0},{"$f":"IF(INDEX(PC_MAPPING,RIGHT($C171,1),MATCH($E$2,'Data by Building Type'!$D$22:$F$22,0))=\"Yes\",1,0)*\n(T$10*OFFSET('Efficiency Distributions'!$D$10,MATCH($C171,'Efficiency Distributions'!$C$9:$C$87,0)+RIGHT($E181),0)\n+T$11*OFFSET('Efficiency Distributions'!$E$10,MATCH($C171,'Efficiency Distributions'!$C$9:$C$87,0)+RIGHT($E181),0))\n/SUM(T$10:T$11)","v":0},{"$f":"IF(INDEX(PC_MAPPING,RIGHT($C171,1),MATCH($E$2,'Data by Building Type'!$D$22:$F$22,0))=\"Yes\",1,0)*\n(U$10*OFFSET('Efficiency Distributions'!$D$10,MATCH($C171,'Efficiency Distributions'!$C$9:$C$87,0)+RIGHT($E181),0)\n+U$11*OFFSET('Efficiency Distributions'!$E$10,MATCH($C171,'Efficiency Distributions'!$C$9:$C$87,0)+RIGHT($E181),0))\n/SUM(U$10:U$11)","v":0},{"$f":"IF(INDEX(PC_MAPPING,RIGHT($C171,1),MATCH($E$2,'Data by Building Type'!$D$22:$F$22,0))=\"Yes\",1,0)*\n(V$10*OFFSET('Efficiency Distributions'!$D$10,MATCH($C171,'Efficiency Distributions'!$C$9:$C$87,0)+RIGHT($E181),0)\n+V$11*OFFSET('Efficiency Distributions'!$E$10,MATCH($C171,'Efficiency Distributions'!$C$9:$C$87,0)+RIGHT($E181),0))\n/SUM(V$10:V$11)","v":0},{"$f":"IF(INDEX(PC_MAPPING,RIGHT($C171,1),MATCH($E$2,'Data by Building Type'!$D$22:$F$22,0))=\"Yes\",1,0)*\n(W$10*OFFSET('Efficiency Distributions'!$D$10,MATCH($C171,'Efficiency Distributions'!$C$9:$C$87,0)+RIGHT($E181),0)\n+W$11*OFFSET('Efficiency Distributions'!$E$10,MATCH($C171,'Efficiency Distributions'!$C$9:$C$87,0)+RIGHT($E181),0))\n/SUM(W$10:W$11)","v":0},{"$f":"IF(INDEX(PC_MAPPING,RIGHT($C171,1),MATCH($E$2,'Data by Building Type'!$D$22:$F$22,0))=\"Yes\",1,0)*\n(X$10*OFFSET('Efficiency Distributions'!$D$10,MATCH($C171,'Efficiency Distributions'!$C$9:$C$87,0)+RIGHT($E181),0)\n+X$11*OFFSET('Efficiency Distributions'!$E$10,MATCH($C171,'Efficiency Distributions'!$C$9:$C$87,0)+RIGHT($E181),0))\n/SUM(X$10:X$11)","v":0},{"$f":"IF(INDEX(PC_MAPPING,RIGHT($C171,1),MATCH($E$2,'Data by Building Type'!$D$22:$F$22,0))=\"Yes\",1,0)*\n(Y$10*OFFSET('Efficiency Distributions'!$D$10,MATCH($C171,'Efficiency Distributions'!$C$9:$C$87,0)+RIGHT($E181),0)\n+Y$11*OFFSET('Efficiency Distributions'!$E$10,MATCH($C171,'Efficiency Distributions'!$C$9:$C$87,0)+RIGHT($E181),0))\n/SUM(Y$10:Y$11)","v":0},{"$f":"IF(INDEX(PC_MAPPING,RIGHT($C171,1),MATCH($E$2,'Data by Building Type'!$D$22:$F$22,0))=\"Yes\",1,0)*\n(Z$10*OFFSET('Efficiency Distributions'!$D$10,MATCH($C171,'Efficiency Distributions'!$C$9:$C$87,0)+RIGHT($E181),0)\n+Z$11*OFFSET('Efficiency Distributions'!$E$10,MATCH($C171,'Efficiency Distributions'!$C$9:$C$87,0)+RIGHT($E181),0))\n/SUM(Z$10:Z$11)","v":0},{"$f":"IF(INDEX(PC_MAPPING,RIGHT($C171,1),MATCH($E$2,'Data by Building Type'!$D$22:$F$22,0))=\"Yes\",1,0)*\n(AA$10*OFFSET('Efficiency Distributions'!$D$10,MATCH($C171,'Efficiency Distributions'!$C$9:$C$87,0)+RIGHT($E181),0)\n+AA$11*OFFSET('Efficiency Distributions'!$E$10,MATCH($C171,'Efficiency Distributions'!$C$9:$C$87,0)+RIGHT($E181),0))\n/SUM(AA$10:AA$11)","v":0},{"$f":"IF(INDEX(PC_MAPPING,RIGHT($C171,1),MATCH($E$2,'Data by Building Type'!$D$22:$F$22,0))=\"Yes\",1,0)*\n(AB$10*OFFSET('Efficiency Distributions'!$D$10,MATCH($C171,'Efficiency Distributions'!$C$9:$C$87,0)+RIGHT($E181),0)\n+AB$11*OFFSET('Efficiency Distributions'!$E$10,MATCH($C171,'Efficiency Distributions'!$C$9:$C$87,0)+RIGHT($E181),0))\n/SUM(AB$10:AB$11)","v":0},{"$f":"IF(INDEX(PC_MAPPING,RIGHT($C171,1),MATCH($E$2,'Data by Building Type'!$D$22:$F$22,0))=\"Yes\",1,0)*\n(AC$10*OFFSET('Efficiency Distributions'!$D$10,MATCH($C171,'Efficiency Distributions'!$C$9:$C$87,0)+RIGHT($E181),0)\n+AC$11*OFFSET('Efficiency Distributions'!$E$10,MATCH($C171,'Efficiency Distributions'!$C$9:$C$87,0)+RIGHT($E181),0))\n/SUM(AC$10:AC$11)","v":0},{"$f":"IF(INDEX(PC_MAPPING,RIGHT($C171,1),MATCH($E$2,'Data by Building Type'!$D$22:$F$22,0))=\"Yes\",1,0)*\n(AD$10*OFFSET('Efficiency Distributions'!$D$10,MATCH($C171,'Efficiency Distributions'!$C$9:$C$87,0)+RIGHT($E181),0)\n+AD$11*OFFSET('Efficiency Distributions'!$E$10,MATCH($C171,'Efficiency Distributions'!$C$9:$C$87,0)+RIGHT($E181),0))\n/SUM(AD$10:AD$11)","v":0},{"$f":"IF(INDEX(PC_MAPPING,RIGHT($C171,1),MATCH($E$2,'Data by Building Type'!$D$22:$F$22,0))=\"Yes\",1,0)*\n(AE$10*OFFSET('Efficiency Distributions'!$D$10,MATCH($C171,'Efficiency Distributions'!$C$9:$C$87,0)+RIGHT($E181),0)\n+AE$11*OFFSET('Efficiency Distributions'!$E$10,MATCH($C171,'Efficiency Distributions'!$C$9:$C$87,0)+RIGHT($E181),0))\n/SUM(AE$10:AE$11)","v":0},{"$f":"IF(INDEX(PC_MAPPING,RIGHT($C171,1),MATCH($E$2,'Data by Building Type'!$D$22:$F$22,0))=\"Yes\",1,0)*\n(AF$10*OFFSET('Efficiency Distributions'!$D$10,MATCH($C171,'Efficiency Distributions'!$C$9:$C$87,0)+RIGHT($E181),0)\n+AF$11*OFFSET('Efficiency Distributions'!$E$10,MATCH($C171,'Efficiency Distributions'!$C$9:$C$87,0)+RIGHT($E181),0))\n/SUM(AF$10:AF$11)","v":0},{"$f":"IF(INDEX(PC_MAPPING,RIGHT($C171,1),MATCH($E$2,'Data by Building Type'!$D$22:$F$22,0))=\"Yes\",1,0)*\n(AG$10*OFFSET('Efficiency Distributions'!$D$10,MATCH($C171,'Efficiency Distributions'!$C$9:$C$87,0)+RIGHT($E181),0)\n+AG$11*OFFSET('Efficiency Distributions'!$E$10,MATCH($C171,'Efficiency Distributions'!$C$9:$C$87,0)+RIGHT($E181),0))\n/SUM(AG$10:AG$11)","v":0},{"$f":"IF(INDEX(PC_MAPPING,RIGHT($C171,1),MATCH($E$2,'Data by Building Type'!$D$22:$F$22,0))=\"Yes\",1,0)*\n(AH$10*OFFSET('Efficiency Distributions'!$D$10,MATCH($C171,'Efficiency Distributions'!$C$9:$C$87,0)+RIGHT($E181),0)\n+AH$11*OFFSET('Efficiency Distributions'!$E$10,MATCH($C171,'Efficiency Distributions'!$C$9:$C$87,0)+RIGHT($E181),0))\n/SUM(AH$10:AH$11)","v":0},{"$f":"IF(INDEX(PC_MAPPING,RIGHT($C171,1),MATCH($E$2,'Data by Building Type'!$D$22:$F$22,0))=\"Yes\",1,0)*\n(AI$10*OFFSET('Efficiency Distributions'!$D$10,MATCH($C171,'Efficiency Distributions'!$C$9:$C$87,0)+RIGHT($E181),0)\n+AI$11*OFFSET('Efficiency Distributions'!$E$10,MATCH($C171,'Efficiency Distributions'!$C$9:$C$87,0)+RIGHT($E181),0))\n/SUM(AI$10:AI$11)","v":0},{"$f":"IF(INDEX(PC_MAPPING,RIGHT($C171,1),MATCH($E$2,'Data by Building Type'!$D$22:$F$22,0))=\"Yes\",1,0)*\n(AJ$10*OFFSET('Efficiency Distributions'!$D$10,MATCH($C171,'Efficiency Distributions'!$C$9:$C$87,0)+RIGHT($E181),0)\n+AJ$11*OFFSET('Efficiency Distributions'!$E$10,MATCH($C171,'Efficiency Distributions'!$C$9:$C$87,0)+RIGHT($E181),0))\n/SUM(AJ$10:AJ$11)","v":0},{"$f":"IF(INDEX(PC_MAPPING,RIGHT($C171,1),MATCH($E$2,'Data by Building Type'!$D$22:$F$22,0))=\"Yes\",1,0)*\n(AK$10*OFFSET('Efficiency Distributions'!$D$10,MATCH($C171,'Efficiency Distributions'!$C$9:$C$87,0)+RIGHT($E181),0)\n+AK$11*OFFSET('Efficiency Distributions'!$E$10,MATCH($C171,'Efficiency Distributions'!$C$9:$C$87,0)+RIGHT($E181),0))\n/SUM(AK$10:AK$11)","v":0},{"$f":"IF(INDEX(PC_MAPPING,RIGHT($C171,1),MATCH($E$2,'Data by Building Type'!$D$22:$F$22,0))=\"Yes\",1,0)*\n(AL$10*OFFSET('Efficiency Distributions'!$D$10,MATCH($C171,'Efficiency Distributions'!$C$9:$C$87,0)+RIGHT($E181),0)\n+AL$11*OFFSET('Efficiency Distributions'!$E$10,MATCH($C171,'Efficiency Distributions'!$C$9:$C$87,0)+RIGHT($E181),0))\n/SUM(AL$10:AL$11)","v":0},{"$f":"IF(INDEX(PC_MAPPING,RIGHT($C171,1),MATCH($E$2,'Data by Building Type'!$D$22:$F$22,0))=\"Yes\",1,0)*\n(AM$10*OFFSET('Efficiency Distributions'!$D$10,MATCH($C171,'Efficiency Distributions'!$C$9:$C$87,0)+RIGHT($E181),0)\n+AM$11*OFFSET('Efficiency Distributions'!$E$10,MATCH($C171,'Efficiency Distributions'!$C$9:$C$87,0)+RIGHT($E181),0))\n/SUM(AM$10:AM$11)","v":0},{"$f":"IF(INDEX(PC_MAPPING,RIGHT($C171,1),MATCH($E$2,'Data by Building Type'!$D$22:$F$22,0))=\"Yes\",1,0)*\n(AN$10*OFFSET('Efficiency Distributions'!$D$10,MATCH($C171,'Efficiency Distributions'!$C$9:$C$87,0)+RIGHT($E181),0)\n+AN$11*OFFSET('Efficiency Distributions'!$E$10,MATCH($C171,'Efficiency Distributions'!$C$9:$C$87,0)+RIGHT($E181),0))\n/SUM(AN$10:AN$11)","v":0},{"$f":"IF(INDEX(PC_MAPPING,RIGHT($C171,1),MATCH($E$2,'Data by Building Type'!$D$22:$F$22,0))=\"Yes\",1,0)*\n(AO$10*OFFSET('Efficiency Distributions'!$D$10,MATCH($C171,'Efficiency Distributions'!$C$9:$C$87,0)+RIGHT($E181),0)\n+AO$11*OFFSET('Efficiency Distributions'!$E$10,MATCH($C171,'Efficiency Distributions'!$C$9:$C$87,0)+RIGHT($E181),0))\n/SUM(AO$10:AO$11)","v":0},{"$f":"IF(INDEX(PC_MAPPING,RIGHT($C171,1),MATCH($E$2,'Data by Building Type'!$D$22:$F$22,0))=\"Yes\",1,0)*\n(AP$10*OFFSET('Efficiency Distributions'!$D$10,MATCH($C171,'Efficiency Distributions'!$C$9:$C$87,0)+RIGHT($E181),0)\n+AP$11*OFFSET('Efficiency Distributions'!$E$10,MATCH($C171,'Efficiency Distributions'!$C$9:$C$87,0)+RIGHT($E181),0))\n/SUM(AP$10:AP$11)","v":0},{"$f":"IF(INDEX(PC_MAPPING,RIGHT($C171,1),MATCH($E$2,'Data by Building Type'!$D$22:$F$22,0))=\"Yes\",1,0)*\n(AQ$10*OFFSET('Efficiency Distributions'!$D$10,MATCH($C171,'Efficiency Distributions'!$C$9:$C$87,0)+RIGHT($E181),0)\n+AQ$11*OFFSET('Efficiency Distributions'!$E$10,MATCH($C171,'Efficiency Distributions'!$C$9:$C$87,0)+RIGHT($E181),0))\n/SUM(AQ$10:AQ$11)","v":0},{"$f":"IF(INDEX(PC_MAPPING,RIGHT($C171,1),MATCH($E$2,'Data by Building Type'!$D$22:$F$22,0))=\"Yes\",1,0)*\n(AR$10*OFFSET('Efficiency Distributions'!$D$10,MATCH($C171,'Efficiency Distributions'!$C$9:$C$87,0)+RIGHT($E181),0)\n+AR$11*OFFSET('Efficiency Distributions'!$E$10,MATCH($C171,'Efficiency Distributions'!$C$9:$C$87,0)+RIGHT($E181),0))\n/SUM(AR$10:AR$11)","v":0},{"$f":"IF(INDEX(PC_MAPPING,RIGHT($C171,1),MATCH($E$2,'Data by Building Type'!$D$22:$F$22,0))=\"Yes\",1,0)*\n(AS$10*OFFSET('Efficiency Distributions'!$D$10,MATCH($C171,'Efficiency Distributions'!$C$9:$C$87,0)+RIGHT($E181),0)\n+AS$11*OFFSET('Efficiency Distributions'!$E$10,MATCH($C171,'Efficiency Distributions'!$C$9:$C$87,0)+RIGHT($E181),0))\n/SUM(AS$10:AS$11)","v":0},{"$f":"IF(INDEX(PC_MAPPING,RIGHT($C171,1),MATCH($E$2,'Data by Building Type'!$D$22:$F$22,0))=\"Yes\",1,0)*\n(AT$10*OFFSET('Efficiency Distributions'!$D$10,MATCH($C171,'Efficiency Distributions'!$C$9:$C$87,0)+RIGHT($E181),0)\n+AT$11*OFFSET('Efficiency Distributions'!$E$10,MATCH($C171,'Efficiency Distributions'!$C$9:$C$87,0)+RIGHT($E181),0))\n/SUM(AT$10:AT$11)","v":0},{"$f":"IF(INDEX(PC_MAPPING,RIGHT($C171,1),MATCH($E$2,'Data by Building Type'!$D$22:$F$22,0))=\"Yes\",1,0)*\n(AU$10*OFFSET('Efficiency Distributions'!$D$10,MATCH($C171,'Efficiency Distributions'!$C$9:$C$87,0)+RIGHT($E181),0)\n+AU$11*OFFSET('Efficiency Distributions'!$E$10,MATCH($C171,'Efficiency Distributions'!$C$9:$C$87,0)+RIGHT($E181),0))\n/SUM(AU$10:AU$11)","v":0},{"$f":"IF(INDEX(PC_MAPPING,RIGHT($C171,1),MATCH($E$2,'Data by Building Type'!$D$22:$F$22,0))=\"Yes\",1,0)*\n(AV$10*OFFSET('Efficiency Distributions'!$D$10,MATCH($C171,'Efficiency Distributions'!$C$9:$C$87,0)+RIGHT($E181),0)\n+AV$11*OFFSET('Efficiency Distributions'!$E$10,MATCH($C171,'Efficiency Distributions'!$C$9:$C$87,0)+RIGHT($E181),0))\n/SUM(AV$10:AV$11)","v":0},{"$f":"IF(INDEX(PC_MAPPING,RIGHT($C171,1),MATCH($E$2,'Data by Building Type'!$D$22:$F$22,0))=\"Yes\",1,0)*\n(AW$10*OFFSET('Efficiency Distributions'!$D$10,MATCH($C171,'Efficiency Distributions'!$C$9:$C$87,0)+RIGHT($E181),0)\n+AW$11*OFFSET('Efficiency Distributions'!$E$10,MATCH($C171,'Efficiency Distributions'!$C$9:$C$87,0)+RIGHT($E181),0))\n/SUM(AW$10:AW$11)","v":0},{"$f":"IF(INDEX(PC_MAPPING,RIGHT($C171,1),MATCH($E$2,'Data by Building Type'!$D$22:$F$22,0))=\"Yes\",1,0)*\n(AX$10*OFFSET('Efficiency Distributions'!$D$10,MATCH($C171,'Efficiency Distributions'!$C$9:$C$87,0)+RIGHT($E181),0)\n+AX$11*OFFSET('Efficiency Distributions'!$E$10,MATCH($C171,'Efficiency Distributions'!$C$9:$C$87,0)+RIGHT($E181),0))\n/SUM(AX$10:AX$11)","v":0},{"$f":"IF(INDEX(PC_MAPPING,RIGHT($C171,1),MATCH($E$2,'Data by Building Type'!$D$22:$F$22,0))=\"Yes\",1,0)*\n(AY$10*OFFSET('Efficiency Distributions'!$D$10,MATCH($C171,'Efficiency Distributions'!$C$9:$C$87,0)+RIGHT($E181),0)\n+AY$11*OFFSET('Efficiency Distributions'!$E$10,MATCH($C171,'Efficiency Distributions'!$C$9:$C$87,0)+RIGHT($E181),0))\n/SUM(AY$10:AY$11)","v":0},{"$f":"IF(INDEX(PC_MAPPING,RIGHT($C171,1),MATCH($E$2,'Data by Building Type'!$D$22:$F$22,0))=\"Yes\",1,0)*\n(AZ$10*OFFSET('Efficiency Distributions'!$D$10,MATCH($C171,'Efficiency Distributions'!$C$9:$C$87,0)+RIGHT($E181),0)\n+AZ$11*OFFSET('Efficiency Distributions'!$E$10,MATCH($C171,'Efficiency Distributions'!$C$9:$C$87,0)+RIGHT($E181),0))\n/SUM(AZ$10:AZ$11)","v":0},{"$f":"IF(INDEX(PC_MAPPING,RIGHT($C171,1),MATCH($E$2,'Data by Building Type'!$D$22:$F$22,0))=\"Yes\",1,0)*\n(BA$10*OFFSET('Efficiency Distributions'!$D$10,MATCH($C171,'Efficiency Distributions'!$C$9:$C$87,0)+RIGHT($E181),0)\n+BA$11*OFFSET('Efficiency Distributions'!$E$10,MATCH($C171,'Efficiency Distributions'!$C$9:$C$87,0)+RIGHT($E181),0))\n/SUM(BA$10:BA$11)","v":0},{"$f":"IF(INDEX(PC_MAPPING,RIGHT($C171,1),MATCH($E$2,'Data by Building Type'!$D$22:$F$22,0))=\"Yes\",1,0)*\n(BB$10*OFFSET('Efficiency Distributions'!$D$10,MATCH($C171,'Efficiency Distributions'!$C$9:$C$87,0)+RIGHT($E181),0)\n+BB$11*OFFSET('Efficiency Distributions'!$E$10,MATCH($C171,'Efficiency Distributions'!$C$9:$C$87,0)+RIGHT($E181),0))\n/SUM(BB$10:BB$11)","v":0},{"$f":"IF(INDEX(PC_MAPPING,RIGHT($C171,1),MATCH($E$2,'Data by Building Type'!$D$22:$F$22,0))=\"Yes\",1,0)*\n(BC$10*OFFSET('Efficiency Distributions'!$D$10,MATCH($C171,'Efficiency Distributions'!$C$9:$C$87,0)+RIGHT($E181),0)\n+BC$11*OFFSET('Efficiency Distributions'!$E$10,MATCH($C171,'Efficiency Distributions'!$C$9:$C$87,0)+RIGHT($E181),0))\n/SUM(BC$10:BC$11)","v":0},{"$f":"IF(INDEX(PC_MAPPING,RIGHT($C171,1),MATCH($E$2,'Data by Building Type'!$D$22:$F$22,0))=\"Yes\",1,0)*\n(BD$10*OFFSET('Efficiency Distributions'!$D$10,MATCH($C171,'Efficiency Distributions'!$C$9:$C$87,0)+RIGHT($E181),0)\n+BD$11*OFFSET('Efficiency Distributions'!$E$10,MATCH($C171,'Efficiency Distributions'!$C$9:$C$87,0)+RIGHT($E181),0))\n/SUM(BD$10:BD$11)","v":0},{"$f":"IF(INDEX(PC_MAPPING,RIGHT($C171,1),MATCH($E$2,'Data by Building Type'!$D$22:$F$22,0))=\"Yes\",1,0)*\n(BE$10*OFFSET('Efficiency Distributions'!$D$10,MATCH($C171,'Efficiency Distributions'!$C$9:$C$87,0)+RIGHT($E181),0)\n+BE$11*OFFSET('Efficiency Distributions'!$E$10,MATCH($C171,'Efficiency Distributions'!$C$9:$C$87,0)+RIGHT($E181),0))\n/SUM(BE$10:BE$11)","v":0},{"$f":"IF(INDEX(PC_MAPPING,RIGHT($C171,1),MATCH($E$2,'Data by Building Type'!$D$22:$F$22,0))=\"Yes\",1,0)*\n(BF$10*OFFSET('Efficiency Distributions'!$D$10,MATCH($C171,'Efficiency Distributions'!$C$9:$C$87,0)+RIGHT($E181),0)\n+BF$11*OFFSET('Efficiency Distributions'!$E$10,MATCH($C171,'Efficiency Distributions'!$C$9:$C$87,0)+RIGHT($E181),0))\n/SUM(BF$10:BF$11)","v":0},{"$f":"IF(INDEX(PC_MAPPING,RIGHT($C171,1),MATCH($E$2,'Data by Building Type'!$D$22:$F$22,0))=\"Yes\",1,0)*\n(BG$10*OFFSET('Efficiency Distributions'!$D$10,MATCH($C171,'Efficiency Distributions'!$C$9:$C$87,0)+RIGHT($E181),0)\n+BG$11*OFFSET('Efficiency Distributions'!$E$10,MATCH($C171,'Efficiency Distributions'!$C$9:$C$87,0)+RIGHT($E181),0))\n/SUM(BG$10:BG$11)","v":0}]
[null,null,null,null,"TOTAL",{"$f":"SUM(F175:F181)","v":1},0.99999999999999989,0.99999999999999989,{"$f":"SUM(I175:I181)","v":1},1,1,1,1,1,1,1,1,1,1,1,1,0.99999999999999989,1,0.99999999999999989,0.99999999999999989,1,1,1,0.99999999999999989,1,0.99999999999999989,0.99999999999999989,0.99999999999999989,1,1,1,1,1,1,0.99999999999999989,0.99999999999999989,0.99999999999999989,1,1,1,1,0.99999999999999989,1,0.99999999999999989,1,0.99999999999999989,1,0.99999999999999989,1,1,0.99999999999999989,1,1,1.0000000000000002]
[]
[null,null,null,"POST-Case"]
[null,null,null,null,"Efficiency Level",1981,{"$f":"F185+1","v":1982},{"$f":"G185+1","v":1983},{"$f":"H185+1","v":1984},{"$f":"I185+1","v":1985},{"$f":"J185+1","v":1986},{"$f":"K185+1","v":1987},{"$f":"L185+1","v":1988},{"$f":"M185+1","v":1989},{"$f":"N185+1","v":1990},{"$f":"O185+1","v":1991},{"$f":"P185+1","v":1992},{"$f":"Q185+1","v":1993},{"$f":"R185+1","v":1994},1995,1996,1997,1998,1999,2000,2001,2002,2003,2004,2005,2006,2007,2008,2009,2010,2011,2012,2013,2014,2015,2016,2017,2018,2019,2020,2021,2022,2023,2024,2025,2026,2027,2028,2029,2030,2031,2032,2033,2034]
[null,null,null,null,"EL0",{"$f":"IF(F$29<STANDARD_YEAR,F175,\nIF(RIGHT($E186,1)>RIGHT(INDEX(STANDARD_LEVELS,1,MID($C171,4,1)),1),F175,\nIF(RIGHT($E186,1)<RIGHT(INDEX(STANDARD_LEVELS,1,MID($C171,4,1)),1),0,\nIF(RIGHT($E186,1)=RIGHT(INDEX(STANDARD_LEVELS,1,MID($C171,4,1)),1),SUM(OFFSET(F175,-(RIGHT($E186,1)),0,RIGHT($E186,1)+1,1)),\"ERROR\"))))","v":0.31880871403824468},0.307319659269219,0.32488061509281368,{"$f":"IF(I$29<STANDARD_YEAR,I175,\nIF(RIGHT($E186,1)>RIGHT(INDEX(STANDARD_LEVELS,1,MID($C171,4,1)),1),I175,\nIF(RIGHT($E186,1)<RIGHT(INDEX(STANDARD_LEVELS,1,MID($C171,4,1)),1),0,\nIF(RIGHT($E186,1)=RIGHT(INDEX(STANDARD_LEVELS,1,MID($C171,4,1)),1),SUM(OFFSET(I175,-(RIGHT($E186,1)),0,RIGHT($E186,1)+1,1)),\"ERROR\"))))","v":0.32386455606355435},0.31489763318307934,0.30482282688362111,0.30194267248442852,0.30905297537052673,0.31423452255820489,0.32378600553173603,0.32350791197600759,0.33198627574926098,0.34146264238015567,0.35012456619890453,0.34735113615652286,0.33905965633656432,0.3393372971403294,0.3413361062494577,0.32851189105164891,0.30202969208362657,0.28535611286477991,0.26191571542984526,0.26132475679651757,0.25505872437848687,0.25508906607329673,0.25517620517383227,0.26803790731297755,0.27031264667884325,0.26867488635360393,0.26705544483968435,0.2632026597231758,0.27084494612225818,0.26619143272658902,0.26074704231300611,0.25582234076314292,0.25528168759775038,0.25704058709609184,0.25678748394284717,0,0,0,0,0,0,0,0,0,0,0,0,0,0,0,0]
[null,null,null,null,"EL1",{"$f":"IF(F$29<STANDARD_YEAR,F176,\nIF(RIGHT($E187,1)>RIGHT(INDEX(STANDARD_LEVELS,1,MID($C171,4,1)),1),F176,\nIF(RIGHT($E187,1)<RIGHT(INDEX(STANDARD_LEVELS,1,MID($C171,4,1)),1),0,\nIF(RIGHT($E187,1)=RIGHT(INDEX(STANDARD_LEVELS,1,MID($C171,4,1)),1),SUM(OFFSET(F176,-(RIGHT($E187,1)),0,RIGHT($E187,1)+1,1)),\"ERROR\"))))","v":0.37878668479295324},0.37301564465026144,0.38183664716434351,{"$f":"IF(I$29<STANDARD_YEAR,I176,\nIF(RIGHT($E187,1)>RIGHT(INDEX(STANDARD_LEVELS,1,MID($C171,4,1)),1),I176,\nIF(RIGHT($E187,1)<RIGHT(INDEX(STANDARD_LEVELS,1,MID($C171,4,1)),1),0,\nIF(RIGHT($E187,1)=RIGHT(INDEX(STANDARD_LEVELS,1,MID($C171,4,1)),1),SUM(OFFSET(I176,-(RIGHT($E187,1)),0,RIGHT($E187,1)+1,1)),\"ERROR\"))))","v":0.38132627293747429},0.37682211894569806,0.37176146663331039,0.37031474303515133,0.37388630259399314,0.37648903340366424,0.38128681640415046,0.38114712788270133,0.38540587489570205,0.39016592638237418,0.39451687701111571,0.3931237618742045,0.38895888810127194,0.38909834920194469,0.39010236631547224,0.38366066487066758,0.37035845364583853,0.36198318719191458,0.35020889615777667,0.34991205311331669,0.34676457707226288,0.34677981793778795,0.34682358857491158,0.35328411999725828,0.35442673899059485,0.35360407944452449,0.35279062157758423,0.35085533812602643,0.35469411707500975,0.35235662168040482,0.34962186270667439,0.34714814742666206,0.34687657320376208,0.347760081883628,0.34763294623261209,0.60430768297273141,0.61202122994883212,0.62628768686216651,0.63591037571829645,0.61100844808788857,0.61686264348478292,0.61111448308638505,0.61064358555723464,0.61276694026826184,0.6107721730083413,0.60869354073038506,0.604346731056701,0.60336124964164972,0.60120858956852863,0.59979235017393939,0.59811559890850363]
[null,null,null,null,"EL2",{"$f":"IF(F$29<STANDARD_YEAR,F177,\nIF(RIGHT($E188,1)>RIGHT(INDEX(STANDARD_LEVELS,1,MID($C171,4,1)),1),F177,\nIF(RIGHT($E188,1)<RIGHT(INDEX(STANDARD_LEVELS,1,MID($C171,4,1)),1),0,\nIF(RIGHT($E188,1)=RIGHT(INDEX(STANDARD_LEVELS,1,MID($C171,4,1)),1),SUM(OFFSET(F177,-(RIGHT($E188,1)),0,RIGHT($E188,1)+1,1)),\"ERROR\"))))","v":0},0,0,{"$f":"IF(I$29<STANDARD_YEAR,I177,\nIF(RIGHT($E188,1)>RIGHT(INDEX(STANDARD_LEVELS,1,MID($C171,4,1)),1),I177,\nIF(RIGHT($E188,1)<RIGHT(INDEX(STANDARD_LEVELS,1,MID($C171,4,1)),1),0,\nIF(RIGHT($E188,1)=RIGHT(INDEX(STANDARD_LEVELS,1,MID($C171,4,1)),1),SUM(OFFSET(I177,-(RIGHT($E188,1)),0,RIGHT($E188,1)+1,1)),\"ERROR\"))))","v":0},0,0,0,0,0,0,0,0,0,0,0,0,0,0,0,0,0,0,0,0,0,0,0,0,0,0,0,0,0,0,0,0,0,0,0,0,0,0,0,0,0,0,0,0,0,0,0,0,0,0]
[null,null,null,null,"EL3",{"$f":"IF(F$29<STANDARD_YEAR,F178,\nIF(RIGHT($E189,1)>RIGHT(INDEX(STANDARD_LEVELS,1,MID($C171,4,1)),1),F178,\nIF(RIGHT($E189,1)<RIGHT(INDEX(STANDARD_LEVELS,1,MID($C171,4,1)),1),0,\nIF(RIGHT($E189,1)=RIGHT(INDEX(STANDARD_LEVELS,1,MID($C171,4,1)),1),SUM(OFFSET(F178,-(RIGHT($E189,1)),0,RIGHT($E189,1)+1,1)),\"ERROR\"))))","v":0.25704391099348173},0.27171499166844165,0.24929032708141632,{"$f":"IF(I$29<STANDARD_YEAR,I178,\nIF(RIGHT($E189,1)>RIGHT(INDEX(STANDARD_LEVELS,1,MID($C171,4,1)),1),I178,\nIF(RIGHT($E189,1)<RIGHT(INDEX(STANDARD_LEVELS,1,MID($C171,4,1)),1),0,\nIF(RIGHT($E189,1)=RIGHT(INDEX(STANDARD_LEVELS,1,MID($C171,4,1)),1),SUM(OFFSET(I178,-(RIGHT($E189,1)),0,RIGHT($E189,1)+1,1)),\"ERROR\"))))","v":0.25058779534912562},0.26203821069053929,0.27490335051060821,0.27858119680835713,0.26950161373015813,0.26288497743241124,0.25068810135449648,0.25104321612009745,0.24021667195178145,0.22811571655184962,0.21705477327148281,0.22059633667388179,0.23118423722783915,0.23082970060906699,0.22827729831980953,0.24465332746603091,0.27847007612995461,0.29976159495180971,0.32969408015052132,0.33044871157664091,0.33845019376686275,0.33841144859057803,0.33830017531356771,0.32187627678629949,0.31897152218097757,0.32106287907159081,0.32313084354532173,0.32805070182817814,0.31829179628232229,0.32423415375405523,0.33118643073327159,0.33747508503866569,0.33816547831871435,0.33591943136723806,0.33624263435085966,0.33633846947317836,0.32978195454349274,0.31765546616715845,0.30947618063944798,0.33064281912529481,0.32566675303793446,0.33055268937657273,0.33095295227635052,0.32914810077197743,0.33084365294290985,0.33261049037917267,0.3363052786018042,0.33714293780459775,0.33897269886675074,0.34017650235215152,0.34160174092777207]
[null,null,null,null,"EL4",{"$f":"IF(F$29<STANDARD_YEAR,F179,\nIF(RIGHT($E190,1)>RIGHT(INDEX(STANDARD_LEVELS,1,MID($C171,4,1)),1),F179,\nIF(RIGHT($E190,1)<RIGHT(INDEX(STANDARD_LEVELS,1,MID($C171,4,1)),1),0,\nIF(RIGHT($E190,1)=RIGHT(INDEX(STANDARD_LEVELS,1,MID($C171,4,1)),1),SUM(OFFSET(F179,-(RIGHT($E190,1)),0,RIGHT($E190,1)+1,1)),\"ERROR\"))))","v":0},0,0,{"$f":"IF(I$29<STANDARD_YEAR,I179,\nIF(RIGHT($E190,1)>RIGHT(INDEX(STANDARD_LEVELS,1,MID($C171,4,1)),1),I179,\nIF(RIGHT($E190,1)<RIGHT(INDEX(STANDARD_LEVELS,1,MID($C171,4,1)),1),0,\nIF(RIGHT($E190,1)=RIGHT(INDEX(STANDARD_LEVELS,1,MID($C171,4,1)),1),SUM(OFFSET(I179,-(RIGHT($E190,1)),0,RIGHT($E190,1)+1,1)),\"ERROR\"))))","v":0},0,0,0,0,0,0,0,0,0,0,0,0,0,0,0,0,0,0,0,0,0,0,0,0,0,0,0,0,0,0,0,0,0,0,0,0,0,0,0,0,0,0,0,0,0,0,0,0,0,0]
[null,null,null,null,"EL5",{"$f":"IF(F$29<STANDARD_YEAR,F180,\nIF(RIGHT($E191,1)>RIGHT(INDEX(STANDARD_LEVELS,1,MID($C171,4,1)),1),F180,\nIF(RIGHT($E191,1)<RIGHT(INDEX(STANDARD_LEVELS,1,MID($C171,4,1)),1),0,\nIF(RIGHT($E191,1)=RIGHT(INDEX(STANDARD_LEVELS,1,MID($C171,4,1)),1),SUM(OFFSET(F180,-(RIGHT($E191,1)),0,RIGHT($E191,1)+1,1)),\"ERROR\"))))","v":4.5360690175320302E-2},4.794970441207793E-2,4.3992410661426402E-2,{"$f":"IF(I$29<STANDARD_YEAR,I180,\nIF(RIGHT($E191,1)>RIGHT(INDEX(STANDARD_LEVELS,1,MID($C171,4,1)),1),I180,\nIF(RIGHT($E191,1)<RIGHT(INDEX(STANDARD_LEVELS,1,MID($C171,4,1)),1),0,\nIF(RIGHT($E191,1)=RIGHT(INDEX(STANDARD_LEVELS,1,MID($C171,4,1)),1),SUM(OFFSET(I180,-(RIGHT($E191,1)),0,RIGHT($E191,1)+1,1)),\"ERROR\"))))","v":4.4221375649845691E-2},4.6242037180683399E-2,4.8512355972460265E-2,4.9161387672063017E-2,4.7559108305322013E-2,4.6391466605719613E-2,4.423907670961702E-2,4.4301744021193655E-2,4.2391177403255549E-2,4.0255714685620517E-2,3.8303783518496962E-2,3.8928765295390903E-2,4.0797218334324543E-2,4.0734653048658871E-2,4.0284229115260493E-2,4.3174116611652505E-2,4.9141778140580218E-2,5.2899104991495825E-2,5.8181308261856697E-2,5.8314478513524844E-2,5.9726504782387529E-2,5.9719667398337291E-2,5.9700030937688407E-2,5.6801695903464601E-2,5.6289092149584267E-2,5.6658155130280725E-2,5.7023090037409706E-2,5.7891300322619646E-2,5.6169140520409812E-2,5.7217791838950899E-2,5.844466424704791E-2,5.955442677152923E-2,5.9676260879773117E-2,5.9279899653042006E-2,5.9336935473681102E-2,5.9353847554090289E-2,5.8196815507675165E-2,5.6056846970675013E-2,5.4613443642255517E-2,5.8348732786816709E-2,5.7470603477282542E-2,5.833282753704222E-2,5.8403462166414788E-2,5.8084958959760714E-2,5.838417404874878E-2,5.8695968890442228E-2,5.9347990341494836E-2,5.9495812553752518E-2,5.9818711564720711E-2,6.0031147473909079E-2,6.0282660163724452E-2]
[null,null,null,null,"EL6",{"$f":"IF(F$29<STANDARD_YEAR,F181,\nIF(RIGHT($E192,1)>RIGHT(INDEX(STANDARD_LEVELS,1,MID($C171,4,1)),1),F181,\nIF(RIGHT($E192,1)<RIGHT(INDEX(STANDARD_LEVELS,1,MID($C171,4,1)),1),0,\nIF(RIGHT($E192,1)=RIGHT(INDEX(STANDARD_LEVELS,1,MID($C171,4,1)),1),SUM(OFFSET(F181,-(RIGHT($E192,1)),0,RIGHT($E192,1)+1,1)),\"ERROR\"))))","v":0},0,0,{"$f":"IF(I$29<STANDARD_YEAR,I181,\nIF(RIGHT($E192,1)>RIGHT(INDEX(STANDARD_LEVELS,1,MID($C171,4,1)),1),I181,\nIF(RIGHT($E192,1)<RIGHT(INDEX(STANDARD_LEVELS,1,MID($C171,4,1)),1),0,\nIF(RIGHT($E192,1)=RIGHT(INDEX(STANDARD_LEVELS,1,MID($C171,4,1)),1),SUM(OFFSET(I181,-(RIGHT($E192,1)),0,RIGHT($E192,1)+1,1)),\"ERROR\"))))","v":0},0,0,0,0,0,0,0,0,0,0,0,0,0,0,0,0,0,0,0,0,0,0,0,0,0,0,0,0,0,0,0,0,0,0,0,0,0,0,0,0,0,0,0,0,0,0,0,0,0,0]
[null,null,null,null,"TOTAL",{"$f":"SUM(F186:F192)","v":1},0.99999999999999989,0.99999999999999989,{"$f":"SUM(I186:I192)","v":1},1,1,1,1,1,1,1,1,1,1,1,1,0.99999999999999989,1,0.99999999999999989,0.99999999999999989,1,1,1,0.99999999999999989,1,0.99999999999999989,0.99999999999999989,0.99999999999999989,1,1,1,1,1,1,0.99999999999999989,0.99999999999999989,0.99999999999999989,1,1,1,1,0.99999999999999989,1,0.99999999999999989,1,0.99999999999999989,1,0.99999999999999989,1,1,0.99999999999999989,1,1,1.0000000000000002]
[]
[]
[]
[null,null,"PC 8",{"$f":"OFFSET('Product Classes'!$C$9,MATCH(C197,MODEL_PCS,0),0)","v":"Mobile Home Electric Furnace / Modular Blower Fan (MH-EF/MB)"}]
[]
[null,null,null,"PRE-Case"]
[null,null,null,null,"Efficiency Level",1981,{"$f":"F200+1","v":1982},{"$f":"G200+1","v":1983},{"$f":"H200+1","v":1984},{"$f":"I200+1","v":1985},{"$f":"J200+1","v":1986},{"$f":"K200+1","v":1987},{"$f":"L200+1","v":1988},{"$f":"M200+1","v":1989},{"$f":"N200+1","v":1990},{"$f":"O200+1","v":1991},{"$f":"P200+1","v":1992},{"$f":"Q200+1","v":1993},{"$f":"R200+1","v":1994},1995,1996,1997,1998,1999,2000,2001,2002,2003,2004,2005,2006,2007,2008,2009,2010,2011,2012,2013,2014,2015,2016,2017,2018,2019,2020,2021,2022,2023,2024,2025,2026,2027,2028,2029,2030,2031,2032,2033,2034]
[null,null,null,null,"EL0",{"$f":"IF(INDEX(PC_MAPPING,RIGHT($C197,1),MATCH($E$2,'Data by Building Type'!$D$22:$F$22,0))=\"Yes\",1,0)*\n(F$10*OFFSET('Efficiency Distributions'!$D$10,MATCH($C197,'Efficiency Distributions'!$C$9:$C$87,0)+RIGHT($E201),0)\n+F$11*OFFSET('Efficiency Distributions'!$E$10,MATCH($C197,'Efficiency Distributions'!$C$9:$C$87,0)+RIGHT($E201),0))\n/SUM(F$10:F$11)","v":0.28120153500108741},{"$f":"IF(INDEX(PC_MAPPING,RIGHT($C197,1),MATCH($E$2,'Data by Building Type'!$D$22:$F$22,0))=\"Yes\",1,0)*\n(G$10*OFFSET('Efficiency Distributions'!$D$10,MATCH($C197,'Efficiency Distributions'!$C$9:$C$87,0)+RIGHT($E201),0)\n+G$11*OFFSET('Efficiency Distributions'!$E$10,MATCH($C197,'Efficiency Distributions'!$C$9:$C$87,0)+RIGHT($E201),0))\n/SUM(G$10:G$11)","v":0.2678475841483281},{"$f":"IF(INDEX(PC_MAPPING,RIGHT($C197,1),MATCH($E$2,'Data by Building Type'!$D$22:$F$22,0))=\"Yes\",1,0)*\n(H$10*OFFSET('Efficiency Distributions'!$D$10,MATCH($C197,'Efficiency Distributions'!$C$9:$C$87,0)+RIGHT($E201),0)\n+H$11*OFFSET('Efficiency Distributions'!$E$10,MATCH($C197,'Efficiency Distributions'!$C$9:$C$87,0)+RIGHT($E201),0))\n/SUM(H$10:H$11)","v":0.28825902318402591},{"$f":"IF(INDEX(PC_MAPPING,RIGHT($C197,1),MATCH($E$2,'Data by Building Type'!$D$22:$F$22,0))=\"Yes\",1,0)*\n(I$10*OFFSET('Efficiency Distributions'!$D$10,MATCH($C197,'Efficiency Distributions'!$C$9:$C$87,0)+RIGHT($E201),0)\n+I$11*OFFSET('Efficiency Distributions'!$E$10,MATCH($C197,'Efficiency Distributions'!$C$9:$C$87,0)+RIGHT($E201),0))\n/SUM(I$10:I$11)","v":0.2870780380975233},{"$f":"IF(INDEX(PC_MAPPING,RIGHT($C197,1),MATCH($E$2,'Data by Building Type'!$D$22:$F$22,0))=\"Yes\",1,0)*\n(J$10*OFFSET('Efficiency Distributions'!$D$10,MATCH($C197,'Efficiency Distributions'!$C$9:$C$87,0)+RIGHT($E201),0)\n+J$11*OFFSET('Efficiency Distributions'!$E$10,MATCH($C197,'Efficiency Distributions'!$C$9:$C$87,0)+RIGHT($E201),0))\n/SUM(J$10:J$11)","v":0.27665560998192457},{"$f":"IF(INDEX(PC_MAPPING,RIGHT($C197,1),MATCH($E$2,'Data by Building Type'!$D$22:$F$22,0))=\"Yes\",1,0)*\n(K$10*OFFSET('Efficiency Distributions'!$D$10,MATCH($C197,'Efficiency Distributions'!$C$9:$C$87,0)+RIGHT($E201),0)\n+K$11*OFFSET('Efficiency Distributions'!$E$10,MATCH($C197,'Efficiency Distributions'!$C$9:$C$87,0)+RIGHT($E201),0))\n/SUM(K$10:K$11)","v":0.26494546751339454},{"$f":"IF(INDEX(PC_MAPPING,RIGHT($C197,1),MATCH($E$2,'Data by Building Type'!$D$22:$F$22,0))=\"Yes\",1,0)*\n(L$10*OFFSET('Efficiency Distributions'!$D$10,MATCH($C197,'Efficiency Distributions'!$C$9:$C$87,0)+RIGHT($E201),0)\n+L$11*OFFSET('Efficiency Distributions'!$E$10,MATCH($C197,'Efficiency Distributions'!$C$9:$C$87,0)+RIGHT($E201),0))\n/SUM(L$10:L$11)","v":0.26159780827872292},{"$f":"IF(INDEX(PC_MAPPING,RIGHT($C197,1),MATCH($E$2,'Data by Building Type'!$D$22:$F$22,0))=\"Yes\",1,0)*\n(M$10*OFFSET('Efficiency Distributions'!$D$10,MATCH($C197,'Efficiency Distributions'!$C$9:$C$87,0)+RIGHT($E201),0)\n+M$11*OFFSET('Efficiency Distributions'!$E$10,MATCH($C197,'Efficiency Distributions'!$C$9:$C$87,0)+RIGHT($E201),0))\n/SUM(M$10:M$11)","v":0.26986225101992856},{"$f":"IF(INDEX(PC_MAPPING,RIGHT($C197,1),MATCH($E$2,'Data by Building Type'!$D$22:$F$22,0))=\"Yes\",1,0)*\n(N$10*OFFSET('Efficiency Distributions'!$D$10,MATCH($C197,'Efficiency Distributions'!$C$9:$C$87,0)+RIGHT($E201),0)\n+N$11*OFFSET('Efficiency Distributions'!$E$10,MATCH($C197,'Efficiency Distributions'!$C$9:$C$87,0)+RIGHT($E201),0))\n/SUM(N$10:N$11)","v":0.27588486366096615},{"$f":"IF(INDEX(PC_MAPPING,RIGHT($C197,1),MATCH($E$2,'Data by Building Type'!$D$22:$F$22,0))=\"Yes\",1,0)*\n(O$10*OFFSET('Efficiency Distributions'!$D$10,MATCH($C197,'Efficiency Distributions'!$C$9:$C$87,0)+RIGHT($E201),0)\n+O$11*OFFSET('Efficiency Distributions'!$E$10,MATCH($C197,'Efficiency Distributions'!$C$9:$C$87,0)+RIGHT($E201),0))\n/SUM(O$10:O$11)","v":0.28698673729319707},{"$f":"IF(INDEX(PC_MAPPING,RIGHT($C197,1),MATCH($E$2,'Data by Building Type'!$D$22:$F$22,0))=\"Yes\",1,0)*\n(P$10*OFFSET('Efficiency Distributions'!$D$10,MATCH($C197,'Efficiency Distributions'!$C$9:$C$87,0)+RIGHT($E201),0)\n+P$11*OFFSET('Efficiency Distributions'!$E$10,MATCH($C197,'Efficiency Distributions'!$C$9:$C$87,0)+RIGHT($E201),0))\n/SUM(P$10:P$11)","v":0.28666350376787009},{"$f":"IF(INDEX(PC_MAPPING,RIGHT($C197,1),MATCH($E$2,'Data by Building Type'!$D$22:$F$22,0))=\"Yes\",1,0)*\n(Q$10*OFFSET('Efficiency Distributions'!$D$10,MATCH($C197,'Efficiency Distributions'!$C$9:$C$87,0)+RIGHT($E201),0)\n+Q$11*OFFSET('Efficiency Distributions'!$E$10,MATCH($C197,'Efficiency Distributions'!$C$9:$C$87,0)+RIGHT($E201),0))\n/SUM(Q$10:Q$11)","v":0.2965180701718077},{"$f":"IF(INDEX(PC_MAPPING,RIGHT($C197,1),MATCH($E$2,'Data by Building Type'!$D$22:$F$22,0))=\"Yes\",1,0)*\n(R$10*OFFSET('Efficiency Distributions'!$D$10,MATCH($C197,'Efficiency Distributions'!$C$9:$C$87,0)+RIGHT($E201),0)\n+R$11*OFFSET('Efficiency Distributions'!$E$10,MATCH($C197,'Efficiency Distributions'!$C$9:$C$87,0)+RIGHT($E201),0))\n/SUM(R$10:R$11)","v":0.3075326346243043},{"$f":"IF(INDEX(PC_MAPPING,RIGHT($C197,1),MATCH($E$2,'Data by Building Type'!$D$22:$F$22,0))=\"Yes\",1,0)*\n(S$10*OFFSET('Efficiency Distributions'!$D$10,MATCH($C197,'Efficiency Distributions'!$C$9:$C$87,0)+RIGHT($E201),0)\n+S$11*OFFSET('Efficiency Distributions'!$E$10,MATCH($C197,'Efficiency Distributions'!$C$9:$C$87,0)+RIGHT($E201),0))\n/SUM(S$10:S$11)","v":0.31760055642390822},{"$f":"IF(INDEX(PC_MAPPING,RIGHT($C197,1),MATCH($E$2,'Data by Building Type'!$D$22:$F$22,0))=\"Yes\",1,0)*\n(T$10*OFFSET('Efficiency Distributions'!$D$10,MATCH($C197,'Efficiency Distributions'!$C$9:$C$87,0)+RIGHT($E201),0)\n+T$11*OFFSET('Efficiency Distributions'!$E$10,MATCH($C197,'Efficiency Distributions'!$C$9:$C$87,0)+RIGHT($E201),0))\n/SUM(T$10:T$11)","v":0.31437694497596036},{"$f":"IF(INDEX(PC_MAPPING,RIGHT($C197,1),MATCH($E$2,'Data by Building Type'!$D$22:$F$22,0))=\"Yes\",1,0)*\n(U$10*OFFSET('Efficiency Distributions'!$D$10,MATCH($C197,'Efficiency Distributions'!$C$9:$C$87,0)+RIGHT($E201),0)\n+U$11*OFFSET('Efficiency Distributions'!$E$10,MATCH($C197,'Efficiency Distributions'!$C$9:$C$87,0)+RIGHT($E201),0))\n/SUM(U$10:U$11)","v":0.30473959741009432},{"$f":"IF(INDEX(PC_MAPPING,RIGHT($C197,1),MATCH($E$2,'Data by Building Type'!$D$22:$F$22,0))=\"Yes\",1,0)*\n(V$10*OFFSET('Efficiency Distributions'!$D$10,MATCH($C197,'Efficiency Distributions'!$C$9:$C$87,0)+RIGHT($E201),0)\n+V$11*OFFSET('Efficiency Distributions'!$E$10,MATCH($C197,'Efficiency Distributions'!$C$9:$C$87,0)+RIGHT($E201),0))\n/SUM(V$10:V$11)","v":0.30506230469304635},{"$f":"IF(INDEX(PC_MAPPING,RIGHT($C197,1),MATCH($E$2,'Data by Building Type'!$D$22:$F$22,0))=\"Yes\",1,0)*\n(W$10*OFFSET('Efficiency Distributions'!$D$10,MATCH($C197,'Efficiency Distributions'!$C$9:$C$87,0)+RIGHT($E201),0)\n+W$11*OFFSET('Efficiency Distributions'!$E$10,MATCH($C197,'Efficiency Distributions'!$C$9:$C$87,0)+RIGHT($E201),0))\n/SUM(W$10:W$11)","v":0.30738555922912086},{"$f":"IF(INDEX(PC_MAPPING,RIGHT($C197,1),MATCH($E$2,'Data by Building Type'!$D$22:$F$22,0))=\"Yes\",1,0)*\n(X$10*OFFSET('Efficiency Distributions'!$D$10,MATCH($C197,'Efficiency Distributions'!$C$9:$C$87,0)+RIGHT($E201),0)\n+X$11*OFFSET('Efficiency Distributions'!$E$10,MATCH($C197,'Efficiency Distributions'!$C$9:$C$87,0)+RIGHT($E201),0))\n/SUM(X$10:X$11)","v":0.29247972555353902},{"$f":"IF(INDEX(PC_MAPPING,RIGHT($C197,1),MATCH($E$2,'Data by Building Type'!$D$22:$F$22,0))=\"Yes\",1,0)*\n(Y$10*OFFSET('Efficiency Distributions'!$D$10,MATCH($C197,'Efficiency Distributions'!$C$9:$C$87,0)+RIGHT($E201),0)\n+Y$11*OFFSET('Efficiency Distributions'!$E$10,MATCH($C197,'Efficiency Distributions'!$C$9:$C$87,0)+RIGHT($E201),0))\n/SUM(Y$10:Y$11)","v":0.26169895284407491},{"$f":"IF(INDEX(PC_MAPPING,RIGHT($C197,1),MATCH($E$2,'Data by Building Type'!$D$22:$F$22,0))=\"Yes\",1,0)*\n(Z$10*OFFSET('Efficiency Distributions'!$D$10,MATCH($C197,'Efficiency Distributions'!$C$9:$C$87,0)+RIGHT($E201),0)\n+Z$11*OFFSET('Efficiency Distributions'!$E$10,MATCH($C197,'Efficiency Distributions'!$C$9:$C$87,0)+RIGHT($E201),0))\n/SUM(Z$10:Z$11)","v":0.24231892882083231},{"$f":"IF(INDEX(PC_MAPPING,RIGHT($C197,1),MATCH($E$2,'Data by Building Type'!$D$22:$F$22,0))=\"Yes\",1,0)*\n(AA$10*OFFSET('Efficiency Distributions'!$D$10,MATCH($C197,'Efficiency Distributions'!$C$9:$C$87,0)+RIGHT($E201),0)\n+AA$11*OFFSET('Efficiency Distributions'!$E$10,MATCH($C197,'Efficiency Distributions'!$C$9:$C$87,0)+RIGHT($E201),0))\n/SUM(AA$10:AA$11)","v":0.21507370094019199},{"$f":"IF(INDEX(PC_MAPPING,RIGHT($C197,1),MATCH($E$2,'Data by Building Type'!$D$22:$F$22,0))=\"Yes\",1,0)*\n(AB$10*OFFSET('Efficiency Distributions'!$D$10,MATCH($C197,'Efficiency Distributions'!$C$9:$C$87,0)+RIGHT($E201),0)\n+AB$11*OFFSET('Efficiency Distributions'!$E$10,MATCH($C197,'Efficiency Distributions'!$C$9:$C$87,0)+RIGHT($E201),0))\n/SUM(AB$10:AB$11)","v":0.21438681827628928},{"$f":"IF(INDEX(PC_MAPPING,RIGHT($C197,1),MATCH($E$2,'Data by Building Type'!$D$22:$F$22,0))=\"Yes\",1,0)*\n(AC$10*OFFSET('Efficiency Distributions'!$D$10,MATCH($C197,'Efficiency Distributions'!$C$9:$C$87,0)+RIGHT($E201),0)\n+AC$11*OFFSET('Efficiency Distributions'!$E$10,MATCH($C197,'Efficiency Distributions'!$C$9:$C$87,0)+RIGHT($E201),0))\n/SUM(AC$10:AC$11)","v":0.20710368745009036},{"$f":"IF(INDEX(PC_MAPPING,RIGHT($C197,1),MATCH($E$2,'Data by Building Type'!$D$22:$F$22,0))=\"Yes\",1,0)*\n(AD$10*OFFSET('Efficiency Distributions'!$D$10,MATCH($C197,'Efficiency Distributions'!$C$9:$C$87,0)+RIGHT($E201),0)\n+AD$11*OFFSET('Efficiency Distributions'!$E$10,MATCH($C197,'Efficiency Distributions'!$C$9:$C$87,0)+RIGHT($E201),0))\n/SUM(AD$10:AD$11)","v":0.20713895418955905},{"$f":"IF(INDEX(PC_MAPPING,RIGHT($C197,1),MATCH($E$2,'Data by Building Type'!$D$22:$F$22,0))=\"Yes\",1,0)*\n(AE$10*OFFSET('Efficiency Distributions'!$D$10,MATCH($C197,'Efficiency Distributions'!$C$9:$C$87,0)+RIGHT($E201),0)\n+AE$11*OFFSET('Efficiency Distributions'!$E$10,MATCH($C197,'Efficiency Distributions'!$C$9:$C$87,0)+RIGHT($E201),0))\n/SUM(AE$10:AE$11)","v":0.20724023765362976},{"$f":"IF(INDEX(PC_MAPPING,RIGHT($C197,1),MATCH($E$2,'Data by Building Type'!$D$22:$F$22,0))=\"Yes\",1,0)*\n(AF$10*OFFSET('Efficiency Distributions'!$D$10,MATCH($C197,'Efficiency Distributions'!$C$9:$C$87,0)+RIGHT($E201),0)\n+AF$11*OFFSET('Efficiency Distributions'!$E$10,MATCH($C197,'Efficiency Distributions'!$C$9:$C$87,0)+RIGHT($E201),0))\n/SUM(AF$10:AF$11)","v":0.22218964312709163},{"$f":"IF(INDEX(PC_MAPPING,RIGHT($C197,1),MATCH($E$2,'Data by Building Type'!$D$22:$F$22,0))=\"Yes\",1,0)*\n(AG$10*OFFSET('Efficiency Distributions'!$D$10,MATCH($C197,'Efficiency Distributions'!$C$9:$C$87,0)+RIGHT($E201),0)\n+AG$11*OFFSET('Efficiency Distributions'!$E$10,MATCH($C197,'Efficiency Distributions'!$C$9:$C$87,0)+RIGHT($E201),0))\n/SUM(AG$10:AG$11)","v":0.22483361674418179},{"$f":"IF(INDEX(PC_MAPPING,RIGHT($C197,1),MATCH($E$2,'Data by Building Type'!$D$22:$F$22,0))=\"Yes\",1,0)*\n(AH$10*OFFSET('Efficiency Distributions'!$D$10,MATCH($C197,'Efficiency Distributions'!$C$9:$C$87,0)+RIGHT($E201),0)\n+AH$11*OFFSET('Efficiency Distributions'!$E$10,MATCH($C197,'Efficiency Distributions'!$C$9:$C$87,0)+RIGHT($E201),0))\n/SUM(AH$10:AH$11)","v":0.22293001620161945},{"$f":"IF(INDEX(PC_MAPPING,RIGHT($C197,1),MATCH($E$2,'Data by Building Type'!$D$22:$F$22,0))=\"Yes\",1,0)*\n(AI$10*OFFSET('Efficiency Distributions'!$D$10,MATCH($C197,'Efficiency Distributions'!$C$9:$C$87,0)+RIGHT($E201),0)\n+AI$11*OFFSET('Efficiency Distributions'!$E$10,MATCH($C197,'Efficiency Distributions'!$C$9:$C$87,0)+RIGHT($E201),0))\n/SUM(AI$10:AI$11)","v":0.22104770796821249},{"$f":"IF(INDEX(PC_MAPPING,RIGHT($C197,1),MATCH($E$2,'Data by Building Type'!$D$22:$F$22,0))=\"Yes\",1,0)*\n(AJ$10*OFFSET('Efficiency Distributions'!$D$10,MATCH($C197,'Efficiency Distributions'!$C$9:$C$87,0)+RIGHT($E201),0)\n+AJ$11*OFFSET('Efficiency Distributions'!$E$10,MATCH($C197,'Efficiency Distributions'!$C$9:$C$87,0)+RIGHT($E201),0))\n/SUM(AJ$10:AJ$11)","v":0.21656954121503399},{"$f":"IF(INDEX(PC_MAPPING,RIGHT($C197,1),MATCH($E$2,'Data by Building Type'!$D$22:$F$22,0))=\"Yes\",1,0)*\n(AK$10*OFFSET('Efficiency Distributions'!$D$10,MATCH($C197,'Efficiency Distributions'!$C$9:$C$87,0)+RIGHT($E201),0)\n+AK$11*OFFSET('Efficiency Distributions'!$E$10,MATCH($C197,'Efficiency Distributions'!$C$9:$C$87,0)+RIGHT($E201),0))\n/SUM(AK$10:AK$11)","v":0.22545231869566668},{"$f":"IF(INDEX(PC_MAPPING,RIGHT($C197,1),MATCH($E$2,'Data by Building Type'!$D$22:$F$22,0))=\"Yes\",1,0)*\n(AL$10*OFFSET('Efficiency Distributions'!$D$10,MATCH($C197,'Efficiency Distributions'!$C$9:$C$87,0)+RIGHT($E201),0)\n+AL$11*OFFSET('Efficiency Distributions'!$E$10,MATCH($C197,'Efficiency Distributions'!$C$9:$C$87,0)+RIGHT($E201),0))\n/SUM(AL$10:AL$11)","v":0.2200434499568773},{"$f":"IF(INDEX(PC_MAPPING,RIGHT($C197,1),MATCH($E$2,'Data by Building Type'!$D$22:$F$22,0))=\"Yes\",1,0)*\n(AM$10*OFFSET('Efficiency Distributions'!$D$10,MATCH($C197,'Efficiency Distributions'!$C$9:$C$87,0)+RIGHT($E201),0)\n+AM$11*OFFSET('Efficiency Distributions'!$E$10,MATCH($C197,'Efficiency Distributions'!$C$9:$C$87,0)+RIGHT($E201),0))\n/SUM(AM$10:AM$11)","v":0.21371532954420158},{"$f":"IF(INDEX(PC_MAPPING,RIGHT($C197,1),MATCH($E$2,'Data by Building Type'!$D$22:$F$22,0))=\"Yes\",1,0)*\n(AN$10*OFFSET('Efficiency Distributions'!$D$10,MATCH($C197,'Efficiency Distributions'!$C$9:$C$87,0)+RIGHT($E201),0)\n+AN$11*OFFSET('Efficiency Distributions'!$E$10,MATCH($C197,'Efficiency Distributions'!$C$9:$C$87,0)+RIGHT($E201),0))\n/SUM(AN$10:AN$11)","v":0.20799125356201725},{"$f":"IF(INDEX(PC_MAPPING,RIGHT($C197,1),MATCH($E$2,'Data by Building Type'!$D$22:$F$22,0))=\"Yes\",1,0)*\n(AO$10*OFFSET('Efficiency Distributions'!$D$10,MATCH($C197,'Efficiency Distributions'!$C$9:$C$87,0)+RIGHT($E201),0)\n+AO$11*OFFSET('Efficiency Distributions'!$E$10,MATCH($C197,'Efficiency Distributions'!$C$9:$C$87,0)+RIGHT($E201),0))\n/SUM(AO$10:AO$11)","v":0.20736284191770119},{"$f":"IF(INDEX(PC_MAPPING,RIGHT($C197,1),MATCH($E$2,'Data by Building Type'!$D$22:$F$22,0))=\"Yes\",1,0)*\n(AP$10*OFFSET('Efficiency Distributions'!$D$10,MATCH($C197,'Efficiency Distributions'!$C$9:$C$87,0)+RIGHT($E201),0)\n+AP$11*OFFSET('Efficiency Distributions'!$E$10,MATCH($C197,'Efficiency Distributions'!$C$9:$C$87,0)+RIGHT($E201),0))\n/SUM(AP$10:AP$11)","v":0.20940724486711693},{"$f":"IF(INDEX(PC_MAPPING,RIGHT($C197,1),MATCH($E$2,'Data by Building Type'!$D$22:$F$22,0))=\"Yes\",1,0)*\n(AQ$10*OFFSET('Efficiency Distributions'!$D$10,MATCH($C197,'Efficiency Distributions'!$C$9:$C$87,0)+RIGHT($E201),0)\n+AQ$11*OFFSET('Efficiency Distributions'!$E$10,MATCH($C197,'Efficiency Distributions'!$C$9:$C$87,0)+RIGHT($E201),0))\n/SUM(AQ$10:AQ$11)","v":0.20911305817055589},{"$f":"IF(INDEX(PC_MAPPING,RIGHT($C197,1),MATCH($E$2,'Data by Building Type'!$D$22:$F$22,0))=\"Yes\",1,0)*\n(AR$10*OFFSET('Efficiency Distributions'!$D$10,MATCH($C197,'Efficiency Distributions'!$C$9:$C$87,0)+RIGHT($E201),0)\n+AR$11*OFFSET('Efficiency Distributions'!$E$10,MATCH($C197,'Efficiency Distributions'!$C$9:$C$87,0)+RIGHT($E201),0))\n/SUM(AR$10:AR$11)","v":0.20902582686553026},{"$f":"IF(INDEX(PC_MAPPING,RIGHT($C197,1),MATCH($E$2,'Data by Building Type'!$D$22:$F$22,0))=\"Yes\",1,0)*\n(AS$10*OFFSET('Efficiency Distributions'!$D$10,MATCH($C197,'Efficiency Distributions'!$C$9:$C$87,0)+RIGHT($E201),0)\n+AS$11*OFFSET('Efficiency Distributions'!$E$10,MATCH($C197,'Efficiency Distributions'!$C$9:$C$87,0)+RIGHT($E201),0))\n/SUM(AS$10:AS$11)","v":0.21499371567182946},{"$f":"IF(INDEX(PC_MAPPING,RIGHT($C197,1),MATCH($E$2,'Data by Building Type'!$D$22:$F$22,0))=\"Yes\",1,0)*\n(AT$10*OFFSET('Efficiency Distributions'!$D$10,MATCH($C197,'Efficiency Distributions'!$C$9:$C$87,0)+RIGHT($E201),0)\n+AT$11*OFFSET('Efficiency Distributions'!$E$10,MATCH($C197,'Efficiency Distributions'!$C$9:$C$87,0)+RIGHT($E201),0))\n/SUM(AT$10:AT$11)","v":0.22603152081937475},{"$f":"IF(INDEX(PC_MAPPING,RIGHT($C197,1),MATCH($E$2,'Data by Building Type'!$D$22:$F$22,0))=\"Yes\",1,0)*\n(AU$10*OFFSET('Efficiency Distributions'!$D$10,MATCH($C197,'Efficiency Distributions'!$C$9:$C$87,0)+RIGHT($E201),0)\n+AU$11*OFFSET('Efficiency Distributions'!$E$10,MATCH($C197,'Efficiency Distributions'!$C$9:$C$87,0)+RIGHT($E201),0))\n/SUM(AU$10:AU$11)","v":0.23347649228178063},{"$f":"IF(INDEX(PC_MAPPING,RIGHT($C197,1),MATCH($E$2,'Data by Building Type'!$D$22:$F$22,0))=\"Yes\",1,0)*\n(AV$10*OFFSET('Efficiency Distributions'!$D$10,MATCH($C197,'Efficiency Distributions'!$C$9:$C$87,0)+RIGHT($E201),0)\n+AV$11*OFFSET('Efficiency Distributions'!$E$10,MATCH($C197,'Efficiency Distributions'!$C$9:$C$87,0)+RIGHT($E201),0))\n/SUM(AV$10:AV$11)","v":0.21421013717676413},{"$f":"IF(INDEX(PC_MAPPING,RIGHT($C197,1),MATCH($E$2,'Data by Building Type'!$D$22:$F$22,0))=\"Yes\",1,0)*\n(AW$10*OFFSET('Efficiency Distributions'!$D$10,MATCH($C197,'Efficiency Distributions'!$C$9:$C$87,0)+RIGHT($E201),0)\n+AW$11*OFFSET('Efficiency Distributions'!$E$10,MATCH($C197,'Efficiency Distributions'!$C$9:$C$87,0)+RIGHT($E201),0))\n/SUM(AW$10:AW$11)","v":0.2187394655502429},{"$f":"IF(INDEX(PC_MAPPING,RIGHT($C197,1),MATCH($E$2,'Data by Building Type'!$D$22:$F$22,0))=\"Yes\",1,0)*\n(AX$10*OFFSET('Efficiency Distributions'!$D$10,MATCH($C197,'Efficiency Distributions'!$C$9:$C$87,0)+RIGHT($E201),0)\n+AX$11*OFFSET('Efficiency Distributions'!$E$10,MATCH($C197,'Efficiency Distributions'!$C$9:$C$87,0)+RIGHT($E201),0))\n/SUM(AX$10:AX$11)","v":0.21429217532115666},{"$f":"IF(INDEX(PC_MAPPING,RIGHT($C197,1),MATCH($E$2,'Data by Building Type'!$D$22:$F$22,0))=\"Yes\",1,0)*\n(AY$10*OFFSET('Efficiency Distributions'!$D$10,MATCH($C197,'Efficiency Distributions'!$C$9:$C$87,0)+RIGHT($E201),0)\n+AY$11*OFFSET('Efficiency Distributions'!$E$10,MATCH($C197,'Efficiency Distributions'!$C$9:$C$87,0)+RIGHT($E201),0))\n/SUM(AY$10:AY$11)","v":0.21392784693865793},{"$f":"IF(INDEX(PC_MAPPING,RIGHT($C197,1),MATCH($E$2,'Data by Building Type'!$D$22:$F$22,0))=\"Yes\",1,0)*\n(AZ$10*OFFSET('Efficiency Distributions'!$D$10,MATCH($C197,'Efficiency Distributions'!$C$9:$C$87,0)+RIGHT($E201),0)\n+AZ$11*OFFSET('Efficiency Distributions'!$E$10,MATCH($C197,'Efficiency Distributions'!$C$9:$C$87,0)+RIGHT($E201),0))\n/SUM(AZ$10:AZ$11)","v":0.21557066377130366},{"$f":"IF(INDEX(PC_MAPPING,RIGHT($C197,1),MATCH($E$2,'Data by Building Type'!$D$22:$F$22,0))=\"Yes\",1,0)*\n(BA$10*OFFSET('Efficiency Distributions'!$D$10,MATCH($C197,'Efficiency Distributions'!$C$9:$C$87,0)+RIGHT($E201),0)\n+BA$11*OFFSET('Efficiency Distributions'!$E$10,MATCH($C197,'Efficiency Distributions'!$C$9:$C$87,0)+RIGHT($E201),0))\n/SUM(BA$10:BA$11)","v":0.21402733367445767},{"$f":"IF(INDEX(PC_MAPPING,RIGHT($C197,1),MATCH($E$2,'Data by Building Type'!$D$22:$F$22,0))=\"Yes\",1,0)*\n(BB$10*OFFSET('Efficiency Distributions'!$D$10,MATCH($C197,'Efficiency Distributions'!$C$9:$C$87,0)+RIGHT($E201),0)\n+BB$11*OFFSET('Efficiency Distributions'!$E$10,MATCH($C197,'Efficiency Distributions'!$C$9:$C$87,0)+RIGHT($E201),0))\n/SUM(BB$10:BB$11)","v":0.21241911811001471},{"$f":"IF(INDEX(PC_MAPPING,RIGHT($C197,1),MATCH($E$2,'Data by Building Type'!$D$22:$F$22,0))=\"Yes\",1,0)*\n(BC$10*OFFSET('Efficiency Distributions'!$D$10,MATCH($C197,'Efficiency Distributions'!$C$9:$C$87,0)+RIGHT($E201),0)\n+BC$11*OFFSET('Efficiency Distributions'!$E$10,MATCH($C197,'Efficiency Distributions'!$C$9:$C$87,0)+RIGHT($E201),0))\n/SUM(BC$10:BC$11)","v":0.20905603795051514},{"$f":"IF(INDEX(PC_MAPPING,RIGHT($C197,1),MATCH($E$2,'Data by Building Type'!$D$22:$F$22,0))=\"Yes\",1,0)*\n(BD$10*OFFSET('Efficiency Distributions'!$D$10,MATCH($C197,'Efficiency Distributions'!$C$9:$C$87,0)+RIGHT($E201),0)\n+BD$11*OFFSET('Efficiency Distributions'!$E$10,MATCH($C197,'Efficiency Distributions'!$C$9:$C$87,0)+RIGHT($E201),0))\n/SUM(BD$10:BD$11)","v":0.20829358151848432},{"$f":"IF(INDEX(PC_MAPPING,RIGHT($C197,1),MATCH($E$2,'Data by Building Type'!$D$22:$F$22,0))=\"Yes\",1,0)*\n(BE$10*OFFSET('Efficiency Distributions'!$D$10,MATCH($C197,'Efficiency Distributions'!$C$9:$C$87,0)+RIGHT($E201),0)\n+BE$11*OFFSET('Efficiency Distributions'!$E$10,MATCH($C197,'Efficiency Distributions'!$C$9:$C$87,0)+RIGHT($E201),0))\n/SUM(BE$10:BE$11)","v":0.20662809144057964},{"$f":"IF(INDEX(PC_MAPPING,RIGHT($C197,1),MATCH($E$2,'Data by Building Type'!$D$22:$F$22,0))=\"Yes\",1,0)*\n(BF$10*OFFSET('Efficiency Distributions'!$D$10,MATCH($C197,'Efficiency Distributions'!$C$9:$C$87,0)+RIGHT($E201),0)\n+BF$11*OFFSET('Efficiency Distributions'!$E$10,MATCH($C197,'Efficiency Distributions'!$C$9:$C$87,0)+RIGHT($E201),0))\n/SUM(BF$10:BF$11)","v":0.20553236216633067},{"$f":"IF(INDEX(PC_MAPPING,RIGHT($C197,1),MATCH($E$2,'Data by Building Type'!$D$22:$F$22,0))=\"Yes\",1,0)*\n(BG$10*OFFSET('Efficiency Distributions'!$D$10,MATCH($C197,'Efficiency Distributions'!$C$9:$C$87,0)+RIGHT($E201),0)\n+BG$11*OFFSET('Efficiency Distributions'!$E$10,MATCH($C197,'Efficiency Distributions'!$C$9:$C$87,0)+RIGHT($E201),0))\n/SUM(BG$10:BG$11)","v":0.20423507764353635}]
[null,null,null,null,"EL1",{"$f":"IF(INDEX(PC_MAPPING,RIGHT($C197,1),MATCH($E$2,'Data by Building Type'!$D$22:$F$22,0))=\"Yes\",1,0)*\n(F$10*OFFSET('Efficiency Distributions'!$D$10,MATCH($C197,'Efficiency Distributions'!$C$9:$C$87,0)+RIGHT($E202),0)\n+F$11*OFFSET('Efficiency Distributions'!$E$10,MATCH($C197,'Efficiency Distributions'!$C$9:$C$87,0)+RIGHT($E202),0))\n/SUM(F$10:F$11)","v":0.32645999546168036},{"$f":"IF(INDEX(PC_MAPPING,RIGHT($C197,1),MATCH($E$2,'Data by Building Type'!$D$22:$F$22,0))=\"Yes\",1,0)*\n(G$10*OFFSET('Efficiency Distributions'!$D$10,MATCH($C197,'Efficiency Distributions'!$C$9:$C$87,0)+RIGHT($E202),0)\n+G$11*OFFSET('Efficiency Distributions'!$E$10,MATCH($C197,'Efficiency Distributions'!$C$9:$C$87,0)+RIGHT($E202),0))\n/SUM(G$10:G$11)","v":0.31742077109303951},{"$f":"IF(INDEX(PC_MAPPING,RIGHT($C197,1),MATCH($E$2,'Data by Building Type'!$D$22:$F$22,0))=\"Yes\",1,0)*\n(H$10*OFFSET('Efficiency Distributions'!$D$10,MATCH($C197,'Efficiency Distributions'!$C$9:$C$87,0)+RIGHT($E202),0)\n+H$11*OFFSET('Efficiency Distributions'!$E$10,MATCH($C197,'Efficiency Distributions'!$C$9:$C$87,0)+RIGHT($E202),0))\n/SUM(H$10:H$11)","v":0.33123717487981719},{"$f":"IF(INDEX(PC_MAPPING,RIGHT($C197,1),MATCH($E$2,'Data by Building Type'!$D$22:$F$22,0))=\"Yes\",1,0)*\n(I$10*OFFSET('Efficiency Distributions'!$D$10,MATCH($C197,'Efficiency Distributions'!$C$9:$C$87,0)+RIGHT($E202),0)\n+I$11*OFFSET('Efficiency Distributions'!$E$10,MATCH($C197,'Efficiency Distributions'!$C$9:$C$87,0)+RIGHT($E202),0))\n/SUM(I$10:I$11)","v":0.33043777181995715},{"$f":"IF(INDEX(PC_MAPPING,RIGHT($C197,1),MATCH($E$2,'Data by Building Type'!$D$22:$F$22,0))=\"Yes\",1,0)*\n(J$10*OFFSET('Efficiency Distributions'!$D$10,MATCH($C197,'Efficiency Distributions'!$C$9:$C$87,0)+RIGHT($E202),0)\n+J$11*OFFSET('Efficiency Distributions'!$E$10,MATCH($C197,'Efficiency Distributions'!$C$9:$C$87,0)+RIGHT($E202),0))\n/SUM(J$10:J$11)","v":0.323382880930984},{"$f":"IF(INDEX(PC_MAPPING,RIGHT($C197,1),MATCH($E$2,'Data by Building Type'!$D$22:$F$22,0))=\"Yes\",1,0)*\n(K$10*OFFSET('Efficiency Distributions'!$D$10,MATCH($C197,'Efficiency Distributions'!$C$9:$C$87,0)+RIGHT($E202),0)\n+K$11*OFFSET('Efficiency Distributions'!$E$10,MATCH($C197,'Efficiency Distributions'!$C$9:$C$87,0)+RIGHT($E202),0))\n/SUM(K$10:K$11)","v":0.31545634246091608},{"$f":"IF(INDEX(PC_MAPPING,RIGHT($C197,1),MATCH($E$2,'Data by Building Type'!$D$22:$F$22,0))=\"Yes\",1,0)*\n(L$10*OFFSET('Efficiency Distributions'!$D$10,MATCH($C197,'Efficiency Distributions'!$C$9:$C$87,0)+RIGHT($E202),0)\n+L$11*OFFSET('Efficiency Distributions'!$E$10,MATCH($C197,'Efficiency Distributions'!$C$9:$C$87,0)+RIGHT($E202),0))\n/SUM(L$10:L$11)","v":0.31319032821048198},{"$f":"IF(INDEX(PC_MAPPING,RIGHT($C197,1),MATCH($E$2,'Data by Building Type'!$D$22:$F$22,0))=\"Yes\",1,0)*\n(M$10*OFFSET('Efficiency Distributions'!$D$10,MATCH($C197,'Efficiency Distributions'!$C$9:$C$87,0)+RIGHT($E202),0)\n+M$11*OFFSET('Efficiency Distributions'!$E$10,MATCH($C197,'Efficiency Distributions'!$C$9:$C$87,0)+RIGHT($E202),0))\n/SUM(M$10:M$11)","v":0.31878448929758124},{"$f":"IF(INDEX(PC_MAPPING,RIGHT($C197,1),MATCH($E$2,'Data by Building Type'!$D$22:$F$22,0))=\"Yes\",1,0)*\n(N$10*OFFSET('Efficiency Distributions'!$D$10,MATCH($C197,'Efficiency Distributions'!$C$9:$C$87,0)+RIGHT($E202),0)\n+N$11*OFFSET('Efficiency Distributions'!$E$10,MATCH($C197,'Efficiency Distributions'!$C$9:$C$87,0)+RIGHT($E202),0))\n/SUM(N$10:N$11)","v":0.32286116649581303},{"$f":"IF(INDEX(PC_MAPPING,RIGHT($C197,1),MATCH($E$2,'Data by Building Type'!$D$22:$F$22,0))=\"Yes\",1,0)*\n(O$10*OFFSET('Efficiency Distributions'!$D$10,MATCH($C197,'Efficiency Distributions'!$C$9:$C$87,0)+RIGHT($E202),0)\n+O$11*OFFSET('Efficiency Distributions'!$E$10,MATCH($C197,'Efficiency Distributions'!$C$9:$C$87,0)+RIGHT($E202),0))\n/SUM(O$10:O$11)","v":0.33037597074966402},{"$f":"IF(INDEX(PC_MAPPING,RIGHT($C197,1),MATCH($E$2,'Data by Building Type'!$D$22:$F$22,0))=\"Yes\",1,0)*\n(P$10*OFFSET('Efficiency Distributions'!$D$10,MATCH($C197,'Efficiency Distributions'!$C$9:$C$87,0)+RIGHT($E202),0)\n+P$11*OFFSET('Efficiency Distributions'!$E$10,MATCH($C197,'Efficiency Distributions'!$C$9:$C$87,0)+RIGHT($E202),0))\n/SUM(P$10:P$11)","v":0.33015717554881951},{"$f":"IF(INDEX(PC_MAPPING,RIGHT($C197,1),MATCH($E$2,'Data by Building Type'!$D$22:$F$22,0))=\"Yes\",1,0)*\n(Q$10*OFFSET('Efficiency Distributions'!$D$10,MATCH($C197,'Efficiency Distributions'!$C$9:$C$87,0)+RIGHT($E202),0)\n+Q$11*OFFSET('Efficiency Distributions'!$E$10,MATCH($C197,'Efficiency Distributions'!$C$9:$C$87,0)+RIGHT($E202),0))\n/SUM(Q$10:Q$11)","v":0.3368276836076729},{"$f":"IF(INDEX(PC_MAPPING,RIGHT($C197,1),MATCH($E$2,'Data by Building Type'!$D$22:$F$22,0))=\"Yes\",1,0)*\n(R$10*OFFSET('Efficiency Distributions'!$D$10,MATCH($C197,'Efficiency Distributions'!$C$9:$C$87,0)+RIGHT($E202),0)\n+R$11*OFFSET('Efficiency Distributions'!$E$10,MATCH($C197,'Efficiency Distributions'!$C$9:$C$87,0)+RIGHT($E202),0))\n/SUM(R$10:R$11)","v":0.34428338870249875},{"$f":"IF(INDEX(PC_MAPPING,RIGHT($C197,1),MATCH($E$2,'Data by Building Type'!$D$22:$F$22,0))=\"Yes\",1,0)*\n(S$10*OFFSET('Efficiency Distributions'!$D$10,MATCH($C197,'Efficiency Distributions'!$C$9:$C$87,0)+RIGHT($E202),0)\n+S$11*OFFSET('Efficiency Distributions'!$E$10,MATCH($C197,'Efficiency Distributions'!$C$9:$C$87,0)+RIGHT($E202),0))\n/SUM(S$10:S$11)","v":0.35109831599075864},{"$f":"IF(INDEX(PC_MAPPING,RIGHT($C197,1),MATCH($E$2,'Data by Building Type'!$D$22:$F$22,0))=\"Yes\",1,0)*\n(T$10*OFFSET('Efficiency Distributions'!$D$10,MATCH($C197,'Efficiency Distributions'!$C$9:$C$87,0)+RIGHT($E202),0)\n+T$11*OFFSET('Efficiency Distributions'!$E$10,MATCH($C197,'Efficiency Distributions'!$C$9:$C$87,0)+RIGHT($E202),0))\n/SUM(T$10:T$11)","v":0.34891626908369677},{"$f":"IF(INDEX(PC_MAPPING,RIGHT($C197,1),MATCH($E$2,'Data by Building Type'!$D$22:$F$22,0))=\"Yes\",1,0)*\n(U$10*OFFSET('Efficiency Distributions'!$D$10,MATCH($C197,'Efficiency Distributions'!$C$9:$C$87,0)+RIGHT($E202),0)\n+U$11*OFFSET('Efficiency Distributions'!$E$10,MATCH($C197,'Efficiency Distributions'!$C$9:$C$87,0)+RIGHT($E202),0))\n/SUM(U$10:U$11)","v":0.34239279539961937},{"$f":"IF(INDEX(PC_MAPPING,RIGHT($C197,1),MATCH($E$2,'Data by Building Type'!$D$22:$F$22,0))=\"Yes\",1,0)*\n(V$10*OFFSET('Efficiency Distributions'!$D$10,MATCH($C197,'Efficiency Distributions'!$C$9:$C$87,0)+RIGHT($E202),0)\n+V$11*OFFSET('Efficiency Distributions'!$E$10,MATCH($C197,'Efficiency Distributions'!$C$9:$C$87,0)+RIGHT($E202),0))\n/SUM(V$10:V$11)","v":0.34261123438956037},{"$f":"IF(INDEX(PC_MAPPING,RIGHT($C197,1),MATCH($E$2,'Data by Building Type'!$D$22:$F$22,0))=\"Yes\",1,0)*\n(W$10*OFFSET('Efficiency Distributions'!$D$10,MATCH($C197,'Efficiency Distributions'!$C$9:$C$87,0)+RIGHT($E202),0)\n+W$11*OFFSET('Efficiency Distributions'!$E$10,MATCH($C197,'Efficiency Distributions'!$C$9:$C$87,0)+RIGHT($E202),0))\n/SUM(W$10:W$11)","v":0.3441838340829837},{"$f":"IF(INDEX(PC_MAPPING,RIGHT($C197,1),MATCH($E$2,'Data by Building Type'!$D$22:$F$22,0))=\"Yes\",1,0)*\n(X$10*OFFSET('Efficiency Distributions'!$D$10,MATCH($C197,'Efficiency Distributions'!$C$9:$C$87,0)+RIGHT($E202),0)\n+X$11*OFFSET('Efficiency Distributions'!$E$10,MATCH($C197,'Efficiency Distributions'!$C$9:$C$87,0)+RIGHT($E202),0))\n/SUM(X$10:X$11)","v":0.33409414778109153},{"$f":"IF(INDEX(PC_MAPPING,RIGHT($C197,1),MATCH($E$2,'Data by Building Type'!$D$22:$F$22,0))=\"Yes\",1,0)*\n(Y$10*OFFSET('Efficiency Distributions'!$D$10,MATCH($C197,'Efficiency Distributions'!$C$9:$C$87,0)+RIGHT($E202),0)\n+Y$11*OFFSET('Efficiency Distributions'!$E$10,MATCH($C197,'Efficiency Distributions'!$C$9:$C$87,0)+RIGHT($E202),0))\n/SUM(Y$10:Y$11)","v":0.31325879247472599},{"$f":"IF(INDEX(PC_MAPPING,RIGHT($C197,1),MATCH($E$2,'Data by Building Type'!$D$22:$F$22,0))=\"Yes\",1,0)*\n(Z$10*OFFSET('Efficiency Distributions'!$D$10,MATCH($C197,'Efficiency Distributions'!$C$9:$C$87,0)+RIGHT($E202),0)\n+Z$11*OFFSET('Efficiency Distributions'!$E$10,MATCH($C197,'Efficiency Distributions'!$C$9:$C$87,0)+RIGHT($E202),0))\n/SUM(Z$10:Z$11)","v":0.3001405484923062},{"$f":"IF(INDEX(PC_MAPPING,RIGHT($C197,1),MATCH($E$2,'Data by Building Type'!$D$22:$F$22,0))=\"Yes\",1,0)*\n(AA$10*OFFSET('Efficiency Distributions'!$D$10,MATCH($C197,'Efficiency Distributions'!$C$9:$C$87,0)+RIGHT($E202),0)\n+AA$11*OFFSET('Efficiency Distributions'!$E$10,MATCH($C197,'Efficiency Distributions'!$C$9:$C$87,0)+RIGHT($E202),0))\n/SUM(AA$10:AA$11)","v":0.28169838628104055},{"$f":"IF(INDEX(PC_MAPPING,RIGHT($C197,1),MATCH($E$2,'Data by Building Type'!$D$22:$F$22,0))=\"Yes\",1,0)*\n(AB$10*OFFSET('Efficiency Distributions'!$D$10,MATCH($C197,'Efficiency Distributions'!$C$9:$C$87,0)+RIGHT($E202),0)\n+AB$11*OFFSET('Efficiency Distributions'!$E$10,MATCH($C197,'Efficiency Distributions'!$C$9:$C$87,0)+RIGHT($E202),0))\n/SUM(AB$10:AB$11)","v":0.28123343874735507},{"$f":"IF(INDEX(PC_MAPPING,RIGHT($C197,1),MATCH($E$2,'Data by Building Type'!$D$22:$F$22,0))=\"Yes\",1,0)*\n(AC$10*OFFSET('Efficiency Distributions'!$D$10,MATCH($C197,'Efficiency Distributions'!$C$9:$C$87,0)+RIGHT($E202),0)\n+AC$11*OFFSET('Efficiency Distributions'!$E$10,MATCH($C197,'Efficiency Distributions'!$C$9:$C$87,0)+RIGHT($E202),0))\n/SUM(AC$10:AC$11)","v":0.27630352292168969},{"$f":"IF(INDEX(PC_MAPPING,RIGHT($C197,1),MATCH($E$2,'Data by Building Type'!$D$22:$F$22,0))=\"Yes\",1,0)*\n(AD$10*OFFSET('Efficiency Distributions'!$D$10,MATCH($C197,'Efficiency Distributions'!$C$9:$C$87,0)+RIGHT($E202),0)\n+AD$11*OFFSET('Efficiency Distributions'!$E$10,MATCH($C197,'Efficiency Distributions'!$C$9:$C$87,0)+RIGHT($E202),0))\n/SUM(AD$10:AD$11)","v":0.27632739480607221},{"$f":"IF(INDEX(PC_MAPPING,RIGHT($C197,1),MATCH($E$2,'Data by Building Type'!$D$22:$F$22,0))=\"Yes\",1,0)*\n(AE$10*OFFSET('Efficiency Distributions'!$D$10,MATCH($C197,'Efficiency Distributions'!$C$9:$C$87,0)+RIGHT($E202),0)\n+AE$11*OFFSET('Efficiency Distributions'!$E$10,MATCH($C197,'Efficiency Distributions'!$C$9:$C$87,0)+RIGHT($E202),0))\n/SUM(AE$10:AE$11)","v":0.27639595309018328},{"$f":"IF(INDEX(PC_MAPPING,RIGHT($C197,1),MATCH($E$2,'Data by Building Type'!$D$22:$F$22,0))=\"Yes\",1,0)*\n(AF$10*OFFSET('Efficiency Distributions'!$D$10,MATCH($C197,'Efficiency Distributions'!$C$9:$C$87,0)+RIGHT($E202),0)\n+AF$11*OFFSET('Efficiency Distributions'!$E$10,MATCH($C197,'Efficiency Distributions'!$C$9:$C$87,0)+RIGHT($E202),0))\n/SUM(AF$10:AF$11)","v":0.28651513293009467},{"$f":"IF(INDEX(PC_MAPPING,RIGHT($C197,1),MATCH($E$2,'Data by Building Type'!$D$22:$F$22,0))=\"Yes\",1,0)*\n(AG$10*OFFSET('Efficiency Distributions'!$D$10,MATCH($C197,'Efficiency Distributions'!$C$9:$C$87,0)+RIGHT($E202),0)\n+AG$11*OFFSET('Efficiency Distributions'!$E$10,MATCH($C197,'Efficiency Distributions'!$C$9:$C$87,0)+RIGHT($E202),0))\n/SUM(AG$10:AG$11)","v":0.28830482580924033},{"$f":"IF(INDEX(PC_MAPPING,RIGHT($C197,1),MATCH($E$2,'Data by Building Type'!$D$22:$F$22,0))=\"Yes\",1,0)*\n(AH$10*OFFSET('Efficiency Distributions'!$D$10,MATCH($C197,'Efficiency Distributions'!$C$9:$C$87,0)+RIGHT($E202),0)\n+AH$11*OFFSET('Efficiency Distributions'!$E$10,MATCH($C197,'Efficiency Distributions'!$C$9:$C$87,0)+RIGHT($E202),0))\n/SUM(AH$10:AH$11)","v":0.28701628786251493},{"$f":"IF(INDEX(PC_MAPPING,RIGHT($C197,1),MATCH($E$2,'Data by Building Type'!$D$22:$F$22,0))=\"Yes\",1,0)*\n(AI$10*OFFSET('Efficiency Distributions'!$D$10,MATCH($C197,'Efficiency Distributions'!$C$9:$C$87,0)+RIGHT($E202),0)\n+AI$11*OFFSET('Efficiency Distributions'!$E$10,MATCH($C197,'Efficiency Distributions'!$C$9:$C$87,0)+RIGHT($E202),0))\n/SUM(AI$10:AI$11)","v":0.28574216257627499},{"$f":"IF(INDEX(PC_MAPPING,RIGHT($C197,1),MATCH($E$2,'Data by Building Type'!$D$22:$F$22,0))=\"Yes\",1,0)*\n(AJ$10*OFFSET('Efficiency Distributions'!$D$10,MATCH($C197,'Efficiency Distributions'!$C$9:$C$87,0)+RIGHT($E202),0)\n+AJ$11*OFFSET('Efficiency Distributions'!$E$10,MATCH($C197,'Efficiency Distributions'!$C$9:$C$87,0)+RIGHT($E202),0))\n/SUM(AJ$10:AJ$11)","v":0.28271091328619663},{"$f":"IF(INDEX(PC_MAPPING,RIGHT($C197,1),MATCH($E$2,'Data by Building Type'!$D$22:$F$22,0))=\"Yes\",1,0)*\n(AK$10*OFFSET('Efficiency Distributions'!$D$10,MATCH($C197,'Efficiency Distributions'!$C$9:$C$87,0)+RIGHT($E202),0)\n+AK$11*OFFSET('Efficiency Distributions'!$E$10,MATCH($C197,'Efficiency Distributions'!$C$9:$C$87,0)+RIGHT($E202),0))\n/SUM(AK$10:AK$11)","v":0.28872362215037206},{"$f":"IF(INDEX(PC_MAPPING,RIGHT($C197,1),MATCH($E$2,'Data by Building Type'!$D$22:$F$22,0))=\"Yes\",1,0)*\n(AL$10*OFFSET('Efficiency Distributions'!$D$10,MATCH($C197,'Efficiency Distributions'!$C$9:$C$87,0)+RIGHT($E202),0)\n+AL$11*OFFSET('Efficiency Distributions'!$E$10,MATCH($C197,'Efficiency Distributions'!$C$9:$C$87,0)+RIGHT($E202),0))\n/SUM(AL$10:AL$11)","v":0.28506238521386329},{"$f":"IF(INDEX(PC_MAPPING,RIGHT($C197,1),MATCH($E$2,'Data by Building Type'!$D$22:$F$22,0))=\"Yes\",1,0)*\n(AM$10*OFFSET('Efficiency Distributions'!$D$10,MATCH($C197,'Efficiency Distributions'!$C$9:$C$87,0)+RIGHT($E202),0)\n+AM$11*OFFSET('Efficiency Distributions'!$E$10,MATCH($C197,'Efficiency Distributions'!$C$9:$C$87,0)+RIGHT($E202),0))\n/SUM(AM$10:AM$11)","v":0.28077891129122773},{"$f":"IF(INDEX(PC_MAPPING,RIGHT($C197,1),MATCH($E$2,'Data by Building Type'!$D$22:$F$22,0))=\"Yes\",1,0)*\n(AN$10*OFFSET('Efficiency Distributions'!$D$10,MATCH($C197,'Efficiency Distributions'!$C$9:$C$87,0)+RIGHT($E202),0)\n+AN$11*OFFSET('Efficiency Distributions'!$E$10,MATCH($C197,'Efficiency Distributions'!$C$9:$C$87,0)+RIGHT($E202),0))\n/SUM(AN$10:AN$11)","v":0.27690431210506844},{"$f":"IF(INDEX(PC_MAPPING,RIGHT($C197,1),MATCH($E$2,'Data by Building Type'!$D$22:$F$22,0))=\"Yes\",1,0)*\n(AO$10*OFFSET('Efficiency Distributions'!$D$10,MATCH($C197,'Efficiency Distributions'!$C$9:$C$87,0)+RIGHT($E202),0)\n+AO$11*OFFSET('Efficiency Distributions'!$E$10,MATCH($C197,'Efficiency Distributions'!$C$9:$C$87,0)+RIGHT($E202),0))\n/SUM(AO$10:AO$11)","v":0.27647894332009448},{"$f":"IF(INDEX(PC_MAPPING,RIGHT($C197,1),MATCH($E$2,'Data by Building Type'!$D$22:$F$22,0))=\"Yes\",1,0)*\n(AP$10*OFFSET('Efficiency Distributions'!$D$10,MATCH($C197,'Efficiency Distributions'!$C$9:$C$87,0)+RIGHT($E202),0)\n+AP$11*OFFSET('Efficiency Distributions'!$E$10,MATCH($C197,'Efficiency Distributions'!$C$9:$C$87,0)+RIGHT($E202),0))\n/SUM(AP$10:AP$11)","v":0.27786278973105105},{"$f":"IF(INDEX(PC_MAPPING,RIGHT($C197,1),MATCH($E$2,'Data by Building Type'!$D$22:$F$22,0))=\"Yes\",1,0)*\n(AQ$10*OFFSET('Efficiency Distributions'!$D$10,MATCH($C197,'Efficiency Distributions'!$C$9:$C$87,0)+RIGHT($E202),0)\n+AQ$11*OFFSET('Efficiency Distributions'!$E$10,MATCH($C197,'Efficiency Distributions'!$C$9:$C$87,0)+RIGHT($E202),0))\n/SUM(AQ$10:AQ$11)","v":0.27766365618729266},{"$f":"IF(INDEX(PC_MAPPING,RIGHT($C197,1),MATCH($E$2,'Data by Building Type'!$D$22:$F$22,0))=\"Yes\",1,0)*\n(AR$10*OFFSET('Efficiency Distributions'!$D$10,MATCH($C197,'Efficiency Distributions'!$C$9:$C$87,0)+RIGHT($E202),0)\n+AR$11*OFFSET('Efficiency Distributions'!$E$10,MATCH($C197,'Efficiency Distributions'!$C$9:$C$87,0)+RIGHT($E202),0))\n/SUM(AR$10:AR$11)","v":0.27760460974127904},{"$f":"IF(INDEX(PC_MAPPING,RIGHT($C197,1),MATCH($E$2,'Data by Building Type'!$D$22:$F$22,0))=\"Yes\",1,0)*\n(AS$10*OFFSET('Efficiency Distributions'!$D$10,MATCH($C197,'Efficiency Distributions'!$C$9:$C$87,0)+RIGHT($E202),0)\n+AS$11*OFFSET('Efficiency Distributions'!$E$10,MATCH($C197,'Efficiency Distributions'!$C$9:$C$87,0)+RIGHT($E202),0))\n/SUM(AS$10:AS$11)","v":0.28164424464199395},{"$f":"IF(INDEX(PC_MAPPING,RIGHT($C197,1),MATCH($E$2,'Data by Building Type'!$D$22:$F$22,0))=\"Yes\",1,0)*\n(AT$10*OFFSET('Efficiency Distributions'!$D$10,MATCH($C197,'Efficiency Distributions'!$C$9:$C$87,0)+RIGHT($E202),0)\n+AT$11*OFFSET('Efficiency Distributions'!$E$10,MATCH($C197,'Efficiency Distributions'!$C$9:$C$87,0)+RIGHT($E202),0))\n/SUM(AT$10:AT$11)","v":0.28911568125023829},{"$f":"IF(INDEX(PC_MAPPING,RIGHT($C197,1),MATCH($E$2,'Data by Building Type'!$D$22:$F$22,0))=\"Yes\",1,0)*\n(AU$10*OFFSET('Efficiency Distributions'!$D$10,MATCH($C197,'Efficiency Distributions'!$C$9:$C$87,0)+RIGHT($E202),0)\n+AU$11*OFFSET('Efficiency Distributions'!$E$10,MATCH($C197,'Efficiency Distributions'!$C$9:$C$87,0)+RIGHT($E202),0))\n/SUM(AU$10:AU$11)","v":0.29415514621523847},{"$f":"IF(INDEX(PC_MAPPING,RIGHT($C197,1),MATCH($E$2,'Data by Building Type'!$D$22:$F$22,0))=\"Yes\",1,0)*\n(AV$10*OFFSET('Efficiency Distributions'!$D$10,MATCH($C197,'Efficiency Distributions'!$C$9:$C$87,0)+RIGHT($E202),0)\n+AV$11*OFFSET('Efficiency Distributions'!$E$10,MATCH($C197,'Efficiency Distributions'!$C$9:$C$87,0)+RIGHT($E202),0))\n/SUM(AV$10:AV$11)","v":0.28111384417059537},{"$f":"IF(INDEX(PC_MAPPING,RIGHT($C197,1),MATCH($E$2,'Data by Building Type'!$D$22:$F$22,0))=\"Yes\",1,0)*\n(AW$10*OFFSET('Efficiency Distributions'!$D$10,MATCH($C197,'Efficiency Distributions'!$C$9:$C$87,0)+RIGHT($E202),0)\n+AW$11*OFFSET('Efficiency Distributions'!$E$10,MATCH($C197,'Efficiency Distributions'!$C$9:$C$87,0)+RIGHT($E202),0))\n/SUM(AW$10:AW$11)","v":0.28417972451256673},{"$f":"IF(INDEX(PC_MAPPING,RIGHT($C197,1),MATCH($E$2,'Data by Building Type'!$D$22:$F$22,0))=\"Yes\",1,0)*\n(AX$10*OFFSET('Efficiency Distributions'!$D$10,MATCH($C197,'Efficiency Distributions'!$C$9:$C$87,0)+RIGHT($E202),0)\n+AX$11*OFFSET('Efficiency Distributions'!$E$10,MATCH($C197,'Efficiency Distributions'!$C$9:$C$87,0)+RIGHT($E202),0))\n/SUM(AX$10:AX$11)","v":0.28116937539143988},{"$f":"IF(INDEX(PC_MAPPING,RIGHT($C197,1),MATCH($E$2,'Data by Building Type'!$D$22:$F$22,0))=\"Yes\",1,0)*\n(AY$10*OFFSET('Efficiency Distributions'!$D$10,MATCH($C197,'Efficiency Distributions'!$C$9:$C$87,0)+RIGHT($E202),0)\n+AY$11*OFFSET('Efficiency Distributions'!$E$10,MATCH($C197,'Efficiency Distributions'!$C$9:$C$87,0)+RIGHT($E202),0))\n/SUM(AY$10:AY$11)","v":0.28092276328169186},{"$f":"IF(INDEX(PC_MAPPING,RIGHT($C197,1),MATCH($E$2,'Data by Building Type'!$D$22:$F$22,0))=\"Yes\",1,0)*\n(AZ$10*OFFSET('Efficiency Distributions'!$D$10,MATCH($C197,'Efficiency Distributions'!$C$9:$C$87,0)+RIGHT($E202),0)\n+AZ$11*OFFSET('Efficiency Distributions'!$E$10,MATCH($C197,'Efficiency Distributions'!$C$9:$C$87,0)+RIGHT($E202),0))\n/SUM(AZ$10:AZ$11)","v":0.28203477800382154},{"$f":"IF(INDEX(PC_MAPPING,RIGHT($C197,1),MATCH($E$2,'Data by Building Type'!$D$22:$F$22,0))=\"Yes\",1,0)*\n(BA$10*OFFSET('Efficiency Distributions'!$D$10,MATCH($C197,'Efficiency Distributions'!$C$9:$C$87,0)+RIGHT($E202),0)\n+BA$11*OFFSET('Efficiency Distributions'!$E$10,MATCH($C197,'Efficiency Distributions'!$C$9:$C$87,0)+RIGHT($E202),0))\n/SUM(BA$10:BA$11)","v":0.28099010536917696},{"$f":"IF(INDEX(PC_MAPPING,RIGHT($C197,1),MATCH($E$2,'Data by Building Type'!$D$22:$F$22,0))=\"Yes\",1,0)*\n(BB$10*OFFSET('Efficiency Distributions'!$D$10,MATCH($C197,'Efficiency Distributions'!$C$9:$C$87,0)+RIGHT($E202),0)\n+BB$11*OFFSET('Efficiency Distributions'!$E$10,MATCH($C197,'Efficiency Distributions'!$C$9:$C$87,0)+RIGHT($E202),0))\n/SUM(BB$10:BB$11)","v":0.27990151207716729},{"$f":"IF(INDEX(PC_MAPPING,RIGHT($C197,1),MATCH($E$2,'Data by Building Type'!$D$22:$F$22,0))=\"Yes\",1,0)*\n(BC$10*OFFSET('Efficiency Distributions'!$D$10,MATCH($C197,'Efficiency Distributions'!$C$9:$C$87,0)+RIGHT($E202),0)\n+BC$11*OFFSET('Efficiency Distributions'!$E$10,MATCH($C197,'Efficiency Distributions'!$C$9:$C$87,0)+RIGHT($E202),0))\n/SUM(BC$10:BC$11)","v":0.27762505947773602},{"$f":"IF(INDEX(PC_MAPPING,RIGHT($C197,1),MATCH($E$2,'Data by Building Type'!$D$22:$F$22,0))=\"Yes\",1,0)*\n(BD$10*OFFSET('Efficiency Distributions'!$D$10,MATCH($C197,'Efficiency Distributions'!$C$9:$C$87,0)+RIGHT($E202),0)\n+BD$11*OFFSET('Efficiency Distributions'!$E$10,MATCH($C197,'Efficiency Distributions'!$C$9:$C$87,0)+RIGHT($E202),0))\n/SUM(BD$10:BD$11)","v":0.27710895642805194},{"$f":"IF(INDEX(PC_MAPPING,RIGHT($C197,1),MATCH($E$2,'Data by Building Type'!$D$22:$F$22,0))=\"Yes\",1,0)*\n(BE$10*OFFSET('Efficiency Distributions'!$D$10,MATCH($C197,'Efficiency Distributions'!$C$9:$C$87,0)+RIGHT($E202),0)\n+BE$11*OFFSET('Efficiency Distributions'!$E$10,MATCH($C197,'Efficiency Distributions'!$C$9:$C$87,0)+RIGHT($E202),0))\n/SUM(BE$10:BE$11)","v":0.27598159429650615},{"$f":"IF(INDEX(PC_MAPPING,RIGHT($C197,1),MATCH($E$2,'Data by Building Type'!$D$22:$F$22,0))=\"Yes\",1,0)*\n(BF$10*OFFSET('Efficiency Distributions'!$D$10,MATCH($C197,'Efficiency Distributions'!$C$9:$C$87,0)+RIGHT($E202),0)\n+BF$11*OFFSET('Efficiency Distributions'!$E$10,MATCH($C197,'Efficiency Distributions'!$C$9:$C$87,0)+RIGHT($E202),0))\n/SUM(BF$10:BF$11)","v":0.27523990048121261},{"$f":"IF(INDEX(PC_MAPPING,RIGHT($C197,1),MATCH($E$2,'Data by Building Type'!$D$22:$F$22,0))=\"Yes\",1,0)*\n(BG$10*OFFSET('Efficiency Distributions'!$D$10,MATCH($C197,'Efficiency Distributions'!$C$9:$C$87,0)+RIGHT($E202),0)\n+BG$11*OFFSET('Efficiency Distributions'!$E$10,MATCH($C197,'Efficiency Distributions'!$C$9:$C$87,0)+RIGHT($E202),0))\n/SUM(BG$10:BG$11)","v":0.27436177489869412}]
[null,null,null,null,"EL2",{"$f":"IF(INDEX(PC_MAPPING,RIGHT($C197,1),MATCH($E$2,'Data by Building Type'!$D$22:$F$22,0))=\"Yes\",1,0)*\n(F$10*OFFSET('Efficiency Distributions'!$D$10,MATCH($C197,'Efficiency Distributions'!$C$9:$C$87,0)+RIGHT($E203),0)\n+F$11*OFFSET('Efficiency Distributions'!$E$10,MATCH($C197,'Efficiency Distributions'!$C$9:$C$87,0)+RIGHT($E203),0))\n/SUM(F$10:F$11)","v":0},{"$f":"IF(INDEX(PC_MAPPING,RIGHT($C197,1),MATCH($E$2,'Data by Building Type'!$D$22:$F$22,0))=\"Yes\",1,0)*\n(G$10*OFFSET('Efficiency Distributions'!$D$10,MATCH($C197,'Efficiency Distributions'!$C$9:$C$87,0)+RIGHT($E203),0)\n+G$11*OFFSET('Efficiency Distributions'!$E$10,MATCH($C197,'Efficiency Distributions'!$C$9:$C$87,0)+RIGHT($E203),0))\n/SUM(G$10:G$11)","v":0},{"$f":"IF(INDEX(PC_MAPPING,RIGHT($C197,1),MATCH($E$2,'Data by Building Type'!$D$22:$F$22,0))=\"Yes\",1,0)*\n(H$10*OFFSET('Efficiency Distributions'!$D$10,MATCH($C197,'Efficiency Distributions'!$C$9:$C$87,0)+RIGHT($E203),0)\n+H$11*OFFSET('Efficiency Distributions'!$E$10,MATCH($C197,'Efficiency Distributions'!$C$9:$C$87,0)+RIGHT($E203),0))\n/SUM(H$10:H$11)","v":0},{"$f":"IF(INDEX(PC_MAPPING,RIGHT($C197,1),MATCH($E$2,'Data by Building Type'!$D$22:$F$22,0))=\"Yes\",1,0)*\n(I$10*OFFSET('Efficiency Distributions'!$D$10,MATCH($C197,'Efficiency Distributions'!$C$9:$C$87,0)+RIGHT($E203),0)\n+I$11*OFFSET('Efficiency Distributions'!$E$10,MATCH($C197,'Efficiency Distributions'!$C$9:$C$87,0)+RIGHT($E203),0))\n/SUM(I$10:I$11)","v":0},{"$f":"IF(INDEX(PC_MAPPING,RIGHT($C197,1),MATCH($E$2,'Data by Building Type'!$D$22:$F$22,0))=\"Yes\",1,0)*\n(J$10*OFFSET('Efficiency Distributions'!$D$10,MATCH($C197,'Efficiency Distributions'!$C$9:$C$87,0)+RIGHT($E203),0)\n+J$11*OFFSET('Efficiency Distributions'!$E$10,MATCH($C197,'Efficiency Distributions'!$C$9:$C$87,0)+RIGHT($E203),0))\n/SUM(J$10:J$11)","v":0},{"$f":"IF(INDEX(PC_MAPPING,RIGHT($C197,1),MATCH($E$2,'Data by Building Type'!$D$22:$F$22,0))=\"Yes\",1,0)*\n(K$10*OFFSET('Efficiency Distributions'!$D$10,MATCH($C197,'Efficiency Distributions'!$C$9:$C$87,0)+RIGHT($E203),0)\n+K$11*OFFSET('Efficiency Distributions'!$E$10,MATCH($C197,'Efficiency Distributions'!$C$9:$C$87,0)+RIGHT($E203),0))\n/SUM(K$10:K$11)","v":0},{"$f":"IF(INDEX(PC_MAPPING,RIGHT($C197,1),MATCH($E$2,'Data by Building Type'!$D$22:$F$22,0))=\"Yes\",1,0)*\n(L$10*OFFSET('Efficiency Distributions'!$D$10,MATCH($C197,'Efficiency Distributions'!$C$9:$C$87,0)+RIGHT($E203),0)\n+L$11*OFFSET('Efficiency Distributions'!$E$10,MATCH($C197,'Efficiency Distributions'!$C$9:$C$87,0)+RIGHT($E203),0))\n/SUM(L$10:L$11)","v":0},{"$f":"IF(INDEX(PC_MAPPING,RIGHT($C197,1),MATCH($E$2,'Data by Building Type'!$D$22:$F$22,0))=\"Yes\",1,0)*\n(M$10*OFFSET('Efficiency Distributions'!$D$10,MATCH($C197,'Efficiency Distributions'!$C$9:$C$87,0)+RIGHT($E203),0)\n+M$11*OFFSET('Efficiency Distributions'!$E$10,MATCH($C197,'Efficiency Distributions'!$C$9:$C$87,0)+RIGHT($E203),0))\n/SUM(M$10:M$11)","v":0},{"$f":"IF(INDEX(PC_MAPPING,RIGHT($C197,1),MATCH($E$2,'Data by Building Type'!$D$22:$F$22,0))=\"Yes\",1,0)*\n(N$10*OFFSET('Efficiency Distributions'!$D$10,MATCH($C197,'Efficiency Distributions'!$C$9:$C$87,0)+RIGHT($E203),0)\n+N$11*OFFSET('Efficiency Distributions'!$E$10,MATCH($C197,'Efficiency Distributions'!$C$9:$C$87,0)+RIGHT($E203),0))\n/SUM(N$10:N$11)","v":0},{"$f":"IF(INDEX(PC_MAPPING,RIGHT($C197,1),MATCH($E$2,'Data by Building Type'!$D$22:$F$22,0))=\"Yes\",1,0)*\n(O$10*OFFSET('Efficiency Distributions'!$D$10,MATCH($C197,'Efficiency Distributions'!$C$9:$C$87,0)+RIGHT($E203),0)\n+O$11*OFFSET('Efficiency Distributions'!$E$10,MATCH($C197,'Efficiency Distributions'!$C$9:$C$87,0)+RIGHT($E203),0))\n/SUM(O$10:O$11)","v":0},{"$f":"IF(INDEX(PC_MAPPING,RIGHT($C197,1),MATCH($E$2,'Data by Building Type'!$D$22:$F$22,0))=\"Yes\",1,0)*\n(P$10*OFFSET('Efficiency Distributions'!$D$10,MATCH($C197,'Efficiency Distributions'!$C$9:$C$87,0)+RIGHT($E203),0)\n+P$11*OFFSET('Efficiency Distributions'!$E$10,MATCH($C197,'Efficiency Distributions'!$C$9:$C$87,0)+RIGHT($E203),0))\n/SUM(P$10:P$11)","v":0},{"$f":"IF(INDEX(PC_MAPPING,RIGHT($C197,1),MATCH($E$2,'Data by Building Type'!$D$22:$F$22,0))=\"Yes\",1,0)*\n(Q$10*OFFSET('Efficiency Distributions'!$D$10,MATCH($C197,'Efficiency Distributions'!$C$9:$C$87,0)+RIGHT($E203),0)\n+Q$11*OFFSET('Efficiency Distributions'!$E$10,MATCH($C197,'Efficiency Distributions'!$C$9:$C$87,0)+RIGHT($E203),0))\n/SUM(Q$10:Q$11)","v":0},{"$f":"IF(INDEX(PC_MAPPING,RIGHT($C197,1),MATCH($E$2,'Data by Building Type'!$D$22:$F$22,0))=\"Yes\",1,0)*\n(R$10*OFFSET('Efficiency Distributions'!$D$10,MATCH($C197,'Efficiency Distributions'!$C$9:$C$87,0)+RIGHT($E203),0)\n+R$11*OFFSET('Efficiency Distributions'!$E$10,MATCH($C197,'Efficiency Distributions'!$C$9:$C$87,0)+RIGHT($E203),0))\n/SUM(R$10:R$11)","v":0},{"$f":"IF(INDEX(PC_MAPPING,RIGHT($C197,1),MATCH($E$2,'Data by Building Type'!$D$22:$F$22,0))=\"Yes\",1,0)*\n(S$10*OFFSET('Efficiency Distributions'!$D$10,MATCH($C197,'Efficiency Distributions'!$C$9:$C$87,0)+RIGHT($E203),0)\n+S$11*OFFSET('Efficiency Distributions'!$E$10,MATCH($C197,'Efficiency Distributions'!$C$9:$C$87,0)+RIGHT($E203),0))\n/SUM(S$10:S$11)","v":0},{"$f":"IF(INDEX(PC_MAPPING,RIGHT($C197,1),MATCH($E$2,'Data by Building Type'!$D$22:$F$22,0))=\"Yes\",1,0)*\n(T$10*OFFSET('Efficiency Distributions'!$D$10,MATCH($C197,'Efficiency Distributions'!$C$9:$C$87,0)+RIGHT($E203),0)\n+T$11*OFFSET('Efficiency Distributions'!$E$10,MATCH($C197,'Efficiency Distributions'!$C$9:$C$87,0)+RIGHT($E203),0))\n/SUM(T$10:T$11)","v":0},{"$f":"IF(INDEX(PC_MAPPING,RIGHT($C197,1),MATCH($E$2,'Data by Building Type'!$D$22:$F$22,0))=\"Yes\",1,0)*\n(U$10*OFFSET('Efficiency Distributions'!$D$10,MATCH($C197,'Efficiency Distributions'!$C$9:$C$87,0)+RIGHT($E203),0)\n+U$11*OFFSET('Efficiency Distributions'!$E$10,MATCH($C197,'Efficiency Distributions'!$C$9:$C$87,0)+RIGHT($E203),0))\n/SUM(U$10:U$11)","v":0},{"$f":"IF(INDEX(PC_MAPPING,RIGHT($C197,1),MATCH($E$2,'Data by Building Type'!$D$22:$F$22,0))=\"Yes\",1,0)*\n(V$10*OFFSET('Efficiency Distributions'!$D$10,MATCH($C197,'Efficiency Distributions'!$C$9:$C$87,0)+RIGHT($E203),0)\n+V$11*OFFSET('Efficiency Distributions'!$E$10,MATCH($C197,'Efficiency Distributions'!$C$9:$C$87,0)+RIGHT($E203),0))\n/SUM(V$10:V$11)","v":0},{"$f":"IF(INDEX(PC_MAPPING,RIGHT($C197,1),MATCH($E$2,'Data by Building Type'!$D$22:$F$22,0))=\"Yes\",1,0)*\n(W$10*OFFSET('Efficiency Distributions'!$D$10,MATCH($C197,'Efficiency Distributions'!$C$9:$C$87,0)+RIGHT($E203),0)\n+W$11*OFFSET('Efficiency Distributions'!$E$10,MATCH($C197,'Efficiency Distributions'!$C$9:$C$87,0)+RIGHT($E203),0))\n/SUM(W$10:W$11)","v":0},{"$f":"IF(INDEX(PC_MAPPING,RIGHT($C197,1),MATCH($E$2,'Data by Building Type'!$D$22:$F$22,0))=\"Yes\",1,0)*\n(X$10*OFFSET('Efficiency Distributions'!$D$10,MATCH($C197,'Efficiency Distributions'!$C$9:$C$87,0)+RIGHT($E203),0)\n+X$11*OFFSET('Efficiency Distributions'!$E$10,MATCH($C197,'Efficiency Distributions'!$C$9:$C$87,0)+RIGHT($E203),0))\n/SUM(X$10:X$11)","v":0},{"$f":"IF(INDEX(PC_MAPPING,RIGHT($C197,1),MATCH($E$2,'Data by Building Type'!$D$22:$F$22,0))=\"Yes\",1,0)*\n(Y$10*OFFSET('Efficiency Distributions'!$D$10,MATCH($C197,'Efficiency Distributions'!$C$9:$C$87,0)+RIGHT($E203),0)\n+Y$11*OFFSET('Efficiency Distributions'!$E$10,MATCH($C197,'Efficiency Distributions'!$C$9:$C$87,0)+RIGHT($E203),0))\n/SUM(Y$10:Y$11)","v":0},{"$f":"IF(INDEX(PC_MAPPING,RIGHT($C197,1),MATCH($E$2,'Data by Building Type'!$D$22:$F$22,0))=\"Yes\",1,0)*\n(Z$10*OFFSET('Efficiency Distributions'!$D$10,MATCH($C197,'Efficiency Distributions'!$C$9:$C$87,0)+RIGHT($E203),0)\n+Z$11*OFFSET('Efficiency Distributions'!$E$10,MATCH($C197,'Efficiency Distributions'!$C$9:$C$87,0)+RIGHT($E203),0))\n/SUM(Z$10:Z$11)","v":0},{"$f":"IF(INDEX(PC_MAPPING,RIGHT($C197,1),MATCH($E$2,'Data by Building Type'!$D$22:$F$22,0))=\"Yes\",1,0)*\n(AA$10*OFFSET('Efficiency Distributions'!$D$10,MATCH($C197,'Efficiency Distributions'!$C$9:$C$87,0)+RIGHT($E203),0)\n+AA$11*OFFSET('Efficiency Distributions'!$E$10,MATCH($C197,'Efficiency Distributions'!$C$9:$C$87,0)+RIGHT($E203),0))\n/SUM(AA$10:AA$11)","v":0},{"$f":"IF(INDEX(PC_MAPPING,RIGHT($C197,1),MATCH($E$2,'Data by Building Type'!$D$22:$F$22,0))=\"Yes\",1,0)*\n(AB$10*OFFSET('Efficiency Distributions'!$D$10,MATCH($C197,'Efficiency Distributions'!$C$9:$C$87,0)+RIGHT($E203),0)\n+AB$11*OFFSET('Efficiency Distributions'!$E$10,MATCH($C197,'Efficiency Distributions'!$C$9:$C$87,0)+RIGHT($E203),0))\n/SUM(AB$10:AB$11)","v":0},{"$f":"IF(INDEX(PC_MAPPING,RIGHT($C197,1),MATCH($E$2,'Data by Building Type'!$D$22:$F$22,0))=\"Yes\",1,0)*\n(AC$10*OFFSET('Efficiency Distributions'!$D$10,MATCH($C197,'Efficiency Distributions'!$C$9:$C$87,0)+RIGHT($E203),0)\n+AC$11*OFFSET('Efficiency Distributions'!$E$10,MATCH($C197,'Efficiency Distributions'!$C$9:$C$87,0)+RIGHT($E203),0))\n/SUM(AC$10:AC$11)","v":0},{"$f":"IF(INDEX(PC_MAPPING,RIGHT($C197,1),MATCH($E$2,'Data by Building Type'!$D$22:$F$22,0))=\"Yes\",1,0)*\n(AD$10*OFFSET('Efficiency Distributions'!$D$10,MATCH($C197,'Efficiency Distributions'!$C$9:$C$87,0)+RIGHT($E203),0)\n+AD$11*OFFSET('Efficiency Distributions'!$E$10,MATCH($C197,'Efficiency Distributions'!$C$9:$C$87,0)+RIGHT($E203),0))\n/SUM(AD$10:AD$11)","v":0},{"$f":"IF(INDEX(PC_MAPPING,RIGHT($C197,1),MATCH($E$2,'Data by Building Type'!$D$22:$F$22,0))=\"Yes\",1,0)*\n(AE$10*OFFSET('Efficiency Distributions'!$D$10,MATCH($C197,'Efficiency Distributions'!$C$9:$C$87,0)+RIGHT($E203),0)\n+AE$11*OFFSET('Efficiency Distributions'!$E$10,MATCH($C197,'Efficiency Distributions'!$C$9:$C$87,0)+RIGHT($E203),0))\n/SUM(AE$10:AE$11)","v":0},{"$f":"IF(INDEX(PC_MAPPING,RIGHT($C197,1),MATCH($E$2,'Data by Building Type'!$D$22:$F$22,0))=\"Yes\",1,0)*\n(AF$10*OFFSET('Efficiency Distributions'!$D$10,MATCH($C197,'Efficiency Distributions'!$C$9:$C$87,0)+RIGHT($E203),0)\n+AF$11*OFFSET('Efficiency Distributions'!$E$10,MATCH($C197,'Efficiency Distributions'!$C$9:$C$87,0)+RIGHT($E203),0))\n/SUM(AF$10:AF$11)","v":0},{"$f":"IF(INDEX(PC_MAPPING,RIGHT($C197,1),MATCH($E$2,'Data by Building Type'!$D$22:$F$22,0))=\"Yes\",1,0)*\n(AG$10*OFFSET('Efficiency Distributions'!$D$10,MATCH($C197,'Efficiency Distributions'!$C$9:$C$87,0)+RIGHT($E203),0)\n+AG$11*OFFSET('Efficiency Distributions'!$E$10,MATCH($C197,'Efficiency Distributions'!$C$9:$C$87,0)+RIGHT($E203),0))\n/SUM(AG$10:AG$11)","v":0},{"$f":"IF(INDEX(PC_MAPPING,RIGHT($C197,1),MATCH($E$2,'Data by Building Type'!$D$22:$F$22,0))=\"Yes\",1,0)*\n(AH$10*OFFSET('Efficiency Distributions'!$D$10,MATCH($C197,'Efficiency Distributions'!$C$9:$C$87,0)+RIGHT($E203),0)\n+AH$11*OFFSET('Efficiency Distributions'!$E$10,MATCH($C197,'Efficiency Distributions'!$C$9:$C$87,0)+RIGHT($E203),0))\n/SUM(AH$10:AH$11)","v":0},{"$f":"IF(INDEX(PC_MAPPING,RIGHT($C197,1),MATCH($E$2,'Data by Building Type'!$D$22:$F$22,0))=\"Yes\",1,0)*\n(AI$10*OFFSET('Efficiency Distributions'!$D$10,MATCH($C197,'Efficiency Distributions'!$C$9:$C$87,0)+RIGHT($E203),0)\n+AI$11*OFFSET('Efficiency Distributions'!$E$10,MATCH($C197,'Efficiency Distributions'!$C$9:$C$87,0)+RIGHT($E203),0))\n/SUM(AI$10:AI$11)","v":0},{"$f":"IF(INDEX(PC_MAPPING,RIGHT($C197,1),MATCH($E$2,'Data by Building Type'!$D$22:$F$22,0))=\"Yes\",1,0)*\n(AJ$10*OFFSET('Efficiency Distributions'!$D$10,MATCH($C197,'Efficiency Distributions'!$C$9:$C$87,0)+RIGHT($E203),0)\n+AJ$11*OFFSET('Efficiency Distributions'!$E$10,MATCH($C197,'Efficiency Distributions'!$C$9:$C$87,0)+RIGHT($E203),0))\n/SUM(AJ$10:AJ$11)","v":0},{"$f":"IF(INDEX(PC_MAPPING,RIGHT($C197,1),MATCH($E$2,'Data by Building Type'!$D$22:$F$22,0))=\"Yes\",1,0)*\n(AK$10*OFFSET('Efficiency Distributions'!$D$10,MATCH($C197,'Efficiency Distributions'!$C$9:$C$87,0)+RIGHT($E203),0)\n+AK$11*OFFSET('Efficiency Distributions'!$E$10,MATCH($C197,'Efficiency Distributions'!$C$9:$C$87,0)+RIGHT($E203),0))\n/SUM(AK$10:AK$11)","v":0},{"$f":"IF(INDEX(PC_MAPPING,RIGHT($C197,1),MATCH($E$2,'Data by Building Type'!$D$22:$F$22,0))=\"Yes\",1,0)*\n(AL$10*OFFSET('Efficiency Distributions'!$D$10,MATCH($C197,'Efficiency Distributions'!$C$9:$C$87,0)+RIGHT($E203),0)\n+AL$11*OFFSET('Efficiency Distributions'!$E$10,MATCH($C197,'Efficiency Distributions'!$C$9:$C$87,0)+RIGHT($E203),0))\n/SUM(AL$10:AL$11)","v":0},{"$f":"IF(INDEX(PC_MAPPING,RIGHT($C197,1),MATCH($E$2,'Data by Building Type'!$D$22:$F$22,0))=\"Yes\",1,0)*\n(AM$10*OFFSET('Efficiency Distributions'!$D$10,MATCH($C197,'Efficiency Distributions'!$C$9:$C$87,0)+RIGHT($E203),0)\n+AM$11*OFFSET('Efficiency Distributions'!$E$10,MATCH($C197,'Efficiency Distributions'!$C$9:$C$87,0)+RIGHT($E203),0))\n/SUM(AM$10:AM$11)","v":0},{"$f":"IF(INDEX(PC_MAPPING,RIGHT($C197,1),MATCH($E$2,'Data by Building Type'!$D$22:$F$22,0))=\"Yes\",1,0)*\n(AN$10*OFFSET('Efficiency Distributions'!$D$10,MATCH($C197,'Efficiency Distributions'!$C$9:$C$87,0)+RIGHT($E203),0)\n+AN$11*OFFSET('Efficiency Distributions'!$E$10,MATCH($C197,'Efficiency Distributions'!$C$9:$C$87,0)+RIGHT($E203),0))\n/SUM(AN$10:AN$11)","v":0},{"$f":"IF(INDEX(PC_MAPPING,RIGHT($C197,1),MATCH($E$2,'Data by Building Type'!$D$22:$F$22,0))=\"Yes\",1,0)*\n(AO$10*OFFSET('Efficiency Distributions'!$D$10,MATCH($C197,'Efficiency Distributions'!$C$9:$C$87,0)+RIGHT($E203),0)\n+AO$11*OFFSET('Efficiency Distributions'!$E$10,MATCH($C197,'Efficiency Distributions'!$C$9:$C$87,0)+RIGHT($E203),0))\n/SUM(AO$10:AO$11)","v":0},{"$f":"IF(INDEX(PC_MAPPING,RIGHT($C197,1),MATCH($E$2,'Data by Building Type'!$D$22:$F$22,0))=\"Yes\",1,0)*\n(AP$10*OFFSET('Efficiency Distributions'!$D$10,MATCH($C197,'Efficiency Distributions'!$C$9:$C$87,0)+RIGHT($E203),0)\n+AP$11*OFFSET('Efficiency Distributions'!$E$10,MATCH($C197,'Efficiency Distributions'!$C$9:$C$87,0)+RIGHT($E203),0))\n/SUM(AP$10:AP$11)","v":0},{"$f":"IF(INDEX(PC_MAPPING,RIGHT($C197,1),MATCH($E$2,'Data by Building Type'!$D$22:$F$22,0))=\"Yes\",1,0)*\n(AQ$10*OFFSET('Efficiency Distributions'!$D$10,MATCH($C197,'Efficiency Distributions'!$C$9:$C$87,0)+RIGHT($E203),0)\n+AQ$11*OFFSET('Efficiency Distributions'!$E$10,MATCH($C197,'Efficiency Distributions'!$C$9:$C$87,0)+RIGHT($E203),0))\n/SUM(AQ$10:AQ$11)","v":0},{"$f":"IF(INDEX(PC_MAPPING,RIGHT($C197,1),MATCH($E$2,'Data by Building Type'!$D$22:$F$22,0))=\"Yes\",1,0)*\n(AR$10*OFFSET('Efficiency Distributions'!$D$10,MATCH($C197,'Efficiency Distributions'!$C$9:$C$87,0)+RIGHT($E203),0)\n+AR$11*OFFSET('Efficiency Distributions'!$E$10,MATCH($C197,'Efficiency Distributions'!$C$9:$C$87,0)+RIGHT($E203),0))\n/SUM(AR$10:AR$11)","v":0},{"$f":"IF(INDEX(PC_MAPPING,RIGHT($C197,1),MATCH($E$2,'Data by Building Type'!$D$22:$F$22,0))=\"Yes\",1,0)*\n(AS$10*OFFSET('Efficiency Distributions'!$D$10,MATCH($C197,'Efficiency Distributions'!$C$9:$C$87,0)+RIGHT($E203),0)\n+AS$11*OFFSET('Efficiency Distributions'!$E$10,MATCH($C197,'Efficiency Distributions'!$C$9:$C$87,0)+RIGHT($E203),0))\n/SUM(AS$10:AS$11)","v":0},{"$f":"IF(INDEX(PC_MAPPING,RIGHT($C197,1),MATCH($E$2,'Data by Building Type'!$D$22:$F$22,0))=\"Yes\",1,0)*\n(AT$10*OFFSET('Efficiency Distributions'!$D$10,MATCH($C197,'Efficiency Distributions'!$C$9:$C$87,0)+RIGHT($E203),0)\n+AT$11*OFFSET('Efficiency Distributions'!$E$10,MATCH($C197,'Efficiency Distributions'!$C$9:$C$87,0)+RIGHT($E203),0))\n/SUM(AT$10:AT$11)","v":0},{"$f":"IF(INDEX(PC_MAPPING,RIGHT($C197,1),MATCH($E$2,'Data by Building Type'!$D$22:$F$22,0))=\"Yes\",1,0)*\n(AU$10*OFFSET('Efficiency Distributions'!$D$10,MATCH($C197,'Efficiency Distributions'!$C$9:$C$87,0)+RIGHT($E203),0)\n+AU$11*OFFSET('Efficiency Distributions'!$E$10,MATCH($C197,'Efficiency Distributions'!$C$9:$C$87,0)+RIGHT($E203),0))\n/SUM(AU$10:AU$11)","v":0},{"$f":"IF(INDEX(PC_MAPPING,RIGHT($C197,1),MATCH($E$2,'Data by Building Type'!$D$22:$F$22,0))=\"Yes\",1,0)*\n(AV$10*OFFSET('Efficiency Distributions'!$D$10,MATCH($C197,'Efficiency Distributions'!$C$9:$C$87,0)+RIGHT($E203),0)\n+AV$11*OFFSET('Efficiency Distributions'!$E$10,MATCH($C197,'Efficiency Distributions'!$C$9:$C$87,0)+RIGHT($E203),0))\n/SUM(AV$10:AV$11)","v":0},{"$f":"IF(INDEX(PC_MAPPING,RIGHT($C197,1),MATCH($E$2,'Data by Building Type'!$D$22:$F$22,0))=\"Yes\",1,0)*\n(AW$10*OFFSET('Efficiency Distributions'!$D$10,MATCH($C197,'Efficiency Distributions'!$C$9:$C$87,0)+RIGHT($E203),0)\n+AW$11*OFFSET('Efficiency Distributions'!$E$10,MATCH($C197,'Efficiency Distributions'!$C$9:$C$87,0)+RIGHT($E203),0))\n/SUM(AW$10:AW$11)","v":0},{"$f":"IF(INDEX(PC_MAPPING,RIGHT($C197,1),MATCH($E$2,'Data by Building Type'!$D$22:$F$22,0))=\"Yes\",1,0)*\n(AX$10*OFFSET('Efficiency Distributions'!$D$10,MATCH($C197,'Efficiency Distributions'!$C$9:$C$87,0)+RIGHT($E203),0)\n+AX$11*OFFSET('Efficiency Distributions'!$E$10,MATCH($C197,'Efficiency Distributions'!$C$9:$C$87,0)+RIGHT($E203),0))\n/SUM(AX$10:AX$11)","v":0},{"$f":"IF(INDEX(PC_MAPPING,RIGHT($C197,1),MATCH($E$2,'Data by Building Type'!$D$22:$F$22,0))=\"Yes\",1,0)*\n(AY$10*OFFSET('Efficiency Distributions'!$D$10,MATCH($C197,'Efficiency Distributions'!$C$9:$C$87,0)+RIGHT($E203),0)\n+AY$11*OFFSET('Efficiency Distributions'!$E$10,MATCH($C197,'Efficiency Distributions'!$C$9:$C$87,0)+RIGHT($E203),0))\n/SUM(AY$10:AY$11)","v":0},{"$f":"IF(INDEX(PC_MAPPING,RIGHT($C197,1),MATCH($E$2,'Data by Building Type'!$D$22:$F$22,0))=\"Yes\",1,0)*\n(AZ$10*OFFSET('Efficiency Distributions'!$D$10,MATCH($C197,'Efficiency Distributions'!$C$9:$C$87,0)+RIGHT($E203),0)\n+AZ$11*OFFSET('Efficiency Distributions'!$E$10,MATCH($C197,'Efficiency Distributions'!$C$9:$C$87,0)+RIGHT($E203),0))\n/SUM(AZ$10:AZ$11)","v":0},{"$f":"IF(INDEX(PC_MAPPING,RIGHT($C197,1),MATCH($E$2,'Data by Building Type'!$D$22:$F$22,0))=\"Yes\",1,0)*\n(BA$10*OFFSET('Efficiency Distributions'!$D$10,MATCH($C197,'Efficiency Distributions'!$C$9:$C$87,0)+RIGHT($E203),0)\n+BA$11*OFFSET('Efficiency Distributions'!$E$10,MATCH($C197,'Efficiency Distributions'!$C$9:$C$87,0)+RIGHT($E203),0))\n/SUM(BA$10:BA$11)","v":0},{"$f":"IF(INDEX(PC_MAPPING,RIGHT($C197,1),MATCH($E$2,'Data by Building Type'!$D$22:$F$22,0))=\"Yes\",1,0)*\n(BB$10*OFFSET('Efficiency Distributions'!$D$10,MATCH($C197,'Efficiency Distributions'!$C$9:$C$87,0)+RIGHT($E203),0)\n+BB$11*OFFSET('Efficiency Distributions'!$E$10,MATCH($C197,'Efficiency Distributions'!$C$9:$C$87,0)+RIGHT($E203),0))\n/SUM(BB$10:BB$11)","v":0},{"$f":"IF(INDEX(PC_MAPPING,RIGHT($C197,1),MATCH($E$2,'Data by Building Type'!$D$22:$F$22,0))=\"Yes\",1,0)*\n(BC$10*OFFSET('Efficiency Distributions'!$D$10,MATCH($C197,'Efficiency Distributions'!$C$9:$C$87,0)+RIGHT($E203),0)\n+BC$11*OFFSET('Efficiency Distributions'!$E$10,MATCH($C197,'Efficiency Distributions'!$C$9:$C$87,0)+RIGHT($E203),0))\n/SUM(BC$10:BC$11)","v":0},{"$f":"IF(INDEX(PC_MAPPING,RIGHT($C197,1),MATCH($E$2,'Data by Building Type'!$D$22:$F$22,0))=\"Yes\",1,0)*\n(BD$10*OFFSET('Efficiency Distributions'!$D$10,MATCH($C197,'Efficiency Distributions'!$C$9:$C$87,0)+RIGHT($E203),0)\n+BD$11*OFFSET('Efficiency Distributions'!$E$10,MATCH($C197,'Efficiency Distributions'!$C$9:$C$87,0)+RIGHT($E203),0))\n/SUM(BD$10:BD$11)","v":0},{"$f":"IF(INDEX(PC_MAPPING,RIGHT($C197,1),MATCH($E$2,'Data by Building Type'!$D$22:$F$22,0))=\"Yes\",1,0)*\n(BE$10*OFFSET('Efficiency Distributions'!$D$10,MATCH($C197,'Efficiency Distributions'!$C$9:$C$87,0)+RIGHT($E203),0)\n+BE$11*OFFSET('Efficiency Distributions'!$E$10,MATCH($C197,'Efficiency Distributions'!$C$9:$C$87,0)+RIGHT($E203),0))\n/SUM(BE$10:BE$11)","v":0},{"$f":"IF(INDEX(PC_MAPPING,RIGHT($C197,1),MATCH($E$2,'Data by Building Type'!$D$22:$F$22,0))=\"Yes\",1,0)*\n(BF$10*OFFSET('Efficiency Distributions'!$D$10,MATCH($C197,'Efficiency Distributions'!$C$9:$C$87,0)+RIGHT($E203),0)\n+BF$11*OFFSET('Efficiency Distributions'!$E$10,MATCH($C197,'Efficiency Distributions'!$C$9:$C$87,0)+RIGHT($E203),0))\n/SUM(BF$10:BF$11)","v":0},{"$f":"IF(INDEX(PC_MAPPING,RIGHT($C197,1),MATCH($E$2,'Data by Building Type'!$D$22:$F$22,0))=\"Yes\",1,0)*\n(BG$10*OFFSET('Efficiency Distributions'!$D$10,MATCH($C197,'Efficiency Distributions'!$C$9:$C$87,0)+RIGHT($E203),0)\n+BG$11*OFFSET('Efficiency Distributions'!$E$10,MATCH($C197,'Efficiency Distributions'!$C$9:$C$87,0)+RIGHT($E203),0))\n/SUM(BG$10:BG$11)","v":0}]
[null,null,null,null,"EL3",{"$f":"IF(INDEX(PC_MAPPING,RIGHT($C197,1),MATCH($E$2,'Data by Building Type'!$D$22:$F$22,0))=\"Yes\",1,0)*\n(F$10*OFFSET('Efficiency Distributions'!$D$10,MATCH($C197,'Efficiency Distributions'!$C$9:$C$87,0)+RIGHT($E204),0)\n+F$11*OFFSET('Efficiency Distributions'!$E$10,MATCH($C197,'Efficiency Distributions'!$C$9:$C$87,0)+RIGHT($E204),0))\n/SUM(F$10:F$11)","v":0.12521440517145707},{"$f":"IF(INDEX(PC_MAPPING,RIGHT($C197,1),MATCH($E$2,'Data by Building Type'!$D$22:$F$22,0))=\"Yes\",1,0)*\n(G$10*OFFSET('Efficiency Distributions'!$D$10,MATCH($C197,'Efficiency Distributions'!$C$9:$C$87,0)+RIGHT($E204),0)\n+G$11*OFFSET('Efficiency Distributions'!$E$10,MATCH($C197,'Efficiency Distributions'!$C$9:$C$87,0)+RIGHT($E204),0))\n/SUM(G$10:G$11)","v":0.13236116322084013},{"$f":"IF(INDEX(PC_MAPPING,RIGHT($C197,1),MATCH($E$2,'Data by Building Type'!$D$22:$F$22,0))=\"Yes\",1,0)*\n(H$10*OFFSET('Efficiency Distributions'!$D$10,MATCH($C197,'Efficiency Distributions'!$C$9:$C$87,0)+RIGHT($E204),0)\n+H$11*OFFSET('Efficiency Distributions'!$E$10,MATCH($C197,'Efficiency Distributions'!$C$9:$C$87,0)+RIGHT($E204),0))\n/SUM(H$10:H$11)","v":0.12143738359664583},{"$f":"IF(INDEX(PC_MAPPING,RIGHT($C197,1),MATCH($E$2,'Data by Building Type'!$D$22:$F$22,0))=\"Yes\",1,0)*\n(I$10*OFFSET('Efficiency Distributions'!$D$10,MATCH($C197,'Efficiency Distributions'!$C$9:$C$87,0)+RIGHT($E204),0)\n+I$11*OFFSET('Efficiency Distributions'!$E$10,MATCH($C197,'Efficiency Distributions'!$C$9:$C$87,0)+RIGHT($E204),0))\n/SUM(I$10:I$11)","v":0.12206942236676156},{"$f":"IF(INDEX(PC_MAPPING,RIGHT($C197,1),MATCH($E$2,'Data by Building Type'!$D$22:$F$22,0))=\"Yes\",1,0)*\n(J$10*OFFSET('Efficiency Distributions'!$D$10,MATCH($C197,'Efficiency Distributions'!$C$9:$C$87,0)+RIGHT($E204),0)\n+J$11*OFFSET('Efficiency Distributions'!$E$10,MATCH($C197,'Efficiency Distributions'!$C$9:$C$87,0)+RIGHT($E204),0))\n/SUM(J$10:J$11)","v":0.12764729013417811},{"$f":"IF(INDEX(PC_MAPPING,RIGHT($C197,1),MATCH($E$2,'Data by Building Type'!$D$22:$F$22,0))=\"Yes\",1,0)*\n(K$10*OFFSET('Efficiency Distributions'!$D$10,MATCH($C197,'Efficiency Distributions'!$C$9:$C$87,0)+RIGHT($E204),0)\n+K$11*OFFSET('Efficiency Distributions'!$E$10,MATCH($C197,'Efficiency Distributions'!$C$9:$C$87,0)+RIGHT($E204),0))\n/SUM(K$10:K$11)","v":0.13391431596564554},{"$f":"IF(INDEX(PC_MAPPING,RIGHT($C197,1),MATCH($E$2,'Data by Building Type'!$D$22:$F$22,0))=\"Yes\",1,0)*\n(L$10*OFFSET('Efficiency Distributions'!$D$10,MATCH($C197,'Efficiency Distributions'!$C$9:$C$87,0)+RIGHT($E204),0)\n+L$11*OFFSET('Efficiency Distributions'!$E$10,MATCH($C197,'Efficiency Distributions'!$C$9:$C$87,0)+RIGHT($E204),0))\n/SUM(L$10:L$11)","v":0.13570591388642395},{"$f":"IF(INDEX(PC_MAPPING,RIGHT($C197,1),MATCH($E$2,'Data by Building Type'!$D$22:$F$22,0))=\"Yes\",1,0)*\n(M$10*OFFSET('Efficiency Distributions'!$D$10,MATCH($C197,'Efficiency Distributions'!$C$9:$C$87,0)+RIGHT($E204),0)\n+M$11*OFFSET('Efficiency Distributions'!$E$10,MATCH($C197,'Efficiency Distributions'!$C$9:$C$87,0)+RIGHT($E204),0))\n/SUM(M$10:M$11)","v":0.13128295521781599},{"$f":"IF(INDEX(PC_MAPPING,RIGHT($C197,1),MATCH($E$2,'Data by Building Type'!$D$22:$F$22,0))=\"Yes\",1,0)*\n(N$10*OFFSET('Efficiency Distributions'!$D$10,MATCH($C197,'Efficiency Distributions'!$C$9:$C$87,0)+RIGHT($E204),0)\n+N$11*OFFSET('Efficiency Distributions'!$E$10,MATCH($C197,'Efficiency Distributions'!$C$9:$C$87,0)+RIGHT($E204),0))\n/SUM(N$10:N$11)","v":0.12805977760953852},{"$f":"IF(INDEX(PC_MAPPING,RIGHT($C197,1),MATCH($E$2,'Data by Building Type'!$D$22:$F$22,0))=\"Yes\",1,0)*\n(O$10*OFFSET('Efficiency Distributions'!$D$10,MATCH($C197,'Efficiency Distributions'!$C$9:$C$87,0)+RIGHT($E204),0)\n+O$11*OFFSET('Efficiency Distributions'!$E$10,MATCH($C197,'Efficiency Distributions'!$C$9:$C$87,0)+RIGHT($E204),0))\n/SUM(O$10:O$11)","v":0.12211828466717198},{"$f":"IF(INDEX(PC_MAPPING,RIGHT($C197,1),MATCH($E$2,'Data by Building Type'!$D$22:$F$22,0))=\"Yes\",1,0)*\n(P$10*OFFSET('Efficiency Distributions'!$D$10,MATCH($C197,'Efficiency Distributions'!$C$9:$C$87,0)+RIGHT($E204),0)\n+P$11*OFFSET('Efficiency Distributions'!$E$10,MATCH($C197,'Efficiency Distributions'!$C$9:$C$87,0)+RIGHT($E204),0))\n/SUM(P$10:P$11)","v":0.12229127255850332},{"$f":"IF(INDEX(PC_MAPPING,RIGHT($C197,1),MATCH($E$2,'Data by Building Type'!$D$22:$F$22,0))=\"Yes\",1,0)*\n(Q$10*OFFSET('Efficiency Distributions'!$D$10,MATCH($C197,'Efficiency Distributions'!$C$9:$C$87,0)+RIGHT($E204),0)\n+Q$11*OFFSET('Efficiency Distributions'!$E$10,MATCH($C197,'Efficiency Distributions'!$C$9:$C$87,0)+RIGHT($E204),0))\n/SUM(Q$10:Q$11)","v":0.11701731262357001},{"$f":"IF(INDEX(PC_MAPPING,RIGHT($C197,1),MATCH($E$2,'Data by Building Type'!$D$22:$F$22,0))=\"Yes\",1,0)*\n(R$10*OFFSET('Efficiency Distributions'!$D$10,MATCH($C197,'Efficiency Distributions'!$C$9:$C$87,0)+RIGHT($E204),0)\n+R$11*OFFSET('Efficiency Distributions'!$E$10,MATCH($C197,'Efficiency Distributions'!$C$9:$C$87,0)+RIGHT($E204),0))\n/SUM(R$10:R$11)","v":0.11112254574676496},{"$f":"IF(INDEX(PC_MAPPING,RIGHT($C197,1),MATCH($E$2,'Data by Building Type'!$D$22:$F$22,0))=\"Yes\",1,0)*\n(S$10*OFFSET('Efficiency Distributions'!$D$10,MATCH($C197,'Efficiency Distributions'!$C$9:$C$87,0)+RIGHT($E204),0)\n+S$11*OFFSET('Efficiency Distributions'!$E$10,MATCH($C197,'Efficiency Distributions'!$C$9:$C$87,0)+RIGHT($E204),0))\n/SUM(S$10:S$11)","v":0.105734402420851},{"$f":"IF(INDEX(PC_MAPPING,RIGHT($C197,1),MATCH($E$2,'Data by Building Type'!$D$22:$F$22,0))=\"Yes\",1,0)*\n(T$10*OFFSET('Efficiency Distributions'!$D$10,MATCH($C197,'Efficiency Distributions'!$C$9:$C$87,0)+RIGHT($E204),0)\n+T$11*OFFSET('Efficiency Distributions'!$E$10,MATCH($C197,'Efficiency Distributions'!$C$9:$C$87,0)+RIGHT($E204),0))\n/SUM(T$10:T$11)","v":0.10745961253415197},{"$f":"IF(INDEX(PC_MAPPING,RIGHT($C197,1),MATCH($E$2,'Data by Building Type'!$D$22:$F$22,0))=\"Yes\",1,0)*\n(U$10*OFFSET('Efficiency Distributions'!$D$10,MATCH($C197,'Efficiency Distributions'!$C$9:$C$87,0)+RIGHT($E204),0)\n+U$11*OFFSET('Efficiency Distributions'!$E$10,MATCH($C197,'Efficiency Distributions'!$C$9:$C$87,0)+RIGHT($E204),0))\n/SUM(U$10:U$11)","v":0.11261732144370838},{"$f":"IF(INDEX(PC_MAPPING,RIGHT($C197,1),MATCH($E$2,'Data by Building Type'!$D$22:$F$22,0))=\"Yes\",1,0)*\n(V$10*OFFSET('Efficiency Distributions'!$D$10,MATCH($C197,'Efficiency Distributions'!$C$9:$C$87,0)+RIGHT($E204),0)\n+V$11*OFFSET('Efficiency Distributions'!$E$10,MATCH($C197,'Efficiency Distributions'!$C$9:$C$87,0)+RIGHT($E204),0))\n/SUM(V$10:V$11)","v":0.11244461518640211},{"$f":"IF(INDEX(PC_MAPPING,RIGHT($C197,1),MATCH($E$2,'Data by Building Type'!$D$22:$F$22,0))=\"Yes\",1,0)*\n(W$10*OFFSET('Efficiency Distributions'!$D$10,MATCH($C197,'Efficiency Distributions'!$C$9:$C$87,0)+RIGHT($E204),0)\n+W$11*OFFSET('Efficiency Distributions'!$E$10,MATCH($C197,'Efficiency Distributions'!$C$9:$C$87,0)+RIGHT($E204),0))\n/SUM(W$10:W$11)","v":0.11120125745358365},{"$f":"IF(INDEX(PC_MAPPING,RIGHT($C197,1),MATCH($E$2,'Data by Building Type'!$D$22:$F$22,0))=\"Yes\",1,0)*\n(X$10*OFFSET('Efficiency Distributions'!$D$10,MATCH($C197,'Efficiency Distributions'!$C$9:$C$87,0)+RIGHT($E204),0)\n+X$11*OFFSET('Efficiency Distributions'!$E$10,MATCH($C197,'Efficiency Distributions'!$C$9:$C$87,0)+RIGHT($E204),0))\n/SUM(X$10:X$11)","v":0.11917855106341577},{"$f":"IF(INDEX(PC_MAPPING,RIGHT($C197,1),MATCH($E$2,'Data by Building Type'!$D$22:$F$22,0))=\"Yes\",1,0)*\n(Y$10*OFFSET('Efficiency Distributions'!$D$10,MATCH($C197,'Efficiency Distributions'!$C$9:$C$87,0)+RIGHT($E204),0)\n+Y$11*OFFSET('Efficiency Distributions'!$E$10,MATCH($C197,'Efficiency Distributions'!$C$9:$C$87,0)+RIGHT($E204),0))\n/SUM(Y$10:Y$11)","v":0.13565178340889333},{"$f":"IF(INDEX(PC_MAPPING,RIGHT($C197,1),MATCH($E$2,'Data by Building Type'!$D$22:$F$22,0))=\"Yes\",1,0)*\n(Z$10*OFFSET('Efficiency Distributions'!$D$10,MATCH($C197,'Efficiency Distributions'!$C$9:$C$87,0)+RIGHT($E204),0)\n+Z$11*OFFSET('Efficiency Distributions'!$E$10,MATCH($C197,'Efficiency Distributions'!$C$9:$C$87,0)+RIGHT($E204),0))\n/SUM(Z$10:Z$11)","v":0.14602357107027492},{"$f":"IF(INDEX(PC_MAPPING,RIGHT($C197,1),MATCH($E$2,'Data by Building Type'!$D$22:$F$22,0))=\"Yes\",1,0)*\n(AA$10*OFFSET('Efficiency Distributions'!$D$10,MATCH($C197,'Efficiency Distributions'!$C$9:$C$87,0)+RIGHT($E204),0)\n+AA$11*OFFSET('Efficiency Distributions'!$E$10,MATCH($C197,'Efficiency Distributions'!$C$9:$C$87,0)+RIGHT($E204),0))\n/SUM(AA$10:AA$11)","v":0.16060465301450025},{"$f":"IF(INDEX(PC_MAPPING,RIGHT($C197,1),MATCH($E$2,'Data by Building Type'!$D$22:$F$22,0))=\"Yes\",1,0)*\n(AB$10*OFFSET('Efficiency Distributions'!$D$10,MATCH($C197,'Efficiency Distributions'!$C$9:$C$87,0)+RIGHT($E204),0)\n+AB$11*OFFSET('Efficiency Distributions'!$E$10,MATCH($C197,'Efficiency Distributions'!$C$9:$C$87,0)+RIGHT($E204),0))\n/SUM(AB$10:AB$11)","v":0.16097225839670923},{"$f":"IF(INDEX(PC_MAPPING,RIGHT($C197,1),MATCH($E$2,'Data by Building Type'!$D$22:$F$22,0))=\"Yes\",1,0)*\n(AC$10*OFFSET('Efficiency Distributions'!$D$10,MATCH($C197,'Efficiency Distributions'!$C$9:$C$87,0)+RIGHT($E204),0)\n+AC$11*OFFSET('Efficiency Distributions'!$E$10,MATCH($C197,'Efficiency Distributions'!$C$9:$C$87,0)+RIGHT($E204),0))\n/SUM(AC$10:AC$11)","v":0.16487003924304891},{"$f":"IF(INDEX(PC_MAPPING,RIGHT($C197,1),MATCH($E$2,'Data by Building Type'!$D$22:$F$22,0))=\"Yes\",1,0)*\n(AD$10*OFFSET('Efficiency Distributions'!$D$10,MATCH($C197,'Efficiency Distributions'!$C$9:$C$87,0)+RIGHT($E204),0)\n+AD$11*OFFSET('Efficiency Distributions'!$E$10,MATCH($C197,'Efficiency Distributions'!$C$9:$C$87,0)+RIGHT($E204),0))\n/SUM(AD$10:AD$11)","v":0.16485116521416024},{"$f":"IF(INDEX(PC_MAPPING,RIGHT($C197,1),MATCH($E$2,'Data by Building Type'!$D$22:$F$22,0))=\"Yes\",1,0)*\n(AE$10*OFFSET('Efficiency Distributions'!$D$10,MATCH($C197,'Efficiency Distributions'!$C$9:$C$87,0)+RIGHT($E204),0)\n+AE$11*OFFSET('Efficiency Distributions'!$E$10,MATCH($C197,'Efficiency Distributions'!$C$9:$C$87,0)+RIGHT($E204),0))\n/SUM(AE$10:AE$11)","v":0.16479696040091071},{"$f":"IF(INDEX(PC_MAPPING,RIGHT($C197,1),MATCH($E$2,'Data by Building Type'!$D$22:$F$22,0))=\"Yes\",1,0)*\n(AF$10*OFFSET('Efficiency Distributions'!$D$10,MATCH($C197,'Efficiency Distributions'!$C$9:$C$87,0)+RIGHT($E204),0)\n+AF$11*OFFSET('Efficiency Distributions'!$E$10,MATCH($C197,'Efficiency Distributions'!$C$9:$C$87,0)+RIGHT($E204),0))\n/SUM(AF$10:AF$11)","v":0.15679634806685541},{"$f":"IF(INDEX(PC_MAPPING,RIGHT($C197,1),MATCH($E$2,'Data by Building Type'!$D$22:$F$22,0))=\"Yes\",1,0)*\n(AG$10*OFFSET('Efficiency Distributions'!$D$10,MATCH($C197,'Efficiency Distributions'!$C$9:$C$87,0)+RIGHT($E204),0)\n+AG$11*OFFSET('Efficiency Distributions'!$E$10,MATCH($C197,'Efficiency Distributions'!$C$9:$C$87,0)+RIGHT($E204),0))\n/SUM(AG$10:AG$11)","v":0.15538134812124826},{"$f":"IF(INDEX(PC_MAPPING,RIGHT($C197,1),MATCH($E$2,'Data by Building Type'!$D$22:$F$22,0))=\"Yes\",1,0)*\n(AH$10*OFFSET('Efficiency Distributions'!$D$10,MATCH($C197,'Efficiency Distributions'!$C$9:$C$87,0)+RIGHT($E204),0)\n+AH$11*OFFSET('Efficiency Distributions'!$E$10,MATCH($C197,'Efficiency Distributions'!$C$9:$C$87,0)+RIGHT($E204),0))\n/SUM(AH$10:AH$11)","v":0.15640011572421245},{"$f":"IF(INDEX(PC_MAPPING,RIGHT($C197,1),MATCH($E$2,'Data by Building Type'!$D$22:$F$22,0))=\"Yes\",1,0)*\n(AI$10*OFFSET('Efficiency Distributions'!$D$10,MATCH($C197,'Efficiency Distributions'!$C$9:$C$87,0)+RIGHT($E204),0)\n+AI$11*OFFSET('Efficiency Distributions'!$E$10,MATCH($C197,'Efficiency Distributions'!$C$9:$C$87,0)+RIGHT($E204),0))\n/SUM(AI$10:AI$11)","v":0.15740748812409974},{"$f":"IF(INDEX(PC_MAPPING,RIGHT($C197,1),MATCH($E$2,'Data by Building Type'!$D$22:$F$22,0))=\"Yes\",1,0)*\n(AJ$10*OFFSET('Efficiency Distributions'!$D$10,MATCH($C197,'Efficiency Distributions'!$C$9:$C$87,0)+RIGHT($E204),0)\n+AJ$11*OFFSET('Efficiency Distributions'!$E$10,MATCH($C197,'Efficiency Distributions'!$C$9:$C$87,0)+RIGHT($E204),0))\n/SUM(AJ$10:AJ$11)","v":0.15980411026556471},{"$f":"IF(INDEX(PC_MAPPING,RIGHT($C197,1),MATCH($E$2,'Data by Building Type'!$D$22:$F$22,0))=\"Yes\",1,0)*\n(AK$10*OFFSET('Efficiency Distributions'!$D$10,MATCH($C197,'Efficiency Distributions'!$C$9:$C$87,0)+RIGHT($E204),0)\n+AK$11*OFFSET('Efficiency Distributions'!$E$10,MATCH($C197,'Efficiency Distributions'!$C$9:$C$87,0)+RIGHT($E204),0))\n/SUM(AK$10:AK$11)","v":0.15505023164488124},{"$f":"IF(INDEX(PC_MAPPING,RIGHT($C197,1),MATCH($E$2,'Data by Building Type'!$D$22:$F$22,0))=\"Yes\",1,0)*\n(AL$10*OFFSET('Efficiency Distributions'!$D$10,MATCH($C197,'Efficiency Distributions'!$C$9:$C$87,0)+RIGHT($E204),0)\n+AL$11*OFFSET('Efficiency Distributions'!$E$10,MATCH($C197,'Efficiency Distributions'!$C$9:$C$87,0)+RIGHT($E204),0))\n/SUM(AL$10:AL$11)","v":0.15794494622210406},{"$f":"IF(INDEX(PC_MAPPING,RIGHT($C197,1),MATCH($E$2,'Data by Building Type'!$D$22:$F$22,0))=\"Yes\",1,0)*\n(AM$10*OFFSET('Efficiency Distributions'!$D$10,MATCH($C197,'Efficiency Distributions'!$C$9:$C$87,0)+RIGHT($E204),0)\n+AM$11*OFFSET('Efficiency Distributions'!$E$10,MATCH($C197,'Efficiency Distributions'!$C$9:$C$87,0)+RIGHT($E204),0))\n/SUM(AM$10:AM$11)","v":0.16133162526528852},{"$f":"IF(INDEX(PC_MAPPING,RIGHT($C197,1),MATCH($E$2,'Data by Building Type'!$D$22:$F$22,0))=\"Yes\",1,0)*\n(AN$10*OFFSET('Efficiency Distributions'!$D$10,MATCH($C197,'Efficiency Distributions'!$C$9:$C$87,0)+RIGHT($E204),0)\n+AN$11*OFFSET('Efficiency Distributions'!$E$10,MATCH($C197,'Efficiency Distributions'!$C$9:$C$87,0)+RIGHT($E204),0))\n/SUM(AN$10:AN$11)","v":0.16439503223390881},{"$f":"IF(INDEX(PC_MAPPING,RIGHT($C197,1),MATCH($E$2,'Data by Building Type'!$D$22:$F$22,0))=\"Yes\",1,0)*\n(AO$10*OFFSET('Efficiency Distributions'!$D$10,MATCH($C197,'Efficiency Distributions'!$C$9:$C$87,0)+RIGHT($E204),0)\n+AO$11*OFFSET('Efficiency Distributions'!$E$10,MATCH($C197,'Efficiency Distributions'!$C$9:$C$87,0)+RIGHT($E204),0))\n/SUM(AO$10:AO$11)","v":0.16473134513687371},{"$f":"IF(INDEX(PC_MAPPING,RIGHT($C197,1),MATCH($E$2,'Data by Building Type'!$D$22:$F$22,0))=\"Yes\",1,0)*\n(AP$10*OFFSET('Efficiency Distributions'!$D$10,MATCH($C197,'Efficiency Distributions'!$C$9:$C$87,0)+RIGHT($E204),0)\n+AP$11*OFFSET('Efficiency Distributions'!$E$10,MATCH($C197,'Efficiency Distributions'!$C$9:$C$87,0)+RIGHT($E204),0))\n/SUM(AP$10:AP$11)","v":0.1636372230005847},{"$f":"IF(INDEX(PC_MAPPING,RIGHT($C197,1),MATCH($E$2,'Data by Building Type'!$D$22:$F$22,0))=\"Yes\",1,0)*\n(AQ$10*OFFSET('Efficiency Distributions'!$D$10,MATCH($C197,'Efficiency Distributions'!$C$9:$C$87,0)+RIGHT($E204),0)\n+AQ$11*OFFSET('Efficiency Distributions'!$E$10,MATCH($C197,'Efficiency Distributions'!$C$9:$C$87,0)+RIGHT($E204),0))\n/SUM(AQ$10:AQ$11)","v":0.16379466563047387},{"$f":"IF(INDEX(PC_MAPPING,RIGHT($C197,1),MATCH($E$2,'Data by Building Type'!$D$22:$F$22,0))=\"Yes\",1,0)*\n(AR$10*OFFSET('Efficiency Distributions'!$D$10,MATCH($C197,'Efficiency Distributions'!$C$9:$C$87,0)+RIGHT($E204),0)\n+AR$11*OFFSET('Efficiency Distributions'!$E$10,MATCH($C197,'Efficiency Distributions'!$C$9:$C$87,0)+RIGHT($E204),0))\n/SUM(AR$10:AR$11)","v":0.16384135001910341},{"$f":"IF(INDEX(PC_MAPPING,RIGHT($C197,1),MATCH($E$2,'Data by Building Type'!$D$22:$F$22,0))=\"Yes\",1,0)*\n(AS$10*OFFSET('Efficiency Distributions'!$D$10,MATCH($C197,'Efficiency Distributions'!$C$9:$C$87,0)+RIGHT($E204),0)\n+AS$11*OFFSET('Efficiency Distributions'!$E$10,MATCH($C197,'Efficiency Distributions'!$C$9:$C$87,0)+RIGHT($E204),0))\n/SUM(AS$10:AS$11)","v":0.16064745947431169},{"$f":"IF(INDEX(PC_MAPPING,RIGHT($C197,1),MATCH($E$2,'Data by Building Type'!$D$22:$F$22,0))=\"Yes\",1,0)*\n(AT$10*OFFSET('Efficiency Distributions'!$D$10,MATCH($C197,'Efficiency Distributions'!$C$9:$C$87,0)+RIGHT($E204),0)\n+AT$11*OFFSET('Efficiency Distributions'!$E$10,MATCH($C197,'Efficiency Distributions'!$C$9:$C$87,0)+RIGHT($E204),0))\n/SUM(AT$10:AT$11)","v":0.15474025465863414},{"$f":"IF(INDEX(PC_MAPPING,RIGHT($C197,1),MATCH($E$2,'Data by Building Type'!$D$22:$F$22,0))=\"Yes\",1,0)*\n(AU$10*OFFSET('Efficiency Distributions'!$D$10,MATCH($C197,'Efficiency Distributions'!$C$9:$C$87,0)+RIGHT($E204),0)\n+AU$11*OFFSET('Efficiency Distributions'!$E$10,MATCH($C197,'Efficiency Distributions'!$C$9:$C$87,0)+RIGHT($E204),0))\n/SUM(AU$10:AU$11)","v":0.15075586005414282},{"$f":"IF(INDEX(PC_MAPPING,RIGHT($C197,1),MATCH($E$2,'Data by Building Type'!$D$22:$F$22,0))=\"Yes\",1,0)*\n(AV$10*OFFSET('Efficiency Distributions'!$D$10,MATCH($C197,'Efficiency Distributions'!$C$9:$C$87,0)+RIGHT($E204),0)\n+AV$11*OFFSET('Efficiency Distributions'!$E$10,MATCH($C197,'Efficiency Distributions'!$C$9:$C$87,0)+RIGHT($E204),0))\n/SUM(AV$10:AV$11)","v":0.16106681446360865},{"$f":"IF(INDEX(PC_MAPPING,RIGHT($C197,1),MATCH($E$2,'Data by Building Type'!$D$22:$F$22,0))=\"Yes\",1,0)*\n(AW$10*OFFSET('Efficiency Distributions'!$D$10,MATCH($C197,'Efficiency Distributions'!$C$9:$C$87,0)+RIGHT($E204),0)\n+AW$11*OFFSET('Efficiency Distributions'!$E$10,MATCH($C197,'Efficiency Distributions'!$C$9:$C$87,0)+RIGHT($E204),0))\n/SUM(AW$10:AW$11)","v":0.15864281168208205},{"$f":"IF(INDEX(PC_MAPPING,RIGHT($C197,1),MATCH($E$2,'Data by Building Type'!$D$22:$F$22,0))=\"Yes\",1,0)*\n(AX$10*OFFSET('Efficiency Distributions'!$D$10,MATCH($C197,'Efficiency Distributions'!$C$9:$C$87,0)+RIGHT($E204),0)\n+AX$11*OFFSET('Efficiency Distributions'!$E$10,MATCH($C197,'Efficiency Distributions'!$C$9:$C$87,0)+RIGHT($E204),0))\n/SUM(AX$10:AX$11)","v":0.16102290934704366},{"$f":"IF(INDEX(PC_MAPPING,RIGHT($C197,1),MATCH($E$2,'Data by Building Type'!$D$22:$F$22,0))=\"Yes\",1,0)*\n(AY$10*OFFSET('Efficiency Distributions'!$D$10,MATCH($C197,'Efficiency Distributions'!$C$9:$C$87,0)+RIGHT($E204),0)\n+AY$11*OFFSET('Efficiency Distributions'!$E$10,MATCH($C197,'Efficiency Distributions'!$C$9:$C$87,0)+RIGHT($E204),0))\n/SUM(AY$10:AY$11)","v":0.16121789035520753},{"$f":"IF(INDEX(PC_MAPPING,RIGHT($C197,1),MATCH($E$2,'Data by Building Type'!$D$22:$F$22,0))=\"Yes\",1,0)*\n(AZ$10*OFFSET('Efficiency Distributions'!$D$10,MATCH($C197,'Efficiency Distributions'!$C$9:$C$87,0)+RIGHT($E204),0)\n+AZ$11*OFFSET('Efficiency Distributions'!$E$10,MATCH($C197,'Efficiency Distributions'!$C$9:$C$87,0)+RIGHT($E204),0))\n/SUM(AZ$10:AZ$11)","v":0.1603386887951728},{"$f":"IF(INDEX(PC_MAPPING,RIGHT($C197,1),MATCH($E$2,'Data by Building Type'!$D$22:$F$22,0))=\"Yes\",1,0)*\n(BA$10*OFFSET('Efficiency Distributions'!$D$10,MATCH($C197,'Efficiency Distributions'!$C$9:$C$87,0)+RIGHT($E204),0)\n+BA$11*OFFSET('Efficiency Distributions'!$E$10,MATCH($C197,'Efficiency Distributions'!$C$9:$C$87,0)+RIGHT($E204),0))\n/SUM(BA$10:BA$11)","v":0.16116464711373363},{"$f":"IF(INDEX(PC_MAPPING,RIGHT($C197,1),MATCH($E$2,'Data by Building Type'!$D$22:$F$22,0))=\"Yes\",1,0)*\n(BB$10*OFFSET('Efficiency Distributions'!$D$10,MATCH($C197,'Efficiency Distributions'!$C$9:$C$87,0)+RIGHT($E204),0)\n+BB$11*OFFSET('Efficiency Distributions'!$E$10,MATCH($C197,'Efficiency Distributions'!$C$9:$C$87,0)+RIGHT($E204),0))\n/SUM(BB$10:BB$11)","v":0.16202533079132492},{"$f":"IF(INDEX(PC_MAPPING,RIGHT($C197,1),MATCH($E$2,'Data by Building Type'!$D$22:$F$22,0))=\"Yes\",1,0)*\n(BC$10*OFFSET('Efficiency Distributions'!$D$10,MATCH($C197,'Efficiency Distributions'!$C$9:$C$87,0)+RIGHT($E204),0)\n+BC$11*OFFSET('Efficiency Distributions'!$E$10,MATCH($C197,'Efficiency Distributions'!$C$9:$C$87,0)+RIGHT($E204),0))\n/SUM(BC$10:BC$11)","v":0.16382518167183474},{"$f":"IF(INDEX(PC_MAPPING,RIGHT($C197,1),MATCH($E$2,'Data by Building Type'!$D$22:$F$22,0))=\"Yes\",1,0)*\n(BD$10*OFFSET('Efficiency Distributions'!$D$10,MATCH($C197,'Efficiency Distributions'!$C$9:$C$87,0)+RIGHT($E204),0)\n+BD$11*OFFSET('Efficiency Distributions'!$E$10,MATCH($C197,'Efficiency Distributions'!$C$9:$C$87,0)+RIGHT($E204),0))\n/SUM(BD$10:BD$11)","v":0.16423323257025438},{"$f":"IF(INDEX(PC_MAPPING,RIGHT($C197,1),MATCH($E$2,'Data by Building Type'!$D$22:$F$22,0))=\"Yes\",1,0)*\n(BE$10*OFFSET('Efficiency Distributions'!$D$10,MATCH($C197,'Efficiency Distributions'!$C$9:$C$87,0)+RIGHT($E204),0)\n+BE$11*OFFSET('Efficiency Distributions'!$E$10,MATCH($C197,'Efficiency Distributions'!$C$9:$C$87,0)+RIGHT($E204),0))\n/SUM(BE$10:BE$11)","v":0.16512456838178113},{"$f":"IF(INDEX(PC_MAPPING,RIGHT($C197,1),MATCH($E$2,'Data by Building Type'!$D$22:$F$22,0))=\"Yes\",1,0)*\n(BF$10*OFFSET('Efficiency Distributions'!$D$10,MATCH($C197,'Efficiency Distributions'!$C$9:$C$87,0)+RIGHT($E204),0)\n+BF$11*OFFSET('Efficiency Distributions'!$E$10,MATCH($C197,'Efficiency Distributions'!$C$9:$C$87,0)+RIGHT($E204),0))\n/SUM(BF$10:BF$11)","v":0.16571098000610318},{"$f":"IF(INDEX(PC_MAPPING,RIGHT($C197,1),MATCH($E$2,'Data by Building Type'!$D$22:$F$22,0))=\"Yes\",1,0)*\n(BG$10*OFFSET('Efficiency Distributions'!$D$10,MATCH($C197,'Efficiency Distributions'!$C$9:$C$87,0)+RIGHT($E204),0)\n+BG$11*OFFSET('Efficiency Distributions'!$E$10,MATCH($C197,'Efficiency Distributions'!$C$9:$C$87,0)+RIGHT($E204),0))\n/SUM(BG$10:BG$11)","v":0.1664052598269477}]
[null,null,null,null,"EL4",{"$f":"IF(INDEX(PC_MAPPING,RIGHT($C197,1),MATCH($E$2,'Data by Building Type'!$D$22:$F$22,0))=\"Yes\",1,0)*\n(F$10*OFFSET('Efficiency Distributions'!$D$10,MATCH($C197,'Efficiency Distributions'!$C$9:$C$87,0)+RIGHT($E205),0)\n+F$11*OFFSET('Efficiency Distributions'!$E$10,MATCH($C197,'Efficiency Distributions'!$C$9:$C$87,0)+RIGHT($E205),0))\n/SUM(F$10:F$11)","v":0},{"$f":"IF(INDEX(PC_MAPPING,RIGHT($C197,1),MATCH($E$2,'Data by Building Type'!$D$22:$F$22,0))=\"Yes\",1,0)*\n(G$10*OFFSET('Efficiency Distributions'!$D$10,MATCH($C197,'Efficiency Distributions'!$C$9:$C$87,0)+RIGHT($E205),0)\n+G$11*OFFSET('Efficiency Distributions'!$E$10,MATCH($C197,'Efficiency Distributions'!$C$9:$C$87,0)+RIGHT($E205),0))\n/SUM(G$10:G$11)","v":0},{"$f":"IF(INDEX(PC_MAPPING,RIGHT($C197,1),MATCH($E$2,'Data by Building Type'!$D$22:$F$22,0))=\"Yes\",1,0)*\n(H$10*OFFSET('Efficiency Distributions'!$D$10,MATCH($C197,'Efficiency Distributions'!$C$9:$C$87,0)+RIGHT($E205),0)\n+H$11*OFFSET('Efficiency Distributions'!$E$10,MATCH($C197,'Efficiency Distributions'!$C$9:$C$87,0)+RIGHT($E205),0))\n/SUM(H$10:H$11)","v":0},{"$f":"IF(INDEX(PC_MAPPING,RIGHT($C197,1),MATCH($E$2,'Data by Building Type'!$D$22:$F$22,0))=\"Yes\",1,0)*\n(I$10*OFFSET('Efficiency Distributions'!$D$10,MATCH($C197,'Efficiency Distributions'!$C$9:$C$87,0)+RIGHT($E205),0)\n+I$11*OFFSET('Efficiency Distributions'!$E$10,MATCH($C197,'Efficiency Distributions'!$C$9:$C$87,0)+RIGHT($E205),0))\n/SUM(I$10:I$11)","v":0},{"$f":"IF(INDEX(PC_MAPPING,RIGHT($C197,1),MATCH($E$2,'Data by Building Type'!$D$22:$F$22,0))=\"Yes\",1,0)*\n(J$10*OFFSET('Efficiency Distributions'!$D$10,MATCH($C197,'Efficiency Distributions'!$C$9:$C$87,0)+RIGHT($E205),0)\n+J$11*OFFSET('Efficiency Distributions'!$E$10,MATCH($C197,'Efficiency Distributions'!$C$9:$C$87,0)+RIGHT($E205),0))\n/SUM(J$10:J$11)","v":0},{"$f":"IF(INDEX(PC_MAPPING,RIGHT($C197,1),MATCH($E$2,'Data by Building Type'!$D$22:$F$22,0))=\"Yes\",1,0)*\n(K$10*OFFSET('Efficiency Distributions'!$D$10,MATCH($C197,'Efficiency Distributions'!$C$9:$C$87,0)+RIGHT($E205),0)\n+K$11*OFFSET('Efficiency Distributions'!$E$10,MATCH($C197,'Efficiency Distributions'!$C$9:$C$87,0)+RIGHT($E205),0))\n/SUM(K$10:K$11)","v":0},{"$f":"IF(INDEX(PC_MAPPING,RIGHT($C197,1),MATCH($E$2,'Data by Building Type'!$D$22:$F$22,0))=\"Yes\",1,0)*\n(L$10*OFFSET('Efficiency Distributions'!$D$10,MATCH($C197,'Efficiency Distributions'!$C$9:$C$87,0)+RIGHT($E205),0)\n+L$11*OFFSET('Efficiency Distributions'!$E$10,MATCH($C197,'Efficiency Distributions'!$C$9:$C$87,0)+RIGHT($E205),0))\n/SUM(L$10:L$11)","v":0},{"$f":"IF(INDEX(PC_MAPPING,RIGHT($C197,1),MATCH($E$2,'Data by Building Type'!$D$22:$F$22,0))=\"Yes\",1,0)*\n(M$10*OFFSET('Efficiency Distributions'!$D$10,MATCH($C197,'Efficiency Distributions'!$C$9:$C$87,0)+RIGHT($E205),0)\n+M$11*OFFSET('Efficiency Distributions'!$E$10,MATCH($C197,'Efficiency Distributions'!$C$9:$C$87,0)+RIGHT($E205),0))\n/SUM(M$10:M$11)","v":0},{"$f":"IF(INDEX(PC_MAPPING,RIGHT($C197,1),MATCH($E$2,'Data by Building Type'!$D$22:$F$22,0))=\"Yes\",1,0)*\n(N$10*OFFSET('Efficiency Distributions'!$D$10,MATCH($C197,'Efficiency Distributions'!$C$9:$C$87,0)+RIGHT($E205),0)\n+N$11*OFFSET('Efficiency Distributions'!$E$10,MATCH($C197,'Efficiency Distributions'!$C$9:$C$87,0)+RIGHT($E205),0))\n/SUM(N$10:N$11)","v":0},{"$f":"IF(INDEX(PC_MAPPING,RIGHT($C197,1),MATCH($E$2,'Data by Building Type'!$D$22:$F$22,0))=\"Yes\",1,0)*\n(O$10*OFFSET('Efficiency Distributions'!$D$10,MATCH($C197,'Efficiency Distributions'!$C$9:$C$87,0)+RIGHT($E205),0)\n+O$11*OFFSET('Efficiency Distributions'!$E$10,MATCH($C197,'Efficiency Distributions'!$C$9:$C$87,0)+RIGHT($E205),0))\n/SUM(O$10:O$11)","v":0},{"$f":"IF(INDEX(PC_MAPPING,RIGHT($C197,1),MATCH($E$2,'Data by Building Type'!$D$22:$F$22,0))=\"Yes\",1,0)*\n(P$10*OFFSET('Efficiency Distributions'!$D$10,MATCH($C197,'Efficiency Distributions'!$C$9:$C$87,0)+RIGHT($E205),0)\n+P$11*OFFSET('Efficiency Distributions'!$E$10,MATCH($C197,'Efficiency Distributions'!$C$9:$C$87,0)+RIGHT($E205),0))\n/SUM(P$10:P$11)","v":0},{"$f":"IF(INDEX(PC_MAPPING,RIGHT($C197,1),MATCH($E$2,'Data by Building Type'!$D$22:$F$22,0))=\"Yes\",1,0)*\n(Q$10*OFFSET('Efficiency Distributions'!$D$10,MATCH($C197,'Efficiency Distributions'!$C$9:$C$87,0)+RIGHT($E205),0)\n+Q$11*OFFSET('Efficiency Distributions'!$E$10,MATCH($C197,'Efficiency Distributions'!$C$9:$C$87,0)+RIGHT($E205),0))\n/SUM(Q$10:Q$11)","v":0},{"$f":"IF(INDEX(PC_MAPPING,RIGHT($C197,1),MATCH($E$2,'Data by Building Type'!$D$22:$F$22,0))=\"Yes\",1,0)*\n(R$10*OFFSET('Efficiency Distributions'!$D$10,MATCH($C197,'Efficiency Distributions'!$C$9:$C$87,0)+RIGHT($E205),0)\n+R$11*OFFSET('Efficiency Distributions'!$E$10,MATCH($C197,'Efficiency Distributions'!$C$9:$C$87,0)+RIGHT($E205),0))\n/SUM(R$10:R$11)","v":0},{"$f":"IF(INDEX(PC_MAPPING,RIGHT($C197,1),MATCH($E$2,'Data by Building Type'!$D$22:$F$22,0))=\"Yes\",1,0)*\n(S$10*OFFSET('Efficiency Distributions'!$D$10,MATCH($C197,'Efficiency Distributions'!$C$9:$C$87,0)+RIGHT($E205),0)\n+S$11*OFFSET('Efficiency Distributions'!$E$10,MATCH($C197,'Efficiency Distributions'!$C$9:$C$87,0)+RIGHT($E205),0))\n/SUM(S$10:S$11)","v":0},{"$f":"IF(INDEX(PC_MAPPING,RIGHT($C197,1),MATCH($E$2,'Data by Building Type'!$D$22:$F$22,0))=\"Yes\",1,0)*\n(T$10*OFFSET('Efficiency Distributions'!$D$10,MATCH($C197,'Efficiency Distributions'!$C$9:$C$87,0)+RIGHT($E205),0)\n+T$11*OFFSET('Efficiency Distributions'!$E$10,MATCH($C197,'Efficiency Distributions'!$C$9:$C$87,0)+RIGHT($E205),0))\n/SUM(T$10:T$11)","v":0},{"$f":"IF(INDEX(PC_MAPPING,RIGHT($C197,1),MATCH($E$2,'Data by Building Type'!$D$22:$F$22,0))=\"Yes\",1,0)*\n(U$10*OFFSET('Efficiency Distributions'!$D$10,MATCH($C197,'Efficiency Distributions'!$C$9:$C$87,0)+RIGHT($E205),0)\n+U$11*OFFSET('Efficiency Distributions'!$E$10,MATCH($C197,'Efficiency Distributions'!$C$9:$C$87,0)+RIGHT($E205),0))\n/SUM(U$10:U$11)","v":0},{"$f":"IF(INDEX(PC_MAPPING,RIGHT($C197,1),MATCH($E$2,'Data by Building Type'!$D$22:$F$22,0))=\"Yes\",1,0)*\n(V$10*OFFSET('Efficiency Distributions'!$D$10,MATCH($C197,'Efficiency Distributions'!$C$9:$C$87,0)+RIGHT($E205),0)\n+V$11*OFFSET('Efficiency Distributions'!$E$10,MATCH($C197,'Efficiency Distributions'!$C$9:$C$87,0)+RIGHT($E205),0))\n/SUM(V$10:V$11)","v":0},{"$f":"IF(INDEX(PC_MAPPING,RIGHT($C197,1),MATCH($E$2,'Data by Building Type'!$D$22:$F$22,0))=\"Yes\",1,0)*\n(W$10*OFFSET('Efficiency Distributions'!$D$10,MATCH($C197,'Efficiency Distributions'!$C$9:$C$87,0)+RIGHT($E205),0)\n+W$11*OFFSET('Efficiency Distributions'!$E$10,MATCH($C197,'Efficiency Distributions'!$C$9:$C$87,0)+RIGHT($E205),0))\n/SUM(W$10:W$11)","v":0},{"$f":"IF(INDEX(PC_MAPPING,RIGHT($C197,1),MATCH($E$2,'Data by Building Type'!$D$22:$F$22,0))=\"Yes\",1,0)*\n(X$10*OFFSET('Efficiency Distributions'!$D$10,MATCH($C197,'Efficiency Distributions'!$C$9:$C$87,0)+RIGHT($E205),0)\n+X$11*OFFSET('Efficiency Distributions'!$E$10,MATCH($C197,'Efficiency Distributions'!$C$9:$C$87,0)+RIGHT($E205),0))\n/SUM(X$10:X$11)","v":0},{"$f":"IF(INDEX(PC_MAPPING,RIGHT($C197,1),MATCH($E$2,'Data by Building Type'!$D$22:$F$22,0))=\"Yes\",1,0)*\n(Y$10*OFFSET('Efficiency Distributions'!$D$10,MATCH($C197,'Efficiency Distributions'!$C$9:$C$87,0)+RIGHT($E205),0)\n+Y$11*OFFSET('Efficiency Distributions'!$E$10,MATCH($C197,'Efficiency Distributions'!$C$9:$C$87,0)+RIGHT($E205),0))\n/SUM(Y$10:Y$11)","v":0},{"$f":"IF(INDEX(PC_MAPPING,RIGHT($C197,1),MATCH($E$2,'Data by Building Type'!$D$22:$F$22,0))=\"Yes\",1,0)*\n(Z$10*OFFSET('Efficiency Distributions'!$D$10,MATCH($C197,'Efficiency Distributions'!$C$9:$C$87,0)+RIGHT($E205),0)\n+Z$11*OFFSET('Efficiency Distributions'!$E$10,MATCH($C197,'Efficiency Distributions'!$C$9:$C$87,0)+RIGHT($E205),0))\n/SUM(Z$10:Z$11)","v":0},{"$f":"IF(INDEX(PC_MAPPING,RIGHT($C197,1),MATCH($E$2,'Data by Building Type'!$D$22:$F$22,0))=\"Yes\",1,0)*\n(AA$10*OFFSET('Efficiency Distributions'!$D$10,MATCH($C197,'Efficiency Distributions'!$C$9:$C$87,0)+RIGHT($E205),0)\n+AA$11*OFFSET('Efficiency Distributions'!$E$10,MATCH($C197,'Efficiency Distributions'!$C$9:$C$87,0)+RIGHT($E205),0))\n/SUM(AA$10:AA$11)","v":0},{"$f":"IF(INDEX(PC_MAPPING,RIGHT($C197,1),MATCH($E$2,'Data by Building Type'!$D$22:$F$22,0))=\"Yes\",1,0)*\n(AB$10*OFFSET('Efficiency Distributions'!$D$10,MATCH($C197,'Efficiency Distributions'!$C$9:$C$87,0)+RIGHT($E205),0)\n+AB$11*OFFSET('Efficiency Distributions'!$E$10,MATCH($C197,'Efficiency Distributions'!$C$9:$C$87,0)+RIGHT($E205),0))\n/SUM(AB$10:AB$11)","v":0},{"$f":"IF(INDEX(PC_MAPPING,RIGHT($C197,1),MATCH($E$2,'Data by Building Type'!$D$22:$F$22,0))=\"Yes\",1,0)*\n(AC$10*OFFSET('Efficiency Distributions'!$D$10,MATCH($C197,'Efficiency Distributions'!$C$9:$C$87,0)+RIGHT($E205),0)\n+AC$11*OFFSET('Efficiency Distributions'!$E$10,MATCH($C197,'Efficiency Distributions'!$C$9:$C$87,0)+RIGHT($E205),0))\n/SUM(AC$10:AC$11)","v":0},{"$f":"IF(INDEX(PC_MAPPING,RIGHT($C197,1),MATCH($E$2,'Data by Building Type'!$D$22:$F$22,0))=\"Yes\",1,0)*\n(AD$10*OFFSET('Efficiency Distributions'!$D$10,MATCH($C197,'Efficiency Distributions'!$C$9:$C$87,0)+RIGHT($E205),0)\n+AD$11*OFFSET('Efficiency Distributions'!$E$10,MATCH($C197,'Efficiency Distributions'!$C$9:$C$87,0)+RIGHT($E205),0))\n/SUM(AD$10:AD$11)","v":0},{"$f":"IF(INDEX(PC_MAPPING,RIGHT($C197,1),MATCH($E$2,'Data by Building Type'!$D$22:$F$22,0))=\"Yes\",1,0)*\n(AE$10*OFFSET('Efficiency Distributions'!$D$10,MATCH($C197,'Efficiency Distributions'!$C$9:$C$87,0)+RIGHT($E205),0)\n+AE$11*OFFSET('Efficiency Distributions'!$E$10,MATCH($C197,'Efficiency Distributions'!$C$9:$C$87,0)+RIGHT($E205),0))\n/SUM(AE$10:AE$11)","v":0},{"$f":"IF(INDEX(PC_MAPPING,RIGHT($C197,1),MATCH($E$2,'Data by Building Type'!$D$22:$F$22,0))=\"Yes\",1,0)*\n(AF$10*OFFSET('Efficiency Distributions'!$D$10,MATCH($C197,'Efficiency Distributions'!$C$9:$C$87,0)+RIGHT($E205),0)\n+AF$11*OFFSET('Efficiency Distributions'!$E$10,MATCH($C197,'Efficiency Distributions'!$C$9:$C$87,0)+RIGHT($E205),0))\n/SUM(AF$10:AF$11)","v":0},{"$f":"IF(INDEX(PC_MAPPING,RIGHT($C197,1),MATCH($E$2,'Data by Building Type'!$D$22:$F$22,0))=\"Yes\",1,0)*\n(AG$10*OFFSET('Efficiency Distributions'!$D$10,MATCH($C197,'Efficiency Distributions'!$C$9:$C$87,0)+RIGHT($E205),0)\n+AG$11*OFFSET('Efficiency Distributions'!$E$10,MATCH($C197,'Efficiency Distributions'!$C$9:$C$87,0)+RIGHT($E205),0))\n/SUM(AG$10:AG$11)","v":0},{"$f":"IF(INDEX(PC_MAPPING,RIGHT($C197,1),MATCH($E$2,'Data by Building Type'!$D$22:$F$22,0))=\"Yes\",1,0)*\n(AH$10*OFFSET('Efficiency Distributions'!$D$10,MATCH($C197,'Efficiency Distributions'!$C$9:$C$87,0)+RIGHT($E205),0)\n+AH$11*OFFSET('Efficiency Distributions'!$E$10,MATCH($C197,'Efficiency Distributions'!$C$9:$C$87,0)+RIGHT($E205),0))\n/SUM(AH$10:AH$11)","v":0},{"$f":"IF(INDEX(PC_MAPPING,RIGHT($C197,1),MATCH($E$2,'Data by Building Type'!$D$22:$F$22,0))=\"Yes\",1,0)*\n(AI$10*OFFSET('Efficiency Distributions'!$D$10,MATCH($C197,'Efficiency Distributions'!$C$9:$C$87,0)+RIGHT($E205),0)\n+AI$11*OFFSET('Efficiency Distributions'!$E$10,MATCH($C197,'Efficiency Distributions'!$C$9:$C$87,0)+RIGHT($E205),0))\n/SUM(AI$10:AI$11)","v":0},{"$f":"IF(INDEX(PC_MAPPING,RIGHT($C197,1),MATCH($E$2,'Data by Building Type'!$D$22:$F$22,0))=\"Yes\",1,0)*\n(AJ$10*OFFSET('Efficiency Distributions'!$D$10,MATCH($C197,'Efficiency Distributions'!$C$9:$C$87,0)+RIGHT($E205),0)\n+AJ$11*OFFSET('Efficiency Distributions'!$E$10,MATCH($C197,'Efficiency Distributions'!$C$9:$C$87,0)+RIGHT($E205),0))\n/SUM(AJ$10:AJ$11)","v":0},{"$f":"IF(INDEX(PC_MAPPING,RIGHT($C197,1),MATCH($E$2,'Data by Building Type'!$D$22:$F$22,0))=\"Yes\",1,0)*\n(AK$10*OFFSET('Efficiency Distributions'!$D$10,MATCH($C197,'Efficiency Distributions'!$C$9:$C$87,0)+RIGHT($E205),0)\n+AK$11*OFFSET('Efficiency Distributions'!$E$10,MATCH($C197,'Efficiency Distributions'!$C$9:$C$87,0)+RIGHT($E205),0))\n/SUM(AK$10:AK$11)","v":0},{"$f":"IF(INDEX(PC_MAPPING,RIGHT($C197,1),MATCH($E$2,'Data by Building Type'!$D$22:$F$22,0))=\"Yes\",1,0)*\n(AL$10*OFFSET('Efficiency Distributions'!$D$10,MATCH($C197,'Efficiency Distributions'!$C$9:$C$87,0)+RIGHT($E205),0)\n+AL$11*OFFSET('Efficiency Distributions'!$E$10,MATCH($C197,'Efficiency Distributions'!$C$9:$C$87,0)+RIGHT($E205),0))\n/SUM(AL$10:AL$11)","v":0},{"$f":"IF(INDEX(PC_MAPPING,RIGHT($C197,1),MATCH($E$2,'Data by Building Type'!$D$22:$F$22,0))=\"Yes\",1,0)*\n(AM$10*OFFSET('Efficiency Distributions'!$D$10,MATCH($C197,'Efficiency Distributions'!$C$9:$C$87,0)+RIGHT($E205),0)\n+AM$11*OFFSET('Efficiency Distributions'!$E$10,MATCH($C197,'Efficiency Distributions'!$C$9:$C$87,0)+RIGHT($E205),0))\n/SUM(AM$10:AM$11)","v":0},{"$f":"IF(INDEX(PC_MAPPING,RIGHT($C197,1),MATCH($E$2,'Data by Building Type'!$D$22:$F$22,0))=\"Yes\",1,0)*\n(AN$10*OFFSET('Efficiency Distributions'!$D$10,MATCH($C197,'Efficiency Distributions'!$C$9:$C$87,0)+RIGHT($E205),0)\n+AN$11*OFFSET('Efficiency Distributions'!$E$10,MATCH($C197,'Efficiency Distributions'!$C$9:$C$87,0)+RIGHT($E205),0))\n/SUM(AN$10:AN$11)","v":0},{"$f":"IF(INDEX(PC_MAPPING,RIGHT($C197,1),MATCH($E$2,'Data by Building Type'!$D$22:$F$22,0))=\"Yes\",1,0)*\n(AO$10*OFFSET('Efficiency Distributions'!$D$10,MATCH($C197,'Efficiency Distributions'!$C$9:$C$87,0)+RIGHT($E205),0)\n+AO$11*OFFSET('Efficiency Distributions'!$E$10,MATCH($C197,'Efficiency Distributions'!$C$9:$C$87,0)+RIGHT($E205),0))\n/SUM(AO$10:AO$11)","v":0},{"$f":"IF(INDEX(PC_MAPPING,RIGHT($C197,1),MATCH($E$2,'Data by Building Type'!$D$22:$F$22,0))=\"Yes\",1,0)*\n(AP$10*OFFSET('Efficiency Distributions'!$D$10,MATCH($C197,'Efficiency Distributions'!$C$9:$C$87,0)+RIGHT($E205),0)\n+AP$11*OFFSET('Efficiency Distributions'!$E$10,MATCH($C197,'Efficiency Distributions'!$C$9:$C$87,0)+RIGHT($E205),0))\n/SUM(AP$10:AP$11)","v":0},{"$f":"IF(INDEX(PC_MAPPING,RIGHT($C197,1),MATCH($E$2,'Data by Building Type'!$D$22:$F$22,0))=\"Yes\",1,0)*\n(AQ$10*OFFSET('Efficiency Distributions'!$D$10,MATCH($C197,'Efficiency Distributions'!$C$9:$C$87,0)+RIGHT($E205),0)\n+AQ$11*OFFSET('Efficiency Distributions'!$E$10,MATCH($C197,'Efficiency Distributions'!$C$9:$C$87,0)+RIGHT($E205),0))\n/SUM(AQ$10:AQ$11)","v":0},{"$f":"IF(INDEX(PC_MAPPING,RIGHT($C197,1),MATCH($E$2,'Data by Building Type'!$D$22:$F$22,0))=\"Yes\",1,0)*\n(AR$10*OFFSET('Efficiency Distributions'!$D$10,MATCH($C197,'Efficiency Distributions'!$C$9:$C$87,0)+RIGHT($E205),0)\n+AR$11*OFFSET('Efficiency Distributions'!$E$10,MATCH($C197,'Efficiency Distributions'!$C$9:$C$87,0)+RIGHT($E205),0))\n/SUM(AR$10:AR$11)","v":0},{"$f":"IF(INDEX(PC_MAPPING,RIGHT($C197,1),MATCH($E$2,'Data by Building Type'!$D$22:$F$22,0))=\"Yes\",1,0)*\n(AS$10*OFFSET('Efficiency Distributions'!$D$10,MATCH($C197,'Efficiency Distributions'!$C$9:$C$87,0)+RIGHT($E205),0)\n+AS$11*OFFSET('Efficiency Distributions'!$E$10,MATCH($C197,'Efficiency Distributions'!$C$9:$C$87,0)+RIGHT($E205),0))\n/SUM(AS$10:AS$11)","v":0},{"$f":"IF(INDEX(PC_MAPPING,RIGHT($C197,1),MATCH($E$2,'Data by Building Type'!$D$22:$F$22,0))=\"Yes\",1,0)*\n(AT$10*OFFSET('Efficiency Distributions'!$D$10,MATCH($C197,'Efficiency Distributions'!$C$9:$C$87,0)+RIGHT($E205),0)\n+AT$11*OFFSET('Efficiency Distributions'!$E$10,MATCH($C197,'Efficiency Distributions'!$C$9:$C$87,0)+RIGHT($E205),0))\n/SUM(AT$10:AT$11)","v":0},{"$f":"IF(INDEX(PC_MAPPING,RIGHT($C197,1),MATCH($E$2,'Data by Building Type'!$D$22:$F$22,0))=\"Yes\",1,0)*\n(AU$10*OFFSET('Efficiency Distributions'!$D$10,MATCH($C197,'Efficiency Distributions'!$C$9:$C$87,0)+RIGHT($E205),0)\n+AU$11*OFFSET('Efficiency Distributions'!$E$10,MATCH($C197,'Efficiency Distributions'!$C$9:$C$87,0)+RIGHT($E205),0))\n/SUM(AU$10:AU$11)","v":0},{"$f":"IF(INDEX(PC_MAPPING,RIGHT($C197,1),MATCH($E$2,'Data by Building Type'!$D$22:$F$22,0))=\"Yes\",1,0)*\n(AV$10*OFFSET('Efficiency Distributions'!$D$10,MATCH($C197,'Efficiency Distributions'!$C$9:$C$87,0)+RIGHT($E205),0)\n+AV$11*OFFSET('Efficiency Distributions'!$E$10,MATCH($C197,'Efficiency Distributions'!$C$9:$C$87,0)+RIGHT($E205),0))\n/SUM(AV$10:AV$11)","v":0},{"$f":"IF(INDEX(PC_MAPPING,RIGHT($C197,1),MATCH($E$2,'Data by Building Type'!$D$22:$F$22,0))=\"Yes\",1,0)*\n(AW$10*OFFSET('Efficiency Distributions'!$D$10,MATCH($C197,'Efficiency Distributions'!$C$9:$C$87,0)+RIGHT($E205),0)\n+AW$11*OFFSET('Efficiency Distributions'!$E$10,MATCH($C197,'Efficiency Distributions'!$C$9:$C$87,0)+RIGHT($E205),0))\n/SUM(AW$10:AW$11)","v":0},{"$f":"IF(INDEX(PC_MAPPING,RIGHT($C197,1),MATCH($E$2,'Data by Building Type'!$D$22:$F$22,0))=\"Yes\",1,0)*\n(AX$10*OFFSET('Efficiency Distributions'!$D$10,MATCH($C197,'Efficiency Distributions'!$C$9:$C$87,0)+RIGHT($E205),0)\n+AX$11*OFFSET('Efficiency Distributions'!$E$10,MATCH($C197,'Efficiency Distributions'!$C$9:$C$87,0)+RIGHT($E205),0))\n/SUM(AX$10:AX$11)","v":0},{"$f":"IF(INDEX(PC_MAPPING,RIGHT($C197,1),MATCH($E$2,'Data by Building Type'!$D$22:$F$22,0))=\"Yes\",1,0)*\n(AY$10*OFFSET('Efficiency Distributions'!$D$10,MATCH($C197,'Efficiency Distributions'!$C$9:$C$87,0)+RIGHT($E205),0)\n+AY$11*OFFSET('Efficiency Distributions'!$E$10,MATCH($C197,'Efficiency Distributions'!$C$9:$C$87,0)+RIGHT($E205),0))\n/SUM(AY$10:AY$11)","v":0},{"$f":"IF(INDEX(PC_MAPPING,RIGHT($C197,1),MATCH($E$2,'Data by Building Type'!$D$22:$F$22,0))=\"Yes\",1,0)*\n(AZ$10*OFFSET('Efficiency Distributions'!$D$10,MATCH($C197,'Efficiency Distributions'!$C$9:$C$87,0)+RIGHT($E205),0)\n+AZ$11*OFFSET('Efficiency Distributions'!$E$10,MATCH($C197,'Efficiency Distributions'!$C$9:$C$87,0)+RIGHT($E205),0))\n/SUM(AZ$10:AZ$11)","v":0},{"$f":"IF(INDEX(PC_MAPPING,RIGHT($C197,1),MATCH($E$2,'Data by Building Type'!$D$22:$F$22,0))=\"Yes\",1,0)*\n(BA$10*OFFSET('Efficiency Distributions'!$D$10,MATCH($C197,'Efficiency Distributions'!$C$9:$C$87,0)+RIGHT($E205),0)\n+BA$11*OFFSET('Efficiency Distributions'!$E$10,MATCH($C197,'Efficiency Distributions'!$C$9:$C$87,0)+RIGHT($E205),0))\n/SUM(BA$10:BA$11)","v":0},{"$f":"IF(INDEX(PC_MAPPING,RIGHT($C197,1),MATCH($E$2,'Data by Building Type'!$D$22:$F$22,0))=\"Yes\",1,0)*\n(BB$10*OFFSET('Efficiency Distributions'!$D$10,MATCH($C197,'Efficiency Distributions'!$C$9:$C$87,0)+RIGHT($E205),0)\n+BB$11*OFFSET('Efficiency Distributions'!$E$10,MATCH($C197,'Efficiency Distributions'!$C$9:$C$87,0)+RIGHT($E205),0))\n/SUM(BB$10:BB$11)","v":0},{"$f":"IF(INDEX(PC_MAPPING,RIGHT($C197,1),MATCH($E$2,'Data by Building Type'!$D$22:$F$22,0))=\"Yes\",1,0)*\n(BC$10*OFFSET('Efficiency Distributions'!$D$10,MATCH($C197,'Efficiency Distributions'!$C$9:$C$87,0)+RIGHT($E205),0)\n+BC$11*OFFSET('Efficiency Distributions'!$E$10,MATCH($C197,'Efficiency Distributions'!$C$9:$C$87,0)+RIGHT($E205),0))\n/SUM(BC$10:BC$11)","v":0},{"$f":"IF(INDEX(PC_MAPPING,RIGHT($C197,1),MATCH($E$2,'Data by Building Type'!$D$22:$F$22,0))=\"Yes\",1,0)*\n(BD$10*OFFSET('Efficiency Distributions'!$D$10,MATCH($C197,'Efficiency Distributions'!$C$9:$C$87,0)+RIGHT($E205),0)\n+BD$11*OFFSET('Efficiency Distributions'!$E$10,MATCH($C197,'Efficiency Distributions'!$C$9:$C$87,0)+RIGHT($E205),0))\n/SUM(BD$10:BD$11)","v":0},{"$f":"IF(INDEX(PC_MAPPING,RIGHT($C197,1),MATCH($E$2,'Data by Building Type'!$D$22:$F$22,0))=\"Yes\",1,0)*\n(BE$10*OFFSET('Efficiency Distributions'!$D$10,MATCH($C197,'Efficiency Distributions'!$C$9:$C$87,0)+RIGHT($E205),0)\n+BE$11*OFFSET('Efficiency Distributions'!$E$10,MATCH($C197,'Efficiency Distributions'!$C$9:$C$87,0)+RIGHT($E205),0))\n/SUM(BE$10:BE$11)","v":0},{"$f":"IF(INDEX(PC_MAPPING,RIGHT($C197,1),MATCH($E$2,'Data by Building Type'!$D$22:$F$22,0))=\"Yes\",1,0)*\n(BF$10*OFFSET('Efficiency Distributions'!$D$10,MATCH($C197,'Efficiency Distributions'!$C$9:$C$87,0)+RIGHT($E205),0)\n+BF$11*OFFSET('Efficiency Distributions'!$E$10,MATCH($C197,'Efficiency Distributions'!$C$9:$C$87,0)+RIGHT($E205),0))\n/SUM(BF$10:BF$11)","v":0},{"$f":"IF(INDEX(PC_MAPPING,RIGHT($C197,1),MATCH($E$2,'Data by Building Type'!$D$22:$F$22,0))=\"Yes\",1,0)*\n(BG$10*OFFSET('Efficiency Distributions'!$D$10,MATCH($C197,'Efficiency Distributions'!$C$9:$C$87,0)+RIGHT($E205),0)\n+BG$11*OFFSET('Efficiency Distributions'!$E$10,MATCH($C197,'Efficiency Distributions'!$C$9:$C$87,0)+RIGHT($E205),0))\n/SUM(BG$10:BG$11)","v":0}]
[null,null,null,null,"EL5",{"$f":"IF(INDEX(PC_MAPPING,RIGHT($C197,1),MATCH($E$2,'Data by Building Type'!$D$22:$F$22,0))=\"Yes\",1,0)*\n(F$10*OFFSET('Efficiency Distributions'!$D$10,MATCH($C197,'Efficiency Distributions'!$C$9:$C$87,0)+RIGHT($E206),0)\n+F$11*OFFSET('Efficiency Distributions'!$E$10,MATCH($C197,'Efficiency Distributions'!$C$9:$C$87,0)+RIGHT($E206),0))\n/SUM(F$10:F$11)","v":0.26712406436577513},{"$f":"IF(INDEX(PC_MAPPING,RIGHT($C197,1),MATCH($E$2,'Data by Building Type'!$D$22:$F$22,0))=\"Yes\",1,0)*\n(G$10*OFFSET('Efficiency Distributions'!$D$10,MATCH($C197,'Efficiency Distributions'!$C$9:$C$87,0)+RIGHT($E206),0)\n+G$11*OFFSET('Efficiency Distributions'!$E$10,MATCH($C197,'Efficiency Distributions'!$C$9:$C$87,0)+RIGHT($E206),0))\n/SUM(G$10:G$11)","v":0.28237048153779226},{"$f":"IF(INDEX(PC_MAPPING,RIGHT($C197,1),MATCH($E$2,'Data by Building Type'!$D$22:$F$22,0))=\"Yes\",1,0)*\n(H$10*OFFSET('Efficiency Distributions'!$D$10,MATCH($C197,'Efficiency Distributions'!$C$9:$C$87,0)+RIGHT($E206),0)\n+H$11*OFFSET('Efficiency Distributions'!$E$10,MATCH($C197,'Efficiency Distributions'!$C$9:$C$87,0)+RIGHT($E206),0))\n/SUM(H$10:H$11)","v":0.25906641833951105},{"$f":"IF(INDEX(PC_MAPPING,RIGHT($C197,1),MATCH($E$2,'Data by Building Type'!$D$22:$F$22,0))=\"Yes\",1,0)*\n(I$10*OFFSET('Efficiency Distributions'!$D$10,MATCH($C197,'Efficiency Distributions'!$C$9:$C$87,0)+RIGHT($E206),0)\n+I$11*OFFSET('Efficiency Distributions'!$E$10,MATCH($C197,'Efficiency Distributions'!$C$9:$C$87,0)+RIGHT($E206),0))\n/SUM(I$10:I$11)","v":0.260414767715758},{"$f":"IF(INDEX(PC_MAPPING,RIGHT($C197,1),MATCH($E$2,'Data by Building Type'!$D$22:$F$22,0))=\"Yes\",1,0)*\n(J$10*OFFSET('Efficiency Distributions'!$D$10,MATCH($C197,'Efficiency Distributions'!$C$9:$C$87,0)+RIGHT($E206),0)\n+J$11*OFFSET('Efficiency Distributions'!$E$10,MATCH($C197,'Efficiency Distributions'!$C$9:$C$87,0)+RIGHT($E206),0))\n/SUM(J$10:J$11)","v":0.2723142189529133},{"$f":"IF(INDEX(PC_MAPPING,RIGHT($C197,1),MATCH($E$2,'Data by Building Type'!$D$22:$F$22,0))=\"Yes\",1,0)*\n(K$10*OFFSET('Efficiency Distributions'!$D$10,MATCH($C197,'Efficiency Distributions'!$C$9:$C$87,0)+RIGHT($E206),0)\n+K$11*OFFSET('Efficiency Distributions'!$E$10,MATCH($C197,'Efficiency Distributions'!$C$9:$C$87,0)+RIGHT($E206),0))\n/SUM(K$10:K$11)","v":0.28568387406004381},{"$f":"IF(INDEX(PC_MAPPING,RIGHT($C197,1),MATCH($E$2,'Data by Building Type'!$D$22:$F$22,0))=\"Yes\",1,0)*\n(L$10*OFFSET('Efficiency Distributions'!$D$10,MATCH($C197,'Efficiency Distributions'!$C$9:$C$87,0)+RIGHT($E206),0)\n+L$11*OFFSET('Efficiency Distributions'!$E$10,MATCH($C197,'Efficiency Distributions'!$C$9:$C$87,0)+RIGHT($E206),0))\n/SUM(L$10:L$11)","v":0.28950594962437115},{"$f":"IF(INDEX(PC_MAPPING,RIGHT($C197,1),MATCH($E$2,'Data by Building Type'!$D$22:$F$22,0))=\"Yes\",1,0)*\n(M$10*OFFSET('Efficiency Distributions'!$D$10,MATCH($C197,'Efficiency Distributions'!$C$9:$C$87,0)+RIGHT($E206),0)\n+M$11*OFFSET('Efficiency Distributions'!$E$10,MATCH($C197,'Efficiency Distributions'!$C$9:$C$87,0)+RIGHT($E206),0))\n/SUM(M$10:M$11)","v":0.28007030446467407},{"$f":"IF(INDEX(PC_MAPPING,RIGHT($C197,1),MATCH($E$2,'Data by Building Type'!$D$22:$F$22,0))=\"Yes\",1,0)*\n(N$10*OFFSET('Efficiency Distributions'!$D$10,MATCH($C197,'Efficiency Distributions'!$C$9:$C$87,0)+RIGHT($E206),0)\n+N$11*OFFSET('Efficiency Distributions'!$E$10,MATCH($C197,'Efficiency Distributions'!$C$9:$C$87,0)+RIGHT($E206),0))\n/SUM(N$10:N$11)","v":0.27319419223368219},{"$f":"IF(INDEX(PC_MAPPING,RIGHT($C197,1),MATCH($E$2,'Data by Building Type'!$D$22:$F$22,0))=\"Yes\",1,0)*\n(O$10*OFFSET('Efficiency Distributions'!$D$10,MATCH($C197,'Efficiency Distributions'!$C$9:$C$87,0)+RIGHT($E206),0)\n+O$11*OFFSET('Efficiency Distributions'!$E$10,MATCH($C197,'Efficiency Distributions'!$C$9:$C$87,0)+RIGHT($E206),0))\n/SUM(O$10:O$11)","v":0.26051900728996691},{"$f":"IF(INDEX(PC_MAPPING,RIGHT($C197,1),MATCH($E$2,'Data by Building Type'!$D$22:$F$22,0))=\"Yes\",1,0)*\n(P$10*OFFSET('Efficiency Distributions'!$D$10,MATCH($C197,'Efficiency Distributions'!$C$9:$C$87,0)+RIGHT($E206),0)\n+P$11*OFFSET('Efficiency Distributions'!$E$10,MATCH($C197,'Efficiency Distributions'!$C$9:$C$87,0)+RIGHT($E206),0))\n/SUM(P$10:P$11)","v":0.26088804812480709},{"$f":"IF(INDEX(PC_MAPPING,RIGHT($C197,1),MATCH($E$2,'Data by Building Type'!$D$22:$F$22,0))=\"Yes\",1,0)*\n(Q$10*OFFSET('Efficiency Distributions'!$D$10,MATCH($C197,'Efficiency Distributions'!$C$9:$C$87,0)+RIGHT($E206),0)\n+Q$11*OFFSET('Efficiency Distributions'!$E$10,MATCH($C197,'Efficiency Distributions'!$C$9:$C$87,0)+RIGHT($E206),0))\n/SUM(Q$10:Q$11)","v":0.24963693359694933},{"$f":"IF(INDEX(PC_MAPPING,RIGHT($C197,1),MATCH($E$2,'Data by Building Type'!$D$22:$F$22,0))=\"Yes\",1,0)*\n(R$10*OFFSET('Efficiency Distributions'!$D$10,MATCH($C197,'Efficiency Distributions'!$C$9:$C$87,0)+RIGHT($E206),0)\n+R$11*OFFSET('Efficiency Distributions'!$E$10,MATCH($C197,'Efficiency Distributions'!$C$9:$C$87,0)+RIGHT($E206),0))\n/SUM(R$10:R$11)","v":0.23706143092643195},{"$f":"IF(INDEX(PC_MAPPING,RIGHT($C197,1),MATCH($E$2,'Data by Building Type'!$D$22:$F$22,0))=\"Yes\",1,0)*\n(S$10*OFFSET('Efficiency Distributions'!$D$10,MATCH($C197,'Efficiency Distributions'!$C$9:$C$87,0)+RIGHT($E206),0)\n+S$11*OFFSET('Efficiency Distributions'!$E$10,MATCH($C197,'Efficiency Distributions'!$C$9:$C$87,0)+RIGHT($E206),0))\n/SUM(S$10:S$11)","v":0.22556672516448212},{"$f":"IF(INDEX(PC_MAPPING,RIGHT($C197,1),MATCH($E$2,'Data by Building Type'!$D$22:$F$22,0))=\"Yes\",1,0)*\n(T$10*OFFSET('Efficiency Distributions'!$D$10,MATCH($C197,'Efficiency Distributions'!$C$9:$C$87,0)+RIGHT($E206),0)\n+T$11*OFFSET('Efficiency Distributions'!$E$10,MATCH($C197,'Efficiency Distributions'!$C$9:$C$87,0)+RIGHT($E206),0))\n/SUM(T$10:T$11)","v":0.22924717340619086},{"$f":"IF(INDEX(PC_MAPPING,RIGHT($C197,1),MATCH($E$2,'Data by Building Type'!$D$22:$F$22,0))=\"Yes\",1,0)*\n(U$10*OFFSET('Efficiency Distributions'!$D$10,MATCH($C197,'Efficiency Distributions'!$C$9:$C$87,0)+RIGHT($E206),0)\n+U$11*OFFSET('Efficiency Distributions'!$E$10,MATCH($C197,'Efficiency Distributions'!$C$9:$C$87,0)+RIGHT($E206),0))\n/SUM(U$10:U$11)","v":0.24025028574657786},{"$f":"IF(INDEX(PC_MAPPING,RIGHT($C197,1),MATCH($E$2,'Data by Building Type'!$D$22:$F$22,0))=\"Yes\",1,0)*\n(V$10*OFFSET('Efficiency Distributions'!$D$10,MATCH($C197,'Efficiency Distributions'!$C$9:$C$87,0)+RIGHT($E206),0)\n+V$11*OFFSET('Efficiency Distributions'!$E$10,MATCH($C197,'Efficiency Distributions'!$C$9:$C$87,0)+RIGHT($E206),0))\n/SUM(V$10:V$11)","v":0.23988184573099114},{"$f":"IF(INDEX(PC_MAPPING,RIGHT($C197,1),MATCH($E$2,'Data by Building Type'!$D$22:$F$22,0))=\"Yes\",1,0)*\n(W$10*OFFSET('Efficiency Distributions'!$D$10,MATCH($C197,'Efficiency Distributions'!$C$9:$C$87,0)+RIGHT($E206),0)\n+W$11*OFFSET('Efficiency Distributions'!$E$10,MATCH($C197,'Efficiency Distributions'!$C$9:$C$87,0)+RIGHT($E206),0))\n/SUM(W$10:W$11)","v":0.2372293492343118},{"$f":"IF(INDEX(PC_MAPPING,RIGHT($C197,1),MATCH($E$2,'Data by Building Type'!$D$22:$F$22,0))=\"Yes\",1,0)*\n(X$10*OFFSET('Efficiency Distributions'!$D$10,MATCH($C197,'Efficiency Distributions'!$C$9:$C$87,0)+RIGHT($E206),0)\n+X$11*OFFSET('Efficiency Distributions'!$E$10,MATCH($C197,'Efficiency Distributions'!$C$9:$C$87,0)+RIGHT($E206),0))\n/SUM(X$10:X$11)","v":0.25424757560195366},{"$f":"IF(INDEX(PC_MAPPING,RIGHT($C197,1),MATCH($E$2,'Data by Building Type'!$D$22:$F$22,0))=\"Yes\",1,0)*\n(Y$10*OFFSET('Efficiency Distributions'!$D$10,MATCH($C197,'Efficiency Distributions'!$C$9:$C$87,0)+RIGHT($E206),0)\n+Y$11*OFFSET('Efficiency Distributions'!$E$10,MATCH($C197,'Efficiency Distributions'!$C$9:$C$87,0)+RIGHT($E206),0))\n/SUM(Y$10:Y$11)","v":0.28939047127230572},{"$f":"IF(INDEX(PC_MAPPING,RIGHT($C197,1),MATCH($E$2,'Data by Building Type'!$D$22:$F$22,0))=\"Yes\",1,0)*\n(Z$10*OFFSET('Efficiency Distributions'!$D$10,MATCH($C197,'Efficiency Distributions'!$C$9:$C$87,0)+RIGHT($E206),0)\n+Z$11*OFFSET('Efficiency Distributions'!$E$10,MATCH($C197,'Efficiency Distributions'!$C$9:$C$87,0)+RIGHT($E206),0))\n/SUM(Z$10:Z$11)","v":0.31151695161658655},{"$f":"IF(INDEX(PC_MAPPING,RIGHT($C197,1),MATCH($E$2,'Data by Building Type'!$D$22:$F$22,0))=\"Yes\",1,0)*\n(AA$10*OFFSET('Efficiency Distributions'!$D$10,MATCH($C197,'Efficiency Distributions'!$C$9:$C$87,0)+RIGHT($E206),0)\n+AA$11*OFFSET('Efficiency Distributions'!$E$10,MATCH($C197,'Efficiency Distributions'!$C$9:$C$87,0)+RIGHT($E206),0))\n/SUM(AA$10:AA$11)","v":0.34262325976426722},{"$f":"IF(INDEX(PC_MAPPING,RIGHT($C197,1),MATCH($E$2,'Data by Building Type'!$D$22:$F$22,0))=\"Yes\",1,0)*\n(AB$10*OFFSET('Efficiency Distributions'!$D$10,MATCH($C197,'Efficiency Distributions'!$C$9:$C$87,0)+RIGHT($E206),0)\n+AB$11*OFFSET('Efficiency Distributions'!$E$10,MATCH($C197,'Efficiency Distributions'!$C$9:$C$87,0)+RIGHT($E206),0))\n/SUM(AB$10:AB$11)","v":0.34340748457964637},{"$f":"IF(INDEX(PC_MAPPING,RIGHT($C197,1),MATCH($E$2,'Data by Building Type'!$D$22:$F$22,0))=\"Yes\",1,0)*\n(AC$10*OFFSET('Efficiency Distributions'!$D$10,MATCH($C197,'Efficiency Distributions'!$C$9:$C$87,0)+RIGHT($E206),0)\n+AC$11*OFFSET('Efficiency Distributions'!$E$10,MATCH($C197,'Efficiency Distributions'!$C$9:$C$87,0)+RIGHT($E206),0))\n/SUM(AC$10:AC$11)","v":0.35172275038517103},{"$f":"IF(INDEX(PC_MAPPING,RIGHT($C197,1),MATCH($E$2,'Data by Building Type'!$D$22:$F$22,0))=\"Yes\",1,0)*\n(AD$10*OFFSET('Efficiency Distributions'!$D$10,MATCH($C197,'Efficiency Distributions'!$C$9:$C$87,0)+RIGHT($E206),0)\n+AD$11*OFFSET('Efficiency Distributions'!$E$10,MATCH($C197,'Efficiency Distributions'!$C$9:$C$87,0)+RIGHT($E206),0))\n/SUM(AD$10:AD$11)","v":0.35168248579020844},{"$f":"IF(INDEX(PC_MAPPING,RIGHT($C197,1),MATCH($E$2,'Data by Building Type'!$D$22:$F$22,0))=\"Yes\",1,0)*\n(AE$10*OFFSET('Efficiency Distributions'!$D$10,MATCH($C197,'Efficiency Distributions'!$C$9:$C$87,0)+RIGHT($E206),0)\n+AE$11*OFFSET('Efficiency Distributions'!$E$10,MATCH($C197,'Efficiency Distributions'!$C$9:$C$87,0)+RIGHT($E206),0))\n/SUM(AE$10:AE$11)","v":0.35156684885527617},{"$f":"IF(INDEX(PC_MAPPING,RIGHT($C197,1),MATCH($E$2,'Data by Building Type'!$D$22:$F$22,0))=\"Yes\",1,0)*\n(AF$10*OFFSET('Efficiency Distributions'!$D$10,MATCH($C197,'Efficiency Distributions'!$C$9:$C$87,0)+RIGHT($E206),0)\n+AF$11*OFFSET('Efficiency Distributions'!$E$10,MATCH($C197,'Efficiency Distributions'!$C$9:$C$87,0)+RIGHT($E206),0))\n/SUM(AF$10:AF$11)","v":0.33449887587595822},{"$f":"IF(INDEX(PC_MAPPING,RIGHT($C197,1),MATCH($E$2,'Data by Building Type'!$D$22:$F$22,0))=\"Yes\",1,0)*\n(AG$10*OFFSET('Efficiency Distributions'!$D$10,MATCH($C197,'Efficiency Distributions'!$C$9:$C$87,0)+RIGHT($E206),0)\n+AG$11*OFFSET('Efficiency Distributions'!$E$10,MATCH($C197,'Efficiency Distributions'!$C$9:$C$87,0)+RIGHT($E206),0))\n/SUM(AG$10:AG$11)","v":0.33148020932532957},{"$f":"IF(INDEX(PC_MAPPING,RIGHT($C197,1),MATCH($E$2,'Data by Building Type'!$D$22:$F$22,0))=\"Yes\",1,0)*\n(AH$10*OFFSET('Efficiency Distributions'!$D$10,MATCH($C197,'Efficiency Distributions'!$C$9:$C$87,0)+RIGHT($E206),0)\n+AH$11*OFFSET('Efficiency Distributions'!$E$10,MATCH($C197,'Efficiency Distributions'!$C$9:$C$87,0)+RIGHT($E206),0))\n/SUM(AH$10:AH$11)","v":0.3336535802116532},{"$f":"IF(INDEX(PC_MAPPING,RIGHT($C197,1),MATCH($E$2,'Data by Building Type'!$D$22:$F$22,0))=\"Yes\",1,0)*\n(AI$10*OFFSET('Efficiency Distributions'!$D$10,MATCH($C197,'Efficiency Distributions'!$C$9:$C$87,0)+RIGHT($E206),0)\n+AI$11*OFFSET('Efficiency Distributions'!$E$10,MATCH($C197,'Efficiency Distributions'!$C$9:$C$87,0)+RIGHT($E206),0))\n/SUM(AI$10:AI$11)","v":0.33580264133141269},{"$f":"IF(INDEX(PC_MAPPING,RIGHT($C197,1),MATCH($E$2,'Data by Building Type'!$D$22:$F$22,0))=\"Yes\",1,0)*\n(AJ$10*OFFSET('Efficiency Distributions'!$D$10,MATCH($C197,'Efficiency Distributions'!$C$9:$C$87,0)+RIGHT($E206),0)\n+AJ$11*OFFSET('Efficiency Distributions'!$E$10,MATCH($C197,'Efficiency Distributions'!$C$9:$C$87,0)+RIGHT($E206),0))\n/SUM(AJ$10:AJ$11)","v":0.34091543523320467},{"$f":"IF(INDEX(PC_MAPPING,RIGHT($C197,1),MATCH($E$2,'Data by Building Type'!$D$22:$F$22,0))=\"Yes\",1,0)*\n(AK$10*OFFSET('Efficiency Distributions'!$D$10,MATCH($C197,'Efficiency Distributions'!$C$9:$C$87,0)+RIGHT($E206),0)\n+AK$11*OFFSET('Efficiency Distributions'!$E$10,MATCH($C197,'Efficiency Distributions'!$C$9:$C$87,0)+RIGHT($E206),0))\n/SUM(AK$10:AK$11)","v":0.33077382750907997},{"$f":"IF(INDEX(PC_MAPPING,RIGHT($C197,1),MATCH($E$2,'Data by Building Type'!$D$22:$F$22,0))=\"Yes\",1,0)*\n(AL$10*OFFSET('Efficiency Distributions'!$D$10,MATCH($C197,'Efficiency Distributions'!$C$9:$C$87,0)+RIGHT($E206),0)\n+AL$11*OFFSET('Efficiency Distributions'!$E$10,MATCH($C197,'Efficiency Distributions'!$C$9:$C$87,0)+RIGHT($E206),0))\n/SUM(AL$10:AL$11)","v":0.33694921860715532},{"$f":"IF(INDEX(PC_MAPPING,RIGHT($C197,1),MATCH($E$2,'Data by Building Type'!$D$22:$F$22,0))=\"Yes\",1,0)*\n(AM$10*OFFSET('Efficiency Distributions'!$D$10,MATCH($C197,'Efficiency Distributions'!$C$9:$C$87,0)+RIGHT($E206),0)\n+AM$11*OFFSET('Efficiency Distributions'!$E$10,MATCH($C197,'Efficiency Distributions'!$C$9:$C$87,0)+RIGHT($E206),0))\n/SUM(AM$10:AM$11)","v":0.34417413389928214},{"$f":"IF(INDEX(PC_MAPPING,RIGHT($C197,1),MATCH($E$2,'Data by Building Type'!$D$22:$F$22,0))=\"Yes\",1,0)*\n(AN$10*OFFSET('Efficiency Distributions'!$D$10,MATCH($C197,'Efficiency Distributions'!$C$9:$C$87,0)+RIGHT($E206),0)\n+AN$11*OFFSET('Efficiency Distributions'!$E$10,MATCH($C197,'Efficiency Distributions'!$C$9:$C$87,0)+RIGHT($E206),0))\n/SUM(AN$10:AN$11)","v":0.35070940209900542},{"$f":"IF(INDEX(PC_MAPPING,RIGHT($C197,1),MATCH($E$2,'Data by Building Type'!$D$22:$F$22,0))=\"Yes\",1,0)*\n(AO$10*OFFSET('Efficiency Distributions'!$D$10,MATCH($C197,'Efficiency Distributions'!$C$9:$C$87,0)+RIGHT($E206),0)\n+AO$11*OFFSET('Efficiency Distributions'!$E$10,MATCH($C197,'Efficiency Distributions'!$C$9:$C$87,0)+RIGHT($E206),0))\n/SUM(AO$10:AO$11)","v":0.3514268696253306},{"$f":"IF(INDEX(PC_MAPPING,RIGHT($C197,1),MATCH($E$2,'Data by Building Type'!$D$22:$F$22,0))=\"Yes\",1,0)*\n(AP$10*OFFSET('Efficiency Distributions'!$D$10,MATCH($C197,'Efficiency Distributions'!$C$9:$C$87,0)+RIGHT($E206),0)\n+AP$11*OFFSET('Efficiency Distributions'!$E$10,MATCH($C197,'Efficiency Distributions'!$C$9:$C$87,0)+RIGHT($E206),0))\n/SUM(AP$10:AP$11)","v":0.34909274240124732},{"$f":"IF(INDEX(PC_MAPPING,RIGHT($C197,1),MATCH($E$2,'Data by Building Type'!$D$22:$F$22,0))=\"Yes\",1,0)*\n(AQ$10*OFFSET('Efficiency Distributions'!$D$10,MATCH($C197,'Efficiency Distributions'!$C$9:$C$87,0)+RIGHT($E206),0)\n+AQ$11*OFFSET('Efficiency Distributions'!$E$10,MATCH($C197,'Efficiency Distributions'!$C$9:$C$87,0)+RIGHT($E206),0))\n/SUM(AQ$10:AQ$11)","v":0.34942862001167763},{"$f":"IF(INDEX(PC_MAPPING,RIGHT($C197,1),MATCH($E$2,'Data by Building Type'!$D$22:$F$22,0))=\"Yes\",1,0)*\n(AR$10*OFFSET('Efficiency Distributions'!$D$10,MATCH($C197,'Efficiency Distributions'!$C$9:$C$87,0)+RIGHT($E206),0)\n+AR$11*OFFSET('Efficiency Distributions'!$E$10,MATCH($C197,'Efficiency Distributions'!$C$9:$C$87,0)+RIGHT($E206),0))\n/SUM(AR$10:AR$11)","v":0.34952821337408729},{"$f":"IF(INDEX(PC_MAPPING,RIGHT($C197,1),MATCH($E$2,'Data by Building Type'!$D$22:$F$22,0))=\"Yes\",1,0)*\n(AS$10*OFFSET('Efficiency Distributions'!$D$10,MATCH($C197,'Efficiency Distributions'!$C$9:$C$87,0)+RIGHT($E206),0)\n+AS$11*OFFSET('Efficiency Distributions'!$E$10,MATCH($C197,'Efficiency Distributions'!$C$9:$C$87,0)+RIGHT($E206),0))\n/SUM(AS$10:AS$11)","v":0.34271458021186491},{"$f":"IF(INDEX(PC_MAPPING,RIGHT($C197,1),MATCH($E$2,'Data by Building Type'!$D$22:$F$22,0))=\"Yes\",1,0)*\n(AT$10*OFFSET('Efficiency Distributions'!$D$10,MATCH($C197,'Efficiency Distributions'!$C$9:$C$87,0)+RIGHT($E206),0)\n+AT$11*OFFSET('Efficiency Distributions'!$E$10,MATCH($C197,'Efficiency Distributions'!$C$9:$C$87,0)+RIGHT($E206),0))\n/SUM(AT$10:AT$11)","v":0.33011254327175282},{"$f":"IF(INDEX(PC_MAPPING,RIGHT($C197,1),MATCH($E$2,'Data by Building Type'!$D$22:$F$22,0))=\"Yes\",1,0)*\n(AU$10*OFFSET('Efficiency Distributions'!$D$10,MATCH($C197,'Efficiency Distributions'!$C$9:$C$87,0)+RIGHT($E206),0)\n+AU$11*OFFSET('Efficiency Distributions'!$E$10,MATCH($C197,'Efficiency Distributions'!$C$9:$C$87,0)+RIGHT($E206),0))\n/SUM(AU$10:AU$11)","v":0.32161250144883802},{"$f":"IF(INDEX(PC_MAPPING,RIGHT($C197,1),MATCH($E$2,'Data by Building Type'!$D$22:$F$22,0))=\"Yes\",1,0)*\n(AV$10*OFFSET('Efficiency Distributions'!$D$10,MATCH($C197,'Efficiency Distributions'!$C$9:$C$87,0)+RIGHT($E206),0)\n+AV$11*OFFSET('Efficiency Distributions'!$E$10,MATCH($C197,'Efficiency Distributions'!$C$9:$C$87,0)+RIGHT($E206),0))\n/SUM(AV$10:AV$11)","v":0.34360920418903179},{"$f":"IF(INDEX(PC_MAPPING,RIGHT($C197,1),MATCH($E$2,'Data by Building Type'!$D$22:$F$22,0))=\"Yes\",1,0)*\n(AW$10*OFFSET('Efficiency Distributions'!$D$10,MATCH($C197,'Efficiency Distributions'!$C$9:$C$87,0)+RIGHT($E206),0)\n+AW$11*OFFSET('Efficiency Distributions'!$E$10,MATCH($C197,'Efficiency Distributions'!$C$9:$C$87,0)+RIGHT($E206),0))\n/SUM(AW$10:AW$11)","v":0.33843799825510834},{"$f":"IF(INDEX(PC_MAPPING,RIGHT($C197,1),MATCH($E$2,'Data by Building Type'!$D$22:$F$22,0))=\"Yes\",1,0)*\n(AX$10*OFFSET('Efficiency Distributions'!$D$10,MATCH($C197,'Efficiency Distributions'!$C$9:$C$87,0)+RIGHT($E206),0)\n+AX$11*OFFSET('Efficiency Distributions'!$E$10,MATCH($C197,'Efficiency Distributions'!$C$9:$C$87,0)+RIGHT($E206),0))\n/SUM(AX$10:AX$11)","v":0.34351553994035983},{"$f":"IF(INDEX(PC_MAPPING,RIGHT($C197,1),MATCH($E$2,'Data by Building Type'!$D$22:$F$22,0))=\"Yes\",1,0)*\n(AY$10*OFFSET('Efficiency Distributions'!$D$10,MATCH($C197,'Efficiency Distributions'!$C$9:$C$87,0)+RIGHT($E206),0)\n+AY$11*OFFSET('Efficiency Distributions'!$E$10,MATCH($C197,'Efficiency Distributions'!$C$9:$C$87,0)+RIGHT($E206),0))\n/SUM(AY$10:AY$11)","v":0.34393149942444268},{"$f":"IF(INDEX(PC_MAPPING,RIGHT($C197,1),MATCH($E$2,'Data by Building Type'!$D$22:$F$22,0))=\"Yes\",1,0)*\n(AZ$10*OFFSET('Efficiency Distributions'!$D$10,MATCH($C197,'Efficiency Distributions'!$C$9:$C$87,0)+RIGHT($E206),0)\n+AZ$11*OFFSET('Efficiency Distributions'!$E$10,MATCH($C197,'Efficiency Distributions'!$C$9:$C$87,0)+RIGHT($E206),0))\n/SUM(AZ$10:AZ$11)","v":0.34205586942970201},{"$f":"IF(INDEX(PC_MAPPING,RIGHT($C197,1),MATCH($E$2,'Data by Building Type'!$D$22:$F$22,0))=\"Yes\",1,0)*\n(BA$10*OFFSET('Efficiency Distributions'!$D$10,MATCH($C197,'Efficiency Distributions'!$C$9:$C$87,0)+RIGHT($E206),0)\n+BA$11*OFFSET('Efficiency Distributions'!$E$10,MATCH($C197,'Efficiency Distributions'!$C$9:$C$87,0)+RIGHT($E206),0))\n/SUM(BA$10:BA$11)","v":0.34381791384263172},{"$f":"IF(INDEX(PC_MAPPING,RIGHT($C197,1),MATCH($E$2,'Data by Building Type'!$D$22:$F$22,0))=\"Yes\",1,0)*\n(BB$10*OFFSET('Efficiency Distributions'!$D$10,MATCH($C197,'Efficiency Distributions'!$C$9:$C$87,0)+RIGHT($E206),0)\n+BB$11*OFFSET('Efficiency Distributions'!$E$10,MATCH($C197,'Efficiency Distributions'!$C$9:$C$87,0)+RIGHT($E206),0))\n/SUM(BB$10:BB$11)","v":0.34565403902149311},{"$f":"IF(INDEX(PC_MAPPING,RIGHT($C197,1),MATCH($E$2,'Data by Building Type'!$D$22:$F$22,0))=\"Yes\",1,0)*\n(BC$10*OFFSET('Efficiency Distributions'!$D$10,MATCH($C197,'Efficiency Distributions'!$C$9:$C$87,0)+RIGHT($E206),0)\n+BC$11*OFFSET('Efficiency Distributions'!$E$10,MATCH($C197,'Efficiency Distributions'!$C$9:$C$87,0)+RIGHT($E206),0))\n/SUM(BC$10:BC$11)","v":0.3494937208999141},{"$f":"IF(INDEX(PC_MAPPING,RIGHT($C197,1),MATCH($E$2,'Data by Building Type'!$D$22:$F$22,0))=\"Yes\",1,0)*\n(BD$10*OFFSET('Efficiency Distributions'!$D$10,MATCH($C197,'Efficiency Distributions'!$C$9:$C$87,0)+RIGHT($E206),0)\n+BD$11*OFFSET('Efficiency Distributions'!$E$10,MATCH($C197,'Efficiency Distributions'!$C$9:$C$87,0)+RIGHT($E206),0))\n/SUM(BD$10:BD$11)","v":0.35036422948320933},{"$f":"IF(INDEX(PC_MAPPING,RIGHT($C197,1),MATCH($E$2,'Data by Building Type'!$D$22:$F$22,0))=\"Yes\",1,0)*\n(BE$10*OFFSET('Efficiency Distributions'!$D$10,MATCH($C197,'Efficiency Distributions'!$C$9:$C$87,0)+RIGHT($E206),0)\n+BE$11*OFFSET('Efficiency Distributions'!$E$10,MATCH($C197,'Efficiency Distributions'!$C$9:$C$87,0)+RIGHT($E206),0))\n/SUM(BE$10:BE$11)","v":0.35226574588113302},{"$f":"IF(INDEX(PC_MAPPING,RIGHT($C197,1),MATCH($E$2,'Data by Building Type'!$D$22:$F$22,0))=\"Yes\",1,0)*\n(BF$10*OFFSET('Efficiency Distributions'!$D$10,MATCH($C197,'Efficiency Distributions'!$C$9:$C$87,0)+RIGHT($E206),0)\n+BF$11*OFFSET('Efficiency Distributions'!$E$10,MATCH($C197,'Efficiency Distributions'!$C$9:$C$87,0)+RIGHT($E206),0))\n/SUM(BF$10:BF$11)","v":0.35351675734635346},{"$f":"IF(INDEX(PC_MAPPING,RIGHT($C197,1),MATCH($E$2,'Data by Building Type'!$D$22:$F$22,0))=\"Yes\",1,0)*\n(BG$10*OFFSET('Efficiency Distributions'!$D$10,MATCH($C197,'Efficiency Distributions'!$C$9:$C$87,0)+RIGHT($E206),0)\n+BG$11*OFFSET('Efficiency Distributions'!$E$10,MATCH($C197,'Efficiency Distributions'!$C$9:$C$87,0)+RIGHT($E206),0))\n/SUM(BG$10:BG$11)","v":0.35499788763082185}]
[null,null,null,null,"EL6",{"$f":"IF(INDEX(PC_MAPPING,RIGHT($C197,1),MATCH($E$2,'Data by Building Type'!$D$22:$F$22,0))=\"Yes\",1,0)*\n(F$10*OFFSET('Efficiency Distributions'!$D$10,MATCH($C197,'Efficiency Distributions'!$C$9:$C$87,0)+RIGHT($E207),0)\n+F$11*OFFSET('Efficiency Distributions'!$E$10,MATCH($C197,'Efficiency Distributions'!$C$9:$C$87,0)+RIGHT($E207),0))\n/SUM(F$10:F$11)","v":0},{"$f":"IF(INDEX(PC_MAPPING,RIGHT($C197,1),MATCH($E$2,'Data by Building Type'!$D$22:$F$22,0))=\"Yes\",1,0)*\n(G$10*OFFSET('Efficiency Distributions'!$D$10,MATCH($C197,'Efficiency Distributions'!$C$9:$C$87,0)+RIGHT($E207),0)\n+G$11*OFFSET('Efficiency Distributions'!$E$10,MATCH($C197,'Efficiency Distributions'!$C$9:$C$87,0)+RIGHT($E207),0))\n/SUM(G$10:G$11)","v":0},{"$f":"IF(INDEX(PC_MAPPING,RIGHT($C197,1),MATCH($E$2,'Data by Building Type'!$D$22:$F$22,0))=\"Yes\",1,0)*\n(H$10*OFFSET('Efficiency Distributions'!$D$10,MATCH($C197,'Efficiency Distributions'!$C$9:$C$87,0)+RIGHT($E207),0)\n+H$11*OFFSET('Efficiency Distributions'!$E$10,MATCH($C197,'Efficiency Distributions'!$C$9:$C$87,0)+RIGHT($E207),0))\n/SUM(H$10:H$11)","v":0},{"$f":"IF(INDEX(PC_MAPPING,RIGHT($C197,1),MATCH($E$2,'Data by Building Type'!$D$22:$F$22,0))=\"Yes\",1,0)*\n(I$10*OFFSET('Efficiency Distributions'!$D$10,MATCH($C197,'Efficiency Distributions'!$C$9:$C$87,0)+RIGHT($E207),0)\n+I$11*OFFSET('Efficiency Distributions'!$E$10,MATCH($C197,'Efficiency Distributions'!$C$9:$C$87,0)+RIGHT($E207),0))\n/SUM(I$10:I$11)","v":0},{"$f":"IF(INDEX(PC_MAPPING,RIGHT($C197,1),MATCH($E$2,'Data by Building Type'!$D$22:$F$22,0))=\"Yes\",1,0)*\n(J$10*OFFSET('Efficiency Distributions'!$D$10,MATCH($C197,'Efficiency Distributions'!$C$9:$C$87,0)+RIGHT($E207),0)\n+J$11*OFFSET('Efficiency Distributions'!$E$10,MATCH($C197,'Efficiency Distributions'!$C$9:$C$87,0)+RIGHT($E207),0))\n/SUM(J$10:J$11)","v":0},{"$f":"IF(INDEX(PC_MAPPING,RIGHT($C197,1),MATCH($E$2,'Data by Building Type'!$D$22:$F$22,0))=\"Yes\",1,0)*\n(K$10*OFFSET('Efficiency Distributions'!$D$10,MATCH($C197,'Efficiency Distributions'!$C$9:$C$87,0)+RIGHT($E207),0)\n+K$11*OFFSET('Efficiency Distributions'!$E$10,MATCH($C197,'Efficiency Distributions'!$C$9:$C$87,0)+RIGHT($E207),0))\n/SUM(K$10:K$11)","v":0},{"$f":"IF(INDEX(PC_MAPPING,RIGHT($C197,1),MATCH($E$2,'Data by Building Type'!$D$22:$F$22,0))=\"Yes\",1,0)*\n(L$10*OFFSET('Efficiency Distributions'!$D$10,MATCH($C197,'Efficiency Distributions'!$C$9:$C$87,0)+RIGHT($E207),0)\n+L$11*OFFSET('Efficiency Distributions'!$E$10,MATCH($C197,'Efficiency Distributions'!$C$9:$C$87,0)+RIGHT($E207),0))\n/SUM(L$10:L$11)","v":0},{"$f":"IF(INDEX(PC_MAPPING,RIGHT($C197,1),MATCH($E$2,'Data by Building Type'!$D$22:$F$22,0))=\"Yes\",1,0)*\n(M$10*OFFSET('Efficiency Distributions'!$D$10,MATCH($C197,'Efficiency Distributions'!$C$9:$C$87,0)+RIGHT($E207),0)\n+M$11*OFFSET('Efficiency Distributions'!$E$10,MATCH($C197,'Efficiency Distributions'!$C$9:$C$87,0)+RIGHT($E207),0))\n/SUM(M$10:M$11)","v":0},{"$f":"IF(INDEX(PC_MAPPING,RIGHT($C197,1),MATCH($E$2,'Data by Building Type'!$D$22:$F$22,0))=\"Yes\",1,0)*\n(N$10*OFFSET('Efficiency Distributions'!$D$10,MATCH($C197,'Efficiency Distributions'!$C$9:$C$87,0)+RIGHT($E207),0)\n+N$11*OFFSET('Efficiency Distributions'!$E$10,MATCH($C197,'Efficiency Distributions'!$C$9:$C$87,0)+RIGHT($E207),0))\n/SUM(N$10:N$11)","v":0},{"$f":"IF(INDEX(PC_MAPPING,RIGHT($C197,1),MATCH($E$2,'Data by Building Type'!$D$22:$F$22,0))=\"Yes\",1,0)*\n(O$10*OFFSET('Efficiency Distributions'!$D$10,MATCH($C197,'Efficiency Distributions'!$C$9:$C$87,0)+RIGHT($E207),0)\n+O$11*OFFSET('Efficiency Distributions'!$E$10,MATCH($C197,'Efficiency Distributions'!$C$9:$C$87,0)+RIGHT($E207),0))\n/SUM(O$10:O$11)","v":0},{"$f":"IF(INDEX(PC_MAPPING,RIGHT($C197,1),MATCH($E$2,'Data by Building Type'!$D$22:$F$22,0))=\"Yes\",1,0)*\n(P$10*OFFSET('Efficiency Distributions'!$D$10,MATCH($C197,'Efficiency Distributions'!$C$9:$C$87,0)+RIGHT($E207),0)\n+P$11*OFFSET('Efficiency Distributions'!$E$10,MATCH($C197,'Efficiency Distributions'!$C$9:$C$87,0)+RIGHT($E207),0))\n/SUM(P$10:P$11)","v":0},{"$f":"IF(INDEX(PC_MAPPING,RIGHT($C197,1),MATCH($E$2,'Data by Building Type'!$D$22:$F$22,0))=\"Yes\",1,0)*\n(Q$10*OFFSET('Efficiency Distributions'!$D$10,MATCH($C197,'Efficiency Distributions'!$C$9:$C$87,0)+RIGHT($E207),0)\n+Q$11*OFFSET('Efficiency Distributions'!$E$10,MATCH($C197,'Efficiency Distributions'!$C$9:$C$87,0)+RIGHT($E207),0))\n/SUM(Q$10:Q$11)","v":0},{"$f":"IF(INDEX(PC_MAPPING,RIGHT($C197,1),MATCH($E$2,'Data by Building Type'!$D$22:$F$22,0))=\"Yes\",1,0)*\n(R$10*OFFSET('Efficiency Distributions'!$D$10,MATCH($C197,'Efficiency Distributions'!$C$9:$C$87,0)+RIGHT($E207),0)\n+R$11*OFFSET('Efficiency Distributions'!$E$10,MATCH($C197,'Efficiency Distributions'!$C$9:$C$87,0)+RIGHT($E207),0))\n/SUM(R$10:R$11)","v":0},{"$f":"IF(INDEX(PC_MAPPING,RIGHT($C197,1),MATCH($E$2,'Data by Building Type'!$D$22:$F$22,0))=\"Yes\",1,0)*\n(S$10*OFFSET('Efficiency Distributions'!$D$10,MATCH($C197,'Efficiency Distributions'!$C$9:$C$87,0)+RIGHT($E207),0)\n+S$11*OFFSET('Efficiency Distributions'!$E$10,MATCH($C197,'Efficiency Distributions'!$C$9:$C$87,0)+RIGHT($E207),0))\n/SUM(S$10:S$11)","v":0},{"$f":"IF(INDEX(PC_MAPPING,RIGHT($C197,1),MATCH($E$2,'Data by Building Type'!$D$22:$F$22,0))=\"Yes\",1,0)*\n(T$10*OFFSET('Efficiency Distributions'!$D$10,MATCH($C197,'Efficiency Distributions'!$C$9:$C$87,0)+RIGHT($E207),0)\n+T$11*OFFSET('Efficiency Distributions'!$E$10,MATCH($C197,'Efficiency Distributions'!$C$9:$C$87,0)+RIGHT($E207),0))\n/SUM(T$10:T$11)","v":0},{"$f":"IF(INDEX(PC_MAPPING,RIGHT($C197,1),MATCH($E$2,'Data by Building Type'!$D$22:$F$22,0))=\"Yes\",1,0)*\n(U$10*OFFSET('Efficiency Distributions'!$D$10,MATCH($C197,'Efficiency Distributions'!$C$9:$C$87,0)+RIGHT($E207),0)\n+U$11*OFFSET('Efficiency Distributions'!$E$10,MATCH($C197,'Efficiency Distributions'!$C$9:$C$87,0)+RIGHT($E207),0))\n/SUM(U$10:U$11)","v":0},{"$f":"IF(INDEX(PC_MAPPING,RIGHT($C197,1),MATCH($E$2,'Data by Building Type'!$D$22:$F$22,0))=\"Yes\",1,0)*\n(V$10*OFFSET('Efficiency Distributions'!$D$10,MATCH($C197,'Efficiency Distributions'!$C$9:$C$87,0)+RIGHT($E207),0)\n+V$11*OFFSET('Efficiency Distributions'!$E$10,MATCH($C197,'Efficiency Distributions'!$C$9:$C$87,0)+RIGHT($E207),0))\n/SUM(V$10:V$11)","v":0},{"$f":"IF(INDEX(PC_MAPPING,RIGHT($C197,1),MATCH($E$2,'Data by Building Type'!$D$22:$F$22,0))=\"Yes\",1,0)*\n(W$10*OFFSET('Efficiency Distributions'!$D$10,MATCH($C197,'Efficiency Distributions'!$C$9:$C$87,0)+RIGHT($E207),0)\n+W$11*OFFSET('Efficiency Distributions'!$E$10,MATCH($C197,'Efficiency Distributions'!$C$9:$C$87,0)+RIGHT($E207),0))\n/SUM(W$10:W$11)","v":0},{"$f":"IF(INDEX(PC_MAPPING,RIGHT($C197,1),MATCH($E$2,'Data by Building Type'!$D$22:$F$22,0))=\"Yes\",1,0)*\n(X$10*OFFSET('Efficiency Distributions'!$D$10,MATCH($C197,'Efficiency Distributions'!$C$9:$C$87,0)+RIGHT($E207),0)\n+X$11*OFFSET('Efficiency Distributions'!$E$10,MATCH($C197,'Efficiency Distributions'!$C$9:$C$87,0)+RIGHT($E207),0))\n/SUM(X$10:X$11)","v":0},{"$f":"IF(INDEX(PC_MAPPING,RIGHT($C197,1),MATCH($E$2,'Data by Building Type'!$D$22:$F$22,0))=\"Yes\",1,0)*\n(Y$10*OFFSET('Efficiency Distributions'!$D$10,MATCH($C197,'Efficiency Distributions'!$C$9:$C$87,0)+RIGHT($E207),0)\n+Y$11*OFFSET('Efficiency Distributions'!$E$10,MATCH($C197,'Efficiency Distributions'!$C$9:$C$87,0)+RIGHT($E207),0))\n/SUM(Y$10:Y$11)","v":0},{"$f":"IF(INDEX(PC_MAPPING,RIGHT($C197,1),MATCH($E$2,'Data by Building Type'!$D$22:$F$22,0))=\"Yes\",1,0)*\n(Z$10*OFFSET('Efficiency Distributions'!$D$10,MATCH($C197,'Efficiency Distributions'!$C$9:$C$87,0)+RIGHT($E207),0)\n+Z$11*OFFSET('Efficiency Distributions'!$E$10,MATCH($C197,'Efficiency Distributions'!$C$9:$C$87,0)+RIGHT($E207),0))\n/SUM(Z$10:Z$11)","v":0},{"$f":"IF(INDEX(PC_MAPPING,RIGHT($C197,1),MATCH($E$2,'Data by Building Type'!$D$22:$F$22,0))=\"Yes\",1,0)*\n(AA$10*OFFSET('Efficiency Distributions'!$D$10,MATCH($C197,'Efficiency Distributions'!$C$9:$C$87,0)+RIGHT($E207),0)\n+AA$11*OFFSET('Efficiency Distributions'!$E$10,MATCH($C197,'Efficiency Distributions'!$C$9:$C$87,0)+RIGHT($E207),0))\n/SUM(AA$10:AA$11)","v":0},{"$f":"IF(INDEX(PC_MAPPING,RIGHT($C197,1),MATCH($E$2,'Data by Building Type'!$D$22:$F$22,0))=\"Yes\",1,0)*\n(AB$10*OFFSET('Efficiency Distributions'!$D$10,MATCH($C197,'Efficiency Distributions'!$C$9:$C$87,0)+RIGHT($E207),0)\n+AB$11*OFFSET('Efficiency Distributions'!$E$10,MATCH($C197,'Efficiency Distributions'!$C$9:$C$87,0)+RIGHT($E207),0))\n/SUM(AB$10:AB$11)","v":0},{"$f":"IF(INDEX(PC_MAPPING,RIGHT($C197,1),MATCH($E$2,'Data by Building Type'!$D$22:$F$22,0))=\"Yes\",1,0)*\n(AC$10*OFFSET('Efficiency Distributions'!$D$10,MATCH($C197,'Efficiency Distributions'!$C$9:$C$87,0)+RIGHT($E207),0)\n+AC$11*OFFSET('Efficiency Distributions'!$E$10,MATCH($C197,'Efficiency Distributions'!$C$9:$C$87,0)+RIGHT($E207),0))\n/SUM(AC$10:AC$11)","v":0},{"$f":"IF(INDEX(PC_MAPPING,RIGHT($C197,1),MATCH($E$2,'Data by Building Type'!$D$22:$F$22,0))=\"Yes\",1,0)*\n(AD$10*OFFSET('Efficiency Distributions'!$D$10,MATCH($C197,'Efficiency Distributions'!$C$9:$C$87,0)+RIGHT($E207),0)\n+AD$11*OFFSET('Efficiency Distributions'!$E$10,MATCH($C197,'Efficiency Distributions'!$C$9:$C$87,0)+RIGHT($E207),0))\n/SUM(AD$10:AD$11)","v":0},{"$f":"IF(INDEX(PC_MAPPING,RIGHT($C197,1),MATCH($E$2,'Data by Building Type'!$D$22:$F$22,0))=\"Yes\",1,0)*\n(AE$10*OFFSET('Efficiency Distributions'!$D$10,MATCH($C197,'Efficiency Distributions'!$C$9:$C$87,0)+RIGHT($E207),0)\n+AE$11*OFFSET('Efficiency Distributions'!$E$10,MATCH($C197,'Efficiency Distributions'!$C$9:$C$87,0)+RIGHT($E207),0))\n/SUM(AE$10:AE$11)","v":0},{"$f":"IF(INDEX(PC_MAPPING,RIGHT($C197,1),MATCH($E$2,'Data by Building Type'!$D$22:$F$22,0))=\"Yes\",1,0)*\n(AF$10*OFFSET('Efficiency Distributions'!$D$10,MATCH($C197,'Efficiency Distributions'!$C$9:$C$87,0)+RIGHT($E207),0)\n+AF$11*OFFSET('Efficiency Distributions'!$E$10,MATCH($C197,'Efficiency Distributions'!$C$9:$C$87,0)+RIGHT($E207),0))\n/SUM(AF$10:AF$11)","v":0},{"$f":"IF(INDEX(PC_MAPPING,RIGHT($C197,1),MATCH($E$2,'Data by Building Type'!$D$22:$F$22,0))=\"Yes\",1,0)*\n(AG$10*OFFSET('Efficiency Distributions'!$D$10,MATCH($C197,'Efficiency Distributions'!$C$9:$C$87,0)+RIGHT($E207),0)\n+AG$11*OFFSET('Efficiency Distributions'!$E$10,MATCH($C197,'Efficiency Distributions'!$C$9:$C$87,0)+RIGHT($E207),0))\n/SUM(AG$10:AG$11)","v":0},{"$f":"IF(INDEX(PC_MAPPING,RIGHT($C197,1),MATCH($E$2,'Data by Building Type'!$D$22:$F$22,0))=\"Yes\",1,0)*\n(AH$10*OFFSET('Efficiency Distributions'!$D$10,MATCH($C197,'Efficiency Distributions'!$C$9:$C$87,0)+RIGHT($E207),0)\n+AH$11*OFFSET('Efficiency Distributions'!$E$10,MATCH($C197,'Efficiency Distributions'!$C$9:$C$87,0)+RIGHT($E207),0))\n/SUM(AH$10:AH$11)","v":0},{"$f":"IF(INDEX(PC_MAPPING,RIGHT($C197,1),MATCH($E$2,'Data by Building Type'!$D$22:$F$22,0))=\"Yes\",1,0)*\n(AI$10*OFFSET('Efficiency Distributions'!$D$10,MATCH($C197,'Efficiency Distributions'!$C$9:$C$87,0)+RIGHT($E207),0)\n+AI$11*OFFSET('Efficiency Distributions'!$E$10,MATCH($C197,'Efficiency Distributions'!$C$9:$C$87,0)+RIGHT($E207),0))\n/SUM(AI$10:AI$11)","v":0},{"$f":"IF(INDEX(PC_MAPPING,RIGHT($C197,1),MATCH($E$2,'Data by Building Type'!$D$22:$F$22,0))=\"Yes\",1,0)*\n(AJ$10*OFFSET('Efficiency Distributions'!$D$10,MATCH($C197,'Efficiency Distributions'!$C$9:$C$87,0)+RIGHT($E207),0)\n+AJ$11*OFFSET('Efficiency Distributions'!$E$10,MATCH($C197,'Efficiency Distributions'!$C$9:$C$87,0)+RIGHT($E207),0))\n/SUM(AJ$10:AJ$11)","v":0},{"$f":"IF(INDEX(PC_MAPPING,RIGHT($C197,1),MATCH($E$2,'Data by Building Type'!$D$22:$F$22,0))=\"Yes\",1,0)*\n(AK$10*OFFSET('Efficiency Distributions'!$D$10,MATCH($C197,'Efficiency Distributions'!$C$9:$C$87,0)+RIGHT($E207),0)\n+AK$11*OFFSET('Efficiency Distributions'!$E$10,MATCH($C197,'Efficiency Distributions'!$C$9:$C$87,0)+RIGHT($E207),0))\n/SUM(AK$10:AK$11)","v":0},{"$f":"IF(INDEX(PC_MAPPING,RIGHT($C197,1),MATCH($E$2,'Data by Building Type'!$D$22:$F$22,0))=\"Yes\",1,0)*\n(AL$10*OFFSET('Efficiency Distributions'!$D$10,MATCH($C197,'Efficiency Distributions'!$C$9:$C$87,0)+RIGHT($E207),0)\n+AL$11*OFFSET('Efficiency Distributions'!$E$10,MATCH($C197,'Efficiency Distributions'!$C$9:$C$87,0)+RIGHT($E207),0))\n/SUM(AL$10:AL$11)","v":0},{"$f":"IF(INDEX(PC_MAPPING,RIGHT($C197,1),MATCH($E$2,'Data by Building Type'!$D$22:$F$22,0))=\"Yes\",1,0)*\n(AM$10*OFFSET('Efficiency Distributions'!$D$10,MATCH($C197,'Efficiency Distributions'!$C$9:$C$87,0)+RIGHT($E207),0)\n+AM$11*OFFSET('Efficiency Distributions'!$E$10,MATCH($C197,'Efficiency Distributions'!$C$9:$C$87,0)+RIGHT($E207),0))\n/SUM(AM$10:AM$11)","v":0},{"$f":"IF(INDEX(PC_MAPPING,RIGHT($C197,1),MATCH($E$2,'Data by Building Type'!$D$22:$F$22,0))=\"Yes\",1,0)*\n(AN$10*OFFSET('Efficiency Distributions'!$D$10,MATCH($C197,'Efficiency Distributions'!$C$9:$C$87,0)+RIGHT($E207),0)\n+AN$11*OFFSET('Efficiency Distributions'!$E$10,MATCH($C197,'Efficiency Distributions'!$C$9:$C$87,0)+RIGHT($E207),0))\n/SUM(AN$10:AN$11)","v":0},{"$f":"IF(INDEX(PC_MAPPING,RIGHT($C197,1),MATCH($E$2,'Data by Building Type'!$D$22:$F$22,0))=\"Yes\",1,0)*\n(AO$10*OFFSET('Efficiency Distributions'!$D$10,MATCH($C197,'Efficiency Distributions'!$C$9:$C$87,0)+RIGHT($E207),0)\n+AO$11*OFFSET('Efficiency Distributions'!$E$10,MATCH($C197,'Efficiency Distributions'!$C$9:$C$87,0)+RIGHT($E207),0))\n/SUM(AO$10:AO$11)","v":0},{"$f":"IF(INDEX(PC_MAPPING,RIGHT($C197,1),MATCH($E$2,'Data by Building Type'!$D$22:$F$22,0))=\"Yes\",1,0)*\n(AP$10*OFFSET('Efficiency Distributions'!$D$10,MATCH($C197,'Efficiency Distributions'!$C$9:$C$87,0)+RIGHT($E207),0)\n+AP$11*OFFSET('Efficiency Distributions'!$E$10,MATCH($C197,'Efficiency Distributions'!$C$9:$C$87,0)+RIGHT($E207),0))\n/SUM(AP$10:AP$11)","v":0},{"$f":"IF(INDEX(PC_MAPPING,RIGHT($C197,1),MATCH($E$2,'Data by Building Type'!$D$22:$F$22,0))=\"Yes\",1,0)*\n(AQ$10*OFFSET('Efficiency Distributions'!$D$10,MATCH($C197,'Efficiency Distributions'!$C$9:$C$87,0)+RIGHT($E207),0)\n+AQ$11*OFFSET('Efficiency Distributions'!$E$10,MATCH($C197,'Efficiency Distributions'!$C$9:$C$87,0)+RIGHT($E207),0))\n/SUM(AQ$10:AQ$11)","v":0},{"$f":"IF(INDEX(PC_MAPPING,RIGHT($C197,1),MATCH($E$2,'Data by Building Type'!$D$22:$F$22,0))=\"Yes\",1,0)*\n(AR$10*OFFSET('Efficiency Distributions'!$D$10,MATCH($C197,'Efficiency Distributions'!$C$9:$C$87,0)+RIGHT($E207),0)\n+AR$11*OFFSET('Efficiency Distributions'!$E$10,MATCH($C197,'Efficiency Distributions'!$C$9:$C$87,0)+RIGHT($E207),0))\n/SUM(AR$10:AR$11)","v":0},{"$f":"IF(INDEX(PC_MAPPING,RIGHT($C197,1),MATCH($E$2,'Data by Building Type'!$D$22:$F$22,0))=\"Yes\",1,0)*\n(AS$10*OFFSET('Efficiency Distributions'!$D$10,MATCH($C197,'Efficiency Distributions'!$C$9:$C$87,0)+RIGHT($E207),0)\n+AS$11*OFFSET('Efficiency Distributions'!$E$10,MATCH($C197,'Efficiency Distributions'!$C$9:$C$87,0)+RIGHT($E207),0))\n/SUM(AS$10:AS$11)","v":0},{"$f":"IF(INDEX(PC_MAPPING,RIGHT($C197,1),MATCH($E$2,'Data by Building Type'!$D$22:$F$22,0))=\"Yes\",1,0)*\n(AT$10*OFFSET('Efficiency Distributions'!$D$10,MATCH($C197,'Efficiency Distributions'!$C$9:$C$87,0)+RIGHT($E207),0)\n+AT$11*OFFSET('Efficiency Distributions'!$E$10,MATCH($C197,'Efficiency Distributions'!$C$9:$C$87,0)+RIGHT($E207),0))\n/SUM(AT$10:AT$11)","v":0},{"$f":"IF(INDEX(PC_MAPPING,RIGHT($C197,1),MATCH($E$2,'Data by Building Type'!$D$22:$F$22,0))=\"Yes\",1,0)*\n(AU$10*OFFSET('Efficiency Distributions'!$D$10,MATCH($C197,'Efficiency Distributions'!$C$9:$C$87,0)+RIGHT($E207),0)\n+AU$11*OFFSET('Efficiency Distributions'!$E$10,MATCH($C197,'Efficiency Distributions'!$C$9:$C$87,0)+RIGHT($E207),0))\n/SUM(AU$10:AU$11)","v":0},{"$f":"IF(INDEX(PC_MAPPING,RIGHT($C197,1),MATCH($E$2,'Data by Building Type'!$D$22:$F$22,0))=\"Yes\",1,0)*\n(AV$10*OFFSET('Efficiency Distributions'!$D$10,MATCH($C197,'Efficiency Distributions'!$C$9:$C$87,0)+RIGHT($E207),0)\n+AV$11*OFFSET('Efficiency Distributions'!$E$10,MATCH($C197,'Efficiency Distributions'!$C$9:$C$87,0)+RIGHT($E207),0))\n/SUM(AV$10:AV$11)","v":0},{"$f":"IF(INDEX(PC_MAPPING,RIGHT($C197,1),MATCH($E$2,'Data by Building Type'!$D$22:$F$22,0))=\"Yes\",1,0)*\n(AW$10*OFFSET('Efficiency Distributions'!$D$10,MATCH($C197,'Efficiency Distributions'!$C$9:$C$87,0)+RIGHT($E207),0)\n+AW$11*OFFSET('Efficiency Distributions'!$E$10,MATCH($C197,'Efficiency Distributions'!$C$9:$C$87,0)+RIGHT($E207),0))\n/SUM(AW$10:AW$11)","v":0},{"$f":"IF(INDEX(PC_MAPPING,RIGHT($C197,1),MATCH($E$2,'Data by Building Type'!$D$22:$F$22,0))=\"Yes\",1,0)*\n(AX$10*OFFSET('Efficiency Distributions'!$D$10,MATCH($C197,'Efficiency Distributions'!$C$9:$C$87,0)+RIGHT($E207),0)\n+AX$11*OFFSET('Efficiency Distributions'!$E$10,MATCH($C197,'Efficiency Distributions'!$C$9:$C$87,0)+RIGHT($E207),0))\n/SUM(AX$10:AX$11)","v":0},{"$f":"IF(INDEX(PC_MAPPING,RIGHT($C197,1),MATCH($E$2,'Data by Building Type'!$D$22:$F$22,0))=\"Yes\",1,0)*\n(AY$10*OFFSET('Efficiency Distributions'!$D$10,MATCH($C197,'Efficiency Distributions'!$C$9:$C$87,0)+RIGHT($E207),0)\n+AY$11*OFFSET('Efficiency Distributions'!$E$10,MATCH($C197,'Efficiency Distributions'!$C$9:$C$87,0)+RIGHT($E207),0))\n/SUM(AY$10:AY$11)","v":0},{"$f":"IF(INDEX(PC_MAPPING,RIGHT($C197,1),MATCH($E$2,'Data by Building Type'!$D$22:$F$22,0))=\"Yes\",1,0)*\n(AZ$10*OFFSET('Efficiency Distributions'!$D$10,MATCH($C197,'Efficiency Distributions'!$C$9:$C$87,0)+RIGHT($E207),0)\n+AZ$11*OFFSET('Efficiency Distributions'!$E$10,MATCH($C197,'Efficiency Distributions'!$C$9:$C$87,0)+RIGHT($E207),0))\n/SUM(AZ$10:AZ$11)","v":0},{"$f":"IF(INDEX(PC_MAPPING,RIGHT($C197,1),MATCH($E$2,'Data by Building Type'!$D$22:$F$22,0))=\"Yes\",1,0)*\n(BA$10*OFFSET('Efficiency Distributions'!$D$10,MATCH($C197,'Efficiency Distributions'!$C$9:$C$87,0)+RIGHT($E207),0)\n+BA$11*OFFSET('Efficiency Distributions'!$E$10,MATCH($C197,'Efficiency Distributions'!$C$9:$C$87,0)+RIGHT($E207),0))\n/SUM(BA$10:BA$11)","v":0},{"$f":"IF(INDEX(PC_MAPPING,RIGHT($C197,1),MATCH($E$2,'Data by Building Type'!$D$22:$F$22,0))=\"Yes\",1,0)*\n(BB$10*OFFSET('Efficiency Distributions'!$D$10,MATCH($C197,'Efficiency Distributions'!$C$9:$C$87,0)+RIGHT($E207),0)\n+BB$11*OFFSET('Efficiency Distributions'!$E$10,MATCH($C197,'Efficiency Distributions'!$C$9:$C$87,0)+RIGHT($E207),0))\n/SUM(BB$10:BB$11)","v":0},{"$f":"IF(INDEX(PC_MAPPING,RIGHT($C197,1),MATCH($E$2,'Data by Building Type'!$D$22:$F$22,0))=\"Yes\",1,0)*\n(BC$10*OFFSET('Efficiency Distributions'!$D$10,MATCH($C197,'Efficiency Distributions'!$C$9:$C$87,0)+RIGHT($E207),0)\n+BC$11*OFFSET('Efficiency Distributions'!$E$10,MATCH($C197,'Efficiency Distributions'!$C$9:$C$87,0)+RIGHT($E207),0))\n/SUM(BC$10:BC$11)","v":0},{"$f":"IF(INDEX(PC_MAPPING,RIGHT($C197,1),MATCH($E$2,'Data by Building Type'!$D$22:$F$22,0))=\"Yes\",1,0)*\n(BD$10*OFFSET('Efficiency Distributions'!$D$10,MATCH($C197,'Efficiency Distributions'!$C$9:$C$87,0)+RIGHT($E207),0)\n+BD$11*OFFSET('Efficiency Distributions'!$E$10,MATCH($C197,'Efficiency Distributions'!$C$9:$C$87,0)+RIGHT($E207),0))\n/SUM(BD$10:BD$11)","v":0},{"$f":"IF(INDEX(PC_MAPPING,RIGHT($C197,1),MATCH($E$2,'Data by Building Type'!$D$22:$F$22,0))=\"Yes\",1,0)*\n(BE$10*OFFSET('Efficiency Distributions'!$D$10,MATCH($C197,'Efficiency Distributions'!$C$9:$C$87,0)+RIGHT($E207),0)\n+BE$11*OFFSET('Efficiency Distributions'!$E$10,MATCH($C197,'Efficiency Distributions'!$C$9:$C$87,0)+RIGHT($E207),0))\n/SUM(BE$10:BE$11)","v":0},{"$f":"IF(INDEX(PC_MAPPING,RIGHT($C197,1),MATCH($E$2,'Data by Building Type'!$D$22:$F$22,0))=\"Yes\",1,0)*\n(BF$10*OFFSET('Efficiency Distributions'!$D$10,MATCH($C197,'Efficiency Distributions'!$C$9:$C$87,0)+RIGHT($E207),0)\n+BF$11*OFFSET('Efficiency Distributions'!$E$10,MATCH($C197,'Efficiency Distributions'!$C$9:$C$87,0)+RIGHT($E207),0))\n/SUM(BF$10:BF$11)","v":0},{"$f":"IF(INDEX(PC_MAPPING,RIGHT($C197,1),MATCH($E$2,'Data by Building Type'!$D$22:$F$22,0))=\"Yes\",1,0)*\n(BG$10*OFFSET('Efficiency Distributions'!$D$10,MATCH($C197,'Efficiency Distributions'!$C$9:$C$87,0)+RIGHT($E207),0)\n+BG$11*OFFSET('Efficiency Distributions'!$E$10,MATCH($C197,'Efficiency Distributions'!$C$9:$C$87,0)+RIGHT($E207),0))\n/SUM(BG$10:BG$11)","v":0}]
[null,null,null,null,"TOTAL",{"$f":"SUM(F201:F207)","v":1},1,1,{"$f":"SUM(I201:I207)","v":1},1,1,1,0.99999999999999978,1,1,1,1,1,1,0.99999999999999989,1,1,1,1,0.99999999999999978,1,1,1,1,0.99999999999999989,1,1,1,1,1,1,0.99999999999999978,1,1,1,1,1,1,1,1,1,1,1,1,1,1,1,0.99999999999999989,1,1,1,0.99999999999999989,0.99999999999999989,1]
[]
[null,null,null,"POST-Case"]
[null,null,null,null,"Efficiency Level",1981,{"$f":"F211+1","v":1982},{"$f":"G211+1","v":1983},{"$f":"H211+1","v":1984},{"$f":"I211+1","v":1985},{"$f":"J211+1","v":1986},{"$f":"K211+1","v":1987},{"$f":"L211+1","v":1988},{"$f":"M211+1","v":1989},{"$f":"N211+1","v":1990},{"$f":"O211+1","v":1991},{"$f":"P211+1","v":1992},{"$f":"Q211+1","v":1993},{"$f":"R211+1","v":1994},1995,1996,1997,1998,1999,2000,2001,2002,2003,2004,2005,2006,2007,2008,2009,2010,2011,2012,2013,2014,2015,2016,2017,2018,2019,2020,2021,2022,2023,2024,2025,2026,2027,2028,2029,2030,2031,2032,2033,2034]
[null,null,null,null,"EL0",{"$f":"IF(F$29<STANDARD_YEAR,F201,\nIF(RIGHT($E212,1)>RIGHT(INDEX(STANDARD_LEVELS,1,MID($C197,4,1)),1),F201,\nIF(RIGHT($E212,1)<RIGHT(INDEX(STANDARD_LEVELS,1,MID($C197,4,1)),1),0,\nIF(RIGHT($E212,1)=RIGHT(INDEX(STANDARD_LEVELS,1,MID($C197,4,1)),1),SUM(OFFSET(F201,-(RIGHT($E212,1)),0,RIGHT($E212,1)+1,1)),\"ERROR\"))))","v":0.28120153500108741},0.2678475841483281,0.28825902318402591,{"$f":"IF(I$29<STANDARD_YEAR,I201,\nIF(RIGHT($E212,1)>RIGHT(INDEX(STANDARD_LEVELS,1,MID($C197,4,1)),1),I201,\nIF(RIGHT($E212,1)<RIGHT(INDEX(STANDARD_LEVELS,1,MID($C197,4,1)),1),0,\nIF(RIGHT($E212,1)=RIGHT(INDEX(STANDARD_LEVELS,1,MID($C197,4,1)),1),SUM(OFFSET(I201,-(RIGHT($E212,1)),0,RIGHT($E212,1)+1,1)),\"ERROR\"))))","v":0.2870780380975233},0.27665560998192457,0.26494546751339454,0.26159780827872292,0.26986225101992856,0.27588486366096615,0.28698673729319707,0.28666350376787009,0.2965180701718077,0.3075326346243043,0.31760055642390822,0.31437694497596036,0.30473959741009432,0.30506230469304635,0.30738555922912086,0.29247972555353902,0.26169895284407491,0.24231892882083231,0.21507370094019199,0.21438681827628928,0.20710368745009036,0.20713895418955905,0.20724023765362976,0.22218964312709163,0.22483361674418179,0.22293001620161945,0.22104770796821249,0.21656954121503399,0.22545231869566668,0.2200434499568773,0.21371532954420158,0.20799125356201725,0.20736284191770119,0.20940724486711693,0.20911305817055589,0,0,0,0,0,0,0,0,0,0,0,0,0,0,0,0]
[null,null,null,null,"EL1",{"$f":"IF(F$29<STANDARD_YEAR,F202,\nIF(RIGHT($E213,1)>RIGHT(INDEX(STANDARD_LEVELS,1,MID($C197,4,1)),1),F202,\nIF(RIGHT($E213,1)<RIGHT(INDEX(STANDARD_LEVELS,1,MID($C197,4,1)),1),0,\nIF(RIGHT($E213,1)=RIGHT(INDEX(STANDARD_LEVELS,1,MID($C197,4,1)),1),SUM(OFFSET(F202,-(RIGHT($E213,1)),0,RIGHT($E213,1)+1,1)),\"ERROR\"))))","v":0.32645999546168036},0.31742077109303951,0.33123717487981719,{"$f":"IF(I$29<STANDARD_YEAR,I202,\nIF(RIGHT($E213,1)>RIGHT(INDEX(STANDARD_LEVELS,1,MID($C197,4,1)),1),I202,\nIF(RIGHT($E213,1)<RIGHT(INDEX(STANDARD_LEVELS,1,MID($C197,4,1)),1),0,\nIF(RIGHT($E213,1)=RIGHT(INDEX(STANDARD_LEVELS,1,MID($C197,4,1)),1),SUM(OFFSET(I202,-(RIGHT($E213,1)),0,RIGHT($E213,1)+1,1)),\"ERROR\"))))","v":0.33043777181995715},0.323382880930984,0.31545634246091608,0.31319032821048198,0.31878448929758124,0.32286116649581303,0.33037597074966402,0.33015717554881951,0.3368276836076729,0.34428338870249875,0.35109831599075864,0.34891626908369677,0.34239279539961937,0.34261123438956037,0.3441838340829837,0.33409414778109153,0.31325879247472599,0.3001405484923062,0.28169838628104055,0.28123343874735507,0.27630352292168969,0.27632739480607221,0.27639595309018328,0.28651513293009467,0.28830482580924033,0.28701628786251493,0.28574216257627499,0.28271091328619663,0.28872362215037206,0.28506238521386329,0.28077891129122773,0.27690431210506844,0.27647894332009448,0.27786278973105105,0.27766365618729266,0,0,0,0,0,0,0,0,0,0,0,0,0,0,0,0]
[null,null,null,null,"EL2",{"$f":"IF(F$29<STANDARD_YEAR,F203,\nIF(RIGHT($E214,1)>RIGHT(INDEX(STANDARD_LEVELS,1,MID($C197,4,1)),1),F203,\nIF(RIGHT($E214,1)<RIGHT(INDEX(STANDARD_LEVELS,1,MID($C197,4,1)),1),0,\nIF(RIGHT($E214,1)=RIGHT(INDEX(STANDARD_LEVELS,1,MID($C197,4,1)),1),SUM(OFFSET(F203,-(RIGHT($E214,1)),0,RIGHT($E214,1)+1,1)),\"ERROR\"))))","v":0},0,0,{"$f":"IF(I$29<STANDARD_YEAR,I203,\nIF(RIGHT($E214,1)>RIGHT(INDEX(STANDARD_LEVELS,1,MID($C197,4,1)),1),I203,\nIF(RIGHT($E214,1)<RIGHT(INDEX(STANDARD_LEVELS,1,MID($C197,4,1)),1),0,\nIF(RIGHT($E214,1)=RIGHT(INDEX(STANDARD_LEVELS,1,MID($C197,4,1)),1),SUM(OFFSET(I203,-(RIGHT($E214,1)),0,RIGHT($E214,1)+1,1)),\"ERROR\"))))","v":0},0,0,0,0,0,0,0,0,0,0,0,0,0,0,0,0,0,0,0,0,0,0,0,0,0,0,0,0,0,0,0,0,0,0,0,0,0,0,0,0,0,0,0,0,0,0,0,0,0,0]
[null,null,null,null,"EL3",{"$f":"IF(F$29<STANDARD_YEAR,F204,\nIF(RIGHT($E215,1)>RIGHT(INDEX(STANDARD_LEVELS,1,MID($C197,4,1)),1),F204,\nIF(RIGHT($E215,1)<RIGHT(INDEX(STANDARD_LEVELS,1,MID($C197,4,1)),1),0,\nIF(RIGHT($E215,1)=RIGHT(INDEX(STANDARD_LEVELS,1,MID($C197,4,1)),1),SUM(OFFSET(F204,-(RIGHT($E215,1)),0,RIGHT($E215,1)+1,1)),\"ERROR\"))))","v":0.12521440517145707},0.13236116322084013,0.12143738359664583,{"$f":"IF(I$29<STANDARD_YEAR,I204,\nIF(RIGHT($E215,1)>RIGHT(INDEX(STANDARD_LEVELS,1,MID($C197,4,1)),1),I204,\nIF(RIGHT($E215,1)<RIGHT(INDEX(STANDARD_LEVELS,1,MID($C197,4,1)),1),0,\nIF(RIGHT($E215,1)=RIGHT(INDEX(STANDARD_LEVELS,1,MID($C197,4,1)),1),SUM(OFFSET(I204,-(RIGHT($E215,1)),0,RIGHT($E215,1)+1,1)),\"ERROR\"))))","v":0.12206942236676156},0.12764729013417811,0.13391431596564554,0.13570591388642395,0.13128295521781599,0.12805977760953852,0.12211828466717198,0.12229127255850332,0.11701731262357001,0.11112254574676496,0.105734402420851,0.10745961253415197,0.11261732144370838,0.11244461518640211,0.11120125745358365,0.11917855106341577,0.13565178340889333,0.14602357107027492,0.16060465301450025,0.16097225839670923,0.16487003924304891,0.16485116521416024,0.16479696040091071,0.15679634806685541,0.15538134812124826,0.15640011572421245,0.15740748812409974,0.15980411026556471,0.15505023164488124,0.15794494622210406,0.16133162526528852,0.16439503223390881,0.16473134513687371,0.1636372230005847,0.16379466563047387,0,0,0,0,0,0,0,0,0,0,0,0,0,0,0,0]
[null,null,null,null,"EL4",{"$f":"IF(F$29<STANDARD_YEAR,F205,\nIF(RIGHT($E216,1)>RIGHT(INDEX(STANDARD_LEVELS,1,MID($C197,4,1)),1),F205,\nIF(RIGHT($E216,1)<RIGHT(INDEX(STANDARD_LEVELS,1,MID($C197,4,1)),1),0,\nIF(RIGHT($E216,1)=RIGHT(INDEX(STANDARD_LEVELS,1,MID($C197,4,1)),1),SUM(OFFSET(F205,-(RIGHT($E216,1)),0,RIGHT($E216,1)+1,1)),\"ERROR\"))))","v":0},0,0,{"$f":"IF(I$29<STANDARD_YEAR,I205,\nIF(RIGHT($E216,1)>RIGHT(INDEX(STANDARD_LEVELS,1,MID($C197,4,1)),1),I205,\nIF(RIGHT($E216,1)<RIGHT(INDEX(STANDARD_LEVELS,1,MID($C197,4,1)),1),0,\nIF(RIGHT($E216,1)=RIGHT(INDEX(STANDARD_LEVELS,1,MID($C197,4,1)),1),SUM(OFFSET(I205,-(RIGHT($E216,1)),0,RIGHT($E216,1)+1,1)),\"ERROR\"))))","v":0},0,0,0,0,0,0,0,0,0,0,0,0,0,0,0,0,0,0,0,0,0,0,0,0,0,0,0,0,0,0,0,0,0,0,0.65047178662591265,0.65728541978813504,0.66988745672824723,0.67838749855116198,0.65639079581096815,0.66156200174489166,0.65648446005964023,0.65606850057555732,0.65794413057029799,0.65618208615736817,0.65434596097850695,0.65050627910008596,0.64963577051679067,0.64773425411886687,0.64648324265364643,0.64500211236917826]
[null,null,null,null,"EL5",{"$f":"IF(F$29<STANDARD_YEAR,F206,\nIF(RIGHT($E217,1)>RIGHT(INDEX(STANDARD_LEVELS,1,MID($C197,4,1)),1),F206,\nIF(RIGHT($E217,1)<RIGHT(INDEX(STANDARD_LEVELS,1,MID($C197,4,1)),1),0,\nIF(RIGHT($E217,1)=RIGHT(INDEX(STANDARD_LEVELS,1,MID($C197,4,1)),1),SUM(OFFSET(F206,-(RIGHT($E217,1)),0,RIGHT($E217,1)+1,1)),\"ERROR\"))))","v":0.26712406436577513},0.28237048153779226,0.25906641833951105,{"$f":"IF(I$29<STANDARD_YEAR,I206,\nIF(RIGHT($E217,1)>RIGHT(INDEX(STANDARD_LEVELS,1,MID($C197,4,1)),1),I206,\nIF(RIGHT($E217,1)<RIGHT(INDEX(STANDARD_LEVELS,1,MID($C197,4,1)),1),0,\nIF(RIGHT($E217,1)=RIGHT(INDEX(STANDARD_LEVELS,1,MID($C197,4,1)),1),SUM(OFFSET(I206,-(RIGHT($E217,1)),0,RIGHT($E217,1)+1,1)),\"ERROR\"))))","v":0.260414767715758},0.2723142189529133,0.28568387406004381,0.28950594962437115,0.28007030446467407,0.27319419223368219,0.26051900728996691,0.26088804812480709,0.24963693359694933,0.23706143092643195,0.22556672516448212,0.22924717340619086,0.24025028574657786,0.23988184573099114,0.2372293492343118,0.25424757560195366,0.28939047127230572,0.31151695161658655,0.34262325976426722,0.34340748457964637,0.35172275038517103,0.35168248579020844,0.35156684885527617,0.33449887587595822,0.33148020932532957,0.3336535802116532,0.33580264133141269,0.34091543523320467,0.33077382750907997,0.33694921860715532,0.34417413389928214,0.35070940209900542,0.3514268696253306,0.34909274240124732,0.34942862001167763,0.34952821337408729,0.34271458021186491,0.33011254327175282,0.32161250144883802,0.34360920418903179,0.33843799825510834,0.34351553994035983,0.34393149942444268,0.34205586942970201,0.34381791384263172,0.34565403902149311,0.3494937208999141,0.35036422948320933,0.35226574588113302,0.35351675734635346,0.35499788763082185]
[null,null,null,null,"EL6",{"$f":"IF(F$29<STANDARD_YEAR,F207,\nIF(RIGHT($E218,1)>RIGHT(INDEX(STANDARD_LEVELS,1,MID($C197,4,1)),1),F207,\nIF(RIGHT($E218,1)<RIGHT(INDEX(STANDARD_LEVELS,1,MID($C197,4,1)),1),0,\nIF(RIGHT($E218,1)=RIGHT(INDEX(STANDARD_LEVELS,1,MID($C197,4,1)),1),SUM(OFFSET(F207,-(RIGHT($E218,1)),0,RIGHT($E218,1)+1,1)),\"ERROR\"))))","v":0},0,0,{"$f":"IF(I$29<STANDARD_YEAR,I207,\nIF(RIGHT($E218,1)>RIGHT(INDEX(STANDARD_LEVELS,1,MID($C197,4,1)),1),I207,\nIF(RIGHT($E218,1)<RIGHT(INDEX(STANDARD_LEVELS,1,MID($C197,4,1)),1),0,\nIF(RIGHT($E218,1)=RIGHT(INDEX(STANDARD_LEVELS,1,MID($C197,4,1)),1),SUM(OFFSET(I207,-(RIGHT($E218,1)),0,RIGHT($E218,1)+1,1)),\"ERROR\"))))","v":0},0,0,0,0,0,0,0,0,0,0,0,0,0,0,0,0,0,0,0,0,0,0,0,0,0,0,0,0,0,0,0,0,0,0,0,0,0,0,0,0,0,0,0,0,0,0,0,0,0,0]
[null,null,null,null,"TOTAL",{"$f":"SUM(F212:F218)","v":1},1,1,{"$f":"SUM(I212:I218)","v":1},1,1,1,0.99999999999999978,1,1,1,1,1,1,0.99999999999999989,1,1,1,1,0.99999999999999978,1,1,1,1,0.99999999999999989,1,1,1,1,1,1,0.99999999999999978,1,1,1,1,1,1,1,1,1,1,1,1,1,1,1,0.99999999999999989,1,1,1,0.99999999999999989,0.99999999999999989,1]

{"sheet":"Shipments and Stock - SF","index":14,"n_rows":15,"n_cols":58,"rows_kept":15,"cut":false,"hidden":false,"merged":[]}
[]
[null,null,"Shipments and Stock - SF"]
[]
[null,null,"NAVIGATION"]
[]
[null,null,"COMMENTS"]
[]
[]
[null,null,{"$f":"MODEL_NAME","v":"Furnace Fans"}]
[null,null,null,null,1981,1982,1983,1984,1985,1986,1987,1988,1989,1990,1991,1992,1993,1994,1995,1996,1997,1998,1999,2000,2001,2002,2003,2004,2005,2006,2007,2008,2009,2010,2011,2012,2013,2014,2015,2016,2017,2018,2019,2020,2021,2022,2023,2024,2025,2026,2027,2028,2029,2030,2031,2032,2033,2034]
[null,null,"6P Shipments","(units)",{"$f":"IF(ISNUMBER(MATCH(E10,[1]!SIXTH_PLAN_SF_YEARS,0)),\nINDEX([1]!SIXTH_PLAN_SF,\nMATCH($C$9,[1]!APPLIANCES,0),\nMATCH(E$10,[1]!SIXTH_PLAN_SF_YEARS,0)),\"pre-dates plan\")","v":"pre-dates plan"},{"$f":"IF(ISNUMBER(MATCH(F10,[1]!SIXTH_PLAN_SF_YEARS,0)),\nINDEX([1]!SIXTH_PLAN_SF,\nMATCH($C$9,[1]!APPLIANCES,0),\nMATCH(F$10,[1]!SIXTH_PLAN_SF_YEARS,0)),\"pre-dates plan\")","v":"pre-dates plan"},{"$f":"IF(ISNUMBER(MATCH(G10,[1]!SIXTH_PLAN_SF_YEARS,0)),\nINDEX([1]!SIXTH_PLAN_SF,\nMATCH($C$9,[1]!APPLIANCES,0),\nMATCH(G$10,[1]!SIXTH_PLAN_SF_YEARS,0)),\"pre-dates plan\")","v":"pre-dates plan"},{"$f":"IF(ISNUMBER(MATCH(H10,[1]!SIXTH_PLAN_SF_YEARS,0)),\nINDEX([1]!SIXTH_PLAN_SF,\nMATCH($C$9,[1]!APPLIANCES,0),\nMATCH(H$10,[1]!SIXTH_PLAN_SF_YEARS,0)),\"pre-dates plan\")","v":"pre-dates plan"},{"$f":"IF(ISNUMBER(MATCH(I10,[1]!SIXTH_PLAN_SF_YEARS,0)),\nINDEX([1]!SIXTH_PLAN_SF,\nMATCH($C$9,[1]!APPLIANCES,0),\nMATCH(I$10,[1]!SIXTH_PLAN_SF_YEARS,0)),\"pre-dates plan\")","v":"pre-dates plan"},{"$f":"IF(ISNUMBER(MATCH(J10,[1]!SIXTH_PLAN_SF_YEARS,0)),\nINDEX([1]!SIXTH_PLAN_SF,\nMATCH($C$9,[1]!APPLIANCES,0),\nMATCH(J$10,[1]!SIXTH_PLAN_SF_YEARS,0)),\"pre-dates plan\")","v":"pre-dates plan"},{"$f":"IF(ISNUMBER(MATCH(K10,[1]!SIXTH_PLAN_SF_YEARS,0)),\nINDEX([1]!SIXTH_PLAN_SF,\nMATCH($C$9,[1]!APPLIANCES,0),\nMATCH(K$10,[1]!SIXTH_PLAN_SF_YEARS,0)),\"pre-dates plan\")","v":"pre-dates plan"},{"$f":"IF(ISNUMBER(MATCH(L10,[1]!SIXTH_PLAN_SF_YEARS,0)),\nINDEX([1]!SIXTH_PLAN_SF,\nMATCH($C$9,[1]!APPLIANCES,0),\nMATCH(L$10,[1]!SIXTH_PLAN_SF_YEARS,0)),\"pre-dates plan\")","v":"pre-dates plan"},{"$f":"IF(ISNUMBER(MATCH(M10,[1]!SIXTH_PLAN_SF_YEARS,0)),\nINDEX([1]!SIXTH_PLAN_SF,\nMATCH($C$9,[1]!APPLIANCES,0),\nMATCH(M$10,[1]!SIXTH_PLAN_SF_YEARS,0)),\"pre-dates plan\")","v":"pre-dates plan"},{"$f":"IF(ISNUMBER(MATCH(N10,[1]!SIXTH_PLAN_SF_YEARS,0)),\nINDEX([1]!SIXTH_PLAN_SF,\nMATCH($C$9,[1]!APPLIANCES,0),\nMATCH(N$10,[1]!SIXTH_PLAN_SF_YEARS,0)),\"pre-dates plan\")","v":"pre-dates plan"},{"$f":"IF(ISNUMBER(MATCH(O10,[1]!SIXTH_PLAN_SF_YEARS,0)),\nINDEX([1]!SIXTH_PLAN_SF,\nMATCH($C$9,[1]!APPLIANCES,0),\nMATCH(O$10,[1]!SIXTH_PLAN_SF_YEARS,0)),\"pre-dates plan\")","v":"pre-dates plan"},{"$f":"IF(ISNUMBER(MATCH(P10,[1]!SIXTH_PLAN_SF_YEARS,0)),\nINDEX([1]!SIXTH_PLAN_SF,\nMATCH($C$9,[1]!APPLIANCES,0),\nMATCH(P$10,[1]!SIXTH_PLAN_SF_YEARS,0)),\"pre-dates plan\")","v":"pre-dates plan"},{"$f":"IF(ISNUMBER(MATCH(Q10,[1]!SIXTH_PLAN_SF_YEARS,0)),\nINDEX([1]!SIXTH_PLAN_SF,\nMATCH($C$9,[1]!APPLIANCES,0),\nMATCH(Q$10,[1]!SIXTH_PLAN_SF_YEARS,0)),\"pre-dates plan\")","v":"pre-dates plan"},{"$f":"IF(ISNUMBER(MATCH(R10,[1]!SIXTH_PLAN_SF_YEARS,0)),\nINDEX([1]!SIXTH_PLAN_SF,\nMATCH($C$9,[1]!APPLIANCES,0),\nMATCH(R$10,[1]!SIXTH_PLAN_SF_YEARS,0)),\"pre-dates plan\")","v":"pre-dates plan"},{"$f":"IF(ISNUMBER(MATCH(S10,[1]!SIXTH_PLAN_SF_YEARS,0)),\nINDEX([1]!SIXTH_PLAN_SF,\nMATCH($C$9,[1]!APPLIANCES,0),\nMATCH(S$10,[1]!SIXTH_PLAN_SF_YEARS,0)),\"pre-dates plan\")","v":"pre-dates plan"},{"$f":"IF(ISNUMBER(MATCH(T10,[1]!SIXTH_PLAN_SF_YEARS,0)),\nINDEX([1]!SIXTH_PLAN_SF,\nMATCH($C$9,[1]!APPLIANCES,0),\nMATCH(T$10,[1]!SIXTH_PLAN_SF_YEARS,0)),\"pre-dates plan\")","v":"pre-dates plan"},{"$f":"IF(ISNUMBER(MATCH(U10,[1]!SIXTH_PLAN_SF_YEARS,0)),\nINDEX([1]!SIXTH_PLAN_SF,\nMATCH($C$9,[1]!APPLIANCES,0),\nMATCH(U$10,[1]!SIXTH_PLAN_SF_YEARS,0)),\"pre-dates plan\")","v":"pre-dates plan"},{"$f":"IF(ISNUMBER(MATCH(V10,[1]!SIXTH_PLAN_SF_YEARS,0)),\nINDEX([1]!SIXTH_PLAN_SF,\nMATCH($C$9,[1]!APPLIANCES,0),\nMATCH(V$10,[1]!SIXTH_PLAN_SF_YEARS,0)),\"pre-dates plan\")","v":"pre-dates plan"},{"$f":"IF(ISNUMBER(MATCH(W10,[1]!SIXTH_PLAN_SF_YEARS,0)),\nINDEX([1]!SIXTH_PLAN_SF,\nMATCH($C$9,[1]!APPLIANCES,0),\nMATCH(W$10,[1]!SIXTH_PLAN_SF_YEARS,0)),\"pre-dates plan\")","v":"pre-dates plan"},{"$f":"IF(ISNUMBER(MATCH(X10,[1]!SIXTH_PLAN_SF_YEARS,0)),\nINDEX([1]!SIXTH_PLAN_SF,\nMATCH($C$9,[1]!APPLIANCES,0),\nMATCH(X$10,[1]!SIXTH_PLAN_SF_YEARS,0)),\"pre-dates plan\")","v":"pre-dates plan"},{"$f":"IF(ISNUMBER(MATCH(Y10,[1]!SIXTH_PLAN_SF_YEARS,0)),\nINDEX([1]!SIXTH_PLAN_SF,\nMATCH($C$9,[1]!APPLIANCES,0),\nMATCH(Y$10,[1]!SIXTH_PLAN_SF_YEARS,0)),\"pre-dates plan\")","v":"pre-dates plan"},{"$f":"IF(ISNUMBER(MATCH(Z10,[1]!SIXTH_PLAN_SF_YEARS,0)),\nINDEX([1]!SIXTH_PLAN_SF,\nMATCH($C$9,[1]!APPLIANCES,0),\nMATCH(Z$10,[1]!SIXTH_PLAN_SF_YEARS,0)),\"pre-dates plan\")","v":"pre-dates plan"},{"$f":"IF(ISNUMBER(MATCH(AA10,[1]!SIXTH_PLAN_SF_YEARS,0)),\nINDEX([1]!SIXTH_PLAN_SF,\nMATCH($C$9,[1]!APPLIANCES,0),\nMATCH(AA$10,[1]!SIXTH_PLAN_SF_YEARS,0)),\"pre-dates plan\")","v":"pre-dates plan"},{"$f":"IF(ISNUMBER(MATCH(AB10,[1]!SIXTH_PLAN_SF_YEARS,0)),\nINDEX([1]!SIXTH_PLAN_SF,\nMATCH($C$9,[1]!APPLIANCES,0),\nMATCH(AB$10,[1]!SIXTH_PLAN_SF_YEARS,0)),\"pre-dates plan\")","v":"pre-dates plan"},{"$f":"IF(ISNUMBER(MATCH(AC10,[1]!SIXTH_PLAN_SF_YEARS,0)),\nINDEX([1]!SIXTH_PLAN_SF,\nMATCH($C$9,[1]!APPLIANCES,0),\nMATCH(AC$10,[1]!SIXTH_PLAN_SF_YEARS,0)),\"pre-dates plan\")","v":"pre-dates plan"},{"$f":"IF(ISNUMBER(MATCH(AD10,[1]!SIXTH_PLAN_SF_YEARS,0)),\nINDEX([1]!SIXTH_PLAN_SF,\nMATCH($C$9,[1]!APPLIANCES,0),\nMATCH(AD$10,[1]!SIXTH_PLAN_SF_YEARS,0)),\"pre-dates plan\")","v":"pre-dates plan"},{"$f":"IF(ISNUMBER(MATCH(AE10,[1]!SIXTH_PLAN_SF_YEARS,0)),\nINDEX([1]!SIXTH_PLAN_SF,\nMATCH($C$9,[1]!APPLIANCES,0),\nMATCH(AE$10,[1]!SIXTH_PLAN_SF_YEARS,0)),\"pre-dates plan\")","v":"pre-dates plan"},{"$f":"IF(ISNUMBER(MATCH(AF10,[1]!SIXTH_PLAN_SF_YEARS,0)),\nINDEX([1]!SIXTH_PLAN_SF,\nMATCH($C$9,[1]!APPLIANCES,0),\nMATCH(AF$10,[1]!SIXTH_PLAN_SF_YEARS,0)),\"pre-dates plan\")","v":"pre-dates plan"},{"$f":"IF(ISNUMBER(MATCH(AG10,[1]!SIXTH_PLAN_SF_YEARS,0)),\nINDEX([1]!SIXTH_PLAN_SF,\nMATCH($C$9,[1]!APPLIANCES,0),\nMATCH(AG$10,[1]!SIXTH_PLAN_SF_YEARS,0)),\"pre-dates plan\")","v":"pre-dates plan"},{"$f":"IF(ISNUMBER(MATCH(AH10,[1]!SIXTH_PLAN_SF_YEARS,0)),\nINDEX([1]!SIXTH_PLAN_SF,\nMATCH($C$9,[1]!APPLIANCES,0),\nMATCH(AH$10,[1]!SIXTH_PLAN_SF_YEARS,0)),\"pre-dates plan\")","v":108868.34683370564},{"$f":"IF(ISNUMBER(MATCH(AI10,[1]!SIXTH_PLAN_SF_YEARS,0)),\nINDEX([1]!SIXTH_PLAN_SF,\nMATCH($C$9,[1]!APPLIANCES,0),\nMATCH(AI$10,[1]!SIXTH_PLAN_SF_YEARS,0)),\"pre-dates plan\")","v":108868.34683370564},{"$f":"IF(ISNUMBER(MATCH(AJ10,[1]!SIXTH_PLAN_SF_YEARS,0)),\nINDEX([1]!SIXTH_PLAN_SF,\nMATCH($C$9,[1]!APPLIANCES,0),\nMATCH(AJ$10,[1]!SIXTH_PLAN_SF_YEARS,0)),\"pre-dates plan\")","v":108868.34683370564},{"$f":"IF(ISNUMBER(MATCH(AK10,[1]!SIXTH_PLAN_SF_YEARS,0)),\nINDEX([1]!SIXTH_PLAN_SF,\nMATCH($C$9,[1]!APPLIANCES,0),\nMATCH(AK$10,[1]!SIXTH_PLAN_SF_YEARS,0)),\"pre-dates plan\")","v":108868.34683370564},{"$f":"IF(ISNUMBER(MATCH(AL10,[1]!SIXTH_PLAN_SF_YEARS,0)),\nINDEX([1]!SIXTH_PLAN_SF,\nMATCH($C$9,[1]!APPLIANCES,0),\nMATCH(AL$10,[1]!SIXTH_PLAN_SF_YEARS,0)),\"pre-dates plan\")","v":108868.34683370564},{"$f":"IF(ISNUMBER(MATCH(AM10,[1]!SIXTH_PLAN_SF_YEARS,0)),\nINDEX([1]!SIXTH_PLAN_SF,\nMATCH($C$9,[1]!APPLIANCES,0),\nMATCH(AM$10,[1]!SIXTH_PLAN_SF_YEARS,0)),\"pre-dates plan\")","v":108868.34683370564},{"$f":"IF(ISNUMBER(MATCH(AN10,[1]!SIXTH_PLAN_SF_YEARS,0)),\nINDEX([1]!SIXTH_PLAN_SF,\nMATCH($C$9,[1]!APPLIANCES,0),\nMATCH(AN$10,[1]!SIXTH_PLAN_SF_YEARS,0)),\"pre-dates plan\")","v":108868.34683370564},{"$f":"IF(ISNUMBER(MATCH(AO10,[1]!SIXTH_PLAN_SF_YEARS,0)),\nINDEX([1]!SIXTH_PLAN_SF,\nMATCH($C$9,[1]!APPLIANCES,0),\nMATCH(AO$10,[1]!SIXTH_PLAN_SF_YEARS,0)),\"pre-dates plan\")","v":108868.34683370564},{"$f":"IF(ISNUMBER(MATCH(AP10,[1]!SIXTH_PLAN_SF_YEARS,0)),\nINDEX([1]!SIXTH_PLAN_SF,\nMATCH($C$9,[1]!APPLIANCES,0),\nMATCH(AP$10,[1]!SIXTH_PLAN_SF_YEARS,0)),\"pre-dates plan\")","v":108868.34683370564},{"$f":"IF(ISNUMBER(MATCH(AQ10,[1]!SIXTH_PLAN_SF_YEARS,0)),\nINDEX([1]!SIXTH_PLAN_SF,\nMATCH($C$9,[1]!APPLIANCES,0),\nMATCH(AQ$10,[1]!SIXTH_PLAN_SF_YEARS,0)),\"pre-dates plan\")","v":108868.34683370564},{"$f":"IF(ISNUMBER(MATCH(AR10,[1]!SIXTH_PLAN_SF_YEARS,0)),\nINDEX([1]!SIXTH_PLAN_SF,\nMATCH($C$9,[1]!APPLIANCES,0),\nMATCH(AR$10,[1]!SIXTH_PLAN_SF_YEARS,0)),\"pre-dates plan\")","v":108868.34683370564},{"$f":"IF(ISNUMBER(MATCH(AS10,[1]!SIXTH_PLAN_SF_YEARS,0)),\nINDEX([1]!SIXTH_PLAN_SF,\nMATCH($C$9,[1]!APPLIANCES,0),\nMATCH(AS$10,[1]!SIXTH_PLAN_SF_YEARS,0)),\"pre-dates plan\")","v":108868.34683370564},{"$f":"IF(ISNUMBER(MATCH(AT10,[1]!SIXTH_PLAN_SF_YEARS,0)),\nINDEX([1]!SIXTH_PLAN_SF,\nMATCH($C$9,[1]!APPLIANCES,0),\nMATCH(AT$10,[1]!SIXTH_PLAN_SF_YEARS,0)),\"pre-dates plan\")","v":108868.34683370564},{"$f":"IF(ISNUMBER(MATCH(AU10,[1]!SIXTH_PLAN_SF_YEARS,0)),\nINDEX([1]!SIXTH_PLAN_SF,\nMATCH($C$9,[1]!APPLIANCES,0),\nMATCH(AU$10,[1]!SIXTH_PLAN_SF_YEARS,0)),\"pre-dates plan\")","v":108868.34683370564},{"$f":"IF(ISNUMBER(MATCH(AV10,[1]!SIXTH_PLAN_SF_YEARS,0)),\nINDEX([1]!SIXTH_PLAN_SF,\nMATCH($C$9,[1]!APPLIANCES,0),\nMATCH(AV$10,[1]!SIXTH_PLAN_SF_YEARS,0)),\"pre-dates plan\")","v":108868.34683370564},{"$f":"IF(ISNUMBER(MATCH(AW10,[1]!SIXTH_PLAN_SF_YEARS,0)),\nINDEX([1]!SIXTH_PLAN_SF,\nMATCH($C$9,[1]!APPLIANCES,0),\nMATCH(AW$10,[1]!SIXTH_PLAN_SF_YEARS,0)),\"pre-dates plan\")","v":108868.34683370564},{"$f":"IF(ISNUMBER(MATCH(AX10,[1]!SIXTH_PLAN_SF_YEARS,0)),\nINDEX([1]!SIXTH_PLAN_SF,\nMATCH($C$9,[1]!APPLIANCES,0),\nMATCH(AX$10,[1]!SIXTH_PLAN_SF_YEARS,0)),\"pre-dates plan\")","v":108868.34683370564},{"$f":"IF(ISNUMBER(MATCH(AY10,[1]!SIXTH_PLAN_SF_YEARS,0)),\nINDEX([1]!SIXTH_PLAN_SF,\nMATCH($C$9,[1]!APPLIANCES,0),\nMATCH(AY$10,[1]!SIXTH_PLAN_SF_YEARS,0)),\"pre-dates plan\")","v":108868.34683370564},{"$f":"IF(ISNUMBER(MATCH(AZ10,[1]!SIXTH_PLAN_SF_YEARS,0)),\nINDEX([1]!SIXTH_PLAN_SF,\nMATCH($C$9,[1]!APPLIANCES,0),\nMATCH(AZ$10,[1]!SIXTH_PLAN_SF_YEARS,0)),\"pre-dates plan\")","v":108868.34683370564},{"$f":"IF(ISNUMBER(MATCH(BA10,[1]!SIXTH_PLAN_SF_YEARS,0)),\nINDEX([1]!SIXTH_PLAN_SF,\nMATCH($C$9,[1]!APPLIANCES,0),\nMATCH(BA$10,[1]!SIXTH_PLAN_SF_YEARS,0)),\"pre-dates plan\")","v":108868.34683370564},{"$f":"IF(ISNUMBER(MATCH(BB10,[1]!SIXTH_PLAN_SF_YEARS,0)),\nINDEX([1]!SIXTH_PLAN_SF,\nMATCH($C$9,[1]!APPLIANCES,0),\nMATCH(BB$10,[1]!SIXTH_PLAN_SF_YEARS,0)),\"pre-dates plan\")","v":108868.34683370564},{"$f":"IF(ISNUMBER(MATCH(BC10,[1]!SIXTH_PLAN_SF_YEARS,0)),\nINDEX([1]!SIXTH_PLAN_SF,\nMATCH($C$9,[1]!APPLIANCES,0),\nMATCH(BC$10,[1]!SIXTH_PLAN_SF_YEARS,0)),\"pre-dates plan\")","v":108868.34683370564},{"$f":"IF(ISNUMBER(MATCH(BD10,[1]!SIXTH_PLAN_SF_YEARS,0)),\nINDEX([1]!SIXTH_PLAN_SF,\nMATCH($C$9,[1]!APPLIANCES,0),\nMATCH(BD$10,[1]!SIXTH_PLAN_SF_YEARS,0)),\"pre-dates plan\")","v":108868.34683370564},{"$f":"IF(ISNUMBER(MATCH(BE10,[1]!SIXTH_PLAN_SF_YEARS,0)),\nINDEX([1]!SIXTH_PLAN_SF,\nMATCH($C$9,[1]!APPLIANCES,0),\nMATCH(BE$10,[1]!SIXTH_PLAN_SF_YEARS,0)),\"pre-dates plan\")","v":108868.34683370564},{"$f":"IF(ISNUMBER(MATCH(BF10,[1]!SIXTH_PLAN_SF_YEARS,0)),\nINDEX([1]!SIXTH_PLAN_SF,\nMATCH($C$9,[1]!APPLIANCES,0),\nMATCH(BF$10,[1]!SIXTH_PLAN_SF_YEARS,0)),\"pre-dates plan\")","v":108868.34683370564}]
[null,null,"Replacement Shipments","(units)",{"$f":"INDEX([1]!SHIPMENTS_SF,\n((MATCH($C$9,[1]!APPLIANCES,0)-1)*2)+1,\nMATCH(E$10,[1]!SHIPMENTS_SF_YEARS,0))","v":84371.90845117053},{"$f":"INDEX([1]!SHIPMENTS_SF,\n((MATCH($C$9,[1]!APPLIANCES,0)-1)*2)+1,\nMATCH(F$10,[1]!SHIPMENTS_SF_YEARS,0))","v":84371.90845117053},{"$f":"INDEX([1]!SHIPMENTS_SF,\n((MATCH($C$9,[1]!APPLIANCES,0)-1)*2)+1,\nMATCH(G$10,[1]!SHIPMENTS_SF_YEARS,0))","v":84371.90845117053},{"$f":"INDEX([1]!SHIPMENTS_SF,\n((MATCH($C$9,[1]!APPLIANCES,0)-1)*2)+1,\nMATCH(H$10,[1]!SHIPMENTS_SF_YEARS,0))","v":84371.90845117053},{"$f":"INDEX([1]!SHIPMENTS_SF,\n((MATCH($C$9,[1]!APPLIANCES,0)-1)*2)+1,\nMATCH(I$10,[1]!SHIPMENTS_SF_YEARS,0))","v":84371.90845117053},{"$f":"INDEX([1]!SHIPMENTS_SF,\n((MATCH($C$9,[1]!APPLIANCES,0)-1)*2)+1,\nMATCH(J$10,[1]!SHIPMENTS_SF_YEARS,0))","v":84371.90845117053},{"$f":"INDEX([1]!SHIPMENTS_SF,\n((MATCH($C$9,[1]!APPLIANCES,0)-1)*2)+1,\nMATCH(K$10,[1]!SHIPMENTS_SF_YEARS,0))","v":84371.90845117053},{"$f":"INDEX([1]!SHIPMENTS_SF,\n((MATCH($C$9,[1]!APPLIANCES,0)-1)*2)+1,\nMATCH(L$10,[1]!SHIPMENTS_SF_YEARS,0))","v":84371.90845117053},{"$f":"INDEX([1]!SHIPMENTS_SF,\n((MATCH($C$9,[1]!APPLIANCES,0)-1)*2)+1,\nMATCH(M$10,[1]!SHIPMENTS_SF_YEARS,0))","v":84371.90845117053},{"$f":"INDEX([1]!SHIPMENTS_SF,\n((MATCH($C$9,[1]!APPLIANCES,0)-1)*2)+1,\nMATCH(N$10,[1]!SHIPMENTS_SF_YEARS,0))","v":84371.90845117053},{"$f":"INDEX([1]!SHIPMENTS_SF,\n((MATCH($C$9,[1]!APPLIANCES,0)-1)*2)+1,\nMATCH(O$10,[1]!SHIPMENTS_SF_YEARS,0))","v":84371.90845117053},{"$f":"INDEX([1]!SHIPMENTS_SF,\n((MATCH($C$9,[1]!APPLIANCES,0)-1)*2)+1,\nMATCH(P$10,[1]!SHIPMENTS_SF_YEARS,0))","v":84371.90845117053},{"$f":"INDEX([1]!SHIPMENTS_SF,\n((MATCH($C$9,[1]!APPLIANCES,0)-1)*2)+1,\nMATCH(Q$10,[1]!SHIPMENTS_SF_YEARS,0))","v":84371.90845117053},{"$f":"INDEX([1]!SHIPMENTS_SF,\n((MATCH($C$9,[1]!APPLIANCES,0)-1)*2)+1,\nMATCH(R$10,[1]!SHIPMENTS_SF_YEARS,0))","v":84371.90845117053},{"$f":"INDEX([1]!SHIPMENTS_SF,\n((MATCH($C$9,[1]!APPLIANCES,0)-1)*2)+1,\nMATCH(S$10,[1]!SHIPMENTS_SF_YEARS,0))","v":84371.90845117053},{"$f":"INDEX([1]!SHIPMENTS_SF,\n((MATCH($C$9,[1]!APPLIANCES,0)-1)*2)+1,\nMATCH(T$10,[1]!SHIPMENTS_SF_YEARS,0))","v":84371.90845117053},{"$f":"INDEX([1]!SHIPMENTS_SF,\n((MATCH($C$9,[1]!APPLIANCES,0)-1)*2)+1,\nMATCH(U$10,[1]!SHIPMENTS_SF_YEARS,0))","v":84371.90845117053},{"$f":"INDEX([1]!SHIPMENTS_SF,\n((MATCH($C$9,[1]!APPLIANCES,0)-1)*2)+1,\nMATCH(V$10,[1]!SHIPMENTS_SF_YEARS,0))","v":84371.90845117053},{"$f":"INDEX([1]!SHIPMENTS_SF,\n((MATCH($C$9,[1]!APPLIANCES,0)-1)*2)+1,\nMATCH(W$10,[1]!SHIPMENTS_SF_YEARS,0))","v":84371.90845117053},{"$f":"INDEX([1]!SHIPMENTS_SF,\n((MATCH($C$9,[1]!APPLIANCES,0)-1)*2)+1,\nMATCH(X$10,[1]!SHIPMENTS_SF_YEARS,0))","v":84371.90845117053},{"$f":"INDEX([1]!SHIPMENTS_SF,\n((MATCH($C$9,[1]!APPLIANCES,0)-1)*2)+1,\nMATCH(Y$10,[1]!SHIPMENTS_SF_YEARS,0))","v":84371.90845117053},{"$f":"INDEX([1]!SHIPMENTS_SF,\n((MATCH($C$9,[1]!APPLIANCES,0)-1)*2)+1,\nMATCH(Z$10,[1]!SHIPMENTS_SF_YEARS,0))","v":106752.37104477371},{"$f":"INDEX([1]!SHIPMENTS_SF,\n((MATCH($C$9,[1]!APPLIANCES,0)-1)*2)+1,\nMATCH(AA$10,[1]!SHIPMENTS_SF_YEARS,0))","v":99761.371681895209},{"$f":"INDEX([1]!SHIPMENTS_SF,\n((MATCH($C$9,[1]!APPLIANCES,0)-1)*2)+1,\nMATCH(AB$10,[1]!SHIPMENTS_SF_YEARS,0))","v":108240.95195047031},{"$f":"INDEX([1]!SHIPMENTS_SF,\n((MATCH($C$9,[1]!APPLIANCES,0)-1)*2)+1,\nMATCH(AC$10,[1]!SHIPMENTS_SF_YEARS,0))","v":106551.8182045085},{"$f":"INDEX([1]!SHIPMENTS_SF,\n((MATCH($C$9,[1]!APPLIANCES,0)-1)*2)+1,\nMATCH(AD$10,[1]!SHIPMENTS_SF_YEARS,0))","v":105532.16605687616},{"$f":"INDEX([1]!SHIPMENTS_SF,\n((MATCH($C$9,[1]!APPLIANCES,0)-1)*2)+1,\nMATCH(AE$10,[1]!SHIPMENTS_SF_YEARS,0))","v":107225.97959518769},{"$f":"INDEX([1]!SHIPMENTS_SF,\n((MATCH($C$9,[1]!APPLIANCES,0)-1)*2)+1,\nMATCH(AF$10,[1]!SHIPMENTS_SF_YEARS,0))","v":97403.981864838046},{"$f":"INDEX([1]!SHIPMENTS_SF,\n((MATCH($C$9,[1]!APPLIANCES,0)-1)*2)+1,\nMATCH(AG$10,[1]!SHIPMENTS_SF_YEARS,0))","v":94811.966913691576},{"$f":"INDEX([1]!SHIPMENTS_SF,\n((MATCH($C$9,[1]!APPLIANCES,0)-1)*2)+1,\nMATCH(AH$10,[1]!SHIPMENTS_SF_YEARS,0))","v":109293.70198997027},{"$f":"INDEX([1]!SHIPMENTS_SF,\n((MATCH($C$9,[1]!APPLIANCES,0)-1)*2)+1,\nMATCH(AI$10,[1]!SHIPMENTS_SF_YEARS,0))","v":119842.83541635924},{"$f":"INDEX([1]!SHIPMENTS_SF,\n((MATCH($C$9,[1]!APPLIANCES,0)-1)*2)+1,\nMATCH(AJ$10,[1]!SHIPMENTS_SF_YEARS,0))","v":115444.23754602751},{"$f":"INDEX([1]!SHIPMENTS_SF,\n((MATCH($C$9,[1]!APPLIANCES,0)-1)*2)+1,\nMATCH(AK$10,[1]!SHIPMENTS_SF_YEARS,0))","v":122861.03018965936},{"$f":"INDEX([1]!SHIPMENTS_SF,\n((MATCH($C$9,[1]!APPLIANCES,0)-1)*2)+1,\nMATCH(AL$10,[1]!SHIPMENTS_SF_YEARS,0))","v":104431.23400621291},{"$f":"INDEX([1]!SHIPMENTS_SF,\n((MATCH($C$9,[1]!APPLIANCES,0)-1)*2)+1,\nMATCH(AM$10,[1]!SHIPMENTS_SF_YEARS,0))","v":106033.22317914233},{"$f":"INDEX([1]!SHIPMENTS_SF,\n((MATCH($C$9,[1]!APPLIANCES,0)-1)*2)+1,\nMATCH(AN$10,[1]!SHIPMENTS_SF_YEARS,0))","v":100360.44858040972},{"$f":"INDEX([1]!SHIPMENTS_SF,\n((MATCH($C$9,[1]!APPLIANCES,0)-1)*2)+1,\nMATCH(AO$10,[1]!SHIPMENTS_SF_YEARS,0))","v":101139.9745478368},{"$f":"INDEX([1]!SHIPMENTS_SF,\n((MATCH($C$9,[1]!APPLIANCES,0)-1)*2)+1,\nMATCH(AP$10,[1]!SHIPMENTS_SF_YEARS,0))","v":99991.325338582858},{"$f":"INDEX([1]!SHIPMENTS_SF,\n((MATCH($C$9,[1]!APPLIANCES,0)-1)*2)+1,\nMATCH(AQ$10,[1]!SHIPMENTS_SF_YEARS,0))","v":100538.83852541665},{"$f":"INDEX([1]!SHIPMENTS_SF,\n((MATCH($C$9,[1]!APPLIANCES,0)-1)*2)+1,\nMATCH(AR$10,[1]!SHIPMENTS_SF_YEARS,0))","v":98802.098748169257},{"$f":"INDEX([1]!SHIPMENTS_SF,\n((MATCH($C$9,[1]!APPLIANCES,0)-1)*2)+1,\nMATCH(AS$10,[1]!SHIPMENTS_SF_YEARS,0))","v":94817.163352329619},{"$f":"INDEX([1]!SHIPMENTS_SF,\n((MATCH($C$9,[1]!APPLIANCES,0)-1)*2)+1,\nMATCH(AT$10,[1]!SHIPMENTS_SF_YEARS,0))","v":94752.628293378628},{"$f":"INDEX([1]!SHIPMENTS_SF,\n((MATCH($C$9,[1]!APPLIANCES,0)-1)*2)+1,\nMATCH(AU$10,[1]!SHIPMENTS_SF_YEARS,0))","v":120639.94439216015},{"$f":"INDEX([1]!SHIPMENTS_SF,\n((MATCH($C$9,[1]!APPLIANCES,0)-1)*2)+1,\nMATCH(AV$10,[1]!SHIPMENTS_SF_YEARS,0))","v":116925.15702639995},{"$f":"INDEX([1]!SHIPMENTS_SF,\n((MATCH($C$9,[1]!APPLIANCES,0)-1)*2)+1,\nMATCH(AW$10,[1]!SHIPMENTS_SF_YEARS,0))","v":126535.46657576725},{"$f":"INDEX([1]!SHIPMENTS_SF,\n((MATCH($C$9,[1]!APPLIANCES,0)-1)*2)+1,\nMATCH(AX$10,[1]!SHIPMENTS_SF_YEARS,0))","v":128662.77855881477},{"$f":"INDEX([1]!SHIPMENTS_SF,\n((MATCH($C$9,[1]!APPLIANCES,0)-1)*2)+1,\nMATCH(AY$10,[1]!SHIPMENTS_SF_YEARS,0))","v":121365.74597652779},{"$f":"INDEX([1]!SHIPMENTS_SF,\n((MATCH($C$9,[1]!APPLIANCES,0)-1)*2)+1,\nMATCH(AZ$10,[1]!SHIPMENTS_SF_YEARS,0))","v":111581.50248612381},{"$f":"INDEX([1]!SHIPMENTS_SF,\n((MATCH($C$9,[1]!APPLIANCES,0)-1)*2)+1,\nMATCH(BA$10,[1]!SHIPMENTS_SF_YEARS,0))","v":97403.981864838046},{"$f":"INDEX([1]!SHIPMENTS_SF,\n((MATCH($C$9,[1]!APPLIANCES,0)-1)*2)+1,\nMATCH(BB$10,[1]!SHIPMENTS_SF_YEARS,0))","v":94811.966913691576},{"$f":"INDEX([1]!SHIPMENTS_SF,\n((MATCH($C$9,[1]!APPLIANCES,0)-1)*2)+1,\nMATCH(BC$10,[1]!SHIPMENTS_SF_YEARS,0))","v":109293.70198997027},{"$f":"INDEX([1]!SHIPMENTS_SF,\n((MATCH($C$9,[1]!APPLIANCES,0)-1)*2)+1,\nMATCH(BD$10,[1]!SHIPMENTS_SF_YEARS,0))","v":121823.77009563278},{"$f":"INDEX([1]!SHIPMENTS_SF,\n((MATCH($C$9,[1]!APPLIANCES,0)-1)*2)+1,\nMATCH(BE$10,[1]!SHIPMENTS_SF_YEARS,0))","v":152625.50088214863},{"$f":"INDEX([1]!SHIPMENTS_SF,\n((MATCH($C$9,[1]!APPLIANCES,0)-1)*2)+1,\nMATCH(BF$10,[1]!SHIPMENTS_SF_YEARS,0))","v":160982.94525799798}]
[null,null,"Net New Shipments","(units)",{"$f":"INDEX([1]!SHIPMENTS_SF,\n((MATCH($C$9,[1]!APPLIANCES,0)-1)*2)+2,\nMATCH(E$10,[1]!SHIPMENTS_SF_YEARS,0))","v":22380.462593603181},{"$f":"INDEX([1]!SHIPMENTS_SF,\n((MATCH($C$9,[1]!APPLIANCES,0)-1)*2)+2,\nMATCH(F$10,[1]!SHIPMENTS_SF_YEARS,0))","v":15389.463230724679},{"$f":"INDEX([1]!SHIPMENTS_SF,\n((MATCH($C$9,[1]!APPLIANCES,0)-1)*2)+2,\nMATCH(G$10,[1]!SHIPMENTS_SF_YEARS,0))","v":23869.043499299791},{"$f":"INDEX([1]!SHIPMENTS_SF,\n((MATCH($C$9,[1]!APPLIANCES,0)-1)*2)+2,\nMATCH(H$10,[1]!SHIPMENTS_SF_YEARS,0))","v":22179.909753337968},{"$f":"INDEX([1]!SHIPMENTS_SF,\n((MATCH($C$9,[1]!APPLIANCES,0)-1)*2)+2,\nMATCH(I$10,[1]!SHIPMENTS_SF_YEARS,0))","v":21160.257605705643},{"$f":"INDEX([1]!SHIPMENTS_SF,\n((MATCH($C$9,[1]!APPLIANCES,0)-1)*2)+2,\nMATCH(J$10,[1]!SHIPMENTS_SF_YEARS,0))","v":22854.071144017158},{"$f":"INDEX([1]!SHIPMENTS_SF,\n((MATCH($C$9,[1]!APPLIANCES,0)-1)*2)+2,\nMATCH(K$10,[1]!SHIPMENTS_SF_YEARS,0))","v":22989.649476005463},{"$f":"INDEX([1]!SHIPMENTS_SF,\n((MATCH($C$9,[1]!APPLIANCES,0)-1)*2)+2,\nMATCH(L$10,[1]!SHIPMENTS_SF_YEARS,0))","v":25352.198558793403},{"$f":"INDEX([1]!SHIPMENTS_SF,\n((MATCH($C$9,[1]!APPLIANCES,0)-1)*2)+2,\nMATCH(M$10,[1]!SHIPMENTS_SF_YEARS,0))","v":31153.242026354419},{"$f":"INDEX([1]!SHIPMENTS_SF,\n((MATCH($C$9,[1]!APPLIANCES,0)-1)*2)+2,\nMATCH(N$10,[1]!SHIPMENTS_SF_YEARS,0))","v":35470.926965188701},{"$f":"INDEX([1]!SHIPMENTS_SF,\n((MATCH($C$9,[1]!APPLIANCES,0)-1)*2)+2,\nMATCH(O$10,[1]!SHIPMENTS_SF_YEARS,0))","v":31072.329094856977},{"$f":"INDEX([1]!SHIPMENTS_SF,\n((MATCH($C$9,[1]!APPLIANCES,0)-1)*2)+2,\nMATCH(P$10,[1]!SHIPMENTS_SF_YEARS,0))","v":38489.121738488837},{"$f":"INDEX([1]!SHIPMENTS_SF,\n((MATCH($C$9,[1]!APPLIANCES,0)-1)*2)+2,\nMATCH(Q$10,[1]!SHIPMENTS_SF_YEARS,0))","v":20059.325555042364},{"$f":"INDEX([1]!SHIPMENTS_SF,\n((MATCH($C$9,[1]!APPLIANCES,0)-1)*2)+2,\nMATCH(R$10,[1]!SHIPMENTS_SF_YEARS,0))","v":21661.314727971796},{"$f":"INDEX([1]!SHIPMENTS_SF,\n((MATCH($C$9,[1]!APPLIANCES,0)-1)*2)+2,\nMATCH(S$10,[1]!SHIPMENTS_SF_YEARS,0))","v":15988.540129239205},{"$f":"INDEX([1]!SHIPMENTS_SF,\n((MATCH($C$9,[1]!APPLIANCES,0)-1)*2)+2,\nMATCH(T$10,[1]!SHIPMENTS_SF_YEARS,0))","v":16768.066096666269},{"$f":"INDEX([1]!SHIPMENTS_SF,\n((MATCH($C$9,[1]!APPLIANCES,0)-1)*2)+2,\nMATCH(U$10,[1]!SHIPMENTS_SF_YEARS,0))","v":15619.416887412313},{"$f":"INDEX([1]!SHIPMENTS_SF,\n((MATCH($C$9,[1]!APPLIANCES,0)-1)*2)+2,\nMATCH(V$10,[1]!SHIPMENTS_SF_YEARS,0))","v":16166.930074246135},{"$f":"INDEX([1]!SHIPMENTS_SF,\n((MATCH($C$9,[1]!APPLIANCES,0)-1)*2)+2,\nMATCH(W$10,[1]!SHIPMENTS_SF_YEARS,0))","v":14430.190296998713},{"$f":"INDEX([1]!SHIPMENTS_SF,\n((MATCH($C$9,[1]!APPLIANCES,0)-1)*2)+2,\nMATCH(X$10,[1]!SHIPMENTS_SF_YEARS,0))","v":10445.254901159089},{"$f":"INDEX([1]!SHIPMENTS_SF,\n((MATCH($C$9,[1]!APPLIANCES,0)-1)*2)+2,\nMATCH(Y$10,[1]!SHIPMENTS_SF_YEARS,0))","v":10380.719842208084},{"$f":"INDEX([1]!SHIPMENTS_SF,\n((MATCH($C$9,[1]!APPLIANCES,0)-1)*2)+2,\nMATCH(Z$10,[1]!SHIPMENTS_SF_YEARS,0))","v":13887.573347386438},{"$f":"INDEX([1]!SHIPMENTS_SF,\n((MATCH($C$9,[1]!APPLIANCES,0)-1)*2)+2,\nMATCH(AA$10,[1]!SHIPMENTS_SF_YEARS,0))","v":17163.785344504751},{"$f":"INDEX([1]!SHIPMENTS_SF,\n((MATCH($C$9,[1]!APPLIANCES,0)-1)*2)+2,\nMATCH(AB$10,[1]!SHIPMENTS_SF_YEARS,0))","v":18294.514625296928},{"$f":"INDEX([1]!SHIPMENTS_SF,\n((MATCH($C$9,[1]!APPLIANCES,0)-1)*2)+2,\nMATCH(AC$10,[1]!SHIPMENTS_SF_YEARS,0))","v":22110.960354306269},{"$f":"INDEX([1]!SHIPMENTS_SF,\n((MATCH($C$9,[1]!APPLIANCES,0)-1)*2)+2,\nMATCH(AD$10,[1]!SHIPMENTS_SF_YEARS,0))","v":15833.579919651616},{"$f":"INDEX([1]!SHIPMENTS_SF,\n((MATCH($C$9,[1]!APPLIANCES,0)-1)*2)+2,\nMATCH(AE$10,[1]!SHIPMENTS_SF_YEARS,0))","v":4355.5228909361176},{"$f":"INDEX([1]!SHIPMENTS_SF,\n((MATCH($C$9,[1]!APPLIANCES,0)-1)*2)+2,\nMATCH(AF$10,[1]!SHIPMENTS_SF_YEARS,0))","v":0},{"$f":"INDEX([1]!SHIPMENTS_SF,\n((MATCH($C$9,[1]!APPLIANCES,0)-1)*2)+2,\nMATCH(AG$10,[1]!SHIPMENTS_SF_YEARS,0))","v":0},{"$f":"INDEX([1]!SHIPMENTS_SF,\n((MATCH($C$9,[1]!APPLIANCES,0)-1)*2)+2,\nMATCH(AH$10,[1]!SHIPMENTS_SF_YEARS,0))","v":0},{"$f":"INDEX([1]!SHIPMENTS_SF,\n((MATCH($C$9,[1]!APPLIANCES,0)-1)*2)+2,\nMATCH(AI$10,[1]!SHIPMENTS_SF_YEARS,0))","v":1980.9346792735159},{"$f":"INDEX([1]!SHIPMENTS_SF,\n((MATCH($C$9,[1]!APPLIANCES,0)-1)*2)+2,\nMATCH(AJ$10,[1]!SHIPMENTS_SF_YEARS,0))","v":37181.263336121105},{"$f":"INDEX([1]!SHIPMENTS_SF,\n((MATCH($C$9,[1]!APPLIANCES,0)-1)*2)+2,\nMATCH(AK$10,[1]!SHIPMENTS_SF_YEARS,0))","v":38121.915068338625},{"$f":"INDEX([1]!SHIPMENTS_SF,\n((MATCH($C$9,[1]!APPLIANCES,0)-1)*2)+2,\nMATCH(AL$10,[1]!SHIPMENTS_SF_YEARS,0))","v":37853.023180362303},{"$f":"INDEX([1]!SHIPMENTS_SF,\n((MATCH($C$9,[1]!APPLIANCES,0)-1)*2)+2,\nMATCH(AM$10,[1]!SHIPMENTS_SF_YEARS,0))","v":37970.652584005147},{"$f":"INDEX([1]!SHIPMENTS_SF,\n((MATCH($C$9,[1]!APPLIANCES,0)-1)*2)+2,\nMATCH(AN$10,[1]!SHIPMENTS_SF_YEARS,0))","v":38092.870356667787},{"$f":"INDEX([1]!SHIPMENTS_SF,\n((MATCH($C$9,[1]!APPLIANCES,0)-1)*2)+2,\nMATCH(AO$10,[1]!SHIPMENTS_SF_YEARS,0))","v":37425.543641785662},{"$f":"INDEX([1]!SHIPMENTS_SF,\n((MATCH($C$9,[1]!APPLIANCES,0)-1)*2)+2,\nMATCH(AP$10,[1]!SHIPMENTS_SF_YEARS,0))","v":36680.092480410356},{"$f":"INDEX([1]!SHIPMENTS_SF,\n((MATCH($C$9,[1]!APPLIANCES,0)-1)*2)+2,\nMATCH(AQ$10,[1]!SHIPMENTS_SF_YEARS,0))","v":35876.691324137639},{"$f":"INDEX([1]!SHIPMENTS_SF,\n((MATCH($C$9,[1]!APPLIANCES,0)-1)*2)+2,\nMATCH(AR$10,[1]!SHIPMENTS_SF_YEARS,0))","v":35269.95939727826},{"$f":"INDEX([1]!SHIPMENTS_SF,\n((MATCH($C$9,[1]!APPLIANCES,0)-1)*2)+2,\nMATCH(AS$10,[1]!SHIPMENTS_SF_YEARS,0))","v":34347.796763751656},{"$f":"INDEX([1]!SHIPMENTS_SF,\n((MATCH($C$9,[1]!APPLIANCES,0)-1)*2)+2,\nMATCH(AT$10,[1]!SHIPMENTS_SF_YEARS,0))","v":33737.617316972966},{"$f":"INDEX([1]!SHIPMENTS_SF,\n((MATCH($C$9,[1]!APPLIANCES,0)-1)*2)+2,\nMATCH(AU$10,[1]!SHIPMENTS_SF_YEARS,0))","v":33297.672781805035},{"$f":"INDEX([1]!SHIPMENTS_SF,\n((MATCH($C$9,[1]!APPLIANCES,0)-1)*2)+2,\nMATCH(AV$10,[1]!SHIPMENTS_SF_YEARS,0))","v":32793.532415330876},{"$f":"INDEX([1]!SHIPMENTS_SF,\n((MATCH($C$9,[1]!APPLIANCES,0)-1)*2)+2,\nMATCH(AW$10,[1]!SHIPMENTS_SF_YEARS,0))","v":32681.677802977618},{"$f":"INDEX([1]!SHIPMENTS_SF,\n((MATCH($C$9,[1]!APPLIANCES,0)-1)*2)+2,\nMATCH(AX$10,[1]!SHIPMENTS_SF_YEARS,0))","v":32384.484838853125},{"$f":"INDEX([1]!SHIPMENTS_SF,\n((MATCH($C$9,[1]!APPLIANCES,0)-1)*2)+2,\nMATCH(AY$10,[1]!SHIPMENTS_SF_YEARS,0))","v":31749.191742842086},{"$f":"INDEX([1]!SHIPMENTS_SF,\n((MATCH($C$9,[1]!APPLIANCES,0)-1)*2)+2,\nMATCH(AZ$10,[1]!SHIPMENTS_SF_YEARS,0))","v":30922.447535898071},{"$f":"INDEX([1]!SHIPMENTS_SF,\n((MATCH($C$9,[1]!APPLIANCES,0)-1)*2)+2,\nMATCH(BA$10,[1]!SHIPMENTS_SF_YEARS,0))","v":30358.753818526395},{"$f":"INDEX([1]!SHIPMENTS_SF,\n((MATCH($C$9,[1]!APPLIANCES,0)-1)*2)+2,\nMATCH(BB$10,[1]!SHIPMENTS_SF_YEARS,0))","v":30236.843912910204},{"$f":"INDEX([1]!SHIPMENTS_SF,\n((MATCH($C$9,[1]!APPLIANCES,0)-1)*2)+2,\nMATCH(BC$10,[1]!SHIPMENTS_SF_YEARS,0))","v":30539.212352040224},{"$f":"INDEX([1]!SHIPMENTS_SF,\n((MATCH($C$9,[1]!APPLIANCES,0)-1)*2)+2,\nMATCH(BD$10,[1]!SHIPMENTS_SF_YEARS,0))","v":30844.604475559667},{"$f":"INDEX([1]!SHIPMENTS_SF,\n((MATCH($C$9,[1]!APPLIANCES,0)-1)*2)+2,\nMATCH(BE$10,[1]!SHIPMENTS_SF_YEARS,0))","v":31153.050520315745},{"$f":"INDEX([1]!SHIPMENTS_SF,\n((MATCH($C$9,[1]!APPLIANCES,0)-1)*2)+2,\nMATCH(BF$10,[1]!SHIPMENTS_SF_YEARS,0))","v":31464.581025518943}]
[null,null,"Total Model Shipments","(units)",{"$f":"SUM(E12:E13)","v":106752.37104477371},{"$f":"SUM(F12:F13)","v":99761.371681895209},108240.95195047032,106551.8182045085,105532.16605687617,107225.97959518769,107361.55792717599,109724.10700996393,115525.15047752495,119842.83541635923,115444.23754602751,122861.03018965936,104431.23400621289,106033.22317914233,100360.44858040973,101139.9745478368,99991.325338582843,100538.83852541666,98802.098748169243,94817.163352329619,94752.628293378613,120639.94439216015,116925.15702639996,126535.46657576723,128662.77855881477,121365.74597652777,111581.50248612381,97403.981864838046,94811.966913691576,109293.70198997027,121823.77009563276,152625.50088214863,160982.94525799798,142284.25718657521,144003.87576314749,138453.31893707751,138565.51818962247,136671.41781899321,136415.5298495543,134072.05814544752,129164.96011608127,128490.24561035159,153937.61717396518,149718.68944173082,159217.14437874488,161047.26339766791,153114.93771936989,142503.95002202189,127762.73568336444,125048.81082660178,139832.91434201051,152668.37457119243,183778.55140246436,192447.52628351693]
[null,null,"Model Installed Stock","(units)",{"$f":"INDEX([1]!STOCK_SF,\nMATCH($C$9,[1]!APPLIANCES,0),\nMATCH(E$10,[1]!STOCK_SF_YEARS,0))","v":1794190.5400681843},{"$f":"INDEX([1]!STOCK_SF,\nMATCH($C$9,[1]!APPLIANCES,0),\nMATCH(F$10,[1]!STOCK_SF_YEARS,0))","v":1809580.0032989089},{"$f":"INDEX([1]!STOCK_SF,\nMATCH($C$9,[1]!APPLIANCES,0),\nMATCH(G$10,[1]!STOCK_SF_YEARS,0))","v":1833449.0467982087},{"$f":"INDEX([1]!STOCK_SF,\nMATCH($C$9,[1]!APPLIANCES,0),\nMATCH(H$10,[1]!STOCK_SF_YEARS,0))","v":1855628.9565515467},{"$f":"INDEX([1]!STOCK_SF,\nMATCH($C$9,[1]!APPLIANCES,0),\nMATCH(I$10,[1]!STOCK_SF_YEARS,0))","v":1876789.2141572523},{"$f":"INDEX([1]!STOCK_SF,\nMATCH($C$9,[1]!APPLIANCES,0),\nMATCH(J$10,[1]!STOCK_SF_YEARS,0))","v":1899643.2853012695},{"$f":"INDEX([1]!STOCK_SF,\nMATCH($C$9,[1]!APPLIANCES,0),\nMATCH(K$10,[1]!STOCK_SF_YEARS,0))","v":1922632.934777275},{"$f":"INDEX([1]!STOCK_SF,\nMATCH($C$9,[1]!APPLIANCES,0),\nMATCH(L$10,[1]!STOCK_SF_YEARS,0))","v":1947985.1333360684},{"$f":"INDEX([1]!STOCK_SF,\nMATCH($C$9,[1]!APPLIANCES,0),\nMATCH(M$10,[1]!STOCK_SF_YEARS,0))","v":1979138.3753624228},{"$f":"INDEX([1]!STOCK_SF,\nMATCH($C$9,[1]!APPLIANCES,0),\nMATCH(N$10,[1]!STOCK_SF_YEARS,0))","v":2014609.3023276115},{"$f":"INDEX([1]!STOCK_SF,\nMATCH($C$9,[1]!APPLIANCES,0),\nMATCH(O$10,[1]!STOCK_SF_YEARS,0))","v":2045681.6314224685},{"$f":"INDEX([1]!STOCK_SF,\nMATCH($C$9,[1]!APPLIANCES,0),\nMATCH(P$10,[1]!STOCK_SF_YEARS,0))","v":2084170.7531609572},{"$f":"INDEX([1]!STOCK_SF,\nMATCH($C$9,[1]!APPLIANCES,0),\nMATCH(Q$10,[1]!STOCK_SF_YEARS,0))","v":2104230.0787159996},{"$f":"INDEX([1]!STOCK_SF,\nMATCH($C$9,[1]!APPLIANCES,0),\nMATCH(R$10,[1]!STOCK_SF_YEARS,0))","v":2125891.3934439714},{"$f":"INDEX([1]!STOCK_SF,\nMATCH($C$9,[1]!APPLIANCES,0),\nMATCH(S$10,[1]!STOCK_SF_YEARS,0))","v":2141879.9335732106},{"$f":"INDEX([1]!STOCK_SF,\nMATCH($C$9,[1]!APPLIANCES,0),\nMATCH(T$10,[1]!STOCK_SF_YEARS,0))","v":2158647.9996698769},{"$f":"INDEX([1]!STOCK_SF,\nMATCH($C$9,[1]!APPLIANCES,0),\nMATCH(U$10,[1]!STOCK_SF_YEARS,0))","v":2174267.4165572892},{"$f":"INDEX([1]!STOCK_SF,\nMATCH($C$9,[1]!APPLIANCES,0),\nMATCH(V$10,[1]!STOCK_SF_YEARS,0))","v":2190434.3466315353},{"$f":"INDEX([1]!STOCK_SF,\nMATCH($C$9,[1]!APPLIANCES,0),\nMATCH(W$10,[1]!STOCK_SF_YEARS,0))","v":2204864.536928534},{"$f":"INDEX([1]!STOCK_SF,\nMATCH($C$9,[1]!APPLIANCES,0),\nMATCH(X$10,[1]!STOCK_SF_YEARS,0))","v":2215309.7918296931},{"$f":"INDEX([1]!STOCK_SF,\nMATCH($C$9,[1]!APPLIANCES,0),\nMATCH(Y$10,[1]!STOCK_SF_YEARS,0))","v":2225690.5116719012},{"$f":"INDEX([1]!STOCK_SF,\nMATCH($C$9,[1]!APPLIANCES,0),\nMATCH(Z$10,[1]!STOCK_SF_YEARS,0))","v":2239578.0850192877},{"$f":"INDEX([1]!STOCK_SF,\nMATCH($C$9,[1]!APPLIANCES,0),\nMATCH(AA$10,[1]!STOCK_SF_YEARS,0))","v":2256741.8703637924},{"$f":"INDEX([1]!STOCK_SF,\nMATCH($C$9,[1]!APPLIANCES,0),\nMATCH(AB$10,[1]!STOCK_SF_YEARS,0))","v":2275036.3849890893},{"$f":"INDEX([1]!STOCK_SF,\nMATCH($C$9,[1]!APPLIANCES,0),\nMATCH(AC$10,[1]!STOCK_SF_YEARS,0))","v":2297147.3453433956},{"$f":"INDEX([1]!STOCK_SF,\nMATCH($C$9,[1]!APPLIANCES,0),\nMATCH(AD$10,[1]!STOCK_SF_YEARS,0))","v":2312980.9252630472},{"$f":"INDEX([1]!STOCK_SF,\nMATCH($C$9,[1]!APPLIANCES,0),\nMATCH(AE$10,[1]!STOCK_SF_YEARS,0))","v":2317336.4481539833},{"$f":"INDEX([1]!STOCK_SF,\nMATCH($C$9,[1]!APPLIANCES,0),\nMATCH(AF$10,[1]!STOCK_SF_YEARS,0))","v":2307378.8720916454},{"$f":"INDEX([1]!STOCK_SF,\nMATCH($C$9,[1]!APPLIANCES,0),\nMATCH(AG$10,[1]!STOCK_SF_YEARS,0))","v":2292466.731995373},{"$f":"INDEX([1]!STOCK_SF,\nMATCH($C$9,[1]!APPLIANCES,0),\nMATCH(AH$10,[1]!STOCK_SF_YEARS,0))","v":2286235.2835078184},{"$f":"INDEX([1]!STOCK_SF,\nMATCH($C$9,[1]!APPLIANCES,0),\nMATCH(AI$10,[1]!STOCK_SF_YEARS,0))","v":2288216.2181870919},{"$f":"INDEX([1]!STOCK_SF,\nMATCH($C$9,[1]!APPLIANCES,0),\nMATCH(AJ$10,[1]!STOCK_SF_YEARS,0))","v":2325397.481523213},{"$f":"INDEX([1]!STOCK_SF,\nMATCH($C$9,[1]!APPLIANCES,0),\nMATCH(AK$10,[1]!STOCK_SF_YEARS,0))","v":2363519.3965915516},{"$f":"INDEX([1]!STOCK_SF,\nMATCH($C$9,[1]!APPLIANCES,0),\nMATCH(AL$10,[1]!STOCK_SF_YEARS,0))","v":2401372.4197719139},{"$f":"INDEX([1]!STOCK_SF,\nMATCH($C$9,[1]!APPLIANCES,0),\nMATCH(AM$10,[1]!STOCK_SF_YEARS,0))","v":2439343.0723559191},{"$f":"INDEX([1]!STOCK_SF,\nMATCH($C$9,[1]!APPLIANCES,0),\nMATCH(AN$10,[1]!STOCK_SF_YEARS,0))","v":2477435.9427125868},{"$f":"INDEX([1]!STOCK_SF,\nMATCH($C$9,[1]!APPLIANCES,0),\nMATCH(AO$10,[1]!STOCK_SF_YEARS,0))","v":2514861.4863543725},{"$f":"INDEX([1]!STOCK_SF,\nMATCH($C$9,[1]!APPLIANCES,0),\nMATCH(AP$10,[1]!STOCK_SF_YEARS,0))","v":2551541.5788347828},{"$f":"INDEX([1]!STOCK_SF,\nMATCH($C$9,[1]!APPLIANCES,0),\nMATCH(AQ$10,[1]!STOCK_SF_YEARS,0))","v":2587418.2701589204},{"$f":"INDEX([1]!STOCK_SF,\nMATCH($C$9,[1]!APPLIANCES,0),\nMATCH(AR$10,[1]!STOCK_SF_YEARS,0))","v":2622688.2295561987},{"$f":"INDEX([1]!STOCK_SF,\nMATCH($C$9,[1]!APPLIANCES,0),\nMATCH(AS$10,[1]!STOCK_SF_YEARS,0))","v":2657036.0263199504},{"$f":"INDEX([1]!STOCK_SF,\nMATCH($C$9,[1]!APPLIANCES,0),\nMATCH(AT$10,[1]!STOCK_SF_YEARS,0))","v":2690773.6436369233},{"$f":"INDEX([1]!STOCK_SF,\nMATCH($C$9,[1]!APPLIANCES,0),\nMATCH(AU$10,[1]!STOCK_SF_YEARS,0))","v":2724071.3164187283},{"$f":"INDEX([1]!STOCK_SF,\nMATCH($C$9,[1]!APPLIANCES,0),\nMATCH(AV$10,[1]!STOCK_SF_YEARS,0))","v":2756864.8488340592},{"$f":"INDEX([1]!STOCK_SF,\nMATCH($C$9,[1]!APPLIANCES,0),\nMATCH(AW$10,[1]!STOCK_SF_YEARS,0))","v":2789546.5266370368},{"$f":"INDEX([1]!STOCK_SF,\nMATCH($C$9,[1]!APPLIANCES,0),\nMATCH(AX$10,[1]!STOCK_SF_YEARS,0))","v":2821931.0114758899},{"$f":"INDEX([1]!STOCK_SF,\nMATCH($C$9,[1]!APPLIANCES,0),\nMATCH(AY$10,[1]!STOCK_SF_YEARS,0))","v":2853680.203218732},{"$f":"INDEX([1]!STOCK_SF,\nMATCH($C$9,[1]!APPLIANCES,0),\nMATCH(AZ$10,[1]!STOCK_SF_YEARS,0))","v":2884602.6507546301},{"$f":"INDEX([1]!STOCK_SF,\nMATCH($C$9,[1]!APPLIANCES,0),\nMATCH(BA$10,[1]!STOCK_SF_YEARS,0))","v":2914961.4045731565},{"$f":"INDEX([1]!STOCK_SF,\nMATCH($C$9,[1]!APPLIANCES,0),\nMATCH(BB$10,[1]!STOCK_SF_YEARS,0))","v":2945198.2484860667},{"$f":"INDEX([1]!STOCK_SF,\nMATCH($C$9,[1]!APPLIANCES,0),\nMATCH(BC$10,[1]!STOCK_SF_YEARS,0))","v":2975737.4608381069},{"$f":"INDEX([1]!STOCK_SF,\nMATCH($C$9,[1]!APPLIANCES,0),\nMATCH(BD$10,[1]!STOCK_SF_YEARS,0))","v":3006582.0653136666},{"$f":"INDEX([1]!STOCK_SF,\nMATCH($C$9,[1]!APPLIANCES,0),\nMATCH(BE$10,[1]!STOCK_SF_YEARS,0))","v":3037735.1158339824},{"$f":"INDEX([1]!STOCK_SF,\nMATCH($C$9,[1]!APPLIANCES,0),\nMATCH(BF$10,[1]!STOCK_SF_YEARS,0))","v":3069199.6968595013}]

{"sheet":"Shipments and Stock - MF","index":15,"n_rows":15,"n_cols":58,"rows_kept":15,"cut":false,"hidden":false,"merged":[]}
[]
[null,null,"Shipments and Stock - MF"]
[]
[null,null,"NAVIGATION"]
[]
[null,null,"COMMENTS"]
[]
[]
[null,null,{"$f":"MODEL_NAME","v":"Furnace Fans"}]
[null,null,null,null,1981,1982,1983,1984,1985,1986,1987,1988,1989,1990,1991,1992,1993,1994,1995,1996,1997,1998,1999,2000,2001,2002,2003,2004,2005,2006,2007,2008,2009,2010,2011,2012,2013,2014,2015,2016,2017,2018,2019,2020,2021,2022,2023,2024,2025,2026,2027,2028,2029,2030,2031,2032,2033,2034]
[null,null,"6P Shipments","(units)",{"$f":"IF(ISNUMBER(MATCH(E10,[1]!SIXTH_PLAN_MF_YEARS,0)),\nINDEX([1]!SIXTH_PLAN_MF,\nMATCH($C$9,[1]!APPLIANCES,0),\nMATCH(E$10,[1]!SIXTH_PLAN_MF_YEARS,0)),\"pre-dates plan\")","v":"pre-dates plan"},{"$f":"IF(ISNUMBER(MATCH(F10,[1]!SIXTH_PLAN_MF_YEARS,0)),\nINDEX([1]!SIXTH_PLAN_MF,\nMATCH($C$9,[1]!APPLIANCES,0),\nMATCH(F$10,[1]!SIXTH_PLAN_MF_YEARS,0)),\"pre-dates plan\")","v":"pre-dates plan"},{"$f":"IF(ISNUMBER(MATCH(G10,[1]!SIXTH_PLAN_MF_YEARS,0)),\nINDEX([1]!SIXTH_PLAN_MF,\nMATCH($C$9,[1]!APPLIANCES,0),\nMATCH(G$10,[1]!SIXTH_PLAN_MF_YEARS,0)),\"pre-dates plan\")","v":"pre-dates plan"},{"$f":"IF(ISNUMBER(MATCH(H10,[1]!SIXTH_PLAN_MF_YEARS,0)),\nINDEX([1]!SIXTH_PLAN_MF,\nMATCH($C$9,[1]!APPLIANCES,0),\nMATCH(H$10,[1]!SIXTH_PLAN_MF_YEARS,0)),\"pre-dates plan\")","v":"pre-dates plan"},{"$f":"IF(ISNUMBER(MATCH(I10,[1]!SIXTH_PLAN_MF_YEARS,0)),\nINDEX([1]!SIXTH_PLAN_MF,\nMATCH($C$9,[1]!APPLIANCES,0),\nMATCH(I$10,[1]!SIXTH_PLAN_MF_YEARS,0)),\"pre-dates plan\")","v":"pre-dates plan"},{"$f":"IF(ISNUMBER(MATCH(J10,[1]!SIXTH_PLAN_MF_YEARS,0)),\nINDEX([1]!SIXTH_PLAN_MF,\nMATCH($C$9,[1]!APPLIANCES,0),\nMATCH(J$10,[1]!SIXTH_PLAN_MF_YEARS,0)),\"pre-dates plan\")","v":"pre-dates plan"},{"$f":"IF(ISNUMBER(MATCH(K10,[1]!SIXTH_PLAN_MF_YEARS,0)),\nINDEX([1]!SIXTH_PLAN_MF,\nMATCH($C$9,[1]!APPLIANCES,0),\nMATCH(K$10,[1]!SIXTH_PLAN_MF_YEARS,0)),\"pre-dates plan\")","v":"pre-dates plan"},{"$f":"IF(ISNUMBER(MATCH(L10,[1]!SIXTH_PLAN_MF_YEARS,0)),\nINDEX([1]!SIXTH_PLAN_MF,\nMATCH($C$9,[1]!APPLIANCES,0),\nMATCH(L$10,[1]!SIXTH_PLAN_MF_YEARS,0)),\"pre-dates plan\")","v":"pre-dates plan"},{"$f":"IF(ISNUMBER(MATCH(M10,[1]!SIXTH_PLAN_MF_YEARS,0)),\nINDEX([1]!SIXTH_PLAN_MF,\nMATCH($C$9,[1]!APPLIANCES,0),\nMATCH(M$10,[1]!SIXTH_PLAN_MF_YEARS,0)),\"pre-dates plan\")","v":"pre-dates plan"},{"$f":"IF(ISNUMBER(MATCH(N10,[1]!SIXTH_PLAN_MF_YEARS,0)),\nINDEX([1]!SIXTH_PLAN_MF,\nMATCH($C$9,[1]!APPLIANCES,0),\nMATCH(N$10,[1]!SIXTH_PLAN_MF_YEARS,0)),\"pre-dates plan\")","v":"pre-dates plan"},{"$f":"IF(ISNUMBER(MATCH(O10,[1]!SIXTH_PLAN_MF_YEARS,0)),\nINDEX([1]!SIXTH_PLAN_MF,\nMATCH($C$9,[1]!APPLIANCES,0),\nMATCH(O$10,[1]!SIXTH_PLAN_MF_YEARS,0)),\"pre-dates plan\")","v":"pre-dates plan"},{"$f":"IF(ISNUMBER(MATCH(P10,[1]!SIXTH_PLAN_MF_YEARS,0)),\nINDEX([1]!SIXTH_PLAN_MF,\nMATCH($C$9,[1]!APPLIANCES,0),\nMATCH(P$10,[1]!SIXTH_PLAN_MF_YEARS,0)),\"pre-dates plan\")","v":"pre-dates plan"},{"$f":"IF(ISNUMBER(MATCH(Q10,[1]!SIXTH_PLAN_MF_YEARS,0)),\nINDEX([1]!SIXTH_PLAN_MF,\nMATCH($C$9,[1]!APPLIANCES,0),\nMATCH(Q$10,[1]!SIXTH_PLAN_MF_YEARS,0)),\"pre-dates plan\")","v":"pre-dates plan"},{"$f":"IF(ISNUMBER(MATCH(R10,[1]!SIXTH_PLAN_MF_YEARS,0)),\nINDEX([1]!SIXTH_PLAN_MF,\nMATCH($C$9,[1]!APPLIANCES,0),\nMATCH(R$10,[1]!SIXTH_PLAN_MF_YEARS,0)),\"pre-dates plan\")","v":"pre-dates plan"},{"$f":"IF(ISNUMBER(MATCH(S10,[1]!SIXTH_PLAN_MF_YEARS,0)),\nINDEX([1]!SIXTH_PLAN_MF,\nMATCH($C$9,[1]!APPLIANCES,0),\nMATCH(S$10,[1]!SIXTH_PLAN_MF_YEARS,0)),\"pre-dates plan\")","v":"pre-dates plan"},{"$f":"IF(ISNUMBER(MATCH(T10,[1]!SIXTH_PLAN_MF_YEARS,0)),\nINDEX([1]!SIXTH_PLAN_MF,\nMATCH($C$9,[1]!APPLIANCES,0),\nMATCH(T$10,[1]!SIXTH_PLAN_MF_YEARS,0)),\"pre-dates plan\")","v":"pre-dates plan"},{"$f":"IF(ISNUMBER(MATCH(U10,[1]!SIXTH_PLAN_MF_YEARS,0)),\nINDEX([1]!SIXTH_PLAN_MF,\nMATCH($C$9,[1]!APPLIANCES,0),\nMATCH(U$10,[1]!SIXTH_PLAN_MF_YEARS,0)),\"pre-dates plan\")","v":"pre-dates plan"},{"$f":"IF(ISNUMBER(MATCH(V10,[1]!SIXTH_PLAN_MF_YEARS,0)),\nINDEX([1]!SIXTH_PLAN_MF,\nMATCH($C$9,[1]!APPLIANCES,0),\nMATCH(V$10,[1]!SIXTH_PLAN_MF_YEARS,0)),\"pre-dates plan\")","v":"pre-dates plan"},{"$f":"IF(ISNUMBER(MATCH(W10,[1]!SIXTH_PLAN_MF_YEARS,0)),\nINDEX([1]!SIXTH_PLAN_MF,\nMATCH($C$9,[1]!APPLIANCES,0),\nMATCH(W$10,[1]!SIXTH_PLAN_MF_YEARS,0)),\"pre-dates plan\")","v":"pre-dates plan"},{"$f":"IF(ISNUMBER(MATCH(X10,[1]!SIXTH_PLAN_MF_YEARS,0)),\nINDEX([1]!SIXTH_PLAN_MF,\nMATCH($C$9,[1]!APPLIANCES,0),\nMATCH(X$10,[1]!SIXTH_PLAN_MF_YEARS,0)),\"pre-dates plan\")","v":"pre-dates plan"},{"$f":"IF(ISNUMBER(MATCH(Y10,[1]!SIXTH_PLAN_MF_YEARS,0)),\nINDEX([1]!SIXTH_PLAN_MF,\nMATCH($C$9,[1]!APPLIANCES,0),\nMATCH(Y$10,[1]!SIXTH_PLAN_MF_YEARS,0)),\"pre-dates plan\")","v":"pre-dates plan"},{"$f":"IF(ISNUMBER(MATCH(Z10,[1]!SIXTH_PLAN_MF_YEARS,0)),\nINDEX([1]!SIXTH_PLAN_MF,\nMATCH($C$9,[1]!APPLIANCES,0),\nMATCH(Z$10,[1]!SIXTH_PLAN_MF_YEARS,0)),\"pre-dates plan\")","v":"pre-dates plan"},{"$f":"IF(ISNUMBER(MATCH(AA10,[1]!SIXTH_PLAN_MF_YEARS,0)),\nINDEX([1]!SIXTH_PLAN_MF,\nMATCH($C$9,[1]!APPLIANCES,0),\nMATCH(AA$10,[1]!SIXTH_PLAN_MF_YEARS,0)),\"pre-dates plan\")","v":"pre-dates plan"},{"$f":"IF(ISNUMBER(MATCH(AB10,[1]!SIXTH_PLAN_MF_YEARS,0)),\nINDEX([1]!SIXTH_PLAN_MF,\nMATCH($C$9,[1]!APPLIANCES,0),\nMATCH(AB$10,[1]!SIXTH_PLAN_MF_YEARS,0)),\"pre-dates plan\")","v":"pre-dates plan"},{"$f":"IF(ISNUMBER(MATCH(AC10,[1]!SIXTH_PLAN_MF_YEARS,0)),\nINDEX([1]!SIXTH_PLAN_MF,\nMATCH($C$9,[1]!APPLIANCES,0),\nMATCH(AC$10,[1]!SIXTH_PLAN_MF_YEARS,0)),\"pre-dates plan\")","v":"pre-dates plan"},{"$f":"IF(ISNUMBER(MATCH(AD10,[1]!SIXTH_PLAN_MF_YEARS,0)),\nINDEX([1]!SIXTH_PLAN_MF,\nMATCH($C$9,[1]!APPLIANCES,0),\nMATCH(AD$10,[1]!SIXTH_PLAN_MF_YEARS,0)),\"pre-dates plan\")","v":"pre-dates plan"},{"$f":"IF(ISNUMBER(MATCH(AE10,[1]!SIXTH_PLAN_MF_YEARS,0)),\nINDEX([1]!SIXTH_PLAN_MF,\nMATCH($C$9,[1]!APPLIANCES,0),\nMATCH(AE$10,[1]!SIXTH_PLAN_MF_YEARS,0)),\"pre-dates plan\")","v":"pre-dates plan"},{"$f":"IF(ISNUMBER(MATCH(AF10,[1]!SIXTH_PLAN_MF_YEARS,0)),\nINDEX([1]!SIXTH_PLAN_MF,\nMATCH($C$9,[1]!APPLIANCES,0),\nMATCH(AF$10,[1]!SIXTH_PLAN_MF_YEARS,0)),\"pre-dates plan\")","v":"pre-dates plan"},{"$f":"IF(ISNUMBER(MATCH(AG10,[1]!SIXTH_PLAN_MF_YEARS,0)),\nINDEX([1]!SIXTH_PLAN_MF,\nMATCH($C$9,[1]!APPLIANCES,0),\nMATCH(AG$10,[1]!SIXTH_PLAN_MF_YEARS,0)),\"pre-dates plan\")","v":"pre-dates plan"},{"$f":"IF(ISNUMBER(MATCH(AH10,[1]!SIXTH_PLAN_MF_YEARS,0)),\nINDEX([1]!SIXTH_PLAN_MF,\nMATCH($C$9,[1]!APPLIANCES,0),\nMATCH(AH$10,[1]!SIXTH_PLAN_MF_YEARS,0)),\"pre-dates plan\")","v":3296.999289119668},{"$f":"IF(ISNUMBER(MATCH(AI10,[1]!SIXTH_PLAN_MF_YEARS,0)),\nINDEX([1]!SIXTH_PLAN_MF,\nMATCH($C$9,[1]!APPLIANCES,0),\nMATCH(AI$10,[1]!SIXTH_PLAN_MF_YEARS,0)),\"pre-dates plan\")","v":3296.999289119668},{"$f":"IF(ISNUMBER(MATCH(AJ10,[1]!SIXTH_PLAN_MF_YEARS,0)),\nINDEX([1]!SIXTH_PLAN_MF,\nMATCH($C$9,[1]!APPLIANCES,0),\nMATCH(AJ$10,[1]!SIXTH_PLAN_MF_YEARS,0)),\"pre-dates plan\")","v":3296.999289119668},{"$f":"IF(ISNUMBER(MATCH(AK10,[1]!SIXTH_PLAN_MF_YEARS,0)),\nINDEX([1]!SIXTH_PLAN_MF,\nMATCH($C$9,[1]!APPLIANCES,0),\nMATCH(AK$10,[1]!SIXTH_PLAN_MF_YEARS,0)),\"pre-dates plan\")","v":3296.999289119668},{"$f":"IF(ISNUMBER(MATCH(AL10,[1]!SIXTH_PLAN_MF_YEARS,0)),\nINDEX([1]!SIXTH_PLAN_MF,\nMATCH($C$9,[1]!APPLIANCES,0),\nMATCH(AL$10,[1]!SIXTH_PLAN_MF_YEARS,0)),\"pre-dates plan\")","v":3296.999289119668},{"$f":"IF(ISNUMBER(MATCH(AM10,[1]!SIXTH_PLAN_MF_YEARS,0)),\nINDEX([1]!SIXTH_PLAN_MF,\nMATCH($C$9,[1]!APPLIANCES,0),\nMATCH(AM$10,[1]!SIXTH_PLAN_MF_YEARS,0)),\"pre-dates plan\")","v":3296.999289119668},{"$f":"IF(ISNUMBER(MATCH(AN10,[1]!SIXTH_PLAN_MF_YEARS,0)),\nINDEX([1]!SIXTH_PLAN_MF,\nMATCH($C$9,[1]!APPLIANCES,0),\nMATCH(AN$10,[1]!SIXTH_PLAN_MF_YEARS,0)),\"pre-dates plan\")","v":3296.999289119668},{"$f":"IF(ISNUMBER(MATCH(AO10,[1]!SIXTH_PLAN_MF_YEARS,0)),\nINDEX([1]!SIXTH_PLAN_MF,\nMATCH($C$9,[1]!APPLIANCES,0),\nMATCH(AO$10,[1]!SIXTH_PLAN_MF_YEARS,0)),\"pre-dates plan\")","v":3296.999289119668},{"$f":"IF(ISNUMBER(MATCH(AP10,[1]!SIXTH_PLAN_MF_YEARS,0)),\nINDEX([1]!SIXTH_PLAN_MF,\nMATCH($C$9,[1]!APPLIANCES,0),\nMATCH(AP$10,[1]!SIXTH_PLAN_MF_YEARS,0)),\"pre-dates plan\")","v":3296.999289119668},{"$f":"IF(ISNUMBER(MATCH(AQ10,[1]!SIXTH_PLAN_MF_YEARS,0)),\nINDEX([1]!SIXTH_PLAN_MF,\nMATCH($C$9,[1]!APPLIANCES,0),\nMATCH(AQ$10,[1]!SIXTH_PLAN_MF_YEARS,0)),\"pre-dates plan\")","v":3296.999289119668},{"$f":"IF(ISNUMBER(MATCH(AR10,[1]!SIXTH_PLAN_MF_YEARS,0)),\nINDEX([1]!SIXTH_PLAN_MF,\nMATCH($C$9,[1]!APPLIANCES,0),\nMATCH(AR$10,[1]!SIXTH_PLAN_MF_YEARS,0)),\"pre-dates plan\")","v":3296.999289119668},{"$f":"IF(ISNUMBER(MATCH(AS10,[1]!SIXTH_PLAN_MF_YEARS,0)),\nINDEX([1]!SIXTH_PLAN_MF,\nMATCH($C$9,[1]!APPLIANCES,0),\nMATCH(AS$10,[1]!SIXTH_PLAN_MF_YEARS,0)),\"pre-dates plan\")","v":3296.999289119668},{"$f":"IF(ISNUMBER(MATCH(AT10,[1]!SIXTH_PLAN_MF_YEARS,0)),\nINDEX([1]!SIXTH_PLAN_MF,\nMATCH($C$9,[1]!APPLIANCES,0),\nMATCH(AT$10,[1]!SIXTH_PLAN_MF_YEARS,0)),\"pre-dates plan\")","v":3296.999289119668},{"$f":"IF(ISNUMBER(MATCH(AU10,[1]!SIXTH_PLAN_MF_YEARS,0)),\nINDEX([1]!SIXTH_PLAN_MF,\nMATCH($C$9,[1]!APPLIANCES,0),\nMATCH(AU$10,[1]!SIXTH_PLAN_MF_YEARS,0)),\"pre-dates plan\")","v":3296.999289119668},{"$f":"IF(ISNUMBER(MATCH(AV10,[1]!SIXTH_PLAN_MF_YEARS,0)),\nINDEX([1]!SIXTH_PLAN_MF,\nMATCH($C$9,[1]!APPLIANCES,0),\nMATCH(AV$10,[1]!SIXTH_PLAN_MF_YEARS,0)),\"pre-dates plan\")","v":3296.999289119668},{"$f":"IF(ISNUMBER(MATCH(AW10,[1]!SIXTH_PLAN_MF_YEARS,0)),\nINDEX([1]!SIXTH_PLAN_MF,\nMATCH($C$9,[1]!APPLIANCES,0),\nMATCH(AW$10,[1]!SIXTH_PLAN_MF_YEARS,0)),\"pre-dates plan\")","v":3296.999289119668},{"$f":"IF(ISNUMBER(MATCH(AX10,[1]!SIXTH_PLAN_MF_YEARS,0)),\nINDEX([1]!SIXTH_PLAN_MF,\nMATCH($C$9,[1]!APPLIANCES,0),\nMATCH(AX$10,[1]!SIXTH_PLAN_MF_YEARS,0)),\"pre-dates plan\")","v":3296.999289119668},{"$f":"IF(ISNUMBER(MATCH(AY10,[1]!SIXTH_PLAN_MF_YEARS,0)),\nINDEX([1]!SIXTH_PLAN_MF,\nMATCH($C$9,[1]!APPLIANCES,0),\nMATCH(AY$10,[1]!SIXTH_PLAN_MF_YEARS,0)),\"pre-dates plan\")","v":3296.999289119668},{"$f":"IF(ISNUMBER(MATCH(AZ10,[1]!SIXTH_PLAN_MF_YEARS,0)),\nINDEX([1]!SIXTH_PLAN_MF,\nMATCH($C$9,[1]!APPLIANCES,0),\nMATCH(AZ$10,[1]!SIXTH_PLAN_MF_YEARS,0)),\"pre-dates plan\")","v":3296.999289119668},{"$f":"IF(ISNUMBER(MATCH(BA10,[1]!SIXTH_PLAN_MF_YEARS,0)),\nINDEX([1]!SIXTH_PLAN_MF,\nMATCH($C$9,[1]!APPLIANCES,0),\nMATCH(BA$10,[1]!SIXTH_PLAN_MF_YEARS,0)),\"pre-dates plan\")","v":3296.999289119668},{"$f":"IF(ISNUMBER(MATCH(BB10,[1]!SIXTH_PLAN_MF_YEARS,0)),\nINDEX([1]!SIXTH_PLAN_MF,\nMATCH($C$9,[1]!APPLIANCES,0),\nMATCH(BB$10,[1]!SIXTH_PLAN_MF_YEARS,0)),\"pre-dates plan\")","v":3296.999289119668},{"$f":"IF(ISNUMBER(MATCH(BC10,[1]!SIXTH_PLAN_MF_YEARS,0)),\nINDEX([1]!SIXTH_PLAN_MF,\nMATCH($C$9,[1]!APPLIANCES,0),\nMATCH(BC$10,[1]!SIXTH_PLAN_MF_YEARS,0)),\"pre-dates plan\")","v":3296.999289119668},{"$f":"IF(ISNUMBER(MATCH(BD10,[1]!SIXTH_PLAN_MF_YEARS,0)),\nINDEX([1]!SIXTH_PLAN_MF,\nMATCH($C$9,[1]!APPLIANCES,0),\nMATCH(BD$10,[1]!SIXTH_PLAN_MF_YEARS,0)),\"pre-dates plan\")","v":3296.999289119668},{"$f":"IF(ISNUMBER(MATCH(BE10,[1]!SIXTH_PLAN_MF_YEARS,0)),\nINDEX([1]!SIXTH_PLAN_MF,\nMATCH($C$9,[1]!APPLIANCES,0),\nMATCH(BE$10,[1]!SIXTH_PLAN_MF_YEARS,0)),\"pre-dates plan\")","v":3296.999289119668},{"$f":"IF(ISNUMBER(MATCH(BF10,[1]!SIXTH_PLAN_MF_YEARS,0)),\nINDEX([1]!SIXTH_PLAN_MF,\nMATCH($C$9,[1]!APPLIANCES,0),\nMATCH(BF$10,[1]!SIXTH_PLAN_MF_YEARS,0)),\"pre-dates plan\")","v":3296.999289119668}]
[null,null,"Replacement Shipments","(units)",{"$f":"INDEX([1]!SHIPMENTS_MF,\n((MATCH($C$9,[1]!APPLIANCES,0)-1)*2)+1,\nMATCH(E$10,[1]!SHIPMENTS_MF_YEARS,0))","v":3566.523491707565},{"$f":"INDEX([1]!SHIPMENTS_MF,\n((MATCH($C$9,[1]!APPLIANCES,0)-1)*2)+1,\nMATCH(F$10,[1]!SHIPMENTS_MF_YEARS,0))","v":3566.523491707565},{"$f":"INDEX([1]!SHIPMENTS_MF,\n((MATCH($C$9,[1]!APPLIANCES,0)-1)*2)+1,\nMATCH(G$10,[1]!SHIPMENTS_MF_YEARS,0))","v":3566.523491707565},{"$f":"INDEX([1]!SHIPMENTS_MF,\n((MATCH($C$9,[1]!APPLIANCES,0)-1)*2)+1,\nMATCH(H$10,[1]!SHIPMENTS_MF_YEARS,0))","v":3566.523491707565},{"$f":"INDEX([1]!SHIPMENTS_MF,\n((MATCH($C$9,[1]!APPLIANCES,0)-1)*2)+1,\nMATCH(I$10,[1]!SHIPMENTS_MF_YEARS,0))","v":3566.523491707565},{"$f":"INDEX([1]!SHIPMENTS_MF,\n((MATCH($C$9,[1]!APPLIANCES,0)-1)*2)+1,\nMATCH(J$10,[1]!SHIPMENTS_MF_YEARS,0))","v":3566.523491707565},{"$f":"INDEX([1]!SHIPMENTS_MF,\n((MATCH($C$9,[1]!APPLIANCES,0)-1)*2)+1,\nMATCH(K$10,[1]!SHIPMENTS_MF_YEARS,0))","v":3566.523491707565},{"$f":"INDEX([1]!SHIPMENTS_MF,\n((MATCH($C$9,[1]!APPLIANCES,0)-1)*2)+1,\nMATCH(L$10,[1]!SHIPMENTS_MF_YEARS,0))","v":3566.523491707565},{"$f":"INDEX([1]!SHIPMENTS_MF,\n((MATCH($C$9,[1]!APPLIANCES,0)-1)*2)+1,\nMATCH(M$10,[1]!SHIPMENTS_MF_YEARS,0))","v":3566.523491707565},{"$f":"INDEX([1]!SHIPMENTS_MF,\n((MATCH($C$9,[1]!APPLIANCES,0)-1)*2)+1,\nMATCH(N$10,[1]!SHIPMENTS_MF_YEARS,0))","v":3566.523491707565},{"$f":"INDEX([1]!SHIPMENTS_MF,\n((MATCH($C$9,[1]!APPLIANCES,0)-1)*2)+1,\nMATCH(O$10,[1]!SHIPMENTS_MF_YEARS,0))","v":3566.523491707565},{"$f":"INDEX([1]!SHIPMENTS_MF,\n((MATCH($C$9,[1]!APPLIANCES,0)-1)*2)+1,\nMATCH(P$10,[1]!SHIPMENTS_MF_YEARS,0))","v":3566.523491707565},{"$f":"INDEX([1]!SHIPMENTS_MF,\n((MATCH($C$9,[1]!APPLIANCES,0)-1)*2)+1,\nMATCH(Q$10,[1]!SHIPMENTS_MF_YEARS,0))","v":2528.3139515039725},{"$f":"INDEX([1]!SHIPMENTS_MF,\n((MATCH($C$9,[1]!APPLIANCES,0)-1)*2)+1,\nMATCH(R$10,[1]!SHIPMENTS_MF_YEARS,0))","v":2832.5244224293488},{"$f":"INDEX([1]!SHIPMENTS_MF,\n((MATCH($C$9,[1]!APPLIANCES,0)-1)*2)+1,\nMATCH(S$10,[1]!SHIPMENTS_MF_YEARS,0))","v":2883.0584044133207},{"$f":"INDEX([1]!SHIPMENTS_MF,\n((MATCH($C$9,[1]!APPLIANCES,0)-1)*2)+1,\nMATCH(T$10,[1]!SHIPMENTS_MF_YEARS,0))","v":2734.628537560151},{"$f":"INDEX([1]!SHIPMENTS_MF,\n((MATCH($C$9,[1]!APPLIANCES,0)-1)*2)+1,\nMATCH(U$10,[1]!SHIPMENTS_MF_YEARS,0))","v":2602.2553603233318},{"$f":"INDEX([1]!SHIPMENTS_MF,\n((MATCH($C$9,[1]!APPLIANCES,0)-1)*2)+1,\nMATCH(V$10,[1]!SHIPMENTS_MF_YEARS,0))","v":2750.7824958288911},{"$f":"INDEX([1]!SHIPMENTS_MF,\n((MATCH($C$9,[1]!APPLIANCES,0)-1)*2)+1,\nMATCH(W$10,[1]!SHIPMENTS_MF_YEARS,0))","v":2136.1865395837012},{"$f":"INDEX([1]!SHIPMENTS_MF,\n((MATCH($C$9,[1]!APPLIANCES,0)-1)*2)+1,\nMATCH(X$10,[1]!SHIPMENTS_MF_YEARS,0))","v":1594.6787215313161},{"$f":"INDEX([1]!SHIPMENTS_MF,\n((MATCH($C$9,[1]!APPLIANCES,0)-1)*2)+1,\nMATCH(Y$10,[1]!SHIPMENTS_MF_YEARS,0))","v":1481.9066184022595},{"$f":"INDEX([1]!SHIPMENTS_MF,\n((MATCH($C$9,[1]!APPLIANCES,0)-1)*2)+1,\nMATCH(Z$10,[1]!SHIPMENTS_MF_YEARS,0))","v":2785.6777270128005},{"$f":"INDEX([1]!SHIPMENTS_MF,\n((MATCH($C$9,[1]!APPLIANCES,0)-1)*2)+1,\nMATCH(AA$10,[1]!SHIPMENTS_MF_YEARS,0))","v":2239.9312354064828},{"$f":"INDEX([1]!SHIPMENTS_MF,\n((MATCH($C$9,[1]!APPLIANCES,0)-1)*2)+1,\nMATCH(AB$10,[1]!SHIPMENTS_MF_YEARS,0))","v":2488.4458430764139},{"$f":"INDEX([1]!SHIPMENTS_MF,\n((MATCH($C$9,[1]!APPLIANCES,0)-1)*2)+1,\nMATCH(AC$10,[1]!SHIPMENTS_MF_YEARS,0))","v":3008.0082995956836},{"$f":"INDEX([1]!SHIPMENTS_MF,\n((MATCH($C$9,[1]!APPLIANCES,0)-1)*2)+1,\nMATCH(AD$10,[1]!SHIPMENTS_MF_YEARS,0))","v":4114.57951535956},{"$f":"INDEX([1]!SHIPMENTS_MF,\n((MATCH($C$9,[1]!APPLIANCES,0)-1)*2)+1,\nMATCH(AE$10,[1]!SHIPMENTS_MF_YEARS,0))","v":3576.7103249739521},{"$f":"INDEX([1]!SHIPMENTS_MF,\n((MATCH($C$9,[1]!APPLIANCES,0)-1)*2)+1,\nMATCH(AF$10,[1]!SHIPMENTS_MF_YEARS,0))","v":3382.6610127819067},{"$f":"INDEX([1]!SHIPMENTS_MF,\n((MATCH($C$9,[1]!APPLIANCES,0)-1)*2)+1,\nMATCH(AG$10,[1]!SHIPMENTS_MF_YEARS,0))","v":3462.2776486201547},{"$f":"INDEX([1]!SHIPMENTS_MF,\n((MATCH($C$9,[1]!APPLIANCES,0)-1)*2)+1,\nMATCH(AH$10,[1]!SHIPMENTS_MF_YEARS,0))","v":4396.8289824054154},{"$f":"INDEX([1]!SHIPMENTS_MF,\n((MATCH($C$9,[1]!APPLIANCES,0)-1)*2)+1,\nMATCH(AI$10,[1]!SHIPMENTS_MF_YEARS,0))","v":3881.0132847756404},{"$f":"INDEX([1]!SHIPMENTS_MF,\n((MATCH($C$9,[1]!APPLIANCES,0)-1)*2)+1,\nMATCH(AJ$10,[1]!SHIPMENTS_MF_YEARS,0))","v":5378.2818161535888},{"$f":"INDEX([1]!SHIPMENTS_MF,\n((MATCH($C$9,[1]!APPLIANCES,0)-1)*2)+1,\nMATCH(AK$10,[1]!SHIPMENTS_MF_YEARS,0))","v":5423.1731204459284},{"$f":"INDEX([1]!SHIPMENTS_MF,\n((MATCH($C$9,[1]!APPLIANCES,0)-1)*2)+1,\nMATCH(AL$10,[1]!SHIPMENTS_MF_YEARS,0))","v":2528.3139515039725},{"$f":"INDEX([1]!SHIPMENTS_MF,\n((MATCH($C$9,[1]!APPLIANCES,0)-1)*2)+1,\nMATCH(AM$10,[1]!SHIPMENTS_MF_YEARS,0))","v":2832.5244224293488},{"$f":"INDEX([1]!SHIPMENTS_MF,\n((MATCH($C$9,[1]!APPLIANCES,0)-1)*2)+1,\nMATCH(AN$10,[1]!SHIPMENTS_MF_YEARS,0))","v":2883.0584044133207},{"$f":"INDEX([1]!SHIPMENTS_MF,\n((MATCH($C$9,[1]!APPLIANCES,0)-1)*2)+1,\nMATCH(AO$10,[1]!SHIPMENTS_MF_YEARS,0))","v":2734.628537560151},{"$f":"INDEX([1]!SHIPMENTS_MF,\n((MATCH($C$9,[1]!APPLIANCES,0)-1)*2)+1,\nMATCH(AP$10,[1]!SHIPMENTS_MF_YEARS,0))","v":2602.2553603233318},{"$f":"INDEX([1]!SHIPMENTS_MF,\n((MATCH($C$9,[1]!APPLIANCES,0)-1)*2)+1,\nMATCH(AQ$10,[1]!SHIPMENTS_MF_YEARS,0))","v":2750.7824958288911},{"$f":"INDEX([1]!SHIPMENTS_MF,\n((MATCH($C$9,[1]!APPLIANCES,0)-1)*2)+1,\nMATCH(AR$10,[1]!SHIPMENTS_MF_YEARS,0))","v":2136.1865395837012},{"$f":"INDEX([1]!SHIPMENTS_MF,\n((MATCH($C$9,[1]!APPLIANCES,0)-1)*2)+1,\nMATCH(AS$10,[1]!SHIPMENTS_MF_YEARS,0))","v":1594.6787215313161},{"$f":"INDEX([1]!SHIPMENTS_MF,\n((MATCH($C$9,[1]!APPLIANCES,0)-1)*2)+1,\nMATCH(AT$10,[1]!SHIPMENTS_MF_YEARS,0))","v":1481.9066184022595},{"$f":"INDEX([1]!SHIPMENTS_MF,\n((MATCH($C$9,[1]!APPLIANCES,0)-1)*2)+1,\nMATCH(AU$10,[1]!SHIPMENTS_MF_YEARS,0))","v":2785.6777270128005},{"$f":"INDEX([1]!SHIPMENTS_MF,\n((MATCH($C$9,[1]!APPLIANCES,0)-1)*2)+1,\nMATCH(AV$10,[1]!SHIPMENTS_MF_YEARS,0))","v":2239.9312354064828},{"$f":"INDEX([1]!SHIPMENTS_MF,\n((MATCH($C$9,[1]!APPLIANCES,0)-1)*2)+1,\nMATCH(AW$10,[1]!SHIPMENTS_MF_YEARS,0))","v":2488.4458430764139},{"$f":"INDEX([1]!SHIPMENTS_MF,\n((MATCH($C$9,[1]!APPLIANCES,0)-1)*2)+1,\nMATCH(AX$10,[1]!SHIPMENTS_MF_YEARS,0))","v":3008.0082995956836},{"$f":"INDEX([1]!SHIPMENTS_MF,\n((MATCH($C$9,[1]!APPLIANCES,0)-1)*2)+1,\nMATCH(AY$10,[1]!SHIPMENTS_MF_YEARS,0))","v":4114.57951535956},{"$f":"INDEX([1]!SHIPMENTS_MF,\n((MATCH($C$9,[1]!APPLIANCES,0)-1)*2)+1,\nMATCH(AZ$10,[1]!SHIPMENTS_MF_YEARS,0))","v":3576.7103249739521},{"$f":"INDEX([1]!SHIPMENTS_MF,\n((MATCH($C$9,[1]!APPLIANCES,0)-1)*2)+1,\nMATCH(BA$10,[1]!SHIPMENTS_MF_YEARS,0))","v":3382.6610127819067},{"$f":"INDEX([1]!SHIPMENTS_MF,\n((MATCH($C$9,[1]!APPLIANCES,0)-1)*2)+1,\nMATCH(BB$10,[1]!SHIPMENTS_MF_YEARS,0))","v":3462.2776486201547},{"$f":"INDEX([1]!SHIPMENTS_MF,\n((MATCH($C$9,[1]!APPLIANCES,0)-1)*2)+1,\nMATCH(BC$10,[1]!SHIPMENTS_MF_YEARS,0))","v":4396.8289824054154},{"$f":"INDEX([1]!SHIPMENTS_MF,\n((MATCH($C$9,[1]!APPLIANCES,0)-1)*2)+1,\nMATCH(BD$10,[1]!SHIPMENTS_MF_YEARS,0))","v":3881.0132847756404},{"$f":"INDEX([1]!SHIPMENTS_MF,\n((MATCH($C$9,[1]!APPLIANCES,0)-1)*2)+1,\nMATCH(BE$10,[1]!SHIPMENTS_MF_YEARS,0))","v":6328.5339286329599},{"$f":"INDEX([1]!SHIPMENTS_MF,\n((MATCH($C$9,[1]!APPLIANCES,0)-1)*2)+1,\nMATCH(BF$10,[1]!SHIPMENTS_MF_YEARS,0))","v":6426.9641340779126}]
[null,null,"Net New Shipments","(units)",{"$f":"INDEX([1]!SHIPMENTS_MF,\n((MATCH($C$9,[1]!APPLIANCES,0)-1)*2)+2,\nMATCH(E$10,[1]!SHIPMENTS_MF_YEARS,0))","v":1573.0636697749433},{"$f":"INDEX([1]!SHIPMENTS_MF,\n((MATCH($C$9,[1]!APPLIANCES,0)-1)*2)+2,\nMATCH(F$10,[1]!SHIPMENTS_MF_YEARS,0))","v":1119.6350205547351},{"$f":"INDEX([1]!SHIPMENTS_MF,\n((MATCH($C$9,[1]!APPLIANCES,0)-1)*2)+2,\nMATCH(G$10,[1]!SHIPMENTS_MF_YEARS,0))","v":1320.6309816146677},{"$f":"INDEX([1]!SHIPMENTS_MF,\n((MATCH($C$9,[1]!APPLIANCES,0)-1)*2)+2,\nMATCH(H$10,[1]!SHIPMENTS_MF_YEARS,0))","v":2015.4754163362377},{"$f":"INDEX([1]!SHIPMENTS_MF,\n((MATCH($C$9,[1]!APPLIANCES,0)-1)*2)+2,\nMATCH(I$10,[1]!SHIPMENTS_MF_YEARS,0))","v":3100.0299124030425},{"$f":"INDEX([1]!SHIPMENTS_MF,\n((MATCH($C$9,[1]!APPLIANCES,0)-1)*2)+2,\nMATCH(J$10,[1]!SHIPMENTS_MF_YEARS,0))","v":2753.9756148650631},{"$f":"INDEX([1]!SHIPMENTS_MF,\n((MATCH($C$9,[1]!APPLIANCES,0)-1)*2)+2,\nMATCH(K$10,[1]!SHIPMENTS_MF_YEARS,0))","v":3073.6864242026486},{"$f":"INDEX([1]!SHIPMENTS_MF,\n((MATCH($C$9,[1]!APPLIANCES,0)-1)*2)+2,\nMATCH(L$10,[1]!SHIPMENTS_MF_YEARS,0))","v":3824.2478512765665},{"$f":"INDEX([1]!SHIPMENTS_MF,\n((MATCH($C$9,[1]!APPLIANCES,0)-1)*2)+2,\nMATCH(M$10,[1]!SHIPMENTS_MF_YEARS,0))","v":4577.5451179961237},{"$f":"INDEX([1]!SHIPMENTS_MF,\n((MATCH($C$9,[1]!APPLIANCES,0)-1)*2)+2,\nMATCH(N$10,[1]!SHIPMENTS_MF_YEARS,0))","v":3869.5510023972747},{"$f":"INDEX([1]!SHIPMENTS_MF,\n((MATCH($C$9,[1]!APPLIANCES,0)-1)*2)+2,\nMATCH(O$10,[1]!SHIPMENTS_MF_YEARS,0))","v":1811.7583244460241},{"$f":"INDEX([1]!SHIPMENTS_MF,\n((MATCH($C$9,[1]!APPLIANCES,0)-1)*2)+2,\nMATCH(P$10,[1]!SHIPMENTS_MF_YEARS,0))","v":1856.6496287383634},{"$f":"INDEX([1]!SHIPMENTS_MF,\n((MATCH($C$9,[1]!APPLIANCES,0)-1)*2)+2,\nMATCH(Q$10,[1]!SHIPMENTS_MF_YEARS,0))","v":0},{"$f":"INDEX([1]!SHIPMENTS_MF,\n((MATCH($C$9,[1]!APPLIANCES,0)-1)*2)+2,\nMATCH(R$10,[1]!SHIPMENTS_MF_YEARS,0))","v":0},{"$f":"INDEX([1]!SHIPMENTS_MF,\n((MATCH($C$9,[1]!APPLIANCES,0)-1)*2)+2,\nMATCH(S$10,[1]!SHIPMENTS_MF_YEARS,0))","v":0},{"$f":"INDEX([1]!SHIPMENTS_MF,\n((MATCH($C$9,[1]!APPLIANCES,0)-1)*2)+2,\nMATCH(T$10,[1]!SHIPMENTS_MF_YEARS,0))","v":0},{"$f":"INDEX([1]!SHIPMENTS_MF,\n((MATCH($C$9,[1]!APPLIANCES,0)-1)*2)+2,\nMATCH(U$10,[1]!SHIPMENTS_MF_YEARS,0))","v":0},{"$f":"INDEX([1]!SHIPMENTS_MF,\n((MATCH($C$9,[1]!APPLIANCES,0)-1)*2)+2,\nMATCH(V$10,[1]!SHIPMENTS_MF_YEARS,0))","v":0},{"$f":"INDEX([1]!SHIPMENTS_MF,\n((MATCH($C$9,[1]!APPLIANCES,0)-1)*2)+2,\nMATCH(W$10,[1]!SHIPMENTS_MF_YEARS,0))","v":0},{"$f":"INDEX([1]!SHIPMENTS_MF,\n((MATCH($C$9,[1]!APPLIANCES,0)-1)*2)+2,\nMATCH(X$10,[1]!SHIPMENTS_MF_YEARS,0))","v":0},{"$f":"INDEX([1]!SHIPMENTS_MF,\n((MATCH($C$9,[1]!APPLIANCES,0)-1)*2)+2,\nMATCH(Y$10,[1]!SHIPMENTS_MF_YEARS,0))","v":0},{"$f":"INDEX([1]!SHIPMENTS_MF,\n((MATCH($C$9,[1]!APPLIANCES,0)-1)*2)+2,\nMATCH(Z$10,[1]!SHIPMENTS_MF_YEARS,0))","v":0},{"$f":"INDEX([1]!SHIPMENTS_MF,\n((MATCH($C$9,[1]!APPLIANCES,0)-1)*2)+2,\nMATCH(AA$10,[1]!SHIPMENTS_MF_YEARS,0))","v":0},{"$f":"INDEX([1]!SHIPMENTS_MF,\n((MATCH($C$9,[1]!APPLIANCES,0)-1)*2)+2,\nMATCH(AB$10,[1]!SHIPMENTS_MF_YEARS,0))","v":0},{"$f":"INDEX([1]!SHIPMENTS_MF,\n((MATCH($C$9,[1]!APPLIANCES,0)-1)*2)+2,\nMATCH(AC$10,[1]!SHIPMENTS_MF_YEARS,0))","v":0},{"$f":"INDEX([1]!SHIPMENTS_MF,\n((MATCH($C$9,[1]!APPLIANCES,0)-1)*2)+2,\nMATCH(AD$10,[1]!SHIPMENTS_MF_YEARS,0))","v":0},{"$f":"INDEX([1]!SHIPMENTS_MF,\n((MATCH($C$9,[1]!APPLIANCES,0)-1)*2)+2,\nMATCH(AE$10,[1]!SHIPMENTS_MF_YEARS,0))","v":0},{"$f":"INDEX([1]!SHIPMENTS_MF,\n((MATCH($C$9,[1]!APPLIANCES,0)-1)*2)+2,\nMATCH(AF$10,[1]!SHIPMENTS_MF_YEARS,0))","v":0},{"$f":"INDEX([1]!SHIPMENTS_MF,\n((MATCH($C$9,[1]!APPLIANCES,0)-1)*2)+2,\nMATCH(AG$10,[1]!SHIPMENTS_MF_YEARS,0))","v":0},{"$f":"INDEX([1]!SHIPMENTS_MF,\n((MATCH($C$9,[1]!APPLIANCES,0)-1)*2)+2,\nMATCH(AH$10,[1]!SHIPMENTS_MF_YEARS,0))","v":0},{"$f":"INDEX([1]!SHIPMENTS_MF,\n((MATCH($C$9,[1]!APPLIANCES,0)-1)*2)+2,\nMATCH(AI$10,[1]!SHIPMENTS_MF_YEARS,0))","v":0},{"$f":"INDEX([1]!SHIPMENTS_MF,\n((MATCH($C$9,[1]!APPLIANCES,0)-1)*2)+2,\nMATCH(AJ$10,[1]!SHIPMENTS_MF_YEARS,0))","v":950.25211247937114},{"$f":"INDEX([1]!SHIPMENTS_MF,\n((MATCH($C$9,[1]!APPLIANCES,0)-1)*2)+2,\nMATCH(AK$10,[1]!SHIPMENTS_MF_YEARS,0))","v":1003.7910136319842},{"$f":"INDEX([1]!SHIPMENTS_MF,\n((MATCH($C$9,[1]!APPLIANCES,0)-1)*2)+2,\nMATCH(AL$10,[1]!SHIPMENTS_MF_YEARS,0))","v":1078.0533941203612},{"$f":"INDEX([1]!SHIPMENTS_MF,\n((MATCH($C$9,[1]!APPLIANCES,0)-1)*2)+2,\nMATCH(AM$10,[1]!SHIPMENTS_MF_YEARS,0))","v":1166.2299926433921},{"$f":"INDEX([1]!SHIPMENTS_MF,\n((MATCH($C$9,[1]!APPLIANCES,0)-1)*2)+2,\nMATCH(AN$10,[1]!SHIPMENTS_MF_YEARS,0))","v":1238.6645950667444},{"$f":"INDEX([1]!SHIPMENTS_MF,\n((MATCH($C$9,[1]!APPLIANCES,0)-1)*2)+2,\nMATCH(AO$10,[1]!SHIPMENTS_MF_YEARS,0))","v":1279.316510852454},{"$f":"INDEX([1]!SHIPMENTS_MF,\n((MATCH($C$9,[1]!APPLIANCES,0)-1)*2)+2,\nMATCH(AP$10,[1]!SHIPMENTS_MF_YEARS,0))","v":1323.9166042628494},{"$f":"INDEX([1]!SHIPMENTS_MF,\n((MATCH($C$9,[1]!APPLIANCES,0)-1)*2)+2,\nMATCH(AQ$10,[1]!SHIPMENTS_MF_YEARS,0))","v":1375.4731364384788},{"$f":"INDEX([1]!SHIPMENTS_MF,\n((MATCH($C$9,[1]!APPLIANCES,0)-1)*2)+2,\nMATCH(AR$10,[1]!SHIPMENTS_MF_YEARS,0))","v":1405.9432408731664},{"$f":"INDEX([1]!SHIPMENTS_MF,\n((MATCH($C$9,[1]!APPLIANCES,0)-1)*2)+2,\nMATCH(AS$10,[1]!SHIPMENTS_MF_YEARS,0))","v":1381.1071895613265},{"$f":"INDEX([1]!SHIPMENTS_MF,\n((MATCH($C$9,[1]!APPLIANCES,0)-1)*2)+2,\nMATCH(AT$10,[1]!SHIPMENTS_MF_YEARS,0))","v":1396.5624618252768},{"$f":"INDEX([1]!SHIPMENTS_MF,\n((MATCH($C$9,[1]!APPLIANCES,0)-1)*2)+2,\nMATCH(AU$10,[1]!SHIPMENTS_MF_YEARS,0))","v":1402.9823813641997},{"$f":"INDEX([1]!SHIPMENTS_MF,\n((MATCH($C$9,[1]!APPLIANCES,0)-1)*2)+2,\nMATCH(AV$10,[1]!SHIPMENTS_MF_YEARS,0))","v":1399.0877935662866},{"$f":"INDEX([1]!SHIPMENTS_MF,\n((MATCH($C$9,[1]!APPLIANCES,0)-1)*2)+2,\nMATCH(AW$10,[1]!SHIPMENTS_MF_YEARS,0))","v":1383.9682000245084},{"$f":"INDEX([1]!SHIPMENTS_MF,\n((MATCH($C$9,[1]!APPLIANCES,0)-1)*2)+2,\nMATCH(AX$10,[1]!SHIPMENTS_MF_YEARS,0))","v":1363.2135664861562},{"$f":"INDEX([1]!SHIPMENTS_MF,\n((MATCH($C$9,[1]!APPLIANCES,0)-1)*2)+2,\nMATCH(AY$10,[1]!SHIPMENTS_MF_YEARS,0))","v":1356.7744859464874},{"$f":"INDEX([1]!SHIPMENTS_MF,\n((MATCH($C$9,[1]!APPLIANCES,0)-1)*2)+2,\nMATCH(AZ$10,[1]!SHIPMENTS_MF_YEARS,0))","v":1354.0504800414492},{"$f":"INDEX([1]!SHIPMENTS_MF,\n((MATCH($C$9,[1]!APPLIANCES,0)-1)*2)+2,\nMATCH(BA$10,[1]!SHIPMENTS_MF_YEARS,0))","v":1349.5365296220116},{"$f":"INDEX([1]!SHIPMENTS_MF,\n((MATCH($C$9,[1]!APPLIANCES,0)-1)*2)+2,\nMATCH(BB$10,[1]!SHIPMENTS_MF_YEARS,0))","v":1334.8535282775993},{"$f":"INDEX([1]!SHIPMENTS_MF,\n((MATCH($C$9,[1]!APPLIANCES,0)-1)*2)+2,\nMATCH(BC$10,[1]!SHIPMENTS_MF_YEARS,0))","v":1348.2020635603842},{"$f":"INDEX([1]!SHIPMENTS_MF,\n((MATCH($C$9,[1]!APPLIANCES,0)-1)*2)+2,\nMATCH(BD$10,[1]!SHIPMENTS_MF_YEARS,0))","v":1361.6840841959784},{"$f":"INDEX([1]!SHIPMENTS_MF,\n((MATCH($C$9,[1]!APPLIANCES,0)-1)*2)+2,\nMATCH(BE$10,[1]!SHIPMENTS_MF_YEARS,0))","v":1375.3009250379546},{"$f":"INDEX([1]!SHIPMENTS_MF,\n((MATCH($C$9,[1]!APPLIANCES,0)-1)*2)+2,\nMATCH(BF$10,[1]!SHIPMENTS_MF_YEARS,0))","v":1389.0539342883274}]
[null,null,"Total Model Shipments","(units)",{"$f":"SUM(E12:E13)","v":5139.5871614825082},{"$f":"SUM(F12:F13)","v":4686.1585122623001},4887.1544733222327,5581.9989080438027,6666.5534041106075,6320.4991065726281,6640.2099159102136,7390.7713429841315,8144.0686097036887,7436.0744941048397,5378.2818161535888,5423.1731204459284,2528.3139515039725,2832.5244224293488,2883.0584044133207,2734.628537560151,2602.2553603233318,2750.7824958288911,2136.1865395837012,1594.6787215313161,1481.9066184022595,2785.6777270128005,2239.9312354064828,2488.4458430764139,3008.0082995956836,4114.57951535956,3576.7103249739521,3382.6610127819067,3462.2776486201547,4396.8289824054154,3881.0132847756404,6328.5339286329599,6426.9641340779126,3606.3673456243337,3998.7544150727408,4121.7229994800655,4013.945048412605,3926.1719645861813,4126.2556322673699,3542.1297804568676,2975.7859110926429,2878.4690802275363,4188.6601083770001,3639.0190289727693,3872.4140431009223,4371.2218660818398,5471.3540013060474,4930.7608050154013,4732.1975424039183,4797.1311768977539,5745.0310459657994,5242.6973689716187,7703.8348536709145,7816.0180683662402]
[null,null,"Model Installed Stock","(units)",{"$f":"INDEX([1]!STOCK_MF,\nMATCH($C$9,[1]!APPLIANCES,0),\nMATCH(E$10,[1]!STOCK_MF_YEARS,0))","v":76470.056995633815},{"$f":"INDEX([1]!STOCK_MF,\nMATCH($C$9,[1]!APPLIANCES,0),\nMATCH(F$10,[1]!STOCK_MF_YEARS,0))","v":77589.69201618855},{"$f":"INDEX([1]!STOCK_MF,\nMATCH($C$9,[1]!APPLIANCES,0),\nMATCH(G$10,[1]!STOCK_MF_YEARS,0))","v":78910.322997803218},{"$f":"INDEX([1]!STOCK_MF,\nMATCH($C$9,[1]!APPLIANCES,0),\nMATCH(H$10,[1]!STOCK_MF_YEARS,0))","v":80925.798414139455},{"$f":"INDEX([1]!STOCK_MF,\nMATCH($C$9,[1]!APPLIANCES,0),\nMATCH(I$10,[1]!STOCK_MF_YEARS,0))","v":84025.828326542498},{"$f":"INDEX([1]!STOCK_MF,\nMATCH($C$9,[1]!APPLIANCES,0),\nMATCH(J$10,[1]!STOCK_MF_YEARS,0))","v":86779.803941407561},{"$f":"INDEX([1]!STOCK_MF,\nMATCH($C$9,[1]!APPLIANCES,0),\nMATCH(K$10,[1]!STOCK_MF_YEARS,0))","v":89853.490365610211},{"$f":"INDEX([1]!STOCK_MF,\nMATCH($C$9,[1]!APPLIANCES,0),\nMATCH(L$10,[1]!STOCK_MF_YEARS,0))","v":93677.738216886777},{"$f":"INDEX([1]!STOCK_MF,\nMATCH($C$9,[1]!APPLIANCES,0),\nMATCH(M$10,[1]!STOCK_MF_YEARS,0))","v":98255.283334882901},{"$f":"INDEX([1]!STOCK_MF,\nMATCH($C$9,[1]!APPLIANCES,0),\nMATCH(N$10,[1]!STOCK_MF_YEARS,0))","v":102124.83433728018},{"$f":"INDEX([1]!STOCK_MF,\nMATCH($C$9,[1]!APPLIANCES,0),\nMATCH(O$10,[1]!STOCK_MF_YEARS,0))","v":103936.5926617262},{"$f":"INDEX([1]!STOCK_MF,\nMATCH($C$9,[1]!APPLIANCES,0),\nMATCH(P$10,[1]!STOCK_MF_YEARS,0))","v":105793.24229046456},{"$f":"INDEX([1]!STOCK_MF,\nMATCH($C$9,[1]!APPLIANCES,0),\nMATCH(Q$10,[1]!STOCK_MF_YEARS,0))","v":104755.03275026097},{"$f":"INDEX([1]!STOCK_MF,\nMATCH($C$9,[1]!APPLIANCES,0),\nMATCH(R$10,[1]!STOCK_MF_YEARS,0))","v":104021.03368098276},{"$f":"INDEX([1]!STOCK_MF,\nMATCH($C$9,[1]!APPLIANCES,0),\nMATCH(S$10,[1]!STOCK_MF_YEARS,0))","v":103337.56859368851},{"$f":"INDEX([1]!STOCK_MF,\nMATCH($C$9,[1]!APPLIANCES,0),\nMATCH(T$10,[1]!STOCK_MF_YEARS,0))","v":102505.6736395411},{"$f":"INDEX([1]!STOCK_MF,\nMATCH($C$9,[1]!APPLIANCES,0),\nMATCH(U$10,[1]!STOCK_MF_YEARS,0))","v":101541.40550815687},{"$f":"INDEX([1]!STOCK_MF,\nMATCH($C$9,[1]!APPLIANCES,0),\nMATCH(V$10,[1]!STOCK_MF_YEARS,0))","v":100725.66451227819},{"$f":"INDEX([1]!STOCK_MF,\nMATCH($C$9,[1]!APPLIANCES,0),\nMATCH(W$10,[1]!STOCK_MF_YEARS,0))","v":99295.327560154328},{"$f":"INDEX([1]!STOCK_MF,\nMATCH($C$9,[1]!APPLIANCES,0),\nMATCH(X$10,[1]!STOCK_MF_YEARS,0))","v":97323.482789978079},{"$f":"INDEX([1]!STOCK_MF,\nMATCH($C$9,[1]!APPLIANCES,0),\nMATCH(Y$10,[1]!STOCK_MF_YEARS,0))","v":95238.865916672774},{"$f":"INDEX([1]!STOCK_MF,\nMATCH($C$9,[1]!APPLIANCES,0),\nMATCH(Z$10,[1]!STOCK_MF_YEARS,0))","v":92884.956482203066},{"$f":"INDEX([1]!STOCK_MF,\nMATCH($C$9,[1]!APPLIANCES,0),\nMATCH(AA$10,[1]!STOCK_MF_YEARS,0))","v":90438.729205347248},{"$f":"INDEX([1]!STOCK_MF,\nMATCH($C$9,[1]!APPLIANCES,0),\nMATCH(AB$10,[1]!STOCK_MF_YEARS,0))","v":88040.020575101429},{"$f":"INDEX([1]!STOCK_MF,\nMATCH($C$9,[1]!APPLIANCES,0),\nMATCH(AC$10,[1]!STOCK_MF_YEARS,0))","v":85466.02996665331},{"$f":"INDEX([1]!STOCK_MF,\nMATCH($C$9,[1]!APPLIANCES,0),\nMATCH(AD$10,[1]!STOCK_MF_YEARS,0))","v":82914.056077902263},{"$f":"INDEX([1]!STOCK_MF,\nMATCH($C$9,[1]!APPLIANCES,0),\nMATCH(AE$10,[1]!STOCK_MF_YEARS,0))","v":80170.267296303588},{"$f":"INDEX([1]!STOCK_MF,\nMATCH($C$9,[1]!APPLIANCES,0),\nMATCH(AF$10,[1]!STOCK_MF_YEARS,0))","v":76912.718393175281},{"$f":"INDEX([1]!STOCK_MF,\nMATCH($C$9,[1]!APPLIANCES,0),\nMATCH(AG$10,[1]!STOCK_MF_YEARS,0))","v":72984.224698811304},{"$f":"INDEX([1]!STOCK_MF,\nMATCH($C$9,[1]!APPLIANCES,0),\nMATCH(AH$10,[1]!STOCK_MF_YEARS,0))","v":69236.985071513031},{"$f":"INDEX([1]!STOCK_MF,\nMATCH($C$9,[1]!APPLIANCES,0),\nMATCH(AI$10,[1]!STOCK_MF_YEARS,0))","v":65681.92386218383},{"$f":"INDEX([1]!STOCK_MF,\nMATCH($C$9,[1]!APPLIANCES,0),\nMATCH(AJ$10,[1]!STOCK_MF_YEARS,0))","v":66632.175974663201},{"$f":"INDEX([1]!STOCK_MF,\nMATCH($C$9,[1]!APPLIANCES,0),\nMATCH(AK$10,[1]!STOCK_MF_YEARS,0))","v":67635.966988295186},{"$f":"INDEX([1]!STOCK_MF,\nMATCH($C$9,[1]!APPLIANCES,0),\nMATCH(AL$10,[1]!STOCK_MF_YEARS,0))","v":68714.020382415547},{"$f":"INDEX([1]!STOCK_MF,\nMATCH($C$9,[1]!APPLIANCES,0),\nMATCH(AM$10,[1]!STOCK_MF_YEARS,0))","v":69880.250375058939},{"$f":"INDEX([1]!STOCK_MF,\nMATCH($C$9,[1]!APPLIANCES,0),\nMATCH(AN$10,[1]!STOCK_MF_YEARS,0))","v":71118.914970125683},{"$f":"INDEX([1]!STOCK_MF,\nMATCH($C$9,[1]!APPLIANCES,0),\nMATCH(AO$10,[1]!STOCK_MF_YEARS,0))","v":72398.231480978138},{"$f":"INDEX([1]!STOCK_MF,\nMATCH($C$9,[1]!APPLIANCES,0),\nMATCH(AP$10,[1]!STOCK_MF_YEARS,0))","v":73722.148085240988},{"$f":"INDEX([1]!STOCK_MF,\nMATCH($C$9,[1]!APPLIANCES,0),\nMATCH(AQ$10,[1]!STOCK_MF_YEARS,0))","v":75097.621221679467},{"$f":"INDEX([1]!STOCK_MF,\nMATCH($C$9,[1]!APPLIANCES,0),\nMATCH(AR$10,[1]!STOCK_MF_YEARS,0))","v":76503.564462552633},{"$f":"INDEX([1]!STOCK_MF,\nMATCH($C$9,[1]!APPLIANCES,0),\nMATCH(AS$10,[1]!STOCK_MF_YEARS,0))","v":77884.671652113961},{"$f":"INDEX([1]!STOCK_MF,\nMATCH($C$9,[1]!APPLIANCES,0),\nMATCH(AT$10,[1]!STOCK_MF_YEARS,0))","v":79281.234113939237},{"$f":"INDEX([1]!STOCK_MF,\nMATCH($C$9,[1]!APPLIANCES,0),\nMATCH(AU$10,[1]!STOCK_MF_YEARS,0))","v":80684.216495303437},{"$f":"INDEX([1]!STOCK_MF,\nMATCH($C$9,[1]!APPLIANCES,0),\nMATCH(AV$10,[1]!STOCK_MF_YEARS,0))","v":82083.304288869724},{"$f":"INDEX([1]!STOCK_MF,\nMATCH($C$9,[1]!APPLIANCES,0),\nMATCH(AW$10,[1]!STOCK_MF_YEARS,0))","v":83467.272488894232},{"$f":"INDEX([1]!STOCK_MF,\nMATCH($C$9,[1]!APPLIANCES,0),\nMATCH(AX$10,[1]!STOCK_MF_YEARS,0))","v":84830.486055380388},{"$f":"INDEX([1]!STOCK_MF,\nMATCH($C$9,[1]!APPLIANCES,0),\nMATCH(AY$10,[1]!STOCK_MF_YEARS,0))","v":86187.260541326876},{"$f":"INDEX([1]!STOCK_MF,\nMATCH($C$9,[1]!APPLIANCES,0),\nMATCH(AZ$10,[1]!STOCK_MF_YEARS,0))","v":87541.311021368325},{"$f":"INDEX([1]!STOCK_MF,\nMATCH($C$9,[1]!APPLIANCES,0),\nMATCH(BA$10,[1]!STOCK_MF_YEARS,0))","v":88890.847550990336},{"$f":"INDEX([1]!STOCK_MF,\nMATCH($C$9,[1]!APPLIANCES,0),\nMATCH(BB$10,[1]!STOCK_MF_YEARS,0))","v":90225.701079267936},{"$f":"INDEX([1]!STOCK_MF,\nMATCH($C$9,[1]!APPLIANCES,0),\nMATCH(BC$10,[1]!STOCK_MF_YEARS,0))","v":91573.90314282832},{"$f":"INDEX([1]!STOCK_MF,\nMATCH($C$9,[1]!APPLIANCES,0),\nMATCH(BD$10,[1]!STOCK_MF_YEARS,0))","v":92935.587227024298},{"$f":"INDEX([1]!STOCK_MF,\nMATCH($C$9,[1]!APPLIANCES,0),\nMATCH(BE$10,[1]!STOCK_MF_YEARS,0))","v":94310.888152062253},{"$f":"INDEX([1]!STOCK_MF,\nMATCH($C$9,[1]!APPLIANCES,0),\nMATCH(BF$10,[1]!STOCK_MF_YEARS,0))","v":95699.94208635058}]

{"sheet":"Shipments and Stock - MH","index":16,"n_rows":15,"n_cols":58,"rows_kept":15,"cut":false,"hidden":false,"merged":[]}
[]
[null,null,"Shipments and Stock - MH"]
[]
[null,null,"NAVIGATION"]
[]
[null,null,"COMMENTS"]
[]
[]
[null,null,{"$f":"MODEL_NAME","v":"Furnace Fans"}]
[null,null,null,null,1981,1982,1983,1984,1985,1986,1987,1988,1989,1990,1991,1992,1993,1994,1995,1996,1997,1998,1999,2000,2001,2002,2003,2004,2005,2006,2007,2008,2009,2010,2011,2012,2013,2014,2015,2016,2017,2018,2019,2020,2021,2022,2023,2024,2025,2026,2027,2028,2029,2030,2031,2032,2033,2034]
[null,null,"6P Shipments","(units)",{"$f":"IF(ISNUMBER(MATCH(E10,[1]!SIXTH_PLAN_MH_YEARS,0)),\nINDEX([1]!SIXTH_PLAN_MH,\nMATCH($C$9,[1]!APPLIANCES,0),\nMATCH(E$10,[1]!SIXTH_PLAN_MH_YEARS,0)),\"pre-dates plan\")","v":"pre-dates plan"},{"$f":"IF(ISNUMBER(MATCH(F10,[1]!SIXTH_PLAN_MH_YEARS,0)),\nINDEX([1]!SIXTH_PLAN_MH,\nMATCH($C$9,[1]!APPLIANCES,0),\nMATCH(F$10,[1]!SIXTH_PLAN_MH_YEARS,0)),\"pre-dates plan\")","v":"pre-dates plan"},{"$f":"IF(ISNUMBER(MATCH(G10,[1]!SIXTH_PLAN_MH_YEARS,0)),\nINDEX([1]!SIXTH_PLAN_MH,\nMATCH($C$9,[1]!APPLIANCES,0),\nMATCH(G$10,[1]!SIXTH_PLAN_MH_YEARS,0)),\"pre-dates plan\")","v":"pre-dates plan"},{"$f":"IF(ISNUMBER(MATCH(H10,[1]!SIXTH_PLAN_MH_YEARS,0)),\nINDEX([1]!SIXTH_PLAN_MH,\nMATCH($C$9,[1]!APPLIANCES,0),\nMATCH(H$10,[1]!SIXTH_PLAN_MH_YEARS,0)),\"pre-dates plan\")","v":"pre-dates plan"},{"$f":"IF(ISNUMBER(MATCH(I10,[1]!SIXTH_PLAN_MH_YEARS,0)),\nINDEX([1]!SIXTH_PLAN_MH,\nMATCH($C$9,[1]!APPLIANCES,0),\nMATCH(I$10,[1]!SIXTH_PLAN_MH_YEARS,0)),\"pre-dates plan\")","v":"pre-dates plan"},{"$f":"IF(ISNUMBER(MATCH(J10,[1]!SIXTH_PLAN_MH_YEARS,0)),\nINDEX([1]!SIXTH_PLAN_MH,\nMATCH($C$9,[1]!APPLIANCES,0),\nMATCH(J$10,[1]!SIXTH_PLAN_MH_YEARS,0)),\"pre-dates plan\")","v":"pre-dates plan"},{"$f":"IF(ISNUMBER(MATCH(K10,[1]!SIXTH_PLAN_MH_YEARS,0)),\nINDEX([1]!SIXTH_PLAN_MH,\nMATCH($C$9,[1]!APPLIANCES,0),\nMATCH(K$10,[1]!SIXTH_PLAN_MH_YEARS,0)),\"pre-dates plan\")","v":"pre-dates plan"},{"$f":"IF(ISNUMBER(MATCH(L10,[1]!SIXTH_PLAN_MH_YEARS,0)),\nINDEX([1]!SIXTH_PLAN_MH,\nMATCH($C$9,[1]!APPLIANCES,0),\nMATCH(L$10,[1]!SIXTH_PLAN_MH_YEARS,0)),\"pre-dates plan\")","v":"pre-dates plan"},{"$f":"IF(ISNUMBER(MATCH(M10,[1]!SIXTH_PLAN_MH_YEARS,0)),\nINDEX([1]!SIXTH_PLAN_MH,\nMATCH($C$9,[1]!APPLIANCES,0),\nMATCH(M$10,[1]!SIXTH_PLAN_MH_YEARS,0)),\"pre-dates plan\")","v":"pre-dates plan"},{"$f":"IF(ISNUMBER(MATCH(N10,[1]!SIXTH_PLAN_MH_YEARS,0)),\nINDEX([1]!SIXTH_PLAN_MH,\nMATCH($C$9,[1]!APPLIANCES,0),\nMATCH(N$10,[1]!SIXTH_PLAN_MH_YEARS,0)),\"pre-dates plan\")","v":"pre-dates plan"},{"$f":"IF(ISNUMBER(MATCH(O10,[1]!SIXTH_PLAN_MH_YEARS,0)),\nINDEX([1]!SIXTH_PLAN_MH,\nMATCH($C$9,[1]!APPLIANCES,0),\nMATCH(O$10,[1]!SIXTH_PLAN_MH_YEARS,0)),\"pre-dates plan\")","v":"pre-dates plan"},{"$f":"IF(ISNUMBER(MATCH(P10,[1]!SIXTH_PLAN_MH_YEARS,0)),\nINDEX([1]!SIXTH_PLAN_MH,\nMATCH($C$9,[1]!APPLIANCES,0),\nMATCH(P$10,[1]!SIXTH_PLAN_MH_YEARS,0)),\"pre-dates plan\")","v":"pre-dates plan"},{"$f":"IF(ISNUMBER(MATCH(Q10,[1]!SIXTH_PLAN_MH_YEARS,0)),\nINDEX([1]!SIXTH_PLAN_MH,\nMATCH($C$9,[1]!APPLIANCES,0),\nMATCH(Q$10,[1]!SIXTH_PLAN_MH_YEARS,0)),\"pre-dates plan\")","v":"pre-dates plan"},{"$f":"IF(ISNUMBER(MATCH(R10,[1]!SIXTH_PLAN_MH_YEARS,0)),\nINDEX([1]!SIXTH_PLAN_MH,\nMATCH($C$9,[1]!APPLIANCES,0),\nMATCH(R$10,[1]!SIXTH_PLAN_MH_YEARS,0)),\"pre-dates plan\")","v":"pre-dates plan"},{"$f":"IF(ISNUMBER(MATCH(S10,[1]!SIXTH_PLAN_MH_YEARS,0)),\nINDEX([1]!SIXTH_PLAN_MH,\nMATCH($C$9,[1]!APPLIANCES,0),\nMATCH(S$10,[1]!SIXTH_PLAN_MH_YEARS,0)),\"pre-dates plan\")","v":"pre-dates plan"},{"$f":"IF(ISNUMBER(MATCH(T10,[1]!SIXTH_PLAN_MH_YEARS,0)),\nINDEX([1]!SIXTH_PLAN_MH,\nMATCH($C$9,[1]!APPLIANCES,0),\nMATCH(T$10,[1]!SIXTH_PLAN_MH_YEARS,0)),\"pre-dates plan\")","v":"pre-dates plan"},{"$f":"IF(ISNUMBER(MATCH(U10,[1]!SIXTH_PLAN_MH_YEARS,0)),\nINDEX([1]!SIXTH_PLAN_MH,\nMATCH($C$9,[1]!APPLIANCES,0),\nMATCH(U$10,[1]!SIXTH_PLAN_MH_YEARS,0)),\"pre-dates plan\")","v":"pre-dates plan"},{"$f":"IF(ISNUMBER(MATCH(V10,[1]!SIXTH_PLAN_MH_YEARS,0)),\nINDEX([1]!SIXTH_PLAN_MH,\nMATCH($C$9,[1]!APPLIANCES,0),\nMATCH(V$10,[1]!SIXTH_PLAN_MH_YEARS,0)),\"pre-dates plan\")","v":"pre-dates plan"},{"$f":"IF(ISNUMBER(MATCH(W10,[1]!SIXTH_PLAN_MH_YEARS,0)),\nINDEX([1]!SIXTH_PLAN_MH,\nMATCH($C$9,[1]!APPLIANCES,0),\nMATCH(W$10,[1]!SIXTH_PLAN_MH_YEARS,0)),\"pre-dates plan\")","v":"pre-dates plan"},{"$f":"IF(ISNUMBER(MATCH(X10,[1]!SIXTH_PLAN_MH_YEARS,0)),\nINDEX([1]!SIXTH_PLAN_MH,\nMATCH($C$9,[1]!APPLIANCES,0),\nMATCH(X$10,[1]!SIXTH_PLAN_MH_YEARS,0)),\"pre-dates plan\")","v":"pre-dates plan"},{"$f":"IF(ISNUMBER(MATCH(Y10,[1]!SIXTH_PLAN_MH_YEARS,0)),\nINDEX([1]!SIXTH_PLAN_MH,\nMATCH($C$9,[1]!APPLIANCES,0),\nMATCH(Y$10,[1]!SIXTH_PLAN_MH_YEARS,0)),\"pre-dates plan\")","v":"pre-dates plan"},{"$f":"IF(ISNUMBER(MATCH(Z10,[1]!SIXTH_PLAN_MH_YEARS,0)),\nINDEX([1]!SIXTH_PLAN_MH,\nMATCH($C$9,[1]!APPLIANCES,0),\nMATCH(Z$10,[1]!SIXTH_PLAN_MH_YEARS,0)),\"pre-dates plan\")","v":"pre-dates plan"},{"$f":"IF(ISNUMBER(MATCH(AA10,[1]!SIXTH_PLAN_MH_YEARS,0)),\nINDEX([1]!SIXTH_PLAN_MH,\nMATCH($C$9,[1]!APPLIANCES,0),\nMATCH(AA$10,[1]!SIXTH_PLAN_MH_YEARS,0)),\"pre-dates plan\")","v":"pre-dates plan"},{"$f":"IF(ISNUMBER(MATCH(AB10,[1]!SIXTH_PLAN_MH_YEARS,0)),\nINDEX([1]!SIXTH_PLAN_MH,\nMATCH($C$9,[1]!APPLIANCES,0),\nMATCH(AB$10,[1]!SIXTH_PLAN_MH_YEARS,0)),\"pre-dates plan\")","v":"pre-dates plan"},{"$f":"IF(ISNUMBER(MATCH(AC10,[1]!SIXTH_PLAN_MH_YEARS,0)),\nINDEX([1]!SIXTH_PLAN_MH,\nMATCH($C$9,[1]!APPLIANCES,0),\nMATCH(AC$10,[1]!SIXTH_PLAN_MH_YEARS,0)),\"pre-dates plan\")","v":"pre-dates plan"},{"$f":"IF(ISNUMBER(MATCH(AD10,[1]!SIXTH_PLAN_MH_YEARS,0)),\nINDEX([1]!SIXTH_PLAN_MH,\nMATCH($C$9,[1]!APPLIANCES,0),\nMATCH(AD$10,[1]!SIXTH_PLAN_MH_YEARS,0)),\"pre-dates plan\")","v":"pre-dates plan"},{"$f":"IF(ISNUMBER(MATCH(AE10,[1]!SIXTH_PLAN_MH_YEARS,0)),\nINDEX([1]!SIXTH_PLAN_MH,\nMATCH($C$9,[1]!APPLIANCES,0),\nMATCH(AE$10,[1]!SIXTH_PLAN_MH_YEARS,0)),\"pre-dates plan\")","v":"pre-dates plan"},{"$f":"IF(ISNUMBER(MATCH(AF10,[1]!SIXTH_PLAN_MH_YEARS,0)),\nINDEX([1]!SIXTH_PLAN_MH,\nMATCH($C$9,[1]!APPLIANCES,0),\nMATCH(AF$10,[1]!SIXTH_PLAN_MH_YEARS,0)),\"pre-dates plan\")","v":"pre-dates plan"},{"$f":"IF(ISNUMBER(MATCH(AG10,[1]!SIXTH_PLAN_MH_YEARS,0)),\nINDEX([1]!SIXTH_PLAN_MH,\nMATCH($C$9,[1]!APPLIANCES,0),\nMATCH(AG$10,[1]!SIXTH_PLAN_MH_YEARS,0)),\"pre-dates plan\")","v":"pre-dates plan"},{"$f":"IF(ISNUMBER(MATCH(AH10,[1]!SIXTH_PLAN_MH_YEARS,0)),\nINDEX([1]!SIXTH_PLAN_MH,\nMATCH($C$9,[1]!APPLIANCES,0),\nMATCH(AH$10,[1]!SIXTH_PLAN_MH_YEARS,0)),\"pre-dates plan\")","v":18752.385668668867},{"$f":"IF(ISNUMBER(MATCH(AI10,[1]!SIXTH_PLAN_MH_YEARS,0)),\nINDEX([1]!SIXTH_PLAN_MH,\nMATCH($C$9,[1]!APPLIANCES,0),\nMATCH(AI$10,[1]!SIXTH_PLAN_MH_YEARS,0)),\"pre-dates plan\")","v":18752.385668668867},{"$f":"IF(ISNUMBER(MATCH(AJ10,[1]!SIXTH_PLAN_MH_YEARS,0)),\nINDEX([1]!SIXTH_PLAN_MH,\nMATCH($C$9,[1]!APPLIANCES,0),\nMATCH(AJ$10,[1]!SIXTH_PLAN_MH_YEARS,0)),\"pre-dates plan\")","v":18752.385668668867},{"$f":"IF(ISNUMBER(MATCH(AK10,[1]!SIXTH_PLAN_MH_YEARS,0)),\nINDEX([1]!SIXTH_PLAN_MH,\nMATCH($C$9,[1]!APPLIANCES,0),\nMATCH(AK$10,[1]!SIXTH_PLAN_MH_YEARS,0)),\"pre-dates plan\")","v":18752.385668668867},{"$f":"IF(ISNUMBER(MATCH(AL10,[1]!SIXTH_PLAN_MH_YEARS,0)),\nINDEX([1]!SIXTH_PLAN_MH,\nMATCH($C$9,[1]!APPLIANCES,0),\nMATCH(AL$10,[1]!SIXTH_PLAN_MH_YEARS,0)),\"pre-dates plan\")","v":18752.385668668867},{"$f":"IF(ISNUMBER(MATCH(AM10,[1]!SIXTH_PLAN_MH_YEARS,0)),\nINDEX([1]!SIXTH_PLAN_MH,\nMATCH($C$9,[1]!APPLIANCES,0),\nMATCH(AM$10,[1]!SIXTH_PLAN_MH_YEARS,0)),\"pre-dates plan\")","v":18752.385668668867},{"$f":"IF(ISNUMBER(MATCH(AN10,[1]!SIXTH_PLAN_MH_YEARS,0)),\nINDEX([1]!SIXTH_PLAN_MH,\nMATCH($C$9,[1]!APPLIANCES,0),\nMATCH(AN$10,[1]!SIXTH_PLAN_MH_YEARS,0)),\"pre-dates plan\")","v":18752.385668668867},{"$f":"IF(ISNUMBER(MATCH(AO10,[1]!SIXTH_PLAN_MH_YEARS,0)),\nINDEX([1]!SIXTH_PLAN_MH,\nMATCH($C$9,[1]!APPLIANCES,0),\nMATCH(AO$10,[1]!SIXTH_PLAN_MH_YEARS,0)),\"pre-dates plan\")","v":18752.385668668867},{"$f":"IF(ISNUMBER(MATCH(AP10,[1]!SIXTH_PLAN_MH_YEARS,0)),\nINDEX([1]!SIXTH_PLAN_MH,\nMATCH($C$9,[1]!APPLIANCES,0),\nMATCH(AP$10,[1]!SIXTH_PLAN_MH_YEARS,0)),\"pre-dates plan\")","v":18752.385668668867},{"$f":"IF(ISNUMBER(MATCH(AQ10,[1]!SIXTH_PLAN_MH_YEARS,0)),\nINDEX([1]!SIXTH_PLAN_MH,\nMATCH($C$9,[1]!APPLIANCES,0),\nMATCH(AQ$10,[1]!SIXTH_PLAN_MH_YEARS,0)),\"pre-dates plan\")","v":18752.385668668867},{"$f":"IF(ISNUMBER(MATCH(AR10,[1]!SIXTH_PLAN_MH_YEARS,0)),\nINDEX([1]!SIXTH_PLAN_MH,\nMATCH($C$9,[1]!APPLIANCES,0),\nMATCH(AR$10,[1]!SIXTH_PLAN_MH_YEARS,0)),\"pre-dates plan\")","v":18752.385668668867},{"$f":"IF(ISNUMBER(MATCH(AS10,[1]!SIXTH_PLAN_MH_YEARS,0)),\nINDEX([1]!SIXTH_PLAN_MH,\nMATCH($C$9,[1]!APPLIANCES,0),\nMATCH(AS$10,[1]!SIXTH_PLAN_MH_YEARS,0)),\"pre-dates plan\")","v":18752.385668668867},{"$f":"IF(ISNUMBER(MATCH(AT10,[1]!SIXTH_PLAN_MH_YEARS,0)),\nINDEX([1]!SIXTH_PLAN_MH,\nMATCH($C$9,[1]!APPLIANCES,0),\nMATCH(AT$10,[1]!SIXTH_PLAN_MH_YEARS,0)),\"pre-dates plan\")","v":18752.385668668867},{"$f":"IF(ISNUMBER(MATCH(AU10,[1]!SIXTH_PLAN_MH_YEARS,0)),\nINDEX([1]!SIXTH_PLAN_MH,\nMATCH($C$9,[1]!APPLIANCES,0),\nMATCH(AU$10,[1]!SIXTH_PLAN_MH_YEARS,0)),\"pre-dates plan\")","v":18752.385668668867},{"$f":"IF(ISNUMBER(MATCH(AV10,[1]!SIXTH_PLAN_MH_YEARS,0)),\nINDEX([1]!SIXTH_PLAN_MH,\nMATCH($C$9,[1]!APPLIANCES,0),\nMATCH(AV$10,[1]!SIXTH_PLAN_MH_YEARS,0)),\"pre-dates plan\")","v":18752.385668668867},{"$f":"IF(ISNUMBER(MATCH(AW10,[1]!SIXTH_PLAN_MH_YEARS,0)),\nINDEX([1]!SIXTH_PLAN_MH,\nMATCH($C$9,[1]!APPLIANCES,0),\nMATCH(AW$10,[1]!SIXTH_PLAN_MH_YEARS,0)),\"pre-dates plan\")","v":18752.385668668867},{"$f":"IF(ISNUMBER(MATCH(AX10,[1]!SIXTH_PLAN_MH_YEARS,0)),\nINDEX([1]!SIXTH_PLAN_MH,\nMATCH($C$9,[1]!APPLIANCES,0),\nMATCH(AX$10,[1]!SIXTH_PLAN_MH_YEARS,0)),\"pre-dates plan\")","v":18752.385668668867},{"$f":"IF(ISNUMBER(MATCH(AY10,[1]!SIXTH_PLAN_MH_YEARS,0)),\nINDEX([1]!SIXTH_PLAN_MH,\nMATCH($C$9,[1]!APPLIANCES,0),\nMATCH(AY$10,[1]!SIXTH_PLAN_MH_YEARS,0)),\"pre-dates plan\")","v":18752.385668668867},{"$f":"IF(ISNUMBER(MATCH(AZ10,[1]!SIXTH_PLAN_MH_YEARS,0)),\nINDEX([1]!SIXTH_PLAN_MH,\nMATCH($C$9,[1]!APPLIANCES,0),\nMATCH(AZ$10,[1]!SIXTH_PLAN_MH_YEARS,0)),\"pre-dates plan\")","v":18752.385668668867},{"$f":"IF(ISNUMBER(MATCH(BA10,[1]!SIXTH_PLAN_MH_YEARS,0)),\nINDEX([1]!SIXTH_PLAN_MH,\nMATCH($C$9,[1]!APPLIANCES,0),\nMATCH(BA$10,[1]!SIXTH_PLAN_MH_YEARS,0)),\"pre-dates plan\")","v":18752.385668668867},{"$f":"IF(ISNUMBER(MATCH(BB10,[1]!SIXTH_PLAN_MH_YEARS,0)),\nINDEX([1]!SIXTH_PLAN_MH,\nMATCH($C$9,[1]!APPLIANCES,0),\nMATCH(BB$10,[1]!SIXTH_PLAN_MH_YEARS,0)),\"pre-dates plan\")","v":18752.385668668867},{"$f":"IF(ISNUMBER(MATCH(BC10,[1]!SIXTH_PLAN_MH_YEARS,0)),\nINDEX([1]!SIXTH_PLAN_MH,\nMATCH($C$9,[1]!APPLIANCES,0),\nMATCH(BC$10,[1]!SIXTH_PLAN_MH_YEARS,0)),\"pre-dates plan\")","v":18752.385668668867},{"$f":"IF(ISNUMBER(MATCH(BD10,[1]!SIXTH_PLAN_MH_YEARS,0)),\nINDEX([1]!SIXTH_PLAN_MH,\nMATCH($C$9,[1]!APPLIANCES,0),\nMATCH(BD$10,[1]!SIXTH_PLAN_MH_YEARS,0)),\"pre-dates plan\")","v":18752.385668668867},{"$f":"IF(ISNUMBER(MATCH(BE10,[1]!SIXTH_PLAN_MH_YEARS,0)),\nINDEX([1]!SIXTH_PLAN_MH,\nMATCH($C$9,[1]!APPLIANCES,0),\nMATCH(BE$10,[1]!SIXTH_PLAN_MH_YEARS,0)),\"pre-dates plan\")","v":18752.385668668867},{"$f":"IF(ISNUMBER(MATCH(BF10,[1]!SIXTH_PLAN_MH_YEARS,0)),\nINDEX([1]!SIXTH_PLAN_MH,\nMATCH($C$9,[1]!APPLIANCES,0),\nMATCH(BF$10,[1]!SIXTH_PLAN_MH_YEARS,0)),\"pre-dates plan\")","v":18752.385668668867}]
[null,null,"Replacement Shipments","(units)",{"$f":"INDEX([1]!SHIPMENTS_MH,\n((MATCH($C$9,[1]!APPLIANCES,0)-1)*2)+1,\nMATCH(E$10,[1]!SHIPMENTS_MH_YEARS,0))","v":8893.0911129538035},{"$f":"INDEX([1]!SHIPMENTS_MH,\n((MATCH($C$9,[1]!APPLIANCES,0)-1)*2)+1,\nMATCH(F$10,[1]!SHIPMENTS_MH_YEARS,0))","v":8893.0911129538035},{"$f":"INDEX([1]!SHIPMENTS_MH,\n((MATCH($C$9,[1]!APPLIANCES,0)-1)*2)+1,\nMATCH(G$10,[1]!SHIPMENTS_MH_YEARS,0))","v":8893.0911129538035},{"$f":"INDEX([1]!SHIPMENTS_MH,\n((MATCH($C$9,[1]!APPLIANCES,0)-1)*2)+1,\nMATCH(H$10,[1]!SHIPMENTS_MH_YEARS,0))","v":8893.0911129538035},{"$f":"INDEX([1]!SHIPMENTS_MH,\n((MATCH($C$9,[1]!APPLIANCES,0)-1)*2)+1,\nMATCH(I$10,[1]!SHIPMENTS_MH_YEARS,0))","v":8893.0911129538035},{"$f":"INDEX([1]!SHIPMENTS_MH,\n((MATCH($C$9,[1]!APPLIANCES,0)-1)*2)+1,\nMATCH(J$10,[1]!SHIPMENTS_MH_YEARS,0))","v":8893.0911129538035},{"$f":"INDEX([1]!SHIPMENTS_MH,\n((MATCH($C$9,[1]!APPLIANCES,0)-1)*2)+1,\nMATCH(K$10,[1]!SHIPMENTS_MH_YEARS,0))","v":8893.0911129538035},{"$f":"INDEX([1]!SHIPMENTS_MH,\n((MATCH($C$9,[1]!APPLIANCES,0)-1)*2)+1,\nMATCH(L$10,[1]!SHIPMENTS_MH_YEARS,0))","v":8893.0911129538035},{"$f":"INDEX([1]!SHIPMENTS_MH,\n((MATCH($C$9,[1]!APPLIANCES,0)-1)*2)+1,\nMATCH(M$10,[1]!SHIPMENTS_MH_YEARS,0))","v":8893.0911129538035},{"$f":"INDEX([1]!SHIPMENTS_MH,\n((MATCH($C$9,[1]!APPLIANCES,0)-1)*2)+1,\nMATCH(N$10,[1]!SHIPMENTS_MH_YEARS,0))","v":8893.0911129538035},{"$f":"INDEX([1]!SHIPMENTS_MH,\n((MATCH($C$9,[1]!APPLIANCES,0)-1)*2)+1,\nMATCH(O$10,[1]!SHIPMENTS_MH_YEARS,0))","v":8893.0911129538035},{"$f":"INDEX([1]!SHIPMENTS_MH,\n((MATCH($C$9,[1]!APPLIANCES,0)-1)*2)+1,\nMATCH(P$10,[1]!SHIPMENTS_MH_YEARS,0))","v":8893.0911129538035},{"$f":"INDEX([1]!SHIPMENTS_MH,\n((MATCH($C$9,[1]!APPLIANCES,0)-1)*2)+1,\nMATCH(Q$10,[1]!SHIPMENTS_MH_YEARS,0))","v":8893.0911129538035},{"$f":"INDEX([1]!SHIPMENTS_MH,\n((MATCH($C$9,[1]!APPLIANCES,0)-1)*2)+1,\nMATCH(R$10,[1]!SHIPMENTS_MH_YEARS,0))","v":8893.0911129538035},{"$f":"INDEX([1]!SHIPMENTS_MH,\n((MATCH($C$9,[1]!APPLIANCES,0)-1)*2)+1,\nMATCH(S$10,[1]!SHIPMENTS_MH_YEARS,0))","v":8893.0911129538035},{"$f":"INDEX([1]!SHIPMENTS_MH,\n((MATCH($C$9,[1]!APPLIANCES,0)-1)*2)+1,\nMATCH(T$10,[1]!SHIPMENTS_MH_YEARS,0))","v":8893.0911129538035},{"$f":"INDEX([1]!SHIPMENTS_MH,\n((MATCH($C$9,[1]!APPLIANCES,0)-1)*2)+1,\nMATCH(U$10,[1]!SHIPMENTS_MH_YEARS,0))","v":8893.0911129538035},{"$f":"INDEX([1]!SHIPMENTS_MH,\n((MATCH($C$9,[1]!APPLIANCES,0)-1)*2)+1,\nMATCH(V$10,[1]!SHIPMENTS_MH_YEARS,0))","v":8893.0911129538035},{"$f":"INDEX([1]!SHIPMENTS_MH,\n((MATCH($C$9,[1]!APPLIANCES,0)-1)*2)+1,\nMATCH(W$10,[1]!SHIPMENTS_MH_YEARS,0))","v":8893.0911129538035},{"$f":"INDEX([1]!SHIPMENTS_MH,\n((MATCH($C$9,[1]!APPLIANCES,0)-1)*2)+1,\nMATCH(X$10,[1]!SHIPMENTS_MH_YEARS,0))","v":8893.0911129538035},{"$f":"INDEX([1]!SHIPMENTS_MH,\n((MATCH($C$9,[1]!APPLIANCES,0)-1)*2)+1,\nMATCH(Y$10,[1]!SHIPMENTS_MH_YEARS,0))","v":8893.0911129538035},{"$f":"INDEX([1]!SHIPMENTS_MH,\n((MATCH($C$9,[1]!APPLIANCES,0)-1)*2)+1,\nMATCH(Z$10,[1]!SHIPMENTS_MH_YEARS,0))","v":16247.14740986731},{"$f":"INDEX([1]!SHIPMENTS_MH,\n((MATCH($C$9,[1]!APPLIANCES,0)-1)*2)+1,\nMATCH(AA$10,[1]!SHIPMENTS_MH_YEARS,0))","v":14833.0362433023},{"$f":"INDEX([1]!SHIPMENTS_MH,\n((MATCH($C$9,[1]!APPLIANCES,0)-1)*2)+1,\nMATCH(AB$10,[1]!SHIPMENTS_MH_YEARS,0))","v":17109.178725312948},{"$f":"INDEX([1]!SHIPMENTS_MH,\n((MATCH($C$9,[1]!APPLIANCES,0)-1)*2)+1,\nMATCH(AC$10,[1]!SHIPMENTS_MH_YEARS,0))","v":16958.611493189514},{"$f":"INDEX([1]!SHIPMENTS_MH,\n((MATCH($C$9,[1]!APPLIANCES,0)-1)*2)+1,\nMATCH(AD$10,[1]!SHIPMENTS_MH_YEARS,0))","v":15736.439636043116},{"$f":"INDEX([1]!SHIPMENTS_MH,\n((MATCH($C$9,[1]!APPLIANCES,0)-1)*2)+1,\nMATCH(AE$10,[1]!SHIPMENTS_MH_YEARS,0))","v":14557.674548517902},{"$f":"INDEX([1]!SHIPMENTS_MH,\n((MATCH($C$9,[1]!APPLIANCES,0)-1)*2)+1,\nMATCH(AF$10,[1]!SHIPMENTS_MH_YEARS,0))","v":14252.470699618993},{"$f":"INDEX([1]!SHIPMENTS_MH,\n((MATCH($C$9,[1]!APPLIANCES,0)-1)*2)+1,\nMATCH(AG$10,[1]!SHIPMENTS_MH_YEARS,0))","v":15030.401398923586},{"$f":"INDEX([1]!SHIPMENTS_MH,\n((MATCH($C$9,[1]!APPLIANCES,0)-1)*2)+1,\nMATCH(AH$10,[1]!SHIPMENTS_MH_YEARS,0))","v":15653.017250677411},{"$f":"INDEX([1]!SHIPMENTS_MH,\n((MATCH($C$9,[1]!APPLIANCES,0)-1)*2)+1,\nMATCH(AI$10,[1]!SHIPMENTS_MH_YEARS,0))","v":16947.081570008875},{"$f":"INDEX([1]!SHIPMENTS_MH,\n((MATCH($C$9,[1]!APPLIANCES,0)-1)*2)+1,\nMATCH(AJ$10,[1]!SHIPMENTS_MH_YEARS,0))","v":16906.38772348901},{"$f":"INDEX([1]!SHIPMENTS_MH,\n((MATCH($C$9,[1]!APPLIANCES,0)-1)*2)+1,\nMATCH(AK$10,[1]!SHIPMENTS_MH_YEARS,0))","v":18241.824120115682},{"$f":"INDEX([1]!SHIPMENTS_MH,\n((MATCH($C$9,[1]!APPLIANCES,0)-1)*2)+1,\nMATCH(AL$10,[1]!SHIPMENTS_MH_YEARS,0))","v":20008.320838325209},{"$f":"INDEX([1]!SHIPMENTS_MH,\n((MATCH($C$9,[1]!APPLIANCES,0)-1)*2)+1,\nMATCH(AM$10,[1]!SHIPMENTS_MH_YEARS,0))","v":21951.345049791988},{"$f":"INDEX([1]!SHIPMENTS_MH,\n((MATCH($C$9,[1]!APPLIANCES,0)-1)*2)+1,\nMATCH(AN$10,[1]!SHIPMENTS_MH_YEARS,0))","v":21289.382396518915},{"$f":"INDEX([1]!SHIPMENTS_MH,\n((MATCH($C$9,[1]!APPLIANCES,0)-1)*2)+1,\nMATCH(AO$10,[1]!SHIPMENTS_MH_YEARS,0))","v":19528.776250332492},{"$f":"INDEX([1]!SHIPMENTS_MH,\n((MATCH($C$9,[1]!APPLIANCES,0)-1)*2)+1,\nMATCH(AP$10,[1]!SHIPMENTS_MH_YEARS,0))","v":19583.005017455165},{"$f":"INDEX([1]!SHIPMENTS_MH,\n((MATCH($C$9,[1]!APPLIANCES,0)-1)*2)+1,\nMATCH(AQ$10,[1]!SHIPMENTS_MH_YEARS,0))","v":19982.482373619059},{"$f":"INDEX([1]!SHIPMENTS_MH,\n((MATCH($C$9,[1]!APPLIANCES,0)-1)*2)+1,\nMATCH(AR$10,[1]!SHIPMENTS_MH_YEARS,0))","v":17669.856729623301},{"$f":"INDEX([1]!SHIPMENTS_MH,\n((MATCH($C$9,[1]!APPLIANCES,0)-1)*2)+1,\nMATCH(AS$10,[1]!SHIPMENTS_MH_YEARS,0))","v":14261.504378492555},{"$f":"INDEX([1]!SHIPMENTS_MH,\n((MATCH($C$9,[1]!APPLIANCES,0)-1)*2)+1,\nMATCH(AT$10,[1]!SHIPMENTS_MH_YEARS,0))","v":12717.057786080539},{"$f":"INDEX([1]!SHIPMENTS_MH,\n((MATCH($C$9,[1]!APPLIANCES,0)-1)*2)+1,\nMATCH(AU$10,[1]!SHIPMENTS_MH_YEARS,0))","v":20163.508633496345},{"$f":"INDEX([1]!SHIPMENTS_MH,\n((MATCH($C$9,[1]!APPLIANCES,0)-1)*2)+1,\nMATCH(AV$10,[1]!SHIPMENTS_MH_YEARS,0))","v":18347.409650960431},{"$f":"INDEX([1]!SHIPMENTS_MH,\n((MATCH($C$9,[1]!APPLIANCES,0)-1)*2)+1,\nMATCH(AW$10,[1]!SHIPMENTS_MH_YEARS,0))","v":20443.170783883623},{"$f":"INDEX([1]!SHIPMENTS_MH,\n((MATCH($C$9,[1]!APPLIANCES,0)-1)*2)+1,\nMATCH(AX$10,[1]!SHIPMENTS_MH_YEARS,0))","v":20266.600381488548},{"$f":"INDEX([1]!SHIPMENTS_MH,\n((MATCH($C$9,[1]!APPLIANCES,0)-1)*2)+1,\nMATCH(AY$10,[1]!SHIPMENTS_MH_YEARS,0))","v":18814.927847498697},{"$f":"INDEX([1]!SHIPMENTS_MH,\n((MATCH($C$9,[1]!APPLIANCES,0)-1)*2)+1,\nMATCH(AZ$10,[1]!SHIPMENTS_MH_YEARS,0))","v":18712.553709578227},{"$f":"INDEX([1]!SHIPMENTS_MH,\n((MATCH($C$9,[1]!APPLIANCES,0)-1)*2)+1,\nMATCH(BA$10,[1]!SHIPMENTS_MH_YEARS,0))","v":18566.820603845481},{"$f":"INDEX([1]!SHIPMENTS_MH,\n((MATCH($C$9,[1]!APPLIANCES,0)-1)*2)+1,\nMATCH(BB$10,[1]!SHIPMENTS_MH_YEARS,0))","v":19392.318174959732},{"$f":"INDEX([1]!SHIPMENTS_MH,\n((MATCH($C$9,[1]!APPLIANCES,0)-1)*2)+1,\nMATCH(BC$10,[1]!SHIPMENTS_MH_YEARS,0))","v":20005.76502248233},{"$f":"INDEX([1]!SHIPMENTS_MH,\n((MATCH($C$9,[1]!APPLIANCES,0)-1)*2)+1,\nMATCH(BD$10,[1]!SHIPMENTS_MH_YEARS,0))","v":21185.849145073433},{"$f":"INDEX([1]!SHIPMENTS_MH,\n((MATCH($C$9,[1]!APPLIANCES,0)-1)*2)+1,\nMATCH(BE$10,[1]!SHIPMENTS_MH_YEARS,0))","v":22093.687088335093},{"$f":"INDEX([1]!SHIPMENTS_MH,\n((MATCH($C$9,[1]!APPLIANCES,0)-1)*2)+1,\nMATCH(BF$10,[1]!SHIPMENTS_MH_YEARS,0))","v":23198.108027556169}]
[null,null,"Net New Shipments","(units)",{"$f":"INDEX([1]!SHIPMENTS_MH,\n((MATCH($C$9,[1]!APPLIANCES,0)-1)*2)+2,\nMATCH(E$10,[1]!SHIPMENTS_MH_YEARS,0))","v":7354.0562969135062},{"$f":"INDEX([1]!SHIPMENTS_MH,\n((MATCH($C$9,[1]!APPLIANCES,0)-1)*2)+2,\nMATCH(F$10,[1]!SHIPMENTS_MH_YEARS,0))","v":5939.9451303484966},{"$f":"INDEX([1]!SHIPMENTS_MH,\n((MATCH($C$9,[1]!APPLIANCES,0)-1)*2)+2,\nMATCH(G$10,[1]!SHIPMENTS_MH_YEARS,0))","v":8216.0876123591443},{"$f":"INDEX([1]!SHIPMENTS_MH,\n((MATCH($C$9,[1]!APPLIANCES,0)-1)*2)+2,\nMATCH(H$10,[1]!SHIPMENTS_MH_YEARS,0))","v":8065.5203802357137},{"$f":"INDEX([1]!SHIPMENTS_MH,\n((MATCH($C$9,[1]!APPLIANCES,0)-1)*2)+2,\nMATCH(I$10,[1]!SHIPMENTS_MH_YEARS,0))","v":6843.3485230893139},{"$f":"INDEX([1]!SHIPMENTS_MH,\n((MATCH($C$9,[1]!APPLIANCES,0)-1)*2)+2,\nMATCH(J$10,[1]!SHIPMENTS_MH_YEARS,0))","v":5664.5834355640982},{"$f":"INDEX([1]!SHIPMENTS_MH,\n((MATCH($C$9,[1]!APPLIANCES,0)-1)*2)+2,\nMATCH(K$10,[1]!SHIPMENTS_MH_YEARS,0))","v":5359.379586665189},{"$f":"INDEX([1]!SHIPMENTS_MH,\n((MATCH($C$9,[1]!APPLIANCES,0)-1)*2)+2,\nMATCH(L$10,[1]!SHIPMENTS_MH_YEARS,0))","v":6137.3102859697829},{"$f":"INDEX([1]!SHIPMENTS_MH,\n((MATCH($C$9,[1]!APPLIANCES,0)-1)*2)+2,\nMATCH(M$10,[1]!SHIPMENTS_MH_YEARS,0))","v":6759.9261377236062},{"$f":"INDEX([1]!SHIPMENTS_MH,\n((MATCH($C$9,[1]!APPLIANCES,0)-1)*2)+2,\nMATCH(N$10,[1]!SHIPMENTS_MH_YEARS,0))","v":8053.9904570550716},{"$f":"INDEX([1]!SHIPMENTS_MH,\n((MATCH($C$9,[1]!APPLIANCES,0)-1)*2)+2,\nMATCH(O$10,[1]!SHIPMENTS_MH_YEARS,0))","v":8013.296610535207},{"$f":"INDEX([1]!SHIPMENTS_MH,\n((MATCH($C$9,[1]!APPLIANCES,0)-1)*2)+2,\nMATCH(P$10,[1]!SHIPMENTS_MH_YEARS,0))","v":9348.733007161878},{"$f":"INDEX([1]!SHIPMENTS_MH,\n((MATCH($C$9,[1]!APPLIANCES,0)-1)*2)+2,\nMATCH(Q$10,[1]!SHIPMENTS_MH_YEARS,0))","v":11115.229725371406},{"$f":"INDEX([1]!SHIPMENTS_MH,\n((MATCH($C$9,[1]!APPLIANCES,0)-1)*2)+2,\nMATCH(R$10,[1]!SHIPMENTS_MH_YEARS,0))","v":13058.253936838184},{"$f":"INDEX([1]!SHIPMENTS_MH,\n((MATCH($C$9,[1]!APPLIANCES,0)-1)*2)+2,\nMATCH(S$10,[1]!SHIPMENTS_MH_YEARS,0))","v":12396.291283565108},{"$f":"INDEX([1]!SHIPMENTS_MH,\n((MATCH($C$9,[1]!APPLIANCES,0)-1)*2)+2,\nMATCH(T$10,[1]!SHIPMENTS_MH_YEARS,0))","v":10635.685137378692},{"$f":"INDEX([1]!SHIPMENTS_MH,\n((MATCH($C$9,[1]!APPLIANCES,0)-1)*2)+2,\nMATCH(U$10,[1]!SHIPMENTS_MH_YEARS,0))","v":10689.913904501358},{"$f":"INDEX([1]!SHIPMENTS_MH,\n((MATCH($C$9,[1]!APPLIANCES,0)-1)*2)+2,\nMATCH(V$10,[1]!SHIPMENTS_MH_YEARS,0))","v":11089.391260665259},{"$f":"INDEX([1]!SHIPMENTS_MH,\n((MATCH($C$9,[1]!APPLIANCES,0)-1)*2)+2,\nMATCH(W$10,[1]!SHIPMENTS_MH_YEARS,0))","v":8776.7656166694942},{"$f":"INDEX([1]!SHIPMENTS_MH,\n((MATCH($C$9,[1]!APPLIANCES,0)-1)*2)+2,\nMATCH(X$10,[1]!SHIPMENTS_MH_YEARS,0))","v":5368.4132655387511},{"$f":"INDEX([1]!SHIPMENTS_MH,\n((MATCH($C$9,[1]!APPLIANCES,0)-1)*2)+2,\nMATCH(Y$10,[1]!SHIPMENTS_MH_YEARS,0))","v":3823.9666731267353},{"$f":"INDEX([1]!SHIPMENTS_MH,\n((MATCH($C$9,[1]!APPLIANCES,0)-1)*2)+2,\nMATCH(Z$10,[1]!SHIPMENTS_MH_YEARS,0))","v":3916.3612236290355},{"$f":"INDEX([1]!SHIPMENTS_MH,\n((MATCH($C$9,[1]!APPLIANCES,0)-1)*2)+2,\nMATCH(AA$10,[1]!SHIPMENTS_MH_YEARS,0))","v":3514.3734076581313},{"$f":"INDEX([1]!SHIPMENTS_MH,\n((MATCH($C$9,[1]!APPLIANCES,0)-1)*2)+2,\nMATCH(AB$10,[1]!SHIPMENTS_MH_YEARS,0))","v":3333.9920585706714},{"$f":"INDEX([1]!SHIPMENTS_MH,\n((MATCH($C$9,[1]!APPLIANCES,0)-1)*2)+2,\nMATCH(AC$10,[1]!SHIPMENTS_MH_YEARS,0))","v":3307.9888882990344},{"$f":"INDEX([1]!SHIPMENTS_MH,\n((MATCH($C$9,[1]!APPLIANCES,0)-1)*2)+2,\nMATCH(AD$10,[1]!SHIPMENTS_MH_YEARS,0))","v":3078.4882114555803},{"$f":"INDEX([1]!SHIPMENTS_MH,\n((MATCH($C$9,[1]!APPLIANCES,0)-1)*2)+2,\nMATCH(AE$10,[1]!SHIPMENTS_MH_YEARS,0))","v":4154.8791610603221},{"$f":"INDEX([1]!SHIPMENTS_MH,\n((MATCH($C$9,[1]!APPLIANCES,0)-1)*2)+2,\nMATCH(AF$10,[1]!SHIPMENTS_MH_YEARS,0))","v":4314.3499042264884},{"$f":"INDEX([1]!SHIPMENTS_MH,\n((MATCH($C$9,[1]!APPLIANCES,0)-1)*2)+2,\nMATCH(AG$10,[1]!SHIPMENTS_MH_YEARS,0))","v":4361.9167760361452},{"$f":"INDEX([1]!SHIPMENTS_MH,\n((MATCH($C$9,[1]!APPLIANCES,0)-1)*2)+2,\nMATCH(AH$10,[1]!SHIPMENTS_MH_YEARS,0))","v":4352.7477718049195},{"$f":"INDEX([1]!SHIPMENTS_MH,\n((MATCH($C$9,[1]!APPLIANCES,0)-1)*2)+2,\nMATCH(AI$10,[1]!SHIPMENTS_MH_YEARS,0))","v":4238.7675750645576},{"$f":"INDEX([1]!SHIPMENTS_MH,\n((MATCH($C$9,[1]!APPLIANCES,0)-1)*2)+2,\nMATCH(AJ$10,[1]!SHIPMENTS_MH_YEARS,0))","v":5187.2993648460833},{"$f":"INDEX([1]!SHIPMENTS_MH,\n((MATCH($C$9,[1]!APPLIANCES,0)-1)*2)+2,\nMATCH(AK$10,[1]!SHIPMENTS_MH_YEARS,0))","v":4956.283907440491},{"$f":"INDEX([1]!SHIPMENTS_MH,\n((MATCH($C$9,[1]!APPLIANCES,0)-1)*2)+2,\nMATCH(AL$10,[1]!SHIPMENTS_MH_YEARS,0))","v":4660.4808557335673},{"$f":"INDEX([1]!SHIPMENTS_MH,\n((MATCH($C$9,[1]!APPLIANCES,0)-1)*2)+2,\nMATCH(AM$10,[1]!SHIPMENTS_MH_YEARS,0))","v":4386.7139726914465},{"$f":"INDEX([1]!SHIPMENTS_MH,\n((MATCH($C$9,[1]!APPLIANCES,0)-1)*2)+2,\nMATCH(AN$10,[1]!SHIPMENTS_MH_YEARS,0))","v":4179.3884132480598},{"$f":"INDEX([1]!SHIPMENTS_MH,\n((MATCH($C$9,[1]!APPLIANCES,0)-1)*2)+2,\nMATCH(AO$10,[1]!SHIPMENTS_MH_YEARS,0))","v":4059.1930378967663},{"$f":"INDEX([1]!SHIPMENTS_MH,\n((MATCH($C$9,[1]!APPLIANCES,0)-1)*2)+2,\nMATCH(AP$10,[1]!SHIPMENTS_MH_YEARS,0))","v":4037.66665760259},{"$f":"INDEX([1]!SHIPMENTS_MH,\n((MATCH($C$9,[1]!APPLIANCES,0)-1)*2)+2,\nMATCH(AQ$10,[1]!SHIPMENTS_MH_YEARS,0))","v":4110.1259950341773},{"$f":"INDEX([1]!SHIPMENTS_MH,\n((MATCH($C$9,[1]!APPLIANCES,0)-1)*2)+2,\nMATCH(AR$10,[1]!SHIPMENTS_MH_YEARS,0))","v":4250.8011141968309},{"$f":"INDEX([1]!SHIPMENTS_MH,\n((MATCH($C$9,[1]!APPLIANCES,0)-1)*2)+2,\nMATCH(AS$10,[1]!SHIPMENTS_MH_YEARS,0))","v":4431.0721648880863},{"$f":"INDEX([1]!SHIPMENTS_MH,\n((MATCH($C$9,[1]!APPLIANCES,0)-1)*2)+2,\nMATCH(AT$10,[1]!SHIPMENTS_MH_YEARS,0))","v":4611.9965035258792},{"$f":"INDEX([1]!SHIPMENTS_MH,\n((MATCH($C$9,[1]!APPLIANCES,0)-1)*2)+2,\nMATCH(AU$10,[1]!SHIPMENTS_MH_YEARS,0))","v":4756.0347024806542},{"$f":"INDEX([1]!SHIPMENTS_MH,\n((MATCH($C$9,[1]!APPLIANCES,0)-1)*2)+2,\nMATCH(AV$10,[1]!SHIPMENTS_MH_YEARS,0))","v":4834.7506252389285},{"$f":"INDEX([1]!SHIPMENTS_MH,\n((MATCH($C$9,[1]!APPLIANCES,0)-1)*2)+2,\nMATCH(AW$10,[1]!SHIPMENTS_MH_YEARS,0))","v":4832.0134610952227},{"$f":"INDEX([1]!SHIPMENTS_MH,\n((MATCH($C$9,[1]!APPLIANCES,0)-1)*2)+2,\nMATCH(AX$10,[1]!SHIPMENTS_MH_YEARS,0))","v":4746.2514568484667},{"$f":"INDEX([1]!SHIPMENTS_MH,\n((MATCH($C$9,[1]!APPLIANCES,0)-1)*2)+2,\nMATCH(AY$10,[1]!SHIPMENTS_MH_YEARS,0))","v":4591.7345689762733},{"$f":"INDEX([1]!SHIPMENTS_MH,\n((MATCH($C$9,[1]!APPLIANCES,0)-1)*2)+2,\nMATCH(AZ$10,[1]!SHIPMENTS_MH_YEARS,0))","v":4393.3944178608363},{"$f":"INDEX([1]!SHIPMENTS_MH,\n((MATCH($C$9,[1]!APPLIANCES,0)-1)*2)+2,\nMATCH(BA$10,[1]!SHIPMENTS_MH_YEARS,0))","v":4182.6458658272168},{"$f":"INDEX([1]!SHIPMENTS_MH,\n((MATCH($C$9,[1]!APPLIANCES,0)-1)*2)+2,\nMATCH(BB$10,[1]!SHIPMENTS_MH_YEARS,0))","v":3992.0656923559145},{"$f":"INDEX([1]!SHIPMENTS_MH,\n((MATCH($C$9,[1]!APPLIANCES,0)-1)*2)+2,\nMATCH(BC$10,[1]!SHIPMENTS_MH_YEARS,0))","v":4031.9863492794684},{"$f":"INDEX([1]!SHIPMENTS_MH,\n((MATCH($C$9,[1]!APPLIANCES,0)-1)*2)+2,\nMATCH(BD$10,[1]!SHIPMENTS_MH_YEARS,0))","v":4072.306212772266},{"$f":"INDEX([1]!SHIPMENTS_MH,\n((MATCH($C$9,[1]!APPLIANCES,0)-1)*2)+2,\nMATCH(BE$10,[1]!SHIPMENTS_MH_YEARS,0))","v":4113.0292748999782},{"$f":"INDEX([1]!SHIPMENTS_MH,\n((MATCH($C$9,[1]!APPLIANCES,0)-1)*2)+2,\nMATCH(BF$10,[1]!SHIPMENTS_MH_YEARS,0))","v":4154.1595676490106}]
[null,null,"Total Model Shipments","(units)",{"$f":"SUM(E12:E13)","v":16247.14740986731},{"$f":"SUM(F12:F13)","v":14833.0362433023},17109.178725312948,16958.611493189517,15736.439636043116,14557.674548517902,14252.470699618993,15030.401398923586,15653.017250677411,16947.081570008875,16906.38772348901,18241.824120115682,20008.320838325209,21951.345049791988,21289.382396518911,19528.776250332496,19583.005017455162,19982.482373619063,17669.856729623298,14261.504378492555,12717.057786080539,20163.508633496345,18347.409650960431,20443.170783883619,20266.600381488548,18814.927847498697,18712.553709578224,18566.820603845481,19392.318174959732,20005.76502248233,21185.849145073433,22093.687088335093,23198.108027556173,24668.801694058777,26338.059022483434,25468.770809766975,23587.969288229258,23620.671675057754,24092.608368653237,21920.657843820132,18692.576543380641,17329.054289606418,24919.543335977,23182.16027619936,25275.184244978846,25012.851838337014,23406.66241647497,23105.948127439064,22749.466469672698,23384.383867315646,24037.751371761799,25258.155357845699,26206.716363235071,27352.26759520518]
[null,null,"Model Installed Stock","(units)",{"$f":"INDEX([1]!STOCK_MH,\nMATCH($C$9,[1]!APPLIANCES,0),\nMATCH(E$10,[1]!STOCK_MH_YEARS,0))","v":194108.96966894335},{"$f":"INDEX([1]!STOCK_MH,\nMATCH($C$9,[1]!APPLIANCES,0),\nMATCH(F$10,[1]!STOCK_MH_YEARS,0))","v":200048.91479929184},{"$f":"INDEX([1]!STOCK_MH,\nMATCH($C$9,[1]!APPLIANCES,0),\nMATCH(G$10,[1]!STOCK_MH_YEARS,0))","v":208265.00241165099},{"$f":"INDEX([1]!STOCK_MH,\nMATCH($C$9,[1]!APPLIANCES,0),\nMATCH(H$10,[1]!STOCK_MH_YEARS,0))","v":216330.5227918867},{"$f":"INDEX([1]!STOCK_MH,\nMATCH($C$9,[1]!APPLIANCES,0),\nMATCH(I$10,[1]!STOCK_MH_YEARS,0))","v":223173.87131497602},{"$f":"INDEX([1]!STOCK_MH,\nMATCH($C$9,[1]!APPLIANCES,0),\nMATCH(J$10,[1]!STOCK_MH_YEARS,0))","v":228838.45475054011},{"$f":"INDEX([1]!STOCK_MH,\nMATCH($C$9,[1]!APPLIANCES,0),\nMATCH(K$10,[1]!STOCK_MH_YEARS,0))","v":234197.83433720531},{"$f":"INDEX([1]!STOCK_MH,\nMATCH($C$9,[1]!APPLIANCES,0),\nMATCH(L$10,[1]!STOCK_MH_YEARS,0))","v":240335.14462317509},{"$f":"INDEX([1]!STOCK_MH,\nMATCH($C$9,[1]!APPLIANCES,0),\nMATCH(M$10,[1]!STOCK_MH_YEARS,0))","v":247095.0707608987},{"$f":"INDEX([1]!STOCK_MH,\nMATCH($C$9,[1]!APPLIANCES,0),\nMATCH(N$10,[1]!STOCK_MH_YEARS,0))","v":255149.06121795377},{"$f":"INDEX([1]!STOCK_MH,\nMATCH($C$9,[1]!APPLIANCES,0),\nMATCH(O$10,[1]!STOCK_MH_YEARS,0))","v":263162.35782848898},{"$f":"INDEX([1]!STOCK_MH,\nMATCH($C$9,[1]!APPLIANCES,0),\nMATCH(P$10,[1]!STOCK_MH_YEARS,0))","v":272511.09083565086},{"$f":"INDEX([1]!STOCK_MH,\nMATCH($C$9,[1]!APPLIANCES,0),\nMATCH(Q$10,[1]!STOCK_MH_YEARS,0))","v":283626.32056102226},{"$f":"INDEX([1]!STOCK_MH,\nMATCH($C$9,[1]!APPLIANCES,0),\nMATCH(R$10,[1]!STOCK_MH_YEARS,0))","v":296684.57449786045},{"$f":"INDEX([1]!STOCK_MH,\nMATCH($C$9,[1]!APPLIANCES,0),\nMATCH(S$10,[1]!STOCK_MH_YEARS,0))","v":309080.86578142556},{"$f":"INDEX([1]!STOCK_MH,\nMATCH($C$9,[1]!APPLIANCES,0),\nMATCH(T$10,[1]!STOCK_MH_YEARS,0))","v":319716.55091880425},{"$f":"INDEX([1]!STOCK_MH,\nMATCH($C$9,[1]!APPLIANCES,0),\nMATCH(U$10,[1]!STOCK_MH_YEARS,0))","v":330406.46482330561},{"$f":"INDEX([1]!STOCK_MH,\nMATCH($C$9,[1]!APPLIANCES,0),\nMATCH(V$10,[1]!STOCK_MH_YEARS,0))","v":341495.85608397087},{"$f":"INDEX([1]!STOCK_MH,\nMATCH($C$9,[1]!APPLIANCES,0),\nMATCH(W$10,[1]!STOCK_MH_YEARS,0))","v":350272.62170064036},{"$f":"INDEX([1]!STOCK_MH,\nMATCH($C$9,[1]!APPLIANCES,0),\nMATCH(X$10,[1]!STOCK_MH_YEARS,0))","v":355641.03496617911},{"$f":"INDEX([1]!STOCK_MH,\nMATCH($C$9,[1]!APPLIANCES,0),\nMATCH(Y$10,[1]!STOCK_MH_YEARS,0))","v":359465.00163930585},{"$f":"INDEX([1]!STOCK_MH,\nMATCH($C$9,[1]!APPLIANCES,0),\nMATCH(Z$10,[1]!STOCK_MH_YEARS,0))","v":363381.36286293488},{"$f":"INDEX([1]!STOCK_MH,\nMATCH($C$9,[1]!APPLIANCES,0),\nMATCH(AA$10,[1]!STOCK_MH_YEARS,0))","v":366895.73627059301},{"$f":"INDEX([1]!STOCK_MH,\nMATCH($C$9,[1]!APPLIANCES,0),\nMATCH(AB$10,[1]!STOCK_MH_YEARS,0))","v":370229.72832916368},{"$f":"INDEX([1]!STOCK_MH,\nMATCH($C$9,[1]!APPLIANCES,0),\nMATCH(AC$10,[1]!STOCK_MH_YEARS,0))","v":373537.71721746272},{"$f":"INDEX([1]!STOCK_MH,\nMATCH($C$9,[1]!APPLIANCES,0),\nMATCH(AD$10,[1]!STOCK_MH_YEARS,0))","v":376616.2054289183},{"$f":"INDEX([1]!STOCK_MH,\nMATCH($C$9,[1]!APPLIANCES,0),\nMATCH(AE$10,[1]!STOCK_MH_YEARS,0))","v":380771.08458997862},{"$f":"INDEX([1]!STOCK_MH,\nMATCH($C$9,[1]!APPLIANCES,0),\nMATCH(AF$10,[1]!STOCK_MH_YEARS,0))","v":385085.43449420511},{"$f":"INDEX([1]!STOCK_MH,\nMATCH($C$9,[1]!APPLIANCES,0),\nMATCH(AG$10,[1]!STOCK_MH_YEARS,0))","v":389447.35127024126},{"$f":"INDEX([1]!STOCK_MH,\nMATCH($C$9,[1]!APPLIANCES,0),\nMATCH(AH$10,[1]!STOCK_MH_YEARS,0))","v":393800.09904204617},{"$f":"INDEX([1]!STOCK_MH,\nMATCH($C$9,[1]!APPLIANCES,0),\nMATCH(AI$10,[1]!STOCK_MH_YEARS,0))","v":398038.86661711073},{"$f":"INDEX([1]!STOCK_MH,\nMATCH($C$9,[1]!APPLIANCES,0),\nMATCH(AJ$10,[1]!STOCK_MH_YEARS,0))","v":403226.16598195682},{"$f":"INDEX([1]!STOCK_MH,\nMATCH($C$9,[1]!APPLIANCES,0),\nMATCH(AK$10,[1]!STOCK_MH_YEARS,0))","v":408182.44988939731},{"$f":"INDEX([1]!STOCK_MH,\nMATCH($C$9,[1]!APPLIANCES,0),\nMATCH(AL$10,[1]!STOCK_MH_YEARS,0))","v":412842.93074513087},{"$f":"INDEX([1]!STOCK_MH,\nMATCH($C$9,[1]!APPLIANCES,0),\nMATCH(AM$10,[1]!STOCK_MH_YEARS,0))","v":417229.64471782232},{"$f":"INDEX([1]!STOCK_MH,\nMATCH($C$9,[1]!APPLIANCES,0),\nMATCH(AN$10,[1]!STOCK_MH_YEARS,0))","v":421409.03313107038},{"$f":"INDEX([1]!STOCK_MH,\nMATCH($C$9,[1]!APPLIANCES,0),\nMATCH(AO$10,[1]!STOCK_MH_YEARS,0))","v":425468.22616896714},{"$f":"INDEX([1]!STOCK_MH,\nMATCH($C$9,[1]!APPLIANCES,0),\nMATCH(AP$10,[1]!STOCK_MH_YEARS,0))","v":429505.89282656973},{"$f":"INDEX([1]!STOCK_MH,\nMATCH($C$9,[1]!APPLIANCES,0),\nMATCH(AQ$10,[1]!STOCK_MH_YEARS,0))","v":433616.01882160391},{"$f":"INDEX([1]!STOCK_MH,\nMATCH($C$9,[1]!APPLIANCES,0),\nMATCH(AR$10,[1]!STOCK_MH_YEARS,0))","v":437866.81993580074},{"$f":"INDEX([1]!STOCK_MH,\nMATCH($C$9,[1]!APPLIANCES,0),\nMATCH(AS$10,[1]!STOCK_MH_YEARS,0))","v":442297.89210068883},{"$f":"INDEX([1]!STOCK_MH,\nMATCH($C$9,[1]!APPLIANCES,0),\nMATCH(AT$10,[1]!STOCK_MH_YEARS,0))","v":446909.88860421471},{"$f":"INDEX([1]!STOCK_MH,\nMATCH($C$9,[1]!APPLIANCES,0),\nMATCH(AU$10,[1]!STOCK_MH_YEARS,0))","v":451665.92330669536},{"$f":"INDEX([1]!STOCK_MH,\nMATCH($C$9,[1]!APPLIANCES,0),\nMATCH(AV$10,[1]!STOCK_MH_YEARS,0))","v":456500.67393193429},{"$f":"INDEX([1]!STOCK_MH,\nMATCH($C$9,[1]!APPLIANCES,0),\nMATCH(AW$10,[1]!STOCK_MH_YEARS,0))","v":461332.68739302951},{"$f":"INDEX([1]!STOCK_MH,\nMATCH($C$9,[1]!APPLIANCES,0),\nMATCH(AX$10,[1]!STOCK_MH_YEARS,0))","v":466078.93884987797},{"$f":"INDEX([1]!STOCK_MH,\nMATCH($C$9,[1]!APPLIANCES,0),\nMATCH(AY$10,[1]!STOCK_MH_YEARS,0))","v":470670.67341885425},{"$f":"INDEX([1]!STOCK_MH,\nMATCH($C$9,[1]!APPLIANCES,0),\nMATCH(AZ$10,[1]!STOCK_MH_YEARS,0))","v":475064.06783671508},{"$f":"INDEX([1]!STOCK_MH,\nMATCH($C$9,[1]!APPLIANCES,0),\nMATCH(BA$10,[1]!STOCK_MH_YEARS,0))","v":479246.7137025423},{"$f":"INDEX([1]!STOCK_MH,\nMATCH($C$9,[1]!APPLIANCES,0),\nMATCH(BB$10,[1]!STOCK_MH_YEARS,0))","v":483238.77939489821},{"$f":"INDEX([1]!STOCK_MH,\nMATCH($C$9,[1]!APPLIANCES,0),\nMATCH(BC$10,[1]!STOCK_MH_YEARS,0))","v":487270.76574417768},{"$f":"INDEX([1]!STOCK_MH,\nMATCH($C$9,[1]!APPLIANCES,0),\nMATCH(BD$10,[1]!STOCK_MH_YEARS,0))","v":491343.07195694995},{"$f":"INDEX([1]!STOCK_MH,\nMATCH($C$9,[1]!APPLIANCES,0),\nMATCH(BE$10,[1]!STOCK_MH_YEARS,0))","v":495456.10123184993},{"$f":"INDEX([1]!STOCK_MH,\nMATCH($C$9,[1]!APPLIANCES,0),\nMATCH(BF$10,[1]!STOCK_MH_YEARS,0))","v":499610.26079949894}]

{"sheet":"6P UEC Development","index":17,"n_rows":9,"n_cols":4,"rows_kept":9,"cut":false,"hidden":false,"merged":[]}
[]
[null,null,"6P UEC Development"]
[]
[null,null,"NAVIGATION"]
[]
[null,null,"COMMENTS"]
[]
[]
[null,null,"6P UEC Proxy","Because Furnace Fans are not included in the 6P, Pre-Case UECs were developed using the best available information.  These are the based on the DOE rulemaking UECs."]

{"sheet":"Constants","index":18,"n_rows":13,"n_cols":4,"rows_kept":13,"cut":false,"hidden":false,"merged":[]}
[]
[null,null,"Constants"]
[]
[null,null,"NAVIGATION"]
[]
[null,null,"COMMENTS"]
[]
[]
[null,null,"Constant","Value"]
[null,null,"Hours/Day",24]
[null,null,"Days/Week",7]
[null,null,"Days/Year",365.25]
[null,null,"kW/MW",1000]

{"sheet":"Product Class Dist","index":19,"n_rows":83,"n_cols":57,"rows_kept":83,"cut":false,"hidden":false,"merged":[]}
[]
[null,null,"Product Class Distributions"]
[]
[null,null,"NAVIGATION"]
[]
[null,null,"COMMENTS"]
[]
[]
[null,null,"Single Family"]
[]
[null,null,"PRE-Case",1981,{"$f":"D11+1","v":1982},1983,1984,1985,{"$f":"H11+1","v":1986},1987,1988,1989,1990,1991,1992,1993,1994,1995,1996,1997,1998,1999,2000,2001,2002,2003,2004,2005,2006,2007,2008,2009,2010,2011,2012,2013,2014,2015,2016,2017,2018,2019,2020,2021,2022,2023,2024,2025,2026,2027,2028,2029,2030,2031,2032,2033,2034]
[null,null,{"$f":"'Product Classes'!H10&\" - \"&OFFSET('Product Classes'!$C$9,MATCH('Product Classes'!H10,MODEL_PCS,0),0)","v":"PC 1 - Non-Weatherized, Non-Condensing Gas Furnace Fan (NWG-NC)"},{"$f":"E12","v":0.3982437224248449},0.3982437224248449,{"$f":"G12","v":0.3982437224248449},{"$f":"H12","v":0.3982437224248449},{"$f":"I12","v":0.3982437224248449},{"$f":"J12","v":0.3982437224248449},{"$f":"K12","v":0.3982437224248449},{"$f":"L12","v":0.3982437224248449},{"$f":"M12","v":0.3982437224248449},{"$f":"N12","v":0.3982437224248449},{"$f":"O12","v":0.3982437224248449},0.3982437224248449,0.3982437224248449,0.3982437224248449,0.3982437224248449,0.3982437224248449,0.3982437224248449,0.3982437224248449,0.3982437224248449,0.3982437224248449,0.3982437224248449,0.3982437224248449,0.3982437224248449,0.3982437224248449,0.3982437224248449,0.3982437224248449,0.3982437224248449,0.3982437224248449,0.3982437224248449,0.3982437224248449,{"$f":"AI12","v":0.3982437224248449},{"$f":"IF(ISNUMBER(\n'National Shipments'!E$20/SUM('National Shipments'!E$20,'National Shipments'!E$30,'National Shipments'!E$40)\n*(1-SUM(AI$15:AI$19))),\n'National Shipments'!E$20/SUM('National Shipments'!E$20,'National Shipments'!E$30,'National Shipments'!E$40)\n*(1-SUM(AI$15:AI$19)),AH12)","v":0.3982437224248449},{"$f":"IF(ISNUMBER(\n'National Shipments'!F$20/SUM('National Shipments'!F$20,'National Shipments'!F$30,'National Shipments'!F$40)\n*(1-SUM(AJ$15:AJ$19))),\n'National Shipments'!F$20/SUM('National Shipments'!F$20,'National Shipments'!F$30,'National Shipments'!F$40)\n*(1-SUM(AJ$15:AJ$19)),AI12)","v":0.36247526161809795},{"$f":"IF(ISNUMBER(\n'National Shipments'!G$20/SUM('National Shipments'!G$20,'National Shipments'!G$30,'National Shipments'!G$40)\n*(1-SUM(AK$15:AK$19))),\n'National Shipments'!G$20/SUM('National Shipments'!G$20,'National Shipments'!G$30,'National Shipments'!G$40)\n*(1-SUM(AK$15:AK$19)),AJ12)","v":0.36326770300312838},{"$f":"IF(ISNUMBER(\n'National Shipments'!H$20/SUM('National Shipments'!H$20,'National Shipments'!H$30,'National Shipments'!H$40)\n*(1-SUM(AL$15:AL$19))),\n'National Shipments'!H$20/SUM('National Shipments'!H$20,'National Shipments'!H$30,'National Shipments'!H$40)\n*(1-SUM(AL$15:AL$19)),AK12)","v":0.36264759990499662},{"$f":"IF(ISNUMBER(\n'National Shipments'!I$20/SUM('National Shipments'!I$20,'National Shipments'!I$30,'National Shipments'!I$40)\n*(1-SUM(AM$15:AM$19))),\n'National Shipments'!I$20/SUM('National Shipments'!I$20,'National Shipments'!I$30,'National Shipments'!I$40)\n*(1-SUM(AM$15:AM$19)),AL12)","v":0.34261650258151988},{"$f":"IF(ISNUMBER(\n'National Shipments'!J$20/SUM('National Shipments'!J$20,'National Shipments'!J$30,'National Shipments'!J$40)\n*(1-SUM(AN$15:AN$19))),\n'National Shipments'!J$20/SUM('National Shipments'!J$20,'National Shipments'!J$30,'National Shipments'!J$40)\n*(1-SUM(AN$15:AN$19)),AM12)","v":0.320194705454525},{"$f":"IF(ISNUMBER(\n'National Shipments'!K$20/SUM('National Shipments'!K$20,'National Shipments'!K$30,'National Shipments'!K$40)\n*(1-SUM(AO$15:AO$19))),\n'National Shipments'!K$20/SUM('National Shipments'!K$20,'National Shipments'!K$30,'National Shipments'!K$40)\n*(1-SUM(AO$15:AO$19)),AN12)","v":0.35880630374616579},{"$f":"IF(ISNUMBER(\n'National Shipments'!L$20/SUM('National Shipments'!L$20,'National Shipments'!L$30,'National Shipments'!L$40)\n*(1-SUM(AP$15:AP$19))),\n'National Shipments'!L$20/SUM('National Shipments'!L$20,'National Shipments'!L$30,'National Shipments'!L$40)\n*(1-SUM(AP$15:AP$19)),AO12)","v":0.34981274400669965},{"$f":"IF(ISNUMBER(\n'National Shipments'!M$20/SUM('National Shipments'!M$20,'National Shipments'!M$30,'National Shipments'!M$40)\n*(1-SUM(AQ$15:AQ$19))),\n'National Shipments'!M$20/SUM('National Shipments'!M$20,'National Shipments'!M$30,'National Shipments'!M$40)\n*(1-SUM(AQ$15:AQ$19)),AP12)","v":0.3492514973514928},{"$f":"IF(ISNUMBER(\n'National Shipments'!N$20/SUM('National Shipments'!N$20,'National Shipments'!N$30,'National Shipments'!N$40)\n*(1-SUM(AR$15:AR$19))),\n'National Shipments'!N$20/SUM('National Shipments'!N$20,'National Shipments'!N$30,'National Shipments'!N$40)\n*(1-SUM(AR$15:AR$19)),AQ12)","v":0.34367117855427132},{"$f":"IF(ISNUMBER(\n'National Shipments'!O$20/SUM('National Shipments'!O$20,'National Shipments'!O$30,'National Shipments'!O$40)\n*(1-SUM(AS$15:AS$19))),\n'National Shipments'!O$20/SUM('National Shipments'!O$20,'National Shipments'!O$30,'National Shipments'!O$40)\n*(1-SUM(AS$15:AS$19)),AR12)","v":0.35476422762407178},{"$f":"IF(ISNUMBER(\n'National Shipments'!P$20/SUM('National Shipments'!P$20,'National Shipments'!P$30,'National Shipments'!P$40)\n*(1-SUM(AT$15:AT$19))),\n'National Shipments'!P$20/SUM('National Shipments'!P$20,'National Shipments'!P$30,'National Shipments'!P$40)\n*(1-SUM(AT$15:AT$19)),AS12)","v":0.34850347306598684},{"$f":"IF(ISNUMBER(\n'National Shipments'!Q$20/SUM('National Shipments'!Q$20,'National Shipments'!Q$30,'National Shipments'!Q$40)\n*(1-SUM(AU$15:AU$19))),\n'National Shipments'!Q$20/SUM('National Shipments'!Q$20,'National Shipments'!Q$30,'National Shipments'!Q$40)\n*(1-SUM(AU$15:AU$19)),AT12)","v":0.3421241670534963},{"$f":"IF(ISNUMBER(\n'National Shipments'!R$20/SUM('National Shipments'!R$20,'National Shipments'!R$30,'National Shipments'!R$40)\n*(1-SUM(AV$15:AV$19))),\n'National Shipments'!R$20/SUM('National Shipments'!R$20,'National Shipments'!R$30,'National Shipments'!R$40)\n*(1-SUM(AV$15:AV$19)),AU12)","v":0.33551698038653144},{"$f":"IF(ISNUMBER(\n'National Shipments'!S$20/SUM('National Shipments'!S$20,'National Shipments'!S$30,'National Shipments'!S$40)\n*(1-SUM(AW$15:AW$19))),\n'National Shipments'!S$20/SUM('National Shipments'!S$20,'National Shipments'!S$30,'National Shipments'!S$40)\n*(1-SUM(AW$15:AW$19)),AV12)","v":0.3286475229599175},{"$f":"IF(ISNUMBER(\n'National Shipments'!T$20/SUM('National Shipments'!T$20,'National Shipments'!T$30,'National Shipments'!T$40)\n*(1-SUM(AX$15:AX$19))),\n'National Shipments'!T$20/SUM('National Shipments'!T$20,'National Shipments'!T$30,'National Shipments'!T$40)\n*(1-SUM(AX$15:AX$19)),AW12)","v":0.32149875808447526},{"$f":"IF(ISNUMBER(\n'National Shipments'!U$20/SUM('National Shipments'!U$20,'National Shipments'!U$30,'National Shipments'!U$40)\n*(1-SUM(AY$15:AY$19))),\n'National Shipments'!U$20/SUM('National Shipments'!U$20,'National Shipments'!U$30,'National Shipments'!U$40)\n*(1-SUM(AY$15:AY$19)),AX12)","v":0.31412670467341258},{"$f":"IF(ISNUMBER(\n'National Shipments'!V$20/SUM('National Shipments'!V$20,'National Shipments'!V$30,'National Shipments'!V$40)\n*(1-SUM(AZ$15:AZ$19))),\n'National Shipments'!V$20/SUM('National Shipments'!V$20,'National Shipments'!V$30,'National Shipments'!V$40)\n*(1-SUM(AZ$15:AZ$19)),AY12)","v":0.30676829149179513},{"$f":"IF(ISNUMBER(\n'National Shipments'!W$20/SUM('National Shipments'!W$20,'National Shipments'!W$30,'National Shipments'!W$40)\n*(1-SUM(BA$15:BA$19))),\n'National Shipments'!W$20/SUM('National Shipments'!W$20,'National Shipments'!W$30,'National Shipments'!W$40)\n*(1-SUM(BA$15:BA$19)),AZ12)","v":0.2995633945410659},{"$f":"IF(ISNUMBER(\n'National Shipments'!X$20/SUM('National Shipments'!X$20,'National Shipments'!X$30,'National Shipments'!X$40)\n*(1-SUM(BB$15:BB$19))),\n'National Shipments'!X$20/SUM('National Shipments'!X$20,'National Shipments'!X$30,'National Shipments'!X$40)\n*(1-SUM(BB$15:BB$19)),BA12)","v":0.29207508981774188},{"$f":"IF(ISNUMBER(\n'National Shipments'!Y$20/SUM('National Shipments'!Y$20,'National Shipments'!Y$30,'National Shipments'!Y$40)\n*(1-SUM(BC$15:BC$19))),\n'National Shipments'!Y$20/SUM('National Shipments'!Y$20,'National Shipments'!Y$30,'National Shipments'!Y$40)\n*(1-SUM(BC$15:BC$19)),BB12)","v":0.28438190092444943},{"$f":"IF(ISNUMBER(\n'National Shipments'!Z$20/SUM('National Shipments'!Z$20,'National Shipments'!Z$30,'National Shipments'!Z$40)\n*(1-SUM(BD$15:BD$19))),\n'National Shipments'!Z$20/SUM('National Shipments'!Z$20,'National Shipments'!Z$30,'National Shipments'!Z$40)\n*(1-SUM(BD$15:BD$19)),BC12)","v":0.27749454243318195},{"$f":"IF(ISNUMBER(\n'National Shipments'!AA$20/SUM('National Shipments'!AA$20,'National Shipments'!AA$30,'National Shipments'!AA$40)\n*(1-SUM(BE$15:BE$19))),\n'National Shipments'!AA$20/SUM('National Shipments'!AA$20,'National Shipments'!AA$30,'National Shipments'!AA$40)\n*(1-SUM(BE$15:BE$19)),BD12)","v":0.27047570852986086}]
[null,null,{"$f":"'Product Classes'!H11&\" - \"&OFFSET('Product Classes'!$C$9,MATCH('Product Classes'!H11,MODEL_PCS,0),0)","v":"PC 2 - Non-Weatherized, Condensing Gas Furnace Fan (NWG-C)"},0.36262801966593156,0.36262801966593156,0.36262801966593156,0.36262801966593156,0.36262801966593156,0.36262801966593156,0.36262801966593156,0.36262801966593156,0.36262801966593156,0.36262801966593156,0.36262801966593156,0.36262801966593156,0.36262801966593156,0.36262801966593156,0.36262801966593156,0.36262801966593156,0.36262801966593156,0.36262801966593156,0.36262801966593156,0.36262801966593156,0.36262801966593156,0.36262801966593156,0.36262801966593156,0.36262801966593156,0.36262801966593156,0.36262801966593156,0.36262801966593156,0.36262801966593156,0.36262801966593156,0.36262801966593156,{"$f":"AI13","v":0.36262801966593156},{"$f":"IF(ISNUMBER(\n'National Shipments'!E$30/SUM('National Shipments'!E$20,'National Shipments'!E$30,'National Shipments'!E$40)\n*(1-SUM(AI$15:AI$19))),\n'National Shipments'!E$30/SUM('National Shipments'!E$20,'National Shipments'!E$30,'National Shipments'!E$40)\n*(1-SUM(AI$15:AI$19)),AH13)","v":0.36262801966593156},{"$f":"IF(ISNUMBER(\n'National Shipments'!F$30/SUM('National Shipments'!F$20,'National Shipments'!F$30,'National Shipments'!F$40)\n*(1-SUM(AJ$15:AJ$19))),\n'National Shipments'!F$30/SUM('National Shipments'!F$20,'National Shipments'!F$30,'National Shipments'!F$40)\n*(1-SUM(AJ$15:AJ$19)),AI13)","v":0.38358671627955682},{"$f":"IF(ISNUMBER(\n'National Shipments'!G$30/SUM('National Shipments'!G$20,'National Shipments'!G$30,'National Shipments'!G$40)\n*(1-SUM(AK$15:AK$19))),\n'National Shipments'!G$30/SUM('National Shipments'!G$20,'National Shipments'!G$30,'National Shipments'!G$40)\n*(1-SUM(AK$15:AK$19)),AJ13)","v":0.38390536480548193},{"$f":"IF(ISNUMBER(\n'National Shipments'!H$30/SUM('National Shipments'!H$20,'National Shipments'!H$30,'National Shipments'!H$40)\n*(1-SUM(AL$15:AL$19))),\n'National Shipments'!H$30/SUM('National Shipments'!H$20,'National Shipments'!H$30,'National Shipments'!H$40)\n*(1-SUM(AL$15:AL$19)),AK13)","v":0.38537842521791099},{"$f":"IF(ISNUMBER(\n'National Shipments'!I$30/SUM('National Shipments'!I$20,'National Shipments'!I$30,'National Shipments'!I$40)\n*(1-SUM(AM$15:AM$19))),\n'National Shipments'!I$30/SUM('National Shipments'!I$20,'National Shipments'!I$30,'National Shipments'!I$40)\n*(1-SUM(AM$15:AM$19)),AL13)","v":0.40052982126649134},{"$f":"IF(ISNUMBER(\n'National Shipments'!J$30/SUM('National Shipments'!J$20,'National Shipments'!J$30,'National Shipments'!J$40)\n*(1-SUM(AN$15:AN$19))),\n'National Shipments'!J$30/SUM('National Shipments'!J$20,'National Shipments'!J$30,'National Shipments'!J$40)\n*(1-SUM(AN$15:AN$19)),AM13)","v":0.41743605723464572},{"$f":"IF(ISNUMBER(\n'National Shipments'!K$30/SUM('National Shipments'!K$20,'National Shipments'!K$30,'National Shipments'!K$40)\n*(1-SUM(AO$15:AO$19))),\n'National Shipments'!K$30/SUM('National Shipments'!K$20,'National Shipments'!K$30,'National Shipments'!K$40)\n*(1-SUM(AO$15:AO$19)),AN13)","v":0.38706396532962301},{"$f":"IF(ISNUMBER(\n'National Shipments'!L$30/SUM('National Shipments'!L$20,'National Shipments'!L$30,'National Shipments'!L$40)\n*(1-SUM(AP$15:AP$19))),\n'National Shipments'!L$30/SUM('National Shipments'!L$20,'National Shipments'!L$30,'National Shipments'!L$40)\n*(1-SUM(AP$15:AP$19)),AO13)","v":0.39941274108067731},{"$f":"IF(ISNUMBER(\n'National Shipments'!M$30/SUM('National Shipments'!M$20,'National Shipments'!M$30,'National Shipments'!M$40)\n*(1-SUM(AQ$15:AQ$19))),\n'National Shipments'!M$30/SUM('National Shipments'!M$20,'National Shipments'!M$30,'National Shipments'!M$40)\n*(1-SUM(AQ$15:AQ$19)),AP13)","v":0.40103767400085433},{"$f":"IF(ISNUMBER(\n'National Shipments'!N$30/SUM('National Shipments'!N$20,'National Shipments'!N$30,'National Shipments'!N$40)\n*(1-SUM(AR$15:AR$19))),\n'National Shipments'!N$30/SUM('National Shipments'!N$20,'National Shipments'!N$30,'National Shipments'!N$40)\n*(1-SUM(AR$15:AR$19)),AQ13)","v":0.40658220613296697},{"$f":"IF(ISNUMBER(\n'National Shipments'!O$30/SUM('National Shipments'!O$20,'National Shipments'!O$30,'National Shipments'!O$40)\n*(1-SUM(AS$15:AS$19))),\n'National Shipments'!O$30/SUM('National Shipments'!O$20,'National Shipments'!O$30,'National Shipments'!O$40)\n*(1-SUM(AS$15:AS$19)),AR13)","v":0.40163954850187639},{"$f":"IF(ISNUMBER(\n'National Shipments'!P$30/SUM('National Shipments'!P$20,'National Shipments'!P$30,'National Shipments'!P$40)\n*(1-SUM(AT$15:AT$19))),\n'National Shipments'!P$30/SUM('National Shipments'!P$20,'National Shipments'!P$30,'National Shipments'!P$40)\n*(1-SUM(AT$15:AT$19)),AS13)","v":0.40781274860503863},{"$f":"IF(ISNUMBER(\n'National Shipments'!Q$30/SUM('National Shipments'!Q$20,'National Shipments'!Q$30,'National Shipments'!Q$40)\n*(1-SUM(AU$15:AU$19))),\n'National Shipments'!Q$30/SUM('National Shipments'!Q$20,'National Shipments'!Q$30,'National Shipments'!Q$40)\n*(1-SUM(AU$15:AU$19)),AT13)","v":0.41410262281810806},{"$f":"IF(ISNUMBER(\n'National Shipments'!R$30/SUM('National Shipments'!R$20,'National Shipments'!R$30,'National Shipments'!R$40)\n*(1-SUM(AV$15:AV$19))),\n'National Shipments'!R$30/SUM('National Shipments'!R$20,'National Shipments'!R$30,'National Shipments'!R$40)\n*(1-SUM(AV$15:AV$19)),AU13)","v":0.42062570958632722},{"$f":"IF(ISNUMBER(\n'National Shipments'!S$30/SUM('National Shipments'!S$20,'National Shipments'!S$30,'National Shipments'!S$40)\n*(1-SUM(AW$15:AW$19))),\n'National Shipments'!S$30/SUM('National Shipments'!S$20,'National Shipments'!S$30,'National Shipments'!S$40)\n*(1-SUM(AW$15:AW$19)),AV13)","v":0.42741960528830225},{"$f":"IF(ISNUMBER(\n'National Shipments'!T$30/SUM('National Shipments'!T$20,'National Shipments'!T$30,'National Shipments'!T$40)\n*(1-SUM(AX$15:AX$19))),\n'National Shipments'!T$30/SUM('National Shipments'!T$20,'National Shipments'!T$30,'National Shipments'!T$40)\n*(1-SUM(AX$15:AX$19)),AW13)","v":0.43447913839260116},{"$f":"IF(ISNUMBER(\n'National Shipments'!U$30/SUM('National Shipments'!U$20,'National Shipments'!U$30,'National Shipments'!U$40)\n*(1-SUM(AY$15:AY$19))),\n'National Shipments'!U$30/SUM('National Shipments'!U$20,'National Shipments'!U$30,'National Shipments'!U$40)\n*(1-SUM(AY$15:AY$19)),AX13)","v":0.44177366664031259},{"$f":"IF(ISNUMBER(\n'National Shipments'!V$30/SUM('National Shipments'!V$20,'National Shipments'!V$30,'National Shipments'!V$40)\n*(1-SUM(AZ$15:AZ$19))),\n'National Shipments'!V$30/SUM('National Shipments'!V$20,'National Shipments'!V$30,'National Shipments'!V$40)\n*(1-SUM(AZ$15:AZ$19)),AY13)","v":0.44904952919708152},{"$f":"IF(ISNUMBER(\n'National Shipments'!W$30/SUM('National Shipments'!W$20,'National Shipments'!W$30,'National Shipments'!W$40)\n*(1-SUM(BA$15:BA$19))),\n'National Shipments'!W$30/SUM('National Shipments'!W$20,'National Shipments'!W$30,'National Shipments'!W$40)\n*(1-SUM(BA$15:BA$19)),AZ13)","v":0.45617083200161024},{"$f":"IF(ISNUMBER(\n'National Shipments'!X$30/SUM('National Shipments'!X$20,'National Shipments'!X$30,'National Shipments'!X$40)\n*(1-SUM(BB$15:BB$19))),\n'National Shipments'!X$30/SUM('National Shipments'!X$20,'National Shipments'!X$30,'National Shipments'!X$40)\n*(1-SUM(BB$15:BB$19)),BA13)","v":0.46357427907458432},{"$f":"IF(ISNUMBER(\n'National Shipments'!Y$30/SUM('National Shipments'!Y$20,'National Shipments'!Y$30,'National Shipments'!Y$40)\n*(1-SUM(BC$15:BC$19))),\n'National Shipments'!Y$30/SUM('National Shipments'!Y$20,'National Shipments'!Y$30,'National Shipments'!Y$40)\n*(1-SUM(BC$15:BC$19)),BB13)","v":0.47118901282509118},{"$f":"IF(ISNUMBER(\n'National Shipments'!Z$30/SUM('National Shipments'!Z$20,'National Shipments'!Z$30,'National Shipments'!Z$40)\n*(1-SUM(BD$15:BD$19))),\n'National Shipments'!Z$30/SUM('National Shipments'!Z$20,'National Shipments'!Z$30,'National Shipments'!Z$40)\n*(1-SUM(BD$15:BD$19)),BC13)","v":0.47802501192673558},{"$f":"IF(ISNUMBER(\n'National Shipments'!AA$30/SUM('National Shipments'!AA$20,'National Shipments'!AA$30,'National Shipments'!AA$40)\n*(1-SUM(BE$15:BE$19))),\n'National Shipments'!AA$30/SUM('National Shipments'!AA$20,'National Shipments'!AA$30,'National Shipments'!AA$40)\n*(1-SUM(BE$15:BE$19)),BD13)","v":0.48498784187768962}]
[null,null,{"$f":"'Product Classes'!H12&\" - \"&OFFSET('Product Classes'!$C$9,MATCH('Product Classes'!H12,MODEL_PCS,0),0)","v":"PC 3 - Weatherized Non-Condensing Gas Furnace Fan (WG-NC)"},7.4128257909223463E-2,7.4128257909223463E-2,7.4128257909223463E-2,7.4128257909223463E-2,7.4128257909223463E-2,7.4128257909223463E-2,7.4128257909223463E-2,7.4128257909223463E-2,7.4128257909223463E-2,7.4128257909223463E-2,7.4128257909223463E-2,7.4128257909223463E-2,7.4128257909223463E-2,7.4128257909223463E-2,7.4128257909223463E-2,7.4128257909223463E-2,7.4128257909223463E-2,7.4128257909223463E-2,7.4128257909223463E-2,7.4128257909223463E-2,7.4128257909223463E-2,7.4128257909223463E-2,7.4128257909223463E-2,7.4128257909223463E-2,7.4128257909223463E-2,7.4128257909223463E-2,7.4128257909223463E-2,7.4128257909223463E-2,7.4128257909223463E-2,7.4128257909223463E-2,7.4128257909223463E-2,{"$f":"IF(ISNUMBER(\n'National Shipments'!E$40/SUM('National Shipments'!E$20,'National Shipments'!E$30,'National Shipments'!E$40)\n*(1-SUM(AI$15:AI$19))),\n'National Shipments'!E$40/SUM('National Shipments'!E$20,'National Shipments'!E$30,'National Shipments'!E$40)\n*(1-SUM(AI$15:AI$19)),AH14)","v":7.4128257909223463E-2},{"$f":"IF(ISNUMBER(\n'National Shipments'!F$40/SUM('National Shipments'!F$20,'National Shipments'!F$30,'National Shipments'!F$40)\n*(1-SUM(AJ$15:AJ$19))),\n'National Shipments'!F$40/SUM('National Shipments'!F$20,'National Shipments'!F$30,'National Shipments'!F$40)\n*(1-SUM(AJ$15:AJ$19)),AI14)","v":8.8938022102345041E-2},{"$f":"IF(ISNUMBER(\n'National Shipments'!G$40/SUM('National Shipments'!G$20,'National Shipments'!G$30,'National Shipments'!G$40)\n*(1-SUM(AK$15:AK$19))),\n'National Shipments'!G$40/SUM('National Shipments'!G$20,'National Shipments'!G$30,'National Shipments'!G$40)\n*(1-SUM(AK$15:AK$19)),AJ14)","v":8.7826932191389692E-2},{"$f":"IF(ISNUMBER(\n'National Shipments'!H$40/SUM('National Shipments'!H$20,'National Shipments'!H$30,'National Shipments'!H$40)\n*(1-SUM(AL$15:AL$19))),\n'National Shipments'!H$40/SUM('National Shipments'!H$20,'National Shipments'!H$30,'National Shipments'!H$40)\n*(1-SUM(AL$15:AL$19)),AK14)","v":8.6973974877092283E-2},{"$f":"IF(ISNUMBER(\n'National Shipments'!I$40/SUM('National Shipments'!I$20,'National Shipments'!I$30,'National Shipments'!I$40)\n*(1-SUM(AM$15:AM$19))),\n'National Shipments'!I$40/SUM('National Shipments'!I$20,'National Shipments'!I$30,'National Shipments'!I$40)\n*(1-SUM(AM$15:AM$19)),AL14)","v":9.1853676151988681E-2},{"$f":"IF(ISNUMBER(\n'National Shipments'!J$40/SUM('National Shipments'!J$20,'National Shipments'!J$30,'National Shipments'!J$40)\n*(1-SUM(AN$15:AN$19))),\n'National Shipments'!J$40/SUM('National Shipments'!J$20,'National Shipments'!J$30,'National Shipments'!J$40)\n*(1-SUM(AN$15:AN$19)),AM14)","v":9.7369237310829221E-2},{"$f":"IF(ISNUMBER(\n'National Shipments'!K$40/SUM('National Shipments'!K$20,'National Shipments'!K$30,'National Shipments'!K$40)\n*(1-SUM(AO$15:AO$19))),\n'National Shipments'!K$40/SUM('National Shipments'!K$20,'National Shipments'!K$30,'National Shipments'!K$40)\n*(1-SUM(AO$15:AO$19)),AN14)","v":8.9129730924211101E-2},{"$f":"IF(ISNUMBER(\n'National Shipments'!L$40/SUM('National Shipments'!L$20,'National Shipments'!L$30,'National Shipments'!L$40)\n*(1-SUM(AP$15:AP$19))),\n'National Shipments'!L$40/SUM('National Shipments'!L$20,'National Shipments'!L$30,'National Shipments'!L$40)\n*(1-SUM(AP$15:AP$19)),AO14)","v":8.5774514912622973E-2},{"$f":"IF(ISNUMBER(\n'National Shipments'!M$40/SUM('National Shipments'!M$20,'National Shipments'!M$30,'National Shipments'!M$40)\n*(1-SUM(AQ$15:AQ$19))),\n'National Shipments'!M$40/SUM('National Shipments'!M$20,'National Shipments'!M$30,'National Shipments'!M$40)\n*(1-SUM(AQ$15:AQ$19)),AP14)","v":8.4710828647652892E-2},{"$f":"IF(ISNUMBER(\n'National Shipments'!N$40/SUM('National Shipments'!N$20,'National Shipments'!N$30,'National Shipments'!N$40)\n*(1-SUM(AR$15:AR$19))),\n'National Shipments'!N$40/SUM('National Shipments'!N$20,'National Shipments'!N$30,'National Shipments'!N$40)\n*(1-SUM(AR$15:AR$19)),AQ14)","v":8.4746615312761786E-2},{"$f":"IF(ISNUMBER(\n'National Shipments'!O$40/SUM('National Shipments'!O$20,'National Shipments'!O$30,'National Shipments'!O$40)\n*(1-SUM(AS$15:AS$19))),\n'National Shipments'!O$40/SUM('National Shipments'!O$20,'National Shipments'!O$30,'National Shipments'!O$40)\n*(1-SUM(AS$15:AS$19)),AR14)","v":7.8596223874051852E-2},{"$f":"IF(ISNUMBER(\n'National Shipments'!P$40/SUM('National Shipments'!P$20,'National Shipments'!P$30,'National Shipments'!P$40)\n*(1-SUM(AT$15:AT$19))),\n'National Shipments'!P$40/SUM('National Shipments'!P$20,'National Shipments'!P$30,'National Shipments'!P$40)\n*(1-SUM(AT$15:AT$19)),AS14)","v":7.8683778328974593E-2},{"$f":"IF(ISNUMBER(\n'National Shipments'!Q$40/SUM('National Shipments'!Q$20,'National Shipments'!Q$30,'National Shipments'!Q$40)\n*(1-SUM(AU$15:AU$19))),\n'National Shipments'!Q$40/SUM('National Shipments'!Q$20,'National Shipments'!Q$30,'National Shipments'!Q$40)\n*(1-SUM(AU$15:AU$19)),AT14)","v":7.8773210128395568E-2},{"$f":"IF(ISNUMBER(\n'National Shipments'!R$40/SUM('National Shipments'!R$20,'National Shipments'!R$30,'National Shipments'!R$40)\n*(1-SUM(AV$15:AV$19))),\n'National Shipments'!R$40/SUM('National Shipments'!R$20,'National Shipments'!R$30,'National Shipments'!R$40)\n*(1-SUM(AV$15:AV$19)),AU14)","v":7.8857310027141261E-2},{"$f":"IF(ISNUMBER(\n'National Shipments'!S$40/SUM('National Shipments'!S$20,'National Shipments'!S$30,'National Shipments'!S$40)\n*(1-SUM(AW$15:AW$19))),\n'National Shipments'!S$40/SUM('National Shipments'!S$20,'National Shipments'!S$30,'National Shipments'!S$40)\n*(1-SUM(AW$15:AW$19)),AV14)","v":7.8932871751780168E-2},{"$f":"IF(ISNUMBER(\n'National Shipments'!T$40/SUM('National Shipments'!T$20,'National Shipments'!T$30,'National Shipments'!T$40)\n*(1-SUM(AX$15:AX$19))),\n'National Shipments'!T$40/SUM('National Shipments'!T$20,'National Shipments'!T$30,'National Shipments'!T$40)\n*(1-SUM(AX$15:AX$19)),AW14)","v":7.902210352292359E-2},{"$f":"IF(ISNUMBER(\n'National Shipments'!U$40/SUM('National Shipments'!U$20,'National Shipments'!U$30,'National Shipments'!U$40)\n*(1-SUM(AY$15:AY$19))),\n'National Shipments'!U$40/SUM('National Shipments'!U$20,'National Shipments'!U$30,'National Shipments'!U$40)\n*(1-SUM(AY$15:AY$19)),AX14)","v":7.9099628686274903E-2},{"$f":"IF(ISNUMBER(\n'National Shipments'!V$40/SUM('National Shipments'!V$20,'National Shipments'!V$30,'National Shipments'!V$40)\n*(1-SUM(AZ$15:AZ$19))),\n'National Shipments'!V$40/SUM('National Shipments'!V$20,'National Shipments'!V$30,'National Shipments'!V$40)\n*(1-SUM(AZ$15:AZ$19)),AY14)","v":7.918217931112323E-2},{"$f":"IF(ISNUMBER(\n'National Shipments'!W$40/SUM('National Shipments'!W$20,'National Shipments'!W$30,'National Shipments'!W$40)\n*(1-SUM(BA$15:BA$19))),\n'National Shipments'!W$40/SUM('National Shipments'!W$20,'National Shipments'!W$30,'National Shipments'!W$40)\n*(1-SUM(BA$15:BA$19)),AZ14)","v":7.926577345732394E-2},{"$f":"IF(ISNUMBER(\n'National Shipments'!X$40/SUM('National Shipments'!X$20,'National Shipments'!X$30,'National Shipments'!X$40)\n*(1-SUM(BB$15:BB$19))),\n'National Shipments'!X$40/SUM('National Shipments'!X$20,'National Shipments'!X$30,'National Shipments'!X$40)\n*(1-SUM(BB$15:BB$19)),BA14)","v":7.9350631107673736E-2},{"$f":"IF(ISNUMBER(\n'National Shipments'!Y$40/SUM('National Shipments'!Y$20,'National Shipments'!Y$30,'National Shipments'!Y$40)\n*(1-SUM(BC$15:BC$19))),\n'National Shipments'!Y$40/SUM('National Shipments'!Y$20,'National Shipments'!Y$30,'National Shipments'!Y$40)\n*(1-SUM(BC$15:BC$19)),BB14)","v":7.9429086250459371E-2},{"$f":"IF(ISNUMBER(\n'National Shipments'!Z$40/SUM('National Shipments'!Z$20,'National Shipments'!Z$30,'National Shipments'!Z$40)\n*(1-SUM(BD$15:BD$19))),\n'National Shipments'!Z$40/SUM('National Shipments'!Z$20,'National Shipments'!Z$30,'National Shipments'!Z$40)\n*(1-SUM(BD$15:BD$19)),BC14)","v":7.9480445640082414E-2},{"$f":"IF(ISNUMBER(\n'National Shipments'!AA$40/SUM('National Shipments'!AA$20,'National Shipments'!AA$30,'National Shipments'!AA$40)\n*(1-SUM(BE$15:BE$19))),\n'National Shipments'!AA$40/SUM('National Shipments'!AA$20,'National Shipments'!AA$30,'National Shipments'!AA$40)\n*(1-SUM(BE$15:BE$19)),BD14)","v":7.9536449592449557E-2}]
[null,null,{"$f":"'Product Classes'!H13&\" - \"&OFFSET('Product Classes'!$C$9,MATCH('Product Classes'!H13,MODEL_PCS,0),0)","v":"PC 4 - Non-Weatherized, Non-Condensing Oil Furnace Fan (NWO-NC)"},6.7000000000000004E-2,6.7000000000000004E-2,6.7000000000000004E-2,6.7000000000000004E-2,6.7000000000000004E-2,6.7000000000000004E-2,6.7000000000000004E-2,6.7000000000000004E-2,6.7000000000000004E-2,6.7000000000000004E-2,6.7000000000000004E-2,6.7000000000000004E-2,6.7000000000000004E-2,6.7000000000000004E-2,6.7000000000000004E-2,6.7000000000000004E-2,6.7000000000000004E-2,6.7000000000000004E-2,6.7000000000000004E-2,6.7000000000000004E-2,6.7000000000000004E-2,6.7000000000000004E-2,6.7000000000000004E-2,6.7000000000000004E-2,6.7000000000000004E-2,6.7000000000000004E-2,6.7000000000000004E-2,6.7000000000000004E-2,6.7000000000000004E-2,6.7000000000000004E-2,6.7000000000000004E-2,{"$f":"'Data by Building Type'!$D$17","v":6.7000000000000004E-2},{"$f":"'Data by Building Type'!$D$17","v":6.7000000000000004E-2},{"$f":"'Data by Building Type'!$D$17","v":6.7000000000000004E-2},{"$f":"'Data by Building Type'!$D$17","v":6.7000000000000004E-2},{"$f":"'Data by Building Type'!$D$17","v":6.7000000000000004E-2},{"$f":"'Data by Building Type'!$D$17","v":6.7000000000000004E-2},{"$f":"'Data by Building Type'!$D$17","v":6.7000000000000004E-2},{"$f":"'Data by Building Type'!$D$17","v":6.7000000000000004E-2},{"$f":"'Data by Building Type'!$D$17","v":6.7000000000000004E-2},{"$f":"'Data by Building Type'!$D$17","v":6.7000000000000004E-2},{"$f":"'Data by Building Type'!$D$17","v":6.7000000000000004E-2},{"$f":"'Data by Building Type'!$D$17","v":6.7000000000000004E-2},{"$f":"'Data by Building Type'!$D$17","v":6.7000000000000004E-2},{"$f":"'Data by Building Type'!$D$17","v":6.7000000000000004E-2},{"$f":"'Data by Building Type'!$D$17","v":6.7000000000000004E-2},{"$f":"'Data by Building Type'!$D$17","v":6.7000000000000004E-2},{"$f":"'Data by Building Type'!$D$17","v":6.7000000000000004E-2},{"$f":"'Data by Building Type'!$D$17","v":6.7000000000000004E-2},{"$f":"'Data by Building Type'!$D$17","v":6.7000000000000004E-2},{"$f":"'Data by Building Type'!$D$17","v":6.7000000000000004E-2},{"$f":"'Data by Building Type'!$D$17","v":6.7000000000000004E-2},{"$f":"'Data by Building Type'!$D$17","v":6.7000000000000004E-2},{"$f":"'Data by Building Type'!$D$17","v":6.7000000000000004E-2}]
[null,null,{"$f":"'Product Classes'!H14&\" - \"&OFFSET('Product Classes'!$C$9,MATCH('Product Classes'!H14,MODEL_PCS,0),0)","v":"PC 5 - Non-Weatherized Electric Furnace / Modular Blower Fan (NWEF/NWMB)"},9.8000000000000004E-2,9.8000000000000004E-2,9.8000000000000004E-2,9.8000000000000004E-2,9.8000000000000004E-2,9.8000000000000004E-2,9.8000000000000004E-2,9.8000000000000004E-2,9.8000000000000004E-2,9.8000000000000004E-2,9.8000000000000004E-2,9.8000000000000004E-2,9.8000000000000004E-2,9.8000000000000004E-2,9.8000000000000004E-2,9.8000000000000004E-2,9.8000000000000004E-2,9.8000000000000004E-2,9.8000000000000004E-2,9.8000000000000004E-2,9.8000000000000004E-2,9.8000000000000004E-2,9.8000000000000004E-2,9.8000000000000004E-2,9.8000000000000004E-2,9.8000000000000004E-2,9.8000000000000004E-2,9.8000000000000004E-2,9.8000000000000004E-2,9.8000000000000004E-2,9.8000000000000004E-2,{"$f":"'Data by Building Type'!$D$15","v":9.8000000000000004E-2},{"$f":"'Data by Building Type'!$D$15","v":9.8000000000000004E-2},{"$f":"'Data by Building Type'!$D$15","v":9.8000000000000004E-2},{"$f":"'Data by Building Type'!$D$15","v":9.8000000000000004E-2},{"$f":"'Data by Building Type'!$D$15","v":9.8000000000000004E-2},{"$f":"'Data by Building Type'!$D$15","v":9.8000000000000004E-2},{"$f":"'Data by Building Type'!$D$15","v":9.8000000000000004E-2},{"$f":"'Data by Building Type'!$D$15","v":9.8000000000000004E-2},{"$f":"'Data by Building Type'!$D$15","v":9.8000000000000004E-2},{"$f":"'Data by Building Type'!$D$15","v":9.8000000000000004E-2},{"$f":"'Data by Building Type'!$D$15","v":9.8000000000000004E-2},{"$f":"'Data by Building Type'!$D$15","v":9.8000000000000004E-2},{"$f":"'Data by Building Type'!$D$15","v":9.8000000000000004E-2},{"$f":"'Data by Building Type'!$D$15","v":9.8000000000000004E-2},{"$f":"'Data by Building Type'!$D$15","v":9.8000000000000004E-2},{"$f":"'Data by Building Type'!$D$15","v":9.8000000000000004E-2},{"$f":"'Data by Building Type'!$D$15","v":9.8000000000000004E-2},{"$f":"'Data by Building Type'!$D$15","v":9.8000000000000004E-2},{"$f":"'Data by Building Type'!$D$15","v":9.8000000000000004E-2},{"$f":"'Data by Building Type'!$D$15","v":9.8000000000000004E-2},{"$f":"'Data by Building Type'!$D$15","v":9.8000000000000004E-2},{"$f":"'Data by Building Type'!$D$15","v":9.8000000000000004E-2},{"$f":"'Data by Building Type'!$D$15","v":9.8000000000000004E-2}]
[null,null,{"$f":"'Product Classes'!H15&\" - \"&OFFSET('Product Classes'!$C$9,MATCH('Product Classes'!H15,MODEL_PCS,0),0)","v":"PC 6 - Mobile Home Non-Weatherized, Non-Condensing Gas Furnace Fan (MH-NWG-NC)"},0,0,0,0,0,0,0,0,0,0,0,0,0,0,0,0,0,0,0,0,0,0,0,0,0,0,0,0,0,0,0,{"$f":"IF(INDEX(PC_MAPPING,MID($C17,4,1),MATCH($C$9,'Data by Building Type'!$D$22:$F$22,0))=\"Yes\",1,0)","v":0},{"$f":"IF(INDEX(PC_MAPPING,MID($C17,4,1),MATCH($C$9,'Data by Building Type'!$D$22:$F$22,0))=\"Yes\",1,0)","v":0},{"$f":"IF(INDEX(PC_MAPPING,MID($C17,4,1),MATCH($C$9,'Data by Building Type'!$D$22:$F$22,0))=\"Yes\",1,0)","v":0},{"$f":"IF(INDEX(PC_MAPPING,MID($C17,4,1),MATCH($C$9,'Data by Building Type'!$D$22:$F$22,0))=\"Yes\",1,0)","v":0},{"$f":"IF(INDEX(PC_MAPPING,MID($C17,4,1),MATCH($C$9,'Data by Building Type'!$D$22:$F$22,0))=\"Yes\",1,0)","v":0},{"$f":"IF(INDEX(PC_MAPPING,MID($C17,4,1),MATCH($C$9,'Data by Building Type'!$D$22:$F$22,0))=\"Yes\",1,0)","v":0},{"$f":"IF(INDEX(PC_MAPPING,MID($C17,4,1),MATCH($C$9,'Data by Building Type'!$D$22:$F$22,0))=\"Yes\",1,0)","v":0},{"$f":"IF(INDEX(PC_MAPPING,MID($C17,4,1),MATCH($C$9,'Data by Building Type'!$D$22:$F$22,0))=\"Yes\",1,0)","v":0},{"$f":"IF(INDEX(PC_MAPPING,MID($C17,4,1),MATCH($C$9,'Data by Building Type'!$D$22:$F$22,0))=\"Yes\",1,0)","v":0},{"$f":"IF(INDEX(PC_MAPPING,MID($C17,4,1),MATCH($C$9,'Data by Building Type'!$D$22:$F$22,0))=\"Yes\",1,0)","v":0},{"$f":"IF(INDEX(PC_MAPPING,MID($C17,4,1),MATCH($C$9,'Data by Building Type'!$D$22:$F$22,0))=\"Yes\",1,0)","v":0},{"$f":"IF(INDEX(PC_MAPPING,MID($C17,4,1),MATCH($C$9,'Data by Building Type'!$D$22:$F$22,0))=\"Yes\",1,0)","v":0},{"$f":"IF(INDEX(PC_MAPPING,MID($C17,4,1),MATCH($C$9,'Data by Building Type'!$D$22:$F$22,0))=\"Yes\",1,0)","v":0},{"$f":"IF(INDEX(PC_MAPPING,MID($C17,4,1),MATCH($C$9,'Data by Building Type'!$D$22:$F$22,0))=\"Yes\",1,0)","v":0},{"$f":"IF(INDEX(PC_MAPPING,MID($C17,4,1),MATCH($C$9,'Data by Building Type'!$D$22:$F$22,0))=\"Yes\",1,0)","v":0},{"$f":"IF(INDEX(PC_MAPPING,MID($C17,4,1),MATCH($C$9,'Data by Building Type'!$D$22:$F$22,0))=\"Yes\",1,0)","v":0},{"$f":"IF(INDEX(PC_MAPPING,MID($C17,4,1),MATCH($C$9,'Data by Building Type'!$D$22:$F$22,0))=\"Yes\",1,0)","v":0},{"$f":"IF(INDEX(PC_MAPPING,MID($C17,4,1),MATCH($C$9,'Data by Building Type'!$D$22:$F$22,0))=\"Yes\",1,0)","v":0},{"$f":"IF(INDEX(PC_MAPPING,MID($C17,4,1),MATCH($C$9,'Data by Building Type'!$D$22:$F$22,0))=\"Yes\",1,0)","v":0},{"$f":"IF(INDEX(PC_MAPPING,MID($C17,4,1),MATCH($C$9,'Data by Building Type'!$D$22:$F$22,0))=\"Yes\",1,0)","v":0},{"$f":"IF(INDEX(PC_MAPPING,MID($C17,4,1),MATCH($C$9,'Data by Building Type'!$D$22:$F$22,0))=\"Yes\",1,0)","v":0},{"$f":"IF(INDEX(PC_MAPPING,MID($C17,4,1),MATCH($C$9,'Data by Building Type'!$D$22:$F$22,0))=\"Yes\",1,0)","v":0},{"$f":"IF(INDEX(PC_MAPPING,MID($C17,4,1),MATCH($C$9,'Data by Building Type'!$D$22:$F$22,0))=\"Yes\",1,0)","v":0}]
[null,null,{"$f":"'Product Classes'!H16&\" - \"&OFFSET('Product Classes'!$C$9,MATCH('Product Classes'!H16,MODEL_PCS,0),0)","v":"PC 7 - Mobile Home Non-Weatherized, Condensing Gas Furnace Fan (MH-NWG-C)"},0,0,0,0,0,0,0,0,0,0,0,0,0,0,0,0,0,0,0,0,0,0,0,0,0,0,0,0,0,0,0,{"$f":"IF(INDEX(PC_MAPPING,MID($C18,4,1),MATCH($C$9,'Data by Building Type'!$D$22:$F$22,0))=\"Yes\",1,0)","v":0},{"$f":"IF(INDEX(PC_MAPPING,MID($C18,4,1),MATCH($C$9,'Data by Building Type'!$D$22:$F$22,0))=\"Yes\",1,0)","v":0},{"$f":"IF(INDEX(PC_MAPPING,MID($C18,4,1),MATCH($C$9,'Data by Building Type'!$D$22:$F$22,0))=\"Yes\",1,0)","v":0},{"$f":"IF(INDEX(PC_MAPPING,MID($C18,4,1),MATCH($C$9,'Data by Building Type'!$D$22:$F$22,0))=\"Yes\",1,0)","v":0},{"$f":"IF(INDEX(PC_MAPPING,MID($C18,4,1),MATCH($C$9,'Data by Building Type'!$D$22:$F$22,0))=\"Yes\",1,0)","v":0},{"$f":"IF(INDEX(PC_MAPPING,MID($C18,4,1),MATCH($C$9,'Data by Building Type'!$D$22:$F$22,0))=\"Yes\",1,0)","v":0},{"$f":"IF(INDEX(PC_MAPPING,MID($C18,4,1),MATCH($C$9,'Data by Building Type'!$D$22:$F$22,0))=\"Yes\",1,0)","v":0},{"$f":"IF(INDEX(PC_MAPPING,MID($C18,4,1),MATCH($C$9,'Data by Building Type'!$D$22:$F$22,0))=\"Yes\",1,0)","v":0},{"$f":"IF(INDEX(PC_MAPPING,MID($C18,4,1),MATCH($C$9,'Data by Building Type'!$D$22:$F$22,0))=\"Yes\",1,0)","v":0},{"$f":"IF(INDEX(PC_MAPPING,MID($C18,4,1),MATCH($C$9,'Data by Building Type'!$D$22:$F$22,0))=\"Yes\",1,0)","v":0},{"$f":"IF(INDEX(PC_MAPPING,MID($C18,4,1),MATCH($C$9,'Data by Building Type'!$D$22:$F$22,0))=\"Yes\",1,0)","v":0},{"$f":"IF(INDEX(PC_MAPPING,MID($C18,4,1),MATCH($C$9,'Data by Building Type'!$D$22:$F$22,0))=\"Yes\",1,0)","v":0},{"$f":"IF(INDEX(PC_MAPPING,MID($C18,4,1),MATCH($C$9,'Data by Building Type'!$D$22:$F$22,0))=\"Yes\",1,0)","v":0},{"$f":"IF(INDEX(PC_MAPPING,MID($C18,4,1),MATCH($C$9,'Data by Building Type'!$D$22:$F$22,0))=\"Yes\",1,0)","v":0},{"$f":"IF(INDEX(PC_MAPPING,MID($C18,4,1),MATCH($C$9,'Data by Building Type'!$D$22:$F$22,0))=\"Yes\",1,0)","v":0},{"$f":"IF(INDEX(PC_MAPPING,MID($C18,4,1),MATCH($C$9,'Data by Building Type'!$D$22:$F$22,0))=\"Yes\",1,0)","v":0},{"$f":"IF(INDEX(PC_MAPPING,MID($C18,4,1),MATCH($C$9,'Data by Building Type'!$D$22:$F$22,0))=\"Yes\",1,0)","v":0},{"$f":"IF(INDEX(PC_MAPPING,MID($C18,4,1),MATCH($C$9,'Data by Building Type'!$D$22:$F$22,0))=\"Yes\",1,0)","v":0},{"$f":"IF(INDEX(PC_MAPPING,MID($C18,4,1),MATCH($C$9,'Data by Building Type'!$D$22:$F$22,0))=\"Yes\",1,0)","v":0},{"$f":"IF(INDEX(PC_MAPPING,MID($C18,4,1),MATCH($C$9,'Data by Building Type'!$D$22:$F$22,0))=\"Yes\",1,0)","v":0},{"$f":"IF(INDEX(PC_MAPPING,MID($C18,4,1),MATCH($C$9,'Data by Building Type'!$D$22:$F$22,0))=\"Yes\",1,0)","v":0},{"$f":"IF(INDEX(PC_MAPPING,MID($C18,4,1),MATCH($C$9,'Data by Building Type'!$D$22:$F$22,0))=\"Yes\",1,0)","v":0},{"$f":"IF(INDEX(PC_MAPPING,MID($C18,4,1),MATCH($C$9,'Data by Building Type'!$D$22:$F$22,0))=\"Yes\",1,0)","v":0}]
[null,null,{"$f":"'Product Classes'!H17&\" - \"&OFFSET('Product Classes'!$C$9,MATCH('Product Classes'!H17,MODEL_PCS,0),0)","v":"PC 8 - Mobile Home Electric Furnace / Modular Blower Fan (MH-EF/MB)"},0,0,0,0,0,0,0,0,0,0,0,0,0,0,0,0,0,0,0,0,0,0,0,0,0,0,0,0,0,0,0,{"$f":"IF(INDEX(PC_MAPPING,MID($C19,4,1),MATCH($C$9,'Data by Building Type'!$D$22:$F$22,0))=\"Yes\",1,0)","v":0},{"$f":"IF(INDEX(PC_MAPPING,MID($C19,4,1),MATCH($C$9,'Data by Building Type'!$D$22:$F$22,0))=\"Yes\",1,0)","v":0},{"$f":"IF(INDEX(PC_MAPPING,MID($C19,4,1),MATCH($C$9,'Data by Building Type'!$D$22:$F$22,0))=\"Yes\",1,0)","v":0},{"$f":"IF(INDEX(PC_MAPPING,MID($C19,4,1),MATCH($C$9,'Data by Building Type'!$D$22:$F$22,0))=\"Yes\",1,0)","v":0},{"$f":"IF(INDEX(PC_MAPPING,MID($C19,4,1),MATCH($C$9,'Data by Building Type'!$D$22:$F$22,0))=\"Yes\",1,0)","v":0},{"$f":"IF(INDEX(PC_MAPPING,MID($C19,4,1),MATCH($C$9,'Data by Building Type'!$D$22:$F$22,0))=\"Yes\",1,0)","v":0},{"$f":"IF(INDEX(PC_MAPPING,MID($C19,4,1),MATCH($C$9,'Data by Building Type'!$D$22:$F$22,0))=\"Yes\",1,0)","v":0},{"$f":"IF(INDEX(PC_MAPPING,MID($C19,4,1),MATCH($C$9,'Data by Building Type'!$D$22:$F$22,0))=\"Yes\",1,0)","v":0},{"$f":"IF(INDEX(PC_MAPPING,MID($C19,4,1),MATCH($C$9,'Data by Building Type'!$D$22:$F$22,0))=\"Yes\",1,0)","v":0},{"$f":"IF(INDEX(PC_MAPPING,MID($C19,4,1),MATCH($C$9,'Data by Building Type'!$D$22:$F$22,0))=\"Yes\",1,0)","v":0},{"$f":"IF(INDEX(PC_MAPPING,MID($C19,4,1),MATCH($C$9,'Data by Building Type'!$D$22:$F$22,0))=\"Yes\",1,0)","v":0},{"$f":"IF(INDEX(PC_MAPPING,MID($C19,4,1),MATCH($C$9,'Data by Building Type'!$D$22:$F$22,0))=\"Yes\",1,0)","v":0},{"$f":"IF(INDEX(PC_MAPPING,MID($C19,4,1),MATCH($C$9,'Data by Building Type'!$D$22:$F$22,0))=\"Yes\",1,0)","v":0},{"$f":"IF(INDEX(PC_MAPPING,MID($C19,4,1),MATCH($C$9,'Data by Building Type'!$D$22:$F$22,0))=\"Yes\",1,0)","v":0},{"$f":"IF(INDEX(PC_MAPPING,MID($C19,4,1),MATCH($C$9,'Data by Building Type'!$D$22:$F$22,0))=\"Yes\",1,0)","v":0},{"$f":"IF(INDEX(PC_MAPPING,MID($C19,4,1),MATCH($C$9,'Data by Building Type'!$D$22:$F$22,0))=\"Yes\",1,0)","v":0},{"$f":"IF(INDEX(PC_MAPPING,MID($C19,4,1),MATCH($C$9,'Data by Building Type'!$D$22:$F$22,0))=\"Yes\",1,0)","v":0},{"$f":"IF(INDEX(PC_MAPPING,MID($C19,4,1),MATCH($C$9,'Data by Building Type'!$D$22:$F$22,0))=\"Yes\",1,0)","v":0},{"$f":"IF(INDEX(PC_MAPPING,MID($C19,4,1),MATCH($C$9,'Data by Building Type'!$D$22:$F$22,0))=\"Yes\",1,0)","v":0},{"$f":"IF(INDEX(PC_MAPPING,MID($C19,4,1),MATCH($C$9,'Data by Building Type'!$D$22:$F$22,0))=\"Yes\",1,0)","v":0},{"$f":"IF(INDEX(PC_MAPPING,MID($C19,4,1),MATCH($C$9,'Data by Building Type'!$D$22:$F$22,0))=\"Yes\",1,0)","v":0},{"$f":"IF(INDEX(PC_MAPPING,MID($C19,4,1),MATCH($C$9,'Data by Building Type'!$D$22:$F$22,0))=\"Yes\",1,0)","v":0},{"$f":"IF(INDEX(PC_MAPPING,MID($C19,4,1),MATCH($C$9,'Data by Building Type'!$D$22:$F$22,0))=\"Yes\",1,0)","v":0}]
[]
[null,null,"POST-Case",1981,{"$f":"D21+1","v":1982},1983,1984,1985,1986,1987,1988,1989,1990,1991,1992,1993,1994,1995,1996,1997,1998,1999,2000,2001,2002,2003,2004,2005,2006,2007,2008,2009,2010,2011,2012,2013,2014,2015,2016,2017,2018,2019,2020,2021,2022,2023,2024,2025,2026,2027,2028,2029,2030,2031,2032,2033,2034]
[null,null,{"$f":"C12","v":"PC 1 - Non-Weatherized, Non-Condensing Gas Furnace Fan (NWG-NC)"},{"$f":"E22","v":0.3982437224248449},0.3982437224248449,{"$f":"G22","v":0.3982437224248449},{"$f":"H22","v":0.3982437224248449},{"$f":"I22","v":0.3982437224248449},{"$f":"J22","v":0.3982437224248449},{"$f":"K22","v":0.3982437224248449},{"$f":"L22","v":0.3982437224248449},{"$f":"M22","v":0.3982437224248449},{"$f":"N22","v":0.3982437224248449},{"$f":"O22","v":0.3982437224248449},0.3982437224248449,0.3982437224248449,0.3982437224248449,0.3982437224248449,0.3982437224248449,0.3982437224248449,0.3982437224248449,0.3982437224248449,0.3982437224248449,0.3982437224248449,0.3982437224248449,0.3982437224248449,0.3982437224248449,0.3982437224248449,0.3982437224248449,0.3982437224248449,0.3982437224248449,0.3982437224248449,0.3982437224248449,{"$f":"AI22","v":0.3982437224248449},{"$f":"IF(ISNUMBER(\n'National Shipments'!E$105/SUM('National Shipments'!E$105,'National Shipments'!E$115,'National Shipments'!E$125)\n*(1-SUM(AI$25:AI$29))),\n'National Shipments'!E$105/SUM('National Shipments'!E$105,'National Shipments'!E$115,'National Shipments'!E$125)\n*(1-SUM(AI$25:AI$29)),AH22)","v":0.3982437224248449},{"$f":"IF(ISNUMBER(\n'National Shipments'!F$105/SUM('National Shipments'!F$105,'National Shipments'!F$115,'National Shipments'!F$125)\n*(1-SUM(AJ$25:AJ$29))),\n'National Shipments'!F$105/SUM('National Shipments'!F$105,'National Shipments'!F$115,'National Shipments'!F$125)\n*(1-SUM(AJ$25:AJ$29)),AI22)","v":0.36247526161809795},{"$f":"IF(ISNUMBER(\n'National Shipments'!G$105/SUM('National Shipments'!G$105,'National Shipments'!G$115,'National Shipments'!G$125)\n*(1-SUM(AK$25:AK$29))),\n'National Shipments'!G$105/SUM('National Shipments'!G$105,'National Shipments'!G$115,'National Shipments'!G$125)\n*(1-SUM(AK$25:AK$29)),AJ22)","v":0.36326770300312838},{"$f":"IF(ISNUMBER(\n'National Shipments'!H$105/SUM('National Shipments'!H$105,'National Shipments'!H$115,'National Shipments'!H$125)\n*(1-SUM(AL$25:AL$29))),\n'National Shipments'!H$105/SUM('National Shipments'!H$105,'National Shipments'!H$115,'National Shipments'!H$125)\n*(1-SUM(AL$25:AL$29)),AK22)","v":0.36264759990499673},{"$f":"IF(ISNUMBER(\n'National Shipments'!I$105/SUM('National Shipments'!I$105,'National Shipments'!I$115,'National Shipments'!I$125)\n*(1-SUM(AM$25:AM$29))),\n'National Shipments'!I$105/SUM('National Shipments'!I$105,'National Shipments'!I$115,'National Shipments'!I$125)\n*(1-SUM(AM$25:AM$29)),AL22)","v":0.34261650258151988},{"$f":"IF(ISNUMBER(\n'National Shipments'!J$105/SUM('National Shipments'!J$105,'National Shipments'!J$115,'National Shipments'!J$125)\n*(1-SUM(AN$25:AN$29))),\n'National Shipments'!J$105/SUM('National Shipments'!J$105,'National Shipments'!J$115,'National Shipments'!J$125)\n*(1-SUM(AN$25:AN$29)),AM22)","v":0.320194705454525},{"$f":"IF(ISNUMBER(\n'National Shipments'!K$105/SUM('National Shipments'!K$105,'National Shipments'!K$115,'National Shipments'!K$125)\n*(1-SUM(AO$25:AO$29))),\n'National Shipments'!K$105/SUM('National Shipments'!K$105,'National Shipments'!K$115,'National Shipments'!K$125)\n*(1-SUM(AO$25:AO$29)),AN22)","v":0.3588063037461659},{"$f":"IF(ISNUMBER(\n'National Shipments'!L$105/SUM('National Shipments'!L$105,'National Shipments'!L$115,'National Shipments'!L$125)\n*(1-SUM(AP$25:AP$29))),\n'National Shipments'!L$105/SUM('National Shipments'!L$105,'National Shipments'!L$115,'National Shipments'!L$125)\n*(1-SUM(AP$25:AP$29)),AO22)","v":0.35109292883000043},{"$f":"IF(ISNUMBER(\n'National Shipments'!M$105/SUM('National Shipments'!M$105,'National Shipments'!M$115,'National Shipments'!M$125)\n*(1-SUM(AQ$25:AQ$29))),\n'National Shipments'!M$105/SUM('National Shipments'!M$105,'National Shipments'!M$115,'National Shipments'!M$125)\n*(1-SUM(AQ$25:AQ$29)),AP22)","v":0.35021574305047204},{"$f":"IF(ISNUMBER(\n'National Shipments'!N$105/SUM('National Shipments'!N$105,'National Shipments'!N$115,'National Shipments'!N$125)\n*(1-SUM(AR$25:AR$29))),\n'National Shipments'!N$105/SUM('National Shipments'!N$105,'National Shipments'!N$115,'National Shipments'!N$125)\n*(1-SUM(AR$25:AR$29)),AQ22)","v":0.34442789486448816},{"$f":"IF(ISNUMBER(\n'National Shipments'!O$105/SUM('National Shipments'!O$105,'National Shipments'!O$115,'National Shipments'!O$125)\n*(1-SUM(AS$25:AS$29))),\n'National Shipments'!O$105/SUM('National Shipments'!O$105,'National Shipments'!O$115,'National Shipments'!O$125)\n*(1-SUM(AS$25:AS$29)),AR22)","v":0.35533489576584382},{"$f":"IF(ISNUMBER(\n'National Shipments'!P$105/SUM('National Shipments'!P$105,'National Shipments'!P$115,'National Shipments'!P$125)\n*(1-SUM(AT$25:AT$29))),\n'National Shipments'!P$105/SUM('National Shipments'!P$105,'National Shipments'!P$115,'National Shipments'!P$125)\n*(1-SUM(AT$25:AT$29)),AS22)","v":0.34899193356691377},{"$f":"IF(ISNUMBER(\n'National Shipments'!Q$105/SUM('National Shipments'!Q$105,'National Shipments'!Q$115,'National Shipments'!Q$125)\n*(1-SUM(AU$25:AU$29))),\n'National Shipments'!Q$105/SUM('National Shipments'!Q$105,'National Shipments'!Q$115,'National Shipments'!Q$125)\n*(1-SUM(AU$25:AU$29)),AT22)","v":0.34259850872245312},{"$f":"IF(ISNUMBER(\n'National Shipments'!R$105/SUM('National Shipments'!R$105,'National Shipments'!R$115,'National Shipments'!R$125)\n*(1-SUM(AV$25:AV$29))),\n'National Shipments'!R$105/SUM('National Shipments'!R$105,'National Shipments'!R$115,'National Shipments'!R$125)\n*(1-SUM(AV$25:AV$29)),AU22)","v":0.33480693957337176},{"$f":"IF(ISNUMBER(\n'National Shipments'!S$105/SUM('National Shipments'!S$105,'National Shipments'!S$115,'National Shipments'!S$125)\n*(1-SUM(AW$25:AW$29))),\n'National Shipments'!S$105/SUM('National Shipments'!S$105,'National Shipments'!S$115,'National Shipments'!S$125)\n*(1-SUM(AW$25:AW$29)),AV22)","v":0.32818006332119981},{"$f":"IF(ISNUMBER(\n'National Shipments'!T$105/SUM('National Shipments'!T$105,'National Shipments'!T$115,'National Shipments'!T$125)\n*(1-SUM(AX$25:AX$29))),\n'National Shipments'!T$105/SUM('National Shipments'!T$105,'National Shipments'!T$115,'National Shipments'!T$125)\n*(1-SUM(AX$25:AX$29)),AW22)","v":0.32120182881864079},{"$f":"IF(ISNUMBER(\n'National Shipments'!U$105/SUM('National Shipments'!U$105,'National Shipments'!U$115,'National Shipments'!U$125)\n*(1-SUM(AY$25:AY$29))),\n'National Shipments'!U$105/SUM('National Shipments'!U$105,'National Shipments'!U$115,'National Shipments'!U$125)\n*(1-SUM(AY$25:AY$29)),AX22)","v":0.31391427040517295},{"$f":"IF(ISNUMBER(\n'National Shipments'!V$105/SUM('National Shipments'!V$105,'National Shipments'!V$115,'National Shipments'!V$125)\n*(1-SUM(AZ$25:AZ$29))),\n'National Shipments'!V$105/SUM('National Shipments'!V$105,'National Shipments'!V$115,'National Shipments'!V$125)\n*(1-SUM(AZ$25:AZ$29)),AY22)","v":0.30663793809004219},{"$f":"IF(ISNUMBER(\n'National Shipments'!W$105/SUM('National Shipments'!W$105,'National Shipments'!W$115,'National Shipments'!W$125)\n*(1-SUM(BA$25:BA$29))),\n'National Shipments'!W$105/SUM('National Shipments'!W$105,'National Shipments'!W$115,'National Shipments'!W$125)\n*(1-SUM(BA$25:BA$29)),AZ22)","v":0.29944333193181688},{"$f":"IF(ISNUMBER(\n'National Shipments'!X$105/SUM('National Shipments'!X$105,'National Shipments'!X$115,'National Shipments'!X$125)\n*(1-SUM(BB$25:BB$29))),\n'National Shipments'!X$105/SUM('National Shipments'!X$105,'National Shipments'!X$115,'National Shipments'!X$125)\n*(1-SUM(BB$25:BB$29)),BA22)","v":0.29199230568840395},{"$f":"IF(ISNUMBER(\n'National Shipments'!Y$105/SUM('National Shipments'!Y$105,'National Shipments'!Y$115,'National Shipments'!Y$125)\n*(1-SUM(BC$25:BC$29))),\n'National Shipments'!Y$105/SUM('National Shipments'!Y$105,'National Shipments'!Y$115,'National Shipments'!Y$125)\n*(1-SUM(BC$25:BC$29)),BB22)","v":0.2843239587669944},{"$f":"IF(ISNUMBER(\n'National Shipments'!Z$105/SUM('National Shipments'!Z$105,'National Shipments'!Z$115,'National Shipments'!Z$125)\n*(1-SUM(BD$25:BD$29))),\n'National Shipments'!Z$105/SUM('National Shipments'!Z$105,'National Shipments'!Z$115,'National Shipments'!Z$125)\n*(1-SUM(BD$25:BD$29)),BC22)","v":0.27745234625436521},{"$f":"IF(ISNUMBER(\n'National Shipments'!AA$105/SUM('National Shipments'!AA$105,'National Shipments'!AA$115,'National Shipments'!AA$125)\n*(1-SUM(BE$25:BE$29))),\n'National Shipments'!AA$105/SUM('National Shipments'!AA$105,'National Shipments'!AA$115,'National Shipments'!AA$125)\n*(1-SUM(BE$25:BE$29)),BD22)","v":0.27047202956359145}]
[null,null,{"$f":"C13","v":"PC 2 - Non-Weatherized, Condensing Gas Furnace Fan (NWG-C)"},0.36262801966593156,0.36262801966593156,0.36262801966593156,0.36262801966593156,0.36262801966593156,0.36262801966593156,0.36262801966593156,0.36262801966593156,0.36262801966593156,0.36262801966593156,{"$f":"O23","v":0.36262801966593156},0.36262801966593156,0.36262801966593156,0.36262801966593156,0.36262801966593156,0.36262801966593156,0.36262801966593156,0.36262801966593156,0.36262801966593156,0.36262801966593156,0.36262801966593156,0.36262801966593156,0.36262801966593156,0.36262801966593156,0.36262801966593156,0.36262801966593156,0.36262801966593156,0.36262801966593156,0.36262801966593156,0.36262801966593156,0.36262801966593156,{"$f":"IF(ISNUMBER(\n'National Shipments'!E$115/SUM('National Shipments'!E$105,'National Shipments'!E$115,'National Shipments'!E$125)\n*(1-SUM(AI$25:AI$29))),\n'National Shipments'!E$115/SUM('National Shipments'!E$105,'National Shipments'!E$115,'National Shipments'!E$125)\n*(1-SUM(AI$25:AI$29)),AH23)","v":0.36262801966593156},{"$f":"IF(ISNUMBER(\n'National Shipments'!F$115/SUM('National Shipments'!F$105,'National Shipments'!F$115,'National Shipments'!F$125)\n*(1-SUM(AJ$25:AJ$29))),\n'National Shipments'!F$115/SUM('National Shipments'!F$105,'National Shipments'!F$115,'National Shipments'!F$125)\n*(1-SUM(AJ$25:AJ$29)),AI23)","v":0.38358671627955682},{"$f":"IF(ISNUMBER(\n'National Shipments'!G$115/SUM('National Shipments'!G$105,'National Shipments'!G$115,'National Shipments'!G$125)\n*(1-SUM(AK$25:AK$29))),\n'National Shipments'!G$115/SUM('National Shipments'!G$105,'National Shipments'!G$115,'National Shipments'!G$125)\n*(1-SUM(AK$25:AK$29)),AJ23)","v":0.38390536480548193},{"$f":"IF(ISNUMBER(\n'National Shipments'!H$115/SUM('National Shipments'!H$105,'National Shipments'!H$115,'National Shipments'!H$125)\n*(1-SUM(AL$25:AL$29))),\n'National Shipments'!H$115/SUM('National Shipments'!H$105,'National Shipments'!H$115,'National Shipments'!H$125)\n*(1-SUM(AL$25:AL$29)),AK23)","v":0.38537842521791082},{"$f":"IF(ISNUMBER(\n'National Shipments'!I$115/SUM('National Shipments'!I$105,'National Shipments'!I$115,'National Shipments'!I$125)\n*(1-SUM(AM$25:AM$29))),\n'National Shipments'!I$115/SUM('National Shipments'!I$105,'National Shipments'!I$115,'National Shipments'!I$125)\n*(1-SUM(AM$25:AM$29)),AL23)","v":0.40052982126649134},{"$f":"IF(ISNUMBER(\n'National Shipments'!J$115/SUM('National Shipments'!J$105,'National Shipments'!J$115,'National Shipments'!J$125)\n*(1-SUM(AN$25:AN$29))),\n'National Shipments'!J$115/SUM('National Shipments'!J$105,'National Shipments'!J$115,'National Shipments'!J$125)\n*(1-SUM(AN$25:AN$29)),AM23)","v":0.41743605723464572},{"$f":"IF(ISNUMBER(\n'National Shipments'!K$115/SUM('National Shipments'!K$105,'National Shipments'!K$115,'National Shipments'!K$125)\n*(1-SUM(AO$25:AO$29))),\n'National Shipments'!K$115/SUM('National Shipments'!K$105,'National Shipments'!K$115,'National Shipments'!K$125)\n*(1-SUM(AO$25:AO$29)),AN23)","v":0.38706396532962289},{"$f":"IF(ISNUMBER(\n'National Shipments'!L$115/SUM('National Shipments'!L$105,'National Shipments'!L$115,'National Shipments'!L$125)\n*(1-SUM(AP$25:AP$29))),\n'National Shipments'!L$115/SUM('National Shipments'!L$105,'National Shipments'!L$115,'National Shipments'!L$125)\n*(1-SUM(AP$25:AP$29)),AO23)","v":0.39910650329021985},{"$f":"IF(ISNUMBER(\n'National Shipments'!M$115/SUM('National Shipments'!M$105,'National Shipments'!M$115,'National Shipments'!M$125)\n*(1-SUM(AQ$25:AQ$29))),\n'National Shipments'!M$115/SUM('National Shipments'!M$105,'National Shipments'!M$115,'National Shipments'!M$125)\n*(1-SUM(AQ$25:AQ$29)),AP23)","v":0.40081899820875438},{"$f":"IF(ISNUMBER(\n'National Shipments'!N$115/SUM('National Shipments'!N$105,'National Shipments'!N$115,'National Shipments'!N$125)\n*(1-SUM(AR$25:AR$29))),\n'National Shipments'!N$115/SUM('National Shipments'!N$105,'National Shipments'!N$115,'National Shipments'!N$125)\n*(1-SUM(AR$25:AR$29)),AQ23)","v":0.4064249842598453},{"$f":"IF(ISNUMBER(\n'National Shipments'!O$115/SUM('National Shipments'!O$105,'National Shipments'!O$115,'National Shipments'!O$125)\n*(1-SUM(AS$25:AS$29))),\n'National Shipments'!O$115/SUM('National Shipments'!O$105,'National Shipments'!O$115,'National Shipments'!O$125)\n*(1-SUM(AS$25:AS$29)),AR23)","v":0.40154202079032031},{"$f":"IF(ISNUMBER(\n'National Shipments'!P$115/SUM('National Shipments'!P$105,'National Shipments'!P$115,'National Shipments'!P$125)\n*(1-SUM(AT$25:AT$29))),\n'National Shipments'!P$115/SUM('National Shipments'!P$105,'National Shipments'!P$115,'National Shipments'!P$125)\n*(1-SUM(AT$25:AT$29)),AS23)","v":0.40772616072067397},{"$f":"IF(ISNUMBER(\n'National Shipments'!Q$115/SUM('National Shipments'!Q$105,'National Shipments'!Q$115,'National Shipments'!Q$125)\n*(1-SUM(AU$25:AU$29))),\n'National Shipments'!Q$115/SUM('National Shipments'!Q$105,'National Shipments'!Q$115,'National Shipments'!Q$125)\n*(1-SUM(AU$25:AU$29)),AT23)","v":0.41401368950890216},{"$f":"IF(ISNUMBER(\n'National Shipments'!R$115/SUM('National Shipments'!R$105,'National Shipments'!R$115,'National Shipments'!R$125)\n*(1-SUM(AV$25:AV$29))),\n'National Shipments'!R$115/SUM('National Shipments'!R$105,'National Shipments'!R$115,'National Shipments'!R$125)\n*(1-SUM(AV$25:AV$29)),AU23)","v":0.42086368853598699},{"$f":"IF(ISNUMBER(\n'National Shipments'!S$115/SUM('National Shipments'!S$105,'National Shipments'!S$115,'National Shipments'!S$125)\n*(1-SUM(AW$25:AW$29))),\n'National Shipments'!S$115/SUM('National Shipments'!S$105,'National Shipments'!S$115,'National Shipments'!S$125)\n*(1-SUM(AW$25:AW$29)),AV23)","v":0.42758635895461156},{"$f":"IF(ISNUMBER(\n'National Shipments'!T$115/SUM('National Shipments'!T$105,'National Shipments'!T$115,'National Shipments'!T$125)\n*(1-SUM(AX$25:AX$29))),\n'National Shipments'!T$115/SUM('National Shipments'!T$105,'National Shipments'!T$115,'National Shipments'!T$125)\n*(1-SUM(AX$25:AX$29)),AW23)","v":0.43458737730210178},{"$f":"IF(ISNUMBER(\n'National Shipments'!U$115/SUM('National Shipments'!U$105,'National Shipments'!U$115,'National Shipments'!U$125)\n*(1-SUM(AY$25:AY$29))),\n'National Shipments'!U$115/SUM('National Shipments'!U$105,'National Shipments'!U$115,'National Shipments'!U$125)\n*(1-SUM(AY$25:AY$29)),AX23)","v":0.4418517016291838},{"$f":"IF(ISNUMBER(\n'National Shipments'!V$115/SUM('National Shipments'!V$105,'National Shipments'!V$115,'National Shipments'!V$125)\n*(1-SUM(AZ$25:AZ$29))),\n'National Shipments'!V$115/SUM('National Shipments'!V$105,'National Shipments'!V$115,'National Shipments'!V$125)\n*(1-SUM(AZ$25:AZ$29)),AY23)","v":0.44911305742251223},{"$f":"IF(ISNUMBER(\n'National Shipments'!W$115/SUM('National Shipments'!W$105,'National Shipments'!W$115,'National Shipments'!W$125)\n*(1-SUM(BA$25:BA$29))),\n'National Shipments'!W$115/SUM('National Shipments'!W$105,'National Shipments'!W$115,'National Shipments'!W$125)\n*(1-SUM(BA$25:BA$29)),AZ23)","v":0.45623774707635051},{"$f":"IF(ISNUMBER(\n'National Shipments'!X$115/SUM('National Shipments'!X$105,'National Shipments'!X$115,'National Shipments'!X$125)\n*(1-SUM(BB$25:BB$29))),\n'National Shipments'!X$115/SUM('National Shipments'!X$105,'National Shipments'!X$115,'National Shipments'!X$125)\n*(1-SUM(BB$25:BB$29)),BA23)","v":0.4636198084424662},{"$f":"IF(ISNUMBER(\n'National Shipments'!Y$115/SUM('National Shipments'!Y$105,'National Shipments'!Y$115,'National Shipments'!Y$125)\n*(1-SUM(BC$25:BC$29))),\n'National Shipments'!Y$115/SUM('National Shipments'!Y$105,'National Shipments'!Y$115,'National Shipments'!Y$125)\n*(1-SUM(BC$25:BC$29)),BB23)","v":0.47122519682244629},{"$f":"IF(ISNUMBER(\n'National Shipments'!Z$115/SUM('National Shipments'!Z$105,'National Shipments'!Z$115,'National Shipments'!Z$125)\n*(1-SUM(BD$25:BD$29))),\n'National Shipments'!Z$115/SUM('National Shipments'!Z$105,'National Shipments'!Z$115,'National Shipments'!Z$125)\n*(1-SUM(BD$25:BD$29)),BC23)","v":0.47806069108228388},{"$f":"IF(ISNUMBER(\n'National Shipments'!AA$115/SUM('National Shipments'!AA$105,'National Shipments'!AA$115,'National Shipments'!AA$125)\n*(1-SUM(BE$25:BE$29))),\n'National Shipments'!AA$115/SUM('National Shipments'!AA$105,'National Shipments'!AA$115,'National Shipments'!AA$125)\n*(1-SUM(BE$25:BE$29)),BD23)","v":0.48500107712311979}]
[null,null,"PC 3 - Weatherized Non-Condensing Gas Furnace Fan (WG-NC)",7.4128257909223463E-2,7.4128257909223463E-2,7.4128257909223463E-2,7.4128257909223463E-2,7.4128257909223463E-2,7.4128257909223463E-2,7.4128257909223463E-2,7.4128257909223463E-2,7.4128257909223463E-2,7.4128257909223463E-2,{"$f":"O24","v":7.4128257909223463E-2},7.4128257909223463E-2,7.4128257909223463E-2,7.4128257909223463E-2,7.4128257909223463E-2,7.4128257909223463E-2,7.4128257909223463E-2,7.4128257909223463E-2,7.4128257909223463E-2,7.4128257909223463E-2,7.4128257909223463E-2,7.4128257909223463E-2,7.4128257909223463E-2,7.4128257909223463E-2,7.4128257909223463E-2,7.4128257909223463E-2,7.4128257909223463E-2,7.4128257909223463E-2,7.4128257909223463E-2,7.4128257909223463E-2,7.4128257909223463E-2,{"$f":"IF(ISNUMBER(\n'National Shipments'!E$125/SUM('National Shipments'!E$105,'National Shipments'!E$115,'National Shipments'!E$125)\n*(1-SUM(AI$25:AI$29))),\n'National Shipments'!E$125/SUM('National Shipments'!E$105,'National Shipments'!E$115,'National Shipments'!E$125)\n*(1-SUM(AI$25:AI$29)),AH24)","v":7.4128257909223463E-2},{"$f":"IF(ISNUMBER(\n'National Shipments'!F$125/SUM('National Shipments'!F$105,'National Shipments'!F$115,'National Shipments'!F$125)\n*(1-SUM(AJ$25:AJ$29))),\n'National Shipments'!F$125/SUM('National Shipments'!F$105,'National Shipments'!F$115,'National Shipments'!F$125)\n*(1-SUM(AJ$25:AJ$29)),AI24)","v":8.8938022102345041E-2},{"$f":"IF(ISNUMBER(\n'National Shipments'!G$125/SUM('National Shipments'!G$105,'National Shipments'!G$115,'National Shipments'!G$125)\n*(1-SUM(AK$25:AK$29))),\n'National Shipments'!G$125/SUM('National Shipments'!G$105,'National Shipments'!G$115,'National Shipments'!G$125)\n*(1-SUM(AK$25:AK$29)),AJ24)","v":8.7826932191389692E-2},{"$f":"IF(ISNUMBER(\n'National Shipments'!H$125/SUM('National Shipments'!H$105,'National Shipments'!H$115,'National Shipments'!H$125)\n*(1-SUM(AL$25:AL$29))),\n'National Shipments'!H$125/SUM('National Shipments'!H$105,'National Shipments'!H$115,'National Shipments'!H$125)\n*(1-SUM(AL$25:AL$29)),AK24)","v":8.6973974877092311E-2},{"$f":"IF(ISNUMBER(\n'National Shipments'!I$125/SUM('National Shipments'!I$105,'National Shipments'!I$115,'National Shipments'!I$125)\n*(1-SUM(AM$25:AM$29))),\n'National Shipments'!I$125/SUM('National Shipments'!I$105,'National Shipments'!I$115,'National Shipments'!I$125)\n*(1-SUM(AM$25:AM$29)),AL24)","v":9.1853676151988681E-2},{"$f":"IF(ISNUMBER(\n'National Shipments'!J$125/SUM('National Shipments'!J$105,'National Shipments'!J$115,'National Shipments'!J$125)\n*(1-SUM(AN$25:AN$29))),\n'National Shipments'!J$125/SUM('National Shipments'!J$105,'National Shipments'!J$115,'National Shipments'!J$125)\n*(1-SUM(AN$25:AN$29)),AM24)","v":9.7369237310829221E-2},{"$f":"IF(ISNUMBER(\n'National Shipments'!K$125/SUM('National Shipments'!K$105,'National Shipments'!K$115,'National Shipments'!K$125)\n*(1-SUM(AO$25:AO$29))),\n'National Shipments'!K$125/SUM('National Shipments'!K$105,'National Shipments'!K$115,'National Shipments'!K$125)\n*(1-SUM(AO$25:AO$29)),AN24)","v":8.9129730924211129E-2},{"$f":"IF(ISNUMBER(\n'National Shipments'!L$125/SUM('National Shipments'!L$105,'National Shipments'!L$115,'National Shipments'!L$125)\n*(1-SUM(AP$25:AP$29))),\n'National Shipments'!L$125/SUM('National Shipments'!L$105,'National Shipments'!L$115,'National Shipments'!L$125)\n*(1-SUM(AP$25:AP$29)),AO24)","v":8.4800567879779701E-2},{"$f":"IF(ISNUMBER(\n'National Shipments'!M$125/SUM('National Shipments'!M$105,'National Shipments'!M$115,'National Shipments'!M$125)\n*(1-SUM(AQ$25:AQ$29))),\n'National Shipments'!M$125/SUM('National Shipments'!M$105,'National Shipments'!M$115,'National Shipments'!M$125)\n*(1-SUM(AQ$25:AQ$29)),AP24)","v":8.3965258740773541E-2},{"$f":"IF(ISNUMBER(\n'National Shipments'!N$125/SUM('National Shipments'!N$105,'National Shipments'!N$115,'National Shipments'!N$125)\n*(1-SUM(AR$25:AR$29))),\n'National Shipments'!N$125/SUM('National Shipments'!N$105,'National Shipments'!N$115,'National Shipments'!N$125)\n*(1-SUM(AR$25:AR$29)),AQ24)","v":8.4147120875666517E-2},{"$f":"IF(ISNUMBER(\n'National Shipments'!O$125/SUM('National Shipments'!O$105,'National Shipments'!O$115,'National Shipments'!O$125)\n*(1-SUM(AS$25:AS$29))),\n'National Shipments'!O$125/SUM('National Shipments'!O$105,'National Shipments'!O$115,'National Shipments'!O$125)\n*(1-SUM(AS$25:AS$29)),AR24)","v":7.8123083443835825E-2},{"$f":"IF(ISNUMBER(\n'National Shipments'!P$125/SUM('National Shipments'!P$105,'National Shipments'!P$115,'National Shipments'!P$125)\n*(1-SUM(AT$25:AT$29))),\n'National Shipments'!P$125/SUM('National Shipments'!P$105,'National Shipments'!P$115,'National Shipments'!P$125)\n*(1-SUM(AT$25:AT$29)),AS24)","v":7.8281905712412225E-2},{"$f":"IF(ISNUMBER(\n'National Shipments'!Q$125/SUM('National Shipments'!Q$105,'National Shipments'!Q$115,'National Shipments'!Q$125)\n*(1-SUM(AU$25:AU$29))),\n'National Shipments'!Q$125/SUM('National Shipments'!Q$105,'National Shipments'!Q$115,'National Shipments'!Q$125)\n*(1-SUM(AU$25:AU$29)),AT24)","v":7.8387801768644613E-2},{"$f":"IF(ISNUMBER(\n'National Shipments'!R$125/SUM('National Shipments'!R$105,'National Shipments'!R$115,'National Shipments'!R$125)\n*(1-SUM(AV$25:AV$29))),\n'National Shipments'!R$125/SUM('National Shipments'!R$105,'National Shipments'!R$115,'National Shipments'!R$125)\n*(1-SUM(AV$25:AV$29)),AU24)","v":7.9329371890641195E-2},{"$f":"IF(ISNUMBER(\n'National Shipments'!S$125/SUM('National Shipments'!S$105,'National Shipments'!S$115,'National Shipments'!S$125)\n*(1-SUM(AW$25:AW$29))),\n'National Shipments'!S$125/SUM('National Shipments'!S$105,'National Shipments'!S$115,'National Shipments'!S$125)\n*(1-SUM(AW$25:AW$29)),AV24)","v":7.9233577724188625E-2},{"$f":"IF(ISNUMBER(\n'National Shipments'!T$125/SUM('National Shipments'!T$105,'National Shipments'!T$115,'National Shipments'!T$125)\n*(1-SUM(AX$25:AX$29))),\n'National Shipments'!T$125/SUM('National Shipments'!T$105,'National Shipments'!T$115,'National Shipments'!T$125)\n*(1-SUM(AX$25:AX$29)),AW24)","v":7.9210793879257488E-2},{"$f":"IF(ISNUMBER(\n'National Shipments'!U$125/SUM('National Shipments'!U$105,'National Shipments'!U$115,'National Shipments'!U$125)\n*(1-SUM(AY$25:AY$29))),\n'National Shipments'!U$125/SUM('National Shipments'!U$105,'National Shipments'!U$115,'National Shipments'!U$125)\n*(1-SUM(AY$25:AY$29)),AX24)","v":7.9234027965643133E-2},{"$f":"IF(ISNUMBER(\n'National Shipments'!V$125/SUM('National Shipments'!V$105,'National Shipments'!V$115,'National Shipments'!V$125)\n*(1-SUM(AZ$25:AZ$29))),\n'National Shipments'!V$125/SUM('National Shipments'!V$105,'National Shipments'!V$115,'National Shipments'!V$125)\n*(1-SUM(AZ$25:AZ$29)),AY24)","v":7.9249004487445526E-2},{"$f":"IF(ISNUMBER(\n'National Shipments'!W$125/SUM('National Shipments'!W$105,'National Shipments'!W$115,'National Shipments'!W$125)\n*(1-SUM(BA$25:BA$29))),\n'National Shipments'!W$125/SUM('National Shipments'!W$105,'National Shipments'!W$115,'National Shipments'!W$125)\n*(1-SUM(BA$25:BA$29)),AZ24)","v":7.9318920991832451E-2},{"$f":"IF(ISNUMBER(\n'National Shipments'!X$125/SUM('National Shipments'!X$105,'National Shipments'!X$115,'National Shipments'!X$125)\n*(1-SUM(BB$25:BB$29))),\n'National Shipments'!X$125/SUM('National Shipments'!X$105,'National Shipments'!X$115,'National Shipments'!X$125)\n*(1-SUM(BB$25:BB$29)),BA24)","v":7.938788586912976E-2},{"$f":"IF(ISNUMBER(\n'National Shipments'!Y$125/SUM('National Shipments'!Y$105,'National Shipments'!Y$115,'National Shipments'!Y$125)\n*(1-SUM(BC$25:BC$29))),\n'National Shipments'!Y$125/SUM('National Shipments'!Y$105,'National Shipments'!Y$115,'National Shipments'!Y$125)\n*(1-SUM(BC$25:BC$29)),BB24)","v":7.9450844410559274E-2},{"$f":"IF(ISNUMBER(\n'National Shipments'!Z$125/SUM('National Shipments'!Z$105,'National Shipments'!Z$115,'National Shipments'!Z$125)\n*(1-SUM(BD$25:BD$29))),\n'National Shipments'!Z$125/SUM('National Shipments'!Z$105,'National Shipments'!Z$115,'National Shipments'!Z$125)\n*(1-SUM(BD$25:BD$29)),BC24)","v":7.9486962663350869E-2},{"$f":"IF(ISNUMBER(\n'National Shipments'!AA$125/SUM('National Shipments'!AA$105,'National Shipments'!AA$115,'National Shipments'!AA$125)\n*(1-SUM(BE$25:BE$29))),\n'National Shipments'!AA$125/SUM('National Shipments'!AA$105,'National Shipments'!AA$115,'National Shipments'!AA$125)\n*(1-SUM(BE$25:BE$29)),BD24)","v":7.9526893313288646E-2}]
[null,null,"PC 4 - Non-Weatherized, Non-Condensing Oil Furnace Fan (NWO-NC)",6.7000000000000004E-2,6.7000000000000004E-2,6.7000000000000004E-2,6.7000000000000004E-2,6.7000000000000004E-2,6.7000000000000004E-2,6.7000000000000004E-2,6.7000000000000004E-2,6.7000000000000004E-2,6.7000000000000004E-2,{"$f":"O25","v":6.7000000000000004E-2},6.7000000000000004E-2,6.7000000000000004E-2,6.7000000000000004E-2,6.7000000000000004E-2,6.7000000000000004E-2,6.7000000000000004E-2,6.7000000000000004E-2,6.7000000000000004E-2,6.7000000000000004E-2,6.7000000000000004E-2,6.7000000000000004E-2,6.7000000000000004E-2,6.7000000000000004E-2,6.7000000000000004E-2,6.7000000000000004E-2,6.7000000000000004E-2,6.7000000000000004E-2,6.7000000000000004E-2,6.7000000000000004E-2,6.7000000000000004E-2,{"$f":"'Data by Building Type'!$D$17","v":6.7000000000000004E-2},{"$f":"'Data by Building Type'!$D$17","v":6.7000000000000004E-2},{"$f":"'Data by Building Type'!$D$17","v":6.7000000000000004E-2},{"$f":"'Data by Building Type'!$D$17","v":6.7000000000000004E-2},{"$f":"'Data by Building Type'!$D$17","v":6.7000000000000004E-2},{"$f":"'Data by Building Type'!$D$17","v":6.7000000000000004E-2},{"$f":"'Data by Building Type'!$D$17","v":6.7000000000000004E-2},{"$f":"'Data by Building Type'!$D$17","v":6.7000000000000004E-2},{"$f":"'Data by Building Type'!$D$17","v":6.7000000000000004E-2},{"$f":"'Data by Building Type'!$D$17","v":6.7000000000000004E-2},{"$f":"'Data by Building Type'!$D$17","v":6.7000000000000004E-2},{"$f":"'Data by Building Type'!$D$17","v":6.7000000000000004E-2},{"$f":"'Data by Building Type'!$D$17","v":6.7000000000000004E-2},{"$f":"'Data by Building Type'!$D$17","v":6.7000000000000004E-2},{"$f":"'Data by Building Type'!$D$17","v":6.7000000000000004E-2},{"$f":"'Data by Building Type'!$D$17","v":6.7000000000000004E-2},{"$f":"'Data by Building Type'!$D$17","v":6.7000000000000004E-2},{"$f":"'Data by Building Type'!$D$17","v":6.7000000000000004E-2},{"$f":"'Data by Building Type'!$D$17","v":6.7000000000000004E-2},{"$f":"'Data by Building Type'!$D$17","v":6.7000000000000004E-2},{"$f":"'Data by Building Type'!$D$17","v":6.7000000000000004E-2},{"$f":"'Data by Building Type'!$D$17","v":6.7000000000000004E-2},{"$f":"'Data by Building Type'!$D$17","v":6.7000000000000004E-2}]
[null,null,"PC 5 - Non-Weatherized Electric Furnace / Modular Blower Fan (NWEF/NWMB)",9.8000000000000004E-2,9.8000000000000004E-2,9.8000000000000004E-2,9.8000000000000004E-2,9.8000000000000004E-2,9.8000000000000004E-2,9.8000000000000004E-2,9.8000000000000004E-2,9.8000000000000004E-2,9.8000000000000004E-2,{"$f":"O26","v":9.8000000000000004E-2},9.8000000000000004E-2,9.8000000000000004E-2,9.8000000000000004E-2,9.8000000000000004E-2,9.8000000000000004E-2,9.8000000000000004E-2,9.8000000000000004E-2,9.8000000000000004E-2,9.8000000000000004E-2,9.8000000000000004E-2,9.8000000000000004E-2,9.8000000000000004E-2,9.8000000000000004E-2,9.8000000000000004E-2,9.8000000000000004E-2,9.8000000000000004E-2,9.8000000000000004E-2,9.8000000000000004E-2,9.8000000000000004E-2,9.8000000000000004E-2,{"$f":"'Data by Building Type'!$D$15","v":9.8000000000000004E-2},{"$f":"'Data by Building Type'!$D$15","v":9.8000000000000004E-2},{"$f":"'Data by Building Type'!$D$15","v":9.8000000000000004E-2},{"$f":"'Data by Building Type'!$D$15","v":9.8000000000000004E-2},{"$f":"'Data by Building Type'!$D$15","v":9.8000000000000004E-2},{"$f":"'Data by Building Type'!$D$15","v":9.8000000000000004E-2},{"$f":"'Data by Building Type'!$D$15","v":9.8000000000000004E-2},{"$f":"'Data by Building Type'!$D$15","v":9.8000000000000004E-2},{"$f":"'Data by Building Type'!$D$15","v":9.8000000000000004E-2},{"$f":"'Data by Building Type'!$D$15","v":9.8000000000000004E-2},{"$f":"'Data by Building Type'!$D$15","v":9.8000000000000004E-2},{"$f":"'Data by Building Type'!$D$15","v":9.8000000000000004E-2},{"$f":"'Data by Building Type'!$D$15","v":9.8000000000000004E-2},{"$f":"'Data by Building Type'!$D$15","v":9.8000000000000004E-2},{"$f":"'Data by Building Type'!$D$15","v":9.8000000000000004E-2},{"$f":"'Data by Building Type'!$D$15","v":9.8000000000000004E-2},{"$f":"'Data by Building Type'!$D$15","v":9.8000000000000004E-2},{"$f":"'Data by Building Type'!$D$15","v":9.8000000000000004E-2},{"$f":"'Data by Building Type'!$D$15","v":9.8000000000000004E-2},{"$f":"'Data by Building Type'!$D$15","v":9.8000000000000004E-2},{"$f":"'Data by Building Type'!$D$15","v":9.8000000000000004E-2},{"$f":"'Data by Building Type'!$D$15","v":9.8000000000000004E-2},{"$f":"'Data by Building Type'!$D$15","v":9.8000000000000004E-2}]
[null,null,"PC 6 - Mobile Home Non-Weatherized, Non-Condensing Gas Furnace Fan (MH-NWG-NC)",0,0,0,0,0,0,0,0,0,0,{"$f":"O27","v":0},0,0,0,0,0,0,0,0,0,0,0,0,0,0,0,0,0,0,0,0,{"$f":"IF(INDEX(PC_MAPPING,MID($C27,4,1),MATCH($C$9,'Data by Building Type'!$D$22:$F$22,0))=\"Yes\",1,0)","v":0},{"$f":"IF(INDEX(PC_MAPPING,MID($C27,4,1),MATCH($C$9,'Data by Building Type'!$D$22:$F$22,0))=\"Yes\",1,0)","v":0},{"$f":"IF(INDEX(PC_MAPPING,MID($C27,4,1),MATCH($C$9,'Data by Building Type'!$D$22:$F$22,0))=\"Yes\",1,0)","v":0},{"$f":"IF(INDEX(PC_MAPPING,MID($C27,4,1),MATCH($C$9,'Data by Building Type'!$D$22:$F$22,0))=\"Yes\",1,0)","v":0},{"$f":"IF(INDEX(PC_MAPPING,MID($C27,4,1),MATCH($C$9,'Data by Building Type'!$D$22:$F$22,0))=\"Yes\",1,0)","v":0},{"$f":"IF(INDEX(PC_MAPPING,MID($C27,4,1),MATCH($C$9,'Data by Building Type'!$D$22:$F$22,0))=\"Yes\",1,0)","v":0},{"$f":"IF(INDEX(PC_MAPPING,MID($C27,4,1),MATCH($C$9,'Data by Building Type'!$D$22:$F$22,0))=\"Yes\",1,0)","v":0},{"$f":"IF(INDEX(PC_MAPPING,MID($C27,4,1),MATCH($C$9,'Data by Building Type'!$D$22:$F$22,0))=\"Yes\",1,0)","v":0},{"$f":"IF(INDEX(PC_MAPPING,MID($C27,4,1),MATCH($C$9,'Data by Building Type'!$D$22:$F$22,0))=\"Yes\",1,0)","v":0},{"$f":"IF(INDEX(PC_MAPPING,MID($C27,4,1),MATCH($C$9,'Data by Building Type'!$D$22:$F$22,0))=\"Yes\",1,0)","v":0},{"$f":"IF(INDEX(PC_MAPPING,MID($C27,4,1),MATCH($C$9,'Data by Building Type'!$D$22:$F$22,0))=\"Yes\",1,0)","v":0},{"$f":"IF(INDEX(PC_MAPPING,MID($C27,4,1),MATCH($C$9,'Data by Building Type'!$D$22:$F$22,0))=\"Yes\",1,0)","v":0},{"$f":"IF(INDEX(PC_MAPPING,MID($C27,4,1),MATCH($C$9,'Data by Building Type'!$D$22:$F$22,0))=\"Yes\",1,0)","v":0},{"$f":"IF(INDEX(PC_MAPPING,MID($C27,4,1),MATCH($C$9,'Data by Building Type'!$D$22:$F$22,0))=\"Yes\",1,0)","v":0},{"$f":"IF(INDEX(PC_MAPPING,MID($C27,4,1),MATCH($C$9,'Data by Building Type'!$D$22:$F$22,0))=\"Yes\",1,0)","v":0},{"$f":"IF(INDEX(PC_MAPPING,MID($C27,4,1),MATCH($C$9,'Data by Building Type'!$D$22:$F$22,0))=\"Yes\",1,0)","v":0},{"$f":"IF(INDEX(PC_MAPPING,MID($C27,4,1),MATCH($C$9,'Data by Building Type'!$D$22:$F$22,0))=\"Yes\",1,0)","v":0},{"$f":"IF(INDEX(PC_MAPPING,MID($C27,4,1),MATCH($C$9,'Data by Building Type'!$D$22:$F$22,0))=\"Yes\",1,0)","v":0},{"$f":"IF(INDEX(PC_MAPPING,MID($C27,4,1),MATCH($C$9,'Data by Building Type'!$D$22:$F$22,0))=\"Yes\",1,0)","v":0},{"$f":"IF(INDEX(PC_MAPPING,MID($C27,4,1),MATCH($C$9,'Data by Building Type'!$D$22:$F$22,0))=\"Yes\",1,0)","v":0},{"$f":"IF(INDEX(PC_MAPPING,MID($C27,4,1),MATCH($C$9,'Data by Building Type'!$D$22:$F$22,0))=\"Yes\",1,0)","v":0},{"$f":"IF(INDEX(PC_MAPPING,MID($C27,4,1),MATCH($C$9,'Data by Building Type'!$D$22:$F$22,0))=\"Yes\",1,0)","v":0},{"$f":"IF(INDEX(PC_MAPPING,MID($C27,4,1),MATCH($C$9,'Data by Building Type'!$D$22:$F$22,0))=\"Yes\",1,0)","v":0}]
[null,null,"PC 7 - Mobile Home Non-Weatherized, Condensing Gas Furnace Fan (MH-NWG-C)",0,0,0,0,0,0,0,0,0,0,{"$f":"O28","v":0},0,0,0,0,0,0,0,0,0,0,0,0,0,0,0,0,0,0,0,0,{"$f":"IF(INDEX(PC_MAPPING,MID($C28,4,1),MATCH($C$9,'Data by Building Type'!$D$22:$F$22,0))=\"Yes\",1,0)","v":0},{"$f":"IF(INDEX(PC_MAPPING,MID($C28,4,1),MATCH($C$9,'Data by Building Type'!$D$22:$F$22,0))=\"Yes\",1,0)","v":0},{"$f":"IF(INDEX(PC_MAPPING,MID($C28,4,1),MATCH($C$9,'Data by Building Type'!$D$22:$F$22,0))=\"Yes\",1,0)","v":0},{"$f":"IF(INDEX(PC_MAPPING,MID($C28,4,1),MATCH($C$9,'Data by Building Type'!$D$22:$F$22,0))=\"Yes\",1,0)","v":0},{"$f":"IF(INDEX(PC_MAPPING,MID($C28,4,1),MATCH($C$9,'Data by Building Type'!$D$22:$F$22,0))=\"Yes\",1,0)","v":0},{"$f":"IF(INDEX(PC_MAPPING,MID($C28,4,1),MATCH($C$9,'Data by Building Type'!$D$22:$F$22,0))=\"Yes\",1,0)","v":0},{"$f":"IF(INDEX(PC_MAPPING,MID($C28,4,1),MATCH($C$9,'Data by Building Type'!$D$22:$F$22,0))=\"Yes\",1,0)","v":0},{"$f":"IF(INDEX(PC_MAPPING,MID($C28,4,1),MATCH($C$9,'Data by Building Type'!$D$22:$F$22,0))=\"Yes\",1,0)","v":0},{"$f":"IF(INDEX(PC_MAPPING,MID($C28,4,1),MATCH($C$9,'Data by Building Type'!$D$22:$F$22,0))=\"Yes\",1,0)","v":0},{"$f":"IF(INDEX(PC_MAPPING,MID($C28,4,1),MATCH($C$9,'Data by Building Type'!$D$22:$F$22,0))=\"Yes\",1,0)","v":0},{"$f":"IF(INDEX(PC_MAPPING,MID($C28,4,1),MATCH($C$9,'Data by Building Type'!$D$22:$F$22,0))=\"Yes\",1,0)","v":0},{"$f":"IF(INDEX(PC_MAPPING,MID($C28,4,1),MATCH($C$9,'Data by Building Type'!$D$22:$F$22,0))=\"Yes\",1,0)","v":0},{"$f":"IF(INDEX(PC_MAPPING,MID($C28,4,1),MATCH($C$9,'Data by Building Type'!$D$22:$F$22,0))=\"Yes\",1,0)","v":0},{"$f":"IF(INDEX(PC_MAPPING,MID($C28,4,1),MATCH($C$9,'Data by Building Type'!$D$22:$F$22,0))=\"Yes\",1,0)","v":0},{"$f":"IF(INDEX(PC_MAPPING,MID($C28,4,1),MATCH($C$9,'Data by Building Type'!$D$22:$F$22,0))=\"Yes\",1,0)","v":0},{"$f":"IF(INDEX(PC_MAPPING,MID($C28,4,1),MATCH($C$9,'Data by Building Type'!$D$22:$F$22,0))=\"Yes\",1,0)","v":0},{"$f":"IF(INDEX(PC_MAPPING,MID($C28,4,1),MATCH($C$9,'Data by Building Type'!$D$22:$F$22,0))=\"Yes\",1,0)","v":0},{"$f":"IF(INDEX(PC_MAPPING,MID($C28,4,1),MATCH($C$9,'Data by Building Type'!$D$22:$F$22,0))=\"Yes\",1,0)","v":0},{"$f":"IF(INDEX(PC_MAPPING,MID($C28,4,1),MATCH($C$9,'Data by Building Type'!$D$22:$F$22,0))=\"Yes\",1,0)","v":0},{"$f":"IF(INDEX(PC_MAPPING,MID($C28,4,1),MATCH($C$9,'Data by Building Type'!$D$22:$F$22,0))=\"Yes\",1,0)","v":0},{"$f":"IF(INDEX(PC_MAPPING,MID($C28,4,1),MATCH($C$9,'Data by Building Type'!$D$22:$F$22,0))=\"Yes\",1,0)","v":0},{"$f":"IF(INDEX(PC_MAPPING,MID($C28,4,1),MATCH($C$9,'Data by Building Type'!$D$22:$F$22,0))=\"Yes\",1,0)","v":0},{"$f":"IF(INDEX(PC_MAPPING,MID($C28,4,1),MATCH($C$9,'Data by Building Type'!$D$22:$F$22,0))=\"Yes\",1,0)","v":0}]
[null,null,"PC 8 - Mobile Home Electric Furnace / Modular Blower Fan (MH-EF/MB)",0,0,0,0,0,0,0,0,0,0,{"$f":"O29","v":0},0,0,0,0,0,0,0,0,0,0,0,0,0,0,0,0,0,0,0,0,{"$f":"IF(INDEX(PC_MAPPING,MID($C29,4,1),MATCH($C$9,'Data by Building Type'!$D$22:$F$22,0))=\"Yes\",1,0)","v":0},{"$f":"IF(INDEX(PC_MAPPING,MID($C29,4,1),MATCH($C$9,'Data by Building Type'!$D$22:$F$22,0))=\"Yes\",1,0)","v":0},{"$f":"IF(INDEX(PC_MAPPING,MID($C29,4,1),MATCH($C$9,'Data by Building Type'!$D$22:$F$22,0))=\"Yes\",1,0)","v":0},{"$f":"IF(INDEX(PC_MAPPING,MID($C29,4,1),MATCH($C$9,'Data by Building Type'!$D$22:$F$22,0))=\"Yes\",1,0)","v":0},{"$f":"IF(INDEX(PC_MAPPING,MID($C29,4,1),MATCH($C$9,'Data by Building Type'!$D$22:$F$22,0))=\"Yes\",1,0)","v":0},{"$f":"IF(INDEX(PC_MAPPING,MID($C29,4,1),MATCH($C$9,'Data by Building Type'!$D$22:$F$22,0))=\"Yes\",1,0)","v":0},{"$f":"IF(INDEX(PC_MAPPING,MID($C29,4,1),MATCH($C$9,'Data by Building Type'!$D$22:$F$22,0))=\"Yes\",1,0)","v":0},{"$f":"IF(INDEX(PC_MAPPING,MID($C29,4,1),MATCH($C$9,'Data by Building Type'!$D$22:$F$22,0))=\"Yes\",1,0)","v":0},{"$f":"IF(INDEX(PC_MAPPING,MID($C29,4,1),MATCH($C$9,'Data by Building Type'!$D$22:$F$22,0))=\"Yes\",1,0)","v":0},{"$f":"IF(INDEX(PC_MAPPING,MID($C29,4,1),MATCH($C$9,'Data by Building Type'!$D$22:$F$22,0))=\"Yes\",1,0)","v":0},{"$f":"IF(INDEX(PC_MAPPING,MID($C29,4,1),MATCH($C$9,'Data by Building Type'!$D$22:$F$22,0))=\"Yes\",1,0)","v":0},{"$f":"IF(INDEX(PC_MAPPING,MID($C29,4,1),MATCH($C$9,'Data by Building Type'!$D$22:$F$22,0))=\"Yes\",1,0)","v":0},{"$f":"IF(INDEX(PC_MAPPING,MID($C29,4,1),MATCH($C$9,'Data by Building Type'!$D$22:$F$22,0))=\"Yes\",1,0)","v":0},{"$f":"IF(INDEX(PC_MAPPING,MID($C29,4,1),MATCH($C$9,'Data by Building Type'!$D$22:$F$22,0))=\"Yes\",1,0)","v":0},{"$f":"IF(INDEX(PC_MAPPING,MID($C29,4,1),MATCH($C$9,'Data by Building Type'!$D$22:$F$22,0))=\"Yes\",1,0)","v":0},{"$f":"IF(INDEX(PC_MAPPING,MID($C29,4,1),MATCH($C$9,'Data by Building Type'!$D$22:$F$22,0))=\"Yes\",1,0)","v":0},{"$f":"IF(INDEX(PC_MAPPING,MID($C29,4,1),MATCH($C$9,'Data by Building Type'!$D$22:$F$22,0))=\"Yes\",1,0)","v":0},{"$f":"IF(INDEX(PC_MAPPING,MID($C29,4,1),MATCH($C$9,'Data by Building Type'!$D$22:$F$22,0))=\"Yes\",1,0)","v":0},{"$f":"IF(INDEX(PC_MAPPING,MID($C29,4,1),MATCH($C$9,'Data by Building Type'!$D$22:$F$22,0))=\"Yes\",1,0)","v":0},{"$f":"IF(INDEX(PC_MAPPING,MID($C29,4,1),MATCH($C$9,'Data by Building Type'!$D$22:$F$22,0))=\"Yes\",1,0)","v":0},{"$f":"IF(INDEX(PC_MAPPING,MID($C29,4,1),MATCH($C$9,'Data by Building Type'!$D$22:$F$22,0))=\"Yes\",1,0)","v":0},{"$f":"IF(INDEX(PC_MAPPING,MID($C29,4,1),MATCH($C$9,'Data by Building Type'!$D$22:$F$22,0))=\"Yes\",1,0)","v":0},{"$f":"IF(INDEX(PC_MAPPING,MID($C29,4,1),MATCH($C$9,'Data by Building Type'!$D$22:$F$22,0))=\"Yes\",1,0)","v":0}]
[]
[null,null,"Source/Rationale"]
[]
[]
[]
[null,null,"Multi-Family"]
[]
[null,null,"PRE-Case",1981,{"$f":"D37+1","v":1982},1983,1984,1985,1986,1987,1988,1989,1990,1991,1992,1993,1994,1995,1996,1997,1998,1999,2000,2001,2002,2003,2004,2005,2006,2007,2008,2009,2010,2011,2012,2013,2014,2015,2016,2017,2018,2019,2020,2021,2022,2023,2024,2025,2026,2027,2028,2029,2030,2031,2032,2033,2034]
[null,null,{"$f":"'Product Classes'!H10&\" - \"&OFFSET('Product Classes'!$C$9,MATCH('Product Classes'!H10,MODEL_PCS,0),0)","v":"PC 1 - Non-Weatherized, Non-Condensing Gas Furnace Fan (NWG-NC)"},{"$f":"E38","v":0.3982437224248449},0.3982437224248449,{"$f":"G38","v":0.3982437224248449},{"$f":"H38","v":0.3982437224248449},{"$f":"I38","v":0.3982437224248449},{"$f":"J38","v":0.3982437224248449},{"$f":"K38","v":0.3982437224248449},{"$f":"L38","v":0.3982437224248449},{"$f":"M38","v":0.3982437224248449},{"$f":"N38","v":0.3982437224248449},{"$f":"O38","v":0.3982437224248449},0.3982437224248449,0.3982437224248449,0.3982437224248449,0.3982437224248449,0.3982437224248449,0.3982437224248449,0.3982437224248449,0.3982437224248449,0.3982437224248449,0.3982437224248449,0.3982437224248449,0.3982437224248449,0.3982437224248449,0.3982437224248449,0.3982437224248449,0.3982437224248449,0.3982437224248449,0.3982437224248449,0.3982437224248449,{"$f":"AI38","v":0.3982437224248449},{"$f":"IF(ISNUMBER(\n'National Shipments'!E$20/SUM('National Shipments'!E$20,'National Shipments'!E$30,'National Shipments'!E$40)\n*(1-SUM(AI$15:AI$19))),\n'National Shipments'!E$20/SUM('National Shipments'!E$20,'National Shipments'!E$30,'National Shipments'!E$40)\n*(1-SUM(AI$15:AI$19)),AH38)","v":0.3982437224248449},{"$f":"IF(ISNUMBER(\n'National Shipments'!F$20/SUM('National Shipments'!F$20,'National Shipments'!F$30,'National Shipments'!F$40)\n*(1-SUM(AJ$15:AJ$19))),\n'National Shipments'!F$20/SUM('National Shipments'!F$20,'National Shipments'!F$30,'National Shipments'!F$40)\n*(1-SUM(AJ$15:AJ$19)),AI38)","v":0.36247526161809795},{"$f":"IF(ISNUMBER(\n'National Shipments'!G$20/SUM('National Shipments'!G$20,'National Shipments'!G$30,'National Shipments'!G$40)\n*(1-SUM(AK$15:AK$19))),\n'National Shipments'!G$20/SUM('National Shipments'!G$20,'National Shipments'!G$30,'National Shipments'!G$40)\n*(1-SUM(AK$15:AK$19)),AJ38)","v":0.36326770300312838},{"$f":"IF(ISNUMBER(\n'National Shipments'!H$20/SUM('National Shipments'!H$20,'National Shipments'!H$30,'National Shipments'!H$40)\n*(1-SUM(AL$15:AL$19))),\n'National Shipments'!H$20/SUM('National Shipments'!H$20,'National Shipments'!H$30,'National Shipments'!H$40)\n*(1-SUM(AL$15:AL$19)),AK38)","v":0.36264759990499662},{"$f":"IF(ISNUMBER(\n'National Shipments'!I$20/SUM('National Shipments'!I$20,'National Shipments'!I$30,'National Shipments'!I$40)\n*(1-SUM(AM$15:AM$19))),\n'National Shipments'!I$20/SUM('National Shipments'!I$20,'National Shipments'!I$30,'National Shipments'!I$40)\n*(1-SUM(AM$15:AM$19)),AL38)","v":0.34261650258151988},{"$f":"IF(ISNUMBER(\n'National Shipments'!J$20/SUM('National Shipments'!J$20,'National Shipments'!J$30,'National Shipments'!J$40)\n*(1-SUM(AN$15:AN$19))),\n'National Shipments'!J$20/SUM('National Shipments'!J$20,'National Shipments'!J$30,'National Shipments'!J$40)\n*(1-SUM(AN$15:AN$19)),AM38)","v":0.320194705454525},{"$f":"IF(ISNUMBER(\n'National Shipments'!K$20/SUM('National Shipments'!K$20,'National Shipments'!K$30,'National Shipments'!K$40)\n*(1-SUM(AO$15:AO$19))),\n'National Shipments'!K$20/SUM('National Shipments'!K$20,'National Shipments'!K$30,'National Shipments'!K$40)\n*(1-SUM(AO$15:AO$19)),AN38)","v":0.35880630374616579},{"$f":"IF(ISNUMBER(\n'National Shipments'!L$20/SUM('National Shipments'!L$20,'National Shipments'!L$30,'National Shipments'!L$40)\n*(1-SUM(AP$15:AP$19))),\n'National Shipments'!L$20/SUM('National Shipments'!L$20,'National Shipments'!L$30,'National Shipments'!L$40)\n*(1-SUM(AP$15:AP$19)),AO38)","v":0.34981274400669965},{"$f":"IF(ISNUMBER(\n'National Shipments'!M$20/SUM('National Shipments'!M$20,'National Shipments'!M$30,'National Shipments'!M$40)\n*(1-SUM(AQ$15:AQ$19))),\n'National Shipments'!M$20/SUM('National Shipments'!M$20,'National Shipments'!M$30,'National Shipments'!M$40)\n*(1-SUM(AQ$15:AQ$19)),AP38)","v":0.3492514973514928},{"$f":"IF(ISNUMBER(\n'National Shipments'!N$20/SUM('National Shipments'!N$20,'National Shipments'!N$30,'National Shipments'!N$40)\n*(1-SUM(AR$15:AR$19))),\n'National Shipments'!N$20/SUM('National Shipments'!N$20,'National Shipments'!N$30,'National Shipments'!N$40)\n*(1-SUM(AR$15:AR$19)),AQ38)","v":0.34367117855427132},{"$f":"IF(ISNUMBER(\n'National Shipments'!O$20/SUM('National Shipments'!O$20,'National Shipments'!O$30,'National Shipments'!O$40)\n*(1-SUM(AS$15:AS$19))),\n'National Shipments'!O$20/SUM('National Shipments'!O$20,'National Shipments'!O$30,'National Shipments'!O$40)\n*(1-SUM(AS$15:AS$19)),AR38)","v":0.35476422762407178},{"$f":"IF(ISNUMBER(\n'National Shipments'!P$20/SUM('National Shipments'!P$20,'National Shipments'!P$30,'National Shipments'!P$40)\n*(1-SUM(AT$15:AT$19))),\n'National Shipments'!P$20/SUM('National Shipments'!P$20,'National Shipments'!P$30,'National Shipments'!P$40)\n*(1-SUM(AT$15:AT$19)),AS38)","v":0.34850347306598684},{"$f":"IF(ISNUMBER(\n'National Shipments'!Q$20/SUM('National Shipments'!Q$20,'National Shipments'!Q$30,'National Shipments'!Q$40)\n*(1-SUM(AU$15:AU$19))),\n'National Shipments'!Q$20/SUM('National Shipments'!Q$20,'National Shipments'!Q$30,'National Shipments'!Q$40)\n*(1-SUM(AU$15:AU$19)),AT38)","v":0.3421241670534963},{"$f":"IF(ISNUMBER(\n'National Shipments'!R$20/SUM('National Shipments'!R$20,'National Shipments'!R$30,'National Shipments'!R$40)\n*(1-SUM(AV$15:AV$19))),\n'National Shipments'!R$20/SUM('National Shipments'!R$20,'National Shipments'!R$30,'National Shipments'!R$40)\n*(1-SUM(AV$15:AV$19)),AU38)","v":0.33551698038653144},{"$f":"IF(ISNUMBER(\n'National Shipments'!S$20/SUM('National Shipments'!S$20,'National Shipments'!S$30,'National Shipments'!S$40)\n*(1-SUM(AW$15:AW$19))),\n'National Shipments'!S$20/SUM('National Shipments'!S$20,'National Shipments'!S$30,'National Shipments'!S$40)\n*(1-SUM(AW$15:AW$19)),AV38)","v":0.3286475229599175},{"$f":"IF(ISNUMBER(\n'National Shipments'!T$20/SUM('National Shipments'!T$20,'National Shipments'!T$30,'National Shipments'!T$40)\n*(1-SUM(AX$15:AX$19))),\n'National Shipments'!T$20/SUM('National Shipments'!T$20,'National Shipments'!T$30,'National Shipments'!T$40)\n*(1-SUM(AX$15:AX$19)),AW38)","v":0.32149875808447526},{"$f":"IF(ISNUMBER(\n'National Shipments'!U$20/SUM('National Shipments'!U$20,'National Shipments'!U$30,'National Shipments'!U$40)\n*(1-SUM(AY$15:AY$19))),\n'National Shipments'!U$20/SUM('National Shipments'!U$20,'National Shipments'!U$30,'National Shipments'!U$40)\n*(1-SUM(AY$15:AY$19)),AX38)","v":0.31412670467341258},{"$f":"IF(ISNUMBER(\n'National Shipments'!V$20/SUM('National Shipments'!V$20,'National Shipments'!V$30,'National Shipments'!V$40)\n*(1-SUM(AZ$15:AZ$19))),\n'National Shipments'!V$20/SUM('National Shipments'!V$20,'National Shipments'!V$30,'National Shipments'!V$40)\n*(1-SUM(AZ$15:AZ$19)),AY38)","v":0.30676829149179513},{"$f":"IF(ISNUMBER(\n'National Shipments'!W$20/SUM('National Shipments'!W$20,'National Shipments'!W$30,'National Shipments'!W$40)\n*(1-SUM(BA$15:BA$19))),\n'National Shipments'!W$20/SUM('National Shipments'!W$20,'National Shipments'!W$30,'National Shipments'!W$40)\n*(1-SUM(BA$15:BA$19)),AZ38)","v":0.2995633945410659},{"$f":"IF(ISNUMBER(\n'National Shipments'!X$20/SUM('National Shipments'!X$20,'National Shipments'!X$30,'National Shipments'!X$40)\n*(1-SUM(BB$15:BB$19))),\n'National Shipments'!X$20/SUM('National Shipments'!X$20,'National Shipments'!X$30,'National Shipments'!X$40)\n*(1-SUM(BB$15:BB$19)),BA38)","v":0.29207508981774188},{"$f":"IF(ISNUMBER(\n'National Shipments'!Y$20/SUM('National Shipments'!Y$20,'National Shipments'!Y$30,'National Shipments'!Y$40)\n*(1-SUM(BC$15:BC$19))),\n'National Shipments'!Y$20/SUM('National Shipments'!Y$20,'National Shipments'!Y$30,'National Shipments'!Y$40)\n*(1-SUM(BC$15:BC$19)),BB38)","v":0.28438190092444943},{"$f":"IF(ISNUMBER(\n'National Shipments'!Z$20/SUM('National Shipments'!Z$20,'National Shipments'!Z$30,'National Shipments'!Z$40)\n*(1-SUM(BD$15:BD$19))),\n'National Shipments'!Z$20/SUM('National Shipments'!Z$20,'National Shipments'!Z$30,'National Shipments'!Z$40)\n*(1-SUM(BD$15:BD$19)),BC38)","v":0.27749454243318195},{"$f":"IF(ISNUMBER(\n'National Shipments'!AA$20/SUM('National Shipments'!AA$20,'National Shipments'!AA$30,'National Shipments'!AA$40)\n*(1-SUM(BE$15:BE$19))),\n'National Shipments'!AA$20/SUM('National Shipments'!AA$20,'National Shipments'!AA$30,'National Shipments'!AA$40)\n*(1-SUM(BE$15:BE$19)),BD38)","v":0.27047570852986086}]
[null,null,{"$f":"'Product Classes'!H11&\" - \"&OFFSET('Product Classes'!$C$9,MATCH('Product Classes'!H11,MODEL_PCS,0),0)","v":"PC 2 - Non-Weatherized, Condensing Gas Furnace Fan (NWG-C)"},0.36262801966593156,0.36262801966593156,0.36262801966593156,0.36262801966593156,0.36262801966593156,0.36262801966593156,0.36262801966593156,0.36262801966593156,0.36262801966593156,0.36262801966593156,{"$f":"O39","v":0.36262801966593156},0.36262801966593156,0.36262801966593156,0.36262801966593156,0.36262801966593156,0.36262801966593156,0.36262801966593156,0.36262801966593156,0.36262801966593156,0.36262801966593156,0.36262801966593156,0.36262801966593156,0.36262801966593156,0.36262801966593156,0.36262801966593156,0.36262801966593156,0.36262801966593156,0.36262801966593156,0.36262801966593156,0.36262801966593156,0.36262801966593156,{"$f":"IF(ISNUMBER(\n'National Shipments'!E$30/SUM('National Shipments'!E$20,'National Shipments'!E$30,'National Shipments'!E$40)\n*(1-SUM(AI$15:AI$19))),\n'National Shipments'!E$30/SUM('National Shipments'!E$20,'National Shipments'!E$30,'National Shipments'!E$40)\n*(1-SUM(AI$15:AI$19)),AH39)","v":0.36262801966593156},{"$f":"IF(ISNUMBER(\n'National Shipments'!F$30/SUM('National Shipments'!F$20,'National Shipments'!F$30,'National Shipments'!F$40)\n*(1-SUM(AJ$15:AJ$19))),\n'National Shipments'!F$30/SUM('National Shipments'!F$20,'National Shipments'!F$30,'National Shipments'!F$40)\n*(1-SUM(AJ$15:AJ$19)),AI39)","v":0.38358671627955682},{"$f":"IF(ISNUMBER(\n'National Shipments'!G$30/SUM('National Shipments'!G$20,'National Shipments'!G$30,'National Shipments'!G$40)\n*(1-SUM(AK$15:AK$19))),\n'National Shipments'!G$30/SUM('National Shipments'!G$20,'National Shipments'!G$30,'National Shipments'!G$40)\n*(1-SUM(AK$15:AK$19)),AJ39)","v":0.38390536480548193},{"$f":"IF(ISNUMBER(\n'National Shipments'!H$30/SUM('National Shipments'!H$20,'National Shipments'!H$30,'National Shipments'!H$40)\n*(1-SUM(AL$15:AL$19))),\n'National Shipments'!H$30/SUM('National Shipments'!H$20,'National Shipments'!H$30,'National Shipments'!H$40)\n*(1-SUM(AL$15:AL$19)),AK39)","v":0.38537842521791099},{"$f":"IF(ISNUMBER(\n'National Shipments'!I$30/SUM('National Shipments'!I$20,'National Shipments'!I$30,'National Shipments'!I$40)\n*(1-SUM(AM$15:AM$19))),\n'National Shipments'!I$30/SUM('National Shipments'!I$20,'National Shipments'!I$30,'National Shipments'!I$40)\n*(1-SUM(AM$15:AM$19)),AL39)","v":0.40052982126649134},{"$f":"IF(ISNUMBER(\n'National Shipments'!J$30/SUM('National Shipments'!J$20,'National Shipments'!J$30,'National Shipments'!J$40)\n*(1-SUM(AN$15:AN$19))),\n'National Shipments'!J$30/SUM('National Shipments'!J$20,'National Shipments'!J$30,'National Shipments'!J$40)\n*(1-SUM(AN$15:AN$19)),AM39)","v":0.41743605723464572},{"$f":"IF(ISNUMBER(\n'National Shipments'!K$30/SUM('National Shipments'!K$20,'National Shipments'!K$30,'National Shipments'!K$40)\n*(1-SUM(AO$15:AO$19))),\n'National Shipments'!K$30/SUM('National Shipments'!K$20,'National Shipments'!K$30,'National Shipments'!K$40)\n*(1-SUM(AO$15:AO$19)),AN39)","v":0.38706396532962301},{"$f":"IF(ISNUMBER(\n'National Shipments'!L$30/SUM('National Shipments'!L$20,'National Shipments'!L$30,'National Shipments'!L$40)\n*(1-SUM(AP$15:AP$19))),\n'National Shipments'!L$30/SUM('National Shipments'!L$20,'National Shipments'!L$30,'National Shipments'!L$40)\n*(1-SUM(AP$15:AP$19)),AO39)","v":0.39941274108067731},{"$f":"IF(ISNUMBER(\n'National Shipments'!M$30/SUM('National Shipments'!M$20,'National Shipments'!M$30,'National Shipments'!M$40)\n*(1-SUM(AQ$15:AQ$19))),\n'National Shipments'!M$30/SUM('National Shipments'!M$20,'National Shipments'!M$30,'National Shipments'!M$40)\n*(1-SUM(AQ$15:AQ$19)),AP39)","v":0.40103767400085433},{"$f":"IF(ISNUMBER(\n'National Shipments'!N$30/SUM('National Shipments'!N$20,'National Shipments'!N$30,'National Shipments'!N$40)\n*(1-SUM(AR$15:AR$19))),\n'National Shipments'!N$30/SUM('National Shipments'!N$20,'National Shipments'!N$30,'National Shipments'!N$40)\n*(1-SUM(AR$15:AR$19)),AQ39)","v":0.40658220613296697},{"$f":"IF(ISNUMBER(\n'National Shipments'!O$30/SUM('National Shipments'!O$20,'National Shipments'!O$30,'National Shipments'!O$40)\n*(1-SUM(AS$15:AS$19))),\n'National Shipments'!O$30/SUM('National Shipments'!O$20,'National Shipments'!O$30,'National Shipments'!O$40)\n*(1-SUM(AS$15:AS$19)),AR39)","v":0.40163954850187639},{"$f":"IF(ISNUMBER(\n'National Shipments'!P$30/SUM('National Shipments'!P$20,'National Shipments'!P$30,'National Shipments'!P$40)\n*(1-SUM(AT$15:AT$19))),\n'National Shipments'!P$30/SUM('National Shipments'!P$20,'National Shipments'!P$30,'National Shipments'!P$40)\n*(1-SUM(AT$15:AT$19)),AS39)","v":0.40781274860503863},{"$f":"IF(ISNUMBER(\n'National Shipments'!Q$30/SUM('National Shipments'!Q$20,'National Shipments'!Q$30,'National Shipments'!Q$40)\n*(1-SUM(AU$15:AU$19))),\n'National Shipments'!Q$30/SUM('National Shipments'!Q$20,'National Shipments'!Q$30,'National Shipments'!Q$40)\n*(1-SUM(AU$15:AU$19)),AT39)","v":0.41410262281810806},{"$f":"IF(ISNUMBER(\n'National Shipments'!R$30/SUM('National Shipments'!R$20,'National Shipments'!R$30,'National Shipments'!R$40)\n*(1-SUM(AV$15:AV$19))),\n'National Shipments'!R$30/SUM('National Shipments'!R$20,'National Shipments'!R$30,'National Shipments'!R$40)\n*(1-SUM(AV$15:AV$19)),AU39)","v":0.42062570958632722},{"$f":"IF(ISNUMBER(\n'National Shipments'!S$30/SUM('National Shipments'!S$20,'National Shipments'!S$30,'National Shipments'!S$40)\n*(1-SUM(AW$15:AW$19))),\n'National Shipments'!S$30/SUM('National Shipments'!S$20,'National Shipments'!S$30,'National Shipments'!S$40)\n*(1-SUM(AW$15:AW$19)),AV39)","v":0.42741960528830225},{"$f":"IF(ISNUMBER(\n'National Shipments'!T$30/SUM('National Shipments'!T$20,'National Shipments'!T$30,'National Shipments'!T$40)\n*(1-SUM(AX$15:AX$19))),\n'National Shipments'!T$30/SUM('National Shipments'!T$20,'National Shipments'!T$30,'National Shipments'!T$40)\n*(1-SUM(AX$15:AX$19)),AW39)","v":0.43447913839260116},{"$f":"IF(ISNUMBER(\n'National Shipments'!U$30/SUM('National Shipments'!U$20,'National Shipments'!U$30,'National Shipments'!U$40)\n*(1-SUM(AY$15:AY$19))),\n'National Shipments'!U$30/SUM('National Shipments'!U$20,'National Shipments'!U$30,'National Shipments'!U$40)\n*(1-SUM(AY$15:AY$19)),AX39)","v":0.44177366664031259},{"$f":"IF(ISNUMBER(\n'National Shipments'!V$30/SUM('National Shipments'!V$20,'National Shipments'!V$30,'National Shipments'!V$40)\n*(1-SUM(AZ$15:AZ$19))),\n'National Shipments'!V$30/SUM('National Shipments'!V$20,'National Shipments'!V$30,'National Shipments'!V$40)\n*(1-SUM(AZ$15:AZ$19)),AY39)","v":0.44904952919708152},{"$f":"IF(ISNUMBER(\n'National Shipments'!W$30/SUM('National Shipments'!W$20,'National Shipments'!W$30,'National Shipments'!W$40)\n*(1-SUM(BA$15:BA$19))),\n'National Shipments'!W$30/SUM('National Shipments'!W$20,'National Shipments'!W$30,'National Shipments'!W$40)\n*(1-SUM(BA$15:BA$19)),AZ39)","v":0.45617083200161024},{"$f":"IF(ISNUMBER(\n'National Shipments'!X$30/SUM('National Shipments'!X$20,'National Shipments'!X$30,'National Shipments'!X$40)\n*(1-SUM(BB$15:BB$19))),\n'National Shipments'!X$30/SUM('National Shipments'!X$20,'National Shipments'!X$30,'National Shipments'!X$40)\n*(1-SUM(BB$15:BB$19)),BA39)","v":0.46357427907458432},{"$f":"IF(ISNUMBER(\n'National Shipments'!Y$30/SUM('National Shipments'!Y$20,'National Shipments'!Y$30,'National Shipments'!Y$40)\n*(1-SUM(BC$15:BC$19))),\n'National Shipments'!Y$30/SUM('National Shipments'!Y$20,'National Shipments'!Y$30,'National Shipments'!Y$40)\n*(1-SUM(BC$15:BC$19)),BB39)","v":0.47118901282509118},{"$f":"IF(ISNUMBER(\n'National Shipments'!Z$30/SUM('National Shipments'!Z$20,'National Shipments'!Z$30,'National Shipments'!Z$40)\n*(1-SUM(BD$15:BD$19))),\n'National Shipments'!Z$30/SUM('National Shipments'!Z$20,'National Shipments'!Z$30,'National Shipments'!Z$40)\n*(1-SUM(BD$15:BD$19)),BC39)","v":0.47802501192673558},{"$f":"IF(ISNUMBER(\n'National Shipments'!AA$30/SUM('National Shipments'!AA$20,'National Shipments'!AA$30,'National Shipments'!AA$40)\n*(1-SUM(BE$15:BE$19))),\n'National Shipments'!AA$30/SUM('National Shipments'!AA$20,'National Shipments'!AA$30,'National Shipments'!AA$40)\n*(1-SUM(BE$15:BE$19)),BD39)","v":0.48498784187768962}]
[null,null,{"$f":"'Product Classes'!H12&\" - \"&OFFSET('Product Classes'!$C$9,MATCH('Product Classes'!H12,MODEL_PCS,0),0)","v":"PC 3 - Weatherized Non-Condensing Gas Furnace Fan (WG-NC)"},7.4128257909223463E-2,7.4128257909223463E-2,7.4128257909223463E-2,7.4128257909223463E-2,7.4128257909223463E-2,7.4128257909223463E-2,7.4128257909223463E-2,7.4128257909223463E-2,7.4128257909223463E-2,7.4128257909223463E-2,{"$f":"O40","v":7.4128257909223463E-2},7.4128257909223463E-2,7.4128257909223463E-2,7.4128257909223463E-2,7.4128257909223463E-2,7.4128257909223463E-2,7.4128257909223463E-2,7.4128257909223463E-2,7.4128257909223463E-2,7.4128257909223463E-2,7.4128257909223463E-2,7.4128257909223463E-2,7.4128257909223463E-2,7.4128257909223463E-2,7.4128257909223463E-2,7.4128257909223463E-2,7.4128257909223463E-2,7.4128257909223463E-2,7.4128257909223463E-2,7.4128257909223463E-2,7.4128257909223463E-2,{"$f":"IF(ISNUMBER(\n'National Shipments'!E$40/SUM('National Shipments'!E$20,'National Shipments'!E$30,'National Shipments'!E$40)\n*(1-SUM(AI$15:AI$19))),\n'National Shipments'!E$40/SUM('National Shipments'!E$20,'National Shipments'!E$30,'National Shipments'!E$40)\n*(1-SUM(AI$15:AI$19)),AH40)","v":7.4128257909223463E-2},{"$f":"IF(ISNUMBER(\n'National Shipments'!F$40/SUM('National Shipments'!F$20,'National Shipments'!F$30,'National Shipments'!F$40)\n*(1-SUM(AJ$15:AJ$19))),\n'National Shipments'!F$40/SUM('National Shipments'!F$20,'National Shipments'!F$30,'National Shipments'!F$40)\n*(1-SUM(AJ$15:AJ$19)),AI40)","v":8.8938022102345041E-2},{"$f":"IF(ISNUMBER(\n'National Shipments'!G$40/SUM('National Shipments'!G$20,'National Shipments'!G$30,'National Shipments'!G$40)\n*(1-SUM(AK$15:AK$19))),\n'National Shipments'!G$40/SUM('National Shipments'!G$20,'National Shipments'!G$30,'National Shipments'!G$40)\n*(1-SUM(AK$15:AK$19)),AJ40)","v":8.7826932191389692E-2},{"$f":"IF(ISNUMBER(\n'National Shipments'!H$40/SUM('National Shipments'!H$20,'National Shipments'!H$30,'National Shipments'!H$40)\n*(1-SUM(AL$15:AL$19))),\n'National Shipments'!H$40/SUM('National Shipments'!H$20,'National Shipments'!H$30,'National Shipments'!H$40)\n*(1-SUM(AL$15:AL$19)),AK40)","v":8.6973974877092283E-2},{"$f":"IF(ISNUMBER(\n'National Shipments'!I$40/SUM('National Shipments'!I$20,'National Shipments'!I$30,'National Shipments'!I$40)\n*(1-SUM(AM$15:AM$19))),\n'National Shipments'!I$40/SUM('National Shipments'!I$20,'National Shipments'!I$30,'National Shipments'!I$40)\n*(1-SUM(AM$15:AM$19)),AL40)","v":9.1853676151988681E-2},{"$f":"IF(ISNUMBER(\n'National Shipments'!J$40/SUM('National Shipments'!J$20,'National Shipments'!J$30,'National Shipments'!J$40)\n*(1-SUM(AN$15:AN$19))),\n'National Shipments'!J$40/SUM('National Shipments'!J$20,'National Shipments'!J$30,'National Shipments'!J$40)\n*(1-SUM(AN$15:AN$19)),AM40)","v":9.7369237310829221E-2},{"$f":"IF(ISNUMBER(\n'National Shipments'!K$40/SUM('National Shipments'!K$20,'National Shipments'!K$30,'National Shipments'!K$40)\n*(1-SUM(AO$15:AO$19))),\n'National Shipments'!K$40/SUM('National Shipments'!K$20,'National Shipments'!K$30,'National Shipments'!K$40)\n*(1-SUM(AO$15:AO$19)),AN40)","v":8.9129730924211101E-2},{"$f":"IF(ISNUMBER(\n'National Shipments'!L$40/SUM('National Shipments'!L$20,'National Shipments'!L$30,'National Shipments'!L$40)\n*(1-SUM(AP$15:AP$19))),\n'National Shipments'!L$40/SUM('National Shipments'!L$20,'National Shipments'!L$30,'National Shipments'!L$40)\n*(1-SUM(AP$15:AP$19)),AO40)","v":8.5774514912622973E-2},{"$f":"IF(ISNUMBER(\n'National Shipments'!M$40/SUM('National Shipments'!M$20,'National Shipments'!M$30,'National Shipments'!M$40)\n*(1-SUM(AQ$15:AQ$19))),\n'National Shipments'!M$40/SUM('National Shipments'!M$20,'National Shipments'!M$30,'National Shipments'!M$40)\n*(1-SUM(AQ$15:AQ$19)),AP40)","v":8.4710828647652892E-2},{"$f":"IF(ISNUMBER(\n'National Shipments'!N$40/SUM('National Shipments'!N$20,'National Shipments'!N$30,'National Shipments'!N$40)\n*(1-SUM(AR$15:AR$19))),\n'National Shipments'!N$40/SUM('National Shipments'!N$20,'National Shipments'!N$30,'National Shipments'!N$40)\n*(1-SUM(AR$15:AR$19)),AQ40)","v":8.4746615312761786E-2},{"$f":"IF(ISNUMBER(\n'National Shipments'!O$40/SUM('National Shipments'!O$20,'National Shipments'!O$30,'National Shipments'!O$40)\n*(1-SUM(AS$15:AS$19))),\n'National Shipments'!O$40/SUM('National Shipments'!O$20,'National Shipments'!O$30,'National Shipments'!O$40)\n*(1-SUM(AS$15:AS$19)),AR40)","v":7.8596223874051852E-2},{"$f":"IF(ISNUMBER(\n'National Shipments'!P$40/SUM('National Shipments'!P$20,'National Shipments'!P$30,'National Shipments'!P$40)\n*(1-SUM(AT$15:AT$19))),\n'National Shipments'!P$40/SUM('National Shipments'!P$20,'National Shipments'!P$30,'National Shipments'!P$40)\n*(1-SUM(AT$15:AT$19)),AS40)","v":7.8683778328974593E-2},{"$f":"IF(ISNUMBER(\n'National Shipments'!Q$40/SUM('National Shipments'!Q$20,'National Shipments'!Q$30,'National Shipments'!Q$40)\n*(1-SUM(AU$15:AU$19))),\n'National Shipments'!Q$40/SUM('National Shipments'!Q$20,'National Shipments'!Q$30,'National Shipments'!Q$40)\n*(1-SUM(AU$15:AU$19)),AT40)","v":7.8773210128395568E-2},{"$f":"IF(ISNUMBER(\n'National Shipments'!R$40/SUM('National Shipments'!R$20,'National Shipments'!R$30,'National Shipments'!R$40)\n*(1-SUM(AV$15:AV$19))),\n'National Shipments'!R$40/SUM('National Shipments'!R$20,'National Shipments'!R$30,'National Shipments'!R$40)\n*(1-SUM(AV$15:AV$19)),AU40)","v":7.8857310027141261E-2},{"$f":"IF(ISNUMBER(\n'National Shipments'!S$40/SUM('National Shipments'!S$20,'National Shipments'!S$30,'National Shipments'!S$40)\n*(1-SUM(AW$15:AW$19))),\n'National Shipments'!S$40/SUM('National Shipments'!S$20,'National Shipments'!S$30,'National Shipments'!S$40)\n*(1-SUM(AW$15:AW$19)),AV40)","v":7.8932871751780168E-2},{"$f":"IF(ISNUMBER(\n'National Shipments'!T$40/SUM('National Shipments'!T$20,'National Shipments'!T$30,'National Shipments'!T$40)\n*(1-SUM(AX$15:AX$19))),\n'National Shipments'!T$40/SUM('National Shipments'!T$20,'National Shipments'!T$30,'National Shipments'!T$40)\n*(1-SUM(AX$15:AX$19)),AW40)","v":7.902210352292359E-2},{"$f":"IF(ISNUMBER(\n'National Shipments'!U$40/SUM('National Shipments'!U$20,'National Shipments'!U$30,'National Shipments'!U$40)\n*(1-SUM(AY$15:AY$19))),\n'National Shipments'!U$40/SUM('National Shipments'!U$20,'National Shipments'!U$30,'National Shipments'!U$40)\n*(1-SUM(AY$15:AY$19)),AX40)","v":7.9099628686274903E-2},{"$f":"IF(ISNUMBER(\n'National Shipments'!V$40/SUM('National Shipments'!V$20,'National Shipments'!V$30,'National Shipments'!V$40)\n*(1-SUM(AZ$15:AZ$19))),\n'National Shipments'!V$40/SUM('National Shipments'!V$20,'National Shipments'!V$30,'National Shipments'!V$40)\n*(1-SUM(AZ$15:AZ$19)),AY40)","v":7.918217931112323E-2},{"$f":"IF(ISNUMBER(\n'National Shipments'!W$40/SUM('National Shipments'!W$20,'National Shipments'!W$30,'National Shipments'!W$40)\n*(1-SUM(BA$15:BA$19))),\n'National Shipments'!W$40/SUM('National Shipments'!W$20,'National Shipments'!W$30,'National Shipments'!W$40)\n*(1-SUM(BA$15:BA$19)),AZ40)","v":7.926577345732394E-2},{"$f":"IF(ISNUMBER(\n'National Shipments'!X$40/SUM('National Shipments'!X$20,'National Shipments'!X$30,'National Shipments'!X$40)\n*(1-SUM(BB$15:BB$19))),\n'National Shipments'!X$40/SUM('National Shipments'!X$20,'National Shipments'!X$30,'National Shipments'!X$40)\n*(1-SUM(BB$15:BB$19)),BA40)","v":7.9350631107673736E-2},{"$f":"IF(ISNUMBER(\n'National Shipments'!Y$40/SUM('National Shipments'!Y$20,'National Shipments'!Y$30,'National Shipments'!Y$40)\n*(1-SUM(BC$15:BC$19))),\n'National Shipments'!Y$40/SUM('National Shipments'!Y$20,'National Shipments'!Y$30,'National Shipments'!Y$40)\n*(1-SUM(BC$15:BC$19)),BB40)","v":7.9429086250459371E-2},{"$f":"IF(ISNUMBER(\n'National Shipments'!Z$40/SUM('National Shipments'!Z$20,'National Shipments'!Z$30,'National Shipments'!Z$40)\n*(1-SUM(BD$15:BD$19))),\n'National Shipments'!Z$40/SUM('National Shipments'!Z$20,'National Shipments'!Z$30,'National Shipments'!Z$40)\n*(1-SUM(BD$15:BD$19)),BC40)","v":7.9480445640082414E-2},{"$f":"IF(ISNUMBER(\n'National Shipments'!AA$40/SUM('National Shipments'!AA$20,'National Shipments'!AA$30,'National Shipments'!AA$40)\n*(1-SUM(BE$15:BE$19))),\n'National Shipments'!AA$40/SUM('National Shipments'!AA$20,'National Shipments'!AA$30,'National Shipments'!AA$40)\n*(1-SUM(BE$15:BE$19)),BD40)","v":7.9536449592449557E-2}]
[null,null,{"$f":"'Product Classes'!H13&\" - \"&OFFSET('Product Classes'!$C$9,MATCH('Product Classes'!H13,MODEL_PCS,0),0)","v":"PC 4 - Non-Weatherized, Non-Condensing Oil Furnace Fan (NWO-NC)"},0,0,0,0,0,0,0,0,0,0,{"$f":"O41","v":0},0,0,0,0,0,0,0,0,0,0,0,0,0,0,0,0,0,0,0,0,{"$f":"'Data by Building Type'!$E$17","v":0},{"$f":"'Data by Building Type'!$E$17","v":0},{"$f":"'Data by Building Type'!$E$17","v":0},{"$f":"'Data by Building Type'!$E$17","v":0},{"$f":"'Data by Building Type'!$E$17","v":0},{"$f":"'Data by Building Type'!$E$17","v":0},{"$f":"'Data by Building Type'!$E$17","v":0},{"$f":"'Data by Building Type'!$E$17","v":0},{"$f":"'Data by Building Type'!$E$17","v":0},{"$f":"'Data by Building Type'!$E$17","v":0},{"$f":"'Data by Building Type'!$E$17","v":0},{"$f":"'Data by Building Type'!$E$17","v":0},{"$f":"'Data by Building Type'!$E$17","v":0},{"$f":"'Data by Building Type'!$E$17","v":0},{"$f":"'Data by Building Type'!$E$17","v":0},{"$f":"'Data by Building Type'!$E$17","v":0},{"$f":"'Data by Building Type'!$E$17","v":0},{"$f":"'Data by Building Type'!$E$17","v":0},{"$f":"'Data by Building Type'!$E$17","v":0},{"$f":"'Data by Building Type'!$E$17","v":0},{"$f":"'Data by Building Type'!$E$17","v":0},{"$f":"'Data by Building Type'!$E$17","v":0},{"$f":"'Data by Building Type'!$E$17","v":0}]
[null,null,{"$f":"'Product Classes'!H14&\" - \"&OFFSET('Product Classes'!$C$9,MATCH('Product Classes'!H14,MODEL_PCS,0),0)","v":"PC 5 - Non-Weatherized Electric Furnace / Modular Blower Fan (NWEF/NWMB)"},0.20512820512820512,0.20512820512820512,0.20512820512820512,0.20512820512820512,0.20512820512820512,0.20512820512820512,0.20512820512820512,0.20512820512820512,0.20512820512820512,0.20512820512820512,{"$f":"O42","v":0.20512820512820512},0.20512820512820512,0.20512820512820512,0.20512820512820512,0.20512820512820512,0.20512820512820512,0.20512820512820512,0.20512820512820512,0.20512820512820512,0.20512820512820512,0.20512820512820512,0.20512820512820512,0.20512820512820512,0.20512820512820512,0.20512820512820512,0.20512820512820512,0.20512820512820512,0.20512820512820512,0.20512820512820512,0.20512820512820512,0.20512820512820512,{"$f":"'Data by Building Type'!$E$15","v":0.20512820512820512},{"$f":"'Data by Building Type'!$E$15","v":0.20512820512820512},{"$f":"'Data by Building Type'!$E$15","v":0.20512820512820512},{"$f":"'Data by Building Type'!$E$15","v":0.20512820512820512},{"$f":"'Data by Building Type'!$E$15","v":0.20512820512820512},{"$f":"'Data by Building Type'!$E$15","v":0.20512820512820512},{"$f":"'Data by Building Type'!$E$15","v":0.20512820512820512},{"$f":"'Data by Building Type'!$E$15","v":0.20512820512820512},{"$f":"'Data by Building Type'!$E$15","v":0.20512820512820512},{"$f":"'Data by Building Type'!$E$15","v":0.20512820512820512},{"$f":"'Data by Building Type'!$E$15","v":0.20512820512820512},{"$f":"'Data by Building Type'!$E$15","v":0.20512820512820512},{"$f":"'Data by Building Type'!$E$15","v":0.20512820512820512},{"$f":"'Data by Building Type'!$E$15","v":0.20512820512820512},{"$f":"'Data by Building Type'!$E$15","v":0.20512820512820512},{"$f":"'Data by Building Type'!$E$15","v":0.20512820512820512},{"$f":"'Data by Building Type'!$E$15","v":0.20512820512820512},{"$f":"'Data by Building Type'!$E$15","v":0.20512820512820512},{"$f":"'Data by Building Type'!$E$15","v":0.20512820512820512},{"$f":"'Data by Building Type'!$E$15","v":0.20512820512820512},{"$f":"'Data by Building Type'!$E$15","v":0.20512820512820512},{"$f":"'Data by Building Type'!$E$15","v":0.20512820512820512},{"$f":"'Data by Building Type'!$E$15","v":0.20512820512820512}]
[null,null,{"$f":"'Product Classes'!H15&\" - \"&OFFSET('Product Classes'!$C$9,MATCH('Product Classes'!H15,MODEL_PCS,0),0)","v":"PC 6 - Mobile Home Non-Weatherized, Non-Condensing Gas Furnace Fan (MH-NWG-NC)"},0,0,0,0,0,0,0,0,0,0,{"$f":"O43","v":0},0,0,0,0,0,0,0,0,0,0,0,0,0,0,0,0,0,0,0,0,{"$f":"IF(INDEX(PC_MAPPING,MID($C43,4,1),MATCH($C$35,'Data by Building Type'!$D$22:$F$22,0))=\"Yes\",1,0)","v":0},{"$f":"IF(INDEX(PC_MAPPING,MID($C43,4,1),MATCH($C$35,'Data by Building Type'!$D$22:$F$22,0))=\"Yes\",1,0)","v":0},{"$f":"IF(INDEX(PC_MAPPING,MID($C43,4,1),MATCH($C$35,'Data by Building Type'!$D$22:$F$22,0))=\"Yes\",1,0)","v":0},{"$f":"IF(INDEX(PC_MAPPING,MID($C43,4,1),MATCH($C$35,'Data by Building Type'!$D$22:$F$22,0))=\"Yes\",1,0)","v":0},{"$f":"IF(INDEX(PC_MAPPING,MID($C43,4,1),MATCH($C$35,'Data by Building Type'!$D$22:$F$22,0))=\"Yes\",1,0)","v":0},{"$f":"IF(INDEX(PC_MAPPING,MID($C43,4,1),MATCH($C$35,'Data by Building Type'!$D$22:$F$22,0))=\"Yes\",1,0)","v":0},{"$f":"IF(INDEX(PC_MAPPING,MID($C43,4,1),MATCH($C$35,'Data by Building Type'!$D$22:$F$22,0))=\"Yes\",1,0)","v":0},{"$f":"IF(INDEX(PC_MAPPING,MID($C43,4,1),MATCH($C$35,'Data by Building Type'!$D$22:$F$22,0))=\"Yes\",1,0)","v":0},{"$f":"IF(INDEX(PC_MAPPING,MID($C43,4,1),MATCH($C$35,'Data by Building Type'!$D$22:$F$22,0))=\"Yes\",1,0)","v":0},{"$f":"IF(INDEX(PC_MAPPING,MID($C43,4,1),MATCH($C$35,'Data by Building Type'!$D$22:$F$22,0))=\"Yes\",1,0)","v":0},{"$f":"IF(INDEX(PC_MAPPING,MID($C43,4,1),MATCH($C$35,'Data by Building Type'!$D$22:$F$22,0))=\"Yes\",1,0)","v":0},{"$f":"IF(INDEX(PC_MAPPING,MID($C43,4,1),MATCH($C$35,'Data by Building Type'!$D$22:$F$22,0))=\"Yes\",1,0)","v":0},{"$f":"IF(INDEX(PC_MAPPING,MID($C43,4,1),MATCH($C$35,'Data by Building Type'!$D$22:$F$22,0))=\"Yes\",1,0)","v":0},{"$f":"IF(INDEX(PC_MAPPING,MID($C43,4,1),MATCH($C$35,'Data by Building Type'!$D$22:$F$22,0))=\"Yes\",1,0)","v":0},{"$f":"IF(INDEX(PC_MAPPING,MID($C43,4,1),MATCH($C$35,'Data by Building Type'!$D$22:$F$22,0))=\"Yes\",1,0)","v":0},{"$f":"IF(INDEX(PC_MAPPING,MID($C43,4,1),MATCH($C$35,'Data by Building Type'!$D$22:$F$22,0))=\"Yes\",1,0)","v":0},{"$f":"IF(INDEX(PC_MAPPING,MID($C43,4,1),MATCH($C$35,'Data by Building Type'!$D$22:$F$22,0))=\"Yes\",1,0)","v":0},{"$f":"IF(INDEX(PC_MAPPING,MID($C43,4,1),MATCH($C$35,'Data by Building Type'!$D$22:$F$22,0))=\"Yes\",1,0)","v":0},{"$f":"IF(INDEX(PC_MAPPING,MID($C43,4,1),MATCH($C$35,'Data by Building Type'!$D$22:$F$22,0))=\"Yes\",1,0)","v":0},{"$f":"IF(INDEX(PC_MAPPING,MID($C43,4,1),MATCH($C$35,'Data by Building Type'!$D$22:$F$22,0))=\"Yes\",1,0)","v":0},{"$f":"IF(INDEX(PC_MAPPING,MID($C43,4,1),MATCH($C$35,'Data by Building Type'!$D$22:$F$22,0))=\"Yes\",1,0)","v":0},{"$f":"IF(INDEX(PC_MAPPING,MID($C43,4,1),MATCH($C$35,'Data by Building Type'!$D$22:$F$22,0))=\"Yes\",1,0)","v":0},{"$f":"IF(INDEX(PC_MAPPING,MID($C43,4,1),MATCH($C$35,'Data by Building Type'!$D$22:$F$22,0))=\"Yes\",1,0)","v":0}]
[null,null,{"$f":"'Product Classes'!H16&\" - \"&OFFSET('Product Classes'!$C$9,MATCH('Product Classes'!H16,MODEL_PCS,0),0)","v":"PC 7 - Mobile Home Non-Weatherized, Condensing Gas Furnace Fan (MH-NWG-C)"},0,0,0,0,0,0,0,0,0,0,{"$f":"O44","v":0},0,0,0,0,0,0,0,0,0,0,0,0,0,0,0,0,0,0,0,0,{"$f":"IF(INDEX(PC_MAPPING,MID($C44,4,1),MATCH($C$35,'Data by Building Type'!$D$22:$F$22,0))=\"Yes\",1,0)","v":0},{"$f":"IF(INDEX(PC_MAPPING,MID($C44,4,1),MATCH($C$35,'Data by Building Type'!$D$22:$F$22,0))=\"Yes\",1,0)","v":0},{"$f":"IF(INDEX(PC_MAPPING,MID($C44,4,1),MATCH($C$35,'Data by Building Type'!$D$22:$F$22,0))=\"Yes\",1,0)","v":0},{"$f":"IF(INDEX(PC_MAPPING,MID($C44,4,1),MATCH($C$35,'Data by Building Type'!$D$22:$F$22,0))=\"Yes\",1,0)","v":0},{"$f":"IF(INDEX(PC_MAPPING,MID($C44,4,1),MATCH($C$35,'Data by Building Type'!$D$22:$F$22,0))=\"Yes\",1,0)","v":0},{"$f":"IF(INDEX(PC_MAPPING,MID($C44,4,1),MATCH($C$35,'Data by Building Type'!$D$22:$F$22,0))=\"Yes\",1,0)","v":0},{"$f":"IF(INDEX(PC_MAPPING,MID($C44,4,1),MATCH($C$35,'Data by Building Type'!$D$22:$F$22,0))=\"Yes\",1,0)","v":0},{"$f":"IF(INDEX(PC_MAPPING,MID($C44,4,1),MATCH($C$35,'Data by Building Type'!$D$22:$F$22,0))=\"Yes\",1,0)","v":0},{"$f":"IF(INDEX(PC_MAPPING,MID($C44,4,1),MATCH($C$35,'Data by Building Type'!$D$22:$F$22,0))=\"Yes\",1,0)","v":0},{"$f":"IF(INDEX(PC_MAPPING,MID($C44,4,1),MATCH($C$35,'Data by Building Type'!$D$22:$F$22,0))=\"Yes\",1,0)","v":0},{"$f":"IF(INDEX(PC_MAPPING,MID($C44,4,1),MATCH($C$35,'Data by Building Type'!$D$22:$F$22,0))=\"Yes\",1,0)","v":0},{"$f":"IF(INDEX(PC_MAPPING,MID($C44,4,1),MATCH($C$35,'Data by Building Type'!$D$22:$F$22,0))=\"Yes\",1,0)","v":0},{"$f":"IF(INDEX(PC_MAPPING,MID($C44,4,1),MATCH($C$35,'Data by Building Type'!$D$22:$F$22,0))=\"Yes\",1,0)","v":0},{"$f":"IF(INDEX(PC_MAPPING,MID($C44,4,1),MATCH($C$35,'Data by Building Type'!$D$22:$F$22,0))=\"Yes\",1,0)","v":0},{"$f":"IF(INDEX(PC_MAPPING,MID($C44,4,1),MATCH($C$35,'Data by Building Type'!$D$22:$F$22,0))=\"Yes\",1,0)","v":0},{"$f":"IF(INDEX(PC_MAPPING,MID($C44,4,1),MATCH($C$35,'Data by Building Type'!$D$22:$F$22,0))=\"Yes\",1,0)","v":0},{"$f":"IF(INDEX(PC_MAPPING,MID($C44,4,1),MATCH($C$35,'Data by Building Type'!$D$22:$F$22,0))=\"Yes\",1,0)","v":0},{"$f":"IF(INDEX(PC_MAPPING,MID($C44,4,1),MATCH($C$35,'Data by Building Type'!$D$22:$F$22,0))=\"Yes\",1,0)","v":0},{"$f":"IF(INDEX(PC_MAPPING,MID($C44,4,1),MATCH($C$35,'Data by Building Type'!$D$22:$F$22,0))=\"Yes\",1,0)","v":0},{"$f":"IF(INDEX(PC_MAPPING,MID($C44,4,1),MATCH($C$35,'Data by Building Type'!$D$22:$F$22,0))=\"Yes\",1,0)","v":0},{"$f":"IF(INDEX(PC_MAPPING,MID($C44,4,1),MATCH($C$35,'Data by Building Type'!$D$22:$F$22,0))=\"Yes\",1,0)","v":0},{"$f":"IF(INDEX(PC_MAPPING,MID($C44,4,1),MATCH($C$35,'Data by Building Type'!$D$22:$F$22,0))=\"Yes\",1,0)","v":0},{"$f":"IF(INDEX(PC_MAPPING,MID($C44,4,1),MATCH($C$35,'Data by Building Type'!$D$22:$F$22,0))=\"Yes\",1,0)","v":0}]
[null,null,{"$f":"'Product Classes'!H17&\" - \"&OFFSET('Product Classes'!$C$9,MATCH('Product Classes'!H17,MODEL_PCS,0),0)","v":"PC 8 - Mobile Home Electric Furnace / Modular Blower Fan (MH-EF/MB)"},0,0,0,0,0,0,0,0,0,0,{"$f":"O45","v":0},0,0,0,0,0,0,0,0,0,0,0,0,0,0,0,0,0,0,0,0,{"$f":"IF(INDEX(PC_MAPPING,MID($C45,4,1),MATCH($C$35,'Data by Building Type'!$D$22:$F$22,0))=\"Yes\",1,0)","v":0},{"$f":"IF(INDEX(PC_MAPPING,MID($C45,4,1),MATCH($C$35,'Data by Building Type'!$D$22:$F$22,0))=\"Yes\",1,0)","v":0},{"$f":"IF(INDEX(PC_MAPPING,MID($C45,4,1),MATCH($C$35,'Data by Building Type'!$D$22:$F$22,0))=\"Yes\",1,0)","v":0},{"$f":"IF(INDEX(PC_MAPPING,MID($C45,4,1),MATCH($C$35,'Data by Building Type'!$D$22:$F$22,0))=\"Yes\",1,0)","v":0},{"$f":"IF(INDEX(PC_MAPPING,MID($C45,4,1),MATCH($C$35,'Data by Building Type'!$D$22:$F$22,0))=\"Yes\",1,0)","v":0},{"$f":"IF(INDEX(PC_MAPPING,MID($C45,4,1),MATCH($C$35,'Data by Building Type'!$D$22:$F$22,0))=\"Yes\",1,0)","v":0},{"$f":"IF(INDEX(PC_MAPPING,MID($C45,4,1),MATCH($C$35,'Data by Building Type'!$D$22:$F$22,0))=\"Yes\",1,0)","v":0},{"$f":"IF(INDEX(PC_MAPPING,MID($C45,4,1),MATCH($C$35,'Data by Building Type'!$D$22:$F$22,0))=\"Yes\",1,0)","v":0},{"$f":"IF(INDEX(PC_MAPPING,MID($C45,4,1),MATCH($C$35,'Data by Building Type'!$D$22:$F$22,0))=\"Yes\",1,0)","v":0},{"$f":"IF(INDEX(PC_MAPPING,MID($C45,4,1),MATCH($C$35,'Data by Building Type'!$D$22:$F$22,0))=\"Yes\",1,0)","v":0},{"$f":"IF(INDEX(PC_MAPPING,MID($C45,4,1),MATCH($C$35,'Data by Building Type'!$D$22:$F$22,0))=\"Yes\",1,0)","v":0},{"$f":"IF(INDEX(PC_MAPPING,MID($C45,4,1),MATCH($C$35,'Data by Building Type'!$D$22:$F$22,0))=\"Yes\",1,0)","v":0},{"$f":"IF(INDEX(PC_MAPPING,MID($C45,4,1),MATCH($C$35,'Data by Building Type'!$D$22:$F$22,0))=\"Yes\",1,0)","v":0},{"$f":"IF(INDEX(PC_MAPPING,MID($C45,4,1),MATCH($C$35,'Data by Building Type'!$D$22:$F$22,0))=\"Yes\",1,0)","v":0},{"$f":"IF(INDEX(PC_MAPPING,MID($C45,4,1),MATCH($C$35,'Data by Building Type'!$D$22:$F$22,0))=\"Yes\",1,0)","v":0},{"$f":"IF(INDEX(PC_MAPPING,MID($C45,4,1),MATCH($C$35,'Data by Building Type'!$D$22:$F$22,0))=\"Yes\",1,0)","v":0},{"$f":"IF(INDEX(PC_MAPPING,MID($C45,4,1),MATCH($C$35,'Data by Building Type'!$D$22:$F$22,0))=\"Yes\",1,0)","v":0},{"$f":"IF(INDEX(PC_MAPPING,MID($C45,4,1),MATCH($C$35,'Data by Building Type'!$D$22:$F$22,0))=\"Yes\",1,0)","v":0},{"$f":"IF(INDEX(PC_MAPPING,MID($C45,4,1),MATCH($C$35,'Data by Building Type'!$D$22:$F$22,0))=\"Yes\",1,0)","v":0},{"$f":"IF(INDEX(PC_MAPPING,MID($C45,4,1),MATCH($C$35,'Data by Building Type'!$D$22:$F$22,0))=\"Yes\",1,0)","v":0},{"$f":"IF(INDEX(PC_MAPPING,MID($C45,4,1),MATCH($C$35,'Data by Building Type'!$D$22:$F$22,0))=\"Yes\",1,0)","v":0},{"$f":"IF(INDEX(PC_MAPPING,MID($C45,4,1),MATCH($C$35,'Data by Building Type'!$D$22:$F$22,0))=\"Yes\",1,0)","v":0},{"$f":"IF(INDEX(PC_MAPPING,MID($C45,4,1),MATCH($C$35,'Data by Building Type'!$D$22:$F$22,0))=\"Yes\",1,0)","v":0}]
[]
[null,null,"POST-Case",1981,{"$f":"D47+1","v":1982},1983,1984,1985,1986,1987,1988,1989,1990,1991,1992,1993,1994,1995,1996,1997,1998,1999,2000,2001,2002,2003,2004,2005,2006,2007,2008,2009,2010,2011,2012,2013,2014,2015,2016,2017,2018,2019,2020,2021,2022,2023,2024,2025,2026,2027,2028,2029,2030,2031,2032,2033,2034]
[null,null,{"$f":"C38","v":"PC 1 - Non-Weatherized, Non-Condensing Gas Furnace Fan (NWG-NC)"},{"$f":"E48","v":0.3982437224248449},0.3982437224248449,{"$f":"G48","v":0.3982437224248449},{"$f":"H48","v":0.3982437224248449},{"$f":"I48","v":0.3982437224248449},{"$f":"J48","v":0.3982437224248449},{"$f":"K48","v":0.3982437224248449},{"$f":"L48","v":0.3982437224248449},{"$f":"M48","v":0.3982437224248449},{"$f":"N48","v":0.3982437224248449},{"$f":"O48","v":0.3982437224248449},0.3982437224248449,0.3982437224248449,0.3982437224248449,0.3982437224248449,0.3982437224248449,0.3982437224248449,0.3982437224248449,0.3982437224248449,0.3982437224248449,0.3982437224248449,0.3982437224248449,0.3982437224248449,0.3982437224248449,0.3982437224248449,0.3982437224248449,0.3982437224248449,0.3982437224248449,0.3982437224248449,0.3982437224248449,{"$f":"AI48","v":0.3982437224248449},{"$f":"IF(ISNUMBER(\n'National Shipments'!E$20/SUM('National Shipments'!E$20,'National Shipments'!E$30,'National Shipments'!E$40)\n*(1-SUM(AI$15:AI$19))),\n'National Shipments'!E$20/SUM('National Shipments'!E$20,'National Shipments'!E$30,'National Shipments'!E$40)\n*(1-SUM(AI$15:AI$19)),AH48)","v":0.3982437224248449},{"$f":"IF(ISNUMBER(\n'National Shipments'!F$20/SUM('National Shipments'!F$20,'National Shipments'!F$30,'National Shipments'!F$40)\n*(1-SUM(AJ$15:AJ$19))),\n'National Shipments'!F$20/SUM('National Shipments'!F$20,'National Shipments'!F$30,'National Shipments'!F$40)\n*(1-SUM(AJ$15:AJ$19)),AI48)","v":0.36247526161809795},{"$f":"IF(ISNUMBER(\n'National Shipments'!G$20/SUM('National Shipments'!G$20,'National Shipments'!G$30,'National Shipments'!G$40)\n*(1-SUM(AK$15:AK$19))),\n'National Shipments'!G$20/SUM('National Shipments'!G$20,'National Shipments'!G$30,'National Shipments'!G$40)\n*(1-SUM(AK$15:AK$19)),AJ48)","v":0.36326770300312838},{"$f":"IF(ISNUMBER(\n'National Shipments'!H$20/SUM('National Shipments'!H$20,'National Shipments'!H$30,'National Shipments'!H$40)\n*(1-SUM(AL$15:AL$19))),\n'National Shipments'!H$20/SUM('National Shipments'!H$20,'National Shipments'!H$30,'National Shipments'!H$40)\n*(1-SUM(AL$15:AL$19)),AK48)","v":0.36264759990499662},{"$f":"IF(ISNUMBER(\n'National Shipments'!I$20/SUM('National Shipments'!I$20,'National Shipments'!I$30,'National Shipments'!I$40)\n*(1-SUM(AM$15:AM$19))),\n'National Shipments'!I$20/SUM('National Shipments'!I$20,'National Shipments'!I$30,'National Shipments'!I$40)\n*(1-SUM(AM$15:AM$19)),AL48)","v":0.34261650258151988},{"$f":"IF(ISNUMBER(\n'National Shipments'!J$20/SUM('National Shipments'!J$20,'National Shipments'!J$30,'National Shipments'!J$40)\n*(1-SUM(AN$15:AN$19))),\n'National Shipments'!J$20/SUM('National Shipments'!J$20,'National Shipments'!J$30,'National Shipments'!J$40)\n*(1-SUM(AN$15:AN$19)),AM48)","v":0.320194705454525},{"$f":"IF(ISNUMBER(\n'National Shipments'!K$20/SUM('National Shipments'!K$20,'National Shipments'!K$30,'National Shipments'!K$40)\n*(1-SUM(AO$15:AO$19))),\n'National Shipments'!K$20/SUM('National Shipments'!K$20,'National Shipments'!K$30,'National Shipments'!K$40)\n*(1-SUM(AO$15:AO$19)),AN48)","v":0.35880630374616579},{"$f":"IF(ISNUMBER(\n'National Shipments'!L$20/SUM('National Shipments'!L$20,'National Shipments'!L$30,'National Shipments'!L$40)\n*(1-SUM(AP$15:AP$19))),\n'National Shipments'!L$20/SUM('National Shipments'!L$20,'National Shipments'!L$30,'National Shipments'!L$40)\n*(1-SUM(AP$15:AP$19)),AO48)","v":0.34981274400669965},{"$f":"IF(ISNUMBER(\n'National Shipments'!M$20/SUM('National Shipments'!M$20,'National Shipments'!M$30,'National Shipments'!M$40)\n*(1-SUM(AQ$15:AQ$19))),\n'National Shipments'!M$20/SUM('National Shipments'!M$20,'National Shipments'!M$30,'National Shipments'!M$40)\n*(1-SUM(AQ$15:AQ$19)),AP48)","v":0.3492514973514928},{"$f":"IF(ISNUMBER(\n'National Shipments'!N$20/SUM('National Shipments'!N$20,'National Shipments'!N$30,'National Shipments'!N$40)\n*(1-SUM(AR$15:AR$19))),\n'National Shipments'!N$20/SUM('National Shipments'!N$20,'National Shipments'!N$30,'National Shipments'!N$40)\n*(1-SUM(AR$15:AR$19)),AQ48)","v":0.34367117855427132},{"$f":"IF(ISNUMBER(\n'National Shipments'!O$20/SUM('National Shipments'!O$20,'National Shipments'!O$30,'National Shipments'!O$40)\n*(1-SUM(AS$15:AS$19))),\n'National Shipments'!O$20/SUM('National Shipments'!O$20,'National Shipments'!O$30,'National Shipments'!O$40)\n*(1-SUM(AS$15:AS$19)),AR48)","v":0.35476422762407178},{"$f":"IF(ISNUMBER(\n'National Shipments'!P$20/SUM('National Shipments'!P$20,'National Shipments'!P$30,'National Shipments'!P$40)\n*(1-SUM(AT$15:AT$19))),\n'National Shipments'!P$20/SUM('National Shipments'!P$20,'National Shipments'!P$30,'National Shipments'!P$40)\n*(1-SUM(AT$15:AT$19)),AS48)","v":0.34850347306598684},{"$f":"IF(ISNUMBER(\n'National Shipments'!Q$20/SUM('National Shipments'!Q$20,'National Shipments'!Q$30,'National Shipments'!Q$40)\n*(1-SUM(AU$15:AU$19))),\n'National Shipments'!Q$20/SUM('National Shipments'!Q$20,'National Shipments'!Q$30,'National Shipments'!Q$40)\n*(1-SUM(AU$15:AU$19)),AT48)","v":0.3421241670534963},{"$f":"IF(ISNUMBER(\n'National Shipments'!R$20/SUM('National Shipments'!R$20,'National Shipments'!R$30,'National Shipments'!R$40)\n*(1-SUM(AV$15:AV$19))),\n'National Shipments'!R$20/SUM('National Shipments'!R$20,'National Shipments'!R$30,'National Shipments'!R$40)\n*(1-SUM(AV$15:AV$19)),AU48)","v":0.33551698038653144},{"$f":"IF(ISNUMBER(\n'National Shipments'!S$20/SUM('National Shipments'!S$20,'National Shipments'!S$30,'National Shipments'!S$40)\n*(1-SUM(AW$15:AW$19))),\n'National Shipments'!S$20/SUM('National Shipments'!S$20,'National Shipments'!S$30,'National Shipments'!S$40)\n*(1-SUM(AW$15:AW$19)),AV48)","v":0.3286475229599175},{"$f":"IF(ISNUMBER(\n'National Shipments'!T$20/SUM('National Shipments'!T$20,'National Shipments'!T$30,'National Shipments'!T$40)\n*(1-SUM(AX$15:AX$19))),\n'National Shipments'!T$20/SUM('National Shipments'!T$20,'National Shipments'!T$30,'National Shipments'!T$40)\n*(1-SUM(AX$15:AX$19)),AW48)","v":0.32149875808447526},{"$f":"IF(ISNUMBER(\n'National Shipments'!U$20/SUM('National Shipments'!U$20,'National Shipments'!U$30,'National Shipments'!U$40)\n*(1-SUM(AY$15:AY$19))),\n'National Shipments'!U$20/SUM('National Shipments'!U$20,'National Shipments'!U$30,'National Shipments'!U$40)\n*(1-SUM(AY$15:AY$19)),AX48)","v":0.31412670467341258},{"$f":"IF(ISNUMBER(\n'National Shipments'!V$20/SUM('National Shipments'!V$20,'National Shipments'!V$30,'National Shipments'!V$40)\n*(1-SUM(AZ$15:AZ$19))),\n'National Shipments'!V$20/SUM('National Shipments'!V$20,'National Shipments'!V$30,'National Shipments'!V$40)\n*(1-SUM(AZ$15:AZ$19)),AY48)","v":0.30676829149179513},{"$f":"IF(ISNUMBER(\n'National Shipments'!W$20/SUM('National Shipments'!W$20,'National Shipments'!W$30,'National Shipments'!W$40)\n*(1-SUM(BA$15:BA$19))),\n'National Shipments'!W$20/SUM('National Shipments'!W$20,'National Shipments'!W$30,'National Shipments'!W$40)\n*(1-SUM(BA$15:BA$19)),AZ48)","v":0.2995633945410659},{"$f":"IF(ISNUMBER(\n'National Shipments'!X$20/SUM('National Shipments'!X$20,'National Shipments'!X$30,'National Shipments'!X$40)\n*(1-SUM(BB$15:BB$19))),\n'National Shipments'!X$20/SUM('National Shipments'!X$20,'National Shipments'!X$30,'National Shipments'!X$40)\n*(1-SUM(BB$15:BB$19)),BA48)","v":0.29207508981774188},{"$f":"IF(ISNUMBER(\n'National Shipments'!Y$20/SUM('National Shipments'!Y$20,'National Shipments'!Y$30,'National Shipments'!Y$40)\n*(1-SUM(BC$15:BC$19))),\n'National Shipments'!Y$20/SUM('National Shipments'!Y$20,'National Shipments'!Y$30,'National Shipments'!Y$40)\n*(1-SUM(BC$15:BC$19)),BB48)","v":0.28438190092444943},{"$f":"IF(ISNUMBER(\n'National Shipments'!Z$20/SUM('National Shipments'!Z$20,'National Shipments'!Z$30,'National Shipments'!Z$40)\n*(1-SUM(BD$15:BD$19))),\n'National Shipments'!Z$20/SUM('National Shipments'!Z$20,'National Shipments'!Z$30,'National Shipments'!Z$40)\n*(1-SUM(BD$15:BD$19)),BC48)","v":0.27749454243318195},{"$f":"IF(ISNUMBER(\n'National Shipments'!AA$20/SUM('National Shipments'!AA$20,'National Shipments'!AA$30,'National Shipments'!AA$40)\n*(1-SUM(BE$15:BE$19))),\n'National Shipments'!AA$20/SUM('National Shipments'!AA$20,'National Shipments'!AA$30,'National Shipments'!AA$40)\n*(1-SUM(BE$15:BE$19)),BD48)","v":0.27047570852986086}]
[null,null,{"$f":"C39","v":"PC 2 - Non-Weatherized, Condensing Gas Furnace Fan (NWG-C)"},0.36262801966593156,0.36262801966593156,0.36262801966593156,0.36262801966593156,0.36262801966593156,0.36262801966593156,0.36262801966593156,0.36262801966593156,0.36262801966593156,0.36262801966593156,{"$f":"O49","v":0.36262801966593156},0.36262801966593156,0.36262801966593156,0.36262801966593156,0.36262801966593156,0.36262801966593156,0.36262801966593156,0.36262801966593156,0.36262801966593156,0.36262801966593156,0.36262801966593156,0.36262801966593156,0.36262801966593156,0.36262801966593156,0.36262801966593156,0.36262801966593156,0.36262801966593156,0.36262801966593156,0.36262801966593156,0.36262801966593156,0.36262801966593156,{"$f":"IF(ISNUMBER(\n'National Shipments'!E$30/SUM('National Shipments'!E$20,'National Shipments'!E$30,'National Shipments'!E$40)\n*(1-SUM(AI$15:AI$19))),\n'National Shipments'!E$30/SUM('National Shipments'!E$20,'National Shipments'!E$30,'National Shipments'!E$40)\n*(1-SUM(AI$15:AI$19)),AH49)","v":0.36262801966593156},{"$f":"IF(ISNUMBER(\n'National Shipments'!F$30/SUM('National Shipments'!F$20,'National Shipments'!F$30,'National Shipments'!F$40)\n*(1-SUM(AJ$15:AJ$19))),\n'National Shipments'!F$30/SUM('National Shipments'!F$20,'National Shipments'!F$30,'National Shipments'!F$40)\n*(1-SUM(AJ$15:AJ$19)),AI49)","v":0.38358671627955682},{"$f":"IF(ISNUMBER(\n'National Shipments'!G$30/SUM('National Shipments'!G$20,'National Shipments'!G$30,'National Shipments'!G$40)\n*(1-SUM(AK$15:AK$19))),\n'National Shipments'!G$30/SUM('National Shipments'!G$20,'National Shipments'!G$30,'National Shipments'!G$40)\n*(1-SUM(AK$15:AK$19)),AJ49)","v":0.38390536480548193},{"$f":"IF(ISNUMBER(\n'National Shipments'!H$30/SUM('National Shipments'!H$20,'National Shipments'!H$30,'National Shipments'!H$40)\n*(1-SUM(AL$15:AL$19))),\n'National Shipments'!H$30/SUM('National Shipments'!H$20,'National Shipments'!H$30,'National Shipments'!H$40)\n*(1-SUM(AL$15:AL$19)),AK49)","v":0.38537842521791099},{"$f":"IF(ISNUMBER(\n'National Shipments'!I$30/SUM('National Shipments'!I$20,'National Shipments'!I$30,'National Shipments'!I$40)\n*(1-SUM(AM$15:AM$19))),\n'National Shipments'!I$30/SUM('National Shipments'!I$20,'National Shipments'!I$30,'National Shipments'!I$40)\n*(1-SUM(AM$15:AM$19)),AL49)","v":0.40052982126649134},{"$f":"IF(ISNUMBER(\n'National Shipments'!J$30/SUM('National Shipments'!J$20,'National Shipments'!J$30,'National Shipments'!J$40)\n*(1-SUM(AN$15:AN$19))),\n'National Shipments'!J$30/SUM('National Shipments'!J$20,'National Shipments'!J$30,'National Shipments'!J$40)\n*(1-SUM(AN$15:AN$19)),AM49)","v":0.41743605723464572},{"$f":"IF(ISNUMBER(\n'National Shipments'!K$30/SUM('National Shipments'!K$20,'National Shipments'!K$30,'National Shipments'!K$40)\n*(1-SUM(AO$15:AO$19))),\n'National Shipments'!K$30/SUM('National Shipments'!K$20,'National Shipments'!K$30,'National Shipments'!K$40)\n*(1-SUM(AO$15:AO$19)),AN49)","v":0.38706396532962301},{"$f":"IF(ISNUMBER(\n'National Shipments'!L$30/SUM('National Shipments'!L$20,'National Shipments'!L$30,'National Shipments'!L$40)\n*(1-SUM(AP$15:AP$19))),\n'National Shipments'!L$30/SUM('National Shipments'!L$20,'National Shipments'!L$30,'National Shipments'!L$40)\n*(1-SUM(AP$15:AP$19)),AO49)","v":0.39941274108067731},{"$f":"IF(ISNUMBER(\n'National Shipments'!M$30/SUM('National Shipments'!M$20,'National Shipments'!M$30,'National Shipments'!M$40)\n*(1-SUM(AQ$15:AQ$19))),\n'National Shipments'!M$30/SUM('National Shipments'!M$20,'National Shipments'!M$30,'National Shipments'!M$40)\n*(1-SUM(AQ$15:AQ$19)),AP49)","v":0.40103767400085433},{"$f":"IF(ISNUMBER(\n'National Shipments'!N$30/SUM('National Shipments'!N$20,'National Shipments'!N$30,'National Shipments'!N$40)\n*(1-SUM(AR$15:AR$19))),\n'National Shipments'!N$30/SUM('National Shipments'!N$20,'National Shipments'!N$30,'National Shipments'!N$40)\n*(1-SUM(AR$15:AR$19)),AQ49)","v":0.40658220613296697},{"$f":"IF(ISNUMBER(\n'National Shipments'!O$30/SUM('National Shipments'!O$20,'National Shipments'!O$30,'National Shipments'!O$40)\n*(1-SUM(AS$15:AS$19))),\n'National Shipments'!O$30/SUM('National Shipments'!O$20,'National Shipments'!O$30,'National Shipments'!O$40)\n*(1-SUM(AS$15:AS$19)),AR49)","v":0.40163954850187639},{"$f":"IF(ISNUMBER(\n'National Shipments'!P$30/SUM('National Shipments'!P$20,'National Shipments'!P$30,'National Shipments'!P$40)\n*(1-SUM(AT$15:AT$19))),\n'National Shipments'!P$30/SUM('National Shipments'!P$20,'National Shipments'!P$30,'National Shipments'!P$40)\n*(1-SUM(AT$15:AT$19)),AS49)","v":0.40781274860503863},{"$f":"IF(ISNUMBER(\n'National Shipments'!Q$30/SUM('National Shipments'!Q$20,'National Shipments'!Q$30,'National Shipments'!Q$40)\n*(1-SUM(AU$15:AU$19))),\n'National Shipments'!Q$30/SUM('National Shipments'!Q$20,'National Shipments'!Q$30,'National Shipments'!Q$40)\n*(1-SUM(AU$15:AU$19)),AT49)","v":0.41410262281810806},{"$f":"IF(ISNUMBER(\n'National Shipments'!R$30/SUM('National Shipments'!R$20,'National Shipments'!R$30,'National Shipments'!R$40)\n*(1-SUM(AV$15:AV$19))),\n'National Shipments'!R$30/SUM('National Shipments'!R$20,'National Shipments'!R$30,'National Shipments'!R$40)\n*(1-SUM(AV$15:AV$19)),AU49)","v":0.42062570958632722},{"$f":"IF(ISNUMBER(\n'National Shipments'!S$30/SUM('National Shipments'!S$20,'National Shipments'!S$30,'National Shipments'!S$40)\n*(1-SUM(AW$15:AW$19))),\n'National Shipments'!S$30/SUM('National Shipments'!S$20,'National Shipments'!S$30,'National Shipments'!S$40)\n*(1-SUM(AW$15:AW$19)),AV49)","v":0.42741960528830225},{"$f":"IF(ISNUMBER(\n'National Shipments'!T$30/SUM('National Shipments'!T$20,'National Shipments'!T$30,'National Shipments'!T$40)\n*(1-SUM(AX$15:AX$19))),\n'National Shipments'!T$30/SUM('National Shipments'!T$20,'National Shipments'!T$30,'National Shipments'!T$40)\n*(1-SUM(AX$15:AX$19)),AW49)","v":0.43447913839260116},{"$f":"IF(ISNUMBER(\n'National Shipments'!U$30/SUM('National Shipments'!U$20,'National Shipments'!U$30,'National Shipments'!U$40)\n*(1-SUM(AY$15:AY$19))),\n'National Shipments'!U$30/SUM('National Shipments'!U$20,'National Shipments'!U$30,'National Shipments'!U$40)\n*(1-SUM(AY$15:AY$19)),AX49)","v":0.44177366664031259},{"$f":"IF(ISNUMBER(\n'National Shipments'!V$30/SUM('National Shipments'!V$20,'National Shipments'!V$30,'National Shipments'!V$40)\n*(1-SUM(AZ$15:AZ$19))),\n'National Shipments'!V$30/SUM('National Shipments'!V$20,'National Shipments'!V$30,'National Shipments'!V$40)\n*(1-SUM(AZ$15:AZ$19)),AY49)","v":0.44904952919708152},{"$f":"IF(ISNUMBER(\n'National Shipments'!W$30/SUM('National Shipments'!W$20,'National Shipments'!W$30,'National Shipments'!W$40)\n*(1-SUM(BA$15:BA$19))),\n'National Shipments'!W$30/SUM('National Shipments'!W$20,'National Shipments'!W$30,'National Shipments'!W$40)\n*(1-SUM(BA$15:BA$19)),AZ49)","v":0.45617083200161024},{"$f":"IF(ISNUMBER(\n'National Shipments'!X$30/SUM('National Shipments'!X$20,'National Shipments'!X$30,'National Shipments'!X$40)\n*(1-SUM(BB$15:BB$19))),\n'National Shipments'!X$30/SUM('National Shipments'!X$20,'National Shipments'!X$30,'National Shipments'!X$40)\n*(1-SUM(BB$15:BB$19)),BA49)","v":0.46357427907458432},{"$f":"IF(ISNUMBER(\n'National Shipments'!Y$30/SUM('National Shipments'!Y$20,'National Shipments'!Y$30,'National Shipments'!Y$40)\n*(1-SUM(BC$15:BC$19))),\n'National Shipments'!Y$30/SUM('National Shipments'!Y$20,'National Shipments'!Y$30,'National Shipments'!Y$40)\n*(1-SUM(BC$15:BC$19)),BB49)","v":0.47118901282509118},{"$f":"IF(ISNUMBER(\n'National Shipments'!Z$30/SUM('National Shipments'!Z$20,'National Shipments'!Z$30,'National Shipments'!Z$40)\n*(1-SUM(BD$15:BD$19))),\n'National Shipments'!Z$30/SUM('National Shipments'!Z$20,'National Shipments'!Z$30,'National Shipments'!Z$40)\n*(1-SUM(BD$15:BD$19)),BC49)","v":0.47802501192673558},{"$f":"IF(ISNUMBER(\n'National Shipments'!AA$30/SUM('National Shipments'!AA$20,'National Shipments'!AA$30,'National Shipments'!AA$40)\n*(1-SUM(BE$15:BE$19))),\n'National Shipments'!AA$30/SUM('National Shipments'!AA$20,'National Shipments'!AA$30,'National Shipments'!AA$40)\n*(1-SUM(BE$15:BE$19)),BD49)","v":0.48498784187768962}]
[null,null,"PC 3 - Weatherized Non-Condensing Gas Furnace Fan (WG-NC)",7.4128257909223463E-2,7.4128257909223463E-2,7.4128257909223463E-2,7.4128257909223463E-2,7.4128257909223463E-2,7.4128257909223463E-2,7.4128257909223463E-2,7.4128257909223463E-2,7.4128257909223463E-2,7.4128257909223463E-2,{"$f":"O50","v":7.4128257909223463E-2},7.4128257909223463E-2,7.4128257909223463E-2,7.4128257909223463E-2,7.4128257909223463E-2,7.4128257909223463E-2,7.4128257909223463E-2,7.4128257909223463E-2,7.4128257909223463E-2,7.4128257909223463E-2,7.4128257909223463E-2,7.4128257909223463E-2,7.4128257909223463E-2,7.4128257909223463E-2,7.4128257909223463E-2,7.4128257909223463E-2,7.4128257909223463E-2,7.4128257909223463E-2,7.4128257909223463E-2,7.4128257909223463E-2,7.4128257909223463E-2,{"$f":"IF(ISNUMBER(\n'National Shipments'!E$40/SUM('National Shipments'!E$20,'National Shipments'!E$30,'National Shipments'!E$40)\n*(1-SUM(AI$15:AI$19))),\n'National Shipments'!E$40/SUM('National Shipments'!E$20,'National Shipments'!E$30,'National Shipments'!E$40)\n*(1-SUM(AI$15:AI$19)),AH50)","v":7.4128257909223463E-2},{"$f":"IF(ISNUMBER(\n'National Shipments'!F$40/SUM('National Shipments'!F$20,'National Shipments'!F$30,'National Shipments'!F$40)\n*(1-SUM(AJ$15:AJ$19))),\n'National Shipments'!F$40/SUM('National Shipments'!F$20,'National Shipments'!F$30,'National Shipments'!F$40)\n*(1-SUM(AJ$15:AJ$19)),AI50)","v":8.8938022102345041E-2},{"$f":"IF(ISNUMBER(\n'National Shipments'!G$40/SUM('National Shipments'!G$20,'National Shipments'!G$30,'National Shipments'!G$40)\n*(1-SUM(AK$15:AK$19))),\n'National Shipments'!G$40/SUM('National Shipments'!G$20,'National Shipments'!G$30,'National Shipments'!G$40)\n*(1-SUM(AK$15:AK$19)),AJ50)","v":8.7826932191389692E-2},{"$f":"IF(ISNUMBER(\n'National Shipments'!H$40/SUM('National Shipments'!H$20,'National Shipments'!H$30,'National Shipments'!H$40)\n*(1-SUM(AL$15:AL$19))),\n'National Shipments'!H$40/SUM('National Shipments'!H$20,'National Shipments'!H$30,'National Shipments'!H$40)\n*(1-SUM(AL$15:AL$19)),AK50)","v":8.6973974877092283E-2},{"$f":"IF(ISNUMBER(\n'National Shipments'!I$40/SUM('National Shipments'!I$20,'National Shipments'!I$30,'National Shipments'!I$40)\n*(1-SUM(AM$15:AM$19))),\n'National Shipments'!I$40/SUM('National Shipments'!I$20,'National Shipments'!I$30,'National Shipments'!I$40)\n*(1-SUM(AM$15:AM$19)),AL50)","v":9.1853676151988681E-2},{"$f":"IF(ISNUMBER(\n'National Shipments'!J$40/SUM('National Shipments'!J$20,'National Shipments'!J$30,'National Shipments'!J$40)\n*(1-SUM(AN$15:AN$19))),\n'National Shipments'!J$40/SUM('National Shipments'!J$20,'National Shipments'!J$30,'National Shipments'!J$40)\n*(1-SUM(AN$15:AN$19)),AM50)","v":9.7369237310829221E-2},{"$f":"IF(ISNUMBER(\n'National Shipments'!K$40/SUM('National Shipments'!K$20,'National Shipments'!K$30,'National Shipments'!K$40)\n*(1-SUM(AO$15:AO$19))),\n'National Shipments'!K$40/SUM('National Shipments'!K$20,'National Shipments'!K$30,'National Shipments'!K$40)\n*(1-SUM(AO$15:AO$19)),AN50)","v":8.9129730924211101E-2},{"$f":"IF(ISNUMBER(\n'National Shipments'!L$40/SUM('National Shipments'!L$20,'National Shipments'!L$30,'National Shipments'!L$40)\n*(1-SUM(AP$15:AP$19))),\n'National Shipments'!L$40/SUM('National Shipments'!L$20,'National Shipments'!L$30,'National Shipments'!L$40)\n*(1-SUM(AP$15:AP$19)),AO50)","v":8.5774514912622973E-2},{"$f":"IF(ISNUMBER(\n'National Shipments'!M$40/SUM('National Shipments'!M$20,'National Shipments'!M$30,'National Shipments'!M$40)\n*(1-SUM(AQ$15:AQ$19))),\n'National Shipments'!M$40/SUM('National Shipments'!M$20,'National Shipments'!M$30,'National Shipments'!M$40)\n*(1-SUM(AQ$15:AQ$19)),AP50)","v":8.4710828647652892E-2},{"$f":"IF(ISNUMBER(\n'National Shipments'!N$40/SUM('National Shipments'!N$20,'National Shipments'!N$30,'National Shipments'!N$40)\n*(1-SUM(AR$15:AR$19))),\n'National Shipments'!N$40/SUM('National Shipments'!N$20,'National Shipments'!N$30,'National Shipments'!N$40)\n*(1-SUM(AR$15:AR$19)),AQ50)","v":8.4746615312761786E-2},{"$f":"IF(ISNUMBER(\n'National Shipments'!O$40/SUM('National Shipments'!O$20,'National Shipments'!O$30,'National Shipments'!O$40)\n*(1-SUM(AS$15:AS$19))),\n'National Shipments'!O$40/SUM('National Shipments'!O$20,'National Shipments'!O$30,'National Shipments'!O$40)\n*(1-SUM(AS$15:AS$19)),AR50)","v":7.8596223874051852E-2},{"$f":"IF(ISNUMBER(\n'National Shipments'!P$40/SUM('National Shipments'!P$20,'National Shipments'!P$30,'National Shipments'!P$40)\n*(1-SUM(AT$15:AT$19))),\n'National Shipments'!P$40/SUM('National Shipments'!P$20,'National Shipments'!P$30,'National Shipments'!P$40)\n*(1-SUM(AT$15:AT$19)),AS50)","v":7.8683778328974593E-2},{"$f":"IF(ISNUMBER(\n'National Shipments'!Q$40/SUM('National Shipments'!Q$20,'National Shipments'!Q$30,'National Shipments'!Q$40)\n*(1-SUM(AU$15:AU$19))),\n'National Shipments'!Q$40/SUM('National Shipments'!Q$20,'National Shipments'!Q$30,'National Shipments'!Q$40)\n*(1-SUM(AU$15:AU$19)),AT50)","v":7.8773210128395568E-2},{"$f":"IF(ISNUMBER(\n'National Shipments'!R$40/SUM('National Shipments'!R$20,'National Shipments'!R$30,'National Shipments'!R$40)\n*(1-SUM(AV$15:AV$19))),\n'National Shipments'!R$40/SUM('National Shipments'!R$20,'National Shipments'!R$30,'National Shipments'!R$40)\n*(1-SUM(AV$15:AV$19)),AU50)","v":7.8857310027141261E-2},{"$f":"IF(ISNUMBER(\n'National Shipments'!S$40/SUM('National Shipments'!S$20,'National Shipments'!S$30,'National Shipments'!S$40)\n*(1-SUM(AW$15:AW$19))),\n'National Shipments'!S$40/SUM('National Shipments'!S$20,'National Shipments'!S$30,'National Shipments'!S$40)\n*(1-SUM(AW$15:AW$19)),AV50)","v":7.8932871751780168E-2},{"$f":"IF(ISNUMBER(\n'National Shipments'!T$40/SUM('National Shipments'!T$20,'National Shipments'!T$30,'National Shipments'!T$40)\n*(1-SUM(AX$15:AX$19))),\n'National Shipments'!T$40/SUM('National Shipments'!T$20,'National Shipments'!T$30,'National Shipments'!T$40)\n*(1-SUM(AX$15:AX$19)),AW50)","v":7.902210352292359E-2},{"$f":"IF(ISNUMBER(\n'National Shipments'!U$40/SUM('National Shipments'!U$20,'National Shipments'!U$30,'National Shipments'!U$40)\n*(1-SUM(AY$15:AY$19))),\n'National Shipments'!U$40/SUM('National Shipments'!U$20,'National Shipments'!U$30,'National Shipments'!U$40)\n*(1-SUM(AY$15:AY$19)),AX50)","v":7.9099628686274903E-2},{"$f":"IF(ISNUMBER(\n'National Shipments'!V$40/SUM('National Shipments'!V$20,'National Shipments'!V$30,'National Shipments'!V$40)\n*(1-SUM(AZ$15:AZ$19))),\n'National Shipments'!V$40/SUM('National Shipments'!V$20,'National Shipments'!V$30,'National Shipments'!V$40)\n*(1-SUM(AZ$15:AZ$19)),AY50)","v":7.918217931112323E-2},{"$f":"IF(ISNUMBER(\n'National Shipments'!W$40/SUM('National Shipments'!W$20,'National Shipments'!W$30,'National Shipments'!W$40)\n*(1-SUM(BA$15:BA$19))),\n'National Shipments'!W$40/SUM('National Shipments'!W$20,'National Shipments'!W$30,'National Shipments'!W$40)\n*(1-SUM(BA$15:BA$19)),AZ50)","v":7.926577345732394E-2},{"$f":"IF(ISNUMBER(\n'National Shipments'!X$40/SUM('National Shipments'!X$20,'National Shipments'!X$30,'National Shipments'!X$40)\n*(1-SUM(BB$15:BB$19))),\n'National Shipments'!X$40/SUM('National Shipments'!X$20,'National Shipments'!X$30,'National Shipments'!X$40)\n*(1-SUM(BB$15:BB$19)),BA50)","v":7.9350631107673736E-2},{"$f":"IF(ISNUMBER(\n'National Shipments'!Y$40/SUM('National Shipments'!Y$20,'National Shipments'!Y$30,'National Shipments'!Y$40)\n*(1-SUM(BC$15:BC$19))),\n'National Shipments'!Y$40/SUM('National Shipments'!Y$20,'National Shipments'!Y$30,'National Shipments'!Y$40)\n*(1-SUM(BC$15:BC$19)),BB50)","v":7.9429086250459371E-2},{"$f":"IF(ISNUMBER(\n'National Shipments'!Z$40/SUM('National Shipments'!Z$20,'National Shipments'!Z$30,'National Shipments'!Z$40)\n*(1-SUM(BD$15:BD$19))),\n'National Shipments'!Z$40/SUM('National Shipments'!Z$20,'National Shipments'!Z$30,'National Shipments'!Z$40)\n*(1-SUM(BD$15:BD$19)),BC50)","v":7.9480445640082414E-2},{"$f":"IF(ISNUMBER(\n'National Shipments'!AA$40/SUM('National Shipments'!AA$20,'National Shipments'!AA$30,'National Shipments'!AA$40)\n*(1-SUM(BE$15:BE$19))),\n'National Shipments'!AA$40/SUM('National Shipments'!AA$20,'National Shipments'!AA$30,'National Shipments'!AA$40)\n*(1-SUM(BE$15:BE$19)),BD50)","v":7.9536449592449557E-2}]
[null,null,"PC 4 - Non-Weatherized, Non-Condensing Oil Furnace Fan (NWO-NC)",0,0,0,0,0,0,0,0,0,0,{"$f":"O51","v":0},0,0,0,0,0,0,0,0,0,0,0,0,0,0,0,0,0,0,0,0,{"$f":"'Data by Building Type'!$E$17","v":0},{"$f":"'Data by Building Type'!$E$17","v":0},{"$f":"'Data by Building Type'!$E$17","v":0},{"$f":"'Data by Building Type'!$E$17","v":0},{"$f":"'Data by Building Type'!$E$17","v":0},{"$f":"'Data by Building Type'!$E$17","v":0},{"$f":"'Data by Building Type'!$E$17","v":0},{"$f":"'Data by Building Type'!$E$17","v":0},{"$f":"'Data by Building Type'!$E$17","v":0},{"$f":"'Data by Building Type'!$E$17","v":0},{"$f":"'Data by Building Type'!$E$17","v":0},{"$f":"'Data by Building Type'!$E$17","v":0},{"$f":"'Data by Building Type'!$E$17","v":0},{"$f":"'Data by Building Type'!$E$17","v":0},{"$f":"'Data by Building Type'!$E$17","v":0},{"$f":"'Data by Building Type'!$E$17","v":0},{"$f":"'Data by Building Type'!$E$17","v":0},{"$f":"'Data by Building Type'!$E$17","v":0},{"$f":"'Data by Building Type'!$E$17","v":0},{"$f":"'Data by Building Type'!$E$17","v":0},{"$f":"'Data by Building Type'!$E$17","v":0},{"$f":"'Data by Building Type'!$E$17","v":0},{"$f":"'Data by Building Type'!$E$17","v":0}]
[null,null,"PC 5 - Non-Weatherized Electric Furnace / Modular Blower Fan (NWEF/NWMB)",0.20512820512820512,0.20512820512820512,0.20512820512820512,0.20512820512820512,0.20512820512820512,0.20512820512820512,0.20512820512820512,0.20512820512820512,0.20512820512820512,0.20512820512820512,{"$f":"O52","v":0.20512820512820512},0.20512820512820512,0.20512820512820512,0.20512820512820512,0.20512820512820512,0.20512820512820512,0.20512820512820512,0.20512820512820512,0.20512820512820512,0.20512820512820512,0.20512820512820512,0.20512820512820512,0.20512820512820512,0.20512820512820512,0.20512820512820512,0.20512820512820512,0.20512820512820512,0.20512820512820512,0.20512820512820512,0.20512820512820512,0.20512820512820512,{"$f":"'Data by Building Type'!$E$15","v":0.20512820512820512},{"$f":"'Data by Building Type'!$E$15","v":0.20512820512820512},{"$f":"'Data by Building Type'!$E$15","v":0.20512820512820512},{"$f":"'Data by Building Type'!$E$15","v":0.20512820512820512},{"$f":"'Data by Building Type'!$E$15","v":0.20512820512820512},{"$f":"'Data by Building Type'!$E$15","v":0.20512820512820512},{"$f":"'Data by Building Type'!$E$15","v":0.20512820512820512},{"$f":"'Data by Building Type'!$E$15","v":0.20512820512820512},{"$f":"'Data by Building Type'!$E$15","v":0.20512820512820512},{"$f":"'Data by Building Type'!$E$15","v":0.20512820512820512},{"$f":"'Data by Building Type'!$E$15","v":0.20512820512820512},{"$f":"'Data by Building Type'!$E$15","v":0.20512820512820512},{"$f":"'Data by Building Type'!$E$15","v":0.20512820512820512},{"$f":"'Data by Building Type'!$E$15","v":0.20512820512820512},{"$f":"'Data by Building Type'!$E$15","v":0.20512820512820512},{"$f":"'Data by Building Type'!$E$15","v":0.20512820512820512},{"$f":"'Data by Building Type'!$E$15","v":0.20512820512820512},{"$f":"'Data by Building Type'!$E$15","v":0.20512820512820512},{"$f":"'Data by Building Type'!$E$15","v":0.20512820512820512},{"$f":"'Data by Building Type'!$E$15","v":0.20512820512820512},{"$f":"'Data by Building Type'!$E$15","v":0.20512820512820512},{"$f":"'Data by Building Type'!$E$15","v":0.20512820512820512},{"$f":"'Data by Building Type'!$E$15","v":0.20512820512820512}]
[null,null,"PC 6 - Mobile Home Non-Weatherized, Non-Condensing Gas Furnace Fan (MH-NWG-NC)",0,0,0,0,0,0,0,0,0,0,{"$f":"O53","v":0},0,0,0,0,0,0,0,0,0,0,0,0,0,0,0,0,0,0,0,0,{"$f":"IF(INDEX(PC_MAPPING,MID($C53,4,1),MATCH($C$35,'Data by Building Type'!$D$22:$F$22,0))=\"Yes\",1,0)","v":0},{"$f":"IF(INDEX(PC_MAPPING,MID($C53,4,1),MATCH($C$35,'Data by Building Type'!$D$22:$F$22,0))=\"Yes\",1,0)","v":0},{"$f":"IF(INDEX(PC_MAPPING,MID($C53,4,1),MATCH($C$35,'Data by Building Type'!$D$22:$F$22,0))=\"Yes\",1,0)","v":0},{"$f":"IF(INDEX(PC_MAPPING,MID($C53,4,1),MATCH($C$35,'Data by Building Type'!$D$22:$F$22,0))=\"Yes\",1,0)","v":0},{"$f":"IF(INDEX(PC_MAPPING,MID($C53,4,1),MATCH($C$35,'Data by Building Type'!$D$22:$F$22,0))=\"Yes\",1,0)","v":0},{"$f":"IF(INDEX(PC_MAPPING,MID($C53,4,1),MATCH($C$35,'Data by Building Type'!$D$22:$F$22,0))=\"Yes\",1,0)","v":0},{"$f":"IF(INDEX(PC_MAPPING,MID($C53,4,1),MATCH($C$35,'Data by Building Type'!$D$22:$F$22,0))=\"Yes\",1,0)","v":0},{"$f":"IF(INDEX(PC_MAPPING,MID($C53,4,1),MATCH($C$35,'Data by Building Type'!$D$22:$F$22,0))=\"Yes\",1,0)","v":0},{"$f":"IF(INDEX(PC_MAPPING,MID($C53,4,1),MATCH($C$35,'Data by Building Type'!$D$22:$F$22,0))=\"Yes\",1,0)","v":0},{"$f":"IF(INDEX(PC_MAPPING,MID($C53,4,1),MATCH($C$35,'Data by Building Type'!$D$22:$F$22,0))=\"Yes\",1,0)","v":0},{"$f":"IF(INDEX(PC_MAPPING,MID($C53,4,1),MATCH($C$35,'Data by Building Type'!$D$22:$F$22,0))=\"Yes\",1,0)","v":0},{"$f":"IF(INDEX(PC_MAPPING,MID($C53,4,1),MATCH($C$35,'Data by Building Type'!$D$22:$F$22,0))=\"Yes\",1,0)","v":0},{"$f":"IF(INDEX(PC_MAPPING,MID($C53,4,1),MATCH($C$35,'Data by Building Type'!$D$22:$F$22,0))=\"Yes\",1,0)","v":0},{"$f":"IF(INDEX(PC_MAPPING,MID($C53,4,1),MATCH($C$35,'Data by Building Type'!$D$22:$F$22,0))=\"Yes\",1,0)","v":0},{"$f":"IF(INDEX(PC_MAPPING,MID($C53,4,1),MATCH($C$35,'Data by Building Type'!$D$22:$F$22,0))=\"Yes\",1,0)","v":0},{"$f":"IF(INDEX(PC_MAPPING,MID($C53,4,1),MATCH($C$35,'Data by Building Type'!$D$22:$F$22,0))=\"Yes\",1,0)","v":0},{"$f":"IF(INDEX(PC_MAPPING,MID($C53,4,1),MATCH($C$35,'Data by Building Type'!$D$22:$F$22,0))=\"Yes\",1,0)","v":0},{"$f":"IF(INDEX(PC_MAPPING,MID($C53,4,1),MATCH($C$35,'Data by Building Type'!$D$22:$F$22,0))=\"Yes\",1,0)","v":0},{"$f":"IF(INDEX(PC_MAPPING,MID($C53,4,1),MATCH($C$35,'Data by Building Type'!$D$22:$F$22,0))=\"Yes\",1,0)","v":0},{"$f":"IF(INDEX(PC_MAPPING,MID($C53,4,1),MATCH($C$35,'Data by Building Type'!$D$22:$F$22,0))=\"Yes\",1,0)","v":0},{"$f":"IF(INDEX(PC_MAPPING,MID($C53,4,1),MATCH($C$35,'Data by Building Type'!$D$22:$F$22,0))=\"Yes\",1,0)","v":0},{"$f":"IF(INDEX(PC_MAPPING,MID($C53,4,1),MATCH($C$35,'Data by Building Type'!$D$22:$F$22,0))=\"Yes\",1,0)","v":0},{"$f":"IF(INDEX(PC_MAPPING,MID($C53,4,1),MATCH($C$35,'Data by Building Type'!$D$22:$F$22,0))=\"Yes\",1,0)","v":0}]
[null,null,"PC 7 - Mobile Home Non-Weatherized, Condensing Gas Furnace Fan (MH-NWG-C)",0,0,0,0,0,0,0,0,0,0,{"$f":"O54","v":0},0,0,0,0,0,0,0,0,0,0,0,0,0,0,0,0,0,0,0,0,{"$f":"IF(INDEX(PC_MAPPING,MID($C54,4,1),MATCH($C$35,'Data by Building Type'!$D$22:$F$22,0))=\"Yes\",1,0)","v":0},{"$f":"IF(INDEX(PC_MAPPING,MID($C54,4,1),MATCH($C$35,'Data by Building Type'!$D$22:$F$22,0))=\"Yes\",1,0)","v":0},{"$f":"IF(INDEX(PC_MAPPING,MID($C54,4,1),MATCH($C$35,'Data by Building Type'!$D$22:$F$22,0))=\"Yes\",1,0)","v":0},{"$f":"IF(INDEX(PC_MAPPING,MID($C54,4,1),MATCH($C$35,'Data by Building Type'!$D$22:$F$22,0))=\"Yes\",1,0)","v":0},{"$f":"IF(INDEX(PC_MAPPING,MID($C54,4,1),MATCH($C$35,'Data by Building Type'!$D$22:$F$22,0))=\"Yes\",1,0)","v":0},{"$f":"IF(INDEX(PC_MAPPING,MID($C54,4,1),MATCH($C$35,'Data by Building Type'!$D$22:$F$22,0))=\"Yes\",1,0)","v":0},{"$f":"IF(INDEX(PC_MAPPING,MID($C54,4,1),MATCH($C$35,'Data by Building Type'!$D$22:$F$22,0))=\"Yes\",1,0)","v":0},{"$f":"IF(INDEX(PC_MAPPING,MID($C54,4,1),MATCH($C$35,'Data by Building Type'!$D$22:$F$22,0))=\"Yes\",1,0)","v":0},{"$f":"IF(INDEX(PC_MAPPING,MID($C54,4,1),MATCH($C$35,'Data by Building Type'!$D$22:$F$22,0))=\"Yes\",1,0)","v":0},{"$f":"IF(INDEX(PC_MAPPING,MID($C54,4,1),MATCH($C$35,'Data by Building Type'!$D$22:$F$22,0))=\"Yes\",1,0)","v":0},{"$f":"IF(INDEX(PC_MAPPING,MID($C54,4,1),MATCH($C$35,'Data by Building Type'!$D$22:$F$22,0))=\"Yes\",1,0)","v":0},{"$f":"IF(INDEX(PC_MAPPING,MID($C54,4,1),MATCH($C$35,'Data by Building Type'!$D$22:$F$22,0))=\"Yes\",1,0)","v":0},{"$f":"IF(INDEX(PC_MAPPING,MID($C54,4,1),MATCH($C$35,'Data by Building Type'!$D$22:$F$22,0))=\"Yes\",1,0)","v":0},{"$f":"IF(INDEX(PC_MAPPING,MID($C54,4,1),MATCH($C$35,'Data by Building Type'!$D$22:$F$22,0))=\"Yes\",1,0)","v":0},{"$f":"IF(INDEX(PC_MAPPING,MID($C54,4,1),MATCH($C$35,'Data by Building Type'!$D$22:$F$22,0))=\"Yes\",1,0)","v":0},{"$f":"IF(INDEX(PC_MAPPING,MID($C54,4,1),MATCH($C$35,'Data by Building Type'!$D$22:$F$22,0))=\"Yes\",1,0)","v":0},{"$f":"IF(INDEX(PC_MAPPING,MID($C54,4,1),MATCH($C$35,'Data by Building Type'!$D$22:$F$22,0))=\"Yes\",1,0)","v":0},{"$f":"IF(INDEX(PC_MAPPING,MID($C54,4,1),MATCH($C$35,'Data by Building Type'!$D$22:$F$22,0))=\"Yes\",1,0)","v":0},{"$f":"IF(INDEX(PC_MAPPING,MID($C54,4,1),MATCH($C$35,'Data by Building Type'!$D$22:$F$22,0))=\"Yes\",1,0)","v":0},{"$f":"IF(INDEX(PC_MAPPING,MID($C54,4,1),MATCH($C$35,'Data by Building Type'!$D$22:$F$22,0))=\"Yes\",1,0)","v":0},{"$f":"IF(INDEX(PC_MAPPING,MID($C54,4,1),MATCH($C$35,'Data by Building Type'!$D$22:$F$22,0))=\"Yes\",1,0)","v":0},{"$f":"IF(INDEX(PC_MAPPING,MID($C54,4,1),MATCH($C$35,'Data by Building Type'!$D$22:$F$22,0))=\"Yes\",1,0)","v":0},{"$f":"IF(INDEX(PC_MAPPING,MID($C54,4,1),MATCH($C$35,'Data by Building Type'!$D$22:$F$22,0))=\"Yes\",1,0)","v":0}]
[null,null,"PC 8 - Mobile Home Electric Furnace / Modular Blower Fan (MH-EF/MB)",0,0,0,0,0,0,0,0,0,0,{"$f":"O55","v":0},0,0,0,0,0,0,0,0,0,0,0,0,0,0,0,0,0,0,0,0,{"$f":"IF(INDEX(PC_MAPPING,MID($C55,4,1),MATCH($C$35,'Data by Building Type'!$D$22:$F$22,0))=\"Yes\",1,0)","v":0},{"$f":"IF(INDEX(PC_MAPPING,MID($C55,4,1),MATCH($C$35,'Data by Building Type'!$D$22:$F$22,0))=\"Yes\",1,0)","v":0},{"$f":"IF(INDEX(PC_MAPPING,MID($C55,4,1),MATCH($C$35,'Data by Building Type'!$D$22:$F$22,0))=\"Yes\",1,0)","v":0},{"$f":"IF(INDEX(PC_MAPPING,MID($C55,4,1),MATCH($C$35,'Data by Building Type'!$D$22:$F$22,0))=\"Yes\",1,0)","v":0},{"$f":"IF(INDEX(PC_MAPPING,MID($C55,4,1),MATCH($C$35,'Data by Building Type'!$D$22:$F$22,0))=\"Yes\",1,0)","v":0},{"$f":"IF(INDEX(PC_MAPPING,MID($C55,4,1),MATCH($C$35,'Data by Building Type'!$D$22:$F$22,0))=\"Yes\",1,0)","v":0},{"$f":"IF(INDEX(PC_MAPPING,MID($C55,4,1),MATCH($C$35,'Data by Building Type'!$D$22:$F$22,0))=\"Yes\",1,0)","v":0},{"$f":"IF(INDEX(PC_MAPPING,MID($C55,4,1),MATCH($C$35,'Data by Building Type'!$D$22:$F$22,0))=\"Yes\",1,0)","v":0},{"$f":"IF(INDEX(PC_MAPPING,MID($C55,4,1),MATCH($C$35,'Data by Building Type'!$D$22:$F$22,0))=\"Yes\",1,0)","v":0},{"$f":"IF(INDEX(PC_MAPPING,MID($C55,4,1),MATCH($C$35,'Data by Building Type'!$D$22:$F$22,0))=\"Yes\",1,0)","v":0},{"$f":"IF(INDEX(PC_MAPPING,MID($C55,4,1),MATCH($C$35,'Data by Building Type'!$D$22:$F$22,0))=\"Yes\",1,0)","v":0},{"$f":"IF(INDEX(PC_MAPPING,MID($C55,4,1),MATCH($C$35,'Data by Building Type'!$D$22:$F$22,0))=\"Yes\",1,0)","v":0},{"$f":"IF(INDEX(PC_MAPPING,MID($C55,4,1),MATCH($C$35,'Data by Building Type'!$D$22:$F$22,0))=\"Yes\",1,0)","v":0},{"$f":"IF(INDEX(PC_MAPPING,MID($C55,4,1),MATCH($C$35,'Data by Building Type'!$D$22:$F$22,0))=\"Yes\",1,0)","v":0},{"$f":"IF(INDEX(PC_MAPPING,MID($C55,4,1),MATCH($C$35,'Data by Building Type'!$D$22:$F$22,0))=\"Yes\",1,0)","v":0},{"$f":"IF(INDEX(PC_MAPPING,MID($C55,4,1),MATCH($C$35,'Data by Building Type'!$D$22:$F$22,0))=\"Yes\",1,0)","v":0},{"$f":"IF(INDEX(PC_MAPPING,MID($C55,4,1),MATCH($C$35,'Data by Building Type'!$D$22:$F$22,0))=\"Yes\",1,0)","v":0},{"$f":"IF(INDEX(PC_MAPPING,MID($C55,4,1),MATCH($C$35,'Data by Building Type'!$D$22:$F$22,0))=\"Yes\",1,0)","v":0},{"$f":"IF(INDEX(PC_MAPPING,MID($C55,4,1),MATCH($C$35,'Data by Building Type'!$D$22:$F$22,0))=\"Yes\",1,0)","v":0},{"$f":"IF(INDEX(PC_MAPPING,MID($C55,4,1),MATCH($C$35,'Data by Building Type'!$D$22:$F$22,0))=\"Yes\",1,0)","v":0},{"$f":"IF(INDEX(PC_MAPPING,MID($C55,4,1),MATCH($C$35,'Data by Building Type'!$D$22:$F$22,0))=\"Yes\",1,0)","v":0},{"$f":"IF(INDEX(PC_MAPPING,MID($C55,4,1),MATCH($C$35,'Data by Building Type'!$D$22:$F$22,0))=\"Yes\",1,0)","v":0},{"$f":"IF(INDEX(PC_MAPPING,MID($C55,4,1),MATCH($C$35,'Data by Building Type'!$D$22:$F$22,0))=\"Yes\",1,0)","v":0}]
[]
[null,null,"Source/Rationale"]
[]
[]
[]
[null,null,"Manufactured Homes"]
[]
[null,null,"PRE-Case",1981,{"$f":"D63+1","v":1982},1983,1984,1985,1986,1987,1988,1989,1990,1991,1992,1993,1994,1995,1996,1997,1998,1999,2000,2001,2002,2003,2004,2005,2006,2007,2008,2009,2010,2011,2012,2013,2014,2015,2016,2017,2018,2019,2020,2021,2022,2023,2024,2025,2026,2027,2028,2029,2030,2031,2032,2033,2034]
[null,null,{"$f":"'Product Classes'!H10&\" - \"&OFFSET('Product Classes'!$C$9,MATCH('Product Classes'!H10,MODEL_PCS,0),0)","v":"PC 1 - Non-Weatherized, Non-Condensing Gas Furnace Fan (NWG-NC)"},{"$f":"E64","v":0},0,{"$f":"G64","v":0},{"$f":"H64","v":0},{"$f":"I64","v":0},{"$f":"J64","v":0},{"$f":"K64","v":0},{"$f":"L64","v":0},{"$f":"M64","v":0},{"$f":"N64","v":0},{"$f":"O64","v":0},0,0,0,0,0,0,0,0,0,0,0,0,0,0,0,0,0,0,0,{"$f":"AI64","v":0},{"$f":"IF(INDEX(PC_MAPPING,MID($C64,4,1),MATCH($C$61,'Data by Building Type'!$D$22:$F$22,0))=\"Yes\",1,0)","v":0},{"$f":"IF(INDEX(PC_MAPPING,MID($C64,4,1),MATCH($C$61,'Data by Building Type'!$D$22:$F$22,0))=\"Yes\",1,0)","v":0},{"$f":"IF(INDEX(PC_MAPPING,MID($C64,4,1),MATCH($C$61,'Data by Building Type'!$D$22:$F$22,0))=\"Yes\",1,0)","v":0},{"$f":"IF(INDEX(PC_MAPPING,MID($C64,4,1),MATCH($C$61,'Data by Building Type'!$D$22:$F$22,0))=\"Yes\",1,0)","v":0},{"$f":"IF(INDEX(PC_MAPPING,MID($C64,4,1),MATCH($C$61,'Data by Building Type'!$D$22:$F$22,0))=\"Yes\",1,0)","v":0},{"$f":"IF(INDEX(PC_MAPPING,MID($C64,4,1),MATCH($C$61,'Data by Building Type'!$D$22:$F$22,0))=\"Yes\",1,0)","v":0},{"$f":"IF(INDEX(PC_MAPPING,MID($C64,4,1),MATCH($C$61,'Data by Building Type'!$D$22:$F$22,0))=\"Yes\",1,0)","v":0},{"$f":"IF(INDEX(PC_MAPPING,MID($C64,4,1),MATCH($C$61,'Data by Building Type'!$D$22:$F$22,0))=\"Yes\",1,0)","v":0},{"$f":"IF(INDEX(PC_MAPPING,MID($C64,4,1),MATCH($C$61,'Data by Building Type'!$D$22:$F$22,0))=\"Yes\",1,0)","v":0},{"$f":"IF(INDEX(PC_MAPPING,MID($C64,4,1),MATCH($C$61,'Data by Building Type'!$D$22:$F$22,0))=\"Yes\",1,0)","v":0},{"$f":"IF(INDEX(PC_MAPPING,MID($C64,4,1),MATCH($C$61,'Data by Building Type'!$D$22:$F$22,0))=\"Yes\",1,0)","v":0},{"$f":"IF(INDEX(PC_MAPPING,MID($C64,4,1),MATCH($C$61,'Data by Building Type'!$D$22:$F$22,0))=\"Yes\",1,0)","v":0},{"$f":"IF(INDEX(PC_MAPPING,MID($C64,4,1),MATCH($C$61,'Data by Building Type'!$D$22:$F$22,0))=\"Yes\",1,0)","v":0},{"$f":"IF(INDEX(PC_MAPPING,MID($C64,4,1),MATCH($C$61,'Data by Building Type'!$D$22:$F$22,0))=\"Yes\",1,0)","v":0},{"$f":"IF(INDEX(PC_MAPPING,MID($C64,4,1),MATCH($C$61,'Data by Building Type'!$D$22:$F$22,0))=\"Yes\",1,0)","v":0},{"$f":"IF(INDEX(PC_MAPPING,MID($C64,4,1),MATCH($C$61,'Data by Building Type'!$D$22:$F$22,0))=\"Yes\",1,0)","v":0},{"$f":"IF(INDEX(PC_MAPPING,MID($C64,4,1),MATCH($C$61,'Data by Building Type'!$D$22:$F$22,0))=\"Yes\",1,0)","v":0},{"$f":"IF(INDEX(PC_MAPPING,MID($C64,4,1),MATCH($C$61,'Data by Building Type'!$D$22:$F$22,0))=\"Yes\",1,0)","v":0},{"$f":"IF(INDEX(PC_MAPPING,MID($C64,4,1),MATCH($C$61,'Data by Building Type'!$D$22:$F$22,0))=\"Yes\",1,0)","v":0},{"$f":"IF(INDEX(PC_MAPPING,MID($C64,4,1),MATCH($C$61,'Data by Building Type'!$D$22:$F$22,0))=\"Yes\",1,0)","v":0},{"$f":"IF(INDEX(PC_MAPPING,MID($C64,4,1),MATCH($C$61,'Data by Building Type'!$D$22:$F$22,0))=\"Yes\",1,0)","v":0},{"$f":"IF(INDEX(PC_MAPPING,MID($C64,4,1),MATCH($C$61,'Data by Building Type'!$D$22:$F$22,0))=\"Yes\",1,0)","v":0},{"$f":"IF(INDEX(PC_MAPPING,MID($C64,4,1),MATCH($C$61,'Data by Building Type'!$D$22:$F$22,0))=\"Yes\",1,0)","v":0}]
[null,null,{"$f":"'Product Classes'!H11&\" - \"&OFFSET('Product Classes'!$C$9,MATCH('Product Classes'!H11,MODEL_PCS,0),0)","v":"PC 2 - Non-Weatherized, Condensing Gas Furnace Fan (NWG-C)"},0,0,0,0,0,0,0,0,0,0,{"$f":"O65","v":0},0,0,0,0,0,0,0,0,0,0,0,0,0,0,0,0,0,0,0,0,{"$f":"IF(INDEX(PC_MAPPING,MID($C65,4,1),MATCH($C$61,'Data by Building Type'!$D$22:$F$22,0))=\"Yes\",1,0)","v":0},{"$f":"IF(INDEX(PC_MAPPING,MID($C65,4,1),MATCH($C$61,'Data by Building Type'!$D$22:$F$22,0))=\"Yes\",1,0)","v":0},{"$f":"IF(INDEX(PC_MAPPING,MID($C65,4,1),MATCH($C$61,'Data by Building Type'!$D$22:$F$22,0))=\"Yes\",1,0)","v":0},{"$f":"IF(INDEX(PC_MAPPING,MID($C65,4,1),MATCH($C$61,'Data by Building Type'!$D$22:$F$22,0))=\"Yes\",1,0)","v":0},{"$f":"IF(INDEX(PC_MAPPING,MID($C65,4,1),MATCH($C$61,'Data by Building Type'!$D$22:$F$22,0))=\"Yes\",1,0)","v":0},{"$f":"IF(INDEX(PC_MAPPING,MID($C65,4,1),MATCH($C$61,'Data by Building Type'!$D$22:$F$22,0))=\"Yes\",1,0)","v":0},{"$f":"IF(INDEX(PC_MAPPING,MID($C65,4,1),MATCH($C$61,'Data by Building Type'!$D$22:$F$22,0))=\"Yes\",1,0)","v":0},{"$f":"IF(INDEX(PC_MAPPING,MID($C65,4,1),MATCH($C$61,'Data by Building Type'!$D$22:$F$22,0))=\"Yes\",1,0)","v":0},{"$f":"IF(INDEX(PC_MAPPING,MID($C65,4,1),MATCH($C$61,'Data by Building Type'!$D$22:$F$22,0))=\"Yes\",1,0)","v":0},{"$f":"IF(INDEX(PC_MAPPING,MID($C65,4,1),MATCH($C$61,'Data by Building Type'!$D$22:$F$22,0))=\"Yes\",1,0)","v":0},{"$f":"IF(INDEX(PC_MAPPING,MID($C65,4,1),MATCH($C$61,'Data by Building Type'!$D$22:$F$22,0))=\"Yes\",1,0)","v":0},{"$f":"IF(INDEX(PC_MAPPING,MID($C65,4,1),MATCH($C$61,'Data by Building Type'!$D$22:$F$22,0))=\"Yes\",1,0)","v":0},{"$f":"IF(INDEX(PC_MAPPING,MID($C65,4,1),MATCH($C$61,'Data by Building Type'!$D$22:$F$22,0))=\"Yes\",1,0)","v":0},{"$f":"IF(INDEX(PC_MAPPING,MID($C65,4,1),MATCH($C$61,'Data by Building Type'!$D$22:$F$22,0))=\"Yes\",1,0)","v":0},{"$f":"IF(INDEX(PC_MAPPING,MID($C65,4,1),MATCH($C$61,'Data by Building Type'!$D$22:$F$22,0))=\"Yes\",1,0)","v":0},{"$f":"IF(INDEX(PC_MAPPING,MID($C65,4,1),MATCH($C$61,'Data by Building Type'!$D$22:$F$22,0))=\"Yes\",1,0)","v":0},{"$f":"IF(INDEX(PC_MAPPING,MID($C65,4,1),MATCH($C$61,'Data by Building Type'!$D$22:$F$22,0))=\"Yes\",1,0)","v":0},{"$f":"IF(INDEX(PC_MAPPING,MID($C65,4,1),MATCH($C$61,'Data by Building Type'!$D$22:$F$22,0))=\"Yes\",1,0)","v":0},{"$f":"IF(INDEX(PC_MAPPING,MID($C65,4,1),MATCH($C$61,'Data by Building Type'!$D$22:$F$22,0))=\"Yes\",1,0)","v":0},{"$f":"IF(INDEX(PC_MAPPING,MID($C65,4,1),MATCH($C$61,'Data by Building Type'!$D$22:$F$22,0))=\"Yes\",1,0)","v":0},{"$f":"IF(INDEX(PC_MAPPING,MID($C65,4,1),MATCH($C$61,'Data by Building Type'!$D$22:$F$22,0))=\"Yes\",1,0)","v":0},{"$f":"IF(INDEX(PC_MAPPING,MID($C65,4,1),MATCH($C$61,'Data by Building Type'!$D$22:$F$22,0))=\"Yes\",1,0)","v":0},{"$f":"IF(INDEX(PC_MAPPING,MID($C65,4,1),MATCH($C$61,'Data by Building Type'!$D$22:$F$22,0))=\"Yes\",1,0)","v":0}]
[null,null,{"$f":"'Product Classes'!H12&\" - \"&OFFSET('Product Classes'!$C$9,MATCH('Product Classes'!H12,MODEL_PCS,0),0)","v":"PC 3 - Weatherized Non-Condensing Gas Furnace Fan (WG-NC)"},0,0,0,0,0,0,0,0,0,0,{"$f":"O66","v":0},0,0,0,0,0,0,0,0,0,0,0,0,0,0,0,0,0,0,0,0,{"$f":"IF(INDEX(PC_MAPPING,MID($C66,4,1),MATCH($C$61,'Data by Building Type'!$D$22:$F$22,0))=\"Yes\",1,0)","v":0},{"$f":"IF(INDEX(PC_MAPPING,MID($C66,4,1),MATCH($C$61,'Data by Building Type'!$D$22:$F$22,0))=\"Yes\",1,0)","v":0},{"$f":"IF(INDEX(PC_MAPPING,MID($C66,4,1),MATCH($C$61,'Data by Building Type'!$D$22:$F$22,0))=\"Yes\",1,0)","v":0},{"$f":"IF(INDEX(PC_MAPPING,MID($C66,4,1),MATCH($C$61,'Data by Building Type'!$D$22:$F$22,0))=\"Yes\",1,0)","v":0},{"$f":"IF(INDEX(PC_MAPPING,MID($C66,4,1),MATCH($C$61,'Data by Building Type'!$D$22:$F$22,0))=\"Yes\",1,0)","v":0},{"$f":"IF(INDEX(PC_MAPPING,MID($C66,4,1),MATCH($C$61,'Data by Building Type'!$D$22:$F$22,0))=\"Yes\",1,0)","v":0},{"$f":"IF(INDEX(PC_MAPPING,MID($C66,4,1),MATCH($C$61,'Data by Building Type'!$D$22:$F$22,0))=\"Yes\",1,0)","v":0},{"$f":"IF(INDEX(PC_MAPPING,MID($C66,4,1),MATCH($C$61,'Data by Building Type'!$D$22:$F$22,0))=\"Yes\",1,0)","v":0},{"$f":"IF(INDEX(PC_MAPPING,MID($C66,4,1),MATCH($C$61,'Data by Building Type'!$D$22:$F$22,0))=\"Yes\",1,0)","v":0},{"$f":"IF(INDEX(PC_MAPPING,MID($C66,4,1),MATCH($C$61,'Data by Building Type'!$D$22:$F$22,0))=\"Yes\",1,0)","v":0},{"$f":"IF(INDEX(PC_MAPPING,MID($C66,4,1),MATCH($C$61,'Data by Building Type'!$D$22:$F$22,0))=\"Yes\",1,0)","v":0},{"$f":"IF(INDEX(PC_MAPPING,MID($C66,4,1),MATCH($C$61,'Data by Building Type'!$D$22:$F$22,0))=\"Yes\",1,0)","v":0},{"$f":"IF(INDEX(PC_MAPPING,MID($C66,4,1),MATCH($C$61,'Data by Building Type'!$D$22:$F$22,0))=\"Yes\",1,0)","v":0},{"$f":"IF(INDEX(PC_MAPPING,MID($C66,4,1),MATCH($C$61,'Data by Building Type'!$D$22:$F$22,0))=\"Yes\",1,0)","v":0},{"$f":"IF(INDEX(PC_MAPPING,MID($C66,4,1),MATCH($C$61,'Data by Building Type'!$D$22:$F$22,0))=\"Yes\",1,0)","v":0},{"$f":"IF(INDEX(PC_MAPPING,MID($C66,4,1),MATCH($C$61,'Data by Building Type'!$D$22:$F$22,0))=\"Yes\",1,0)","v":0},{"$f":"IF(INDEX(PC_MAPPING,MID($C66,4,1),MATCH($C$61,'Data by Building Type'!$D$22:$F$22,0))=\"Yes\",1,0)","v":0},{"$f":"IF(INDEX(PC_MAPPING,MID($C66,4,1),MATCH($C$61,'Data by Building Type'!$D$22:$F$22,0))=\"Yes\",1,0)","v":0},{"$f":"IF(INDEX(PC_MAPPING,MID($C66,4,1),MATCH($C$61,'Data by Building Type'!$D$22:$F$22,0))=\"Yes\",1,0)","v":0},{"$f":"IF(INDEX(PC_MAPPING,MID($C66,4,1),MATCH($C$61,'Data by Building Type'!$D$22:$F$22,0))=\"Yes\",1,0)","v":0},{"$f":"IF(INDEX(PC_MAPPING,MID($C66,4,1),MATCH($C$61,'Data by Building Type'!$D$22:$F$22,0))=\"Yes\",1,0)","v":0},{"$f":"IF(INDEX(PC_MAPPING,MID($C66,4,1),MATCH($C$61,'Data by Building Type'!$D$22:$F$22,0))=\"Yes\",1,0)","v":0},{"$f":"IF(INDEX(PC_MAPPING,MID($C66,4,1),MATCH($C$61,'Data by Building Type'!$D$22:$F$22,0))=\"Yes\",1,0)","v":0}]
[null,null,{"$f":"'Product Classes'!H13&\" - \"&OFFSET('Product Classes'!$C$9,MATCH('Product Classes'!H13,MODEL_PCS,0),0)","v":"PC 4 - Non-Weatherized, Non-Condensing Oil Furnace Fan (NWO-NC)"},0,0,0,0,0,0,0,0,0,0,{"$f":"O67","v":0},0,0,0,0,0,0,0,0,0,0,0,0,0,0,0,0,0,0,0,0,{"$f":"IF(INDEX(PC_MAPPING,MID($C67,4,1),MATCH($C$61,'Data by Building Type'!$D$22:$F$22,0))=\"Yes\",1,0)","v":0},{"$f":"IF(INDEX(PC_MAPPING,MID($C67,4,1),MATCH($C$61,'Data by Building Type'!$D$22:$F$22,0))=\"Yes\",1,0)","v":0},{"$f":"IF(INDEX(PC_MAPPING,MID($C67,4,1),MATCH($C$61,'Data by Building Type'!$D$22:$F$22,0))=\"Yes\",1,0)","v":0},{"$f":"IF(INDEX(PC_MAPPING,MID($C67,4,1),MATCH($C$61,'Data by Building Type'!$D$22:$F$22,0))=\"Yes\",1,0)","v":0},{"$f":"IF(INDEX(PC_MAPPING,MID($C67,4,1),MATCH($C$61,'Data by Building Type'!$D$22:$F$22,0))=\"Yes\",1,0)","v":0},{"$f":"IF(INDEX(PC_MAPPING,MID($C67,4,1),MATCH($C$61,'Data by Building Type'!$D$22:$F$22,0))=\"Yes\",1,0)","v":0},{"$f":"IF(INDEX(PC_MAPPING,MID($C67,4,1),MATCH($C$61,'Data by Building Type'!$D$22:$F$22,0))=\"Yes\",1,0)","v":0},{"$f":"IF(INDEX(PC_MAPPING,MID($C67,4,1),MATCH($C$61,'Data by Building Type'!$D$22:$F$22,0))=\"Yes\",1,0)","v":0},{"$f":"IF(INDEX(PC_MAPPING,MID($C67,4,1),MATCH($C$61,'Data by Building Type'!$D$22:$F$22,0))=\"Yes\",1,0)","v":0},{"$f":"IF(INDEX(PC_MAPPING,MID($C67,4,1),MATCH($C$61,'Data by Building Type'!$D$22:$F$22,0))=\"Yes\",1,0)","v":0},{"$f":"IF(INDEX(PC_MAPPING,MID($C67,4,1),MATCH($C$61,'Data by Building Type'!$D$22:$F$22,0))=\"Yes\",1,0)","v":0},{"$f":"IF(INDEX(PC_MAPPING,MID($C67,4,1),MATCH($C$61,'Data by Building Type'!$D$22:$F$22,0))=\"Yes\",1,0)","v":0},{"$f":"IF(INDEX(PC_MAPPING,MID($C67,4,1),MATCH($C$61,'Data by Building Type'!$D$22:$F$22,0))=\"Yes\",1,0)","v":0},{"$f":"IF(INDEX(PC_MAPPING,MID($C67,4,1),MATCH($C$61,'Data by Building Type'!$D$22:$F$22,0))=\"Yes\",1,0)","v":0},{"$f":"IF(INDEX(PC_MAPPING,MID($C67,4,1),MATCH($C$61,'Data by Building Type'!$D$22:$F$22,0))=\"Yes\",1,0)","v":0},{"$f":"IF(INDEX(PC_MAPPING,MID($C67,4,1),MATCH($C$61,'Data by Building Type'!$D$22:$F$22,0))=\"Yes\",1,0)","v":0},{"$f":"IF(INDEX(PC_MAPPING,MID($C67,4,1),MATCH($C$61,'Data by Building Type'!$D$22:$F$22,0))=\"Yes\",1,0)","v":0},{"$f":"IF(INDEX(PC_MAPPING,MID($C67,4,1),MATCH($C$61,'Data by Building Type'!$D$22:$F$22,0))=\"Yes\",1,0)","v":0},{"$f":"IF(INDEX(PC_MAPPING,MID($C67,4,1),MATCH($C$61,'Data by Building Type'!$D$22:$F$22,0))=\"Yes\",1,0)","v":0},{"$f":"IF(INDEX(PC_MAPPING,MID($C67,4,1),MATCH($C$61,'Data by Building Type'!$D$22:$F$22,0))=\"Yes\",1,0)","v":0},{"$f":"IF(INDEX(PC_MAPPING,MID($C67,4,1),MATCH($C$61,'Data by Building Type'!$D$22:$F$22,0))=\"Yes\",1,0)","v":0},{"$f":"IF(INDEX(PC_MAPPING,MID($C67,4,1),MATCH($C$61,'Data by Building Type'!$D$22:$F$22,0))=\"Yes\",1,0)","v":0},{"$f":"IF(INDEX(PC_MAPPING,MID($C67,4,1),MATCH($C$61,'Data by Building Type'!$D$22:$F$22,0))=\"Yes\",1,0)","v":0}]
[null,null,{"$f":"'Product Classes'!H14&\" - \"&OFFSET('Product Classes'!$C$9,MATCH('Product Classes'!H14,MODEL_PCS,0),0)","v":"PC 5 - Non-Weatherized Electric Furnace / Modular Blower Fan (NWEF/NWMB)"},0,0,0,0,0,0,0,0,0,0,{"$f":"O68","v":0},0,0,0,0,0,0,0,0,0,0,0,0,0,0,0,0,0,0,0,0,{"$f":"IF(INDEX(PC_MAPPING,MID($C68,4,1),MATCH($C$61,'Data by Building Type'!$D$22:$F$22,0))=\"Yes\",1,0)","v":0},{"$f":"IF(INDEX(PC_MAPPING,MID($C68,4,1),MATCH($C$61,'Data by Building Type'!$D$22:$F$22,0))=\"Yes\",1,0)","v":0},{"$f":"IF(INDEX(PC_MAPPING,MID($C68,4,1),MATCH($C$61,'Data by Building Type'!$D$22:$F$22,0))=\"Yes\",1,0)","v":0},{"$f":"IF(INDEX(PC_MAPPING,MID($C68,4,1),MATCH($C$61,'Data by Building Type'!$D$22:$F$22,0))=\"Yes\",1,0)","v":0},{"$f":"IF(INDEX(PC_MAPPING,MID($C68,4,1),MATCH($C$61,'Data by Building Type'!$D$22:$F$22,0))=\"Yes\",1,0)","v":0},{"$f":"IF(INDEX(PC_MAPPING,MID($C68,4,1),MATCH($C$61,'Data by Building Type'!$D$22:$F$22,0))=\"Yes\",1,0)","v":0},{"$f":"IF(INDEX(PC_MAPPING,MID($C68,4,1),MATCH($C$61,'Data by Building Type'!$D$22:$F$22,0))=\"Yes\",1,0)","v":0},{"$f":"IF(INDEX(PC_MAPPING,MID($C68,4,1),MATCH($C$61,'Data by Building Type'!$D$22:$F$22,0))=\"Yes\",1,0)","v":0},{"$f":"IF(INDEX(PC_MAPPING,MID($C68,4,1),MATCH($C$61,'Data by Building Type'!$D$22:$F$22,0))=\"Yes\",1,0)","v":0},{"$f":"IF(INDEX(PC_MAPPING,MID($C68,4,1),MATCH($C$61,'Data by Building Type'!$D$22:$F$22,0))=\"Yes\",1,0)","v":0},{"$f":"IF(INDEX(PC_MAPPING,MID($C68,4,1),MATCH($C$61,'Data by Building Type'!$D$22:$F$22,0))=\"Yes\",1,0)","v":0},{"$f":"IF(INDEX(PC_MAPPING,MID($C68,4,1),MATCH($C$61,'Data by Building Type'!$D$22:$F$22,0))=\"Yes\",1,0)","v":0},{"$f":"IF(INDEX(PC_MAPPING,MID($C68,4,1),MATCH($C$61,'Data by Building Type'!$D$22:$F$22,0))=\"Yes\",1,0)","v":0},{"$f":"IF(INDEX(PC_MAPPING,MID($C68,4,1),MATCH($C$61,'Data by Building Type'!$D$22:$F$22,0))=\"Yes\",1,0)","v":0},{"$f":"IF(INDEX(PC_MAPPING,MID($C68,4,1),MATCH($C$61,'Data by Building Type'!$D$22:$F$22,0))=\"Yes\",1,0)","v":0},{"$f":"IF(INDEX(PC_MAPPING,MID($C68,4,1),MATCH($C$61,'Data by Building Type'!$D$22:$F$22,0))=\"Yes\",1,0)","v":0},{"$f":"IF(INDEX(PC_MAPPING,MID($C68,4,1),MATCH($C$61,'Data by Building Type'!$D$22:$F$22,0))=\"Yes\",1,0)","v":0},{"$f":"IF(INDEX(PC_MAPPING,MID($C68,4,1),MATCH($C$61,'Data by Building Type'!$D$22:$F$22,0))=\"Yes\",1,0)","v":0},{"$f":"IF(INDEX(PC_MAPPING,MID($C68,4,1),MATCH($C$61,'Data by Building Type'!$D$22:$F$22,0))=\"Yes\",1,0)","v":0},{"$f":"IF(INDEX(PC_MAPPING,MID($C68,4,1),MATCH($C$61,'Data by Building Type'!$D$22:$F$22,0))=\"Yes\",1,0)","v":0},{"$f":"IF(INDEX(PC_MAPPING,MID($C68,4,1),MATCH($C$61,'Data by Building Type'!$D$22:$F$22,0))=\"Yes\",1,0)","v":0},{"$f":"IF(INDEX(PC_MAPPING,MID($C68,4,1),MATCH($C$61,'Data by Building Type'!$D$22:$F$22,0))=\"Yes\",1,0)","v":0},{"$f":"IF(INDEX(PC_MAPPING,MID($C68,4,1),MATCH($C$61,'Data by Building Type'!$D$22:$F$22,0))=\"Yes\",1,0)","v":0}]
[null,null,{"$f":"'Product Classes'!H15&\" - \"&OFFSET('Product Classes'!$C$9,MATCH('Product Classes'!H15,MODEL_PCS,0),0)","v":"PC 6 - Mobile Home Non-Weatherized, Non-Condensing Gas Furnace Fan (MH-NWG-NC)"},0.17469347902702301,0.17469347902702301,0.17469347902702301,0.17469347902702301,0.17469347902702301,0.17469347902702301,0.17469347902702301,0.17469347902702301,0.17469347902702301,0.17469347902702301,{"$f":"O69","v":0.17469347902702301},0.17469347902702301,0.17469347902702301,0.17469347902702301,0.17469347902702301,0.17469347902702301,0.17469347902702301,0.17469347902702301,0.17469347902702301,0.17469347902702301,0.17469347902702301,0.17469347902702301,0.17469347902702301,0.17469347902702301,0.17469347902702301,0.17469347902702301,0.17469347902702301,0.17469347902702301,0.17469347902702301,0.17469347902702301,0.17469347902702301,{"$f":"IF(ISNUMBER(\n'National Shipments'!E$70/SUM('National Shipments'!E$70,'National Shipments'!E$80)\n*(1-AI$71)),\n'National Shipments'!E$70/SUM('National Shipments'!E$70,'National Shipments'!E$80)\n*(1-AI$71),AH69)","v":0.17469347902702301},{"$f":"IF(ISNUMBER(\n'National Shipments'!F$70/SUM('National Shipments'!F$70,'National Shipments'!F$80)\n*(1-AJ$71)),\n'National Shipments'!F$70/SUM('National Shipments'!F$70,'National Shipments'!F$80)\n*(1-AJ$71),AI69)","v":0.1546363038042535},{"$f":"IF(ISNUMBER(\n'National Shipments'!G$70/SUM('National Shipments'!G$70,'National Shipments'!G$80)\n*(1-AK$71)),\n'National Shipments'!G$70/SUM('National Shipments'!G$70,'National Shipments'!G$80)\n*(1-AK$71),AJ69)","v":0.15659480819041202},{"$f":"IF(ISNUMBER(\n'National Shipments'!H$70/SUM('National Shipments'!H$70,'National Shipments'!H$80)\n*(1-AL$71)),\n'National Shipments'!H$70/SUM('National Shipments'!H$70,'National Shipments'!H$80)\n*(1-AL$71),AK69)","v":0.15814593391992054},{"$f":"IF(ISNUMBER(\n'National Shipments'!I$70/SUM('National Shipments'!I$70,'National Shipments'!I$80)\n*(1-AM$71)),\n'National Shipments'!I$70/SUM('National Shipments'!I$70,'National Shipments'!I$80)\n*(1-AM$71),AL69)","v":0.1592600803491982},{"$f":"IF(ISNUMBER(\n'National Shipments'!J$70/SUM('National Shipments'!J$70,'National Shipments'!J$80)\n*(1-AN$71)),\n'National Shipments'!J$70/SUM('National Shipments'!J$70,'National Shipments'!J$80)\n*(1-AN$71),AM69)","v":0.15951065445454629},{"$f":"IF(ISNUMBER(\n'National Shipments'!K$70/SUM('National Shipments'!K$70,'National Shipments'!K$80)\n*(1-AO$71)),\n'National Shipments'!K$70/SUM('National Shipments'!K$70,'National Shipments'!K$80)\n*(1-AO$71),AN69)","v":0.15902762820536323},{"$f":"IF(ISNUMBER(\n'National Shipments'!L$70/SUM('National Shipments'!L$70,'National Shipments'!L$80)\n*(1-AP$71)),\n'National Shipments'!L$70/SUM('National Shipments'!L$70,'National Shipments'!L$80)\n*(1-AP$71),AO69)","v":0.16570998014067526},{"$f":"IF(ISNUMBER(\n'National Shipments'!M$70/SUM('National Shipments'!M$70,'National Shipments'!M$80)\n*(1-AQ$71)),\n'National Shipments'!M$70/SUM('National Shipments'!M$70,'National Shipments'!M$80)\n*(1-AQ$71),AP69)","v":0.16494008186385803},{"$f":"IF(ISNUMBER(\n'National Shipments'!N$70/SUM('National Shipments'!N$70,'National Shipments'!N$80)\n*(1-AR$71)),\n'National Shipments'!N$70/SUM('National Shipments'!N$70,'National Shipments'!N$80)\n*(1-AR$71),AQ69)","v":0.16406424614804158},{"$f":"IF(ISNUMBER(\n'National Shipments'!O$70/SUM('National Shipments'!O$70,'National Shipments'!O$80)\n*(1-AS$71)),\n'National Shipments'!O$70/SUM('National Shipments'!O$70,'National Shipments'!O$80)\n*(1-AS$71),AR69)","v":0.16322012419453216},{"$f":"IF(ISNUMBER(\n'National Shipments'!P$70/SUM('National Shipments'!P$70,'National Shipments'!P$80)\n*(1-AT$71)),\n'National Shipments'!P$70/SUM('National Shipments'!P$70,'National Shipments'!P$80)\n*(1-AT$71),AS69)","v":0.16227152386693378},{"$f":"IF(ISNUMBER(\n'National Shipments'!Q$70/SUM('National Shipments'!Q$70,'National Shipments'!Q$80)\n*(1-AU$71)),\n'National Shipments'!Q$70/SUM('National Shipments'!Q$70,'National Shipments'!Q$80)\n*(1-AU$71),AT69)","v":0.1613068760875751},{"$f":"IF(ISNUMBER(\n'National Shipments'!R$70/SUM('National Shipments'!R$70,'National Shipments'!R$80)\n*(1-AV$71)),\n'National Shipments'!R$70/SUM('National Shipments'!R$70,'National Shipments'!R$80)\n*(1-AV$71),AU69)","v":0.16025389448559513},{"$f":"IF(ISNUMBER(\n'National Shipments'!S$70/SUM('National Shipments'!S$70,'National Shipments'!S$80)\n*(1-AW$71)),\n'National Shipments'!S$70/SUM('National Shipments'!S$70,'National Shipments'!S$80)\n*(1-AW$71),AV69)","v":0.15922536075499027},{"$f":"IF(ISNUMBER(\n'National Shipments'!T$70/SUM('National Shipments'!T$70,'National Shipments'!T$80)\n*(1-AX$71)),\n'National Shipments'!T$70/SUM('National Shipments'!T$70,'National Shipments'!T$80)\n*(1-AX$71),AW69)","v":0.15817890813473295},{"$f":"IF(ISNUMBER(\n'National Shipments'!U$70/SUM('National Shipments'!U$70,'National Shipments'!U$80)\n*(1-AY$71)),\n'National Shipments'!U$70/SUM('National Shipments'!U$70,'National Shipments'!U$80)\n*(1-AY$71),AX69)","v":0.15706544543299444},{"$f":"IF(ISNUMBER(\n'National Shipments'!V$70/SUM('National Shipments'!V$70,'National Shipments'!V$80)\n*(1-AZ$71)),\n'National Shipments'!V$70/SUM('National Shipments'!V$70,'National Shipments'!V$80)\n*(1-AZ$71),AY69)","v":0.1559336861988953},{"$f":"IF(ISNUMBER(\n'National Shipments'!W$70/SUM('National Shipments'!W$70,'National Shipments'!W$80)\n*(1-BA$71)),\n'National Shipments'!W$70/SUM('National Shipments'!W$70,'National Shipments'!W$80)\n*(1-BA$71),AZ69)","v":0.15486199651410704},{"$f":"IF(ISNUMBER(\n'National Shipments'!X$70/SUM('National Shipments'!X$70,'National Shipments'!X$80)\n*(1-BB$71)),\n'National Shipments'!X$70/SUM('National Shipments'!X$70,'National Shipments'!X$80)\n*(1-BB$71),BA69)","v":0.15384575605528067},{"$f":"IF(ISNUMBER(\n'National Shipments'!Y$70/SUM('National Shipments'!Y$70,'National Shipments'!Y$80)\n*(1-BC$71)),\n'National Shipments'!Y$70/SUM('National Shipments'!Y$70,'National Shipments'!Y$80)\n*(1-BC$71),BB69)","v":0.15292601373582454},{"$f":"IF(ISNUMBER(\n'National Shipments'!Z$70/SUM('National Shipments'!Z$70,'National Shipments'!Z$80)\n*(1-BD$71)),\n'National Shipments'!Z$70/SUM('National Shipments'!Z$70,'National Shipments'!Z$80)\n*(1-BD$71),BC69)","v":0.15216252993058427},{"$f":"IF(ISNUMBER(\n'National Shipments'!AA$70/SUM('National Shipments'!AA$70,'National Shipments'!AA$80)\n*(1-BE$71)),\n'National Shipments'!AA$70/SUM('National Shipments'!AA$70,'National Shipments'!AA$80)\n*(1-BE$71),BD69)","v":0.15129489886032635}]
[null,null,{"$f":"'Product Classes'!H16&\" - \"&OFFSET('Product Classes'!$C$9,MATCH('Product Classes'!H16,MODEL_PCS,0),0)","v":"PC 7 - Mobile Home Non-Weatherized, Condensing Gas Furnace Fan (MH-NWG-C)"},2.7306520972976967E-2,2.7306520972976967E-2,2.7306520972976967E-2,2.7306520972976967E-2,2.7306520972976967E-2,2.7306520972976967E-2,2.7306520972976967E-2,2.7306520972976967E-2,2.7306520972976967E-2,2.7306520972976967E-2,{"$f":"O70","v":2.7306520972976967E-2},2.7306520972976967E-2,2.7306520972976967E-2,2.7306520972976967E-2,2.7306520972976967E-2,2.7306520972976967E-2,2.7306520972976967E-2,2.7306520972976967E-2,2.7306520972976967E-2,2.7306520972976967E-2,2.7306520972976967E-2,2.7306520972976967E-2,2.7306520972976967E-2,2.7306520972976967E-2,2.7306520972976967E-2,2.7306520972976967E-2,2.7306520972976967E-2,2.7306520972976967E-2,2.7306520972976967E-2,2.7306520972976967E-2,2.7306520972976967E-2,{"$f":"IF(ISNUMBER(\n'National Shipments'!E$80/SUM('National Shipments'!E$70,'National Shipments'!E$80)\n*(1-AI$71)),\n'National Shipments'!E$80/SUM('National Shipments'!E$70,'National Shipments'!E$80)\n*(1-AI$71),AH70)","v":2.7306520972976967E-2},{"$f":"IF(ISNUMBER(\n'National Shipments'!F$80/SUM('National Shipments'!F$70,'National Shipments'!F$80)\n*(1-AJ$71)),\n'National Shipments'!F$80/SUM('National Shipments'!F$70,'National Shipments'!F$80)\n*(1-AJ$71),AI70)","v":4.7363696195746458E-2},{"$f":"IF(ISNUMBER(\n'National Shipments'!G$80/SUM('National Shipments'!G$70,'National Shipments'!G$80)\n*(1-AK$71)),\n'National Shipments'!G$80/SUM('National Shipments'!G$70,'National Shipments'!G$80)\n*(1-AK$71),AJ70)","v":4.5405191809587964E-2},{"$f":"IF(ISNUMBER(\n'National Shipments'!H$80/SUM('National Shipments'!H$70,'National Shipments'!H$80)\n*(1-AL$71)),\n'National Shipments'!H$80/SUM('National Shipments'!H$70,'National Shipments'!H$80)\n*(1-AL$71),AK70)","v":4.3854066080079454E-2},{"$f":"IF(ISNUMBER(\n'National Shipments'!I$80/SUM('National Shipments'!I$70,'National Shipments'!I$80)\n*(1-AM$71)),\n'National Shipments'!I$80/SUM('National Shipments'!I$70,'National Shipments'!I$80)\n*(1-AM$71),AL70)","v":4.273991965080174E-2},{"$f":"IF(ISNUMBER(\n'National Shipments'!J$80/SUM('National Shipments'!J$70,'National Shipments'!J$80)\n*(1-AN$71)),\n'National Shipments'!J$80/SUM('National Shipments'!J$70,'National Shipments'!J$80)\n*(1-AN$71),AM70)","v":4.248934554545368E-2},{"$f":"IF(ISNUMBER(\n'National Shipments'!K$80/SUM('National Shipments'!K$70,'National Shipments'!K$80)\n*(1-AO$71)),\n'National Shipments'!K$80/SUM('National Shipments'!K$70,'National Shipments'!K$80)\n*(1-AO$71),AN70)","v":4.2972371794636713E-2},{"$f":"IF(ISNUMBER(\n'National Shipments'!L$80/SUM('National Shipments'!L$70,'National Shipments'!L$80)\n*(1-AP$71)),\n'National Shipments'!L$80/SUM('National Shipments'!L$70,'National Shipments'!L$80)\n*(1-AP$71),AO70)","v":3.6290019859324688E-2},{"$f":"IF(ISNUMBER(\n'National Shipments'!M$80/SUM('National Shipments'!M$70,'National Shipments'!M$80)\n*(1-AQ$71)),\n'National Shipments'!M$80/SUM('National Shipments'!M$70,'National Shipments'!M$80)\n*(1-AQ$71),AP70)","v":3.7059918136141914E-2},{"$f":"IF(ISNUMBER(\n'National Shipments'!N$80/SUM('National Shipments'!N$70,'National Shipments'!N$80)\n*(1-AR$71)),\n'National Shipments'!N$80/SUM('National Shipments'!N$70,'National Shipments'!N$80)\n*(1-AR$71),AQ70)","v":3.7935753851958381E-2},{"$f":"IF(ISNUMBER(\n'National Shipments'!O$80/SUM('National Shipments'!O$70,'National Shipments'!O$80)\n*(1-AS$71)),\n'National Shipments'!O$80/SUM('National Shipments'!O$70,'National Shipments'!O$80)\n*(1-AS$71),AR70)","v":3.8779875805467781E-2},{"$f":"IF(ISNUMBER(\n'National Shipments'!P$80/SUM('National Shipments'!P$70,'National Shipments'!P$80)\n*(1-AT$71)),\n'National Shipments'!P$80/SUM('National Shipments'!P$70,'National Shipments'!P$80)\n*(1-AT$71),AS70)","v":3.9728476133066168E-2},{"$f":"IF(ISNUMBER(\n'National Shipments'!Q$80/SUM('National Shipments'!Q$70,'National Shipments'!Q$80)\n*(1-AU$71)),\n'National Shipments'!Q$80/SUM('National Shipments'!Q$70,'National Shipments'!Q$80)\n*(1-AU$71),AT70)","v":4.0693123912424842E-2},{"$f":"IF(ISNUMBER(\n'National Shipments'!R$80/SUM('National Shipments'!R$70,'National Shipments'!R$80)\n*(1-AV$71)),\n'National Shipments'!R$80/SUM('National Shipments'!R$70,'National Shipments'!R$80)\n*(1-AV$71),AU70)","v":4.1746105514404823E-2},{"$f":"IF(ISNUMBER(\n'National Shipments'!S$80/SUM('National Shipments'!S$70,'National Shipments'!S$80)\n*(1-AW$71)),\n'National Shipments'!S$80/SUM('National Shipments'!S$70,'National Shipments'!S$80)\n*(1-AW$71),AV70)","v":4.2774639245009703E-2},{"$f":"IF(ISNUMBER(\n'National Shipments'!T$80/SUM('National Shipments'!T$70,'National Shipments'!T$80)\n*(1-AX$71)),\n'National Shipments'!T$80/SUM('National Shipments'!T$70,'National Shipments'!T$80)\n*(1-AX$71),AW70)","v":4.3821091865267017E-2},{"$f":"IF(ISNUMBER(\n'National Shipments'!U$80/SUM('National Shipments'!U$70,'National Shipments'!U$80)\n*(1-AY$71)),\n'National Shipments'!U$80/SUM('National Shipments'!U$70,'National Shipments'!U$80)\n*(1-AY$71),AX70)","v":4.4934554567005514E-2},{"$f":"IF(ISNUMBER(\n'National Shipments'!V$80/SUM('National Shipments'!V$70,'National Shipments'!V$80)\n*(1-AZ$71)),\n'National Shipments'!V$80/SUM('National Shipments'!V$70,'National Shipments'!V$80)\n*(1-AZ$71),AY70)","v":4.6066313801104659E-2},{"$f":"IF(ISNUMBER(\n'National Shipments'!W$80/SUM('National Shipments'!W$70,'National Shipments'!W$80)\n*(1-BA$71)),\n'National Shipments'!W$80/SUM('National Shipments'!W$70,'National Shipments'!W$80)\n*(1-BA$71),AZ70)","v":4.7138003485892942E-2},{"$f":"IF(ISNUMBER(\n'National Shipments'!X$80/SUM('National Shipments'!X$70,'National Shipments'!X$80)\n*(1-BB$71)),\n'National Shipments'!X$80/SUM('National Shipments'!X$70,'National Shipments'!X$80)\n*(1-BB$71),BA70)","v":4.8154243944719295E-2},{"$f":"IF(ISNUMBER(\n'National Shipments'!Y$80/SUM('National Shipments'!Y$70,'National Shipments'!Y$80)\n*(1-BC$71)),\n'National Shipments'!Y$80/SUM('National Shipments'!Y$70,'National Shipments'!Y$80)\n*(1-BC$71),BB70)","v":4.9073986264175438E-2},{"$f":"IF(ISNUMBER(\n'National Shipments'!Z$80/SUM('National Shipments'!Z$70,'National Shipments'!Z$80)\n*(1-BD$71)),\n'National Shipments'!Z$80/SUM('National Shipments'!Z$70,'National Shipments'!Z$80)\n*(1-BD$71),BC70)","v":4.983747006941569E-2},{"$f":"IF(ISNUMBER(\n'National Shipments'!AA$80/SUM('National Shipments'!AA$70,'National Shipments'!AA$80)\n*(1-BE$71)),\n'National Shipments'!AA$80/SUM('National Shipments'!AA$70,'National Shipments'!AA$80)\n*(1-BE$71),BD70)","v":5.0705101139673608E-2}]
[null,null,{"$f":"'Product Classes'!H17&\" - \"&OFFSET('Product Classes'!$C$9,MATCH('Product Classes'!H17,MODEL_PCS,0),0)","v":"PC 8 - Mobile Home Electric Furnace / Modular Blower Fan (MH-EF/MB)"},0.79800000000000004,0.79800000000000004,0.79800000000000004,0.79800000000000004,0.79800000000000004,0.79800000000000004,0.79800000000000004,0.79800000000000004,0.79800000000000004,0.79800000000000004,{"$f":"O71","v":0.79800000000000004},0.79800000000000004,0.79800000000000004,0.79800000000000004,0.79800000000000004,0.79800000000000004,0.79800000000000004,0.79800000000000004,0.79800000000000004,0.79800000000000004,0.79800000000000004,0.79800000000000004,0.79800000000000004,0.79800000000000004,0.79800000000000004,0.79800000000000004,0.79800000000000004,0.79800000000000004,0.79800000000000004,0.79800000000000004,0.79800000000000004,{"$f":"'Data by Building Type'!$F$15","v":0.79800000000000004},{"$f":"'Data by Building Type'!$F$15","v":0.79800000000000004},{"$f":"'Data by Building Type'!$F$15","v":0.79800000000000004},{"$f":"'Data by Building Type'!$F$15","v":0.79800000000000004},{"$f":"'Data by Building Type'!$F$15","v":0.79800000000000004},{"$f":"'Data by Building Type'!$F$15","v":0.79800000000000004},{"$f":"'Data by Building Type'!$F$15","v":0.79800000000000004},{"$f":"'Data by Building Type'!$F$15","v":0.79800000000000004},{"$f":"'Data by Building Type'!$F$15","v":0.79800000000000004},{"$f":"'Data by Building Type'!$F$15","v":0.79800000000000004},{"$f":"'Data by Building Type'!$F$15","v":0.79800000000000004},{"$f":"'Data by Building Type'!$F$15","v":0.79800000000000004},{"$f":"'Data by Building Type'!$F$15","v":0.79800000000000004},{"$f":"'Data by Building Type'!$F$15","v":0.79800000000000004},{"$f":"'Data by Building Type'!$F$15","v":0.79800000000000004},{"$f":"'Data by Building Type'!$F$15","v":0.79800000000000004},{"$f":"'Data by Building Type'!$F$15","v":0.79800000000000004},{"$f":"'Data by Building Type'!$F$15","v":0.79800000000000004},{"$f":"'Data by Building Type'!$F$15","v":0.79800000000000004},{"$f":"'Data by Building Type'!$F$15","v":0.79800000000000004},{"$f":"'Data by Building Type'!$F$15","v":0.79800000000000004},{"$f":"'Data by Building Type'!$F$15","v":0.79800000000000004},{"$f":"'Data by Building Type'!$F$15","v":0.79800000000000004}]
[]
[null,null,"POST-Case",1981,{"$f":"D73+1","v":1982},1983,1984,1985,1986,1987,1988,1989,1990,1991,1992,1993,1994,1995,1996,1997,1998,1999,2000,2001,2002,2003,2004,2005,2006,2007,2008,2009,2010,2011,2012,2013,2014,2015,2016,2017,2018,2019,2020,2021,2022,2023,2024,2025,2026,2027,2028,2029,2030,2031,2032,2033,2034]
[null,null,{"$f":"C64","v":"PC 1 - Non-Weatherized, Non-Condensing Gas Furnace Fan (NWG-NC)"},{"$f":"E74","v":0},0,{"$f":"G74","v":0},{"$f":"H74","v":0},{"$f":"I74","v":0},{"$f":"J74","v":0},{"$f":"K74","v":0},{"$f":"L74","v":0},{"$f":"M74","v":0},{"$f":"N74","v":0},{"$f":"O74","v":0},0,0,0,0,0,0,0,0,0,0,0,0,0,0,0,0,0,0,0,{"$f":"AI74","v":0},{"$f":"IF(INDEX(PC_MAPPING,MID($C74,4,1),MATCH($C$61,'Data by Building Type'!$D$22:$F$22,0))=\"Yes\",1,0)","v":0},{"$f":"IF(INDEX(PC_MAPPING,MID($C74,4,1),MATCH($C$61,'Data by Building Type'!$D$22:$F$22,0))=\"Yes\",1,0)","v":0},{"$f":"IF(INDEX(PC_MAPPING,MID($C74,4,1),MATCH($C$61,'Data by Building Type'!$D$22:$F$22,0))=\"Yes\",1,0)","v":0},{"$f":"IF(INDEX(PC_MAPPING,MID($C74,4,1),MATCH($C$61,'Data by Building Type'!$D$22:$F$22,0))=\"Yes\",1,0)","v":0},{"$f":"IF(INDEX(PC_MAPPING,MID($C74,4,1),MATCH($C$61,'Data by Building Type'!$D$22:$F$22,0))=\"Yes\",1,0)","v":0},{"$f":"IF(INDEX(PC_MAPPING,MID($C74,4,1),MATCH($C$61,'Data by Building Type'!$D$22:$F$22,0))=\"Yes\",1,0)","v":0},{"$f":"IF(INDEX(PC_MAPPING,MID($C74,4,1),MATCH($C$61,'Data by Building Type'!$D$22:$F$22,0))=\"Yes\",1,0)","v":0},{"$f":"IF(INDEX(PC_MAPPING,MID($C74,4,1),MATCH($C$61,'Data by Building Type'!$D$22:$F$22,0))=\"Yes\",1,0)","v":0},{"$f":"IF(INDEX(PC_MAPPING,MID($C74,4,1),MATCH($C$61,'Data by Building Type'!$D$22:$F$22,0))=\"Yes\",1,0)","v":0},{"$f":"IF(INDEX(PC_MAPPING,MID($C74,4,1),MATCH($C$61,'Data by Building Type'!$D$22:$F$22,0))=\"Yes\",1,0)","v":0},{"$f":"IF(INDEX(PC_MAPPING,MID($C74,4,1),MATCH($C$61,'Data by Building Type'!$D$22:$F$22,0))=\"Yes\",1,0)","v":0},{"$f":"IF(INDEX(PC_MAPPING,MID($C74,4,1),MATCH($C$61,'Data by Building Type'!$D$22:$F$22,0))=\"Yes\",1,0)","v":0},{"$f":"IF(INDEX(PC_MAPPING,MID($C74,4,1),MATCH($C$61,'Data by Building Type'!$D$22:$F$22,0))=\"Yes\",1,0)","v":0},{"$f":"IF(INDEX(PC_MAPPING,MID($C74,4,1),MATCH($C$61,'Data by Building Type'!$D$22:$F$22,0))=\"Yes\",1,0)","v":0},{"$f":"IF(INDEX(PC_MAPPING,MID($C74,4,1),MATCH($C$61,'Data by Building Type'!$D$22:$F$22,0))=\"Yes\",1,0)","v":0},{"$f":"IF(INDEX(PC_MAPPING,MID($C74,4,1),MATCH($C$61,'Data by Building Type'!$D$22:$F$22,0))=\"Yes\",1,0)","v":0},{"$f":"IF(INDEX(PC_MAPPING,MID($C74,4,1),MATCH($C$61,'Data by Building Type'!$D$22:$F$22,0))=\"Yes\",1,0)","v":0},{"$f":"IF(INDEX(PC_MAPPING,MID($C74,4,1),MATCH($C$61,'Data by Building Type'!$D$22:$F$22,0))=\"Yes\",1,0)","v":0},{"$f":"IF(INDEX(PC_MAPPING,MID($C74,4,1),MATCH($C$61,'Data by Building Type'!$D$22:$F$22,0))=\"Yes\",1,0)","v":0},{"$f":"IF(INDEX(PC_MAPPING,MID($C74,4,1),MATCH($C$61,'Data by Building Type'!$D$22:$F$22,0))=\"Yes\",1,0)","v":0},{"$f":"IF(INDEX(PC_MAPPING,MID($C74,4,1),MATCH($C$61,'Data by Building Type'!$D$22:$F$22,0))=\"Yes\",1,0)","v":0},{"$f":"IF(INDEX(PC_MAPPING,MID($C74,4,1),MATCH($C$61,'Data by Building Type'!$D$22:$F$22,0))=\"Yes\",1,0)","v":0},{"$f":"IF(INDEX(PC_MAPPING,MID($C74,4,1),MATCH($C$61,'Data by Building Type'!$D$22:$F$22,0))=\"Yes\",1,0)","v":0}]
[null,null,{"$f":"C65","v":"PC 2 - Non-Weatherized, Condensing Gas Furnace Fan (NWG-C)"},0,0,0,0,0,0,0,0,0,0,{"$f":"O75","v":0},0,0,0,0,0,0,0,0,0,0,0,0,0,0,0,0,0,0,0,0,{"$f":"IF(INDEX(PC_MAPPING,MID($C75,4,1),MATCH($C$61,'Data by Building Type'!$D$22:$F$22,0))=\"Yes\",1,0)","v":0},{"$f":"IF(INDEX(PC_MAPPING,MID($C75,4,1),MATCH($C$61,'Data by Building Type'!$D$22:$F$22,0))=\"Yes\",1,0)","v":0},{"$f":"IF(INDEX(PC_MAPPING,MID($C75,4,1),MATCH($C$61,'Data by Building Type'!$D$22:$F$22,0))=\"Yes\",1,0)","v":0},{"$f":"IF(INDEX(PC_MAPPING,MID($C75,4,1),MATCH($C$61,'Data by Building Type'!$D$22:$F$22,0))=\"Yes\",1,0)","v":0},{"$f":"IF(INDEX(PC_MAPPING,MID($C75,4,1),MATCH($C$61,'Data by Building Type'!$D$22:$F$22,0))=\"Yes\",1,0)","v":0},{"$f":"IF(INDEX(PC_MAPPING,MID($C75,4,1),MATCH($C$61,'Data by Building Type'!$D$22:$F$22,0))=\"Yes\",1,0)","v":0},{"$f":"IF(INDEX(PC_MAPPING,MID($C75,4,1),MATCH($C$61,'Data by Building Type'!$D$22:$F$22,0))=\"Yes\",1,0)","v":0},{"$f":"IF(INDEX(PC_MAPPING,MID($C75,4,1),MATCH($C$61,'Data by Building Type'!$D$22:$F$22,0))=\"Yes\",1,0)","v":0},{"$f":"IF(INDEX(PC_MAPPING,MID($C75,4,1),MATCH($C$61,'Data by Building Type'!$D$22:$F$22,0))=\"Yes\",1,0)","v":0},{"$f":"IF(INDEX(PC_MAPPING,MID($C75,4,1),MATCH($C$61,'Data by Building Type'!$D$22:$F$22,0))=\"Yes\",1,0)","v":0},{"$f":"IF(INDEX(PC_MAPPING,MID($C75,4,1),MATCH($C$61,'Data by Building Type'!$D$22:$F$22,0))=\"Yes\",1,0)","v":0},{"$f":"IF(INDEX(PC_MAPPING,MID($C75,4,1),MATCH($C$61,'Data by Building Type'!$D$22:$F$22,0))=\"Yes\",1,0)","v":0},{"$f":"IF(INDEX(PC_MAPPING,MID($C75,4,1),MATCH($C$61,'Data by Building Type'!$D$22:$F$22,0))=\"Yes\",1,0)","v":0},{"$f":"IF(INDEX(PC_MAPPING,MID($C75,4,1),MATCH($C$61,'Data by Building Type'!$D$22:$F$22,0))=\"Yes\",1,0)","v":0},{"$f":"IF(INDEX(PC_MAPPING,MID($C75,4,1),MATCH($C$61,'Data by Building Type'!$D$22:$F$22,0))=\"Yes\",1,0)","v":0},{"$f":"IF(INDEX(PC_MAPPING,MID($C75,4,1),MATCH($C$61,'Data by Building Type'!$D$22:$F$22,0))=\"Yes\",1,0)","v":0},{"$f":"IF(INDEX(PC_MAPPING,MID($C75,4,1),MATCH($C$61,'Data by Building Type'!$D$22:$F$22,0))=\"Yes\",1,0)","v":0},{"$f":"IF(INDEX(PC_MAPPING,MID($C75,4,1),MATCH($C$61,'Data by Building Type'!$D$22:$F$22,0))=\"Yes\",1,0)","v":0},{"$f":"IF(INDEX(PC_MAPPING,MID($C75,4,1),MATCH($C$61,'Data by Building Type'!$D$22:$F$22,0))=\"Yes\",1,0)","v":0},{"$f":"IF(INDEX(PC_MAPPING,MID($C75,4,1),MATCH($C$61,'Data by Building Type'!$D$22:$F$22,0))=\"Yes\",1,0)","v":0},{"$f":"IF(INDEX(PC_MAPPING,MID($C75,4,1),MATCH($C$61,'Data by Building Type'!$D$22:$F$22,0))=\"Yes\",1,0)","v":0},{"$f":"IF(INDEX(PC_MAPPING,MID($C75,4,1),MATCH($C$61,'Data by Building Type'!$D$22:$F$22,0))=\"Yes\",1,0)","v":0},{"$f":"IF(INDEX(PC_MAPPING,MID($C75,4,1),MATCH($C$61,'Data by Building Type'!$D$22:$F$22,0))=\"Yes\",1,0)","v":0}]
[null,null,"PC 3 - Weatherized Non-Condensing Gas Furnace Fan (WG-NC)",0,0,0,0,0,0,0,0,0,0,{"$f":"O76","v":0},0,0,0,0,0,0,0,0,0,0,0,0,0,0,0,0,0,0,0,0,{"$f":"IF(INDEX(PC_MAPPING,MID($C76,4,1),MATCH($C$61,'Data by Building Type'!$D$22:$F$22,0))=\"Yes\",1,0)","v":0},{"$f":"IF(INDEX(PC_MAPPING,MID($C76,4,1),MATCH($C$61,'Data by Building Type'!$D$22:$F$22,0))=\"Yes\",1,0)","v":0},{"$f":"IF(INDEX(PC_MAPPING,MID($C76,4,1),MATCH($C$61,'Data by Building Type'!$D$22:$F$22,0))=\"Yes\",1,0)","v":0},{"$f":"IF(INDEX(PC_MAPPING,MID($C76,4,1),MATCH($C$61,'Data by Building Type'!$D$22:$F$22,0))=\"Yes\",1,0)","v":0},{"$f":"IF(INDEX(PC_MAPPING,MID($C76,4,1),MATCH($C$61,'Data by Building Type'!$D$22:$F$22,0))=\"Yes\",1,0)","v":0},{"$f":"IF(INDEX(PC_MAPPING,MID($C76,4,1),MATCH($C$61,'Data by Building Type'!$D$22:$F$22,0))=\"Yes\",1,0)","v":0},{"$f":"IF(INDEX(PC_MAPPING,MID($C76,4,1),MATCH($C$61,'Data by Building Type'!$D$22:$F$22,0))=\"Yes\",1,0)","v":0},{"$f":"IF(INDEX(PC_MAPPING,MID($C76,4,1),MATCH($C$61,'Data by Building Type'!$D$22:$F$22,0))=\"Yes\",1,0)","v":0},{"$f":"IF(INDEX(PC_MAPPING,MID($C76,4,1),MATCH($C$61,'Data by Building Type'!$D$22:$F$22,0))=\"Yes\",1,0)","v":0},{"$f":"IF(INDEX(PC_MAPPING,MID($C76,4,1),MATCH($C$61,'Data by Building Type'!$D$22:$F$22,0))=\"Yes\",1,0)","v":0},{"$f":"IF(INDEX(PC_MAPPING,MID($C76,4,1),MATCH($C$61,'Data by Building Type'!$D$22:$F$22,0))=\"Yes\",1,0)","v":0},{"$f":"IF(INDEX(PC_MAPPING,MID($C76,4,1),MATCH($C$61,'Data by Building Type'!$D$22:$F$22,0))=\"Yes\",1,0)","v":0},{"$f":"IF(INDEX(PC_MAPPING,MID($C76,4,1),MATCH($C$61,'Data by Building Type'!$D$22:$F$22,0))=\"Yes\",1,0)","v":0},{"$f":"IF(INDEX(PC_MAPPING,MID($C76,4,1),MATCH($C$61,'Data by Building Type'!$D$22:$F$22,0))=\"Yes\",1,0)","v":0},{"$f":"IF(INDEX(PC_MAPPING,MID($C76,4,1),MATCH($C$61,'Data by Building Type'!$D$22:$F$22,0))=\"Yes\",1,0)","v":0},{"$f":"IF(INDEX(PC_MAPPING,MID($C76,4,1),MATCH($C$61,'Data by Building Type'!$D$22:$F$22,0))=\"Yes\",1,0)","v":0},{"$f":"IF(INDEX(PC_MAPPING,MID($C76,4,1),MATCH($C$61,'Data by Building Type'!$D$22:$F$22,0))=\"Yes\",1,0)","v":0},{"$f":"IF(INDEX(PC_MAPPING,MID($C76,4,1),MATCH($C$61,'Data by Building Type'!$D$22:$F$22,0))=\"Yes\",1,0)","v":0},{"$f":"IF(INDEX(PC_MAPPING,MID($C76,4,1),MATCH($C$61,'Data by Building Type'!$D$22:$F$22,0))=\"Yes\",1,0)","v":0},{"$f":"IF(INDEX(PC_MAPPING,MID($C76,4,1),MATCH($C$61,'Data by Building Type'!$D$22:$F$22,0))=\"Yes\",1,0)","v":0},{"$f":"IF(INDEX(PC_MAPPING,MID($C76,4,1),MATCH($C$61,'Data by Building Type'!$D$22:$F$22,0))=\"Yes\",1,0)","v":0},{"$f":"IF(INDEX(PC_MAPPING,MID($C76,4,1),MATCH($C$61,'Data by Building Type'!$D$22:$F$22,0))=\"Yes\",1,0)","v":0},{"$f":"IF(INDEX(PC_MAPPING,MID($C76,4,1),MATCH($C$61,'Data by Building Type'!$D$22:$F$22,0))=\"Yes\",1,0)","v":0}]
[null,null,"PC 4 - Non-Weatherized, Non-Condensing Oil Furnace Fan (NWO-NC)",0,0,0,0,0,0,0,0,0,0,{"$f":"O77","v":0},0,0,0,0,0,0,0,0,0,0,0,0,0,0,0,0,0,0,0,0,{"$f":"IF(INDEX(PC_MAPPING,MID($C77,4,1),MATCH($C$61,'Data by Building Type'!$D$22:$F$22,0))=\"Yes\",1,0)","v":0},{"$f":"IF(INDEX(PC_MAPPING,MID($C77,4,1),MATCH($C$61,'Data by Building Type'!$D$22:$F$22,0))=\"Yes\",1,0)","v":0},{"$f":"IF(INDEX(PC_MAPPING,MID($C77,4,1),MATCH($C$61,'Data by Building Type'!$D$22:$F$22,0))=\"Yes\",1,0)","v":0},{"$f":"IF(INDEX(PC_MAPPING,MID($C77,4,1),MATCH($C$61,'Data by Building Type'!$D$22:$F$22,0))=\"Yes\",1,0)","v":0},{"$f":"IF(INDEX(PC_MAPPING,MID($C77,4,1),MATCH($C$61,'Data by Building Type'!$D$22:$F$22,0))=\"Yes\",1,0)","v":0},{"$f":"IF(INDEX(PC_MAPPING,MID($C77,4,1),MATCH($C$61,'Data by Building Type'!$D$22:$F$22,0))=\"Yes\",1,0)","v":0},{"$f":"IF(INDEX(PC_MAPPING,MID($C77,4,1),MATCH($C$61,'Data by Building Type'!$D$22:$F$22,0))=\"Yes\",1,0)","v":0},{"$f":"IF(INDEX(PC_MAPPING,MID($C77,4,1),MATCH($C$61,'Data by Building Type'!$D$22:$F$22,0))=\"Yes\",1,0)","v":0},{"$f":"IF(INDEX(PC_MAPPING,MID($C77,4,1),MATCH($C$61,'Data by Building Type'!$D$22:$F$22,0))=\"Yes\",1,0)","v":0},{"$f":"IF(INDEX(PC_MAPPING,MID($C77,4,1),MATCH($C$61,'Data by Building Type'!$D$22:$F$22,0))=\"Yes\",1,0)","v":0},{"$f":"IF(INDEX(PC_MAPPING,MID($C77,4,1),MATCH($C$61,'Data by Building Type'!$D$22:$F$22,0))=\"Yes\",1,0)","v":0},{"$f":"IF(INDEX(PC_MAPPING,MID($C77,4,1),MATCH($C$61,'Data by Building Type'!$D$22:$F$22,0))=\"Yes\",1,0)","v":0},{"$f":"IF(INDEX(PC_MAPPING,MID($C77,4,1),MATCH($C$61,'Data by Building Type'!$D$22:$F$22,0))=\"Yes\",1,0)","v":0},{"$f":"IF(INDEX(PC_MAPPING,MID($C77,4,1),MATCH($C$61,'Data by Building Type'!$D$22:$F$22,0))=\"Yes\",1,0)","v":0},{"$f":"IF(INDEX(PC_MAPPING,MID($C77,4,1),MATCH($C$61,'Data by Building Type'!$D$22:$F$22,0))=\"Yes\",1,0)","v":0},{"$f":"IF(INDEX(PC_MAPPING,MID($C77,4,1),MATCH($C$61,'Data by Building Type'!$D$22:$F$22,0))=\"Yes\",1,0)","v":0},{"$f":"IF(INDEX(PC_MAPPING,MID($C77,4,1),MATCH($C$61,'Data by Building Type'!$D$22:$F$22,0))=\"Yes\",1,0)","v":0},{"$f":"IF(INDEX(PC_MAPPING,MID($C77,4,1),MATCH($C$61,'Data by Building Type'!$D$22:$F$22,0))=\"Yes\",1,0)","v":0},{"$f":"IF(INDEX(PC_MAPPING,MID($C77,4,1),MATCH($C$61,'Data by Building Type'!$D$22:$F$22,0))=\"Yes\",1,0)","v":0},{"$f":"IF(INDEX(PC_MAPPING,MID($C77,4,1),MATCH($C$61,'Data by Building Type'!$D$22:$F$22,0))=\"Yes\",1,0)","v":0},{"$f":"IF(INDEX(PC_MAPPING,MID($C77,4,1),MATCH($C$61,'Data by Building Type'!$D$22:$F$22,0))=\"Yes\",1,0)","v":0},{"$f":"IF(INDEX(PC_MAPPING,MID($C77,4,1),MATCH($C$61,'Data by Building Type'!$D$22:$F$22,0))=\"Yes\",1,0)","v":0},{"$f":"IF(INDEX(PC_MAPPING,MID($C77,4,1),MATCH($C$61,'Data by Building Type'!$D$22:$F$22,0))=\"Yes\",1,0)","v":0}]
[null,null,"PC 5 - Non-Weatherized Electric Furnace / Modular Blower Fan (NWEF/NWMB)",0,0,0,0,0,0,0,0,0,0,{"$f":"O78","v":0},0,0,0,0,0,0,0,0,0,0,0,0,0,0,0,0,0,0,0,0,{"$f":"IF(INDEX(PC_MAPPING,MID($C78,4,1),MATCH($C$61,'Data by Building Type'!$D$22:$F$22,0))=\"Yes\",1,0)","v":0},{"$f":"IF(INDEX(PC_MAPPING,MID($C78,4,1),MATCH($C$61,'Data by Building Type'!$D$22:$F$22,0))=\"Yes\",1,0)","v":0},{"$f":"IF(INDEX(PC_MAPPING,MID($C78,4,1),MATCH($C$61,'Data by Building Type'!$D$22:$F$22,0))=\"Yes\",1,0)","v":0},{"$f":"IF(INDEX(PC_MAPPING,MID($C78,4,1),MATCH($C$61,'Data by Building Type'!$D$22:$F$22,0))=\"Yes\",1,0)","v":0},{"$f":"IF(INDEX(PC_MAPPING,MID($C78,4,1),MATCH($C$61,'Data by Building Type'!$D$22:$F$22,0))=\"Yes\",1,0)","v":0},{"$f":"IF(INDEX(PC_MAPPING,MID($C78,4,1),MATCH($C$61,'Data by Building Type'!$D$22:$F$22,0))=\"Yes\",1,0)","v":0},{"$f":"IF(INDEX(PC_MAPPING,MID($C78,4,1),MATCH($C$61,'Data by Building Type'!$D$22:$F$22,0))=\"Yes\",1,0)","v":0},{"$f":"IF(INDEX(PC_MAPPING,MID($C78,4,1),MATCH($C$61,'Data by Building Type'!$D$22:$F$22,0))=\"Yes\",1,0)","v":0},{"$f":"IF(INDEX(PC_MAPPING,MID($C78,4,1),MATCH($C$61,'Data by Building Type'!$D$22:$F$22,0))=\"Yes\",1,0)","v":0},{"$f":"IF(INDEX(PC_MAPPING,MID($C78,4,1),MATCH($C$61,'Data by Building Type'!$D$22:$F$22,0))=\"Yes\",1,0)","v":0},{"$f":"IF(INDEX(PC_MAPPING,MID($C78,4,1),MATCH($C$61,'Data by Building Type'!$D$22:$F$22,0))=\"Yes\",1,0)","v":0},{"$f":"IF(INDEX(PC_MAPPING,MID($C78,4,1),MATCH($C$61,'Data by Building Type'!$D$22:$F$22,0))=\"Yes\",1,0)","v":0},{"$f":"IF(INDEX(PC_MAPPING,MID($C78,4,1),MATCH($C$61,'Data by Building Type'!$D$22:$F$22,0))=\"Yes\",1,0)","v":0},{"$f":"IF(INDEX(PC_MAPPING,MID($C78,4,1),MATCH($C$61,'Data by Building Type'!$D$22:$F$22,0))=\"Yes\",1,0)","v":0},{"$f":"IF(INDEX(PC_MAPPING,MID($C78,4,1),MATCH($C$61,'Data by Building Type'!$D$22:$F$22,0))=\"Yes\",1,0)","v":0},{"$f":"IF(INDEX(PC_MAPPING,MID($C78,4,1),MATCH($C$61,'Data by Building Type'!$D$22:$F$22,0))=\"Yes\",1,0)","v":0},{"$f":"IF(INDEX(PC_MAPPING,MID($C78,4,1),MATCH($C$61,'Data by Building Type'!$D$22:$F$22,0))=\"Yes\",1,0)","v":0},{"$f":"IF(INDEX(PC_MAPPING,MID($C78,4,1),MATCH($C$61,'Data by Building Type'!$D$22:$F$22,0))=\"Yes\",1,0)","v":0},{"$f":"IF(INDEX(PC_MAPPING,MID($C78,4,1),MATCH($C$61,'Data by Building Type'!$D$22:$F$22,0))=\"Yes\",1,0)","v":0},{"$f":"IF(INDEX(PC_MAPPING,MID($C78,4,1),MATCH($C$61,'Data by Building Type'!$D$22:$F$22,0))=\"Yes\",1,0)","v":0},{"$f":"IF(INDEX(PC_MAPPING,MID($C78,4,1),MATCH($C$61,'Data by Building Type'!$D$22:$F$22,0))=\"Yes\",1,0)","v":0},{"$f":"IF(INDEX(PC_MAPPING,MID($C78,4,1),MATCH($C$61,'Data by Building Type'!$D$22:$F$22,0))=\"Yes\",1,0)","v":0},{"$f":"IF(INDEX(PC_MAPPING,MID($C78,4,1),MATCH($C$61,'Data by Building Type'!$D$22:$F$22,0))=\"Yes\",1,0)","v":0}]
[null,null,"PC 6 - Mobile Home Non-Weatherized, Non-Condensing Gas Furnace Fan (MH-NWG-NC)",0.17469347902702301,0.17469347902702301,0.17469347902702301,0.17469347902702301,0.17469347902702301,0.17469347902702301,0.17469347902702301,0.17469347902702301,0.17469347902702301,0.17469347902702301,{"$f":"O79","v":0.17469347902702301},0.17469347902702301,0.17469347902702301,0.17469347902702301,0.17469347902702301,0.17469347902702301,0.17469347902702301,0.17469347902702301,0.17469347902702301,0.17469347902702301,0.17469347902702301,0.17469347902702301,0.17469347902702301,0.17469347902702301,0.17469347902702301,0.17469347902702301,0.17469347902702301,0.17469347902702301,0.17469347902702301,0.17469347902702301,0.17469347902702301,{"$f":"IF(ISNUMBER(\n'National Shipments'!E$155/SUM('National Shipments'!E$155,'National Shipments'!E$165)\n*(1-AI$71)),\n'National Shipments'!E$155/SUM('National Shipments'!E$155,'National Shipments'!E$165)\n*(1-AI$71),AH79)","v":0.17469347902702301},{"$f":"IF(ISNUMBER(\n'National Shipments'!F$155/SUM('National Shipments'!F$155,'National Shipments'!F$165)\n*(1-AJ$71)),\n'National Shipments'!F$155/SUM('National Shipments'!F$155,'National Shipments'!F$165)\n*(1-AJ$71),AI79)","v":0.1546363038042535},{"$f":"IF(ISNUMBER(\n'National Shipments'!G$155/SUM('National Shipments'!G$155,'National Shipments'!G$165)\n*(1-AK$71)),\n'National Shipments'!G$155/SUM('National Shipments'!G$155,'National Shipments'!G$165)\n*(1-AK$71),AJ79)","v":0.15659480819041202},{"$f":"IF(ISNUMBER(\n'National Shipments'!H$155/SUM('National Shipments'!H$155,'National Shipments'!H$165)\n*(1-AL$71)),\n'National Shipments'!H$155/SUM('National Shipments'!H$155,'National Shipments'!H$165)\n*(1-AL$71),AK79)","v":0.15814593391992054},{"$f":"IF(ISNUMBER(\n'National Shipments'!I$155/SUM('National Shipments'!I$155,'National Shipments'!I$165)\n*(1-AM$71)),\n'National Shipments'!I$155/SUM('National Shipments'!I$155,'National Shipments'!I$165)\n*(1-AM$71),AL79)","v":0.1592600803491982},{"$f":"IF(ISNUMBER(\n'National Shipments'!J$155/SUM('National Shipments'!J$155,'National Shipments'!J$165)\n*(1-AN$71)),\n'National Shipments'!J$155/SUM('National Shipments'!J$155,'National Shipments'!J$165)\n*(1-AN$71),AM79)","v":0.15951065445454629},{"$f":"IF(ISNUMBER(\n'National Shipments'!K$155/SUM('National Shipments'!K$155,'National Shipments'!K$165)\n*(1-AO$71)),\n'National Shipments'!K$155/SUM('National Shipments'!K$155,'National Shipments'!K$165)\n*(1-AO$71),AN79)","v":0.15902762820536323},{"$f":"IF(ISNUMBER(\n'National Shipments'!L$155/SUM('National Shipments'!L$155,'National Shipments'!L$165)\n*(1-AP$71)),\n'National Shipments'!L$155/SUM('National Shipments'!L$155,'National Shipments'!L$165)\n*(1-AP$71),AO79)","v":0.16572331268550661},{"$f":"IF(ISNUMBER(\n'National Shipments'!M$155/SUM('National Shipments'!M$155,'National Shipments'!M$165)\n*(1-AQ$71)),\n'National Shipments'!M$155/SUM('National Shipments'!M$155,'National Shipments'!M$165)\n*(1-AQ$71),AP79)","v":0.16495029413523171},{"$f":"IF(ISNUMBER(\n'National Shipments'!N$155/SUM('National Shipments'!N$155,'National Shipments'!N$165)\n*(1-AR$71)),\n'National Shipments'!N$155/SUM('National Shipments'!N$155,'National Shipments'!N$165)\n*(1-AR$71),AQ79)","v":0.16407220069676193},{"$f":"IF(ISNUMBER(\n'National Shipments'!O$155/SUM('National Shipments'!O$155,'National Shipments'!O$165)\n*(1-AS$71)),\n'National Shipments'!O$155/SUM('National Shipments'!O$155,'National Shipments'!O$165)\n*(1-AS$71),AR79)","v":0.16322677824371704},{"$f":"IF(ISNUMBER(\n'National Shipments'!P$155/SUM('National Shipments'!P$155,'National Shipments'!P$165)\n*(1-AT$71)),\n'National Shipments'!P$155/SUM('National Shipments'!P$155,'National Shipments'!P$165)\n*(1-AT$71),AS79)","v":0.16227732931147287},{"$f":"IF(ISNUMBER(\n'National Shipments'!Q$155/SUM('National Shipments'!Q$155,'National Shipments'!Q$165)\n*(1-AU$71)),\n'National Shipments'!Q$155/SUM('National Shipments'!Q$155,'National Shipments'!Q$165)\n*(1-AU$71),AT79)","v":0.16131270353841926},{"$f":"IF(ISNUMBER(\n'National Shipments'!R$155/SUM('National Shipments'!R$155,'National Shipments'!R$165)\n*(1-AV$71)),\n'National Shipments'!R$155/SUM('National Shipments'!R$155,'National Shipments'!R$165)\n*(1-AV$71),AU79)","v":0.16024176063166629},{"$f":"IF(ISNUMBER(\n'National Shipments'!S$155/SUM('National Shipments'!S$155,'National Shipments'!S$165)\n*(1-AW$71)),\n'National Shipments'!S$155/SUM('National Shipments'!S$155,'National Shipments'!S$165)\n*(1-AW$71),AV79)","v":0.15921704918287499},{"$f":"IF(ISNUMBER(\n'National Shipments'!T$155/SUM('National Shipments'!T$155,'National Shipments'!T$165)\n*(1-AX$71)),\n'National Shipments'!T$155/SUM('National Shipments'!T$155,'National Shipments'!T$165)\n*(1-AX$71),AW79)","v":0.1581734647804714},{"$f":"IF(ISNUMBER(\n'National Shipments'!U$155/SUM('National Shipments'!U$155,'National Shipments'!U$165)\n*(1-AY$71)),\n'National Shipments'!U$155/SUM('National Shipments'!U$155,'National Shipments'!U$165)\n*(1-AY$71),AX79)","v":0.15706150339301478},{"$f":"IF(ISNUMBER(\n'National Shipments'!V$155/SUM('National Shipments'!V$155,'National Shipments'!V$165)\n*(1-AZ$71)),\n'National Shipments'!V$155/SUM('National Shipments'!V$155,'National Shipments'!V$165)\n*(1-AZ$71),AY79)","v":0.15593108196217861},{"$f":"IF(ISNUMBER(\n'National Shipments'!W$155/SUM('National Shipments'!W$155,'National Shipments'!W$165)\n*(1-BA$71)),\n'National Shipments'!W$155/SUM('National Shipments'!W$155,'National Shipments'!W$165)\n*(1-BA$71),AZ79)","v":0.15485951471890591},{"$f":"IF(ISNUMBER(\n'National Shipments'!X$155/SUM('National Shipments'!X$155,'National Shipments'!X$165)\n*(1-BB$71)),\n'National Shipments'!X$155/SUM('National Shipments'!X$155,'National Shipments'!X$165)\n*(1-BB$71),BA79)","v":0.15384380674445969},{"$f":"IF(ISNUMBER(\n'National Shipments'!Y$155/SUM('National Shipments'!Y$155,'National Shipments'!Y$165)\n*(1-BC$71)),\n'National Shipments'!Y$155/SUM('National Shipments'!Y$155,'National Shipments'!Y$165)\n*(1-BC$71),BB79)","v":0.1529244844845056},{"$f":"IF(ISNUMBER(\n'National Shipments'!Z$155/SUM('National Shipments'!Z$155,'National Shipments'!Z$165)\n*(1-BD$71)),\n'National Shipments'!Z$155/SUM('National Shipments'!Z$155,'National Shipments'!Z$165)\n*(1-BD$71),BC79)","v":0.15216135133084585},{"$f":"IF(ISNUMBER(\n'National Shipments'!AA$155/SUM('National Shipments'!AA$155,'National Shipments'!AA$165)\n*(1-BE$71)),\n'National Shipments'!AA$155/SUM('National Shipments'!AA$155,'National Shipments'!AA$165)\n*(1-BE$71),BD79)","v":0.15129431675894331}]
[null,null,"PC 7 - Mobile Home Non-Weatherized, Condensing Gas Furnace Fan (MH-NWG-C)",2.7306520972976967E-2,2.7306520972976967E-2,2.7306520972976967E-2,2.7306520972976967E-2,2.7306520972976967E-2,2.7306520972976967E-2,2.7306520972976967E-2,2.7306520972976967E-2,2.7306520972976967E-2,2.7306520972976967E-2,{"$f":"O80","v":2.7306520972976967E-2},2.7306520972976967E-2,2.7306520972976967E-2,2.7306520972976967E-2,2.7306520972976967E-2,2.7306520972976967E-2,2.7306520972976967E-2,2.7306520972976967E-2,2.7306520972976967E-2,2.7306520972976967E-2,2.7306520972976967E-2,2.7306520972976967E-2,2.7306520972976967E-2,2.7306520972976967E-2,2.7306520972976967E-2,2.7306520972976967E-2,2.7306520972976967E-2,2.7306520972976967E-2,2.7306520972976967E-2,2.7306520972976967E-2,2.7306520972976967E-2,{"$f":"IF(ISNUMBER(\n'National Shipments'!E$165/SUM('National Shipments'!E$155,'National Shipments'!E$165)\n*(1-AI$71)),\n'National Shipments'!E$165/SUM('National Shipments'!E$155,'National Shipments'!E$165)\n*(1-AI$71),AH80)","v":2.7306520972976967E-2},{"$f":"IF(ISNUMBER(\n'National Shipments'!F$165/SUM('National Shipments'!F$155,'National Shipments'!F$165)\n*(1-AJ$71)),\n'National Shipments'!F$165/SUM('National Shipments'!F$155,'National Shipments'!F$165)\n*(1-AJ$71),AI80)","v":4.7363696195746458E-2},{"$f":"IF(ISNUMBER(\n'National Shipments'!G$165/SUM('National Shipments'!G$155,'National Shipments'!G$165)\n*(1-AK$71)),\n'National Shipments'!G$165/SUM('National Shipments'!G$155,'National Shipments'!G$165)\n*(1-AK$71),AJ80)","v":4.5405191809587964E-2},{"$f":"IF(ISNUMBER(\n'National Shipments'!H$165/SUM('National Shipments'!H$155,'National Shipments'!H$165)\n*(1-AL$71)),\n'National Shipments'!H$165/SUM('National Shipments'!H$155,'National Shipments'!H$165)\n*(1-AL$71),AK80)","v":4.3854066080079454E-2},{"$f":"IF(ISNUMBER(\n'National Shipments'!I$165/SUM('National Shipments'!I$155,'National Shipments'!I$165)\n*(1-AM$71)),\n'National Shipments'!I$165/SUM('National Shipments'!I$155,'National Shipments'!I$165)\n*(1-AM$71),AL80)","v":4.273991965080174E-2},{"$f":"IF(ISNUMBER(\n'National Shipments'!J$165/SUM('National Shipments'!J$155,'National Shipments'!J$165)\n*(1-AN$71)),\n'National Shipments'!J$165/SUM('National Shipments'!J$155,'National Shipments'!J$165)\n*(1-AN$71),AM80)","v":4.248934554545368E-2},{"$f":"IF(ISNUMBER(\n'National Shipments'!K$165/SUM('National Shipments'!K$155,'National Shipments'!K$165)\n*(1-AO$71)),\n'National Shipments'!K$165/SUM('National Shipments'!K$155,'National Shipments'!K$165)\n*(1-AO$71),AN80)","v":4.2972371794636713E-2},{"$f":"IF(ISNUMBER(\n'National Shipments'!L$165/SUM('National Shipments'!L$155,'National Shipments'!L$165)\n*(1-AP$71)),\n'National Shipments'!L$165/SUM('National Shipments'!L$155,'National Shipments'!L$165)\n*(1-AP$71),AO80)","v":3.6276687314493364E-2},{"$f":"IF(ISNUMBER(\n'National Shipments'!M$165/SUM('National Shipments'!M$155,'National Shipments'!M$165)\n*(1-AQ$71)),\n'National Shipments'!M$165/SUM('National Shipments'!M$155,'National Shipments'!M$165)\n*(1-AQ$71),AP80)","v":3.7049705864768259E-2},{"$f":"IF(ISNUMBER(\n'National Shipments'!N$165/SUM('National Shipments'!N$155,'National Shipments'!N$165)\n*(1-AR$71)),\n'National Shipments'!N$165/SUM('National Shipments'!N$155,'National Shipments'!N$165)\n*(1-AR$71),AQ80)","v":3.792779930323803E-2},{"$f":"IF(ISNUMBER(\n'National Shipments'!O$165/SUM('National Shipments'!O$155,'National Shipments'!O$165)\n*(1-AS$71)),\n'National Shipments'!O$165/SUM('National Shipments'!O$155,'National Shipments'!O$165)\n*(1-AS$71),AR80)","v":3.8773221756282936E-2},{"$f":"IF(ISNUMBER(\n'National Shipments'!P$165/SUM('National Shipments'!P$155,'National Shipments'!P$165)\n*(1-AT$71)),\n'National Shipments'!P$165/SUM('National Shipments'!P$155,'National Shipments'!P$165)\n*(1-AT$71),AS80)","v":3.9722670688527098E-2},{"$f":"IF(ISNUMBER(\n'National Shipments'!Q$165/SUM('National Shipments'!Q$155,'National Shipments'!Q$165)\n*(1-AU$71)),\n'National Shipments'!Q$165/SUM('National Shipments'!Q$155,'National Shipments'!Q$165)\n*(1-AU$71),AT80)","v":4.0687296461580709E-2},{"$f":"IF(ISNUMBER(\n'National Shipments'!R$165/SUM('National Shipments'!R$155,'National Shipments'!R$165)\n*(1-AV$71)),\n'National Shipments'!R$165/SUM('National Shipments'!R$155,'National Shipments'!R$165)\n*(1-AV$71),AU80)","v":4.1758239368333679E-2},{"$f":"IF(ISNUMBER(\n'National Shipments'!S$165/SUM('National Shipments'!S$155,'National Shipments'!S$165)\n*(1-AW$71)),\n'National Shipments'!S$165/SUM('National Shipments'!S$155,'National Shipments'!S$165)\n*(1-AW$71),AV80)","v":4.2782950817124951E-2},{"$f":"IF(ISNUMBER(\n'National Shipments'!T$165/SUM('National Shipments'!T$155,'National Shipments'!T$165)\n*(1-AX$71)),\n'National Shipments'!T$165/SUM('National Shipments'!T$155,'National Shipments'!T$165)\n*(1-AX$71),AW80)","v":4.3826535219528569E-2},{"$f":"IF(ISNUMBER(\n'National Shipments'!U$165/SUM('National Shipments'!U$155,'National Shipments'!U$165)\n*(1-AY$71)),\n'National Shipments'!U$165/SUM('National Shipments'!U$155,'National Shipments'!U$165)\n*(1-AY$71),AX80)","v":4.4938496606985172E-2},{"$f":"IF(ISNUMBER(\n'National Shipments'!V$165/SUM('National Shipments'!V$155,'National Shipments'!V$165)\n*(1-AZ$71)),\n'National Shipments'!V$165/SUM('National Shipments'!V$155,'National Shipments'!V$165)\n*(1-AZ$71),AY80)","v":4.6068918037821344E-2},{"$f":"IF(ISNUMBER(\n'National Shipments'!W$165/SUM('National Shipments'!W$155,'National Shipments'!W$165)\n*(1-BA$71)),\n'National Shipments'!W$165/SUM('National Shipments'!W$155,'National Shipments'!W$165)\n*(1-BA$71),AZ80)","v":4.7140485281094047E-2},{"$f":"IF(ISNUMBER(\n'National Shipments'!X$165/SUM('National Shipments'!X$155,'National Shipments'!X$165)\n*(1-BB$71)),\n'National Shipments'!X$165/SUM('National Shipments'!X$155,'National Shipments'!X$165)\n*(1-BB$71),BA80)","v":4.8156193255540249E-2},{"$f":"IF(ISNUMBER(\n'National Shipments'!Y$165/SUM('National Shipments'!Y$155,'National Shipments'!Y$165)\n*(1-BC$71)),\n'National Shipments'!Y$165/SUM('National Shipments'!Y$155,'National Shipments'!Y$165)\n*(1-BC$71),BB80)","v":4.9075515515494356E-2},{"$f":"IF(ISNUMBER(\n'National Shipments'!Z$165/SUM('National Shipments'!Z$155,'National Shipments'!Z$165)\n*(1-BD$71)),\n'National Shipments'!Z$165/SUM('National Shipments'!Z$155,'National Shipments'!Z$165)\n*(1-BD$71),BC80)","v":4.9838648669154106E-2},{"$f":"IF(ISNUMBER(\n'National Shipments'!AA$165/SUM('National Shipments'!AA$155,'National Shipments'!AA$165)\n*(1-BE$71)),\n'National Shipments'!AA$165/SUM('National Shipments'!AA$155,'National Shipments'!AA$165)\n*(1-BE$71),BD80)","v":5.0705683241056662E-2}]
[null,null,"PC 8 - Mobile Home Electric Furnace / Modular Blower Fan (MH-EF/MB)",0.79800000000000004,0.79800000000000004,0.79800000000000004,0.79800000000000004,0.79800000000000004,0.79800000000000004,0.79800000000000004,0.79800000000000004,0.79800000000000004,0.79800000000000004,{"$f":"O81","v":0.79800000000000004},0.79800000000000004,0.79800000000000004,0.79800000000000004,0.79800000000000004,0.79800000000000004,0.79800000000000004,0.79800000000000004,0.79800000000000004,0.79800000000000004,0.79800000000000004,0.79800000000000004,0.79800000000000004,0.79800000000000004,0.79800000000000004,0.79800000000000004,0.79800000000000004,0.79800000000000004,0.79800000000000004,0.79800000000000004,0.79800000000000004,{"$f":"'Data by Building Type'!$F$15","v":0.79800000000000004},{"$f":"'Data by Building Type'!$F$15","v":0.79800000000000004},{"$f":"'Data by Building Type'!$F$15","v":0.79800000000000004},{"$f":"'Data by Building Type'!$F$15","v":0.79800000000000004},{"$f":"'Data by Building Type'!$F$15","v":0.79800000000000004},{"$f":"'Data by Building Type'!$F$15","v":0.79800000000000004},{"$f":"'Data by Building Type'!$F$15","v":0.79800000000000004},{"$f":"'Data by Building Type'!$F$15","v":0.79800000000000004},{"$f":"'Data by Building Type'!$F$15","v":0.79800000000000004},{"$f":"'Data by Building Type'!$F$15","v":0.79800000000000004},{"$f":"'Data by Building Type'!$F$15","v":0.79800000000000004},{"$f":"'Data by Building Type'!$F$15","v":0.79800000000000004},{"$f":"'Data by Building Type'!$F$15","v":0.79800000000000004},{"$f":"'Data by Building Type'!$F$15","v":0.79800000000000004},{"$f":"'Data by Building Type'!$F$15","v":0.79800000000000004},{"$f":"'Data by Building Type'!$F$15","v":0.79800000000000004},{"$f":"'Data by Building Type'!$F$15","v":0.79800000000000004},{"$f":"'Data by Building Type'!$F$15","v":0.79800000000000004},{"$f":"'Data by Building Type'!$F$15","v":0.79800000000000004},{"$f":"'Data by Building Type'!$F$15","v":0.79800000000000004},{"$f":"'Data by Building Type'!$F$15","v":0.79800000000000004},{"$f":"'Data by Building Type'!$F$15","v":0.79800000000000004},{"$f":"'Data by Building Type'!$F$15","v":0.79800000000000004}]
[]
[null,null,"Source/Rationale"]

{"sheet":"UEC Development","index":20,"n_rows":83,"n_cols":57,"rows_kept":83,"cut":false,"hidden":false,"merged":[]}
[]
[null,null,"UEC Development"]
[]
[null,null,"NAVIGATION"]
[]
[null,null,"COMMENTS"]
[]
[]
[null,null,"Single Family"]
[]
[null,null,"PRE-Case",1981,{"$f":"D11+1","v":1982},1983,1984,1985,1986,1987,1988,1989,1990,1991,1992,1993,{"$f":"P11+1","v":1994},1995,1996,1997,1998,1999,2000,2001,2002,2003,2004,2005,2006,2007,2008,2009,2010,2011,2012,2013,2014,2015,2016,2017,2018,2019,2020,2021,2022,2023,2024,2025,2026,2027,2028,2029,2030,2031,2032,2033,2034]
[null,null,{"$f":"'Product Classes'!H10&\" - \"&OFFSET('Product Classes'!$C$9,MATCH('Product Classes'!H10,MODEL_PCS,0),0)","v":"PC 1 - Non-Weatherized, Non-Condensing Gas Furnace Fan (NWG-NC)"},{"$f":"SUMPRODUCT('Efficiency Dist - SF'!F$19:F$25,'Product Class UECs'!$D$11:$D$17)","v":881.95901051267685},{"$f":"SUMPRODUCT('Efficiency Dist - SF'!G$19:G$25,'Product Class UECs'!$D$11:$D$17)","v":875.77440787339492},{"$f":"SUMPRODUCT('Efficiency Dist - SF'!H$19:H$25,'Product Class UECs'!$D$11:$D$17)","v":883.1727229200111},{"$f":"SUMPRODUCT('Efficiency Dist - SF'!I$19:I$25,'Product Class UECs'!$D$11:$D$17)","v":881.79289778764132},{"$f":"SUMPRODUCT('Efficiency Dist - SF'!J$19:J$25,'Product Class UECs'!$D$11:$D$17)","v":880.93858127285853},{"$f":"SUMPRODUCT('Efficiency Dist - SF'!K$19:K$25,'Product Class UECs'!$D$11:$D$17)","v":882.34882184697062},{"$f":"SUMPRODUCT('Efficiency Dist - SF'!L$19:L$25,'Product Class UECs'!$D$11:$D$17)","v":882.45977865116788},{"$f":"SUMPRODUCT('Efficiency Dist - SF'!M$19:M$25,'Product Class UECs'!$D$11:$D$17)","v":884.3492593525616},{"$f":"SUMPRODUCT('Efficiency Dist - SF'!N$19:N$25,'Product Class UECs'!$D$11:$D$17)","v":888.66087463245071},{"$f":"SUMPRODUCT('Efficiency Dist - SF'!O$19:O$25,'Product Class UECs'!$D$11:$D$17)","v":891.59903036210153},{"$f":"SUMPRODUCT('Efficiency Dist - SF'!P$19:P$25,'Product Class UECs'!$D$11:$D$17)","v":888.60371602836824},{"$f":"SUMPRODUCT('Efficiency Dist - SF'!Q$19:Q$25,'Product Class UECs'!$D$11:$D$17)","v":893.53025820924086},{"$f":"SUMPRODUCT('Efficiency Dist - SF'!R$19:R$25,'Product Class UECs'!$D$11:$D$17)","v":879.99743368436111},{"$f":"SUMPRODUCT('Efficiency Dist - SF'!S$19:S$25,'Product Class UECs'!$D$11:$D$17)","v":881.3604456990812},{"$f":"SUMPRODUCT('Efficiency Dist - SF'!T$19:T$25,'Product Class UECs'!$D$11:$D$17)","v":876.33813644599149},{"$f":"SUMPRODUCT('Efficiency Dist - SF'!U$19:U$25,'Product Class UECs'!$D$11:$D$17)","v":877.06166826279309},{"$f":"SUMPRODUCT('Efficiency Dist - SF'!V$19:V$25,'Product Class UECs'!$D$11:$D$17)","v":875.99159199162864},{"$f":"SUMPRODUCT('Efficiency Dist - SF'!W$19:W$25,'Product Class UECs'!$D$11:$D$17)","v":876.50470246062332},{"$f":"SUMPRODUCT('Efficiency Dist - SF'!X$19:X$25,'Product Class UECs'!$D$11:$D$17)","v":874.85749918168233},{"$f":"SUMPRODUCT('Efficiency Dist - SF'!Y$19:Y$25,'Product Class UECs'!$D$11:$D$17)","v":870.84993360792441},{"$f":"SUMPRODUCT('Efficiency Dist - SF'!Z$19:Z$25,'Product Class UECs'!$D$11:$D$17)","v":870.7822583424886},{"$f":"SUMPRODUCT('Efficiency Dist - SF'!AA$19:AA$25,'Product Class UECs'!$D$11:$D$17)","v":871.40309775217156},{"$f":"SUMPRODUCT('Efficiency Dist - SF'!AB$19:AB$25,'Product Class UECs'!$D$11:$D$17)","v":874.94029449897278},{"$f":"SUMPRODUCT('Efficiency Dist - SF'!AC$19:AC$25,'Product Class UECs'!$D$11:$D$17)","v":874.69320495603074},{"$f":"SUMPRODUCT('Efficiency Dist - SF'!AD$19:AD$25,'Product Class UECs'!$D$11:$D$17)","v":877.73850461831262},{"$f":"SUMPRODUCT('Efficiency Dist - SF'!AE$19:AE$25,'Product Class UECs'!$D$11:$D$17)","v":873.11667754736993},{"$f":"SUMPRODUCT('Efficiency Dist - SF'!AF$19:AF$25,'Product Class UECs'!$D$11:$D$17)","v":862.90751336575272},{"$f":"SUMPRODUCT('Efficiency Dist - SF'!AG$19:AG$25,'Product Class UECs'!$D$11:$D$17)","v":858.54875590906772},{"$f":"SUMPRODUCT('Efficiency Dist - SF'!AH$19:AH$25,'Product Class UECs'!$D$11:$D$17)","v":858.54875590906772},{"$f":"SUMPRODUCT('Efficiency Dist - SF'!AI$19:AI$25,'Product Class UECs'!$D$11:$D$17)","v":858.54875590906772},{"$f":"SUMPRODUCT('Efficiency Dist - SF'!AJ$19:AJ$25,'Product Class UECs'!$D$11:$D$17)","v":860.36449200549293},{"$f":"SUMPRODUCT('Efficiency Dist - SF'!AK$19:AK$25,'Product Class UECs'!$D$11:$D$17)","v":885.75143308773568},{"$f":"SUMPRODUCT('Efficiency Dist - SF'!AL$19:AL$25,'Product Class UECs'!$D$11:$D$17)","v":884.99167818898661},{"$f":"SUMPRODUCT('Efficiency Dist - SF'!AM$19:AM$25,'Product Class UECs'!$D$11:$D$17)","v":888.25572385479518},{"$f":"SUMPRODUCT('Efficiency Dist - SF'!AN$19:AN$25,'Product Class UECs'!$D$11:$D$17)","v":887.9921917738053},{"$f":"SUMPRODUCT('Efficiency Dist - SF'!AO$19:AO$25,'Product Class UECs'!$D$11:$D$17)","v":889.27114149841759},{"$f":"SUMPRODUCT('Efficiency Dist - SF'!AP$19:AP$25,'Product Class UECs'!$D$11:$D$17)","v":888.70849326652956},{"$f":"SUMPRODUCT('Efficiency Dist - SF'!AQ$19:AQ$25,'Product Class UECs'!$D$11:$D$17)","v":888.5174162829519},{"$f":"SUMPRODUCT('Efficiency Dist - SF'!AR$19:AR$25,'Product Class UECs'!$D$11:$D$17)","v":887.91599896708101},{"$f":"SUMPRODUCT('Efficiency Dist - SF'!AS$19:AS$25,'Product Class UECs'!$D$11:$D$17)","v":887.92398696009298},{"$f":"SUMPRODUCT('Efficiency Dist - SF'!AT$19:AT$25,'Product Class UECs'!$D$11:$D$17)","v":888.24276096617677},{"$f":"SUMPRODUCT('Efficiency Dist - SF'!AU$19:AU$25,'Product Class UECs'!$D$11:$D$17)","v":887.86841094897613},{"$f":"SUMPRODUCT('Efficiency Dist - SF'!AV$19:AV$25,'Product Class UECs'!$D$11:$D$17)","v":882.70245932199464},{"$f":"SUMPRODUCT('Efficiency Dist - SF'!AW$19:AW$25,'Product Class UECs'!$D$11:$D$17)","v":883.00708538104413},{"$f":"SUMPRODUCT('Efficiency Dist - SF'!AX$19:AX$25,'Product Class UECs'!$D$11:$D$17)","v":881.46952159826833},{"$f":"SUMPRODUCT('Efficiency Dist - SF'!AY$19:AY$25,'Product Class UECs'!$D$11:$D$17)","v":881.00299027195365},{"$f":"SUMPRODUCT('Efficiency Dist - SF'!AZ$19:AZ$25,'Product Class UECs'!$D$11:$D$17)","v":881.70295266673224},{"$f":"SUMPRODUCT('Efficiency Dist - SF'!BA$19:BA$25,'Product Class UECs'!$D$11:$D$17)","v":882.77921075280472},{"$f":"SUMPRODUCT('Efficiency Dist - SF'!BB$19:BB$25,'Product Class UECs'!$D$11:$D$17)","v":885.08224398658695},{"$f":"SUMPRODUCT('Efficiency Dist - SF'!BC$19:BC$25,'Product Class UECs'!$D$11:$D$17)","v":885.54923683536947},{"$f":"SUMPRODUCT('Efficiency Dist - SF'!BD$19:BD$25,'Product Class UECs'!$D$11:$D$17)","v":882.93601714826048},{"$f":"SUMPRODUCT('Efficiency Dist - SF'!BE$19:BE$25,'Product Class UECs'!$D$11:$D$17)","v":881.10904869851538},{"$f":"SUMPRODUCT('Efficiency Dist - SF'!BF$19:BF$25,'Product Class UECs'!$D$11:$D$17)","v":877.47743738886265},{"$f":"SUMPRODUCT('Efficiency Dist - SF'!BG$19:BG$25,'Product Class UECs'!$D$11:$D$17)","v":876.80553783185724}]
[null,null,{"$f":"'Product Classes'!H11&\" - \"&OFFSET('Product Classes'!$C$9,MATCH('Product Classes'!H11,MODEL_PCS,0),0)","v":"PC 2 - Non-Weatherized, Condensing Gas Furnace Fan (NWG-C)"},{"$f":"SUMPRODUCT('Efficiency Dist - SF'!F$45:F$51,'Product Class UECs'!$D$21:$D$27)","v":835.38616802352465},{"$f":"SUMPRODUCT('Efficiency Dist - SF'!G$45:G$51,'Product Class UECs'!$D$21:$D$27)","v":825.49388973716975},{"$f":"SUMPRODUCT('Efficiency Dist - SF'!H$45:H$51,'Product Class UECs'!$D$21:$D$27)","v":837.32750226813573},{"$f":"SUMPRODUCT('Efficiency Dist - SF'!I$45:I$51,'Product Class UECs'!$D$21:$D$27)","v":835.12047054887694},{"$f":"SUMPRODUCT('Efficiency Dist - SF'!J$45:J$51,'Product Class UECs'!$D$21:$D$27)","v":833.75399040427033},{"$f":"SUMPRODUCT('Efficiency Dist - SF'!K$45:K$51,'Product Class UECs'!$D$21:$D$27)","v":836.00967165389818},{"$f":"SUMPRODUCT('Efficiency Dist - SF'!L$45:L$51,'Product Class UECs'!$D$21:$D$27)","v":836.18714717640182},{"$f":"SUMPRODUCT('Efficiency Dist - SF'!M$45:M$51,'Product Class UECs'!$D$21:$D$27)","v":839.20937350282179},{"$f":"SUMPRODUCT('Efficiency Dist - SF'!N$45:N$51,'Product Class UECs'!$D$21:$D$27)","v":846.10580658026106},{"$f":"SUMPRODUCT('Efficiency Dist - SF'!O$45:O$51,'Product Class UECs'!$D$21:$D$27)","v":850.80538969361237},{"$f":"SUMPRODUCT('Efficiency Dist - SF'!P$45:P$51,'Product Class UECs'!$D$21:$D$27)","v":846.0143813342072},{"$f":"SUMPRODUCT('Efficiency Dist - SF'!Q$45:Q$51,'Product Class UECs'!$D$21:$D$27)","v":853.89439062261567},{"$f":"SUMPRODUCT('Efficiency Dist - SF'!R$45:R$51,'Product Class UECs'!$D$21:$D$27)","v":832.24862386789573},{"$f":"SUMPRODUCT('Efficiency Dist - SF'!S$45:S$51,'Product Class UECs'!$D$21:$D$27)","v":834.42876298817146},{"$f":"SUMPRODUCT('Efficiency Dist - SF'!T$45:T$51,'Product Class UECs'!$D$21:$D$27)","v":826.39557416919342},{"$f":"SUMPRODUCT('Efficiency Dist - SF'!U$45:U$51,'Product Class UECs'!$D$21:$D$27)","v":827.55286405478341},{"$f":"SUMPRODUCT('Efficiency Dist - SF'!V$45:V$51,'Product Class UECs'!$D$21:$D$27)","v":825.84127595779705},{"$f":"SUMPRODUCT('Efficiency Dist - SF'!W$45:W$51,'Product Class UECs'!$D$21:$D$27)","v":826.66199668101672},{"$f":"SUMPRODUCT('Efficiency Dist - SF'!X$45:X$51,'Product Class UECs'!$D$21:$D$27)","v":824.02729334114758},{"$f":"SUMPRODUCT('Efficiency Dist - SF'!Y$45:Y$51,'Product Class UECs'!$D$21:$D$27)","v":817.6171880815748},{"$f":"SUMPRODUCT('Efficiency Dist - SF'!Z$45:Z$51,'Product Class UECs'!$D$21:$D$27)","v":817.50894142486266},{"$f":"SUMPRODUCT('Efficiency Dist - SF'!AA$45:AA$51,'Product Class UECs'!$D$21:$D$27)","v":818.5019746995813},{"$f":"SUMPRODUCT('Efficiency Dist - SF'!AB$45:AB$51,'Product Class UECs'!$D$21:$D$27)","v":824.15972453636152},{"$f":"SUMPRODUCT('Efficiency Dist - SF'!AC$45:AC$51,'Product Class UECs'!$D$21:$D$27)","v":823.76450455813608},{"$f":"SUMPRODUCT('Efficiency Dist - SF'!AD$45:AD$51,'Product Class UECs'!$D$21:$D$27)","v":828.63546450199624},{"$f":"SUMPRODUCT('Efficiency Dist - SF'!AE$45:AE$51,'Product Class UECs'!$D$21:$D$27)","v":821.2428473455152},{"$f":"SUMPRODUCT('Efficiency Dist - SF'!AF$45:AF$51,'Product Class UECs'!$D$21:$D$27)","v":804.9132787303563},{"$f":"SUMPRODUCT('Efficiency Dist - SF'!AG$45:AG$51,'Product Class UECs'!$D$21:$D$27)","v":797.94144169261551},{"$f":"SUMPRODUCT('Efficiency Dist - SF'!AH$45:AH$51,'Product Class UECs'!$D$21:$D$27)","v":797.94144169261551},{"$f":"SUMPRODUCT('Efficiency Dist - SF'!AI$45:AI$51,'Product Class UECs'!$D$21:$D$27)","v":797.94144169261551},{"$f":"SUMPRODUCT('Efficiency Dist - SF'!AJ$45:AJ$51,'Product Class UECs'!$D$21:$D$27)","v":800.84571344749486},{"$f":"SUMPRODUCT('Efficiency Dist - SF'!AK$45:AK$51,'Product Class UECs'!$D$21:$D$27)","v":841.45215183526602},{"$f":"SUMPRODUCT('Efficiency Dist - SF'!AL$45:AL$51,'Product Class UECs'!$D$21:$D$27)","v":840.23692309282228},{"$f":"SUMPRODUCT('Efficiency Dist - SF'!AM$45:AM$51,'Product Class UECs'!$D$21:$D$27)","v":845.45776749444406},{"$f":"SUMPRODUCT('Efficiency Dist - SF'!AN$45:AN$51,'Product Class UECs'!$D$21:$D$27)","v":845.03624765968959},{"$f":"SUMPRODUCT('Efficiency Dist - SF'!AO$45:AO$51,'Product Class UECs'!$D$21:$D$27)","v":847.08192906042541},{"$f":"SUMPRODUCT('Efficiency Dist - SF'!AP$45:AP$51,'Product Class UECs'!$D$21:$D$27)","v":846.18197263447644},{"$f":"SUMPRODUCT('Efficiency Dist - SF'!AQ$45:AQ$51,'Product Class UECs'!$D$21:$D$27)","v":845.87634480259908},{"$f":"SUMPRODUCT('Efficiency Dist - SF'!AR$45:AR$51,'Product Class UECs'!$D$21:$D$27)","v":844.91437718692077},{"$f":"SUMPRODUCT('Efficiency Dist - SF'!AS$45:AS$51,'Product Class UECs'!$D$21:$D$27)","v":844.92715398996393},{"$f":"SUMPRODUCT('Efficiency Dist - SF'!AT$45:AT$51,'Product Class UECs'!$D$21:$D$27)","v":845.43703334075815},{"$f":"SUMPRODUCT('Efficiency Dist - SF'!AU$45:AU$51,'Product Class UECs'!$D$21:$D$27)","v":844.83826010298731},{"$f":"SUMPRODUCT('Efficiency Dist - SF'!AV$45:AV$51,'Product Class UECs'!$D$21:$D$27)","v":836.5753151591415},{"$f":"SUMPRODUCT('Efficiency Dist - SF'!AW$45:AW$51,'Product Class UECs'!$D$21:$D$27)","v":837.06256485409426},{"$f":"SUMPRODUCT('Efficiency Dist - SF'!AX$45:AX$51,'Product Class UECs'!$D$21:$D$27)","v":834.60323000117535},{"$f":"SUMPRODUCT('Efficiency Dist - SF'!AY$45:AY$51,'Product Class UECs'!$D$21:$D$27)","v":833.85701266460899},{"$f":"SUMPRODUCT('Efficiency Dist - SF'!AZ$45:AZ$51,'Product Class UECs'!$D$21:$D$27)","v":834.97660323541675},{"$f":"SUMPRODUCT('Efficiency Dist - SF'!BA$45:BA$51,'Product Class UECs'!$D$21:$D$27)","v":836.69807915171054},{"$f":"SUMPRODUCT('Efficiency Dist - SF'!BB$45:BB$51,'Product Class UECs'!$D$21:$D$27)","v":840.38178317928907},{"$f":"SUMPRODUCT('Efficiency Dist - SF'!BC$45:BC$51,'Product Class UECs'!$D$21:$D$27)","v":841.12873872151795},{"$f":"SUMPRODUCT('Efficiency Dist - SF'!BD$45:BD$51,'Product Class UECs'!$D$21:$D$27)","v":836.94889114261753},{"$f":"SUMPRODUCT('Efficiency Dist - SF'!BE$45:BE$51,'Product Class UECs'!$D$21:$D$27)","v":834.0266532270432},{"$f":"SUMPRODUCT('Efficiency Dist - SF'!BF$45:BF$51,'Product Class UECs'!$D$21:$D$27)","v":828.21788719981635},{"$f":"SUMPRODUCT('Efficiency Dist - SF'!BG$45:BG$51,'Product Class UECs'!$D$21:$D$27)","v":827.14318316690765}]
[null,null,{"$f":"'Product Classes'!H12&\" - \"&OFFSET('Product Classes'!$C$9,MATCH('Product Classes'!H12,MODEL_PCS,0),0)","v":"PC 3 - Weatherized Non-Condensing Gas Furnace Fan (WG-NC)"},{"$f":"SUMPRODUCT('Efficiency Dist - SF'!F$71:F$77,'Product Class UECs'!$D$31:$D$37)","v":905.26387239105691},{"$f":"SUMPRODUCT('Efficiency Dist - SF'!G$71:G$77,'Product Class UECs'!$D$31:$D$37)","v":889.59884431721355},{"$f":"SUMPRODUCT('Efficiency Dist - SF'!H$71:H$77,'Product Class UECs'!$D$31:$D$37)","v":908.33809397704874},{"$f":"SUMPRODUCT('Efficiency Dist - SF'!I$71:I$77,'Product Class UECs'!$D$31:$D$37)","v":904.84312417926799},{"$f":"SUMPRODUCT('Efficiency Dist - SF'!J$71:J$77,'Product Class UECs'!$D$31:$D$37)","v":902.67921924170241},{"$f":"SUMPRODUCT('Efficiency Dist - SF'!K$71:K$77,'Product Class UECs'!$D$31:$D$37)","v":906.25122854817346},{"$f":"SUMPRODUCT('Efficiency Dist - SF'!L$71:L$77,'Product Class UECs'!$D$31:$D$37)","v":906.53227189955953},{"$f":"SUMPRODUCT('Efficiency Dist - SF'!M$71:M$77,'Product Class UECs'!$D$31:$D$37)","v":911.31815224768752},{"$f":"SUMPRODUCT('Efficiency Dist - SF'!N$71:N$77,'Product Class UECs'!$D$31:$D$37)","v":922.2390760874955},{"$f":"SUMPRODUCT('Efficiency Dist - SF'!O$71:O$77,'Product Class UECs'!$D$31:$D$37)","v":929.68115356195904},{"$f":"SUMPRODUCT('Efficiency Dist - SF'!P$71:P$77,'Product Class UECs'!$D$31:$D$37)","v":922.09429861514445},{"$f":"SUMPRODUCT('Efficiency Dist - SF'!Q$71:Q$77,'Product Class UECs'!$D$31:$D$37)","v":934.57277557988311},{"$f":"SUMPRODUCT('Efficiency Dist - SF'!R$71:R$77,'Product Class UECs'!$D$31:$D$37)","v":900.29537920292614},{"$f":"SUMPRODUCT('Efficiency Dist - SF'!S$71:S$77,'Product Class UECs'!$D$31:$D$37)","v":903.74776292439014},{"$f":"SUMPRODUCT('Efficiency Dist - SF'!T$71:T$77,'Product Class UECs'!$D$31:$D$37)","v":891.02671679840751},{"$f":"SUMPRODUCT('Efficiency Dist - SF'!U$71:U$77,'Product Class UECs'!$D$31:$D$37)","v":892.85935615837684},{"$f":"SUMPRODUCT('Efficiency Dist - SF'!V$71:V$77,'Product Class UECs'!$D$31:$D$37)","v":890.14895165761288},{"$f":"SUMPRODUCT('Efficiency Dist - SF'!W$71:W$77,'Product Class UECs'!$D$31:$D$37)","v":891.44861315093658},{"$f":"SUMPRODUCT('Efficiency Dist - SF'!X$71:X$77,'Product Class UECs'!$D$31:$D$37)","v":887.27639916841781},{"$f":"SUMPRODUCT('Efficiency Dist - SF'!Y$71:Y$77,'Product Class UECs'!$D$31:$D$37)","v":877.12560519146223},{"$f":"SUMPRODUCT('Efficiency Dist - SF'!Z$71:Z$77,'Product Class UECs'!$D$31:$D$37)","v":876.95418998586365},{"$f":"SUMPRODUCT('Efficiency Dist - SF'!AA$71:AA$77,'Product Class UECs'!$D$31:$D$37)","v":878.52671895001367},{"$f":"SUMPRODUCT('Efficiency Dist - SF'!AB$71:AB$77,'Product Class UECs'!$D$31:$D$37)","v":887.48611207082786},{"$f":"SUMPRODUCT('Efficiency Dist - SF'!AC$71:AC$77,'Product Class UECs'!$D$31:$D$37)","v":886.86025704784606},{"$f":"SUMPRODUCT('Efficiency Dist - SF'!AD$71:AD$77,'Product Class UECs'!$D$31:$D$37)","v":894.57372022168238},{"$f":"SUMPRODUCT('Efficiency Dist - SF'!AE$71:AE$77,'Product Class UECs'!$D$31:$D$37)","v":882.86705852624777},{"$f":"SUMPRODUCT('Efficiency Dist - SF'!AF$71:AF$77,'Product Class UECs'!$D$31:$D$37)","v":857.0081872545951},{"$f":"SUMPRODUCT('Efficiency Dist - SF'!AG$71:AG$77,'Product Class UECs'!$D$31:$D$37)","v":845.96785662892773},{"$f":"SUMPRODUCT('Efficiency Dist - SF'!AH$71:AH$77,'Product Class UECs'!$D$31:$D$37)","v":845.96785662892773},{"$f":"SUMPRODUCT('Efficiency Dist - SF'!AI$71:AI$77,'Product Class UECs'!$D$31:$D$37)","v":845.96785662892773},{"$f":"SUMPRODUCT('Efficiency Dist - SF'!AJ$71:AJ$77,'Product Class UECs'!$D$31:$D$37)","v":850.56694869420119},{"$f":"SUMPRODUCT('Efficiency Dist - SF'!AK$71:AK$77,'Product Class UECs'!$D$31:$D$37)","v":914.86972899513989},{"$f":"SUMPRODUCT('Efficiency Dist - SF'!AL$71:AL$77,'Product Class UECs'!$D$31:$D$37)","v":912.94533990948526},{"$f":"SUMPRODUCT('Efficiency Dist - SF'!AM$71:AM$77,'Product Class UECs'!$D$31:$D$37)","v":921.21286653511424},{"$f":"SUMPRODUCT('Efficiency Dist - SF'!AN$71:AN$77,'Product Class UECs'!$D$31:$D$37)","v":920.54536407976786},{"$f":"SUMPRODUCT('Efficiency Dist - SF'!AO$71:AO$77,'Product Class UECs'!$D$31:$D$37)","v":923.78482577352827},{"$f":"SUMPRODUCT('Efficiency Dist - SF'!AP$71:AP$77,'Product Class UECs'!$D$31:$D$37)","v":922.35968969570774},{"$f":"SUMPRODUCT('Efficiency Dist - SF'!AQ$71:AQ$77,'Product Class UECs'!$D$31:$D$37)","v":921.87570931950779},{"$f":"SUMPRODUCT('Efficiency Dist - SF'!AR$71:AR$77,'Product Class UECs'!$D$31:$D$37)","v":920.35237472766585},{"$f":"SUMPRODUCT('Efficiency Dist - SF'!AS$71:AS$77,'Product Class UECs'!$D$31:$D$37)","v":920.37260757722527},{"$f":"SUMPRODUCT('Efficiency Dist - SF'!AT$71:AT$77,'Product Class UECs'!$D$31:$D$37)","v":921.18003273382237},{"$f":"SUMPRODUCT('Efficiency Dist - SF'!AU$71:AU$77,'Product Class UECs'!$D$31:$D$37)","v":920.2318386668918},{"$f":"SUMPRODUCT('Efficiency Dist - SF'!AV$71:AV$77,'Product Class UECs'!$D$31:$D$37)","v":907.14695965610736},{"$f":"SUMPRODUCT('Efficiency Dist - SF'!AW$71:AW$77,'Product Class UECs'!$D$31:$D$37)","v":907.91854936774507},{"$f":"SUMPRODUCT('Efficiency Dist - SF'!AX$71:AX$77,'Product Class UECs'!$D$31:$D$37)","v":904.02404211686257},{"$f":"SUMPRODUCT('Efficiency Dist - SF'!AY$71:AY$77,'Product Class UECs'!$D$31:$D$37)","v":902.84236129591091},{"$f":"SUMPRODUCT('Efficiency Dist - SF'!AZ$71:AZ$77,'Product Class UECs'!$D$31:$D$37)","v":904.61530148372458},{"$f":"SUMPRODUCT('Efficiency Dist - SF'!BA$71:BA$77,'Product Class UECs'!$D$31:$D$37)","v":907.34136395149642},{"$f":"SUMPRODUCT('Efficiency Dist - SF'!BB$71:BB$77,'Product Class UECs'!$D$31:$D$37)","v":913.17473472184201},{"$f":"SUMPRODUCT('Efficiency Dist - SF'!BC$71:BC$77,'Product Class UECs'!$D$31:$D$37)","v":914.35758453663846},{"$f":"SUMPRODUCT('Efficiency Dist - SF'!BD$71:BD$77,'Product Class UECs'!$D$31:$D$37)","v":907.73854008879073},{"$f":"SUMPRODUCT('Efficiency Dist - SF'!BE$71:BE$77,'Product Class UECs'!$D$31:$D$37)","v":903.11099750852736},{"$f":"SUMPRODUCT('Efficiency Dist - SF'!BF$71:BF$77,'Product Class UECs'!$D$31:$D$37)","v":893.91246100795047},{"$f":"SUMPRODUCT('Efficiency Dist - SF'!BG$71:BG$77,'Product Class UECs'!$D$31:$D$37)","v":892.21060139995632}]
[null,null,{"$f":"'Product Classes'!H13&\" - \"&OFFSET('Product Classes'!$C$9,MATCH('Product Classes'!H13,MODEL_PCS,0),0)","v":"PC 4 - Non-Weatherized, Non-Condensing Oil Furnace Fan (NWO-NC)"},{"$f":"SUMPRODUCT('Efficiency Dist - SF'!F$97:F$103,'Product Class UECs'!$D$41:$D$47)","v":1011.9399520454417},{"$f":"SUMPRODUCT('Efficiency Dist - SF'!G$97:G$103,'Product Class UECs'!$D$41:$D$47)","v":1004.4538269283763},{"$f":"SUMPRODUCT('Efficiency Dist - SF'!H$97:H$103,'Product Class UECs'!$D$41:$D$47)","v":1013.4090849012421},{"$f":"SUMPRODUCT('Efficiency Dist - SF'!I$97:I$103,'Product Class UECs'!$D$41:$D$47)","v":1011.7388816265836},{"$f":"SUMPRODUCT('Efficiency Dist - SF'!J$97:J$103,'Product Class UECs'!$D$41:$D$47)","v":1010.7047779513338},{"$f":"SUMPRODUCT('Efficiency Dist - SF'!K$97:K$103,'Product Class UECs'!$D$41:$D$47)","v":1012.4117974639395},{"$f":"SUMPRODUCT('Efficiency Dist - SF'!L$97:L$103,'Product Class UECs'!$D$41:$D$47)","v":1012.5461046405289},{"$f":"SUMPRODUCT('Efficiency Dist - SF'!M$97:M$103,'Product Class UECs'!$D$41:$D$47)","v":1014.8332182615518},{"$f":"SUMPRODUCT('Efficiency Dist - SF'!N$97:N$103,'Product Class UECs'!$D$41:$D$47)","v":1020.0521940510209},{"$f":"SUMPRODUCT('Efficiency Dist - SF'!O$97:O$103,'Product Class UECs'!$D$41:$D$47)","v":1023.6086717567808},{"$f":"SUMPRODUCT('Efficiency Dist - SF'!P$97:P$103,'Product Class UECs'!$D$41:$D$47)","v":1019.9830066696104},{"$f":"SUMPRODUCT('Efficiency Dist - SF'!Q$97:Q$103,'Product Class UECs'!$D$41:$D$47)","v":1025.9463180271196},{"$f":"SUMPRODUCT('Efficiency Dist - SF'!R$97:R$103,'Product Class UECs'!$D$41:$D$47)","v":1009.5655699840562},{"$f":"SUMPRODUCT('Efficiency Dist - SF'!S$97:S$103,'Product Class UECs'!$D$41:$D$47)","v":1011.2154218942583},{"$f":"SUMPRODUCT('Efficiency Dist - SF'!T$97:T$103,'Product Class UECs'!$D$41:$D$47)","v":1005.1361897045581},{"$f":"SUMPRODUCT('Efficiency Dist - SF'!U$97:U$103,'Product Class UECs'!$D$41:$D$47)","v":1006.011985616223},{"$f":"SUMPRODUCT('Efficiency Dist - SF'!V$97:V$103,'Product Class UECs'!$D$41:$D$47)","v":1004.7167164909505},{"$f":"SUMPRODUCT('Efficiency Dist - SF'!W$97:W$103,'Product Class UECs'!$D$41:$D$47)","v":1005.3378088058184},{"$f":"SUMPRODUCT('Efficiency Dist - SF'!X$97:X$103,'Product Class UECs'!$D$41:$D$47)","v":1003.3439588273139},{"$f":"SUMPRODUCT('Efficiency Dist - SF'!Y$97:Y$103,'Product Class UECs'!$D$41:$D$47)","v":998.49301866998815},{"$f":"SUMPRODUCT('Efficiency Dist - SF'!Z$97:Z$103,'Product Class UECs'!$D$41:$D$47)","v":998.41110144200559},{"$f":"SUMPRODUCT('Efficiency Dist - SF'!AA$97:AA$103,'Product Class UECs'!$D$41:$D$47)","v":999.16259378024745},{"$f":"SUMPRODUCT('Efficiency Dist - SF'!AB$97:AB$103,'Product Class UECs'!$D$41:$D$47)","v":1003.4441780556936},{"$f":"SUMPRODUCT('Efficiency Dist - SF'!AC$97:AC$103,'Product Class UECs'!$D$41:$D$47)","v":1003.1450896030524},{"$f":"SUMPRODUCT('Efficiency Dist - SF'!AD$97:AD$103,'Product Class UECs'!$D$41:$D$47)","v":1006.8312592117512},{"$f":"SUMPRODUCT('Efficiency Dist - SF'!AE$97:AE$103,'Product Class UECs'!$D$41:$D$47)","v":1001.2367889214926},{"$f":"SUMPRODUCT('Efficiency Dist - SF'!AF$97:AF$103,'Product Class UECs'!$D$41:$D$47)","v":988.87915095154153},{"$f":"SUMPRODUCT('Efficiency Dist - SF'!AG$97:AG$103,'Product Class UECs'!$D$41:$D$47)","v":983.60311212110275},{"$f":"SUMPRODUCT('Efficiency Dist - SF'!AH$97:AH$103,'Product Class UECs'!$D$41:$D$47)","v":983.60311212110275},{"$f":"SUMPRODUCT('Efficiency Dist - SF'!AI$97:AI$103,'Product Class UECs'!$D$41:$D$47)","v":983.60311212110264},{"$f":"SUMPRODUCT('Efficiency Dist - SF'!AJ$97:AJ$103,'Product Class UECs'!$D$41:$D$47)","v":985.80096190874701},{"$f":"SUMPRODUCT('Efficiency Dist - SF'!AK$97:AK$103,'Product Class UECs'!$D$41:$D$47)","v":1016.5304733043741},{"$f":"SUMPRODUCT('Efficiency Dist - SF'!AL$97:AL$103,'Product Class UECs'!$D$41:$D$47)","v":1015.6108313221692},{"$f":"SUMPRODUCT('Efficiency Dist - SF'!AM$97:AM$103,'Product Class UECs'!$D$41:$D$47)","v":1019.5617810706393},{"$f":"SUMPRODUCT('Efficiency Dist - SF'!AN$97:AN$103,'Product Class UECs'!$D$41:$D$47)","v":1019.242789819994},{"$f":"SUMPRODUCT('Efficiency Dist - SF'!AO$97:AO$103,'Product Class UECs'!$D$41:$D$47)","v":1020.7908889001304},{"$f":"SUMPRODUCT('Efficiency Dist - SF'!AP$97:AP$103,'Product Class UECs'!$D$41:$D$47)","v":1020.1098338176171},{"$f":"SUMPRODUCT('Efficiency Dist - SF'!AQ$97:AQ$103,'Product Class UECs'!$D$41:$D$47)","v":1019.8785455215884},{"$f":"SUMPRODUCT('Efficiency Dist - SF'!AR$97:AR$103,'Product Class UECs'!$D$41:$D$47)","v":1019.1505625715467},{"$f":"SUMPRODUCT('Efficiency Dist - SF'!AS$97:AS$103,'Product Class UECs'!$D$41:$D$47)","v":1019.1602316026244},{"$f":"SUMPRODUCT('Efficiency Dist - SF'!AT$97:AT$103,'Product Class UECs'!$D$41:$D$47)","v":1019.5460901990124},{"$f":"SUMPRODUCT('Efficiency Dist - SF'!AU$97:AU$103,'Product Class UECs'!$D$41:$D$47)","v":1019.092959863922},{"$f":"SUMPRODUCT('Efficiency Dist - SF'!AV$97:AV$103,'Product Class UECs'!$D$41:$D$47)","v":1012.839856393271},{"$f":"SUMPRODUCT('Efficiency Dist - SF'!AW$97:AW$103,'Product Class UECs'!$D$41:$D$47)","v":1013.2085896692749},{"$f":"SUMPRODUCT('Efficiency Dist - SF'!AX$97:AX$103,'Product Class UECs'!$D$41:$D$47)","v":1011.3474523376344},{"$f":"SUMPRODUCT('Efficiency Dist - SF'!AY$97:AY$103,'Product Class UECs'!$D$41:$D$47)","v":1010.7827415415618},{"$f":"SUMPRODUCT('Efficiency Dist - SF'!AZ$97:AZ$103,'Product Class UECs'!$D$41:$D$47)","v":1011.630007949798},{"$f":"SUMPRODUCT('Efficiency Dist - SF'!BA$97:BA$103,'Product Class UECs'!$D$41:$D$47)","v":1012.9327598257908},{"$f":"SUMPRODUCT('Efficiency Dist - SF'!BB$97:BB$103,'Product Class UECs'!$D$41:$D$47)","v":1015.7204562943311},{"$f":"SUMPRODUCT('Efficiency Dist - SF'!BC$97:BC$103,'Product Class UECs'!$D$41:$D$47)","v":1016.2857257382493},{"$f":"SUMPRODUCT('Efficiency Dist - SF'!BD$97:BD$103,'Product Class UECs'!$D$41:$D$47)","v":1013.1225654388595},{"$f":"SUMPRODUCT('Efficiency Dist - SF'!BE$97:BE$103,'Product Class UECs'!$D$41:$D$47)","v":1010.9111194984439},{"$f":"SUMPRODUCT('Efficiency Dist - SF'!BF$97:BF$103,'Product Class UECs'!$D$41:$D$47)","v":1006.5152515298324},{"$f":"SUMPRODUCT('Efficiency Dist - SF'!BG$97:BG$103,'Product Class UECs'!$D$41:$D$47)","v":1005.7019536603955}]
[null,null,{"$f":"'Product Classes'!H14&\" - \"&OFFSET('Product Classes'!$C$9,MATCH('Product Classes'!H14,MODEL_PCS,0),0)","v":"PC 5 - Non-Weatherized Electric Furnace / Modular Blower Fan (NWEF/NWMB)"},{"$f":"SUMPRODUCT('Efficiency Dist - SF'!F$123:F$129,'Product Class UECs'!$D$51:$D$57)","v":476.61583174600719},{"$f":"SUMPRODUCT('Efficiency Dist - SF'!G$123:G$129,'Product Class UECs'!$D$51:$D$57)","v":471.32339999128595},{"$f":"SUMPRODUCT('Efficiency Dist - SF'!H$123:H$129,'Product Class UECs'!$D$51:$D$57)","v":477.6544579052491},{"$f":"SUMPRODUCT('Efficiency Dist - SF'!I$123:I$129,'Product Class UECs'!$D$51:$D$57)","v":476.47368190839973},{"$f":"SUMPRODUCT('Efficiency Dist - SF'!J$123:J$129,'Product Class UECs'!$D$51:$D$57)","v":475.74260634621203},{"$f":"SUMPRODUCT('Efficiency Dist - SF'!K$123:K$129,'Product Class UECs'!$D$51:$D$57)","v":476.94941015100665},{"$f":"SUMPRODUCT('Efficiency Dist - SF'!L$123:L$129,'Product Class UECs'!$D$51:$D$57)","v":477.04436068351231},{"$f":"SUMPRODUCT('Efficiency Dist - SF'!M$123:M$129,'Product Class UECs'!$D$51:$D$57)","v":478.66127097625679},{"$f":"SUMPRODUCT('Efficiency Dist - SF'!N$123:N$129,'Product Class UECs'!$D$51:$D$57)","v":482.35090650376668},{"$f":"SUMPRODUCT('Efficiency Dist - SF'!O$123:O$129,'Product Class UECs'!$D$51:$D$57)","v":484.86521333815483},{"$f":"SUMPRODUCT('Efficiency Dist - SF'!P$123:P$129,'Product Class UECs'!$D$51:$D$57)","v":482.30199341606414},{"$f":"SUMPRODUCT('Efficiency Dist - SF'!Q$123:Q$129,'Product Class UECs'!$D$51:$D$57)","v":486.51784846767509},{"$f":"SUMPRODUCT('Efficiency Dist - SF'!R$123:R$129,'Product Class UECs'!$D$51:$D$57)","v":474.93722568172018},{"$f":"SUMPRODUCT('Efficiency Dist - SF'!S$123:S$129,'Product Class UECs'!$D$51:$D$57)","v":476.10361396719463},{"$f":"SUMPRODUCT('Efficiency Dist - SF'!T$123:T$129,'Product Class UECs'!$D$51:$D$57)","v":471.80580689317861},{"$f":"SUMPRODUCT('Efficiency Dist - SF'!U$123:U$129,'Product Class UECs'!$D$51:$D$57)","v":472.42496433725933},{"$f":"SUMPRODUCT('Efficiency Dist - SF'!V$123:V$129,'Product Class UECs'!$D$51:$D$57)","v":471.50925382717503},{"$f":"SUMPRODUCT('Efficiency Dist - SF'!W$123:W$129,'Product Class UECs'!$D$51:$D$57)","v":471.94834463028315},{"$f":"SUMPRODUCT('Efficiency Dist - SF'!X$123:X$129,'Product Class UECs'!$D$51:$D$57)","v":470.53876159829076},{"$f":"SUMPRODUCT('Efficiency Dist - SF'!Y$123:Y$129,'Product Class UECs'!$D$51:$D$57)","v":467.10931454425224},{"$f":"SUMPRODUCT('Efficiency Dist - SF'!Z$123:Z$129,'Product Class UECs'!$D$51:$D$57)","v":467.05140189493721},{"$f":"SUMPRODUCT('Efficiency Dist - SF'!AA$123:AA$129,'Product Class UECs'!$D$51:$D$57)","v":467.58268100824966},{"$f":"SUMPRODUCT('Efficiency Dist - SF'!AB$123:AB$129,'Product Class UECs'!$D$51:$D$57)","v":470.60961312941214},{"$f":"SUMPRODUCT('Efficiency Dist - SF'!AC$123:AC$129,'Product Class UECs'!$D$51:$D$57)","v":470.39816792919504},{"$f":"SUMPRODUCT('Efficiency Dist - SF'!AD$123:AD$129,'Product Class UECs'!$D$51:$D$57)","v":473.00416245711085},{"$f":"SUMPRODUCT('Efficiency Dist - SF'!AE$123:AE$129,'Product Class UECs'!$D$51:$D$57)","v":469.04906529375825},{"$f":"SUMPRODUCT('Efficiency Dist - SF'!AF$123:AF$129,'Product Class UECs'!$D$51:$D$57)","v":460.31264230018195},{"$f":"SUMPRODUCT('Efficiency Dist - SF'!AG$123:AG$129,'Product Class UECs'!$D$51:$D$57)","v":456.58266517467223},{"$f":"SUMPRODUCT('Efficiency Dist - SF'!AH$123:AH$129,'Product Class UECs'!$D$51:$D$57)","v":456.58266517467223},{"$f":"SUMPRODUCT('Efficiency Dist - SF'!AI$123:AI$129,'Product Class UECs'!$D$51:$D$57)","v":456.58266517467217},{"$f":"SUMPRODUCT('Efficiency Dist - SF'!AJ$123:AJ$129,'Product Class UECs'!$D$51:$D$57)","v":458.13646902196842},{"$f":"SUMPRODUCT('Efficiency Dist - SF'!AK$123:AK$129,'Product Class UECs'!$D$51:$D$57)","v":479.86117163835206},{"$f":"SUMPRODUCT('Efficiency Dist - SF'!AL$123:AL$129,'Product Class UECs'!$D$51:$D$57)","v":479.21101653761764},{"$f":"SUMPRODUCT('Efficiency Dist - SF'!AM$123:AM$129,'Product Class UECs'!$D$51:$D$57)","v":482.00420147416696},{"$f":"SUMPRODUCT('Efficiency Dist - SF'!AN$123:AN$129,'Product Class UECs'!$D$51:$D$57)","v":481.77868568355524},{"$f":"SUMPRODUCT('Efficiency Dist - SF'!AO$123:AO$129,'Product Class UECs'!$D$51:$D$57)","v":482.87313823451416},{"$f":"SUMPRODUCT('Efficiency Dist - SF'!AP$123:AP$129,'Product Class UECs'!$D$51:$D$57)","v":482.39165582685405},{"$f":"SUMPRODUCT('Efficiency Dist - SF'!AQ$123:AQ$129,'Product Class UECs'!$D$51:$D$57)","v":482.22814299434668},{"$f":"SUMPRODUCT('Efficiency Dist - SF'!AR$123:AR$129,'Product Class UECs'!$D$51:$D$57)","v":481.71348420606193},{"$f":"SUMPRODUCT('Efficiency Dist - SF'!AS$123:AS$129,'Product Class UECs'!$D$51:$D$57)","v":481.72031987689456},{"$f":"SUMPRODUCT('Efficiency Dist - SF'!AT$123:AT$129,'Product Class UECs'!$D$51:$D$57)","v":481.99310857016678},{"$f":"SUMPRODUCT('Efficiency Dist - SF'!AU$123:AU$129,'Product Class UECs'!$D$51:$D$57)","v":481.67276108238656},{"$f":"SUMPRODUCT('Efficiency Dist - SF'!AV$123:AV$129,'Product Class UECs'!$D$51:$D$57)","v":477.25203302132473},{"$f":"SUMPRODUCT('Efficiency Dist - SF'!AW$123:AW$129,'Product Class UECs'!$D$51:$D$57)","v":477.51271470489644},{"$f":"SUMPRODUCT('Efficiency Dist - SF'!AX$123:AX$129,'Product Class UECs'!$D$51:$D$57)","v":476.19695492799707},{"$f":"SUMPRODUCT('Efficiency Dist - SF'!AY$123:AY$129,'Product Class UECs'!$D$51:$D$57)","v":475.79772391026324},{"$f":"SUMPRODUCT('Efficiency Dist - SF'!AZ$123:AZ$129,'Product Class UECs'!$D$51:$D$57)","v":476.396711981333},{"$f":"SUMPRODUCT('Efficiency Dist - SF'!BA$123:BA$129,'Product Class UECs'!$D$51:$D$57)","v":477.31771253758995},{"$f":"SUMPRODUCT('Efficiency Dist - SF'!BB$123:BB$129,'Product Class UECs'!$D$51:$D$57)","v":479.2885176045524},{"$f":"SUMPRODUCT('Efficiency Dist - SF'!BC$123:BC$129,'Product Class UECs'!$D$51:$D$57)","v":479.6881435670075},{"$f":"SUMPRODUCT('Efficiency Dist - SF'!BD$123:BD$129,'Product Class UECs'!$D$51:$D$57)","v":477.45189854678989},{"$f":"SUMPRODUCT('Efficiency Dist - SF'!BE$123:BE$129,'Product Class UECs'!$D$51:$D$57)","v":475.88848268933583},{"$f":"SUMPRODUCT('Efficiency Dist - SF'!BF$123:BF$129,'Product Class UECs'!$D$51:$D$57)","v":472.78075594648351},{"$f":"SUMPRODUCT('Efficiency Dist - SF'!BG$123:BG$129,'Product Class UECs'!$D$51:$D$57)","v":472.20578245847128}]
[null,null,{"$f":"'Product Classes'!H15&\" - \"&OFFSET('Product Classes'!$C$9,MATCH('Product Classes'!H15,MODEL_PCS,0),0)","v":"PC 6 - Mobile Home Non-Weatherized, Non-Condensing Gas Furnace Fan (MH-NWG-NC)"},{"$f":"SUMPRODUCT('Efficiency Dist - SF'!F$149:F$155,'Product Class UECs'!$D$61:$D$67)","v":0},{"$f":"SUMPRODUCT('Efficiency Dist - SF'!G$149:G$155,'Product Class UECs'!$D$61:$D$67)","v":0},{"$f":"SUMPRODUCT('Efficiency Dist - SF'!H$149:H$155,'Product Class UECs'!$D$61:$D$67)","v":0},{"$f":"SUMPRODUCT('Efficiency Dist - SF'!I$149:I$155,'Product Class UECs'!$D$61:$D$67)","v":0},{"$f":"SUMPRODUCT('Efficiency Dist - SF'!J$149:J$155,'Product Class UECs'!$D$61:$D$67)","v":0},{"$f":"SUMPRODUCT('Efficiency Dist - SF'!K$149:K$155,'Product Class UECs'!$D$61:$D$67)","v":0},{"$f":"SUMPRODUCT('Efficiency Dist - SF'!L$149:L$155,'Product Class UECs'!$D$61:$D$67)","v":0},{"$f":"SUMPRODUCT('Efficiency Dist - SF'!M$149:M$155,'Product Class UECs'!$D$61:$D$67)","v":0},{"$f":"SUMPRODUCT('Efficiency Dist - SF'!N$149:N$155,'Product Class UECs'!$D$61:$D$67)","v":0},{"$f":"SUMPRODUCT('Efficiency Dist - SF'!O$149:O$155,'Product Class UECs'!$D$61:$D$67)","v":0},{"$f":"SUMPRODUCT('Efficiency Dist - SF'!P$149:P$155,'Product Class UECs'!$D$61:$D$67)","v":0},{"$f":"SUMPRODUCT('Efficiency Dist - SF'!Q$149:Q$155,'Product Class UECs'!$D$61:$D$67)","v":0},{"$f":"SUMPRODUCT('Efficiency Dist - SF'!R$149:R$155,'Product Class UECs'!$D$61:$D$67)","v":0},{"$f":"SUMPRODUCT('Efficiency Dist - SF'!S$149:S$155,'Product Class UECs'!$D$61:$D$67)","v":0},{"$f":"SUMPRODUCT('Efficiency Dist - SF'!T$149:T$155,'Product Class UECs'!$D$61:$D$67)","v":0},{"$f":"SUMPRODUCT('Efficiency Dist - SF'!U$149:U$155,'Product Class UECs'!$D$61:$D$67)","v":0},{"$f":"SUMPRODUCT('Efficiency Dist - SF'!V$149:V$155,'Product Class UECs'!$D$61:$D$67)","v":0},{"$f":"SUMPRODUCT('Efficiency Dist - SF'!W$149:W$155,'Product Class UECs'!$D$61:$D$67)","v":0},{"$f":"SUMPRODUCT('Efficiency Dist - SF'!X$149:X$155,'Product Class UECs'!$D$61:$D$67)","v":0},{"$f":"SUMPRODUCT('Efficiency Dist - SF'!Y$149:Y$155,'Product Class UECs'!$D$61:$D$67)","v":0},{"$f":"SUMPRODUCT('Efficiency Dist - SF'!Z$149:Z$155,'Product Class UECs'!$D$61:$D$67)","v":0},{"$f":"SUMPRODUCT('Efficiency Dist - SF'!AA$149:AA$155,'Product Class UECs'!$D$61:$D$67)","v":0},{"$f":"SUMPRODUCT('Efficiency Dist - SF'!AB$149:AB$155,'Product Class UECs'!$D$61:$D$67)","v":0},{"$f":"SUMPRODUCT('Efficiency Dist - SF'!AC$149:AC$155,'Product Class UECs'!$D$61:$D$67)","v":0},{"$f":"SUMPRODUCT('Efficiency Dist - SF'!AD$149:AD$155,'Product Class UECs'!$D$61:$D$67)","v":0},{"$f":"SUMPRODUCT('Efficiency Dist - SF'!AE$149:AE$155,'Product Class UECs'!$D$61:$D$67)","v":0},{"$f":"SUMPRODUCT('Efficiency Dist - SF'!AF$149:AF$155,'Product Class UECs'!$D$61:$D$67)","v":0},{"$f":"SUMPRODUCT('Efficiency Dist - SF'!AG$149:AG$155,'Product Class UECs'!$D$61:$D$67)","v":0},{"$f":"SUMPRODUCT('Efficiency Dist - SF'!AH$149:AH$155,'Product Class UECs'!$D$61:$D$67)","v":0},{"$f":"SUMPRODUCT('Efficiency Dist - SF'!AI$149:AI$155,'Product Class UECs'!$D$61:$D$67)","v":0},{"$f":"SUMPRODUCT('Efficiency Dist - SF'!AJ$149:AJ$155,'Product Class UECs'!$D$61:$D$67)","v":0},{"$f":"SUMPRODUCT('Efficiency Dist - SF'!AK$149:AK$155,'Product Class UECs'!$D$61:$D$67)","v":0},{"$f":"SUMPRODUCT('Efficiency Dist - SF'!AL$149:AL$155,'Product Class UECs'!$D$61:$D$67)","v":0},{"$f":"SUMPRODUCT('Efficiency Dist - SF'!AM$149:AM$155,'Product Class UECs'!$D$61:$D$67)","v":0},{"$f":"SUMPRODUCT('Efficiency Dist - SF'!AN$149:AN$155,'Product Class UECs'!$D$61:$D$67)","v":0},{"$f":"SUMPRODUCT('Efficiency Dist - SF'!AO$149:AO$155,'Product Class UECs'!$D$61:$D$67)","v":0},{"$f":"SUMPRODUCT('Efficiency Dist - SF'!AP$149:AP$155,'Product Class UECs'!$D$61:$D$67)","v":0},{"$f":"SUMPRODUCT('Efficiency Dist - SF'!AQ$149:AQ$155,'Product Class UECs'!$D$61:$D$67)","v":0},{"$f":"SUMPRODUCT('Efficiency Dist - SF'!AR$149:AR$155,'Product Class UECs'!$D$61:$D$67)","v":0},{"$f":"SUMPRODUCT('Efficiency Dist - SF'!AS$149:AS$155,'Product Class UECs'!$D$61:$D$67)","v":0},{"$f":"SUMPRODUCT('Efficiency Dist - SF'!AT$149:AT$155,'Product Class UECs'!$D$61:$D$67)","v":0},{"$f":"SUMPRODUCT('Efficiency Dist - SF'!AU$149:AU$155,'Product Class UECs'!$D$61:$D$67)","v":0},{"$f":"SUMPRODUCT('Efficiency Dist - SF'!AV$149:AV$155,'Product Class UECs'!$D$61:$D$67)","v":0},{"$f":"SUMPRODUCT('Efficiency Dist - SF'!AW$149:AW$155,'Product Class UECs'!$D$61:$D$67)","v":0},{"$f":"SUMPRODUCT('Efficiency Dist - SF'!AX$149:AX$155,'Product Class UECs'!$D$61:$D$67)","v":0},{"$f":"SUMPRODUCT('Efficiency Dist - SF'!AY$149:AY$155,'Product Class UECs'!$D$61:$D$67)","v":0},{"$f":"SUMPRODUCT('Efficiency Dist - SF'!AZ$149:AZ$155,'Product Class UECs'!$D$61:$D$67)","v":0},{"$f":"SUMPRODUCT('Efficiency Dist - SF'!BA$149:BA$155,'Product Class UECs'!$D$61:$D$67)","v":0},{"$f":"SUMPRODUCT('Efficiency Dist - SF'!BB$149:BB$155,'Product Class UECs'!$D$61:$D$67)","v":0},{"$f":"SUMPRODUCT('Efficiency Dist - SF'!BC$149:BC$155,'Product Class UECs'!$D$61:$D$67)","v":0},{"$f":"SUMPRODUCT('Efficiency Dist - SF'!BD$149:BD$155,'Product Class UECs'!$D$61:$D$67)","v":0},{"$f":"SUMPRODUCT('Efficiency Dist - SF'!BE$149:BE$155,'Product Class UECs'!$D$61:$D$67)","v":0},{"$f":"SUMPRODUCT('Efficiency Dist - SF'!BF$149:BF$155,'Product Class UECs'!$D$61:$D$67)","v":0},{"$f":"SUMPRODUCT('Efficiency Dist - SF'!BG$149:BG$155,'Product Class UECs'!$D$61:$D$67)","v":0}]
[null,null,{"$f":"'Product Classes'!H16&\" - \"&OFFSET('Product Classes'!$C$9,MATCH('Product Classes'!H16,MODEL_PCS,0),0)","v":"PC 7 - Mobile Home Non-Weatherized, Condensing Gas Furnace Fan (MH-NWG-C)"},{"$f":"SUMPRODUCT('Efficiency Dist - SF'!F$175:F$181,'Product Class UECs'!$D$71:$D$77)","v":0},{"$f":"SUMPRODUCT('Efficiency Dist - SF'!G$175:G$181,'Product Class UECs'!$D$71:$D$77)","v":0},{"$f":"SUMPRODUCT('Efficiency Dist - SF'!H$175:H$181,'Product Class UECs'!$D$71:$D$77)","v":0},{"$f":"SUMPRODUCT('Efficiency Dist - SF'!I$175:I$181,'Product Class UECs'!$D$71:$D$77)","v":0},{"$f":"SUMPRODUCT('Efficiency Dist - SF'!J$175:J$181,'Product Class UECs'!$D$71:$D$77)","v":0},{"$f":"SUMPRODUCT('Efficiency Dist - SF'!K$175:K$181,'Product Class UECs'!$D$71:$D$77)","v":0},{"$f":"SUMPRODUCT('Efficiency Dist - SF'!L$175:L$181,'Product Class UECs'!$D$71:$D$77)","v":0},{"$f":"SUMPRODUCT('Efficiency Dist - SF'!M$175:M$181,'Product Class UECs'!$D$71:$D$77)","v":0},{"$f":"SUMPRODUCT('Efficiency Dist - SF'!N$175:N$181,'Product Class UECs'!$D$71:$D$77)","v":0},{"$f":"SUMPRODUCT('Efficiency Dist - SF'!O$175:O$181,'Product Class UECs'!$D$71:$D$77)","v":0},{"$f":"SUMPRODUCT('Efficiency Dist - SF'!P$175:P$181,'Product Class UECs'!$D$71:$D$77)","v":0},{"$f":"SUMPRODUCT('Efficiency Dist - SF'!Q$175:Q$181,'Product Class UECs'!$D$71:$D$77)","v":0},{"$f":"SUMPRODUCT('Efficiency Dist - SF'!R$175:R$181,'Product Class UECs'!$D$71:$D$77)","v":0},{"$f":"SUMPRODUCT('Efficiency Dist - SF'!S$175:S$181,'Product Class UECs'!$D$71:$D$77)","v":0},{"$f":"SUMPRODUCT('Efficiency Dist - SF'!T$175:T$181,'Product Class UECs'!$D$71:$D$77)","v":0},{"$f":"SUMPRODUCT('Efficiency Dist - SF'!U$175:U$181,'Product Class UECs'!$D$71:$D$77)","v":0},{"$f":"SUMPRODUCT('Efficiency Dist - SF'!V$175:V$181,'Product Class UECs'!$D$71:$D$77)","v":0},{"$f":"SUMPRODUCT('Efficiency Dist - SF'!W$175:W$181,'Product Class UECs'!$D$71:$D$77)","v":0},{"$f":"SUMPRODUCT('Efficiency Dist - SF'!X$175:X$181,'Product Class UECs'!$D$71:$D$77)","v":0},{"$f":"SUMPRODUCT('Efficiency Dist - SF'!Y$175:Y$181,'Product Class UECs'!$D$71:$D$77)","v":0},{"$f":"SUMPRODUCT('Efficiency Dist - SF'!Z$175:Z$181,'Product Class UECs'!$D$71:$D$77)","v":0},{"$f":"SUMPRODUCT('Efficiency Dist - SF'!AA$175:AA$181,'Product Class UECs'!$D$71:$D$77)","v":0},{"$f":"SUMPRODUCT('Efficiency Dist - SF'!AB$175:AB$181,'Product Class UECs'!$D$71:$D$77)","v":0},{"$f":"SUMPRODUCT('Efficiency Dist - SF'!AC$175:AC$181,'Product Class UECs'!$D$71:$D$77)","v":0},{"$f":"SUMPRODUCT('Efficiency Dist - SF'!AD$175:AD$181,'Product Class UECs'!$D$71:$D$77)","v":0},{"$f":"SUMPRODUCT('Efficiency Dist - SF'!AE$175:AE$181,'Product Class UECs'!$D$71:$D$77)","v":0},{"$f":"SUMPRODUCT('Efficiency Dist - SF'!AF$175:AF$181,'Product Class UECs'!$D$71:$D$77)","v":0},{"$f":"SUMPRODUCT('Efficiency Dist - SF'!AG$175:AG$181,'Product Class UECs'!$D$71:$D$77)","v":0},{"$f":"SUMPRODUCT('Efficiency Dist - SF'!AH$175:AH$181,'Product Class UECs'!$D$71:$D$77)","v":0},{"$f":"SUMPRODUCT('Efficiency Dist - SF'!AI$175:AI$181,'Product Class UECs'!$D$71:$D$77)","v":0},{"$f":"SUMPRODUCT('Efficiency Dist - SF'!AJ$175:AJ$181,'Product Class UECs'!$D$71:$D$77)","v":0},{"$f":"SUMPRODUCT('Efficiency Dist - SF'!AK$175:AK$181,'Product Class UECs'!$D$71:$D$77)","v":0},{"$f":"SUMPRODUCT('Efficiency Dist - SF'!AL$175:AL$181,'Product Class UECs'!$D$71:$D$77)","v":0},{"$f":"SUMPRODUCT('Efficiency Dist - SF'!AM$175:AM$181,'Product Class UECs'!$D$71:$D$77)","v":0},{"$f":"SUMPRODUCT('Efficiency Dist - SF'!AN$175:AN$181,'Product Class UECs'!$D$71:$D$77)","v":0},{"$f":"SUMPRODUCT('Efficiency Dist - SF'!AO$175:AO$181,'Product Class UECs'!$D$71:$D$77)","v":0},{"$f":"SUMPRODUCT('Efficiency Dist - SF'!AP$175:AP$181,'Product Class UECs'!$D$71:$D$77)","v":0},{"$f":"SUMPRODUCT('Efficiency Dist - SF'!AQ$175:AQ$181,'Product Class UECs'!$D$71:$D$77)","v":0},{"$f":"SUMPRODUCT('Efficiency Dist - SF'!AR$175:AR$181,'Product Class UECs'!$D$71:$D$77)","v":0},{"$f":"SUMPRODUCT('Efficiency Dist - SF'!AS$175:AS$181,'Product Class UECs'!$D$71:$D$77)","v":0},{"$f":"SUMPRODUCT('Efficiency Dist - SF'!AT$175:AT$181,'Product Class UECs'!$D$71:$D$77)","v":0},{"$f":"SUMPRODUCT('Efficiency Dist - SF'!AU$175:AU$181,'Product Class UECs'!$D$71:$D$77)","v":0},{"$f":"SUMPRODUCT('Efficiency Dist - SF'!AV$175:AV$181,'Product Class UECs'!$D$71:$D$77)","v":0},{"$f":"SUMPRODUCT('Efficiency Dist - SF'!AW$175:AW$181,'Product Class UECs'!$D$71:$D$77)","v":0},{"$f":"SUMPRODUCT('Efficiency Dist - SF'!AX$175:AX$181,'Product Class UECs'!$D$71:$D$77)","v":0},{"$f":"SUMPRODUCT('Efficiency Dist - SF'!AY$175:AY$181,'Product Class UECs'!$D$71:$D$77)","v":0},{"$f":"SUMPRODUCT('Efficiency Dist - SF'!AZ$175:AZ$181,'Product Class UECs'!$D$71:$D$77)","v":0},{"$f":"SUMPRODUCT('Efficiency Dist - SF'!BA$175:BA$181,'Product Class UECs'!$D$71:$D$77)","v":0},{"$f":"SUMPRODUCT('Efficiency Dist - SF'!BB$175:BB$181,'Product Class UECs'!$D$71:$D$77)","v":0},{"$f":"SUMPRODUCT('Efficiency Dist - SF'!BC$175:BC$181,'Product Class UECs'!$D$71:$D$77)","v":0},{"$f":"SUMPRODUCT('Efficiency Dist - SF'!BD$175:BD$181,'Product Class UECs'!$D$71:$D$77)","v":0},{"$f":"SUMPRODUCT('Efficiency Dist - SF'!BE$175:BE$181,'Product Class UECs'!$D$71:$D$77)","v":0},{"$f":"SUMPRODUCT('Efficiency Dist - SF'!BF$175:BF$181,'Product Class UECs'!$D$71:$D$77)","v":0},{"$f":"SUMPRODUCT('Efficiency Dist - SF'!BG$175:BG$181,'Product Class UECs'!$D$71:$D$77)","v":0}]
[null,null,{"$f":"'Product Classes'!H17&\" - \"&OFFSET('Product Classes'!$C$9,MATCH('Product Classes'!H17,MODEL_PCS,0),0)","v":"PC 8 - Mobile Home Electric Furnace / Modular Blower Fan (MH-EF/MB)"},{"$f":"SUMPRODUCT('Efficiency Dist - SF'!F$201:F$207,'Product Class UECs'!$D$81:$D$87)","v":0},{"$f":"SUMPRODUCT('Efficiency Dist - SF'!G$201:G$207,'Product Class UECs'!$D$81:$D$87)","v":0},{"$f":"SUMPRODUCT('Efficiency Dist - SF'!H$201:H$207,'Product Class UECs'!$D$81:$D$87)","v":0},{"$f":"SUMPRODUCT('Efficiency Dist - SF'!I$201:I$207,'Product Class UECs'!$D$81:$D$87)","v":0},{"$f":"SUMPRODUCT('Efficiency Dist - SF'!J$201:J$207,'Product Class UECs'!$D$81:$D$87)","v":0},{"$f":"SUMPRODUCT('Efficiency Dist - SF'!K$201:K$207,'Product Class UECs'!$D$81:$D$87)","v":0},{"$f":"SUMPRODUCT('Efficiency Dist - SF'!L$201:L$207,'Product Class UECs'!$D$81:$D$87)","v":0},{"$f":"SUMPRODUCT('Efficiency Dist - SF'!M$201:M$207,'Product Class UECs'!$D$81:$D$87)","v":0},{"$f":"SUMPRODUCT('Efficiency Dist - SF'!N$201:N$207,'Product Class UECs'!$D$81:$D$87)","v":0},{"$f":"SUMPRODUCT('Efficiency Dist - SF'!O$201:O$207,'Product Class UECs'!$D$81:$D$87)","v":0},{"$f":"SUMPRODUCT('Efficiency Dist - SF'!P$201:P$207,'Product Class UECs'!$D$81:$D$87)","v":0},{"$f":"SUMPRODUCT('Efficiency Dist - SF'!Q$201:Q$207,'Product Class UECs'!$D$81:$D$87)","v":0},{"$f":"SUMPRODUCT('Efficiency Dist - SF'!R$201:R$207,'Product Class UECs'!$D$81:$D$87)","v":0},{"$f":"SUMPRODUCT('Efficiency Dist - SF'!S$201:S$207,'Product Class UECs'!$D$81:$D$87)","v":0},{"$f":"SUMPRODUCT('Efficiency Dist - SF'!T$201:T$207,'Product Class UECs'!$D$81:$D$87)","v":0},{"$f":"SUMPRODUCT('Efficiency Dist - SF'!U$201:U$207,'Product Class UECs'!$D$81:$D$87)","v":0},{"$f":"SUMPRODUCT('Efficiency Dist - SF'!V$201:V$207,'Product Class UECs'!$D$81:$D$87)","v":0},{"$f":"SUMPRODUCT('Efficiency Dist - SF'!W$201:W$207,'Product Class UECs'!$D$81:$D$87)","v":0},{"$f":"SUMPRODUCT('Efficiency Dist - SF'!X$201:X$207,'Product Class UECs'!$D$81:$D$87)","v":0},{"$f":"SUMPRODUCT('Efficiency Dist - SF'!Y$201:Y$207,'Product Class UECs'!$D$81:$D$87)","v":0},{"$f":"SUMPRODUCT('Efficiency Dist - SF'!Z$201:Z$207,'Product Class UECs'!$D$81:$D$87)","v":0},{"$f":"SUMPRODUCT('Efficiency Dist - SF'!AA$201:AA$207,'Product Class UECs'!$D$81:$D$87)","v":0},{"$f":"SUMPRODUCT('Efficiency Dist - SF'!AB$201:AB$207,'Product Class UECs'!$D$81:$D$87)","v":0},{"$f":"SUMPRODUCT('Efficiency Dist - SF'!AC$201:AC$207,'Product Class UECs'!$D$81:$D$87)","v":0},{"$f":"SUMPRODUCT('Efficiency Dist - SF'!AD$201:AD$207,'Product Class UECs'!$D$81:$D$87)","v":0},{"$f":"SUMPRODUCT('Efficiency Dist - SF'!AE$201:AE$207,'Product Class UECs'!$D$81:$D$87)","v":0},{"$f":"SUMPRODUCT('Efficiency Dist - SF'!AF$201:AF$207,'Product Class UECs'!$D$81:$D$87)","v":0},{"$f":"SUMPRODUCT('Efficiency Dist - SF'!AG$201:AG$207,'Product Class UECs'!$D$81:$D$87)","v":0},{"$f":"SUMPRODUCT('Efficiency Dist - SF'!AH$201:AH$207,'Product Class UECs'!$D$81:$D$87)","v":0},{"$f":"SUMPRODUCT('Efficiency Dist - SF'!AI$201:AI$207,'Product Class UECs'!$D$81:$D$87)","v":0},{"$f":"SUMPRODUCT('Efficiency Dist - SF'!AJ$201:AJ$207,'Product Class UECs'!$D$81:$D$87)","v":0},{"$f":"SUMPRODUCT('Efficiency Dist - SF'!AK$201:AK$207,'Product Class UECs'!$D$81:$D$87)","v":0},{"$f":"SUMPRODUCT('Efficiency Dist - SF'!AL$201:AL$207,'Product Class UECs'!$D$81:$D$87)","v":0},{"$f":"SUMPRODUCT('Efficiency Dist - SF'!AM$201:AM$207,'Product Class UECs'!$D$81:$D$87)","v":0},{"$f":"SUMPRODUCT('Efficiency Dist - SF'!AN$201:AN$207,'Product Class UECs'!$D$81:$D$87)","v":0},{"$f":"SUMPRODUCT('Efficiency Dist - SF'!AO$201:AO$207,'Product Class UECs'!$D$81:$D$87)","v":0},{"$f":"SUMPRODUCT('Efficiency Dist - SF'!AP$201:AP$207,'Product Class UECs'!$D$81:$D$87)","v":0},{"$f":"SUMPRODUCT('Efficiency Dist - SF'!AQ$201:AQ$207,'Product Class UECs'!$D$81:$D$87)","v":0},{"$f":"SUMPRODUCT('Efficiency Dist - SF'!AR$201:AR$207,'Product Class UECs'!$D$81:$D$87)","v":0},{"$f":"SUMPRODUCT('Efficiency Dist - SF'!AS$201:AS$207,'Product Class UECs'!$D$81:$D$87)","v":0},{"$f":"SUMPRODUCT('Efficiency Dist - SF'!AT$201:AT$207,'Product Class UECs'!$D$81:$D$87)","v":0},{"$f":"SUMPRODUCT('Efficiency Dist - SF'!AU$201:AU$207,'Product Class UECs'!$D$81:$D$87)","v":0},{"$f":"SUMPRODUCT('Efficiency Dist - SF'!AV$201:AV$207,'Product Class UECs'!$D$81:$D$87)","v":0},{"$f":"SUMPRODUCT('Efficiency Dist - SF'!AW$201:AW$207,'Product Class UECs'!$D$81:$D$87)","v":0},{"$f":"SUMPRODUCT('Efficiency Dist - SF'!AX$201:AX$207,'Product Class UECs'!$D$81:$D$87)","v":0},{"$f":"SUMPRODUCT('Efficiency Dist - SF'!AY$201:AY$207,'Product Class UECs'!$D$81:$D$87)","v":0},{"$f":"SUMPRODUCT('Efficiency Dist - SF'!AZ$201:AZ$207,'Product Class UECs'!$D$81:$D$87)","v":0},{"$f":"SUMPRODUCT('Efficiency Dist - SF'!BA$201:BA$207,'Product Class UECs'!$D$81:$D$87)","v":0},{"$f":"SUMPRODUCT('Efficiency Dist - SF'!BB$201:BB$207,'Product Class UECs'!$D$81:$D$87)","v":0},{"$f":"SUMPRODUCT('Efficiency Dist - SF'!BC$201:BC$207,'Product Class UECs'!$D$81:$D$87)","v":0},{"$f":"SUMPRODUCT('Efficiency Dist - SF'!BD$201:BD$207,'Product Class UECs'!$D$81:$D$87)","v":0},{"$f":"SUMPRODUCT('Efficiency Dist - SF'!BE$201:BE$207,'Product Class UECs'!$D$81:$D$87)","v":0},{"$f":"SUMPRODUCT('Efficiency Dist - SF'!BF$201:BF$207,'Product Class UECs'!$D$81:$D$87)","v":0},{"$f":"SUMPRODUCT('Efficiency Dist - SF'!BG$201:BG$207,'Product Class UECs'!$D$81:$D$87)","v":0}]
[]
[null,null,"POST-Case",1981,{"$f":"D21+1","v":1982},1983,1984,1985,1986,1987,1988,1989,1990,1991,1992,1993,{"$f":"P21+1","v":1994},1995,1996,1997,1998,1999,2000,2001,2002,2003,2004,2005,2006,2007,2008,2009,2010,2011,2012,2013,2014,2015,2016,2017,2018,2019,2020,2021,2022,2023,2024,2025,2026,2027,2028,2029,2030,2031,2032,2033,2034]
[null,null,{"$f":"C12","v":"PC 1 - Non-Weatherized, Non-Condensing Gas Furnace Fan (NWG-NC)"},{"$f":"SUMPRODUCT('Efficiency Dist - SF'!F$30:F$36,'Product Class UECs'!$D$11:$D$17)","v":881.95901051267685},{"$f":"SUMPRODUCT('Efficiency Dist - SF'!G$30:G$36,'Product Class UECs'!$D$11:$D$17)","v":875.77440787339492},{"$f":"SUMPRODUCT('Efficiency Dist - SF'!H$30:H$36,'Product Class UECs'!$D$11:$D$17)","v":883.1727229200111},{"$f":"SUMPRODUCT('Efficiency Dist - SF'!I$30:I$36,'Product Class UECs'!$D$11:$D$17)","v":881.79289778764132},{"$f":"SUMPRODUCT('Efficiency Dist - SF'!J$30:J$36,'Product Class UECs'!$D$11:$D$17)","v":880.93858127285853},{"$f":"SUMPRODUCT('Efficiency Dist - SF'!K$30:K$36,'Product Class UECs'!$D$11:$D$17)","v":882.34882184697062},{"$f":"SUMPRODUCT('Efficiency Dist - SF'!L$30:L$36,'Product Class UECs'!$D$11:$D$17)","v":882.45977865116788},{"$f":"SUMPRODUCT('Efficiency Dist - SF'!M$30:M$36,'Product Class UECs'!$D$11:$D$17)","v":884.3492593525616},{"$f":"SUMPRODUCT('Efficiency Dist - SF'!N$30:N$36,'Product Class UECs'!$D$11:$D$17)","v":888.66087463245071},{"$f":"SUMPRODUCT('Efficiency Dist - SF'!O$30:O$36,'Product Class UECs'!$D$11:$D$17)","v":891.59903036210153},{"$f":"SUMPRODUCT('Efficiency Dist - SF'!P$30:P$36,'Product Class UECs'!$D$11:$D$17)","v":888.60371602836824},{"$f":"SUMPRODUCT('Efficiency Dist - SF'!Q$30:Q$36,'Product Class UECs'!$D$11:$D$17)","v":893.53025820924086},{"$f":"SUMPRODUCT('Efficiency Dist - SF'!R$30:R$36,'Product Class UECs'!$D$11:$D$17)","v":879.99743368436111},{"$f":"SUMPRODUCT('Efficiency Dist - SF'!S$30:S$36,'Product Class UECs'!$D$11:$D$17)","v":881.3604456990812},{"$f":"SUMPRODUCT('Efficiency Dist - SF'!T$30:T$36,'Product Class UECs'!$D$11:$D$17)","v":876.33813644599149},{"$f":"SUMPRODUCT('Efficiency Dist - SF'!U$30:U$36,'Product Class UECs'!$D$11:$D$17)","v":877.06166826279309},{"$f":"SUMPRODUCT('Efficiency Dist - SF'!V$30:V$36,'Product Class UECs'!$D$11:$D$17)","v":875.99159199162864},{"$f":"SUMPRODUCT('Efficiency Dist - SF'!W$30:W$36,'Product Class UECs'!$D$11:$D$17)","v":876.50470246062332},{"$f":"SUMPRODUCT('Efficiency Dist - SF'!X$30:X$36,'Product Class UECs'!$D$11:$D$17)","v":874.85749918168233},{"$f":"SUMPRODUCT('Efficiency Dist - SF'!Y$30:Y$36,'Product Class UECs'!$D$11:$D$17)","v":870.84993360792441},{"$f":"SUMPRODUCT('Efficiency Dist - SF'!Z$30:Z$36,'Product Class UECs'!$D$11:$D$17)","v":870.7822583424886},{"$f":"SUMPRODUCT('Efficiency Dist - SF'!AA$30:AA$36,'Product Class UECs'!$D$11:$D$17)","v":871.40309775217156},{"$f":"SUMPRODUCT('Efficiency Dist - SF'!AB$30:AB$36,'Product Class UECs'!$D$11:$D$17)","v":874.94029449897278},{"$f":"SUMPRODUCT('Efficiency Dist - SF'!AC$30:AC$36,'Product Class UECs'!$D$11:$D$17)","v":874.69320495603074},{"$f":"SUMPRODUCT('Efficiency Dist - SF'!AD$30:AD$36,'Product Class UECs'!$D$11:$D$17)","v":877.73850461831262},{"$f":"SUMPRODUCT('Efficiency Dist - SF'!AE$30:AE$36,'Product Class UECs'!$D$11:$D$17)","v":873.11667754736993},{"$f":"SUMPRODUCT('Efficiency Dist - SF'!AF$30:AF$36,'Product Class UECs'!$D$11:$D$17)","v":862.90751336575272},{"$f":"SUMPRODUCT('Efficiency Dist - SF'!AG$30:AG$36,'Product Class UECs'!$D$11:$D$17)","v":858.54875590906772},{"$f":"SUMPRODUCT('Efficiency Dist - SF'!AH$30:AH$36,'Product Class UECs'!$D$11:$D$17)","v":858.54875590906772},{"$f":"SUMPRODUCT('Efficiency Dist - SF'!AI$30:AI$36,'Product Class UECs'!$D$11:$D$17)","v":858.54875590906772},{"$f":"SUMPRODUCT('Efficiency Dist - SF'!AJ$30:AJ$36,'Product Class UECs'!$D$11:$D$17)","v":860.36449200549293},{"$f":"SUMPRODUCT('Efficiency Dist - SF'!AK$30:AK$36,'Product Class UECs'!$D$11:$D$17)","v":885.75143308773568},{"$f":"SUMPRODUCT('Efficiency Dist - SF'!AL$30:AL$36,'Product Class UECs'!$D$11:$D$17)","v":884.99167818898661},{"$f":"SUMPRODUCT('Efficiency Dist - SF'!AM$30:AM$36,'Product Class UECs'!$D$11:$D$17)","v":888.25572385479518},{"$f":"SUMPRODUCT('Efficiency Dist - SF'!AN$30:AN$36,'Product Class UECs'!$D$11:$D$17)","v":887.9921917738053},{"$f":"SUMPRODUCT('Efficiency Dist - SF'!AO$30:AO$36,'Product Class UECs'!$D$11:$D$17)","v":889.27114149841759},{"$f":"SUMPRODUCT('Efficiency Dist - SF'!AP$30:AP$36,'Product Class UECs'!$D$11:$D$17)","v":888.70849326652956},{"$f":"SUMPRODUCT('Efficiency Dist - SF'!AQ$30:AQ$36,'Product Class UECs'!$D$11:$D$17)","v":888.5174162829519},{"$f":"SUMPRODUCT('Efficiency Dist - SF'!AR$30:AR$36,'Product Class UECs'!$D$11:$D$17)","v":533.52939433437996},{"$f":"SUMPRODUCT('Efficiency Dist - SF'!AS$30:AS$36,'Product Class UECs'!$D$11:$D$17)","v":533.5296192369143},{"$f":"SUMPRODUCT('Efficiency Dist - SF'!AT$30:AT$36,'Product Class UECs'!$D$11:$D$17)","v":533.53859434263529},{"$f":"SUMPRODUCT('Efficiency Dist - SF'!AU$30:AU$36,'Product Class UECs'!$D$11:$D$17)","v":533.52805449021025},{"$f":"SUMPRODUCT('Efficiency Dist - SF'!AV$30:AV$36,'Product Class UECs'!$D$11:$D$17)","v":533.38260674002572},{"$f":"SUMPRODUCT('Efficiency Dist - SF'!AW$30:AW$36,'Product Class UECs'!$D$11:$D$17)","v":533.3911835092515},{"$f":"SUMPRODUCT('Efficiency Dist - SF'!AX$30:AX$36,'Product Class UECs'!$D$11:$D$17)","v":533.34789328721354},{"$f":"SUMPRODUCT('Efficiency Dist - SF'!AY$30:AY$36,'Product Class UECs'!$D$11:$D$17)","v":533.33475806321167},{"$f":"SUMPRODUCT('Efficiency Dist - SF'!AZ$30:AZ$36,'Product Class UECs'!$D$11:$D$17)","v":533.35446555621297},{"$f":"SUMPRODUCT('Efficiency Dist - SF'!BA$30:BA$36,'Product Class UECs'!$D$11:$D$17)","v":533.38476768223745},{"$f":"SUMPRODUCT('Efficiency Dist - SF'!BB$30:BB$36,'Product Class UECs'!$D$11:$D$17)","v":533.4496097532907},{"$f":"SUMPRODUCT('Efficiency Dist - SF'!BC$30:BC$36,'Product Class UECs'!$D$11:$D$17)","v":533.46275797149167},{"$f":"SUMPRODUCT('Efficiency Dist - SF'!BD$30:BD$36,'Product Class UECs'!$D$11:$D$17)","v":533.38918257790056},{"$f":"SUMPRODUCT('Efficiency Dist - SF'!BE$30:BE$36,'Product Class UECs'!$D$11:$D$17)","v":533.33774414605682},{"$f":"SUMPRODUCT('Efficiency Dist - SF'!BF$30:BF$36,'Product Class UECs'!$D$11:$D$17)","v":533.23549586100228},{"$f":"SUMPRODUCT('Efficiency Dist - SF'!BG$30:BG$36,'Product Class UECs'!$D$11:$D$17)","v":533.21657847927418}]
[null,null,{"$f":"C13","v":"PC 2 - Non-Weatherized, Condensing Gas Furnace Fan (NWG-C)"},{"$f":"SUMPRODUCT('Efficiency Dist - SF'!F$56:F$62,'Product Class UECs'!$D$21:$D$27)","v":835.38616802352465},{"$f":"SUMPRODUCT('Efficiency Dist - SF'!G$56:G$62,'Product Class UECs'!$D$21:$D$27)","v":825.49388973716975},{"$f":"SUMPRODUCT('Efficiency Dist - SF'!H$56:H$62,'Product Class UECs'!$D$21:$D$27)","v":837.32750226813573},{"$f":"SUMPRODUCT('Efficiency Dist - SF'!I$56:I$62,'Product Class UECs'!$D$21:$D$27)","v":835.12047054887694},{"$f":"SUMPRODUCT('Efficiency Dist - SF'!J$56:J$62,'Product Class UECs'!$D$21:$D$27)","v":833.75399040427033},{"$f":"SUMPRODUCT('Efficiency Dist - SF'!K$56:K$62,'Product Class UECs'!$D$21:$D$27)","v":836.00967165389818},{"$f":"SUMPRODUCT('Efficiency Dist - SF'!L$56:L$62,'Product Class UECs'!$D$21:$D$27)","v":836.18714717640182},{"$f":"SUMPRODUCT('Efficiency Dist - SF'!M$56:M$62,'Product Class UECs'!$D$21:$D$27)","v":839.20937350282179},{"$f":"SUMPRODUCT('Efficiency Dist - SF'!N$56:N$62,'Product Class UECs'!$D$21:$D$27)","v":846.10580658026106},{"$f":"SUMPRODUCT('Efficiency Dist - SF'!O$56:O$62,'Product Class UECs'!$D$21:$D$27)","v":850.80538969361237},{"$f":"SUMPRODUCT('Efficiency Dist - SF'!P$56:P$62,'Product Class UECs'!$D$21:$D$27)","v":846.0143813342072},{"$f":"SUMPRODUCT('Efficiency Dist - SF'!Q$56:Q$62,'Product Class UECs'!$D$21:$D$27)","v":853.89439062261567},{"$f":"SUMPRODUCT('Efficiency Dist - SF'!R$56:R$62,'Product Class UECs'!$D$21:$D$27)","v":832.24862386789573},{"$f":"SUMPRODUCT('Efficiency Dist - SF'!S$56:S$62,'Product Class UECs'!$D$21:$D$27)","v":834.42876298817146},{"$f":"SUMPRODUCT('Efficiency Dist - SF'!T$56:T$62,'Product Class UECs'!$D$21:$D$27)","v":826.39557416919342},{"$f":"SUMPRODUCT('Efficiency Dist - SF'!U$56:U$62,'Product Class UECs'!$D$21:$D$27)","v":827.55286405478341},{"$f":"SUMPRODUCT('Efficiency Dist - SF'!V$56:V$62,'Product Class UECs'!$D$21:$D$27)","v":825.84127595779705},{"$f":"SUMPRODUCT('Efficiency Dist - SF'!W$56:W$62,'Product Class UECs'!$D$21:$D$27)","v":826.66199668101672},{"$f":"SUMPRODUCT('Efficiency Dist - SF'!X$56:X$62,'Product Class UECs'!$D$21:$D$27)","v":824.02729334114758},{"$f":"SUMPRODUCT('Efficiency Dist - SF'!Y$56:Y$62,'Product Class UECs'!$D$21:$D$27)","v":817.6171880815748},{"$f":"SUMPRODUCT('Efficiency Dist - SF'!Z$56:Z$62,'Product Class UECs'!$D$21:$D$27)","v":817.50894142486266},{"$f":"SUMPRODUCT('Efficiency Dist - SF'!AA$56:AA$62,'Product Class UECs'!$D$21:$D$27)","v":818.5019746995813},{"$f":"SUMPRODUCT('Efficiency Dist - SF'!AB$56:AB$62,'Product Class UECs'!$D$21:$D$27)","v":824.15972453636152},{"$f":"SUMPRODUCT('Efficiency Dist - SF'!AC$56:AC$62,'Product Class UECs'!$D$21:$D$27)","v":823.76450455813608},{"$f":"SUMPRODUCT('Efficiency Dist - SF'!AD$56:AD$62,'Product Class UECs'!$D$21:$D$27)","v":828.63546450199624},{"$f":"SUMPRODUCT('Efficiency Dist - SF'!AE$56:AE$62,'Product Class UECs'!$D$21:$D$27)","v":821.2428473455152},{"$f":"SUMPRODUCT('Efficiency Dist - SF'!AF$56:AF$62,'Product Class UECs'!$D$21:$D$27)","v":804.9132787303563},{"$f":"SUMPRODUCT('Efficiency Dist - SF'!AG$56:AG$62,'Product Class UECs'!$D$21:$D$27)","v":797.94144169261551},{"$f":"SUMPRODUCT('Efficiency Dist - SF'!AH$56:AH$62,'Product Class UECs'!$D$21:$D$27)","v":797.94144169261551},{"$f":"SUMPRODUCT('Efficiency Dist - SF'!AI$56:AI$62,'Product Class UECs'!$D$21:$D$27)","v":797.94144169261551},{"$f":"SUMPRODUCT('Efficiency Dist - SF'!AJ$56:AJ$62,'Product Class UECs'!$D$21:$D$27)","v":800.84571344749486},{"$f":"SUMPRODUCT('Efficiency Dist - SF'!AK$56:AK$62,'Product Class UECs'!$D$21:$D$27)","v":841.45215183526602},{"$f":"SUMPRODUCT('Efficiency Dist - SF'!AL$56:AL$62,'Product Class UECs'!$D$21:$D$27)","v":840.23692309282228},{"$f":"SUMPRODUCT('Efficiency Dist - SF'!AM$56:AM$62,'Product Class UECs'!$D$21:$D$27)","v":845.45776749444406},{"$f":"SUMPRODUCT('Efficiency Dist - SF'!AN$56:AN$62,'Product Class UECs'!$D$21:$D$27)","v":845.03624765968959},{"$f":"SUMPRODUCT('Efficiency Dist - SF'!AO$56:AO$62,'Product Class UECs'!$D$21:$D$27)","v":847.08192906042541},{"$f":"SUMPRODUCT('Efficiency Dist - SF'!AP$56:AP$62,'Product Class UECs'!$D$21:$D$27)","v":846.18197263447644},{"$f":"SUMPRODUCT('Efficiency Dist - SF'!AQ$56:AQ$62,'Product Class UECs'!$D$21:$D$27)","v":845.87634480259908},{"$f":"SUMPRODUCT('Efficiency Dist - SF'!AR$56:AR$62,'Product Class UECs'!$D$21:$D$27)","v":570.93800216736872},{"$f":"SUMPRODUCT('Efficiency Dist - SF'!AS$56:AS$62,'Product Class UECs'!$D$21:$D$27)","v":570.9384597996559},{"$f":"SUMPRODUCT('Efficiency Dist - SF'!AT$56:AT$62,'Product Class UECs'!$D$21:$D$27)","v":570.95672236914857},{"$f":"SUMPRODUCT('Efficiency Dist - SF'!AU$56:AU$62,'Product Class UECs'!$D$21:$D$27)","v":570.93527584881372},{"$f":"SUMPRODUCT('Efficiency Dist - SF'!AV$56:AV$62,'Product Class UECs'!$D$21:$D$27)","v":570.63931837178347},{"$f":"SUMPRODUCT('Efficiency Dist - SF'!AW$56:AW$62,'Product Class UECs'!$D$21:$D$27)","v":570.65677040509388},{"$f":"SUMPRODUCT('Efficiency Dist - SF'!AX$56:AX$62,'Product Class UECs'!$D$21:$D$27)","v":570.56868334373871},{"$f":"SUMPRODUCT('Efficiency Dist - SF'!AY$56:AY$62,'Product Class UECs'!$D$21:$D$27)","v":570.54195575427184},{"$f":"SUMPRODUCT('Efficiency Dist - SF'!AZ$56:AZ$62,'Product Class UECs'!$D$21:$D$27)","v":570.58205661454554},{"$f":"SUMPRODUCT('Efficiency Dist - SF'!BA$56:BA$62,'Product Class UECs'!$D$21:$D$27)","v":570.64371546286384},{"$f":"SUMPRODUCT('Efficiency Dist - SF'!BB$56:BB$62,'Product Class UECs'!$D$21:$D$27)","v":570.77565628511763},{"$f":"SUMPRODUCT('Efficiency Dist - SF'!BC$56:BC$62,'Product Class UECs'!$D$21:$D$27)","v":570.80241031521643},{"$f":"SUMPRODUCT('Efficiency Dist - SF'!BD$56:BD$62,'Product Class UECs'!$D$21:$D$27)","v":570.65269890454738},{"$f":"SUMPRODUCT('Efficiency Dist - SF'!BE$56:BE$62,'Product Class UECs'!$D$21:$D$27)","v":570.54803184375351},{"$f":"SUMPRODUCT('Efficiency Dist - SF'!BF$56:BF$62,'Product Class UECs'!$D$21:$D$27)","v":570.33997675567537},{"$f":"SUMPRODUCT('Efficiency Dist - SF'!BG$56:BG$62,'Product Class UECs'!$D$21:$D$27)","v":570.30148361596594}]
[null,null,"PC 3 - Weatherized Non-Condensing Gas Furnace Fan (WG-NC)",{"$f":"SUMPRODUCT('Efficiency Dist - SF'!F$82:F$88,'Product Class UECs'!$D$31:$D$37)","v":905.26387239105691},{"$f":"SUMPRODUCT('Efficiency Dist - SF'!G$82:G$88,'Product Class UECs'!$D$31:$D$37)","v":889.59884431721355},{"$f":"SUMPRODUCT('Efficiency Dist - SF'!H$82:H$88,'Product Class UECs'!$D$31:$D$37)","v":908.33809397704874},{"$f":"SUMPRODUCT('Efficiency Dist - SF'!I$82:I$88,'Product Class UECs'!$D$31:$D$37)","v":904.84312417926799},{"$f":"SUMPRODUCT('Efficiency Dist - SF'!J$82:J$88,'Product Class UECs'!$D$31:$D$37)","v":902.67921924170241},{"$f":"SUMPRODUCT('Efficiency Dist - SF'!K$82:K$88,'Product Class UECs'!$D$31:$D$37)","v":906.25122854817346},{"$f":"SUMPRODUCT('Efficiency Dist - SF'!L$82:L$88,'Product Class UECs'!$D$31:$D$37)","v":906.53227189955953},{"$f":"SUMPRODUCT('Efficiency Dist - SF'!M$82:M$88,'Product Class UECs'!$D$31:$D$37)","v":911.31815224768752},{"$f":"SUMPRODUCT('Efficiency Dist - SF'!N$82:N$88,'Product Class UECs'!$D$31:$D$37)","v":922.2390760874955},{"$f":"SUMPRODUCT('Efficiency Dist - SF'!O$82:O$88,'Product Class UECs'!$D$31:$D$37)","v":929.68115356195904},{"$f":"SUMPRODUCT('Efficiency Dist - SF'!P$82:P$88,'Product Class UECs'!$D$31:$D$37)","v":922.09429861514445},{"$f":"SUMPRODUCT('Efficiency Dist - SF'!Q$82:Q$88,'Product Class UECs'!$D$31:$D$37)","v":934.57277557988311},{"$f":"SUMPRODUCT('Efficiency Dist - SF'!R$82:R$88,'Product Class UECs'!$D$31:$D$37)","v":900.29537920292614},{"$f":"SUMPRODUCT('Efficiency Dist - SF'!S$82:S$88,'Product Class UECs'!$D$31:$D$37)","v":903.74776292439014},{"$f":"SUMPRODUCT('Efficiency Dist - SF'!T$82:T$88,'Product Class UECs'!$D$31:$D$37)","v":891.02671679840751},{"$f":"SUMPRODUCT('Efficiency Dist - SF'!U$82:U$88,'Product Class UECs'!$D$31:$D$37)","v":892.85935615837684},{"$f":"SUMPRODUCT('Efficiency Dist - SF'!V$82:V$88,'Product Class UECs'!$D$31:$D$37)","v":890.14895165761288},{"$f":"SUMPRODUCT('Efficiency Dist - SF'!W$82:W$88,'Product Class UECs'!$D$31:$D$37)","v":891.44861315093658},{"$f":"SUMPRODUCT('Efficiency Dist - SF'!X$82:X$88,'Product Class UECs'!$D$31:$D$37)","v":887.27639916841781},{"$f":"SUMPRODUCT('Efficiency Dist - SF'!Y$82:Y$88,'Product Class UECs'!$D$31:$D$37)","v":877.12560519146223},{"$f":"SUMPRODUCT('Efficiency Dist - SF'!Z$82:Z$88,'Product Class UECs'!$D$31:$D$37)","v":876.95418998586365},{"$f":"SUMPRODUCT('Efficiency Dist - SF'!AA$82:AA$88,'Product Class UECs'!$D$31:$D$37)","v":878.52671895001367},{"$f":"SUMPRODUCT('Efficiency Dist - SF'!AB$82:AB$88,'Product Class UECs'!$D$31:$D$37)","v":887.48611207082786},{"$f":"SUMPRODUCT('Efficiency Dist - SF'!AC$82:AC$88,'Product Class UECs'!$D$31:$D$37)","v":886.86025704784606},{"$f":"SUMPRODUCT('Efficiency Dist - SF'!AD$82:AD$88,'Product Class UECs'!$D$31:$D$37)","v":894.57372022168238},{"$f":"SUMPRODUCT('Efficiency Dist - SF'!AE$82:AE$88,'Product Class UECs'!$D$31:$D$37)","v":882.86705852624777},{"$f":"SUMPRODUCT('Efficiency Dist - SF'!AF$82:AF$88,'Product Class UECs'!$D$31:$D$37)","v":857.0081872545951},{"$f":"SUMPRODUCT('Efficiency Dist - SF'!AG$82:AG$88,'Product Class UECs'!$D$31:$D$37)","v":845.96785662892773},{"$f":"SUMPRODUCT('Efficiency Dist - SF'!AH$82:AH$88,'Product Class UECs'!$D$31:$D$37)","v":845.96785662892773},{"$f":"SUMPRODUCT('Efficiency Dist - SF'!AI$82:AI$88,'Product Class UECs'!$D$31:$D$37)","v":845.96785662892773},{"$f":"SUMPRODUCT('Efficiency Dist - SF'!AJ$82:AJ$88,'Product Class UECs'!$D$31:$D$37)","v":850.56694869420119},{"$f":"SUMPRODUCT('Efficiency Dist - SF'!AK$82:AK$88,'Product Class UECs'!$D$31:$D$37)","v":914.86972899513989},{"$f":"SUMPRODUCT('Efficiency Dist - SF'!AL$82:AL$88,'Product Class UECs'!$D$31:$D$37)","v":912.94533990948526},{"$f":"SUMPRODUCT('Efficiency Dist - SF'!AM$82:AM$88,'Product Class UECs'!$D$31:$D$37)","v":921.21286653511424},{"$f":"SUMPRODUCT('Efficiency Dist - SF'!AN$82:AN$88,'Product Class UECs'!$D$31:$D$37)","v":920.54536407976786},{"$f":"SUMPRODUCT('Efficiency Dist - SF'!AO$82:AO$88,'Product Class UECs'!$D$31:$D$37)","v":923.78482577352827},{"$f":"SUMPRODUCT('Efficiency Dist - SF'!AP$82:AP$88,'Product Class UECs'!$D$31:$D$37)","v":922.35968969570774},{"$f":"SUMPRODUCT('Efficiency Dist - SF'!AQ$82:AQ$88,'Product Class UECs'!$D$31:$D$37)","v":921.87570931950779},{"$f":"SUMPRODUCT('Efficiency Dist - SF'!AR$82:AR$88,'Product Class UECs'!$D$31:$D$37)","v":640.68647043627357},{"$f":"SUMPRODUCT('Efficiency Dist - SF'!AS$82:AS$88,'Product Class UECs'!$D$31:$D$37)","v":640.68674996204629},{"$f":"SUMPRODUCT('Efficiency Dist - SF'!AT$82:AT$88,'Product Class UECs'!$D$31:$D$37)","v":640.69790489798402},{"$f":"SUMPRODUCT('Efficiency Dist - SF'!AU$82:AU$88,'Product Class UECs'!$D$31:$D$37)","v":640.68480517723992},{"$f":"SUMPRODUCT('Efficiency Dist - SF'!AV$82:AV$88,'Product Class UECs'!$D$31:$D$37)","v":640.50403178180261},{"$f":"SUMPRODUCT('Efficiency Dist - SF'!AW$82:AW$88,'Product Class UECs'!$D$31:$D$37)","v":640.51469163520608},{"$f":"SUMPRODUCT('Efficiency Dist - SF'!AX$82:AX$88,'Product Class UECs'!$D$31:$D$37)","v":640.4608872936667},{"$f":"SUMPRODUCT('Efficiency Dist - SF'!AY$82:AY$88,'Product Class UECs'!$D$31:$D$37)","v":640.44456185006493},{"$f":"SUMPRODUCT('Efficiency Dist - SF'!AZ$82:AZ$88,'Product Class UECs'!$D$31:$D$37)","v":640.46905580353553},{"$f":"SUMPRODUCT('Efficiency Dist - SF'!BA$82:BA$88,'Product Class UECs'!$D$31:$D$37)","v":640.50671756319468},{"$f":"SUMPRODUCT('Efficiency Dist - SF'!BB$82:BB$88,'Product Class UECs'!$D$31:$D$37)","v":640.58730816247578},{"$f":"SUMPRODUCT('Efficiency Dist - SF'!BC$82:BC$88,'Product Class UECs'!$D$31:$D$37)","v":640.60364975624509},{"$f":"SUMPRODUCT('Efficiency Dist - SF'!BD$82:BD$88,'Product Class UECs'!$D$31:$D$37)","v":640.51220472733769},{"$f":"SUMPRODUCT('Efficiency Dist - SF'!BE$82:BE$88,'Product Class UECs'!$D$31:$D$37)","v":640.44827317825161},{"$f":"SUMPRODUCT('Efficiency Dist - SF'!BF$82:BF$88,'Product Class UECs'!$D$31:$D$37)","v":640.32119132484718},{"$f":"SUMPRODUCT('Efficiency Dist - SF'!BG$82:BG$88,'Product Class UECs'!$D$31:$D$37)","v":640.29767938104999}]
[null,null,"PC 4 - Non-Weatherized, Non-Condensing Oil Furnace Fan (NWO-NC)",{"$f":"SUMPRODUCT('Efficiency Dist - SF'!F$108:F$114,'Product Class UECs'!$D$41:$D$47)","v":1011.9399520454417},{"$f":"SUMPRODUCT('Efficiency Dist - SF'!G$108:G$114,'Product Class UECs'!$D$41:$D$47)","v":1004.4538269283763},{"$f":"SUMPRODUCT('Efficiency Dist - SF'!H$108:H$114,'Product Class UECs'!$D$41:$D$47)","v":1013.4090849012421},{"$f":"SUMPRODUCT('Efficiency Dist - SF'!I$108:I$114,'Product Class UECs'!$D$41:$D$47)","v":1011.7388816265836},{"$f":"SUMPRODUCT('Efficiency Dist - SF'!J$108:J$114,'Product Class UECs'!$D$41:$D$47)","v":1010.7047779513338},{"$f":"SUMPRODUCT('Efficiency Dist - SF'!K$108:K$114,'Product Class UECs'!$D$41:$D$47)","v":1012.4117974639395},{"$f":"SUMPRODUCT('Efficiency Dist - SF'!L$108:L$114,'Product Class UECs'!$D$41:$D$47)","v":1012.5461046405289},{"$f":"SUMPRODUCT('Efficiency Dist - SF'!M$108:M$114,'Product Class UECs'!$D$41:$D$47)","v":1014.8332182615518},{"$f":"SUMPRODUCT('Efficiency Dist - SF'!N$108:N$114,'Product Class UECs'!$D$41:$D$47)","v":1020.0521940510209},{"$f":"SUMPRODUCT('Efficiency Dist - SF'!O$108:O$114,'Product Class UECs'!$D$41:$D$47)","v":1023.6086717567808},{"$f":"SUMPRODUCT('Efficiency Dist - SF'!P$108:P$114,'Product Class UECs'!$D$41:$D$47)","v":1019.9830066696104},{"$f":"SUMPRODUCT('Efficiency Dist - SF'!Q$108:Q$114,'Product Class UECs'!$D$41:$D$47)","v":1025.9463180271196},{"$f":"SUMPRODUCT('Efficiency Dist - SF'!R$108:R$114,'Product Class UECs'!$D$41:$D$47)","v":1009.5655699840562},{"$f":"SUMPRODUCT('Efficiency Dist - SF'!S$108:S$114,'Product Class UECs'!$D$41:$D$47)","v":1011.2154218942583},{"$f":"SUMPRODUCT('Efficiency Dist - SF'!T$108:T$114,'Product Class UECs'!$D$41:$D$47)","v":1005.1361897045581},{"$f":"SUMPRODUCT('Efficiency Dist - SF'!U$108:U$114,'Product Class UECs'!$D$41:$D$47)","v":1006.011985616223},{"$f":"SUMPRODUCT('Efficiency Dist - SF'!V$108:V$114,'Product Class UECs'!$D$41:$D$47)","v":1004.7167164909505},{"$f":"SUMPRODUCT('Efficiency Dist - SF'!W$108:W$114,'Product Class UECs'!$D$41:$D$47)","v":1005.3378088058184},{"$f":"SUMPRODUCT('Efficiency Dist - SF'!X$108:X$114,'Product Class UECs'!$D$41:$D$47)","v":1003.3439588273139},{"$f":"SUMPRODUCT('Efficiency Dist - SF'!Y$108:Y$114,'Product Class UECs'!$D$41:$D$47)","v":998.49301866998815},{"$f":"SUMPRODUCT('Efficiency Dist - SF'!Z$108:Z$114,'Product Class UECs'!$D$41:$D$47)","v":998.41110144200559},{"$f":"SUMPRODUCT('Efficiency Dist - SF'!AA$108:AA$114,'Product Class UECs'!$D$41:$D$47)","v":999.16259378024745},{"$f":"SUMPRODUCT('Efficiency Dist - SF'!AB$108:AB$114,'Product Class UECs'!$D$41:$D$47)","v":1003.4441780556936},{"$f":"SUMPRODUCT('Efficiency Dist - SF'!AC$108:AC$114,'Product Class UECs'!$D$41:$D$47)","v":1003.1450896030524},{"$f":"SUMPRODUCT('Efficiency Dist - SF'!AD$108:AD$114,'Product Class UECs'!$D$41:$D$47)","v":1006.8312592117512},{"$f":"SUMPRODUCT('Efficiency Dist - SF'!AE$108:AE$114,'Product Class UECs'!$D$41:$D$47)","v":1001.2367889214926},{"$f":"SUMPRODUCT('Efficiency Dist - SF'!AF$108:AF$114,'Product Class UECs'!$D$41:$D$47)","v":988.87915095154153},{"$f":"SUMPRODUCT('Efficiency Dist - SF'!AG$108:AG$114,'Product Class UECs'!$D$41:$D$47)","v":983.60311212110275},{"$f":"SUMPRODUCT('Efficiency Dist - SF'!AH$108:AH$114,'Product Class UECs'!$D$41:$D$47)","v":983.60311212110275},{"$f":"SUMPRODUCT('Efficiency Dist - SF'!AI$108:AI$114,'Product Class UECs'!$D$41:$D$47)","v":983.60311212110264},{"$f":"SUMPRODUCT('Efficiency Dist - SF'!AJ$108:AJ$114,'Product Class UECs'!$D$41:$D$47)","v":985.80096190874701},{"$f":"SUMPRODUCT('Efficiency Dist - SF'!AK$108:AK$114,'Product Class UECs'!$D$41:$D$47)","v":1016.5304733043741},{"$f":"SUMPRODUCT('Efficiency Dist - SF'!AL$108:AL$114,'Product Class UECs'!$D$41:$D$47)","v":1015.6108313221692},{"$f":"SUMPRODUCT('Efficiency Dist - SF'!AM$108:AM$114,'Product Class UECs'!$D$41:$D$47)","v":1019.5617810706393},{"$f":"SUMPRODUCT('Efficiency Dist - SF'!AN$108:AN$114,'Product Class UECs'!$D$41:$D$47)","v":1019.242789819994},{"$f":"SUMPRODUCT('Efficiency Dist - SF'!AO$108:AO$114,'Product Class UECs'!$D$41:$D$47)","v":1020.7908889001304},{"$f":"SUMPRODUCT('Efficiency Dist - SF'!AP$108:AP$114,'Product Class UECs'!$D$41:$D$47)","v":1020.1098338176171},{"$f":"SUMPRODUCT('Efficiency Dist - SF'!AQ$108:AQ$114,'Product Class UECs'!$D$41:$D$47)","v":1019.8785455215884},{"$f":"SUMPRODUCT('Efficiency Dist - SF'!AR$108:AR$114,'Product Class UECs'!$D$41:$D$47)","v":969.9040088520112},{"$f":"SUMPRODUCT('Efficiency Dist - SF'!AS$108:AS$114,'Product Class UECs'!$D$41:$D$47)","v":969.91172652229511},{"$f":"SUMPRODUCT('Efficiency Dist - SF'!AT$108:AT$114,'Product Class UECs'!$D$41:$D$47)","v":970.21971285508414},{"$f":"SUMPRODUCT('Efficiency Dist - SF'!AU$108:AU$114,'Product Class UECs'!$D$41:$D$47)","v":969.85803126632027},{"$f":"SUMPRODUCT('Efficiency Dist - SF'!AV$108:AV$114,'Product Class UECs'!$D$41:$D$47)","v":964.86690129149895},{"$f":"SUMPRODUCT('Efficiency Dist - SF'!AW$108:AW$114,'Product Class UECs'!$D$41:$D$47)","v":965.16121845980001},{"$f":"SUMPRODUCT('Efficiency Dist - SF'!AX$108:AX$114,'Product Class UECs'!$D$41:$D$47)","v":963.67568757632625},{"$f":"SUMPRODUCT('Efficiency Dist - SF'!AY$108:AY$114,'Product Class UECs'!$D$41:$D$47)","v":963.22494419832015},{"$f":"SUMPRODUCT('Efficiency Dist - SF'!AZ$108:AZ$114,'Product Class UECs'!$D$41:$D$47)","v":963.90121907313323},{"$f":"SUMPRODUCT('Efficiency Dist - SF'!BA$108:BA$114,'Product Class UECs'!$D$41:$D$47)","v":964.94105536698953},{"$f":"SUMPRODUCT('Efficiency Dist - SF'!BB$108:BB$114,'Product Class UECs'!$D$41:$D$47)","v":967.16615134855124},{"$f":"SUMPRODUCT('Efficiency Dist - SF'!BC$108:BC$114,'Product Class UECs'!$D$41:$D$47)","v":967.61734063058248},{"$f":"SUMPRODUCT('Efficiency Dist - SF'!BD$108:BD$114,'Product Class UECs'!$D$41:$D$47)","v":965.09255525648018},{"$f":"SUMPRODUCT('Efficiency Dist - SF'!BE$108:BE$114,'Product Class UECs'!$D$41:$D$47)","v":963.32741348764318},{"$f":"SUMPRODUCT('Efficiency Dist - SF'!BF$108:BF$114,'Product Class UECs'!$D$41:$D$47)","v":959.81870001656898},{"$f":"SUMPRODUCT('Efficiency Dist - SF'!BG$108:BG$114,'Product Class UECs'!$D$41:$D$47)","v":959.16953830132513}]
[null,null,"PC 5 - Non-Weatherized Electric Furnace / Modular Blower Fan (NWEF/NWMB)",{"$f":"SUMPRODUCT('Efficiency Dist - SF'!F$134:F$140,'Product Class UECs'!$D$51:$D$57)","v":476.61583174600719},{"$f":"SUMPRODUCT('Efficiency Dist - SF'!G$134:G$140,'Product Class UECs'!$D$51:$D$57)","v":471.32339999128595},{"$f":"SUMPRODUCT('Efficiency Dist - SF'!H$134:H$140,'Product Class UECs'!$D$51:$D$57)","v":477.6544579052491},{"$f":"SUMPRODUCT('Efficiency Dist - SF'!I$134:I$140,'Product Class UECs'!$D$51:$D$57)","v":476.47368190839973},{"$f":"SUMPRODUCT('Efficiency Dist - SF'!J$134:J$140,'Product Class UECs'!$D$51:$D$57)","v":475.74260634621203},{"$f":"SUMPRODUCT('Efficiency Dist - SF'!K$134:K$140,'Product Class UECs'!$D$51:$D$57)","v":476.94941015100665},{"$f":"SUMPRODUCT('Efficiency Dist - SF'!L$134:L$140,'Product Class UECs'!$D$51:$D$57)","v":477.04436068351231},{"$f":"SUMPRODUCT('Efficiency Dist - SF'!M$134:M$140,'Product Class UECs'!$D$51:$D$57)","v":478.66127097625679},{"$f":"SUMPRODUCT('Efficiency Dist - SF'!N$134:N$140,'Product Class UECs'!$D$51:$D$57)","v":482.35090650376668},{"$f":"SUMPRODUCT('Efficiency Dist - SF'!O$134:O$140,'Product Class UECs'!$D$51:$D$57)","v":484.86521333815483},{"$f":"SUMPRODUCT('Efficiency Dist - SF'!P$134:P$140,'Product Class UECs'!$D$51:$D$57)","v":482.30199341606414},{"$f":"SUMPRODUCT('Efficiency Dist - SF'!Q$134:Q$140,'Product Class UECs'!$D$51:$D$57)","v":486.51784846767509},{"$f":"SUMPRODUCT('Efficiency Dist - SF'!R$134:R$140,'Product Class UECs'!$D$51:$D$57)","v":474.93722568172018},{"$f":"SUMPRODUCT('Efficiency Dist - SF'!S$134:S$140,'Product Class UECs'!$D$51:$D$57)","v":476.10361396719463},{"$f":"SUMPRODUCT('Efficiency Dist - SF'!T$134:T$140,'Product Class UECs'!$D$51:$D$57)","v":471.80580689317861},{"$f":"SUMPRODUCT('Efficiency Dist - SF'!U$134:U$140,'Product Class UECs'!$D$51:$D$57)","v":472.42496433725933},{"$f":"SUMPRODUCT('Efficiency Dist - SF'!V$134:V$140,'Product Class UECs'!$D$51:$D$57)","v":471.50925382717503},{"$f":"SUMPRODUCT('Efficiency Dist - SF'!W$134:W$140,'Product Class UECs'!$D$51:$D$57)","v":471.94834463028315},{"$f":"SUMPRODUCT('Efficiency Dist - SF'!X$134:X$140,'Product Class UECs'!$D$51:$D$57)","v":470.53876159829076},{"$f":"SUMPRODUCT('Efficiency Dist - SF'!Y$134:Y$140,'Product Class UECs'!$D$51:$D$57)","v":467.10931454425224},{"$f":"SUMPRODUCT('Efficiency Dist - SF'!Z$134:Z$140,'Product Class UECs'!$D$51:$D$57)","v":467.05140189493721},{"$f":"SUMPRODUCT('Efficiency Dist - SF'!AA$134:AA$140,'Product Class UECs'!$D$51:$D$57)","v":467.58268100824966},{"$f":"SUMPRODUCT('Efficiency Dist - SF'!AB$134:AB$140,'Product Class UECs'!$D$51:$D$57)","v":470.60961312941214},{"$f":"SUMPRODUCT('Efficiency Dist - SF'!AC$134:AC$140,'Product Class UECs'!$D$51:$D$57)","v":470.39816792919504},{"$f":"SUMPRODUCT('Efficiency Dist - SF'!AD$134:AD$140,'Product Class UECs'!$D$51:$D$57)","v":473.00416245711085},{"$f":"SUMPRODUCT('Efficiency Dist - SF'!AE$134:AE$140,'Product Class UECs'!$D$51:$D$57)","v":469.04906529375825},{"$f":"SUMPRODUCT('Efficiency Dist - SF'!AF$134:AF$140,'Product Class UECs'!$D$51:$D$57)","v":460.31264230018195},{"$f":"SUMPRODUCT('Efficiency Dist - SF'!AG$134:AG$140,'Product Class UECs'!$D$51:$D$57)","v":456.58266517467223},{"$f":"SUMPRODUCT('Efficiency Dist - SF'!AH$134:AH$140,'Product Class UECs'!$D$51:$D$57)","v":456.58266517467223},{"$f":"SUMPRODUCT('Efficiency Dist - SF'!AI$134:AI$140,'Product Class UECs'!$D$51:$D$57)","v":456.58266517467217},{"$f":"SUMPRODUCT('Efficiency Dist - SF'!AJ$134:AJ$140,'Product Class UECs'!$D$51:$D$57)","v":458.13646902196842},{"$f":"SUMPRODUCT('Efficiency Dist - SF'!AK$134:AK$140,'Product Class UECs'!$D$51:$D$57)","v":479.86117163835206},{"$f":"SUMPRODUCT('Efficiency Dist - SF'!AL$134:AL$140,'Product Class UECs'!$D$51:$D$57)","v":479.21101653761764},{"$f":"SUMPRODUCT('Efficiency Dist - SF'!AM$134:AM$140,'Product Class UECs'!$D$51:$D$57)","v":482.00420147416696},{"$f":"SUMPRODUCT('Efficiency Dist - SF'!AN$134:AN$140,'Product Class UECs'!$D$51:$D$57)","v":481.77868568355524},{"$f":"SUMPRODUCT('Efficiency Dist - SF'!AO$134:AO$140,'Product Class UECs'!$D$51:$D$57)","v":482.87313823451416},{"$f":"SUMPRODUCT('Efficiency Dist - SF'!AP$134:AP$140,'Product Class UECs'!$D$51:$D$57)","v":482.39165582685405},{"$f":"SUMPRODUCT('Efficiency Dist - SF'!AQ$134:AQ$140,'Product Class UECs'!$D$51:$D$57)","v":482.22814299434668},{"$f":"SUMPRODUCT('Efficiency Dist - SF'!AR$134:AR$140,'Product Class UECs'!$D$51:$D$57)","v":298.49796738405956},{"$f":"SUMPRODUCT('Efficiency Dist - SF'!AS$134:AS$140,'Product Class UECs'!$D$51:$D$57)","v":298.4980647189268},{"$f":"SUMPRODUCT('Efficiency Dist - SF'!AT$134:AT$140,'Product Class UECs'!$D$51:$D$57)","v":298.5019490269766},{"$f":"SUMPRODUCT('Efficiency Dist - SF'!AU$134:AU$140,'Product Class UECs'!$D$51:$D$57)","v":298.49738751707463},{"$f":"SUMPRODUCT('Efficiency Dist - SF'!AV$134:AV$140,'Product Class UECs'!$D$51:$D$57)","v":298.43443963830629},{"$f":"SUMPRODUCT('Efficiency Dist - SF'!AW$134:AW$140,'Product Class UECs'!$D$51:$D$57)","v":298.43815155154493},{"$f":"SUMPRODUCT('Efficiency Dist - SF'!AX$134:AX$140,'Product Class UECs'!$D$51:$D$57)","v":298.4194161111875},{"$f":"SUMPRODUCT('Efficiency Dist - SF'!AY$134:AY$140,'Product Class UECs'!$D$51:$D$57)","v":298.41373135850472},{"$f":"SUMPRODUCT('Efficiency Dist - SF'!AZ$134:AZ$140,'Product Class UECs'!$D$51:$D$57)","v":298.42226050301684},{"$f":"SUMPRODUCT('Efficiency Dist - SF'!BA$134:BA$140,'Product Class UECs'!$D$51:$D$57)","v":298.43537486575531},{"$f":"SUMPRODUCT('Efficiency Dist - SF'!BB$134:BB$140,'Product Class UECs'!$D$51:$D$57)","v":298.46343766371928},{"$f":"SUMPRODUCT('Efficiency Dist - SF'!BC$134:BC$140,'Product Class UECs'!$D$51:$D$57)","v":298.46912804012106},{"$f":"SUMPRODUCT('Efficiency Dist - SF'!BD$134:BD$140,'Product Class UECs'!$D$51:$D$57)","v":298.43728557469797},{"$f":"SUMPRODUCT('Efficiency Dist - SF'!BE$134:BE$140,'Product Class UECs'!$D$51:$D$57)","v":298.41502369599834},{"$f":"SUMPRODUCT('Efficiency Dist - SF'!BF$134:BF$140,'Product Class UECs'!$D$51:$D$57)","v":298.37077197918791},{"$f":"SUMPRODUCT('Efficiency Dist - SF'!BG$134:BG$140,'Product Class UECs'!$D$51:$D$57)","v":298.36258478447274}]
[null,null,"PC 6 - Mobile Home Non-Weatherized, Non-Condensing Gas Furnace Fan (MH-NWG-NC)",{"$f":"SUMPRODUCT('Efficiency Dist - SF'!F$160:F$166,'Product Class UECs'!$D$61:$D$67)","v":0},{"$f":"SUMPRODUCT('Efficiency Dist - SF'!G$160:G$166,'Product Class UECs'!$D$61:$D$67)","v":0},{"$f":"SUMPRODUCT('Efficiency Dist - SF'!H$160:H$166,'Product Class UECs'!$D$61:$D$67)","v":0},{"$f":"SUMPRODUCT('Efficiency Dist - SF'!I$160:I$166,'Product Class UECs'!$D$61:$D$67)","v":0},{"$f":"SUMPRODUCT('Efficiency Dist - SF'!J$160:J$166,'Product Class UECs'!$D$61:$D$67)","v":0},{"$f":"SUMPRODUCT('Efficiency Dist - SF'!K$160:K$166,'Product Class UECs'!$D$61:$D$67)","v":0},{"$f":"SUMPRODUCT('Efficiency Dist - SF'!L$160:L$166,'Product Class UECs'!$D$61:$D$67)","v":0},{"$f":"SUMPRODUCT('Efficiency Dist - SF'!M$160:M$166,'Product Class UECs'!$D$61:$D$67)","v":0},{"$f":"SUMPRODUCT('Efficiency Dist - SF'!N$160:N$166,'Product Class UECs'!$D$61:$D$67)","v":0},{"$f":"SUMPRODUCT('Efficiency Dist - SF'!O$160:O$166,'Product Class UECs'!$D$61:$D$67)","v":0},{"$f":"SUMPRODUCT('Efficiency Dist - SF'!P$160:P$166,'Product Class UECs'!$D$61:$D$67)","v":0},{"$f":"SUMPRODUCT('Efficiency Dist - SF'!Q$160:Q$166,'Product Class UECs'!$D$61:$D$67)","v":0},{"$f":"SUMPRODUCT('Efficiency Dist - SF'!R$160:R$166,'Product Class UECs'!$D$61:$D$67)","v":0},{"$f":"SUMPRODUCT('Efficiency Dist - SF'!S$160:S$166,'Product Class UECs'!$D$61:$D$67)","v":0},{"$f":"SUMPRODUCT('Efficiency Dist - SF'!T$160:T$166,'Product Class UECs'!$D$61:$D$67)","v":0},{"$f":"SUMPRODUCT('Efficiency Dist - SF'!U$160:U$166,'Product Class UECs'!$D$61:$D$67)","v":0},{"$f":"SUMPRODUCT('Efficiency Dist - SF'!V$160:V$166,'Product Class UECs'!$D$61:$D$67)","v":0},{"$f":"SUMPRODUCT('Efficiency Dist - SF'!W$160:W$166,'Product Class UECs'!$D$61:$D$67)","v":0},{"$f":"SUMPRODUCT('Efficiency Dist - SF'!X$160:X$166,'Product Class UECs'!$D$61:$D$67)","v":0},{"$f":"SUMPRODUCT('Efficiency Dist - SF'!Y$160:Y$166,'Product Class UECs'!$D$61:$D$67)","v":0},{"$f":"SUMPRODUCT('Efficiency Dist - SF'!Z$160:Z$166,'Product Class UECs'!$D$61:$D$67)","v":0},{"$f":"SUMPRODUCT('Efficiency Dist - SF'!AA$160:AA$166,'Product Class UECs'!$D$61:$D$67)","v":0},{"$f":"SUMPRODUCT('Efficiency Dist - SF'!AB$160:AB$166,'Product Class UECs'!$D$61:$D$67)","v":0},{"$f":"SUMPRODUCT('Efficiency Dist - SF'!AC$160:AC$166,'Product Class UECs'!$D$61:$D$67)","v":0},{"$f":"SUMPRODUCT('Efficiency Dist - SF'!AD$160:AD$166,'Product Class UECs'!$D$61:$D$67)","v":0},{"$f":"SUMPRODUCT('Efficiency Dist - SF'!AE$160:AE$166,'Product Class UECs'!$D$61:$D$67)","v":0},{"$f":"SUMPRODUCT('Efficiency Dist - SF'!AF$160:AF$166,'Product Class UECs'!$D$61:$D$67)","v":0},{"$f":"SUMPRODUCT('Efficiency Dist - SF'!AG$160:AG$166,'Product Class UECs'!$D$61:$D$67)","v":0},{"$f":"SUMPRODUCT('Efficiency Dist - SF'!AH$160:AH$166,'Product Class UECs'!$D$61:$D$67)","v":0},{"$f":"SUMPRODUCT('Efficiency Dist - SF'!AI$160:AI$166,'Product Class UECs'!$D$61:$D$67)","v":0},{"$f":"SUMPRODUCT('Efficiency Dist - SF'!AJ$160:AJ$166,'Product Class UECs'!$D$61:$D$67)","v":0},{"$f":"SUMPRODUCT('Efficiency Dist - SF'!AK$160:AK$166,'Product Class UECs'!$D$61:$D$67)","v":0},{"$f":"SUMPRODUCT('Efficiency Dist - SF'!AL$160:AL$166,'Product Class UECs'!$D$61:$D$67)","v":0},{"$f":"SUMPRODUCT('Efficiency Dist - SF'!AM$160:AM$166,'Product Class UECs'!$D$61:$D$67)","v":0},{"$f":"SUMPRODUCT('Efficiency Dist - SF'!AN$160:AN$166,'Product Class UECs'!$D$61:$D$67)","v":0},{"$f":"SUMPRODUCT('Efficiency Dist - SF'!AO$160:AO$166,'Product Class UECs'!$D$61:$D$67)","v":0},{"$f":"SUMPRODUCT('Efficiency Dist - SF'!AP$160:AP$166,'Product Class UECs'!$D$61:$D$67)","v":0},{"$f":"SUMPRODUCT('Efficiency Dist - SF'!AQ$160:AQ$166,'Product Class UECs'!$D$61:$D$67)","v":0},{"$f":"SUMPRODUCT('Efficiency Dist - SF'!AR$160:AR$166,'Product Class UECs'!$D$61:$D$67)","v":0},{"$f":"SUMPRODUCT('Efficiency Dist - SF'!AS$160:AS$166,'Product Class UECs'!$D$61:$D$67)","v":0},{"$f":"SUMPRODUCT('Efficiency Dist - SF'!AT$160:AT$166,'Product Class UECs'!$D$61:$D$67)","v":0},{"$f":"SUMPRODUCT('Efficiency Dist - SF'!AU$160:AU$166,'Product Class UECs'!$D$61:$D$67)","v":0},{"$f":"SUMPRODUCT('Efficiency Dist - SF'!AV$160:AV$166,'Product Class UECs'!$D$61:$D$67)","v":0},{"$f":"SUMPRODUCT('Efficiency Dist - SF'!AW$160:AW$166,'Product Class UECs'!$D$61:$D$67)","v":0},{"$f":"SUMPRODUCT('Efficiency Dist - SF'!AX$160:AX$166,'Product Class UECs'!$D$61:$D$67)","v":0},{"$f":"SUMPRODUCT('Efficiency Dist - SF'!AY$160:AY$166,'Product Class UECs'!$D$61:$D$67)","v":0},{"$f":"SUMPRODUCT('Efficiency Dist - SF'!AZ$160:AZ$166,'Product Class UECs'!$D$61:$D$67)","v":0},{"$f":"SUMPRODUCT('Efficiency Dist - SF'!BA$160:BA$166,'Product Class UECs'!$D$61:$D$67)","v":0},{"$f":"SUMPRODUCT('Efficiency Dist - SF'!BB$160:BB$166,'Product Class UECs'!$D$61:$D$67)","v":0},{"$f":"SUMPRODUCT('Efficiency Dist - SF'!BC$160:BC$166,'Product Class UECs'!$D$61:$D$67)","v":0},{"$f":"SUMPRODUCT('Efficiency Dist - SF'!BD$160:BD$166,'Product Class UECs'!$D$61:$D$67)","v":0},{"$f":"SUMPRODUCT('Efficiency Dist - SF'!BE$160:BE$166,'Product Class UECs'!$D$61:$D$67)","v":0},{"$f":"SUMPRODUCT('Efficiency Dist - SF'!BF$160:BF$166,'Product Class UECs'!$D$61:$D$67)","v":0},{"$f":"SUMPRODUCT('Efficiency Dist - SF'!BG$160:BG$166,'Product Class UECs'!$D$61:$D$67)","v":0}]
[null,null,"PC 7 - Mobile Home Non-Weatherized, Condensing Gas Furnace Fan (MH-NWG-C)",{"$f":"SUMPRODUCT('Efficiency Dist - SF'!F$186:F$192,'Product Class UECs'!$D$71:$D$77)","v":0},{"$f":"SUMPRODUCT('Efficiency Dist - SF'!G$186:G$192,'Product Class UECs'!$D$71:$D$77)","v":0},{"$f":"SUMPRODUCT('Efficiency Dist - SF'!H$186:H$192,'Product Class UECs'!$D$71:$D$77)","v":0},{"$f":"SUMPRODUCT('Efficiency Dist - SF'!I$186:I$192,'Product Class UECs'!$D$71:$D$77)","v":0},{"$f":"SUMPRODUCT('Efficiency Dist - SF'!J$186:J$192,'Product Class UECs'!$D$71:$D$77)","v":0},{"$f":"SUMPRODUCT('Efficiency Dist - SF'!K$186:K$192,'Product Class UECs'!$D$71:$D$77)","v":0},{"$f":"SUMPRODUCT('Efficiency Dist - SF'!L$186:L$192,'Product Class UECs'!$D$71:$D$77)","v":0},{"$f":"SUMPRODUCT('Efficiency Dist - SF'!M$186:M$192,'Product Class UECs'!$D$71:$D$77)","v":0},{"$f":"SUMPRODUCT('Efficiency Dist - SF'!N$186:N$192,'Product Class UECs'!$D$71:$D$77)","v":0},{"$f":"SUMPRODUCT('Efficiency Dist - SF'!O$186:O$192,'Product Class UECs'!$D$71:$D$77)","v":0},{"$f":"SUMPRODUCT('Efficiency Dist - SF'!P$186:P$192,'Product Class UECs'!$D$71:$D$77)","v":0},{"$f":"SUMPRODUCT('Efficiency Dist - SF'!Q$186:Q$192,'Product Class UECs'!$D$71:$D$77)","v":0},{"$f":"SUMPRODUCT('Efficiency Dist - SF'!R$186:R$192,'Product Class UECs'!$D$71:$D$77)","v":0},{"$f":"SUMPRODUCT('Efficiency Dist - SF'!S$186:S$192,'Product Class UECs'!$D$71:$D$77)","v":0},{"$f":"SUMPRODUCT('Efficiency Dist - SF'!T$186:T$192,'Product Class UECs'!$D$71:$D$77)","v":0},{"$f":"SUMPRODUCT('Efficiency Dist - SF'!U$186:U$192,'Product Class UECs'!$D$71:$D$77)","v":0},{"$f":"SUMPRODUCT('Efficiency Dist - SF'!V$186:V$192,'Product Class UECs'!$D$71:$D$77)","v":0},{"$f":"SUMPRODUCT('Efficiency Dist - SF'!W$186:W$192,'Product Class UECs'!$D$71:$D$77)","v":0},{"$f":"SUMPRODUCT('Efficiency Dist - SF'!X$186:X$192,'Product Class UECs'!$D$71:$D$77)","v":0},{"$f":"SUMPRODUCT('Efficiency Dist - SF'!Y$186:Y$192,'Product Class UECs'!$D$71:$D$77)","v":0},{"$f":"SUMPRODUCT('Efficiency Dist - SF'!Z$186:Z$192,'Product Class UECs'!$D$71:$D$77)","v":0},{"$f":"SUMPRODUCT('Efficiency Dist - SF'!AA$186:AA$192,'Product Class UECs'!$D$71:$D$77)","v":0},{"$f":"SUMPRODUCT('Efficiency Dist - SF'!AB$186:AB$192,'Product Class UECs'!$D$71:$D$77)","v":0},{"$f":"SUMPRODUCT('Efficiency Dist - SF'!AC$186:AC$192,'Product Class UECs'!$D$71:$D$77)","v":0},{"$f":"SUMPRODUCT('Efficiency Dist - SF'!AD$186:AD$192,'Product Class UECs'!$D$71:$D$77)","v":0},{"$f":"SUMPRODUCT('Efficiency Dist - SF'!AE$186:AE$192,'Product Class UECs'!$D$71:$D$77)","v":0},{"$f":"SUMPRODUCT('Efficiency Dist - SF'!AF$186:AF$192,'Product Class UECs'!$D$71:$D$77)","v":0},{"$f":"SUMPRODUCT('Efficiency Dist - SF'!AG$186:AG$192,'Product Class UECs'!$D$71:$D$77)","v":0},{"$f":"SUMPRODUCT('Efficiency Dist - SF'!AH$186:AH$192,'Product Class UECs'!$D$71:$D$77)","v":0},{"$f":"SUMPRODUCT('Efficiency Dist - SF'!AI$186:AI$192,'Product Class UECs'!$D$71:$D$77)","v":0},{"$f":"SUMPRODUCT('Efficiency Dist - SF'!AJ$186:AJ$192,'Product Class UECs'!$D$71:$D$77)","v":0},{"$f":"SUMPRODUCT('Efficiency Dist - SF'!AK$186:AK$192,'Product Class UECs'!$D$71:$D$77)","v":0},{"$f":"SUMPRODUCT('Efficiency Dist - SF'!AL$186:AL$192,'Product Class UECs'!$D$71:$D$77)","v":0},{"$f":"SUMPRODUCT('Efficiency Dist - SF'!AM$186:AM$192,'Product Class UECs'!$D$71:$D$77)","v":0},{"$f":"SUMPRODUCT('Efficiency Dist - SF'!AN$186:AN$192,'Product Class UECs'!$D$71:$D$77)","v":0},{"$f":"SUMPRODUCT('Efficiency Dist - SF'!AO$186:AO$192,'Product Class UECs'!$D$71:$D$77)","v":0},{"$f":"SUMPRODUCT('Efficiency Dist - SF'!AP$186:AP$192,'Product Class UECs'!$D$71:$D$77)","v":0},{"$f":"SUMPRODUCT('Efficiency Dist - SF'!AQ$186:AQ$192,'Product Class UECs'!$D$71:$D$77)","v":0},{"$f":"SUMPRODUCT('Efficiency Dist - SF'!AR$186:AR$192,'Product Class UECs'!$D$71:$D$77)","v":0},{"$f":"SUMPRODUCT('Efficiency Dist - SF'!AS$186:AS$192,'Product Class UECs'!$D$71:$D$77)","v":0},{"$f":"SUMPRODUCT('Efficiency Dist - SF'!AT$186:AT$192,'Product Class UECs'!$D$71:$D$77)","v":0},{"$f":"SUMPRODUCT('Efficiency Dist - SF'!AU$186:AU$192,'Product Class UECs'!$D$71:$D$77)","v":0},{"$f":"SUMPRODUCT('Efficiency Dist - SF'!AV$186:AV$192,'Product Class UECs'!$D$71:$D$77)","v":0},{"$f":"SUMPRODUCT('Efficiency Dist - SF'!AW$186:AW$192,'Product Class UECs'!$D$71:$D$77)","v":0},{"$f":"SUMPRODUCT('Efficiency Dist - SF'!AX$186:AX$192,'Product Class UECs'!$D$71:$D$77)","v":0},{"$f":"SUMPRODUCT('Efficiency Dist - SF'!AY$186:AY$192,'Product Class UECs'!$D$71:$D$77)","v":0},{"$f":"SUMPRODUCT('Efficiency Dist - SF'!AZ$186:AZ$192,'Product Class UECs'!$D$71:$D$77)","v":0},{"$f":"SUMPRODUCT('Efficiency Dist - SF'!BA$186:BA$192,'Product Class UECs'!$D$71:$D$77)","v":0},{"$f":"SUMPRODUCT('Efficiency Dist - SF'!BB$186:BB$192,'Product Class UECs'!$D$71:$D$77)","v":0},{"$f":"SUMPRODUCT('Efficiency Dist - SF'!BC$186:BC$192,'Product Class UECs'!$D$71:$D$77)","v":0},{"$f":"SUMPRODUCT('Efficiency Dist - SF'!BD$186:BD$192,'Product Class UECs'!$D$71:$D$77)","v":0},{"$f":"SUMPRODUCT('Efficiency Dist - SF'!BE$186:BE$192,'Product Class UECs'!$D$71:$D$77)","v":0},{"$f":"SUMPRODUCT('Efficiency Dist - SF'!BF$186:BF$192,'Product Class UECs'!$D$71:$D$77)","v":0},{"$f":"SUMPRODUCT('Efficiency Dist - SF'!BG$186:BG$192,'Product Class UECs'!$D$71:$D$77)","v":0}]
[null,null,"PC 8 - Mobile Home Electric Furnace / Modular Blower Fan (MH-EF/MB)",{"$f":"SUMPRODUCT('Efficiency Dist - SF'!F$212:F$218,'Product Class UECs'!$D$81:$D$87)","v":0},{"$f":"SUMPRODUCT('Efficiency Dist - SF'!G$212:G$218,'Product Class UECs'!$D$81:$D$87)","v":0},{"$f":"SUMPRODUCT('Efficiency Dist - SF'!H$212:H$218,'Product Class UECs'!$D$81:$D$87)","v":0},{"$f":"SUMPRODUCT('Efficiency Dist - SF'!I$212:I$218,'Product Class UECs'!$D$81:$D$87)","v":0},{"$f":"SUMPRODUCT('Efficiency Dist - SF'!J$212:J$218,'Product Class UECs'!$D$81:$D$87)","v":0},{"$f":"SUMPRODUCT('Efficiency Dist - SF'!K$212:K$218,'Product Class UECs'!$D$81:$D$87)","v":0},{"$f":"SUMPRODUCT('Efficiency Dist - SF'!L$212:L$218,'Product Class UECs'!$D$81:$D$87)","v":0},{"$f":"SUMPRODUCT('Efficiency Dist - SF'!M$212:M$218,'Product Class UECs'!$D$81:$D$87)","v":0},{"$f":"SUMPRODUCT('Efficiency Dist - SF'!N$212:N$218,'Product Class UECs'!$D$81:$D$87)","v":0},{"$f":"SUMPRODUCT('Efficiency Dist - SF'!O$212:O$218,'Product Class UECs'!$D$81:$D$87)","v":0},{"$f":"SUMPRODUCT('Efficiency Dist - SF'!P$212:P$218,'Product Class UECs'!$D$81:$D$87)","v":0},{"$f":"SUMPRODUCT('Efficiency Dist - SF'!Q$212:Q$218,'Product Class UECs'!$D$81:$D$87)","v":0},{"$f":"SUMPRODUCT('Efficiency Dist - SF'!R$212:R$218,'Product Class UECs'!$D$81:$D$87)","v":0},{"$f":"SUMPRODUCT('Efficiency Dist - SF'!S$212:S$218,'Product Class UECs'!$D$81:$D$87)","v":0},{"$f":"SUMPRODUCT('Efficiency Dist - SF'!T$212:T$218,'Product Class UECs'!$D$81:$D$87)","v":0},{"$f":"SUMPRODUCT('Efficiency Dist - SF'!U$212:U$218,'Product Class UECs'!$D$81:$D$87)","v":0},{"$f":"SUMPRODUCT('Efficiency Dist - SF'!V$212:V$218,'Product Class UECs'!$D$81:$D$87)","v":0},{"$f":"SUMPRODUCT('Efficiency Dist - SF'!W$212:W$218,'Product Class UECs'!$D$81:$D$87)","v":0},{"$f":"SUMPRODUCT('Efficiency Dist - SF'!X$212:X$218,'Product Class UECs'!$D$81:$D$87)","v":0},{"$f":"SUMPRODUCT('Efficiency Dist - SF'!Y$212:Y$218,'Product Class UECs'!$D$81:$D$87)","v":0},{"$f":"SUMPRODUCT('Efficiency Dist - SF'!Z$212:Z$218,'Product Class UECs'!$D$81:$D$87)","v":0},{"$f":"SUMPRODUCT('Efficiency Dist - SF'!AA$212:AA$218,'Product Class UECs'!$D$81:$D$87)","v":0},{"$f":"SUMPRODUCT('Efficiency Dist - SF'!AB$212:AB$218,'Product Class UECs'!$D$81:$D$87)","v":0},{"$f":"SUMPRODUCT('Efficiency Dist - SF'!AC$212:AC$218,'Product Class UECs'!$D$81:$D$87)","v":0},{"$f":"SUMPRODUCT('Efficiency Dist - SF'!AD$212:AD$218,'Product Class UECs'!$D$81:$D$87)","v":0},{"$f":"SUMPRODUCT('Efficiency Dist - SF'!AE$212:AE$218,'Product Class UECs'!$D$81:$D$87)","v":0},{"$f":"SUMPRODUCT('Efficiency Dist - SF'!AF$212:AF$218,'Product Class UECs'!$D$81:$D$87)","v":0},{"$f":"SUMPRODUCT('Efficiency Dist - SF'!AG$212:AG$218,'Product Class UECs'!$D$81:$D$87)","v":0},{"$f":"SUMPRODUCT('Efficiency Dist - SF'!AH$212:AH$218,'Product Class UECs'!$D$81:$D$87)","v":0},{"$f":"SUMPRODUCT('Efficiency Dist - SF'!AI$212:AI$218,'Product Class UECs'!$D$81:$D$87)","v":0},{"$f":"SUMPRODUCT('Efficiency Dist - SF'!AJ$212:AJ$218,'Product Class UECs'!$D$81:$D$87)","v":0},{"$f":"SUMPRODUCT('Efficiency Dist - SF'!AK$212:AK$218,'Product Class UECs'!$D$81:$D$87)","v":0},{"$f":"SUMPRODUCT('Efficiency Dist - SF'!AL$212:AL$218,'Product Class UECs'!$D$81:$D$87)","v":0},{"$f":"SUMPRODUCT('Efficiency Dist - SF'!AM$212:AM$218,'Product Class UECs'!$D$81:$D$87)","v":0},{"$f":"SUMPRODUCT('Efficiency Dist - SF'!AN$212:AN$218,'Product Class UECs'!$D$81:$D$87)","v":0},{"$f":"SUMPRODUCT('Efficiency Dist - SF'!AO$212:AO$218,'Product Class UECs'!$D$81:$D$87)","v":0},{"$f":"SUMPRODUCT('Efficiency Dist - SF'!AP$212:AP$218,'Product Class UECs'!$D$81:$D$87)","v":0},{"$f":"SUMPRODUCT('Efficiency Dist - SF'!AQ$212:AQ$218,'Product Class UECs'!$D$81:$D$87)","v":0},{"$f":"SUMPRODUCT('Efficiency Dist - SF'!AR$212:AR$218,'Product Class UECs'!$D$81:$D$87)","v":0},{"$f":"SUMPRODUCT('Efficiency Dist - SF'!AS$212:AS$218,'Product Class UECs'!$D$81:$D$87)","v":0},{"$f":"SUMPRODUCT('Efficiency Dist - SF'!AT$212:AT$218,'Product Class UECs'!$D$81:$D$87)","v":0},{"$f":"SUMPRODUCT('Efficiency Dist - SF'!AU$212:AU$218,'Product Class UECs'!$D$81:$D$87)","v":0},{"$f":"SUMPRODUCT('Efficiency Dist - SF'!AV$212:AV$218,'Product Class UECs'!$D$81:$D$87)","v":0},{"$f":"SUMPRODUCT('Efficiency Dist - SF'!AW$212:AW$218,'Product Class UECs'!$D$81:$D$87)","v":0},{"$f":"SUMPRODUCT('Efficiency Dist - SF'!AX$212:AX$218,'Product Class UECs'!$D$81:$D$87)","v":0},{"$f":"SUMPRODUCT('Efficiency Dist - SF'!AY$212:AY$218,'Product Class UECs'!$D$81:$D$87)","v":0},{"$f":"SUMPRODUCT('Efficiency Dist - SF'!AZ$212:AZ$218,'Product Class UECs'!$D$81:$D$87)","v":0},{"$f":"SUMPRODUCT('Efficiency Dist - SF'!BA$212:BA$218,'Product Class UECs'!$D$81:$D$87)","v":0},{"$f":"SUMPRODUCT('Efficiency Dist - SF'!BB$212:BB$218,'Product Class UECs'!$D$81:$D$87)","v":0},{"$f":"SUMPRODUCT('Efficiency Dist - SF'!BC$212:BC$218,'Product Class UECs'!$D$81:$D$87)","v":0},{"$f":"SUMPRODUCT('Efficiency Dist - SF'!BD$212:BD$218,'Product Class UECs'!$D$81:$D$87)","v":0},{"$f":"SUMPRODUCT('Efficiency Dist - SF'!BE$212:BE$218,'Product Class UECs'!$D$81:$D$87)","v":0},{"$f":"SUMPRODUCT('Efficiency Dist - SF'!BF$212:BF$218,'Product Class UECs'!$D$81:$D$87)","v":0},{"$f":"SUMPRODUCT('Efficiency Dist - SF'!BG$212:BG$218,'Product Class UECs'!$D$81:$D$87)","v":0}]
[]
[null,null,"Source/Rationale"]
[]
[]
[]
[null,null,"Multi-Family"]
[]
[null,null,"PRE-Case",1981,{"$f":"D37+1","v":1982},1983,1984,1985,1986,1987,1988,1989,1990,1991,1992,1993,{"$f":"P37+1","v":1994},1995,1996,1997,1998,1999,2000,2001,2002,2003,2004,2005,2006,2007,2008,2009,2010,2011,2012,2013,2014,2015,2016,2017,2018,2019,2020,2021,2022,2023,2024,2025,2026,2027,2028,2029,2030,2031,2032,2033,2034]
[null,null,{"$f":"'Product Classes'!H10&\" - \"&OFFSET('Product Classes'!$C$9,MATCH('Product Classes'!H10,MODEL_PCS,0),0)","v":"PC 1 - Non-Weatherized, Non-Condensing Gas Furnace Fan (NWG-NC)"},{"$f":"SUMPRODUCT('Efficiency Dist - MF'!F$19:F$25,'Product Class UECs'!$D$11:$D$17)","v":892.72565635016417},{"$f":"SUMPRODUCT('Efficiency Dist - MF'!G$19:G$25,'Product Class UECs'!$D$11:$D$17)","v":885.22803604114335},{"$f":"SUMPRODUCT('Efficiency Dist - MF'!H$19:H$25,'Product Class UECs'!$D$11:$D$17)","v":888.72325176989079},{"$f":"SUMPRODUCT('Efficiency Dist - MF'!I$19:I$25,'Product Class UECs'!$D$11:$D$17)","v":898.86707019181347},{"$f":"SUMPRODUCT('Efficiency Dist - MF'!J$19:J$25,'Product Class UECs'!$D$11:$D$17)","v":910.47406970354996},{"$f":"SUMPRODUCT('Efficiency Dist - MF'!K$19:K$25,'Product Class UECs'!$D$11:$D$17)","v":907.20329065621627},{"$f":"SUMPRODUCT('Efficiency Dist - MF'!L$19:L$25,'Product Class UECs'!$D$11:$D$17)","v":910.23706890694291},{"$f":"SUMPRODUCT('Efficiency Dist - MF'!M$19:M$25,'Product Class UECs'!$D$11:$D$17)","v":916.32786924332845},{"$f":"SUMPRODUCT('Efficiency Dist - MF'!N$19:N$25,'Product Class UECs'!$D$11:$D$17)","v":921.31206278929938},{"$f":"SUMPRODUCT('Efficiency Dist - MF'!O$19:O$25,'Product Class UECs'!$D$11:$D$17)","v":916.65615694215285},{"$f":"SUMPRODUCT('Efficiency Dist - MF'!P$19:P$25,'Product Class UECs'!$D$11:$D$17)","v":896.16464386923178},{"$f":"SUMPRODUCT('Efficiency Dist - MF'!Q$19:Q$25,'Product Class UECs'!$D$11:$D$17)","v":896.77759365437566},{"$f":"SUMPRODUCT('Efficiency Dist - MF'!R$19:R$25,'Product Class UECs'!$D$11:$D$17)","v":858.54875590906772},{"$f":"SUMPRODUCT('Efficiency Dist - MF'!S$19:S$25,'Product Class UECs'!$D$11:$D$17)","v":858.54875590906772},{"$f":"SUMPRODUCT('Efficiency Dist - MF'!T$19:T$25,'Product Class UECs'!$D$11:$D$17)","v":858.54875590906772},{"$f":"SUMPRODUCT('Efficiency Dist - MF'!U$19:U$25,'Product Class UECs'!$D$11:$D$17)","v":858.54875590906772},{"$f":"SUMPRODUCT('Efficiency Dist - MF'!V$19:V$25,'Product Class UECs'!$D$11:$D$17)","v":858.54875590906772},{"$f":"SUMPRODUCT('Efficiency Dist - MF'!W$19:W$25,'Product Class UECs'!$D$11:$D$17)","v":858.54875590906772},{"$f":"SUMPRODUCT('Efficiency Dist - MF'!X$19:X$25,'Product Class UECs'!$D$11:$D$17)","v":858.54875590906772},{"$f":"SUMPRODUCT('Efficiency Dist - MF'!Y$19:Y$25,'Product Class UECs'!$D$11:$D$17)","v":858.54875590906772},{"$f":"SUMPRODUCT('Efficiency Dist - MF'!Z$19:Z$25,'Product Class UECs'!$D$11:$D$17)","v":858.54875590906772},{"$f":"SUMPRODUCT('Efficiency Dist - MF'!AA$19:AA$25,'Product Class UECs'!$D$11:$D$17)","v":858.54875590906772},{"$f":"SUMPRODUCT('Efficiency Dist - MF'!AB$19:AB$25,'Product Class UECs'!$D$11:$D$17)","v":858.54875590906772},{"$f":"SUMPRODUCT('Efficiency Dist - MF'!AC$19:AC$25,'Product Class UECs'!$D$11:$D$17)","v":858.54875590906772},{"$f":"SUMPRODUCT('Efficiency Dist - MF'!AD$19:AD$25,'Product Class UECs'!$D$11:$D$17)","v":858.54875590906772},{"$f":"SUMPRODUCT('Efficiency Dist - MF'!AE$19:AE$25,'Product Class UECs'!$D$11:$D$17)","v":858.54875590906772},{"$f":"SUMPRODUCT('Efficiency Dist - MF'!AF$19:AF$25,'Product Class UECs'!$D$11:$D$17)","v":858.54875590906772},{"$f":"SUMPRODUCT('Efficiency Dist - MF'!AG$19:AG$25,'Product Class UECs'!$D$11:$D$17)","v":858.54875590906772},{"$f":"SUMPRODUCT('Efficiency Dist - MF'!AH$19:AH$25,'Product Class UECs'!$D$11:$D$17)","v":858.54875590906772},{"$f":"SUMPRODUCT('Efficiency Dist - MF'!AI$19:AI$25,'Product Class UECs'!$D$11:$D$17)","v":858.54875590906772},{"$f":"SUMPRODUCT('Efficiency Dist - MF'!AJ$19:AJ$25,'Product Class UECs'!$D$11:$D$17)","v":858.54875590906772},{"$f":"SUMPRODUCT('Efficiency Dist - MF'!AK$19:AK$25,'Product Class UECs'!$D$11:$D$17)","v":875.31556188661136},{"$f":"SUMPRODUCT('Efficiency Dist - MF'!AL$19:AL$25,'Product Class UECs'!$D$11:$D$17)","v":875.98897895454991},{"$f":"SUMPRODUCT('Efficiency Dist - MF'!AM$19:AM$25,'Product Class UECs'!$D$11:$D$17)","v":891.92864713089148},{"$f":"SUMPRODUCT('Efficiency Dist - MF'!AN$19:AN$25,'Product Class UECs'!$D$11:$D$17)","v":891.11548050173974},{"$f":"SUMPRODUCT('Efficiency Dist - MF'!AO$19:AO$25,'Product Class UECs'!$D$11:$D$17)","v":892.1062506232181},{"$f":"SUMPRODUCT('Efficiency Dist - MF'!AP$19:AP$25,'Product Class UECs'!$D$11:$D$17)","v":894.13819883451742},{"$f":"SUMPRODUCT('Efficiency Dist - MF'!AQ$19:AQ$25,'Product Class UECs'!$D$11:$D$17)","v":896.20230515059166},{"$f":"SUMPRODUCT('Efficiency Dist - MF'!AR$19:AR$25,'Product Class UECs'!$D$11:$D$17)","v":895.77168890463452},{"$f":"SUMPRODUCT('Efficiency Dist - MF'!AS$19:AS$25,'Product Class UECs'!$D$11:$D$17)","v":902.87061071763947},{"$f":"SUMPRODUCT('Efficiency Dist - MF'!AT$19:AT$25,'Product Class UECs'!$D$11:$D$17)","v":910.37387522374888},{"$f":"SUMPRODUCT('Efficiency Dist - MF'!AU$19:AU$25,'Product Class UECs'!$D$11:$D$17)","v":912.72556265701496},{"$f":"SUMPRODUCT('Efficiency Dist - MF'!AV$19:AV$25,'Product Class UECs'!$D$11:$D$17)","v":895.9504870800364},{"$f":"SUMPRODUCT('Efficiency Dist - MF'!AW$19:AW$25,'Product Class UECs'!$D$11:$D$17)","v":901.48017545251491},{"$f":"SUMPRODUCT('Efficiency Dist - MF'!AX$19:AX$25,'Product Class UECs'!$D$11:$D$17)","v":898.45666118449185},{"$f":"SUMPRODUCT('Efficiency Dist - MF'!AY$19:AY$25,'Product Class UECs'!$D$11:$D$17)","v":893.37251559668334},{"$f":"SUMPRODUCT('Efficiency Dist - MF'!AZ$19:AZ$25,'Product Class UECs'!$D$11:$D$17)","v":886.23904316115443},{"$f":"SUMPRODUCT('Efficiency Dist - MF'!BA$19:BA$25,'Product Class UECs'!$D$11:$D$17)","v":889.21323052837943},{"$f":"SUMPRODUCT('Efficiency Dist - MF'!BB$19:BB$25,'Product Class UECs'!$D$11:$D$17)","v":890.39339907818749},{"$f":"SUMPRODUCT('Efficiency Dist - MF'!BC$19:BC$25,'Product Class UECs'!$D$11:$D$17)","v":889.62057125000331},{"$f":"SUMPRODUCT('Efficiency Dist - MF'!BD$19:BD$25,'Product Class UECs'!$D$11:$D$17)","v":884.75333663826586},{"$f":"SUMPRODUCT('Efficiency Dist - MF'!BE$19:BE$25,'Product Class UECs'!$D$11:$D$17)","v":887.55130563357034},{"$f":"SUMPRODUCT('Efficiency Dist - MF'!BF$19:BF$25,'Product Class UECs'!$D$11:$D$17)","v":878.48325735704248},{"$f":"SUMPRODUCT('Efficiency Dist - MF'!BG$19:BG$25,'Product Class UECs'!$D$11:$D$17)","v":878.39362151188425}]
[null,null,{"$f":"'Product Classes'!H11&\" - \"&OFFSET('Product Classes'!$C$9,MATCH('Product Classes'!H11,MODEL_PCS,0),0)","v":"PC 2 - Non-Weatherized, Condensing Gas Furnace Fan (NWG-C)"},{"$f":"SUMPRODUCT('Efficiency Dist - MF'!F$45:F$51,'Product Class UECs'!$D$21:$D$27)","v":852.6074291209743},{"$f":"SUMPRODUCT('Efficiency Dist - MF'!G$45:G$51,'Product Class UECs'!$D$21:$D$27)","v":840.61497772059261},{"$f":"SUMPRODUCT('Efficiency Dist - MF'!H$45:H$51,'Product Class UECs'!$D$21:$D$27)","v":846.20557887579128},{"$f":"SUMPRODUCT('Efficiency Dist - MF'!I$45:I$51,'Product Class UECs'!$D$21:$D$27)","v":862.43062688106886},{"$f":"SUMPRODUCT('Efficiency Dist - MF'!J$45:J$51,'Product Class UECs'!$D$21:$D$27)","v":880.996034545322},{"$f":"SUMPRODUCT('Efficiency Dist - MF'!K$45:K$51,'Product Class UECs'!$D$21:$D$27)","v":875.7644200930215},{"$f":"SUMPRODUCT('Efficiency Dist - MF'!L$45:L$51,'Product Class UECs'!$D$21:$D$27)","v":880.61695152724178},{"$f":"SUMPRODUCT('Efficiency Dist - MF'!M$45:M$51,'Product Class UECs'!$D$21:$D$27)","v":890.35919293357904},{"$f":"SUMPRODUCT('Efficiency Dist - MF'!N$45:N$51,'Product Class UECs'!$D$21:$D$27)","v":898.3314156397937},{"$f":"SUMPRODUCT('Efficiency Dist - MF'!O$45:O$51,'Product Class UECs'!$D$21:$D$27)","v":890.88428944570239},{"$f":"SUMPRODUCT('Efficiency Dist - MF'!P$45:P$51,'Product Class UECs'!$D$21:$D$27)","v":858.10809319692373},{"$f":"SUMPRODUCT('Efficiency Dist - MF'!Q$45:Q$51,'Product Class UECs'!$D$21:$D$27)","v":859.08850700907237},{"$f":"SUMPRODUCT('Efficiency Dist - MF'!R$45:R$51,'Product Class UECs'!$D$21:$D$27)","v":797.94144169261551},{"$f":"SUMPRODUCT('Efficiency Dist - MF'!S$45:S$51,'Product Class UECs'!$D$21:$D$27)","v":797.94144169261551},{"$f":"SUMPRODUCT('Efficiency Dist - MF'!T$45:T$51,'Product Class UECs'!$D$21:$D$27)","v":797.94144169261551},{"$f":"SUMPRODUCT('Efficiency Dist - MF'!U$45:U$51,'Product Class UECs'!$D$21:$D$27)","v":797.94144169261563},{"$f":"SUMPRODUCT('Efficiency Dist - MF'!V$45:V$51,'Product Class UECs'!$D$21:$D$27)","v":797.94144169261551},{"$f":"SUMPRODUCT('Efficiency Dist - MF'!W$45:W$51,'Product Class UECs'!$D$21:$D$27)","v":797.94144169261551},{"$f":"SUMPRODUCT('Efficiency Dist - MF'!X$45:X$51,'Product Class UECs'!$D$21:$D$27)","v":797.94144169261551},{"$f":"SUMPRODUCT('Efficiency Dist - MF'!Y$45:Y$51,'Product Class UECs'!$D$21:$D$27)","v":797.94144169261551},{"$f":"SUMPRODUCT('Efficiency Dist - MF'!Z$45:Z$51,'Product Class UECs'!$D$21:$D$27)","v":797.94144169261551},{"$f":"SUMPRODUCT('Efficiency Dist - MF'!AA$45:AA$51,'Product Class UECs'!$D$21:$D$27)","v":797.94144169261551},{"$f":"SUMPRODUCT('Efficiency Dist - MF'!AB$45:AB$51,'Product Class UECs'!$D$21:$D$27)","v":797.94144169261551},{"$f":"SUMPRODUCT('Efficiency Dist - MF'!AC$45:AC$51,'Product Class UECs'!$D$21:$D$27)","v":797.94144169261551},{"$f":"SUMPRODUCT('Efficiency Dist - MF'!AD$45:AD$51,'Product Class UECs'!$D$21:$D$27)","v":797.94144169261563},{"$f":"SUMPRODUCT('Efficiency Dist - MF'!AE$45:AE$51,'Product Class UECs'!$D$21:$D$27)","v":797.94144169261551},{"$f":"SUMPRODUCT('Efficiency Dist - MF'!AF$45:AF$51,'Product Class UECs'!$D$21:$D$27)","v":797.94144169261551},{"$f":"SUMPRODUCT('Efficiency Dist - MF'!AG$45:AG$51,'Product Class UECs'!$D$21:$D$27)","v":797.94144169261551},{"$f":"SUMPRODUCT('Efficiency Dist - MF'!AH$45:AH$51,'Product Class UECs'!$D$21:$D$27)","v":797.94144169261551},{"$f":"SUMPRODUCT('Efficiency Dist - MF'!AI$45:AI$51,'Product Class UECs'!$D$21:$D$27)","v":797.94144169261551},{"$f":"SUMPRODUCT('Efficiency Dist - MF'!AJ$45:AJ$51,'Product Class UECs'!$D$21:$D$27)","v":797.94144169261551},{"$f":"SUMPRODUCT('Efficiency Dist - MF'!AK$45:AK$51,'Product Class UECs'!$D$21:$D$27)","v":824.75996510909226},{"$f":"SUMPRODUCT('Efficiency Dist - MF'!AL$45:AL$51,'Product Class UECs'!$D$21:$D$27)","v":825.83709640230063},{"$f":"SUMPRODUCT('Efficiency Dist - MF'!AM$45:AM$51,'Product Class UECs'!$D$21:$D$27)","v":851.33261205451333},{"$f":"SUMPRODUCT('Efficiency Dist - MF'!AN$45:AN$51,'Product Class UECs'!$D$21:$D$27)","v":850.03195119432257},{"$f":"SUMPRODUCT('Efficiency Dist - MF'!AO$45:AO$51,'Product Class UECs'!$D$21:$D$27)","v":851.61668902326892},{"$f":"SUMPRODUCT('Efficiency Dist - MF'!AP$45:AP$51,'Product Class UECs'!$D$21:$D$27)","v":854.86679227840182},{"$f":"SUMPRODUCT('Efficiency Dist - MF'!AQ$45:AQ$51,'Product Class UECs'!$D$21:$D$27)","v":858.16833245521764},{"$f":"SUMPRODUCT('Efficiency Dist - MF'!AR$45:AR$51,'Product Class UECs'!$D$21:$D$27)","v":857.47956132664433},{"$f":"SUMPRODUCT('Efficiency Dist - MF'!AS$45:AS$51,'Product Class UECs'!$D$21:$D$27)","v":868.83429407233245},{"$f":"SUMPRODUCT('Efficiency Dist - MF'!AT$45:AT$51,'Product Class UECs'!$D$21:$D$27)","v":880.83577337176598},{"$f":"SUMPRODUCT('Efficiency Dist - MF'!AU$45:AU$51,'Product Class UECs'!$D$21:$D$27)","v":884.59729984149158},{"$f":"SUMPRODUCT('Efficiency Dist - MF'!AV$45:AV$51,'Product Class UECs'!$D$21:$D$27)","v":857.76554919220848},{"$f":"SUMPRODUCT('Efficiency Dist - MF'!AW$45:AW$51,'Product Class UECs'!$D$21:$D$27)","v":866.61029143481221},{"$f":"SUMPRODUCT('Efficiency Dist - MF'!AX$45:AX$51,'Product Class UECs'!$D$21:$D$27)","v":861.77417725148939},{"$f":"SUMPRODUCT('Efficiency Dist - MF'!AY$45:AY$51,'Product Class UECs'!$D$21:$D$27)","v":853.64208115149063},{"$f":"SUMPRODUCT('Efficiency Dist - MF'!AZ$45:AZ$51,'Product Class UECs'!$D$21:$D$27)","v":842.23208464951847},{"$f":"SUMPRODUCT('Efficiency Dist - MF'!BA$45:BA$51,'Product Class UECs'!$D$21:$D$27)","v":846.9893004042508},{"$f":"SUMPRODUCT('Efficiency Dist - MF'!BB$45:BB$51,'Product Class UECs'!$D$21:$D$27)","v":848.87698121422773},{"$f":"SUMPRODUCT('Efficiency Dist - MF'!BC$45:BC$51,'Product Class UECs'!$D$21:$D$27)","v":847.64084230769879},{"$f":"SUMPRODUCT('Efficiency Dist - MF'!BD$45:BD$51,'Product Class UECs'!$D$21:$D$27)","v":839.855695537158},{"$f":"SUMPRODUCT('Efficiency Dist - MF'!BE$45:BE$51,'Product Class UECs'!$D$21:$D$27)","v":844.33104982464965},{"$f":"SUMPRODUCT('Efficiency Dist - MF'!BF$45:BF$51,'Product Class UECs'!$D$21:$D$27)","v":829.82669727404948},{"$f":"SUMPRODUCT('Efficiency Dist - MF'!BG$45:BG$51,'Product Class UECs'!$D$21:$D$27)","v":829.68332464747141}]
[null,null,{"$f":"'Product Classes'!H12&\" - \"&OFFSET('Product Classes'!$C$9,MATCH('Product Classes'!H12,MODEL_PCS,0),0)","v":"PC 3 - Weatherized Non-Condensing Gas Furnace Fan (WG-NC)"},{"$f":"SUMPRODUCT('Efficiency Dist - MF'!F$71:F$77,'Product Class UECs'!$D$31:$D$37)","v":932.53479327999389},{"$f":"SUMPRODUCT('Efficiency Dist - MF'!G$71:G$77,'Product Class UECs'!$D$31:$D$37)","v":913.54401254950119},{"$f":"SUMPRODUCT('Efficiency Dist - MF'!H$71:H$77,'Product Class UECs'!$D$31:$D$37)","v":922.39707162353182},{"$f":"SUMPRODUCT('Efficiency Dist - MF'!I$71:I$77,'Product Class UECs'!$D$31:$D$37)","v":948.09042811277629},{"$f":"SUMPRODUCT('Efficiency Dist - MF'!J$71:J$77,'Product Class UECs'!$D$31:$D$37)","v":977.48988735201215},{"$f":"SUMPRODUCT('Efficiency Dist - MF'!K$71:K$77,'Product Class UECs'!$D$31:$D$37)","v":969.20530569200628},{"$f":"SUMPRODUCT('Efficiency Dist - MF'!L$71:L$77,'Product Class UECs'!$D$31:$D$37)","v":976.88958619300286},{"$f":"SUMPRODUCT('Efficiency Dist - MF'!M$71:M$77,'Product Class UECs'!$D$31:$D$37)","v":992.31702168508127},{"$f":"SUMPRODUCT('Efficiency Dist - MF'!N$71:N$77,'Product Class UECs'!$D$31:$D$37)","v":1004.9415242403769},{"$f":"SUMPRODUCT('Efficiency Dist - MF'!O$71:O$77,'Product Class UECs'!$D$31:$D$37)","v":993.14854414793376},{"$f":"SUMPRODUCT('Efficiency Dist - MF'!P$71:P$77,'Product Class UECs'!$D$31:$D$37)","v":941.24543148488431},{"$f":"SUMPRODUCT('Efficiency Dist - MF'!Q$71:Q$77,'Product Class UECs'!$D$31:$D$37)","v":942.79797675774432},{"$f":"SUMPRODUCT('Efficiency Dist - MF'!R$71:R$77,'Product Class UECs'!$D$31:$D$37)","v":845.96785662892773},{"$f":"SUMPRODUCT('Efficiency Dist - MF'!S$71:S$77,'Product Class UECs'!$D$31:$D$37)","v":845.96785662892773},{"$f":"SUMPRODUCT('Efficiency Dist - MF'!T$71:T$77,'Product Class UECs'!$D$31:$D$37)","v":845.96785662892773},{"$f":"SUMPRODUCT('Efficiency Dist - MF'!U$71:U$77,'Product Class UECs'!$D$31:$D$37)","v":845.96785662892773},{"$f":"SUMPRODUCT('Efficiency Dist - MF'!V$71:V$77,'Product Class UECs'!$D$31:$D$37)","v":845.96785662892773},{"$f":"SUMPRODUCT('Efficiency Dist - MF'!W$71:W$77,'Product Class UECs'!$D$31:$D$37)","v":845.96785662892762},{"$f":"SUMPRODUCT('Efficiency Dist - MF'!X$71:X$77,'Product Class UECs'!$D$31:$D$37)","v":845.96785662892773},{"$f":"SUMPRODUCT('Efficiency Dist - MF'!Y$71:Y$77,'Product Class UECs'!$D$31:$D$37)","v":845.96785662892773},{"$f":"SUMPRODUCT('Efficiency Dist - MF'!Z$71:Z$77,'Product Class UECs'!$D$31:$D$37)","v":845.96785662892773},{"$f":"SUMPRODUCT('Efficiency Dist - MF'!AA$71:AA$77,'Product Class UECs'!$D$31:$D$37)","v":845.96785662892773},{"$f":"SUMPRODUCT('Efficiency Dist - MF'!AB$71:AB$77,'Product Class UECs'!$D$31:$D$37)","v":845.96785662892773},{"$f":"SUMPRODUCT('Efficiency Dist - MF'!AC$71:AC$77,'Product Class UECs'!$D$31:$D$37)","v":845.96785662892773},{"$f":"SUMPRODUCT('Efficiency Dist - MF'!AD$71:AD$77,'Product Class UECs'!$D$31:$D$37)","v":845.96785662892762},{"$f":"SUMPRODUCT('Efficiency Dist - MF'!AE$71:AE$77,'Product Class UECs'!$D$31:$D$37)","v":845.96785662892773},{"$f":"SUMPRODUCT('Efficiency Dist - MF'!AF$71:AF$77,'Product Class UECs'!$D$31:$D$37)","v":845.96785662892773},{"$f":"SUMPRODUCT('Efficiency Dist - MF'!AG$71:AG$77,'Product Class UECs'!$D$31:$D$37)","v":845.96785662892762},{"$f":"SUMPRODUCT('Efficiency Dist - MF'!AH$71:AH$77,'Product Class UECs'!$D$31:$D$37)","v":845.96785662892773},{"$f":"SUMPRODUCT('Efficiency Dist - MF'!AI$71:AI$77,'Product Class UECs'!$D$31:$D$37)","v":845.96785662892773},{"$f":"SUMPRODUCT('Efficiency Dist - MF'!AJ$71:AJ$77,'Product Class UECs'!$D$31:$D$37)","v":845.96785662892773},{"$f":"SUMPRODUCT('Efficiency Dist - MF'!AK$71:AK$77,'Product Class UECs'!$D$31:$D$37)","v":888.43662975246821},{"$f":"SUMPRODUCT('Efficiency Dist - MF'!AL$71:AL$77,'Product Class UECs'!$D$31:$D$37)","v":890.14233307569521},{"$f":"SUMPRODUCT('Efficiency Dist - MF'!AM$71:AM$77,'Product Class UECs'!$D$31:$D$37)","v":930.51604243645261},{"$f":"SUMPRODUCT('Efficiency Dist - MF'!AN$71:AN$77,'Product Class UECs'!$D$31:$D$37)","v":928.45636636390009},{"$f":"SUMPRODUCT('Efficiency Dist - MF'!AO$71:AO$77,'Product Class UECs'!$D$31:$D$37)","v":930.96589570198671},{"$f":"SUMPRODUCT('Efficiency Dist - MF'!AP$71:AP$77,'Product Class UECs'!$D$31:$D$37)","v":936.11263311279868},{"$f":"SUMPRODUCT('Efficiency Dist - MF'!AQ$71:AQ$77,'Product Class UECs'!$D$31:$D$37)","v":941.34082403703496},{"$f":"SUMPRODUCT('Efficiency Dist - MF'!AR$71:AR$77,'Product Class UECs'!$D$31:$D$37)","v":940.25011280214835},{"$f":"SUMPRODUCT('Efficiency Dist - MF'!AS$71:AS$77,'Product Class UECs'!$D$31:$D$37)","v":958.231027014554},{"$f":"SUMPRODUCT('Efficiency Dist - MF'!AT$71:AT$77,'Product Class UECs'!$D$31:$D$37)","v":977.23610397570314},{"$f":"SUMPRODUCT('Efficiency Dist - MF'!AU$71:AU$77,'Product Class UECs'!$D$31:$D$37)","v":983.19271134592168},{"$f":"SUMPRODUCT('Efficiency Dist - MF'!AV$71:AV$77,'Product Class UECs'!$D$31:$D$37)","v":940.70299208972551},{"$f":"SUMPRODUCT('Efficiency Dist - MF'!AW$71:AW$77,'Product Class UECs'!$D$31:$D$37)","v":954.70918272908659},{"$f":"SUMPRODUCT('Efficiency Dist - MF'!AX$71:AX$77,'Product Class UECs'!$D$31:$D$37)","v":947.05089994962157},{"$f":"SUMPRODUCT('Efficiency Dist - MF'!AY$71:AY$77,'Product Class UECs'!$D$31:$D$37)","v":934.17322809101756},{"$f":"SUMPRODUCT('Efficiency Dist - MF'!AZ$71:AZ$77,'Product Class UECs'!$D$31:$D$37)","v":916.10480033839463},{"$f":"SUMPRODUCT('Efficiency Dist - MF'!BA$71:BA$77,'Product Class UECs'!$D$31:$D$37)","v":923.63814262760252},{"$f":"SUMPRODUCT('Efficiency Dist - MF'!BB$71:BB$77,'Product Class UECs'!$D$31:$D$37)","v":926.62740071626035},{"$f":"SUMPRODUCT('Efficiency Dist - MF'!BC$71:BC$77,'Product Class UECs'!$D$31:$D$37)","v":924.66989910607515},{"$f":"SUMPRODUCT('Efficiency Dist - MF'!BD$71:BD$77,'Product Class UECs'!$D$31:$D$37)","v":912.34164274396528},{"$f":"SUMPRODUCT('Efficiency Dist - MF'!BE$71:BE$77,'Product Class UECs'!$D$31:$D$37)","v":919.42864014987674},{"$f":"SUMPRODUCT('Efficiency Dist - MF'!BF$71:BF$77,'Product Class UECs'!$D$31:$D$37)","v":896.4601102196707},{"$f":"SUMPRODUCT('Efficiency Dist - MF'!BG$71:BG$77,'Product Class UECs'!$D$31:$D$37)","v":896.23307089107993}]
[null,null,{"$f":"'Product Classes'!H13&\" - \"&OFFSET('Product Classes'!$C$9,MATCH('Product Classes'!H13,MODEL_PCS,0),0)","v":"PC 4 - Non-Weatherized, Non-Condensing Oil Furnace Fan (NWO-NC)"},{"$f":"SUMPRODUCT('Efficiency Dist - MF'!F$97:F$103,'Product Class UECs'!$D$41:$D$47)","v":1024.9723912386441},{"$f":"SUMPRODUCT('Efficiency Dist - MF'!G$97:G$103,'Product Class UECs'!$D$41:$D$47)","v":1015.8969296468067},{"$f":"SUMPRODUCT('Efficiency Dist - MF'!H$97:H$103,'Product Class UECs'!$D$41:$D$47)","v":1020.1276981832275},{"$f":"SUMPRODUCT('Efficiency Dist - MF'!I$97:I$103,'Product Class UECs'!$D$41:$D$47)","v":1032.4062386651949},{"$f":"SUMPRODUCT('Efficiency Dist - MF'!J$97:J$103,'Product Class UECs'!$D$41:$D$47)","v":1046.4558802746137},{"$f":"SUMPRODUCT('Efficiency Dist - MF'!K$97:K$103,'Product Class UECs'!$D$41:$D$47)","v":1042.4967801340335},{"$f":"SUMPRODUCT('Efficiency Dist - MF'!L$97:L$103,'Product Class UECs'!$D$41:$D$47)","v":1046.1690037006888},{"$f":"SUMPRODUCT('Efficiency Dist - MF'!M$97:M$103,'Product Class UECs'!$D$41:$D$47)","v":1053.5415862319642},{"$f":"SUMPRODUCT('Efficiency Dist - MF'!N$97:N$103,'Product Class UECs'!$D$41:$D$47)","v":1059.5746814312927},{"$f":"SUMPRODUCT('Efficiency Dist - MF'!O$97:O$103,'Product Class UECs'!$D$41:$D$47)","v":1053.9389606359689},{"$f":"SUMPRODUCT('Efficiency Dist - MF'!P$97:P$103,'Product Class UECs'!$D$41:$D$47)","v":1029.1350985854751},{"$f":"SUMPRODUCT('Efficiency Dist - MF'!Q$97:Q$103,'Product Class UECs'!$D$41:$D$47)","v":1029.8770409623255},{"$f":"SUMPRODUCT('Efficiency Dist - MF'!R$97:R$103,'Product Class UECs'!$D$41:$D$47)","v":983.60311212110275},{"$f":"SUMPRODUCT('Efficiency Dist - MF'!S$97:S$103,'Product Class UECs'!$D$41:$D$47)","v":983.60311212110275},{"$f":"SUMPRODUCT('Efficiency Dist - MF'!T$97:T$103,'Product Class UECs'!$D$41:$D$47)","v":983.60311212110275},{"$f":"SUMPRODUCT('Efficiency Dist - MF'!U$97:U$103,'Product Class UECs'!$D$41:$D$47)","v":983.60311212110275},{"$f":"SUMPRODUCT('Efficiency Dist - MF'!V$97:V$103,'Product Class UECs'!$D$41:$D$47)","v":983.60311212110275},{"$f":"SUMPRODUCT('Efficiency Dist - MF'!W$97:W$103,'Product Class UECs'!$D$41:$D$47)","v":983.60311212110275},{"$f":"SUMPRODUCT('Efficiency Dist - MF'!X$97:X$103,'Product Class UECs'!$D$41:$D$47)","v":983.60311212110275},{"$f":"SUMPRODUCT('Efficiency Dist - MF'!Y$97:Y$103,'Product Class UECs'!$D$41:$D$47)","v":983.60311212110275},{"$f":"SUMPRODUCT('Efficiency Dist - MF'!Z$97:Z$103,'Product Class UECs'!$D$41:$D$47)","v":983.60311212110275},{"$f":"SUMPRODUCT('Efficiency Dist - MF'!AA$97:AA$103,'Product Class UECs'!$D$41:$D$47)","v":983.60311212110275},{"$f":"SUMPRODUCT('Efficiency Dist - MF'!AB$97:AB$103,'Product Class UECs'!$D$41:$D$47)","v":983.60311212110275},{"$f":"SUMPRODUCT('Efficiency Dist - MF'!AC$97:AC$103,'Product Class UECs'!$D$41:$D$47)","v":983.60311212110264},{"$f":"SUMPRODUCT('Efficiency Dist - MF'!AD$97:AD$103,'Product Class UECs'!$D$41:$D$47)","v":983.60311212110275},{"$f":"SUMPRODUCT('Efficiency Dist - MF'!AE$97:AE$103,'Product Class UECs'!$D$41:$D$47)","v":983.60311212110275},{"$f":"SUMPRODUCT('Efficiency Dist - MF'!AF$97:AF$103,'Product Class UECs'!$D$41:$D$47)","v":983.60311212110275},{"$f":"SUMPRODUCT('Efficiency Dist - MF'!AG$97:AG$103,'Product Class UECs'!$D$41:$D$47)","v":983.60311212110275},{"$f":"SUMPRODUCT('Efficiency Dist - MF'!AH$97:AH$103,'Product Class UECs'!$D$41:$D$47)","v":983.60311212110264},{"$f":"SUMPRODUCT('Efficiency Dist - MF'!AI$97:AI$103,'Product Class UECs'!$D$41:$D$47)","v":983.60311212110275},{"$f":"SUMPRODUCT('Efficiency Dist - MF'!AJ$97:AJ$103,'Product Class UECs'!$D$41:$D$47)","v":983.60311212110275},{"$f":"SUMPRODUCT('Efficiency Dist - MF'!AK$97:AK$103,'Product Class UECs'!$D$41:$D$47)","v":1003.8984188178039},{"$f":"SUMPRODUCT('Efficiency Dist - MF'!AL$97:AL$103,'Product Class UECs'!$D$41:$D$47)","v":1004.7135535516887},{"$f":"SUMPRODUCT('Efficiency Dist - MF'!AM$97:AM$103,'Product Class UECs'!$D$41:$D$47)","v":1024.0076549276914},{"$f":"SUMPRODUCT('Efficiency Dist - MF'!AN$97:AN$103,'Product Class UECs'!$D$41:$D$47)","v":1023.0233609508743},{"$f":"SUMPRODUCT('Efficiency Dist - MF'!AO$97:AO$103,'Product Class UECs'!$D$41:$D$47)","v":1024.2226342953782},{"$f":"SUMPRODUCT('Efficiency Dist - MF'!AP$97:AP$103,'Product Class UECs'!$D$41:$D$47)","v":1026.6821970883971},{"$f":"SUMPRODUCT('Efficiency Dist - MF'!AQ$97:AQ$103,'Product Class UECs'!$D$41:$D$47)","v":1029.1806855181808},{"$f":"SUMPRODUCT('Efficiency Dist - MF'!AR$97:AR$103,'Product Class UECs'!$D$41:$D$47)","v":1028.6594479734754},{"$f":"SUMPRODUCT('Efficiency Dist - MF'!AS$97:AS$103,'Product Class UECs'!$D$41:$D$47)","v":1037.2523067209197},{"$f":"SUMPRODUCT('Efficiency Dist - MF'!AT$97:AT$103,'Product Class UECs'!$D$41:$D$47)","v":1046.334600306348},{"$f":"SUMPRODUCT('Efficiency Dist - MF'!AU$97:AU$103,'Product Class UECs'!$D$41:$D$47)","v":1049.1811900370838},{"$f":"SUMPRODUCT('Efficiency Dist - MF'!AV$97:AV$103,'Product Class UECs'!$D$41:$D$47)","v":1028.8758734400465},{"$f":"SUMPRODUCT('Efficiency Dist - MF'!AW$97:AW$103,'Product Class UECs'!$D$41:$D$47)","v":1035.5692604576416},{"$f":"SUMPRODUCT('Efficiency Dist - MF'!AX$97:AX$103,'Product Class UECs'!$D$41:$D$47)","v":1031.9094608837952},{"$f":"SUMPRODUCT('Efficiency Dist - MF'!AY$97:AY$103,'Product Class UECs'!$D$41:$D$47)","v":1025.7553791741691},{"$f":"SUMPRODUCT('Efficiency Dist - MF'!AZ$97:AZ$103,'Product Class UECs'!$D$41:$D$47)","v":1017.1206987773528},{"$f":"SUMPRODUCT('Efficiency Dist - MF'!BA$97:BA$103,'Product Class UECs'!$D$41:$D$47)","v":1020.7207908206512},{"$f":"SUMPRODUCT('Efficiency Dist - MF'!BB$97:BB$103,'Product Class UECs'!$D$41:$D$47)","v":1022.1493206613516},{"$f":"SUMPRODUCT('Efficiency Dist - MF'!BC$97:BC$103,'Product Class UECs'!$D$41:$D$47)","v":1021.2138546090965},{"$f":"SUMPRODUCT('Efficiency Dist - MF'!BD$97:BD$103,'Product Class UECs'!$D$41:$D$47)","v":1015.3223318383129},{"$f":"SUMPRODUCT('Efficiency Dist - MF'!BE$97:BE$103,'Product Class UECs'!$D$41:$D$47)","v":1018.70912112684},{"$f":"SUMPRODUCT('Efficiency Dist - MF'!BF$97:BF$103,'Product Class UECs'!$D$41:$D$47)","v":1007.7327418952134},{"$f":"SUMPRODUCT('Efficiency Dist - MF'!BG$97:BG$103,'Product Class UECs'!$D$41:$D$47)","v":1007.6242425799035}]
[null,null,{"$f":"'Product Classes'!H14&\" - \"&OFFSET('Product Classes'!$C$9,MATCH('Product Classes'!H14,MODEL_PCS,0),0)","v":"PC 5 - Non-Weatherized Electric Furnace / Modular Blower Fan (NWEF/NWMB)"},{"$f":"SUMPRODUCT('Efficiency Dist - MF'!F$123:F$129,'Product Class UECs'!$D$51:$D$57)","v":485.82931588486395},{"$f":"SUMPRODUCT('Efficiency Dist - MF'!G$123:G$129,'Product Class UECs'!$D$51:$D$57)","v":479.41327816624471},{"$f":"SUMPRODUCT('Efficiency Dist - MF'!H$123:H$129,'Product Class UECs'!$D$51:$D$57)","v":482.40428531598974},{"$f":"SUMPRODUCT('Efficiency Dist - MF'!I$123:I$129,'Product Class UECs'!$D$51:$D$57)","v":491.08478911898658},{"$f":"SUMPRODUCT('Efficiency Dist - MF'!J$123:J$129,'Product Class UECs'!$D$51:$D$57)","v":501.01740021396239},{"$f":"SUMPRODUCT('Efficiency Dist - MF'!K$123:K$129,'Product Class UECs'!$D$51:$D$57)","v":498.21845323184959},{"$f":"SUMPRODUCT('Efficiency Dist - MF'!L$123:L$129,'Product Class UECs'!$D$51:$D$57)","v":500.81458838998344},{"$f":"SUMPRODUCT('Efficiency Dist - MF'!M$123:M$129,'Product Class UECs'!$D$51:$D$57)","v":506.0267494603184},{"$f":"SUMPRODUCT('Efficiency Dist - MF'!N$123:N$129,'Product Class UECs'!$D$51:$D$57)","v":510.29193927652869},{"$f":"SUMPRODUCT('Efficiency Dist - MF'!O$123:O$129,'Product Class UECs'!$D$51:$D$57)","v":506.30767943161612},{"$f":"SUMPRODUCT('Efficiency Dist - MF'!P$123:P$129,'Product Class UECs'!$D$51:$D$57)","v":488.77220612560495},{"$f":"SUMPRODUCT('Efficiency Dist - MF'!Q$123:Q$129,'Product Class UECs'!$D$51:$D$57)","v":489.29673374623832},{"$f":"SUMPRODUCT('Efficiency Dist - MF'!R$123:R$129,'Product Class UECs'!$D$51:$D$57)","v":456.58266517467229},{"$f":"SUMPRODUCT('Efficiency Dist - MF'!S$123:S$129,'Product Class UECs'!$D$51:$D$57)","v":456.58266517467229},{"$f":"SUMPRODUCT('Efficiency Dist - MF'!T$123:T$129,'Product Class UECs'!$D$51:$D$57)","v":456.58266517467223},{"$f":"SUMPRODUCT('Efficiency Dist - MF'!U$123:U$129,'Product Class UECs'!$D$51:$D$57)","v":456.58266517467223},{"$f":"SUMPRODUCT('Efficiency Dist - MF'!V$123:V$129,'Product Class UECs'!$D$51:$D$57)","v":456.58266517467223},{"$f":"SUMPRODUCT('Efficiency Dist - MF'!W$123:W$129,'Product Class UECs'!$D$51:$D$57)","v":456.58266517467223},{"$f":"SUMPRODUCT('Efficiency Dist - MF'!X$123:X$129,'Product Class UECs'!$D$51:$D$57)","v":456.58266517467223},{"$f":"SUMPRODUCT('Efficiency Dist - MF'!Y$123:Y$129,'Product Class UECs'!$D$51:$D$57)","v":456.58266517467223},{"$f":"SUMPRODUCT('Efficiency Dist - MF'!Z$123:Z$129,'Product Class UECs'!$D$51:$D$57)","v":456.58266517467223},{"$f":"SUMPRODUCT('Efficiency Dist - MF'!AA$123:AA$129,'Product Class UECs'!$D$51:$D$57)","v":456.58266517467229},{"$f":"SUMPRODUCT('Efficiency Dist - MF'!AB$123:AB$129,'Product Class UECs'!$D$51:$D$57)","v":456.58266517467223},{"$f":"SUMPRODUCT('Efficiency Dist - MF'!AC$123:AC$129,'Product Class UECs'!$D$51:$D$57)","v":456.58266517467229},{"$f":"SUMPRODUCT('Efficiency Dist - MF'!AD$123:AD$129,'Product Class UECs'!$D$51:$D$57)","v":456.58266517467229},{"$f":"SUMPRODUCT('Efficiency Dist - MF'!AE$123:AE$129,'Product Class UECs'!$D$51:$D$57)","v":456.58266517467223},{"$f":"SUMPRODUCT('Efficiency Dist - MF'!AF$123:AF$129,'Product Class UECs'!$D$51:$D$57)","v":456.58266517467223},{"$f":"SUMPRODUCT('Efficiency Dist - MF'!AG$123:AG$129,'Product Class UECs'!$D$51:$D$57)","v":456.58266517467223},{"$f":"SUMPRODUCT('Efficiency Dist - MF'!AH$123:AH$129,'Product Class UECs'!$D$51:$D$57)","v":456.58266517467223},{"$f":"SUMPRODUCT('Efficiency Dist - MF'!AI$123:AI$129,'Product Class UECs'!$D$51:$D$57)","v":456.58266517467223},{"$f":"SUMPRODUCT('Efficiency Dist - MF'!AJ$123:AJ$129,'Product Class UECs'!$D$51:$D$57)","v":456.58266517467223},{"$f":"SUMPRODUCT('Efficiency Dist - MF'!AK$123:AK$129,'Product Class UECs'!$D$51:$D$57)","v":470.93074565072169},{"$f":"SUMPRODUCT('Efficiency Dist - MF'!AL$123:AL$129,'Product Class UECs'!$D$51:$D$57)","v":471.50701773842081},{"$f":"SUMPRODUCT('Efficiency Dist - MF'!AM$123:AM$129,'Product Class UECs'!$D$51:$D$57)","v":485.14728065205964},{"$f":"SUMPRODUCT('Efficiency Dist - MF'!AN$123:AN$129,'Product Class UECs'!$D$51:$D$57)","v":484.45141882535677},{"$f":"SUMPRODUCT('Efficiency Dist - MF'!AO$123:AO$129,'Product Class UECs'!$D$51:$D$57)","v":485.29926363582808},{"$f":"SUMPRODUCT('Efficiency Dist - MF'!AP$123:AP$129,'Product Class UECs'!$D$51:$D$57)","v":487.03808953373209},{"$f":"SUMPRODUCT('Efficiency Dist - MF'!AQ$123:AQ$129,'Product Class UECs'!$D$51:$D$57)","v":488.80443451164979},{"$f":"SUMPRODUCT('Efficiency Dist - MF'!AR$123:AR$129,'Product Class UECs'!$D$51:$D$57)","v":488.43593758029829},{"$f":"SUMPRODUCT('Efficiency Dist - MF'!AS$123:AS$129,'Product Class UECs'!$D$51:$D$57)","v":494.51079176556163},{"$f":"SUMPRODUCT('Efficiency Dist - MF'!AT$123:AT$129,'Product Class UECs'!$D$51:$D$57)","v":500.93165946755153},{"$f":"SUMPRODUCT('Efficiency Dist - MF'!AU$123:AU$129,'Product Class UECs'!$D$51:$D$57)","v":502.94410003567225},{"$f":"SUMPRODUCT('Efficiency Dist - MF'!AV$123:AV$129,'Product Class UECs'!$D$51:$D$57)","v":488.58894290600421},{"$f":"SUMPRODUCT('Efficiency Dist - MF'!AW$123:AW$129,'Product Class UECs'!$D$51:$D$57)","v":493.32093621958188},{"$f":"SUMPRODUCT('Efficiency Dist - MF'!AX$123:AX$129,'Product Class UECs'!$D$51:$D$57)","v":490.73358439501976},{"$f":"SUMPRODUCT('Efficiency Dist - MF'!AY$123:AY$129,'Product Class UECs'!$D$51:$D$57)","v":486.38286129704102},{"$f":"SUMPRODUCT('Efficiency Dist - MF'!AZ$123:AZ$129,'Product Class UECs'!$D$51:$D$57)","v":480.27844065093069},{"$f":"SUMPRODUCT('Efficiency Dist - MF'!BA$123:BA$129,'Product Class UECs'!$D$51:$D$57)","v":482.82358131474859},{"$f":"SUMPRODUCT('Efficiency Dist - MF'!BB$123:BB$129,'Product Class UECs'!$D$51:$D$57)","v":483.83350254546031},{"$f":"SUMPRODUCT('Efficiency Dist - MF'!BC$123:BC$129,'Product Class UECs'!$D$51:$D$57)","v":483.17216037404347},{"$f":"SUMPRODUCT('Efficiency Dist - MF'!BD$123:BD$129,'Product Class UECs'!$D$51:$D$57)","v":479.00705737240128},{"$f":"SUMPRODUCT('Efficiency Dist - MF'!BE$123:BE$129,'Product Class UECs'!$D$51:$D$57)","v":481.40140035984223},{"$f":"SUMPRODUCT('Efficiency Dist - MF'!BF$123:BF$129,'Product Class UECs'!$D$51:$D$57)","v":473.64147956117733},{"$f":"SUMPRODUCT('Efficiency Dist - MF'!BG$123:BG$129,'Product Class UECs'!$D$51:$D$57)","v":473.56477429473665}]
[null,null,{"$f":"'Product Classes'!H15&\" - \"&OFFSET('Product Classes'!$C$9,MATCH('Product Classes'!H15,MODEL_PCS,0),0)","v":"PC 6 - Mobile Home Non-Weatherized, Non-Condensing Gas Furnace Fan (MH-NWG-NC)"},{"$f":"SUMPRODUCT('Efficiency Dist - MF'!F$149:F$155,'Product Class UECs'!$D$61:$D$67)","v":0},{"$f":"SUMPRODUCT('Efficiency Dist - MF'!G$149:G$155,'Product Class UECs'!$D$61:$D$67)","v":0},{"$f":"SUMPRODUCT('Efficiency Dist - MF'!H$149:H$155,'Product Class UECs'!$D$61:$D$67)","v":0},{"$f":"SUMPRODUCT('Efficiency Dist - MF'!I$149:I$155,'Product Class UECs'!$D$61:$D$67)","v":0},{"$f":"SUMPRODUCT('Efficiency Dist - MF'!J$149:J$155,'Product Class UECs'!$D$61:$D$67)","v":0},{"$f":"SUMPRODUCT('Efficiency Dist - MF'!K$149:K$155,'Product Class UECs'!$D$61:$D$67)","v":0},{"$f":"SUMPRODUCT('Efficiency Dist - MF'!L$149:L$155,'Product Class UECs'!$D$61:$D$67)","v":0},{"$f":"SUMPRODUCT('Efficiency Dist - MF'!M$149:M$155,'Product Class UECs'!$D$61:$D$67)","v":0},{"$f":"SUMPRODUCT('Efficiency Dist - MF'!N$149:N$155,'Product Class UECs'!$D$61:$D$67)","v":0},{"$f":"SUMPRODUCT('Efficiency Dist - MF'!O$149:O$155,'Product Class UECs'!$D$61:$D$67)","v":0},{"$f":"SUMPRODUCT('Efficiency Dist - MF'!P$149:P$155,'Product Class UECs'!$D$61:$D$67)","v":0},{"$f":"SUMPRODUCT('Efficiency Dist - MF'!Q$149:Q$155,'Product Class UECs'!$D$61:$D$67)","v":0},{"$f":"SUMPRODUCT('Efficiency Dist - MF'!R$149:R$155,'Product Class UECs'!$D$61:$D$67)","v":0},{"$f":"SUMPRODUCT('Efficiency Dist - MF'!S$149:S$155,'Product Class UECs'!$D$61:$D$67)","v":0},{"$f":"SUMPRODUCT('Efficiency Dist - MF'!T$149:T$155,'Product Class UECs'!$D$61:$D$67)","v":0},{"$f":"SUMPRODUCT('Efficiency Dist - MF'!U$149:U$155,'Product Class UECs'!$D$61:$D$67)","v":0},{"$f":"SUMPRODUCT('Efficiency Dist - MF'!V$149:V$155,'Product Class UECs'!$D$61:$D$67)","v":0},{"$f":"SUMPRODUCT('Efficiency Dist - MF'!W$149:W$155,'Product Class UECs'!$D$61:$D$67)","v":0},{"$f":"SUMPRODUCT('Efficiency Dist - MF'!X$149:X$155,'Product Class UECs'!$D$61:$D$67)","v":0},{"$f":"SUMPRODUCT('Efficiency Dist - MF'!Y$149:Y$155,'Product Class UECs'!$D$61:$D$67)","v":0},{"$f":"SUMPRODUCT('Efficiency Dist - MF'!Z$149:Z$155,'Product Class UECs'!$D$61:$D$67)","v":0},{"$f":"SUMPRODUCT('Efficiency Dist - MF'!AA$149:AA$155,'Product Class UECs'!$D$61:$D$67)","v":0},{"$f":"SUMPRODUCT('Efficiency Dist - MF'!AB$149:AB$155,'Product Class UECs'!$D$61:$D$67)","v":0},{"$f":"SUMPRODUCT('Efficiency Dist - MF'!AC$149:AC$155,'Product Class UECs'!$D$61:$D$67)","v":0},{"$f":"SUMPRODUCT('Efficiency Dist - MF'!AD$149:AD$155,'Product Class UECs'!$D$61:$D$67)","v":0},{"$f":"SUMPRODUCT('Efficiency Dist - MF'!AE$149:AE$155,'Product Class UECs'!$D$61:$D$67)","v":0},{"$f":"SUMPRODUCT('Efficiency Dist - MF'!AF$149:AF$155,'Product Class UECs'!$D$61:$D$67)","v":0},{"$f":"SUMPRODUCT('Efficiency Dist - MF'!AG$149:AG$155,'Product Class UECs'!$D$61:$D$67)","v":0},{"$f":"SUMPRODUCT('Efficiency Dist - MF'!AH$149:AH$155,'Product Class UECs'!$D$61:$D$67)","v":0},{"$f":"SUMPRODUCT('Efficiency Dist - MF'!AI$149:AI$155,'Product Class UECs'!$D$61:$D$67)","v":0},{"$f":"SUMPRODUCT('Efficiency Dist - MF'!AJ$149:AJ$155,'Product Class UECs'!$D$61:$D$67)","v":0},{"$f":"SUMPRODUCT('Efficiency Dist - MF'!AK$149:AK$155,'Product Class UECs'!$D$61:$D$67)","v":0},{"$f":"SUMPRODUCT('Efficiency Dist - MF'!AL$149:AL$155,'Product Class UECs'!$D$61:$D$67)","v":0},{"$f":"SUMPRODUCT('Efficiency Dist - MF'!AM$149:AM$155,'Product Class UECs'!$D$61:$D$67)","v":0},{"$f":"SUMPRODUCT('Efficiency Dist - MF'!AN$149:AN$155,'Product Class UECs'!$D$61:$D$67)","v":0},{"$f":"SUMPRODUCT('Efficiency Dist - MF'!AO$149:AO$155,'Product Class UECs'!$D$61:$D$67)","v":0},{"$f":"SUMPRODUCT('Efficiency Dist - MF'!AP$149:AP$155,'Product Class UECs'!$D$61:$D$67)","v":0},{"$f":"SUMPRODUCT('Efficiency Dist - MF'!AQ$149:AQ$155,'Product Class UECs'!$D$61:$D$67)","v":0},{"$f":"SUMPRODUCT('Efficiency Dist - MF'!AR$149:AR$155,'Product Class UECs'!$D$61:$D$67)","v":0},{"$f":"SUMPRODUCT('Efficiency Dist - MF'!AS$149:AS$155,'Product Class UECs'!$D$61:$D$67)","v":0},{"$f":"SUMPRODUCT('Efficiency Dist - MF'!AT$149:AT$155,'Product Class UECs'!$D$61:$D$67)","v":0},{"$f":"SUMPRODUCT('Efficiency Dist - MF'!AU$149:AU$155,'Product Class UECs'!$D$61:$D$67)","v":0},{"$f":"SUMPRODUCT('Efficiency Dist - MF'!AV$149:AV$155,'Product Class UECs'!$D$61:$D$67)","v":0},{"$f":"SUMPRODUCT('Efficiency Dist - MF'!AW$149:AW$155,'Product Class UECs'!$D$61:$D$67)","v":0},{"$f":"SUMPRODUCT('Efficiency Dist - MF'!AX$149:AX$155,'Product Class UECs'!$D$61:$D$67)","v":0},{"$f":"SUMPRODUCT('Efficiency Dist - MF'!AY$149:AY$155,'Product Class UECs'!$D$61:$D$67)","v":0},{"$f":"SUMPRODUCT('Efficiency Dist - MF'!AZ$149:AZ$155,'Product Class UECs'!$D$61:$D$67)","v":0},{"$f":"SUMPRODUCT('Efficiency Dist - MF'!BA$149:BA$155,'Product Class UECs'!$D$61:$D$67)","v":0},{"$f":"SUMPRODUCT('Efficiency Dist - MF'!BB$149:BB$155,'Product Class UECs'!$D$61:$D$67)","v":0},{"$f":"SUMPRODUCT('Efficiency Dist - MF'!BC$149:BC$155,'Product Class UECs'!$D$61:$D$67)","v":0},{"$f":"SUMPRODUCT('Efficiency Dist - MF'!BD$149:BD$155,'Product Class UECs'!$D$61:$D$67)","v":0},{"$f":"SUMPRODUCT('Efficiency Dist - MF'!BE$149:BE$155,'Product Class UECs'!$D$61:$D$67)","v":0},{"$f":"SUMPRODUCT('Efficiency Dist - MF'!BF$149:BF$155,'Product Class UECs'!$D$61:$D$67)","v":0},{"$f":"SUMPRODUCT('Efficiency Dist - MF'!BG$149:BG$155,'Product Class UECs'!$D$61:$D$67)","v":0}]
[null,null,{"$f":"'Product Classes'!H16&\" - \"&OFFSET('Product Classes'!$C$9,MATCH('Product Classes'!H16,MODEL_PCS,0),0)","v":"PC 7 - Mobile Home Non-Weatherized, Condensing Gas Furnace Fan (MH-NWG-C)"},{"$f":"SUMPRODUCT('Efficiency Dist - MF'!F$175:F$181,'Product Class UECs'!$D$71:$D$77)","v":0},{"$f":"SUMPRODUCT('Efficiency Dist - MF'!G$175:G$181,'Product Class UECs'!$D$71:$D$77)","v":0},{"$f":"SUMPRODUCT('Efficiency Dist - MF'!H$175:H$181,'Product Class UECs'!$D$71:$D$77)","v":0},{"$f":"SUMPRODUCT('Efficiency Dist - MF'!I$175:I$181,'Product Class UECs'!$D$71:$D$77)","v":0},{"$f":"SUMPRODUCT('Efficiency Dist - MF'!J$175:J$181,'Product Class UECs'!$D$71:$D$77)","v":0},{"$f":"SUMPRODUCT('Efficiency Dist - MF'!K$175:K$181,'Product Class UECs'!$D$71:$D$77)","v":0},{"$f":"SUMPRODUCT('Efficiency Dist - MF'!L$175:L$181,'Product Class UECs'!$D$71:$D$77)","v":0},{"$f":"SUMPRODUCT('Efficiency Dist - MF'!M$175:M$181,'Product Class UECs'!$D$71:$D$77)","v":0},{"$f":"SUMPRODUCT('Efficiency Dist - MF'!N$175:N$181,'Product Class UECs'!$D$71:$D$77)","v":0},{"$f":"SUMPRODUCT('Efficiency Dist - MF'!O$175:O$181,'Product Class UECs'!$D$71:$D$77)","v":0},{"$f":"SUMPRODUCT('Efficiency Dist - MF'!P$175:P$181,'Product Class UECs'!$D$71:$D$77)","v":0},{"$f":"SUMPRODUCT('Efficiency Dist - MF'!Q$175:Q$181,'Product Class UECs'!$D$71:$D$77)","v":0},{"$f":"SUMPRODUCT('Efficiency Dist - MF'!R$175:R$181,'Product Class UECs'!$D$71:$D$77)","v":0},{"$f":"SUMPRODUCT('Efficiency Dist - MF'!S$175:S$181,'Product Class UECs'!$D$71:$D$77)","v":0},{"$f":"SUMPRODUCT('Efficiency Dist - MF'!T$175:T$181,'Product Class UECs'!$D$71:$D$77)","v":0},{"$f":"SUMPRODUCT('Efficiency Dist - MF'!U$175:U$181,'Product Class UECs'!$D$71:$D$77)","v":0},{"$f":"SUMPRODUCT('Efficiency Dist - MF'!V$175:V$181,'Product Class UECs'!$D$71:$D$77)","v":0},{"$f":"SUMPRODUCT('Efficiency Dist - MF'!W$175:W$181,'Product Class UECs'!$D$71:$D$77)","v":0},{"$f":"SUMPRODUCT('Efficiency Dist - MF'!X$175:X$181,'Product Class UECs'!$D$71:$D$77)","v":0},{"$f":"SUMPRODUCT('Efficiency Dist - MF'!Y$175:Y$181,'Product Class UECs'!$D$71:$D$77)","v":0},{"$f":"SUMPRODUCT('Efficiency Dist - MF'!Z$175:Z$181,'Product Class UECs'!$D$71:$D$77)","v":0},{"$f":"SUMPRODUCT('Efficiency Dist - MF'!AA$175:AA$181,'Product Class UECs'!$D$71:$D$77)","v":0},{"$f":"SUMPRODUCT('Efficiency Dist - MF'!AB$175:AB$181,'Product Class UECs'!$D$71:$D$77)","v":0},{"$f":"SUMPRODUCT('Efficiency Dist - MF'!AC$175:AC$181,'Product Class UECs'!$D$71:$D$77)","v":0},{"$f":"SUMPRODUCT('Efficiency Dist - MF'!AD$175:AD$181,'Product Class UECs'!$D$71:$D$77)","v":0},{"$f":"SUMPRODUCT('Efficiency Dist - MF'!AE$175:AE$181,'Product Class UECs'!$D$71:$D$77)","v":0},{"$f":"SUMPRODUCT('Efficiency Dist - MF'!AF$175:AF$181,'Product Class UECs'!$D$71:$D$77)","v":0},{"$f":"SUMPRODUCT('Efficiency Dist - MF'!AG$175:AG$181,'Product Class UECs'!$D$71:$D$77)","v":0},{"$f":"SUMPRODUCT('Efficiency Dist - MF'!AH$175:AH$181,'Product Class UECs'!$D$71:$D$77)","v":0},{"$f":"SUMPRODUCT('Efficiency Dist - MF'!AI$175:AI$181,'Product Class UECs'!$D$71:$D$77)","v":0},{"$f":"SUMPRODUCT('Efficiency Dist - MF'!AJ$175:AJ$181,'Product Class UECs'!$D$71:$D$77)","v":0},{"$f":"SUMPRODUCT('Efficiency Dist - MF'!AK$175:AK$181,'Product Class UECs'!$D$71:$D$77)","v":0},{"$f":"SUMPRODUCT('Efficiency Dist - MF'!AL$175:AL$181,'Product Class UECs'!$D$71:$D$77)","v":0},{"$f":"SUMPRODUCT('Efficiency Dist - MF'!AM$175:AM$181,'Product Class UECs'!$D$71:$D$77)","v":0},{"$f":"SUMPRODUCT('Efficiency Dist - MF'!AN$175:AN$181,'Product Class UECs'!$D$71:$D$77)","v":0},{"$f":"SUMPRODUCT('Efficiency Dist - MF'!AO$175:AO$181,'Product Class UECs'!$D$71:$D$77)","v":0},{"$f":"SUMPRODUCT('Efficiency Dist - MF'!AP$175:AP$181,'Product Class UECs'!$D$71:$D$77)","v":0},{"$f":"SUMPRODUCT('Efficiency Dist - MF'!AQ$175:AQ$181,'Product Class UECs'!$D$71:$D$77)","v":0},{"$f":"SUMPRODUCT('Efficiency Dist - MF'!AR$175:AR$181,'Product Class UECs'!$D$71:$D$77)","v":0},{"$f":"SUMPRODUCT('Efficiency Dist - MF'!AS$175:AS$181,'Product Class UECs'!$D$71:$D$77)","v":0},{"$f":"SUMPRODUCT('Efficiency Dist - MF'!AT$175:AT$181,'Product Class UECs'!$D$71:$D$77)","v":0},{"$f":"SUMPRODUCT('Efficiency Dist - MF'!AU$175:AU$181,'Product Class UECs'!$D$71:$D$77)","v":0},{"$f":"SUMPRODUCT('Efficiency Dist - MF'!AV$175:AV$181,'Product Class UECs'!$D$71:$D$77)","v":0},{"$f":"SUMPRODUCT('Efficiency Dist - MF'!AW$175:AW$181,'Product Class UECs'!$D$71:$D$77)","v":0},{"$f":"SUMPRODUCT('Efficiency Dist - MF'!AX$175:AX$181,'Product Class UECs'!$D$71:$D$77)","v":0},{"$f":"SUMPRODUCT('Efficiency Dist - MF'!AY$175:AY$181,'Product Class UECs'!$D$71:$D$77)","v":0},{"$f":"SUMPRODUCT('Efficiency Dist - MF'!AZ$175:AZ$181,'Product Class UECs'!$D$71:$D$77)","v":0},{"$f":"SUMPRODUCT('Efficiency Dist - MF'!BA$175:BA$181,'Product Class UECs'!$D$71:$D$77)","v":0},{"$f":"SUMPRODUCT('Efficiency Dist - MF'!BB$175:BB$181,'Product Class UECs'!$D$71:$D$77)","v":0},{"$f":"SUMPRODUCT('Efficiency Dist - MF'!BC$175:BC$181,'Product Class UECs'!$D$71:$D$77)","v":0},{"$f":"SUMPRODUCT('Efficiency Dist - MF'!BD$175:BD$181,'Product Class UECs'!$D$71:$D$77)","v":0},{"$f":"SUMPRODUCT('Efficiency Dist - MF'!BE$175:BE$181,'Product Class UECs'!$D$71:$D$77)","v":0},{"$f":"SUMPRODUCT('Efficiency Dist - MF'!BF$175:BF$181,'Product Class UECs'!$D$71:$D$77)","v":0},{"$f":"SUMPRODUCT('Efficiency Dist - MF'!BG$175:BG$181,'Product Class UECs'!$D$71:$D$77)","v":0}]
[null,null,{"$f":"'Product Classes'!H17&\" - \"&OFFSET('Product Classes'!$C$9,MATCH('Product Classes'!H17,MODEL_PCS,0),0)","v":"PC 8 - Mobile Home Electric Furnace / Modular Blower Fan (MH-EF/MB)"},{"$f":"SUMPRODUCT('Efficiency Dist - MF'!F$201:F$207,'Product Class UECs'!$D$81:$D$87)","v":0},{"$f":"SUMPRODUCT('Efficiency Dist - MF'!G$201:G$207,'Product Class UECs'!$D$81:$D$87)","v":0},{"$f":"SUMPRODUCT('Efficiency Dist - MF'!H$201:H$207,'Product Class UECs'!$D$81:$D$87)","v":0},{"$f":"SUMPRODUCT('Efficiency Dist - MF'!I$201:I$207,'Product Class UECs'!$D$81:$D$87)","v":0},{"$f":"SUMPRODUCT('Efficiency Dist - MF'!J$201:J$207,'Product Class UECs'!$D$81:$D$87)","v":0},{"$f":"SUMPRODUCT('Efficiency Dist - MF'!K$201:K$207,'Product Class UECs'!$D$81:$D$87)","v":0},{"$f":"SUMPRODUCT('Efficiency Dist - MF'!L$201:L$207,'Product Class UECs'!$D$81:$D$87)","v":0},{"$f":"SUMPRODUCT('Efficiency Dist - MF'!M$201:M$207,'Product Class UECs'!$D$81:$D$87)","v":0},{"$f":"SUMPRODUCT('Efficiency Dist - MF'!N$201:N$207,'Product Class UECs'!$D$81:$D$87)","v":0},{"$f":"SUMPRODUCT('Efficiency Dist - MF'!O$201:O$207,'Product Class UECs'!$D$81:$D$87)","v":0},{"$f":"SUMPRODUCT('Efficiency Dist - MF'!P$201:P$207,'Product Class UECs'!$D$81:$D$87)","v":0},{"$f":"SUMPRODUCT('Efficiency Dist - MF'!Q$201:Q$207,'Product Class UECs'!$D$81:$D$87)","v":0},{"$f":"SUMPRODUCT('Efficiency Dist - MF'!R$201:R$207,'Product Class UECs'!$D$81:$D$87)","v":0},{"$f":"SUMPRODUCT('Efficiency Dist - MF'!S$201:S$207,'Product Class UECs'!$D$81:$D$87)","v":0},{"$f":"SUMPRODUCT('Efficiency Dist - MF'!T$201:T$207,'Product Class UECs'!$D$81:$D$87)","v":0},{"$f":"SUMPRODUCT('Efficiency Dist - MF'!U$201:U$207,'Product Class UECs'!$D$81:$D$87)","v":0},{"$f":"SUMPRODUCT('Efficiency Dist - MF'!V$201:V$207,'Product Class UECs'!$D$81:$D$87)","v":0},{"$f":"SUMPRODUCT('Efficiency Dist - MF'!W$201:W$207,'Product Class UECs'!$D$81:$D$87)","v":0},{"$f":"SUMPRODUCT('Efficiency Dist - MF'!X$201:X$207,'Product Class UECs'!$D$81:$D$87)","v":0},{"$f":"SUMPRODUCT('Efficiency Dist - MF'!Y$201:Y$207,'Product Class UECs'!$D$81:$D$87)","v":0},{"$f":"SUMPRODUCT('Efficiency Dist - MF'!Z$201:Z$207,'Product Class UECs'!$D$81:$D$87)","v":0},{"$f":"SUMPRODUCT('Efficiency Dist - MF'!AA$201:AA$207,'Product Class UECs'!$D$81:$D$87)","v":0},{"$f":"SUMPRODUCT('Efficiency Dist - MF'!AB$201:AB$207,'Product Class UECs'!$D$81:$D$87)","v":0},{"$f":"SUMPRODUCT('Efficiency Dist - MF'!AC$201:AC$207,'Product Class UECs'!$D$81:$D$87)","v":0},{"$f":"SUMPRODUCT('Efficiency Dist - MF'!AD$201:AD$207,'Product Class UECs'!$D$81:$D$87)","v":0},{"$f":"SUMPRODUCT('Efficiency Dist - MF'!AE$201:AE$207,'Product Class UECs'!$D$81:$D$87)","v":0},{"$f":"SUMPRODUCT('Efficiency Dist - MF'!AF$201:AF$207,'Product Class UECs'!$D$81:$D$87)","v":0},{"$f":"SUMPRODUCT('Efficiency Dist - MF'!AG$201:AG$207,'Product Class UECs'!$D$81:$D$87)","v":0},{"$f":"SUMPRODUCT('Efficiency Dist - MF'!AH$201:AH$207,'Product Class UECs'!$D$81:$D$87)","v":0},{"$f":"SUMPRODUCT('Efficiency Dist - MF'!AI$201:AI$207,'Product Class UECs'!$D$81:$D$87)","v":0},{"$f":"SUMPRODUCT('Efficiency Dist - MF'!AJ$201:AJ$207,'Product Class UECs'!$D$81:$D$87)","v":0},{"$f":"SUMPRODUCT('Efficiency Dist - MF'!AK$201:AK$207,'Product Class UECs'!$D$81:$D$87)","v":0},{"$f":"SUMPRODUCT('Efficiency Dist - MF'!AL$201:AL$207,'Product Class UECs'!$D$81:$D$87)","v":0},{"$f":"SUMPRODUCT('Efficiency Dist - MF'!AM$201:AM$207,'Product Class UECs'!$D$81:$D$87)","v":0},{"$f":"SUMPRODUCT('Efficiency Dist - MF'!AN$201:AN$207,'Product Class UECs'!$D$81:$D$87)","v":0},{"$f":"SUMPRODUCT('Efficiency Dist - MF'!AO$201:AO$207,'Product Class UECs'!$D$81:$D$87)","v":0},{"$f":"SUMPRODUCT('Efficiency Dist - MF'!AP$201:AP$207,'Product Class UECs'!$D$81:$D$87)","v":0},{"$f":"SUMPRODUCT('Efficiency Dist - MF'!AQ$201:AQ$207,'Product Class UECs'!$D$81:$D$87)","v":0},{"$f":"SUMPRODUCT('Efficiency Dist - MF'!AR$201:AR$207,'Product Class UECs'!$D$81:$D$87)","v":0},{"$f":"SUMPRODUCT('Efficiency Dist - MF'!AS$201:AS$207,'Product Class UECs'!$D$81:$D$87)","v":0},{"$f":"SUMPRODUCT('Efficiency Dist - MF'!AT$201:AT$207,'Product Class UECs'!$D$81:$D$87)","v":0},{"$f":"SUMPRODUCT('Efficiency Dist - MF'!AU$201:AU$207,'Product Class UECs'!$D$81:$D$87)","v":0},{"$f":"SUMPRODUCT('Efficiency Dist - MF'!AV$201:AV$207,'Product Class UECs'!$D$81:$D$87)","v":0},{"$f":"SUMPRODUCT('Efficiency Dist - MF'!AW$201:AW$207,'Product Class UECs'!$D$81:$D$87)","v":0},{"$f":"SUMPRODUCT('Efficiency Dist - MF'!AX$201:AX$207,'Product Class UECs'!$D$81:$D$87)","v":0},{"$f":"SUMPRODUCT('Efficiency Dist - MF'!AY$201:AY$207,'Product Class UECs'!$D$81:$D$87)","v":0},{"$f":"SUMPRODUCT('Efficiency Dist - MF'!AZ$201:AZ$207,'Product Class UECs'!$D$81:$D$87)","v":0},{"$f":"SUMPRODUCT('Efficiency Dist - MF'!BA$201:BA$207,'Product Class UECs'!$D$81:$D$87)","v":0},{"$f":"SUMPRODUCT('Efficiency Dist - MF'!BB$201:BB$207,'Product Class UECs'!$D$81:$D$87)","v":0},{"$f":"SUMPRODUCT('Efficiency Dist - MF'!BC$201:BC$207,'Product Class UECs'!$D$81:$D$87)","v":0},{"$f":"SUMPRODUCT('Efficiency Dist - MF'!BD$201:BD$207,'Product Class UECs'!$D$81:$D$87)","v":0},{"$f":"SUMPRODUCT('Efficiency Dist - MF'!BE$201:BE$207,'Product Class UECs'!$D$81:$D$87)","v":0},{"$f":"SUMPRODUCT('Efficiency Dist - MF'!BF$201:BF$207,'Product Class UECs'!$D$81:$D$87)","v":0},{"$f":"SUMPRODUCT('Efficiency Dist - MF'!BG$201:BG$207,'Product Class UECs'!$D$81:$D$87)","v":0}]
[]
[null,null,"POST-Case",1981,{"$f":"D47+1","v":1982},1983,1984,1985,1986,1987,1988,1989,1990,1991,1992,1993,{"$f":"P47+1","v":1994},1995,1996,1997,1998,1999,2000,2001,2002,2003,2004,2005,2006,2007,2008,2009,2010,2011,2012,2013,2014,2015,2016,2017,2018,2019,2020,2021,2022,2023,2024,2025,2026,2027,2028,2029,2030,2031,2032,2033,2034]
[null,null,{"$f":"C38","v":"PC 1 - Non-Weatherized, Non-Condensing Gas Furnace Fan (NWG-NC)"},{"$f":"SUMPRODUCT('Efficiency Dist - MF'!F$30:F$36,'Product Class UECs'!$D$11:$D$17)","v":892.72565635016417},{"$f":"SUMPRODUCT('Efficiency Dist - MF'!G$30:G$36,'Product Class UECs'!$D$11:$D$17)","v":885.22803604114335},{"$f":"SUMPRODUCT('Efficiency Dist - MF'!H$30:H$36,'Product Class UECs'!$D$11:$D$17)","v":888.72325176989079},{"$f":"SUMPRODUCT('Efficiency Dist - MF'!I$30:I$36,'Product Class UECs'!$D$11:$D$17)","v":898.86707019181347},{"$f":"SUMPRODUCT('Efficiency Dist - MF'!J$30:J$36,'Product Class UECs'!$D$11:$D$17)","v":910.47406970354996},{"$f":"SUMPRODUCT('Efficiency Dist - MF'!K$30:K$36,'Product Class UECs'!$D$11:$D$17)","v":907.20329065621627},{"$f":"SUMPRODUCT('Efficiency Dist - MF'!L$30:L$36,'Product Class UECs'!$D$11:$D$17)","v":910.23706890694291},{"$f":"SUMPRODUCT('Efficiency Dist - MF'!M$30:M$36,'Product Class UECs'!$D$11:$D$17)","v":916.32786924332845},{"$f":"SUMPRODUCT('Efficiency Dist - MF'!N$30:N$36,'Product Class UECs'!$D$11:$D$17)","v":921.31206278929938},{"$f":"SUMPRODUCT('Efficiency Dist - MF'!O$30:O$36,'Product Class UECs'!$D$11:$D$17)","v":916.65615694215285},{"$f":"SUMPRODUCT('Efficiency Dist - MF'!P$30:P$36,'Product Class UECs'!$D$11:$D$17)","v":896.16464386923178},{"$f":"SUMPRODUCT('Efficiency Dist - MF'!Q$30:Q$36,'Product Class UECs'!$D$11:$D$17)","v":896.77759365437566},{"$f":"SUMPRODUCT('Efficiency Dist - MF'!R$30:R$36,'Product Class UECs'!$D$11:$D$17)","v":858.54875590906772},{"$f":"SUMPRODUCT('Efficiency Dist - MF'!S$30:S$36,'Product Class UECs'!$D$11:$D$17)","v":858.54875590906772},{"$f":"SUMPRODUCT('Efficiency Dist - MF'!T$30:T$36,'Product Class UECs'!$D$11:$D$17)","v":858.54875590906772},{"$f":"SUMPRODUCT('Efficiency Dist - MF'!U$30:U$36,'Product Class UECs'!$D$11:$D$17)","v":858.54875590906772},{"$f":"SUMPRODUCT('Efficiency Dist - MF'!V$30:V$36,'Product Class UECs'!$D$11:$D$17)","v":858.54875590906772},{"$f":"SUMPRODUCT('Efficiency Dist - MF'!W$30:W$36,'Product Class UECs'!$D$11:$D$17)","v":858.54875590906772},{"$f":"SUMPRODUCT('Efficiency Dist - MF'!X$30:X$36,'Product Class UECs'!$D$11:$D$17)","v":858.54875590906772},{"$f":"SUMPRODUCT('Efficiency Dist - MF'!Y$30:Y$36,'Product Class UECs'!$D$11:$D$17)","v":858.54875590906772},{"$f":"SUMPRODUCT('Efficiency Dist - MF'!Z$30:Z$36,'Product Class UECs'!$D$11:$D$17)","v":858.54875590906772},{"$f":"SUMPRODUCT('Efficiency Dist - MF'!AA$30:AA$36,'Product Class UECs'!$D$11:$D$17)","v":858.54875590906772},{"$f":"SUMPRODUCT('Efficiency Dist - MF'!AB$30:AB$36,'Product Class UECs'!$D$11:$D$17)","v":858.54875590906772},{"$f":"SUMPRODUCT('Efficiency Dist - MF'!AC$30:AC$36,'Product Class UECs'!$D$11:$D$17)","v":858.54875590906772},{"$f":"SUMPRODUCT('Efficiency Dist - MF'!AD$30:AD$36,'Product Class UECs'!$D$11:$D$17)","v":858.54875590906772},{"$f":"SUMPRODUCT('Efficiency Dist - MF'!AE$30:AE$36,'Product Class UECs'!$D$11:$D$17)","v":858.54875590906772},{"$f":"SUMPRODUCT('Efficiency Dist - MF'!AF$30:AF$36,'Product Class UECs'!$D$11:$D$17)","v":858.54875590906772},{"$f":"SUMPRODUCT('Efficiency Dist - MF'!AG$30:AG$36,'Product Class UECs'!$D$11:$D$17)","v":858.54875590906772},{"$f":"SUMPRODUCT('Efficiency Dist - MF'!AH$30:AH$36,'Product Class UECs'!$D$11:$D$17)","v":858.54875590906772},{"$f":"SUMPRODUCT('Efficiency Dist - MF'!AI$30:AI$36,'Product Class UECs'!$D$11:$D$17)","v":858.54875590906772},{"$f":"SUMPRODUCT('Efficiency Dist - MF'!AJ$30:AJ$36,'Product Class UECs'!$D$11:$D$17)","v":858.54875590906772},{"$f":"SUMPRODUCT('Efficiency Dist - MF'!AK$30:AK$36,'Product Class UECs'!$D$11:$D$17)","v":875.31556188661136},{"$f":"SUMPRODUCT('Efficiency Dist - MF'!AL$30:AL$36,'Product Class UECs'!$D$11:$D$17)","v":875.98897895454991},{"$f":"SUMPRODUCT('Efficiency Dist - MF'!AM$30:AM$36,'Product Class UECs'!$D$11:$D$17)","v":891.92864713089148},{"$f":"SUMPRODUCT('Efficiency Dist - MF'!AN$30:AN$36,'Product Class UECs'!$D$11:$D$17)","v":891.11548050173974},{"$f":"SUMPRODUCT('Efficiency Dist - MF'!AO$30:AO$36,'Product Class UECs'!$D$11:$D$17)","v":892.1062506232181},{"$f":"SUMPRODUCT('Efficiency Dist - MF'!AP$30:AP$36,'Product Class UECs'!$D$11:$D$17)","v":894.13819883451742},{"$f":"SUMPRODUCT('Efficiency Dist - MF'!AQ$30:AQ$36,'Product Class UECs'!$D$11:$D$17)","v":896.20230515059166},{"$f":"SUMPRODUCT('Efficiency Dist - MF'!AR$30:AR$36,'Product Class UECs'!$D$11:$D$17)","v":533.75057186565925},{"$f":"SUMPRODUCT('Efficiency Dist - MF'!AS$30:AS$36,'Product Class UECs'!$D$11:$D$17)","v":533.95044253441358},{"$f":"SUMPRODUCT('Efficiency Dist - MF'!AT$30:AT$36,'Product Class UECs'!$D$11:$D$17)","v":534.16169750160145},{"$f":"SUMPRODUCT('Efficiency Dist - MF'!AU$30:AU$36,'Product Class UECs'!$D$11:$D$17)","v":534.22790943524001},{"$f":"SUMPRODUCT('Efficiency Dist - MF'!AV$30:AV$36,'Product Class UECs'!$D$11:$D$17)","v":533.75560594151352},{"$f":"SUMPRODUCT('Efficiency Dist - MF'!AW$30:AW$36,'Product Class UECs'!$D$11:$D$17)","v":533.91129472667308},{"$f":"SUMPRODUCT('Efficiency Dist - MF'!AX$30:AX$36,'Product Class UECs'!$D$11:$D$17)","v":533.82616745880671},{"$f":"SUMPRODUCT('Efficiency Dist - MF'!AY$30:AY$36,'Product Class UECs'!$D$11:$D$17)","v":533.68302296370643},{"$f":"SUMPRODUCT('Efficiency Dist - MF'!AZ$30:AZ$36,'Product Class UECs'!$D$11:$D$17)","v":533.48217951961931},{"$f":"SUMPRODUCT('Efficiency Dist - MF'!BA$30:BA$36,'Product Class UECs'!$D$11:$D$17)","v":533.56591798494492},{"$f":"SUMPRODUCT('Efficiency Dist - MF'!BB$30:BB$36,'Product Class UECs'!$D$11:$D$17)","v":533.5991457177621},{"$f":"SUMPRODUCT('Efficiency Dist - MF'!BC$30:BC$36,'Product Class UECs'!$D$11:$D$17)","v":533.57738669309333},{"$f":"SUMPRODUCT('Efficiency Dist - MF'!BD$30:BD$36,'Product Class UECs'!$D$11:$D$17)","v":533.44034934256933},{"$f":"SUMPRODUCT('Efficiency Dist - MF'!BE$30:BE$36,'Product Class UECs'!$D$11:$D$17)","v":533.51912636659858},{"$f":"SUMPRODUCT('Efficiency Dist - MF'!BF$30:BF$36,'Product Class UECs'!$D$11:$D$17)","v":533.26381479660711},{"$f":"SUMPRODUCT('Efficiency Dist - MF'!BG$30:BG$36,'Product Class UECs'!$D$11:$D$17)","v":533.26129109275621}]
[null,null,{"$f":"C39","v":"PC 2 - Non-Weatherized, Condensing Gas Furnace Fan (NWG-C)"},{"$f":"SUMPRODUCT('Efficiency Dist - MF'!F$56:F$62,'Product Class UECs'!$D$21:$D$27)","v":852.6074291209743},{"$f":"SUMPRODUCT('Efficiency Dist - MF'!G$56:G$62,'Product Class UECs'!$D$21:$D$27)","v":840.61497772059261},{"$f":"SUMPRODUCT('Efficiency Dist - MF'!H$56:H$62,'Product Class UECs'!$D$21:$D$27)","v":846.20557887579128},{"$f":"SUMPRODUCT('Efficiency Dist - MF'!I$56:I$62,'Product Class UECs'!$D$21:$D$27)","v":862.43062688106886},{"$f":"SUMPRODUCT('Efficiency Dist - MF'!J$56:J$62,'Product Class UECs'!$D$21:$D$27)","v":880.996034545322},{"$f":"SUMPRODUCT('Efficiency Dist - MF'!K$56:K$62,'Product Class UECs'!$D$21:$D$27)","v":875.7644200930215},{"$f":"SUMPRODUCT('Efficiency Dist - MF'!L$56:L$62,'Product Class UECs'!$D$21:$D$27)","v":880.61695152724178},{"$f":"SUMPRODUCT('Efficiency Dist - MF'!M$56:M$62,'Product Class UECs'!$D$21:$D$27)","v":890.35919293357904},{"$f":"SUMPRODUCT('Efficiency Dist - MF'!N$56:N$62,'Product Class UECs'!$D$21:$D$27)","v":898.3314156397937},{"$f":"SUMPRODUCT('Efficiency Dist - MF'!O$56:O$62,'Product Class UECs'!$D$21:$D$27)","v":890.88428944570239},{"$f":"SUMPRODUCT('Efficiency Dist - MF'!P$56:P$62,'Product Class UECs'!$D$21:$D$27)","v":858.10809319692373},{"$f":"SUMPRODUCT('Efficiency Dist - MF'!Q$56:Q$62,'Product Class UECs'!$D$21:$D$27)","v":859.08850700907237},{"$f":"SUMPRODUCT('Efficiency Dist - MF'!R$56:R$62,'Product Class UECs'!$D$21:$D$27)","v":797.94144169261551},{"$f":"SUMPRODUCT('Efficiency Dist - MF'!S$56:S$62,'Product Class UECs'!$D$21:$D$27)","v":797.94144169261551},{"$f":"SUMPRODUCT('Efficiency Dist - MF'!T$56:T$62,'Product Class UECs'!$D$21:$D$27)","v":797.94144169261551},{"$f":"SUMPRODUCT('Efficiency Dist - MF'!U$56:U$62,'Product Class UECs'!$D$21:$D$27)","v":797.94144169261563},{"$f":"SUMPRODUCT('Efficiency Dist - MF'!V$56:V$62,'Product Class UECs'!$D$21:$D$27)","v":797.94144169261551},{"$f":"SUMPRODUCT('Efficiency Dist - MF'!W$56:W$62,'Product Class UECs'!$D$21:$D$27)","v":797.94144169261551},{"$f":"SUMPRODUCT('Efficiency Dist - MF'!X$56:X$62,'Product Class UECs'!$D$21:$D$27)","v":797.94144169261551},{"$f":"SUMPRODUCT('Efficiency Dist - MF'!Y$56:Y$62,'Product Class UECs'!$D$21:$D$27)","v":797.94144169261551},{"$f":"SUMPRODUCT('Efficiency Dist - MF'!Z$56:Z$62,'Product Class UECs'!$D$21:$D$27)","v":797.94144169261551},{"$f":"SUMPRODUCT('Efficiency Dist - MF'!AA$56:AA$62,'Product Class UECs'!$D$21:$D$27)","v":797.94144169261551},{"$f":"SUMPRODUCT('Efficiency Dist - MF'!AB$56:AB$62,'Product Class UECs'!$D$21:$D$27)","v":797.94144169261551},{"$f":"SUMPRODUCT('Efficiency Dist - MF'!AC$56:AC$62,'Product Class UECs'!$D$21:$D$27)","v":797.94144169261551},{"$f":"SUMPRODUCT('Efficiency Dist - MF'!AD$56:AD$62,'Product Class UECs'!$D$21:$D$27)","v":797.94144169261563},{"$f":"SUMPRODUCT('Efficiency Dist - MF'!AE$56:AE$62,'Product Class UECs'!$D$21:$D$27)","v":797.94144169261551},{"$f":"SUMPRODUCT('Efficiency Dist - MF'!AF$56:AF$62,'Product Class UECs'!$D$21:$D$27)","v":797.94144169261551},{"$f":"SUMPRODUCT('Efficiency Dist - MF'!AG$56:AG$62,'Product Class UECs'!$D$21:$D$27)","v":797.94144169261551},{"$f":"SUMPRODUCT('Efficiency Dist - MF'!AH$56:AH$62,'Product Class UECs'!$D$21:$D$27)","v":797.94144169261551},{"$f":"SUMPRODUCT('Efficiency Dist - MF'!AI$56:AI$62,'Product Class UECs'!$D$21:$D$27)","v":797.94144169261551},{"$f":"SUMPRODUCT('Efficiency Dist - MF'!AJ$56:AJ$62,'Product Class UECs'!$D$21:$D$27)","v":797.94144169261551},{"$f":"SUMPRODUCT('Efficiency Dist - MF'!AK$56:AK$62,'Product Class UECs'!$D$21:$D$27)","v":824.75996510909226},{"$f":"SUMPRODUCT('Efficiency Dist - MF'!AL$56:AL$62,'Product Class UECs'!$D$21:$D$27)","v":825.83709640230063},{"$f":"SUMPRODUCT('Efficiency Dist - MF'!AM$56:AM$62,'Product Class UECs'!$D$21:$D$27)","v":851.33261205451333},{"$f":"SUMPRODUCT('Efficiency Dist - MF'!AN$56:AN$62,'Product Class UECs'!$D$21:$D$27)","v":850.03195119432257},{"$f":"SUMPRODUCT('Efficiency Dist - MF'!AO$56:AO$62,'Product Class UECs'!$D$21:$D$27)","v":851.61668902326892},{"$f":"SUMPRODUCT('Efficiency Dist - MF'!AP$56:AP$62,'Product Class UECs'!$D$21:$D$27)","v":854.86679227840182},{"$f":"SUMPRODUCT('Efficiency Dist - MF'!AQ$56:AQ$62,'Product Class UECs'!$D$21:$D$27)","v":858.16833245521764},{"$f":"SUMPRODUCT('Efficiency Dist - MF'!AR$56:AR$62,'Product Class UECs'!$D$21:$D$27)","v":571.38805480861038},{"$f":"SUMPRODUCT('Efficiency Dist - MF'!AS$56:AS$62,'Product Class UECs'!$D$21:$D$27)","v":571.79475218812877},{"$f":"SUMPRODUCT('Efficiency Dist - MF'!AT$56:AT$62,'Product Class UECs'!$D$21:$D$27)","v":572.22461436901312},{"$f":"SUMPRODUCT('Efficiency Dist - MF'!AU$56:AU$62,'Product Class UECs'!$D$21:$D$27)","v":572.35934259137571},{"$f":"SUMPRODUCT('Efficiency Dist - MF'!AV$56:AV$62,'Product Class UECs'!$D$21:$D$27)","v":571.3982981598283},{"$f":"SUMPRODUCT('Efficiency Dist - MF'!AW$56:AW$62,'Product Class UECs'!$D$21:$D$27)","v":571.71509412263481},{"$f":"SUMPRODUCT('Efficiency Dist - MF'!AX$56:AX$62,'Product Class UECs'!$D$21:$D$27)","v":571.5418769268224},{"$f":"SUMPRODUCT('Efficiency Dist - MF'!AY$56:AY$62,'Product Class UECs'!$D$21:$D$27)","v":571.25060611949175},{"$f":"SUMPRODUCT('Efficiency Dist - MF'!AZ$56:AZ$62,'Product Class UECs'!$D$21:$D$27)","v":570.84192933408451},{"$f":"SUMPRODUCT('Efficiency Dist - MF'!BA$56:BA$62,'Product Class UECs'!$D$21:$D$27)","v":571.01232059071594},{"$f":"SUMPRODUCT('Efficiency Dist - MF'!BB$56:BB$62,'Product Class UECs'!$D$21:$D$27)","v":571.07993247168054},{"$f":"SUMPRODUCT('Efficiency Dist - MF'!BC$56:BC$62,'Product Class UECs'!$D$21:$D$27)","v":571.0356571491991},{"$f":"SUMPRODUCT('Efficiency Dist - MF'!BD$56:BD$62,'Product Class UECs'!$D$21:$D$27)","v":570.75681317623571},{"$f":"SUMPRODUCT('Efficiency Dist - MF'!BE$56:BE$62,'Product Class UECs'!$D$21:$D$27)","v":570.91710887864497},{"$f":"SUMPRODUCT('Efficiency Dist - MF'!BF$56:BF$62,'Product Class UECs'!$D$21:$D$27)","v":570.39760020274252},{"$f":"SUMPRODUCT('Efficiency Dist - MF'!BG$56:BG$62,'Product Class UECs'!$D$21:$D$27)","v":570.39246496329406}]
[null,null,"PC 3 - Weatherized Non-Condensing Gas Furnace Fan (WG-NC)",{"$f":"SUMPRODUCT('Efficiency Dist - MF'!F$82:F$88,'Product Class UECs'!$D$31:$D$37)","v":932.53479327999389},{"$f":"SUMPRODUCT('Efficiency Dist - MF'!G$82:G$88,'Product Class UECs'!$D$31:$D$37)","v":913.54401254950119},{"$f":"SUMPRODUCT('Efficiency Dist - MF'!H$82:H$88,'Product Class UECs'!$D$31:$D$37)","v":922.39707162353182},{"$f":"SUMPRODUCT('Efficiency Dist - MF'!I$82:I$88,'Product Class UECs'!$D$31:$D$37)","v":948.09042811277629},{"$f":"SUMPRODUCT('Efficiency Dist - MF'!J$82:J$88,'Product Class UECs'!$D$31:$D$37)","v":977.48988735201215},{"$f":"SUMPRODUCT('Efficiency Dist - MF'!K$82:K$88,'Product Class UECs'!$D$31:$D$37)","v":969.20530569200628},{"$f":"SUMPRODUCT('Efficiency Dist - MF'!L$82:L$88,'Product Class UECs'!$D$31:$D$37)","v":976.88958619300286},{"$f":"SUMPRODUCT('Efficiency Dist - MF'!M$82:M$88,'Product Class UECs'!$D$31:$D$37)","v":992.31702168508127},{"$f":"SUMPRODUCT('Efficiency Dist - MF'!N$82:N$88,'Product Class UECs'!$D$31:$D$37)","v":1004.9415242403769},{"$f":"SUMPRODUCT('Efficiency Dist - MF'!O$82:O$88,'Product Class UECs'!$D$31:$D$37)","v":993.14854414793376},{"$f":"SUMPRODUCT('Efficiency Dist - MF'!P$82:P$88,'Product Class UECs'!$D$31:$D$37)","v":941.24543148488431},{"$f":"SUMPRODUCT('Efficiency Dist - MF'!Q$82:Q$88,'Product Class UECs'!$D$31:$D$37)","v":942.79797675774432},{"$f":"SUMPRODUCT('Efficiency Dist - MF'!R$82:R$88,'Product Class UECs'!$D$31:$D$37)","v":845.96785662892773},{"$f":"SUMPRODUCT('Efficiency Dist - MF'!S$82:S$88,'Product Class UECs'!$D$31:$D$37)","v":845.96785662892773},{"$f":"SUMPRODUCT('Efficiency Dist - MF'!T$82:T$88,'Product Class UECs'!$D$31:$D$37)","v":845.96785662892773},{"$f":"SUMPRODUCT('Efficiency Dist - MF'!U$82:U$88,'Product Class UECs'!$D$31:$D$37)","v":845.96785662892773},{"$f":"SUMPRODUCT('Efficiency Dist - MF'!V$82:V$88,'Product Class UECs'!$D$31:$D$37)","v":845.96785662892773},{"$f":"SUMPRODUCT('Efficiency Dist - MF'!W$82:W$88,'Product Class UECs'!$D$31:$D$37)","v":845.96785662892762},{"$f":"SUMPRODUCT('Efficiency Dist - MF'!X$82:X$88,'Product Class UECs'!$D$31:$D$37)","v":845.96785662892773},{"$f":"SUMPRODUCT('Efficiency Dist - MF'!Y$82:Y$88,'Product Class UECs'!$D$31:$D$37)","v":845.96785662892773},{"$f":"SUMPRODUCT('Efficiency Dist - MF'!Z$82:Z$88,'Product Class UECs'!$D$31:$D$37)","v":845.96785662892773},{"$f":"SUMPRODUCT('Efficiency Dist - MF'!AA$82:AA$88,'Product Class UECs'!$D$31:$D$37)","v":845.96785662892773},{"$f":"SUMPRODUCT('Efficiency Dist - MF'!AB$82:AB$88,'Product Class UECs'!$D$31:$D$37)","v":845.96785662892773},{"$f":"SUMPRODUCT('Efficiency Dist - MF'!AC$82:AC$88,'Product Class UECs'!$D$31:$D$37)","v":845.96785662892773},{"$f":"SUMPRODUCT('Efficiency Dist - MF'!AD$82:AD$88,'Product Class UECs'!$D$31:$D$37)","v":845.96785662892762},{"$f":"SUMPRODUCT('Efficiency Dist - MF'!AE$82:AE$88,'Product Class UECs'!$D$31:$D$37)","v":845.96785662892773},{"$f":"SUMPRODUCT('Efficiency Dist - MF'!AF$82:AF$88,'Product Class UECs'!$D$31:$D$37)","v":845.96785662892773},{"$f":"SUMPRODUCT('Efficiency Dist - MF'!AG$82:AG$88,'Product Class UECs'!$D$31:$D$37)","v":845.96785662892762},{"$f":"SUMPRODUCT('Efficiency Dist - MF'!AH$82:AH$88,'Product Class UECs'!$D$31:$D$37)","v":845.96785662892773},{"$f":"SUMPRODUCT('Efficiency Dist - MF'!AI$82:AI$88,'Product Class UECs'!$D$31:$D$37)","v":845.96785662892773},{"$f":"SUMPRODUCT('Efficiency Dist - MF'!AJ$82:AJ$88,'Product Class UECs'!$D$31:$D$37)","v":845.96785662892773},{"$f":"SUMPRODUCT('Efficiency Dist - MF'!AK$82:AK$88,'Product Class UECs'!$D$31:$D$37)","v":888.43662975246821},{"$f":"SUMPRODUCT('Efficiency Dist - MF'!AL$82:AL$88,'Product Class UECs'!$D$31:$D$37)","v":890.14233307569521},{"$f":"SUMPRODUCT('Efficiency Dist - MF'!AM$82:AM$88,'Product Class UECs'!$D$31:$D$37)","v":930.51604243645261},{"$f":"SUMPRODUCT('Efficiency Dist - MF'!AN$82:AN$88,'Product Class UECs'!$D$31:$D$37)","v":928.45636636390009},{"$f":"SUMPRODUCT('Efficiency Dist - MF'!AO$82:AO$88,'Product Class UECs'!$D$31:$D$37)","v":930.96589570198671},{"$f":"SUMPRODUCT('Efficiency Dist - MF'!AP$82:AP$88,'Product Class UECs'!$D$31:$D$37)","v":936.11263311279868},{"$f":"SUMPRODUCT('Efficiency Dist - MF'!AQ$82:AQ$88,'Product Class UECs'!$D$31:$D$37)","v":941.34082403703496},{"$f":"SUMPRODUCT('Efficiency Dist - MF'!AR$82:AR$88,'Product Class UECs'!$D$31:$D$37)","v":640.96136649532639},{"$f":"SUMPRODUCT('Efficiency Dist - MF'!AS$82:AS$88,'Product Class UECs'!$D$31:$D$37)","v":641.20978078425981},{"$f":"SUMPRODUCT('Efficiency Dist - MF'!AT$82:AT$88,'Product Class UECs'!$D$31:$D$37)","v":641.47234433490348},{"$f":"SUMPRODUCT('Efficiency Dist - MF'!AU$82:AU$88,'Product Class UECs'!$D$31:$D$37)","v":641.55463750236129},{"$f":"SUMPRODUCT('Efficiency Dist - MF'!AV$82:AV$88,'Product Class UECs'!$D$31:$D$37)","v":640.96762322314703},{"$f":"SUMPRODUCT('Efficiency Dist - MF'!AW$82:AW$88,'Product Class UECs'!$D$31:$D$37)","v":641.1611249465434},{"$f":"SUMPRODUCT('Efficiency Dist - MF'!AX$82:AX$88,'Product Class UECs'!$D$31:$D$37)","v":641.05532238007572},{"$f":"SUMPRODUCT('Efficiency Dist - MF'!AY$82:AY$88,'Product Class UECs'!$D$31:$D$37)","v":640.87741164316412},{"$f":"SUMPRODUCT('Efficiency Dist - MF'!AZ$82:AZ$88,'Product Class UECs'!$D$31:$D$37)","v":640.6277883159355},{"$f":"SUMPRODUCT('Efficiency Dist - MF'!BA$82:BA$88,'Product Class UECs'!$D$31:$D$37)","v":640.73186477422678},{"$f":"SUMPRODUCT('Efficiency Dist - MF'!BB$82:BB$88,'Product Class UECs'!$D$31:$D$37)","v":640.77316269788957},{"$f":"SUMPRODUCT('Efficiency Dist - MF'!BC$82:BC$88,'Product Class UECs'!$D$31:$D$37)","v":640.74611894667453},{"$f":"SUMPRODUCT('Efficiency Dist - MF'!BD$82:BD$88,'Product Class UECs'!$D$31:$D$37)","v":640.57579862804084},{"$f":"SUMPRODUCT('Efficiency Dist - MF'!BE$82:BE$88,'Product Class UECs'!$D$31:$D$37)","v":640.67370863419865},{"$f":"SUMPRODUCT('Efficiency Dist - MF'!BF$82:BF$88,'Product Class UECs'!$D$31:$D$37)","v":640.35638822640101},{"$f":"SUMPRODUCT('Efficiency Dist - MF'!BG$82:BG$88,'Product Class UECs'!$D$31:$D$37)","v":640.3532515775795}]
[null,null,"PC 4 - Non-Weatherized, Non-Condensing Oil Furnace Fan (NWO-NC)",{"$f":"SUMPRODUCT('Efficiency Dist - MF'!F$108:F$114,'Product Class UECs'!$D$41:$D$47)","v":1024.9723912386441},{"$f":"SUMPRODUCT('Efficiency Dist - MF'!G$108:G$114,'Product Class UECs'!$D$41:$D$47)","v":1015.8969296468067},{"$f":"SUMPRODUCT('Efficiency Dist - MF'!H$108:H$114,'Product Class UECs'!$D$41:$D$47)","v":1020.1276981832275},{"$f":"SUMPRODUCT('Efficiency Dist - MF'!I$108:I$114,'Product Class UECs'!$D$41:$D$47)","v":1032.4062386651949},{"$f":"SUMPRODUCT('Efficiency Dist - MF'!J$108:J$114,'Product Class UECs'!$D$41:$D$47)","v":1046.4558802746137},{"$f":"SUMPRODUCT('Efficiency Dist - MF'!K$108:K$114,'Product Class UECs'!$D$41:$D$47)","v":1042.4967801340335},{"$f":"SUMPRODUCT('Efficiency Dist - MF'!L$108:L$114,'Product Class UECs'!$D$41:$D$47)","v":1046.1690037006888},{"$f":"SUMPRODUCT('Efficiency Dist - MF'!M$108:M$114,'Product Class UECs'!$D$41:$D$47)","v":1053.5415862319642},{"$f":"SUMPRODUCT('Efficiency Dist - MF'!N$108:N$114,'Product Class UECs'!$D$41:$D$47)","v":1059.5746814312927},{"$f":"SUMPRODUCT('Efficiency Dist - MF'!O$108:O$114,'Product Class UECs'!$D$41:$D$47)","v":1053.9389606359689},{"$f":"SUMPRODUCT('Efficiency Dist - MF'!P$108:P$114,'Product Class UECs'!$D$41:$D$47)","v":1029.1350985854751},{"$f":"SUMPRODUCT('Efficiency Dist - MF'!Q$108:Q$114,'Product Class UECs'!$D$41:$D$47)","v":1029.8770409623255},{"$f":"SUMPRODUCT('Efficiency Dist - MF'!R$108:R$114,'Product Class UECs'!$D$41:$D$47)","v":983.60311212110275},{"$f":"SUMPRODUCT('Efficiency Dist - MF'!S$108:S$114,'Product Class UECs'!$D$41:$D$47)","v":983.60311212110275},{"$f":"SUMPRODUCT('Efficiency Dist - MF'!T$108:T$114,'Product Class UECs'!$D$41:$D$47)","v":983.60311212110275},{"$f":"SUMPRODUCT('Efficiency Dist - MF'!U$108:U$114,'Product Class UECs'!$D$41:$D$47)","v":983.60311212110275},{"$f":"SUMPRODUCT('Efficiency Dist - MF'!V$108:V$114,'Product Class UECs'!$D$41:$D$47)","v":983.60311212110275},{"$f":"SUMPRODUCT('Efficiency Dist - MF'!W$108:W$114,'Product Class UECs'!$D$41:$D$47)","v":983.60311212110275},{"$f":"SUMPRODUCT('Efficiency Dist - MF'!X$108:X$114,'Product Class UECs'!$D$41:$D$47)","v":983.60311212110275},{"$f":"SUMPRODUCT('Efficiency Dist - MF'!Y$108:Y$114,'Product Class UECs'!$D$41:$D$47)","v":983.60311212110275},{"$f":"SUMPRODUCT('Efficiency Dist - MF'!Z$108:Z$114,'Product Class UECs'!$D$41:$D$47)","v":983.60311212110275},{"$f":"SUMPRODUCT('Efficiency Dist - MF'!AA$108:AA$114,'Product Class UECs'!$D$41:$D$47)","v":983.60311212110275},{"$f":"SUMPRODUCT('Efficiency Dist - MF'!AB$108:AB$114,'Product Class UECs'!$D$41:$D$47)","v":983.60311212110275},{"$f":"SUMPRODUCT('Efficiency Dist - MF'!AC$108:AC$114,'Product Class UECs'!$D$41:$D$47)","v":983.60311212110264},{"$f":"SUMPRODUCT('Efficiency Dist - MF'!AD$108:AD$114,'Product Class UECs'!$D$41:$D$47)","v":983.60311212110275},{"$f":"SUMPRODUCT('Efficiency Dist - MF'!AE$108:AE$114,'Product Class UECs'!$D$41:$D$47)","v":983.60311212110275},{"$f":"SUMPRODUCT('Efficiency Dist - MF'!AF$108:AF$114,'Product Class UECs'!$D$41:$D$47)","v":983.60311212110275},{"$f":"SUMPRODUCT('Efficiency Dist - MF'!AG$108:AG$114,'Product Class UECs'!$D$41:$D$47)","v":983.60311212110275},{"$f":"SUMPRODUCT('Efficiency Dist - MF'!AH$108:AH$114,'Product Class UECs'!$D$41:$D$47)","v":983.60311212110264},{"$f":"SUMPRODUCT('Efficiency Dist - MF'!AI$108:AI$114,'Product Class UECs'!$D$41:$D$47)","v":983.60311212110275},{"$f":"SUMPRODUCT('Efficiency Dist - MF'!AJ$108:AJ$114,'Product Class UECs'!$D$41:$D$47)","v":983.60311212110275},{"$f":"SUMPRODUCT('Efficiency Dist - MF'!AK$108:AK$114,'Product Class UECs'!$D$41:$D$47)","v":1003.8984188178039},{"$f":"SUMPRODUCT('Efficiency Dist - MF'!AL$108:AL$114,'Product Class UECs'!$D$41:$D$47)","v":1004.7135535516887},{"$f":"SUMPRODUCT('Efficiency Dist - MF'!AM$108:AM$114,'Product Class UECs'!$D$41:$D$47)","v":1024.0076549276914},{"$f":"SUMPRODUCT('Efficiency Dist - MF'!AN$108:AN$114,'Product Class UECs'!$D$41:$D$47)","v":1023.0233609508743},{"$f":"SUMPRODUCT('Efficiency Dist - MF'!AO$108:AO$114,'Product Class UECs'!$D$41:$D$47)","v":1024.2226342953782},{"$f":"SUMPRODUCT('Efficiency Dist - MF'!AP$108:AP$114,'Product Class UECs'!$D$41:$D$47)","v":1026.6821970883971},{"$f":"SUMPRODUCT('Efficiency Dist - MF'!AQ$108:AQ$114,'Product Class UECs'!$D$41:$D$47)","v":1029.1806855181808},{"$f":"SUMPRODUCT('Efficiency Dist - MF'!AR$108:AR$114,'Product Class UECs'!$D$41:$D$47)","v":977.49385334754231},{"$f":"SUMPRODUCT('Efficiency Dist - MF'!AS$108:AS$114,'Product Class UECs'!$D$41:$D$47)","v":984.35253960870364},{"$f":"SUMPRODUCT('Efficiency Dist - MF'!AT$108:AT$114,'Product Class UECs'!$D$41:$D$47)","v":991.60188514842162},{"$f":"SUMPRODUCT('Efficiency Dist - MF'!AU$108:AU$114,'Product Class UECs'!$D$41:$D$47)","v":993.87398881626871},{"$f":"SUMPRODUCT('Efficiency Dist - MF'!AV$108:AV$114,'Product Class UECs'!$D$41:$D$47)","v":977.66660079024609},{"$f":"SUMPRODUCT('Efficiency Dist - MF'!AW$108:AW$114,'Product Class UECs'!$D$41:$D$47)","v":983.00915824725894},{"$f":"SUMPRODUCT('Efficiency Dist - MF'!AX$108:AX$114,'Product Class UECs'!$D$41:$D$47)","v":980.08796312541313},{"$f":"SUMPRODUCT('Efficiency Dist - MF'!AY$108:AY$114,'Product Class UECs'!$D$41:$D$47)","v":975.17587078077497},{"$f":"SUMPRODUCT('Efficiency Dist - MF'!AZ$108:AZ$114,'Product Class UECs'!$D$41:$D$47)","v":968.28380312927561},{"$f":"SUMPRODUCT('Efficiency Dist - MF'!BA$108:BA$114,'Product Class UECs'!$D$41:$D$47)","v":971.1573406284964},{"$f":"SUMPRODUCT('Efficiency Dist - MF'!BB$108:BB$114,'Product Class UECs'!$D$41:$D$47)","v":972.29757093834348},{"$f":"SUMPRODUCT('Efficiency Dist - MF'!BC$108:BC$114,'Product Class UECs'!$D$41:$D$47)","v":971.55089647889258},{"$f":"SUMPRODUCT('Efficiency Dist - MF'!BD$108:BD$114,'Product Class UECs'!$D$41:$D$47)","v":966.84837459730011},{"$f":"SUMPRODUCT('Efficiency Dist - MF'!BE$108:BE$114,'Product Class UECs'!$D$41:$D$47)","v":969.55165715382725},{"$f":"SUMPRODUCT('Efficiency Dist - MF'!BF$108:BF$114,'Product Class UECs'!$D$41:$D$47)","v":960.79048189819468},{"$f":"SUMPRODUCT('Efficiency Dist - MF'!BG$108:BG$114,'Product Class UECs'!$D$41:$D$47)","v":960.70387943152616}]
[null,null,"PC 5 - Non-Weatherized Electric Furnace / Modular Blower Fan (NWEF/NWMB)",{"$f":"SUMPRODUCT('Efficiency Dist - MF'!F$134:F$140,'Product Class UECs'!$D$51:$D$57)","v":485.82931588486395},{"$f":"SUMPRODUCT('Efficiency Dist - MF'!G$134:G$140,'Product Class UECs'!$D$51:$D$57)","v":479.41327816624471},{"$f":"SUMPRODUCT('Efficiency Dist - MF'!H$134:H$140,'Product Class UECs'!$D$51:$D$57)","v":482.40428531598974},{"$f":"SUMPRODUCT('Efficiency Dist - MF'!I$134:I$140,'Product Class UECs'!$D$51:$D$57)","v":491.08478911898658},{"$f":"SUMPRODUCT('Efficiency Dist - MF'!J$134:J$140,'Product Class UECs'!$D$51:$D$57)","v":501.01740021396239},{"$f":"SUMPRODUCT('Efficiency Dist - MF'!K$134:K$140,'Product Class UECs'!$D$51:$D$57)","v":498.21845323184959},{"$f":"SUMPRODUCT('Efficiency Dist - MF'!L$134:L$140,'Product Class UECs'!$D$51:$D$57)","v":500.81458838998344},{"$f":"SUMPRODUCT('Efficiency Dist - MF'!M$134:M$140,'Product Class UECs'!$D$51:$D$57)","v":506.0267494603184},{"$f":"SUMPRODUCT('Efficiency Dist - MF'!N$134:N$140,'Product Class UECs'!$D$51:$D$57)","v":510.29193927652869},{"$f":"SUMPRODUCT('Efficiency Dist - MF'!O$134:O$140,'Product Class UECs'!$D$51:$D$57)","v":506.30767943161612},{"$f":"SUMPRODUCT('Efficiency Dist - MF'!P$134:P$140,'Product Class UECs'!$D$51:$D$57)","v":488.77220612560495},{"$f":"SUMPRODUCT('Efficiency Dist - MF'!Q$134:Q$140,'Product Class UECs'!$D$51:$D$57)","v":489.29673374623832},{"$f":"SUMPRODUCT('Efficiency Dist - MF'!R$134:R$140,'Product Class UECs'!$D$51:$D$57)","v":456.58266517467229},{"$f":"SUMPRODUCT('Efficiency Dist - MF'!S$134:S$140,'Product Class UECs'!$D$51:$D$57)","v":456.58266517467229},{"$f":"SUMPRODUCT('Efficiency Dist - MF'!T$134:T$140,'Product Class UECs'!$D$51:$D$57)","v":456.58266517467223},{"$f":"SUMPRODUCT('Efficiency Dist - MF'!U$134:U$140,'Product Class UECs'!$D$51:$D$57)","v":456.58266517467223},{"$f":"SUMPRODUCT('Efficiency Dist - MF'!V$134:V$140,'Product Class UECs'!$D$51:$D$57)","v":456.58266517467223},{"$f":"SUMPRODUCT('Efficiency Dist - MF'!W$134:W$140,'Product Class UECs'!$D$51:$D$57)","v":456.58266517467223},{"$f":"SUMPRODUCT('Efficiency Dist - MF'!X$134:X$140,'Product Class UECs'!$D$51:$D$57)","v":456.58266517467223},{"$f":"SUMPRODUCT('Efficiency Dist - MF'!Y$134:Y$140,'Product Class UECs'!$D$51:$D$57)","v":456.58266517467223},{"$f":"SUMPRODUCT('Efficiency Dist - MF'!Z$134:Z$140,'Product Class UECs'!$D$51:$D$57)","v":456.58266517467223},{"$f":"SUMPRODUCT('Efficiency Dist - MF'!AA$134:AA$140,'Product Class UECs'!$D$51:$D$57)","v":456.58266517467229},{"$f":"SUMPRODUCT('Efficiency Dist - MF'!AB$134:AB$140,'Product Class UECs'!$D$51:$D$57)","v":456.58266517467223},{"$f":"SUMPRODUCT('Efficiency Dist - MF'!AC$134:AC$140,'Product Class UECs'!$D$51:$D$57)","v":456.58266517467229},{"$f":"SUMPRODUCT('Efficiency Dist - MF'!AD$134:AD$140,'Product Class UECs'!$D$51:$D$57)","v":456.58266517467229},{"$f":"SUMPRODUCT('Efficiency Dist - MF'!AE$134:AE$140,'Product Class UECs'!$D$51:$D$57)","v":456.58266517467223},{"$f":"SUMPRODUCT('Efficiency Dist - MF'!AF$134:AF$140,'Product Class UECs'!$D$51:$D$57)","v":456.58266517467223},{"$f":"SUMPRODUCT('Efficiency Dist - MF'!AG$134:AG$140,'Product Class UECs'!$D$51:$D$57)","v":456.58266517467223},{"$f":"SUMPRODUCT('Efficiency Dist - MF'!AH$134:AH$140,'Product Class UECs'!$D$51:$D$57)","v":456.58266517467223},{"$f":"SUMPRODUCT('Efficiency Dist - MF'!AI$134:AI$140,'Product Class UECs'!$D$51:$D$57)","v":456.58266517467223},{"$f":"SUMPRODUCT('Efficiency Dist - MF'!AJ$134:AJ$140,'Product Class UECs'!$D$51:$D$57)","v":456.58266517467223},{"$f":"SUMPRODUCT('Efficiency Dist - MF'!AK$134:AK$140,'Product Class UECs'!$D$51:$D$57)","v":470.93074565072169},{"$f":"SUMPRODUCT('Efficiency Dist - MF'!AL$134:AL$140,'Product Class UECs'!$D$51:$D$57)","v":471.50701773842081},{"$f":"SUMPRODUCT('Efficiency Dist - MF'!AM$134:AM$140,'Product Class UECs'!$D$51:$D$57)","v":485.14728065205964},{"$f":"SUMPRODUCT('Efficiency Dist - MF'!AN$134:AN$140,'Product Class UECs'!$D$51:$D$57)","v":484.45141882535677},{"$f":"SUMPRODUCT('Efficiency Dist - MF'!AO$134:AO$140,'Product Class UECs'!$D$51:$D$57)","v":485.29926363582808},{"$f":"SUMPRODUCT('Efficiency Dist - MF'!AP$134:AP$140,'Product Class UECs'!$D$51:$D$57)","v":487.03808953373209},{"$f":"SUMPRODUCT('Efficiency Dist - MF'!AQ$134:AQ$140,'Product Class UECs'!$D$51:$D$57)","v":488.80443451164979},{"$f":"SUMPRODUCT('Efficiency Dist - MF'!AR$134:AR$140,'Product Class UECs'!$D$51:$D$57)","v":298.59369011890828},{"$f":"SUMPRODUCT('Efficiency Dist - MF'!AS$134:AS$140,'Product Class UECs'!$D$51:$D$57)","v":298.68019152309046},{"$f":"SUMPRODUCT('Efficiency Dist - MF'!AT$134:AT$140,'Product Class UECs'!$D$51:$D$57)","v":298.77161990233242},{"$f":"SUMPRODUCT('Efficiency Dist - MF'!AU$134:AU$140,'Product Class UECs'!$D$51:$D$57)","v":298.80027555885795},{"$f":"SUMPRODUCT('Efficiency Dist - MF'!AV$134:AV$140,'Product Class UECs'!$D$51:$D$57)","v":298.59586880091734},{"$f":"SUMPRODUCT('Efficiency Dist - MF'!AW$134:AW$140,'Product Class UECs'!$D$51:$D$57)","v":298.6632488653143},{"$f":"SUMPRODUCT('Efficiency Dist - MF'!AX$134:AX$140,'Product Class UECs'!$D$51:$D$57)","v":298.62640690020487},{"$f":"SUMPRODUCT('Efficiency Dist - MF'!AY$134:AY$140,'Product Class UECs'!$D$51:$D$57)","v":298.56445584003029},{"$f":"SUMPRODUCT('Efficiency Dist - MF'!AZ$134:AZ$140,'Product Class UECs'!$D$51:$D$57)","v":298.47753343144188},{"$f":"SUMPRODUCT('Efficiency Dist - MF'!BA$134:BA$140,'Product Class UECs'!$D$51:$D$57)","v":298.5137743410254},{"$f":"SUMPRODUCT('Efficiency Dist - MF'!BB$134:BB$140,'Product Class UECs'!$D$51:$D$57)","v":298.52815486801512},{"$f":"SUMPRODUCT('Efficiency Dist - MF'!BC$134:BC$140,'Product Class UECs'!$D$51:$D$57)","v":298.51873784750273},{"$f":"SUMPRODUCT('Efficiency Dist - MF'!BD$134:BD$140,'Product Class UECs'!$D$51:$D$57)","v":298.45942987940708},{"$f":"SUMPRODUCT('Efficiency Dist - MF'!BE$134:BE$140,'Product Class UECs'!$D$51:$D$57)","v":298.49352354226568},{"$f":"SUMPRODUCT('Efficiency Dist - MF'!BF$134:BF$140,'Product Class UECs'!$D$51:$D$57)","v":298.38302804312173},{"$f":"SUMPRODUCT('Efficiency Dist - MF'!BG$134:BG$140,'Product Class UECs'!$D$51:$D$57)","v":298.38193581719293}]
[null,null,"PC 6 - Mobile Home Non-Weatherized, Non-Condensing Gas Furnace Fan (MH-NWG-NC)",{"$f":"SUMPRODUCT('Efficiency Dist - MF'!F$160:F$166,'Product Class UECs'!$D$61:$D$67)","v":0},{"$f":"SUMPRODUCT('Efficiency Dist - MF'!G$160:G$166,'Product Class UECs'!$D$61:$D$67)","v":0},{"$f":"SUMPRODUCT('Efficiency Dist - MF'!H$160:H$166,'Product Class UECs'!$D$61:$D$67)","v":0},{"$f":"SUMPRODUCT('Efficiency Dist - MF'!I$160:I$166,'Product Class UECs'!$D$61:$D$67)","v":0},{"$f":"SUMPRODUCT('Efficiency Dist - MF'!J$160:J$166,'Product Class UECs'!$D$61:$D$67)","v":0},{"$f":"SUMPRODUCT('Efficiency Dist - MF'!K$160:K$166,'Product Class UECs'!$D$61:$D$67)","v":0},{"$f":"SUMPRODUCT('Efficiency Dist - MF'!L$160:L$166,'Product Class UECs'!$D$61:$D$67)","v":0},{"$f":"SUMPRODUCT('Efficiency Dist - MF'!M$160:M$166,'Product Class UECs'!$D$61:$D$67)","v":0},{"$f":"SUMPRODUCT('Efficiency Dist - MF'!N$160:N$166,'Product Class UECs'!$D$61:$D$67)","v":0},{"$f":"SUMPRODUCT('Efficiency Dist - MF'!O$160:O$166,'Product Class UECs'!$D$61:$D$67)","v":0},{"$f":"SUMPRODUCT('Efficiency Dist - MF'!P$160:P$166,'Product Class UECs'!$D$61:$D$67)","v":0},{"$f":"SUMPRODUCT('Efficiency Dist - MF'!Q$160:Q$166,'Product Class UECs'!$D$61:$D$67)","v":0},{"$f":"SUMPRODUCT('Efficiency Dist - MF'!R$160:R$166,'Product Class UECs'!$D$61:$D$67)","v":0},{"$f":"SUMPRODUCT('Efficiency Dist - MF'!S$160:S$166,'Product Class UECs'!$D$61:$D$67)","v":0},{"$f":"SUMPRODUCT('Efficiency Dist - MF'!T$160:T$166,'Product Class UECs'!$D$61:$D$67)","v":0},{"$f":"SUMPRODUCT('Efficiency Dist - MF'!U$160:U$166,'Product Class UECs'!$D$61:$D$67)","v":0},{"$f":"SUMPRODUCT('Efficiency Dist - MF'!V$160:V$166,'Product Class UECs'!$D$61:$D$67)","v":0},{"$f":"SUMPRODUCT('Efficiency Dist - MF'!W$160:W$166,'Product Class UECs'!$D$61:$D$67)","v":0},{"$f":"SUMPRODUCT('Efficiency Dist - MF'!X$160:X$166,'Product Class UECs'!$D$61:$D$67)","v":0},{"$f":"SUMPRODUCT('Efficiency Dist - MF'!Y$160:Y$166,'Product Class UECs'!$D$61:$D$67)","v":0},{"$f":"SUMPRODUCT('Efficiency Dist - MF'!Z$160:Z$166,'Product Class UECs'!$D$61:$D$67)","v":0},{"$f":"SUMPRODUCT('Efficiency Dist - MF'!AA$160:AA$166,'Product Class UECs'!$D$61:$D$67)","v":0},{"$f":"SUMPRODUCT('Efficiency Dist - MF'!AB$160:AB$166,'Product Class UECs'!$D$61:$D$67)","v":0},{"$f":"SUMPRODUCT('Efficiency Dist - MF'!AC$160:AC$166,'Product Class UECs'!$D$61:$D$67)","v":0},{"$f":"SUMPRODUCT('Efficiency Dist - MF'!AD$160:AD$166,'Product Class UECs'!$D$61:$D$67)","v":0},{"$f":"SUMPRODUCT('Efficiency Dist - MF'!AE$160:AE$166,'Product Class UECs'!$D$61:$D$67)","v":0},{"$f":"SUMPRODUCT('Efficiency Dist - MF'!AF$160:AF$166,'Product Class UECs'!$D$61:$D$67)","v":0},{"$f":"SUMPRODUCT('Efficiency Dist - MF'!AG$160:AG$166,'Product Class UECs'!$D$61:$D$67)","v":0},{"$f":"SUMPRODUCT('Efficiency Dist - MF'!AH$160:AH$166,'Product Class UECs'!$D$61:$D$67)","v":0},{"$f":"SUMPRODUCT('Efficiency Dist - MF'!AI$160:AI$166,'Product Class UECs'!$D$61:$D$67)","v":0},{"$f":"SUMPRODUCT('Efficiency Dist - MF'!AJ$160:AJ$166,'Product Class UECs'!$D$61:$D$67)","v":0},{"$f":"SUMPRODUCT('Efficiency Dist - MF'!AK$160:AK$166,'Product Class UECs'!$D$61:$D$67)","v":0},{"$f":"SUMPRODUCT('Efficiency Dist - MF'!AL$160:AL$166,'Product Class UECs'!$D$61:$D$67)","v":0},{"$f":"SUMPRODUCT('Efficiency Dist - MF'!AM$160:AM$166,'Product Class UECs'!$D$61:$D$67)","v":0},{"$f":"SUMPRODUCT('Efficiency Dist - MF'!AN$160:AN$166,'Product Class UECs'!$D$61:$D$67)","v":0},{"$f":"SUMPRODUCT('Efficiency Dist - MF'!AO$160:AO$166,'Product Class UECs'!$D$61:$D$67)","v":0},{"$f":"SUMPRODUCT('Efficiency Dist - MF'!AP$160:AP$166,'Product Class UECs'!$D$61:$D$67)","v":0},{"$f":"SUMPRODUCT('Efficiency Dist - MF'!AQ$160:AQ$166,'Product Class UECs'!$D$61:$D$67)","v":0},{"$f":"SUMPRODUCT('Efficiency Dist - MF'!AR$160:AR$166,'Product Class UECs'!$D$61:$D$67)","v":0},{"$f":"SUMPRODUCT('Efficiency Dist - MF'!AS$160:AS$166,'Product Class UECs'!$D$61:$D$67)","v":0},{"$f":"SUMPRODUCT('Efficiency Dist - MF'!AT$160:AT$166,'Product Class UECs'!$D$61:$D$67)","v":0},{"$f":"SUMPRODUCT('Efficiency Dist - MF'!AU$160:AU$166,'Product Class UECs'!$D$61:$D$67)","v":0},{"$f":"SUMPRODUCT('Efficiency Dist - MF'!AV$160:AV$166,'Product Class UECs'!$D$61:$D$67)","v":0},{"$f":"SUMPRODUCT('Efficiency Dist - MF'!AW$160:AW$166,'Product Class UECs'!$D$61:$D$67)","v":0},{"$f":"SUMPRODUCT('Efficiency Dist - MF'!AX$160:AX$166,'Product Class UECs'!$D$61:$D$67)","v":0},{"$f":"SUMPRODUCT('Efficiency Dist - MF'!AY$160:AY$166,'Product Class UECs'!$D$61:$D$67)","v":0},{"$f":"SUMPRODUCT('Efficiency Dist - MF'!AZ$160:AZ$166,'Product Class UECs'!$D$61:$D$67)","v":0},{"$f":"SUMPRODUCT('Efficiency Dist - MF'!BA$160:BA$166,'Product Class UECs'!$D$61:$D$67)","v":0},{"$f":"SUMPRODUCT('Efficiency Dist - MF'!BB$160:BB$166,'Product Class UECs'!$D$61:$D$67)","v":0},{"$f":"SUMPRODUCT('Efficiency Dist - MF'!BC$160:BC$166,'Product Class UECs'!$D$61:$D$67)","v":0},{"$f":"SUMPRODUCT('Efficiency Dist - MF'!BD$160:BD$166,'Product Class UECs'!$D$61:$D$67)","v":0},{"$f":"SUMPRODUCT('Efficiency Dist - MF'!BE$160:BE$166,'Product Class UECs'!$D$61:$D$67)","v":0},{"$f":"SUMPRODUCT('Efficiency Dist - MF'!BF$160:BF$166,'Product Class UECs'!$D$61:$D$67)","v":0},{"$f":"SUMPRODUCT('Efficiency Dist - MF'!BG$160:BG$166,'Product Class UECs'!$D$61:$D$67)","v":0}]
[null,null,"PC 7 - Mobile Home Non-Weatherized, Condensing Gas Furnace Fan (MH-NWG-C)",{"$f":"SUMPRODUCT('Efficiency Dist - MF'!F$186:F$192,'Product Class UECs'!$D$71:$D$77)","v":0},{"$f":"SUMPRODUCT('Efficiency Dist - MF'!G$186:G$192,'Product Class UECs'!$D$71:$D$77)","v":0},{"$f":"SUMPRODUCT('Efficiency Dist - MF'!H$186:H$192,'Product Class UECs'!$D$71:$D$77)","v":0},{"$f":"SUMPRODUCT('Efficiency Dist - MF'!I$186:I$192,'Product Class UECs'!$D$71:$D$77)","v":0},{"$f":"SUMPRODUCT('Efficiency Dist - MF'!J$186:J$192,'Product Class UECs'!$D$71:$D$77)","v":0},{"$f":"SUMPRODUCT('Efficiency Dist - MF'!K$186:K$192,'Product Class UECs'!$D$71:$D$77)","v":0},{"$f":"SUMPRODUCT('Efficiency Dist - MF'!L$186:L$192,'Product Class UECs'!$D$71:$D$77)","v":0},{"$f":"SUMPRODUCT('Efficiency Dist - MF'!M$186:M$192,'Product Class UECs'!$D$71:$D$77)","v":0},{"$f":"SUMPRODUCT('Efficiency Dist - MF'!N$186:N$192,'Product Class UECs'!$D$71:$D$77)","v":0},{"$f":"SUMPRODUCT('Efficiency Dist - MF'!O$186:O$192,'Product Class UECs'!$D$71:$D$77)","v":0},{"$f":"SUMPRODUCT('Efficiency Dist - MF'!P$186:P$192,'Product Class UECs'!$D$71:$D$77)","v":0},{"$f":"SUMPRODUCT('Efficiency Dist - MF'!Q$186:Q$192,'Product Class UECs'!$D$71:$D$77)","v":0},{"$f":"SUMPRODUCT('Efficiency Dist - MF'!R$186:R$192,'Product Class UECs'!$D$71:$D$77)","v":0},{"$f":"SUMPRODUCT('Efficiency Dist - MF'!S$186:S$192,'Product Class UECs'!$D$71:$D$77)","v":0},{"$f":"SUMPRODUCT('Efficiency Dist - MF'!T$186:T$192,'Product Class UECs'!$D$71:$D$77)","v":0},{"$f":"SUMPRODUCT('Efficiency Dist - MF'!U$186:U$192,'Product Class UECs'!$D$71:$D$77)","v":0},{"$f":"SUMPRODUCT('Efficiency Dist - MF'!V$186:V$192,'Product Class UECs'!$D$71:$D$77)","v":0},{"$f":"SUMPRODUCT('Efficiency Dist - MF'!W$186:W$192,'Product Class UECs'!$D$71:$D$77)","v":0},{"$f":"SUMPRODUCT('Efficiency Dist - MF'!X$186:X$192,'Product Class UECs'!$D$71:$D$77)","v":0},{"$f":"SUMPRODUCT('Efficiency Dist - MF'!Y$186:Y$192,'Product Class UECs'!$D$71:$D$77)","v":0},{"$f":"SUMPRODUCT('Efficiency Dist - MF'!Z$186:Z$192,'Product Class UECs'!$D$71:$D$77)","v":0},{"$f":"SUMPRODUCT('Efficiency Dist - MF'!AA$186:AA$192,'Product Class UECs'!$D$71:$D$77)","v":0},{"$f":"SUMPRODUCT('Efficiency Dist - MF'!AB$186:AB$192,'Product Class UECs'!$D$71:$D$77)","v":0},{"$f":"SUMPRODUCT('Efficiency Dist - MF'!AC$186:AC$192,'Product Class UECs'!$D$71:$D$77)","v":0},{"$f":"SUMPRODUCT('Efficiency Dist - MF'!AD$186:AD$192,'Product Class UECs'!$D$71:$D$77)","v":0},{"$f":"SUMPRODUCT('Efficiency Dist - MF'!AE$186:AE$192,'Product Class UECs'!$D$71:$D$77)","v":0},{"$f":"SUMPRODUCT('Efficiency Dist - MF'!AF$186:AF$192,'Product Class UECs'!$D$71:$D$77)","v":0},{"$f":"SUMPRODUCT('Efficiency Dist - MF'!AG$186:AG$192,'Product Class UECs'!$D$71:$D$77)","v":0},{"$f":"SUMPRODUCT('Efficiency Dist - MF'!AH$186:AH$192,'Product Class UECs'!$D$71:$D$77)","v":0},{"$f":"SUMPRODUCT('Efficiency Dist - MF'!AI$186:AI$192,'Product Class UECs'!$D$71:$D$77)","v":0},{"$f":"SUMPRODUCT('Efficiency Dist - MF'!AJ$186:AJ$192,'Product Class UECs'!$D$71:$D$77)","v":0},{"$f":"SUMPRODUCT('Efficiency Dist - MF'!AK$186:AK$192,'Product Class UECs'!$D$71:$D$77)","v":0},{"$f":"SUMPRODUCT('Efficiency Dist - MF'!AL$186:AL$192,'Product Class UECs'!$D$71:$D$77)","v":0},{"$f":"SUMPRODUCT('Efficiency Dist - MF'!AM$186:AM$192,'Product Class UECs'!$D$71:$D$77)","v":0},{"$f":"SUMPRODUCT('Efficiency Dist - MF'!AN$186:AN$192,'Product Class UECs'!$D$71:$D$77)","v":0},{"$f":"SUMPRODUCT('Efficiency Dist - MF'!AO$186:AO$192,'Product Class UECs'!$D$71:$D$77)","v":0},{"$f":"SUMPRODUCT('Efficiency Dist - MF'!AP$186:AP$192,'Product Class UECs'!$D$71:$D$77)","v":0},{"$f":"SUMPRODUCT('Efficiency Dist - MF'!AQ$186:AQ$192,'Product Class UECs'!$D$71:$D$77)","v":0},{"$f":"SUMPRODUCT('Efficiency Dist - MF'!AR$186:AR$192,'Product Class UECs'!$D$71:$D$77)","v":0},{"$f":"SUMPRODUCT('Efficiency Dist - MF'!AS$186:AS$192,'Product Class UECs'!$D$71:$D$77)","v":0},{"$f":"SUMPRODUCT('Efficiency Dist - MF'!AT$186:AT$192,'Product Class UECs'!$D$71:$D$77)","v":0},{"$f":"SUMPRODUCT('Efficiency Dist - MF'!AU$186:AU$192,'Product Class UECs'!$D$71:$D$77)","v":0},{"$f":"SUMPRODUCT('Efficiency Dist - MF'!AV$186:AV$192,'Product Class UECs'!$D$71:$D$77)","v":0},{"$f":"SUMPRODUCT('Efficiency Dist - MF'!AW$186:AW$192,'Product Class UECs'!$D$71:$D$77)","v":0},{"$f":"SUMPRODUCT('Efficiency Dist - MF'!AX$186:AX$192,'Product Class UECs'!$D$71:$D$77)","v":0},{"$f":"SUMPRODUCT('Efficiency Dist - MF'!AY$186:AY$192,'Product Class UECs'!$D$71:$D$77)","v":0},{"$f":"SUMPRODUCT('Efficiency Dist - MF'!AZ$186:AZ$192,'Product Class UECs'!$D$71:$D$77)","v":0},{"$f":"SUMPRODUCT('Efficiency Dist - MF'!BA$186:BA$192,'Product Class UECs'!$D$71:$D$77)","v":0},{"$f":"SUMPRODUCT('Efficiency Dist - MF'!BB$186:BB$192,'Product Class UECs'!$D$71:$D$77)","v":0},{"$f":"SUMPRODUCT('Efficiency Dist - MF'!BC$186:BC$192,'Product Class UECs'!$D$71:$D$77)","v":0},{"$f":"SUMPRODUCT('Efficiency Dist - MF'!BD$186:BD$192,'Product Class UECs'!$D$71:$D$77)","v":0},{"$f":"SUMPRODUCT('Efficiency Dist - MF'!BE$186:BE$192,'Product Class UECs'!$D$71:$D$77)","v":0},{"$f":"SUMPRODUCT('Efficiency Dist - MF'!BF$186:BF$192,'Product Class UECs'!$D$71:$D$77)","v":0},{"$f":"SUMPRODUCT('Efficiency Dist - MF'!BG$186:BG$192,'Product Class UECs'!$D$71:$D$77)","v":0}]
[null,null,"PC 8 - Mobile Home Electric Furnace / Modular Blower Fan (MH-EF/MB)",{"$f":"SUMPRODUCT('Efficiency Dist - MF'!F$212:F$218,'Product Class UECs'!$D$81:$D$87)","v":0},{"$f":"SUMPRODUCT('Efficiency Dist - MF'!G$212:G$218,'Product Class UECs'!$D$81:$D$87)","v":0},{"$f":"SUMPRODUCT('Efficiency Dist - MF'!H$212:H$218,'Product Class UECs'!$D$81:$D$87)","v":0},{"$f":"SUMPRODUCT('Efficiency Dist - MF'!I$212:I$218,'Product Class UECs'!$D$81:$D$87)","v":0},{"$f":"SUMPRODUCT('Efficiency Dist - MF'!J$212:J$218,'Product Class UECs'!$D$81:$D$87)","v":0},{"$f":"SUMPRODUCT('Efficiency Dist - MF'!K$212:K$218,'Product Class UECs'!$D$81:$D$87)","v":0},{"$f":"SUMPRODUCT('Efficiency Dist - MF'!L$212:L$218,'Product Class UECs'!$D$81:$D$87)","v":0},{"$f":"SUMPRODUCT('Efficiency Dist - MF'!M$212:M$218,'Product Class UECs'!$D$81:$D$87)","v":0},{"$f":"SUMPRODUCT('Efficiency Dist - MF'!N$212:N$218,'Product Class UECs'!$D$81:$D$87)","v":0},{"$f":"SUMPRODUCT('Efficiency Dist - MF'!O$212:O$218,'Product Class UECs'!$D$81:$D$87)","v":0},{"$f":"SUMPRODUCT('Efficiency Dist - MF'!P$212:P$218,'Product Class UECs'!$D$81:$D$87)","v":0},{"$f":"SUMPRODUCT('Efficiency Dist - MF'!Q$212:Q$218,'Product Class UECs'!$D$81:$D$87)","v":0},{"$f":"SUMPRODUCT('Efficiency Dist - MF'!R$212:R$218,'Product Class UECs'!$D$81:$D$87)","v":0},{"$f":"SUMPRODUCT('Efficiency Dist - MF'!S$212:S$218,'Product Class UECs'!$D$81:$D$87)","v":0},{"$f":"SUMPRODUCT('Efficiency Dist - MF'!T$212:T$218,'Product Class UECs'!$D$81:$D$87)","v":0},{"$f":"SUMPRODUCT('Efficiency Dist - MF'!U$212:U$218,'Product Class UECs'!$D$81:$D$87)","v":0},{"$f":"SUMPRODUCT('Efficiency Dist - MF'!V$212:V$218,'Product Class UECs'!$D$81:$D$87)","v":0},{"$f":"SUMPRODUCT('Efficiency Dist - MF'!W$212:W$218,'Product Class UECs'!$D$81:$D$87)","v":0},{"$f":"SUMPRODUCT('Efficiency Dist - MF'!X$212:X$218,'Product Class UECs'!$D$81:$D$87)","v":0},{"$f":"SUMPRODUCT('Efficiency Dist - MF'!Y$212:Y$218,'Product Class UECs'!$D$81:$D$87)","v":0},{"$f":"SUMPRODUCT('Efficiency Dist - MF'!Z$212:Z$218,'Product Class UECs'!$D$81:$D$87)","v":0},{"$f":"SUMPRODUCT('Efficiency Dist - MF'!AA$212:AA$218,'Product Class UECs'!$D$81:$D$87)","v":0},{"$f":"SUMPRODUCT('Efficiency Dist - MF'!AB$212:AB$218,'Product Class UECs'!$D$81:$D$87)","v":0},{"$f":"SUMPRODUCT('Efficiency Dist - MF'!AC$212:AC$218,'Product Class UECs'!$D$81:$D$87)","v":0},{"$f":"SUMPRODUCT('Efficiency Dist - MF'!AD$212:AD$218,'Product Class UECs'!$D$81:$D$87)","v":0},{"$f":"SUMPRODUCT('Efficiency Dist - MF'!AE$212:AE$218,'Product Class UECs'!$D$81:$D$87)","v":0},{"$f":"SUMPRODUCT('Efficiency Dist - MF'!AF$212:AF$218,'Product Class UECs'!$D$81:$D$87)","v":0},{"$f":"SUMPRODUCT('Efficiency Dist - MF'!AG$212:AG$218,'Product Class UECs'!$D$81:$D$87)","v":0},{"$f":"SUMPRODUCT('Efficiency Dist - MF'!AH$212:AH$218,'Product Class UECs'!$D$81:$D$87)","v":0},{"$f":"SUMPRODUCT('Efficiency Dist - MF'!AI$212:AI$218,'Product Class UECs'!$D$81:$D$87)","v":0},{"$f":"SUMPRODUCT('Efficiency Dist - MF'!AJ$212:AJ$218,'Product Class UECs'!$D$81:$D$87)","v":0},{"$f":"SUMPRODUCT('Efficiency Dist - MF'!AK$212:AK$218,'Product Class UECs'!$D$81:$D$87)","v":0},{"$f":"SUMPRODUCT('Efficiency Dist - MF'!AL$212:AL$218,'Product Class UECs'!$D$81:$D$87)","v":0},{"$f":"SUMPRODUCT('Efficiency Dist - MF'!AM$212:AM$218,'Product Class UECs'!$D$81:$D$87)","v":0},{"$f":"SUMPRODUCT('Efficiency Dist - MF'!AN$212:AN$218,'Product Class UECs'!$D$81:$D$87)","v":0},{"$f":"SUMPRODUCT('Efficiency Dist - MF'!AO$212:AO$218,'Product Class UECs'!$D$81:$D$87)","v":0},{"$f":"SUMPRODUCT('Efficiency Dist - MF'!AP$212:AP$218,'Product Class UECs'!$D$81:$D$87)","v":0},{"$f":"SUMPRODUCT('Efficiency Dist - MF'!AQ$212:AQ$218,'Product Class UECs'!$D$81:$D$87)","v":0},{"$f":"SUMPRODUCT('Efficiency Dist - MF'!AR$212:AR$218,'Product Class UECs'!$D$81:$D$87)","v":0},{"$f":"SUMPRODUCT('Efficiency Dist - MF'!AS$212:AS$218,'Product Class UECs'!$D$81:$D$87)","v":0},{"$f":"SUMPRODUCT('Efficiency Dist - MF'!AT$212:AT$218,'Product Class UECs'!$D$81:$D$87)","v":0},{"$f":"SUMPRODUCT('Efficiency Dist - MF'!AU$212:AU$218,'Product Class UECs'!$D$81:$D$87)","v":0},{"$f":"SUMPRODUCT('Efficiency Dist - MF'!AV$212:AV$218,'Product Class UECs'!$D$81:$D$87)","v":0},{"$f":"SUMPRODUCT('Efficiency Dist - MF'!AW$212:AW$218,'Product Class UECs'!$D$81:$D$87)","v":0},{"$f":"SUMPRODUCT('Efficiency Dist - MF'!AX$212:AX$218,'Product Class UECs'!$D$81:$D$87)","v":0},{"$f":"SUMPRODUCT('Efficiency Dist - MF'!AY$212:AY$218,'Product Class UECs'!$D$81:$D$87)","v":0},{"$f":"SUMPRODUCT('Efficiency Dist - MF'!AZ$212:AZ$218,'Product Class UECs'!$D$81:$D$87)","v":0},{"$f":"SUMPRODUCT('Efficiency Dist - MF'!BA$212:BA$218,'Product Class UECs'!$D$81:$D$87)","v":0},{"$f":"SUMPRODUCT('Efficiency Dist - MF'!BB$212:BB$218,'Product Class UECs'!$D$81:$D$87)","v":0},{"$f":"SUMPRODUCT('Efficiency Dist - MF'!BC$212:BC$218,'Product Class UECs'!$D$81:$D$87)","v":0},{"$f":"SUMPRODUCT('Efficiency Dist - MF'!BD$212:BD$218,'Product Class UECs'!$D$81:$D$87)","v":0},{"$f":"SUMPRODUCT('Efficiency Dist - MF'!BE$212:BE$218,'Product Class UECs'!$D$81:$D$87)","v":0},{"$f":"SUMPRODUCT('Efficiency Dist - MF'!BF$212:BF$218,'Product Class UECs'!$D$81:$D$87)","v":0},{"$f":"SUMPRODUCT('Efficiency Dist - MF'!BG$212:BG$218,'Product Class UECs'!$D$81:$D$87)","v":0}]
[]
[null,null,"Source/Rationale"]
[]
[]
[]
[null,null,"Manufactured Homes"]
[]
[null,null,"PRE-Case",1981,{"$f":"D63+1","v":1982},1983,1984,1985,1986,1987,1988,1989,1990,1991,1992,1993,{"$f":"P63+1","v":1994},1995,1996,1997,1998,1999,2000,2001,2002,2003,2004,2005,2006,2007,2008,2009,2010,2011,2012,2013,2014,2015,2016,2017,2018,2019,2020,2021,2022,2023,2024,2025,2026,2027,2028,2029,2030,2031,2032,2033,2034]
[null,null,{"$f":"'Product Classes'!H10&\" - \"&OFFSET('Product Classes'!$C$9,MATCH('Product Classes'!H10,MODEL_PCS,0),0)","v":"PC 1 - Non-Weatherized, Non-Condensing Gas Furnace Fan (NWG-NC)"},{"$f":"SUMPRODUCT('Efficiency Dist - MH'!F$19:F$25,'Product Class UECs'!$D$11:$D$17)","v":0},{"$f":"SUMPRODUCT('Efficiency Dist - MH'!G$19:G$25,'Product Class UECs'!$D$11:$D$17)","v":0},{"$f":"SUMPRODUCT('Efficiency Dist - MH'!H$19:H$25,'Product Class UECs'!$D$11:$D$17)","v":0},{"$f":"SUMPRODUCT('Efficiency Dist - MH'!I$19:I$25,'Product Class UECs'!$D$11:$D$17)","v":0},{"$f":"SUMPRODUCT('Efficiency Dist - MH'!J$19:J$25,'Product Class UECs'!$D$11:$D$17)","v":0},{"$f":"SUMPRODUCT('Efficiency Dist - MH'!K$19:K$25,'Product Class UECs'!$D$11:$D$17)","v":0},{"$f":"SUMPRODUCT('Efficiency Dist - MH'!L$19:L$25,'Product Class UECs'!$D$11:$D$17)","v":0},{"$f":"SUMPRODUCT('Efficiency Dist - MH'!M$19:M$25,'Product Class UECs'!$D$11:$D$17)","v":0},{"$f":"SUMPRODUCT('Efficiency Dist - MH'!N$19:N$25,'Product Class UECs'!$D$11:$D$17)","v":0},{"$f":"SUMPRODUCT('Efficiency Dist - MH'!O$19:O$25,'Product Class UECs'!$D$11:$D$17)","v":0},{"$f":"SUMPRODUCT('Efficiency Dist - MH'!P$19:P$25,'Product Class UECs'!$D$11:$D$17)","v":0},{"$f":"SUMPRODUCT('Efficiency Dist - MH'!Q$19:Q$25,'Product Class UECs'!$D$11:$D$17)","v":0},{"$f":"SUMPRODUCT('Efficiency Dist - MH'!R$19:R$25,'Product Class UECs'!$D$11:$D$17)","v":0},{"$f":"SUMPRODUCT('Efficiency Dist - MH'!S$19:S$25,'Product Class UECs'!$D$11:$D$17)","v":0},{"$f":"SUMPRODUCT('Efficiency Dist - MH'!T$19:T$25,'Product Class UECs'!$D$11:$D$17)","v":0},{"$f":"SUMPRODUCT('Efficiency Dist - MH'!U$19:U$25,'Product Class UECs'!$D$11:$D$17)","v":0},{"$f":"SUMPRODUCT('Efficiency Dist - MH'!V$19:V$25,'Product Class UECs'!$D$11:$D$17)","v":0},{"$f":"SUMPRODUCT('Efficiency Dist - MH'!W$19:W$25,'Product Class UECs'!$D$11:$D$17)","v":0},{"$f":"SUMPRODUCT('Efficiency Dist - MH'!X$19:X$25,'Product Class UECs'!$D$11:$D$17)","v":0},{"$f":"SUMPRODUCT('Efficiency Dist - MH'!Y$19:Y$25,'Product Class UECs'!$D$11:$D$17)","v":0},{"$f":"SUMPRODUCT('Efficiency Dist - MH'!Z$19:Z$25,'Product Class UECs'!$D$11:$D$17)","v":0},{"$f":"SUMPRODUCT('Efficiency Dist - MH'!AA$19:AA$25,'Product Class UECs'!$D$11:$D$17)","v":0},{"$f":"SUMPRODUCT('Efficiency Dist - MH'!AB$19:AB$25,'Product Class UECs'!$D$11:$D$17)","v":0},{"$f":"SUMPRODUCT('Efficiency Dist - MH'!AC$19:AC$25,'Product Class UECs'!$D$11:$D$17)","v":0},{"$f":"SUMPRODUCT('Efficiency Dist - MH'!AD$19:AD$25,'Product Class UECs'!$D$11:$D$17)","v":0},{"$f":"SUMPRODUCT('Efficiency Dist - MH'!AE$19:AE$25,'Product Class UECs'!$D$11:$D$17)","v":0},{"$f":"SUMPRODUCT('Efficiency Dist - MH'!AF$19:AF$25,'Product Class UECs'!$D$11:$D$17)","v":0},{"$f":"SUMPRODUCT('Efficiency Dist - MH'!AG$19:AG$25,'Product Class UECs'!$D$11:$D$17)","v":0},{"$f":"SUMPRODUCT('Efficiency Dist - MH'!AH$19:AH$25,'Product Class UECs'!$D$11:$D$17)","v":0},{"$f":"SUMPRODUCT('Efficiency Dist - MH'!AI$19:AI$25,'Product Class UECs'!$D$11:$D$17)","v":0},{"$f":"SUMPRODUCT('Efficiency Dist - MH'!AJ$19:AJ$25,'Product Class UECs'!$D$11:$D$17)","v":0},{"$f":"SUMPRODUCT('Efficiency Dist - MH'!AK$19:AK$25,'Product Class UECs'!$D$11:$D$17)","v":0},{"$f":"SUMPRODUCT('Efficiency Dist - MH'!AL$19:AL$25,'Product Class UECs'!$D$11:$D$17)","v":0},{"$f":"SUMPRODUCT('Efficiency Dist - MH'!AM$19:AM$25,'Product Class UECs'!$D$11:$D$17)","v":0},{"$f":"SUMPRODUCT('Efficiency Dist - MH'!AN$19:AN$25,'Product Class UECs'!$D$11:$D$17)","v":0},{"$f":"SUMPRODUCT('Efficiency Dist - MH'!AO$19:AO$25,'Product Class UECs'!$D$11:$D$17)","v":0},{"$f":"SUMPRODUCT('Efficiency Dist - MH'!AP$19:AP$25,'Product Class UECs'!$D$11:$D$17)","v":0},{"$f":"SUMPRODUCT('Efficiency Dist - MH'!AQ$19:AQ$25,'Product Class UECs'!$D$11:$D$17)","v":0},{"$f":"SUMPRODUCT('Efficiency Dist - MH'!AR$19:AR$25,'Product Class UECs'!$D$11:$D$17)","v":0},{"$f":"SUMPRODUCT('Efficiency Dist - MH'!AS$19:AS$25,'Product Class UECs'!$D$11:$D$17)","v":0},{"$f":"SUMPRODUCT('Efficiency Dist - MH'!AT$19:AT$25,'Product Class UECs'!$D$11:$D$17)","v":0},{"$f":"SUMPRODUCT('Efficiency Dist - MH'!AU$19:AU$25,'Product Class UECs'!$D$11:$D$17)","v":0},{"$f":"SUMPRODUCT('Efficiency Dist - MH'!AV$19:AV$25,'Product Class UECs'!$D$11:$D$17)","v":0},{"$f":"SUMPRODUCT('Efficiency Dist - MH'!AW$19:AW$25,'Product Class UECs'!$D$11:$D$17)","v":0},{"$f":"SUMPRODUCT('Efficiency Dist - MH'!AX$19:AX$25,'Product Class UECs'!$D$11:$D$17)","v":0},{"$f":"SUMPRODUCT('Efficiency Dist - MH'!AY$19:AY$25,'Product Class UECs'!$D$11:$D$17)","v":0},{"$f":"SUMPRODUCT('Efficiency Dist - MH'!AZ$19:AZ$25,'Product Class UECs'!$D$11:$D$17)","v":0},{"$f":"SUMPRODUCT('Efficiency Dist - MH'!BA$19:BA$25,'Product Class UECs'!$D$11:$D$17)","v":0},{"$f":"SUMPRODUCT('Efficiency Dist - MH'!BB$19:BB$25,'Product Class UECs'!$D$11:$D$17)","v":0},{"$f":"SUMPRODUCT('Efficiency Dist - MH'!BC$19:BC$25,'Product Class UECs'!$D$11:$D$17)","v":0},{"$f":"SUMPRODUCT('Efficiency Dist - MH'!BD$19:BD$25,'Product Class UECs'!$D$11:$D$17)","v":0},{"$f":"SUMPRODUCT('Efficiency Dist - MH'!BE$19:BE$25,'Product Class UECs'!$D$11:$D$17)","v":0},{"$f":"SUMPRODUCT('Efficiency Dist - MH'!BF$19:BF$25,'Product Class UECs'!$D$11:$D$17)","v":0},{"$f":"SUMPRODUCT('Efficiency Dist - MH'!BG$19:BG$25,'Product Class UECs'!$D$11:$D$17)","v":0}]
[null,null,{"$f":"'Product Classes'!H11&\" - \"&OFFSET('Product Classes'!$C$9,MATCH('Product Classes'!H11,MODEL_PCS,0),0)","v":"PC 2 - Non-Weatherized, Condensing Gas Furnace Fan (NWG-C)"},{"$f":"SUMPRODUCT('Efficiency Dist - MH'!F$45:F$51,'Product Class UECs'!$D$21:$D$27)","v":0},{"$f":"SUMPRODUCT('Efficiency Dist - MH'!G$45:G$51,'Product Class UECs'!$D$21:$D$27)","v":0},{"$f":"SUMPRODUCT('Efficiency Dist - MH'!H$45:H$51,'Product Class UECs'!$D$21:$D$27)","v":0},{"$f":"SUMPRODUCT('Efficiency Dist - MH'!I$45:I$51,'Product Class UECs'!$D$21:$D$27)","v":0},{"$f":"SUMPRODUCT('Efficiency Dist - MH'!J$45:J$51,'Product Class UECs'!$D$21:$D$27)","v":0},{"$f":"SUMPRODUCT('Efficiency Dist - MH'!K$45:K$51,'Product Class UECs'!$D$21:$D$27)","v":0},{"$f":"SUMPRODUCT('Efficiency Dist - MH'!L$45:L$51,'Product Class UECs'!$D$21:$D$27)","v":0},{"$f":"SUMPRODUCT('Efficiency Dist - MH'!M$45:M$51,'Product Class UECs'!$D$21:$D$27)","v":0},{"$f":"SUMPRODUCT('Efficiency Dist - MH'!N$45:N$51,'Product Class UECs'!$D$21:$D$27)","v":0},{"$f":"SUMPRODUCT('Efficiency Dist - MH'!O$45:O$51,'Product Class UECs'!$D$21:$D$27)","v":0},{"$f":"SUMPRODUCT('Efficiency Dist - MH'!P$45:P$51,'Product Class UECs'!$D$21:$D$27)","v":0},{"$f":"SUMPRODUCT('Efficiency Dist - MH'!Q$45:Q$51,'Product Class UECs'!$D$21:$D$27)","v":0},{"$f":"SUMPRODUCT('Efficiency Dist - MH'!R$45:R$51,'Product Class UECs'!$D$21:$D$27)","v":0},{"$f":"SUMPRODUCT('Efficiency Dist - MH'!S$45:S$51,'Product Class UECs'!$D$21:$D$27)","v":0},{"$f":"SUMPRODUCT('Efficiency Dist - MH'!T$45:T$51,'Product Class UECs'!$D$21:$D$27)","v":0},{"$f":"SUMPRODUCT('Efficiency Dist - MH'!U$45:U$51,'Product Class UECs'!$D$21:$D$27)","v":0},{"$f":"SUMPRODUCT('Efficiency Dist - MH'!V$45:V$51,'Product Class UECs'!$D$21:$D$27)","v":0},{"$f":"SUMPRODUCT('Efficiency Dist - MH'!W$45:W$51,'Product Class UECs'!$D$21:$D$27)","v":0},{"$f":"SUMPRODUCT('Efficiency Dist - MH'!X$45:X$51,'Product Class UECs'!$D$21:$D$27)","v":0},{"$f":"SUMPRODUCT('Efficiency Dist - MH'!Y$45:Y$51,'Product Class UECs'!$D$21:$D$27)","v":0},{"$f":"SUMPRODUCT('Efficiency Dist - MH'!Z$45:Z$51,'Product Class UECs'!$D$21:$D$27)","v":0},{"$f":"SUMPRODUCT('Efficiency Dist - MH'!AA$45:AA$51,'Product Class UECs'!$D$21:$D$27)","v":0},{"$f":"SUMPRODUCT('Efficiency Dist - MH'!AB$45:AB$51,'Product Class UECs'!$D$21:$D$27)","v":0},{"$f":"SUMPRODUCT('Efficiency Dist - MH'!AC$45:AC$51,'Product Class UECs'!$D$21:$D$27)","v":0},{"$f":"SUMPRODUCT('Efficiency Dist - MH'!AD$45:AD$51,'Product Class UECs'!$D$21:$D$27)","v":0},{"$f":"SUMPRODUCT('Efficiency Dist - MH'!AE$45:AE$51,'Product Class UECs'!$D$21:$D$27)","v":0},{"$f":"SUMPRODUCT('Efficiency Dist - MH'!AF$45:AF$51,'Product Class UECs'!$D$21:$D$27)","v":0},{"$f":"SUMPRODUCT('Efficiency Dist - MH'!AG$45:AG$51,'Product Class UECs'!$D$21:$D$27)","v":0},{"$f":"SUMPRODUCT('Efficiency Dist - MH'!AH$45:AH$51,'Product Class UECs'!$D$21:$D$27)","v":0},{"$f":"SUMPRODUCT('Efficiency Dist - MH'!AI$45:AI$51,'Product Class UECs'!$D$21:$D$27)","v":0},{"$f":"SUMPRODUCT('Efficiency Dist - MH'!AJ$45:AJ$51,'Product Class UECs'!$D$21:$D$27)","v":0},{"$f":"SUMPRODUCT('Efficiency Dist - MH'!AK$45:AK$51,'Product Class UECs'!$D$21:$D$27)","v":0},{"$f":"SUMPRODUCT('Efficiency Dist - MH'!AL$45:AL$51,'Product Class UECs'!$D$21:$D$27)","v":0},{"$f":"SUMPRODUCT('Efficiency Dist - MH'!AM$45:AM$51,'Product Class UECs'!$D$21:$D$27)","v":0},{"$f":"SUMPRODUCT('Efficiency Dist - MH'!AN$45:AN$51,'Product Class UECs'!$D$21:$D$27)","v":0},{"$f":"SUMPRODUCT('Efficiency Dist - MH'!AO$45:AO$51,'Product Class UECs'!$D$21:$D$27)","v":0},{"$f":"SUMPRODUCT('Efficiency Dist - MH'!AP$45:AP$51,'Product Class UECs'!$D$21:$D$27)","v":0},{"$f":"SUMPRODUCT('Efficiency Dist - MH'!AQ$45:AQ$51,'Product Class UECs'!$D$21:$D$27)","v":0},{"$f":"SUMPRODUCT('Efficiency Dist - MH'!AR$45:AR$51,'Product Class UECs'!$D$21:$D$27)","v":0},{"$f":"SUMPRODUCT('Efficiency Dist - MH'!AS$45:AS$51,'Product Class UECs'!$D$21:$D$27)","v":0},{"$f":"SUMPRODUCT('Efficiency Dist - MH'!AT$45:AT$51,'Product Class UECs'!$D$21:$D$27)","v":0},{"$f":"SUMPRODUCT('Efficiency Dist - MH'!AU$45:AU$51,'Product Class UECs'!$D$21:$D$27)","v":0},{"$f":"SUMPRODUCT('Efficiency Dist - MH'!AV$45:AV$51,'Product Class UECs'!$D$21:$D$27)","v":0},{"$f":"SUMPRODUCT('Efficiency Dist - MH'!AW$45:AW$51,'Product Class UECs'!$D$21:$D$27)","v":0},{"$f":"SUMPRODUCT('Efficiency Dist - MH'!AX$45:AX$51,'Product Class UECs'!$D$21:$D$27)","v":0},{"$f":"SUMPRODUCT('Efficiency Dist - MH'!AY$45:AY$51,'Product Class UECs'!$D$21:$D$27)","v":0},{"$f":"SUMPRODUCT('Efficiency Dist - MH'!AZ$45:AZ$51,'Product Class UECs'!$D$21:$D$27)","v":0},{"$f":"SUMPRODUCT('Efficiency Dist - MH'!BA$45:BA$51,'Product Class UECs'!$D$21:$D$27)","v":0},{"$f":"SUMPRODUCT('Efficiency Dist - MH'!BB$45:BB$51,'Product Class UECs'!$D$21:$D$27)","v":0},{"$f":"SUMPRODUCT('Efficiency Dist - MH'!BC$45:BC$51,'Product Class UECs'!$D$21:$D$27)","v":0},{"$f":"SUMPRODUCT('Efficiency Dist - MH'!BD$45:BD$51,'Product Class UECs'!$D$21:$D$27)","v":0},{"$f":"SUMPRODUCT('Efficiency Dist - MH'!BE$45:BE$51,'Product Class UECs'!$D$21:$D$27)","v":0},{"$f":"SUMPRODUCT('Efficiency Dist - MH'!BF$45:BF$51,'Product Class UECs'!$D$21:$D$27)","v":0},{"$f":"SUMPRODUCT('Efficiency Dist - MH'!BG$45:BG$51,'Product Class UECs'!$D$21:$D$27)","v":0}]
[null,null,{"$f":"'Product Classes'!H12&\" - \"&OFFSET('Product Classes'!$C$9,MATCH('Product Classes'!H12,MODEL_PCS,0),0)","v":"PC 3 - Weatherized Non-Condensing Gas Furnace Fan (WG-NC)"},{"$f":"SUMPRODUCT('Efficiency Dist - MH'!F$71:F$77,'Product Class UECs'!$D$31:$D$37)","v":0},{"$f":"SUMPRODUCT('Efficiency Dist - MH'!G$71:G$77,'Product Class UECs'!$D$31:$D$37)","v":0},{"$f":"SUMPRODUCT('Efficiency Dist - MH'!H$71:H$77,'Product Class UECs'!$D$31:$D$37)","v":0},{"$f":"SUMPRODUCT('Efficiency Dist - MH'!I$71:I$77,'Product Class UECs'!$D$31:$D$37)","v":0},{"$f":"SUMPRODUCT('Efficiency Dist - MH'!J$71:J$77,'Product Class UECs'!$D$31:$D$37)","v":0},{"$f":"SUMPRODUCT('Efficiency Dist - MH'!K$71:K$77,'Product Class UECs'!$D$31:$D$37)","v":0},{"$f":"SUMPRODUCT('Efficiency Dist - MH'!L$71:L$77,'Product Class UECs'!$D$31:$D$37)","v":0},{"$f":"SUMPRODUCT('Efficiency Dist - MH'!M$71:M$77,'Product Class UECs'!$D$31:$D$37)","v":0},{"$f":"SUMPRODUCT('Efficiency Dist - MH'!N$71:N$77,'Product Class UECs'!$D$31:$D$37)","v":0},{"$f":"SUMPRODUCT('Efficiency Dist - MH'!O$71:O$77,'Product Class UECs'!$D$31:$D$37)","v":0},{"$f":"SUMPRODUCT('Efficiency Dist - MH'!P$71:P$77,'Product Class UECs'!$D$31:$D$37)","v":0},{"$f":"SUMPRODUCT('Efficiency Dist - MH'!Q$71:Q$77,'Product Class UECs'!$D$31:$D$37)","v":0},{"$f":"SUMPRODUCT('Efficiency Dist - MH'!R$71:R$77,'Product Class UECs'!$D$31:$D$37)","v":0},{"$f":"SUMPRODUCT('Efficiency Dist - MH'!S$71:S$77,'Product Class UECs'!$D$31:$D$37)","v":0},{"$f":"SUMPRODUCT('Efficiency Dist - MH'!T$71:T$77,'Product Class UECs'!$D$31:$D$37)","v":0},{"$f":"SUMPRODUCT('Efficiency Dist - MH'!U$71:U$77,'Product Class UECs'!$D$31:$D$37)","v":0},{"$f":"SUMPRODUCT('Efficiency Dist - MH'!V$71:V$77,'Product Class UECs'!$D$31:$D$37)","v":0},{"$f":"SUMPRODUCT('Efficiency Dist - MH'!W$71:W$77,'Product Class UECs'!$D$31:$D$37)","v":0},{"$f":"SUMPRODUCT('Efficiency Dist - MH'!X$71:X$77,'Product Class UECs'!$D$31:$D$37)","v":0},{"$f":"SUMPRODUCT('Efficiency Dist - MH'!Y$71:Y$77,'Product Class UECs'!$D$31:$D$37)","v":0},{"$f":"SUMPRODUCT('Efficiency Dist - MH'!Z$71:Z$77,'Product Class UECs'!$D$31:$D$37)","v":0},{"$f":"SUMPRODUCT('Efficiency Dist - MH'!AA$71:AA$77,'Product Class UECs'!$D$31:$D$37)","v":0},{"$f":"SUMPRODUCT('Efficiency Dist - MH'!AB$71:AB$77,'Product Class UECs'!$D$31:$D$37)","v":0},{"$f":"SUMPRODUCT('Efficiency Dist - MH'!AC$71:AC$77,'Product Class UECs'!$D$31:$D$37)","v":0},{"$f":"SUMPRODUCT('Efficiency Dist - MH'!AD$71:AD$77,'Product Class UECs'!$D$31:$D$37)","v":0},{"$f":"SUMPRODUCT('Efficiency Dist - MH'!AE$71:AE$77,'Product Class UECs'!$D$31:$D$37)","v":0},{"$f":"SUMPRODUCT('Efficiency Dist - MH'!AF$71:AF$77,'Product Class UECs'!$D$31:$D$37)","v":0},{"$f":"SUMPRODUCT('Efficiency Dist - MH'!AG$71:AG$77,'Product Class UECs'!$D$31:$D$37)","v":0},{"$f":"SUMPRODUCT('Efficiency Dist - MH'!AH$71:AH$77,'Product Class UECs'!$D$31:$D$37)","v":0},{"$f":"SUMPRODUCT('Efficiency Dist - MH'!AI$71:AI$77,'Product Class UECs'!$D$31:$D$37)","v":0},{"$f":"SUMPRODUCT('Efficiency Dist - MH'!AJ$71:AJ$77,'Product Class UECs'!$D$31:$D$37)","v":0},{"$f":"SUMPRODUCT('Efficiency Dist - MH'!AK$71:AK$77,'Product Class UECs'!$D$31:$D$37)","v":0},{"$f":"SUMPRODUCT('Efficiency Dist - MH'!AL$71:AL$77,'Product Class UECs'!$D$31:$D$37)","v":0},{"$f":"SUMPRODUCT('Efficiency Dist - MH'!AM$71:AM$77,'Product Class UECs'!$D$31:$D$37)","v":0},{"$f":"SUMPRODUCT('Efficiency Dist - MH'!AN$71:AN$77,'Product Class UECs'!$D$31:$D$37)","v":0},{"$f":"SUMPRODUCT('Efficiency Dist - MH'!AO$71:AO$77,'Product Class UECs'!$D$31:$D$37)","v":0},{"$f":"SUMPRODUCT('Efficiency Dist - MH'!AP$71:AP$77,'Product Class UECs'!$D$31:$D$37)","v":0},{"$f":"SUMPRODUCT('Efficiency Dist - MH'!AQ$71:AQ$77,'Product Class UECs'!$D$31:$D$37)","v":0},{"$f":"SUMPRODUCT('Efficiency Dist - MH'!AR$71:AR$77,'Product Class UECs'!$D$31:$D$37)","v":0},{"$f":"SUMPRODUCT('Efficiency Dist - MH'!AS$71:AS$77,'Product Class UECs'!$D$31:$D$37)","v":0},{"$f":"SUMPRODUCT('Efficiency Dist - MH'!AT$71:AT$77,'Product Class UECs'!$D$31:$D$37)","v":0},{"$f":"SUMPRODUCT('Efficiency Dist - MH'!AU$71:AU$77,'Product Class UECs'!$D$31:$D$37)","v":0},{"$f":"SUMPRODUCT('Efficiency Dist - MH'!AV$71:AV$77,'Product Class UECs'!$D$31:$D$37)","v":0},{"$f":"SUMPRODUCT('Efficiency Dist - MH'!AW$71:AW$77,'Product Class UECs'!$D$31:$D$37)","v":0},{"$f":"SUMPRODUCT('Efficiency Dist - MH'!AX$71:AX$77,'Product Class UECs'!$D$31:$D$37)","v":0},{"$f":"SUMPRODUCT('Efficiency Dist - MH'!AY$71:AY$77,'Product Class UECs'!$D$31:$D$37)","v":0},{"$f":"SUMPRODUCT('Efficiency Dist - MH'!AZ$71:AZ$77,'Product Class UECs'!$D$31:$D$37)","v":0},{"$f":"SUMPRODUCT('Efficiency Dist - MH'!BA$71:BA$77,'Product Class UECs'!$D$31:$D$37)","v":0},{"$f":"SUMPRODUCT('Efficiency Dist - MH'!BB$71:BB$77,'Product Class UECs'!$D$31:$D$37)","v":0},{"$f":"SUMPRODUCT('Efficiency Dist - MH'!BC$71:BC$77,'Product Class UECs'!$D$31:$D$37)","v":0},{"$f":"SUMPRODUCT('Efficiency Dist - MH'!BD$71:BD$77,'Product Class UECs'!$D$31:$D$37)","v":0},{"$f":"SUMPRODUCT('Efficiency Dist - MH'!BE$71:BE$77,'Product Class UECs'!$D$31:$D$37)","v":0},{"$f":"SUMPRODUCT('Efficiency Dist - MH'!BF$71:BF$77,'Product Class UECs'!$D$31:$D$37)","v":0},{"$f":"SUMPRODUCT('Efficiency Dist - MH'!BG$71:BG$77,'Product Class UECs'!$D$31:$D$37)","v":0}]
[null,null,{"$f":"'Product Classes'!H13&\" - \"&OFFSET('Product Classes'!$C$9,MATCH('Product Classes'!H13,MODEL_PCS,0),0)","v":"PC 4 - Non-Weatherized, Non-Condensing Oil Furnace Fan (NWO-NC)"},{"$f":"SUMPRODUCT('Efficiency Dist - MH'!F$97:F$103,'Product Class UECs'!$D$41:$D$47)","v":0},{"$f":"SUMPRODUCT('Efficiency Dist - MH'!G$97:G$103,'Product Class UECs'!$D$41:$D$47)","v":0},{"$f":"SUMPRODUCT('Efficiency Dist - MH'!H$97:H$103,'Product Class UECs'!$D$41:$D$47)","v":0},{"$f":"SUMPRODUCT('Efficiency Dist - MH'!I$97:I$103,'Product Class UECs'!$D$41:$D$47)","v":0},{"$f":"SUMPRODUCT('Efficiency Dist - MH'!J$97:J$103,'Product Class UECs'!$D$41:$D$47)","v":0},{"$f":"SUMPRODUCT('Efficiency Dist - MH'!K$97:K$103,'Product Class UECs'!$D$41:$D$47)","v":0},{"$f":"SUMPRODUCT('Efficiency Dist - MH'!L$97:L$103,'Product Class UECs'!$D$41:$D$47)","v":0},{"$f":"SUMPRODUCT('Efficiency Dist - MH'!M$97:M$103,'Product Class UECs'!$D$41:$D$47)","v":0},{"$f":"SUMPRODUCT('Efficiency Dist - MH'!N$97:N$103,'Product Class UECs'!$D$41:$D$47)","v":0},{"$f":"SUMPRODUCT('Efficiency Dist - MH'!O$97:O$103,'Product Class UECs'!$D$41:$D$47)","v":0},{"$f":"SUMPRODUCT('Efficiency Dist - MH'!P$97:P$103,'Product Class UECs'!$D$41:$D$47)","v":0},{"$f":"SUMPRODUCT('Efficiency Dist - MH'!Q$97:Q$103,'Product Class UECs'!$D$41:$D$47)","v":0},{"$f":"SUMPRODUCT('Efficiency Dist - MH'!R$97:R$103,'Product Class UECs'!$D$41:$D$47)","v":0},{"$f":"SUMPRODUCT('Efficiency Dist - MH'!S$97:S$103,'Product Class UECs'!$D$41:$D$47)","v":0},{"$f":"SUMPRODUCT('Efficiency Dist - MH'!T$97:T$103,'Product Class UECs'!$D$41:$D$47)","v":0},{"$f":"SUMPRODUCT('Efficiency Dist - MH'!U$97:U$103,'Product Class UECs'!$D$41:$D$47)","v":0},{"$f":"SUMPRODUCT('Efficiency Dist - MH'!V$97:V$103,'Product Class UECs'!$D$41:$D$47)","v":0},{"$f":"SUMPRODUCT('Efficiency Dist - MH'!W$97:W$103,'Product Class UECs'!$D$41:$D$47)","v":0},{"$f":"SUMPRODUCT('Efficiency Dist - MH'!X$97:X$103,'Product Class UECs'!$D$41:$D$47)","v":0},{"$f":"SUMPRODUCT('Efficiency Dist - MH'!Y$97:Y$103,'Product Class UECs'!$D$41:$D$47)","v":0},{"$f":"SUMPRODUCT('Efficiency Dist - MH'!Z$97:Z$103,'Product Class UECs'!$D$41:$D$47)","v":0},{"$f":"SUMPRODUCT('Efficiency Dist - MH'!AA$97:AA$103,'Product Class UECs'!$D$41:$D$47)","v":0},{"$f":"SUMPRODUCT('Efficiency Dist - MH'!AB$97:AB$103,'Product Class UECs'!$D$41:$D$47)","v":0},{"$f":"SUMPRODUCT('Efficiency Dist - MH'!AC$97:AC$103,'Product Class UECs'!$D$41:$D$47)","v":0},{"$f":"SUMPRODUCT('Efficiency Dist - MH'!AD$97:AD$103,'Product Class UECs'!$D$41:$D$47)","v":0},{"$f":"SUMPRODUCT('Efficiency Dist - MH'!AE$97:AE$103,'Product Class UECs'!$D$41:$D$47)","v":0},{"$f":"SUMPRODUCT('Efficiency Dist - MH'!AF$97:AF$103,'Product Class UECs'!$D$41:$D$47)","v":0},{"$f":"SUMPRODUCT('Efficiency Dist - MH'!AG$97:AG$103,'Product Class UECs'!$D$41:$D$47)","v":0},{"$f":"SUMPRODUCT('Efficiency Dist - MH'!AH$97:AH$103,'Product Class UECs'!$D$41:$D$47)","v":0},{"$f":"SUMPRODUCT('Efficiency Dist - MH'!AI$97:AI$103,'Product Class UECs'!$D$41:$D$47)","v":0},{"$f":"SUMPRODUCT('Efficiency Dist - MH'!AJ$97:AJ$103,'Product Class UECs'!$D$41:$D$47)","v":0},{"$f":"SUMPRODUCT('Efficiency Dist - MH'!AK$97:AK$103,'Product Class UECs'!$D$41:$D$47)","v":0},{"$f":"SUMPRODUCT('Efficiency Dist - MH'!AL$97:AL$103,'Product Class UECs'!$D$41:$D$47)","v":0},{"$f":"SUMPRODUCT('Efficiency Dist - MH'!AM$97:AM$103,'Product Class UECs'!$D$41:$D$47)","v":0},{"$f":"SUMPRODUCT('Efficiency Dist - MH'!AN$97:AN$103,'Product Class UECs'!$D$41:$D$47)","v":0},{"$f":"SUMPRODUCT('Efficiency Dist - MH'!AO$97:AO$103,'Product Class UECs'!$D$41:$D$47)","v":0},{"$f":"SUMPRODUCT('Efficiency Dist - MH'!AP$97:AP$103,'Product Class UECs'!$D$41:$D$47)","v":0},{"$f":"SUMPRODUCT('Efficiency Dist - MH'!AQ$97:AQ$103,'Product Class UECs'!$D$41:$D$47)","v":0},{"$f":"SUMPRODUCT('Efficiency Dist - MH'!AR$97:AR$103,'Product Class UECs'!$D$41:$D$47)","v":0},{"$f":"SUMPRODUCT('Efficiency Dist - MH'!AS$97:AS$103,'Product Class UECs'!$D$41:$D$47)","v":0},{"$f":"SUMPRODUCT('Efficiency Dist - MH'!AT$97:AT$103,'Product Class UECs'!$D$41:$D$47)","v":0},{"$f":"SUMPRODUCT('Efficiency Dist - MH'!AU$97:AU$103,'Product Class UECs'!$D$41:$D$47)","v":0},{"$f":"SUMPRODUCT('Efficiency Dist - MH'!AV$97:AV$103,'Product Class UECs'!$D$41:$D$47)","v":0},{"$f":"SUMPRODUCT('Efficiency Dist - MH'!AW$97:AW$103,'Product Class UECs'!$D$41:$D$47)","v":0},{"$f":"SUMPRODUCT('Efficiency Dist - MH'!AX$97:AX$103,'Product Class UECs'!$D$41:$D$47)","v":0},{"$f":"SUMPRODUCT('Efficiency Dist - MH'!AY$97:AY$103,'Product Class UECs'!$D$41:$D$47)","v":0},{"$f":"SUMPRODUCT('Efficiency Dist - MH'!AZ$97:AZ$103,'Product Class UECs'!$D$41:$D$47)","v":0},{"$f":"SUMPRODUCT('Efficiency Dist - MH'!BA$97:BA$103,'Product Class UECs'!$D$41:$D$47)","v":0},{"$f":"SUMPRODUCT('Efficiency Dist - MH'!BB$97:BB$103,'Product Class UECs'!$D$41:$D$47)","v":0},{"$f":"SUMPRODUCT('Efficiency Dist - MH'!BC$97:BC$103,'Product Class UECs'!$D$41:$D$47)","v":0},{"$f":"SUMPRODUCT('Efficiency Dist - MH'!BD$97:BD$103,'Product Class UECs'!$D$41:$D$47)","v":0},{"$f":"SUMPRODUCT('Efficiency Dist - MH'!BE$97:BE$103,'Product Class UECs'!$D$41:$D$47)","v":0},{"$f":"SUMPRODUCT('Efficiency Dist - MH'!BF$97:BF$103,'Product Class UECs'!$D$41:$D$47)","v":0},{"$f":"SUMPRODUCT('Efficiency Dist - MH'!BG$97:BG$103,'Product Class UECs'!$D$41:$D$47)","v":0}]
[null,null,{"$f":"'Product Classes'!H14&\" - \"&OFFSET('Product Classes'!$C$9,MATCH('Product Classes'!H14,MODEL_PCS,0),0)","v":"PC 5 - Non-Weatherized Electric Furnace / Modular Blower Fan (NWEF/NWMB)"},{"$f":"SUMPRODUCT('Efficiency Dist - MH'!F$123:F$129,'Product Class UECs'!$D$51:$D$57)","v":0},{"$f":"SUMPRODUCT('Efficiency Dist - MH'!G$123:G$129,'Product Class UECs'!$D$51:$D$57)","v":0},{"$f":"SUMPRODUCT('Efficiency Dist - MH'!H$123:H$129,'Product Class UECs'!$D$51:$D$57)","v":0},{"$f":"SUMPRODUCT('Efficiency Dist - MH'!I$123:I$129,'Product Class UECs'!$D$51:$D$57)","v":0},{"$f":"SUMPRODUCT('Efficiency Dist - MH'!J$123:J$129,'Product Class UECs'!$D$51:$D$57)","v":0},{"$f":"SUMPRODUCT('Efficiency Dist - MH'!K$123:K$129,'Product Class UECs'!$D$51:$D$57)","v":0},{"$f":"SUMPRODUCT('Efficiency Dist - MH'!L$123:L$129,'Product Class UECs'!$D$51:$D$57)","v":0},{"$f":"SUMPRODUCT('Efficiency Dist - MH'!M$123:M$129,'Product Class UECs'!$D$51:$D$57)","v":0},{"$f":"SUMPRODUCT('Efficiency Dist - MH'!N$123:N$129,'Product Class UECs'!$D$51:$D$57)","v":0},{"$f":"SUMPRODUCT('Efficiency Dist - MH'!O$123:O$129,'Product Class UECs'!$D$51:$D$57)","v":0},{"$f":"SUMPRODUCT('Efficiency Dist - MH'!P$123:P$129,'Product Class UECs'!$D$51:$D$57)","v":0},{"$f":"SUMPRODUCT('Efficiency Dist - MH'!Q$123:Q$129,'Product Class UECs'!$D$51:$D$57)","v":0},{"$f":"SUMPRODUCT('Efficiency Dist - MH'!R$123:R$129,'Product Class UECs'!$D$51:$D$57)","v":0},{"$f":"SUMPRODUCT('Efficiency Dist - MH'!S$123:S$129,'Product Class UECs'!$D$51:$D$57)","v":0},{"$f":"SUMPRODUCT('Efficiency Dist - MH'!T$123:T$129,'Product Class UECs'!$D$51:$D$57)","v":0},{"$f":"SUMPRODUCT('Efficiency Dist - MH'!U$123:U$129,'Product Class UECs'!$D$51:$D$57)","v":0},{"$f":"SUMPRODUCT('Efficiency Dist - MH'!V$123:V$129,'Product Class UECs'!$D$51:$D$57)","v":0},{"$f":"SUMPRODUCT('Efficiency Dist - MH'!W$123:W$129,'Product Class UECs'!$D$51:$D$57)","v":0},{"$f":"SUMPRODUCT('Efficiency Dist - MH'!X$123:X$129,'Product Class UECs'!$D$51:$D$57)","v":0},{"$f":"SUMPRODUCT('Efficiency Dist - MH'!Y$123:Y$129,'Product Class UECs'!$D$51:$D$57)","v":0},{"$f":"SUMPRODUCT('Efficiency Dist - MH'!Z$123:Z$129,'Product Class UECs'!$D$51:$D$57)","v":0},{"$f":"SUMPRODUCT('Efficiency Dist - MH'!AA$123:AA$129,'Product Class UECs'!$D$51:$D$57)","v":0},{"$f":"SUMPRODUCT('Efficiency Dist - MH'!AB$123:AB$129,'Product Class UECs'!$D$51:$D$57)","v":0},{"$f":"SUMPRODUCT('Efficiency Dist - MH'!AC$123:AC$129,'Product Class UECs'!$D$51:$D$57)","v":0},{"$f":"SUMPRODUCT('Efficiency Dist - MH'!AD$123:AD$129,'Product Class UECs'!$D$51:$D$57)","v":0},{"$f":"SUMPRODUCT('Efficiency Dist - MH'!AE$123:AE$129,'Product Class UECs'!$D$51:$D$57)","v":0},{"$f":"SUMPRODUCT('Efficiency Dist - MH'!AF$123:AF$129,'Product Class UECs'!$D$51:$D$57)","v":0},{"$f":"SUMPRODUCT('Efficiency Dist - MH'!AG$123:AG$129,'Product Class UECs'!$D$51:$D$57)","v":0},{"$f":"SUMPRODUCT('Efficiency Dist - MH'!AH$123:AH$129,'Product Class UECs'!$D$51:$D$57)","v":0},{"$f":"SUMPRODUCT('Efficiency Dist - MH'!AI$123:AI$129,'Product Class UECs'!$D$51:$D$57)","v":0},{"$f":"SUMPRODUCT('Efficiency Dist - MH'!AJ$123:AJ$129,'Product Class UECs'!$D$51:$D$57)","v":0},{"$f":"SUMPRODUCT('Efficiency Dist - MH'!AK$123:AK$129,'Product Class UECs'!$D$51:$D$57)","v":0},{"$f":"SUMPRODUCT('Efficiency Dist - MH'!AL$123:AL$129,'Product Class UECs'!$D$51:$D$57)","v":0},{"$f":"SUMPRODUCT('Efficiency Dist - MH'!AM$123:AM$129,'Product Class UECs'!$D$51:$D$57)","v":0},{"$f":"SUMPRODUCT('Efficiency Dist - MH'!AN$123:AN$129,'Product Class UECs'!$D$51:$D$57)","v":0},{"$f":"SUMPRODUCT('Efficiency Dist - MH'!AO$123:AO$129,'Product Class UECs'!$D$51:$D$57)","v":0},{"$f":"SUMPRODUCT('Efficiency Dist - MH'!AP$123:AP$129,'Product Class UECs'!$D$51:$D$57)","v":0},{"$f":"SUMPRODUCT('Efficiency Dist - MH'!AQ$123:AQ$129,'Product Class UECs'!$D$51:$D$57)","v":0},{"$f":"SUMPRODUCT('Efficiency Dist - MH'!AR$123:AR$129,'Product Class UECs'!$D$51:$D$57)","v":0},{"$f":"SUMPRODUCT('Efficiency Dist - MH'!AS$123:AS$129,'Product Class UECs'!$D$51:$D$57)","v":0},{"$f":"SUMPRODUCT('Efficiency Dist - MH'!AT$123:AT$129,'Product Class UECs'!$D$51:$D$57)","v":0},{"$f":"SUMPRODUCT('Efficiency Dist - MH'!AU$123:AU$129,'Product Class UECs'!$D$51:$D$57)","v":0},{"$f":"SUMPRODUCT('Efficiency Dist - MH'!AV$123:AV$129,'Product Class UECs'!$D$51:$D$57)","v":0},{"$f":"SUMPRODUCT('Efficiency Dist - MH'!AW$123:AW$129,'Product Class UECs'!$D$51:$D$57)","v":0},{"$f":"SUMPRODUCT('Efficiency Dist - MH'!AX$123:AX$129,'Product Class UECs'!$D$51:$D$57)","v":0},{"$f":"SUMPRODUCT('Efficiency Dist - MH'!AY$123:AY$129,'Product Class UECs'!$D$51:$D$57)","v":0},{"$f":"SUMPRODUCT('Efficiency Dist - MH'!AZ$123:AZ$129,'Product Class UECs'!$D$51:$D$57)","v":0},{"$f":"SUMPRODUCT('Efficiency Dist - MH'!BA$123:BA$129,'Product Class UECs'!$D$51:$D$57)","v":0},{"$f":"SUMPRODUCT('Efficiency Dist - MH'!BB$123:BB$129,'Product Class UECs'!$D$51:$D$57)","v":0},{"$f":"SUMPRODUCT('Efficiency Dist - MH'!BC$123:BC$129,'Product Class UECs'!$D$51:$D$57)","v":0},{"$f":"SUMPRODUCT('Efficiency Dist - MH'!BD$123:BD$129,'Product Class UECs'!$D$51:$D$57)","v":0},{"$f":"SUMPRODUCT('Efficiency Dist - MH'!BE$123:BE$129,'Product Class UECs'!$D$51:$D$57)","v":0},{"$f":"SUMPRODUCT('Efficiency Dist - MH'!BF$123:BF$129,'Product Class UECs'!$D$51:$D$57)","v":0},{"$f":"SUMPRODUCT('Efficiency Dist - MH'!BG$123:BG$129,'Product Class UECs'!$D$51:$D$57)","v":0}]
[null,null,{"$f":"'Product Classes'!H15&\" - \"&OFFSET('Product Classes'!$C$9,MATCH('Product Classes'!H15,MODEL_PCS,0),0)","v":"PC 6 - Mobile Home Non-Weatherized, Non-Condensing Gas Furnace Fan (MH-NWG-NC)"},{"$f":"SUMPRODUCT('Efficiency Dist - MH'!F$149:F$155,'Product Class UECs'!$D$61:$D$67)","v":545.3947757618887},{"$f":"SUMPRODUCT('Efficiency Dist - MH'!G$149:G$155,'Product Class UECs'!$D$61:$D$67)","v":545.00340319721988},{"$f":"SUMPRODUCT('Efficiency Dist - MH'!H$149:H$155,'Product Class UECs'!$D$61:$D$67)","v":545.60161396885314},{"$f":"SUMPRODUCT('Efficiency Dist - MH'!I$149:I$155,'Product Class UECs'!$D$61:$D$67)","v":545.5670021025046},{"$f":"SUMPRODUCT('Efficiency Dist - MH'!J$149:J$155,'Product Class UECs'!$D$61:$D$67)","v":545.26154550268245},{"$f":"SUMPRODUCT('Efficiency Dist - MH'!K$149:K$155,'Product Class UECs'!$D$61:$D$67)","v":544.91834905534802},{"$f":"SUMPRODUCT('Efficiency Dist - MH'!L$149:L$155,'Product Class UECs'!$D$61:$D$67)","v":544.82023711868169},{"$f":"SUMPRODUCT('Efficiency Dist - MH'!M$149:M$155,'Product Class UECs'!$D$61:$D$67)","v":545.06244829549723},{"$f":"SUMPRODUCT('Efficiency Dist - MH'!N$149:N$155,'Product Class UECs'!$D$61:$D$67)","v":545.23895675964536},{"$f":"SUMPRODUCT('Efficiency Dist - MH'!O$149:O$155,'Product Class UECs'!$D$61:$D$67)","v":545.56432629290043},{"$f":"SUMPRODUCT('Efficiency Dist - MH'!P$149:P$155,'Product Class UECs'!$D$61:$D$67)","v":545.55485308641744},{"$f":"SUMPRODUCT('Efficiency Dist - MH'!Q$149:Q$155,'Product Class UECs'!$D$61:$D$67)","v":545.84366700895862},{"$f":"SUMPRODUCT('Efficiency Dist - MH'!R$149:R$155,'Product Class UECs'!$D$61:$D$67)","v":546.16647771764053},{"$f":"SUMPRODUCT('Efficiency Dist - MH'!S$149:S$155,'Product Class UECs'!$D$61:$D$67)","v":546.46154457980299},{"$f":"SUMPRODUCT('Efficiency Dist - MH'!T$149:T$155,'Product Class UECs'!$D$61:$D$67)","v":546.36706818897392},{"$f":"SUMPRODUCT('Efficiency Dist - MH'!U$149:U$155,'Product Class UECs'!$D$61:$D$67)","v":546.08462043436953},{"$f":"SUMPRODUCT('Efficiency Dist - MH'!V$149:V$155,'Product Class UECs'!$D$61:$D$67)","v":546.09407821793934},{"$f":"SUMPRODUCT('Efficiency Dist - MH'!W$149:W$155,'Product Class UECs'!$D$61:$D$67)","v":546.1621672873232},{"$f":"SUMPRODUCT('Efficiency Dist - MH'!X$149:X$155,'Product Class UECs'!$D$61:$D$67)","v":545.72531272506944},{"$f":"SUMPRODUCT('Efficiency Dist - MH'!Y$149:Y$155,'Product Class UECs'!$D$61:$D$67)","v":544.8232014255284},{"$f":"SUMPRODUCT('Efficiency Dist - MH'!Z$149:Z$155,'Product Class UECs'!$D$61:$D$67)","v":544.25521897681722},{"$f":"SUMPRODUCT('Efficiency Dist - MH'!AA$149:AA$155,'Product Class UECs'!$D$61:$D$67)","v":543.45672609420876},{"$f":"SUMPRODUCT('Efficiency Dist - MH'!AB$149:AB$155,'Product Class UECs'!$D$61:$D$67)","v":543.43659519566336},{"$f":"SUMPRODUCT('Efficiency Dist - MH'!AC$149:AC$155,'Product Class UECs'!$D$61:$D$67)","v":543.22314393905049},{"$f":"SUMPRODUCT('Efficiency Dist - MH'!AD$149:AD$155,'Product Class UECs'!$D$61:$D$67)","v":543.22417752337503},{"$f":"SUMPRODUCT('Efficiency Dist - MH'!AE$149:AE$155,'Product Class UECs'!$D$61:$D$67)","v":543.22714590101316},{"$f":"SUMPRODUCT('Efficiency Dist - MH'!AF$149:AF$155,'Product Class UECs'!$D$61:$D$67)","v":543.66527744911707},{"$f":"SUMPRODUCT('Efficiency Dist - MH'!AG$149:AG$155,'Product Class UECs'!$D$61:$D$67)","v":543.74276603259671},{"$f":"SUMPRODUCT('Efficiency Dist - MH'!AH$149:AH$155,'Product Class UECs'!$D$61:$D$67)","v":543.68697602448128},{"$f":"SUMPRODUCT('Efficiency Dist - MH'!AI$149:AI$155,'Product Class UECs'!$D$61:$D$67)","v":543.63181004334751},{"$f":"SUMPRODUCT('Efficiency Dist - MH'!AJ$149:AJ$155,'Product Class UECs'!$D$61:$D$67)","v":543.50056561789393},{"$f":"SUMPRODUCT('Efficiency Dist - MH'!AK$149:AK$155,'Product Class UECs'!$D$61:$D$67)","v":543.76089871648844},{"$f":"SUMPRODUCT('Efficiency Dist - MH'!AL$149:AL$155,'Product Class UECs'!$D$61:$D$67)","v":543.6023776275913},{"$f":"SUMPRODUCT('Efficiency Dist - MH'!AM$149:AM$155,'Product Class UECs'!$D$61:$D$67)","v":543.41691545667663},{"$f":"SUMPRODUCT('Efficiency Dist - MH'!AN$149:AN$155,'Product Class UECs'!$D$61:$D$67)","v":543.24915639254584},{"$f":"SUMPRODUCT('Efficiency Dist - MH'!AO$149:AO$155,'Product Class UECs'!$D$61:$D$67)","v":543.23073914063184},{"$f":"SUMPRODUCT('Efficiency Dist - MH'!AP$149:AP$155,'Product Class UECs'!$D$61:$D$67)","v":543.29065573268394},{"$f":"SUMPRODUCT('Efficiency Dist - MH'!AQ$149:AQ$155,'Product Class UECs'!$D$61:$D$67)","v":543.28203381972389},{"$f":"SUMPRODUCT('Efficiency Dist - MH'!AR$149:AR$155,'Product Class UECs'!$D$61:$D$67)","v":543.27947727747335},{"$f":"SUMPRODUCT('Efficiency Dist - MH'!AS$149:AS$155,'Product Class UECs'!$D$61:$D$67)","v":543.45438191607298},{"$f":"SUMPRODUCT('Efficiency Dist - MH'!AT$149:AT$155,'Product Class UECs'!$D$61:$D$67)","v":543.77787375429682},{"$f":"SUMPRODUCT('Efficiency Dist - MH'!AU$149:AU$155,'Product Class UECs'!$D$61:$D$67)","v":543.99606817535278},{"$f":"SUMPRODUCT('Efficiency Dist - MH'!AV$149:AV$155,'Product Class UECs'!$D$61:$D$67)","v":543.43141709250779},{"$f":"SUMPRODUCT('Efficiency Dist - MH'!AW$149:AW$155,'Product Class UECs'!$D$61:$D$67)","v":543.56416094347003},{"$f":"SUMPRODUCT('Efficiency Dist - MH'!AX$149:AX$155,'Product Class UECs'!$D$61:$D$67)","v":543.43382143556141},{"$f":"SUMPRODUCT('Efficiency Dist - MH'!AY$149:AY$155,'Product Class UECs'!$D$61:$D$67)","v":543.42314383647386},{"$f":"SUMPRODUCT('Efficiency Dist - MH'!AZ$149:AZ$155,'Product Class UECs'!$D$61:$D$67)","v":543.47129089378768},{"$f":"SUMPRODUCT('Efficiency Dist - MH'!BA$149:BA$155,'Product Class UECs'!$D$61:$D$67)","v":543.42605955627619},{"$f":"SUMPRODUCT('Efficiency Dist - MH'!BB$149:BB$155,'Product Class UECs'!$D$61:$D$67)","v":543.37892657990562},{"$f":"SUMPRODUCT('Efficiency Dist - MH'!BC$149:BC$155,'Product Class UECs'!$D$61:$D$67)","v":543.2803626925795},{"$f":"SUMPRODUCT('Efficiency Dist - MH'!BD$149:BD$155,'Product Class UECs'!$D$61:$D$67)","v":543.25801690648655},{"$f":"SUMPRODUCT('Efficiency Dist - MH'!BE$149:BE$155,'Product Class UECs'!$D$61:$D$67)","v":543.20920535023572},{"$f":"SUMPRODUCT('Efficiency Dist - MH'!BF$149:BF$155,'Product Class UECs'!$D$61:$D$67)","v":543.17709212913928},{"$f":"SUMPRODUCT('Efficiency Dist - MH'!BG$149:BG$155,'Product Class UECs'!$D$61:$D$67)","v":543.13907180269143}]
[null,null,{"$f":"'Product Classes'!H16&\" - \"&OFFSET('Product Classes'!$C$9,MATCH('Product Classes'!H16,MODEL_PCS,0),0)","v":"PC 7 - Mobile Home Non-Weatherized, Condensing Gas Furnace Fan (MH-NWG-C)"},{"$f":"SUMPRODUCT('Efficiency Dist - MH'!F$175:F$181,'Product Class UECs'!$D$71:$D$77)","v":609.64181345295174},{"$f":"SUMPRODUCT('Efficiency Dist - MH'!G$175:G$181,'Product Class UECs'!$D$71:$D$77)","v":605.43372009499092},{"$f":"SUMPRODUCT('Efficiency Dist - MH'!H$175:H$181,'Product Class UECs'!$D$71:$D$77)","v":611.86576720820847},{"$f":"SUMPRODUCT('Efficiency Dist - MH'!I$175:I$181,'Product Class UECs'!$D$71:$D$77)","v":611.49361550919764},{"$f":"SUMPRODUCT('Efficiency Dist - MH'!J$175:J$181,'Product Class UECs'!$D$71:$D$77)","v":608.20930279825109},{"$f":"SUMPRODUCT('Efficiency Dist - MH'!K$175:K$181,'Product Class UECs'!$D$71:$D$77)","v":604.51920589090662},{"$f":"SUMPRODUCT('Efficiency Dist - MH'!L$175:L$181,'Product Class UECs'!$D$71:$D$77)","v":603.46429242406339},{"$f":"SUMPRODUCT('Efficiency Dist - MH'!M$175:M$181,'Product Class UECs'!$D$71:$D$77)","v":606.06858137120514},{"$f":"SUMPRODUCT('Efficiency Dist - MH'!N$175:N$181,'Product Class UECs'!$D$71:$D$77)","v":607.96642542737709},{"$f":"SUMPRODUCT('Efficiency Dist - MH'!O$175:O$181,'Product Class UECs'!$D$71:$D$77)","v":611.46484482458936},{"$f":"SUMPRODUCT('Efficiency Dist - MH'!P$175:P$181,'Product Class UECs'!$D$71:$D$77)","v":611.36298756406791},{"$f":"SUMPRODUCT('Efficiency Dist - MH'!Q$175:Q$181,'Product Class UECs'!$D$71:$D$77)","v":614.46835584700011},{"$f":"SUMPRODUCT('Efficiency Dist - MH'!R$175:R$181,'Product Class UECs'!$D$71:$D$77)","v":617.93926239925872},{"$f":"SUMPRODUCT('Efficiency Dist - MH'!S$175:S$181,'Product Class UECs'!$D$71:$D$77)","v":621.11186317640079},{"$f":"SUMPRODUCT('Efficiency Dist - MH'!T$175:T$181,'Product Class UECs'!$D$71:$D$77)","v":620.09603961434584},{"$f":"SUMPRODUCT('Efficiency Dist - MH'!U$175:U$181,'Product Class UECs'!$D$71:$D$77)","v":617.05912127254282},{"$f":"SUMPRODUCT('Efficiency Dist - MH'!V$175:V$181,'Product Class UECs'!$D$71:$D$77)","v":617.16081270371035},{"$f":"SUMPRODUCT('Efficiency Dist - MH'!W$175:W$181,'Product Class UECs'!$D$71:$D$77)","v":617.89291604076027},{"$f":"SUMPRODUCT('Efficiency Dist - MH'!X$175:X$181,'Product Class UECs'!$D$71:$D$77)","v":613.19579379007257},{"$f":"SUMPRODUCT('Efficiency Dist - MH'!Y$175:Y$181,'Product Class UECs'!$D$71:$D$77)","v":603.49616507196697},{"$f":"SUMPRODUCT('Efficiency Dist - MH'!Z$175:Z$181,'Product Class UECs'!$D$71:$D$77)","v":597.38913717673722},{"$f":"SUMPRODUCT('Efficiency Dist - MH'!AA$175:AA$181,'Product Class UECs'!$D$71:$D$77)","v":588.80362838276403},{"$f":"SUMPRODUCT('Efficiency Dist - MH'!AB$175:AB$181,'Product Class UECs'!$D$71:$D$77)","v":588.58717810467499},{"$f":"SUMPRODUCT('Efficiency Dist - MH'!AC$175:AC$181,'Product Class UECs'!$D$71:$D$77)","v":586.29211990109059},{"$f":"SUMPRODUCT('Efficiency Dist - MH'!AD$175:AD$181,'Product Class UECs'!$D$71:$D$77)","v":586.30323314643294},{"$f":"SUMPRODUCT('Efficiency Dist - MH'!AE$175:AE$181,'Product Class UECs'!$D$71:$D$77)","v":586.33514956406282},{"$f":"SUMPRODUCT('Efficiency Dist - MH'!AF$175:AF$181,'Product Class UECs'!$D$71:$D$77)","v":591.04600214783875},{"$f":"SUMPRODUCT('Efficiency Dist - MH'!AG$175:AG$181,'Product Class UECs'!$D$71:$D$77)","v":591.87917039440322},{"$f":"SUMPRODUCT('Efficiency Dist - MH'!AH$175:AH$181,'Product Class UECs'!$D$71:$D$77)","v":591.27930830956461},{"$f":"SUMPRODUCT('Efficiency Dist - MH'!AI$175:AI$181,'Product Class UECs'!$D$71:$D$77)","v":590.68615585139185},{"$f":"SUMPRODUCT('Efficiency Dist - MH'!AJ$175:AJ$181,'Product Class UECs'!$D$71:$D$77)","v":589.2749971630252},{"$f":"SUMPRODUCT('Efficiency Dist - MH'!AK$175:AK$181,'Product Class UECs'!$D$71:$D$77)","v":592.07413558495307},{"$f":"SUMPRODUCT('Efficiency Dist - MH'!AL$175:AL$181,'Product Class UECs'!$D$71:$D$77)","v":590.369694340205},{"$f":"SUMPRODUCT('Efficiency Dist - MH'!AM$175:AM$181,'Product Class UECs'!$D$71:$D$77)","v":588.37557875818948},{"$f":"SUMPRODUCT('Efficiency Dist - MH'!AN$175:AN$181,'Product Class UECs'!$D$71:$D$77)","v":586.57180949269775},{"$f":"SUMPRODUCT('Efficiency Dist - MH'!AO$175:AO$181,'Product Class UECs'!$D$71:$D$77)","v":586.37378458638591},{"$f":"SUMPRODUCT('Efficiency Dist - MH'!AP$175:AP$181,'Product Class UECs'!$D$71:$D$77)","v":587.01801628734745},{"$f":"SUMPRODUCT('Efficiency Dist - MH'!AQ$175:AQ$181,'Product Class UECs'!$D$71:$D$77)","v":586.92531225560083},{"$f":"SUMPRODUCT('Efficiency Dist - MH'!AR$175:AR$181,'Product Class UECs'!$D$71:$D$77)","v":586.89782395050429},{"$f":"SUMPRODUCT('Efficiency Dist - MH'!AS$175:AS$181,'Product Class UECs'!$D$71:$D$77)","v":588.77842344676856},{"$f":"SUMPRODUCT('Efficiency Dist - MH'!AT$175:AT$181,'Product Class UECs'!$D$71:$D$77)","v":592.25665360052506},{"$f":"SUMPRODUCT('Efficiency Dist - MH'!AU$175:AU$181,'Product Class UECs'!$D$71:$D$77)","v":594.60271098134012},{"$f":"SUMPRODUCT('Efficiency Dist - MH'!AV$175:AV$181,'Product Class UECs'!$D$71:$D$77)","v":588.5315024046829},{"$f":"SUMPRODUCT('Efficiency Dist - MH'!AW$175:AW$181,'Product Class UECs'!$D$71:$D$77)","v":589.95878312891284},{"$f":"SUMPRODUCT('Efficiency Dist - MH'!AX$175:AX$181,'Product Class UECs'!$D$71:$D$77)","v":588.55735424241402},{"$f":"SUMPRODUCT('Efficiency Dist - MH'!AY$175:AY$181,'Product Class UECs'!$D$71:$D$77)","v":588.44254718168622},{"$f":"SUMPRODUCT('Efficiency Dist - MH'!AZ$175:AZ$181,'Product Class UECs'!$D$71:$D$77)","v":588.96023117483753},{"$f":"SUMPRODUCT('Efficiency Dist - MH'!BA$175:BA$181,'Product Class UECs'!$D$71:$D$77)","v":588.47389741479253},{"$f":"SUMPRODUCT('Efficiency Dist - MH'!BB$175:BB$181,'Product Class UECs'!$D$71:$D$77)","v":587.96711696385933},{"$f":"SUMPRODUCT('Efficiency Dist - MH'!BC$175:BC$181,'Product Class UECs'!$D$71:$D$77)","v":586.90734405938178},{"$f":"SUMPRODUCT('Efficiency Dist - MH'!BD$175:BD$181,'Product Class UECs'!$D$71:$D$77)","v":586.66707899605024},{"$f":"SUMPRODUCT('Efficiency Dist - MH'!BE$175:BE$181,'Product Class UECs'!$D$71:$D$77)","v":586.14225021602431},{"$f":"SUMPRODUCT('Efficiency Dist - MH'!BF$175:BF$181,'Product Class UECs'!$D$71:$D$77)","v":585.79696430536524},{"$f":"SUMPRODUCT('Efficiency Dist - MH'!BG$175:BG$181,'Product Class UECs'!$D$71:$D$77)","v":585.38816435964532}]
[null,null,{"$f":"'Product Classes'!H17&\" - \"&OFFSET('Product Classes'!$C$9,MATCH('Product Classes'!H17,MODEL_PCS,0),0)","v":"PC 8 - Mobile Home Electric Furnace / Modular Blower Fan (MH-EF/MB)"},{"$f":"SUMPRODUCT('Efficiency Dist - MH'!F$201:F$207,'Product Class UECs'!$D$81:$D$87)","v":274.20859524014543},{"$f":"SUMPRODUCT('Efficiency Dist - MH'!G$201:G$207,'Product Class UECs'!$D$81:$D$87)","v":271.153907180668},{"$f":"SUMPRODUCT('Efficiency Dist - MH'!H$201:H$207,'Product Class UECs'!$D$81:$D$87)","v":275.82298075945937},{"$f":"SUMPRODUCT('Efficiency Dist - MH'!I$201:I$207,'Product Class UECs'!$D$81:$D$87)","v":275.55283291468015},{"$f":"SUMPRODUCT('Efficiency Dist - MH'!J$201:J$207,'Product Class UECs'!$D$81:$D$87)","v":273.16872449114931},{"$f":"SUMPRODUCT('Efficiency Dist - MH'!K$201:K$207,'Product Class UECs'!$D$81:$D$87)","v":270.49005412851227},{"$f":"SUMPRODUCT('Efficiency Dist - MH'!L$201:L$207,'Product Class UECs'!$D$81:$D$87)","v":269.72428414747043},{"$f":"SUMPRODUCT('Efficiency Dist - MH'!M$201:M$207,'Product Class UECs'!$D$81:$D$87)","v":271.61475797339278},{"$f":"SUMPRODUCT('Efficiency Dist - MH'!N$201:N$207,'Product Class UECs'!$D$81:$D$87)","v":272.99241789773151},{"$f":"SUMPRODUCT('Efficiency Dist - MH'!O$201:O$207,'Product Class UECs'!$D$81:$D$87)","v":275.53194804848056},{"$f":"SUMPRODUCT('Efficiency Dist - MH'!P$201:P$207,'Product Class UECs'!$D$81:$D$87)","v":275.45800906209928},{"$f":"SUMPRODUCT('Efficiency Dist - MH'!Q$201:Q$207,'Product Class UECs'!$D$81:$D$87)","v":277.71222031817973},{"$f":"SUMPRODUCT('Efficiency Dist - MH'!R$201:R$207,'Product Class UECs'!$D$81:$D$87)","v":280.23177867842583},{"$f":"SUMPRODUCT('Efficiency Dist - MH'!S$201:S$207,'Product Class UECs'!$D$81:$D$87)","v":282.5347945307455},{"$f":"SUMPRODUCT('Efficiency Dist - MH'!T$201:T$207,'Product Class UECs'!$D$81:$D$87)","v":281.79740021897851},{"$f":"SUMPRODUCT('Efficiency Dist - MH'!U$201:U$207,'Product Class UECs'!$D$81:$D$87)","v":279.59287731342937},{"$f":"SUMPRODUCT('Efficiency Dist - MH'!V$201:V$207,'Product Class UECs'!$D$81:$D$87)","v":279.6666959229787},{"$f":"SUMPRODUCT('Efficiency Dist - MH'!W$201:W$207,'Product Class UECs'!$D$81:$D$87)","v":280.19813549234078},{"$f":"SUMPRODUCT('Efficiency Dist - MH'!X$201:X$207,'Product Class UECs'!$D$81:$D$87)","v":276.78845751408556},{"$f":"SUMPRODUCT('Efficiency Dist - MH'!Y$201:Y$207,'Product Class UECs'!$D$81:$D$87)","v":269.74742075321871},{"$f":"SUMPRODUCT('Efficiency Dist - MH'!Z$201:Z$207,'Product Class UECs'!$D$81:$D$87)","v":265.3142811805991},{"$f":"SUMPRODUCT('Efficiency Dist - MH'!AA$201:AA$207,'Product Class UECs'!$D$81:$D$87)","v":259.08199283369868},{"$f":"SUMPRODUCT('Efficiency Dist - MH'!AB$201:AB$207,'Product Class UECs'!$D$81:$D$87)","v":258.92486987474661},{"$f":"SUMPRODUCT('Efficiency Dist - MH'!AC$201:AC$207,'Product Class UECs'!$D$81:$D$87)","v":257.25886907725192},{"$f":"SUMPRODUCT('Efficiency Dist - MH'!AD$201:AD$207,'Product Class UECs'!$D$81:$D$87)","v":257.26693626943643},{"$f":"SUMPRODUCT('Efficiency Dist - MH'!AE$201:AE$207,'Product Class UECs'!$D$81:$D$87)","v":257.29010464797329},{"$f":"SUMPRODUCT('Efficiency Dist - MH'!AF$201:AF$207,'Product Class UECs'!$D$81:$D$87)","v":260.70974958298774},{"$f":"SUMPRODUCT('Efficiency Dist - MH'!AG$201:AG$207,'Product Class UECs'!$D$81:$D$87)","v":261.31455296490446},{"$f":"SUMPRODUCT('Efficiency Dist - MH'!AH$201:AH$207,'Product Class UECs'!$D$81:$D$87)","v":260.87910836042039},{"$f":"SUMPRODUCT('Efficiency Dist - MH'!AI$201:AI$207,'Product Class UECs'!$D$81:$D$87)","v":260.44853432669487},{"$f":"SUMPRODUCT('Efficiency Dist - MH'!AJ$201:AJ$207,'Product Class UECs'!$D$81:$D$87)","v":259.42416313796491},{"$f":"SUMPRODUCT('Efficiency Dist - MH'!AK$201:AK$207,'Product Class UECs'!$D$81:$D$87)","v":261.45607972986079},{"$f":"SUMPRODUCT('Efficiency Dist - MH'!AL$201:AL$207,'Product Class UECs'!$D$81:$D$87)","v":260.21881242718484},{"$f":"SUMPRODUCT('Efficiency Dist - MH'!AM$201:AM$207,'Product Class UECs'!$D$81:$D$87)","v":258.77126824519155},{"$f":"SUMPRODUCT('Efficiency Dist - MH'!AN$201:AN$207,'Product Class UECs'!$D$81:$D$87)","v":257.461897951178},{"$f":"SUMPRODUCT('Efficiency Dist - MH'!AO$201:AO$207,'Product Class UECs'!$D$81:$D$87)","v":257.31815011448953},{"$f":"SUMPRODUCT('Efficiency Dist - MH'!AP$201:AP$207,'Product Class UECs'!$D$81:$D$87)","v":257.78580297222413},{"$f":"SUMPRODUCT('Efficiency Dist - MH'!AQ$201:AQ$207,'Product Class UECs'!$D$81:$D$87)","v":257.71850838658798},{"$f":"SUMPRODUCT('Efficiency Dist - MH'!AR$201:AR$207,'Product Class UECs'!$D$81:$D$87)","v":257.69855440976028},{"$f":"SUMPRODUCT('Efficiency Dist - MH'!AS$201:AS$207,'Product Class UECs'!$D$81:$D$87)","v":259.06369637245695},{"$f":"SUMPRODUCT('Efficiency Dist - MH'!AT$201:AT$207,'Product Class UECs'!$D$81:$D$87)","v":261.58857099262065},{"$f":"SUMPRODUCT('Efficiency Dist - MH'!AU$201:AU$207,'Product Class UECs'!$D$81:$D$87)","v":263.29159249390631},{"$f":"SUMPRODUCT('Efficiency Dist - MH'!AV$201:AV$207,'Product Class UECs'!$D$81:$D$87)","v":258.88445444630861},{"$f":"SUMPRODUCT('Efficiency Dist - MH'!AW$201:AW$207,'Product Class UECs'!$D$81:$D$87)","v":259.92052874764983},{"$f":"SUMPRODUCT('Efficiency Dist - MH'!AX$201:AX$207,'Product Class UECs'!$D$81:$D$87)","v":258.90322049860731},{"$f":"SUMPRODUCT('Efficiency Dist - MH'!AY$201:AY$207,'Product Class UECs'!$D$81:$D$87)","v":258.8198811504235},{"$f":"SUMPRODUCT('Efficiency Dist - MH'!AZ$201:AZ$207,'Product Class UECs'!$D$81:$D$87)","v":259.19567203193287},{"$f":"SUMPRODUCT('Efficiency Dist - MH'!BA$201:BA$207,'Product Class UECs'!$D$81:$D$87)","v":258.84263853116232},{"$f":"SUMPRODUCT('Efficiency Dist - MH'!BB$201:BB$207,'Product Class UECs'!$D$81:$D$87)","v":258.47476261669055},{"$f":"SUMPRODUCT('Efficiency Dist - MH'!BC$201:BC$207,'Product Class UECs'!$D$81:$D$87)","v":257.70546513165709},{"$f":"SUMPRODUCT('Efficiency Dist - MH'!BD$201:BD$207,'Product Class UECs'!$D$81:$D$87)","v":257.53105483282667},{"$f":"SUMPRODUCT('Efficiency Dist - MH'!BE$201:BE$207,'Product Class UECs'!$D$81:$D$87)","v":257.15007749434091},{"$f":"SUMPRODUCT('Efficiency Dist - MH'!BF$201:BF$207,'Product Class UECs'!$D$81:$D$87)","v":256.89943173658924},{"$f":"SUMPRODUCT('Efficiency Dist - MH'!BG$201:BG$207,'Product Class UECs'!$D$81:$D$87)","v":256.60268064133527}]
[]
[null,null,"POST-Case",1981,{"$f":"D73+1","v":1982},1983,1984,1985,1986,1987,1988,1989,1990,1991,1992,1993,{"$f":"P73+1","v":1994},1995,1996,1997,1998,1999,2000,2001,2002,2003,2004,2005,2006,2007,2008,2009,2010,2011,2012,2013,2014,2015,2016,2017,2018,2019,2020,2021,2022,2023,2024,2025,2026,2027,2028,2029,2030,2031,2032,2033,2034]
[null,null,{"$f":"C64","v":"PC 1 - Non-Weatherized, Non-Condensing Gas Furnace Fan (NWG-NC)"},{"$f":"SUMPRODUCT('Efficiency Dist - MH'!F$30:F$36,'Product Class UECs'!$D$11:$D$17)","v":0},{"$f":"SUMPRODUCT('Efficiency Dist - MH'!G$30:G$36,'Product Class UECs'!$D$11:$D$17)","v":0},{"$f":"SUMPRODUCT('Efficiency Dist - MH'!H$30:H$36,'Product Class UECs'!$D$11:$D$17)","v":0},{"$f":"SUMPRODUCT('Efficiency Dist - MH'!I$30:I$36,'Product Class UECs'!$D$11:$D$17)","v":0},{"$f":"SUMPRODUCT('Efficiency Dist - MH'!J$30:J$36,'Product Class UECs'!$D$11:$D$17)","v":0},{"$f":"SUMPRODUCT('Efficiency Dist - MH'!K$30:K$36,'Product Class UECs'!$D$11:$D$17)","v":0},{"$f":"SUMPRODUCT('Efficiency Dist - MH'!L$30:L$36,'Product Class UECs'!$D$11:$D$17)","v":0},{"$f":"SUMPRODUCT('Efficiency Dist - MH'!M$30:M$36,'Product Class UECs'!$D$11:$D$17)","v":0},{"$f":"SUMPRODUCT('Efficiency Dist - MH'!N$30:N$36,'Product Class UECs'!$D$11:$D$17)","v":0},{"$f":"SUMPRODUCT('Efficiency Dist - MH'!O$30:O$36,'Product Class UECs'!$D$11:$D$17)","v":0},{"$f":"SUMPRODUCT('Efficiency Dist - MH'!P$30:P$36,'Product Class UECs'!$D$11:$D$17)","v":0},{"$f":"SUMPRODUCT('Efficiency Dist - MH'!Q$30:Q$36,'Product Class UECs'!$D$11:$D$17)","v":0},{"$f":"SUMPRODUCT('Efficiency Dist - MH'!R$30:R$36,'Product Class UECs'!$D$11:$D$17)","v":0},{"$f":"SUMPRODUCT('Efficiency Dist - MH'!S$30:S$36,'Product Class UECs'!$D$11:$D$17)","v":0},{"$f":"SUMPRODUCT('Efficiency Dist - MH'!T$30:T$36,'Product Class UECs'!$D$11:$D$17)","v":0},{"$f":"SUMPRODUCT('Efficiency Dist - MH'!U$30:U$36,'Product Class UECs'!$D$11:$D$17)","v":0},{"$f":"SUMPRODUCT('Efficiency Dist - MH'!V$30:V$36,'Product Class UECs'!$D$11:$D$17)","v":0},{"$f":"SUMPRODUCT('Efficiency Dist - MH'!W$30:W$36,'Product Class UECs'!$D$11:$D$17)","v":0},{"$f":"SUMPRODUCT('Efficiency Dist - MH'!X$30:X$36,'Product Class UECs'!$D$11:$D$17)","v":0},{"$f":"SUMPRODUCT('Efficiency Dist - MH'!Y$30:Y$36,'Product Class UECs'!$D$11:$D$17)","v":0},{"$f":"SUMPRODUCT('Efficiency Dist - MH'!Z$30:Z$36,'Product Class UECs'!$D$11:$D$17)","v":0},{"$f":"SUMPRODUCT('Efficiency Dist - MH'!AA$30:AA$36,'Product Class UECs'!$D$11:$D$17)","v":0},{"$f":"SUMPRODUCT('Efficiency Dist - MH'!AB$30:AB$36,'Product Class UECs'!$D$11:$D$17)","v":0},{"$f":"SUMPRODUCT('Efficiency Dist - MH'!AC$30:AC$36,'Product Class UECs'!$D$11:$D$17)","v":0},{"$f":"SUMPRODUCT('Efficiency Dist - MH'!AD$30:AD$36,'Product Class UECs'!$D$11:$D$17)","v":0},{"$f":"SUMPRODUCT('Efficiency Dist - MH'!AE$30:AE$36,'Product Class UECs'!$D$11:$D$17)","v":0},{"$f":"SUMPRODUCT('Efficiency Dist - MH'!AF$30:AF$36,'Product Class UECs'!$D$11:$D$17)","v":0},{"$f":"SUMPRODUCT('Efficiency Dist - MH'!AG$30:AG$36,'Product Class UECs'!$D$11:$D$17)","v":0},{"$f":"SUMPRODUCT('Efficiency Dist - MH'!AH$30:AH$36,'Product Class UECs'!$D$11:$D$17)","v":0},{"$f":"SUMPRODUCT('Efficiency Dist - MH'!AI$30:AI$36,'Product Class UECs'!$D$11:$D$17)","v":0},{"$f":"SUMPRODUCT('Efficiency Dist - MH'!AJ$30:AJ$36,'Product Class UECs'!$D$11:$D$17)","v":0},{"$f":"SUMPRODUCT('Efficiency Dist - MH'!AK$30:AK$36,'Product Class UECs'!$D$11:$D$17)","v":0},{"$f":"SUMPRODUCT('Efficiency Dist - MH'!AL$30:AL$36,'Product Class UECs'!$D$11:$D$17)","v":0},{"$f":"SUMPRODUCT('Efficiency Dist - MH'!AM$30:AM$36,'Product Class UECs'!$D$11:$D$17)","v":0},{"$f":"SUMPRODUCT('Efficiency Dist - MH'!AN$30:AN$36,'Product Class UECs'!$D$11:$D$17)","v":0},{"$f":"SUMPRODUCT('Efficiency Dist - MH'!AO$30:AO$36,'Product Class UECs'!$D$11:$D$17)","v":0},{"$f":"SUMPRODUCT('Efficiency Dist - MH'!AP$30:AP$36,'Product Class UECs'!$D$11:$D$17)","v":0},{"$f":"SUMPRODUCT('Efficiency Dist - MH'!AQ$30:AQ$36,'Product Class UECs'!$D$11:$D$17)","v":0},{"$f":"SUMPRODUCT('Efficiency Dist - MH'!AR$30:AR$36,'Product Class UECs'!$D$11:$D$17)","v":0},{"$f":"SUMPRODUCT('Efficiency Dist - MH'!AS$30:AS$36,'Product Class UECs'!$D$11:$D$17)","v":0},{"$f":"SUMPRODUCT('Efficiency Dist - MH'!AT$30:AT$36,'Product Class UECs'!$D$11:$D$17)","v":0},{"$f":"SUMPRODUCT('Efficiency Dist - MH'!AU$30:AU$36,'Product Class UECs'!$D$11:$D$17)","v":0},{"$f":"SUMPRODUCT('Efficiency Dist - MH'!AV$30:AV$36,'Product Class UECs'!$D$11:$D$17)","v":0},{"$f":"SUMPRODUCT('Efficiency Dist - MH'!AW$30:AW$36,'Product Class UECs'!$D$11:$D$17)","v":0},{"$f":"SUMPRODUCT('Efficiency Dist - MH'!AX$30:AX$36,'Product Class UECs'!$D$11:$D$17)","v":0},{"$f":"SUMPRODUCT('Efficiency Dist - MH'!AY$30:AY$36,'Product Class UECs'!$D$11:$D$17)","v":0},{"$f":"SUMPRODUCT('Efficiency Dist - MH'!AZ$30:AZ$36,'Product Class UECs'!$D$11:$D$17)","v":0},{"$f":"SUMPRODUCT('Efficiency Dist - MH'!BA$30:BA$36,'Product Class UECs'!$D$11:$D$17)","v":0},{"$f":"SUMPRODUCT('Efficiency Dist - MH'!BB$30:BB$36,'Product Class UECs'!$D$11:$D$17)","v":0},{"$f":"SUMPRODUCT('Efficiency Dist - MH'!BC$30:BC$36,'Product Class UECs'!$D$11:$D$17)","v":0},{"$f":"SUMPRODUCT('Efficiency Dist - MH'!BD$30:BD$36,'Product Class UECs'!$D$11:$D$17)","v":0},{"$f":"SUMPRODUCT('Efficiency Dist - MH'!BE$30:BE$36,'Product Class UECs'!$D$11:$D$17)","v":0},{"$f":"SUMPRODUCT('Efficiency Dist - MH'!BF$30:BF$36,'Product Class UECs'!$D$11:$D$17)","v":0},{"$f":"SUMPRODUCT('Efficiency Dist - MH'!BG$30:BG$36,'Product Class UECs'!$D$11:$D$17)","v":0}]
[null,null,{"$f":"C65","v":"PC 2 - Non-Weatherized, Condensing Gas Furnace Fan (NWG-C)"},{"$f":"SUMPRODUCT('Efficiency Dist - MH'!F$56:F$62,'Product Class UECs'!$D$21:$D$27)","v":0},{"$f":"SUMPRODUCT('Efficiency Dist - MH'!G$56:G$62,'Product Class UECs'!$D$21:$D$27)","v":0},{"$f":"SUMPRODUCT('Efficiency Dist - MH'!H$56:H$62,'Product Class UECs'!$D$21:$D$27)","v":0},{"$f":"SUMPRODUCT('Efficiency Dist - MH'!I$56:I$62,'Product Class UECs'!$D$21:$D$27)","v":0},{"$f":"SUMPRODUCT('Efficiency Dist - MH'!J$56:J$62,'Product Class UECs'!$D$21:$D$27)","v":0},{"$f":"SUMPRODUCT('Efficiency Dist - MH'!K$56:K$62,'Product Class UECs'!$D$21:$D$27)","v":0},{"$f":"SUMPRODUCT('Efficiency Dist - MH'!L$56:L$62,'Product Class UECs'!$D$21:$D$27)","v":0},{"$f":"SUMPRODUCT('Efficiency Dist - MH'!M$56:M$62,'Product Class UECs'!$D$21:$D$27)","v":0},{"$f":"SUMPRODUCT('Efficiency Dist - MH'!N$56:N$62,'Product Class UECs'!$D$21:$D$27)","v":0},{"$f":"SUMPRODUCT('Efficiency Dist - MH'!O$56:O$62,'Product Class UECs'!$D$21:$D$27)","v":0},{"$f":"SUMPRODUCT('Efficiency Dist - MH'!P$56:P$62,'Product Class UECs'!$D$21:$D$27)","v":0},{"$f":"SUMPRODUCT('Efficiency Dist - MH'!Q$56:Q$62,'Product Class UECs'!$D$21:$D$27)","v":0},{"$f":"SUMPRODUCT('Efficiency Dist - MH'!R$56:R$62,'Product Class UECs'!$D$21:$D$27)","v":0},{"$f":"SUMPRODUCT('Efficiency Dist - MH'!S$56:S$62,'Product Class UECs'!$D$21:$D$27)","v":0},{"$f":"SUMPRODUCT('Efficiency Dist - MH'!T$56:T$62,'Product Class UECs'!$D$21:$D$27)","v":0},{"$f":"SUMPRODUCT('Efficiency Dist - MH'!U$56:U$62,'Product Class UECs'!$D$21:$D$27)","v":0},{"$f":"SUMPRODUCT('Efficiency Dist - MH'!V$56:V$62,'Product Class UECs'!$D$21:$D$27)","v":0},{"$f":"SUMPRODUCT('Efficiency Dist - MH'!W$56:W$62,'Product Class UECs'!$D$21:$D$27)","v":0},{"$f":"SUMPRODUCT('Efficiency Dist - MH'!X$56:X$62,'Product Class UECs'!$D$21:$D$27)","v":0},{"$f":"SUMPRODUCT('Efficiency Dist - MH'!Y$56:Y$62,'Product Class UECs'!$D$21:$D$27)","v":0},{"$f":"SUMPRODUCT('Efficiency Dist - MH'!Z$56:Z$62,'Product Class UECs'!$D$21:$D$27)","v":0},{"$f":"SUMPRODUCT('Efficiency Dist - MH'!AA$56:AA$62,'Product Class UECs'!$D$21:$D$27)","v":0},{"$f":"SUMPRODUCT('Efficiency Dist - MH'!AB$56:AB$62,'Product Class UECs'!$D$21:$D$27)","v":0},{"$f":"SUMPRODUCT('Efficiency Dist - MH'!AC$56:AC$62,'Product Class UECs'!$D$21:$D$27)","v":0},{"$f":"SUMPRODUCT('Efficiency Dist - MH'!AD$56:AD$62,'Product Class UECs'!$D$21:$D$27)","v":0},{"$f":"SUMPRODUCT('Efficiency Dist - MH'!AE$56:AE$62,'Product Class UECs'!$D$21:$D$27)","v":0},{"$f":"SUMPRODUCT('Efficiency Dist - MH'!AF$56:AF$62,'Product Class UECs'!$D$21:$D$27)","v":0},{"$f":"SUMPRODUCT('Efficiency Dist - MH'!AG$56:AG$62,'Product Class UECs'!$D$21:$D$27)","v":0},{"$f":"SUMPRODUCT('Efficiency Dist - MH'!AH$56:AH$62,'Product Class UECs'!$D$21:$D$27)","v":0},{"$f":"SUMPRODUCT('Efficiency Dist - MH'!AI$56:AI$62,'Product Class UECs'!$D$21:$D$27)","v":0},{"$f":"SUMPRODUCT('Efficiency Dist - MH'!AJ$56:AJ$62,'Product Class UECs'!$D$21:$D$27)","v":0},{"$f":"SUMPRODUCT('Efficiency Dist - MH'!AK$56:AK$62,'Product Class UECs'!$D$21:$D$27)","v":0},{"$f":"SUMPRODUCT('Efficiency Dist - MH'!AL$56:AL$62,'Product Class UECs'!$D$21:$D$27)","v":0},{"$f":"SUMPRODUCT('Efficiency Dist - MH'!AM$56:AM$62,'Product Class UECs'!$D$21:$D$27)","v":0},{"$f":"SUMPRODUCT('Efficiency Dist - MH'!AN$56:AN$62,'Product Class UECs'!$D$21:$D$27)","v":0},{"$f":"SUMPRODUCT('Efficiency Dist - MH'!AO$56:AO$62,'Product Class UECs'!$D$21:$D$27)","v":0},{"$f":"SUMPRODUCT('Efficiency Dist - MH'!AP$56:AP$62,'Product Class UECs'!$D$21:$D$27)","v":0},{"$f":"SUMPRODUCT('Efficiency Dist - MH'!AQ$56:AQ$62,'Product Class UECs'!$D$21:$D$27)","v":0},{"$f":"SUMPRODUCT('Efficiency Dist - MH'!AR$56:AR$62,'Product Class UECs'!$D$21:$D$27)","v":0},{"$f":"SUMPRODUCT('Efficiency Dist - MH'!AS$56:AS$62,'Product Class UECs'!$D$21:$D$27)","v":0},{"$f":"SUMPRODUCT('Efficiency Dist - MH'!AT$56:AT$62,'Product Class UECs'!$D$21:$D$27)","v":0},{"$f":"SUMPRODUCT('Efficiency Dist - MH'!AU$56:AU$62,'Product Class UECs'!$D$21:$D$27)","v":0},{"$f":"SUMPRODUCT('Efficiency Dist - MH'!AV$56:AV$62,'Product Class UECs'!$D$21:$D$27)","v":0},{"$f":"SUMPRODUCT('Efficiency Dist - MH'!AW$56:AW$62,'Product Class UECs'!$D$21:$D$27)","v":0},{"$f":"SUMPRODUCT('Efficiency Dist - MH'!AX$56:AX$62,'Product Class UECs'!$D$21:$D$27)","v":0},{"$f":"SUMPRODUCT('Efficiency Dist - MH'!AY$56:AY$62,'Product Class UECs'!$D$21:$D$27)","v":0},{"$f":"SUMPRODUCT('Efficiency Dist - MH'!AZ$56:AZ$62,'Product Class UECs'!$D$21:$D$27)","v":0},{"$f":"SUMPRODUCT('Efficiency Dist - MH'!BA$56:BA$62,'Product Class UECs'!$D$21:$D$27)","v":0},{"$f":"SUMPRODUCT('Efficiency Dist - MH'!BB$56:BB$62,'Product Class UECs'!$D$21:$D$27)","v":0},{"$f":"SUMPRODUCT('Efficiency Dist - MH'!BC$56:BC$62,'Product Class UECs'!$D$21:$D$27)","v":0},{"$f":"SUMPRODUCT('Efficiency Dist - MH'!BD$56:BD$62,'Product Class UECs'!$D$21:$D$27)","v":0},{"$f":"SUMPRODUCT('Efficiency Dist - MH'!BE$56:BE$62,'Product Class UECs'!$D$21:$D$27)","v":0},{"$f":"SUMPRODUCT('Efficiency Dist - MH'!BF$56:BF$62,'Product Class UECs'!$D$21:$D$27)","v":0},{"$f":"SUMPRODUCT('Efficiency Dist - MH'!BG$56:BG$62,'Product Class UECs'!$D$21:$D$27)","v":0}]
[null,null,"PC 3 - Weatherized Non-Condensing Gas Furnace Fan (WG-NC)",{"$f":"SUMPRODUCT('Efficiency Dist - MH'!F$82:F$88,'Product Class UECs'!$D$31:$D$37)","v":0},{"$f":"SUMPRODUCT('Efficiency Dist - MH'!G$82:G$88,'Product Class UECs'!$D$31:$D$37)","v":0},{"$f":"SUMPRODUCT('Efficiency Dist - MH'!H$82:H$88,'Product Class UECs'!$D$31:$D$37)","v":0},{"$f":"SUMPRODUCT('Efficiency Dist - MH'!I$82:I$88,'Product Class UECs'!$D$31:$D$37)","v":0},{"$f":"SUMPRODUCT('Efficiency Dist - MH'!J$82:J$88,'Product Class UECs'!$D$31:$D$37)","v":0},{"$f":"SUMPRODUCT('Efficiency Dist - MH'!K$82:K$88,'Product Class UECs'!$D$31:$D$37)","v":0},{"$f":"SUMPRODUCT('Efficiency Dist - MH'!L$82:L$88,'Product Class UECs'!$D$31:$D$37)","v":0},{"$f":"SUMPRODUCT('Efficiency Dist - MH'!M$82:M$88,'Product Class UECs'!$D$31:$D$37)","v":0},{"$f":"SUMPRODUCT('Efficiency Dist - MH'!N$82:N$88,'Product Class UECs'!$D$31:$D$37)","v":0},{"$f":"SUMPRODUCT('Efficiency Dist - MH'!O$82:O$88,'Product Class UECs'!$D$31:$D$37)","v":0},{"$f":"SUMPRODUCT('Efficiency Dist - MH'!P$82:P$88,'Product Class UECs'!$D$31:$D$37)","v":0},{"$f":"SUMPRODUCT('Efficiency Dist - MH'!Q$82:Q$88,'Product Class UECs'!$D$31:$D$37)","v":0},{"$f":"SUMPRODUCT('Efficiency Dist - MH'!R$82:R$88,'Product Class UECs'!$D$31:$D$37)","v":0},{"$f":"SUMPRODUCT('Efficiency Dist - MH'!S$82:S$88,'Product Class UECs'!$D$31:$D$37)","v":0},{"$f":"SUMPRODUCT('Efficiency Dist - MH'!T$82:T$88,'Product Class UECs'!$D$31:$D$37)","v":0},{"$f":"SUMPRODUCT('Efficiency Dist - MH'!U$82:U$88,'Product Class UECs'!$D$31:$D$37)","v":0},{"$f":"SUMPRODUCT('Efficiency Dist - MH'!V$82:V$88,'Product Class UECs'!$D$31:$D$37)","v":0},{"$f":"SUMPRODUCT('Efficiency Dist - MH'!W$82:W$88,'Product Class UECs'!$D$31:$D$37)","v":0},{"$f":"SUMPRODUCT('Efficiency Dist - MH'!X$82:X$88,'Product Class UECs'!$D$31:$D$37)","v":0},{"$f":"SUMPRODUCT('Efficiency Dist - MH'!Y$82:Y$88,'Product Class UECs'!$D$31:$D$37)","v":0},{"$f":"SUMPRODUCT('Efficiency Dist - MH'!Z$82:Z$88,'Product Class UECs'!$D$31:$D$37)","v":0},{"$f":"SUMPRODUCT('Efficiency Dist - MH'!AA$82:AA$88,'Product Class UECs'!$D$31:$D$37)","v":0},{"$f":"SUMPRODUCT('Efficiency Dist - MH'!AB$82:AB$88,'Product Class UECs'!$D$31:$D$37)","v":0},{"$f":"SUMPRODUCT('Efficiency Dist - MH'!AC$82:AC$88,'Product Class UECs'!$D$31:$D$37)","v":0},{"$f":"SUMPRODUCT('Efficiency Dist - MH'!AD$82:AD$88,'Product Class UECs'!$D$31:$D$37)","v":0},{"$f":"SUMPRODUCT('Efficiency Dist - MH'!AE$82:AE$88,'Product Class UECs'!$D$31:$D$37)","v":0},{"$f":"SUMPRODUCT('Efficiency Dist - MH'!AF$82:AF$88,'Product Class UECs'!$D$31:$D$37)","v":0},{"$f":"SUMPRODUCT('Efficiency Dist - MH'!AG$82:AG$88,'Product Class UECs'!$D$31:$D$37)","v":0},{"$f":"SUMPRODUCT('Efficiency Dist - MH'!AH$82:AH$88,'Product Class UECs'!$D$31:$D$37)","v":0},{"$f":"SUMPRODUCT('Efficiency Dist - MH'!AI$82:AI$88,'Product Class UECs'!$D$31:$D$37)","v":0},{"$f":"SUMPRODUCT('Efficiency Dist - MH'!AJ$82:AJ$88,'Product Class UECs'!$D$31:$D$37)","v":0},{"$f":"SUMPRODUCT('Efficiency Dist - MH'!AK$82:AK$88,'Product Class UECs'!$D$31:$D$37)","v":0},{"$f":"SUMPRODUCT('Efficiency Dist - MH'!AL$82:AL$88,'Product Class UECs'!$D$31:$D$37)","v":0},{"$f":"SUMPRODUCT('Efficiency Dist - MH'!AM$82:AM$88,'Product Class UECs'!$D$31:$D$37)","v":0},{"$f":"SUMPRODUCT('Efficiency Dist - MH'!AN$82:AN$88,'Product Class UECs'!$D$31:$D$37)","v":0},{"$f":"SUMPRODUCT('Efficiency Dist - MH'!AO$82:AO$88,'Product Class UECs'!$D$31:$D$37)","v":0},{"$f":"SUMPRODUCT('Efficiency Dist - MH'!AP$82:AP$88,'Product Class UECs'!$D$31:$D$37)","v":0},{"$f":"SUMPRODUCT('Efficiency Dist - MH'!AQ$82:AQ$88,'Product Class UECs'!$D$31:$D$37)","v":0},{"$f":"SUMPRODUCT('Efficiency Dist - MH'!AR$82:AR$88,'Product Class UECs'!$D$31:$D$37)","v":0},{"$f":"SUMPRODUCT('Efficiency Dist - MH'!AS$82:AS$88,'Product Class UECs'!$D$31:$D$37)","v":0},{"$f":"SUMPRODUCT('Efficiency Dist - MH'!AT$82:AT$88,'Product Class UECs'!$D$31:$D$37)","v":0},{"$f":"SUMPRODUCT('Efficiency Dist - MH'!AU$82:AU$88,'Product Class UECs'!$D$31:$D$37)","v":0},{"$f":"SUMPRODUCT('Efficiency Dist - MH'!AV$82:AV$88,'Product Class UECs'!$D$31:$D$37)","v":0},{"$f":"SUMPRODUCT('Efficiency Dist - MH'!AW$82:AW$88,'Product Class UECs'!$D$31:$D$37)","v":0},{"$f":"SUMPRODUCT('Efficiency Dist - MH'!AX$82:AX$88,'Product Class UECs'!$D$31:$D$37)","v":0},{"$f":"SUMPRODUCT('Efficiency Dist - MH'!AY$82:AY$88,'Product Class UECs'!$D$31:$D$37)","v":0},{"$f":"SUMPRODUCT('Efficiency Dist - MH'!AZ$82:AZ$88,'Product Class UECs'!$D$31:$D$37)","v":0},{"$f":"SUMPRODUCT('Efficiency Dist - MH'!BA$82:BA$88,'Product Class UECs'!$D$31:$D$37)","v":0},{"$f":"SUMPRODUCT('Efficiency Dist - MH'!BB$82:BB$88,'Product Class UECs'!$D$31:$D$37)","v":0},{"$f":"SUMPRODUCT('Efficiency Dist - MH'!BC$82:BC$88,'Product Class UECs'!$D$31:$D$37)","v":0},{"$f":"SUMPRODUCT('Efficiency Dist - MH'!BD$82:BD$88,'Product Class UECs'!$D$31:$D$37)","v":0},{"$f":"SUMPRODUCT('Efficiency Dist - MH'!BE$82:BE$88,'Product Class UECs'!$D$31:$D$37)","v":0},{"$f":"SUMPRODUCT('Efficiency Dist - MH'!BF$82:BF$88,'Product Class UECs'!$D$31:$D$37)","v":0},{"$f":"SUMPRODUCT('Efficiency Dist - MH'!BG$82:BG$88,'Product Class UECs'!$D$31:$D$37)","v":0}]
[null,null,"PC 4 - Non-Weatherized, Non-Condensing Oil Furnace Fan (NWO-NC)",{"$f":"SUMPRODUCT('Efficiency Dist - MH'!F$108:F$114,'Product Class UECs'!$D$41:$D$47)","v":0},{"$f":"SUMPRODUCT('Efficiency Dist - MH'!G$108:G$114,'Product Class UECs'!$D$41:$D$47)","v":0},{"$f":"SUMPRODUCT('Efficiency Dist - MH'!H$108:H$114,'Product Class UECs'!$D$41:$D$47)","v":0},{"$f":"SUMPRODUCT('Efficiency Dist - MH'!I$108:I$114,'Product Class UECs'!$D$41:$D$47)","v":0},{"$f":"SUMPRODUCT('Efficiency Dist - MH'!J$108:J$114,'Product Class UECs'!$D$41:$D$47)","v":0},{"$f":"SUMPRODUCT('Efficiency Dist - MH'!K$108:K$114,'Product Class UECs'!$D$41:$D$47)","v":0},{"$f":"SUMPRODUCT('Efficiency Dist - MH'!L$108:L$114,'Product Class UECs'!$D$41:$D$47)","v":0},{"$f":"SUMPRODUCT('Efficiency Dist - MH'!M$108:M$114,'Product Class UECs'!$D$41:$D$47)","v":0},{"$f":"SUMPRODUCT('Efficiency Dist - MH'!N$108:N$114,'Product Class UECs'!$D$41:$D$47)","v":0},{"$f":"SUMPRODUCT('Efficiency Dist - MH'!O$108:O$114,'Product Class UECs'!$D$41:$D$47)","v":0},{"$f":"SUMPRODUCT('Efficiency Dist - MH'!P$108:P$114,'Product Class UECs'!$D$41:$D$47)","v":0},{"$f":"SUMPRODUCT('Efficiency Dist - MH'!Q$108:Q$114,'Product Class UECs'!$D$41:$D$47)","v":0},{"$f":"SUMPRODUCT('Efficiency Dist - MH'!R$108:R$114,'Product Class UECs'!$D$41:$D$47)","v":0},{"$f":"SUMPRODUCT('Efficiency Dist - MH'!S$108:S$114,'Product Class UECs'!$D$41:$D$47)","v":0},{"$f":"SUMPRODUCT('Efficiency Dist - MH'!T$108:T$114,'Product Class UECs'!$D$41:$D$47)","v":0},{"$f":"SUMPRODUCT('Efficiency Dist - MH'!U$108:U$114,'Product Class UECs'!$D$41:$D$47)","v":0},{"$f":"SUMPRODUCT('Efficiency Dist - MH'!V$108:V$114,'Product Class UECs'!$D$41:$D$47)","v":0},{"$f":"SUMPRODUCT('Efficiency Dist - MH'!W$108:W$114,'Product Class UECs'!$D$41:$D$47)","v":0},{"$f":"SUMPRODUCT('Efficiency Dist - MH'!X$108:X$114,'Product Class UECs'!$D$41:$D$47)","v":0},{"$f":"SUMPRODUCT('Efficiency Dist - MH'!Y$108:Y$114,'Product Class UECs'!$D$41:$D$47)","v":0},{"$f":"SUMPRODUCT('Efficiency Dist - MH'!Z$108:Z$114,'Product Class UECs'!$D$41:$D$47)","v":0},{"$f":"SUMPRODUCT('Efficiency Dist - MH'!AA$108:AA$114,'Product Class UECs'!$D$41:$D$47)","v":0},{"$f":"SUMPRODUCT('Efficiency Dist - MH'!AB$108:AB$114,'Product Class UECs'!$D$41:$D$47)","v":0},{"$f":"SUMPRODUCT('Efficiency Dist - MH'!AC$108:AC$114,'Product Class UECs'!$D$41:$D$47)","v":0},{"$f":"SUMPRODUCT('Efficiency Dist - MH'!AD$108:AD$114,'Product Class UECs'!$D$41:$D$47)","v":0},{"$f":"SUMPRODUCT('Efficiency Dist - MH'!AE$108:AE$114,'Product Class UECs'!$D$41:$D$47)","v":0},{"$f":"SUMPRODUCT('Efficiency Dist - MH'!AF$108:AF$114,'Product Class UECs'!$D$41:$D$47)","v":0},{"$f":"SUMPRODUCT('Efficiency Dist - MH'!AG$108:AG$114,'Product Class UECs'!$D$41:$D$47)","v":0},{"$f":"SUMPRODUCT('Efficiency Dist - MH'!AH$108:AH$114,'Product Class UECs'!$D$41:$D$47)","v":0},{"$f":"SUMPRODUCT('Efficiency Dist - MH'!AI$108:AI$114,'Product Class UECs'!$D$41:$D$47)","v":0},{"$f":"SUMPRODUCT('Efficiency Dist - MH'!AJ$108:AJ$114,'Product Class UECs'!$D$41:$D$47)","v":0},{"$f":"SUMPRODUCT('Efficiency Dist - MH'!AK$108:AK$114,'Product Class UECs'!$D$41:$D$47)","v":0},{"$f":"SUMPRODUCT('Efficiency Dist - MH'!AL$108:AL$114,'Product Class UECs'!$D$41:$D$47)","v":0},{"$f":"SUMPRODUCT('Efficiency Dist - MH'!AM$108:AM$114,'Product Class UECs'!$D$41:$D$47)","v":0},{"$f":"SUMPRODUCT('Efficiency Dist - MH'!AN$108:AN$114,'Product Class UECs'!$D$41:$D$47)","v":0},{"$f":"SUMPRODUCT('Efficiency Dist - MH'!AO$108:AO$114,'Product Class UECs'!$D$41:$D$47)","v":0},{"$f":"SUMPRODUCT('Efficiency Dist - MH'!AP$108:AP$114,'Product Class UECs'!$D$41:$D$47)","v":0},{"$f":"SUMPRODUCT('Efficiency Dist - MH'!AQ$108:AQ$114,'Product Class UECs'!$D$41:$D$47)","v":0},{"$f":"SUMPRODUCT('Efficiency Dist - MH'!AR$108:AR$114,'Product Class UECs'!$D$41:$D$47)","v":0},{"$f":"SUMPRODUCT('Efficiency Dist - MH'!AS$108:AS$114,'Product Class UECs'!$D$41:$D$47)","v":0},{"$f":"SUMPRODUCT('Efficiency Dist - MH'!AT$108:AT$114,'Product Class UECs'!$D$41:$D$47)","v":0},{"$f":"SUMPRODUCT('Efficiency Dist - MH'!AU$108:AU$114,'Product Class UECs'!$D$41:$D$47)","v":0},{"$f":"SUMPRODUCT('Efficiency Dist - MH'!AV$108:AV$114,'Product Class UECs'!$D$41:$D$47)","v":0},{"$f":"SUMPRODUCT('Efficiency Dist - MH'!AW$108:AW$114,'Product Class UECs'!$D$41:$D$47)","v":0},{"$f":"SUMPRODUCT('Efficiency Dist - MH'!AX$108:AX$114,'Product Class UECs'!$D$41:$D$47)","v":0},{"$f":"SUMPRODUCT('Efficiency Dist - MH'!AY$108:AY$114,'Product Class UECs'!$D$41:$D$47)","v":0},{"$f":"SUMPRODUCT('Efficiency Dist - MH'!AZ$108:AZ$114,'Product Class UECs'!$D$41:$D$47)","v":0},{"$f":"SUMPRODUCT('Efficiency Dist - MH'!BA$108:BA$114,'Product Class UECs'!$D$41:$D$47)","v":0},{"$f":"SUMPRODUCT('Efficiency Dist - MH'!BB$108:BB$114,'Product Class UECs'!$D$41:$D$47)","v":0},{"$f":"SUMPRODUCT('Efficiency Dist - MH'!BC$108:BC$114,'Product Class UECs'!$D$41:$D$47)","v":0},{"$f":"SUMPRODUCT('Efficiency Dist - MH'!BD$108:BD$114,'Product Class UECs'!$D$41:$D$47)","v":0},{"$f":"SUMPRODUCT('Efficiency Dist - MH'!BE$108:BE$114,'Product Class UECs'!$D$41:$D$47)","v":0},{"$f":"SUMPRODUCT('Efficiency Dist - MH'!BF$108:BF$114,'Product Class UECs'!$D$41:$D$47)","v":0},{"$f":"SUMPRODUCT('Efficiency Dist - MH'!BG$108:BG$114,'Product Class UECs'!$D$41:$D$47)","v":0}]
[null,null,"PC 5 - Non-Weatherized Electric Furnace / Modular Blower Fan (NWEF/NWMB)",{"$f":"SUMPRODUCT('Efficiency Dist - MH'!F$134:F$140,'Product Class UECs'!$D$51:$D$57)","v":0},{"$f":"SUMPRODUCT('Efficiency Dist - MH'!G$134:G$140,'Product Class UECs'!$D$51:$D$57)","v":0},{"$f":"SUMPRODUCT('Efficiency Dist - MH'!H$134:H$140,'Product Class UECs'!$D$51:$D$57)","v":0},{"$f":"SUMPRODUCT('Efficiency Dist - MH'!I$134:I$140,'Product Class UECs'!$D$51:$D$57)","v":0},{"$f":"SUMPRODUCT('Efficiency Dist - MH'!J$134:J$140,'Product Class UECs'!$D$51:$D$57)","v":0},{"$f":"SUMPRODUCT('Efficiency Dist - MH'!K$134:K$140,'Product Class UECs'!$D$51:$D$57)","v":0},{"$f":"SUMPRODUCT('Efficiency Dist - MH'!L$134:L$140,'Product Class UECs'!$D$51:$D$57)","v":0},{"$f":"SUMPRODUCT('Efficiency Dist - MH'!M$134:M$140,'Product Class UECs'!$D$51:$D$57)","v":0},{"$f":"SUMPRODUCT('Efficiency Dist - MH'!N$134:N$140,'Product Class UECs'!$D$51:$D$57)","v":0},{"$f":"SUMPRODUCT('Efficiency Dist - MH'!O$134:O$140,'Product Class UECs'!$D$51:$D$57)","v":0},{"$f":"SUMPRODUCT('Efficiency Dist - MH'!P$134:P$140,'Product Class UECs'!$D$51:$D$57)","v":0},{"$f":"SUMPRODUCT('Efficiency Dist - MH'!Q$134:Q$140,'Product Class UECs'!$D$51:$D$57)","v":0},{"$f":"SUMPRODUCT('Efficiency Dist - MH'!R$134:R$140,'Product Class UECs'!$D$51:$D$57)","v":0},{"$f":"SUMPRODUCT('Efficiency Dist - MH'!S$134:S$140,'Product Class UECs'!$D$51:$D$57)","v":0},{"$f":"SUMPRODUCT('Efficiency Dist - MH'!T$134:T$140,'Product Class UECs'!$D$51:$D$57)","v":0},{"$f":"SUMPRODUCT('Efficiency Dist - MH'!U$134:U$140,'Product Class UECs'!$D$51:$D$57)","v":0},{"$f":"SUMPRODUCT('Efficiency Dist - MH'!V$134:V$140,'Product Class UECs'!$D$51:$D$57)","v":0},{"$f":"SUMPRODUCT('Efficiency Dist - MH'!W$134:W$140,'Product Class UECs'!$D$51:$D$57)","v":0},{"$f":"SUMPRODUCT('Efficiency Dist - MH'!X$134:X$140,'Product Class UECs'!$D$51:$D$57)","v":0},{"$f":"SUMPRODUCT('Efficiency Dist - MH'!Y$134:Y$140,'Product Class UECs'!$D$51:$D$57)","v":0},{"$f":"SUMPRODUCT('Efficiency Dist - MH'!Z$134:Z$140,'Product Class UECs'!$D$51:$D$57)","v":0},{"$f":"SUMPRODUCT('Efficiency Dist - MH'!AA$134:AA$140,'Product Class UECs'!$D$51:$D$57)","v":0},{"$f":"SUMPRODUCT('Efficiency Dist - MH'!AB$134:AB$140,'Product Class UECs'!$D$51:$D$57)","v":0},{"$f":"SUMPRODUCT('Efficiency Dist - MH'!AC$134:AC$140,'Product Class UECs'!$D$51:$D$57)","v":0},{"$f":"SUMPRODUCT('Efficiency Dist - MH'!AD$134:AD$140,'Product Class UECs'!$D$51:$D$57)","v":0},{"$f":"SUMPRODUCT('Efficiency Dist - MH'!AE$134:AE$140,'Product Class UECs'!$D$51:$D$57)","v":0},{"$f":"SUMPRODUCT('Efficiency Dist - MH'!AF$134:AF$140,'Product Class UECs'!$D$51:$D$57)","v":0},{"$f":"SUMPRODUCT('Efficiency Dist - MH'!AG$134:AG$140,'Product Class UECs'!$D$51:$D$57)","v":0},{"$f":"SUMPRODUCT('Efficiency Dist - MH'!AH$134:AH$140,'Product Class UECs'!$D$51:$D$57)","v":0},{"$f":"SUMPRODUCT('Efficiency Dist - MH'!AI$134:AI$140,'Product Class UECs'!$D$51:$D$57)","v":0},{"$f":"SUMPRODUCT('Efficiency Dist - MH'!AJ$134:AJ$140,'Product Class UECs'!$D$51:$D$57)","v":0},{"$f":"SUMPRODUCT('Efficiency Dist - MH'!AK$134:AK$140,'Product Class UECs'!$D$51:$D$57)","v":0},{"$f":"SUMPRODUCT('Efficiency Dist - MH'!AL$134:AL$140,'Product Class UECs'!$D$51:$D$57)","v":0},{"$f":"SUMPRODUCT('Efficiency Dist - MH'!AM$134:AM$140,'Product Class UECs'!$D$51:$D$57)","v":0},{"$f":"SUMPRODUCT('Efficiency Dist - MH'!AN$134:AN$140,'Product Class UECs'!$D$51:$D$57)","v":0},{"$f":"SUMPRODUCT('Efficiency Dist - MH'!AO$134:AO$140,'Product Class UECs'!$D$51:$D$57)","v":0},{"$f":"SUMPRODUCT('Efficiency Dist - MH'!AP$134:AP$140,'Product Class UECs'!$D$51:$D$57)","v":0},{"$f":"SUMPRODUCT('Efficiency Dist - MH'!AQ$134:AQ$140,'Product Class UECs'!$D$51:$D$57)","v":0},{"$f":"SUMPRODUCT('Efficiency Dist - MH'!AR$134:AR$140,'Product Class UECs'!$D$51:$D$57)","v":0},{"$f":"SUMPRODUCT('Efficiency Dist - MH'!AS$134:AS$140,'Product Class UECs'!$D$51:$D$57)","v":0},{"$f":"SUMPRODUCT('Efficiency Dist - MH'!AT$134:AT$140,'Product Class UECs'!$D$51:$D$57)","v":0},{"$f":"SUMPRODUCT('Efficiency Dist - MH'!AU$134:AU$140,'Product Class UECs'!$D$51:$D$57)","v":0},{"$f":"SUMPRODUCT('Efficiency Dist - MH'!AV$134:AV$140,'Product Class UECs'!$D$51:$D$57)","v":0},{"$f":"SUMPRODUCT('Efficiency Dist - MH'!AW$134:AW$140,'Product Class UECs'!$D$51:$D$57)","v":0},{"$f":"SUMPRODUCT('Efficiency Dist - MH'!AX$134:AX$140,'Product Class UECs'!$D$51:$D$57)","v":0},{"$f":"SUMPRODUCT('Efficiency Dist - MH'!AY$134:AY$140,'Product Class UECs'!$D$51:$D$57)","v":0},{"$f":"SUMPRODUCT('Efficiency Dist - MH'!AZ$134:AZ$140,'Product Class UECs'!$D$51:$D$57)","v":0},{"$f":"SUMPRODUCT('Efficiency Dist - MH'!BA$134:BA$140,'Product Class UECs'!$D$51:$D$57)","v":0},{"$f":"SUMPRODUCT('Efficiency Dist - MH'!BB$134:BB$140,'Product Class UECs'!$D$51:$D$57)","v":0},{"$f":"SUMPRODUCT('Efficiency Dist - MH'!BC$134:BC$140,'Product Class UECs'!$D$51:$D$57)","v":0},{"$f":"SUMPRODUCT('Efficiency Dist - MH'!BD$134:BD$140,'Product Class UECs'!$D$51:$D$57)","v":0},{"$f":"SUMPRODUCT('Efficiency Dist - MH'!BE$134:BE$140,'Product Class UECs'!$D$51:$D$57)","v":0},{"$f":"SUMPRODUCT('Efficiency Dist - MH'!BF$134:BF$140,'Product Class UECs'!$D$51:$D$57)","v":0},{"$f":"SUMPRODUCT('Efficiency Dist - MH'!BG$134:BG$140,'Product Class UECs'!$D$51:$D$57)","v":0}]
[null,null,"PC 6 - Mobile Home Non-Weatherized, Non-Condensing Gas Furnace Fan (MH-NWG-NC)",{"$f":"SUMPRODUCT('Efficiency Dist - MH'!F$160:F$166,'Product Class UECs'!$D$61:$D$67)","v":545.3947757618887},{"$f":"SUMPRODUCT('Efficiency Dist - MH'!G$160:G$166,'Product Class UECs'!$D$61:$D$67)","v":545.00340319721988},{"$f":"SUMPRODUCT('Efficiency Dist - MH'!H$160:H$166,'Product Class UECs'!$D$61:$D$67)","v":545.60161396885314},{"$f":"SUMPRODUCT('Efficiency Dist - MH'!I$160:I$166,'Product Class UECs'!$D$61:$D$67)","v":545.5670021025046},{"$f":"SUMPRODUCT('Efficiency Dist - MH'!J$160:J$166,'Product Class UECs'!$D$61:$D$67)","v":545.26154550268245},{"$f":"SUMPRODUCT('Efficiency Dist - MH'!K$160:K$166,'Product Class UECs'!$D$61:$D$67)","v":544.91834905534802},{"$f":"SUMPRODUCT('Efficiency Dist - MH'!L$160:L$166,'Product Class UECs'!$D$61:$D$67)","v":544.82023711868169},{"$f":"SUMPRODUCT('Efficiency Dist - MH'!M$160:M$166,'Product Class UECs'!$D$61:$D$67)","v":545.06244829549723},{"$f":"SUMPRODUCT('Efficiency Dist - MH'!N$160:N$166,'Product Class UECs'!$D$61:$D$67)","v":545.23895675964536},{"$f":"SUMPRODUCT('Efficiency Dist - MH'!O$160:O$166,'Product Class UECs'!$D$61:$D$67)","v":545.56432629290043},{"$f":"SUMPRODUCT('Efficiency Dist - MH'!P$160:P$166,'Product Class UECs'!$D$61:$D$67)","v":545.55485308641744},{"$f":"SUMPRODUCT('Efficiency Dist - MH'!Q$160:Q$166,'Product Class UECs'!$D$61:$D$67)","v":545.84366700895862},{"$f":"SUMPRODUCT('Efficiency Dist - MH'!R$160:R$166,'Product Class UECs'!$D$61:$D$67)","v":546.16647771764053},{"$f":"SUMPRODUCT('Efficiency Dist - MH'!S$160:S$166,'Product Class UECs'!$D$61:$D$67)","v":546.46154457980299},{"$f":"SUMPRODUCT('Efficiency Dist - MH'!T$160:T$166,'Product Class UECs'!$D$61:$D$67)","v":546.36706818897392},{"$f":"SUMPRODUCT('Efficiency Dist - MH'!U$160:U$166,'Product Class UECs'!$D$61:$D$67)","v":546.08462043436953},{"$f":"SUMPRODUCT('Efficiency Dist - MH'!V$160:V$166,'Product Class UECs'!$D$61:$D$67)","v":546.09407821793934},{"$f":"SUMPRODUCT('Efficiency Dist - MH'!W$160:W$166,'Product Class UECs'!$D$61:$D$67)","v":546.1621672873232},{"$f":"SUMPRODUCT('Efficiency Dist - MH'!X$160:X$166,'Product Class UECs'!$D$61:$D$67)","v":545.72531272506944},{"$f":"SUMPRODUCT('Efficiency Dist - MH'!Y$160:Y$166,'Product Class UECs'!$D$61:$D$67)","v":544.8232014255284},{"$f":"SUMPRODUCT('Efficiency Dist - MH'!Z$160:Z$166,'Product Class UECs'!$D$61:$D$67)","v":544.25521897681722},{"$f":"SUMPRODUCT('Efficiency Dist - MH'!AA$160:AA$166,'Product Class UECs'!$D$61:$D$67)","v":543.45672609420876},{"$f":"SUMPRODUCT('Efficiency Dist - MH'!AB$160:AB$166,'Product Class UECs'!$D$61:$D$67)","v":543.43659519566336},{"$f":"SUMPRODUCT('Efficiency Dist - MH'!AC$160:AC$166,'Product Class UECs'!$D$61:$D$67)","v":543.22314393905049},{"$f":"SUMPRODUCT('Efficiency Dist - MH'!AD$160:AD$166,'Product Class UECs'!$D$61:$D$67)","v":543.22417752337503},{"$f":"SUMPRODUCT('Efficiency Dist - MH'!AE$160:AE$166,'Product Class UECs'!$D$61:$D$67)","v":543.22714590101316},{"$f":"SUMPRODUCT('Efficiency Dist - MH'!AF$160:AF$166,'Product Class UECs'!$D$61:$D$67)","v":543.66527744911707},{"$f":"SUMPRODUCT('Efficiency Dist - MH'!AG$160:AG$166,'Product Class UECs'!$D$61:$D$67)","v":543.74276603259671},{"$f":"SUMPRODUCT('Efficiency Dist - MH'!AH$160:AH$166,'Product Class UECs'!$D$61:$D$67)","v":543.68697602448128},{"$f":"SUMPRODUCT('Efficiency Dist - MH'!AI$160:AI$166,'Product Class UECs'!$D$61:$D$67)","v":543.63181004334751},{"$f":"SUMPRODUCT('Efficiency Dist - MH'!AJ$160:AJ$166,'Product Class UECs'!$D$61:$D$67)","v":543.50056561789393},{"$f":"SUMPRODUCT('Efficiency Dist - MH'!AK$160:AK$166,'Product Class UECs'!$D$61:$D$67)","v":543.76089871648844},{"$f":"SUMPRODUCT('Efficiency Dist - MH'!AL$160:AL$166,'Product Class UECs'!$D$61:$D$67)","v":543.6023776275913},{"$f":"SUMPRODUCT('Efficiency Dist - MH'!AM$160:AM$166,'Product Class UECs'!$D$61:$D$67)","v":543.41691545667663},{"$f":"SUMPRODUCT('Efficiency Dist - MH'!AN$160:AN$166,'Product Class UECs'!$D$61:$D$67)","v":543.24915639254584},{"$f":"SUMPRODUCT('Efficiency Dist - MH'!AO$160:AO$166,'Product Class UECs'!$D$61:$D$67)","v":543.23073914063184},{"$f":"SUMPRODUCT('Efficiency Dist - MH'!AP$160:AP$166,'Product Class UECs'!$D$61:$D$67)","v":543.29065573268394},{"$f":"SUMPRODUCT('Efficiency Dist - MH'!AQ$160:AQ$166,'Product Class UECs'!$D$61:$D$67)","v":543.28203381972389},{"$f":"SUMPRODUCT('Efficiency Dist - MH'!AR$160:AR$166,'Product Class UECs'!$D$61:$D$67)","v":512},{"$f":"SUMPRODUCT('Efficiency Dist - MH'!AS$160:AS$166,'Product Class UECs'!$D$61:$D$67)","v":512},{"$f":"SUMPRODUCT('Efficiency Dist - MH'!AT$160:AT$166,'Product Class UECs'!$D$61:$D$67)","v":512},{"$f":"SUMPRODUCT('Efficiency Dist - MH'!AU$160:AU$166,'Product Class UECs'!$D$61:$D$67)","v":512},{"$f":"SUMPRODUCT('Efficiency Dist - MH'!AV$160:AV$166,'Product Class UECs'!$D$61:$D$67)","v":512},{"$f":"SUMPRODUCT('Efficiency Dist - MH'!AW$160:AW$166,'Product Class UECs'!$D$61:$D$67)","v":512},{"$f":"SUMPRODUCT('Efficiency Dist - MH'!AX$160:AX$166,'Product Class UECs'!$D$61:$D$67)","v":512},{"$f":"SUMPRODUCT('Efficiency Dist - MH'!AY$160:AY$166,'Product Class UECs'!$D$61:$D$67)","v":512},{"$f":"SUMPRODUCT('Efficiency Dist - MH'!AZ$160:AZ$166,'Product Class UECs'!$D$61:$D$67)","v":512},{"$f":"SUMPRODUCT('Efficiency Dist - MH'!BA$160:BA$166,'Product Class UECs'!$D$61:$D$67)","v":512},{"$f":"SUMPRODUCT('Efficiency Dist - MH'!BB$160:BB$166,'Product Class UECs'!$D$61:$D$67)","v":512},{"$f":"SUMPRODUCT('Efficiency Dist - MH'!BC$160:BC$166,'Product Class UECs'!$D$61:$D$67)","v":512},{"$f":"SUMPRODUCT('Efficiency Dist - MH'!BD$160:BD$166,'Product Class UECs'!$D$61:$D$67)","v":512},{"$f":"SUMPRODUCT('Efficiency Dist - MH'!BE$160:BE$166,'Product Class UECs'!$D$61:$D$67)","v":512},{"$f":"SUMPRODUCT('Efficiency Dist - MH'!BF$160:BF$166,'Product Class UECs'!$D$61:$D$67)","v":512},{"$f":"SUMPRODUCT('Efficiency Dist - MH'!BG$160:BG$166,'Product Class UECs'!$D$61:$D$67)","v":512}]
[null,null,"PC 7 - Mobile Home Non-Weatherized, Condensing Gas Furnace Fan (MH-NWG-C)",{"$f":"SUMPRODUCT('Efficiency Dist - MH'!F$186:F$192,'Product Class UECs'!$D$71:$D$77)","v":609.64181345295174},{"$f":"SUMPRODUCT('Efficiency Dist - MH'!G$186:G$192,'Product Class UECs'!$D$71:$D$77)","v":605.43372009499092},{"$f":"SUMPRODUCT('Efficiency Dist - MH'!H$186:H$192,'Product Class UECs'!$D$71:$D$77)","v":611.86576720820847},{"$f":"SUMPRODUCT('Efficiency Dist - MH'!I$186:I$192,'Product Class UECs'!$D$71:$D$77)","v":611.49361550919764},{"$f":"SUMPRODUCT('Efficiency Dist - MH'!J$186:J$192,'Product Class UECs'!$D$71:$D$77)","v":608.20930279825109},{"$f":"SUMPRODUCT('Efficiency Dist - MH'!K$186:K$192,'Product Class UECs'!$D$71:$D$77)","v":604.51920589090662},{"$f":"SUMPRODUCT('Efficiency Dist - MH'!L$186:L$192,'Product Class UECs'!$D$71:$D$77)","v":603.46429242406339},{"$f":"SUMPRODUCT('Efficiency Dist - MH'!M$186:M$192,'Product Class UECs'!$D$71:$D$77)","v":606.06858137120514},{"$f":"SUMPRODUCT('Efficiency Dist - MH'!N$186:N$192,'Product Class UECs'!$D$71:$D$77)","v":607.96642542737709},{"$f":"SUMPRODUCT('Efficiency Dist - MH'!O$186:O$192,'Product Class UECs'!$D$71:$D$77)","v":611.46484482458936},{"$f":"SUMPRODUCT('Efficiency Dist - MH'!P$186:P$192,'Product Class UECs'!$D$71:$D$77)","v":611.36298756406791},{"$f":"SUMPRODUCT('Efficiency Dist - MH'!Q$186:Q$192,'Product Class UECs'!$D$71:$D$77)","v":614.46835584700011},{"$f":"SUMPRODUCT('Efficiency Dist - MH'!R$186:R$192,'Product Class UECs'!$D$71:$D$77)","v":617.93926239925872},{"$f":"SUMPRODUCT('Efficiency Dist - MH'!S$186:S$192,'Product Class UECs'!$D$71:$D$77)","v":621.11186317640079},{"$f":"SUMPRODUCT('Efficiency Dist - MH'!T$186:T$192,'Product Class UECs'!$D$71:$D$77)","v":620.09603961434584},{"$f":"SUMPRODUCT('Efficiency Dist - MH'!U$186:U$192,'Product Class UECs'!$D$71:$D$77)","v":617.05912127254282},{"$f":"SUMPRODUCT('Efficiency Dist - MH'!V$186:V$192,'Product Class UECs'!$D$71:$D$77)","v":617.16081270371035},{"$f":"SUMPRODUCT('Efficiency Dist - MH'!W$186:W$192,'Product Class UECs'!$D$71:$D$77)","v":617.89291604076027},{"$f":"SUMPRODUCT('Efficiency Dist - MH'!X$186:X$192,'Product Class UECs'!$D$71:$D$77)","v":613.19579379007257},{"$f":"SUMPRODUCT('Efficiency Dist - MH'!Y$186:Y$192,'Product Class UECs'!$D$71:$D$77)","v":603.49616507196697},{"$f":"SUMPRODUCT('Efficiency Dist - MH'!Z$186:Z$192,'Product Class UECs'!$D$71:$D$77)","v":597.38913717673722},{"$f":"SUMPRODUCT('Efficiency Dist - MH'!AA$186:AA$192,'Product Class UECs'!$D$71:$D$77)","v":588.80362838276403},{"$f":"SUMPRODUCT('Efficiency Dist - MH'!AB$186:AB$192,'Product Class UECs'!$D$71:$D$77)","v":588.58717810467499},{"$f":"SUMPRODUCT('Efficiency Dist - MH'!AC$186:AC$192,'Product Class UECs'!$D$71:$D$77)","v":586.29211990109059},{"$f":"SUMPRODUCT('Efficiency Dist - MH'!AD$186:AD$192,'Product Class UECs'!$D$71:$D$77)","v":586.30323314643294},{"$f":"SUMPRODUCT('Efficiency Dist - MH'!AE$186:AE$192,'Product Class UECs'!$D$71:$D$77)","v":586.33514956406282},{"$f":"SUMPRODUCT('Efficiency Dist - MH'!AF$186:AF$192,'Product Class UECs'!$D$71:$D$77)","v":591.04600214783875},{"$f":"SUMPRODUCT('Efficiency Dist - MH'!AG$186:AG$192,'Product Class UECs'!$D$71:$D$77)","v":591.87917039440322},{"$f":"SUMPRODUCT('Efficiency Dist - MH'!AH$186:AH$192,'Product Class UECs'!$D$71:$D$77)","v":591.27930830956461},{"$f":"SUMPRODUCT('Efficiency Dist - MH'!AI$186:AI$192,'Product Class UECs'!$D$71:$D$77)","v":590.68615585139185},{"$f":"SUMPRODUCT('Efficiency Dist - MH'!AJ$186:AJ$192,'Product Class UECs'!$D$71:$D$77)","v":589.2749971630252},{"$f":"SUMPRODUCT('Efficiency Dist - MH'!AK$186:AK$192,'Product Class UECs'!$D$71:$D$77)","v":592.07413558495307},{"$f":"SUMPRODUCT('Efficiency Dist - MH'!AL$186:AL$192,'Product Class UECs'!$D$71:$D$77)","v":590.369694340205},{"$f":"SUMPRODUCT('Efficiency Dist - MH'!AM$186:AM$192,'Product Class UECs'!$D$71:$D$77)","v":588.37557875818948},{"$f":"SUMPRODUCT('Efficiency Dist - MH'!AN$186:AN$192,'Product Class UECs'!$D$71:$D$77)","v":586.57180949269775},{"$f":"SUMPRODUCT('Efficiency Dist - MH'!AO$186:AO$192,'Product Class UECs'!$D$71:$D$77)","v":586.37378458638591},{"$f":"SUMPRODUCT('Efficiency Dist - MH'!AP$186:AP$192,'Product Class UECs'!$D$71:$D$77)","v":587.01801628734745},{"$f":"SUMPRODUCT('Efficiency Dist - MH'!AQ$186:AQ$192,'Product Class UECs'!$D$71:$D$77)","v":586.92531225560083},{"$f":"SUMPRODUCT('Efficiency Dist - MH'!AR$186:AR$192,'Product Class UECs'!$D$71:$D$77)","v":563.02356753273978},{"$f":"SUMPRODUCT('Efficiency Dist - MH'!AS$186:AS$192,'Product Class UECs'!$D$71:$D$77)","v":564.42666172769259},{"$f":"SUMPRODUCT('Efficiency Dist - MH'!AT$186:AT$192,'Product Class UECs'!$D$71:$D$77)","v":567.02173024022807},{"$f":"SUMPRODUCT('Efficiency Dist - MH'!AU$186:AU$192,'Product Class UECs'!$D$71:$D$77)","v":568.77209734315807},{"$f":"SUMPRODUCT('Efficiency Dist - MH'!AV$186:AV$192,'Product Class UECs'!$D$71:$D$77)","v":564.24243670718704},{"$f":"SUMPRODUCT('Efficiency Dist - MH'!AW$186:AW$192,'Product Class UECs'!$D$71:$D$77)","v":565.30731484988189},{"$f":"SUMPRODUCT('Efficiency Dist - MH'!AX$186:AX$192,'Product Class UECs'!$D$71:$D$77)","v":564.26172447341344},{"$f":"SUMPRODUCT('Efficiency Dist - MH'!AY$186:AY$192,'Product Class UECs'!$D$71:$D$77)","v":564.17606821286097},{"$f":"SUMPRODUCT('Efficiency Dist - MH'!AZ$186:AZ$192,'Product Class UECs'!$D$71:$D$77)","v":564.56230643479671},{"$f":"SUMPRODUCT('Efficiency Dist - MH'!BA$186:BA$192,'Product Class UECs'!$D$71:$D$77)","v":564.19945827021729},{"$f":"SUMPRODUCT('Efficiency Dist - MH'!BB$186:BB$192,'Product Class UECs'!$D$71:$D$77)","v":563.82135505885708},{"$f":"SUMPRODUCT('Efficiency Dist - MH'!BC$186:BC$192,'Product Class UECs'!$D$71:$D$77)","v":563.03067037921392},{"$f":"SUMPRODUCT('Efficiency Dist - MH'!BD$186:BD$192,'Product Class UECs'!$D$71:$D$77)","v":562.85141130981606},{"$f":"SUMPRODUCT('Efficiency Dist - MH'!BE$186:BE$192,'Product Class UECs'!$D$71:$D$77)","v":562.45984244251531},{"$f":"SUMPRODUCT('Efficiency Dist - MH'!BF$186:BF$192,'Product Class UECs'!$D$71:$D$77)","v":562.20222849663958},{"$f":"SUMPRODUCT('Efficiency Dist - MH'!BG$186:BG$192,'Product Class UECs'!$D$71:$D$77)","v":561.89722744145683}]
[null,null,"PC 8 - Mobile Home Electric Furnace / Modular Blower Fan (MH-EF/MB)",{"$f":"SUMPRODUCT('Efficiency Dist - MH'!F$212:F$218,'Product Class UECs'!$D$81:$D$87)","v":274.20859524014543},{"$f":"SUMPRODUCT('Efficiency Dist - MH'!G$212:G$218,'Product Class UECs'!$D$81:$D$87)","v":271.153907180668},{"$f":"SUMPRODUCT('Efficiency Dist - MH'!H$212:H$218,'Product Class UECs'!$D$81:$D$87)","v":275.82298075945937},{"$f":"SUMPRODUCT('Efficiency Dist - MH'!I$212:I$218,'Product Class UECs'!$D$81:$D$87)","v":275.55283291468015},{"$f":"SUMPRODUCT('Efficiency Dist - MH'!J$212:J$218,'Product Class UECs'!$D$81:$D$87)","v":273.16872449114931},{"$f":"SUMPRODUCT('Efficiency Dist - MH'!K$212:K$218,'Product Class UECs'!$D$81:$D$87)","v":270.49005412851227},{"$f":"SUMPRODUCT('Efficiency Dist - MH'!L$212:L$218,'Product Class UECs'!$D$81:$D$87)","v":269.72428414747043},{"$f":"SUMPRODUCT('Efficiency Dist - MH'!M$212:M$218,'Product Class UECs'!$D$81:$D$87)","v":271.61475797339278},{"$f":"SUMPRODUCT('Efficiency Dist - MH'!N$212:N$218,'Product Class UECs'!$D$81:$D$87)","v":272.99241789773151},{"$f":"SUMPRODUCT('Efficiency Dist - MH'!O$212:O$218,'Product Class UECs'!$D$81:$D$87)","v":275.53194804848056},{"$f":"SUMPRODUCT('Efficiency Dist - MH'!P$212:P$218,'Product Class UECs'!$D$81:$D$87)","v":275.45800906209928},{"$f":"SUMPRODUCT('Efficiency Dist - MH'!Q$212:Q$218,'Product Class UECs'!$D$81:$D$87)","v":277.71222031817973},{"$f":"SUMPRODUCT('Efficiency Dist - MH'!R$212:R$218,'Product Class UECs'!$D$81:$D$87)","v":280.23177867842583},{"$f":"SUMPRODUCT('Efficiency Dist - MH'!S$212:S$218,'Product Class UECs'!$D$81:$D$87)","v":282.5347945307455},{"$f":"SUMPRODUCT('Efficiency Dist - MH'!T$212:T$218,'Product Class UECs'!$D$81:$D$87)","v":281.79740021897851},{"$f":"SUMPRODUCT('Efficiency Dist - MH'!U$212:U$218,'Product Class UECs'!$D$81:$D$87)","v":279.59287731342937},{"$f":"SUMPRODUCT('Efficiency Dist - MH'!V$212:V$218,'Product Class UECs'!$D$81:$D$87)","v":279.6666959229787},{"$f":"SUMPRODUCT('Efficiency Dist - MH'!W$212:W$218,'Product Class UECs'!$D$81:$D$87)","v":280.19813549234078},{"$f":"SUMPRODUCT('Efficiency Dist - MH'!X$212:X$218,'Product Class UECs'!$D$81:$D$87)","v":276.78845751408556},{"$f":"SUMPRODUCT('Efficiency Dist - MH'!Y$212:Y$218,'Product Class UECs'!$D$81:$D$87)","v":269.74742075321871},{"$f":"SUMPRODUCT('Efficiency Dist - MH'!Z$212:Z$218,'Product Class UECs'!$D$81:$D$87)","v":265.3142811805991},{"$f":"SUMPRODUCT('Efficiency Dist - MH'!AA$212:AA$218,'Product Class UECs'!$D$81:$D$87)","v":259.08199283369868},{"$f":"SUMPRODUCT('Efficiency Dist - MH'!AB$212:AB$218,'Product Class UECs'!$D$81:$D$87)","v":258.92486987474661},{"$f":"SUMPRODUCT('Efficiency Dist - MH'!AC$212:AC$218,'Product Class UECs'!$D$81:$D$87)","v":257.25886907725192},{"$f":"SUMPRODUCT('Efficiency Dist - MH'!AD$212:AD$218,'Product Class UECs'!$D$81:$D$87)","v":257.26693626943643},{"$f":"SUMPRODUCT('Efficiency Dist - MH'!AE$212:AE$218,'Product Class UECs'!$D$81:$D$87)","v":257.29010464797329},{"$f":"SUMPRODUCT('Efficiency Dist - MH'!AF$212:AF$218,'Product Class UECs'!$D$81:$D$87)","v":260.70974958298774},{"$f":"SUMPRODUCT('Efficiency Dist - MH'!AG$212:AG$218,'Product Class UECs'!$D$81:$D$87)","v":261.31455296490446},{"$f":"SUMPRODUCT('Efficiency Dist - MH'!AH$212:AH$218,'Product Class UECs'!$D$81:$D$87)","v":260.87910836042039},{"$f":"SUMPRODUCT('Efficiency Dist - MH'!AI$212:AI$218,'Product Class UECs'!$D$81:$D$87)","v":260.44853432669487},{"$f":"SUMPRODUCT('Efficiency Dist - MH'!AJ$212:AJ$218,'Product Class UECs'!$D$81:$D$87)","v":259.42416313796491},{"$f":"SUMPRODUCT('Efficiency Dist - MH'!AK$212:AK$218,'Product Class UECs'!$D$81:$D$87)","v":261.45607972986079},{"$f":"SUMPRODUCT('Efficiency Dist - MH'!AL$212:AL$218,'Product Class UECs'!$D$81:$D$87)","v":260.21881242718484},{"$f":"SUMPRODUCT('Efficiency Dist - MH'!AM$212:AM$218,'Product Class UECs'!$D$81:$D$87)","v":258.77126824519155},{"$f":"SUMPRODUCT('Efficiency Dist - MH'!AN$212:AN$218,'Product Class UECs'!$D$81:$D$87)","v":257.461897951178},{"$f":"SUMPRODUCT('Efficiency Dist - MH'!AO$212:AO$218,'Product Class UECs'!$D$81:$D$87)","v":257.31815011448953},{"$f":"SUMPRODUCT('Efficiency Dist - MH'!AP$212:AP$218,'Product Class UECs'!$D$81:$D$87)","v":257.78580297222413},{"$f":"SUMPRODUCT('Efficiency Dist - MH'!AQ$212:AQ$218,'Product Class UECs'!$D$81:$D$87)","v":257.71850838658798},{"$f":"SUMPRODUCT('Efficiency Dist - MH'!AR$212:AR$218,'Product Class UECs'!$D$81:$D$87)","v":183.69905642674817},{"$f":"SUMPRODUCT('Efficiency Dist - MH'!AS$212:AS$218,'Product Class UECs'!$D$81:$D$87)","v":183.68542916042372},{"$f":"SUMPRODUCT('Efficiency Dist - MH'!AT$212:AT$218,'Product Class UECs'!$D$81:$D$87)","v":183.66022508654351},{"$f":"SUMPRODUCT('Efficiency Dist - MH'!AU$212:AU$218,'Product Class UECs'!$D$81:$D$87)","v":183.64322500289768},{"$f":"SUMPRODUCT('Efficiency Dist - MH'!AV$212:AV$218,'Product Class UECs'!$D$81:$D$87)","v":183.68721840837804},{"$f":"SUMPRODUCT('Efficiency Dist - MH'!AW$212:AW$218,'Product Class UECs'!$D$81:$D$87)","v":183.6768759965102},{"$f":"SUMPRODUCT('Efficiency Dist - MH'!AX$212:AX$218,'Product Class UECs'!$D$81:$D$87)","v":183.68703107988074},{"$f":"SUMPRODUCT('Efficiency Dist - MH'!AY$212:AY$218,'Product Class UECs'!$D$81:$D$87)","v":183.68786299884889},{"$f":"SUMPRODUCT('Efficiency Dist - MH'!AZ$212:AZ$218,'Product Class UECs'!$D$81:$D$87)","v":183.6841117388594},{"$f":"SUMPRODUCT('Efficiency Dist - MH'!BA$212:BA$218,'Product Class UECs'!$D$81:$D$87)","v":183.68763582768526},{"$f":"SUMPRODUCT('Efficiency Dist - MH'!BB$212:BB$218,'Product Class UECs'!$D$81:$D$87)","v":183.69130807804299},{"$f":"SUMPRODUCT('Efficiency Dist - MH'!BC$212:BC$218,'Product Class UECs'!$D$81:$D$87)","v":183.69898744179983},{"$f":"SUMPRODUCT('Efficiency Dist - MH'!BD$212:BD$218,'Product Class UECs'!$D$81:$D$87)","v":183.70072845896641},{"$f":"SUMPRODUCT('Efficiency Dist - MH'!BE$212:BE$218,'Product Class UECs'!$D$81:$D$87)","v":183.70453149176222},{"$f":"SUMPRODUCT('Efficiency Dist - MH'!BF$212:BF$218,'Product Class UECs'!$D$81:$D$87)","v":183.70703351469268},{"$f":"SUMPRODUCT('Efficiency Dist - MH'!BG$212:BG$218,'Product Class UECs'!$D$81:$D$87)","v":183.70999577526169}]
[]
[null,null,"Source/Rationale"]

{"sheet":"UEC-SF","index":21,"n_rows":17,"n_cols":57,"rows_kept":17,"cut":false,"hidden":false,"merged":[]}
[]
[null,null,"Weighted Average Annual UEC - Single Family"]
[]
[null,null,"NAVIGATION"]
[]
[null,null,"COMMENTS"]
[]
[]
[null,null,"Market UEC (Shipment Weighted Average)"]
[null,null,null,1981,{"$f":"D10+1","v":1982},{"$f":"E10+1","v":1983},1984,1985,1986,1987,1988,1989,1990,1991,1992,1993,1994,1995,1996,1997,1998,1999,2000,2001,2002,2003,2004,2005,2006,2007,2008,2009,2010,2011,2012,2013,2014,2015,2016,2017,2018,2019,2020,2021,2022,2023,2024,2025,2026,2027,2028,2029,2030,2031,2032,2033,2034]
[null,null,"PRE-Case UEC",{"$f":"SUMPRODUCT('Product Class Dist'!D12:D19,'UEC Development'!D12:D19)","v":835.78303324604315},{"$f":"SUMPRODUCT('Product Class Dist'!E12:E19,'UEC Development'!E12:E19)","v":827.55138684827273},{"$f":"SUMPRODUCT('Product Class Dist'!F12:F19,'UEC Development'!F12:F19)","v":837.39847274126691},{"$f":"SUMPRODUCT('Product Class Dist'!G12:G19,'UEC Development'!G12:G19)","v":835.5619388129137},{"$f":"SUMPRODUCT('Product Class Dist'!H12:H19,'UEC Development'!H12:H19)","v":834.4248517805471},{"$f":"SUMPRODUCT('Product Class Dist'!I12:I19,'UEC Development'!I12:I19)","v":836.30186836818484},{"$f":"SUMPRODUCT('Product Class Dist'!J12:J19,'UEC Development'!J12:J19)","v":836.44955080323371},{"$f":"SUMPRODUCT('Product Class Dist'!K12:K19,'UEC Development'!K12:K19)","v":838.9644313730048},{"$f":"SUMPRODUCT('Product Class Dist'!L12:L19,'UEC Development'!L12:L19)","v":844.70314967995682},{"$f":"SUMPRODUCT('Product Class Dist'!M12:M19,'UEC Development'!M12:M19)","v":848.61380658691019},{"$f":"SUMPRODUCT('Product Class Dist'!N12:N19,'UEC Development'!N12:N19)","v":844.62707212981513},{"$f":"SUMPRODUCT('Product Class Dist'!O12:O19,'UEC Development'!O12:O19)","v":851.18425220458107},{"$f":"SUMPRODUCT('Product Class Dist'!P12:P19,'UEC Development'!P12:P19)","v":833.17219342745932},{"$f":"SUMPRODUCT('Product Class Dist'!Q12:Q19,'UEC Development'!Q12:Q19)","v":834.98634925855936},{"$f":"SUMPRODUCT('Product Class Dist'!R12:R19,'UEC Development'!R12:R19)","v":828.30170413534631},{"$f":"SUMPRODUCT('Product Class Dist'!S12:S19,'UEC Development'!S12:S19)","v":829.26471799748481},{"$f":"SUMPRODUCT('Product Class Dist'!T12:T19,'UEC Development'!T12:T19)","v":827.8404568126316},{"$f":"SUMPRODUCT('Product Class Dist'!U12:U19,'UEC Development'!U12:U19)","v":828.52340189255153},{"$f":"SUMPRODUCT('Product Class Dist'!V12:V19,'UEC Development'!V12:V19)","v":826.33099023276816},{"$f":"SUMPRODUCT('Product Class Dist'!W12:W19,'UEC Development'!W12:W19)","v":820.99695914894028},{"$f":"SUMPRODUCT('Product Class Dist'!X12:X19,'UEC Development'!X12:X19)","v":820.90688402408},{"$f":"SUMPRODUCT('Product Class Dist'!Y12:Y19,'UEC Development'!Y12:Y19)","v":821.73321528388487},{"$f":"SUMPRODUCT('Product Class Dist'!Z12:Z19,'UEC Development'!Z12:Z19)","v":826.44119000065564},{"$f":"SUMPRODUCT('Product Class Dist'!AA12:AA19,'UEC Development'!AA12:AA19)","v":826.11231620476019},{"$f":"SUMPRODUCT('Product Class Dist'!AB12:AB19,'UEC Development'!AB12:AB19)","v":830.16558065152253},{"$f":"SUMPRODUCT('Product Class Dist'!AC12:AC19,'UEC Development'!AC12:AC19)","v":824.01397344591226},{"$f":"SUMPRODUCT('Product Class Dist'!AD12:AD19,'UEC Development'!AD12:AD19)","v":810.42567449424075},{"$f":"SUMPRODUCT('Product Class Dist'!AE12:AE19,'UEC Development'!AE12:AE19)","v":804.6242104051521},{"$f":"SUMPRODUCT('Product Class Dist'!AF12:AF19,'UEC Development'!AF12:AF19)","v":804.6242104051521},{"$f":"SUMPRODUCT('Product Class Dist'!AG12:AG19,'UEC Development'!AG12:AG19)","v":804.6242104051521},{"$f":"SUMPRODUCT('Product Class Dist'!AH12:AH19,'UEC Development'!AH12:AH19)","v":807.0409376177472},{"$f":"SUMPRODUCT('Product Class Dist'!AI12:AI19,'UEC Development'!AI12:AI19)","v":840.8307110759049},{"$f":"SUMPRODUCT('Product Class Dist'!AJ12:AJ19,'UEC Development'!AJ12:AJ19)","v":839.29547044578135},{"$f":"SUMPRODUCT('Product Class Dist'!AK12:AK19,'UEC Development'!AK12:AK19)","v":843.70474018091193},{"$f":"SUMPRODUCT('Product Class Dist'!AL12:AL19,'UEC Development'!AL12:AL19)","v":843.25404293991721},{"$f":"SUMPRODUCT('Product Class Dist'!AM12:AM19,'UEC Development'!AM12:AM19)","v":844.52813131552466},{"$f":"SUMPRODUCT('Product Class Dist'!AN12:AN19,'UEC Development'!AN12:AN19)","v":843.21782124471815},{"$f":"SUMPRODUCT('Product Class Dist'!AO12:AO19,'UEC Development'!AO12:AO19)","v":843.97065662900718},{"$f":"SUMPRODUCT('Product Class Dist'!AP12:AP19,'UEC Development'!AP12:AP19)","v":842.50768705225971},{"$f":"SUMPRODUCT('Product Class Dist'!AQ12:AQ19,'UEC Development'!AQ12:AQ19)","v":842.41425563419591},{"$f":"SUMPRODUCT('Product Class Dist'!AR12:AR19,'UEC Development'!AR12:AR19)","v":842.6148932168428},{"$f":"SUMPRODUCT('Product Class Dist'!AS12:AS19,'UEC Development'!AS12:AS19)","v":842.11431489185009},{"$f":"SUMPRODUCT('Product Class Dist'!AT12:AT19,'UEC Development'!AT12:AT19)","v":834.79967134760238},{"$f":"SUMPRODUCT('Product Class Dist'!AU12:AU19,'UEC Development'!AU12:AU19)","v":834.92874737499301},{"$f":"SUMPRODUCT('Product Class Dist'!AV12:AV19,'UEC Development'!AV12:AV19)","v":832.52005308246066},{"$f":"SUMPRODUCT('Product Class Dist'!AW12:AW19,'UEC Development'!AW12:AW19)","v":831.56084663588285},{"$f":"SUMPRODUCT('Product Class Dist'!AX12:AX19,'UEC Development'!AX12:AX19)","v":832.19701174254863},{"$f":"SUMPRODUCT('Product Class Dist'!AY12:AY19,'UEC Development'!AY12:AY19)","v":833.34969844300554},{"$f":"SUMPRODUCT('Product Class Dist'!AZ12:AZ19,'UEC Development'!AZ12:AZ19)","v":836.21892278405164},{"$f":"SUMPRODUCT('Product Class Dist'!BA12:BA19,'UEC Development'!BA12:BA19)","v":836.55437483160995},{"$f":"SUMPRODUCT('Product Class Dist'!BB12:BB19,'UEC Development'!BB12:BB19)","v":832.57071932440215},{"$f":"SUMPRODUCT('Product Class Dist'!BC12:BC19,'UEC Development'!BC12:BC19)","v":829.65705921927611},{"$f":"SUMPRODUCT('Product Class Dist'!BD12:BD19,'UEC Development'!BD12:BD19)","v":824.22166208968031},{"$f":"SUMPRODUCT('Product Class Dist'!BE12:BE19,'UEC Development'!BE12:BE19)","v":822.93044751621176}]
[null,null,"POST-Case UEC",{"$f":"SUMPRODUCT('Product Class Dist'!D22:D29,'UEC Development'!D22:D29)","v":835.78303324604315},{"$f":"SUMPRODUCT('Product Class Dist'!E22:E29,'UEC Development'!E22:E29)","v":827.55138684827273},{"$f":"SUMPRODUCT('Product Class Dist'!F22:F29,'UEC Development'!F22:F29)","v":837.39847274126691},{"$f":"SUMPRODUCT('Product Class Dist'!G22:G29,'UEC Development'!G22:G29)","v":835.5619388129137},{"$f":"SUMPRODUCT('Product Class Dist'!H22:H29,'UEC Development'!H22:H29)","v":834.4248517805471},{"$f":"SUMPRODUCT('Product Class Dist'!I22:I29,'UEC Development'!I22:I29)","v":836.30186836818484},{"$f":"SUMPRODUCT('Product Class Dist'!J22:J29,'UEC Development'!J22:J29)","v":836.44955080323371},{"$f":"SUMPRODUCT('Product Class Dist'!K22:K29,'UEC Development'!K22:K29)","v":838.9644313730048},{"$f":"SUMPRODUCT('Product Class Dist'!L22:L29,'UEC Development'!L22:L29)","v":844.70314967995682},{"$f":"SUMPRODUCT('Product Class Dist'!M22:M29,'UEC Development'!M22:M29)","v":848.61380658691019},{"$f":"SUMPRODUCT('Product Class Dist'!N22:N29,'UEC Development'!N22:N29)","v":844.62707212981513},{"$f":"SUMPRODUCT('Product Class Dist'!O22:O29,'UEC Development'!O22:O29)","v":851.18425220458107},{"$f":"SUMPRODUCT('Product Class Dist'!P22:P29,'UEC Development'!P22:P29)","v":833.17219342745932},{"$f":"SUMPRODUCT('Product Class Dist'!Q22:Q29,'UEC Development'!Q22:Q29)","v":834.98634925855936},{"$f":"SUMPRODUCT('Product Class Dist'!R22:R29,'UEC Development'!R22:R29)","v":828.30170413534631},{"$f":"SUMPRODUCT('Product Class Dist'!S22:S29,'UEC Development'!S22:S29)","v":829.26471799748481},{"$f":"SUMPRODUCT('Product Class Dist'!T22:T29,'UEC Development'!T22:T29)","v":827.8404568126316},{"$f":"SUMPRODUCT('Product Class Dist'!U22:U29,'UEC Development'!U22:U29)","v":828.52340189255153},{"$f":"SUMPRODUCT('Product Class Dist'!V22:V29,'UEC Development'!V22:V29)","v":826.33099023276816},{"$f":"SUMPRODUCT('Product Class Dist'!W22:W29,'UEC Development'!W22:W29)","v":820.99695914894028},{"$f":"SUMPRODUCT('Product Class Dist'!X22:X29,'UEC Development'!X22:X29)","v":820.90688402408},{"$f":"SUMPRODUCT('Product Class Dist'!Y22:Y29,'UEC Development'!Y22:Y29)","v":821.73321528388487},{"$f":"SUMPRODUCT('Product Class Dist'!Z22:Z29,'UEC Development'!Z22:Z29)","v":826.44119000065564},{"$f":"SUMPRODUCT('Product Class Dist'!AA22:AA29,'UEC Development'!AA22:AA29)","v":826.11231620476019},{"$f":"SUMPRODUCT('Product Class Dist'!AB22:AB29,'UEC Development'!AB22:AB29)","v":830.16558065152253},{"$f":"SUMPRODUCT('Product Class Dist'!AC22:AC29,'UEC Development'!AC22:AC29)","v":824.01397344591226},{"$f":"SUMPRODUCT('Product Class Dist'!AD22:AD29,'UEC Development'!AD22:AD29)","v":810.42567449424075},{"$f":"SUMPRODUCT('Product Class Dist'!AE22:AE29,'UEC Development'!AE22:AE29)","v":804.6242104051521},{"$f":"SUMPRODUCT('Product Class Dist'!AF22:AF29,'UEC Development'!AF22:AF29)","v":804.6242104051521},{"$f":"SUMPRODUCT('Product Class Dist'!AG22:AG29,'UEC Development'!AG22:AG29)","v":804.6242104051521},{"$f":"SUMPRODUCT('Product Class Dist'!AH22:AH29,'UEC Development'!AH22:AH29)","v":807.0409376177472},{"$f":"SUMPRODUCT('Product Class Dist'!AI22:AI29,'UEC Development'!AI22:AI29)","v":840.8307110759049},{"$f":"SUMPRODUCT('Product Class Dist'!AJ22:AJ29,'UEC Development'!AJ22:AJ29)","v":839.29547044578135},{"$f":"SUMPRODUCT('Product Class Dist'!AK22:AK29,'UEC Development'!AK22:AK29)","v":843.70474018091193},{"$f":"SUMPRODUCT('Product Class Dist'!AL22:AL29,'UEC Development'!AL22:AL29)","v":843.25404293991733},{"$f":"SUMPRODUCT('Product Class Dist'!AM22:AM29,'UEC Development'!AM22:AM29)","v":844.52813131552466},{"$f":"SUMPRODUCT('Product Class Dist'!AN22:AN29,'UEC Development'!AN22:AN29)","v":843.21782124471815},{"$f":"SUMPRODUCT('Product Class Dist'!AO22:AO29,'UEC Development'!AO22:AO29)","v":843.97065662900718},{"$f":"SUMPRODUCT('Product Class Dist'!AP22:AP29,'UEC Development'!AP22:AP29)","v":563.7504132368864},{"$f":"SUMPRODUCT('Product Class Dist'!AQ22:AQ29,'UEC Development'!AQ22:AQ29)","v":563.72577828803571},{"$f":"SUMPRODUCT('Product Class Dist'!AR22:AR29,'UEC Development'!AR22:AR29)","v":563.98744759449733},{"$f":"SUMPRODUCT('Product Class Dist'!AS22:AS29,'UEC Development'!AS22:AS29)","v":563.12114460281998},{"$f":"SUMPRODUCT('Product Class Dist'!AT22:AT29,'UEC Development'!AT22:AT29)","v":562.84333938859936},{"$f":"SUMPRODUCT('Product Class Dist'!AU22:AU29,'UEC Development'!AU22:AU29)","v":563.12001816128429},{"$f":"SUMPRODUCT('Product Class Dist'!AV22:AV29,'UEC Development'!AV22:AV29)","v":563.3189502706042},{"$f":"SUMPRODUCT('Product Class Dist'!AW22:AW29,'UEC Development'!AW22:AW29)","v":563.51112306819562},{"$f":"SUMPRODUCT('Product Class Dist'!AX22:AX29,'UEC Development'!AX22:AX29)","v":563.84101483749112},{"$f":"SUMPRODUCT('Product Class Dist'!AY22:AY29,'UEC Development'!AY22:AY29)","v":564.22463151148509},{"$f":"SUMPRODUCT('Product Class Dist'!AZ22:AZ29,'UEC Development'!AZ22:AZ29)","v":564.73414399680303},{"$f":"SUMPRODUCT('Product Class Dist'!BA22:BA29,'UEC Development'!BA22:BA29)","v":565.05579806876085},{"$f":"SUMPRODUCT('Product Class Dist'!BB22:BB29,'UEC Development'!BB22:BB29)","v":565.06839719865991},{"$f":"SUMPRODUCT('Product Class Dist'!BC22:BC29,'UEC Development'!BC22:BC29)","v":565.16907250887391},{"$f":"SUMPRODUCT('Product Class Dist'!BD22:BD29,'UEC Development'!BD22:BD29)","v":565.04993805487777},{"$f":"SUMPRODUCT('Product Class Dist'!BE22:BE29,'UEC Development'!BE22:BE29)","v":565.24178162885028}]
[]
[null,null,"Installed UEC (Vintage Weighted Average) "]
[null,null,null,1981,{"$f":"D15+1","v":1982},{"$f":"E15+1","v":1983},1984,1985,1986,1987,1988,1989,1990,1991,1992,1993,1994,1995,1996,1997,1998,1999,2000,2001,2002,2003,2004,2005,2006,2007,2008,2009,2010,2011,2012,2013,2014,2015,2016,2017,2018,2019,2020,2021,2022,2023,2024,2025,2026,2027,2028,2029,2030,2031,2032,2033,2034]
[null,null,"PRE-Case UEC",{"$f":"IF(D$15-$D$15+2<=LIFETIME_SF,D11,\nSUMPRODUCT(OFFSET(D11,0,(-1*LIFETIME_SF)+1,1,LIFETIME_SF),OFFSET('Shipments and Stock - SF'!E$14,0,(-1*LIFETIME_SF)+1,1,LIFETIME_SF))/\nSUM(OFFSET('Shipments and Stock - SF'!E$14,0,(-1*LIFETIME_SF)+1,1,LIFETIME_SF)))","v":835.78303324604315},{"$f":"IF(E$15-$D$15+2<=LIFETIME_SF,E11,\nSUMPRODUCT(OFFSET(E11,0,(-1*LIFETIME_SF)+1,1,LIFETIME_SF),OFFSET('Shipments and Stock - SF'!F$14,0,(-1*LIFETIME_SF)+1,1,LIFETIME_SF))/\nSUM(OFFSET('Shipments and Stock - SF'!F$14,0,(-1*LIFETIME_SF)+1,1,LIFETIME_SF)))","v":827.55138684827273},{"$f":"IF(F$15-$D$15+2<=LIFETIME_SF,F11,\nSUMPRODUCT(OFFSET(F11,0,(-1*LIFETIME_SF)+1,1,LIFETIME_SF),OFFSET('Shipments and Stock - SF'!G$14,0,(-1*LIFETIME_SF)+1,1,LIFETIME_SF))/\nSUM(OFFSET('Shipments and Stock - SF'!G$14,0,(-1*LIFETIME_SF)+1,1,LIFETIME_SF)))","v":837.39847274126691},{"$f":"IF(G$15-$D$15+2<=LIFETIME_SF,G11,\nSUMPRODUCT(OFFSET(G11,0,(-1*LIFETIME_SF)+1,1,LIFETIME_SF),OFFSET('Shipments and Stock - SF'!H$14,0,(-1*LIFETIME_SF)+1,1,LIFETIME_SF))/\nSUM(OFFSET('Shipments and Stock - SF'!H$14,0,(-1*LIFETIME_SF)+1,1,LIFETIME_SF)))","v":835.5619388129137},{"$f":"IF(H$15-$D$15+2<=LIFETIME_SF,H11,\nSUMPRODUCT(OFFSET(H11,0,(-1*LIFETIME_SF)+1,1,LIFETIME_SF),OFFSET('Shipments and Stock - SF'!I$14,0,(-1*LIFETIME_SF)+1,1,LIFETIME_SF))/\nSUM(OFFSET('Shipments and Stock - SF'!I$14,0,(-1*LIFETIME_SF)+1,1,LIFETIME_SF)))","v":834.4248517805471},{"$f":"IF(I$15-$D$15+2<=LIFETIME_SF,I11,\nSUMPRODUCT(OFFSET(I11,0,(-1*LIFETIME_SF)+1,1,LIFETIME_SF),OFFSET('Shipments and Stock - SF'!J$14,0,(-1*LIFETIME_SF)+1,1,LIFETIME_SF))/\nSUM(OFFSET('Shipments and Stock - SF'!J$14,0,(-1*LIFETIME_SF)+1,1,LIFETIME_SF)))","v":836.30186836818484},{"$f":"IF(J$15-$D$15+2<=LIFETIME_SF,J11,\nSUMPRODUCT(OFFSET(J11,0,(-1*LIFETIME_SF)+1,1,LIFETIME_SF),OFFSET('Shipments and Stock - SF'!K$14,0,(-1*LIFETIME_SF)+1,1,LIFETIME_SF))/\nSUM(OFFSET('Shipments and Stock - SF'!K$14,0,(-1*LIFETIME_SF)+1,1,LIFETIME_SF)))","v":836.44955080323371},{"$f":"IF(K$15-$D$15+2<=LIFETIME_SF,K11,\nSUMPRODUCT(OFFSET(K11,0,(-1*LIFETIME_SF)+1,1,LIFETIME_SF),OFFSET('Shipments and Stock - SF'!L$14,0,(-1*LIFETIME_SF)+1,1,LIFETIME_SF))/\nSUM(OFFSET('Shipments and Stock - SF'!L$14,0,(-1*LIFETIME_SF)+1,1,LIFETIME_SF)))","v":838.9644313730048},{"$f":"IF(L$15-$D$15+2<=LIFETIME_SF,L11,\nSUMPRODUCT(OFFSET(L11,0,(-1*LIFETIME_SF)+1,1,LIFETIME_SF),OFFSET('Shipments and Stock - SF'!M$14,0,(-1*LIFETIME_SF)+1,1,LIFETIME_SF))/\nSUM(OFFSET('Shipments and Stock - SF'!M$14,0,(-1*LIFETIME_SF)+1,1,LIFETIME_SF)))","v":844.70314967995682},{"$f":"IF(M$15-$D$15+2<=LIFETIME_SF,M11,\nSUMPRODUCT(OFFSET(M11,0,(-1*LIFETIME_SF)+1,1,LIFETIME_SF),OFFSET('Shipments and Stock - SF'!N$14,0,(-1*LIFETIME_SF)+1,1,LIFETIME_SF))/\nSUM(OFFSET('Shipments and Stock - SF'!N$14,0,(-1*LIFETIME_SF)+1,1,LIFETIME_SF)))","v":848.61380658691019},{"$f":"IF(N$15-$D$15+2<=LIFETIME_SF,N11,\nSUMPRODUCT(OFFSET(N11,0,(-1*LIFETIME_SF)+1,1,LIFETIME_SF),OFFSET('Shipments and Stock - SF'!O$14,0,(-1*LIFETIME_SF)+1,1,LIFETIME_SF))/\nSUM(OFFSET('Shipments and Stock - SF'!O$14,0,(-1*LIFETIME_SF)+1,1,LIFETIME_SF)))","v":844.62707212981513},{"$f":"IF(O$15-$D$15+2<=LIFETIME_SF,O11,\nSUMPRODUCT(OFFSET(O11,0,(-1*LIFETIME_SF)+1,1,LIFETIME_SF),OFFSET('Shipments and Stock - SF'!P$14,0,(-1*LIFETIME_SF)+1,1,LIFETIME_SF))/\nSUM(OFFSET('Shipments and Stock - SF'!P$14,0,(-1*LIFETIME_SF)+1,1,LIFETIME_SF)))","v":851.18425220458107},{"$f":"IF(P$15-$D$15+2<=LIFETIME_SF,P11,\nSUMPRODUCT(OFFSET(P11,0,(-1*LIFETIME_SF)+1,1,LIFETIME_SF),OFFSET('Shipments and Stock - SF'!Q$14,0,(-1*LIFETIME_SF)+1,1,LIFETIME_SF))/\nSUM(OFFSET('Shipments and Stock - SF'!Q$14,0,(-1*LIFETIME_SF)+1,1,LIFETIME_SF)))","v":833.17219342745932},{"$f":"IF(Q$15-$D$15+2<=LIFETIME_SF,Q11,\nSUMPRODUCT(OFFSET(Q11,0,(-1*LIFETIME_SF)+1,1,LIFETIME_SF),OFFSET('Shipments and Stock - SF'!R$14,0,(-1*LIFETIME_SF)+1,1,LIFETIME_SF))/\nSUM(OFFSET('Shipments and Stock - SF'!R$14,0,(-1*LIFETIME_SF)+1,1,LIFETIME_SF)))","v":834.98634925855936},{"$f":"IF(R$15-$D$15+2<=LIFETIME_SF,R11,\nSUMPRODUCT(OFFSET(R11,0,(-1*LIFETIME_SF)+1,1,LIFETIME_SF),OFFSET('Shipments and Stock - SF'!S$14,0,(-1*LIFETIME_SF)+1,1,LIFETIME_SF))/\nSUM(OFFSET('Shipments and Stock - SF'!S$14,0,(-1*LIFETIME_SF)+1,1,LIFETIME_SF)))","v":828.30170413534631},{"$f":"IF(S$15-$D$15+2<=LIFETIME_SF,S11,\nSUMPRODUCT(OFFSET(S11,0,(-1*LIFETIME_SF)+1,1,LIFETIME_SF),OFFSET('Shipments and Stock - SF'!T$14,0,(-1*LIFETIME_SF)+1,1,LIFETIME_SF))/\nSUM(OFFSET('Shipments and Stock - SF'!T$14,0,(-1*LIFETIME_SF)+1,1,LIFETIME_SF)))","v":829.26471799748481},{"$f":"IF(T$15-$D$15+2<=LIFETIME_SF,T11,\nSUMPRODUCT(OFFSET(T11,0,(-1*LIFETIME_SF)+1,1,LIFETIME_SF),OFFSET('Shipments and Stock - SF'!U$14,0,(-1*LIFETIME_SF)+1,1,LIFETIME_SF))/\nSUM(OFFSET('Shipments and Stock - SF'!U$14,0,(-1*LIFETIME_SF)+1,1,LIFETIME_SF)))","v":827.8404568126316},{"$f":"IF(U$15-$D$15+2<=LIFETIME_SF,U11,\nSUMPRODUCT(OFFSET(U11,0,(-1*LIFETIME_SF)+1,1,LIFETIME_SF),OFFSET('Shipments and Stock - SF'!V$14,0,(-1*LIFETIME_SF)+1,1,LIFETIME_SF))/\nSUM(OFFSET('Shipments and Stock - SF'!V$14,0,(-1*LIFETIME_SF)+1,1,LIFETIME_SF)))","v":828.52340189255153},{"$f":"IF(V$15-$D$15+2<=LIFETIME_SF,V11,\nSUMPRODUCT(OFFSET(V11,0,(-1*LIFETIME_SF)+1,1,LIFETIME_SF),OFFSET('Shipments and Stock - SF'!W$14,0,(-1*LIFETIME_SF)+1,1,LIFETIME_SF))/\nSUM(OFFSET('Shipments and Stock - SF'!W$14,0,(-1*LIFETIME_SF)+1,1,LIFETIME_SF)))","v":826.33099023276816},{"$f":"IF(W$15-$D$15+2<=LIFETIME_SF,W11,\nSUMPRODUCT(OFFSET(W11,0,(-1*LIFETIME_SF)+1,1,LIFETIME_SF),OFFSET('Shipments and Stock - SF'!X$14,0,(-1*LIFETIME_SF)+1,1,LIFETIME_SF))/\nSUM(OFFSET('Shipments and Stock - SF'!X$14,0,(-1*LIFETIME_SF)+1,1,LIFETIME_SF)))","v":820.99695914894028},{"$f":"IF(X$15-$D$15+2<=LIFETIME_SF,X11,\nSUMPRODUCT(OFFSET(X11,0,(-1*LIFETIME_SF)+1,1,LIFETIME_SF),OFFSET('Shipments and Stock - SF'!Y$14,0,(-1*LIFETIME_SF)+1,1,LIFETIME_SF))/\nSUM(OFFSET('Shipments and Stock - SF'!Y$14,0,(-1*LIFETIME_SF)+1,1,LIFETIME_SF)))","v":834.93283301470069},{"$f":"IF(Y$15-$D$15+2<=LIFETIME_SF,Y11,\nSUMPRODUCT(OFFSET(Y11,0,(-1*LIFETIME_SF)+1,1,LIFETIME_SF),OFFSET('Shipments and Stock - SF'!Z$14,0,(-1*LIFETIME_SF)+1,1,LIFETIME_SF))/\nSUM(OFFSET('Shipments and Stock - SF'!Z$14,0,(-1*LIFETIME_SF)+1,1,LIFETIME_SF)))","v":834.18127983115244},{"$f":"IF(Z$15-$D$15+2<=LIFETIME_SF,Z11,\nSUMPRODUCT(OFFSET(Z11,0,(-1*LIFETIME_SF)+1,1,LIFETIME_SF),OFFSET('Shipments and Stock - SF'!AA$14,0,(-1*LIFETIME_SF)+1,1,LIFETIME_SF))/\nSUM(OFFSET('Shipments and Stock - SF'!AA$14,0,(-1*LIFETIME_SF)+1,1,LIFETIME_SF)))","v":834.07333483134892},{"$f":"IF(AA$15-$D$15+2<=LIFETIME_SF,AA11,\nSUMPRODUCT(OFFSET(AA11,0,(-1*LIFETIME_SF)+1,1,LIFETIME_SF),OFFSET('Shipments and Stock - SF'!AB$14,0,(-1*LIFETIME_SF)+1,1,LIFETIME_SF))/\nSUM(OFFSET('Shipments and Stock - SF'!AB$14,0,(-1*LIFETIME_SF)+1,1,LIFETIME_SF)))","v":833.47234782819976},{"$f":"IF(AB$15-$D$15+2<=LIFETIME_SF,AB11,\nSUMPRODUCT(OFFSET(AB11,0,(-1*LIFETIME_SF)+1,1,LIFETIME_SF),OFFSET('Shipments and Stock - SF'!AC$14,0,(-1*LIFETIME_SF)+1,1,LIFETIME_SF))/\nSUM(OFFSET('Shipments and Stock - SF'!AC$14,0,(-1*LIFETIME_SF)+1,1,LIFETIME_SF)))","v":833.19021199871656},{"$f":"IF(AC$15-$D$15+2<=LIFETIME_SF,AC11,\nSUMPRODUCT(OFFSET(AC11,0,(-1*LIFETIME_SF)+1,1,LIFETIME_SF),OFFSET('Shipments and Stock - SF'!AD$14,0,(-1*LIFETIME_SF)+1,1,LIFETIME_SF))/\nSUM(OFFSET('Shipments and Stock - SF'!AD$14,0,(-1*LIFETIME_SF)+1,1,LIFETIME_SF)))","v":832.6523886063535},{"$f":"IF(AD$15-$D$15+2<=LIFETIME_SF,AD11,\nSUMPRODUCT(OFFSET(AD11,0,(-1*LIFETIME_SF)+1,1,LIFETIME_SF),OFFSET('Shipments and Stock - SF'!AE$14,0,(-1*LIFETIME_SF)+1,1,LIFETIME_SF))/\nSUM(OFFSET('Shipments and Stock - SF'!AE$14,0,(-1*LIFETIME_SF)+1,1,LIFETIME_SF)))","v":831.41328963964042},{"$f":"IF(AE$15-$D$15+2<=LIFETIME_SF,AE11,\nSUMPRODUCT(OFFSET(AE11,0,(-1*LIFETIME_SF)+1,1,LIFETIME_SF),OFFSET('Shipments and Stock - SF'!AF$14,0,(-1*LIFETIME_SF)+1,1,LIFETIME_SF))/\nSUM(OFFSET('Shipments and Stock - SF'!AF$14,0,(-1*LIFETIME_SF)+1,1,LIFETIME_SF)))","v":830.04807655275465},{"$f":"IF(AF$15-$D$15+2<=LIFETIME_SF,AF11,\nSUMPRODUCT(OFFSET(AF11,0,(-1*LIFETIME_SF)+1,1,LIFETIME_SF),OFFSET('Shipments and Stock - SF'!AG$14,0,(-1*LIFETIME_SF)+1,1,LIFETIME_SF))/\nSUM(OFFSET('Shipments and Stock - SF'!AG$14,0,(-1*LIFETIME_SF)+1,1,LIFETIME_SF)))","v":828.56983227590479},{"$f":"IF(AG$15-$D$15+2<=LIFETIME_SF,AG11,\nSUMPRODUCT(OFFSET(AG11,0,(-1*LIFETIME_SF)+1,1,LIFETIME_SF),OFFSET('Shipments and Stock - SF'!AH$14,0,(-1*LIFETIME_SF)+1,1,LIFETIME_SF))/\nSUM(OFFSET('Shipments and Stock - SF'!AH$14,0,(-1*LIFETIME_SF)+1,1,LIFETIME_SF)))","v":826.60988107847731},{"$f":"IF(AH$15-$D$15+2<=LIFETIME_SF,AH11,\nSUMPRODUCT(OFFSET(AH11,0,(-1*LIFETIME_SF)+1,1,LIFETIME_SF),OFFSET('Shipments and Stock - SF'!AI$14,0,(-1*LIFETIME_SF)+1,1,LIFETIME_SF))/\nSUM(OFFSET('Shipments and Stock - SF'!AI$14,0,(-1*LIFETIME_SF)+1,1,LIFETIME_SF)))","v":824.41560623133319},{"$f":"IF(AI$15-$D$15+2<=LIFETIME_SF,AI11,\nSUMPRODUCT(OFFSET(AI11,0,(-1*LIFETIME_SF)+1,1,LIFETIME_SF),OFFSET('Shipments and Stock - SF'!AJ$14,0,(-1*LIFETIME_SF)+1,1,LIFETIME_SF))/\nSUM(OFFSET('Shipments and Stock - SF'!AJ$14,0,(-1*LIFETIME_SF)+1,1,LIFETIME_SF)))","v":824.4896006043233},{"$f":"IF(AJ$15-$D$15+2<=LIFETIME_SF,AJ11,\nSUMPRODUCT(OFFSET(AJ11,0,(-1*LIFETIME_SF)+1,1,LIFETIME_SF),OFFSET('Shipments and Stock - SF'!AK$14,0,(-1*LIFETIME_SF)+1,1,LIFETIME_SF))/\nSUM(OFFSET('Shipments and Stock - SF'!AK$14,0,(-1*LIFETIME_SF)+1,1,LIFETIME_SF)))","v":824.11040343620618},{"$f":"IF(AK$15-$D$15+2<=LIFETIME_SF,AK11,\nSUMPRODUCT(OFFSET(AK11,0,(-1*LIFETIME_SF)+1,1,LIFETIME_SF),OFFSET('Shipments and Stock - SF'!AL$14,0,(-1*LIFETIME_SF)+1,1,LIFETIME_SF))/\nSUM(OFFSET('Shipments and Stock - SF'!AL$14,0,(-1*LIFETIME_SF)+1,1,LIFETIME_SF)))","v":824.87731144369752},{"$f":"IF(AL$15-$D$15+2<=LIFETIME_SF,AL11,\nSUMPRODUCT(OFFSET(AL11,0,(-1*LIFETIME_SF)+1,1,LIFETIME_SF),OFFSET('Shipments and Stock - SF'!AM$14,0,(-1*LIFETIME_SF)+1,1,LIFETIME_SF))/\nSUM(OFFSET('Shipments and Stock - SF'!AM$14,0,(-1*LIFETIME_SF)+1,1,LIFETIME_SF)))","v":825.52274205754065},{"$f":"IF(AM$15-$D$15+2<=LIFETIME_SF,AM11,\nSUMPRODUCT(OFFSET(AM11,0,(-1*LIFETIME_SF)+1,1,LIFETIME_SF),OFFSET('Shipments and Stock - SF'!AN$14,0,(-1*LIFETIME_SF)+1,1,LIFETIME_SF))/\nSUM(OFFSET('Shipments and Stock - SF'!AN$14,0,(-1*LIFETIME_SF)+1,1,LIFETIME_SF)))","v":826.47229691754103},{"$f":"IF(AN$15-$D$15+2<=LIFETIME_SF,AN11,\nSUMPRODUCT(OFFSET(AN11,0,(-1*LIFETIME_SF)+1,1,LIFETIME_SF),OFFSET('Shipments and Stock - SF'!AO$14,0,(-1*LIFETIME_SF)+1,1,LIFETIME_SF))/\nSUM(OFFSET('Shipments and Stock - SF'!AO$14,0,(-1*LIFETIME_SF)+1,1,LIFETIME_SF)))","v":827.28265043794659},{"$f":"IF(AO$15-$D$15+2<=LIFETIME_SF,AO11,\nSUMPRODUCT(OFFSET(AO11,0,(-1*LIFETIME_SF)+1,1,LIFETIME_SF),OFFSET('Shipments and Stock - SF'!AP$14,0,(-1*LIFETIME_SF)+1,1,LIFETIME_SF))/\nSUM(OFFSET('Shipments and Stock - SF'!AP$14,0,(-1*LIFETIME_SF)+1,1,LIFETIME_SF)))","v":828.15467137088922},{"$f":"IF(AP$15-$D$15+2<=LIFETIME_SF,AP11,\nSUMPRODUCT(OFFSET(AP11,0,(-1*LIFETIME_SF)+1,1,LIFETIME_SF),OFFSET('Shipments and Stock - SF'!AQ$14,0,(-1*LIFETIME_SF)+1,1,LIFETIME_SF))/\nSUM(OFFSET('Shipments and Stock - SF'!AQ$14,0,(-1*LIFETIME_SF)+1,1,LIFETIME_SF)))","v":828.89707259874251},{"$f":"IF(AQ$15-$D$15+2<=LIFETIME_SF,AQ11,\nSUMPRODUCT(OFFSET(AQ11,0,(-1*LIFETIME_SF)+1,1,LIFETIME_SF),OFFSET('Shipments and Stock - SF'!AR$14,0,(-1*LIFETIME_SF)+1,1,LIFETIME_SF))/\nSUM(OFFSET('Shipments and Stock - SF'!AR$14,0,(-1*LIFETIME_SF)+1,1,LIFETIME_SF)))","v":829.68474184967772},{"$f":"IF(AR$15-$D$15+2<=LIFETIME_SF,AR11,\nSUMPRODUCT(OFFSET(AR11,0,(-1*LIFETIME_SF)+1,1,LIFETIME_SF),OFFSET('Shipments and Stock - SF'!AS$14,0,(-1*LIFETIME_SF)+1,1,LIFETIME_SF))/\nSUM(OFFSET('Shipments and Stock - SF'!AS$14,0,(-1*LIFETIME_SF)+1,1,LIFETIME_SF)))","v":830.6233340902179},{"$f":"IF(AS$15-$D$15+2<=LIFETIME_SF,AS11,\nSUMPRODUCT(OFFSET(AS11,0,(-1*LIFETIME_SF)+1,1,LIFETIME_SF),OFFSET('Shipments and Stock - SF'!AT$14,0,(-1*LIFETIME_SF)+1,1,LIFETIME_SF))/\nSUM(OFFSET('Shipments and Stock - SF'!AT$14,0,(-1*LIFETIME_SF)+1,1,LIFETIME_SF)))","v":831.51420729043025},{"$f":"IF(AT$15-$D$15+2<=LIFETIME_SF,AT11,\nSUMPRODUCT(OFFSET(AT11,0,(-1*LIFETIME_SF)+1,1,LIFETIME_SF),OFFSET('Shipments and Stock - SF'!AU$14,0,(-1*LIFETIME_SF)+1,1,LIFETIME_SF))/\nSUM(OFFSET('Shipments and Stock - SF'!AU$14,0,(-1*LIFETIME_SF)+1,1,LIFETIME_SF)))","v":832.13303647815428},{"$f":"IF(AU$15-$D$15+2<=LIFETIME_SF,AU11,\nSUMPRODUCT(OFFSET(AU11,0,(-1*LIFETIME_SF)+1,1,LIFETIME_SF),OFFSET('Shipments and Stock - SF'!AV$14,0,(-1*LIFETIME_SF)+1,1,LIFETIME_SF))/\nSUM(OFFSET('Shipments and Stock - SF'!AV$14,0,(-1*LIFETIME_SF)+1,1,LIFETIME_SF)))","v":832.52626947074839},{"$f":"IF(AV$15-$D$15+2<=LIFETIME_SF,AV11,\nSUMPRODUCT(OFFSET(AV11,0,(-1*LIFETIME_SF)+1,1,LIFETIME_SF),OFFSET('Shipments and Stock - SF'!AW$14,0,(-1*LIFETIME_SF)+1,1,LIFETIME_SF))/\nSUM(OFFSET('Shipments and Stock - SF'!AW$14,0,(-1*LIFETIME_SF)+1,1,LIFETIME_SF)))","v":832.81685534403459},{"$f":"IF(AW$15-$D$15+2<=LIFETIME_SF,AW11,\nSUMPRODUCT(OFFSET(AW11,0,(-1*LIFETIME_SF)+1,1,LIFETIME_SF),OFFSET('Shipments and Stock - SF'!AX$14,0,(-1*LIFETIME_SF)+1,1,LIFETIME_SF))/\nSUM(OFFSET('Shipments and Stock - SF'!AX$14,0,(-1*LIFETIME_SF)+1,1,LIFETIME_SF)))","v":832.8660569732898},{"$f":"IF(AX$15-$D$15+2<=LIFETIME_SF,AX11,\nSUMPRODUCT(OFFSET(AX11,0,(-1*LIFETIME_SF)+1,1,LIFETIME_SF),OFFSET('Shipments and Stock - SF'!AY$14,0,(-1*LIFETIME_SF)+1,1,LIFETIME_SF))/\nSUM(OFFSET('Shipments and Stock - SF'!AY$14,0,(-1*LIFETIME_SF)+1,1,LIFETIME_SF)))","v":833.20663434450807},{"$f":"IF(AY$15-$D$15+2<=LIFETIME_SF,AY11,\nSUMPRODUCT(OFFSET(AY11,0,(-1*LIFETIME_SF)+1,1,LIFETIME_SF),OFFSET('Shipments and Stock - SF'!AZ$14,0,(-1*LIFETIME_SF)+1,1,LIFETIME_SF))/\nSUM(OFFSET('Shipments and Stock - SF'!AZ$14,0,(-1*LIFETIME_SF)+1,1,LIFETIME_SF)))","v":834.0949095205159},{"$f":"IF(AZ$15-$D$15+2<=LIFETIME_SF,AZ11,\nSUMPRODUCT(OFFSET(AZ11,0,(-1*LIFETIME_SF)+1,1,LIFETIME_SF),OFFSET('Shipments and Stock - SF'!BA$14,0,(-1*LIFETIME_SF)+1,1,LIFETIME_SF))/\nSUM(OFFSET('Shipments and Stock - SF'!BA$14,0,(-1*LIFETIME_SF)+1,1,LIFETIME_SF)))","v":835.17277394178222},{"$f":"IF(BA$15-$D$15+2<=LIFETIME_SF,BA11,\nSUMPRODUCT(OFFSET(BA11,0,(-1*LIFETIME_SF)+1,1,LIFETIME_SF),OFFSET('Shipments and Stock - SF'!BB$14,0,(-1*LIFETIME_SF)+1,1,LIFETIME_SF))/\nSUM(OFFSET('Shipments and Stock - SF'!BB$14,0,(-1*LIFETIME_SF)+1,1,LIFETIME_SF)))","v":836.21485555553556},{"$f":"IF(BB$15-$D$15+2<=LIFETIME_SF,BB11,\nSUMPRODUCT(OFFSET(BB11,0,(-1*LIFETIME_SF)+1,1,LIFETIME_SF),OFFSET('Shipments and Stock - SF'!BC$14,0,(-1*LIFETIME_SF)+1,1,LIFETIME_SF))/\nSUM(OFFSET('Shipments and Stock - SF'!BC$14,0,(-1*LIFETIME_SF)+1,1,LIFETIME_SF)))","v":837.20388379005237},{"$f":"IF(BC$15-$D$15+2<=LIFETIME_SF,BC11,\nSUMPRODUCT(OFFSET(BC11,0,(-1*LIFETIME_SF)+1,1,LIFETIME_SF),OFFSET('Shipments and Stock - SF'!BD$14,0,(-1*LIFETIME_SF)+1,1,LIFETIME_SF))/\nSUM(OFFSET('Shipments and Stock - SF'!BD$14,0,(-1*LIFETIME_SF)+1,1,LIFETIME_SF)))","v":838.04284388650467},{"$f":"IF(BD$15-$D$15+2<=LIFETIME_SF,BD11,\nSUMPRODUCT(OFFSET(BD11,0,(-1*LIFETIME_SF)+1,1,LIFETIME_SF),OFFSET('Shipments and Stock - SF'!BE$14,0,(-1*LIFETIME_SF)+1,1,LIFETIME_SF))/\nSUM(OFFSET('Shipments and Stock - SF'!BE$14,0,(-1*LIFETIME_SF)+1,1,LIFETIME_SF)))","v":837.06661117285955},{"$f":"IF(BE$15-$D$15+2<=LIFETIME_SF,BE11,\nSUMPRODUCT(OFFSET(BE11,0,(-1*LIFETIME_SF)+1,1,LIFETIME_SF),OFFSET('Shipments and Stock - SF'!BF$14,0,(-1*LIFETIME_SF)+1,1,LIFETIME_SF))/\nSUM(OFFSET('Shipments and Stock - SF'!BF$14,0,(-1*LIFETIME_SF)+1,1,LIFETIME_SF)))","v":836.06332746332043}]
[null,null,"POST-Case UEC",{"$f":"IF(D$15-$D$15+2<=LIFETIME_SF,D12,\nSUMPRODUCT(OFFSET(D12,0,(-1*LIFETIME_SF)+1,1,LIFETIME_SF),OFFSET('Shipments and Stock - SF'!E$14,0,(-1*LIFETIME_SF)+1,1,LIFETIME_SF))/\nSUM(OFFSET('Shipments and Stock - SF'!E$14,0,(-1*LIFETIME_SF)+1,1,LIFETIME_SF)))","v":835.78303324604315},{"$f":"IF(E$15-$D$15+2<=LIFETIME_SF,E12,\nSUMPRODUCT(OFFSET(E12,0,(-1*LIFETIME_SF)+1,1,LIFETIME_SF),OFFSET('Shipments and Stock - SF'!F$14,0,(-1*LIFETIME_SF)+1,1,LIFETIME_SF))/\nSUM(OFFSET('Shipments and Stock - SF'!F$14,0,(-1*LIFETIME_SF)+1,1,LIFETIME_SF)))","v":827.55138684827273},{"$f":"IF(F$15-$D$15+2<=LIFETIME_SF,F12,\nSUMPRODUCT(OFFSET(F12,0,(-1*LIFETIME_SF)+1,1,LIFETIME_SF),OFFSET('Shipments and Stock - SF'!G$14,0,(-1*LIFETIME_SF)+1,1,LIFETIME_SF))/\nSUM(OFFSET('Shipments and Stock - SF'!G$14,0,(-1*LIFETIME_SF)+1,1,LIFETIME_SF)))","v":837.39847274126691},{"$f":"IF(G$15-$D$15+2<=LIFETIME_SF,G12,\nSUMPRODUCT(OFFSET(G12,0,(-1*LIFETIME_SF)+1,1,LIFETIME_SF),OFFSET('Shipments and Stock - SF'!H$14,0,(-1*LIFETIME_SF)+1,1,LIFETIME_SF))/\nSUM(OFFSET('Shipments and Stock - SF'!H$14,0,(-1*LIFETIME_SF)+1,1,LIFETIME_SF)))","v":835.5619388129137},{"$f":"IF(H$15-$D$15+2<=LIFETIME_SF,H12,\nSUMPRODUCT(OFFSET(H12,0,(-1*LIFETIME_SF)+1,1,LIFETIME_SF),OFFSET('Shipments and Stock - SF'!I$14,0,(-1*LIFETIME_SF)+1,1,LIFETIME_SF))/\nSUM(OFFSET('Shipments and Stock - SF'!I$14,0,(-1*LIFETIME_SF)+1,1,LIFETIME_SF)))","v":834.4248517805471},{"$f":"IF(I$15-$D$15+2<=LIFETIME_SF,I12,\nSUMPRODUCT(OFFSET(I12,0,(-1*LIFETIME_SF)+1,1,LIFETIME_SF),OFFSET('Shipments and Stock - SF'!J$14,0,(-1*LIFETIME_SF)+1,1,LIFETIME_SF))/\nSUM(OFFSET('Shipments and Stock - SF'!J$14,0,(-1*LIFETIME_SF)+1,1,LIFETIME_SF)))","v":836.30186836818484},{"$f":"IF(J$15-$D$15+2<=LIFETIME_SF,J12,\nSUMPRODUCT(OFFSET(J12,0,(-1*LIFETIME_SF)+1,1,LIFETIME_SF),OFFSET('Shipments and Stock - SF'!K$14,0,(-1*LIFETIME_SF)+1,1,LIFETIME_SF))/\nSUM(OFFSET('Shipments and Stock - SF'!K$14,0,(-1*LIFETIME_SF)+1,1,LIFETIME_SF)))","v":836.44955080323371},{"$f":"IF(K$15-$D$15+2<=LIFETIME_SF,K12,\nSUMPRODUCT(OFFSET(K12,0,(-1*LIFETIME_SF)+1,1,LIFETIME_SF),OFFSET('Shipments and Stock - SF'!L$14,0,(-1*LIFETIME_SF)+1,1,LIFETIME_SF))/\nSUM(OFFSET('Shipments and Stock - SF'!L$14,0,(-1*LIFETIME_SF)+1,1,LIFETIME_SF)))","v":838.9644313730048},{"$f":"IF(L$15-$D$15+2<=LIFETIME_SF,L12,\nSUMPRODUCT(OFFSET(L12,0,(-1*LIFETIME_SF)+1,1,LIFETIME_SF),OFFSET('Shipments and Stock - SF'!M$14,0,(-1*LIFETIME_SF)+1,1,LIFETIME_SF))/\nSUM(OFFSET('Shipments and Stock - SF'!M$14,0,(-1*LIFETIME_SF)+1,1,LIFETIME_SF)))","v":844.70314967995682},{"$f":"IF(M$15-$D$15+2<=LIFETIME_SF,M12,\nSUMPRODUCT(OFFSET(M12,0,(-1*LIFETIME_SF)+1,1,LIFETIME_SF),OFFSET('Shipments and Stock - SF'!N$14,0,(-1*LIFETIME_SF)+1,1,LIFETIME_SF))/\nSUM(OFFSET('Shipments and Stock - SF'!N$14,0,(-1*LIFETIME_SF)+1,1,LIFETIME_SF)))","v":848.61380658691019},{"$f":"IF(N$15-$D$15+2<=LIFETIME_SF,N12,\nSUMPRODUCT(OFFSET(N12,0,(-1*LIFETIME_SF)+1,1,LIFETIME_SF),OFFSET('Shipments and Stock - SF'!O$14,0,(-1*LIFETIME_SF)+1,1,LIFETIME_SF))/\nSUM(OFFSET('Shipments and Stock - SF'!O$14,0,(-1*LIFETIME_SF)+1,1,LIFETIME_SF)))","v":844.62707212981513},{"$f":"IF(O$15-$D$15+2<=LIFETIME_SF,O12,\nSUMPRODUCT(OFFSET(O12,0,(-1*LIFETIME_SF)+1,1,LIFETIME_SF),OFFSET('Shipments and Stock - SF'!P$14,0,(-1*LIFETIME_SF)+1,1,LIFETIME_SF))/\nSUM(OFFSET('Shipments and Stock - SF'!P$14,0,(-1*LIFETIME_SF)+1,1,LIFETIME_SF)))","v":851.18425220458107},{"$f":"IF(P$15-$D$15+2<=LIFETIME_SF,P12,\nSUMPRODUCT(OFFSET(P12,0,(-1*LIFETIME_SF)+1,1,LIFETIME_SF),OFFSET('Shipments and Stock - SF'!Q$14,0,(-1*LIFETIME_SF)+1,1,LIFETIME_SF))/\nSUM(OFFSET('Shipments and Stock - SF'!Q$14,0,(-1*LIFETIME_SF)+1,1,LIFETIME_SF)))","v":833.17219342745932},{"$f":"IF(Q$15-$D$15+2<=LIFETIME_SF,Q12,\nSUMPRODUCT(OFFSET(Q12,0,(-1*LIFETIME_SF)+1,1,LIFETIME_SF),OFFSET('Shipments and Stock - SF'!R$14,0,(-1*LIFETIME_SF)+1,1,LIFETIME_SF))/\nSUM(OFFSET('Shipments and Stock - SF'!R$14,0,(-1*LIFETIME_SF)+1,1,LIFETIME_SF)))","v":834.98634925855936},{"$f":"IF(R$15-$D$15+2<=LIFETIME_SF,R12,\nSUMPRODUCT(OFFSET(R12,0,(-1*LIFETIME_SF)+1,1,LIFETIME_SF),OFFSET('Shipments and Stock - SF'!S$14,0,(-1*LIFETIME_SF)+1,1,LIFETIME_SF))/\nSUM(OFFSET('Shipments and Stock - SF'!S$14,0,(-1*LIFETIME_SF)+1,1,LIFETIME_SF)))","v":828.30170413534631},{"$f":"IF(S$15-$D$15+2<=LIFETIME_SF,S12,\nSUMPRODUCT(OFFSET(S12,0,(-1*LIFETIME_SF)+1,1,LIFETIME_SF),OFFSET('Shipments and Stock - SF'!T$14,0,(-1*LIFETIME_SF)+1,1,LIFETIME_SF))/\nSUM(OFFSET('Shipments and Stock - SF'!T$14,0,(-1*LIFETIME_SF)+1,1,LIFETIME_SF)))","v":829.26471799748481},{"$f":"IF(T$15-$D$15+2<=LIFETIME_SF,T12,\nSUMPRODUCT(OFFSET(T12,0,(-1*LIFETIME_SF)+1,1,LIFETIME_SF),OFFSET('Shipments and Stock - SF'!U$14,0,(-1*LIFETIME_SF)+1,1,LIFETIME_SF))/\nSUM(OFFSET('Shipments and Stock - SF'!U$14,0,(-1*LIFETIME_SF)+1,1,LIFETIME_SF)))","v":827.8404568126316},{"$f":"IF(U$15-$D$15+2<=LIFETIME_SF,U12,\nSUMPRODUCT(OFFSET(U12,0,(-1*LIFETIME_SF)+1,1,LIFETIME_SF),OFFSET('Shipments and Stock - SF'!V$14,0,(-1*LIFETIME_SF)+1,1,LIFETIME_SF))/\nSUM(OFFSET('Shipments and Stock - SF'!V$14,0,(-1*LIFETIME_SF)+1,1,LIFETIME_SF)))","v":828.52340189255153},{"$f":"IF(V$15-$D$15+2<=LIFETIME_SF,V12,\nSUMPRODUCT(OFFSET(V12,0,(-1*LIFETIME_SF)+1,1,LIFETIME_SF),OFFSET('Shipments and Stock - SF'!W$14,0,(-1*LIFETIME_SF)+1,1,LIFETIME_SF))/\nSUM(OFFSET('Shipments and Stock - SF'!W$14,0,(-1*LIFETIME_SF)+1,1,LIFETIME_SF)))","v":826.33099023276816},{"$f":"IF(W$15-$D$15+2<=LIFETIME_SF,W12,\nSUMPRODUCT(OFFSET(W12,0,(-1*LIFETIME_SF)+1,1,LIFETIME_SF),OFFSET('Shipments and Stock - SF'!X$14,0,(-1*LIFETIME_SF)+1,1,LIFETIME_SF))/\nSUM(OFFSET('Shipments and Stock - SF'!X$14,0,(-1*LIFETIME_SF)+1,1,LIFETIME_SF)))","v":820.99695914894028},{"$f":"IF(X$15-$D$15+2<=LIFETIME_SF,X12,\nSUMPRODUCT(OFFSET(X12,0,(-1*LIFETIME_SF)+1,1,LIFETIME_SF),OFFSET('Shipments and Stock - SF'!Y$14,0,(-1*LIFETIME_SF)+1,1,LIFETIME_SF))/\nSUM(OFFSET('Shipments and Stock - SF'!Y$14,0,(-1*LIFETIME_SF)+1,1,LIFETIME_SF)))","v":834.93283301470069},{"$f":"IF(Y$15-$D$15+2<=LIFETIME_SF,Y12,\nSUMPRODUCT(OFFSET(Y12,0,(-1*LIFETIME_SF)+1,1,LIFETIME_SF),OFFSET('Shipments and Stock - SF'!Z$14,0,(-1*LIFETIME_SF)+1,1,LIFETIME_SF))/\nSUM(OFFSET('Shipments and Stock - SF'!Z$14,0,(-1*LIFETIME_SF)+1,1,LIFETIME_SF)))","v":834.18127983115244},{"$f":"IF(Z$15-$D$15+2<=LIFETIME_SF,Z12,\nSUMPRODUCT(OFFSET(Z12,0,(-1*LIFETIME_SF)+1,1,LIFETIME_SF),OFFSET('Shipments and Stock - SF'!AA$14,0,(-1*LIFETIME_SF)+1,1,LIFETIME_SF))/\nSUM(OFFSET('Shipments and Stock - SF'!AA$14,0,(-1*LIFETIME_SF)+1,1,LIFETIME_SF)))","v":834.07333483134892},{"$f":"IF(AA$15-$D$15+2<=LIFETIME_SF,AA12,\nSUMPRODUCT(OFFSET(AA12,0,(-1*LIFETIME_SF)+1,1,LIFETIME_SF),OFFSET('Shipments and Stock - SF'!AB$14,0,(-1*LIFETIME_SF)+1,1,LIFETIME_SF))/\nSUM(OFFSET('Shipments and Stock - SF'!AB$14,0,(-1*LIFETIME_SF)+1,1,LIFETIME_SF)))","v":833.47234782819976},{"$f":"IF(AB$15-$D$15+2<=LIFETIME_SF,AB12,\nSUMPRODUCT(OFFSET(AB12,0,(-1*LIFETIME_SF)+1,1,LIFETIME_SF),OFFSET('Shipments and Stock - SF'!AC$14,0,(-1*LIFETIME_SF)+1,1,LIFETIME_SF))/\nSUM(OFFSET('Shipments and Stock - SF'!AC$14,0,(-1*LIFETIME_SF)+1,1,LIFETIME_SF)))","v":833.19021199871656},{"$f":"IF(AC$15-$D$15+2<=LIFETIME_SF,AC12,\nSUMPRODUCT(OFFSET(AC12,0,(-1*LIFETIME_SF)+1,1,LIFETIME_SF),OFFSET('Shipments and Stock - SF'!AD$14,0,(-1*LIFETIME_SF)+1,1,LIFETIME_SF))/\nSUM(OFFSET('Shipments and Stock - SF'!AD$14,0,(-1*LIFETIME_SF)+1,1,LIFETIME_SF)))","v":832.6523886063535},{"$f":"IF(AD$15-$D$15+2<=LIFETIME_SF,AD12,\nSUMPRODUCT(OFFSET(AD12,0,(-1*LIFETIME_SF)+1,1,LIFETIME_SF),OFFSET('Shipments and Stock - SF'!AE$14,0,(-1*LIFETIME_SF)+1,1,LIFETIME_SF))/\nSUM(OFFSET('Shipments and Stock - SF'!AE$14,0,(-1*LIFETIME_SF)+1,1,LIFETIME_SF)))","v":831.41328963964042},{"$f":"IF(AE$15-$D$15+2<=LIFETIME_SF,AE12,\nSUMPRODUCT(OFFSET(AE12,0,(-1*LIFETIME_SF)+1,1,LIFETIME_SF),OFFSET('Shipments and Stock - SF'!AF$14,0,(-1*LIFETIME_SF)+1,1,LIFETIME_SF))/\nSUM(OFFSET('Shipments and Stock - SF'!AF$14,0,(-1*LIFETIME_SF)+1,1,LIFETIME_SF)))","v":830.04807655275465},{"$f":"IF(AF$15-$D$15+2<=LIFETIME_SF,AF12,\nSUMPRODUCT(OFFSET(AF12,0,(-1*LIFETIME_SF)+1,1,LIFETIME_SF),OFFSET('Shipments and Stock - SF'!AG$14,0,(-1*LIFETIME_SF)+1,1,LIFETIME_SF))/\nSUM(OFFSET('Shipments and Stock - SF'!AG$14,0,(-1*LIFETIME_SF)+1,1,LIFETIME_SF)))","v":828.56983227590479},{"$f":"IF(AG$15-$D$15+2<=LIFETIME_SF,AG12,\nSUMPRODUCT(OFFSET(AG12,0,(-1*LIFETIME_SF)+1,1,LIFETIME_SF),OFFSET('Shipments and Stock - SF'!AH$14,0,(-1*LIFETIME_SF)+1,1,LIFETIME_SF))/\nSUM(OFFSET('Shipments and Stock - SF'!AH$14,0,(-1*LIFETIME_SF)+1,1,LIFETIME_SF)))","v":826.60988107847731},{"$f":"IF(AH$15-$D$15+2<=LIFETIME_SF,AH12,\nSUMPRODUCT(OFFSET(AH12,0,(-1*LIFETIME_SF)+1,1,LIFETIME_SF),OFFSET('Shipments and Stock - SF'!AI$14,0,(-1*LIFETIME_SF)+1,1,LIFETIME_SF))/\nSUM(OFFSET('Shipments and Stock - SF'!AI$14,0,(-1*LIFETIME_SF)+1,1,LIFETIME_SF)))","v":824.41560623133319},{"$f":"IF(AI$15-$D$15+2<=LIFETIME_SF,AI12,\nSUMPRODUCT(OFFSET(AI12,0,(-1*LIFETIME_SF)+1,1,LIFETIME_SF),OFFSET('Shipments and Stock - SF'!AJ$14,0,(-1*LIFETIME_SF)+1,1,LIFETIME_SF))/\nSUM(OFFSET('Shipments and Stock - SF'!AJ$14,0,(-1*LIFETIME_SF)+1,1,LIFETIME_SF)))","v":824.4896006043233},{"$f":"IF(AJ$15-$D$15+2<=LIFETIME_SF,AJ12,\nSUMPRODUCT(OFFSET(AJ12,0,(-1*LIFETIME_SF)+1,1,LIFETIME_SF),OFFSET('Shipments and Stock - SF'!AK$14,0,(-1*LIFETIME_SF)+1,1,LIFETIME_SF))/\nSUM(OFFSET('Shipments and Stock - SF'!AK$14,0,(-1*LIFETIME_SF)+1,1,LIFETIME_SF)))","v":824.11040343620618},{"$f":"IF(AK$15-$D$15+2<=LIFETIME_SF,AK12,\nSUMPRODUCT(OFFSET(AK12,0,(-1*LIFETIME_SF)+1,1,LIFETIME_SF),OFFSET('Shipments and Stock - SF'!AL$14,0,(-1*LIFETIME_SF)+1,1,LIFETIME_SF))/\nSUM(OFFSET('Shipments and Stock - SF'!AL$14,0,(-1*LIFETIME_SF)+1,1,LIFETIME_SF)))","v":824.87731144369752},{"$f":"IF(AL$15-$D$15+2<=LIFETIME_SF,AL12,\nSUMPRODUCT(OFFSET(AL12,0,(-1*LIFETIME_SF)+1,1,LIFETIME_SF),OFFSET('Shipments and Stock - SF'!AM$14,0,(-1*LIFETIME_SF)+1,1,LIFETIME_SF))/\nSUM(OFFSET('Shipments and Stock - SF'!AM$14,0,(-1*LIFETIME_SF)+1,1,LIFETIME_SF)))","v":825.52274205754065},{"$f":"IF(AM$15-$D$15+2<=LIFETIME_SF,AM12,\nSUMPRODUCT(OFFSET(AM12,0,(-1*LIFETIME_SF)+1,1,LIFETIME_SF),OFFSET('Shipments and Stock - SF'!AN$14,0,(-1*LIFETIME_SF)+1,1,LIFETIME_SF))/\nSUM(OFFSET('Shipments and Stock - SF'!AN$14,0,(-1*LIFETIME_SF)+1,1,LIFETIME_SF)))","v":826.47229691754103},{"$f":"IF(AN$15-$D$15+2<=LIFETIME_SF,AN12,\nSUMPRODUCT(OFFSET(AN12,0,(-1*LIFETIME_SF)+1,1,LIFETIME_SF),OFFSET('Shipments and Stock - SF'!AO$14,0,(-1*LIFETIME_SF)+1,1,LIFETIME_SF))/\nSUM(OFFSET('Shipments and Stock - SF'!AO$14,0,(-1*LIFETIME_SF)+1,1,LIFETIME_SF)))","v":827.28265043794659},{"$f":"IF(AO$15-$D$15+2<=LIFETIME_SF,AO12,\nSUMPRODUCT(OFFSET(AO12,0,(-1*LIFETIME_SF)+1,1,LIFETIME_SF),OFFSET('Shipments and Stock - SF'!AP$14,0,(-1*LIFETIME_SF)+1,1,LIFETIME_SF))/\nSUM(OFFSET('Shipments and Stock - SF'!AP$14,0,(-1*LIFETIME_SF)+1,1,LIFETIME_SF)))","v":828.15467137088922},{"$f":"IF(AP$15-$D$15+2<=LIFETIME_SF,AP12,\nSUMPRODUCT(OFFSET(AP12,0,(-1*LIFETIME_SF)+1,1,LIFETIME_SF),OFFSET('Shipments and Stock - SF'!AQ$14,0,(-1*LIFETIME_SF)+1,1,LIFETIME_SF))/\nSUM(OFFSET('Shipments and Stock - SF'!AQ$14,0,(-1*LIFETIME_SF)+1,1,LIFETIME_SF)))","v":814.20025235691674},{"$f":"IF(AQ$15-$D$15+2<=LIFETIME_SF,AQ12,\nSUMPRODUCT(OFFSET(AQ12,0,(-1*LIFETIME_SF)+1,1,LIFETIME_SF),OFFSET('Shipments and Stock - SF'!AR$14,0,(-1*LIFETIME_SF)+1,1,LIFETIME_SF))/\nSUM(OFFSET('Shipments and Stock - SF'!AR$14,0,(-1*LIFETIME_SF)+1,1,LIFETIME_SF)))","v":800.93898469236615},{"$f":"IF(AR$15-$D$15+2<=LIFETIME_SF,AR12,\nSUMPRODUCT(OFFSET(AR12,0,(-1*LIFETIME_SF)+1,1,LIFETIME_SF),OFFSET('Shipments and Stock - SF'!AS$14,0,(-1*LIFETIME_SF)+1,1,LIFETIME_SF))/\nSUM(OFFSET('Shipments and Stock - SF'!AS$14,0,(-1*LIFETIME_SF)+1,1,LIFETIME_SF)))","v":788.70442115719254},{"$f":"IF(AS$15-$D$15+2<=LIFETIME_SF,AS12,\nSUMPRODUCT(OFFSET(AS12,0,(-1*LIFETIME_SF)+1,1,LIFETIME_SF),OFFSET('Shipments and Stock - SF'!AT$14,0,(-1*LIFETIME_SF)+1,1,LIFETIME_SF))/\nSUM(OFFSET('Shipments and Stock - SF'!AT$14,0,(-1*LIFETIME_SF)+1,1,LIFETIME_SF)))","v":776.79835886913065},{"$f":"IF(AT$15-$D$15+2<=LIFETIME_SF,AT12,\nSUMPRODUCT(OFFSET(AT12,0,(-1*LIFETIME_SF)+1,1,LIFETIME_SF),OFFSET('Shipments and Stock - SF'!AU$14,0,(-1*LIFETIME_SF)+1,1,LIFETIME_SF))/\nSUM(OFFSET('Shipments and Stock - SF'!AU$14,0,(-1*LIFETIME_SF)+1,1,LIFETIME_SF)))","v":762.71771999994917},{"$f":"IF(AU$15-$D$15+2<=LIFETIME_SF,AU12,\nSUMPRODUCT(OFFSET(AU12,0,(-1*LIFETIME_SF)+1,1,LIFETIME_SF),OFFSET('Shipments and Stock - SF'!AV$14,0,(-1*LIFETIME_SF)+1,1,LIFETIME_SF))/\nSUM(OFFSET('Shipments and Stock - SF'!AV$14,0,(-1*LIFETIME_SF)+1,1,LIFETIME_SF)))","v":749.17538654578823},{"$f":"IF(AV$15-$D$15+2<=LIFETIME_SF,AV12,\nSUMPRODUCT(OFFSET(AV12,0,(-1*LIFETIME_SF)+1,1,LIFETIME_SF),OFFSET('Shipments and Stock - SF'!AW$14,0,(-1*LIFETIME_SF)+1,1,LIFETIME_SF))/\nSUM(OFFSET('Shipments and Stock - SF'!AW$14,0,(-1*LIFETIME_SF)+1,1,LIFETIME_SF)))","v":735.07747458629115},{"$f":"IF(AW$15-$D$15+2<=LIFETIME_SF,AW12,\nSUMPRODUCT(OFFSET(AW12,0,(-1*LIFETIME_SF)+1,1,LIFETIME_SF),OFFSET('Shipments and Stock - SF'!AX$14,0,(-1*LIFETIME_SF)+1,1,LIFETIME_SF))/\nSUM(OFFSET('Shipments and Stock - SF'!AX$14,0,(-1*LIFETIME_SF)+1,1,LIFETIME_SF)))","v":720.95076802427991},{"$f":"IF(AX$15-$D$15+2<=LIFETIME_SF,AX12,\nSUMPRODUCT(OFFSET(AX12,0,(-1*LIFETIME_SF)+1,1,LIFETIME_SF),OFFSET('Shipments and Stock - SF'!AY$14,0,(-1*LIFETIME_SF)+1,1,LIFETIME_SF))/\nSUM(OFFSET('Shipments and Stock - SF'!AY$14,0,(-1*LIFETIME_SF)+1,1,LIFETIME_SF)))","v":708.13777207547389},{"$f":"IF(AY$15-$D$15+2<=LIFETIME_SF,AY12,\nSUMPRODUCT(OFFSET(AY12,0,(-1*LIFETIME_SF)+1,1,LIFETIME_SF),OFFSET('Shipments and Stock - SF'!AZ$14,0,(-1*LIFETIME_SF)+1,1,LIFETIME_SF))/\nSUM(OFFSET('Shipments and Stock - SF'!AZ$14,0,(-1*LIFETIME_SF)+1,1,LIFETIME_SF)))","v":697.07155856418422},{"$f":"IF(AZ$15-$D$15+2<=LIFETIME_SF,AZ12,\nSUMPRODUCT(OFFSET(AZ12,0,(-1*LIFETIME_SF)+1,1,LIFETIME_SF),OFFSET('Shipments and Stock - SF'!BA$14,0,(-1*LIFETIME_SF)+1,1,LIFETIME_SF))/\nSUM(OFFSET('Shipments and Stock - SF'!BA$14,0,(-1*LIFETIME_SF)+1,1,LIFETIME_SF)))","v":687.67731868681778},{"$f":"IF(BA$15-$D$15+2<=LIFETIME_SF,BA12,\nSUMPRODUCT(OFFSET(BA12,0,(-1*LIFETIME_SF)+1,1,LIFETIME_SF),OFFSET('Shipments and Stock - SF'!BB$14,0,(-1*LIFETIME_SF)+1,1,LIFETIME_SF))/\nSUM(OFFSET('Shipments and Stock - SF'!BB$14,0,(-1*LIFETIME_SF)+1,1,LIFETIME_SF)))","v":678.70622814074795},{"$f":"IF(BB$15-$D$15+2<=LIFETIME_SF,BB12,\nSUMPRODUCT(OFFSET(BB12,0,(-1*LIFETIME_SF)+1,1,LIFETIME_SF),OFFSET('Shipments and Stock - SF'!BC$14,0,(-1*LIFETIME_SF)+1,1,LIFETIME_SF))/\nSUM(OFFSET('Shipments and Stock - SF'!BC$14,0,(-1*LIFETIME_SF)+1,1,LIFETIME_SF)))","v":668.74152127424577},{"$f":"IF(BC$15-$D$15+2<=LIFETIME_SF,BC12,\nSUMPRODUCT(OFFSET(BC12,0,(-1*LIFETIME_SF)+1,1,LIFETIME_SF),OFFSET('Shipments and Stock - SF'!BD$14,0,(-1*LIFETIME_SF)+1,1,LIFETIME_SF))/\nSUM(OFFSET('Shipments and Stock - SF'!BD$14,0,(-1*LIFETIME_SF)+1,1,LIFETIME_SF)))","v":657.8785569530138},{"$f":"IF(BD$15-$D$15+2<=LIFETIME_SF,BD12,\nSUMPRODUCT(OFFSET(BD12,0,(-1*LIFETIME_SF)+1,1,LIFETIME_SF),OFFSET('Shipments and Stock - SF'!BE$14,0,(-1*LIFETIME_SF)+1,1,LIFETIME_SF))/\nSUM(OFFSET('Shipments and Stock - SF'!BE$14,0,(-1*LIFETIME_SF)+1,1,LIFETIME_SF)))","v":643.07046093575605},{"$f":"IF(BE$15-$D$15+2<=LIFETIME_SF,BE12,\nSUMPRODUCT(OFFSET(BE12,0,(-1*LIFETIME_SF)+1,1,LIFETIME_SF),OFFSET('Shipments and Stock - SF'!BF$14,0,(-1*LIFETIME_SF)+1,1,LIFETIME_SF))/\nSUM(OFFSET('Shipments and Stock - SF'!BF$14,0,(-1*LIFETIME_SF)+1,1,LIFETIME_SF)))","v":627.89816151894775}]

{"sheet":"UEC-MF","index":22,"n_rows":17,"n_cols":57,"rows_kept":17,"cut":false,"hidden":false,"merged":[]}
[]
[null,null,"Weighted Average Annual UEC - Multi Family"]
[]
[null,null,"NAVIGATION"]
[]
[null,null,"COMMENTS"]
[]
[]
[null,null,"Market UEC (Shipment Weighted Average)"]
[null,null,null,1981,{"$f":"D10+1","v":1982},{"$f":"E10+1","v":1983},1984,1985,1986,1987,1988,1989,1990,1991,1992,1993,1994,1995,1996,1997,1998,1999,2000,2001,2002,2003,2004,2005,2006,2007,2008,2009,2010,2011,2012,2013,2014,2015,2016,2017,2018,2019,2020,2021,2022,2023,2024,2025,2026,2027,2028,2029,2030,2031,2032,2033,2034]
[null,null,"PRE-Case UEC",{"$f":"SUMPRODUCT('Product Class Dist'!D38:D45,'UEC Development'!D38:D45)","v":833.48620729536208},{"$f":"SUMPRODUCT('Product Class Dist'!E38:E45,'UEC Development'!E38:E45)","v":823.42766437876628},{"$f":"SUMPRODUCT('Product Class Dist'!F38:F45,'UEC Development'!F38:F45)","v":828.11672250139054},{"$f":"SUMPRODUCT('Product Class Dist'!G38:G45,'UEC Development'!G38:G45)","v":841.72531145758285},{"$f":"SUMPRODUCT('Product Class Dist'!H38:H45,'UEC Development'!H38:H45)","v":857.2968525479256},{"$f":"SUMPRODUCT('Product Class Dist'!I38:I45,'UEC Development'!I38:I45)","v":852.90889075974019},{"$f":"SUMPRODUCT('Product Class Dist'!J38:J45,'UEC Development'!J38:J45)","v":856.97890063976206},{"$f":"SUMPRODUCT('Product Class Dist'!K38:K45,'UEC Development'!K38:K45)","v":865.1501035087897},{"$f":"SUMPRODUCT('Product Class Dist'!L38:L45,'UEC Development'!L38:L45)","v":871.8367217450384},{"$f":"SUMPRODUCT('Product Class Dist'!M38:M45,'UEC Development'!M38:M45)","v":865.59052270468328},{"$f":"SUMPRODUCT('Product Class Dist'!N38:N45,'UEC Development'!N38:N45)","v":838.09983163541574},{"$f":"SUMPRODUCT('Product Class Dist'!O38:O45,'UEC Development'!O38:O45)","v":838.92214344442652},{"$f":"SUMPRODUCT('Product Class Dist'!P38:P45,'UEC Development'!P38:P45)","v":787.63568330585315},{"$f":"SUMPRODUCT('Product Class Dist'!Q38:Q45,'UEC Development'!Q38:Q45)","v":787.63568330585315},{"$f":"SUMPRODUCT('Product Class Dist'!R38:R45,'UEC Development'!R38:R45)","v":787.63568330585315},{"$f":"SUMPRODUCT('Product Class Dist'!S38:S45,'UEC Development'!S38:S45)","v":787.63568330585315},{"$f":"SUMPRODUCT('Product Class Dist'!T38:T45,'UEC Development'!T38:T45)","v":787.63568330585315},{"$f":"SUMPRODUCT('Product Class Dist'!U38:U45,'UEC Development'!U38:U45)","v":787.63568330585315},{"$f":"SUMPRODUCT('Product Class Dist'!V38:V45,'UEC Development'!V38:V45)","v":787.63568330585315},{"$f":"SUMPRODUCT('Product Class Dist'!W38:W45,'UEC Development'!W38:W45)","v":787.63568330585315},{"$f":"SUMPRODUCT('Product Class Dist'!X38:X45,'UEC Development'!X38:X45)","v":787.63568330585315},{"$f":"SUMPRODUCT('Product Class Dist'!Y38:Y45,'UEC Development'!Y38:Y45)","v":787.63568330585315},{"$f":"SUMPRODUCT('Product Class Dist'!Z38:Z45,'UEC Development'!Z38:Z45)","v":787.63568330585315},{"$f":"SUMPRODUCT('Product Class Dist'!AA38:AA45,'UEC Development'!AA38:AA45)","v":787.63568330585315},{"$f":"SUMPRODUCT('Product Class Dist'!AB38:AB45,'UEC Development'!AB38:AB45)","v":787.63568330585315},{"$f":"SUMPRODUCT('Product Class Dist'!AC38:AC45,'UEC Development'!AC38:AC45)","v":787.63568330585315},{"$f":"SUMPRODUCT('Product Class Dist'!AD38:AD45,'UEC Development'!AD38:AD45)","v":787.63568330585315},{"$f":"SUMPRODUCT('Product Class Dist'!AE38:AE45,'UEC Development'!AE38:AE45)","v":787.63568330585315},{"$f":"SUMPRODUCT('Product Class Dist'!AF38:AF45,'UEC Development'!AF38:AF45)","v":787.63568330585315},{"$f":"SUMPRODUCT('Product Class Dist'!AG38:AG45,'UEC Development'!AG38:AG45)","v":787.63568330585315},{"$f":"SUMPRODUCT('Product Class Dist'!AH38:AH45,'UEC Development'!AH38:AH45)","v":787.63568330585315},{"$f":"SUMPRODUCT('Product Class Dist'!AI38:AI45,'UEC Development'!AI38:AI45)","v":810.12943873068377},{"$f":"SUMPRODUCT('Product Class Dist'!AJ38:AJ45,'UEC Development'!AJ38:AJ45)","v":810.19136105927748},{"$f":"SUMPRODUCT('Product Class Dist'!AK38:AK45,'UEC Development'!AK38:AK45)","v":832.08178815257168},{"$f":"SUMPRODUCT('Product Class Dist'!AL38:AL45,'UEC Development'!AL38:AL45)","v":830.87105567638798},{"$f":"SUMPRODUCT('Product Class Dist'!AM38:AM45,'UEC Development'!AM38:AM45)","v":831.80941055370408},{"$f":"SUMPRODUCT('Product Class Dist'!AN38:AN45,'UEC Development'!AN38:AN45)","v":834.20436269933259},{"$f":"SUMPRODUCT('Product Class Dist'!AO38:AO45,'UEC Development'!AO38:AO45)","v":837.898104864782},{"$f":"SUMPRODUCT('Product Class Dist'!AP38:AP45,'UEC Development'!AP38:AP45)","v":836.68209902747969},{"$f":"SUMPRODUCT('Product Class Dist'!AQ38:AQ45,'UEC Development'!AQ38:AQ45)","v":846.37485256042635},{"$f":"SUMPRODUCT('Product Class Dist'!AR38:AR45,'UEC Development'!AR38:AR45)","v":856.57407897333871},{"$f":"SUMPRODUCT('Product Class Dist'!AS38:AS45,'UEC Development'!AS38:AS45)","v":859.53489435549591},{"$f":"SUMPRODUCT('Product Class Dist'!AT38:AT45,'UEC Development'!AT38:AT45)","v":836.29102132412709},{"$f":"SUMPRODUCT('Product Class Dist'!AU38:AU45,'UEC Development'!AU38:AU45)","v":843.68329404776784},{"$f":"SUMPRODUCT('Product Class Dist'!AV38:AV45,'UEC Development'!AV38:AV45)","v":839.27702657025816},{"$f":"SUMPRODUCT('Product Class Dist'!AW38:AW45,'UEC Development'!AW38:AW45)","v":831.97584466441276},{"$f":"SUMPRODUCT('Product Class Dist'!AX38:AX45,'UEC Development'!AX38:AX45)","v":821.76820507009836},{"$f":"SUMPRODUCT('Product Class Dist'!AY38:AY45,'UEC Development'!AY38:AY45)","v":825.60335945356883},{"$f":"SUMPRODUCT('Product Class Dist'!AZ38:AZ45,'UEC Development'!AZ38:AZ45)","v":826.95254550743459},{"$f":"SUMPRODUCT('Product Class Dist'!BA38:BA45,'UEC Development'!BA38:BA45)","v":825.57369922205544},{"$f":"SUMPRODUCT('Product Class Dist'!BB38:BB45,'UEC Development'!BB38:BB45)","v":818.40265191057915},{"$f":"SUMPRODUCT('Product Class Dist'!BC38:BC45,'UEC Development'!BC38:BC45)","v":822.02142329012725},{"$f":"SUMPRODUCT('Product Class Dist'!BD38:BD45,'UEC Development'!BD38:BD45)","v":808.86050203252341},{"$f":"SUMPRODUCT('Product Class Dist'!BE38:BE45,'UEC Development'!BE38:BE45)","v":808.39515083825859}]
[null,null,"POST-Case UEC",{"$f":"SUMPRODUCT('Product Class Dist'!D48:D55,'UEC Development'!D48:D55)","v":833.48620729536208},{"$f":"SUMPRODUCT('Product Class Dist'!E48:E55,'UEC Development'!E48:E55)","v":823.42766437876628},{"$f":"SUMPRODUCT('Product Class Dist'!F48:F55,'UEC Development'!F48:F55)","v":828.11672250139054},{"$f":"SUMPRODUCT('Product Class Dist'!G48:G55,'UEC Development'!G48:G55)","v":841.72531145758285},{"$f":"SUMPRODUCT('Product Class Dist'!H48:H55,'UEC Development'!H48:H55)","v":857.2968525479256},{"$f":"SUMPRODUCT('Product Class Dist'!I48:I55,'UEC Development'!I48:I55)","v":852.90889075974019},{"$f":"SUMPRODUCT('Product Class Dist'!J48:J55,'UEC Development'!J48:J55)","v":856.97890063976206},{"$f":"SUMPRODUCT('Product Class Dist'!K48:K55,'UEC Development'!K48:K55)","v":865.1501035087897},{"$f":"SUMPRODUCT('Product Class Dist'!L48:L55,'UEC Development'!L48:L55)","v":871.8367217450384},{"$f":"SUMPRODUCT('Product Class Dist'!M48:M55,'UEC Development'!M48:M55)","v":865.59052270468328},{"$f":"SUMPRODUCT('Product Class Dist'!N48:N55,'UEC Development'!N48:N55)","v":838.09983163541574},{"$f":"SUMPRODUCT('Product Class Dist'!O48:O55,'UEC Development'!O48:O55)","v":838.92214344442652},{"$f":"SUMPRODUCT('Product Class Dist'!P48:P55,'UEC Development'!P48:P55)","v":787.63568330585315},{"$f":"SUMPRODUCT('Product Class Dist'!Q48:Q55,'UEC Development'!Q48:Q55)","v":787.63568330585315},{"$f":"SUMPRODUCT('Product Class Dist'!R48:R55,'UEC Development'!R48:R55)","v":787.63568330585315},{"$f":"SUMPRODUCT('Product Class Dist'!S48:S55,'UEC Development'!S48:S55)","v":787.63568330585315},{"$f":"SUMPRODUCT('Product Class Dist'!T48:T55,'UEC Development'!T48:T55)","v":787.63568330585315},{"$f":"SUMPRODUCT('Product Class Dist'!U48:U55,'UEC Development'!U48:U55)","v":787.63568330585315},{"$f":"SUMPRODUCT('Product Class Dist'!V48:V55,'UEC Development'!V48:V55)","v":787.63568330585315},{"$f":"SUMPRODUCT('Product Class Dist'!W48:W55,'UEC Development'!W48:W55)","v":787.63568330585315},{"$f":"SUMPRODUCT('Product Class Dist'!X48:X55,'UEC Development'!X48:X55)","v":787.63568330585315},{"$f":"SUMPRODUCT('Product Class Dist'!Y48:Y55,'UEC Development'!Y48:Y55)","v":787.63568330585315},{"$f":"SUMPRODUCT('Product Class Dist'!Z48:Z55,'UEC Development'!Z48:Z55)","v":787.63568330585315},{"$f":"SUMPRODUCT('Product Class Dist'!AA48:AA55,'UEC Development'!AA48:AA55)","v":787.63568330585315},{"$f":"SUMPRODUCT('Product Class Dist'!AB48:AB55,'UEC Development'!AB48:AB55)","v":787.63568330585315},{"$f":"SUMPRODUCT('Product Class Dist'!AC48:AC55,'UEC Development'!AC48:AC55)","v":787.63568330585315},{"$f":"SUMPRODUCT('Product Class Dist'!AD48:AD55,'UEC Development'!AD48:AD55)","v":787.63568330585315},{"$f":"SUMPRODUCT('Product Class Dist'!AE48:AE55,'UEC Development'!AE48:AE55)","v":787.63568330585315},{"$f":"SUMPRODUCT('Product Class Dist'!AF48:AF55,'UEC Development'!AF48:AF55)","v":787.63568330585315},{"$f":"SUMPRODUCT('Product Class Dist'!AG48:AG55,'UEC Development'!AG48:AG55)","v":787.63568330585315},{"$f":"SUMPRODUCT('Product Class Dist'!AH48:AH55,'UEC Development'!AH48:AH55)","v":787.63568330585315},{"$f":"SUMPRODUCT('Product Class Dist'!AI48:AI55,'UEC Development'!AI48:AI55)","v":810.12943873068377},{"$f":"SUMPRODUCT('Product Class Dist'!AJ48:AJ55,'UEC Development'!AJ48:AJ55)","v":810.19136105927748},{"$f":"SUMPRODUCT('Product Class Dist'!AK48:AK55,'UEC Development'!AK48:AK55)","v":832.08178815257168},{"$f":"SUMPRODUCT('Product Class Dist'!AL48:AL55,'UEC Development'!AL48:AL55)","v":830.87105567638798},{"$f":"SUMPRODUCT('Product Class Dist'!AM48:AM55,'UEC Development'!AM48:AM55)","v":831.80941055370408},{"$f":"SUMPRODUCT('Product Class Dist'!AN48:AN55,'UEC Development'!AN48:AN55)","v":834.20436269933259},{"$f":"SUMPRODUCT('Product Class Dist'!AO48:AO55,'UEC Development'!AO48:AO55)","v":837.898104864782},{"$f":"SUMPRODUCT('Product Class Dist'!AP48:AP55,'UEC Development'!AP48:AP55)","v":531.16055935690235},{"$f":"SUMPRODUCT('Product Class Dist'!AQ48:AQ55,'UEC Development'!AQ48:AQ55)","v":531.37937245175283},{"$f":"SUMPRODUCT('Product Class Dist'!AR48:AR55,'UEC Development'!AR48:AR55)","v":531.88142236560248},{"$f":"SUMPRODUCT('Product Class Dist'!AS48:AS55,'UEC Development'!AS48:AS55)","v":531.12323573901983},{"$f":"SUMPRODUCT('Product Class Dist'!AT48:AT55,'UEC Development'!AT48:AT55)","v":530.72338196742771},{"$f":"SUMPRODUCT('Product Class Dist'!AU48:AU55,'UEC Development'!AU48:AU55)","v":531.18325316877429},{"$f":"SUMPRODUCT('Product Class Dist'!AV48:AV55,'UEC Development'!AV48:AV55)","v":531.32154845053833},{"$f":"SUMPRODUCT('Product Class Dist'!AW48:AW55,'UEC Development'!AW48:AW55)","v":531.38759761446681},{"$f":"SUMPRODUCT('Product Class Dist'!AX48:AX55,'UEC Development'!AX48:AX55)","v":531.3826839030487},{"$f":"SUMPRODUCT('Product Class Dist'!AY48:AY55,'UEC Development'!AY48:AY55)","v":531.78075743453576},{"$f":"SUMPRODUCT('Product Class Dist'!AZ48:AZ55,'UEC Development'!AZ48:AZ55)","v":532.10883313843919},{"$f":"SUMPRODUCT('Product Class Dist'!BA48:BA55,'UEC Development'!BA48:BA55)","v":532.35391363235249},{"$f":"SUMPRODUCT('Product Class Dist'!BB48:BB55,'UEC Development'!BB48:BB55)","v":532.44535718990653},{"$f":"SUMPRODUCT('Product Class Dist'!BC48:BC55,'UEC Development'!BC48:BC55)","v":532.85062026129481},{"$f":"SUMPRODUCT('Product Class Dist'!BD48:BD55,'UEC Development'!BD48:BD55)","v":532.74470401096733},{"$f":"SUMPRODUCT('Product Class Dist'!BE48:BE55,'UEC Development'!BE48:BE55)","v":533.00561119802671}]
[]
[null,null,"Installed UEC (Vintage Weighted Average) "]
[null,null,null,1981,{"$f":"D15+1","v":1982},{"$f":"E15+1","v":1983},1984,1985,1986,1987,1988,1989,1990,1991,1992,1993,1994,1995,1996,1997,1998,1999,2000,2001,2002,2003,2004,2005,2006,2007,2008,2009,2010,2011,2012,2013,2014,2015,2016,2017,2018,2019,2020,2021,2022,2023,2024,2025,2026,2027,2028,2029,2030,2031,2032,2033,2034]
[null,null,"PRE-Case UEC",{"$f":"IF(D$15-$D$15+2<=LIFETIME_MF,D11,\nSUMPRODUCT(OFFSET(D11,0,(-1*LIFETIME_MF)+1,1,LIFETIME_MF),OFFSET('Shipments and Stock - MF'!E$14,0,(-1*LIFETIME_MF)+1,1,LIFETIME_MF))/\nSUM(OFFSET('Shipments and Stock - MF'!E$14,0,(-1*LIFETIME_MF)+1,1,LIFETIME_MF)))","v":833.48620729536208},{"$f":"IF(E$15-$D$15+2<=LIFETIME_MF,E11,\nSUMPRODUCT(OFFSET(E11,0,(-1*LIFETIME_MF)+1,1,LIFETIME_MF),OFFSET('Shipments and Stock - MF'!F$14,0,(-1*LIFETIME_MF)+1,1,LIFETIME_MF))/\nSUM(OFFSET('Shipments and Stock - MF'!F$14,0,(-1*LIFETIME_MF)+1,1,LIFETIME_MF)))","v":823.42766437876628},{"$f":"IF(F$15-$D$15+2<=LIFETIME_MF,F11,\nSUMPRODUCT(OFFSET(F11,0,(-1*LIFETIME_MF)+1,1,LIFETIME_MF),OFFSET('Shipments and Stock - MF'!G$14,0,(-1*LIFETIME_MF)+1,1,LIFETIME_MF))/\nSUM(OFFSET('Shipments and Stock - MF'!G$14,0,(-1*LIFETIME_MF)+1,1,LIFETIME_MF)))","v":828.11672250139054},{"$f":"IF(G$15-$D$15+2<=LIFETIME_MF,G11,\nSUMPRODUCT(OFFSET(G11,0,(-1*LIFETIME_MF)+1,1,LIFETIME_MF),OFFSET('Shipments and Stock - MF'!H$14,0,(-1*LIFETIME_MF)+1,1,LIFETIME_MF))/\nSUM(OFFSET('Shipments and Stock - MF'!H$14,0,(-1*LIFETIME_MF)+1,1,LIFETIME_MF)))","v":841.72531145758285},{"$f":"IF(H$15-$D$15+2<=LIFETIME_MF,H11,\nSUMPRODUCT(OFFSET(H11,0,(-1*LIFETIME_MF)+1,1,LIFETIME_MF),OFFSET('Shipments and Stock - MF'!I$14,0,(-1*LIFETIME_MF)+1,1,LIFETIME_MF))/\nSUM(OFFSET('Shipments and Stock - MF'!I$14,0,(-1*LIFETIME_MF)+1,1,LIFETIME_MF)))","v":857.2968525479256},{"$f":"IF(I$15-$D$15+2<=LIFETIME_MF,I11,\nSUMPRODUCT(OFFSET(I11,0,(-1*LIFETIME_MF)+1,1,LIFETIME_MF),OFFSET('Shipments and Stock - MF'!J$14,0,(-1*LIFETIME_MF)+1,1,LIFETIME_MF))/\nSUM(OFFSET('Shipments and Stock - MF'!J$14,0,(-1*LIFETIME_MF)+1,1,LIFETIME_MF)))","v":852.90889075974019},{"$f":"IF(J$15-$D$15+2<=LIFETIME_MF,J11,\nSUMPRODUCT(OFFSET(J11,0,(-1*LIFETIME_MF)+1,1,LIFETIME_MF),OFFSET('Shipments and Stock - MF'!K$14,0,(-1*LIFETIME_MF)+1,1,LIFETIME_MF))/\nSUM(OFFSET('Shipments and Stock - MF'!K$14,0,(-1*LIFETIME_MF)+1,1,LIFETIME_MF)))","v":856.97890063976206},{"$f":"IF(K$15-$D$15+2<=LIFETIME_MF,K11,\nSUMPRODUCT(OFFSET(K11,0,(-1*LIFETIME_MF)+1,1,LIFETIME_MF),OFFSET('Shipments and Stock - MF'!L$14,0,(-1*LIFETIME_MF)+1,1,LIFETIME_MF))/\nSUM(OFFSET('Shipments and Stock - MF'!L$14,0,(-1*LIFETIME_MF)+1,1,LIFETIME_MF)))","v":865.1501035087897},{"$f":"IF(L$15-$D$15+2<=LIFETIME_MF,L11,\nSUMPRODUCT(OFFSET(L11,0,(-1*LIFETIME_MF)+1,1,LIFETIME_MF),OFFSET('Shipments and Stock - MF'!M$14,0,(-1*LIFETIME_MF)+1,1,LIFETIME_MF))/\nSUM(OFFSET('Shipments and Stock - MF'!M$14,0,(-1*LIFETIME_MF)+1,1,LIFETIME_MF)))","v":871.8367217450384},{"$f":"IF(M$15-$D$15+2<=LIFETIME_MF,M11,\nSUMPRODUCT(OFFSET(M11,0,(-1*LIFETIME_MF)+1,1,LIFETIME_MF),OFFSET('Shipments and Stock - MF'!N$14,0,(-1*LIFETIME_MF)+1,1,LIFETIME_MF))/\nSUM(OFFSET('Shipments and Stock - MF'!N$14,0,(-1*LIFETIME_MF)+1,1,LIFETIME_MF)))","v":865.59052270468328},{"$f":"IF(N$15-$D$15+2<=LIFETIME_MF,N11,\nSUMPRODUCT(OFFSET(N11,0,(-1*LIFETIME_MF)+1,1,LIFETIME_MF),OFFSET('Shipments and Stock - MF'!O$14,0,(-1*LIFETIME_MF)+1,1,LIFETIME_MF))/\nSUM(OFFSET('Shipments and Stock - MF'!O$14,0,(-1*LIFETIME_MF)+1,1,LIFETIME_MF)))","v":838.09983163541574},{"$f":"IF(O$15-$D$15+2<=LIFETIME_MF,O11,\nSUMPRODUCT(OFFSET(O11,0,(-1*LIFETIME_MF)+1,1,LIFETIME_MF),OFFSET('Shipments and Stock - MF'!P$14,0,(-1*LIFETIME_MF)+1,1,LIFETIME_MF))/\nSUM(OFFSET('Shipments and Stock - MF'!P$14,0,(-1*LIFETIME_MF)+1,1,LIFETIME_MF)))","v":838.92214344442652},{"$f":"IF(P$15-$D$15+2<=LIFETIME_MF,P11,\nSUMPRODUCT(OFFSET(P11,0,(-1*LIFETIME_MF)+1,1,LIFETIME_MF),OFFSET('Shipments and Stock - MF'!Q$14,0,(-1*LIFETIME_MF)+1,1,LIFETIME_MF))/\nSUM(OFFSET('Shipments and Stock - MF'!Q$14,0,(-1*LIFETIME_MF)+1,1,LIFETIME_MF)))","v":787.63568330585315},{"$f":"IF(Q$15-$D$15+2<=LIFETIME_MF,Q11,\nSUMPRODUCT(OFFSET(Q11,0,(-1*LIFETIME_MF)+1,1,LIFETIME_MF),OFFSET('Shipments and Stock - MF'!R$14,0,(-1*LIFETIME_MF)+1,1,LIFETIME_MF))/\nSUM(OFFSET('Shipments and Stock - MF'!R$14,0,(-1*LIFETIME_MF)+1,1,LIFETIME_MF)))","v":787.63568330585315},{"$f":"IF(R$15-$D$15+2<=LIFETIME_MF,R11,\nSUMPRODUCT(OFFSET(R11,0,(-1*LIFETIME_MF)+1,1,LIFETIME_MF),OFFSET('Shipments and Stock - MF'!S$14,0,(-1*LIFETIME_MF)+1,1,LIFETIME_MF))/\nSUM(OFFSET('Shipments and Stock - MF'!S$14,0,(-1*LIFETIME_MF)+1,1,LIFETIME_MF)))","v":787.63568330585315},{"$f":"IF(S$15-$D$15+2<=LIFETIME_MF,S11,\nSUMPRODUCT(OFFSET(S11,0,(-1*LIFETIME_MF)+1,1,LIFETIME_MF),OFFSET('Shipments and Stock - MF'!T$14,0,(-1*LIFETIME_MF)+1,1,LIFETIME_MF))/\nSUM(OFFSET('Shipments and Stock - MF'!T$14,0,(-1*LIFETIME_MF)+1,1,LIFETIME_MF)))","v":787.63568330585315},{"$f":"IF(T$15-$D$15+2<=LIFETIME_MF,T11,\nSUMPRODUCT(OFFSET(T11,0,(-1*LIFETIME_MF)+1,1,LIFETIME_MF),OFFSET('Shipments and Stock - MF'!U$14,0,(-1*LIFETIME_MF)+1,1,LIFETIME_MF))/\nSUM(OFFSET('Shipments and Stock - MF'!U$14,0,(-1*LIFETIME_MF)+1,1,LIFETIME_MF)))","v":787.63568330585315},{"$f":"IF(U$15-$D$15+2<=LIFETIME_MF,U11,\nSUMPRODUCT(OFFSET(U11,0,(-1*LIFETIME_MF)+1,1,LIFETIME_MF),OFFSET('Shipments and Stock - MF'!V$14,0,(-1*LIFETIME_MF)+1,1,LIFETIME_MF))/\nSUM(OFFSET('Shipments and Stock - MF'!V$14,0,(-1*LIFETIME_MF)+1,1,LIFETIME_MF)))","v":787.63568330585315},{"$f":"IF(V$15-$D$15+2<=LIFETIME_MF,V11,\nSUMPRODUCT(OFFSET(V11,0,(-1*LIFETIME_MF)+1,1,LIFETIME_MF),OFFSET('Shipments and Stock - MF'!W$14,0,(-1*LIFETIME_MF)+1,1,LIFETIME_MF))/\nSUM(OFFSET('Shipments and Stock - MF'!W$14,0,(-1*LIFETIME_MF)+1,1,LIFETIME_MF)))","v":787.63568330585315},{"$f":"IF(W$15-$D$15+2<=LIFETIME_MF,W11,\nSUMPRODUCT(OFFSET(W11,0,(-1*LIFETIME_MF)+1,1,LIFETIME_MF),OFFSET('Shipments and Stock - MF'!X$14,0,(-1*LIFETIME_MF)+1,1,LIFETIME_MF))/\nSUM(OFFSET('Shipments and Stock - MF'!X$14,0,(-1*LIFETIME_MF)+1,1,LIFETIME_MF)))","v":787.63568330585315},{"$f":"IF(X$15-$D$15+2<=LIFETIME_MF,X11,\nSUMPRODUCT(OFFSET(X11,0,(-1*LIFETIME_MF)+1,1,LIFETIME_MF),OFFSET('Shipments and Stock - MF'!Y$14,0,(-1*LIFETIME_MF)+1,1,LIFETIME_MF))/\nSUM(OFFSET('Shipments and Stock - MF'!Y$14,0,(-1*LIFETIME_MF)+1,1,LIFETIME_MF)))","v":836.23361413297175},{"$f":"IF(Y$15-$D$15+2<=LIFETIME_MF,Y11,\nSUMPRODUCT(OFFSET(Y11,0,(-1*LIFETIME_MF)+1,1,LIFETIME_MF),OFFSET('Shipments and Stock - MF'!Z$14,0,(-1*LIFETIME_MF)+1,1,LIFETIME_MF))/\nSUM(OFFSET('Shipments and Stock - MF'!Z$14,0,(-1*LIFETIME_MF)+1,1,LIFETIME_MF)))","v":834.92815368849915},{"$f":"IF(Z$15-$D$15+2<=LIFETIME_MF,Z11,\nSUMPRODUCT(OFFSET(Z11,0,(-1*LIFETIME_MF)+1,1,LIFETIME_MF),OFFSET('Shipments and Stock - MF'!AA$14,0,(-1*LIFETIME_MF)+1,1,LIFETIME_MF))/\nSUM(OFFSET('Shipments and Stock - MF'!AA$14,0,(-1*LIFETIME_MF)+1,1,LIFETIME_MF)))","v":834.35275013967782},{"$f":"IF(AA$15-$D$15+2<=LIFETIME_MF,AA11,\nSUMPRODUCT(OFFSET(AA11,0,(-1*LIFETIME_MF)+1,1,LIFETIME_MF),OFFSET('Shipments and Stock - MF'!AB$14,0,(-1*LIFETIME_MF)+1,1,LIFETIME_MF))/\nSUM(OFFSET('Shipments and Stock - MF'!AB$14,0,(-1*LIFETIME_MF)+1,1,LIFETIME_MF)))","v":833.37846072181048},{"$f":"IF(AB$15-$D$15+2<=LIFETIME_MF,AB11,\nSUMPRODUCT(OFFSET(AB11,0,(-1*LIFETIME_MF)+1,1,LIFETIME_MF),OFFSET('Shipments and Stock - MF'!AC$14,0,(-1*LIFETIME_MF)+1,1,LIFETIME_MF))/\nSUM(OFFSET('Shipments and Stock - MF'!AC$14,0,(-1*LIFETIME_MF)+1,1,LIFETIME_MF)))","v":831.22337330429104},{"$f":"IF(AC$15-$D$15+2<=LIFETIME_MF,AC11,\nSUMPRODUCT(OFFSET(AC11,0,(-1*LIFETIME_MF)+1,1,LIFETIME_MF),OFFSET('Shipments and Stock - MF'!AD$14,0,(-1*LIFETIME_MF)+1,1,LIFETIME_MF))/\nSUM(OFFSET('Shipments and Stock - MF'!AD$14,0,(-1*LIFETIME_MF)+1,1,LIFETIME_MF)))","v":826.96395970298045},{"$f":"IF(AD$15-$D$15+2<=LIFETIME_MF,AD11,\nSUMPRODUCT(OFFSET(AD11,0,(-1*LIFETIME_MF)+1,1,LIFETIME_MF),OFFSET('Shipments and Stock - MF'!AE$14,0,(-1*LIFETIME_MF)+1,1,LIFETIME_MF))/\nSUM(OFFSET('Shipments and Stock - MF'!AE$14,0,(-1*LIFETIME_MF)+1,1,LIFETIME_MF)))","v":823.16391292639412},{"$f":"IF(AE$15-$D$15+2<=LIFETIME_MF,AE11,\nSUMPRODUCT(OFFSET(AE11,0,(-1*LIFETIME_MF)+1,1,LIFETIME_MF),OFFSET('Shipments and Stock - MF'!AF$14,0,(-1*LIFETIME_MF)+1,1,LIFETIME_MF))/\nSUM(OFFSET('Shipments and Stock - MF'!AF$14,0,(-1*LIFETIME_MF)+1,1,LIFETIME_MF)))","v":818.68196792285062},{"$f":"IF(AF$15-$D$15+2<=LIFETIME_MF,AF11,\nSUMPRODUCT(OFFSET(AF11,0,(-1*LIFETIME_MF)+1,1,LIFETIME_MF),OFFSET('Shipments and Stock - MF'!AG$14,0,(-1*LIFETIME_MF)+1,1,LIFETIME_MF))/\nSUM(OFFSET('Shipments and Stock - MF'!AG$14,0,(-1*LIFETIME_MF)+1,1,LIFETIME_MF)))","v":812.50356123272718},{"$f":"IF(AG$15-$D$15+2<=LIFETIME_MF,AG11,\nSUMPRODUCT(OFFSET(AG11,0,(-1*LIFETIME_MF)+1,1,LIFETIME_MF),OFFSET('Shipments and Stock - MF'!AH$14,0,(-1*LIFETIME_MF)+1,1,LIFETIME_MF))/\nSUM(OFFSET('Shipments and Stock - MF'!AH$14,0,(-1*LIFETIME_MF)+1,1,LIFETIME_MF)))","v":803.9452287774568},{"$f":"IF(AH$15-$D$15+2<=LIFETIME_MF,AH11,\nSUMPRODUCT(OFFSET(AH11,0,(-1*LIFETIME_MF)+1,1,LIFETIME_MF),OFFSET('Shipments and Stock - MF'!AI$14,0,(-1*LIFETIME_MF)+1,1,LIFETIME_MF))/\nSUM(OFFSET('Shipments and Stock - MF'!AI$14,0,(-1*LIFETIME_MF)+1,1,LIFETIME_MF)))","v":796.00245655305537},{"$f":"IF(AI$15-$D$15+2<=LIFETIME_MF,AI11,\nSUMPRODUCT(OFFSET(AI11,0,(-1*LIFETIME_MF)+1,1,LIFETIME_MF),OFFSET('Shipments and Stock - MF'!AJ$14,0,(-1*LIFETIME_MF)+1,1,LIFETIME_MF))/\nSUM(OFFSET('Shipments and Stock - MF'!AJ$14,0,(-1*LIFETIME_MF)+1,1,LIFETIME_MF)))","v":793.9462658480569},{"$f":"IF(AJ$15-$D$15+2<=LIFETIME_MF,AJ11,\nSUMPRODUCT(OFFSET(AJ11,0,(-1*LIFETIME_MF)+1,1,LIFETIME_MF),OFFSET('Shipments and Stock - MF'!AK$14,0,(-1*LIFETIME_MF)+1,1,LIFETIME_MF))/\nSUM(OFFSET('Shipments and Stock - MF'!AK$14,0,(-1*LIFETIME_MF)+1,1,LIFETIME_MF)))","v":791.8836750049918},{"$f":"IF(AK$15-$D$15+2<=LIFETIME_MF,AK11,\nSUMPRODUCT(OFFSET(AK11,0,(-1*LIFETIME_MF)+1,1,LIFETIME_MF),OFFSET('Shipments and Stock - MF'!AL$14,0,(-1*LIFETIME_MF)+1,1,LIFETIME_MF))/\nSUM(OFFSET('Shipments and Stock - MF'!AL$14,0,(-1*LIFETIME_MF)+1,1,LIFETIME_MF)))","v":794.14972520003755},{"$f":"IF(AL$15-$D$15+2<=LIFETIME_MF,AL11,\nSUMPRODUCT(OFFSET(AL11,0,(-1*LIFETIME_MF)+1,1,LIFETIME_MF),OFFSET('Shipments and Stock - MF'!AM$14,0,(-1*LIFETIME_MF)+1,1,LIFETIME_MF))/\nSUM(OFFSET('Shipments and Stock - MF'!AM$14,0,(-1*LIFETIME_MF)+1,1,LIFETIME_MF)))","v":796.51506825814772},{"$f":"IF(AM$15-$D$15+2<=LIFETIME_MF,AM11,\nSUMPRODUCT(OFFSET(AM11,0,(-1*LIFETIME_MF)+1,1,LIFETIME_MF),OFFSET('Shipments and Stock - MF'!AN$14,0,(-1*LIFETIME_MF)+1,1,LIFETIME_MF))/\nSUM(OFFSET('Shipments and Stock - MF'!AN$14,0,(-1*LIFETIME_MF)+1,1,LIFETIME_MF)))","v":798.92052238910162},{"$f":"IF(AN$15-$D$15+2<=LIFETIME_MF,AN11,\nSUMPRODUCT(OFFSET(AN11,0,(-1*LIFETIME_MF)+1,1,LIFETIME_MF),OFFSET('Shipments and Stock - MF'!AO$14,0,(-1*LIFETIME_MF)+1,1,LIFETIME_MF))/\nSUM(OFFSET('Shipments and Stock - MF'!AO$14,0,(-1*LIFETIME_MF)+1,1,LIFETIME_MF)))","v":801.30300101561875},{"$f":"IF(AO$15-$D$15+2<=LIFETIME_MF,AO11,\nSUMPRODUCT(OFFSET(AO11,0,(-1*LIFETIME_MF)+1,1,LIFETIME_MF),OFFSET('Shipments and Stock - MF'!AP$14,0,(-1*LIFETIME_MF)+1,1,LIFETIME_MF))/\nSUM(OFFSET('Shipments and Stock - MF'!AP$14,0,(-1*LIFETIME_MF)+1,1,LIFETIME_MF)))","v":803.73435341378729},{"$f":"IF(AP$15-$D$15+2<=LIFETIME_MF,AP11,\nSUMPRODUCT(OFFSET(AP11,0,(-1*LIFETIME_MF)+1,1,LIFETIME_MF),OFFSET('Shipments and Stock - MF'!AQ$14,0,(-1*LIFETIME_MF)+1,1,LIFETIME_MF))/\nSUM(OFFSET('Shipments and Stock - MF'!AQ$14,0,(-1*LIFETIME_MF)+1,1,LIFETIME_MF)))","v":806.13435967118949},{"$f":"IF(AQ$15-$D$15+2<=LIFETIME_MF,AQ11,\nSUMPRODUCT(OFFSET(AQ11,0,(-1*LIFETIME_MF)+1,1,LIFETIME_MF),OFFSET('Shipments and Stock - MF'!AR$14,0,(-1*LIFETIME_MF)+1,1,LIFETIME_MF))/\nSUM(OFFSET('Shipments and Stock - MF'!AR$14,0,(-1*LIFETIME_MF)+1,1,LIFETIME_MF)))","v":808.51403535001475},{"$f":"IF(AR$15-$D$15+2<=LIFETIME_MF,AR11,\nSUMPRODUCT(OFFSET(AR11,0,(-1*LIFETIME_MF)+1,1,LIFETIME_MF),OFFSET('Shipments and Stock - MF'!AS$14,0,(-1*LIFETIME_MF)+1,1,LIFETIME_MF))/\nSUM(OFFSET('Shipments and Stock - MF'!AS$14,0,(-1*LIFETIME_MF)+1,1,LIFETIME_MF)))","v":810.77777557907757},{"$f":"IF(AS$15-$D$15+2<=LIFETIME_MF,AS11,\nSUMPRODUCT(OFFSET(AS11,0,(-1*LIFETIME_MF)+1,1,LIFETIME_MF),OFFSET('Shipments and Stock - MF'!AT$14,0,(-1*LIFETIME_MF)+1,1,LIFETIME_MF))/\nSUM(OFFSET('Shipments and Stock - MF'!AT$14,0,(-1*LIFETIME_MF)+1,1,LIFETIME_MF)))","v":812.98057023148294},{"$f":"IF(AT$15-$D$15+2<=LIFETIME_MF,AT11,\nSUMPRODUCT(OFFSET(AT11,0,(-1*LIFETIME_MF)+1,1,LIFETIME_MF),OFFSET('Shipments and Stock - MF'!AU$14,0,(-1*LIFETIME_MF)+1,1,LIFETIME_MF))/\nSUM(OFFSET('Shipments and Stock - MF'!AU$14,0,(-1*LIFETIME_MF)+1,1,LIFETIME_MF)))","v":815.06576422493526},{"$f":"IF(AU$15-$D$15+2<=LIFETIME_MF,AU11,\nSUMPRODUCT(OFFSET(AU11,0,(-1*LIFETIME_MF)+1,1,LIFETIME_MF),OFFSET('Shipments and Stock - MF'!AV$14,0,(-1*LIFETIME_MF)+1,1,LIFETIME_MF))/\nSUM(OFFSET('Shipments and Stock - MF'!AV$14,0,(-1*LIFETIME_MF)+1,1,LIFETIME_MF)))","v":817.08299820524803},{"$f":"IF(AV$15-$D$15+2<=LIFETIME_MF,AV11,\nSUMPRODUCT(OFFSET(AV11,0,(-1*LIFETIME_MF)+1,1,LIFETIME_MF),OFFSET('Shipments and Stock - MF'!AW$14,0,(-1*LIFETIME_MF)+1,1,LIFETIME_MF))/\nSUM(OFFSET('Shipments and Stock - MF'!AW$14,0,(-1*LIFETIME_MF)+1,1,LIFETIME_MF)))","v":818.99060235615605},{"$f":"IF(AW$15-$D$15+2<=LIFETIME_MF,AW11,\nSUMPRODUCT(OFFSET(AW11,0,(-1*LIFETIME_MF)+1,1,LIFETIME_MF),OFFSET('Shipments and Stock - MF'!AX$14,0,(-1*LIFETIME_MF)+1,1,LIFETIME_MF))/\nSUM(OFFSET('Shipments and Stock - MF'!AX$14,0,(-1*LIFETIME_MF)+1,1,LIFETIME_MF)))","v":820.77153323225684},{"$f":"IF(AX$15-$D$15+2<=LIFETIME_MF,AX11,\nSUMPRODUCT(OFFSET(AX11,0,(-1*LIFETIME_MF)+1,1,LIFETIME_MF),OFFSET('Shipments and Stock - MF'!AY$14,0,(-1*LIFETIME_MF)+1,1,LIFETIME_MF))/\nSUM(OFFSET('Shipments and Stock - MF'!AY$14,0,(-1*LIFETIME_MF)+1,1,LIFETIME_MF)))","v":822.41670947859075},{"$f":"IF(AY$15-$D$15+2<=LIFETIME_MF,AY11,\nSUMPRODUCT(OFFSET(AY11,0,(-1*LIFETIME_MF)+1,1,LIFETIME_MF),OFFSET('Shipments and Stock - MF'!AZ$14,0,(-1*LIFETIME_MF)+1,1,LIFETIME_MF))/\nSUM(OFFSET('Shipments and Stock - MF'!AZ$14,0,(-1*LIFETIME_MF)+1,1,LIFETIME_MF)))","v":824.01725969409915},{"$f":"IF(AZ$15-$D$15+2<=LIFETIME_MF,AZ11,\nSUMPRODUCT(OFFSET(AZ11,0,(-1*LIFETIME_MF)+1,1,LIFETIME_MF),OFFSET('Shipments and Stock - MF'!BA$14,0,(-1*LIFETIME_MF)+1,1,LIFETIME_MF))/\nSUM(OFFSET('Shipments and Stock - MF'!BA$14,0,(-1*LIFETIME_MF)+1,1,LIFETIME_MF)))","v":825.55799078304096},{"$f":"IF(BA$15-$D$15+2<=LIFETIME_MF,BA11,\nSUMPRODUCT(OFFSET(BA11,0,(-1*LIFETIME_MF)+1,1,LIFETIME_MF),OFFSET('Shipments and Stock - MF'!BB$14,0,(-1*LIFETIME_MF)+1,1,LIFETIME_MF))/\nSUM(OFFSET('Shipments and Stock - MF'!BB$14,0,(-1*LIFETIME_MF)+1,1,LIFETIME_MF)))","v":827.01403835522308},{"$f":"IF(BB$15-$D$15+2<=LIFETIME_MF,BB11,\nSUMPRODUCT(OFFSET(BB11,0,(-1*LIFETIME_MF)+1,1,LIFETIME_MF),OFFSET('Shipments and Stock - MF'!BC$14,0,(-1*LIFETIME_MF)+1,1,LIFETIME_MF))/\nSUM(OFFSET('Shipments and Stock - MF'!BC$14,0,(-1*LIFETIME_MF)+1,1,LIFETIME_MF)))","v":828.36450181744283},{"$f":"IF(BC$15-$D$15+2<=LIFETIME_MF,BC11,\nSUMPRODUCT(OFFSET(BC11,0,(-1*LIFETIME_MF)+1,1,LIFETIME_MF),OFFSET('Shipments and Stock - MF'!BD$14,0,(-1*LIFETIME_MF)+1,1,LIFETIME_MF))/\nSUM(OFFSET('Shipments and Stock - MF'!BD$14,0,(-1*LIFETIME_MF)+1,1,LIFETIME_MF)))","v":829.70752065806698},{"$f":"IF(BD$15-$D$15+2<=LIFETIME_MF,BD11,\nSUMPRODUCT(OFFSET(BD11,0,(-1*LIFETIME_MF)+1,1,LIFETIME_MF),OFFSET('Shipments and Stock - MF'!BE$14,0,(-1*LIFETIME_MF)+1,1,LIFETIME_MF))/\nSUM(OFFSET('Shipments and Stock - MF'!BE$14,0,(-1*LIFETIME_MF)+1,1,LIFETIME_MF)))","v":829.31836693820787},{"$f":"IF(BE$15-$D$15+2<=LIFETIME_MF,BE11,\nSUMPRODUCT(OFFSET(BE11,0,(-1*LIFETIME_MF)+1,1,LIFETIME_MF),OFFSET('Shipments and Stock - MF'!BF$14,0,(-1*LIFETIME_MF)+1,1,LIFETIME_MF))/\nSUM(OFFSET('Shipments and Stock - MF'!BF$14,0,(-1*LIFETIME_MF)+1,1,LIFETIME_MF)))","v":828.89404427484897}]
[null,null,"POST-Case UEC",{"$f":"IF(D$15-$D$15+2<=LIFETIME_MF,D12,\nSUMPRODUCT(OFFSET(D12,0,(-1*LIFETIME_MF)+1,1,LIFETIME_MF),OFFSET('Shipments and Stock - MF'!E$14,0,(-1*LIFETIME_MF)+1,1,LIFETIME_MF))/\nSUM(OFFSET('Shipments and Stock - MF'!E$14,0,(-1*LIFETIME_MF)+1,1,LIFETIME_MF)))","v":833.48620729536208},{"$f":"IF(E$15-$D$15+2<=LIFETIME_MF,E12,\nSUMPRODUCT(OFFSET(E12,0,(-1*LIFETIME_MF)+1,1,LIFETIME_MF),OFFSET('Shipments and Stock - MF'!F$14,0,(-1*LIFETIME_MF)+1,1,LIFETIME_MF))/\nSUM(OFFSET('Shipments and Stock - MF'!F$14,0,(-1*LIFETIME_MF)+1,1,LIFETIME_MF)))","v":823.42766437876628},{"$f":"IF(F$15-$D$15+2<=LIFETIME_MF,F12,\nSUMPRODUCT(OFFSET(F12,0,(-1*LIFETIME_MF)+1,1,LIFETIME_MF),OFFSET('Shipments and Stock - MF'!G$14,0,(-1*LIFETIME_MF)+1,1,LIFETIME_MF))/\nSUM(OFFSET('Shipments and Stock - MF'!G$14,0,(-1*LIFETIME_MF)+1,1,LIFETIME_MF)))","v":828.11672250139054},{"$f":"IF(G$15-$D$15+2<=LIFETIME_MF,G12,\nSUMPRODUCT(OFFSET(G12,0,(-1*LIFETIME_MF)+1,1,LIFETIME_MF),OFFSET('Shipments and Stock - MF'!H$14,0,(-1*LIFETIME_MF)+1,1,LIFETIME_MF))/\nSUM(OFFSET('Shipments and Stock - MF'!H$14,0,(-1*LIFETIME_MF)+1,1,LIFETIME_MF)))","v":841.72531145758285},{"$f":"IF(H$15-$D$15+2<=LIFETIME_MF,H12,\nSUMPRODUCT(OFFSET(H12,0,(-1*LIFETIME_MF)+1,1,LIFETIME_MF),OFFSET('Shipments and Stock - MF'!I$14,0,(-1*LIFETIME_MF)+1,1,LIFETIME_MF))/\nSUM(OFFSET('Shipments and Stock - MF'!I$14,0,(-1*LIFETIME_MF)+1,1,LIFETIME_MF)))","v":857.2968525479256},{"$f":"IF(I$15-$D$15+2<=LIFETIME_MF,I12,\nSUMPRODUCT(OFFSET(I12,0,(-1*LIFETIME_MF)+1,1,LIFETIME_MF),OFFSET('Shipments and Stock - MF'!J$14,0,(-1*LIFETIME_MF)+1,1,LIFETIME_MF))/\nSUM(OFFSET('Shipments and Stock - MF'!J$14,0,(-1*LIFETIME_MF)+1,1,LIFETIME_MF)))","v":852.90889075974019},{"$f":"IF(J$15-$D$15+2<=LIFETIME_MF,J12,\nSUMPRODUCT(OFFSET(J12,0,(-1*LIFETIME_MF)+1,1,LIFETIME_MF),OFFSET('Shipments and Stock - MF'!K$14,0,(-1*LIFETIME_MF)+1,1,LIFETIME_MF))/\nSUM(OFFSET('Shipments and Stock - MF'!K$14,0,(-1*LIFETIME_MF)+1,1,LIFETIME_MF)))","v":856.97890063976206},{"$f":"IF(K$15-$D$15+2<=LIFETIME_MF,K12,\nSUMPRODUCT(OFFSET(K12,0,(-1*LIFETIME_MF)+1,1,LIFETIME_MF),OFFSET('Shipments and Stock - MF'!L$14,0,(-1*LIFETIME_MF)+1,1,LIFETIME_MF))/\nSUM(OFFSET('Shipments and Stock - MF'!L$14,0,(-1*LIFETIME_MF)+1,1,LIFETIME_MF)))","v":865.1501035087897},{"$f":"IF(L$15-$D$15+2<=LIFETIME_MF,L12,\nSUMPRODUCT(OFFSET(L12,0,(-1*LIFETIME_MF)+1,1,LIFETIME_MF),OFFSET('Shipments and Stock - MF'!M$14,0,(-1*LIFETIME_MF)+1,1,LIFETIME_MF))/\nSUM(OFFSET('Shipments and Stock - MF'!M$14,0,(-1*LIFETIME_MF)+1,1,LIFETIME_MF)))","v":871.8367217450384},{"$f":"IF(M$15-$D$15+2<=LIFETIME_MF,M12,\nSUMPRODUCT(OFFSET(M12,0,(-1*LIFETIME_MF)+1,1,LIFETIME_MF),OFFSET('Shipments and Stock - MF'!N$14,0,(-1*LIFETIME_MF)+1,1,LIFETIME_MF))/\nSUM(OFFSET('Shipments and Stock - MF'!N$14,0,(-1*LIFETIME_MF)+1,1,LIFETIME_MF)))","v":865.59052270468328},{"$f":"IF(N$15-$D$15+2<=LIFETIME_MF,N12,\nSUMPRODUCT(OFFSET(N12,0,(-1*LIFETIME_MF)+1,1,LIFETIME_MF),OFFSET('Shipments and Stock - MF'!O$14,0,(-1*LIFETIME_MF)+1,1,LIFETIME_MF))/\nSUM(OFFSET('Shipments and Stock - MF'!O$14,0,(-1*LIFETIME_MF)+1,1,LIFETIME_MF)))","v":838.09983163541574},{"$f":"IF(O$15-$D$15+2<=LIFETIME_MF,O12,\nSUMPRODUCT(OFFSET(O12,0,(-1*LIFETIME_MF)+1,1,LIFETIME_MF),OFFSET('Shipments and Stock - MF'!P$14,0,(-1*LIFETIME_MF)+1,1,LIFETIME_MF))/\nSUM(OFFSET('Shipments and Stock - MF'!P$14,0,(-1*LIFETIME_MF)+1,1,LIFETIME_MF)))","v":838.92214344442652},{"$f":"IF(P$15-$D$15+2<=LIFETIME_MF,P12,\nSUMPRODUCT(OFFSET(P12,0,(-1*LIFETIME_MF)+1,1,LIFETIME_MF),OFFSET('Shipments and Stock - MF'!Q$14,0,(-1*LIFETIME_MF)+1,1,LIFETIME_MF))/\nSUM(OFFSET('Shipments and Stock - MF'!Q$14,0,(-1*LIFETIME_MF)+1,1,LIFETIME_MF)))","v":787.63568330585315},{"$f":"IF(Q$15-$D$15+2<=LIFETIME_MF,Q12,\nSUMPRODUCT(OFFSET(Q12,0,(-1*LIFETIME_MF)+1,1,LIFETIME_MF),OFFSET('Shipments and Stock - MF'!R$14,0,(-1*LIFETIME_MF)+1,1,LIFETIME_MF))/\nSUM(OFFSET('Shipments and Stock - MF'!R$14,0,(-1*LIFETIME_MF)+1,1,LIFETIME_MF)))","v":787.63568330585315},{"$f":"IF(R$15-$D$15+2<=LIFETIME_MF,R12,\nSUMPRODUCT(OFFSET(R12,0,(-1*LIFETIME_MF)+1,1,LIFETIME_MF),OFFSET('Shipments and Stock - MF'!S$14,0,(-1*LIFETIME_MF)+1,1,LIFETIME_MF))/\nSUM(OFFSET('Shipments and Stock - MF'!S$14,0,(-1*LIFETIME_MF)+1,1,LIFETIME_MF)))","v":787.63568330585315},{"$f":"IF(S$15-$D$15+2<=LIFETIME_MF,S12,\nSUMPRODUCT(OFFSET(S12,0,(-1*LIFETIME_MF)+1,1,LIFETIME_MF),OFFSET('Shipments and Stock - MF'!T$14,0,(-1*LIFETIME_MF)+1,1,LIFETIME_MF))/\nSUM(OFFSET('Shipments and Stock - MF'!T$14,0,(-1*LIFETIME_MF)+1,1,LIFETIME_MF)))","v":787.63568330585315},{"$f":"IF(T$15-$D$15+2<=LIFETIME_MF,T12,\nSUMPRODUCT(OFFSET(T12,0,(-1*LIFETIME_MF)+1,1,LIFETIME_MF),OFFSET('Shipments and Stock - MF'!U$14,0,(-1*LIFETIME_MF)+1,1,LIFETIME_MF))/\nSUM(OFFSET('Shipments and Stock - MF'!U$14,0,(-1*LIFETIME_MF)+1,1,LIFETIME_MF)))","v":787.63568330585315},{"$f":"IF(U$15-$D$15+2<=LIFETIME_MF,U12,\nSUMPRODUCT(OFFSET(U12,0,(-1*LIFETIME_MF)+1,1,LIFETIME_MF),OFFSET('Shipments and Stock - MF'!V$14,0,(-1*LIFETIME_MF)+1,1,LIFETIME_MF))/\nSUM(OFFSET('Shipments and Stock - MF'!V$14,0,(-1*LIFETIME_MF)+1,1,LIFETIME_MF)))","v":787.63568330585315},{"$f":"IF(V$15-$D$15+2<=LIFETIME_MF,V12,\nSUMPRODUCT(OFFSET(V12,0,(-1*LIFETIME_MF)+1,1,LIFETIME_MF),OFFSET('Shipments and Stock - MF'!W$14,0,(-1*LIFETIME_MF)+1,1,LIFETIME_MF))/\nSUM(OFFSET('Shipments and Stock - MF'!W$14,0,(-1*LIFETIME_MF)+1,1,LIFETIME_MF)))","v":787.63568330585315},{"$f":"IF(W$15-$D$15+2<=LIFETIME_MF,W12,\nSUMPRODUCT(OFFSET(W12,0,(-1*LIFETIME_MF)+1,1,LIFETIME_MF),OFFSET('Shipments and Stock - MF'!X$14,0,(-1*LIFETIME_MF)+1,1,LIFETIME_MF))/\nSUM(OFFSET('Shipments and Stock - MF'!X$14,0,(-1*LIFETIME_MF)+1,1,LIFETIME_MF)))","v":787.63568330585315},{"$f":"IF(X$15-$D$15+2<=LIFETIME_MF,X12,\nSUMPRODUCT(OFFSET(X12,0,(-1*LIFETIME_MF)+1,1,LIFETIME_MF),OFFSET('Shipments and Stock - MF'!Y$14,0,(-1*LIFETIME_MF)+1,1,LIFETIME_MF))/\nSUM(OFFSET('Shipments and Stock - MF'!Y$14,0,(-1*LIFETIME_MF)+1,1,LIFETIME_MF)))","v":836.23361413297175},{"$f":"IF(Y$15-$D$15+2<=LIFETIME_MF,Y12,\nSUMPRODUCT(OFFSET(Y12,0,(-1*LIFETIME_MF)+1,1,LIFETIME_MF),OFFSET('Shipments and Stock - MF'!Z$14,0,(-1*LIFETIME_MF)+1,1,LIFETIME_MF))/\nSUM(OFFSET('Shipments and Stock - MF'!Z$14,0,(-1*LIFETIME_MF)+1,1,LIFETIME_MF)))","v":834.92815368849915},{"$f":"IF(Z$15-$D$15+2<=LIFETIME_MF,Z12,\nSUMPRODUCT(OFFSET(Z12,0,(-1*LIFETIME_MF)+1,1,LIFETIME_MF),OFFSET('Shipments and Stock - MF'!AA$14,0,(-1*LIFETIME_MF)+1,1,LIFETIME_MF))/\nSUM(OFFSET('Shipments and Stock - MF'!AA$14,0,(-1*LIFETIME_MF)+1,1,LIFETIME_MF)))","v":834.35275013967782},{"$f":"IF(AA$15-$D$15+2<=LIFETIME_MF,AA12,\nSUMPRODUCT(OFFSET(AA12,0,(-1*LIFETIME_MF)+1,1,LIFETIME_MF),OFFSET('Shipments and Stock - MF'!AB$14,0,(-1*LIFETIME_MF)+1,1,LIFETIME_MF))/\nSUM(OFFSET('Shipments and Stock - MF'!AB$14,0,(-1*LIFETIME_MF)+1,1,LIFETIME_MF)))","v":833.37846072181048},{"$f":"IF(AB$15-$D$15+2<=LIFETIME_MF,AB12,\nSUMPRODUCT(OFFSET(AB12,0,(-1*LIFETIME_MF)+1,1,LIFETIME_MF),OFFSET('Shipments and Stock - MF'!AC$14,0,(-1*LIFETIME_MF)+1,1,LIFETIME_MF))/\nSUM(OFFSET('Shipments and Stock - MF'!AC$14,0,(-1*LIFETIME_MF)+1,1,LIFETIME_MF)))","v":831.22337330429104},{"$f":"IF(AC$15-$D$15+2<=LIFETIME_MF,AC12,\nSUMPRODUCT(OFFSET(AC12,0,(-1*LIFETIME_MF)+1,1,LIFETIME_MF),OFFSET('Shipments and Stock - MF'!AD$14,0,(-1*LIFETIME_MF)+1,1,LIFETIME_MF))/\nSUM(OFFSET('Shipments and Stock - MF'!AD$14,0,(-1*LIFETIME_MF)+1,1,LIFETIME_MF)))","v":826.96395970298045},{"$f":"IF(AD$15-$D$15+2<=LIFETIME_MF,AD12,\nSUMPRODUCT(OFFSET(AD12,0,(-1*LIFETIME_MF)+1,1,LIFETIME_MF),OFFSET('Shipments and Stock - MF'!AE$14,0,(-1*LIFETIME_MF)+1,1,LIFETIME_MF))/\nSUM(OFFSET('Shipments and Stock - MF'!AE$14,0,(-1*LIFETIME_MF)+1,1,LIFETIME_MF)))","v":823.16391292639412},{"$f":"IF(AE$15-$D$15+2<=LIFETIME_MF,AE12,\nSUMPRODUCT(OFFSET(AE12,0,(-1*LIFETIME_MF)+1,1,LIFETIME_MF),OFFSET('Shipments and Stock - MF'!AF$14,0,(-1*LIFETIME_MF)+1,1,LIFETIME_MF))/\nSUM(OFFSET('Shipments and Stock - MF'!AF$14,0,(-1*LIFETIME_MF)+1,1,LIFETIME_MF)))","v":818.68196792285062},{"$f":"IF(AF$15-$D$15+2<=LIFETIME_MF,AF12,\nSUMPRODUCT(OFFSET(AF12,0,(-1*LIFETIME_MF)+1,1,LIFETIME_MF),OFFSET('Shipments and Stock - MF'!AG$14,0,(-1*LIFETIME_MF)+1,1,LIFETIME_MF))/\nSUM(OFFSET('Shipments and Stock - MF'!AG$14,0,(-1*LIFETIME_MF)+1,1,LIFETIME_MF)))","v":812.50356123272718},{"$f":"IF(AG$15-$D$15+2<=LIFETIME_MF,AG12,\nSUMPRODUCT(OFFSET(AG12,0,(-1*LIFETIME_MF)+1,1,LIFETIME_MF),OFFSET('Shipments and Stock - MF'!AH$14,0,(-1*LIFETIME_MF)+1,1,LIFETIME_MF))/\nSUM(OFFSET('Shipments and Stock - MF'!AH$14,0,(-1*LIFETIME_MF)+1,1,LIFETIME_MF)))","v":803.9452287774568},{"$f":"IF(AH$15-$D$15+2<=LIFETIME_MF,AH12,\nSUMPRODUCT(OFFSET(AH12,0,(-1*LIFETIME_MF)+1,1,LIFETIME_MF),OFFSET('Shipments and Stock - MF'!AI$14,0,(-1*LIFETIME_MF)+1,1,LIFETIME_MF))/\nSUM(OFFSET('Shipments and Stock - MF'!AI$14,0,(-1*LIFETIME_MF)+1,1,LIFETIME_MF)))","v":796.00245655305537},{"$f":"IF(AI$15-$D$15+2<=LIFETIME_MF,AI12,\nSUMPRODUCT(OFFSET(AI12,0,(-1*LIFETIME_MF)+1,1,LIFETIME_MF),OFFSET('Shipments and Stock - MF'!AJ$14,0,(-1*LIFETIME_MF)+1,1,LIFETIME_MF))/\nSUM(OFFSET('Shipments and Stock - MF'!AJ$14,0,(-1*LIFETIME_MF)+1,1,LIFETIME_MF)))","v":793.9462658480569},{"$f":"IF(AJ$15-$D$15+2<=LIFETIME_MF,AJ12,\nSUMPRODUCT(OFFSET(AJ12,0,(-1*LIFETIME_MF)+1,1,LIFETIME_MF),OFFSET('Shipments and Stock - MF'!AK$14,0,(-1*LIFETIME_MF)+1,1,LIFETIME_MF))/\nSUM(OFFSET('Shipments and Stock - MF'!AK$14,0,(-1*LIFETIME_MF)+1,1,LIFETIME_MF)))","v":791.8836750049918},{"$f":"IF(AK$15-$D$15+2<=LIFETIME_MF,AK12,\nSUMPRODUCT(OFFSET(AK12,0,(-1*LIFETIME_MF)+1,1,LIFETIME_MF),OFFSET('Shipments and Stock - MF'!AL$14,0,(-1*LIFETIME_MF)+1,1,LIFETIME_MF))/\nSUM(OFFSET('Shipments and Stock - MF'!AL$14,0,(-1*LIFETIME_MF)+1,1,LIFETIME_MF)))","v":794.14972520003755},{"$f":"IF(AL$15-$D$15+2<=LIFETIME_MF,AL12,\nSUMPRODUCT(OFFSET(AL12,0,(-1*LIFETIME_MF)+1,1,LIFETIME_MF),OFFSET('Shipments and Stock - MF'!AM$14,0,(-1*LIFETIME_MF)+1,1,LIFETIME_MF))/\nSUM(OFFSET('Shipments and Stock - MF'!AM$14,0,(-1*LIFETIME_MF)+1,1,LIFETIME_MF)))","v":796.51506825814772},{"$f":"IF(AM$15-$D$15+2<=LIFETIME_MF,AM12,\nSUMPRODUCT(OFFSET(AM12,0,(-1*LIFETIME_MF)+1,1,LIFETIME_MF),OFFSET('Shipments and Stock - MF'!AN$14,0,(-1*LIFETIME_MF)+1,1,LIFETIME_MF))/\nSUM(OFFSET('Shipments and Stock - MF'!AN$14,0,(-1*LIFETIME_MF)+1,1,LIFETIME_MF)))","v":798.92052238910162},{"$f":"IF(AN$15-$D$15+2<=LIFETIME_MF,AN12,\nSUMPRODUCT(OFFSET(AN12,0,(-1*LIFETIME_MF)+1,1,LIFETIME_MF),OFFSET('Shipments and Stock - MF'!AO$14,0,(-1*LIFETIME_MF)+1,1,LIFETIME_MF))/\nSUM(OFFSET('Shipments and Stock - MF'!AO$14,0,(-1*LIFETIME_MF)+1,1,LIFETIME_MF)))","v":801.30300101561875},{"$f":"IF(AO$15-$D$15+2<=LIFETIME_MF,AO12,\nSUMPRODUCT(OFFSET(AO12,0,(-1*LIFETIME_MF)+1,1,LIFETIME_MF),OFFSET('Shipments and Stock - MF'!AP$14,0,(-1*LIFETIME_MF)+1,1,LIFETIME_MF))/\nSUM(OFFSET('Shipments and Stock - MF'!AP$14,0,(-1*LIFETIME_MF)+1,1,LIFETIME_MF)))","v":803.73435341378729},{"$f":"IF(AP$15-$D$15+2<=LIFETIME_MF,AP12,\nSUMPRODUCT(OFFSET(AP12,0,(-1*LIFETIME_MF)+1,1,LIFETIME_MF),OFFSET('Shipments and Stock - MF'!AQ$14,0,(-1*LIFETIME_MF)+1,1,LIFETIME_MF))/\nSUM(OFFSET('Shipments and Stock - MF'!AQ$14,0,(-1*LIFETIME_MF)+1,1,LIFETIME_MF)))","v":789.34741018681916},{"$f":"IF(AQ$15-$D$15+2<=LIFETIME_MF,AQ12,\nSUMPRODUCT(OFFSET(AQ12,0,(-1*LIFETIME_MF)+1,1,LIFETIME_MF),OFFSET('Shipments and Stock - MF'!AR$14,0,(-1*LIFETIME_MF)+1,1,LIFETIME_MF))/\nSUM(OFFSET('Shipments and Stock - MF'!AR$14,0,(-1*LIFETIME_MF)+1,1,LIFETIME_MF)))","v":777.45123636356777},{"$f":"IF(AR$15-$D$15+2<=LIFETIME_MF,AR12,\nSUMPRODUCT(OFFSET(AR12,0,(-1*LIFETIME_MF)+1,1,LIFETIME_MF),OFFSET('Shipments and Stock - MF'!AS$14,0,(-1*LIFETIME_MF)+1,1,LIFETIME_MF))/\nSUM(OFFSET('Shipments and Stock - MF'!AS$14,0,(-1*LIFETIME_MF)+1,1,LIFETIME_MF)))","v":767.86007936606711},{"$f":"IF(AS$15-$D$15+2<=LIFETIME_MF,AS12,\nSUMPRODUCT(OFFSET(AS12,0,(-1*LIFETIME_MF)+1,1,LIFETIME_MF),OFFSET('Shipments and Stock - MF'!AT$14,0,(-1*LIFETIME_MF)+1,1,LIFETIME_MF))/\nSUM(OFFSET('Shipments and Stock - MF'!AT$14,0,(-1*LIFETIME_MF)+1,1,LIFETIME_MF)))","v":758.89521787222441},{"$f":"IF(AT$15-$D$15+2<=LIFETIME_MF,AT12,\nSUMPRODUCT(OFFSET(AT12,0,(-1*LIFETIME_MF)+1,1,LIFETIME_MF),OFFSET('Shipments and Stock - MF'!AU$14,0,(-1*LIFETIME_MF)+1,1,LIFETIME_MF))/\nSUM(OFFSET('Shipments and Stock - MF'!AU$14,0,(-1*LIFETIME_MF)+1,1,LIFETIME_MF)))","v":746.05756527641222},{"$f":"IF(AU$15-$D$15+2<=LIFETIME_MF,AU12,\nSUMPRODUCT(OFFSET(AU12,0,(-1*LIFETIME_MF)+1,1,LIFETIME_MF),OFFSET('Shipments and Stock - MF'!AV$14,0,(-1*LIFETIME_MF)+1,1,LIFETIME_MF))/\nSUM(OFFSET('Shipments and Stock - MF'!AV$14,0,(-1*LIFETIME_MF)+1,1,LIFETIME_MF)))","v":735.3968853310588},{"$f":"IF(AV$15-$D$15+2<=LIFETIME_MF,AV12,\nSUMPRODUCT(OFFSET(AV12,0,(-1*LIFETIME_MF)+1,1,LIFETIME_MF),OFFSET('Shipments and Stock - MF'!AW$14,0,(-1*LIFETIME_MF)+1,1,LIFETIME_MF))/\nSUM(OFFSET('Shipments and Stock - MF'!AW$14,0,(-1*LIFETIME_MF)+1,1,LIFETIME_MF)))","v":724.37151463649309},{"$f":"IF(AW$15-$D$15+2<=LIFETIME_MF,AW12,\nSUMPRODUCT(OFFSET(AW12,0,(-1*LIFETIME_MF)+1,1,LIFETIME_MF),OFFSET('Shipments and Stock - MF'!AX$14,0,(-1*LIFETIME_MF)+1,1,LIFETIME_MF))/\nSUM(OFFSET('Shipments and Stock - MF'!AX$14,0,(-1*LIFETIME_MF)+1,1,LIFETIME_MF)))","v":712.18397793372901},{"$f":"IF(AX$15-$D$15+2<=LIFETIME_MF,AX12,\nSUMPRODUCT(OFFSET(AX12,0,(-1*LIFETIME_MF)+1,1,LIFETIME_MF),OFFSET('Shipments and Stock - MF'!AY$14,0,(-1*LIFETIME_MF)+1,1,LIFETIME_MF))/\nSUM(OFFSET('Shipments and Stock - MF'!AY$14,0,(-1*LIFETIME_MF)+1,1,LIFETIME_MF)))","v":697.10425598066888},{"$f":"IF(AY$15-$D$15+2<=LIFETIME_MF,AY12,\nSUMPRODUCT(OFFSET(AY12,0,(-1*LIFETIME_MF)+1,1,LIFETIME_MF),OFFSET('Shipments and Stock - MF'!AZ$14,0,(-1*LIFETIME_MF)+1,1,LIFETIME_MF))/\nSUM(OFFSET('Shipments and Stock - MF'!AZ$14,0,(-1*LIFETIME_MF)+1,1,LIFETIME_MF)))","v":684.09353790552041},{"$f":"IF(AZ$15-$D$15+2<=LIFETIME_MF,AZ12,\nSUMPRODUCT(OFFSET(AZ12,0,(-1*LIFETIME_MF)+1,1,LIFETIME_MF),OFFSET('Shipments and Stock - MF'!BA$14,0,(-1*LIFETIME_MF)+1,1,LIFETIME_MF))/\nSUM(OFFSET('Shipments and Stock - MF'!BA$14,0,(-1*LIFETIME_MF)+1,1,LIFETIME_MF)))","v":672.06226973481489},{"$f":"IF(BA$15-$D$15+2<=LIFETIME_MF,BA12,\nSUMPRODUCT(OFFSET(BA12,0,(-1*LIFETIME_MF)+1,1,LIFETIME_MF),OFFSET('Shipments and Stock - MF'!BB$14,0,(-1*LIFETIME_MF)+1,1,LIFETIME_MF))/\nSUM(OFFSET('Shipments and Stock - MF'!BB$14,0,(-1*LIFETIME_MF)+1,1,LIFETIME_MF)))","v":660.19928009316459},{"$f":"IF(BB$15-$D$15+2<=LIFETIME_MF,BB12,\nSUMPRODUCT(OFFSET(BB12,0,(-1*LIFETIME_MF)+1,1,LIFETIME_MF),OFFSET('Shipments and Stock - MF'!BC$14,0,(-1*LIFETIME_MF)+1,1,LIFETIME_MF))/\nSUM(OFFSET('Shipments and Stock - MF'!BC$14,0,(-1*LIFETIME_MF)+1,1,LIFETIME_MF)))","v":646.06570840993618},{"$f":"IF(BC$15-$D$15+2<=LIFETIME_MF,BC12,\nSUMPRODUCT(OFFSET(BC12,0,(-1*LIFETIME_MF)+1,1,LIFETIME_MF),OFFSET('Shipments and Stock - MF'!BD$14,0,(-1*LIFETIME_MF)+1,1,LIFETIME_MF))/\nSUM(OFFSET('Shipments and Stock - MF'!BD$14,0,(-1*LIFETIME_MF)+1,1,LIFETIME_MF)))","v":633.76700312205674},{"$f":"IF(BD$15-$D$15+2<=LIFETIME_MF,BD12,\nSUMPRODUCT(OFFSET(BD12,0,(-1*LIFETIME_MF)+1,1,LIFETIME_MF),OFFSET('Shipments and Stock - MF'!BE$14,0,(-1*LIFETIME_MF)+1,1,LIFETIME_MF))/\nSUM(OFFSET('Shipments and Stock - MF'!BE$14,0,(-1*LIFETIME_MF)+1,1,LIFETIME_MF)))","v":613.68051254292959},{"$f":"IF(BE$15-$D$15+2<=LIFETIME_MF,BE12,\nSUMPRODUCT(OFFSET(BE12,0,(-1*LIFETIME_MF)+1,1,LIFETIME_MF),OFFSET('Shipments and Stock - MF'!BF$14,0,(-1*LIFETIME_MF)+1,1,LIFETIME_MF))/\nSUM(OFFSET('Shipments and Stock - MF'!BF$14,0,(-1*LIFETIME_MF)+1,1,LIFETIME_MF)))","v":593.89445394491395}]

{"sheet":"UEC-MH","index":23,"n_rows":17,"n_cols":57,"rows_kept":17,"cut":false,"hidden":false,"merged":[]}
[]
[null,null,"Weighted Average Annual UEC - Manufactured Homes"]
[]
[null,null,"NAVIGATION"]
[]
[null,null,"COMMENTS"]
[]
[]
[null,null,"Market UEC (Shipment Weighted Average)"]
[null,null,null,1981,{"$f":"D10+1","v":1982},{"$f":"E10+1","v":1983},1984,1985,1986,1987,1988,1989,1990,1991,1992,1993,1994,1995,1996,1997,1998,1999,2000,2001,2002,2003,2004,2005,2006,2007,2008,2009,2010,2011,2012,2013,2014,2015,2016,2017,2018,2019,2020,2021,2022,2023,2024,2025,2026,2027,2028,2029,2030,2031,2032,2033,2034]
[null,null,"PRE-Case UEC",{"$f":"SUMPRODUCT('Product Class Dist'!D64:D71,'UEC Development'!D64:D71)","v":330.74256678770018},{"$f":"SUMPRODUCT('Product Class Dist'!E64:E71,'UEC Development'!E64:E71)","v":328.1216470917841},{"$f":"SUMPRODUCT('Product Class Dist'!F64:F71,'UEC Development'!F64:F71)","v":332.12770815794397},{"$f":"SUMPRODUCT('Product Class Dist'!G64:G71,'UEC Development'!G64:G71)","v":331.89592154228791},{"$f":"SUMPRODUCT('Product Class Dist'!H64:H71,'UEC Development'!H64:H71)","v":329.85035859027232},{"$f":"SUMPRODUCT('Product Class Dist'!I64:I71,'UEC Development'!I64:I71)","v":327.55206175092064},{"$f":"SUMPRODUCT('Product Class Dist'!J64:J71,'UEC Development'!J64:J71)","v":326.89503177379197},{"$f":"SUMPRODUCT('Product Class Dist'!K64:K71,'UEC Development'!K64:K71)","v":328.51705667076993},{"$f":"SUMPRODUCT('Product Class Dist'!L64:L71,'UEC Development'!L64:L71)","v":329.69908768659525},{"$f":"SUMPRODUCT('Product Class Dist'!M64:M71,'UEC Development'!M64:M71)","v":331.87800234526901},{"$f":"SUMPRODUCT('Product Class Dist'!N64:N71,'UEC Development'!N64:N71)","v":331.81456275931799},{"$f":"SUMPRODUCT('Product Class Dist'!O64:O71,'UEC Development'!O64:O71)","v":333.74867405473708},{"$f":"SUMPRODUCT('Product Class Dist'!P64:P71,'UEC Development'!P64:P71)","v":335.91045293454476},{"$f":"SUMPRODUCT('Product Class Dist'!Q64:Q71,'UEC Development'!Q64:Q71)","v":337.88643853105248},{"$f":"SUMPRODUCT('Product Class Dist'!R64:R71,'UEC Development'!R64:R71)","v":337.25375485346052},{"$f":"SUMPRODUCT('Product Class Dist'!S64:S71,'UEC Development'!S64:S71)","v":335.36227611954342},{"$f":"SUMPRODUCT('Product Class Dist'!T64:T71,'UEC Development'!T64:T71)","v":335.42561242227742},{"$f":"SUMPRODUCT('Product Class Dist'!U64:U71,'UEC Development'!U64:U71)","v":335.8815871101703},{"$f":"SUMPRODUCT('Product Class Dist'!V64:V71,'UEC Development'!V64:V71)","v":332.95608637296266},{"$f":"SUMPRODUCT('Product Class Dist'!W64:W71,'UEC Development'!W64:W71)","v":326.91488296138346},{"$f":"SUMPRODUCT('Product Class Dist'!X64:X71,'UEC Development'!X64:X71)","v":323.11125306713774},{"$f":"SUMPRODUCT('Product Class Dist'!Y64:Y71,'UEC Development'!Y64:Y71)","v":317.7639550907237},{"$f":"SUMPRODUCT('Product Class Dist'!Z64:Z71,'UEC Development'!Z64:Z71)","v":317.62914372871887},{"$f":"SUMPRODUCT('Product Class Dist'!AA64:AA71,'UEC Development'!AA64:AA71)","v":316.19971649472728},{"$f":"SUMPRODUCT('Product Class Dist'!AB64:AB71,'UEC Development'!AB64:AB71)","v":316.20663813859909},{"$f":"SUMPRODUCT('Product Class Dist'!AC64:AC71,'UEC Development'!AC64:AC71)","v":316.2265165872156},{"$f":"SUMPRODUCT('Product Class Dist'!AD64:AD71,'UEC Development'!AD64:AD71)","v":319.16056896464636},{"$f":"SUMPRODUCT('Product Class Dist'!AE64:AE71,'UEC Development'!AE64:AE71)","v":319.67948973984767},{"$f":"SUMPRODUCT('Product Class Dist'!AF64:AF71,'UEC Development'!AF64:AF71)","v":319.30587864825623},{"$f":"SUMPRODUCT('Product Class Dist'!AG64:AG71,'UEC Development'!AG64:AG71)","v":318.93644650213577},{"$f":"SUMPRODUCT('Product Class Dist'!AH64:AH71,'UEC Development'!AH64:AH71)","v":318.0575369139238},{"$f":"SUMPRODUCT('Product Class Dist'!AI64:AI71,'UEC Development'!AI64:AI71)","v":319.80091958098069},{"$f":"SUMPRODUCT('Product Class Dist'!AJ64:AJ71,'UEC Development'!AJ64:AJ71)","v":319.67736557833342},{"$f":"SUMPRODUCT('Product Class Dist'!AK64:AK71,'UEC Development'!AK64:AK71)","v":318.31104571261943},{"$f":"SUMPRODUCT('Product Class Dist'!AL64:AL71,'UEC Development'!AL64:AL71)","v":317.09079864815271},{"$f":"SUMPRODUCT('Product Class Dist'!AM64:AM71,'UEC Development'!AM64:AM71)","v":316.91642339361272},{"$f":"SUMPRODUCT('Product Class Dist'!AN64:AN71,'UEC Development'!AN64:AN71)","v":317.31573016223479},{"$f":"SUMPRODUCT('Product Class Dist'!AO64:AO71,'UEC Development'!AO64:AO71)","v":317.27779571136477},{"$f":"SUMPRODUCT('Product Class Dist'!AP64:AP71,'UEC Development'!AP64:AP71)","v":316.96881149603348},{"$f":"SUMPRODUCT('Product Class Dist'!AQ64:AQ71,'UEC Development'!AQ64:AQ71)","v":318.19032012099404},{"$f":"SUMPRODUCT('Product Class Dist'!AR64:AR71,'UEC Development'!AR64:AR71)","v":320.42988920976904},{"$f":"SUMPRODUCT('Product Class Dist'!AS64:AS71,'UEC Development'!AS64:AS71)","v":321.95641590450634},{"$f":"SUMPRODUCT('Product Class Dist'!AT64:AT71,'UEC Development'!AT64:AT71)","v":318.15469856376478},{"$f":"SUMPRODUCT('Product Class Dist'!AU64:AU71,'UEC Development'!AU64:AU71)","v":319.10448456066786},{"$f":"SUMPRODUCT('Product Class Dist'!AV64:AV71,'UEC Development'!AV64:AV71)","v":318.26213364960961},{"$f":"SUMPRODUCT('Product Class Dist'!AW64:AW71,'UEC Development'!AW64:AW71)","v":318.2354289501227},{"$f":"SUMPRODUCT('Product Class Dist'!AX64:AX71,'UEC Development'!AX64:AX71)","v":318.61272207293706},{"$f":"SUMPRODUCT('Product Class Dist'!AY64:AY71,'UEC Development'!AY64:AY71)","v":318.35269410661442},{"$f":"SUMPRODUCT('Product Class Dist'!AZ64:AZ71,'UEC Development'!AZ64:AZ71)","v":318.07941730731056},{"$f":"SUMPRODUCT('Product Class Dist'!BA64:BA71,'UEC Development'!BA64:BA71)","v":317.44808323871075},{"$f":"SUMPRODUCT('Product Class Dist'!BB64:BB71,'UEC Development'!BB64:BB71)","v":317.33823173697829},{"$f":"SUMPRODUCT('Product Class Dist'!BC64:BC71,'UEC Development'!BC64:BC71)","v":317.04091697525462},{"$f":"SUMPRODUCT('Product Class Dist'!BD64:BD71,'UEC Development'!BD64:BD71)","v":316.85158573982932},{"$f":"SUMPRODUCT('Product Class Dist'!BE64:BE71,'UEC Development'!BE64:BE71)","v":316.625276167089}]
[null,null,"POST-Case UEC",{"$f":"SUMPRODUCT('Product Class Dist'!D74:D81,'UEC Development'!D74:D81)","v":330.74256678770018},{"$f":"SUMPRODUCT('Product Class Dist'!E74:E81,'UEC Development'!E74:E81)","v":328.1216470917841},{"$f":"SUMPRODUCT('Product Class Dist'!F74:F81,'UEC Development'!F74:F81)","v":332.12770815794397},{"$f":"SUMPRODUCT('Product Class Dist'!G74:G81,'UEC Development'!G74:G81)","v":331.89592154228791},{"$f":"SUMPRODUCT('Product Class Dist'!H74:H81,'UEC Development'!H74:H81)","v":329.85035859027232},{"$f":"SUMPRODUCT('Product Class Dist'!I74:I81,'UEC Development'!I74:I81)","v":327.55206175092064},{"$f":"SUMPRODUCT('Product Class Dist'!J74:J81,'UEC Development'!J74:J81)","v":326.89503177379197},{"$f":"SUMPRODUCT('Product Class Dist'!K74:K81,'UEC Development'!K74:K81)","v":328.51705667076993},{"$f":"SUMPRODUCT('Product Class Dist'!L74:L81,'UEC Development'!L74:L81)","v":329.69908768659525},{"$f":"SUMPRODUCT('Product Class Dist'!M74:M81,'UEC Development'!M74:M81)","v":331.87800234526901},{"$f":"SUMPRODUCT('Product Class Dist'!N74:N81,'UEC Development'!N74:N81)","v":331.81456275931799},{"$f":"SUMPRODUCT('Product Class Dist'!O74:O81,'UEC Development'!O74:O81)","v":333.74867405473708},{"$f":"SUMPRODUCT('Product Class Dist'!P74:P81,'UEC Development'!P74:P81)","v":335.91045293454476},{"$f":"SUMPRODUCT('Product Class Dist'!Q74:Q81,'UEC Development'!Q74:Q81)","v":337.88643853105248},{"$f":"SUMPRODUCT('Product Class Dist'!R74:R81,'UEC Development'!R74:R81)","v":337.25375485346052},{"$f":"SUMPRODUCT('Product Class Dist'!S74:S81,'UEC Development'!S74:S81)","v":335.36227611954342},{"$f":"SUMPRODUCT('Product Class Dist'!T74:T81,'UEC Development'!T74:T81)","v":335.42561242227742},{"$f":"SUMPRODUCT('Product Class Dist'!U74:U81,'UEC Development'!U74:U81)","v":335.8815871101703},{"$f":"SUMPRODUCT('Product Class Dist'!V74:V81,'UEC Development'!V74:V81)","v":332.95608637296266},{"$f":"SUMPRODUCT('Product Class Dist'!W74:W81,'UEC Development'!W74:W81)","v":326.91488296138346},{"$f":"SUMPRODUCT('Product Class Dist'!X74:X81,'UEC Development'!X74:X81)","v":323.11125306713774},{"$f":"SUMPRODUCT('Product Class Dist'!Y74:Y81,'UEC Development'!Y74:Y81)","v":317.7639550907237},{"$f":"SUMPRODUCT('Product Class Dist'!Z74:Z81,'UEC Development'!Z74:Z81)","v":317.62914372871887},{"$f":"SUMPRODUCT('Product Class Dist'!AA74:AA81,'UEC Development'!AA74:AA81)","v":316.19971649472728},{"$f":"SUMPRODUCT('Product Class Dist'!AB74:AB81,'UEC Development'!AB74:AB81)","v":316.20663813859909},{"$f":"SUMPRODUCT('Product Class Dist'!AC74:AC81,'UEC Development'!AC74:AC81)","v":316.2265165872156},{"$f":"SUMPRODUCT('Product Class Dist'!AD74:AD81,'UEC Development'!AD74:AD81)","v":319.16056896464636},{"$f":"SUMPRODUCT('Product Class Dist'!AE74:AE81,'UEC Development'!AE74:AE81)","v":319.67948973984767},{"$f":"SUMPRODUCT('Product Class Dist'!AF74:AF81,'UEC Development'!AF74:AF81)","v":319.30587864825623},{"$f":"SUMPRODUCT('Product Class Dist'!AG74:AG81,'UEC Development'!AG74:AG81)","v":318.93644650213577},{"$f":"SUMPRODUCT('Product Class Dist'!AH74:AH81,'UEC Development'!AH74:AH81)","v":318.0575369139238},{"$f":"SUMPRODUCT('Product Class Dist'!AI74:AI81,'UEC Development'!AI74:AI81)","v":319.80091958098069},{"$f":"SUMPRODUCT('Product Class Dist'!AJ74:AJ81,'UEC Development'!AJ74:AJ81)","v":319.67736557833342},{"$f":"SUMPRODUCT('Product Class Dist'!AK74:AK81,'UEC Development'!AK74:AK81)","v":318.31104571261943},{"$f":"SUMPRODUCT('Product Class Dist'!AL74:AL81,'UEC Development'!AL74:AL81)","v":317.09079864815271},{"$f":"SUMPRODUCT('Product Class Dist'!AM74:AM81,'UEC Development'!AM74:AM81)","v":316.91642339361272},{"$f":"SUMPRODUCT('Product Class Dist'!AN74:AN81,'UEC Development'!AN74:AN81)","v":317.31573016223479},{"$f":"SUMPRODUCT('Product Class Dist'!AO74:AO81,'UEC Development'!AO74:AO81)","v":317.27779571136477},{"$f":"SUMPRODUCT('Product Class Dist'!AP74:AP81,'UEC Development'!AP74:AP81)","v":251.86681303360018},{"$f":"SUMPRODUCT('Product Class Dist'!AQ74:AQ81,'UEC Development'!AQ74:AQ81)","v":251.94736486650083},{"$f":"SUMPRODUCT('Product Class Dist'!AR74:AR81,'UEC Development'!AR74:AR81)","v":252.07171276092998},{"$f":"SUMPRODUCT('Product Class Dist'!AS74:AS81,'UEC Development'!AS74:AS81)","v":252.17253067216791},{"$f":"SUMPRODUCT('Product Class Dist'!AT74:AT81,'UEC Development'!AT74:AT81)","v":252.0816093991715},{"$f":"SUMPRODUCT('Product Class Dist'!AU74:AU81,'UEC Development'!AU74:AU81)","v":252.16707756808307},{"$f":"SUMPRODUCT('Product Class Dist'!AV74:AV81,'UEC Development'!AV74:AV81)","v":252.18860840210752},{"$f":"SUMPRODUCT('Product Class Dist'!AW74:AW81,'UEC Development'!AW74:AW81)","v":252.23916083326316},{"$f":"SUMPRODUCT('Product Class Dist'!AX74:AX81,'UEC Development'!AX74:AX81)","v":252.30754494179405},{"$f":"SUMPRODUCT('Product Class Dist'!AY74:AY81,'UEC Development'!AY74:AY81)","v":252.35249856885545},{"$f":"SUMPRODUCT('Product Class Dist'!AZ74:AZ81,'UEC Development'!AZ74:AZ81)","v":252.39701760509362},{"$f":"SUMPRODUCT('Product Class Dist'!BA74:BA81,'UEC Development'!BA74:BA81)","v":252.42140254445195},{"$f":"SUMPRODUCT('Product Class Dist'!BB74:BB81,'UEC Development'!BB74:BB81)","v":252.46599170060765},{"$f":"SUMPRODUCT('Product Class Dist'!BC74:BC81,'UEC Development'!BC74:BC81)","v":252.49655891112329},{"$f":"SUMPRODUCT('Product Class Dist'!BD74:BD81,'UEC Development'!BD74:BD81)","v":252.52422397317736},{"$f":"SUMPRODUCT('Product Class Dist'!BE74:BE81,'UEC Development'!BE74:BE81)","v":252.55464963791229}]
[]
[null,null,"Installed UEC (Vintage Weighted Average) "]
[null,null,null,1981,{"$f":"D15+1","v":1982},{"$f":"E15+1","v":1983},1984,1985,1986,1987,1988,1989,1990,1991,1992,1993,1994,1995,1996,1997,1998,1999,2000,2001,2002,2003,2004,2005,2006,2007,2008,2009,2010,2011,2012,2013,2014,2015,2016,2017,2018,2019,2020,2021,2022,2023,2024,2025,2026,2027,2028,2029,2030,2031,2032,2033,2034]
[null,null,"PRE-Case UEC",{"$f":"IF(D$15-$D$15+2<=LIFETIME_MH,D11,\nSUMPRODUCT(OFFSET(D11,0,(-1*LIFETIME_MH)+1,1,LIFETIME_MH),OFFSET('Shipments and Stock - MH'!E$14,0,(-1*LIFETIME_MH)+1,1,LIFETIME_MH))/\nSUM(OFFSET('Shipments and Stock - MH'!E$14,0,(-1*LIFETIME_MH)+1,1,LIFETIME_MH)))","v":330.74256678770018},{"$f":"IF(E$15-$D$15+2<=LIFETIME_MH,E11,\nSUMPRODUCT(OFFSET(E11,0,(-1*LIFETIME_MH)+1,1,LIFETIME_MH),OFFSET('Shipments and Stock - MH'!F$14,0,(-1*LIFETIME_MH)+1,1,LIFETIME_MH))/\nSUM(OFFSET('Shipments and Stock - MH'!F$14,0,(-1*LIFETIME_MH)+1,1,LIFETIME_MH)))","v":328.1216470917841},{"$f":"IF(F$15-$D$15+2<=LIFETIME_MH,F11,\nSUMPRODUCT(OFFSET(F11,0,(-1*LIFETIME_MH)+1,1,LIFETIME_MH),OFFSET('Shipments and Stock - MH'!G$14,0,(-1*LIFETIME_MH)+1,1,LIFETIME_MH))/\nSUM(OFFSET('Shipments and Stock - MH'!G$14,0,(-1*LIFETIME_MH)+1,1,LIFETIME_MH)))","v":332.12770815794397},{"$f":"IF(G$15-$D$15+2<=LIFETIME_MH,G11,\nSUMPRODUCT(OFFSET(G11,0,(-1*LIFETIME_MH)+1,1,LIFETIME_MH),OFFSET('Shipments and Stock - MH'!H$14,0,(-1*LIFETIME_MH)+1,1,LIFETIME_MH))/\nSUM(OFFSET('Shipments and Stock - MH'!H$14,0,(-1*LIFETIME_MH)+1,1,LIFETIME_MH)))","v":331.89592154228791},{"$f":"IF(H$15-$D$15+2<=LIFETIME_MH,H11,\nSUMPRODUCT(OFFSET(H11,0,(-1*LIFETIME_MH)+1,1,LIFETIME_MH),OFFSET('Shipments and Stock - MH'!I$14,0,(-1*LIFETIME_MH)+1,1,LIFETIME_MH))/\nSUM(OFFSET('Shipments and Stock - MH'!I$14,0,(-1*LIFETIME_MH)+1,1,LIFETIME_MH)))","v":329.85035859027232},{"$f":"IF(I$15-$D$15+2<=LIFETIME_MH,I11,\nSUMPRODUCT(OFFSET(I11,0,(-1*LIFETIME_MH)+1,1,LIFETIME_MH),OFFSET('Shipments and Stock - MH'!J$14,0,(-1*LIFETIME_MH)+1,1,LIFETIME_MH))/\nSUM(OFFSET('Shipments and Stock - MH'!J$14,0,(-1*LIFETIME_MH)+1,1,LIFETIME_MH)))","v":327.55206175092064},{"$f":"IF(J$15-$D$15+2<=LIFETIME_MH,J11,\nSUMPRODUCT(OFFSET(J11,0,(-1*LIFETIME_MH)+1,1,LIFETIME_MH),OFFSET('Shipments and Stock - MH'!K$14,0,(-1*LIFETIME_MH)+1,1,LIFETIME_MH))/\nSUM(OFFSET('Shipments and Stock - MH'!K$14,0,(-1*LIFETIME_MH)+1,1,LIFETIME_MH)))","v":326.89503177379197},{"$f":"IF(K$15-$D$15+2<=LIFETIME_MH,K11,\nSUMPRODUCT(OFFSET(K11,0,(-1*LIFETIME_MH)+1,1,LIFETIME_MH),OFFSET('Shipments and Stock - MH'!L$14,0,(-1*LIFETIME_MH)+1,1,LIFETIME_MH))/\nSUM(OFFSET('Shipments and Stock - MH'!L$14,0,(-1*LIFETIME_MH)+1,1,LIFETIME_MH)))","v":328.51705667076993},{"$f":"IF(L$15-$D$15+2<=LIFETIME_MH,L11,\nSUMPRODUCT(OFFSET(L11,0,(-1*LIFETIME_MH)+1,1,LIFETIME_MH),OFFSET('Shipments and Stock - MH'!M$14,0,(-1*LIFETIME_MH)+1,1,LIFETIME_MH))/\nSUM(OFFSET('Shipments and Stock - MH'!M$14,0,(-1*LIFETIME_MH)+1,1,LIFETIME_MH)))","v":329.69908768659525},{"$f":"IF(M$15-$D$15+2<=LIFETIME_MH,M11,\nSUMPRODUCT(OFFSET(M11,0,(-1*LIFETIME_MH)+1,1,LIFETIME_MH),OFFSET('Shipments and Stock - MH'!N$14,0,(-1*LIFETIME_MH)+1,1,LIFETIME_MH))/\nSUM(OFFSET('Shipments and Stock - MH'!N$14,0,(-1*LIFETIME_MH)+1,1,LIFETIME_MH)))","v":331.87800234526901},{"$f":"IF(N$15-$D$15+2<=LIFETIME_MH,N11,\nSUMPRODUCT(OFFSET(N11,0,(-1*LIFETIME_MH)+1,1,LIFETIME_MH),OFFSET('Shipments and Stock - MH'!O$14,0,(-1*LIFETIME_MH)+1,1,LIFETIME_MH))/\nSUM(OFFSET('Shipments and Stock - MH'!O$14,0,(-1*LIFETIME_MH)+1,1,LIFETIME_MH)))","v":331.81456275931799},{"$f":"IF(O$15-$D$15+2<=LIFETIME_MH,O11,\nSUMPRODUCT(OFFSET(O11,0,(-1*LIFETIME_MH)+1,1,LIFETIME_MH),OFFSET('Shipments and Stock - MH'!P$14,0,(-1*LIFETIME_MH)+1,1,LIFETIME_MH))/\nSUM(OFFSET('Shipments and Stock - MH'!P$14,0,(-1*LIFETIME_MH)+1,1,LIFETIME_MH)))","v":333.74867405473708},{"$f":"IF(P$15-$D$15+2<=LIFETIME_MH,P11,\nSUMPRODUCT(OFFSET(P11,0,(-1*LIFETIME_MH)+1,1,LIFETIME_MH),OFFSET('Shipments and Stock - MH'!Q$14,0,(-1*LIFETIME_MH)+1,1,LIFETIME_MH))/\nSUM(OFFSET('Shipments and Stock - MH'!Q$14,0,(-1*LIFETIME_MH)+1,1,LIFETIME_MH)))","v":335.91045293454476},{"$f":"IF(Q$15-$D$15+2<=LIFETIME_MH,Q11,\nSUMPRODUCT(OFFSET(Q11,0,(-1*LIFETIME_MH)+1,1,LIFETIME_MH),OFFSET('Shipments and Stock - MH'!R$14,0,(-1*LIFETIME_MH)+1,1,LIFETIME_MH))/\nSUM(OFFSET('Shipments and Stock - MH'!R$14,0,(-1*LIFETIME_MH)+1,1,LIFETIME_MH)))","v":337.88643853105248},{"$f":"IF(R$15-$D$15+2<=LIFETIME_MH,R11,\nSUMPRODUCT(OFFSET(R11,0,(-1*LIFETIME_MH)+1,1,LIFETIME_MH),OFFSET('Shipments and Stock - MH'!S$14,0,(-1*LIFETIME_MH)+1,1,LIFETIME_MH))/\nSUM(OFFSET('Shipments and Stock - MH'!S$14,0,(-1*LIFETIME_MH)+1,1,LIFETIME_MH)))","v":337.25375485346052},{"$f":"IF(S$15-$D$15+2<=LIFETIME_MH,S11,\nSUMPRODUCT(OFFSET(S11,0,(-1*LIFETIME_MH)+1,1,LIFETIME_MH),OFFSET('Shipments and Stock - MH'!T$14,0,(-1*LIFETIME_MH)+1,1,LIFETIME_MH))/\nSUM(OFFSET('Shipments and Stock - MH'!T$14,0,(-1*LIFETIME_MH)+1,1,LIFETIME_MH)))","v":335.36227611954342},{"$f":"IF(T$15-$D$15+2<=LIFETIME_MH,T11,\nSUMPRODUCT(OFFSET(T11,0,(-1*LIFETIME_MH)+1,1,LIFETIME_MH),OFFSET('Shipments and Stock - MH'!U$14,0,(-1*LIFETIME_MH)+1,1,LIFETIME_MH))/\nSUM(OFFSET('Shipments and Stock - MH'!U$14,0,(-1*LIFETIME_MH)+1,1,LIFETIME_MH)))","v":335.42561242227742},{"$f":"IF(U$15-$D$15+2<=LIFETIME_MH,U11,\nSUMPRODUCT(OFFSET(U11,0,(-1*LIFETIME_MH)+1,1,LIFETIME_MH),OFFSET('Shipments and Stock - MH'!V$14,0,(-1*LIFETIME_MH)+1,1,LIFETIME_MH))/\nSUM(OFFSET('Shipments and Stock - MH'!V$14,0,(-1*LIFETIME_MH)+1,1,LIFETIME_MH)))","v":335.8815871101703},{"$f":"IF(V$15-$D$15+2<=LIFETIME_MH,V11,\nSUMPRODUCT(OFFSET(V11,0,(-1*LIFETIME_MH)+1,1,LIFETIME_MH),OFFSET('Shipments and Stock - MH'!W$14,0,(-1*LIFETIME_MH)+1,1,LIFETIME_MH))/\nSUM(OFFSET('Shipments and Stock - MH'!W$14,0,(-1*LIFETIME_MH)+1,1,LIFETIME_MH)))","v":332.95608637296266},{"$f":"IF(W$15-$D$15+2<=LIFETIME_MH,W11,\nSUMPRODUCT(OFFSET(W11,0,(-1*LIFETIME_MH)+1,1,LIFETIME_MH),OFFSET('Shipments and Stock - MH'!X$14,0,(-1*LIFETIME_MH)+1,1,LIFETIME_MH))/\nSUM(OFFSET('Shipments and Stock - MH'!X$14,0,(-1*LIFETIME_MH)+1,1,LIFETIME_MH)))","v":326.91488296138346},{"$f":"IF(X$15-$D$15+2<=LIFETIME_MH,X11,\nSUMPRODUCT(OFFSET(X11,0,(-1*LIFETIME_MH)+1,1,LIFETIME_MH),OFFSET('Shipments and Stock - MH'!Y$14,0,(-1*LIFETIME_MH)+1,1,LIFETIME_MH))/\nSUM(OFFSET('Shipments and Stock - MH'!Y$14,0,(-1*LIFETIME_MH)+1,1,LIFETIME_MH)))","v":332.14021785468316},{"$f":"IF(Y$15-$D$15+2<=LIFETIME_MH,Y11,\nSUMPRODUCT(OFFSET(Y11,0,(-1*LIFETIME_MH)+1,1,LIFETIME_MH),OFFSET('Shipments and Stock - MH'!Z$14,0,(-1*LIFETIME_MH)+1,1,LIFETIME_MH))/\nSUM(OFFSET('Shipments and Stock - MH'!Z$14,0,(-1*LIFETIME_MH)+1,1,LIFETIME_MH)))","v":331.4049901221963},{"$f":"IF(Z$15-$D$15+2<=LIFETIME_MH,Z11,\nSUMPRODUCT(OFFSET(Z11,0,(-1*LIFETIME_MH)+1,1,LIFETIME_MH),OFFSET('Shipments and Stock - MH'!AA$14,0,(-1*LIFETIME_MH)+1,1,LIFETIME_MH))/\nSUM(OFFSET('Shipments and Stock - MH'!AA$14,0,(-1*LIFETIME_MH)+1,1,LIFETIME_MH)))","v":330.84883988459842},{"$f":"IF(AA$15-$D$15+2<=LIFETIME_MH,AA11,\nSUMPRODUCT(OFFSET(AA11,0,(-1*LIFETIME_MH)+1,1,LIFETIME_MH),OFFSET('Shipments and Stock - MH'!AB$14,0,(-1*LIFETIME_MH)+1,1,LIFETIME_MH))/\nSUM(OFFSET('Shipments and Stock - MH'!AB$14,0,(-1*LIFETIME_MH)+1,1,LIFETIME_MH)))","v":329.98085200421298},{"$f":"IF(AB$15-$D$15+2<=LIFETIME_MH,AB11,\nSUMPRODUCT(OFFSET(AB11,0,(-1*LIFETIME_MH)+1,1,LIFETIME_MH),OFFSET('Shipments and Stock - MH'!AC$14,0,(-1*LIFETIME_MH)+1,1,LIFETIME_MH))/\nSUM(OFFSET('Shipments and Stock - MH'!AC$14,0,(-1*LIFETIME_MH)+1,1,LIFETIME_MH)))","v":329.14657639053843},{"$f":"IF(AC$15-$D$15+2<=LIFETIME_MH,AC11,\nSUMPRODUCT(OFFSET(AC11,0,(-1*LIFETIME_MH)+1,1,LIFETIME_MH),OFFSET('Shipments and Stock - MH'!AD$14,0,(-1*LIFETIME_MH)+1,1,LIFETIME_MH))/\nSUM(OFFSET('Shipments and Stock - MH'!AD$14,0,(-1*LIFETIME_MH)+1,1,LIFETIME_MH)))","v":328.47171159336779},{"$f":"IF(AD$15-$D$15+2<=LIFETIME_MH,AD11,\nSUMPRODUCT(OFFSET(AD11,0,(-1*LIFETIME_MH)+1,1,LIFETIME_MH),OFFSET('Shipments and Stock - MH'!AE$14,0,(-1*LIFETIME_MH)+1,1,LIFETIME_MH))/\nSUM(OFFSET('Shipments and Stock - MH'!AE$14,0,(-1*LIFETIME_MH)+1,1,LIFETIME_MH)))","v":328.0492864147181},{"$f":"IF(AE$15-$D$15+2<=LIFETIME_MH,AE11,\nSUMPRODUCT(OFFSET(AE11,0,(-1*LIFETIME_MH)+1,1,LIFETIME_MH),OFFSET('Shipments and Stock - MH'!AF$14,0,(-1*LIFETIME_MH)+1,1,LIFETIME_MH))/\nSUM(OFFSET('Shipments and Stock - MH'!AF$14,0,(-1*LIFETIME_MH)+1,1,LIFETIME_MH)))","v":327.68845860754379},{"$f":"IF(AF$15-$D$15+2<=LIFETIME_MH,AF11,\nSUMPRODUCT(OFFSET(AF11,0,(-1*LIFETIME_MH)+1,1,LIFETIME_MH),OFFSET('Shipments and Stock - MH'!AG$14,0,(-1*LIFETIME_MH)+1,1,LIFETIME_MH))/\nSUM(OFFSET('Shipments and Stock - MH'!AG$14,0,(-1*LIFETIME_MH)+1,1,LIFETIME_MH)))","v":327.23907355301623},{"$f":"IF(AG$15-$D$15+2<=LIFETIME_MH,AG11,\nSUMPRODUCT(OFFSET(AG11,0,(-1*LIFETIME_MH)+1,1,LIFETIME_MH),OFFSET('Shipments and Stock - MH'!AH$14,0,(-1*LIFETIME_MH)+1,1,LIFETIME_MH))/\nSUM(OFFSET('Shipments and Stock - MH'!AH$14,0,(-1*LIFETIME_MH)+1,1,LIFETIME_MH)))","v":326.7195027097971},{"$f":"IF(AH$15-$D$15+2<=LIFETIME_MH,AH11,\nSUMPRODUCT(OFFSET(AH11,0,(-1*LIFETIME_MH)+1,1,LIFETIME_MH),OFFSET('Shipments and Stock - MH'!AI$14,0,(-1*LIFETIME_MH)+1,1,LIFETIME_MH))/\nSUM(OFFSET('Shipments and Stock - MH'!AI$14,0,(-1*LIFETIME_MH)+1,1,LIFETIME_MH)))","v":326.03883396743282},{"$f":"IF(AI$15-$D$15+2<=LIFETIME_MH,AI11,\nSUMPRODUCT(OFFSET(AI11,0,(-1*LIFETIME_MH)+1,1,LIFETIME_MH),OFFSET('Shipments and Stock - MH'!AJ$14,0,(-1*LIFETIME_MH)+1,1,LIFETIME_MH))/\nSUM(OFFSET('Shipments and Stock - MH'!AJ$14,0,(-1*LIFETIME_MH)+1,1,LIFETIME_MH)))","v":325.45488069568523},{"$f":"IF(AJ$15-$D$15+2<=LIFETIME_MH,AJ11,\nSUMPRODUCT(OFFSET(AJ11,0,(-1*LIFETIME_MH)+1,1,LIFETIME_MH),OFFSET('Shipments and Stock - MH'!AK$14,0,(-1*LIFETIME_MH)+1,1,LIFETIME_MH))/\nSUM(OFFSET('Shipments and Stock - MH'!AK$14,0,(-1*LIFETIME_MH)+1,1,LIFETIME_MH)))","v":324.75587626851075},{"$f":"IF(AK$15-$D$15+2<=LIFETIME_MH,AK11,\nSUMPRODUCT(OFFSET(AK11,0,(-1*LIFETIME_MH)+1,1,LIFETIME_MH),OFFSET('Shipments and Stock - MH'!AL$14,0,(-1*LIFETIME_MH)+1,1,LIFETIME_MH))/\nSUM(OFFSET('Shipments and Stock - MH'!AL$14,0,(-1*LIFETIME_MH)+1,1,LIFETIME_MH)))","v":323.83017167912857},{"$f":"IF(AL$15-$D$15+2<=LIFETIME_MH,AL11,\nSUMPRODUCT(OFFSET(AL11,0,(-1*LIFETIME_MH)+1,1,LIFETIME_MH),OFFSET('Shipments and Stock - MH'!AM$14,0,(-1*LIFETIME_MH)+1,1,LIFETIME_MH))/\nSUM(OFFSET('Shipments and Stock - MH'!AM$14,0,(-1*LIFETIME_MH)+1,1,LIFETIME_MH)))","v":322.66521138784429},{"$f":"IF(AM$15-$D$15+2<=LIFETIME_MH,AM11,\nSUMPRODUCT(OFFSET(AM11,0,(-1*LIFETIME_MH)+1,1,LIFETIME_MH),OFFSET('Shipments and Stock - MH'!AN$14,0,(-1*LIFETIME_MH)+1,1,LIFETIME_MH))/\nSUM(OFFSET('Shipments and Stock - MH'!AN$14,0,(-1*LIFETIME_MH)+1,1,LIFETIME_MH)))","v":321.58076466654063},{"$f":"IF(AN$15-$D$15+2<=LIFETIME_MH,AN11,\nSUMPRODUCT(OFFSET(AN11,0,(-1*LIFETIME_MH)+1,1,LIFETIME_MH),OFFSET('Shipments and Stock - MH'!AO$14,0,(-1*LIFETIME_MH)+1,1,LIFETIME_MH))/\nSUM(OFFSET('Shipments and Stock - MH'!AO$14,0,(-1*LIFETIME_MH)+1,1,LIFETIME_MH)))","v":320.71174664423813},{"$f":"IF(AO$15-$D$15+2<=LIFETIME_MH,AO11,\nSUMPRODUCT(OFFSET(AO11,0,(-1*LIFETIME_MH)+1,1,LIFETIME_MH),OFFSET('Shipments and Stock - MH'!AP$14,0,(-1*LIFETIME_MH)+1,1,LIFETIME_MH))/\nSUM(OFFSET('Shipments and Stock - MH'!AP$14,0,(-1*LIFETIME_MH)+1,1,LIFETIME_MH)))","v":319.8520286728243},{"$f":"IF(AP$15-$D$15+2<=LIFETIME_MH,AP11,\nSUMPRODUCT(OFFSET(AP11,0,(-1*LIFETIME_MH)+1,1,LIFETIME_MH),OFFSET('Shipments and Stock - MH'!AQ$14,0,(-1*LIFETIME_MH)+1,1,LIFETIME_MH))/\nSUM(OFFSET('Shipments and Stock - MH'!AQ$14,0,(-1*LIFETIME_MH)+1,1,LIFETIME_MH)))","v":318.95313524109042},{"$f":"IF(AQ$15-$D$15+2<=LIFETIME_MH,AQ11,\nSUMPRODUCT(OFFSET(AQ11,0,(-1*LIFETIME_MH)+1,1,LIFETIME_MH),OFFSET('Shipments and Stock - MH'!AR$14,0,(-1*LIFETIME_MH)+1,1,LIFETIME_MH))/\nSUM(OFFSET('Shipments and Stock - MH'!AR$14,0,(-1*LIFETIME_MH)+1,1,LIFETIME_MH)))","v":318.34986607907325},{"$f":"IF(AR$15-$D$15+2<=LIFETIME_MH,AR11,\nSUMPRODUCT(OFFSET(AR11,0,(-1*LIFETIME_MH)+1,1,LIFETIME_MH),OFFSET('Shipments and Stock - MH'!AS$14,0,(-1*LIFETIME_MH)+1,1,LIFETIME_MH))/\nSUM(OFFSET('Shipments and Stock - MH'!AS$14,0,(-1*LIFETIME_MH)+1,1,LIFETIME_MH)))","v":318.16160148257939},{"$f":"IF(AS$15-$D$15+2<=LIFETIME_MH,AS11,\nSUMPRODUCT(OFFSET(AS11,0,(-1*LIFETIME_MH)+1,1,LIFETIME_MH),OFFSET('Shipments and Stock - MH'!AT$14,0,(-1*LIFETIME_MH)+1,1,LIFETIME_MH))/\nSUM(OFFSET('Shipments and Stock - MH'!AT$14,0,(-1*LIFETIME_MH)+1,1,LIFETIME_MH)))","v":318.16790149962213},{"$f":"IF(AT$15-$D$15+2<=LIFETIME_MH,AT11,\nSUMPRODUCT(OFFSET(AT11,0,(-1*LIFETIME_MH)+1,1,LIFETIME_MH),OFFSET('Shipments and Stock - MH'!AU$14,0,(-1*LIFETIME_MH)+1,1,LIFETIME_MH))/\nSUM(OFFSET('Shipments and Stock - MH'!AU$14,0,(-1*LIFETIME_MH)+1,1,LIFETIME_MH)))","v":318.18520624936679},{"$f":"IF(AU$15-$D$15+2<=LIFETIME_MH,AU11,\nSUMPRODUCT(OFFSET(AU11,0,(-1*LIFETIME_MH)+1,1,LIFETIME_MH),OFFSET('Shipments and Stock - MH'!AV$14,0,(-1*LIFETIME_MH)+1,1,LIFETIME_MH))/\nSUM(OFFSET('Shipments and Stock - MH'!AV$14,0,(-1*LIFETIME_MH)+1,1,LIFETIME_MH)))","v":318.25423827014657},{"$f":"IF(AV$15-$D$15+2<=LIFETIME_MH,AV11,\nSUMPRODUCT(OFFSET(AV11,0,(-1*LIFETIME_MH)+1,1,LIFETIME_MH),OFFSET('Shipments and Stock - MH'!AW$14,0,(-1*LIFETIME_MH)+1,1,LIFETIME_MH))/\nSUM(OFFSET('Shipments and Stock - MH'!AW$14,0,(-1*LIFETIME_MH)+1,1,LIFETIME_MH)))","v":318.34571346333792},{"$f":"IF(AW$15-$D$15+2<=LIFETIME_MH,AW11,\nSUMPRODUCT(OFFSET(AW11,0,(-1*LIFETIME_MH)+1,1,LIFETIME_MH),OFFSET('Shipments and Stock - MH'!AX$14,0,(-1*LIFETIME_MH)+1,1,LIFETIME_MH))/\nSUM(OFFSET('Shipments and Stock - MH'!AX$14,0,(-1*LIFETIME_MH)+1,1,LIFETIME_MH)))","v":318.43280869811394},{"$f":"IF(AX$15-$D$15+2<=LIFETIME_MH,AX11,\nSUMPRODUCT(OFFSET(AX11,0,(-1*LIFETIME_MH)+1,1,LIFETIME_MH),OFFSET('Shipments and Stock - MH'!AY$14,0,(-1*LIFETIME_MH)+1,1,LIFETIME_MH))/\nSUM(OFFSET('Shipments and Stock - MH'!AY$14,0,(-1*LIFETIME_MH)+1,1,LIFETIME_MH)))","v":318.52995177731543},{"$f":"IF(AY$15-$D$15+2<=LIFETIME_MH,AY11,\nSUMPRODUCT(OFFSET(AY11,0,(-1*LIFETIME_MH)+1,1,LIFETIME_MH),OFFSET('Shipments and Stock - MH'!AZ$14,0,(-1*LIFETIME_MH)+1,1,LIFETIME_MH))/\nSUM(OFFSET('Shipments and Stock - MH'!AZ$14,0,(-1*LIFETIME_MH)+1,1,LIFETIME_MH)))","v":318.49649068099438},{"$f":"IF(AZ$15-$D$15+2<=LIFETIME_MH,AZ11,\nSUMPRODUCT(OFFSET(AZ11,0,(-1*LIFETIME_MH)+1,1,LIFETIME_MH),OFFSET('Shipments and Stock - MH'!BA$14,0,(-1*LIFETIME_MH)+1,1,LIFETIME_MH))/\nSUM(OFFSET('Shipments and Stock - MH'!BA$14,0,(-1*LIFETIME_MH)+1,1,LIFETIME_MH)))","v":318.43086116882256},{"$f":"IF(BA$15-$D$15+2<=LIFETIME_MH,BA11,\nSUMPRODUCT(OFFSET(BA11,0,(-1*LIFETIME_MH)+1,1,LIFETIME_MH),OFFSET('Shipments and Stock - MH'!BB$14,0,(-1*LIFETIME_MH)+1,1,LIFETIME_MH))/\nSUM(OFFSET('Shipments and Stock - MH'!BB$14,0,(-1*LIFETIME_MH)+1,1,LIFETIME_MH)))","v":318.348189257032},{"$f":"IF(BB$15-$D$15+2<=LIFETIME_MH,BB11,\nSUMPRODUCT(OFFSET(BB11,0,(-1*LIFETIME_MH)+1,1,LIFETIME_MH),OFFSET('Shipments and Stock - MH'!BC$14,0,(-1*LIFETIME_MH)+1,1,LIFETIME_MH))/\nSUM(OFFSET('Shipments and Stock - MH'!BC$14,0,(-1*LIFETIME_MH)+1,1,LIFETIME_MH)))","v":318.27421468988069},{"$f":"IF(BC$15-$D$15+2<=LIFETIME_MH,BC11,\nSUMPRODUCT(OFFSET(BC11,0,(-1*LIFETIME_MH)+1,1,LIFETIME_MH),OFFSET('Shipments and Stock - MH'!BD$14,0,(-1*LIFETIME_MH)+1,1,LIFETIME_MH))/\nSUM(OFFSET('Shipments and Stock - MH'!BD$14,0,(-1*LIFETIME_MH)+1,1,LIFETIME_MH)))","v":318.22015811694843},{"$f":"IF(BD$15-$D$15+2<=LIFETIME_MH,BD11,\nSUMPRODUCT(OFFSET(BD11,0,(-1*LIFETIME_MH)+1,1,LIFETIME_MH),OFFSET('Shipments and Stock - MH'!BE$14,0,(-1*LIFETIME_MH)+1,1,LIFETIME_MH))/\nSUM(OFFSET('Shipments and Stock - MH'!BE$14,0,(-1*LIFETIME_MH)+1,1,LIFETIME_MH)))","v":318.07727838031519},{"$f":"IF(BE$15-$D$15+2<=LIFETIME_MH,BE11,\nSUMPRODUCT(OFFSET(BE11,0,(-1*LIFETIME_MH)+1,1,LIFETIME_MH),OFFSET('Shipments and Stock - MH'!BF$14,0,(-1*LIFETIME_MH)+1,1,LIFETIME_MH))/\nSUM(OFFSET('Shipments and Stock - MH'!BF$14,0,(-1*LIFETIME_MH)+1,1,LIFETIME_MH)))","v":317.92348940761639}]
[null,null,"POST-Case UEC",{"$f":"IF(D$15-$D$15+2<=LIFETIME_MH,D12,\nSUMPRODUCT(OFFSET(D12,0,(-1*LIFETIME_MH)+1,1,LIFETIME_MH),OFFSET('Shipments and Stock - MH'!E$14,0,(-1*LIFETIME_MH)+1,1,LIFETIME_MH))/\nSUM(OFFSET('Shipments and Stock - MH'!E$14,0,(-1*LIFETIME_MH)+1,1,LIFETIME_MH)))","v":330.74256678770018},{"$f":"IF(E$15-$D$15+2<=LIFETIME_MH,E12,\nSUMPRODUCT(OFFSET(E12,0,(-1*LIFETIME_MH)+1,1,LIFETIME_MH),OFFSET('Shipments and Stock - MH'!F$14,0,(-1*LIFETIME_MH)+1,1,LIFETIME_MH))/\nSUM(OFFSET('Shipments and Stock - MH'!F$14,0,(-1*LIFETIME_MH)+1,1,LIFETIME_MH)))","v":328.1216470917841},{"$f":"IF(F$15-$D$15+2<=LIFETIME_MH,F12,\nSUMPRODUCT(OFFSET(F12,0,(-1*LIFETIME_MH)+1,1,LIFETIME_MH),OFFSET('Shipments and Stock - MH'!G$14,0,(-1*LIFETIME_MH)+1,1,LIFETIME_MH))/\nSUM(OFFSET('Shipments and Stock - MH'!G$14,0,(-1*LIFETIME_MH)+1,1,LIFETIME_MH)))","v":332.12770815794397},{"$f":"IF(G$15-$D$15+2<=LIFETIME_MH,G12,\nSUMPRODUCT(OFFSET(G12,0,(-1*LIFETIME_MH)+1,1,LIFETIME_MH),OFFSET('Shipments and Stock - MH'!H$14,0,(-1*LIFETIME_MH)+1,1,LIFETIME_MH))/\nSUM(OFFSET('Shipments and Stock - MH'!H$14,0,(-1*LIFETIME_MH)+1,1,LIFETIME_MH)))","v":331.89592154228791},{"$f":"IF(H$15-$D$15+2<=LIFETIME_MH,H12,\nSUMPRODUCT(OFFSET(H12,0,(-1*LIFETIME_MH)+1,1,LIFETIME_MH),OFFSET('Shipments and Stock - MH'!I$14,0,(-1*LIFETIME_MH)+1,1,LIFETIME_MH))/\nSUM(OFFSET('Shipments and Stock - MH'!I$14,0,(-1*LIFETIME_MH)+1,1,LIFETIME_MH)))","v":329.85035859027232},{"$f":"IF(I$15-$D$15+2<=LIFETIME_MH,I12,\nSUMPRODUCT(OFFSET(I12,0,(-1*LIFETIME_MH)+1,1,LIFETIME_MH),OFFSET('Shipments and Stock - MH'!J$14,0,(-1*LIFETIME_MH)+1,1,LIFETIME_MH))/\nSUM(OFFSET('Shipments and Stock - MH'!J$14,0,(-1*LIFETIME_MH)+1,1,LIFETIME_MH)))","v":327.55206175092064},{"$f":"IF(J$15-$D$15+2<=LIFETIME_MH,J12,\nSUMPRODUCT(OFFSET(J12,0,(-1*LIFETIME_MH)+1,1,LIFETIME_MH),OFFSET('Shipments and Stock - MH'!K$14,0,(-1*LIFETIME_MH)+1,1,LIFETIME_MH))/\nSUM(OFFSET('Shipments and Stock - MH'!K$14,0,(-1*LIFETIME_MH)+1,1,LIFETIME_MH)))","v":326.89503177379197},{"$f":"IF(K$15-$D$15+2<=LIFETIME_MH,K12,\nSUMPRODUCT(OFFSET(K12,0,(-1*LIFETIME_MH)+1,1,LIFETIME_MH),OFFSET('Shipments and Stock - MH'!L$14,0,(-1*LIFETIME_MH)+1,1,LIFETIME_MH))/\nSUM(OFFSET('Shipments and Stock - MH'!L$14,0,(-1*LIFETIME_MH)+1,1,LIFETIME_MH)))","v":328.51705667076993},{"$f":"IF(L$15-$D$15+2<=LIFETIME_MH,L12,\nSUMPRODUCT(OFFSET(L12,0,(-1*LIFETIME_MH)+1,1,LIFETIME_MH),OFFSET('Shipments and Stock - MH'!M$14,0,(-1*LIFETIME_MH)+1,1,LIFETIME_MH))/\nSUM(OFFSET('Shipments and Stock - MH'!M$14,0,(-1*LIFETIME_MH)+1,1,LIFETIME_MH)))","v":329.69908768659525},{"$f":"IF(M$15-$D$15+2<=LIFETIME_MH,M12,\nSUMPRODUCT(OFFSET(M12,0,(-1*LIFETIME_MH)+1,1,LIFETIME_MH),OFFSET('Shipments and Stock - MH'!N$14,0,(-1*LIFETIME_MH)+1,1,LIFETIME_MH))/\nSUM(OFFSET('Shipments and Stock - MH'!N$14,0,(-1*LIFETIME_MH)+1,1,LIFETIME_MH)))","v":331.87800234526901},{"$f":"IF(N$15-$D$15+2<=LIFETIME_MH,N12,\nSUMPRODUCT(OFFSET(N12,0,(-1*LIFETIME_MH)+1,1,LIFETIME_MH),OFFSET('Shipments and Stock - MH'!O$14,0,(-1*LIFETIME_MH)+1,1,LIFETIME_MH))/\nSUM(OFFSET('Shipments and Stock - MH'!O$14,0,(-1*LIFETIME_MH)+1,1,LIFETIME_MH)))","v":331.81456275931799},{"$f":"IF(O$15-$D$15+2<=LIFETIME_MH,O12,\nSUMPRODUCT(OFFSET(O12,0,(-1*LIFETIME_MH)+1,1,LIFETIME_MH),OFFSET('Shipments and Stock - MH'!P$14,0,(-1*LIFETIME_MH)+1,1,LIFETIME_MH))/\nSUM(OFFSET('Shipments and Stock - MH'!P$14,0,(-1*LIFETIME_MH)+1,1,LIFETIME_MH)))","v":333.74867405473708},{"$f":"IF(P$15-$D$15+2<=LIFETIME_MH,P12,\nSUMPRODUCT(OFFSET(P12,0,(-1*LIFETIME_MH)+1,1,LIFETIME_MH),OFFSET('Shipments and Stock - MH'!Q$14,0,(-1*LIFETIME_MH)+1,1,LIFETIME_MH))/\nSUM(OFFSET('Shipments and Stock - MH'!Q$14,0,(-1*LIFETIME_MH)+1,1,LIFETIME_MH)))","v":335.91045293454476},{"$f":"IF(Q$15-$D$15+2<=LIFETIME_MH,Q12,\nSUMPRODUCT(OFFSET(Q12,0,(-1*LIFETIME_MH)+1,1,LIFETIME_MH),OFFSET('Shipments and Stock - MH'!R$14,0,(-1*LIFETIME_MH)+1,1,LIFETIME_MH))/\nSUM(OFFSET('Shipments and Stock - MH'!R$14,0,(-1*LIFETIME_MH)+1,1,LIFETIME_MH)))","v":337.88643853105248},{"$f":"IF(R$15-$D$15+2<=LIFETIME_MH,R12,\nSUMPRODUCT(OFFSET(R12,0,(-1*LIFETIME_MH)+1,1,LIFETIME_MH),OFFSET('Shipments and Stock - MH'!S$14,0,(-1*LIFETIME_MH)+1,1,LIFETIME_MH))/\nSUM(OFFSET('Shipments and Stock - MH'!S$14,0,(-1*LIFETIME_MH)+1,1,LIFETIME_MH)))","v":337.25375485346052},{"$f":"IF(S$15-$D$15+2<=LIFETIME_MH,S12,\nSUMPRODUCT(OFFSET(S12,0,(-1*LIFETIME_MH)+1,1,LIFETIME_MH),OFFSET('Shipments and Stock - MH'!T$14,0,(-1*LIFETIME_MH)+1,1,LIFETIME_MH))/\nSUM(OFFSET('Shipments and Stock - MH'!T$14,0,(-1*LIFETIME_MH)+1,1,LIFETIME_MH)))","v":335.36227611954342},{"$f":"IF(T$15-$D$15+2<=LIFETIME_MH,T12,\nSUMPRODUCT(OFFSET(T12,0,(-1*LIFETIME_MH)+1,1,LIFETIME_MH),OFFSET('Shipments and Stock - MH'!U$14,0,(-1*LIFETIME_MH)+1,1,LIFETIME_MH))/\nSUM(OFFSET('Shipments and Stock - MH'!U$14,0,(-1*LIFETIME_MH)+1,1,LIFETIME_MH)))","v":335.42561242227742},{"$f":"IF(U$15-$D$15+2<=LIFETIME_MH,U12,\nSUMPRODUCT(OFFSET(U12,0,(-1*LIFETIME_MH)+1,1,LIFETIME_MH),OFFSET('Shipments and Stock - MH'!V$14,0,(-1*LIFETIME_MH)+1,1,LIFETIME_MH))/\nSUM(OFFSET('Shipments and Stock - MH'!V$14,0,(-1*LIFETIME_MH)+1,1,LIFETIME_MH)))","v":335.8815871101703},{"$f":"IF(V$15-$D$15+2<=LIFETIME_MH,V12,\nSUMPRODUCT(OFFSET(V12,0,(-1*LIFETIME_MH)+1,1,LIFETIME_MH),OFFSET('Shipments and Stock - MH'!W$14,0,(-1*LIFETIME_MH)+1,1,LIFETIME_MH))/\nSUM(OFFSET('Shipments and Stock - MH'!W$14,0,(-1*LIFETIME_MH)+1,1,LIFETIME_MH)))","v":332.95608637296266},{"$f":"IF(W$15-$D$15+2<=LIFETIME_MH,W12,\nSUMPRODUCT(OFFSET(W12,0,(-1*LIFETIME_MH)+1,1,LIFETIME_MH),OFFSET('Shipments and Stock - MH'!X$14,0,(-1*LIFETIME_MH)+1,1,LIFETIME_MH))/\nSUM(OFFSET('Shipments and Stock - MH'!X$14,0,(-1*LIFETIME_MH)+1,1,LIFETIME_MH)))","v":326.91488296138346},{"$f":"IF(X$15-$D$15+2<=LIFETIME_MH,X12,\nSUMPRODUCT(OFFSET(X12,0,(-1*LIFETIME_MH)+1,1,LIFETIME_MH),OFFSET('Shipments and Stock - MH'!Y$14,0,(-1*LIFETIME_MH)+1,1,LIFETIME_MH))/\nSUM(OFFSET('Shipments and Stock - MH'!Y$14,0,(-1*LIFETIME_MH)+1,1,LIFETIME_MH)))","v":332.14021785468316},{"$f":"IF(Y$15-$D$15+2<=LIFETIME_MH,Y12,\nSUMPRODUCT(OFFSET(Y12,0,(-1*LIFETIME_MH)+1,1,LIFETIME_MH),OFFSET('Shipments and Stock - MH'!Z$14,0,(-1*LIFETIME_MH)+1,1,LIFETIME_MH))/\nSUM(OFFSET('Shipments and Stock - MH'!Z$14,0,(-1*LIFETIME_MH)+1,1,LIFETIME_MH)))","v":331.4049901221963},{"$f":"IF(Z$15-$D$15+2<=LIFETIME_MH,Z12,\nSUMPRODUCT(OFFSET(Z12,0,(-1*LIFETIME_MH)+1,1,LIFETIME_MH),OFFSET('Shipments and Stock - MH'!AA$14,0,(-1*LIFETIME_MH)+1,1,LIFETIME_MH))/\nSUM(OFFSET('Shipments and Stock - MH'!AA$14,0,(-1*LIFETIME_MH)+1,1,LIFETIME_MH)))","v":330.84883988459842},{"$f":"IF(AA$15-$D$15+2<=LIFETIME_MH,AA12,\nSUMPRODUCT(OFFSET(AA12,0,(-1*LIFETIME_MH)+1,1,LIFETIME_MH),OFFSET('Shipments and Stock - MH'!AB$14,0,(-1*LIFETIME_MH)+1,1,LIFETIME_MH))/\nSUM(OFFSET('Shipments and Stock - MH'!AB$14,0,(-1*LIFETIME_MH)+1,1,LIFETIME_MH)))","v":329.98085200421298},{"$f":"IF(AB$15-$D$15+2<=LIFETIME_MH,AB12,\nSUMPRODUCT(OFFSET(AB12,0,(-1*LIFETIME_MH)+1,1,LIFETIME_MH),OFFSET('Shipments and Stock - MH'!AC$14,0,(-1*LIFETIME_MH)+1,1,LIFETIME_MH))/\nSUM(OFFSET('Shipments and Stock - MH'!AC$14,0,(-1*LIFETIME_MH)+1,1,LIFETIME_MH)))","v":329.14657639053843},{"$f":"IF(AC$15-$D$15+2<=LIFETIME_MH,AC12,\nSUMPRODUCT(OFFSET(AC12,0,(-1*LIFETIME_MH)+1,1,LIFETIME_MH),OFFSET('Shipments and Stock - MH'!AD$14,0,(-1*LIFETIME_MH)+1,1,LIFETIME_MH))/\nSUM(OFFSET('Shipments and Stock - MH'!AD$14,0,(-1*LIFETIME_MH)+1,1,LIFETIME_MH)))","v":328.47171159336779},{"$f":"IF(AD$15-$D$15+2<=LIFETIME_MH,AD12,\nSUMPRODUCT(OFFSET(AD12,0,(-1*LIFETIME_MH)+1,1,LIFETIME_MH),OFFSET('Shipments and Stock - MH'!AE$14,0,(-1*LIFETIME_MH)+1,1,LIFETIME_MH))/\nSUM(OFFSET('Shipments and Stock - MH'!AE$14,0,(-1*LIFETIME_MH)+1,1,LIFETIME_MH)))","v":328.0492864147181},{"$f":"IF(AE$15-$D$15+2<=LIFETIME_MH,AE12,\nSUMPRODUCT(OFFSET(AE12,0,(-1*LIFETIME_MH)+1,1,LIFETIME_MH),OFFSET('Shipments and Stock - MH'!AF$14,0,(-1*LIFETIME_MH)+1,1,LIFETIME_MH))/\nSUM(OFFSET('Shipments and Stock - MH'!AF$14,0,(-1*LIFETIME_MH)+1,1,LIFETIME_MH)))","v":327.68845860754379},{"$f":"IF(AF$15-$D$15+2<=LIFETIME_MH,AF12,\nSUMPRODUCT(OFFSET(AF12,0,(-1*LIFETIME_MH)+1,1,LIFETIME_MH),OFFSET('Shipments and Stock - MH'!AG$14,0,(-1*LIFETIME_MH)+1,1,LIFETIME_MH))/\nSUM(OFFSET('Shipments and Stock - MH'!AG$14,0,(-1*LIFETIME_MH)+1,1,LIFETIME_MH)))","v":327.23907355301623},{"$f":"IF(AG$15-$D$15+2<=LIFETIME_MH,AG12,\nSUMPRODUCT(OFFSET(AG12,0,(-1*LIFETIME_MH)+1,1,LIFETIME_MH),OFFSET('Shipments and Stock - MH'!AH$14,0,(-1*LIFETIME_MH)+1,1,LIFETIME_MH))/\nSUM(OFFSET('Shipments and Stock - MH'!AH$14,0,(-1*LIFETIME_MH)+1,1,LIFETIME_MH)))","v":326.7195027097971},{"$f":"IF(AH$15-$D$15+2<=LIFETIME_MH,AH12,\nSUMPRODUCT(OFFSET(AH12,0,(-1*LIFETIME_MH)+1,1,LIFETIME_MH),OFFSET('Shipments and Stock - MH'!AI$14,0,(-1*LIFETIME_MH)+1,1,LIFETIME_MH))/\nSUM(OFFSET('Shipments and Stock - MH'!AI$14,0,(-1*LIFETIME_MH)+1,1,LIFETIME_MH)))","v":326.03883396743282},{"$f":"IF(AI$15-$D$15+2<=LIFETIME_MH,AI12,\nSUMPRODUCT(OFFSET(AI12,0,(-1*LIFETIME_MH)+1,1,LIFETIME_MH),OFFSET('Shipments and Stock - MH'!AJ$14,0,(-1*LIFETIME_MH)+1,1,LIFETIME_MH))/\nSUM(OFFSET('Shipments and Stock - MH'!AJ$14,0,(-1*LIFETIME_MH)+1,1,LIFETIME_MH)))","v":325.45488069568523},{"$f":"IF(AJ$15-$D$15+2<=LIFETIME_MH,AJ12,\nSUMPRODUCT(OFFSET(AJ12,0,(-1*LIFETIME_MH)+1,1,LIFETIME_MH),OFFSET('Shipments and Stock - MH'!AK$14,0,(-1*LIFETIME_MH)+1,1,LIFETIME_MH))/\nSUM(OFFSET('Shipments and Stock - MH'!AK$14,0,(-1*LIFETIME_MH)+1,1,LIFETIME_MH)))","v":324.75587626851075},{"$f":"IF(AK$15-$D$15+2<=LIFETIME_MH,AK12,\nSUMPRODUCT(OFFSET(AK12,0,(-1*LIFETIME_MH)+1,1,LIFETIME_MH),OFFSET('Shipments and Stock - MH'!AL$14,0,(-1*LIFETIME_MH)+1,1,LIFETIME_MH))/\nSUM(OFFSET('Shipments and Stock - MH'!AL$14,0,(-1*LIFETIME_MH)+1,1,LIFETIME_MH)))","v":323.83017167912857},{"$f":"IF(AL$15-$D$15+2<=LIFETIME_MH,AL12,\nSUMPRODUCT(OFFSET(AL12,0,(-1*LIFETIME_MH)+1,1,LIFETIME_MH),OFFSET('Shipments and Stock - MH'!AM$14,0,(-1*LIFETIME_MH)+1,1,LIFETIME_MH))/\nSUM(OFFSET('Shipments and Stock - MH'!AM$14,0,(-1*LIFETIME_MH)+1,1,LIFETIME_MH)))","v":322.66521138784429},{"$f":"IF(AM$15-$D$15+2<=LIFETIME_MH,AM12,\nSUMPRODUCT(OFFSET(AM12,0,(-1*LIFETIME_MH)+1,1,LIFETIME_MH),OFFSET('Shipments and Stock - MH'!AN$14,0,(-1*LIFETIME_MH)+1,1,LIFETIME_MH))/\nSUM(OFFSET('Shipments and Stock - MH'!AN$14,0,(-1*LIFETIME_MH)+1,1,LIFETIME_MH)))","v":321.58076466654063},{"$f":"IF(AN$15-$D$15+2<=LIFETIME_MH,AN12,\nSUMPRODUCT(OFFSET(AN12,0,(-1*LIFETIME_MH)+1,1,LIFETIME_MH),OFFSET('Shipments and Stock - MH'!AO$14,0,(-1*LIFETIME_MH)+1,1,LIFETIME_MH))/\nSUM(OFFSET('Shipments and Stock - MH'!AO$14,0,(-1*LIFETIME_MH)+1,1,LIFETIME_MH)))","v":320.71174664423813},{"$f":"IF(AO$15-$D$15+2<=LIFETIME_MH,AO12,\nSUMPRODUCT(OFFSET(AO12,0,(-1*LIFETIME_MH)+1,1,LIFETIME_MH),OFFSET('Shipments and Stock - MH'!AP$14,0,(-1*LIFETIME_MH)+1,1,LIFETIME_MH))/\nSUM(OFFSET('Shipments and Stock - MH'!AP$14,0,(-1*LIFETIME_MH)+1,1,LIFETIME_MH)))","v":319.8520286728243},{"$f":"IF(AP$15-$D$15+2<=LIFETIME_MH,AP12,\nSUMPRODUCT(OFFSET(AP12,0,(-1*LIFETIME_MH)+1,1,LIFETIME_MH),OFFSET('Shipments and Stock - MH'!AQ$14,0,(-1*LIFETIME_MH)+1,1,LIFETIME_MH))/\nSUM(OFFSET('Shipments and Stock - MH'!AQ$14,0,(-1*LIFETIME_MH)+1,1,LIFETIME_MH)))","v":315.33593272805922},{"$f":"IF(AQ$15-$D$15+2<=LIFETIME_MH,AQ12,\nSUMPRODUCT(OFFSET(AQ12,0,(-1*LIFETIME_MH)+1,1,LIFETIME_MH),OFFSET('Shipments and Stock - MH'!AR$14,0,(-1*LIFETIME_MH)+1,1,LIFETIME_MH))/\nSUM(OFFSET('Shipments and Stock - MH'!AR$14,0,(-1*LIFETIME_MH)+1,1,LIFETIME_MH)))","v":311.45149887666179},{"$f":"IF(AR$15-$D$15+2<=LIFETIME_MH,AR12,\nSUMPRODUCT(OFFSET(AR12,0,(-1*LIFETIME_MH)+1,1,LIFETIME_MH),OFFSET('Shipments and Stock - MH'!AS$14,0,(-1*LIFETIME_MH)+1,1,LIFETIME_MH))/\nSUM(OFFSET('Shipments and Stock - MH'!AS$14,0,(-1*LIFETIME_MH)+1,1,LIFETIME_MH)))","v":308.44336263931893},{"$f":"IF(AS$15-$D$15+2<=LIFETIME_MH,AS12,\nSUMPRODUCT(OFFSET(AS12,0,(-1*LIFETIME_MH)+1,1,LIFETIME_MH),OFFSET('Shipments and Stock - MH'!AT$14,0,(-1*LIFETIME_MH)+1,1,LIFETIME_MH))/\nSUM(OFFSET('Shipments and Stock - MH'!AT$14,0,(-1*LIFETIME_MH)+1,1,LIFETIME_MH)))","v":305.84406300001433},{"$f":"IF(AT$15-$D$15+2<=LIFETIME_MH,AT12,\nSUMPRODUCT(OFFSET(AT12,0,(-1*LIFETIME_MH)+1,1,LIFETIME_MH),OFFSET('Shipments and Stock - MH'!AU$14,0,(-1*LIFETIME_MH)+1,1,LIFETIME_MH))/\nSUM(OFFSET('Shipments and Stock - MH'!AU$14,0,(-1*LIFETIME_MH)+1,1,LIFETIME_MH)))","v":302.34571929529551},{"$f":"IF(AU$15-$D$15+2<=LIFETIME_MH,AU12,\nSUMPRODUCT(OFFSET(AU12,0,(-1*LIFETIME_MH)+1,1,LIFETIME_MH),OFFSET('Shipments and Stock - MH'!AV$14,0,(-1*LIFETIME_MH)+1,1,LIFETIME_MH))/\nSUM(OFFSET('Shipments and Stock - MH'!AV$14,0,(-1*LIFETIME_MH)+1,1,LIFETIME_MH)))","v":299.1832692785689},{"$f":"IF(AV$15-$D$15+2<=LIFETIME_MH,AV12,\nSUMPRODUCT(OFFSET(AV12,0,(-1*LIFETIME_MH)+1,1,LIFETIME_MH),OFFSET('Shipments and Stock - MH'!AW$14,0,(-1*LIFETIME_MH)+1,1,LIFETIME_MH))/\nSUM(OFFSET('Shipments and Stock - MH'!AW$14,0,(-1*LIFETIME_MH)+1,1,LIFETIME_MH)))","v":295.85450266236461},{"$f":"IF(AW$15-$D$15+2<=LIFETIME_MH,AW12,\nSUMPRODUCT(OFFSET(AW12,0,(-1*LIFETIME_MH)+1,1,LIFETIME_MH),OFFSET('Shipments and Stock - MH'!AX$14,0,(-1*LIFETIME_MH)+1,1,LIFETIME_MH))/\nSUM(OFFSET('Shipments and Stock - MH'!AX$14,0,(-1*LIFETIME_MH)+1,1,LIFETIME_MH)))","v":292.62884161154261},{"$f":"IF(AX$15-$D$15+2<=LIFETIME_MH,AX12,\nSUMPRODUCT(OFFSET(AX12,0,(-1*LIFETIME_MH)+1,1,LIFETIME_MH),OFFSET('Shipments and Stock - MH'!AY$14,0,(-1*LIFETIME_MH)+1,1,LIFETIME_MH))/\nSUM(OFFSET('Shipments and Stock - MH'!AY$14,0,(-1*LIFETIME_MH)+1,1,LIFETIME_MH)))","v":289.68033512971988},{"$f":"IF(AY$15-$D$15+2<=LIFETIME_MH,AY12,\nSUMPRODUCT(OFFSET(AY12,0,(-1*LIFETIME_MH)+1,1,LIFETIME_MH),OFFSET('Shipments and Stock - MH'!AZ$14,0,(-1*LIFETIME_MH)+1,1,LIFETIME_MH))/\nSUM(OFFSET('Shipments and Stock - MH'!AZ$14,0,(-1*LIFETIME_MH)+1,1,LIFETIME_MH)))","v":286.70358818118427},{"$f":"IF(AZ$15-$D$15+2<=LIFETIME_MH,AZ12,\nSUMPRODUCT(OFFSET(AZ12,0,(-1*LIFETIME_MH)+1,1,LIFETIME_MH),OFFSET('Shipments and Stock - MH'!BA$14,0,(-1*LIFETIME_MH)+1,1,LIFETIME_MH))/\nSUM(OFFSET('Shipments and Stock - MH'!BA$14,0,(-1*LIFETIME_MH)+1,1,LIFETIME_MH)))","v":283.79754044902512},{"$f":"IF(BA$15-$D$15+2<=LIFETIME_MH,BA12,\nSUMPRODUCT(OFFSET(BA12,0,(-1*LIFETIME_MH)+1,1,LIFETIME_MH),OFFSET('Shipments and Stock - MH'!BB$14,0,(-1*LIFETIME_MH)+1,1,LIFETIME_MH))/\nSUM(OFFSET('Shipments and Stock - MH'!BB$14,0,(-1*LIFETIME_MH)+1,1,LIFETIME_MH)))","v":280.854273670976},{"$f":"IF(BB$15-$D$15+2<=LIFETIME_MH,BB12,\nSUMPRODUCT(OFFSET(BB12,0,(-1*LIFETIME_MH)+1,1,LIFETIME_MH),OFFSET('Shipments and Stock - MH'!BC$14,0,(-1*LIFETIME_MH)+1,1,LIFETIME_MH))/\nSUM(OFFSET('Shipments and Stock - MH'!BC$14,0,(-1*LIFETIME_MH)+1,1,LIFETIME_MH)))","v":277.89030873276522},{"$f":"IF(BC$15-$D$15+2<=LIFETIME_MH,BC12,\nSUMPRODUCT(OFFSET(BC12,0,(-1*LIFETIME_MH)+1,1,LIFETIME_MH),OFFSET('Shipments and Stock - MH'!BD$14,0,(-1*LIFETIME_MH)+1,1,LIFETIME_MH))/\nSUM(OFFSET('Shipments and Stock - MH'!BD$14,0,(-1*LIFETIME_MH)+1,1,LIFETIME_MH)))","v":274.85296843000862},{"$f":"IF(BD$15-$D$15+2<=LIFETIME_MH,BD12,\nSUMPRODUCT(OFFSET(BD12,0,(-1*LIFETIME_MH)+1,1,LIFETIME_MH),OFFSET('Shipments and Stock - MH'!BE$14,0,(-1*LIFETIME_MH)+1,1,LIFETIME_MH))/\nSUM(OFFSET('Shipments and Stock - MH'!BE$14,0,(-1*LIFETIME_MH)+1,1,LIFETIME_MH)))","v":271.6675620200466},{"$f":"IF(BE$15-$D$15+2<=LIFETIME_MH,BE12,\nSUMPRODUCT(OFFSET(BE12,0,(-1*LIFETIME_MH)+1,1,LIFETIME_MH),OFFSET('Shipments and Stock - MH'!BF$14,0,(-1*LIFETIME_MH)+1,1,LIFETIME_MH))/\nSUM(OFFSET('Shipments and Stock - MH'!BF$14,0,(-1*LIFETIME_MH)+1,1,LIFETIME_MH)))","v":268.39197256216022}]

{"sheet":"Results-SF","index":24,"n_rows":46,"n_cols":28,"rows_kept":46,"cut":false,"hidden":false,"merged":[]}
[]
[null,null,"RESULTS - Single Family"]
[]
[null,null,"NAVIGATION"]
[]
[null,null,"COMMENTS"]
[]
[]
[null,null,"SINGLE FAMILY"]
[]
[null,null,"Unit Energy Consumption (kWh/year) ",2010,{"$f":"D11+1","v":2011},2012,2013,2014,2015,2016,2017,2018,2019,2020,2021,2022,2023,2024,2025,2026,2027,2028,2029,2030,2031,2032,2033,2034]
[null,null,"6P UEC*",{"$f":"D13","v":804.6242104051521},807.0409376177472,840.8307110759049,839.29547044578135,843.70474018091193,843.25404293991721,844.52813131552466,843.21782124471815,843.97065662900718,842.50768705225971,842.41425563419591,842.6148932168428,842.11431489185009,834.79967134760238,834.92874737499301,832.52005308246066,831.56084663588285,832.19701174254863,833.34969844300554,836.21892278405164,836.55437483160995,832.57071932440215,829.65705921927611,824.22166208968031,822.93044751621176]
[null,null,{"$f":"'UEC-SF'!$C$9&\" - \"&'UEC-SF'!C11","v":"Market UEC (Shipment Weighted Average) - PRE-Case UEC"},{"$f":"OFFSET('UEC-SF'!$C11,0,MATCH(D$11,'UEC-SF'!$D$10:$BE$10,0))","v":804.6242104051521},{"$f":"OFFSET('UEC-SF'!$C11,0,MATCH(E$11,'UEC-SF'!$D$10:$BE$10,0))","v":807.0409376177472},{"$f":"OFFSET('UEC-SF'!$C11,0,MATCH(F$11,'UEC-SF'!$D$10:$BE$10,0))","v":840.8307110759049},{"$f":"OFFSET('UEC-SF'!$C11,0,MATCH(G$11,'UEC-SF'!$D$10:$BE$10,0))","v":839.29547044578135},{"$f":"OFFSET('UEC-SF'!$C11,0,MATCH(H$11,'UEC-SF'!$D$10:$BE$10,0))","v":843.70474018091193},{"$f":"OFFSET('UEC-SF'!$C11,0,MATCH(I$11,'UEC-SF'!$D$10:$BE$10,0))","v":843.25404293991721},{"$f":"OFFSET('UEC-SF'!$C11,0,MATCH(J$11,'UEC-SF'!$D$10:$BE$10,0))","v":844.52813131552466},{"$f":"OFFSET('UEC-SF'!$C11,0,MATCH(K$11,'UEC-SF'!$D$10:$BE$10,0))","v":843.21782124471815},{"$f":"OFFSET('UEC-SF'!$C11,0,MATCH(L$11,'UEC-SF'!$D$10:$BE$10,0))","v":843.97065662900718},{"$f":"OFFSET('UEC-SF'!$C11,0,MATCH(M$11,'UEC-SF'!$D$10:$BE$10,0))","v":842.50768705225971},{"$f":"OFFSET('UEC-SF'!$C11,0,MATCH(N$11,'UEC-SF'!$D$10:$BE$10,0))","v":842.41425563419591},{"$f":"OFFSET('UEC-SF'!$C11,0,MATCH(O$11,'UEC-SF'!$D$10:$BE$10,0))","v":842.6148932168428},{"$f":"OFFSET('UEC-SF'!$C11,0,MATCH(P$11,'UEC-SF'!$D$10:$BE$10,0))","v":842.11431489185009},{"$f":"OFFSET('UEC-SF'!$C11,0,MATCH(Q$11,'UEC-SF'!$D$10:$BE$10,0))","v":834.79967134760238},{"$f":"OFFSET('UEC-SF'!$C11,0,MATCH(R$11,'UEC-SF'!$D$10:$BE$10,0))","v":834.92874737499301},{"$f":"OFFSET('UEC-SF'!$C11,0,MATCH(S$11,'UEC-SF'!$D$10:$BE$10,0))","v":832.52005308246066},{"$f":"OFFSET('UEC-SF'!$C11,0,MATCH(T$11,'UEC-SF'!$D$10:$BE$10,0))","v":831.56084663588285},{"$f":"OFFSET('UEC-SF'!$C11,0,MATCH(U$11,'UEC-SF'!$D$10:$BE$10,0))","v":832.19701174254863},{"$f":"OFFSET('UEC-SF'!$C11,0,MATCH(V$11,'UEC-SF'!$D$10:$BE$10,0))","v":833.34969844300554},{"$f":"OFFSET('UEC-SF'!$C11,0,MATCH(W$11,'UEC-SF'!$D$10:$BE$10,0))","v":836.21892278405164},{"$f":"OFFSET('UEC-SF'!$C11,0,MATCH(X$11,'UEC-SF'!$D$10:$BE$10,0))","v":836.55437483160995},{"$f":"OFFSET('UEC-SF'!$C11,0,MATCH(Y$11,'UEC-SF'!$D$10:$BE$10,0))","v":832.57071932440215},{"$f":"OFFSET('UEC-SF'!$C11,0,MATCH(Z$11,'UEC-SF'!$D$10:$BE$10,0))","v":829.65705921927611},{"$f":"OFFSET('UEC-SF'!$C11,0,MATCH(AA$11,'UEC-SF'!$D$10:$BE$10,0))","v":824.22166208968031},{"$f":"OFFSET('UEC-SF'!$C11,0,MATCH(AB$11,'UEC-SF'!$D$10:$BE$10,0))","v":822.93044751621176}]
[null,null,{"$f":"'UEC-SF'!$C$9&\" - \"&'UEC-SF'!C12","v":"Market UEC (Shipment Weighted Average) - POST-Case UEC"},{"$f":"OFFSET('UEC-SF'!$C12,0,MATCH(D$11,'UEC-SF'!$D$10:$BE$10,0))","v":804.6242104051521},{"$f":"OFFSET('UEC-SF'!$C12,0,MATCH(E$11,'UEC-SF'!$D$10:$BE$10,0))","v":807.0409376177472},{"$f":"OFFSET('UEC-SF'!$C12,0,MATCH(F$11,'UEC-SF'!$D$10:$BE$10,0))","v":840.8307110759049},{"$f":"OFFSET('UEC-SF'!$C12,0,MATCH(G$11,'UEC-SF'!$D$10:$BE$10,0))","v":839.29547044578135},{"$f":"OFFSET('UEC-SF'!$C12,0,MATCH(H$11,'UEC-SF'!$D$10:$BE$10,0))","v":843.70474018091193},{"$f":"OFFSET('UEC-SF'!$C12,0,MATCH(I$11,'UEC-SF'!$D$10:$BE$10,0))","v":843.25404293991733},{"$f":"OFFSET('UEC-SF'!$C12,0,MATCH(J$11,'UEC-SF'!$D$10:$BE$10,0))","v":844.52813131552466},{"$f":"OFFSET('UEC-SF'!$C12,0,MATCH(K$11,'UEC-SF'!$D$10:$BE$10,0))","v":843.21782124471815},{"$f":"OFFSET('UEC-SF'!$C12,0,MATCH(L$11,'UEC-SF'!$D$10:$BE$10,0))","v":843.97065662900718},{"$f":"OFFSET('UEC-SF'!$C12,0,MATCH(M$11,'UEC-SF'!$D$10:$BE$10,0))","v":563.7504132368864},{"$f":"OFFSET('UEC-SF'!$C12,0,MATCH(N$11,'UEC-SF'!$D$10:$BE$10,0))","v":563.72577828803571},{"$f":"OFFSET('UEC-SF'!$C12,0,MATCH(O$11,'UEC-SF'!$D$10:$BE$10,0))","v":563.98744759449733},{"$f":"OFFSET('UEC-SF'!$C12,0,MATCH(P$11,'UEC-SF'!$D$10:$BE$10,0))","v":563.12114460281998},{"$f":"OFFSET('UEC-SF'!$C12,0,MATCH(Q$11,'UEC-SF'!$D$10:$BE$10,0))","v":562.84333938859936},{"$f":"OFFSET('UEC-SF'!$C12,0,MATCH(R$11,'UEC-SF'!$D$10:$BE$10,0))","v":563.12001816128429},{"$f":"OFFSET('UEC-SF'!$C12,0,MATCH(S$11,'UEC-SF'!$D$10:$BE$10,0))","v":563.3189502706042},{"$f":"OFFSET('UEC-SF'!$C12,0,MATCH(T$11,'UEC-SF'!$D$10:$BE$10,0))","v":563.51112306819562},{"$f":"OFFSET('UEC-SF'!$C12,0,MATCH(U$11,'UEC-SF'!$D$10:$BE$10,0))","v":563.84101483749112},{"$f":"OFFSET('UEC-SF'!$C12,0,MATCH(V$11,'UEC-SF'!$D$10:$BE$10,0))","v":564.22463151148509},{"$f":"OFFSET('UEC-SF'!$C12,0,MATCH(W$11,'UEC-SF'!$D$10:$BE$10,0))","v":564.73414399680303},{"$f":"OFFSET('UEC-SF'!$C12,0,MATCH(X$11,'UEC-SF'!$D$10:$BE$10,0))","v":565.05579806876085},{"$f":"OFFSET('UEC-SF'!$C12,0,MATCH(Y$11,'UEC-SF'!$D$10:$BE$10,0))","v":565.06839719865991},{"$f":"OFFSET('UEC-SF'!$C12,0,MATCH(Z$11,'UEC-SF'!$D$10:$BE$10,0))","v":565.16907250887391},{"$f":"OFFSET('UEC-SF'!$C12,0,MATCH(AA$11,'UEC-SF'!$D$10:$BE$10,0))","v":565.04993805487777},{"$f":"OFFSET('UEC-SF'!$C12,0,MATCH(AB$11,'UEC-SF'!$D$10:$BE$10,0))","v":565.24178162885028}]
[null,null,{"$f":"'UEC-SF'!$C$14&\" - \"&'UEC-SF'!C16","v":"Installed UEC (Vintage Weighted Average)  - PRE-Case UEC"},{"$f":"OFFSET('UEC-SF'!$C16,0,MATCH(D$11,'UEC-SF'!$D$10:$BE$10,0))","v":826.60988107847731},{"$f":"OFFSET('UEC-SF'!$C16,0,MATCH(E$11,'UEC-SF'!$D$10:$BE$10,0))","v":824.41560623133319},{"$f":"OFFSET('UEC-SF'!$C16,0,MATCH(F$11,'UEC-SF'!$D$10:$BE$10,0))","v":824.4896006043233},{"$f":"OFFSET('UEC-SF'!$C16,0,MATCH(G$11,'UEC-SF'!$D$10:$BE$10,0))","v":824.11040343620618},{"$f":"OFFSET('UEC-SF'!$C16,0,MATCH(H$11,'UEC-SF'!$D$10:$BE$10,0))","v":824.87731144369752},{"$f":"OFFSET('UEC-SF'!$C16,0,MATCH(I$11,'UEC-SF'!$D$10:$BE$10,0))","v":825.52274205754065},{"$f":"OFFSET('UEC-SF'!$C16,0,MATCH(J$11,'UEC-SF'!$D$10:$BE$10,0))","v":826.47229691754103},{"$f":"OFFSET('UEC-SF'!$C16,0,MATCH(K$11,'UEC-SF'!$D$10:$BE$10,0))","v":827.28265043794659},{"$f":"OFFSET('UEC-SF'!$C16,0,MATCH(L$11,'UEC-SF'!$D$10:$BE$10,0))","v":828.15467137088922},{"$f":"OFFSET('UEC-SF'!$C16,0,MATCH(M$11,'UEC-SF'!$D$10:$BE$10,0))","v":828.89707259874251},{"$f":"OFFSET('UEC-SF'!$C16,0,MATCH(N$11,'UEC-SF'!$D$10:$BE$10,0))","v":829.68474184967772},{"$f":"OFFSET('UEC-SF'!$C16,0,MATCH(O$11,'UEC-SF'!$D$10:$BE$10,0))","v":830.6233340902179},{"$f":"OFFSET('UEC-SF'!$C16,0,MATCH(P$11,'UEC-SF'!$D$10:$BE$10,0))","v":831.51420729043025},{"$f":"OFFSET('UEC-SF'!$C16,0,MATCH(Q$11,'UEC-SF'!$D$10:$BE$10,0))","v":832.13303647815428},{"$f":"OFFSET('UEC-SF'!$C16,0,MATCH(R$11,'UEC-SF'!$D$10:$BE$10,0))","v":832.52626947074839},{"$f":"OFFSET('UEC-SF'!$C16,0,MATCH(S$11,'UEC-SF'!$D$10:$BE$10,0))","v":832.81685534403459},{"$f":"OFFSET('UEC-SF'!$C16,0,MATCH(T$11,'UEC-SF'!$D$10:$BE$10,0))","v":832.8660569732898},{"$f":"OFFSET('UEC-SF'!$C16,0,MATCH(U$11,'UEC-SF'!$D$10:$BE$10,0))","v":833.20663434450807},{"$f":"OFFSET('UEC-SF'!$C16,0,MATCH(V$11,'UEC-SF'!$D$10:$BE$10,0))","v":834.0949095205159},{"$f":"OFFSET('UEC-SF'!$C16,0,MATCH(W$11,'UEC-SF'!$D$10:$BE$10,0))","v":835.17277394178222},{"$f":"OFFSET('UEC-SF'!$C16,0,MATCH(X$11,'UEC-SF'!$D$10:$BE$10,0))","v":836.21485555553556},{"$f":"OFFSET('UEC-SF'!$C16,0,MATCH(Y$11,'UEC-SF'!$D$10:$BE$10,0))","v":837.20388379005237},{"$f":"OFFSET('UEC-SF'!$C16,0,MATCH(Z$11,'UEC-SF'!$D$10:$BE$10,0))","v":838.04284388650467},{"$f":"OFFSET('UEC-SF'!$C16,0,MATCH(AA$11,'UEC-SF'!$D$10:$BE$10,0))","v":837.06661117285955},{"$f":"OFFSET('UEC-SF'!$C16,0,MATCH(AB$11,'UEC-SF'!$D$10:$BE$10,0))","v":836.06332746332043}]
[null,null,{"$f":"'UEC-SF'!$C$14&\" - \"&'UEC-SF'!C17","v":"Installed UEC (Vintage Weighted Average)  - POST-Case UEC"},{"$f":"OFFSET('UEC-SF'!$C17,0,MATCH(D$11,'UEC-SF'!$D$10:$BE$10,0))","v":826.60988107847731},{"$f":"OFFSET('UEC-SF'!$C17,0,MATCH(E$11,'UEC-SF'!$D$10:$BE$10,0))","v":824.41560623133319},{"$f":"OFFSET('UEC-SF'!$C17,0,MATCH(F$11,'UEC-SF'!$D$10:$BE$10,0))","v":824.4896006043233},{"$f":"OFFSET('UEC-SF'!$C17,0,MATCH(G$11,'UEC-SF'!$D$10:$BE$10,0))","v":824.11040343620618},{"$f":"OFFSET('UEC-SF'!$C17,0,MATCH(H$11,'UEC-SF'!$D$10:$BE$10,0))","v":824.87731144369752},{"$f":"OFFSET('UEC-SF'!$C17,0,MATCH(I$11,'UEC-SF'!$D$10:$BE$10,0))","v":825.52274205754065},{"$f":"OFFSET('UEC-SF'!$C17,0,MATCH(J$11,'UEC-SF'!$D$10:$BE$10,0))","v":826.47229691754103},{"$f":"OFFSET('UEC-SF'!$C17,0,MATCH(K$11,'UEC-SF'!$D$10:$BE$10,0))","v":827.28265043794659},{"$f":"OFFSET('UEC-SF'!$C17,0,MATCH(L$11,'UEC-SF'!$D$10:$BE$10,0))","v":828.15467137088922},{"$f":"OFFSET('UEC-SF'!$C17,0,MATCH(M$11,'UEC-SF'!$D$10:$BE$10,0))","v":814.20025235691674},{"$f":"OFFSET('UEC-SF'!$C17,0,MATCH(N$11,'UEC-SF'!$D$10:$BE$10,0))","v":800.93898469236615},{"$f":"OFFSET('UEC-SF'!$C17,0,MATCH(O$11,'UEC-SF'!$D$10:$BE$10,0))","v":788.70442115719254},{"$f":"OFFSET('UEC-SF'!$C17,0,MATCH(P$11,'UEC-SF'!$D$10:$BE$10,0))","v":776.79835886913065},{"$f":"OFFSET('UEC-SF'!$C17,0,MATCH(Q$11,'UEC-SF'!$D$10:$BE$10,0))","v":762.71771999994917},{"$f":"OFFSET('UEC-SF'!$C17,0,MATCH(R$11,'UEC-SF'!$D$10:$BE$10,0))","v":749.17538654578823},{"$f":"OFFSET('UEC-SF'!$C17,0,MATCH(S$11,'UEC-SF'!$D$10:$BE$10,0))","v":735.07747458629115},{"$f":"OFFSET('UEC-SF'!$C17,0,MATCH(T$11,'UEC-SF'!$D$10:$BE$10,0))","v":720.95076802427991},{"$f":"OFFSET('UEC-SF'!$C17,0,MATCH(U$11,'UEC-SF'!$D$10:$BE$10,0))","v":708.13777207547389},{"$f":"OFFSET('UEC-SF'!$C17,0,MATCH(V$11,'UEC-SF'!$D$10:$BE$10,0))","v":697.07155856418422},{"$f":"OFFSET('UEC-SF'!$C17,0,MATCH(W$11,'UEC-SF'!$D$10:$BE$10,0))","v":687.67731868681778},{"$f":"OFFSET('UEC-SF'!$C17,0,MATCH(X$11,'UEC-SF'!$D$10:$BE$10,0))","v":678.70622814074795},{"$f":"OFFSET('UEC-SF'!$C17,0,MATCH(Y$11,'UEC-SF'!$D$10:$BE$10,0))","v":668.74152127424577},{"$f":"OFFSET('UEC-SF'!$C17,0,MATCH(Z$11,'UEC-SF'!$D$10:$BE$10,0))","v":657.8785569530138},{"$f":"OFFSET('UEC-SF'!$C17,0,MATCH(AA$11,'UEC-SF'!$D$10:$BE$10,0))","v":643.07046093575605},{"$f":"OFFSET('UEC-SF'!$C17,0,MATCH(AB$11,'UEC-SF'!$D$10:$BE$10,0))","v":627.89816151894775}]
[]
[null,null,"Stock and Shipments (units)",2010,{"$f":"D18+1","v":2011},2012,2013,2014,2015,2016,2017,2018,2019,2020,2021,2022,2023,2024,2025,2026,2027,2028,2029,2030,2031,2032,2033,2034]
[null,null,"6P Shipments",{"$f":"'Shipments and Stock - SF'!AH11","v":108868.34683370564},{"$f":"'Shipments and Stock - SF'!AI11","v":108868.34683370564},{"$f":"'Shipments and Stock - SF'!AJ11","v":108868.34683370564},{"$f":"'Shipments and Stock - SF'!AK11","v":108868.34683370564},{"$f":"'Shipments and Stock - SF'!AL11","v":108868.34683370564},{"$f":"'Shipments and Stock - SF'!AM11","v":108868.34683370564},{"$f":"'Shipments and Stock - SF'!AN11","v":108868.34683370564},{"$f":"'Shipments and Stock - SF'!AO11","v":108868.34683370564},{"$f":"'Shipments and Stock - SF'!AP11","v":108868.34683370564},{"$f":"'Shipments and Stock - SF'!AQ11","v":108868.34683370564},{"$f":"'Shipments and Stock - SF'!AR11","v":108868.34683370564},{"$f":"'Shipments and Stock - SF'!AS11","v":108868.34683370564},{"$f":"'Shipments and Stock - SF'!AT11","v":108868.34683370564},{"$f":"'Shipments and Stock - SF'!AU11","v":108868.34683370564},{"$f":"'Shipments and Stock - SF'!AV11","v":108868.34683370564},{"$f":"'Shipments and Stock - SF'!AW11","v":108868.34683370564},{"$f":"'Shipments and Stock - SF'!AX11","v":108868.34683370564},{"$f":"'Shipments and Stock - SF'!AY11","v":108868.34683370564},{"$f":"'Shipments and Stock - SF'!AZ11","v":108868.34683370564},{"$f":"'Shipments and Stock - SF'!BA11","v":108868.34683370564},{"$f":"'Shipments and Stock - SF'!BB11","v":108868.34683370564},{"$f":"'Shipments and Stock - SF'!BC11","v":108868.34683370564},{"$f":"'Shipments and Stock - SF'!BD11","v":108868.34683370564},{"$f":"'Shipments and Stock - SF'!BE11","v":108868.34683370564},{"$f":"'Shipments and Stock - SF'!BF11","v":108868.34683370564}]
[null,null,"Replacement Shipments",{"$f":"'Shipments and Stock - SF'!AH12","v":109293.70198997027},{"$f":"'Shipments and Stock - SF'!AI12","v":119842.83541635924},{"$f":"'Shipments and Stock - SF'!AJ12","v":115444.23754602751},{"$f":"'Shipments and Stock - SF'!AK12","v":122861.03018965936},{"$f":"'Shipments and Stock - SF'!AL12","v":104431.23400621291},{"$f":"'Shipments and Stock - SF'!AM12","v":106033.22317914233},{"$f":"'Shipments and Stock - SF'!AN12","v":100360.44858040972},{"$f":"'Shipments and Stock - SF'!AO12","v":101139.9745478368},{"$f":"'Shipments and Stock - SF'!AP12","v":99991.325338582858},{"$f":"'Shipments and Stock - SF'!AQ12","v":100538.83852541665},{"$f":"'Shipments and Stock - SF'!AR12","v":98802.098748169257},{"$f":"'Shipments and Stock - SF'!AS12","v":94817.163352329619},{"$f":"'Shipments and Stock - SF'!AT12","v":94752.628293378628},{"$f":"'Shipments and Stock - SF'!AU12","v":120639.94439216015},{"$f":"'Shipments and Stock - SF'!AV12","v":116925.15702639995},{"$f":"'Shipments and Stock - SF'!AW12","v":126535.46657576725},{"$f":"'Shipments and Stock - SF'!AX12","v":128662.77855881477},{"$f":"'Shipments and Stock - SF'!AY12","v":121365.74597652779},{"$f":"'Shipments and Stock - SF'!AZ12","v":111581.50248612381},{"$f":"'Shipments and Stock - SF'!BA12","v":97403.981864838046},{"$f":"'Shipments and Stock - SF'!BB12","v":94811.966913691576},{"$f":"'Shipments and Stock - SF'!BC12","v":109293.70198997027},{"$f":"'Shipments and Stock - SF'!BD12","v":121823.77009563278},{"$f":"'Shipments and Stock - SF'!BE12","v":152625.50088214863},{"$f":"'Shipments and Stock - SF'!BF12","v":160982.94525799798}]
[null,null,"Net New Shipments",{"$f":"'Shipments and Stock - SF'!AH13","v":0},{"$f":"'Shipments and Stock - SF'!AI13","v":1980.9346792735159},{"$f":"'Shipments and Stock - SF'!AJ13","v":37181.263336121105},{"$f":"'Shipments and Stock - SF'!AK13","v":38121.915068338625},{"$f":"'Shipments and Stock - SF'!AL13","v":37853.023180362303},{"$f":"'Shipments and Stock - SF'!AM13","v":37970.652584005147},{"$f":"'Shipments and Stock - SF'!AN13","v":38092.870356667787},{"$f":"'Shipments and Stock - SF'!AO13","v":37425.543641785662},{"$f":"'Shipments and Stock - SF'!AP13","v":36680.092480410356},{"$f":"'Shipments and Stock - SF'!AQ13","v":35876.691324137639},{"$f":"'Shipments and Stock - SF'!AR13","v":35269.95939727826},{"$f":"'Shipments and Stock - SF'!AS13","v":34347.796763751656},{"$f":"'Shipments and Stock - SF'!AT13","v":33737.617316972966},{"$f":"'Shipments and Stock - SF'!AU13","v":33297.672781805035},{"$f":"'Shipments and Stock - SF'!AV13","v":32793.532415330876},{"$f":"'Shipments and Stock - SF'!AW13","v":32681.677802977618},{"$f":"'Shipments and Stock - SF'!AX13","v":32384.484838853125},{"$f":"'Shipments and Stock - SF'!AY13","v":31749.191742842086},{"$f":"'Shipments and Stock - SF'!AZ13","v":30922.447535898071},{"$f":"'Shipments and Stock - SF'!BA13","v":30358.753818526395},{"$f":"'Shipments and Stock - SF'!BB13","v":30236.843912910204},{"$f":"'Shipments and Stock - SF'!BC13","v":30539.212352040224},{"$f":"'Shipments and Stock - SF'!BD13","v":30844.604475559667},{"$f":"'Shipments and Stock - SF'!BE13","v":31153.050520315745},{"$f":"'Shipments and Stock - SF'!BF13","v":31464.581025518943}]
[null,null,"Total Model Shipments",{"$f":"'Shipments and Stock - SF'!AH14","v":109293.70198997027},{"$f":"'Shipments and Stock - SF'!AI14","v":121823.77009563276},{"$f":"'Shipments and Stock - SF'!AJ14","v":152625.50088214863},{"$f":"'Shipments and Stock - SF'!AK14","v":160982.94525799798},{"$f":"'Shipments and Stock - SF'!AL14","v":142284.25718657521},{"$f":"'Shipments and Stock - SF'!AM14","v":144003.87576314749},{"$f":"'Shipments and Stock - SF'!AN14","v":138453.31893707751},{"$f":"'Shipments and Stock - SF'!AO14","v":138565.51818962247},{"$f":"'Shipments and Stock - SF'!AP14","v":136671.41781899321},{"$f":"'Shipments and Stock - SF'!AQ14","v":136415.5298495543},{"$f":"'Shipments and Stock - SF'!AR14","v":134072.05814544752},{"$f":"'Shipments and Stock - SF'!AS14","v":129164.96011608127},{"$f":"'Shipments and Stock - SF'!AT14","v":128490.24561035159},{"$f":"'Shipments and Stock - SF'!AU14","v":153937.61717396518},{"$f":"'Shipments and Stock - SF'!AV14","v":149718.68944173082},{"$f":"'Shipments and Stock - SF'!AW14","v":159217.14437874488},{"$f":"'Shipments and Stock - SF'!AX14","v":161047.26339766791},{"$f":"'Shipments and Stock - SF'!AY14","v":153114.93771936989},{"$f":"'Shipments and Stock - SF'!AZ14","v":142503.95002202189},{"$f":"'Shipments and Stock - SF'!BA14","v":127762.73568336444},{"$f":"'Shipments and Stock - SF'!BB14","v":125048.81082660178},{"$f":"'Shipments and Stock - SF'!BC14","v":139832.91434201051},{"$f":"'Shipments and Stock - SF'!BD14","v":152668.37457119243},{"$f":"'Shipments and Stock - SF'!BE14","v":183778.55140246436},{"$f":"'Shipments and Stock - SF'!BF14","v":192447.52628351693}]
[null,null,"Model Installed Stock",{"$f":"'Shipments and Stock - SF'!AH15","v":2286235.2835078184},{"$f":"'Shipments and Stock - SF'!AI15","v":2288216.2181870919},{"$f":"'Shipments and Stock - SF'!AJ15","v":2325397.481523213},{"$f":"'Shipments and Stock - SF'!AK15","v":2363519.3965915516},{"$f":"'Shipments and Stock - SF'!AL15","v":2401372.4197719139},{"$f":"'Shipments and Stock - SF'!AM15","v":2439343.0723559191},{"$f":"'Shipments and Stock - SF'!AN15","v":2477435.9427125868},{"$f":"'Shipments and Stock - SF'!AO15","v":2514861.4863543725},{"$f":"'Shipments and Stock - SF'!AP15","v":2551541.5788347828},{"$f":"'Shipments and Stock - SF'!AQ15","v":2587418.2701589204},{"$f":"'Shipments and Stock - SF'!AR15","v":2622688.2295561987},{"$f":"'Shipments and Stock - SF'!AS15","v":2657036.0263199504},{"$f":"'Shipments and Stock - SF'!AT15","v":2690773.6436369233},{"$f":"'Shipments and Stock - SF'!AU15","v":2724071.3164187283},{"$f":"'Shipments and Stock - SF'!AV15","v":2756864.8488340592},{"$f":"'Shipments and Stock - SF'!AW15","v":2789546.5266370368},{"$f":"'Shipments and Stock - SF'!AX15","v":2821931.0114758899},{"$f":"'Shipments and Stock - SF'!AY15","v":2853680.203218732},{"$f":"'Shipments and Stock - SF'!AZ15","v":2884602.6507546301},{"$f":"'Shipments and Stock - SF'!BA15","v":2914961.4045731565},{"$f":"'Shipments and Stock - SF'!BB15","v":2945198.2484860667},{"$f":"'Shipments and Stock - SF'!BC15","v":2975737.4608381069},{"$f":"'Shipments and Stock - SF'!BD15","v":3006582.0653136666},{"$f":"'Shipments and Stock - SF'!BE15","v":3037735.1158339824},{"$f":"'Shipments and Stock - SF'!BF15","v":3069199.6968595013}]
[]
[]
[]
[null,null,"First Year Energy Consumption ",2010,{"$f":"D27+1","v":2011},2012,2013,2014,2015,2016,2017,2018,2019,2020,2021,2022,2023,2024,2025,2026,2027,2028,2029,2030,2031,2032,2033,2034]
[null,null,"6P Shipments * 6P UEC",{"$f":"D12*D19","v":87598107.609184638},87861212.705567896,91539849.48184295,91372710.372449473,91852740.279257029,91803673.615707412,91942381.510879844,91799730.219631582,91881690.163357049,91722419.084068537,91712247.360041603,91734090.441977084,91679593.307274342,90883260.156934261,90897312.450652137,90635081.884996355,90530654.664885193,90599912.908361182,90725404.003857136,91037771.71456185,91074291.82442151,90640597.834996805,90323392.476116404,89731649.776232645,89591077.380211532]
[null,null,"Model Shipments * Model Pre-Case UEC",{"$f":"D13*D22","v":87940358.665935829},{"$f":"E13*E22","v":98316769.642108336},128332208.43505318,135112256.77405888,120045902.24143349,121431850.43629168,116927722.71636242,116840914.34749882,115346666.23911309,114931132.53155649,112944213.06394181,108836319.07556958,108203475.15244678,128507072.22485916,125004437.8342099,132551465.48983049,133920598.69935675,127421793.62320606,118755623.77778907,106837617.20508653,104610129.76448411,116420790.0789552,126662394.68252242,151474263.09337291,158370928.92788252]
[null,null,"Model Shipments * Model Post-Case UEC",{"$f":"D14*D22","v":87940358.665935829},{"$f":"E14*E22","v":98316769.642108336},128332208.43505318,135112256.77405888,120045902.24143349,121431850.43629169,116927722.71636242,116840914.34749882,115346666.23911309,76904311.324615046,75579875.324721187,72847416.174513727,72355574.178398654,86642762.507718369,84309591.117511138,89690034.636517793,90751924.264279351,86332481.870468765,80404238.690106392,72151979.170834616,70659555.599174976,79015160.782857388,86283443.657838181,103844059.08577766,108779382.62656009]
[]
[null,null,"Total Energy Consumption (kWh)",2010,{"$f":"D32+1","v":2011},2012,2013,2014,2015,2016,2017,2018,2019,2020,2021,2022,2023,2024,2025,2026,2027,2028,2029,2030,2031,2032,2033,2034]
[null,null,"Modeled Pre-case Consumption \n(Installed UEC * Stock)",{"$f":"D15*D$23","v":1889824675.8178165},{"$f":"E15*E$23","v":1886441160.70508},1917266040.7873731,1947800923.4543622,1980837625.3965025,2013733181.9103241,2047532174.0397453,2080501275.9155591,2113071077.7090795,2144703429.7232316,2176004406.6915231,2206996122.979701,2237416513.2867389,2266789736.1145592,2295162408.0348582,2323181366.1497312,2350290554.5785718,2377705277.6194315,2406032386.9838233,2434496402.1905971,2462818527.9401927,2491298959.3532119,2519644584.3936257,2542786639.0519457,2566045311.2057691]
[null,null,"Modeled Post-case Consumption \n(Installed UEC* Stock)",{"$f":"D16*D$23","v":1889824675.8178165},{"$f":"E16*E$23","v":1886441160.70508},1917266040.7873731,1947800923.4543622,1980837625.3965025,2013733181.9103241,2047532174.0397453,2080501275.9155591,2113071077.7090795,2106676608.5162899,2100613247.7453611,2095616061.1324835,2090188550.4654729,2077697463.5761526,2065375288.7797523,2050532816.0413132,2034473330.0350759,2020798741.3231986,2010774465.5999072,2004552842.7724285,1998924394.3567157,1989999196.4736369,1977965870.4893668,1953477721.1400914,1927144846.9925926]
[]
[]
[]
[null,null,"Total Energy Consumption (aMW)",2010,{"$f":"D38+1","v":2011},2012,2013,2014,2015,2016,2017,2018,2019,2020,2021,2022,2023,2024,2025,2026,2027,2028,2029,2030,2031,2032,2033,2034]
[null,null,{"$f":"C33","v":"Modeled Pre-case Consumption \n(Installed UEC * Stock)"},{"$f":"D33/Constants!$D$13/(Constants!$D$12*Constants!$D$10)","v":215.58574900956154},{"$f":"E33/Constants!$D$13/(Constants!$D$12*Constants!$D$10)","v":215.19976736311659},{"$f":"F33/Constants!$D$13/(Constants!$D$12*Constants!$D$10)","v":218.7161807879732},{"$f":"G33/Constants!$D$13/(Constants!$D$12*Constants!$D$10)","v":222.19951214400663},{"$f":"H33/Constants!$D$13/(Constants!$D$12*Constants!$D$10)","v":225.96824382802902},{"$f":"I33/Constants!$D$13/(Constants!$D$12*Constants!$D$10)","v":229.72087404863382},{"$f":"J33/Constants!$D$13/(Constants!$D$12*Constants!$D$10)","v":233.57656559887579},{"$f":"K33/Constants!$D$13/(Constants!$D$12*Constants!$D$10)","v":237.33758566228144},{"$f":"L33/Constants!$D$13/(Constants!$D$12*Constants!$D$10)","v":241.05305472382841},{"$f":"M33/Constants!$D$13/(Constants!$D$12*Constants!$D$10)","v":244.66158221802777},{"$f":"N33/Constants!$D$13/(Constants!$D$12*Constants!$D$10)","v":248.23230740263784},{"$f":"O33/Constants!$D$13/(Constants!$D$12*Constants!$D$10)","v":251.76775302072792},{"$f":"P33/Constants!$D$13/(Constants!$D$12*Constants!$D$10)","v":255.23802341851913},{"$f":"Q33/Constants!$D$13/(Constants!$D$12*Constants!$D$10)","v":258.58883597017558},{"$f":"R33/Constants!$D$13/(Constants!$D$12*Constants!$D$10)","v":261.82550855976024},{"$f":"S33/Constants!$D$13/(Constants!$D$12*Constants!$D$10)","v":265.02183049848628},{"$f":"T33/Constants!$D$13/(Constants!$D$12*Constants!$D$10)","v":268.1143685350869},{"$f":"U33/Constants!$D$13/(Constants!$D$12*Constants!$D$10)","v":271.24176107910472},{"$f":"V33/Constants!$D$13/(Constants!$D$12*Constants!$D$10)","v":274.4732360237079},{"$f":"W33/Constants!$D$13/(Constants!$D$12*Constants!$D$10)","v":277.72032879199145},{"$f":"X33/Constants!$D$13/(Constants!$D$12*Constants!$D$10)","v":280.95123522019082},{"$f":"Y33/Constants!$D$13/(Constants!$D$12*Constants!$D$10)","v":284.20020070194067},{"$f":"Z33/Constants!$D$13/(Constants!$D$12*Constants!$D$10)","v":287.43378786146769},{"$f":"AA33/Constants!$D$13/(Constants!$D$12*Constants!$D$10)","v":290.07376671822334},{"$f":"AB33/Constants!$D$13/(Constants!$D$12*Constants!$D$10)","v":292.72704896255635}]
[null,null,{"$f":"C34","v":"Modeled Post-case Consumption \n(Installed UEC* Stock)"},{"$f":"D34/Constants!$D$13/(Constants!$D$12*Constants!$D$10)","v":215.58574900956154},{"$f":"E34/Constants!$D$13/(Constants!$D$12*Constants!$D$10)","v":215.19976736311659},{"$f":"F34/Constants!$D$13/(Constants!$D$12*Constants!$D$10)","v":218.7161807879732},{"$f":"G34/Constants!$D$13/(Constants!$D$12*Constants!$D$10)","v":222.19951214400663},{"$f":"H34/Constants!$D$13/(Constants!$D$12*Constants!$D$10)","v":225.96824382802902},{"$f":"I34/Constants!$D$13/(Constants!$D$12*Constants!$D$10)","v":229.72087404863382},{"$f":"J34/Constants!$D$13/(Constants!$D$12*Constants!$D$10)","v":233.57656559887579},{"$f":"K34/Constants!$D$13/(Constants!$D$12*Constants!$D$10)","v":237.33758566228144},{"$f":"L34/Constants!$D$13/(Constants!$D$12*Constants!$D$10)","v":241.05305472382841},{"$f":"M34/Constants!$D$13/(Constants!$D$12*Constants!$D$10)","v":240.32359211912959},{"$f":"N34/Constants!$D$13/(Constants!$D$12*Constants!$D$10)","v":239.63190140832319},{"$f":"O34/Constants!$D$13/(Constants!$D$12*Constants!$D$10)","v":239.06183677076015},{"$f":"P34/Constants!$D$13/(Constants!$D$12*Constants!$D$10)","v":238.44268200610003},{"$f":"Q34/Constants!$D$13/(Constants!$D$12*Constants!$D$10)","v":237.0177348364308},{"$f":"R34/Constants!$D$13/(Constants!$D$12*Constants!$D$10)","v":235.61205667120149},{"$f":"S34/Constants!$D$13/(Constants!$D$12*Constants!$D$10)","v":233.91887018495473},{"$f":"T34/Constants!$D$13/(Constants!$D$12*Constants!$D$10)","v":232.08685033482502},{"$f":"U34/Constants!$D$13/(Constants!$D$12*Constants!$D$10)","v":230.5268926903033},{"$f":"V34/Constants!$D$13/(Constants!$D$12*Constants!$D$10)","v":229.38335222449317},{"$f":"W34/Constants!$D$13/(Constants!$D$12*Constants!$D$10)","v":228.67360743468268},{"$f":"X34/Constants!$D$13/(Constants!$D$12*Constants!$D$10)","v":228.03153027112887},{"$f":"Y34/Constants!$D$13/(Constants!$D$12*Constants!$D$10)","v":227.01336943573315},{"$f":"Z34/Constants!$D$13/(Constants!$D$12*Constants!$D$10)","v":225.64064230998937},{"$f":"AA34/Constants!$D$13/(Constants!$D$12*Constants!$D$10)","v":222.84710485285095},{"$f":"AB34/Constants!$D$13/(Constants!$D$12*Constants!$D$10)","v":219.84312651067677}]
[]
[null,null,"Savings (aMW)",2010,{"$f":"D42+1","v":2011},2012,2013,2014,2015,2016,2017,2018,2019,2020,2021,2022,2023,2024,2025,2026,2027,2028,2029,2030,2031,2032,2033,2034]
[null,null,"Incremental Savings",{"$f":"IF(AND(D42>=STANDARD_YEAR,(D42-STANDARD_YEAR)<LIFETIME_SF),\n(D13-D14)*D22,\n(D13-D14)*D21)\n/Constants!$D$13/(Constants!$D$12*Constants!$D$10)","v":0},{"$f":"IF(AND(E42>=STANDARD_YEAR,(E42-STANDARD_YEAR)<LIFETIME_SF),\n(E13-E14)*E22,\n(E13-E14)*E21)\n/Constants!$D$13/(Constants!$D$12*Constants!$D$10)","v":0},{"$f":"IF(AND(F42>=STANDARD_YEAR,(F42-STANDARD_YEAR)<LIFETIME_SF),\n(F13-F14)*F22,\n(F13-F14)*F21)\n/Constants!$D$13/(Constants!$D$12*Constants!$D$10)","v":0},{"$f":"IF(AND(G42>=STANDARD_YEAR,(G42-STANDARD_YEAR)<LIFETIME_SF),\n(G13-G14)*G22,\n(G13-G14)*G21)\n/Constants!$D$13/(Constants!$D$12*Constants!$D$10)","v":0},{"$f":"IF(AND(H42>=STANDARD_YEAR,(H42-STANDARD_YEAR)<LIFETIME_SF),\n(H13-H14)*H22,\n(H13-H14)*H21)\n/Constants!$D$13/(Constants!$D$12*Constants!$D$10)","v":0},{"$f":"IF(AND(I42>=STANDARD_YEAR,(I42-STANDARD_YEAR)<LIFETIME_SF),\n(I13-I14)*I22,\n(I13-I14)*I21)\n/Constants!$D$13/(Constants!$D$12*Constants!$D$10)","v":-4.9244392180032549E-16},{"$f":"IF(AND(J42>=STANDARD_YEAR,(J42-STANDARD_YEAR)<LIFETIME_SF),\n(J13-J14)*J22,\n(J13-J14)*J21)\n/Constants!$D$13/(Constants!$D$12*Constants!$D$10)","v":0},{"$f":"IF(AND(K42>=STANDARD_YEAR,(K42-STANDARD_YEAR)<LIFETIME_SF),\n(K13-K14)*K22,\n(K13-K14)*K21)\n/Constants!$D$13/(Constants!$D$12*Constants!$D$10)","v":0},{"$f":"IF(AND(L42>=STANDARD_YEAR,(L42-STANDARD_YEAR)<LIFETIME_SF),\n(L13-L14)*L22,\n(L13-L14)*L21)\n/Constants!$D$13/(Constants!$D$12*Constants!$D$10)","v":0},{"$f":"IF(AND(M42>=STANDARD_YEAR,(M42-STANDARD_YEAR)<LIFETIME_SF),\n(M13-M14)*M22,\n(M13-M14)*M21)\n/Constants!$D$13/(Constants!$D$12*Constants!$D$10)","v":4.3379900988981799},{"$f":"IF(AND(N42>=STANDARD_YEAR,(N42-STANDARD_YEAR)<LIFETIME_SF),\n(N13-N14)*N22,\n(N13-N14)*N21)\n/Constants!$D$13/(Constants!$D$12*Constants!$D$10)","v":4.2624158954164528},{"$f":"IF(AND(O42>=STANDARD_YEAR,(O42-STANDARD_YEAR)<LIFETIME_SF),\n(O13-O14)*O22,\n(O13-O14)*O21)\n/Constants!$D$13/(Constants!$D$12*Constants!$D$10)","v":4.1055102556531891},{"$f":"IF(AND(P42>=STANDARD_YEAR,(P42-STANDARD_YEAR)<LIFETIME_SF),\n(P13-P14)*P22,\n(P13-P14)*P21)\n/Constants!$D$13/(Constants!$D$12*Constants!$D$10)","v":4.0894251624513025},{"$f":"IF(AND(Q42>=STANDARD_YEAR,(Q42-STANDARD_YEAR)<LIFETIME_SF),\n(Q13-Q14)*Q22,\n(Q13-Q14)*Q21)\n/Constants!$D$13/(Constants!$D$12*Constants!$D$10)","v":4.7757597213256675},{"$f":"IF(AND(R42>=STANDARD_YEAR,(R42-STANDARD_YEAR)<LIFETIME_SF),\n(R13-R14)*R22,\n(R13-R14)*R21)\n/Constants!$D$13/(Constants!$D$12*Constants!$D$10)","v":4.642350754813914},{"$f":"IF(AND(S42>=STANDARD_YEAR,(S42-STANDARD_YEAR)<LIFETIME_SF),\n(S13-S14)*S22,\n(S13-S14)*S21)\n/Constants!$D$13/(Constants!$D$12*Constants!$D$10)","v":4.889508424972929},{"$f":"IF(AND(T42>=STANDARD_YEAR,(T42-STANDARD_YEAR)<LIFETIME_SF),\n(T13-T14)*T22,\n(T13-T14)*T21)\n/Constants!$D$13/(Constants!$D$12*Constants!$D$10)","v":4.9245578867302537},{"$f":"IF(AND(U42>=STANDARD_YEAR,(U42-STANDARD_YEAR)<LIFETIME_SF),\n(U13-U14)*U22,\n(U13-U14)*U21)\n/Constants!$D$13/(Constants!$D$12*Constants!$D$10)","v":4.6873501885395044},{"$f":"IF(AND(V42>=STANDARD_YEAR,(V42-STANDARD_YEAR)<LIFETIME_SF),\n(V13-V14)*V22,\n(V13-V14)*V21)\n/Constants!$D$13/(Constants!$D$12*Constants!$D$10)","v":4.3750154104132655},{"$f":"IF(AND(W42>=STANDARD_YEAR,(W42-STANDARD_YEAR)<LIFETIME_SF),\n(W13-W14)*W22,\n(W13-W14)*W21)\n/Constants!$D$13/(Constants!$D$12*Constants!$D$10)","v":3.9568375580939894},{"$f":"IF(AND(X42>=STANDARD_YEAR,(X42-STANDARD_YEAR)<LIFETIME_SF),\n(X13-X14)*X22,\n(X13-X14)*X21)\n/Constants!$D$13/(Constants!$D$12*Constants!$D$10)","v":3.8729835917532669},{"$f":"IF(AND(Y42>=STANDARD_YEAR,(Y42-STANDARD_YEAR)<LIFETIME_SF),\n(Y13-Y14)*Y22,\n(Y13-Y14)*Y21)\n/Constants!$D$13/(Constants!$D$12*Constants!$D$10)","v":4.2671263171455411},{"$f":"IF(AND(Z42>=STANDARD_YEAR,(Z42-STANDARD_YEAR)<LIFETIME_SF),\n(Z13-Z14)*Z22,\n(Z13-Z14)*Z21)\n/Constants!$D$13/(Constants!$D$12*Constants!$D$10)","v":4.6063142852708472},{"$f":"IF(AND(AA42>=STANDARD_YEAR,(AA42-STANDARD_YEAR)<LIFETIME_SF),\n(AA13-AA14)*AA22,\n(AA13-AA14)*AA21)\n/Constants!$D$13/(Constants!$D$12*Constants!$D$10)","v":5.4335163138940521},{"$f":"IF(AND(AB42>=STANDARD_YEAR,(AB42-STANDARD_YEAR)<LIFETIME_SF),\n(AB13-AB14)*AB22,\n(AB13-AB14)*AB21)\n/Constants!$D$13/(Constants!$D$12*Constants!$D$10)","v":5.657260586507233}]
[null,null,"Cumulative Savings",{"$f":"D39-D40","v":0},0,0,0,0,0,0,0,0,4.3379900988981888,8.6004059943146558,12.705916249967771,16.795341412419106,21.571101133744776,26.213451888558751,31.102960313531554,36.027518200261881,40.71486838880142,45.089883799214732,49.046721357308769,52.919704949061952,57.18683126620752,61.793145551478318,67.226661865372392,72.883922451879585]
[null,null,"DOE Aggregate Lifecycle Savings (formerly DOE Carbon proxy)",{"$f":"SUM($D$44:D44)","v":0},{"$f":"SUM($D$44:E44)","v":0},{"$f":"SUM($D$44:F44)","v":0},{"$f":"SUM($D$44:G44)","v":0},{"$f":"SUM($D$44:H44)","v":0},{"$f":"SUM($D$44:I44)","v":0},{"$f":"SUM($D$44:J44)","v":0},{"$f":"SUM($D$44:K44)","v":0},{"$f":"SUM($D$44:L44)","v":0},{"$f":"SUM($D$44:M44)","v":4.3379900988981888},{"$f":"SUM($D$44:N44)","v":12.938396093212845},{"$f":"SUM($D$44:O44)","v":25.644312343180616},{"$f":"SUM($D$44:P44)","v":42.439653755599721},{"$f":"SUM($D$44:Q44)","v":64.010754889344497},{"$f":"SUM($D$44:R44)","v":90.224206777903248},{"$f":"SUM($D$44:S44)","v":121.3271670914348},{"$f":"SUM($D$44:T44)","v":157.35468529169668},{"$f":"SUM($D$44:U44)","v":198.0695536804981},{"$f":"SUM($D$44:V44)","v":243.15943747971284},{"$f":"SUM($D$44:W44)","v":292.20615883702158},{"$f":"SUM($D$44:X44)","v":345.12586378608353},{"$f":"SUM($D$44:Y44)","v":402.31269505229102},{"$f":"SUM($D$44:Z44)","v":464.10584060376937},{"$f":"SUM($D$44:AA44)","v":531.33250246914179},{"$f":"SUM($D$44:AB44)","v":604.21642492102137}]
[null,null,"Check",{"$f":"IF(ISNUMBER(C44),ROUND((D44-C44-D43),3),0)","v":0},{"$f":"IF(ISNUMBER(D44),ROUND((E44-D44-E43),3),0)","v":0},0,0,0,0,0,0,0,0,0,0,0,0,0,0,0,0,0,0,0,0,0,0,0]

{"sheet":"Results-MF","index":25,"n_rows":46,"n_cols":28,"rows_kept":46,"cut":false,"hidden":false,"merged":[]}
[]
[null,null,"RESULTS - Multi-Family"]
[]
[null,null,"NAVIGATION"]
[]
[null,null,"COMMENTS"]
[]
[]
[null,null,"MULTI-FAMILY"]
[]
[null,null,"Unit Energy Consumption (kWh/year) ",2010,{"$f":"D11+1","v":2011},2012,2013,2014,2015,2016,2017,2018,2019,2020,2021,2022,2023,2024,2025,2026,2027,2028,2029,2030,2031,2032,2033,2034]
[null,null,"6P UEC*",{"$f":"D13","v":787.63568330585315},787.63568330585315,810.12943873068377,810.19136105927748,832.08178815257168,830.87105567638798,831.80941055370408,834.20436269933259,837.898104864782,836.68209902747969,846.37485256042635,856.57407897333871,859.53489435549591,836.29102132412709,843.68329404776784,839.27702657025816,831.97584466441276,821.76820507009836,825.60335945356883,826.95254550743459,825.57369922205544,818.40265191057915,822.02142329012725,808.86050203252341,808.39515083825859]
[null,null,{"$f":"'UEC-SF'!$C$9&\" - \"&'UEC-SF'!C11","v":"Market UEC (Shipment Weighted Average) - PRE-Case UEC"},{"$f":"OFFSET('UEC-MF'!$C11,0,MATCH(D$11,'UEC-MF'!$D$10:$BE$10,0))","v":787.63568330585315},{"$f":"OFFSET('UEC-MF'!$C11,0,MATCH(E$11,'UEC-MF'!$D$10:$BE$10,0))","v":787.63568330585315},{"$f":"OFFSET('UEC-MF'!$C11,0,MATCH(F$11,'UEC-MF'!$D$10:$BE$10,0))","v":810.12943873068377},{"$f":"OFFSET('UEC-MF'!$C11,0,MATCH(G$11,'UEC-MF'!$D$10:$BE$10,0))","v":810.19136105927748},{"$f":"OFFSET('UEC-MF'!$C11,0,MATCH(H$11,'UEC-MF'!$D$10:$BE$10,0))","v":832.08178815257168},{"$f":"OFFSET('UEC-MF'!$C11,0,MATCH(I$11,'UEC-MF'!$D$10:$BE$10,0))","v":830.87105567638798},{"$f":"OFFSET('UEC-MF'!$C11,0,MATCH(J$11,'UEC-MF'!$D$10:$BE$10,0))","v":831.80941055370408},{"$f":"OFFSET('UEC-MF'!$C11,0,MATCH(K$11,'UEC-MF'!$D$10:$BE$10,0))","v":834.20436269933259},{"$f":"OFFSET('UEC-MF'!$C11,0,MATCH(L$11,'UEC-MF'!$D$10:$BE$10,0))","v":837.898104864782},{"$f":"OFFSET('UEC-MF'!$C11,0,MATCH(M$11,'UEC-MF'!$D$10:$BE$10,0))","v":836.68209902747969},{"$f":"OFFSET('UEC-MF'!$C11,0,MATCH(N$11,'UEC-MF'!$D$10:$BE$10,0))","v":846.37485256042635},{"$f":"OFFSET('UEC-MF'!$C11,0,MATCH(O$11,'UEC-MF'!$D$10:$BE$10,0))","v":856.57407897333871},{"$f":"OFFSET('UEC-MF'!$C11,0,MATCH(P$11,'UEC-MF'!$D$10:$BE$10,0))","v":859.53489435549591},{"$f":"OFFSET('UEC-MF'!$C11,0,MATCH(Q$11,'UEC-MF'!$D$10:$BE$10,0))","v":836.29102132412709},{"$f":"OFFSET('UEC-MF'!$C11,0,MATCH(R$11,'UEC-MF'!$D$10:$BE$10,0))","v":843.68329404776784},{"$f":"OFFSET('UEC-MF'!$C11,0,MATCH(S$11,'UEC-MF'!$D$10:$BE$10,0))","v":839.27702657025816},{"$f":"OFFSET('UEC-MF'!$C11,0,MATCH(T$11,'UEC-MF'!$D$10:$BE$10,0))","v":831.97584466441276},{"$f":"OFFSET('UEC-MF'!$C11,0,MATCH(U$11,'UEC-MF'!$D$10:$BE$10,0))","v":821.76820507009836},{"$f":"OFFSET('UEC-MF'!$C11,0,MATCH(V$11,'UEC-MF'!$D$10:$BE$10,0))","v":825.60335945356883},{"$f":"OFFSET('UEC-MF'!$C11,0,MATCH(W$11,'UEC-MF'!$D$10:$BE$10,0))","v":826.95254550743459},{"$f":"OFFSET('UEC-MF'!$C11,0,MATCH(X$11,'UEC-MF'!$D$10:$BE$10,0))","v":825.57369922205544},{"$f":"OFFSET('UEC-MF'!$C11,0,MATCH(Y$11,'UEC-MF'!$D$10:$BE$10,0))","v":818.40265191057915},{"$f":"OFFSET('UEC-MF'!$C11,0,MATCH(Z$11,'UEC-MF'!$D$10:$BE$10,0))","v":822.02142329012725},{"$f":"OFFSET('UEC-MF'!$C11,0,MATCH(AA$11,'UEC-MF'!$D$10:$BE$10,0))","v":808.86050203252341},{"$f":"OFFSET('UEC-MF'!$C11,0,MATCH(AB$11,'UEC-MF'!$D$10:$BE$10,0))","v":808.39515083825859}]
[null,null,{"$f":"'UEC-SF'!$C$9&\" - \"&'UEC-SF'!C12","v":"Market UEC (Shipment Weighted Average) - POST-Case UEC"},{"$f":"OFFSET('UEC-MF'!$C12,0,MATCH(D$11,'UEC-MF'!$D$10:$BE$10,0))","v":787.63568330585315},{"$f":"OFFSET('UEC-MF'!$C12,0,MATCH(E$11,'UEC-MF'!$D$10:$BE$10,0))","v":787.63568330585315},{"$f":"OFFSET('UEC-MF'!$C12,0,MATCH(F$11,'UEC-MF'!$D$10:$BE$10,0))","v":810.12943873068377},{"$f":"OFFSET('UEC-MF'!$C12,0,MATCH(G$11,'UEC-MF'!$D$10:$BE$10,0))","v":810.19136105927748},{"$f":"OFFSET('UEC-MF'!$C12,0,MATCH(H$11,'UEC-MF'!$D$10:$BE$10,0))","v":832.08178815257168},{"$f":"OFFSET('UEC-MF'!$C12,0,MATCH(I$11,'UEC-MF'!$D$10:$BE$10,0))","v":830.87105567638798},{"$f":"OFFSET('UEC-MF'!$C12,0,MATCH(J$11,'UEC-MF'!$D$10:$BE$10,0))","v":831.80941055370408},{"$f":"OFFSET('UEC-MF'!$C12,0,MATCH(K$11,'UEC-MF'!$D$10:$BE$10,0))","v":834.20436269933259},{"$f":"OFFSET('UEC-MF'!$C12,0,MATCH(L$11,'UEC-MF'!$D$10:$BE$10,0))","v":837.898104864782},{"$f":"OFFSET('UEC-MF'!$C12,0,MATCH(M$11,'UEC-MF'!$D$10:$BE$10,0))","v":531.16055935690235},{"$f":"OFFSET('UEC-MF'!$C12,0,MATCH(N$11,'UEC-MF'!$D$10:$BE$10,0))","v":531.37937245175283},{"$f":"OFFSET('UEC-MF'!$C12,0,MATCH(O$11,'UEC-MF'!$D$10:$BE$10,0))","v":531.88142236560248},{"$f":"OFFSET('UEC-MF'!$C12,0,MATCH(P$11,'UEC-MF'!$D$10:$BE$10,0))","v":531.12323573901983},{"$f":"OFFSET('UEC-MF'!$C12,0,MATCH(Q$11,'UEC-MF'!$D$10:$BE$10,0))","v":530.72338196742771},{"$f":"OFFSET('UEC-MF'!$C12,0,MATCH(R$11,'UEC-MF'!$D$10:$BE$10,0))","v":531.18325316877429},{"$f":"OFFSET('UEC-MF'!$C12,0,MATCH(S$11,'UEC-MF'!$D$10:$BE$10,0))","v":531.32154845053833},{"$f":"OFFSET('UEC-MF'!$C12,0,MATCH(T$11,'UEC-MF'!$D$10:$BE$10,0))","v":531.38759761446681},{"$f":"OFFSET('UEC-MF'!$C12,0,MATCH(U$11,'UEC-MF'!$D$10:$BE$10,0))","v":531.3826839030487},{"$f":"OFFSET('UEC-MF'!$C12,0,MATCH(V$11,'UEC-MF'!$D$10:$BE$10,0))","v":531.78075743453576},{"$f":"OFFSET('UEC-MF'!$C12,0,MATCH(W$11,'UEC-MF'!$D$10:$BE$10,0))","v":532.10883313843919},{"$f":"OFFSET('UEC-MF'!$C12,0,MATCH(X$11,'UEC-MF'!$D$10:$BE$10,0))","v":532.35391363235249},{"$f":"OFFSET('UEC-MF'!$C12,0,MATCH(Y$11,'UEC-MF'!$D$10:$BE$10,0))","v":532.44535718990653},{"$f":"OFFSET('UEC-MF'!$C12,0,MATCH(Z$11,'UEC-MF'!$D$10:$BE$10,0))","v":532.85062026129481},{"$f":"OFFSET('UEC-MF'!$C12,0,MATCH(AA$11,'UEC-MF'!$D$10:$BE$10,0))","v":532.74470401096733},{"$f":"OFFSET('UEC-MF'!$C12,0,MATCH(AB$11,'UEC-MF'!$D$10:$BE$10,0))","v":533.00561119802671}]
[null,null,{"$f":"'UEC-SF'!$C$14&\" - \"&'UEC-SF'!C16","v":"Installed UEC (Vintage Weighted Average)  - PRE-Case UEC"},{"$f":"OFFSET('UEC-MF'!$C16,0,MATCH(D$11,'UEC-MF'!$D$10:$BE$10,0))","v":803.9452287774568},{"$f":"OFFSET('UEC-MF'!$C16,0,MATCH(E$11,'UEC-MF'!$D$10:$BE$10,0))","v":796.00245655305537},{"$f":"OFFSET('UEC-MF'!$C16,0,MATCH(F$11,'UEC-MF'!$D$10:$BE$10,0))","v":793.9462658480569},{"$f":"OFFSET('UEC-MF'!$C16,0,MATCH(G$11,'UEC-MF'!$D$10:$BE$10,0))","v":791.8836750049918},{"$f":"OFFSET('UEC-MF'!$C16,0,MATCH(H$11,'UEC-MF'!$D$10:$BE$10,0))","v":794.14972520003755},{"$f":"OFFSET('UEC-MF'!$C16,0,MATCH(I$11,'UEC-MF'!$D$10:$BE$10,0))","v":796.51506825814772},{"$f":"OFFSET('UEC-MF'!$C16,0,MATCH(J$11,'UEC-MF'!$D$10:$BE$10,0))","v":798.92052238910162},{"$f":"OFFSET('UEC-MF'!$C16,0,MATCH(K$11,'UEC-MF'!$D$10:$BE$10,0))","v":801.30300101561875},{"$f":"OFFSET('UEC-MF'!$C16,0,MATCH(L$11,'UEC-MF'!$D$10:$BE$10,0))","v":803.73435341378729},{"$f":"OFFSET('UEC-MF'!$C16,0,MATCH(M$11,'UEC-MF'!$D$10:$BE$10,0))","v":806.13435967118949},{"$f":"OFFSET('UEC-MF'!$C16,0,MATCH(N$11,'UEC-MF'!$D$10:$BE$10,0))","v":808.51403535001475},{"$f":"OFFSET('UEC-MF'!$C16,0,MATCH(O$11,'UEC-MF'!$D$10:$BE$10,0))","v":810.77777557907757},{"$f":"OFFSET('UEC-MF'!$C16,0,MATCH(P$11,'UEC-MF'!$D$10:$BE$10,0))","v":812.98057023148294},{"$f":"OFFSET('UEC-MF'!$C16,0,MATCH(Q$11,'UEC-MF'!$D$10:$BE$10,0))","v":815.06576422493526},{"$f":"OFFSET('UEC-MF'!$C16,0,MATCH(R$11,'UEC-MF'!$D$10:$BE$10,0))","v":817.08299820524803},{"$f":"OFFSET('UEC-MF'!$C16,0,MATCH(S$11,'UEC-MF'!$D$10:$BE$10,0))","v":818.99060235615605},{"$f":"OFFSET('UEC-MF'!$C16,0,MATCH(T$11,'UEC-MF'!$D$10:$BE$10,0))","v":820.77153323225684},{"$f":"OFFSET('UEC-MF'!$C16,0,MATCH(U$11,'UEC-MF'!$D$10:$BE$10,0))","v":822.41670947859075},{"$f":"OFFSET('UEC-MF'!$C16,0,MATCH(V$11,'UEC-MF'!$D$10:$BE$10,0))","v":824.01725969409915},{"$f":"OFFSET('UEC-MF'!$C16,0,MATCH(W$11,'UEC-MF'!$D$10:$BE$10,0))","v":825.55799078304096},{"$f":"OFFSET('UEC-MF'!$C16,0,MATCH(X$11,'UEC-MF'!$D$10:$BE$10,0))","v":827.01403835522308},{"$f":"OFFSET('UEC-MF'!$C16,0,MATCH(Y$11,'UEC-MF'!$D$10:$BE$10,0))","v":828.36450181744283},{"$f":"OFFSET('UEC-MF'!$C16,0,MATCH(Z$11,'UEC-MF'!$D$10:$BE$10,0))","v":829.70752065806698},{"$f":"OFFSET('UEC-MF'!$C16,0,MATCH(AA$11,'UEC-MF'!$D$10:$BE$10,0))","v":829.31836693820787},{"$f":"OFFSET('UEC-MF'!$C16,0,MATCH(AB$11,'UEC-MF'!$D$10:$BE$10,0))","v":828.89404427484897}]
[null,null,{"$f":"'UEC-SF'!$C$14&\" - \"&'UEC-SF'!C17","v":"Installed UEC (Vintage Weighted Average)  - POST-Case UEC"},{"$f":"OFFSET('UEC-MF'!$C17,0,MATCH(D$11,'UEC-MF'!$D$10:$BE$10,0))","v":803.9452287774568},{"$f":"OFFSET('UEC-MF'!$C17,0,MATCH(E$11,'UEC-MF'!$D$10:$BE$10,0))","v":796.00245655305537},{"$f":"OFFSET('UEC-MF'!$C17,0,MATCH(F$11,'UEC-MF'!$D$10:$BE$10,0))","v":793.9462658480569},{"$f":"OFFSET('UEC-MF'!$C17,0,MATCH(G$11,'UEC-MF'!$D$10:$BE$10,0))","v":791.8836750049918},{"$f":"OFFSET('UEC-MF'!$C17,0,MATCH(H$11,'UEC-MF'!$D$10:$BE$10,0))","v":794.14972520003755},{"$f":"OFFSET('UEC-MF'!$C17,0,MATCH(I$11,'UEC-MF'!$D$10:$BE$10,0))","v":796.51506825814772},{"$f":"OFFSET('UEC-MF'!$C17,0,MATCH(J$11,'UEC-MF'!$D$10:$BE$10,0))","v":798.92052238910162},{"$f":"OFFSET('UEC-MF'!$C17,0,MATCH(K$11,'UEC-MF'!$D$10:$BE$10,0))","v":801.30300101561875},{"$f":"OFFSET('UEC-MF'!$C17,0,MATCH(L$11,'UEC-MF'!$D$10:$BE$10,0))","v":803.73435341378729},{"$f":"OFFSET('UEC-MF'!$C17,0,MATCH(M$11,'UEC-MF'!$D$10:$BE$10,0))","v":789.34741018681916},{"$f":"OFFSET('UEC-MF'!$C17,0,MATCH(N$11,'UEC-MF'!$D$10:$BE$10,0))","v":777.45123636356777},{"$f":"OFFSET('UEC-MF'!$C17,0,MATCH(O$11,'UEC-MF'!$D$10:$BE$10,0))","v":767.86007936606711},{"$f":"OFFSET('UEC-MF'!$C17,0,MATCH(P$11,'UEC-MF'!$D$10:$BE$10,0))","v":758.89521787222441},{"$f":"OFFSET('UEC-MF'!$C17,0,MATCH(Q$11,'UEC-MF'!$D$10:$BE$10,0))","v":746.05756527641222},{"$f":"OFFSET('UEC-MF'!$C17,0,MATCH(R$11,'UEC-MF'!$D$10:$BE$10,0))","v":735.3968853310588},{"$f":"OFFSET('UEC-MF'!$C17,0,MATCH(S$11,'UEC-MF'!$D$10:$BE$10,0))","v":724.37151463649309},{"$f":"OFFSET('UEC-MF'!$C17,0,MATCH(T$11,'UEC-MF'!$D$10:$BE$10,0))","v":712.18397793372901},{"$f":"OFFSET('UEC-MF'!$C17,0,MATCH(U$11,'UEC-MF'!$D$10:$BE$10,0))","v":697.10425598066888},{"$f":"OFFSET('UEC-MF'!$C17,0,MATCH(V$11,'UEC-MF'!$D$10:$BE$10,0))","v":684.09353790552041},{"$f":"OFFSET('UEC-MF'!$C17,0,MATCH(W$11,'UEC-MF'!$D$10:$BE$10,0))","v":672.06226973481489},{"$f":"OFFSET('UEC-MF'!$C17,0,MATCH(X$11,'UEC-MF'!$D$10:$BE$10,0))","v":660.19928009316459},{"$f":"OFFSET('UEC-MF'!$C17,0,MATCH(Y$11,'UEC-MF'!$D$10:$BE$10,0))","v":646.06570840993618},{"$f":"OFFSET('UEC-MF'!$C17,0,MATCH(Z$11,'UEC-MF'!$D$10:$BE$10,0))","v":633.76700312205674},{"$f":"OFFSET('UEC-MF'!$C17,0,MATCH(AA$11,'UEC-MF'!$D$10:$BE$10,0))","v":613.68051254292959},{"$f":"OFFSET('UEC-MF'!$C17,0,MATCH(AB$11,'UEC-MF'!$D$10:$BE$10,0))","v":593.89445394491395}]
[]
[null,null,"Stock and Shipments (units)",2010,{"$f":"D18+1","v":2011},2012,2013,2014,2015,2016,2017,2018,2019,2020,2021,2022,2023,2024,2025,2026,2027,2028,2029,2030,2031,2032,2033,2034]
[null,null,"6P Shipments",{"$f":"'Shipments and Stock - MF'!AH11","v":3296.999289119668},{"$f":"'Shipments and Stock - MF'!AI11","v":3296.999289119668},{"$f":"'Shipments and Stock - MF'!AJ11","v":3296.999289119668},{"$f":"'Shipments and Stock - MF'!AK11","v":3296.999289119668},{"$f":"'Shipments and Stock - MF'!AL11","v":3296.999289119668},{"$f":"'Shipments and Stock - MF'!AM11","v":3296.999289119668},{"$f":"'Shipments and Stock - MF'!AN11","v":3296.999289119668},{"$f":"'Shipments and Stock - MF'!AO11","v":3296.999289119668},{"$f":"'Shipments and Stock - MF'!AP11","v":3296.999289119668},{"$f":"'Shipments and Stock - MF'!AQ11","v":3296.999289119668},{"$f":"'Shipments and Stock - MF'!AR11","v":3296.999289119668},{"$f":"'Shipments and Stock - MF'!AS11","v":3296.999289119668},{"$f":"'Shipments and Stock - MF'!AT11","v":3296.999289119668},{"$f":"'Shipments and Stock - MF'!AU11","v":3296.999289119668},{"$f":"'Shipments and Stock - MF'!AV11","v":3296.999289119668},{"$f":"'Shipments and Stock - MF'!AW11","v":3296.999289119668},{"$f":"'Shipments and Stock - MF'!AX11","v":3296.999289119668},{"$f":"'Shipments and Stock - MF'!AY11","v":3296.999289119668},{"$f":"'Shipments and Stock - MF'!AZ11","v":3296.999289119668},{"$f":"'Shipments and Stock - MF'!BA11","v":3296.999289119668},{"$f":"'Shipments and Stock - MF'!BB11","v":3296.999289119668},{"$f":"'Shipments and Stock - MF'!BC11","v":3296.999289119668},{"$f":"'Shipments and Stock - MF'!BD11","v":3296.999289119668},{"$f":"'Shipments and Stock - MF'!BE11","v":3296.999289119668},{"$f":"'Shipments and Stock - MF'!BF11","v":3296.999289119668}]
[null,null,"Replacement Shipments",{"$f":"'Shipments and Stock - MF'!AH12","v":4396.8289824054154},{"$f":"'Shipments and Stock - MF'!AI12","v":3881.0132847756404},{"$f":"'Shipments and Stock - MF'!AJ12","v":5378.2818161535888},{"$f":"'Shipments and Stock - MF'!AK12","v":5423.1731204459284},{"$f":"'Shipments and Stock - MF'!AL12","v":2528.3139515039725},{"$f":"'Shipments and Stock - MF'!AM12","v":2832.5244224293488},{"$f":"'Shipments and Stock - MF'!AN12","v":2883.0584044133207},{"$f":"'Shipments and Stock - MF'!AO12","v":2734.628537560151},{"$f":"'Shipments and Stock - MF'!AP12","v":2602.2553603233318},{"$f":"'Shipments and Stock - MF'!AQ12","v":2750.7824958288911},{"$f":"'Shipments and Stock - MF'!AR12","v":2136.1865395837012},{"$f":"'Shipments and Stock - MF'!AS12","v":1594.6787215313161},{"$f":"'Shipments and Stock - MF'!AT12","v":1481.9066184022595},{"$f":"'Shipments and Stock - MF'!AU12","v":2785.6777270128005},{"$f":"'Shipments and Stock - MF'!AV12","v":2239.9312354064828},{"$f":"'Shipments and Stock - MF'!AW12","v":2488.4458430764139},{"$f":"'Shipments and Stock - MF'!AX12","v":3008.0082995956836},{"$f":"'Shipments and Stock - MF'!AY12","v":4114.57951535956},{"$f":"'Shipments and Stock - MF'!AZ12","v":3576.7103249739521},{"$f":"'Shipments and Stock - MF'!BA12","v":3382.6610127819067},{"$f":"'Shipments and Stock - MF'!BB12","v":3462.2776486201547},{"$f":"'Shipments and Stock - MF'!BC12","v":4396.8289824054154},{"$f":"'Shipments and Stock - MF'!BD12","v":3881.0132847756404},{"$f":"'Shipments and Stock - MF'!BE12","v":6328.5339286329599},{"$f":"'Shipments and Stock - MF'!BF12","v":6426.9641340779126}]
[null,null,"Net New Shipments",{"$f":"'Shipments and Stock - MF'!AH13","v":0},{"$f":"'Shipments and Stock - MF'!AI13","v":0},{"$f":"'Shipments and Stock - MF'!AJ13","v":950.25211247937114},{"$f":"'Shipments and Stock - MF'!AK13","v":1003.7910136319842},{"$f":"'Shipments and Stock - MF'!AL13","v":1078.0533941203612},{"$f":"'Shipments and Stock - MF'!AM13","v":1166.2299926433921},{"$f":"'Shipments and Stock - MF'!AN13","v":1238.6645950667444},{"$f":"'Shipments and Stock - MF'!AO13","v":1279.316510852454},{"$f":"'Shipments and Stock - MF'!AP13","v":1323.9166042628494},{"$f":"'Shipments and Stock - MF'!AQ13","v":1375.4731364384788},{"$f":"'Shipments and Stock - MF'!AR13","v":1405.9432408731664},{"$f":"'Shipments and Stock - MF'!AS13","v":1381.1071895613265},{"$f":"'Shipments and Stock - MF'!AT13","v":1396.5624618252768},{"$f":"'Shipments and Stock - MF'!AU13","v":1402.9823813641997},{"$f":"'Shipments and Stock - MF'!AV13","v":1399.0877935662866},{"$f":"'Shipments and Stock - MF'!AW13","v":1383.9682000245084},{"$f":"'Shipments and Stock - MF'!AX13","v":1363.2135664861562},{"$f":"'Shipments and Stock - MF'!AY13","v":1356.7744859464874},{"$f":"'Shipments and Stock - MF'!AZ13","v":1354.0504800414492},{"$f":"'Shipments and Stock - MF'!BA13","v":1349.5365296220116},{"$f":"'Shipments and Stock - MF'!BB13","v":1334.8535282775993},{"$f":"'Shipments and Stock - MF'!BC13","v":1348.2020635603842},{"$f":"'Shipments and Stock - MF'!BD13","v":1361.6840841959784},{"$f":"'Shipments and Stock - MF'!BE13","v":1375.3009250379546},{"$f":"'Shipments and Stock - MF'!BF13","v":1389.0539342883274}]
[null,null,"Total Model Shipments",{"$f":"'Shipments and Stock - MF'!AH14","v":4396.8289824054154},{"$f":"'Shipments and Stock - MF'!AI14","v":3881.0132847756404},{"$f":"'Shipments and Stock - MF'!AJ14","v":6328.5339286329599},{"$f":"'Shipments and Stock - MF'!AK14","v":6426.9641340779126},{"$f":"'Shipments and Stock - MF'!AL14","v":3606.3673456243337},{"$f":"'Shipments and Stock - MF'!AM14","v":3998.7544150727408},{"$f":"'Shipments and Stock - MF'!AN14","v":4121.7229994800655},{"$f":"'Shipments and Stock - MF'!AO14","v":4013.945048412605},{"$f":"'Shipments and Stock - MF'!AP14","v":3926.1719645861813},{"$f":"'Shipments and Stock - MF'!AQ14","v":4126.2556322673699},{"$f":"'Shipments and Stock - MF'!AR14","v":3542.1297804568676},{"$f":"'Shipments and Stock - MF'!AS14","v":2975.7859110926429},{"$f":"'Shipments and Stock - MF'!AT14","v":2878.4690802275363},{"$f":"'Shipments and Stock - MF'!AU14","v":4188.6601083770001},{"$f":"'Shipments and Stock - MF'!AV14","v":3639.0190289727693},{"$f":"'Shipments and Stock - MF'!AW14","v":3872.4140431009223},{"$f":"'Shipments and Stock - MF'!AX14","v":4371.2218660818398},{"$f":"'Shipments and Stock - MF'!AY14","v":5471.3540013060474},{"$f":"'Shipments and Stock - MF'!AZ14","v":4930.7608050154013},{"$f":"'Shipments and Stock - MF'!BA14","v":4732.1975424039183},{"$f":"'Shipments and Stock - MF'!BB14","v":4797.1311768977539},{"$f":"'Shipments and Stock - MF'!BC14","v":5745.0310459657994},{"$f":"'Shipments and Stock - MF'!BD14","v":5242.6973689716187},{"$f":"'Shipments and Stock - MF'!BE14","v":7703.8348536709145},{"$f":"'Shipments and Stock - MF'!BF14","v":7816.0180683662402}]
[null,null,"Model Installed Stock",{"$f":"'Shipments and Stock - MF'!AH15","v":69236.985071513031},{"$f":"'Shipments and Stock - MF'!AI15","v":65681.92386218383},{"$f":"'Shipments and Stock - MF'!AJ15","v":66632.175974663201},{"$f":"'Shipments and Stock - MF'!AK15","v":67635.966988295186},{"$f":"'Shipments and Stock - MF'!AL15","v":68714.020382415547},{"$f":"'Shipments and Stock - MF'!AM15","v":69880.250375058939},{"$f":"'Shipments and Stock - MF'!AN15","v":71118.914970125683},{"$f":"'Shipments and Stock - MF'!AO15","v":72398.231480978138},{"$f":"'Shipments and Stock - MF'!AP15","v":73722.148085240988},{"$f":"'Shipments and Stock - MF'!AQ15","v":75097.621221679467},{"$f":"'Shipments and Stock - MF'!AR15","v":76503.564462552633},{"$f":"'Shipments and Stock - MF'!AS15","v":77884.671652113961},{"$f":"'Shipments and Stock - MF'!AT15","v":79281.234113939237},{"$f":"'Shipments and Stock - MF'!AU15","v":80684.216495303437},{"$f":"'Shipments and Stock - MF'!AV15","v":82083.304288869724},{"$f":"'Shipments and Stock - MF'!AW15","v":83467.272488894232},{"$f":"'Shipments and Stock - MF'!AX15","v":84830.486055380388},{"$f":"'Shipments and Stock - MF'!AY15","v":86187.260541326876},{"$f":"'Shipments and Stock - MF'!AZ15","v":87541.311021368325},{"$f":"'Shipments and Stock - MF'!BA15","v":88890.847550990336},{"$f":"'Shipments and Stock - MF'!BB15","v":90225.701079267936},{"$f":"'Shipments and Stock - MF'!BC15","v":91573.90314282832},{"$f":"'Shipments and Stock - MF'!BD15","v":92935.587227024298},{"$f":"'Shipments and Stock - MF'!BE15","v":94310.888152062253},{"$f":"'Shipments and Stock - MF'!BF15","v":95699.94208635058}]
[]
[]
[]
[null,null,"First Year Energy Consumption ",2010,{"$f":"D27+1","v":2011},2012,2013,2014,2015,2016,2017,2018,2019,2020,2021,2022,2023,2024,2025,2026,2027,2028,2029,2030,2031,2032,2033,2034]
[null,null,"6P Shipments * 6P UEC",{"$f":"D12*D19","v":2596834.2879446819},2596834.2879446819,2670996.18358998,2671200.3414633339,2743373.0640284512,2739381.2799151591,2742475.0352786123,2750371.1908002254,2762549.4560939032,2758540.285712752,2790497.2872204897,2824124.1294534323,2833885.9356636191,2757250.9028028082,2781623.2207176303,2767095.7599766101,2743023.7684233044,2709369.1879372597,2722013.6892132261,2726461.9546737117,2721915.8994510113,2698272.9615628305,2710204.0482286871,2666812.5001982073,2665278.2376415255]
[null,null,"Model Shipments * Model Pre-Case UEC",{"$f":"D13*D22","v":3463099.3999358686},{"$f":"E13*E22","v":3056824.5504733552},5126931.6395915085,5207070.8192677451,3000792.589682139,3322449.3022421054,3428487.9786631586,3348450.4710211791,3289732.0484999991,3452364.2235294236,2997969.5706840768,2548981.0760160182,2474144.6167789367,3502938.8400142305,3070179.5614662557,3250028.1437426535,3636751.0042489893,4496184.7569563715,4070852.6852826988,3913302.8035349464,3960385.3313649311,4701748.6433270182,4309609.553121455,6231327.7273159074,6318431.1053314814]
[null,null,"Model Shipments * Model Post-Case UEC",{"$f":"D14*D22","v":3463099.3999358686},{"$f":"E14*E22","v":3056824.5504733552},5126931.6395915085,5207070.8192677451,3000792.589682139,3322449.3022421054,3428487.9786631586,3348450.4710211791,3289732.0484999991,2191704.2496847049,1882214.6998818354,1582765.2430474751,1528821.8118651693,2223019.858629894,1932985.9661528296,2057497.0256219916,2322813.0860570553,2907382.7737976923,2622083.7156196116,2518044.1124691386,2553771.5562292924,3058915.1073363624,2793574.5448987852,4104177.218868285,4165981.487664368]
[]
[null,null,"Total Energy Consumption (kWh)",2010,{"$f":"D32+1","v":2011},2012,2013,2014,2015,2016,2017,2018,2019,2020,2021,2022,2023,2024,2025,2026,2027,2028,2029,2030,2031,2032,2033,2034]
[null,null,"Modeled Pre-case Consumption \n(Installed UEC * Stock)",{"$f":"D15*D$23","v":55662743.803178906},{"$f":"E15*E$23","v":52282972.745429076},52902367.300414458,53559818.101207502,54569220.404085085,55660672.397386521,56818360.699678913,58012920.153931223,59253023.023566641,60538772.796368107,61854205.622278415,63147160.833807796,64454102.918606021,65762942.578634627,67068872.370943367,68358911.772704899,69626448.10451214,70881843.213372037,72135551.217856765,73384549.503197178,74617921.41299659,75856570.656387746,77109355.659035847,78213751.746760249,79325112.032823965]
[null,null,"Modeled Post-case Consumption \n(Installed UEC* Stock)",{"$f":"D16*D$23","v":55662743.803178906},{"$f":"E16*E$23","v":52282972.745429076},52902367.300414458,53559818.101207502,54569220.404085085,55660672.397386521,56818360.699678913,58012920.153931223,59253023.023566641,59278112.8225234,59477790.777631454,59804530.156192303,60166149.436076745,60195070.114721023,60363806.311716333,60461314.595357202,60414913.008972533,60081506.13467373,59886445.169495381,59740184.763769977,59566942.898433752,59162758.605834261,58899508.600259684,57876754.179536469,56835664.847933069]
[]
[]
[]
[null,null,"Total Energy Consumption (aMW)",2010,{"$f":"D38+1","v":2011},2012,2013,2014,2015,2016,2017,2018,2019,2020,2021,2022,2023,2024,2025,2026,2027,2028,2029,2030,2031,2032,2033,2034]
[null,null,{"$f":"C33","v":"Modeled Pre-case Consumption \n(Installed UEC * Stock)"},{"$f":"D33/Constants!$D$13/(Constants!$D$12*Constants!$D$10)","v":6.3498452889777441},{"$f":"E33/Constants!$D$13/(Constants!$D$12*Constants!$D$10)","v":5.9642907535283003},{"$f":"F33/Constants!$D$13/(Constants!$D$12*Constants!$D$10)","v":6.0349494981079692},{"$f":"G33/Constants!$D$13/(Constants!$D$12*Constants!$D$10)","v":6.1099495894601299},{"$f":"H33/Constants!$D$13/(Constants!$D$12*Constants!$D$10)","v":6.2250992931878946},{"$f":"I33/Constants!$D$13/(Constants!$D$12*Constants!$D$10)","v":6.3496089889786127},{"$f":"J33/Constants!$D$13/(Constants!$D$12*Constants!$D$10)","v":6.4816747318821477},{"$f":"K33/Constants!$D$13/(Constants!$D$12*Constants!$D$10)","v":6.6179466294696807},{"$f":"L33/Constants!$D$13/(Constants!$D$12*Constants!$D$10)","v":6.7594139885428515},{"$f":"M33/Constants!$D$13/(Constants!$D$12*Constants!$D$10)","v":6.9060886146894944},{"$f":"N33/Constants!$D$13/(Constants!$D$12*Constants!$D$10)","v":7.0561493979327423},{"$f":"O33/Constants!$D$13/(Constants!$D$12*Constants!$D$10)","v":7.2036459997499191},{"$f":"P33/Constants!$D$13/(Constants!$D$12*Constants!$D$10)","v":7.3527381837332895},{"$f":"Q33/Constants!$D$13/(Constants!$D$12*Constants!$D$10)","v":7.5020468376265832},{"$f":"R33/Constants!$D$13/(Constants!$D$12*Constants!$D$10)","v":7.6510235422020729},{"$f":"S33/Constants!$D$13/(Constants!$D$12*Constants!$D$10)","v":7.7981875168497492},{"$f":"T33/Constants!$D$13/(Constants!$D$12*Constants!$D$10)","v":7.9427844061729562},{"$f":"U33/Constants!$D$13/(Constants!$D$12*Constants!$D$10)","v":8.0859962597960333},{"$f":"V33/Constants!$D$13/(Constants!$D$12*Constants!$D$10)","v":8.2290156534173811},{"$f":"W33/Constants!$D$13/(Constants!$D$12*Constants!$D$10)","v":8.371497775860961},{"$f":"X33/Constants!$D$13/(Constants!$D$12*Constants!$D$10)","v":8.5121972864472486},{"$f":"Y33/Constants!$D$13/(Constants!$D$12*Constants!$D$10)","v":8.6534988200305438},{"$f":"Z33/Constants!$D$13/(Constants!$D$12*Constants!$D$10)","v":8.796412920264185},{"$f":"AA33/Constants!$D$13/(Constants!$D$12*Constants!$D$10)","v":8.9223992410175956},{"$f":"AB33/Constants!$D$13/(Constants!$D$12*Constants!$D$10)","v":9.0491800174337165}]
[null,null,{"$f":"C34","v":"Modeled Post-case Consumption \n(Installed UEC* Stock)"},{"$f":"D34/Constants!$D$13/(Constants!$D$12*Constants!$D$10)","v":6.3498452889777441},{"$f":"E34/Constants!$D$13/(Constants!$D$12*Constants!$D$10)","v":5.9642907535283003},{"$f":"F34/Constants!$D$13/(Constants!$D$12*Constants!$D$10)","v":6.0349494981079692},{"$f":"G34/Constants!$D$13/(Constants!$D$12*Constants!$D$10)","v":6.1099495894601299},{"$f":"H34/Constants!$D$13/(Constants!$D$12*Constants!$D$10)","v":6.2250992931878946},{"$f":"I34/Constants!$D$13/(Constants!$D$12*Constants!$D$10)","v":6.3496089889786127},{"$f":"J34/Constants!$D$13/(Constants!$D$12*Constants!$D$10)","v":6.4816747318821477},{"$f":"K34/Constants!$D$13/(Constants!$D$12*Constants!$D$10)","v":6.6179466294696807},{"$f":"L34/Constants!$D$13/(Constants!$D$12*Constants!$D$10)","v":6.7594139885428515},{"$f":"M34/Constants!$D$13/(Constants!$D$12*Constants!$D$10)","v":6.7622761604521333},{"$f":"N34/Constants!$D$13/(Constants!$D$12*Constants!$D$10)","v":6.7850548457256963},{"$f":"O34/Constants!$D$13/(Constants!$D$12*Constants!$D$10)","v":6.8223283317581913},{"$f":"P34/Constants!$D$13/(Constants!$D$12*Constants!$D$10)","v":6.8635808163445979},{"$f":"Q34/Constants!$D$13/(Constants!$D$12*Constants!$D$10)","v":6.8668800039608735},{"$f":"R34/Constants!$D$13/(Constants!$D$12*Constants!$D$10)","v":6.8861289427009273},{"$f":"S34/Constants!$D$13/(Constants!$D$12*Constants!$D$10)","v":6.8972524064975129},{"$f":"T34/Constants!$D$13/(Constants!$D$12*Constants!$D$10)","v":6.8919590473388697},{"$f":"U34/Constants!$D$13/(Constants!$D$12*Constants!$D$10)","v":6.8539249526207762},{"$f":"V34/Constants!$D$13/(Constants!$D$12*Constants!$D$10)","v":6.8316729602435986},{"$f":"W34/Constants!$D$13/(Constants!$D$12*Constants!$D$10)","v":6.8149879949543664},{"$f":"X34/Constants!$D$13/(Constants!$D$12*Constants!$D$10)","v":6.7952250625637403},{"$f":"Y34/Constants!$D$13/(Constants!$D$12*Constants!$D$10)","v":6.7491168840787434},{"$f":"Z34/Constants!$D$13/(Constants!$D$12*Constants!$D$10)","v":6.7190860826214562},{"$f":"AA34/Constants!$D$13/(Constants!$D$12*Constants!$D$10)","v":6.6024132077956272},{"$f":"AB34/Constants!$D$13/(Constants!$D$12*Constants!$D$10)","v":6.483648739212077}]
[]
[null,null,"Savings (aMW)",2010,{"$f":"D42+1","v":2011},2012,2013,2014,2015,2016,2017,2018,2019,2020,2021,2022,2023,2024,2025,2026,2027,2028,2029,2030,2031,2032,2033,2034]
[null,null,"Incremental Savings",{"$f":"IF(AND(D42>=STANDARD_YEAR,(D42-STANDARD_YEAR)<LIFETIME_MF),\n(D13-D14)*D22,\n(D13-D14)*D21)\n/Constants!$D$13/(Constants!$D$12*Constants!$D$10)","v":0},{"$f":"IF(AND(E42>=STANDARD_YEAR,(E42-STANDARD_YEAR)<LIFETIME_MF),\n(E13-E14)*E22,\n(E13-E14)*E21)\n/Constants!$D$13/(Constants!$D$12*Constants!$D$10)","v":0},{"$f":"IF(AND(F42>=STANDARD_YEAR,(F42-STANDARD_YEAR)<LIFETIME_MF),\n(F13-F14)*F22,\n(F13-F14)*F21)\n/Constants!$D$13/(Constants!$D$12*Constants!$D$10)","v":0},{"$f":"IF(AND(G42>=STANDARD_YEAR,(G42-STANDARD_YEAR)<LIFETIME_MF),\n(G13-G14)*G22,\n(G13-G14)*G21)\n/Constants!$D$13/(Constants!$D$12*Constants!$D$10)","v":0},{"$f":"IF(AND(H42>=STANDARD_YEAR,(H42-STANDARD_YEAR)<LIFETIME_MF),\n(H13-H14)*H22,\n(H13-H14)*H21)\n/Constants!$D$13/(Constants!$D$12*Constants!$D$10)","v":0},{"$f":"IF(AND(I42>=STANDARD_YEAR,(I42-STANDARD_YEAR)<LIFETIME_MF),\n(I13-I14)*I22,\n(I13-I14)*I21)\n/Constants!$D$13/(Constants!$D$12*Constants!$D$10)","v":0},{"$f":"IF(AND(J42>=STANDARD_YEAR,(J42-STANDARD_YEAR)<LIFETIME_MF),\n(J13-J14)*J22,\n(J13-J14)*J21)\n/Constants!$D$13/(Constants!$D$12*Constants!$D$10)","v":0},{"$f":"IF(AND(K42>=STANDARD_YEAR,(K42-STANDARD_YEAR)<LIFETIME_MF),\n(K13-K14)*K22,\n(K13-K14)*K21)\n/Constants!$D$13/(Constants!$D$12*Constants!$D$10)","v":0},{"$f":"IF(AND(L42>=STANDARD_YEAR,(L42-STANDARD_YEAR)<LIFETIME_MF),\n(L13-L14)*L22,\n(L13-L14)*L21)\n/Constants!$D$13/(Constants!$D$12*Constants!$D$10)","v":0},{"$f":"IF(AND(M42>=STANDARD_YEAR,(M42-STANDARD_YEAR)<LIFETIME_MF),\n(M13-M14)*M22,\n(M13-M14)*M21)\n/Constants!$D$13/(Constants!$D$12*Constants!$D$10)","v":0.14381245423736236},{"$f":"IF(AND(N42>=STANDARD_YEAR,(N42-STANDARD_YEAR)<LIFETIME_MF),\n(N13-N14)*N22,\n(N13-N14)*N21)\n/Constants!$D$13/(Constants!$D$12*Constants!$D$10)","v":0.12728209796968301},{"$f":"IF(AND(O42>=STANDARD_YEAR,(O42-STANDARD_YEAR)<LIFETIME_MF),\n(O13-O14)*O22,\n(O13-O14)*O21)\n/Constants!$D$13/(Constants!$D$12*Constants!$D$10)","v":0.11022311578468436},{"$f":"IF(AND(P42>=STANDARD_YEAR,(P42-STANDARD_YEAR)<LIFETIME_MF),\n(P13-P14)*P22,\n(P13-P14)*P21)\n/Constants!$D$13/(Constants!$D$12*Constants!$D$10)","v":0.10783969939696185},{"$f":"IF(AND(Q42>=STANDARD_YEAR,(Q42-STANDARD_YEAR)<LIFETIME_MF),\n(Q13-Q14)*Q22,\n(Q13-Q14)*Q21)\n/Constants!$D$13/(Constants!$D$12*Constants!$D$10)","v":0.14600946627701764},{"$f":"IF(AND(R42>=STANDARD_YEAR,(R42-STANDARD_YEAR)<LIFETIME_MF),\n(R13-R14)*R22,\n(R13-R14)*R21)\n/Constants!$D$13/(Constants!$D$12*Constants!$D$10)","v":0.1297277658354353},{"$f":"IF(AND(S42>=STANDARD_YEAR,(S42-STANDARD_YEAR)<LIFETIME_MF),\n(S13-S14)*S22,\n(S13-S14)*S21)\n/Constants!$D$13/(Constants!$D$12*Constants!$D$10)","v":0.13604051085109078},{"$f":"IF(AND(T42>=STANDARD_YEAR,(T42-STANDARD_YEAR)<LIFETIME_MF),\n(T13-T14)*T22,\n(T13-T14)*T21)\n/Constants!$D$13/(Constants!$D$12*Constants!$D$10)","v":0.14989024848185417},{"$f":"IF(AND(U42>=STANDARD_YEAR,(U42-STANDARD_YEAR)<LIFETIME_MF),\n(U13-U14)*U22,\n(U13-U14)*U21)\n/Constants!$D$13/(Constants!$D$12*Constants!$D$10)","v":0.18124594834116803},{"$f":"IF(AND(V42>=STANDARD_YEAR,(V42-STANDARD_YEAR)<LIFETIME_MF),\n(V13-V14)*V22,\n(V13-V14)*V21)\n/Constants!$D$13/(Constants!$D$12*Constants!$D$10)","v":0.16527138599852695},{"$f":"IF(AND(W42>=STANDARD_YEAR,(W42-STANDARD_YEAR)<LIFETIME_MF),\n(W13-W14)*W22,\n(W13-W14)*W21)\n/Constants!$D$13/(Constants!$D$12*Constants!$D$10)","v":0.15916708773280946},{"$f":"IF(AND(X42>=STANDARD_YEAR,(X42-STANDARD_YEAR)<LIFETIME_MF),\n(X13-X14)*X22,\n(X13-X14)*X21)\n/Constants!$D$13/(Constants!$D$12*Constants!$D$10)","v":0.16046244297691523},{"$f":"IF(AND(Y42>=STANDARD_YEAR,(Y42-STANDARD_YEAR)<LIFETIME_MF),\n(Y13-Y14)*Y22,\n(Y13-Y14)*Y21)\n/Constants!$D$13/(Constants!$D$12*Constants!$D$10)","v":0.18740971206829296},{"$f":"IF(AND(Z42>=STANDARD_YEAR,(Z42-STANDARD_YEAR)<LIFETIME_MF),\n(Z13-Z14)*Z22,\n(Z13-Z14)*Z21)\n/Constants!$D$13/(Constants!$D$12*Constants!$D$10)","v":0.17294490169092747},{"$f":"IF(AND(AA42>=STANDARD_YEAR,(AA42-STANDARD_YEAR)<LIFETIME_MF),\n(AA13-AA14)*AA22,\n(AA13-AA14)*AA21)\n/Constants!$D$13/(Constants!$D$12*Constants!$D$10)","v":0.24265919557924054},{"$f":"IF(AND(AB42>=STANDARD_YEAR,(AB42-STANDARD_YEAR)<LIFETIME_MF),\n(AB13-AB14)*AB22,\n(AB13-AB14)*AB21)\n/Constants!$D$13/(Constants!$D$12*Constants!$D$10)","v":0.24554524499967068}]
[null,null,"Cumulative Savings",{"$f":"D39-D40","v":0},0,0,0,0,0,0,0,0,0.14381245423736111,0.27109455220704604,0.38131766799172784,0.48915736738869153,0.6351668336657097,0.76489459950114558,0.90093511035223628,1.0508253588340866,1.2320713071752571,1.3973426931737825,1.5565097809065946,1.7169722238835083,1.9043819359518004,2.0773268376427287,2.3199860332219684,2.5655312782216395]
[null,null,"DOE Aggregate Lifecycle Savings (formerly DOE Carbon proxy)",{"$f":"SUM($D$44:D44)","v":0},{"$f":"SUM($D$44:E44)","v":0},{"$f":"SUM($D$44:F44)","v":0},{"$f":"SUM($D$44:G44)","v":0},{"$f":"SUM($D$44:H44)","v":0},{"$f":"SUM($D$44:I44)","v":0},{"$f":"SUM($D$44:J44)","v":0},{"$f":"SUM($D$44:K44)","v":0},{"$f":"SUM($D$44:L44)","v":0},{"$f":"SUM($D$44:M44)","v":0.14381245423736111},{"$f":"SUM($D$44:N44)","v":0.41490700644440714},{"$f":"SUM($D$44:O44)","v":0.79622467443613498},{"$f":"SUM($D$44:P44)","v":1.2853820418248265},{"$f":"SUM($D$44:Q44)","v":1.9205488754905362},{"$f":"SUM($D$44:R44)","v":2.6854434749916818},{"$f":"SUM($D$44:S44)","v":3.5863785853439181},{"$f":"SUM($D$44:T44)","v":4.6372039441780046},{"$f":"SUM($D$44:U44)","v":5.8692752513532618},{"$f":"SUM($D$44:V44)","v":7.2666179445270442},{"$f":"SUM($D$44:W44)","v":8.8231277254336398},{"$f":"SUM($D$44:X44)","v":10.540099949317149},{"$f":"SUM($D$44:Y44)","v":12.444481885268949},{"$f":"SUM($D$44:Z44)","v":14.521808722911679},{"$f":"SUM($D$44:AA44)","v":16.841794756133648},{"$f":"SUM($D$44:AB44)","v":19.407326034355286}]
[null,null,"Check",{"$f":"IF(ISNUMBER(C44),ROUND((D44-C44-D43),3),0)","v":0},{"$f":"IF(ISNUMBER(D44),ROUND((E44-D44-E43),3),0)","v":0},0,0,0,0,0,0,0,0,0,0,0,0,0,0,0,0,0,0,0,0,0,0,0]

{"sheet":"Results-MH","index":26,"n_rows":46,"n_cols":28,"rows_kept":46,"cut":false,"hidden":false,"merged":[]}
[]
[null,null,"RESULTS - Manufactured Homes"]
[]
[null,null,"NAVIGATION"]
[]
[null,null,"COMMENTS"]
[]
[]
[null,null,"MANUFACTURED HOMES"]
[]
[null,null,"Unit Energy Consumption (kWh/year) ",2010,{"$f":"D11+1","v":2011},2012,2013,2014,2015,2016,2017,2018,2019,2020,2021,2022,2023,2024,2025,2026,2027,2028,2029,2030,2031,2032,2033,2034]
[null,null,"6P UEC*",{"$f":"D13","v":318.93644650213577},318.0575369139238,319.80091958098069,319.67736557833342,318.31104571261943,317.09079864815271,316.91642339361272,317.31573016223479,317.27779571136477,316.96881149603348,318.19032012099404,320.42988920976904,321.95641590450634,318.15469856376478,319.10448456066786,318.26213364960961,318.2354289501227,318.61272207293706,318.35269410661442,318.07941730731056,317.44808323871075,317.33823173697829,317.04091697525462,316.85158573982932,316.625276167089]
[null,null,{"$f":"'UEC-SF'!$C$9&\" - \"&'UEC-SF'!C11","v":"Market UEC (Shipment Weighted Average) - PRE-Case UEC"},{"$f":"OFFSET('UEC-MH'!$C11,0,MATCH(D$11,'UEC-MH'!$D$10:$BE$10,0))","v":318.93644650213577},{"$f":"OFFSET('UEC-MH'!$C11,0,MATCH(E$11,'UEC-MH'!$D$10:$BE$10,0))","v":318.0575369139238},{"$f":"OFFSET('UEC-MH'!$C11,0,MATCH(F$11,'UEC-MH'!$D$10:$BE$10,0))","v":319.80091958098069},{"$f":"OFFSET('UEC-MH'!$C11,0,MATCH(G$11,'UEC-MH'!$D$10:$BE$10,0))","v":319.67736557833342},{"$f":"OFFSET('UEC-MH'!$C11,0,MATCH(H$11,'UEC-MH'!$D$10:$BE$10,0))","v":318.31104571261943},{"$f":"OFFSET('UEC-MH'!$C11,0,MATCH(I$11,'UEC-MH'!$D$10:$BE$10,0))","v":317.09079864815271},{"$f":"OFFSET('UEC-MH'!$C11,0,MATCH(J$11,'UEC-MH'!$D$10:$BE$10,0))","v":316.91642339361272},{"$f":"OFFSET('UEC-MH'!$C11,0,MATCH(K$11,'UEC-MH'!$D$10:$BE$10,0))","v":317.31573016223479},{"$f":"OFFSET('UEC-MH'!$C11,0,MATCH(L$11,'UEC-MH'!$D$10:$BE$10,0))","v":317.27779571136477},{"$f":"OFFSET('UEC-MH'!$C11,0,MATCH(M$11,'UEC-MH'!$D$10:$BE$10,0))","v":316.96881149603348},{"$f":"OFFSET('UEC-MH'!$C11,0,MATCH(N$11,'UEC-MH'!$D$10:$BE$10,0))","v":318.19032012099404},{"$f":"OFFSET('UEC-MH'!$C11,0,MATCH(O$11,'UEC-MH'!$D$10:$BE$10,0))","v":320.42988920976904},{"$f":"OFFSET('UEC-MH'!$C11,0,MATCH(P$11,'UEC-MH'!$D$10:$BE$10,0))","v":321.95641590450634},{"$f":"OFFSET('UEC-MH'!$C11,0,MATCH(Q$11,'UEC-MH'!$D$10:$BE$10,0))","v":318.15469856376478},{"$f":"OFFSET('UEC-MH'!$C11,0,MATCH(R$11,'UEC-MH'!$D$10:$BE$10,0))","v":319.10448456066786},{"$f":"OFFSET('UEC-MH'!$C11,0,MATCH(S$11,'UEC-MH'!$D$10:$BE$10,0))","v":318.26213364960961},{"$f":"OFFSET('UEC-MH'!$C11,0,MATCH(T$11,'UEC-MH'!$D$10:$BE$10,0))","v":318.2354289501227},{"$f":"OFFSET('UEC-MH'!$C11,0,MATCH(U$11,'UEC-MH'!$D$10:$BE$10,0))","v":318.61272207293706},{"$f":"OFFSET('UEC-MH'!$C11,0,MATCH(V$11,'UEC-MH'!$D$10:$BE$10,0))","v":318.35269410661442},{"$f":"OFFSET('UEC-MH'!$C11,0,MATCH(W$11,'UEC-MH'!$D$10:$BE$10,0))","v":318.07941730731056},{"$f":"OFFSET('UEC-MH'!$C11,0,MATCH(X$11,'UEC-MH'!$D$10:$BE$10,0))","v":317.44808323871075},{"$f":"OFFSET('UEC-MH'!$C11,0,MATCH(Y$11,'UEC-MH'!$D$10:$BE$10,0))","v":317.33823173697829},{"$f":"OFFSET('UEC-MH'!$C11,0,MATCH(Z$11,'UEC-MH'!$D$10:$BE$10,0))","v":317.04091697525462},{"$f":"OFFSET('UEC-MH'!$C11,0,MATCH(AA$11,'UEC-MH'!$D$10:$BE$10,0))","v":316.85158573982932},{"$f":"OFFSET('UEC-MH'!$C11,0,MATCH(AB$11,'UEC-MH'!$D$10:$BE$10,0))","v":316.625276167089}]
[null,null,{"$f":"'UEC-SF'!$C$9&\" - \"&'UEC-SF'!C12","v":"Market UEC (Shipment Weighted Average) - POST-Case UEC"},{"$f":"OFFSET('UEC-MH'!$C12,0,MATCH(D$11,'UEC-MH'!$D$10:$BE$10,0))","v":318.93644650213577},{"$f":"OFFSET('UEC-MH'!$C12,0,MATCH(E$11,'UEC-MH'!$D$10:$BE$10,0))","v":318.0575369139238},{"$f":"OFFSET('UEC-MH'!$C12,0,MATCH(F$11,'UEC-MH'!$D$10:$BE$10,0))","v":319.80091958098069},{"$f":"OFFSET('UEC-MH'!$C12,0,MATCH(G$11,'UEC-MH'!$D$10:$BE$10,0))","v":319.67736557833342},{"$f":"OFFSET('UEC-MH'!$C12,0,MATCH(H$11,'UEC-MH'!$D$10:$BE$10,0))","v":318.31104571261943},{"$f":"OFFSET('UEC-MH'!$C12,0,MATCH(I$11,'UEC-MH'!$D$10:$BE$10,0))","v":317.09079864815271},{"$f":"OFFSET('UEC-MH'!$C12,0,MATCH(J$11,'UEC-MH'!$D$10:$BE$10,0))","v":316.91642339361272},{"$f":"OFFSET('UEC-MH'!$C12,0,MATCH(K$11,'UEC-MH'!$D$10:$BE$10,0))","v":317.31573016223479},{"$f":"OFFSET('UEC-MH'!$C12,0,MATCH(L$11,'UEC-MH'!$D$10:$BE$10,0))","v":317.27779571136477},{"$f":"OFFSET('UEC-MH'!$C12,0,MATCH(M$11,'UEC-MH'!$D$10:$BE$10,0))","v":251.86681303360018},{"$f":"OFFSET('UEC-MH'!$C12,0,MATCH(N$11,'UEC-MH'!$D$10:$BE$10,0))","v":251.94736486650083},{"$f":"OFFSET('UEC-MH'!$C12,0,MATCH(O$11,'UEC-MH'!$D$10:$BE$10,0))","v":252.07171276092998},{"$f":"OFFSET('UEC-MH'!$C12,0,MATCH(P$11,'UEC-MH'!$D$10:$BE$10,0))","v":252.17253067216791},{"$f":"OFFSET('UEC-MH'!$C12,0,MATCH(Q$11,'UEC-MH'!$D$10:$BE$10,0))","v":252.0816093991715},{"$f":"OFFSET('UEC-MH'!$C12,0,MATCH(R$11,'UEC-MH'!$D$10:$BE$10,0))","v":252.16707756808307},{"$f":"OFFSET('UEC-MH'!$C12,0,MATCH(S$11,'UEC-MH'!$D$10:$BE$10,0))","v":252.18860840210752},{"$f":"OFFSET('UEC-MH'!$C12,0,MATCH(T$11,'UEC-MH'!$D$10:$BE$10,0))","v":252.23916083326316},{"$f":"OFFSET('UEC-MH'!$C12,0,MATCH(U$11,'UEC-MH'!$D$10:$BE$10,0))","v":252.30754494179405},{"$f":"OFFSET('UEC-MH'!$C12,0,MATCH(V$11,'UEC-MH'!$D$10:$BE$10,0))","v":252.35249856885545},{"$f":"OFFSET('UEC-MH'!$C12,0,MATCH(W$11,'UEC-MH'!$D$10:$BE$10,0))","v":252.39701760509362},{"$f":"OFFSET('UEC-MH'!$C12,0,MATCH(X$11,'UEC-MH'!$D$10:$BE$10,0))","v":252.42140254445195},{"$f":"OFFSET('UEC-MH'!$C12,0,MATCH(Y$11,'UEC-MH'!$D$10:$BE$10,0))","v":252.46599170060765},{"$f":"OFFSET('UEC-MH'!$C12,0,MATCH(Z$11,'UEC-MH'!$D$10:$BE$10,0))","v":252.49655891112329},{"$f":"OFFSET('UEC-MH'!$C12,0,MATCH(AA$11,'UEC-MH'!$D$10:$BE$10,0))","v":252.52422397317736},{"$f":"OFFSET('UEC-MH'!$C12,0,MATCH(AB$11,'UEC-MH'!$D$10:$BE$10,0))","v":252.55464963791229}]
[null,null,{"$f":"'UEC-SF'!$C$14&\" - \"&'UEC-SF'!C16","v":"Installed UEC (Vintage Weighted Average)  - PRE-Case UEC"},{"$f":"OFFSET('UEC-MH'!$C16,0,MATCH(D$11,'UEC-MH'!$D$10:$BE$10,0))","v":326.7195027097971},{"$f":"OFFSET('UEC-MH'!$C16,0,MATCH(E$11,'UEC-MH'!$D$10:$BE$10,0))","v":326.03883396743282},{"$f":"OFFSET('UEC-MH'!$C16,0,MATCH(F$11,'UEC-MH'!$D$10:$BE$10,0))","v":325.45488069568523},{"$f":"OFFSET('UEC-MH'!$C16,0,MATCH(G$11,'UEC-MH'!$D$10:$BE$10,0))","v":324.75587626851075},{"$f":"OFFSET('UEC-MH'!$C16,0,MATCH(H$11,'UEC-MH'!$D$10:$BE$10,0))","v":323.83017167912857},{"$f":"OFFSET('UEC-MH'!$C16,0,MATCH(I$11,'UEC-MH'!$D$10:$BE$10,0))","v":322.66521138784429},{"$f":"OFFSET('UEC-MH'!$C16,0,MATCH(J$11,'UEC-MH'!$D$10:$BE$10,0))","v":321.58076466654063},{"$f":"OFFSET('UEC-MH'!$C16,0,MATCH(K$11,'UEC-MH'!$D$10:$BE$10,0))","v":320.71174664423813},{"$f":"OFFSET('UEC-MH'!$C16,0,MATCH(L$11,'UEC-MH'!$D$10:$BE$10,0))","v":319.8520286728243},{"$f":"OFFSET('UEC-MH'!$C16,0,MATCH(M$11,'UEC-MH'!$D$10:$BE$10,0))","v":318.95313524109042},{"$f":"OFFSET('UEC-MH'!$C16,0,MATCH(N$11,'UEC-MH'!$D$10:$BE$10,0))","v":318.34986607907325},{"$f":"OFFSET('UEC-MH'!$C16,0,MATCH(O$11,'UEC-MH'!$D$10:$BE$10,0))","v":318.16160148257939},{"$f":"OFFSET('UEC-MH'!$C16,0,MATCH(P$11,'UEC-MH'!$D$10:$BE$10,0))","v":318.16790149962213},{"$f":"OFFSET('UEC-MH'!$C16,0,MATCH(Q$11,'UEC-MH'!$D$10:$BE$10,0))","v":318.18520624936679},{"$f":"OFFSET('UEC-MH'!$C16,0,MATCH(R$11,'UEC-MH'!$D$10:$BE$10,0))","v":318.25423827014657},{"$f":"OFFSET('UEC-MH'!$C16,0,MATCH(S$11,'UEC-MH'!$D$10:$BE$10,0))","v":318.34571346333792},{"$f":"OFFSET('UEC-MH'!$C16,0,MATCH(T$11,'UEC-MH'!$D$10:$BE$10,0))","v":318.43280869811394},{"$f":"OFFSET('UEC-MH'!$C16,0,MATCH(U$11,'UEC-MH'!$D$10:$BE$10,0))","v":318.52995177731543},{"$f":"OFFSET('UEC-MH'!$C16,0,MATCH(V$11,'UEC-MH'!$D$10:$BE$10,0))","v":318.49649068099438},{"$f":"OFFSET('UEC-MH'!$C16,0,MATCH(W$11,'UEC-MH'!$D$10:$BE$10,0))","v":318.43086116882256},{"$f":"OFFSET('UEC-MH'!$C16,0,MATCH(X$11,'UEC-MH'!$D$10:$BE$10,0))","v":318.348189257032},{"$f":"OFFSET('UEC-MH'!$C16,0,MATCH(Y$11,'UEC-MH'!$D$10:$BE$10,0))","v":318.27421468988069},{"$f":"OFFSET('UEC-MH'!$C16,0,MATCH(Z$11,'UEC-MH'!$D$10:$BE$10,0))","v":318.22015811694843},{"$f":"OFFSET('UEC-MH'!$C16,0,MATCH(AA$11,'UEC-MH'!$D$10:$BE$10,0))","v":318.07727838031519},{"$f":"OFFSET('UEC-MH'!$C16,0,MATCH(AB$11,'UEC-MH'!$D$10:$BE$10,0))","v":317.92348940761639}]
[null,null,{"$f":"'UEC-SF'!$C$14&\" - \"&'UEC-SF'!C17","v":"Installed UEC (Vintage Weighted Average)  - POST-Case UEC"},{"$f":"OFFSET('UEC-MH'!$C17,0,MATCH(D$11,'UEC-MH'!$D$10:$BE$10,0))","v":326.7195027097971},{"$f":"OFFSET('UEC-MH'!$C17,0,MATCH(E$11,'UEC-MH'!$D$10:$BE$10,0))","v":326.03883396743282},{"$f":"OFFSET('UEC-MH'!$C17,0,MATCH(F$11,'UEC-MH'!$D$10:$BE$10,0))","v":325.45488069568523},{"$f":"OFFSET('UEC-MH'!$C17,0,MATCH(G$11,'UEC-MH'!$D$10:$BE$10,0))","v":324.75587626851075},{"$f":"OFFSET('UEC-MH'!$C17,0,MATCH(H$11,'UEC-MH'!$D$10:$BE$10,0))","v":323.83017167912857},{"$f":"OFFSET('UEC-MH'!$C17,0,MATCH(I$11,'UEC-MH'!$D$10:$BE$10,0))","v":322.66521138784429},{"$f":"OFFSET('UEC-MH'!$C17,0,MATCH(J$11,'UEC-MH'!$D$10:$BE$10,0))","v":321.58076466654063},{"$f":"OFFSET('UEC-MH'!$C17,0,MATCH(K$11,'UEC-MH'!$D$10:$BE$10,0))","v":320.71174664423813},{"$f":"OFFSET('UEC-MH'!$C17,0,MATCH(L$11,'UEC-MH'!$D$10:$BE$10,0))","v":319.8520286728243},{"$f":"OFFSET('UEC-MH'!$C17,0,MATCH(M$11,'UEC-MH'!$D$10:$BE$10,0))","v":315.33593272805922},{"$f":"OFFSET('UEC-MH'!$C17,0,MATCH(N$11,'UEC-MH'!$D$10:$BE$10,0))","v":311.45149887666179},{"$f":"OFFSET('UEC-MH'!$C17,0,MATCH(O$11,'UEC-MH'!$D$10:$BE$10,0))","v":308.44336263931893},{"$f":"OFFSET('UEC-MH'!$C17,0,MATCH(P$11,'UEC-MH'!$D$10:$BE$10,0))","v":305.84406300001433},{"$f":"OFFSET('UEC-MH'!$C17,0,MATCH(Q$11,'UEC-MH'!$D$10:$BE$10,0))","v":302.34571929529551},{"$f":"OFFSET('UEC-MH'!$C17,0,MATCH(R$11,'UEC-MH'!$D$10:$BE$10,0))","v":299.1832692785689},{"$f":"OFFSET('UEC-MH'!$C17,0,MATCH(S$11,'UEC-MH'!$D$10:$BE$10,0))","v":295.85450266236461},{"$f":"OFFSET('UEC-MH'!$C17,0,MATCH(T$11,'UEC-MH'!$D$10:$BE$10,0))","v":292.62884161154261},{"$f":"OFFSET('UEC-MH'!$C17,0,MATCH(U$11,'UEC-MH'!$D$10:$BE$10,0))","v":289.68033512971988},{"$f":"OFFSET('UEC-MH'!$C17,0,MATCH(V$11,'UEC-MH'!$D$10:$BE$10,0))","v":286.70358818118427},{"$f":"OFFSET('UEC-MH'!$C17,0,MATCH(W$11,'UEC-MH'!$D$10:$BE$10,0))","v":283.79754044902512},{"$f":"OFFSET('UEC-MH'!$C17,0,MATCH(X$11,'UEC-MH'!$D$10:$BE$10,0))","v":280.854273670976},{"$f":"OFFSET('UEC-MH'!$C17,0,MATCH(Y$11,'UEC-MH'!$D$10:$BE$10,0))","v":277.89030873276522},{"$f":"OFFSET('UEC-MH'!$C17,0,MATCH(Z$11,'UEC-MH'!$D$10:$BE$10,0))","v":274.85296843000862},{"$f":"OFFSET('UEC-MH'!$C17,0,MATCH(AA$11,'UEC-MH'!$D$10:$BE$10,0))","v":271.6675620200466},{"$f":"OFFSET('UEC-MH'!$C17,0,MATCH(AB$11,'UEC-MH'!$D$10:$BE$10,0))","v":268.39197256216022}]
[]
[null,null,"Stock and Shipments (units)",2010,{"$f":"D18+1","v":2011},2012,2013,2014,2015,2016,2017,2018,2019,2020,2021,2022,2023,2024,2025,2026,2027,2028,2029,2030,2031,2032,2033,2034]
[null,null,"6P Shipments",{"$f":"'Shipments and Stock - MH'!AH11","v":18752.385668668867},{"$f":"'Shipments and Stock - MH'!AI11","v":18752.385668668867},{"$f":"'Shipments and Stock - MH'!AJ11","v":18752.385668668867},{"$f":"'Shipments and Stock - MH'!AK11","v":18752.385668668867},{"$f":"'Shipments and Stock - MH'!AL11","v":18752.385668668867},{"$f":"'Shipments and Stock - MH'!AM11","v":18752.385668668867},{"$f":"'Shipments and Stock - MH'!AN11","v":18752.385668668867},{"$f":"'Shipments and Stock - MH'!AO11","v":18752.385668668867},{"$f":"'Shipments and Stock - MH'!AP11","v":18752.385668668867},{"$f":"'Shipments and Stock - MH'!AQ11","v":18752.385668668867},{"$f":"'Shipments and Stock - MH'!AR11","v":18752.385668668867},{"$f":"'Shipments and Stock - MH'!AS11","v":18752.385668668867},{"$f":"'Shipments and Stock - MH'!AT11","v":18752.385668668867},{"$f":"'Shipments and Stock - MH'!AU11","v":18752.385668668867},{"$f":"'Shipments and Stock - MH'!AV11","v":18752.385668668867},{"$f":"'Shipments and Stock - MH'!AW11","v":18752.385668668867},{"$f":"'Shipments and Stock - MH'!AX11","v":18752.385668668867},{"$f":"'Shipments and Stock - MH'!AY11","v":18752.385668668867},{"$f":"'Shipments and Stock - MH'!AZ11","v":18752.385668668867},{"$f":"'Shipments and Stock - MH'!BA11","v":18752.385668668867},{"$f":"'Shipments and Stock - MH'!BB11","v":18752.385668668867},{"$f":"'Shipments and Stock - MH'!BC11","v":18752.385668668867},{"$f":"'Shipments and Stock - MH'!BD11","v":18752.385668668867},{"$f":"'Shipments and Stock - MH'!BE11","v":18752.385668668867},{"$f":"'Shipments and Stock - MH'!BF11","v":18752.385668668867}]
[null,null,"Replacement Shipments",{"$f":"'Shipments and Stock - MH'!AH12","v":15653.017250677411},{"$f":"'Shipments and Stock - MH'!AI12","v":16947.081570008875},{"$f":"'Shipments and Stock - MH'!AJ12","v":16906.38772348901},{"$f":"'Shipments and Stock - MH'!AK12","v":18241.824120115682},{"$f":"'Shipments and Stock - MH'!AL12","v":20008.320838325209},{"$f":"'Shipments and Stock - MH'!AM12","v":21951.345049791988},{"$f":"'Shipments and Stock - MH'!AN12","v":21289.382396518915},{"$f":"'Shipments and Stock - MH'!AO12","v":19528.776250332492},{"$f":"'Shipments and Stock - MH'!AP12","v":19583.005017455165},{"$f":"'Shipments and Stock - MH'!AQ12","v":19982.482373619059},{"$f":"'Shipments and Stock - MH'!AR12","v":17669.856729623301},{"$f":"'Shipments and Stock - MH'!AS12","v":14261.504378492555},{"$f":"'Shipments and Stock - MH'!AT12","v":12717.057786080539},{"$f":"'Shipments and Stock - MH'!AU12","v":20163.508633496345},{"$f":"'Shipments and Stock - MH'!AV12","v":18347.409650960431},{"$f":"'Shipments and Stock - MH'!AW12","v":20443.170783883623},{"$f":"'Shipments and Stock - MH'!AX12","v":20266.600381488548},{"$f":"'Shipments and Stock - MH'!AY12","v":18814.927847498697},{"$f":"'Shipments and Stock - MH'!AZ12","v":18712.553709578227},{"$f":"'Shipments and Stock - MH'!BA12","v":18566.820603845481},{"$f":"'Shipments and Stock - MH'!BB12","v":19392.318174959732},{"$f":"'Shipments and Stock - MH'!BC12","v":20005.76502248233},{"$f":"'Shipments and Stock - MH'!BD12","v":21185.849145073433},{"$f":"'Shipments and Stock - MH'!BE12","v":22093.687088335093},{"$f":"'Shipments and Stock - MH'!BF12","v":23198.108027556169}]
[null,null,"Net New Shipments",{"$f":"'Shipments and Stock - MH'!AH13","v":4352.7477718049195},{"$f":"'Shipments and Stock - MH'!AI13","v":4238.7675750645576},{"$f":"'Shipments and Stock - MH'!AJ13","v":5187.2993648460833},{"$f":"'Shipments and Stock - MH'!AK13","v":4956.283907440491},{"$f":"'Shipments and Stock - MH'!AL13","v":4660.4808557335673},{"$f":"'Shipments and Stock - MH'!AM13","v":4386.7139726914465},{"$f":"'Shipments and Stock - MH'!AN13","v":4179.3884132480598},{"$f":"'Shipments and Stock - MH'!AO13","v":4059.1930378967663},{"$f":"'Shipments and Stock - MH'!AP13","v":4037.66665760259},{"$f":"'Shipments and Stock - MH'!AQ13","v":4110.1259950341773},{"$f":"'Shipments and Stock - MH'!AR13","v":4250.8011141968309},{"$f":"'Shipments and Stock - MH'!AS13","v":4431.0721648880863},{"$f":"'Shipments and Stock - MH'!AT13","v":4611.9965035258792},{"$f":"'Shipments and Stock - MH'!AU13","v":4756.0347024806542},{"$f":"'Shipments and Stock - MH'!AV13","v":4834.7506252389285},{"$f":"'Shipments and Stock - MH'!AW13","v":4832.0134610952227},{"$f":"'Shipments and Stock - MH'!AX13","v":4746.2514568484667},{"$f":"'Shipments and Stock - MH'!AY13","v":4591.7345689762733},{"$f":"'Shipments and Stock - MH'!AZ13","v":4393.3944178608363},{"$f":"'Shipments and Stock - MH'!BA13","v":4182.6458658272168},{"$f":"'Shipments and Stock - MH'!BB13","v":3992.0656923559145},{"$f":"'Shipments and Stock - MH'!BC13","v":4031.9863492794684},{"$f":"'Shipments and Stock - MH'!BD13","v":4072.306212772266},{"$f":"'Shipments and Stock - MH'!BE13","v":4113.0292748999782},{"$f":"'Shipments and Stock - MH'!BF13","v":4154.1595676490106}]
[null,null,"Total Model Shipments",{"$f":"'Shipments and Stock - MH'!AH14","v":20005.76502248233},{"$f":"'Shipments and Stock - MH'!AI14","v":21185.849145073433},{"$f":"'Shipments and Stock - MH'!AJ14","v":22093.687088335093},{"$f":"'Shipments and Stock - MH'!AK14","v":23198.108027556173},{"$f":"'Shipments and Stock - MH'!AL14","v":24668.801694058777},{"$f":"'Shipments and Stock - MH'!AM14","v":26338.059022483434},{"$f":"'Shipments and Stock - MH'!AN14","v":25468.770809766975},{"$f":"'Shipments and Stock - MH'!AO14","v":23587.969288229258},{"$f":"'Shipments and Stock - MH'!AP14","v":23620.671675057754},{"$f":"'Shipments and Stock - MH'!AQ14","v":24092.608368653237},{"$f":"'Shipments and Stock - MH'!AR14","v":21920.657843820132},{"$f":"'Shipments and Stock - MH'!AS14","v":18692.576543380641},{"$f":"'Shipments and Stock - MH'!AT14","v":17329.054289606418},{"$f":"'Shipments and Stock - MH'!AU14","v":24919.543335977},{"$f":"'Shipments and Stock - MH'!AV14","v":23182.16027619936},{"$f":"'Shipments and Stock - MH'!AW14","v":25275.184244978846},{"$f":"'Shipments and Stock - MH'!AX14","v":25012.851838337014},{"$f":"'Shipments and Stock - MH'!AY14","v":23406.66241647497},{"$f":"'Shipments and Stock - MH'!AZ14","v":23105.948127439064},{"$f":"'Shipments and Stock - MH'!BA14","v":22749.466469672698},{"$f":"'Shipments and Stock - MH'!BB14","v":23384.383867315646},{"$f":"'Shipments and Stock - MH'!BC14","v":24037.751371761799},{"$f":"'Shipments and Stock - MH'!BD14","v":25258.155357845699},{"$f":"'Shipments and Stock - MH'!BE14","v":26206.716363235071},{"$f":"'Shipments and Stock - MH'!BF14","v":27352.26759520518}]
[null,null,"Model Installed Stock",{"$f":"'Shipments and Stock - MH'!AH15","v":393800.09904204617},{"$f":"'Shipments and Stock - MH'!AI15","v":398038.86661711073},{"$f":"'Shipments and Stock - MH'!AJ15","v":403226.16598195682},{"$f":"'Shipments and Stock - MH'!AK15","v":408182.44988939731},{"$f":"'Shipments and Stock - MH'!AL15","v":412842.93074513087},{"$f":"'Shipments and Stock - MH'!AM15","v":417229.64471782232},{"$f":"'Shipments and Stock - MH'!AN15","v":421409.03313107038},{"$f":"'Shipments and Stock - MH'!AO15","v":425468.22616896714},{"$f":"'Shipments and Stock - MH'!AP15","v":429505.89282656973},{"$f":"'Shipments and Stock - MH'!AQ15","v":433616.01882160391},{"$f":"'Shipments and Stock - MH'!AR15","v":437866.81993580074},{"$f":"'Shipments and Stock - MH'!AS15","v":442297.89210068883},{"$f":"'Shipments and Stock - MH'!AT15","v":446909.88860421471},{"$f":"'Shipments and Stock - MH'!AU15","v":451665.92330669536},{"$f":"'Shipments and Stock - MH'!AV15","v":456500.67393193429},{"$f":"'Shipments and Stock - MH'!AW15","v":461332.68739302951},{"$f":"'Shipments and Stock - MH'!AX15","v":466078.93884987797},{"$f":"'Shipments and Stock - MH'!AY15","v":470670.67341885425},{"$f":"'Shipments and Stock - MH'!AZ15","v":475064.06783671508},{"$f":"'Shipments and Stock - MH'!BA15","v":479246.7137025423},{"$f":"'Shipments and Stock - MH'!BB15","v":483238.77939489821},{"$f":"'Shipments and Stock - MH'!BC15","v":487270.76574417768},{"$f":"'Shipments and Stock - MH'!BD15","v":491343.07195694995},{"$f":"'Shipments and Stock - MH'!BE15","v":495456.10123184993},{"$f":"'Shipments and Stock - MH'!BF15","v":499610.26079949894}]
[]
[]
[]
[null,null,"First Year Energy Consumption ",2010,{"$f":"D27+1","v":2011},2012,2013,2014,2015,2016,2017,2018,2019,2020,2021,2022,2023,2024,2025,2026,2027,2028,2029,2030,2031,2032,2033,2034]
[null,null,"6P Shipments * 6P UEC",{"$f":"D12*D19","v":5980819.2486028252},5964337.5970367836,5997030.1811775072,5994713.2488689581,5969091.491800325,5946208.9482363844,5942938.9962121779,5950426.9507374885,5949715.5892846454,5943921.3981132219,5966827.598946088,6008824.8622304257,6037450.8795436583,5966159.6097668065,5983970.3630834334,5968174.2739309147,5967673.4971069703,5974748.6432561213,5969872.4985469999,5964747.9066121541,5952908.8866720013,5950848.9089452317,5945273.5478684008,5941723.1355225798,5937479.2911340417]
[null,null,"Model Shipments * Model Pre-Case UEC",{"$f":"D13*D22","v":6380567.6058272347},{"$f":"E13*E22","v":6738318.9965120144},7065581.4477840029,7415910.0606507454,7852352.0637130868,8351556.1702814568,8071471.7532629948,7484833.6977388365,7494314.6422841949,7636605.4404514069,6974941.1365879066,5989660.2308405861,5579200.2100962941,7928269.7984044356,7397531.3059393866,8044134.0661939643,7959975.6340390444,7457660.4271554006,7355840.8362579085,7236137.0387256909,7423327.8363975817,7628097.5152480137,8007868.735754841,8303639.6367249647,8660419.2811279595]
[null,null,"Model Shipments * Model Post-Case UEC",{"$f":"D14*D22","v":6380567.6058272347},{"$f":"E14*E22","v":6738318.9965120144},7065581.4477840029,7415910.0606507454,7852352.0637130868,8351556.1702814568,8071471.7532629948,7484833.6977388365,7494314.6422841949,6068128.4874793356,5522851.9798906744,4711869.7852047421,4369911.4743654374,6281758.5896254815,5845777.6085640984,6374113.5418480877,6309220.757748872,5905677.5295821605,5830843.7417616146,5741897.489052467,5902718.9734256705,6068714.7383244839,6377597.3122985903,6617830.7125111055,6907942.3593094656]
[]
[null,null,"Total Energy Consumption (kWh)",2010,{"$f":"D32+1","v":2011},2012,2013,2014,2015,2016,2017,2018,2019,2020,2021,2022,2023,2024,2025,2026,2027,2028,2029,2030,2031,2032,2033,2034]
[null,null,"Modeled Pre-case Consumption \n(Installed UEC * Stock)",{"$f":"D15*D$23","v":128662172.52608617},{"$f":"E15*E$23","v":129776127.9455613},131231923.74303633,132559649.1912587,133690997.13971032,134625491.5101513,135517039.11167717,136452657.95627519,137378331.14751098,138303188.69391024,139394843.48703185,140722205.68312424,142192381.41663289,143713414.96315154,145283274.25201631,146863283.51209301,148414825.57300314,149922706.90710422,151306238.4546316,152606943.75662869,153838190.3991442,155085720.30856496,156355270.04780778,157593328.23674875,158837837.45722595]
[null,null,"Modeled Post-case Consumption \n(Installed UEC* Stock)",{"$f":"D16*D$23","v":128662172.52608617},{"$f":"E16*E$23","v":129776127.9455613},131231923.74303633,132559649.1912587,133690997.13971032,134625491.5101513,135517039.11167717,136452657.95627519,137378331.14751098,136734711.74093816,136374277.37736252,136423849.12781912,136684736.12559682,136559258.46333659,136577364.05482608,136487352.79055688,136388139.97517678,136344038.41170463,136202572.86473575,136009038.61705962,135719676.39660314,135407823.52910045,135047101.84488702,134599351.10961407,134091383.40827283]
[]
[]
[]
[null,null,"Total Energy Consumption (aMW)",2010,{"$f":"D38+1","v":2011},2012,2013,2014,2015,2016,2017,2018,2019,2020,2021,2022,2023,2024,2025,2026,2027,2028,2029,2030,2031,2032,2033,2034]
[null,null,{"$f":"C33","v":"Modeled Pre-case Consumption \n(Installed UEC * Stock)"},{"$f":"D33/Constants!$D$13/(Constants!$D$12*Constants!$D$10)","v":14.677409596861303},{"$f":"E33/Constants!$D$13/(Constants!$D$12*Constants!$D$10)","v":14.804486418612973},{"$f":"F33/Constants!$D$13/(Constants!$D$12*Constants!$D$10)","v":14.970559404863831},{"$f":"G33/Constants!$D$13/(Constants!$D$12*Constants!$D$10)","v":15.122022495010119},{"$f":"H33/Constants!$D$13/(Constants!$D$12*Constants!$D$10)","v":15.251083406309641},{"$f":"I33/Constants!$D$13/(Constants!$D$12*Constants!$D$10)","v":15.357687829129741},{"$f":"J33/Constants!$D$13/(Constants!$D$12*Constants!$D$10)","v":15.459393008404881},{"$f":"K33/Constants!$D$13/(Constants!$D$12*Constants!$D$10)","v":15.566125707993976},{"$f":"L33/Constants!$D$13/(Constants!$D$12*Constants!$D$10)","v":15.671723836129473},{"$f":"M33/Constants!$D$13/(Constants!$D$12*Constants!$D$10)","v":15.777228917854238},{"$f":"N33/Constants!$D$13/(Constants!$D$12*Constants!$D$10)","v":15.901761748463592},{"$f":"O33/Constants!$D$13/(Constants!$D$12*Constants!$D$10)","v":16.053183399854465},{"$f":"P33/Constants!$D$13/(Constants!$D$12*Constants!$D$10)","v":16.220896807738178},{"$f":"Q33/Constants!$D$13/(Constants!$D$12*Constants!$D$10)","v":16.39441192826278},{"$f":"R33/Constants!$D$13/(Constants!$D$12*Constants!$D$10)","v":16.573496948667156},{"$f":"S33/Constants!$D$13/(Constants!$D$12*Constants!$D$10)","v":16.753739848516201},{"$f":"T33/Constants!$D$13/(Constants!$D$12*Constants!$D$10)","v":16.930735292380007},{"$f":"U33/Constants!$D$13/(Constants!$D$12*Constants!$D$10)","v":17.102750046441276},{"$f":"V33/Constants!$D$13/(Constants!$D$12*Constants!$D$10)","v":17.260579335458772},{"$f":"W33/Constants!$D$13/(Constants!$D$12*Constants!$D$10)","v":17.408960045246257},{"$f":"X33/Constants!$D$13/(Constants!$D$12*Constants!$D$10)","v":17.549417111469793},{"$f":"Y33/Constants!$D$13/(Constants!$D$12*Constants!$D$10)","v":17.691731725823061},{"$f":"Z33/Constants!$D$13/(Constants!$D$12*Constants!$D$10)","v":17.836558298860115},{"$f":"AA33/Constants!$D$13/(Constants!$D$12*Constants!$D$10)","v":17.977792406656256},{"$f":"AB33/Constants!$D$13/(Constants!$D$12*Constants!$D$10)","v":18.119762429526119}]
[null,null,{"$f":"C34","v":"Modeled Post-case Consumption \n(Installed UEC* Stock)"},{"$f":"D34/Constants!$D$13/(Constants!$D$12*Constants!$D$10)","v":14.677409596861303},{"$f":"E34/Constants!$D$13/(Constants!$D$12*Constants!$D$10)","v":14.804486418612973},{"$f":"F34/Constants!$D$13/(Constants!$D$12*Constants!$D$10)","v":14.970559404863831},{"$f":"G34/Constants!$D$13/(Constants!$D$12*Constants!$D$10)","v":15.122022495010119},{"$f":"H34/Constants!$D$13/(Constants!$D$12*Constants!$D$10)","v":15.251083406309641},{"$f":"I34/Constants!$D$13/(Constants!$D$12*Constants!$D$10)","v":15.357687829129741},{"$f":"J34/Constants!$D$13/(Constants!$D$12*Constants!$D$10)","v":15.459393008404881},{"$f":"K34/Constants!$D$13/(Constants!$D$12*Constants!$D$10)","v":15.566125707993976},{"$f":"L34/Constants!$D$13/(Constants!$D$12*Constants!$D$10)","v":15.671723836129473},{"$f":"M34/Constants!$D$13/(Constants!$D$12*Constants!$D$10)","v":15.598301590342022},{"$f":"N34/Constants!$D$13/(Constants!$D$12*Constants!$D$10)","v":15.557184277590977},{"$f":"O34/Constants!$D$13/(Constants!$D$12*Constants!$D$10)","v":15.562839279924608},{"$f":"P34/Constants!$D$13/(Constants!$D$12*Constants!$D$10)","v":15.592600516267035},{"$f":"Q34/Constants!$D$13/(Constants!$D$12*Constants!$D$10)","v":15.57828638641759},{"$f":"R34/Constants!$D$13/(Constants!$D$12*Constants!$D$10)","v":15.580351820080548},{"$f":"S34/Constants!$D$13/(Constants!$D$12*Constants!$D$10)","v":15.570083594633456},{"$f":"T34/Constants!$D$13/(Constants!$D$12*Constants!$D$10)","v":15.558765682771705},{"$f":"U34/Constants!$D$13/(Constants!$D$12*Constants!$D$10)","v":15.553734703593957},{"$f":"V34/Constants!$D$13/(Constants!$D$12*Constants!$D$10)","v":15.537596721963924},{"$f":"W34/Constants!$D$13/(Constants!$D$12*Constants!$D$10)","v":15.515518893116543},{"$f":"X34/Constants!$D$13/(Constants!$D$12*Constants!$D$10)","v":15.482509285489749},{"$f":"Y34/Constants!$D$13/(Constants!$D$12*Constants!$D$10)","v":15.446934009708015},{"$f":"Z34/Constants!$D$13/(Constants!$D$12*Constants!$D$10)","v":15.405783920247208},{"$f":"AA34/Constants!$D$13/(Constants!$D$12*Constants!$D$10)","v":15.354705807621956},{"$f":"AB34/Constants!$D$13/(Constants!$D$12*Constants!$D$10)","v":15.296758317165509}]
[]
[null,null,"Savings (aMW)",2010,{"$f":"D42+1","v":2011},2012,2013,2014,2015,2016,2017,2018,2019,2020,2021,2022,2023,2024,2025,2026,2027,2028,2029,2030,2031,2032,2033,2034]
[null,null,"Incremental Savings",{"$f":"IF(AND(D42>=STANDARD_YEAR,(D42-STANDARD_YEAR)<LIFETIME_MH),\n(D13-D14)*D22,\n(D13-D14)*D21)\n/Constants!$D$13/(Constants!$D$12*Constants!$D$10)","v":0},{"$f":"IF(AND(E42>=STANDARD_YEAR,(E42-STANDARD_YEAR)<LIFETIME_MH),\n(E13-E14)*E22,\n(E13-E14)*E21)\n/Constants!$D$13/(Constants!$D$12*Constants!$D$10)","v":0},{"$f":"IF(AND(F42>=STANDARD_YEAR,(F42-STANDARD_YEAR)<LIFETIME_MH),\n(F13-F14)*F22,\n(F13-F14)*F21)\n/Constants!$D$13/(Constants!$D$12*Constants!$D$10)","v":0},{"$f":"IF(AND(G42>=STANDARD_YEAR,(G42-STANDARD_YEAR)<LIFETIME_MH),\n(G13-G14)*G22,\n(G13-G14)*G21)\n/Constants!$D$13/(Constants!$D$12*Constants!$D$10)","v":0},{"$f":"IF(AND(H42>=STANDARD_YEAR,(H42-STANDARD_YEAR)<LIFETIME_MH),\n(H13-H14)*H22,\n(H13-H14)*H21)\n/Constants!$D$13/(Constants!$D$12*Constants!$D$10)","v":0},{"$f":"IF(AND(I42>=STANDARD_YEAR,(I42-STANDARD_YEAR)<LIFETIME_MH),\n(I13-I14)*I22,\n(I13-I14)*I21)\n/Constants!$D$13/(Constants!$D$12*Constants!$D$10)","v":0},{"$f":"IF(AND(J42>=STANDARD_YEAR,(J42-STANDARD_YEAR)<LIFETIME_MH),\n(J13-J14)*J22,\n(J13-J14)*J21)\n/Constants!$D$13/(Constants!$D$12*Constants!$D$10)","v":0},{"$f":"IF(AND(K42>=STANDARD_YEAR,(K42-STANDARD_YEAR)<LIFETIME_MH),\n(K13-K14)*K22,\n(K13-K14)*K21)\n/Constants!$D$13/(Constants!$D$12*Constants!$D$10)","v":0},{"$f":"IF(AND(L42>=STANDARD_YEAR,(L42-STANDARD_YEAR)<LIFETIME_MH),\n(L13-L14)*L22,\n(L13-L14)*L21)\n/Constants!$D$13/(Constants!$D$12*Constants!$D$10)","v":0},{"$f":"IF(AND(M42>=STANDARD_YEAR,(M42-STANDARD_YEAR)<LIFETIME_MH),\n(M13-M14)*M22,\n(M13-M14)*M21)\n/Constants!$D$13/(Constants!$D$12*Constants!$D$10)","v":0.17892732751221432},{"$f":"IF(AND(N42>=STANDARD_YEAR,(N42-STANDARD_YEAR)<LIFETIME_MH),\n(N13-N14)*N22,\n(N13-N14)*N21)\n/Constants!$D$13/(Constants!$D$12*Constants!$D$10)","v":0.16565014336039616},{"$f":"IF(AND(O42>=STANDARD_YEAR,(O42-STANDARD_YEAR)<LIFETIME_MH),\n(O13-O14)*O22,\n(O13-O14)*O21)\n/Constants!$D$13/(Constants!$D$12*Constants!$D$10)","v":0.14576664905724893},{"$f":"IF(AND(P42>=STANDARD_YEAR,(P42-STANDARD_YEAR)<LIFETIME_MH),\n(P13-P14)*P22,\n(P13-P14)*P21)\n/Constants!$D$13/(Constants!$D$12*Constants!$D$10)","v":0.13795217154127953},{"$f":"IF(AND(Q42>=STANDARD_YEAR,(Q42-STANDARD_YEAR)<LIFETIME_MH),\n(Q13-Q14)*Q22,\n(Q13-Q14)*Q21)\n/Constants!$D$13/(Constants!$D$12*Constants!$D$10)","v":0.18782925037405368},{"$f":"IF(AND(R42>=STANDARD_YEAR,(R42-STANDARD_YEAR)<LIFETIME_MH),\n(R13-R14)*R22,\n(R13-R14)*R21)\n/Constants!$D$13/(Constants!$D$12*Constants!$D$10)","v":0.17701958674142007},{"$f":"IF(AND(S42>=STANDARD_YEAR,(S42-STANDARD_YEAR)<LIFETIME_MH),\n(S13-S14)*S22,\n(S13-S14)*S21)\n/Constants!$D$13/(Constants!$D$12*Constants!$D$10)","v":0.19051112529613015},{"$f":"IF(AND(T42>=STANDARD_YEAR,(T42-STANDARD_YEAR)<LIFETIME_MH),\n(T13-T14)*T22,\n(T13-T14)*T21)\n/Constants!$D$13/(Constants!$D$12*Constants!$D$10)","v":0.18831335572555016},{"$f":"IF(AND(U42>=STANDARD_YEAR,(U42-STANDARD_YEAR)<LIFETIME_MH),\n(U13-U14)*U22,\n(U13-U14)*U21)\n/Constants!$D$13/(Constants!$D$12*Constants!$D$10)","v":0.17704573323901901},{"$f":"IF(AND(V42>=STANDARD_YEAR,(V42-STANDARD_YEAR)<LIFETIME_MH),\n(V13-V14)*V22,\n(V13-V14)*V21)\n/Constants!$D$13/(Constants!$D$12*Constants!$D$10)","v":0.17396727064753523},{"$f":"IF(AND(W42>=STANDARD_YEAR,(W42-STANDARD_YEAR)<LIFETIME_MH),\n(W13-W14)*W22,\n(W13-W14)*W21)\n/Constants!$D$13/(Constants!$D$12*Constants!$D$10)","v":0.17045853863486474},{"$f":"IF(AND(X42>=STANDARD_YEAR,(X42-STANDARD_YEAR)<LIFETIME_MH),\n(X13-X14)*X22,\n(X13-X14)*X21)\n/Constants!$D$13/(Constants!$D$12*Constants!$D$10)","v":0.17346667385032069},{"$f":"IF(AND(Y42>=STANDARD_YEAR,(Y42-STANDARD_YEAR)<LIFETIME_MH),\n(Y13-Y14)*Y22,\n(Y13-Y14)*Y21)\n/Constants!$D$13/(Constants!$D$12*Constants!$D$10)","v":0.17788989013501358},{"$f":"IF(AND(Z42>=STANDARD_YEAR,(Z42-STANDARD_YEAR)<LIFETIME_MH),\n(Z13-Z14)*Z22,\n(Z13-Z14)*Z21)\n/Constants!$D$13/(Constants!$D$12*Constants!$D$10)","v":0.18597666249786104},{"$f":"IF(AND(AA42>=STANDARD_YEAR,(AA42-STANDARD_YEAR)<LIFETIME_MH),\n(AA13-AA14)*AA22,\n(AA13-AA14)*AA21)\n/Constants!$D$13/(Constants!$D$12*Constants!$D$10)","v":0.19231222042138488},{"$f":"IF(AND(AB42>=STANDARD_YEAR,(AB42-STANDARD_YEAR)<LIFETIME_MH),\n(AB13-AB14)*AB22,\n(AB13-AB14)*AB21)\n/Constants!$D$13/(Constants!$D$12*Constants!$D$10)","v":0.19991751332631683}]
[null,null,"Cumulative Savings",{"$f":"D39-D40","v":0},0,0,0,0,0,0,0,0,0.17892732751221629,0.34457747087261481,0.4903441199298566,0.62829629147114296,0.81612554184519048,0.99314512858660819,1.1836562538827451,1.3719696096083016,1.5490153428473192,1.7229826134948478,1.8934411521297143,2.066907825980044,2.2447977161150465,2.4307743786129077,2.6230865990343002,2.8230041123606107]
[null,null,"DOE Aggregate Lifecycle Savings (formerly DOE Carbon proxy)",{"$f":"SUM($D$44:D44)","v":0},{"$f":"SUM($D$44:E44)","v":0},{"$f":"SUM($D$44:F44)","v":0},{"$f":"SUM($D$44:G44)","v":0},{"$f":"SUM($D$44:H44)","v":0},{"$f":"SUM($D$44:I44)","v":0},{"$f":"SUM($D$44:J44)","v":0},{"$f":"SUM($D$44:K44)","v":0},{"$f":"SUM($D$44:L44)","v":0},{"$f":"SUM($D$44:M44)","v":0.17892732751221629},{"$f":"SUM($D$44:N44)","v":0.5235047983848311},{"$f":"SUM($D$44:O44)","v":1.0138489183146877},{"$f":"SUM($D$44:P44)","v":1.6421452097858307},{"$f":"SUM($D$44:Q44)","v":2.4582707516310212},{"$f":"SUM($D$44:R44)","v":3.4514158802176294},{"$f":"SUM($D$44:S44)","v":4.6350721341003744},{"$f":"SUM($D$44:T44)","v":6.0070417437086761},{"$f":"SUM($D$44:U44)","v":7.5560570865559953},{"$f":"SUM($D$44:V44)","v":9.2790397000508431},{"$f":"SUM($D$44:W44)","v":11.172480852180557},{"$f":"SUM($D$44:X44)","v":13.239388678160601},{"$f":"SUM($D$44:Y44)","v":15.484186394275648},{"$f":"SUM($D$44:Z44)","v":17.914960772888556},{"$f":"SUM($D$44:AA44)","v":20.538047371922858},{"$f":"SUM($D$44:AB44)","v":23.361051484283468}]
[null,null,"Check",{"$f":"IF(ISNUMBER(C44),ROUND((D44-C44-D43),3),0)","v":0},{"$f":"IF(ISNUMBER(D44),ROUND((E44-D44-E43),3),0)","v":0},0,0,0,0,0,0,0,0,0,0,0,0,0,0,0,0,0,0,0,0,0,0,0]

{"sheet":"Results-TH","index":27,"n_rows":46,"n_cols":28,"rows_kept":46,"cut":false,"hidden":false,"merged":[]}
[]
[null,null,"RESULTS - Total Homes"]
[]
[null,null,"NAVIGATION"]
[]
[null,null,"COMMENTS"]
[]
[]
[null,null,"TOTAL HOMES"]
[]
[null,null,"Unit Energy Consumption (kWh/year) ",2010,{"$f":"D11+1","v":2011},2012,2013,2014,2015,2016,2017,2018,2019,2020,2021,2022,2023,2024,2025,2026,2027,2028,2029,2030,2031,2032,2033,2034]
[null,null,"6P UEC*",{"$f":"(('Results-SF'!D12*'Results-SF'!D19)+('Results-MF'!D12*'Results-MF'!D19)+('Results-MH'!D12*'Results-MH'!D19))\n/\n('Results-SF'!D19+'Results-MF'!D19+'Results-MH'!D19)","v":734.62746283220247},{"$f":"(('Results-SF'!E12*'Results-SF'!E19)+('Results-MF'!E12*'Results-MF'!E19)+('Results-MH'!E12*'Results-MH'!E19))\n/\n('Results-SF'!E19+'Results-MF'!E19+'Results-MH'!E19)","v":736.51126758074474},{"$f":"(('Results-SF'!F12*'Results-SF'!F19)+('Results-MF'!F12*'Results-MF'!F19)+('Results-MH'!F12*'Results-MH'!F19))\n/\n('Results-SF'!F19+'Results-MF'!F19+'Results-MH'!F19)","v":765.42630608821025},{"$f":"(('Results-SF'!G12*'Results-SF'!G19)+('Results-MF'!G12*'Results-MF'!G19)+('Results-MH'!G12*'Results-MH'!G19))\n/\n('Results-SF'!G19+'Results-MF'!G19+'Results-MH'!G19)","v":764.13349508764816},{"$f":"(('Results-SF'!H12*'Results-SF'!H19)+('Results-MF'!H12*'Results-MF'!H19)+('Results-MH'!H12*'Results-MH'!H19))\n/\n('Results-SF'!H19+'Results-MF'!H19+'Results-MH'!H19)","v":768.15572236808032},{"$f":"(('Results-SF'!I12*'Results-SF'!I19)+('Results-MF'!I12*'Results-MF'!I19)+('Results-MH'!I12*'Results-MH'!I19))\n/\n('Results-SF'!I19+'Results-MF'!I19+'Results-MH'!I19)","v":767.57565586228566},{"$f":"(('Results-SF'!J12*'Results-SF'!J19)+('Results-MF'!J12*'Results-MF'!J19)+('Results-MH'!J12*'Results-MH'!J19))\n/\n('Results-SF'!J19+'Results-MF'!J19+'Results-MH'!J19)","v":768.63381426921808},{"$f":"(('Results-SF'!K12*'Results-SF'!K19)+('Results-MF'!K12*'Results-MF'!K19)+('Results-MH'!K12*'Results-MH'!K19))\n/\n('Results-SF'!K19+'Results-MF'!K19+'Results-MH'!K19)","v":767.66169857900707},{"$f":"(('Results-SF'!L12*'Results-SF'!L19)+('Results-MF'!L12*'Results-MF'!L19)+('Results-MH'!L12*'Results-MH'!L19))\n/\n('Results-SF'!L19+'Results-MF'!L19+'Results-MH'!L19)","v":768.37532878240154},{"$f":"(('Results-SF'!M12*'Results-SF'!M19)+('Results-MF'!M12*'Results-MF'!M19)+('Results-MH'!M12*'Results-MH'!M19))\n/\n('Results-SF'!M19+'Results-MF'!M19+'Results-MH'!M19)","v":767.0838731596416},{"$f":"(('Results-SF'!N12*'Results-SF'!N19)+('Results-MF'!N12*'Results-MF'!N19)+('Results-MH'!N12*'Results-MH'!N19))\n/\n('Results-SF'!N19+'Results-MF'!N19+'Results-MH'!N19)","v":767.42524386399259},{"$f":"(('Results-SF'!O12*'Results-SF'!O19)+('Results-MF'!O12*'Results-MF'!O19)+('Results-MH'!O12*'Results-MH'!O19))\n/\n('Results-SF'!O19+'Results-MF'!O19+'Results-MH'!O19)","v":768.16973573777466},{"$f":"(('Results-SF'!P12*'Results-SF'!P19)+('Results-MF'!P12*'Results-MF'!P19)+('Results-MH'!P12*'Results-MH'!P19))\n/\n('Results-SF'!P19+'Results-MF'!P19+'Results-MH'!P19)","v":768.04668662167046},{"$f":"(('Results-SF'!Q12*'Results-SF'!Q19)+('Results-MF'!Q12*'Results-MF'!Q19)+('Results-MH'!Q12*'Results-MH'!Q19))\n/\n('Results-SF'!Q19+'Results-MF'!Q19+'Results-MH'!Q19)","v":760.83406965942709},{"$f":"(('Results-SF'!R12*'Results-SF'!R19)+('Results-MF'!R12*'Results-MF'!R19)+('Results-MH'!R12*'Results-MH'!R19))\n/\n('Results-SF'!R19+'Results-MF'!R19+'Results-MH'!R19)","v":761.26361701088047},{"$f":"(('Results-SF'!S12*'Results-SF'!S19)+('Results-MF'!S12*'Results-MF'!S19)+('Results-MH'!S12*'Results-MH'!S19))\n/\n('Results-SF'!S19+'Results-MF'!S19+'Results-MH'!S19)","v":759.02897612957304},{"$f":"(('Results-SF'!T12*'Results-SF'!T19)+('Results-MF'!T12*'Results-MF'!T19)+('Results-MH'!T12*'Results-MH'!T19))\n/\n('Results-SF'!T19+'Results-MF'!T19+'Results-MH'!T19)","v":758.04362459068545},{"$f":"(('Results-SF'!U12*'Results-SF'!U19)+('Results-MF'!U12*'Results-MF'!U19)+('Results-MH'!U12*'Results-MH'!U19))\n/\n('Results-SF'!U19+'Results-MF'!U19+'Results-MH'!U19)","v":758.36962175359906},{"$f":"(('Results-SF'!V12*'Results-SF'!V19)+('Results-MF'!V12*'Results-MF'!V19)+('Results-MH'!V12*'Results-MH'!V19))\n/\n('Results-SF'!V19+'Results-MF'!V19+'Results-MH'!V19)","v":759.3875087139005},{"$f":"(('Results-SF'!W12*'Results-SF'!W19)+('Results-MF'!W12*'Results-MF'!W19)+('Results-MH'!W12*'Results-MH'!W19))\n/\n('Results-SF'!W19+'Results-MF'!W19+'Results-MH'!W19)","v":761.76832741557757},{"$f":"(('Results-SF'!X12*'Results-SF'!X19)+('Results-MF'!X12*'Results-MF'!X19)+('Results-MH'!X12*'Results-MH'!X19))\n/\n('Results-SF'!X19+'Results-MF'!X19+'Results-MH'!X19)","v":761.92212655662058},{"$f":"(('Results-SF'!Y12*'Results-SF'!Y19)+('Results-MF'!Y12*'Results-MF'!Y19)+('Results-MH'!Y12*'Results-MH'!Y19))\n/\n('Results-SF'!Y19+'Results-MF'!Y19+'Results-MH'!Y19)","v":758.41307626409537},{"$f":"(('Results-SF'!Z12*'Results-SF'!Z19)+('Results-MF'!Z12*'Results-MF'!Z19)+('Results-MH'!Z12*'Results-MH'!Z19))\n/\n('Results-SF'!Z19+'Results-MF'!Z19+'Results-MH'!Z19)","v":756.03868717991497},{"$f":"(('Results-SF'!AA12*'Results-SF'!AA19)+('Results-MF'!AA12*'Results-MF'!AA19)+('Results-MH'!AA12*'Results-MH'!AA19))\n/\n('Results-SF'!AA19+'Results-MF'!AA19+'Results-MH'!AA19)","v":751.16016804029789},{"$f":"(('Results-SF'!AB12*'Results-SF'!AB19)+('Results-MF'!AB12*'Results-MF'!AB19)+('Results-MH'!AB12*'Results-MH'!AB19))\n/\n('Results-SF'!AB19+'Results-MF'!AB19+'Results-MH'!AB19)","v":750.04228659701562}]
[null,null,{"$f":"'UEC-SF'!$C$9&\" - \"&'UEC-SF'!C11","v":"Market UEC (Shipment Weighted Average) - PRE-Case UEC"},{"$f":"(('Results-SF'!D13*'Results-SF'!D$22)+('Results-MF'!D13*'Results-MF'!D$22)+('Results-MH'!D13*'Results-MH'!D$22))\n/\n('Results-SF'!D$22+'Results-MF'!D$22+'Results-MH'!D$22)","v":731.38919028437192},{"$f":"(('Results-SF'!E13*'Results-SF'!E$22)+('Results-MF'!E13*'Results-MF'!E$22)+('Results-MH'!E13*'Results-MH'!E$22))\n/\n('Results-SF'!E$22+'Results-MF'!E$22+'Results-MH'!E$22)","v":736.00277519629446},{"$f":"(('Results-SF'!F13*'Results-SF'!F$22)+('Results-MF'!F13*'Results-MF'!F$22)+('Results-MH'!F13*'Results-MH'!F$22))\n/\n('Results-SF'!F$22+'Results-MF'!F$22+'Results-MH'!F$22)","v":776.17503301550403},{"$f":"(('Results-SF'!G13*'Results-SF'!G$22)+('Results-MF'!G13*'Results-MF'!G$22)+('Results-MH'!G13*'Results-MH'!G$22))\n/\n('Results-SF'!G$22+'Results-MF'!G$22+'Results-MH'!G$22)","v":775.07357588601121},{"$f":"(('Results-SF'!H13*'Results-SF'!H$22)+('Results-MF'!H13*'Results-MF'!H$22)+('Results-MH'!H13*'Results-MH'!H$22))\n/\n('Results-SF'!H$22+'Results-MF'!H$22+'Results-MH'!H$22)","v":767.46885112748021},{"$f":"(('Results-SF'!I13*'Results-SF'!I$22)+('Results-MF'!I13*'Results-MF'!I$22)+('Results-MH'!I13*'Results-MH'!I$22))\n/\n('Results-SF'!I$22+'Results-MF'!I$22+'Results-MH'!I$22)","v":763.48129928281821},{"$f":"(('Results-SF'!J13*'Results-SF'!J$22)+('Results-MF'!J13*'Results-MF'!J$22)+('Results-MH'!J13*'Results-MH'!J$22))\n/\n('Results-SF'!J$22+'Results-MF'!J$22+'Results-MH'!J$22)","v":764.25118157822533},{"$f":"(('Results-SF'!K13*'Results-SF'!K$22)+('Results-MF'!K13*'Results-MF'!K$22)+('Results-MH'!K13*'Results-MH'!K$22))\n/\n('Results-SF'!K$22+'Results-MF'!K$22+'Results-MH'!K$22)","v":768.34670052495824},{"$f":"(('Results-SF'!L13*'Results-SF'!L$22)+('Results-MF'!L13*'Results-MF'!L$22)+('Results-MH'!L13*'Results-MH'!L$22))\n/\n('Results-SF'!L$22+'Results-MF'!L$22+'Results-MH'!L$22)","v":768.06752068597893},{"$f":"(('Results-SF'!M13*'Results-SF'!M$22)+('Results-MF'!M13*'Results-MF'!M$22)+('Results-MH'!M13*'Results-MH'!M$22))\n/\n('Results-SF'!M$22+'Results-MF'!M$22+'Results-MH'!M$22)","v":765.4542847832389},{"$f":"(('Results-SF'!N13*'Results-SF'!N$22)+('Results-MF'!N13*'Results-MF'!N$22)+('Results-MH'!N13*'Results-MH'!N$22))\n/\n('Results-SF'!N$22+'Results-MF'!N$22+'Results-MH'!N$22)","v":770.47195036396363},{"$f":"(('Results-SF'!O13*'Results-SF'!O$22)+('Results-MF'!O13*'Results-MF'!O$22)+('Results-MH'!O13*'Results-MH'!O$22))\n/\n('Results-SF'!O$22+'Results-MF'!O$22+'Results-MH'!O$22)","v":778.17658844929508},{"$f":"(('Results-SF'!P13*'Results-SF'!P$22)+('Results-MF'!P13*'Results-MF'!P$22)+('Results-MH'!P13*'Results-MH'!P$22))\n/\n('Results-SF'!P$22+'Results-MF'!P$22+'Results-MH'!P$22)","v":781.83298092934808},{"$f":"(('Results-SF'!Q13*'Results-SF'!Q$22)+('Results-MF'!Q13*'Results-MF'!Q$22)+('Results-MH'!Q13*'Results-MH'!Q$22))\n/\n('Results-SF'!Q$22+'Results-MF'!Q$22+'Results-MH'!Q$22)","v":764.49863968799536},{"$f":"(('Results-SF'!R13*'Results-SF'!R$22)+('Results-MF'!R13*'Results-MF'!R$22)+('Results-MH'!R13*'Results-MH'!R$22))\n/\n('Results-SF'!R$22+'Results-MF'!R$22+'Results-MH'!R$22)","v":767.37424618705074},{"$f":"(('Results-SF'!S13*'Results-SF'!S$22)+('Results-MF'!S13*'Results-MF'!S$22)+('Results-MH'!S13*'Results-MH'!S$22))\n/\n('Results-SF'!S$22+'Results-MF'!S$22+'Results-MH'!S$22)","v":763.65473529299504},{"$f":"(('Results-SF'!T13*'Results-SF'!T$22)+('Results-MF'!T13*'Results-MF'!T$22)+('Results-MH'!T13*'Results-MH'!T$22))\n/\n('Results-SF'!T$22+'Results-MF'!T$22+'Results-MH'!T$22)","v":764.14589926255462},{"$f":"(('Results-SF'!U13*'Results-SF'!U$22)+('Results-MF'!U13*'Results-MF'!U$22)+('Results-MH'!U13*'Results-MH'!U$22))\n/\n('Results-SF'!U$22+'Results-MF'!U$22+'Results-MH'!U$22)","v":765.8298612059649},{"$f":"(('Results-SF'!V13*'Results-SF'!V$22)+('Results-MF'!V13*'Results-MF'!V$22)+('Results-MH'!V13*'Results-MH'!V$22))\n/\n('Results-SF'!V$22+'Results-MF'!V$22+'Results-MH'!V$22)","v":763.35061736849605},{"$f":"(('Results-SF'!W13*'Results-SF'!W$22)+('Results-MF'!W13*'Results-MF'!W$22)+('Results-MH'!W13*'Results-MH'!W$22))\n/\n('Results-SF'!W$22+'Results-MF'!W$22+'Results-MH'!W$22)","v":760.00845942793762},{"$f":"(('Results-SF'!X13*'Results-SF'!X$22)+('Results-MF'!X13*'Results-MF'!X$22)+('Results-MH'!X13*'Results-MH'!X$22))\n/\n('Results-SF'!X$22+'Results-MF'!X$22+'Results-MH'!X$22)","v":756.99012106805958},{"$f":"(('Results-SF'!Y13*'Results-SF'!Y$22)+('Results-MF'!Y13*'Results-MF'!Y$22)+('Results-MH'!Y13*'Results-MH'!Y$22))\n/\n('Results-SF'!Y$22+'Results-MF'!Y$22+'Results-MH'!Y$22)","v":759.07264891825707},{"$f":"(('Results-SF'!Z13*'Results-SF'!Z$22)+('Results-MF'!Z13*'Results-MF'!Z$22)+('Results-MH'!Z13*'Results-MH'!Z$22))\n/\n('Results-SF'!Z$22+'Results-MF'!Z$22+'Results-MH'!Z$22)","v":758.75121067843691},{"$f":"(('Results-SF'!AA13*'Results-SF'!AA$22)+('Results-MF'!AA13*'Results-MF'!AA$22)+('Results-MH'!AA13*'Results-MH'!AA$22))\n/\n('Results-SF'!AA$22+'Results-MF'!AA$22+'Results-MH'!AA$22)","v":762.59779869496333},{"$f":"(('Results-SF'!AB13*'Results-SF'!AB$22)+('Results-MF'!AB13*'Results-MF'!AB$22)+('Results-MH'!AB13*'Results-MH'!AB$22))\n/\n('Results-SF'!AB$22+'Results-MF'!AB$22+'Results-MH'!AB$22)","v":761.58935458595874}]
[null,null,{"$f":"'UEC-SF'!$C$9&\" - \"&'UEC-SF'!C12","v":"Market UEC (Shipment Weighted Average) - POST-Case UEC"},{"$f":"(('Results-SF'!D14*'Results-SF'!D$22)+('Results-MF'!D14*'Results-MF'!D$22)+('Results-MH'!D14*'Results-MH'!D$22))\n/\n('Results-SF'!D$22+'Results-MF'!D$22+'Results-MH'!D$22)","v":731.38919028437192},{"$f":"(('Results-SF'!E14*'Results-SF'!E$22)+('Results-MF'!E14*'Results-MF'!E$22)+('Results-MH'!E14*'Results-MH'!E$22))\n/\n('Results-SF'!E$22+'Results-MF'!E$22+'Results-MH'!E$22)","v":736.00277519629446},{"$f":"(('Results-SF'!F14*'Results-SF'!F$22)+('Results-MF'!F14*'Results-MF'!F$22)+('Results-MH'!F14*'Results-MH'!F$22))\n/\n('Results-SF'!F$22+'Results-MF'!F$22+'Results-MH'!F$22)","v":776.17503301550403},{"$f":"(('Results-SF'!G14*'Results-SF'!G$22)+('Results-MF'!G14*'Results-MF'!G$22)+('Results-MH'!G14*'Results-MH'!G$22))\n/\n('Results-SF'!G$22+'Results-MF'!G$22+'Results-MH'!G$22)","v":775.07357588601121},{"$f":"(('Results-SF'!H14*'Results-SF'!H$22)+('Results-MF'!H14*'Results-MF'!H$22)+('Results-MH'!H14*'Results-MH'!H$22))\n/\n('Results-SF'!H$22+'Results-MF'!H$22+'Results-MH'!H$22)","v":767.46885112748021},{"$f":"(('Results-SF'!I14*'Results-SF'!I$22)+('Results-MF'!I14*'Results-MF'!I$22)+('Results-MH'!I14*'Results-MH'!I$22))\n/\n('Results-SF'!I$22+'Results-MF'!I$22+'Results-MH'!I$22)","v":763.48129928281833},{"$f":"(('Results-SF'!J14*'Results-SF'!J$22)+('Results-MF'!J14*'Results-MF'!J$22)+('Results-MH'!J14*'Results-MH'!J$22))\n/\n('Results-SF'!J$22+'Results-MF'!J$22+'Results-MH'!J$22)","v":764.25118157822533},{"$f":"(('Results-SF'!K14*'Results-SF'!K$22)+('Results-MF'!K14*'Results-MF'!K$22)+('Results-MH'!K14*'Results-MH'!K$22))\n/\n('Results-SF'!K$22+'Results-MF'!K$22+'Results-MH'!K$22)","v":768.34670052495824},{"$f":"(('Results-SF'!L14*'Results-SF'!L$22)+('Results-MF'!L14*'Results-MF'!L$22)+('Results-MH'!L14*'Results-MH'!L$22))\n/\n('Results-SF'!L$22+'Results-MF'!L$22+'Results-MH'!L$22)","v":768.06752068597893},{"$f":"(('Results-SF'!M14*'Results-SF'!M$22)+('Results-MF'!M14*'Results-MF'!M$22)+('Results-MH'!M14*'Results-MH'!M$22))\n/\n('Results-SF'!M$22+'Results-MF'!M$22+'Results-MH'!M$22)","v":517.29254179492591},{"$f":"(('Results-SF'!N14*'Results-SF'!N$22)+('Results-MF'!N14*'Results-MF'!N$22)+('Results-MH'!N14*'Results-MH'!N$22))\n/\n('Results-SF'!N$22+'Results-MF'!N$22+'Results-MH'!N$22)","v":520.1681275592648},{"$f":"(('Results-SF'!O14*'Results-SF'!O$22)+('Results-MF'!O14*'Results-MF'!O$22)+('Results-MH'!O14*'Results-MH'!O$22))\n/\n('Results-SF'!O$22+'Results-MF'!O$22+'Results-MH'!O$22)","v":524.69871944739566},{"$f":"(('Results-SF'!P14*'Results-SF'!P$22)+('Results-MF'!P14*'Results-MF'!P$22)+('Results-MH'!P14*'Results-MH'!P$22))\n/\n('Results-SF'!P$22+'Results-MF'!P$22+'Results-MH'!P$22)","v":526.26416657977495},{"$f":"(('Results-SF'!Q14*'Results-SF'!Q$22)+('Results-MF'!Q14*'Results-MF'!Q$22)+('Results-MH'!Q14*'Results-MH'!Q$22))\n/\n('Results-SF'!Q$22+'Results-MF'!Q$22+'Results-MH'!Q$22)","v":519.80176676293593},{"$f":"(('Results-SF'!R14*'Results-SF'!R$22)+('Results-MF'!R14*'Results-MF'!R$22)+('Results-MH'!R14*'Results-MH'!R$22))\n/\n('Results-SF'!R$22+'Results-MF'!R$22+'Results-MH'!R$22)","v":521.62922373218066},{"$f":"(('Results-SF'!S14*'Results-SF'!S$22)+('Results-MF'!S14*'Results-MF'!S$22)+('Results-MH'!S14*'Results-MH'!S$22))\n/\n('Results-SF'!S$22+'Results-MF'!S$22+'Results-MH'!S$22)","v":520.91301065583832},{"$f":"(('Results-SF'!T14*'Results-SF'!T$22)+('Results-MF'!T14*'Results-MF'!T$22)+('Results-MH'!T14*'Results-MH'!T$22))\n/\n('Results-SF'!T$22+'Results-MF'!T$22+'Results-MH'!T$22)","v":521.88867452423199},{"$f":"(('Results-SF'!U14*'Results-SF'!U$22)+('Results-MF'!U14*'Results-MF'!U$22)+('Results-MH'!U14*'Results-MH'!U$22))\n/\n('Results-SF'!U$22+'Results-MF'!U$22+'Results-MH'!U$22)","v":522.79794360690687},{"$f":"(('Results-SF'!V14*'Results-SF'!V$22)+('Results-MF'!V14*'Results-MF'!V$22)+('Results-MH'!V14*'Results-MH'!V$22))\n/\n('Results-SF'!V$22+'Results-MF'!V$22+'Results-MH'!V$22)","v":521.03214970693227},{"$f":"(('Results-SF'!W14*'Results-SF'!W$22)+('Results-MF'!W14*'Results-MF'!W$22)+('Results-MH'!W14*'Results-MH'!W$22))\n/\n('Results-SF'!W$22+'Results-MF'!W$22+'Results-MH'!W$22)","v":517.96986512948979},{"$f":"(('Results-SF'!X14*'Results-SF'!X$22)+('Results-MF'!X14*'Results-MF'!X$22)+('Results-MH'!X14*'Results-MH'!X$22))\n/\n('Results-SF'!X$22+'Results-MF'!X$22+'Results-MH'!X$22)","v":516.32107208027981},{"$f":"(('Results-SF'!Y14*'Results-SF'!Y$22)+('Results-MF'!Y14*'Results-MF'!Y$22)+('Results-MH'!Y14*'Results-MH'!Y$22))\n/\n('Results-SF'!Y$22+'Results-MF'!Y$22+'Results-MH'!Y$22)","v":519.66175485145789},{"$f":"(('Results-SF'!Z14*'Results-SF'!Z$22)+('Results-MF'!Z14*'Results-MF'!Z$22)+('Results-MH'!Z14*'Results-MH'!Z$22))\n/\n('Results-SF'!Z$22+'Results-MF'!Z$22+'Results-MH'!Z$22)","v":521.12801327558327},{"$f":"(('Results-SF'!AA14*'Results-SF'!AA$22)+('Results-MF'!AA14*'Results-MF'!AA$22)+('Results-MH'!AA14*'Results-MH'!AA$22))\n/\n('Results-SF'!AA$22+'Results-MF'!AA$22+'Results-MH'!AA$22)","v":526.28296795120684},{"$f":"(('Results-SF'!AB14*'Results-SF'!AB$22)+('Results-MF'!AB14*'Results-MF'!AB$22)+('Results-MH'!AB14*'Results-MH'!AB$22))\n/\n('Results-SF'!AB$22+'Results-MF'!AB$22+'Results-MH'!AB$22)","v":526.55966845306455}]
[null,null,{"$f":"'UEC-SF'!$C$14&\" - \"&'UEC-SF'!C16","v":"Installed UEC (Vintage Weighted Average)  - PRE-Case UEC"},{"$f":"(('Results-SF'!D15*'Results-SF'!D$22)+('Results-MF'!D15*'Results-MF'!D$22)+('Results-MH'!D15*'Results-MH'!D$22))\n/\n('Results-SF'!D$22+'Results-MF'!D$22+'Results-MH'!D$22)","v":751.0629710343477},{"$f":"(('Results-SF'!E15*'Results-SF'!E$22)+('Results-MF'!E15*'Results-MF'!E$22)+('Results-MH'!E15*'Results-MH'!E$22))\n/\n('Results-SF'!E$22+'Results-MF'!E$22+'Results-MH'!E$22)","v":751.78465119678015},{"$f":"(('Results-SF'!F15*'Results-SF'!F$22)+('Results-MF'!F15*'Results-MF'!F$22)+('Results-MH'!F15*'Results-MH'!F$22))\n/\n('Results-SF'!F$22+'Results-MF'!F$22+'Results-MH'!F$22)","v":762.52355452269182},{"$f":"(('Results-SF'!G15*'Results-SF'!G$22)+('Results-MF'!G15*'Results-MF'!G$22)+('Results-MH'!G15*'Results-MH'!G$22))\n/\n('Results-SF'!G$22+'Results-MF'!G$22+'Results-MH'!G$22)","v":762.24941535870744},{"$f":"(('Results-SF'!H15*'Results-SF'!H$22)+('Results-MF'!H15*'Results-MF'!H$22)+('Results-MH'!H15*'Results-MH'!H$22))\n/\n('Results-SF'!H$22+'Results-MF'!H$22+'Results-MH'!H$22)","v":751.75882265772555},{"$f":"(('Results-SF'!I15*'Results-SF'!I$22)+('Results-MF'!I15*'Results-MF'!I$22)+('Results-MH'!I15*'Results-MH'!I$22))\n/\n('Results-SF'!I$22+'Results-MF'!I$22+'Results-MH'!I$22)","v":748.8895364208779},{"$f":"(('Results-SF'!J15*'Results-SF'!J$22)+('Results-MF'!J15*'Results-MF'!J$22)+('Results-MH'!J15*'Results-MH'!J$22))\n/\n('Results-SF'!J$22+'Results-MF'!J$22+'Results-MH'!J$22)","v":749.27500360793124},{"$f":"(('Results-SF'!K15*'Results-SF'!K$22)+('Results-MF'!K15*'Results-MF'!K$22)+('Results-MH'!K15*'Results-MH'!K$22))\n/\n('Results-SF'!K$22+'Results-MF'!K$22+'Results-MH'!K$22)","v":754.7458144111298},{"$f":"(('Results-SF'!L15*'Results-SF'!L$22)+('Results-MF'!L15*'Results-MF'!L$22)+('Results-MH'!L15*'Results-MH'!L$22))\n/\n('Results-SF'!L$22+'Results-MF'!L$22+'Results-MH'!L$22)","v":754.45806726018895},{"$f":"(('Results-SF'!M15*'Results-SF'!M$22)+('Results-MF'!M15*'Results-MF'!M$22)+('Results-MH'!M15*'Results-MH'!M$22))\n/\n('Results-SF'!M$22+'Results-MF'!M$22+'Results-MH'!M$22)","v":753.70133703212935},{"$f":"(('Results-SF'!N15*'Results-SF'!N$22)+('Results-MF'!N15*'Results-MF'!N$22)+('Results-MH'!N15*'Results-MH'!N$22))\n/\n('Results-SF'!N$22+'Results-MF'!N$22+'Results-MH'!N$22)","v":758.95545264076918},{"$f":"(('Results-SF'!O15*'Results-SF'!O$22)+('Results-MF'!O15*'Results-MF'!O$22)+('Results-MH'!O15*'Results-MH'!O$22))\n/\n('Results-SF'!O$22+'Results-MF'!O$22+'Results-MH'!O$22)","v":766.72308889586759},{"$f":"(('Results-SF'!P15*'Results-SF'!P$22)+('Results-MF'!P15*'Results-MF'!P$22)+('Results-MH'!P15*'Results-MH'!P$22))\n/\n('Results-SF'!P$22+'Results-MF'!P$22+'Results-MH'!P$22)","v":771.33069165995255},{"$f":"(('Results-SF'!Q15*'Results-SF'!Q$22)+('Results-MF'!Q15*'Results-MF'!Q$22)+('Results-MH'!Q15*'Results-MH'!Q$22))\n/\n('Results-SF'!Q$22+'Results-MF'!Q$22+'Results-MH'!Q$22)","v":761.77450992584374},{"$f":"(('Results-SF'!R15*'Results-SF'!R$22)+('Results-MF'!R15*'Results-MF'!R$22)+('Results-MH'!R15*'Results-MH'!R$22))\n/\n('Results-SF'!R$22+'Results-MF'!R$22+'Results-MH'!R$22)","v":764.67680806644535},{"$f":"(('Results-SF'!S15*'Results-SF'!S$22)+('Results-MF'!S15*'Results-MF'!S$22)+('Results-MH'!S15*'Results-MH'!S$22))\n/\n('Results-SF'!S$22+'Results-MF'!S$22+'Results-MH'!S$22)","v":763.49977566587131},{"$f":"(('Results-SF'!T15*'Results-SF'!T$22)+('Results-MF'!T15*'Results-MF'!T$22)+('Results-MH'!T15*'Results-MH'!T$22))\n/\n('Results-SF'!T$22+'Results-MF'!T$22+'Results-MH'!T$22)","v":765.01845025543275},{"$f":"(('Results-SF'!U15*'Results-SF'!U$22)+('Results-MF'!U15*'Results-MF'!U$22)+('Results-MH'!U15*'Results-MH'!U$22))\n/\n('Results-SF'!U$22+'Results-MF'!U$22+'Results-MH'!U$22)","v":766.68813137022596},{"$f":"(('Results-SF'!V15*'Results-SF'!V$22)+('Results-MF'!V15*'Results-MF'!V$22)+('Results-MH'!V15*'Results-MH'!V$22))\n/\n('Results-SF'!V$22+'Results-MF'!V$22+'Results-MH'!V$22)","v":763.94694085188451},{"$f":"(('Results-SF'!W15*'Results-SF'!W$22)+('Results-MF'!W15*'Results-MF'!W$22)+('Results-MH'!W15*'Results-MH'!W$22))\n/\n('Results-SF'!W$22+'Results-MF'!W$22+'Results-MH'!W$22)","v":759.15649319678289},{"$f":"(('Results-SF'!X15*'Results-SF'!X$22)+('Results-MF'!X15*'Results-MF'!X$22)+('Results-MH'!X15*'Results-MH'!X$22))\n/\n('Results-SF'!X$22+'Results-MF'!X$22+'Results-MH'!X$22)","v":756.89550166926438},{"$f":"(('Results-SF'!Y15*'Results-SF'!Y$22)+('Results-MF'!Y15*'Results-MF'!Y$22)+('Results-MH'!Y15*'Results-MH'!Y$22))\n/\n('Results-SF'!Y$22+'Results-MF'!Y$22+'Results-MH'!Y$22)","v":763.36234006275436},{"$f":"(('Results-SF'!Z15*'Results-SF'!Z$22)+('Results-MF'!Z15*'Results-MF'!Z$22)+('Results-MH'!Z15*'Results-MH'!Z$22))\n/\n('Results-SF'!Z$22+'Results-MF'!Z$22+'Results-MH'!Z$22)","v":766.12322110277921},{"$f":"(('Results-SF'!AA15*'Results-SF'!AA$22)+('Results-MF'!AA15*'Results-MF'!AA$22)+('Results-MH'!AA15*'Results-MH'!AA$22))\n/\n('Results-SF'!AA$22+'Results-MF'!AA$22+'Results-MH'!AA$22)","v":774.31336689165983},{"$f":"(('Results-SF'!AB15*'Results-SF'!AB$22)+('Results-MF'!AB15*'Results-MF'!AB$22)+('Results-MH'!AB15*'Results-MH'!AB$22))\n/\n('Results-SF'!AB$22+'Results-MF'!AB$22+'Results-MH'!AB$22)","v":773.5530184146603}]
[null,null,{"$f":"'UEC-SF'!$C$14&\" - \"&'UEC-SF'!C17","v":"Installed UEC (Vintage Weighted Average)  - POST-Case UEC"},{"$f":"(('Results-SF'!D16*'Results-SF'!D$22)+('Results-MF'!D16*'Results-MF'!D$22)+('Results-MH'!D16*'Results-MH'!D$22))\n/\n('Results-SF'!D$22+'Results-MF'!D$22+'Results-MH'!D$22)","v":751.0629710343477},{"$f":"(('Results-SF'!E16*'Results-SF'!E$22)+('Results-MF'!E16*'Results-MF'!E$22)+('Results-MH'!E16*'Results-MH'!E$22))\n/\n('Results-SF'!E$22+'Results-MF'!E$22+'Results-MH'!E$22)","v":751.78465119678015},{"$f":"(('Results-SF'!F16*'Results-SF'!F$22)+('Results-MF'!F16*'Results-MF'!F$22)+('Results-MH'!F16*'Results-MH'!F$22))\n/\n('Results-SF'!F$22+'Results-MF'!F$22+'Results-MH'!F$22)","v":762.52355452269182},{"$f":"(('Results-SF'!G16*'Results-SF'!G$22)+('Results-MF'!G16*'Results-MF'!G$22)+('Results-MH'!G16*'Results-MH'!G$22))\n/\n('Results-SF'!G$22+'Results-MF'!G$22+'Results-MH'!G$22)","v":762.24941535870744},{"$f":"(('Results-SF'!H16*'Results-SF'!H$22)+('Results-MF'!H16*'Results-MF'!H$22)+('Results-MH'!H16*'Results-MH'!H$22))\n/\n('Results-SF'!H$22+'Results-MF'!H$22+'Results-MH'!H$22)","v":751.75882265772555},{"$f":"(('Results-SF'!I16*'Results-SF'!I$22)+('Results-MF'!I16*'Results-MF'!I$22)+('Results-MH'!I16*'Results-MH'!I$22))\n/\n('Results-SF'!I$22+'Results-MF'!I$22+'Results-MH'!I$22)","v":748.8895364208779},{"$f":"(('Results-SF'!J16*'Results-SF'!J$22)+('Results-MF'!J16*'Results-MF'!J$22)+('Results-MH'!J16*'Results-MH'!J$22))\n/\n('Results-SF'!J$22+'Results-MF'!J$22+'Results-MH'!J$22)","v":749.27500360793124},{"$f":"(('Results-SF'!K16*'Results-SF'!K$22)+('Results-MF'!K16*'Results-MF'!K$22)+('Results-MH'!K16*'Results-MH'!K$22))\n/\n('Results-SF'!K$22+'Results-MF'!K$22+'Results-MH'!K$22)","v":754.7458144111298},{"$f":"(('Results-SF'!L16*'Results-SF'!L$22)+('Results-MF'!L16*'Results-MF'!L$22)+('Results-MH'!L16*'Results-MH'!L$22))\n/\n('Results-SF'!L$22+'Results-MF'!L$22+'Results-MH'!L$22)","v":754.45806726018895},{"$f":"(('Results-SF'!M16*'Results-SF'!M$22)+('Results-MF'!M16*'Results-MF'!M$22)+('Results-MH'!M16*'Results-MH'!M$22))\n/\n('Results-SF'!M$22+'Results-MF'!M$22+'Results-MH'!M$22)","v":740.57352358902654},{"$f":"(('Results-SF'!N16*'Results-SF'!N$22)+('Results-MF'!N16*'Results-MF'!N$22)+('Results-MH'!N16*'Results-MH'!N$22))\n/\n('Results-SF'!N$22+'Results-MF'!N$22+'Results-MH'!N$22)","v":733.16015997192278},{"$f":"(('Results-SF'!O16*'Results-SF'!O$22)+('Results-MF'!O16*'Results-MF'!O$22)+('Results-MH'!O16*'Results-MH'!O$22))\n/\n('Results-SF'!O$22+'Results-MF'!O$22+'Results-MH'!O$22)","v":728.77505845585642},{"$f":"(('Results-SF'!P16*'Results-SF'!P$22)+('Results-MF'!P16*'Results-MF'!P$22)+('Results-MH'!P16*'Results-MH'!P$22))\n/\n('Results-SF'!P$22+'Results-MF'!P$22+'Results-MH'!P$22)","v":721.56736075017295},{"$f":"(('Results-SF'!Q16*'Results-SF'!Q$22)+('Results-MF'!Q16*'Results-MF'!Q$22)+('Results-MH'!Q16*'Results-MH'!Q$22))\n/\n('Results-SF'!Q$22+'Results-MF'!Q$22+'Results-MH'!Q$22)","v":699.66223089491791},{"$f":"(('Results-SF'!R16*'Results-SF'!R$22)+('Results-MF'!R16*'Results-MF'!R$22)+('Results-MH'!R16*'Results-MH'!R$22))\n/\n('Results-SF'!R$22+'Results-MF'!R$22+'Results-MH'!R$22)","v":689.80109512919284},{"$f":"(('Results-SF'!S16*'Results-SF'!S$22)+('Results-MF'!S16*'Results-MF'!S$22)+('Results-MH'!S16*'Results-MH'!S$22))\n/\n('Results-SF'!S$22+'Results-MF'!S$22+'Results-MH'!S$22)","v":675.92150255086506},{"$f":"(('Results-SF'!T16*'Results-SF'!T$22)+('Results-MF'!T16*'Results-MF'!T$22)+('Results-MH'!T16*'Results-MH'!T$22))\n/\n('Results-SF'!T$22+'Results-MF'!T$22+'Results-MH'!T$22)","v":664.49013169923967},{"$f":"(('Results-SF'!U16*'Results-SF'!U$22)+('Results-MF'!U16*'Results-MF'!U$22)+('Results-MH'!U16*'Results-MH'!U$22))\n/\n('Results-SF'!U$22+'Results-MF'!U$22+'Results-MH'!U$22)","v":653.98699309938445},{"$f":"(('Results-SF'!V16*'Results-SF'!V$22)+('Results-MF'!V16*'Results-MF'!V$22)+('Results-MH'!V16*'Results-MH'!V$22))\n/\n('Results-SF'!V$22+'Results-MF'!V$22+'Results-MH'!V$22)","v":641.09703254238298},{"$f":"(('Results-SF'!W16*'Results-SF'!W$22)+('Results-MF'!W16*'Results-MF'!W$22)+('Results-MH'!W16*'Results-MH'!W$22))\n/\n('Results-SF'!W$22+'Results-MF'!W$22+'Results-MH'!W$22)","v":628.0169187803167},{"$f":"(('Results-SF'!X16*'Results-SF'!X$22)+('Results-MF'!X16*'Results-MF'!X$22)+('Results-MH'!X16*'Results-MH'!X$22))\n/\n('Results-SF'!X$22+'Results-MF'!X$22+'Results-MH'!X$22)","v":617.41090014497217},{"$f":"(('Results-SF'!Y16*'Results-SF'!Y$22)+('Results-MF'!Y16*'Results-MF'!Y$22)+('Results-MH'!Y16*'Results-MH'!Y$22))\n/\n('Results-SF'!Y$22+'Results-MF'!Y$22+'Results-MH'!Y$22)","v":612.58246464628189},{"$f":"(('Results-SF'!Z16*'Results-SF'!Z$22)+('Results-MF'!Z16*'Results-MF'!Z$22)+('Results-MH'!Z16*'Results-MH'!Z$22))\n/\n('Results-SF'!Z$22+'Results-MF'!Z$22+'Results-MH'!Z$22)","v":604.37104619177671},{"$f":"(('Results-SF'!AA16*'Results-SF'!AA$22)+('Results-MF'!AA16*'Results-MF'!AA$22)+('Results-MH'!AA16*'Results-MH'!AA$22))\n/\n('Results-SF'!AA$22+'Results-MF'!AA$22+'Results-MH'!AA$22)","v":597.31867264087759},{"$f":"(('Results-SF'!AB16*'Results-SF'!AB$22)+('Results-MF'!AB16*'Results-MF'!AB$22)+('Results-MH'!AB16*'Results-MH'!AB$22))\n/\n('Results-SF'!AB$22+'Results-MF'!AB$22+'Results-MH'!AB$22)","v":583.52917419386608}]
[]
[null,null,"Stock and Shipments (units)",2010,{"$f":"D18+1","v":2011},2012,2013,2014,2015,2016,2017,2018,2019,2020,2021,2022,2023,2024,2025,2026,2027,2028,2029,2030,2031,2032,2033,2034]
[null,null,"6P Shipments",{"$f":"'Results-SF'!D19+'Results-MF'!D19+'Results-MH'!D19","v":130917.73179149418},{"$f":"'Results-SF'!E19+'Results-MF'!E19+'Results-MH'!E19","v":130917.73179149418},{"$f":"'Results-SF'!F19+'Results-MF'!F19+'Results-MH'!F19","v":130917.73179149418},{"$f":"'Results-SF'!G19+'Results-MF'!G19+'Results-MH'!G19","v":130917.73179149418},{"$f":"'Results-SF'!H19+'Results-MF'!H19+'Results-MH'!H19","v":130917.73179149418},{"$f":"'Results-SF'!I19+'Results-MF'!I19+'Results-MH'!I19","v":130917.73179149418},{"$f":"'Results-SF'!J19+'Results-MF'!J19+'Results-MH'!J19","v":130917.73179149418},{"$f":"'Results-SF'!K19+'Results-MF'!K19+'Results-MH'!K19","v":130917.73179149418},{"$f":"'Results-SF'!L19+'Results-MF'!L19+'Results-MH'!L19","v":130917.73179149418},{"$f":"'Results-SF'!M19+'Results-MF'!M19+'Results-MH'!M19","v":130917.73179149418},{"$f":"'Results-SF'!N19+'Results-MF'!N19+'Results-MH'!N19","v":130917.73179149418},{"$f":"'Results-SF'!O19+'Results-MF'!O19+'Results-MH'!O19","v":130917.73179149418},{"$f":"'Results-SF'!P19+'Results-MF'!P19+'Results-MH'!P19","v":130917.73179149418},{"$f":"'Results-SF'!Q19+'Results-MF'!Q19+'Results-MH'!Q19","v":130917.73179149418},{"$f":"'Results-SF'!R19+'Results-MF'!R19+'Results-MH'!R19","v":130917.73179149418},{"$f":"'Results-SF'!S19+'Results-MF'!S19+'Results-MH'!S19","v":130917.73179149418},{"$f":"'Results-SF'!T19+'Results-MF'!T19+'Results-MH'!T19","v":130917.73179149418},{"$f":"'Results-SF'!U19+'Results-MF'!U19+'Results-MH'!U19","v":130917.73179149418},{"$f":"'Results-SF'!V19+'Results-MF'!V19+'Results-MH'!V19","v":130917.73179149418},{"$f":"'Results-SF'!W19+'Results-MF'!W19+'Results-MH'!W19","v":130917.73179149418},{"$f":"'Results-SF'!X19+'Results-MF'!X19+'Results-MH'!X19","v":130917.73179149418},{"$f":"'Results-SF'!Y19+'Results-MF'!Y19+'Results-MH'!Y19","v":130917.73179149418},{"$f":"'Results-SF'!Z19+'Results-MF'!Z19+'Results-MH'!Z19","v":130917.73179149418},{"$f":"'Results-SF'!AA19+'Results-MF'!AA19+'Results-MH'!AA19","v":130917.73179149418},{"$f":"'Results-SF'!AB19+'Results-MF'!AB19+'Results-MH'!AB19","v":130917.73179149418}]
[null,null,"Replacement Shipments",{"$f":"'Results-SF'!D20+'Results-MF'!D20+'Results-MH'!D20","v":129343.54822305309},{"$f":"'Results-SF'!E20+'Results-MF'!E20+'Results-MH'!E20","v":140670.93027114376},{"$f":"'Results-SF'!F20+'Results-MF'!F20+'Results-MH'!F20","v":137728.9070856701},{"$f":"'Results-SF'!G20+'Results-MF'!G20+'Results-MH'!G20","v":146526.02743022097},{"$f":"'Results-SF'!H20+'Results-MF'!H20+'Results-MH'!H20","v":126967.86879604208},{"$f":"'Results-SF'!I20+'Results-MF'!I20+'Results-MH'!I20","v":130817.09265136365},{"$f":"'Results-SF'!J20+'Results-MF'!J20+'Results-MH'!J20","v":124532.88938134196},{"$f":"'Results-SF'!K20+'Results-MF'!K20+'Results-MH'!K20","v":123403.37933572945},{"$f":"'Results-SF'!L20+'Results-MF'!L20+'Results-MH'!L20","v":122176.58571636135},{"$f":"'Results-SF'!M20+'Results-MF'!M20+'Results-MH'!M20","v":123272.10339486461},{"$f":"'Results-SF'!N20+'Results-MF'!N20+'Results-MH'!N20","v":118608.14201737626},{"$f":"'Results-SF'!O20+'Results-MF'!O20+'Results-MH'!O20","v":110673.34645235348},{"$f":"'Results-SF'!P20+'Results-MF'!P20+'Results-MH'!P20","v":108951.59269786142},{"$f":"'Results-SF'!Q20+'Results-MF'!Q20+'Results-MH'!Q20","v":143589.1307526693},{"$f":"'Results-SF'!R20+'Results-MF'!R20+'Results-MH'!R20","v":137512.49791276688},{"$f":"'Results-SF'!S20+'Results-MF'!S20+'Results-MH'!S20","v":149467.08320272728},{"$f":"'Results-SF'!T20+'Results-MF'!T20+'Results-MH'!T20","v":151937.38723989902},{"$f":"'Results-SF'!U20+'Results-MF'!U20+'Results-MH'!U20","v":144295.25333938605},{"$f":"'Results-SF'!V20+'Results-MF'!V20+'Results-MH'!V20","v":133870.766520676},{"$f":"'Results-SF'!W20+'Results-MF'!W20+'Results-MH'!W20","v":119353.46348146543},{"$f":"'Results-SF'!X20+'Results-MF'!X20+'Results-MH'!X20","v":117666.56273727147},{"$f":"'Results-SF'!Y20+'Results-MF'!Y20+'Results-MH'!Y20","v":133696.29599485802},{"$f":"'Results-SF'!Z20+'Results-MF'!Z20+'Results-MH'!Z20","v":146890.63252548187},{"$f":"'Results-SF'!AA20+'Results-MF'!AA20+'Results-MH'!AA20","v":181047.7218991167},{"$f":"'Results-SF'!AB20+'Results-MF'!AB20+'Results-MH'!AB20","v":190608.01741963206}]
[null,null,"Net New Shipments",{"$f":"'Results-SF'!D21+'Results-MF'!D21+'Results-MH'!D21","v":4352.7477718049195},{"$f":"'Results-SF'!E21+'Results-MF'!E21+'Results-MH'!E21","v":6219.7022543380735},{"$f":"'Results-SF'!F21+'Results-MF'!F21+'Results-MH'!F21","v":43318.814813446559},{"$f":"'Results-SF'!G21+'Results-MF'!G21+'Results-MH'!G21","v":44081.9899894111},{"$f":"'Results-SF'!H21+'Results-MF'!H21+'Results-MH'!H21","v":43591.557430216228},{"$f":"'Results-SF'!I21+'Results-MF'!I21+'Results-MH'!I21","v":43523.596549339985},{"$f":"'Results-SF'!J21+'Results-MF'!J21+'Results-MH'!J21","v":43510.923364982591},{"$f":"'Results-SF'!K21+'Results-MF'!K21+'Results-MH'!K21","v":42764.053190534883},{"$f":"'Results-SF'!L21+'Results-MF'!L21+'Results-MH'!L21","v":42041.675742275795},{"$f":"'Results-SF'!M21+'Results-MF'!M21+'Results-MH'!M21","v":41362.290455610295},{"$f":"'Results-SF'!N21+'Results-MF'!N21+'Results-MH'!N21","v":40926.703752348258},{"$f":"'Results-SF'!O21+'Results-MF'!O21+'Results-MH'!O21","v":40159.97611820107},{"$f":"'Results-SF'!P21+'Results-MF'!P21+'Results-MH'!P21","v":39746.176282324122},{"$f":"'Results-SF'!Q21+'Results-MF'!Q21+'Results-MH'!Q21","v":39456.689865649889},{"$f":"'Results-SF'!R21+'Results-MF'!R21+'Results-MH'!R21","v":39027.370834136091},{"$f":"'Results-SF'!S21+'Results-MF'!S21+'Results-MH'!S21","v":38897.659464097349},{"$f":"'Results-SF'!T21+'Results-MF'!T21+'Results-MH'!T21","v":38493.94986218775},{"$f":"'Results-SF'!U21+'Results-MF'!U21+'Results-MH'!U21","v":37697.700797764846},{"$f":"'Results-SF'!V21+'Results-MF'!V21+'Results-MH'!V21","v":36669.892433800356},{"$f":"'Results-SF'!W21+'Results-MF'!W21+'Results-MH'!W21","v":35890.936213975627},{"$f":"'Results-SF'!X21+'Results-MF'!X21+'Results-MH'!X21","v":35563.763133543718},{"$f":"'Results-SF'!Y21+'Results-MF'!Y21+'Results-MH'!Y21","v":35919.400764880076},{"$f":"'Results-SF'!Z21+'Results-MF'!Z21+'Results-MH'!Z21","v":36278.594772527911},{"$f":"'Results-SF'!AA21+'Results-MF'!AA21+'Results-MH'!AA21","v":36641.380720253677},{"$f":"'Results-SF'!AB21+'Results-MF'!AB21+'Results-MH'!AB21","v":37007.794527456281}]
[null,null,"Total Model Shipments",{"$f":"'Results-SF'!D22+'Results-MF'!D22+'Results-MH'!D22","v":133696.29599485802},{"$f":"'Results-SF'!E22+'Results-MF'!E22+'Results-MH'!E22","v":146890.63252548184},{"$f":"'Results-SF'!F22+'Results-MF'!F22+'Results-MH'!F22","v":181047.7218991167},{"$f":"'Results-SF'!G22+'Results-MF'!G22+'Results-MH'!G22","v":190608.01741963209},{"$f":"'Results-SF'!H22+'Results-MF'!H22+'Results-MH'!H22","v":170559.42622625834},{"$f":"'Results-SF'!I22+'Results-MF'!I22+'Results-MH'!I22","v":174340.68920070367},{"$f":"'Results-SF'!J22+'Results-MF'!J22+'Results-MH'!J22","v":168043.81274632455},{"$f":"'Results-SF'!K22+'Results-MF'!K22+'Results-MH'!K22","v":166167.43252626434},{"$f":"'Results-SF'!L22+'Results-MF'!L22+'Results-MH'!L22","v":164218.26145863716},{"$f":"'Results-SF'!M22+'Results-MF'!M22+'Results-MH'!M22","v":164634.39385047491},{"$f":"'Results-SF'!N22+'Results-MF'!N22+'Results-MH'!N22","v":159534.84576972452},{"$f":"'Results-SF'!O22+'Results-MF'!O22+'Results-MH'!O22","v":150833.32257055456},{"$f":"'Results-SF'!P22+'Results-MF'!P22+'Results-MH'!P22","v":148697.76898018556},{"$f":"'Results-SF'!Q22+'Results-MF'!Q22+'Results-MH'!Q22","v":183045.82061831918},{"$f":"'Results-SF'!R22+'Results-MF'!R22+'Results-MH'!R22","v":176539.86874690297},{"$f":"'Results-SF'!S22+'Results-MF'!S22+'Results-MH'!S22","v":188364.74266682466},{"$f":"'Results-SF'!T22+'Results-MF'!T22+'Results-MH'!T22","v":190431.33710208678},{"$f":"'Results-SF'!U22+'Results-MF'!U22+'Results-MH'!U22","v":181992.95413715093},{"$f":"'Results-SF'!V22+'Results-MF'!V22+'Results-MH'!V22","v":170540.65895447636},{"$f":"'Results-SF'!W22+'Results-MF'!W22+'Results-MH'!W22","v":155244.39969544107},{"$f":"'Results-SF'!X22+'Results-MF'!X22+'Results-MH'!X22","v":153230.3258708152},{"$f":"'Results-SF'!Y22+'Results-MF'!Y22+'Results-MH'!Y22","v":169615.69675973809},{"$f":"'Results-SF'!Z22+'Results-MF'!Z22+'Results-MH'!Z22","v":183169.22729800976},{"$f":"'Results-SF'!AA22+'Results-MF'!AA22+'Results-MH'!AA22","v":217689.10261937033},{"$f":"'Results-SF'!AB22+'Results-MF'!AB22+'Results-MH'!AB22","v":227615.81194708834}]
[null,null,"Model Installed Stock",{"$f":"'Results-SF'!D23+'Results-MF'!D23+'Results-MH'!D23","v":2749272.3676213776},{"$f":"'Results-SF'!E23+'Results-MF'!E23+'Results-MH'!E23","v":2751937.0086663864},{"$f":"'Results-SF'!F23+'Results-MF'!F23+'Results-MH'!F23","v":2795255.8234798331},{"$f":"'Results-SF'!G23+'Results-MF'!G23+'Results-MH'!G23","v":2839337.8134692442},{"$f":"'Results-SF'!H23+'Results-MF'!H23+'Results-MH'!H23","v":2882929.3708994603},{"$f":"'Results-SF'!I23+'Results-MF'!I23+'Results-MH'!I23","v":2926452.9674488003},{"$f":"'Results-SF'!J23+'Results-MF'!J23+'Results-MH'!J23","v":2969963.8908137828},{"$f":"'Results-SF'!K23+'Results-MF'!K23+'Results-MH'!K23","v":3012727.9440043177},{"$f":"'Results-SF'!L23+'Results-MF'!L23+'Results-MH'!L23","v":3054769.6197465938},{"$f":"'Results-SF'!M23+'Results-MF'!M23+'Results-MH'!M23","v":3096131.9102022038},{"$f":"'Results-SF'!N23+'Results-MF'!N23+'Results-MH'!N23","v":3137058.6139545524},{"$f":"'Results-SF'!O23+'Results-MF'!O23+'Results-MH'!O23","v":3177218.5900727534},{"$f":"'Results-SF'!P23+'Results-MF'!P23+'Results-MH'!P23","v":3216964.7663550773},{"$f":"'Results-SF'!Q23+'Results-MF'!Q23+'Results-MH'!Q23","v":3256421.4562207269},{"$f":"'Results-SF'!R23+'Results-MF'!R23+'Results-MH'!R23","v":3295448.8270548633},{"$f":"'Results-SF'!S23+'Results-MF'!S23+'Results-MH'!S23","v":3334346.4865189609},{"$f":"'Results-SF'!T23+'Results-MF'!T23+'Results-MH'!T23","v":3372840.4363811482},{"$f":"'Results-SF'!U23+'Results-MF'!U23+'Results-MH'!U23","v":3410538.1371789132},{"$f":"'Results-SF'!V23+'Results-MF'!V23+'Results-MH'!V23","v":3447208.0296127135},{"$f":"'Results-SF'!W23+'Results-MF'!W23+'Results-MH'!W23","v":3483098.9658266893},{"$f":"'Results-SF'!X23+'Results-MF'!X23+'Results-MH'!X23","v":3518662.7289602328},{"$f":"'Results-SF'!Y23+'Results-MF'!Y23+'Results-MH'!Y23","v":3554582.129725113},{"$f":"'Results-SF'!Z23+'Results-MF'!Z23+'Results-MH'!Z23","v":3590860.7244976405},{"$f":"'Results-SF'!AA23+'Results-MF'!AA23+'Results-MH'!AA23","v":3627502.1052178945},{"$f":"'Results-SF'!AB23+'Results-MF'!AB23+'Results-MH'!AB23","v":3664509.8997453507}]
[]
[]
[]
[null,null,"First Year Energy Consumption ",2010,{"$f":"D27+1","v":2011},2012,2013,2014,2015,2016,2017,2018,2019,2020,2021,2022,2023,2024,2025,2026,2027,2028,2029,2030,2031,2032,2033,2034]
[null,null,"6P Shipments * 6P UEC",{"$f":"D12*D19","v":96175761.145732149},{"$f":"E12*E19","v":96422384.59054935},100207875.84661044,100038623.96278176,100565204.83508581,100489263.84385896,100627795.54237065,100500528.36116929,100593955.2087356,100424880.76789451,100469572.24620819,100567039.43366094,100550930.12248163,99606670.669503883,99662906.034453198,99370351.918903887,99241351.930415466,99284030.739554569,99417290.19161737,99728981.575847715,99749116.610544533,99289719.705504864,98978870.072213486,98340185.411953419,98193834.908987105]
[null,null,"Model Shipments * Model Pre-Case UEC",{"$f":"D13*D22","v":97784025.671698928},{"$f":"E13*E22","v":108111913.18909371},140524721.52242869,147735237.65397736,130899046.89482871,133105855.90881523,128427682.44828857,127674198.51625884,126130712.92989729,126020102.19553734,122917123.77121378,117374960.3824262,116256819.97932202,139938280.86327782,135472148.70161554,143845627.69976711,145517325.33764479,139375638.80731782,130182317.29932965,117987057.04734716,115993842.93224663,128750636.23753022,138979872.97139871,166009230.45741379,173349779.31434196]
[null,null,"Model Shipments * Model Post-Case UEC",{"$f":"D14*D22","v":97784025.671698928},{"$f":"E14*E22","v":108111913.18909371},140524721.52242869,147735237.65397736,130899046.89482871,133105855.90881525,128427682.44828857,127674198.51625884,126130712.92989729,85164144.061779082,82984942.004493698,79142051.202765942,78254307.464629263,95147540.955973759,92088354.692228064,98121645.203987882,99383958.108085275,95145542.173848614,88857166.147487611,80411920.772356212,79116046.128829941,88142790.628518239,95454615.515035555,114566067.01715705,119853306.47353393]
[]
[null,null,"Total Energy Consumption (kWh)",2010,{"$f":"D32+1","v":2011},2012,2013,2014,2015,2016,2017,2018,2019,2020,2021,2022,2023,2024,2025,2026,2027,2028,2029,2030,2031,2032,2033,2034]
[null,null,"Modeled Pre-case Consumption \n(Installed UEC * Stock)",{"$f":"D15*D$23","v":2064876672.6083472},{"$f":"E15*E$23","v":2068864004.1757698},2131448406.3200963,2164283588.3228021,2167267589.6727557,2191590006.1502347,2225319705.0049224,2273843805.6967072,2304695583.2391577,2333558760.3472414,2380887740.3145013,2436046851.4779549,2481343658.2783594,2480658858.9245467,2519953290.2186241,2545772794.449513,2580285163.5991635,2614819111.3605924,2633484028.7026849,2644217196.3543305,2663259991.441298,2713434132.4922113,2751041784.7835917,2808823368.4978518,2834692693.9584203]
[null,null,"Modeled Post-case Consumption \n(Installed UEC* Stock)",{"$f":"D16*D$23","v":2064876672.6083472},{"$f":"E16*E$23","v":2068864004.1757698},2131448406.3200963,2164283588.3228021,2167267589.6727557,2191590006.1502347,2225319705.0049224,2273843805.6967072,2304695583.2391577,2292913318.2348695,2299966395.2482181,2315477663.7073045,2321256776.0851297,2278395100.7934709,2273204209.8446589,2253756487.1930938,2241219185.77143,2230447581.1844134,2209994838.3409858,2187445080.3253851,2172460722.7939014,2177474681.8146396,2170212252.7936001,2166774742.4907417,2138348435.6236515]
[]
[]
[]
[null,null,"Total Energy Consumption (aMW)",2010,{"$f":"D38+1","v":2011},2012,2013,2014,2015,2016,2017,2018,2019,2020,2021,2022,2023,2024,2025,2026,2027,2028,2029,2030,2031,2032,2033,2034]
[null,null,{"$f":"C33","v":"Modeled Pre-case Consumption \n(Installed UEC * Stock)"},{"$f":"D33/Constants!$D$13/(Constants!$D$12*Constants!$D$10)","v":235.55517597631157},{"$f":"E33/Constants!$D$13/(Constants!$D$12*Constants!$D$10)","v":236.01003926257926},{"$f":"F33/Constants!$D$13/(Constants!$D$12*Constants!$D$10)","v":243.14948737395579},{"$f":"G33/Constants!$D$13/(Constants!$D$12*Constants!$D$10)","v":246.89523024444466},{"$f":"H33/Constants!$D$13/(Constants!$D$12*Constants!$D$10)","v":247.23563651297695},{"$f":"I33/Constants!$D$13/(Constants!$D$12*Constants!$D$10)","v":250.01026764205275},{"$f":"J33/Constants!$D$13/(Constants!$D$12*Constants!$D$10)","v":253.85805441534595},{"$f":"K33/Constants!$D$13/(Constants!$D$12*Constants!$D$10)","v":259.39354388509093},{"$f":"L33/Constants!$D$13/(Constants!$D$12*Constants!$D$10)","v":262.91302569463357},{"$f":"M33/Constants!$D$13/(Constants!$D$12*Constants!$D$10)","v":266.20565370148773},{"$f":"N33/Constants!$D$13/(Constants!$D$12*Constants!$D$10)","v":271.60480724555117},{"$f":"O33/Constants!$D$13/(Constants!$D$12*Constants!$D$10)","v":277.89719957539984},{"$f":"P33/Constants!$D$13/(Constants!$D$12*Constants!$D$10)","v":283.06452866511063},{"$f":"Q33/Constants!$D$13/(Constants!$D$12*Constants!$D$10)","v":282.98640872969963},{"$f":"R33/Constants!$D$13/(Constants!$D$12*Constants!$D$10)","v":287.46900413171619},{"$f":"S33/Constants!$D$13/(Constants!$D$12*Constants!$D$10)","v":290.41441871429532},{"$f":"T33/Constants!$D$13/(Constants!$D$12*Constants!$D$10)","v":294.35149025771886},{"$f":"U33/Constants!$D$13/(Constants!$D$12*Constants!$D$10)","v":298.29102342694415},{"$f":"V33/Constants!$D$13/(Constants!$D$12*Constants!$D$10)","v":300.42026337014426},{"$f":"W33/Constants!$D$13/(Constants!$D$12*Constants!$D$10)","v":301.64467218278924},{"$f":"X33/Constants!$D$13/(Constants!$D$12*Constants!$D$10)","v":303.8170193293746},{"$f":"Y33/Constants!$D$13/(Constants!$D$12*Constants!$D$10)","v":309.54074064478795},{"$f":"Z33/Constants!$D$13/(Constants!$D$12*Constants!$D$10)","v":313.83091316262738},{"$f":"AA33/Constants!$D$13/(Constants!$D$12*Constants!$D$10)","v":320.42246959820346},{"$f":"AB33/Constants!$D$13/(Constants!$D$12*Constants!$D$10)","v":323.37356764298659}]
[null,null,{"$f":"C34","v":"Modeled Post-case Consumption \n(Installed UEC* Stock)"},{"$f":"D34/Constants!$D$13/(Constants!$D$12*Constants!$D$10)","v":235.55517597631157},{"$f":"E34/Constants!$D$13/(Constants!$D$12*Constants!$D$10)","v":236.01003926257926},{"$f":"F34/Constants!$D$13/(Constants!$D$12*Constants!$D$10)","v":243.14948737395579},{"$f":"G34/Constants!$D$13/(Constants!$D$12*Constants!$D$10)","v":246.89523024444466},{"$f":"H34/Constants!$D$13/(Constants!$D$12*Constants!$D$10)","v":247.23563651297695},{"$f":"I34/Constants!$D$13/(Constants!$D$12*Constants!$D$10)","v":250.01026764205275},{"$f":"J34/Constants!$D$13/(Constants!$D$12*Constants!$D$10)","v":253.85805441534595},{"$f":"K34/Constants!$D$13/(Constants!$D$12*Constants!$D$10)","v":259.39354388509093},{"$f":"L34/Constants!$D$13/(Constants!$D$12*Constants!$D$10)","v":262.91302569463357},{"$f":"M34/Constants!$D$13/(Constants!$D$12*Constants!$D$10)","v":261.56893888145896},{"$f":"N34/Constants!$D$13/(Constants!$D$12*Constants!$D$10)","v":262.37353356698816},{"$f":"O34/Constants!$D$13/(Constants!$D$12*Constants!$D$10)","v":264.14301434032677},{"$f":"P34/Constants!$D$13/(Constants!$D$12*Constants!$D$10)","v":264.80227881418318},{"$f":"Q34/Constants!$D$13/(Constants!$D$12*Constants!$D$10)","v":259.91274250438863},{"$f":"R34/Constants!$D$13/(Constants!$D$12*Constants!$D$10)","v":259.32058063480025},{"$f":"S34/Constants!$D$13/(Constants!$D$12*Constants!$D$10)","v":257.10204051940377},{"$f":"T34/Constants!$D$13/(Constants!$D$12*Constants!$D$10)","v":255.67182132916153},{"$f":"U34/Constants!$D$13/(Constants!$D$12*Constants!$D$10)","v":254.44302774177655},{"$f":"V34/Constants!$D$13/(Constants!$D$12*Constants!$D$10)","v":252.10983782123952},{"$f":"W34/Constants!$D$13/(Constants!$D$12*Constants!$D$10)","v":249.5374264573791},{"$f":"X34/Constants!$D$13/(Constants!$D$12*Constants!$D$10)","v":247.82805416311902},{"$f":"Y34/Constants!$D$13/(Constants!$D$12*Constants!$D$10)","v":248.40003214860135},{"$f":"Z34/Constants!$D$13/(Constants!$D$12*Constants!$D$10)","v":247.57155518977868},{"$f":"AA34/Constants!$D$13/(Constants!$D$12*Constants!$D$10)","v":247.17941392775975},{"$f":"AB34/Constants!$D$13/(Constants!$D$12*Constants!$D$10)","v":243.93662281812129}]
[]
[null,null,"Savings (aMW)",2010,{"$f":"D42+1","v":2011},2012,2013,2014,2015,2016,2017,2018,2019,2020,2021,2022,2023,2024,2025,2026,2027,2028,2029,2030,2031,2032,2033,2034]
[null,null,"Incremental Savings",{"$f":"'Results-SF'!D43+'Results-MF'!D43+'Results-MH'!D43","v":0},{"$f":"'Results-SF'!E43+'Results-MF'!E43+'Results-MH'!E43","v":0},{"$f":"'Results-SF'!F43+'Results-MF'!F43+'Results-MH'!F43","v":0},{"$f":"'Results-SF'!G43+'Results-MF'!G43+'Results-MH'!G43","v":0},{"$f":"'Results-SF'!H43+'Results-MF'!H43+'Results-MH'!H43","v":0},{"$f":"'Results-SF'!I43+'Results-MF'!I43+'Results-MH'!I43","v":-4.9244392180032549E-16},{"$f":"'Results-SF'!J43+'Results-MF'!J43+'Results-MH'!J43","v":0},{"$f":"'Results-SF'!K43+'Results-MF'!K43+'Results-MH'!K43","v":0},{"$f":"'Results-SF'!L43+'Results-MF'!L43+'Results-MH'!L43","v":0},{"$f":"'Results-SF'!M43+'Results-MF'!M43+'Results-MH'!M43","v":4.6607298806477564},{"$f":"'Results-SF'!N43+'Results-MF'!N43+'Results-MH'!N43","v":4.5553481367465318},{"$f":"'Results-SF'!O43+'Results-MF'!O43+'Results-MH'!O43","v":4.3615000204951224},{"$f":"'Results-SF'!P43+'Results-MF'!P43+'Results-MH'!P43","v":4.3352170333895437},{"$f":"'Results-SF'!Q43+'Results-MF'!Q43+'Results-MH'!Q43","v":5.1095984379767385},{"$f":"'Results-SF'!R43+'Results-MF'!R43+'Results-MH'!R43","v":4.9490981073907694},{"$f":"'Results-SF'!S43+'Results-MF'!S43+'Results-MH'!S43","v":5.2160600611201495},{"$f":"'Results-SF'!T43+'Results-MF'!T43+'Results-MH'!T43","v":5.2627614909376579},{"$f":"'Results-SF'!U43+'Results-MF'!U43+'Results-MH'!U43","v":5.0456418701196917},{"$f":"'Results-SF'!V43+'Results-MF'!V43+'Results-MH'!V43","v":4.7142540670593274},{"$f":"'Results-SF'!W43+'Results-MF'!W43+'Results-MH'!W43","v":4.2864631844616632},{"$f":"'Results-SF'!X43+'Results-MF'!X43+'Results-MH'!X43","v":4.2069127085805027},{"$f":"'Results-SF'!Y43+'Results-MF'!Y43+'Results-MH'!Y43","v":4.6324259193488473},{"$f":"'Results-SF'!Z43+'Results-MF'!Z43+'Results-MH'!Z43","v":4.9652358494596358},{"$f":"'Results-SF'!AA43+'Results-MF'!AA43+'Results-MH'!AA43","v":5.8684877298946772},{"$f":"'Results-SF'!AB43+'Results-MF'!AB43+'Results-MH'!AB43","v":6.1027233448332199}]
[null,null,"Cumulative Savings",{"$f":"'Results-SF'!D44+'Results-MF'!D44+'Results-MH'!D44","v":0},{"$f":"'Results-SF'!E44+'Results-MF'!E44+'Results-MH'!E44","v":0},{"$f":"'Results-SF'!F44+'Results-MF'!F44+'Results-MH'!F44","v":0},{"$f":"'Results-SF'!G44+'Results-MF'!G44+'Results-MH'!G44","v":0},{"$f":"'Results-SF'!H44+'Results-MF'!H44+'Results-MH'!H44","v":0},{"$f":"'Results-SF'!I44+'Results-MF'!I44+'Results-MH'!I44","v":0},{"$f":"'Results-SF'!J44+'Results-MF'!J44+'Results-MH'!J44","v":0},{"$f":"'Results-SF'!K44+'Results-MF'!K44+'Results-MH'!K44","v":0},{"$f":"'Results-SF'!L44+'Results-MF'!L44+'Results-MH'!L44","v":0},{"$f":"'Results-SF'!M44+'Results-MF'!M44+'Results-MH'!M44","v":4.6607298806477662},{"$f":"'Results-SF'!N44+'Results-MF'!N44+'Results-MH'!N44","v":9.2160780173943166},{"$f":"'Results-SF'!O44+'Results-MF'!O44+'Results-MH'!O44","v":13.577578037889355},{"$f":"'Results-SF'!P44+'Results-MF'!P44+'Results-MH'!P44","v":17.912795071278943},{"$f":"'Results-SF'!Q44+'Results-MF'!Q44+'Results-MH'!Q44","v":23.022393509255679},{"$f":"'Results-SF'!R44+'Results-MF'!R44+'Results-MH'!R44","v":27.971491616646507},{"$f":"'Results-SF'!S44+'Results-MF'!S44+'Results-MH'!S44","v":33.187551677766535},{"$f":"'Results-SF'!T44+'Results-MF'!T44+'Results-MH'!T44","v":38.45031316870427},{"$f":"'Results-SF'!U44+'Results-MF'!U44+'Results-MH'!U44","v":43.495955038824},{"$f":"'Results-SF'!V44+'Results-MF'!V44+'Results-MH'!V44","v":48.210209105883365},{"$f":"'Results-SF'!W44+'Results-MF'!W44+'Results-MH'!W44","v":52.496672290345074},{"$f":"'Results-SF'!X44+'Results-MF'!X44+'Results-MH'!X44","v":56.703584998925507},{"$f":"'Results-SF'!Y44+'Results-MF'!Y44+'Results-MH'!Y44","v":61.336010918274368},{"$f":"'Results-SF'!Z44+'Results-MF'!Z44+'Results-MH'!Z44","v":66.301246767733957},{"$f":"'Results-SF'!AA44+'Results-MF'!AA44+'Results-MH'!AA44","v":72.169734497628653},{"$f":"'Results-SF'!AB44+'Results-MF'!AB44+'Results-MH'!AB44","v":78.272457842461833}]
[null,null,"DOE Aggregate Lifecycle Savings (formerly DOE Carbon proxy)",{"$f":"'Results-SF'!D45+'Results-MF'!D45+'Results-MH'!D45","v":0},{"$f":"'Results-SF'!E45+'Results-MF'!E45+'Results-MH'!E45","v":0},{"$f":"'Results-SF'!F45+'Results-MF'!F45+'Results-MH'!F45","v":0},{"$f":"'Results-SF'!G45+'Results-MF'!G45+'Results-MH'!G45","v":0},{"$f":"'Results-SF'!H45+'Results-MF'!H45+'Results-MH'!H45","v":0},{"$f":"'Results-SF'!I45+'Results-MF'!I45+'Results-MH'!I45","v":0},{"$f":"'Results-SF'!J45+'Results-MF'!J45+'Results-MH'!J45","v":0},{"$f":"'Results-SF'!K45+'Results-MF'!K45+'Results-MH'!K45","v":0},{"$f":"'Results-SF'!L45+'Results-MF'!L45+'Results-MH'!L45","v":0},{"$f":"'Results-SF'!M45+'Results-MF'!M45+'Results-MH'!M45","v":4.6607298806477662},{"$f":"'Results-SF'!N45+'Results-MF'!N45+'Results-MH'!N45","v":13.876807898042083},{"$f":"'Results-SF'!O45+'Results-MF'!O45+'Results-MH'!O45","v":27.454385935931441},{"$f":"'Results-SF'!P45+'Results-MF'!P45+'Results-MH'!P45","v":45.367181007210377},{"$f":"'Results-SF'!Q45+'Results-MF'!Q45+'Results-MH'!Q45","v":68.389574516466055},{"$f":"'Results-SF'!R45+'Results-MF'!R45+'Results-MH'!R45","v":96.361066133112558},{"$f":"'Results-SF'!S45+'Results-MF'!S45+'Results-MH'!S45","v":129.54861781087911},{"$f":"'Results-SF'!T45+'Results-MF'!T45+'Results-MH'!T45","v":167.99893097958335},{"$f":"'Results-SF'!U45+'Results-MF'!U45+'Results-MH'!U45","v":211.49488601840736},{"$f":"'Results-SF'!V45+'Results-MF'!V45+'Results-MH'!V45","v":259.70509512429072},{"$f":"'Results-SF'!W45+'Results-MF'!W45+'Results-MH'!W45","v":312.20176741463581},{"$f":"'Results-SF'!X45+'Results-MF'!X45+'Results-MH'!X45","v":368.90535241356127},{"$f":"'Results-SF'!Y45+'Results-MF'!Y45+'Results-MH'!Y45","v":430.2413633318356},{"$f":"'Results-SF'!Z45+'Results-MF'!Z45+'Results-MH'!Z45","v":496.54261009956957},{"$f":"'Results-SF'!AA45+'Results-MF'!AA45+'Results-MH'!AA45","v":568.71234459719824},{"$f":"'Results-SF'!AB45+'Results-MF'!AB45+'Results-MH'!AB45","v":646.98480243966014}]
[null,null,"Check",{"$f":"IF(ISNUMBER(C44),ROUND((D44-C44-D43),3),0)","v":0},{"$f":"IF(ISNUMBER(D44),ROUND((E44-D44-E43),3),0)","v":0},0,0,0,0,0,0,0,0,0,0,0,0,0,0,0,0,0,0,0,0,0,0,0]

{"sheet":"SUMMARY RESULTS","index":28,"n_rows":12,"n_cols":7,"rows_kept":12,"cut":false,"hidden":false,"merged":[]}
[]
[null,null,"SUMMARY RESULTS"]
[]
[null,null,"NAVIGATION"]
[]
[null,null,"COMMENTS"]
[]
[]
[null,null,{"$f":"MODEL_NAME","v":"Furnace Fans"},"Single Family","Multi-Family","Manufactured Homes","TOTAL"]
[null,null,"Adjustment to 6P Baseline (aMW)","n/a","n/a","n/a","n/a"]
[null,null,"Cumulative Savings 2010 through 2015 (aMW)",{"$f":"SUM('Results-SF'!$D$43:$I$43)","v":-4.9244392180032549E-16},{"$f":"SUM('Results-MF'!$D$43:$I$43)","v":0},{"$f":"SUM('Results-MH'!$D$43:$I$43)","v":0},{"$f":"SUM(D11:F11)","v":-4.9244392180032549E-16}]
[null,null,"Cumulative Savings through 2034 (aMW)",{"$f":"SUM('Results-SF'!$D$43:$AB$43)","v":72.883922451879585},{"$f":"SUM('Results-MF'!$D$43:$AB$43)","v":2.5655312782216408},{"$f":"SUM('Results-MH'!$D$43:$AB$43)","v":2.8230041123606089},{"$f":"SUM(D12:F12)","v":78.272457842461833}]

{"sheet":"Charts-SF","index":29,"n_rows":6,"n_cols":3,"rows_kept":6,"cut":false,"hidden":false,"merged":[]}
[]
[null,null,"CHARTS - Single Family"]
[]
[null,null,"NAVIGATION"]
[]
[null,null,"COMMENTS"]

{"sheet":"Charts-MF","index":30,"n_rows":6,"n_cols":3,"rows_kept":6,"cut":false,"hidden":false,"merged":[]}
[]
[null,null,"CHARTS - Multi-Family"]
[]
[null,null,"NAVIGATION"]
[]
[null,null,"COMMENTS"]

{"sheet":"Charts-MH","index":31,"n_rows":6,"n_cols":3,"rows_kept":6,"cut":false,"hidden":false,"merged":[]}
[]
[null,null,"CHARTS - Manufactured Homes"]
[]
[null,null,"NAVIGATION"]
[]
[null,null,"COMMENTS"]

{"sheet":"Charts-ALL","index":32,"n_rows":6,"n_cols":3,"rows_kept":6,"cut":false,"hidden":false,"merged":[]}
[]
[null,null,"CHARTS - ALL BUILDING TYPES"]
[]
[null,null,"NAVIGATION"]
[]
[null,null,"COMMENTS"]